{"text_format":"1","workbook":"xlsx","n_sheets":31,"sheets":["Front Page","Name and Parish","Bank and Fund Details","Supplementary Account Details","Descriptions","WorkingP","Prior Year Auto","WorkingR","Prior Year Comparative","Budget Setting","Receipts","Payments","Transfers","Bank Reconciliation Summary","Sunday Envelopes","Standing Orders","Weekday Envelopes","Receipts - Summary","Payments - Summary","Budget Monitoring","Return of Parish Finance","Financial Statements","Year End","Index","Account A","Account B","Account C","Account D","Account E","Account F","Account G"],"not_rendered":{"charts":0,"images":1,"macros":1,"external_links":1,"defined_names":54,"comments":0,"pivot_tables":0},"unopened":[],"bounds":{"document_bytes":16777216,"sheet_cells":100000,"rows_first":2000,"rows_last":500,"rows_between":2000,"halvings":0,"cell_chars":16384,"cell_head_chars":4096},"cells_cut":0,"cells_raw":0,"read":"whole","date_system":"1900"}

{"sheet":"Front Page","index":0,"n_rows":42,"n_cols":13,"rows_kept":42,"cut":false,"hidden":false,"merged":[[1,0,1,12],[13,0,13,12],[26,0,26,12],[34,0,34,12]]}
[]
["Initial Setup"]
[]
[]
[]
[]
[]
[]
[]
[]
[]
[]
[]
["Data Entry"]
[]
[]
[]
[]
[]
[]
[]
[]
[]
[]
[]
[]
["Reports"]
[]
[]
[]
[]
[]
[]
[]
["Year End"]
[]
[]
[]
[]
[]
[]
[null,null,null,null,null,null,null,null,null,null,null,null,3.1]

{"sheet":"Name and Parish","index":1,"n_rows":17,"n_cols":4,"rows_kept":17,"cut":false,"hidden":false,"merged":[[14,3,14,7],[16,3,16,7],[4,3,4,7],[6,3,6,7],[8,3,8,7],[10,3,10,7],[12,3,12,7]]}
[]
[]
[]
[]
[null,"Name"]
[]
[null,"Position"]
[]
[null,"Date of submitting the Parish Finance Form"]
[]
[null,"Contact (Email or Phone)"]
[]
[null,"Parish"]
[]
[null,"Year Ending",null,2023]
[]
[null,"The Agreed Parish Share Ask"]

{"sheet":"Bank and Fund Details","index":2,"n_rows":100,"n_cols":57,"rows_kept":100,"cut":false,"hidden":false,"merged":[[60,2,60,9],[61,2,61,9],[62,2,62,9],[69,2,69,9],[70,2,70,9],[63,2,63,9],[64,2,64,9],[65,2,65,9],[66,2,66,9],[67,2,67,9],[68,2,68,9],[55,2,55,9],[56,2,56,9],[57,2,57,9],[58,2,58,9],[59,2,59,9],[50,2,50,9],[51,2,51,9],[52,2,52,9],[53,2,53,9],[54,2,54,9],[45,2,45,9],[46,2,46,9],[47,2,47,9],[48,2,48,9],[49,2,49,9]]}
[null,null,null,null,null,null,null,null,null,null,null,null,null,null,null,null,null,null,null,null,null,null,1]
[null,null,null,null,null,null,null,null,null,null,null,null,null,null,null,null,null,null,null,null,null,null,1]
[null,null,null,null,null,null,null,null,null,null,null,null,null,null,null,null,null,null,null,null,null,null,1]
[null,null,null,null,null,null,null,null,null,null,null,null,null,null,null,null,null,null,null,null,null,null,1]
[null,"Bank Account Name","Bank Name","Type of Account",{"$f":"CONCATENATE(AW15,'Name and Parish'!D15)","v":"Opening Balance at 1st January 2023"},"Income","Transfers In","Transfers Out","Expenditure","Closing Balance",{"$f":"CONCATENATE(AW15,'Name and Parish'!D15-1)","v":"Opening Balance at 1st January 2022"},null,null,null,null,null,null,null,null,null,null,null,1,null,null,null,null,null,null,null,null,null,null,null,{"$f":"IF(B5=\"Bank Current Account\",\"BA\",IF(B5=\"Bank Savings Account\",\"BSA\",IF(B5=\"Deposit Account\",\"BDA\",IF(B5=\"Cash Balance\",\"CB\",\"\"))))","v":""},null,null,null,"Unrestricted Year End","Unrestricted Prior Year End","Designated Year End","Designated Prior Year End","Restricted Year End","Restricted Prior Year End","Endowment Year End","Endowment Prior Year","Year End","Prior Year End",null,"BA","BSA","BDA"]
[null,null,null,null,{"$f":"SUMIF($D$15:$D$36,B6,$E$15:$E$36)","v":0},{"$f":"SUMIF($D$15:$D$36,B6,$F$15:$F$36)","v":0},{"$f":"SUMIF($D$15:$D$36,B6,$G$15:$G$36)","v":0},{"$f":"SUMIF($D$15:$D$36,B6,$H$15:$H$36)","v":0},{"$f":"SUMIF($D$15:$D$36,B6,$I$15:$I$36)","v":0},{"$f":"SUMIF($D$15:$D$36,B6,$J$15:$J$36)","v":0},{"$f":"SUMIF($D$15:$D$36,B6,$K$15:$K$36)","v":0},null,null,null,null,null,null,null,null,null,null,null,1,null,null,null,null,null,null,null,null,null,null,null,{"$f":"IF(D6=\"Bank Current Account\",\"BA\",IF(D6=\"Bank Savings Account\",\"BSA\",IF(D6=\"Deposit Account\",\"BDA\",IF(D6=\"Cash Balance\",\"CB\",\"\"))))","v":""},null,null,null,{"$f":"SUMPRODUCT(--($D$15:$D$36=B6),--($C$15:$C$36=\"Unrestricted\"),$J$15:$J$36)","v":0},{"$f":"SUMPRODUCT(--($D$15:$D$36=B6),--($C$15:$C$36=\"Unrestricted\"),$E$15:$E$36)","v":0},{"$f":"SUMPRODUCT(--($D$15:$D$36=B6),--($C$15:$C$36=\"Designated\"),$J$15:$J$36)","v":0},{"$f":"SUMPRODUCT(--($D$15:$D$36=B6),--($C$15:$C$36=\"Designated\"),$E$15:$E$36)","v":0},{"$f":"SUMPRODUCT(--($D$15:$D$36=B6),--($C$15:$C$36=\"Restricted\"),$J$15:$J$36)","v":0},{"$f":"SUMPRODUCT(--($D$15:$D$36=B6),--($C$15:$C$36=\"Restricted\"),$E$15:$E$36)","v":0},{"$f":"SUMPRODUCT(--($D$15:$D$36=B6),--($C$15:$C$36=\"Endowment\"),$J$15:$J$36)","v":0},{"$f":"SUMPRODUCT(--($D$15:$D$36=B6),--($C$15:$C$36=\"Endowment\"),$E$15:$E$36)","v":0},{"$f":"SUM(AM6+AO6+AQ6+AS6)","v":0},{"$f":"SUM(AN6+AP6+AR6+AT6)","v":0},null,{"$f":"IF(AI6=$AX$5,1,0)","v":0},{"$f":"IF(AI6=$AY$5,1,0)","v":0},{"$f":"IF(AI6=$AZ$5,1,0)","v":0}]
[null,null,null,null,0,0,0,0,0,0,0,null,null,null,null,null,null,null,null,null,null,null,1,null,null,null,null,null,null,null,null,null,null,null,{"$f":"IF(D7=\"Bank Current Account\",\"BA\",IF(D7=\"Bank Savings Account\",\"BSA\",IF(D7=\"Deposit Account\",\"BDA\",IF(D7=\"Cash Balance\",\"CB\",\"\"))))","v":""},null,null,null,{"$f":"SUMPRODUCT(--($D$15:$D$36=B7),--($C$15:$C$36=\"Unrestricted\"),$J$15:$J$36)","v":0},{"$f":"SUMPRODUCT(--($D$15:$D$36=B7),--($C$15:$C$36=\"Unrestricted\"),$E$15:$E$36)","v":0},{"$f":"SUMPRODUCT(--($D$15:$D$36=B7),--($C$15:$C$36=\"Designated\"),$J$15:$J$36)","v":0},{"$f":"SUMPRODUCT(--($D$15:$D$36=B7),--($C$15:$C$36=\"Designated\"),$E$15:$E$36)","v":0},{"$f":"SUMPRODUCT(--($D$15:$D$36=B7),--($C$15:$C$36=\"Restricted\"),$J$15:$J$36)","v":0},{"$f":"SUMPRODUCT(--($D$15:$D$36=B7),--($C$15:$C$36=\"Restricted\"),$E$15:$E$36)","v":0},{"$f":"SUMPRODUCT(--($D$15:$D$36=B7),--($C$15:$C$36=\"Endowment\"),$J$15:$J$36)","v":0},{"$f":"SUMPRODUCT(--($D$15:$D$36=B7),--($C$15:$C$36=\"Endowment\"),$E$15:$E$36)","v":0},{"$f":"SUM(AM7+AO7+AQ7+AS7)","v":0},{"$f":"SUM(AN7+AP7+AR7+AT7)","v":0},null,0,{"$f":"IF(AI7=$AY$5,1,0)","v":0},{"$f":"IF(AI7=$AZ$5,1,0)","v":0}]
[null,null,null,null,0,0,0,0,0,0,0,null,null,null,null,null,null,null,null,null,null,null,1,null,null,null,null,null,null,null,null,null,null,null,"",null,null,null,0,0,0,0,0,0,0,0,0,0,null,0,0,0]
[null,null,null,null,0,0,0,0,0,0,0,null,null,null,null,null,null,null,null,null,null,null,1,null,null,null,null,null,null,null,null,null,null,null,"",null,null,null,0,0,0,0,0,0,0,0,0,0,null,0,0,0]
[null,null,null,null,0,0,0,0,0,0,0,null,null,null,null,null,null,null,null,null,null,null,1,null,null,null,null,null,null,null,null,null,null,null,"",null,null,null,0,0,0,0,0,0,0,0,0,0,null,0,0,0]
[null,null,null,null,0,0,0,0,0,0,0,null,null,null,null,null,null,null,null,null,null,null,1,null,null,null,null,null,null,null,null,null,null,null,"",null,null,null,0,0,0,0,0,0,0,0,0,0,null,0,0,0]
[null,null,null,null,0,0,0,0,0,0,0,null,null,null,null,null,null,null,null,null,null,null,1,null,null,null,null,null,null,null,null,null,null,null,"",null,null,null,0,0,0,0,0,0,0,0,0,0,null,{"$f":"IF(AI12=$AX$5,1,0)","v":0},0,0]
[null,null,null,null,null,null,null,null,null,null,null,null,null,null,null,null,null,null,null,null,null,null,1,null,null,null,null,null,null,null,null,null,null,null,null,null,null,null,null,null,null,null,null,null,null,null,null,null,null,{"$f":"SUM(AX6:AX12)","v":0},{"$f":"SUM(AY6:AY12)","v":0},0]
[null,"Fund Name","Type of Fund","Bank Account Name",{"$f":"CONCATENATE(AW15,'Name and Parish'!D15)","v":"Opening Balance at 1st January 2023"},"Income","Transfers In","Transfers Out","Expenditure","Closing Balance",{"$f":"CONCATENATE(AW15,'Name and Parish'!D15-1)","v":"Opening Balance at 1st January 2022"},null,null,null,null,null,null,null,null,null,null,null,1,null,null,null,null,null,"Opening","Closing",null,null,null,null,null,null,null,null,null,null,null,null,null,null,null,null,null,null,"Net Transfer between funds in",{"$f":"SUM('Name and Parish'!D15-1)","v":2022}]
[null,"General Fund","Unrestricted",null,0,{"$f":"WorkingR!D93","v":0},{"$f":"IF(ISNA(VLOOKUP(B15,Transfers!AI:AK,2,FALSE)),\"0.00\",VLOOKUP(B15,Transfers!AI:AK,2,FALSE))","v":0},{"$f":"IF(ISNA(VLOOKUP(B15,Transfers!AI:AL,3,FALSE)),\"0.00\",VLOOKUP(B15,Transfers!AI:AL,3,FALSE))","v":0},{"$f":"WorkingP!D85","v":0},{"$f":"SUM(E15+F15+G15-H15-I15)","v":0},0,"Y",null,null,null,null,null,null,null,null,null,null,1,null,null,null,null,"Unrestricted",{"$f":"SUMPRODUCT(($C$15:$C$36=AB15)*($E$15:$E$36))","v":0},{"$f":"SUMPRODUCT(($C$15:$C$36=AB15)*($J$15:$J$36))","v":0},null,null,{"$f":"SUM(F15+G15-H15+I15)","v":0},{"$f":"IF(AG15=0,\"N\",\"Y\")","v":"N"},null,null,null,null,null,null,null,null,{"$f":"C15","v":"Unrestricted"},{"$f":"E15","v":0},null,null,null,null,"Opening Balance at 1st January ",null,null,{"$f":"IF(BA15=\"\",0,1)","v":1},{"$f":"B15","v":"General Fund"},null,{"$f":"Noblanks(BA15:$BA$43)","v":"General Fund"},{"$f":"BC15","v":"General Fund"},{"$f":"BD15","v":"General Fund"}]
[null,"Petty Cash","Unrestricted",null,0,{"$f":"WorkingR!E93","v":0},{"$f":"IF(ISNA(VLOOKUP(B16,Transfers!AI:AK,2,FALSE)),\"0.00\",VLOOKUP(B16,Transfers!AI:AK,2,FALSE))","v":0},{"$f":"IF(ISNA(VLOOKUP(B16,Transfers!AI:AL,3,FALSE)),\"0.00\",VLOOKUP(B16,Transfers!AI:AL,3,FALSE))","v":0},{"$f":"WorkingP!E85","v":0},0,0,"Y",null,null,null,null,null,null,null,null,null,null,1,null,null,null,null,"Designated",{"$f":"SUMPRODUCT(($C$15:$C$36=AB16)*($E$15:$E$36))","v":0},{"$f":"SUMPRODUCT(($C$15:$C$36=AB16)*($J$15:$J$36))","v":0},null,null,{"$f":"SUM(F16+G16-H16+I16)","v":0},{"$f":"IF(AG16=0,\"N\",\"Y\")","v":"N"},null,null,null,null,null,null,null,null,{"$f":"C16","v":"Unrestricted"},{"$f":"E16","v":0},null,null,null,null,null,null,null,1,{"$f":"B16","v":"Petty Cash"},null,{"$f":"Noblanks(BA16:$BA$43)","v":"Petty Cash"},{"$f":"BC16","v":"Petty Cash"},"Petty Cash"]
[null,"Fund A","Unrestricted",null,0,{"$f":"WorkingR!F93","v":0},{"$f":"IF(ISNA(VLOOKUP(B17,Transfers!AI:AK,2,FALSE)),\"0.00\",VLOOKUP(B17,Transfers!AI:AK,2,FALSE))","v":0},{"$f":"IF(ISNA(VLOOKUP(B17,Transfers!AI:AL,3,FALSE)),\"0.00\",VLOOKUP(B17,Transfers!AI:AL,3,FALSE))","v":0},{"$f":"WorkingP!F85","v":0},0,0,"Y",null,null,null,null,null,null,null,null,null,null,1,null,null,null,null,"Endowment",{"$f":"SUMPRODUCT(($C$15:$C$36=AB17)*($E$15:$E$36))","v":0},{"$f":"SUMPRODUCT(($C$15:$C$36=AB17)*($J$15:$J$36))","v":0},null,{"$f":"SUM(G17-H17)","v":0},0,"N",null,null,null,null,null,null,null,null,"Unrestricted",0,null,null,null,null,null,null,null,0,{"$f":"IF(B17=\"Fund A\",\"\",B17)","v":""},null,{"$f":"Noblanks(BA17:$BA$43)","v":""},"",""]
[null,"Fund B","Unrestricted",null,0,{"$f":"WorkingR!G93","v":0},{"$f":"IF(ISNA(VLOOKUP(B18,Transfers!AI:AK,2,FALSE)),\"0.00\",VLOOKUP(B18,Transfers!AI:AK,2,FALSE))","v":0},{"$f":"IF(ISNA(VLOOKUP(B18,Transfers!AI:AL,3,FALSE)),\"0.00\",VLOOKUP(B18,Transfers!AI:AL,3,FALSE))","v":0},{"$f":"WorkingP!G85","v":0},0,0,"Y",null,null,null,null,null,null,null,null,null,null,1,null,null,null,null,"Restricted",{"$f":"SUMPRODUCT(($C$15:$C$36=AB18)*($E$15:$E$36))","v":0},{"$f":"SUMPRODUCT(($C$15:$C$36=AB18)*($J$15:$J$36))","v":0},null,0,0,"N",null,null,null,null,null,null,null,null,"Unrestricted",0,null,null,null,null,null,null,null,0,{"$f":"IF(B18=\"Fund B\",\"\",B18)","v":""},null,{"$f":"Noblanks(BA18:$BA$43)","v":""},""]
[null,"Fund C","Unrestricted",null,0,{"$f":"WorkingR!H93","v":0},{"$f":"IF(ISNA(VLOOKUP(B19,Transfers!AI:AK,2,FALSE)),\"0.00\",VLOOKUP(B19,Transfers!AI:AK,2,FALSE))","v":0},{"$f":"IF(ISNA(VLOOKUP(B19,Transfers!AI:AL,3,FALSE)),\"0.00\",VLOOKUP(B19,Transfers!AI:AL,3,FALSE))","v":0},{"$f":"WorkingP!H85","v":0},0,0,"Y",null,null,null,null,null,null,null,null,null,null,1,null,null,null,null,null,null,null,null,0,0,"N",null,null,null,null,null,null,null,null,"Unrestricted",0,null,null,null,null,null,null,null,0,{"$f":"IF(B19=\"Fund C\",\"\",B19)","v":""},null,{"$f":"Noblanks(BA19:$BA$43)","v":""},""]
[null,"Fund D","Unrestricted",null,0,{"$f":"WorkingR!I93","v":0},{"$f":"IF(ISNA(VLOOKUP(B20,Transfers!AI:AK,2,FALSE)),\"0.00\",VLOOKUP(B20,Transfers!AI:AK,2,FALSE))","v":0},{"$f":"IF(ISNA(VLOOKUP(B20,Transfers!AI:AL,3,FALSE)),\"0.00\",VLOOKUP(B20,Transfers!AI:AL,3,FALSE))","v":0},{"$f":"WorkingP!I85","v":0},0,0,"Y",null,null,null,null,null,null,null,null,null,null,1,null,null,null,null,"Investment",null,null,null,0,0,"N",null,null,null,null,null,null,null,null,"Unrestricted",0,null,null,null,null,null,null,null,0,{"$f":"IF(B20=\"Fund D\",\"\",B20)","v":""},null,{"$f":"Noblanks(BA20:$BA$43)","v":""},""]
[null,"Fund E","Unrestricted",null,0,{"$f":"WorkingR!J93","v":0},{"$f":"IF(ISNA(VLOOKUP(B21,Transfers!AI:AK,2,FALSE)),\"0.00\",VLOOKUP(B21,Transfers!AI:AK,2,FALSE))","v":0},{"$f":"IF(ISNA(VLOOKUP(B21,Transfers!AI:AL,3,FALSE)),\"0.00\",VLOOKUP(B21,Transfers!AI:AL,3,FALSE))","v":0},{"$f":"WorkingP!J85","v":0},0,0,"Y",null,null,null,null,null,null,null,null,null,null,1,null,null,null,null,"Unrestricted",{"$f":"SUMPRODUCT(($C$39:$C$43=AB21)*($D$39:$D$43))","v":0},{"$f":"SUMPRODUCT(($C$39:$C$43=AB21)*($J$39:$J$43))","v":0},null,0,0,"N",null,null,null,null,null,null,null,null,"Unrestricted",0,null,null,null,null,null,null,null,0,{"$f":"IF(B21=\"Fund E\",\"\",B21)","v":""},null,{"$f":"Noblanks(BA21:$BA$43)","v":""},""]
[null,"Fund F","Unrestricted",null,0,{"$f":"WorkingR!K93","v":0},{"$f":"IF(ISNA(VLOOKUP(B22,Transfers!AI:AK,2,FALSE)),\"0.00\",VLOOKUP(B22,Transfers!AI:AK,2,FALSE))","v":0},{"$f":"IF(ISNA(VLOOKUP(B22,Transfers!AI:AL,3,FALSE)),\"0.00\",VLOOKUP(B22,Transfers!AI:AL,3,FALSE))","v":0},{"$f":"WorkingP!K85","v":0},0,0,"Y",null,null,null,null,null,null,null,null,null,null,1,null,null,null,null,"Designated",{"$f":"SUMPRODUCT(($C$39:$C$43=AB22)*($D$39:$D$43))","v":0},{"$f":"SUMPRODUCT(($C$39:$C$43=AB22)*($J$39:$J$43))","v":0},null,0,0,"N",null,null,null,null,null,null,null,null,"Unrestricted",0,null,null,null,null,null,null,null,0,{"$f":"IF(B22=\"Fund F\",\"\",B22)","v":""},null,{"$f":"Noblanks(BA22:$BA$43)","v":""},""]
[null,"Fund G","Unrestricted",null,0,{"$f":"WorkingR!L93","v":0},{"$f":"IF(ISNA(VLOOKUP(B23,Transfers!AI:AK,2,FALSE)),\"0.00\",VLOOKUP(B23,Transfers!AI:AK,2,FALSE))","v":0},{"$f":"IF(ISNA(VLOOKUP(B23,Transfers!AI:AL,3,FALSE)),\"0.00\",VLOOKUP(B23,Transfers!AI:AL,3,FALSE))","v":0},{"$f":"WorkingP!L85","v":0},0,0,"Y",null,null,null,null,null,null,null,null,null,null,1,null,null,null,null,"Endowment (Unrestricted)",{"$f":"SUMPRODUCT(($C$39:$C$43=AB23)*($D$39:$D$43))","v":0},0,null,0,0,"N",null,null,null,null,null,null,null,null,"Unrestricted",0,null,null,null,null,null,null,null,0,{"$f":"IF(B23=\"Fund G\",\"\",B23)","v":""},null,{"$f":"Noblanks(BA23:$BA$43)","v":""},""]
[null,"Fund H","Unrestricted",null,0,{"$f":"WorkingR!M93","v":0},{"$f":"IF(ISNA(VLOOKUP(B24,Transfers!AI:AK,2,FALSE)),\"0.00\",VLOOKUP(B24,Transfers!AI:AK,2,FALSE))","v":0},{"$f":"IF(ISNA(VLOOKUP(B24,Transfers!AI:AL,3,FALSE)),\"0.00\",VLOOKUP(B24,Transfers!AI:AL,3,FALSE))","v":0},{"$f":"WorkingP!M85","v":0},0,0,"Y",null,null,null,null,null,null,null,null,null,null,1,null,null,null,null,"Restricted",{"$f":"SUMPRODUCT(($C$39:$C$43=AB24)*($D$39:$D$43))","v":0},0,null,0,0,"N",null,null,null,null,null,null,null,null,"Unrestricted",0,null,null,null,null,null,null,null,0,{"$f":"IF(B24=\"Fund H\",\"\",B24)","v":""},null,{"$f":"Noblanks(BA24:$BA$43)","v":""},""]
[null,"Fund I","Unrestricted",null,0,{"$f":"WorkingR!N93","v":0},{"$f":"IF(ISNA(VLOOKUP(B25,Transfers!AI:AK,2,FALSE)),\"0.00\",VLOOKUP(B25,Transfers!AI:AK,2,FALSE))","v":0},{"$f":"IF(ISNA(VLOOKUP(B25,Transfers!AI:AL,3,FALSE)),\"0.00\",VLOOKUP(B25,Transfers!AI:AL,3,FALSE))","v":0},{"$f":"WorkingP!N85","v":0},0,0,"Y",null,null,null,null,null,null,null,null,null,null,1,null,null,null,null,"Endowment (Restricted)",{"$f":"SUMPRODUCT(($C$39:$C$43=AB25)*($D$39:$D$43))","v":0},0,null,0,0,"N",null,null,null,null,null,null,null,null,"Unrestricted",0,null,null,null,null,null,null,null,0,{"$f":"IF(B25=\"Fund I\",\"\",B25)","v":""},null,{"$f":"Noblanks(BA25:$BA$43)","v":""},""]
[null,"Fund J","Unrestricted",null,0,{"$f":"WorkingR!O93","v":0},{"$f":"IF(ISNA(VLOOKUP(B26,Transfers!AI:AK,2,FALSE)),\"0.00\",VLOOKUP(B26,Transfers!AI:AK,2,FALSE))","v":0},{"$f":"IF(ISNA(VLOOKUP(B26,Transfers!AI:AL,3,FALSE)),\"0.00\",VLOOKUP(B26,Transfers!AI:AL,3,FALSE))","v":0},{"$f":"WorkingP!O85","v":0},0,0,"Y",null,null,null,null,null,null,null,null,null,null,1,null,null,null,null,null,null,null,null,0,0,"N",null,null,null,null,null,null,null,null,"Unrestricted",0,null,null,null,null,null,null,null,0,{"$f":"IF(B26=\"Fund J\",\"\",B26)","v":""},null,{"$f":"Noblanks(BA26:$BA$43)","v":""},""]
[null,"Fund K","Unrestricted",null,0,{"$f":"WorkingR!P93","v":0},{"$f":"IF(ISNA(VLOOKUP(B27,Transfers!AI:AK,2,FALSE)),\"0.00\",VLOOKUP(B27,Transfers!AI:AK,2,FALSE))","v":0},{"$f":"IF(ISNA(VLOOKUP(B27,Transfers!AI:AL,3,FALSE)),\"0.00\",VLOOKUP(B27,Transfers!AI:AL,3,FALSE))","v":0},{"$f":"WorkingP!P85","v":0},0,0,"Y",null,null,null,null,null,null,null,null,null,null,1,null,null,null,null,null,null,null,null,0,0,"N",null,null,null,null,null,null,null,null,"Unrestricted",0,null,null,null,null,null,null,null,0,{"$f":"IF(B27=\"Fund K\",\"\",B27)","v":""},null,{"$f":"Noblanks(BA27:$BA$43)","v":""},""]
[null,"Fund L","Unrestricted",null,0,{"$f":"WorkingR!Q93","v":0},{"$f":"IF(ISNA(VLOOKUP(B28,Transfers!AI:AK,2,FALSE)),\"0.00\",VLOOKUP(B28,Transfers!AI:AK,2,FALSE))","v":0},{"$f":"IF(ISNA(VLOOKUP(B28,Transfers!AI:AL,3,FALSE)),\"0.00\",VLOOKUP(B28,Transfers!AI:AL,3,FALSE))","v":0},{"$f":"WorkingP!Q85","v":0},0,0,"Y",null,null,null,null,null,null,null,null,null,null,1,null,null,null,null,null,null,null,null,0,0,"N",null,null,null,null,null,null,null,null,"Unrestricted",0,null,null,null,null,null,null,null,0,{"$f":"IF(B28=\"Fund L\",\"\",B28)","v":""},null,{"$f":"Noblanks(BA28:$BA$43)","v":""},""]
[null,"Fund M","Unrestricted",null,0,{"$f":"WorkingR!R93","v":0},{"$f":"IF(ISNA(VLOOKUP(B29,Transfers!AI:AK,2,FALSE)),\"0.00\",VLOOKUP(B29,Transfers!AI:AK,2,FALSE))","v":0},{"$f":"IF(ISNA(VLOOKUP(B29,Transfers!AI:AL,3,FALSE)),\"0.00\",VLOOKUP(B29,Transfers!AI:AL,3,FALSE))","v":0},{"$f":"WorkingP!R85","v":0},0,0,"Y",null,null,null,null,null,null,null,null,null,null,1,null,null,null,null,null,null,null,null,0,0,"N",null,null,null,null,null,null,null,null,"Unrestricted",0,null,null,null,null,null,null,null,0,{"$f":"IF(B29=\"Fund M\",\"\",B29)","v":""},null,{"$f":"Noblanks(BA29:$BA$43)","v":""},""]
[null,"Fund N","Unrestricted",null,0,{"$f":"WorkingR!S93","v":0},{"$f":"IF(ISNA(VLOOKUP(B30,Transfers!AI:AK,2,FALSE)),\"0.00\",VLOOKUP(B30,Transfers!AI:AK,2,FALSE))","v":0},{"$f":"IF(ISNA(VLOOKUP(B30,Transfers!AI:AL,3,FALSE)),\"0.00\",VLOOKUP(B30,Transfers!AI:AL,3,FALSE))","v":0},{"$f":"WorkingP!S85","v":0},0,0,"Y",null,null,null,null,null,null,null,null,null,null,1,null,null,null,null,null,null,null,null,0,0,"N",null,null,null,null,null,null,null,null,"Unrestricted",0,null,null,null,null,null,null,null,0,{"$f":"IF(B30=\"Fund N\",\"\",B30)","v":""},null,{"$f":"Noblanks(BA30:$BA$43)","v":""},""]
[null,"Fund O","Unrestricted",null,0,{"$f":"WorkingR!T93","v":0},{"$f":"IF(ISNA(VLOOKUP(B31,Transfers!AI:AK,2,FALSE)),\"0.00\",VLOOKUP(B31,Transfers!AI:AK,2,FALSE))","v":0},{"$f":"IF(ISNA(VLOOKUP(B31,Transfers!AI:AL,3,FALSE)),\"0.00\",VLOOKUP(B31,Transfers!AI:AL,3,FALSE))","v":0},{"$f":"WorkingP!T85","v":0},0,0,"Y",null,null,null,null,null,null,null,null,null,null,1,null,null,null,null,null,null,null,null,0,0,"N",null,null,null,null,null,null,null,null,"Unrestricted",0,null,null,null,null,null,null,null,0,{"$f":"IF(B31=\"Fund O\",\"\",B31)","v":""},null,{"$f":"Noblanks(BA31:$BA$43)","v":""},""]
[null,"Fund P","Unrestricted",null,0,{"$f":"WorkingR!U93","v":0},{"$f":"IF(ISNA(VLOOKUP(B32,Transfers!AI:AK,2,FALSE)),\"0.00\",VLOOKUP(B32,Transfers!AI:AK,2,FALSE))","v":0},{"$f":"IF(ISNA(VLOOKUP(B32,Transfers!AI:AL,3,FALSE)),\"0.00\",VLOOKUP(B32,Transfers!AI:AL,3,FALSE))","v":0},{"$f":"WorkingP!U85","v":0},0,0,"Y",null,null,null,null,null,null,null,null,null,null,1,null,null,null,null,null,null,null,null,0,0,"N",null,null,null,null,null,null,null,null,"Unrestricted",0,null,null,null,null,null,null,null,0,{"$f":"IF(B32=\"Fund P\",\"\",B32)","v":""},null,{"$f":"Noblanks(BA32:$BA$43)","v":""},""]
[null,"Fund Q","Unrestricted",null,0,{"$f":"WorkingR!V93","v":0},{"$f":"IF(ISNA(VLOOKUP(B33,Transfers!AI:AK,2,FALSE)),\"0.00\",VLOOKUP(B33,Transfers!AI:AK,2,FALSE))","v":0},{"$f":"IF(ISNA(VLOOKUP(B33,Transfers!AI:AL,3,FALSE)),\"0.00\",VLOOKUP(B33,Transfers!AI:AL,3,FALSE))","v":0},{"$f":"WorkingP!V85","v":0},0,0,"Y",null,null,null,null,null,null,null,null,null,null,1,null,null,null,null,null,null,null,null,0,0,"N",null,null,null,null,null,null,null,null,"Unrestricted",0,null,null,null,null,null,null,null,0,{"$f":"IF(B33=\"Fund Q\",\"\",B33)","v":""},null,{"$f":"Noblanks(BA33:$BA$43)","v":""},""]
[null,"Fund R","Unrestricted",null,0,{"$f":"WorkingR!W93","v":0},{"$f":"IF(ISNA(VLOOKUP(B34,Transfers!AI:AK,2,FALSE)),\"0.00\",VLOOKUP(B34,Transfers!AI:AK,2,FALSE))","v":0},{"$f":"IF(ISNA(VLOOKUP(B34,Transfers!AI:AL,3,FALSE)),\"0.00\",VLOOKUP(B34,Transfers!AI:AL,3,FALSE))","v":0},{"$f":"WorkingP!W85","v":0},0,0,"Y",null,null,null,null,null,null,null,null,null,null,1,null,null,null,null,null,null,null,null,0,0,"N",null,null,null,null,null,null,null,null,"Unrestricted",0,null,null,null,null,null,null,null,0,{"$f":"IF(B34=\"Fund R\",\"\",B34)","v":""},null,{"$f":"Noblanks(BA34:$BA$43)","v":""},""]
[null,"Fund S","Unrestricted",null,0,{"$f":"WorkingR!X93","v":0},{"$f":"IF(ISNA(VLOOKUP(B35,Transfers!AI:AK,2,FALSE)),\"0.00\",VLOOKUP(B35,Transfers!AI:AK,2,FALSE))","v":0},{"$f":"IF(ISNA(VLOOKUP(B35,Transfers!AI:AL,3,FALSE)),\"0.00\",VLOOKUP(B35,Transfers!AI:AL,3,FALSE))","v":0},{"$f":"WorkingP!X85","v":0},0,0,"Y",null,null,null,null,null,null,null,null,null,null,1,null,null,null,null,null,null,null,null,0,0,"N",null,null,null,null,null,null,null,null,"Unrestricted",0,null,null,null,null,null,null,null,0,{"$f":"IF(B35=\"Fund S\",\"\",B35)","v":""},null,{"$f":"Noblanks(BA35:$BA$43)","v":""},""]
[null,"Fund T","Unrestricted",null,0,{"$f":"WorkingR!Y93","v":0},{"$f":"IF(ISNA(VLOOKUP(B36,Transfers!AI:AK,2,FALSE)),\"0.00\",VLOOKUP(B36,Transfers!AI:AK,2,FALSE))","v":0},{"$f":"IF(ISNA(VLOOKUP(B36,Transfers!AI:AL,3,FALSE)),\"0.00\",VLOOKUP(B36,Transfers!AI:AL,3,FALSE))","v":0},{"$f":"WorkingP!Y85","v":0},{"$f":"SUM(E36+F36+G36-H36-I36)","v":0},0,"Y",null,null,null,null,null,null,null,null,null,null,1,null,null,null,null,null,null,null,null,0,0,"N",null,null,null,null,null,null,null,null,"Unrestricted",0,null,null,null,null,null,null,null,0,{"$f":"IF(B36=\"Fund T\",\"\",B36)","v":""},null,{"$f":"Noblanks(BA36:$BA$43)","v":""},""]
[null,null,null,null,null,null,null,null,null,null,null,null,null,null,null,null,null,null,null,null,null,null,1,null,null,null,null,null,null,null,null,null,null,null,null,null,null,null,null,null,null,null,null,null,null,null,null,null,null,null,null,null,null,null,{"$f":"Noblanks(BA37:$BA$43)","v":""},""]
[null,"Investment Accounts","Type of Fund",{"$f":"CONCATENATE(AW15,'Name and Parish'!D15)","v":"Opening Balance at 1st January 2023"},"Income","Expenditure","Transfers In","Transfers Out","Change in Year","Closing Balance",{"$f":"CONCATENATE(AW15,'Name and Parish'!D15-1)","v":"Opening Balance at 1st January 2022"},null,null,null,null,null,null,null,null,null,null,null,1,null,null,null,null,null,null,"Opening","Closing",null,null,null,null,null,null,null,null,null,null,null,null,null,null,null,null,null,null,null,null,null,null,null,{"$f":"Noblanks(BA38:$BA$43)","v":""},""]
[null,"Investment A","Unrestricted",0,{"$f":"WorkingR!Z93","v":0},{"$f":"WorkingP!Z85","v":0},{"$f":"Transfers!AJ28","v":0},{"$f":"Transfers!AK28","v":0},null,{"$f":"SUM(D39+E39-F39+G39-H39+I39)","v":0},0,null,null,null,null,null,null,null,null,null,null,null,1,null,null,null,null,{"$f":"LEFT(C39,2)","v":"Un"},"Unrestricted",{"$f":"SUMPRODUCT(($C$39:$C$43=AC39)*($D$39:$D$43))","v":0},{"$f":"SUMPRODUCT(($C$39:$C$43=AC39)*($J$39:$J$43))","v":0},null,null,null,null,null,null,null,null,null,null,null,"Unrestricted",{"$f":"D39","v":0},null,"Unrestricted",{"$f":"SUMPRODUCT(($C$39:$C$43=AT39)*($E$39:$E$43))","v":0},null,null,null,null,{"$f":"IF(BA39=\"\",0,1)","v":0},{"$f":"IF(B39=\"Investment A\",\"\",B39)","v":""},null,{"$f":"Noblanks(BA39:$BA$43)","v":""},""]
[null,"Investment B","Unrestricted",0,{"$f":"WorkingR!AA93","v":0},{"$f":"WorkingP!AA85","v":0},{"$f":"Transfers!AJ29","v":0},{"$f":"Transfers!AK29","v":0},null,{"$f":"SUM(D40+E40-F40+G40-H40+I40)","v":0},0,null,null,null,null,null,null,null,null,null,null,null,1,null,null,null,null,{"$f":"LEFT(C40,2)","v":"Un"},"Designated",{"$f":"SUMPRODUCT(($C$39:$C$43=AC40)*($D$39:$D$43))","v":0},{"$f":"SUMPRODUCT(($C$39:$C$43=AC40)*($J$39:$J$43))","v":0},null,null,null,null,null,null,null,null,null,null,null,"Unrestricted",{"$f":"D40","v":0},null,"Restricted",{"$f":"SUMPRODUCT(($C$39:$C$43=AT40)*($E$39:$E$43))","v":0},null,null,null,null,{"$f":"IF(BA40=\"\",0,1)","v":0},{"$f":"IF(B40=\"Investment B\",\"\",B40)","v":""},null,{"$f":"Noblanks(BA40:$BA$43)","v":""},""]
[null,"Investment C","Unrestricted",0,{"$f":"WorkingR!AB93","v":0},{"$f":"WorkingP!AB85","v":0},{"$f":"Transfers!AJ30","v":0},{"$f":"Transfers!AK30","v":0},null,{"$f":"SUM(D41+E41-F41+G41-H41+I41)","v":0},0,null,null,null,null,null,null,null,null,null,null,null,1,null,null,null,null,{"$f":"LEFT(C41,2)","v":"Un"},"Endowment",{"$f":"SUMPRODUCT(($C$39:$C$43=AC41)*($D$39:$D$43))","v":0},{"$f":"SUMPRODUCT(($C$39:$C$43=AC41)*($J$39:$J$43))","v":0},null,null,null,null,null,null,null,null,null,null,null,"Unrestricted",{"$f":"D41","v":0},null,"Designated",{"$f":"SUMPRODUCT(($C$39:$C$43=AT41)*($E$39:$E$43))","v":0},null,null,null,null,{"$f":"IF(BA41=\"\",0,1)","v":0},{"$f":"IF(B41=\"Investment C\",\"\",B41)","v":""},null,{"$f":"Noblanks(BA41:$BA$43)","v":""},""]
[null,"Investment D","Unrestricted",0,{"$f":"WorkingR!AC93","v":0},{"$f":"WorkingP!AC85","v":0},{"$f":"Transfers!AJ31","v":0},{"$f":"Transfers!AK31","v":0},null,{"$f":"SUM(D42+E42-F42+G42-H42+I42)","v":0},0,null,null,null,null,null,null,null,null,null,null,null,1,null,null,null,null,{"$f":"LEFT(C42,2)","v":"Un"},"Restricted",{"$f":"SUMPRODUCT(($C$39:$C$43=AC42)*($D$39:$D$43))","v":0},{"$f":"SUMPRODUCT(($C$39:$C$43=AC42)*($J$39:$J$43))","v":0},null,null,null,null,null,null,null,null,null,null,null,"Unrestricted",{"$f":"D42","v":0},null,"Endowment (Restricted)",{"$f":"SUMPRODUCT(($C$39:$C$43=AT42)*($E$39:$E$43))","v":0},null,null,null,null,{"$f":"IF(BA42=\"\",0,1)","v":0},{"$f":"IF(B42=\"Investment D\",\"\",B42)","v":""},null,{"$f":"Noblanks(BA42:$BA$43)","v":""},""]
[null,"Investment E","Unrestricted",0,{"$f":"WorkingR!AD93","v":0},{"$f":"WorkingP!AD85","v":0},{"$f":"Transfers!AJ32","v":0},{"$f":"Transfers!AK32","v":0},null,{"$f":"SUM(D43+E43-F43+G43-H43+I43)","v":0},0,null,null,null,null,null,null,null,null,null,null,null,1,null,null,null,null,{"$f":"LEFT(C43,2)","v":"Un"},null,null,null,null,null,null,null,null,null,null,null,null,null,null,"Unrestricted",{"$f":"D43","v":0},null,"Endowment (Unrestricted)",null,null,null,null,null,{"$f":"IF(BA43=\"\",0,1)","v":0},{"$f":"IF(B43=\"Investment E\",\"\",B43)","v":""},null,{"$f":"Noblanks(BA43:$BA$43)","v":""},""]
[null,null,null,null,null,null,null,null,null,null,{"$f":"SUM(K39:K43)","v":0},{"$f":"LEFT(C44,2)","v":""},null,null,null,null,null,null,null,null,null,null,1,null,null,null,null,null,null,null,null,null,null,null,null,null,null,null,null,null,null,null,null,null,null,null,null,null,null,null,null,null,null,null,{"$f":"Noblanks(BA$43:$BA44)","v":""}]
[null,null,null,null,null,null,null,null,null,null,null,null,null,null,null,null,null,null,null,null,null,null,1,null,null,null,null,null,null,null,null,null,null,null,null,null,null,null,null,null,null,null,null,null,null,null,null,null,null,null,null,{"$f":"SUM(AZ15:AZ43)","v":2},null,null,{"$f":"Noblanks(BA$43:$BA45)","v":""}]
[null,"Account","Further details on this account, such details of restictions (to appear in Financial Statements)",null,null,null,null,null,null,null,null,null,null,null,null,null,null,null,null,null,null,null,{"$f":"IF(X46=0,0,1)","v":0},{"$f":"SUM(W47:W71)","v":0}]
[null,{"$f":"B17","v":"Fund A"},null,null,null,null,null,null,null,null,null,null,null,null,null,null,null,null,null,null,null,null,{"$f":"IF(AC76=\"UN\",0,1)","v":0}]
[null,"Fund B",null,null,null,null,null,null,null,null,null,null,null,null,null,null,null,null,null,null,null,null,0]
[null,"Fund C",null,null,null,null,null,null,null,null,null,null,null,null,null,null,null,null,null,null,null,null,0]
[null,"Fund D",null,null,null,null,null,null,null,null,null,null,null,null,null,null,null,null,null,null,null,null,0]
[null,"Fund E",null,null,null,null,null,null,null,null,null,null,null,null,null,null,null,null,null,null,null,null,0]
[null,"Fund F",null,null,null,null,null,null,null,null,null,null,null,null,null,null,null,null,null,null,null,null,0]
[null,"Fund G",null,null,null,null,null,null,null,null,null,null,null,null,null,null,null,null,null,null,null,null,0]
[null,"Fund H",null,null,null,null,null,null,null,null,null,null,null,null,null,null,null,null,null,null,null,null,0]
[null,"Fund I",null,null,null,null,null,null,null,null,null,null,null,null,null,null,null,null,null,null,null,null,0]
[null,"Fund J",null,null,null,null,null,null,null,null,null,null,null,null,null,null,null,null,null,null,null,null,0]
[null,"Fund K",null,null,null,null,null,null,null,null,null,null,null,null,null,null,null,null,null,null,null,null,0]
[null,"Fund L",null,null,null,null,null,null,null,null,null,null,null,null,null,null,null,null,null,null,null,null,0]
[null,"Fund M",null,null,null,null,null,null,null,null,null,null,null,null,null,null,null,null,null,null,null,null,0]
[null,"Fund N",null,null,null,null,null,null,null,null,null,null,null,null,null,null,null,null,null,null,null,null,0]
[null,"Fund O",null,null,null,null,null,null,null,null,null,null,null,null,null,null,null,null,null,null,null,null,0]
[null,"Fund P",null,null,null,null,null,null,null,null,null,null,null,null,null,null,null,null,null,null,null,null,0]
[null,"Fund Q",null,null,null,null,null,null,null,null,null,null,null,null,null,null,null,null,null,null,null,null,0]
[null,"Fund R",null,null,null,null,null,null,null,null,null,null,null,null,null,null,null,null,null,null,null,null,0]
[null,"Fund S",null,null,null,null,null,null,null,null,null,null,null,null,null,null,null,null,null,null,null,null,0]
[null,{"$f":"B36","v":"Fund T"},null,null,null,null,null,null,null,null,null,null,null,null,null,null,null,null,null,null,null,null,0]
[null,{"$f":"B39","v":"Investment A"},null,null,null,null,null,null,null,null,null,null,null,null,null,null,null,null,null,null,null,null,0]
[null,{"$f":"B40","v":"Investment B"},null,null,null,null,null,null,null,null,null,null,null,null,null,null,null,null,null,null,null,null,0]
[null,{"$f":"B41","v":"Investment C"},null,null,null,null,null,null,null,null,null,null,null,null,null,null,null,null,null,null,null,null,0]
[null,{"$f":"B42","v":"Investment D"},null,null,null,null,null,null,null,null,null,null,null,null,null,null,null,null,null,null,null,null,0]
[null,{"$f":"B43","v":"Investment E"},null,null,null,null,null,null,null,null,null,null,null,null,null,null,null,null,null,null,null,null,0]
[null,null,null,null,null,null,null,null,null,null,null,null,null,null,null,null,null,null,null,null,null,null,1]
[]
[null,null,null,null,null,null,null,null,null,null,null,null,null,null,null,null,null,null,null,null,null,null,null,null,null,null,null,"General","UN",{"$f":"CONCATENATE($AG$74,AK74)","v":"UnrestrictedBank Current Account"},{"$f":"SUMPRODUCT(($AB$15:$AB$36=AD74)*($AD$15:$AD$36))","v":0},{"$f":"SUMPRODUCT(($AB$15:$AB$36=AD74)*($E$15:$E$36))","v":0},"Unrestricted","Restricted","Designated","Endowment","Bank Current Account"]
[null,null,null,null,null,null,null,null,null,null,null,null,null,null,null,null,null,null,null,null,null,null,null,null,null,null,null,"Petty Cash","UN",{"$f":"CONCATENATE($AG$74,AK75)","v":"UnrestrictedBank Savings Account"},0,0,null,null,null,null,"Bank Savings Account"]
[null,null,null,null,null,null,null,null,null,null,null,null,null,null,null,null,null,null,null,null,null,null,null,null,null,null,null,{"$f":"B17","v":"Fund A"},{"$f":"IF(C17=\"Restricted\",\"RE\",IF(C17=\"Unrestricted\",\"UN\",IF(C17=\"Designated\",\"DE\",\"EN\")))","v":"UN"},{"$f":"CONCATENATE($AG$74,AK76)","v":"UnrestrictedInvestment Account"},0,0,null,null,null,null,"Investment Account"]
[null,null,null,null,null,null,null,null,null,null,null,null,null,null,null,null,null,null,null,null,null,null,null,null,null,null,null,"Fund B","UN",{"$f":"CONCATENATE($AG$74,AK77)","v":"UnrestrictedDeposit Account"},0,0,null,null,null,null,"Deposit Account"]
[null,null,null,null,null,null,null,null,null,null,null,null,null,null,null,null,null,null,null,null,null,null,null,null,null,null,null,"Fund C","UN",{"$f":"CONCATENATE($AH$74,AK74)","v":"RestrictedBank Current Account"},0,0]
[null,null,null,null,null,null,null,null,null,null,null,null,null,null,null,null,null,null,null,null,null,null,null,null,null,null,null,"Fund D","UN",{"$f":"CONCATENATE($AH$74,AK75)","v":"RestrictedBank Savings Account"},0,0]
[null,null,null,null,null,null,null,null,null,null,null,null,null,null,null,null,null,null,null,null,null,null,null,null,null,null,null,"Fund E","UN",{"$f":"CONCATENATE($AH$74,AK76)","v":"RestrictedInvestment Account"},0,0]
[null,null,null,null,null,null,null,null,null,null,null,null,null,null,null,null,null,null,null,null,null,null,null,null,null,null,null,"Fund F","UN",{"$f":"CONCATENATE($AH$74,AK77)","v":"RestrictedDeposit Account"},0,0]
[null,null,null,null,null,null,null,null,null,null,null,null,null,null,null,null,null,null,null,null,null,null,null,null,null,null,null,"Fund G","UN",{"$f":"CONCATENATE($AI$74,AK74)","v":"DesignatedBank Current Account"},0,0]
[null,null,null,null,null,null,null,null,null,null,null,null,null,null,null,null,null,null,null,null,null,null,null,null,null,null,null,"Fund H","UN",{"$f":"CONCATENATE($AI$74,AK75)","v":"DesignatedBank Savings Account"},0,0]
[null,null,null,null,null,null,null,null,null,null,null,null,null,null,null,null,null,null,null,null,null,null,null,null,null,null,null,"Fund I","UN",{"$f":"CONCATENATE($AI$74,AK76)","v":"DesignatedInvestment Account"},0,0]
[null,null,null,null,null,null,null,null,null,null,null,null,null,null,null,null,null,null,null,null,null,null,null,null,null,null,null,"Fund J","UN",{"$f":"CONCATENATE($AI$74,AK77)","v":"DesignatedDeposit Account"},0,0]
[null,null,null,null,null,null,null,null,null,null,null,null,null,null,null,null,null,null,null,null,null,null,null,null,null,null,null,"Fund K","UN","Designated",0,0]
[null,null,null,null,null,null,null,null,null,null,null,null,null,null,null,null,null,null,null,null,null,null,null,null,null,null,null,"Fund L","UN","Designated",0,0]
[null,null,null,null,null,null,null,null,null,null,null,null,null,null,null,null,null,null,null,null,null,null,null,null,null,null,null,"Fund M","UN","Designated",0,0]
[null,null,null,null,null,null,null,null,null,null,null,null,null,null,null,null,null,null,null,null,null,null,null,null,null,null,null,"Fund N","UN","Designated",0,0]
[null,null,null,null,null,null,null,null,null,null,null,null,null,null,null,null,null,null,null,null,null,null,null,null,null,null,null,"Fund O","UN","Designated",0,0]
[null,null,null,null,null,null,null,null,null,null,null,null,null,null,null,null,null,null,null,null,null,null,null,null,null,null,null,"Fund P","UN","Designated",0,0]
[null,null,null,null,null,null,null,null,null,null,null,null,null,null,null,null,null,null,null,null,null,null,null,null,null,null,null,"Fund Q","UN","Designated",0,0]
[null,null,null,null,null,null,null,null,null,null,null,null,null,null,null,null,null,null,null,null,null,null,null,null,null,null,null,"Fund R","UN","Designated",0,0]
[null,null,null,null,null,null,null,null,null,null,null,null,null,null,null,null,null,null,null,null,null,null,null,null,null,null,null,"Fund S","UN","Designated",0,0]
[null,null,null,null,null,null,null,null,null,null,null,null,null,null,null,null,null,null,null,null,null,null,null,null,null,null,null,"Fund T","UN",{"$f":"CONCATENATE($AI$74,AK77)","v":"DesignatedDeposit Account"},0,0]
[null,null,null,null,null,null,null,null,null,null,null,null,null,null,null,null,null,null,null,null,null,null,null,null,null,null,null,{"$f":"B39","v":"Investment A"},{"$f":"IF(C39=\"Restricted\",\"RE\",IF(C39=\"Unrestricted\",\"UN\",IF(C39=\"Designated\",\"DE\",\"EN\")))","v":"UN"},null,0,0]
[null,null,null,null,null,null,null,null,null,null,null,null,null,null,null,null,null,null,null,null,null,null,null,null,null,null,null,{"$f":"B40","v":"Investment B"},{"$f":"IF(C40=\"Restricted\",\"RE\",IF(C40=\"Unrestricted\",\"UN\",IF(C40=\"Designated\",\"DE\",\"EN\")))","v":"UN"},null,0,0]
[null,null,null,null,null,null,null,null,null,null,null,null,null,null,null,null,null,null,null,null,null,null,null,null,null,null,null,{"$f":"B41","v":"Investment C"},{"$f":"IF(C41=\"Restricted\",\"RE\",IF(C41=\"Unrestricted\",\"UN\",IF(C41=\"Designated\",\"DE\",\"EN\")))","v":"UN"},null,0,0]
[null,null,null,null,null,null,null,null,null,null,null,null,null,null,null,null,null,null,null,null,null,null,null,null,null,null,null,{"$f":"B42","v":"Investment D"},{"$f":"IF(C42=\"Restricted\",\"RE\",IF(C42=\"Unrestricted\",\"UN\",IF(C42=\"Designated\",\"DE\",\"EN\")))","v":"UN"},null,0,0]
[null,null,null,null,null,null,null,null,null,null,null,null,null,null,null,null,null,null,null,null,null,null,null,null,null,null,null,{"$f":"B43","v":"Investment E"},{"$f":"IF(C43=\"Restricted\",\"RE\",IF(C43=\"Unrestricted\",\"UN\",IF(C43=\"Designated\",\"DE\",\"EN\")))","v":"UN"},null,0,0]

{"sheet":"Supplementary Account Details","index":3,"n_rows":56,"n_cols":28,"rows_kept":56,"cut":false,"hidden":false,"merged":[[23,1,26,1],[23,2,26,7],[10,1,13,1],[10,2,13,7],[4,1,4,7],[15,1,15,7],[42,2,43,2],[42,3,43,3],[42,4,43,4],[42,5,43,5],[49,1,50,1],[49,2,50,7],[31,2,32,2],[31,3,32,3],[31,4,32,4],[31,5,32,5],[38,1,39,1],[38,2,39,7]]}
[]
[]
[]
[]
[null,"Information required for Return of Parish Finance Form"]
[]
[null,"Number of tax efficient planned givers"]
[null,"Number of other planned givers"]
[null,"Number of new legacies received"]
[]
[null,{"$f":"CONCATENATE(N11,'Name and Parish'!D15,O11)","v":"Looking back across 2023, were there any exceptional circumstances or significant changes that may have led to unusual figures? Please provide details in the box below. "},null,null,null,null,null,null,null,null,null,null,null,"Looking back across ",", were there any exceptional circumstances or significant changes that may have led to unusual figures? Please provide details in the box below. "]
[]
[]
[]
[]
[null,"Information which affects the notes to the accounts on the financial statements"]
[]
[null,"Parish Share Allocation",{"$f":"'Name and Parish'!D17","v":0},null,null,null,null,null,null,{"$f":"TEXT(C18,\"£#,##0.00._);(£#,##0.00.)\")","v":"£0.00. "},null,null,null,"For ",null,{"$f":"IF(C20>=0.01,\"Y\",\"N\")","v":"N"},{"$f":"IF(C21>=0.01,\"Y\",\"N\")","v":"N"},{"$f":"CONCATENATE(P18,Q18)","v":"NN"},{"$f":"CONCATENATE(N18,'Name and Parish'!D15,N19,J18,N20,J19,N21,K20,N22,J20,N23,O23,J21,N24,\".\")","v":"For 2023 the Parish Share allocation was £0.00. Of this, £0.00 was paid by the PCC directly to the DBF and £0.00 was credited by the DBF directly to the Parish Share account. This related to credits of £0.00 for crematorium claims and £0.00 from net donations made via the Diocese website."}]
[null,"Parish Share Paid",{"$f":"SUMPRODUCT((Payments!$C$5:$C$1355=\"Parish Share Paid\")*(Payments!$E$5:$E$1355))","v":0},null,null,null,null,null,null,{"$f":"TEXT(C19,\"£#,##0.00_);(£#,##0.00)\")","v":"£0.00 "},null,null,null," the Parish Share allocation was ",null,null,null,null,{"$f":"CONCATENATE(N18,'Name and Parish'!D15,N19,J18,N20,J19,N21,K20,N22,J20,N23,\".\")","v":"For 2023 the Parish Share allocation was £0.00. Of this, £0.00 was paid by the PCC directly to the DBF and £0.00 was credited by the DBF directly to the Parish Share account. This related to credits of £0.00 for crematorium claims."}]
[null,"Diocese fee credit",0,null,null,null,null,null,null,"£0.00 ",{"$f":"TEXT(O20,\"£#,##0.00_);(£#,##0.00)\")","v":"£0.00 "},null,null,"Of this, ",{"$f":"SUM(C20:C21)","v":0},null,null,null,{"$f":"CONCATENATE(N18,'Name and Parish'!D15,N19,J18,N20,J19,N21,K20,N22,J21,N24,\".\")","v":"For 2023 the Parish Share allocation was £0.00. Of this, £0.00 was paid by the PCC directly to the DBF and £0.00 was credited by the DBF directly to the Parish Share account. This related to credits of £0.00 from net donations made via the Diocese website."}]
[null,"Diocese donate (net)",0,null,null,null,null,null,null,"£0.00 ",null,null,null,"was paid by the PCC directly to the DBF and "]
[null,"Balance",{"$f":"SUM(C18-C19-C20-C21)","v":0},null,null,null,null,null,null,null,null,null,null,"was credited by the DBF directly to the Parish Share account. This related to credits of "]
[null,null,null,null,null,null,null,null,null,null,null,null,null,"for crematorium claims"," and "]
[null,"Please use this box if you wish to include any other notes to the accounts",null,null,null,null,null,null,null,null,null,null,null,"from net donations made via the Diocese website",null,null,null,null,null,null,null,null,null,null,null,null,null,{"$f":"IF(C24=\"\",\"Y\",\"N\")","v":"Y"}]
[]
[]
[]
[]
[]
[]
[null,"Assets retained for Church use"]
[null,null,"Unrestricted","Designated","Restricted","Endowment","Total","Total"]
[null,null,null,null,null,null,{"$f":"'Name and Parish'!D15","v":2023},{"$f":"G33-1","v":2022}]
[null,"Asset A",null,null,null,null,{"$f":"SUM(C34:F34)","v":0},0]
[null,"Asset B",null,null,null,null,{"$f":"SUM(C35:F35)","v":0},0]
[null,"Asset C",null,null,null,null,{"$f":"SUM(C36:F36)","v":0},0]
[null,"Asset D",null,null,null,null,{"$f":"SUM(C37:F37)","v":0},0]
[null,"Asset E",null,null,null,null,{"$f":"SUM(C38:F38)","v":0},0]
[null,"Notes regarding the PCC assets",null,null,null,null,null,null,null,null,null,null,null,null,null,null,null,null,null,null,null,null,null,null,null,null,null,{"$f":"IF(C39=\"\",\"N\",\"Y\")","v":"N"}]
[]
[]
[null,"Liabilities"]
[null,null,"Unrestricted","Designated","Restricted","Endowment","Total","Total"]
[null,null,null,null,null,null,{"$f":"'Name and Parish'!D15","v":2023},{"$f":"G44-1","v":2022}]
[null,"Liability A",null,null,null,null,{"$f":"SUM(C45:F45)","v":0},0]
[null,"Liability B",null,null,null,null,{"$f":"SUM(C46:F46)","v":0},0]
[null,"Liability C",null,null,null,null,{"$f":"SUM(C47:F47)","v":0},0]
[null,"Liability D",null,null,null,null,{"$f":"SUM(C48:F48)","v":0},0]
[null,"Liability E",null,null,null,null,{"$f":"SUM(C49:F49)","v":0},0]
[null,"Notes regarding the PCC liabilities",null,null,null,null,null,null,null,null,null,null,null,null,null,null,null,null,null,null,null,null,null,null,null,null,null,{"$f":"IF(C50=\"\",\"N\",\"Y\")","v":"N"}]
[]
[]
[]
[]
[]
[null,null,null,null,null,null,null,null,null,null,"V3.0"]

{"sheet":"Descriptions","index":4,"n_rows":147,"n_cols":41,"rows_kept":147,"cut":false,"hidden":false,"merged":[[3,0,3,4],[3,7,3,11]]}
[]
[]
[]
["Receipts",null,null,null,null,null,null,"Payments"]
["Include","Description Name","Details","Appears under what section of the Financial Statements Tab","Appears under what section of the Return of Parish Finance",null,null,"Include","Description Name","Details","Appears under what section of the Financial Statements Tab","Appears under what section of the Return of Parish Finance",null,null,null,null,null,null,null,null,null,null,null,null,null,null,"Receipts","Payments",null,null,null,null,null,"Receipts","Payments"]
["No","Appeals","Income from Special Appeals","All other giving/voluntary receipts","All other giving and voluntary receipts, including Special Appeals (recurring and one-off)",{"$f":"IF(A6=\"Yes\",\"Y\",\"N\")","v":"N"},null,"No","Administrator Parish/Benefice","Costs associated with payment to a parish or benefice administrator","Clergy and Staffing Costs","Salaries, wages and honoraria",{"$f":"IF(H6=\"Yes\",\"Y\",\"N\")","v":"N"},null,null,null,null,null,null,null,null,null,null,null,null,null,{"$f":"IF(A6=\"YES\",1,0)","v":0},{"$f":"IF(H6=\"YES\",1,0)","v":0},{"$f":"IF(AA6=1,B6,\"\")","v":""},{"$f":"IF(AB6=1,I6,\"\")","v":""},{"$f":"Noblanks(AC6:$AC$74)","v":""},{"$f":"Noblanks($AD6:AD$74)","v":""},null,{"$f":"listunique($AE$6:$AE$74)","v":""},{"$f":"listunique($AF$6:$AF$74)","v":""},{"$f":"COUNTIF($AH$6:$AH$68,\">=\"&AH6)","v":0},{"$f":"COUNTIF($AI$6:$AI$68,\">=\"&AI6)","v":0},{"$f":"MAX(AJ6:AJ68)","v":0},{"$f":"MAX(AK6:AK68)","v":0},{"$f":"IF(ISNA(INDEX($AH$6:$AH$68,MATCH(AL6,$AJ$6:$AJ$68,0))),\"\",INDEX($AH$6:$AH$68,MATCH(AL6,$AJ$6:$AJ$68,0)))","v":""},{"$f":"IF(ISNA(INDEX($AI$6:$AI$68,MATCH(AM6,$AK$6:$AK$68,0))),\"\",INDEX($AI$6:$AI$68,MATCH(AM6,$AK$6:$AK$68,0)))","v":""}]
["No","Bookstall","Income from Bookstall","Activites for generating funds","Gross receipts from trading (e.g. hall lettings, magazine, bookstall) NOT fundraising.","N",null,"No","Bank Charges",null,"Administration Costs","Cost of trading",{"$f":"IF(H7=\"Yes\",\"Y\",\"N\")","v":"N"},null,null,null,null,null,null,null,null,null,null,null,null,null,0,0,{"$f":"IF(AA7=1,B7,\"\")","v":""},{"$f":"IF(AB7=1,I7,\"\")","v":""},{"$f":"Noblanks(AC7:$AC$74)","v":""},{"$f":"Noblanks($AD7:AD$74)","v":""},null,{"$f":"listunique($AE$6:$AE$74)","v":""},{"$f":"listunique($AF$6:$AF$74)","v":""},{"$f":"COUNTIF($AH$6:$AH$68,\">=\"&AH7)","v":0},{"$f":"COUNTIF($AI$6:$AI$68,\">=\"&AI7)","v":0},{"$f":"SUM(AL6-1)","v":-1},{"$f":"SUM(AM6-1)","v":-1},{"$f":"IF(ISNA(INDEX($AH$6:$AH$68,MATCH(AL7,$AJ$6:$AJ$68,0))),\"\",INDEX($AH$6:$AH$68,MATCH(AL7,$AJ$6:$AJ$68,0)))","v":""},""]
["No","CAF & GAYE giving","CAF cheques or salary giving (Give as you earn)","All other giving/voluntary receipts","All other giving and voluntary receipts, including Special Appeals (recurring and one-off)","N",null,"No","Charities - Christian Relief",null,"Mission Giving and Donations","Mission giving and donations","N",null,null,null,null,null,null,null,null,null,null,null,null,null,0,0,"","",{"$f":"Noblanks(AC8:$AC$74)","v":""},{"$f":"Noblanks($AD8:AD$74)","v":""},null,"","",{"$f":"COUNTIF($AH$6:$AH$68,\">=\"&AH8)","v":0},0,{"$f":"SUM(AL7-1)","v":-2},{"$f":"SUM(AM7-1)","v":-2},{"$f":"IF(ISNA(INDEX($AH$6:$AH$68,MATCH(AL8,$AJ$6:$AJ$68,0))),\"\",INDEX($AH$6:$AH$68,MATCH(AL8,$AJ$6:$AJ$68,0)))","v":""},""]
["No","Church Building Appeal",null,"Church Activities","All other giving and voluntary receipts, including Special Appeals (recurring and one-off)","N",null,"No","Charities - Home (UK)",null,"Mission Giving and Donations","Mission giving and donations","N",null,null,null,null,null,null,null,null,null,null,null,null,null,0,0,"","",{"$f":"Noblanks(AC9:$AC$74)","v":""},{"$f":"Noblanks($AD9:AD$74)","v":""},null,"","",0,0,-3,-3,{"$f":"IF(ISNA(INDEX($AH$6:$AH$68,MATCH(AL9,$AJ$6:$AJ$68,0))),\"\",INDEX($AH$6:$AH$68,MATCH(AL9,$AJ$6:$AJ$68,0)))","v":""},""]
["No","Churches Together Bike Ride",null,"Activites for generating funds","Gross receipts from fundraising activities","N",null,"No","Charities - Overseas",null,"Mission Giving and Donations","Mission giving and donations","N",null,null,null,null,null,null,null,null,null,null,null,null,null,0,0,"","",{"$f":"Noblanks(AC10:$AC$74)","v":""},{"$f":"Noblanks($AD10:AD$74)","v":""},null,"","",0,0,-4,-4,"",""]
["No","Dividends and Interest",null,"Investment Income","Dividends, interest, receipts from property etc. ","N",null,"No","Charities - Secular",null,"Mission Giving and Donations","Mission giving and donations","N",null,null,null,null,null,null,null,null,null,null,null,null,null,0,0,{"$f":"IF(AA11=1,B11,\"\")","v":""},"",{"$f":"Noblanks(AC11:$AC$74)","v":""},{"$f":"Noblanks($AD11:AD$74)","v":""},null,"","",0,0,-5,-5,"",""]
["No","Donations",null,"All other giving/voluntary receipts","Other planned giving","N",null,"No","Church - Major Repairs and Redecorations",null,"Building Work and Repairs","Major repairs to the church building","N",null,null,null,null,null,null,null,null,null,null,null,null,null,0,0,"","",{"$f":"Noblanks(AC12:$AC$74)","v":""},{"$f":"Noblanks($AD12:AD$74)","v":""},null,"","",0,0,-6,-6,"",{"$f":"IF(ISNA(INDEX($AI$6:$AI$68,MATCH(AM12,$AK$6:$AK$68,0))),\"\",INDEX($AI$6:$AI$68,MATCH(AM12,$AK$6:$AK$68,0)))","v":""}]
["No","Donations - Gift Aided",null,"All other giving/voluntary receipts","Tax efficient planned giving","N",null,"No","Churchyard Expenses",null,"Other Expenditure","Church running expenses (including Governance) ","N",null,null,null,null,null,null,null,null,null,null,null,null,null,0,0,"","",{"$f":"Noblanks(AC13:$AC$74)","v":""},{"$f":"Noblanks($AD13:AD$74)","v":""},null,"","",0,0,-7,-7,"",""]
["No","Fees - Additional","Any fees which are not covered by the table of parochial fees, such as extras/mileage","Church Activities","Other receipts not already listed","N",null,"No","Cleaning",null,"Church Running Expenses","Church running expenses (including Governance) ","N",null,null,null,null,null,null,null,null,null,null,null,null,null,0,0,"","",{"$f":"Noblanks(AC14:$AC$74)","v":""},{"$f":"Noblanks($AD14:AD$74)","v":""},null,"","",0,0,-8,-8,"",""]
["No","Fees - Statutory","Fees covered by the table of parochial fees, include the DBF proportion if paid to the PCC (DBF fees passed on will need to be entered as a negative receipt, e.g. -12.00)","Church Activities","Statutory fees retained by the PCC (weddings, funerals etc.)","N",null,"No","Clergy Expenses",null,"Clergy and Staffing Costs","Clergy and staff expenses","N",null,null,null,null,null,null,null,null,null,null,null,null,null,0,0,"","",{"$f":"Noblanks(AC15:$AC$74)","v":""},{"$f":"Noblanks($AD15:AD$74)","v":""},null,"","",0,0,-9,-9,"",""]
["No","Fete",null,"Activites for generating funds","Gross receipts from fundraising activities","N",null,"No","Computer",null,"Administration Costs","Clergy and staff expenses","N",null,null,null,null,null,null,null,null,null,null,null,null,null,0,0,"","",{"$f":"Noblanks(AC16:$AC$74)","v":""},{"$f":"Noblanks($AD16:AD$74)","v":""},null,"","",0,0,-10,-10,"",""]
["No","Gift Aid Envelopes",null,"All other giving/voluntary receipts","Tax efficient planned giving","N",null,"No","Fund Raising","Costs incurred during fundraising (cost of fetes etc.)","Cost of Generating Funds","Fundraising activities (costs and payments)","N",null,null,null,null,null,null,null,null,null,null,null,null,null,0,0,"","",{"$f":"Noblanks(AC17:$AC$74)","v":""},{"$f":"Noblanks($AD17:AD$74)","v":""},null,"","",0,0,-11,-11,"",""]
["No","Gift Aid Reclaim",null,"Gift Aid Recovered","Gift Aid recovered","N",null,"No","Gas and Electricity Bill","Payment of Gas/Electricity Bill","Church Running Expenses","Church utility bills","N",null,null,null,null,null,null,null,null,null,null,null,null,null,0,0,"","",{"$f":"Noblanks(AC18:$AC$74)","v":""},{"$f":"Noblanks($AD18:AD$74)","v":""},null,"","",0,0,-12,-12,"",""]
["No","Gift Days",null,"All other giving/voluntary receipts","All other giving and voluntary receipts, including Special Appeals (recurring and one-off)","N",null,"No","Hall/Other Buildings - Major Repairs and Redecorations",null,"Building Work and Repairs","Major repairs to church hall or other PCC property, including redecoration","N",null,null,null,null,null,null,null,null,null,null,null,null,null,0,0,"","",{"$f":"Noblanks(AC19:$AC$74)","v":""},{"$f":"Noblanks($AD19:AD$74)","v":""},null,"","",0,0,-13,-13,"",""]
["No","Grants - One Off","One off grant, for example, from English Heritage","Grant Income","All other giving and voluntary receipts, including Special Appeals (recurring and one-off)","N",null,"No","Insurance",null,"Church Running Expenses","Church running expenses (including Governance) ","N",null,null,null,null,null,null,null,null,null,null,null,null,null,0,0,"","",{"$f":"Noblanks(AC20:$AC$74)","v":""},{"$f":"Noblanks($AD20:AD$74)","v":""},null,"","",0,0,-14,-14,"",""]
["No","Grants - Recurring","Regular grants over multiple years","Grant Income","Grants (include recurring and one-off)","N",null,"No","Maintenance",null,"Church Running Expenses","Church running expenses (including Governance) ","N",null,null,null,null,null,null,null,null,null,null,null,null,null,0,0,"","",{"$f":"Noblanks(AC21:$AC$74)","v":""},{"$f":"Noblanks($AD21:AD$74)","v":""},null,"","",0,0,-15,-15,"",""]
["No","Junior Church Collections",null,"Collections at Services","Collections at services","N",null,"No","Mission and Evangelism Costs",null,"Other Expenditure","Church expenses: Mission and evangelism costs","N",null,null,null,null,null,null,null,null,null,null,null,null,null,0,0,"","",{"$f":"Noblanks(AC22:$AC$74)","v":""},{"$f":"Noblanks($AD22:AD$74)","v":""},null,"","",0,0,-16,-16,"",""]
["No","Junior Church Collections - Gift Aided",null,"Collections at Services","Tax efficient planned giving","N",null,"No","New Building Work","Any new building work on the Church","Building Work and Repairs","New building work to the church, church hall, clergy housing or other PCC property","N",null,null,null,null,null,null,null,null,null,null,null,null,null,0,0,"","",{"$f":"Noblanks(AC23:$AC$74)","v":""},{"$f":"Noblanks($AD23:AD$74)","v":""},null,"","",0,0,-17,-17,"",""]
["No","Legacies","Legacies received in the year or income received from a legacy which has been invested","Legacies Received","Legacies received (capital value)","N",null,"No","Parish Share Paid",null,"Parish Share","Diocesan parish share contribution","N",null,null,null,null,null,null,null,null,null,null,null,null,null,0,0,"","",{"$f":"Noblanks(AC24:$AC$74)","v":""},{"$f":"Noblanks($AD24:AD$74)","v":""},null,"","",0,0,-18,-18,"",""]
["No","Magazine","Parish magazine subscriptions/advertising","Activites for generating funds","Gross receipts from trading (e.g. hall lettings, magazine, bookstall) NOT fundraising.","N",null,"No","Printing",null,"Administration Costs","Clergy and staff expenses","N",null,null,null,null,null,null,null,null,null,null,null,null,null,0,0,"","",{"$f":"Noblanks(AC25:$AC$74)","v":""},{"$f":"Noblanks($AD25:AD$74)","v":""},null,"","",0,0,-19,-19,"",""]
["No","Non-charitable trading",null,"Church Activities","Gross receipts from trading (e.g. hall lettings, magazine, bookstall) NOT fundraising.","N",null,"No","Salaries",null,"Clergy and Staffing Costs","Salaries, wages and honoraria","N",null,null,null,null,null,null,null,null,null,null,null,null,null,0,0,"","",{"$f":"Noblanks(AC26:$AC$74)","v":""},{"$f":"Noblanks($AD26:AD$74)","v":""},null,"","",0,0,-20,-20,"",""]
["No","Other Fundraising Income",null,"Activites for generating funds","All other giving and voluntary receipts, including Special Appeals (recurring and one-off)","N",null,"No","Service Costs","Costs associated with the running of services (wine etc.)","Church Running Expenses","Church running expenses (including Governance) ","N",null,null,null,null,null,null,null,null,null,null,null,null,null,0,0,"","",{"$f":"Noblanks(AC27:$AC$74)","v":""},{"$f":"Noblanks($AD27:AD$74)","v":""},null,"","",0,0,-21,-21,"",""]
["No","Other Recurring Income",null,"Other Income","All other giving and voluntary receipts, including Special Appeals (recurring and one-off)","N",null,"No","Stationery",null,"Administration Costs","Clergy and staff expenses","N",null,null,null,null,null,null,null,null,null,null,null,null,null,0,0,"","",{"$f":"Noblanks(AC28:$AC$74)","v":""},{"$f":"Noblanks($AD28:AD$74)","v":""},null,"","",0,0,-22,-22,"",""]
["No","Parish Giving Scheme Income",null,"Planned Giving","Other planned giving","N",null,"No","Support Costs","Costs for organist, administrators etc.","Administration Costs","Salaries, wages and honoraria","N",null,null,null,null,null,null,null,null,null,null,null,null,null,0,0,"","",{"$f":"Noblanks(AC29:$AC$74)","v":""},{"$f":"Noblanks($AD29:AD$74)","v":""},null,"","",0,0,-23,-23,"",""]
["No","Rental Income",null,"Church Activities","Dividends, interest, receipts from property etc. ","N",null,"No","Bookstall","Costs of Bookstall","Cost of Generating Funds","Cost of trading","N",null,null,null,null,null,null,null,null,null,null,null,null,null,0,0,"","",{"$f":"Noblanks(AC30:$AC$74)","v":""},{"$f":"Noblanks($AD30:AD$74)","v":""},null,"","",0,0,-24,-24,"",""]
["No","Sale of Assets",null,"Other Income","Other receipts not already listed","N",null,"No","Hall Running Costs","Costs of Church Hall","Cost of Generating Funds","Cost of trading","N",null,null,null,null,null,null,null,null,null,null,null,null,null,0,0,"","",{"$f":"Noblanks(AC31:$AC$74)","v":""},{"$f":"Noblanks($AD31:AD$74)","v":""},null,"","",0,0,-25,-25,"",""]
["No","Sales",null,"Activites for generating funds","Gross receipts from fundraising activities","N",null,"No","Magazine","Costs of Magazine","Cost of Generating Funds","Cost of trading","N",null,null,null,null,null,null,null,null,null,null,null,null,null,0,0,"","",{"$f":"Noblanks(AC32:$AC$74)","v":""},{"$f":"Noblanks($AD32:AD$74)","v":""},null,"","",0,0,-26,-26,"",""]
["No","Standing Order",null,"Planned Giving","Other receipts not already listed","N",null,"No","Trading Costs - Property","Costs relating to Property","Other Expenditure","Cost of trading","N",null,null,null,null,null,null,null,null,null,null,null,null,null,0,0,"","",{"$f":"Noblanks(AC33:$AC$74)","v":""},{"$f":"Noblanks($AD33:AD$74)","v":""},null,"","",0,0,-27,-27,"",""]
["No","Sunday Collections",null,"Collections at Services","Collections at services","N",null,"No","Water Bill","Payment of Water Bill for the Church","Church Running Expenses","Church utility bills","N",null,null,null,null,null,null,null,null,null,null,null,null,null,0,0,"","",{"$f":"Noblanks(AC34:$AC$74)","v":""},{"$f":"Noblanks($AD34:AD$74)","v":""},null,"","",0,0,-28,-28,"",""]
["No","Sunday Collections - Gift Aided",null,"Collections at Services","Tax efficient planned giving","N",null,"No",null,null,"Administration Costs",null,"N",null,null,null,null,null,null,null,null,null,null,null,null,null,0,0,"","",{"$f":"Noblanks(AC35:$AC$74)","v":""},{"$f":"Noblanks($AD35:AD$74)","v":""},null,"","",0,0,-29,-29,"",""]
["No","Use of Church Buildings",null,"Church Activities","Other receipts not already listed",{"$f":"IF(A36=\"Yes\",\"Y\",\"N\")","v":"N"},null,"No",null,null,"Administration Costs",null,"N",null,null,null,null,null,null,null,null,null,null,null,null,null,0,0,"","",{"$f":"Noblanks(AC36:$AC$74)","v":""},{"$f":"Noblanks($AD36:AD$74)","v":""},null,"","",0,0,-30,-30,"",""]
["No","VAT Reclaim","VAT reclaim, for example from the listed places of worship grant scheme","Church Activities","Grants (include recurring and one-off)",{"$f":"IF(A37=\"Yes\",\"Y\",\"N\")","v":"N"},null,"No",null,null,"Administration Costs",null,"N",null,null,null,null,null,null,null,null,null,null,null,null,null,0,0,"","",{"$f":"Noblanks(AC37:$AC$74)","v":""},{"$f":"Noblanks($AD37:AD$74)","v":""},null,"","",0,0,-31,-31,"",""]
["No","Wall Boxes",null,"Gift Day and Sundry Donations","Other planned giving",{"$f":"IF(A38=\"Yes\",\"Y\",\"N\")","v":"N"},null,"No",null,null,"Administration Costs",null,"N",null,null,null,null,null,null,null,null,null,null,null,null,null,{"$f":"IF(A38=\"YES\",1,0)","v":0},{"$f":"IF(H38=\"YES\",1,0)","v":0},"","",{"$f":"Noblanks(AC38:$AC$74)","v":""},{"$f":"Noblanks($AD38:AD$74)","v":""},null,"","",0,0,-32,-32,"",""]
["No","Wedding and Funeral Collections",null,"Collections at Services","Collections at services","N",null,"No",null,null,"Administration Costs",null,"N",null,null,null,null,null,null,null,null,null,null,null,null,null,0,0,"","",{"$f":"Noblanks(AC39:$AC$74)","v":""},{"$f":"Noblanks($AD39:AD$74)","v":""},null,"","",0,0,-33,-33,"",""]
["No","Wedding and Funeral Collections - Gift Aided",null,"Collections at Services","Tax efficient planned giving","N",null,"No",null,null,"Administration Costs",null,"N",null,null,null,null,null,null,null,null,null,null,null,null,null,0,0,"","",{"$f":"Noblanks(AC40:$AC$74)","v":""},{"$f":"Noblanks($AD40:AD$74)","v":""},null,"","",0,0,-34,-34,"",""]
["No","Weekday Collections",null,"Collections at Services","Collections at services","N",null,null,null,null,"Administration Costs",null,"N",null,null,null,null,null,null,null,null,null,null,null,null,null,0,0,"","",{"$f":"Noblanks(AC41:$AC$74)","v":""},{"$f":"Noblanks($AD41:AD$74)","v":""},null,"","",0,0,-35,-35,"",""]
["No","Weekday Collections - Gift Aided",null,"Collections at Services","Tax efficient planned giving","N",null,null,null,null,"Administration Costs",null,"N",null,null,null,null,null,null,null,null,null,null,null,null,null,0,0,"","",{"$f":"Noblanks(AC42:$AC$74)","v":""},{"$f":"Noblanks($AD42:AD$74)","v":""},null,"","",0,0,-36,-36,"",""]
[null,null,null,"All other giving/voluntary receipts",null,"N",null,null,null,null,"Administration Costs",null,"N",null,null,null,null,null,null,null,null,null,null,null,null,null,0,0,"","",{"$f":"Noblanks(AC43:$AC$74)","v":""},{"$f":"Noblanks($AD43:AD$74)","v":""},null,"","",0,0,-37,-37,"",""]
[null,null,null,"All other giving/voluntary receipts",null,"N",null,null,null,null,"Administration Costs",null,"N",null,null,null,null,null,null,null,null,null,null,null,null,null,0,0,{"$f":"IF(AA44=1,B44,\"\")","v":""},"",{"$f":"Noblanks(AC44:$AC$74)","v":""},{"$f":"Noblanks($AD44:AD$74)","v":""},null,{"$f":"listunique($AE$6:$AE$74)","v":""},"",{"$f":"COUNTIF($AH$6:$AH$68,\">=\"&AH44)","v":0},0,-38,-38,"",""]
[null,null,null,"All other giving/voluntary receipts",null,"N",null,null,null,null,"Administration Costs",null,"N",null,null,null,null,null,null,null,null,null,null,null,null,null,0,0,"","",{"$f":"Noblanks(AC45:$AC$74)","v":""},{"$f":"Noblanks($AD45:AD$74)","v":""},null,"","",0,0,-39,-39,"",""]
[null,null,null,"All other giving/voluntary receipts",null,"N",null,null,null,null,"Administration Costs",null,"N",null,null,null,null,null,null,null,null,null,null,null,null,null,0,0,"","",{"$f":"Noblanks(AC46:$AC$74)","v":""},{"$f":"Noblanks($AD46:AD$74)","v":""},null,"","",0,0,-40,-40,"",""]
[null,null,null,"All other giving/voluntary receipts",null,"N",null,null,null,null,"Administration Costs",null,"N",null,null,null,null,null,null,null,null,null,null,null,null,null,0,0,"","",{"$f":"Noblanks(AC47:$AC$74)","v":""},{"$f":"Noblanks($AD47:AD$74)","v":""},null,"","",0,0,-41,-41,"",""]
[null,null,null,"All other giving/voluntary receipts",null,"N",null,null,null,null,"Administration Costs",null,"N",null,null,null,null,null,null,null,null,null,null,null,null,null,0,0,"","",{"$f":"Noblanks(AC48:$AC$74)","v":""},{"$f":"Noblanks($AD48:AD$74)","v":""},null,"","",0,0,-42,-42,"",""]
[null,null,null,"All other giving/voluntary receipts",null,"N",null,null,null,null,"Administration Costs",null,"N",null,null,null,null,null,null,null,null,null,null,null,null,null,0,0,"","",{"$f":"Noblanks(AC49:$AC$74)","v":""},{"$f":"Noblanks($AD49:AD$74)","v":""},null,"","",0,0,-43,-43,"",""]
[null,null,null,"All other giving/voluntary receipts",null,"N",null,null,null,null,"Administration Costs",null,"N",null,null,null,null,null,null,null,null,null,null,null,null,null,0,0,"","",{"$f":"Noblanks(AC50:$AC$74)","v":""},{"$f":"Noblanks($AD50:AD$74)","v":""},null,"","",0,0,-44,-44,"",""]
[null,null,null,"All other giving/voluntary receipts",null,"N",null,null,null,null,"Administration Costs",null,"N",null,null,null,null,null,null,null,null,null,null,null,null,null,0,0,"","",{"$f":"Noblanks(AC51:$AC$74)","v":""},{"$f":"Noblanks($AD51:AD$74)","v":""},null,"","",0,0,-45,-45,"",""]
[null,null,null,"All other giving/voluntary receipts",null,"N",null,null,null,null,"Administration Costs",null,"N",null,null,null,null,null,null,null,null,null,null,null,null,null,0,0,"","",{"$f":"Noblanks(AC52:$AC$74)","v":""},{"$f":"Noblanks($AD52:AD$74)","v":""},null,"","",0,0,-46,-46,"",""]
[null,null,null,"All other giving/voluntary receipts",null,"N",null,null,null,null,"Administration Costs",null,"N",null,null,null,null,null,null,null,null,null,null,null,null,null,0,0,"","",{"$f":"Noblanks(AC53:$AC$74)","v":""},{"$f":"Noblanks($AD53:AD$74)","v":""},null,"","",0,0,-47,-47,"",""]
[null,null,null,"All other giving/voluntary receipts",null,"N",null,null,null,null,"Administration Costs",null,"N",null,null,null,null,null,null,null,null,null,null,null,null,null,0,0,"","",{"$f":"Noblanks(AC54:$AC$74)","v":""},{"$f":"Noblanks($AD54:AD$74)","v":""},null,"","",0,0,-48,-48,"",""]
[null,null,null,"All other giving/voluntary receipts",null,"N",null,null,null,null,"Administration Costs",null,"N",null,null,null,null,null,null,null,null,null,null,null,null,null,0,0,"","",{"$f":"Noblanks(AC55:$AC$74)","v":""},{"$f":"Noblanks($AD55:AD$74)","v":""},null,"","",0,0,-49,-49,"",""]
[null,null,null,"All other giving/voluntary receipts",null,"N",null,null,null,null,"Administration Costs",null,"N",null,null,null,null,null,null,null,null,null,null,null,null,null,0,0,"","",{"$f":"Noblanks(AC56:$AC$74)","v":""},{"$f":"Noblanks($AD56:AD$74)","v":""},null,"","",0,0,-50,-50,"",""]
[null,null,null,"All other giving/voluntary receipts",null,"N",null,null,null,null,"Administration Costs",null,"N",null,null,null,null,null,null,null,null,null,null,null,null,null,0,0,"","",{"$f":"Noblanks(AC57:$AC$74)","v":""},{"$f":"Noblanks($AD57:AD$74)","v":""},null,"","",0,0,-51,-51,"",""]
[null,null,null,"All other giving/voluntary receipts",null,"N",null,null,null,null,"Administration Costs",null,"N",null,null,null,null,null,null,null,null,null,null,null,null,null,0,0,"","",{"$f":"Noblanks(AC58:$AC$74)","v":""},{"$f":"Noblanks($AD58:AD$74)","v":""},null,"","",0,0,-52,-52,"",""]
[null,null,null,"All other giving/voluntary receipts",null,"N",null,null,null,null,"Administration Costs",null,"N",null,null,null,null,null,null,null,null,null,null,null,null,null,0,0,"","",{"$f":"Noblanks(AC59:$AC$74)","v":""},{"$f":"Noblanks($AD59:AD$74)","v":""},null,"","",0,0,-53,-53,"",""]
[null,null,null,"All other giving/voluntary receipts",null,"N",null,null,null,null,"Administration Costs",null,"N",null,null,null,null,null,null,null,null,null,null,null,null,null,0,0,"","",{"$f":"Noblanks(AC60:$AC$74)","v":""},{"$f":"Noblanks($AD60:AD$74)","v":""},null,"","",0,0,-54,-54,"",""]
[null,null,null,"All other giving/voluntary receipts",null,"N",null,null,null,null,"Administration Costs",null,"N",null,null,null,null,null,null,null,null,null,null,null,null,null,0,0,"","",{"$f":"Noblanks(AC61:$AC$74)","v":""},{"$f":"Noblanks($AD61:AD$74)","v":""},null,"","",0,0,-55,-55,"",""]
[null,null,null,"All other giving/voluntary receipts",null,"N",null,null,null,null,"Administration Costs",null,"N",null,null,null,null,null,null,null,null,null,null,null,null,null,0,0,"","",{"$f":"Noblanks(AC62:$AC$74)","v":""},{"$f":"Noblanks($AD62:AD$74)","v":""},null,"","",0,0,-56,-56,"",""]
[null,null,null,"All other giving/voluntary receipts",null,"N",null,null,null,null,"Administration Costs",null,"N",null,null,null,null,null,null,null,null,null,null,null,null,null,0,0,{"$f":"IF(AA63=1,B63,\"\")","v":""},{"$f":"IF(AB63=1,I63,\"\")","v":""},{"$f":"Noblanks(AC63:$AC$74)","v":""},{"$f":"Noblanks($AD63:AD$74)","v":""},null,"","",0,0,-57,-57,"",""]
[null,null,null,"All other giving/voluntary receipts",null,"N",null,null,null,null,"Administration Costs",null,"N",null,null,null,null,null,null,null,null,null,null,null,null,null,0,0,{"$f":"IF(AA64=1,B64,\"\")","v":""},"",{"$f":"Noblanks(AC64:$AC$74)","v":""},{"$f":"Noblanks($AD64:AD$74)","v":""},null,"","",0,0,-58,-58,"",""]
[null,null,null,"All other giving/voluntary receipts",null,"N",null,null,null,null,"Administration Costs",null,"N",null,null,null,null,null,null,null,null,null,null,null,null,null,0,0,"","",{"$f":"Noblanks(AC65:$AC$74)","v":""},{"$f":"Noblanks($AD65:AD$74)","v":""},null,"","",0,0,-59,-59,"",""]
[null,null,null,"All other giving/voluntary receipts",null,"N",null,null,null,null,"Administration Costs",null,"N",null,null,null,null,null,null,null,null,null,null,null,null,null,0,0,"","",{"$f":"Noblanks(AC66:$AC$74)","v":""},{"$f":"Noblanks($AD66:AD$74)","v":""},null,"","",0,0,-60,-60,"",""]
[null,null,null,"All other giving/voluntary receipts",null,"N",null,null,null,null,"Administration Costs",null,"N",null,null,null,null,null,null,null,null,null,null,null,null,null,0,0,"","",{"$f":"Noblanks(AC67:$AC$74)","v":""},{"$f":"Noblanks($AD67:AD$74)","v":""},null,"","",0,0,-61,-61,"",""]
[null,null,null,"All other giving/voluntary receipts",null,"N",null,null,null,null,"Administration Costs",null,"N",null,null,null,null,null,null,null,null,null,null,null,null,null,0,0,"","",{"$f":"Noblanks(AC68:$AC$74)","v":""},{"$f":"Noblanks($AD68:AD$74)","v":""},null,"","",0,0,-62,-62,"",""]
[null,null,null,"All other giving/voluntary receipts",null,"N",null,null,null,null,"Administration Costs",null,null,null,null,null,null,null,null,null,null,null,null,null,null,null,0,0,"","",{"$f":"Noblanks(AC69:$AC$74)","v":""},{"$f":"Noblanks($AD69:AD$74)","v":""},null,"",""]
[null,null,null,"All other giving/voluntary receipts",null,"N",null,null,null,null,"Administration Costs",null,null,null,null,null,null,null,null,null,null,null,null,null,null,null,0,0,"","",{"$f":"Noblanks(AC70:$AC$74)","v":""},{"$f":"Noblanks($AD70:AD$74)","v":""},null,"",""]
[null,null,null,"All other giving/voluntary receipts",null,"N",null,null,null,null,"Administration Costs",null,null,null,null,null,null,null,null,null,null,null,null,null,null,null,{"$f":"IF(A71=\"YES\",1,0)","v":0},0,"",{"$f":"IF(AB71=1,I71,\"\")","v":""},{"$f":"Noblanks(AC71:$AC$74)","v":""},{"$f":"Noblanks($AD71:AD$74)","v":""},null,{"$f":"listunique($AE$6:$AE$74)","v":""},{"$f":"listunique($AF$6:$AF$74)","v":""}]
[null,null,null,"All other giving/voluntary receipts",null,"N",null,null,null,null,"Administration Costs",null,null,null,null,null,null,null,null,null,null,null,null,null,null,null,0,0,{"$f":"IF(AA72=1,B72,\"\")","v":""},{"$f":"IF(AB72=1,I72,\"\")","v":""},{"$f":"Noblanks(AC72:$AC$74)","v":""},{"$f":"Noblanks($AD72:AD$74)","v":""},null,{"$f":"listunique($AE$6:$AE$74)","v":""},{"$f":"listunique($AF$6:$AF$74)","v":""}]
[null,null,null,"All other giving/voluntary receipts",null,"N",null,null,null,null,"Administration Costs",null,null,null,null,null,null,null,null,null,null,null,null,null,null,null,0,0,{"$f":"IF(AA73=1,B73,\"\")","v":""},{"$f":"IF(AB73=1,I73,\"\")","v":""},{"$f":"Noblanks(AC73:$AC$74)","v":""},{"$f":"Noblanks($AD73:AD$74)","v":""},null,{"$f":"listunique($AE$6:$AE$74)","v":""},{"$f":"listunique($AF$6:$AF$74)","v":""}]
[null,null,null,"All other giving/voluntary receipts",null,null,null,null,null,null,"Administration Costs",null,null,null,null,null,null,null,null,null,null,null,null,null,null,null,0,0,{"$f":"IF(AA74=1,B74,\"\")","v":""},null,{"$f":"Noblanks(AC74:$AC$74)","v":""},{"$f":"Noblanks($AD74:AD$74)","v":""},null,{"$f":"listunique($AE$6:$AE$74)","v":""},{"$f":"listunique($AF$6:$AF$74)","v":""}]
[null,null,null,"All other giving/voluntary receipts",null,null,null,null,null,null,"Administration Costs",null,null,null,null,null,null,null,null,null,null,null,null,null,null,null,0,0]
[null,null,null,"All other giving/voluntary receipts",null,null,null,null,null,null,"Administration Costs",null,null,null,null,null,null,null,null,null,null,null,null,null,null,null,0,0]
[null,null,null,"All other giving/voluntary receipts",null,null,null,null,null,null,"Administration Costs",null,null,null,null,null,null,null,null,null,null,null,null,null,null,null,0,0]
[null,null,null,"All other giving/voluntary receipts",null,null,null,null,null,null,"Administration Costs",null,null,null,null,null,null,null,null,null,null,null,null,null,null,null,0,0]
[null,null,null,"All other giving/voluntary receipts",null,null,null,null,null,null,"Administration Costs",null,null,null,null,null,null,null,null,null,null,null,null,null,null,null,0,0]
[null,null,null,"All other giving/voluntary receipts",null,null,null,null,null,null,"Administration Costs",null,null,null,null,null,null,null,null,null,null,null,null,null,null,null,0,0,null,""]
[null,null,null,"All other giving/voluntary receipts",null,null,null,null,null,null,"Administration Costs",null,null,null,null,null,null,null,null,null,null,null,null,null,null,null,0,0]
[null,null,null,"All other giving/voluntary receipts",null,null,null,null,null,null,"Administration Costs",null,null,null,null,null,null,null,null,null,null,null,null,null,null,null,0,0]
[null,null,null,"All other giving/voluntary receipts",null,null,null,null,null,null,"Administration Costs",null,null,null,null,null,null,null,null,null,null,null,null,null,null,null,0,0]
[null,null,null,"All other giving/voluntary receipts",null,null,null,null,null,null,"Administration Costs",null,null,null,null,null,null,null,null,null,null,null,null,null,null,null,0,0]
[null,null,null,"All other giving/voluntary receipts",null,null,null,null,null,null,null,null,null,null,null,null,null,null,null,null,null,null,null,null,null,null,0]
[null,null,null,"All other giving/voluntary receipts",null,null,null,null,null,null,null,null,null,null,null,null,null,null,null,null,null,null,null,null,null,null,0]
[null,null,null,"All other giving/voluntary receipts",null,null,null,null,null,null,null,null,null,null,null,null,null,null,null,null,null,null,null,null,null,null,0]
[null,null,null,"All other giving/voluntary receipts",null,null,null,null,null,null,null,null,null,null,null,null,null,null,null,null,null,null,null,null,null,null,0]
[null,null,null,"All other giving/voluntary receipts",null,null,null,null,null,null,null,null,null,null,null,null,null,null,null,null,null,null,null,null,null,null,0]
[null,null,null,"All other giving/voluntary receipts",null,null,null,null,null,null,null,null,null,null,null,null,null,null,null,null,null,null,null,null,null,null,0]
[null,null,null,"All other giving/voluntary receipts",null,null,null,null,null,null,null,null,null,null,null,null,null,null,null,null,null,null,null,null,null,null,0]
[null,null,null,"All other giving/voluntary receipts",null,null,null,null,null,null,null,null,null,null,null,null,null,null,null,null,null,null,null,null,null,null,{"$f":"IF(A92=\"YES\",1,0)","v":0}]
[null,null,"All other giving/voluntary receipts","Administration Costs"]
[null,null,"Activites for generating funds","Building Work and Repairs"]
[null,null,"Church Activities","Church Running Expenses"]
[null,null,"Investment Income","Clergy and Staffing Costs"]
[null,null,"Gift Aid Recovered","Costs of Generating Funds"]
[null,null,"Grant Income","Mission Giving and Donations"]
[null,null,"Collections at Services","Other Expenditure"]
[null,null,"Legacies Received","Parish Share"]
[null,null,"Other Income"]
[null,null,"Planned Giving"]
[]
[]
[]
[]
[]
[]
[]
[]
[]
[]
[]
[]
[]
[]
[]
[]
[]
[]
[]
[]
[]
[]
[]
[]
[]
[]
[]
[]
[]
[]
[]
[]
[]
[]
[null,null,null,null,null,null,null,null,null,null,null,null,null,null,null,null,null,null,null,null,null,null,null,null,null,null,{"$f":"Noblanks($AC$6:$AC$63)","v":""}]
[null,null,null,null,null,null,null,null,null,null,null,null,null,null,null,null,null,null,null,null,null,null,null,null,null,null,""]
[null,null,null,null,null,null,null,null,null,null,null,null,null,null,null,null,null,null,null,null,null,null,null,null,null,null,""]
[null,null,null,null,null,null,null,null,null,null,null,null,null,null,null,null,null,null,null,null,null,null,null,null,null,null,""]
[null,null,null,null,null,null,null,null,null,null,null,null,null,null,null,null,null,null,null,null,null,null,null,null,null,null,""]
[null,null,null,null,null,null,null,null,null,null,null,null,null,null,null,null,null,null,null,null,null,null,null,null,null,null,""]
[null,null,null,null,null,null,null,null,null,null,null,null,null,null,null,null,null,null,null,null,null,null,null,null,null,null,""]
[null,null,null,null,null,null,null,null,null,null,null,null,null,null,null,null,null,null,null,null,null,null,null,null,null,null,""]
[null,null,null,null,null,null,null,null,null,null,null,null,null,null,null,null,null,null,null,null,null,null,null,null,null,null,""]
[null,null,null,null,null,null,null,null,null,null,null,null,null,null,null,null,null,null,null,null,null,null,null,null,null,null,""]
[null,null,null,null,null,null,null,null,null,null,null,null,null,null,null,null,null,null,null,null,null,null,null,null,null,null,""]

{"sheet":"WorkingP","index":5,"n_rows":85,"n_cols":44,"rows_kept":85,"cut":false,"hidden":true,"merged":[]}
[]
[]
[null,null,null,{"$f":"'Bank and Fund Details'!B15","v":"General Fund"},{"$f":"'Bank and Fund Details'!B16","v":"Petty Cash"},{"$f":"'Bank and Fund Details'!B17","v":"Fund A"},{"$f":"'Bank and Fund Details'!B18","v":"Fund B"},{"$f":"'Bank and Fund Details'!B19","v":"Fund C"},{"$f":"'Bank and Fund Details'!B20","v":"Fund D"},{"$f":"'Bank and Fund Details'!B21","v":"Fund E"},{"$f":"'Bank and Fund Details'!B22","v":"Fund F"},{"$f":"'Bank and Fund Details'!B23","v":"Fund G"},{"$f":"'Bank and Fund Details'!B24","v":"Fund H"},{"$f":"'Bank and Fund Details'!B25","v":"Fund I"},{"$f":"'Bank and Fund Details'!B26","v":"Fund J"},{"$f":"'Bank and Fund Details'!B27","v":"Fund K"},{"$f":"'Bank and Fund Details'!B28","v":"Fund L"},{"$f":"'Bank and Fund Details'!B29","v":"Fund M"},{"$f":"'Bank and Fund Details'!B30","v":"Fund N"},{"$f":"'Bank and Fund Details'!B31","v":"Fund O"},{"$f":"'Bank and Fund Details'!B32","v":"Fund P"},{"$f":"'Bank and Fund Details'!B33","v":"Fund Q"},{"$f":"'Bank and Fund Details'!B34","v":"Fund R"},{"$f":"'Bank and Fund Details'!B35","v":"Fund S"},{"$f":"'Bank and Fund Details'!B36","v":"Fund T"},{"$f":"'Bank and Fund Details'!B39","v":"Investment A"},{"$f":"'Bank and Fund Details'!B40","v":"Investment B"},{"$f":"'Bank and Fund Details'!B41","v":"Investment C"},{"$f":"'Bank and Fund Details'!B42","v":"Investment D"},{"$f":"'Bank and Fund Details'!B43","v":"Investment E"}]
[null,null,null,{"$f":"'Bank and Fund Details'!C15","v":"Unrestricted"},{"$f":"'Bank and Fund Details'!C16","v":"Unrestricted"},{"$f":"'Bank and Fund Details'!C17","v":"Unrestricted"},{"$f":"'Bank and Fund Details'!C18","v":"Unrestricted"},{"$f":"'Bank and Fund Details'!C19","v":"Unrestricted"},{"$f":"'Bank and Fund Details'!C20","v":"Unrestricted"},{"$f":"'Bank and Fund Details'!C21","v":"Unrestricted"},{"$f":"'Bank and Fund Details'!C22","v":"Unrestricted"},{"$f":"'Bank and Fund Details'!C23","v":"Unrestricted"},{"$f":"'Bank and Fund Details'!C24","v":"Unrestricted"},{"$f":"'Bank and Fund Details'!C25","v":"Unrestricted"},{"$f":"'Bank and Fund Details'!C26","v":"Unrestricted"},{"$f":"'Bank and Fund Details'!C27","v":"Unrestricted"},{"$f":"'Bank and Fund Details'!C28","v":"Unrestricted"},{"$f":"'Bank and Fund Details'!C29","v":"Unrestricted"},{"$f":"'Bank and Fund Details'!C30","v":"Unrestricted"},{"$f":"'Bank and Fund Details'!C31","v":"Unrestricted"},{"$f":"'Bank and Fund Details'!C32","v":"Unrestricted"},{"$f":"'Bank and Fund Details'!C33","v":"Unrestricted"},{"$f":"'Bank and Fund Details'!C34","v":"Unrestricted"},{"$f":"'Bank and Fund Details'!C35","v":"Unrestricted"},{"$f":"'Bank and Fund Details'!C36","v":"Unrestricted"},{"$f":"'Bank and Fund Details'!C39","v":"Unrestricted"},{"$f":"'Bank and Fund Details'!C40","v":"Unrestricted"},{"$f":"'Bank and Fund Details'!C41","v":"Unrestricted"},{"$f":"'Bank and Fund Details'!C42","v":"Unrestricted"},{"$f":"'Bank and Fund Details'!C43","v":"Unrestricted"},null,"Unrestricted","Designated","Restricted","Endowment"]
[{"$f":"Descriptions!I6","v":"Administrator Parish/Benefice"},{"$f":"Descriptions!K6","v":"Clergy and Staffing Costs"},{"$f":"Descriptions!L6","v":"Salaries, wages and honoraria"},{"$f":"SUMPRODUCT(--(Payments!$C$5:$C$1355=A5),--(Payments!$D$5:$D$1355=$D$3),Payments!$E$5:$E$1355)","v":0},{"$f":"SUMPRODUCT(--(Payments!$C$5:$C$1355=A5),--(Payments!$D$5:$D$1355=$E$3),Payments!$E$5:$E$1355)","v":0},{"$f":"SUMPRODUCT(--(Payments!$C$5:$C$1355=A5),--(Payments!$D$5:$D$1355=$F$3),Payments!$E$5:$E$1355)","v":0},{"$f":"SUMPRODUCT(--(Payments!$C$5:$C$1355=A5),--(Payments!$D$5:$D$1355=$G$3),Payments!$E$5:$E$1355)","v":0},{"$f":"SUMPRODUCT(--(Payments!$C$5:$C$1355=A5),--(Payments!$D$5:$D$1355=$H$3),Payments!$E$5:$E$1355)","v":0},{"$f":"SUMPRODUCT(--(Payments!$C$5:$C$1355=A5),--(Payments!$D$5:$D$1355=$I$3),Payments!$E$5:$E$1355)","v":0},{"$f":"SUMPRODUCT(--(Payments!$C$5:$C$1355=A5),--(Payments!$D$5:$D$1355=$J$3),Payments!$E$5:$E$1355)","v":0},{"$f":"SUMPRODUCT(--(Payments!$C$5:$C$1355=A5),--(Payments!$D$5:$D$1355=$K$3),Payments!$E$5:$E$1355)","v":0},{"$f":"SUMPRODUCT(--(Payments!$C$5:$C$1355=A5),--(Payments!$D$5:$D$1355=$L$3),Payments!$E$5:$E$1355)","v":0},{"$f":"SUMPRODUCT(--(Payments!$C$5:$C$1355=A5),--(Payments!$D$5:$D$1355=$M$3),Payments!$E$5:$E$1355)","v":0},{"$f":"SUMPRODUCT(--(Payments!$C$5:$C$1355=A5),--(Payments!$D$5:$D$1355=$N$3),Payments!$E$5:$E$1355)","v":0},{"$f":"SUMPRODUCT(--(Payments!$C$5:$C$1355=A5),--(Payments!$D$5:$D$1355=$O$3),Payments!$E$5:$E$1355)","v":0},{"$f":"SUMPRODUCT(--(Payments!$C$5:$C$1355=A5),--(Payments!$D$5:$D$1355=$P$3),Payments!$E$5:$E$1355)","v":0},{"$f":"SUMPRODUCT(--(Payments!$C$5:$C$1355=A5),--(Payments!$D$5:$D$1355=$Q$3),Payments!$E$5:$E$1355)","v":0},{"$f":"SUMPRODUCT(--(Payments!$C$5:$C$1355=A5),--(Payments!$D$5:$D$1355=$R$3),Payments!$E$5:$E$1355)","v":0},{"$f":"SUMPRODUCT(--(Payments!$C$5:$C$1355=A5),--(Payments!$D$5:$D$1355=$S$3),Payments!$E$5:$E$1355)","v":0},{"$f":"SUMPRODUCT(--(Payments!$C$5:$C$1355=A5),--(Payments!$D$5:$D$1355=$T$3),Payments!$E$5:$E$1355)","v":0},{"$f":"SUMPRODUCT(--(Payments!$C$5:$C$1355=A5),--(Payments!$D$5:$D$1355=$U$3),Payments!$E$5:$E$1355)","v":0},{"$f":"SUMPRODUCT(--(Payments!$C$5:$C$1355=A5),--(Payments!$D$5:$D$1355=$V$3),Payments!$E$5:$E$1355)","v":0},{"$f":"SUMPRODUCT(--(Payments!$C$5:$C$1355=A5),--(Payments!$D$5:$D$1355=$W$3),Payments!$E$5:$E$1355)","v":0},{"$f":"SUMPRODUCT(--(Payments!$C$5:$C$1355=A5),--(Payments!$D$5:$D$1355=$X$3),Payments!$E$5:$E$1355)","v":0},{"$f":"SUMPRODUCT(--(Payments!$C$5:$C$1355=A5),--(Payments!$D$5:$D$1355=$Y$3),Payments!$E$5:$E$1355)","v":0},{"$f":"SUMPRODUCT(--(Payments!$C$5:$C$1355=A5),--(Payments!$D$5:$D$1355=$Z$3),Payments!$E$5:$E$1355)","v":0},{"$f":"SUMPRODUCT(--(Payments!$C$5:$C$1355=A5),--(Payments!$D$5:$D$1355=$AA$3),Payments!$E$5:$E$1355)","v":0},{"$f":"SUMPRODUCT(--(Payments!$C$5:$C$1355=A5),--(Payments!$D$5:$D$1355=$AB$3),Payments!$E$5:$E$1355)","v":0},{"$f":"SUMPRODUCT(--(Payments!$C$5:$C$1355=A5),--(Payments!$D$5:$D$1355=$AC$3),Payments!$E$5:$E$1355)","v":0},{"$f":"SUMPRODUCT(--(Payments!$C$5:$C$1355=A5),--(Payments!$D$5:$D$1355=$AD$3),Payments!$E$5:$E$1355)","v":0},null,{"$f":"SUMPRODUCT(($D$4:$AD$4=$AF$4)*(D5:AD5))","v":0},{"$f":"SUMPRODUCT(($D$4:$AD$4=$AG$4)*(D5:AD5))","v":0},{"$f":"SUMPRODUCT(($D$4:$AD$4=$AH$4)*(D5:AD5))","v":0},{"$f":"SUMPRODUCT(($D$4:$AD$4=$AI$4)*(D5:AD5))","v":0}]
[{"$f":"Descriptions!I7","v":"Bank Charges"},{"$f":"Descriptions!K7","v":"Administration Costs"},{"$f":"Descriptions!L7","v":"Cost of trading"},{"$f":"SUMPRODUCT(--(Payments!$C$5:$C$1355=A6),--(Payments!$D$5:$D$1355=$D$3),Payments!$E$5:$E$1355)","v":0},{"$f":"SUMPRODUCT(--(Payments!$C$5:$C$1355=A6),--(Payments!$D$5:$D$1355=$E$3),Payments!$E$5:$E$1355)","v":0},{"$f":"SUMPRODUCT(--(Payments!$C$5:$C$1355=A6),--(Payments!$D$5:$D$1355=$F$3),Payments!$E$5:$E$1355)","v":0},{"$f":"SUMPRODUCT(--(Payments!$C$5:$C$1355=A6),--(Payments!$D$5:$D$1355=$G$3),Payments!$E$5:$E$1355)","v":0},{"$f":"SUMPRODUCT(--(Payments!$C$5:$C$1355=A6),--(Payments!$D$5:$D$1355=$H$3),Payments!$E$5:$E$1355)","v":0},{"$f":"SUMPRODUCT(--(Payments!$C$5:$C$1355=A6),--(Payments!$D$5:$D$1355=$I$3),Payments!$E$5:$E$1355)","v":0},{"$f":"SUMPRODUCT(--(Payments!$C$5:$C$1355=A6),--(Payments!$D$5:$D$1355=$J$3),Payments!$E$5:$E$1355)","v":0},{"$f":"SUMPRODUCT(--(Payments!$C$5:$C$1355=A6),--(Payments!$D$5:$D$1355=$K$3),Payments!$E$5:$E$1355)","v":0},{"$f":"SUMPRODUCT(--(Payments!$C$5:$C$1355=A6),--(Payments!$D$5:$D$1355=$L$3),Payments!$E$5:$E$1355)","v":0},{"$f":"SUMPRODUCT(--(Payments!$C$5:$C$1355=A6),--(Payments!$D$5:$D$1355=$M$3),Payments!$E$5:$E$1355)","v":0},{"$f":"SUMPRODUCT(--(Payments!$C$5:$C$1355=A6),--(Payments!$D$5:$D$1355=$N$3),Payments!$E$5:$E$1355)","v":0},{"$f":"SUMPRODUCT(--(Payments!$C$5:$C$1355=A6),--(Payments!$D$5:$D$1355=$O$3),Payments!$E$5:$E$1355)","v":0},{"$f":"SUMPRODUCT(--(Payments!$C$5:$C$1355=A6),--(Payments!$D$5:$D$1355=$P$3),Payments!$E$5:$E$1355)","v":0},{"$f":"SUMPRODUCT(--(Payments!$C$5:$C$1355=A6),--(Payments!$D$5:$D$1355=$Q$3),Payments!$E$5:$E$1355)","v":0},{"$f":"SUMPRODUCT(--(Payments!$C$5:$C$1355=A6),--(Payments!$D$5:$D$1355=$R$3),Payments!$E$5:$E$1355)","v":0},{"$f":"SUMPRODUCT(--(Payments!$C$5:$C$1355=A6),--(Payments!$D$5:$D$1355=$S$3),Payments!$E$5:$E$1355)","v":0},{"$f":"SUMPRODUCT(--(Payments!$C$5:$C$1355=A6),--(Payments!$D$5:$D$1355=$T$3),Payments!$E$5:$E$1355)","v":0},{"$f":"SUMPRODUCT(--(Payments!$C$5:$C$1355=A6),--(Payments!$D$5:$D$1355=$U$3),Payments!$E$5:$E$1355)","v":0},{"$f":"SUMPRODUCT(--(Payments!$C$5:$C$1355=A6),--(Payments!$D$5:$D$1355=$V$3),Payments!$E$5:$E$1355)","v":0},{"$f":"SUMPRODUCT(--(Payments!$C$5:$C$1355=A6),--(Payments!$D$5:$D$1355=$W$3),Payments!$E$5:$E$1355)","v":0},{"$f":"SUMPRODUCT(--(Payments!$C$5:$C$1355=A6),--(Payments!$D$5:$D$1355=$X$3),Payments!$E$5:$E$1355)","v":0},{"$f":"SUMPRODUCT(--(Payments!$C$5:$C$1355=A6),--(Payments!$D$5:$D$1355=$Y$3),Payments!$E$5:$E$1355)","v":0},{"$f":"SUMPRODUCT(--(Payments!$C$5:$C$1355=A6),--(Payments!$D$5:$D$1355=$Z$3),Payments!$E$5:$E$1355)","v":0},{"$f":"SUMPRODUCT(--(Payments!$C$5:$C$1355=A6),--(Payments!$D$5:$D$1355=$AA$3),Payments!$E$5:$E$1355)","v":0},{"$f":"SUMPRODUCT(--(Payments!$C$5:$C$1355=A6),--(Payments!$D$5:$D$1355=$AB$3),Payments!$E$5:$E$1355)","v":0},{"$f":"SUMPRODUCT(--(Payments!$C$5:$C$1355=A6),--(Payments!$D$5:$D$1355=$AC$3),Payments!$E$5:$E$1355)","v":0},{"$f":"SUMPRODUCT(--(Payments!$C$5:$C$1355=A6),--(Payments!$D$5:$D$1355=$AD$3),Payments!$E$5:$E$1355)","v":0},null,0,0,0,0]
[{"$f":"Descriptions!I8","v":"Charities - Christian Relief"},{"$f":"Descriptions!K8","v":"Mission Giving and Donations"},{"$f":"Descriptions!L8","v":"Mission giving and donations"},{"$f":"SUMPRODUCT(--(Payments!$C$5:$C$1355=A7),--(Payments!$D$5:$D$1355=$D$3),Payments!$E$5:$E$1355)","v":0},{"$f":"SUMPRODUCT(--(Payments!$C$5:$C$1355=A7),--(Payments!$D$5:$D$1355=$E$3),Payments!$E$5:$E$1355)","v":0},{"$f":"SUMPRODUCT(--(Payments!$C$5:$C$1355=A7),--(Payments!$D$5:$D$1355=$F$3),Payments!$E$5:$E$1355)","v":0},{"$f":"SUMPRODUCT(--(Payments!$C$5:$C$1355=A7),--(Payments!$D$5:$D$1355=$G$3),Payments!$E$5:$E$1355)","v":0},{"$f":"SUMPRODUCT(--(Payments!$C$5:$C$1355=A7),--(Payments!$D$5:$D$1355=$H$3),Payments!$E$5:$E$1355)","v":0},{"$f":"SUMPRODUCT(--(Payments!$C$5:$C$1355=A7),--(Payments!$D$5:$D$1355=$I$3),Payments!$E$5:$E$1355)","v":0},{"$f":"SUMPRODUCT(--(Payments!$C$5:$C$1355=A7),--(Payments!$D$5:$D$1355=$J$3),Payments!$E$5:$E$1355)","v":0},{"$f":"SUMPRODUCT(--(Payments!$C$5:$C$1355=A7),--(Payments!$D$5:$D$1355=$K$3),Payments!$E$5:$E$1355)","v":0},{"$f":"SUMPRODUCT(--(Payments!$C$5:$C$1355=A7),--(Payments!$D$5:$D$1355=$L$3),Payments!$E$5:$E$1355)","v":0},{"$f":"SUMPRODUCT(--(Payments!$C$5:$C$1355=A7),--(Payments!$D$5:$D$1355=$M$3),Payments!$E$5:$E$1355)","v":0},{"$f":"SUMPRODUCT(--(Payments!$C$5:$C$1355=A7),--(Payments!$D$5:$D$1355=$N$3),Payments!$E$5:$E$1355)","v":0},{"$f":"SUMPRODUCT(--(Payments!$C$5:$C$1355=A7),--(Payments!$D$5:$D$1355=$O$3),Payments!$E$5:$E$1355)","v":0},{"$f":"SUMPRODUCT(--(Payments!$C$5:$C$1355=A7),--(Payments!$D$5:$D$1355=$P$3),Payments!$E$5:$E$1355)","v":0},{"$f":"SUMPRODUCT(--(Payments!$C$5:$C$1355=A7),--(Payments!$D$5:$D$1355=$Q$3),Payments!$E$5:$E$1355)","v":0},{"$f":"SUMPRODUCT(--(Payments!$C$5:$C$1355=A7),--(Payments!$D$5:$D$1355=$R$3),Payments!$E$5:$E$1355)","v":0},{"$f":"SUMPRODUCT(--(Payments!$C$5:$C$1355=A7),--(Payments!$D$5:$D$1355=$S$3),Payments!$E$5:$E$1355)","v":0},{"$f":"SUMPRODUCT(--(Payments!$C$5:$C$1355=A7),--(Payments!$D$5:$D$1355=$T$3),Payments!$E$5:$E$1355)","v":0},{"$f":"SUMPRODUCT(--(Payments!$C$5:$C$1355=A7),--(Payments!$D$5:$D$1355=$U$3),Payments!$E$5:$E$1355)","v":0},{"$f":"SUMPRODUCT(--(Payments!$C$5:$C$1355=A7),--(Payments!$D$5:$D$1355=$V$3),Payments!$E$5:$E$1355)","v":0},{"$f":"SUMPRODUCT(--(Payments!$C$5:$C$1355=A7),--(Payments!$D$5:$D$1355=$W$3),Payments!$E$5:$E$1355)","v":0},{"$f":"SUMPRODUCT(--(Payments!$C$5:$C$1355=A7),--(Payments!$D$5:$D$1355=$X$3),Payments!$E$5:$E$1355)","v":0},{"$f":"SUMPRODUCT(--(Payments!$C$5:$C$1355=A7),--(Payments!$D$5:$D$1355=$Y$3),Payments!$E$5:$E$1355)","v":0},{"$f":"SUMPRODUCT(--(Payments!$C$5:$C$1355=A7),--(Payments!$D$5:$D$1355=$Z$3),Payments!$E$5:$E$1355)","v":0},{"$f":"SUMPRODUCT(--(Payments!$C$5:$C$1355=A7),--(Payments!$D$5:$D$1355=$AA$3),Payments!$E$5:$E$1355)","v":0},{"$f":"SUMPRODUCT(--(Payments!$C$5:$C$1355=A7),--(Payments!$D$5:$D$1355=$AB$3),Payments!$E$5:$E$1355)","v":0},{"$f":"SUMPRODUCT(--(Payments!$C$5:$C$1355=A7),--(Payments!$D$5:$D$1355=$AC$3),Payments!$E$5:$E$1355)","v":0},{"$f":"SUMPRODUCT(--(Payments!$C$5:$C$1355=A7),--(Payments!$D$5:$D$1355=$AD$3),Payments!$E$5:$E$1355)","v":0},null,0,0,0,0,null,null,null,null,null,"Unrestricted","Designated","Restricted","Endowment"]
[{"$f":"Descriptions!I9","v":"Charities - Home (UK)"},{"$f":"Descriptions!K9","v":"Mission Giving and Donations"},{"$f":"Descriptions!L9","v":"Mission giving and donations"},{"$f":"SUMPRODUCT(--(Payments!$C$5:$C$1355=A8),--(Payments!$D$5:$D$1355=$D$3),Payments!$E$5:$E$1355)","v":0},{"$f":"SUMPRODUCT(--(Payments!$C$5:$C$1355=A8),--(Payments!$D$5:$D$1355=$E$3),Payments!$E$5:$E$1355)","v":0},{"$f":"SUMPRODUCT(--(Payments!$C$5:$C$1355=A8),--(Payments!$D$5:$D$1355=$F$3),Payments!$E$5:$E$1355)","v":0},{"$f":"SUMPRODUCT(--(Payments!$C$5:$C$1355=A8),--(Payments!$D$5:$D$1355=$G$3),Payments!$E$5:$E$1355)","v":0},{"$f":"SUMPRODUCT(--(Payments!$C$5:$C$1355=A8),--(Payments!$D$5:$D$1355=$H$3),Payments!$E$5:$E$1355)","v":0},{"$f":"SUMPRODUCT(--(Payments!$C$5:$C$1355=A8),--(Payments!$D$5:$D$1355=$I$3),Payments!$E$5:$E$1355)","v":0},{"$f":"SUMPRODUCT(--(Payments!$C$5:$C$1355=A8),--(Payments!$D$5:$D$1355=$J$3),Payments!$E$5:$E$1355)","v":0},{"$f":"SUMPRODUCT(--(Payments!$C$5:$C$1355=A8),--(Payments!$D$5:$D$1355=$K$3),Payments!$E$5:$E$1355)","v":0},{"$f":"SUMPRODUCT(--(Payments!$C$5:$C$1355=A8),--(Payments!$D$5:$D$1355=$L$3),Payments!$E$5:$E$1355)","v":0},{"$f":"SUMPRODUCT(--(Payments!$C$5:$C$1355=A8),--(Payments!$D$5:$D$1355=$M$3),Payments!$E$5:$E$1355)","v":0},{"$f":"SUMPRODUCT(--(Payments!$C$5:$C$1355=A8),--(Payments!$D$5:$D$1355=$N$3),Payments!$E$5:$E$1355)","v":0},{"$f":"SUMPRODUCT(--(Payments!$C$5:$C$1355=A8),--(Payments!$D$5:$D$1355=$O$3),Payments!$E$5:$E$1355)","v":0},{"$f":"SUMPRODUCT(--(Payments!$C$5:$C$1355=A8),--(Payments!$D$5:$D$1355=$P$3),Payments!$E$5:$E$1355)","v":0},{"$f":"SUMPRODUCT(--(Payments!$C$5:$C$1355=A8),--(Payments!$D$5:$D$1355=$Q$3),Payments!$E$5:$E$1355)","v":0},{"$f":"SUMPRODUCT(--(Payments!$C$5:$C$1355=A8),--(Payments!$D$5:$D$1355=$R$3),Payments!$E$5:$E$1355)","v":0},{"$f":"SUMPRODUCT(--(Payments!$C$5:$C$1355=A8),--(Payments!$D$5:$D$1355=$S$3),Payments!$E$5:$E$1355)","v":0},{"$f":"SUMPRODUCT(--(Payments!$C$5:$C$1355=A8),--(Payments!$D$5:$D$1355=$T$3),Payments!$E$5:$E$1355)","v":0},{"$f":"SUMPRODUCT(--(Payments!$C$5:$C$1355=A8),--(Payments!$D$5:$D$1355=$U$3),Payments!$E$5:$E$1355)","v":0},{"$f":"SUMPRODUCT(--(Payments!$C$5:$C$1355=A8),--(Payments!$D$5:$D$1355=$V$3),Payments!$E$5:$E$1355)","v":0},{"$f":"SUMPRODUCT(--(Payments!$C$5:$C$1355=A8),--(Payments!$D$5:$D$1355=$W$3),Payments!$E$5:$E$1355)","v":0},{"$f":"SUMPRODUCT(--(Payments!$C$5:$C$1355=A8),--(Payments!$D$5:$D$1355=$X$3),Payments!$E$5:$E$1355)","v":0},{"$f":"SUMPRODUCT(--(Payments!$C$5:$C$1355=A8),--(Payments!$D$5:$D$1355=$Y$3),Payments!$E$5:$E$1355)","v":0},{"$f":"SUMPRODUCT(--(Payments!$C$5:$C$1355=A8),--(Payments!$D$5:$D$1355=$Z$3),Payments!$E$5:$E$1355)","v":0},{"$f":"SUMPRODUCT(--(Payments!$C$5:$C$1355=A8),--(Payments!$D$5:$D$1355=$AA$3),Payments!$E$5:$E$1355)","v":0},{"$f":"SUMPRODUCT(--(Payments!$C$5:$C$1355=A8),--(Payments!$D$5:$D$1355=$AB$3),Payments!$E$5:$E$1355)","v":0},{"$f":"SUMPRODUCT(--(Payments!$C$5:$C$1355=A8),--(Payments!$D$5:$D$1355=$AC$3),Payments!$E$5:$E$1355)","v":0},{"$f":"SUMPRODUCT(--(Payments!$C$5:$C$1355=A8),--(Payments!$D$5:$D$1355=$AD$3),Payments!$E$5:$E$1355)","v":0},null,0,0,0,0,null,null,22,"Church expenses: Mission and evangelism costs",null,{"$f":"SUMPRODUCT(($C$5:$C$83=AM8)*($AF$5:$AF$83))","v":0},{"$f":"SUMPRODUCT(($C$5:$C$83=AM8)*($AG$5:$AG$83))","v":0},{"$f":"SUMPRODUCT(($C$5:$C$83=AM8)*($AH$5:$AH$83))","v":0},{"$f":"SUMPRODUCT(($C$5:$C$83=AM8)*($AI$5:$AI$83))","v":0}]
[{"$f":"Descriptions!I10","v":"Charities - Overseas"},{"$f":"Descriptions!K10","v":"Mission Giving and Donations"},{"$f":"Descriptions!L10","v":"Mission giving and donations"},{"$f":"SUMPRODUCT(--(Payments!$C$5:$C$1355=A9),--(Payments!$D$5:$D$1355=$D$3),Payments!$E$5:$E$1355)","v":0},{"$f":"SUMPRODUCT(--(Payments!$C$5:$C$1355=A9),--(Payments!$D$5:$D$1355=$E$3),Payments!$E$5:$E$1355)","v":0},{"$f":"SUMPRODUCT(--(Payments!$C$5:$C$1355=A9),--(Payments!$D$5:$D$1355=$F$3),Payments!$E$5:$E$1355)","v":0},{"$f":"SUMPRODUCT(--(Payments!$C$5:$C$1355=A9),--(Payments!$D$5:$D$1355=$G$3),Payments!$E$5:$E$1355)","v":0},{"$f":"SUMPRODUCT(--(Payments!$C$5:$C$1355=A9),--(Payments!$D$5:$D$1355=$H$3),Payments!$E$5:$E$1355)","v":0},{"$f":"SUMPRODUCT(--(Payments!$C$5:$C$1355=A9),--(Payments!$D$5:$D$1355=$I$3),Payments!$E$5:$E$1355)","v":0},{"$f":"SUMPRODUCT(--(Payments!$C$5:$C$1355=A9),--(Payments!$D$5:$D$1355=$J$3),Payments!$E$5:$E$1355)","v":0},{"$f":"SUMPRODUCT(--(Payments!$C$5:$C$1355=A9),--(Payments!$D$5:$D$1355=$K$3),Payments!$E$5:$E$1355)","v":0},{"$f":"SUMPRODUCT(--(Payments!$C$5:$C$1355=A9),--(Payments!$D$5:$D$1355=$L$3),Payments!$E$5:$E$1355)","v":0},{"$f":"SUMPRODUCT(--(Payments!$C$5:$C$1355=A9),--(Payments!$D$5:$D$1355=$M$3),Payments!$E$5:$E$1355)","v":0},{"$f":"SUMPRODUCT(--(Payments!$C$5:$C$1355=A9),--(Payments!$D$5:$D$1355=$N$3),Payments!$E$5:$E$1355)","v":0},{"$f":"SUMPRODUCT(--(Payments!$C$5:$C$1355=A9),--(Payments!$D$5:$D$1355=$O$3),Payments!$E$5:$E$1355)","v":0},{"$f":"SUMPRODUCT(--(Payments!$C$5:$C$1355=A9),--(Payments!$D$5:$D$1355=$P$3),Payments!$E$5:$E$1355)","v":0},{"$f":"SUMPRODUCT(--(Payments!$C$5:$C$1355=A9),--(Payments!$D$5:$D$1355=$Q$3),Payments!$E$5:$E$1355)","v":0},{"$f":"SUMPRODUCT(--(Payments!$C$5:$C$1355=A9),--(Payments!$D$5:$D$1355=$R$3),Payments!$E$5:$E$1355)","v":0},{"$f":"SUMPRODUCT(--(Payments!$C$5:$C$1355=A9),--(Payments!$D$5:$D$1355=$S$3),Payments!$E$5:$E$1355)","v":0},{"$f":"SUMPRODUCT(--(Payments!$C$5:$C$1355=A9),--(Payments!$D$5:$D$1355=$T$3),Payments!$E$5:$E$1355)","v":0},{"$f":"SUMPRODUCT(--(Payments!$C$5:$C$1355=A9),--(Payments!$D$5:$D$1355=$U$3),Payments!$E$5:$E$1355)","v":0},{"$f":"SUMPRODUCT(--(Payments!$C$5:$C$1355=A9),--(Payments!$D$5:$D$1355=$V$3),Payments!$E$5:$E$1355)","v":0},{"$f":"SUMPRODUCT(--(Payments!$C$5:$C$1355=A9),--(Payments!$D$5:$D$1355=$W$3),Payments!$E$5:$E$1355)","v":0},{"$f":"SUMPRODUCT(--(Payments!$C$5:$C$1355=A9),--(Payments!$D$5:$D$1355=$X$3),Payments!$E$5:$E$1355)","v":0},{"$f":"SUMPRODUCT(--(Payments!$C$5:$C$1355=A9),--(Payments!$D$5:$D$1355=$Y$3),Payments!$E$5:$E$1355)","v":0},{"$f":"SUMPRODUCT(--(Payments!$C$5:$C$1355=A9),--(Payments!$D$5:$D$1355=$Z$3),Payments!$E$5:$E$1355)","v":0},{"$f":"SUMPRODUCT(--(Payments!$C$5:$C$1355=A9),--(Payments!$D$5:$D$1355=$AA$3),Payments!$E$5:$E$1355)","v":0},{"$f":"SUMPRODUCT(--(Payments!$C$5:$C$1355=A9),--(Payments!$D$5:$D$1355=$AB$3),Payments!$E$5:$E$1355)","v":0},{"$f":"SUMPRODUCT(--(Payments!$C$5:$C$1355=A9),--(Payments!$D$5:$D$1355=$AC$3),Payments!$E$5:$E$1355)","v":0},{"$f":"SUMPRODUCT(--(Payments!$C$5:$C$1355=A9),--(Payments!$D$5:$D$1355=$AD$3),Payments!$E$5:$E$1355)","v":0},null,0,0,0,0,null,null,23,"Church running expenses (including Governance) ",null,0,{"$f":"SUMPRODUCT(($C$5:$C$83=AM9)*($AG$5:$AG$83))","v":0},{"$f":"SUMPRODUCT(($C$5:$C$83=AM9)*($AH$5:$AH$83))","v":0},{"$f":"SUMPRODUCT(($C$5:$C$83=AM9)*($AI$5:$AI$83))","v":0}]
[{"$f":"Descriptions!I11","v":"Charities - Secular"},{"$f":"Descriptions!K11","v":"Mission Giving and Donations"},{"$f":"Descriptions!L11","v":"Mission giving and donations"},{"$f":"SUMPRODUCT(--(Payments!$C$5:$C$1355=A10),--(Payments!$D$5:$D$1355=$D$3),Payments!$E$5:$E$1355)","v":0},{"$f":"SUMPRODUCT(--(Payments!$C$5:$C$1355=A10),--(Payments!$D$5:$D$1355=$E$3),Payments!$E$5:$E$1355)","v":0},{"$f":"SUMPRODUCT(--(Payments!$C$5:$C$1355=A10),--(Payments!$D$5:$D$1355=$F$3),Payments!$E$5:$E$1355)","v":0},{"$f":"SUMPRODUCT(--(Payments!$C$5:$C$1355=A10),--(Payments!$D$5:$D$1355=$G$3),Payments!$E$5:$E$1355)","v":0},{"$f":"SUMPRODUCT(--(Payments!$C$5:$C$1355=A10),--(Payments!$D$5:$D$1355=$H$3),Payments!$E$5:$E$1355)","v":0},{"$f":"SUMPRODUCT(--(Payments!$C$5:$C$1355=A10),--(Payments!$D$5:$D$1355=$I$3),Payments!$E$5:$E$1355)","v":0},{"$f":"SUMPRODUCT(--(Payments!$C$5:$C$1355=A10),--(Payments!$D$5:$D$1355=$J$3),Payments!$E$5:$E$1355)","v":0},{"$f":"SUMPRODUCT(--(Payments!$C$5:$C$1355=A10),--(Payments!$D$5:$D$1355=$K$3),Payments!$E$5:$E$1355)","v":0},{"$f":"SUMPRODUCT(--(Payments!$C$5:$C$1355=A10),--(Payments!$D$5:$D$1355=$L$3),Payments!$E$5:$E$1355)","v":0},{"$f":"SUMPRODUCT(--(Payments!$C$5:$C$1355=A10),--(Payments!$D$5:$D$1355=$M$3),Payments!$E$5:$E$1355)","v":0},{"$f":"SUMPRODUCT(--(Payments!$C$5:$C$1355=A10),--(Payments!$D$5:$D$1355=$N$3),Payments!$E$5:$E$1355)","v":0},{"$f":"SUMPRODUCT(--(Payments!$C$5:$C$1355=A10),--(Payments!$D$5:$D$1355=$O$3),Payments!$E$5:$E$1355)","v":0},{"$f":"SUMPRODUCT(--(Payments!$C$5:$C$1355=A10),--(Payments!$D$5:$D$1355=$P$3),Payments!$E$5:$E$1355)","v":0},{"$f":"SUMPRODUCT(--(Payments!$C$5:$C$1355=A10),--(Payments!$D$5:$D$1355=$Q$3),Payments!$E$5:$E$1355)","v":0},{"$f":"SUMPRODUCT(--(Payments!$C$5:$C$1355=A10),--(Payments!$D$5:$D$1355=$R$3),Payments!$E$5:$E$1355)","v":0},{"$f":"SUMPRODUCT(--(Payments!$C$5:$C$1355=A10),--(Payments!$D$5:$D$1355=$S$3),Payments!$E$5:$E$1355)","v":0},{"$f":"SUMPRODUCT(--(Payments!$C$5:$C$1355=A10),--(Payments!$D$5:$D$1355=$T$3),Payments!$E$5:$E$1355)","v":0},{"$f":"SUMPRODUCT(--(Payments!$C$5:$C$1355=A10),--(Payments!$D$5:$D$1355=$U$3),Payments!$E$5:$E$1355)","v":0},{"$f":"SUMPRODUCT(--(Payments!$C$5:$C$1355=A10),--(Payments!$D$5:$D$1355=$V$3),Payments!$E$5:$E$1355)","v":0},{"$f":"SUMPRODUCT(--(Payments!$C$5:$C$1355=A10),--(Payments!$D$5:$D$1355=$W$3),Payments!$E$5:$E$1355)","v":0},{"$f":"SUMPRODUCT(--(Payments!$C$5:$C$1355=A10),--(Payments!$D$5:$D$1355=$X$3),Payments!$E$5:$E$1355)","v":0},{"$f":"SUMPRODUCT(--(Payments!$C$5:$C$1355=A10),--(Payments!$D$5:$D$1355=$Y$3),Payments!$E$5:$E$1355)","v":0},{"$f":"SUMPRODUCT(--(Payments!$C$5:$C$1355=A10),--(Payments!$D$5:$D$1355=$Z$3),Payments!$E$5:$E$1355)","v":0},{"$f":"SUMPRODUCT(--(Payments!$C$5:$C$1355=A10),--(Payments!$D$5:$D$1355=$AA$3),Payments!$E$5:$E$1355)","v":0},{"$f":"SUMPRODUCT(--(Payments!$C$5:$C$1355=A10),--(Payments!$D$5:$D$1355=$AB$3),Payments!$E$5:$E$1355)","v":0},{"$f":"SUMPRODUCT(--(Payments!$C$5:$C$1355=A10),--(Payments!$D$5:$D$1355=$AC$3),Payments!$E$5:$E$1355)","v":0},{"$f":"SUMPRODUCT(--(Payments!$C$5:$C$1355=A10),--(Payments!$D$5:$D$1355=$AD$3),Payments!$E$5:$E$1355)","v":0},null,0,0,0,0,null,null,24,"Church utility bills",null,0,0,0,0]
[{"$f":"Descriptions!I12","v":"Church - Major Repairs and Redecorations"},{"$f":"Descriptions!K12","v":"Building Work and Repairs"},{"$f":"Descriptions!L12","v":"Major repairs to the church building"},{"$f":"SUMPRODUCT(--(Payments!$C$5:$C$1355=A11),--(Payments!$D$5:$D$1355=$D$3),Payments!$E$5:$E$1355)","v":0},{"$f":"SUMPRODUCT(--(Payments!$C$5:$C$1355=A11),--(Payments!$D$5:$D$1355=$E$3),Payments!$E$5:$E$1355)","v":0},{"$f":"SUMPRODUCT(--(Payments!$C$5:$C$1355=A11),--(Payments!$D$5:$D$1355=$F$3),Payments!$E$5:$E$1355)","v":0},{"$f":"SUMPRODUCT(--(Payments!$C$5:$C$1355=A11),--(Payments!$D$5:$D$1355=$G$3),Payments!$E$5:$E$1355)","v":0},{"$f":"SUMPRODUCT(--(Payments!$C$5:$C$1355=A11),--(Payments!$D$5:$D$1355=$H$3),Payments!$E$5:$E$1355)","v":0},{"$f":"SUMPRODUCT(--(Payments!$C$5:$C$1355=A11),--(Payments!$D$5:$D$1355=$I$3),Payments!$E$5:$E$1355)","v":0},{"$f":"SUMPRODUCT(--(Payments!$C$5:$C$1355=A11),--(Payments!$D$5:$D$1355=$J$3),Payments!$E$5:$E$1355)","v":0},{"$f":"SUMPRODUCT(--(Payments!$C$5:$C$1355=A11),--(Payments!$D$5:$D$1355=$K$3),Payments!$E$5:$E$1355)","v":0},{"$f":"SUMPRODUCT(--(Payments!$C$5:$C$1355=A11),--(Payments!$D$5:$D$1355=$L$3),Payments!$E$5:$E$1355)","v":0},{"$f":"SUMPRODUCT(--(Payments!$C$5:$C$1355=A11),--(Payments!$D$5:$D$1355=$M$3),Payments!$E$5:$E$1355)","v":0},{"$f":"SUMPRODUCT(--(Payments!$C$5:$C$1355=A11),--(Payments!$D$5:$D$1355=$N$3),Payments!$E$5:$E$1355)","v":0},{"$f":"SUMPRODUCT(--(Payments!$C$5:$C$1355=A11),--(Payments!$D$5:$D$1355=$O$3),Payments!$E$5:$E$1355)","v":0},{"$f":"SUMPRODUCT(--(Payments!$C$5:$C$1355=A11),--(Payments!$D$5:$D$1355=$P$3),Payments!$E$5:$E$1355)","v":0},{"$f":"SUMPRODUCT(--(Payments!$C$5:$C$1355=A11),--(Payments!$D$5:$D$1355=$Q$3),Payments!$E$5:$E$1355)","v":0},{"$f":"SUMPRODUCT(--(Payments!$C$5:$C$1355=A11),--(Payments!$D$5:$D$1355=$R$3),Payments!$E$5:$E$1355)","v":0},{"$f":"SUMPRODUCT(--(Payments!$C$5:$C$1355=A11),--(Payments!$D$5:$D$1355=$S$3),Payments!$E$5:$E$1355)","v":0},{"$f":"SUMPRODUCT(--(Payments!$C$5:$C$1355=A11),--(Payments!$D$5:$D$1355=$T$3),Payments!$E$5:$E$1355)","v":0},{"$f":"SUMPRODUCT(--(Payments!$C$5:$C$1355=A11),--(Payments!$D$5:$D$1355=$U$3),Payments!$E$5:$E$1355)","v":0},{"$f":"SUMPRODUCT(--(Payments!$C$5:$C$1355=A11),--(Payments!$D$5:$D$1355=$V$3),Payments!$E$5:$E$1355)","v":0},{"$f":"SUMPRODUCT(--(Payments!$C$5:$C$1355=A11),--(Payments!$D$5:$D$1355=$W$3),Payments!$E$5:$E$1355)","v":0},{"$f":"SUMPRODUCT(--(Payments!$C$5:$C$1355=A11),--(Payments!$D$5:$D$1355=$X$3),Payments!$E$5:$E$1355)","v":0},{"$f":"SUMPRODUCT(--(Payments!$C$5:$C$1355=A11),--(Payments!$D$5:$D$1355=$Y$3),Payments!$E$5:$E$1355)","v":0},{"$f":"SUMPRODUCT(--(Payments!$C$5:$C$1355=A11),--(Payments!$D$5:$D$1355=$Z$3),Payments!$E$5:$E$1355)","v":0},{"$f":"SUMPRODUCT(--(Payments!$C$5:$C$1355=A11),--(Payments!$D$5:$D$1355=$AA$3),Payments!$E$5:$E$1355)","v":0},{"$f":"SUMPRODUCT(--(Payments!$C$5:$C$1355=A11),--(Payments!$D$5:$D$1355=$AB$3),Payments!$E$5:$E$1355)","v":0},{"$f":"SUMPRODUCT(--(Payments!$C$5:$C$1355=A11),--(Payments!$D$5:$D$1355=$AC$3),Payments!$E$5:$E$1355)","v":0},{"$f":"SUMPRODUCT(--(Payments!$C$5:$C$1355=A11),--(Payments!$D$5:$D$1355=$AD$3),Payments!$E$5:$E$1355)","v":0},null,0,0,0,0,null,null,21,"Clergy and staff expenses",null,0,0,0,0]
[{"$f":"Descriptions!I13","v":"Churchyard Expenses"},{"$f":"Descriptions!K13","v":"Other Expenditure"},{"$f":"Descriptions!L13","v":"Church running expenses (including Governance) "},{"$f":"SUMPRODUCT(--(Payments!$C$5:$C$1355=A12),--(Payments!$D$5:$D$1355=$D$3),Payments!$E$5:$E$1355)","v":0},{"$f":"SUMPRODUCT(--(Payments!$C$5:$C$1355=A12),--(Payments!$D$5:$D$1355=$E$3),Payments!$E$5:$E$1355)","v":0},{"$f":"SUMPRODUCT(--(Payments!$C$5:$C$1355=A12),--(Payments!$D$5:$D$1355=$F$3),Payments!$E$5:$E$1355)","v":0},{"$f":"SUMPRODUCT(--(Payments!$C$5:$C$1355=A12),--(Payments!$D$5:$D$1355=$G$3),Payments!$E$5:$E$1355)","v":0},{"$f":"SUMPRODUCT(--(Payments!$C$5:$C$1355=A12),--(Payments!$D$5:$D$1355=$H$3),Payments!$E$5:$E$1355)","v":0},{"$f":"SUMPRODUCT(--(Payments!$C$5:$C$1355=A12),--(Payments!$D$5:$D$1355=$I$3),Payments!$E$5:$E$1355)","v":0},{"$f":"SUMPRODUCT(--(Payments!$C$5:$C$1355=A12),--(Payments!$D$5:$D$1355=$J$3),Payments!$E$5:$E$1355)","v":0},{"$f":"SUMPRODUCT(--(Payments!$C$5:$C$1355=A12),--(Payments!$D$5:$D$1355=$K$3),Payments!$E$5:$E$1355)","v":0},{"$f":"SUMPRODUCT(--(Payments!$C$5:$C$1355=A12),--(Payments!$D$5:$D$1355=$L$3),Payments!$E$5:$E$1355)","v":0},{"$f":"SUMPRODUCT(--(Payments!$C$5:$C$1355=A12),--(Payments!$D$5:$D$1355=$M$3),Payments!$E$5:$E$1355)","v":0},{"$f":"SUMPRODUCT(--(Payments!$C$5:$C$1355=A12),--(Payments!$D$5:$D$1355=$N$3),Payments!$E$5:$E$1355)","v":0},{"$f":"SUMPRODUCT(--(Payments!$C$5:$C$1355=A12),--(Payments!$D$5:$D$1355=$O$3),Payments!$E$5:$E$1355)","v":0},{"$f":"SUMPRODUCT(--(Payments!$C$5:$C$1355=A12),--(Payments!$D$5:$D$1355=$P$3),Payments!$E$5:$E$1355)","v":0},{"$f":"SUMPRODUCT(--(Payments!$C$5:$C$1355=A12),--(Payments!$D$5:$D$1355=$Q$3),Payments!$E$5:$E$1355)","v":0},{"$f":"SUMPRODUCT(--(Payments!$C$5:$C$1355=A12),--(Payments!$D$5:$D$1355=$R$3),Payments!$E$5:$E$1355)","v":0},{"$f":"SUMPRODUCT(--(Payments!$C$5:$C$1355=A12),--(Payments!$D$5:$D$1355=$S$3),Payments!$E$5:$E$1355)","v":0},{"$f":"SUMPRODUCT(--(Payments!$C$5:$C$1355=A12),--(Payments!$D$5:$D$1355=$T$3),Payments!$E$5:$E$1355)","v":0},{"$f":"SUMPRODUCT(--(Payments!$C$5:$C$1355=A12),--(Payments!$D$5:$D$1355=$U$3),Payments!$E$5:$E$1355)","v":0},{"$f":"SUMPRODUCT(--(Payments!$C$5:$C$1355=A12),--(Payments!$D$5:$D$1355=$V$3),Payments!$E$5:$E$1355)","v":0},{"$f":"SUMPRODUCT(--(Payments!$C$5:$C$1355=A12),--(Payments!$D$5:$D$1355=$W$3),Payments!$E$5:$E$1355)","v":0},{"$f":"SUMPRODUCT(--(Payments!$C$5:$C$1355=A12),--(Payments!$D$5:$D$1355=$X$3),Payments!$E$5:$E$1355)","v":0},{"$f":"SUMPRODUCT(--(Payments!$C$5:$C$1355=A12),--(Payments!$D$5:$D$1355=$Y$3),Payments!$E$5:$E$1355)","v":0},{"$f":"SUMPRODUCT(--(Payments!$C$5:$C$1355=A12),--(Payments!$D$5:$D$1355=$Z$3),Payments!$E$5:$E$1355)","v":0},{"$f":"SUMPRODUCT(--(Payments!$C$5:$C$1355=A12),--(Payments!$D$5:$D$1355=$AA$3),Payments!$E$5:$E$1355)","v":0},{"$f":"SUMPRODUCT(--(Payments!$C$5:$C$1355=A12),--(Payments!$D$5:$D$1355=$AB$3),Payments!$E$5:$E$1355)","v":0},{"$f":"SUMPRODUCT(--(Payments!$C$5:$C$1355=A12),--(Payments!$D$5:$D$1355=$AC$3),Payments!$E$5:$E$1355)","v":0},{"$f":"SUMPRODUCT(--(Payments!$C$5:$C$1355=A12),--(Payments!$D$5:$D$1355=$AD$3),Payments!$E$5:$E$1355)","v":0},null,0,0,0,0,null,null,25,"Cost of trading",null,0,0,0,0]
[{"$f":"Descriptions!I14","v":"Cleaning"},{"$f":"Descriptions!K14","v":"Church Running Expenses"},{"$f":"Descriptions!L14","v":"Church running expenses (including Governance) "},{"$f":"SUMPRODUCT(--(Payments!$C$5:$C$1355=A13),--(Payments!$D$5:$D$1355=$D$3),Payments!$E$5:$E$1355)","v":0},{"$f":"SUMPRODUCT(--(Payments!$C$5:$C$1355=A13),--(Payments!$D$5:$D$1355=$E$3),Payments!$E$5:$E$1355)","v":0},{"$f":"SUMPRODUCT(--(Payments!$C$5:$C$1355=A13),--(Payments!$D$5:$D$1355=$F$3),Payments!$E$5:$E$1355)","v":0},{"$f":"SUMPRODUCT(--(Payments!$C$5:$C$1355=A13),--(Payments!$D$5:$D$1355=$G$3),Payments!$E$5:$E$1355)","v":0},{"$f":"SUMPRODUCT(--(Payments!$C$5:$C$1355=A13),--(Payments!$D$5:$D$1355=$H$3),Payments!$E$5:$E$1355)","v":0},{"$f":"SUMPRODUCT(--(Payments!$C$5:$C$1355=A13),--(Payments!$D$5:$D$1355=$I$3),Payments!$E$5:$E$1355)","v":0},{"$f":"SUMPRODUCT(--(Payments!$C$5:$C$1355=A13),--(Payments!$D$5:$D$1355=$J$3),Payments!$E$5:$E$1355)","v":0},{"$f":"SUMPRODUCT(--(Payments!$C$5:$C$1355=A13),--(Payments!$D$5:$D$1355=$K$3),Payments!$E$5:$E$1355)","v":0},{"$f":"SUMPRODUCT(--(Payments!$C$5:$C$1355=A13),--(Payments!$D$5:$D$1355=$L$3),Payments!$E$5:$E$1355)","v":0},{"$f":"SUMPRODUCT(--(Payments!$C$5:$C$1355=A13),--(Payments!$D$5:$D$1355=$M$3),Payments!$E$5:$E$1355)","v":0},{"$f":"SUMPRODUCT(--(Payments!$C$5:$C$1355=A13),--(Payments!$D$5:$D$1355=$N$3),Payments!$E$5:$E$1355)","v":0},{"$f":"SUMPRODUCT(--(Payments!$C$5:$C$1355=A13),--(Payments!$D$5:$D$1355=$O$3),Payments!$E$5:$E$1355)","v":0},{"$f":"SUMPRODUCT(--(Payments!$C$5:$C$1355=A13),--(Payments!$D$5:$D$1355=$P$3),Payments!$E$5:$E$1355)","v":0},{"$f":"SUMPRODUCT(--(Payments!$C$5:$C$1355=A13),--(Payments!$D$5:$D$1355=$Q$3),Payments!$E$5:$E$1355)","v":0},{"$f":"SUMPRODUCT(--(Payments!$C$5:$C$1355=A13),--(Payments!$D$5:$D$1355=$R$3),Payments!$E$5:$E$1355)","v":0},{"$f":"SUMPRODUCT(--(Payments!$C$5:$C$1355=A13),--(Payments!$D$5:$D$1355=$S$3),Payments!$E$5:$E$1355)","v":0},{"$f":"SUMPRODUCT(--(Payments!$C$5:$C$1355=A13),--(Payments!$D$5:$D$1355=$T$3),Payments!$E$5:$E$1355)","v":0},{"$f":"SUMPRODUCT(--(Payments!$C$5:$C$1355=A13),--(Payments!$D$5:$D$1355=$U$3),Payments!$E$5:$E$1355)","v":0},{"$f":"SUMPRODUCT(--(Payments!$C$5:$C$1355=A13),--(Payments!$D$5:$D$1355=$V$3),Payments!$E$5:$E$1355)","v":0},{"$f":"SUMPRODUCT(--(Payments!$C$5:$C$1355=A13),--(Payments!$D$5:$D$1355=$W$3),Payments!$E$5:$E$1355)","v":0},{"$f":"SUMPRODUCT(--(Payments!$C$5:$C$1355=A13),--(Payments!$D$5:$D$1355=$X$3),Payments!$E$5:$E$1355)","v":0},{"$f":"SUMPRODUCT(--(Payments!$C$5:$C$1355=A13),--(Payments!$D$5:$D$1355=$Y$3),Payments!$E$5:$E$1355)","v":0},{"$f":"SUMPRODUCT(--(Payments!$C$5:$C$1355=A13),--(Payments!$D$5:$D$1355=$Z$3),Payments!$E$5:$E$1355)","v":0},{"$f":"SUMPRODUCT(--(Payments!$C$5:$C$1355=A13),--(Payments!$D$5:$D$1355=$AA$3),Payments!$E$5:$E$1355)","v":0},{"$f":"SUMPRODUCT(--(Payments!$C$5:$C$1355=A13),--(Payments!$D$5:$D$1355=$AB$3),Payments!$E$5:$E$1355)","v":0},{"$f":"SUMPRODUCT(--(Payments!$C$5:$C$1355=A13),--(Payments!$D$5:$D$1355=$AC$3),Payments!$E$5:$E$1355)","v":0},{"$f":"SUMPRODUCT(--(Payments!$C$5:$C$1355=A13),--(Payments!$D$5:$D$1355=$AD$3),Payments!$E$5:$E$1355)","v":0},null,0,0,0,0,null,null,19,"Diocesan parish share contribution",null,0,{"$f":"SUMPRODUCT(($C$5:$C$83=AM13)*($AG$5:$AG$83))","v":0},0,0]
[{"$f":"Descriptions!I15","v":"Clergy Expenses"},{"$f":"Descriptions!K15","v":"Clergy and Staffing Costs"},{"$f":"Descriptions!L15","v":"Clergy and staff expenses"},{"$f":"SUMPRODUCT(--(Payments!$C$5:$C$1355=A14),--(Payments!$D$5:$D$1355=$D$3),Payments!$E$5:$E$1355)","v":0},{"$f":"SUMPRODUCT(--(Payments!$C$5:$C$1355=A14),--(Payments!$D$5:$D$1355=$E$3),Payments!$E$5:$E$1355)","v":0},{"$f":"SUMPRODUCT(--(Payments!$C$5:$C$1355=A14),--(Payments!$D$5:$D$1355=$F$3),Payments!$E$5:$E$1355)","v":0},{"$f":"SUMPRODUCT(--(Payments!$C$5:$C$1355=A14),--(Payments!$D$5:$D$1355=$G$3),Payments!$E$5:$E$1355)","v":0},{"$f":"SUMPRODUCT(--(Payments!$C$5:$C$1355=A14),--(Payments!$D$5:$D$1355=$H$3),Payments!$E$5:$E$1355)","v":0},{"$f":"SUMPRODUCT(--(Payments!$C$5:$C$1355=A14),--(Payments!$D$5:$D$1355=$I$3),Payments!$E$5:$E$1355)","v":0},{"$f":"SUMPRODUCT(--(Payments!$C$5:$C$1355=A14),--(Payments!$D$5:$D$1355=$J$3),Payments!$E$5:$E$1355)","v":0},{"$f":"SUMPRODUCT(--(Payments!$C$5:$C$1355=A14),--(Payments!$D$5:$D$1355=$K$3),Payments!$E$5:$E$1355)","v":0},{"$f":"SUMPRODUCT(--(Payments!$C$5:$C$1355=A14),--(Payments!$D$5:$D$1355=$L$3),Payments!$E$5:$E$1355)","v":0},{"$f":"SUMPRODUCT(--(Payments!$C$5:$C$1355=A14),--(Payments!$D$5:$D$1355=$M$3),Payments!$E$5:$E$1355)","v":0},{"$f":"SUMPRODUCT(--(Payments!$C$5:$C$1355=A14),--(Payments!$D$5:$D$1355=$N$3),Payments!$E$5:$E$1355)","v":0},{"$f":"SUMPRODUCT(--(Payments!$C$5:$C$1355=A14),--(Payments!$D$5:$D$1355=$O$3),Payments!$E$5:$E$1355)","v":0},{"$f":"SUMPRODUCT(--(Payments!$C$5:$C$1355=A14),--(Payments!$D$5:$D$1355=$P$3),Payments!$E$5:$E$1355)","v":0},{"$f":"SUMPRODUCT(--(Payments!$C$5:$C$1355=A14),--(Payments!$D$5:$D$1355=$Q$3),Payments!$E$5:$E$1355)","v":0},{"$f":"SUMPRODUCT(--(Payments!$C$5:$C$1355=A14),--(Payments!$D$5:$D$1355=$R$3),Payments!$E$5:$E$1355)","v":0},{"$f":"SUMPRODUCT(--(Payments!$C$5:$C$1355=A14),--(Payments!$D$5:$D$1355=$S$3),Payments!$E$5:$E$1355)","v":0},{"$f":"SUMPRODUCT(--(Payments!$C$5:$C$1355=A14),--(Payments!$D$5:$D$1355=$T$3),Payments!$E$5:$E$1355)","v":0},{"$f":"SUMPRODUCT(--(Payments!$C$5:$C$1355=A14),--(Payments!$D$5:$D$1355=$U$3),Payments!$E$5:$E$1355)","v":0},{"$f":"SUMPRODUCT(--(Payments!$C$5:$C$1355=A14),--(Payments!$D$5:$D$1355=$V$3),Payments!$E$5:$E$1355)","v":0},{"$f":"SUMPRODUCT(--(Payments!$C$5:$C$1355=A14),--(Payments!$D$5:$D$1355=$W$3),Payments!$E$5:$E$1355)","v":0},{"$f":"SUMPRODUCT(--(Payments!$C$5:$C$1355=A14),--(Payments!$D$5:$D$1355=$X$3),Payments!$E$5:$E$1355)","v":0},{"$f":"SUMPRODUCT(--(Payments!$C$5:$C$1355=A14),--(Payments!$D$5:$D$1355=$Y$3),Payments!$E$5:$E$1355)","v":0},{"$f":"SUMPRODUCT(--(Payments!$C$5:$C$1355=A14),--(Payments!$D$5:$D$1355=$Z$3),Payments!$E$5:$E$1355)","v":0},{"$f":"SUMPRODUCT(--(Payments!$C$5:$C$1355=A14),--(Payments!$D$5:$D$1355=$AA$3),Payments!$E$5:$E$1355)","v":0},{"$f":"SUMPRODUCT(--(Payments!$C$5:$C$1355=A14),--(Payments!$D$5:$D$1355=$AB$3),Payments!$E$5:$E$1355)","v":0},{"$f":"SUMPRODUCT(--(Payments!$C$5:$C$1355=A14),--(Payments!$D$5:$D$1355=$AC$3),Payments!$E$5:$E$1355)","v":0},{"$f":"SUMPRODUCT(--(Payments!$C$5:$C$1355=A14),--(Payments!$D$5:$D$1355=$AD$3),Payments!$E$5:$E$1355)","v":0},null,0,0,0,0,null,null,17,"Fundraising activities (costs and payments)",null,{"$f":"SUMPRODUCT(($C$5:$C$83=AM14)*($AF$5:$AF$83))","v":0},{"$f":"SUMPRODUCT(($C$5:$C$83=AM14)*($AG$5:$AG$83))","v":0},0,0]
[{"$f":"Descriptions!I16","v":"Computer"},{"$f":"Descriptions!K16","v":"Administration Costs"},{"$f":"Descriptions!L16","v":"Clergy and staff expenses"},{"$f":"SUMPRODUCT(--(Payments!$C$5:$C$1355=A15),--(Payments!$D$5:$D$1355=$D$3),Payments!$E$5:$E$1355)","v":0},{"$f":"SUMPRODUCT(--(Payments!$C$5:$C$1355=A15),--(Payments!$D$5:$D$1355=$E$3),Payments!$E$5:$E$1355)","v":0},{"$f":"SUMPRODUCT(--(Payments!$C$5:$C$1355=A15),--(Payments!$D$5:$D$1355=$F$3),Payments!$E$5:$E$1355)","v":0},{"$f":"SUMPRODUCT(--(Payments!$C$5:$C$1355=A15),--(Payments!$D$5:$D$1355=$G$3),Payments!$E$5:$E$1355)","v":0},{"$f":"SUMPRODUCT(--(Payments!$C$5:$C$1355=A15),--(Payments!$D$5:$D$1355=$H$3),Payments!$E$5:$E$1355)","v":0},{"$f":"SUMPRODUCT(--(Payments!$C$5:$C$1355=A15),--(Payments!$D$5:$D$1355=$I$3),Payments!$E$5:$E$1355)","v":0},{"$f":"SUMPRODUCT(--(Payments!$C$5:$C$1355=A15),--(Payments!$D$5:$D$1355=$J$3),Payments!$E$5:$E$1355)","v":0},{"$f":"SUMPRODUCT(--(Payments!$C$5:$C$1355=A15),--(Payments!$D$5:$D$1355=$K$3),Payments!$E$5:$E$1355)","v":0},{"$f":"SUMPRODUCT(--(Payments!$C$5:$C$1355=A15),--(Payments!$D$5:$D$1355=$L$3),Payments!$E$5:$E$1355)","v":0},{"$f":"SUMPRODUCT(--(Payments!$C$5:$C$1355=A15),--(Payments!$D$5:$D$1355=$M$3),Payments!$E$5:$E$1355)","v":0},{"$f":"SUMPRODUCT(--(Payments!$C$5:$C$1355=A15),--(Payments!$D$5:$D$1355=$N$3),Payments!$E$5:$E$1355)","v":0},{"$f":"SUMPRODUCT(--(Payments!$C$5:$C$1355=A15),--(Payments!$D$5:$D$1355=$O$3),Payments!$E$5:$E$1355)","v":0},{"$f":"SUMPRODUCT(--(Payments!$C$5:$C$1355=A15),--(Payments!$D$5:$D$1355=$P$3),Payments!$E$5:$E$1355)","v":0},{"$f":"SUMPRODUCT(--(Payments!$C$5:$C$1355=A15),--(Payments!$D$5:$D$1355=$Q$3),Payments!$E$5:$E$1355)","v":0},{"$f":"SUMPRODUCT(--(Payments!$C$5:$C$1355=A15),--(Payments!$D$5:$D$1355=$R$3),Payments!$E$5:$E$1355)","v":0},{"$f":"SUMPRODUCT(--(Payments!$C$5:$C$1355=A15),--(Payments!$D$5:$D$1355=$S$3),Payments!$E$5:$E$1355)","v":0},{"$f":"SUMPRODUCT(--(Payments!$C$5:$C$1355=A15),--(Payments!$D$5:$D$1355=$T$3),Payments!$E$5:$E$1355)","v":0},{"$f":"SUMPRODUCT(--(Payments!$C$5:$C$1355=A15),--(Payments!$D$5:$D$1355=$U$3),Payments!$E$5:$E$1355)","v":0},{"$f":"SUMPRODUCT(--(Payments!$C$5:$C$1355=A15),--(Payments!$D$5:$D$1355=$V$3),Payments!$E$5:$E$1355)","v":0},{"$f":"SUMPRODUCT(--(Payments!$C$5:$C$1355=A15),--(Payments!$D$5:$D$1355=$W$3),Payments!$E$5:$E$1355)","v":0},{"$f":"SUMPRODUCT(--(Payments!$C$5:$C$1355=A15),--(Payments!$D$5:$D$1355=$X$3),Payments!$E$5:$E$1355)","v":0},{"$f":"SUMPRODUCT(--(Payments!$C$5:$C$1355=A15),--(Payments!$D$5:$D$1355=$Y$3),Payments!$E$5:$E$1355)","v":0},{"$f":"SUMPRODUCT(--(Payments!$C$5:$C$1355=A15),--(Payments!$D$5:$D$1355=$Z$3),Payments!$E$5:$E$1355)","v":0},{"$f":"SUMPRODUCT(--(Payments!$C$5:$C$1355=A15),--(Payments!$D$5:$D$1355=$AA$3),Payments!$E$5:$E$1355)","v":0},{"$f":"SUMPRODUCT(--(Payments!$C$5:$C$1355=A15),--(Payments!$D$5:$D$1355=$AB$3),Payments!$E$5:$E$1355)","v":0},{"$f":"SUMPRODUCT(--(Payments!$C$5:$C$1355=A15),--(Payments!$D$5:$D$1355=$AC$3),Payments!$E$5:$E$1355)","v":0},{"$f":"SUMPRODUCT(--(Payments!$C$5:$C$1355=A15),--(Payments!$D$5:$D$1355=$AD$3),Payments!$E$5:$E$1355)","v":0},null,0,0,0,0,null,null,28,"Major repairs to church hall or other PCC property, including redecoration",null,0,0,0,0]
[{"$f":"Descriptions!I17","v":"Fund Raising"},{"$f":"Descriptions!K17","v":"Cost of Generating Funds"},{"$f":"Descriptions!L17","v":"Fundraising activities (costs and payments)"},{"$f":"SUMPRODUCT(--(Payments!$C$5:$C$1355=A16),--(Payments!$D$5:$D$1355=$D$3),Payments!$E$5:$E$1355)","v":0},{"$f":"SUMPRODUCT(--(Payments!$C$5:$C$1355=A16),--(Payments!$D$5:$D$1355=$E$3),Payments!$E$5:$E$1355)","v":0},{"$f":"SUMPRODUCT(--(Payments!$C$5:$C$1355=A16),--(Payments!$D$5:$D$1355=$F$3),Payments!$E$5:$E$1355)","v":0},{"$f":"SUMPRODUCT(--(Payments!$C$5:$C$1355=A16),--(Payments!$D$5:$D$1355=$G$3),Payments!$E$5:$E$1355)","v":0},{"$f":"SUMPRODUCT(--(Payments!$C$5:$C$1355=A16),--(Payments!$D$5:$D$1355=$H$3),Payments!$E$5:$E$1355)","v":0},{"$f":"SUMPRODUCT(--(Payments!$C$5:$C$1355=A16),--(Payments!$D$5:$D$1355=$I$3),Payments!$E$5:$E$1355)","v":0},{"$f":"SUMPRODUCT(--(Payments!$C$5:$C$1355=A16),--(Payments!$D$5:$D$1355=$J$3),Payments!$E$5:$E$1355)","v":0},{"$f":"SUMPRODUCT(--(Payments!$C$5:$C$1355=A16),--(Payments!$D$5:$D$1355=$K$3),Payments!$E$5:$E$1355)","v":0},{"$f":"SUMPRODUCT(--(Payments!$C$5:$C$1355=A16),--(Payments!$D$5:$D$1355=$L$3),Payments!$E$5:$E$1355)","v":0},{"$f":"SUMPRODUCT(--(Payments!$C$5:$C$1355=A16),--(Payments!$D$5:$D$1355=$M$3),Payments!$E$5:$E$1355)","v":0},{"$f":"SUMPRODUCT(--(Payments!$C$5:$C$1355=A16),--(Payments!$D$5:$D$1355=$N$3),Payments!$E$5:$E$1355)","v":0},{"$f":"SUMPRODUCT(--(Payments!$C$5:$C$1355=A16),--(Payments!$D$5:$D$1355=$O$3),Payments!$E$5:$E$1355)","v":0},{"$f":"SUMPRODUCT(--(Payments!$C$5:$C$1355=A16),--(Payments!$D$5:$D$1355=$P$3),Payments!$E$5:$E$1355)","v":0},{"$f":"SUMPRODUCT(--(Payments!$C$5:$C$1355=A16),--(Payments!$D$5:$D$1355=$Q$3),Payments!$E$5:$E$1355)","v":0},{"$f":"SUMPRODUCT(--(Payments!$C$5:$C$1355=A16),--(Payments!$D$5:$D$1355=$R$3),Payments!$E$5:$E$1355)","v":0},{"$f":"SUMPRODUCT(--(Payments!$C$5:$C$1355=A16),--(Payments!$D$5:$D$1355=$S$3),Payments!$E$5:$E$1355)","v":0},{"$f":"SUMPRODUCT(--(Payments!$C$5:$C$1355=A16),--(Payments!$D$5:$D$1355=$T$3),Payments!$E$5:$E$1355)","v":0},{"$f":"SUMPRODUCT(--(Payments!$C$5:$C$1355=A16),--(Payments!$D$5:$D$1355=$U$3),Payments!$E$5:$E$1355)","v":0},{"$f":"SUMPRODUCT(--(Payments!$C$5:$C$1355=A16),--(Payments!$D$5:$D$1355=$V$3),Payments!$E$5:$E$1355)","v":0},{"$f":"SUMPRODUCT(--(Payments!$C$5:$C$1355=A16),--(Payments!$D$5:$D$1355=$W$3),Payments!$E$5:$E$1355)","v":0},{"$f":"SUMPRODUCT(--(Payments!$C$5:$C$1355=A16),--(Payments!$D$5:$D$1355=$X$3),Payments!$E$5:$E$1355)","v":0},{"$f":"SUMPRODUCT(--(Payments!$C$5:$C$1355=A16),--(Payments!$D$5:$D$1355=$Y$3),Payments!$E$5:$E$1355)","v":0},{"$f":"SUMPRODUCT(--(Payments!$C$5:$C$1355=A16),--(Payments!$D$5:$D$1355=$Z$3),Payments!$E$5:$E$1355)","v":0},{"$f":"SUMPRODUCT(--(Payments!$C$5:$C$1355=A16),--(Payments!$D$5:$D$1355=$AA$3),Payments!$E$5:$E$1355)","v":0},{"$f":"SUMPRODUCT(--(Payments!$C$5:$C$1355=A16),--(Payments!$D$5:$D$1355=$AB$3),Payments!$E$5:$E$1355)","v":0},{"$f":"SUMPRODUCT(--(Payments!$C$5:$C$1355=A16),--(Payments!$D$5:$D$1355=$AC$3),Payments!$E$5:$E$1355)","v":0},{"$f":"SUMPRODUCT(--(Payments!$C$5:$C$1355=A16),--(Payments!$D$5:$D$1355=$AD$3),Payments!$E$5:$E$1355)","v":0},null,0,0,0,0,null,null,27,"Major repairs to the church building",null,0,{"$f":"SUMPRODUCT(($C$5:$C$83=AM16)*($AG$5:$AG$83))","v":0},0,0]
[{"$f":"Descriptions!I18","v":"Gas and Electricity Bill"},{"$f":"Descriptions!K18","v":"Church Running Expenses"},{"$f":"Descriptions!L18","v":"Church utility bills"},{"$f":"SUMPRODUCT(--(Payments!$C$5:$C$1355=A17),--(Payments!$D$5:$D$1355=$D$3),Payments!$E$5:$E$1355)","v":0},{"$f":"SUMPRODUCT(--(Payments!$C$5:$C$1355=A17),--(Payments!$D$5:$D$1355=$E$3),Payments!$E$5:$E$1355)","v":0},{"$f":"SUMPRODUCT(--(Payments!$C$5:$C$1355=A17),--(Payments!$D$5:$D$1355=$F$3),Payments!$E$5:$E$1355)","v":0},{"$f":"SUMPRODUCT(--(Payments!$C$5:$C$1355=A17),--(Payments!$D$5:$D$1355=$G$3),Payments!$E$5:$E$1355)","v":0},{"$f":"SUMPRODUCT(--(Payments!$C$5:$C$1355=A17),--(Payments!$D$5:$D$1355=$H$3),Payments!$E$5:$E$1355)","v":0},{"$f":"SUMPRODUCT(--(Payments!$C$5:$C$1355=A17),--(Payments!$D$5:$D$1355=$I$3),Payments!$E$5:$E$1355)","v":0},{"$f":"SUMPRODUCT(--(Payments!$C$5:$C$1355=A17),--(Payments!$D$5:$D$1355=$J$3),Payments!$E$5:$E$1355)","v":0},{"$f":"SUMPRODUCT(--(Payments!$C$5:$C$1355=A17),--(Payments!$D$5:$D$1355=$K$3),Payments!$E$5:$E$1355)","v":0},{"$f":"SUMPRODUCT(--(Payments!$C$5:$C$1355=A17),--(Payments!$D$5:$D$1355=$L$3),Payments!$E$5:$E$1355)","v":0},{"$f":"SUMPRODUCT(--(Payments!$C$5:$C$1355=A17),--(Payments!$D$5:$D$1355=$M$3),Payments!$E$5:$E$1355)","v":0},{"$f":"SUMPRODUCT(--(Payments!$C$5:$C$1355=A17),--(Payments!$D$5:$D$1355=$N$3),Payments!$E$5:$E$1355)","v":0},{"$f":"SUMPRODUCT(--(Payments!$C$5:$C$1355=A17),--(Payments!$D$5:$D$1355=$O$3),Payments!$E$5:$E$1355)","v":0},{"$f":"SUMPRODUCT(--(Payments!$C$5:$C$1355=A17),--(Payments!$D$5:$D$1355=$P$3),Payments!$E$5:$E$1355)","v":0},{"$f":"SUMPRODUCT(--(Payments!$C$5:$C$1355=A17),--(Payments!$D$5:$D$1355=$Q$3),Payments!$E$5:$E$1355)","v":0},{"$f":"SUMPRODUCT(--(Payments!$C$5:$C$1355=A17),--(Payments!$D$5:$D$1355=$R$3),Payments!$E$5:$E$1355)","v":0},{"$f":"SUMPRODUCT(--(Payments!$C$5:$C$1355=A17),--(Payments!$D$5:$D$1355=$S$3),Payments!$E$5:$E$1355)","v":0},{"$f":"SUMPRODUCT(--(Payments!$C$5:$C$1355=A17),--(Payments!$D$5:$D$1355=$T$3),Payments!$E$5:$E$1355)","v":0},{"$f":"SUMPRODUCT(--(Payments!$C$5:$C$1355=A17),--(Payments!$D$5:$D$1355=$U$3),Payments!$E$5:$E$1355)","v":0},{"$f":"SUMPRODUCT(--(Payments!$C$5:$C$1355=A17),--(Payments!$D$5:$D$1355=$V$3),Payments!$E$5:$E$1355)","v":0},{"$f":"SUMPRODUCT(--(Payments!$C$5:$C$1355=A17),--(Payments!$D$5:$D$1355=$W$3),Payments!$E$5:$E$1355)","v":0},{"$f":"SUMPRODUCT(--(Payments!$C$5:$C$1355=A17),--(Payments!$D$5:$D$1355=$X$3),Payments!$E$5:$E$1355)","v":0},{"$f":"SUMPRODUCT(--(Payments!$C$5:$C$1355=A17),--(Payments!$D$5:$D$1355=$Y$3),Payments!$E$5:$E$1355)","v":0},{"$f":"SUMPRODUCT(--(Payments!$C$5:$C$1355=A17),--(Payments!$D$5:$D$1355=$Z$3),Payments!$E$5:$E$1355)","v":0},{"$f":"SUMPRODUCT(--(Payments!$C$5:$C$1355=A17),--(Payments!$D$5:$D$1355=$AA$3),Payments!$E$5:$E$1355)","v":0},{"$f":"SUMPRODUCT(--(Payments!$C$5:$C$1355=A17),--(Payments!$D$5:$D$1355=$AB$3),Payments!$E$5:$E$1355)","v":0},{"$f":"SUMPRODUCT(--(Payments!$C$5:$C$1355=A17),--(Payments!$D$5:$D$1355=$AC$3),Payments!$E$5:$E$1355)","v":0},{"$f":"SUMPRODUCT(--(Payments!$C$5:$C$1355=A17),--(Payments!$D$5:$D$1355=$AD$3),Payments!$E$5:$E$1355)","v":0},null,0,0,0,0,null,null,18,"Mission giving and donations",null,0,0,0,0]
[{"$f":"Descriptions!I19","v":"Hall/Other Buildings - Major Repairs and Redecorations"},{"$f":"Descriptions!K19","v":"Building Work and Repairs"},{"$f":"Descriptions!L19","v":"Major repairs to church hall or other PCC property, including redecoration"},{"$f":"SUMPRODUCT(--(Payments!$C$5:$C$1355=A18),--(Payments!$D$5:$D$1355=$D$3),Payments!$E$5:$E$1355)","v":0},{"$f":"SUMPRODUCT(--(Payments!$C$5:$C$1355=A18),--(Payments!$D$5:$D$1355=$E$3),Payments!$E$5:$E$1355)","v":0},{"$f":"SUMPRODUCT(--(Payments!$C$5:$C$1355=A18),--(Payments!$D$5:$D$1355=$F$3),Payments!$E$5:$E$1355)","v":0},{"$f":"SUMPRODUCT(--(Payments!$C$5:$C$1355=A18),--(Payments!$D$5:$D$1355=$G$3),Payments!$E$5:$E$1355)","v":0},{"$f":"SUMPRODUCT(--(Payments!$C$5:$C$1355=A18),--(Payments!$D$5:$D$1355=$H$3),Payments!$E$5:$E$1355)","v":0},{"$f":"SUMPRODUCT(--(Payments!$C$5:$C$1355=A18),--(Payments!$D$5:$D$1355=$I$3),Payments!$E$5:$E$1355)","v":0},{"$f":"SUMPRODUCT(--(Payments!$C$5:$C$1355=A18),--(Payments!$D$5:$D$1355=$J$3),Payments!$E$5:$E$1355)","v":0},{"$f":"SUMPRODUCT(--(Payments!$C$5:$C$1355=A18),--(Payments!$D$5:$D$1355=$K$3),Payments!$E$5:$E$1355)","v":0},{"$f":"SUMPRODUCT(--(Payments!$C$5:$C$1355=A18),--(Payments!$D$5:$D$1355=$L$3),Payments!$E$5:$E$1355)","v":0},{"$f":"SUMPRODUCT(--(Payments!$C$5:$C$1355=A18),--(Payments!$D$5:$D$1355=$M$3),Payments!$E$5:$E$1355)","v":0},{"$f":"SUMPRODUCT(--(Payments!$C$5:$C$1355=A18),--(Payments!$D$5:$D$1355=$N$3),Payments!$E$5:$E$1355)","v":0},{"$f":"SUMPRODUCT(--(Payments!$C$5:$C$1355=A18),--(Payments!$D$5:$D$1355=$O$3),Payments!$E$5:$E$1355)","v":0},{"$f":"SUMPRODUCT(--(Payments!$C$5:$C$1355=A18),--(Payments!$D$5:$D$1355=$P$3),Payments!$E$5:$E$1355)","v":0},{"$f":"SUMPRODUCT(--(Payments!$C$5:$C$1355=A18),--(Payments!$D$5:$D$1355=$Q$3),Payments!$E$5:$E$1355)","v":0},{"$f":"SUMPRODUCT(--(Payments!$C$5:$C$1355=A18),--(Payments!$D$5:$D$1355=$R$3),Payments!$E$5:$E$1355)","v":0},{"$f":"SUMPRODUCT(--(Payments!$C$5:$C$1355=A18),--(Payments!$D$5:$D$1355=$S$3),Payments!$E$5:$E$1355)","v":0},{"$f":"SUMPRODUCT(--(Payments!$C$5:$C$1355=A18),--(Payments!$D$5:$D$1355=$T$3),Payments!$E$5:$E$1355)","v":0},{"$f":"SUMPRODUCT(--(Payments!$C$5:$C$1355=A18),--(Payments!$D$5:$D$1355=$U$3),Payments!$E$5:$E$1355)","v":0},{"$f":"SUMPRODUCT(--(Payments!$C$5:$C$1355=A18),--(Payments!$D$5:$D$1355=$V$3),Payments!$E$5:$E$1355)","v":0},{"$f":"SUMPRODUCT(--(Payments!$C$5:$C$1355=A18),--(Payments!$D$5:$D$1355=$W$3),Payments!$E$5:$E$1355)","v":0},{"$f":"SUMPRODUCT(--(Payments!$C$5:$C$1355=A18),--(Payments!$D$5:$D$1355=$X$3),Payments!$E$5:$E$1355)","v":0},{"$f":"SUMPRODUCT(--(Payments!$C$5:$C$1355=A18),--(Payments!$D$5:$D$1355=$Y$3),Payments!$E$5:$E$1355)","v":0},{"$f":"SUMPRODUCT(--(Payments!$C$5:$C$1355=A18),--(Payments!$D$5:$D$1355=$Z$3),Payments!$E$5:$E$1355)","v":0},{"$f":"SUMPRODUCT(--(Payments!$C$5:$C$1355=A18),--(Payments!$D$5:$D$1355=$AA$3),Payments!$E$5:$E$1355)","v":0},{"$f":"SUMPRODUCT(--(Payments!$C$5:$C$1355=A18),--(Payments!$D$5:$D$1355=$AB$3),Payments!$E$5:$E$1355)","v":0},{"$f":"SUMPRODUCT(--(Payments!$C$5:$C$1355=A18),--(Payments!$D$5:$D$1355=$AC$3),Payments!$E$5:$E$1355)","v":0},{"$f":"SUMPRODUCT(--(Payments!$C$5:$C$1355=A18),--(Payments!$D$5:$D$1355=$AD$3),Payments!$E$5:$E$1355)","v":0},null,0,0,0,0,null,null,29,"New building work to the church, church hall, clergy housing or other PCC property",null,0,0,0,0]
[{"$f":"Descriptions!I20","v":"Insurance"},{"$f":"Descriptions!K20","v":"Church Running Expenses"},{"$f":"Descriptions!L20","v":"Church running expenses (including Governance) "},{"$f":"SUMPRODUCT(--(Payments!$C$5:$C$1355=A19),--(Payments!$D$5:$D$1355=$D$3),Payments!$E$5:$E$1355)","v":0},{"$f":"SUMPRODUCT(--(Payments!$C$5:$C$1355=A19),--(Payments!$D$5:$D$1355=$E$3),Payments!$E$5:$E$1355)","v":0},{"$f":"SUMPRODUCT(--(Payments!$C$5:$C$1355=A19),--(Payments!$D$5:$D$1355=$F$3),Payments!$E$5:$E$1355)","v":0},{"$f":"SUMPRODUCT(--(Payments!$C$5:$C$1355=A19),--(Payments!$D$5:$D$1355=$G$3),Payments!$E$5:$E$1355)","v":0},{"$f":"SUMPRODUCT(--(Payments!$C$5:$C$1355=A19),--(Payments!$D$5:$D$1355=$H$3),Payments!$E$5:$E$1355)","v":0},{"$f":"SUMPRODUCT(--(Payments!$C$5:$C$1355=A19),--(Payments!$D$5:$D$1355=$I$3),Payments!$E$5:$E$1355)","v":0},{"$f":"SUMPRODUCT(--(Payments!$C$5:$C$1355=A19),--(Payments!$D$5:$D$1355=$J$3),Payments!$E$5:$E$1355)","v":0},{"$f":"SUMPRODUCT(--(Payments!$C$5:$C$1355=A19),--(Payments!$D$5:$D$1355=$K$3),Payments!$E$5:$E$1355)","v":0},{"$f":"SUMPRODUCT(--(Payments!$C$5:$C$1355=A19),--(Payments!$D$5:$D$1355=$L$3),Payments!$E$5:$E$1355)","v":0},{"$f":"SUMPRODUCT(--(Payments!$C$5:$C$1355=A19),--(Payments!$D$5:$D$1355=$M$3),Payments!$E$5:$E$1355)","v":0},{"$f":"SUMPRODUCT(--(Payments!$C$5:$C$1355=A19),--(Payments!$D$5:$D$1355=$N$3),Payments!$E$5:$E$1355)","v":0},{"$f":"SUMPRODUCT(--(Payments!$C$5:$C$1355=A19),--(Payments!$D$5:$D$1355=$O$3),Payments!$E$5:$E$1355)","v":0},{"$f":"SUMPRODUCT(--(Payments!$C$5:$C$1355=A19),--(Payments!$D$5:$D$1355=$P$3),Payments!$E$5:$E$1355)","v":0},{"$f":"SUMPRODUCT(--(Payments!$C$5:$C$1355=A19),--(Payments!$D$5:$D$1355=$Q$3),Payments!$E$5:$E$1355)","v":0},{"$f":"SUMPRODUCT(--(Payments!$C$5:$C$1355=A19),--(Payments!$D$5:$D$1355=$R$3),Payments!$E$5:$E$1355)","v":0},{"$f":"SUMPRODUCT(--(Payments!$C$5:$C$1355=A19),--(Payments!$D$5:$D$1355=$S$3),Payments!$E$5:$E$1355)","v":0},{"$f":"SUMPRODUCT(--(Payments!$C$5:$C$1355=A19),--(Payments!$D$5:$D$1355=$T$3),Payments!$E$5:$E$1355)","v":0},{"$f":"SUMPRODUCT(--(Payments!$C$5:$C$1355=A19),--(Payments!$D$5:$D$1355=$U$3),Payments!$E$5:$E$1355)","v":0},{"$f":"SUMPRODUCT(--(Payments!$C$5:$C$1355=A19),--(Payments!$D$5:$D$1355=$V$3),Payments!$E$5:$E$1355)","v":0},{"$f":"SUMPRODUCT(--(Payments!$C$5:$C$1355=A19),--(Payments!$D$5:$D$1355=$W$3),Payments!$E$5:$E$1355)","v":0},{"$f":"SUMPRODUCT(--(Payments!$C$5:$C$1355=A19),--(Payments!$D$5:$D$1355=$X$3),Payments!$E$5:$E$1355)","v":0},{"$f":"SUMPRODUCT(--(Payments!$C$5:$C$1355=A19),--(Payments!$D$5:$D$1355=$Y$3),Payments!$E$5:$E$1355)","v":0},{"$f":"SUMPRODUCT(--(Payments!$C$5:$C$1355=A19),--(Payments!$D$5:$D$1355=$Z$3),Payments!$E$5:$E$1355)","v":0},{"$f":"SUMPRODUCT(--(Payments!$C$5:$C$1355=A19),--(Payments!$D$5:$D$1355=$AA$3),Payments!$E$5:$E$1355)","v":0},{"$f":"SUMPRODUCT(--(Payments!$C$5:$C$1355=A19),--(Payments!$D$5:$D$1355=$AB$3),Payments!$E$5:$E$1355)","v":0},{"$f":"SUMPRODUCT(--(Payments!$C$5:$C$1355=A19),--(Payments!$D$5:$D$1355=$AC$3),Payments!$E$5:$E$1355)","v":0},{"$f":"SUMPRODUCT(--(Payments!$C$5:$C$1355=A19),--(Payments!$D$5:$D$1355=$AD$3),Payments!$E$5:$E$1355)","v":0},null,0,0,0,0,null,null,99,"Other payments not already listed ",null,0,0,0,0]
[{"$f":"Descriptions!I21","v":"Maintenance"},{"$f":"Descriptions!K21","v":"Church Running Expenses"},{"$f":"Descriptions!L21","v":"Church running expenses (including Governance) "},{"$f":"SUMPRODUCT(--(Payments!$C$5:$C$1355=A20),--(Payments!$D$5:$D$1355=$D$3),Payments!$E$5:$E$1355)","v":0},{"$f":"SUMPRODUCT(--(Payments!$C$5:$C$1355=A20),--(Payments!$D$5:$D$1355=$E$3),Payments!$E$5:$E$1355)","v":0},{"$f":"SUMPRODUCT(--(Payments!$C$5:$C$1355=A20),--(Payments!$D$5:$D$1355=$F$3),Payments!$E$5:$E$1355)","v":0},{"$f":"SUMPRODUCT(--(Payments!$C$5:$C$1355=A20),--(Payments!$D$5:$D$1355=$G$3),Payments!$E$5:$E$1355)","v":0},{"$f":"SUMPRODUCT(--(Payments!$C$5:$C$1355=A20),--(Payments!$D$5:$D$1355=$H$3),Payments!$E$5:$E$1355)","v":0},{"$f":"SUMPRODUCT(--(Payments!$C$5:$C$1355=A20),--(Payments!$D$5:$D$1355=$I$3),Payments!$E$5:$E$1355)","v":0},{"$f":"SUMPRODUCT(--(Payments!$C$5:$C$1355=A20),--(Payments!$D$5:$D$1355=$J$3),Payments!$E$5:$E$1355)","v":0},{"$f":"SUMPRODUCT(--(Payments!$C$5:$C$1355=A20),--(Payments!$D$5:$D$1355=$K$3),Payments!$E$5:$E$1355)","v":0},{"$f":"SUMPRODUCT(--(Payments!$C$5:$C$1355=A20),--(Payments!$D$5:$D$1355=$L$3),Payments!$E$5:$E$1355)","v":0},{"$f":"SUMPRODUCT(--(Payments!$C$5:$C$1355=A20),--(Payments!$D$5:$D$1355=$M$3),Payments!$E$5:$E$1355)","v":0},{"$f":"SUMPRODUCT(--(Payments!$C$5:$C$1355=A20),--(Payments!$D$5:$D$1355=$N$3),Payments!$E$5:$E$1355)","v":0},{"$f":"SUMPRODUCT(--(Payments!$C$5:$C$1355=A20),--(Payments!$D$5:$D$1355=$O$3),Payments!$E$5:$E$1355)","v":0},{"$f":"SUMPRODUCT(--(Payments!$C$5:$C$1355=A20),--(Payments!$D$5:$D$1355=$P$3),Payments!$E$5:$E$1355)","v":0},{"$f":"SUMPRODUCT(--(Payments!$C$5:$C$1355=A20),--(Payments!$D$5:$D$1355=$Q$3),Payments!$E$5:$E$1355)","v":0},{"$f":"SUMPRODUCT(--(Payments!$C$5:$C$1355=A20),--(Payments!$D$5:$D$1355=$R$3),Payments!$E$5:$E$1355)","v":0},{"$f":"SUMPRODUCT(--(Payments!$C$5:$C$1355=A20),--(Payments!$D$5:$D$1355=$S$3),Payments!$E$5:$E$1355)","v":0},{"$f":"SUMPRODUCT(--(Payments!$C$5:$C$1355=A20),--(Payments!$D$5:$D$1355=$T$3),Payments!$E$5:$E$1355)","v":0},{"$f":"SUMPRODUCT(--(Payments!$C$5:$C$1355=A20),--(Payments!$D$5:$D$1355=$U$3),Payments!$E$5:$E$1355)","v":0},{"$f":"SUMPRODUCT(--(Payments!$C$5:$C$1355=A20),--(Payments!$D$5:$D$1355=$V$3),Payments!$E$5:$E$1355)","v":0},{"$f":"SUMPRODUCT(--(Payments!$C$5:$C$1355=A20),--(Payments!$D$5:$D$1355=$W$3),Payments!$E$5:$E$1355)","v":0},{"$f":"SUMPRODUCT(--(Payments!$C$5:$C$1355=A20),--(Payments!$D$5:$D$1355=$X$3),Payments!$E$5:$E$1355)","v":0},{"$f":"SUMPRODUCT(--(Payments!$C$5:$C$1355=A20),--(Payments!$D$5:$D$1355=$Y$3),Payments!$E$5:$E$1355)","v":0},{"$f":"SUMPRODUCT(--(Payments!$C$5:$C$1355=A20),--(Payments!$D$5:$D$1355=$Z$3),Payments!$E$5:$E$1355)","v":0},{"$f":"SUMPRODUCT(--(Payments!$C$5:$C$1355=A20),--(Payments!$D$5:$D$1355=$AA$3),Payments!$E$5:$E$1355)","v":0},{"$f":"SUMPRODUCT(--(Payments!$C$5:$C$1355=A20),--(Payments!$D$5:$D$1355=$AB$3),Payments!$E$5:$E$1355)","v":0},{"$f":"SUMPRODUCT(--(Payments!$C$5:$C$1355=A20),--(Payments!$D$5:$D$1355=$AC$3),Payments!$E$5:$E$1355)","v":0},{"$f":"SUMPRODUCT(--(Payments!$C$5:$C$1355=A20),--(Payments!$D$5:$D$1355=$AD$3),Payments!$E$5:$E$1355)","v":0},null,0,0,0,0,null,null,20,"Salaries, wages and honoraria",null,0,0,0,0]
[{"$f":"Descriptions!I22","v":"Mission and Evangelism Costs"},{"$f":"Descriptions!K22","v":"Other Expenditure"},{"$f":"Descriptions!L22","v":"Church expenses: Mission and evangelism costs"},{"$f":"SUMPRODUCT(--(Payments!$C$5:$C$1355=A21),--(Payments!$D$5:$D$1355=$D$3),Payments!$E$5:$E$1355)","v":0},{"$f":"SUMPRODUCT(--(Payments!$C$5:$C$1355=A21),--(Payments!$D$5:$D$1355=$E$3),Payments!$E$5:$E$1355)","v":0},{"$f":"SUMPRODUCT(--(Payments!$C$5:$C$1355=A21),--(Payments!$D$5:$D$1355=$F$3),Payments!$E$5:$E$1355)","v":0},{"$f":"SUMPRODUCT(--(Payments!$C$5:$C$1355=A21),--(Payments!$D$5:$D$1355=$G$3),Payments!$E$5:$E$1355)","v":0},{"$f":"SUMPRODUCT(--(Payments!$C$5:$C$1355=A21),--(Payments!$D$5:$D$1355=$H$3),Payments!$E$5:$E$1355)","v":0},{"$f":"SUMPRODUCT(--(Payments!$C$5:$C$1355=A21),--(Payments!$D$5:$D$1355=$I$3),Payments!$E$5:$E$1355)","v":0},{"$f":"SUMPRODUCT(--(Payments!$C$5:$C$1355=A21),--(Payments!$D$5:$D$1355=$J$3),Payments!$E$5:$E$1355)","v":0},{"$f":"SUMPRODUCT(--(Payments!$C$5:$C$1355=A21),--(Payments!$D$5:$D$1355=$K$3),Payments!$E$5:$E$1355)","v":0},{"$f":"SUMPRODUCT(--(Payments!$C$5:$C$1355=A21),--(Payments!$D$5:$D$1355=$L$3),Payments!$E$5:$E$1355)","v":0},{"$f":"SUMPRODUCT(--(Payments!$C$5:$C$1355=A21),--(Payments!$D$5:$D$1355=$M$3),Payments!$E$5:$E$1355)","v":0},{"$f":"SUMPRODUCT(--(Payments!$C$5:$C$1355=A21),--(Payments!$D$5:$D$1355=$N$3),Payments!$E$5:$E$1355)","v":0},{"$f":"SUMPRODUCT(--(Payments!$C$5:$C$1355=A21),--(Payments!$D$5:$D$1355=$O$3),Payments!$E$5:$E$1355)","v":0},{"$f":"SUMPRODUCT(--(Payments!$C$5:$C$1355=A21),--(Payments!$D$5:$D$1355=$P$3),Payments!$E$5:$E$1355)","v":0},{"$f":"SUMPRODUCT(--(Payments!$C$5:$C$1355=A21),--(Payments!$D$5:$D$1355=$Q$3),Payments!$E$5:$E$1355)","v":0},{"$f":"SUMPRODUCT(--(Payments!$C$5:$C$1355=A21),--(Payments!$D$5:$D$1355=$R$3),Payments!$E$5:$E$1355)","v":0},{"$f":"SUMPRODUCT(--(Payments!$C$5:$C$1355=A21),--(Payments!$D$5:$D$1355=$S$3),Payments!$E$5:$E$1355)","v":0},{"$f":"SUMPRODUCT(--(Payments!$C$5:$C$1355=A21),--(Payments!$D$5:$D$1355=$T$3),Payments!$E$5:$E$1355)","v":0},{"$f":"SUMPRODUCT(--(Payments!$C$5:$C$1355=A21),--(Payments!$D$5:$D$1355=$U$3),Payments!$E$5:$E$1355)","v":0},{"$f":"SUMPRODUCT(--(Payments!$C$5:$C$1355=A21),--(Payments!$D$5:$D$1355=$V$3),Payments!$E$5:$E$1355)","v":0},{"$f":"SUMPRODUCT(--(Payments!$C$5:$C$1355=A21),--(Payments!$D$5:$D$1355=$W$3),Payments!$E$5:$E$1355)","v":0},{"$f":"SUMPRODUCT(--(Payments!$C$5:$C$1355=A21),--(Payments!$D$5:$D$1355=$X$3),Payments!$E$5:$E$1355)","v":0},{"$f":"SUMPRODUCT(--(Payments!$C$5:$C$1355=A21),--(Payments!$D$5:$D$1355=$Y$3),Payments!$E$5:$E$1355)","v":0},{"$f":"SUMPRODUCT(--(Payments!$C$5:$C$1355=A21),--(Payments!$D$5:$D$1355=$Z$3),Payments!$E$5:$E$1355)","v":0},{"$f":"SUMPRODUCT(--(Payments!$C$5:$C$1355=A21),--(Payments!$D$5:$D$1355=$AA$3),Payments!$E$5:$E$1355)","v":0},{"$f":"SUMPRODUCT(--(Payments!$C$5:$C$1355=A21),--(Payments!$D$5:$D$1355=$AB$3),Payments!$E$5:$E$1355)","v":0},{"$f":"SUMPRODUCT(--(Payments!$C$5:$C$1355=A21),--(Payments!$D$5:$D$1355=$AC$3),Payments!$E$5:$E$1355)","v":0},{"$f":"SUMPRODUCT(--(Payments!$C$5:$C$1355=A21),--(Payments!$D$5:$D$1355=$AD$3),Payments!$E$5:$E$1355)","v":0},null,0,0,0,0]
[{"$f":"Descriptions!I23","v":"New Building Work"},{"$f":"Descriptions!K23","v":"Building Work and Repairs"},{"$f":"Descriptions!L23","v":"New building work to the church, church hall, clergy housing or other PCC property"},{"$f":"SUMPRODUCT(--(Payments!$C$5:$C$1355=A22),--(Payments!$D$5:$D$1355=$D$3),Payments!$E$5:$E$1355)","v":0},{"$f":"SUMPRODUCT(--(Payments!$C$5:$C$1355=A22),--(Payments!$D$5:$D$1355=$E$3),Payments!$E$5:$E$1355)","v":0},{"$f":"SUMPRODUCT(--(Payments!$C$5:$C$1355=A22),--(Payments!$D$5:$D$1355=$F$3),Payments!$E$5:$E$1355)","v":0},{"$f":"SUMPRODUCT(--(Payments!$C$5:$C$1355=A22),--(Payments!$D$5:$D$1355=$G$3),Payments!$E$5:$E$1355)","v":0},{"$f":"SUMPRODUCT(--(Payments!$C$5:$C$1355=A22),--(Payments!$D$5:$D$1355=$H$3),Payments!$E$5:$E$1355)","v":0},{"$f":"SUMPRODUCT(--(Payments!$C$5:$C$1355=A22),--(Payments!$D$5:$D$1355=$I$3),Payments!$E$5:$E$1355)","v":0},{"$f":"SUMPRODUCT(--(Payments!$C$5:$C$1355=A22),--(Payments!$D$5:$D$1355=$J$3),Payments!$E$5:$E$1355)","v":0},{"$f":"SUMPRODUCT(--(Payments!$C$5:$C$1355=A22),--(Payments!$D$5:$D$1355=$K$3),Payments!$E$5:$E$1355)","v":0},{"$f":"SUMPRODUCT(--(Payments!$C$5:$C$1355=A22),--(Payments!$D$5:$D$1355=$L$3),Payments!$E$5:$E$1355)","v":0},{"$f":"SUMPRODUCT(--(Payments!$C$5:$C$1355=A22),--(Payments!$D$5:$D$1355=$M$3),Payments!$E$5:$E$1355)","v":0},{"$f":"SUMPRODUCT(--(Payments!$C$5:$C$1355=A22),--(Payments!$D$5:$D$1355=$N$3),Payments!$E$5:$E$1355)","v":0},{"$f":"SUMPRODUCT(--(Payments!$C$5:$C$1355=A22),--(Payments!$D$5:$D$1355=$O$3),Payments!$E$5:$E$1355)","v":0},{"$f":"SUMPRODUCT(--(Payments!$C$5:$C$1355=A22),--(Payments!$D$5:$D$1355=$P$3),Payments!$E$5:$E$1355)","v":0},{"$f":"SUMPRODUCT(--(Payments!$C$5:$C$1355=A22),--(Payments!$D$5:$D$1355=$Q$3),Payments!$E$5:$E$1355)","v":0},{"$f":"SUMPRODUCT(--(Payments!$C$5:$C$1355=A22),--(Payments!$D$5:$D$1355=$R$3),Payments!$E$5:$E$1355)","v":0},{"$f":"SUMPRODUCT(--(Payments!$C$5:$C$1355=A22),--(Payments!$D$5:$D$1355=$S$3),Payments!$E$5:$E$1355)","v":0},{"$f":"SUMPRODUCT(--(Payments!$C$5:$C$1355=A22),--(Payments!$D$5:$D$1355=$T$3),Payments!$E$5:$E$1355)","v":0},{"$f":"SUMPRODUCT(--(Payments!$C$5:$C$1355=A22),--(Payments!$D$5:$D$1355=$U$3),Payments!$E$5:$E$1355)","v":0},{"$f":"SUMPRODUCT(--(Payments!$C$5:$C$1355=A22),--(Payments!$D$5:$D$1355=$V$3),Payments!$E$5:$E$1355)","v":0},{"$f":"SUMPRODUCT(--(Payments!$C$5:$C$1355=A22),--(Payments!$D$5:$D$1355=$W$3),Payments!$E$5:$E$1355)","v":0},{"$f":"SUMPRODUCT(--(Payments!$C$5:$C$1355=A22),--(Payments!$D$5:$D$1355=$X$3),Payments!$E$5:$E$1355)","v":0},{"$f":"SUMPRODUCT(--(Payments!$C$5:$C$1355=A22),--(Payments!$D$5:$D$1355=$Y$3),Payments!$E$5:$E$1355)","v":0},{"$f":"SUMPRODUCT(--(Payments!$C$5:$C$1355=A22),--(Payments!$D$5:$D$1355=$Z$3),Payments!$E$5:$E$1355)","v":0},{"$f":"SUMPRODUCT(--(Payments!$C$5:$C$1355=A22),--(Payments!$D$5:$D$1355=$AA$3),Payments!$E$5:$E$1355)","v":0},{"$f":"SUMPRODUCT(--(Payments!$C$5:$C$1355=A22),--(Payments!$D$5:$D$1355=$AB$3),Payments!$E$5:$E$1355)","v":0},{"$f":"SUMPRODUCT(--(Payments!$C$5:$C$1355=A22),--(Payments!$D$5:$D$1355=$AC$3),Payments!$E$5:$E$1355)","v":0},{"$f":"SUMPRODUCT(--(Payments!$C$5:$C$1355=A22),--(Payments!$D$5:$D$1355=$AD$3),Payments!$E$5:$E$1355)","v":0},null,0,0,0,0]
[{"$f":"Descriptions!I24","v":"Parish Share Paid"},{"$f":"Descriptions!K24","v":"Parish Share"},{"$f":"Descriptions!L24","v":"Diocesan parish share contribution"},{"$f":"SUMPRODUCT(--(Payments!$C$5:$C$1355=A23),--(Payments!$D$5:$D$1355=$D$3),Payments!$E$5:$E$1355)","v":0},{"$f":"SUMPRODUCT(--(Payments!$C$5:$C$1355=A23),--(Payments!$D$5:$D$1355=$E$3),Payments!$E$5:$E$1355)","v":0},{"$f":"SUMPRODUCT(--(Payments!$C$5:$C$1355=A23),--(Payments!$D$5:$D$1355=$F$3),Payments!$E$5:$E$1355)","v":0},{"$f":"SUMPRODUCT(--(Payments!$C$5:$C$1355=A23),--(Payments!$D$5:$D$1355=$G$3),Payments!$E$5:$E$1355)","v":0},{"$f":"SUMPRODUCT(--(Payments!$C$5:$C$1355=A23),--(Payments!$D$5:$D$1355=$H$3),Payments!$E$5:$E$1355)","v":0},{"$f":"SUMPRODUCT(--(Payments!$C$5:$C$1355=A23),--(Payments!$D$5:$D$1355=$I$3),Payments!$E$5:$E$1355)","v":0},{"$f":"SUMPRODUCT(--(Payments!$C$5:$C$1355=A23),--(Payments!$D$5:$D$1355=$J$3),Payments!$E$5:$E$1355)","v":0},{"$f":"SUMPRODUCT(--(Payments!$C$5:$C$1355=A23),--(Payments!$D$5:$D$1355=$K$3),Payments!$E$5:$E$1355)","v":0},{"$f":"SUMPRODUCT(--(Payments!$C$5:$C$1355=A23),--(Payments!$D$5:$D$1355=$L$3),Payments!$E$5:$E$1355)","v":0},{"$f":"SUMPRODUCT(--(Payments!$C$5:$C$1355=A23),--(Payments!$D$5:$D$1355=$M$3),Payments!$E$5:$E$1355)","v":0},{"$f":"SUMPRODUCT(--(Payments!$C$5:$C$1355=A23),--(Payments!$D$5:$D$1355=$N$3),Payments!$E$5:$E$1355)","v":0},{"$f":"SUMPRODUCT(--(Payments!$C$5:$C$1355=A23),--(Payments!$D$5:$D$1355=$O$3),Payments!$E$5:$E$1355)","v":0},{"$f":"SUMPRODUCT(--(Payments!$C$5:$C$1355=A23),--(Payments!$D$5:$D$1355=$P$3),Payments!$E$5:$E$1355)","v":0},{"$f":"SUMPRODUCT(--(Payments!$C$5:$C$1355=A23),--(Payments!$D$5:$D$1355=$Q$3),Payments!$E$5:$E$1355)","v":0},{"$f":"SUMPRODUCT(--(Payments!$C$5:$C$1355=A23),--(Payments!$D$5:$D$1355=$R$3),Payments!$E$5:$E$1355)","v":0},{"$f":"SUMPRODUCT(--(Payments!$C$5:$C$1355=A23),--(Payments!$D$5:$D$1355=$S$3),Payments!$E$5:$E$1355)","v":0},{"$f":"SUMPRODUCT(--(Payments!$C$5:$C$1355=A23),--(Payments!$D$5:$D$1355=$T$3),Payments!$E$5:$E$1355)","v":0},{"$f":"SUMPRODUCT(--(Payments!$C$5:$C$1355=A23),--(Payments!$D$5:$D$1355=$U$3),Payments!$E$5:$E$1355)","v":0},{"$f":"SUMPRODUCT(--(Payments!$C$5:$C$1355=A23),--(Payments!$D$5:$D$1355=$V$3),Payments!$E$5:$E$1355)","v":0},{"$f":"SUMPRODUCT(--(Payments!$C$5:$C$1355=A23),--(Payments!$D$5:$D$1355=$W$3),Payments!$E$5:$E$1355)","v":0},{"$f":"SUMPRODUCT(--(Payments!$C$5:$C$1355=A23),--(Payments!$D$5:$D$1355=$X$3),Payments!$E$5:$E$1355)","v":0},{"$f":"SUMPRODUCT(--(Payments!$C$5:$C$1355=A23),--(Payments!$D$5:$D$1355=$Y$3),Payments!$E$5:$E$1355)","v":0},{"$f":"SUMPRODUCT(--(Payments!$C$5:$C$1355=A23),--(Payments!$D$5:$D$1355=$Z$3),Payments!$E$5:$E$1355)","v":0},{"$f":"SUMPRODUCT(--(Payments!$C$5:$C$1355=A23),--(Payments!$D$5:$D$1355=$AA$3),Payments!$E$5:$E$1355)","v":0},{"$f":"SUMPRODUCT(--(Payments!$C$5:$C$1355=A23),--(Payments!$D$5:$D$1355=$AB$3),Payments!$E$5:$E$1355)","v":0},{"$f":"SUMPRODUCT(--(Payments!$C$5:$C$1355=A23),--(Payments!$D$5:$D$1355=$AC$3),Payments!$E$5:$E$1355)","v":0},{"$f":"SUMPRODUCT(--(Payments!$C$5:$C$1355=A23),--(Payments!$D$5:$D$1355=$AD$3),Payments!$E$5:$E$1355)","v":0},null,0,0,0,0]
[{"$f":"Descriptions!I25","v":"Printing"},{"$f":"Descriptions!K25","v":"Administration Costs"},{"$f":"Descriptions!L25","v":"Clergy and staff expenses"},{"$f":"SUMPRODUCT(--(Payments!$C$5:$C$1355=A24),--(Payments!$D$5:$D$1355=$D$3),Payments!$E$5:$E$1355)","v":0},{"$f":"SUMPRODUCT(--(Payments!$C$5:$C$1355=A24),--(Payments!$D$5:$D$1355=$E$3),Payments!$E$5:$E$1355)","v":0},{"$f":"SUMPRODUCT(--(Payments!$C$5:$C$1355=A24),--(Payments!$D$5:$D$1355=$F$3),Payments!$E$5:$E$1355)","v":0},{"$f":"SUMPRODUCT(--(Payments!$C$5:$C$1355=A24),--(Payments!$D$5:$D$1355=$G$3),Payments!$E$5:$E$1355)","v":0},{"$f":"SUMPRODUCT(--(Payments!$C$5:$C$1355=A24),--(Payments!$D$5:$D$1355=$H$3),Payments!$E$5:$E$1355)","v":0},{"$f":"SUMPRODUCT(--(Payments!$C$5:$C$1355=A24),--(Payments!$D$5:$D$1355=$I$3),Payments!$E$5:$E$1355)","v":0},{"$f":"SUMPRODUCT(--(Payments!$C$5:$C$1355=A24),--(Payments!$D$5:$D$1355=$J$3),Payments!$E$5:$E$1355)","v":0},{"$f":"SUMPRODUCT(--(Payments!$C$5:$C$1355=A24),--(Payments!$D$5:$D$1355=$K$3),Payments!$E$5:$E$1355)","v":0},{"$f":"SUMPRODUCT(--(Payments!$C$5:$C$1355=A24),--(Payments!$D$5:$D$1355=$L$3),Payments!$E$5:$E$1355)","v":0},{"$f":"SUMPRODUCT(--(Payments!$C$5:$C$1355=A24),--(Payments!$D$5:$D$1355=$M$3),Payments!$E$5:$E$1355)","v":0},{"$f":"SUMPRODUCT(--(Payments!$C$5:$C$1355=A24),--(Payments!$D$5:$D$1355=$N$3),Payments!$E$5:$E$1355)","v":0},{"$f":"SUMPRODUCT(--(Payments!$C$5:$C$1355=A24),--(Payments!$D$5:$D$1355=$O$3),Payments!$E$5:$E$1355)","v":0},{"$f":"SUMPRODUCT(--(Payments!$C$5:$C$1355=A24),--(Payments!$D$5:$D$1355=$P$3),Payments!$E$5:$E$1355)","v":0},{"$f":"SUMPRODUCT(--(Payments!$C$5:$C$1355=A24),--(Payments!$D$5:$D$1355=$Q$3),Payments!$E$5:$E$1355)","v":0},{"$f":"SUMPRODUCT(--(Payments!$C$5:$C$1355=A24),--(Payments!$D$5:$D$1355=$R$3),Payments!$E$5:$E$1355)","v":0},{"$f":"SUMPRODUCT(--(Payments!$C$5:$C$1355=A24),--(Payments!$D$5:$D$1355=$S$3),Payments!$E$5:$E$1355)","v":0},{"$f":"SUMPRODUCT(--(Payments!$C$5:$C$1355=A24),--(Payments!$D$5:$D$1355=$T$3),Payments!$E$5:$E$1355)","v":0},{"$f":"SUMPRODUCT(--(Payments!$C$5:$C$1355=A24),--(Payments!$D$5:$D$1355=$U$3),Payments!$E$5:$E$1355)","v":0},{"$f":"SUMPRODUCT(--(Payments!$C$5:$C$1355=A24),--(Payments!$D$5:$D$1355=$V$3),Payments!$E$5:$E$1355)","v":0},{"$f":"SUMPRODUCT(--(Payments!$C$5:$C$1355=A24),--(Payments!$D$5:$D$1355=$W$3),Payments!$E$5:$E$1355)","v":0},{"$f":"SUMPRODUCT(--(Payments!$C$5:$C$1355=A24),--(Payments!$D$5:$D$1355=$X$3),Payments!$E$5:$E$1355)","v":0},{"$f":"SUMPRODUCT(--(Payments!$C$5:$C$1355=A24),--(Payments!$D$5:$D$1355=$Y$3),Payments!$E$5:$E$1355)","v":0},{"$f":"SUMPRODUCT(--(Payments!$C$5:$C$1355=A24),--(Payments!$D$5:$D$1355=$Z$3),Payments!$E$5:$E$1355)","v":0},{"$f":"SUMPRODUCT(--(Payments!$C$5:$C$1355=A24),--(Payments!$D$5:$D$1355=$AA$3),Payments!$E$5:$E$1355)","v":0},{"$f":"SUMPRODUCT(--(Payments!$C$5:$C$1355=A24),--(Payments!$D$5:$D$1355=$AB$3),Payments!$E$5:$E$1355)","v":0},{"$f":"SUMPRODUCT(--(Payments!$C$5:$C$1355=A24),--(Payments!$D$5:$D$1355=$AC$3),Payments!$E$5:$E$1355)","v":0},{"$f":"SUMPRODUCT(--(Payments!$C$5:$C$1355=A24),--(Payments!$D$5:$D$1355=$AD$3),Payments!$E$5:$E$1355)","v":0},null,0,0,0,0,null,null,null,"Administration Costs",null,{"$f":"SUMPRODUCT(($B$5:$B$83=AM24)*($AF$5:$AF$83))","v":0},{"$f":"SUMPRODUCT(($B$5:$B$83=AM24)*($AG$5:$AG$83))","v":0},{"$f":"SUMPRODUCT(($B$5:$B$83=AM24)*($AH$5:$AH$83))","v":0},{"$f":"SUMPRODUCT(($B$5:$B$83=AM24)*($AI$5:$AI$83))","v":0}]
[{"$f":"Descriptions!I26","v":"Salaries"},{"$f":"Descriptions!K26","v":"Clergy and Staffing Costs"},{"$f":"Descriptions!L26","v":"Salaries, wages and honoraria"},{"$f":"SUMPRODUCT(--(Payments!$C$5:$C$1355=A25),--(Payments!$D$5:$D$1355=$D$3),Payments!$E$5:$E$1355)","v":0},{"$f":"SUMPRODUCT(--(Payments!$C$5:$C$1355=A25),--(Payments!$D$5:$D$1355=$E$3),Payments!$E$5:$E$1355)","v":0},{"$f":"SUMPRODUCT(--(Payments!$C$5:$C$1355=A25),--(Payments!$D$5:$D$1355=$F$3),Payments!$E$5:$E$1355)","v":0},{"$f":"SUMPRODUCT(--(Payments!$C$5:$C$1355=A25),--(Payments!$D$5:$D$1355=$G$3),Payments!$E$5:$E$1355)","v":0},{"$f":"SUMPRODUCT(--(Payments!$C$5:$C$1355=A25),--(Payments!$D$5:$D$1355=$H$3),Payments!$E$5:$E$1355)","v":0},{"$f":"SUMPRODUCT(--(Payments!$C$5:$C$1355=A25),--(Payments!$D$5:$D$1355=$I$3),Payments!$E$5:$E$1355)","v":0},{"$f":"SUMPRODUCT(--(Payments!$C$5:$C$1355=A25),--(Payments!$D$5:$D$1355=$J$3),Payments!$E$5:$E$1355)","v":0},{"$f":"SUMPRODUCT(--(Payments!$C$5:$C$1355=A25),--(Payments!$D$5:$D$1355=$K$3),Payments!$E$5:$E$1355)","v":0},{"$f":"SUMPRODUCT(--(Payments!$C$5:$C$1355=A25),--(Payments!$D$5:$D$1355=$L$3),Payments!$E$5:$E$1355)","v":0},{"$f":"SUMPRODUCT(--(Payments!$C$5:$C$1355=A25),--(Payments!$D$5:$D$1355=$M$3),Payments!$E$5:$E$1355)","v":0},{"$f":"SUMPRODUCT(--(Payments!$C$5:$C$1355=A25),--(Payments!$D$5:$D$1355=$N$3),Payments!$E$5:$E$1355)","v":0},{"$f":"SUMPRODUCT(--(Payments!$C$5:$C$1355=A25),--(Payments!$D$5:$D$1355=$O$3),Payments!$E$5:$E$1355)","v":0},{"$f":"SUMPRODUCT(--(Payments!$C$5:$C$1355=A25),--(Payments!$D$5:$D$1355=$P$3),Payments!$E$5:$E$1355)","v":0},{"$f":"SUMPRODUCT(--(Payments!$C$5:$C$1355=A25),--(Payments!$D$5:$D$1355=$Q$3),Payments!$E$5:$E$1355)","v":0},{"$f":"SUMPRODUCT(--(Payments!$C$5:$C$1355=A25),--(Payments!$D$5:$D$1355=$R$3),Payments!$E$5:$E$1355)","v":0},{"$f":"SUMPRODUCT(--(Payments!$C$5:$C$1355=A25),--(Payments!$D$5:$D$1355=$S$3),Payments!$E$5:$E$1355)","v":0},{"$f":"SUMPRODUCT(--(Payments!$C$5:$C$1355=A25),--(Payments!$D$5:$D$1355=$T$3),Payments!$E$5:$E$1355)","v":0},{"$f":"SUMPRODUCT(--(Payments!$C$5:$C$1355=A25),--(Payments!$D$5:$D$1355=$U$3),Payments!$E$5:$E$1355)","v":0},{"$f":"SUMPRODUCT(--(Payments!$C$5:$C$1355=A25),--(Payments!$D$5:$D$1355=$V$3),Payments!$E$5:$E$1355)","v":0},{"$f":"SUMPRODUCT(--(Payments!$C$5:$C$1355=A25),--(Payments!$D$5:$D$1355=$W$3),Payments!$E$5:$E$1355)","v":0},{"$f":"SUMPRODUCT(--(Payments!$C$5:$C$1355=A25),--(Payments!$D$5:$D$1355=$X$3),Payments!$E$5:$E$1355)","v":0},{"$f":"SUMPRODUCT(--(Payments!$C$5:$C$1355=A25),--(Payments!$D$5:$D$1355=$Y$3),Payments!$E$5:$E$1355)","v":0},{"$f":"SUMPRODUCT(--(Payments!$C$5:$C$1355=A25),--(Payments!$D$5:$D$1355=$Z$3),Payments!$E$5:$E$1355)","v":0},{"$f":"SUMPRODUCT(--(Payments!$C$5:$C$1355=A25),--(Payments!$D$5:$D$1355=$AA$3),Payments!$E$5:$E$1355)","v":0},{"$f":"SUMPRODUCT(--(Payments!$C$5:$C$1355=A25),--(Payments!$D$5:$D$1355=$AB$3),Payments!$E$5:$E$1355)","v":0},{"$f":"SUMPRODUCT(--(Payments!$C$5:$C$1355=A25),--(Payments!$D$5:$D$1355=$AC$3),Payments!$E$5:$E$1355)","v":0},{"$f":"SUMPRODUCT(--(Payments!$C$5:$C$1355=A25),--(Payments!$D$5:$D$1355=$AD$3),Payments!$E$5:$E$1355)","v":0},null,0,0,0,0,null,null,null,"Building Work and Repairs",null,{"$f":"SUMPRODUCT(($B$5:$B$83=AM25)*($AF$5:$AF$83))","v":0},{"$f":"SUMPRODUCT(($B$5:$B$83=AM25)*($AG$5:$AG$83))","v":0},{"$f":"SUMPRODUCT(($B$5:$B$83=AM25)*($AH$5:$AH$83))","v":0},{"$f":"SUMPRODUCT(($B$5:$B$83=AM25)*($AI$5:$AI$83))","v":0}]
[{"$f":"Descriptions!I27","v":"Service Costs"},{"$f":"Descriptions!K27","v":"Church Running Expenses"},{"$f":"Descriptions!L27","v":"Church running expenses (including Governance) "},{"$f":"SUMPRODUCT(--(Payments!$C$5:$C$1355=A26),--(Payments!$D$5:$D$1355=$D$3),Payments!$E$5:$E$1355)","v":0},{"$f":"SUMPRODUCT(--(Payments!$C$5:$C$1355=A26),--(Payments!$D$5:$D$1355=$E$3),Payments!$E$5:$E$1355)","v":0},{"$f":"SUMPRODUCT(--(Payments!$C$5:$C$1355=A26),--(Payments!$D$5:$D$1355=$F$3),Payments!$E$5:$E$1355)","v":0},{"$f":"SUMPRODUCT(--(Payments!$C$5:$C$1355=A26),--(Payments!$D$5:$D$1355=$G$3),Payments!$E$5:$E$1355)","v":0},{"$f":"SUMPRODUCT(--(Payments!$C$5:$C$1355=A26),--(Payments!$D$5:$D$1355=$H$3),Payments!$E$5:$E$1355)","v":0},{"$f":"SUMPRODUCT(--(Payments!$C$5:$C$1355=A26),--(Payments!$D$5:$D$1355=$I$3),Payments!$E$5:$E$1355)","v":0},{"$f":"SUMPRODUCT(--(Payments!$C$5:$C$1355=A26),--(Payments!$D$5:$D$1355=$J$3),Payments!$E$5:$E$1355)","v":0},{"$f":"SUMPRODUCT(--(Payments!$C$5:$C$1355=A26),--(Payments!$D$5:$D$1355=$K$3),Payments!$E$5:$E$1355)","v":0},{"$f":"SUMPRODUCT(--(Payments!$C$5:$C$1355=A26),--(Payments!$D$5:$D$1355=$L$3),Payments!$E$5:$E$1355)","v":0},{"$f":"SUMPRODUCT(--(Payments!$C$5:$C$1355=A26),--(Payments!$D$5:$D$1355=$M$3),Payments!$E$5:$E$1355)","v":0},{"$f":"SUMPRODUCT(--(Payments!$C$5:$C$1355=A26),--(Payments!$D$5:$D$1355=$N$3),Payments!$E$5:$E$1355)","v":0},{"$f":"SUMPRODUCT(--(Payments!$C$5:$C$1355=A26),--(Payments!$D$5:$D$1355=$O$3),Payments!$E$5:$E$1355)","v":0},{"$f":"SUMPRODUCT(--(Payments!$C$5:$C$1355=A26),--(Payments!$D$5:$D$1355=$P$3),Payments!$E$5:$E$1355)","v":0},{"$f":"SUMPRODUCT(--(Payments!$C$5:$C$1355=A26),--(Payments!$D$5:$D$1355=$Q$3),Payments!$E$5:$E$1355)","v":0},{"$f":"SUMPRODUCT(--(Payments!$C$5:$C$1355=A26),--(Payments!$D$5:$D$1355=$R$3),Payments!$E$5:$E$1355)","v":0},{"$f":"SUMPRODUCT(--(Payments!$C$5:$C$1355=A26),--(Payments!$D$5:$D$1355=$S$3),Payments!$E$5:$E$1355)","v":0},{"$f":"SUMPRODUCT(--(Payments!$C$5:$C$1355=A26),--(Payments!$D$5:$D$1355=$T$3),Payments!$E$5:$E$1355)","v":0},{"$f":"SUMPRODUCT(--(Payments!$C$5:$C$1355=A26),--(Payments!$D$5:$D$1355=$U$3),Payments!$E$5:$E$1355)","v":0},{"$f":"SUMPRODUCT(--(Payments!$C$5:$C$1355=A26),--(Payments!$D$5:$D$1355=$V$3),Payments!$E$5:$E$1355)","v":0},{"$f":"SUMPRODUCT(--(Payments!$C$5:$C$1355=A26),--(Payments!$D$5:$D$1355=$W$3),Payments!$E$5:$E$1355)","v":0},{"$f":"SUMPRODUCT(--(Payments!$C$5:$C$1355=A26),--(Payments!$D$5:$D$1355=$X$3),Payments!$E$5:$E$1355)","v":0},{"$f":"SUMPRODUCT(--(Payments!$C$5:$C$1355=A26),--(Payments!$D$5:$D$1355=$Y$3),Payments!$E$5:$E$1355)","v":0},{"$f":"SUMPRODUCT(--(Payments!$C$5:$C$1355=A26),--(Payments!$D$5:$D$1355=$Z$3),Payments!$E$5:$E$1355)","v":0},{"$f":"SUMPRODUCT(--(Payments!$C$5:$C$1355=A26),--(Payments!$D$5:$D$1355=$AA$3),Payments!$E$5:$E$1355)","v":0},{"$f":"SUMPRODUCT(--(Payments!$C$5:$C$1355=A26),--(Payments!$D$5:$D$1355=$AB$3),Payments!$E$5:$E$1355)","v":0},{"$f":"SUMPRODUCT(--(Payments!$C$5:$C$1355=A26),--(Payments!$D$5:$D$1355=$AC$3),Payments!$E$5:$E$1355)","v":0},{"$f":"SUMPRODUCT(--(Payments!$C$5:$C$1355=A26),--(Payments!$D$5:$D$1355=$AD$3),Payments!$E$5:$E$1355)","v":0},null,0,0,0,0,null,null,null,"Church Running Expenses",null,0,0,0,0]
[{"$f":"Descriptions!I28","v":"Stationery"},{"$f":"Descriptions!K28","v":"Administration Costs"},{"$f":"Descriptions!L28","v":"Clergy and staff expenses"},{"$f":"SUMPRODUCT(--(Payments!$C$5:$C$1355=A27),--(Payments!$D$5:$D$1355=$D$3),Payments!$E$5:$E$1355)","v":0},{"$f":"SUMPRODUCT(--(Payments!$C$5:$C$1355=A27),--(Payments!$D$5:$D$1355=$E$3),Payments!$E$5:$E$1355)","v":0},{"$f":"SUMPRODUCT(--(Payments!$C$5:$C$1355=A27),--(Payments!$D$5:$D$1355=$F$3),Payments!$E$5:$E$1355)","v":0},{"$f":"SUMPRODUCT(--(Payments!$C$5:$C$1355=A27),--(Payments!$D$5:$D$1355=$G$3),Payments!$E$5:$E$1355)","v":0},{"$f":"SUMPRODUCT(--(Payments!$C$5:$C$1355=A27),--(Payments!$D$5:$D$1355=$H$3),Payments!$E$5:$E$1355)","v":0},{"$f":"SUMPRODUCT(--(Payments!$C$5:$C$1355=A27),--(Payments!$D$5:$D$1355=$I$3),Payments!$E$5:$E$1355)","v":0},{"$f":"SUMPRODUCT(--(Payments!$C$5:$C$1355=A27),--(Payments!$D$5:$D$1355=$J$3),Payments!$E$5:$E$1355)","v":0},{"$f":"SUMPRODUCT(--(Payments!$C$5:$C$1355=A27),--(Payments!$D$5:$D$1355=$K$3),Payments!$E$5:$E$1355)","v":0},{"$f":"SUMPRODUCT(--(Payments!$C$5:$C$1355=A27),--(Payments!$D$5:$D$1355=$L$3),Payments!$E$5:$E$1355)","v":0},{"$f":"SUMPRODUCT(--(Payments!$C$5:$C$1355=A27),--(Payments!$D$5:$D$1355=$M$3),Payments!$E$5:$E$1355)","v":0},{"$f":"SUMPRODUCT(--(Payments!$C$5:$C$1355=A27),--(Payments!$D$5:$D$1355=$N$3),Payments!$E$5:$E$1355)","v":0},{"$f":"SUMPRODUCT(--(Payments!$C$5:$C$1355=A27),--(Payments!$D$5:$D$1355=$O$3),Payments!$E$5:$E$1355)","v":0},{"$f":"SUMPRODUCT(--(Payments!$C$5:$C$1355=A27),--(Payments!$D$5:$D$1355=$P$3),Payments!$E$5:$E$1355)","v":0},{"$f":"SUMPRODUCT(--(Payments!$C$5:$C$1355=A27),--(Payments!$D$5:$D$1355=$Q$3),Payments!$E$5:$E$1355)","v":0},{"$f":"SUMPRODUCT(--(Payments!$C$5:$C$1355=A27),--(Payments!$D$5:$D$1355=$R$3),Payments!$E$5:$E$1355)","v":0},{"$f":"SUMPRODUCT(--(Payments!$C$5:$C$1355=A27),--(Payments!$D$5:$D$1355=$S$3),Payments!$E$5:$E$1355)","v":0},{"$f":"SUMPRODUCT(--(Payments!$C$5:$C$1355=A27),--(Payments!$D$5:$D$1355=$T$3),Payments!$E$5:$E$1355)","v":0},{"$f":"SUMPRODUCT(--(Payments!$C$5:$C$1355=A27),--(Payments!$D$5:$D$1355=$U$3),Payments!$E$5:$E$1355)","v":0},{"$f":"SUMPRODUCT(--(Payments!$C$5:$C$1355=A27),--(Payments!$D$5:$D$1355=$V$3),Payments!$E$5:$E$1355)","v":0},{"$f":"SUMPRODUCT(--(Payments!$C$5:$C$1355=A27),--(Payments!$D$5:$D$1355=$W$3),Payments!$E$5:$E$1355)","v":0},{"$f":"SUMPRODUCT(--(Payments!$C$5:$C$1355=A27),--(Payments!$D$5:$D$1355=$X$3),Payments!$E$5:$E$1355)","v":0},{"$f":"SUMPRODUCT(--(Payments!$C$5:$C$1355=A27),--(Payments!$D$5:$D$1355=$Y$3),Payments!$E$5:$E$1355)","v":0},{"$f":"SUMPRODUCT(--(Payments!$C$5:$C$1355=A27),--(Payments!$D$5:$D$1355=$Z$3),Payments!$E$5:$E$1355)","v":0},{"$f":"SUMPRODUCT(--(Payments!$C$5:$C$1355=A27),--(Payments!$D$5:$D$1355=$AA$3),Payments!$E$5:$E$1355)","v":0},{"$f":"SUMPRODUCT(--(Payments!$C$5:$C$1355=A27),--(Payments!$D$5:$D$1355=$AB$3),Payments!$E$5:$E$1355)","v":0},{"$f":"SUMPRODUCT(--(Payments!$C$5:$C$1355=A27),--(Payments!$D$5:$D$1355=$AC$3),Payments!$E$5:$E$1355)","v":0},{"$f":"SUMPRODUCT(--(Payments!$C$5:$C$1355=A27),--(Payments!$D$5:$D$1355=$AD$3),Payments!$E$5:$E$1355)","v":0},null,0,0,0,0,null,null,null,"Clergy and Staffing Costs",null,0,0,0,0]
[{"$f":"Descriptions!I29","v":"Support Costs"},{"$f":"Descriptions!K29","v":"Administration Costs"},{"$f":"Descriptions!L29","v":"Salaries, wages and honoraria"},{"$f":"SUMPRODUCT(--(Payments!$C$5:$C$1355=A28),--(Payments!$D$5:$D$1355=$D$3),Payments!$E$5:$E$1355)","v":0},{"$f":"SUMPRODUCT(--(Payments!$C$5:$C$1355=A28),--(Payments!$D$5:$D$1355=$E$3),Payments!$E$5:$E$1355)","v":0},{"$f":"SUMPRODUCT(--(Payments!$C$5:$C$1355=A28),--(Payments!$D$5:$D$1355=$F$3),Payments!$E$5:$E$1355)","v":0},{"$f":"SUMPRODUCT(--(Payments!$C$5:$C$1355=A28),--(Payments!$D$5:$D$1355=$G$3),Payments!$E$5:$E$1355)","v":0},{"$f":"SUMPRODUCT(--(Payments!$C$5:$C$1355=A28),--(Payments!$D$5:$D$1355=$H$3),Payments!$E$5:$E$1355)","v":0},{"$f":"SUMPRODUCT(--(Payments!$C$5:$C$1355=A28),--(Payments!$D$5:$D$1355=$I$3),Payments!$E$5:$E$1355)","v":0},{"$f":"SUMPRODUCT(--(Payments!$C$5:$C$1355=A28),--(Payments!$D$5:$D$1355=$J$3),Payments!$E$5:$E$1355)","v":0},{"$f":"SUMPRODUCT(--(Payments!$C$5:$C$1355=A28),--(Payments!$D$5:$D$1355=$K$3),Payments!$E$5:$E$1355)","v":0},{"$f":"SUMPRODUCT(--(Payments!$C$5:$C$1355=A28),--(Payments!$D$5:$D$1355=$L$3),Payments!$E$5:$E$1355)","v":0},{"$f":"SUMPRODUCT(--(Payments!$C$5:$C$1355=A28),--(Payments!$D$5:$D$1355=$M$3),Payments!$E$5:$E$1355)","v":0},{"$f":"SUMPRODUCT(--(Payments!$C$5:$C$1355=A28),--(Payments!$D$5:$D$1355=$N$3),Payments!$E$5:$E$1355)","v":0},{"$f":"SUMPRODUCT(--(Payments!$C$5:$C$1355=A28),--(Payments!$D$5:$D$1355=$O$3),Payments!$E$5:$E$1355)","v":0},{"$f":"SUMPRODUCT(--(Payments!$C$5:$C$1355=A28),--(Payments!$D$5:$D$1355=$P$3),Payments!$E$5:$E$1355)","v":0},{"$f":"SUMPRODUCT(--(Payments!$C$5:$C$1355=A28),--(Payments!$D$5:$D$1355=$Q$3),Payments!$E$5:$E$1355)","v":0},{"$f":"SUMPRODUCT(--(Payments!$C$5:$C$1355=A28),--(Payments!$D$5:$D$1355=$R$3),Payments!$E$5:$E$1355)","v":0},{"$f":"SUMPRODUCT(--(Payments!$C$5:$C$1355=A28),--(Payments!$D$5:$D$1355=$S$3),Payments!$E$5:$E$1355)","v":0},{"$f":"SUMPRODUCT(--(Payments!$C$5:$C$1355=A28),--(Payments!$D$5:$D$1355=$T$3),Payments!$E$5:$E$1355)","v":0},{"$f":"SUMPRODUCT(--(Payments!$C$5:$C$1355=A28),--(Payments!$D$5:$D$1355=$U$3),Payments!$E$5:$E$1355)","v":0},{"$f":"SUMPRODUCT(--(Payments!$C$5:$C$1355=A28),--(Payments!$D$5:$D$1355=$V$3),Payments!$E$5:$E$1355)","v":0},{"$f":"SUMPRODUCT(--(Payments!$C$5:$C$1355=A28),--(Payments!$D$5:$D$1355=$W$3),Payments!$E$5:$E$1355)","v":0},{"$f":"SUMPRODUCT(--(Payments!$C$5:$C$1355=A28),--(Payments!$D$5:$D$1355=$X$3),Payments!$E$5:$E$1355)","v":0},{"$f":"SUMPRODUCT(--(Payments!$C$5:$C$1355=A28),--(Payments!$D$5:$D$1355=$Y$3),Payments!$E$5:$E$1355)","v":0},{"$f":"SUMPRODUCT(--(Payments!$C$5:$C$1355=A28),--(Payments!$D$5:$D$1355=$Z$3),Payments!$E$5:$E$1355)","v":0},{"$f":"SUMPRODUCT(--(Payments!$C$5:$C$1355=A28),--(Payments!$D$5:$D$1355=$AA$3),Payments!$E$5:$E$1355)","v":0},{"$f":"SUMPRODUCT(--(Payments!$C$5:$C$1355=A28),--(Payments!$D$5:$D$1355=$AB$3),Payments!$E$5:$E$1355)","v":0},{"$f":"SUMPRODUCT(--(Payments!$C$5:$C$1355=A28),--(Payments!$D$5:$D$1355=$AC$3),Payments!$E$5:$E$1355)","v":0},{"$f":"SUMPRODUCT(--(Payments!$C$5:$C$1355=A28),--(Payments!$D$5:$D$1355=$AD$3),Payments!$E$5:$E$1355)","v":0},null,0,0,0,0,null,null,null,"Cost of Generating Funds",null,0,0,0,0]
[{"$f":"Descriptions!I30","v":"Bookstall"},{"$f":"Descriptions!K30","v":"Cost of Generating Funds"},{"$f":"Descriptions!L30","v":"Cost of trading"},{"$f":"SUMPRODUCT(--(Payments!$C$5:$C$1355=A29),--(Payments!$D$5:$D$1355=$D$3),Payments!$E$5:$E$1355)","v":0},{"$f":"SUMPRODUCT(--(Payments!$C$5:$C$1355=A29),--(Payments!$D$5:$D$1355=$E$3),Payments!$E$5:$E$1355)","v":0},{"$f":"SUMPRODUCT(--(Payments!$C$5:$C$1355=A29),--(Payments!$D$5:$D$1355=$F$3),Payments!$E$5:$E$1355)","v":0},{"$f":"SUMPRODUCT(--(Payments!$C$5:$C$1355=A29),--(Payments!$D$5:$D$1355=$G$3),Payments!$E$5:$E$1355)","v":0},{"$f":"SUMPRODUCT(--(Payments!$C$5:$C$1355=A29),--(Payments!$D$5:$D$1355=$H$3),Payments!$E$5:$E$1355)","v":0},{"$f":"SUMPRODUCT(--(Payments!$C$5:$C$1355=A29),--(Payments!$D$5:$D$1355=$I$3),Payments!$E$5:$E$1355)","v":0},{"$f":"SUMPRODUCT(--(Payments!$C$5:$C$1355=A29),--(Payments!$D$5:$D$1355=$J$3),Payments!$E$5:$E$1355)","v":0},{"$f":"SUMPRODUCT(--(Payments!$C$5:$C$1355=A29),--(Payments!$D$5:$D$1355=$K$3),Payments!$E$5:$E$1355)","v":0},{"$f":"SUMPRODUCT(--(Payments!$C$5:$C$1355=A29),--(Payments!$D$5:$D$1355=$L$3),Payments!$E$5:$E$1355)","v":0},{"$f":"SUMPRODUCT(--(Payments!$C$5:$C$1355=A29),--(Payments!$D$5:$D$1355=$M$3),Payments!$E$5:$E$1355)","v":0},{"$f":"SUMPRODUCT(--(Payments!$C$5:$C$1355=A29),--(Payments!$D$5:$D$1355=$N$3),Payments!$E$5:$E$1355)","v":0},{"$f":"SUMPRODUCT(--(Payments!$C$5:$C$1355=A29),--(Payments!$D$5:$D$1355=$O$3),Payments!$E$5:$E$1355)","v":0},{"$f":"SUMPRODUCT(--(Payments!$C$5:$C$1355=A29),--(Payments!$D$5:$D$1355=$P$3),Payments!$E$5:$E$1355)","v":0},{"$f":"SUMPRODUCT(--(Payments!$C$5:$C$1355=A29),--(Payments!$D$5:$D$1355=$Q$3),Payments!$E$5:$E$1355)","v":0},{"$f":"SUMPRODUCT(--(Payments!$C$5:$C$1355=A29),--(Payments!$D$5:$D$1355=$R$3),Payments!$E$5:$E$1355)","v":0},{"$f":"SUMPRODUCT(--(Payments!$C$5:$C$1355=A29),--(Payments!$D$5:$D$1355=$S$3),Payments!$E$5:$E$1355)","v":0},{"$f":"SUMPRODUCT(--(Payments!$C$5:$C$1355=A29),--(Payments!$D$5:$D$1355=$T$3),Payments!$E$5:$E$1355)","v":0},{"$f":"SUMPRODUCT(--(Payments!$C$5:$C$1355=A29),--(Payments!$D$5:$D$1355=$U$3),Payments!$E$5:$E$1355)","v":0},{"$f":"SUMPRODUCT(--(Payments!$C$5:$C$1355=A29),--(Payments!$D$5:$D$1355=$V$3),Payments!$E$5:$E$1355)","v":0},{"$f":"SUMPRODUCT(--(Payments!$C$5:$C$1355=A29),--(Payments!$D$5:$D$1355=$W$3),Payments!$E$5:$E$1355)","v":0},{"$f":"SUMPRODUCT(--(Payments!$C$5:$C$1355=A29),--(Payments!$D$5:$D$1355=$X$3),Payments!$E$5:$E$1355)","v":0},{"$f":"SUMPRODUCT(--(Payments!$C$5:$C$1355=A29),--(Payments!$D$5:$D$1355=$Y$3),Payments!$E$5:$E$1355)","v":0},{"$f":"SUMPRODUCT(--(Payments!$C$5:$C$1355=A29),--(Payments!$D$5:$D$1355=$Z$3),Payments!$E$5:$E$1355)","v":0},{"$f":"SUMPRODUCT(--(Payments!$C$5:$C$1355=A29),--(Payments!$D$5:$D$1355=$AA$3),Payments!$E$5:$E$1355)","v":0},{"$f":"SUMPRODUCT(--(Payments!$C$5:$C$1355=A29),--(Payments!$D$5:$D$1355=$AB$3),Payments!$E$5:$E$1355)","v":0},{"$f":"SUMPRODUCT(--(Payments!$C$5:$C$1355=A29),--(Payments!$D$5:$D$1355=$AC$3),Payments!$E$5:$E$1355)","v":0},{"$f":"SUMPRODUCT(--(Payments!$C$5:$C$1355=A29),--(Payments!$D$5:$D$1355=$AD$3),Payments!$E$5:$E$1355)","v":0},null,0,0,0,0,null,null,null,"Hall Running Costs",null,{"$f":"SUMPRODUCT(($B$5:$B$83=AM29)*($AF$5:$AF$83))","v":0},0,0,0]
[{"$f":"Descriptions!I31","v":"Hall Running Costs"},{"$f":"Descriptions!K31","v":"Cost of Generating Funds"},{"$f":"Descriptions!L31","v":"Cost of trading"},{"$f":"SUMPRODUCT(--(Payments!$C$5:$C$1355=A30),--(Payments!$D$5:$D$1355=$D$3),Payments!$E$5:$E$1355)","v":0},{"$f":"SUMPRODUCT(--(Payments!$C$5:$C$1355=A30),--(Payments!$D$5:$D$1355=$E$3),Payments!$E$5:$E$1355)","v":0},{"$f":"SUMPRODUCT(--(Payments!$C$5:$C$1355=A30),--(Payments!$D$5:$D$1355=$F$3),Payments!$E$5:$E$1355)","v":0},{"$f":"SUMPRODUCT(--(Payments!$C$5:$C$1355=A30),--(Payments!$D$5:$D$1355=$G$3),Payments!$E$5:$E$1355)","v":0},{"$f":"SUMPRODUCT(--(Payments!$C$5:$C$1355=A30),--(Payments!$D$5:$D$1355=$H$3),Payments!$E$5:$E$1355)","v":0},{"$f":"SUMPRODUCT(--(Payments!$C$5:$C$1355=A30),--(Payments!$D$5:$D$1355=$I$3),Payments!$E$5:$E$1355)","v":0},{"$f":"SUMPRODUCT(--(Payments!$C$5:$C$1355=A30),--(Payments!$D$5:$D$1355=$J$3),Payments!$E$5:$E$1355)","v":0},{"$f":"SUMPRODUCT(--(Payments!$C$5:$C$1355=A30),--(Payments!$D$5:$D$1355=$K$3),Payments!$E$5:$E$1355)","v":0},{"$f":"SUMPRODUCT(--(Payments!$C$5:$C$1355=A30),--(Payments!$D$5:$D$1355=$L$3),Payments!$E$5:$E$1355)","v":0},{"$f":"SUMPRODUCT(--(Payments!$C$5:$C$1355=A30),--(Payments!$D$5:$D$1355=$M$3),Payments!$E$5:$E$1355)","v":0},{"$f":"SUMPRODUCT(--(Payments!$C$5:$C$1355=A30),--(Payments!$D$5:$D$1355=$N$3),Payments!$E$5:$E$1355)","v":0},{"$f":"SUMPRODUCT(--(Payments!$C$5:$C$1355=A30),--(Payments!$D$5:$D$1355=$O$3),Payments!$E$5:$E$1355)","v":0},{"$f":"SUMPRODUCT(--(Payments!$C$5:$C$1355=A30),--(Payments!$D$5:$D$1355=$P$3),Payments!$E$5:$E$1355)","v":0},{"$f":"SUMPRODUCT(--(Payments!$C$5:$C$1355=A30),--(Payments!$D$5:$D$1355=$Q$3),Payments!$E$5:$E$1355)","v":0},{"$f":"SUMPRODUCT(--(Payments!$C$5:$C$1355=A30),--(Payments!$D$5:$D$1355=$R$3),Payments!$E$5:$E$1355)","v":0},{"$f":"SUMPRODUCT(--(Payments!$C$5:$C$1355=A30),--(Payments!$D$5:$D$1355=$S$3),Payments!$E$5:$E$1355)","v":0},{"$f":"SUMPRODUCT(--(Payments!$C$5:$C$1355=A30),--(Payments!$D$5:$D$1355=$T$3),Payments!$E$5:$E$1355)","v":0},{"$f":"SUMPRODUCT(--(Payments!$C$5:$C$1355=A30),--(Payments!$D$5:$D$1355=$U$3),Payments!$E$5:$E$1355)","v":0},{"$f":"SUMPRODUCT(--(Payments!$C$5:$C$1355=A30),--(Payments!$D$5:$D$1355=$V$3),Payments!$E$5:$E$1355)","v":0},{"$f":"SUMPRODUCT(--(Payments!$C$5:$C$1355=A30),--(Payments!$D$5:$D$1355=$W$3),Payments!$E$5:$E$1355)","v":0},{"$f":"SUMPRODUCT(--(Payments!$C$5:$C$1355=A30),--(Payments!$D$5:$D$1355=$X$3),Payments!$E$5:$E$1355)","v":0},{"$f":"SUMPRODUCT(--(Payments!$C$5:$C$1355=A30),--(Payments!$D$5:$D$1355=$Y$3),Payments!$E$5:$E$1355)","v":0},{"$f":"SUMPRODUCT(--(Payments!$C$5:$C$1355=A30),--(Payments!$D$5:$D$1355=$Z$3),Payments!$E$5:$E$1355)","v":0},{"$f":"SUMPRODUCT(--(Payments!$C$5:$C$1355=A30),--(Payments!$D$5:$D$1355=$AA$3),Payments!$E$5:$E$1355)","v":0},{"$f":"SUMPRODUCT(--(Payments!$C$5:$C$1355=A30),--(Payments!$D$5:$D$1355=$AB$3),Payments!$E$5:$E$1355)","v":0},{"$f":"SUMPRODUCT(--(Payments!$C$5:$C$1355=A30),--(Payments!$D$5:$D$1355=$AC$3),Payments!$E$5:$E$1355)","v":0},{"$f":"SUMPRODUCT(--(Payments!$C$5:$C$1355=A30),--(Payments!$D$5:$D$1355=$AD$3),Payments!$E$5:$E$1355)","v":0},null,0,0,0,0,null,null,null,"Mission Giving and Donations",null,0,0,0,0]
[{"$f":"Descriptions!I32","v":"Magazine"},{"$f":"Descriptions!K32","v":"Cost of Generating Funds"},{"$f":"Descriptions!L32","v":"Cost of trading"},{"$f":"SUMPRODUCT(--(Payments!$C$5:$C$1355=A31),--(Payments!$D$5:$D$1355=$D$3),Payments!$E$5:$E$1355)","v":0},{"$f":"SUMPRODUCT(--(Payments!$C$5:$C$1355=A31),--(Payments!$D$5:$D$1355=$E$3),Payments!$E$5:$E$1355)","v":0},{"$f":"SUMPRODUCT(--(Payments!$C$5:$C$1355=A31),--(Payments!$D$5:$D$1355=$F$3),Payments!$E$5:$E$1355)","v":0},{"$f":"SUMPRODUCT(--(Payments!$C$5:$C$1355=A31),--(Payments!$D$5:$D$1355=$G$3),Payments!$E$5:$E$1355)","v":0},{"$f":"SUMPRODUCT(--(Payments!$C$5:$C$1355=A31),--(Payments!$D$5:$D$1355=$H$3),Payments!$E$5:$E$1355)","v":0},{"$f":"SUMPRODUCT(--(Payments!$C$5:$C$1355=A31),--(Payments!$D$5:$D$1355=$I$3),Payments!$E$5:$E$1355)","v":0},{"$f":"SUMPRODUCT(--(Payments!$C$5:$C$1355=A31),--(Payments!$D$5:$D$1355=$J$3),Payments!$E$5:$E$1355)","v":0},{"$f":"SUMPRODUCT(--(Payments!$C$5:$C$1355=A31),--(Payments!$D$5:$D$1355=$K$3),Payments!$E$5:$E$1355)","v":0},{"$f":"SUMPRODUCT(--(Payments!$C$5:$C$1355=A31),--(Payments!$D$5:$D$1355=$L$3),Payments!$E$5:$E$1355)","v":0},{"$f":"SUMPRODUCT(--(Payments!$C$5:$C$1355=A31),--(Payments!$D$5:$D$1355=$M$3),Payments!$E$5:$E$1355)","v":0},{"$f":"SUMPRODUCT(--(Payments!$C$5:$C$1355=A31),--(Payments!$D$5:$D$1355=$N$3),Payments!$E$5:$E$1355)","v":0},{"$f":"SUMPRODUCT(--(Payments!$C$5:$C$1355=A31),--(Payments!$D$5:$D$1355=$O$3),Payments!$E$5:$E$1355)","v":0},{"$f":"SUMPRODUCT(--(Payments!$C$5:$C$1355=A31),--(Payments!$D$5:$D$1355=$P$3),Payments!$E$5:$E$1355)","v":0},{"$f":"SUMPRODUCT(--(Payments!$C$5:$C$1355=A31),--(Payments!$D$5:$D$1355=$Q$3),Payments!$E$5:$E$1355)","v":0},{"$f":"SUMPRODUCT(--(Payments!$C$5:$C$1355=A31),--(Payments!$D$5:$D$1355=$R$3),Payments!$E$5:$E$1355)","v":0},{"$f":"SUMPRODUCT(--(Payments!$C$5:$C$1355=A31),--(Payments!$D$5:$D$1355=$S$3),Payments!$E$5:$E$1355)","v":0},{"$f":"SUMPRODUCT(--(Payments!$C$5:$C$1355=A31),--(Payments!$D$5:$D$1355=$T$3),Payments!$E$5:$E$1355)","v":0},{"$f":"SUMPRODUCT(--(Payments!$C$5:$C$1355=A31),--(Payments!$D$5:$D$1355=$U$3),Payments!$E$5:$E$1355)","v":0},{"$f":"SUMPRODUCT(--(Payments!$C$5:$C$1355=A31),--(Payments!$D$5:$D$1355=$V$3),Payments!$E$5:$E$1355)","v":0},{"$f":"SUMPRODUCT(--(Payments!$C$5:$C$1355=A31),--(Payments!$D$5:$D$1355=$W$3),Payments!$E$5:$E$1355)","v":0},{"$f":"SUMPRODUCT(--(Payments!$C$5:$C$1355=A31),--(Payments!$D$5:$D$1355=$X$3),Payments!$E$5:$E$1355)","v":0},{"$f":"SUMPRODUCT(--(Payments!$C$5:$C$1355=A31),--(Payments!$D$5:$D$1355=$Y$3),Payments!$E$5:$E$1355)","v":0},{"$f":"SUMPRODUCT(--(Payments!$C$5:$C$1355=A31),--(Payments!$D$5:$D$1355=$Z$3),Payments!$E$5:$E$1355)","v":0},{"$f":"SUMPRODUCT(--(Payments!$C$5:$C$1355=A31),--(Payments!$D$5:$D$1355=$AA$3),Payments!$E$5:$E$1355)","v":0},{"$f":"SUMPRODUCT(--(Payments!$C$5:$C$1355=A31),--(Payments!$D$5:$D$1355=$AB$3),Payments!$E$5:$E$1355)","v":0},{"$f":"SUMPRODUCT(--(Payments!$C$5:$C$1355=A31),--(Payments!$D$5:$D$1355=$AC$3),Payments!$E$5:$E$1355)","v":0},{"$f":"SUMPRODUCT(--(Payments!$C$5:$C$1355=A31),--(Payments!$D$5:$D$1355=$AD$3),Payments!$E$5:$E$1355)","v":0},null,0,0,0,0,null,null,null,"Other Expenditure",null,0,0,0,0]
[{"$f":"Descriptions!I33","v":"Trading Costs - Property"},{"$f":"Descriptions!K33","v":"Other Expenditure"},{"$f":"Descriptions!L33","v":"Cost of trading"},{"$f":"SUMPRODUCT(--(Payments!$C$5:$C$1355=A32),--(Payments!$D$5:$D$1355=$D$3),Payments!$E$5:$E$1355)","v":0},{"$f":"SUMPRODUCT(--(Payments!$C$5:$C$1355=A32),--(Payments!$D$5:$D$1355=$E$3),Payments!$E$5:$E$1355)","v":0},{"$f":"SUMPRODUCT(--(Payments!$C$5:$C$1355=A32),--(Payments!$D$5:$D$1355=$F$3),Payments!$E$5:$E$1355)","v":0},{"$f":"SUMPRODUCT(--(Payments!$C$5:$C$1355=A32),--(Payments!$D$5:$D$1355=$G$3),Payments!$E$5:$E$1355)","v":0},{"$f":"SUMPRODUCT(--(Payments!$C$5:$C$1355=A32),--(Payments!$D$5:$D$1355=$H$3),Payments!$E$5:$E$1355)","v":0},{"$f":"SUMPRODUCT(--(Payments!$C$5:$C$1355=A32),--(Payments!$D$5:$D$1355=$I$3),Payments!$E$5:$E$1355)","v":0},{"$f":"SUMPRODUCT(--(Payments!$C$5:$C$1355=A32),--(Payments!$D$5:$D$1355=$J$3),Payments!$E$5:$E$1355)","v":0},{"$f":"SUMPRODUCT(--(Payments!$C$5:$C$1355=A32),--(Payments!$D$5:$D$1355=$K$3),Payments!$E$5:$E$1355)","v":0},{"$f":"SUMPRODUCT(--(Payments!$C$5:$C$1355=A32),--(Payments!$D$5:$D$1355=$L$3),Payments!$E$5:$E$1355)","v":0},{"$f":"SUMPRODUCT(--(Payments!$C$5:$C$1355=A32),--(Payments!$D$5:$D$1355=$M$3),Payments!$E$5:$E$1355)","v":0},{"$f":"SUMPRODUCT(--(Payments!$C$5:$C$1355=A32),--(Payments!$D$5:$D$1355=$N$3),Payments!$E$5:$E$1355)","v":0},{"$f":"SUMPRODUCT(--(Payments!$C$5:$C$1355=A32),--(Payments!$D$5:$D$1355=$O$3),Payments!$E$5:$E$1355)","v":0},{"$f":"SUMPRODUCT(--(Payments!$C$5:$C$1355=A32),--(Payments!$D$5:$D$1355=$P$3),Payments!$E$5:$E$1355)","v":0},{"$f":"SUMPRODUCT(--(Payments!$C$5:$C$1355=A32),--(Payments!$D$5:$D$1355=$Q$3),Payments!$E$5:$E$1355)","v":0},{"$f":"SUMPRODUCT(--(Payments!$C$5:$C$1355=A32),--(Payments!$D$5:$D$1355=$R$3),Payments!$E$5:$E$1355)","v":0},{"$f":"SUMPRODUCT(--(Payments!$C$5:$C$1355=A32),--(Payments!$D$5:$D$1355=$S$3),Payments!$E$5:$E$1355)","v":0},{"$f":"SUMPRODUCT(--(Payments!$C$5:$C$1355=A32),--(Payments!$D$5:$D$1355=$T$3),Payments!$E$5:$E$1355)","v":0},{"$f":"SUMPRODUCT(--(Payments!$C$5:$C$1355=A32),--(Payments!$D$5:$D$1355=$U$3),Payments!$E$5:$E$1355)","v":0},{"$f":"SUMPRODUCT(--(Payments!$C$5:$C$1355=A32),--(Payments!$D$5:$D$1355=$V$3),Payments!$E$5:$E$1355)","v":0},{"$f":"SUMPRODUCT(--(Payments!$C$5:$C$1355=A32),--(Payments!$D$5:$D$1355=$W$3),Payments!$E$5:$E$1355)","v":0},{"$f":"SUMPRODUCT(--(Payments!$C$5:$C$1355=A32),--(Payments!$D$5:$D$1355=$X$3),Payments!$E$5:$E$1355)","v":0},{"$f":"SUMPRODUCT(--(Payments!$C$5:$C$1355=A32),--(Payments!$D$5:$D$1355=$Y$3),Payments!$E$5:$E$1355)","v":0},{"$f":"SUMPRODUCT(--(Payments!$C$5:$C$1355=A32),--(Payments!$D$5:$D$1355=$Z$3),Payments!$E$5:$E$1355)","v":0},{"$f":"SUMPRODUCT(--(Payments!$C$5:$C$1355=A32),--(Payments!$D$5:$D$1355=$AA$3),Payments!$E$5:$E$1355)","v":0},{"$f":"SUMPRODUCT(--(Payments!$C$5:$C$1355=A32),--(Payments!$D$5:$D$1355=$AB$3),Payments!$E$5:$E$1355)","v":0},{"$f":"SUMPRODUCT(--(Payments!$C$5:$C$1355=A32),--(Payments!$D$5:$D$1355=$AC$3),Payments!$E$5:$E$1355)","v":0},{"$f":"SUMPRODUCT(--(Payments!$C$5:$C$1355=A32),--(Payments!$D$5:$D$1355=$AD$3),Payments!$E$5:$E$1355)","v":0},null,0,0,0,0,null,null,null,"Parish Share",null,0,0,0,0]
[{"$f":"Descriptions!I34","v":"Water Bill"},{"$f":"Descriptions!K34","v":"Church Running Expenses"},{"$f":"Descriptions!L34","v":"Church utility bills"},{"$f":"SUMPRODUCT(--(Payments!$C$5:$C$1355=A33),--(Payments!$D$5:$D$1355=$D$3),Payments!$E$5:$E$1355)","v":0},{"$f":"SUMPRODUCT(--(Payments!$C$5:$C$1355=A33),--(Payments!$D$5:$D$1355=$E$3),Payments!$E$5:$E$1355)","v":0},{"$f":"SUMPRODUCT(--(Payments!$C$5:$C$1355=A33),--(Payments!$D$5:$D$1355=$F$3),Payments!$E$5:$E$1355)","v":0},{"$f":"SUMPRODUCT(--(Payments!$C$5:$C$1355=A33),--(Payments!$D$5:$D$1355=$G$3),Payments!$E$5:$E$1355)","v":0},{"$f":"SUMPRODUCT(--(Payments!$C$5:$C$1355=A33),--(Payments!$D$5:$D$1355=$H$3),Payments!$E$5:$E$1355)","v":0},{"$f":"SUMPRODUCT(--(Payments!$C$5:$C$1355=A33),--(Payments!$D$5:$D$1355=$I$3),Payments!$E$5:$E$1355)","v":0},{"$f":"SUMPRODUCT(--(Payments!$C$5:$C$1355=A33),--(Payments!$D$5:$D$1355=$J$3),Payments!$E$5:$E$1355)","v":0},{"$f":"SUMPRODUCT(--(Payments!$C$5:$C$1355=A33),--(Payments!$D$5:$D$1355=$K$3),Payments!$E$5:$E$1355)","v":0},{"$f":"SUMPRODUCT(--(Payments!$C$5:$C$1355=A33),--(Payments!$D$5:$D$1355=$L$3),Payments!$E$5:$E$1355)","v":0},{"$f":"SUMPRODUCT(--(Payments!$C$5:$C$1355=A33),--(Payments!$D$5:$D$1355=$M$3),Payments!$E$5:$E$1355)","v":0},{"$f":"SUMPRODUCT(--(Payments!$C$5:$C$1355=A33),--(Payments!$D$5:$D$1355=$N$3),Payments!$E$5:$E$1355)","v":0},{"$f":"SUMPRODUCT(--(Payments!$C$5:$C$1355=A33),--(Payments!$D$5:$D$1355=$O$3),Payments!$E$5:$E$1355)","v":0},{"$f":"SUMPRODUCT(--(Payments!$C$5:$C$1355=A33),--(Payments!$D$5:$D$1355=$P$3),Payments!$E$5:$E$1355)","v":0},{"$f":"SUMPRODUCT(--(Payments!$C$5:$C$1355=A33),--(Payments!$D$5:$D$1355=$Q$3),Payments!$E$5:$E$1355)","v":0},{"$f":"SUMPRODUCT(--(Payments!$C$5:$C$1355=A33),--(Payments!$D$5:$D$1355=$R$3),Payments!$E$5:$E$1355)","v":0},{"$f":"SUMPRODUCT(--(Payments!$C$5:$C$1355=A33),--(Payments!$D$5:$D$1355=$S$3),Payments!$E$5:$E$1355)","v":0},{"$f":"SUMPRODUCT(--(Payments!$C$5:$C$1355=A33),--(Payments!$D$5:$D$1355=$T$3),Payments!$E$5:$E$1355)","v":0},{"$f":"SUMPRODUCT(--(Payments!$C$5:$C$1355=A33),--(Payments!$D$5:$D$1355=$U$3),Payments!$E$5:$E$1355)","v":0},{"$f":"SUMPRODUCT(--(Payments!$C$5:$C$1355=A33),--(Payments!$D$5:$D$1355=$V$3),Payments!$E$5:$E$1355)","v":0},{"$f":"SUMPRODUCT(--(Payments!$C$5:$C$1355=A33),--(Payments!$D$5:$D$1355=$W$3),Payments!$E$5:$E$1355)","v":0},{"$f":"SUMPRODUCT(--(Payments!$C$5:$C$1355=A33),--(Payments!$D$5:$D$1355=$X$3),Payments!$E$5:$E$1355)","v":0},{"$f":"SUMPRODUCT(--(Payments!$C$5:$C$1355=A33),--(Payments!$D$5:$D$1355=$Y$3),Payments!$E$5:$E$1355)","v":0},{"$f":"SUMPRODUCT(--(Payments!$C$5:$C$1355=A33),--(Payments!$D$5:$D$1355=$Z$3),Payments!$E$5:$E$1355)","v":0},{"$f":"SUMPRODUCT(--(Payments!$C$5:$C$1355=A33),--(Payments!$D$5:$D$1355=$AA$3),Payments!$E$5:$E$1355)","v":0},{"$f":"SUMPRODUCT(--(Payments!$C$5:$C$1355=A33),--(Payments!$D$5:$D$1355=$AB$3),Payments!$E$5:$E$1355)","v":0},{"$f":"SUMPRODUCT(--(Payments!$C$5:$C$1355=A33),--(Payments!$D$5:$D$1355=$AC$3),Payments!$E$5:$E$1355)","v":0},{"$f":"SUMPRODUCT(--(Payments!$C$5:$C$1355=A33),--(Payments!$D$5:$D$1355=$AD$3),Payments!$E$5:$E$1355)","v":0},null,0,0,0,0]
[{"$f":"Descriptions!I35","v":0},{"$f":"Descriptions!K35","v":"Administration Costs"},{"$f":"Descriptions!L35","v":0},{"$f":"SUMPRODUCT(--(Payments!$C$5:$C$1355=A34),--(Payments!$D$5:$D$1355=$D$3),Payments!$E$5:$E$1355)","v":0},{"$f":"SUMPRODUCT(--(Payments!$C$5:$C$1355=A34),--(Payments!$D$5:$D$1355=$E$3),Payments!$E$5:$E$1355)","v":0},{"$f":"SUMPRODUCT(--(Payments!$C$5:$C$1355=A34),--(Payments!$D$5:$D$1355=$F$3),Payments!$E$5:$E$1355)","v":0},{"$f":"SUMPRODUCT(--(Payments!$C$5:$C$1355=A34),--(Payments!$D$5:$D$1355=$G$3),Payments!$E$5:$E$1355)","v":0},{"$f":"SUMPRODUCT(--(Payments!$C$5:$C$1355=A34),--(Payments!$D$5:$D$1355=$H$3),Payments!$E$5:$E$1355)","v":0},{"$f":"SUMPRODUCT(--(Payments!$C$5:$C$1355=A34),--(Payments!$D$5:$D$1355=$I$3),Payments!$E$5:$E$1355)","v":0},{"$f":"SUMPRODUCT(--(Payments!$C$5:$C$1355=A34),--(Payments!$D$5:$D$1355=$J$3),Payments!$E$5:$E$1355)","v":0},{"$f":"SUMPRODUCT(--(Payments!$C$5:$C$1355=A34),--(Payments!$D$5:$D$1355=$K$3),Payments!$E$5:$E$1355)","v":0},{"$f":"SUMPRODUCT(--(Payments!$C$5:$C$1355=A34),--(Payments!$D$5:$D$1355=$L$3),Payments!$E$5:$E$1355)","v":0},{"$f":"SUMPRODUCT(--(Payments!$C$5:$C$1355=A34),--(Payments!$D$5:$D$1355=$M$3),Payments!$E$5:$E$1355)","v":0},{"$f":"SUMPRODUCT(--(Payments!$C$5:$C$1355=A34),--(Payments!$D$5:$D$1355=$N$3),Payments!$E$5:$E$1355)","v":0},{"$f":"SUMPRODUCT(--(Payments!$C$5:$C$1355=A34),--(Payments!$D$5:$D$1355=$O$3),Payments!$E$5:$E$1355)","v":0},{"$f":"SUMPRODUCT(--(Payments!$C$5:$C$1355=A34),--(Payments!$D$5:$D$1355=$P$3),Payments!$E$5:$E$1355)","v":0},{"$f":"SUMPRODUCT(--(Payments!$C$5:$C$1355=A34),--(Payments!$D$5:$D$1355=$Q$3),Payments!$E$5:$E$1355)","v":0},{"$f":"SUMPRODUCT(--(Payments!$C$5:$C$1355=A34),--(Payments!$D$5:$D$1355=$R$3),Payments!$E$5:$E$1355)","v":0},{"$f":"SUMPRODUCT(--(Payments!$C$5:$C$1355=A34),--(Payments!$D$5:$D$1355=$S$3),Payments!$E$5:$E$1355)","v":0},{"$f":"SUMPRODUCT(--(Payments!$C$5:$C$1355=A34),--(Payments!$D$5:$D$1355=$T$3),Payments!$E$5:$E$1355)","v":0},{"$f":"SUMPRODUCT(--(Payments!$C$5:$C$1355=A34),--(Payments!$D$5:$D$1355=$U$3),Payments!$E$5:$E$1355)","v":0},{"$f":"SUMPRODUCT(--(Payments!$C$5:$C$1355=A34),--(Payments!$D$5:$D$1355=$V$3),Payments!$E$5:$E$1355)","v":0},{"$f":"SUMPRODUCT(--(Payments!$C$5:$C$1355=A34),--(Payments!$D$5:$D$1355=$W$3),Payments!$E$5:$E$1355)","v":0},{"$f":"SUMPRODUCT(--(Payments!$C$5:$C$1355=A34),--(Payments!$D$5:$D$1355=$X$3),Payments!$E$5:$E$1355)","v":0},{"$f":"SUMPRODUCT(--(Payments!$C$5:$C$1355=A34),--(Payments!$D$5:$D$1355=$Y$3),Payments!$E$5:$E$1355)","v":0},{"$f":"SUMPRODUCT(--(Payments!$C$5:$C$1355=A34),--(Payments!$D$5:$D$1355=$Z$3),Payments!$E$5:$E$1355)","v":0},{"$f":"SUMPRODUCT(--(Payments!$C$5:$C$1355=A34),--(Payments!$D$5:$D$1355=$AA$3),Payments!$E$5:$E$1355)","v":0},{"$f":"SUMPRODUCT(--(Payments!$C$5:$C$1355=A34),--(Payments!$D$5:$D$1355=$AB$3),Payments!$E$5:$E$1355)","v":0},{"$f":"SUMPRODUCT(--(Payments!$C$5:$C$1355=A34),--(Payments!$D$5:$D$1355=$AC$3),Payments!$E$5:$E$1355)","v":0},{"$f":"SUMPRODUCT(--(Payments!$C$5:$C$1355=A34),--(Payments!$D$5:$D$1355=$AD$3),Payments!$E$5:$E$1355)","v":0},null,0,0,0,0]
[{"$f":"Descriptions!I36","v":0},{"$f":"Descriptions!K36","v":"Administration Costs"},{"$f":"Descriptions!L36","v":0},{"$f":"SUMPRODUCT(--(Payments!$C$5:$C$1355=A35),--(Payments!$D$5:$D$1355=$D$3),Payments!$E$5:$E$1355)","v":0},{"$f":"SUMPRODUCT(--(Payments!$C$5:$C$1355=A35),--(Payments!$D$5:$D$1355=$E$3),Payments!$E$5:$E$1355)","v":0},{"$f":"SUMPRODUCT(--(Payments!$C$5:$C$1355=A35),--(Payments!$D$5:$D$1355=$F$3),Payments!$E$5:$E$1355)","v":0},{"$f":"SUMPRODUCT(--(Payments!$C$5:$C$1355=A35),--(Payments!$D$5:$D$1355=$G$3),Payments!$E$5:$E$1355)","v":0},{"$f":"SUMPRODUCT(--(Payments!$C$5:$C$1355=A35),--(Payments!$D$5:$D$1355=$H$3),Payments!$E$5:$E$1355)","v":0},{"$f":"SUMPRODUCT(--(Payments!$C$5:$C$1355=A35),--(Payments!$D$5:$D$1355=$I$3),Payments!$E$5:$E$1355)","v":0},{"$f":"SUMPRODUCT(--(Payments!$C$5:$C$1355=A35),--(Payments!$D$5:$D$1355=$J$3),Payments!$E$5:$E$1355)","v":0},{"$f":"SUMPRODUCT(--(Payments!$C$5:$C$1355=A35),--(Payments!$D$5:$D$1355=$K$3),Payments!$E$5:$E$1355)","v":0},{"$f":"SUMPRODUCT(--(Payments!$C$5:$C$1355=A35),--(Payments!$D$5:$D$1355=$L$3),Payments!$E$5:$E$1355)","v":0},{"$f":"SUMPRODUCT(--(Payments!$C$5:$C$1355=A35),--(Payments!$D$5:$D$1355=$M$3),Payments!$E$5:$E$1355)","v":0},{"$f":"SUMPRODUCT(--(Payments!$C$5:$C$1355=A35),--(Payments!$D$5:$D$1355=$N$3),Payments!$E$5:$E$1355)","v":0},{"$f":"SUMPRODUCT(--(Payments!$C$5:$C$1355=A35),--(Payments!$D$5:$D$1355=$O$3),Payments!$E$5:$E$1355)","v":0},{"$f":"SUMPRODUCT(--(Payments!$C$5:$C$1355=A35),--(Payments!$D$5:$D$1355=$P$3),Payments!$E$5:$E$1355)","v":0},{"$f":"SUMPRODUCT(--(Payments!$C$5:$C$1355=A35),--(Payments!$D$5:$D$1355=$Q$3),Payments!$E$5:$E$1355)","v":0},{"$f":"SUMPRODUCT(--(Payments!$C$5:$C$1355=A35),--(Payments!$D$5:$D$1355=$R$3),Payments!$E$5:$E$1355)","v":0},{"$f":"SUMPRODUCT(--(Payments!$C$5:$C$1355=A35),--(Payments!$D$5:$D$1355=$S$3),Payments!$E$5:$E$1355)","v":0},{"$f":"SUMPRODUCT(--(Payments!$C$5:$C$1355=A35),--(Payments!$D$5:$D$1355=$T$3),Payments!$E$5:$E$1355)","v":0},{"$f":"SUMPRODUCT(--(Payments!$C$5:$C$1355=A35),--(Payments!$D$5:$D$1355=$U$3),Payments!$E$5:$E$1355)","v":0},{"$f":"SUMPRODUCT(--(Payments!$C$5:$C$1355=A35),--(Payments!$D$5:$D$1355=$V$3),Payments!$E$5:$E$1355)","v":0},{"$f":"SUMPRODUCT(--(Payments!$C$5:$C$1355=A35),--(Payments!$D$5:$D$1355=$W$3),Payments!$E$5:$E$1355)","v":0},{"$f":"SUMPRODUCT(--(Payments!$C$5:$C$1355=A35),--(Payments!$D$5:$D$1355=$X$3),Payments!$E$5:$E$1355)","v":0},{"$f":"SUMPRODUCT(--(Payments!$C$5:$C$1355=A35),--(Payments!$D$5:$D$1355=$Y$3),Payments!$E$5:$E$1355)","v":0},{"$f":"SUMPRODUCT(--(Payments!$C$5:$C$1355=A35),--(Payments!$D$5:$D$1355=$Z$3),Payments!$E$5:$E$1355)","v":0},{"$f":"SUMPRODUCT(--(Payments!$C$5:$C$1355=A35),--(Payments!$D$5:$D$1355=$AA$3),Payments!$E$5:$E$1355)","v":0},{"$f":"SUMPRODUCT(--(Payments!$C$5:$C$1355=A35),--(Payments!$D$5:$D$1355=$AB$3),Payments!$E$5:$E$1355)","v":0},{"$f":"SUMPRODUCT(--(Payments!$C$5:$C$1355=A35),--(Payments!$D$5:$D$1355=$AC$3),Payments!$E$5:$E$1355)","v":0},{"$f":"SUMPRODUCT(--(Payments!$C$5:$C$1355=A35),--(Payments!$D$5:$D$1355=$AD$3),Payments!$E$5:$E$1355)","v":0},null,0,0,0,0]
[{"$f":"Descriptions!I37","v":0},{"$f":"Descriptions!K37","v":"Administration Costs"},{"$f":"Descriptions!L37","v":0},{"$f":"SUMPRODUCT(--(Payments!$C$5:$C$1355=A36),--(Payments!$D$5:$D$1355=$D$3),Payments!$E$5:$E$1355)","v":0},{"$f":"SUMPRODUCT(--(Payments!$C$5:$C$1355=A36),--(Payments!$D$5:$D$1355=$E$3),Payments!$E$5:$E$1355)","v":0},{"$f":"SUMPRODUCT(--(Payments!$C$5:$C$1355=A36),--(Payments!$D$5:$D$1355=$F$3),Payments!$E$5:$E$1355)","v":0},{"$f":"SUMPRODUCT(--(Payments!$C$5:$C$1355=A36),--(Payments!$D$5:$D$1355=$G$3),Payments!$E$5:$E$1355)","v":0},{"$f":"SUMPRODUCT(--(Payments!$C$5:$C$1355=A36),--(Payments!$D$5:$D$1355=$H$3),Payments!$E$5:$E$1355)","v":0},{"$f":"SUMPRODUCT(--(Payments!$C$5:$C$1355=A36),--(Payments!$D$5:$D$1355=$I$3),Payments!$E$5:$E$1355)","v":0},{"$f":"SUMPRODUCT(--(Payments!$C$5:$C$1355=A36),--(Payments!$D$5:$D$1355=$J$3),Payments!$E$5:$E$1355)","v":0},{"$f":"SUMPRODUCT(--(Payments!$C$5:$C$1355=A36),--(Payments!$D$5:$D$1355=$K$3),Payments!$E$5:$E$1355)","v":0},{"$f":"SUMPRODUCT(--(Payments!$C$5:$C$1355=A36),--(Payments!$D$5:$D$1355=$L$3),Payments!$E$5:$E$1355)","v":0},{"$f":"SUMPRODUCT(--(Payments!$C$5:$C$1355=A36),--(Payments!$D$5:$D$1355=$M$3),Payments!$E$5:$E$1355)","v":0},{"$f":"SUMPRODUCT(--(Payments!$C$5:$C$1355=A36),--(Payments!$D$5:$D$1355=$N$3),Payments!$E$5:$E$1355)","v":0},{"$f":"SUMPRODUCT(--(Payments!$C$5:$C$1355=A36),--(Payments!$D$5:$D$1355=$O$3),Payments!$E$5:$E$1355)","v":0},{"$f":"SUMPRODUCT(--(Payments!$C$5:$C$1355=A36),--(Payments!$D$5:$D$1355=$P$3),Payments!$E$5:$E$1355)","v":0},{"$f":"SUMPRODUCT(--(Payments!$C$5:$C$1355=A36),--(Payments!$D$5:$D$1355=$Q$3),Payments!$E$5:$E$1355)","v":0},{"$f":"SUMPRODUCT(--(Payments!$C$5:$C$1355=A36),--(Payments!$D$5:$D$1355=$R$3),Payments!$E$5:$E$1355)","v":0},{"$f":"SUMPRODUCT(--(Payments!$C$5:$C$1355=A36),--(Payments!$D$5:$D$1355=$S$3),Payments!$E$5:$E$1355)","v":0},{"$f":"SUMPRODUCT(--(Payments!$C$5:$C$1355=A36),--(Payments!$D$5:$D$1355=$T$3),Payments!$E$5:$E$1355)","v":0},{"$f":"SUMPRODUCT(--(Payments!$C$5:$C$1355=A36),--(Payments!$D$5:$D$1355=$U$3),Payments!$E$5:$E$1355)","v":0},{"$f":"SUMPRODUCT(--(Payments!$C$5:$C$1355=A36),--(Payments!$D$5:$D$1355=$V$3),Payments!$E$5:$E$1355)","v":0},{"$f":"SUMPRODUCT(--(Payments!$C$5:$C$1355=A36),--(Payments!$D$5:$D$1355=$W$3),Payments!$E$5:$E$1355)","v":0},{"$f":"SUMPRODUCT(--(Payments!$C$5:$C$1355=A36),--(Payments!$D$5:$D$1355=$X$3),Payments!$E$5:$E$1355)","v":0},{"$f":"SUMPRODUCT(--(Payments!$C$5:$C$1355=A36),--(Payments!$D$5:$D$1355=$Y$3),Payments!$E$5:$E$1355)","v":0},{"$f":"SUMPRODUCT(--(Payments!$C$5:$C$1355=A36),--(Payments!$D$5:$D$1355=$Z$3),Payments!$E$5:$E$1355)","v":0},{"$f":"SUMPRODUCT(--(Payments!$C$5:$C$1355=A36),--(Payments!$D$5:$D$1355=$AA$3),Payments!$E$5:$E$1355)","v":0},{"$f":"SUMPRODUCT(--(Payments!$C$5:$C$1355=A36),--(Payments!$D$5:$D$1355=$AB$3),Payments!$E$5:$E$1355)","v":0},{"$f":"SUMPRODUCT(--(Payments!$C$5:$C$1355=A36),--(Payments!$D$5:$D$1355=$AC$3),Payments!$E$5:$E$1355)","v":0},{"$f":"SUMPRODUCT(--(Payments!$C$5:$C$1355=A36),--(Payments!$D$5:$D$1355=$AD$3),Payments!$E$5:$E$1355)","v":0},null,0,0,0,0]
[{"$f":"Descriptions!I38","v":0},{"$f":"Descriptions!K38","v":"Administration Costs"},{"$f":"Descriptions!L38","v":0},{"$f":"SUMPRODUCT(--(Payments!$C$5:$C$1355=A37),--(Payments!$D$5:$D$1355=$D$3),Payments!$E$5:$E$1355)","v":0},{"$f":"SUMPRODUCT(--(Payments!$C$5:$C$1355=A37),--(Payments!$D$5:$D$1355=$E$3),Payments!$E$5:$E$1355)","v":0},{"$f":"SUMPRODUCT(--(Payments!$C$5:$C$1355=A37),--(Payments!$D$5:$D$1355=$F$3),Payments!$E$5:$E$1355)","v":0},{"$f":"SUMPRODUCT(--(Payments!$C$5:$C$1355=A37),--(Payments!$D$5:$D$1355=$G$3),Payments!$E$5:$E$1355)","v":0},{"$f":"SUMPRODUCT(--(Payments!$C$5:$C$1355=A37),--(Payments!$D$5:$D$1355=$H$3),Payments!$E$5:$E$1355)","v":0},{"$f":"SUMPRODUCT(--(Payments!$C$5:$C$1355=A37),--(Payments!$D$5:$D$1355=$I$3),Payments!$E$5:$E$1355)","v":0},{"$f":"SUMPRODUCT(--(Payments!$C$5:$C$1355=A37),--(Payments!$D$5:$D$1355=$J$3),Payments!$E$5:$E$1355)","v":0},{"$f":"SUMPRODUCT(--(Payments!$C$5:$C$1355=A37),--(Payments!$D$5:$D$1355=$K$3),Payments!$E$5:$E$1355)","v":0},{"$f":"SUMPRODUCT(--(Payments!$C$5:$C$1355=A37),--(Payments!$D$5:$D$1355=$L$3),Payments!$E$5:$E$1355)","v":0},{"$f":"SUMPRODUCT(--(Payments!$C$5:$C$1355=A37),--(Payments!$D$5:$D$1355=$M$3),Payments!$E$5:$E$1355)","v":0},{"$f":"SUMPRODUCT(--(Payments!$C$5:$C$1355=A37),--(Payments!$D$5:$D$1355=$N$3),Payments!$E$5:$E$1355)","v":0},{"$f":"SUMPRODUCT(--(Payments!$C$5:$C$1355=A37),--(Payments!$D$5:$D$1355=$O$3),Payments!$E$5:$E$1355)","v":0},{"$f":"SUMPRODUCT(--(Payments!$C$5:$C$1355=A37),--(Payments!$D$5:$D$1355=$P$3),Payments!$E$5:$E$1355)","v":0},{"$f":"SUMPRODUCT(--(Payments!$C$5:$C$1355=A37),--(Payments!$D$5:$D$1355=$Q$3),Payments!$E$5:$E$1355)","v":0},{"$f":"SUMPRODUCT(--(Payments!$C$5:$C$1355=A37),--(Payments!$D$5:$D$1355=$R$3),Payments!$E$5:$E$1355)","v":0},{"$f":"SUMPRODUCT(--(Payments!$C$5:$C$1355=A37),--(Payments!$D$5:$D$1355=$S$3),Payments!$E$5:$E$1355)","v":0},{"$f":"SUMPRODUCT(--(Payments!$C$5:$C$1355=A37),--(Payments!$D$5:$D$1355=$T$3),Payments!$E$5:$E$1355)","v":0},{"$f":"SUMPRODUCT(--(Payments!$C$5:$C$1355=A37),--(Payments!$D$5:$D$1355=$U$3),Payments!$E$5:$E$1355)","v":0},{"$f":"SUMPRODUCT(--(Payments!$C$5:$C$1355=A37),--(Payments!$D$5:$D$1355=$V$3),Payments!$E$5:$E$1355)","v":0},{"$f":"SUMPRODUCT(--(Payments!$C$5:$C$1355=A37),--(Payments!$D$5:$D$1355=$W$3),Payments!$E$5:$E$1355)","v":0},{"$f":"SUMPRODUCT(--(Payments!$C$5:$C$1355=A37),--(Payments!$D$5:$D$1355=$X$3),Payments!$E$5:$E$1355)","v":0},{"$f":"SUMPRODUCT(--(Payments!$C$5:$C$1355=A37),--(Payments!$D$5:$D$1355=$Y$3),Payments!$E$5:$E$1355)","v":0},{"$f":"SUMPRODUCT(--(Payments!$C$5:$C$1355=A37),--(Payments!$D$5:$D$1355=$Z$3),Payments!$E$5:$E$1355)","v":0},{"$f":"SUMPRODUCT(--(Payments!$C$5:$C$1355=A37),--(Payments!$D$5:$D$1355=$AA$3),Payments!$E$5:$E$1355)","v":0},{"$f":"SUMPRODUCT(--(Payments!$C$5:$C$1355=A37),--(Payments!$D$5:$D$1355=$AB$3),Payments!$E$5:$E$1355)","v":0},{"$f":"SUMPRODUCT(--(Payments!$C$5:$C$1355=A37),--(Payments!$D$5:$D$1355=$AC$3),Payments!$E$5:$E$1355)","v":0},{"$f":"SUMPRODUCT(--(Payments!$C$5:$C$1355=A37),--(Payments!$D$5:$D$1355=$AD$3),Payments!$E$5:$E$1355)","v":0},null,{"$f":"SUMPRODUCT(($D$4:$AD$4=$AF$4)*(D37:AD37))","v":0},{"$f":"SUMPRODUCT(($D$4:$AD$4=$AG$4)*(D37:AD37))","v":0},{"$f":"SUMPRODUCT(($D$4:$AD$4=$AH$4)*(D37:AD37))","v":0},{"$f":"SUMPRODUCT(($D$4:$AD$4=$AI$4)*(D37:AD37))","v":0}]
[{"$f":"Descriptions!I39","v":0},{"$f":"Descriptions!K39","v":"Administration Costs"},{"$f":"Descriptions!L39","v":0},{"$f":"SUMPRODUCT(--(Payments!$C$5:$C$1355=A38),--(Payments!$D$5:$D$1355=$D$3),Payments!$E$5:$E$1355)","v":0},{"$f":"SUMPRODUCT(--(Payments!$C$5:$C$1355=A38),--(Payments!$D$5:$D$1355=$E$3),Payments!$E$5:$E$1355)","v":0},{"$f":"SUMPRODUCT(--(Payments!$C$5:$C$1355=A38),--(Payments!$D$5:$D$1355=$F$3),Payments!$E$5:$E$1355)","v":0},{"$f":"SUMPRODUCT(--(Payments!$C$5:$C$1355=A38),--(Payments!$D$5:$D$1355=$G$3),Payments!$E$5:$E$1355)","v":0},{"$f":"SUMPRODUCT(--(Payments!$C$5:$C$1355=A38),--(Payments!$D$5:$D$1355=$H$3),Payments!$E$5:$E$1355)","v":0},{"$f":"SUMPRODUCT(--(Payments!$C$5:$C$1355=A38),--(Payments!$D$5:$D$1355=$I$3),Payments!$E$5:$E$1355)","v":0},{"$f":"SUMPRODUCT(--(Payments!$C$5:$C$1355=A38),--(Payments!$D$5:$D$1355=$J$3),Payments!$E$5:$E$1355)","v":0},{"$f":"SUMPRODUCT(--(Payments!$C$5:$C$1355=A38),--(Payments!$D$5:$D$1355=$K$3),Payments!$E$5:$E$1355)","v":0},{"$f":"SUMPRODUCT(--(Payments!$C$5:$C$1355=A38),--(Payments!$D$5:$D$1355=$L$3),Payments!$E$5:$E$1355)","v":0},{"$f":"SUMPRODUCT(--(Payments!$C$5:$C$1355=A38),--(Payments!$D$5:$D$1355=$M$3),Payments!$E$5:$E$1355)","v":0},{"$f":"SUMPRODUCT(--(Payments!$C$5:$C$1355=A38),--(Payments!$D$5:$D$1355=$N$3),Payments!$E$5:$E$1355)","v":0},{"$f":"SUMPRODUCT(--(Payments!$C$5:$C$1355=A38),--(Payments!$D$5:$D$1355=$O$3),Payments!$E$5:$E$1355)","v":0},{"$f":"SUMPRODUCT(--(Payments!$C$5:$C$1355=A38),--(Payments!$D$5:$D$1355=$P$3),Payments!$E$5:$E$1355)","v":0},{"$f":"SUMPRODUCT(--(Payments!$C$5:$C$1355=A38),--(Payments!$D$5:$D$1355=$Q$3),Payments!$E$5:$E$1355)","v":0},{"$f":"SUMPRODUCT(--(Payments!$C$5:$C$1355=A38),--(Payments!$D$5:$D$1355=$R$3),Payments!$E$5:$E$1355)","v":0},{"$f":"SUMPRODUCT(--(Payments!$C$5:$C$1355=A38),--(Payments!$D$5:$D$1355=$S$3),Payments!$E$5:$E$1355)","v":0},{"$f":"SUMPRODUCT(--(Payments!$C$5:$C$1355=A38),--(Payments!$D$5:$D$1355=$T$3),Payments!$E$5:$E$1355)","v":0},{"$f":"SUMPRODUCT(--(Payments!$C$5:$C$1355=A38),--(Payments!$D$5:$D$1355=$U$3),Payments!$E$5:$E$1355)","v":0},{"$f":"SUMPRODUCT(--(Payments!$C$5:$C$1355=A38),--(Payments!$D$5:$D$1355=$V$3),Payments!$E$5:$E$1355)","v":0},{"$f":"SUMPRODUCT(--(Payments!$C$5:$C$1355=A38),--(Payments!$D$5:$D$1355=$W$3),Payments!$E$5:$E$1355)","v":0},{"$f":"SUMPRODUCT(--(Payments!$C$5:$C$1355=A38),--(Payments!$D$5:$D$1355=$X$3),Payments!$E$5:$E$1355)","v":0},{"$f":"SUMPRODUCT(--(Payments!$C$5:$C$1355=A38),--(Payments!$D$5:$D$1355=$Y$3),Payments!$E$5:$E$1355)","v":0},{"$f":"SUMPRODUCT(--(Payments!$C$5:$C$1355=A38),--(Payments!$D$5:$D$1355=$Z$3),Payments!$E$5:$E$1355)","v":0},{"$f":"SUMPRODUCT(--(Payments!$C$5:$C$1355=A38),--(Payments!$D$5:$D$1355=$AA$3),Payments!$E$5:$E$1355)","v":0},{"$f":"SUMPRODUCT(--(Payments!$C$5:$C$1355=A38),--(Payments!$D$5:$D$1355=$AB$3),Payments!$E$5:$E$1355)","v":0},{"$f":"SUMPRODUCT(--(Payments!$C$5:$C$1355=A38),--(Payments!$D$5:$D$1355=$AC$3),Payments!$E$5:$E$1355)","v":0},{"$f":"SUMPRODUCT(--(Payments!$C$5:$C$1355=A38),--(Payments!$D$5:$D$1355=$AD$3),Payments!$E$5:$E$1355)","v":0},null,0,0,0,0]
[{"$f":"Descriptions!I40","v":0},{"$f":"Descriptions!K40","v":"Administration Costs"},{"$f":"Descriptions!L40","v":0},{"$f":"SUMPRODUCT(--(Payments!$C$5:$C$1355=A39),--(Payments!$D$5:$D$1355=$D$3),Payments!$E$5:$E$1355)","v":0},{"$f":"SUMPRODUCT(--(Payments!$C$5:$C$1355=A39),--(Payments!$D$5:$D$1355=$E$3),Payments!$E$5:$E$1355)","v":0},{"$f":"SUMPRODUCT(--(Payments!$C$5:$C$1355=A39),--(Payments!$D$5:$D$1355=$F$3),Payments!$E$5:$E$1355)","v":0},{"$f":"SUMPRODUCT(--(Payments!$C$5:$C$1355=A39),--(Payments!$D$5:$D$1355=$G$3),Payments!$E$5:$E$1355)","v":0},{"$f":"SUMPRODUCT(--(Payments!$C$5:$C$1355=A39),--(Payments!$D$5:$D$1355=$H$3),Payments!$E$5:$E$1355)","v":0},{"$f":"SUMPRODUCT(--(Payments!$C$5:$C$1355=A39),--(Payments!$D$5:$D$1355=$I$3),Payments!$E$5:$E$1355)","v":0},{"$f":"SUMPRODUCT(--(Payments!$C$5:$C$1355=A39),--(Payments!$D$5:$D$1355=$J$3),Payments!$E$5:$E$1355)","v":0},{"$f":"SUMPRODUCT(--(Payments!$C$5:$C$1355=A39),--(Payments!$D$5:$D$1355=$K$3),Payments!$E$5:$E$1355)","v":0},{"$f":"SUMPRODUCT(--(Payments!$C$5:$C$1355=A39),--(Payments!$D$5:$D$1355=$L$3),Payments!$E$5:$E$1355)","v":0},{"$f":"SUMPRODUCT(--(Payments!$C$5:$C$1355=A39),--(Payments!$D$5:$D$1355=$M$3),Payments!$E$5:$E$1355)","v":0},{"$f":"SUMPRODUCT(--(Payments!$C$5:$C$1355=A39),--(Payments!$D$5:$D$1355=$N$3),Payments!$E$5:$E$1355)","v":0},{"$f":"SUMPRODUCT(--(Payments!$C$5:$C$1355=A39),--(Payments!$D$5:$D$1355=$O$3),Payments!$E$5:$E$1355)","v":0},{"$f":"SUMPRODUCT(--(Payments!$C$5:$C$1355=A39),--(Payments!$D$5:$D$1355=$P$3),Payments!$E$5:$E$1355)","v":0},{"$f":"SUMPRODUCT(--(Payments!$C$5:$C$1355=A39),--(Payments!$D$5:$D$1355=$Q$3),Payments!$E$5:$E$1355)","v":0},{"$f":"SUMPRODUCT(--(Payments!$C$5:$C$1355=A39),--(Payments!$D$5:$D$1355=$R$3),Payments!$E$5:$E$1355)","v":0},{"$f":"SUMPRODUCT(--(Payments!$C$5:$C$1355=A39),--(Payments!$D$5:$D$1355=$S$3),Payments!$E$5:$E$1355)","v":0},{"$f":"SUMPRODUCT(--(Payments!$C$5:$C$1355=A39),--(Payments!$D$5:$D$1355=$T$3),Payments!$E$5:$E$1355)","v":0},{"$f":"SUMPRODUCT(--(Payments!$C$5:$C$1355=A39),--(Payments!$D$5:$D$1355=$U$3),Payments!$E$5:$E$1355)","v":0},{"$f":"SUMPRODUCT(--(Payments!$C$5:$C$1355=A39),--(Payments!$D$5:$D$1355=$V$3),Payments!$E$5:$E$1355)","v":0},{"$f":"SUMPRODUCT(--(Payments!$C$5:$C$1355=A39),--(Payments!$D$5:$D$1355=$W$3),Payments!$E$5:$E$1355)","v":0},{"$f":"SUMPRODUCT(--(Payments!$C$5:$C$1355=A39),--(Payments!$D$5:$D$1355=$X$3),Payments!$E$5:$E$1355)","v":0},{"$f":"SUMPRODUCT(--(Payments!$C$5:$C$1355=A39),--(Payments!$D$5:$D$1355=$Y$3),Payments!$E$5:$E$1355)","v":0},{"$f":"SUMPRODUCT(--(Payments!$C$5:$C$1355=A39),--(Payments!$D$5:$D$1355=$Z$3),Payments!$E$5:$E$1355)","v":0},{"$f":"SUMPRODUCT(--(Payments!$C$5:$C$1355=A39),--(Payments!$D$5:$D$1355=$AA$3),Payments!$E$5:$E$1355)","v":0},{"$f":"SUMPRODUCT(--(Payments!$C$5:$C$1355=A39),--(Payments!$D$5:$D$1355=$AB$3),Payments!$E$5:$E$1355)","v":0},{"$f":"SUMPRODUCT(--(Payments!$C$5:$C$1355=A39),--(Payments!$D$5:$D$1355=$AC$3),Payments!$E$5:$E$1355)","v":0},{"$f":"SUMPRODUCT(--(Payments!$C$5:$C$1355=A39),--(Payments!$D$5:$D$1355=$AD$3),Payments!$E$5:$E$1355)","v":0},null,0,0,0,0]
[{"$f":"Descriptions!I41","v":0},{"$f":"Descriptions!K41","v":"Administration Costs"},{"$f":"Descriptions!L41","v":0},{"$f":"SUMPRODUCT(--(Payments!$C$5:$C$1355=A40),--(Payments!$D$5:$D$1355=$D$3),Payments!$E$5:$E$1355)","v":0},{"$f":"SUMPRODUCT(--(Payments!$C$5:$C$1355=A40),--(Payments!$D$5:$D$1355=$E$3),Payments!$E$5:$E$1355)","v":0},{"$f":"SUMPRODUCT(--(Payments!$C$5:$C$1355=A40),--(Payments!$D$5:$D$1355=$F$3),Payments!$E$5:$E$1355)","v":0},{"$f":"SUMPRODUCT(--(Payments!$C$5:$C$1355=A40),--(Payments!$D$5:$D$1355=$G$3),Payments!$E$5:$E$1355)","v":0},{"$f":"SUMPRODUCT(--(Payments!$C$5:$C$1355=A40),--(Payments!$D$5:$D$1355=$H$3),Payments!$E$5:$E$1355)","v":0},{"$f":"SUMPRODUCT(--(Payments!$C$5:$C$1355=A40),--(Payments!$D$5:$D$1355=$I$3),Payments!$E$5:$E$1355)","v":0},{"$f":"SUMPRODUCT(--(Payments!$C$5:$C$1355=A40),--(Payments!$D$5:$D$1355=$J$3),Payments!$E$5:$E$1355)","v":0},{"$f":"SUMPRODUCT(--(Payments!$C$5:$C$1355=A40),--(Payments!$D$5:$D$1355=$K$3),Payments!$E$5:$E$1355)","v":0},{"$f":"SUMPRODUCT(--(Payments!$C$5:$C$1355=A40),--(Payments!$D$5:$D$1355=$L$3),Payments!$E$5:$E$1355)","v":0},{"$f":"SUMPRODUCT(--(Payments!$C$5:$C$1355=A40),--(Payments!$D$5:$D$1355=$M$3),Payments!$E$5:$E$1355)","v":0},{"$f":"SUMPRODUCT(--(Payments!$C$5:$C$1355=A40),--(Payments!$D$5:$D$1355=$N$3),Payments!$E$5:$E$1355)","v":0},{"$f":"SUMPRODUCT(--(Payments!$C$5:$C$1355=A40),--(Payments!$D$5:$D$1355=$O$3),Payments!$E$5:$E$1355)","v":0},{"$f":"SUMPRODUCT(--(Payments!$C$5:$C$1355=A40),--(Payments!$D$5:$D$1355=$P$3),Payments!$E$5:$E$1355)","v":0},{"$f":"SUMPRODUCT(--(Payments!$C$5:$C$1355=A40),--(Payments!$D$5:$D$1355=$Q$3),Payments!$E$5:$E$1355)","v":0},{"$f":"SUMPRODUCT(--(Payments!$C$5:$C$1355=A40),--(Payments!$D$5:$D$1355=$R$3),Payments!$E$5:$E$1355)","v":0},{"$f":"SUMPRODUCT(--(Payments!$C$5:$C$1355=A40),--(Payments!$D$5:$D$1355=$S$3),Payments!$E$5:$E$1355)","v":0},{"$f":"SUMPRODUCT(--(Payments!$C$5:$C$1355=A40),--(Payments!$D$5:$D$1355=$T$3),Payments!$E$5:$E$1355)","v":0},{"$f":"SUMPRODUCT(--(Payments!$C$5:$C$1355=A40),--(Payments!$D$5:$D$1355=$U$3),Payments!$E$5:$E$1355)","v":0},{"$f":"SUMPRODUCT(--(Payments!$C$5:$C$1355=A40),--(Payments!$D$5:$D$1355=$V$3),Payments!$E$5:$E$1355)","v":0},{"$f":"SUMPRODUCT(--(Payments!$C$5:$C$1355=A40),--(Payments!$D$5:$D$1355=$W$3),Payments!$E$5:$E$1355)","v":0},{"$f":"SUMPRODUCT(--(Payments!$C$5:$C$1355=A40),--(Payments!$D$5:$D$1355=$X$3),Payments!$E$5:$E$1355)","v":0},{"$f":"SUMPRODUCT(--(Payments!$C$5:$C$1355=A40),--(Payments!$D$5:$D$1355=$Y$3),Payments!$E$5:$E$1355)","v":0},{"$f":"SUMPRODUCT(--(Payments!$C$5:$C$1355=A40),--(Payments!$D$5:$D$1355=$Z$3),Payments!$E$5:$E$1355)","v":0},{"$f":"SUMPRODUCT(--(Payments!$C$5:$C$1355=A40),--(Payments!$D$5:$D$1355=$AA$3),Payments!$E$5:$E$1355)","v":0},{"$f":"SUMPRODUCT(--(Payments!$C$5:$C$1355=A40),--(Payments!$D$5:$D$1355=$AB$3),Payments!$E$5:$E$1355)","v":0},{"$f":"SUMPRODUCT(--(Payments!$C$5:$C$1355=A40),--(Payments!$D$5:$D$1355=$AC$3),Payments!$E$5:$E$1355)","v":0},{"$f":"SUMPRODUCT(--(Payments!$C$5:$C$1355=A40),--(Payments!$D$5:$D$1355=$AD$3),Payments!$E$5:$E$1355)","v":0},null,0,0,0,0]
[{"$f":"Descriptions!I42","v":0},{"$f":"Descriptions!K42","v":"Administration Costs"},{"$f":"Descriptions!L42","v":0},{"$f":"SUMPRODUCT(--(Payments!$C$5:$C$1355=A41),--(Payments!$D$5:$D$1355=$D$3),Payments!$E$5:$E$1355)","v":0},{"$f":"SUMPRODUCT(--(Payments!$C$5:$C$1355=A41),--(Payments!$D$5:$D$1355=$E$3),Payments!$E$5:$E$1355)","v":0},{"$f":"SUMPRODUCT(--(Payments!$C$5:$C$1355=A41),--(Payments!$D$5:$D$1355=$F$3),Payments!$E$5:$E$1355)","v":0},{"$f":"SUMPRODUCT(--(Payments!$C$5:$C$1355=A41),--(Payments!$D$5:$D$1355=$G$3),Payments!$E$5:$E$1355)","v":0},{"$f":"SUMPRODUCT(--(Payments!$C$5:$C$1355=A41),--(Payments!$D$5:$D$1355=$H$3),Payments!$E$5:$E$1355)","v":0},{"$f":"SUMPRODUCT(--(Payments!$C$5:$C$1355=A41),--(Payments!$D$5:$D$1355=$I$3),Payments!$E$5:$E$1355)","v":0},{"$f":"SUMPRODUCT(--(Payments!$C$5:$C$1355=A41),--(Payments!$D$5:$D$1355=$J$3),Payments!$E$5:$E$1355)","v":0},{"$f":"SUMPRODUCT(--(Payments!$C$5:$C$1355=A41),--(Payments!$D$5:$D$1355=$K$3),Payments!$E$5:$E$1355)","v":0},{"$f":"SUMPRODUCT(--(Payments!$C$5:$C$1355=A41),--(Payments!$D$5:$D$1355=$L$3),Payments!$E$5:$E$1355)","v":0},{"$f":"SUMPRODUCT(--(Payments!$C$5:$C$1355=A41),--(Payments!$D$5:$D$1355=$M$3),Payments!$E$5:$E$1355)","v":0},{"$f":"SUMPRODUCT(--(Payments!$C$5:$C$1355=A41),--(Payments!$D$5:$D$1355=$N$3),Payments!$E$5:$E$1355)","v":0},{"$f":"SUMPRODUCT(--(Payments!$C$5:$C$1355=A41),--(Payments!$D$5:$D$1355=$O$3),Payments!$E$5:$E$1355)","v":0},{"$f":"SUMPRODUCT(--(Payments!$C$5:$C$1355=A41),--(Payments!$D$5:$D$1355=$P$3),Payments!$E$5:$E$1355)","v":0},{"$f":"SUMPRODUCT(--(Payments!$C$5:$C$1355=A41),--(Payments!$D$5:$D$1355=$Q$3),Payments!$E$5:$E$1355)","v":0},{"$f":"SUMPRODUCT(--(Payments!$C$5:$C$1355=A41),--(Payments!$D$5:$D$1355=$R$3),Payments!$E$5:$E$1355)","v":0},{"$f":"SUMPRODUCT(--(Payments!$C$5:$C$1355=A41),--(Payments!$D$5:$D$1355=$S$3),Payments!$E$5:$E$1355)","v":0},{"$f":"SUMPRODUCT(--(Payments!$C$5:$C$1355=A41),--(Payments!$D$5:$D$1355=$T$3),Payments!$E$5:$E$1355)","v":0},{"$f":"SUMPRODUCT(--(Payments!$C$5:$C$1355=A41),--(Payments!$D$5:$D$1355=$U$3),Payments!$E$5:$E$1355)","v":0},{"$f":"SUMPRODUCT(--(Payments!$C$5:$C$1355=A41),--(Payments!$D$5:$D$1355=$V$3),Payments!$E$5:$E$1355)","v":0},{"$f":"SUMPRODUCT(--(Payments!$C$5:$C$1355=A41),--(Payments!$D$5:$D$1355=$W$3),Payments!$E$5:$E$1355)","v":0},{"$f":"SUMPRODUCT(--(Payments!$C$5:$C$1355=A41),--(Payments!$D$5:$D$1355=$X$3),Payments!$E$5:$E$1355)","v":0},{"$f":"SUMPRODUCT(--(Payments!$C$5:$C$1355=A41),--(Payments!$D$5:$D$1355=$Y$3),Payments!$E$5:$E$1355)","v":0},{"$f":"SUMPRODUCT(--(Payments!$C$5:$C$1355=A41),--(Payments!$D$5:$D$1355=$Z$3),Payments!$E$5:$E$1355)","v":0},{"$f":"SUMPRODUCT(--(Payments!$C$5:$C$1355=A41),--(Payments!$D$5:$D$1355=$AA$3),Payments!$E$5:$E$1355)","v":0},{"$f":"SUMPRODUCT(--(Payments!$C$5:$C$1355=A41),--(Payments!$D$5:$D$1355=$AB$3),Payments!$E$5:$E$1355)","v":0},{"$f":"SUMPRODUCT(--(Payments!$C$5:$C$1355=A41),--(Payments!$D$5:$D$1355=$AC$3),Payments!$E$5:$E$1355)","v":0},{"$f":"SUMPRODUCT(--(Payments!$C$5:$C$1355=A41),--(Payments!$D$5:$D$1355=$AD$3),Payments!$E$5:$E$1355)","v":0},null,0,0,0,0]
[{"$f":"Descriptions!I43","v":0},{"$f":"Descriptions!K43","v":"Administration Costs"},{"$f":"Descriptions!L43","v":0},{"$f":"SUMPRODUCT(--(Payments!$C$5:$C$1355=A42),--(Payments!$D$5:$D$1355=$D$3),Payments!$E$5:$E$1355)","v":0},{"$f":"SUMPRODUCT(--(Payments!$C$5:$C$1355=A42),--(Payments!$D$5:$D$1355=$E$3),Payments!$E$5:$E$1355)","v":0},{"$f":"SUMPRODUCT(--(Payments!$C$5:$C$1355=A42),--(Payments!$D$5:$D$1355=$F$3),Payments!$E$5:$E$1355)","v":0},{"$f":"SUMPRODUCT(--(Payments!$C$5:$C$1355=A42),--(Payments!$D$5:$D$1355=$G$3),Payments!$E$5:$E$1355)","v":0},{"$f":"SUMPRODUCT(--(Payments!$C$5:$C$1355=A42),--(Payments!$D$5:$D$1355=$H$3),Payments!$E$5:$E$1355)","v":0},{"$f":"SUMPRODUCT(--(Payments!$C$5:$C$1355=A42),--(Payments!$D$5:$D$1355=$I$3),Payments!$E$5:$E$1355)","v":0},{"$f":"SUMPRODUCT(--(Payments!$C$5:$C$1355=A42),--(Payments!$D$5:$D$1355=$J$3),Payments!$E$5:$E$1355)","v":0},{"$f":"SUMPRODUCT(--(Payments!$C$5:$C$1355=A42),--(Payments!$D$5:$D$1355=$K$3),Payments!$E$5:$E$1355)","v":0},{"$f":"SUMPRODUCT(--(Payments!$C$5:$C$1355=A42),--(Payments!$D$5:$D$1355=$L$3),Payments!$E$5:$E$1355)","v":0},{"$f":"SUMPRODUCT(--(Payments!$C$5:$C$1355=A42),--(Payments!$D$5:$D$1355=$M$3),Payments!$E$5:$E$1355)","v":0},{"$f":"SUMPRODUCT(--(Payments!$C$5:$C$1355=A42),--(Payments!$D$5:$D$1355=$N$3),Payments!$E$5:$E$1355)","v":0},{"$f":"SUMPRODUCT(--(Payments!$C$5:$C$1355=A42),--(Payments!$D$5:$D$1355=$O$3),Payments!$E$5:$E$1355)","v":0},{"$f":"SUMPRODUCT(--(Payments!$C$5:$C$1355=A42),--(Payments!$D$5:$D$1355=$P$3),Payments!$E$5:$E$1355)","v":0},{"$f":"SUMPRODUCT(--(Payments!$C$5:$C$1355=A42),--(Payments!$D$5:$D$1355=$Q$3),Payments!$E$5:$E$1355)","v":0},{"$f":"SUMPRODUCT(--(Payments!$C$5:$C$1355=A42),--(Payments!$D$5:$D$1355=$R$3),Payments!$E$5:$E$1355)","v":0},{"$f":"SUMPRODUCT(--(Payments!$C$5:$C$1355=A42),--(Payments!$D$5:$D$1355=$S$3),Payments!$E$5:$E$1355)","v":0},{"$f":"SUMPRODUCT(--(Payments!$C$5:$C$1355=A42),--(Payments!$D$5:$D$1355=$T$3),Payments!$E$5:$E$1355)","v":0},{"$f":"SUMPRODUCT(--(Payments!$C$5:$C$1355=A42),--(Payments!$D$5:$D$1355=$U$3),Payments!$E$5:$E$1355)","v":0},{"$f":"SUMPRODUCT(--(Payments!$C$5:$C$1355=A42),--(Payments!$D$5:$D$1355=$V$3),Payments!$E$5:$E$1355)","v":0},{"$f":"SUMPRODUCT(--(Payments!$C$5:$C$1355=A42),--(Payments!$D$5:$D$1355=$W$3),Payments!$E$5:$E$1355)","v":0},{"$f":"SUMPRODUCT(--(Payments!$C$5:$C$1355=A42),--(Payments!$D$5:$D$1355=$X$3),Payments!$E$5:$E$1355)","v":0},{"$f":"SUMPRODUCT(--(Payments!$C$5:$C$1355=A42),--(Payments!$D$5:$D$1355=$Y$3),Payments!$E$5:$E$1355)","v":0},{"$f":"SUMPRODUCT(--(Payments!$C$5:$C$1355=A42),--(Payments!$D$5:$D$1355=$Z$3),Payments!$E$5:$E$1355)","v":0},{"$f":"SUMPRODUCT(--(Payments!$C$5:$C$1355=A42),--(Payments!$D$5:$D$1355=$AA$3),Payments!$E$5:$E$1355)","v":0},{"$f":"SUMPRODUCT(--(Payments!$C$5:$C$1355=A42),--(Payments!$D$5:$D$1355=$AB$3),Payments!$E$5:$E$1355)","v":0},{"$f":"SUMPRODUCT(--(Payments!$C$5:$C$1355=A42),--(Payments!$D$5:$D$1355=$AC$3),Payments!$E$5:$E$1355)","v":0},{"$f":"SUMPRODUCT(--(Payments!$C$5:$C$1355=A42),--(Payments!$D$5:$D$1355=$AD$3),Payments!$E$5:$E$1355)","v":0},null,0,0,0,0]
[{"$f":"Descriptions!I44","v":0},{"$f":"Descriptions!K44","v":"Administration Costs"},{"$f":"Descriptions!L44","v":0},{"$f":"SUMPRODUCT(--(Payments!$C$5:$C$1355=A43),--(Payments!$D$5:$D$1355=$D$3),Payments!$E$5:$E$1355)","v":0},{"$f":"SUMPRODUCT(--(Payments!$C$5:$C$1355=A43),--(Payments!$D$5:$D$1355=$E$3),Payments!$E$5:$E$1355)","v":0},{"$f":"SUMPRODUCT(--(Payments!$C$5:$C$1355=A43),--(Payments!$D$5:$D$1355=$F$3),Payments!$E$5:$E$1355)","v":0},{"$f":"SUMPRODUCT(--(Payments!$C$5:$C$1355=A43),--(Payments!$D$5:$D$1355=$G$3),Payments!$E$5:$E$1355)","v":0},{"$f":"SUMPRODUCT(--(Payments!$C$5:$C$1355=A43),--(Payments!$D$5:$D$1355=$H$3),Payments!$E$5:$E$1355)","v":0},{"$f":"SUMPRODUCT(--(Payments!$C$5:$C$1355=A43),--(Payments!$D$5:$D$1355=$I$3),Payments!$E$5:$E$1355)","v":0},{"$f":"SUMPRODUCT(--(Payments!$C$5:$C$1355=A43),--(Payments!$D$5:$D$1355=$J$3),Payments!$E$5:$E$1355)","v":0},{"$f":"SUMPRODUCT(--(Payments!$C$5:$C$1355=A43),--(Payments!$D$5:$D$1355=$K$3),Payments!$E$5:$E$1355)","v":0},{"$f":"SUMPRODUCT(--(Payments!$C$5:$C$1355=A43),--(Payments!$D$5:$D$1355=$L$3),Payments!$E$5:$E$1355)","v":0},{"$f":"SUMPRODUCT(--(Payments!$C$5:$C$1355=A43),--(Payments!$D$5:$D$1355=$M$3),Payments!$E$5:$E$1355)","v":0},{"$f":"SUMPRODUCT(--(Payments!$C$5:$C$1355=A43),--(Payments!$D$5:$D$1355=$N$3),Payments!$E$5:$E$1355)","v":0},{"$f":"SUMPRODUCT(--(Payments!$C$5:$C$1355=A43),--(Payments!$D$5:$D$1355=$O$3),Payments!$E$5:$E$1355)","v":0},{"$f":"SUMPRODUCT(--(Payments!$C$5:$C$1355=A43),--(Payments!$D$5:$D$1355=$P$3),Payments!$E$5:$E$1355)","v":0},{"$f":"SUMPRODUCT(--(Payments!$C$5:$C$1355=A43),--(Payments!$D$5:$D$1355=$Q$3),Payments!$E$5:$E$1355)","v":0},{"$f":"SUMPRODUCT(--(Payments!$C$5:$C$1355=A43),--(Payments!$D$5:$D$1355=$R$3),Payments!$E$5:$E$1355)","v":0},{"$f":"SUMPRODUCT(--(Payments!$C$5:$C$1355=A43),--(Payments!$D$5:$D$1355=$S$3),Payments!$E$5:$E$1355)","v":0},{"$f":"SUMPRODUCT(--(Payments!$C$5:$C$1355=A43),--(Payments!$D$5:$D$1355=$T$3),Payments!$E$5:$E$1355)","v":0},{"$f":"SUMPRODUCT(--(Payments!$C$5:$C$1355=A43),--(Payments!$D$5:$D$1355=$U$3),Payments!$E$5:$E$1355)","v":0},{"$f":"SUMPRODUCT(--(Payments!$C$5:$C$1355=A43),--(Payments!$D$5:$D$1355=$V$3),Payments!$E$5:$E$1355)","v":0},{"$f":"SUMPRODUCT(--(Payments!$C$5:$C$1355=A43),--(Payments!$D$5:$D$1355=$W$3),Payments!$E$5:$E$1355)","v":0},{"$f":"SUMPRODUCT(--(Payments!$C$5:$C$1355=A43),--(Payments!$D$5:$D$1355=$X$3),Payments!$E$5:$E$1355)","v":0},{"$f":"SUMPRODUCT(--(Payments!$C$5:$C$1355=A43),--(Payments!$D$5:$D$1355=$Y$3),Payments!$E$5:$E$1355)","v":0},{"$f":"SUMPRODUCT(--(Payments!$C$5:$C$1355=A43),--(Payments!$D$5:$D$1355=$Z$3),Payments!$E$5:$E$1355)","v":0},{"$f":"SUMPRODUCT(--(Payments!$C$5:$C$1355=A43),--(Payments!$D$5:$D$1355=$AA$3),Payments!$E$5:$E$1355)","v":0},{"$f":"SUMPRODUCT(--(Payments!$C$5:$C$1355=A43),--(Payments!$D$5:$D$1355=$AB$3),Payments!$E$5:$E$1355)","v":0},{"$f":"SUMPRODUCT(--(Payments!$C$5:$C$1355=A43),--(Payments!$D$5:$D$1355=$AC$3),Payments!$E$5:$E$1355)","v":0},{"$f":"SUMPRODUCT(--(Payments!$C$5:$C$1355=A43),--(Payments!$D$5:$D$1355=$AD$3),Payments!$E$5:$E$1355)","v":0},null,0,0,0,0]
[{"$f":"Descriptions!I45","v":0},{"$f":"Descriptions!K45","v":"Administration Costs"},{"$f":"Descriptions!L45","v":0},{"$f":"SUMPRODUCT(--(Payments!$C$5:$C$1355=A44),--(Payments!$D$5:$D$1355=$D$3),Payments!$E$5:$E$1355)","v":0},{"$f":"SUMPRODUCT(--(Payments!$C$5:$C$1355=A44),--(Payments!$D$5:$D$1355=$E$3),Payments!$E$5:$E$1355)","v":0},{"$f":"SUMPRODUCT(--(Payments!$C$5:$C$1355=A44),--(Payments!$D$5:$D$1355=$F$3),Payments!$E$5:$E$1355)","v":0},{"$f":"SUMPRODUCT(--(Payments!$C$5:$C$1355=A44),--(Payments!$D$5:$D$1355=$G$3),Payments!$E$5:$E$1355)","v":0},{"$f":"SUMPRODUCT(--(Payments!$C$5:$C$1355=A44),--(Payments!$D$5:$D$1355=$H$3),Payments!$E$5:$E$1355)","v":0},{"$f":"SUMPRODUCT(--(Payments!$C$5:$C$1355=A44),--(Payments!$D$5:$D$1355=$I$3),Payments!$E$5:$E$1355)","v":0},{"$f":"SUMPRODUCT(--(Payments!$C$5:$C$1355=A44),--(Payments!$D$5:$D$1355=$J$3),Payments!$E$5:$E$1355)","v":0},{"$f":"SUMPRODUCT(--(Payments!$C$5:$C$1355=A44),--(Payments!$D$5:$D$1355=$K$3),Payments!$E$5:$E$1355)","v":0},{"$f":"SUMPRODUCT(--(Payments!$C$5:$C$1355=A44),--(Payments!$D$5:$D$1355=$L$3),Payments!$E$5:$E$1355)","v":0},{"$f":"SUMPRODUCT(--(Payments!$C$5:$C$1355=A44),--(Payments!$D$5:$D$1355=$M$3),Payments!$E$5:$E$1355)","v":0},{"$f":"SUMPRODUCT(--(Payments!$C$5:$C$1355=A44),--(Payments!$D$5:$D$1355=$N$3),Payments!$E$5:$E$1355)","v":0},{"$f":"SUMPRODUCT(--(Payments!$C$5:$C$1355=A44),--(Payments!$D$5:$D$1355=$O$3),Payments!$E$5:$E$1355)","v":0},{"$f":"SUMPRODUCT(--(Payments!$C$5:$C$1355=A44),--(Payments!$D$5:$D$1355=$P$3),Payments!$E$5:$E$1355)","v":0},{"$f":"SUMPRODUCT(--(Payments!$C$5:$C$1355=A44),--(Payments!$D$5:$D$1355=$Q$3),Payments!$E$5:$E$1355)","v":0},{"$f":"SUMPRODUCT(--(Payments!$C$5:$C$1355=A44),--(Payments!$D$5:$D$1355=$R$3),Payments!$E$5:$E$1355)","v":0},{"$f":"SUMPRODUCT(--(Payments!$C$5:$C$1355=A44),--(Payments!$D$5:$D$1355=$S$3),Payments!$E$5:$E$1355)","v":0},{"$f":"SUMPRODUCT(--(Payments!$C$5:$C$1355=A44),--(Payments!$D$5:$D$1355=$T$3),Payments!$E$5:$E$1355)","v":0},{"$f":"SUMPRODUCT(--(Payments!$C$5:$C$1355=A44),--(Payments!$D$5:$D$1355=$U$3),Payments!$E$5:$E$1355)","v":0},{"$f":"SUMPRODUCT(--(Payments!$C$5:$C$1355=A44),--(Payments!$D$5:$D$1355=$V$3),Payments!$E$5:$E$1355)","v":0},{"$f":"SUMPRODUCT(--(Payments!$C$5:$C$1355=A44),--(Payments!$D$5:$D$1355=$W$3),Payments!$E$5:$E$1355)","v":0},{"$f":"SUMPRODUCT(--(Payments!$C$5:$C$1355=A44),--(Payments!$D$5:$D$1355=$X$3),Payments!$E$5:$E$1355)","v":0},{"$f":"SUMPRODUCT(--(Payments!$C$5:$C$1355=A44),--(Payments!$D$5:$D$1355=$Y$3),Payments!$E$5:$E$1355)","v":0},{"$f":"SUMPRODUCT(--(Payments!$C$5:$C$1355=A44),--(Payments!$D$5:$D$1355=$Z$3),Payments!$E$5:$E$1355)","v":0},{"$f":"SUMPRODUCT(--(Payments!$C$5:$C$1355=A44),--(Payments!$D$5:$D$1355=$AA$3),Payments!$E$5:$E$1355)","v":0},{"$f":"SUMPRODUCT(--(Payments!$C$5:$C$1355=A44),--(Payments!$D$5:$D$1355=$AB$3),Payments!$E$5:$E$1355)","v":0},{"$f":"SUMPRODUCT(--(Payments!$C$5:$C$1355=A44),--(Payments!$D$5:$D$1355=$AC$3),Payments!$E$5:$E$1355)","v":0},{"$f":"SUMPRODUCT(--(Payments!$C$5:$C$1355=A44),--(Payments!$D$5:$D$1355=$AD$3),Payments!$E$5:$E$1355)","v":0},null,0,0,0,0]
[{"$f":"Descriptions!I46","v":0},{"$f":"Descriptions!K46","v":"Administration Costs"},{"$f":"Descriptions!L46","v":0},{"$f":"SUMPRODUCT(--(Payments!$C$5:$C$1355=A45),--(Payments!$D$5:$D$1355=$D$3),Payments!$E$5:$E$1355)","v":0},{"$f":"SUMPRODUCT(--(Payments!$C$5:$C$1355=A45),--(Payments!$D$5:$D$1355=$E$3),Payments!$E$5:$E$1355)","v":0},{"$f":"SUMPRODUCT(--(Payments!$C$5:$C$1355=A45),--(Payments!$D$5:$D$1355=$F$3),Payments!$E$5:$E$1355)","v":0},{"$f":"SUMPRODUCT(--(Payments!$C$5:$C$1355=A45),--(Payments!$D$5:$D$1355=$G$3),Payments!$E$5:$E$1355)","v":0},{"$f":"SUMPRODUCT(--(Payments!$C$5:$C$1355=A45),--(Payments!$D$5:$D$1355=$H$3),Payments!$E$5:$E$1355)","v":0},{"$f":"SUMPRODUCT(--(Payments!$C$5:$C$1355=A45),--(Payments!$D$5:$D$1355=$I$3),Payments!$E$5:$E$1355)","v":0},{"$f":"SUMPRODUCT(--(Payments!$C$5:$C$1355=A45),--(Payments!$D$5:$D$1355=$J$3),Payments!$E$5:$E$1355)","v":0},{"$f":"SUMPRODUCT(--(Payments!$C$5:$C$1355=A45),--(Payments!$D$5:$D$1355=$K$3),Payments!$E$5:$E$1355)","v":0},{"$f":"SUMPRODUCT(--(Payments!$C$5:$C$1355=A45),--(Payments!$D$5:$D$1355=$L$3),Payments!$E$5:$E$1355)","v":0},{"$f":"SUMPRODUCT(--(Payments!$C$5:$C$1355=A45),--(Payments!$D$5:$D$1355=$M$3),Payments!$E$5:$E$1355)","v":0},{"$f":"SUMPRODUCT(--(Payments!$C$5:$C$1355=A45),--(Payments!$D$5:$D$1355=$N$3),Payments!$E$5:$E$1355)","v":0},{"$f":"SUMPRODUCT(--(Payments!$C$5:$C$1355=A45),--(Payments!$D$5:$D$1355=$O$3),Payments!$E$5:$E$1355)","v":0},{"$f":"SUMPRODUCT(--(Payments!$C$5:$C$1355=A45),--(Payments!$D$5:$D$1355=$P$3),Payments!$E$5:$E$1355)","v":0},{"$f":"SUMPRODUCT(--(Payments!$C$5:$C$1355=A45),--(Payments!$D$5:$D$1355=$Q$3),Payments!$E$5:$E$1355)","v":0},{"$f":"SUMPRODUCT(--(Payments!$C$5:$C$1355=A45),--(Payments!$D$5:$D$1355=$R$3),Payments!$E$5:$E$1355)","v":0},{"$f":"SUMPRODUCT(--(Payments!$C$5:$C$1355=A45),--(Payments!$D$5:$D$1355=$S$3),Payments!$E$5:$E$1355)","v":0},{"$f":"SUMPRODUCT(--(Payments!$C$5:$C$1355=A45),--(Payments!$D$5:$D$1355=$T$3),Payments!$E$5:$E$1355)","v":0},{"$f":"SUMPRODUCT(--(Payments!$C$5:$C$1355=A45),--(Payments!$D$5:$D$1355=$U$3),Payments!$E$5:$E$1355)","v":0},{"$f":"SUMPRODUCT(--(Payments!$C$5:$C$1355=A45),--(Payments!$D$5:$D$1355=$V$3),Payments!$E$5:$E$1355)","v":0},{"$f":"SUMPRODUCT(--(Payments!$C$5:$C$1355=A45),--(Payments!$D$5:$D$1355=$W$3),Payments!$E$5:$E$1355)","v":0},{"$f":"SUMPRODUCT(--(Payments!$C$5:$C$1355=A45),--(Payments!$D$5:$D$1355=$X$3),Payments!$E$5:$E$1355)","v":0},{"$f":"SUMPRODUCT(--(Payments!$C$5:$C$1355=A45),--(Payments!$D$5:$D$1355=$Y$3),Payments!$E$5:$E$1355)","v":0},{"$f":"SUMPRODUCT(--(Payments!$C$5:$C$1355=A45),--(Payments!$D$5:$D$1355=$Z$3),Payments!$E$5:$E$1355)","v":0},{"$f":"SUMPRODUCT(--(Payments!$C$5:$C$1355=A45),--(Payments!$D$5:$D$1355=$AA$3),Payments!$E$5:$E$1355)","v":0},{"$f":"SUMPRODUCT(--(Payments!$C$5:$C$1355=A45),--(Payments!$D$5:$D$1355=$AB$3),Payments!$E$5:$E$1355)","v":0},{"$f":"SUMPRODUCT(--(Payments!$C$5:$C$1355=A45),--(Payments!$D$5:$D$1355=$AC$3),Payments!$E$5:$E$1355)","v":0},{"$f":"SUMPRODUCT(--(Payments!$C$5:$C$1355=A45),--(Payments!$D$5:$D$1355=$AD$3),Payments!$E$5:$E$1355)","v":0},null,0,0,0,0]
[{"$f":"Descriptions!I47","v":0},{"$f":"Descriptions!K47","v":"Administration Costs"},{"$f":"Descriptions!L47","v":0},{"$f":"SUMPRODUCT(--(Payments!$C$5:$C$1355=A46),--(Payments!$D$5:$D$1355=$D$3),Payments!$E$5:$E$1355)","v":0},{"$f":"SUMPRODUCT(--(Payments!$C$5:$C$1355=A46),--(Payments!$D$5:$D$1355=$E$3),Payments!$E$5:$E$1355)","v":0},{"$f":"SUMPRODUCT(--(Payments!$C$5:$C$1355=A46),--(Payments!$D$5:$D$1355=$F$3),Payments!$E$5:$E$1355)","v":0},{"$f":"SUMPRODUCT(--(Payments!$C$5:$C$1355=A46),--(Payments!$D$5:$D$1355=$G$3),Payments!$E$5:$E$1355)","v":0},{"$f":"SUMPRODUCT(--(Payments!$C$5:$C$1355=A46),--(Payments!$D$5:$D$1355=$H$3),Payments!$E$5:$E$1355)","v":0},{"$f":"SUMPRODUCT(--(Payments!$C$5:$C$1355=A46),--(Payments!$D$5:$D$1355=$I$3),Payments!$E$5:$E$1355)","v":0},{"$f":"SUMPRODUCT(--(Payments!$C$5:$C$1355=A46),--(Payments!$D$5:$D$1355=$J$3),Payments!$E$5:$E$1355)","v":0},{"$f":"SUMPRODUCT(--(Payments!$C$5:$C$1355=A46),--(Payments!$D$5:$D$1355=$K$3),Payments!$E$5:$E$1355)","v":0},{"$f":"SUMPRODUCT(--(Payments!$C$5:$C$1355=A46),--(Payments!$D$5:$D$1355=$L$3),Payments!$E$5:$E$1355)","v":0},{"$f":"SUMPRODUCT(--(Payments!$C$5:$C$1355=A46),--(Payments!$D$5:$D$1355=$M$3),Payments!$E$5:$E$1355)","v":0},{"$f":"SUMPRODUCT(--(Payments!$C$5:$C$1355=A46),--(Payments!$D$5:$D$1355=$N$3),Payments!$E$5:$E$1355)","v":0},{"$f":"SUMPRODUCT(--(Payments!$C$5:$C$1355=A46),--(Payments!$D$5:$D$1355=$O$3),Payments!$E$5:$E$1355)","v":0},{"$f":"SUMPRODUCT(--(Payments!$C$5:$C$1355=A46),--(Payments!$D$5:$D$1355=$P$3),Payments!$E$5:$E$1355)","v":0},{"$f":"SUMPRODUCT(--(Payments!$C$5:$C$1355=A46),--(Payments!$D$5:$D$1355=$Q$3),Payments!$E$5:$E$1355)","v":0},{"$f":"SUMPRODUCT(--(Payments!$C$5:$C$1355=A46),--(Payments!$D$5:$D$1355=$R$3),Payments!$E$5:$E$1355)","v":0},{"$f":"SUMPRODUCT(--(Payments!$C$5:$C$1355=A46),--(Payments!$D$5:$D$1355=$S$3),Payments!$E$5:$E$1355)","v":0},{"$f":"SUMPRODUCT(--(Payments!$C$5:$C$1355=A46),--(Payments!$D$5:$D$1355=$T$3),Payments!$E$5:$E$1355)","v":0},{"$f":"SUMPRODUCT(--(Payments!$C$5:$C$1355=A46),--(Payments!$D$5:$D$1355=$U$3),Payments!$E$5:$E$1355)","v":0},{"$f":"SUMPRODUCT(--(Payments!$C$5:$C$1355=A46),--(Payments!$D$5:$D$1355=$V$3),Payments!$E$5:$E$1355)","v":0},{"$f":"SUMPRODUCT(--(Payments!$C$5:$C$1355=A46),--(Payments!$D$5:$D$1355=$W$3),Payments!$E$5:$E$1355)","v":0},{"$f":"SUMPRODUCT(--(Payments!$C$5:$C$1355=A46),--(Payments!$D$5:$D$1355=$X$3),Payments!$E$5:$E$1355)","v":0},{"$f":"SUMPRODUCT(--(Payments!$C$5:$C$1355=A46),--(Payments!$D$5:$D$1355=$Y$3),Payments!$E$5:$E$1355)","v":0},{"$f":"SUMPRODUCT(--(Payments!$C$5:$C$1355=A46),--(Payments!$D$5:$D$1355=$Z$3),Payments!$E$5:$E$1355)","v":0},{"$f":"SUMPRODUCT(--(Payments!$C$5:$C$1355=A46),--(Payments!$D$5:$D$1355=$AA$3),Payments!$E$5:$E$1355)","v":0},{"$f":"SUMPRODUCT(--(Payments!$C$5:$C$1355=A46),--(Payments!$D$5:$D$1355=$AB$3),Payments!$E$5:$E$1355)","v":0},{"$f":"SUMPRODUCT(--(Payments!$C$5:$C$1355=A46),--(Payments!$D$5:$D$1355=$AC$3),Payments!$E$5:$E$1355)","v":0},{"$f":"SUMPRODUCT(--(Payments!$C$5:$C$1355=A46),--(Payments!$D$5:$D$1355=$AD$3),Payments!$E$5:$E$1355)","v":0},null,0,0,0,0]
[{"$f":"Descriptions!I48","v":0},{"$f":"Descriptions!K48","v":"Administration Costs"},{"$f":"Descriptions!L48","v":0},{"$f":"SUMPRODUCT(--(Payments!$C$5:$C$1355=A47),--(Payments!$D$5:$D$1355=$D$3),Payments!$E$5:$E$1355)","v":0},{"$f":"SUMPRODUCT(--(Payments!$C$5:$C$1355=A47),--(Payments!$D$5:$D$1355=$E$3),Payments!$E$5:$E$1355)","v":0},{"$f":"SUMPRODUCT(--(Payments!$C$5:$C$1355=A47),--(Payments!$D$5:$D$1355=$F$3),Payments!$E$5:$E$1355)","v":0},{"$f":"SUMPRODUCT(--(Payments!$C$5:$C$1355=A47),--(Payments!$D$5:$D$1355=$G$3),Payments!$E$5:$E$1355)","v":0},{"$f":"SUMPRODUCT(--(Payments!$C$5:$C$1355=A47),--(Payments!$D$5:$D$1355=$H$3),Payments!$E$5:$E$1355)","v":0},{"$f":"SUMPRODUCT(--(Payments!$C$5:$C$1355=A47),--(Payments!$D$5:$D$1355=$I$3),Payments!$E$5:$E$1355)","v":0},{"$f":"SUMPRODUCT(--(Payments!$C$5:$C$1355=A47),--(Payments!$D$5:$D$1355=$J$3),Payments!$E$5:$E$1355)","v":0},{"$f":"SUMPRODUCT(--(Payments!$C$5:$C$1355=A47),--(Payments!$D$5:$D$1355=$K$3),Payments!$E$5:$E$1355)","v":0},{"$f":"SUMPRODUCT(--(Payments!$C$5:$C$1355=A47),--(Payments!$D$5:$D$1355=$L$3),Payments!$E$5:$E$1355)","v":0},{"$f":"SUMPRODUCT(--(Payments!$C$5:$C$1355=A47),--(Payments!$D$5:$D$1355=$M$3),Payments!$E$5:$E$1355)","v":0},{"$f":"SUMPRODUCT(--(Payments!$C$5:$C$1355=A47),--(Payments!$D$5:$D$1355=$N$3),Payments!$E$5:$E$1355)","v":0},{"$f":"SUMPRODUCT(--(Payments!$C$5:$C$1355=A47),--(Payments!$D$5:$D$1355=$O$3),Payments!$E$5:$E$1355)","v":0},{"$f":"SUMPRODUCT(--(Payments!$C$5:$C$1355=A47),--(Payments!$D$5:$D$1355=$P$3),Payments!$E$5:$E$1355)","v":0},{"$f":"SUMPRODUCT(--(Payments!$C$5:$C$1355=A47),--(Payments!$D$5:$D$1355=$Q$3),Payments!$E$5:$E$1355)","v":0},{"$f":"SUMPRODUCT(--(Payments!$C$5:$C$1355=A47),--(Payments!$D$5:$D$1355=$R$3),Payments!$E$5:$E$1355)","v":0},{"$f":"SUMPRODUCT(--(Payments!$C$5:$C$1355=A47),--(Payments!$D$5:$D$1355=$S$3),Payments!$E$5:$E$1355)","v":0},{"$f":"SUMPRODUCT(--(Payments!$C$5:$C$1355=A47),--(Payments!$D$5:$D$1355=$T$3),Payments!$E$5:$E$1355)","v":0},{"$f":"SUMPRODUCT(--(Payments!$C$5:$C$1355=A47),--(Payments!$D$5:$D$1355=$U$3),Payments!$E$5:$E$1355)","v":0},{"$f":"SUMPRODUCT(--(Payments!$C$5:$C$1355=A47),--(Payments!$D$5:$D$1355=$V$3),Payments!$E$5:$E$1355)","v":0},{"$f":"SUMPRODUCT(--(Payments!$C$5:$C$1355=A47),--(Payments!$D$5:$D$1355=$W$3),Payments!$E$5:$E$1355)","v":0},{"$f":"SUMPRODUCT(--(Payments!$C$5:$C$1355=A47),--(Payments!$D$5:$D$1355=$X$3),Payments!$E$5:$E$1355)","v":0},{"$f":"SUMPRODUCT(--(Payments!$C$5:$C$1355=A47),--(Payments!$D$5:$D$1355=$Y$3),Payments!$E$5:$E$1355)","v":0},{"$f":"SUMPRODUCT(--(Payments!$C$5:$C$1355=A47),--(Payments!$D$5:$D$1355=$Z$3),Payments!$E$5:$E$1355)","v":0},{"$f":"SUMPRODUCT(--(Payments!$C$5:$C$1355=A47),--(Payments!$D$5:$D$1355=$AA$3),Payments!$E$5:$E$1355)","v":0},{"$f":"SUMPRODUCT(--(Payments!$C$5:$C$1355=A47),--(Payments!$D$5:$D$1355=$AB$3),Payments!$E$5:$E$1355)","v":0},{"$f":"SUMPRODUCT(--(Payments!$C$5:$C$1355=A47),--(Payments!$D$5:$D$1355=$AC$3),Payments!$E$5:$E$1355)","v":0},{"$f":"SUMPRODUCT(--(Payments!$C$5:$C$1355=A47),--(Payments!$D$5:$D$1355=$AD$3),Payments!$E$5:$E$1355)","v":0},null,0,0,0,0]
[{"$f":"Descriptions!I49","v":0},{"$f":"Descriptions!K49","v":"Administration Costs"},{"$f":"Descriptions!L49","v":0},{"$f":"SUMPRODUCT(--(Payments!$C$5:$C$1355=A48),--(Payments!$D$5:$D$1355=$D$3),Payments!$E$5:$E$1355)","v":0},{"$f":"SUMPRODUCT(--(Payments!$C$5:$C$1355=A48),--(Payments!$D$5:$D$1355=$E$3),Payments!$E$5:$E$1355)","v":0},{"$f":"SUMPRODUCT(--(Payments!$C$5:$C$1355=A48),--(Payments!$D$5:$D$1355=$F$3),Payments!$E$5:$E$1355)","v":0},{"$f":"SUMPRODUCT(--(Payments!$C$5:$C$1355=A48),--(Payments!$D$5:$D$1355=$G$3),Payments!$E$5:$E$1355)","v":0},{"$f":"SUMPRODUCT(--(Payments!$C$5:$C$1355=A48),--(Payments!$D$5:$D$1355=$H$3),Payments!$E$5:$E$1355)","v":0},{"$f":"SUMPRODUCT(--(Payments!$C$5:$C$1355=A48),--(Payments!$D$5:$D$1355=$I$3),Payments!$E$5:$E$1355)","v":0},{"$f":"SUMPRODUCT(--(Payments!$C$5:$C$1355=A48),--(Payments!$D$5:$D$1355=$J$3),Payments!$E$5:$E$1355)","v":0},{"$f":"SUMPRODUCT(--(Payments!$C$5:$C$1355=A48),--(Payments!$D$5:$D$1355=$K$3),Payments!$E$5:$E$1355)","v":0},{"$f":"SUMPRODUCT(--(Payments!$C$5:$C$1355=A48),--(Payments!$D$5:$D$1355=$L$3),Payments!$E$5:$E$1355)","v":0},{"$f":"SUMPRODUCT(--(Payments!$C$5:$C$1355=A48),--(Payments!$D$5:$D$1355=$M$3),Payments!$E$5:$E$1355)","v":0},{"$f":"SUMPRODUCT(--(Payments!$C$5:$C$1355=A48),--(Payments!$D$5:$D$1355=$N$3),Payments!$E$5:$E$1355)","v":0},{"$f":"SUMPRODUCT(--(Payments!$C$5:$C$1355=A48),--(Payments!$D$5:$D$1355=$O$3),Payments!$E$5:$E$1355)","v":0},{"$f":"SUMPRODUCT(--(Payments!$C$5:$C$1355=A48),--(Payments!$D$5:$D$1355=$P$3),Payments!$E$5:$E$1355)","v":0},{"$f":"SUMPRODUCT(--(Payments!$C$5:$C$1355=A48),--(Payments!$D$5:$D$1355=$Q$3),Payments!$E$5:$E$1355)","v":0},{"$f":"SUMPRODUCT(--(Payments!$C$5:$C$1355=A48),--(Payments!$D$5:$D$1355=$R$3),Payments!$E$5:$E$1355)","v":0},{"$f":"SUMPRODUCT(--(Payments!$C$5:$C$1355=A48),--(Payments!$D$5:$D$1355=$S$3),Payments!$E$5:$E$1355)","v":0},{"$f":"SUMPRODUCT(--(Payments!$C$5:$C$1355=A48),--(Payments!$D$5:$D$1355=$T$3),Payments!$E$5:$E$1355)","v":0},{"$f":"SUMPRODUCT(--(Payments!$C$5:$C$1355=A48),--(Payments!$D$5:$D$1355=$U$3),Payments!$E$5:$E$1355)","v":0},{"$f":"SUMPRODUCT(--(Payments!$C$5:$C$1355=A48),--(Payments!$D$5:$D$1355=$V$3),Payments!$E$5:$E$1355)","v":0},{"$f":"SUMPRODUCT(--(Payments!$C$5:$C$1355=A48),--(Payments!$D$5:$D$1355=$W$3),Payments!$E$5:$E$1355)","v":0},{"$f":"SUMPRODUCT(--(Payments!$C$5:$C$1355=A48),--(Payments!$D$5:$D$1355=$X$3),Payments!$E$5:$E$1355)","v":0},{"$f":"SUMPRODUCT(--(Payments!$C$5:$C$1355=A48),--(Payments!$D$5:$D$1355=$Y$3),Payments!$E$5:$E$1355)","v":0},{"$f":"SUMPRODUCT(--(Payments!$C$5:$C$1355=A48),--(Payments!$D$5:$D$1355=$Z$3),Payments!$E$5:$E$1355)","v":0},{"$f":"SUMPRODUCT(--(Payments!$C$5:$C$1355=A48),--(Payments!$D$5:$D$1355=$AA$3),Payments!$E$5:$E$1355)","v":0},{"$f":"SUMPRODUCT(--(Payments!$C$5:$C$1355=A48),--(Payments!$D$5:$D$1355=$AB$3),Payments!$E$5:$E$1355)","v":0},{"$f":"SUMPRODUCT(--(Payments!$C$5:$C$1355=A48),--(Payments!$D$5:$D$1355=$AC$3),Payments!$E$5:$E$1355)","v":0},{"$f":"SUMPRODUCT(--(Payments!$C$5:$C$1355=A48),--(Payments!$D$5:$D$1355=$AD$3),Payments!$E$5:$E$1355)","v":0},null,0,0,0,0]
[{"$f":"Descriptions!I50","v":0},{"$f":"Descriptions!K50","v":"Administration Costs"},{"$f":"Descriptions!L50","v":0},{"$f":"SUMPRODUCT(--(Payments!$C$5:$C$1355=A49),--(Payments!$D$5:$D$1355=$D$3),Payments!$E$5:$E$1355)","v":0},{"$f":"SUMPRODUCT(--(Payments!$C$5:$C$1355=A49),--(Payments!$D$5:$D$1355=$E$3),Payments!$E$5:$E$1355)","v":0},{"$f":"SUMPRODUCT(--(Payments!$C$5:$C$1355=A49),--(Payments!$D$5:$D$1355=$F$3),Payments!$E$5:$E$1355)","v":0},{"$f":"SUMPRODUCT(--(Payments!$C$5:$C$1355=A49),--(Payments!$D$5:$D$1355=$G$3),Payments!$E$5:$E$1355)","v":0},{"$f":"SUMPRODUCT(--(Payments!$C$5:$C$1355=A49),--(Payments!$D$5:$D$1355=$H$3),Payments!$E$5:$E$1355)","v":0},{"$f":"SUMPRODUCT(--(Payments!$C$5:$C$1355=A49),--(Payments!$D$5:$D$1355=$I$3),Payments!$E$5:$E$1355)","v":0},{"$f":"SUMPRODUCT(--(Payments!$C$5:$C$1355=A49),--(Payments!$D$5:$D$1355=$J$3),Payments!$E$5:$E$1355)","v":0},{"$f":"SUMPRODUCT(--(Payments!$C$5:$C$1355=A49),--(Payments!$D$5:$D$1355=$K$3),Payments!$E$5:$E$1355)","v":0},{"$f":"SUMPRODUCT(--(Payments!$C$5:$C$1355=A49),--(Payments!$D$5:$D$1355=$L$3),Payments!$E$5:$E$1355)","v":0},{"$f":"SUMPRODUCT(--(Payments!$C$5:$C$1355=A49),--(Payments!$D$5:$D$1355=$M$3),Payments!$E$5:$E$1355)","v":0},{"$f":"SUMPRODUCT(--(Payments!$C$5:$C$1355=A49),--(Payments!$D$5:$D$1355=$N$3),Payments!$E$5:$E$1355)","v":0},{"$f":"SUMPRODUCT(--(Payments!$C$5:$C$1355=A49),--(Payments!$D$5:$D$1355=$O$3),Payments!$E$5:$E$1355)","v":0},{"$f":"SUMPRODUCT(--(Payments!$C$5:$C$1355=A49),--(Payments!$D$5:$D$1355=$P$3),Payments!$E$5:$E$1355)","v":0},{"$f":"SUMPRODUCT(--(Payments!$C$5:$C$1355=A49),--(Payments!$D$5:$D$1355=$Q$3),Payments!$E$5:$E$1355)","v":0},{"$f":"SUMPRODUCT(--(Payments!$C$5:$C$1355=A49),--(Payments!$D$5:$D$1355=$R$3),Payments!$E$5:$E$1355)","v":0},{"$f":"SUMPRODUCT(--(Payments!$C$5:$C$1355=A49),--(Payments!$D$5:$D$1355=$S$3),Payments!$E$5:$E$1355)","v":0},{"$f":"SUMPRODUCT(--(Payments!$C$5:$C$1355=A49),--(Payments!$D$5:$D$1355=$T$3),Payments!$E$5:$E$1355)","v":0},{"$f":"SUMPRODUCT(--(Payments!$C$5:$C$1355=A49),--(Payments!$D$5:$D$1355=$U$3),Payments!$E$5:$E$1355)","v":0},{"$f":"SUMPRODUCT(--(Payments!$C$5:$C$1355=A49),--(Payments!$D$5:$D$1355=$V$3),Payments!$E$5:$E$1355)","v":0},{"$f":"SUMPRODUCT(--(Payments!$C$5:$C$1355=A49),--(Payments!$D$5:$D$1355=$W$3),Payments!$E$5:$E$1355)","v":0},{"$f":"SUMPRODUCT(--(Payments!$C$5:$C$1355=A49),--(Payments!$D$5:$D$1355=$X$3),Payments!$E$5:$E$1355)","v":0},{"$f":"SUMPRODUCT(--(Payments!$C$5:$C$1355=A49),--(Payments!$D$5:$D$1355=$Y$3),Payments!$E$5:$E$1355)","v":0},{"$f":"SUMPRODUCT(--(Payments!$C$5:$C$1355=A49),--(Payments!$D$5:$D$1355=$Z$3),Payments!$E$5:$E$1355)","v":0},{"$f":"SUMPRODUCT(--(Payments!$C$5:$C$1355=A49),--(Payments!$D$5:$D$1355=$AA$3),Payments!$E$5:$E$1355)","v":0},{"$f":"SUMPRODUCT(--(Payments!$C$5:$C$1355=A49),--(Payments!$D$5:$D$1355=$AB$3),Payments!$E$5:$E$1355)","v":0},{"$f":"SUMPRODUCT(--(Payments!$C$5:$C$1355=A49),--(Payments!$D$5:$D$1355=$AC$3),Payments!$E$5:$E$1355)","v":0},{"$f":"SUMPRODUCT(--(Payments!$C$5:$C$1355=A49),--(Payments!$D$5:$D$1355=$AD$3),Payments!$E$5:$E$1355)","v":0},null,0,0,0,0]
[{"$f":"Descriptions!I51","v":0},{"$f":"Descriptions!K51","v":"Administration Costs"},{"$f":"Descriptions!L51","v":0},{"$f":"SUMPRODUCT(--(Payments!$C$5:$C$1355=A50),--(Payments!$D$5:$D$1355=$D$3),Payments!$E$5:$E$1355)","v":0},{"$f":"SUMPRODUCT(--(Payments!$C$5:$C$1355=A50),--(Payments!$D$5:$D$1355=$E$3),Payments!$E$5:$E$1355)","v":0},{"$f":"SUMPRODUCT(--(Payments!$C$5:$C$1355=A50),--(Payments!$D$5:$D$1355=$F$3),Payments!$E$5:$E$1355)","v":0},{"$f":"SUMPRODUCT(--(Payments!$C$5:$C$1355=A50),--(Payments!$D$5:$D$1355=$G$3),Payments!$E$5:$E$1355)","v":0},{"$f":"SUMPRODUCT(--(Payments!$C$5:$C$1355=A50),--(Payments!$D$5:$D$1355=$H$3),Payments!$E$5:$E$1355)","v":0},{"$f":"SUMPRODUCT(--(Payments!$C$5:$C$1355=A50),--(Payments!$D$5:$D$1355=$I$3),Payments!$E$5:$E$1355)","v":0},{"$f":"SUMPRODUCT(--(Payments!$C$5:$C$1355=A50),--(Payments!$D$5:$D$1355=$J$3),Payments!$E$5:$E$1355)","v":0},{"$f":"SUMPRODUCT(--(Payments!$C$5:$C$1355=A50),--(Payments!$D$5:$D$1355=$K$3),Payments!$E$5:$E$1355)","v":0},{"$f":"SUMPRODUCT(--(Payments!$C$5:$C$1355=A50),--(Payments!$D$5:$D$1355=$L$3),Payments!$E$5:$E$1355)","v":0},{"$f":"SUMPRODUCT(--(Payments!$C$5:$C$1355=A50),--(Payments!$D$5:$D$1355=$M$3),Payments!$E$5:$E$1355)","v":0},{"$f":"SUMPRODUCT(--(Payments!$C$5:$C$1355=A50),--(Payments!$D$5:$D$1355=$N$3),Payments!$E$5:$E$1355)","v":0},{"$f":"SUMPRODUCT(--(Payments!$C$5:$C$1355=A50),--(Payments!$D$5:$D$1355=$O$3),Payments!$E$5:$E$1355)","v":0},{"$f":"SUMPRODUCT(--(Payments!$C$5:$C$1355=A50),--(Payments!$D$5:$D$1355=$P$3),Payments!$E$5:$E$1355)","v":0},{"$f":"SUMPRODUCT(--(Payments!$C$5:$C$1355=A50),--(Payments!$D$5:$D$1355=$Q$3),Payments!$E$5:$E$1355)","v":0},{"$f":"SUMPRODUCT(--(Payments!$C$5:$C$1355=A50),--(Payments!$D$5:$D$1355=$R$3),Payments!$E$5:$E$1355)","v":0},{"$f":"SUMPRODUCT(--(Payments!$C$5:$C$1355=A50),--(Payments!$D$5:$D$1355=$S$3),Payments!$E$5:$E$1355)","v":0},{"$f":"SUMPRODUCT(--(Payments!$C$5:$C$1355=A50),--(Payments!$D$5:$D$1355=$T$3),Payments!$E$5:$E$1355)","v":0},{"$f":"SUMPRODUCT(--(Payments!$C$5:$C$1355=A50),--(Payments!$D$5:$D$1355=$U$3),Payments!$E$5:$E$1355)","v":0},{"$f":"SUMPRODUCT(--(Payments!$C$5:$C$1355=A50),--(Payments!$D$5:$D$1355=$V$3),Payments!$E$5:$E$1355)","v":0},{"$f":"SUMPRODUCT(--(Payments!$C$5:$C$1355=A50),--(Payments!$D$5:$D$1355=$W$3),Payments!$E$5:$E$1355)","v":0},{"$f":"SUMPRODUCT(--(Payments!$C$5:$C$1355=A50),--(Payments!$D$5:$D$1355=$X$3),Payments!$E$5:$E$1355)","v":0},{"$f":"SUMPRODUCT(--(Payments!$C$5:$C$1355=A50),--(Payments!$D$5:$D$1355=$Y$3),Payments!$E$5:$E$1355)","v":0},{"$f":"SUMPRODUCT(--(Payments!$C$5:$C$1355=A50),--(Payments!$D$5:$D$1355=$Z$3),Payments!$E$5:$E$1355)","v":0},{"$f":"SUMPRODUCT(--(Payments!$C$5:$C$1355=A50),--(Payments!$D$5:$D$1355=$AA$3),Payments!$E$5:$E$1355)","v":0},{"$f":"SUMPRODUCT(--(Payments!$C$5:$C$1355=A50),--(Payments!$D$5:$D$1355=$AB$3),Payments!$E$5:$E$1355)","v":0},{"$f":"SUMPRODUCT(--(Payments!$C$5:$C$1355=A50),--(Payments!$D$5:$D$1355=$AC$3),Payments!$E$5:$E$1355)","v":0},{"$f":"SUMPRODUCT(--(Payments!$C$5:$C$1355=A50),--(Payments!$D$5:$D$1355=$AD$3),Payments!$E$5:$E$1355)","v":0},null,0,0,0,0]
[{"$f":"Descriptions!I52","v":0},{"$f":"Descriptions!K52","v":"Administration Costs"},{"$f":"Descriptions!L52","v":0},{"$f":"SUMPRODUCT(--(Payments!$C$5:$C$1355=A51),--(Payments!$D$5:$D$1355=$D$3),Payments!$E$5:$E$1355)","v":0},{"$f":"SUMPRODUCT(--(Payments!$C$5:$C$1355=A51),--(Payments!$D$5:$D$1355=$E$3),Payments!$E$5:$E$1355)","v":0},{"$f":"SUMPRODUCT(--(Payments!$C$5:$C$1355=A51),--(Payments!$D$5:$D$1355=$F$3),Payments!$E$5:$E$1355)","v":0},{"$f":"SUMPRODUCT(--(Payments!$C$5:$C$1355=A51),--(Payments!$D$5:$D$1355=$G$3),Payments!$E$5:$E$1355)","v":0},{"$f":"SUMPRODUCT(--(Payments!$C$5:$C$1355=A51),--(Payments!$D$5:$D$1355=$H$3),Payments!$E$5:$E$1355)","v":0},{"$f":"SUMPRODUCT(--(Payments!$C$5:$C$1355=A51),--(Payments!$D$5:$D$1355=$I$3),Payments!$E$5:$E$1355)","v":0},{"$f":"SUMPRODUCT(--(Payments!$C$5:$C$1355=A51),--(Payments!$D$5:$D$1355=$J$3),Payments!$E$5:$E$1355)","v":0},{"$f":"SUMPRODUCT(--(Payments!$C$5:$C$1355=A51),--(Payments!$D$5:$D$1355=$K$3),Payments!$E$5:$E$1355)","v":0},{"$f":"SUMPRODUCT(--(Payments!$C$5:$C$1355=A51),--(Payments!$D$5:$D$1355=$L$3),Payments!$E$5:$E$1355)","v":0},{"$f":"SUMPRODUCT(--(Payments!$C$5:$C$1355=A51),--(Payments!$D$5:$D$1355=$M$3),Payments!$E$5:$E$1355)","v":0},{"$f":"SUMPRODUCT(--(Payments!$C$5:$C$1355=A51),--(Payments!$D$5:$D$1355=$N$3),Payments!$E$5:$E$1355)","v":0},{"$f":"SUMPRODUCT(--(Payments!$C$5:$C$1355=A51),--(Payments!$D$5:$D$1355=$O$3),Payments!$E$5:$E$1355)","v":0},{"$f":"SUMPRODUCT(--(Payments!$C$5:$C$1355=A51),--(Payments!$D$5:$D$1355=$P$3),Payments!$E$5:$E$1355)","v":0},{"$f":"SUMPRODUCT(--(Payments!$C$5:$C$1355=A51),--(Payments!$D$5:$D$1355=$Q$3),Payments!$E$5:$E$1355)","v":0},{"$f":"SUMPRODUCT(--(Payments!$C$5:$C$1355=A51),--(Payments!$D$5:$D$1355=$R$3),Payments!$E$5:$E$1355)","v":0},{"$f":"SUMPRODUCT(--(Payments!$C$5:$C$1355=A51),--(Payments!$D$5:$D$1355=$S$3),Payments!$E$5:$E$1355)","v":0},{"$f":"SUMPRODUCT(--(Payments!$C$5:$C$1355=A51),--(Payments!$D$5:$D$1355=$T$3),Payments!$E$5:$E$1355)","v":0},{"$f":"SUMPRODUCT(--(Payments!$C$5:$C$1355=A51),--(Payments!$D$5:$D$1355=$U$3),Payments!$E$5:$E$1355)","v":0},{"$f":"SUMPRODUCT(--(Payments!$C$5:$C$1355=A51),--(Payments!$D$5:$D$1355=$V$3),Payments!$E$5:$E$1355)","v":0},{"$f":"SUMPRODUCT(--(Payments!$C$5:$C$1355=A51),--(Payments!$D$5:$D$1355=$W$3),Payments!$E$5:$E$1355)","v":0},{"$f":"SUMPRODUCT(--(Payments!$C$5:$C$1355=A51),--(Payments!$D$5:$D$1355=$X$3),Payments!$E$5:$E$1355)","v":0},{"$f":"SUMPRODUCT(--(Payments!$C$5:$C$1355=A51),--(Payments!$D$5:$D$1355=$Y$3),Payments!$E$5:$E$1355)","v":0},{"$f":"SUMPRODUCT(--(Payments!$C$5:$C$1355=A51),--(Payments!$D$5:$D$1355=$Z$3),Payments!$E$5:$E$1355)","v":0},{"$f":"SUMPRODUCT(--(Payments!$C$5:$C$1355=A51),--(Payments!$D$5:$D$1355=$AA$3),Payments!$E$5:$E$1355)","v":0},{"$f":"SUMPRODUCT(--(Payments!$C$5:$C$1355=A51),--(Payments!$D$5:$D$1355=$AB$3),Payments!$E$5:$E$1355)","v":0},{"$f":"SUMPRODUCT(--(Payments!$C$5:$C$1355=A51),--(Payments!$D$5:$D$1355=$AC$3),Payments!$E$5:$E$1355)","v":0},{"$f":"SUMPRODUCT(--(Payments!$C$5:$C$1355=A51),--(Payments!$D$5:$D$1355=$AD$3),Payments!$E$5:$E$1355)","v":0},null,0,0,0,0]
[{"$f":"Descriptions!I53","v":0},{"$f":"Descriptions!K53","v":"Administration Costs"},{"$f":"Descriptions!L53","v":0},{"$f":"SUMPRODUCT(--(Payments!$C$5:$C$1355=A52),--(Payments!$D$5:$D$1355=$D$3),Payments!$E$5:$E$1355)","v":0},{"$f":"SUMPRODUCT(--(Payments!$C$5:$C$1355=A52),--(Payments!$D$5:$D$1355=$E$3),Payments!$E$5:$E$1355)","v":0},{"$f":"SUMPRODUCT(--(Payments!$C$5:$C$1355=A52),--(Payments!$D$5:$D$1355=$F$3),Payments!$E$5:$E$1355)","v":0},{"$f":"SUMPRODUCT(--(Payments!$C$5:$C$1355=A52),--(Payments!$D$5:$D$1355=$G$3),Payments!$E$5:$E$1355)","v":0},{"$f":"SUMPRODUCT(--(Payments!$C$5:$C$1355=A52),--(Payments!$D$5:$D$1355=$H$3),Payments!$E$5:$E$1355)","v":0},{"$f":"SUMPRODUCT(--(Payments!$C$5:$C$1355=A52),--(Payments!$D$5:$D$1355=$I$3),Payments!$E$5:$E$1355)","v":0},{"$f":"SUMPRODUCT(--(Payments!$C$5:$C$1355=A52),--(Payments!$D$5:$D$1355=$J$3),Payments!$E$5:$E$1355)","v":0},{"$f":"SUMPRODUCT(--(Payments!$C$5:$C$1355=A52),--(Payments!$D$5:$D$1355=$K$3),Payments!$E$5:$E$1355)","v":0},{"$f":"SUMPRODUCT(--(Payments!$C$5:$C$1355=A52),--(Payments!$D$5:$D$1355=$L$3),Payments!$E$5:$E$1355)","v":0},{"$f":"SUMPRODUCT(--(Payments!$C$5:$C$1355=A52),--(Payments!$D$5:$D$1355=$M$3),Payments!$E$5:$E$1355)","v":0},{"$f":"SUMPRODUCT(--(Payments!$C$5:$C$1355=A52),--(Payments!$D$5:$D$1355=$N$3),Payments!$E$5:$E$1355)","v":0},{"$f":"SUMPRODUCT(--(Payments!$C$5:$C$1355=A52),--(Payments!$D$5:$D$1355=$O$3),Payments!$E$5:$E$1355)","v":0},{"$f":"SUMPRODUCT(--(Payments!$C$5:$C$1355=A52),--(Payments!$D$5:$D$1355=$P$3),Payments!$E$5:$E$1355)","v":0},{"$f":"SUMPRODUCT(--(Payments!$C$5:$C$1355=A52),--(Payments!$D$5:$D$1355=$Q$3),Payments!$E$5:$E$1355)","v":0},{"$f":"SUMPRODUCT(--(Payments!$C$5:$C$1355=A52),--(Payments!$D$5:$D$1355=$R$3),Payments!$E$5:$E$1355)","v":0},{"$f":"SUMPRODUCT(--(Payments!$C$5:$C$1355=A52),--(Payments!$D$5:$D$1355=$S$3),Payments!$E$5:$E$1355)","v":0},{"$f":"SUMPRODUCT(--(Payments!$C$5:$C$1355=A52),--(Payments!$D$5:$D$1355=$T$3),Payments!$E$5:$E$1355)","v":0},{"$f":"SUMPRODUCT(--(Payments!$C$5:$C$1355=A52),--(Payments!$D$5:$D$1355=$U$3),Payments!$E$5:$E$1355)","v":0},{"$f":"SUMPRODUCT(--(Payments!$C$5:$C$1355=A52),--(Payments!$D$5:$D$1355=$V$3),Payments!$E$5:$E$1355)","v":0},{"$f":"SUMPRODUCT(--(Payments!$C$5:$C$1355=A52),--(Payments!$D$5:$D$1355=$W$3),Payments!$E$5:$E$1355)","v":0},{"$f":"SUMPRODUCT(--(Payments!$C$5:$C$1355=A52),--(Payments!$D$5:$D$1355=$X$3),Payments!$E$5:$E$1355)","v":0},{"$f":"SUMPRODUCT(--(Payments!$C$5:$C$1355=A52),--(Payments!$D$5:$D$1355=$Y$3),Payments!$E$5:$E$1355)","v":0},{"$f":"SUMPRODUCT(--(Payments!$C$5:$C$1355=A52),--(Payments!$D$5:$D$1355=$Z$3),Payments!$E$5:$E$1355)","v":0},{"$f":"SUMPRODUCT(--(Payments!$C$5:$C$1355=A52),--(Payments!$D$5:$D$1355=$AA$3),Payments!$E$5:$E$1355)","v":0},{"$f":"SUMPRODUCT(--(Payments!$C$5:$C$1355=A52),--(Payments!$D$5:$D$1355=$AB$3),Payments!$E$5:$E$1355)","v":0},{"$f":"SUMPRODUCT(--(Payments!$C$5:$C$1355=A52),--(Payments!$D$5:$D$1355=$AC$3),Payments!$E$5:$E$1355)","v":0},{"$f":"SUMPRODUCT(--(Payments!$C$5:$C$1355=A52),--(Payments!$D$5:$D$1355=$AD$3),Payments!$E$5:$E$1355)","v":0},null,0,0,0,0]
[{"$f":"Descriptions!I54","v":0},{"$f":"Descriptions!K54","v":"Administration Costs"},{"$f":"Descriptions!L54","v":0},{"$f":"SUMPRODUCT(--(Payments!$C$5:$C$1355=A53),--(Payments!$D$5:$D$1355=$D$3),Payments!$E$5:$E$1355)","v":0},{"$f":"SUMPRODUCT(--(Payments!$C$5:$C$1355=A53),--(Payments!$D$5:$D$1355=$E$3),Payments!$E$5:$E$1355)","v":0},{"$f":"SUMPRODUCT(--(Payments!$C$5:$C$1355=A53),--(Payments!$D$5:$D$1355=$F$3),Payments!$E$5:$E$1355)","v":0},{"$f":"SUMPRODUCT(--(Payments!$C$5:$C$1355=A53),--(Payments!$D$5:$D$1355=$G$3),Payments!$E$5:$E$1355)","v":0},{"$f":"SUMPRODUCT(--(Payments!$C$5:$C$1355=A53),--(Payments!$D$5:$D$1355=$H$3),Payments!$E$5:$E$1355)","v":0},{"$f":"SUMPRODUCT(--(Payments!$C$5:$C$1355=A53),--(Payments!$D$5:$D$1355=$I$3),Payments!$E$5:$E$1355)","v":0},{"$f":"SUMPRODUCT(--(Payments!$C$5:$C$1355=A53),--(Payments!$D$5:$D$1355=$J$3),Payments!$E$5:$E$1355)","v":0},{"$f":"SUMPRODUCT(--(Payments!$C$5:$C$1355=A53),--(Payments!$D$5:$D$1355=$K$3),Payments!$E$5:$E$1355)","v":0},{"$f":"SUMPRODUCT(--(Payments!$C$5:$C$1355=A53),--(Payments!$D$5:$D$1355=$L$3),Payments!$E$5:$E$1355)","v":0},{"$f":"SUMPRODUCT(--(Payments!$C$5:$C$1355=A53),--(Payments!$D$5:$D$1355=$M$3),Payments!$E$5:$E$1355)","v":0},{"$f":"SUMPRODUCT(--(Payments!$C$5:$C$1355=A53),--(Payments!$D$5:$D$1355=$N$3),Payments!$E$5:$E$1355)","v":0},{"$f":"SUMPRODUCT(--(Payments!$C$5:$C$1355=A53),--(Payments!$D$5:$D$1355=$O$3),Payments!$E$5:$E$1355)","v":0},{"$f":"SUMPRODUCT(--(Payments!$C$5:$C$1355=A53),--(Payments!$D$5:$D$1355=$P$3),Payments!$E$5:$E$1355)","v":0},{"$f":"SUMPRODUCT(--(Payments!$C$5:$C$1355=A53),--(Payments!$D$5:$D$1355=$Q$3),Payments!$E$5:$E$1355)","v":0},{"$f":"SUMPRODUCT(--(Payments!$C$5:$C$1355=A53),--(Payments!$D$5:$D$1355=$R$3),Payments!$E$5:$E$1355)","v":0},{"$f":"SUMPRODUCT(--(Payments!$C$5:$C$1355=A53),--(Payments!$D$5:$D$1355=$S$3),Payments!$E$5:$E$1355)","v":0},{"$f":"SUMPRODUCT(--(Payments!$C$5:$C$1355=A53),--(Payments!$D$5:$D$1355=$T$3),Payments!$E$5:$E$1355)","v":0},{"$f":"SUMPRODUCT(--(Payments!$C$5:$C$1355=A53),--(Payments!$D$5:$D$1355=$U$3),Payments!$E$5:$E$1355)","v":0},{"$f":"SUMPRODUCT(--(Payments!$C$5:$C$1355=A53),--(Payments!$D$5:$D$1355=$V$3),Payments!$E$5:$E$1355)","v":0},{"$f":"SUMPRODUCT(--(Payments!$C$5:$C$1355=A53),--(Payments!$D$5:$D$1355=$W$3),Payments!$E$5:$E$1355)","v":0},{"$f":"SUMPRODUCT(--(Payments!$C$5:$C$1355=A53),--(Payments!$D$5:$D$1355=$X$3),Payments!$E$5:$E$1355)","v":0},{"$f":"SUMPRODUCT(--(Payments!$C$5:$C$1355=A53),--(Payments!$D$5:$D$1355=$Y$3),Payments!$E$5:$E$1355)","v":0},{"$f":"SUMPRODUCT(--(Payments!$C$5:$C$1355=A53),--(Payments!$D$5:$D$1355=$Z$3),Payments!$E$5:$E$1355)","v":0},{"$f":"SUMPRODUCT(--(Payments!$C$5:$C$1355=A53),--(Payments!$D$5:$D$1355=$AA$3),Payments!$E$5:$E$1355)","v":0},{"$f":"SUMPRODUCT(--(Payments!$C$5:$C$1355=A53),--(Payments!$D$5:$D$1355=$AB$3),Payments!$E$5:$E$1355)","v":0},{"$f":"SUMPRODUCT(--(Payments!$C$5:$C$1355=A53),--(Payments!$D$5:$D$1355=$AC$3),Payments!$E$5:$E$1355)","v":0},{"$f":"SUMPRODUCT(--(Payments!$C$5:$C$1355=A53),--(Payments!$D$5:$D$1355=$AD$3),Payments!$E$5:$E$1355)","v":0},null,0,0,0,0]
[{"$f":"Descriptions!I55","v":0},{"$f":"Descriptions!K55","v":"Administration Costs"},{"$f":"Descriptions!L55","v":0},{"$f":"SUMPRODUCT(--(Payments!$C$5:$C$1355=A54),--(Payments!$D$5:$D$1355=$D$3),Payments!$E$5:$E$1355)","v":0},{"$f":"SUMPRODUCT(--(Payments!$C$5:$C$1355=A54),--(Payments!$D$5:$D$1355=$E$3),Payments!$E$5:$E$1355)","v":0},{"$f":"SUMPRODUCT(--(Payments!$C$5:$C$1355=A54),--(Payments!$D$5:$D$1355=$F$3),Payments!$E$5:$E$1355)","v":0},{"$f":"SUMPRODUCT(--(Payments!$C$5:$C$1355=A54),--(Payments!$D$5:$D$1355=$G$3),Payments!$E$5:$E$1355)","v":0},{"$f":"SUMPRODUCT(--(Payments!$C$5:$C$1355=A54),--(Payments!$D$5:$D$1355=$H$3),Payments!$E$5:$E$1355)","v":0},{"$f":"SUMPRODUCT(--(Payments!$C$5:$C$1355=A54),--(Payments!$D$5:$D$1355=$I$3),Payments!$E$5:$E$1355)","v":0},{"$f":"SUMPRODUCT(--(Payments!$C$5:$C$1355=A54),--(Payments!$D$5:$D$1355=$J$3),Payments!$E$5:$E$1355)","v":0},{"$f":"SUMPRODUCT(--(Payments!$C$5:$C$1355=A54),--(Payments!$D$5:$D$1355=$K$3),Payments!$E$5:$E$1355)","v":0},{"$f":"SUMPRODUCT(--(Payments!$C$5:$C$1355=A54),--(Payments!$D$5:$D$1355=$L$3),Payments!$E$5:$E$1355)","v":0},{"$f":"SUMPRODUCT(--(Payments!$C$5:$C$1355=A54),--(Payments!$D$5:$D$1355=$M$3),Payments!$E$5:$E$1355)","v":0},{"$f":"SUMPRODUCT(--(Payments!$C$5:$C$1355=A54),--(Payments!$D$5:$D$1355=$N$3),Payments!$E$5:$E$1355)","v":0},{"$f":"SUMPRODUCT(--(Payments!$C$5:$C$1355=A54),--(Payments!$D$5:$D$1355=$O$3),Payments!$E$5:$E$1355)","v":0},{"$f":"SUMPRODUCT(--(Payments!$C$5:$C$1355=A54),--(Payments!$D$5:$D$1355=$P$3),Payments!$E$5:$E$1355)","v":0},{"$f":"SUMPRODUCT(--(Payments!$C$5:$C$1355=A54),--(Payments!$D$5:$D$1355=$Q$3),Payments!$E$5:$E$1355)","v":0},{"$f":"SUMPRODUCT(--(Payments!$C$5:$C$1355=A54),--(Payments!$D$5:$D$1355=$R$3),Payments!$E$5:$E$1355)","v":0},{"$f":"SUMPRODUCT(--(Payments!$C$5:$C$1355=A54),--(Payments!$D$5:$D$1355=$S$3),Payments!$E$5:$E$1355)","v":0},{"$f":"SUMPRODUCT(--(Payments!$C$5:$C$1355=A54),--(Payments!$D$5:$D$1355=$T$3),Payments!$E$5:$E$1355)","v":0},{"$f":"SUMPRODUCT(--(Payments!$C$5:$C$1355=A54),--(Payments!$D$5:$D$1355=$U$3),Payments!$E$5:$E$1355)","v":0},{"$f":"SUMPRODUCT(--(Payments!$C$5:$C$1355=A54),--(Payments!$D$5:$D$1355=$V$3),Payments!$E$5:$E$1355)","v":0},{"$f":"SUMPRODUCT(--(Payments!$C$5:$C$1355=A54),--(Payments!$D$5:$D$1355=$W$3),Payments!$E$5:$E$1355)","v":0},{"$f":"SUMPRODUCT(--(Payments!$C$5:$C$1355=A54),--(Payments!$D$5:$D$1355=$X$3),Payments!$E$5:$E$1355)","v":0},{"$f":"SUMPRODUCT(--(Payments!$C$5:$C$1355=A54),--(Payments!$D$5:$D$1355=$Y$3),Payments!$E$5:$E$1355)","v":0},{"$f":"SUMPRODUCT(--(Payments!$C$5:$C$1355=A54),--(Payments!$D$5:$D$1355=$Z$3),Payments!$E$5:$E$1355)","v":0},{"$f":"SUMPRODUCT(--(Payments!$C$5:$C$1355=A54),--(Payments!$D$5:$D$1355=$AA$3),Payments!$E$5:$E$1355)","v":0},{"$f":"SUMPRODUCT(--(Payments!$C$5:$C$1355=A54),--(Payments!$D$5:$D$1355=$AB$3),Payments!$E$5:$E$1355)","v":0},{"$f":"SUMPRODUCT(--(Payments!$C$5:$C$1355=A54),--(Payments!$D$5:$D$1355=$AC$3),Payments!$E$5:$E$1355)","v":0},{"$f":"SUMPRODUCT(--(Payments!$C$5:$C$1355=A54),--(Payments!$D$5:$D$1355=$AD$3),Payments!$E$5:$E$1355)","v":0},null,0,0,0,0]
[{"$f":"Descriptions!I56","v":0},{"$f":"Descriptions!K56","v":"Administration Costs"},{"$f":"Descriptions!L56","v":0},{"$f":"SUMPRODUCT(--(Payments!$C$5:$C$1355=A55),--(Payments!$D$5:$D$1355=$D$3),Payments!$E$5:$E$1355)","v":0},{"$f":"SUMPRODUCT(--(Payments!$C$5:$C$1355=A55),--(Payments!$D$5:$D$1355=$E$3),Payments!$E$5:$E$1355)","v":0},{"$f":"SUMPRODUCT(--(Payments!$C$5:$C$1355=A55),--(Payments!$D$5:$D$1355=$F$3),Payments!$E$5:$E$1355)","v":0},{"$f":"SUMPRODUCT(--(Payments!$C$5:$C$1355=A55),--(Payments!$D$5:$D$1355=$G$3),Payments!$E$5:$E$1355)","v":0},{"$f":"SUMPRODUCT(--(Payments!$C$5:$C$1355=A55),--(Payments!$D$5:$D$1355=$H$3),Payments!$E$5:$E$1355)","v":0},{"$f":"SUMPRODUCT(--(Payments!$C$5:$C$1355=A55),--(Payments!$D$5:$D$1355=$I$3),Payments!$E$5:$E$1355)","v":0},{"$f":"SUMPRODUCT(--(Payments!$C$5:$C$1355=A55),--(Payments!$D$5:$D$1355=$J$3),Payments!$E$5:$E$1355)","v":0},{"$f":"SUMPRODUCT(--(Payments!$C$5:$C$1355=A55),--(Payments!$D$5:$D$1355=$K$3),Payments!$E$5:$E$1355)","v":0},{"$f":"SUMPRODUCT(--(Payments!$C$5:$C$1355=A55),--(Payments!$D$5:$D$1355=$L$3),Payments!$E$5:$E$1355)","v":0},{"$f":"SUMPRODUCT(--(Payments!$C$5:$C$1355=A55),--(Payments!$D$5:$D$1355=$M$3),Payments!$E$5:$E$1355)","v":0},{"$f":"SUMPRODUCT(--(Payments!$C$5:$C$1355=A55),--(Payments!$D$5:$D$1355=$N$3),Payments!$E$5:$E$1355)","v":0},{"$f":"SUMPRODUCT(--(Payments!$C$5:$C$1355=A55),--(Payments!$D$5:$D$1355=$O$3),Payments!$E$5:$E$1355)","v":0},{"$f":"SUMPRODUCT(--(Payments!$C$5:$C$1355=A55),--(Payments!$D$5:$D$1355=$P$3),Payments!$E$5:$E$1355)","v":0},{"$f":"SUMPRODUCT(--(Payments!$C$5:$C$1355=A55),--(Payments!$D$5:$D$1355=$Q$3),Payments!$E$5:$E$1355)","v":0},{"$f":"SUMPRODUCT(--(Payments!$C$5:$C$1355=A55),--(Payments!$D$5:$D$1355=$R$3),Payments!$E$5:$E$1355)","v":0},{"$f":"SUMPRODUCT(--(Payments!$C$5:$C$1355=A55),--(Payments!$D$5:$D$1355=$S$3),Payments!$E$5:$E$1355)","v":0},{"$f":"SUMPRODUCT(--(Payments!$C$5:$C$1355=A55),--(Payments!$D$5:$D$1355=$T$3),Payments!$E$5:$E$1355)","v":0},{"$f":"SUMPRODUCT(--(Payments!$C$5:$C$1355=A55),--(Payments!$D$5:$D$1355=$U$3),Payments!$E$5:$E$1355)","v":0},{"$f":"SUMPRODUCT(--(Payments!$C$5:$C$1355=A55),--(Payments!$D$5:$D$1355=$V$3),Payments!$E$5:$E$1355)","v":0},{"$f":"SUMPRODUCT(--(Payments!$C$5:$C$1355=A55),--(Payments!$D$5:$D$1355=$W$3),Payments!$E$5:$E$1355)","v":0},{"$f":"SUMPRODUCT(--(Payments!$C$5:$C$1355=A55),--(Payments!$D$5:$D$1355=$X$3),Payments!$E$5:$E$1355)","v":0},{"$f":"SUMPRODUCT(--(Payments!$C$5:$C$1355=A55),--(Payments!$D$5:$D$1355=$Y$3),Payments!$E$5:$E$1355)","v":0},{"$f":"SUMPRODUCT(--(Payments!$C$5:$C$1355=A55),--(Payments!$D$5:$D$1355=$Z$3),Payments!$E$5:$E$1355)","v":0},{"$f":"SUMPRODUCT(--(Payments!$C$5:$C$1355=A55),--(Payments!$D$5:$D$1355=$AA$3),Payments!$E$5:$E$1355)","v":0},{"$f":"SUMPRODUCT(--(Payments!$C$5:$C$1355=A55),--(Payments!$D$5:$D$1355=$AB$3),Payments!$E$5:$E$1355)","v":0},{"$f":"SUMPRODUCT(--(Payments!$C$5:$C$1355=A55),--(Payments!$D$5:$D$1355=$AC$3),Payments!$E$5:$E$1355)","v":0},{"$f":"SUMPRODUCT(--(Payments!$C$5:$C$1355=A55),--(Payments!$D$5:$D$1355=$AD$3),Payments!$E$5:$E$1355)","v":0},null,0,0,0,0]
[{"$f":"Descriptions!I57","v":0},{"$f":"Descriptions!K57","v":"Administration Costs"},{"$f":"Descriptions!L57","v":0},{"$f":"SUMPRODUCT(--(Payments!$C$5:$C$1355=A56),--(Payments!$D$5:$D$1355=$D$3),Payments!$E$5:$E$1355)","v":0},{"$f":"SUMPRODUCT(--(Payments!$C$5:$C$1355=A56),--(Payments!$D$5:$D$1355=$E$3),Payments!$E$5:$E$1355)","v":0},{"$f":"SUMPRODUCT(--(Payments!$C$5:$C$1355=A56),--(Payments!$D$5:$D$1355=$F$3),Payments!$E$5:$E$1355)","v":0},{"$f":"SUMPRODUCT(--(Payments!$C$5:$C$1355=A56),--(Payments!$D$5:$D$1355=$G$3),Payments!$E$5:$E$1355)","v":0},{"$f":"SUMPRODUCT(--(Payments!$C$5:$C$1355=A56),--(Payments!$D$5:$D$1355=$H$3),Payments!$E$5:$E$1355)","v":0},{"$f":"SUMPRODUCT(--(Payments!$C$5:$C$1355=A56),--(Payments!$D$5:$D$1355=$I$3),Payments!$E$5:$E$1355)","v":0},{"$f":"SUMPRODUCT(--(Payments!$C$5:$C$1355=A56),--(Payments!$D$5:$D$1355=$J$3),Payments!$E$5:$E$1355)","v":0},{"$f":"SUMPRODUCT(--(Payments!$C$5:$C$1355=A56),--(Payments!$D$5:$D$1355=$K$3),Payments!$E$5:$E$1355)","v":0},{"$f":"SUMPRODUCT(--(Payments!$C$5:$C$1355=A56),--(Payments!$D$5:$D$1355=$L$3),Payments!$E$5:$E$1355)","v":0},{"$f":"SUMPRODUCT(--(Payments!$C$5:$C$1355=A56),--(Payments!$D$5:$D$1355=$M$3),Payments!$E$5:$E$1355)","v":0},{"$f":"SUMPRODUCT(--(Payments!$C$5:$C$1355=A56),--(Payments!$D$5:$D$1355=$N$3),Payments!$E$5:$E$1355)","v":0},{"$f":"SUMPRODUCT(--(Payments!$C$5:$C$1355=A56),--(Payments!$D$5:$D$1355=$O$3),Payments!$E$5:$E$1355)","v":0},{"$f":"SUMPRODUCT(--(Payments!$C$5:$C$1355=A56),--(Payments!$D$5:$D$1355=$P$3),Payments!$E$5:$E$1355)","v":0},{"$f":"SUMPRODUCT(--(Payments!$C$5:$C$1355=A56),--(Payments!$D$5:$D$1355=$Q$3),Payments!$E$5:$E$1355)","v":0},{"$f":"SUMPRODUCT(--(Payments!$C$5:$C$1355=A56),--(Payments!$D$5:$D$1355=$R$3),Payments!$E$5:$E$1355)","v":0},{"$f":"SUMPRODUCT(--(Payments!$C$5:$C$1355=A56),--(Payments!$D$5:$D$1355=$S$3),Payments!$E$5:$E$1355)","v":0},{"$f":"SUMPRODUCT(--(Payments!$C$5:$C$1355=A56),--(Payments!$D$5:$D$1355=$T$3),Payments!$E$5:$E$1355)","v":0},{"$f":"SUMPRODUCT(--(Payments!$C$5:$C$1355=A56),--(Payments!$D$5:$D$1355=$U$3),Payments!$E$5:$E$1355)","v":0},{"$f":"SUMPRODUCT(--(Payments!$C$5:$C$1355=A56),--(Payments!$D$5:$D$1355=$V$3),Payments!$E$5:$E$1355)","v":0},{"$f":"SUMPRODUCT(--(Payments!$C$5:$C$1355=A56),--(Payments!$D$5:$D$1355=$W$3),Payments!$E$5:$E$1355)","v":0},{"$f":"SUMPRODUCT(--(Payments!$C$5:$C$1355=A56),--(Payments!$D$5:$D$1355=$X$3),Payments!$E$5:$E$1355)","v":0},{"$f":"SUMPRODUCT(--(Payments!$C$5:$C$1355=A56),--(Payments!$D$5:$D$1355=$Y$3),Payments!$E$5:$E$1355)","v":0},{"$f":"SUMPRODUCT(--(Payments!$C$5:$C$1355=A56),--(Payments!$D$5:$D$1355=$Z$3),Payments!$E$5:$E$1355)","v":0},{"$f":"SUMPRODUCT(--(Payments!$C$5:$C$1355=A56),--(Payments!$D$5:$D$1355=$AA$3),Payments!$E$5:$E$1355)","v":0},{"$f":"SUMPRODUCT(--(Payments!$C$5:$C$1355=A56),--(Payments!$D$5:$D$1355=$AB$3),Payments!$E$5:$E$1355)","v":0},{"$f":"SUMPRODUCT(--(Payments!$C$5:$C$1355=A56),--(Payments!$D$5:$D$1355=$AC$3),Payments!$E$5:$E$1355)","v":0},{"$f":"SUMPRODUCT(--(Payments!$C$5:$C$1355=A56),--(Payments!$D$5:$D$1355=$AD$3),Payments!$E$5:$E$1355)","v":0},null,0,0,0,0]
[{"$f":"Descriptions!I58","v":0},{"$f":"Descriptions!K58","v":"Administration Costs"},{"$f":"Descriptions!L58","v":0},{"$f":"SUMPRODUCT(--(Payments!$C$5:$C$1355=A57),--(Payments!$D$5:$D$1355=$D$3),Payments!$E$5:$E$1355)","v":0},{"$f":"SUMPRODUCT(--(Payments!$C$5:$C$1355=A57),--(Payments!$D$5:$D$1355=$E$3),Payments!$E$5:$E$1355)","v":0},{"$f":"SUMPRODUCT(--(Payments!$C$5:$C$1355=A57),--(Payments!$D$5:$D$1355=$F$3),Payments!$E$5:$E$1355)","v":0},{"$f":"SUMPRODUCT(--(Payments!$C$5:$C$1355=A57),--(Payments!$D$5:$D$1355=$G$3),Payments!$E$5:$E$1355)","v":0},{"$f":"SUMPRODUCT(--(Payments!$C$5:$C$1355=A57),--(Payments!$D$5:$D$1355=$H$3),Payments!$E$5:$E$1355)","v":0},{"$f":"SUMPRODUCT(--(Payments!$C$5:$C$1355=A57),--(Payments!$D$5:$D$1355=$I$3),Payments!$E$5:$E$1355)","v":0},{"$f":"SUMPRODUCT(--(Payments!$C$5:$C$1355=A57),--(Payments!$D$5:$D$1355=$J$3),Payments!$E$5:$E$1355)","v":0},{"$f":"SUMPRODUCT(--(Payments!$C$5:$C$1355=A57),--(Payments!$D$5:$D$1355=$K$3),Payments!$E$5:$E$1355)","v":0},{"$f":"SUMPRODUCT(--(Payments!$C$5:$C$1355=A57),--(Payments!$D$5:$D$1355=$L$3),Payments!$E$5:$E$1355)","v":0},{"$f":"SUMPRODUCT(--(Payments!$C$5:$C$1355=A57),--(Payments!$D$5:$D$1355=$M$3),Payments!$E$5:$E$1355)","v":0},{"$f":"SUMPRODUCT(--(Payments!$C$5:$C$1355=A57),--(Payments!$D$5:$D$1355=$N$3),Payments!$E$5:$E$1355)","v":0},{"$f":"SUMPRODUCT(--(Payments!$C$5:$C$1355=A57),--(Payments!$D$5:$D$1355=$O$3),Payments!$E$5:$E$1355)","v":0},{"$f":"SUMPRODUCT(--(Payments!$C$5:$C$1355=A57),--(Payments!$D$5:$D$1355=$P$3),Payments!$E$5:$E$1355)","v":0},{"$f":"SUMPRODUCT(--(Payments!$C$5:$C$1355=A57),--(Payments!$D$5:$D$1355=$Q$3),Payments!$E$5:$E$1355)","v":0},{"$f":"SUMPRODUCT(--(Payments!$C$5:$C$1355=A57),--(Payments!$D$5:$D$1355=$R$3),Payments!$E$5:$E$1355)","v":0},{"$f":"SUMPRODUCT(--(Payments!$C$5:$C$1355=A57),--(Payments!$D$5:$D$1355=$S$3),Payments!$E$5:$E$1355)","v":0},{"$f":"SUMPRODUCT(--(Payments!$C$5:$C$1355=A57),--(Payments!$D$5:$D$1355=$T$3),Payments!$E$5:$E$1355)","v":0},{"$f":"SUMPRODUCT(--(Payments!$C$5:$C$1355=A57),--(Payments!$D$5:$D$1355=$U$3),Payments!$E$5:$E$1355)","v":0},{"$f":"SUMPRODUCT(--(Payments!$C$5:$C$1355=A57),--(Payments!$D$5:$D$1355=$V$3),Payments!$E$5:$E$1355)","v":0},{"$f":"SUMPRODUCT(--(Payments!$C$5:$C$1355=A57),--(Payments!$D$5:$D$1355=$W$3),Payments!$E$5:$E$1355)","v":0},{"$f":"SUMPRODUCT(--(Payments!$C$5:$C$1355=A57),--(Payments!$D$5:$D$1355=$X$3),Payments!$E$5:$E$1355)","v":0},{"$f":"SUMPRODUCT(--(Payments!$C$5:$C$1355=A57),--(Payments!$D$5:$D$1355=$Y$3),Payments!$E$5:$E$1355)","v":0},{"$f":"SUMPRODUCT(--(Payments!$C$5:$C$1355=A57),--(Payments!$D$5:$D$1355=$Z$3),Payments!$E$5:$E$1355)","v":0},{"$f":"SUMPRODUCT(--(Payments!$C$5:$C$1355=A57),--(Payments!$D$5:$D$1355=$AA$3),Payments!$E$5:$E$1355)","v":0},{"$f":"SUMPRODUCT(--(Payments!$C$5:$C$1355=A57),--(Payments!$D$5:$D$1355=$AB$3),Payments!$E$5:$E$1355)","v":0},{"$f":"SUMPRODUCT(--(Payments!$C$5:$C$1355=A57),--(Payments!$D$5:$D$1355=$AC$3),Payments!$E$5:$E$1355)","v":0},{"$f":"SUMPRODUCT(--(Payments!$C$5:$C$1355=A57),--(Payments!$D$5:$D$1355=$AD$3),Payments!$E$5:$E$1355)","v":0},null,0,0,0,0]
[{"$f":"Descriptions!I59","v":0},{"$f":"Descriptions!K59","v":"Administration Costs"},{"$f":"Descriptions!L59","v":0},{"$f":"SUMPRODUCT(--(Payments!$C$5:$C$1355=A58),--(Payments!$D$5:$D$1355=$D$3),Payments!$E$5:$E$1355)","v":0},{"$f":"SUMPRODUCT(--(Payments!$C$5:$C$1355=A58),--(Payments!$D$5:$D$1355=$E$3),Payments!$E$5:$E$1355)","v":0},{"$f":"SUMPRODUCT(--(Payments!$C$5:$C$1355=A58),--(Payments!$D$5:$D$1355=$F$3),Payments!$E$5:$E$1355)","v":0},{"$f":"SUMPRODUCT(--(Payments!$C$5:$C$1355=A58),--(Payments!$D$5:$D$1355=$G$3),Payments!$E$5:$E$1355)","v":0},{"$f":"SUMPRODUCT(--(Payments!$C$5:$C$1355=A58),--(Payments!$D$5:$D$1355=$H$3),Payments!$E$5:$E$1355)","v":0},{"$f":"SUMPRODUCT(--(Payments!$C$5:$C$1355=A58),--(Payments!$D$5:$D$1355=$I$3),Payments!$E$5:$E$1355)","v":0},{"$f":"SUMPRODUCT(--(Payments!$C$5:$C$1355=A58),--(Payments!$D$5:$D$1355=$J$3),Payments!$E$5:$E$1355)","v":0},{"$f":"SUMPRODUCT(--(Payments!$C$5:$C$1355=A58),--(Payments!$D$5:$D$1355=$K$3),Payments!$E$5:$E$1355)","v":0},{"$f":"SUMPRODUCT(--(Payments!$C$5:$C$1355=A58),--(Payments!$D$5:$D$1355=$L$3),Payments!$E$5:$E$1355)","v":0},{"$f":"SUMPRODUCT(--(Payments!$C$5:$C$1355=A58),--(Payments!$D$5:$D$1355=$M$3),Payments!$E$5:$E$1355)","v":0},{"$f":"SUMPRODUCT(--(Payments!$C$5:$C$1355=A58),--(Payments!$D$5:$D$1355=$N$3),Payments!$E$5:$E$1355)","v":0},{"$f":"SUMPRODUCT(--(Payments!$C$5:$C$1355=A58),--(Payments!$D$5:$D$1355=$O$3),Payments!$E$5:$E$1355)","v":0},{"$f":"SUMPRODUCT(--(Payments!$C$5:$C$1355=A58),--(Payments!$D$5:$D$1355=$P$3),Payments!$E$5:$E$1355)","v":0},{"$f":"SUMPRODUCT(--(Payments!$C$5:$C$1355=A58),--(Payments!$D$5:$D$1355=$Q$3),Payments!$E$5:$E$1355)","v":0},{"$f":"SUMPRODUCT(--(Payments!$C$5:$C$1355=A58),--(Payments!$D$5:$D$1355=$R$3),Payments!$E$5:$E$1355)","v":0},{"$f":"SUMPRODUCT(--(Payments!$C$5:$C$1355=A58),--(Payments!$D$5:$D$1355=$S$3),Payments!$E$5:$E$1355)","v":0},{"$f":"SUMPRODUCT(--(Payments!$C$5:$C$1355=A58),--(Payments!$D$5:$D$1355=$T$3),Payments!$E$5:$E$1355)","v":0},{"$f":"SUMPRODUCT(--(Payments!$C$5:$C$1355=A58),--(Payments!$D$5:$D$1355=$U$3),Payments!$E$5:$E$1355)","v":0},{"$f":"SUMPRODUCT(--(Payments!$C$5:$C$1355=A58),--(Payments!$D$5:$D$1355=$V$3),Payments!$E$5:$E$1355)","v":0},{"$f":"SUMPRODUCT(--(Payments!$C$5:$C$1355=A58),--(Payments!$D$5:$D$1355=$W$3),Payments!$E$5:$E$1355)","v":0},{"$f":"SUMPRODUCT(--(Payments!$C$5:$C$1355=A58),--(Payments!$D$5:$D$1355=$X$3),Payments!$E$5:$E$1355)","v":0},{"$f":"SUMPRODUCT(--(Payments!$C$5:$C$1355=A58),--(Payments!$D$5:$D$1355=$Y$3),Payments!$E$5:$E$1355)","v":0},{"$f":"SUMPRODUCT(--(Payments!$C$5:$C$1355=A58),--(Payments!$D$5:$D$1355=$Z$3),Payments!$E$5:$E$1355)","v":0},{"$f":"SUMPRODUCT(--(Payments!$C$5:$C$1355=A58),--(Payments!$D$5:$D$1355=$AA$3),Payments!$E$5:$E$1355)","v":0},{"$f":"SUMPRODUCT(--(Payments!$C$5:$C$1355=A58),--(Payments!$D$5:$D$1355=$AB$3),Payments!$E$5:$E$1355)","v":0},{"$f":"SUMPRODUCT(--(Payments!$C$5:$C$1355=A58),--(Payments!$D$5:$D$1355=$AC$3),Payments!$E$5:$E$1355)","v":0},{"$f":"SUMPRODUCT(--(Payments!$C$5:$C$1355=A58),--(Payments!$D$5:$D$1355=$AD$3),Payments!$E$5:$E$1355)","v":0},null,0,0,0,0]
[{"$f":"Descriptions!I60","v":0},{"$f":"Descriptions!K60","v":"Administration Costs"},{"$f":"Descriptions!L60","v":0},{"$f":"SUMPRODUCT(--(Payments!$C$5:$C$1355=A59),--(Payments!$D$5:$D$1355=$D$3),Payments!$E$5:$E$1355)","v":0},{"$f":"SUMPRODUCT(--(Payments!$C$5:$C$1355=A59),--(Payments!$D$5:$D$1355=$E$3),Payments!$E$5:$E$1355)","v":0},{"$f":"SUMPRODUCT(--(Payments!$C$5:$C$1355=A59),--(Payments!$D$5:$D$1355=$F$3),Payments!$E$5:$E$1355)","v":0},{"$f":"SUMPRODUCT(--(Payments!$C$5:$C$1355=A59),--(Payments!$D$5:$D$1355=$G$3),Payments!$E$5:$E$1355)","v":0},{"$f":"SUMPRODUCT(--(Payments!$C$5:$C$1355=A59),--(Payments!$D$5:$D$1355=$H$3),Payments!$E$5:$E$1355)","v":0},{"$f":"SUMPRODUCT(--(Payments!$C$5:$C$1355=A59),--(Payments!$D$5:$D$1355=$I$3),Payments!$E$5:$E$1355)","v":0},{"$f":"SUMPRODUCT(--(Payments!$C$5:$C$1355=A59),--(Payments!$D$5:$D$1355=$J$3),Payments!$E$5:$E$1355)","v":0},{"$f":"SUMPRODUCT(--(Payments!$C$5:$C$1355=A59),--(Payments!$D$5:$D$1355=$K$3),Payments!$E$5:$E$1355)","v":0},{"$f":"SUMPRODUCT(--(Payments!$C$5:$C$1355=A59),--(Payments!$D$5:$D$1355=$L$3),Payments!$E$5:$E$1355)","v":0},{"$f":"SUMPRODUCT(--(Payments!$C$5:$C$1355=A59),--(Payments!$D$5:$D$1355=$M$3),Payments!$E$5:$E$1355)","v":0},{"$f":"SUMPRODUCT(--(Payments!$C$5:$C$1355=A59),--(Payments!$D$5:$D$1355=$N$3),Payments!$E$5:$E$1355)","v":0},{"$f":"SUMPRODUCT(--(Payments!$C$5:$C$1355=A59),--(Payments!$D$5:$D$1355=$O$3),Payments!$E$5:$E$1355)","v":0},{"$f":"SUMPRODUCT(--(Payments!$C$5:$C$1355=A59),--(Payments!$D$5:$D$1355=$P$3),Payments!$E$5:$E$1355)","v":0},{"$f":"SUMPRODUCT(--(Payments!$C$5:$C$1355=A59),--(Payments!$D$5:$D$1355=$Q$3),Payments!$E$5:$E$1355)","v":0},{"$f":"SUMPRODUCT(--(Payments!$C$5:$C$1355=A59),--(Payments!$D$5:$D$1355=$R$3),Payments!$E$5:$E$1355)","v":0},{"$f":"SUMPRODUCT(--(Payments!$C$5:$C$1355=A59),--(Payments!$D$5:$D$1355=$S$3),Payments!$E$5:$E$1355)","v":0},{"$f":"SUMPRODUCT(--(Payments!$C$5:$C$1355=A59),--(Payments!$D$5:$D$1355=$T$3),Payments!$E$5:$E$1355)","v":0},{"$f":"SUMPRODUCT(--(Payments!$C$5:$C$1355=A59),--(Payments!$D$5:$D$1355=$U$3),Payments!$E$5:$E$1355)","v":0},{"$f":"SUMPRODUCT(--(Payments!$C$5:$C$1355=A59),--(Payments!$D$5:$D$1355=$V$3),Payments!$E$5:$E$1355)","v":0},{"$f":"SUMPRODUCT(--(Payments!$C$5:$C$1355=A59),--(Payments!$D$5:$D$1355=$W$3),Payments!$E$5:$E$1355)","v":0},{"$f":"SUMPRODUCT(--(Payments!$C$5:$C$1355=A59),--(Payments!$D$5:$D$1355=$X$3),Payments!$E$5:$E$1355)","v":0},{"$f":"SUMPRODUCT(--(Payments!$C$5:$C$1355=A59),--(Payments!$D$5:$D$1355=$Y$3),Payments!$E$5:$E$1355)","v":0},{"$f":"SUMPRODUCT(--(Payments!$C$5:$C$1355=A59),--(Payments!$D$5:$D$1355=$Z$3),Payments!$E$5:$E$1355)","v":0},{"$f":"SUMPRODUCT(--(Payments!$C$5:$C$1355=A59),--(Payments!$D$5:$D$1355=$AA$3),Payments!$E$5:$E$1355)","v":0},{"$f":"SUMPRODUCT(--(Payments!$C$5:$C$1355=A59),--(Payments!$D$5:$D$1355=$AB$3),Payments!$E$5:$E$1355)","v":0},{"$f":"SUMPRODUCT(--(Payments!$C$5:$C$1355=A59),--(Payments!$D$5:$D$1355=$AC$3),Payments!$E$5:$E$1355)","v":0},{"$f":"SUMPRODUCT(--(Payments!$C$5:$C$1355=A59),--(Payments!$D$5:$D$1355=$AD$3),Payments!$E$5:$E$1355)","v":0},null,0,0,0,0]
[{"$f":"Descriptions!I61","v":0},{"$f":"Descriptions!K61","v":"Administration Costs"},{"$f":"Descriptions!L61","v":0},{"$f":"SUMPRODUCT(--(Payments!$C$5:$C$1355=A60),--(Payments!$D$5:$D$1355=$D$3),Payments!$E$5:$E$1355)","v":0},{"$f":"SUMPRODUCT(--(Payments!$C$5:$C$1355=A60),--(Payments!$D$5:$D$1355=$E$3),Payments!$E$5:$E$1355)","v":0},{"$f":"SUMPRODUCT(--(Payments!$C$5:$C$1355=A60),--(Payments!$D$5:$D$1355=$F$3),Payments!$E$5:$E$1355)","v":0},{"$f":"SUMPRODUCT(--(Payments!$C$5:$C$1355=A60),--(Payments!$D$5:$D$1355=$G$3),Payments!$E$5:$E$1355)","v":0},{"$f":"SUMPRODUCT(--(Payments!$C$5:$C$1355=A60),--(Payments!$D$5:$D$1355=$H$3),Payments!$E$5:$E$1355)","v":0},{"$f":"SUMPRODUCT(--(Payments!$C$5:$C$1355=A60),--(Payments!$D$5:$D$1355=$I$3),Payments!$E$5:$E$1355)","v":0},{"$f":"SUMPRODUCT(--(Payments!$C$5:$C$1355=A60),--(Payments!$D$5:$D$1355=$J$3),Payments!$E$5:$E$1355)","v":0},{"$f":"SUMPRODUCT(--(Payments!$C$5:$C$1355=A60),--(Payments!$D$5:$D$1355=$K$3),Payments!$E$5:$E$1355)","v":0},{"$f":"SUMPRODUCT(--(Payments!$C$5:$C$1355=A60),--(Payments!$D$5:$D$1355=$L$3),Payments!$E$5:$E$1355)","v":0},{"$f":"SUMPRODUCT(--(Payments!$C$5:$C$1355=A60),--(Payments!$D$5:$D$1355=$M$3),Payments!$E$5:$E$1355)","v":0},{"$f":"SUMPRODUCT(--(Payments!$C$5:$C$1355=A60),--(Payments!$D$5:$D$1355=$N$3),Payments!$E$5:$E$1355)","v":0},{"$f":"SUMPRODUCT(--(Payments!$C$5:$C$1355=A60),--(Payments!$D$5:$D$1355=$O$3),Payments!$E$5:$E$1355)","v":0},{"$f":"SUMPRODUCT(--(Payments!$C$5:$C$1355=A60),--(Payments!$D$5:$D$1355=$P$3),Payments!$E$5:$E$1355)","v":0},{"$f":"SUMPRODUCT(--(Payments!$C$5:$C$1355=A60),--(Payments!$D$5:$D$1355=$Q$3),Payments!$E$5:$E$1355)","v":0},{"$f":"SUMPRODUCT(--(Payments!$C$5:$C$1355=A60),--(Payments!$D$5:$D$1355=$R$3),Payments!$E$5:$E$1355)","v":0},{"$f":"SUMPRODUCT(--(Payments!$C$5:$C$1355=A60),--(Payments!$D$5:$D$1355=$S$3),Payments!$E$5:$E$1355)","v":0},{"$f":"SUMPRODUCT(--(Payments!$C$5:$C$1355=A60),--(Payments!$D$5:$D$1355=$T$3),Payments!$E$5:$E$1355)","v":0},{"$f":"SUMPRODUCT(--(Payments!$C$5:$C$1355=A60),--(Payments!$D$5:$D$1355=$U$3),Payments!$E$5:$E$1355)","v":0},{"$f":"SUMPRODUCT(--(Payments!$C$5:$C$1355=A60),--(Payments!$D$5:$D$1355=$V$3),Payments!$E$5:$E$1355)","v":0},{"$f":"SUMPRODUCT(--(Payments!$C$5:$C$1355=A60),--(Payments!$D$5:$D$1355=$W$3),Payments!$E$5:$E$1355)","v":0},{"$f":"SUMPRODUCT(--(Payments!$C$5:$C$1355=A60),--(Payments!$D$5:$D$1355=$X$3),Payments!$E$5:$E$1355)","v":0},{"$f":"SUMPRODUCT(--(Payments!$C$5:$C$1355=A60),--(Payments!$D$5:$D$1355=$Y$3),Payments!$E$5:$E$1355)","v":0},{"$f":"SUMPRODUCT(--(Payments!$C$5:$C$1355=A60),--(Payments!$D$5:$D$1355=$Z$3),Payments!$E$5:$E$1355)","v":0},{"$f":"SUMPRODUCT(--(Payments!$C$5:$C$1355=A60),--(Payments!$D$5:$D$1355=$AA$3),Payments!$E$5:$E$1355)","v":0},{"$f":"SUMPRODUCT(--(Payments!$C$5:$C$1355=A60),--(Payments!$D$5:$D$1355=$AB$3),Payments!$E$5:$E$1355)","v":0},{"$f":"SUMPRODUCT(--(Payments!$C$5:$C$1355=A60),--(Payments!$D$5:$D$1355=$AC$3),Payments!$E$5:$E$1355)","v":0},{"$f":"SUMPRODUCT(--(Payments!$C$5:$C$1355=A60),--(Payments!$D$5:$D$1355=$AD$3),Payments!$E$5:$E$1355)","v":0},null,0,0,0,0]
[{"$f":"Descriptions!I62","v":0},{"$f":"Descriptions!K62","v":"Administration Costs"},{"$f":"Descriptions!L62","v":0},{"$f":"SUMPRODUCT(--(Payments!$C$5:$C$1355=A61),--(Payments!$D$5:$D$1355=$D$3),Payments!$E$5:$E$1355)","v":0},{"$f":"SUMPRODUCT(--(Payments!$C$5:$C$1355=A61),--(Payments!$D$5:$D$1355=$E$3),Payments!$E$5:$E$1355)","v":0},{"$f":"SUMPRODUCT(--(Payments!$C$5:$C$1355=A61),--(Payments!$D$5:$D$1355=$F$3),Payments!$E$5:$E$1355)","v":0},{"$f":"SUMPRODUCT(--(Payments!$C$5:$C$1355=A61),--(Payments!$D$5:$D$1355=$G$3),Payments!$E$5:$E$1355)","v":0},{"$f":"SUMPRODUCT(--(Payments!$C$5:$C$1355=A61),--(Payments!$D$5:$D$1355=$H$3),Payments!$E$5:$E$1355)","v":0},{"$f":"SUMPRODUCT(--(Payments!$C$5:$C$1355=A61),--(Payments!$D$5:$D$1355=$I$3),Payments!$E$5:$E$1355)","v":0},{"$f":"SUMPRODUCT(--(Payments!$C$5:$C$1355=A61),--(Payments!$D$5:$D$1355=$J$3),Payments!$E$5:$E$1355)","v":0},{"$f":"SUMPRODUCT(--(Payments!$C$5:$C$1355=A61),--(Payments!$D$5:$D$1355=$K$3),Payments!$E$5:$E$1355)","v":0},{"$f":"SUMPRODUCT(--(Payments!$C$5:$C$1355=A61),--(Payments!$D$5:$D$1355=$L$3),Payments!$E$5:$E$1355)","v":0},{"$f":"SUMPRODUCT(--(Payments!$C$5:$C$1355=A61),--(Payments!$D$5:$D$1355=$M$3),Payments!$E$5:$E$1355)","v":0},{"$f":"SUMPRODUCT(--(Payments!$C$5:$C$1355=A61),--(Payments!$D$5:$D$1355=$N$3),Payments!$E$5:$E$1355)","v":0},{"$f":"SUMPRODUCT(--(Payments!$C$5:$C$1355=A61),--(Payments!$D$5:$D$1355=$O$3),Payments!$E$5:$E$1355)","v":0},{"$f":"SUMPRODUCT(--(Payments!$C$5:$C$1355=A61),--(Payments!$D$5:$D$1355=$P$3),Payments!$E$5:$E$1355)","v":0},{"$f":"SUMPRODUCT(--(Payments!$C$5:$C$1355=A61),--(Payments!$D$5:$D$1355=$Q$3),Payments!$E$5:$E$1355)","v":0},{"$f":"SUMPRODUCT(--(Payments!$C$5:$C$1355=A61),--(Payments!$D$5:$D$1355=$R$3),Payments!$E$5:$E$1355)","v":0},{"$f":"SUMPRODUCT(--(Payments!$C$5:$C$1355=A61),--(Payments!$D$5:$D$1355=$S$3),Payments!$E$5:$E$1355)","v":0},{"$f":"SUMPRODUCT(--(Payments!$C$5:$C$1355=A61),--(Payments!$D$5:$D$1355=$T$3),Payments!$E$5:$E$1355)","v":0},{"$f":"SUMPRODUCT(--(Payments!$C$5:$C$1355=A61),--(Payments!$D$5:$D$1355=$U$3),Payments!$E$5:$E$1355)","v":0},{"$f":"SUMPRODUCT(--(Payments!$C$5:$C$1355=A61),--(Payments!$D$5:$D$1355=$V$3),Payments!$E$5:$E$1355)","v":0},{"$f":"SUMPRODUCT(--(Payments!$C$5:$C$1355=A61),--(Payments!$D$5:$D$1355=$W$3),Payments!$E$5:$E$1355)","v":0},{"$f":"SUMPRODUCT(--(Payments!$C$5:$C$1355=A61),--(Payments!$D$5:$D$1355=$X$3),Payments!$E$5:$E$1355)","v":0},{"$f":"SUMPRODUCT(--(Payments!$C$5:$C$1355=A61),--(Payments!$D$5:$D$1355=$Y$3),Payments!$E$5:$E$1355)","v":0},{"$f":"SUMPRODUCT(--(Payments!$C$5:$C$1355=A61),--(Payments!$D$5:$D$1355=$Z$3),Payments!$E$5:$E$1355)","v":0},{"$f":"SUMPRODUCT(--(Payments!$C$5:$C$1355=A61),--(Payments!$D$5:$D$1355=$AA$3),Payments!$E$5:$E$1355)","v":0},{"$f":"SUMPRODUCT(--(Payments!$C$5:$C$1355=A61),--(Payments!$D$5:$D$1355=$AB$3),Payments!$E$5:$E$1355)","v":0},{"$f":"SUMPRODUCT(--(Payments!$C$5:$C$1355=A61),--(Payments!$D$5:$D$1355=$AC$3),Payments!$E$5:$E$1355)","v":0},{"$f":"SUMPRODUCT(--(Payments!$C$5:$C$1355=A61),--(Payments!$D$5:$D$1355=$AD$3),Payments!$E$5:$E$1355)","v":0},null,0,0,0,0]
[{"$f":"Descriptions!I63","v":0},{"$f":"Descriptions!K63","v":"Administration Costs"},{"$f":"Descriptions!L63","v":0},{"$f":"SUMPRODUCT(--(Payments!$C$5:$C$1355=A62),--(Payments!$D$5:$D$1355=$D$3),Payments!$E$5:$E$1355)","v":0},{"$f":"SUMPRODUCT(--(Payments!$C$5:$C$1355=A62),--(Payments!$D$5:$D$1355=$E$3),Payments!$E$5:$E$1355)","v":0},{"$f":"SUMPRODUCT(--(Payments!$C$5:$C$1355=A62),--(Payments!$D$5:$D$1355=$F$3),Payments!$E$5:$E$1355)","v":0},{"$f":"SUMPRODUCT(--(Payments!$C$5:$C$1355=A62),--(Payments!$D$5:$D$1355=$G$3),Payments!$E$5:$E$1355)","v":0},{"$f":"SUMPRODUCT(--(Payments!$C$5:$C$1355=A62),--(Payments!$D$5:$D$1355=$H$3),Payments!$E$5:$E$1355)","v":0},{"$f":"SUMPRODUCT(--(Payments!$C$5:$C$1355=A62),--(Payments!$D$5:$D$1355=$I$3),Payments!$E$5:$E$1355)","v":0},{"$f":"SUMPRODUCT(--(Payments!$C$5:$C$1355=A62),--(Payments!$D$5:$D$1355=$J$3),Payments!$E$5:$E$1355)","v":0},{"$f":"SUMPRODUCT(--(Payments!$C$5:$C$1355=A62),--(Payments!$D$5:$D$1355=$K$3),Payments!$E$5:$E$1355)","v":0},{"$f":"SUMPRODUCT(--(Payments!$C$5:$C$1355=A62),--(Payments!$D$5:$D$1355=$L$3),Payments!$E$5:$E$1355)","v":0},{"$f":"SUMPRODUCT(--(Payments!$C$5:$C$1355=A62),--(Payments!$D$5:$D$1355=$M$3),Payments!$E$5:$E$1355)","v":0},{"$f":"SUMPRODUCT(--(Payments!$C$5:$C$1355=A62),--(Payments!$D$5:$D$1355=$N$3),Payments!$E$5:$E$1355)","v":0},{"$f":"SUMPRODUCT(--(Payments!$C$5:$C$1355=A62),--(Payments!$D$5:$D$1355=$O$3),Payments!$E$5:$E$1355)","v":0},{"$f":"SUMPRODUCT(--(Payments!$C$5:$C$1355=A62),--(Payments!$D$5:$D$1355=$P$3),Payments!$E$5:$E$1355)","v":0},{"$f":"SUMPRODUCT(--(Payments!$C$5:$C$1355=A62),--(Payments!$D$5:$D$1355=$Q$3),Payments!$E$5:$E$1355)","v":0},{"$f":"SUMPRODUCT(--(Payments!$C$5:$C$1355=A62),--(Payments!$D$5:$D$1355=$R$3),Payments!$E$5:$E$1355)","v":0},{"$f":"SUMPRODUCT(--(Payments!$C$5:$C$1355=A62),--(Payments!$D$5:$D$1355=$S$3),Payments!$E$5:$E$1355)","v":0},{"$f":"SUMPRODUCT(--(Payments!$C$5:$C$1355=A62),--(Payments!$D$5:$D$1355=$T$3),Payments!$E$5:$E$1355)","v":0},{"$f":"SUMPRODUCT(--(Payments!$C$5:$C$1355=A62),--(Payments!$D$5:$D$1355=$U$3),Payments!$E$5:$E$1355)","v":0},{"$f":"SUMPRODUCT(--(Payments!$C$5:$C$1355=A62),--(Payments!$D$5:$D$1355=$V$3),Payments!$E$5:$E$1355)","v":0},{"$f":"SUMPRODUCT(--(Payments!$C$5:$C$1355=A62),--(Payments!$D$5:$D$1355=$W$3),Payments!$E$5:$E$1355)","v":0},{"$f":"SUMPRODUCT(--(Payments!$C$5:$C$1355=A62),--(Payments!$D$5:$D$1355=$X$3),Payments!$E$5:$E$1355)","v":0},{"$f":"SUMPRODUCT(--(Payments!$C$5:$C$1355=A62),--(Payments!$D$5:$D$1355=$Y$3),Payments!$E$5:$E$1355)","v":0},{"$f":"SUMPRODUCT(--(Payments!$C$5:$C$1355=A62),--(Payments!$D$5:$D$1355=$Z$3),Payments!$E$5:$E$1355)","v":0},{"$f":"SUMPRODUCT(--(Payments!$C$5:$C$1355=A62),--(Payments!$D$5:$D$1355=$AA$3),Payments!$E$5:$E$1355)","v":0},{"$f":"SUMPRODUCT(--(Payments!$C$5:$C$1355=A62),--(Payments!$D$5:$D$1355=$AB$3),Payments!$E$5:$E$1355)","v":0},{"$f":"SUMPRODUCT(--(Payments!$C$5:$C$1355=A62),--(Payments!$D$5:$D$1355=$AC$3),Payments!$E$5:$E$1355)","v":0},{"$f":"SUMPRODUCT(--(Payments!$C$5:$C$1355=A62),--(Payments!$D$5:$D$1355=$AD$3),Payments!$E$5:$E$1355)","v":0},null,0,0,0,0]
[{"$f":"Descriptions!I64","v":0},{"$f":"Descriptions!K64","v":"Administration Costs"},{"$f":"Descriptions!L64","v":0},{"$f":"SUMPRODUCT(--(Payments!$C$5:$C$1355=A63),--(Payments!$D$5:$D$1355=$D$3),Payments!$E$5:$E$1355)","v":0},{"$f":"SUMPRODUCT(--(Payments!$C$5:$C$1355=A63),--(Payments!$D$5:$D$1355=$E$3),Payments!$E$5:$E$1355)","v":0},{"$f":"SUMPRODUCT(--(Payments!$C$5:$C$1355=A63),--(Payments!$D$5:$D$1355=$F$3),Payments!$E$5:$E$1355)","v":0},{"$f":"SUMPRODUCT(--(Payments!$C$5:$C$1355=A63),--(Payments!$D$5:$D$1355=$G$3),Payments!$E$5:$E$1355)","v":0},{"$f":"SUMPRODUCT(--(Payments!$C$5:$C$1355=A63),--(Payments!$D$5:$D$1355=$H$3),Payments!$E$5:$E$1355)","v":0},{"$f":"SUMPRODUCT(--(Payments!$C$5:$C$1355=A63),--(Payments!$D$5:$D$1355=$I$3),Payments!$E$5:$E$1355)","v":0},{"$f":"SUMPRODUCT(--(Payments!$C$5:$C$1355=A63),--(Payments!$D$5:$D$1355=$J$3),Payments!$E$5:$E$1355)","v":0},{"$f":"SUMPRODUCT(--(Payments!$C$5:$C$1355=A63),--(Payments!$D$5:$D$1355=$K$3),Payments!$E$5:$E$1355)","v":0},{"$f":"SUMPRODUCT(--(Payments!$C$5:$C$1355=A63),--(Payments!$D$5:$D$1355=$L$3),Payments!$E$5:$E$1355)","v":0},{"$f":"SUMPRODUCT(--(Payments!$C$5:$C$1355=A63),--(Payments!$D$5:$D$1355=$M$3),Payments!$E$5:$E$1355)","v":0},{"$f":"SUMPRODUCT(--(Payments!$C$5:$C$1355=A63),--(Payments!$D$5:$D$1355=$N$3),Payments!$E$5:$E$1355)","v":0},{"$f":"SUMPRODUCT(--(Payments!$C$5:$C$1355=A63),--(Payments!$D$5:$D$1355=$O$3),Payments!$E$5:$E$1355)","v":0},{"$f":"SUMPRODUCT(--(Payments!$C$5:$C$1355=A63),--(Payments!$D$5:$D$1355=$P$3),Payments!$E$5:$E$1355)","v":0},{"$f":"SUMPRODUCT(--(Payments!$C$5:$C$1355=A63),--(Payments!$D$5:$D$1355=$Q$3),Payments!$E$5:$E$1355)","v":0},{"$f":"SUMPRODUCT(--(Payments!$C$5:$C$1355=A63),--(Payments!$D$5:$D$1355=$R$3),Payments!$E$5:$E$1355)","v":0},{"$f":"SUMPRODUCT(--(Payments!$C$5:$C$1355=A63),--(Payments!$D$5:$D$1355=$S$3),Payments!$E$5:$E$1355)","v":0},{"$f":"SUMPRODUCT(--(Payments!$C$5:$C$1355=A63),--(Payments!$D$5:$D$1355=$T$3),Payments!$E$5:$E$1355)","v":0},{"$f":"SUMPRODUCT(--(Payments!$C$5:$C$1355=A63),--(Payments!$D$5:$D$1355=$U$3),Payments!$E$5:$E$1355)","v":0},{"$f":"SUMPRODUCT(--(Payments!$C$5:$C$1355=A63),--(Payments!$D$5:$D$1355=$V$3),Payments!$E$5:$E$1355)","v":0},{"$f":"SUMPRODUCT(--(Payments!$C$5:$C$1355=A63),--(Payments!$D$5:$D$1355=$W$3),Payments!$E$5:$E$1355)","v":0},{"$f":"SUMPRODUCT(--(Payments!$C$5:$C$1355=A63),--(Payments!$D$5:$D$1355=$X$3),Payments!$E$5:$E$1355)","v":0},{"$f":"SUMPRODUCT(--(Payments!$C$5:$C$1355=A63),--(Payments!$D$5:$D$1355=$Y$3),Payments!$E$5:$E$1355)","v":0},{"$f":"SUMPRODUCT(--(Payments!$C$5:$C$1355=A63),--(Payments!$D$5:$D$1355=$Z$3),Payments!$E$5:$E$1355)","v":0},{"$f":"SUMPRODUCT(--(Payments!$C$5:$C$1355=A63),--(Payments!$D$5:$D$1355=$AA$3),Payments!$E$5:$E$1355)","v":0},{"$f":"SUMPRODUCT(--(Payments!$C$5:$C$1355=A63),--(Payments!$D$5:$D$1355=$AB$3),Payments!$E$5:$E$1355)","v":0},{"$f":"SUMPRODUCT(--(Payments!$C$5:$C$1355=A63),--(Payments!$D$5:$D$1355=$AC$3),Payments!$E$5:$E$1355)","v":0},{"$f":"SUMPRODUCT(--(Payments!$C$5:$C$1355=A63),--(Payments!$D$5:$D$1355=$AD$3),Payments!$E$5:$E$1355)","v":0},null,0,0,0,0]
[{"$f":"Descriptions!I65","v":0},{"$f":"Descriptions!K65","v":"Administration Costs"},{"$f":"Descriptions!L65","v":0},{"$f":"SUMPRODUCT(--(Payments!$C$5:$C$1355=A64),--(Payments!$D$5:$D$1355=$D$3),Payments!$E$5:$E$1355)","v":0},{"$f":"SUMPRODUCT(--(Payments!$C$5:$C$1355=A64),--(Payments!$D$5:$D$1355=$E$3),Payments!$E$5:$E$1355)","v":0},{"$f":"SUMPRODUCT(--(Payments!$C$5:$C$1355=A64),--(Payments!$D$5:$D$1355=$F$3),Payments!$E$5:$E$1355)","v":0},{"$f":"SUMPRODUCT(--(Payments!$C$5:$C$1355=A64),--(Payments!$D$5:$D$1355=$G$3),Payments!$E$5:$E$1355)","v":0},{"$f":"SUMPRODUCT(--(Payments!$C$5:$C$1355=A64),--(Payments!$D$5:$D$1355=$H$3),Payments!$E$5:$E$1355)","v":0},{"$f":"SUMPRODUCT(--(Payments!$C$5:$C$1355=A64),--(Payments!$D$5:$D$1355=$I$3),Payments!$E$5:$E$1355)","v":0},{"$f":"SUMPRODUCT(--(Payments!$C$5:$C$1355=A64),--(Payments!$D$5:$D$1355=$J$3),Payments!$E$5:$E$1355)","v":0},{"$f":"SUMPRODUCT(--(Payments!$C$5:$C$1355=A64),--(Payments!$D$5:$D$1355=$K$3),Payments!$E$5:$E$1355)","v":0},{"$f":"SUMPRODUCT(--(Payments!$C$5:$C$1355=A64),--(Payments!$D$5:$D$1355=$L$3),Payments!$E$5:$E$1355)","v":0},{"$f":"SUMPRODUCT(--(Payments!$C$5:$C$1355=A64),--(Payments!$D$5:$D$1355=$M$3),Payments!$E$5:$E$1355)","v":0},{"$f":"SUMPRODUCT(--(Payments!$C$5:$C$1355=A64),--(Payments!$D$5:$D$1355=$N$3),Payments!$E$5:$E$1355)","v":0},{"$f":"SUMPRODUCT(--(Payments!$C$5:$C$1355=A64),--(Payments!$D$5:$D$1355=$O$3),Payments!$E$5:$E$1355)","v":0},{"$f":"SUMPRODUCT(--(Payments!$C$5:$C$1355=A64),--(Payments!$D$5:$D$1355=$P$3),Payments!$E$5:$E$1355)","v":0},{"$f":"SUMPRODUCT(--(Payments!$C$5:$C$1355=A64),--(Payments!$D$5:$D$1355=$Q$3),Payments!$E$5:$E$1355)","v":0},{"$f":"SUMPRODUCT(--(Payments!$C$5:$C$1355=A64),--(Payments!$D$5:$D$1355=$R$3),Payments!$E$5:$E$1355)","v":0},{"$f":"SUMPRODUCT(--(Payments!$C$5:$C$1355=A64),--(Payments!$D$5:$D$1355=$S$3),Payments!$E$5:$E$1355)","v":0},{"$f":"SUMPRODUCT(--(Payments!$C$5:$C$1355=A64),--(Payments!$D$5:$D$1355=$T$3),Payments!$E$5:$E$1355)","v":0},{"$f":"SUMPRODUCT(--(Payments!$C$5:$C$1355=A64),--(Payments!$D$5:$D$1355=$U$3),Payments!$E$5:$E$1355)","v":0},{"$f":"SUMPRODUCT(--(Payments!$C$5:$C$1355=A64),--(Payments!$D$5:$D$1355=$V$3),Payments!$E$5:$E$1355)","v":0},{"$f":"SUMPRODUCT(--(Payments!$C$5:$C$1355=A64),--(Payments!$D$5:$D$1355=$W$3),Payments!$E$5:$E$1355)","v":0},{"$f":"SUMPRODUCT(--(Payments!$C$5:$C$1355=A64),--(Payments!$D$5:$D$1355=$X$3),Payments!$E$5:$E$1355)","v":0},{"$f":"SUMPRODUCT(--(Payments!$C$5:$C$1355=A64),--(Payments!$D$5:$D$1355=$Y$3),Payments!$E$5:$E$1355)","v":0},{"$f":"SUMPRODUCT(--(Payments!$C$5:$C$1355=A64),--(Payments!$D$5:$D$1355=$Z$3),Payments!$E$5:$E$1355)","v":0},{"$f":"SUMPRODUCT(--(Payments!$C$5:$C$1355=A64),--(Payments!$D$5:$D$1355=$AA$3),Payments!$E$5:$E$1355)","v":0},{"$f":"SUMPRODUCT(--(Payments!$C$5:$C$1355=A64),--(Payments!$D$5:$D$1355=$AB$3),Payments!$E$5:$E$1355)","v":0},{"$f":"SUMPRODUCT(--(Payments!$C$5:$C$1355=A64),--(Payments!$D$5:$D$1355=$AC$3),Payments!$E$5:$E$1355)","v":0},{"$f":"SUMPRODUCT(--(Payments!$C$5:$C$1355=A64),--(Payments!$D$5:$D$1355=$AD$3),Payments!$E$5:$E$1355)","v":0},null,0,0,0,0]
[{"$f":"Descriptions!I66","v":0},{"$f":"Descriptions!K66","v":"Administration Costs"},{"$f":"Descriptions!L66","v":0},{"$f":"SUMPRODUCT(--(Payments!$C$5:$C$1355=A65),--(Payments!$D$5:$D$1355=$D$3),Payments!$E$5:$E$1355)","v":0},{"$f":"SUMPRODUCT(--(Payments!$C$5:$C$1355=A65),--(Payments!$D$5:$D$1355=$E$3),Payments!$E$5:$E$1355)","v":0},{"$f":"SUMPRODUCT(--(Payments!$C$5:$C$1355=A65),--(Payments!$D$5:$D$1355=$F$3),Payments!$E$5:$E$1355)","v":0},{"$f":"SUMPRODUCT(--(Payments!$C$5:$C$1355=A65),--(Payments!$D$5:$D$1355=$G$3),Payments!$E$5:$E$1355)","v":0},{"$f":"SUMPRODUCT(--(Payments!$C$5:$C$1355=A65),--(Payments!$D$5:$D$1355=$H$3),Payments!$E$5:$E$1355)","v":0},{"$f":"SUMPRODUCT(--(Payments!$C$5:$C$1355=A65),--(Payments!$D$5:$D$1355=$I$3),Payments!$E$5:$E$1355)","v":0},{"$f":"SUMPRODUCT(--(Payments!$C$5:$C$1355=A65),--(Payments!$D$5:$D$1355=$J$3),Payments!$E$5:$E$1355)","v":0},{"$f":"SUMPRODUCT(--(Payments!$C$5:$C$1355=A65),--(Payments!$D$5:$D$1355=$K$3),Payments!$E$5:$E$1355)","v":0},{"$f":"SUMPRODUCT(--(Payments!$C$5:$C$1355=A65),--(Payments!$D$5:$D$1355=$L$3),Payments!$E$5:$E$1355)","v":0},{"$f":"SUMPRODUCT(--(Payments!$C$5:$C$1355=A65),--(Payments!$D$5:$D$1355=$M$3),Payments!$E$5:$E$1355)","v":0},{"$f":"SUMPRODUCT(--(Payments!$C$5:$C$1355=A65),--(Payments!$D$5:$D$1355=$N$3),Payments!$E$5:$E$1355)","v":0},{"$f":"SUMPRODUCT(--(Payments!$C$5:$C$1355=A65),--(Payments!$D$5:$D$1355=$O$3),Payments!$E$5:$E$1355)","v":0},{"$f":"SUMPRODUCT(--(Payments!$C$5:$C$1355=A65),--(Payments!$D$5:$D$1355=$P$3),Payments!$E$5:$E$1355)","v":0},{"$f":"SUMPRODUCT(--(Payments!$C$5:$C$1355=A65),--(Payments!$D$5:$D$1355=$Q$3),Payments!$E$5:$E$1355)","v":0},{"$f":"SUMPRODUCT(--(Payments!$C$5:$C$1355=A65),--(Payments!$D$5:$D$1355=$R$3),Payments!$E$5:$E$1355)","v":0},{"$f":"SUMPRODUCT(--(Payments!$C$5:$C$1355=A65),--(Payments!$D$5:$D$1355=$S$3),Payments!$E$5:$E$1355)","v":0},{"$f":"SUMPRODUCT(--(Payments!$C$5:$C$1355=A65),--(Payments!$D$5:$D$1355=$T$3),Payments!$E$5:$E$1355)","v":0},{"$f":"SUMPRODUCT(--(Payments!$C$5:$C$1355=A65),--(Payments!$D$5:$D$1355=$U$3),Payments!$E$5:$E$1355)","v":0},{"$f":"SUMPRODUCT(--(Payments!$C$5:$C$1355=A65),--(Payments!$D$5:$D$1355=$V$3),Payments!$E$5:$E$1355)","v":0},{"$f":"SUMPRODUCT(--(Payments!$C$5:$C$1355=A65),--(Payments!$D$5:$D$1355=$W$3),Payments!$E$5:$E$1355)","v":0},{"$f":"SUMPRODUCT(--(Payments!$C$5:$C$1355=A65),--(Payments!$D$5:$D$1355=$X$3),Payments!$E$5:$E$1355)","v":0},{"$f":"SUMPRODUCT(--(Payments!$C$5:$C$1355=A65),--(Payments!$D$5:$D$1355=$Y$3),Payments!$E$5:$E$1355)","v":0},{"$f":"SUMPRODUCT(--(Payments!$C$5:$C$1355=A65),--(Payments!$D$5:$D$1355=$Z$3),Payments!$E$5:$E$1355)","v":0},{"$f":"SUMPRODUCT(--(Payments!$C$5:$C$1355=A65),--(Payments!$D$5:$D$1355=$AA$3),Payments!$E$5:$E$1355)","v":0},{"$f":"SUMPRODUCT(--(Payments!$C$5:$C$1355=A65),--(Payments!$D$5:$D$1355=$AB$3),Payments!$E$5:$E$1355)","v":0},{"$f":"SUMPRODUCT(--(Payments!$C$5:$C$1355=A65),--(Payments!$D$5:$D$1355=$AC$3),Payments!$E$5:$E$1355)","v":0},{"$f":"SUMPRODUCT(--(Payments!$C$5:$C$1355=A65),--(Payments!$D$5:$D$1355=$AD$3),Payments!$E$5:$E$1355)","v":0},null,0,0,0,0]
[{"$f":"Descriptions!I67","v":0},{"$f":"Descriptions!K67","v":"Administration Costs"},{"$f":"Descriptions!L67","v":0},{"$f":"SUMPRODUCT(--(Payments!$C$5:$C$1355=A66),--(Payments!$D$5:$D$1355=$D$3),Payments!$E$5:$E$1355)","v":0},{"$f":"SUMPRODUCT(--(Payments!$C$5:$C$1355=A66),--(Payments!$D$5:$D$1355=$E$3),Payments!$E$5:$E$1355)","v":0},{"$f":"SUMPRODUCT(--(Payments!$C$5:$C$1355=A66),--(Payments!$D$5:$D$1355=$F$3),Payments!$E$5:$E$1355)","v":0},{"$f":"SUMPRODUCT(--(Payments!$C$5:$C$1355=A66),--(Payments!$D$5:$D$1355=$G$3),Payments!$E$5:$E$1355)","v":0},{"$f":"SUMPRODUCT(--(Payments!$C$5:$C$1355=A66),--(Payments!$D$5:$D$1355=$H$3),Payments!$E$5:$E$1355)","v":0},{"$f":"SUMPRODUCT(--(Payments!$C$5:$C$1355=A66),--(Payments!$D$5:$D$1355=$I$3),Payments!$E$5:$E$1355)","v":0},{"$f":"SUMPRODUCT(--(Payments!$C$5:$C$1355=A66),--(Payments!$D$5:$D$1355=$J$3),Payments!$E$5:$E$1355)","v":0},{"$f":"SUMPRODUCT(--(Payments!$C$5:$C$1355=A66),--(Payments!$D$5:$D$1355=$K$3),Payments!$E$5:$E$1355)","v":0},{"$f":"SUMPRODUCT(--(Payments!$C$5:$C$1355=A66),--(Payments!$D$5:$D$1355=$L$3),Payments!$E$5:$E$1355)","v":0},{"$f":"SUMPRODUCT(--(Payments!$C$5:$C$1355=A66),--(Payments!$D$5:$D$1355=$M$3),Payments!$E$5:$E$1355)","v":0},{"$f":"SUMPRODUCT(--(Payments!$C$5:$C$1355=A66),--(Payments!$D$5:$D$1355=$N$3),Payments!$E$5:$E$1355)","v":0},{"$f":"SUMPRODUCT(--(Payments!$C$5:$C$1355=A66),--(Payments!$D$5:$D$1355=$O$3),Payments!$E$5:$E$1355)","v":0},{"$f":"SUMPRODUCT(--(Payments!$C$5:$C$1355=A66),--(Payments!$D$5:$D$1355=$P$3),Payments!$E$5:$E$1355)","v":0},{"$f":"SUMPRODUCT(--(Payments!$C$5:$C$1355=A66),--(Payments!$D$5:$D$1355=$Q$3),Payments!$E$5:$E$1355)","v":0},{"$f":"SUMPRODUCT(--(Payments!$C$5:$C$1355=A66),--(Payments!$D$5:$D$1355=$R$3),Payments!$E$5:$E$1355)","v":0},{"$f":"SUMPRODUCT(--(Payments!$C$5:$C$1355=A66),--(Payments!$D$5:$D$1355=$S$3),Payments!$E$5:$E$1355)","v":0},{"$f":"SUMPRODUCT(--(Payments!$C$5:$C$1355=A66),--(Payments!$D$5:$D$1355=$T$3),Payments!$E$5:$E$1355)","v":0},{"$f":"SUMPRODUCT(--(Payments!$C$5:$C$1355=A66),--(Payments!$D$5:$D$1355=$U$3),Payments!$E$5:$E$1355)","v":0},{"$f":"SUMPRODUCT(--(Payments!$C$5:$C$1355=A66),--(Payments!$D$5:$D$1355=$V$3),Payments!$E$5:$E$1355)","v":0},{"$f":"SUMPRODUCT(--(Payments!$C$5:$C$1355=A66),--(Payments!$D$5:$D$1355=$W$3),Payments!$E$5:$E$1355)","v":0},{"$f":"SUMPRODUCT(--(Payments!$C$5:$C$1355=A66),--(Payments!$D$5:$D$1355=$X$3),Payments!$E$5:$E$1355)","v":0},{"$f":"SUMPRODUCT(--(Payments!$C$5:$C$1355=A66),--(Payments!$D$5:$D$1355=$Y$3),Payments!$E$5:$E$1355)","v":0},{"$f":"SUMPRODUCT(--(Payments!$C$5:$C$1355=A66),--(Payments!$D$5:$D$1355=$Z$3),Payments!$E$5:$E$1355)","v":0},{"$f":"SUMPRODUCT(--(Payments!$C$5:$C$1355=A66),--(Payments!$D$5:$D$1355=$AA$3),Payments!$E$5:$E$1355)","v":0},{"$f":"SUMPRODUCT(--(Payments!$C$5:$C$1355=A66),--(Payments!$D$5:$D$1355=$AB$3),Payments!$E$5:$E$1355)","v":0},{"$f":"SUMPRODUCT(--(Payments!$C$5:$C$1355=A66),--(Payments!$D$5:$D$1355=$AC$3),Payments!$E$5:$E$1355)","v":0},{"$f":"SUMPRODUCT(--(Payments!$C$5:$C$1355=A66),--(Payments!$D$5:$D$1355=$AD$3),Payments!$E$5:$E$1355)","v":0},null,0,0,0,0]
[{"$f":"Descriptions!I68","v":0},{"$f":"Descriptions!K68","v":"Administration Costs"},{"$f":"Descriptions!L68","v":0},{"$f":"SUMPRODUCT(--(Payments!$C$5:$C$1355=A67),--(Payments!$D$5:$D$1355=$D$3),Payments!$E$5:$E$1355)","v":0},{"$f":"SUMPRODUCT(--(Payments!$C$5:$C$1355=A67),--(Payments!$D$5:$D$1355=$E$3),Payments!$E$5:$E$1355)","v":0},{"$f":"SUMPRODUCT(--(Payments!$C$5:$C$1355=A67),--(Payments!$D$5:$D$1355=$F$3),Payments!$E$5:$E$1355)","v":0},{"$f":"SUMPRODUCT(--(Payments!$C$5:$C$1355=A67),--(Payments!$D$5:$D$1355=$G$3),Payments!$E$5:$E$1355)","v":0},{"$f":"SUMPRODUCT(--(Payments!$C$5:$C$1355=A67),--(Payments!$D$5:$D$1355=$H$3),Payments!$E$5:$E$1355)","v":0},{"$f":"SUMPRODUCT(--(Payments!$C$5:$C$1355=A67),--(Payments!$D$5:$D$1355=$I$3),Payments!$E$5:$E$1355)","v":0},{"$f":"SUMPRODUCT(--(Payments!$C$5:$C$1355=A67),--(Payments!$D$5:$D$1355=$J$3),Payments!$E$5:$E$1355)","v":0},{"$f":"SUMPRODUCT(--(Payments!$C$5:$C$1355=A67),--(Payments!$D$5:$D$1355=$K$3),Payments!$E$5:$E$1355)","v":0},{"$f":"SUMPRODUCT(--(Payments!$C$5:$C$1355=A67),--(Payments!$D$5:$D$1355=$L$3),Payments!$E$5:$E$1355)","v":0},{"$f":"SUMPRODUCT(--(Payments!$C$5:$C$1355=A67),--(Payments!$D$5:$D$1355=$M$3),Payments!$E$5:$E$1355)","v":0},{"$f":"SUMPRODUCT(--(Payments!$C$5:$C$1355=A67),--(Payments!$D$5:$D$1355=$N$3),Payments!$E$5:$E$1355)","v":0},{"$f":"SUMPRODUCT(--(Payments!$C$5:$C$1355=A67),--(Payments!$D$5:$D$1355=$O$3),Payments!$E$5:$E$1355)","v":0},{"$f":"SUMPRODUCT(--(Payments!$C$5:$C$1355=A67),--(Payments!$D$5:$D$1355=$P$3),Payments!$E$5:$E$1355)","v":0},{"$f":"SUMPRODUCT(--(Payments!$C$5:$C$1355=A67),--(Payments!$D$5:$D$1355=$Q$3),Payments!$E$5:$E$1355)","v":0},{"$f":"SUMPRODUCT(--(Payments!$C$5:$C$1355=A67),--(Payments!$D$5:$D$1355=$R$3),Payments!$E$5:$E$1355)","v":0},{"$f":"SUMPRODUCT(--(Payments!$C$5:$C$1355=A67),--(Payments!$D$5:$D$1355=$S$3),Payments!$E$5:$E$1355)","v":0},{"$f":"SUMPRODUCT(--(Payments!$C$5:$C$1355=A67),--(Payments!$D$5:$D$1355=$T$3),Payments!$E$5:$E$1355)","v":0},{"$f":"SUMPRODUCT(--(Payments!$C$5:$C$1355=A67),--(Payments!$D$5:$D$1355=$U$3),Payments!$E$5:$E$1355)","v":0},{"$f":"SUMPRODUCT(--(Payments!$C$5:$C$1355=A67),--(Payments!$D$5:$D$1355=$V$3),Payments!$E$5:$E$1355)","v":0},{"$f":"SUMPRODUCT(--(Payments!$C$5:$C$1355=A67),--(Payments!$D$5:$D$1355=$W$3),Payments!$E$5:$E$1355)","v":0},{"$f":"SUMPRODUCT(--(Payments!$C$5:$C$1355=A67),--(Payments!$D$5:$D$1355=$X$3),Payments!$E$5:$E$1355)","v":0},{"$f":"SUMPRODUCT(--(Payments!$C$5:$C$1355=A67),--(Payments!$D$5:$D$1355=$Y$3),Payments!$E$5:$E$1355)","v":0},{"$f":"SUMPRODUCT(--(Payments!$C$5:$C$1355=A67),--(Payments!$D$5:$D$1355=$Z$3),Payments!$E$5:$E$1355)","v":0},{"$f":"SUMPRODUCT(--(Payments!$C$5:$C$1355=A67),--(Payments!$D$5:$D$1355=$AA$3),Payments!$E$5:$E$1355)","v":0},{"$f":"SUMPRODUCT(--(Payments!$C$5:$C$1355=A67),--(Payments!$D$5:$D$1355=$AB$3),Payments!$E$5:$E$1355)","v":0},{"$f":"SUMPRODUCT(--(Payments!$C$5:$C$1355=A67),--(Payments!$D$5:$D$1355=$AC$3),Payments!$E$5:$E$1355)","v":0},{"$f":"SUMPRODUCT(--(Payments!$C$5:$C$1355=A67),--(Payments!$D$5:$D$1355=$AD$3),Payments!$E$5:$E$1355)","v":0},null,0,0,0,0]
[{"$f":"Descriptions!I69","v":0},{"$f":"Descriptions!K69","v":"Administration Costs"},{"$f":"Descriptions!L69","v":0},{"$f":"SUMPRODUCT(--(Payments!$C$5:$C$1355=A68),--(Payments!$D$5:$D$1355=$D$3),Payments!$E$5:$E$1355)","v":0},{"$f":"SUMPRODUCT(--(Payments!$C$5:$C$1355=A68),--(Payments!$D$5:$D$1355=$E$3),Payments!$E$5:$E$1355)","v":0},{"$f":"SUMPRODUCT(--(Payments!$C$5:$C$1355=A68),--(Payments!$D$5:$D$1355=$F$3),Payments!$E$5:$E$1355)","v":0},{"$f":"SUMPRODUCT(--(Payments!$C$5:$C$1355=A68),--(Payments!$D$5:$D$1355=$G$3),Payments!$E$5:$E$1355)","v":0},{"$f":"SUMPRODUCT(--(Payments!$C$5:$C$1355=A68),--(Payments!$D$5:$D$1355=$H$3),Payments!$E$5:$E$1355)","v":0},{"$f":"SUMPRODUCT(--(Payments!$C$5:$C$1355=A68),--(Payments!$D$5:$D$1355=$I$3),Payments!$E$5:$E$1355)","v":0},{"$f":"SUMPRODUCT(--(Payments!$C$5:$C$1355=A68),--(Payments!$D$5:$D$1355=$J$3),Payments!$E$5:$E$1355)","v":0},{"$f":"SUMPRODUCT(--(Payments!$C$5:$C$1355=A68),--(Payments!$D$5:$D$1355=$K$3),Payments!$E$5:$E$1355)","v":0},{"$f":"SUMPRODUCT(--(Payments!$C$5:$C$1355=A68),--(Payments!$D$5:$D$1355=$L$3),Payments!$E$5:$E$1355)","v":0},{"$f":"SUMPRODUCT(--(Payments!$C$5:$C$1355=A68),--(Payments!$D$5:$D$1355=$M$3),Payments!$E$5:$E$1355)","v":0},{"$f":"SUMPRODUCT(--(Payments!$C$5:$C$1355=A68),--(Payments!$D$5:$D$1355=$N$3),Payments!$E$5:$E$1355)","v":0},{"$f":"SUMPRODUCT(--(Payments!$C$5:$C$1355=A68),--(Payments!$D$5:$D$1355=$O$3),Payments!$E$5:$E$1355)","v":0},{"$f":"SUMPRODUCT(--(Payments!$C$5:$C$1355=A68),--(Payments!$D$5:$D$1355=$P$3),Payments!$E$5:$E$1355)","v":0},{"$f":"SUMPRODUCT(--(Payments!$C$5:$C$1355=A68),--(Payments!$D$5:$D$1355=$Q$3),Payments!$E$5:$E$1355)","v":0},{"$f":"SUMPRODUCT(--(Payments!$C$5:$C$1355=A68),--(Payments!$D$5:$D$1355=$R$3),Payments!$E$5:$E$1355)","v":0},{"$f":"SUMPRODUCT(--(Payments!$C$5:$C$1355=A68),--(Payments!$D$5:$D$1355=$S$3),Payments!$E$5:$E$1355)","v":0},{"$f":"SUMPRODUCT(--(Payments!$C$5:$C$1355=A68),--(Payments!$D$5:$D$1355=$T$3),Payments!$E$5:$E$1355)","v":0},{"$f":"SUMPRODUCT(--(Payments!$C$5:$C$1355=A68),--(Payments!$D$5:$D$1355=$U$3),Payments!$E$5:$E$1355)","v":0},{"$f":"SUMPRODUCT(--(Payments!$C$5:$C$1355=A68),--(Payments!$D$5:$D$1355=$V$3),Payments!$E$5:$E$1355)","v":0},{"$f":"SUMPRODUCT(--(Payments!$C$5:$C$1355=A68),--(Payments!$D$5:$D$1355=$W$3),Payments!$E$5:$E$1355)","v":0},{"$f":"SUMPRODUCT(--(Payments!$C$5:$C$1355=A68),--(Payments!$D$5:$D$1355=$X$3),Payments!$E$5:$E$1355)","v":0},{"$f":"SUMPRODUCT(--(Payments!$C$5:$C$1355=A68),--(Payments!$D$5:$D$1355=$Y$3),Payments!$E$5:$E$1355)","v":0},{"$f":"SUMPRODUCT(--(Payments!$C$5:$C$1355=A68),--(Payments!$D$5:$D$1355=$Z$3),Payments!$E$5:$E$1355)","v":0},{"$f":"SUMPRODUCT(--(Payments!$C$5:$C$1355=A68),--(Payments!$D$5:$D$1355=$AA$3),Payments!$E$5:$E$1355)","v":0},{"$f":"SUMPRODUCT(--(Payments!$C$5:$C$1355=A68),--(Payments!$D$5:$D$1355=$AB$3),Payments!$E$5:$E$1355)","v":0},{"$f":"SUMPRODUCT(--(Payments!$C$5:$C$1355=A68),--(Payments!$D$5:$D$1355=$AC$3),Payments!$E$5:$E$1355)","v":0},{"$f":"SUMPRODUCT(--(Payments!$C$5:$C$1355=A68),--(Payments!$D$5:$D$1355=$AD$3),Payments!$E$5:$E$1355)","v":0},null,0,0,0,0]
[{"$f":"Descriptions!I70","v":0},{"$f":"Descriptions!K70","v":"Administration Costs"},{"$f":"Descriptions!L70","v":0},{"$f":"SUMPRODUCT(--(Payments!$C$5:$C$1355=A69),--(Payments!$D$5:$D$1355=$D$3),Payments!$E$5:$E$1355)","v":0},{"$f":"SUMPRODUCT(--(Payments!$C$5:$C$1355=A69),--(Payments!$D$5:$D$1355=$E$3),Payments!$E$5:$E$1355)","v":0},{"$f":"SUMPRODUCT(--(Payments!$C$5:$C$1355=A69),--(Payments!$D$5:$D$1355=$F$3),Payments!$E$5:$E$1355)","v":0},{"$f":"SUMPRODUCT(--(Payments!$C$5:$C$1355=A69),--(Payments!$D$5:$D$1355=$G$3),Payments!$E$5:$E$1355)","v":0},{"$f":"SUMPRODUCT(--(Payments!$C$5:$C$1355=A69),--(Payments!$D$5:$D$1355=$H$3),Payments!$E$5:$E$1355)","v":0},{"$f":"SUMPRODUCT(--(Payments!$C$5:$C$1355=A69),--(Payments!$D$5:$D$1355=$I$3),Payments!$E$5:$E$1355)","v":0},{"$f":"SUMPRODUCT(--(Payments!$C$5:$C$1355=A69),--(Payments!$D$5:$D$1355=$J$3),Payments!$E$5:$E$1355)","v":0},{"$f":"SUMPRODUCT(--(Payments!$C$5:$C$1355=A69),--(Payments!$D$5:$D$1355=$K$3),Payments!$E$5:$E$1355)","v":0},{"$f":"SUMPRODUCT(--(Payments!$C$5:$C$1355=A69),--(Payments!$D$5:$D$1355=$L$3),Payments!$E$5:$E$1355)","v":0},{"$f":"SUMPRODUCT(--(Payments!$C$5:$C$1355=A69),--(Payments!$D$5:$D$1355=$M$3),Payments!$E$5:$E$1355)","v":0},{"$f":"SUMPRODUCT(--(Payments!$C$5:$C$1355=A69),--(Payments!$D$5:$D$1355=$N$3),Payments!$E$5:$E$1355)","v":0},{"$f":"SUMPRODUCT(--(Payments!$C$5:$C$1355=A69),--(Payments!$D$5:$D$1355=$O$3),Payments!$E$5:$E$1355)","v":0},{"$f":"SUMPRODUCT(--(Payments!$C$5:$C$1355=A69),--(Payments!$D$5:$D$1355=$P$3),Payments!$E$5:$E$1355)","v":0},{"$f":"SUMPRODUCT(--(Payments!$C$5:$C$1355=A69),--(Payments!$D$5:$D$1355=$Q$3),Payments!$E$5:$E$1355)","v":0},{"$f":"SUMPRODUCT(--(Payments!$C$5:$C$1355=A69),--(Payments!$D$5:$D$1355=$R$3),Payments!$E$5:$E$1355)","v":0},{"$f":"SUMPRODUCT(--(Payments!$C$5:$C$1355=A69),--(Payments!$D$5:$D$1355=$S$3),Payments!$E$5:$E$1355)","v":0},{"$f":"SUMPRODUCT(--(Payments!$C$5:$C$1355=A69),--(Payments!$D$5:$D$1355=$T$3),Payments!$E$5:$E$1355)","v":0},{"$f":"SUMPRODUCT(--(Payments!$C$5:$C$1355=A69),--(Payments!$D$5:$D$1355=$U$3),Payments!$E$5:$E$1355)","v":0},{"$f":"SUMPRODUCT(--(Payments!$C$5:$C$1355=A69),--(Payments!$D$5:$D$1355=$V$3),Payments!$E$5:$E$1355)","v":0},{"$f":"SUMPRODUCT(--(Payments!$C$5:$C$1355=A69),--(Payments!$D$5:$D$1355=$W$3),Payments!$E$5:$E$1355)","v":0},{"$f":"SUMPRODUCT(--(Payments!$C$5:$C$1355=A69),--(Payments!$D$5:$D$1355=$X$3),Payments!$E$5:$E$1355)","v":0},{"$f":"SUMPRODUCT(--(Payments!$C$5:$C$1355=A69),--(Payments!$D$5:$D$1355=$Y$3),Payments!$E$5:$E$1355)","v":0},{"$f":"SUMPRODUCT(--(Payments!$C$5:$C$1355=A69),--(Payments!$D$5:$D$1355=$Z$3),Payments!$E$5:$E$1355)","v":0},{"$f":"SUMPRODUCT(--(Payments!$C$5:$C$1355=A69),--(Payments!$D$5:$D$1355=$AA$3),Payments!$E$5:$E$1355)","v":0},{"$f":"SUMPRODUCT(--(Payments!$C$5:$C$1355=A69),--(Payments!$D$5:$D$1355=$AB$3),Payments!$E$5:$E$1355)","v":0},{"$f":"SUMPRODUCT(--(Payments!$C$5:$C$1355=A69),--(Payments!$D$5:$D$1355=$AC$3),Payments!$E$5:$E$1355)","v":0},{"$f":"SUMPRODUCT(--(Payments!$C$5:$C$1355=A69),--(Payments!$D$5:$D$1355=$AD$3),Payments!$E$5:$E$1355)","v":0},null,{"$f":"SUMPRODUCT(($D$4:$AD$4=$AF$4)*(D69:AD69))","v":0},{"$f":"SUMPRODUCT(($D$4:$AD$4=$AG$4)*(D69:AD69))","v":0},{"$f":"SUMPRODUCT(($D$4:$AD$4=$AH$4)*(D69:AD69))","v":0},{"$f":"SUMPRODUCT(($D$4:$AD$4=$AI$4)*(D69:AD69))","v":0}]
[{"$f":"Descriptions!I71","v":0},{"$f":"Descriptions!K71","v":"Administration Costs"},{"$f":"Descriptions!L71","v":0},{"$f":"SUMPRODUCT(--(Payments!$C$5:$C$1355=A70),--(Payments!$D$5:$D$1355=$D$3),Payments!$E$5:$E$1355)","v":0},{"$f":"SUMPRODUCT(--(Payments!$C$5:$C$1355=A70),--(Payments!$D$5:$D$1355=$E$3),Payments!$E$5:$E$1355)","v":0},{"$f":"SUMPRODUCT(--(Payments!$C$5:$C$1355=A70),--(Payments!$D$5:$D$1355=$F$3),Payments!$E$5:$E$1355)","v":0},{"$f":"SUMPRODUCT(--(Payments!$C$5:$C$1355=A70),--(Payments!$D$5:$D$1355=$G$3),Payments!$E$5:$E$1355)","v":0},{"$f":"SUMPRODUCT(--(Payments!$C$5:$C$1355=A70),--(Payments!$D$5:$D$1355=$H$3),Payments!$E$5:$E$1355)","v":0},{"$f":"SUMPRODUCT(--(Payments!$C$5:$C$1355=A70),--(Payments!$D$5:$D$1355=$I$3),Payments!$E$5:$E$1355)","v":0},{"$f":"SUMPRODUCT(--(Payments!$C$5:$C$1355=A70),--(Payments!$D$5:$D$1355=$J$3),Payments!$E$5:$E$1355)","v":0},{"$f":"SUMPRODUCT(--(Payments!$C$5:$C$1355=A70),--(Payments!$D$5:$D$1355=$K$3),Payments!$E$5:$E$1355)","v":0},{"$f":"SUMPRODUCT(--(Payments!$C$5:$C$1355=A70),--(Payments!$D$5:$D$1355=$L$3),Payments!$E$5:$E$1355)","v":0},{"$f":"SUMPRODUCT(--(Payments!$C$5:$C$1355=A70),--(Payments!$D$5:$D$1355=$M$3),Payments!$E$5:$E$1355)","v":0},{"$f":"SUMPRODUCT(--(Payments!$C$5:$C$1355=A70),--(Payments!$D$5:$D$1355=$N$3),Payments!$E$5:$E$1355)","v":0},{"$f":"SUMPRODUCT(--(Payments!$C$5:$C$1355=A70),--(Payments!$D$5:$D$1355=$O$3),Payments!$E$5:$E$1355)","v":0},{"$f":"SUMPRODUCT(--(Payments!$C$5:$C$1355=A70),--(Payments!$D$5:$D$1355=$P$3),Payments!$E$5:$E$1355)","v":0},{"$f":"SUMPRODUCT(--(Payments!$C$5:$C$1355=A70),--(Payments!$D$5:$D$1355=$Q$3),Payments!$E$5:$E$1355)","v":0},{"$f":"SUMPRODUCT(--(Payments!$C$5:$C$1355=A70),--(Payments!$D$5:$D$1355=$R$3),Payments!$E$5:$E$1355)","v":0},{"$f":"SUMPRODUCT(--(Payments!$C$5:$C$1355=A70),--(Payments!$D$5:$D$1355=$S$3),Payments!$E$5:$E$1355)","v":0},{"$f":"SUMPRODUCT(--(Payments!$C$5:$C$1355=A70),--(Payments!$D$5:$D$1355=$T$3),Payments!$E$5:$E$1355)","v":0},{"$f":"SUMPRODUCT(--(Payments!$C$5:$C$1355=A70),--(Payments!$D$5:$D$1355=$U$3),Payments!$E$5:$E$1355)","v":0},{"$f":"SUMPRODUCT(--(Payments!$C$5:$C$1355=A70),--(Payments!$D$5:$D$1355=$V$3),Payments!$E$5:$E$1355)","v":0},{"$f":"SUMPRODUCT(--(Payments!$C$5:$C$1355=A70),--(Payments!$D$5:$D$1355=$W$3),Payments!$E$5:$E$1355)","v":0},{"$f":"SUMPRODUCT(--(Payments!$C$5:$C$1355=A70),--(Payments!$D$5:$D$1355=$X$3),Payments!$E$5:$E$1355)","v":0},{"$f":"SUMPRODUCT(--(Payments!$C$5:$C$1355=A70),--(Payments!$D$5:$D$1355=$Y$3),Payments!$E$5:$E$1355)","v":0},{"$f":"SUMPRODUCT(--(Payments!$C$5:$C$1355=A70),--(Payments!$D$5:$D$1355=$Z$3),Payments!$E$5:$E$1355)","v":0},{"$f":"SUMPRODUCT(--(Payments!$C$5:$C$1355=A70),--(Payments!$D$5:$D$1355=$AA$3),Payments!$E$5:$E$1355)","v":0},{"$f":"SUMPRODUCT(--(Payments!$C$5:$C$1355=A70),--(Payments!$D$5:$D$1355=$AB$3),Payments!$E$5:$E$1355)","v":0},{"$f":"SUMPRODUCT(--(Payments!$C$5:$C$1355=A70),--(Payments!$D$5:$D$1355=$AC$3),Payments!$E$5:$E$1355)","v":0},{"$f":"SUMPRODUCT(--(Payments!$C$5:$C$1355=A70),--(Payments!$D$5:$D$1355=$AD$3),Payments!$E$5:$E$1355)","v":0},null,0,0,0,0]
[{"$f":"Descriptions!I72","v":0},{"$f":"Descriptions!K72","v":"Administration Costs"},{"$f":"Descriptions!L72","v":0},{"$f":"SUMPRODUCT(--(Payments!$C$5:$C$1355=A71),--(Payments!$D$5:$D$1355=$D$3),Payments!$E$5:$E$1355)","v":0},{"$f":"SUMPRODUCT(--(Payments!$C$5:$C$1355=A71),--(Payments!$D$5:$D$1355=$E$3),Payments!$E$5:$E$1355)","v":0},{"$f":"SUMPRODUCT(--(Payments!$C$5:$C$1355=A71),--(Payments!$D$5:$D$1355=$F$3),Payments!$E$5:$E$1355)","v":0},{"$f":"SUMPRODUCT(--(Payments!$C$5:$C$1355=A71),--(Payments!$D$5:$D$1355=$G$3),Payments!$E$5:$E$1355)","v":0},{"$f":"SUMPRODUCT(--(Payments!$C$5:$C$1355=A71),--(Payments!$D$5:$D$1355=$H$3),Payments!$E$5:$E$1355)","v":0},{"$f":"SUMPRODUCT(--(Payments!$C$5:$C$1355=A71),--(Payments!$D$5:$D$1355=$I$3),Payments!$E$5:$E$1355)","v":0},{"$f":"SUMPRODUCT(--(Payments!$C$5:$C$1355=A71),--(Payments!$D$5:$D$1355=$J$3),Payments!$E$5:$E$1355)","v":0},{"$f":"SUMPRODUCT(--(Payments!$C$5:$C$1355=A71),--(Payments!$D$5:$D$1355=$K$3),Payments!$E$5:$E$1355)","v":0},{"$f":"SUMPRODUCT(--(Payments!$C$5:$C$1355=A71),--(Payments!$D$5:$D$1355=$L$3),Payments!$E$5:$E$1355)","v":0},{"$f":"SUMPRODUCT(--(Payments!$C$5:$C$1355=A71),--(Payments!$D$5:$D$1355=$M$3),Payments!$E$5:$E$1355)","v":0},{"$f":"SUMPRODUCT(--(Payments!$C$5:$C$1355=A71),--(Payments!$D$5:$D$1355=$N$3),Payments!$E$5:$E$1355)","v":0},{"$f":"SUMPRODUCT(--(Payments!$C$5:$C$1355=A71),--(Payments!$D$5:$D$1355=$O$3),Payments!$E$5:$E$1355)","v":0},{"$f":"SUMPRODUCT(--(Payments!$C$5:$C$1355=A71),--(Payments!$D$5:$D$1355=$P$3),Payments!$E$5:$E$1355)","v":0},{"$f":"SUMPRODUCT(--(Payments!$C$5:$C$1355=A71),--(Payments!$D$5:$D$1355=$Q$3),Payments!$E$5:$E$1355)","v":0},{"$f":"SUMPRODUCT(--(Payments!$C$5:$C$1355=A71),--(Payments!$D$5:$D$1355=$R$3),Payments!$E$5:$E$1355)","v":0},{"$f":"SUMPRODUCT(--(Payments!$C$5:$C$1355=A71),--(Payments!$D$5:$D$1355=$S$3),Payments!$E$5:$E$1355)","v":0},{"$f":"SUMPRODUCT(--(Payments!$C$5:$C$1355=A71),--(Payments!$D$5:$D$1355=$T$3),Payments!$E$5:$E$1355)","v":0},{"$f":"SUMPRODUCT(--(Payments!$C$5:$C$1355=A71),--(Payments!$D$5:$D$1355=$U$3),Payments!$E$5:$E$1355)","v":0},{"$f":"SUMPRODUCT(--(Payments!$C$5:$C$1355=A71),--(Payments!$D$5:$D$1355=$V$3),Payments!$E$5:$E$1355)","v":0},{"$f":"SUMPRODUCT(--(Payments!$C$5:$C$1355=A71),--(Payments!$D$5:$D$1355=$W$3),Payments!$E$5:$E$1355)","v":0},{"$f":"SUMPRODUCT(--(Payments!$C$5:$C$1355=A71),--(Payments!$D$5:$D$1355=$X$3),Payments!$E$5:$E$1355)","v":0},{"$f":"SUMPRODUCT(--(Payments!$C$5:$C$1355=A71),--(Payments!$D$5:$D$1355=$Y$3),Payments!$E$5:$E$1355)","v":0},{"$f":"SUMPRODUCT(--(Payments!$C$5:$C$1355=A71),--(Payments!$D$5:$D$1355=$Z$3),Payments!$E$5:$E$1355)","v":0},{"$f":"SUMPRODUCT(--(Payments!$C$5:$C$1355=A71),--(Payments!$D$5:$D$1355=$AA$3),Payments!$E$5:$E$1355)","v":0},{"$f":"SUMPRODUCT(--(Payments!$C$5:$C$1355=A71),--(Payments!$D$5:$D$1355=$AB$3),Payments!$E$5:$E$1355)","v":0},{"$f":"SUMPRODUCT(--(Payments!$C$5:$C$1355=A71),--(Payments!$D$5:$D$1355=$AC$3),Payments!$E$5:$E$1355)","v":0},{"$f":"SUMPRODUCT(--(Payments!$C$5:$C$1355=A71),--(Payments!$D$5:$D$1355=$AD$3),Payments!$E$5:$E$1355)","v":0},null,0,0,0,0]
[{"$f":"Descriptions!I73","v":0},{"$f":"Descriptions!K73","v":"Administration Costs"},{"$f":"Descriptions!L73","v":0},{"$f":"SUMPRODUCT(--(Payments!$C$5:$C$1355=A72),--(Payments!$D$5:$D$1355=$D$3),Payments!$E$5:$E$1355)","v":0},{"$f":"SUMPRODUCT(--(Payments!$C$5:$C$1355=A72),--(Payments!$D$5:$D$1355=$E$3),Payments!$E$5:$E$1355)","v":0},{"$f":"SUMPRODUCT(--(Payments!$C$5:$C$1355=A72),--(Payments!$D$5:$D$1355=$F$3),Payments!$E$5:$E$1355)","v":0},{"$f":"SUMPRODUCT(--(Payments!$C$5:$C$1355=A72),--(Payments!$D$5:$D$1355=$G$3),Payments!$E$5:$E$1355)","v":0},{"$f":"SUMPRODUCT(--(Payments!$C$5:$C$1355=A72),--(Payments!$D$5:$D$1355=$H$3),Payments!$E$5:$E$1355)","v":0},{"$f":"SUMPRODUCT(--(Payments!$C$5:$C$1355=A72),--(Payments!$D$5:$D$1355=$I$3),Payments!$E$5:$E$1355)","v":0},{"$f":"SUMPRODUCT(--(Payments!$C$5:$C$1355=A72),--(Payments!$D$5:$D$1355=$J$3),Payments!$E$5:$E$1355)","v":0},{"$f":"SUMPRODUCT(--(Payments!$C$5:$C$1355=A72),--(Payments!$D$5:$D$1355=$K$3),Payments!$E$5:$E$1355)","v":0},{"$f":"SUMPRODUCT(--(Payments!$C$5:$C$1355=A72),--(Payments!$D$5:$D$1355=$L$3),Payments!$E$5:$E$1355)","v":0},{"$f":"SUMPRODUCT(--(Payments!$C$5:$C$1355=A72),--(Payments!$D$5:$D$1355=$M$3),Payments!$E$5:$E$1355)","v":0},{"$f":"SUMPRODUCT(--(Payments!$C$5:$C$1355=A72),--(Payments!$D$5:$D$1355=$N$3),Payments!$E$5:$E$1355)","v":0},{"$f":"SUMPRODUCT(--(Payments!$C$5:$C$1355=A72),--(Payments!$D$5:$D$1355=$O$3),Payments!$E$5:$E$1355)","v":0},{"$f":"SUMPRODUCT(--(Payments!$C$5:$C$1355=A72),--(Payments!$D$5:$D$1355=$P$3),Payments!$E$5:$E$1355)","v":0},{"$f":"SUMPRODUCT(--(Payments!$C$5:$C$1355=A72),--(Payments!$D$5:$D$1355=$Q$3),Payments!$E$5:$E$1355)","v":0},{"$f":"SUMPRODUCT(--(Payments!$C$5:$C$1355=A72),--(Payments!$D$5:$D$1355=$R$3),Payments!$E$5:$E$1355)","v":0},{"$f":"SUMPRODUCT(--(Payments!$C$5:$C$1355=A72),--(Payments!$D$5:$D$1355=$S$3),Payments!$E$5:$E$1355)","v":0},{"$f":"SUMPRODUCT(--(Payments!$C$5:$C$1355=A72),--(Payments!$D$5:$D$1355=$T$3),Payments!$E$5:$E$1355)","v":0},{"$f":"SUMPRODUCT(--(Payments!$C$5:$C$1355=A72),--(Payments!$D$5:$D$1355=$U$3),Payments!$E$5:$E$1355)","v":0},{"$f":"SUMPRODUCT(--(Payments!$C$5:$C$1355=A72),--(Payments!$D$5:$D$1355=$V$3),Payments!$E$5:$E$1355)","v":0},{"$f":"SUMPRODUCT(--(Payments!$C$5:$C$1355=A72),--(Payments!$D$5:$D$1355=$W$3),Payments!$E$5:$E$1355)","v":0},{"$f":"SUMPRODUCT(--(Payments!$C$5:$C$1355=A72),--(Payments!$D$5:$D$1355=$X$3),Payments!$E$5:$E$1355)","v":0},{"$f":"SUMPRODUCT(--(Payments!$C$5:$C$1355=A72),--(Payments!$D$5:$D$1355=$Y$3),Payments!$E$5:$E$1355)","v":0},{"$f":"SUMPRODUCT(--(Payments!$C$5:$C$1355=A72),--(Payments!$D$5:$D$1355=$Z$3),Payments!$E$5:$E$1355)","v":0},{"$f":"SUMPRODUCT(--(Payments!$C$5:$C$1355=A72),--(Payments!$D$5:$D$1355=$AA$3),Payments!$E$5:$E$1355)","v":0},{"$f":"SUMPRODUCT(--(Payments!$C$5:$C$1355=A72),--(Payments!$D$5:$D$1355=$AB$3),Payments!$E$5:$E$1355)","v":0},{"$f":"SUMPRODUCT(--(Payments!$C$5:$C$1355=A72),--(Payments!$D$5:$D$1355=$AC$3),Payments!$E$5:$E$1355)","v":0},{"$f":"SUMPRODUCT(--(Payments!$C$5:$C$1355=A72),--(Payments!$D$5:$D$1355=$AD$3),Payments!$E$5:$E$1355)","v":0},null,0,0,0,0]
[{"$f":"Descriptions!I74","v":0},{"$f":"Descriptions!K74","v":"Administration Costs"},{"$f":"Descriptions!L74","v":0},{"$f":"SUMPRODUCT(--(Payments!$C$5:$C$1355=A73),--(Payments!$D$5:$D$1355=$D$3),Payments!$E$5:$E$1355)","v":0},{"$f":"SUMPRODUCT(--(Payments!$C$5:$C$1355=A73),--(Payments!$D$5:$D$1355=$E$3),Payments!$E$5:$E$1355)","v":0},{"$f":"SUMPRODUCT(--(Payments!$C$5:$C$1355=A73),--(Payments!$D$5:$D$1355=$F$3),Payments!$E$5:$E$1355)","v":0},{"$f":"SUMPRODUCT(--(Payments!$C$5:$C$1355=A73),--(Payments!$D$5:$D$1355=$G$3),Payments!$E$5:$E$1355)","v":0},{"$f":"SUMPRODUCT(--(Payments!$C$5:$C$1355=A73),--(Payments!$D$5:$D$1355=$H$3),Payments!$E$5:$E$1355)","v":0},{"$f":"SUMPRODUCT(--(Payments!$C$5:$C$1355=A73),--(Payments!$D$5:$D$1355=$I$3),Payments!$E$5:$E$1355)","v":0},{"$f":"SUMPRODUCT(--(Payments!$C$5:$C$1355=A73),--(Payments!$D$5:$D$1355=$J$3),Payments!$E$5:$E$1355)","v":0},{"$f":"SUMPRODUCT(--(Payments!$C$5:$C$1355=A73),--(Payments!$D$5:$D$1355=$K$3),Payments!$E$5:$E$1355)","v":0},{"$f":"SUMPRODUCT(--(Payments!$C$5:$C$1355=A73),--(Payments!$D$5:$D$1355=$L$3),Payments!$E$5:$E$1355)","v":0},{"$f":"SUMPRODUCT(--(Payments!$C$5:$C$1355=A73),--(Payments!$D$5:$D$1355=$M$3),Payments!$E$5:$E$1355)","v":0},{"$f":"SUMPRODUCT(--(Payments!$C$5:$C$1355=A73),--(Payments!$D$5:$D$1355=$N$3),Payments!$E$5:$E$1355)","v":0},{"$f":"SUMPRODUCT(--(Payments!$C$5:$C$1355=A73),--(Payments!$D$5:$D$1355=$O$3),Payments!$E$5:$E$1355)","v":0},{"$f":"SUMPRODUCT(--(Payments!$C$5:$C$1355=A73),--(Payments!$D$5:$D$1355=$P$3),Payments!$E$5:$E$1355)","v":0},{"$f":"SUMPRODUCT(--(Payments!$C$5:$C$1355=A73),--(Payments!$D$5:$D$1355=$Q$3),Payments!$E$5:$E$1355)","v":0},{"$f":"SUMPRODUCT(--(Payments!$C$5:$C$1355=A73),--(Payments!$D$5:$D$1355=$R$3),Payments!$E$5:$E$1355)","v":0},{"$f":"SUMPRODUCT(--(Payments!$C$5:$C$1355=A73),--(Payments!$D$5:$D$1355=$S$3),Payments!$E$5:$E$1355)","v":0},{"$f":"SUMPRODUCT(--(Payments!$C$5:$C$1355=A73),--(Payments!$D$5:$D$1355=$T$3),Payments!$E$5:$E$1355)","v":0},{"$f":"SUMPRODUCT(--(Payments!$C$5:$C$1355=A73),--(Payments!$D$5:$D$1355=$U$3),Payments!$E$5:$E$1355)","v":0},{"$f":"SUMPRODUCT(--(Payments!$C$5:$C$1355=A73),--(Payments!$D$5:$D$1355=$V$3),Payments!$E$5:$E$1355)","v":0},{"$f":"SUMPRODUCT(--(Payments!$C$5:$C$1355=A73),--(Payments!$D$5:$D$1355=$W$3),Payments!$E$5:$E$1355)","v":0},{"$f":"SUMPRODUCT(--(Payments!$C$5:$C$1355=A73),--(Payments!$D$5:$D$1355=$X$3),Payments!$E$5:$E$1355)","v":0},{"$f":"SUMPRODUCT(--(Payments!$C$5:$C$1355=A73),--(Payments!$D$5:$D$1355=$Y$3),Payments!$E$5:$E$1355)","v":0},{"$f":"SUMPRODUCT(--(Payments!$C$5:$C$1355=A73),--(Payments!$D$5:$D$1355=$Z$3),Payments!$E$5:$E$1355)","v":0},{"$f":"SUMPRODUCT(--(Payments!$C$5:$C$1355=A73),--(Payments!$D$5:$D$1355=$AA$3),Payments!$E$5:$E$1355)","v":0},{"$f":"SUMPRODUCT(--(Payments!$C$5:$C$1355=A73),--(Payments!$D$5:$D$1355=$AB$3),Payments!$E$5:$E$1355)","v":0},{"$f":"SUMPRODUCT(--(Payments!$C$5:$C$1355=A73),--(Payments!$D$5:$D$1355=$AC$3),Payments!$E$5:$E$1355)","v":0},{"$f":"SUMPRODUCT(--(Payments!$C$5:$C$1355=A73),--(Payments!$D$5:$D$1355=$AD$3),Payments!$E$5:$E$1355)","v":0},null,0,0,0,0]
[{"$f":"Descriptions!I75","v":0},{"$f":"Descriptions!K75","v":"Administration Costs"},{"$f":"Descriptions!L75","v":0},{"$f":"SUMPRODUCT(--(Payments!$C$5:$C$1355=A74),--(Payments!$D$5:$D$1355=$D$3),Payments!$E$5:$E$1355)","v":0},{"$f":"SUMPRODUCT(--(Payments!$C$5:$C$1355=A74),--(Payments!$D$5:$D$1355=$E$3),Payments!$E$5:$E$1355)","v":0},{"$f":"SUMPRODUCT(--(Payments!$C$5:$C$1355=A74),--(Payments!$D$5:$D$1355=$F$3),Payments!$E$5:$E$1355)","v":0},{"$f":"SUMPRODUCT(--(Payments!$C$5:$C$1355=A74),--(Payments!$D$5:$D$1355=$G$3),Payments!$E$5:$E$1355)","v":0},{"$f":"SUMPRODUCT(--(Payments!$C$5:$C$1355=A74),--(Payments!$D$5:$D$1355=$H$3),Payments!$E$5:$E$1355)","v":0},{"$f":"SUMPRODUCT(--(Payments!$C$5:$C$1355=A74),--(Payments!$D$5:$D$1355=$I$3),Payments!$E$5:$E$1355)","v":0},{"$f":"SUMPRODUCT(--(Payments!$C$5:$C$1355=A74),--(Payments!$D$5:$D$1355=$J$3),Payments!$E$5:$E$1355)","v":0},{"$f":"SUMPRODUCT(--(Payments!$C$5:$C$1355=A74),--(Payments!$D$5:$D$1355=$K$3),Payments!$E$5:$E$1355)","v":0},{"$f":"SUMPRODUCT(--(Payments!$C$5:$C$1355=A74),--(Payments!$D$5:$D$1355=$L$3),Payments!$E$5:$E$1355)","v":0},{"$f":"SUMPRODUCT(--(Payments!$C$5:$C$1355=A74),--(Payments!$D$5:$D$1355=$M$3),Payments!$E$5:$E$1355)","v":0},{"$f":"SUMPRODUCT(--(Payments!$C$5:$C$1355=A74),--(Payments!$D$5:$D$1355=$N$3),Payments!$E$5:$E$1355)","v":0},{"$f":"SUMPRODUCT(--(Payments!$C$5:$C$1355=A74),--(Payments!$D$5:$D$1355=$O$3),Payments!$E$5:$E$1355)","v":0},{"$f":"SUMPRODUCT(--(Payments!$C$5:$C$1355=A74),--(Payments!$D$5:$D$1355=$P$3),Payments!$E$5:$E$1355)","v":0},{"$f":"SUMPRODUCT(--(Payments!$C$5:$C$1355=A74),--(Payments!$D$5:$D$1355=$Q$3),Payments!$E$5:$E$1355)","v":0},{"$f":"SUMPRODUCT(--(Payments!$C$5:$C$1355=A74),--(Payments!$D$5:$D$1355=$R$3),Payments!$E$5:$E$1355)","v":0},{"$f":"SUMPRODUCT(--(Payments!$C$5:$C$1355=A74),--(Payments!$D$5:$D$1355=$S$3),Payments!$E$5:$E$1355)","v":0},{"$f":"SUMPRODUCT(--(Payments!$C$5:$C$1355=A74),--(Payments!$D$5:$D$1355=$T$3),Payments!$E$5:$E$1355)","v":0},{"$f":"SUMPRODUCT(--(Payments!$C$5:$C$1355=A74),--(Payments!$D$5:$D$1355=$U$3),Payments!$E$5:$E$1355)","v":0},{"$f":"SUMPRODUCT(--(Payments!$C$5:$C$1355=A74),--(Payments!$D$5:$D$1355=$V$3),Payments!$E$5:$E$1355)","v":0},{"$f":"SUMPRODUCT(--(Payments!$C$5:$C$1355=A74),--(Payments!$D$5:$D$1355=$W$3),Payments!$E$5:$E$1355)","v":0},{"$f":"SUMPRODUCT(--(Payments!$C$5:$C$1355=A74),--(Payments!$D$5:$D$1355=$X$3),Payments!$E$5:$E$1355)","v":0},{"$f":"SUMPRODUCT(--(Payments!$C$5:$C$1355=A74),--(Payments!$D$5:$D$1355=$Y$3),Payments!$E$5:$E$1355)","v":0},{"$f":"SUMPRODUCT(--(Payments!$C$5:$C$1355=A74),--(Payments!$D$5:$D$1355=$Z$3),Payments!$E$5:$E$1355)","v":0},{"$f":"SUMPRODUCT(--(Payments!$C$5:$C$1355=A74),--(Payments!$D$5:$D$1355=$AA$3),Payments!$E$5:$E$1355)","v":0},{"$f":"SUMPRODUCT(--(Payments!$C$5:$C$1355=A74),--(Payments!$D$5:$D$1355=$AB$3),Payments!$E$5:$E$1355)","v":0},{"$f":"SUMPRODUCT(--(Payments!$C$5:$C$1355=A74),--(Payments!$D$5:$D$1355=$AC$3),Payments!$E$5:$E$1355)","v":0},{"$f":"SUMPRODUCT(--(Payments!$C$5:$C$1355=A74),--(Payments!$D$5:$D$1355=$AD$3),Payments!$E$5:$E$1355)","v":0},null,0,0,0,0]
[{"$f":"Descriptions!I76","v":0},{"$f":"Descriptions!K76","v":"Administration Costs"},{"$f":"Descriptions!L76","v":0},{"$f":"SUMPRODUCT(--(Payments!$C$5:$C$1355=A75),--(Payments!$D$5:$D$1355=$D$3),Payments!$E$5:$E$1355)","v":0},{"$f":"SUMPRODUCT(--(Payments!$C$5:$C$1355=A75),--(Payments!$D$5:$D$1355=$E$3),Payments!$E$5:$E$1355)","v":0},{"$f":"SUMPRODUCT(--(Payments!$C$5:$C$1355=A75),--(Payments!$D$5:$D$1355=$F$3),Payments!$E$5:$E$1355)","v":0},{"$f":"SUMPRODUCT(--(Payments!$C$5:$C$1355=A75),--(Payments!$D$5:$D$1355=$G$3),Payments!$E$5:$E$1355)","v":0},{"$f":"SUMPRODUCT(--(Payments!$C$5:$C$1355=A75),--(Payments!$D$5:$D$1355=$H$3),Payments!$E$5:$E$1355)","v":0},{"$f":"SUMPRODUCT(--(Payments!$C$5:$C$1355=A75),--(Payments!$D$5:$D$1355=$I$3),Payments!$E$5:$E$1355)","v":0},{"$f":"SUMPRODUCT(--(Payments!$C$5:$C$1355=A75),--(Payments!$D$5:$D$1355=$J$3),Payments!$E$5:$E$1355)","v":0},{"$f":"SUMPRODUCT(--(Payments!$C$5:$C$1355=A75),--(Payments!$D$5:$D$1355=$K$3),Payments!$E$5:$E$1355)","v":0},{"$f":"SUMPRODUCT(--(Payments!$C$5:$C$1355=A75),--(Payments!$D$5:$D$1355=$L$3),Payments!$E$5:$E$1355)","v":0},{"$f":"SUMPRODUCT(--(Payments!$C$5:$C$1355=A75),--(Payments!$D$5:$D$1355=$M$3),Payments!$E$5:$E$1355)","v":0},{"$f":"SUMPRODUCT(--(Payments!$C$5:$C$1355=A75),--(Payments!$D$5:$D$1355=$N$3),Payments!$E$5:$E$1355)","v":0},{"$f":"SUMPRODUCT(--(Payments!$C$5:$C$1355=A75),--(Payments!$D$5:$D$1355=$O$3),Payments!$E$5:$E$1355)","v":0},{"$f":"SUMPRODUCT(--(Payments!$C$5:$C$1355=A75),--(Payments!$D$5:$D$1355=$P$3),Payments!$E$5:$E$1355)","v":0},{"$f":"SUMPRODUCT(--(Payments!$C$5:$C$1355=A75),--(Payments!$D$5:$D$1355=$Q$3),Payments!$E$5:$E$1355)","v":0},{"$f":"SUMPRODUCT(--(Payments!$C$5:$C$1355=A75),--(Payments!$D$5:$D$1355=$R$3),Payments!$E$5:$E$1355)","v":0},{"$f":"SUMPRODUCT(--(Payments!$C$5:$C$1355=A75),--(Payments!$D$5:$D$1355=$S$3),Payments!$E$5:$E$1355)","v":0},{"$f":"SUMPRODUCT(--(Payments!$C$5:$C$1355=A75),--(Payments!$D$5:$D$1355=$T$3),Payments!$E$5:$E$1355)","v":0},{"$f":"SUMPRODUCT(--(Payments!$C$5:$C$1355=A75),--(Payments!$D$5:$D$1355=$U$3),Payments!$E$5:$E$1355)","v":0},{"$f":"SUMPRODUCT(--(Payments!$C$5:$C$1355=A75),--(Payments!$D$5:$D$1355=$V$3),Payments!$E$5:$E$1355)","v":0},{"$f":"SUMPRODUCT(--(Payments!$C$5:$C$1355=A75),--(Payments!$D$5:$D$1355=$W$3),Payments!$E$5:$E$1355)","v":0},{"$f":"SUMPRODUCT(--(Payments!$C$5:$C$1355=A75),--(Payments!$D$5:$D$1355=$X$3),Payments!$E$5:$E$1355)","v":0},{"$f":"SUMPRODUCT(--(Payments!$C$5:$C$1355=A75),--(Payments!$D$5:$D$1355=$Y$3),Payments!$E$5:$E$1355)","v":0},{"$f":"SUMPRODUCT(--(Payments!$C$5:$C$1355=A75),--(Payments!$D$5:$D$1355=$Z$3),Payments!$E$5:$E$1355)","v":0},{"$f":"SUMPRODUCT(--(Payments!$C$5:$C$1355=A75),--(Payments!$D$5:$D$1355=$AA$3),Payments!$E$5:$E$1355)","v":0},{"$f":"SUMPRODUCT(--(Payments!$C$5:$C$1355=A75),--(Payments!$D$5:$D$1355=$AB$3),Payments!$E$5:$E$1355)","v":0},{"$f":"SUMPRODUCT(--(Payments!$C$5:$C$1355=A75),--(Payments!$D$5:$D$1355=$AC$3),Payments!$E$5:$E$1355)","v":0},{"$f":"SUMPRODUCT(--(Payments!$C$5:$C$1355=A75),--(Payments!$D$5:$D$1355=$AD$3),Payments!$E$5:$E$1355)","v":0},null,0,0,0,0]
[{"$f":"Descriptions!I77","v":0},{"$f":"Descriptions!K77","v":"Administration Costs"},{"$f":"Descriptions!L77","v":0},{"$f":"SUMPRODUCT(--(Payments!$C$5:$C$1355=A76),--(Payments!$D$5:$D$1355=$D$3),Payments!$E$5:$E$1355)","v":0},{"$f":"SUMPRODUCT(--(Payments!$C$5:$C$1355=A76),--(Payments!$D$5:$D$1355=$E$3),Payments!$E$5:$E$1355)","v":0},{"$f":"SUMPRODUCT(--(Payments!$C$5:$C$1355=A76),--(Payments!$D$5:$D$1355=$F$3),Payments!$E$5:$E$1355)","v":0},{"$f":"SUMPRODUCT(--(Payments!$C$5:$C$1355=A76),--(Payments!$D$5:$D$1355=$G$3),Payments!$E$5:$E$1355)","v":0},{"$f":"SUMPRODUCT(--(Payments!$C$5:$C$1355=A76),--(Payments!$D$5:$D$1355=$H$3),Payments!$E$5:$E$1355)","v":0},{"$f":"SUMPRODUCT(--(Payments!$C$5:$C$1355=A76),--(Payments!$D$5:$D$1355=$I$3),Payments!$E$5:$E$1355)","v":0},{"$f":"SUMPRODUCT(--(Payments!$C$5:$C$1355=A76),--(Payments!$D$5:$D$1355=$J$3),Payments!$E$5:$E$1355)","v":0},{"$f":"SUMPRODUCT(--(Payments!$C$5:$C$1355=A76),--(Payments!$D$5:$D$1355=$K$3),Payments!$E$5:$E$1355)","v":0},{"$f":"SUMPRODUCT(--(Payments!$C$5:$C$1355=A76),--(Payments!$D$5:$D$1355=$L$3),Payments!$E$5:$E$1355)","v":0},{"$f":"SUMPRODUCT(--(Payments!$C$5:$C$1355=A76),--(Payments!$D$5:$D$1355=$M$3),Payments!$E$5:$E$1355)","v":0},{"$f":"SUMPRODUCT(--(Payments!$C$5:$C$1355=A76),--(Payments!$D$5:$D$1355=$N$3),Payments!$E$5:$E$1355)","v":0},{"$f":"SUMPRODUCT(--(Payments!$C$5:$C$1355=A76),--(Payments!$D$5:$D$1355=$O$3),Payments!$E$5:$E$1355)","v":0},{"$f":"SUMPRODUCT(--(Payments!$C$5:$C$1355=A76),--(Payments!$D$5:$D$1355=$P$3),Payments!$E$5:$E$1355)","v":0},{"$f":"SUMPRODUCT(--(Payments!$C$5:$C$1355=A76),--(Payments!$D$5:$D$1355=$Q$3),Payments!$E$5:$E$1355)","v":0},{"$f":"SUMPRODUCT(--(Payments!$C$5:$C$1355=A76),--(Payments!$D$5:$D$1355=$R$3),Payments!$E$5:$E$1355)","v":0},{"$f":"SUMPRODUCT(--(Payments!$C$5:$C$1355=A76),--(Payments!$D$5:$D$1355=$S$3),Payments!$E$5:$E$1355)","v":0},{"$f":"SUMPRODUCT(--(Payments!$C$5:$C$1355=A76),--(Payments!$D$5:$D$1355=$T$3),Payments!$E$5:$E$1355)","v":0},{"$f":"SUMPRODUCT(--(Payments!$C$5:$C$1355=A76),--(Payments!$D$5:$D$1355=$U$3),Payments!$E$5:$E$1355)","v":0},{"$f":"SUMPRODUCT(--(Payments!$C$5:$C$1355=A76),--(Payments!$D$5:$D$1355=$V$3),Payments!$E$5:$E$1355)","v":0},{"$f":"SUMPRODUCT(--(Payments!$C$5:$C$1355=A76),--(Payments!$D$5:$D$1355=$W$3),Payments!$E$5:$E$1355)","v":0},{"$f":"SUMPRODUCT(--(Payments!$C$5:$C$1355=A76),--(Payments!$D$5:$D$1355=$X$3),Payments!$E$5:$E$1355)","v":0},{"$f":"SUMPRODUCT(--(Payments!$C$5:$C$1355=A76),--(Payments!$D$5:$D$1355=$Y$3),Payments!$E$5:$E$1355)","v":0},{"$f":"SUMPRODUCT(--(Payments!$C$5:$C$1355=A76),--(Payments!$D$5:$D$1355=$Z$3),Payments!$E$5:$E$1355)","v":0},{"$f":"SUMPRODUCT(--(Payments!$C$5:$C$1355=A76),--(Payments!$D$5:$D$1355=$AA$3),Payments!$E$5:$E$1355)","v":0},{"$f":"SUMPRODUCT(--(Payments!$C$5:$C$1355=A76),--(Payments!$D$5:$D$1355=$AB$3),Payments!$E$5:$E$1355)","v":0},{"$f":"SUMPRODUCT(--(Payments!$C$5:$C$1355=A76),--(Payments!$D$5:$D$1355=$AC$3),Payments!$E$5:$E$1355)","v":0},{"$f":"SUMPRODUCT(--(Payments!$C$5:$C$1355=A76),--(Payments!$D$5:$D$1355=$AD$3),Payments!$E$5:$E$1355)","v":0},null,0,0,0,0]
[{"$f":"Descriptions!I78","v":0},{"$f":"Descriptions!K78","v":"Administration Costs"},{"$f":"Descriptions!L78","v":0},{"$f":"SUMPRODUCT(--(Payments!$C$5:$C$1355=A77),--(Payments!$D$5:$D$1355=$D$3),Payments!$E$5:$E$1355)","v":0},{"$f":"SUMPRODUCT(--(Payments!$C$5:$C$1355=A77),--(Payments!$D$5:$D$1355=$E$3),Payments!$E$5:$E$1355)","v":0},{"$f":"SUMPRODUCT(--(Payments!$C$5:$C$1355=A77),--(Payments!$D$5:$D$1355=$F$3),Payments!$E$5:$E$1355)","v":0},{"$f":"SUMPRODUCT(--(Payments!$C$5:$C$1355=A77),--(Payments!$D$5:$D$1355=$G$3),Payments!$E$5:$E$1355)","v":0},{"$f":"SUMPRODUCT(--(Payments!$C$5:$C$1355=A77),--(Payments!$D$5:$D$1355=$H$3),Payments!$E$5:$E$1355)","v":0},{"$f":"SUMPRODUCT(--(Payments!$C$5:$C$1355=A77),--(Payments!$D$5:$D$1355=$I$3),Payments!$E$5:$E$1355)","v":0},{"$f":"SUMPRODUCT(--(Payments!$C$5:$C$1355=A77),--(Payments!$D$5:$D$1355=$J$3),Payments!$E$5:$E$1355)","v":0},{"$f":"SUMPRODUCT(--(Payments!$C$5:$C$1355=A77),--(Payments!$D$5:$D$1355=$K$3),Payments!$E$5:$E$1355)","v":0},{"$f":"SUMPRODUCT(--(Payments!$C$5:$C$1355=A77),--(Payments!$D$5:$D$1355=$L$3),Payments!$E$5:$E$1355)","v":0},{"$f":"SUMPRODUCT(--(Payments!$C$5:$C$1355=A77),--(Payments!$D$5:$D$1355=$M$3),Payments!$E$5:$E$1355)","v":0},{"$f":"SUMPRODUCT(--(Payments!$C$5:$C$1355=A77),--(Payments!$D$5:$D$1355=$N$3),Payments!$E$5:$E$1355)","v":0},{"$f":"SUMPRODUCT(--(Payments!$C$5:$C$1355=A77),--(Payments!$D$5:$D$1355=$O$3),Payments!$E$5:$E$1355)","v":0},{"$f":"SUMPRODUCT(--(Payments!$C$5:$C$1355=A77),--(Payments!$D$5:$D$1355=$P$3),Payments!$E$5:$E$1355)","v":0},{"$f":"SUMPRODUCT(--(Payments!$C$5:$C$1355=A77),--(Payments!$D$5:$D$1355=$Q$3),Payments!$E$5:$E$1355)","v":0},{"$f":"SUMPRODUCT(--(Payments!$C$5:$C$1355=A77),--(Payments!$D$5:$D$1355=$R$3),Payments!$E$5:$E$1355)","v":0},{"$f":"SUMPRODUCT(--(Payments!$C$5:$C$1355=A77),--(Payments!$D$5:$D$1355=$S$3),Payments!$E$5:$E$1355)","v":0},{"$f":"SUMPRODUCT(--(Payments!$C$5:$C$1355=A77),--(Payments!$D$5:$D$1355=$T$3),Payments!$E$5:$E$1355)","v":0},{"$f":"SUMPRODUCT(--(Payments!$C$5:$C$1355=A77),--(Payments!$D$5:$D$1355=$U$3),Payments!$E$5:$E$1355)","v":0},{"$f":"SUMPRODUCT(--(Payments!$C$5:$C$1355=A77),--(Payments!$D$5:$D$1355=$V$3),Payments!$E$5:$E$1355)","v":0},{"$f":"SUMPRODUCT(--(Payments!$C$5:$C$1355=A77),--(Payments!$D$5:$D$1355=$W$3),Payments!$E$5:$E$1355)","v":0},{"$f":"SUMPRODUCT(--(Payments!$C$5:$C$1355=A77),--(Payments!$D$5:$D$1355=$X$3),Payments!$E$5:$E$1355)","v":0},{"$f":"SUMPRODUCT(--(Payments!$C$5:$C$1355=A77),--(Payments!$D$5:$D$1355=$Y$3),Payments!$E$5:$E$1355)","v":0},{"$f":"SUMPRODUCT(--(Payments!$C$5:$C$1355=A77),--(Payments!$D$5:$D$1355=$Z$3),Payments!$E$5:$E$1355)","v":0},{"$f":"SUMPRODUCT(--(Payments!$C$5:$C$1355=A77),--(Payments!$D$5:$D$1355=$AA$3),Payments!$E$5:$E$1355)","v":0},{"$f":"SUMPRODUCT(--(Payments!$C$5:$C$1355=A77),--(Payments!$D$5:$D$1355=$AB$3),Payments!$E$5:$E$1355)","v":0},{"$f":"SUMPRODUCT(--(Payments!$C$5:$C$1355=A77),--(Payments!$D$5:$D$1355=$AC$3),Payments!$E$5:$E$1355)","v":0},{"$f":"SUMPRODUCT(--(Payments!$C$5:$C$1355=A77),--(Payments!$D$5:$D$1355=$AD$3),Payments!$E$5:$E$1355)","v":0},null,0,0,0,0]
[{"$f":"Descriptions!I79","v":0},{"$f":"Descriptions!K79","v":"Administration Costs"},{"$f":"Descriptions!L79","v":0},{"$f":"SUMPRODUCT(--(Payments!$C$5:$C$1355=A78),--(Payments!$D$5:$D$1355=$D$3),Payments!$E$5:$E$1355)","v":0},{"$f":"SUMPRODUCT(--(Payments!$C$5:$C$1355=A78),--(Payments!$D$5:$D$1355=$E$3),Payments!$E$5:$E$1355)","v":0},{"$f":"SUMPRODUCT(--(Payments!$C$5:$C$1355=A78),--(Payments!$D$5:$D$1355=$F$3),Payments!$E$5:$E$1355)","v":0},{"$f":"SUMPRODUCT(--(Payments!$C$5:$C$1355=A78),--(Payments!$D$5:$D$1355=$G$3),Payments!$E$5:$E$1355)","v":0},{"$f":"SUMPRODUCT(--(Payments!$C$5:$C$1355=A78),--(Payments!$D$5:$D$1355=$H$3),Payments!$E$5:$E$1355)","v":0},{"$f":"SUMPRODUCT(--(Payments!$C$5:$C$1355=A78),--(Payments!$D$5:$D$1355=$I$3),Payments!$E$5:$E$1355)","v":0},{"$f":"SUMPRODUCT(--(Payments!$C$5:$C$1355=A78),--(Payments!$D$5:$D$1355=$J$3),Payments!$E$5:$E$1355)","v":0},{"$f":"SUMPRODUCT(--(Payments!$C$5:$C$1355=A78),--(Payments!$D$5:$D$1355=$K$3),Payments!$E$5:$E$1355)","v":0},{"$f":"SUMPRODUCT(--(Payments!$C$5:$C$1355=A78),--(Payments!$D$5:$D$1355=$L$3),Payments!$E$5:$E$1355)","v":0},{"$f":"SUMPRODUCT(--(Payments!$C$5:$C$1355=A78),--(Payments!$D$5:$D$1355=$M$3),Payments!$E$5:$E$1355)","v":0},{"$f":"SUMPRODUCT(--(Payments!$C$5:$C$1355=A78),--(Payments!$D$5:$D$1355=$N$3),Payments!$E$5:$E$1355)","v":0},{"$f":"SUMPRODUCT(--(Payments!$C$5:$C$1355=A78),--(Payments!$D$5:$D$1355=$O$3),Payments!$E$5:$E$1355)","v":0},{"$f":"SUMPRODUCT(--(Payments!$C$5:$C$1355=A78),--(Payments!$D$5:$D$1355=$P$3),Payments!$E$5:$E$1355)","v":0},{"$f":"SUMPRODUCT(--(Payments!$C$5:$C$1355=A78),--(Payments!$D$5:$D$1355=$Q$3),Payments!$E$5:$E$1355)","v":0},{"$f":"SUMPRODUCT(--(Payments!$C$5:$C$1355=A78),--(Payments!$D$5:$D$1355=$R$3),Payments!$E$5:$E$1355)","v":0},{"$f":"SUMPRODUCT(--(Payments!$C$5:$C$1355=A78),--(Payments!$D$5:$D$1355=$S$3),Payments!$E$5:$E$1355)","v":0},{"$f":"SUMPRODUCT(--(Payments!$C$5:$C$1355=A78),--(Payments!$D$5:$D$1355=$T$3),Payments!$E$5:$E$1355)","v":0},{"$f":"SUMPRODUCT(--(Payments!$C$5:$C$1355=A78),--(Payments!$D$5:$D$1355=$U$3),Payments!$E$5:$E$1355)","v":0},{"$f":"SUMPRODUCT(--(Payments!$C$5:$C$1355=A78),--(Payments!$D$5:$D$1355=$V$3),Payments!$E$5:$E$1355)","v":0},{"$f":"SUMPRODUCT(--(Payments!$C$5:$C$1355=A78),--(Payments!$D$5:$D$1355=$W$3),Payments!$E$5:$E$1355)","v":0},{"$f":"SUMPRODUCT(--(Payments!$C$5:$C$1355=A78),--(Payments!$D$5:$D$1355=$X$3),Payments!$E$5:$E$1355)","v":0},{"$f":"SUMPRODUCT(--(Payments!$C$5:$C$1355=A78),--(Payments!$D$5:$D$1355=$Y$3),Payments!$E$5:$E$1355)","v":0},{"$f":"SUMPRODUCT(--(Payments!$C$5:$C$1355=A78),--(Payments!$D$5:$D$1355=$Z$3),Payments!$E$5:$E$1355)","v":0},{"$f":"SUMPRODUCT(--(Payments!$C$5:$C$1355=A78),--(Payments!$D$5:$D$1355=$AA$3),Payments!$E$5:$E$1355)","v":0},{"$f":"SUMPRODUCT(--(Payments!$C$5:$C$1355=A78),--(Payments!$D$5:$D$1355=$AB$3),Payments!$E$5:$E$1355)","v":0},{"$f":"SUMPRODUCT(--(Payments!$C$5:$C$1355=A78),--(Payments!$D$5:$D$1355=$AC$3),Payments!$E$5:$E$1355)","v":0},{"$f":"SUMPRODUCT(--(Payments!$C$5:$C$1355=A78),--(Payments!$D$5:$D$1355=$AD$3),Payments!$E$5:$E$1355)","v":0},null,0,0,0,0]
[{"$f":"Descriptions!I80","v":0},{"$f":"Descriptions!K80","v":"Administration Costs"},{"$f":"Descriptions!L80","v":0},{"$f":"SUMPRODUCT(--(Payments!$C$5:$C$1355=A79),--(Payments!$D$5:$D$1355=$D$3),Payments!$E$5:$E$1355)","v":0},{"$f":"SUMPRODUCT(--(Payments!$C$5:$C$1355=A79),--(Payments!$D$5:$D$1355=$E$3),Payments!$E$5:$E$1355)","v":0},{"$f":"SUMPRODUCT(--(Payments!$C$5:$C$1355=A79),--(Payments!$D$5:$D$1355=$F$3),Payments!$E$5:$E$1355)","v":0},{"$f":"SUMPRODUCT(--(Payments!$C$5:$C$1355=A79),--(Payments!$D$5:$D$1355=$G$3),Payments!$E$5:$E$1355)","v":0},{"$f":"SUMPRODUCT(--(Payments!$C$5:$C$1355=A79),--(Payments!$D$5:$D$1355=$H$3),Payments!$E$5:$E$1355)","v":0},{"$f":"SUMPRODUCT(--(Payments!$C$5:$C$1355=A79),--(Payments!$D$5:$D$1355=$I$3),Payments!$E$5:$E$1355)","v":0},{"$f":"SUMPRODUCT(--(Payments!$C$5:$C$1355=A79),--(Payments!$D$5:$D$1355=$J$3),Payments!$E$5:$E$1355)","v":0},{"$f":"SUMPRODUCT(--(Payments!$C$5:$C$1355=A79),--(Payments!$D$5:$D$1355=$K$3),Payments!$E$5:$E$1355)","v":0},{"$f":"SUMPRODUCT(--(Payments!$C$5:$C$1355=A79),--(Payments!$D$5:$D$1355=$L$3),Payments!$E$5:$E$1355)","v":0},{"$f":"SUMPRODUCT(--(Payments!$C$5:$C$1355=A79),--(Payments!$D$5:$D$1355=$M$3),Payments!$E$5:$E$1355)","v":0},{"$f":"SUMPRODUCT(--(Payments!$C$5:$C$1355=A79),--(Payments!$D$5:$D$1355=$N$3),Payments!$E$5:$E$1355)","v":0},{"$f":"SUMPRODUCT(--(Payments!$C$5:$C$1355=A79),--(Payments!$D$5:$D$1355=$O$3),Payments!$E$5:$E$1355)","v":0},{"$f":"SUMPRODUCT(--(Payments!$C$5:$C$1355=A79),--(Payments!$D$5:$D$1355=$P$3),Payments!$E$5:$E$1355)","v":0},{"$f":"SUMPRODUCT(--(Payments!$C$5:$C$1355=A79),--(Payments!$D$5:$D$1355=$Q$3),Payments!$E$5:$E$1355)","v":0},{"$f":"SUMPRODUCT(--(Payments!$C$5:$C$1355=A79),--(Payments!$D$5:$D$1355=$R$3),Payments!$E$5:$E$1355)","v":0},{"$f":"SUMPRODUCT(--(Payments!$C$5:$C$1355=A79),--(Payments!$D$5:$D$1355=$S$3),Payments!$E$5:$E$1355)","v":0},{"$f":"SUMPRODUCT(--(Payments!$C$5:$C$1355=A79),--(Payments!$D$5:$D$1355=$T$3),Payments!$E$5:$E$1355)","v":0},{"$f":"SUMPRODUCT(--(Payments!$C$5:$C$1355=A79),--(Payments!$D$5:$D$1355=$U$3),Payments!$E$5:$E$1355)","v":0},{"$f":"SUMPRODUCT(--(Payments!$C$5:$C$1355=A79),--(Payments!$D$5:$D$1355=$V$3),Payments!$E$5:$E$1355)","v":0},{"$f":"SUMPRODUCT(--(Payments!$C$5:$C$1355=A79),--(Payments!$D$5:$D$1355=$W$3),Payments!$E$5:$E$1355)","v":0},{"$f":"SUMPRODUCT(--(Payments!$C$5:$C$1355=A79),--(Payments!$D$5:$D$1355=$X$3),Payments!$E$5:$E$1355)","v":0},{"$f":"SUMPRODUCT(--(Payments!$C$5:$C$1355=A79),--(Payments!$D$5:$D$1355=$Y$3),Payments!$E$5:$E$1355)","v":0},{"$f":"SUMPRODUCT(--(Payments!$C$5:$C$1355=A79),--(Payments!$D$5:$D$1355=$Z$3),Payments!$E$5:$E$1355)","v":0},{"$f":"SUMPRODUCT(--(Payments!$C$5:$C$1355=A79),--(Payments!$D$5:$D$1355=$AA$3),Payments!$E$5:$E$1355)","v":0},{"$f":"SUMPRODUCT(--(Payments!$C$5:$C$1355=A79),--(Payments!$D$5:$D$1355=$AB$3),Payments!$E$5:$E$1355)","v":0},{"$f":"SUMPRODUCT(--(Payments!$C$5:$C$1355=A79),--(Payments!$D$5:$D$1355=$AC$3),Payments!$E$5:$E$1355)","v":0},{"$f":"SUMPRODUCT(--(Payments!$C$5:$C$1355=A79),--(Payments!$D$5:$D$1355=$AD$3),Payments!$E$5:$E$1355)","v":0},null,0,0,0,0]
[{"$f":"Descriptions!I81","v":0},{"$f":"Descriptions!K81","v":"Administration Costs"},{"$f":"Descriptions!L81","v":0},{"$f":"SUMPRODUCT(--(Payments!$C$5:$C$1355=A80),--(Payments!$D$5:$D$1355=$D$3),Payments!$E$5:$E$1355)","v":0},{"$f":"SUMPRODUCT(--(Payments!$C$5:$C$1355=A80),--(Payments!$D$5:$D$1355=$E$3),Payments!$E$5:$E$1355)","v":0},{"$f":"SUMPRODUCT(--(Payments!$C$5:$C$1355=A80),--(Payments!$D$5:$D$1355=$F$3),Payments!$E$5:$E$1355)","v":0},{"$f":"SUMPRODUCT(--(Payments!$C$5:$C$1355=A80),--(Payments!$D$5:$D$1355=$G$3),Payments!$E$5:$E$1355)","v":0},{"$f":"SUMPRODUCT(--(Payments!$C$5:$C$1355=A80),--(Payments!$D$5:$D$1355=$H$3),Payments!$E$5:$E$1355)","v":0},{"$f":"SUMPRODUCT(--(Payments!$C$5:$C$1355=A80),--(Payments!$D$5:$D$1355=$I$3),Payments!$E$5:$E$1355)","v":0},{"$f":"SUMPRODUCT(--(Payments!$C$5:$C$1355=A80),--(Payments!$D$5:$D$1355=$J$3),Payments!$E$5:$E$1355)","v":0},{"$f":"SUMPRODUCT(--(Payments!$C$5:$C$1355=A80),--(Payments!$D$5:$D$1355=$K$3),Payments!$E$5:$E$1355)","v":0},{"$f":"SUMPRODUCT(--(Payments!$C$5:$C$1355=A80),--(Payments!$D$5:$D$1355=$L$3),Payments!$E$5:$E$1355)","v":0},{"$f":"SUMPRODUCT(--(Payments!$C$5:$C$1355=A80),--(Payments!$D$5:$D$1355=$M$3),Payments!$E$5:$E$1355)","v":0},{"$f":"SUMPRODUCT(--(Payments!$C$5:$C$1355=A80),--(Payments!$D$5:$D$1355=$N$3),Payments!$E$5:$E$1355)","v":0},{"$f":"SUMPRODUCT(--(Payments!$C$5:$C$1355=A80),--(Payments!$D$5:$D$1355=$O$3),Payments!$E$5:$E$1355)","v":0},{"$f":"SUMPRODUCT(--(Payments!$C$5:$C$1355=A80),--(Payments!$D$5:$D$1355=$P$3),Payments!$E$5:$E$1355)","v":0},{"$f":"SUMPRODUCT(--(Payments!$C$5:$C$1355=A80),--(Payments!$D$5:$D$1355=$Q$3),Payments!$E$5:$E$1355)","v":0},{"$f":"SUMPRODUCT(--(Payments!$C$5:$C$1355=A80),--(Payments!$D$5:$D$1355=$R$3),Payments!$E$5:$E$1355)","v":0},{"$f":"SUMPRODUCT(--(Payments!$C$5:$C$1355=A80),--(Payments!$D$5:$D$1355=$S$3),Payments!$E$5:$E$1355)","v":0},{"$f":"SUMPRODUCT(--(Payments!$C$5:$C$1355=A80),--(Payments!$D$5:$D$1355=$T$3),Payments!$E$5:$E$1355)","v":0},{"$f":"SUMPRODUCT(--(Payments!$C$5:$C$1355=A80),--(Payments!$D$5:$D$1355=$U$3),Payments!$E$5:$E$1355)","v":0},{"$f":"SUMPRODUCT(--(Payments!$C$5:$C$1355=A80),--(Payments!$D$5:$D$1355=$V$3),Payments!$E$5:$E$1355)","v":0},{"$f":"SUMPRODUCT(--(Payments!$C$5:$C$1355=A80),--(Payments!$D$5:$D$1355=$W$3),Payments!$E$5:$E$1355)","v":0},{"$f":"SUMPRODUCT(--(Payments!$C$5:$C$1355=A80),--(Payments!$D$5:$D$1355=$X$3),Payments!$E$5:$E$1355)","v":0},{"$f":"SUMPRODUCT(--(Payments!$C$5:$C$1355=A80),--(Payments!$D$5:$D$1355=$Y$3),Payments!$E$5:$E$1355)","v":0},{"$f":"SUMPRODUCT(--(Payments!$C$5:$C$1355=A80),--(Payments!$D$5:$D$1355=$Z$3),Payments!$E$5:$E$1355)","v":0},{"$f":"SUMPRODUCT(--(Payments!$C$5:$C$1355=A80),--(Payments!$D$5:$D$1355=$AA$3),Payments!$E$5:$E$1355)","v":0},{"$f":"SUMPRODUCT(--(Payments!$C$5:$C$1355=A80),--(Payments!$D$5:$D$1355=$AB$3),Payments!$E$5:$E$1355)","v":0},{"$f":"SUMPRODUCT(--(Payments!$C$5:$C$1355=A80),--(Payments!$D$5:$D$1355=$AC$3),Payments!$E$5:$E$1355)","v":0},{"$f":"SUMPRODUCT(--(Payments!$C$5:$C$1355=A80),--(Payments!$D$5:$D$1355=$AD$3),Payments!$E$5:$E$1355)","v":0},null,0,0,0,0]
[{"$f":"Descriptions!I82","v":0},{"$f":"Descriptions!K82","v":"Administration Costs"},{"$f":"Descriptions!L82","v":0},{"$f":"SUMPRODUCT(--(Payments!$C$5:$C$1355=A81),--(Payments!$D$5:$D$1355=$D$3),Payments!$E$5:$E$1355)","v":0},{"$f":"SUMPRODUCT(--(Payments!$C$5:$C$1355=A81),--(Payments!$D$5:$D$1355=$E$3),Payments!$E$5:$E$1355)","v":0},{"$f":"SUMPRODUCT(--(Payments!$C$5:$C$1355=A81),--(Payments!$D$5:$D$1355=$F$3),Payments!$E$5:$E$1355)","v":0},{"$f":"SUMPRODUCT(--(Payments!$C$5:$C$1355=A81),--(Payments!$D$5:$D$1355=$G$3),Payments!$E$5:$E$1355)","v":0},{"$f":"SUMPRODUCT(--(Payments!$C$5:$C$1355=A81),--(Payments!$D$5:$D$1355=$H$3),Payments!$E$5:$E$1355)","v":0},{"$f":"SUMPRODUCT(--(Payments!$C$5:$C$1355=A81),--(Payments!$D$5:$D$1355=$I$3),Payments!$E$5:$E$1355)","v":0},{"$f":"SUMPRODUCT(--(Payments!$C$5:$C$1355=A81),--(Payments!$D$5:$D$1355=$J$3),Payments!$E$5:$E$1355)","v":0},{"$f":"SUMPRODUCT(--(Payments!$C$5:$C$1355=A81),--(Payments!$D$5:$D$1355=$K$3),Payments!$E$5:$E$1355)","v":0},{"$f":"SUMPRODUCT(--(Payments!$C$5:$C$1355=A81),--(Payments!$D$5:$D$1355=$L$3),Payments!$E$5:$E$1355)","v":0},{"$f":"SUMPRODUCT(--(Payments!$C$5:$C$1355=A81),--(Payments!$D$5:$D$1355=$M$3),Payments!$E$5:$E$1355)","v":0},{"$f":"SUMPRODUCT(--(Payments!$C$5:$C$1355=A81),--(Payments!$D$5:$D$1355=$N$3),Payments!$E$5:$E$1355)","v":0},{"$f":"SUMPRODUCT(--(Payments!$C$5:$C$1355=A81),--(Payments!$D$5:$D$1355=$O$3),Payments!$E$5:$E$1355)","v":0},{"$f":"SUMPRODUCT(--(Payments!$C$5:$C$1355=A81),--(Payments!$D$5:$D$1355=$P$3),Payments!$E$5:$E$1355)","v":0},{"$f":"SUMPRODUCT(--(Payments!$C$5:$C$1355=A81),--(Payments!$D$5:$D$1355=$Q$3),Payments!$E$5:$E$1355)","v":0},{"$f":"SUMPRODUCT(--(Payments!$C$5:$C$1355=A81),--(Payments!$D$5:$D$1355=$R$3),Payments!$E$5:$E$1355)","v":0},{"$f":"SUMPRODUCT(--(Payments!$C$5:$C$1355=A81),--(Payments!$D$5:$D$1355=$S$3),Payments!$E$5:$E$1355)","v":0},{"$f":"SUMPRODUCT(--(Payments!$C$5:$C$1355=A81),--(Payments!$D$5:$D$1355=$T$3),Payments!$E$5:$E$1355)","v":0},{"$f":"SUMPRODUCT(--(Payments!$C$5:$C$1355=A81),--(Payments!$D$5:$D$1355=$U$3),Payments!$E$5:$E$1355)","v":0},{"$f":"SUMPRODUCT(--(Payments!$C$5:$C$1355=A81),--(Payments!$D$5:$D$1355=$V$3),Payments!$E$5:$E$1355)","v":0},{"$f":"SUMPRODUCT(--(Payments!$C$5:$C$1355=A81),--(Payments!$D$5:$D$1355=$W$3),Payments!$E$5:$E$1355)","v":0},{"$f":"SUMPRODUCT(--(Payments!$C$5:$C$1355=A81),--(Payments!$D$5:$D$1355=$X$3),Payments!$E$5:$E$1355)","v":0},{"$f":"SUMPRODUCT(--(Payments!$C$5:$C$1355=A81),--(Payments!$D$5:$D$1355=$Y$3),Payments!$E$5:$E$1355)","v":0},{"$f":"SUMPRODUCT(--(Payments!$C$5:$C$1355=A81),--(Payments!$D$5:$D$1355=$Z$3),Payments!$E$5:$E$1355)","v":0},{"$f":"SUMPRODUCT(--(Payments!$C$5:$C$1355=A81),--(Payments!$D$5:$D$1355=$AA$3),Payments!$E$5:$E$1355)","v":0},{"$f":"SUMPRODUCT(--(Payments!$C$5:$C$1355=A81),--(Payments!$D$5:$D$1355=$AB$3),Payments!$E$5:$E$1355)","v":0},{"$f":"SUMPRODUCT(--(Payments!$C$5:$C$1355=A81),--(Payments!$D$5:$D$1355=$AC$3),Payments!$E$5:$E$1355)","v":0},{"$f":"SUMPRODUCT(--(Payments!$C$5:$C$1355=A81),--(Payments!$D$5:$D$1355=$AD$3),Payments!$E$5:$E$1355)","v":0},null,0,0,0,0]
[{"$f":"Descriptions!I83","v":0},{"$f":"Descriptions!K83","v":"Administration Costs"},{"$f":"Descriptions!L83","v":0},{"$f":"SUMPRODUCT(--(Payments!$C$5:$C$1355=A82),--(Payments!$D$5:$D$1355=$D$3),Payments!$E$5:$E$1355)","v":0},{"$f":"SUMPRODUCT(--(Payments!$C$5:$C$1355=A82),--(Payments!$D$5:$D$1355=$E$3),Payments!$E$5:$E$1355)","v":0},{"$f":"SUMPRODUCT(--(Payments!$C$5:$C$1355=A82),--(Payments!$D$5:$D$1355=$F$3),Payments!$E$5:$E$1355)","v":0},{"$f":"SUMPRODUCT(--(Payments!$C$5:$C$1355=A82),--(Payments!$D$5:$D$1355=$G$3),Payments!$E$5:$E$1355)","v":0},{"$f":"SUMPRODUCT(--(Payments!$C$5:$C$1355=A82),--(Payments!$D$5:$D$1355=$H$3),Payments!$E$5:$E$1355)","v":0},{"$f":"SUMPRODUCT(--(Payments!$C$5:$C$1355=A82),--(Payments!$D$5:$D$1355=$I$3),Payments!$E$5:$E$1355)","v":0},{"$f":"SUMPRODUCT(--(Payments!$C$5:$C$1355=A82),--(Payments!$D$5:$D$1355=$J$3),Payments!$E$5:$E$1355)","v":0},{"$f":"SUMPRODUCT(--(Payments!$C$5:$C$1355=A82),--(Payments!$D$5:$D$1355=$K$3),Payments!$E$5:$E$1355)","v":0},{"$f":"SUMPRODUCT(--(Payments!$C$5:$C$1355=A82),--(Payments!$D$5:$D$1355=$L$3),Payments!$E$5:$E$1355)","v":0},{"$f":"SUMPRODUCT(--(Payments!$C$5:$C$1355=A82),--(Payments!$D$5:$D$1355=$M$3),Payments!$E$5:$E$1355)","v":0},{"$f":"SUMPRODUCT(--(Payments!$C$5:$C$1355=A82),--(Payments!$D$5:$D$1355=$N$3),Payments!$E$5:$E$1355)","v":0},{"$f":"SUMPRODUCT(--(Payments!$C$5:$C$1355=A82),--(Payments!$D$5:$D$1355=$O$3),Payments!$E$5:$E$1355)","v":0},{"$f":"SUMPRODUCT(--(Payments!$C$5:$C$1355=A82),--(Payments!$D$5:$D$1355=$P$3),Payments!$E$5:$E$1355)","v":0},{"$f":"SUMPRODUCT(--(Payments!$C$5:$C$1355=A82),--(Payments!$D$5:$D$1355=$Q$3),Payments!$E$5:$E$1355)","v":0},{"$f":"SUMPRODUCT(--(Payments!$C$5:$C$1355=A82),--(Payments!$D$5:$D$1355=$R$3),Payments!$E$5:$E$1355)","v":0},{"$f":"SUMPRODUCT(--(Payments!$C$5:$C$1355=A82),--(Payments!$D$5:$D$1355=$S$3),Payments!$E$5:$E$1355)","v":0},{"$f":"SUMPRODUCT(--(Payments!$C$5:$C$1355=A82),--(Payments!$D$5:$D$1355=$T$3),Payments!$E$5:$E$1355)","v":0},{"$f":"SUMPRODUCT(--(Payments!$C$5:$C$1355=A82),--(Payments!$D$5:$D$1355=$U$3),Payments!$E$5:$E$1355)","v":0},{"$f":"SUMPRODUCT(--(Payments!$C$5:$C$1355=A82),--(Payments!$D$5:$D$1355=$V$3),Payments!$E$5:$E$1355)","v":0},{"$f":"SUMPRODUCT(--(Payments!$C$5:$C$1355=A82),--(Payments!$D$5:$D$1355=$W$3),Payments!$E$5:$E$1355)","v":0},{"$f":"SUMPRODUCT(--(Payments!$C$5:$C$1355=A82),--(Payments!$D$5:$D$1355=$X$3),Payments!$E$5:$E$1355)","v":0},{"$f":"SUMPRODUCT(--(Payments!$C$5:$C$1355=A82),--(Payments!$D$5:$D$1355=$Y$3),Payments!$E$5:$E$1355)","v":0},{"$f":"SUMPRODUCT(--(Payments!$C$5:$C$1355=A82),--(Payments!$D$5:$D$1355=$Z$3),Payments!$E$5:$E$1355)","v":0},{"$f":"SUMPRODUCT(--(Payments!$C$5:$C$1355=A82),--(Payments!$D$5:$D$1355=$AA$3),Payments!$E$5:$E$1355)","v":0},{"$f":"SUMPRODUCT(--(Payments!$C$5:$C$1355=A82),--(Payments!$D$5:$D$1355=$AB$3),Payments!$E$5:$E$1355)","v":0},{"$f":"SUMPRODUCT(--(Payments!$C$5:$C$1355=A82),--(Payments!$D$5:$D$1355=$AC$3),Payments!$E$5:$E$1355)","v":0},{"$f":"SUMPRODUCT(--(Payments!$C$5:$C$1355=A82),--(Payments!$D$5:$D$1355=$AD$3),Payments!$E$5:$E$1355)","v":0},null,0,0,0,0]
[{"$f":"Descriptions!I84","v":0},{"$f":"Descriptions!K84","v":"Administration Costs"},{"$f":"Descriptions!L84","v":0},{"$f":"SUMPRODUCT(--(Payments!$C$5:$C$1355=A83),--(Payments!$D$5:$D$1355=$D$3),Payments!$E$5:$E$1355)","v":0},{"$f":"SUMPRODUCT(--(Payments!$C$5:$C$1355=A83),--(Payments!$D$5:$D$1355=$E$3),Payments!$E$5:$E$1355)","v":0},{"$f":"SUMPRODUCT(--(Payments!$C$5:$C$1355=A83),--(Payments!$D$5:$D$1355=$F$3),Payments!$E$5:$E$1355)","v":0},{"$f":"SUMPRODUCT(--(Payments!$C$5:$C$1355=A83),--(Payments!$D$5:$D$1355=$G$3),Payments!$E$5:$E$1355)","v":0},{"$f":"SUMPRODUCT(--(Payments!$C$5:$C$1355=A83),--(Payments!$D$5:$D$1355=$H$3),Payments!$E$5:$E$1355)","v":0},{"$f":"SUMPRODUCT(--(Payments!$C$5:$C$1355=A83),--(Payments!$D$5:$D$1355=$I$3),Payments!$E$5:$E$1355)","v":0},{"$f":"SUMPRODUCT(--(Payments!$C$5:$C$1355=A83),--(Payments!$D$5:$D$1355=$J$3),Payments!$E$5:$E$1355)","v":0},{"$f":"SUMPRODUCT(--(Payments!$C$5:$C$1355=A83),--(Payments!$D$5:$D$1355=$K$3),Payments!$E$5:$E$1355)","v":0},{"$f":"SUMPRODUCT(--(Payments!$C$5:$C$1355=A83),--(Payments!$D$5:$D$1355=$L$3),Payments!$E$5:$E$1355)","v":0},{"$f":"SUMPRODUCT(--(Payments!$C$5:$C$1355=A83),--(Payments!$D$5:$D$1355=$M$3),Payments!$E$5:$E$1355)","v":0},{"$f":"SUMPRODUCT(--(Payments!$C$5:$C$1355=A83),--(Payments!$D$5:$D$1355=$N$3),Payments!$E$5:$E$1355)","v":0},{"$f":"SUMPRODUCT(--(Payments!$C$5:$C$1355=A83),--(Payments!$D$5:$D$1355=$O$3),Payments!$E$5:$E$1355)","v":0},{"$f":"SUMPRODUCT(--(Payments!$C$5:$C$1355=A83),--(Payments!$D$5:$D$1355=$P$3),Payments!$E$5:$E$1355)","v":0},{"$f":"SUMPRODUCT(--(Payments!$C$5:$C$1355=A83),--(Payments!$D$5:$D$1355=$Q$3),Payments!$E$5:$E$1355)","v":0},{"$f":"SUMPRODUCT(--(Payments!$C$5:$C$1355=A83),--(Payments!$D$5:$D$1355=$R$3),Payments!$E$5:$E$1355)","v":0},{"$f":"SUMPRODUCT(--(Payments!$C$5:$C$1355=A83),--(Payments!$D$5:$D$1355=$S$3),Payments!$E$5:$E$1355)","v":0},{"$f":"SUMPRODUCT(--(Payments!$C$5:$C$1355=A83),--(Payments!$D$5:$D$1355=$T$3),Payments!$E$5:$E$1355)","v":0},{"$f":"SUMPRODUCT(--(Payments!$C$5:$C$1355=A83),--(Payments!$D$5:$D$1355=$U$3),Payments!$E$5:$E$1355)","v":0},{"$f":"SUMPRODUCT(--(Payments!$C$5:$C$1355=A83),--(Payments!$D$5:$D$1355=$V$3),Payments!$E$5:$E$1355)","v":0},{"$f":"SUMPRODUCT(--(Payments!$C$5:$C$1355=A83),--(Payments!$D$5:$D$1355=$W$3),Payments!$E$5:$E$1355)","v":0},{"$f":"SUMPRODUCT(--(Payments!$C$5:$C$1355=A83),--(Payments!$D$5:$D$1355=$X$3),Payments!$E$5:$E$1355)","v":0},{"$f":"SUMPRODUCT(--(Payments!$C$5:$C$1355=A83),--(Payments!$D$5:$D$1355=$Y$3),Payments!$E$5:$E$1355)","v":0},{"$f":"SUMPRODUCT(--(Payments!$C$5:$C$1355=A83),--(Payments!$D$5:$D$1355=$Z$3),Payments!$E$5:$E$1355)","v":0},{"$f":"SUMPRODUCT(--(Payments!$C$5:$C$1355=A83),--(Payments!$D$5:$D$1355=$AA$3),Payments!$E$5:$E$1355)","v":0},{"$f":"SUMPRODUCT(--(Payments!$C$5:$C$1355=A83),--(Payments!$D$5:$D$1355=$AB$3),Payments!$E$5:$E$1355)","v":0},{"$f":"SUMPRODUCT(--(Payments!$C$5:$C$1355=A83),--(Payments!$D$5:$D$1355=$AC$3),Payments!$E$5:$E$1355)","v":0},{"$f":"SUMPRODUCT(--(Payments!$C$5:$C$1355=A83),--(Payments!$D$5:$D$1355=$AD$3),Payments!$E$5:$E$1355)","v":0},null,0,0,0,0]
[]
[null,null,null,{"$f":"SUM(D5:D83)","v":0},{"$f":"SUM(E5:E83)","v":0},0,0,0,0,0,0,0,0,0,{"$f":"SUM(O5:O83)","v":0},0,0,0,0,0,0,0,0,0,0,0,0,0,0,0]

{"sheet":"Prior Year Auto","index":6,"n_rows":1018,"n_cols":24,"rows_kept":1018,"cut":false,"hidden":true,"merged":[]}
[null,"N",{"$f":"IF(C3=\"Fund A\",\"Y\",\"N\")","v":"Y"},{"$f":"IF(D3=\"Fund B\",\"Y\",\"N\")","v":"Y"},{"$f":"IF(E3=\"Fund C\",\"Y\",\"N\")","v":"Y"},{"$f":"IF(F3=\"Fund D\",\"Y\",\"N\")","v":"Y"},{"$f":"IF(G3=\"Fund E\",\"Y\",\"N\")","v":"Y"},{"$f":"IF(H3=\"Fund F\",\"Y\",\"N\")","v":"Y"},{"$f":"IF(I3=\"Fund G\",\"Y\",\"N\")","v":"Y"},{"$f":"IF(J3=\"Fund H\",\"Y\",\"N\")","v":"Y"},{"$f":"IF(K3=\"Fund I\",\"Y\",\"N\")","v":"Y"},{"$f":"IF(L3=\"Fund J\",\"Y\",\"N\")","v":"Y"},{"$f":"IF(M3=\"Fund K\",\"Y\",\"N\")","v":"Y"},{"$f":"IF(N3=\"Fund L\",\"Y\",\"N\")","v":"Y"},{"$f":"IF(O3=\"Fund M\",\"Y\",\"N\")","v":"Y"},{"$f":"IF(P3=\"Fund N\",\"Y\",\"N\")","v":"Y"},{"$f":"IF(Q3=\"Fund O\",\"Y\",\"N\")","v":"Y"},{"$f":"IF(R3=\"Fund P\",\"Y\",\"N\")","v":"Y"},{"$f":"IF(S3=\"Fund Q\",\"Y\",\"N\")","v":"Y"},{"$f":"IF(T3=\"Fund R\",\"Y\",\"N\")","v":"Y"},{"$f":"IF(U3=\"Fund S\",\"Y\",\"N\")","v":"Y"},{"$f":"IF(V3=\"Fund T\",\"Y\",\"N\")","v":"Y"},"Y",1]
[null,{"$f":"VLOOKUP(B3,'Bank and Fund Details'!$B$15:$C$36,2,FALSE)","v":"Unrestricted"},{"$f":"VLOOKUP(C3,'Bank and Fund Details'!$B$15:$C$36,2,FALSE)","v":"Unrestricted"},{"$f":"VLOOKUP(D3,'Bank and Fund Details'!$B$15:$C$36,2,FALSE)","v":"Unrestricted"},{"$f":"VLOOKUP(E3,'Bank and Fund Details'!$B$15:$C$36,2,FALSE)","v":"Unrestricted"},{"$f":"VLOOKUP(F3,'Bank and Fund Details'!$B$15:$C$36,2,FALSE)","v":"Unrestricted"},{"$f":"VLOOKUP(G3,'Bank and Fund Details'!$B$15:$C$36,2,FALSE)","v":"Unrestricted"},{"$f":"VLOOKUP(H3,'Bank and Fund Details'!$B$15:$C$36,2,FALSE)","v":"Unrestricted"},{"$f":"VLOOKUP(I3,'Bank and Fund Details'!$B$15:$C$36,2,FALSE)","v":"Unrestricted"},{"$f":"VLOOKUP(J3,'Bank and Fund Details'!$B$15:$C$36,2,FALSE)","v":"Unrestricted"},{"$f":"VLOOKUP(K3,'Bank and Fund Details'!$B$15:$C$36,2,FALSE)","v":"Unrestricted"},{"$f":"VLOOKUP(L3,'Bank and Fund Details'!$B$15:$C$36,2,FALSE)","v":"Unrestricted"},{"$f":"VLOOKUP(M3,'Bank and Fund Details'!$B$15:$C$36,2,FALSE)","v":"Unrestricted"},{"$f":"VLOOKUP(N3,'Bank and Fund Details'!$B$15:$C$36,2,FALSE)","v":"Unrestricted"},{"$f":"VLOOKUP(O3,'Bank and Fund Details'!$B$15:$C$36,2,FALSE)","v":"Unrestricted"},{"$f":"VLOOKUP(P3,'Bank and Fund Details'!$B$15:$C$36,2,FALSE)","v":"Unrestricted"},{"$f":"VLOOKUP(Q3,'Bank and Fund Details'!$B$15:$C$36,2,FALSE)","v":"Unrestricted"},{"$f":"VLOOKUP(R3,'Bank and Fund Details'!$B$15:$C$36,2,FALSE)","v":"Unrestricted"},{"$f":"VLOOKUP(S3,'Bank and Fund Details'!$B$15:$C$36,2,FALSE)","v":"Unrestricted"},{"$f":"VLOOKUP(T3,'Bank and Fund Details'!$B$15:$C$36,2,FALSE)","v":"Unrestricted"},{"$f":"VLOOKUP(U3,'Bank and Fund Details'!$B$15:$C$36,2,FALSE)","v":"Unrestricted"},{"$f":"VLOOKUP(V3,'Bank and Fund Details'!$B$15:$C$36,2,FALSE)","v":"Unrestricted"},null,1]
["RECEIPTS",{"$f":"'Bank and Fund Details'!B15","v":"General Fund"},{"$f":"'Bank and Fund Details'!B17","v":"Fund A"},{"$f":"'Bank and Fund Details'!B18","v":"Fund B"},{"$f":"'Bank and Fund Details'!B19","v":"Fund C"},{"$f":"'Bank and Fund Details'!B20","v":"Fund D"},{"$f":"'Bank and Fund Details'!B21","v":"Fund E"},{"$f":"'Bank and Fund Details'!B22","v":"Fund F"},{"$f":"'Bank and Fund Details'!B23","v":"Fund G"},{"$f":"'Bank and Fund Details'!B24","v":"Fund H"},{"$f":"'Bank and Fund Details'!B25","v":"Fund I"},{"$f":"'Bank and Fund Details'!B26","v":"Fund J"},{"$f":"'Bank and Fund Details'!B27","v":"Fund K"},{"$f":"'Bank and Fund Details'!B28","v":"Fund L"},{"$f":"'Bank and Fund Details'!B29","v":"Fund M"},{"$f":"'Bank and Fund Details'!B30","v":"Fund N"},{"$f":"'Bank and Fund Details'!B31","v":"Fund O"},{"$f":"'Bank and Fund Details'!B32","v":"Fund P"},{"$f":"'Bank and Fund Details'!B33","v":"Fund Q"},{"$f":"'Bank and Fund Details'!B34","v":"Fund R"},{"$f":"'Bank and Fund Details'!B35","v":"Fund S"},{"$f":"'Bank and Fund Details'!B36","v":"Fund T"},null,1]
[null,"£","£","£","£","£","£","£","£","£","£","£","£","£","£","£","£","£","£","£","£","£",null,1]
["COLLECTIONS AT SERVICES",null,null,null,null,null,null,null,null,null,null,null,null,null,null,null,null,null,null,null,null,null,null,{"$f":"SUM(X6:X63)","v":0}]
["Sunday Collections",{"$f":"WorkingR!D33","v":0},{"$f":"WorkingR!E33","v":0},{"$f":"WorkingR!F33","v":0},{"$f":"WorkingR!G33","v":0},{"$f":"WorkingR!H33","v":0},{"$f":"WorkingR!I33","v":0},{"$f":"WorkingR!J33","v":0},{"$f":"WorkingR!K33","v":0},{"$f":"WorkingR!L33","v":0},{"$f":"WorkingR!M33","v":0},{"$f":"WorkingR!N33","v":0},{"$f":"WorkingR!O33","v":0},{"$f":"WorkingR!P33","v":0},{"$f":"WorkingR!Q33","v":0},{"$f":"WorkingR!R33","v":0},{"$f":"WorkingR!S33","v":0},{"$f":"WorkingR!T33","v":0},{"$f":"WorkingR!U33","v":0},{"$f":"WorkingR!V33","v":0},{"$f":"WorkingR!W33","v":0},{"$f":"WorkingR!X33","v":0},{"$f":"SUM(B6:V6)","v":0},{"$f":"Descriptions!AA34","v":0}]
["Sunday Collections - Gift Aided",{"$f":"WorkingR!D34","v":0},{"$f":"WorkingR!E34","v":0},{"$f":"WorkingR!F34","v":0},{"$f":"WorkingR!G34","v":0},{"$f":"WorkingR!H34","v":0},{"$f":"WorkingR!I34","v":0},{"$f":"WorkingR!J34","v":0},{"$f":"WorkingR!K34","v":0},{"$f":"WorkingR!L34","v":0},{"$f":"WorkingR!M34","v":0},{"$f":"WorkingR!N34","v":0},{"$f":"WorkingR!O34","v":0},{"$f":"WorkingR!P34","v":0},{"$f":"WorkingR!Q34","v":0},{"$f":"WorkingR!R34","v":0},{"$f":"WorkingR!S34","v":0},{"$f":"WorkingR!T34","v":0},{"$f":"WorkingR!U34","v":0},{"$f":"WorkingR!V34","v":0},{"$f":"WorkingR!W34","v":0},{"$f":"WorkingR!X34","v":0},{"$f":"SUM(B7:V7)","v":0},{"$f":"Descriptions!AA35","v":0}]
["Weekday Collections",{"$f":"WorkingR!D40","v":0},{"$f":"WorkingR!E40","v":0},{"$f":"WorkingR!F40","v":0},{"$f":"WorkingR!G40","v":0},{"$f":"WorkingR!H40","v":0},{"$f":"WorkingR!I40","v":0},{"$f":"WorkingR!J40","v":0},{"$f":"WorkingR!K40","v":0},{"$f":"WorkingR!L40","v":0},{"$f":"WorkingR!M40","v":0},{"$f":"WorkingR!N40","v":0},{"$f":"WorkingR!O40","v":0},{"$f":"WorkingR!P40","v":0},{"$f":"WorkingR!Q40","v":0},{"$f":"WorkingR!R40","v":0},{"$f":"WorkingR!S40","v":0},{"$f":"WorkingR!T40","v":0},{"$f":"WorkingR!U40","v":0},{"$f":"WorkingR!V40","v":0},{"$f":"WorkingR!W40","v":0},{"$f":"WorkingR!X40","v":0},{"$f":"WorkingR!Y40","v":0},{"$f":"Descriptions!AA41","v":0}]
["Weekday Collections - Gift Aided",{"$f":"WorkingR!D41","v":0},{"$f":"WorkingR!E41","v":0},{"$f":"WorkingR!F41","v":0},{"$f":"WorkingR!G41","v":0},{"$f":"WorkingR!H41","v":0},{"$f":"WorkingR!I41","v":0},{"$f":"WorkingR!J41","v":0},{"$f":"WorkingR!K41","v":0},{"$f":"WorkingR!L41","v":0},{"$f":"WorkingR!M41","v":0},{"$f":"WorkingR!N41","v":0},{"$f":"WorkingR!O41","v":0},{"$f":"WorkingR!P41","v":0},{"$f":"WorkingR!Q41","v":0},{"$f":"WorkingR!R41","v":0},{"$f":"WorkingR!S41","v":0},{"$f":"WorkingR!T41","v":0},{"$f":"WorkingR!U41","v":0},{"$f":"WorkingR!V41","v":0},{"$f":"WorkingR!W41","v":0},{"$f":"WorkingR!X41","v":0},{"$f":"WorkingR!Y41","v":0},{"$f":"Descriptions!AA42","v":0}]
["Wedding and Funeral Collections",{"$f":"WorkingR!D38","v":0},{"$f":"WorkingR!E38","v":0},{"$f":"WorkingR!F38","v":0},{"$f":"WorkingR!G38","v":0},{"$f":"WorkingR!H38","v":0},{"$f":"WorkingR!I38","v":0},{"$f":"WorkingR!J38","v":0},{"$f":"WorkingR!K38","v":0},{"$f":"WorkingR!L38","v":0},{"$f":"WorkingR!M38","v":0},{"$f":"WorkingR!N38","v":0},{"$f":"WorkingR!O38","v":0},{"$f":"WorkingR!P38","v":0},{"$f":"WorkingR!Q38","v":0},{"$f":"WorkingR!R38","v":0},{"$f":"WorkingR!S38","v":0},{"$f":"WorkingR!T38","v":0},{"$f":"WorkingR!U38","v":0},{"$f":"WorkingR!V38","v":0},{"$f":"WorkingR!W38","v":0},{"$f":"WorkingR!X38","v":0},{"$f":"WorkingR!Y38","v":0},{"$f":"Descriptions!AA39","v":0}]
["Wedding and Funeral Collections - Gift Aided",{"$f":"WorkingR!D39","v":0},{"$f":"WorkingR!E39","v":0},{"$f":"WorkingR!F39","v":0},{"$f":"WorkingR!G39","v":0},{"$f":"WorkingR!H39","v":0},{"$f":"WorkingR!I39","v":0},{"$f":"WorkingR!J39","v":0},{"$f":"WorkingR!K39","v":0},{"$f":"WorkingR!L39","v":0},{"$f":"WorkingR!M39","v":0},{"$f":"WorkingR!N39","v":0},{"$f":"WorkingR!O39","v":0},{"$f":"WorkingR!P39","v":0},{"$f":"WorkingR!Q39","v":0},{"$f":"WorkingR!R39","v":0},{"$f":"WorkingR!S39","v":0},{"$f":"WorkingR!T39","v":0},{"$f":"WorkingR!U39","v":0},{"$f":"WorkingR!V39","v":0},{"$f":"WorkingR!W39","v":0},{"$f":"WorkingR!X39","v":0},{"$f":"WorkingR!Y39","v":0},{"$f":"Descriptions!AA40","v":0}]
["Junior Church Collections",{"$f":"WorkingR!D21","v":0},{"$f":"WorkingR!E21","v":0},{"$f":"WorkingR!F21","v":0},{"$f":"WorkingR!G21","v":0},{"$f":"WorkingR!H21","v":0},{"$f":"WorkingR!I21","v":0},{"$f":"WorkingR!J21","v":0},{"$f":"WorkingR!K21","v":0},{"$f":"WorkingR!L21","v":0},{"$f":"WorkingR!M21","v":0},{"$f":"WorkingR!N21","v":0},{"$f":"WorkingR!O21","v":0},{"$f":"WorkingR!P21","v":0},{"$f":"WorkingR!Q21","v":0},{"$f":"WorkingR!R21","v":0},{"$f":"WorkingR!S21","v":0},{"$f":"WorkingR!T21","v":0},{"$f":"WorkingR!U21","v":0},{"$f":"WorkingR!V21","v":0},{"$f":"WorkingR!W21","v":0},{"$f":"WorkingR!X21","v":0},{"$f":"WorkingR!Y21","v":0},{"$f":"Descriptions!AA22","v":0}]
["Junior Church Collections - Gift Aided",{"$f":"WorkingR!D22","v":0},{"$f":"WorkingR!E22","v":0},{"$f":"WorkingR!F22","v":0},{"$f":"WorkingR!G22","v":0},{"$f":"WorkingR!H22","v":0},{"$f":"WorkingR!I22","v":0},{"$f":"WorkingR!J22","v":0},{"$f":"WorkingR!K22","v":0},{"$f":"WorkingR!L22","v":0},{"$f":"WorkingR!M22","v":0},{"$f":"WorkingR!N22","v":0},{"$f":"WorkingR!O22","v":0},{"$f":"WorkingR!P22","v":0},{"$f":"WorkingR!Q22","v":0},{"$f":"WorkingR!R22","v":0},{"$f":"WorkingR!S22","v":0},{"$f":"WorkingR!T22","v":0},{"$f":"WorkingR!U22","v":0},{"$f":"WorkingR!V22","v":0},{"$f":"WorkingR!W22","v":0},{"$f":"WorkingR!X22","v":0},{"$f":"WorkingR!Y22","v":0},{"$f":"Descriptions!AA23","v":0}]
[{"$f":"IF(Descriptions!D43=\"Collections at services\",Descriptions!B43,0)","v":0},{"$f":"IF(WorkingR!$B42=\"Collections at Services\",WorkingR!D42,\"\")","v":""},{"$f":"IF(WorkingR!$B42=\"Collections at Services\",WorkingR!E42,\"\")","v":""},{"$f":"IF(WorkingR!$B42=\"Collections at Services\",WorkingR!F42,\"\")","v":""},{"$f":"IF(WorkingR!$B42=\"Collections at Services\",WorkingR!G42,\"\")","v":""},{"$f":"IF(WorkingR!$B42=\"Collections at Services\",WorkingR!H42,\"\")","v":""},{"$f":"IF(WorkingR!$B42=\"Collections at Services\",WorkingR!I42,\"\")","v":""},{"$f":"IF(WorkingR!$B42=\"Collections at Services\",WorkingR!J42,\"\")","v":""},{"$f":"IF(WorkingR!$B42=\"Collections at Services\",WorkingR!K42,\"\")","v":""},{"$f":"IF(WorkingR!$B42=\"Collections at Services\",WorkingR!L42,\"\")","v":""},{"$f":"IF(WorkingR!$B42=\"Collections at Services\",WorkingR!M42,\"\")","v":""},{"$f":"IF(WorkingR!$B42=\"Collections at Services\",WorkingR!N42,\"\")","v":""},{"$f":"IF(WorkingR!$B42=\"Collections at Services\",WorkingR!O42,\"\")","v":""},{"$f":"IF(WorkingR!$B42=\"Collections at Services\",WorkingR!P42,\"\")","v":""},{"$f":"IF(WorkingR!$B42=\"Collections at Services\",WorkingR!Q42,\"\")","v":""},{"$f":"IF(WorkingR!$B42=\"Collections at Services\",WorkingR!R42,\"\")","v":""},{"$f":"IF(WorkingR!$B42=\"Collections at Services\",WorkingR!S42,\"\")","v":""},{"$f":"IF(WorkingR!$B42=\"Collections at Services\",WorkingR!T42,\"\")","v":""},{"$f":"IF(WorkingR!$B42=\"Collections at Services\",WorkingR!U42,\"\")","v":""},{"$f":"IF(WorkingR!$B42=\"Collections at Services\",WorkingR!V42,\"\")","v":""},{"$f":"IF(WorkingR!$B42=\"Collections at Services\",WorkingR!W42,\"\")","v":""},{"$f":"IF(WorkingR!$B42=\"Collections at Services\",WorkingR!X42,\"\")","v":""},{"$f":"IF(WorkingR!$B42=\"Collections at Services\",WorkingR!Y42,\"\")","v":""},{"$f":"IF(Descriptions!D43=\"Collections at services\",Descriptions!AA43,0)","v":0}]
[{"$f":"IF(Descriptions!D44=\"Collections at services\",Descriptions!B44,0)","v":0},{"$f":"IF(WorkingR!$B43=\"Collections at Services\",WorkingR!D43,\"\")","v":""},{"$f":"IF(WorkingR!$B43=\"Collections at Services\",WorkingR!E43,\"\")","v":""},{"$f":"IF(WorkingR!$B43=\"Collections at Services\",WorkingR!F43,\"\")","v":""},{"$f":"IF(WorkingR!$B43=\"Collections at Services\",WorkingR!G43,\"\")","v":""},{"$f":"IF(WorkingR!$B43=\"Collections at Services\",WorkingR!H43,\"\")","v":""},{"$f":"IF(WorkingR!$B43=\"Collections at Services\",WorkingR!I43,\"\")","v":""},{"$f":"IF(WorkingR!$B43=\"Collections at Services\",WorkingR!J43,\"\")","v":""},{"$f":"IF(WorkingR!$B43=\"Collections at Services\",WorkingR!K43,\"\")","v":""},{"$f":"IF(WorkingR!$B43=\"Collections at Services\",WorkingR!L43,\"\")","v":""},{"$f":"IF(WorkingR!$B43=\"Collections at Services\",WorkingR!M43,\"\")","v":""},{"$f":"IF(WorkingR!$B43=\"Collections at Services\",WorkingR!N43,\"\")","v":""},{"$f":"IF(WorkingR!$B43=\"Collections at Services\",WorkingR!O43,\"\")","v":""},{"$f":"IF(WorkingR!$B43=\"Collections at Services\",WorkingR!P43,\"\")","v":""},{"$f":"IF(WorkingR!$B43=\"Collections at Services\",WorkingR!Q43,\"\")","v":""},{"$f":"IF(WorkingR!$B43=\"Collections at Services\",WorkingR!R43,\"\")","v":""},{"$f":"IF(WorkingR!$B43=\"Collections at Services\",WorkingR!S43,\"\")","v":""},{"$f":"IF(WorkingR!$B43=\"Collections at Services\",WorkingR!T43,\"\")","v":""},{"$f":"IF(WorkingR!$B43=\"Collections at Services\",WorkingR!U43,\"\")","v":""},{"$f":"IF(WorkingR!$B43=\"Collections at Services\",WorkingR!V43,\"\")","v":""},{"$f":"IF(WorkingR!$B43=\"Collections at Services\",WorkingR!W43,\"\")","v":""},{"$f":"IF(WorkingR!$B43=\"Collections at Services\",WorkingR!X43,\"\")","v":""},{"$f":"IF(WorkingR!$B43=\"Collections at Services\",WorkingR!Y43,\"\")","v":""},{"$f":"IF(Descriptions!D44=\"Collections at services\",Descriptions!AA44,0)","v":0}]
[{"$f":"IF(Descriptions!D45=\"Collections at services\",Descriptions!B45,0)","v":0},{"$f":"IF(WorkingR!$B44=\"Collections at Services\",WorkingR!D44,\"\")","v":""},{"$f":"IF(WorkingR!$B44=\"Collections at Services\",WorkingR!E44,\"\")","v":""},{"$f":"IF(WorkingR!$B44=\"Collections at Services\",WorkingR!F44,\"\")","v":""},{"$f":"IF(WorkingR!$B44=\"Collections at Services\",WorkingR!G44,\"\")","v":""},{"$f":"IF(WorkingR!$B44=\"Collections at Services\",WorkingR!H44,\"\")","v":""},{"$f":"IF(WorkingR!$B44=\"Collections at Services\",WorkingR!I44,\"\")","v":""},{"$f":"IF(WorkingR!$B44=\"Collections at Services\",WorkingR!J44,\"\")","v":""},{"$f":"IF(WorkingR!$B44=\"Collections at Services\",WorkingR!K44,\"\")","v":""},{"$f":"IF(WorkingR!$B44=\"Collections at Services\",WorkingR!L44,\"\")","v":""},{"$f":"IF(WorkingR!$B44=\"Collections at Services\",WorkingR!M44,\"\")","v":""},{"$f":"IF(WorkingR!$B44=\"Collections at Services\",WorkingR!N44,\"\")","v":""},{"$f":"IF(WorkingR!$B44=\"Collections at Services\",WorkingR!O44,\"\")","v":""},{"$f":"IF(WorkingR!$B44=\"Collections at Services\",WorkingR!P44,\"\")","v":""},{"$f":"IF(WorkingR!$B44=\"Collections at Services\",WorkingR!Q44,\"\")","v":""},{"$f":"IF(WorkingR!$B44=\"Collections at Services\",WorkingR!R44,\"\")","v":""},{"$f":"IF(WorkingR!$B44=\"Collections at Services\",WorkingR!S44,\"\")","v":""},{"$f":"IF(WorkingR!$B44=\"Collections at Services\",WorkingR!T44,\"\")","v":""},{"$f":"IF(WorkingR!$B44=\"Collections at Services\",WorkingR!U44,\"\")","v":""},{"$f":"IF(WorkingR!$B44=\"Collections at Services\",WorkingR!V44,\"\")","v":""},{"$f":"IF(WorkingR!$B44=\"Collections at Services\",WorkingR!W44,\"\")","v":""},{"$f":"IF(WorkingR!$B44=\"Collections at Services\",WorkingR!X44,\"\")","v":""},{"$f":"IF(WorkingR!$B44=\"Collections at Services\",WorkingR!Y44,\"\")","v":""},{"$f":"IF(Descriptions!D45=\"Collections at services\",Descriptions!AA45,0)","v":0}]
[{"$f":"IF(Descriptions!D46=\"Collections at services\",Descriptions!B46,0)","v":0},{"$f":"IF(WorkingR!$B45=\"Collections at Services\",WorkingR!D45,\"\")","v":""},{"$f":"IF(WorkingR!$B45=\"Collections at Services\",WorkingR!E45,\"\")","v":""},{"$f":"IF(WorkingR!$B45=\"Collections at Services\",WorkingR!F45,\"\")","v":""},{"$f":"IF(WorkingR!$B45=\"Collections at Services\",WorkingR!G45,\"\")","v":""},{"$f":"IF(WorkingR!$B45=\"Collections at Services\",WorkingR!H45,\"\")","v":""},{"$f":"IF(WorkingR!$B45=\"Collections at Services\",WorkingR!I45,\"\")","v":""},{"$f":"IF(WorkingR!$B45=\"Collections at Services\",WorkingR!J45,\"\")","v":""},{"$f":"IF(WorkingR!$B45=\"Collections at Services\",WorkingR!K45,\"\")","v":""},{"$f":"IF(WorkingR!$B45=\"Collections at Services\",WorkingR!L45,\"\")","v":""},{"$f":"IF(WorkingR!$B45=\"Collections at Services\",WorkingR!M45,\"\")","v":""},{"$f":"IF(WorkingR!$B45=\"Collections at Services\",WorkingR!N45,\"\")","v":""},{"$f":"IF(WorkingR!$B45=\"Collections at Services\",WorkingR!O45,\"\")","v":""},{"$f":"IF(WorkingR!$B45=\"Collections at Services\",WorkingR!P45,\"\")","v":""},{"$f":"IF(WorkingR!$B45=\"Collections at Services\",WorkingR!Q45,\"\")","v":""},{"$f":"IF(WorkingR!$B45=\"Collections at Services\",WorkingR!R45,\"\")","v":""},{"$f":"IF(WorkingR!$B45=\"Collections at Services\",WorkingR!S45,\"\")","v":""},{"$f":"IF(WorkingR!$B45=\"Collections at Services\",WorkingR!T45,\"\")","v":""},{"$f":"IF(WorkingR!$B45=\"Collections at Services\",WorkingR!U45,\"\")","v":""},{"$f":"IF(WorkingR!$B45=\"Collections at Services\",WorkingR!V45,\"\")","v":""},{"$f":"IF(WorkingR!$B45=\"Collections at Services\",WorkingR!W45,\"\")","v":""},{"$f":"IF(WorkingR!$B45=\"Collections at Services\",WorkingR!X45,\"\")","v":""},{"$f":"IF(WorkingR!$B45=\"Collections at Services\",WorkingR!Y45,\"\")","v":""},{"$f":"IF(Descriptions!D46=\"Collections at services\",Descriptions!AA46,0)","v":0}]
[{"$f":"IF(Descriptions!D47=\"Collections at services\",Descriptions!B47,0)","v":0},{"$f":"IF(WorkingR!$B46=\"Collections at Services\",WorkingR!D46,\"\")","v":""},{"$f":"IF(WorkingR!$B46=\"Collections at Services\",WorkingR!E46,\"\")","v":""},{"$f":"IF(WorkingR!$B46=\"Collections at Services\",WorkingR!F46,\"\")","v":""},{"$f":"IF(WorkingR!$B46=\"Collections at Services\",WorkingR!G46,\"\")","v":""},{"$f":"IF(WorkingR!$B46=\"Collections at Services\",WorkingR!H46,\"\")","v":""},{"$f":"IF(WorkingR!$B46=\"Collections at Services\",WorkingR!I46,\"\")","v":""},{"$f":"IF(WorkingR!$B46=\"Collections at Services\",WorkingR!J46,\"\")","v":""},{"$f":"IF(WorkingR!$B46=\"Collections at Services\",WorkingR!K46,\"\")","v":""},{"$f":"IF(WorkingR!$B46=\"Collections at Services\",WorkingR!L46,\"\")","v":""},{"$f":"IF(WorkingR!$B46=\"Collections at Services\",WorkingR!M46,\"\")","v":""},{"$f":"IF(WorkingR!$B46=\"Collections at Services\",WorkingR!N46,\"\")","v":""},{"$f":"IF(WorkingR!$B46=\"Collections at Services\",WorkingR!O46,\"\")","v":""},{"$f":"IF(WorkingR!$B46=\"Collections at Services\",WorkingR!P46,\"\")","v":""},{"$f":"IF(WorkingR!$B46=\"Collections at Services\",WorkingR!Q46,\"\")","v":""},{"$f":"IF(WorkingR!$B46=\"Collections at Services\",WorkingR!R46,\"\")","v":""},{"$f":"IF(WorkingR!$B46=\"Collections at Services\",WorkingR!S46,\"\")","v":""},{"$f":"IF(WorkingR!$B46=\"Collections at Services\",WorkingR!T46,\"\")","v":""},{"$f":"IF(WorkingR!$B46=\"Collections at Services\",WorkingR!U46,\"\")","v":""},{"$f":"IF(WorkingR!$B46=\"Collections at Services\",WorkingR!V46,\"\")","v":""},{"$f":"IF(WorkingR!$B46=\"Collections at Services\",WorkingR!W46,\"\")","v":""},{"$f":"IF(WorkingR!$B46=\"Collections at Services\",WorkingR!X46,\"\")","v":""},{"$f":"IF(WorkingR!$B46=\"Collections at Services\",WorkingR!Y46,\"\")","v":""},{"$f":"IF(Descriptions!D47=\"Collections at services\",Descriptions!AA47,0)","v":0}]
[{"$f":"IF(Descriptions!D48=\"Collections at services\",Descriptions!B48,0)","v":0},{"$f":"IF(WorkingR!$B47=\"Collections at Services\",WorkingR!D47,\"\")","v":""},{"$f":"IF(WorkingR!$B47=\"Collections at Services\",WorkingR!E47,\"\")","v":""},{"$f":"IF(WorkingR!$B47=\"Collections at Services\",WorkingR!F47,\"\")","v":""},{"$f":"IF(WorkingR!$B47=\"Collections at Services\",WorkingR!G47,\"\")","v":""},{"$f":"IF(WorkingR!$B47=\"Collections at Services\",WorkingR!H47,\"\")","v":""},{"$f":"IF(WorkingR!$B47=\"Collections at Services\",WorkingR!I47,\"\")","v":""},{"$f":"IF(WorkingR!$B47=\"Collections at Services\",WorkingR!J47,\"\")","v":""},{"$f":"IF(WorkingR!$B47=\"Collections at Services\",WorkingR!K47,\"\")","v":""},{"$f":"IF(WorkingR!$B47=\"Collections at Services\",WorkingR!L47,\"\")","v":""},{"$f":"IF(WorkingR!$B47=\"Collections at Services\",WorkingR!M47,\"\")","v":""},{"$f":"IF(WorkingR!$B47=\"Collections at Services\",WorkingR!N47,\"\")","v":""},{"$f":"IF(WorkingR!$B47=\"Collections at Services\",WorkingR!O47,\"\")","v":""},{"$f":"IF(WorkingR!$B47=\"Collections at Services\",WorkingR!P47,\"\")","v":""},{"$f":"IF(WorkingR!$B47=\"Collections at Services\",WorkingR!Q47,\"\")","v":""},{"$f":"IF(WorkingR!$B47=\"Collections at Services\",WorkingR!R47,\"\")","v":""},{"$f":"IF(WorkingR!$B47=\"Collections at Services\",WorkingR!S47,\"\")","v":""},{"$f":"IF(WorkingR!$B47=\"Collections at Services\",WorkingR!T47,\"\")","v":""},{"$f":"IF(WorkingR!$B47=\"Collections at Services\",WorkingR!U47,\"\")","v":""},{"$f":"IF(WorkingR!$B47=\"Collections at Services\",WorkingR!V47,\"\")","v":""},{"$f":"IF(WorkingR!$B47=\"Collections at Services\",WorkingR!W47,\"\")","v":""},{"$f":"IF(WorkingR!$B47=\"Collections at Services\",WorkingR!X47,\"\")","v":""},{"$f":"IF(WorkingR!$B47=\"Collections at Services\",WorkingR!Y47,\"\")","v":""},{"$f":"IF(Descriptions!D48=\"Collections at services\",Descriptions!AA48,0)","v":0}]
[{"$f":"IF(Descriptions!D49=\"Collections at services\",Descriptions!B49,0)","v":0},{"$f":"IF(WorkingR!$B48=\"Collections at Services\",WorkingR!D48,\"\")","v":""},{"$f":"IF(WorkingR!$B48=\"Collections at Services\",WorkingR!E48,\"\")","v":""},{"$f":"IF(WorkingR!$B48=\"Collections at Services\",WorkingR!F48,\"\")","v":""},{"$f":"IF(WorkingR!$B48=\"Collections at Services\",WorkingR!G48,\"\")","v":""},{"$f":"IF(WorkingR!$B48=\"Collections at Services\",WorkingR!H48,\"\")","v":""},{"$f":"IF(WorkingR!$B48=\"Collections at Services\",WorkingR!I48,\"\")","v":""},{"$f":"IF(WorkingR!$B48=\"Collections at Services\",WorkingR!J48,\"\")","v":""},{"$f":"IF(WorkingR!$B48=\"Collections at Services\",WorkingR!K48,\"\")","v":""},{"$f":"IF(WorkingR!$B48=\"Collections at Services\",WorkingR!L48,\"\")","v":""},{"$f":"IF(WorkingR!$B48=\"Collections at Services\",WorkingR!M48,\"\")","v":""},{"$f":"IF(WorkingR!$B48=\"Collections at Services\",WorkingR!N48,\"\")","v":""},{"$f":"IF(WorkingR!$B48=\"Collections at Services\",WorkingR!O48,\"\")","v":""},{"$f":"IF(WorkingR!$B48=\"Collections at Services\",WorkingR!P48,\"\")","v":""},{"$f":"IF(WorkingR!$B48=\"Collections at Services\",WorkingR!Q48,\"\")","v":""},{"$f":"IF(WorkingR!$B48=\"Collections at Services\",WorkingR!R48,\"\")","v":""},{"$f":"IF(WorkingR!$B48=\"Collections at Services\",WorkingR!S48,\"\")","v":""},{"$f":"IF(WorkingR!$B48=\"Collections at Services\",WorkingR!T48,\"\")","v":""},{"$f":"IF(WorkingR!$B48=\"Collections at Services\",WorkingR!U48,\"\")","v":""},{"$f":"IF(WorkingR!$B48=\"Collections at Services\",WorkingR!V48,\"\")","v":""},{"$f":"IF(WorkingR!$B48=\"Collections at Services\",WorkingR!W48,\"\")","v":""},{"$f":"IF(WorkingR!$B48=\"Collections at Services\",WorkingR!X48,\"\")","v":""},{"$f":"IF(WorkingR!$B48=\"Collections at Services\",WorkingR!Y48,\"\")","v":""},{"$f":"IF(Descriptions!D49=\"Collections at services\",Descriptions!AA49,0)","v":0}]
[{"$f":"IF(Descriptions!D50=\"Collections at services\",Descriptions!B50,0)","v":0},{"$f":"IF(WorkingR!$B49=\"Collections at Services\",WorkingR!D49,\"\")","v":""},{"$f":"IF(WorkingR!$B49=\"Collections at Services\",WorkingR!E49,\"\")","v":""},{"$f":"IF(WorkingR!$B49=\"Collections at Services\",WorkingR!F49,\"\")","v":""},{"$f":"IF(WorkingR!$B49=\"Collections at Services\",WorkingR!G49,\"\")","v":""},{"$f":"IF(WorkingR!$B49=\"Collections at Services\",WorkingR!H49,\"\")","v":""},{"$f":"IF(WorkingR!$B49=\"Collections at Services\",WorkingR!I49,\"\")","v":""},{"$f":"IF(WorkingR!$B49=\"Collections at Services\",WorkingR!J49,\"\")","v":""},{"$f":"IF(WorkingR!$B49=\"Collections at Services\",WorkingR!K49,\"\")","v":""},{"$f":"IF(WorkingR!$B49=\"Collections at Services\",WorkingR!L49,\"\")","v":""},{"$f":"IF(WorkingR!$B49=\"Collections at Services\",WorkingR!M49,\"\")","v":""},{"$f":"IF(WorkingR!$B49=\"Collections at Services\",WorkingR!N49,\"\")","v":""},{"$f":"IF(WorkingR!$B49=\"Collections at Services\",WorkingR!O49,\"\")","v":""},{"$f":"IF(WorkingR!$B49=\"Collections at Services\",WorkingR!P49,\"\")","v":""},{"$f":"IF(WorkingR!$B49=\"Collections at Services\",WorkingR!Q49,\"\")","v":""},{"$f":"IF(WorkingR!$B49=\"Collections at Services\",WorkingR!R49,\"\")","v":""},{"$f":"IF(WorkingR!$B49=\"Collections at Services\",WorkingR!S49,\"\")","v":""},{"$f":"IF(WorkingR!$B49=\"Collections at Services\",WorkingR!T49,\"\")","v":""},{"$f":"IF(WorkingR!$B49=\"Collections at Services\",WorkingR!U49,\"\")","v":""},{"$f":"IF(WorkingR!$B49=\"Collections at Services\",WorkingR!V49,\"\")","v":""},{"$f":"IF(WorkingR!$B49=\"Collections at Services\",WorkingR!W49,\"\")","v":""},{"$f":"IF(WorkingR!$B49=\"Collections at Services\",WorkingR!X49,\"\")","v":""},{"$f":"IF(WorkingR!$B49=\"Collections at Services\",WorkingR!Y49,\"\")","v":""},{"$f":"IF(Descriptions!D50=\"Collections at services\",Descriptions!AA50,0)","v":0}]
[{"$f":"IF(Descriptions!D51=\"Collections at services\",Descriptions!B51,0)","v":0},{"$f":"IF(WorkingR!$B50=\"Collections at Services\",WorkingR!D50,\"\")","v":""},{"$f":"IF(WorkingR!$B50=\"Collections at Services\",WorkingR!E50,\"\")","v":""},{"$f":"IF(WorkingR!$B50=\"Collections at Services\",WorkingR!F50,\"\")","v":""},{"$f":"IF(WorkingR!$B50=\"Collections at Services\",WorkingR!G50,\"\")","v":""},{"$f":"IF(WorkingR!$B50=\"Collections at Services\",WorkingR!H50,\"\")","v":""},{"$f":"IF(WorkingR!$B50=\"Collections at Services\",WorkingR!I50,\"\")","v":""},{"$f":"IF(WorkingR!$B50=\"Collections at Services\",WorkingR!J50,\"\")","v":""},{"$f":"IF(WorkingR!$B50=\"Collections at Services\",WorkingR!K50,\"\")","v":""},{"$f":"IF(WorkingR!$B50=\"Collections at Services\",WorkingR!L50,\"\")","v":""},{"$f":"IF(WorkingR!$B50=\"Collections at Services\",WorkingR!M50,\"\")","v":""},{"$f":"IF(WorkingR!$B50=\"Collections at Services\",WorkingR!N50,\"\")","v":""},{"$f":"IF(WorkingR!$B50=\"Collections at Services\",WorkingR!O50,\"\")","v":""},{"$f":"IF(WorkingR!$B50=\"Collections at Services\",WorkingR!P50,\"\")","v":""},{"$f":"IF(WorkingR!$B50=\"Collections at Services\",WorkingR!Q50,\"\")","v":""},{"$f":"IF(WorkingR!$B50=\"Collections at Services\",WorkingR!R50,\"\")","v":""},{"$f":"IF(WorkingR!$B50=\"Collections at Services\",WorkingR!S50,\"\")","v":""},{"$f":"IF(WorkingR!$B50=\"Collections at Services\",WorkingR!T50,\"\")","v":""},{"$f":"IF(WorkingR!$B50=\"Collections at Services\",WorkingR!U50,\"\")","v":""},{"$f":"IF(WorkingR!$B50=\"Collections at Services\",WorkingR!V50,\"\")","v":""},{"$f":"IF(WorkingR!$B50=\"Collections at Services\",WorkingR!W50,\"\")","v":""},{"$f":"IF(WorkingR!$B50=\"Collections at Services\",WorkingR!X50,\"\")","v":""},{"$f":"IF(WorkingR!$B50=\"Collections at Services\",WorkingR!Y50,\"\")","v":""},{"$f":"IF(Descriptions!D51=\"Collections at services\",Descriptions!AA51,0)","v":0}]
[{"$f":"IF(Descriptions!D52=\"Collections at services\",Descriptions!B52,0)","v":0},{"$f":"IF(WorkingR!$B51=\"Collections at Services\",WorkingR!D51,\"\")","v":""},{"$f":"IF(WorkingR!$B51=\"Collections at Services\",WorkingR!E51,\"\")","v":""},{"$f":"IF(WorkingR!$B51=\"Collections at Services\",WorkingR!F51,\"\")","v":""},{"$f":"IF(WorkingR!$B51=\"Collections at Services\",WorkingR!G51,\"\")","v":""},{"$f":"IF(WorkingR!$B51=\"Collections at Services\",WorkingR!H51,\"\")","v":""},{"$f":"IF(WorkingR!$B51=\"Collections at Services\",WorkingR!I51,\"\")","v":""},{"$f":"IF(WorkingR!$B51=\"Collections at Services\",WorkingR!J51,\"\")","v":""},{"$f":"IF(WorkingR!$B51=\"Collections at Services\",WorkingR!K51,\"\")","v":""},{"$f":"IF(WorkingR!$B51=\"Collections at Services\",WorkingR!L51,\"\")","v":""},{"$f":"IF(WorkingR!$B51=\"Collections at Services\",WorkingR!M51,\"\")","v":""},{"$f":"IF(WorkingR!$B51=\"Collections at Services\",WorkingR!N51,\"\")","v":""},{"$f":"IF(WorkingR!$B51=\"Collections at Services\",WorkingR!O51,\"\")","v":""},{"$f":"IF(WorkingR!$B51=\"Collections at Services\",WorkingR!P51,\"\")","v":""},{"$f":"IF(WorkingR!$B51=\"Collections at Services\",WorkingR!Q51,\"\")","v":""},{"$f":"IF(WorkingR!$B51=\"Collections at Services\",WorkingR!R51,\"\")","v":""},{"$f":"IF(WorkingR!$B51=\"Collections at Services\",WorkingR!S51,\"\")","v":""},{"$f":"IF(WorkingR!$B51=\"Collections at Services\",WorkingR!T51,\"\")","v":""},{"$f":"IF(WorkingR!$B51=\"Collections at Services\",WorkingR!U51,\"\")","v":""},{"$f":"IF(WorkingR!$B51=\"Collections at Services\",WorkingR!V51,\"\")","v":""},{"$f":"IF(WorkingR!$B51=\"Collections at Services\",WorkingR!W51,\"\")","v":""},{"$f":"IF(WorkingR!$B51=\"Collections at Services\",WorkingR!X51,\"\")","v":""},{"$f":"IF(WorkingR!$B51=\"Collections at Services\",WorkingR!Y51,\"\")","v":""},{"$f":"IF(Descriptions!D52=\"Collections at services\",Descriptions!AA52,0)","v":0}]
[{"$f":"IF(Descriptions!D53=\"Collections at services\",Descriptions!B53,0)","v":0},{"$f":"IF(WorkingR!$B52=\"Collections at Services\",WorkingR!D52,\"\")","v":""},{"$f":"IF(WorkingR!$B52=\"Collections at Services\",WorkingR!E52,\"\")","v":""},{"$f":"IF(WorkingR!$B52=\"Collections at Services\",WorkingR!F52,\"\")","v":""},{"$f":"IF(WorkingR!$B52=\"Collections at Services\",WorkingR!G52,\"\")","v":""},{"$f":"IF(WorkingR!$B52=\"Collections at Services\",WorkingR!H52,\"\")","v":""},{"$f":"IF(WorkingR!$B52=\"Collections at Services\",WorkingR!I52,\"\")","v":""},{"$f":"IF(WorkingR!$B52=\"Collections at Services\",WorkingR!J52,\"\")","v":""},{"$f":"IF(WorkingR!$B52=\"Collections at Services\",WorkingR!K52,\"\")","v":""},{"$f":"IF(WorkingR!$B52=\"Collections at Services\",WorkingR!L52,\"\")","v":""},{"$f":"IF(WorkingR!$B52=\"Collections at Services\",WorkingR!M52,\"\")","v":""},{"$f":"IF(WorkingR!$B52=\"Collections at Services\",WorkingR!N52,\"\")","v":""},{"$f":"IF(WorkingR!$B52=\"Collections at Services\",WorkingR!O52,\"\")","v":""},{"$f":"IF(WorkingR!$B52=\"Collections at Services\",WorkingR!P52,\"\")","v":""},{"$f":"IF(WorkingR!$B52=\"Collections at Services\",WorkingR!Q52,\"\")","v":""},{"$f":"IF(WorkingR!$B52=\"Collections at Services\",WorkingR!R52,\"\")","v":""},{"$f":"IF(WorkingR!$B52=\"Collections at Services\",WorkingR!S52,\"\")","v":""},{"$f":"IF(WorkingR!$B52=\"Collections at Services\",WorkingR!T52,\"\")","v":""},{"$f":"IF(WorkingR!$B52=\"Collections at Services\",WorkingR!U52,\"\")","v":""},{"$f":"IF(WorkingR!$B52=\"Collections at Services\",WorkingR!V52,\"\")","v":""},{"$f":"IF(WorkingR!$B52=\"Collections at Services\",WorkingR!W52,\"\")","v":""},{"$f":"IF(WorkingR!$B52=\"Collections at Services\",WorkingR!X52,\"\")","v":""},{"$f":"IF(WorkingR!$B52=\"Collections at Services\",WorkingR!Y52,\"\")","v":""},{"$f":"IF(Descriptions!D53=\"Collections at services\",Descriptions!AA53,0)","v":0}]
[{"$f":"IF(Descriptions!D54=\"Collections at services\",Descriptions!B54,0)","v":0},{"$f":"IF(WorkingR!$B53=\"Collections at Services\",WorkingR!D53,\"\")","v":""},{"$f":"IF(WorkingR!$B53=\"Collections at Services\",WorkingR!E53,\"\")","v":""},{"$f":"IF(WorkingR!$B53=\"Collections at Services\",WorkingR!F53,\"\")","v":""},{"$f":"IF(WorkingR!$B53=\"Collections at Services\",WorkingR!G53,\"\")","v":""},{"$f":"IF(WorkingR!$B53=\"Collections at Services\",WorkingR!H53,\"\")","v":""},{"$f":"IF(WorkingR!$B53=\"Collections at Services\",WorkingR!I53,\"\")","v":""},{"$f":"IF(WorkingR!$B53=\"Collections at Services\",WorkingR!J53,\"\")","v":""},{"$f":"IF(WorkingR!$B53=\"Collections at Services\",WorkingR!K53,\"\")","v":""},{"$f":"IF(WorkingR!$B53=\"Collections at Services\",WorkingR!L53,\"\")","v":""},{"$f":"IF(WorkingR!$B53=\"Collections at Services\",WorkingR!M53,\"\")","v":""},{"$f":"IF(WorkingR!$B53=\"Collections at Services\",WorkingR!N53,\"\")","v":""},{"$f":"IF(WorkingR!$B53=\"Collections at Services\",WorkingR!O53,\"\")","v":""},{"$f":"IF(WorkingR!$B53=\"Collections at Services\",WorkingR!P53,\"\")","v":""},{"$f":"IF(WorkingR!$B53=\"Collections at Services\",WorkingR!Q53,\"\")","v":""},{"$f":"IF(WorkingR!$B53=\"Collections at Services\",WorkingR!R53,\"\")","v":""},{"$f":"IF(WorkingR!$B53=\"Collections at Services\",WorkingR!S53,\"\")","v":""},{"$f":"IF(WorkingR!$B53=\"Collections at Services\",WorkingR!T53,\"\")","v":""},{"$f":"IF(WorkingR!$B53=\"Collections at Services\",WorkingR!U53,\"\")","v":""},{"$f":"IF(WorkingR!$B53=\"Collections at Services\",WorkingR!V53,\"\")","v":""},{"$f":"IF(WorkingR!$B53=\"Collections at Services\",WorkingR!W53,\"\")","v":""},{"$f":"IF(WorkingR!$B53=\"Collections at Services\",WorkingR!X53,\"\")","v":""},{"$f":"IF(WorkingR!$B53=\"Collections at Services\",WorkingR!Y53,\"\")","v":""},{"$f":"IF(Descriptions!D54=\"Collections at services\",Descriptions!AA54,0)","v":0}]
[{"$f":"IF(Descriptions!D55=\"Collections at services\",Descriptions!B55,0)","v":0},{"$f":"IF(WorkingR!$B54=\"Collections at Services\",WorkingR!D54,\"\")","v":""},{"$f":"IF(WorkingR!$B54=\"Collections at Services\",WorkingR!E54,\"\")","v":""},{"$f":"IF(WorkingR!$B54=\"Collections at Services\",WorkingR!F54,\"\")","v":""},{"$f":"IF(WorkingR!$B54=\"Collections at Services\",WorkingR!G54,\"\")","v":""},{"$f":"IF(WorkingR!$B54=\"Collections at Services\",WorkingR!H54,\"\")","v":""},{"$f":"IF(WorkingR!$B54=\"Collections at Services\",WorkingR!I54,\"\")","v":""},{"$f":"IF(WorkingR!$B54=\"Collections at Services\",WorkingR!J54,\"\")","v":""},{"$f":"IF(WorkingR!$B54=\"Collections at Services\",WorkingR!K54,\"\")","v":""},{"$f":"IF(WorkingR!$B54=\"Collections at Services\",WorkingR!L54,\"\")","v":""},{"$f":"IF(WorkingR!$B54=\"Collections at Services\",WorkingR!M54,\"\")","v":""},{"$f":"IF(WorkingR!$B54=\"Collections at Services\",WorkingR!N54,\"\")","v":""},{"$f":"IF(WorkingR!$B54=\"Collections at Services\",WorkingR!O54,\"\")","v":""},{"$f":"IF(WorkingR!$B54=\"Collections at Services\",WorkingR!P54,\"\")","v":""},{"$f":"IF(WorkingR!$B54=\"Collections at Services\",WorkingR!Q54,\"\")","v":""},{"$f":"IF(WorkingR!$B54=\"Collections at Services\",WorkingR!R54,\"\")","v":""},{"$f":"IF(WorkingR!$B54=\"Collections at Services\",WorkingR!S54,\"\")","v":""},{"$f":"IF(WorkingR!$B54=\"Collections at Services\",WorkingR!T54,\"\")","v":""},{"$f":"IF(WorkingR!$B54=\"Collections at Services\",WorkingR!U54,\"\")","v":""},{"$f":"IF(WorkingR!$B54=\"Collections at Services\",WorkingR!V54,\"\")","v":""},{"$f":"IF(WorkingR!$B54=\"Collections at Services\",WorkingR!W54,\"\")","v":""},{"$f":"IF(WorkingR!$B54=\"Collections at Services\",WorkingR!X54,\"\")","v":""},{"$f":"IF(WorkingR!$B54=\"Collections at Services\",WorkingR!Y54,\"\")","v":""},{"$f":"IF(Descriptions!D55=\"Collections at services\",Descriptions!AA55,0)","v":0}]
[{"$f":"IF(Descriptions!D56=\"Collections at services\",Descriptions!B56,0)","v":0},{"$f":"IF(WorkingR!$B55=\"Collections at Services\",WorkingR!D55,\"\")","v":""},{"$f":"IF(WorkingR!$B55=\"Collections at Services\",WorkingR!E55,\"\")","v":""},{"$f":"IF(WorkingR!$B55=\"Collections at Services\",WorkingR!F55,\"\")","v":""},{"$f":"IF(WorkingR!$B55=\"Collections at Services\",WorkingR!G55,\"\")","v":""},{"$f":"IF(WorkingR!$B55=\"Collections at Services\",WorkingR!H55,\"\")","v":""},{"$f":"IF(WorkingR!$B55=\"Collections at Services\",WorkingR!I55,\"\")","v":""},{"$f":"IF(WorkingR!$B55=\"Collections at Services\",WorkingR!J55,\"\")","v":""},{"$f":"IF(WorkingR!$B55=\"Collections at Services\",WorkingR!K55,\"\")","v":""},{"$f":"IF(WorkingR!$B55=\"Collections at Services\",WorkingR!L55,\"\")","v":""},{"$f":"IF(WorkingR!$B55=\"Collections at Services\",WorkingR!M55,\"\")","v":""},{"$f":"IF(WorkingR!$B55=\"Collections at Services\",WorkingR!N55,\"\")","v":""},{"$f":"IF(WorkingR!$B55=\"Collections at Services\",WorkingR!O55,\"\")","v":""},{"$f":"IF(WorkingR!$B55=\"Collections at Services\",WorkingR!P55,\"\")","v":""},{"$f":"IF(WorkingR!$B55=\"Collections at Services\",WorkingR!Q55,\"\")","v":""},{"$f":"IF(WorkingR!$B55=\"Collections at Services\",WorkingR!R55,\"\")","v":""},{"$f":"IF(WorkingR!$B55=\"Collections at Services\",WorkingR!S55,\"\")","v":""},{"$f":"IF(WorkingR!$B55=\"Collections at Services\",WorkingR!T55,\"\")","v":""},{"$f":"IF(WorkingR!$B55=\"Collections at Services\",WorkingR!U55,\"\")","v":""},{"$f":"IF(WorkingR!$B55=\"Collections at Services\",WorkingR!V55,\"\")","v":""},{"$f":"IF(WorkingR!$B55=\"Collections at Services\",WorkingR!W55,\"\")","v":""},{"$f":"IF(WorkingR!$B55=\"Collections at Services\",WorkingR!X55,\"\")","v":""},{"$f":"IF(WorkingR!$B55=\"Collections at Services\",WorkingR!Y55,\"\")","v":""},{"$f":"IF(Descriptions!D56=\"Collections at services\",Descriptions!AA56,0)","v":0}]
[{"$f":"IF(Descriptions!D57=\"Collections at services\",Descriptions!B57,0)","v":0},{"$f":"IF(WorkingR!$B56=\"Collections at Services\",WorkingR!D56,\"\")","v":""},{"$f":"IF(WorkingR!$B56=\"Collections at Services\",WorkingR!E56,\"\")","v":""},{"$f":"IF(WorkingR!$B56=\"Collections at Services\",WorkingR!F56,\"\")","v":""},{"$f":"IF(WorkingR!$B56=\"Collections at Services\",WorkingR!G56,\"\")","v":""},{"$f":"IF(WorkingR!$B56=\"Collections at Services\",WorkingR!H56,\"\")","v":""},{"$f":"IF(WorkingR!$B56=\"Collections at Services\",WorkingR!I56,\"\")","v":""},{"$f":"IF(WorkingR!$B56=\"Collections at Services\",WorkingR!J56,\"\")","v":""},{"$f":"IF(WorkingR!$B56=\"Collections at Services\",WorkingR!K56,\"\")","v":""},{"$f":"IF(WorkingR!$B56=\"Collections at Services\",WorkingR!L56,\"\")","v":""},{"$f":"IF(WorkingR!$B56=\"Collections at Services\",WorkingR!M56,\"\")","v":""},{"$f":"IF(WorkingR!$B56=\"Collections at Services\",WorkingR!N56,\"\")","v":""},{"$f":"IF(WorkingR!$B56=\"Collections at Services\",WorkingR!O56,\"\")","v":""},{"$f":"IF(WorkingR!$B56=\"Collections at Services\",WorkingR!P56,\"\")","v":""},{"$f":"IF(WorkingR!$B56=\"Collections at Services\",WorkingR!Q56,\"\")","v":""},{"$f":"IF(WorkingR!$B56=\"Collections at Services\",WorkingR!R56,\"\")","v":""},{"$f":"IF(WorkingR!$B56=\"Collections at Services\",WorkingR!S56,\"\")","v":""},{"$f":"IF(WorkingR!$B56=\"Collections at Services\",WorkingR!T56,\"\")","v":""},{"$f":"IF(WorkingR!$B56=\"Collections at Services\",WorkingR!U56,\"\")","v":""},{"$f":"IF(WorkingR!$B56=\"Collections at Services\",WorkingR!V56,\"\")","v":""},{"$f":"IF(WorkingR!$B56=\"Collections at Services\",WorkingR!W56,\"\")","v":""},{"$f":"IF(WorkingR!$B56=\"Collections at Services\",WorkingR!X56,\"\")","v":""},{"$f":"IF(WorkingR!$B56=\"Collections at Services\",WorkingR!Y56,\"\")","v":""},{"$f":"IF(Descriptions!D57=\"Collections at services\",Descriptions!AA57,0)","v":0}]
[{"$f":"IF(Descriptions!D58=\"Collections at services\",Descriptions!B58,0)","v":0},{"$f":"IF(WorkingR!$B57=\"Collections at Services\",WorkingR!D57,\"\")","v":""},{"$f":"IF(WorkingR!$B57=\"Collections at Services\",WorkingR!E57,\"\")","v":""},{"$f":"IF(WorkingR!$B57=\"Collections at Services\",WorkingR!F57,\"\")","v":""},{"$f":"IF(WorkingR!$B57=\"Collections at Services\",WorkingR!G57,\"\")","v":""},{"$f":"IF(WorkingR!$B57=\"Collections at Services\",WorkingR!H57,\"\")","v":""},{"$f":"IF(WorkingR!$B57=\"Collections at Services\",WorkingR!I57,\"\")","v":""},{"$f":"IF(WorkingR!$B57=\"Collections at Services\",WorkingR!J57,\"\")","v":""},{"$f":"IF(WorkingR!$B57=\"Collections at Services\",WorkingR!K57,\"\")","v":""},{"$f":"IF(WorkingR!$B57=\"Collections at Services\",WorkingR!L57,\"\")","v":""},{"$f":"IF(WorkingR!$B57=\"Collections at Services\",WorkingR!M57,\"\")","v":""},{"$f":"IF(WorkingR!$B57=\"Collections at Services\",WorkingR!N57,\"\")","v":""},{"$f":"IF(WorkingR!$B57=\"Collections at Services\",WorkingR!O57,\"\")","v":""},{"$f":"IF(WorkingR!$B57=\"Collections at Services\",WorkingR!P57,\"\")","v":""},{"$f":"IF(WorkingR!$B57=\"Collections at Services\",WorkingR!Q57,\"\")","v":""},{"$f":"IF(WorkingR!$B57=\"Collections at Services\",WorkingR!R57,\"\")","v":""},{"$f":"IF(WorkingR!$B57=\"Collections at Services\",WorkingR!S57,\"\")","v":""},{"$f":"IF(WorkingR!$B57=\"Collections at Services\",WorkingR!T57,\"\")","v":""},{"$f":"IF(WorkingR!$B57=\"Collections at Services\",WorkingR!U57,\"\")","v":""},{"$f":"IF(WorkingR!$B57=\"Collections at Services\",WorkingR!V57,\"\")","v":""},{"$f":"IF(WorkingR!$B57=\"Collections at Services\",WorkingR!W57,\"\")","v":""},{"$f":"IF(WorkingR!$B57=\"Collections at Services\",WorkingR!X57,\"\")","v":""},{"$f":"IF(WorkingR!$B57=\"Collections at Services\",WorkingR!Y57,\"\")","v":""},{"$f":"IF(Descriptions!D58=\"Collections at services\",Descriptions!AA58,0)","v":0}]
[{"$f":"IF(Descriptions!D59=\"Collections at services\",Descriptions!B59,0)","v":0},{"$f":"IF(WorkingR!$B58=\"Collections at Services\",WorkingR!D58,\"\")","v":""},{"$f":"IF(WorkingR!$B58=\"Collections at Services\",WorkingR!E58,\"\")","v":""},{"$f":"IF(WorkingR!$B58=\"Collections at Services\",WorkingR!F58,\"\")","v":""},{"$f":"IF(WorkingR!$B58=\"Collections at Services\",WorkingR!G58,\"\")","v":""},{"$f":"IF(WorkingR!$B58=\"Collections at Services\",WorkingR!H58,\"\")","v":""},{"$f":"IF(WorkingR!$B58=\"Collections at Services\",WorkingR!I58,\"\")","v":""},{"$f":"IF(WorkingR!$B58=\"Collections at Services\",WorkingR!J58,\"\")","v":""},{"$f":"IF(WorkingR!$B58=\"Collections at Services\",WorkingR!K58,\"\")","v":""},{"$f":"IF(WorkingR!$B58=\"Collections at Services\",WorkingR!L58,\"\")","v":""},{"$f":"IF(WorkingR!$B58=\"Collections at Services\",WorkingR!M58,\"\")","v":""},{"$f":"IF(WorkingR!$B58=\"Collections at Services\",WorkingR!N58,\"\")","v":""},{"$f":"IF(WorkingR!$B58=\"Collections at Services\",WorkingR!O58,\"\")","v":""},{"$f":"IF(WorkingR!$B58=\"Collections at Services\",WorkingR!P58,\"\")","v":""},{"$f":"IF(WorkingR!$B58=\"Collections at Services\",WorkingR!Q58,\"\")","v":""},{"$f":"IF(WorkingR!$B58=\"Collections at Services\",WorkingR!R58,\"\")","v":""},{"$f":"IF(WorkingR!$B58=\"Collections at Services\",WorkingR!S58,\"\")","v":""},{"$f":"IF(WorkingR!$B58=\"Collections at Services\",WorkingR!T58,\"\")","v":""},{"$f":"IF(WorkingR!$B58=\"Collections at Services\",WorkingR!U58,\"\")","v":""},{"$f":"IF(WorkingR!$B58=\"Collections at Services\",WorkingR!V58,\"\")","v":""},{"$f":"IF(WorkingR!$B58=\"Collections at Services\",WorkingR!W58,\"\")","v":""},{"$f":"IF(WorkingR!$B58=\"Collections at Services\",WorkingR!X58,\"\")","v":""},{"$f":"IF(WorkingR!$B58=\"Collections at Services\",WorkingR!Y58,\"\")","v":""},{"$f":"IF(Descriptions!D59=\"Collections at services\",Descriptions!AA59,0)","v":0}]
[{"$f":"IF(Descriptions!D60=\"Collections at services\",Descriptions!B60,0)","v":0},{"$f":"IF(WorkingR!$B59=\"Collections at Services\",WorkingR!D59,\"\")","v":""},{"$f":"IF(WorkingR!$B59=\"Collections at Services\",WorkingR!E59,\"\")","v":""},{"$f":"IF(WorkingR!$B59=\"Collections at Services\",WorkingR!F59,\"\")","v":""},{"$f":"IF(WorkingR!$B59=\"Collections at Services\",WorkingR!G59,\"\")","v":""},{"$f":"IF(WorkingR!$B59=\"Collections at Services\",WorkingR!H59,\"\")","v":""},{"$f":"IF(WorkingR!$B59=\"Collections at Services\",WorkingR!I59,\"\")","v":""},{"$f":"IF(WorkingR!$B59=\"Collections at Services\",WorkingR!J59,\"\")","v":""},{"$f":"IF(WorkingR!$B59=\"Collections at Services\",WorkingR!K59,\"\")","v":""},{"$f":"IF(WorkingR!$B59=\"Collections at Services\",WorkingR!L59,\"\")","v":""},{"$f":"IF(WorkingR!$B59=\"Collections at Services\",WorkingR!M59,\"\")","v":""},{"$f":"IF(WorkingR!$B59=\"Collections at Services\",WorkingR!N59,\"\")","v":""},{"$f":"IF(WorkingR!$B59=\"Collections at Services\",WorkingR!O59,\"\")","v":""},{"$f":"IF(WorkingR!$B59=\"Collections at Services\",WorkingR!P59,\"\")","v":""},{"$f":"IF(WorkingR!$B59=\"Collections at Services\",WorkingR!Q59,\"\")","v":""},{"$f":"IF(WorkingR!$B59=\"Collections at Services\",WorkingR!R59,\"\")","v":""},{"$f":"IF(WorkingR!$B59=\"Collections at Services\",WorkingR!S59,\"\")","v":""},{"$f":"IF(WorkingR!$B59=\"Collections at Services\",WorkingR!T59,\"\")","v":""},{"$f":"IF(WorkingR!$B59=\"Collections at Services\",WorkingR!U59,\"\")","v":""},{"$f":"IF(WorkingR!$B59=\"Collections at Services\",WorkingR!V59,\"\")","v":""},{"$f":"IF(WorkingR!$B59=\"Collections at Services\",WorkingR!W59,\"\")","v":""},{"$f":"IF(WorkingR!$B59=\"Collections at Services\",WorkingR!X59,\"\")","v":""},{"$f":"IF(WorkingR!$B59=\"Collections at Services\",WorkingR!Y59,\"\")","v":""},{"$f":"IF(Descriptions!D60=\"Collections at services\",Descriptions!AA60,0)","v":0}]
[{"$f":"IF(Descriptions!D61=\"Collections at services\",Descriptions!B61,0)","v":0},{"$f":"IF(WorkingR!$B60=\"Collections at Services\",WorkingR!D60,\"\")","v":""},{"$f":"IF(WorkingR!$B60=\"Collections at Services\",WorkingR!E60,\"\")","v":""},{"$f":"IF(WorkingR!$B60=\"Collections at Services\",WorkingR!F60,\"\")","v":""},{"$f":"IF(WorkingR!$B60=\"Collections at Services\",WorkingR!G60,\"\")","v":""},{"$f":"IF(WorkingR!$B60=\"Collections at Services\",WorkingR!H60,\"\")","v":""},{"$f":"IF(WorkingR!$B60=\"Collections at Services\",WorkingR!I60,\"\")","v":""},{"$f":"IF(WorkingR!$B60=\"Collections at Services\",WorkingR!J60,\"\")","v":""},{"$f":"IF(WorkingR!$B60=\"Collections at Services\",WorkingR!K60,\"\")","v":""},{"$f":"IF(WorkingR!$B60=\"Collections at Services\",WorkingR!L60,\"\")","v":""},{"$f":"IF(WorkingR!$B60=\"Collections at Services\",WorkingR!M60,\"\")","v":""},{"$f":"IF(WorkingR!$B60=\"Collections at Services\",WorkingR!N60,\"\")","v":""},{"$f":"IF(WorkingR!$B60=\"Collections at Services\",WorkingR!O60,\"\")","v":""},{"$f":"IF(WorkingR!$B60=\"Collections at Services\",WorkingR!P60,\"\")","v":""},{"$f":"IF(WorkingR!$B60=\"Collections at Services\",WorkingR!Q60,\"\")","v":""},{"$f":"IF(WorkingR!$B60=\"Collections at Services\",WorkingR!R60,\"\")","v":""},{"$f":"IF(WorkingR!$B60=\"Collections at Services\",WorkingR!S60,\"\")","v":""},{"$f":"IF(WorkingR!$B60=\"Collections at Services\",WorkingR!T60,\"\")","v":""},{"$f":"IF(WorkingR!$B60=\"Collections at Services\",WorkingR!U60,\"\")","v":""},{"$f":"IF(WorkingR!$B60=\"Collections at Services\",WorkingR!V60,\"\")","v":""},{"$f":"IF(WorkingR!$B60=\"Collections at Services\",WorkingR!W60,\"\")","v":""},{"$f":"IF(WorkingR!$B60=\"Collections at Services\",WorkingR!X60,\"\")","v":""},{"$f":"IF(WorkingR!$B60=\"Collections at Services\",WorkingR!Y60,\"\")","v":""},{"$f":"IF(Descriptions!D61=\"Collections at services\",Descriptions!AA61,0)","v":0}]
[{"$f":"IF(Descriptions!D62=\"Collections at services\",Descriptions!B62,0)","v":0},{"$f":"IF(WorkingR!$B61=\"Collections at Services\",WorkingR!D61,\"\")","v":""},{"$f":"IF(WorkingR!$B61=\"Collections at Services\",WorkingR!E61,\"\")","v":""},{"$f":"IF(WorkingR!$B61=\"Collections at Services\",WorkingR!F61,\"\")","v":""},{"$f":"IF(WorkingR!$B61=\"Collections at Services\",WorkingR!G61,\"\")","v":""},{"$f":"IF(WorkingR!$B61=\"Collections at Services\",WorkingR!H61,\"\")","v":""},{"$f":"IF(WorkingR!$B61=\"Collections at Services\",WorkingR!I61,\"\")","v":""},{"$f":"IF(WorkingR!$B61=\"Collections at Services\",WorkingR!J61,\"\")","v":""},{"$f":"IF(WorkingR!$B61=\"Collections at Services\",WorkingR!K61,\"\")","v":""},{"$f":"IF(WorkingR!$B61=\"Collections at Services\",WorkingR!L61,\"\")","v":""},{"$f":"IF(WorkingR!$B61=\"Collections at Services\",WorkingR!M61,\"\")","v":""},{"$f":"IF(WorkingR!$B61=\"Collections at Services\",WorkingR!N61,\"\")","v":""},{"$f":"IF(WorkingR!$B61=\"Collections at Services\",WorkingR!O61,\"\")","v":""},{"$f":"IF(WorkingR!$B61=\"Collections at Services\",WorkingR!P61,\"\")","v":""},{"$f":"IF(WorkingR!$B61=\"Collections at Services\",WorkingR!Q61,\"\")","v":""},{"$f":"IF(WorkingR!$B61=\"Collections at Services\",WorkingR!R61,\"\")","v":""},{"$f":"IF(WorkingR!$B61=\"Collections at Services\",WorkingR!S61,\"\")","v":""},{"$f":"IF(WorkingR!$B61=\"Collections at Services\",WorkingR!T61,\"\")","v":""},{"$f":"IF(WorkingR!$B61=\"Collections at Services\",WorkingR!U61,\"\")","v":""},{"$f":"IF(WorkingR!$B61=\"Collections at Services\",WorkingR!V61,\"\")","v":""},{"$f":"IF(WorkingR!$B61=\"Collections at Services\",WorkingR!W61,\"\")","v":""},{"$f":"IF(WorkingR!$B61=\"Collections at Services\",WorkingR!X61,\"\")","v":""},{"$f":"IF(WorkingR!$B61=\"Collections at Services\",WorkingR!Y61,\"\")","v":""},{"$f":"IF(Descriptions!D62=\"Collections at services\",Descriptions!AA62,0)","v":0}]
[{"$f":"IF(Descriptions!D63=\"Collections at services\",Descriptions!B63,0)","v":0},{"$f":"IF(WorkingR!$B62=\"Collections at Services\",WorkingR!D62,\"\")","v":""},{"$f":"IF(WorkingR!$B62=\"Collections at Services\",WorkingR!E62,\"\")","v":""},{"$f":"IF(WorkingR!$B62=\"Collections at Services\",WorkingR!F62,\"\")","v":""},{"$f":"IF(WorkingR!$B62=\"Collections at Services\",WorkingR!G62,\"\")","v":""},{"$f":"IF(WorkingR!$B62=\"Collections at Services\",WorkingR!H62,\"\")","v":""},{"$f":"IF(WorkingR!$B62=\"Collections at Services\",WorkingR!I62,\"\")","v":""},{"$f":"IF(WorkingR!$B62=\"Collections at Services\",WorkingR!J62,\"\")","v":""},{"$f":"IF(WorkingR!$B62=\"Collections at Services\",WorkingR!K62,\"\")","v":""},{"$f":"IF(WorkingR!$B62=\"Collections at Services\",WorkingR!L62,\"\")","v":""},{"$f":"IF(WorkingR!$B62=\"Collections at Services\",WorkingR!M62,\"\")","v":""},{"$f":"IF(WorkingR!$B62=\"Collections at Services\",WorkingR!N62,\"\")","v":""},{"$f":"IF(WorkingR!$B62=\"Collections at Services\",WorkingR!O62,\"\")","v":""},{"$f":"IF(WorkingR!$B62=\"Collections at Services\",WorkingR!P62,\"\")","v":""},{"$f":"IF(WorkingR!$B62=\"Collections at Services\",WorkingR!Q62,\"\")","v":""},{"$f":"IF(WorkingR!$B62=\"Collections at Services\",WorkingR!R62,\"\")","v":""},{"$f":"IF(WorkingR!$B62=\"Collections at Services\",WorkingR!S62,\"\")","v":""},{"$f":"IF(WorkingR!$B62=\"Collections at Services\",WorkingR!T62,\"\")","v":""},{"$f":"IF(WorkingR!$B62=\"Collections at Services\",WorkingR!U62,\"\")","v":""},{"$f":"IF(WorkingR!$B62=\"Collections at Services\",WorkingR!V62,\"\")","v":""},{"$f":"IF(WorkingR!$B62=\"Collections at Services\",WorkingR!W62,\"\")","v":""},{"$f":"IF(WorkingR!$B62=\"Collections at Services\",WorkingR!X62,\"\")","v":""},{"$f":"IF(WorkingR!$B62=\"Collections at Services\",WorkingR!Y62,\"\")","v":""},{"$f":"IF(Descriptions!D63=\"Collections at services\",Descriptions!AA63,0)","v":0}]
[{"$f":"IF(Descriptions!D64=\"Collections at services\",Descriptions!B64,0)","v":0},{"$f":"IF(WorkingR!$B63=\"Collections at Services\",WorkingR!D63,\"\")","v":""},{"$f":"IF(WorkingR!$B63=\"Collections at Services\",WorkingR!E63,\"\")","v":""},{"$f":"IF(WorkingR!$B63=\"Collections at Services\",WorkingR!F63,\"\")","v":""},{"$f":"IF(WorkingR!$B63=\"Collections at Services\",WorkingR!G63,\"\")","v":""},{"$f":"IF(WorkingR!$B63=\"Collections at Services\",WorkingR!H63,\"\")","v":""},{"$f":"IF(WorkingR!$B63=\"Collections at Services\",WorkingR!I63,\"\")","v":""},{"$f":"IF(WorkingR!$B63=\"Collections at Services\",WorkingR!J63,\"\")","v":""},{"$f":"IF(WorkingR!$B63=\"Collections at Services\",WorkingR!K63,\"\")","v":""},{"$f":"IF(WorkingR!$B63=\"Collections at Services\",WorkingR!L63,\"\")","v":""},{"$f":"IF(WorkingR!$B63=\"Collections at Services\",WorkingR!M63,\"\")","v":""},{"$f":"IF(WorkingR!$B63=\"Collections at Services\",WorkingR!N63,\"\")","v":""},{"$f":"IF(WorkingR!$B63=\"Collections at Services\",WorkingR!O63,\"\")","v":""},{"$f":"IF(WorkingR!$B63=\"Collections at Services\",WorkingR!P63,\"\")","v":""},{"$f":"IF(WorkingR!$B63=\"Collections at Services\",WorkingR!Q63,\"\")","v":""},{"$f":"IF(WorkingR!$B63=\"Collections at Services\",WorkingR!R63,\"\")","v":""},{"$f":"IF(WorkingR!$B63=\"Collections at Services\",WorkingR!S63,\"\")","v":""},{"$f":"IF(WorkingR!$B63=\"Collections at Services\",WorkingR!T63,\"\")","v":""},{"$f":"IF(WorkingR!$B63=\"Collections at Services\",WorkingR!U63,\"\")","v":""},{"$f":"IF(WorkingR!$B63=\"Collections at Services\",WorkingR!V63,\"\")","v":""},{"$f":"IF(WorkingR!$B63=\"Collections at Services\",WorkingR!W63,\"\")","v":""},{"$f":"IF(WorkingR!$B63=\"Collections at Services\",WorkingR!X63,\"\")","v":""},{"$f":"IF(WorkingR!$B63=\"Collections at Services\",WorkingR!Y63,\"\")","v":""},{"$f":"IF(Descriptions!D64=\"Collections at services\",Descriptions!AA64,0)","v":0}]
[{"$f":"IF(Descriptions!D65=\"Collections at services\",Descriptions!B65,0)","v":0},{"$f":"IF(WorkingR!$B64=\"Collections at Services\",WorkingR!D64,\"\")","v":""},{"$f":"IF(WorkingR!$B64=\"Collections at Services\",WorkingR!E64,\"\")","v":""},{"$f":"IF(WorkingR!$B64=\"Collections at Services\",WorkingR!F64,\"\")","v":""},{"$f":"IF(WorkingR!$B64=\"Collections at Services\",WorkingR!G64,\"\")","v":""},{"$f":"IF(WorkingR!$B64=\"Collections at Services\",WorkingR!H64,\"\")","v":""},{"$f":"IF(WorkingR!$B64=\"Collections at Services\",WorkingR!I64,\"\")","v":""},{"$f":"IF(WorkingR!$B64=\"Collections at Services\",WorkingR!J64,\"\")","v":""},{"$f":"IF(WorkingR!$B64=\"Collections at Services\",WorkingR!K64,\"\")","v":""},{"$f":"IF(WorkingR!$B64=\"Collections at Services\",WorkingR!L64,\"\")","v":""},{"$f":"IF(WorkingR!$B64=\"Collections at Services\",WorkingR!M64,\"\")","v":""},{"$f":"IF(WorkingR!$B64=\"Collections at Services\",WorkingR!N64,\"\")","v":""},{"$f":"IF(WorkingR!$B64=\"Collections at Services\",WorkingR!O64,\"\")","v":""},{"$f":"IF(WorkingR!$B64=\"Collections at Services\",WorkingR!P64,\"\")","v":""},{"$f":"IF(WorkingR!$B64=\"Collections at Services\",WorkingR!Q64,\"\")","v":""},{"$f":"IF(WorkingR!$B64=\"Collections at Services\",WorkingR!R64,\"\")","v":""},{"$f":"IF(WorkingR!$B64=\"Collections at Services\",WorkingR!S64,\"\")","v":""},{"$f":"IF(WorkingR!$B64=\"Collections at Services\",WorkingR!T64,\"\")","v":""},{"$f":"IF(WorkingR!$B64=\"Collections at Services\",WorkingR!U64,\"\")","v":""},{"$f":"IF(WorkingR!$B64=\"Collections at Services\",WorkingR!V64,\"\")","v":""},{"$f":"IF(WorkingR!$B64=\"Collections at Services\",WorkingR!W64,\"\")","v":""},{"$f":"IF(WorkingR!$B64=\"Collections at Services\",WorkingR!X64,\"\")","v":""},{"$f":"IF(WorkingR!$B64=\"Collections at Services\",WorkingR!Y64,\"\")","v":""},{"$f":"IF(Descriptions!D65=\"Collections at services\",Descriptions!AA65,0)","v":0}]
[{"$f":"IF(Descriptions!D66=\"Collections at services\",Descriptions!B66,0)","v":0},{"$f":"IF(WorkingR!$B65=\"Collections at Services\",WorkingR!D65,\"\")","v":""},{"$f":"IF(WorkingR!$B65=\"Collections at Services\",WorkingR!E65,\"\")","v":""},{"$f":"IF(WorkingR!$B65=\"Collections at Services\",WorkingR!F65,\"\")","v":""},{"$f":"IF(WorkingR!$B65=\"Collections at Services\",WorkingR!G65,\"\")","v":""},{"$f":"IF(WorkingR!$B65=\"Collections at Services\",WorkingR!H65,\"\")","v":""},{"$f":"IF(WorkingR!$B65=\"Collections at Services\",WorkingR!I65,\"\")","v":""},{"$f":"IF(WorkingR!$B65=\"Collections at Services\",WorkingR!J65,\"\")","v":""},{"$f":"IF(WorkingR!$B65=\"Collections at Services\",WorkingR!K65,\"\")","v":""},{"$f":"IF(WorkingR!$B65=\"Collections at Services\",WorkingR!L65,\"\")","v":""},{"$f":"IF(WorkingR!$B65=\"Collections at Services\",WorkingR!M65,\"\")","v":""},{"$f":"IF(WorkingR!$B65=\"Collections at Services\",WorkingR!N65,\"\")","v":""},{"$f":"IF(WorkingR!$B65=\"Collections at Services\",WorkingR!O65,\"\")","v":""},{"$f":"IF(WorkingR!$B65=\"Collections at Services\",WorkingR!P65,\"\")","v":""},{"$f":"IF(WorkingR!$B65=\"Collections at Services\",WorkingR!Q65,\"\")","v":""},{"$f":"IF(WorkingR!$B65=\"Collections at Services\",WorkingR!R65,\"\")","v":""},{"$f":"IF(WorkingR!$B65=\"Collections at Services\",WorkingR!S65,\"\")","v":""},{"$f":"IF(WorkingR!$B65=\"Collections at Services\",WorkingR!T65,\"\")","v":""},{"$f":"IF(WorkingR!$B65=\"Collections at Services\",WorkingR!U65,\"\")","v":""},{"$f":"IF(WorkingR!$B65=\"Collections at Services\",WorkingR!V65,\"\")","v":""},{"$f":"IF(WorkingR!$B65=\"Collections at Services\",WorkingR!W65,\"\")","v":""},{"$f":"IF(WorkingR!$B65=\"Collections at Services\",WorkingR!X65,\"\")","v":""},{"$f":"IF(WorkingR!$B65=\"Collections at Services\",WorkingR!Y65,\"\")","v":""},{"$f":"IF(Descriptions!D66=\"Collections at services\",Descriptions!AA66,0)","v":0}]
[{"$f":"IF(Descriptions!D67=\"Collections at services\",Descriptions!B67,0)","v":0},{"$f":"IF(WorkingR!$B66=\"Collections at Services\",WorkingR!D66,\"\")","v":""},{"$f":"IF(WorkingR!$B66=\"Collections at Services\",WorkingR!E66,\"\")","v":""},{"$f":"IF(WorkingR!$B66=\"Collections at Services\",WorkingR!F66,\"\")","v":""},{"$f":"IF(WorkingR!$B66=\"Collections at Services\",WorkingR!G66,\"\")","v":""},{"$f":"IF(WorkingR!$B66=\"Collections at Services\",WorkingR!H66,\"\")","v":""},{"$f":"IF(WorkingR!$B66=\"Collections at Services\",WorkingR!I66,\"\")","v":""},{"$f":"IF(WorkingR!$B66=\"Collections at Services\",WorkingR!J66,\"\")","v":""},{"$f":"IF(WorkingR!$B66=\"Collections at Services\",WorkingR!K66,\"\")","v":""},{"$f":"IF(WorkingR!$B66=\"Collections at Services\",WorkingR!L66,\"\")","v":""},{"$f":"IF(WorkingR!$B66=\"Collections at Services\",WorkingR!M66,\"\")","v":""},{"$f":"IF(WorkingR!$B66=\"Collections at Services\",WorkingR!N66,\"\")","v":""},{"$f":"IF(WorkingR!$B66=\"Collections at Services\",WorkingR!O66,\"\")","v":""},{"$f":"IF(WorkingR!$B66=\"Collections at Services\",WorkingR!P66,\"\")","v":""},{"$f":"IF(WorkingR!$B66=\"Collections at Services\",WorkingR!Q66,\"\")","v":""},{"$f":"IF(WorkingR!$B66=\"Collections at Services\",WorkingR!R66,\"\")","v":""},{"$f":"IF(WorkingR!$B66=\"Collections at Services\",WorkingR!S66,\"\")","v":""},{"$f":"IF(WorkingR!$B66=\"Collections at Services\",WorkingR!T66,\"\")","v":""},{"$f":"IF(WorkingR!$B66=\"Collections at Services\",WorkingR!U66,\"\")","v":""},{"$f":"IF(WorkingR!$B66=\"Collections at Services\",WorkingR!V66,\"\")","v":""},{"$f":"IF(WorkingR!$B66=\"Collections at Services\",WorkingR!W66,\"\")","v":""},{"$f":"IF(WorkingR!$B66=\"Collections at Services\",WorkingR!X66,\"\")","v":""},{"$f":"IF(WorkingR!$B66=\"Collections at Services\",WorkingR!Y66,\"\")","v":""},{"$f":"IF(Descriptions!D67=\"Collections at services\",Descriptions!AA67,0)","v":0}]
[{"$f":"IF(Descriptions!D68=\"Collections at services\",Descriptions!B68,0)","v":0},{"$f":"IF(WorkingR!$B67=\"Collections at Services\",WorkingR!D67,\"\")","v":""},{"$f":"IF(WorkingR!$B67=\"Collections at Services\",WorkingR!E67,\"\")","v":""},{"$f":"IF(WorkingR!$B67=\"Collections at Services\",WorkingR!F67,\"\")","v":""},{"$f":"IF(WorkingR!$B67=\"Collections at Services\",WorkingR!G67,\"\")","v":""},{"$f":"IF(WorkingR!$B67=\"Collections at Services\",WorkingR!H67,\"\")","v":""},{"$f":"IF(WorkingR!$B67=\"Collections at Services\",WorkingR!I67,\"\")","v":""},{"$f":"IF(WorkingR!$B67=\"Collections at Services\",WorkingR!J67,\"\")","v":""},{"$f":"IF(WorkingR!$B67=\"Collections at Services\",WorkingR!K67,\"\")","v":""},{"$f":"IF(WorkingR!$B67=\"Collections at Services\",WorkingR!L67,\"\")","v":""},{"$f":"IF(WorkingR!$B67=\"Collections at Services\",WorkingR!M67,\"\")","v":""},{"$f":"IF(WorkingR!$B67=\"Collections at Services\",WorkingR!N67,\"\")","v":""},{"$f":"IF(WorkingR!$B67=\"Collections at Services\",WorkingR!O67,\"\")","v":""},{"$f":"IF(WorkingR!$B67=\"Collections at Services\",WorkingR!P67,\"\")","v":""},{"$f":"IF(WorkingR!$B67=\"Collections at Services\",WorkingR!Q67,\"\")","v":""},{"$f":"IF(WorkingR!$B67=\"Collections at Services\",WorkingR!R67,\"\")","v":""},{"$f":"IF(WorkingR!$B67=\"Collections at Services\",WorkingR!S67,\"\")","v":""},{"$f":"IF(WorkingR!$B67=\"Collections at Services\",WorkingR!T67,\"\")","v":""},{"$f":"IF(WorkingR!$B67=\"Collections at Services\",WorkingR!U67,\"\")","v":""},{"$f":"IF(WorkingR!$B67=\"Collections at Services\",WorkingR!V67,\"\")","v":""},{"$f":"IF(WorkingR!$B67=\"Collections at Services\",WorkingR!W67,\"\")","v":""},{"$f":"IF(WorkingR!$B67=\"Collections at Services\",WorkingR!X67,\"\")","v":""},{"$f":"IF(WorkingR!$B67=\"Collections at Services\",WorkingR!Y67,\"\")","v":""},{"$f":"IF(Descriptions!D68=\"Collections at services\",Descriptions!AA68,0)","v":0}]
[{"$f":"IF(Descriptions!D69=\"Collections at services\",Descriptions!B69,0)","v":0},{"$f":"IF(WorkingR!$B68=\"Collections at Services\",WorkingR!D68,\"\")","v":""},{"$f":"IF(WorkingR!$B68=\"Collections at Services\",WorkingR!E68,\"\")","v":""},{"$f":"IF(WorkingR!$B68=\"Collections at Services\",WorkingR!F68,\"\")","v":""},{"$f":"IF(WorkingR!$B68=\"Collections at Services\",WorkingR!G68,\"\")","v":""},{"$f":"IF(WorkingR!$B68=\"Collections at Services\",WorkingR!H68,\"\")","v":""},{"$f":"IF(WorkingR!$B68=\"Collections at Services\",WorkingR!I68,\"\")","v":""},{"$f":"IF(WorkingR!$B68=\"Collections at Services\",WorkingR!J68,\"\")","v":""},{"$f":"IF(WorkingR!$B68=\"Collections at Services\",WorkingR!K68,\"\")","v":""},{"$f":"IF(WorkingR!$B68=\"Collections at Services\",WorkingR!L68,\"\")","v":""},{"$f":"IF(WorkingR!$B68=\"Collections at Services\",WorkingR!M68,\"\")","v":""},{"$f":"IF(WorkingR!$B68=\"Collections at Services\",WorkingR!N68,\"\")","v":""},{"$f":"IF(WorkingR!$B68=\"Collections at Services\",WorkingR!O68,\"\")","v":""},{"$f":"IF(WorkingR!$B68=\"Collections at Services\",WorkingR!P68,\"\")","v":""},{"$f":"IF(WorkingR!$B68=\"Collections at Services\",WorkingR!Q68,\"\")","v":""},{"$f":"IF(WorkingR!$B68=\"Collections at Services\",WorkingR!R68,\"\")","v":""},{"$f":"IF(WorkingR!$B68=\"Collections at Services\",WorkingR!S68,\"\")","v":""},{"$f":"IF(WorkingR!$B68=\"Collections at Services\",WorkingR!T68,\"\")","v":""},{"$f":"IF(WorkingR!$B68=\"Collections at Services\",WorkingR!U68,\"\")","v":""},{"$f":"IF(WorkingR!$B68=\"Collections at Services\",WorkingR!V68,\"\")","v":""},{"$f":"IF(WorkingR!$B68=\"Collections at Services\",WorkingR!W68,\"\")","v":""},{"$f":"IF(WorkingR!$B68=\"Collections at Services\",WorkingR!X68,\"\")","v":""},{"$f":"IF(WorkingR!$B68=\"Collections at Services\",WorkingR!Y68,\"\")","v":""},{"$f":"IF(Descriptions!D69=\"Collections at services\",Descriptions!AA69,0)","v":0}]
[{"$f":"IF(Descriptions!D70=\"Collections at services\",Descriptions!B70,0)","v":0},{"$f":"IF(WorkingR!$B69=\"Collections at Services\",WorkingR!D69,\"\")","v":""},{"$f":"IF(WorkingR!$B69=\"Collections at Services\",WorkingR!E69,\"\")","v":""},{"$f":"IF(WorkingR!$B69=\"Collections at Services\",WorkingR!F69,\"\")","v":""},{"$f":"IF(WorkingR!$B69=\"Collections at Services\",WorkingR!G69,\"\")","v":""},{"$f":"IF(WorkingR!$B69=\"Collections at Services\",WorkingR!H69,\"\")","v":""},{"$f":"IF(WorkingR!$B69=\"Collections at Services\",WorkingR!I69,\"\")","v":""},{"$f":"IF(WorkingR!$B69=\"Collections at Services\",WorkingR!J69,\"\")","v":""},{"$f":"IF(WorkingR!$B69=\"Collections at Services\",WorkingR!K69,\"\")","v":""},{"$f":"IF(WorkingR!$B69=\"Collections at Services\",WorkingR!L69,\"\")","v":""},{"$f":"IF(WorkingR!$B69=\"Collections at Services\",WorkingR!M69,\"\")","v":""},{"$f":"IF(WorkingR!$B69=\"Collections at Services\",WorkingR!N69,\"\")","v":""},{"$f":"IF(WorkingR!$B69=\"Collections at Services\",WorkingR!O69,\"\")","v":""},{"$f":"IF(WorkingR!$B69=\"Collections at Services\",WorkingR!P69,\"\")","v":""},{"$f":"IF(WorkingR!$B69=\"Collections at Services\",WorkingR!Q69,\"\")","v":""},{"$f":"IF(WorkingR!$B69=\"Collections at Services\",WorkingR!R69,\"\")","v":""},{"$f":"IF(WorkingR!$B69=\"Collections at Services\",WorkingR!S69,\"\")","v":""},{"$f":"IF(WorkingR!$B69=\"Collections at Services\",WorkingR!T69,\"\")","v":""},{"$f":"IF(WorkingR!$B69=\"Collections at Services\",WorkingR!U69,\"\")","v":""},{"$f":"IF(WorkingR!$B69=\"Collections at Services\",WorkingR!V69,\"\")","v":""},{"$f":"IF(WorkingR!$B69=\"Collections at Services\",WorkingR!W69,\"\")","v":""},{"$f":"IF(WorkingR!$B69=\"Collections at Services\",WorkingR!X69,\"\")","v":""},{"$f":"IF(WorkingR!$B69=\"Collections at Services\",WorkingR!Y69,\"\")","v":""},{"$f":"IF(Descriptions!D70=\"Collections at services\",Descriptions!AA70,0)","v":0}]
[{"$f":"IF(Descriptions!D71=\"Collections at services\",Descriptions!B71,0)","v":0},{"$f":"IF(WorkingR!$B70=\"Collections at Services\",WorkingR!D70,\"\")","v":""},{"$f":"IF(WorkingR!$B70=\"Collections at Services\",WorkingR!E70,\"\")","v":""},{"$f":"IF(WorkingR!$B70=\"Collections at Services\",WorkingR!F70,\"\")","v":""},{"$f":"IF(WorkingR!$B70=\"Collections at Services\",WorkingR!G70,\"\")","v":""},{"$f":"IF(WorkingR!$B70=\"Collections at Services\",WorkingR!H70,\"\")","v":""},{"$f":"IF(WorkingR!$B70=\"Collections at Services\",WorkingR!I70,\"\")","v":""},{"$f":"IF(WorkingR!$B70=\"Collections at Services\",WorkingR!J70,\"\")","v":""},{"$f":"IF(WorkingR!$B70=\"Collections at Services\",WorkingR!K70,\"\")","v":""},{"$f":"IF(WorkingR!$B70=\"Collections at Services\",WorkingR!L70,\"\")","v":""},{"$f":"IF(WorkingR!$B70=\"Collections at Services\",WorkingR!M70,\"\")","v":""},{"$f":"IF(WorkingR!$B70=\"Collections at Services\",WorkingR!N70,\"\")","v":""},{"$f":"IF(WorkingR!$B70=\"Collections at Services\",WorkingR!O70,\"\")","v":""},{"$f":"IF(WorkingR!$B70=\"Collections at Services\",WorkingR!P70,\"\")","v":""},{"$f":"IF(WorkingR!$B70=\"Collections at Services\",WorkingR!Q70,\"\")","v":""},{"$f":"IF(WorkingR!$B70=\"Collections at Services\",WorkingR!R70,\"\")","v":""},{"$f":"IF(WorkingR!$B70=\"Collections at Services\",WorkingR!S70,\"\")","v":""},{"$f":"IF(WorkingR!$B70=\"Collections at Services\",WorkingR!T70,\"\")","v":""},{"$f":"IF(WorkingR!$B70=\"Collections at Services\",WorkingR!U70,\"\")","v":""},{"$f":"IF(WorkingR!$B70=\"Collections at Services\",WorkingR!V70,\"\")","v":""},{"$f":"IF(WorkingR!$B70=\"Collections at Services\",WorkingR!W70,\"\")","v":""},{"$f":"IF(WorkingR!$B70=\"Collections at Services\",WorkingR!X70,\"\")","v":""},{"$f":"IF(WorkingR!$B70=\"Collections at Services\",WorkingR!Y70,\"\")","v":""},{"$f":"IF(Descriptions!D71=\"Collections at services\",Descriptions!AA71,0)","v":0}]
[{"$f":"IF(Descriptions!D72=\"Collections at services\",Descriptions!B72,0)","v":0},{"$f":"IF(WorkingR!$B71=\"Collections at Services\",WorkingR!D71,\"\")","v":""},{"$f":"IF(WorkingR!$B71=\"Collections at Services\",WorkingR!E71,\"\")","v":""},{"$f":"IF(WorkingR!$B71=\"Collections at Services\",WorkingR!F71,\"\")","v":""},{"$f":"IF(WorkingR!$B71=\"Collections at Services\",WorkingR!G71,\"\")","v":""},{"$f":"IF(WorkingR!$B71=\"Collections at Services\",WorkingR!H71,\"\")","v":""},{"$f":"IF(WorkingR!$B71=\"Collections at Services\",WorkingR!I71,\"\")","v":""},{"$f":"IF(WorkingR!$B71=\"Collections at Services\",WorkingR!J71,\"\")","v":""},{"$f":"IF(WorkingR!$B71=\"Collections at Services\",WorkingR!K71,\"\")","v":""},{"$f":"IF(WorkingR!$B71=\"Collections at Services\",WorkingR!L71,\"\")","v":""},{"$f":"IF(WorkingR!$B71=\"Collections at Services\",WorkingR!M71,\"\")","v":""},{"$f":"IF(WorkingR!$B71=\"Collections at Services\",WorkingR!N71,\"\")","v":""},{"$f":"IF(WorkingR!$B71=\"Collections at Services\",WorkingR!O71,\"\")","v":""},{"$f":"IF(WorkingR!$B71=\"Collections at Services\",WorkingR!P71,\"\")","v":""},{"$f":"IF(WorkingR!$B71=\"Collections at Services\",WorkingR!Q71,\"\")","v":""},{"$f":"IF(WorkingR!$B71=\"Collections at Services\",WorkingR!R71,\"\")","v":""},{"$f":"IF(WorkingR!$B71=\"Collections at Services\",WorkingR!S71,\"\")","v":""},{"$f":"IF(WorkingR!$B71=\"Collections at Services\",WorkingR!T71,\"\")","v":""},{"$f":"IF(WorkingR!$B71=\"Collections at Services\",WorkingR!U71,\"\")","v":""},{"$f":"IF(WorkingR!$B71=\"Collections at Services\",WorkingR!V71,\"\")","v":""},{"$f":"IF(WorkingR!$B71=\"Collections at Services\",WorkingR!W71,\"\")","v":""},{"$f":"IF(WorkingR!$B71=\"Collections at Services\",WorkingR!X71,\"\")","v":""},{"$f":"IF(WorkingR!$B71=\"Collections at Services\",WorkingR!Y71,\"\")","v":""},{"$f":"IF(Descriptions!D72=\"Collections at services\",Descriptions!AA72,0)","v":0}]
[{"$f":"IF(Descriptions!D73=\"Collections at services\",Descriptions!B73,0)","v":0},{"$f":"IF(WorkingR!$B72=\"Collections at Services\",WorkingR!D72,\"\")","v":""},{"$f":"IF(WorkingR!$B72=\"Collections at Services\",WorkingR!E72,\"\")","v":""},{"$f":"IF(WorkingR!$B72=\"Collections at Services\",WorkingR!F72,\"\")","v":""},{"$f":"IF(WorkingR!$B72=\"Collections at Services\",WorkingR!G72,\"\")","v":""},{"$f":"IF(WorkingR!$B72=\"Collections at Services\",WorkingR!H72,\"\")","v":""},{"$f":"IF(WorkingR!$B72=\"Collections at Services\",WorkingR!I72,\"\")","v":""},{"$f":"IF(WorkingR!$B72=\"Collections at Services\",WorkingR!J72,\"\")","v":""},{"$f":"IF(WorkingR!$B72=\"Collections at Services\",WorkingR!K72,\"\")","v":""},{"$f":"IF(WorkingR!$B72=\"Collections at Services\",WorkingR!L72,\"\")","v":""},{"$f":"IF(WorkingR!$B72=\"Collections at Services\",WorkingR!M72,\"\")","v":""},{"$f":"IF(WorkingR!$B72=\"Collections at Services\",WorkingR!N72,\"\")","v":""},{"$f":"IF(WorkingR!$B72=\"Collections at Services\",WorkingR!O72,\"\")","v":""},{"$f":"IF(WorkingR!$B72=\"Collections at Services\",WorkingR!P72,\"\")","v":""},{"$f":"IF(WorkingR!$B72=\"Collections at Services\",WorkingR!Q72,\"\")","v":""},{"$f":"IF(WorkingR!$B72=\"Collections at Services\",WorkingR!R72,\"\")","v":""},{"$f":"IF(WorkingR!$B72=\"Collections at Services\",WorkingR!S72,\"\")","v":""},{"$f":"IF(WorkingR!$B72=\"Collections at Services\",WorkingR!T72,\"\")","v":""},{"$f":"IF(WorkingR!$B72=\"Collections at Services\",WorkingR!U72,\"\")","v":""},{"$f":"IF(WorkingR!$B72=\"Collections at Services\",WorkingR!V72,\"\")","v":""},{"$f":"IF(WorkingR!$B72=\"Collections at Services\",WorkingR!W72,\"\")","v":""},{"$f":"IF(WorkingR!$B72=\"Collections at Services\",WorkingR!X72,\"\")","v":""},{"$f":"IF(WorkingR!$B72=\"Collections at Services\",WorkingR!Y72,\"\")","v":""},{"$f":"IF(Descriptions!D73=\"Collections at services\",Descriptions!AA73,0)","v":0}]
[{"$f":"IF(Descriptions!D74=\"Collections at services\",Descriptions!B74,0)","v":0},{"$f":"IF(WorkingR!$B73=\"Collections at Services\",WorkingR!D73,\"\")","v":""},{"$f":"IF(WorkingR!$B73=\"Collections at Services\",WorkingR!E73,\"\")","v":""},{"$f":"IF(WorkingR!$B73=\"Collections at Services\",WorkingR!F73,\"\")","v":""},{"$f":"IF(WorkingR!$B73=\"Collections at Services\",WorkingR!G73,\"\")","v":""},{"$f":"IF(WorkingR!$B73=\"Collections at Services\",WorkingR!H73,\"\")","v":""},{"$f":"IF(WorkingR!$B73=\"Collections at Services\",WorkingR!I73,\"\")","v":""},{"$f":"IF(WorkingR!$B73=\"Collections at Services\",WorkingR!J73,\"\")","v":""},{"$f":"IF(WorkingR!$B73=\"Collections at Services\",WorkingR!K73,\"\")","v":""},{"$f":"IF(WorkingR!$B73=\"Collections at Services\",WorkingR!L73,\"\")","v":""},{"$f":"IF(WorkingR!$B73=\"Collections at Services\",WorkingR!M73,\"\")","v":""},{"$f":"IF(WorkingR!$B73=\"Collections at Services\",WorkingR!N73,\"\")","v":""},{"$f":"IF(WorkingR!$B73=\"Collections at Services\",WorkingR!O73,\"\")","v":""},{"$f":"IF(WorkingR!$B73=\"Collections at Services\",WorkingR!P73,\"\")","v":""},{"$f":"IF(WorkingR!$B73=\"Collections at Services\",WorkingR!Q73,\"\")","v":""},{"$f":"IF(WorkingR!$B73=\"Collections at Services\",WorkingR!R73,\"\")","v":""},{"$f":"IF(WorkingR!$B73=\"Collections at Services\",WorkingR!S73,\"\")","v":""},{"$f":"IF(WorkingR!$B73=\"Collections at Services\",WorkingR!T73,\"\")","v":""},{"$f":"IF(WorkingR!$B73=\"Collections at Services\",WorkingR!U73,\"\")","v":""},{"$f":"IF(WorkingR!$B73=\"Collections at Services\",WorkingR!V73,\"\")","v":""},{"$f":"IF(WorkingR!$B73=\"Collections at Services\",WorkingR!W73,\"\")","v":""},{"$f":"IF(WorkingR!$B73=\"Collections at Services\",WorkingR!X73,\"\")","v":""},{"$f":"IF(WorkingR!$B73=\"Collections at Services\",WorkingR!Y73,\"\")","v":""},{"$f":"IF(Descriptions!D74=\"Collections at services\",Descriptions!AA74,0)","v":0}]
[{"$f":"IF(Descriptions!D75=\"Collections at services\",Descriptions!B75,0)","v":0},{"$f":"IF(WorkingR!$B74=\"Collections at Services\",WorkingR!D74,\"\")","v":""},{"$f":"IF(WorkingR!$B74=\"Collections at Services\",WorkingR!E74,\"\")","v":""},{"$f":"IF(WorkingR!$B74=\"Collections at Services\",WorkingR!F74,\"\")","v":""},{"$f":"IF(WorkingR!$B74=\"Collections at Services\",WorkingR!G74,\"\")","v":""},{"$f":"IF(WorkingR!$B74=\"Collections at Services\",WorkingR!H74,\"\")","v":""},{"$f":"IF(WorkingR!$B74=\"Collections at Services\",WorkingR!I74,\"\")","v":""},{"$f":"IF(WorkingR!$B74=\"Collections at Services\",WorkingR!J74,\"\")","v":""},{"$f":"IF(WorkingR!$B74=\"Collections at Services\",WorkingR!K74,\"\")","v":""},{"$f":"IF(WorkingR!$B74=\"Collections at Services\",WorkingR!L74,\"\")","v":""},{"$f":"IF(WorkingR!$B74=\"Collections at Services\",WorkingR!M74,\"\")","v":""},{"$f":"IF(WorkingR!$B74=\"Collections at Services\",WorkingR!N74,\"\")","v":""},{"$f":"IF(WorkingR!$B74=\"Collections at Services\",WorkingR!O74,\"\")","v":""},{"$f":"IF(WorkingR!$B74=\"Collections at Services\",WorkingR!P74,\"\")","v":""},{"$f":"IF(WorkingR!$B74=\"Collections at Services\",WorkingR!Q74,\"\")","v":""},{"$f":"IF(WorkingR!$B74=\"Collections at Services\",WorkingR!R74,\"\")","v":""},{"$f":"IF(WorkingR!$B74=\"Collections at Services\",WorkingR!S74,\"\")","v":""},{"$f":"IF(WorkingR!$B74=\"Collections at Services\",WorkingR!T74,\"\")","v":""},{"$f":"IF(WorkingR!$B74=\"Collections at Services\",WorkingR!U74,\"\")","v":""},{"$f":"IF(WorkingR!$B74=\"Collections at Services\",WorkingR!V74,\"\")","v":""},{"$f":"IF(WorkingR!$B74=\"Collections at Services\",WorkingR!W74,\"\")","v":""},{"$f":"IF(WorkingR!$B74=\"Collections at Services\",WorkingR!X74,\"\")","v":""},{"$f":"IF(WorkingR!$B74=\"Collections at Services\",WorkingR!Y74,\"\")","v":""},{"$f":"IF(Descriptions!D75=\"Collections at services\",Descriptions!AA75,0)","v":0}]
[{"$f":"IF(Descriptions!D76=\"Collections at services\",Descriptions!B76,0)","v":0},{"$f":"IF(WorkingR!$B75=\"Collections at Services\",WorkingR!D75,\"\")","v":""},{"$f":"IF(WorkingR!$B75=\"Collections at Services\",WorkingR!E75,\"\")","v":""},{"$f":"IF(WorkingR!$B75=\"Collections at Services\",WorkingR!F75,\"\")","v":""},{"$f":"IF(WorkingR!$B75=\"Collections at Services\",WorkingR!G75,\"\")","v":""},{"$f":"IF(WorkingR!$B75=\"Collections at Services\",WorkingR!H75,\"\")","v":""},{"$f":"IF(WorkingR!$B75=\"Collections at Services\",WorkingR!I75,\"\")","v":""},{"$f":"IF(WorkingR!$B75=\"Collections at Services\",WorkingR!J75,\"\")","v":""},{"$f":"IF(WorkingR!$B75=\"Collections at Services\",WorkingR!K75,\"\")","v":""},{"$f":"IF(WorkingR!$B75=\"Collections at Services\",WorkingR!L75,\"\")","v":""},{"$f":"IF(WorkingR!$B75=\"Collections at Services\",WorkingR!M75,\"\")","v":""},{"$f":"IF(WorkingR!$B75=\"Collections at Services\",WorkingR!N75,\"\")","v":""},{"$f":"IF(WorkingR!$B75=\"Collections at Services\",WorkingR!O75,\"\")","v":""},{"$f":"IF(WorkingR!$B75=\"Collections at Services\",WorkingR!P75,\"\")","v":""},{"$f":"IF(WorkingR!$B75=\"Collections at Services\",WorkingR!Q75,\"\")","v":""},{"$f":"IF(WorkingR!$B75=\"Collections at Services\",WorkingR!R75,\"\")","v":""},{"$f":"IF(WorkingR!$B75=\"Collections at Services\",WorkingR!S75,\"\")","v":""},{"$f":"IF(WorkingR!$B75=\"Collections at Services\",WorkingR!T75,\"\")","v":""},{"$f":"IF(WorkingR!$B75=\"Collections at Services\",WorkingR!U75,\"\")","v":""},{"$f":"IF(WorkingR!$B75=\"Collections at Services\",WorkingR!V75,\"\")","v":""},{"$f":"IF(WorkingR!$B75=\"Collections at Services\",WorkingR!W75,\"\")","v":""},{"$f":"IF(WorkingR!$B75=\"Collections at Services\",WorkingR!X75,\"\")","v":""},{"$f":"IF(WorkingR!$B75=\"Collections at Services\",WorkingR!Y75,\"\")","v":""},{"$f":"IF(Descriptions!D76=\"Collections at services\",Descriptions!AA76,0)","v":0}]
[{"$f":"IF(Descriptions!D77=\"Collections at services\",Descriptions!B77,0)","v":0},{"$f":"IF(WorkingR!$B76=\"Collections at Services\",WorkingR!D76,\"\")","v":""},{"$f":"IF(WorkingR!$B76=\"Collections at Services\",WorkingR!E76,\"\")","v":""},{"$f":"IF(WorkingR!$B76=\"Collections at Services\",WorkingR!F76,\"\")","v":""},{"$f":"IF(WorkingR!$B76=\"Collections at Services\",WorkingR!G76,\"\")","v":""},{"$f":"IF(WorkingR!$B76=\"Collections at Services\",WorkingR!H76,\"\")","v":""},{"$f":"IF(WorkingR!$B76=\"Collections at Services\",WorkingR!I76,\"\")","v":""},{"$f":"IF(WorkingR!$B76=\"Collections at Services\",WorkingR!J76,\"\")","v":""},{"$f":"IF(WorkingR!$B76=\"Collections at Services\",WorkingR!K76,\"\")","v":""},{"$f":"IF(WorkingR!$B76=\"Collections at Services\",WorkingR!L76,\"\")","v":""},{"$f":"IF(WorkingR!$B76=\"Collections at Services\",WorkingR!M76,\"\")","v":""},{"$f":"IF(WorkingR!$B76=\"Collections at Services\",WorkingR!N76,\"\")","v":""},{"$f":"IF(WorkingR!$B76=\"Collections at Services\",WorkingR!O76,\"\")","v":""},{"$f":"IF(WorkingR!$B76=\"Collections at Services\",WorkingR!P76,\"\")","v":""},{"$f":"IF(WorkingR!$B76=\"Collections at Services\",WorkingR!Q76,\"\")","v":""},{"$f":"IF(WorkingR!$B76=\"Collections at Services\",WorkingR!R76,\"\")","v":""},{"$f":"IF(WorkingR!$B76=\"Collections at Services\",WorkingR!S76,\"\")","v":""},{"$f":"IF(WorkingR!$B76=\"Collections at Services\",WorkingR!T76,\"\")","v":""},{"$f":"IF(WorkingR!$B76=\"Collections at Services\",WorkingR!U76,\"\")","v":""},{"$f":"IF(WorkingR!$B76=\"Collections at Services\",WorkingR!V76,\"\")","v":""},{"$f":"IF(WorkingR!$B76=\"Collections at Services\",WorkingR!W76,\"\")","v":""},{"$f":"IF(WorkingR!$B76=\"Collections at Services\",WorkingR!X76,\"\")","v":""},{"$f":"IF(WorkingR!$B76=\"Collections at Services\",WorkingR!Y76,\"\")","v":""},{"$f":"IF(Descriptions!D77=\"Collections at services\",Descriptions!AA77,0)","v":0}]
[{"$f":"IF(Descriptions!D78=\"Collections at services\",Descriptions!B78,0)","v":0},{"$f":"IF(WorkingR!$B77=\"Collections at Services\",WorkingR!D77,\"\")","v":""},{"$f":"IF(WorkingR!$B77=\"Collections at Services\",WorkingR!E77,\"\")","v":""},{"$f":"IF(WorkingR!$B77=\"Collections at Services\",WorkingR!F77,\"\")","v":""},{"$f":"IF(WorkingR!$B77=\"Collections at Services\",WorkingR!G77,\"\")","v":""},{"$f":"IF(WorkingR!$B77=\"Collections at Services\",WorkingR!H77,\"\")","v":""},{"$f":"IF(WorkingR!$B77=\"Collections at Services\",WorkingR!I77,\"\")","v":""},{"$f":"IF(WorkingR!$B77=\"Collections at Services\",WorkingR!J77,\"\")","v":""},{"$f":"IF(WorkingR!$B77=\"Collections at Services\",WorkingR!K77,\"\")","v":""},{"$f":"IF(WorkingR!$B77=\"Collections at Services\",WorkingR!L77,\"\")","v":""},{"$f":"IF(WorkingR!$B77=\"Collections at Services\",WorkingR!M77,\"\")","v":""},{"$f":"IF(WorkingR!$B77=\"Collections at Services\",WorkingR!N77,\"\")","v":""},{"$f":"IF(WorkingR!$B77=\"Collections at Services\",WorkingR!O77,\"\")","v":""},{"$f":"IF(WorkingR!$B77=\"Collections at Services\",WorkingR!P77,\"\")","v":""},{"$f":"IF(WorkingR!$B77=\"Collections at Services\",WorkingR!Q77,\"\")","v":""},{"$f":"IF(WorkingR!$B77=\"Collections at Services\",WorkingR!R77,\"\")","v":""},{"$f":"IF(WorkingR!$B77=\"Collections at Services\",WorkingR!S77,\"\")","v":""},{"$f":"IF(WorkingR!$B77=\"Collections at Services\",WorkingR!T77,\"\")","v":""},{"$f":"IF(WorkingR!$B77=\"Collections at Services\",WorkingR!U77,\"\")","v":""},{"$f":"IF(WorkingR!$B77=\"Collections at Services\",WorkingR!V77,\"\")","v":""},{"$f":"IF(WorkingR!$B77=\"Collections at Services\",WorkingR!W77,\"\")","v":""},{"$f":"IF(WorkingR!$B77=\"Collections at Services\",WorkingR!X77,\"\")","v":""},{"$f":"IF(WorkingR!$B77=\"Collections at Services\",WorkingR!Y77,\"\")","v":""},{"$f":"IF(Descriptions!D78=\"Collections at services\",Descriptions!AA78,0)","v":0}]
[{"$f":"IF(Descriptions!D79=\"Collections at services\",Descriptions!B79,0)","v":0},{"$f":"IF(WorkingR!$B78=\"Collections at Services\",WorkingR!D78,\"\")","v":""},{"$f":"IF(WorkingR!$B78=\"Collections at Services\",WorkingR!E78,\"\")","v":""},{"$f":"IF(WorkingR!$B78=\"Collections at Services\",WorkingR!F78,\"\")","v":""},{"$f":"IF(WorkingR!$B78=\"Collections at Services\",WorkingR!G78,\"\")","v":""},{"$f":"IF(WorkingR!$B78=\"Collections at Services\",WorkingR!H78,\"\")","v":""},{"$f":"IF(WorkingR!$B78=\"Collections at Services\",WorkingR!I78,\"\")","v":""},{"$f":"IF(WorkingR!$B78=\"Collections at Services\",WorkingR!J78,\"\")","v":""},{"$f":"IF(WorkingR!$B78=\"Collections at Services\",WorkingR!K78,\"\")","v":""},{"$f":"IF(WorkingR!$B78=\"Collections at Services\",WorkingR!L78,\"\")","v":""},{"$f":"IF(WorkingR!$B78=\"Collections at Services\",WorkingR!M78,\"\")","v":""},{"$f":"IF(WorkingR!$B78=\"Collections at Services\",WorkingR!N78,\"\")","v":""},{"$f":"IF(WorkingR!$B78=\"Collections at Services\",WorkingR!O78,\"\")","v":""},{"$f":"IF(WorkingR!$B78=\"Collections at Services\",WorkingR!P78,\"\")","v":""},{"$f":"IF(WorkingR!$B78=\"Collections at Services\",WorkingR!Q78,\"\")","v":""},{"$f":"IF(WorkingR!$B78=\"Collections at Services\",WorkingR!R78,\"\")","v":""},{"$f":"IF(WorkingR!$B78=\"Collections at Services\",WorkingR!S78,\"\")","v":""},{"$f":"IF(WorkingR!$B78=\"Collections at Services\",WorkingR!T78,\"\")","v":""},{"$f":"IF(WorkingR!$B78=\"Collections at Services\",WorkingR!U78,\"\")","v":""},{"$f":"IF(WorkingR!$B78=\"Collections at Services\",WorkingR!V78,\"\")","v":""},{"$f":"IF(WorkingR!$B78=\"Collections at Services\",WorkingR!W78,\"\")","v":""},{"$f":"IF(WorkingR!$B78=\"Collections at Services\",WorkingR!X78,\"\")","v":""},{"$f":"IF(WorkingR!$B78=\"Collections at Services\",WorkingR!Y78,\"\")","v":""},{"$f":"IF(Descriptions!D79=\"Collections at services\",Descriptions!AA79,0)","v":0}]
[{"$f":"IF(Descriptions!D80=\"Collections at services\",Descriptions!B80,0)","v":0},{"$f":"IF(WorkingR!$B79=\"Collections at Services\",WorkingR!D79,\"\")","v":""},{"$f":"IF(WorkingR!$B79=\"Collections at Services\",WorkingR!E79,\"\")","v":""},{"$f":"IF(WorkingR!$B79=\"Collections at Services\",WorkingR!F79,\"\")","v":""},{"$f":"IF(WorkingR!$B79=\"Collections at Services\",WorkingR!G79,\"\")","v":""},{"$f":"IF(WorkingR!$B79=\"Collections at Services\",WorkingR!H79,\"\")","v":""},{"$f":"IF(WorkingR!$B79=\"Collections at Services\",WorkingR!I79,\"\")","v":""},{"$f":"IF(WorkingR!$B79=\"Collections at Services\",WorkingR!J79,\"\")","v":""},{"$f":"IF(WorkingR!$B79=\"Collections at Services\",WorkingR!K79,\"\")","v":""},{"$f":"IF(WorkingR!$B79=\"Collections at Services\",WorkingR!L79,\"\")","v":""},{"$f":"IF(WorkingR!$B79=\"Collections at Services\",WorkingR!M79,\"\")","v":""},{"$f":"IF(WorkingR!$B79=\"Collections at Services\",WorkingR!N79,\"\")","v":""},{"$f":"IF(WorkingR!$B79=\"Collections at Services\",WorkingR!O79,\"\")","v":""},{"$f":"IF(WorkingR!$B79=\"Collections at Services\",WorkingR!P79,\"\")","v":""},{"$f":"IF(WorkingR!$B79=\"Collections at Services\",WorkingR!Q79,\"\")","v":""},{"$f":"IF(WorkingR!$B79=\"Collections at Services\",WorkingR!R79,\"\")","v":""},{"$f":"IF(WorkingR!$B79=\"Collections at Services\",WorkingR!S79,\"\")","v":""},{"$f":"IF(WorkingR!$B79=\"Collections at Services\",WorkingR!T79,\"\")","v":""},{"$f":"IF(WorkingR!$B79=\"Collections at Services\",WorkingR!U79,\"\")","v":""},{"$f":"IF(WorkingR!$B79=\"Collections at Services\",WorkingR!V79,\"\")","v":""},{"$f":"IF(WorkingR!$B79=\"Collections at Services\",WorkingR!W79,\"\")","v":""},{"$f":"IF(WorkingR!$B79=\"Collections at Services\",WorkingR!X79,\"\")","v":""},{"$f":"IF(WorkingR!$B79=\"Collections at Services\",WorkingR!Y79,\"\")","v":""},{"$f":"IF(Descriptions!D80=\"Collections at services\",Descriptions!AA80,0)","v":0}]
[{"$f":"IF(Descriptions!D81=\"Collections at services\",Descriptions!B81,0)","v":0},{"$f":"IF(WorkingR!$B80=\"Collections at Services\",WorkingR!D80,\"\")","v":""},{"$f":"IF(WorkingR!$B80=\"Collections at Services\",WorkingR!E80,\"\")","v":""},{"$f":"IF(WorkingR!$B80=\"Collections at Services\",WorkingR!F80,\"\")","v":""},{"$f":"IF(WorkingR!$B80=\"Collections at Services\",WorkingR!G80,\"\")","v":""},{"$f":"IF(WorkingR!$B80=\"Collections at Services\",WorkingR!H80,\"\")","v":""},{"$f":"IF(WorkingR!$B80=\"Collections at Services\",WorkingR!I80,\"\")","v":""},{"$f":"IF(WorkingR!$B80=\"Collections at Services\",WorkingR!J80,\"\")","v":""},{"$f":"IF(WorkingR!$B80=\"Collections at Services\",WorkingR!K80,\"\")","v":""},{"$f":"IF(WorkingR!$B80=\"Collections at Services\",WorkingR!L80,\"\")","v":""},{"$f":"IF(WorkingR!$B80=\"Collections at Services\",WorkingR!M80,\"\")","v":""},{"$f":"IF(WorkingR!$B80=\"Collections at Services\",WorkingR!N80,\"\")","v":""},{"$f":"IF(WorkingR!$B80=\"Collections at Services\",WorkingR!O80,\"\")","v":""},{"$f":"IF(WorkingR!$B80=\"Collections at Services\",WorkingR!P80,\"\")","v":""},{"$f":"IF(WorkingR!$B80=\"Collections at Services\",WorkingR!Q80,\"\")","v":""},{"$f":"IF(WorkingR!$B80=\"Collections at Services\",WorkingR!R80,\"\")","v":""},{"$f":"IF(WorkingR!$B80=\"Collections at Services\",WorkingR!S80,\"\")","v":""},{"$f":"IF(WorkingR!$B80=\"Collections at Services\",WorkingR!T80,\"\")","v":""},{"$f":"IF(WorkingR!$B80=\"Collections at Services\",WorkingR!U80,\"\")","v":""},{"$f":"IF(WorkingR!$B80=\"Collections at Services\",WorkingR!V80,\"\")","v":""},{"$f":"IF(WorkingR!$B80=\"Collections at Services\",WorkingR!W80,\"\")","v":""},{"$f":"IF(WorkingR!$B80=\"Collections at Services\",WorkingR!X80,\"\")","v":""},{"$f":"IF(WorkingR!$B80=\"Collections at Services\",WorkingR!Y80,\"\")","v":""},{"$f":"IF(Descriptions!D81=\"Collections at services\",Descriptions!AA81,0)","v":0}]
[{"$f":"IF(Descriptions!D82=\"Collections at services\",Descriptions!B82,0)","v":0},{"$f":"IF(WorkingR!$B81=\"Collections at Services\",WorkingR!D81,\"\")","v":""},{"$f":"IF(WorkingR!$B81=\"Collections at Services\",WorkingR!E81,\"\")","v":""},{"$f":"IF(WorkingR!$B81=\"Collections at Services\",WorkingR!F81,\"\")","v":""},{"$f":"IF(WorkingR!$B81=\"Collections at Services\",WorkingR!G81,\"\")","v":""},{"$f":"IF(WorkingR!$B81=\"Collections at Services\",WorkingR!H81,\"\")","v":""},{"$f":"IF(WorkingR!$B81=\"Collections at Services\",WorkingR!I81,\"\")","v":""},{"$f":"IF(WorkingR!$B81=\"Collections at Services\",WorkingR!J81,\"\")","v":""},{"$f":"IF(WorkingR!$B81=\"Collections at Services\",WorkingR!K81,\"\")","v":""},{"$f":"IF(WorkingR!$B81=\"Collections at Services\",WorkingR!L81,\"\")","v":""},{"$f":"IF(WorkingR!$B81=\"Collections at Services\",WorkingR!M81,\"\")","v":""},{"$f":"IF(WorkingR!$B81=\"Collections at Services\",WorkingR!N81,\"\")","v":""},{"$f":"IF(WorkingR!$B81=\"Collections at Services\",WorkingR!O81,\"\")","v":""},{"$f":"IF(WorkingR!$B81=\"Collections at Services\",WorkingR!P81,\"\")","v":""},{"$f":"IF(WorkingR!$B81=\"Collections at Services\",WorkingR!Q81,\"\")","v":""},{"$f":"IF(WorkingR!$B81=\"Collections at Services\",WorkingR!R81,\"\")","v":""},{"$f":"IF(WorkingR!$B81=\"Collections at Services\",WorkingR!S81,\"\")","v":""},{"$f":"IF(WorkingR!$B81=\"Collections at Services\",WorkingR!T81,\"\")","v":""},{"$f":"IF(WorkingR!$B81=\"Collections at Services\",WorkingR!U81,\"\")","v":""},{"$f":"IF(WorkingR!$B81=\"Collections at Services\",WorkingR!V81,\"\")","v":""},{"$f":"IF(WorkingR!$B81=\"Collections at Services\",WorkingR!W81,\"\")","v":""},{"$f":"IF(WorkingR!$B81=\"Collections at Services\",WorkingR!X81,\"\")","v":""},{"$f":"IF(WorkingR!$B81=\"Collections at Services\",WorkingR!Y81,\"\")","v":""},{"$f":"IF(Descriptions!D82=\"Collections at services\",Descriptions!AA82,0)","v":0}]
[{"$f":"IF(Descriptions!D83=\"Collections at services\",Descriptions!B83,0)","v":0},{"$f":"IF(WorkingR!$B82=\"Collections at Services\",WorkingR!D82,\"\")","v":""},{"$f":"IF(WorkingR!$B82=\"Collections at Services\",WorkingR!E82,\"\")","v":""},{"$f":"IF(WorkingR!$B82=\"Collections at Services\",WorkingR!F82,\"\")","v":""},{"$f":"IF(WorkingR!$B82=\"Collections at Services\",WorkingR!G82,\"\")","v":""},{"$f":"IF(WorkingR!$B82=\"Collections at Services\",WorkingR!H82,\"\")","v":""},{"$f":"IF(WorkingR!$B82=\"Collections at Services\",WorkingR!I82,\"\")","v":""},{"$f":"IF(WorkingR!$B82=\"Collections at Services\",WorkingR!J82,\"\")","v":""},{"$f":"IF(WorkingR!$B82=\"Collections at Services\",WorkingR!K82,\"\")","v":""},{"$f":"IF(WorkingR!$B82=\"Collections at Services\",WorkingR!L82,\"\")","v":""},{"$f":"IF(WorkingR!$B82=\"Collections at Services\",WorkingR!M82,\"\")","v":""},{"$f":"IF(WorkingR!$B82=\"Collections at Services\",WorkingR!N82,\"\")","v":""},{"$f":"IF(WorkingR!$B82=\"Collections at Services\",WorkingR!O82,\"\")","v":""},{"$f":"IF(WorkingR!$B82=\"Collections at Services\",WorkingR!P82,\"\")","v":""},{"$f":"IF(WorkingR!$B82=\"Collections at Services\",WorkingR!Q82,\"\")","v":""},{"$f":"IF(WorkingR!$B82=\"Collections at Services\",WorkingR!R82,\"\")","v":""},{"$f":"IF(WorkingR!$B82=\"Collections at Services\",WorkingR!S82,\"\")","v":""},{"$f":"IF(WorkingR!$B82=\"Collections at Services\",WorkingR!T82,\"\")","v":""},{"$f":"IF(WorkingR!$B82=\"Collections at Services\",WorkingR!U82,\"\")","v":""},{"$f":"IF(WorkingR!$B82=\"Collections at Services\",WorkingR!V82,\"\")","v":""},{"$f":"IF(WorkingR!$B82=\"Collections at Services\",WorkingR!W82,\"\")","v":""},{"$f":"IF(WorkingR!$B82=\"Collections at Services\",WorkingR!X82,\"\")","v":""},{"$f":"IF(WorkingR!$B82=\"Collections at Services\",WorkingR!Y82,\"\")","v":""},{"$f":"IF(Descriptions!D83=\"Collections at services\",Descriptions!AA83,0)","v":0}]
[{"$f":"IF(Descriptions!D84=\"Collections at services\",Descriptions!B84,0)","v":0},{"$f":"IF(WorkingR!$B83=\"Collections at Services\",WorkingR!D83,\"\")","v":""},{"$f":"IF(WorkingR!$B83=\"Collections at Services\",WorkingR!E83,\"\")","v":""},{"$f":"IF(WorkingR!$B83=\"Collections at Services\",WorkingR!F83,\"\")","v":""},{"$f":"IF(WorkingR!$B83=\"Collections at Services\",WorkingR!G83,\"\")","v":""},{"$f":"IF(WorkingR!$B83=\"Collections at Services\",WorkingR!H83,\"\")","v":""},{"$f":"IF(WorkingR!$B83=\"Collections at Services\",WorkingR!I83,\"\")","v":""},{"$f":"IF(WorkingR!$B83=\"Collections at Services\",WorkingR!J83,\"\")","v":""},{"$f":"IF(WorkingR!$B83=\"Collections at Services\",WorkingR!K83,\"\")","v":""},{"$f":"IF(WorkingR!$B83=\"Collections at Services\",WorkingR!L83,\"\")","v":""},{"$f":"IF(WorkingR!$B83=\"Collections at Services\",WorkingR!M83,\"\")","v":""},{"$f":"IF(WorkingR!$B83=\"Collections at Services\",WorkingR!N83,\"\")","v":""},{"$f":"IF(WorkingR!$B83=\"Collections at Services\",WorkingR!O83,\"\")","v":""},{"$f":"IF(WorkingR!$B83=\"Collections at Services\",WorkingR!P83,\"\")","v":""},{"$f":"IF(WorkingR!$B83=\"Collections at Services\",WorkingR!Q83,\"\")","v":""},{"$f":"IF(WorkingR!$B83=\"Collections at Services\",WorkingR!R83,\"\")","v":""},{"$f":"IF(WorkingR!$B83=\"Collections at Services\",WorkingR!S83,\"\")","v":""},{"$f":"IF(WorkingR!$B83=\"Collections at Services\",WorkingR!T83,\"\")","v":""},{"$f":"IF(WorkingR!$B83=\"Collections at Services\",WorkingR!U83,\"\")","v":""},{"$f":"IF(WorkingR!$B83=\"Collections at Services\",WorkingR!V83,\"\")","v":""},{"$f":"IF(WorkingR!$B83=\"Collections at Services\",WorkingR!W83,\"\")","v":""},{"$f":"IF(WorkingR!$B83=\"Collections at Services\",WorkingR!X83,\"\")","v":""},{"$f":"IF(WorkingR!$B83=\"Collections at Services\",WorkingR!Y83,\"\")","v":""},{"$f":"IF(Descriptions!D84=\"Collections at services\",Descriptions!AA84,0)","v":0}]
[{"$f":"IF(Descriptions!D85=\"Collections at services\",Descriptions!B85,0)","v":0},{"$f":"IF(WorkingR!$B84=\"Collections at Services\",WorkingR!D84,\"\")","v":""},{"$f":"IF(WorkingR!$B84=\"Collections at Services\",WorkingR!E84,\"\")","v":""},{"$f":"IF(WorkingR!$B84=\"Collections at Services\",WorkingR!F84,\"\")","v":""},{"$f":"IF(WorkingR!$B84=\"Collections at Services\",WorkingR!G84,\"\")","v":""},{"$f":"IF(WorkingR!$B84=\"Collections at Services\",WorkingR!H84,\"\")","v":""},{"$f":"IF(WorkingR!$B84=\"Collections at Services\",WorkingR!I84,\"\")","v":""},{"$f":"IF(WorkingR!$B84=\"Collections at Services\",WorkingR!J84,\"\")","v":""},{"$f":"IF(WorkingR!$B84=\"Collections at Services\",WorkingR!K84,\"\")","v":""},{"$f":"IF(WorkingR!$B84=\"Collections at Services\",WorkingR!L84,\"\")","v":""},{"$f":"IF(WorkingR!$B84=\"Collections at Services\",WorkingR!M84,\"\")","v":""},{"$f":"IF(WorkingR!$B84=\"Collections at Services\",WorkingR!N84,\"\")","v":""},{"$f":"IF(WorkingR!$B84=\"Collections at Services\",WorkingR!O84,\"\")","v":""},{"$f":"IF(WorkingR!$B84=\"Collections at Services\",WorkingR!P84,\"\")","v":""},{"$f":"IF(WorkingR!$B84=\"Collections at Services\",WorkingR!Q84,\"\")","v":""},{"$f":"IF(WorkingR!$B84=\"Collections at Services\",WorkingR!R84,\"\")","v":""},{"$f":"IF(WorkingR!$B84=\"Collections at Services\",WorkingR!S84,\"\")","v":""},{"$f":"IF(WorkingR!$B84=\"Collections at Services\",WorkingR!T84,\"\")","v":""},{"$f":"IF(WorkingR!$B84=\"Collections at Services\",WorkingR!U84,\"\")","v":""},{"$f":"IF(WorkingR!$B84=\"Collections at Services\",WorkingR!V84,\"\")","v":""},{"$f":"IF(WorkingR!$B84=\"Collections at Services\",WorkingR!W84,\"\")","v":""},{"$f":"IF(WorkingR!$B84=\"Collections at Services\",WorkingR!X84,\"\")","v":""},{"$f":"IF(WorkingR!$B84=\"Collections at Services\",WorkingR!Y84,\"\")","v":""},{"$f":"IF(Descriptions!D85=\"Collections at services\",Descriptions!AA85,0)","v":0}]
[{"$f":"IF(Descriptions!D86=\"Collections at services\",Descriptions!B86,0)","v":0},{"$f":"IF(WorkingR!$B85=\"Collections at Services\",WorkingR!D85,\"\")","v":""},{"$f":"IF(WorkingR!$B85=\"Collections at Services\",WorkingR!E85,\"\")","v":""},{"$f":"IF(WorkingR!$B85=\"Collections at Services\",WorkingR!F85,\"\")","v":""},{"$f":"IF(WorkingR!$B85=\"Collections at Services\",WorkingR!G85,\"\")","v":""},{"$f":"IF(WorkingR!$B85=\"Collections at Services\",WorkingR!H85,\"\")","v":""},{"$f":"IF(WorkingR!$B85=\"Collections at Services\",WorkingR!I85,\"\")","v":""},{"$f":"IF(WorkingR!$B85=\"Collections at Services\",WorkingR!J85,\"\")","v":""},{"$f":"IF(WorkingR!$B85=\"Collections at Services\",WorkingR!K85,\"\")","v":""},{"$f":"IF(WorkingR!$B85=\"Collections at Services\",WorkingR!L85,\"\")","v":""},{"$f":"IF(WorkingR!$B85=\"Collections at Services\",WorkingR!M85,\"\")","v":""},{"$f":"IF(WorkingR!$B85=\"Collections at Services\",WorkingR!N85,\"\")","v":""},{"$f":"IF(WorkingR!$B85=\"Collections at Services\",WorkingR!O85,\"\")","v":""},{"$f":"IF(WorkingR!$B85=\"Collections at Services\",WorkingR!P85,\"\")","v":""},{"$f":"IF(WorkingR!$B85=\"Collections at Services\",WorkingR!Q85,\"\")","v":""},{"$f":"IF(WorkingR!$B85=\"Collections at Services\",WorkingR!R85,\"\")","v":""},{"$f":"IF(WorkingR!$B85=\"Collections at Services\",WorkingR!S85,\"\")","v":""},{"$f":"IF(WorkingR!$B85=\"Collections at Services\",WorkingR!T85,\"\")","v":""},{"$f":"IF(WorkingR!$B85=\"Collections at Services\",WorkingR!U85,\"\")","v":""},{"$f":"IF(WorkingR!$B85=\"Collections at Services\",WorkingR!V85,\"\")","v":""},{"$f":"IF(WorkingR!$B85=\"Collections at Services\",WorkingR!W85,\"\")","v":""},{"$f":"IF(WorkingR!$B85=\"Collections at Services\",WorkingR!X85,\"\")","v":""},{"$f":"IF(WorkingR!$B85=\"Collections at Services\",WorkingR!Y85,\"\")","v":""},{"$f":"IF(Descriptions!D86=\"Collections at services\",Descriptions!AA86,0)","v":0}]
[{"$f":"IF(Descriptions!D87=\"Collections at services\",Descriptions!B87,0)","v":0},{"$f":"IF(WorkingR!$B86=\"Collections at Services\",WorkingR!D86,\"\")","v":""},{"$f":"IF(WorkingR!$B86=\"Collections at Services\",WorkingR!E86,\"\")","v":""},{"$f":"IF(WorkingR!$B86=\"Collections at Services\",WorkingR!F86,\"\")","v":""},{"$f":"IF(WorkingR!$B86=\"Collections at Services\",WorkingR!G86,\"\")","v":""},{"$f":"IF(WorkingR!$B86=\"Collections at Services\",WorkingR!H86,\"\")","v":""},{"$f":"IF(WorkingR!$B86=\"Collections at Services\",WorkingR!I86,\"\")","v":""},{"$f":"IF(WorkingR!$B86=\"Collections at Services\",WorkingR!J86,\"\")","v":""},{"$f":"IF(WorkingR!$B86=\"Collections at Services\",WorkingR!K86,\"\")","v":""},{"$f":"IF(WorkingR!$B86=\"Collections at Services\",WorkingR!L86,\"\")","v":""},{"$f":"IF(WorkingR!$B86=\"Collections at Services\",WorkingR!M86,\"\")","v":""},{"$f":"IF(WorkingR!$B86=\"Collections at Services\",WorkingR!N86,\"\")","v":""},{"$f":"IF(WorkingR!$B86=\"Collections at Services\",WorkingR!O86,\"\")","v":""},{"$f":"IF(WorkingR!$B86=\"Collections at Services\",WorkingR!P86,\"\")","v":""},{"$f":"IF(WorkingR!$B86=\"Collections at Services\",WorkingR!Q86,\"\")","v":""},{"$f":"IF(WorkingR!$B86=\"Collections at Services\",WorkingR!R86,\"\")","v":""},{"$f":"IF(WorkingR!$B86=\"Collections at Services\",WorkingR!S86,\"\")","v":""},{"$f":"IF(WorkingR!$B86=\"Collections at Services\",WorkingR!T86,\"\")","v":""},{"$f":"IF(WorkingR!$B86=\"Collections at Services\",WorkingR!U86,\"\")","v":""},{"$f":"IF(WorkingR!$B86=\"Collections at Services\",WorkingR!V86,\"\")","v":""},{"$f":"IF(WorkingR!$B86=\"Collections at Services\",WorkingR!W86,\"\")","v":""},{"$f":"IF(WorkingR!$B86=\"Collections at Services\",WorkingR!X86,\"\")","v":""},{"$f":"IF(WorkingR!$B86=\"Collections at Services\",WorkingR!Y86,\"\")","v":""},{"$f":"IF(Descriptions!D87=\"Collections at services\",Descriptions!AA87,0)","v":0}]
[{"$f":"IF(Descriptions!D88=\"Collections at services\",Descriptions!B88,0)","v":0},{"$f":"IF(WorkingR!$B87=\"Collections at Services\",WorkingR!D87,\"\")","v":""},{"$f":"IF(WorkingR!$B87=\"Collections at Services\",WorkingR!E87,\"\")","v":""},{"$f":"IF(WorkingR!$B87=\"Collections at Services\",WorkingR!F87,\"\")","v":""},{"$f":"IF(WorkingR!$B87=\"Collections at Services\",WorkingR!G87,\"\")","v":""},{"$f":"IF(WorkingR!$B87=\"Collections at Services\",WorkingR!H87,\"\")","v":""},{"$f":"IF(WorkingR!$B87=\"Collections at Services\",WorkingR!I87,\"\")","v":""},{"$f":"IF(WorkingR!$B87=\"Collections at Services\",WorkingR!J87,\"\")","v":""},{"$f":"IF(WorkingR!$B87=\"Collections at Services\",WorkingR!K87,\"\")","v":""},{"$f":"IF(WorkingR!$B87=\"Collections at Services\",WorkingR!L87,\"\")","v":""},{"$f":"IF(WorkingR!$B87=\"Collections at Services\",WorkingR!M87,\"\")","v":""},{"$f":"IF(WorkingR!$B87=\"Collections at Services\",WorkingR!N87,\"\")","v":""},{"$f":"IF(WorkingR!$B87=\"Collections at Services\",WorkingR!O87,\"\")","v":""},{"$f":"IF(WorkingR!$B87=\"Collections at Services\",WorkingR!P87,\"\")","v":""},{"$f":"IF(WorkingR!$B87=\"Collections at Services\",WorkingR!Q87,\"\")","v":""},{"$f":"IF(WorkingR!$B87=\"Collections at Services\",WorkingR!R87,\"\")","v":""},{"$f":"IF(WorkingR!$B87=\"Collections at Services\",WorkingR!S87,\"\")","v":""},{"$f":"IF(WorkingR!$B87=\"Collections at Services\",WorkingR!T87,\"\")","v":""},{"$f":"IF(WorkingR!$B87=\"Collections at Services\",WorkingR!U87,\"\")","v":""},{"$f":"IF(WorkingR!$B87=\"Collections at Services\",WorkingR!V87,\"\")","v":""},{"$f":"IF(WorkingR!$B87=\"Collections at Services\",WorkingR!W87,\"\")","v":""},{"$f":"IF(WorkingR!$B87=\"Collections at Services\",WorkingR!X87,\"\")","v":""},{"$f":"IF(WorkingR!$B87=\"Collections at Services\",WorkingR!Y87,\"\")","v":""},{"$f":"IF(Descriptions!D88=\"Collections at services\",Descriptions!AA88,0)","v":0}]
[{"$f":"IF(Descriptions!D89=\"Collections at services\",Descriptions!B89,0)","v":0},{"$f":"IF(WorkingR!$B88=\"Collections at Services\",WorkingR!D88,\"\")","v":""},{"$f":"IF(WorkingR!$B88=\"Collections at Services\",WorkingR!E88,\"\")","v":""},{"$f":"IF(WorkingR!$B88=\"Collections at Services\",WorkingR!F88,\"\")","v":""},{"$f":"IF(WorkingR!$B88=\"Collections at Services\",WorkingR!G88,\"\")","v":""},{"$f":"IF(WorkingR!$B88=\"Collections at Services\",WorkingR!H88,\"\")","v":""},{"$f":"IF(WorkingR!$B88=\"Collections at Services\",WorkingR!I88,\"\")","v":""},{"$f":"IF(WorkingR!$B88=\"Collections at Services\",WorkingR!J88,\"\")","v":""},{"$f":"IF(WorkingR!$B88=\"Collections at Services\",WorkingR!K88,\"\")","v":""},{"$f":"IF(WorkingR!$B88=\"Collections at Services\",WorkingR!L88,\"\")","v":""},{"$f":"IF(WorkingR!$B88=\"Collections at Services\",WorkingR!M88,\"\")","v":""},{"$f":"IF(WorkingR!$B88=\"Collections at Services\",WorkingR!N88,\"\")","v":""},{"$f":"IF(WorkingR!$B88=\"Collections at Services\",WorkingR!O88,\"\")","v":""},{"$f":"IF(WorkingR!$B88=\"Collections at Services\",WorkingR!P88,\"\")","v":""},{"$f":"IF(WorkingR!$B88=\"Collections at Services\",WorkingR!Q88,\"\")","v":""},{"$f":"IF(WorkingR!$B88=\"Collections at Services\",WorkingR!R88,\"\")","v":""},{"$f":"IF(WorkingR!$B88=\"Collections at Services\",WorkingR!S88,\"\")","v":""},{"$f":"IF(WorkingR!$B88=\"Collections at Services\",WorkingR!T88,\"\")","v":""},{"$f":"IF(WorkingR!$B88=\"Collections at Services\",WorkingR!U88,\"\")","v":""},{"$f":"IF(WorkingR!$B88=\"Collections at Services\",WorkingR!V88,\"\")","v":""},{"$f":"IF(WorkingR!$B88=\"Collections at Services\",WorkingR!W88,\"\")","v":""},{"$f":"IF(WorkingR!$B88=\"Collections at Services\",WorkingR!X88,\"\")","v":""},{"$f":"IF(WorkingR!$B88=\"Collections at Services\",WorkingR!Y88,\"\")","v":""},{"$f":"IF(Descriptions!D89=\"Collections at services\",Descriptions!AA89,0)","v":0}]
[{"$f":"IF(Descriptions!D90=\"Collections at services\",Descriptions!B90,0)","v":0},{"$f":"IF(WorkingR!$B89=\"Collections at Services\",WorkingR!D89,\"\")","v":""},{"$f":"IF(WorkingR!$B89=\"Collections at Services\",WorkingR!E89,\"\")","v":""},{"$f":"IF(WorkingR!$B89=\"Collections at Services\",WorkingR!F89,\"\")","v":""},{"$f":"IF(WorkingR!$B89=\"Collections at Services\",WorkingR!G89,\"\")","v":""},{"$f":"IF(WorkingR!$B89=\"Collections at Services\",WorkingR!H89,\"\")","v":""},{"$f":"IF(WorkingR!$B89=\"Collections at Services\",WorkingR!I89,\"\")","v":""},{"$f":"IF(WorkingR!$B89=\"Collections at Services\",WorkingR!J89,\"\")","v":""},{"$f":"IF(WorkingR!$B89=\"Collections at Services\",WorkingR!K89,\"\")","v":""},{"$f":"IF(WorkingR!$B89=\"Collections at Services\",WorkingR!L89,\"\")","v":""},{"$f":"IF(WorkingR!$B89=\"Collections at Services\",WorkingR!M89,\"\")","v":""},{"$f":"IF(WorkingR!$B89=\"Collections at Services\",WorkingR!N89,\"\")","v":""},{"$f":"IF(WorkingR!$B89=\"Collections at Services\",WorkingR!O89,\"\")","v":""},{"$f":"IF(WorkingR!$B89=\"Collections at Services\",WorkingR!P89,\"\")","v":""},{"$f":"IF(WorkingR!$B89=\"Collections at Services\",WorkingR!Q89,\"\")","v":""},{"$f":"IF(WorkingR!$B89=\"Collections at Services\",WorkingR!R89,\"\")","v":""},{"$f":"IF(WorkingR!$B89=\"Collections at Services\",WorkingR!S89,\"\")","v":""},{"$f":"IF(WorkingR!$B89=\"Collections at Services\",WorkingR!T89,\"\")","v":""},{"$f":"IF(WorkingR!$B89=\"Collections at Services\",WorkingR!U89,\"\")","v":""},{"$f":"IF(WorkingR!$B89=\"Collections at Services\",WorkingR!V89,\"\")","v":""},{"$f":"IF(WorkingR!$B89=\"Collections at Services\",WorkingR!W89,\"\")","v":""},{"$f":"IF(WorkingR!$B89=\"Collections at Services\",WorkingR!X89,\"\")","v":""},{"$f":"IF(WorkingR!$B89=\"Collections at Services\",WorkingR!Y89,\"\")","v":""},{"$f":"IF(Descriptions!D90=\"Collections at services\",Descriptions!AA90,0)","v":0}]
[{"$f":"IF(Descriptions!D91=\"Collections at services\",Descriptions!B91,0)","v":0},{"$f":"IF(WorkingR!$B90=\"Collections at Services\",WorkingR!D90,\"\")","v":""},{"$f":"IF(WorkingR!$B90=\"Collections at Services\",WorkingR!E90,\"\")","v":""},{"$f":"IF(WorkingR!$B90=\"Collections at Services\",WorkingR!F90,\"\")","v":""},{"$f":"IF(WorkingR!$B90=\"Collections at Services\",WorkingR!G90,\"\")","v":""},{"$f":"IF(WorkingR!$B90=\"Collections at Services\",WorkingR!H90,\"\")","v":""},{"$f":"IF(WorkingR!$B90=\"Collections at Services\",WorkingR!I90,\"\")","v":""},{"$f":"IF(WorkingR!$B90=\"Collections at Services\",WorkingR!J90,\"\")","v":""},{"$f":"IF(WorkingR!$B90=\"Collections at Services\",WorkingR!K90,\"\")","v":""},{"$f":"IF(WorkingR!$B90=\"Collections at Services\",WorkingR!L90,\"\")","v":""},{"$f":"IF(WorkingR!$B90=\"Collections at Services\",WorkingR!M90,\"\")","v":""},{"$f":"IF(WorkingR!$B90=\"Collections at Services\",WorkingR!N90,\"\")","v":""},{"$f":"IF(WorkingR!$B90=\"Collections at Services\",WorkingR!O90,\"\")","v":""},{"$f":"IF(WorkingR!$B90=\"Collections at Services\",WorkingR!P90,\"\")","v":""},{"$f":"IF(WorkingR!$B90=\"Collections at Services\",WorkingR!Q90,\"\")","v":""},{"$f":"IF(WorkingR!$B90=\"Collections at Services\",WorkingR!R90,\"\")","v":""},{"$f":"IF(WorkingR!$B90=\"Collections at Services\",WorkingR!S90,\"\")","v":""},{"$f":"IF(WorkingR!$B90=\"Collections at Services\",WorkingR!T90,\"\")","v":""},{"$f":"IF(WorkingR!$B90=\"Collections at Services\",WorkingR!U90,\"\")","v":""},{"$f":"IF(WorkingR!$B90=\"Collections at Services\",WorkingR!V90,\"\")","v":""},{"$f":"IF(WorkingR!$B90=\"Collections at Services\",WorkingR!W90,\"\")","v":""},{"$f":"IF(WorkingR!$B90=\"Collections at Services\",WorkingR!X90,\"\")","v":""},{"$f":"IF(WorkingR!$B90=\"Collections at Services\",WorkingR!Y90,\"\")","v":""},{"$f":"IF(Descriptions!D91=\"Collections at services\",Descriptions!AA91,0)","v":0}]
[{"$f":"IF(Descriptions!D92=\"Collections at services\",Descriptions!B92,0)","v":0},{"$f":"IF(WorkingR!$B91=\"Collections at Services\",WorkingR!D91,\"\")","v":""},{"$f":"IF(WorkingR!$B91=\"Collections at Services\",WorkingR!E91,\"\")","v":""},{"$f":"IF(WorkingR!$B91=\"Collections at Services\",WorkingR!F91,\"\")","v":""},{"$f":"IF(WorkingR!$B91=\"Collections at Services\",WorkingR!G91,\"\")","v":""},{"$f":"IF(WorkingR!$B91=\"Collections at Services\",WorkingR!H91,\"\")","v":""},{"$f":"IF(WorkingR!$B91=\"Collections at Services\",WorkingR!I91,\"\")","v":""},{"$f":"IF(WorkingR!$B91=\"Collections at Services\",WorkingR!J91,\"\")","v":""},{"$f":"IF(WorkingR!$B91=\"Collections at Services\",WorkingR!K91,\"\")","v":""},{"$f":"IF(WorkingR!$B91=\"Collections at Services\",WorkingR!L91,\"\")","v":""},{"$f":"IF(WorkingR!$B91=\"Collections at Services\",WorkingR!M91,\"\")","v":""},{"$f":"IF(WorkingR!$B91=\"Collections at Services\",WorkingR!N91,\"\")","v":""},{"$f":"IF(WorkingR!$B91=\"Collections at Services\",WorkingR!O91,\"\")","v":""},{"$f":"IF(WorkingR!$B91=\"Collections at Services\",WorkingR!P91,\"\")","v":""},{"$f":"IF(WorkingR!$B91=\"Collections at Services\",WorkingR!Q91,\"\")","v":""},{"$f":"IF(WorkingR!$B91=\"Collections at Services\",WorkingR!R91,\"\")","v":""},{"$f":"IF(WorkingR!$B91=\"Collections at Services\",WorkingR!S91,\"\")","v":""},{"$f":"IF(WorkingR!$B91=\"Collections at Services\",WorkingR!T91,\"\")","v":""},{"$f":"IF(WorkingR!$B91=\"Collections at Services\",WorkingR!U91,\"\")","v":""},{"$f":"IF(WorkingR!$B91=\"Collections at Services\",WorkingR!V91,\"\")","v":""},{"$f":"IF(WorkingR!$B91=\"Collections at Services\",WorkingR!W91,\"\")","v":""},{"$f":"IF(WorkingR!$B91=\"Collections at Services\",WorkingR!X91,\"\")","v":""},{"$f":"IF(WorkingR!$B91=\"Collections at Services\",WorkingR!Y91,\"\")","v":""},{"$f":"IF(Descriptions!D92=\"Collections at services\",Descriptions!AA92,0)","v":0}]
[null,{"$f":"SUM(B6:B63)","v":0},0,0,0,0,0,0,0,0,0,0,0,0,0,0,0,0,0,0,0,0,null,{"$f":"X5","v":0}]
["PLANNED GIVING",null,null,null,null,null,null,null,null,null,null,null,null,null,null,null,null,null,null,null,null,null,null,{"$f":"SUM(X66:X117)","v":0}]
["Standing Order",{"$f":"WorkingR!D32","v":0},{"$f":"WorkingR!E32","v":0},{"$f":"WorkingR!F32","v":0},{"$f":"WorkingR!G32","v":0},{"$f":"WorkingR!H32","v":0},{"$f":"WorkingR!I32","v":0},{"$f":"WorkingR!J32","v":0},{"$f":"WorkingR!K32","v":0},{"$f":"WorkingR!L32","v":0},{"$f":"WorkingR!M32","v":0},{"$f":"WorkingR!N32","v":0},{"$f":"WorkingR!O32","v":0},{"$f":"WorkingR!P32","v":0},{"$f":"WorkingR!Q32","v":0},{"$f":"WorkingR!R32","v":0},{"$f":"WorkingR!S32","v":0},{"$f":"WorkingR!T32","v":0},{"$f":"WorkingR!U32","v":0},{"$f":"WorkingR!V32","v":0},{"$f":"WorkingR!W32","v":0},{"$f":"WorkingR!X32","v":0},{"$f":"WorkingR!Y32","v":0},{"$f":"Descriptions!AA33","v":0}]
["Parish Giving Scheme Income",{"$f":"WorkingR!D28","v":0},{"$f":"WorkingR!E28","v":0},{"$f":"WorkingR!F28","v":0},{"$f":"WorkingR!G28","v":0},{"$f":"WorkingR!H28","v":0},{"$f":"WorkingR!I28","v":0},{"$f":"WorkingR!J28","v":0},{"$f":"WorkingR!K28","v":0},{"$f":"WorkingR!L28","v":0},{"$f":"WorkingR!M28","v":0},{"$f":"WorkingR!N28","v":0},{"$f":"WorkingR!O28","v":0},{"$f":"WorkingR!P28","v":0},{"$f":"WorkingR!Q28","v":0},{"$f":"WorkingR!R28","v":0},{"$f":"WorkingR!S28","v":0},{"$f":"WorkingR!T28","v":0},{"$f":"WorkingR!U28","v":0},{"$f":"WorkingR!V28","v":0},{"$f":"WorkingR!W28","v":0},{"$f":"WorkingR!X28","v":0},{"$f":"WorkingR!Y28","v":0},{"$f":"Descriptions!AA29","v":0}]
[{"$f":"IF(Descriptions!D43=\"Planned giving\",Descriptions!B43,0)","v":0},{"$f":"IF(WorkingR!$B42=\"Planned Giving\",WorkingR!D42,\"\")","v":""},{"$f":"IF(WorkingR!$B42=\"Planned Giving\",WorkingR!E42,\"\")","v":""},{"$f":"IF(WorkingR!$B42=\"Planned Giving\",WorkingR!F42,\"\")","v":""},{"$f":"IF(WorkingR!$B42=\"Planned Giving\",WorkingR!G42,\"\")","v":""},{"$f":"IF(WorkingR!$B42=\"Planned Giving\",WorkingR!H42,\"\")","v":""},{"$f":"IF(WorkingR!$B42=\"Planned Giving\",WorkingR!I42,\"\")","v":""},{"$f":"IF(WorkingR!$B42=\"Planned Giving\",WorkingR!J42,\"\")","v":""},{"$f":"IF(WorkingR!$B42=\"Planned Giving\",WorkingR!K42,\"\")","v":""},{"$f":"IF(WorkingR!$B42=\"Planned Giving\",WorkingR!L42,\"\")","v":""},{"$f":"IF(WorkingR!$B42=\"Planned Giving\",WorkingR!M42,\"\")","v":""},{"$f":"IF(WorkingR!$B42=\"Planned Giving\",WorkingR!N42,\"\")","v":""},{"$f":"IF(WorkingR!$B42=\"Planned Giving\",WorkingR!O42,\"\")","v":""},{"$f":"IF(WorkingR!$B42=\"Planned Giving\",WorkingR!P42,\"\")","v":""},{"$f":"IF(WorkingR!$B42=\"Planned Giving\",WorkingR!Q42,\"\")","v":""},{"$f":"IF(WorkingR!$B42=\"Planned Giving\",WorkingR!R42,\"\")","v":""},{"$f":"IF(WorkingR!$B42=\"Planned Giving\",WorkingR!S42,\"\")","v":""},{"$f":"IF(WorkingR!$B42=\"Planned Giving\",WorkingR!T42,\"\")","v":""},{"$f":"IF(WorkingR!$B42=\"Planned Giving\",WorkingR!U42,\"\")","v":""},{"$f":"IF(WorkingR!$B42=\"Planned Giving\",WorkingR!V42,\"\")","v":""},{"$f":"IF(WorkingR!$B42=\"Planned Giving\",WorkingR!W42,\"\")","v":""},{"$f":"IF(WorkingR!$B42=\"Planned Giving\",WorkingR!X42,\"\")","v":""},{"$f":"IF(WorkingR!$B42=\"Planned Giving\",WorkingR!Y42,\"\")","v":""},{"$f":"IF(Descriptions!D43=\"Planned giving\",Descriptions!AA43,0)","v":0}]
[{"$f":"IF(Descriptions!D44=\"Planned giving\",Descriptions!B44,0)","v":0},{"$f":"IF(WorkingR!$B43=\"Planned Giving\",WorkingR!D43,\"\")","v":""},{"$f":"IF(WorkingR!$B43=\"Planned Giving\",WorkingR!E43,\"\")","v":""},{"$f":"IF(WorkingR!$B43=\"Planned Giving\",WorkingR!F43,\"\")","v":""},{"$f":"IF(WorkingR!$B43=\"Planned Giving\",WorkingR!G43,\"\")","v":""},{"$f":"IF(WorkingR!$B43=\"Planned Giving\",WorkingR!H43,\"\")","v":""},{"$f":"IF(WorkingR!$B43=\"Planned Giving\",WorkingR!I43,\"\")","v":""},{"$f":"IF(WorkingR!$B43=\"Planned Giving\",WorkingR!J43,\"\")","v":""},{"$f":"IF(WorkingR!$B43=\"Planned Giving\",WorkingR!K43,\"\")","v":""},{"$f":"IF(WorkingR!$B43=\"Planned Giving\",WorkingR!L43,\"\")","v":""},{"$f":"IF(WorkingR!$B43=\"Planned Giving\",WorkingR!M43,\"\")","v":""},{"$f":"IF(WorkingR!$B43=\"Planned Giving\",WorkingR!N43,\"\")","v":""},{"$f":"IF(WorkingR!$B43=\"Planned Giving\",WorkingR!O43,\"\")","v":""},{"$f":"IF(WorkingR!$B43=\"Planned Giving\",WorkingR!P43,\"\")","v":""},{"$f":"IF(WorkingR!$B43=\"Planned Giving\",WorkingR!Q43,\"\")","v":""},{"$f":"IF(WorkingR!$B43=\"Planned Giving\",WorkingR!R43,\"\")","v":""},{"$f":"IF(WorkingR!$B43=\"Planned Giving\",WorkingR!S43,\"\")","v":""},{"$f":"IF(WorkingR!$B43=\"Planned Giving\",WorkingR!T43,\"\")","v":""},{"$f":"IF(WorkingR!$B43=\"Planned Giving\",WorkingR!U43,\"\")","v":""},{"$f":"IF(WorkingR!$B43=\"Planned Giving\",WorkingR!V43,\"\")","v":""},{"$f":"IF(WorkingR!$B43=\"Planned Giving\",WorkingR!W43,\"\")","v":""},{"$f":"IF(WorkingR!$B43=\"Planned Giving\",WorkingR!X43,\"\")","v":""},{"$f":"IF(WorkingR!$B43=\"Planned Giving\",WorkingR!Y43,\"\")","v":""},{"$f":"IF(Descriptions!D44=\"Planned giving\",Descriptions!AA44,0)","v":0}]
[{"$f":"IF(Descriptions!D45=\"Planned giving\",Descriptions!B45,0)","v":0},{"$f":"IF(WorkingR!$B44=\"Planned Giving\",WorkingR!D44,\"\")","v":""},{"$f":"IF(WorkingR!$B44=\"Planned Giving\",WorkingR!E44,\"\")","v":""},{"$f":"IF(WorkingR!$B44=\"Planned Giving\",WorkingR!F44,\"\")","v":""},{"$f":"IF(WorkingR!$B44=\"Planned Giving\",WorkingR!G44,\"\")","v":""},{"$f":"IF(WorkingR!$B44=\"Planned Giving\",WorkingR!H44,\"\")","v":""},{"$f":"IF(WorkingR!$B44=\"Planned Giving\",WorkingR!I44,\"\")","v":""},{"$f":"IF(WorkingR!$B44=\"Planned Giving\",WorkingR!J44,\"\")","v":""},{"$f":"IF(WorkingR!$B44=\"Planned Giving\",WorkingR!K44,\"\")","v":""},{"$f":"IF(WorkingR!$B44=\"Planned Giving\",WorkingR!L44,\"\")","v":""},{"$f":"IF(WorkingR!$B44=\"Planned Giving\",WorkingR!M44,\"\")","v":""},{"$f":"IF(WorkingR!$B44=\"Planned Giving\",WorkingR!N44,\"\")","v":""},{"$f":"IF(WorkingR!$B44=\"Planned Giving\",WorkingR!O44,\"\")","v":""},{"$f":"IF(WorkingR!$B44=\"Planned Giving\",WorkingR!P44,\"\")","v":""},{"$f":"IF(WorkingR!$B44=\"Planned Giving\",WorkingR!Q44,\"\")","v":""},{"$f":"IF(WorkingR!$B44=\"Planned Giving\",WorkingR!R44,\"\")","v":""},{"$f":"IF(WorkingR!$B44=\"Planned Giving\",WorkingR!S44,\"\")","v":""},{"$f":"IF(WorkingR!$B44=\"Planned Giving\",WorkingR!T44,\"\")","v":""},{"$f":"IF(WorkingR!$B44=\"Planned Giving\",WorkingR!U44,\"\")","v":""},{"$f":"IF(WorkingR!$B44=\"Planned Giving\",WorkingR!V44,\"\")","v":""},{"$f":"IF(WorkingR!$B44=\"Planned Giving\",WorkingR!W44,\"\")","v":""},{"$f":"IF(WorkingR!$B44=\"Planned Giving\",WorkingR!X44,\"\")","v":""},{"$f":"IF(WorkingR!$B44=\"Planned Giving\",WorkingR!Y44,\"\")","v":""},{"$f":"IF(Descriptions!D45=\"Planned giving\",Descriptions!AA45,0)","v":0}]
[{"$f":"IF(Descriptions!D46=\"Planned giving\",Descriptions!B46,0)","v":0},{"$f":"IF(WorkingR!$B45=\"Planned Giving\",WorkingR!D45,\"\")","v":""},{"$f":"IF(WorkingR!$B45=\"Planned Giving\",WorkingR!E45,\"\")","v":""},{"$f":"IF(WorkingR!$B45=\"Planned Giving\",WorkingR!F45,\"\")","v":""},{"$f":"IF(WorkingR!$B45=\"Planned Giving\",WorkingR!G45,\"\")","v":""},{"$f":"IF(WorkingR!$B45=\"Planned Giving\",WorkingR!H45,\"\")","v":""},{"$f":"IF(WorkingR!$B45=\"Planned Giving\",WorkingR!I45,\"\")","v":""},{"$f":"IF(WorkingR!$B45=\"Planned Giving\",WorkingR!J45,\"\")","v":""},{"$f":"IF(WorkingR!$B45=\"Planned Giving\",WorkingR!K45,\"\")","v":""},{"$f":"IF(WorkingR!$B45=\"Planned Giving\",WorkingR!L45,\"\")","v":""},{"$f":"IF(WorkingR!$B45=\"Planned Giving\",WorkingR!M45,\"\")","v":""},{"$f":"IF(WorkingR!$B45=\"Planned Giving\",WorkingR!N45,\"\")","v":""},{"$f":"IF(WorkingR!$B45=\"Planned Giving\",WorkingR!O45,\"\")","v":""},{"$f":"IF(WorkingR!$B45=\"Planned Giving\",WorkingR!P45,\"\")","v":""},{"$f":"IF(WorkingR!$B45=\"Planned Giving\",WorkingR!Q45,\"\")","v":""},{"$f":"IF(WorkingR!$B45=\"Planned Giving\",WorkingR!R45,\"\")","v":""},{"$f":"IF(WorkingR!$B45=\"Planned Giving\",WorkingR!S45,\"\")","v":""},{"$f":"IF(WorkingR!$B45=\"Planned Giving\",WorkingR!T45,\"\")","v":""},{"$f":"IF(WorkingR!$B45=\"Planned Giving\",WorkingR!U45,\"\")","v":""},{"$f":"IF(WorkingR!$B45=\"Planned Giving\",WorkingR!V45,\"\")","v":""},{"$f":"IF(WorkingR!$B45=\"Planned Giving\",WorkingR!W45,\"\")","v":""},{"$f":"IF(WorkingR!$B45=\"Planned Giving\",WorkingR!X45,\"\")","v":""},{"$f":"IF(WorkingR!$B45=\"Planned Giving\",WorkingR!Y45,\"\")","v":""},{"$f":"IF(Descriptions!D46=\"Planned giving\",Descriptions!AA46,0)","v":0}]
[{"$f":"IF(Descriptions!D47=\"Planned giving\",Descriptions!B47,0)","v":0},{"$f":"IF(WorkingR!$B46=\"Planned Giving\",WorkingR!D46,\"\")","v":""},{"$f":"IF(WorkingR!$B46=\"Planned Giving\",WorkingR!E46,\"\")","v":""},{"$f":"IF(WorkingR!$B46=\"Planned Giving\",WorkingR!F46,\"\")","v":""},{"$f":"IF(WorkingR!$B46=\"Planned Giving\",WorkingR!G46,\"\")","v":""},{"$f":"IF(WorkingR!$B46=\"Planned Giving\",WorkingR!H46,\"\")","v":""},{"$f":"IF(WorkingR!$B46=\"Planned Giving\",WorkingR!I46,\"\")","v":""},{"$f":"IF(WorkingR!$B46=\"Planned Giving\",WorkingR!J46,\"\")","v":""},{"$f":"IF(WorkingR!$B46=\"Planned Giving\",WorkingR!K46,\"\")","v":""},{"$f":"IF(WorkingR!$B46=\"Planned Giving\",WorkingR!L46,\"\")","v":""},{"$f":"IF(WorkingR!$B46=\"Planned Giving\",WorkingR!M46,\"\")","v":""},{"$f":"IF(WorkingR!$B46=\"Planned Giving\",WorkingR!N46,\"\")","v":""},{"$f":"IF(WorkingR!$B46=\"Planned Giving\",WorkingR!O46,\"\")","v":""},{"$f":"IF(WorkingR!$B46=\"Planned Giving\",WorkingR!P46,\"\")","v":""},{"$f":"IF(WorkingR!$B46=\"Planned Giving\",WorkingR!Q46,\"\")","v":""},{"$f":"IF(WorkingR!$B46=\"Planned Giving\",WorkingR!R46,\"\")","v":""},{"$f":"IF(WorkingR!$B46=\"Planned Giving\",WorkingR!S46,\"\")","v":""},{"$f":"IF(WorkingR!$B46=\"Planned Giving\",WorkingR!T46,\"\")","v":""},{"$f":"IF(WorkingR!$B46=\"Planned Giving\",WorkingR!U46,\"\")","v":""},{"$f":"IF(WorkingR!$B46=\"Planned Giving\",WorkingR!V46,\"\")","v":""},{"$f":"IF(WorkingR!$B46=\"Planned Giving\",WorkingR!W46,\"\")","v":""},{"$f":"IF(WorkingR!$B46=\"Planned Giving\",WorkingR!X46,\"\")","v":""},{"$f":"IF(WorkingR!$B46=\"Planned Giving\",WorkingR!Y46,\"\")","v":""},{"$f":"IF(Descriptions!D47=\"Planned giving\",Descriptions!AA47,0)","v":0}]
[{"$f":"IF(Descriptions!D48=\"Planned giving\",Descriptions!B48,0)","v":0},{"$f":"IF(WorkingR!$B47=\"Planned Giving\",WorkingR!D47,\"\")","v":""},{"$f":"IF(WorkingR!$B47=\"Planned Giving\",WorkingR!E47,\"\")","v":""},{"$f":"IF(WorkingR!$B47=\"Planned Giving\",WorkingR!F47,\"\")","v":""},{"$f":"IF(WorkingR!$B47=\"Planned Giving\",WorkingR!G47,\"\")","v":""},{"$f":"IF(WorkingR!$B47=\"Planned Giving\",WorkingR!H47,\"\")","v":""},{"$f":"IF(WorkingR!$B47=\"Planned Giving\",WorkingR!I47,\"\")","v":""},{"$f":"IF(WorkingR!$B47=\"Planned Giving\",WorkingR!J47,\"\")","v":""},{"$f":"IF(WorkingR!$B47=\"Planned Giving\",WorkingR!K47,\"\")","v":""},{"$f":"IF(WorkingR!$B47=\"Planned Giving\",WorkingR!L47,\"\")","v":""},{"$f":"IF(WorkingR!$B47=\"Planned Giving\",WorkingR!M47,\"\")","v":""},{"$f":"IF(WorkingR!$B47=\"Planned Giving\",WorkingR!N47,\"\")","v":""},{"$f":"IF(WorkingR!$B47=\"Planned Giving\",WorkingR!O47,\"\")","v":""},{"$f":"IF(WorkingR!$B47=\"Planned Giving\",WorkingR!P47,\"\")","v":""},{"$f":"IF(WorkingR!$B47=\"Planned Giving\",WorkingR!Q47,\"\")","v":""},{"$f":"IF(WorkingR!$B47=\"Planned Giving\",WorkingR!R47,\"\")","v":""},{"$f":"IF(WorkingR!$B47=\"Planned Giving\",WorkingR!S47,\"\")","v":""},{"$f":"IF(WorkingR!$B47=\"Planned Giving\",WorkingR!T47,\"\")","v":""},{"$f":"IF(WorkingR!$B47=\"Planned Giving\",WorkingR!U47,\"\")","v":""},{"$f":"IF(WorkingR!$B47=\"Planned Giving\",WorkingR!V47,\"\")","v":""},{"$f":"IF(WorkingR!$B47=\"Planned Giving\",WorkingR!W47,\"\")","v":""},{"$f":"IF(WorkingR!$B47=\"Planned Giving\",WorkingR!X47,\"\")","v":""},{"$f":"IF(WorkingR!$B47=\"Planned Giving\",WorkingR!Y47,\"\")","v":""},{"$f":"IF(Descriptions!D48=\"Planned giving\",Descriptions!AA48,0)","v":0}]
[{"$f":"IF(Descriptions!D49=\"Planned giving\",Descriptions!B49,0)","v":0},{"$f":"IF(WorkingR!$B48=\"Planned Giving\",WorkingR!D48,\"\")","v":""},{"$f":"IF(WorkingR!$B48=\"Planned Giving\",WorkingR!E48,\"\")","v":""},{"$f":"IF(WorkingR!$B48=\"Planned Giving\",WorkingR!F48,\"\")","v":""},{"$f":"IF(WorkingR!$B48=\"Planned Giving\",WorkingR!G48,\"\")","v":""},{"$f":"IF(WorkingR!$B48=\"Planned Giving\",WorkingR!H48,\"\")","v":""},{"$f":"IF(WorkingR!$B48=\"Planned Giving\",WorkingR!I48,\"\")","v":""},{"$f":"IF(WorkingR!$B48=\"Planned Giving\",WorkingR!J48,\"\")","v":""},{"$f":"IF(WorkingR!$B48=\"Planned Giving\",WorkingR!K48,\"\")","v":""},{"$f":"IF(WorkingR!$B48=\"Planned Giving\",WorkingR!L48,\"\")","v":""},{"$f":"IF(WorkingR!$B48=\"Planned Giving\",WorkingR!M48,\"\")","v":""},{"$f":"IF(WorkingR!$B48=\"Planned Giving\",WorkingR!N48,\"\")","v":""},{"$f":"IF(WorkingR!$B48=\"Planned Giving\",WorkingR!O48,\"\")","v":""},{"$f":"IF(WorkingR!$B48=\"Planned Giving\",WorkingR!P48,\"\")","v":""},{"$f":"IF(WorkingR!$B48=\"Planned Giving\",WorkingR!Q48,\"\")","v":""},{"$f":"IF(WorkingR!$B48=\"Planned Giving\",WorkingR!R48,\"\")","v":""},{"$f":"IF(WorkingR!$B48=\"Planned Giving\",WorkingR!S48,\"\")","v":""},{"$f":"IF(WorkingR!$B48=\"Planned Giving\",WorkingR!T48,\"\")","v":""},{"$f":"IF(WorkingR!$B48=\"Planned Giving\",WorkingR!U48,\"\")","v":""},{"$f":"IF(WorkingR!$B48=\"Planned Giving\",WorkingR!V48,\"\")","v":""},{"$f":"IF(WorkingR!$B48=\"Planned Giving\",WorkingR!W48,\"\")","v":""},{"$f":"IF(WorkingR!$B48=\"Planned Giving\",WorkingR!X48,\"\")","v":""},{"$f":"IF(WorkingR!$B48=\"Planned Giving\",WorkingR!Y48,\"\")","v":""},{"$f":"IF(Descriptions!D49=\"Planned giving\",Descriptions!AA49,0)","v":0}]
[{"$f":"IF(Descriptions!D50=\"Planned giving\",Descriptions!B50,0)","v":0},{"$f":"IF(WorkingR!$B49=\"Planned Giving\",WorkingR!D49,\"\")","v":""},{"$f":"IF(WorkingR!$B49=\"Planned Giving\",WorkingR!E49,\"\")","v":""},{"$f":"IF(WorkingR!$B49=\"Planned Giving\",WorkingR!F49,\"\")","v":""},{"$f":"IF(WorkingR!$B49=\"Planned Giving\",WorkingR!G49,\"\")","v":""},{"$f":"IF(WorkingR!$B49=\"Planned Giving\",WorkingR!H49,\"\")","v":""},{"$f":"IF(WorkingR!$B49=\"Planned Giving\",WorkingR!I49,\"\")","v":""},{"$f":"IF(WorkingR!$B49=\"Planned Giving\",WorkingR!J49,\"\")","v":""},{"$f":"IF(WorkingR!$B49=\"Planned Giving\",WorkingR!K49,\"\")","v":""},{"$f":"IF(WorkingR!$B49=\"Planned Giving\",WorkingR!L49,\"\")","v":""},{"$f":"IF(WorkingR!$B49=\"Planned Giving\",WorkingR!M49,\"\")","v":""},{"$f":"IF(WorkingR!$B49=\"Planned Giving\",WorkingR!N49,\"\")","v":""},{"$f":"IF(WorkingR!$B49=\"Planned Giving\",WorkingR!O49,\"\")","v":""},{"$f":"IF(WorkingR!$B49=\"Planned Giving\",WorkingR!P49,\"\")","v":""},{"$f":"IF(WorkingR!$B49=\"Planned Giving\",WorkingR!Q49,\"\")","v":""},{"$f":"IF(WorkingR!$B49=\"Planned Giving\",WorkingR!R49,\"\")","v":""},{"$f":"IF(WorkingR!$B49=\"Planned Giving\",WorkingR!S49,\"\")","v":""},{"$f":"IF(WorkingR!$B49=\"Planned Giving\",WorkingR!T49,\"\")","v":""},{"$f":"IF(WorkingR!$B49=\"Planned Giving\",WorkingR!U49,\"\")","v":""},{"$f":"IF(WorkingR!$B49=\"Planned Giving\",WorkingR!V49,\"\")","v":""},{"$f":"IF(WorkingR!$B49=\"Planned Giving\",WorkingR!W49,\"\")","v":""},{"$f":"IF(WorkingR!$B49=\"Planned Giving\",WorkingR!X49,\"\")","v":""},{"$f":"IF(WorkingR!$B49=\"Planned Giving\",WorkingR!Y49,\"\")","v":""},{"$f":"IF(Descriptions!D50=\"Planned giving\",Descriptions!AA50,0)","v":0}]
[{"$f":"IF(Descriptions!D51=\"Planned giving\",Descriptions!B51,0)","v":0},{"$f":"IF(WorkingR!$B50=\"Planned Giving\",WorkingR!D50,\"\")","v":""},{"$f":"IF(WorkingR!$B50=\"Planned Giving\",WorkingR!E50,\"\")","v":""},{"$f":"IF(WorkingR!$B50=\"Planned Giving\",WorkingR!F50,\"\")","v":""},{"$f":"IF(WorkingR!$B50=\"Planned Giving\",WorkingR!G50,\"\")","v":""},{"$f":"IF(WorkingR!$B50=\"Planned Giving\",WorkingR!H50,\"\")","v":""},{"$f":"IF(WorkingR!$B50=\"Planned Giving\",WorkingR!I50,\"\")","v":""},{"$f":"IF(WorkingR!$B50=\"Planned Giving\",WorkingR!J50,\"\")","v":""},{"$f":"IF(WorkingR!$B50=\"Planned Giving\",WorkingR!K50,\"\")","v":""},{"$f":"IF(WorkingR!$B50=\"Planned Giving\",WorkingR!L50,\"\")","v":""},{"$f":"IF(WorkingR!$B50=\"Planned Giving\",WorkingR!M50,\"\")","v":""},{"$f":"IF(WorkingR!$B50=\"Planned Giving\",WorkingR!N50,\"\")","v":""},{"$f":"IF(WorkingR!$B50=\"Planned Giving\",WorkingR!O50,\"\")","v":""},{"$f":"IF(WorkingR!$B50=\"Planned Giving\",WorkingR!P50,\"\")","v":""},{"$f":"IF(WorkingR!$B50=\"Planned Giving\",WorkingR!Q50,\"\")","v":""},{"$f":"IF(WorkingR!$B50=\"Planned Giving\",WorkingR!R50,\"\")","v":""},{"$f":"IF(WorkingR!$B50=\"Planned Giving\",WorkingR!S50,\"\")","v":""},{"$f":"IF(WorkingR!$B50=\"Planned Giving\",WorkingR!T50,\"\")","v":""},{"$f":"IF(WorkingR!$B50=\"Planned Giving\",WorkingR!U50,\"\")","v":""},{"$f":"IF(WorkingR!$B50=\"Planned Giving\",WorkingR!V50,\"\")","v":""},{"$f":"IF(WorkingR!$B50=\"Planned Giving\",WorkingR!W50,\"\")","v":""},{"$f":"IF(WorkingR!$B50=\"Planned Giving\",WorkingR!X50,\"\")","v":""},{"$f":"IF(WorkingR!$B50=\"Planned Giving\",WorkingR!Y50,\"\")","v":""},{"$f":"IF(Descriptions!D51=\"Planned giving\",Descriptions!AA51,0)","v":0}]
[{"$f":"IF(Descriptions!D52=\"Planned giving\",Descriptions!B52,0)","v":0},{"$f":"IF(WorkingR!$B51=\"Planned Giving\",WorkingR!D51,\"\")","v":""},{"$f":"IF(WorkingR!$B51=\"Planned Giving\",WorkingR!E51,\"\")","v":""},{"$f":"IF(WorkingR!$B51=\"Planned Giving\",WorkingR!F51,\"\")","v":""},{"$f":"IF(WorkingR!$B51=\"Planned Giving\",WorkingR!G51,\"\")","v":""},{"$f":"IF(WorkingR!$B51=\"Planned Giving\",WorkingR!H51,\"\")","v":""},{"$f":"IF(WorkingR!$B51=\"Planned Giving\",WorkingR!I51,\"\")","v":""},{"$f":"IF(WorkingR!$B51=\"Planned Giving\",WorkingR!J51,\"\")","v":""},{"$f":"IF(WorkingR!$B51=\"Planned Giving\",WorkingR!K51,\"\")","v":""},{"$f":"IF(WorkingR!$B51=\"Planned Giving\",WorkingR!L51,\"\")","v":""},{"$f":"IF(WorkingR!$B51=\"Planned Giving\",WorkingR!M51,\"\")","v":""},{"$f":"IF(WorkingR!$B51=\"Planned Giving\",WorkingR!N51,\"\")","v":""},{"$f":"IF(WorkingR!$B51=\"Planned Giving\",WorkingR!O51,\"\")","v":""},{"$f":"IF(WorkingR!$B51=\"Planned Giving\",WorkingR!P51,\"\")","v":""},{"$f":"IF(WorkingR!$B51=\"Planned Giving\",WorkingR!Q51,\"\")","v":""},{"$f":"IF(WorkingR!$B51=\"Planned Giving\",WorkingR!R51,\"\")","v":""},{"$f":"IF(WorkingR!$B51=\"Planned Giving\",WorkingR!S51,\"\")","v":""},{"$f":"IF(WorkingR!$B51=\"Planned Giving\",WorkingR!T51,\"\")","v":""},{"$f":"IF(WorkingR!$B51=\"Planned Giving\",WorkingR!U51,\"\")","v":""},{"$f":"IF(WorkingR!$B51=\"Planned Giving\",WorkingR!V51,\"\")","v":""},{"$f":"IF(WorkingR!$B51=\"Planned Giving\",WorkingR!W51,\"\")","v":""},{"$f":"IF(WorkingR!$B51=\"Planned Giving\",WorkingR!X51,\"\")","v":""},{"$f":"IF(WorkingR!$B51=\"Planned Giving\",WorkingR!Y51,\"\")","v":""},{"$f":"IF(Descriptions!D52=\"Planned giving\",Descriptions!AA52,0)","v":0}]
[{"$f":"IF(Descriptions!D53=\"Planned giving\",Descriptions!B53,0)","v":0},{"$f":"IF(WorkingR!$B52=\"Planned Giving\",WorkingR!D52,\"\")","v":""},{"$f":"IF(WorkingR!$B52=\"Planned Giving\",WorkingR!E52,\"\")","v":""},{"$f":"IF(WorkingR!$B52=\"Planned Giving\",WorkingR!F52,\"\")","v":""},{"$f":"IF(WorkingR!$B52=\"Planned Giving\",WorkingR!G52,\"\")","v":""},{"$f":"IF(WorkingR!$B52=\"Planned Giving\",WorkingR!H52,\"\")","v":""},{"$f":"IF(WorkingR!$B52=\"Planned Giving\",WorkingR!I52,\"\")","v":""},{"$f":"IF(WorkingR!$B52=\"Planned Giving\",WorkingR!J52,\"\")","v":""},{"$f":"IF(WorkingR!$B52=\"Planned Giving\",WorkingR!K52,\"\")","v":""},{"$f":"IF(WorkingR!$B52=\"Planned Giving\",WorkingR!L52,\"\")","v":""},{"$f":"IF(WorkingR!$B52=\"Planned Giving\",WorkingR!M52,\"\")","v":""},{"$f":"IF(WorkingR!$B52=\"Planned Giving\",WorkingR!N52,\"\")","v":""},{"$f":"IF(WorkingR!$B52=\"Planned Giving\",WorkingR!O52,\"\")","v":""},{"$f":"IF(WorkingR!$B52=\"Planned Giving\",WorkingR!P52,\"\")","v":""},{"$f":"IF(WorkingR!$B52=\"Planned Giving\",WorkingR!Q52,\"\")","v":""},{"$f":"IF(WorkingR!$B52=\"Planned Giving\",WorkingR!R52,\"\")","v":""},{"$f":"IF(WorkingR!$B52=\"Planned Giving\",WorkingR!S52,\"\")","v":""},{"$f":"IF(WorkingR!$B52=\"Planned Giving\",WorkingR!T52,\"\")","v":""},{"$f":"IF(WorkingR!$B52=\"Planned Giving\",WorkingR!U52,\"\")","v":""},{"$f":"IF(WorkingR!$B52=\"Planned Giving\",WorkingR!V52,\"\")","v":""},{"$f":"IF(WorkingR!$B52=\"Planned Giving\",WorkingR!W52,\"\")","v":""},{"$f":"IF(WorkingR!$B52=\"Planned Giving\",WorkingR!X52,\"\")","v":""},{"$f":"IF(WorkingR!$B52=\"Planned Giving\",WorkingR!Y52,\"\")","v":""},{"$f":"IF(Descriptions!D53=\"Planned giving\",Descriptions!AA53,0)","v":0}]
[{"$f":"IF(Descriptions!D54=\"Planned giving\",Descriptions!B54,0)","v":0},{"$f":"IF(WorkingR!$B53=\"Planned Giving\",WorkingR!D53,\"\")","v":""},{"$f":"IF(WorkingR!$B53=\"Planned Giving\",WorkingR!E53,\"\")","v":""},{"$f":"IF(WorkingR!$B53=\"Planned Giving\",WorkingR!F53,\"\")","v":""},{"$f":"IF(WorkingR!$B53=\"Planned Giving\",WorkingR!G53,\"\")","v":""},{"$f":"IF(WorkingR!$B53=\"Planned Giving\",WorkingR!H53,\"\")","v":""},{"$f":"IF(WorkingR!$B53=\"Planned Giving\",WorkingR!I53,\"\")","v":""},{"$f":"IF(WorkingR!$B53=\"Planned Giving\",WorkingR!J53,\"\")","v":""},{"$f":"IF(WorkingR!$B53=\"Planned Giving\",WorkingR!K53,\"\")","v":""},{"$f":"IF(WorkingR!$B53=\"Planned Giving\",WorkingR!L53,\"\")","v":""},{"$f":"IF(WorkingR!$B53=\"Planned Giving\",WorkingR!M53,\"\")","v":""},{"$f":"IF(WorkingR!$B53=\"Planned Giving\",WorkingR!N53,\"\")","v":""},{"$f":"IF(WorkingR!$B53=\"Planned Giving\",WorkingR!O53,\"\")","v":""},{"$f":"IF(WorkingR!$B53=\"Planned Giving\",WorkingR!P53,\"\")","v":""},{"$f":"IF(WorkingR!$B53=\"Planned Giving\",WorkingR!Q53,\"\")","v":""},{"$f":"IF(WorkingR!$B53=\"Planned Giving\",WorkingR!R53,\"\")","v":""},{"$f":"IF(WorkingR!$B53=\"Planned Giving\",WorkingR!S53,\"\")","v":""},{"$f":"IF(WorkingR!$B53=\"Planned Giving\",WorkingR!T53,\"\")","v":""},{"$f":"IF(WorkingR!$B53=\"Planned Giving\",WorkingR!U53,\"\")","v":""},{"$f":"IF(WorkingR!$B53=\"Planned Giving\",WorkingR!V53,\"\")","v":""},{"$f":"IF(WorkingR!$B53=\"Planned Giving\",WorkingR!W53,\"\")","v":""},{"$f":"IF(WorkingR!$B53=\"Planned Giving\",WorkingR!X53,\"\")","v":""},{"$f":"IF(WorkingR!$B53=\"Planned Giving\",WorkingR!Y53,\"\")","v":""},{"$f":"IF(Descriptions!D54=\"Planned giving\",Descriptions!AA54,0)","v":0}]
[{"$f":"IF(Descriptions!D55=\"Planned giving\",Descriptions!B55,0)","v":0},{"$f":"IF(WorkingR!$B54=\"Planned Giving\",WorkingR!D54,\"\")","v":""},{"$f":"IF(WorkingR!$B54=\"Planned Giving\",WorkingR!E54,\"\")","v":""},{"$f":"IF(WorkingR!$B54=\"Planned Giving\",WorkingR!F54,\"\")","v":""},{"$f":"IF(WorkingR!$B54=\"Planned Giving\",WorkingR!G54,\"\")","v":""},{"$f":"IF(WorkingR!$B54=\"Planned Giving\",WorkingR!H54,\"\")","v":""},{"$f":"IF(WorkingR!$B54=\"Planned Giving\",WorkingR!I54,\"\")","v":""},{"$f":"IF(WorkingR!$B54=\"Planned Giving\",WorkingR!J54,\"\")","v":""},{"$f":"IF(WorkingR!$B54=\"Planned Giving\",WorkingR!K54,\"\")","v":""},{"$f":"IF(WorkingR!$B54=\"Planned Giving\",WorkingR!L54,\"\")","v":""},{"$f":"IF(WorkingR!$B54=\"Planned Giving\",WorkingR!M54,\"\")","v":""},{"$f":"IF(WorkingR!$B54=\"Planned Giving\",WorkingR!N54,\"\")","v":""},{"$f":"IF(WorkingR!$B54=\"Planned Giving\",WorkingR!O54,\"\")","v":""},{"$f":"IF(WorkingR!$B54=\"Planned Giving\",WorkingR!P54,\"\")","v":""},{"$f":"IF(WorkingR!$B54=\"Planned Giving\",WorkingR!Q54,\"\")","v":""},{"$f":"IF(WorkingR!$B54=\"Planned Giving\",WorkingR!R54,\"\")","v":""},{"$f":"IF(WorkingR!$B54=\"Planned Giving\",WorkingR!S54,\"\")","v":""},{"$f":"IF(WorkingR!$B54=\"Planned Giving\",WorkingR!T54,\"\")","v":""},{"$f":"IF(WorkingR!$B54=\"Planned Giving\",WorkingR!U54,\"\")","v":""},{"$f":"IF(WorkingR!$B54=\"Planned Giving\",WorkingR!V54,\"\")","v":""},{"$f":"IF(WorkingR!$B54=\"Planned Giving\",WorkingR!W54,\"\")","v":""},{"$f":"IF(WorkingR!$B54=\"Planned Giving\",WorkingR!X54,\"\")","v":""},{"$f":"IF(WorkingR!$B54=\"Planned Giving\",WorkingR!Y54,\"\")","v":""},{"$f":"IF(Descriptions!D55=\"Planned giving\",Descriptions!AA55,0)","v":0}]
[{"$f":"IF(Descriptions!D56=\"Planned giving\",Descriptions!B56,0)","v":0},{"$f":"IF(WorkingR!$B55=\"Planned Giving\",WorkingR!D55,\"\")","v":""},{"$f":"IF(WorkingR!$B55=\"Planned Giving\",WorkingR!E55,\"\")","v":""},{"$f":"IF(WorkingR!$B55=\"Planned Giving\",WorkingR!F55,\"\")","v":""},{"$f":"IF(WorkingR!$B55=\"Planned Giving\",WorkingR!G55,\"\")","v":""},{"$f":"IF(WorkingR!$B55=\"Planned Giving\",WorkingR!H55,\"\")","v":""},{"$f":"IF(WorkingR!$B55=\"Planned Giving\",WorkingR!I55,\"\")","v":""},{"$f":"IF(WorkingR!$B55=\"Planned Giving\",WorkingR!J55,\"\")","v":""},{"$f":"IF(WorkingR!$B55=\"Planned Giving\",WorkingR!K55,\"\")","v":""},{"$f":"IF(WorkingR!$B55=\"Planned Giving\",WorkingR!L55,\"\")","v":""},{"$f":"IF(WorkingR!$B55=\"Planned Giving\",WorkingR!M55,\"\")","v":""},{"$f":"IF(WorkingR!$B55=\"Planned Giving\",WorkingR!N55,\"\")","v":""},{"$f":"IF(WorkingR!$B55=\"Planned Giving\",WorkingR!O55,\"\")","v":""},{"$f":"IF(WorkingR!$B55=\"Planned Giving\",WorkingR!P55,\"\")","v":""},{"$f":"IF(WorkingR!$B55=\"Planned Giving\",WorkingR!Q55,\"\")","v":""},{"$f":"IF(WorkingR!$B55=\"Planned Giving\",WorkingR!R55,\"\")","v":""},{"$f":"IF(WorkingR!$B55=\"Planned Giving\",WorkingR!S55,\"\")","v":""},{"$f":"IF(WorkingR!$B55=\"Planned Giving\",WorkingR!T55,\"\")","v":""},{"$f":"IF(WorkingR!$B55=\"Planned Giving\",WorkingR!U55,\"\")","v":""},{"$f":"IF(WorkingR!$B55=\"Planned Giving\",WorkingR!V55,\"\")","v":""},{"$f":"IF(WorkingR!$B55=\"Planned Giving\",WorkingR!W55,\"\")","v":""},{"$f":"IF(WorkingR!$B55=\"Planned Giving\",WorkingR!X55,\"\")","v":""},{"$f":"IF(WorkingR!$B55=\"Planned Giving\",WorkingR!Y55,\"\")","v":""},{"$f":"IF(Descriptions!D56=\"Planned giving\",Descriptions!AA56,0)","v":0}]
[{"$f":"IF(Descriptions!D57=\"Planned giving\",Descriptions!B57,0)","v":0},{"$f":"IF(WorkingR!$B56=\"Planned Giving\",WorkingR!D56,\"\")","v":""},{"$f":"IF(WorkingR!$B56=\"Planned Giving\",WorkingR!E56,\"\")","v":""},{"$f":"IF(WorkingR!$B56=\"Planned Giving\",WorkingR!F56,\"\")","v":""},{"$f":"IF(WorkingR!$B56=\"Planned Giving\",WorkingR!G56,\"\")","v":""},{"$f":"IF(WorkingR!$B56=\"Planned Giving\",WorkingR!H56,\"\")","v":""},{"$f":"IF(WorkingR!$B56=\"Planned Giving\",WorkingR!I56,\"\")","v":""},{"$f":"IF(WorkingR!$B56=\"Planned Giving\",WorkingR!J56,\"\")","v":""},{"$f":"IF(WorkingR!$B56=\"Planned Giving\",WorkingR!K56,\"\")","v":""},{"$f":"IF(WorkingR!$B56=\"Planned Giving\",WorkingR!L56,\"\")","v":""},{"$f":"IF(WorkingR!$B56=\"Planned Giving\",WorkingR!M56,\"\")","v":""},{"$f":"IF(WorkingR!$B56=\"Planned Giving\",WorkingR!N56,\"\")","v":""},{"$f":"IF(WorkingR!$B56=\"Planned Giving\",WorkingR!O56,\"\")","v":""},{"$f":"IF(WorkingR!$B56=\"Planned Giving\",WorkingR!P56,\"\")","v":""},{"$f":"IF(WorkingR!$B56=\"Planned Giving\",WorkingR!Q56,\"\")","v":""},{"$f":"IF(WorkingR!$B56=\"Planned Giving\",WorkingR!R56,\"\")","v":""},{"$f":"IF(WorkingR!$B56=\"Planned Giving\",WorkingR!S56,\"\")","v":""},{"$f":"IF(WorkingR!$B56=\"Planned Giving\",WorkingR!T56,\"\")","v":""},{"$f":"IF(WorkingR!$B56=\"Planned Giving\",WorkingR!U56,\"\")","v":""},{"$f":"IF(WorkingR!$B56=\"Planned Giving\",WorkingR!V56,\"\")","v":""},{"$f":"IF(WorkingR!$B56=\"Planned Giving\",WorkingR!W56,\"\")","v":""},{"$f":"IF(WorkingR!$B56=\"Planned Giving\",WorkingR!X56,\"\")","v":""},{"$f":"IF(WorkingR!$B56=\"Planned Giving\",WorkingR!Y56,\"\")","v":""},{"$f":"IF(Descriptions!D57=\"Planned giving\",Descriptions!AA57,0)","v":0}]
[{"$f":"IF(Descriptions!D58=\"Planned giving\",Descriptions!B58,0)","v":0},{"$f":"IF(WorkingR!$B57=\"Planned Giving\",WorkingR!D57,\"\")","v":""},{"$f":"IF(WorkingR!$B57=\"Planned Giving\",WorkingR!E57,\"\")","v":""},{"$f":"IF(WorkingR!$B57=\"Planned Giving\",WorkingR!F57,\"\")","v":""},{"$f":"IF(WorkingR!$B57=\"Planned Giving\",WorkingR!G57,\"\")","v":""},{"$f":"IF(WorkingR!$B57=\"Planned Giving\",WorkingR!H57,\"\")","v":""},{"$f":"IF(WorkingR!$B57=\"Planned Giving\",WorkingR!I57,\"\")","v":""},{"$f":"IF(WorkingR!$B57=\"Planned Giving\",WorkingR!J57,\"\")","v":""},{"$f":"IF(WorkingR!$B57=\"Planned Giving\",WorkingR!K57,\"\")","v":""},{"$f":"IF(WorkingR!$B57=\"Planned Giving\",WorkingR!L57,\"\")","v":""},{"$f":"IF(WorkingR!$B57=\"Planned Giving\",WorkingR!M57,\"\")","v":""},{"$f":"IF(WorkingR!$B57=\"Planned Giving\",WorkingR!N57,\"\")","v":""},{"$f":"IF(WorkingR!$B57=\"Planned Giving\",WorkingR!O57,\"\")","v":""},{"$f":"IF(WorkingR!$B57=\"Planned Giving\",WorkingR!P57,\"\")","v":""},{"$f":"IF(WorkingR!$B57=\"Planned Giving\",WorkingR!Q57,\"\")","v":""},{"$f":"IF(WorkingR!$B57=\"Planned Giving\",WorkingR!R57,\"\")","v":""},{"$f":"IF(WorkingR!$B57=\"Planned Giving\",WorkingR!S57,\"\")","v":""},{"$f":"IF(WorkingR!$B57=\"Planned Giving\",WorkingR!T57,\"\")","v":""},{"$f":"IF(WorkingR!$B57=\"Planned Giving\",WorkingR!U57,\"\")","v":""},{"$f":"IF(WorkingR!$B57=\"Planned Giving\",WorkingR!V57,\"\")","v":""},{"$f":"IF(WorkingR!$B57=\"Planned Giving\",WorkingR!W57,\"\")","v":""},{"$f":"IF(WorkingR!$B57=\"Planned Giving\",WorkingR!X57,\"\")","v":""},{"$f":"IF(WorkingR!$B57=\"Planned Giving\",WorkingR!Y57,\"\")","v":""},{"$f":"IF(Descriptions!D58=\"Planned giving\",Descriptions!AA58,0)","v":0}]
[{"$f":"IF(Descriptions!D59=\"Planned giving\",Descriptions!B59,0)","v":0},{"$f":"IF(WorkingR!$B58=\"Planned Giving\",WorkingR!D58,\"\")","v":""},{"$f":"IF(WorkingR!$B58=\"Planned Giving\",WorkingR!E58,\"\")","v":""},{"$f":"IF(WorkingR!$B58=\"Planned Giving\",WorkingR!F58,\"\")","v":""},{"$f":"IF(WorkingR!$B58=\"Planned Giving\",WorkingR!G58,\"\")","v":""},{"$f":"IF(WorkingR!$B58=\"Planned Giving\",WorkingR!H58,\"\")","v":""},{"$f":"IF(WorkingR!$B58=\"Planned Giving\",WorkingR!I58,\"\")","v":""},{"$f":"IF(WorkingR!$B58=\"Planned Giving\",WorkingR!J58,\"\")","v":""},{"$f":"IF(WorkingR!$B58=\"Planned Giving\",WorkingR!K58,\"\")","v":""},{"$f":"IF(WorkingR!$B58=\"Planned Giving\",WorkingR!L58,\"\")","v":""},{"$f":"IF(WorkingR!$B58=\"Planned Giving\",WorkingR!M58,\"\")","v":""},{"$f":"IF(WorkingR!$B58=\"Planned Giving\",WorkingR!N58,\"\")","v":""},{"$f":"IF(WorkingR!$B58=\"Planned Giving\",WorkingR!O58,\"\")","v":""},{"$f":"IF(WorkingR!$B58=\"Planned Giving\",WorkingR!P58,\"\")","v":""},{"$f":"IF(WorkingR!$B58=\"Planned Giving\",WorkingR!Q58,\"\")","v":""},{"$f":"IF(WorkingR!$B58=\"Planned Giving\",WorkingR!R58,\"\")","v":""},{"$f":"IF(WorkingR!$B58=\"Planned Giving\",WorkingR!S58,\"\")","v":""},{"$f":"IF(WorkingR!$B58=\"Planned Giving\",WorkingR!T58,\"\")","v":""},{"$f":"IF(WorkingR!$B58=\"Planned Giving\",WorkingR!U58,\"\")","v":""},{"$f":"IF(WorkingR!$B58=\"Planned Giving\",WorkingR!V58,\"\")","v":""},{"$f":"IF(WorkingR!$B58=\"Planned Giving\",WorkingR!W58,\"\")","v":""},{"$f":"IF(WorkingR!$B58=\"Planned Giving\",WorkingR!X58,\"\")","v":""},{"$f":"IF(WorkingR!$B58=\"Planned Giving\",WorkingR!Y58,\"\")","v":""},{"$f":"IF(Descriptions!D59=\"Planned giving\",Descriptions!AA59,0)","v":0}]
[{"$f":"IF(Descriptions!D60=\"Planned giving\",Descriptions!B60,0)","v":0},{"$f":"IF(WorkingR!$B59=\"Planned Giving\",WorkingR!D59,\"\")","v":""},{"$f":"IF(WorkingR!$B59=\"Planned Giving\",WorkingR!E59,\"\")","v":""},{"$f":"IF(WorkingR!$B59=\"Planned Giving\",WorkingR!F59,\"\")","v":""},{"$f":"IF(WorkingR!$B59=\"Planned Giving\",WorkingR!G59,\"\")","v":""},{"$f":"IF(WorkingR!$B59=\"Planned Giving\",WorkingR!H59,\"\")","v":""},{"$f":"IF(WorkingR!$B59=\"Planned Giving\",WorkingR!I59,\"\")","v":""},{"$f":"IF(WorkingR!$B59=\"Planned Giving\",WorkingR!J59,\"\")","v":""},{"$f":"IF(WorkingR!$B59=\"Planned Giving\",WorkingR!K59,\"\")","v":""},{"$f":"IF(WorkingR!$B59=\"Planned Giving\",WorkingR!L59,\"\")","v":""},{"$f":"IF(WorkingR!$B59=\"Planned Giving\",WorkingR!M59,\"\")","v":""},{"$f":"IF(WorkingR!$B59=\"Planned Giving\",WorkingR!N59,\"\")","v":""},{"$f":"IF(WorkingR!$B59=\"Planned Giving\",WorkingR!O59,\"\")","v":""},{"$f":"IF(WorkingR!$B59=\"Planned Giving\",WorkingR!P59,\"\")","v":""},{"$f":"IF(WorkingR!$B59=\"Planned Giving\",WorkingR!Q59,\"\")","v":""},{"$f":"IF(WorkingR!$B59=\"Planned Giving\",WorkingR!R59,\"\")","v":""},{"$f":"IF(WorkingR!$B59=\"Planned Giving\",WorkingR!S59,\"\")","v":""},{"$f":"IF(WorkingR!$B59=\"Planned Giving\",WorkingR!T59,\"\")","v":""},{"$f":"IF(WorkingR!$B59=\"Planned Giving\",WorkingR!U59,\"\")","v":""},{"$f":"IF(WorkingR!$B59=\"Planned Giving\",WorkingR!V59,\"\")","v":""},{"$f":"IF(WorkingR!$B59=\"Planned Giving\",WorkingR!W59,\"\")","v":""},{"$f":"IF(WorkingR!$B59=\"Planned Giving\",WorkingR!X59,\"\")","v":""},{"$f":"IF(WorkingR!$B59=\"Planned Giving\",WorkingR!Y59,\"\")","v":""},{"$f":"IF(Descriptions!D60=\"Planned giving\",Descriptions!AA60,0)","v":0}]
[{"$f":"IF(Descriptions!D61=\"Planned giving\",Descriptions!B61,0)","v":0},{"$f":"IF(WorkingR!$B60=\"Planned Giving\",WorkingR!D60,\"\")","v":""},{"$f":"IF(WorkingR!$B60=\"Planned Giving\",WorkingR!E60,\"\")","v":""},{"$f":"IF(WorkingR!$B60=\"Planned Giving\",WorkingR!F60,\"\")","v":""},{"$f":"IF(WorkingR!$B60=\"Planned Giving\",WorkingR!G60,\"\")","v":""},{"$f":"IF(WorkingR!$B60=\"Planned Giving\",WorkingR!H60,\"\")","v":""},{"$f":"IF(WorkingR!$B60=\"Planned Giving\",WorkingR!I60,\"\")","v":""},{"$f":"IF(WorkingR!$B60=\"Planned Giving\",WorkingR!J60,\"\")","v":""},{"$f":"IF(WorkingR!$B60=\"Planned Giving\",WorkingR!K60,\"\")","v":""},{"$f":"IF(WorkingR!$B60=\"Planned Giving\",WorkingR!L60,\"\")","v":""},{"$f":"IF(WorkingR!$B60=\"Planned Giving\",WorkingR!M60,\"\")","v":""},{"$f":"IF(WorkingR!$B60=\"Planned Giving\",WorkingR!N60,\"\")","v":""},{"$f":"IF(WorkingR!$B60=\"Planned Giving\",WorkingR!O60,\"\")","v":""},{"$f":"IF(WorkingR!$B60=\"Planned Giving\",WorkingR!P60,\"\")","v":""},{"$f":"IF(WorkingR!$B60=\"Planned Giving\",WorkingR!Q60,\"\")","v":""},{"$f":"IF(WorkingR!$B60=\"Planned Giving\",WorkingR!R60,\"\")","v":""},{"$f":"IF(WorkingR!$B60=\"Planned Giving\",WorkingR!S60,\"\")","v":""},{"$f":"IF(WorkingR!$B60=\"Planned Giving\",WorkingR!T60,\"\")","v":""},{"$f":"IF(WorkingR!$B60=\"Planned Giving\",WorkingR!U60,\"\")","v":""},{"$f":"IF(WorkingR!$B60=\"Planned Giving\",WorkingR!V60,\"\")","v":""},{"$f":"IF(WorkingR!$B60=\"Planned Giving\",WorkingR!W60,\"\")","v":""},{"$f":"IF(WorkingR!$B60=\"Planned Giving\",WorkingR!X60,\"\")","v":""},{"$f":"IF(WorkingR!$B60=\"Planned Giving\",WorkingR!Y60,\"\")","v":""},{"$f":"IF(Descriptions!D61=\"Planned giving\",Descriptions!AA61,0)","v":0}]
[{"$f":"IF(Descriptions!D62=\"Planned giving\",Descriptions!B62,0)","v":0},{"$f":"IF(WorkingR!$B61=\"Planned Giving\",WorkingR!D61,\"\")","v":""},{"$f":"IF(WorkingR!$B61=\"Planned Giving\",WorkingR!E61,\"\")","v":""},{"$f":"IF(WorkingR!$B61=\"Planned Giving\",WorkingR!F61,\"\")","v":""},{"$f":"IF(WorkingR!$B61=\"Planned Giving\",WorkingR!G61,\"\")","v":""},{"$f":"IF(WorkingR!$B61=\"Planned Giving\",WorkingR!H61,\"\")","v":""},{"$f":"IF(WorkingR!$B61=\"Planned Giving\",WorkingR!I61,\"\")","v":""},{"$f":"IF(WorkingR!$B61=\"Planned Giving\",WorkingR!J61,\"\")","v":""},{"$f":"IF(WorkingR!$B61=\"Planned Giving\",WorkingR!K61,\"\")","v":""},{"$f":"IF(WorkingR!$B61=\"Planned Giving\",WorkingR!L61,\"\")","v":""},{"$f":"IF(WorkingR!$B61=\"Planned Giving\",WorkingR!M61,\"\")","v":""},{"$f":"IF(WorkingR!$B61=\"Planned Giving\",WorkingR!N61,\"\")","v":""},{"$f":"IF(WorkingR!$B61=\"Planned Giving\",WorkingR!O61,\"\")","v":""},{"$f":"IF(WorkingR!$B61=\"Planned Giving\",WorkingR!P61,\"\")","v":""},{"$f":"IF(WorkingR!$B61=\"Planned Giving\",WorkingR!Q61,\"\")","v":""},{"$f":"IF(WorkingR!$B61=\"Planned Giving\",WorkingR!R61,\"\")","v":""},{"$f":"IF(WorkingR!$B61=\"Planned Giving\",WorkingR!S61,\"\")","v":""},{"$f":"IF(WorkingR!$B61=\"Planned Giving\",WorkingR!T61,\"\")","v":""},{"$f":"IF(WorkingR!$B61=\"Planned Giving\",WorkingR!U61,\"\")","v":""},{"$f":"IF(WorkingR!$B61=\"Planned Giving\",WorkingR!V61,\"\")","v":""},{"$f":"IF(WorkingR!$B61=\"Planned Giving\",WorkingR!W61,\"\")","v":""},{"$f":"IF(WorkingR!$B61=\"Planned Giving\",WorkingR!X61,\"\")","v":""},{"$f":"IF(WorkingR!$B61=\"Planned Giving\",WorkingR!Y61,\"\")","v":""},{"$f":"IF(Descriptions!D62=\"Planned giving\",Descriptions!AA62,0)","v":0}]
[{"$f":"IF(Descriptions!D63=\"Planned giving\",Descriptions!B63,0)","v":0},{"$f":"IF(WorkingR!$B62=\"Planned Giving\",WorkingR!D62,\"\")","v":""},{"$f":"IF(WorkingR!$B62=\"Planned Giving\",WorkingR!E62,\"\")","v":""},{"$f":"IF(WorkingR!$B62=\"Planned Giving\",WorkingR!F62,\"\")","v":""},{"$f":"IF(WorkingR!$B62=\"Planned Giving\",WorkingR!G62,\"\")","v":""},{"$f":"IF(WorkingR!$B62=\"Planned Giving\",WorkingR!H62,\"\")","v":""},{"$f":"IF(WorkingR!$B62=\"Planned Giving\",WorkingR!I62,\"\")","v":""},{"$f":"IF(WorkingR!$B62=\"Planned Giving\",WorkingR!J62,\"\")","v":""},{"$f":"IF(WorkingR!$B62=\"Planned Giving\",WorkingR!K62,\"\")","v":""},{"$f":"IF(WorkingR!$B62=\"Planned Giving\",WorkingR!L62,\"\")","v":""},{"$f":"IF(WorkingR!$B62=\"Planned Giving\",WorkingR!M62,\"\")","v":""},{"$f":"IF(WorkingR!$B62=\"Planned Giving\",WorkingR!N62,\"\")","v":""},{"$f":"IF(WorkingR!$B62=\"Planned Giving\",WorkingR!O62,\"\")","v":""},{"$f":"IF(WorkingR!$B62=\"Planned Giving\",WorkingR!P62,\"\")","v":""},{"$f":"IF(WorkingR!$B62=\"Planned Giving\",WorkingR!Q62,\"\")","v":""},{"$f":"IF(WorkingR!$B62=\"Planned Giving\",WorkingR!R62,\"\")","v":""},{"$f":"IF(WorkingR!$B62=\"Planned Giving\",WorkingR!S62,\"\")","v":""},{"$f":"IF(WorkingR!$B62=\"Planned Giving\",WorkingR!T62,\"\")","v":""},{"$f":"IF(WorkingR!$B62=\"Planned Giving\",WorkingR!U62,\"\")","v":""},{"$f":"IF(WorkingR!$B62=\"Planned Giving\",WorkingR!V62,\"\")","v":""},{"$f":"IF(WorkingR!$B62=\"Planned Giving\",WorkingR!W62,\"\")","v":""},{"$f":"IF(WorkingR!$B62=\"Planned Giving\",WorkingR!X62,\"\")","v":""},{"$f":"IF(WorkingR!$B62=\"Planned Giving\",WorkingR!Y62,\"\")","v":""},{"$f":"IF(Descriptions!D63=\"Planned giving\",Descriptions!AA63,0)","v":0}]
[{"$f":"IF(Descriptions!D64=\"Planned giving\",Descriptions!B64,0)","v":0},{"$f":"IF(WorkingR!$B63=\"Planned Giving\",WorkingR!D63,\"\")","v":""},{"$f":"IF(WorkingR!$B63=\"Planned Giving\",WorkingR!E63,\"\")","v":""},{"$f":"IF(WorkingR!$B63=\"Planned Giving\",WorkingR!F63,\"\")","v":""},{"$f":"IF(WorkingR!$B63=\"Planned Giving\",WorkingR!G63,\"\")","v":""},{"$f":"IF(WorkingR!$B63=\"Planned Giving\",WorkingR!H63,\"\")","v":""},{"$f":"IF(WorkingR!$B63=\"Planned Giving\",WorkingR!I63,\"\")","v":""},{"$f":"IF(WorkingR!$B63=\"Planned Giving\",WorkingR!J63,\"\")","v":""},{"$f":"IF(WorkingR!$B63=\"Planned Giving\",WorkingR!K63,\"\")","v":""},{"$f":"IF(WorkingR!$B63=\"Planned Giving\",WorkingR!L63,\"\")","v":""},{"$f":"IF(WorkingR!$B63=\"Planned Giving\",WorkingR!M63,\"\")","v":""},{"$f":"IF(WorkingR!$B63=\"Planned Giving\",WorkingR!N63,\"\")","v":""},{"$f":"IF(WorkingR!$B63=\"Planned Giving\",WorkingR!O63,\"\")","v":""},{"$f":"IF(WorkingR!$B63=\"Planned Giving\",WorkingR!P63,\"\")","v":""},{"$f":"IF(WorkingR!$B63=\"Planned Giving\",WorkingR!Q63,\"\")","v":""},{"$f":"IF(WorkingR!$B63=\"Planned Giving\",WorkingR!R63,\"\")","v":""},{"$f":"IF(WorkingR!$B63=\"Planned Giving\",WorkingR!S63,\"\")","v":""},{"$f":"IF(WorkingR!$B63=\"Planned Giving\",WorkingR!T63,\"\")","v":""},{"$f":"IF(WorkingR!$B63=\"Planned Giving\",WorkingR!U63,\"\")","v":""},{"$f":"IF(WorkingR!$B63=\"Planned Giving\",WorkingR!V63,\"\")","v":""},{"$f":"IF(WorkingR!$B63=\"Planned Giving\",WorkingR!W63,\"\")","v":""},{"$f":"IF(WorkingR!$B63=\"Planned Giving\",WorkingR!X63,\"\")","v":""},{"$f":"IF(WorkingR!$B63=\"Planned Giving\",WorkingR!Y63,\"\")","v":""},{"$f":"IF(Descriptions!D64=\"Planned giving\",Descriptions!AA64,0)","v":0}]
[{"$f":"IF(Descriptions!D65=\"Planned giving\",Descriptions!B65,0)","v":0},{"$f":"IF(WorkingR!$B64=\"Planned Giving\",WorkingR!D64,\"\")","v":""},{"$f":"IF(WorkingR!$B64=\"Planned Giving\",WorkingR!E64,\"\")","v":""},{"$f":"IF(WorkingR!$B64=\"Planned Giving\",WorkingR!F64,\"\")","v":""},{"$f":"IF(WorkingR!$B64=\"Planned Giving\",WorkingR!G64,\"\")","v":""},{"$f":"IF(WorkingR!$B64=\"Planned Giving\",WorkingR!H64,\"\")","v":""},{"$f":"IF(WorkingR!$B64=\"Planned Giving\",WorkingR!I64,\"\")","v":""},{"$f":"IF(WorkingR!$B64=\"Planned Giving\",WorkingR!J64,\"\")","v":""},{"$f":"IF(WorkingR!$B64=\"Planned Giving\",WorkingR!K64,\"\")","v":""},{"$f":"IF(WorkingR!$B64=\"Planned Giving\",WorkingR!L64,\"\")","v":""},{"$f":"IF(WorkingR!$B64=\"Planned Giving\",WorkingR!M64,\"\")","v":""},{"$f":"IF(WorkingR!$B64=\"Planned Giving\",WorkingR!N64,\"\")","v":""},{"$f":"IF(WorkingR!$B64=\"Planned Giving\",WorkingR!O64,\"\")","v":""},{"$f":"IF(WorkingR!$B64=\"Planned Giving\",WorkingR!P64,\"\")","v":""},{"$f":"IF(WorkingR!$B64=\"Planned Giving\",WorkingR!Q64,\"\")","v":""},{"$f":"IF(WorkingR!$B64=\"Planned Giving\",WorkingR!R64,\"\")","v":""},{"$f":"IF(WorkingR!$B64=\"Planned Giving\",WorkingR!S64,\"\")","v":""},{"$f":"IF(WorkingR!$B64=\"Planned Giving\",WorkingR!T64,\"\")","v":""},{"$f":"IF(WorkingR!$B64=\"Planned Giving\",WorkingR!U64,\"\")","v":""},{"$f":"IF(WorkingR!$B64=\"Planned Giving\",WorkingR!V64,\"\")","v":""},{"$f":"IF(WorkingR!$B64=\"Planned Giving\",WorkingR!W64,\"\")","v":""},{"$f":"IF(WorkingR!$B64=\"Planned Giving\",WorkingR!X64,\"\")","v":""},{"$f":"IF(WorkingR!$B64=\"Planned Giving\",WorkingR!Y64,\"\")","v":""},{"$f":"IF(Descriptions!D65=\"Planned giving\",Descriptions!AA65,0)","v":0}]
[{"$f":"IF(Descriptions!D66=\"Planned giving\",Descriptions!B66,0)","v":0},{"$f":"IF(WorkingR!$B65=\"Planned Giving\",WorkingR!D65,\"\")","v":""},{"$f":"IF(WorkingR!$B65=\"Planned Giving\",WorkingR!E65,\"\")","v":""},{"$f":"IF(WorkingR!$B65=\"Planned Giving\",WorkingR!F65,\"\")","v":""},{"$f":"IF(WorkingR!$B65=\"Planned Giving\",WorkingR!G65,\"\")","v":""},{"$f":"IF(WorkingR!$B65=\"Planned Giving\",WorkingR!H65,\"\")","v":""},{"$f":"IF(WorkingR!$B65=\"Planned Giving\",WorkingR!I65,\"\")","v":""},{"$f":"IF(WorkingR!$B65=\"Planned Giving\",WorkingR!J65,\"\")","v":""},{"$f":"IF(WorkingR!$B65=\"Planned Giving\",WorkingR!K65,\"\")","v":""},{"$f":"IF(WorkingR!$B65=\"Planned Giving\",WorkingR!L65,\"\")","v":""},{"$f":"IF(WorkingR!$B65=\"Planned Giving\",WorkingR!M65,\"\")","v":""},{"$f":"IF(WorkingR!$B65=\"Planned Giving\",WorkingR!N65,\"\")","v":""},{"$f":"IF(WorkingR!$B65=\"Planned Giving\",WorkingR!O65,\"\")","v":""},{"$f":"IF(WorkingR!$B65=\"Planned Giving\",WorkingR!P65,\"\")","v":""},{"$f":"IF(WorkingR!$B65=\"Planned Giving\",WorkingR!Q65,\"\")","v":""},{"$f":"IF(WorkingR!$B65=\"Planned Giving\",WorkingR!R65,\"\")","v":""},{"$f":"IF(WorkingR!$B65=\"Planned Giving\",WorkingR!S65,\"\")","v":""},{"$f":"IF(WorkingR!$B65=\"Planned Giving\",WorkingR!T65,\"\")","v":""},{"$f":"IF(WorkingR!$B65=\"Planned Giving\",WorkingR!U65,\"\")","v":""},{"$f":"IF(WorkingR!$B65=\"Planned Giving\",WorkingR!V65,\"\")","v":""},{"$f":"IF(WorkingR!$B65=\"Planned Giving\",WorkingR!W65,\"\")","v":""},{"$f":"IF(WorkingR!$B65=\"Planned Giving\",WorkingR!X65,\"\")","v":""},{"$f":"IF(WorkingR!$B65=\"Planned Giving\",WorkingR!Y65,\"\")","v":""},{"$f":"IF(Descriptions!D66=\"Planned giving\",Descriptions!AA66,0)","v":0}]
[{"$f":"IF(Descriptions!D67=\"Planned giving\",Descriptions!B67,0)","v":0},{"$f":"IF(WorkingR!$B66=\"Planned Giving\",WorkingR!D66,\"\")","v":""},{"$f":"IF(WorkingR!$B66=\"Planned Giving\",WorkingR!E66,\"\")","v":""},{"$f":"IF(WorkingR!$B66=\"Planned Giving\",WorkingR!F66,\"\")","v":""},{"$f":"IF(WorkingR!$B66=\"Planned Giving\",WorkingR!G66,\"\")","v":""},{"$f":"IF(WorkingR!$B66=\"Planned Giving\",WorkingR!H66,\"\")","v":""},{"$f":"IF(WorkingR!$B66=\"Planned Giving\",WorkingR!I66,\"\")","v":""},{"$f":"IF(WorkingR!$B66=\"Planned Giving\",WorkingR!J66,\"\")","v":""},{"$f":"IF(WorkingR!$B66=\"Planned Giving\",WorkingR!K66,\"\")","v":""},{"$f":"IF(WorkingR!$B66=\"Planned Giving\",WorkingR!L66,\"\")","v":""},{"$f":"IF(WorkingR!$B66=\"Planned Giving\",WorkingR!M66,\"\")","v":""},{"$f":"IF(WorkingR!$B66=\"Planned Giving\",WorkingR!N66,\"\")","v":""},{"$f":"IF(WorkingR!$B66=\"Planned Giving\",WorkingR!O66,\"\")","v":""},{"$f":"IF(WorkingR!$B66=\"Planned Giving\",WorkingR!P66,\"\")","v":""},{"$f":"IF(WorkingR!$B66=\"Planned Giving\",WorkingR!Q66,\"\")","v":""},{"$f":"IF(WorkingR!$B66=\"Planned Giving\",WorkingR!R66,\"\")","v":""},{"$f":"IF(WorkingR!$B66=\"Planned Giving\",WorkingR!S66,\"\")","v":""},{"$f":"IF(WorkingR!$B66=\"Planned Giving\",WorkingR!T66,\"\")","v":""},{"$f":"IF(WorkingR!$B66=\"Planned Giving\",WorkingR!U66,\"\")","v":""},{"$f":"IF(WorkingR!$B66=\"Planned Giving\",WorkingR!V66,\"\")","v":""},{"$f":"IF(WorkingR!$B66=\"Planned Giving\",WorkingR!W66,\"\")","v":""},{"$f":"IF(WorkingR!$B66=\"Planned Giving\",WorkingR!X66,\"\")","v":""},{"$f":"IF(WorkingR!$B66=\"Planned Giving\",WorkingR!Y66,\"\")","v":""},{"$f":"IF(Descriptions!D67=\"Planned giving\",Descriptions!AA67,0)","v":0}]
[{"$f":"IF(Descriptions!D68=\"Planned giving\",Descriptions!B68,0)","v":0},{"$f":"IF(WorkingR!$B67=\"Planned Giving\",WorkingR!D67,\"\")","v":""},{"$f":"IF(WorkingR!$B67=\"Planned Giving\",WorkingR!E67,\"\")","v":""},{"$f":"IF(WorkingR!$B67=\"Planned Giving\",WorkingR!F67,\"\")","v":""},{"$f":"IF(WorkingR!$B67=\"Planned Giving\",WorkingR!G67,\"\")","v":""},{"$f":"IF(WorkingR!$B67=\"Planned Giving\",WorkingR!H67,\"\")","v":""},{"$f":"IF(WorkingR!$B67=\"Planned Giving\",WorkingR!I67,\"\")","v":""},{"$f":"IF(WorkingR!$B67=\"Planned Giving\",WorkingR!J67,\"\")","v":""},{"$f":"IF(WorkingR!$B67=\"Planned Giving\",WorkingR!K67,\"\")","v":""},{"$f":"IF(WorkingR!$B67=\"Planned Giving\",WorkingR!L67,\"\")","v":""},{"$f":"IF(WorkingR!$B67=\"Planned Giving\",WorkingR!M67,\"\")","v":""},{"$f":"IF(WorkingR!$B67=\"Planned Giving\",WorkingR!N67,\"\")","v":""},{"$f":"IF(WorkingR!$B67=\"Planned Giving\",WorkingR!O67,\"\")","v":""},{"$f":"IF(WorkingR!$B67=\"Planned Giving\",WorkingR!P67,\"\")","v":""},{"$f":"IF(WorkingR!$B67=\"Planned Giving\",WorkingR!Q67,\"\")","v":""},{"$f":"IF(WorkingR!$B67=\"Planned Giving\",WorkingR!R67,\"\")","v":""},{"$f":"IF(WorkingR!$B67=\"Planned Giving\",WorkingR!S67,\"\")","v":""},{"$f":"IF(WorkingR!$B67=\"Planned Giving\",WorkingR!T67,\"\")","v":""},{"$f":"IF(WorkingR!$B67=\"Planned Giving\",WorkingR!U67,\"\")","v":""},{"$f":"IF(WorkingR!$B67=\"Planned Giving\",WorkingR!V67,\"\")","v":""},{"$f":"IF(WorkingR!$B67=\"Planned Giving\",WorkingR!W67,\"\")","v":""},{"$f":"IF(WorkingR!$B67=\"Planned Giving\",WorkingR!X67,\"\")","v":""},{"$f":"IF(WorkingR!$B67=\"Planned Giving\",WorkingR!Y67,\"\")","v":""},{"$f":"IF(Descriptions!D68=\"Planned giving\",Descriptions!AA68,0)","v":0}]
[{"$f":"IF(Descriptions!D69=\"Planned giving\",Descriptions!B69,0)","v":0},{"$f":"IF(WorkingR!$B68=\"Planned Giving\",WorkingR!D68,\"\")","v":""},{"$f":"IF(WorkingR!$B68=\"Planned Giving\",WorkingR!E68,\"\")","v":""},{"$f":"IF(WorkingR!$B68=\"Planned Giving\",WorkingR!F68,\"\")","v":""},{"$f":"IF(WorkingR!$B68=\"Planned Giving\",WorkingR!G68,\"\")","v":""},{"$f":"IF(WorkingR!$B68=\"Planned Giving\",WorkingR!H68,\"\")","v":""},{"$f":"IF(WorkingR!$B68=\"Planned Giving\",WorkingR!I68,\"\")","v":""},{"$f":"IF(WorkingR!$B68=\"Planned Giving\",WorkingR!J68,\"\")","v":""},{"$f":"IF(WorkingR!$B68=\"Planned Giving\",WorkingR!K68,\"\")","v":""},{"$f":"IF(WorkingR!$B68=\"Planned Giving\",WorkingR!L68,\"\")","v":""},{"$f":"IF(WorkingR!$B68=\"Planned Giving\",WorkingR!M68,\"\")","v":""},{"$f":"IF(WorkingR!$B68=\"Planned Giving\",WorkingR!N68,\"\")","v":""},{"$f":"IF(WorkingR!$B68=\"Planned Giving\",WorkingR!O68,\"\")","v":""},{"$f":"IF(WorkingR!$B68=\"Planned Giving\",WorkingR!P68,\"\")","v":""},{"$f":"IF(WorkingR!$B68=\"Planned Giving\",WorkingR!Q68,\"\")","v":""},{"$f":"IF(WorkingR!$B68=\"Planned Giving\",WorkingR!R68,\"\")","v":""},{"$f":"IF(WorkingR!$B68=\"Planned Giving\",WorkingR!S68,\"\")","v":""},{"$f":"IF(WorkingR!$B68=\"Planned Giving\",WorkingR!T68,\"\")","v":""},{"$f":"IF(WorkingR!$B68=\"Planned Giving\",WorkingR!U68,\"\")","v":""},{"$f":"IF(WorkingR!$B68=\"Planned Giving\",WorkingR!V68,\"\")","v":""},{"$f":"IF(WorkingR!$B68=\"Planned Giving\",WorkingR!W68,\"\")","v":""},{"$f":"IF(WorkingR!$B68=\"Planned Giving\",WorkingR!X68,\"\")","v":""},{"$f":"IF(WorkingR!$B68=\"Planned Giving\",WorkingR!Y68,\"\")","v":""},{"$f":"IF(Descriptions!D69=\"Planned giving\",Descriptions!AA69,0)","v":0}]
[{"$f":"IF(Descriptions!D70=\"Planned giving\",Descriptions!B70,0)","v":0},{"$f":"IF(WorkingR!$B69=\"Planned Giving\",WorkingR!D69,\"\")","v":""},{"$f":"IF(WorkingR!$B69=\"Planned Giving\",WorkingR!E69,\"\")","v":""},{"$f":"IF(WorkingR!$B69=\"Planned Giving\",WorkingR!F69,\"\")","v":""},{"$f":"IF(WorkingR!$B69=\"Planned Giving\",WorkingR!G69,\"\")","v":""},{"$f":"IF(WorkingR!$B69=\"Planned Giving\",WorkingR!H69,\"\")","v":""},{"$f":"IF(WorkingR!$B69=\"Planned Giving\",WorkingR!I69,\"\")","v":""},{"$f":"IF(WorkingR!$B69=\"Planned Giving\",WorkingR!J69,\"\")","v":""},{"$f":"IF(WorkingR!$B69=\"Planned Giving\",WorkingR!K69,\"\")","v":""},{"$f":"IF(WorkingR!$B69=\"Planned Giving\",WorkingR!L69,\"\")","v":""},{"$f":"IF(WorkingR!$B69=\"Planned Giving\",WorkingR!M69,\"\")","v":""},{"$f":"IF(WorkingR!$B69=\"Planned Giving\",WorkingR!N69,\"\")","v":""},{"$f":"IF(WorkingR!$B69=\"Planned Giving\",WorkingR!O69,\"\")","v":""},{"$f":"IF(WorkingR!$B69=\"Planned Giving\",WorkingR!P69,\"\")","v":""},{"$f":"IF(WorkingR!$B69=\"Planned Giving\",WorkingR!Q69,\"\")","v":""},{"$f":"IF(WorkingR!$B69=\"Planned Giving\",WorkingR!R69,\"\")","v":""},{"$f":"IF(WorkingR!$B69=\"Planned Giving\",WorkingR!S69,\"\")","v":""},{"$f":"IF(WorkingR!$B69=\"Planned Giving\",WorkingR!T69,\"\")","v":""},{"$f":"IF(WorkingR!$B69=\"Planned Giving\",WorkingR!U69,\"\")","v":""},{"$f":"IF(WorkingR!$B69=\"Planned Giving\",WorkingR!V69,\"\")","v":""},{"$f":"IF(WorkingR!$B69=\"Planned Giving\",WorkingR!W69,\"\")","v":""},{"$f":"IF(WorkingR!$B69=\"Planned Giving\",WorkingR!X69,\"\")","v":""},{"$f":"IF(WorkingR!$B69=\"Planned Giving\",WorkingR!Y69,\"\")","v":""},{"$f":"IF(Descriptions!D70=\"Planned giving\",Descriptions!AA70,0)","v":0}]
[{"$f":"IF(Descriptions!D71=\"Planned giving\",Descriptions!B71,0)","v":0},{"$f":"IF(WorkingR!$B70=\"Planned Giving\",WorkingR!D70,\"\")","v":""},{"$f":"IF(WorkingR!$B70=\"Planned Giving\",WorkingR!E70,\"\")","v":""},{"$f":"IF(WorkingR!$B70=\"Planned Giving\",WorkingR!F70,\"\")","v":""},{"$f":"IF(WorkingR!$B70=\"Planned Giving\",WorkingR!G70,\"\")","v":""},{"$f":"IF(WorkingR!$B70=\"Planned Giving\",WorkingR!H70,\"\")","v":""},{"$f":"IF(WorkingR!$B70=\"Planned Giving\",WorkingR!I70,\"\")","v":""},{"$f":"IF(WorkingR!$B70=\"Planned Giving\",WorkingR!J70,\"\")","v":""},{"$f":"IF(WorkingR!$B70=\"Planned Giving\",WorkingR!K70,\"\")","v":""},{"$f":"IF(WorkingR!$B70=\"Planned Giving\",WorkingR!L70,\"\")","v":""},{"$f":"IF(WorkingR!$B70=\"Planned Giving\",WorkingR!M70,\"\")","v":""},{"$f":"IF(WorkingR!$B70=\"Planned Giving\",WorkingR!N70,\"\")","v":""},{"$f":"IF(WorkingR!$B70=\"Planned Giving\",WorkingR!O70,\"\")","v":""},{"$f":"IF(WorkingR!$B70=\"Planned Giving\",WorkingR!P70,\"\")","v":""},{"$f":"IF(WorkingR!$B70=\"Planned Giving\",WorkingR!Q70,\"\")","v":""},{"$f":"IF(WorkingR!$B70=\"Planned Giving\",WorkingR!R70,\"\")","v":""},{"$f":"IF(WorkingR!$B70=\"Planned Giving\",WorkingR!S70,\"\")","v":""},{"$f":"IF(WorkingR!$B70=\"Planned Giving\",WorkingR!T70,\"\")","v":""},{"$f":"IF(WorkingR!$B70=\"Planned Giving\",WorkingR!U70,\"\")","v":""},{"$f":"IF(WorkingR!$B70=\"Planned Giving\",WorkingR!V70,\"\")","v":""},{"$f":"IF(WorkingR!$B70=\"Planned Giving\",WorkingR!W70,\"\")","v":""},{"$f":"IF(WorkingR!$B70=\"Planned Giving\",WorkingR!X70,\"\")","v":""},{"$f":"IF(WorkingR!$B70=\"Planned Giving\",WorkingR!Y70,\"\")","v":""},{"$f":"IF(Descriptions!D71=\"Planned giving\",Descriptions!AA71,0)","v":0}]
[{"$f":"IF(Descriptions!D72=\"Planned giving\",Descriptions!B72,0)","v":0},{"$f":"IF(WorkingR!$B71=\"Planned Giving\",WorkingR!D71,\"\")","v":""},{"$f":"IF(WorkingR!$B71=\"Planned Giving\",WorkingR!E71,\"\")","v":""},{"$f":"IF(WorkingR!$B71=\"Planned Giving\",WorkingR!F71,\"\")","v":""},{"$f":"IF(WorkingR!$B71=\"Planned Giving\",WorkingR!G71,\"\")","v":""},{"$f":"IF(WorkingR!$B71=\"Planned Giving\",WorkingR!H71,\"\")","v":""},{"$f":"IF(WorkingR!$B71=\"Planned Giving\",WorkingR!I71,\"\")","v":""},{"$f":"IF(WorkingR!$B71=\"Planned Giving\",WorkingR!J71,\"\")","v":""},{"$f":"IF(WorkingR!$B71=\"Planned Giving\",WorkingR!K71,\"\")","v":""},{"$f":"IF(WorkingR!$B71=\"Planned Giving\",WorkingR!L71,\"\")","v":""},{"$f":"IF(WorkingR!$B71=\"Planned Giving\",WorkingR!M71,\"\")","v":""},{"$f":"IF(WorkingR!$B71=\"Planned Giving\",WorkingR!N71,\"\")","v":""},{"$f":"IF(WorkingR!$B71=\"Planned Giving\",WorkingR!O71,\"\")","v":""},{"$f":"IF(WorkingR!$B71=\"Planned Giving\",WorkingR!P71,\"\")","v":""},{"$f":"IF(WorkingR!$B71=\"Planned Giving\",WorkingR!Q71,\"\")","v":""},{"$f":"IF(WorkingR!$B71=\"Planned Giving\",WorkingR!R71,\"\")","v":""},{"$f":"IF(WorkingR!$B71=\"Planned Giving\",WorkingR!S71,\"\")","v":""},{"$f":"IF(WorkingR!$B71=\"Planned Giving\",WorkingR!T71,\"\")","v":""},{"$f":"IF(WorkingR!$B71=\"Planned Giving\",WorkingR!U71,\"\")","v":""},{"$f":"IF(WorkingR!$B71=\"Planned Giving\",WorkingR!V71,\"\")","v":""},{"$f":"IF(WorkingR!$B71=\"Planned Giving\",WorkingR!W71,\"\")","v":""},{"$f":"IF(WorkingR!$B71=\"Planned Giving\",WorkingR!X71,\"\")","v":""},{"$f":"IF(WorkingR!$B71=\"Planned Giving\",WorkingR!Y71,\"\")","v":""},{"$f":"IF(Descriptions!D72=\"Planned giving\",Descriptions!AA72,0)","v":0}]
[{"$f":"IF(Descriptions!D73=\"Planned giving\",Descriptions!B73,0)","v":0},{"$f":"IF(WorkingR!$B72=\"Planned Giving\",WorkingR!D72,\"\")","v":""},{"$f":"IF(WorkingR!$B72=\"Planned Giving\",WorkingR!E72,\"\")","v":""},{"$f":"IF(WorkingR!$B72=\"Planned Giving\",WorkingR!F72,\"\")","v":""},{"$f":"IF(WorkingR!$B72=\"Planned Giving\",WorkingR!G72,\"\")","v":""},{"$f":"IF(WorkingR!$B72=\"Planned Giving\",WorkingR!H72,\"\")","v":""},{"$f":"IF(WorkingR!$B72=\"Planned Giving\",WorkingR!I72,\"\")","v":""},{"$f":"IF(WorkingR!$B72=\"Planned Giving\",WorkingR!J72,\"\")","v":""},{"$f":"IF(WorkingR!$B72=\"Planned Giving\",WorkingR!K72,\"\")","v":""},{"$f":"IF(WorkingR!$B72=\"Planned Giving\",WorkingR!L72,\"\")","v":""},{"$f":"IF(WorkingR!$B72=\"Planned Giving\",WorkingR!M72,\"\")","v":""},{"$f":"IF(WorkingR!$B72=\"Planned Giving\",WorkingR!N72,\"\")","v":""},{"$f":"IF(WorkingR!$B72=\"Planned Giving\",WorkingR!O72,\"\")","v":""},{"$f":"IF(WorkingR!$B72=\"Planned Giving\",WorkingR!P72,\"\")","v":""},{"$f":"IF(WorkingR!$B72=\"Planned Giving\",WorkingR!Q72,\"\")","v":""},{"$f":"IF(WorkingR!$B72=\"Planned Giving\",WorkingR!R72,\"\")","v":""},{"$f":"IF(WorkingR!$B72=\"Planned Giving\",WorkingR!S72,\"\")","v":""},{"$f":"IF(WorkingR!$B72=\"Planned Giving\",WorkingR!T72,\"\")","v":""},{"$f":"IF(WorkingR!$B72=\"Planned Giving\",WorkingR!U72,\"\")","v":""},{"$f":"IF(WorkingR!$B72=\"Planned Giving\",WorkingR!V72,\"\")","v":""},{"$f":"IF(WorkingR!$B72=\"Planned Giving\",WorkingR!W72,\"\")","v":""},{"$f":"IF(WorkingR!$B72=\"Planned Giving\",WorkingR!X72,\"\")","v":""},{"$f":"IF(WorkingR!$B72=\"Planned Giving\",WorkingR!Y72,\"\")","v":""},{"$f":"IF(Descriptions!D73=\"Planned giving\",Descriptions!AA73,0)","v":0}]
[{"$f":"IF(Descriptions!D74=\"Planned giving\",Descriptions!B74,0)","v":0},{"$f":"IF(WorkingR!$B73=\"Planned Giving\",WorkingR!D73,\"\")","v":""},{"$f":"IF(WorkingR!$B73=\"Planned Giving\",WorkingR!E73,\"\")","v":""},{"$f":"IF(WorkingR!$B73=\"Planned Giving\",WorkingR!F73,\"\")","v":""},{"$f":"IF(WorkingR!$B73=\"Planned Giving\",WorkingR!G73,\"\")","v":""},{"$f":"IF(WorkingR!$B73=\"Planned Giving\",WorkingR!H73,\"\")","v":""},{"$f":"IF(WorkingR!$B73=\"Planned Giving\",WorkingR!I73,\"\")","v":""},{"$f":"IF(WorkingR!$B73=\"Planned Giving\",WorkingR!J73,\"\")","v":""},{"$f":"IF(WorkingR!$B73=\"Planned Giving\",WorkingR!K73,\"\")","v":""},{"$f":"IF(WorkingR!$B73=\"Planned Giving\",WorkingR!L73,\"\")","v":""},{"$f":"IF(WorkingR!$B73=\"Planned Giving\",WorkingR!M73,\"\")","v":""},{"$f":"IF(WorkingR!$B73=\"Planned Giving\",WorkingR!N73,\"\")","v":""},{"$f":"IF(WorkingR!$B73=\"Planned Giving\",WorkingR!O73,\"\")","v":""},{"$f":"IF(WorkingR!$B73=\"Planned Giving\",WorkingR!P73,\"\")","v":""},{"$f":"IF(WorkingR!$B73=\"Planned Giving\",WorkingR!Q73,\"\")","v":""},{"$f":"IF(WorkingR!$B73=\"Planned Giving\",WorkingR!R73,\"\")","v":""},{"$f":"IF(WorkingR!$B73=\"Planned Giving\",WorkingR!S73,\"\")","v":""},{"$f":"IF(WorkingR!$B73=\"Planned Giving\",WorkingR!T73,\"\")","v":""},{"$f":"IF(WorkingR!$B73=\"Planned Giving\",WorkingR!U73,\"\")","v":""},{"$f":"IF(WorkingR!$B73=\"Planned Giving\",WorkingR!V73,\"\")","v":""},{"$f":"IF(WorkingR!$B73=\"Planned Giving\",WorkingR!W73,\"\")","v":""},{"$f":"IF(WorkingR!$B73=\"Planned Giving\",WorkingR!X73,\"\")","v":""},{"$f":"IF(WorkingR!$B73=\"Planned Giving\",WorkingR!Y73,\"\")","v":""},{"$f":"IF(Descriptions!D74=\"Planned giving\",Descriptions!AA74,0)","v":0}]
[{"$f":"IF(Descriptions!D75=\"Planned giving\",Descriptions!B75,0)","v":0},{"$f":"IF(WorkingR!$B74=\"Planned Giving\",WorkingR!D74,\"\")","v":""},{"$f":"IF(WorkingR!$B74=\"Planned Giving\",WorkingR!E74,\"\")","v":""},{"$f":"IF(WorkingR!$B74=\"Planned Giving\",WorkingR!F74,\"\")","v":""},{"$f":"IF(WorkingR!$B74=\"Planned Giving\",WorkingR!G74,\"\")","v":""},{"$f":"IF(WorkingR!$B74=\"Planned Giving\",WorkingR!H74,\"\")","v":""},{"$f":"IF(WorkingR!$B74=\"Planned Giving\",WorkingR!I74,\"\")","v":""},{"$f":"IF(WorkingR!$B74=\"Planned Giving\",WorkingR!J74,\"\")","v":""},{"$f":"IF(WorkingR!$B74=\"Planned Giving\",WorkingR!K74,\"\")","v":""},{"$f":"IF(WorkingR!$B74=\"Planned Giving\",WorkingR!L74,\"\")","v":""},{"$f":"IF(WorkingR!$B74=\"Planned Giving\",WorkingR!M74,\"\")","v":""},{"$f":"IF(WorkingR!$B74=\"Planned Giving\",WorkingR!N74,\"\")","v":""},{"$f":"IF(WorkingR!$B74=\"Planned Giving\",WorkingR!O74,\"\")","v":""},{"$f":"IF(WorkingR!$B74=\"Planned Giving\",WorkingR!P74,\"\")","v":""},{"$f":"IF(WorkingR!$B74=\"Planned Giving\",WorkingR!Q74,\"\")","v":""},{"$f":"IF(WorkingR!$B74=\"Planned Giving\",WorkingR!R74,\"\")","v":""},{"$f":"IF(WorkingR!$B74=\"Planned Giving\",WorkingR!S74,\"\")","v":""},{"$f":"IF(WorkingR!$B74=\"Planned Giving\",WorkingR!T74,\"\")","v":""},{"$f":"IF(WorkingR!$B74=\"Planned Giving\",WorkingR!U74,\"\")","v":""},{"$f":"IF(WorkingR!$B74=\"Planned Giving\",WorkingR!V74,\"\")","v":""},{"$f":"IF(WorkingR!$B74=\"Planned Giving\",WorkingR!W74,\"\")","v":""},{"$f":"IF(WorkingR!$B74=\"Planned Giving\",WorkingR!X74,\"\")","v":""},{"$f":"IF(WorkingR!$B74=\"Planned Giving\",WorkingR!Y74,\"\")","v":""},{"$f":"IF(Descriptions!D75=\"Planned giving\",Descriptions!AA75,0)","v":0}]
[{"$f":"IF(Descriptions!D76=\"Planned giving\",Descriptions!B76,0)","v":0},{"$f":"IF(WorkingR!$B75=\"Planned Giving\",WorkingR!D75,\"\")","v":""},{"$f":"IF(WorkingR!$B75=\"Planned Giving\",WorkingR!E75,\"\")","v":""},{"$f":"IF(WorkingR!$B75=\"Planned Giving\",WorkingR!F75,\"\")","v":""},{"$f":"IF(WorkingR!$B75=\"Planned Giving\",WorkingR!G75,\"\")","v":""},{"$f":"IF(WorkingR!$B75=\"Planned Giving\",WorkingR!H75,\"\")","v":""},{"$f":"IF(WorkingR!$B75=\"Planned Giving\",WorkingR!I75,\"\")","v":""},{"$f":"IF(WorkingR!$B75=\"Planned Giving\",WorkingR!J75,\"\")","v":""},{"$f":"IF(WorkingR!$B75=\"Planned Giving\",WorkingR!K75,\"\")","v":""},{"$f":"IF(WorkingR!$B75=\"Planned Giving\",WorkingR!L75,\"\")","v":""},{"$f":"IF(WorkingR!$B75=\"Planned Giving\",WorkingR!M75,\"\")","v":""},{"$f":"IF(WorkingR!$B75=\"Planned Giving\",WorkingR!N75,\"\")","v":""},{"$f":"IF(WorkingR!$B75=\"Planned Giving\",WorkingR!O75,\"\")","v":""},{"$f":"IF(WorkingR!$B75=\"Planned Giving\",WorkingR!P75,\"\")","v":""},{"$f":"IF(WorkingR!$B75=\"Planned Giving\",WorkingR!Q75,\"\")","v":""},{"$f":"IF(WorkingR!$B75=\"Planned Giving\",WorkingR!R75,\"\")","v":""},{"$f":"IF(WorkingR!$B75=\"Planned Giving\",WorkingR!S75,\"\")","v":""},{"$f":"IF(WorkingR!$B75=\"Planned Giving\",WorkingR!T75,\"\")","v":""},{"$f":"IF(WorkingR!$B75=\"Planned Giving\",WorkingR!U75,\"\")","v":""},{"$f":"IF(WorkingR!$B75=\"Planned Giving\",WorkingR!V75,\"\")","v":""},{"$f":"IF(WorkingR!$B75=\"Planned Giving\",WorkingR!W75,\"\")","v":""},{"$f":"IF(WorkingR!$B75=\"Planned Giving\",WorkingR!X75,\"\")","v":""},{"$f":"IF(WorkingR!$B75=\"Planned Giving\",WorkingR!Y75,\"\")","v":""},{"$f":"IF(Descriptions!D76=\"Planned giving\",Descriptions!AA76,0)","v":0}]
[{"$f":"IF(Descriptions!D77=\"Planned giving\",Descriptions!B77,0)","v":0},{"$f":"IF(WorkingR!$B76=\"Planned Giving\",WorkingR!D76,\"\")","v":""},{"$f":"IF(WorkingR!$B76=\"Planned Giving\",WorkingR!E76,\"\")","v":""},{"$f":"IF(WorkingR!$B76=\"Planned Giving\",WorkingR!F76,\"\")","v":""},{"$f":"IF(WorkingR!$B76=\"Planned Giving\",WorkingR!G76,\"\")","v":""},{"$f":"IF(WorkingR!$B76=\"Planned Giving\",WorkingR!H76,\"\")","v":""},{"$f":"IF(WorkingR!$B76=\"Planned Giving\",WorkingR!I76,\"\")","v":""},{"$f":"IF(WorkingR!$B76=\"Planned Giving\",WorkingR!J76,\"\")","v":""},{"$f":"IF(WorkingR!$B76=\"Planned Giving\",WorkingR!K76,\"\")","v":""},{"$f":"IF(WorkingR!$B76=\"Planned Giving\",WorkingR!L76,\"\")","v":""},{"$f":"IF(WorkingR!$B76=\"Planned Giving\",WorkingR!M76,\"\")","v":""},{"$f":"IF(WorkingR!$B76=\"Planned Giving\",WorkingR!N76,\"\")","v":""},{"$f":"IF(WorkingR!$B76=\"Planned Giving\",WorkingR!O76,\"\")","v":""},{"$f":"IF(WorkingR!$B76=\"Planned Giving\",WorkingR!P76,\"\")","v":""},{"$f":"IF(WorkingR!$B76=\"Planned Giving\",WorkingR!Q76,\"\")","v":""},{"$f":"IF(WorkingR!$B76=\"Planned Giving\",WorkingR!R76,\"\")","v":""},{"$f":"IF(WorkingR!$B76=\"Planned Giving\",WorkingR!S76,\"\")","v":""},{"$f":"IF(WorkingR!$B76=\"Planned Giving\",WorkingR!T76,\"\")","v":""},{"$f":"IF(WorkingR!$B76=\"Planned Giving\",WorkingR!U76,\"\")","v":""},{"$f":"IF(WorkingR!$B76=\"Planned Giving\",WorkingR!V76,\"\")","v":""},{"$f":"IF(WorkingR!$B76=\"Planned Giving\",WorkingR!W76,\"\")","v":""},{"$f":"IF(WorkingR!$B76=\"Planned Giving\",WorkingR!X76,\"\")","v":""},{"$f":"IF(WorkingR!$B76=\"Planned Giving\",WorkingR!Y76,\"\")","v":""},{"$f":"IF(Descriptions!D77=\"Planned giving\",Descriptions!AA77,0)","v":0}]
[{"$f":"IF(Descriptions!D78=\"Planned giving\",Descriptions!B78,0)","v":0},{"$f":"IF(WorkingR!$B77=\"Planned Giving\",WorkingR!D77,\"\")","v":""},{"$f":"IF(WorkingR!$B77=\"Planned Giving\",WorkingR!E77,\"\")","v":""},{"$f":"IF(WorkingR!$B77=\"Planned Giving\",WorkingR!F77,\"\")","v":""},{"$f":"IF(WorkingR!$B77=\"Planned Giving\",WorkingR!G77,\"\")","v":""},{"$f":"IF(WorkingR!$B77=\"Planned Giving\",WorkingR!H77,\"\")","v":""},{"$f":"IF(WorkingR!$B77=\"Planned Giving\",WorkingR!I77,\"\")","v":""},{"$f":"IF(WorkingR!$B77=\"Planned Giving\",WorkingR!J77,\"\")","v":""},{"$f":"IF(WorkingR!$B77=\"Planned Giving\",WorkingR!K77,\"\")","v":""},{"$f":"IF(WorkingR!$B77=\"Planned Giving\",WorkingR!L77,\"\")","v":""},{"$f":"IF(WorkingR!$B77=\"Planned Giving\",WorkingR!M77,\"\")","v":""},{"$f":"IF(WorkingR!$B77=\"Planned Giving\",WorkingR!N77,\"\")","v":""},{"$f":"IF(WorkingR!$B77=\"Planned Giving\",WorkingR!O77,\"\")","v":""},{"$f":"IF(WorkingR!$B77=\"Planned Giving\",WorkingR!P77,\"\")","v":""},{"$f":"IF(WorkingR!$B77=\"Planned Giving\",WorkingR!Q77,\"\")","v":""},{"$f":"IF(WorkingR!$B77=\"Planned Giving\",WorkingR!R77,\"\")","v":""},{"$f":"IF(WorkingR!$B77=\"Planned Giving\",WorkingR!S77,\"\")","v":""},{"$f":"IF(WorkingR!$B77=\"Planned Giving\",WorkingR!T77,\"\")","v":""},{"$f":"IF(WorkingR!$B77=\"Planned Giving\",WorkingR!U77,\"\")","v":""},{"$f":"IF(WorkingR!$B77=\"Planned Giving\",WorkingR!V77,\"\")","v":""},{"$f":"IF(WorkingR!$B77=\"Planned Giving\",WorkingR!W77,\"\")","v":""},{"$f":"IF(WorkingR!$B77=\"Planned Giving\",WorkingR!X77,\"\")","v":""},{"$f":"IF(WorkingR!$B77=\"Planned Giving\",WorkingR!Y77,\"\")","v":""},{"$f":"IF(Descriptions!D78=\"Planned giving\",Descriptions!AA78,0)","v":0}]
[{"$f":"IF(Descriptions!D79=\"Planned giving\",Descriptions!B79,0)","v":0},{"$f":"IF(WorkingR!$B78=\"Planned Giving\",WorkingR!D78,\"\")","v":""},{"$f":"IF(WorkingR!$B78=\"Planned Giving\",WorkingR!E78,\"\")","v":""},{"$f":"IF(WorkingR!$B78=\"Planned Giving\",WorkingR!F78,\"\")","v":""},{"$f":"IF(WorkingR!$B78=\"Planned Giving\",WorkingR!G78,\"\")","v":""},{"$f":"IF(WorkingR!$B78=\"Planned Giving\",WorkingR!H78,\"\")","v":""},{"$f":"IF(WorkingR!$B78=\"Planned Giving\",WorkingR!I78,\"\")","v":""},{"$f":"IF(WorkingR!$B78=\"Planned Giving\",WorkingR!J78,\"\")","v":""},{"$f":"IF(WorkingR!$B78=\"Planned Giving\",WorkingR!K78,\"\")","v":""},{"$f":"IF(WorkingR!$B78=\"Planned Giving\",WorkingR!L78,\"\")","v":""},{"$f":"IF(WorkingR!$B78=\"Planned Giving\",WorkingR!M78,\"\")","v":""},{"$f":"IF(WorkingR!$B78=\"Planned Giving\",WorkingR!N78,\"\")","v":""},{"$f":"IF(WorkingR!$B78=\"Planned Giving\",WorkingR!O78,\"\")","v":""},{"$f":"IF(WorkingR!$B78=\"Planned Giving\",WorkingR!P78,\"\")","v":""},{"$f":"IF(WorkingR!$B78=\"Planned Giving\",WorkingR!Q78,\"\")","v":""},{"$f":"IF(WorkingR!$B78=\"Planned Giving\",WorkingR!R78,\"\")","v":""},{"$f":"IF(WorkingR!$B78=\"Planned Giving\",WorkingR!S78,\"\")","v":""},{"$f":"IF(WorkingR!$B78=\"Planned Giving\",WorkingR!T78,\"\")","v":""},{"$f":"IF(WorkingR!$B78=\"Planned Giving\",WorkingR!U78,\"\")","v":""},{"$f":"IF(WorkingR!$B78=\"Planned Giving\",WorkingR!V78,\"\")","v":""},{"$f":"IF(WorkingR!$B78=\"Planned Giving\",WorkingR!W78,\"\")","v":""},{"$f":"IF(WorkingR!$B78=\"Planned Giving\",WorkingR!X78,\"\")","v":""},{"$f":"IF(WorkingR!$B78=\"Planned Giving\",WorkingR!Y78,\"\")","v":""},{"$f":"IF(Descriptions!D79=\"Planned giving\",Descriptions!AA79,0)","v":0}]
[{"$f":"IF(Descriptions!D80=\"Planned giving\",Descriptions!B80,0)","v":0},{"$f":"IF(WorkingR!$B79=\"Planned Giving\",WorkingR!D79,\"\")","v":""},{"$f":"IF(WorkingR!$B79=\"Planned Giving\",WorkingR!E79,\"\")","v":""},{"$f":"IF(WorkingR!$B79=\"Planned Giving\",WorkingR!F79,\"\")","v":""},{"$f":"IF(WorkingR!$B79=\"Planned Giving\",WorkingR!G79,\"\")","v":""},{"$f":"IF(WorkingR!$B79=\"Planned Giving\",WorkingR!H79,\"\")","v":""},{"$f":"IF(WorkingR!$B79=\"Planned Giving\",WorkingR!I79,\"\")","v":""},{"$f":"IF(WorkingR!$B79=\"Planned Giving\",WorkingR!J79,\"\")","v":""},{"$f":"IF(WorkingR!$B79=\"Planned Giving\",WorkingR!K79,\"\")","v":""},{"$f":"IF(WorkingR!$B79=\"Planned Giving\",WorkingR!L79,\"\")","v":""},{"$f":"IF(WorkingR!$B79=\"Planned Giving\",WorkingR!M79,\"\")","v":""},{"$f":"IF(WorkingR!$B79=\"Planned Giving\",WorkingR!N79,\"\")","v":""},{"$f":"IF(WorkingR!$B79=\"Planned Giving\",WorkingR!O79,\"\")","v":""},{"$f":"IF(WorkingR!$B79=\"Planned Giving\",WorkingR!P79,\"\")","v":""},{"$f":"IF(WorkingR!$B79=\"Planned Giving\",WorkingR!Q79,\"\")","v":""},{"$f":"IF(WorkingR!$B79=\"Planned Giving\",WorkingR!R79,\"\")","v":""},{"$f":"IF(WorkingR!$B79=\"Planned Giving\",WorkingR!S79,\"\")","v":""},{"$f":"IF(WorkingR!$B79=\"Planned Giving\",WorkingR!T79,\"\")","v":""},{"$f":"IF(WorkingR!$B79=\"Planned Giving\",WorkingR!U79,\"\")","v":""},{"$f":"IF(WorkingR!$B79=\"Planned Giving\",WorkingR!V79,\"\")","v":""},{"$f":"IF(WorkingR!$B79=\"Planned Giving\",WorkingR!W79,\"\")","v":""},{"$f":"IF(WorkingR!$B79=\"Planned Giving\",WorkingR!X79,\"\")","v":""},{"$f":"IF(WorkingR!$B79=\"Planned Giving\",WorkingR!Y79,\"\")","v":""},{"$f":"IF(Descriptions!D80=\"Planned giving\",Descriptions!AA80,0)","v":0}]
[{"$f":"IF(Descriptions!D81=\"Planned giving\",Descriptions!B81,0)","v":0},{"$f":"IF(WorkingR!$B80=\"Planned Giving\",WorkingR!D80,\"\")","v":""},{"$f":"IF(WorkingR!$B80=\"Planned Giving\",WorkingR!E80,\"\")","v":""},{"$f":"IF(WorkingR!$B80=\"Planned Giving\",WorkingR!F80,\"\")","v":""},{"$f":"IF(WorkingR!$B80=\"Planned Giving\",WorkingR!G80,\"\")","v":""},{"$f":"IF(WorkingR!$B80=\"Planned Giving\",WorkingR!H80,\"\")","v":""},{"$f":"IF(WorkingR!$B80=\"Planned Giving\",WorkingR!I80,\"\")","v":""},{"$f":"IF(WorkingR!$B80=\"Planned Giving\",WorkingR!J80,\"\")","v":""},{"$f":"IF(WorkingR!$B80=\"Planned Giving\",WorkingR!K80,\"\")","v":""},{"$f":"IF(WorkingR!$B80=\"Planned Giving\",WorkingR!L80,\"\")","v":""},{"$f":"IF(WorkingR!$B80=\"Planned Giving\",WorkingR!M80,\"\")","v":""},{"$f":"IF(WorkingR!$B80=\"Planned Giving\",WorkingR!N80,\"\")","v":""},{"$f":"IF(WorkingR!$B80=\"Planned Giving\",WorkingR!O80,\"\")","v":""},{"$f":"IF(WorkingR!$B80=\"Planned Giving\",WorkingR!P80,\"\")","v":""},{"$f":"IF(WorkingR!$B80=\"Planned Giving\",WorkingR!Q80,\"\")","v":""},{"$f":"IF(WorkingR!$B80=\"Planned Giving\",WorkingR!R80,\"\")","v":""},{"$f":"IF(WorkingR!$B80=\"Planned Giving\",WorkingR!S80,\"\")","v":""},{"$f":"IF(WorkingR!$B80=\"Planned Giving\",WorkingR!T80,\"\")","v":""},{"$f":"IF(WorkingR!$B80=\"Planned Giving\",WorkingR!U80,\"\")","v":""},{"$f":"IF(WorkingR!$B80=\"Planned Giving\",WorkingR!V80,\"\")","v":""},{"$f":"IF(WorkingR!$B80=\"Planned Giving\",WorkingR!W80,\"\")","v":""},{"$f":"IF(WorkingR!$B80=\"Planned Giving\",WorkingR!X80,\"\")","v":""},{"$f":"IF(WorkingR!$B80=\"Planned Giving\",WorkingR!Y80,\"\")","v":""},{"$f":"IF(Descriptions!D81=\"Planned giving\",Descriptions!AA81,0)","v":0}]
[{"$f":"IF(Descriptions!D82=\"Planned giving\",Descriptions!B82,0)","v":0},{"$f":"IF(WorkingR!$B81=\"Planned Giving\",WorkingR!D81,\"\")","v":""},{"$f":"IF(WorkingR!$B81=\"Planned Giving\",WorkingR!E81,\"\")","v":""},{"$f":"IF(WorkingR!$B81=\"Planned Giving\",WorkingR!F81,\"\")","v":""},{"$f":"IF(WorkingR!$B81=\"Planned Giving\",WorkingR!G81,\"\")","v":""},{"$f":"IF(WorkingR!$B81=\"Planned Giving\",WorkingR!H81,\"\")","v":""},{"$f":"IF(WorkingR!$B81=\"Planned Giving\",WorkingR!I81,\"\")","v":""},{"$f":"IF(WorkingR!$B81=\"Planned Giving\",WorkingR!J81,\"\")","v":""},{"$f":"IF(WorkingR!$B81=\"Planned Giving\",WorkingR!K81,\"\")","v":""},{"$f":"IF(WorkingR!$B81=\"Planned Giving\",WorkingR!L81,\"\")","v":""},{"$f":"IF(WorkingR!$B81=\"Planned Giving\",WorkingR!M81,\"\")","v":""},{"$f":"IF(WorkingR!$B81=\"Planned Giving\",WorkingR!N81,\"\")","v":""},{"$f":"IF(WorkingR!$B81=\"Planned Giving\",WorkingR!O81,\"\")","v":""},{"$f":"IF(WorkingR!$B81=\"Planned Giving\",WorkingR!P81,\"\")","v":""},{"$f":"IF(WorkingR!$B81=\"Planned Giving\",WorkingR!Q81,\"\")","v":""},{"$f":"IF(WorkingR!$B81=\"Planned Giving\",WorkingR!R81,\"\")","v":""},{"$f":"IF(WorkingR!$B81=\"Planned Giving\",WorkingR!S81,\"\")","v":""},{"$f":"IF(WorkingR!$B81=\"Planned Giving\",WorkingR!T81,\"\")","v":""},{"$f":"IF(WorkingR!$B81=\"Planned Giving\",WorkingR!U81,\"\")","v":""},{"$f":"IF(WorkingR!$B81=\"Planned Giving\",WorkingR!V81,\"\")","v":""},{"$f":"IF(WorkingR!$B81=\"Planned Giving\",WorkingR!W81,\"\")","v":""},{"$f":"IF(WorkingR!$B81=\"Planned Giving\",WorkingR!X81,\"\")","v":""},{"$f":"IF(WorkingR!$B81=\"Planned Giving\",WorkingR!Y81,\"\")","v":""},{"$f":"IF(Descriptions!D82=\"Planned giving\",Descriptions!AA82,0)","v":0}]
[{"$f":"IF(Descriptions!D83=\"Planned giving\",Descriptions!B83,0)","v":0},{"$f":"IF(WorkingR!$B82=\"Planned Giving\",WorkingR!D82,\"\")","v":""},{"$f":"IF(WorkingR!$B82=\"Planned Giving\",WorkingR!E82,\"\")","v":""},{"$f":"IF(WorkingR!$B82=\"Planned Giving\",WorkingR!F82,\"\")","v":""},{"$f":"IF(WorkingR!$B82=\"Planned Giving\",WorkingR!G82,\"\")","v":""},{"$f":"IF(WorkingR!$B82=\"Planned Giving\",WorkingR!H82,\"\")","v":""},{"$f":"IF(WorkingR!$B82=\"Planned Giving\",WorkingR!I82,\"\")","v":""},{"$f":"IF(WorkingR!$B82=\"Planned Giving\",WorkingR!J82,\"\")","v":""},{"$f":"IF(WorkingR!$B82=\"Planned Giving\",WorkingR!K82,\"\")","v":""},{"$f":"IF(WorkingR!$B82=\"Planned Giving\",WorkingR!L82,\"\")","v":""},{"$f":"IF(WorkingR!$B82=\"Planned Giving\",WorkingR!M82,\"\")","v":""},{"$f":"IF(WorkingR!$B82=\"Planned Giving\",WorkingR!N82,\"\")","v":""},{"$f":"IF(WorkingR!$B82=\"Planned Giving\",WorkingR!O82,\"\")","v":""},{"$f":"IF(WorkingR!$B82=\"Planned Giving\",WorkingR!P82,\"\")","v":""},{"$f":"IF(WorkingR!$B82=\"Planned Giving\",WorkingR!Q82,\"\")","v":""},{"$f":"IF(WorkingR!$B82=\"Planned Giving\",WorkingR!R82,\"\")","v":""},{"$f":"IF(WorkingR!$B82=\"Planned Giving\",WorkingR!S82,\"\")","v":""},{"$f":"IF(WorkingR!$B82=\"Planned Giving\",WorkingR!T82,\"\")","v":""},{"$f":"IF(WorkingR!$B82=\"Planned Giving\",WorkingR!U82,\"\")","v":""},{"$f":"IF(WorkingR!$B82=\"Planned Giving\",WorkingR!V82,\"\")","v":""},{"$f":"IF(WorkingR!$B82=\"Planned Giving\",WorkingR!W82,\"\")","v":""},{"$f":"IF(WorkingR!$B82=\"Planned Giving\",WorkingR!X82,\"\")","v":""},{"$f":"IF(WorkingR!$B82=\"Planned Giving\",WorkingR!Y82,\"\")","v":""},{"$f":"IF(Descriptions!D83=\"Planned giving\",Descriptions!AA83,0)","v":0}]
[{"$f":"IF(Descriptions!D84=\"Planned giving\",Descriptions!B84,0)","v":0},{"$f":"IF(WorkingR!$B83=\"Planned Giving\",WorkingR!D83,\"\")","v":""},{"$f":"IF(WorkingR!$B83=\"Planned Giving\",WorkingR!E83,\"\")","v":""},{"$f":"IF(WorkingR!$B83=\"Planned Giving\",WorkingR!F83,\"\")","v":""},{"$f":"IF(WorkingR!$B83=\"Planned Giving\",WorkingR!G83,\"\")","v":""},{"$f":"IF(WorkingR!$B83=\"Planned Giving\",WorkingR!H83,\"\")","v":""},{"$f":"IF(WorkingR!$B83=\"Planned Giving\",WorkingR!I83,\"\")","v":""},{"$f":"IF(WorkingR!$B83=\"Planned Giving\",WorkingR!J83,\"\")","v":""},{"$f":"IF(WorkingR!$B83=\"Planned Giving\",WorkingR!K83,\"\")","v":""},{"$f":"IF(WorkingR!$B83=\"Planned Giving\",WorkingR!L83,\"\")","v":""},{"$f":"IF(WorkingR!$B83=\"Planned Giving\",WorkingR!M83,\"\")","v":""},{"$f":"IF(WorkingR!$B83=\"Planned Giving\",WorkingR!N83,\"\")","v":""},{"$f":"IF(WorkingR!$B83=\"Planned Giving\",WorkingR!O83,\"\")","v":""},{"$f":"IF(WorkingR!$B83=\"Planned Giving\",WorkingR!P83,\"\")","v":""},{"$f":"IF(WorkingR!$B83=\"Planned Giving\",WorkingR!Q83,\"\")","v":""},{"$f":"IF(WorkingR!$B83=\"Planned Giving\",WorkingR!R83,\"\")","v":""},{"$f":"IF(WorkingR!$B83=\"Planned Giving\",WorkingR!S83,\"\")","v":""},{"$f":"IF(WorkingR!$B83=\"Planned Giving\",WorkingR!T83,\"\")","v":""},{"$f":"IF(WorkingR!$B83=\"Planned Giving\",WorkingR!U83,\"\")","v":""},{"$f":"IF(WorkingR!$B83=\"Planned Giving\",WorkingR!V83,\"\")","v":""},{"$f":"IF(WorkingR!$B83=\"Planned Giving\",WorkingR!W83,\"\")","v":""},{"$f":"IF(WorkingR!$B83=\"Planned Giving\",WorkingR!X83,\"\")","v":""},{"$f":"IF(WorkingR!$B83=\"Planned Giving\",WorkingR!Y83,\"\")","v":""},{"$f":"IF(Descriptions!D84=\"Planned giving\",Descriptions!AA84,0)","v":0}]
[{"$f":"IF(Descriptions!D85=\"Planned giving\",Descriptions!B85,0)","v":0},{"$f":"IF(WorkingR!$B84=\"Planned Giving\",WorkingR!D84,\"\")","v":""},{"$f":"IF(WorkingR!$B84=\"Planned Giving\",WorkingR!E84,\"\")","v":""},{"$f":"IF(WorkingR!$B84=\"Planned Giving\",WorkingR!F84,\"\")","v":""},{"$f":"IF(WorkingR!$B84=\"Planned Giving\",WorkingR!G84,\"\")","v":""},{"$f":"IF(WorkingR!$B84=\"Planned Giving\",WorkingR!H84,\"\")","v":""},{"$f":"IF(WorkingR!$B84=\"Planned Giving\",WorkingR!I84,\"\")","v":""},{"$f":"IF(WorkingR!$B84=\"Planned Giving\",WorkingR!J84,\"\")","v":""},{"$f":"IF(WorkingR!$B84=\"Planned Giving\",WorkingR!K84,\"\")","v":""},{"$f":"IF(WorkingR!$B84=\"Planned Giving\",WorkingR!L84,\"\")","v":""},{"$f":"IF(WorkingR!$B84=\"Planned Giving\",WorkingR!M84,\"\")","v":""},{"$f":"IF(WorkingR!$B84=\"Planned Giving\",WorkingR!N84,\"\")","v":""},{"$f":"IF(WorkingR!$B84=\"Planned Giving\",WorkingR!O84,\"\")","v":""},{"$f":"IF(WorkingR!$B84=\"Planned Giving\",WorkingR!P84,\"\")","v":""},{"$f":"IF(WorkingR!$B84=\"Planned Giving\",WorkingR!Q84,\"\")","v":""},{"$f":"IF(WorkingR!$B84=\"Planned Giving\",WorkingR!R84,\"\")","v":""},{"$f":"IF(WorkingR!$B84=\"Planned Giving\",WorkingR!S84,\"\")","v":""},{"$f":"IF(WorkingR!$B84=\"Planned Giving\",WorkingR!T84,\"\")","v":""},{"$f":"IF(WorkingR!$B84=\"Planned Giving\",WorkingR!U84,\"\")","v":""},{"$f":"IF(WorkingR!$B84=\"Planned Giving\",WorkingR!V84,\"\")","v":""},{"$f":"IF(WorkingR!$B84=\"Planned Giving\",WorkingR!W84,\"\")","v":""},{"$f":"IF(WorkingR!$B84=\"Planned Giving\",WorkingR!X84,\"\")","v":""},{"$f":"IF(WorkingR!$B84=\"Planned Giving\",WorkingR!Y84,\"\")","v":""},{"$f":"IF(Descriptions!D85=\"Planned giving\",Descriptions!AA85,0)","v":0}]
[{"$f":"IF(Descriptions!D86=\"Planned giving\",Descriptions!B86,0)","v":0},{"$f":"IF(WorkingR!$B85=\"Planned Giving\",WorkingR!D85,\"\")","v":""},{"$f":"IF(WorkingR!$B85=\"Planned Giving\",WorkingR!E85,\"\")","v":""},{"$f":"IF(WorkingR!$B85=\"Planned Giving\",WorkingR!F85,\"\")","v":""},{"$f":"IF(WorkingR!$B85=\"Planned Giving\",WorkingR!G85,\"\")","v":""},{"$f":"IF(WorkingR!$B85=\"Planned Giving\",WorkingR!H85,\"\")","v":""},{"$f":"IF(WorkingR!$B85=\"Planned Giving\",WorkingR!I85,\"\")","v":""},{"$f":"IF(WorkingR!$B85=\"Planned Giving\",WorkingR!J85,\"\")","v":""},{"$f":"IF(WorkingR!$B85=\"Planned Giving\",WorkingR!K85,\"\")","v":""},{"$f":"IF(WorkingR!$B85=\"Planned Giving\",WorkingR!L85,\"\")","v":""},{"$f":"IF(WorkingR!$B85=\"Planned Giving\",WorkingR!M85,\"\")","v":""},{"$f":"IF(WorkingR!$B85=\"Planned Giving\",WorkingR!N85,\"\")","v":""},{"$f":"IF(WorkingR!$B85=\"Planned Giving\",WorkingR!O85,\"\")","v":""},{"$f":"IF(WorkingR!$B85=\"Planned Giving\",WorkingR!P85,\"\")","v":""},{"$f":"IF(WorkingR!$B85=\"Planned Giving\",WorkingR!Q85,\"\")","v":""},{"$f":"IF(WorkingR!$B85=\"Planned Giving\",WorkingR!R85,\"\")","v":""},{"$f":"IF(WorkingR!$B85=\"Planned Giving\",WorkingR!S85,\"\")","v":""},{"$f":"IF(WorkingR!$B85=\"Planned Giving\",WorkingR!T85,\"\")","v":""},{"$f":"IF(WorkingR!$B85=\"Planned Giving\",WorkingR!U85,\"\")","v":""},{"$f":"IF(WorkingR!$B85=\"Planned Giving\",WorkingR!V85,\"\")","v":""},{"$f":"IF(WorkingR!$B85=\"Planned Giving\",WorkingR!W85,\"\")","v":""},{"$f":"IF(WorkingR!$B85=\"Planned Giving\",WorkingR!X85,\"\")","v":""},{"$f":"IF(WorkingR!$B85=\"Planned Giving\",WorkingR!Y85,\"\")","v":""},{"$f":"IF(Descriptions!D86=\"Planned giving\",Descriptions!AA86,0)","v":0}]
[{"$f":"IF(Descriptions!D87=\"Planned giving\",Descriptions!B87,0)","v":0},{"$f":"IF(WorkingR!$B86=\"Planned Giving\",WorkingR!D86,\"\")","v":""},{"$f":"IF(WorkingR!$B86=\"Planned Giving\",WorkingR!E86,\"\")","v":""},{"$f":"IF(WorkingR!$B86=\"Planned Giving\",WorkingR!F86,\"\")","v":""},{"$f":"IF(WorkingR!$B86=\"Planned Giving\",WorkingR!G86,\"\")","v":""},{"$f":"IF(WorkingR!$B86=\"Planned Giving\",WorkingR!H86,\"\")","v":""},{"$f":"IF(WorkingR!$B86=\"Planned Giving\",WorkingR!I86,\"\")","v":""},{"$f":"IF(WorkingR!$B86=\"Planned Giving\",WorkingR!J86,\"\")","v":""},{"$f":"IF(WorkingR!$B86=\"Planned Giving\",WorkingR!K86,\"\")","v":""},{"$f":"IF(WorkingR!$B86=\"Planned Giving\",WorkingR!L86,\"\")","v":""},{"$f":"IF(WorkingR!$B86=\"Planned Giving\",WorkingR!M86,\"\")","v":""},{"$f":"IF(WorkingR!$B86=\"Planned Giving\",WorkingR!N86,\"\")","v":""},{"$f":"IF(WorkingR!$B86=\"Planned Giving\",WorkingR!O86,\"\")","v":""},{"$f":"IF(WorkingR!$B86=\"Planned Giving\",WorkingR!P86,\"\")","v":""},{"$f":"IF(WorkingR!$B86=\"Planned Giving\",WorkingR!Q86,\"\")","v":""},{"$f":"IF(WorkingR!$B86=\"Planned Giving\",WorkingR!R86,\"\")","v":""},{"$f":"IF(WorkingR!$B86=\"Planned Giving\",WorkingR!S86,\"\")","v":""},{"$f":"IF(WorkingR!$B86=\"Planned Giving\",WorkingR!T86,\"\")","v":""},{"$f":"IF(WorkingR!$B86=\"Planned Giving\",WorkingR!U86,\"\")","v":""},{"$f":"IF(WorkingR!$B86=\"Planned Giving\",WorkingR!V86,\"\")","v":""},{"$f":"IF(WorkingR!$B86=\"Planned Giving\",WorkingR!W86,\"\")","v":""},{"$f":"IF(WorkingR!$B86=\"Planned Giving\",WorkingR!X86,\"\")","v":""},{"$f":"IF(WorkingR!$B86=\"Planned Giving\",WorkingR!Y86,\"\")","v":""},{"$f":"IF(Descriptions!D87=\"Planned giving\",Descriptions!AA87,0)","v":0}]
[{"$f":"IF(Descriptions!D88=\"Planned giving\",Descriptions!B88,0)","v":0},{"$f":"IF(WorkingR!$B87=\"Planned Giving\",WorkingR!D87,\"\")","v":""},{"$f":"IF(WorkingR!$B87=\"Planned Giving\",WorkingR!E87,\"\")","v":""},{"$f":"IF(WorkingR!$B87=\"Planned Giving\",WorkingR!F87,\"\")","v":""},{"$f":"IF(WorkingR!$B87=\"Planned Giving\",WorkingR!G87,\"\")","v":""},{"$f":"IF(WorkingR!$B87=\"Planned Giving\",WorkingR!H87,\"\")","v":""},{"$f":"IF(WorkingR!$B87=\"Planned Giving\",WorkingR!I87,\"\")","v":""},{"$f":"IF(WorkingR!$B87=\"Planned Giving\",WorkingR!J87,\"\")","v":""},{"$f":"IF(WorkingR!$B87=\"Planned Giving\",WorkingR!K87,\"\")","v":""},{"$f":"IF(WorkingR!$B87=\"Planned Giving\",WorkingR!L87,\"\")","v":""},{"$f":"IF(WorkingR!$B87=\"Planned Giving\",WorkingR!M87,\"\")","v":""},{"$f":"IF(WorkingR!$B87=\"Planned Giving\",WorkingR!N87,\"\")","v":""},{"$f":"IF(WorkingR!$B87=\"Planned Giving\",WorkingR!O87,\"\")","v":""},{"$f":"IF(WorkingR!$B87=\"Planned Giving\",WorkingR!P87,\"\")","v":""},{"$f":"IF(WorkingR!$B87=\"Planned Giving\",WorkingR!Q87,\"\")","v":""},{"$f":"IF(WorkingR!$B87=\"Planned Giving\",WorkingR!R87,\"\")","v":""},{"$f":"IF(WorkingR!$B87=\"Planned Giving\",WorkingR!S87,\"\")","v":""},{"$f":"IF(WorkingR!$B87=\"Planned Giving\",WorkingR!T87,\"\")","v":""},{"$f":"IF(WorkingR!$B87=\"Planned Giving\",WorkingR!U87,\"\")","v":""},{"$f":"IF(WorkingR!$B87=\"Planned Giving\",WorkingR!V87,\"\")","v":""},{"$f":"IF(WorkingR!$B87=\"Planned Giving\",WorkingR!W87,\"\")","v":""},{"$f":"IF(WorkingR!$B87=\"Planned Giving\",WorkingR!X87,\"\")","v":""},{"$f":"IF(WorkingR!$B87=\"Planned Giving\",WorkingR!Y87,\"\")","v":""},{"$f":"IF(Descriptions!D88=\"Planned giving\",Descriptions!AA88,0)","v":0}]
[{"$f":"IF(Descriptions!D89=\"Planned giving\",Descriptions!B89,0)","v":0},{"$f":"IF(WorkingR!$B88=\"Planned Giving\",WorkingR!D88,\"\")","v":""},{"$f":"IF(WorkingR!$B88=\"Planned Giving\",WorkingR!E88,\"\")","v":""},{"$f":"IF(WorkingR!$B88=\"Planned Giving\",WorkingR!F88,\"\")","v":""},{"$f":"IF(WorkingR!$B88=\"Planned Giving\",WorkingR!G88,\"\")","v":""},{"$f":"IF(WorkingR!$B88=\"Planned Giving\",WorkingR!H88,\"\")","v":""},{"$f":"IF(WorkingR!$B88=\"Planned Giving\",WorkingR!I88,\"\")","v":""},{"$f":"IF(WorkingR!$B88=\"Planned Giving\",WorkingR!J88,\"\")","v":""},{"$f":"IF(WorkingR!$B88=\"Planned Giving\",WorkingR!K88,\"\")","v":""},{"$f":"IF(WorkingR!$B88=\"Planned Giving\",WorkingR!L88,\"\")","v":""},{"$f":"IF(WorkingR!$B88=\"Planned Giving\",WorkingR!M88,\"\")","v":""},{"$f":"IF(WorkingR!$B88=\"Planned Giving\",WorkingR!N88,\"\")","v":""},{"$f":"IF(WorkingR!$B88=\"Planned Giving\",WorkingR!O88,\"\")","v":""},{"$f":"IF(WorkingR!$B88=\"Planned Giving\",WorkingR!P88,\"\")","v":""},{"$f":"IF(WorkingR!$B88=\"Planned Giving\",WorkingR!Q88,\"\")","v":""},{"$f":"IF(WorkingR!$B88=\"Planned Giving\",WorkingR!R88,\"\")","v":""},{"$f":"IF(WorkingR!$B88=\"Planned Giving\",WorkingR!S88,\"\")","v":""},{"$f":"IF(WorkingR!$B88=\"Planned Giving\",WorkingR!T88,\"\")","v":""},{"$f":"IF(WorkingR!$B88=\"Planned Giving\",WorkingR!U88,\"\")","v":""},{"$f":"IF(WorkingR!$B88=\"Planned Giving\",WorkingR!V88,\"\")","v":""},{"$f":"IF(WorkingR!$B88=\"Planned Giving\",WorkingR!W88,\"\")","v":""},{"$f":"IF(WorkingR!$B88=\"Planned Giving\",WorkingR!X88,\"\")","v":""},{"$f":"IF(WorkingR!$B88=\"Planned Giving\",WorkingR!Y88,\"\")","v":""},{"$f":"IF(Descriptions!D89=\"Planned giving\",Descriptions!AA89,0)","v":0}]
[{"$f":"IF(Descriptions!D90=\"Planned giving\",Descriptions!B90,0)","v":0},{"$f":"IF(WorkingR!$B89=\"Planned Giving\",WorkingR!D89,\"\")","v":""},{"$f":"IF(WorkingR!$B89=\"Planned Giving\",WorkingR!E89,\"\")","v":""},{"$f":"IF(WorkingR!$B89=\"Planned Giving\",WorkingR!F89,\"\")","v":""},{"$f":"IF(WorkingR!$B89=\"Planned Giving\",WorkingR!G89,\"\")","v":""},{"$f":"IF(WorkingR!$B89=\"Planned Giving\",WorkingR!H89,\"\")","v":""},{"$f":"IF(WorkingR!$B89=\"Planned Giving\",WorkingR!I89,\"\")","v":""},{"$f":"IF(WorkingR!$B89=\"Planned Giving\",WorkingR!J89,\"\")","v":""},{"$f":"IF(WorkingR!$B89=\"Planned Giving\",WorkingR!K89,\"\")","v":""},{"$f":"IF(WorkingR!$B89=\"Planned Giving\",WorkingR!L89,\"\")","v":""},{"$f":"IF(WorkingR!$B89=\"Planned Giving\",WorkingR!M89,\"\")","v":""},{"$f":"IF(WorkingR!$B89=\"Planned Giving\",WorkingR!N89,\"\")","v":""},{"$f":"IF(WorkingR!$B89=\"Planned Giving\",WorkingR!O89,\"\")","v":""},{"$f":"IF(WorkingR!$B89=\"Planned Giving\",WorkingR!P89,\"\")","v":""},{"$f":"IF(WorkingR!$B89=\"Planned Giving\",WorkingR!Q89,\"\")","v":""},{"$f":"IF(WorkingR!$B89=\"Planned Giving\",WorkingR!R89,\"\")","v":""},{"$f":"IF(WorkingR!$B89=\"Planned Giving\",WorkingR!S89,\"\")","v":""},{"$f":"IF(WorkingR!$B89=\"Planned Giving\",WorkingR!T89,\"\")","v":""},{"$f":"IF(WorkingR!$B89=\"Planned Giving\",WorkingR!U89,\"\")","v":""},{"$f":"IF(WorkingR!$B89=\"Planned Giving\",WorkingR!V89,\"\")","v":""},{"$f":"IF(WorkingR!$B89=\"Planned Giving\",WorkingR!W89,\"\")","v":""},{"$f":"IF(WorkingR!$B89=\"Planned Giving\",WorkingR!X89,\"\")","v":""},{"$f":"IF(WorkingR!$B89=\"Planned Giving\",WorkingR!Y89,\"\")","v":""},{"$f":"IF(Descriptions!D90=\"Planned giving\",Descriptions!AA90,0)","v":0}]
[{"$f":"IF(Descriptions!D91=\"Planned giving\",Descriptions!B91,0)","v":0},{"$f":"IF(WorkingR!$B90=\"Planned Giving\",WorkingR!D90,\"\")","v":""},{"$f":"IF(WorkingR!$B90=\"Planned Giving\",WorkingR!E90,\"\")","v":""},{"$f":"IF(WorkingR!$B90=\"Planned Giving\",WorkingR!F90,\"\")","v":""},{"$f":"IF(WorkingR!$B90=\"Planned Giving\",WorkingR!G90,\"\")","v":""},{"$f":"IF(WorkingR!$B90=\"Planned Giving\",WorkingR!H90,\"\")","v":""},{"$f":"IF(WorkingR!$B90=\"Planned Giving\",WorkingR!I90,\"\")","v":""},{"$f":"IF(WorkingR!$B90=\"Planned Giving\",WorkingR!J90,\"\")","v":""},{"$f":"IF(WorkingR!$B90=\"Planned Giving\",WorkingR!K90,\"\")","v":""},{"$f":"IF(WorkingR!$B90=\"Planned Giving\",WorkingR!L90,\"\")","v":""},{"$f":"IF(WorkingR!$B90=\"Planned Giving\",WorkingR!M90,\"\")","v":""},{"$f":"IF(WorkingR!$B90=\"Planned Giving\",WorkingR!N90,\"\")","v":""},{"$f":"IF(WorkingR!$B90=\"Planned Giving\",WorkingR!O90,\"\")","v":""},{"$f":"IF(WorkingR!$B90=\"Planned Giving\",WorkingR!P90,\"\")","v":""},{"$f":"IF(WorkingR!$B90=\"Planned Giving\",WorkingR!Q90,\"\")","v":""},{"$f":"IF(WorkingR!$B90=\"Planned Giving\",WorkingR!R90,\"\")","v":""},{"$f":"IF(WorkingR!$B90=\"Planned Giving\",WorkingR!S90,\"\")","v":""},{"$f":"IF(WorkingR!$B90=\"Planned Giving\",WorkingR!T90,\"\")","v":""},{"$f":"IF(WorkingR!$B90=\"Planned Giving\",WorkingR!U90,\"\")","v":""},{"$f":"IF(WorkingR!$B90=\"Planned Giving\",WorkingR!V90,\"\")","v":""},{"$f":"IF(WorkingR!$B90=\"Planned Giving\",WorkingR!W90,\"\")","v":""},{"$f":"IF(WorkingR!$B90=\"Planned Giving\",WorkingR!X90,\"\")","v":""},{"$f":"IF(WorkingR!$B90=\"Planned Giving\",WorkingR!Y90,\"\")","v":""},{"$f":"IF(Descriptions!D91=\"Planned giving\",Descriptions!AA91,0)","v":0}]
[{"$f":"IF(Descriptions!D92=\"Planned giving\",Descriptions!B92,0)","v":0},{"$f":"IF(WorkingR!$B91=\"Planned Giving\",WorkingR!D91,\"\")","v":""},{"$f":"IF(WorkingR!$B91=\"Planned Giving\",WorkingR!E91,\"\")","v":""},{"$f":"IF(WorkingR!$B91=\"Planned Giving\",WorkingR!F91,\"\")","v":""},{"$f":"IF(WorkingR!$B91=\"Planned Giving\",WorkingR!G91,\"\")","v":""},{"$f":"IF(WorkingR!$B91=\"Planned Giving\",WorkingR!H91,\"\")","v":""},{"$f":"IF(WorkingR!$B91=\"Planned Giving\",WorkingR!I91,\"\")","v":""},{"$f":"IF(WorkingR!$B91=\"Planned Giving\",WorkingR!J91,\"\")","v":""},{"$f":"IF(WorkingR!$B91=\"Planned Giving\",WorkingR!K91,\"\")","v":""},{"$f":"IF(WorkingR!$B91=\"Planned Giving\",WorkingR!L91,\"\")","v":""},{"$f":"IF(WorkingR!$B91=\"Planned Giving\",WorkingR!M91,\"\")","v":""},{"$f":"IF(WorkingR!$B91=\"Planned Giving\",WorkingR!N91,\"\")","v":""},{"$f":"IF(WorkingR!$B91=\"Planned Giving\",WorkingR!O91,\"\")","v":""},{"$f":"IF(WorkingR!$B91=\"Planned Giving\",WorkingR!P91,\"\")","v":""},{"$f":"IF(WorkingR!$B91=\"Planned Giving\",WorkingR!Q91,\"\")","v":""},{"$f":"IF(WorkingR!$B91=\"Planned Giving\",WorkingR!R91,\"\")","v":""},{"$f":"IF(WorkingR!$B91=\"Planned Giving\",WorkingR!S91,\"\")","v":""},{"$f":"IF(WorkingR!$B91=\"Planned Giving\",WorkingR!T91,\"\")","v":""},{"$f":"IF(WorkingR!$B91=\"Planned Giving\",WorkingR!U91,\"\")","v":""},{"$f":"IF(WorkingR!$B91=\"Planned Giving\",WorkingR!V91,\"\")","v":""},{"$f":"IF(WorkingR!$B91=\"Planned Giving\",WorkingR!W91,\"\")","v":""},{"$f":"IF(WorkingR!$B91=\"Planned Giving\",WorkingR!X91,\"\")","v":""},{"$f":"IF(WorkingR!$B91=\"Planned Giving\",WorkingR!Y91,\"\")","v":""},{"$f":"IF(Descriptions!D92=\"Planned giving\",Descriptions!AA92,0)","v":0}]
[null,{"$f":"SUM(B66:B117)","v":0},0,0,0,0,0,0,0,0,0,0,0,0,0,0,0,0,0,0,0,0,null,{"$f":"X65","v":0}]
["GIFT AID RECEIVED",null,null,null,null,null,null,null,null,null,null,null,null,null,null,null,null,null,null,null,null,null,null,{"$f":"SUM(X120)","v":0}]
["Gift Aid Reclaim",{"$f":"WorkingR!D17","v":0},{"$f":"WorkingR!E17","v":0},{"$f":"WorkingR!F17","v":0},{"$f":"WorkingR!G17","v":0},{"$f":"WorkingR!H17","v":0},{"$f":"WorkingR!I17","v":0},{"$f":"WorkingR!J17","v":0},{"$f":"WorkingR!K17","v":0},{"$f":"WorkingR!L17","v":0},{"$f":"WorkingR!M17","v":0},{"$f":"WorkingR!N17","v":0},{"$f":"WorkingR!O17","v":0},{"$f":"WorkingR!P17","v":0},{"$f":"WorkingR!Q17","v":0},{"$f":"WorkingR!R17","v":0},{"$f":"WorkingR!S17","v":0},{"$f":"WorkingR!T17","v":0},{"$f":"WorkingR!U17","v":0},{"$f":"WorkingR!V17","v":0},{"$f":"WorkingR!W17","v":0},{"$f":"WorkingR!X17","v":0},{"$f":"WorkingR!Y17","v":0},{"$f":"Descriptions!AA18","v":0}]
[{"$f":"IF(Descriptions!D43=\"Gift aid recovered\",Descriptions!B43,0)","v":0},{"$f":"IF(WorkingR!$B42=\"Gift Aid Recovered\",WorkingR!D42,\"\")","v":""},{"$f":"IF(WorkingR!$B42=\"Gift Aid Recovered\",WorkingR!E42,\"\")","v":""},{"$f":"IF(WorkingR!$B42=\"Gift Aid Recovered\",WorkingR!F42,\"\")","v":""},{"$f":"IF(WorkingR!$B42=\"Gift Aid Recovered\",WorkingR!G42,\"\")","v":""},{"$f":"IF(WorkingR!$B42=\"Gift Aid Recovered\",WorkingR!H42,\"\")","v":""},{"$f":"IF(WorkingR!$B42=\"Gift Aid Recovered\",WorkingR!I42,\"\")","v":""},{"$f":"IF(WorkingR!$B42=\"Gift Aid Recovered\",WorkingR!J42,\"\")","v":""},{"$f":"IF(WorkingR!$B42=\"Gift Aid Recovered\",WorkingR!K42,\"\")","v":""},{"$f":"IF(WorkingR!$B42=\"Gift Aid Recovered\",WorkingR!L42,\"\")","v":""},{"$f":"IF(WorkingR!$B42=\"Gift Aid Recovered\",WorkingR!M42,\"\")","v":""},{"$f":"IF(WorkingR!$B42=\"Gift Aid Recovered\",WorkingR!N42,\"\")","v":""},{"$f":"IF(WorkingR!$B42=\"Gift Aid Recovered\",WorkingR!O42,\"\")","v":""},{"$f":"IF(WorkingR!$B42=\"Gift Aid Recovered\",WorkingR!P42,\"\")","v":""},{"$f":"IF(WorkingR!$B42=\"Gift Aid Recovered\",WorkingR!Q42,\"\")","v":""},{"$f":"IF(WorkingR!$B42=\"Gift Aid Recovered\",WorkingR!R42,\"\")","v":""},{"$f":"IF(WorkingR!$B42=\"Gift Aid Recovered\",WorkingR!S42,\"\")","v":""},{"$f":"IF(WorkingR!$B42=\"Gift Aid Recovered\",WorkingR!T42,\"\")","v":""},{"$f":"IF(WorkingR!$B42=\"Gift Aid Recovered\",WorkingR!U42,\"\")","v":""},{"$f":"IF(WorkingR!$B42=\"Gift Aid Recovered\",WorkingR!V42,\"\")","v":""},{"$f":"IF(WorkingR!$B42=\"Gift Aid Recovered\",WorkingR!W42,\"\")","v":""},{"$f":"IF(WorkingR!$B42=\"Gift Aid Recovered\",WorkingR!X42,\"\")","v":""},{"$f":"IF(WorkingR!$B42=\"Gift Aid Recovered\",WorkingR!Y42,\"\")","v":""},{"$f":"IF(Descriptions!D43=\"Gift aid recovered\",Descriptions!AA43,0)","v":0}]
[{"$f":"IF(Descriptions!D44=\"Gift aid recovered\",Descriptions!B44,0)","v":0},{"$f":"IF(WorkingR!$B43=\"Gift Aid Recovered\",WorkingR!D43,\"\")","v":""},{"$f":"IF(WorkingR!$B43=\"Gift Aid Recovered\",WorkingR!E43,\"\")","v":""},{"$f":"IF(WorkingR!$B43=\"Gift Aid Recovered\",WorkingR!F43,\"\")","v":""},{"$f":"IF(WorkingR!$B43=\"Gift Aid Recovered\",WorkingR!G43,\"\")","v":""},{"$f":"IF(WorkingR!$B43=\"Gift Aid Recovered\",WorkingR!H43,\"\")","v":""},{"$f":"IF(WorkingR!$B43=\"Gift Aid Recovered\",WorkingR!I43,\"\")","v":""},{"$f":"IF(WorkingR!$B43=\"Gift Aid Recovered\",WorkingR!J43,\"\")","v":""},{"$f":"IF(WorkingR!$B43=\"Gift Aid Recovered\",WorkingR!K43,\"\")","v":""},{"$f":"IF(WorkingR!$B43=\"Gift Aid Recovered\",WorkingR!L43,\"\")","v":""},{"$f":"IF(WorkingR!$B43=\"Gift Aid Recovered\",WorkingR!M43,\"\")","v":""},{"$f":"IF(WorkingR!$B43=\"Gift Aid Recovered\",WorkingR!N43,\"\")","v":""},{"$f":"IF(WorkingR!$B43=\"Gift Aid Recovered\",WorkingR!O43,\"\")","v":""},{"$f":"IF(WorkingR!$B43=\"Gift Aid Recovered\",WorkingR!P43,\"\")","v":""},{"$f":"IF(WorkingR!$B43=\"Gift Aid Recovered\",WorkingR!Q43,\"\")","v":""},{"$f":"IF(WorkingR!$B43=\"Gift Aid Recovered\",WorkingR!R43,\"\")","v":""},{"$f":"IF(WorkingR!$B43=\"Gift Aid Recovered\",WorkingR!S43,\"\")","v":""},{"$f":"IF(WorkingR!$B43=\"Gift Aid Recovered\",WorkingR!T43,\"\")","v":""},{"$f":"IF(WorkingR!$B43=\"Gift Aid Recovered\",WorkingR!U43,\"\")","v":""},{"$f":"IF(WorkingR!$B43=\"Gift Aid Recovered\",WorkingR!V43,\"\")","v":""},{"$f":"IF(WorkingR!$B43=\"Gift Aid Recovered\",WorkingR!W43,\"\")","v":""},{"$f":"IF(WorkingR!$B43=\"Gift Aid Recovered\",WorkingR!X43,\"\")","v":""},{"$f":"IF(WorkingR!$B43=\"Gift Aid Recovered\",WorkingR!Y43,\"\")","v":""},{"$f":"IF(Descriptions!D44=\"Gift aid recovered\",Descriptions!AA44,0)","v":0}]
[{"$f":"IF(Descriptions!D45=\"Gift aid recovered\",Descriptions!B45,0)","v":0},{"$f":"IF(WorkingR!$B44=\"Gift Aid Recovered\",WorkingR!D44,\"\")","v":""},{"$f":"IF(WorkingR!$B44=\"Gift Aid Recovered\",WorkingR!E44,\"\")","v":""},{"$f":"IF(WorkingR!$B44=\"Gift Aid Recovered\",WorkingR!F44,\"\")","v":""},{"$f":"IF(WorkingR!$B44=\"Gift Aid Recovered\",WorkingR!G44,\"\")","v":""},{"$f":"IF(WorkingR!$B44=\"Gift Aid Recovered\",WorkingR!H44,\"\")","v":""},{"$f":"IF(WorkingR!$B44=\"Gift Aid Recovered\",WorkingR!I44,\"\")","v":""},{"$f":"IF(WorkingR!$B44=\"Gift Aid Recovered\",WorkingR!J44,\"\")","v":""},{"$f":"IF(WorkingR!$B44=\"Gift Aid Recovered\",WorkingR!K44,\"\")","v":""},{"$f":"IF(WorkingR!$B44=\"Gift Aid Recovered\",WorkingR!L44,\"\")","v":""},{"$f":"IF(WorkingR!$B44=\"Gift Aid Recovered\",WorkingR!M44,\"\")","v":""},{"$f":"IF(WorkingR!$B44=\"Gift Aid Recovered\",WorkingR!N44,\"\")","v":""},{"$f":"IF(WorkingR!$B44=\"Gift Aid Recovered\",WorkingR!O44,\"\")","v":""},{"$f":"IF(WorkingR!$B44=\"Gift Aid Recovered\",WorkingR!P44,\"\")","v":""},{"$f":"IF(WorkingR!$B44=\"Gift Aid Recovered\",WorkingR!Q44,\"\")","v":""},{"$f":"IF(WorkingR!$B44=\"Gift Aid Recovered\",WorkingR!R44,\"\")","v":""},{"$f":"IF(WorkingR!$B44=\"Gift Aid Recovered\",WorkingR!S44,\"\")","v":""},{"$f":"IF(WorkingR!$B44=\"Gift Aid Recovered\",WorkingR!T44,\"\")","v":""},{"$f":"IF(WorkingR!$B44=\"Gift Aid Recovered\",WorkingR!U44,\"\")","v":""},{"$f":"IF(WorkingR!$B44=\"Gift Aid Recovered\",WorkingR!V44,\"\")","v":""},{"$f":"IF(WorkingR!$B44=\"Gift Aid Recovered\",WorkingR!W44,\"\")","v":""},{"$f":"IF(WorkingR!$B44=\"Gift Aid Recovered\",WorkingR!X44,\"\")","v":""},{"$f":"IF(WorkingR!$B44=\"Gift Aid Recovered\",WorkingR!Y44,\"\")","v":""},{"$f":"IF(Descriptions!D45=\"Gift aid recovered\",Descriptions!AA45,0)","v":0}]
[{"$f":"IF(Descriptions!D46=\"Gift aid recovered\",Descriptions!B46,0)","v":0},{"$f":"IF(WorkingR!$B45=\"Gift Aid Recovered\",WorkingR!D45,\"\")","v":""},{"$f":"IF(WorkingR!$B45=\"Gift Aid Recovered\",WorkingR!E45,\"\")","v":""},{"$f":"IF(WorkingR!$B45=\"Gift Aid Recovered\",WorkingR!F45,\"\")","v":""},{"$f":"IF(WorkingR!$B45=\"Gift Aid Recovered\",WorkingR!G45,\"\")","v":""},{"$f":"IF(WorkingR!$B45=\"Gift Aid Recovered\",WorkingR!H45,\"\")","v":""},{"$f":"IF(WorkingR!$B45=\"Gift Aid Recovered\",WorkingR!I45,\"\")","v":""},{"$f":"IF(WorkingR!$B45=\"Gift Aid Recovered\",WorkingR!J45,\"\")","v":""},{"$f":"IF(WorkingR!$B45=\"Gift Aid Recovered\",WorkingR!K45,\"\")","v":""},{"$f":"IF(WorkingR!$B45=\"Gift Aid Recovered\",WorkingR!L45,\"\")","v":""},{"$f":"IF(WorkingR!$B45=\"Gift Aid Recovered\",WorkingR!M45,\"\")","v":""},{"$f":"IF(WorkingR!$B45=\"Gift Aid Recovered\",WorkingR!N45,\"\")","v":""},{"$f":"IF(WorkingR!$B45=\"Gift Aid Recovered\",WorkingR!O45,\"\")","v":""},{"$f":"IF(WorkingR!$B45=\"Gift Aid Recovered\",WorkingR!P45,\"\")","v":""},{"$f":"IF(WorkingR!$B45=\"Gift Aid Recovered\",WorkingR!Q45,\"\")","v":""},{"$f":"IF(WorkingR!$B45=\"Gift Aid Recovered\",WorkingR!R45,\"\")","v":""},{"$f":"IF(WorkingR!$B45=\"Gift Aid Recovered\",WorkingR!S45,\"\")","v":""},{"$f":"IF(WorkingR!$B45=\"Gift Aid Recovered\",WorkingR!T45,\"\")","v":""},{"$f":"IF(WorkingR!$B45=\"Gift Aid Recovered\",WorkingR!U45,\"\")","v":""},{"$f":"IF(WorkingR!$B45=\"Gift Aid Recovered\",WorkingR!V45,\"\")","v":""},{"$f":"IF(WorkingR!$B45=\"Gift Aid Recovered\",WorkingR!W45,\"\")","v":""},{"$f":"IF(WorkingR!$B45=\"Gift Aid Recovered\",WorkingR!X45,\"\")","v":""},{"$f":"IF(WorkingR!$B45=\"Gift Aid Recovered\",WorkingR!Y45,\"\")","v":""},{"$f":"IF(Descriptions!D46=\"Gift aid recovered\",Descriptions!AA46,0)","v":0}]
[{"$f":"IF(Descriptions!D47=\"Gift aid recovered\",Descriptions!B47,0)","v":0},{"$f":"IF(WorkingR!$B46=\"Gift Aid Recovered\",WorkingR!D46,\"\")","v":""},{"$f":"IF(WorkingR!$B46=\"Gift Aid Recovered\",WorkingR!E46,\"\")","v":""},{"$f":"IF(WorkingR!$B46=\"Gift Aid Recovered\",WorkingR!F46,\"\")","v":""},{"$f":"IF(WorkingR!$B46=\"Gift Aid Recovered\",WorkingR!G46,\"\")","v":""},{"$f":"IF(WorkingR!$B46=\"Gift Aid Recovered\",WorkingR!H46,\"\")","v":""},{"$f":"IF(WorkingR!$B46=\"Gift Aid Recovered\",WorkingR!I46,\"\")","v":""},{"$f":"IF(WorkingR!$B46=\"Gift Aid Recovered\",WorkingR!J46,\"\")","v":""},{"$f":"IF(WorkingR!$B46=\"Gift Aid Recovered\",WorkingR!K46,\"\")","v":""},{"$f":"IF(WorkingR!$B46=\"Gift Aid Recovered\",WorkingR!L46,\"\")","v":""},{"$f":"IF(WorkingR!$B46=\"Gift Aid Recovered\",WorkingR!M46,\"\")","v":""},{"$f":"IF(WorkingR!$B46=\"Gift Aid Recovered\",WorkingR!N46,\"\")","v":""},{"$f":"IF(WorkingR!$B46=\"Gift Aid Recovered\",WorkingR!O46,\"\")","v":""},{"$f":"IF(WorkingR!$B46=\"Gift Aid Recovered\",WorkingR!P46,\"\")","v":""},{"$f":"IF(WorkingR!$B46=\"Gift Aid Recovered\",WorkingR!Q46,\"\")","v":""},{"$f":"IF(WorkingR!$B46=\"Gift Aid Recovered\",WorkingR!R46,\"\")","v":""},{"$f":"IF(WorkingR!$B46=\"Gift Aid Recovered\",WorkingR!S46,\"\")","v":""},{"$f":"IF(WorkingR!$B46=\"Gift Aid Recovered\",WorkingR!T46,\"\")","v":""},{"$f":"IF(WorkingR!$B46=\"Gift Aid Recovered\",WorkingR!U46,\"\")","v":""},{"$f":"IF(WorkingR!$B46=\"Gift Aid Recovered\",WorkingR!V46,\"\")","v":""},{"$f":"IF(WorkingR!$B46=\"Gift Aid Recovered\",WorkingR!W46,\"\")","v":""},{"$f":"IF(WorkingR!$B46=\"Gift Aid Recovered\",WorkingR!X46,\"\")","v":""},{"$f":"IF(WorkingR!$B46=\"Gift Aid Recovered\",WorkingR!Y46,\"\")","v":""},{"$f":"IF(Descriptions!D47=\"Gift aid recovered\",Descriptions!AA47,0)","v":0}]
[{"$f":"IF(Descriptions!D48=\"Gift aid recovered\",Descriptions!B48,0)","v":0},{"$f":"IF(WorkingR!$B47=\"Gift Aid Recovered\",WorkingR!D47,\"\")","v":""},{"$f":"IF(WorkingR!$B47=\"Gift Aid Recovered\",WorkingR!E47,\"\")","v":""},{"$f":"IF(WorkingR!$B47=\"Gift Aid Recovered\",WorkingR!F47,\"\")","v":""},{"$f":"IF(WorkingR!$B47=\"Gift Aid Recovered\",WorkingR!G47,\"\")","v":""},{"$f":"IF(WorkingR!$B47=\"Gift Aid Recovered\",WorkingR!H47,\"\")","v":""},{"$f":"IF(WorkingR!$B47=\"Gift Aid Recovered\",WorkingR!I47,\"\")","v":""},{"$f":"IF(WorkingR!$B47=\"Gift Aid Recovered\",WorkingR!J47,\"\")","v":""},{"$f":"IF(WorkingR!$B47=\"Gift Aid Recovered\",WorkingR!K47,\"\")","v":""},{"$f":"IF(WorkingR!$B47=\"Gift Aid Recovered\",WorkingR!L47,\"\")","v":""},{"$f":"IF(WorkingR!$B47=\"Gift Aid Recovered\",WorkingR!M47,\"\")","v":""},{"$f":"IF(WorkingR!$B47=\"Gift Aid Recovered\",WorkingR!N47,\"\")","v":""},{"$f":"IF(WorkingR!$B47=\"Gift Aid Recovered\",WorkingR!O47,\"\")","v":""},{"$f":"IF(WorkingR!$B47=\"Gift Aid Recovered\",WorkingR!P47,\"\")","v":""},{"$f":"IF(WorkingR!$B47=\"Gift Aid Recovered\",WorkingR!Q47,\"\")","v":""},{"$f":"IF(WorkingR!$B47=\"Gift Aid Recovered\",WorkingR!R47,\"\")","v":""},{"$f":"IF(WorkingR!$B47=\"Gift Aid Recovered\",WorkingR!S47,\"\")","v":""},{"$f":"IF(WorkingR!$B47=\"Gift Aid Recovered\",WorkingR!T47,\"\")","v":""},{"$f":"IF(WorkingR!$B47=\"Gift Aid Recovered\",WorkingR!U47,\"\")","v":""},{"$f":"IF(WorkingR!$B47=\"Gift Aid Recovered\",WorkingR!V47,\"\")","v":""},{"$f":"IF(WorkingR!$B47=\"Gift Aid Recovered\",WorkingR!W47,\"\")","v":""},{"$f":"IF(WorkingR!$B47=\"Gift Aid Recovered\",WorkingR!X47,\"\")","v":""},{"$f":"IF(WorkingR!$B47=\"Gift Aid Recovered\",WorkingR!Y47,\"\")","v":""},{"$f":"IF(Descriptions!D48=\"Gift aid recovered\",Descriptions!AA48,0)","v":0}]
[{"$f":"IF(Descriptions!D49=\"Gift aid recovered\",Descriptions!B49,0)","v":0},{"$f":"IF(WorkingR!$B48=\"Gift Aid Recovered\",WorkingR!D48,\"\")","v":""},{"$f":"IF(WorkingR!$B48=\"Gift Aid Recovered\",WorkingR!E48,\"\")","v":""},{"$f":"IF(WorkingR!$B48=\"Gift Aid Recovered\",WorkingR!F48,\"\")","v":""},{"$f":"IF(WorkingR!$B48=\"Gift Aid Recovered\",WorkingR!G48,\"\")","v":""},{"$f":"IF(WorkingR!$B48=\"Gift Aid Recovered\",WorkingR!H48,\"\")","v":""},{"$f":"IF(WorkingR!$B48=\"Gift Aid Recovered\",WorkingR!I48,\"\")","v":""},{"$f":"IF(WorkingR!$B48=\"Gift Aid Recovered\",WorkingR!J48,\"\")","v":""},{"$f":"IF(WorkingR!$B48=\"Gift Aid Recovered\",WorkingR!K48,\"\")","v":""},{"$f":"IF(WorkingR!$B48=\"Gift Aid Recovered\",WorkingR!L48,\"\")","v":""},{"$f":"IF(WorkingR!$B48=\"Gift Aid Recovered\",WorkingR!M48,\"\")","v":""},{"$f":"IF(WorkingR!$B48=\"Gift Aid Recovered\",WorkingR!N48,\"\")","v":""},{"$f":"IF(WorkingR!$B48=\"Gift Aid Recovered\",WorkingR!O48,\"\")","v":""},{"$f":"IF(WorkingR!$B48=\"Gift Aid Recovered\",WorkingR!P48,\"\")","v":""},{"$f":"IF(WorkingR!$B48=\"Gift Aid Recovered\",WorkingR!Q48,\"\")","v":""},{"$f":"IF(WorkingR!$B48=\"Gift Aid Recovered\",WorkingR!R48,\"\")","v":""},{"$f":"IF(WorkingR!$B48=\"Gift Aid Recovered\",WorkingR!S48,\"\")","v":""},{"$f":"IF(WorkingR!$B48=\"Gift Aid Recovered\",WorkingR!T48,\"\")","v":""},{"$f":"IF(WorkingR!$B48=\"Gift Aid Recovered\",WorkingR!U48,\"\")","v":""},{"$f":"IF(WorkingR!$B48=\"Gift Aid Recovered\",WorkingR!V48,\"\")","v":""},{"$f":"IF(WorkingR!$B48=\"Gift Aid Recovered\",WorkingR!W48,\"\")","v":""},{"$f":"IF(WorkingR!$B48=\"Gift Aid Recovered\",WorkingR!X48,\"\")","v":""},{"$f":"IF(WorkingR!$B48=\"Gift Aid Recovered\",WorkingR!Y48,\"\")","v":""},{"$f":"IF(Descriptions!D49=\"Gift aid recovered\",Descriptions!AA49,0)","v":0}]
[{"$f":"IF(Descriptions!D50=\"Gift aid recovered\",Descriptions!B50,0)","v":0},{"$f":"IF(WorkingR!$B49=\"Gift Aid Recovered\",WorkingR!D49,\"\")","v":""},{"$f":"IF(WorkingR!$B49=\"Gift Aid Recovered\",WorkingR!E49,\"\")","v":""},{"$f":"IF(WorkingR!$B49=\"Gift Aid Recovered\",WorkingR!F49,\"\")","v":""},{"$f":"IF(WorkingR!$B49=\"Gift Aid Recovered\",WorkingR!G49,\"\")","v":""},{"$f":"IF(WorkingR!$B49=\"Gift Aid Recovered\",WorkingR!H49,\"\")","v":""},{"$f":"IF(WorkingR!$B49=\"Gift Aid Recovered\",WorkingR!I49,\"\")","v":""},{"$f":"IF(WorkingR!$B49=\"Gift Aid Recovered\",WorkingR!J49,\"\")","v":""},{"$f":"IF(WorkingR!$B49=\"Gift Aid Recovered\",WorkingR!K49,\"\")","v":""},{"$f":"IF(WorkingR!$B49=\"Gift Aid Recovered\",WorkingR!L49,\"\")","v":""},{"$f":"IF(WorkingR!$B49=\"Gift Aid Recovered\",WorkingR!M49,\"\")","v":""},{"$f":"IF(WorkingR!$B49=\"Gift Aid Recovered\",WorkingR!N49,\"\")","v":""},{"$f":"IF(WorkingR!$B49=\"Gift Aid Recovered\",WorkingR!O49,\"\")","v":""},{"$f":"IF(WorkingR!$B49=\"Gift Aid Recovered\",WorkingR!P49,\"\")","v":""},{"$f":"IF(WorkingR!$B49=\"Gift Aid Recovered\",WorkingR!Q49,\"\")","v":""},{"$f":"IF(WorkingR!$B49=\"Gift Aid Recovered\",WorkingR!R49,\"\")","v":""},{"$f":"IF(WorkingR!$B49=\"Gift Aid Recovered\",WorkingR!S49,\"\")","v":""},{"$f":"IF(WorkingR!$B49=\"Gift Aid Recovered\",WorkingR!T49,\"\")","v":""},{"$f":"IF(WorkingR!$B49=\"Gift Aid Recovered\",WorkingR!U49,\"\")","v":""},{"$f":"IF(WorkingR!$B49=\"Gift Aid Recovered\",WorkingR!V49,\"\")","v":""},{"$f":"IF(WorkingR!$B49=\"Gift Aid Recovered\",WorkingR!W49,\"\")","v":""},{"$f":"IF(WorkingR!$B49=\"Gift Aid Recovered\",WorkingR!X49,\"\")","v":""},{"$f":"IF(WorkingR!$B49=\"Gift Aid Recovered\",WorkingR!Y49,\"\")","v":""},{"$f":"IF(Descriptions!D50=\"Gift aid recovered\",Descriptions!AA50,0)","v":0}]
[{"$f":"IF(Descriptions!D51=\"Gift aid recovered\",Descriptions!B51,0)","v":0},{"$f":"IF(WorkingR!$B50=\"Gift Aid Recovered\",WorkingR!D50,\"\")","v":""},{"$f":"IF(WorkingR!$B50=\"Gift Aid Recovered\",WorkingR!E50,\"\")","v":""},{"$f":"IF(WorkingR!$B50=\"Gift Aid Recovered\",WorkingR!F50,\"\")","v":""},{"$f":"IF(WorkingR!$B50=\"Gift Aid Recovered\",WorkingR!G50,\"\")","v":""},{"$f":"IF(WorkingR!$B50=\"Gift Aid Recovered\",WorkingR!H50,\"\")","v":""},{"$f":"IF(WorkingR!$B50=\"Gift Aid Recovered\",WorkingR!I50,\"\")","v":""},{"$f":"IF(WorkingR!$B50=\"Gift Aid Recovered\",WorkingR!J50,\"\")","v":""},{"$f":"IF(WorkingR!$B50=\"Gift Aid Recovered\",WorkingR!K50,\"\")","v":""},{"$f":"IF(WorkingR!$B50=\"Gift Aid Recovered\",WorkingR!L50,\"\")","v":""},{"$f":"IF(WorkingR!$B50=\"Gift Aid Recovered\",WorkingR!M50,\"\")","v":""},{"$f":"IF(WorkingR!$B50=\"Gift Aid Recovered\",WorkingR!N50,\"\")","v":""},{"$f":"IF(WorkingR!$B50=\"Gift Aid Recovered\",WorkingR!O50,\"\")","v":""},{"$f":"IF(WorkingR!$B50=\"Gift Aid Recovered\",WorkingR!P50,\"\")","v":""},{"$f":"IF(WorkingR!$B50=\"Gift Aid Recovered\",WorkingR!Q50,\"\")","v":""},{"$f":"IF(WorkingR!$B50=\"Gift Aid Recovered\",WorkingR!R50,\"\")","v":""},{"$f":"IF(WorkingR!$B50=\"Gift Aid Recovered\",WorkingR!S50,\"\")","v":""},{"$f":"IF(WorkingR!$B50=\"Gift Aid Recovered\",WorkingR!T50,\"\")","v":""},{"$f":"IF(WorkingR!$B50=\"Gift Aid Recovered\",WorkingR!U50,\"\")","v":""},{"$f":"IF(WorkingR!$B50=\"Gift Aid Recovered\",WorkingR!V50,\"\")","v":""},{"$f":"IF(WorkingR!$B50=\"Gift Aid Recovered\",WorkingR!W50,\"\")","v":""},{"$f":"IF(WorkingR!$B50=\"Gift Aid Recovered\",WorkingR!X50,\"\")","v":""},{"$f":"IF(WorkingR!$B50=\"Gift Aid Recovered\",WorkingR!Y50,\"\")","v":""},{"$f":"IF(Descriptions!D51=\"Gift aid recovered\",Descriptions!AA51,0)","v":0}]
[{"$f":"IF(Descriptions!D52=\"Gift aid recovered\",Descriptions!B52,0)","v":0},{"$f":"IF(WorkingR!$B51=\"Gift Aid Recovered\",WorkingR!D51,\"\")","v":""},{"$f":"IF(WorkingR!$B51=\"Gift Aid Recovered\",WorkingR!E51,\"\")","v":""},{"$f":"IF(WorkingR!$B51=\"Gift Aid Recovered\",WorkingR!F51,\"\")","v":""},{"$f":"IF(WorkingR!$B51=\"Gift Aid Recovered\",WorkingR!G51,\"\")","v":""},{"$f":"IF(WorkingR!$B51=\"Gift Aid Recovered\",WorkingR!H51,\"\")","v":""},{"$f":"IF(WorkingR!$B51=\"Gift Aid Recovered\",WorkingR!I51,\"\")","v":""},{"$f":"IF(WorkingR!$B51=\"Gift Aid Recovered\",WorkingR!J51,\"\")","v":""},{"$f":"IF(WorkingR!$B51=\"Gift Aid Recovered\",WorkingR!K51,\"\")","v":""},{"$f":"IF(WorkingR!$B51=\"Gift Aid Recovered\",WorkingR!L51,\"\")","v":""},{"$f":"IF(WorkingR!$B51=\"Gift Aid Recovered\",WorkingR!M51,\"\")","v":""},{"$f":"IF(WorkingR!$B51=\"Gift Aid Recovered\",WorkingR!N51,\"\")","v":""},{"$f":"IF(WorkingR!$B51=\"Gift Aid Recovered\",WorkingR!O51,\"\")","v":""},{"$f":"IF(WorkingR!$B51=\"Gift Aid Recovered\",WorkingR!P51,\"\")","v":""},{"$f":"IF(WorkingR!$B51=\"Gift Aid Recovered\",WorkingR!Q51,\"\")","v":""},{"$f":"IF(WorkingR!$B51=\"Gift Aid Recovered\",WorkingR!R51,\"\")","v":""},{"$f":"IF(WorkingR!$B51=\"Gift Aid Recovered\",WorkingR!S51,\"\")","v":""},{"$f":"IF(WorkingR!$B51=\"Gift Aid Recovered\",WorkingR!T51,\"\")","v":""},{"$f":"IF(WorkingR!$B51=\"Gift Aid Recovered\",WorkingR!U51,\"\")","v":""},{"$f":"IF(WorkingR!$B51=\"Gift Aid Recovered\",WorkingR!V51,\"\")","v":""},{"$f":"IF(WorkingR!$B51=\"Gift Aid Recovered\",WorkingR!W51,\"\")","v":""},{"$f":"IF(WorkingR!$B51=\"Gift Aid Recovered\",WorkingR!X51,\"\")","v":""},{"$f":"IF(WorkingR!$B51=\"Gift Aid Recovered\",WorkingR!Y51,\"\")","v":""},{"$f":"IF(Descriptions!D52=\"Gift aid recovered\",Descriptions!AA52,0)","v":0}]
[{"$f":"IF(Descriptions!D53=\"Gift aid recovered\",Descriptions!B53,0)","v":0},{"$f":"IF(WorkingR!$B52=\"Gift Aid Recovered\",WorkingR!D52,\"\")","v":""},{"$f":"IF(WorkingR!$B52=\"Gift Aid Recovered\",WorkingR!E52,\"\")","v":""},{"$f":"IF(WorkingR!$B52=\"Gift Aid Recovered\",WorkingR!F52,\"\")","v":""},{"$f":"IF(WorkingR!$B52=\"Gift Aid Recovered\",WorkingR!G52,\"\")","v":""},{"$f":"IF(WorkingR!$B52=\"Gift Aid Recovered\",WorkingR!H52,\"\")","v":""},{"$f":"IF(WorkingR!$B52=\"Gift Aid Recovered\",WorkingR!I52,\"\")","v":""},{"$f":"IF(WorkingR!$B52=\"Gift Aid Recovered\",WorkingR!J52,\"\")","v":""},{"$f":"IF(WorkingR!$B52=\"Gift Aid Recovered\",WorkingR!K52,\"\")","v":""},{"$f":"IF(WorkingR!$B52=\"Gift Aid Recovered\",WorkingR!L52,\"\")","v":""},{"$f":"IF(WorkingR!$B52=\"Gift Aid Recovered\",WorkingR!M52,\"\")","v":""},{"$f":"IF(WorkingR!$B52=\"Gift Aid Recovered\",WorkingR!N52,\"\")","v":""},{"$f":"IF(WorkingR!$B52=\"Gift Aid Recovered\",WorkingR!O52,\"\")","v":""},{"$f":"IF(WorkingR!$B52=\"Gift Aid Recovered\",WorkingR!P52,\"\")","v":""},{"$f":"IF(WorkingR!$B52=\"Gift Aid Recovered\",WorkingR!Q52,\"\")","v":""},{"$f":"IF(WorkingR!$B52=\"Gift Aid Recovered\",WorkingR!R52,\"\")","v":""},{"$f":"IF(WorkingR!$B52=\"Gift Aid Recovered\",WorkingR!S52,\"\")","v":""},{"$f":"IF(WorkingR!$B52=\"Gift Aid Recovered\",WorkingR!T52,\"\")","v":""},{"$f":"IF(WorkingR!$B52=\"Gift Aid Recovered\",WorkingR!U52,\"\")","v":""},{"$f":"IF(WorkingR!$B52=\"Gift Aid Recovered\",WorkingR!V52,\"\")","v":""},{"$f":"IF(WorkingR!$B52=\"Gift Aid Recovered\",WorkingR!W52,\"\")","v":""},{"$f":"IF(WorkingR!$B52=\"Gift Aid Recovered\",WorkingR!X52,\"\")","v":""},{"$f":"IF(WorkingR!$B52=\"Gift Aid Recovered\",WorkingR!Y52,\"\")","v":""},{"$f":"IF(Descriptions!D53=\"Gift aid recovered\",Descriptions!AA53,0)","v":0}]
[{"$f":"IF(Descriptions!D54=\"Gift aid recovered\",Descriptions!B54,0)","v":0},{"$f":"IF(WorkingR!$B53=\"Gift Aid Recovered\",WorkingR!D53,\"\")","v":""},{"$f":"IF(WorkingR!$B53=\"Gift Aid Recovered\",WorkingR!E53,\"\")","v":""},{"$f":"IF(WorkingR!$B53=\"Gift Aid Recovered\",WorkingR!F53,\"\")","v":""},{"$f":"IF(WorkingR!$B53=\"Gift Aid Recovered\",WorkingR!G53,\"\")","v":""},{"$f":"IF(WorkingR!$B53=\"Gift Aid Recovered\",WorkingR!H53,\"\")","v":""},{"$f":"IF(WorkingR!$B53=\"Gift Aid Recovered\",WorkingR!I53,\"\")","v":""},{"$f":"IF(WorkingR!$B53=\"Gift Aid Recovered\",WorkingR!J53,\"\")","v":""},{"$f":"IF(WorkingR!$B53=\"Gift Aid Recovered\",WorkingR!K53,\"\")","v":""},{"$f":"IF(WorkingR!$B53=\"Gift Aid Recovered\",WorkingR!L53,\"\")","v":""},{"$f":"IF(WorkingR!$B53=\"Gift Aid Recovered\",WorkingR!M53,\"\")","v":""},{"$f":"IF(WorkingR!$B53=\"Gift Aid Recovered\",WorkingR!N53,\"\")","v":""},{"$f":"IF(WorkingR!$B53=\"Gift Aid Recovered\",WorkingR!O53,\"\")","v":""},{"$f":"IF(WorkingR!$B53=\"Gift Aid Recovered\",WorkingR!P53,\"\")","v":""},{"$f":"IF(WorkingR!$B53=\"Gift Aid Recovered\",WorkingR!Q53,\"\")","v":""},{"$f":"IF(WorkingR!$B53=\"Gift Aid Recovered\",WorkingR!R53,\"\")","v":""},{"$f":"IF(WorkingR!$B53=\"Gift Aid Recovered\",WorkingR!S53,\"\")","v":""},{"$f":"IF(WorkingR!$B53=\"Gift Aid Recovered\",WorkingR!T53,\"\")","v":""},{"$f":"IF(WorkingR!$B53=\"Gift Aid Recovered\",WorkingR!U53,\"\")","v":""},{"$f":"IF(WorkingR!$B53=\"Gift Aid Recovered\",WorkingR!V53,\"\")","v":""},{"$f":"IF(WorkingR!$B53=\"Gift Aid Recovered\",WorkingR!W53,\"\")","v":""},{"$f":"IF(WorkingR!$B53=\"Gift Aid Recovered\",WorkingR!X53,\"\")","v":""},{"$f":"IF(WorkingR!$B53=\"Gift Aid Recovered\",WorkingR!Y53,\"\")","v":""},{"$f":"IF(Descriptions!D54=\"Gift aid recovered\",Descriptions!AA54,0)","v":0}]
[{"$f":"IF(Descriptions!D55=\"Gift aid recovered\",Descriptions!B55,0)","v":0},{"$f":"IF(WorkingR!$B54=\"Gift Aid Recovered\",WorkingR!D54,\"\")","v":""},{"$f":"IF(WorkingR!$B54=\"Gift Aid Recovered\",WorkingR!E54,\"\")","v":""},{"$f":"IF(WorkingR!$B54=\"Gift Aid Recovered\",WorkingR!F54,\"\")","v":""},{"$f":"IF(WorkingR!$B54=\"Gift Aid Recovered\",WorkingR!G54,\"\")","v":""},{"$f":"IF(WorkingR!$B54=\"Gift Aid Recovered\",WorkingR!H54,\"\")","v":""},{"$f":"IF(WorkingR!$B54=\"Gift Aid Recovered\",WorkingR!I54,\"\")","v":""},{"$f":"IF(WorkingR!$B54=\"Gift Aid Recovered\",WorkingR!J54,\"\")","v":""},{"$f":"IF(WorkingR!$B54=\"Gift Aid Recovered\",WorkingR!K54,\"\")","v":""},{"$f":"IF(WorkingR!$B54=\"Gift Aid Recovered\",WorkingR!L54,\"\")","v":""},{"$f":"IF(WorkingR!$B54=\"Gift Aid Recovered\",WorkingR!M54,\"\")","v":""},{"$f":"IF(WorkingR!$B54=\"Gift Aid Recovered\",WorkingR!N54,\"\")","v":""},{"$f":"IF(WorkingR!$B54=\"Gift Aid Recovered\",WorkingR!O54,\"\")","v":""},{"$f":"IF(WorkingR!$B54=\"Gift Aid Recovered\",WorkingR!P54,\"\")","v":""},{"$f":"IF(WorkingR!$B54=\"Gift Aid Recovered\",WorkingR!Q54,\"\")","v":""},{"$f":"IF(WorkingR!$B54=\"Gift Aid Recovered\",WorkingR!R54,\"\")","v":""},{"$f":"IF(WorkingR!$B54=\"Gift Aid Recovered\",WorkingR!S54,\"\")","v":""},{"$f":"IF(WorkingR!$B54=\"Gift Aid Recovered\",WorkingR!T54,\"\")","v":""},{"$f":"IF(WorkingR!$B54=\"Gift Aid Recovered\",WorkingR!U54,\"\")","v":""},{"$f":"IF(WorkingR!$B54=\"Gift Aid Recovered\",WorkingR!V54,\"\")","v":""},{"$f":"IF(WorkingR!$B54=\"Gift Aid Recovered\",WorkingR!W54,\"\")","v":""},{"$f":"IF(WorkingR!$B54=\"Gift Aid Recovered\",WorkingR!X54,\"\")","v":""},{"$f":"IF(WorkingR!$B54=\"Gift Aid Recovered\",WorkingR!Y54,\"\")","v":""},{"$f":"IF(Descriptions!D55=\"Gift aid recovered\",Descriptions!AA55,0)","v":0}]
[{"$f":"IF(Descriptions!D56=\"Gift aid recovered\",Descriptions!B56,0)","v":0},{"$f":"IF(WorkingR!$B55=\"Gift Aid Recovered\",WorkingR!D55,\"\")","v":""},{"$f":"IF(WorkingR!$B55=\"Gift Aid Recovered\",WorkingR!E55,\"\")","v":""},{"$f":"IF(WorkingR!$B55=\"Gift Aid Recovered\",WorkingR!F55,\"\")","v":""},{"$f":"IF(WorkingR!$B55=\"Gift Aid Recovered\",WorkingR!G55,\"\")","v":""},{"$f":"IF(WorkingR!$B55=\"Gift Aid Recovered\",WorkingR!H55,\"\")","v":""},{"$f":"IF(WorkingR!$B55=\"Gift Aid Recovered\",WorkingR!I55,\"\")","v":""},{"$f":"IF(WorkingR!$B55=\"Gift Aid Recovered\",WorkingR!J55,\"\")","v":""},{"$f":"IF(WorkingR!$B55=\"Gift Aid Recovered\",WorkingR!K55,\"\")","v":""},{"$f":"IF(WorkingR!$B55=\"Gift Aid Recovered\",WorkingR!L55,\"\")","v":""},{"$f":"IF(WorkingR!$B55=\"Gift Aid Recovered\",WorkingR!M55,\"\")","v":""},{"$f":"IF(WorkingR!$B55=\"Gift Aid Recovered\",WorkingR!N55,\"\")","v":""},{"$f":"IF(WorkingR!$B55=\"Gift Aid Recovered\",WorkingR!O55,\"\")","v":""},{"$f":"IF(WorkingR!$B55=\"Gift Aid Recovered\",WorkingR!P55,\"\")","v":""},{"$f":"IF(WorkingR!$B55=\"Gift Aid Recovered\",WorkingR!Q55,\"\")","v":""},{"$f":"IF(WorkingR!$B55=\"Gift Aid Recovered\",WorkingR!R55,\"\")","v":""},{"$f":"IF(WorkingR!$B55=\"Gift Aid Recovered\",WorkingR!S55,\"\")","v":""},{"$f":"IF(WorkingR!$B55=\"Gift Aid Recovered\",WorkingR!T55,\"\")","v":""},{"$f":"IF(WorkingR!$B55=\"Gift Aid Recovered\",WorkingR!U55,\"\")","v":""},{"$f":"IF(WorkingR!$B55=\"Gift Aid Recovered\",WorkingR!V55,\"\")","v":""},{"$f":"IF(WorkingR!$B55=\"Gift Aid Recovered\",WorkingR!W55,\"\")","v":""},{"$f":"IF(WorkingR!$B55=\"Gift Aid Recovered\",WorkingR!X55,\"\")","v":""},{"$f":"IF(WorkingR!$B55=\"Gift Aid Recovered\",WorkingR!Y55,\"\")","v":""},{"$f":"IF(Descriptions!D56=\"Gift aid recovered\",Descriptions!AA56,0)","v":0}]
[{"$f":"IF(Descriptions!D57=\"Gift aid recovered\",Descriptions!B57,0)","v":0},{"$f":"IF(WorkingR!$B56=\"Gift Aid Recovered\",WorkingR!D56,\"\")","v":""},{"$f":"IF(WorkingR!$B56=\"Gift Aid Recovered\",WorkingR!E56,\"\")","v":""},{"$f":"IF(WorkingR!$B56=\"Gift Aid Recovered\",WorkingR!F56,\"\")","v":""},{"$f":"IF(WorkingR!$B56=\"Gift Aid Recovered\",WorkingR!G56,\"\")","v":""},{"$f":"IF(WorkingR!$B56=\"Gift Aid Recovered\",WorkingR!H56,\"\")","v":""},{"$f":"IF(WorkingR!$B56=\"Gift Aid Recovered\",WorkingR!I56,\"\")","v":""},{"$f":"IF(WorkingR!$B56=\"Gift Aid Recovered\",WorkingR!J56,\"\")","v":""},{"$f":"IF(WorkingR!$B56=\"Gift Aid Recovered\",WorkingR!K56,\"\")","v":""},{"$f":"IF(WorkingR!$B56=\"Gift Aid Recovered\",WorkingR!L56,\"\")","v":""},{"$f":"IF(WorkingR!$B56=\"Gift Aid Recovered\",WorkingR!M56,\"\")","v":""},{"$f":"IF(WorkingR!$B56=\"Gift Aid Recovered\",WorkingR!N56,\"\")","v":""},{"$f":"IF(WorkingR!$B56=\"Gift Aid Recovered\",WorkingR!O56,\"\")","v":""},{"$f":"IF(WorkingR!$B56=\"Gift Aid Recovered\",WorkingR!P56,\"\")","v":""},{"$f":"IF(WorkingR!$B56=\"Gift Aid Recovered\",WorkingR!Q56,\"\")","v":""},{"$f":"IF(WorkingR!$B56=\"Gift Aid Recovered\",WorkingR!R56,\"\")","v":""},{"$f":"IF(WorkingR!$B56=\"Gift Aid Recovered\",WorkingR!S56,\"\")","v":""},{"$f":"IF(WorkingR!$B56=\"Gift Aid Recovered\",WorkingR!T56,\"\")","v":""},{"$f":"IF(WorkingR!$B56=\"Gift Aid Recovered\",WorkingR!U56,\"\")","v":""},{"$f":"IF(WorkingR!$B56=\"Gift Aid Recovered\",WorkingR!V56,\"\")","v":""},{"$f":"IF(WorkingR!$B56=\"Gift Aid Recovered\",WorkingR!W56,\"\")","v":""},{"$f":"IF(WorkingR!$B56=\"Gift Aid Recovered\",WorkingR!X56,\"\")","v":""},{"$f":"IF(WorkingR!$B56=\"Gift Aid Recovered\",WorkingR!Y56,\"\")","v":""},{"$f":"IF(Descriptions!D57=\"Gift aid recovered\",Descriptions!AA57,0)","v":0}]
[{"$f":"IF(Descriptions!D58=\"Gift aid recovered\",Descriptions!B58,0)","v":0},{"$f":"IF(WorkingR!$B57=\"Gift Aid Recovered\",WorkingR!D57,\"\")","v":""},{"$f":"IF(WorkingR!$B57=\"Gift Aid Recovered\",WorkingR!E57,\"\")","v":""},{"$f":"IF(WorkingR!$B57=\"Gift Aid Recovered\",WorkingR!F57,\"\")","v":""},{"$f":"IF(WorkingR!$B57=\"Gift Aid Recovered\",WorkingR!G57,\"\")","v":""},{"$f":"IF(WorkingR!$B57=\"Gift Aid Recovered\",WorkingR!H57,\"\")","v":""},{"$f":"IF(WorkingR!$B57=\"Gift Aid Recovered\",WorkingR!I57,\"\")","v":""},{"$f":"IF(WorkingR!$B57=\"Gift Aid Recovered\",WorkingR!J57,\"\")","v":""},{"$f":"IF(WorkingR!$B57=\"Gift Aid Recovered\",WorkingR!K57,\"\")","v":""},{"$f":"IF(WorkingR!$B57=\"Gift Aid Recovered\",WorkingR!L57,\"\")","v":""},{"$f":"IF(WorkingR!$B57=\"Gift Aid Recovered\",WorkingR!M57,\"\")","v":""},{"$f":"IF(WorkingR!$B57=\"Gift Aid Recovered\",WorkingR!N57,\"\")","v":""},{"$f":"IF(WorkingR!$B57=\"Gift Aid Recovered\",WorkingR!O57,\"\")","v":""},{"$f":"IF(WorkingR!$B57=\"Gift Aid Recovered\",WorkingR!P57,\"\")","v":""},{"$f":"IF(WorkingR!$B57=\"Gift Aid Recovered\",WorkingR!Q57,\"\")","v":""},{"$f":"IF(WorkingR!$B57=\"Gift Aid Recovered\",WorkingR!R57,\"\")","v":""},{"$f":"IF(WorkingR!$B57=\"Gift Aid Recovered\",WorkingR!S57,\"\")","v":""},{"$f":"IF(WorkingR!$B57=\"Gift Aid Recovered\",WorkingR!T57,\"\")","v":""},{"$f":"IF(WorkingR!$B57=\"Gift Aid Recovered\",WorkingR!U57,\"\")","v":""},{"$f":"IF(WorkingR!$B57=\"Gift Aid Recovered\",WorkingR!V57,\"\")","v":""},{"$f":"IF(WorkingR!$B57=\"Gift Aid Recovered\",WorkingR!W57,\"\")","v":""},{"$f":"IF(WorkingR!$B57=\"Gift Aid Recovered\",WorkingR!X57,\"\")","v":""},{"$f":"IF(WorkingR!$B57=\"Gift Aid Recovered\",WorkingR!Y57,\"\")","v":""},{"$f":"IF(Descriptions!D58=\"Gift aid recovered\",Descriptions!AA58,0)","v":0}]
[{"$f":"IF(Descriptions!D59=\"Gift aid recovered\",Descriptions!B59,0)","v":0},{"$f":"IF(WorkingR!$B58=\"Gift Aid Recovered\",WorkingR!D58,\"\")","v":""},{"$f":"IF(WorkingR!$B58=\"Gift Aid Recovered\",WorkingR!E58,\"\")","v":""},{"$f":"IF(WorkingR!$B58=\"Gift Aid Recovered\",WorkingR!F58,\"\")","v":""},{"$f":"IF(WorkingR!$B58=\"Gift Aid Recovered\",WorkingR!G58,\"\")","v":""},{"$f":"IF(WorkingR!$B58=\"Gift Aid Recovered\",WorkingR!H58,\"\")","v":""},{"$f":"IF(WorkingR!$B58=\"Gift Aid Recovered\",WorkingR!I58,\"\")","v":""},{"$f":"IF(WorkingR!$B58=\"Gift Aid Recovered\",WorkingR!J58,\"\")","v":""},{"$f":"IF(WorkingR!$B58=\"Gift Aid Recovered\",WorkingR!K58,\"\")","v":""},{"$f":"IF(WorkingR!$B58=\"Gift Aid Recovered\",WorkingR!L58,\"\")","v":""},{"$f":"IF(WorkingR!$B58=\"Gift Aid Recovered\",WorkingR!M58,\"\")","v":""},{"$f":"IF(WorkingR!$B58=\"Gift Aid Recovered\",WorkingR!N58,\"\")","v":""},{"$f":"IF(WorkingR!$B58=\"Gift Aid Recovered\",WorkingR!O58,\"\")","v":""},{"$f":"IF(WorkingR!$B58=\"Gift Aid Recovered\",WorkingR!P58,\"\")","v":""},{"$f":"IF(WorkingR!$B58=\"Gift Aid Recovered\",WorkingR!Q58,\"\")","v":""},{"$f":"IF(WorkingR!$B58=\"Gift Aid Recovered\",WorkingR!R58,\"\")","v":""},{"$f":"IF(WorkingR!$B58=\"Gift Aid Recovered\",WorkingR!S58,\"\")","v":""},{"$f":"IF(WorkingR!$B58=\"Gift Aid Recovered\",WorkingR!T58,\"\")","v":""},{"$f":"IF(WorkingR!$B58=\"Gift Aid Recovered\",WorkingR!U58,\"\")","v":""},{"$f":"IF(WorkingR!$B58=\"Gift Aid Recovered\",WorkingR!V58,\"\")","v":""},{"$f":"IF(WorkingR!$B58=\"Gift Aid Recovered\",WorkingR!W58,\"\")","v":""},{"$f":"IF(WorkingR!$B58=\"Gift Aid Recovered\",WorkingR!X58,\"\")","v":""},{"$f":"IF(WorkingR!$B58=\"Gift Aid Recovered\",WorkingR!Y58,\"\")","v":""},{"$f":"IF(Descriptions!D59=\"Gift aid recovered\",Descriptions!AA59,0)","v":0}]
[{"$f":"IF(Descriptions!D60=\"Gift aid recovered\",Descriptions!B60,0)","v":0},{"$f":"IF(WorkingR!$B59=\"Gift Aid Recovered\",WorkingR!D59,\"\")","v":""},{"$f":"IF(WorkingR!$B59=\"Gift Aid Recovered\",WorkingR!E59,\"\")","v":""},{"$f":"IF(WorkingR!$B59=\"Gift Aid Recovered\",WorkingR!F59,\"\")","v":""},{"$f":"IF(WorkingR!$B59=\"Gift Aid Recovered\",WorkingR!G59,\"\")","v":""},{"$f":"IF(WorkingR!$B59=\"Gift Aid Recovered\",WorkingR!H59,\"\")","v":""},{"$f":"IF(WorkingR!$B59=\"Gift Aid Recovered\",WorkingR!I59,\"\")","v":""},{"$f":"IF(WorkingR!$B59=\"Gift Aid Recovered\",WorkingR!J59,\"\")","v":""},{"$f":"IF(WorkingR!$B59=\"Gift Aid Recovered\",WorkingR!K59,\"\")","v":""},{"$f":"IF(WorkingR!$B59=\"Gift Aid Recovered\",WorkingR!L59,\"\")","v":""},{"$f":"IF(WorkingR!$B59=\"Gift Aid Recovered\",WorkingR!M59,\"\")","v":""},{"$f":"IF(WorkingR!$B59=\"Gift Aid Recovered\",WorkingR!N59,\"\")","v":""},{"$f":"IF(WorkingR!$B59=\"Gift Aid Recovered\",WorkingR!O59,\"\")","v":""},{"$f":"IF(WorkingR!$B59=\"Gift Aid Recovered\",WorkingR!P59,\"\")","v":""},{"$f":"IF(WorkingR!$B59=\"Gift Aid Recovered\",WorkingR!Q59,\"\")","v":""},{"$f":"IF(WorkingR!$B59=\"Gift Aid Recovered\",WorkingR!R59,\"\")","v":""},{"$f":"IF(WorkingR!$B59=\"Gift Aid Recovered\",WorkingR!S59,\"\")","v":""},{"$f":"IF(WorkingR!$B59=\"Gift Aid Recovered\",WorkingR!T59,\"\")","v":""},{"$f":"IF(WorkingR!$B59=\"Gift Aid Recovered\",WorkingR!U59,\"\")","v":""},{"$f":"IF(WorkingR!$B59=\"Gift Aid Recovered\",WorkingR!V59,\"\")","v":""},{"$f":"IF(WorkingR!$B59=\"Gift Aid Recovered\",WorkingR!W59,\"\")","v":""},{"$f":"IF(WorkingR!$B59=\"Gift Aid Recovered\",WorkingR!X59,\"\")","v":""},{"$f":"IF(WorkingR!$B59=\"Gift Aid Recovered\",WorkingR!Y59,\"\")","v":""},{"$f":"IF(Descriptions!D60=\"Gift aid recovered\",Descriptions!AA60,0)","v":0}]
[{"$f":"IF(Descriptions!D61=\"Gift aid recovered\",Descriptions!B61,0)","v":0},{"$f":"IF(WorkingR!$B60=\"Gift Aid Recovered\",WorkingR!D60,\"\")","v":""},{"$f":"IF(WorkingR!$B60=\"Gift Aid Recovered\",WorkingR!E60,\"\")","v":""},{"$f":"IF(WorkingR!$B60=\"Gift Aid Recovered\",WorkingR!F60,\"\")","v":""},{"$f":"IF(WorkingR!$B60=\"Gift Aid Recovered\",WorkingR!G60,\"\")","v":""},{"$f":"IF(WorkingR!$B60=\"Gift Aid Recovered\",WorkingR!H60,\"\")","v":""},{"$f":"IF(WorkingR!$B60=\"Gift Aid Recovered\",WorkingR!I60,\"\")","v":""},{"$f":"IF(WorkingR!$B60=\"Gift Aid Recovered\",WorkingR!J60,\"\")","v":""},{"$f":"IF(WorkingR!$B60=\"Gift Aid Recovered\",WorkingR!K60,\"\")","v":""},{"$f":"IF(WorkingR!$B60=\"Gift Aid Recovered\",WorkingR!L60,\"\")","v":""},{"$f":"IF(WorkingR!$B60=\"Gift Aid Recovered\",WorkingR!M60,\"\")","v":""},{"$f":"IF(WorkingR!$B60=\"Gift Aid Recovered\",WorkingR!N60,\"\")","v":""},{"$f":"IF(WorkingR!$B60=\"Gift Aid Recovered\",WorkingR!O60,\"\")","v":""},{"$f":"IF(WorkingR!$B60=\"Gift Aid Recovered\",WorkingR!P60,\"\")","v":""},{"$f":"IF(WorkingR!$B60=\"Gift Aid Recovered\",WorkingR!Q60,\"\")","v":""},{"$f":"IF(WorkingR!$B60=\"Gift Aid Recovered\",WorkingR!R60,\"\")","v":""},{"$f":"IF(WorkingR!$B60=\"Gift Aid Recovered\",WorkingR!S60,\"\")","v":""},{"$f":"IF(WorkingR!$B60=\"Gift Aid Recovered\",WorkingR!T60,\"\")","v":""},{"$f":"IF(WorkingR!$B60=\"Gift Aid Recovered\",WorkingR!U60,\"\")","v":""},{"$f":"IF(WorkingR!$B60=\"Gift Aid Recovered\",WorkingR!V60,\"\")","v":""},{"$f":"IF(WorkingR!$B60=\"Gift Aid Recovered\",WorkingR!W60,\"\")","v":""},{"$f":"IF(WorkingR!$B60=\"Gift Aid Recovered\",WorkingR!X60,\"\")","v":""},{"$f":"IF(WorkingR!$B60=\"Gift Aid Recovered\",WorkingR!Y60,\"\")","v":""},{"$f":"IF(Descriptions!D61=\"Gift aid recovered\",Descriptions!AA61,0)","v":0}]
[{"$f":"IF(Descriptions!D62=\"Gift aid recovered\",Descriptions!B62,0)","v":0},{"$f":"IF(WorkingR!$B61=\"Gift Aid Recovered\",WorkingR!D61,\"\")","v":""},{"$f":"IF(WorkingR!$B61=\"Gift Aid Recovered\",WorkingR!E61,\"\")","v":""},{"$f":"IF(WorkingR!$B61=\"Gift Aid Recovered\",WorkingR!F61,\"\")","v":""},{"$f":"IF(WorkingR!$B61=\"Gift Aid Recovered\",WorkingR!G61,\"\")","v":""},{"$f":"IF(WorkingR!$B61=\"Gift Aid Recovered\",WorkingR!H61,\"\")","v":""},{"$f":"IF(WorkingR!$B61=\"Gift Aid Recovered\",WorkingR!I61,\"\")","v":""},{"$f":"IF(WorkingR!$B61=\"Gift Aid Recovered\",WorkingR!J61,\"\")","v":""},{"$f":"IF(WorkingR!$B61=\"Gift Aid Recovered\",WorkingR!K61,\"\")","v":""},{"$f":"IF(WorkingR!$B61=\"Gift Aid Recovered\",WorkingR!L61,\"\")","v":""},{"$f":"IF(WorkingR!$B61=\"Gift Aid Recovered\",WorkingR!M61,\"\")","v":""},{"$f":"IF(WorkingR!$B61=\"Gift Aid Recovered\",WorkingR!N61,\"\")","v":""},{"$f":"IF(WorkingR!$B61=\"Gift Aid Recovered\",WorkingR!O61,\"\")","v":""},{"$f":"IF(WorkingR!$B61=\"Gift Aid Recovered\",WorkingR!P61,\"\")","v":""},{"$f":"IF(WorkingR!$B61=\"Gift Aid Recovered\",WorkingR!Q61,\"\")","v":""},{"$f":"IF(WorkingR!$B61=\"Gift Aid Recovered\",WorkingR!R61,\"\")","v":""},{"$f":"IF(WorkingR!$B61=\"Gift Aid Recovered\",WorkingR!S61,\"\")","v":""},{"$f":"IF(WorkingR!$B61=\"Gift Aid Recovered\",WorkingR!T61,\"\")","v":""},{"$f":"IF(WorkingR!$B61=\"Gift Aid Recovered\",WorkingR!U61,\"\")","v":""},{"$f":"IF(WorkingR!$B61=\"Gift Aid Recovered\",WorkingR!V61,\"\")","v":""},{"$f":"IF(WorkingR!$B61=\"Gift Aid Recovered\",WorkingR!W61,\"\")","v":""},{"$f":"IF(WorkingR!$B61=\"Gift Aid Recovered\",WorkingR!X61,\"\")","v":""},{"$f":"IF(WorkingR!$B61=\"Gift Aid Recovered\",WorkingR!Y61,\"\")","v":""},{"$f":"IF(Descriptions!D62=\"Gift aid recovered\",Descriptions!AA62,0)","v":0}]
[{"$f":"IF(Descriptions!D63=\"Gift aid recovered\",Descriptions!B63,0)","v":0},{"$f":"IF(WorkingR!$B62=\"Gift Aid Recovered\",WorkingR!D62,\"\")","v":""},{"$f":"IF(WorkingR!$B62=\"Gift Aid Recovered\",WorkingR!E62,\"\")","v":""},{"$f":"IF(WorkingR!$B62=\"Gift Aid Recovered\",WorkingR!F62,\"\")","v":""},{"$f":"IF(WorkingR!$B62=\"Gift Aid Recovered\",WorkingR!G62,\"\")","v":""},{"$f":"IF(WorkingR!$B62=\"Gift Aid Recovered\",WorkingR!H62,\"\")","v":""},{"$f":"IF(WorkingR!$B62=\"Gift Aid Recovered\",WorkingR!I62,\"\")","v":""},{"$f":"IF(WorkingR!$B62=\"Gift Aid Recovered\",WorkingR!J62,\"\")","v":""},{"$f":"IF(WorkingR!$B62=\"Gift Aid Recovered\",WorkingR!K62,\"\")","v":""},{"$f":"IF(WorkingR!$B62=\"Gift Aid Recovered\",WorkingR!L62,\"\")","v":""},{"$f":"IF(WorkingR!$B62=\"Gift Aid Recovered\",WorkingR!M62,\"\")","v":""},{"$f":"IF(WorkingR!$B62=\"Gift Aid Recovered\",WorkingR!N62,\"\")","v":""},{"$f":"IF(WorkingR!$B62=\"Gift Aid Recovered\",WorkingR!O62,\"\")","v":""},{"$f":"IF(WorkingR!$B62=\"Gift Aid Recovered\",WorkingR!P62,\"\")","v":""},{"$f":"IF(WorkingR!$B62=\"Gift Aid Recovered\",WorkingR!Q62,\"\")","v":""},{"$f":"IF(WorkingR!$B62=\"Gift Aid Recovered\",WorkingR!R62,\"\")","v":""},{"$f":"IF(WorkingR!$B62=\"Gift Aid Recovered\",WorkingR!S62,\"\")","v":""},{"$f":"IF(WorkingR!$B62=\"Gift Aid Recovered\",WorkingR!T62,\"\")","v":""},{"$f":"IF(WorkingR!$B62=\"Gift Aid Recovered\",WorkingR!U62,\"\")","v":""},{"$f":"IF(WorkingR!$B62=\"Gift Aid Recovered\",WorkingR!V62,\"\")","v":""},{"$f":"IF(WorkingR!$B62=\"Gift Aid Recovered\",WorkingR!W62,\"\")","v":""},{"$f":"IF(WorkingR!$B62=\"Gift Aid Recovered\",WorkingR!X62,\"\")","v":""},{"$f":"IF(WorkingR!$B62=\"Gift Aid Recovered\",WorkingR!Y62,\"\")","v":""},{"$f":"IF(Descriptions!D63=\"Gift aid recovered\",Descriptions!AA63,0)","v":0}]
[{"$f":"IF(Descriptions!D64=\"Gift aid recovered\",Descriptions!B64,0)","v":0},{"$f":"IF(WorkingR!$B63=\"Gift Aid Recovered\",WorkingR!D63,\"\")","v":""},{"$f":"IF(WorkingR!$B63=\"Gift Aid Recovered\",WorkingR!E63,\"\")","v":""},{"$f":"IF(WorkingR!$B63=\"Gift Aid Recovered\",WorkingR!F63,\"\")","v":""},{"$f":"IF(WorkingR!$B63=\"Gift Aid Recovered\",WorkingR!G63,\"\")","v":""},{"$f":"IF(WorkingR!$B63=\"Gift Aid Recovered\",WorkingR!H63,\"\")","v":""},{"$f":"IF(WorkingR!$B63=\"Gift Aid Recovered\",WorkingR!I63,\"\")","v":""},{"$f":"IF(WorkingR!$B63=\"Gift Aid Recovered\",WorkingR!J63,\"\")","v":""},{"$f":"IF(WorkingR!$B63=\"Gift Aid Recovered\",WorkingR!K63,\"\")","v":""},{"$f":"IF(WorkingR!$B63=\"Gift Aid Recovered\",WorkingR!L63,\"\")","v":""},{"$f":"IF(WorkingR!$B63=\"Gift Aid Recovered\",WorkingR!M63,\"\")","v":""},{"$f":"IF(WorkingR!$B63=\"Gift Aid Recovered\",WorkingR!N63,\"\")","v":""},{"$f":"IF(WorkingR!$B63=\"Gift Aid Recovered\",WorkingR!O63,\"\")","v":""},{"$f":"IF(WorkingR!$B63=\"Gift Aid Recovered\",WorkingR!P63,\"\")","v":""},{"$f":"IF(WorkingR!$B63=\"Gift Aid Recovered\",WorkingR!Q63,\"\")","v":""},{"$f":"IF(WorkingR!$B63=\"Gift Aid Recovered\",WorkingR!R63,\"\")","v":""},{"$f":"IF(WorkingR!$B63=\"Gift Aid Recovered\",WorkingR!S63,\"\")","v":""},{"$f":"IF(WorkingR!$B63=\"Gift Aid Recovered\",WorkingR!T63,\"\")","v":""},{"$f":"IF(WorkingR!$B63=\"Gift Aid Recovered\",WorkingR!U63,\"\")","v":""},{"$f":"IF(WorkingR!$B63=\"Gift Aid Recovered\",WorkingR!V63,\"\")","v":""},{"$f":"IF(WorkingR!$B63=\"Gift Aid Recovered\",WorkingR!W63,\"\")","v":""},{"$f":"IF(WorkingR!$B63=\"Gift Aid Recovered\",WorkingR!X63,\"\")","v":""},{"$f":"IF(WorkingR!$B63=\"Gift Aid Recovered\",WorkingR!Y63,\"\")","v":""},{"$f":"IF(Descriptions!D64=\"Gift aid recovered\",Descriptions!AA64,0)","v":0}]
[{"$f":"IF(Descriptions!D65=\"Gift aid recovered\",Descriptions!B65,0)","v":0},{"$f":"IF(WorkingR!$B64=\"Gift Aid Recovered\",WorkingR!D64,\"\")","v":""},{"$f":"IF(WorkingR!$B64=\"Gift Aid Recovered\",WorkingR!E64,\"\")","v":""},{"$f":"IF(WorkingR!$B64=\"Gift Aid Recovered\",WorkingR!F64,\"\")","v":""},{"$f":"IF(WorkingR!$B64=\"Gift Aid Recovered\",WorkingR!G64,\"\")","v":""},{"$f":"IF(WorkingR!$B64=\"Gift Aid Recovered\",WorkingR!H64,\"\")","v":""},{"$f":"IF(WorkingR!$B64=\"Gift Aid Recovered\",WorkingR!I64,\"\")","v":""},{"$f":"IF(WorkingR!$B64=\"Gift Aid Recovered\",WorkingR!J64,\"\")","v":""},{"$f":"IF(WorkingR!$B64=\"Gift Aid Recovered\",WorkingR!K64,\"\")","v":""},{"$f":"IF(WorkingR!$B64=\"Gift Aid Recovered\",WorkingR!L64,\"\")","v":""},{"$f":"IF(WorkingR!$B64=\"Gift Aid Recovered\",WorkingR!M64,\"\")","v":""},{"$f":"IF(WorkingR!$B64=\"Gift Aid Recovered\",WorkingR!N64,\"\")","v":""},{"$f":"IF(WorkingR!$B64=\"Gift Aid Recovered\",WorkingR!O64,\"\")","v":""},{"$f":"IF(WorkingR!$B64=\"Gift Aid Recovered\",WorkingR!P64,\"\")","v":""},{"$f":"IF(WorkingR!$B64=\"Gift Aid Recovered\",WorkingR!Q64,\"\")","v":""},{"$f":"IF(WorkingR!$B64=\"Gift Aid Recovered\",WorkingR!R64,\"\")","v":""},{"$f":"IF(WorkingR!$B64=\"Gift Aid Recovered\",WorkingR!S64,\"\")","v":""},{"$f":"IF(WorkingR!$B64=\"Gift Aid Recovered\",WorkingR!T64,\"\")","v":""},{"$f":"IF(WorkingR!$B64=\"Gift Aid Recovered\",WorkingR!U64,\"\")","v":""},{"$f":"IF(WorkingR!$B64=\"Gift Aid Recovered\",WorkingR!V64,\"\")","v":""},{"$f":"IF(WorkingR!$B64=\"Gift Aid Recovered\",WorkingR!W64,\"\")","v":""},{"$f":"IF(WorkingR!$B64=\"Gift Aid Recovered\",WorkingR!X64,\"\")","v":""},{"$f":"IF(WorkingR!$B64=\"Gift Aid Recovered\",WorkingR!Y64,\"\")","v":""},{"$f":"IF(Descriptions!D65=\"Gift aid recovered\",Descriptions!AA65,0)","v":0}]
[{"$f":"IF(Descriptions!D66=\"Gift aid recovered\",Descriptions!B66,0)","v":0},{"$f":"IF(WorkingR!$B65=\"Gift Aid Recovered\",WorkingR!D65,\"\")","v":""},{"$f":"IF(WorkingR!$B65=\"Gift Aid Recovered\",WorkingR!E65,\"\")","v":""},{"$f":"IF(WorkingR!$B65=\"Gift Aid Recovered\",WorkingR!F65,\"\")","v":""},{"$f":"IF(WorkingR!$B65=\"Gift Aid Recovered\",WorkingR!G65,\"\")","v":""},{"$f":"IF(WorkingR!$B65=\"Gift Aid Recovered\",WorkingR!H65,\"\")","v":""},{"$f":"IF(WorkingR!$B65=\"Gift Aid Recovered\",WorkingR!I65,\"\")","v":""},{"$f":"IF(WorkingR!$B65=\"Gift Aid Recovered\",WorkingR!J65,\"\")","v":""},{"$f":"IF(WorkingR!$B65=\"Gift Aid Recovered\",WorkingR!K65,\"\")","v":""},{"$f":"IF(WorkingR!$B65=\"Gift Aid Recovered\",WorkingR!L65,\"\")","v":""},{"$f":"IF(WorkingR!$B65=\"Gift Aid Recovered\",WorkingR!M65,\"\")","v":""},{"$f":"IF(WorkingR!$B65=\"Gift Aid Recovered\",WorkingR!N65,\"\")","v":""},{"$f":"IF(WorkingR!$B65=\"Gift Aid Recovered\",WorkingR!O65,\"\")","v":""},{"$f":"IF(WorkingR!$B65=\"Gift Aid Recovered\",WorkingR!P65,\"\")","v":""},{"$f":"IF(WorkingR!$B65=\"Gift Aid Recovered\",WorkingR!Q65,\"\")","v":""},{"$f":"IF(WorkingR!$B65=\"Gift Aid Recovered\",WorkingR!R65,\"\")","v":""},{"$f":"IF(WorkingR!$B65=\"Gift Aid Recovered\",WorkingR!S65,\"\")","v":""},{"$f":"IF(WorkingR!$B65=\"Gift Aid Recovered\",WorkingR!T65,\"\")","v":""},{"$f":"IF(WorkingR!$B65=\"Gift Aid Recovered\",WorkingR!U65,\"\")","v":""},{"$f":"IF(WorkingR!$B65=\"Gift Aid Recovered\",WorkingR!V65,\"\")","v":""},{"$f":"IF(WorkingR!$B65=\"Gift Aid Recovered\",WorkingR!W65,\"\")","v":""},{"$f":"IF(WorkingR!$B65=\"Gift Aid Recovered\",WorkingR!X65,\"\")","v":""},{"$f":"IF(WorkingR!$B65=\"Gift Aid Recovered\",WorkingR!Y65,\"\")","v":""},{"$f":"IF(Descriptions!D66=\"Gift aid recovered\",Descriptions!AA66,0)","v":0}]
[{"$f":"IF(Descriptions!D67=\"Gift aid recovered\",Descriptions!B67,0)","v":0},{"$f":"IF(WorkingR!$B66=\"Gift Aid Recovered\",WorkingR!D66,\"\")","v":""},{"$f":"IF(WorkingR!$B66=\"Gift Aid Recovered\",WorkingR!E66,\"\")","v":""},{"$f":"IF(WorkingR!$B66=\"Gift Aid Recovered\",WorkingR!F66,\"\")","v":""},{"$f":"IF(WorkingR!$B66=\"Gift Aid Recovered\",WorkingR!G66,\"\")","v":""},{"$f":"IF(WorkingR!$B66=\"Gift Aid Recovered\",WorkingR!H66,\"\")","v":""},{"$f":"IF(WorkingR!$B66=\"Gift Aid Recovered\",WorkingR!I66,\"\")","v":""},{"$f":"IF(WorkingR!$B66=\"Gift Aid Recovered\",WorkingR!J66,\"\")","v":""},{"$f":"IF(WorkingR!$B66=\"Gift Aid Recovered\",WorkingR!K66,\"\")","v":""},{"$f":"IF(WorkingR!$B66=\"Gift Aid Recovered\",WorkingR!L66,\"\")","v":""},{"$f":"IF(WorkingR!$B66=\"Gift Aid Recovered\",WorkingR!M66,\"\")","v":""},{"$f":"IF(WorkingR!$B66=\"Gift Aid Recovered\",WorkingR!N66,\"\")","v":""},{"$f":"IF(WorkingR!$B66=\"Gift Aid Recovered\",WorkingR!O66,\"\")","v":""},{"$f":"IF(WorkingR!$B66=\"Gift Aid Recovered\",WorkingR!P66,\"\")","v":""},{"$f":"IF(WorkingR!$B66=\"Gift Aid Recovered\",WorkingR!Q66,\"\")","v":""},{"$f":"IF(WorkingR!$B66=\"Gift Aid Recovered\",WorkingR!R66,\"\")","v":""},{"$f":"IF(WorkingR!$B66=\"Gift Aid Recovered\",WorkingR!S66,\"\")","v":""},{"$f":"IF(WorkingR!$B66=\"Gift Aid Recovered\",WorkingR!T66,\"\")","v":""},{"$f":"IF(WorkingR!$B66=\"Gift Aid Recovered\",WorkingR!U66,\"\")","v":""},{"$f":"IF(WorkingR!$B66=\"Gift Aid Recovered\",WorkingR!V66,\"\")","v":""},{"$f":"IF(WorkingR!$B66=\"Gift Aid Recovered\",WorkingR!W66,\"\")","v":""},{"$f":"IF(WorkingR!$B66=\"Gift Aid Recovered\",WorkingR!X66,\"\")","v":""},{"$f":"IF(WorkingR!$B66=\"Gift Aid Recovered\",WorkingR!Y66,\"\")","v":""},{"$f":"IF(Descriptions!D67=\"Gift aid recovered\",Descriptions!AA67,0)","v":0}]
[{"$f":"IF(Descriptions!D68=\"Gift aid recovered\",Descriptions!B68,0)","v":0},{"$f":"IF(WorkingR!$B67=\"Gift Aid Recovered\",WorkingR!D67,\"\")","v":""},{"$f":"IF(WorkingR!$B67=\"Gift Aid Recovered\",WorkingR!E67,\"\")","v":""},{"$f":"IF(WorkingR!$B67=\"Gift Aid Recovered\",WorkingR!F67,\"\")","v":""},{"$f":"IF(WorkingR!$B67=\"Gift Aid Recovered\",WorkingR!G67,\"\")","v":""},{"$f":"IF(WorkingR!$B67=\"Gift Aid Recovered\",WorkingR!H67,\"\")","v":""},{"$f":"IF(WorkingR!$B67=\"Gift Aid Recovered\",WorkingR!I67,\"\")","v":""},{"$f":"IF(WorkingR!$B67=\"Gift Aid Recovered\",WorkingR!J67,\"\")","v":""},{"$f":"IF(WorkingR!$B67=\"Gift Aid Recovered\",WorkingR!K67,\"\")","v":""},{"$f":"IF(WorkingR!$B67=\"Gift Aid Recovered\",WorkingR!L67,\"\")","v":""},{"$f":"IF(WorkingR!$B67=\"Gift Aid Recovered\",WorkingR!M67,\"\")","v":""},{"$f":"IF(WorkingR!$B67=\"Gift Aid Recovered\",WorkingR!N67,\"\")","v":""},{"$f":"IF(WorkingR!$B67=\"Gift Aid Recovered\",WorkingR!O67,\"\")","v":""},{"$f":"IF(WorkingR!$B67=\"Gift Aid Recovered\",WorkingR!P67,\"\")","v":""},{"$f":"IF(WorkingR!$B67=\"Gift Aid Recovered\",WorkingR!Q67,\"\")","v":""},{"$f":"IF(WorkingR!$B67=\"Gift Aid Recovered\",WorkingR!R67,\"\")","v":""},{"$f":"IF(WorkingR!$B67=\"Gift Aid Recovered\",WorkingR!S67,\"\")","v":""},{"$f":"IF(WorkingR!$B67=\"Gift Aid Recovered\",WorkingR!T67,\"\")","v":""},{"$f":"IF(WorkingR!$B67=\"Gift Aid Recovered\",WorkingR!U67,\"\")","v":""},{"$f":"IF(WorkingR!$B67=\"Gift Aid Recovered\",WorkingR!V67,\"\")","v":""},{"$f":"IF(WorkingR!$B67=\"Gift Aid Recovered\",WorkingR!W67,\"\")","v":""},{"$f":"IF(WorkingR!$B67=\"Gift Aid Recovered\",WorkingR!X67,\"\")","v":""},{"$f":"IF(WorkingR!$B67=\"Gift Aid Recovered\",WorkingR!Y67,\"\")","v":""},{"$f":"IF(Descriptions!D68=\"Gift aid recovered\",Descriptions!AA68,0)","v":0}]
[{"$f":"IF(Descriptions!D69=\"Gift aid recovered\",Descriptions!B69,0)","v":0},{"$f":"IF(WorkingR!$B68=\"Gift Aid Recovered\",WorkingR!D68,\"\")","v":""},{"$f":"IF(WorkingR!$B68=\"Gift Aid Recovered\",WorkingR!E68,\"\")","v":""},{"$f":"IF(WorkingR!$B68=\"Gift Aid Recovered\",WorkingR!F68,\"\")","v":""},{"$f":"IF(WorkingR!$B68=\"Gift Aid Recovered\",WorkingR!G68,\"\")","v":""},{"$f":"IF(WorkingR!$B68=\"Gift Aid Recovered\",WorkingR!H68,\"\")","v":""},{"$f":"IF(WorkingR!$B68=\"Gift Aid Recovered\",WorkingR!I68,\"\")","v":""},{"$f":"IF(WorkingR!$B68=\"Gift Aid Recovered\",WorkingR!J68,\"\")","v":""},{"$f":"IF(WorkingR!$B68=\"Gift Aid Recovered\",WorkingR!K68,\"\")","v":""},{"$f":"IF(WorkingR!$B68=\"Gift Aid Recovered\",WorkingR!L68,\"\")","v":""},{"$f":"IF(WorkingR!$B68=\"Gift Aid Recovered\",WorkingR!M68,\"\")","v":""},{"$f":"IF(WorkingR!$B68=\"Gift Aid Recovered\",WorkingR!N68,\"\")","v":""},{"$f":"IF(WorkingR!$B68=\"Gift Aid Recovered\",WorkingR!O68,\"\")","v":""},{"$f":"IF(WorkingR!$B68=\"Gift Aid Recovered\",WorkingR!P68,\"\")","v":""},{"$f":"IF(WorkingR!$B68=\"Gift Aid Recovered\",WorkingR!Q68,\"\")","v":""},{"$f":"IF(WorkingR!$B68=\"Gift Aid Recovered\",WorkingR!R68,\"\")","v":""},{"$f":"IF(WorkingR!$B68=\"Gift Aid Recovered\",WorkingR!S68,\"\")","v":""},{"$f":"IF(WorkingR!$B68=\"Gift Aid Recovered\",WorkingR!T68,\"\")","v":""},{"$f":"IF(WorkingR!$B68=\"Gift Aid Recovered\",WorkingR!U68,\"\")","v":""},{"$f":"IF(WorkingR!$B68=\"Gift Aid Recovered\",WorkingR!V68,\"\")","v":""},{"$f":"IF(WorkingR!$B68=\"Gift Aid Recovered\",WorkingR!W68,\"\")","v":""},{"$f":"IF(WorkingR!$B68=\"Gift Aid Recovered\",WorkingR!X68,\"\")","v":""},{"$f":"IF(WorkingR!$B68=\"Gift Aid Recovered\",WorkingR!Y68,\"\")","v":""},{"$f":"IF(Descriptions!D69=\"Gift aid recovered\",Descriptions!AA69,0)","v":0}]
[{"$f":"IF(Descriptions!D70=\"Gift aid recovered\",Descriptions!B70,0)","v":0},{"$f":"IF(WorkingR!$B69=\"Gift Aid Recovered\",WorkingR!D69,\"\")","v":""},{"$f":"IF(WorkingR!$B69=\"Gift Aid Recovered\",WorkingR!E69,\"\")","v":""},{"$f":"IF(WorkingR!$B69=\"Gift Aid Recovered\",WorkingR!F69,\"\")","v":""},{"$f":"IF(WorkingR!$B69=\"Gift Aid Recovered\",WorkingR!G69,\"\")","v":""},{"$f":"IF(WorkingR!$B69=\"Gift Aid Recovered\",WorkingR!H69,\"\")","v":""},{"$f":"IF(WorkingR!$B69=\"Gift Aid Recovered\",WorkingR!I69,\"\")","v":""},{"$f":"IF(WorkingR!$B69=\"Gift Aid Recovered\",WorkingR!J69,\"\")","v":""},{"$f":"IF(WorkingR!$B69=\"Gift Aid Recovered\",WorkingR!K69,\"\")","v":""},{"$f":"IF(WorkingR!$B69=\"Gift Aid Recovered\",WorkingR!L69,\"\")","v":""},{"$f":"IF(WorkingR!$B69=\"Gift Aid Recovered\",WorkingR!M69,\"\")","v":""},{"$f":"IF(WorkingR!$B69=\"Gift Aid Recovered\",WorkingR!N69,\"\")","v":""},{"$f":"IF(WorkingR!$B69=\"Gift Aid Recovered\",WorkingR!O69,\"\")","v":""},{"$f":"IF(WorkingR!$B69=\"Gift Aid Recovered\",WorkingR!P69,\"\")","v":""},{"$f":"IF(WorkingR!$B69=\"Gift Aid Recovered\",WorkingR!Q69,\"\")","v":""},{"$f":"IF(WorkingR!$B69=\"Gift Aid Recovered\",WorkingR!R69,\"\")","v":""},{"$f":"IF(WorkingR!$B69=\"Gift Aid Recovered\",WorkingR!S69,\"\")","v":""},{"$f":"IF(WorkingR!$B69=\"Gift Aid Recovered\",WorkingR!T69,\"\")","v":""},{"$f":"IF(WorkingR!$B69=\"Gift Aid Recovered\",WorkingR!U69,\"\")","v":""},{"$f":"IF(WorkingR!$B69=\"Gift Aid Recovered\",WorkingR!V69,\"\")","v":""},{"$f":"IF(WorkingR!$B69=\"Gift Aid Recovered\",WorkingR!W69,\"\")","v":""},{"$f":"IF(WorkingR!$B69=\"Gift Aid Recovered\",WorkingR!X69,\"\")","v":""},{"$f":"IF(WorkingR!$B69=\"Gift Aid Recovered\",WorkingR!Y69,\"\")","v":""},{"$f":"IF(Descriptions!D70=\"Gift aid recovered\",Descriptions!AA70,0)","v":0}]
[{"$f":"IF(Descriptions!D71=\"Gift aid recovered\",Descriptions!B71,0)","v":0},{"$f":"IF(WorkingR!$B70=\"Gift Aid Recovered\",WorkingR!D70,\"\")","v":""},{"$f":"IF(WorkingR!$B70=\"Gift Aid Recovered\",WorkingR!E70,\"\")","v":""},{"$f":"IF(WorkingR!$B70=\"Gift Aid Recovered\",WorkingR!F70,\"\")","v":""},{"$f":"IF(WorkingR!$B70=\"Gift Aid Recovered\",WorkingR!G70,\"\")","v":""},{"$f":"IF(WorkingR!$B70=\"Gift Aid Recovered\",WorkingR!H70,\"\")","v":""},{"$f":"IF(WorkingR!$B70=\"Gift Aid Recovered\",WorkingR!I70,\"\")","v":""},{"$f":"IF(WorkingR!$B70=\"Gift Aid Recovered\",WorkingR!J70,\"\")","v":""},{"$f":"IF(WorkingR!$B70=\"Gift Aid Recovered\",WorkingR!K70,\"\")","v":""},{"$f":"IF(WorkingR!$B70=\"Gift Aid Recovered\",WorkingR!L70,\"\")","v":""},{"$f":"IF(WorkingR!$B70=\"Gift Aid Recovered\",WorkingR!M70,\"\")","v":""},{"$f":"IF(WorkingR!$B70=\"Gift Aid Recovered\",WorkingR!N70,\"\")","v":""},{"$f":"IF(WorkingR!$B70=\"Gift Aid Recovered\",WorkingR!O70,\"\")","v":""},{"$f":"IF(WorkingR!$B70=\"Gift Aid Recovered\",WorkingR!P70,\"\")","v":""},{"$f":"IF(WorkingR!$B70=\"Gift Aid Recovered\",WorkingR!Q70,\"\")","v":""},{"$f":"IF(WorkingR!$B70=\"Gift Aid Recovered\",WorkingR!R70,\"\")","v":""},{"$f":"IF(WorkingR!$B70=\"Gift Aid Recovered\",WorkingR!S70,\"\")","v":""},{"$f":"IF(WorkingR!$B70=\"Gift Aid Recovered\",WorkingR!T70,\"\")","v":""},{"$f":"IF(WorkingR!$B70=\"Gift Aid Recovered\",WorkingR!U70,\"\")","v":""},{"$f":"IF(WorkingR!$B70=\"Gift Aid Recovered\",WorkingR!V70,\"\")","v":""},{"$f":"IF(WorkingR!$B70=\"Gift Aid Recovered\",WorkingR!W70,\"\")","v":""},{"$f":"IF(WorkingR!$B70=\"Gift Aid Recovered\",WorkingR!X70,\"\")","v":""},{"$f":"IF(WorkingR!$B70=\"Gift Aid Recovered\",WorkingR!Y70,\"\")","v":""},{"$f":"IF(Descriptions!D71=\"Gift aid recovered\",Descriptions!AA71,0)","v":0}]
[{"$f":"IF(Descriptions!D72=\"Gift aid recovered\",Descriptions!B72,0)","v":0},{"$f":"IF(WorkingR!$B71=\"Gift Aid Recovered\",WorkingR!D71,\"\")","v":""},{"$f":"IF(WorkingR!$B71=\"Gift Aid Recovered\",WorkingR!E71,\"\")","v":""},{"$f":"IF(WorkingR!$B71=\"Gift Aid Recovered\",WorkingR!F71,\"\")","v":""},{"$f":"IF(WorkingR!$B71=\"Gift Aid Recovered\",WorkingR!G71,\"\")","v":""},{"$f":"IF(WorkingR!$B71=\"Gift Aid Recovered\",WorkingR!H71,\"\")","v":""},{"$f":"IF(WorkingR!$B71=\"Gift Aid Recovered\",WorkingR!I71,\"\")","v":""},{"$f":"IF(WorkingR!$B71=\"Gift Aid Recovered\",WorkingR!J71,\"\")","v":""},{"$f":"IF(WorkingR!$B71=\"Gift Aid Recovered\",WorkingR!K71,\"\")","v":""},{"$f":"IF(WorkingR!$B71=\"Gift Aid Recovered\",WorkingR!L71,\"\")","v":""},{"$f":"IF(WorkingR!$B71=\"Gift Aid Recovered\",WorkingR!M71,\"\")","v":""},{"$f":"IF(WorkingR!$B71=\"Gift Aid Recovered\",WorkingR!N71,\"\")","v":""},{"$f":"IF(WorkingR!$B71=\"Gift Aid Recovered\",WorkingR!O71,\"\")","v":""},{"$f":"IF(WorkingR!$B71=\"Gift Aid Recovered\",WorkingR!P71,\"\")","v":""},{"$f":"IF(WorkingR!$B71=\"Gift Aid Recovered\",WorkingR!Q71,\"\")","v":""},{"$f":"IF(WorkingR!$B71=\"Gift Aid Recovered\",WorkingR!R71,\"\")","v":""},{"$f":"IF(WorkingR!$B71=\"Gift Aid Recovered\",WorkingR!S71,\"\")","v":""},{"$f":"IF(WorkingR!$B71=\"Gift Aid Recovered\",WorkingR!T71,\"\")","v":""},{"$f":"IF(WorkingR!$B71=\"Gift Aid Recovered\",WorkingR!U71,\"\")","v":""},{"$f":"IF(WorkingR!$B71=\"Gift Aid Recovered\",WorkingR!V71,\"\")","v":""},{"$f":"IF(WorkingR!$B71=\"Gift Aid Recovered\",WorkingR!W71,\"\")","v":""},{"$f":"IF(WorkingR!$B71=\"Gift Aid Recovered\",WorkingR!X71,\"\")","v":""},{"$f":"IF(WorkingR!$B71=\"Gift Aid Recovered\",WorkingR!Y71,\"\")","v":""},{"$f":"IF(Descriptions!D72=\"Gift aid recovered\",Descriptions!AA72,0)","v":0}]
[{"$f":"IF(Descriptions!D73=\"Gift aid recovered\",Descriptions!B73,0)","v":0},{"$f":"IF(WorkingR!$B72=\"Gift Aid Recovered\",WorkingR!D72,\"\")","v":""},{"$f":"IF(WorkingR!$B72=\"Gift Aid Recovered\",WorkingR!E72,\"\")","v":""},{"$f":"IF(WorkingR!$B72=\"Gift Aid Recovered\",WorkingR!F72,\"\")","v":""},{"$f":"IF(WorkingR!$B72=\"Gift Aid Recovered\",WorkingR!G72,\"\")","v":""},{"$f":"IF(WorkingR!$B72=\"Gift Aid Recovered\",WorkingR!H72,\"\")","v":""},{"$f":"IF(WorkingR!$B72=\"Gift Aid Recovered\",WorkingR!I72,\"\")","v":""},{"$f":"IF(WorkingR!$B72=\"Gift Aid Recovered\",WorkingR!J72,\"\")","v":""},{"$f":"IF(WorkingR!$B72=\"Gift Aid Recovered\",WorkingR!K72,\"\")","v":""},{"$f":"IF(WorkingR!$B72=\"Gift Aid Recovered\",WorkingR!L72,\"\")","v":""},{"$f":"IF(WorkingR!$B72=\"Gift Aid Recovered\",WorkingR!M72,\"\")","v":""},{"$f":"IF(WorkingR!$B72=\"Gift Aid Recovered\",WorkingR!N72,\"\")","v":""},{"$f":"IF(WorkingR!$B72=\"Gift Aid Recovered\",WorkingR!O72,\"\")","v":""},{"$f":"IF(WorkingR!$B72=\"Gift Aid Recovered\",WorkingR!P72,\"\")","v":""},{"$f":"IF(WorkingR!$B72=\"Gift Aid Recovered\",WorkingR!Q72,\"\")","v":""},{"$f":"IF(WorkingR!$B72=\"Gift Aid Recovered\",WorkingR!R72,\"\")","v":""},{"$f":"IF(WorkingR!$B72=\"Gift Aid Recovered\",WorkingR!S72,\"\")","v":""},{"$f":"IF(WorkingR!$B72=\"Gift Aid Recovered\",WorkingR!T72,\"\")","v":""},{"$f":"IF(WorkingR!$B72=\"Gift Aid Recovered\",WorkingR!U72,\"\")","v":""},{"$f":"IF(WorkingR!$B72=\"Gift Aid Recovered\",WorkingR!V72,\"\")","v":""},{"$f":"IF(WorkingR!$B72=\"Gift Aid Recovered\",WorkingR!W72,\"\")","v":""},{"$f":"IF(WorkingR!$B72=\"Gift Aid Recovered\",WorkingR!X72,\"\")","v":""},{"$f":"IF(WorkingR!$B72=\"Gift Aid Recovered\",WorkingR!Y72,\"\")","v":""},{"$f":"IF(Descriptions!D73=\"Gift aid recovered\",Descriptions!AA73,0)","v":0}]
[{"$f":"IF(Descriptions!D74=\"Gift aid recovered\",Descriptions!B74,0)","v":0},{"$f":"IF(WorkingR!$B73=\"Gift Aid Recovered\",WorkingR!D73,\"\")","v":""},{"$f":"IF(WorkingR!$B73=\"Gift Aid Recovered\",WorkingR!E73,\"\")","v":""},{"$f":"IF(WorkingR!$B73=\"Gift Aid Recovered\",WorkingR!F73,\"\")","v":""},{"$f":"IF(WorkingR!$B73=\"Gift Aid Recovered\",WorkingR!G73,\"\")","v":""},{"$f":"IF(WorkingR!$B73=\"Gift Aid Recovered\",WorkingR!H73,\"\")","v":""},{"$f":"IF(WorkingR!$B73=\"Gift Aid Recovered\",WorkingR!I73,\"\")","v":""},{"$f":"IF(WorkingR!$B73=\"Gift Aid Recovered\",WorkingR!J73,\"\")","v":""},{"$f":"IF(WorkingR!$B73=\"Gift Aid Recovered\",WorkingR!K73,\"\")","v":""},{"$f":"IF(WorkingR!$B73=\"Gift Aid Recovered\",WorkingR!L73,\"\")","v":""},{"$f":"IF(WorkingR!$B73=\"Gift Aid Recovered\",WorkingR!M73,\"\")","v":""},{"$f":"IF(WorkingR!$B73=\"Gift Aid Recovered\",WorkingR!N73,\"\")","v":""},{"$f":"IF(WorkingR!$B73=\"Gift Aid Recovered\",WorkingR!O73,\"\")","v":""},{"$f":"IF(WorkingR!$B73=\"Gift Aid Recovered\",WorkingR!P73,\"\")","v":""},{"$f":"IF(WorkingR!$B73=\"Gift Aid Recovered\",WorkingR!Q73,\"\")","v":""},{"$f":"IF(WorkingR!$B73=\"Gift Aid Recovered\",WorkingR!R73,\"\")","v":""},{"$f":"IF(WorkingR!$B73=\"Gift Aid Recovered\",WorkingR!S73,\"\")","v":""},{"$f":"IF(WorkingR!$B73=\"Gift Aid Recovered\",WorkingR!T73,\"\")","v":""},{"$f":"IF(WorkingR!$B73=\"Gift Aid Recovered\",WorkingR!U73,\"\")","v":""},{"$f":"IF(WorkingR!$B73=\"Gift Aid Recovered\",WorkingR!V73,\"\")","v":""},{"$f":"IF(WorkingR!$B73=\"Gift Aid Recovered\",WorkingR!W73,\"\")","v":""},{"$f":"IF(WorkingR!$B73=\"Gift Aid Recovered\",WorkingR!X73,\"\")","v":""},{"$f":"IF(WorkingR!$B73=\"Gift Aid Recovered\",WorkingR!Y73,\"\")","v":""},{"$f":"IF(Descriptions!D74=\"Gift aid recovered\",Descriptions!AA74,0)","v":0}]
[{"$f":"IF(Descriptions!D75=\"Gift aid recovered\",Descriptions!B75,0)","v":0},{"$f":"IF(WorkingR!$B74=\"Gift Aid Recovered\",WorkingR!D74,\"\")","v":""},{"$f":"IF(WorkingR!$B74=\"Gift Aid Recovered\",WorkingR!E74,\"\")","v":""},{"$f":"IF(WorkingR!$B74=\"Gift Aid Recovered\",WorkingR!F74,\"\")","v":""},{"$f":"IF(WorkingR!$B74=\"Gift Aid Recovered\",WorkingR!G74,\"\")","v":""},{"$f":"IF(WorkingR!$B74=\"Gift Aid Recovered\",WorkingR!H74,\"\")","v":""},{"$f":"IF(WorkingR!$B74=\"Gift Aid Recovered\",WorkingR!I74,\"\")","v":""},{"$f":"IF(WorkingR!$B74=\"Gift Aid Recovered\",WorkingR!J74,\"\")","v":""},{"$f":"IF(WorkingR!$B74=\"Gift Aid Recovered\",WorkingR!K74,\"\")","v":""},{"$f":"IF(WorkingR!$B74=\"Gift Aid Recovered\",WorkingR!L74,\"\")","v":""},{"$f":"IF(WorkingR!$B74=\"Gift Aid Recovered\",WorkingR!M74,\"\")","v":""},{"$f":"IF(WorkingR!$B74=\"Gift Aid Recovered\",WorkingR!N74,\"\")","v":""},{"$f":"IF(WorkingR!$B74=\"Gift Aid Recovered\",WorkingR!O74,\"\")","v":""},{"$f":"IF(WorkingR!$B74=\"Gift Aid Recovered\",WorkingR!P74,\"\")","v":""},{"$f":"IF(WorkingR!$B74=\"Gift Aid Recovered\",WorkingR!Q74,\"\")","v":""},{"$f":"IF(WorkingR!$B74=\"Gift Aid Recovered\",WorkingR!R74,\"\")","v":""},{"$f":"IF(WorkingR!$B74=\"Gift Aid Recovered\",WorkingR!S74,\"\")","v":""},{"$f":"IF(WorkingR!$B74=\"Gift Aid Recovered\",WorkingR!T74,\"\")","v":""},{"$f":"IF(WorkingR!$B74=\"Gift Aid Recovered\",WorkingR!U74,\"\")","v":""},{"$f":"IF(WorkingR!$B74=\"Gift Aid Recovered\",WorkingR!V74,\"\")","v":""},{"$f":"IF(WorkingR!$B74=\"Gift Aid Recovered\",WorkingR!W74,\"\")","v":""},{"$f":"IF(WorkingR!$B74=\"Gift Aid Recovered\",WorkingR!X74,\"\")","v":""},{"$f":"IF(WorkingR!$B74=\"Gift Aid Recovered\",WorkingR!Y74,\"\")","v":""},{"$f":"IF(Descriptions!D75=\"Gift aid recovered\",Descriptions!AA75,0)","v":0}]
[{"$f":"IF(Descriptions!D76=\"Gift aid recovered\",Descriptions!B76,0)","v":0},{"$f":"IF(WorkingR!$B75=\"Gift Aid Recovered\",WorkingR!D75,\"\")","v":""},{"$f":"IF(WorkingR!$B75=\"Gift Aid Recovered\",WorkingR!E75,\"\")","v":""},{"$f":"IF(WorkingR!$B75=\"Gift Aid Recovered\",WorkingR!F75,\"\")","v":""},{"$f":"IF(WorkingR!$B75=\"Gift Aid Recovered\",WorkingR!G75,\"\")","v":""},{"$f":"IF(WorkingR!$B75=\"Gift Aid Recovered\",WorkingR!H75,\"\")","v":""},{"$f":"IF(WorkingR!$B75=\"Gift Aid Recovered\",WorkingR!I75,\"\")","v":""},{"$f":"IF(WorkingR!$B75=\"Gift Aid Recovered\",WorkingR!J75,\"\")","v":""},{"$f":"IF(WorkingR!$B75=\"Gift Aid Recovered\",WorkingR!K75,\"\")","v":""},{"$f":"IF(WorkingR!$B75=\"Gift Aid Recovered\",WorkingR!L75,\"\")","v":""},{"$f":"IF(WorkingR!$B75=\"Gift Aid Recovered\",WorkingR!M75,\"\")","v":""},{"$f":"IF(WorkingR!$B75=\"Gift Aid Recovered\",WorkingR!N75,\"\")","v":""},{"$f":"IF(WorkingR!$B75=\"Gift Aid Recovered\",WorkingR!O75,\"\")","v":""},{"$f":"IF(WorkingR!$B75=\"Gift Aid Recovered\",WorkingR!P75,\"\")","v":""},{"$f":"IF(WorkingR!$B75=\"Gift Aid Recovered\",WorkingR!Q75,\"\")","v":""},{"$f":"IF(WorkingR!$B75=\"Gift Aid Recovered\",WorkingR!R75,\"\")","v":""},{"$f":"IF(WorkingR!$B75=\"Gift Aid Recovered\",WorkingR!S75,\"\")","v":""},{"$f":"IF(WorkingR!$B75=\"Gift Aid Recovered\",WorkingR!T75,\"\")","v":""},{"$f":"IF(WorkingR!$B75=\"Gift Aid Recovered\",WorkingR!U75,\"\")","v":""},{"$f":"IF(WorkingR!$B75=\"Gift Aid Recovered\",WorkingR!V75,\"\")","v":""},{"$f":"IF(WorkingR!$B75=\"Gift Aid Recovered\",WorkingR!W75,\"\")","v":""},{"$f":"IF(WorkingR!$B75=\"Gift Aid Recovered\",WorkingR!X75,\"\")","v":""},{"$f":"IF(WorkingR!$B75=\"Gift Aid Recovered\",WorkingR!Y75,\"\")","v":""},{"$f":"IF(Descriptions!D76=\"Gift aid recovered\",Descriptions!AA76,0)","v":0}]
[{"$f":"IF(Descriptions!D77=\"Gift aid recovered\",Descriptions!B77,0)","v":0},{"$f":"IF(WorkingR!$B76=\"Gift Aid Recovered\",WorkingR!D76,\"\")","v":""},{"$f":"IF(WorkingR!$B76=\"Gift Aid Recovered\",WorkingR!E76,\"\")","v":""},{"$f":"IF(WorkingR!$B76=\"Gift Aid Recovered\",WorkingR!F76,\"\")","v":""},{"$f":"IF(WorkingR!$B76=\"Gift Aid Recovered\",WorkingR!G76,\"\")","v":""},{"$f":"IF(WorkingR!$B76=\"Gift Aid Recovered\",WorkingR!H76,\"\")","v":""},{"$f":"IF(WorkingR!$B76=\"Gift Aid Recovered\",WorkingR!I76,\"\")","v":""},{"$f":"IF(WorkingR!$B76=\"Gift Aid Recovered\",WorkingR!J76,\"\")","v":""},{"$f":"IF(WorkingR!$B76=\"Gift Aid Recovered\",WorkingR!K76,\"\")","v":""},{"$f":"IF(WorkingR!$B76=\"Gift Aid Recovered\",WorkingR!L76,\"\")","v":""},{"$f":"IF(WorkingR!$B76=\"Gift Aid Recovered\",WorkingR!M76,\"\")","v":""},{"$f":"IF(WorkingR!$B76=\"Gift Aid Recovered\",WorkingR!N76,\"\")","v":""},{"$f":"IF(WorkingR!$B76=\"Gift Aid Recovered\",WorkingR!O76,\"\")","v":""},{"$f":"IF(WorkingR!$B76=\"Gift Aid Recovered\",WorkingR!P76,\"\")","v":""},{"$f":"IF(WorkingR!$B76=\"Gift Aid Recovered\",WorkingR!Q76,\"\")","v":""},{"$f":"IF(WorkingR!$B76=\"Gift Aid Recovered\",WorkingR!R76,\"\")","v":""},{"$f":"IF(WorkingR!$B76=\"Gift Aid Recovered\",WorkingR!S76,\"\")","v":""},{"$f":"IF(WorkingR!$B76=\"Gift Aid Recovered\",WorkingR!T76,\"\")","v":""},{"$f":"IF(WorkingR!$B76=\"Gift Aid Recovered\",WorkingR!U76,\"\")","v":""},{"$f":"IF(WorkingR!$B76=\"Gift Aid Recovered\",WorkingR!V76,\"\")","v":""},{"$f":"IF(WorkingR!$B76=\"Gift Aid Recovered\",WorkingR!W76,\"\")","v":""},{"$f":"IF(WorkingR!$B76=\"Gift Aid Recovered\",WorkingR!X76,\"\")","v":""},{"$f":"IF(WorkingR!$B76=\"Gift Aid Recovered\",WorkingR!Y76,\"\")","v":""},{"$f":"IF(Descriptions!D77=\"Gift aid recovered\",Descriptions!AA77,0)","v":0}]
[{"$f":"IF(Descriptions!D78=\"Gift aid recovered\",Descriptions!B78,0)","v":0},{"$f":"IF(WorkingR!$B77=\"Gift Aid Recovered\",WorkingR!D77,\"\")","v":""},{"$f":"IF(WorkingR!$B77=\"Gift Aid Recovered\",WorkingR!E77,\"\")","v":""},{"$f":"IF(WorkingR!$B77=\"Gift Aid Recovered\",WorkingR!F77,\"\")","v":""},{"$f":"IF(WorkingR!$B77=\"Gift Aid Recovered\",WorkingR!G77,\"\")","v":""},{"$f":"IF(WorkingR!$B77=\"Gift Aid Recovered\",WorkingR!H77,\"\")","v":""},{"$f":"IF(WorkingR!$B77=\"Gift Aid Recovered\",WorkingR!I77,\"\")","v":""},{"$f":"IF(WorkingR!$B77=\"Gift Aid Recovered\",WorkingR!J77,\"\")","v":""},{"$f":"IF(WorkingR!$B77=\"Gift Aid Recovered\",WorkingR!K77,\"\")","v":""},{"$f":"IF(WorkingR!$B77=\"Gift Aid Recovered\",WorkingR!L77,\"\")","v":""},{"$f":"IF(WorkingR!$B77=\"Gift Aid Recovered\",WorkingR!M77,\"\")","v":""},{"$f":"IF(WorkingR!$B77=\"Gift Aid Recovered\",WorkingR!N77,\"\")","v":""},{"$f":"IF(WorkingR!$B77=\"Gift Aid Recovered\",WorkingR!O77,\"\")","v":""},{"$f":"IF(WorkingR!$B77=\"Gift Aid Recovered\",WorkingR!P77,\"\")","v":""},{"$f":"IF(WorkingR!$B77=\"Gift Aid Recovered\",WorkingR!Q77,\"\")","v":""},{"$f":"IF(WorkingR!$B77=\"Gift Aid Recovered\",WorkingR!R77,\"\")","v":""},{"$f":"IF(WorkingR!$B77=\"Gift Aid Recovered\",WorkingR!S77,\"\")","v":""},{"$f":"IF(WorkingR!$B77=\"Gift Aid Recovered\",WorkingR!T77,\"\")","v":""},{"$f":"IF(WorkingR!$B77=\"Gift Aid Recovered\",WorkingR!U77,\"\")","v":""},{"$f":"IF(WorkingR!$B77=\"Gift Aid Recovered\",WorkingR!V77,\"\")","v":""},{"$f":"IF(WorkingR!$B77=\"Gift Aid Recovered\",WorkingR!W77,\"\")","v":""},{"$f":"IF(WorkingR!$B77=\"Gift Aid Recovered\",WorkingR!X77,\"\")","v":""},{"$f":"IF(WorkingR!$B77=\"Gift Aid Recovered\",WorkingR!Y77,\"\")","v":""},{"$f":"IF(Descriptions!D78=\"Gift aid recovered\",Descriptions!AA78,0)","v":0}]
[{"$f":"IF(Descriptions!D79=\"Gift aid recovered\",Descriptions!B79,0)","v":0},{"$f":"IF(WorkingR!$B78=\"Gift Aid Recovered\",WorkingR!D78,\"\")","v":""},{"$f":"IF(WorkingR!$B78=\"Gift Aid Recovered\",WorkingR!E78,\"\")","v":""},{"$f":"IF(WorkingR!$B78=\"Gift Aid Recovered\",WorkingR!F78,\"\")","v":""},{"$f":"IF(WorkingR!$B78=\"Gift Aid Recovered\",WorkingR!G78,\"\")","v":""},{"$f":"IF(WorkingR!$B78=\"Gift Aid Recovered\",WorkingR!H78,\"\")","v":""},{"$f":"IF(WorkingR!$B78=\"Gift Aid Recovered\",WorkingR!I78,\"\")","v":""},{"$f":"IF(WorkingR!$B78=\"Gift Aid Recovered\",WorkingR!J78,\"\")","v":""},{"$f":"IF(WorkingR!$B78=\"Gift Aid Recovered\",WorkingR!K78,\"\")","v":""},{"$f":"IF(WorkingR!$B78=\"Gift Aid Recovered\",WorkingR!L78,\"\")","v":""},{"$f":"IF(WorkingR!$B78=\"Gift Aid Recovered\",WorkingR!M78,\"\")","v":""},{"$f":"IF(WorkingR!$B78=\"Gift Aid Recovered\",WorkingR!N78,\"\")","v":""},{"$f":"IF(WorkingR!$B78=\"Gift Aid Recovered\",WorkingR!O78,\"\")","v":""},{"$f":"IF(WorkingR!$B78=\"Gift Aid Recovered\",WorkingR!P78,\"\")","v":""},{"$f":"IF(WorkingR!$B78=\"Gift Aid Recovered\",WorkingR!Q78,\"\")","v":""},{"$f":"IF(WorkingR!$B78=\"Gift Aid Recovered\",WorkingR!R78,\"\")","v":""},{"$f":"IF(WorkingR!$B78=\"Gift Aid Recovered\",WorkingR!S78,\"\")","v":""},{"$f":"IF(WorkingR!$B78=\"Gift Aid Recovered\",WorkingR!T78,\"\")","v":""},{"$f":"IF(WorkingR!$B78=\"Gift Aid Recovered\",WorkingR!U78,\"\")","v":""},{"$f":"IF(WorkingR!$B78=\"Gift Aid Recovered\",WorkingR!V78,\"\")","v":""},{"$f":"IF(WorkingR!$B78=\"Gift Aid Recovered\",WorkingR!W78,\"\")","v":""},{"$f":"IF(WorkingR!$B78=\"Gift Aid Recovered\",WorkingR!X78,\"\")","v":""},{"$f":"IF(WorkingR!$B78=\"Gift Aid Recovered\",WorkingR!Y78,\"\")","v":""},{"$f":"IF(Descriptions!D79=\"Gift aid recovered\",Descriptions!AA79,0)","v":0}]
[{"$f":"IF(Descriptions!D80=\"Gift aid recovered\",Descriptions!B80,0)","v":0},{"$f":"IF(WorkingR!$B79=\"Gift Aid Recovered\",WorkingR!D79,\"\")","v":""},{"$f":"IF(WorkingR!$B79=\"Gift Aid Recovered\",WorkingR!E79,\"\")","v":""},{"$f":"IF(WorkingR!$B79=\"Gift Aid Recovered\",WorkingR!F79,\"\")","v":""},{"$f":"IF(WorkingR!$B79=\"Gift Aid Recovered\",WorkingR!G79,\"\")","v":""},{"$f":"IF(WorkingR!$B79=\"Gift Aid Recovered\",WorkingR!H79,\"\")","v":""},{"$f":"IF(WorkingR!$B79=\"Gift Aid Recovered\",WorkingR!I79,\"\")","v":""},{"$f":"IF(WorkingR!$B79=\"Gift Aid Recovered\",WorkingR!J79,\"\")","v":""},{"$f":"IF(WorkingR!$B79=\"Gift Aid Recovered\",WorkingR!K79,\"\")","v":""},{"$f":"IF(WorkingR!$B79=\"Gift Aid Recovered\",WorkingR!L79,\"\")","v":""},{"$f":"IF(WorkingR!$B79=\"Gift Aid Recovered\",WorkingR!M79,\"\")","v":""},{"$f":"IF(WorkingR!$B79=\"Gift Aid Recovered\",WorkingR!N79,\"\")","v":""},{"$f":"IF(WorkingR!$B79=\"Gift Aid Recovered\",WorkingR!O79,\"\")","v":""},{"$f":"IF(WorkingR!$B79=\"Gift Aid Recovered\",WorkingR!P79,\"\")","v":""},{"$f":"IF(WorkingR!$B79=\"Gift Aid Recovered\",WorkingR!Q79,\"\")","v":""},{"$f":"IF(WorkingR!$B79=\"Gift Aid Recovered\",WorkingR!R79,\"\")","v":""},{"$f":"IF(WorkingR!$B79=\"Gift Aid Recovered\",WorkingR!S79,\"\")","v":""},{"$f":"IF(WorkingR!$B79=\"Gift Aid Recovered\",WorkingR!T79,\"\")","v":""},{"$f":"IF(WorkingR!$B79=\"Gift Aid Recovered\",WorkingR!U79,\"\")","v":""},{"$f":"IF(WorkingR!$B79=\"Gift Aid Recovered\",WorkingR!V79,\"\")","v":""},{"$f":"IF(WorkingR!$B79=\"Gift Aid Recovered\",WorkingR!W79,\"\")","v":""},{"$f":"IF(WorkingR!$B79=\"Gift Aid Recovered\",WorkingR!X79,\"\")","v":""},{"$f":"IF(WorkingR!$B79=\"Gift Aid Recovered\",WorkingR!Y79,\"\")","v":""},{"$f":"IF(Descriptions!D80=\"Gift aid recovered\",Descriptions!AA80,0)","v":0}]
[{"$f":"IF(Descriptions!D81=\"Gift aid recovered\",Descriptions!B81,0)","v":0},{"$f":"IF(WorkingR!$B80=\"Gift Aid Recovered\",WorkingR!D80,\"\")","v":""},{"$f":"IF(WorkingR!$B80=\"Gift Aid Recovered\",WorkingR!E80,\"\")","v":""},{"$f":"IF(WorkingR!$B80=\"Gift Aid Recovered\",WorkingR!F80,\"\")","v":""},{"$f":"IF(WorkingR!$B80=\"Gift Aid Recovered\",WorkingR!G80,\"\")","v":""},{"$f":"IF(WorkingR!$B80=\"Gift Aid Recovered\",WorkingR!H80,\"\")","v":""},{"$f":"IF(WorkingR!$B80=\"Gift Aid Recovered\",WorkingR!I80,\"\")","v":""},{"$f":"IF(WorkingR!$B80=\"Gift Aid Recovered\",WorkingR!J80,\"\")","v":""},{"$f":"IF(WorkingR!$B80=\"Gift Aid Recovered\",WorkingR!K80,\"\")","v":""},{"$f":"IF(WorkingR!$B80=\"Gift Aid Recovered\",WorkingR!L80,\"\")","v":""},{"$f":"IF(WorkingR!$B80=\"Gift Aid Recovered\",WorkingR!M80,\"\")","v":""},{"$f":"IF(WorkingR!$B80=\"Gift Aid Recovered\",WorkingR!N80,\"\")","v":""},{"$f":"IF(WorkingR!$B80=\"Gift Aid Recovered\",WorkingR!O80,\"\")","v":""},{"$f":"IF(WorkingR!$B80=\"Gift Aid Recovered\",WorkingR!P80,\"\")","v":""},{"$f":"IF(WorkingR!$B80=\"Gift Aid Recovered\",WorkingR!Q80,\"\")","v":""},{"$f":"IF(WorkingR!$B80=\"Gift Aid Recovered\",WorkingR!R80,\"\")","v":""},{"$f":"IF(WorkingR!$B80=\"Gift Aid Recovered\",WorkingR!S80,\"\")","v":""},{"$f":"IF(WorkingR!$B80=\"Gift Aid Recovered\",WorkingR!T80,\"\")","v":""},{"$f":"IF(WorkingR!$B80=\"Gift Aid Recovered\",WorkingR!U80,\"\")","v":""},{"$f":"IF(WorkingR!$B80=\"Gift Aid Recovered\",WorkingR!V80,\"\")","v":""},{"$f":"IF(WorkingR!$B80=\"Gift Aid Recovered\",WorkingR!W80,\"\")","v":""},{"$f":"IF(WorkingR!$B80=\"Gift Aid Recovered\",WorkingR!X80,\"\")","v":""},{"$f":"IF(WorkingR!$B80=\"Gift Aid Recovered\",WorkingR!Y80,\"\")","v":""},{"$f":"IF(Descriptions!D81=\"Gift aid recovered\",Descriptions!AA81,0)","v":0}]
[{"$f":"IF(Descriptions!D82=\"Gift aid recovered\",Descriptions!B82,0)","v":0},{"$f":"IF(WorkingR!$B81=\"Gift Aid Recovered\",WorkingR!D81,\"\")","v":""},{"$f":"IF(WorkingR!$B81=\"Gift Aid Recovered\",WorkingR!E81,\"\")","v":""},{"$f":"IF(WorkingR!$B81=\"Gift Aid Recovered\",WorkingR!F81,\"\")","v":""},{"$f":"IF(WorkingR!$B81=\"Gift Aid Recovered\",WorkingR!G81,\"\")","v":""},{"$f":"IF(WorkingR!$B81=\"Gift Aid Recovered\",WorkingR!H81,\"\")","v":""},{"$f":"IF(WorkingR!$B81=\"Gift Aid Recovered\",WorkingR!I81,\"\")","v":""},{"$f":"IF(WorkingR!$B81=\"Gift Aid Recovered\",WorkingR!J81,\"\")","v":""},{"$f":"IF(WorkingR!$B81=\"Gift Aid Recovered\",WorkingR!K81,\"\")","v":""},{"$f":"IF(WorkingR!$B81=\"Gift Aid Recovered\",WorkingR!L81,\"\")","v":""},{"$f":"IF(WorkingR!$B81=\"Gift Aid Recovered\",WorkingR!M81,\"\")","v":""},{"$f":"IF(WorkingR!$B81=\"Gift Aid Recovered\",WorkingR!N81,\"\")","v":""},{"$f":"IF(WorkingR!$B81=\"Gift Aid Recovered\",WorkingR!O81,\"\")","v":""},{"$f":"IF(WorkingR!$B81=\"Gift Aid Recovered\",WorkingR!P81,\"\")","v":""},{"$f":"IF(WorkingR!$B81=\"Gift Aid Recovered\",WorkingR!Q81,\"\")","v":""},{"$f":"IF(WorkingR!$B81=\"Gift Aid Recovered\",WorkingR!R81,\"\")","v":""},{"$f":"IF(WorkingR!$B81=\"Gift Aid Recovered\",WorkingR!S81,\"\")","v":""},{"$f":"IF(WorkingR!$B81=\"Gift Aid Recovered\",WorkingR!T81,\"\")","v":""},{"$f":"IF(WorkingR!$B81=\"Gift Aid Recovered\",WorkingR!U81,\"\")","v":""},{"$f":"IF(WorkingR!$B81=\"Gift Aid Recovered\",WorkingR!V81,\"\")","v":""},{"$f":"IF(WorkingR!$B81=\"Gift Aid Recovered\",WorkingR!W81,\"\")","v":""},{"$f":"IF(WorkingR!$B81=\"Gift Aid Recovered\",WorkingR!X81,\"\")","v":""},{"$f":"IF(WorkingR!$B81=\"Gift Aid Recovered\",WorkingR!Y81,\"\")","v":""},{"$f":"IF(Descriptions!D82=\"Gift aid recovered\",Descriptions!AA82,0)","v":0}]
[{"$f":"IF(Descriptions!D83=\"Gift aid recovered\",Descriptions!B83,0)","v":0},{"$f":"IF(WorkingR!$B82=\"Gift Aid Recovered\",WorkingR!D82,\"\")","v":""},{"$f":"IF(WorkingR!$B82=\"Gift Aid Recovered\",WorkingR!E82,\"\")","v":""},{"$f":"IF(WorkingR!$B82=\"Gift Aid Recovered\",WorkingR!F82,\"\")","v":""},{"$f":"IF(WorkingR!$B82=\"Gift Aid Recovered\",WorkingR!G82,\"\")","v":""},{"$f":"IF(WorkingR!$B82=\"Gift Aid Recovered\",WorkingR!H82,\"\")","v":""},{"$f":"IF(WorkingR!$B82=\"Gift Aid Recovered\",WorkingR!I82,\"\")","v":""},{"$f":"IF(WorkingR!$B82=\"Gift Aid Recovered\",WorkingR!J82,\"\")","v":""},{"$f":"IF(WorkingR!$B82=\"Gift Aid Recovered\",WorkingR!K82,\"\")","v":""},{"$f":"IF(WorkingR!$B82=\"Gift Aid Recovered\",WorkingR!L82,\"\")","v":""},{"$f":"IF(WorkingR!$B82=\"Gift Aid Recovered\",WorkingR!M82,\"\")","v":""},{"$f":"IF(WorkingR!$B82=\"Gift Aid Recovered\",WorkingR!N82,\"\")","v":""},{"$f":"IF(WorkingR!$B82=\"Gift Aid Recovered\",WorkingR!O82,\"\")","v":""},{"$f":"IF(WorkingR!$B82=\"Gift Aid Recovered\",WorkingR!P82,\"\")","v":""},{"$f":"IF(WorkingR!$B82=\"Gift Aid Recovered\",WorkingR!Q82,\"\")","v":""},{"$f":"IF(WorkingR!$B82=\"Gift Aid Recovered\",WorkingR!R82,\"\")","v":""},{"$f":"IF(WorkingR!$B82=\"Gift Aid Recovered\",WorkingR!S82,\"\")","v":""},{"$f":"IF(WorkingR!$B82=\"Gift Aid Recovered\",WorkingR!T82,\"\")","v":""},{"$f":"IF(WorkingR!$B82=\"Gift Aid Recovered\",WorkingR!U82,\"\")","v":""},{"$f":"IF(WorkingR!$B82=\"Gift Aid Recovered\",WorkingR!V82,\"\")","v":""},{"$f":"IF(WorkingR!$B82=\"Gift Aid Recovered\",WorkingR!W82,\"\")","v":""},{"$f":"IF(WorkingR!$B82=\"Gift Aid Recovered\",WorkingR!X82,\"\")","v":""},{"$f":"IF(WorkingR!$B82=\"Gift Aid Recovered\",WorkingR!Y82,\"\")","v":""},{"$f":"IF(Descriptions!D83=\"Gift aid recovered\",Descriptions!AA83,0)","v":0}]
[{"$f":"IF(Descriptions!D84=\"Gift aid recovered\",Descriptions!B84,0)","v":0},{"$f":"IF(WorkingR!$B83=\"Gift Aid Recovered\",WorkingR!D83,\"\")","v":""},{"$f":"IF(WorkingR!$B83=\"Gift Aid Recovered\",WorkingR!E83,\"\")","v":""},{"$f":"IF(WorkingR!$B83=\"Gift Aid Recovered\",WorkingR!F83,\"\")","v":""},{"$f":"IF(WorkingR!$B83=\"Gift Aid Recovered\",WorkingR!G83,\"\")","v":""},{"$f":"IF(WorkingR!$B83=\"Gift Aid Recovered\",WorkingR!H83,\"\")","v":""},{"$f":"IF(WorkingR!$B83=\"Gift Aid Recovered\",WorkingR!I83,\"\")","v":""},{"$f":"IF(WorkingR!$B83=\"Gift Aid Recovered\",WorkingR!J83,\"\")","v":""},{"$f":"IF(WorkingR!$B83=\"Gift Aid Recovered\",WorkingR!K83,\"\")","v":""},{"$f":"IF(WorkingR!$B83=\"Gift Aid Recovered\",WorkingR!L83,\"\")","v":""},{"$f":"IF(WorkingR!$B83=\"Gift Aid Recovered\",WorkingR!M83,\"\")","v":""},{"$f":"IF(WorkingR!$B83=\"Gift Aid Recovered\",WorkingR!N83,\"\")","v":""},{"$f":"IF(WorkingR!$B83=\"Gift Aid Recovered\",WorkingR!O83,\"\")","v":""},{"$f":"IF(WorkingR!$B83=\"Gift Aid Recovered\",WorkingR!P83,\"\")","v":""},{"$f":"IF(WorkingR!$B83=\"Gift Aid Recovered\",WorkingR!Q83,\"\")","v":""},{"$f":"IF(WorkingR!$B83=\"Gift Aid Recovered\",WorkingR!R83,\"\")","v":""},{"$f":"IF(WorkingR!$B83=\"Gift Aid Recovered\",WorkingR!S83,\"\")","v":""},{"$f":"IF(WorkingR!$B83=\"Gift Aid Recovered\",WorkingR!T83,\"\")","v":""},{"$f":"IF(WorkingR!$B83=\"Gift Aid Recovered\",WorkingR!U83,\"\")","v":""},{"$f":"IF(WorkingR!$B83=\"Gift Aid Recovered\",WorkingR!V83,\"\")","v":""},{"$f":"IF(WorkingR!$B83=\"Gift Aid Recovered\",WorkingR!W83,\"\")","v":""},{"$f":"IF(WorkingR!$B83=\"Gift Aid Recovered\",WorkingR!X83,\"\")","v":""},{"$f":"IF(WorkingR!$B83=\"Gift Aid Recovered\",WorkingR!Y83,\"\")","v":""},{"$f":"IF(Descriptions!D84=\"Gift aid recovered\",Descriptions!AA84,0)","v":0}]
[{"$f":"IF(Descriptions!D85=\"Gift aid recovered\",Descriptions!B85,0)","v":0},{"$f":"IF(WorkingR!$B84=\"Gift Aid Recovered\",WorkingR!D84,\"\")","v":""},{"$f":"IF(WorkingR!$B84=\"Gift Aid Recovered\",WorkingR!E84,\"\")","v":""},{"$f":"IF(WorkingR!$B84=\"Gift Aid Recovered\",WorkingR!F84,\"\")","v":""},{"$f":"IF(WorkingR!$B84=\"Gift Aid Recovered\",WorkingR!G84,\"\")","v":""},{"$f":"IF(WorkingR!$B84=\"Gift Aid Recovered\",WorkingR!H84,\"\")","v":""},{"$f":"IF(WorkingR!$B84=\"Gift Aid Recovered\",WorkingR!I84,\"\")","v":""},{"$f":"IF(WorkingR!$B84=\"Gift Aid Recovered\",WorkingR!J84,\"\")","v":""},{"$f":"IF(WorkingR!$B84=\"Gift Aid Recovered\",WorkingR!K84,\"\")","v":""},{"$f":"IF(WorkingR!$B84=\"Gift Aid Recovered\",WorkingR!L84,\"\")","v":""},{"$f":"IF(WorkingR!$B84=\"Gift Aid Recovered\",WorkingR!M84,\"\")","v":""},{"$f":"IF(WorkingR!$B84=\"Gift Aid Recovered\",WorkingR!N84,\"\")","v":""},{"$f":"IF(WorkingR!$B84=\"Gift Aid Recovered\",WorkingR!O84,\"\")","v":""},{"$f":"IF(WorkingR!$B84=\"Gift Aid Recovered\",WorkingR!P84,\"\")","v":""},{"$f":"IF(WorkingR!$B84=\"Gift Aid Recovered\",WorkingR!Q84,\"\")","v":""},{"$f":"IF(WorkingR!$B84=\"Gift Aid Recovered\",WorkingR!R84,\"\")","v":""},{"$f":"IF(WorkingR!$B84=\"Gift Aid Recovered\",WorkingR!S84,\"\")","v":""},{"$f":"IF(WorkingR!$B84=\"Gift Aid Recovered\",WorkingR!T84,\"\")","v":""},{"$f":"IF(WorkingR!$B84=\"Gift Aid Recovered\",WorkingR!U84,\"\")","v":""},{"$f":"IF(WorkingR!$B84=\"Gift Aid Recovered\",WorkingR!V84,\"\")","v":""},{"$f":"IF(WorkingR!$B84=\"Gift Aid Recovered\",WorkingR!W84,\"\")","v":""},{"$f":"IF(WorkingR!$B84=\"Gift Aid Recovered\",WorkingR!X84,\"\")","v":""},{"$f":"IF(WorkingR!$B84=\"Gift Aid Recovered\",WorkingR!Y84,\"\")","v":""},{"$f":"IF(Descriptions!D85=\"Gift aid recovered\",Descriptions!AA85,0)","v":0}]
[{"$f":"IF(Descriptions!D86=\"Gift aid recovered\",Descriptions!B86,0)","v":0},{"$f":"IF(WorkingR!$B85=\"Gift Aid Recovered\",WorkingR!D85,\"\")","v":""},{"$f":"IF(WorkingR!$B85=\"Gift Aid Recovered\",WorkingR!E85,\"\")","v":""},{"$f":"IF(WorkingR!$B85=\"Gift Aid Recovered\",WorkingR!F85,\"\")","v":""},{"$f":"IF(WorkingR!$B85=\"Gift Aid Recovered\",WorkingR!G85,\"\")","v":""},{"$f":"IF(WorkingR!$B85=\"Gift Aid Recovered\",WorkingR!H85,\"\")","v":""},{"$f":"IF(WorkingR!$B85=\"Gift Aid Recovered\",WorkingR!I85,\"\")","v":""},{"$f":"IF(WorkingR!$B85=\"Gift Aid Recovered\",WorkingR!J85,\"\")","v":""},{"$f":"IF(WorkingR!$B85=\"Gift Aid Recovered\",WorkingR!K85,\"\")","v":""},{"$f":"IF(WorkingR!$B85=\"Gift Aid Recovered\",WorkingR!L85,\"\")","v":""},{"$f":"IF(WorkingR!$B85=\"Gift Aid Recovered\",WorkingR!M85,\"\")","v":""},{"$f":"IF(WorkingR!$B85=\"Gift Aid Recovered\",WorkingR!N85,\"\")","v":""},{"$f":"IF(WorkingR!$B85=\"Gift Aid Recovered\",WorkingR!O85,\"\")","v":""},{"$f":"IF(WorkingR!$B85=\"Gift Aid Recovered\",WorkingR!P85,\"\")","v":""},{"$f":"IF(WorkingR!$B85=\"Gift Aid Recovered\",WorkingR!Q85,\"\")","v":""},{"$f":"IF(WorkingR!$B85=\"Gift Aid Recovered\",WorkingR!R85,\"\")","v":""},{"$f":"IF(WorkingR!$B85=\"Gift Aid Recovered\",WorkingR!S85,\"\")","v":""},{"$f":"IF(WorkingR!$B85=\"Gift Aid Recovered\",WorkingR!T85,\"\")","v":""},{"$f":"IF(WorkingR!$B85=\"Gift Aid Recovered\",WorkingR!U85,\"\")","v":""},{"$f":"IF(WorkingR!$B85=\"Gift Aid Recovered\",WorkingR!V85,\"\")","v":""},{"$f":"IF(WorkingR!$B85=\"Gift Aid Recovered\",WorkingR!W85,\"\")","v":""},{"$f":"IF(WorkingR!$B85=\"Gift Aid Recovered\",WorkingR!X85,\"\")","v":""},{"$f":"IF(WorkingR!$B85=\"Gift Aid Recovered\",WorkingR!Y85,\"\")","v":""},{"$f":"IF(Descriptions!D86=\"Gift aid recovered\",Descriptions!AA86,0)","v":0}]
[{"$f":"IF(Descriptions!D87=\"Gift aid recovered\",Descriptions!B87,0)","v":0},{"$f":"IF(WorkingR!$B86=\"Gift Aid Recovered\",WorkingR!D86,\"\")","v":""},{"$f":"IF(WorkingR!$B86=\"Gift Aid Recovered\",WorkingR!E86,\"\")","v":""},{"$f":"IF(WorkingR!$B86=\"Gift Aid Recovered\",WorkingR!F86,\"\")","v":""},{"$f":"IF(WorkingR!$B86=\"Gift Aid Recovered\",WorkingR!G86,\"\")","v":""},{"$f":"IF(WorkingR!$B86=\"Gift Aid Recovered\",WorkingR!H86,\"\")","v":""},{"$f":"IF(WorkingR!$B86=\"Gift Aid Recovered\",WorkingR!I86,\"\")","v":""},{"$f":"IF(WorkingR!$B86=\"Gift Aid Recovered\",WorkingR!J86,\"\")","v":""},{"$f":"IF(WorkingR!$B86=\"Gift Aid Recovered\",WorkingR!K86,\"\")","v":""},{"$f":"IF(WorkingR!$B86=\"Gift Aid Recovered\",WorkingR!L86,\"\")","v":""},{"$f":"IF(WorkingR!$B86=\"Gift Aid Recovered\",WorkingR!M86,\"\")","v":""},{"$f":"IF(WorkingR!$B86=\"Gift Aid Recovered\",WorkingR!N86,\"\")","v":""},{"$f":"IF(WorkingR!$B86=\"Gift Aid Recovered\",WorkingR!O86,\"\")","v":""},{"$f":"IF(WorkingR!$B86=\"Gift Aid Recovered\",WorkingR!P86,\"\")","v":""},{"$f":"IF(WorkingR!$B86=\"Gift Aid Recovered\",WorkingR!Q86,\"\")","v":""},{"$f":"IF(WorkingR!$B86=\"Gift Aid Recovered\",WorkingR!R86,\"\")","v":""},{"$f":"IF(WorkingR!$B86=\"Gift Aid Recovered\",WorkingR!S86,\"\")","v":""},{"$f":"IF(WorkingR!$B86=\"Gift Aid Recovered\",WorkingR!T86,\"\")","v":""},{"$f":"IF(WorkingR!$B86=\"Gift Aid Recovered\",WorkingR!U86,\"\")","v":""},{"$f":"IF(WorkingR!$B86=\"Gift Aid Recovered\",WorkingR!V86,\"\")","v":""},{"$f":"IF(WorkingR!$B86=\"Gift Aid Recovered\",WorkingR!W86,\"\")","v":""},{"$f":"IF(WorkingR!$B86=\"Gift Aid Recovered\",WorkingR!X86,\"\")","v":""},{"$f":"IF(WorkingR!$B86=\"Gift Aid Recovered\",WorkingR!Y86,\"\")","v":""},{"$f":"IF(Descriptions!D87=\"Gift aid recovered\",Descriptions!AA87,0)","v":0}]
[{"$f":"IF(Descriptions!D88=\"Gift aid recovered\",Descriptions!B88,0)","v":0},{"$f":"IF(WorkingR!$B87=\"Gift Aid Recovered\",WorkingR!D87,\"\")","v":""},{"$f":"IF(WorkingR!$B87=\"Gift Aid Recovered\",WorkingR!E87,\"\")","v":""},{"$f":"IF(WorkingR!$B87=\"Gift Aid Recovered\",WorkingR!F87,\"\")","v":""},{"$f":"IF(WorkingR!$B87=\"Gift Aid Recovered\",WorkingR!G87,\"\")","v":""},{"$f":"IF(WorkingR!$B87=\"Gift Aid Recovered\",WorkingR!H87,\"\")","v":""},{"$f":"IF(WorkingR!$B87=\"Gift Aid Recovered\",WorkingR!I87,\"\")","v":""},{"$f":"IF(WorkingR!$B87=\"Gift Aid Recovered\",WorkingR!J87,\"\")","v":""},{"$f":"IF(WorkingR!$B87=\"Gift Aid Recovered\",WorkingR!K87,\"\")","v":""},{"$f":"IF(WorkingR!$B87=\"Gift Aid Recovered\",WorkingR!L87,\"\")","v":""},{"$f":"IF(WorkingR!$B87=\"Gift Aid Recovered\",WorkingR!M87,\"\")","v":""},{"$f":"IF(WorkingR!$B87=\"Gift Aid Recovered\",WorkingR!N87,\"\")","v":""},{"$f":"IF(WorkingR!$B87=\"Gift Aid Recovered\",WorkingR!O87,\"\")","v":""},{"$f":"IF(WorkingR!$B87=\"Gift Aid Recovered\",WorkingR!P87,\"\")","v":""},{"$f":"IF(WorkingR!$B87=\"Gift Aid Recovered\",WorkingR!Q87,\"\")","v":""},{"$f":"IF(WorkingR!$B87=\"Gift Aid Recovered\",WorkingR!R87,\"\")","v":""},{"$f":"IF(WorkingR!$B87=\"Gift Aid Recovered\",WorkingR!S87,\"\")","v":""},{"$f":"IF(WorkingR!$B87=\"Gift Aid Recovered\",WorkingR!T87,\"\")","v":""},{"$f":"IF(WorkingR!$B87=\"Gift Aid Recovered\",WorkingR!U87,\"\")","v":""},{"$f":"IF(WorkingR!$B87=\"Gift Aid Recovered\",WorkingR!V87,\"\")","v":""},{"$f":"IF(WorkingR!$B87=\"Gift Aid Recovered\",WorkingR!W87,\"\")","v":""},{"$f":"IF(WorkingR!$B87=\"Gift Aid Recovered\",WorkingR!X87,\"\")","v":""},{"$f":"IF(WorkingR!$B87=\"Gift Aid Recovered\",WorkingR!Y87,\"\")","v":""},{"$f":"IF(Descriptions!D88=\"Gift aid recovered\",Descriptions!AA88,0)","v":0}]
[{"$f":"IF(Descriptions!D89=\"Gift aid recovered\",Descriptions!B89,0)","v":0},{"$f":"IF(WorkingR!$B88=\"Gift Aid Recovered\",WorkingR!D88,\"\")","v":""},{"$f":"IF(WorkingR!$B88=\"Gift Aid Recovered\",WorkingR!E88,\"\")","v":""},{"$f":"IF(WorkingR!$B88=\"Gift Aid Recovered\",WorkingR!F88,\"\")","v":""},{"$f":"IF(WorkingR!$B88=\"Gift Aid Recovered\",WorkingR!G88,\"\")","v":""},{"$f":"IF(WorkingR!$B88=\"Gift Aid Recovered\",WorkingR!H88,\"\")","v":""},{"$f":"IF(WorkingR!$B88=\"Gift Aid Recovered\",WorkingR!I88,\"\")","v":""},{"$f":"IF(WorkingR!$B88=\"Gift Aid Recovered\",WorkingR!J88,\"\")","v":""},{"$f":"IF(WorkingR!$B88=\"Gift Aid Recovered\",WorkingR!K88,\"\")","v":""},{"$f":"IF(WorkingR!$B88=\"Gift Aid Recovered\",WorkingR!L88,\"\")","v":""},{"$f":"IF(WorkingR!$B88=\"Gift Aid Recovered\",WorkingR!M88,\"\")","v":""},{"$f":"IF(WorkingR!$B88=\"Gift Aid Recovered\",WorkingR!N88,\"\")","v":""},{"$f":"IF(WorkingR!$B88=\"Gift Aid Recovered\",WorkingR!O88,\"\")","v":""},{"$f":"IF(WorkingR!$B88=\"Gift Aid Recovered\",WorkingR!P88,\"\")","v":""},{"$f":"IF(WorkingR!$B88=\"Gift Aid Recovered\",WorkingR!Q88,\"\")","v":""},{"$f":"IF(WorkingR!$B88=\"Gift Aid Recovered\",WorkingR!R88,\"\")","v":""},{"$f":"IF(WorkingR!$B88=\"Gift Aid Recovered\",WorkingR!S88,\"\")","v":""},{"$f":"IF(WorkingR!$B88=\"Gift Aid Recovered\",WorkingR!T88,\"\")","v":""},{"$f":"IF(WorkingR!$B88=\"Gift Aid Recovered\",WorkingR!U88,\"\")","v":""},{"$f":"IF(WorkingR!$B88=\"Gift Aid Recovered\",WorkingR!V88,\"\")","v":""},{"$f":"IF(WorkingR!$B88=\"Gift Aid Recovered\",WorkingR!W88,\"\")","v":""},{"$f":"IF(WorkingR!$B88=\"Gift Aid Recovered\",WorkingR!X88,\"\")","v":""},{"$f":"IF(WorkingR!$B88=\"Gift Aid Recovered\",WorkingR!Y88,\"\")","v":""},{"$f":"IF(Descriptions!D89=\"Gift aid recovered\",Descriptions!AA89,0)","v":0}]
[{"$f":"IF(Descriptions!D90=\"Gift aid recovered\",Descriptions!B90,0)","v":0},{"$f":"IF(WorkingR!$B89=\"Gift Aid Recovered\",WorkingR!D89,\"\")","v":""},{"$f":"IF(WorkingR!$B89=\"Gift Aid Recovered\",WorkingR!E89,\"\")","v":""},{"$f":"IF(WorkingR!$B89=\"Gift Aid Recovered\",WorkingR!F89,\"\")","v":""},{"$f":"IF(WorkingR!$B89=\"Gift Aid Recovered\",WorkingR!G89,\"\")","v":""},{"$f":"IF(WorkingR!$B89=\"Gift Aid Recovered\",WorkingR!H89,\"\")","v":""},{"$f":"IF(WorkingR!$B89=\"Gift Aid Recovered\",WorkingR!I89,\"\")","v":""},{"$f":"IF(WorkingR!$B89=\"Gift Aid Recovered\",WorkingR!J89,\"\")","v":""},{"$f":"IF(WorkingR!$B89=\"Gift Aid Recovered\",WorkingR!K89,\"\")","v":""},{"$f":"IF(WorkingR!$B89=\"Gift Aid Recovered\",WorkingR!L89,\"\")","v":""},{"$f":"IF(WorkingR!$B89=\"Gift Aid Recovered\",WorkingR!M89,\"\")","v":""},{"$f":"IF(WorkingR!$B89=\"Gift Aid Recovered\",WorkingR!N89,\"\")","v":""},{"$f":"IF(WorkingR!$B89=\"Gift Aid Recovered\",WorkingR!O89,\"\")","v":""},{"$f":"IF(WorkingR!$B89=\"Gift Aid Recovered\",WorkingR!P89,\"\")","v":""},{"$f":"IF(WorkingR!$B89=\"Gift Aid Recovered\",WorkingR!Q89,\"\")","v":""},{"$f":"IF(WorkingR!$B89=\"Gift Aid Recovered\",WorkingR!R89,\"\")","v":""},{"$f":"IF(WorkingR!$B89=\"Gift Aid Recovered\",WorkingR!S89,\"\")","v":""},{"$f":"IF(WorkingR!$B89=\"Gift Aid Recovered\",WorkingR!T89,\"\")","v":""},{"$f":"IF(WorkingR!$B89=\"Gift Aid Recovered\",WorkingR!U89,\"\")","v":""},{"$f":"IF(WorkingR!$B89=\"Gift Aid Recovered\",WorkingR!V89,\"\")","v":""},{"$f":"IF(WorkingR!$B89=\"Gift Aid Recovered\",WorkingR!W89,\"\")","v":""},{"$f":"IF(WorkingR!$B89=\"Gift Aid Recovered\",WorkingR!X89,\"\")","v":""},{"$f":"IF(WorkingR!$B89=\"Gift Aid Recovered\",WorkingR!Y89,\"\")","v":""},{"$f":"IF(Descriptions!D90=\"Gift aid recovered\",Descriptions!AA90,0)","v":0}]
[{"$f":"IF(Descriptions!D91=\"Gift aid recovered\",Descriptions!B91,0)","v":0},{"$f":"IF(WorkingR!$B90=\"Gift Aid Recovered\",WorkingR!D90,\"\")","v":""},{"$f":"IF(WorkingR!$B90=\"Gift Aid Recovered\",WorkingR!E90,\"\")","v":""},{"$f":"IF(WorkingR!$B90=\"Gift Aid Recovered\",WorkingR!F90,\"\")","v":""},{"$f":"IF(WorkingR!$B90=\"Gift Aid Recovered\",WorkingR!G90,\"\")","v":""},{"$f":"IF(WorkingR!$B90=\"Gift Aid Recovered\",WorkingR!H90,\"\")","v":""},{"$f":"IF(WorkingR!$B90=\"Gift Aid Recovered\",WorkingR!I90,\"\")","v":""},{"$f":"IF(WorkingR!$B90=\"Gift Aid Recovered\",WorkingR!J90,\"\")","v":""},{"$f":"IF(WorkingR!$B90=\"Gift Aid Recovered\",WorkingR!K90,\"\")","v":""},{"$f":"IF(WorkingR!$B90=\"Gift Aid Recovered\",WorkingR!L90,\"\")","v":""},{"$f":"IF(WorkingR!$B90=\"Gift Aid Recovered\",WorkingR!M90,\"\")","v":""},{"$f":"IF(WorkingR!$B90=\"Gift Aid Recovered\",WorkingR!N90,\"\")","v":""},{"$f":"IF(WorkingR!$B90=\"Gift Aid Recovered\",WorkingR!O90,\"\")","v":""},{"$f":"IF(WorkingR!$B90=\"Gift Aid Recovered\",WorkingR!P90,\"\")","v":""},{"$f":"IF(WorkingR!$B90=\"Gift Aid Recovered\",WorkingR!Q90,\"\")","v":""},{"$f":"IF(WorkingR!$B90=\"Gift Aid Recovered\",WorkingR!R90,\"\")","v":""},{"$f":"IF(WorkingR!$B90=\"Gift Aid Recovered\",WorkingR!S90,\"\")","v":""},{"$f":"IF(WorkingR!$B90=\"Gift Aid Recovered\",WorkingR!T90,\"\")","v":""},{"$f":"IF(WorkingR!$B90=\"Gift Aid Recovered\",WorkingR!U90,\"\")","v":""},{"$f":"IF(WorkingR!$B90=\"Gift Aid Recovered\",WorkingR!V90,\"\")","v":""},{"$f":"IF(WorkingR!$B90=\"Gift Aid Recovered\",WorkingR!W90,\"\")","v":""},{"$f":"IF(WorkingR!$B90=\"Gift Aid Recovered\",WorkingR!X90,\"\")","v":""},{"$f":"IF(WorkingR!$B90=\"Gift Aid Recovered\",WorkingR!Y90,\"\")","v":""},{"$f":"IF(Descriptions!D91=\"Gift aid recovered\",Descriptions!AA91,0)","v":0}]
[{"$f":"IF(Descriptions!D92=\"Gift aid recovered\",Descriptions!B92,0)","v":0},{"$f":"IF(WorkingR!$B91=\"Gift Aid Recovered\",WorkingR!D91,\"\")","v":""},{"$f":"IF(WorkingR!$B91=\"Gift Aid Recovered\",WorkingR!E91,\"\")","v":""},{"$f":"IF(WorkingR!$B91=\"Gift Aid Recovered\",WorkingR!F91,\"\")","v":""},{"$f":"IF(WorkingR!$B91=\"Gift Aid Recovered\",WorkingR!G91,\"\")","v":""},{"$f":"IF(WorkingR!$B91=\"Gift Aid Recovered\",WorkingR!H91,\"\")","v":""},{"$f":"IF(WorkingR!$B91=\"Gift Aid Recovered\",WorkingR!I91,\"\")","v":""},{"$f":"IF(WorkingR!$B91=\"Gift Aid Recovered\",WorkingR!J91,\"\")","v":""},{"$f":"IF(WorkingR!$B91=\"Gift Aid Recovered\",WorkingR!K91,\"\")","v":""},{"$f":"IF(WorkingR!$B91=\"Gift Aid Recovered\",WorkingR!L91,\"\")","v":""},{"$f":"IF(WorkingR!$B91=\"Gift Aid Recovered\",WorkingR!M91,\"\")","v":""},{"$f":"IF(WorkingR!$B91=\"Gift Aid Recovered\",WorkingR!N91,\"\")","v":""},{"$f":"IF(WorkingR!$B91=\"Gift Aid Recovered\",WorkingR!O91,\"\")","v":""},{"$f":"IF(WorkingR!$B91=\"Gift Aid Recovered\",WorkingR!P91,\"\")","v":""},{"$f":"IF(WorkingR!$B91=\"Gift Aid Recovered\",WorkingR!Q91,\"\")","v":""},{"$f":"IF(WorkingR!$B91=\"Gift Aid Recovered\",WorkingR!R91,\"\")","v":""},{"$f":"IF(WorkingR!$B91=\"Gift Aid Recovered\",WorkingR!S91,\"\")","v":""},{"$f":"IF(WorkingR!$B91=\"Gift Aid Recovered\",WorkingR!T91,\"\")","v":""},{"$f":"IF(WorkingR!$B91=\"Gift Aid Recovered\",WorkingR!U91,\"\")","v":""},{"$f":"IF(WorkingR!$B91=\"Gift Aid Recovered\",WorkingR!V91,\"\")","v":""},{"$f":"IF(WorkingR!$B91=\"Gift Aid Recovered\",WorkingR!W91,\"\")","v":""},{"$f":"IF(WorkingR!$B91=\"Gift Aid Recovered\",WorkingR!X91,\"\")","v":""},{"$f":"IF(WorkingR!$B91=\"Gift Aid Recovered\",WorkingR!Y91,\"\")","v":""},{"$f":"IF(Descriptions!D92=\"Gift aid recovered\",Descriptions!AA92,0)","v":0}]
[null,{"$f":"SUM(B120:B170)","v":0},0,0,0,0,0,0,0,0,0,0,0,0,0,0,0,0,0,0,0,0,null,{"$f":"X119","v":0}]
["ALL OTHER GIVING/VOLUNTARY RECEIPTS",null,null,null,null,null,null,null,null,null,null,null,null,null,null,null,null,null,null,null,null,null,null,{"$f":"SUM(X173:X229)","v":0}]
["Appeals",{"$f":"WorkingR!D5","v":0},{"$f":"WorkingR!E5","v":0},{"$f":"WorkingR!F5","v":0},{"$f":"WorkingR!G5","v":0},{"$f":"WorkingR!H5","v":0},{"$f":"WorkingR!I5","v":0},{"$f":"WorkingR!J5","v":0},{"$f":"WorkingR!K5","v":0},{"$f":"WorkingR!L5","v":0},{"$f":"WorkingR!M5","v":0},{"$f":"WorkingR!N5","v":0},{"$f":"WorkingR!O5","v":0},{"$f":"WorkingR!P5","v":0},{"$f":"WorkingR!Q5","v":0},{"$f":"WorkingR!R5","v":0},{"$f":"WorkingR!S5","v":0},{"$f":"WorkingR!T5","v":0},{"$f":"WorkingR!U5","v":0},{"$f":"WorkingR!V5","v":0},{"$f":"WorkingR!W5","v":0},{"$f":"WorkingR!X5","v":0},{"$f":"WorkingR!Y5","v":0},{"$f":"Descriptions!AA6","v":0}]
["CAF & GAYE giving",{"$f":"WorkingR!D7","v":0},{"$f":"WorkingR!E7","v":0},{"$f":"WorkingR!F7","v":0},{"$f":"WorkingR!G7","v":0},{"$f":"WorkingR!H7","v":0},{"$f":"WorkingR!I7","v":0},{"$f":"WorkingR!J7","v":0},{"$f":"WorkingR!K7","v":0},{"$f":"WorkingR!L7","v":0},{"$f":"WorkingR!M7","v":0},{"$f":"WorkingR!N7","v":0},{"$f":"WorkingR!O7","v":0},{"$f":"WorkingR!P7","v":0},{"$f":"WorkingR!Q7","v":0},{"$f":"WorkingR!R7","v":0},{"$f":"WorkingR!S7","v":0},{"$f":"WorkingR!T7","v":0},{"$f":"WorkingR!U7","v":0},{"$f":"WorkingR!V7","v":0},{"$f":"WorkingR!W7","v":0},{"$f":"WorkingR!X7","v":0},{"$f":"WorkingR!Y7","v":0},{"$f":"Descriptions!AA8","v":0}]
["Donations",{"$f":"WorkingR!D11","v":0},{"$f":"WorkingR!E11","v":0},{"$f":"WorkingR!F11","v":0},{"$f":"WorkingR!G11","v":0},{"$f":"WorkingR!H11","v":0},{"$f":"WorkingR!I11","v":0},{"$f":"WorkingR!J11","v":0},{"$f":"WorkingR!K11","v":0},{"$f":"WorkingR!L11","v":0},{"$f":"WorkingR!M11","v":0},{"$f":"WorkingR!N11","v":0},{"$f":"WorkingR!O11","v":0},{"$f":"WorkingR!P11","v":0},{"$f":"WorkingR!Q11","v":0},{"$f":"WorkingR!R11","v":0},{"$f":"WorkingR!S11","v":0},{"$f":"WorkingR!T11","v":0},{"$f":"WorkingR!U11","v":0},{"$f":"WorkingR!V11","v":0},{"$f":"WorkingR!W11","v":0},{"$f":"WorkingR!X11","v":0},{"$f":"WorkingR!Y11","v":0},{"$f":"Descriptions!AA12","v":0}]
["Gift Aid Envelopes",{"$f":"WorkingR!D16","v":0},{"$f":"WorkingR!E16","v":0},{"$f":"WorkingR!F16","v":0},{"$f":"WorkingR!G16","v":0},{"$f":"WorkingR!H16","v":0},{"$f":"WorkingR!I16","v":0},{"$f":"WorkingR!J16","v":0},{"$f":"WorkingR!K16","v":0},{"$f":"WorkingR!L16","v":0},{"$f":"WorkingR!M16","v":0},{"$f":"WorkingR!N16","v":0},{"$f":"WorkingR!O16","v":0},{"$f":"WorkingR!P16","v":0},{"$f":"WorkingR!Q16","v":0},{"$f":"WorkingR!R16","v":0},{"$f":"WorkingR!S16","v":0},{"$f":"WorkingR!T16","v":0},{"$f":"WorkingR!U16","v":0},{"$f":"WorkingR!V16","v":0},{"$f":"WorkingR!W16","v":0},{"$f":"WorkingR!X16","v":0},{"$f":"WorkingR!Y16","v":0},{"$f":"Descriptions!AA17","v":0}]
["Gift Days",{"$f":"WorkingR!D18","v":0},{"$f":"WorkingR!E18","v":0},{"$f":"WorkingR!F18","v":0},{"$f":"WorkingR!G18","v":0},{"$f":"WorkingR!H18","v":0},{"$f":"WorkingR!I18","v":0},{"$f":"WorkingR!J18","v":0},{"$f":"WorkingR!K18","v":0},{"$f":"WorkingR!L18","v":0},{"$f":"WorkingR!M18","v":0},{"$f":"WorkingR!N18","v":0},{"$f":"WorkingR!O18","v":0},{"$f":"WorkingR!P18","v":0},{"$f":"WorkingR!Q18","v":0},{"$f":"WorkingR!R18","v":0},{"$f":"WorkingR!S18","v":0},{"$f":"WorkingR!T18","v":0},{"$f":"WorkingR!U18","v":0},{"$f":"WorkingR!V18","v":0},{"$f":"WorkingR!W18","v":0},{"$f":"WorkingR!X18","v":0},{"$f":"WorkingR!Y18","v":0},{"$f":"Descriptions!AA19","v":0}]
["Donations - Gift Aided",{"$f":"WorkingR!D12","v":0},{"$f":"WorkingR!E12","v":0},{"$f":"WorkingR!F12","v":0},{"$f":"WorkingR!G12","v":0},{"$f":"WorkingR!H12","v":0},{"$f":"WorkingR!I12","v":0},{"$f":"WorkingR!J12","v":0},{"$f":"WorkingR!K12","v":0},{"$f":"WorkingR!L12","v":0},{"$f":"WorkingR!M12","v":0},{"$f":"WorkingR!N12","v":0},{"$f":"WorkingR!O12","v":0},{"$f":"WorkingR!P12","v":0},{"$f":"WorkingR!Q12","v":0},{"$f":"WorkingR!R12","v":0},{"$f":"WorkingR!S12","v":0},{"$f":"WorkingR!T12","v":0},{"$f":"WorkingR!U12","v":0},{"$f":"WorkingR!V12","v":0},{"$f":"WorkingR!W12","v":0},{"$f":"WorkingR!X12","v":0},{"$f":"WorkingR!Y12","v":0},{"$f":"Descriptions!AA13","v":0}]
["Wall Boxes",{"$f":"WorkingR!D37","v":0},{"$f":"WorkingR!E37","v":0},{"$f":"WorkingR!F37","v":0},{"$f":"WorkingR!G37","v":0},{"$f":"WorkingR!H37","v":0},{"$f":"WorkingR!I37","v":0},{"$f":"WorkingR!J37","v":0},{"$f":"WorkingR!K37","v":0},{"$f":"WorkingR!L37","v":0},{"$f":"WorkingR!M37","v":0},{"$f":"WorkingR!N37","v":0},{"$f":"WorkingR!O37","v":0},{"$f":"WorkingR!P37","v":0},{"$f":"WorkingR!Q37","v":0},{"$f":"WorkingR!R37","v":0},{"$f":"WorkingR!S37","v":0},{"$f":"WorkingR!T37","v":0},{"$f":"WorkingR!U37","v":0},{"$f":"WorkingR!V37","v":0},{"$f":"WorkingR!W37","v":0},{"$f":"WorkingR!X37","v":0},{"$f":"WorkingR!Y37","v":0},{"$f":"Descriptions!AA38","v":0}]
[{"$f":"IF(Descriptions!D43=\"All other giving/voluntary receipts\",Descriptions!B43,0)","v":0},{"$f":"IF(WorkingR!$B42=\"All other giving/voluntary receipts\",WorkingR!D42,\"\")","v":0},{"$f":"IF(WorkingR!$B42=\"All other giving/voluntary receipts\",WorkingR!E42,\"\")","v":0},{"$f":"IF(WorkingR!$B42=\"All other giving/voluntary receipts\",WorkingR!F42,\"\")","v":0},{"$f":"IF(WorkingR!$B42=\"All other giving/voluntary receipts\",WorkingR!G42,\"\")","v":0},{"$f":"IF(WorkingR!$B42=\"All other giving/voluntary receipts\",WorkingR!H42,\"\")","v":0},{"$f":"IF(WorkingR!$B42=\"All other giving/voluntary receipts\",WorkingR!I42,\"\")","v":0},{"$f":"IF(WorkingR!$B42=\"All other giving/voluntary receipts\",WorkingR!J42,\"\")","v":0},{"$f":"IF(WorkingR!$B42=\"All other giving/voluntary receipts\",WorkingR!K42,\"\")","v":0},{"$f":"IF(WorkingR!$B42=\"All other giving/voluntary receipts\",WorkingR!L42,\"\")","v":0},{"$f":"IF(WorkingR!$B42=\"All other giving/voluntary receipts\",WorkingR!M42,\"\")","v":0},{"$f":"IF(WorkingR!$B42=\"All other giving/voluntary receipts\",WorkingR!N42,\"\")","v":0},{"$f":"IF(WorkingR!$B42=\"All other giving/voluntary receipts\",WorkingR!O42,\"\")","v":0},{"$f":"IF(WorkingR!$B42=\"All other giving/voluntary receipts\",WorkingR!P42,\"\")","v":0},{"$f":"IF(WorkingR!$B42=\"All other giving/voluntary receipts\",WorkingR!Q42,\"\")","v":0},{"$f":"IF(WorkingR!$B42=\"All other giving/voluntary receipts\",WorkingR!R42,\"\")","v":0},{"$f":"IF(WorkingR!$B42=\"All other giving/voluntary receipts\",WorkingR!S42,\"\")","v":0},{"$f":"IF(WorkingR!$B42=\"All other giving/voluntary receipts\",WorkingR!T42,\"\")","v":0},{"$f":"IF(WorkingR!$B42=\"All other giving/voluntary receipts\",WorkingR!U42,\"\")","v":0},{"$f":"IF(WorkingR!$B42=\"All other giving/voluntary receipts\",WorkingR!V42,\"\")","v":0},{"$f":"IF(WorkingR!$B42=\"All other giving/voluntary receipts\",WorkingR!W42,\"\")","v":0},{"$f":"IF(WorkingR!$B42=\"All other giving/voluntary receipts\",WorkingR!X42,\"\")","v":0},{"$f":"IF(WorkingR!$B42=\"All other giving/voluntary receipts\",WorkingR!Y42,\"\")","v":0},{"$f":"IF(Descriptions!D43=\"All other giving/voluntary receipts\",Descriptions!AA43,0)","v":0}]
[{"$f":"IF(Descriptions!D44=\"All other giving/voluntary receipts\",Descriptions!B44,0)","v":0},{"$f":"IF(WorkingR!$B43=\"All other giving/voluntary receipts\",WorkingR!D43,\"\")","v":0},{"$f":"IF(WorkingR!$B43=\"All other giving/voluntary receipts\",WorkingR!E43,\"\")","v":0},{"$f":"IF(WorkingR!$B43=\"All other giving/voluntary receipts\",WorkingR!F43,\"\")","v":0},{"$f":"IF(WorkingR!$B43=\"All other giving/voluntary receipts\",WorkingR!G43,\"\")","v":0},{"$f":"IF(WorkingR!$B43=\"All other giving/voluntary receipts\",WorkingR!H43,\"\")","v":0},{"$f":"IF(WorkingR!$B43=\"All other giving/voluntary receipts\",WorkingR!I43,\"\")","v":0},{"$f":"IF(WorkingR!$B43=\"All other giving/voluntary receipts\",WorkingR!J43,\"\")","v":0},{"$f":"IF(WorkingR!$B43=\"All other giving/voluntary receipts\",WorkingR!K43,\"\")","v":0},{"$f":"IF(WorkingR!$B43=\"All other giving/voluntary receipts\",WorkingR!L43,\"\")","v":0},{"$f":"IF(WorkingR!$B43=\"All other giving/voluntary receipts\",WorkingR!M43,\"\")","v":0},{"$f":"IF(WorkingR!$B43=\"All other giving/voluntary receipts\",WorkingR!N43,\"\")","v":0},{"$f":"IF(WorkingR!$B43=\"All other giving/voluntary receipts\",WorkingR!O43,\"\")","v":0},{"$f":"IF(WorkingR!$B43=\"All other giving/voluntary receipts\",WorkingR!P43,\"\")","v":0},{"$f":"IF(WorkingR!$B43=\"All other giving/voluntary receipts\",WorkingR!Q43,\"\")","v":0},{"$f":"IF(WorkingR!$B43=\"All other giving/voluntary receipts\",WorkingR!R43,\"\")","v":0},{"$f":"IF(WorkingR!$B43=\"All other giving/voluntary receipts\",WorkingR!S43,\"\")","v":0},{"$f":"IF(WorkingR!$B43=\"All other giving/voluntary receipts\",WorkingR!T43,\"\")","v":0},{"$f":"IF(WorkingR!$B43=\"All other giving/voluntary receipts\",WorkingR!U43,\"\")","v":0},{"$f":"IF(WorkingR!$B43=\"All other giving/voluntary receipts\",WorkingR!V43,\"\")","v":0},{"$f":"IF(WorkingR!$B43=\"All other giving/voluntary receipts\",WorkingR!W43,\"\")","v":0},{"$f":"IF(WorkingR!$B43=\"All other giving/voluntary receipts\",WorkingR!X43,\"\")","v":0},{"$f":"IF(WorkingR!$B43=\"All other giving/voluntary receipts\",WorkingR!Y43,\"\")","v":0},{"$f":"IF(Descriptions!D44=\"All other giving/voluntary receipts\",Descriptions!AA44,0)","v":0}]
[{"$f":"IF(Descriptions!D45=\"All other giving/voluntary receipts\",Descriptions!B45,0)","v":0},{"$f":"IF(WorkingR!$B44=\"All other giving/voluntary receipts\",WorkingR!D44,\"\")","v":0},{"$f":"IF(WorkingR!$B44=\"All other giving/voluntary receipts\",WorkingR!E44,\"\")","v":0},{"$f":"IF(WorkingR!$B44=\"All other giving/voluntary receipts\",WorkingR!F44,\"\")","v":0},{"$f":"IF(WorkingR!$B44=\"All other giving/voluntary receipts\",WorkingR!G44,\"\")","v":0},{"$f":"IF(WorkingR!$B44=\"All other giving/voluntary receipts\",WorkingR!H44,\"\")","v":0},{"$f":"IF(WorkingR!$B44=\"All other giving/voluntary receipts\",WorkingR!I44,\"\")","v":0},{"$f":"IF(WorkingR!$B44=\"All other giving/voluntary receipts\",WorkingR!J44,\"\")","v":0},{"$f":"IF(WorkingR!$B44=\"All other giving/voluntary receipts\",WorkingR!K44,\"\")","v":0},{"$f":"IF(WorkingR!$B44=\"All other giving/voluntary receipts\",WorkingR!L44,\"\")","v":0},{"$f":"IF(WorkingR!$B44=\"All other giving/voluntary receipts\",WorkingR!M44,\"\")","v":0},{"$f":"IF(WorkingR!$B44=\"All other giving/voluntary receipts\",WorkingR!N44,\"\")","v":0},{"$f":"IF(WorkingR!$B44=\"All other giving/voluntary receipts\",WorkingR!O44,\"\")","v":0},{"$f":"IF(WorkingR!$B44=\"All other giving/voluntary receipts\",WorkingR!P44,\"\")","v":0},{"$f":"IF(WorkingR!$B44=\"All other giving/voluntary receipts\",WorkingR!Q44,\"\")","v":0},{"$f":"IF(WorkingR!$B44=\"All other giving/voluntary receipts\",WorkingR!R44,\"\")","v":0},{"$f":"IF(WorkingR!$B44=\"All other giving/voluntary receipts\",WorkingR!S44,\"\")","v":0},{"$f":"IF(WorkingR!$B44=\"All other giving/voluntary receipts\",WorkingR!T44,\"\")","v":0},{"$f":"IF(WorkingR!$B44=\"All other giving/voluntary receipts\",WorkingR!U44,\"\")","v":0},{"$f":"IF(WorkingR!$B44=\"All other giving/voluntary receipts\",WorkingR!V44,\"\")","v":0},{"$f":"IF(WorkingR!$B44=\"All other giving/voluntary receipts\",WorkingR!W44,\"\")","v":0},{"$f":"IF(WorkingR!$B44=\"All other giving/voluntary receipts\",WorkingR!X44,\"\")","v":0},{"$f":"IF(WorkingR!$B44=\"All other giving/voluntary receipts\",WorkingR!Y44,\"\")","v":0},{"$f":"IF(Descriptions!D45=\"All other giving/voluntary receipts\",Descriptions!AA45,0)","v":0}]
[{"$f":"IF(Descriptions!D46=\"All other giving/voluntary receipts\",Descriptions!B46,0)","v":0},{"$f":"IF(WorkingR!$B45=\"All other giving/voluntary receipts\",WorkingR!D45,\"\")","v":0},{"$f":"IF(WorkingR!$B45=\"All other giving/voluntary receipts\",WorkingR!E45,\"\")","v":0},{"$f":"IF(WorkingR!$B45=\"All other giving/voluntary receipts\",WorkingR!F45,\"\")","v":0},{"$f":"IF(WorkingR!$B45=\"All other giving/voluntary receipts\",WorkingR!G45,\"\")","v":0},{"$f":"IF(WorkingR!$B45=\"All other giving/voluntary receipts\",WorkingR!H45,\"\")","v":0},{"$f":"IF(WorkingR!$B45=\"All other giving/voluntary receipts\",WorkingR!I45,\"\")","v":0},{"$f":"IF(WorkingR!$B45=\"All other giving/voluntary receipts\",WorkingR!J45,\"\")","v":0},{"$f":"IF(WorkingR!$B45=\"All other giving/voluntary receipts\",WorkingR!K45,\"\")","v":0},{"$f":"IF(WorkingR!$B45=\"All other giving/voluntary receipts\",WorkingR!L45,\"\")","v":0},{"$f":"IF(WorkingR!$B45=\"All other giving/voluntary receipts\",WorkingR!M45,\"\")","v":0},{"$f":"IF(WorkingR!$B45=\"All other giving/voluntary receipts\",WorkingR!N45,\"\")","v":0},{"$f":"IF(WorkingR!$B45=\"All other giving/voluntary receipts\",WorkingR!O45,\"\")","v":0},{"$f":"IF(WorkingR!$B45=\"All other giving/voluntary receipts\",WorkingR!P45,\"\")","v":0},{"$f":"IF(WorkingR!$B45=\"All other giving/voluntary receipts\",WorkingR!Q45,\"\")","v":0},{"$f":"IF(WorkingR!$B45=\"All other giving/voluntary receipts\",WorkingR!R45,\"\")","v":0},{"$f":"IF(WorkingR!$B45=\"All other giving/voluntary receipts\",WorkingR!S45,\"\")","v":0},{"$f":"IF(WorkingR!$B45=\"All other giving/voluntary receipts\",WorkingR!T45,\"\")","v":0},{"$f":"IF(WorkingR!$B45=\"All other giving/voluntary receipts\",WorkingR!U45,\"\")","v":0},{"$f":"IF(WorkingR!$B45=\"All other giving/voluntary receipts\",WorkingR!V45,\"\")","v":0},{"$f":"IF(WorkingR!$B45=\"All other giving/voluntary receipts\",WorkingR!W45,\"\")","v":0},{"$f":"IF(WorkingR!$B45=\"All other giving/voluntary receipts\",WorkingR!X45,\"\")","v":0},{"$f":"IF(WorkingR!$B45=\"All other giving/voluntary receipts\",WorkingR!Y45,\"\")","v":0},{"$f":"IF(Descriptions!D46=\"All other giving/voluntary receipts\",Descriptions!AA46,0)","v":0}]
[{"$f":"IF(Descriptions!D47=\"All other giving/voluntary receipts\",Descriptions!B47,0)","v":0},{"$f":"IF(WorkingR!$B46=\"All other giving/voluntary receipts\",WorkingR!D46,\"\")","v":0},{"$f":"IF(WorkingR!$B46=\"All other giving/voluntary receipts\",WorkingR!E46,\"\")","v":0},{"$f":"IF(WorkingR!$B46=\"All other giving/voluntary receipts\",WorkingR!F46,\"\")","v":0},{"$f":"IF(WorkingR!$B46=\"All other giving/voluntary receipts\",WorkingR!G46,\"\")","v":0},{"$f":"IF(WorkingR!$B46=\"All other giving/voluntary receipts\",WorkingR!H46,\"\")","v":0},{"$f":"IF(WorkingR!$B46=\"All other giving/voluntary receipts\",WorkingR!I46,\"\")","v":0},{"$f":"IF(WorkingR!$B46=\"All other giving/voluntary receipts\",WorkingR!J46,\"\")","v":0},{"$f":"IF(WorkingR!$B46=\"All other giving/voluntary receipts\",WorkingR!K46,\"\")","v":0},{"$f":"IF(WorkingR!$B46=\"All other giving/voluntary receipts\",WorkingR!L46,\"\")","v":0},{"$f":"IF(WorkingR!$B46=\"All other giving/voluntary receipts\",WorkingR!M46,\"\")","v":0},{"$f":"IF(WorkingR!$B46=\"All other giving/voluntary receipts\",WorkingR!N46,\"\")","v":0},{"$f":"IF(WorkingR!$B46=\"All other giving/voluntary receipts\",WorkingR!O46,\"\")","v":0},{"$f":"IF(WorkingR!$B46=\"All other giving/voluntary receipts\",WorkingR!P46,\"\")","v":0},{"$f":"IF(WorkingR!$B46=\"All other giving/voluntary receipts\",WorkingR!Q46,\"\")","v":0},{"$f":"IF(WorkingR!$B46=\"All other giving/voluntary receipts\",WorkingR!R46,\"\")","v":0},{"$f":"IF(WorkingR!$B46=\"All other giving/voluntary receipts\",WorkingR!S46,\"\")","v":0},{"$f":"IF(WorkingR!$B46=\"All other giving/voluntary receipts\",WorkingR!T46,\"\")","v":0},{"$f":"IF(WorkingR!$B46=\"All other giving/voluntary receipts\",WorkingR!U46,\"\")","v":0},{"$f":"IF(WorkingR!$B46=\"All other giving/voluntary receipts\",WorkingR!V46,\"\")","v":0},{"$f":"IF(WorkingR!$B46=\"All other giving/voluntary receipts\",WorkingR!W46,\"\")","v":0},{"$f":"IF(WorkingR!$B46=\"All other giving/voluntary receipts\",WorkingR!X46,\"\")","v":0},{"$f":"IF(WorkingR!$B46=\"All other giving/voluntary receipts\",WorkingR!Y46,\"\")","v":0},{"$f":"IF(Descriptions!D47=\"All other giving/voluntary receipts\",Descriptions!AA47,0)","v":0}]
[{"$f":"IF(Descriptions!D48=\"All other giving/voluntary receipts\",Descriptions!B48,0)","v":0},{"$f":"IF(WorkingR!$B47=\"All other giving/voluntary receipts\",WorkingR!D47,\"\")","v":0},{"$f":"IF(WorkingR!$B47=\"All other giving/voluntary receipts\",WorkingR!E47,\"\")","v":0},{"$f":"IF(WorkingR!$B47=\"All other giving/voluntary receipts\",WorkingR!F47,\"\")","v":0},{"$f":"IF(WorkingR!$B47=\"All other giving/voluntary receipts\",WorkingR!G47,\"\")","v":0},{"$f":"IF(WorkingR!$B47=\"All other giving/voluntary receipts\",WorkingR!H47,\"\")","v":0},{"$f":"IF(WorkingR!$B47=\"All other giving/voluntary receipts\",WorkingR!I47,\"\")","v":0},{"$f":"IF(WorkingR!$B47=\"All other giving/voluntary receipts\",WorkingR!J47,\"\")","v":0},{"$f":"IF(WorkingR!$B47=\"All other giving/voluntary receipts\",WorkingR!K47,\"\")","v":0},{"$f":"IF(WorkingR!$B47=\"All other giving/voluntary receipts\",WorkingR!L47,\"\")","v":0},{"$f":"IF(WorkingR!$B47=\"All other giving/voluntary receipts\",WorkingR!M47,\"\")","v":0},{"$f":"IF(WorkingR!$B47=\"All other giving/voluntary receipts\",WorkingR!N47,\"\")","v":0},{"$f":"IF(WorkingR!$B47=\"All other giving/voluntary receipts\",WorkingR!O47,\"\")","v":0},{"$f":"IF(WorkingR!$B47=\"All other giving/voluntary receipts\",WorkingR!P47,\"\")","v":0},{"$f":"IF(WorkingR!$B47=\"All other giving/voluntary receipts\",WorkingR!Q47,\"\")","v":0},{"$f":"IF(WorkingR!$B47=\"All other giving/voluntary receipts\",WorkingR!R47,\"\")","v":0},{"$f":"IF(WorkingR!$B47=\"All other giving/voluntary receipts\",WorkingR!S47,\"\")","v":0},{"$f":"IF(WorkingR!$B47=\"All other giving/voluntary receipts\",WorkingR!T47,\"\")","v":0},{"$f":"IF(WorkingR!$B47=\"All other giving/voluntary receipts\",WorkingR!U47,\"\")","v":0},{"$f":"IF(WorkingR!$B47=\"All other giving/voluntary receipts\",WorkingR!V47,\"\")","v":0},{"$f":"IF(WorkingR!$B47=\"All other giving/voluntary receipts\",WorkingR!W47,\"\")","v":0},{"$f":"IF(WorkingR!$B47=\"All other giving/voluntary receipts\",WorkingR!X47,\"\")","v":0},{"$f":"IF(WorkingR!$B47=\"All other giving/voluntary receipts\",WorkingR!Y47,\"\")","v":0},{"$f":"IF(Descriptions!D48=\"All other giving/voluntary receipts\",Descriptions!AA48,0)","v":0}]
[{"$f":"IF(Descriptions!D49=\"All other giving/voluntary receipts\",Descriptions!B49,0)","v":0},{"$f":"IF(WorkingR!$B48=\"All other giving/voluntary receipts\",WorkingR!D48,\"\")","v":0},{"$f":"IF(WorkingR!$B48=\"All other giving/voluntary receipts\",WorkingR!E48,\"\")","v":0},{"$f":"IF(WorkingR!$B48=\"All other giving/voluntary receipts\",WorkingR!F48,\"\")","v":0},{"$f":"IF(WorkingR!$B48=\"All other giving/voluntary receipts\",WorkingR!G48,\"\")","v":0},{"$f":"IF(WorkingR!$B48=\"All other giving/voluntary receipts\",WorkingR!H48,\"\")","v":0},{"$f":"IF(WorkingR!$B48=\"All other giving/voluntary receipts\",WorkingR!I48,\"\")","v":0},{"$f":"IF(WorkingR!$B48=\"All other giving/voluntary receipts\",WorkingR!J48,\"\")","v":0},{"$f":"IF(WorkingR!$B48=\"All other giving/voluntary receipts\",WorkingR!K48,\"\")","v":0},{"$f":"IF(WorkingR!$B48=\"All other giving/voluntary receipts\",WorkingR!L48,\"\")","v":0},{"$f":"IF(WorkingR!$B48=\"All other giving/voluntary receipts\",WorkingR!M48,\"\")","v":0},{"$f":"IF(WorkingR!$B48=\"All other giving/voluntary receipts\",WorkingR!N48,\"\")","v":0},{"$f":"IF(WorkingR!$B48=\"All other giving/voluntary receipts\",WorkingR!O48,\"\")","v":0},{"$f":"IF(WorkingR!$B48=\"All other giving/voluntary receipts\",WorkingR!P48,\"\")","v":0},{"$f":"IF(WorkingR!$B48=\"All other giving/voluntary receipts\",WorkingR!Q48,\"\")","v":0},{"$f":"IF(WorkingR!$B48=\"All other giving/voluntary receipts\",WorkingR!R48,\"\")","v":0},{"$f":"IF(WorkingR!$B48=\"All other giving/voluntary receipts\",WorkingR!S48,\"\")","v":0},{"$f":"IF(WorkingR!$B48=\"All other giving/voluntary receipts\",WorkingR!T48,\"\")","v":0},{"$f":"IF(WorkingR!$B48=\"All other giving/voluntary receipts\",WorkingR!U48,\"\")","v":0},{"$f":"IF(WorkingR!$B48=\"All other giving/voluntary receipts\",WorkingR!V48,\"\")","v":0},{"$f":"IF(WorkingR!$B48=\"All other giving/voluntary receipts\",WorkingR!W48,\"\")","v":0},{"$f":"IF(WorkingR!$B48=\"All other giving/voluntary receipts\",WorkingR!X48,\"\")","v":0},{"$f":"IF(WorkingR!$B48=\"All other giving/voluntary receipts\",WorkingR!Y48,\"\")","v":0},{"$f":"IF(Descriptions!D49=\"All other giving/voluntary receipts\",Descriptions!AA49,0)","v":0}]
[{"$f":"IF(Descriptions!D50=\"All other giving/voluntary receipts\",Descriptions!B50,0)","v":0},{"$f":"IF(WorkingR!$B49=\"All other giving/voluntary receipts\",WorkingR!D49,\"\")","v":0},{"$f":"IF(WorkingR!$B49=\"All other giving/voluntary receipts\",WorkingR!E49,\"\")","v":0},{"$f":"IF(WorkingR!$B49=\"All other giving/voluntary receipts\",WorkingR!F49,\"\")","v":0},{"$f":"IF(WorkingR!$B49=\"All other giving/voluntary receipts\",WorkingR!G49,\"\")","v":0},{"$f":"IF(WorkingR!$B49=\"All other giving/voluntary receipts\",WorkingR!H49,\"\")","v":0},{"$f":"IF(WorkingR!$B49=\"All other giving/voluntary receipts\",WorkingR!I49,\"\")","v":0},{"$f":"IF(WorkingR!$B49=\"All other giving/voluntary receipts\",WorkingR!J49,\"\")","v":0},{"$f":"IF(WorkingR!$B49=\"All other giving/voluntary receipts\",WorkingR!K49,\"\")","v":0},{"$f":"IF(WorkingR!$B49=\"All other giving/voluntary receipts\",WorkingR!L49,\"\")","v":0},{"$f":"IF(WorkingR!$B49=\"All other giving/voluntary receipts\",WorkingR!M49,\"\")","v":0},{"$f":"IF(WorkingR!$B49=\"All other giving/voluntary receipts\",WorkingR!N49,\"\")","v":0},{"$f":"IF(WorkingR!$B49=\"All other giving/voluntary receipts\",WorkingR!O49,\"\")","v":0},{"$f":"IF(WorkingR!$B49=\"All other giving/voluntary receipts\",WorkingR!P49,\"\")","v":0},{"$f":"IF(WorkingR!$B49=\"All other giving/voluntary receipts\",WorkingR!Q49,\"\")","v":0},{"$f":"IF(WorkingR!$B49=\"All other giving/voluntary receipts\",WorkingR!R49,\"\")","v":0},{"$f":"IF(WorkingR!$B49=\"All other giving/voluntary receipts\",WorkingR!S49,\"\")","v":0},{"$f":"IF(WorkingR!$B49=\"All other giving/voluntary receipts\",WorkingR!T49,\"\")","v":0},{"$f":"IF(WorkingR!$B49=\"All other giving/voluntary receipts\",WorkingR!U49,\"\")","v":0},{"$f":"IF(WorkingR!$B49=\"All other giving/voluntary receipts\",WorkingR!V49,\"\")","v":0},{"$f":"IF(WorkingR!$B49=\"All other giving/voluntary receipts\",WorkingR!W49,\"\")","v":0},{"$f":"IF(WorkingR!$B49=\"All other giving/voluntary receipts\",WorkingR!X49,\"\")","v":0},{"$f":"IF(WorkingR!$B49=\"All other giving/voluntary receipts\",WorkingR!Y49,\"\")","v":0},{"$f":"IF(Descriptions!D50=\"All other giving/voluntary receipts\",Descriptions!AA50,0)","v":0}]
[{"$f":"IF(Descriptions!D51=\"All other giving/voluntary receipts\",Descriptions!B51,0)","v":0},{"$f":"IF(WorkingR!$B50=\"All other giving/voluntary receipts\",WorkingR!D50,\"\")","v":0},{"$f":"IF(WorkingR!$B50=\"All other giving/voluntary receipts\",WorkingR!E50,\"\")","v":0},{"$f":"IF(WorkingR!$B50=\"All other giving/voluntary receipts\",WorkingR!F50,\"\")","v":0},{"$f":"IF(WorkingR!$B50=\"All other giving/voluntary receipts\",WorkingR!G50,\"\")","v":0},{"$f":"IF(WorkingR!$B50=\"All other giving/voluntary receipts\",WorkingR!H50,\"\")","v":0},{"$f":"IF(WorkingR!$B50=\"All other giving/voluntary receipts\",WorkingR!I50,\"\")","v":0},{"$f":"IF(WorkingR!$B50=\"All other giving/voluntary receipts\",WorkingR!J50,\"\")","v":0},{"$f":"IF(WorkingR!$B50=\"All other giving/voluntary receipts\",WorkingR!K50,\"\")","v":0},{"$f":"IF(WorkingR!$B50=\"All other giving/voluntary receipts\",WorkingR!L50,\"\")","v":0},{"$f":"IF(WorkingR!$B50=\"All other giving/voluntary receipts\",WorkingR!M50,\"\")","v":0},{"$f":"IF(WorkingR!$B50=\"All other giving/voluntary receipts\",WorkingR!N50,\"\")","v":0},{"$f":"IF(WorkingR!$B50=\"All other giving/voluntary receipts\",WorkingR!O50,\"\")","v":0},{"$f":"IF(WorkingR!$B50=\"All other giving/voluntary receipts\",WorkingR!P50,\"\")","v":0},{"$f":"IF(WorkingR!$B50=\"All other giving/voluntary receipts\",WorkingR!Q50,\"\")","v":0},{"$f":"IF(WorkingR!$B50=\"All other giving/voluntary receipts\",WorkingR!R50,\"\")","v":0},{"$f":"IF(WorkingR!$B50=\"All other giving/voluntary receipts\",WorkingR!S50,\"\")","v":0},{"$f":"IF(WorkingR!$B50=\"All other giving/voluntary receipts\",WorkingR!T50,\"\")","v":0},{"$f":"IF(WorkingR!$B50=\"All other giving/voluntary receipts\",WorkingR!U50,\"\")","v":0},{"$f":"IF(WorkingR!$B50=\"All other giving/voluntary receipts\",WorkingR!V50,\"\")","v":0},{"$f":"IF(WorkingR!$B50=\"All other giving/voluntary receipts\",WorkingR!W50,\"\")","v":0},{"$f":"IF(WorkingR!$B50=\"All other giving/voluntary receipts\",WorkingR!X50,\"\")","v":0},{"$f":"IF(WorkingR!$B50=\"All other giving/voluntary receipts\",WorkingR!Y50,\"\")","v":0},{"$f":"IF(Descriptions!D51=\"All other giving/voluntary receipts\",Descriptions!AA51,0)","v":0}]
[{"$f":"IF(Descriptions!D52=\"All other giving/voluntary receipts\",Descriptions!B52,0)","v":0},{"$f":"IF(WorkingR!$B51=\"All other giving/voluntary receipts\",WorkingR!D51,\"\")","v":0},{"$f":"IF(WorkingR!$B51=\"All other giving/voluntary receipts\",WorkingR!E51,\"\")","v":0},{"$f":"IF(WorkingR!$B51=\"All other giving/voluntary receipts\",WorkingR!F51,\"\")","v":0},{"$f":"IF(WorkingR!$B51=\"All other giving/voluntary receipts\",WorkingR!G51,\"\")","v":0},{"$f":"IF(WorkingR!$B51=\"All other giving/voluntary receipts\",WorkingR!H51,\"\")","v":0},{"$f":"IF(WorkingR!$B51=\"All other giving/voluntary receipts\",WorkingR!I51,\"\")","v":0},{"$f":"IF(WorkingR!$B51=\"All other giving/voluntary receipts\",WorkingR!J51,\"\")","v":0},{"$f":"IF(WorkingR!$B51=\"All other giving/voluntary receipts\",WorkingR!K51,\"\")","v":0},{"$f":"IF(WorkingR!$B51=\"All other giving/voluntary receipts\",WorkingR!L51,\"\")","v":0},{"$f":"IF(WorkingR!$B51=\"All other giving/voluntary receipts\",WorkingR!M51,\"\")","v":0},{"$f":"IF(WorkingR!$B51=\"All other giving/voluntary receipts\",WorkingR!N51,\"\")","v":0},{"$f":"IF(WorkingR!$B51=\"All other giving/voluntary receipts\",WorkingR!O51,\"\")","v":0},{"$f":"IF(WorkingR!$B51=\"All other giving/voluntary receipts\",WorkingR!P51,\"\")","v":0},{"$f":"IF(WorkingR!$B51=\"All other giving/voluntary receipts\",WorkingR!Q51,\"\")","v":0},{"$f":"IF(WorkingR!$B51=\"All other giving/voluntary receipts\",WorkingR!R51,\"\")","v":0},{"$f":"IF(WorkingR!$B51=\"All other giving/voluntary receipts\",WorkingR!S51,\"\")","v":0},{"$f":"IF(WorkingR!$B51=\"All other giving/voluntary receipts\",WorkingR!T51,\"\")","v":0},{"$f":"IF(WorkingR!$B51=\"All other giving/voluntary receipts\",WorkingR!U51,\"\")","v":0},{"$f":"IF(WorkingR!$B51=\"All other giving/voluntary receipts\",WorkingR!V51,\"\")","v":0},{"$f":"IF(WorkingR!$B51=\"All other giving/voluntary receipts\",WorkingR!W51,\"\")","v":0},{"$f":"IF(WorkingR!$B51=\"All other giving/voluntary receipts\",WorkingR!X51,\"\")","v":0},{"$f":"IF(WorkingR!$B51=\"All other giving/voluntary receipts\",WorkingR!Y51,\"\")","v":0},{"$f":"IF(Descriptions!D52=\"All other giving/voluntary receipts\",Descriptions!AA52,0)","v":0}]
[{"$f":"IF(Descriptions!D53=\"All other giving/voluntary receipts\",Descriptions!B53,0)","v":0},{"$f":"IF(WorkingR!$B52=\"All other giving/voluntary receipts\",WorkingR!D52,\"\")","v":0},{"$f":"IF(WorkingR!$B52=\"All other giving/voluntary receipts\",WorkingR!E52,\"\")","v":0},{"$f":"IF(WorkingR!$B52=\"All other giving/voluntary receipts\",WorkingR!F52,\"\")","v":0},{"$f":"IF(WorkingR!$B52=\"All other giving/voluntary receipts\",WorkingR!G52,\"\")","v":0},{"$f":"IF(WorkingR!$B52=\"All other giving/voluntary receipts\",WorkingR!H52,\"\")","v":0},{"$f":"IF(WorkingR!$B52=\"All other giving/voluntary receipts\",WorkingR!I52,\"\")","v":0},{"$f":"IF(WorkingR!$B52=\"All other giving/voluntary receipts\",WorkingR!J52,\"\")","v":0},{"$f":"IF(WorkingR!$B52=\"All other giving/voluntary receipts\",WorkingR!K52,\"\")","v":0},{"$f":"IF(WorkingR!$B52=\"All other giving/voluntary receipts\",WorkingR!L52,\"\")","v":0},{"$f":"IF(WorkingR!$B52=\"All other giving/voluntary receipts\",WorkingR!M52,\"\")","v":0},{"$f":"IF(WorkingR!$B52=\"All other giving/voluntary receipts\",WorkingR!N52,\"\")","v":0},{"$f":"IF(WorkingR!$B52=\"All other giving/voluntary receipts\",WorkingR!O52,\"\")","v":0},{"$f":"IF(WorkingR!$B52=\"All other giving/voluntary receipts\",WorkingR!P52,\"\")","v":0},{"$f":"IF(WorkingR!$B52=\"All other giving/voluntary receipts\",WorkingR!Q52,\"\")","v":0},{"$f":"IF(WorkingR!$B52=\"All other giving/voluntary receipts\",WorkingR!R52,\"\")","v":0},{"$f":"IF(WorkingR!$B52=\"All other giving/voluntary receipts\",WorkingR!S52,\"\")","v":0},{"$f":"IF(WorkingR!$B52=\"All other giving/voluntary receipts\",WorkingR!T52,\"\")","v":0},{"$f":"IF(WorkingR!$B52=\"All other giving/voluntary receipts\",WorkingR!U52,\"\")","v":0},{"$f":"IF(WorkingR!$B52=\"All other giving/voluntary receipts\",WorkingR!V52,\"\")","v":0},{"$f":"IF(WorkingR!$B52=\"All other giving/voluntary receipts\",WorkingR!W52,\"\")","v":0},{"$f":"IF(WorkingR!$B52=\"All other giving/voluntary receipts\",WorkingR!X52,\"\")","v":0},{"$f":"IF(WorkingR!$B52=\"All other giving/voluntary receipts\",WorkingR!Y52,\"\")","v":0},{"$f":"IF(Descriptions!D53=\"All other giving/voluntary receipts\",Descriptions!AA53,0)","v":0}]
[{"$f":"IF(Descriptions!D54=\"All other giving/voluntary receipts\",Descriptions!B54,0)","v":0},{"$f":"IF(WorkingR!$B53=\"All other giving/voluntary receipts\",WorkingR!D53,\"\")","v":0},{"$f":"IF(WorkingR!$B53=\"All other giving/voluntary receipts\",WorkingR!E53,\"\")","v":0},{"$f":"IF(WorkingR!$B53=\"All other giving/voluntary receipts\",WorkingR!F53,\"\")","v":0},{"$f":"IF(WorkingR!$B53=\"All other giving/voluntary receipts\",WorkingR!G53,\"\")","v":0},{"$f":"IF(WorkingR!$B53=\"All other giving/voluntary receipts\",WorkingR!H53,\"\")","v":0},{"$f":"IF(WorkingR!$B53=\"All other giving/voluntary receipts\",WorkingR!I53,\"\")","v":0},{"$f":"IF(WorkingR!$B53=\"All other giving/voluntary receipts\",WorkingR!J53,\"\")","v":0},{"$f":"IF(WorkingR!$B53=\"All other giving/voluntary receipts\",WorkingR!K53,\"\")","v":0},{"$f":"IF(WorkingR!$B53=\"All other giving/voluntary receipts\",WorkingR!L53,\"\")","v":0},{"$f":"IF(WorkingR!$B53=\"All other giving/voluntary receipts\",WorkingR!M53,\"\")","v":0},{"$f":"IF(WorkingR!$B53=\"All other giving/voluntary receipts\",WorkingR!N53,\"\")","v":0},{"$f":"IF(WorkingR!$B53=\"All other giving/voluntary receipts\",WorkingR!O53,\"\")","v":0},{"$f":"IF(WorkingR!$B53=\"All other giving/voluntary receipts\",WorkingR!P53,\"\")","v":0},{"$f":"IF(WorkingR!$B53=\"All other giving/voluntary receipts\",WorkingR!Q53,\"\")","v":0},{"$f":"IF(WorkingR!$B53=\"All other giving/voluntary receipts\",WorkingR!R53,\"\")","v":0},{"$f":"IF(WorkingR!$B53=\"All other giving/voluntary receipts\",WorkingR!S53,\"\")","v":0},{"$f":"IF(WorkingR!$B53=\"All other giving/voluntary receipts\",WorkingR!T53,\"\")","v":0},{"$f":"IF(WorkingR!$B53=\"All other giving/voluntary receipts\",WorkingR!U53,\"\")","v":0},{"$f":"IF(WorkingR!$B53=\"All other giving/voluntary receipts\",WorkingR!V53,\"\")","v":0},{"$f":"IF(WorkingR!$B53=\"All other giving/voluntary receipts\",WorkingR!W53,\"\")","v":0},{"$f":"IF(WorkingR!$B53=\"All other giving/voluntary receipts\",WorkingR!X53,\"\")","v":0},{"$f":"IF(WorkingR!$B53=\"All other giving/voluntary receipts\",WorkingR!Y53,\"\")","v":0},{"$f":"IF(Descriptions!D54=\"All other giving/voluntary receipts\",Descriptions!AA54,0)","v":0}]
[{"$f":"IF(Descriptions!D55=\"All other giving/voluntary receipts\",Descriptions!B55,0)","v":0},{"$f":"IF(WorkingR!$B54=\"All other giving/voluntary receipts\",WorkingR!D54,\"\")","v":0},{"$f":"IF(WorkingR!$B54=\"All other giving/voluntary receipts\",WorkingR!E54,\"\")","v":0},{"$f":"IF(WorkingR!$B54=\"All other giving/voluntary receipts\",WorkingR!F54,\"\")","v":0},{"$f":"IF(WorkingR!$B54=\"All other giving/voluntary receipts\",WorkingR!G54,\"\")","v":0},{"$f":"IF(WorkingR!$B54=\"All other giving/voluntary receipts\",WorkingR!H54,\"\")","v":0},{"$f":"IF(WorkingR!$B54=\"All other giving/voluntary receipts\",WorkingR!I54,\"\")","v":0},{"$f":"IF(WorkingR!$B54=\"All other giving/voluntary receipts\",WorkingR!J54,\"\")","v":0},{"$f":"IF(WorkingR!$B54=\"All other giving/voluntary receipts\",WorkingR!K54,\"\")","v":0},{"$f":"IF(WorkingR!$B54=\"All other giving/voluntary receipts\",WorkingR!L54,\"\")","v":0},{"$f":"IF(WorkingR!$B54=\"All other giving/voluntary receipts\",WorkingR!M54,\"\")","v":0},{"$f":"IF(WorkingR!$B54=\"All other giving/voluntary receipts\",WorkingR!N54,\"\")","v":0},{"$f":"IF(WorkingR!$B54=\"All other giving/voluntary receipts\",WorkingR!O54,\"\")","v":0},{"$f":"IF(WorkingR!$B54=\"All other giving/voluntary receipts\",WorkingR!P54,\"\")","v":0},{"$f":"IF(WorkingR!$B54=\"All other giving/voluntary receipts\",WorkingR!Q54,\"\")","v":0},{"$f":"IF(WorkingR!$B54=\"All other giving/voluntary receipts\",WorkingR!R54,\"\")","v":0},{"$f":"IF(WorkingR!$B54=\"All other giving/voluntary receipts\",WorkingR!S54,\"\")","v":0},{"$f":"IF(WorkingR!$B54=\"All other giving/voluntary receipts\",WorkingR!T54,\"\")","v":0},{"$f":"IF(WorkingR!$B54=\"All other giving/voluntary receipts\",WorkingR!U54,\"\")","v":0},{"$f":"IF(WorkingR!$B54=\"All other giving/voluntary receipts\",WorkingR!V54,\"\")","v":0},{"$f":"IF(WorkingR!$B54=\"All other giving/voluntary receipts\",WorkingR!W54,\"\")","v":0},{"$f":"IF(WorkingR!$B54=\"All other giving/voluntary receipts\",WorkingR!X54,\"\")","v":0},{"$f":"IF(WorkingR!$B54=\"All other giving/voluntary receipts\",WorkingR!Y54,\"\")","v":0},{"$f":"IF(Descriptions!D55=\"All other giving/voluntary receipts\",Descriptions!AA55,0)","v":0}]
[{"$f":"IF(Descriptions!D56=\"All other giving/voluntary receipts\",Descriptions!B56,0)","v":0},{"$f":"IF(WorkingR!$B55=\"All other giving/voluntary receipts\",WorkingR!D55,\"\")","v":0},{"$f":"IF(WorkingR!$B55=\"All other giving/voluntary receipts\",WorkingR!E55,\"\")","v":0},{"$f":"IF(WorkingR!$B55=\"All other giving/voluntary receipts\",WorkingR!F55,\"\")","v":0},{"$f":"IF(WorkingR!$B55=\"All other giving/voluntary receipts\",WorkingR!G55,\"\")","v":0},{"$f":"IF(WorkingR!$B55=\"All other giving/voluntary receipts\",WorkingR!H55,\"\")","v":0},{"$f":"IF(WorkingR!$B55=\"All other giving/voluntary receipts\",WorkingR!I55,\"\")","v":0},{"$f":"IF(WorkingR!$B55=\"All other giving/voluntary receipts\",WorkingR!J55,\"\")","v":0},{"$f":"IF(WorkingR!$B55=\"All other giving/voluntary receipts\",WorkingR!K55,\"\")","v":0},{"$f":"IF(WorkingR!$B55=\"All other giving/voluntary receipts\",WorkingR!L55,\"\")","v":0},{"$f":"IF(WorkingR!$B55=\"All other giving/voluntary receipts\",WorkingR!M55,\"\")","v":0},{"$f":"IF(WorkingR!$B55=\"All other giving/voluntary receipts\",WorkingR!N55,\"\")","v":0},{"$f":"IF(WorkingR!$B55=\"All other giving/voluntary receipts\",WorkingR!O55,\"\")","v":0},{"$f":"IF(WorkingR!$B55=\"All other giving/voluntary receipts\",WorkingR!P55,\"\")","v":0},{"$f":"IF(WorkingR!$B55=\"All other giving/voluntary receipts\",WorkingR!Q55,\"\")","v":0},{"$f":"IF(WorkingR!$B55=\"All other giving/voluntary receipts\",WorkingR!R55,\"\")","v":0},{"$f":"IF(WorkingR!$B55=\"All other giving/voluntary receipts\",WorkingR!S55,\"\")","v":0},{"$f":"IF(WorkingR!$B55=\"All other giving/voluntary receipts\",WorkingR!T55,\"\")","v":0},{"$f":"IF(WorkingR!$B55=\"All other giving/voluntary receipts\",WorkingR!U55,\"\")","v":0},{"$f":"IF(WorkingR!$B55=\"All other giving/voluntary receipts\",WorkingR!V55,\"\")","v":0},{"$f":"IF(WorkingR!$B55=\"All other giving/voluntary receipts\",WorkingR!W55,\"\")","v":0},{"$f":"IF(WorkingR!$B55=\"All other giving/voluntary receipts\",WorkingR!X55,\"\")","v":0},{"$f":"IF(WorkingR!$B55=\"All other giving/voluntary receipts\",WorkingR!Y55,\"\")","v":0},{"$f":"IF(Descriptions!D56=\"All other giving/voluntary receipts\",Descriptions!AA56,0)","v":0}]
[{"$f":"IF(Descriptions!D57=\"All other giving/voluntary receipts\",Descriptions!B57,0)","v":0},{"$f":"IF(WorkingR!$B56=\"All other giving/voluntary receipts\",WorkingR!D56,\"\")","v":0},{"$f":"IF(WorkingR!$B56=\"All other giving/voluntary receipts\",WorkingR!E56,\"\")","v":0},{"$f":"IF(WorkingR!$B56=\"All other giving/voluntary receipts\",WorkingR!F56,\"\")","v":0},{"$f":"IF(WorkingR!$B56=\"All other giving/voluntary receipts\",WorkingR!G56,\"\")","v":0},{"$f":"IF(WorkingR!$B56=\"All other giving/voluntary receipts\",WorkingR!H56,\"\")","v":0},{"$f":"IF(WorkingR!$B56=\"All other giving/voluntary receipts\",WorkingR!I56,\"\")","v":0},{"$f":"IF(WorkingR!$B56=\"All other giving/voluntary receipts\",WorkingR!J56,\"\")","v":0},{"$f":"IF(WorkingR!$B56=\"All other giving/voluntary receipts\",WorkingR!K56,\"\")","v":0},{"$f":"IF(WorkingR!$B56=\"All other giving/voluntary receipts\",WorkingR!L56,\"\")","v":0},{"$f":"IF(WorkingR!$B56=\"All other giving/voluntary receipts\",WorkingR!M56,\"\")","v":0},{"$f":"IF(WorkingR!$B56=\"All other giving/voluntary receipts\",WorkingR!N56,\"\")","v":0},{"$f":"IF(WorkingR!$B56=\"All other giving/voluntary receipts\",WorkingR!O56,\"\")","v":0},{"$f":"IF(WorkingR!$B56=\"All other giving/voluntary receipts\",WorkingR!P56,\"\")","v":0},{"$f":"IF(WorkingR!$B56=\"All other giving/voluntary receipts\",WorkingR!Q56,\"\")","v":0},{"$f":"IF(WorkingR!$B56=\"All other giving/voluntary receipts\",WorkingR!R56,\"\")","v":0},{"$f":"IF(WorkingR!$B56=\"All other giving/voluntary receipts\",WorkingR!S56,\"\")","v":0},{"$f":"IF(WorkingR!$B56=\"All other giving/voluntary receipts\",WorkingR!T56,\"\")","v":0},{"$f":"IF(WorkingR!$B56=\"All other giving/voluntary receipts\",WorkingR!U56,\"\")","v":0},{"$f":"IF(WorkingR!$B56=\"All other giving/voluntary receipts\",WorkingR!V56,\"\")","v":0},{"$f":"IF(WorkingR!$B56=\"All other giving/voluntary receipts\",WorkingR!W56,\"\")","v":0},{"$f":"IF(WorkingR!$B56=\"All other giving/voluntary receipts\",WorkingR!X56,\"\")","v":0},{"$f":"IF(WorkingR!$B56=\"All other giving/voluntary receipts\",WorkingR!Y56,\"\")","v":0},{"$f":"IF(Descriptions!D57=\"All other giving/voluntary receipts\",Descriptions!AA57,0)","v":0}]
[{"$f":"IF(Descriptions!D58=\"All other giving/voluntary receipts\",Descriptions!B58,0)","v":0},{"$f":"IF(WorkingR!$B57=\"All other giving/voluntary receipts\",WorkingR!D57,\"\")","v":0},{"$f":"IF(WorkingR!$B57=\"All other giving/voluntary receipts\",WorkingR!E57,\"\")","v":0},{"$f":"IF(WorkingR!$B57=\"All other giving/voluntary receipts\",WorkingR!F57,\"\")","v":0},{"$f":"IF(WorkingR!$B57=\"All other giving/voluntary receipts\",WorkingR!G57,\"\")","v":0},{"$f":"IF(WorkingR!$B57=\"All other giving/voluntary receipts\",WorkingR!H57,\"\")","v":0},{"$f":"IF(WorkingR!$B57=\"All other giving/voluntary receipts\",WorkingR!I57,\"\")","v":0},{"$f":"IF(WorkingR!$B57=\"All other giving/voluntary receipts\",WorkingR!J57,\"\")","v":0},{"$f":"IF(WorkingR!$B57=\"All other giving/voluntary receipts\",WorkingR!K57,\"\")","v":0},{"$f":"IF(WorkingR!$B57=\"All other giving/voluntary receipts\",WorkingR!L57,\"\")","v":0},{"$f":"IF(WorkingR!$B57=\"All other giving/voluntary receipts\",WorkingR!M57,\"\")","v":0},{"$f":"IF(WorkingR!$B57=\"All other giving/voluntary receipts\",WorkingR!N57,\"\")","v":0},{"$f":"IF(WorkingR!$B57=\"All other giving/voluntary receipts\",WorkingR!O57,\"\")","v":0},{"$f":"IF(WorkingR!$B57=\"All other giving/voluntary receipts\",WorkingR!P57,\"\")","v":0},{"$f":"IF(WorkingR!$B57=\"All other giving/voluntary receipts\",WorkingR!Q57,\"\")","v":0},{"$f":"IF(WorkingR!$B57=\"All other giving/voluntary receipts\",WorkingR!R57,\"\")","v":0},{"$f":"IF(WorkingR!$B57=\"All other giving/voluntary receipts\",WorkingR!S57,\"\")","v":0},{"$f":"IF(WorkingR!$B57=\"All other giving/voluntary receipts\",WorkingR!T57,\"\")","v":0},{"$f":"IF(WorkingR!$B57=\"All other giving/voluntary receipts\",WorkingR!U57,\"\")","v":0},{"$f":"IF(WorkingR!$B57=\"All other giving/voluntary receipts\",WorkingR!V57,\"\")","v":0},{"$f":"IF(WorkingR!$B57=\"All other giving/voluntary receipts\",WorkingR!W57,\"\")","v":0},{"$f":"IF(WorkingR!$B57=\"All other giving/voluntary receipts\",WorkingR!X57,\"\")","v":0},{"$f":"IF(WorkingR!$B57=\"All other giving/voluntary receipts\",WorkingR!Y57,\"\")","v":0},{"$f":"IF(Descriptions!D58=\"All other giving/voluntary receipts\",Descriptions!AA58,0)","v":0}]
[{"$f":"IF(Descriptions!D59=\"All other giving/voluntary receipts\",Descriptions!B59,0)","v":0},{"$f":"IF(WorkingR!$B58=\"All other giving/voluntary receipts\",WorkingR!D58,\"\")","v":0},{"$f":"IF(WorkingR!$B58=\"All other giving/voluntary receipts\",WorkingR!E58,\"\")","v":0},{"$f":"IF(WorkingR!$B58=\"All other giving/voluntary receipts\",WorkingR!F58,\"\")","v":0},{"$f":"IF(WorkingR!$B58=\"All other giving/voluntary receipts\",WorkingR!G58,\"\")","v":0},{"$f":"IF(WorkingR!$B58=\"All other giving/voluntary receipts\",WorkingR!H58,\"\")","v":0},{"$f":"IF(WorkingR!$B58=\"All other giving/voluntary receipts\",WorkingR!I58,\"\")","v":0},{"$f":"IF(WorkingR!$B58=\"All other giving/voluntary receipts\",WorkingR!J58,\"\")","v":0},{"$f":"IF(WorkingR!$B58=\"All other giving/voluntary receipts\",WorkingR!K58,\"\")","v":0},{"$f":"IF(WorkingR!$B58=\"All other giving/voluntary receipts\",WorkingR!L58,\"\")","v":0},{"$f":"IF(WorkingR!$B58=\"All other giving/voluntary receipts\",WorkingR!M58,\"\")","v":0},{"$f":"IF(WorkingR!$B58=\"All other giving/voluntary receipts\",WorkingR!N58,\"\")","v":0},{"$f":"IF(WorkingR!$B58=\"All other giving/voluntary receipts\",WorkingR!O58,\"\")","v":0},{"$f":"IF(WorkingR!$B58=\"All other giving/voluntary receipts\",WorkingR!P58,\"\")","v":0},{"$f":"IF(WorkingR!$B58=\"All other giving/voluntary receipts\",WorkingR!Q58,\"\")","v":0},{"$f":"IF(WorkingR!$B58=\"All other giving/voluntary receipts\",WorkingR!R58,\"\")","v":0},{"$f":"IF(WorkingR!$B58=\"All other giving/voluntary receipts\",WorkingR!S58,\"\")","v":0},{"$f":"IF(WorkingR!$B58=\"All other giving/voluntary receipts\",WorkingR!T58,\"\")","v":0},{"$f":"IF(WorkingR!$B58=\"All other giving/voluntary receipts\",WorkingR!U58,\"\")","v":0},{"$f":"IF(WorkingR!$B58=\"All other giving/voluntary receipts\",WorkingR!V58,\"\")","v":0},{"$f":"IF(WorkingR!$B58=\"All other giving/voluntary receipts\",WorkingR!W58,\"\")","v":0},{"$f":"IF(WorkingR!$B58=\"All other giving/voluntary receipts\",WorkingR!X58,\"\")","v":0},{"$f":"IF(WorkingR!$B58=\"All other giving/voluntary receipts\",WorkingR!Y58,\"\")","v":0},{"$f":"IF(Descriptions!D59=\"All other giving/voluntary receipts\",Descriptions!AA59,0)","v":0}]
[{"$f":"IF(Descriptions!D60=\"All other giving/voluntary receipts\",Descriptions!B60,0)","v":0},{"$f":"IF(WorkingR!$B59=\"All other giving/voluntary receipts\",WorkingR!D59,\"\")","v":0},{"$f":"IF(WorkingR!$B59=\"All other giving/voluntary receipts\",WorkingR!E59,\"\")","v":0},{"$f":"IF(WorkingR!$B59=\"All other giving/voluntary receipts\",WorkingR!F59,\"\")","v":0},{"$f":"IF(WorkingR!$B59=\"All other giving/voluntary receipts\",WorkingR!G59,\"\")","v":0},{"$f":"IF(WorkingR!$B59=\"All other giving/voluntary receipts\",WorkingR!H59,\"\")","v":0},{"$f":"IF(WorkingR!$B59=\"All other giving/voluntary receipts\",WorkingR!I59,\"\")","v":0},{"$f":"IF(WorkingR!$B59=\"All other giving/voluntary receipts\",WorkingR!J59,\"\")","v":0},{"$f":"IF(WorkingR!$B59=\"All other giving/voluntary receipts\",WorkingR!K59,\"\")","v":0},{"$f":"IF(WorkingR!$B59=\"All other giving/voluntary receipts\",WorkingR!L59,\"\")","v":0},{"$f":"IF(WorkingR!$B59=\"All other giving/voluntary receipts\",WorkingR!M59,\"\")","v":0},{"$f":"IF(WorkingR!$B59=\"All other giving/voluntary receipts\",WorkingR!N59,\"\")","v":0},{"$f":"IF(WorkingR!$B59=\"All other giving/voluntary receipts\",WorkingR!O59,\"\")","v":0},{"$f":"IF(WorkingR!$B59=\"All other giving/voluntary receipts\",WorkingR!P59,\"\")","v":0},{"$f":"IF(WorkingR!$B59=\"All other giving/voluntary receipts\",WorkingR!Q59,\"\")","v":0},{"$f":"IF(WorkingR!$B59=\"All other giving/voluntary receipts\",WorkingR!R59,\"\")","v":0},{"$f":"IF(WorkingR!$B59=\"All other giving/voluntary receipts\",WorkingR!S59,\"\")","v":0},{"$f":"IF(WorkingR!$B59=\"All other giving/voluntary receipts\",WorkingR!T59,\"\")","v":0},{"$f":"IF(WorkingR!$B59=\"All other giving/voluntary receipts\",WorkingR!U59,\"\")","v":0},{"$f":"IF(WorkingR!$B59=\"All other giving/voluntary receipts\",WorkingR!V59,\"\")","v":0},{"$f":"IF(WorkingR!$B59=\"All other giving/voluntary receipts\",WorkingR!W59,\"\")","v":0},{"$f":"IF(WorkingR!$B59=\"All other giving/voluntary receipts\",WorkingR!X59,\"\")","v":0},{"$f":"IF(WorkingR!$B59=\"All other giving/voluntary receipts\",WorkingR!Y59,\"\")","v":0},{"$f":"IF(Descriptions!D60=\"All other giving/voluntary receipts\",Descriptions!AA60,0)","v":0}]
[{"$f":"IF(Descriptions!D61=\"All other giving/voluntary receipts\",Descriptions!B61,0)","v":0},{"$f":"IF(WorkingR!$B60=\"All other giving/voluntary receipts\",WorkingR!D60,\"\")","v":0},{"$f":"IF(WorkingR!$B60=\"All other giving/voluntary receipts\",WorkingR!E60,\"\")","v":0},{"$f":"IF(WorkingR!$B60=\"All other giving/voluntary receipts\",WorkingR!F60,\"\")","v":0},{"$f":"IF(WorkingR!$B60=\"All other giving/voluntary receipts\",WorkingR!G60,\"\")","v":0},{"$f":"IF(WorkingR!$B60=\"All other giving/voluntary receipts\",WorkingR!H60,\"\")","v":0},{"$f":"IF(WorkingR!$B60=\"All other giving/voluntary receipts\",WorkingR!I60,\"\")","v":0},{"$f":"IF(WorkingR!$B60=\"All other giving/voluntary receipts\",WorkingR!J60,\"\")","v":0},{"$f":"IF(WorkingR!$B60=\"All other giving/voluntary receipts\",WorkingR!K60,\"\")","v":0},{"$f":"IF(WorkingR!$B60=\"All other giving/voluntary receipts\",WorkingR!L60,\"\")","v":0},{"$f":"IF(WorkingR!$B60=\"All other giving/voluntary receipts\",WorkingR!M60,\"\")","v":0},{"$f":"IF(WorkingR!$B60=\"All other giving/voluntary receipts\",WorkingR!N60,\"\")","v":0},{"$f":"IF(WorkingR!$B60=\"All other giving/voluntary receipts\",WorkingR!O60,\"\")","v":0},{"$f":"IF(WorkingR!$B60=\"All other giving/voluntary receipts\",WorkingR!P60,\"\")","v":0},{"$f":"IF(WorkingR!$B60=\"All other giving/voluntary receipts\",WorkingR!Q60,\"\")","v":0},{"$f":"IF(WorkingR!$B60=\"All other giving/voluntary receipts\",WorkingR!R60,\"\")","v":0},{"$f":"IF(WorkingR!$B60=\"All other giving/voluntary receipts\",WorkingR!S60,\"\")","v":0},{"$f":"IF(WorkingR!$B60=\"All other giving/voluntary receipts\",WorkingR!T60,\"\")","v":0},{"$f":"IF(WorkingR!$B60=\"All other giving/voluntary receipts\",WorkingR!U60,\"\")","v":0},{"$f":"IF(WorkingR!$B60=\"All other giving/voluntary receipts\",WorkingR!V60,\"\")","v":0},{"$f":"IF(WorkingR!$B60=\"All other giving/voluntary receipts\",WorkingR!W60,\"\")","v":0},{"$f":"IF(WorkingR!$B60=\"All other giving/voluntary receipts\",WorkingR!X60,\"\")","v":0},{"$f":"IF(WorkingR!$B60=\"All other giving/voluntary receipts\",WorkingR!Y60,\"\")","v":0},{"$f":"IF(Descriptions!D61=\"All other giving/voluntary receipts\",Descriptions!AA61,0)","v":0}]
[{"$f":"IF(Descriptions!D62=\"All other giving/voluntary receipts\",Descriptions!B62,0)","v":0},{"$f":"IF(WorkingR!$B61=\"All other giving/voluntary receipts\",WorkingR!D61,\"\")","v":0},{"$f":"IF(WorkingR!$B61=\"All other giving/voluntary receipts\",WorkingR!E61,\"\")","v":0},{"$f":"IF(WorkingR!$B61=\"All other giving/voluntary receipts\",WorkingR!F61,\"\")","v":0},{"$f":"IF(WorkingR!$B61=\"All other giving/voluntary receipts\",WorkingR!G61,\"\")","v":0},{"$f":"IF(WorkingR!$B61=\"All other giving/voluntary receipts\",WorkingR!H61,\"\")","v":0},{"$f":"IF(WorkingR!$B61=\"All other giving/voluntary receipts\",WorkingR!I61,\"\")","v":0},{"$f":"IF(WorkingR!$B61=\"All other giving/voluntary receipts\",WorkingR!J61,\"\")","v":0},{"$f":"IF(WorkingR!$B61=\"All other giving/voluntary receipts\",WorkingR!K61,\"\")","v":0},{"$f":"IF(WorkingR!$B61=\"All other giving/voluntary receipts\",WorkingR!L61,\"\")","v":0},{"$f":"IF(WorkingR!$B61=\"All other giving/voluntary receipts\",WorkingR!M61,\"\")","v":0},{"$f":"IF(WorkingR!$B61=\"All other giving/voluntary receipts\",WorkingR!N61,\"\")","v":0},{"$f":"IF(WorkingR!$B61=\"All other giving/voluntary receipts\",WorkingR!O61,\"\")","v":0},{"$f":"IF(WorkingR!$B61=\"All other giving/voluntary receipts\",WorkingR!P61,\"\")","v":0},{"$f":"IF(WorkingR!$B61=\"All other giving/voluntary receipts\",WorkingR!Q61,\"\")","v":0},{"$f":"IF(WorkingR!$B61=\"All other giving/voluntary receipts\",WorkingR!R61,\"\")","v":0},{"$f":"IF(WorkingR!$B61=\"All other giving/voluntary receipts\",WorkingR!S61,\"\")","v":0},{"$f":"IF(WorkingR!$B61=\"All other giving/voluntary receipts\",WorkingR!T61,\"\")","v":0},{"$f":"IF(WorkingR!$B61=\"All other giving/voluntary receipts\",WorkingR!U61,\"\")","v":0},{"$f":"IF(WorkingR!$B61=\"All other giving/voluntary receipts\",WorkingR!V61,\"\")","v":0},{"$f":"IF(WorkingR!$B61=\"All other giving/voluntary receipts\",WorkingR!W61,\"\")","v":0},{"$f":"IF(WorkingR!$B61=\"All other giving/voluntary receipts\",WorkingR!X61,\"\")","v":0},{"$f":"IF(WorkingR!$B61=\"All other giving/voluntary receipts\",WorkingR!Y61,\"\")","v":0},{"$f":"IF(Descriptions!D62=\"All other giving/voluntary receipts\",Descriptions!AA62,0)","v":0}]
[{"$f":"IF(Descriptions!D63=\"All other giving/voluntary receipts\",Descriptions!B63,0)","v":0},{"$f":"IF(WorkingR!$B62=\"All other giving/voluntary receipts\",WorkingR!D62,\"\")","v":0},{"$f":"IF(WorkingR!$B62=\"All other giving/voluntary receipts\",WorkingR!E62,\"\")","v":0},{"$f":"IF(WorkingR!$B62=\"All other giving/voluntary receipts\",WorkingR!F62,\"\")","v":0},{"$f":"IF(WorkingR!$B62=\"All other giving/voluntary receipts\",WorkingR!G62,\"\")","v":0},{"$f":"IF(WorkingR!$B62=\"All other giving/voluntary receipts\",WorkingR!H62,\"\")","v":0},{"$f":"IF(WorkingR!$B62=\"All other giving/voluntary receipts\",WorkingR!I62,\"\")","v":0},{"$f":"IF(WorkingR!$B62=\"All other giving/voluntary receipts\",WorkingR!J62,\"\")","v":0},{"$f":"IF(WorkingR!$B62=\"All other giving/voluntary receipts\",WorkingR!K62,\"\")","v":0},{"$f":"IF(WorkingR!$B62=\"All other giving/voluntary receipts\",WorkingR!L62,\"\")","v":0},{"$f":"IF(WorkingR!$B62=\"All other giving/voluntary receipts\",WorkingR!M62,\"\")","v":0},{"$f":"IF(WorkingR!$B62=\"All other giving/voluntary receipts\",WorkingR!N62,\"\")","v":0},{"$f":"IF(WorkingR!$B62=\"All other giving/voluntary receipts\",WorkingR!O62,\"\")","v":0},{"$f":"IF(WorkingR!$B62=\"All other giving/voluntary receipts\",WorkingR!P62,\"\")","v":0},{"$f":"IF(WorkingR!$B62=\"All other giving/voluntary receipts\",WorkingR!Q62,\"\")","v":0},{"$f":"IF(WorkingR!$B62=\"All other giving/voluntary receipts\",WorkingR!R62,\"\")","v":0},{"$f":"IF(WorkingR!$B62=\"All other giving/voluntary receipts\",WorkingR!S62,\"\")","v":0},{"$f":"IF(WorkingR!$B62=\"All other giving/voluntary receipts\",WorkingR!T62,\"\")","v":0},{"$f":"IF(WorkingR!$B62=\"All other giving/voluntary receipts\",WorkingR!U62,\"\")","v":0},{"$f":"IF(WorkingR!$B62=\"All other giving/voluntary receipts\",WorkingR!V62,\"\")","v":0},{"$f":"IF(WorkingR!$B62=\"All other giving/voluntary receipts\",WorkingR!W62,\"\")","v":0},{"$f":"IF(WorkingR!$B62=\"All other giving/voluntary receipts\",WorkingR!X62,\"\")","v":0},{"$f":"IF(WorkingR!$B62=\"All other giving/voluntary receipts\",WorkingR!Y62,\"\")","v":0},{"$f":"IF(Descriptions!D63=\"All other giving/voluntary receipts\",Descriptions!AA63,0)","v":0}]
[{"$f":"IF(Descriptions!D64=\"All other giving/voluntary receipts\",Descriptions!B64,0)","v":0},{"$f":"IF(WorkingR!$B63=\"All other giving/voluntary receipts\",WorkingR!D63,\"\")","v":0},{"$f":"IF(WorkingR!$B63=\"All other giving/voluntary receipts\",WorkingR!E63,\"\")","v":0},{"$f":"IF(WorkingR!$B63=\"All other giving/voluntary receipts\",WorkingR!F63,\"\")","v":0},{"$f":"IF(WorkingR!$B63=\"All other giving/voluntary receipts\",WorkingR!G63,\"\")","v":0},{"$f":"IF(WorkingR!$B63=\"All other giving/voluntary receipts\",WorkingR!H63,\"\")","v":0},{"$f":"IF(WorkingR!$B63=\"All other giving/voluntary receipts\",WorkingR!I63,\"\")","v":0},{"$f":"IF(WorkingR!$B63=\"All other giving/voluntary receipts\",WorkingR!J63,\"\")","v":0},{"$f":"IF(WorkingR!$B63=\"All other giving/voluntary receipts\",WorkingR!K63,\"\")","v":0},{"$f":"IF(WorkingR!$B63=\"All other giving/voluntary receipts\",WorkingR!L63,\"\")","v":0},{"$f":"IF(WorkingR!$B63=\"All other giving/voluntary receipts\",WorkingR!M63,\"\")","v":0},{"$f":"IF(WorkingR!$B63=\"All other giving/voluntary receipts\",WorkingR!N63,\"\")","v":0},{"$f":"IF(WorkingR!$B63=\"All other giving/voluntary receipts\",WorkingR!O63,\"\")","v":0},{"$f":"IF(WorkingR!$B63=\"All other giving/voluntary receipts\",WorkingR!P63,\"\")","v":0},{"$f":"IF(WorkingR!$B63=\"All other giving/voluntary receipts\",WorkingR!Q63,\"\")","v":0},{"$f":"IF(WorkingR!$B63=\"All other giving/voluntary receipts\",WorkingR!R63,\"\")","v":0},{"$f":"IF(WorkingR!$B63=\"All other giving/voluntary receipts\",WorkingR!S63,\"\")","v":0},{"$f":"IF(WorkingR!$B63=\"All other giving/voluntary receipts\",WorkingR!T63,\"\")","v":0},{"$f":"IF(WorkingR!$B63=\"All other giving/voluntary receipts\",WorkingR!U63,\"\")","v":0},{"$f":"IF(WorkingR!$B63=\"All other giving/voluntary receipts\",WorkingR!V63,\"\")","v":0},{"$f":"IF(WorkingR!$B63=\"All other giving/voluntary receipts\",WorkingR!W63,\"\")","v":0},{"$f":"IF(WorkingR!$B63=\"All other giving/voluntary receipts\",WorkingR!X63,\"\")","v":0},{"$f":"IF(WorkingR!$B63=\"All other giving/voluntary receipts\",WorkingR!Y63,\"\")","v":0},{"$f":"IF(Descriptions!D64=\"All other giving/voluntary receipts\",Descriptions!AA64,0)","v":0}]
[{"$f":"IF(Descriptions!D65=\"All other giving/voluntary receipts\",Descriptions!B65,0)","v":0},{"$f":"IF(WorkingR!$B64=\"All other giving/voluntary receipts\",WorkingR!D64,\"\")","v":0},{"$f":"IF(WorkingR!$B64=\"All other giving/voluntary receipts\",WorkingR!E64,\"\")","v":0},{"$f":"IF(WorkingR!$B64=\"All other giving/voluntary receipts\",WorkingR!F64,\"\")","v":0},{"$f":"IF(WorkingR!$B64=\"All other giving/voluntary receipts\",WorkingR!G64,\"\")","v":0},{"$f":"IF(WorkingR!$B64=\"All other giving/voluntary receipts\",WorkingR!H64,\"\")","v":0},{"$f":"IF(WorkingR!$B64=\"All other giving/voluntary receipts\",WorkingR!I64,\"\")","v":0},{"$f":"IF(WorkingR!$B64=\"All other giving/voluntary receipts\",WorkingR!J64,\"\")","v":0},{"$f":"IF(WorkingR!$B64=\"All other giving/voluntary receipts\",WorkingR!K64,\"\")","v":0},{"$f":"IF(WorkingR!$B64=\"All other giving/voluntary receipts\",WorkingR!L64,\"\")","v":0},{"$f":"IF(WorkingR!$B64=\"All other giving/voluntary receipts\",WorkingR!M64,\"\")","v":0},{"$f":"IF(WorkingR!$B64=\"All other giving/voluntary receipts\",WorkingR!N64,\"\")","v":0},{"$f":"IF(WorkingR!$B64=\"All other giving/voluntary receipts\",WorkingR!O64,\"\")","v":0},{"$f":"IF(WorkingR!$B64=\"All other giving/voluntary receipts\",WorkingR!P64,\"\")","v":0},{"$f":"IF(WorkingR!$B64=\"All other giving/voluntary receipts\",WorkingR!Q64,\"\")","v":0},{"$f":"IF(WorkingR!$B64=\"All other giving/voluntary receipts\",WorkingR!R64,\"\")","v":0},{"$f":"IF(WorkingR!$B64=\"All other giving/voluntary receipts\",WorkingR!S64,\"\")","v":0},{"$f":"IF(WorkingR!$B64=\"All other giving/voluntary receipts\",WorkingR!T64,\"\")","v":0},{"$f":"IF(WorkingR!$B64=\"All other giving/voluntary receipts\",WorkingR!U64,\"\")","v":0},{"$f":"IF(WorkingR!$B64=\"All other giving/voluntary receipts\",WorkingR!V64,\"\")","v":0},{"$f":"IF(WorkingR!$B64=\"All other giving/voluntary receipts\",WorkingR!W64,\"\")","v":0},{"$f":"IF(WorkingR!$B64=\"All other giving/voluntary receipts\",WorkingR!X64,\"\")","v":0},{"$f":"IF(WorkingR!$B64=\"All other giving/voluntary receipts\",WorkingR!Y64,\"\")","v":0},{"$f":"IF(Descriptions!D65=\"All other giving/voluntary receipts\",Descriptions!AA65,0)","v":0}]
[{"$f":"IF(Descriptions!D66=\"All other giving/voluntary receipts\",Descriptions!B66,0)","v":0},{"$f":"IF(WorkingR!$B65=\"All other giving/voluntary receipts\",WorkingR!D65,\"\")","v":0},{"$f":"IF(WorkingR!$B65=\"All other giving/voluntary receipts\",WorkingR!E65,\"\")","v":0},{"$f":"IF(WorkingR!$B65=\"All other giving/voluntary receipts\",WorkingR!F65,\"\")","v":0},{"$f":"IF(WorkingR!$B65=\"All other giving/voluntary receipts\",WorkingR!G65,\"\")","v":0},{"$f":"IF(WorkingR!$B65=\"All other giving/voluntary receipts\",WorkingR!H65,\"\")","v":0},{"$f":"IF(WorkingR!$B65=\"All other giving/voluntary receipts\",WorkingR!I65,\"\")","v":0},{"$f":"IF(WorkingR!$B65=\"All other giving/voluntary receipts\",WorkingR!J65,\"\")","v":0},{"$f":"IF(WorkingR!$B65=\"All other giving/voluntary receipts\",WorkingR!K65,\"\")","v":0},{"$f":"IF(WorkingR!$B65=\"All other giving/voluntary receipts\",WorkingR!L65,\"\")","v":0},{"$f":"IF(WorkingR!$B65=\"All other giving/voluntary receipts\",WorkingR!M65,\"\")","v":0},{"$f":"IF(WorkingR!$B65=\"All other giving/voluntary receipts\",WorkingR!N65,\"\")","v":0},{"$f":"IF(WorkingR!$B65=\"All other giving/voluntary receipts\",WorkingR!O65,\"\")","v":0},{"$f":"IF(WorkingR!$B65=\"All other giving/voluntary receipts\",WorkingR!P65,\"\")","v":0},{"$f":"IF(WorkingR!$B65=\"All other giving/voluntary receipts\",WorkingR!Q65,\"\")","v":0},{"$f":"IF(WorkingR!$B65=\"All other giving/voluntary receipts\",WorkingR!R65,\"\")","v":0},{"$f":"IF(WorkingR!$B65=\"All other giving/voluntary receipts\",WorkingR!S65,\"\")","v":0},{"$f":"IF(WorkingR!$B65=\"All other giving/voluntary receipts\",WorkingR!T65,\"\")","v":0},{"$f":"IF(WorkingR!$B65=\"All other giving/voluntary receipts\",WorkingR!U65,\"\")","v":0},{"$f":"IF(WorkingR!$B65=\"All other giving/voluntary receipts\",WorkingR!V65,\"\")","v":0},{"$f":"IF(WorkingR!$B65=\"All other giving/voluntary receipts\",WorkingR!W65,\"\")","v":0},{"$f":"IF(WorkingR!$B65=\"All other giving/voluntary receipts\",WorkingR!X65,\"\")","v":0},{"$f":"IF(WorkingR!$B65=\"All other giving/voluntary receipts\",WorkingR!Y65,\"\")","v":0},{"$f":"IF(Descriptions!D66=\"All other giving/voluntary receipts\",Descriptions!AA66,0)","v":0}]
[{"$f":"IF(Descriptions!D67=\"All other giving/voluntary receipts\",Descriptions!B67,0)","v":0},{"$f":"IF(WorkingR!$B66=\"All other giving/voluntary receipts\",WorkingR!D66,\"\")","v":0},{"$f":"IF(WorkingR!$B66=\"All other giving/voluntary receipts\",WorkingR!E66,\"\")","v":0},{"$f":"IF(WorkingR!$B66=\"All other giving/voluntary receipts\",WorkingR!F66,\"\")","v":0},{"$f":"IF(WorkingR!$B66=\"All other giving/voluntary receipts\",WorkingR!G66,\"\")","v":0},{"$f":"IF(WorkingR!$B66=\"All other giving/voluntary receipts\",WorkingR!H66,\"\")","v":0},{"$f":"IF(WorkingR!$B66=\"All other giving/voluntary receipts\",WorkingR!I66,\"\")","v":0},{"$f":"IF(WorkingR!$B66=\"All other giving/voluntary receipts\",WorkingR!J66,\"\")","v":0},{"$f":"IF(WorkingR!$B66=\"All other giving/voluntary receipts\",WorkingR!K66,\"\")","v":0},{"$f":"IF(WorkingR!$B66=\"All other giving/voluntary receipts\",WorkingR!L66,\"\")","v":0},{"$f":"IF(WorkingR!$B66=\"All other giving/voluntary receipts\",WorkingR!M66,\"\")","v":0},{"$f":"IF(WorkingR!$B66=\"All other giving/voluntary receipts\",WorkingR!N66,\"\")","v":0},{"$f":"IF(WorkingR!$B66=\"All other giving/voluntary receipts\",WorkingR!O66,\"\")","v":0},{"$f":"IF(WorkingR!$B66=\"All other giving/voluntary receipts\",WorkingR!P66,\"\")","v":0},{"$f":"IF(WorkingR!$B66=\"All other giving/voluntary receipts\",WorkingR!Q66,\"\")","v":0},{"$f":"IF(WorkingR!$B66=\"All other giving/voluntary receipts\",WorkingR!R66,\"\")","v":0},{"$f":"IF(WorkingR!$B66=\"All other giving/voluntary receipts\",WorkingR!S66,\"\")","v":0},{"$f":"IF(WorkingR!$B66=\"All other giving/voluntary receipts\",WorkingR!T66,\"\")","v":0},{"$f":"IF(WorkingR!$B66=\"All other giving/voluntary receipts\",WorkingR!U66,\"\")","v":0},{"$f":"IF(WorkingR!$B66=\"All other giving/voluntary receipts\",WorkingR!V66,\"\")","v":0},{"$f":"IF(WorkingR!$B66=\"All other giving/voluntary receipts\",WorkingR!W66,\"\")","v":0},{"$f":"IF(WorkingR!$B66=\"All other giving/voluntary receipts\",WorkingR!X66,\"\")","v":0},{"$f":"IF(WorkingR!$B66=\"All other giving/voluntary receipts\",WorkingR!Y66,\"\")","v":0},{"$f":"IF(Descriptions!D67=\"All other giving/voluntary receipts\",Descriptions!AA67,0)","v":0}]
[{"$f":"IF(Descriptions!D68=\"All other giving/voluntary receipts\",Descriptions!B68,0)","v":0},{"$f":"IF(WorkingR!$B67=\"All other giving/voluntary receipts\",WorkingR!D67,\"\")","v":0},{"$f":"IF(WorkingR!$B67=\"All other giving/voluntary receipts\",WorkingR!E67,\"\")","v":0},{"$f":"IF(WorkingR!$B67=\"All other giving/voluntary receipts\",WorkingR!F67,\"\")","v":0},{"$f":"IF(WorkingR!$B67=\"All other giving/voluntary receipts\",WorkingR!G67,\"\")","v":0},{"$f":"IF(WorkingR!$B67=\"All other giving/voluntary receipts\",WorkingR!H67,\"\")","v":0},{"$f":"IF(WorkingR!$B67=\"All other giving/voluntary receipts\",WorkingR!I67,\"\")","v":0},{"$f":"IF(WorkingR!$B67=\"All other giving/voluntary receipts\",WorkingR!J67,\"\")","v":0},{"$f":"IF(WorkingR!$B67=\"All other giving/voluntary receipts\",WorkingR!K67,\"\")","v":0},{"$f":"IF(WorkingR!$B67=\"All other giving/voluntary receipts\",WorkingR!L67,\"\")","v":0},{"$f":"IF(WorkingR!$B67=\"All other giving/voluntary receipts\",WorkingR!M67,\"\")","v":0},{"$f":"IF(WorkingR!$B67=\"All other giving/voluntary receipts\",WorkingR!N67,\"\")","v":0},{"$f":"IF(WorkingR!$B67=\"All other giving/voluntary receipts\",WorkingR!O67,\"\")","v":0},{"$f":"IF(WorkingR!$B67=\"All other giving/voluntary receipts\",WorkingR!P67,\"\")","v":0},{"$f":"IF(WorkingR!$B67=\"All other giving/voluntary receipts\",WorkingR!Q67,\"\")","v":0},{"$f":"IF(WorkingR!$B67=\"All other giving/voluntary receipts\",WorkingR!R67,\"\")","v":0},{"$f":"IF(WorkingR!$B67=\"All other giving/voluntary receipts\",WorkingR!S67,\"\")","v":0},{"$f":"IF(WorkingR!$B67=\"All other giving/voluntary receipts\",WorkingR!T67,\"\")","v":0},{"$f":"IF(WorkingR!$B67=\"All other giving/voluntary receipts\",WorkingR!U67,\"\")","v":0},{"$f":"IF(WorkingR!$B67=\"All other giving/voluntary receipts\",WorkingR!V67,\"\")","v":0},{"$f":"IF(WorkingR!$B67=\"All other giving/voluntary receipts\",WorkingR!W67,\"\")","v":0},{"$f":"IF(WorkingR!$B67=\"All other giving/voluntary receipts\",WorkingR!X67,\"\")","v":0},{"$f":"IF(WorkingR!$B67=\"All other giving/voluntary receipts\",WorkingR!Y67,\"\")","v":0},{"$f":"IF(Descriptions!D68=\"All other giving/voluntary receipts\",Descriptions!AA68,0)","v":0}]
[{"$f":"IF(Descriptions!D69=\"All other giving/voluntary receipts\",Descriptions!B69,0)","v":0},{"$f":"IF(WorkingR!$B68=\"All other giving/voluntary receipts\",WorkingR!D68,\"\")","v":0},{"$f":"IF(WorkingR!$B68=\"All other giving/voluntary receipts\",WorkingR!E68,\"\")","v":0},{"$f":"IF(WorkingR!$B68=\"All other giving/voluntary receipts\",WorkingR!F68,\"\")","v":0},{"$f":"IF(WorkingR!$B68=\"All other giving/voluntary receipts\",WorkingR!G68,\"\")","v":0},{"$f":"IF(WorkingR!$B68=\"All other giving/voluntary receipts\",WorkingR!H68,\"\")","v":0},{"$f":"IF(WorkingR!$B68=\"All other giving/voluntary receipts\",WorkingR!I68,\"\")","v":0},{"$f":"IF(WorkingR!$B68=\"All other giving/voluntary receipts\",WorkingR!J68,\"\")","v":0},{"$f":"IF(WorkingR!$B68=\"All other giving/voluntary receipts\",WorkingR!K68,\"\")","v":0},{"$f":"IF(WorkingR!$B68=\"All other giving/voluntary receipts\",WorkingR!L68,\"\")","v":0},{"$f":"IF(WorkingR!$B68=\"All other giving/voluntary receipts\",WorkingR!M68,\"\")","v":0},{"$f":"IF(WorkingR!$B68=\"All other giving/voluntary receipts\",WorkingR!N68,\"\")","v":0},{"$f":"IF(WorkingR!$B68=\"All other giving/voluntary receipts\",WorkingR!O68,\"\")","v":0},{"$f":"IF(WorkingR!$B68=\"All other giving/voluntary receipts\",WorkingR!P68,\"\")","v":0},{"$f":"IF(WorkingR!$B68=\"All other giving/voluntary receipts\",WorkingR!Q68,\"\")","v":0},{"$f":"IF(WorkingR!$B68=\"All other giving/voluntary receipts\",WorkingR!R68,\"\")","v":0},{"$f":"IF(WorkingR!$B68=\"All other giving/voluntary receipts\",WorkingR!S68,\"\")","v":0},{"$f":"IF(WorkingR!$B68=\"All other giving/voluntary receipts\",WorkingR!T68,\"\")","v":0},{"$f":"IF(WorkingR!$B68=\"All other giving/voluntary receipts\",WorkingR!U68,\"\")","v":0},{"$f":"IF(WorkingR!$B68=\"All other giving/voluntary receipts\",WorkingR!V68,\"\")","v":0},{"$f":"IF(WorkingR!$B68=\"All other giving/voluntary receipts\",WorkingR!W68,\"\")","v":0},{"$f":"IF(WorkingR!$B68=\"All other giving/voluntary receipts\",WorkingR!X68,\"\")","v":0},{"$f":"IF(WorkingR!$B68=\"All other giving/voluntary receipts\",WorkingR!Y68,\"\")","v":0},{"$f":"IF(Descriptions!D69=\"All other giving/voluntary receipts\",Descriptions!AA69,0)","v":0}]
[{"$f":"IF(Descriptions!D70=\"All other giving/voluntary receipts\",Descriptions!B70,0)","v":0},{"$f":"IF(WorkingR!$B69=\"All other giving/voluntary receipts\",WorkingR!D69,\"\")","v":0},{"$f":"IF(WorkingR!$B69=\"All other giving/voluntary receipts\",WorkingR!E69,\"\")","v":0},{"$f":"IF(WorkingR!$B69=\"All other giving/voluntary receipts\",WorkingR!F69,\"\")","v":0},{"$f":"IF(WorkingR!$B69=\"All other giving/voluntary receipts\",WorkingR!G69,\"\")","v":0},{"$f":"IF(WorkingR!$B69=\"All other giving/voluntary receipts\",WorkingR!H69,\"\")","v":0},{"$f":"IF(WorkingR!$B69=\"All other giving/voluntary receipts\",WorkingR!I69,\"\")","v":0},{"$f":"IF(WorkingR!$B69=\"All other giving/voluntary receipts\",WorkingR!J69,\"\")","v":0},{"$f":"IF(WorkingR!$B69=\"All other giving/voluntary receipts\",WorkingR!K69,\"\")","v":0},{"$f":"IF(WorkingR!$B69=\"All other giving/voluntary receipts\",WorkingR!L69,\"\")","v":0},{"$f":"IF(WorkingR!$B69=\"All other giving/voluntary receipts\",WorkingR!M69,\"\")","v":0},{"$f":"IF(WorkingR!$B69=\"All other giving/voluntary receipts\",WorkingR!N69,\"\")","v":0},{"$f":"IF(WorkingR!$B69=\"All other giving/voluntary receipts\",WorkingR!O69,\"\")","v":0},{"$f":"IF(WorkingR!$B69=\"All other giving/voluntary receipts\",WorkingR!P69,\"\")","v":0},{"$f":"IF(WorkingR!$B69=\"All other giving/voluntary receipts\",WorkingR!Q69,\"\")","v":0},{"$f":"IF(WorkingR!$B69=\"All other giving/voluntary receipts\",WorkingR!R69,\"\")","v":0},{"$f":"IF(WorkingR!$B69=\"All other giving/voluntary receipts\",WorkingR!S69,\"\")","v":0},{"$f":"IF(WorkingR!$B69=\"All other giving/voluntary receipts\",WorkingR!T69,\"\")","v":0},{"$f":"IF(WorkingR!$B69=\"All other giving/voluntary receipts\",WorkingR!U69,\"\")","v":0},{"$f":"IF(WorkingR!$B69=\"All other giving/voluntary receipts\",WorkingR!V69,\"\")","v":0},{"$f":"IF(WorkingR!$B69=\"All other giving/voluntary receipts\",WorkingR!W69,\"\")","v":0},{"$f":"IF(WorkingR!$B69=\"All other giving/voluntary receipts\",WorkingR!X69,\"\")","v":0},{"$f":"IF(WorkingR!$B69=\"All other giving/voluntary receipts\",WorkingR!Y69,\"\")","v":0},{"$f":"IF(Descriptions!D70=\"All other giving/voluntary receipts\",Descriptions!AA70,0)","v":0}]
[{"$f":"IF(Descriptions!D71=\"All other giving/voluntary receipts\",Descriptions!B71,0)","v":0},{"$f":"IF(WorkingR!$B70=\"All other giving/voluntary receipts\",WorkingR!D70,\"\")","v":0},{"$f":"IF(WorkingR!$B70=\"All other giving/voluntary receipts\",WorkingR!E70,\"\")","v":0},{"$f":"IF(WorkingR!$B70=\"All other giving/voluntary receipts\",WorkingR!F70,\"\")","v":0},{"$f":"IF(WorkingR!$B70=\"All other giving/voluntary receipts\",WorkingR!G70,\"\")","v":0},{"$f":"IF(WorkingR!$B70=\"All other giving/voluntary receipts\",WorkingR!H70,\"\")","v":0},{"$f":"IF(WorkingR!$B70=\"All other giving/voluntary receipts\",WorkingR!I70,\"\")","v":0},{"$f":"IF(WorkingR!$B70=\"All other giving/voluntary receipts\",WorkingR!J70,\"\")","v":0},{"$f":"IF(WorkingR!$B70=\"All other giving/voluntary receipts\",WorkingR!K70,\"\")","v":0},{"$f":"IF(WorkingR!$B70=\"All other giving/voluntary receipts\",WorkingR!L70,\"\")","v":0},{"$f":"IF(WorkingR!$B70=\"All other giving/voluntary receipts\",WorkingR!M70,\"\")","v":0},{"$f":"IF(WorkingR!$B70=\"All other giving/voluntary receipts\",WorkingR!N70,\"\")","v":0},{"$f":"IF(WorkingR!$B70=\"All other giving/voluntary receipts\",WorkingR!O70,\"\")","v":0},{"$f":"IF(WorkingR!$B70=\"All other giving/voluntary receipts\",WorkingR!P70,\"\")","v":0},{"$f":"IF(WorkingR!$B70=\"All other giving/voluntary receipts\",WorkingR!Q70,\"\")","v":0},{"$f":"IF(WorkingR!$B70=\"All other giving/voluntary receipts\",WorkingR!R70,\"\")","v":0},{"$f":"IF(WorkingR!$B70=\"All other giving/voluntary receipts\",WorkingR!S70,\"\")","v":0},{"$f":"IF(WorkingR!$B70=\"All other giving/voluntary receipts\",WorkingR!T70,\"\")","v":0},{"$f":"IF(WorkingR!$B70=\"All other giving/voluntary receipts\",WorkingR!U70,\"\")","v":0},{"$f":"IF(WorkingR!$B70=\"All other giving/voluntary receipts\",WorkingR!V70,\"\")","v":0},{"$f":"IF(WorkingR!$B70=\"All other giving/voluntary receipts\",WorkingR!W70,\"\")","v":0},{"$f":"IF(WorkingR!$B70=\"All other giving/voluntary receipts\",WorkingR!X70,\"\")","v":0},{"$f":"IF(WorkingR!$B70=\"All other giving/voluntary receipts\",WorkingR!Y70,\"\")","v":0},{"$f":"IF(Descriptions!D71=\"All other giving/voluntary receipts\",Descriptions!AA71,0)","v":0}]
[{"$f":"IF(Descriptions!D72=\"All other giving/voluntary receipts\",Descriptions!B72,0)","v":0},{"$f":"IF(WorkingR!$B71=\"All other giving/voluntary receipts\",WorkingR!D71,\"\")","v":0},{"$f":"IF(WorkingR!$B71=\"All other giving/voluntary receipts\",WorkingR!E71,\"\")","v":0},{"$f":"IF(WorkingR!$B71=\"All other giving/voluntary receipts\",WorkingR!F71,\"\")","v":0},{"$f":"IF(WorkingR!$B71=\"All other giving/voluntary receipts\",WorkingR!G71,\"\")","v":0},{"$f":"IF(WorkingR!$B71=\"All other giving/voluntary receipts\",WorkingR!H71,\"\")","v":0},{"$f":"IF(WorkingR!$B71=\"All other giving/voluntary receipts\",WorkingR!I71,\"\")","v":0},{"$f":"IF(WorkingR!$B71=\"All other giving/voluntary receipts\",WorkingR!J71,\"\")","v":0},{"$f":"IF(WorkingR!$B71=\"All other giving/voluntary receipts\",WorkingR!K71,\"\")","v":0},{"$f":"IF(WorkingR!$B71=\"All other giving/voluntary receipts\",WorkingR!L71,\"\")","v":0},{"$f":"IF(WorkingR!$B71=\"All other giving/voluntary receipts\",WorkingR!M71,\"\")","v":0},{"$f":"IF(WorkingR!$B71=\"All other giving/voluntary receipts\",WorkingR!N71,\"\")","v":0},{"$f":"IF(WorkingR!$B71=\"All other giving/voluntary receipts\",WorkingR!O71,\"\")","v":0},{"$f":"IF(WorkingR!$B71=\"All other giving/voluntary receipts\",WorkingR!P71,\"\")","v":0},{"$f":"IF(WorkingR!$B71=\"All other giving/voluntary receipts\",WorkingR!Q71,\"\")","v":0},{"$f":"IF(WorkingR!$B71=\"All other giving/voluntary receipts\",WorkingR!R71,\"\")","v":0},{"$f":"IF(WorkingR!$B71=\"All other giving/voluntary receipts\",WorkingR!S71,\"\")","v":0},{"$f":"IF(WorkingR!$B71=\"All other giving/voluntary receipts\",WorkingR!T71,\"\")","v":0},{"$f":"IF(WorkingR!$B71=\"All other giving/voluntary receipts\",WorkingR!U71,\"\")","v":0},{"$f":"IF(WorkingR!$B71=\"All other giving/voluntary receipts\",WorkingR!V71,\"\")","v":0},{"$f":"IF(WorkingR!$B71=\"All other giving/voluntary receipts\",WorkingR!W71,\"\")","v":0},{"$f":"IF(WorkingR!$B71=\"All other giving/voluntary receipts\",WorkingR!X71,\"\")","v":0},{"$f":"IF(WorkingR!$B71=\"All other giving/voluntary receipts\",WorkingR!Y71,\"\")","v":0},{"$f":"IF(Descriptions!D72=\"All other giving/voluntary receipts\",Descriptions!AA72,0)","v":0}]
[{"$f":"IF(Descriptions!D73=\"All other giving/voluntary receipts\",Descriptions!B73,0)","v":0},{"$f":"IF(WorkingR!$B72=\"All other giving/voluntary receipts\",WorkingR!D72,\"\")","v":0},{"$f":"IF(WorkingR!$B72=\"All other giving/voluntary receipts\",WorkingR!E72,\"\")","v":0},{"$f":"IF(WorkingR!$B72=\"All other giving/voluntary receipts\",WorkingR!F72,\"\")","v":0},{"$f":"IF(WorkingR!$B72=\"All other giving/voluntary receipts\",WorkingR!G72,\"\")","v":0},{"$f":"IF(WorkingR!$B72=\"All other giving/voluntary receipts\",WorkingR!H72,\"\")","v":0},{"$f":"IF(WorkingR!$B72=\"All other giving/voluntary receipts\",WorkingR!I72,\"\")","v":0},{"$f":"IF(WorkingR!$B72=\"All other giving/voluntary receipts\",WorkingR!J72,\"\")","v":0},{"$f":"IF(WorkingR!$B72=\"All other giving/voluntary receipts\",WorkingR!K72,\"\")","v":0},{"$f":"IF(WorkingR!$B72=\"All other giving/voluntary receipts\",WorkingR!L72,\"\")","v":0},{"$f":"IF(WorkingR!$B72=\"All other giving/voluntary receipts\",WorkingR!M72,\"\")","v":0},{"$f":"IF(WorkingR!$B72=\"All other giving/voluntary receipts\",WorkingR!N72,\"\")","v":0},{"$f":"IF(WorkingR!$B72=\"All other giving/voluntary receipts\",WorkingR!O72,\"\")","v":0},{"$f":"IF(WorkingR!$B72=\"All other giving/voluntary receipts\",WorkingR!P72,\"\")","v":0},{"$f":"IF(WorkingR!$B72=\"All other giving/voluntary receipts\",WorkingR!Q72,\"\")","v":0},{"$f":"IF(WorkingR!$B72=\"All other giving/voluntary receipts\",WorkingR!R72,\"\")","v":0},{"$f":"IF(WorkingR!$B72=\"All other giving/voluntary receipts\",WorkingR!S72,\"\")","v":0},{"$f":"IF(WorkingR!$B72=\"All other giving/voluntary receipts\",WorkingR!T72,\"\")","v":0},{"$f":"IF(WorkingR!$B72=\"All other giving/voluntary receipts\",WorkingR!U72,\"\")","v":0},{"$f":"IF(WorkingR!$B72=\"All other giving/voluntary receipts\",WorkingR!V72,\"\")","v":0},{"$f":"IF(WorkingR!$B72=\"All other giving/voluntary receipts\",WorkingR!W72,\"\")","v":0},{"$f":"IF(WorkingR!$B72=\"All other giving/voluntary receipts\",WorkingR!X72,\"\")","v":0},{"$f":"IF(WorkingR!$B72=\"All other giving/voluntary receipts\",WorkingR!Y72,\"\")","v":0},{"$f":"IF(Descriptions!D73=\"All other giving/voluntary receipts\",Descriptions!AA73,0)","v":0}]
[{"$f":"IF(Descriptions!D74=\"All other giving/voluntary receipts\",Descriptions!B74,0)","v":0},{"$f":"IF(WorkingR!$B73=\"All other giving/voluntary receipts\",WorkingR!D73,\"\")","v":0},{"$f":"IF(WorkingR!$B73=\"All other giving/voluntary receipts\",WorkingR!E73,\"\")","v":0},{"$f":"IF(WorkingR!$B73=\"All other giving/voluntary receipts\",WorkingR!F73,\"\")","v":0},{"$f":"IF(WorkingR!$B73=\"All other giving/voluntary receipts\",WorkingR!G73,\"\")","v":0},{"$f":"IF(WorkingR!$B73=\"All other giving/voluntary receipts\",WorkingR!H73,\"\")","v":0},{"$f":"IF(WorkingR!$B73=\"All other giving/voluntary receipts\",WorkingR!I73,\"\")","v":0},{"$f":"IF(WorkingR!$B73=\"All other giving/voluntary receipts\",WorkingR!J73,\"\")","v":0},{"$f":"IF(WorkingR!$B73=\"All other giving/voluntary receipts\",WorkingR!K73,\"\")","v":0},{"$f":"IF(WorkingR!$B73=\"All other giving/voluntary receipts\",WorkingR!L73,\"\")","v":0},{"$f":"IF(WorkingR!$B73=\"All other giving/voluntary receipts\",WorkingR!M73,\"\")","v":0},{"$f":"IF(WorkingR!$B73=\"All other giving/voluntary receipts\",WorkingR!N73,\"\")","v":0},{"$f":"IF(WorkingR!$B73=\"All other giving/voluntary receipts\",WorkingR!O73,\"\")","v":0},{"$f":"IF(WorkingR!$B73=\"All other giving/voluntary receipts\",WorkingR!P73,\"\")","v":0},{"$f":"IF(WorkingR!$B73=\"All other giving/voluntary receipts\",WorkingR!Q73,\"\")","v":0},{"$f":"IF(WorkingR!$B73=\"All other giving/voluntary receipts\",WorkingR!R73,\"\")","v":0},{"$f":"IF(WorkingR!$B73=\"All other giving/voluntary receipts\",WorkingR!S73,\"\")","v":0},{"$f":"IF(WorkingR!$B73=\"All other giving/voluntary receipts\",WorkingR!T73,\"\")","v":0},{"$f":"IF(WorkingR!$B73=\"All other giving/voluntary receipts\",WorkingR!U73,\"\")","v":0},{"$f":"IF(WorkingR!$B73=\"All other giving/voluntary receipts\",WorkingR!V73,\"\")","v":0},{"$f":"IF(WorkingR!$B73=\"All other giving/voluntary receipts\",WorkingR!W73,\"\")","v":0},{"$f":"IF(WorkingR!$B73=\"All other giving/voluntary receipts\",WorkingR!X73,\"\")","v":0},{"$f":"IF(WorkingR!$B73=\"All other giving/voluntary receipts\",WorkingR!Y73,\"\")","v":0},{"$f":"IF(Descriptions!D74=\"All other giving/voluntary receipts\",Descriptions!AA74,0)","v":0}]
[{"$f":"IF(Descriptions!D75=\"All other giving/voluntary receipts\",Descriptions!B75,0)","v":0},{"$f":"IF(WorkingR!$B74=\"All other giving/voluntary receipts\",WorkingR!D74,\"\")","v":0},{"$f":"IF(WorkingR!$B74=\"All other giving/voluntary receipts\",WorkingR!E74,\"\")","v":0},{"$f":"IF(WorkingR!$B74=\"All other giving/voluntary receipts\",WorkingR!F74,\"\")","v":0},{"$f":"IF(WorkingR!$B74=\"All other giving/voluntary receipts\",WorkingR!G74,\"\")","v":0},{"$f":"IF(WorkingR!$B74=\"All other giving/voluntary receipts\",WorkingR!H74,\"\")","v":0},{"$f":"IF(WorkingR!$B74=\"All other giving/voluntary receipts\",WorkingR!I74,\"\")","v":0},{"$f":"IF(WorkingR!$B74=\"All other giving/voluntary receipts\",WorkingR!J74,\"\")","v":0},{"$f":"IF(WorkingR!$B74=\"All other giving/voluntary receipts\",WorkingR!K74,\"\")","v":0},{"$f":"IF(WorkingR!$B74=\"All other giving/voluntary receipts\",WorkingR!L74,\"\")","v":0},{"$f":"IF(WorkingR!$B74=\"All other giving/voluntary receipts\",WorkingR!M74,\"\")","v":0},{"$f":"IF(WorkingR!$B74=\"All other giving/voluntary receipts\",WorkingR!N74,\"\")","v":0},{"$f":"IF(WorkingR!$B74=\"All other giving/voluntary receipts\",WorkingR!O74,\"\")","v":0},{"$f":"IF(WorkingR!$B74=\"All other giving/voluntary receipts\",WorkingR!P74,\"\")","v":0},{"$f":"IF(WorkingR!$B74=\"All other giving/voluntary receipts\",WorkingR!Q74,\"\")","v":0},{"$f":"IF(WorkingR!$B74=\"All other giving/voluntary receipts\",WorkingR!R74,\"\")","v":0},{"$f":"IF(WorkingR!$B74=\"All other giving/voluntary receipts\",WorkingR!S74,\"\")","v":0},{"$f":"IF(WorkingR!$B74=\"All other giving/voluntary receipts\",WorkingR!T74,\"\")","v":0},{"$f":"IF(WorkingR!$B74=\"All other giving/voluntary receipts\",WorkingR!U74,\"\")","v":0},{"$f":"IF(WorkingR!$B74=\"All other giving/voluntary receipts\",WorkingR!V74,\"\")","v":0},{"$f":"IF(WorkingR!$B74=\"All other giving/voluntary receipts\",WorkingR!W74,\"\")","v":0},{"$f":"IF(WorkingR!$B74=\"All other giving/voluntary receipts\",WorkingR!X74,\"\")","v":0},{"$f":"IF(WorkingR!$B74=\"All other giving/voluntary receipts\",WorkingR!Y74,\"\")","v":0},{"$f":"IF(Descriptions!D75=\"All other giving/voluntary receipts\",Descriptions!AA75,0)","v":0}]
[{"$f":"IF(Descriptions!D76=\"All other giving/voluntary receipts\",Descriptions!B76,0)","v":0},{"$f":"IF(WorkingR!$B75=\"All other giving/voluntary receipts\",WorkingR!D75,\"\")","v":0},{"$f":"IF(WorkingR!$B75=\"All other giving/voluntary receipts\",WorkingR!E75,\"\")","v":0},{"$f":"IF(WorkingR!$B75=\"All other giving/voluntary receipts\",WorkingR!F75,\"\")","v":0},{"$f":"IF(WorkingR!$B75=\"All other giving/voluntary receipts\",WorkingR!G75,\"\")","v":0},{"$f":"IF(WorkingR!$B75=\"All other giving/voluntary receipts\",WorkingR!H75,\"\")","v":0},{"$f":"IF(WorkingR!$B75=\"All other giving/voluntary receipts\",WorkingR!I75,\"\")","v":0},{"$f":"IF(WorkingR!$B75=\"All other giving/voluntary receipts\",WorkingR!J75,\"\")","v":0},{"$f":"IF(WorkingR!$B75=\"All other giving/voluntary receipts\",WorkingR!K75,\"\")","v":0},{"$f":"IF(WorkingR!$B75=\"All other giving/voluntary receipts\",WorkingR!L75,\"\")","v":0},{"$f":"IF(WorkingR!$B75=\"All other giving/voluntary receipts\",WorkingR!M75,\"\")","v":0},{"$f":"IF(WorkingR!$B75=\"All other giving/voluntary receipts\",WorkingR!N75,\"\")","v":0},{"$f":"IF(WorkingR!$B75=\"All other giving/voluntary receipts\",WorkingR!O75,\"\")","v":0},{"$f":"IF(WorkingR!$B75=\"All other giving/voluntary receipts\",WorkingR!P75,\"\")","v":0},{"$f":"IF(WorkingR!$B75=\"All other giving/voluntary receipts\",WorkingR!Q75,\"\")","v":0},{"$f":"IF(WorkingR!$B75=\"All other giving/voluntary receipts\",WorkingR!R75,\"\")","v":0},{"$f":"IF(WorkingR!$B75=\"All other giving/voluntary receipts\",WorkingR!S75,\"\")","v":0},{"$f":"IF(WorkingR!$B75=\"All other giving/voluntary receipts\",WorkingR!T75,\"\")","v":0},{"$f":"IF(WorkingR!$B75=\"All other giving/voluntary receipts\",WorkingR!U75,\"\")","v":0},{"$f":"IF(WorkingR!$B75=\"All other giving/voluntary receipts\",WorkingR!V75,\"\")","v":0},{"$f":"IF(WorkingR!$B75=\"All other giving/voluntary receipts\",WorkingR!W75,\"\")","v":0},{"$f":"IF(WorkingR!$B75=\"All other giving/voluntary receipts\",WorkingR!X75,\"\")","v":0},{"$f":"IF(WorkingR!$B75=\"All other giving/voluntary receipts\",WorkingR!Y75,\"\")","v":0},{"$f":"IF(Descriptions!D76=\"All other giving/voluntary receipts\",Descriptions!AA76,0)","v":0}]
[{"$f":"IF(Descriptions!D77=\"All other giving/voluntary receipts\",Descriptions!B77,0)","v":0},{"$f":"IF(WorkingR!$B76=\"All other giving/voluntary receipts\",WorkingR!D76,\"\")","v":0},{"$f":"IF(WorkingR!$B76=\"All other giving/voluntary receipts\",WorkingR!E76,\"\")","v":0},{"$f":"IF(WorkingR!$B76=\"All other giving/voluntary receipts\",WorkingR!F76,\"\")","v":0},{"$f":"IF(WorkingR!$B76=\"All other giving/voluntary receipts\",WorkingR!G76,\"\")","v":0},{"$f":"IF(WorkingR!$B76=\"All other giving/voluntary receipts\",WorkingR!H76,\"\")","v":0},{"$f":"IF(WorkingR!$B76=\"All other giving/voluntary receipts\",WorkingR!I76,\"\")","v":0},{"$f":"IF(WorkingR!$B76=\"All other giving/voluntary receipts\",WorkingR!J76,\"\")","v":0},{"$f":"IF(WorkingR!$B76=\"All other giving/voluntary receipts\",WorkingR!K76,\"\")","v":0},{"$f":"IF(WorkingR!$B76=\"All other giving/voluntary receipts\",WorkingR!L76,\"\")","v":0},{"$f":"IF(WorkingR!$B76=\"All other giving/voluntary receipts\",WorkingR!M76,\"\")","v":0},{"$f":"IF(WorkingR!$B76=\"All other giving/voluntary receipts\",WorkingR!N76,\"\")","v":0},{"$f":"IF(WorkingR!$B76=\"All other giving/voluntary receipts\",WorkingR!O76,\"\")","v":0},{"$f":"IF(WorkingR!$B76=\"All other giving/voluntary receipts\",WorkingR!P76,\"\")","v":0},{"$f":"IF(WorkingR!$B76=\"All other giving/voluntary receipts\",WorkingR!Q76,\"\")","v":0},{"$f":"IF(WorkingR!$B76=\"All other giving/voluntary receipts\",WorkingR!R76,\"\")","v":0},{"$f":"IF(WorkingR!$B76=\"All other giving/voluntary receipts\",WorkingR!S76,\"\")","v":0},{"$f":"IF(WorkingR!$B76=\"All other giving/voluntary receipts\",WorkingR!T76,\"\")","v":0},{"$f":"IF(WorkingR!$B76=\"All other giving/voluntary receipts\",WorkingR!U76,\"\")","v":0},{"$f":"IF(WorkingR!$B76=\"All other giving/voluntary receipts\",WorkingR!V76,\"\")","v":0},{"$f":"IF(WorkingR!$B76=\"All other giving/voluntary receipts\",WorkingR!W76,\"\")","v":0},{"$f":"IF(WorkingR!$B76=\"All other giving/voluntary receipts\",WorkingR!X76,\"\")","v":0},{"$f":"IF(WorkingR!$B76=\"All other giving/voluntary receipts\",WorkingR!Y76,\"\")","v":0},{"$f":"IF(Descriptions!D77=\"All other giving/voluntary receipts\",Descriptions!AA77,0)","v":0}]
[{"$f":"IF(Descriptions!D78=\"All other giving/voluntary receipts\",Descriptions!B78,0)","v":0},{"$f":"IF(WorkingR!$B77=\"All other giving/voluntary receipts\",WorkingR!D77,\"\")","v":0},{"$f":"IF(WorkingR!$B77=\"All other giving/voluntary receipts\",WorkingR!E77,\"\")","v":0},{"$f":"IF(WorkingR!$B77=\"All other giving/voluntary receipts\",WorkingR!F77,\"\")","v":0},{"$f":"IF(WorkingR!$B77=\"All other giving/voluntary receipts\",WorkingR!G77,\"\")","v":0},{"$f":"IF(WorkingR!$B77=\"All other giving/voluntary receipts\",WorkingR!H77,\"\")","v":0},{"$f":"IF(WorkingR!$B77=\"All other giving/voluntary receipts\",WorkingR!I77,\"\")","v":0},{"$f":"IF(WorkingR!$B77=\"All other giving/voluntary receipts\",WorkingR!J77,\"\")","v":0},{"$f":"IF(WorkingR!$B77=\"All other giving/voluntary receipts\",WorkingR!K77,\"\")","v":0},{"$f":"IF(WorkingR!$B77=\"All other giving/voluntary receipts\",WorkingR!L77,\"\")","v":0},{"$f":"IF(WorkingR!$B77=\"All other giving/voluntary receipts\",WorkingR!M77,\"\")","v":0},{"$f":"IF(WorkingR!$B77=\"All other giving/voluntary receipts\",WorkingR!N77,\"\")","v":0},{"$f":"IF(WorkingR!$B77=\"All other giving/voluntary receipts\",WorkingR!O77,\"\")","v":0},{"$f":"IF(WorkingR!$B77=\"All other giving/voluntary receipts\",WorkingR!P77,\"\")","v":0},{"$f":"IF(WorkingR!$B77=\"All other giving/voluntary receipts\",WorkingR!Q77,\"\")","v":0},{"$f":"IF(WorkingR!$B77=\"All other giving/voluntary receipts\",WorkingR!R77,\"\")","v":0},{"$f":"IF(WorkingR!$B77=\"All other giving/voluntary receipts\",WorkingR!S77,\"\")","v":0},{"$f":"IF(WorkingR!$B77=\"All other giving/voluntary receipts\",WorkingR!T77,\"\")","v":0},{"$f":"IF(WorkingR!$B77=\"All other giving/voluntary receipts\",WorkingR!U77,\"\")","v":0},{"$f":"IF(WorkingR!$B77=\"All other giving/voluntary receipts\",WorkingR!V77,\"\")","v":0},{"$f":"IF(WorkingR!$B77=\"All other giving/voluntary receipts\",WorkingR!W77,\"\")","v":0},{"$f":"IF(WorkingR!$B77=\"All other giving/voluntary receipts\",WorkingR!X77,\"\")","v":0},{"$f":"IF(WorkingR!$B77=\"All other giving/voluntary receipts\",WorkingR!Y77,\"\")","v":0},{"$f":"IF(Descriptions!D78=\"All other giving/voluntary receipts\",Descriptions!AA78,0)","v":0}]
[{"$f":"IF(Descriptions!D79=\"All other giving/voluntary receipts\",Descriptions!B79,0)","v":0},{"$f":"IF(WorkingR!$B78=\"All other giving/voluntary receipts\",WorkingR!D78,\"\")","v":0},{"$f":"IF(WorkingR!$B78=\"All other giving/voluntary receipts\",WorkingR!E78,\"\")","v":0},{"$f":"IF(WorkingR!$B78=\"All other giving/voluntary receipts\",WorkingR!F78,\"\")","v":0},{"$f":"IF(WorkingR!$B78=\"All other giving/voluntary receipts\",WorkingR!G78,\"\")","v":0},{"$f":"IF(WorkingR!$B78=\"All other giving/voluntary receipts\",WorkingR!H78,\"\")","v":0},{"$f":"IF(WorkingR!$B78=\"All other giving/voluntary receipts\",WorkingR!I78,\"\")","v":0},{"$f":"IF(WorkingR!$B78=\"All other giving/voluntary receipts\",WorkingR!J78,\"\")","v":0},{"$f":"IF(WorkingR!$B78=\"All other giving/voluntary receipts\",WorkingR!K78,\"\")","v":0},{"$f":"IF(WorkingR!$B78=\"All other giving/voluntary receipts\",WorkingR!L78,\"\")","v":0},{"$f":"IF(WorkingR!$B78=\"All other giving/voluntary receipts\",WorkingR!M78,\"\")","v":0},{"$f":"IF(WorkingR!$B78=\"All other giving/voluntary receipts\",WorkingR!N78,\"\")","v":0},{"$f":"IF(WorkingR!$B78=\"All other giving/voluntary receipts\",WorkingR!O78,\"\")","v":0},{"$f":"IF(WorkingR!$B78=\"All other giving/voluntary receipts\",WorkingR!P78,\"\")","v":0},{"$f":"IF(WorkingR!$B78=\"All other giving/voluntary receipts\",WorkingR!Q78,\"\")","v":0},{"$f":"IF(WorkingR!$B78=\"All other giving/voluntary receipts\",WorkingR!R78,\"\")","v":0},{"$f":"IF(WorkingR!$B78=\"All other giving/voluntary receipts\",WorkingR!S78,\"\")","v":0},{"$f":"IF(WorkingR!$B78=\"All other giving/voluntary receipts\",WorkingR!T78,\"\")","v":0},{"$f":"IF(WorkingR!$B78=\"All other giving/voluntary receipts\",WorkingR!U78,\"\")","v":0},{"$f":"IF(WorkingR!$B78=\"All other giving/voluntary receipts\",WorkingR!V78,\"\")","v":0},{"$f":"IF(WorkingR!$B78=\"All other giving/voluntary receipts\",WorkingR!W78,\"\")","v":0},{"$f":"IF(WorkingR!$B78=\"All other giving/voluntary receipts\",WorkingR!X78,\"\")","v":0},{"$f":"IF(WorkingR!$B78=\"All other giving/voluntary receipts\",WorkingR!Y78,\"\")","v":0},{"$f":"IF(Descriptions!D79=\"All other giving/voluntary receipts\",Descriptions!AA79,0)","v":0}]
[{"$f":"IF(Descriptions!D80=\"All other giving/voluntary receipts\",Descriptions!B80,0)","v":0},{"$f":"IF(WorkingR!$B79=\"All other giving/voluntary receipts\",WorkingR!D79,\"\")","v":0},{"$f":"IF(WorkingR!$B79=\"All other giving/voluntary receipts\",WorkingR!E79,\"\")","v":0},{"$f":"IF(WorkingR!$B79=\"All other giving/voluntary receipts\",WorkingR!F79,\"\")","v":0},{"$f":"IF(WorkingR!$B79=\"All other giving/voluntary receipts\",WorkingR!G79,\"\")","v":0},{"$f":"IF(WorkingR!$B79=\"All other giving/voluntary receipts\",WorkingR!H79,\"\")","v":0},{"$f":"IF(WorkingR!$B79=\"All other giving/voluntary receipts\",WorkingR!I79,\"\")","v":0},{"$f":"IF(WorkingR!$B79=\"All other giving/voluntary receipts\",WorkingR!J79,\"\")","v":0},{"$f":"IF(WorkingR!$B79=\"All other giving/voluntary receipts\",WorkingR!K79,\"\")","v":0},{"$f":"IF(WorkingR!$B79=\"All other giving/voluntary receipts\",WorkingR!L79,\"\")","v":0},{"$f":"IF(WorkingR!$B79=\"All other giving/voluntary receipts\",WorkingR!M79,\"\")","v":0},{"$f":"IF(WorkingR!$B79=\"All other giving/voluntary receipts\",WorkingR!N79,\"\")","v":0},{"$f":"IF(WorkingR!$B79=\"All other giving/voluntary receipts\",WorkingR!O79,\"\")","v":0},{"$f":"IF(WorkingR!$B79=\"All other giving/voluntary receipts\",WorkingR!P79,\"\")","v":0},{"$f":"IF(WorkingR!$B79=\"All other giving/voluntary receipts\",WorkingR!Q79,\"\")","v":0},{"$f":"IF(WorkingR!$B79=\"All other giving/voluntary receipts\",WorkingR!R79,\"\")","v":0},{"$f":"IF(WorkingR!$B79=\"All other giving/voluntary receipts\",WorkingR!S79,\"\")","v":0},{"$f":"IF(WorkingR!$B79=\"All other giving/voluntary receipts\",WorkingR!T79,\"\")","v":0},{"$f":"IF(WorkingR!$B79=\"All other giving/voluntary receipts\",WorkingR!U79,\"\")","v":0},{"$f":"IF(WorkingR!$B79=\"All other giving/voluntary receipts\",WorkingR!V79,\"\")","v":0},{"$f":"IF(WorkingR!$B79=\"All other giving/voluntary receipts\",WorkingR!W79,\"\")","v":0},{"$f":"IF(WorkingR!$B79=\"All other giving/voluntary receipts\",WorkingR!X79,\"\")","v":0},{"$f":"IF(WorkingR!$B79=\"All other giving/voluntary receipts\",WorkingR!Y79,\"\")","v":0},{"$f":"IF(Descriptions!D80=\"All other giving/voluntary receipts\",Descriptions!AA80,0)","v":0}]
[{"$f":"IF(Descriptions!D81=\"All other giving/voluntary receipts\",Descriptions!B81,0)","v":0},{"$f":"IF(WorkingR!$B80=\"All other giving/voluntary receipts\",WorkingR!D80,\"\")","v":0},{"$f":"IF(WorkingR!$B80=\"All other giving/voluntary receipts\",WorkingR!E80,\"\")","v":0},{"$f":"IF(WorkingR!$B80=\"All other giving/voluntary receipts\",WorkingR!F80,\"\")","v":0},{"$f":"IF(WorkingR!$B80=\"All other giving/voluntary receipts\",WorkingR!G80,\"\")","v":0},{"$f":"IF(WorkingR!$B80=\"All other giving/voluntary receipts\",WorkingR!H80,\"\")","v":0},{"$f":"IF(WorkingR!$B80=\"All other giving/voluntary receipts\",WorkingR!I80,\"\")","v":0},{"$f":"IF(WorkingR!$B80=\"All other giving/voluntary receipts\",WorkingR!J80,\"\")","v":0},{"$f":"IF(WorkingR!$B80=\"All other giving/voluntary receipts\",WorkingR!K80,\"\")","v":0},{"$f":"IF(WorkingR!$B80=\"All other giving/voluntary receipts\",WorkingR!L80,\"\")","v":0},{"$f":"IF(WorkingR!$B80=\"All other giving/voluntary receipts\",WorkingR!M80,\"\")","v":0},{"$f":"IF(WorkingR!$B80=\"All other giving/voluntary receipts\",WorkingR!N80,\"\")","v":0},{"$f":"IF(WorkingR!$B80=\"All other giving/voluntary receipts\",WorkingR!O80,\"\")","v":0},{"$f":"IF(WorkingR!$B80=\"All other giving/voluntary receipts\",WorkingR!P80,\"\")","v":0},{"$f":"IF(WorkingR!$B80=\"All other giving/voluntary receipts\",WorkingR!Q80,\"\")","v":0},{"$f":"IF(WorkingR!$B80=\"All other giving/voluntary receipts\",WorkingR!R80,\"\")","v":0},{"$f":"IF(WorkingR!$B80=\"All other giving/voluntary receipts\",WorkingR!S80,\"\")","v":0},{"$f":"IF(WorkingR!$B80=\"All other giving/voluntary receipts\",WorkingR!T80,\"\")","v":0},{"$f":"IF(WorkingR!$B80=\"All other giving/voluntary receipts\",WorkingR!U80,\"\")","v":0},{"$f":"IF(WorkingR!$B80=\"All other giving/voluntary receipts\",WorkingR!V80,\"\")","v":0},{"$f":"IF(WorkingR!$B80=\"All other giving/voluntary receipts\",WorkingR!W80,\"\")","v":0},{"$f":"IF(WorkingR!$B80=\"All other giving/voluntary receipts\",WorkingR!X80,\"\")","v":0},{"$f":"IF(WorkingR!$B80=\"All other giving/voluntary receipts\",WorkingR!Y80,\"\")","v":0},{"$f":"IF(Descriptions!D81=\"All other giving/voluntary receipts\",Descriptions!AA81,0)","v":0}]
[{"$f":"IF(Descriptions!D82=\"All other giving/voluntary receipts\",Descriptions!B82,0)","v":0},{"$f":"IF(WorkingR!$B81=\"All other giving/voluntary receipts\",WorkingR!D81,\"\")","v":0},{"$f":"IF(WorkingR!$B81=\"All other giving/voluntary receipts\",WorkingR!E81,\"\")","v":0},{"$f":"IF(WorkingR!$B81=\"All other giving/voluntary receipts\",WorkingR!F81,\"\")","v":0},{"$f":"IF(WorkingR!$B81=\"All other giving/voluntary receipts\",WorkingR!G81,\"\")","v":0},{"$f":"IF(WorkingR!$B81=\"All other giving/voluntary receipts\",WorkingR!H81,\"\")","v":0},{"$f":"IF(WorkingR!$B81=\"All other giving/voluntary receipts\",WorkingR!I81,\"\")","v":0},{"$f":"IF(WorkingR!$B81=\"All other giving/voluntary receipts\",WorkingR!J81,\"\")","v":0},{"$f":"IF(WorkingR!$B81=\"All other giving/voluntary receipts\",WorkingR!K81,\"\")","v":0},{"$f":"IF(WorkingR!$B81=\"All other giving/voluntary receipts\",WorkingR!L81,\"\")","v":0},{"$f":"IF(WorkingR!$B81=\"All other giving/voluntary receipts\",WorkingR!M81,\"\")","v":0},{"$f":"IF(WorkingR!$B81=\"All other giving/voluntary receipts\",WorkingR!N81,\"\")","v":0},{"$f":"IF(WorkingR!$B81=\"All other giving/voluntary receipts\",WorkingR!O81,\"\")","v":0},{"$f":"IF(WorkingR!$B81=\"All other giving/voluntary receipts\",WorkingR!P81,\"\")","v":0},{"$f":"IF(WorkingR!$B81=\"All other giving/voluntary receipts\",WorkingR!Q81,\"\")","v":0},{"$f":"IF(WorkingR!$B81=\"All other giving/voluntary receipts\",WorkingR!R81,\"\")","v":0},{"$f":"IF(WorkingR!$B81=\"All other giving/voluntary receipts\",WorkingR!S81,\"\")","v":0},{"$f":"IF(WorkingR!$B81=\"All other giving/voluntary receipts\",WorkingR!T81,\"\")","v":0},{"$f":"IF(WorkingR!$B81=\"All other giving/voluntary receipts\",WorkingR!U81,\"\")","v":0},{"$f":"IF(WorkingR!$B81=\"All other giving/voluntary receipts\",WorkingR!V81,\"\")","v":0},{"$f":"IF(WorkingR!$B81=\"All other giving/voluntary receipts\",WorkingR!W81,\"\")","v":0},{"$f":"IF(WorkingR!$B81=\"All other giving/voluntary receipts\",WorkingR!X81,\"\")","v":0},{"$f":"IF(WorkingR!$B81=\"All other giving/voluntary receipts\",WorkingR!Y81,\"\")","v":0},{"$f":"IF(Descriptions!D82=\"All other giving/voluntary receipts\",Descriptions!AA82,0)","v":0}]
[{"$f":"IF(Descriptions!D83=\"All other giving/voluntary receipts\",Descriptions!B83,0)","v":0},{"$f":"IF(WorkingR!$B82=\"All other giving/voluntary receipts\",WorkingR!D82,\"\")","v":0},{"$f":"IF(WorkingR!$B82=\"All other giving/voluntary receipts\",WorkingR!E82,\"\")","v":0},{"$f":"IF(WorkingR!$B82=\"All other giving/voluntary receipts\",WorkingR!F82,\"\")","v":0},{"$f":"IF(WorkingR!$B82=\"All other giving/voluntary receipts\",WorkingR!G82,\"\")","v":0},{"$f":"IF(WorkingR!$B82=\"All other giving/voluntary receipts\",WorkingR!H82,\"\")","v":0},{"$f":"IF(WorkingR!$B82=\"All other giving/voluntary receipts\",WorkingR!I82,\"\")","v":0},{"$f":"IF(WorkingR!$B82=\"All other giving/voluntary receipts\",WorkingR!J82,\"\")","v":0},{"$f":"IF(WorkingR!$B82=\"All other giving/voluntary receipts\",WorkingR!K82,\"\")","v":0},{"$f":"IF(WorkingR!$B82=\"All other giving/voluntary receipts\",WorkingR!L82,\"\")","v":0},{"$f":"IF(WorkingR!$B82=\"All other giving/voluntary receipts\",WorkingR!M82,\"\")","v":0},{"$f":"IF(WorkingR!$B82=\"All other giving/voluntary receipts\",WorkingR!N82,\"\")","v":0},{"$f":"IF(WorkingR!$B82=\"All other giving/voluntary receipts\",WorkingR!O82,\"\")","v":0},{"$f":"IF(WorkingR!$B82=\"All other giving/voluntary receipts\",WorkingR!P82,\"\")","v":0},{"$f":"IF(WorkingR!$B82=\"All other giving/voluntary receipts\",WorkingR!Q82,\"\")","v":0},{"$f":"IF(WorkingR!$B82=\"All other giving/voluntary receipts\",WorkingR!R82,\"\")","v":0},{"$f":"IF(WorkingR!$B82=\"All other giving/voluntary receipts\",WorkingR!S82,\"\")","v":0},{"$f":"IF(WorkingR!$B82=\"All other giving/voluntary receipts\",WorkingR!T82,\"\")","v":0},{"$f":"IF(WorkingR!$B82=\"All other giving/voluntary receipts\",WorkingR!U82,\"\")","v":0},{"$f":"IF(WorkingR!$B82=\"All other giving/voluntary receipts\",WorkingR!V82,\"\")","v":0},{"$f":"IF(WorkingR!$B82=\"All other giving/voluntary receipts\",WorkingR!W82,\"\")","v":0},{"$f":"IF(WorkingR!$B82=\"All other giving/voluntary receipts\",WorkingR!X82,\"\")","v":0},{"$f":"IF(WorkingR!$B82=\"All other giving/voluntary receipts\",WorkingR!Y82,\"\")","v":0},{"$f":"IF(Descriptions!D83=\"All other giving/voluntary receipts\",Descriptions!AA83,0)","v":0}]
[{"$f":"IF(Descriptions!D84=\"All other giving/voluntary receipts\",Descriptions!B84,0)","v":0},{"$f":"IF(WorkingR!$B83=\"All other giving/voluntary receipts\",WorkingR!D83,\"\")","v":0},{"$f":"IF(WorkingR!$B83=\"All other giving/voluntary receipts\",WorkingR!E83,\"\")","v":0},{"$f":"IF(WorkingR!$B83=\"All other giving/voluntary receipts\",WorkingR!F83,\"\")","v":0},{"$f":"IF(WorkingR!$B83=\"All other giving/voluntary receipts\",WorkingR!G83,\"\")","v":0},{"$f":"IF(WorkingR!$B83=\"All other giving/voluntary receipts\",WorkingR!H83,\"\")","v":0},{"$f":"IF(WorkingR!$B83=\"All other giving/voluntary receipts\",WorkingR!I83,\"\")","v":0},{"$f":"IF(WorkingR!$B83=\"All other giving/voluntary receipts\",WorkingR!J83,\"\")","v":0},{"$f":"IF(WorkingR!$B83=\"All other giving/voluntary receipts\",WorkingR!K83,\"\")","v":0},{"$f":"IF(WorkingR!$B83=\"All other giving/voluntary receipts\",WorkingR!L83,\"\")","v":0},{"$f":"IF(WorkingR!$B83=\"All other giving/voluntary receipts\",WorkingR!M83,\"\")","v":0},{"$f":"IF(WorkingR!$B83=\"All other giving/voluntary receipts\",WorkingR!N83,\"\")","v":0},{"$f":"IF(WorkingR!$B83=\"All other giving/voluntary receipts\",WorkingR!O83,\"\")","v":0},{"$f":"IF(WorkingR!$B83=\"All other giving/voluntary receipts\",WorkingR!P83,\"\")","v":0},{"$f":"IF(WorkingR!$B83=\"All other giving/voluntary receipts\",WorkingR!Q83,\"\")","v":0},{"$f":"IF(WorkingR!$B83=\"All other giving/voluntary receipts\",WorkingR!R83,\"\")","v":0},{"$f":"IF(WorkingR!$B83=\"All other giving/voluntary receipts\",WorkingR!S83,\"\")","v":0},{"$f":"IF(WorkingR!$B83=\"All other giving/voluntary receipts\",WorkingR!T83,\"\")","v":0},{"$f":"IF(WorkingR!$B83=\"All other giving/voluntary receipts\",WorkingR!U83,\"\")","v":0},{"$f":"IF(WorkingR!$B83=\"All other giving/voluntary receipts\",WorkingR!V83,\"\")","v":0},{"$f":"IF(WorkingR!$B83=\"All other giving/voluntary receipts\",WorkingR!W83,\"\")","v":0},{"$f":"IF(WorkingR!$B83=\"All other giving/voluntary receipts\",WorkingR!X83,\"\")","v":0},{"$f":"IF(WorkingR!$B83=\"All other giving/voluntary receipts\",WorkingR!Y83,\"\")","v":0},{"$f":"IF(Descriptions!D84=\"All other giving/voluntary receipts\",Descriptions!AA84,0)","v":0}]
[{"$f":"IF(Descriptions!D85=\"All other giving/voluntary receipts\",Descriptions!B85,0)","v":0},{"$f":"IF(WorkingR!$B84=\"All other giving/voluntary receipts\",WorkingR!D84,\"\")","v":0},{"$f":"IF(WorkingR!$B84=\"All other giving/voluntary receipts\",WorkingR!E84,\"\")","v":0},{"$f":"IF(WorkingR!$B84=\"All other giving/voluntary receipts\",WorkingR!F84,\"\")","v":0},{"$f":"IF(WorkingR!$B84=\"All other giving/voluntary receipts\",WorkingR!G84,\"\")","v":0},{"$f":"IF(WorkingR!$B84=\"All other giving/voluntary receipts\",WorkingR!H84,\"\")","v":0},{"$f":"IF(WorkingR!$B84=\"All other giving/voluntary receipts\",WorkingR!I84,\"\")","v":0},{"$f":"IF(WorkingR!$B84=\"All other giving/voluntary receipts\",WorkingR!J84,\"\")","v":0},{"$f":"IF(WorkingR!$B84=\"All other giving/voluntary receipts\",WorkingR!K84,\"\")","v":0},{"$f":"IF(WorkingR!$B84=\"All other giving/voluntary receipts\",WorkingR!L84,\"\")","v":0},{"$f":"IF(WorkingR!$B84=\"All other giving/voluntary receipts\",WorkingR!M84,\"\")","v":0},{"$f":"IF(WorkingR!$B84=\"All other giving/voluntary receipts\",WorkingR!N84,\"\")","v":0},{"$f":"IF(WorkingR!$B84=\"All other giving/voluntary receipts\",WorkingR!O84,\"\")","v":0},{"$f":"IF(WorkingR!$B84=\"All other giving/voluntary receipts\",WorkingR!P84,\"\")","v":0},{"$f":"IF(WorkingR!$B84=\"All other giving/voluntary receipts\",WorkingR!Q84,\"\")","v":0},{"$f":"IF(WorkingR!$B84=\"All other giving/voluntary receipts\",WorkingR!R84,\"\")","v":0},{"$f":"IF(WorkingR!$B84=\"All other giving/voluntary receipts\",WorkingR!S84,\"\")","v":0},{"$f":"IF(WorkingR!$B84=\"All other giving/voluntary receipts\",WorkingR!T84,\"\")","v":0},{"$f":"IF(WorkingR!$B84=\"All other giving/voluntary receipts\",WorkingR!U84,\"\")","v":0},{"$f":"IF(WorkingR!$B84=\"All other giving/voluntary receipts\",WorkingR!V84,\"\")","v":0},{"$f":"IF(WorkingR!$B84=\"All other giving/voluntary receipts\",WorkingR!W84,\"\")","v":0},{"$f":"IF(WorkingR!$B84=\"All other giving/voluntary receipts\",WorkingR!X84,\"\")","v":0},{"$f":"IF(WorkingR!$B84=\"All other giving/voluntary receipts\",WorkingR!Y84,\"\")","v":0},{"$f":"IF(Descriptions!D85=\"All other giving/voluntary receipts\",Descriptions!AA85,0)","v":0}]
[{"$f":"IF(Descriptions!D86=\"All other giving/voluntary receipts\",Descriptions!B86,0)","v":0},{"$f":"IF(WorkingR!$B85=\"All other giving/voluntary receipts\",WorkingR!D85,\"\")","v":0},{"$f":"IF(WorkingR!$B85=\"All other giving/voluntary receipts\",WorkingR!E85,\"\")","v":0},{"$f":"IF(WorkingR!$B85=\"All other giving/voluntary receipts\",WorkingR!F85,\"\")","v":0},{"$f":"IF(WorkingR!$B85=\"All other giving/voluntary receipts\",WorkingR!G85,\"\")","v":0},{"$f":"IF(WorkingR!$B85=\"All other giving/voluntary receipts\",WorkingR!H85,\"\")","v":0},{"$f":"IF(WorkingR!$B85=\"All other giving/voluntary receipts\",WorkingR!I85,\"\")","v":0},{"$f":"IF(WorkingR!$B85=\"All other giving/voluntary receipts\",WorkingR!J85,\"\")","v":0},{"$f":"IF(WorkingR!$B85=\"All other giving/voluntary receipts\",WorkingR!K85,\"\")","v":0},{"$f":"IF(WorkingR!$B85=\"All other giving/voluntary receipts\",WorkingR!L85,\"\")","v":0},{"$f":"IF(WorkingR!$B85=\"All other giving/voluntary receipts\",WorkingR!M85,\"\")","v":0},{"$f":"IF(WorkingR!$B85=\"All other giving/voluntary receipts\",WorkingR!N85,\"\")","v":0},{"$f":"IF(WorkingR!$B85=\"All other giving/voluntary receipts\",WorkingR!O85,\"\")","v":0},{"$f":"IF(WorkingR!$B85=\"All other giving/voluntary receipts\",WorkingR!P85,\"\")","v":0},{"$f":"IF(WorkingR!$B85=\"All other giving/voluntary receipts\",WorkingR!Q85,\"\")","v":0},{"$f":"IF(WorkingR!$B85=\"All other giving/voluntary receipts\",WorkingR!R85,\"\")","v":0},{"$f":"IF(WorkingR!$B85=\"All other giving/voluntary receipts\",WorkingR!S85,\"\")","v":0},{"$f":"IF(WorkingR!$B85=\"All other giving/voluntary receipts\",WorkingR!T85,\"\")","v":0},{"$f":"IF(WorkingR!$B85=\"All other giving/voluntary receipts\",WorkingR!U85,\"\")","v":0},{"$f":"IF(WorkingR!$B85=\"All other giving/voluntary receipts\",WorkingR!V85,\"\")","v":0},{"$f":"IF(WorkingR!$B85=\"All other giving/voluntary receipts\",WorkingR!W85,\"\")","v":0},{"$f":"IF(WorkingR!$B85=\"All other giving/voluntary receipts\",WorkingR!X85,\"\")","v":0},{"$f":"IF(WorkingR!$B85=\"All other giving/voluntary receipts\",WorkingR!Y85,\"\")","v":0},{"$f":"IF(Descriptions!D86=\"All other giving/voluntary receipts\",Descriptions!AA86,0)","v":0}]
[{"$f":"IF(Descriptions!D87=\"All other giving/voluntary receipts\",Descriptions!B87,0)","v":0},{"$f":"IF(WorkingR!$B86=\"All other giving/voluntary receipts\",WorkingR!D86,\"\")","v":0},{"$f":"IF(WorkingR!$B86=\"All other giving/voluntary receipts\",WorkingR!E86,\"\")","v":0},{"$f":"IF(WorkingR!$B86=\"All other giving/voluntary receipts\",WorkingR!F86,\"\")","v":0},{"$f":"IF(WorkingR!$B86=\"All other giving/voluntary receipts\",WorkingR!G86,\"\")","v":0},{"$f":"IF(WorkingR!$B86=\"All other giving/voluntary receipts\",WorkingR!H86,\"\")","v":0},{"$f":"IF(WorkingR!$B86=\"All other giving/voluntary receipts\",WorkingR!I86,\"\")","v":0},{"$f":"IF(WorkingR!$B86=\"All other giving/voluntary receipts\",WorkingR!J86,\"\")","v":0},{"$f":"IF(WorkingR!$B86=\"All other giving/voluntary receipts\",WorkingR!K86,\"\")","v":0},{"$f":"IF(WorkingR!$B86=\"All other giving/voluntary receipts\",WorkingR!L86,\"\")","v":0},{"$f":"IF(WorkingR!$B86=\"All other giving/voluntary receipts\",WorkingR!M86,\"\")","v":0},{"$f":"IF(WorkingR!$B86=\"All other giving/voluntary receipts\",WorkingR!N86,\"\")","v":0},{"$f":"IF(WorkingR!$B86=\"All other giving/voluntary receipts\",WorkingR!O86,\"\")","v":0},{"$f":"IF(WorkingR!$B86=\"All other giving/voluntary receipts\",WorkingR!P86,\"\")","v":0},{"$f":"IF(WorkingR!$B86=\"All other giving/voluntary receipts\",WorkingR!Q86,\"\")","v":0},{"$f":"IF(WorkingR!$B86=\"All other giving/voluntary receipts\",WorkingR!R86,\"\")","v":0},{"$f":"IF(WorkingR!$B86=\"All other giving/voluntary receipts\",WorkingR!S86,\"\")","v":0},{"$f":"IF(WorkingR!$B86=\"All other giving/voluntary receipts\",WorkingR!T86,\"\")","v":0},{"$f":"IF(WorkingR!$B86=\"All other giving/voluntary receipts\",WorkingR!U86,\"\")","v":0},{"$f":"IF(WorkingR!$B86=\"All other giving/voluntary receipts\",WorkingR!V86,\"\")","v":0},{"$f":"IF(WorkingR!$B86=\"All other giving/voluntary receipts\",WorkingR!W86,\"\")","v":0},{"$f":"IF(WorkingR!$B86=\"All other giving/voluntary receipts\",WorkingR!X86,\"\")","v":0},{"$f":"IF(WorkingR!$B86=\"All other giving/voluntary receipts\",WorkingR!Y86,\"\")","v":0},{"$f":"IF(Descriptions!D87=\"All other giving/voluntary receipts\",Descriptions!AA87,0)","v":0}]
[{"$f":"IF(Descriptions!D88=\"All other giving/voluntary receipts\",Descriptions!B88,0)","v":0},{"$f":"IF(WorkingR!$B87=\"All other giving/voluntary receipts\",WorkingR!D87,\"\")","v":0},{"$f":"IF(WorkingR!$B87=\"All other giving/voluntary receipts\",WorkingR!E87,\"\")","v":0},{"$f":"IF(WorkingR!$B87=\"All other giving/voluntary receipts\",WorkingR!F87,\"\")","v":0},{"$f":"IF(WorkingR!$B87=\"All other giving/voluntary receipts\",WorkingR!G87,\"\")","v":0},{"$f":"IF(WorkingR!$B87=\"All other giving/voluntary receipts\",WorkingR!H87,\"\")","v":0},{"$f":"IF(WorkingR!$B87=\"All other giving/voluntary receipts\",WorkingR!I87,\"\")","v":0},{"$f":"IF(WorkingR!$B87=\"All other giving/voluntary receipts\",WorkingR!J87,\"\")","v":0},{"$f":"IF(WorkingR!$B87=\"All other giving/voluntary receipts\",WorkingR!K87,\"\")","v":0},{"$f":"IF(WorkingR!$B87=\"All other giving/voluntary receipts\",WorkingR!L87,\"\")","v":0},{"$f":"IF(WorkingR!$B87=\"All other giving/voluntary receipts\",WorkingR!M87,\"\")","v":0},{"$f":"IF(WorkingR!$B87=\"All other giving/voluntary receipts\",WorkingR!N87,\"\")","v":0},{"$f":"IF(WorkingR!$B87=\"All other giving/voluntary receipts\",WorkingR!O87,\"\")","v":0},{"$f":"IF(WorkingR!$B87=\"All other giving/voluntary receipts\",WorkingR!P87,\"\")","v":0},{"$f":"IF(WorkingR!$B87=\"All other giving/voluntary receipts\",WorkingR!Q87,\"\")","v":0},{"$f":"IF(WorkingR!$B87=\"All other giving/voluntary receipts\",WorkingR!R87,\"\")","v":0},{"$f":"IF(WorkingR!$B87=\"All other giving/voluntary receipts\",WorkingR!S87,\"\")","v":0},{"$f":"IF(WorkingR!$B87=\"All other giving/voluntary receipts\",WorkingR!T87,\"\")","v":0},{"$f":"IF(WorkingR!$B87=\"All other giving/voluntary receipts\",WorkingR!U87,\"\")","v":0},{"$f":"IF(WorkingR!$B87=\"All other giving/voluntary receipts\",WorkingR!V87,\"\")","v":0},{"$f":"IF(WorkingR!$B87=\"All other giving/voluntary receipts\",WorkingR!W87,\"\")","v":0},{"$f":"IF(WorkingR!$B87=\"All other giving/voluntary receipts\",WorkingR!X87,\"\")","v":0},{"$f":"IF(WorkingR!$B87=\"All other giving/voluntary receipts\",WorkingR!Y87,\"\")","v":0},{"$f":"IF(Descriptions!D88=\"All other giving/voluntary receipts\",Descriptions!AA88,0)","v":0}]
[{"$f":"IF(Descriptions!D89=\"All other giving/voluntary receipts\",Descriptions!B89,0)","v":0},{"$f":"IF(WorkingR!$B88=\"All other giving/voluntary receipts\",WorkingR!D88,\"\")","v":0},{"$f":"IF(WorkingR!$B88=\"All other giving/voluntary receipts\",WorkingR!E88,\"\")","v":0},{"$f":"IF(WorkingR!$B88=\"All other giving/voluntary receipts\",WorkingR!F88,\"\")","v":0},{"$f":"IF(WorkingR!$B88=\"All other giving/voluntary receipts\",WorkingR!G88,\"\")","v":0},{"$f":"IF(WorkingR!$B88=\"All other giving/voluntary receipts\",WorkingR!H88,\"\")","v":0},{"$f":"IF(WorkingR!$B88=\"All other giving/voluntary receipts\",WorkingR!I88,\"\")","v":0},{"$f":"IF(WorkingR!$B88=\"All other giving/voluntary receipts\",WorkingR!J88,\"\")","v":0},{"$f":"IF(WorkingR!$B88=\"All other giving/voluntary receipts\",WorkingR!K88,\"\")","v":0},{"$f":"IF(WorkingR!$B88=\"All other giving/voluntary receipts\",WorkingR!L88,\"\")","v":0},{"$f":"IF(WorkingR!$B88=\"All other giving/voluntary receipts\",WorkingR!M88,\"\")","v":0},{"$f":"IF(WorkingR!$B88=\"All other giving/voluntary receipts\",WorkingR!N88,\"\")","v":0},{"$f":"IF(WorkingR!$B88=\"All other giving/voluntary receipts\",WorkingR!O88,\"\")","v":0},{"$f":"IF(WorkingR!$B88=\"All other giving/voluntary receipts\",WorkingR!P88,\"\")","v":0},{"$f":"IF(WorkingR!$B88=\"All other giving/voluntary receipts\",WorkingR!Q88,\"\")","v":0},{"$f":"IF(WorkingR!$B88=\"All other giving/voluntary receipts\",WorkingR!R88,\"\")","v":0},{"$f":"IF(WorkingR!$B88=\"All other giving/voluntary receipts\",WorkingR!S88,\"\")","v":0},{"$f":"IF(WorkingR!$B88=\"All other giving/voluntary receipts\",WorkingR!T88,\"\")","v":0},{"$f":"IF(WorkingR!$B88=\"All other giving/voluntary receipts\",WorkingR!U88,\"\")","v":0},{"$f":"IF(WorkingR!$B88=\"All other giving/voluntary receipts\",WorkingR!V88,\"\")","v":0},{"$f":"IF(WorkingR!$B88=\"All other giving/voluntary receipts\",WorkingR!W88,\"\")","v":0},{"$f":"IF(WorkingR!$B88=\"All other giving/voluntary receipts\",WorkingR!X88,\"\")","v":0},{"$f":"IF(WorkingR!$B88=\"All other giving/voluntary receipts\",WorkingR!Y88,\"\")","v":0},{"$f":"IF(Descriptions!D89=\"All other giving/voluntary receipts\",Descriptions!AA89,0)","v":0}]
[{"$f":"IF(Descriptions!D90=\"All other giving/voluntary receipts\",Descriptions!B90,0)","v":0},{"$f":"IF(WorkingR!$B89=\"All other giving/voluntary receipts\",WorkingR!D89,\"\")","v":0},{"$f":"IF(WorkingR!$B89=\"All other giving/voluntary receipts\",WorkingR!E89,\"\")","v":0},{"$f":"IF(WorkingR!$B89=\"All other giving/voluntary receipts\",WorkingR!F89,\"\")","v":0},{"$f":"IF(WorkingR!$B89=\"All other giving/voluntary receipts\",WorkingR!G89,\"\")","v":0},{"$f":"IF(WorkingR!$B89=\"All other giving/voluntary receipts\",WorkingR!H89,\"\")","v":0},{"$f":"IF(WorkingR!$B89=\"All other giving/voluntary receipts\",WorkingR!I89,\"\")","v":0},{"$f":"IF(WorkingR!$B89=\"All other giving/voluntary receipts\",WorkingR!J89,\"\")","v":0},{"$f":"IF(WorkingR!$B89=\"All other giving/voluntary receipts\",WorkingR!K89,\"\")","v":0},{"$f":"IF(WorkingR!$B89=\"All other giving/voluntary receipts\",WorkingR!L89,\"\")","v":0},{"$f":"IF(WorkingR!$B89=\"All other giving/voluntary receipts\",WorkingR!M89,\"\")","v":0},{"$f":"IF(WorkingR!$B89=\"All other giving/voluntary receipts\",WorkingR!N89,\"\")","v":0},{"$f":"IF(WorkingR!$B89=\"All other giving/voluntary receipts\",WorkingR!O89,\"\")","v":0},{"$f":"IF(WorkingR!$B89=\"All other giving/voluntary receipts\",WorkingR!P89,\"\")","v":0},{"$f":"IF(WorkingR!$B89=\"All other giving/voluntary receipts\",WorkingR!Q89,\"\")","v":0},{"$f":"IF(WorkingR!$B89=\"All other giving/voluntary receipts\",WorkingR!R89,\"\")","v":0},{"$f":"IF(WorkingR!$B89=\"All other giving/voluntary receipts\",WorkingR!S89,\"\")","v":0},{"$f":"IF(WorkingR!$B89=\"All other giving/voluntary receipts\",WorkingR!T89,\"\")","v":0},{"$f":"IF(WorkingR!$B89=\"All other giving/voluntary receipts\",WorkingR!U89,\"\")","v":0},{"$f":"IF(WorkingR!$B89=\"All other giving/voluntary receipts\",WorkingR!V89,\"\")","v":0},{"$f":"IF(WorkingR!$B89=\"All other giving/voluntary receipts\",WorkingR!W89,\"\")","v":0},{"$f":"IF(WorkingR!$B89=\"All other giving/voluntary receipts\",WorkingR!X89,\"\")","v":0},{"$f":"IF(WorkingR!$B89=\"All other giving/voluntary receipts\",WorkingR!Y89,\"\")","v":0},{"$f":"IF(Descriptions!D90=\"All other giving/voluntary receipts\",Descriptions!AA90,0)","v":0}]
[{"$f":"IF(Descriptions!D91=\"All other giving/voluntary receipts\",Descriptions!B91,0)","v":0},{"$f":"IF(WorkingR!$B90=\"All other giving/voluntary receipts\",WorkingR!D90,\"\")","v":0},{"$f":"IF(WorkingR!$B90=\"All other giving/voluntary receipts\",WorkingR!E90,\"\")","v":0},{"$f":"IF(WorkingR!$B90=\"All other giving/voluntary receipts\",WorkingR!F90,\"\")","v":0},{"$f":"IF(WorkingR!$B90=\"All other giving/voluntary receipts\",WorkingR!G90,\"\")","v":0},{"$f":"IF(WorkingR!$B90=\"All other giving/voluntary receipts\",WorkingR!H90,\"\")","v":0},{"$f":"IF(WorkingR!$B90=\"All other giving/voluntary receipts\",WorkingR!I90,\"\")","v":0},{"$f":"IF(WorkingR!$B90=\"All other giving/voluntary receipts\",WorkingR!J90,\"\")","v":0},{"$f":"IF(WorkingR!$B90=\"All other giving/voluntary receipts\",WorkingR!K90,\"\")","v":0},{"$f":"IF(WorkingR!$B90=\"All other giving/voluntary receipts\",WorkingR!L90,\"\")","v":0},{"$f":"IF(WorkingR!$B90=\"All other giving/voluntary receipts\",WorkingR!M90,\"\")","v":0},{"$f":"IF(WorkingR!$B90=\"All other giving/voluntary receipts\",WorkingR!N90,\"\")","v":0},{"$f":"IF(WorkingR!$B90=\"All other giving/voluntary receipts\",WorkingR!O90,\"\")","v":0},{"$f":"IF(WorkingR!$B90=\"All other giving/voluntary receipts\",WorkingR!P90,\"\")","v":0},{"$f":"IF(WorkingR!$B90=\"All other giving/voluntary receipts\",WorkingR!Q90,\"\")","v":0},{"$f":"IF(WorkingR!$B90=\"All other giving/voluntary receipts\",WorkingR!R90,\"\")","v":0},{"$f":"IF(WorkingR!$B90=\"All other giving/voluntary receipts\",WorkingR!S90,\"\")","v":0},{"$f":"IF(WorkingR!$B90=\"All other giving/voluntary receipts\",WorkingR!T90,\"\")","v":0},{"$f":"IF(WorkingR!$B90=\"All other giving/voluntary receipts\",WorkingR!U90,\"\")","v":0},{"$f":"IF(WorkingR!$B90=\"All other giving/voluntary receipts\",WorkingR!V90,\"\")","v":0},{"$f":"IF(WorkingR!$B90=\"All other giving/voluntary receipts\",WorkingR!W90,\"\")","v":0},{"$f":"IF(WorkingR!$B90=\"All other giving/voluntary receipts\",WorkingR!X90,\"\")","v":0},{"$f":"IF(WorkingR!$B90=\"All other giving/voluntary receipts\",WorkingR!Y90,\"\")","v":0},{"$f":"IF(Descriptions!D91=\"All other giving/voluntary receipts\",Descriptions!AA91,0)","v":0}]
[{"$f":"IF(Descriptions!D92=\"All other giving/voluntary receipts\",Descriptions!B92,0)","v":0},{"$f":"IF(WorkingR!$B91=\"All other giving/voluntary receipts\",WorkingR!D91,\"\")","v":0},{"$f":"IF(WorkingR!$B91=\"All other giving/voluntary receipts\",WorkingR!E91,\"\")","v":0},{"$f":"IF(WorkingR!$B91=\"All other giving/voluntary receipts\",WorkingR!F91,\"\")","v":0},{"$f":"IF(WorkingR!$B91=\"All other giving/voluntary receipts\",WorkingR!G91,\"\")","v":0},{"$f":"IF(WorkingR!$B91=\"All other giving/voluntary receipts\",WorkingR!H91,\"\")","v":0},{"$f":"IF(WorkingR!$B91=\"All other giving/voluntary receipts\",WorkingR!I91,\"\")","v":0},{"$f":"IF(WorkingR!$B91=\"All other giving/voluntary receipts\",WorkingR!J91,\"\")","v":0},{"$f":"IF(WorkingR!$B91=\"All other giving/voluntary receipts\",WorkingR!K91,\"\")","v":0},{"$f":"IF(WorkingR!$B91=\"All other giving/voluntary receipts\",WorkingR!L91,\"\")","v":0},{"$f":"IF(WorkingR!$B91=\"All other giving/voluntary receipts\",WorkingR!M91,\"\")","v":0},{"$f":"IF(WorkingR!$B91=\"All other giving/voluntary receipts\",WorkingR!N91,\"\")","v":0},{"$f":"IF(WorkingR!$B91=\"All other giving/voluntary receipts\",WorkingR!O91,\"\")","v":0},{"$f":"IF(WorkingR!$B91=\"All other giving/voluntary receipts\",WorkingR!P91,\"\")","v":0},{"$f":"IF(WorkingR!$B91=\"All other giving/voluntary receipts\",WorkingR!Q91,\"\")","v":0},{"$f":"IF(WorkingR!$B91=\"All other giving/voluntary receipts\",WorkingR!R91,\"\")","v":0},{"$f":"IF(WorkingR!$B91=\"All other giving/voluntary receipts\",WorkingR!S91,\"\")","v":0},{"$f":"IF(WorkingR!$B91=\"All other giving/voluntary receipts\",WorkingR!T91,\"\")","v":0},{"$f":"IF(WorkingR!$B91=\"All other giving/voluntary receipts\",WorkingR!U91,\"\")","v":0},{"$f":"IF(WorkingR!$B91=\"All other giving/voluntary receipts\",WorkingR!V91,\"\")","v":0},{"$f":"IF(WorkingR!$B91=\"All other giving/voluntary receipts\",WorkingR!W91,\"\")","v":0},{"$f":"IF(WorkingR!$B91=\"All other giving/voluntary receipts\",WorkingR!X91,\"\")","v":0},{"$f":"IF(WorkingR!$B91=\"All other giving/voluntary receipts\",WorkingR!Y91,\"\")","v":0},{"$f":"IF(Descriptions!D92=\"All other giving/voluntary receipts\",Descriptions!AA92,0)","v":0}]
[null,{"$f":"SUM(B173:B229)","v":0},0,0,0,0,0,0,0,0,0,0,0,0,0,0,0,0,0,0,0,0,null,{"$f":"X172","v":0}]
["ACTIVITIES FOR GENERATING FUNDS",null,null,null,null,null,null,null,null,null,null,null,null,null,null,null,null,null,null,null,null,null,null,{"$f":"SUM(X232:X287)","v":0}]
["Bookstall",{"$f":"WorkingR!D6","v":0},{"$f":"WorkingR!E6","v":0},{"$f":"WorkingR!F6","v":0},{"$f":"WorkingR!G6","v":0},{"$f":"WorkingR!H6","v":0},{"$f":"WorkingR!I6","v":0},{"$f":"WorkingR!J6","v":0},{"$f":"WorkingR!K6","v":0},{"$f":"WorkingR!L6","v":0},{"$f":"WorkingR!M6","v":0},{"$f":"WorkingR!N6","v":0},{"$f":"WorkingR!O6","v":0},{"$f":"WorkingR!P6","v":0},{"$f":"WorkingR!Q6","v":0},{"$f":"WorkingR!R6","v":0},{"$f":"WorkingR!S6","v":0},{"$f":"WorkingR!T6","v":0},{"$f":"WorkingR!U6","v":0},{"$f":"WorkingR!V6","v":0},{"$f":"WorkingR!W6","v":0},{"$f":"WorkingR!X6","v":0},{"$f":"WorkingR!Y6","v":0},{"$f":"Descriptions!AA7","v":0}]
["Magazine",{"$f":"WorkingR!D24","v":0},{"$f":"WorkingR!E24","v":0},{"$f":"WorkingR!F24","v":0},{"$f":"WorkingR!G24","v":0},{"$f":"WorkingR!H24","v":0},{"$f":"WorkingR!I24","v":0},{"$f":"WorkingR!J24","v":0},{"$f":"WorkingR!K24","v":0},{"$f":"WorkingR!L24","v":0},{"$f":"WorkingR!M24","v":0},{"$f":"WorkingR!N24","v":0},{"$f":"WorkingR!O24","v":0},{"$f":"WorkingR!P24","v":0},{"$f":"WorkingR!Q24","v":0},{"$f":"WorkingR!R24","v":0},{"$f":"WorkingR!S24","v":0},{"$f":"WorkingR!T24","v":0},{"$f":"WorkingR!U24","v":0},{"$f":"WorkingR!V24","v":0},{"$f":"WorkingR!W24","v":0},{"$f":"WorkingR!X24","v":0},{"$f":"WorkingR!Y24","v":0},{"$f":"Descriptions!AA25","v":0}]
["Fete",{"$f":"WorkingR!D15","v":0},{"$f":"WorkingR!E15","v":0},{"$f":"WorkingR!F15","v":0},{"$f":"WorkingR!G15","v":0},{"$f":"WorkingR!H15","v":0},{"$f":"WorkingR!I15","v":0},{"$f":"WorkingR!J15","v":0},{"$f":"WorkingR!K15","v":0},{"$f":"WorkingR!L15","v":0},{"$f":"WorkingR!M15","v":0},{"$f":"WorkingR!N15","v":0},{"$f":"WorkingR!O15","v":0},{"$f":"WorkingR!P15","v":0},{"$f":"WorkingR!Q15","v":0},{"$f":"WorkingR!R15","v":0},{"$f":"WorkingR!S15","v":0},{"$f":"WorkingR!T15","v":0},{"$f":"WorkingR!U15","v":0},{"$f":"WorkingR!V15","v":0},{"$f":"WorkingR!W15","v":0},{"$f":"WorkingR!X15","v":0},{"$f":"WorkingR!Y15","v":0},{"$f":"Descriptions!AA16","v":0}]
["Churches Together Bike Ride",{"$f":"WorkingR!D9","v":0},{"$f":"WorkingR!E9","v":0},{"$f":"WorkingR!F9","v":0},{"$f":"WorkingR!G9","v":0},{"$f":"WorkingR!H9","v":0},{"$f":"WorkingR!I9","v":0},{"$f":"WorkingR!J9","v":0},{"$f":"WorkingR!K9","v":0},{"$f":"WorkingR!L9","v":0},{"$f":"WorkingR!M9","v":0},{"$f":"WorkingR!N9","v":0},{"$f":"WorkingR!O9","v":0},{"$f":"WorkingR!P9","v":0},{"$f":"WorkingR!Q9","v":0},{"$f":"WorkingR!R9","v":0},{"$f":"WorkingR!S9","v":0},{"$f":"WorkingR!T9","v":0},{"$f":"WorkingR!U9","v":0},{"$f":"WorkingR!V9","v":0},{"$f":"WorkingR!W9","v":0},{"$f":"WorkingR!X9","v":0},{"$f":"WorkingR!Y9","v":0},{"$f":"Descriptions!AA10","v":0}]
["Sales",{"$f":"WorkingR!D31","v":0},{"$f":"WorkingR!E31","v":0},{"$f":"WorkingR!F31","v":0},{"$f":"WorkingR!G31","v":0},{"$f":"WorkingR!H31","v":0},{"$f":"WorkingR!I31","v":0},{"$f":"WorkingR!J31","v":0},{"$f":"WorkingR!K31","v":0},{"$f":"WorkingR!L31","v":0},{"$f":"WorkingR!M31","v":0},{"$f":"WorkingR!N31","v":0},{"$f":"WorkingR!O31","v":0},{"$f":"WorkingR!P31","v":0},{"$f":"WorkingR!Q31","v":0},{"$f":"WorkingR!R31","v":0},{"$f":"WorkingR!S31","v":0},{"$f":"WorkingR!T31","v":0},{"$f":"WorkingR!U31","v":0},{"$f":"WorkingR!V31","v":0},{"$f":"WorkingR!W31","v":0},{"$f":"WorkingR!X31","v":0},{"$f":"WorkingR!Y31","v":0},{"$f":"Descriptions!AA32","v":0}]
["Other Fundraising Income",{"$f":"WorkingR!D26","v":0},{"$f":"WorkingR!E26","v":0},{"$f":"WorkingR!F26","v":0},{"$f":"WorkingR!G26","v":0},{"$f":"WorkingR!H26","v":0},{"$f":"WorkingR!I26","v":0},{"$f":"WorkingR!J26","v":0},{"$f":"WorkingR!K26","v":0},{"$f":"WorkingR!L26","v":0},{"$f":"WorkingR!M26","v":0},{"$f":"WorkingR!N26","v":0},{"$f":"WorkingR!O26","v":0},{"$f":"WorkingR!P26","v":0},{"$f":"WorkingR!Q26","v":0},{"$f":"WorkingR!R26","v":0},{"$f":"WorkingR!S26","v":0},{"$f":"WorkingR!T26","v":0},{"$f":"WorkingR!U26","v":0},{"$f":"WorkingR!V26","v":0},{"$f":"WorkingR!W26","v":0},{"$f":"WorkingR!X26","v":0},{"$f":"WorkingR!Y26","v":0},{"$f":"Descriptions!AA27","v":0}]
[{"$f":"IF(Descriptions!D43=\"Activites for generating funds\",Descriptions!B43,0)","v":0},{"$f":"IF(WorkingR!$B42=\"Activities for generating funds\",WorkingR!D42,\"\")","v":""},{"$f":"IF(WorkingR!$B42=\"Activities for generating funds\",WorkingR!E42,\"\")","v":""},{"$f":"IF(WorkingR!$B42=\"Activities for generating funds\",WorkingR!F42,\"\")","v":""},{"$f":"IF(WorkingR!$B42=\"Activities for generating funds\",WorkingR!G42,\"\")","v":""},{"$f":"IF(WorkingR!$B42=\"Activities for generating funds\",WorkingR!H42,\"\")","v":""},{"$f":"IF(WorkingR!$B42=\"Activities for generating funds\",WorkingR!I42,\"\")","v":""},{"$f":"IF(WorkingR!$B42=\"Activities for generating funds\",WorkingR!J42,\"\")","v":""},{"$f":"IF(WorkingR!$B42=\"Activities for generating funds\",WorkingR!K42,\"\")","v":""},{"$f":"IF(WorkingR!$B42=\"Activities for generating funds\",WorkingR!L42,\"\")","v":""},{"$f":"IF(WorkingR!$B42=\"Activities for generating funds\",WorkingR!M42,\"\")","v":""},{"$f":"IF(WorkingR!$B42=\"Activities for generating funds\",WorkingR!N42,\"\")","v":""},{"$f":"IF(WorkingR!$B42=\"Activities for generating funds\",WorkingR!O42,\"\")","v":""},{"$f":"IF(WorkingR!$B42=\"Activities for generating funds\",WorkingR!P42,\"\")","v":""},{"$f":"IF(WorkingR!$B42=\"Activities for generating funds\",WorkingR!Q42,\"\")","v":""},{"$f":"IF(WorkingR!$B42=\"Activities for generating funds\",WorkingR!R42,\"\")","v":""},{"$f":"IF(WorkingR!$B42=\"Activities for generating funds\",WorkingR!S42,\"\")","v":""},{"$f":"IF(WorkingR!$B42=\"Activities for generating funds\",WorkingR!T42,\"\")","v":""},{"$f":"IF(WorkingR!$B42=\"Activities for generating funds\",WorkingR!U42,\"\")","v":""},{"$f":"IF(WorkingR!$B42=\"Activities for generating funds\",WorkingR!V42,\"\")","v":""},{"$f":"IF(WorkingR!$B42=\"Activities for generating funds\",WorkingR!W42,\"\")","v":""},{"$f":"IF(WorkingR!$B42=\"Activities for generating funds\",WorkingR!X42,\"\")","v":""},{"$f":"IF(WorkingR!$B42=\"Activities for generating funds\",WorkingR!Y42,\"\")","v":""},{"$f":"IF(Descriptions!D43=\"Activites for generating funds\",Descriptions!AA43,0)","v":0}]
[{"$f":"IF(Descriptions!D44=\"Activites for generating funds\",Descriptions!B44,0)","v":0},{"$f":"IF(WorkingR!$B43=\"Activities for generating funds\",WorkingR!D43,\"\")","v":""},{"$f":"IF(WorkingR!$B43=\"Activities for generating funds\",WorkingR!E43,\"\")","v":""},{"$f":"IF(WorkingR!$B43=\"Activities for generating funds\",WorkingR!F43,\"\")","v":""},{"$f":"IF(WorkingR!$B43=\"Activities for generating funds\",WorkingR!G43,\"\")","v":""},{"$f":"IF(WorkingR!$B43=\"Activities for generating funds\",WorkingR!H43,\"\")","v":""},{"$f":"IF(WorkingR!$B43=\"Activities for generating funds\",WorkingR!I43,\"\")","v":""},{"$f":"IF(WorkingR!$B43=\"Activities for generating funds\",WorkingR!J43,\"\")","v":""},{"$f":"IF(WorkingR!$B43=\"Activities for generating funds\",WorkingR!K43,\"\")","v":""},{"$f":"IF(WorkingR!$B43=\"Activities for generating funds\",WorkingR!L43,\"\")","v":""},{"$f":"IF(WorkingR!$B43=\"Activities for generating funds\",WorkingR!M43,\"\")","v":""},{"$f":"IF(WorkingR!$B43=\"Activities for generating funds\",WorkingR!N43,\"\")","v":""},{"$f":"IF(WorkingR!$B43=\"Activities for generating funds\",WorkingR!O43,\"\")","v":""},{"$f":"IF(WorkingR!$B43=\"Activities for generating funds\",WorkingR!P43,\"\")","v":""},{"$f":"IF(WorkingR!$B43=\"Activities for generating funds\",WorkingR!Q43,\"\")","v":""},{"$f":"IF(WorkingR!$B43=\"Activities for generating funds\",WorkingR!R43,\"\")","v":""},{"$f":"IF(WorkingR!$B43=\"Activities for generating funds\",WorkingR!S43,\"\")","v":""},{"$f":"IF(WorkingR!$B43=\"Activities for generating funds\",WorkingR!T43,\"\")","v":""},{"$f":"IF(WorkingR!$B43=\"Activities for generating funds\",WorkingR!U43,\"\")","v":""},{"$f":"IF(WorkingR!$B43=\"Activities for generating funds\",WorkingR!V43,\"\")","v":""},{"$f":"IF(WorkingR!$B43=\"Activities for generating funds\",WorkingR!W43,\"\")","v":""},{"$f":"IF(WorkingR!$B43=\"Activities for generating funds\",WorkingR!X43,\"\")","v":""},{"$f":"IF(WorkingR!$B43=\"Activities for generating funds\",WorkingR!Y43,\"\")","v":""},{"$f":"IF(Descriptions!D44=\"Activites for generating funds\",Descriptions!AA44,0)","v":0}]
[{"$f":"IF(Descriptions!D45=\"Activites for generating funds\",Descriptions!B45,0)","v":0},{"$f":"IF(WorkingR!$B44=\"Activities for generating funds\",WorkingR!D44,\"\")","v":""},{"$f":"IF(WorkingR!$B44=\"Activities for generating funds\",WorkingR!E44,\"\")","v":""},{"$f":"IF(WorkingR!$B44=\"Activities for generating funds\",WorkingR!F44,\"\")","v":""},{"$f":"IF(WorkingR!$B44=\"Activities for generating funds\",WorkingR!G44,\"\")","v":""},{"$f":"IF(WorkingR!$B44=\"Activities for generating funds\",WorkingR!H44,\"\")","v":""},{"$f":"IF(WorkingR!$B44=\"Activities for generating funds\",WorkingR!I44,\"\")","v":""},{"$f":"IF(WorkingR!$B44=\"Activities for generating funds\",WorkingR!J44,\"\")","v":""},{"$f":"IF(WorkingR!$B44=\"Activities for generating funds\",WorkingR!K44,\"\")","v":""},{"$f":"IF(WorkingR!$B44=\"Activities for generating funds\",WorkingR!L44,\"\")","v":""},{"$f":"IF(WorkingR!$B44=\"Activities for generating funds\",WorkingR!M44,\"\")","v":""},{"$f":"IF(WorkingR!$B44=\"Activities for generating funds\",WorkingR!N44,\"\")","v":""},{"$f":"IF(WorkingR!$B44=\"Activities for generating funds\",WorkingR!O44,\"\")","v":""},{"$f":"IF(WorkingR!$B44=\"Activities for generating funds\",WorkingR!P44,\"\")","v":""},{"$f":"IF(WorkingR!$B44=\"Activities for generating funds\",WorkingR!Q44,\"\")","v":""},{"$f":"IF(WorkingR!$B44=\"Activities for generating funds\",WorkingR!R44,\"\")","v":""},{"$f":"IF(WorkingR!$B44=\"Activities for generating funds\",WorkingR!S44,\"\")","v":""},{"$f":"IF(WorkingR!$B44=\"Activities for generating funds\",WorkingR!T44,\"\")","v":""},{"$f":"IF(WorkingR!$B44=\"Activities for generating funds\",WorkingR!U44,\"\")","v":""},{"$f":"IF(WorkingR!$B44=\"Activities for generating funds\",WorkingR!V44,\"\")","v":""},{"$f":"IF(WorkingR!$B44=\"Activities for generating funds\",WorkingR!W44,\"\")","v":""},{"$f":"IF(WorkingR!$B44=\"Activities for generating funds\",WorkingR!X44,\"\")","v":""},{"$f":"IF(WorkingR!$B44=\"Activities for generating funds\",WorkingR!Y44,\"\")","v":""},{"$f":"IF(Descriptions!D45=\"Activites for generating funds\",Descriptions!AA45,0)","v":0}]
[{"$f":"IF(Descriptions!D46=\"Activites for generating funds\",Descriptions!B46,0)","v":0},{"$f":"IF(WorkingR!$B45=\"Activities for generating funds\",WorkingR!D45,\"\")","v":""},{"$f":"IF(WorkingR!$B45=\"Activities for generating funds\",WorkingR!E45,\"\")","v":""},{"$f":"IF(WorkingR!$B45=\"Activities for generating funds\",WorkingR!F45,\"\")","v":""},{"$f":"IF(WorkingR!$B45=\"Activities for generating funds\",WorkingR!G45,\"\")","v":""},{"$f":"IF(WorkingR!$B45=\"Activities for generating funds\",WorkingR!H45,\"\")","v":""},{"$f":"IF(WorkingR!$B45=\"Activities for generating funds\",WorkingR!I45,\"\")","v":""},{"$f":"IF(WorkingR!$B45=\"Activities for generating funds\",WorkingR!J45,\"\")","v":""},{"$f":"IF(WorkingR!$B45=\"Activities for generating funds\",WorkingR!K45,\"\")","v":""},{"$f":"IF(WorkingR!$B45=\"Activities for generating funds\",WorkingR!L45,\"\")","v":""},{"$f":"IF(WorkingR!$B45=\"Activities for generating funds\",WorkingR!M45,\"\")","v":""},{"$f":"IF(WorkingR!$B45=\"Activities for generating funds\",WorkingR!N45,\"\")","v":""},{"$f":"IF(WorkingR!$B45=\"Activities for generating funds\",WorkingR!O45,\"\")","v":""},{"$f":"IF(WorkingR!$B45=\"Activities for generating funds\",WorkingR!P45,\"\")","v":""},{"$f":"IF(WorkingR!$B45=\"Activities for generating funds\",WorkingR!Q45,\"\")","v":""},{"$f":"IF(WorkingR!$B45=\"Activities for generating funds\",WorkingR!R45,\"\")","v":""},{"$f":"IF(WorkingR!$B45=\"Activities for generating funds\",WorkingR!S45,\"\")","v":""},{"$f":"IF(WorkingR!$B45=\"Activities for generating funds\",WorkingR!T45,\"\")","v":""},{"$f":"IF(WorkingR!$B45=\"Activities for generating funds\",WorkingR!U45,\"\")","v":""},{"$f":"IF(WorkingR!$B45=\"Activities for generating funds\",WorkingR!V45,\"\")","v":""},{"$f":"IF(WorkingR!$B45=\"Activities for generating funds\",WorkingR!W45,\"\")","v":""},{"$f":"IF(WorkingR!$B45=\"Activities for generating funds\",WorkingR!X45,\"\")","v":""},{"$f":"IF(WorkingR!$B45=\"Activities for generating funds\",WorkingR!Y45,\"\")","v":""},{"$f":"IF(Descriptions!D46=\"Activites for generating funds\",Descriptions!AA46,0)","v":0}]
[{"$f":"IF(Descriptions!D47=\"Activites for generating funds\",Descriptions!B47,0)","v":0},{"$f":"IF(WorkingR!$B46=\"Activities for generating funds\",WorkingR!D46,\"\")","v":""},{"$f":"IF(WorkingR!$B46=\"Activities for generating funds\",WorkingR!E46,\"\")","v":""},{"$f":"IF(WorkingR!$B46=\"Activities for generating funds\",WorkingR!F46,\"\")","v":""},{"$f":"IF(WorkingR!$B46=\"Activities for generating funds\",WorkingR!G46,\"\")","v":""},{"$f":"IF(WorkingR!$B46=\"Activities for generating funds\",WorkingR!H46,\"\")","v":""},{"$f":"IF(WorkingR!$B46=\"Activities for generating funds\",WorkingR!I46,\"\")","v":""},{"$f":"IF(WorkingR!$B46=\"Activities for generating funds\",WorkingR!J46,\"\")","v":""},{"$f":"IF(WorkingR!$B46=\"Activities for generating funds\",WorkingR!K46,\"\")","v":""},{"$f":"IF(WorkingR!$B46=\"Activities for generating funds\",WorkingR!L46,\"\")","v":""},{"$f":"IF(WorkingR!$B46=\"Activities for generating funds\",WorkingR!M46,\"\")","v":""},{"$f":"IF(WorkingR!$B46=\"Activities for generating funds\",WorkingR!N46,\"\")","v":""},{"$f":"IF(WorkingR!$B46=\"Activities for generating funds\",WorkingR!O46,\"\")","v":""},{"$f":"IF(WorkingR!$B46=\"Activities for generating funds\",WorkingR!P46,\"\")","v":""},{"$f":"IF(WorkingR!$B46=\"Activities for generating funds\",WorkingR!Q46,\"\")","v":""},{"$f":"IF(WorkingR!$B46=\"Activities for generating funds\",WorkingR!R46,\"\")","v":""},{"$f":"IF(WorkingR!$B46=\"Activities for generating funds\",WorkingR!S46,\"\")","v":""},{"$f":"IF(WorkingR!$B46=\"Activities for generating funds\",WorkingR!T46,\"\")","v":""},{"$f":"IF(WorkingR!$B46=\"Activities for generating funds\",WorkingR!U46,\"\")","v":""},{"$f":"IF(WorkingR!$B46=\"Activities for generating funds\",WorkingR!V46,\"\")","v":""},{"$f":"IF(WorkingR!$B46=\"Activities for generating funds\",WorkingR!W46,\"\")","v":""},{"$f":"IF(WorkingR!$B46=\"Activities for generating funds\",WorkingR!X46,\"\")","v":""},{"$f":"IF(WorkingR!$B46=\"Activities for generating funds\",WorkingR!Y46,\"\")","v":""},{"$f":"IF(Descriptions!D47=\"Activites for generating funds\",Descriptions!AA47,0)","v":0}]
[{"$f":"IF(Descriptions!D48=\"Activites for generating funds\",Descriptions!B48,0)","v":0},{"$f":"IF(WorkingR!$B47=\"Activities for generating funds\",WorkingR!D47,\"\")","v":""},{"$f":"IF(WorkingR!$B47=\"Activities for generating funds\",WorkingR!E47,\"\")","v":""},{"$f":"IF(WorkingR!$B47=\"Activities for generating funds\",WorkingR!F47,\"\")","v":""},{"$f":"IF(WorkingR!$B47=\"Activities for generating funds\",WorkingR!G47,\"\")","v":""},{"$f":"IF(WorkingR!$B47=\"Activities for generating funds\",WorkingR!H47,\"\")","v":""},{"$f":"IF(WorkingR!$B47=\"Activities for generating funds\",WorkingR!I47,\"\")","v":""},{"$f":"IF(WorkingR!$B47=\"Activities for generating funds\",WorkingR!J47,\"\")","v":""},{"$f":"IF(WorkingR!$B47=\"Activities for generating funds\",WorkingR!K47,\"\")","v":""},{"$f":"IF(WorkingR!$B47=\"Activities for generating funds\",WorkingR!L47,\"\")","v":""},{"$f":"IF(WorkingR!$B47=\"Activities for generating funds\",WorkingR!M47,\"\")","v":""},{"$f":"IF(WorkingR!$B47=\"Activities for generating funds\",WorkingR!N47,\"\")","v":""},{"$f":"IF(WorkingR!$B47=\"Activities for generating funds\",WorkingR!O47,\"\")","v":""},{"$f":"IF(WorkingR!$B47=\"Activities for generating funds\",WorkingR!P47,\"\")","v":""},{"$f":"IF(WorkingR!$B47=\"Activities for generating funds\",WorkingR!Q47,\"\")","v":""},{"$f":"IF(WorkingR!$B47=\"Activities for generating funds\",WorkingR!R47,\"\")","v":""},{"$f":"IF(WorkingR!$B47=\"Activities for generating funds\",WorkingR!S47,\"\")","v":""},{"$f":"IF(WorkingR!$B47=\"Activities for generating funds\",WorkingR!T47,\"\")","v":""},{"$f":"IF(WorkingR!$B47=\"Activities for generating funds\",WorkingR!U47,\"\")","v":""},{"$f":"IF(WorkingR!$B47=\"Activities for generating funds\",WorkingR!V47,\"\")","v":""},{"$f":"IF(WorkingR!$B47=\"Activities for generating funds\",WorkingR!W47,\"\")","v":""},{"$f":"IF(WorkingR!$B47=\"Activities for generating funds\",WorkingR!X47,\"\")","v":""},{"$f":"IF(WorkingR!$B47=\"Activities for generating funds\",WorkingR!Y47,\"\")","v":""},{"$f":"IF(Descriptions!D48=\"Activites for generating funds\",Descriptions!AA48,0)","v":0}]
[{"$f":"IF(Descriptions!D49=\"Activites for generating funds\",Descriptions!B49,0)","v":0},{"$f":"IF(WorkingR!$B48=\"Activities for generating funds\",WorkingR!D48,\"\")","v":""},{"$f":"IF(WorkingR!$B48=\"Activities for generating funds\",WorkingR!E48,\"\")","v":""},{"$f":"IF(WorkingR!$B48=\"Activities for generating funds\",WorkingR!F48,\"\")","v":""},{"$f":"IF(WorkingR!$B48=\"Activities for generating funds\",WorkingR!G48,\"\")","v":""},{"$f":"IF(WorkingR!$B48=\"Activities for generating funds\",WorkingR!H48,\"\")","v":""},{"$f":"IF(WorkingR!$B48=\"Activities for generating funds\",WorkingR!I48,\"\")","v":""},{"$f":"IF(WorkingR!$B48=\"Activities for generating funds\",WorkingR!J48,\"\")","v":""},{"$f":"IF(WorkingR!$B48=\"Activities for generating funds\",WorkingR!K48,\"\")","v":""},{"$f":"IF(WorkingR!$B48=\"Activities for generating funds\",WorkingR!L48,\"\")","v":""},{"$f":"IF(WorkingR!$B48=\"Activities for generating funds\",WorkingR!M48,\"\")","v":""},{"$f":"IF(WorkingR!$B48=\"Activities for generating funds\",WorkingR!N48,\"\")","v":""},{"$f":"IF(WorkingR!$B48=\"Activities for generating funds\",WorkingR!O48,\"\")","v":""},{"$f":"IF(WorkingR!$B48=\"Activities for generating funds\",WorkingR!P48,\"\")","v":""},{"$f":"IF(WorkingR!$B48=\"Activities for generating funds\",WorkingR!Q48,\"\")","v":""},{"$f":"IF(WorkingR!$B48=\"Activities for generating funds\",WorkingR!R48,\"\")","v":""},{"$f":"IF(WorkingR!$B48=\"Activities for generating funds\",WorkingR!S48,\"\")","v":""},{"$f":"IF(WorkingR!$B48=\"Activities for generating funds\",WorkingR!T48,\"\")","v":""},{"$f":"IF(WorkingR!$B48=\"Activities for generating funds\",WorkingR!U48,\"\")","v":""},{"$f":"IF(WorkingR!$B48=\"Activities for generating funds\",WorkingR!V48,\"\")","v":""},{"$f":"IF(WorkingR!$B48=\"Activities for generating funds\",WorkingR!W48,\"\")","v":""},{"$f":"IF(WorkingR!$B48=\"Activities for generating funds\",WorkingR!X48,\"\")","v":""},{"$f":"IF(WorkingR!$B48=\"Activities for generating funds\",WorkingR!Y48,\"\")","v":""},{"$f":"IF(Descriptions!D49=\"Activites for generating funds\",Descriptions!AA49,0)","v":0}]
[{"$f":"IF(Descriptions!D50=\"Activites for generating funds\",Descriptions!B50,0)","v":0},{"$f":"IF(WorkingR!$B49=\"Activities for generating funds\",WorkingR!D49,\"\")","v":""},{"$f":"IF(WorkingR!$B49=\"Activities for generating funds\",WorkingR!E49,\"\")","v":""},{"$f":"IF(WorkingR!$B49=\"Activities for generating funds\",WorkingR!F49,\"\")","v":""},{"$f":"IF(WorkingR!$B49=\"Activities for generating funds\",WorkingR!G49,\"\")","v":""},{"$f":"IF(WorkingR!$B49=\"Activities for generating funds\",WorkingR!H49,\"\")","v":""},{"$f":"IF(WorkingR!$B49=\"Activities for generating funds\",WorkingR!I49,\"\")","v":""},{"$f":"IF(WorkingR!$B49=\"Activities for generating funds\",WorkingR!J49,\"\")","v":""},{"$f":"IF(WorkingR!$B49=\"Activities for generating funds\",WorkingR!K49,\"\")","v":""},{"$f":"IF(WorkingR!$B49=\"Activities for generating funds\",WorkingR!L49,\"\")","v":""},{"$f":"IF(WorkingR!$B49=\"Activities for generating funds\",WorkingR!M49,\"\")","v":""},{"$f":"IF(WorkingR!$B49=\"Activities for generating funds\",WorkingR!N49,\"\")","v":""},{"$f":"IF(WorkingR!$B49=\"Activities for generating funds\",WorkingR!O49,\"\")","v":""},{"$f":"IF(WorkingR!$B49=\"Activities for generating funds\",WorkingR!P49,\"\")","v":""},{"$f":"IF(WorkingR!$B49=\"Activities for generating funds\",WorkingR!Q49,\"\")","v":""},{"$f":"IF(WorkingR!$B49=\"Activities for generating funds\",WorkingR!R49,\"\")","v":""},{"$f":"IF(WorkingR!$B49=\"Activities for generating funds\",WorkingR!S49,\"\")","v":""},{"$f":"IF(WorkingR!$B49=\"Activities for generating funds\",WorkingR!T49,\"\")","v":""},{"$f":"IF(WorkingR!$B49=\"Activities for generating funds\",WorkingR!U49,\"\")","v":""},{"$f":"IF(WorkingR!$B49=\"Activities for generating funds\",WorkingR!V49,\"\")","v":""},{"$f":"IF(WorkingR!$B49=\"Activities for generating funds\",WorkingR!W49,\"\")","v":""},{"$f":"IF(WorkingR!$B49=\"Activities for generating funds\",WorkingR!X49,\"\")","v":""},{"$f":"IF(WorkingR!$B49=\"Activities for generating funds\",WorkingR!Y49,\"\")","v":""},{"$f":"IF(Descriptions!D50=\"Activites for generating funds\",Descriptions!AA50,0)","v":0}]
[{"$f":"IF(Descriptions!D51=\"Activites for generating funds\",Descriptions!B51,0)","v":0},{"$f":"IF(WorkingR!$B50=\"Activities for generating funds\",WorkingR!D50,\"\")","v":""},{"$f":"IF(WorkingR!$B50=\"Activities for generating funds\",WorkingR!E50,\"\")","v":""},{"$f":"IF(WorkingR!$B50=\"Activities for generating funds\",WorkingR!F50,\"\")","v":""},{"$f":"IF(WorkingR!$B50=\"Activities for generating funds\",WorkingR!G50,\"\")","v":""},{"$f":"IF(WorkingR!$B50=\"Activities for generating funds\",WorkingR!H50,\"\")","v":""},{"$f":"IF(WorkingR!$B50=\"Activities for generating funds\",WorkingR!I50,\"\")","v":""},{"$f":"IF(WorkingR!$B50=\"Activities for generating funds\",WorkingR!J50,\"\")","v":""},{"$f":"IF(WorkingR!$B50=\"Activities for generating funds\",WorkingR!K50,\"\")","v":""},{"$f":"IF(WorkingR!$B50=\"Activities for generating funds\",WorkingR!L50,\"\")","v":""},{"$f":"IF(WorkingR!$B50=\"Activities for generating funds\",WorkingR!M50,\"\")","v":""},{"$f":"IF(WorkingR!$B50=\"Activities for generating funds\",WorkingR!N50,\"\")","v":""},{"$f":"IF(WorkingR!$B50=\"Activities for generating funds\",WorkingR!O50,\"\")","v":""},{"$f":"IF(WorkingR!$B50=\"Activities for generating funds\",WorkingR!P50,\"\")","v":""},{"$f":"IF(WorkingR!$B50=\"Activities for generating funds\",WorkingR!Q50,\"\")","v":""},{"$f":"IF(WorkingR!$B50=\"Activities for generating funds\",WorkingR!R50,\"\")","v":""},{"$f":"IF(WorkingR!$B50=\"Activities for generating funds\",WorkingR!S50,\"\")","v":""},{"$f":"IF(WorkingR!$B50=\"Activities for generating funds\",WorkingR!T50,\"\")","v":""},{"$f":"IF(WorkingR!$B50=\"Activities for generating funds\",WorkingR!U50,\"\")","v":""},{"$f":"IF(WorkingR!$B50=\"Activities for generating funds\",WorkingR!V50,\"\")","v":""},{"$f":"IF(WorkingR!$B50=\"Activities for generating funds\",WorkingR!W50,\"\")","v":""},{"$f":"IF(WorkingR!$B50=\"Activities for generating funds\",WorkingR!X50,\"\")","v":""},{"$f":"IF(WorkingR!$B50=\"Activities for generating funds\",WorkingR!Y50,\"\")","v":""},{"$f":"IF(Descriptions!D51=\"Activites for generating funds\",Descriptions!AA51,0)","v":0}]
[{"$f":"IF(Descriptions!D52=\"Activites for generating funds\",Descriptions!B52,0)","v":0},{"$f":"IF(WorkingR!$B51=\"Activities for generating funds\",WorkingR!D51,\"\")","v":""},{"$f":"IF(WorkingR!$B51=\"Activities for generating funds\",WorkingR!E51,\"\")","v":""},{"$f":"IF(WorkingR!$B51=\"Activities for generating funds\",WorkingR!F51,\"\")","v":""},{"$f":"IF(WorkingR!$B51=\"Activities for generating funds\",WorkingR!G51,\"\")","v":""},{"$f":"IF(WorkingR!$B51=\"Activities for generating funds\",WorkingR!H51,\"\")","v":""},{"$f":"IF(WorkingR!$B51=\"Activities for generating funds\",WorkingR!I51,\"\")","v":""},{"$f":"IF(WorkingR!$B51=\"Activities for generating funds\",WorkingR!J51,\"\")","v":""},{"$f":"IF(WorkingR!$B51=\"Activities for generating funds\",WorkingR!K51,\"\")","v":""},{"$f":"IF(WorkingR!$B51=\"Activities for generating funds\",WorkingR!L51,\"\")","v":""},{"$f":"IF(WorkingR!$B51=\"Activities for generating funds\",WorkingR!M51,\"\")","v":""},{"$f":"IF(WorkingR!$B51=\"Activities for generating funds\",WorkingR!N51,\"\")","v":""},{"$f":"IF(WorkingR!$B51=\"Activities for generating funds\",WorkingR!O51,\"\")","v":""},{"$f":"IF(WorkingR!$B51=\"Activities for generating funds\",WorkingR!P51,\"\")","v":""},{"$f":"IF(WorkingR!$B51=\"Activities for generating funds\",WorkingR!Q51,\"\")","v":""},{"$f":"IF(WorkingR!$B51=\"Activities for generating funds\",WorkingR!R51,\"\")","v":""},{"$f":"IF(WorkingR!$B51=\"Activities for generating funds\",WorkingR!S51,\"\")","v":""},{"$f":"IF(WorkingR!$B51=\"Activities for generating funds\",WorkingR!T51,\"\")","v":""},{"$f":"IF(WorkingR!$B51=\"Activities for generating funds\",WorkingR!U51,\"\")","v":""},{"$f":"IF(WorkingR!$B51=\"Activities for generating funds\",WorkingR!V51,\"\")","v":""},{"$f":"IF(WorkingR!$B51=\"Activities for generating funds\",WorkingR!W51,\"\")","v":""},{"$f":"IF(WorkingR!$B51=\"Activities for generating funds\",WorkingR!X51,\"\")","v":""},{"$f":"IF(WorkingR!$B51=\"Activities for generating funds\",WorkingR!Y51,\"\")","v":""},{"$f":"IF(Descriptions!D52=\"Activites for generating funds\",Descriptions!AA52,0)","v":0}]
[{"$f":"IF(Descriptions!D53=\"Activites for generating funds\",Descriptions!B53,0)","v":0},{"$f":"IF(WorkingR!$B52=\"Activities for generating funds\",WorkingR!D52,\"\")","v":""},{"$f":"IF(WorkingR!$B52=\"Activities for generating funds\",WorkingR!E52,\"\")","v":""},{"$f":"IF(WorkingR!$B52=\"Activities for generating funds\",WorkingR!F52,\"\")","v":""},{"$f":"IF(WorkingR!$B52=\"Activities for generating funds\",WorkingR!G52,\"\")","v":""},{"$f":"IF(WorkingR!$B52=\"Activities for generating funds\",WorkingR!H52,\"\")","v":""},{"$f":"IF(WorkingR!$B52=\"Activities for generating funds\",WorkingR!I52,\"\")","v":""},{"$f":"IF(WorkingR!$B52=\"Activities for generating funds\",WorkingR!J52,\"\")","v":""},{"$f":"IF(WorkingR!$B52=\"Activities for generating funds\",WorkingR!K52,\"\")","v":""},{"$f":"IF(WorkingR!$B52=\"Activities for generating funds\",WorkingR!L52,\"\")","v":""},{"$f":"IF(WorkingR!$B52=\"Activities for generating funds\",WorkingR!M52,\"\")","v":""},{"$f":"IF(WorkingR!$B52=\"Activities for generating funds\",WorkingR!N52,\"\")","v":""},{"$f":"IF(WorkingR!$B52=\"Activities for generating funds\",WorkingR!O52,\"\")","v":""},{"$f":"IF(WorkingR!$B52=\"Activities for generating funds\",WorkingR!P52,\"\")","v":""},{"$f":"IF(WorkingR!$B52=\"Activities for generating funds\",WorkingR!Q52,\"\")","v":""},{"$f":"IF(WorkingR!$B52=\"Activities for generating funds\",WorkingR!R52,\"\")","v":""},{"$f":"IF(WorkingR!$B52=\"Activities for generating funds\",WorkingR!S52,\"\")","v":""},{"$f":"IF(WorkingR!$B52=\"Activities for generating funds\",WorkingR!T52,\"\")","v":""},{"$f":"IF(WorkingR!$B52=\"Activities for generating funds\",WorkingR!U52,\"\")","v":""},{"$f":"IF(WorkingR!$B52=\"Activities for generating funds\",WorkingR!V52,\"\")","v":""},{"$f":"IF(WorkingR!$B52=\"Activities for generating funds\",WorkingR!W52,\"\")","v":""},{"$f":"IF(WorkingR!$B52=\"Activities for generating funds\",WorkingR!X52,\"\")","v":""},{"$f":"IF(WorkingR!$B52=\"Activities for generating funds\",WorkingR!Y52,\"\")","v":""},{"$f":"IF(Descriptions!D53=\"Activites for generating funds\",Descriptions!AA53,0)","v":0}]
[{"$f":"IF(Descriptions!D54=\"Activites for generating funds\",Descriptions!B54,0)","v":0},{"$f":"IF(WorkingR!$B53=\"Activities for generating funds\",WorkingR!D53,\"\")","v":""},{"$f":"IF(WorkingR!$B53=\"Activities for generating funds\",WorkingR!E53,\"\")","v":""},{"$f":"IF(WorkingR!$B53=\"Activities for generating funds\",WorkingR!F53,\"\")","v":""},{"$f":"IF(WorkingR!$B53=\"Activities for generating funds\",WorkingR!G53,\"\")","v":""},{"$f":"IF(WorkingR!$B53=\"Activities for generating funds\",WorkingR!H53,\"\")","v":""},{"$f":"IF(WorkingR!$B53=\"Activities for generating funds\",WorkingR!I53,\"\")","v":""},{"$f":"IF(WorkingR!$B53=\"Activities for generating funds\",WorkingR!J53,\"\")","v":""},{"$f":"IF(WorkingR!$B53=\"Activities for generating funds\",WorkingR!K53,\"\")","v":""},{"$f":"IF(WorkingR!$B53=\"Activities for generating funds\",WorkingR!L53,\"\")","v":""},{"$f":"IF(WorkingR!$B53=\"Activities for generating funds\",WorkingR!M53,\"\")","v":""},{"$f":"IF(WorkingR!$B53=\"Activities for generating funds\",WorkingR!N53,\"\")","v":""},{"$f":"IF(WorkingR!$B53=\"Activities for generating funds\",WorkingR!O53,\"\")","v":""},{"$f":"IF(WorkingR!$B53=\"Activities for generating funds\",WorkingR!P53,\"\")","v":""},{"$f":"IF(WorkingR!$B53=\"Activities for generating funds\",WorkingR!Q53,\"\")","v":""},{"$f":"IF(WorkingR!$B53=\"Activities for generating funds\",WorkingR!R53,\"\")","v":""},{"$f":"IF(WorkingR!$B53=\"Activities for generating funds\",WorkingR!S53,\"\")","v":""},{"$f":"IF(WorkingR!$B53=\"Activities for generating funds\",WorkingR!T53,\"\")","v":""},{"$f":"IF(WorkingR!$B53=\"Activities for generating funds\",WorkingR!U53,\"\")","v":""},{"$f":"IF(WorkingR!$B53=\"Activities for generating funds\",WorkingR!V53,\"\")","v":""},{"$f":"IF(WorkingR!$B53=\"Activities for generating funds\",WorkingR!W53,\"\")","v":""},{"$f":"IF(WorkingR!$B53=\"Activities for generating funds\",WorkingR!X53,\"\")","v":""},{"$f":"IF(WorkingR!$B53=\"Activities for generating funds\",WorkingR!Y53,\"\")","v":""},{"$f":"IF(Descriptions!D54=\"Activites for generating funds\",Descriptions!AA54,0)","v":0}]
[{"$f":"IF(Descriptions!D55=\"Activites for generating funds\",Descriptions!B55,0)","v":0},{"$f":"IF(WorkingR!$B54=\"Activities for generating funds\",WorkingR!D54,\"\")","v":""},{"$f":"IF(WorkingR!$B54=\"Activities for generating funds\",WorkingR!E54,\"\")","v":""},{"$f":"IF(WorkingR!$B54=\"Activities for generating funds\",WorkingR!F54,\"\")","v":""},{"$f":"IF(WorkingR!$B54=\"Activities for generating funds\",WorkingR!G54,\"\")","v":""},{"$f":"IF(WorkingR!$B54=\"Activities for generating funds\",WorkingR!H54,\"\")","v":""},{"$f":"IF(WorkingR!$B54=\"Activities for generating funds\",WorkingR!I54,\"\")","v":""},{"$f":"IF(WorkingR!$B54=\"Activities for generating funds\",WorkingR!J54,\"\")","v":""},{"$f":"IF(WorkingR!$B54=\"Activities for generating funds\",WorkingR!K54,\"\")","v":""},{"$f":"IF(WorkingR!$B54=\"Activities for generating funds\",WorkingR!L54,\"\")","v":""},{"$f":"IF(WorkingR!$B54=\"Activities for generating funds\",WorkingR!M54,\"\")","v":""},{"$f":"IF(WorkingR!$B54=\"Activities for generating funds\",WorkingR!N54,\"\")","v":""},{"$f":"IF(WorkingR!$B54=\"Activities for generating funds\",WorkingR!O54,\"\")","v":""},{"$f":"IF(WorkingR!$B54=\"Activities for generating funds\",WorkingR!P54,\"\")","v":""},{"$f":"IF(WorkingR!$B54=\"Activities for generating funds\",WorkingR!Q54,\"\")","v":""},{"$f":"IF(WorkingR!$B54=\"Activities for generating funds\",WorkingR!R54,\"\")","v":""},{"$f":"IF(WorkingR!$B54=\"Activities for generating funds\",WorkingR!S54,\"\")","v":""},{"$f":"IF(WorkingR!$B54=\"Activities for generating funds\",WorkingR!T54,\"\")","v":""},{"$f":"IF(WorkingR!$B54=\"Activities for generating funds\",WorkingR!U54,\"\")","v":""},{"$f":"IF(WorkingR!$B54=\"Activities for generating funds\",WorkingR!V54,\"\")","v":""},{"$f":"IF(WorkingR!$B54=\"Activities for generating funds\",WorkingR!W54,\"\")","v":""},{"$f":"IF(WorkingR!$B54=\"Activities for generating funds\",WorkingR!X54,\"\")","v":""},{"$f":"IF(WorkingR!$B54=\"Activities for generating funds\",WorkingR!Y54,\"\")","v":""},{"$f":"IF(Descriptions!D55=\"Activites for generating funds\",Descriptions!AA55,0)","v":0}]
[{"$f":"IF(Descriptions!D56=\"Activites for generating funds\",Descriptions!B56,0)","v":0},{"$f":"IF(WorkingR!$B55=\"Activities for generating funds\",WorkingR!D55,\"\")","v":""},{"$f":"IF(WorkingR!$B55=\"Activities for generating funds\",WorkingR!E55,\"\")","v":""},{"$f":"IF(WorkingR!$B55=\"Activities for generating funds\",WorkingR!F55,\"\")","v":""},{"$f":"IF(WorkingR!$B55=\"Activities for generating funds\",WorkingR!G55,\"\")","v":""},{"$f":"IF(WorkingR!$B55=\"Activities for generating funds\",WorkingR!H55,\"\")","v":""},{"$f":"IF(WorkingR!$B55=\"Activities for generating funds\",WorkingR!I55,\"\")","v":""},{"$f":"IF(WorkingR!$B55=\"Activities for generating funds\",WorkingR!J55,\"\")","v":""},{"$f":"IF(WorkingR!$B55=\"Activities for generating funds\",WorkingR!K55,\"\")","v":""},{"$f":"IF(WorkingR!$B55=\"Activities for generating funds\",WorkingR!L55,\"\")","v":""},{"$f":"IF(WorkingR!$B55=\"Activities for generating funds\",WorkingR!M55,\"\")","v":""},{"$f":"IF(WorkingR!$B55=\"Activities for generating funds\",WorkingR!N55,\"\")","v":""},{"$f":"IF(WorkingR!$B55=\"Activities for generating funds\",WorkingR!O55,\"\")","v":""},{"$f":"IF(WorkingR!$B55=\"Activities for generating funds\",WorkingR!P55,\"\")","v":""},{"$f":"IF(WorkingR!$B55=\"Activities for generating funds\",WorkingR!Q55,\"\")","v":""},{"$f":"IF(WorkingR!$B55=\"Activities for generating funds\",WorkingR!R55,\"\")","v":""},{"$f":"IF(WorkingR!$B55=\"Activities for generating funds\",WorkingR!S55,\"\")","v":""},{"$f":"IF(WorkingR!$B55=\"Activities for generating funds\",WorkingR!T55,\"\")","v":""},{"$f":"IF(WorkingR!$B55=\"Activities for generating funds\",WorkingR!U55,\"\")","v":""},{"$f":"IF(WorkingR!$B55=\"Activities for generating funds\",WorkingR!V55,\"\")","v":""},{"$f":"IF(WorkingR!$B55=\"Activities for generating funds\",WorkingR!W55,\"\")","v":""},{"$f":"IF(WorkingR!$B55=\"Activities for generating funds\",WorkingR!X55,\"\")","v":""},{"$f":"IF(WorkingR!$B55=\"Activities for generating funds\",WorkingR!Y55,\"\")","v":""},{"$f":"IF(Descriptions!D56=\"Activites for generating funds\",Descriptions!AA56,0)","v":0}]
[{"$f":"IF(Descriptions!D57=\"Activites for generating funds\",Descriptions!B57,0)","v":0},{"$f":"IF(WorkingR!$B56=\"Activities for generating funds\",WorkingR!D56,\"\")","v":""},{"$f":"IF(WorkingR!$B56=\"Activities for generating funds\",WorkingR!E56,\"\")","v":""},{"$f":"IF(WorkingR!$B56=\"Activities for generating funds\",WorkingR!F56,\"\")","v":""},{"$f":"IF(WorkingR!$B56=\"Activities for generating funds\",WorkingR!G56,\"\")","v":""},{"$f":"IF(WorkingR!$B56=\"Activities for generating funds\",WorkingR!H56,\"\")","v":""},{"$f":"IF(WorkingR!$B56=\"Activities for generating funds\",WorkingR!I56,\"\")","v":""},{"$f":"IF(WorkingR!$B56=\"Activities for generating funds\",WorkingR!J56,\"\")","v":""},{"$f":"IF(WorkingR!$B56=\"Activities for generating funds\",WorkingR!K56,\"\")","v":""},{"$f":"IF(WorkingR!$B56=\"Activities for generating funds\",WorkingR!L56,\"\")","v":""},{"$f":"IF(WorkingR!$B56=\"Activities for generating funds\",WorkingR!M56,\"\")","v":""},{"$f":"IF(WorkingR!$B56=\"Activities for generating funds\",WorkingR!N56,\"\")","v":""},{"$f":"IF(WorkingR!$B56=\"Activities for generating funds\",WorkingR!O56,\"\")","v":""},{"$f":"IF(WorkingR!$B56=\"Activities for generating funds\",WorkingR!P56,\"\")","v":""},{"$f":"IF(WorkingR!$B56=\"Activities for generating funds\",WorkingR!Q56,\"\")","v":""},{"$f":"IF(WorkingR!$B56=\"Activities for generating funds\",WorkingR!R56,\"\")","v":""},{"$f":"IF(WorkingR!$B56=\"Activities for generating funds\",WorkingR!S56,\"\")","v":""},{"$f":"IF(WorkingR!$B56=\"Activities for generating funds\",WorkingR!T56,\"\")","v":""},{"$f":"IF(WorkingR!$B56=\"Activities for generating funds\",WorkingR!U56,\"\")","v":""},{"$f":"IF(WorkingR!$B56=\"Activities for generating funds\",WorkingR!V56,\"\")","v":""},{"$f":"IF(WorkingR!$B56=\"Activities for generating funds\",WorkingR!W56,\"\")","v":""},{"$f":"IF(WorkingR!$B56=\"Activities for generating funds\",WorkingR!X56,\"\")","v":""},{"$f":"IF(WorkingR!$B56=\"Activities for generating funds\",WorkingR!Y56,\"\")","v":""},{"$f":"IF(Descriptions!D57=\"Activites for generating funds\",Descriptions!AA57,0)","v":0}]
[{"$f":"IF(Descriptions!D58=\"Activites for generating funds\",Descriptions!B58,0)","v":0},{"$f":"IF(WorkingR!$B57=\"Activities for generating funds\",WorkingR!D57,\"\")","v":""},{"$f":"IF(WorkingR!$B57=\"Activities for generating funds\",WorkingR!E57,\"\")","v":""},{"$f":"IF(WorkingR!$B57=\"Activities for generating funds\",WorkingR!F57,\"\")","v":""},{"$f":"IF(WorkingR!$B57=\"Activities for generating funds\",WorkingR!G57,\"\")","v":""},{"$f":"IF(WorkingR!$B57=\"Activities for generating funds\",WorkingR!H57,\"\")","v":""},{"$f":"IF(WorkingR!$B57=\"Activities for generating funds\",WorkingR!I57,\"\")","v":""},{"$f":"IF(WorkingR!$B57=\"Activities for generating funds\",WorkingR!J57,\"\")","v":""},{"$f":"IF(WorkingR!$B57=\"Activities for generating funds\",WorkingR!K57,\"\")","v":""},{"$f":"IF(WorkingR!$B57=\"Activities for generating funds\",WorkingR!L57,\"\")","v":""},{"$f":"IF(WorkingR!$B57=\"Activities for generating funds\",WorkingR!M57,\"\")","v":""},{"$f":"IF(WorkingR!$B57=\"Activities for generating funds\",WorkingR!N57,\"\")","v":""},{"$f":"IF(WorkingR!$B57=\"Activities for generating funds\",WorkingR!O57,\"\")","v":""},{"$f":"IF(WorkingR!$B57=\"Activities for generating funds\",WorkingR!P57,\"\")","v":""},{"$f":"IF(WorkingR!$B57=\"Activities for generating funds\",WorkingR!Q57,\"\")","v":""},{"$f":"IF(WorkingR!$B57=\"Activities for generating funds\",WorkingR!R57,\"\")","v":""},{"$f":"IF(WorkingR!$B57=\"Activities for generating funds\",WorkingR!S57,\"\")","v":""},{"$f":"IF(WorkingR!$B57=\"Activities for generating funds\",WorkingR!T57,\"\")","v":""},{"$f":"IF(WorkingR!$B57=\"Activities for generating funds\",WorkingR!U57,\"\")","v":""},{"$f":"IF(WorkingR!$B57=\"Activities for generating funds\",WorkingR!V57,\"\")","v":""},{"$f":"IF(WorkingR!$B57=\"Activities for generating funds\",WorkingR!W57,\"\")","v":""},{"$f":"IF(WorkingR!$B57=\"Activities for generating funds\",WorkingR!X57,\"\")","v":""},{"$f":"IF(WorkingR!$B57=\"Activities for generating funds\",WorkingR!Y57,\"\")","v":""},{"$f":"IF(Descriptions!D58=\"Activites for generating funds\",Descriptions!AA58,0)","v":0}]
[{"$f":"IF(Descriptions!D59=\"Activites for generating funds\",Descriptions!B59,0)","v":0},{"$f":"IF(WorkingR!$B58=\"Activities for generating funds\",WorkingR!D58,\"\")","v":""},{"$f":"IF(WorkingR!$B58=\"Activities for generating funds\",WorkingR!E58,\"\")","v":""},{"$f":"IF(WorkingR!$B58=\"Activities for generating funds\",WorkingR!F58,\"\")","v":""},{"$f":"IF(WorkingR!$B58=\"Activities for generating funds\",WorkingR!G58,\"\")","v":""},{"$f":"IF(WorkingR!$B58=\"Activities for generating funds\",WorkingR!H58,\"\")","v":""},{"$f":"IF(WorkingR!$B58=\"Activities for generating funds\",WorkingR!I58,\"\")","v":""},{"$f":"IF(WorkingR!$B58=\"Activities for generating funds\",WorkingR!J58,\"\")","v":""},{"$f":"IF(WorkingR!$B58=\"Activities for generating funds\",WorkingR!K58,\"\")","v":""},{"$f":"IF(WorkingR!$B58=\"Activities for generating funds\",WorkingR!L58,\"\")","v":""},{"$f":"IF(WorkingR!$B58=\"Activities for generating funds\",WorkingR!M58,\"\")","v":""},{"$f":"IF(WorkingR!$B58=\"Activities for generating funds\",WorkingR!N58,\"\")","v":""},{"$f":"IF(WorkingR!$B58=\"Activities for generating funds\",WorkingR!O58,\"\")","v":""},{"$f":"IF(WorkingR!$B58=\"Activities for generating funds\",WorkingR!P58,\"\")","v":""},{"$f":"IF(WorkingR!$B58=\"Activities for generating funds\",WorkingR!Q58,\"\")","v":""},{"$f":"IF(WorkingR!$B58=\"Activities for generating funds\",WorkingR!R58,\"\")","v":""},{"$f":"IF(WorkingR!$B58=\"Activities for generating funds\",WorkingR!S58,\"\")","v":""},{"$f":"IF(WorkingR!$B58=\"Activities for generating funds\",WorkingR!T58,\"\")","v":""},{"$f":"IF(WorkingR!$B58=\"Activities for generating funds\",WorkingR!U58,\"\")","v":""},{"$f":"IF(WorkingR!$B58=\"Activities for generating funds\",WorkingR!V58,\"\")","v":""},{"$f":"IF(WorkingR!$B58=\"Activities for generating funds\",WorkingR!W58,\"\")","v":""},{"$f":"IF(WorkingR!$B58=\"Activities for generating funds\",WorkingR!X58,\"\")","v":""},{"$f":"IF(WorkingR!$B58=\"Activities for generating funds\",WorkingR!Y58,\"\")","v":""},{"$f":"IF(Descriptions!D59=\"Activites for generating funds\",Descriptions!AA59,0)","v":0}]
[{"$f":"IF(Descriptions!D60=\"Activites for generating funds\",Descriptions!B60,0)","v":0},{"$f":"IF(WorkingR!$B59=\"Activities for generating funds\",WorkingR!D59,\"\")","v":""},{"$f":"IF(WorkingR!$B59=\"Activities for generating funds\",WorkingR!E59,\"\")","v":""},{"$f":"IF(WorkingR!$B59=\"Activities for generating funds\",WorkingR!F59,\"\")","v":""},{"$f":"IF(WorkingR!$B59=\"Activities for generating funds\",WorkingR!G59,\"\")","v":""},{"$f":"IF(WorkingR!$B59=\"Activities for generating funds\",WorkingR!H59,\"\")","v":""},{"$f":"IF(WorkingR!$B59=\"Activities for generating funds\",WorkingR!I59,\"\")","v":""},{"$f":"IF(WorkingR!$B59=\"Activities for generating funds\",WorkingR!J59,\"\")","v":""},{"$f":"IF(WorkingR!$B59=\"Activities for generating funds\",WorkingR!K59,\"\")","v":""},{"$f":"IF(WorkingR!$B59=\"Activities for generating funds\",WorkingR!L59,\"\")","v":""},{"$f":"IF(WorkingR!$B59=\"Activities for generating funds\",WorkingR!M59,\"\")","v":""},{"$f":"IF(WorkingR!$B59=\"Activities for generating funds\",WorkingR!N59,\"\")","v":""},{"$f":"IF(WorkingR!$B59=\"Activities for generating funds\",WorkingR!O59,\"\")","v":""},{"$f":"IF(WorkingR!$B59=\"Activities for generating funds\",WorkingR!P59,\"\")","v":""},{"$f":"IF(WorkingR!$B59=\"Activities for generating funds\",WorkingR!Q59,\"\")","v":""},{"$f":"IF(WorkingR!$B59=\"Activities for generating funds\",WorkingR!R59,\"\")","v":""},{"$f":"IF(WorkingR!$B59=\"Activities for generating funds\",WorkingR!S59,\"\")","v":""},{"$f":"IF(WorkingR!$B59=\"Activities for generating funds\",WorkingR!T59,\"\")","v":""},{"$f":"IF(WorkingR!$B59=\"Activities for generating funds\",WorkingR!U59,\"\")","v":""},{"$f":"IF(WorkingR!$B59=\"Activities for generating funds\",WorkingR!V59,\"\")","v":""},{"$f":"IF(WorkingR!$B59=\"Activities for generating funds\",WorkingR!W59,\"\")","v":""},{"$f":"IF(WorkingR!$B59=\"Activities for generating funds\",WorkingR!X59,\"\")","v":""},{"$f":"IF(WorkingR!$B59=\"Activities for generating funds\",WorkingR!Y59,\"\")","v":""},{"$f":"IF(Descriptions!D60=\"Activites for generating funds\",Descriptions!AA60,0)","v":0}]
[{"$f":"IF(Descriptions!D61=\"Activites for generating funds\",Descriptions!B61,0)","v":0},{"$f":"IF(WorkingR!$B60=\"Activities for generating funds\",WorkingR!D60,\"\")","v":""},{"$f":"IF(WorkingR!$B60=\"Activities for generating funds\",WorkingR!E60,\"\")","v":""},{"$f":"IF(WorkingR!$B60=\"Activities for generating funds\",WorkingR!F60,\"\")","v":""},{"$f":"IF(WorkingR!$B60=\"Activities for generating funds\",WorkingR!G60,\"\")","v":""},{"$f":"IF(WorkingR!$B60=\"Activities for generating funds\",WorkingR!H60,\"\")","v":""},{"$f":"IF(WorkingR!$B60=\"Activities for generating funds\",WorkingR!I60,\"\")","v":""},{"$f":"IF(WorkingR!$B60=\"Activities for generating funds\",WorkingR!J60,\"\")","v":""},{"$f":"IF(WorkingR!$B60=\"Activities for generating funds\",WorkingR!K60,\"\")","v":""},{"$f":"IF(WorkingR!$B60=\"Activities for generating funds\",WorkingR!L60,\"\")","v":""},{"$f":"IF(WorkingR!$B60=\"Activities for generating funds\",WorkingR!M60,\"\")","v":""},{"$f":"IF(WorkingR!$B60=\"Activities for generating funds\",WorkingR!N60,\"\")","v":""},{"$f":"IF(WorkingR!$B60=\"Activities for generating funds\",WorkingR!O60,\"\")","v":""},{"$f":"IF(WorkingR!$B60=\"Activities for generating funds\",WorkingR!P60,\"\")","v":""},{"$f":"IF(WorkingR!$B60=\"Activities for generating funds\",WorkingR!Q60,\"\")","v":""},{"$f":"IF(WorkingR!$B60=\"Activities for generating funds\",WorkingR!R60,\"\")","v":""},{"$f":"IF(WorkingR!$B60=\"Activities for generating funds\",WorkingR!S60,\"\")","v":""},{"$f":"IF(WorkingR!$B60=\"Activities for generating funds\",WorkingR!T60,\"\")","v":""},{"$f":"IF(WorkingR!$B60=\"Activities for generating funds\",WorkingR!U60,\"\")","v":""},{"$f":"IF(WorkingR!$B60=\"Activities for generating funds\",WorkingR!V60,\"\")","v":""},{"$f":"IF(WorkingR!$B60=\"Activities for generating funds\",WorkingR!W60,\"\")","v":""},{"$f":"IF(WorkingR!$B60=\"Activities for generating funds\",WorkingR!X60,\"\")","v":""},{"$f":"IF(WorkingR!$B60=\"Activities for generating funds\",WorkingR!Y60,\"\")","v":""},{"$f":"IF(Descriptions!D61=\"Activites for generating funds\",Descriptions!AA61,0)","v":0}]
[{"$f":"IF(Descriptions!D62=\"Activites for generating funds\",Descriptions!B62,0)","v":0},{"$f":"IF(WorkingR!$B61=\"Activities for generating funds\",WorkingR!D61,\"\")","v":""},{"$f":"IF(WorkingR!$B61=\"Activities for generating funds\",WorkingR!E61,\"\")","v":""},{"$f":"IF(WorkingR!$B61=\"Activities for generating funds\",WorkingR!F61,\"\")","v":""},{"$f":"IF(WorkingR!$B61=\"Activities for generating funds\",WorkingR!G61,\"\")","v":""},{"$f":"IF(WorkingR!$B61=\"Activities for generating funds\",WorkingR!H61,\"\")","v":""},{"$f":"IF(WorkingR!$B61=\"Activities for generating funds\",WorkingR!I61,\"\")","v":""},{"$f":"IF(WorkingR!$B61=\"Activities for generating funds\",WorkingR!J61,\"\")","v":""},{"$f":"IF(WorkingR!$B61=\"Activities for generating funds\",WorkingR!K61,\"\")","v":""},{"$f":"IF(WorkingR!$B61=\"Activities for generating funds\",WorkingR!L61,\"\")","v":""},{"$f":"IF(WorkingR!$B61=\"Activities for generating funds\",WorkingR!M61,\"\")","v":""},{"$f":"IF(WorkingR!$B61=\"Activities for generating funds\",WorkingR!N61,\"\")","v":""},{"$f":"IF(WorkingR!$B61=\"Activities for generating funds\",WorkingR!O61,\"\")","v":""},{"$f":"IF(WorkingR!$B61=\"Activities for generating funds\",WorkingR!P61,\"\")","v":""},{"$f":"IF(WorkingR!$B61=\"Activities for generating funds\",WorkingR!Q61,\"\")","v":""},{"$f":"IF(WorkingR!$B61=\"Activities for generating funds\",WorkingR!R61,\"\")","v":""},{"$f":"IF(WorkingR!$B61=\"Activities for generating funds\",WorkingR!S61,\"\")","v":""},{"$f":"IF(WorkingR!$B61=\"Activities for generating funds\",WorkingR!T61,\"\")","v":""},{"$f":"IF(WorkingR!$B61=\"Activities for generating funds\",WorkingR!U61,\"\")","v":""},{"$f":"IF(WorkingR!$B61=\"Activities for generating funds\",WorkingR!V61,\"\")","v":""},{"$f":"IF(WorkingR!$B61=\"Activities for generating funds\",WorkingR!W61,\"\")","v":""},{"$f":"IF(WorkingR!$B61=\"Activities for generating funds\",WorkingR!X61,\"\")","v":""},{"$f":"IF(WorkingR!$B61=\"Activities for generating funds\",WorkingR!Y61,\"\")","v":""},{"$f":"IF(Descriptions!D62=\"Activites for generating funds\",Descriptions!AA62,0)","v":0}]
[{"$f":"IF(Descriptions!D63=\"Activites for generating funds\",Descriptions!B63,0)","v":0},{"$f":"IF(WorkingR!$B62=\"Activities for generating funds\",WorkingR!D62,\"\")","v":""},{"$f":"IF(WorkingR!$B62=\"Activities for generating funds\",WorkingR!E62,\"\")","v":""},{"$f":"IF(WorkingR!$B62=\"Activities for generating funds\",WorkingR!F62,\"\")","v":""},{"$f":"IF(WorkingR!$B62=\"Activities for generating funds\",WorkingR!G62,\"\")","v":""},{"$f":"IF(WorkingR!$B62=\"Activities for generating funds\",WorkingR!H62,\"\")","v":""},{"$f":"IF(WorkingR!$B62=\"Activities for generating funds\",WorkingR!I62,\"\")","v":""},{"$f":"IF(WorkingR!$B62=\"Activities for generating funds\",WorkingR!J62,\"\")","v":""},{"$f":"IF(WorkingR!$B62=\"Activities for generating funds\",WorkingR!K62,\"\")","v":""},{"$f":"IF(WorkingR!$B62=\"Activities for generating funds\",WorkingR!L62,\"\")","v":""},{"$f":"IF(WorkingR!$B62=\"Activities for generating funds\",WorkingR!M62,\"\")","v":""},{"$f":"IF(WorkingR!$B62=\"Activities for generating funds\",WorkingR!N62,\"\")","v":""},{"$f":"IF(WorkingR!$B62=\"Activities for generating funds\",WorkingR!O62,\"\")","v":""},{"$f":"IF(WorkingR!$B62=\"Activities for generating funds\",WorkingR!P62,\"\")","v":""},{"$f":"IF(WorkingR!$B62=\"Activities for generating funds\",WorkingR!Q62,\"\")","v":""},{"$f":"IF(WorkingR!$B62=\"Activities for generating funds\",WorkingR!R62,\"\")","v":""},{"$f":"IF(WorkingR!$B62=\"Activities for generating funds\",WorkingR!S62,\"\")","v":""},{"$f":"IF(WorkingR!$B62=\"Activities for generating funds\",WorkingR!T62,\"\")","v":""},{"$f":"IF(WorkingR!$B62=\"Activities for generating funds\",WorkingR!U62,\"\")","v":""},{"$f":"IF(WorkingR!$B62=\"Activities for generating funds\",WorkingR!V62,\"\")","v":""},{"$f":"IF(WorkingR!$B62=\"Activities for generating funds\",WorkingR!W62,\"\")","v":""},{"$f":"IF(WorkingR!$B62=\"Activities for generating funds\",WorkingR!X62,\"\")","v":""},{"$f":"IF(WorkingR!$B62=\"Activities for generating funds\",WorkingR!Y62,\"\")","v":""},{"$f":"IF(Descriptions!D63=\"Activites for generating funds\",Descriptions!AA63,0)","v":0}]
[{"$f":"IF(Descriptions!D64=\"Activites for generating funds\",Descriptions!B64,0)","v":0},{"$f":"IF(WorkingR!$B63=\"Activities for generating funds\",WorkingR!D63,\"\")","v":""},{"$f":"IF(WorkingR!$B63=\"Activities for generating funds\",WorkingR!E63,\"\")","v":""},{"$f":"IF(WorkingR!$B63=\"Activities for generating funds\",WorkingR!F63,\"\")","v":""},{"$f":"IF(WorkingR!$B63=\"Activities for generating funds\",WorkingR!G63,\"\")","v":""},{"$f":"IF(WorkingR!$B63=\"Activities for generating funds\",WorkingR!H63,\"\")","v":""},{"$f":"IF(WorkingR!$B63=\"Activities for generating funds\",WorkingR!I63,\"\")","v":""},{"$f":"IF(WorkingR!$B63=\"Activities for generating funds\",WorkingR!J63,\"\")","v":""},{"$f":"IF(WorkingR!$B63=\"Activities for generating funds\",WorkingR!K63,\"\")","v":""},{"$f":"IF(WorkingR!$B63=\"Activities for generating funds\",WorkingR!L63,\"\")","v":""},{"$f":"IF(WorkingR!$B63=\"Activities for generating funds\",WorkingR!M63,\"\")","v":""},{"$f":"IF(WorkingR!$B63=\"Activities for generating funds\",WorkingR!N63,\"\")","v":""},{"$f":"IF(WorkingR!$B63=\"Activities for generating funds\",WorkingR!O63,\"\")","v":""},{"$f":"IF(WorkingR!$B63=\"Activities for generating funds\",WorkingR!P63,\"\")","v":""},{"$f":"IF(WorkingR!$B63=\"Activities for generating funds\",WorkingR!Q63,\"\")","v":""},{"$f":"IF(WorkingR!$B63=\"Activities for generating funds\",WorkingR!R63,\"\")","v":""},{"$f":"IF(WorkingR!$B63=\"Activities for generating funds\",WorkingR!S63,\"\")","v":""},{"$f":"IF(WorkingR!$B63=\"Activities for generating funds\",WorkingR!T63,\"\")","v":""},{"$f":"IF(WorkingR!$B63=\"Activities for generating funds\",WorkingR!U63,\"\")","v":""},{"$f":"IF(WorkingR!$B63=\"Activities for generating funds\",WorkingR!V63,\"\")","v":""},{"$f":"IF(WorkingR!$B63=\"Activities for generating funds\",WorkingR!W63,\"\")","v":""},{"$f":"IF(WorkingR!$B63=\"Activities for generating funds\",WorkingR!X63,\"\")","v":""},{"$f":"IF(WorkingR!$B63=\"Activities for generating funds\",WorkingR!Y63,\"\")","v":""},{"$f":"IF(Descriptions!D64=\"Activites for generating funds\",Descriptions!AA64,0)","v":0}]
[{"$f":"IF(Descriptions!D65=\"Activites for generating funds\",Descriptions!B65,0)","v":0},{"$f":"IF(WorkingR!$B64=\"Activities for generating funds\",WorkingR!D64,\"\")","v":""},{"$f":"IF(WorkingR!$B64=\"Activities for generating funds\",WorkingR!E64,\"\")","v":""},{"$f":"IF(WorkingR!$B64=\"Activities for generating funds\",WorkingR!F64,\"\")","v":""},{"$f":"IF(WorkingR!$B64=\"Activities for generating funds\",WorkingR!G64,\"\")","v":""},{"$f":"IF(WorkingR!$B64=\"Activities for generating funds\",WorkingR!H64,\"\")","v":""},{"$f":"IF(WorkingR!$B64=\"Activities for generating funds\",WorkingR!I64,\"\")","v":""},{"$f":"IF(WorkingR!$B64=\"Activities for generating funds\",WorkingR!J64,\"\")","v":""},{"$f":"IF(WorkingR!$B64=\"Activities for generating funds\",WorkingR!K64,\"\")","v":""},{"$f":"IF(WorkingR!$B64=\"Activities for generating funds\",WorkingR!L64,\"\")","v":""},{"$f":"IF(WorkingR!$B64=\"Activities for generating funds\",WorkingR!M64,\"\")","v":""},{"$f":"IF(WorkingR!$B64=\"Activities for generating funds\",WorkingR!N64,\"\")","v":""},{"$f":"IF(WorkingR!$B64=\"Activities for generating funds\",WorkingR!O64,\"\")","v":""},{"$f":"IF(WorkingR!$B64=\"Activities for generating funds\",WorkingR!P64,\"\")","v":""},{"$f":"IF(WorkingR!$B64=\"Activities for generating funds\",WorkingR!Q64,\"\")","v":""},{"$f":"IF(WorkingR!$B64=\"Activities for generating funds\",WorkingR!R64,\"\")","v":""},{"$f":"IF(WorkingR!$B64=\"Activities for generating funds\",WorkingR!S64,\"\")","v":""},{"$f":"IF(WorkingR!$B64=\"Activities for generating funds\",WorkingR!T64,\"\")","v":""},{"$f":"IF(WorkingR!$B64=\"Activities for generating funds\",WorkingR!U64,\"\")","v":""},{"$f":"IF(WorkingR!$B64=\"Activities for generating funds\",WorkingR!V64,\"\")","v":""},{"$f":"IF(WorkingR!$B64=\"Activities for generating funds\",WorkingR!W64,\"\")","v":""},{"$f":"IF(WorkingR!$B64=\"Activities for generating funds\",WorkingR!X64,\"\")","v":""},{"$f":"IF(WorkingR!$B64=\"Activities for generating funds\",WorkingR!Y64,\"\")","v":""},{"$f":"IF(Descriptions!D65=\"Activites for generating funds\",Descriptions!AA65,0)","v":0}]
[{"$f":"IF(Descriptions!D66=\"Activites for generating funds\",Descriptions!B66,0)","v":0},{"$f":"IF(WorkingR!$B65=\"Activities for generating funds\",WorkingR!D65,\"\")","v":""},{"$f":"IF(WorkingR!$B65=\"Activities for generating funds\",WorkingR!E65,\"\")","v":""},{"$f":"IF(WorkingR!$B65=\"Activities for generating funds\",WorkingR!F65,\"\")","v":""},{"$f":"IF(WorkingR!$B65=\"Activities for generating funds\",WorkingR!G65,\"\")","v":""},{"$f":"IF(WorkingR!$B65=\"Activities for generating funds\",WorkingR!H65,\"\")","v":""},{"$f":"IF(WorkingR!$B65=\"Activities for generating funds\",WorkingR!I65,\"\")","v":""},{"$f":"IF(WorkingR!$B65=\"Activities for generating funds\",WorkingR!J65,\"\")","v":""},{"$f":"IF(WorkingR!$B65=\"Activities for generating funds\",WorkingR!K65,\"\")","v":""},{"$f":"IF(WorkingR!$B65=\"Activities for generating funds\",WorkingR!L65,\"\")","v":""},{"$f":"IF(WorkingR!$B65=\"Activities for generating funds\",WorkingR!M65,\"\")","v":""},{"$f":"IF(WorkingR!$B65=\"Activities for generating funds\",WorkingR!N65,\"\")","v":""},{"$f":"IF(WorkingR!$B65=\"Activities for generating funds\",WorkingR!O65,\"\")","v":""},{"$f":"IF(WorkingR!$B65=\"Activities for generating funds\",WorkingR!P65,\"\")","v":""},{"$f":"IF(WorkingR!$B65=\"Activities for generating funds\",WorkingR!Q65,\"\")","v":""},{"$f":"IF(WorkingR!$B65=\"Activities for generating funds\",WorkingR!R65,\"\")","v":""},{"$f":"IF(WorkingR!$B65=\"Activities for generating funds\",WorkingR!S65,\"\")","v":""},{"$f":"IF(WorkingR!$B65=\"Activities for generating funds\",WorkingR!T65,\"\")","v":""},{"$f":"IF(WorkingR!$B65=\"Activities for generating funds\",WorkingR!U65,\"\")","v":""},{"$f":"IF(WorkingR!$B65=\"Activities for generating funds\",WorkingR!V65,\"\")","v":""},{"$f":"IF(WorkingR!$B65=\"Activities for generating funds\",WorkingR!W65,\"\")","v":""},{"$f":"IF(WorkingR!$B65=\"Activities for generating funds\",WorkingR!X65,\"\")","v":""},{"$f":"IF(WorkingR!$B65=\"Activities for generating funds\",WorkingR!Y65,\"\")","v":""},{"$f":"IF(Descriptions!D66=\"Activites for generating funds\",Descriptions!AA66,0)","v":0}]
[{"$f":"IF(Descriptions!D67=\"Activites for generating funds\",Descriptions!B67,0)","v":0},{"$f":"IF(WorkingR!$B66=\"Activities for generating funds\",WorkingR!D66,\"\")","v":""},{"$f":"IF(WorkingR!$B66=\"Activities for generating funds\",WorkingR!E66,\"\")","v":""},{"$f":"IF(WorkingR!$B66=\"Activities for generating funds\",WorkingR!F66,\"\")","v":""},{"$f":"IF(WorkingR!$B66=\"Activities for generating funds\",WorkingR!G66,\"\")","v":""},{"$f":"IF(WorkingR!$B66=\"Activities for generating funds\",WorkingR!H66,\"\")","v":""},{"$f":"IF(WorkingR!$B66=\"Activities for generating funds\",WorkingR!I66,\"\")","v":""},{"$f":"IF(WorkingR!$B66=\"Activities for generating funds\",WorkingR!J66,\"\")","v":""},{"$f":"IF(WorkingR!$B66=\"Activities for generating funds\",WorkingR!K66,\"\")","v":""},{"$f":"IF(WorkingR!$B66=\"Activities for generating funds\",WorkingR!L66,\"\")","v":""},{"$f":"IF(WorkingR!$B66=\"Activities for generating funds\",WorkingR!M66,\"\")","v":""},{"$f":"IF(WorkingR!$B66=\"Activities for generating funds\",WorkingR!N66,\"\")","v":""},{"$f":"IF(WorkingR!$B66=\"Activities for generating funds\",WorkingR!O66,\"\")","v":""},{"$f":"IF(WorkingR!$B66=\"Activities for generating funds\",WorkingR!P66,\"\")","v":""},{"$f":"IF(WorkingR!$B66=\"Activities for generating funds\",WorkingR!Q66,\"\")","v":""},{"$f":"IF(WorkingR!$B66=\"Activities for generating funds\",WorkingR!R66,\"\")","v":""},{"$f":"IF(WorkingR!$B66=\"Activities for generating funds\",WorkingR!S66,\"\")","v":""},{"$f":"IF(WorkingR!$B66=\"Activities for generating funds\",WorkingR!T66,\"\")","v":""},{"$f":"IF(WorkingR!$B66=\"Activities for generating funds\",WorkingR!U66,\"\")","v":""},{"$f":"IF(WorkingR!$B66=\"Activities for generating funds\",WorkingR!V66,\"\")","v":""},{"$f":"IF(WorkingR!$B66=\"Activities for generating funds\",WorkingR!W66,\"\")","v":""},{"$f":"IF(WorkingR!$B66=\"Activities for generating funds\",WorkingR!X66,\"\")","v":""},{"$f":"IF(WorkingR!$B66=\"Activities for generating funds\",WorkingR!Y66,\"\")","v":""},{"$f":"IF(Descriptions!D67=\"Activites for generating funds\",Descriptions!AA67,0)","v":0}]
[{"$f":"IF(Descriptions!D68=\"Activites for generating funds\",Descriptions!B68,0)","v":0},{"$f":"IF(WorkingR!$B67=\"Activities for generating funds\",WorkingR!D67,\"\")","v":""},{"$f":"IF(WorkingR!$B67=\"Activities for generating funds\",WorkingR!E67,\"\")","v":""},{"$f":"IF(WorkingR!$B67=\"Activities for generating funds\",WorkingR!F67,\"\")","v":""},{"$f":"IF(WorkingR!$B67=\"Activities for generating funds\",WorkingR!G67,\"\")","v":""},{"$f":"IF(WorkingR!$B67=\"Activities for generating funds\",WorkingR!H67,\"\")","v":""},{"$f":"IF(WorkingR!$B67=\"Activities for generating funds\",WorkingR!I67,\"\")","v":""},{"$f":"IF(WorkingR!$B67=\"Activities for generating funds\",WorkingR!J67,\"\")","v":""},{"$f":"IF(WorkingR!$B67=\"Activities for generating funds\",WorkingR!K67,\"\")","v":""},{"$f":"IF(WorkingR!$B67=\"Activities for generating funds\",WorkingR!L67,\"\")","v":""},{"$f":"IF(WorkingR!$B67=\"Activities for generating funds\",WorkingR!M67,\"\")","v":""},{"$f":"IF(WorkingR!$B67=\"Activities for generating funds\",WorkingR!N67,\"\")","v":""},{"$f":"IF(WorkingR!$B67=\"Activities for generating funds\",WorkingR!O67,\"\")","v":""},{"$f":"IF(WorkingR!$B67=\"Activities for generating funds\",WorkingR!P67,\"\")","v":""},{"$f":"IF(WorkingR!$B67=\"Activities for generating funds\",WorkingR!Q67,\"\")","v":""},{"$f":"IF(WorkingR!$B67=\"Activities for generating funds\",WorkingR!R67,\"\")","v":""},{"$f":"IF(WorkingR!$B67=\"Activities for generating funds\",WorkingR!S67,\"\")","v":""},{"$f":"IF(WorkingR!$B67=\"Activities for generating funds\",WorkingR!T67,\"\")","v":""},{"$f":"IF(WorkingR!$B67=\"Activities for generating funds\",WorkingR!U67,\"\")","v":""},{"$f":"IF(WorkingR!$B67=\"Activities for generating funds\",WorkingR!V67,\"\")","v":""},{"$f":"IF(WorkingR!$B67=\"Activities for generating funds\",WorkingR!W67,\"\")","v":""},{"$f":"IF(WorkingR!$B67=\"Activities for generating funds\",WorkingR!X67,\"\")","v":""},{"$f":"IF(WorkingR!$B67=\"Activities for generating funds\",WorkingR!Y67,\"\")","v":""},{"$f":"IF(Descriptions!D68=\"Activites for generating funds\",Descriptions!AA68,0)","v":0}]
[{"$f":"IF(Descriptions!D69=\"Activites for generating funds\",Descriptions!B69,0)","v":0},{"$f":"IF(WorkingR!$B68=\"Activities for generating funds\",WorkingR!D68,\"\")","v":""},{"$f":"IF(WorkingR!$B68=\"Activities for generating funds\",WorkingR!E68,\"\")","v":""},{"$f":"IF(WorkingR!$B68=\"Activities for generating funds\",WorkingR!F68,\"\")","v":""},{"$f":"IF(WorkingR!$B68=\"Activities for generating funds\",WorkingR!G68,\"\")","v":""},{"$f":"IF(WorkingR!$B68=\"Activities for generating funds\",WorkingR!H68,\"\")","v":""},{"$f":"IF(WorkingR!$B68=\"Activities for generating funds\",WorkingR!I68,\"\")","v":""},{"$f":"IF(WorkingR!$B68=\"Activities for generating funds\",WorkingR!J68,\"\")","v":""},{"$f":"IF(WorkingR!$B68=\"Activities for generating funds\",WorkingR!K68,\"\")","v":""},{"$f":"IF(WorkingR!$B68=\"Activities for generating funds\",WorkingR!L68,\"\")","v":""},{"$f":"IF(WorkingR!$B68=\"Activities for generating funds\",WorkingR!M68,\"\")","v":""},{"$f":"IF(WorkingR!$B68=\"Activities for generating funds\",WorkingR!N68,\"\")","v":""},{"$f":"IF(WorkingR!$B68=\"Activities for generating funds\",WorkingR!O68,\"\")","v":""},{"$f":"IF(WorkingR!$B68=\"Activities for generating funds\",WorkingR!P68,\"\")","v":""},{"$f":"IF(WorkingR!$B68=\"Activities for generating funds\",WorkingR!Q68,\"\")","v":""},{"$f":"IF(WorkingR!$B68=\"Activities for generating funds\",WorkingR!R68,\"\")","v":""},{"$f":"IF(WorkingR!$B68=\"Activities for generating funds\",WorkingR!S68,\"\")","v":""},{"$f":"IF(WorkingR!$B68=\"Activities for generating funds\",WorkingR!T68,\"\")","v":""},{"$f":"IF(WorkingR!$B68=\"Activities for generating funds\",WorkingR!U68,\"\")","v":""},{"$f":"IF(WorkingR!$B68=\"Activities for generating funds\",WorkingR!V68,\"\")","v":""},{"$f":"IF(WorkingR!$B68=\"Activities for generating funds\",WorkingR!W68,\"\")","v":""},{"$f":"IF(WorkingR!$B68=\"Activities for generating funds\",WorkingR!X68,\"\")","v":""},{"$f":"IF(WorkingR!$B68=\"Activities for generating funds\",WorkingR!Y68,\"\")","v":""},{"$f":"IF(Descriptions!D69=\"Activites for generating funds\",Descriptions!AA69,0)","v":0}]
[{"$f":"IF(Descriptions!D70=\"Activites for generating funds\",Descriptions!B70,0)","v":0},{"$f":"IF(WorkingR!$B69=\"Activities for generating funds\",WorkingR!D69,\"\")","v":""},{"$f":"IF(WorkingR!$B69=\"Activities for generating funds\",WorkingR!E69,\"\")","v":""},{"$f":"IF(WorkingR!$B69=\"Activities for generating funds\",WorkingR!F69,\"\")","v":""},{"$f":"IF(WorkingR!$B69=\"Activities for generating funds\",WorkingR!G69,\"\")","v":""},{"$f":"IF(WorkingR!$B69=\"Activities for generating funds\",WorkingR!H69,\"\")","v":""},{"$f":"IF(WorkingR!$B69=\"Activities for generating funds\",WorkingR!I69,\"\")","v":""},{"$f":"IF(WorkingR!$B69=\"Activities for generating funds\",WorkingR!J69,\"\")","v":""},{"$f":"IF(WorkingR!$B69=\"Activities for generating funds\",WorkingR!K69,\"\")","v":""},{"$f":"IF(WorkingR!$B69=\"Activities for generating funds\",WorkingR!L69,\"\")","v":""},{"$f":"IF(WorkingR!$B69=\"Activities for generating funds\",WorkingR!M69,\"\")","v":""},{"$f":"IF(WorkingR!$B69=\"Activities for generating funds\",WorkingR!N69,\"\")","v":""},{"$f":"IF(WorkingR!$B69=\"Activities for generating funds\",WorkingR!O69,\"\")","v":""},{"$f":"IF(WorkingR!$B69=\"Activities for generating funds\",WorkingR!P69,\"\")","v":""},{"$f":"IF(WorkingR!$B69=\"Activities for generating funds\",WorkingR!Q69,\"\")","v":""},{"$f":"IF(WorkingR!$B69=\"Activities for generating funds\",WorkingR!R69,\"\")","v":""},{"$f":"IF(WorkingR!$B69=\"Activities for generating funds\",WorkingR!S69,\"\")","v":""},{"$f":"IF(WorkingR!$B69=\"Activities for generating funds\",WorkingR!T69,\"\")","v":""},{"$f":"IF(WorkingR!$B69=\"Activities for generating funds\",WorkingR!U69,\"\")","v":""},{"$f":"IF(WorkingR!$B69=\"Activities for generating funds\",WorkingR!V69,\"\")","v":""},{"$f":"IF(WorkingR!$B69=\"Activities for generating funds\",WorkingR!W69,\"\")","v":""},{"$f":"IF(WorkingR!$B69=\"Activities for generating funds\",WorkingR!X69,\"\")","v":""},{"$f":"IF(WorkingR!$B69=\"Activities for generating funds\",WorkingR!Y69,\"\")","v":""},{"$f":"IF(Descriptions!D70=\"Activites for generating funds\",Descriptions!AA70,0)","v":0}]
[{"$f":"IF(Descriptions!D71=\"Activites for generating funds\",Descriptions!B71,0)","v":0},{"$f":"IF(WorkingR!$B70=\"Activities for generating funds\",WorkingR!D70,\"\")","v":""},{"$f":"IF(WorkingR!$B70=\"Activities for generating funds\",WorkingR!E70,\"\")","v":""},{"$f":"IF(WorkingR!$B70=\"Activities for generating funds\",WorkingR!F70,\"\")","v":""},{"$f":"IF(WorkingR!$B70=\"Activities for generating funds\",WorkingR!G70,\"\")","v":""},{"$f":"IF(WorkingR!$B70=\"Activities for generating funds\",WorkingR!H70,\"\")","v":""},{"$f":"IF(WorkingR!$B70=\"Activities for generating funds\",WorkingR!I70,\"\")","v":""},{"$f":"IF(WorkingR!$B70=\"Activities for generating funds\",WorkingR!J70,\"\")","v":""},{"$f":"IF(WorkingR!$B70=\"Activities for generating funds\",WorkingR!K70,\"\")","v":""},{"$f":"IF(WorkingR!$B70=\"Activities for generating funds\",WorkingR!L70,\"\")","v":""},{"$f":"IF(WorkingR!$B70=\"Activities for generating funds\",WorkingR!M70,\"\")","v":""},{"$f":"IF(WorkingR!$B70=\"Activities for generating funds\",WorkingR!N70,\"\")","v":""},{"$f":"IF(WorkingR!$B70=\"Activities for generating funds\",WorkingR!O70,\"\")","v":""},{"$f":"IF(WorkingR!$B70=\"Activities for generating funds\",WorkingR!P70,\"\")","v":""},{"$f":"IF(WorkingR!$B70=\"Activities for generating funds\",WorkingR!Q70,\"\")","v":""},{"$f":"IF(WorkingR!$B70=\"Activities for generating funds\",WorkingR!R70,\"\")","v":""},{"$f":"IF(WorkingR!$B70=\"Activities for generating funds\",WorkingR!S70,\"\")","v":""},{"$f":"IF(WorkingR!$B70=\"Activities for generating funds\",WorkingR!T70,\"\")","v":""},{"$f":"IF(WorkingR!$B70=\"Activities for generating funds\",WorkingR!U70,\"\")","v":""},{"$f":"IF(WorkingR!$B70=\"Activities for generating funds\",WorkingR!V70,\"\")","v":""},{"$f":"IF(WorkingR!$B70=\"Activities for generating funds\",WorkingR!W70,\"\")","v":""},{"$f":"IF(WorkingR!$B70=\"Activities for generating funds\",WorkingR!X70,\"\")","v":""},{"$f":"IF(WorkingR!$B70=\"Activities for generating funds\",WorkingR!Y70,\"\")","v":""},{"$f":"IF(Descriptions!D71=\"Activites for generating funds\",Descriptions!AA71,0)","v":0}]
[{"$f":"IF(Descriptions!D72=\"Activites for generating funds\",Descriptions!B72,0)","v":0},{"$f":"IF(WorkingR!$B71=\"Activities for generating funds\",WorkingR!D71,\"\")","v":""},{"$f":"IF(WorkingR!$B71=\"Activities for generating funds\",WorkingR!E71,\"\")","v":""},{"$f":"IF(WorkingR!$B71=\"Activities for generating funds\",WorkingR!F71,\"\")","v":""},{"$f":"IF(WorkingR!$B71=\"Activities for generating funds\",WorkingR!G71,\"\")","v":""},{"$f":"IF(WorkingR!$B71=\"Activities for generating funds\",WorkingR!H71,\"\")","v":""},{"$f":"IF(WorkingR!$B71=\"Activities for generating funds\",WorkingR!I71,\"\")","v":""},{"$f":"IF(WorkingR!$B71=\"Activities for generating funds\",WorkingR!J71,\"\")","v":""},{"$f":"IF(WorkingR!$B71=\"Activities for generating funds\",WorkingR!K71,\"\")","v":""},{"$f":"IF(WorkingR!$B71=\"Activities for generating funds\",WorkingR!L71,\"\")","v":""},{"$f":"IF(WorkingR!$B71=\"Activities for generating funds\",WorkingR!M71,\"\")","v":""},{"$f":"IF(WorkingR!$B71=\"Activities for generating funds\",WorkingR!N71,\"\")","v":""},{"$f":"IF(WorkingR!$B71=\"Activities for generating funds\",WorkingR!O71,\"\")","v":""},{"$f":"IF(WorkingR!$B71=\"Activities for generating funds\",WorkingR!P71,\"\")","v":""},{"$f":"IF(WorkingR!$B71=\"Activities for generating funds\",WorkingR!Q71,\"\")","v":""},{"$f":"IF(WorkingR!$B71=\"Activities for generating funds\",WorkingR!R71,\"\")","v":""},{"$f":"IF(WorkingR!$B71=\"Activities for generating funds\",WorkingR!S71,\"\")","v":""},{"$f":"IF(WorkingR!$B71=\"Activities for generating funds\",WorkingR!T71,\"\")","v":""},{"$f":"IF(WorkingR!$B71=\"Activities for generating funds\",WorkingR!U71,\"\")","v":""},{"$f":"IF(WorkingR!$B71=\"Activities for generating funds\",WorkingR!V71,\"\")","v":""},{"$f":"IF(WorkingR!$B71=\"Activities for generating funds\",WorkingR!W71,\"\")","v":""},{"$f":"IF(WorkingR!$B71=\"Activities for generating funds\",WorkingR!X71,\"\")","v":""},{"$f":"IF(WorkingR!$B71=\"Activities for generating funds\",WorkingR!Y71,\"\")","v":""},{"$f":"IF(Descriptions!D72=\"Activites for generating funds\",Descriptions!AA72,0)","v":0}]
[{"$f":"IF(Descriptions!D73=\"Activites for generating funds\",Descriptions!B73,0)","v":0},{"$f":"IF(WorkingR!$B72=\"Activities for generating funds\",WorkingR!D72,\"\")","v":""},{"$f":"IF(WorkingR!$B72=\"Activities for generating funds\",WorkingR!E72,\"\")","v":""},{"$f":"IF(WorkingR!$B72=\"Activities for generating funds\",WorkingR!F72,\"\")","v":""},{"$f":"IF(WorkingR!$B72=\"Activities for generating funds\",WorkingR!G72,\"\")","v":""},{"$f":"IF(WorkingR!$B72=\"Activities for generating funds\",WorkingR!H72,\"\")","v":""},{"$f":"IF(WorkingR!$B72=\"Activities for generating funds\",WorkingR!I72,\"\")","v":""},{"$f":"IF(WorkingR!$B72=\"Activities for generating funds\",WorkingR!J72,\"\")","v":""},{"$f":"IF(WorkingR!$B72=\"Activities for generating funds\",WorkingR!K72,\"\")","v":""},{"$f":"IF(WorkingR!$B72=\"Activities for generating funds\",WorkingR!L72,\"\")","v":""},{"$f":"IF(WorkingR!$B72=\"Activities for generating funds\",WorkingR!M72,\"\")","v":""},{"$f":"IF(WorkingR!$B72=\"Activities for generating funds\",WorkingR!N72,\"\")","v":""},{"$f":"IF(WorkingR!$B72=\"Activities for generating funds\",WorkingR!O72,\"\")","v":""},{"$f":"IF(WorkingR!$B72=\"Activities for generating funds\",WorkingR!P72,\"\")","v":""},{"$f":"IF(WorkingR!$B72=\"Activities for generating funds\",WorkingR!Q72,\"\")","v":""},{"$f":"IF(WorkingR!$B72=\"Activities for generating funds\",WorkingR!R72,\"\")","v":""},{"$f":"IF(WorkingR!$B72=\"Activities for generating funds\",WorkingR!S72,\"\")","v":""},{"$f":"IF(WorkingR!$B72=\"Activities for generating funds\",WorkingR!T72,\"\")","v":""},{"$f":"IF(WorkingR!$B72=\"Activities for generating funds\",WorkingR!U72,\"\")","v":""},{"$f":"IF(WorkingR!$B72=\"Activities for generating funds\",WorkingR!V72,\"\")","v":""},{"$f":"IF(WorkingR!$B72=\"Activities for generating funds\",WorkingR!W72,\"\")","v":""},{"$f":"IF(WorkingR!$B72=\"Activities for generating funds\",WorkingR!X72,\"\")","v":""},{"$f":"IF(WorkingR!$B72=\"Activities for generating funds\",WorkingR!Y72,\"\")","v":""},{"$f":"IF(Descriptions!D73=\"Activites for generating funds\",Descriptions!AA73,0)","v":0}]
[{"$f":"IF(Descriptions!D74=\"Activites for generating funds\",Descriptions!B74,0)","v":0},{"$f":"IF(WorkingR!$B73=\"Activities for generating funds\",WorkingR!D73,\"\")","v":""},{"$f":"IF(WorkingR!$B73=\"Activities for generating funds\",WorkingR!E73,\"\")","v":""},{"$f":"IF(WorkingR!$B73=\"Activities for generating funds\",WorkingR!F73,\"\")","v":""},{"$f":"IF(WorkingR!$B73=\"Activities for generating funds\",WorkingR!G73,\"\")","v":""},{"$f":"IF(WorkingR!$B73=\"Activities for generating funds\",WorkingR!H73,\"\")","v":""},{"$f":"IF(WorkingR!$B73=\"Activities for generating funds\",WorkingR!I73,\"\")","v":""},{"$f":"IF(WorkingR!$B73=\"Activities for generating funds\",WorkingR!J73,\"\")","v":""},{"$f":"IF(WorkingR!$B73=\"Activities for generating funds\",WorkingR!K73,\"\")","v":""},{"$f":"IF(WorkingR!$B73=\"Activities for generating funds\",WorkingR!L73,\"\")","v":""},{"$f":"IF(WorkingR!$B73=\"Activities for generating funds\",WorkingR!M73,\"\")","v":""},{"$f":"IF(WorkingR!$B73=\"Activities for generating funds\",WorkingR!N73,\"\")","v":""},{"$f":"IF(WorkingR!$B73=\"Activities for generating funds\",WorkingR!O73,\"\")","v":""},{"$f":"IF(WorkingR!$B73=\"Activities for generating funds\",WorkingR!P73,\"\")","v":""},{"$f":"IF(WorkingR!$B73=\"Activities for generating funds\",WorkingR!Q73,\"\")","v":""},{"$f":"IF(WorkingR!$B73=\"Activities for generating funds\",WorkingR!R73,\"\")","v":""},{"$f":"IF(WorkingR!$B73=\"Activities for generating funds\",WorkingR!S73,\"\")","v":""},{"$f":"IF(WorkingR!$B73=\"Activities for generating funds\",WorkingR!T73,\"\")","v":""},{"$f":"IF(WorkingR!$B73=\"Activities for generating funds\",WorkingR!U73,\"\")","v":""},{"$f":"IF(WorkingR!$B73=\"Activities for generating funds\",WorkingR!V73,\"\")","v":""},{"$f":"IF(WorkingR!$B73=\"Activities for generating funds\",WorkingR!W73,\"\")","v":""},{"$f":"IF(WorkingR!$B73=\"Activities for generating funds\",WorkingR!X73,\"\")","v":""},{"$f":"IF(WorkingR!$B73=\"Activities for generating funds\",WorkingR!Y73,\"\")","v":""},{"$f":"IF(Descriptions!D74=\"Activites for generating funds\",Descriptions!AA74,0)","v":0}]
[{"$f":"IF(Descriptions!D75=\"Activites for generating funds\",Descriptions!B75,0)","v":0},{"$f":"IF(WorkingR!$B74=\"Activities for generating funds\",WorkingR!D74,\"\")","v":""},{"$f":"IF(WorkingR!$B74=\"Activities for generating funds\",WorkingR!E74,\"\")","v":""},{"$f":"IF(WorkingR!$B74=\"Activities for generating funds\",WorkingR!F74,\"\")","v":""},{"$f":"IF(WorkingR!$B74=\"Activities for generating funds\",WorkingR!G74,\"\")","v":""},{"$f":"IF(WorkingR!$B74=\"Activities for generating funds\",WorkingR!H74,\"\")","v":""},{"$f":"IF(WorkingR!$B74=\"Activities for generating funds\",WorkingR!I74,\"\")","v":""},{"$f":"IF(WorkingR!$B74=\"Activities for generating funds\",WorkingR!J74,\"\")","v":""},{"$f":"IF(WorkingR!$B74=\"Activities for generating funds\",WorkingR!K74,\"\")","v":""},{"$f":"IF(WorkingR!$B74=\"Activities for generating funds\",WorkingR!L74,\"\")","v":""},{"$f":"IF(WorkingR!$B74=\"Activities for generating funds\",WorkingR!M74,\"\")","v":""},{"$f":"IF(WorkingR!$B74=\"Activities for generating funds\",WorkingR!N74,\"\")","v":""},{"$f":"IF(WorkingR!$B74=\"Activities for generating funds\",WorkingR!O74,\"\")","v":""},{"$f":"IF(WorkingR!$B74=\"Activities for generating funds\",WorkingR!P74,\"\")","v":""},{"$f":"IF(WorkingR!$B74=\"Activities for generating funds\",WorkingR!Q74,\"\")","v":""},{"$f":"IF(WorkingR!$B74=\"Activities for generating funds\",WorkingR!R74,\"\")","v":""},{"$f":"IF(WorkingR!$B74=\"Activities for generating funds\",WorkingR!S74,\"\")","v":""},{"$f":"IF(WorkingR!$B74=\"Activities for generating funds\",WorkingR!T74,\"\")","v":""},{"$f":"IF(WorkingR!$B74=\"Activities for generating funds\",WorkingR!U74,\"\")","v":""},{"$f":"IF(WorkingR!$B74=\"Activities for generating funds\",WorkingR!V74,\"\")","v":""},{"$f":"IF(WorkingR!$B74=\"Activities for generating funds\",WorkingR!W74,\"\")","v":""},{"$f":"IF(WorkingR!$B74=\"Activities for generating funds\",WorkingR!X74,\"\")","v":""},{"$f":"IF(WorkingR!$B74=\"Activities for generating funds\",WorkingR!Y74,\"\")","v":""},{"$f":"IF(Descriptions!D75=\"Activites for generating funds\",Descriptions!AA75,0)","v":0}]
[{"$f":"IF(Descriptions!D76=\"Activites for generating funds\",Descriptions!B76,0)","v":0},{"$f":"IF(WorkingR!$B75=\"Activities for generating funds\",WorkingR!D75,\"\")","v":""},{"$f":"IF(WorkingR!$B75=\"Activities for generating funds\",WorkingR!E75,\"\")","v":""},{"$f":"IF(WorkingR!$B75=\"Activities for generating funds\",WorkingR!F75,\"\")","v":""},{"$f":"IF(WorkingR!$B75=\"Activities for generating funds\",WorkingR!G75,\"\")","v":""},{"$f":"IF(WorkingR!$B75=\"Activities for generating funds\",WorkingR!H75,\"\")","v":""},{"$f":"IF(WorkingR!$B75=\"Activities for generating funds\",WorkingR!I75,\"\")","v":""},{"$f":"IF(WorkingR!$B75=\"Activities for generating funds\",WorkingR!J75,\"\")","v":""},{"$f":"IF(WorkingR!$B75=\"Activities for generating funds\",WorkingR!K75,\"\")","v":""},{"$f":"IF(WorkingR!$B75=\"Activities for generating funds\",WorkingR!L75,\"\")","v":""},{"$f":"IF(WorkingR!$B75=\"Activities for generating funds\",WorkingR!M75,\"\")","v":""},{"$f":"IF(WorkingR!$B75=\"Activities for generating funds\",WorkingR!N75,\"\")","v":""},{"$f":"IF(WorkingR!$B75=\"Activities for generating funds\",WorkingR!O75,\"\")","v":""},{"$f":"IF(WorkingR!$B75=\"Activities for generating funds\",WorkingR!P75,\"\")","v":""},{"$f":"IF(WorkingR!$B75=\"Activities for generating funds\",WorkingR!Q75,\"\")","v":""},{"$f":"IF(WorkingR!$B75=\"Activities for generating funds\",WorkingR!R75,\"\")","v":""},{"$f":"IF(WorkingR!$B75=\"Activities for generating funds\",WorkingR!S75,\"\")","v":""},{"$f":"IF(WorkingR!$B75=\"Activities for generating funds\",WorkingR!T75,\"\")","v":""},{"$f":"IF(WorkingR!$B75=\"Activities for generating funds\",WorkingR!U75,\"\")","v":""},{"$f":"IF(WorkingR!$B75=\"Activities for generating funds\",WorkingR!V75,\"\")","v":""},{"$f":"IF(WorkingR!$B75=\"Activities for generating funds\",WorkingR!W75,\"\")","v":""},{"$f":"IF(WorkingR!$B75=\"Activities for generating funds\",WorkingR!X75,\"\")","v":""},{"$f":"IF(WorkingR!$B75=\"Activities for generating funds\",WorkingR!Y75,\"\")","v":""},{"$f":"IF(Descriptions!D76=\"Activites for generating funds\",Descriptions!AA76,0)","v":0}]
[{"$f":"IF(Descriptions!D77=\"Activites for generating funds\",Descriptions!B77,0)","v":0},{"$f":"IF(WorkingR!$B76=\"Activities for generating funds\",WorkingR!D76,\"\")","v":""},{"$f":"IF(WorkingR!$B76=\"Activities for generating funds\",WorkingR!E76,\"\")","v":""},{"$f":"IF(WorkingR!$B76=\"Activities for generating funds\",WorkingR!F76,\"\")","v":""},{"$f":"IF(WorkingR!$B76=\"Activities for generating funds\",WorkingR!G76,\"\")","v":""},{"$f":"IF(WorkingR!$B76=\"Activities for generating funds\",WorkingR!H76,\"\")","v":""},{"$f":"IF(WorkingR!$B76=\"Activities for generating funds\",WorkingR!I76,\"\")","v":""},{"$f":"IF(WorkingR!$B76=\"Activities for generating funds\",WorkingR!J76,\"\")","v":""},{"$f":"IF(WorkingR!$B76=\"Activities for generating funds\",WorkingR!K76,\"\")","v":""},{"$f":"IF(WorkingR!$B76=\"Activities for generating funds\",WorkingR!L76,\"\")","v":""},{"$f":"IF(WorkingR!$B76=\"Activities for generating funds\",WorkingR!M76,\"\")","v":""},{"$f":"IF(WorkingR!$B76=\"Activities for generating funds\",WorkingR!N76,\"\")","v":""},{"$f":"IF(WorkingR!$B76=\"Activities for generating funds\",WorkingR!O76,\"\")","v":""},{"$f":"IF(WorkingR!$B76=\"Activities for generating funds\",WorkingR!P76,\"\")","v":""},{"$f":"IF(WorkingR!$B76=\"Activities for generating funds\",WorkingR!Q76,\"\")","v":""},{"$f":"IF(WorkingR!$B76=\"Activities for generating funds\",WorkingR!R76,\"\")","v":""},{"$f":"IF(WorkingR!$B76=\"Activities for generating funds\",WorkingR!S76,\"\")","v":""},{"$f":"IF(WorkingR!$B76=\"Activities for generating funds\",WorkingR!T76,\"\")","v":""},{"$f":"IF(WorkingR!$B76=\"Activities for generating funds\",WorkingR!U76,\"\")","v":""},{"$f":"IF(WorkingR!$B76=\"Activities for generating funds\",WorkingR!V76,\"\")","v":""},{"$f":"IF(WorkingR!$B76=\"Activities for generating funds\",WorkingR!W76,\"\")","v":""},{"$f":"IF(WorkingR!$B76=\"Activities for generating funds\",WorkingR!X76,\"\")","v":""},{"$f":"IF(WorkingR!$B76=\"Activities for generating funds\",WorkingR!Y76,\"\")","v":""},{"$f":"IF(Descriptions!D77=\"Activites for generating funds\",Descriptions!AA77,0)","v":0}]
[{"$f":"IF(Descriptions!D78=\"Activites for generating funds\",Descriptions!B78,0)","v":0},{"$f":"IF(WorkingR!$B77=\"Activities for generating funds\",WorkingR!D77,\"\")","v":""},{"$f":"IF(WorkingR!$B77=\"Activities for generating funds\",WorkingR!E77,\"\")","v":""},{"$f":"IF(WorkingR!$B77=\"Activities for generating funds\",WorkingR!F77,\"\")","v":""},{"$f":"IF(WorkingR!$B77=\"Activities for generating funds\",WorkingR!G77,\"\")","v":""},{"$f":"IF(WorkingR!$B77=\"Activities for generating funds\",WorkingR!H77,\"\")","v":""},{"$f":"IF(WorkingR!$B77=\"Activities for generating funds\",WorkingR!I77,\"\")","v":""},{"$f":"IF(WorkingR!$B77=\"Activities for generating funds\",WorkingR!J77,\"\")","v":""},{"$f":"IF(WorkingR!$B77=\"Activities for generating funds\",WorkingR!K77,\"\")","v":""},{"$f":"IF(WorkingR!$B77=\"Activities for generating funds\",WorkingR!L77,\"\")","v":""},{"$f":"IF(WorkingR!$B77=\"Activities for generating funds\",WorkingR!M77,\"\")","v":""},{"$f":"IF(WorkingR!$B77=\"Activities for generating funds\",WorkingR!N77,\"\")","v":""},{"$f":"IF(WorkingR!$B77=\"Activities for generating funds\",WorkingR!O77,\"\")","v":""},{"$f":"IF(WorkingR!$B77=\"Activities for generating funds\",WorkingR!P77,\"\")","v":""},{"$f":"IF(WorkingR!$B77=\"Activities for generating funds\",WorkingR!Q77,\"\")","v":""},{"$f":"IF(WorkingR!$B77=\"Activities for generating funds\",WorkingR!R77,\"\")","v":""},{"$f":"IF(WorkingR!$B77=\"Activities for generating funds\",WorkingR!S77,\"\")","v":""},{"$f":"IF(WorkingR!$B77=\"Activities for generating funds\",WorkingR!T77,\"\")","v":""},{"$f":"IF(WorkingR!$B77=\"Activities for generating funds\",WorkingR!U77,\"\")","v":""},{"$f":"IF(WorkingR!$B77=\"Activities for generating funds\",WorkingR!V77,\"\")","v":""},{"$f":"IF(WorkingR!$B77=\"Activities for generating funds\",WorkingR!W77,\"\")","v":""},{"$f":"IF(WorkingR!$B77=\"Activities for generating funds\",WorkingR!X77,\"\")","v":""},{"$f":"IF(WorkingR!$B77=\"Activities for generating funds\",WorkingR!Y77,\"\")","v":""},{"$f":"IF(Descriptions!D78=\"Activites for generating funds\",Descriptions!AA78,0)","v":0}]
[{"$f":"IF(Descriptions!D79=\"Activites for generating funds\",Descriptions!B79,0)","v":0},{"$f":"IF(WorkingR!$B78=\"Activities for generating funds\",WorkingR!D78,\"\")","v":""},{"$f":"IF(WorkingR!$B78=\"Activities for generating funds\",WorkingR!E78,\"\")","v":""},{"$f":"IF(WorkingR!$B78=\"Activities for generating funds\",WorkingR!F78,\"\")","v":""},{"$f":"IF(WorkingR!$B78=\"Activities for generating funds\",WorkingR!G78,\"\")","v":""},{"$f":"IF(WorkingR!$B78=\"Activities for generating funds\",WorkingR!H78,\"\")","v":""},{"$f":"IF(WorkingR!$B78=\"Activities for generating funds\",WorkingR!I78,\"\")","v":""},{"$f":"IF(WorkingR!$B78=\"Activities for generating funds\",WorkingR!J78,\"\")","v":""},{"$f":"IF(WorkingR!$B78=\"Activities for generating funds\",WorkingR!K78,\"\")","v":""},{"$f":"IF(WorkingR!$B78=\"Activities for generating funds\",WorkingR!L78,\"\")","v":""},{"$f":"IF(WorkingR!$B78=\"Activities for generating funds\",WorkingR!M78,\"\")","v":""},{"$f":"IF(WorkingR!$B78=\"Activities for generating funds\",WorkingR!N78,\"\")","v":""},{"$f":"IF(WorkingR!$B78=\"Activities for generating funds\",WorkingR!O78,\"\")","v":""},{"$f":"IF(WorkingR!$B78=\"Activities for generating funds\",WorkingR!P78,\"\")","v":""},{"$f":"IF(WorkingR!$B78=\"Activities for generating funds\",WorkingR!Q78,\"\")","v":""},{"$f":"IF(WorkingR!$B78=\"Activities for generating funds\",WorkingR!R78,\"\")","v":""},{"$f":"IF(WorkingR!$B78=\"Activities for generating funds\",WorkingR!S78,\"\")","v":""},{"$f":"IF(WorkingR!$B78=\"Activities for generating funds\",WorkingR!T78,\"\")","v":""},{"$f":"IF(WorkingR!$B78=\"Activities for generating funds\",WorkingR!U78,\"\")","v":""},{"$f":"IF(WorkingR!$B78=\"Activities for generating funds\",WorkingR!V78,\"\")","v":""},{"$f":"IF(WorkingR!$B78=\"Activities for generating funds\",WorkingR!W78,\"\")","v":""},{"$f":"IF(WorkingR!$B78=\"Activities for generating funds\",WorkingR!X78,\"\")","v":""},{"$f":"IF(WorkingR!$B78=\"Activities for generating funds\",WorkingR!Y78,\"\")","v":""},{"$f":"IF(Descriptions!D79=\"Activites for generating funds\",Descriptions!AA79,0)","v":0}]
[{"$f":"IF(Descriptions!D80=\"Activites for generating funds\",Descriptions!B80,0)","v":0},{"$f":"IF(WorkingR!$B79=\"Activities for generating funds\",WorkingR!D79,\"\")","v":""},{"$f":"IF(WorkingR!$B79=\"Activities for generating funds\",WorkingR!E79,\"\")","v":""},{"$f":"IF(WorkingR!$B79=\"Activities for generating funds\",WorkingR!F79,\"\")","v":""},{"$f":"IF(WorkingR!$B79=\"Activities for generating funds\",WorkingR!G79,\"\")","v":""},{"$f":"IF(WorkingR!$B79=\"Activities for generating funds\",WorkingR!H79,\"\")","v":""},{"$f":"IF(WorkingR!$B79=\"Activities for generating funds\",WorkingR!I79,\"\")","v":""},{"$f":"IF(WorkingR!$B79=\"Activities for generating funds\",WorkingR!J79,\"\")","v":""},{"$f":"IF(WorkingR!$B79=\"Activities for generating funds\",WorkingR!K79,\"\")","v":""},{"$f":"IF(WorkingR!$B79=\"Activities for generating funds\",WorkingR!L79,\"\")","v":""},{"$f":"IF(WorkingR!$B79=\"Activities for generating funds\",WorkingR!M79,\"\")","v":""},{"$f":"IF(WorkingR!$B79=\"Activities for generating funds\",WorkingR!N79,\"\")","v":""},{"$f":"IF(WorkingR!$B79=\"Activities for generating funds\",WorkingR!O79,\"\")","v":""},{"$f":"IF(WorkingR!$B79=\"Activities for generating funds\",WorkingR!P79,\"\")","v":""},{"$f":"IF(WorkingR!$B79=\"Activities for generating funds\",WorkingR!Q79,\"\")","v":""},{"$f":"IF(WorkingR!$B79=\"Activities for generating funds\",WorkingR!R79,\"\")","v":""},{"$f":"IF(WorkingR!$B79=\"Activities for generating funds\",WorkingR!S79,\"\")","v":""},{"$f":"IF(WorkingR!$B79=\"Activities for generating funds\",WorkingR!T79,\"\")","v":""},{"$f":"IF(WorkingR!$B79=\"Activities for generating funds\",WorkingR!U79,\"\")","v":""},{"$f":"IF(WorkingR!$B79=\"Activities for generating funds\",WorkingR!V79,\"\")","v":""},{"$f":"IF(WorkingR!$B79=\"Activities for generating funds\",WorkingR!W79,\"\")","v":""},{"$f":"IF(WorkingR!$B79=\"Activities for generating funds\",WorkingR!X79,\"\")","v":""},{"$f":"IF(WorkingR!$B79=\"Activities for generating funds\",WorkingR!Y79,\"\")","v":""},{"$f":"IF(Descriptions!D80=\"Activites for generating funds\",Descriptions!AA80,0)","v":0}]
[{"$f":"IF(Descriptions!D81=\"Activites for generating funds\",Descriptions!B81,0)","v":0},{"$f":"IF(WorkingR!$B80=\"Activities for generating funds\",WorkingR!D80,\"\")","v":""},{"$f":"IF(WorkingR!$B80=\"Activities for generating funds\",WorkingR!E80,\"\")","v":""},{"$f":"IF(WorkingR!$B80=\"Activities for generating funds\",WorkingR!F80,\"\")","v":""},{"$f":"IF(WorkingR!$B80=\"Activities for generating funds\",WorkingR!G80,\"\")","v":""},{"$f":"IF(WorkingR!$B80=\"Activities for generating funds\",WorkingR!H80,\"\")","v":""},{"$f":"IF(WorkingR!$B80=\"Activities for generating funds\",WorkingR!I80,\"\")","v":""},{"$f":"IF(WorkingR!$B80=\"Activities for generating funds\",WorkingR!J80,\"\")","v":""},{"$f":"IF(WorkingR!$B80=\"Activities for generating funds\",WorkingR!K80,\"\")","v":""},{"$f":"IF(WorkingR!$B80=\"Activities for generating funds\",WorkingR!L80,\"\")","v":""},{"$f":"IF(WorkingR!$B80=\"Activities for generating funds\",WorkingR!M80,\"\")","v":""},{"$f":"IF(WorkingR!$B80=\"Activities for generating funds\",WorkingR!N80,\"\")","v":""},{"$f":"IF(WorkingR!$B80=\"Activities for generating funds\",WorkingR!O80,\"\")","v":""},{"$f":"IF(WorkingR!$B80=\"Activities for generating funds\",WorkingR!P80,\"\")","v":""},{"$f":"IF(WorkingR!$B80=\"Activities for generating funds\",WorkingR!Q80,\"\")","v":""},{"$f":"IF(WorkingR!$B80=\"Activities for generating funds\",WorkingR!R80,\"\")","v":""},{"$f":"IF(WorkingR!$B80=\"Activities for generating funds\",WorkingR!S80,\"\")","v":""},{"$f":"IF(WorkingR!$B80=\"Activities for generating funds\",WorkingR!T80,\"\")","v":""},{"$f":"IF(WorkingR!$B80=\"Activities for generating funds\",WorkingR!U80,\"\")","v":""},{"$f":"IF(WorkingR!$B80=\"Activities for generating funds\",WorkingR!V80,\"\")","v":""},{"$f":"IF(WorkingR!$B80=\"Activities for generating funds\",WorkingR!W80,\"\")","v":""},{"$f":"IF(WorkingR!$B80=\"Activities for generating funds\",WorkingR!X80,\"\")","v":""},{"$f":"IF(WorkingR!$B80=\"Activities for generating funds\",WorkingR!Y80,\"\")","v":""},{"$f":"IF(Descriptions!D81=\"Activites for generating funds\",Descriptions!AA81,0)","v":0}]
[{"$f":"IF(Descriptions!D82=\"Activites for generating funds\",Descriptions!B82,0)","v":0},{"$f":"IF(WorkingR!$B81=\"Activities for generating funds\",WorkingR!D81,\"\")","v":""},{"$f":"IF(WorkingR!$B81=\"Activities for generating funds\",WorkingR!E81,\"\")","v":""},{"$f":"IF(WorkingR!$B81=\"Activities for generating funds\",WorkingR!F81,\"\")","v":""},{"$f":"IF(WorkingR!$B81=\"Activities for generating funds\",WorkingR!G81,\"\")","v":""},{"$f":"IF(WorkingR!$B81=\"Activities for generating funds\",WorkingR!H81,\"\")","v":""},{"$f":"IF(WorkingR!$B81=\"Activities for generating funds\",WorkingR!I81,\"\")","v":""},{"$f":"IF(WorkingR!$B81=\"Activities for generating funds\",WorkingR!J81,\"\")","v":""},{"$f":"IF(WorkingR!$B81=\"Activities for generating funds\",WorkingR!K81,\"\")","v":""},{"$f":"IF(WorkingR!$B81=\"Activities for generating funds\",WorkingR!L81,\"\")","v":""},{"$f":"IF(WorkingR!$B81=\"Activities for generating funds\",WorkingR!M81,\"\")","v":""},{"$f":"IF(WorkingR!$B81=\"Activities for generating funds\",WorkingR!N81,\"\")","v":""},{"$f":"IF(WorkingR!$B81=\"Activities for generating funds\",WorkingR!O81,\"\")","v":""},{"$f":"IF(WorkingR!$B81=\"Activities for generating funds\",WorkingR!P81,\"\")","v":""},{"$f":"IF(WorkingR!$B81=\"Activities for generating funds\",WorkingR!Q81,\"\")","v":""},{"$f":"IF(WorkingR!$B81=\"Activities for generating funds\",WorkingR!R81,\"\")","v":""},{"$f":"IF(WorkingR!$B81=\"Activities for generating funds\",WorkingR!S81,\"\")","v":""},{"$f":"IF(WorkingR!$B81=\"Activities for generating funds\",WorkingR!T81,\"\")","v":""},{"$f":"IF(WorkingR!$B81=\"Activities for generating funds\",WorkingR!U81,\"\")","v":""},{"$f":"IF(WorkingR!$B81=\"Activities for generating funds\",WorkingR!V81,\"\")","v":""},{"$f":"IF(WorkingR!$B81=\"Activities for generating funds\",WorkingR!W81,\"\")","v":""},{"$f":"IF(WorkingR!$B81=\"Activities for generating funds\",WorkingR!X81,\"\")","v":""},{"$f":"IF(WorkingR!$B81=\"Activities for generating funds\",WorkingR!Y81,\"\")","v":""},{"$f":"IF(Descriptions!D82=\"Activites for generating funds\",Descriptions!AA82,0)","v":0}]
[{"$f":"IF(Descriptions!D83=\"Activites for generating funds\",Descriptions!B83,0)","v":0},{"$f":"IF(WorkingR!$B82=\"Activities for generating funds\",WorkingR!D82,\"\")","v":""},{"$f":"IF(WorkingR!$B82=\"Activities for generating funds\",WorkingR!E82,\"\")","v":""},{"$f":"IF(WorkingR!$B82=\"Activities for generating funds\",WorkingR!F82,\"\")","v":""},{"$f":"IF(WorkingR!$B82=\"Activities for generating funds\",WorkingR!G82,\"\")","v":""},{"$f":"IF(WorkingR!$B82=\"Activities for generating funds\",WorkingR!H82,\"\")","v":""},{"$f":"IF(WorkingR!$B82=\"Activities for generating funds\",WorkingR!I82,\"\")","v":""},{"$f":"IF(WorkingR!$B82=\"Activities for generating funds\",WorkingR!J82,\"\")","v":""},{"$f":"IF(WorkingR!$B82=\"Activities for generating funds\",WorkingR!K82,\"\")","v":""},{"$f":"IF(WorkingR!$B82=\"Activities for generating funds\",WorkingR!L82,\"\")","v":""},{"$f":"IF(WorkingR!$B82=\"Activities for generating funds\",WorkingR!M82,\"\")","v":""},{"$f":"IF(WorkingR!$B82=\"Activities for generating funds\",WorkingR!N82,\"\")","v":""},{"$f":"IF(WorkingR!$B82=\"Activities for generating funds\",WorkingR!O82,\"\")","v":""},{"$f":"IF(WorkingR!$B82=\"Activities for generating funds\",WorkingR!P82,\"\")","v":""},{"$f":"IF(WorkingR!$B82=\"Activities for generating funds\",WorkingR!Q82,\"\")","v":""},{"$f":"IF(WorkingR!$B82=\"Activities for generating funds\",WorkingR!R82,\"\")","v":""},{"$f":"IF(WorkingR!$B82=\"Activities for generating funds\",WorkingR!S82,\"\")","v":""},{"$f":"IF(WorkingR!$B82=\"Activities for generating funds\",WorkingR!T82,\"\")","v":""},{"$f":"IF(WorkingR!$B82=\"Activities for generating funds\",WorkingR!U82,\"\")","v":""},{"$f":"IF(WorkingR!$B82=\"Activities for generating funds\",WorkingR!V82,\"\")","v":""},{"$f":"IF(WorkingR!$B82=\"Activities for generating funds\",WorkingR!W82,\"\")","v":""},{"$f":"IF(WorkingR!$B82=\"Activities for generating funds\",WorkingR!X82,\"\")","v":""},{"$f":"IF(WorkingR!$B82=\"Activities for generating funds\",WorkingR!Y82,\"\")","v":""},{"$f":"IF(Descriptions!D83=\"Activites for generating funds\",Descriptions!AA83,0)","v":0}]
[{"$f":"IF(Descriptions!D84=\"Activites for generating funds\",Descriptions!B84,0)","v":0},{"$f":"IF(WorkingR!$B83=\"Activities for generating funds\",WorkingR!D83,\"\")","v":""},{"$f":"IF(WorkingR!$B83=\"Activities for generating funds\",WorkingR!E83,\"\")","v":""},{"$f":"IF(WorkingR!$B83=\"Activities for generating funds\",WorkingR!F83,\"\")","v":""},{"$f":"IF(WorkingR!$B83=\"Activities for generating funds\",WorkingR!G83,\"\")","v":""},{"$f":"IF(WorkingR!$B83=\"Activities for generating funds\",WorkingR!H83,\"\")","v":""},{"$f":"IF(WorkingR!$B83=\"Activities for generating funds\",WorkingR!I83,\"\")","v":""},{"$f":"IF(WorkingR!$B83=\"Activities for generating funds\",WorkingR!J83,\"\")","v":""},{"$f":"IF(WorkingR!$B83=\"Activities for generating funds\",WorkingR!K83,\"\")","v":""},{"$f":"IF(WorkingR!$B83=\"Activities for generating funds\",WorkingR!L83,\"\")","v":""},{"$f":"IF(WorkingR!$B83=\"Activities for generating funds\",WorkingR!M83,\"\")","v":""},{"$f":"IF(WorkingR!$B83=\"Activities for generating funds\",WorkingR!N83,\"\")","v":""},{"$f":"IF(WorkingR!$B83=\"Activities for generating funds\",WorkingR!O83,\"\")","v":""},{"$f":"IF(WorkingR!$B83=\"Activities for generating funds\",WorkingR!P83,\"\")","v":""},{"$f":"IF(WorkingR!$B83=\"Activities for generating funds\",WorkingR!Q83,\"\")","v":""},{"$f":"IF(WorkingR!$B83=\"Activities for generating funds\",WorkingR!R83,\"\")","v":""},{"$f":"IF(WorkingR!$B83=\"Activities for generating funds\",WorkingR!S83,\"\")","v":""},{"$f":"IF(WorkingR!$B83=\"Activities for generating funds\",WorkingR!T83,\"\")","v":""},{"$f":"IF(WorkingR!$B83=\"Activities for generating funds\",WorkingR!U83,\"\")","v":""},{"$f":"IF(WorkingR!$B83=\"Activities for generating funds\",WorkingR!V83,\"\")","v":""},{"$f":"IF(WorkingR!$B83=\"Activities for generating funds\",WorkingR!W83,\"\")","v":""},{"$f":"IF(WorkingR!$B83=\"Activities for generating funds\",WorkingR!X83,\"\")","v":""},{"$f":"IF(WorkingR!$B83=\"Activities for generating funds\",WorkingR!Y83,\"\")","v":""},{"$f":"IF(Descriptions!D84=\"Activites for generating funds\",Descriptions!AA84,0)","v":0}]
[{"$f":"IF(Descriptions!D85=\"Activites for generating funds\",Descriptions!B85,0)","v":0},{"$f":"IF(WorkingR!$B84=\"Activities for generating funds\",WorkingR!D84,\"\")","v":""},{"$f":"IF(WorkingR!$B84=\"Activities for generating funds\",WorkingR!E84,\"\")","v":""},{"$f":"IF(WorkingR!$B84=\"Activities for generating funds\",WorkingR!F84,\"\")","v":""},{"$f":"IF(WorkingR!$B84=\"Activities for generating funds\",WorkingR!G84,\"\")","v":""},{"$f":"IF(WorkingR!$B84=\"Activities for generating funds\",WorkingR!H84,\"\")","v":""},{"$f":"IF(WorkingR!$B84=\"Activities for generating funds\",WorkingR!I84,\"\")","v":""},{"$f":"IF(WorkingR!$B84=\"Activities for generating funds\",WorkingR!J84,\"\")","v":""},{"$f":"IF(WorkingR!$B84=\"Activities for generating funds\",WorkingR!K84,\"\")","v":""},{"$f":"IF(WorkingR!$B84=\"Activities for generating funds\",WorkingR!L84,\"\")","v":""},{"$f":"IF(WorkingR!$B84=\"Activities for generating funds\",WorkingR!M84,\"\")","v":""},{"$f":"IF(WorkingR!$B84=\"Activities for generating funds\",WorkingR!N84,\"\")","v":""},{"$f":"IF(WorkingR!$B84=\"Activities for generating funds\",WorkingR!O84,\"\")","v":""},{"$f":"IF(WorkingR!$B84=\"Activities for generating funds\",WorkingR!P84,\"\")","v":""},{"$f":"IF(WorkingR!$B84=\"Activities for generating funds\",WorkingR!Q84,\"\")","v":""},{"$f":"IF(WorkingR!$B84=\"Activities for generating funds\",WorkingR!R84,\"\")","v":""},{"$f":"IF(WorkingR!$B84=\"Activities for generating funds\",WorkingR!S84,\"\")","v":""},{"$f":"IF(WorkingR!$B84=\"Activities for generating funds\",WorkingR!T84,\"\")","v":""},{"$f":"IF(WorkingR!$B84=\"Activities for generating funds\",WorkingR!U84,\"\")","v":""},{"$f":"IF(WorkingR!$B84=\"Activities for generating funds\",WorkingR!V84,\"\")","v":""},{"$f":"IF(WorkingR!$B84=\"Activities for generating funds\",WorkingR!W84,\"\")","v":""},{"$f":"IF(WorkingR!$B84=\"Activities for generating funds\",WorkingR!X84,\"\")","v":""},{"$f":"IF(WorkingR!$B84=\"Activities for generating funds\",WorkingR!Y84,\"\")","v":""},{"$f":"IF(Descriptions!D85=\"Activites for generating funds\",Descriptions!AA85,0)","v":0}]
[{"$f":"IF(Descriptions!D86=\"Activites for generating funds\",Descriptions!B86,0)","v":0},{"$f":"IF(WorkingR!$B85=\"Activities for generating funds\",WorkingR!D85,\"\")","v":""},{"$f":"IF(WorkingR!$B85=\"Activities for generating funds\",WorkingR!E85,\"\")","v":""},{"$f":"IF(WorkingR!$B85=\"Activities for generating funds\",WorkingR!F85,\"\")","v":""},{"$f":"IF(WorkingR!$B85=\"Activities for generating funds\",WorkingR!G85,\"\")","v":""},{"$f":"IF(WorkingR!$B85=\"Activities for generating funds\",WorkingR!H85,\"\")","v":""},{"$f":"IF(WorkingR!$B85=\"Activities for generating funds\",WorkingR!I85,\"\")","v":""},{"$f":"IF(WorkingR!$B85=\"Activities for generating funds\",WorkingR!J85,\"\")","v":""},{"$f":"IF(WorkingR!$B85=\"Activities for generating funds\",WorkingR!K85,\"\")","v":""},{"$f":"IF(WorkingR!$B85=\"Activities for generating funds\",WorkingR!L85,\"\")","v":""},{"$f":"IF(WorkingR!$B85=\"Activities for generating funds\",WorkingR!M85,\"\")","v":""},{"$f":"IF(WorkingR!$B85=\"Activities for generating funds\",WorkingR!N85,\"\")","v":""},{"$f":"IF(WorkingR!$B85=\"Activities for generating funds\",WorkingR!O85,\"\")","v":""},{"$f":"IF(WorkingR!$B85=\"Activities for generating funds\",WorkingR!P85,\"\")","v":""},{"$f":"IF(WorkingR!$B85=\"Activities for generating funds\",WorkingR!Q85,\"\")","v":""},{"$f":"IF(WorkingR!$B85=\"Activities for generating funds\",WorkingR!R85,\"\")","v":""},{"$f":"IF(WorkingR!$B85=\"Activities for generating funds\",WorkingR!S85,\"\")","v":""},{"$f":"IF(WorkingR!$B85=\"Activities for generating funds\",WorkingR!T85,\"\")","v":""},{"$f":"IF(WorkingR!$B85=\"Activities for generating funds\",WorkingR!U85,\"\")","v":""},{"$f":"IF(WorkingR!$B85=\"Activities for generating funds\",WorkingR!V85,\"\")","v":""},{"$f":"IF(WorkingR!$B85=\"Activities for generating funds\",WorkingR!W85,\"\")","v":""},{"$f":"IF(WorkingR!$B85=\"Activities for generating funds\",WorkingR!X85,\"\")","v":""},{"$f":"IF(WorkingR!$B85=\"Activities for generating funds\",WorkingR!Y85,\"\")","v":""},{"$f":"IF(Descriptions!D86=\"Activites for generating funds\",Descriptions!AA86,0)","v":0}]
[{"$f":"IF(Descriptions!D87=\"Activites for generating funds\",Descriptions!B87,0)","v":0},{"$f":"IF(WorkingR!$B86=\"Activities for generating funds\",WorkingR!D86,\"\")","v":""},{"$f":"IF(WorkingR!$B86=\"Activities for generating funds\",WorkingR!E86,\"\")","v":""},{"$f":"IF(WorkingR!$B86=\"Activities for generating funds\",WorkingR!F86,\"\")","v":""},{"$f":"IF(WorkingR!$B86=\"Activities for generating funds\",WorkingR!G86,\"\")","v":""},{"$f":"IF(WorkingR!$B86=\"Activities for generating funds\",WorkingR!H86,\"\")","v":""},{"$f":"IF(WorkingR!$B86=\"Activities for generating funds\",WorkingR!I86,\"\")","v":""},{"$f":"IF(WorkingR!$B86=\"Activities for generating funds\",WorkingR!J86,\"\")","v":""},{"$f":"IF(WorkingR!$B86=\"Activities for generating funds\",WorkingR!K86,\"\")","v":""},{"$f":"IF(WorkingR!$B86=\"Activities for generating funds\",WorkingR!L86,\"\")","v":""},{"$f":"IF(WorkingR!$B86=\"Activities for generating funds\",WorkingR!M86,\"\")","v":""},{"$f":"IF(WorkingR!$B86=\"Activities for generating funds\",WorkingR!N86,\"\")","v":""},{"$f":"IF(WorkingR!$B86=\"Activities for generating funds\",WorkingR!O86,\"\")","v":""},{"$f":"IF(WorkingR!$B86=\"Activities for generating funds\",WorkingR!P86,\"\")","v":""},{"$f":"IF(WorkingR!$B86=\"Activities for generating funds\",WorkingR!Q86,\"\")","v":""},{"$f":"IF(WorkingR!$B86=\"Activities for generating funds\",WorkingR!R86,\"\")","v":""},{"$f":"IF(WorkingR!$B86=\"Activities for generating funds\",WorkingR!S86,\"\")","v":""},{"$f":"IF(WorkingR!$B86=\"Activities for generating funds\",WorkingR!T86,\"\")","v":""},{"$f":"IF(WorkingR!$B86=\"Activities for generating funds\",WorkingR!U86,\"\")","v":""},{"$f":"IF(WorkingR!$B86=\"Activities for generating funds\",WorkingR!V86,\"\")","v":""},{"$f":"IF(WorkingR!$B86=\"Activities for generating funds\",WorkingR!W86,\"\")","v":""},{"$f":"IF(WorkingR!$B86=\"Activities for generating funds\",WorkingR!X86,\"\")","v":""},{"$f":"IF(WorkingR!$B86=\"Activities for generating funds\",WorkingR!Y86,\"\")","v":""},{"$f":"IF(Descriptions!D87=\"Activites for generating funds\",Descriptions!AA87,0)","v":0}]
[{"$f":"IF(Descriptions!D88=\"Activites for generating funds\",Descriptions!B88,0)","v":0},{"$f":"IF(WorkingR!$B87=\"Activities for generating funds\",WorkingR!D87,\"\")","v":""},{"$f":"IF(WorkingR!$B87=\"Activities for generating funds\",WorkingR!E87,\"\")","v":""},{"$f":"IF(WorkingR!$B87=\"Activities for generating funds\",WorkingR!F87,\"\")","v":""},{"$f":"IF(WorkingR!$B87=\"Activities for generating funds\",WorkingR!G87,\"\")","v":""},{"$f":"IF(WorkingR!$B87=\"Activities for generating funds\",WorkingR!H87,\"\")","v":""},{"$f":"IF(WorkingR!$B87=\"Activities for generating funds\",WorkingR!I87,\"\")","v":""},{"$f":"IF(WorkingR!$B87=\"Activities for generating funds\",WorkingR!J87,\"\")","v":""},{"$f":"IF(WorkingR!$B87=\"Activities for generating funds\",WorkingR!K87,\"\")","v":""},{"$f":"IF(WorkingR!$B87=\"Activities for generating funds\",WorkingR!L87,\"\")","v":""},{"$f":"IF(WorkingR!$B87=\"Activities for generating funds\",WorkingR!M87,\"\")","v":""},{"$f":"IF(WorkingR!$B87=\"Activities for generating funds\",WorkingR!N87,\"\")","v":""},{"$f":"IF(WorkingR!$B87=\"Activities for generating funds\",WorkingR!O87,\"\")","v":""},{"$f":"IF(WorkingR!$B87=\"Activities for generating funds\",WorkingR!P87,\"\")","v":""},{"$f":"IF(WorkingR!$B87=\"Activities for generating funds\",WorkingR!Q87,\"\")","v":""},{"$f":"IF(WorkingR!$B87=\"Activities for generating funds\",WorkingR!R87,\"\")","v":""},{"$f":"IF(WorkingR!$B87=\"Activities for generating funds\",WorkingR!S87,\"\")","v":""},{"$f":"IF(WorkingR!$B87=\"Activities for generating funds\",WorkingR!T87,\"\")","v":""},{"$f":"IF(WorkingR!$B87=\"Activities for generating funds\",WorkingR!U87,\"\")","v":""},{"$f":"IF(WorkingR!$B87=\"Activities for generating funds\",WorkingR!V87,\"\")","v":""},{"$f":"IF(WorkingR!$B87=\"Activities for generating funds\",WorkingR!W87,\"\")","v":""},{"$f":"IF(WorkingR!$B87=\"Activities for generating funds\",WorkingR!X87,\"\")","v":""},{"$f":"IF(WorkingR!$B87=\"Activities for generating funds\",WorkingR!Y87,\"\")","v":""},{"$f":"IF(Descriptions!D88=\"Activites for generating funds\",Descriptions!AA88,0)","v":0}]
[{"$f":"IF(Descriptions!D89=\"Activites for generating funds\",Descriptions!B89,0)","v":0},{"$f":"IF(WorkingR!$B88=\"Activities for generating funds\",WorkingR!D88,\"\")","v":""},{"$f":"IF(WorkingR!$B88=\"Activities for generating funds\",WorkingR!E88,\"\")","v":""},{"$f":"IF(WorkingR!$B88=\"Activities for generating funds\",WorkingR!F88,\"\")","v":""},{"$f":"IF(WorkingR!$B88=\"Activities for generating funds\",WorkingR!G88,\"\")","v":""},{"$f":"IF(WorkingR!$B88=\"Activities for generating funds\",WorkingR!H88,\"\")","v":""},{"$f":"IF(WorkingR!$B88=\"Activities for generating funds\",WorkingR!I88,\"\")","v":""},{"$f":"IF(WorkingR!$B88=\"Activities for generating funds\",WorkingR!J88,\"\")","v":""},{"$f":"IF(WorkingR!$B88=\"Activities for generating funds\",WorkingR!K88,\"\")","v":""},{"$f":"IF(WorkingR!$B88=\"Activities for generating funds\",WorkingR!L88,\"\")","v":""},{"$f":"IF(WorkingR!$B88=\"Activities for generating funds\",WorkingR!M88,\"\")","v":""},{"$f":"IF(WorkingR!$B88=\"Activities for generating funds\",WorkingR!N88,\"\")","v":""},{"$f":"IF(WorkingR!$B88=\"Activities for generating funds\",WorkingR!O88,\"\")","v":""},{"$f":"IF(WorkingR!$B88=\"Activities for generating funds\",WorkingR!P88,\"\")","v":""},{"$f":"IF(WorkingR!$B88=\"Activities for generating funds\",WorkingR!Q88,\"\")","v":""},{"$f":"IF(WorkingR!$B88=\"Activities for generating funds\",WorkingR!R88,\"\")","v":""},{"$f":"IF(WorkingR!$B88=\"Activities for generating funds\",WorkingR!S88,\"\")","v":""},{"$f":"IF(WorkingR!$B88=\"Activities for generating funds\",WorkingR!T88,\"\")","v":""},{"$f":"IF(WorkingR!$B88=\"Activities for generating funds\",WorkingR!U88,\"\")","v":""},{"$f":"IF(WorkingR!$B88=\"Activities for generating funds\",WorkingR!V88,\"\")","v":""},{"$f":"IF(WorkingR!$B88=\"Activities for generating funds\",WorkingR!W88,\"\")","v":""},{"$f":"IF(WorkingR!$B88=\"Activities for generating funds\",WorkingR!X88,\"\")","v":""},{"$f":"IF(WorkingR!$B88=\"Activities for generating funds\",WorkingR!Y88,\"\")","v":""},{"$f":"IF(Descriptions!D89=\"Activites for generating funds\",Descriptions!AA89,0)","v":0}]
[{"$f":"IF(Descriptions!D90=\"Activites for generating funds\",Descriptions!B90,0)","v":0},{"$f":"IF(WorkingR!$B89=\"Activities for generating funds\",WorkingR!D89,\"\")","v":""},{"$f":"IF(WorkingR!$B89=\"Activities for generating funds\",WorkingR!E89,\"\")","v":""},{"$f":"IF(WorkingR!$B89=\"Activities for generating funds\",WorkingR!F89,\"\")","v":""},{"$f":"IF(WorkingR!$B89=\"Activities for generating funds\",WorkingR!G89,\"\")","v":""},{"$f":"IF(WorkingR!$B89=\"Activities for generating funds\",WorkingR!H89,\"\")","v":""},{"$f":"IF(WorkingR!$B89=\"Activities for generating funds\",WorkingR!I89,\"\")","v":""},{"$f":"IF(WorkingR!$B89=\"Activities for generating funds\",WorkingR!J89,\"\")","v":""},{"$f":"IF(WorkingR!$B89=\"Activities for generating funds\",WorkingR!K89,\"\")","v":""},{"$f":"IF(WorkingR!$B89=\"Activities for generating funds\",WorkingR!L89,\"\")","v":""},{"$f":"IF(WorkingR!$B89=\"Activities for generating funds\",WorkingR!M89,\"\")","v":""},{"$f":"IF(WorkingR!$B89=\"Activities for generating funds\",WorkingR!N89,\"\")","v":""},{"$f":"IF(WorkingR!$B89=\"Activities for generating funds\",WorkingR!O89,\"\")","v":""},{"$f":"IF(WorkingR!$B89=\"Activities for generating funds\",WorkingR!P89,\"\")","v":""},{"$f":"IF(WorkingR!$B89=\"Activities for generating funds\",WorkingR!Q89,\"\")","v":""},{"$f":"IF(WorkingR!$B89=\"Activities for generating funds\",WorkingR!R89,\"\")","v":""},{"$f":"IF(WorkingR!$B89=\"Activities for generating funds\",WorkingR!S89,\"\")","v":""},{"$f":"IF(WorkingR!$B89=\"Activities for generating funds\",WorkingR!T89,\"\")","v":""},{"$f":"IF(WorkingR!$B89=\"Activities for generating funds\",WorkingR!U89,\"\")","v":""},{"$f":"IF(WorkingR!$B89=\"Activities for generating funds\",WorkingR!V89,\"\")","v":""},{"$f":"IF(WorkingR!$B89=\"Activities for generating funds\",WorkingR!W89,\"\")","v":""},{"$f":"IF(WorkingR!$B89=\"Activities for generating funds\",WorkingR!X89,\"\")","v":""},{"$f":"IF(WorkingR!$B89=\"Activities for generating funds\",WorkingR!Y89,\"\")","v":""},{"$f":"IF(Descriptions!D90=\"Activites for generating funds\",Descriptions!AA90,0)","v":0}]
[{"$f":"IF(Descriptions!D91=\"Activites for generating funds\",Descriptions!B91,0)","v":0},{"$f":"IF(WorkingR!$B90=\"Activities for generating funds\",WorkingR!D90,\"\")","v":""},{"$f":"IF(WorkingR!$B90=\"Activities for generating funds\",WorkingR!E90,\"\")","v":""},{"$f":"IF(WorkingR!$B90=\"Activities for generating funds\",WorkingR!F90,\"\")","v":""},{"$f":"IF(WorkingR!$B90=\"Activities for generating funds\",WorkingR!G90,\"\")","v":""},{"$f":"IF(WorkingR!$B90=\"Activities for generating funds\",WorkingR!H90,\"\")","v":""},{"$f":"IF(WorkingR!$B90=\"Activities for generating funds\",WorkingR!I90,\"\")","v":""},{"$f":"IF(WorkingR!$B90=\"Activities for generating funds\",WorkingR!J90,\"\")","v":""},{"$f":"IF(WorkingR!$B90=\"Activities for generating funds\",WorkingR!K90,\"\")","v":""},{"$f":"IF(WorkingR!$B90=\"Activities for generating funds\",WorkingR!L90,\"\")","v":""},{"$f":"IF(WorkingR!$B90=\"Activities for generating funds\",WorkingR!M90,\"\")","v":""},{"$f":"IF(WorkingR!$B90=\"Activities for generating funds\",WorkingR!N90,\"\")","v":""},{"$f":"IF(WorkingR!$B90=\"Activities for generating funds\",WorkingR!O90,\"\")","v":""},{"$f":"IF(WorkingR!$B90=\"Activities for generating funds\",WorkingR!P90,\"\")","v":""},{"$f":"IF(WorkingR!$B90=\"Activities for generating funds\",WorkingR!Q90,\"\")","v":""},{"$f":"IF(WorkingR!$B90=\"Activities for generating funds\",WorkingR!R90,\"\")","v":""},{"$f":"IF(WorkingR!$B90=\"Activities for generating funds\",WorkingR!S90,\"\")","v":""},{"$f":"IF(WorkingR!$B90=\"Activities for generating funds\",WorkingR!T90,\"\")","v":""},{"$f":"IF(WorkingR!$B90=\"Activities for generating funds\",WorkingR!U90,\"\")","v":""},{"$f":"IF(WorkingR!$B90=\"Activities for generating funds\",WorkingR!V90,\"\")","v":""},{"$f":"IF(WorkingR!$B90=\"Activities for generating funds\",WorkingR!W90,\"\")","v":""},{"$f":"IF(WorkingR!$B90=\"Activities for generating funds\",WorkingR!X90,\"\")","v":""},{"$f":"IF(WorkingR!$B90=\"Activities for generating funds\",WorkingR!Y90,\"\")","v":""},{"$f":"IF(Descriptions!D91=\"Activites for generating funds\",Descriptions!AA91,0)","v":0}]
[{"$f":"IF(Descriptions!D92=\"Activites for generating funds\",Descriptions!B92,0)","v":0},{"$f":"IF(WorkingR!$B91=\"Activities for generating funds\",WorkingR!D91,\"\")","v":""},{"$f":"IF(WorkingR!$B91=\"Activities for generating funds\",WorkingR!E91,\"\")","v":""},{"$f":"IF(WorkingR!$B91=\"Activities for generating funds\",WorkingR!F91,\"\")","v":""},{"$f":"IF(WorkingR!$B91=\"Activities for generating funds\",WorkingR!G91,\"\")","v":""},{"$f":"IF(WorkingR!$B91=\"Activities for generating funds\",WorkingR!H91,\"\")","v":""},{"$f":"IF(WorkingR!$B91=\"Activities for generating funds\",WorkingR!I91,\"\")","v":""},{"$f":"IF(WorkingR!$B91=\"Activities for generating funds\",WorkingR!J91,\"\")","v":""},{"$f":"IF(WorkingR!$B91=\"Activities for generating funds\",WorkingR!K91,\"\")","v":""},{"$f":"IF(WorkingR!$B91=\"Activities for generating funds\",WorkingR!L91,\"\")","v":""},{"$f":"IF(WorkingR!$B91=\"Activities for generating funds\",WorkingR!M91,\"\")","v":""},{"$f":"IF(WorkingR!$B91=\"Activities for generating funds\",WorkingR!N91,\"\")","v":""},{"$f":"IF(WorkingR!$B91=\"Activities for generating funds\",WorkingR!O91,\"\")","v":""},{"$f":"IF(WorkingR!$B91=\"Activities for generating funds\",WorkingR!P91,\"\")","v":""},{"$f":"IF(WorkingR!$B91=\"Activities for generating funds\",WorkingR!Q91,\"\")","v":""},{"$f":"IF(WorkingR!$B91=\"Activities for generating funds\",WorkingR!R91,\"\")","v":""},{"$f":"IF(WorkingR!$B91=\"Activities for generating funds\",WorkingR!S91,\"\")","v":""},{"$f":"IF(WorkingR!$B91=\"Activities for generating funds\",WorkingR!T91,\"\")","v":""},{"$f":"IF(WorkingR!$B91=\"Activities for generating funds\",WorkingR!U91,\"\")","v":""},{"$f":"IF(WorkingR!$B91=\"Activities for generating funds\",WorkingR!V91,\"\")","v":""},{"$f":"IF(WorkingR!$B91=\"Activities for generating funds\",WorkingR!W91,\"\")","v":""},{"$f":"IF(WorkingR!$B91=\"Activities for generating funds\",WorkingR!X91,\"\")","v":""},{"$f":"IF(WorkingR!$B91=\"Activities for generating funds\",WorkingR!Y91,\"\")","v":""},{"$f":"IF(Descriptions!D92=\"Activites for generating funds\",Descriptions!AA92,0)","v":0}]
[null,{"$f":"SUM(B232:B287)","v":0},0,0,0,0,0,0,0,0,0,0,0,0,0,0,0,0,0,0,0,0,null,{"$f":"X231","v":0}]
["CHURCH ACTIVITIES",null,null,null,null,null,null,null,null,null,null,null,null,null,null,null,null,null,null,null,null,null,null,{"$f":"SUM(X290:X346)","v":0}]
["Use of Church buildings",{"$f":"WorkingR!D35","v":0},{"$f":"WorkingR!E35","v":0},{"$f":"WorkingR!F35","v":0},{"$f":"WorkingR!G35","v":0},{"$f":"WorkingR!H35","v":0},{"$f":"WorkingR!I35","v":0},{"$f":"WorkingR!J35","v":0},{"$f":"WorkingR!K35","v":0},{"$f":"WorkingR!L35","v":0},{"$f":"WorkingR!M35","v":0},{"$f":"WorkingR!N35","v":0},{"$f":"WorkingR!O35","v":0},{"$f":"WorkingR!P35","v":0},{"$f":"WorkingR!Q35","v":0},{"$f":"WorkingR!R35","v":0},{"$f":"WorkingR!S35","v":0},{"$f":"WorkingR!T35","v":0},{"$f":"WorkingR!U35","v":0},{"$f":"WorkingR!V35","v":0},{"$f":"WorkingR!W35","v":0},{"$f":"WorkingR!X35","v":0},{"$f":"WorkingR!Y35","v":0},{"$f":"Descriptions!AA36","v":0}]
["Non-charitable trading",{"$f":"WorkingR!D25","v":0},{"$f":"WorkingR!E25","v":0},{"$f":"WorkingR!F25","v":0},{"$f":"WorkingR!G25","v":0},{"$f":"WorkingR!H25","v":0},{"$f":"WorkingR!I25","v":0},{"$f":"WorkingR!J25","v":0},{"$f":"WorkingR!K25","v":0},{"$f":"WorkingR!L25","v":0},{"$f":"WorkingR!M25","v":0},{"$f":"WorkingR!N25","v":0},{"$f":"WorkingR!O25","v":0},{"$f":"WorkingR!P25","v":0},{"$f":"WorkingR!Q25","v":0},{"$f":"WorkingR!R25","v":0},{"$f":"WorkingR!S25","v":0},{"$f":"WorkingR!T25","v":0},{"$f":"WorkingR!U25","v":0},{"$f":"WorkingR!V25","v":0},{"$f":"WorkingR!W25","v":0},{"$f":"WorkingR!X25","v":0},{"$f":"WorkingR!Y25","v":0},{"$f":"Descriptions!AA26","v":0}]
["Fees - Statutory",{"$f":"WorkingR!D14","v":0},{"$f":"WorkingR!E14","v":0},{"$f":"WorkingR!F14","v":0},{"$f":"WorkingR!G14","v":0},{"$f":"WorkingR!H14","v":0},{"$f":"WorkingR!I14","v":0},{"$f":"WorkingR!J14","v":0},{"$f":"WorkingR!K14","v":0},{"$f":"WorkingR!L14","v":0},{"$f":"WorkingR!M14","v":0},{"$f":"WorkingR!N14","v":0},{"$f":"WorkingR!O14","v":0},{"$f":"WorkingR!P14","v":0},{"$f":"WorkingR!Q14","v":0},{"$f":"WorkingR!R14","v":0},{"$f":"WorkingR!S14","v":0},{"$f":"WorkingR!T14","v":0},{"$f":"WorkingR!U14","v":0},{"$f":"WorkingR!V14","v":0},{"$f":"WorkingR!W14","v":0},{"$f":"WorkingR!X14","v":0},{"$f":"WorkingR!Y14","v":0},{"$f":"Descriptions!AA15","v":0}]
["Fees - Additional",{"$f":"WorkingR!D13","v":0},{"$f":"WorkingR!E13","v":0},{"$f":"WorkingR!F13","v":0},{"$f":"WorkingR!G13","v":0},{"$f":"WorkingR!H13","v":0},{"$f":"WorkingR!I13","v":0},{"$f":"WorkingR!J13","v":0},{"$f":"WorkingR!K13","v":0},{"$f":"WorkingR!L13","v":0},{"$f":"WorkingR!M13","v":0},{"$f":"WorkingR!N13","v":0},{"$f":"WorkingR!O13","v":0},{"$f":"WorkingR!P13","v":0},{"$f":"WorkingR!Q13","v":0},{"$f":"WorkingR!R13","v":0},{"$f":"WorkingR!S13","v":0},{"$f":"WorkingR!T13","v":0},{"$f":"WorkingR!U13","v":0},{"$f":"WorkingR!V13","v":0},{"$f":"WorkingR!W13","v":0},{"$f":"WorkingR!X13","v":0},{"$f":"WorkingR!Y13","v":0},{"$f":"Descriptions!AA14","v":0}]
["Church Building Appeal",{"$f":"WorkingR!D8","v":0},{"$f":"WorkingR!E8","v":0},{"$f":"WorkingR!F8","v":0},{"$f":"WorkingR!G8","v":0},{"$f":"WorkingR!H8","v":0},{"$f":"WorkingR!I8","v":0},{"$f":"WorkingR!J8","v":0},{"$f":"WorkingR!K8","v":0},{"$f":"WorkingR!L8","v":0},{"$f":"WorkingR!M8","v":0},{"$f":"WorkingR!N8","v":0},{"$f":"WorkingR!O8","v":0},{"$f":"WorkingR!P8","v":0},{"$f":"WorkingR!Q8","v":0},{"$f":"WorkingR!R8","v":0},{"$f":"WorkingR!S8","v":0},{"$f":"WorkingR!T8","v":0},{"$f":"WorkingR!U8","v":0},{"$f":"WorkingR!V8","v":0},{"$f":"WorkingR!W8","v":0},{"$f":"WorkingR!X8","v":0},{"$f":"WorkingR!Y8","v":0},{"$f":"Descriptions!AA9","v":0}]
["VAT Reclaim",{"$f":"WorkingR!D36","v":0},{"$f":"WorkingR!E36","v":0},{"$f":"WorkingR!F36","v":0},{"$f":"WorkingR!G36","v":0},{"$f":"WorkingR!H36","v":0},{"$f":"WorkingR!I36","v":0},{"$f":"WorkingR!J36","v":0},{"$f":"WorkingR!K36","v":0},{"$f":"WorkingR!L36","v":0},{"$f":"WorkingR!M36","v":0},{"$f":"WorkingR!N36","v":0},{"$f":"WorkingR!O36","v":0},{"$f":"WorkingR!P36","v":0},{"$f":"WorkingR!Q36","v":0},{"$f":"WorkingR!R36","v":0},{"$f":"WorkingR!S36","v":0},{"$f":"WorkingR!T36","v":0},{"$f":"WorkingR!U36","v":0},{"$f":"WorkingR!V36","v":0},{"$f":"WorkingR!W36","v":0},{"$f":"WorkingR!X36","v":0},{"$f":"WorkingR!Y36","v":0},{"$f":"Descriptions!AA37","v":0}]
["Rental Income",{"$f":"WorkingR!D29","v":0},{"$f":"WorkingR!E29","v":0},{"$f":"WorkingR!F29","v":0},{"$f":"WorkingR!G29","v":0},{"$f":"WorkingR!H29","v":0},{"$f":"WorkingR!I29","v":0},{"$f":"WorkingR!J29","v":0},{"$f":"WorkingR!K29","v":0},{"$f":"WorkingR!L29","v":0},{"$f":"WorkingR!M29","v":0},{"$f":"WorkingR!N29","v":0},{"$f":"WorkingR!O29","v":0},{"$f":"WorkingR!P29","v":0},{"$f":"WorkingR!Q29","v":0},{"$f":"WorkingR!R29","v":0},{"$f":"WorkingR!S29","v":0},{"$f":"WorkingR!T29","v":0},{"$f":"WorkingR!U29","v":0},{"$f":"WorkingR!V29","v":0},{"$f":"WorkingR!W29","v":0},{"$f":"WorkingR!X29","v":0},{"$f":"WorkingR!Y29","v":0},{"$f":"Descriptions!AA30","v":0}]
[{"$f":"IF(Descriptions!D43=\"Church activities\",Descriptions!B43,0)","v":0},{"$f":"IF(WorkingR!$B42=\"Church activities\",WorkingR!D42,\"\")","v":""},{"$f":"IF(WorkingR!$B42=\"Church activities\",WorkingR!E42,\"\")","v":""},{"$f":"IF(WorkingR!$B42=\"Church activities\",WorkingR!F42,\"\")","v":""},{"$f":"IF(WorkingR!$B42=\"Church activities\",WorkingR!G42,\"\")","v":""},{"$f":"IF(WorkingR!$B42=\"Church activities\",WorkingR!H42,\"\")","v":""},{"$f":"IF(WorkingR!$B42=\"Church activities\",WorkingR!I42,\"\")","v":""},{"$f":"IF(WorkingR!$B42=\"Church activities\",WorkingR!J42,\"\")","v":""},{"$f":"IF(WorkingR!$B42=\"Church activities\",WorkingR!K42,\"\")","v":""},{"$f":"IF(WorkingR!$B42=\"Church activities\",WorkingR!L42,\"\")","v":""},{"$f":"IF(WorkingR!$B42=\"Church activities\",WorkingR!M42,\"\")","v":""},{"$f":"IF(WorkingR!$B42=\"Church activities\",WorkingR!N42,\"\")","v":""},{"$f":"IF(WorkingR!$B42=\"Church activities\",WorkingR!O42,\"\")","v":""},{"$f":"IF(WorkingR!$B42=\"Church activities\",WorkingR!P42,\"\")","v":""},{"$f":"IF(WorkingR!$B42=\"Church activities\",WorkingR!Q42,\"\")","v":""},{"$f":"IF(WorkingR!$B42=\"Church activities\",WorkingR!R42,\"\")","v":""},{"$f":"IF(WorkingR!$B42=\"Church activities\",WorkingR!S42,\"\")","v":""},{"$f":"IF(WorkingR!$B42=\"Church activities\",WorkingR!T42,\"\")","v":""},{"$f":"IF(WorkingR!$B42=\"Church activities\",WorkingR!U42,\"\")","v":""},{"$f":"IF(WorkingR!$B42=\"Church activities\",WorkingR!V42,\"\")","v":""},{"$f":"IF(WorkingR!$B42=\"Church activities\",WorkingR!W42,\"\")","v":""},{"$f":"IF(WorkingR!$B42=\"Church activities\",WorkingR!X42,\"\")","v":""},{"$f":"IF(WorkingR!$B42=\"Church activities\",WorkingR!Y42,\"\")","v":""},{"$f":"IF(Descriptions!D43=\"Church activities\",Descriptions!AA43,0)","v":0}]
[{"$f":"IF(Descriptions!D44=\"Church activities\",Descriptions!B44,0)","v":0},{"$f":"IF(WorkingR!$B43=\"Church activities\",WorkingR!D43,\"\")","v":""},{"$f":"IF(WorkingR!$B43=\"Church activities\",WorkingR!E43,\"\")","v":""},{"$f":"IF(WorkingR!$B43=\"Church activities\",WorkingR!F43,\"\")","v":""},{"$f":"IF(WorkingR!$B43=\"Church activities\",WorkingR!G43,\"\")","v":""},{"$f":"IF(WorkingR!$B43=\"Church activities\",WorkingR!H43,\"\")","v":""},{"$f":"IF(WorkingR!$B43=\"Church activities\",WorkingR!I43,\"\")","v":""},{"$f":"IF(WorkingR!$B43=\"Church activities\",WorkingR!J43,\"\")","v":""},{"$f":"IF(WorkingR!$B43=\"Church activities\",WorkingR!K43,\"\")","v":""},{"$f":"IF(WorkingR!$B43=\"Church activities\",WorkingR!L43,\"\")","v":""},{"$f":"IF(WorkingR!$B43=\"Church activities\",WorkingR!M43,\"\")","v":""},{"$f":"IF(WorkingR!$B43=\"Church activities\",WorkingR!N43,\"\")","v":""},{"$f":"IF(WorkingR!$B43=\"Church activities\",WorkingR!O43,\"\")","v":""},{"$f":"IF(WorkingR!$B43=\"Church activities\",WorkingR!P43,\"\")","v":""},{"$f":"IF(WorkingR!$B43=\"Church activities\",WorkingR!Q43,\"\")","v":""},{"$f":"IF(WorkingR!$B43=\"Church activities\",WorkingR!R43,\"\")","v":""},{"$f":"IF(WorkingR!$B43=\"Church activities\",WorkingR!S43,\"\")","v":""},{"$f":"IF(WorkingR!$B43=\"Church activities\",WorkingR!T43,\"\")","v":""},{"$f":"IF(WorkingR!$B43=\"Church activities\",WorkingR!U43,\"\")","v":""},{"$f":"IF(WorkingR!$B43=\"Church activities\",WorkingR!V43,\"\")","v":""},{"$f":"IF(WorkingR!$B43=\"Church activities\",WorkingR!W43,\"\")","v":""},{"$f":"IF(WorkingR!$B43=\"Church activities\",WorkingR!X43,\"\")","v":""},{"$f":"IF(WorkingR!$B43=\"Church activities\",WorkingR!Y43,\"\")","v":""},{"$f":"IF(Descriptions!D44=\"Church activities\",Descriptions!AA44,0)","v":0}]
[{"$f":"IF(Descriptions!D45=\"Church activities\",Descriptions!B45,0)","v":0},{"$f":"IF(WorkingR!$B44=\"Church activities\",WorkingR!D44,\"\")","v":""},{"$f":"IF(WorkingR!$B44=\"Church activities\",WorkingR!E44,\"\")","v":""},{"$f":"IF(WorkingR!$B44=\"Church activities\",WorkingR!F44,\"\")","v":""},{"$f":"IF(WorkingR!$B44=\"Church activities\",WorkingR!G44,\"\")","v":""},{"$f":"IF(WorkingR!$B44=\"Church activities\",WorkingR!H44,\"\")","v":""},{"$f":"IF(WorkingR!$B44=\"Church activities\",WorkingR!I44,\"\")","v":""},{"$f":"IF(WorkingR!$B44=\"Church activities\",WorkingR!J44,\"\")","v":""},{"$f":"IF(WorkingR!$B44=\"Church activities\",WorkingR!K44,\"\")","v":""},{"$f":"IF(WorkingR!$B44=\"Church activities\",WorkingR!L44,\"\")","v":""},{"$f":"IF(WorkingR!$B44=\"Church activities\",WorkingR!M44,\"\")","v":""},{"$f":"IF(WorkingR!$B44=\"Church activities\",WorkingR!N44,\"\")","v":""},{"$f":"IF(WorkingR!$B44=\"Church activities\",WorkingR!O44,\"\")","v":""},{"$f":"IF(WorkingR!$B44=\"Church activities\",WorkingR!P44,\"\")","v":""},{"$f":"IF(WorkingR!$B44=\"Church activities\",WorkingR!Q44,\"\")","v":""},{"$f":"IF(WorkingR!$B44=\"Church activities\",WorkingR!R44,\"\")","v":""},{"$f":"IF(WorkingR!$B44=\"Church activities\",WorkingR!S44,\"\")","v":""},{"$f":"IF(WorkingR!$B44=\"Church activities\",WorkingR!T44,\"\")","v":""},{"$f":"IF(WorkingR!$B44=\"Church activities\",WorkingR!U44,\"\")","v":""},{"$f":"IF(WorkingR!$B44=\"Church activities\",WorkingR!V44,\"\")","v":""},{"$f":"IF(WorkingR!$B44=\"Church activities\",WorkingR!W44,\"\")","v":""},{"$f":"IF(WorkingR!$B44=\"Church activities\",WorkingR!X44,\"\")","v":""},{"$f":"IF(WorkingR!$B44=\"Church activities\",WorkingR!Y44,\"\")","v":""},{"$f":"IF(Descriptions!D45=\"Church activities\",Descriptions!AA45,0)","v":0}]
[{"$f":"IF(Descriptions!D46=\"Church activities\",Descriptions!B46,0)","v":0},{"$f":"IF(WorkingR!$B45=\"Church activities\",WorkingR!D45,\"\")","v":""},{"$f":"IF(WorkingR!$B45=\"Church activities\",WorkingR!E45,\"\")","v":""},{"$f":"IF(WorkingR!$B45=\"Church activities\",WorkingR!F45,\"\")","v":""},{"$f":"IF(WorkingR!$B45=\"Church activities\",WorkingR!G45,\"\")","v":""},{"$f":"IF(WorkingR!$B45=\"Church activities\",WorkingR!H45,\"\")","v":""},{"$f":"IF(WorkingR!$B45=\"Church activities\",WorkingR!I45,\"\")","v":""},{"$f":"IF(WorkingR!$B45=\"Church activities\",WorkingR!J45,\"\")","v":""},{"$f":"IF(WorkingR!$B45=\"Church activities\",WorkingR!K45,\"\")","v":""},{"$f":"IF(WorkingR!$B45=\"Church activities\",WorkingR!L45,\"\")","v":""},{"$f":"IF(WorkingR!$B45=\"Church activities\",WorkingR!M45,\"\")","v":""},{"$f":"IF(WorkingR!$B45=\"Church activities\",WorkingR!N45,\"\")","v":""},{"$f":"IF(WorkingR!$B45=\"Church activities\",WorkingR!O45,\"\")","v":""},{"$f":"IF(WorkingR!$B45=\"Church activities\",WorkingR!P45,\"\")","v":""},{"$f":"IF(WorkingR!$B45=\"Church activities\",WorkingR!Q45,\"\")","v":""},{"$f":"IF(WorkingR!$B45=\"Church activities\",WorkingR!R45,\"\")","v":""},{"$f":"IF(WorkingR!$B45=\"Church activities\",WorkingR!S45,\"\")","v":""},{"$f":"IF(WorkingR!$B45=\"Church activities\",WorkingR!T45,\"\")","v":""},{"$f":"IF(WorkingR!$B45=\"Church activities\",WorkingR!U45,\"\")","v":""},{"$f":"IF(WorkingR!$B45=\"Church activities\",WorkingR!V45,\"\")","v":""},{"$f":"IF(WorkingR!$B45=\"Church activities\",WorkingR!W45,\"\")","v":""},{"$f":"IF(WorkingR!$B45=\"Church activities\",WorkingR!X45,\"\")","v":""},{"$f":"IF(WorkingR!$B45=\"Church activities\",WorkingR!Y45,\"\")","v":""},{"$f":"IF(Descriptions!D46=\"Church activities\",Descriptions!AA46,0)","v":0}]
[{"$f":"IF(Descriptions!D47=\"Church activities\",Descriptions!B47,0)","v":0},{"$f":"IF(WorkingR!$B46=\"Church activities\",WorkingR!D46,\"\")","v":""},{"$f":"IF(WorkingR!$B46=\"Church activities\",WorkingR!E46,\"\")","v":""},{"$f":"IF(WorkingR!$B46=\"Church activities\",WorkingR!F46,\"\")","v":""},{"$f":"IF(WorkingR!$B46=\"Church activities\",WorkingR!G46,\"\")","v":""},{"$f":"IF(WorkingR!$B46=\"Church activities\",WorkingR!H46,\"\")","v":""},{"$f":"IF(WorkingR!$B46=\"Church activities\",WorkingR!I46,\"\")","v":""},{"$f":"IF(WorkingR!$B46=\"Church activities\",WorkingR!J46,\"\")","v":""},{"$f":"IF(WorkingR!$B46=\"Church activities\",WorkingR!K46,\"\")","v":""},{"$f":"IF(WorkingR!$B46=\"Church activities\",WorkingR!L46,\"\")","v":""},{"$f":"IF(WorkingR!$B46=\"Church activities\",WorkingR!M46,\"\")","v":""},{"$f":"IF(WorkingR!$B46=\"Church activities\",WorkingR!N46,\"\")","v":""},{"$f":"IF(WorkingR!$B46=\"Church activities\",WorkingR!O46,\"\")","v":""},{"$f":"IF(WorkingR!$B46=\"Church activities\",WorkingR!P46,\"\")","v":""},{"$f":"IF(WorkingR!$B46=\"Church activities\",WorkingR!Q46,\"\")","v":""},{"$f":"IF(WorkingR!$B46=\"Church activities\",WorkingR!R46,\"\")","v":""},{"$f":"IF(WorkingR!$B46=\"Church activities\",WorkingR!S46,\"\")","v":""},{"$f":"IF(WorkingR!$B46=\"Church activities\",WorkingR!T46,\"\")","v":""},{"$f":"IF(WorkingR!$B46=\"Church activities\",WorkingR!U46,\"\")","v":""},{"$f":"IF(WorkingR!$B46=\"Church activities\",WorkingR!V46,\"\")","v":""},{"$f":"IF(WorkingR!$B46=\"Church activities\",WorkingR!W46,\"\")","v":""},{"$f":"IF(WorkingR!$B46=\"Church activities\",WorkingR!X46,\"\")","v":""},{"$f":"IF(WorkingR!$B46=\"Church activities\",WorkingR!Y46,\"\")","v":""},{"$f":"IF(Descriptions!D47=\"Church activities\",Descriptions!AA47,0)","v":0}]
[{"$f":"IF(Descriptions!D48=\"Church activities\",Descriptions!B48,0)","v":0},{"$f":"IF(WorkingR!$B47=\"Church activities\",WorkingR!D47,\"\")","v":""},{"$f":"IF(WorkingR!$B47=\"Church activities\",WorkingR!E47,\"\")","v":""},{"$f":"IF(WorkingR!$B47=\"Church activities\",WorkingR!F47,\"\")","v":""},{"$f":"IF(WorkingR!$B47=\"Church activities\",WorkingR!G47,\"\")","v":""},{"$f":"IF(WorkingR!$B47=\"Church activities\",WorkingR!H47,\"\")","v":""},{"$f":"IF(WorkingR!$B47=\"Church activities\",WorkingR!I47,\"\")","v":""},{"$f":"IF(WorkingR!$B47=\"Church activities\",WorkingR!J47,\"\")","v":""},{"$f":"IF(WorkingR!$B47=\"Church activities\",WorkingR!K47,\"\")","v":""},{"$f":"IF(WorkingR!$B47=\"Church activities\",WorkingR!L47,\"\")","v":""},{"$f":"IF(WorkingR!$B47=\"Church activities\",WorkingR!M47,\"\")","v":""},{"$f":"IF(WorkingR!$B47=\"Church activities\",WorkingR!N47,\"\")","v":""},{"$f":"IF(WorkingR!$B47=\"Church activities\",WorkingR!O47,\"\")","v":""},{"$f":"IF(WorkingR!$B47=\"Church activities\",WorkingR!P47,\"\")","v":""},{"$f":"IF(WorkingR!$B47=\"Church activities\",WorkingR!Q47,\"\")","v":""},{"$f":"IF(WorkingR!$B47=\"Church activities\",WorkingR!R47,\"\")","v":""},{"$f":"IF(WorkingR!$B47=\"Church activities\",WorkingR!S47,\"\")","v":""},{"$f":"IF(WorkingR!$B47=\"Church activities\",WorkingR!T47,\"\")","v":""},{"$f":"IF(WorkingR!$B47=\"Church activities\",WorkingR!U47,\"\")","v":""},{"$f":"IF(WorkingR!$B47=\"Church activities\",WorkingR!V47,\"\")","v":""},{"$f":"IF(WorkingR!$B47=\"Church activities\",WorkingR!W47,\"\")","v":""},{"$f":"IF(WorkingR!$B47=\"Church activities\",WorkingR!X47,\"\")","v":""},{"$f":"IF(WorkingR!$B47=\"Church activities\",WorkingR!Y47,\"\")","v":""},{"$f":"IF(Descriptions!D48=\"Church activities\",Descriptions!AA48,0)","v":0}]
[{"$f":"IF(Descriptions!D49=\"Church activities\",Descriptions!B49,0)","v":0},{"$f":"IF(WorkingR!$B48=\"Church activities\",WorkingR!D48,\"\")","v":""},{"$f":"IF(WorkingR!$B48=\"Church activities\",WorkingR!E48,\"\")","v":""},{"$f":"IF(WorkingR!$B48=\"Church activities\",WorkingR!F48,\"\")","v":""},{"$f":"IF(WorkingR!$B48=\"Church activities\",WorkingR!G48,\"\")","v":""},{"$f":"IF(WorkingR!$B48=\"Church activities\",WorkingR!H48,\"\")","v":""},{"$f":"IF(WorkingR!$B48=\"Church activities\",WorkingR!I48,\"\")","v":""},{"$f":"IF(WorkingR!$B48=\"Church activities\",WorkingR!J48,\"\")","v":""},{"$f":"IF(WorkingR!$B48=\"Church activities\",WorkingR!K48,\"\")","v":""},{"$f":"IF(WorkingR!$B48=\"Church activities\",WorkingR!L48,\"\")","v":""},{"$f":"IF(WorkingR!$B48=\"Church activities\",WorkingR!M48,\"\")","v":""},{"$f":"IF(WorkingR!$B48=\"Church activities\",WorkingR!N48,\"\")","v":""},{"$f":"IF(WorkingR!$B48=\"Church activities\",WorkingR!O48,\"\")","v":""},{"$f":"IF(WorkingR!$B48=\"Church activities\",WorkingR!P48,\"\")","v":""},{"$f":"IF(WorkingR!$B48=\"Church activities\",WorkingR!Q48,\"\")","v":""},{"$f":"IF(WorkingR!$B48=\"Church activities\",WorkingR!R48,\"\")","v":""},{"$f":"IF(WorkingR!$B48=\"Church activities\",WorkingR!S48,\"\")","v":""},{"$f":"IF(WorkingR!$B48=\"Church activities\",WorkingR!T48,\"\")","v":""},{"$f":"IF(WorkingR!$B48=\"Church activities\",WorkingR!U48,\"\")","v":""},{"$f":"IF(WorkingR!$B48=\"Church activities\",WorkingR!V48,\"\")","v":""},{"$f":"IF(WorkingR!$B48=\"Church activities\",WorkingR!W48,\"\")","v":""},{"$f":"IF(WorkingR!$B48=\"Church activities\",WorkingR!X48,\"\")","v":""},{"$f":"IF(WorkingR!$B48=\"Church activities\",WorkingR!Y48,\"\")","v":""},{"$f":"IF(Descriptions!D49=\"Church activities\",Descriptions!AA49,0)","v":0}]
[{"$f":"IF(Descriptions!D50=\"Church activities\",Descriptions!B50,0)","v":0},{"$f":"IF(WorkingR!$B49=\"Church activities\",WorkingR!D49,\"\")","v":""},{"$f":"IF(WorkingR!$B49=\"Church activities\",WorkingR!E49,\"\")","v":""},{"$f":"IF(WorkingR!$B49=\"Church activities\",WorkingR!F49,\"\")","v":""},{"$f":"IF(WorkingR!$B49=\"Church activities\",WorkingR!G49,\"\")","v":""},{"$f":"IF(WorkingR!$B49=\"Church activities\",WorkingR!H49,\"\")","v":""},{"$f":"IF(WorkingR!$B49=\"Church activities\",WorkingR!I49,\"\")","v":""},{"$f":"IF(WorkingR!$B49=\"Church activities\",WorkingR!J49,\"\")","v":""},{"$f":"IF(WorkingR!$B49=\"Church activities\",WorkingR!K49,\"\")","v":""},{"$f":"IF(WorkingR!$B49=\"Church activities\",WorkingR!L49,\"\")","v":""},{"$f":"IF(WorkingR!$B49=\"Church activities\",WorkingR!M49,\"\")","v":""},{"$f":"IF(WorkingR!$B49=\"Church activities\",WorkingR!N49,\"\")","v":""},{"$f":"IF(WorkingR!$B49=\"Church activities\",WorkingR!O49,\"\")","v":""},{"$f":"IF(WorkingR!$B49=\"Church activities\",WorkingR!P49,\"\")","v":""},{"$f":"IF(WorkingR!$B49=\"Church activities\",WorkingR!Q49,\"\")","v":""},{"$f":"IF(WorkingR!$B49=\"Church activities\",WorkingR!R49,\"\")","v":""},{"$f":"IF(WorkingR!$B49=\"Church activities\",WorkingR!S49,\"\")","v":""},{"$f":"IF(WorkingR!$B49=\"Church activities\",WorkingR!T49,\"\")","v":""},{"$f":"IF(WorkingR!$B49=\"Church activities\",WorkingR!U49,\"\")","v":""},{"$f":"IF(WorkingR!$B49=\"Church activities\",WorkingR!V49,\"\")","v":""},{"$f":"IF(WorkingR!$B49=\"Church activities\",WorkingR!W49,\"\")","v":""},{"$f":"IF(WorkingR!$B49=\"Church activities\",WorkingR!X49,\"\")","v":""},{"$f":"IF(WorkingR!$B49=\"Church activities\",WorkingR!Y49,\"\")","v":""},{"$f":"IF(Descriptions!D50=\"Church activities\",Descriptions!AA50,0)","v":0}]
[{"$f":"IF(Descriptions!D51=\"Church activities\",Descriptions!B51,0)","v":0},{"$f":"IF(WorkingR!$B50=\"Church activities\",WorkingR!D50,\"\")","v":""},{"$f":"IF(WorkingR!$B50=\"Church activities\",WorkingR!E50,\"\")","v":""},{"$f":"IF(WorkingR!$B50=\"Church activities\",WorkingR!F50,\"\")","v":""},{"$f":"IF(WorkingR!$B50=\"Church activities\",WorkingR!G50,\"\")","v":""},{"$f":"IF(WorkingR!$B50=\"Church activities\",WorkingR!H50,\"\")","v":""},{"$f":"IF(WorkingR!$B50=\"Church activities\",WorkingR!I50,\"\")","v":""},{"$f":"IF(WorkingR!$B50=\"Church activities\",WorkingR!J50,\"\")","v":""},{"$f":"IF(WorkingR!$B50=\"Church activities\",WorkingR!K50,\"\")","v":""},{"$f":"IF(WorkingR!$B50=\"Church activities\",WorkingR!L50,\"\")","v":""},{"$f":"IF(WorkingR!$B50=\"Church activities\",WorkingR!M50,\"\")","v":""},{"$f":"IF(WorkingR!$B50=\"Church activities\",WorkingR!N50,\"\")","v":""},{"$f":"IF(WorkingR!$B50=\"Church activities\",WorkingR!O50,\"\")","v":""},{"$f":"IF(WorkingR!$B50=\"Church activities\",WorkingR!P50,\"\")","v":""},{"$f":"IF(WorkingR!$B50=\"Church activities\",WorkingR!Q50,\"\")","v":""},{"$f":"IF(WorkingR!$B50=\"Church activities\",WorkingR!R50,\"\")","v":""},{"$f":"IF(WorkingR!$B50=\"Church activities\",WorkingR!S50,\"\")","v":""},{"$f":"IF(WorkingR!$B50=\"Church activities\",WorkingR!T50,\"\")","v":""},{"$f":"IF(WorkingR!$B50=\"Church activities\",WorkingR!U50,\"\")","v":""},{"$f":"IF(WorkingR!$B50=\"Church activities\",WorkingR!V50,\"\")","v":""},{"$f":"IF(WorkingR!$B50=\"Church activities\",WorkingR!W50,\"\")","v":""},{"$f":"IF(WorkingR!$B50=\"Church activities\",WorkingR!X50,\"\")","v":""},{"$f":"IF(WorkingR!$B50=\"Church activities\",WorkingR!Y50,\"\")","v":""},{"$f":"IF(Descriptions!D51=\"Church activities\",Descriptions!AA51,0)","v":0}]
[{"$f":"IF(Descriptions!D52=\"Church activities\",Descriptions!B52,0)","v":0},{"$f":"IF(WorkingR!$B51=\"Church activities\",WorkingR!D51,\"\")","v":""},{"$f":"IF(WorkingR!$B51=\"Church activities\",WorkingR!E51,\"\")","v":""},{"$f":"IF(WorkingR!$B51=\"Church activities\",WorkingR!F51,\"\")","v":""},{"$f":"IF(WorkingR!$B51=\"Church activities\",WorkingR!G51,\"\")","v":""},{"$f":"IF(WorkingR!$B51=\"Church activities\",WorkingR!H51,\"\")","v":""},{"$f":"IF(WorkingR!$B51=\"Church activities\",WorkingR!I51,\"\")","v":""},{"$f":"IF(WorkingR!$B51=\"Church activities\",WorkingR!J51,\"\")","v":""},{"$f":"IF(WorkingR!$B51=\"Church activities\",WorkingR!K51,\"\")","v":""},{"$f":"IF(WorkingR!$B51=\"Church activities\",WorkingR!L51,\"\")","v":""},{"$f":"IF(WorkingR!$B51=\"Church activities\",WorkingR!M51,\"\")","v":""},{"$f":"IF(WorkingR!$B51=\"Church activities\",WorkingR!N51,\"\")","v":""},{"$f":"IF(WorkingR!$B51=\"Church activities\",WorkingR!O51,\"\")","v":""},{"$f":"IF(WorkingR!$B51=\"Church activities\",WorkingR!P51,\"\")","v":""},{"$f":"IF(WorkingR!$B51=\"Church activities\",WorkingR!Q51,\"\")","v":""},{"$f":"IF(WorkingR!$B51=\"Church activities\",WorkingR!R51,\"\")","v":""},{"$f":"IF(WorkingR!$B51=\"Church activities\",WorkingR!S51,\"\")","v":""},{"$f":"IF(WorkingR!$B51=\"Church activities\",WorkingR!T51,\"\")","v":""},{"$f":"IF(WorkingR!$B51=\"Church activities\",WorkingR!U51,\"\")","v":""},{"$f":"IF(WorkingR!$B51=\"Church activities\",WorkingR!V51,\"\")","v":""},{"$f":"IF(WorkingR!$B51=\"Church activities\",WorkingR!W51,\"\")","v":""},{"$f":"IF(WorkingR!$B51=\"Church activities\",WorkingR!X51,\"\")","v":""},{"$f":"IF(WorkingR!$B51=\"Church activities\",WorkingR!Y51,\"\")","v":""},{"$f":"IF(Descriptions!D52=\"Church activities\",Descriptions!AA52,0)","v":0}]
[{"$f":"IF(Descriptions!D53=\"Church activities\",Descriptions!B53,0)","v":0},{"$f":"IF(WorkingR!$B52=\"Church activities\",WorkingR!D52,\"\")","v":""},{"$f":"IF(WorkingR!$B52=\"Church activities\",WorkingR!E52,\"\")","v":""},{"$f":"IF(WorkingR!$B52=\"Church activities\",WorkingR!F52,\"\")","v":""},{"$f":"IF(WorkingR!$B52=\"Church activities\",WorkingR!G52,\"\")","v":""},{"$f":"IF(WorkingR!$B52=\"Church activities\",WorkingR!H52,\"\")","v":""},{"$f":"IF(WorkingR!$B52=\"Church activities\",WorkingR!I52,\"\")","v":""},{"$f":"IF(WorkingR!$B52=\"Church activities\",WorkingR!J52,\"\")","v":""},{"$f":"IF(WorkingR!$B52=\"Church activities\",WorkingR!K52,\"\")","v":""},{"$f":"IF(WorkingR!$B52=\"Church activities\",WorkingR!L52,\"\")","v":""},{"$f":"IF(WorkingR!$B52=\"Church activities\",WorkingR!M52,\"\")","v":""},{"$f":"IF(WorkingR!$B52=\"Church activities\",WorkingR!N52,\"\")","v":""},{"$f":"IF(WorkingR!$B52=\"Church activities\",WorkingR!O52,\"\")","v":""},{"$f":"IF(WorkingR!$B52=\"Church activities\",WorkingR!P52,\"\")","v":""},{"$f":"IF(WorkingR!$B52=\"Church activities\",WorkingR!Q52,\"\")","v":""},{"$f":"IF(WorkingR!$B52=\"Church activities\",WorkingR!R52,\"\")","v":""},{"$f":"IF(WorkingR!$B52=\"Church activities\",WorkingR!S52,\"\")","v":""},{"$f":"IF(WorkingR!$B52=\"Church activities\",WorkingR!T52,\"\")","v":""},{"$f":"IF(WorkingR!$B52=\"Church activities\",WorkingR!U52,\"\")","v":""},{"$f":"IF(WorkingR!$B52=\"Church activities\",WorkingR!V52,\"\")","v":""},{"$f":"IF(WorkingR!$B52=\"Church activities\",WorkingR!W52,\"\")","v":""},{"$f":"IF(WorkingR!$B52=\"Church activities\",WorkingR!X52,\"\")","v":""},{"$f":"IF(WorkingR!$B52=\"Church activities\",WorkingR!Y52,\"\")","v":""},{"$f":"IF(Descriptions!D53=\"Church activities\",Descriptions!AA53,0)","v":0}]
[{"$f":"IF(Descriptions!D54=\"Church activities\",Descriptions!B54,0)","v":0},{"$f":"IF(WorkingR!$B53=\"Church activities\",WorkingR!D53,\"\")","v":""},{"$f":"IF(WorkingR!$B53=\"Church activities\",WorkingR!E53,\"\")","v":""},{"$f":"IF(WorkingR!$B53=\"Church activities\",WorkingR!F53,\"\")","v":""},{"$f":"IF(WorkingR!$B53=\"Church activities\",WorkingR!G53,\"\")","v":""},{"$f":"IF(WorkingR!$B53=\"Church activities\",WorkingR!H53,\"\")","v":""},{"$f":"IF(WorkingR!$B53=\"Church activities\",WorkingR!I53,\"\")","v":""},{"$f":"IF(WorkingR!$B53=\"Church activities\",WorkingR!J53,\"\")","v":""},{"$f":"IF(WorkingR!$B53=\"Church activities\",WorkingR!K53,\"\")","v":""},{"$f":"IF(WorkingR!$B53=\"Church activities\",WorkingR!L53,\"\")","v":""},{"$f":"IF(WorkingR!$B53=\"Church activities\",WorkingR!M53,\"\")","v":""},{"$f":"IF(WorkingR!$B53=\"Church activities\",WorkingR!N53,\"\")","v":""},{"$f":"IF(WorkingR!$B53=\"Church activities\",WorkingR!O53,\"\")","v":""},{"$f":"IF(WorkingR!$B53=\"Church activities\",WorkingR!P53,\"\")","v":""},{"$f":"IF(WorkingR!$B53=\"Church activities\",WorkingR!Q53,\"\")","v":""},{"$f":"IF(WorkingR!$B53=\"Church activities\",WorkingR!R53,\"\")","v":""},{"$f":"IF(WorkingR!$B53=\"Church activities\",WorkingR!S53,\"\")","v":""},{"$f":"IF(WorkingR!$B53=\"Church activities\",WorkingR!T53,\"\")","v":""},{"$f":"IF(WorkingR!$B53=\"Church activities\",WorkingR!U53,\"\")","v":""},{"$f":"IF(WorkingR!$B53=\"Church activities\",WorkingR!V53,\"\")","v":""},{"$f":"IF(WorkingR!$B53=\"Church activities\",WorkingR!W53,\"\")","v":""},{"$f":"IF(WorkingR!$B53=\"Church activities\",WorkingR!X53,\"\")","v":""},{"$f":"IF(WorkingR!$B53=\"Church activities\",WorkingR!Y53,\"\")","v":""},{"$f":"IF(Descriptions!D54=\"Church activities\",Descriptions!AA54,0)","v":0}]
[{"$f":"IF(Descriptions!D55=\"Church activities\",Descriptions!B55,0)","v":0},{"$f":"IF(WorkingR!$B54=\"Church activities\",WorkingR!D54,\"\")","v":""},{"$f":"IF(WorkingR!$B54=\"Church activities\",WorkingR!E54,\"\")","v":""},{"$f":"IF(WorkingR!$B54=\"Church activities\",WorkingR!F54,\"\")","v":""},{"$f":"IF(WorkingR!$B54=\"Church activities\",WorkingR!G54,\"\")","v":""},{"$f":"IF(WorkingR!$B54=\"Church activities\",WorkingR!H54,\"\")","v":""},{"$f":"IF(WorkingR!$B54=\"Church activities\",WorkingR!I54,\"\")","v":""},{"$f":"IF(WorkingR!$B54=\"Church activities\",WorkingR!J54,\"\")","v":""},{"$f":"IF(WorkingR!$B54=\"Church activities\",WorkingR!K54,\"\")","v":""},{"$f":"IF(WorkingR!$B54=\"Church activities\",WorkingR!L54,\"\")","v":""},{"$f":"IF(WorkingR!$B54=\"Church activities\",WorkingR!M54,\"\")","v":""},{"$f":"IF(WorkingR!$B54=\"Church activities\",WorkingR!N54,\"\")","v":""},{"$f":"IF(WorkingR!$B54=\"Church activities\",WorkingR!O54,\"\")","v":""},{"$f":"IF(WorkingR!$B54=\"Church activities\",WorkingR!P54,\"\")","v":""},{"$f":"IF(WorkingR!$B54=\"Church activities\",WorkingR!Q54,\"\")","v":""},{"$f":"IF(WorkingR!$B54=\"Church activities\",WorkingR!R54,\"\")","v":""},{"$f":"IF(WorkingR!$B54=\"Church activities\",WorkingR!S54,\"\")","v":""},{"$f":"IF(WorkingR!$B54=\"Church activities\",WorkingR!T54,\"\")","v":""},{"$f":"IF(WorkingR!$B54=\"Church activities\",WorkingR!U54,\"\")","v":""},{"$f":"IF(WorkingR!$B54=\"Church activities\",WorkingR!V54,\"\")","v":""},{"$f":"IF(WorkingR!$B54=\"Church activities\",WorkingR!W54,\"\")","v":""},{"$f":"IF(WorkingR!$B54=\"Church activities\",WorkingR!X54,\"\")","v":""},{"$f":"IF(WorkingR!$B54=\"Church activities\",WorkingR!Y54,\"\")","v":""},{"$f":"IF(Descriptions!D55=\"Church activities\",Descriptions!AA55,0)","v":0}]
[{"$f":"IF(Descriptions!D56=\"Church activities\",Descriptions!B56,0)","v":0},{"$f":"IF(WorkingR!$B55=\"Church activities\",WorkingR!D55,\"\")","v":""},{"$f":"IF(WorkingR!$B55=\"Church activities\",WorkingR!E55,\"\")","v":""},{"$f":"IF(WorkingR!$B55=\"Church activities\",WorkingR!F55,\"\")","v":""},{"$f":"IF(WorkingR!$B55=\"Church activities\",WorkingR!G55,\"\")","v":""},{"$f":"IF(WorkingR!$B55=\"Church activities\",WorkingR!H55,\"\")","v":""},{"$f":"IF(WorkingR!$B55=\"Church activities\",WorkingR!I55,\"\")","v":""},{"$f":"IF(WorkingR!$B55=\"Church activities\",WorkingR!J55,\"\")","v":""},{"$f":"IF(WorkingR!$B55=\"Church activities\",WorkingR!K55,\"\")","v":""},{"$f":"IF(WorkingR!$B55=\"Church activities\",WorkingR!L55,\"\")","v":""},{"$f":"IF(WorkingR!$B55=\"Church activities\",WorkingR!M55,\"\")","v":""},{"$f":"IF(WorkingR!$B55=\"Church activities\",WorkingR!N55,\"\")","v":""},{"$f":"IF(WorkingR!$B55=\"Church activities\",WorkingR!O55,\"\")","v":""},{"$f":"IF(WorkingR!$B55=\"Church activities\",WorkingR!P55,\"\")","v":""},{"$f":"IF(WorkingR!$B55=\"Church activities\",WorkingR!Q55,\"\")","v":""},{"$f":"IF(WorkingR!$B55=\"Church activities\",WorkingR!R55,\"\")","v":""},{"$f":"IF(WorkingR!$B55=\"Church activities\",WorkingR!S55,\"\")","v":""},{"$f":"IF(WorkingR!$B55=\"Church activities\",WorkingR!T55,\"\")","v":""},{"$f":"IF(WorkingR!$B55=\"Church activities\",WorkingR!U55,\"\")","v":""},{"$f":"IF(WorkingR!$B55=\"Church activities\",WorkingR!V55,\"\")","v":""},{"$f":"IF(WorkingR!$B55=\"Church activities\",WorkingR!W55,\"\")","v":""},{"$f":"IF(WorkingR!$B55=\"Church activities\",WorkingR!X55,\"\")","v":""},{"$f":"IF(WorkingR!$B55=\"Church activities\",WorkingR!Y55,\"\")","v":""},{"$f":"IF(Descriptions!D56=\"Church activities\",Descriptions!AA56,0)","v":0}]
[{"$f":"IF(Descriptions!D57=\"Church activities\",Descriptions!B57,0)","v":0},{"$f":"IF(WorkingR!$B56=\"Church activities\",WorkingR!D56,\"\")","v":""},{"$f":"IF(WorkingR!$B56=\"Church activities\",WorkingR!E56,\"\")","v":""},{"$f":"IF(WorkingR!$B56=\"Church activities\",WorkingR!F56,\"\")","v":""},{"$f":"IF(WorkingR!$B56=\"Church activities\",WorkingR!G56,\"\")","v":""},{"$f":"IF(WorkingR!$B56=\"Church activities\",WorkingR!H56,\"\")","v":""},{"$f":"IF(WorkingR!$B56=\"Church activities\",WorkingR!I56,\"\")","v":""},{"$f":"IF(WorkingR!$B56=\"Church activities\",WorkingR!J56,\"\")","v":""},{"$f":"IF(WorkingR!$B56=\"Church activities\",WorkingR!K56,\"\")","v":""},{"$f":"IF(WorkingR!$B56=\"Church activities\",WorkingR!L56,\"\")","v":""},{"$f":"IF(WorkingR!$B56=\"Church activities\",WorkingR!M56,\"\")","v":""},{"$f":"IF(WorkingR!$B56=\"Church activities\",WorkingR!N56,\"\")","v":""},{"$f":"IF(WorkingR!$B56=\"Church activities\",WorkingR!O56,\"\")","v":""},{"$f":"IF(WorkingR!$B56=\"Church activities\",WorkingR!P56,\"\")","v":""},{"$f":"IF(WorkingR!$B56=\"Church activities\",WorkingR!Q56,\"\")","v":""},{"$f":"IF(WorkingR!$B56=\"Church activities\",WorkingR!R56,\"\")","v":""},{"$f":"IF(WorkingR!$B56=\"Church activities\",WorkingR!S56,\"\")","v":""},{"$f":"IF(WorkingR!$B56=\"Church activities\",WorkingR!T56,\"\")","v":""},{"$f":"IF(WorkingR!$B56=\"Church activities\",WorkingR!U56,\"\")","v":""},{"$f":"IF(WorkingR!$B56=\"Church activities\",WorkingR!V56,\"\")","v":""},{"$f":"IF(WorkingR!$B56=\"Church activities\",WorkingR!W56,\"\")","v":""},{"$f":"IF(WorkingR!$B56=\"Church activities\",WorkingR!X56,\"\")","v":""},{"$f":"IF(WorkingR!$B56=\"Church activities\",WorkingR!Y56,\"\")","v":""},{"$f":"IF(Descriptions!D57=\"Church activities\",Descriptions!AA57,0)","v":0}]
[{"$f":"IF(Descriptions!D58=\"Church activities\",Descriptions!B58,0)","v":0},{"$f":"IF(WorkingR!$B57=\"Church activities\",WorkingR!D57,\"\")","v":""},{"$f":"IF(WorkingR!$B57=\"Church activities\",WorkingR!E57,\"\")","v":""},{"$f":"IF(WorkingR!$B57=\"Church activities\",WorkingR!F57,\"\")","v":""},{"$f":"IF(WorkingR!$B57=\"Church activities\",WorkingR!G57,\"\")","v":""},{"$f":"IF(WorkingR!$B57=\"Church activities\",WorkingR!H57,\"\")","v":""},{"$f":"IF(WorkingR!$B57=\"Church activities\",WorkingR!I57,\"\")","v":""},{"$f":"IF(WorkingR!$B57=\"Church activities\",WorkingR!J57,\"\")","v":""},{"$f":"IF(WorkingR!$B57=\"Church activities\",WorkingR!K57,\"\")","v":""},{"$f":"IF(WorkingR!$B57=\"Church activities\",WorkingR!L57,\"\")","v":""},{"$f":"IF(WorkingR!$B57=\"Church activities\",WorkingR!M57,\"\")","v":""},{"$f":"IF(WorkingR!$B57=\"Church activities\",WorkingR!N57,\"\")","v":""},{"$f":"IF(WorkingR!$B57=\"Church activities\",WorkingR!O57,\"\")","v":""},{"$f":"IF(WorkingR!$B57=\"Church activities\",WorkingR!P57,\"\")","v":""},{"$f":"IF(WorkingR!$B57=\"Church activities\",WorkingR!Q57,\"\")","v":""},{"$f":"IF(WorkingR!$B57=\"Church activities\",WorkingR!R57,\"\")","v":""},{"$f":"IF(WorkingR!$B57=\"Church activities\",WorkingR!S57,\"\")","v":""},{"$f":"IF(WorkingR!$B57=\"Church activities\",WorkingR!T57,\"\")","v":""},{"$f":"IF(WorkingR!$B57=\"Church activities\",WorkingR!U57,\"\")","v":""},{"$f":"IF(WorkingR!$B57=\"Church activities\",WorkingR!V57,\"\")","v":""},{"$f":"IF(WorkingR!$B57=\"Church activities\",WorkingR!W57,\"\")","v":""},{"$f":"IF(WorkingR!$B57=\"Church activities\",WorkingR!X57,\"\")","v":""},{"$f":"IF(WorkingR!$B57=\"Church activities\",WorkingR!Y57,\"\")","v":""},{"$f":"IF(Descriptions!D58=\"Church activities\",Descriptions!AA58,0)","v":0}]
[{"$f":"IF(Descriptions!D59=\"Church activities\",Descriptions!B59,0)","v":0},{"$f":"IF(WorkingR!$B58=\"Church activities\",WorkingR!D58,\"\")","v":""},{"$f":"IF(WorkingR!$B58=\"Church activities\",WorkingR!E58,\"\")","v":""},{"$f":"IF(WorkingR!$B58=\"Church activities\",WorkingR!F58,\"\")","v":""},{"$f":"IF(WorkingR!$B58=\"Church activities\",WorkingR!G58,\"\")","v":""},{"$f":"IF(WorkingR!$B58=\"Church activities\",WorkingR!H58,\"\")","v":""},{"$f":"IF(WorkingR!$B58=\"Church activities\",WorkingR!I58,\"\")","v":""},{"$f":"IF(WorkingR!$B58=\"Church activities\",WorkingR!J58,\"\")","v":""},{"$f":"IF(WorkingR!$B58=\"Church activities\",WorkingR!K58,\"\")","v":""},{"$f":"IF(WorkingR!$B58=\"Church activities\",WorkingR!L58,\"\")","v":""},{"$f":"IF(WorkingR!$B58=\"Church activities\",WorkingR!M58,\"\")","v":""},{"$f":"IF(WorkingR!$B58=\"Church activities\",WorkingR!N58,\"\")","v":""},{"$f":"IF(WorkingR!$B58=\"Church activities\",WorkingR!O58,\"\")","v":""},{"$f":"IF(WorkingR!$B58=\"Church activities\",WorkingR!P58,\"\")","v":""},{"$f":"IF(WorkingR!$B58=\"Church activities\",WorkingR!Q58,\"\")","v":""},{"$f":"IF(WorkingR!$B58=\"Church activities\",WorkingR!R58,\"\")","v":""},{"$f":"IF(WorkingR!$B58=\"Church activities\",WorkingR!S58,\"\")","v":""},{"$f":"IF(WorkingR!$B58=\"Church activities\",WorkingR!T58,\"\")","v":""},{"$f":"IF(WorkingR!$B58=\"Church activities\",WorkingR!U58,\"\")","v":""},{"$f":"IF(WorkingR!$B58=\"Church activities\",WorkingR!V58,\"\")","v":""},{"$f":"IF(WorkingR!$B58=\"Church activities\",WorkingR!W58,\"\")","v":""},{"$f":"IF(WorkingR!$B58=\"Church activities\",WorkingR!X58,\"\")","v":""},{"$f":"IF(WorkingR!$B58=\"Church activities\",WorkingR!Y58,\"\")","v":""},{"$f":"IF(Descriptions!D59=\"Church activities\",Descriptions!AA59,0)","v":0}]
[{"$f":"IF(Descriptions!D60=\"Church activities\",Descriptions!B60,0)","v":0},{"$f":"IF(WorkingR!$B59=\"Church activities\",WorkingR!D59,\"\")","v":""},{"$f":"IF(WorkingR!$B59=\"Church activities\",WorkingR!E59,\"\")","v":""},{"$f":"IF(WorkingR!$B59=\"Church activities\",WorkingR!F59,\"\")","v":""},{"$f":"IF(WorkingR!$B59=\"Church activities\",WorkingR!G59,\"\")","v":""},{"$f":"IF(WorkingR!$B59=\"Church activities\",WorkingR!H59,\"\")","v":""},{"$f":"IF(WorkingR!$B59=\"Church activities\",WorkingR!I59,\"\")","v":""},{"$f":"IF(WorkingR!$B59=\"Church activities\",WorkingR!J59,\"\")","v":""},{"$f":"IF(WorkingR!$B59=\"Church activities\",WorkingR!K59,\"\")","v":""},{"$f":"IF(WorkingR!$B59=\"Church activities\",WorkingR!L59,\"\")","v":""},{"$f":"IF(WorkingR!$B59=\"Church activities\",WorkingR!M59,\"\")","v":""},{"$f":"IF(WorkingR!$B59=\"Church activities\",WorkingR!N59,\"\")","v":""},{"$f":"IF(WorkingR!$B59=\"Church activities\",WorkingR!O59,\"\")","v":""},{"$f":"IF(WorkingR!$B59=\"Church activities\",WorkingR!P59,\"\")","v":""},{"$f":"IF(WorkingR!$B59=\"Church activities\",WorkingR!Q59,\"\")","v":""},{"$f":"IF(WorkingR!$B59=\"Church activities\",WorkingR!R59,\"\")","v":""},{"$f":"IF(WorkingR!$B59=\"Church activities\",WorkingR!S59,\"\")","v":""},{"$f":"IF(WorkingR!$B59=\"Church activities\",WorkingR!T59,\"\")","v":""},{"$f":"IF(WorkingR!$B59=\"Church activities\",WorkingR!U59,\"\")","v":""},{"$f":"IF(WorkingR!$B59=\"Church activities\",WorkingR!V59,\"\")","v":""},{"$f":"IF(WorkingR!$B59=\"Church activities\",WorkingR!W59,\"\")","v":""},{"$f":"IF(WorkingR!$B59=\"Church activities\",WorkingR!X59,\"\")","v":""},{"$f":"IF(WorkingR!$B59=\"Church activities\",WorkingR!Y59,\"\")","v":""},{"$f":"IF(Descriptions!D60=\"Church activities\",Descriptions!AA60,0)","v":0}]
[{"$f":"IF(Descriptions!D61=\"Church activities\",Descriptions!B61,0)","v":0},{"$f":"IF(WorkingR!$B60=\"Church activities\",WorkingR!D60,\"\")","v":""},{"$f":"IF(WorkingR!$B60=\"Church activities\",WorkingR!E60,\"\")","v":""},{"$f":"IF(WorkingR!$B60=\"Church activities\",WorkingR!F60,\"\")","v":""},{"$f":"IF(WorkingR!$B60=\"Church activities\",WorkingR!G60,\"\")","v":""},{"$f":"IF(WorkingR!$B60=\"Church activities\",WorkingR!H60,\"\")","v":""},{"$f":"IF(WorkingR!$B60=\"Church activities\",WorkingR!I60,\"\")","v":""},{"$f":"IF(WorkingR!$B60=\"Church activities\",WorkingR!J60,\"\")","v":""},{"$f":"IF(WorkingR!$B60=\"Church activities\",WorkingR!K60,\"\")","v":""},{"$f":"IF(WorkingR!$B60=\"Church activities\",WorkingR!L60,\"\")","v":""},{"$f":"IF(WorkingR!$B60=\"Church activities\",WorkingR!M60,\"\")","v":""},{"$f":"IF(WorkingR!$B60=\"Church activities\",WorkingR!N60,\"\")","v":""},{"$f":"IF(WorkingR!$B60=\"Church activities\",WorkingR!O60,\"\")","v":""},{"$f":"IF(WorkingR!$B60=\"Church activities\",WorkingR!P60,\"\")","v":""},{"$f":"IF(WorkingR!$B60=\"Church activities\",WorkingR!Q60,\"\")","v":""},{"$f":"IF(WorkingR!$B60=\"Church activities\",WorkingR!R60,\"\")","v":""},{"$f":"IF(WorkingR!$B60=\"Church activities\",WorkingR!S60,\"\")","v":""},{"$f":"IF(WorkingR!$B60=\"Church activities\",WorkingR!T60,\"\")","v":""},{"$f":"IF(WorkingR!$B60=\"Church activities\",WorkingR!U60,\"\")","v":""},{"$f":"IF(WorkingR!$B60=\"Church activities\",WorkingR!V60,\"\")","v":""},{"$f":"IF(WorkingR!$B60=\"Church activities\",WorkingR!W60,\"\")","v":""},{"$f":"IF(WorkingR!$B60=\"Church activities\",WorkingR!X60,\"\")","v":""},{"$f":"IF(WorkingR!$B60=\"Church activities\",WorkingR!Y60,\"\")","v":""},{"$f":"IF(Descriptions!D61=\"Church activities\",Descriptions!AA61,0)","v":0}]
[{"$f":"IF(Descriptions!D62=\"Church activities\",Descriptions!B62,0)","v":0},{"$f":"IF(WorkingR!$B61=\"Church activities\",WorkingR!D61,\"\")","v":""},{"$f":"IF(WorkingR!$B61=\"Church activities\",WorkingR!E61,\"\")","v":""},{"$f":"IF(WorkingR!$B61=\"Church activities\",WorkingR!F61,\"\")","v":""},{"$f":"IF(WorkingR!$B61=\"Church activities\",WorkingR!G61,\"\")","v":""},{"$f":"IF(WorkingR!$B61=\"Church activities\",WorkingR!H61,\"\")","v":""},{"$f":"IF(WorkingR!$B61=\"Church activities\",WorkingR!I61,\"\")","v":""},{"$f":"IF(WorkingR!$B61=\"Church activities\",WorkingR!J61,\"\")","v":""},{"$f":"IF(WorkingR!$B61=\"Church activities\",WorkingR!K61,\"\")","v":""},{"$f":"IF(WorkingR!$B61=\"Church activities\",WorkingR!L61,\"\")","v":""},{"$f":"IF(WorkingR!$B61=\"Church activities\",WorkingR!M61,\"\")","v":""},{"$f":"IF(WorkingR!$B61=\"Church activities\",WorkingR!N61,\"\")","v":""},{"$f":"IF(WorkingR!$B61=\"Church activities\",WorkingR!O61,\"\")","v":""},{"$f":"IF(WorkingR!$B61=\"Church activities\",WorkingR!P61,\"\")","v":""},{"$f":"IF(WorkingR!$B61=\"Church activities\",WorkingR!Q61,\"\")","v":""},{"$f":"IF(WorkingR!$B61=\"Church activities\",WorkingR!R61,\"\")","v":""},{"$f":"IF(WorkingR!$B61=\"Church activities\",WorkingR!S61,\"\")","v":""},{"$f":"IF(WorkingR!$B61=\"Church activities\",WorkingR!T61,\"\")","v":""},{"$f":"IF(WorkingR!$B61=\"Church activities\",WorkingR!U61,\"\")","v":""},{"$f":"IF(WorkingR!$B61=\"Church activities\",WorkingR!V61,\"\")","v":""},{"$f":"IF(WorkingR!$B61=\"Church activities\",WorkingR!W61,\"\")","v":""},{"$f":"IF(WorkingR!$B61=\"Church activities\",WorkingR!X61,\"\")","v":""},{"$f":"IF(WorkingR!$B61=\"Church activities\",WorkingR!Y61,\"\")","v":""},{"$f":"IF(Descriptions!D62=\"Church activities\",Descriptions!AA62,0)","v":0}]
[{"$f":"IF(Descriptions!D63=\"Church activities\",Descriptions!B63,0)","v":0},{"$f":"IF(WorkingR!$B62=\"Church activities\",WorkingR!D62,\"\")","v":""},{"$f":"IF(WorkingR!$B62=\"Church activities\",WorkingR!E62,\"\")","v":""},{"$f":"IF(WorkingR!$B62=\"Church activities\",WorkingR!F62,\"\")","v":""},{"$f":"IF(WorkingR!$B62=\"Church activities\",WorkingR!G62,\"\")","v":""},{"$f":"IF(WorkingR!$B62=\"Church activities\",WorkingR!H62,\"\")","v":""},{"$f":"IF(WorkingR!$B62=\"Church activities\",WorkingR!I62,\"\")","v":""},{"$f":"IF(WorkingR!$B62=\"Church activities\",WorkingR!J62,\"\")","v":""},{"$f":"IF(WorkingR!$B62=\"Church activities\",WorkingR!K62,\"\")","v":""},{"$f":"IF(WorkingR!$B62=\"Church activities\",WorkingR!L62,\"\")","v":""},{"$f":"IF(WorkingR!$B62=\"Church activities\",WorkingR!M62,\"\")","v":""},{"$f":"IF(WorkingR!$B62=\"Church activities\",WorkingR!N62,\"\")","v":""},{"$f":"IF(WorkingR!$B62=\"Church activities\",WorkingR!O62,\"\")","v":""},{"$f":"IF(WorkingR!$B62=\"Church activities\",WorkingR!P62,\"\")","v":""},{"$f":"IF(WorkingR!$B62=\"Church activities\",WorkingR!Q62,\"\")","v":""},{"$f":"IF(WorkingR!$B62=\"Church activities\",WorkingR!R62,\"\")","v":""},{"$f":"IF(WorkingR!$B62=\"Church activities\",WorkingR!S62,\"\")","v":""},{"$f":"IF(WorkingR!$B62=\"Church activities\",WorkingR!T62,\"\")","v":""},{"$f":"IF(WorkingR!$B62=\"Church activities\",WorkingR!U62,\"\")","v":""},{"$f":"IF(WorkingR!$B62=\"Church activities\",WorkingR!V62,\"\")","v":""},{"$f":"IF(WorkingR!$B62=\"Church activities\",WorkingR!W62,\"\")","v":""},{"$f":"IF(WorkingR!$B62=\"Church activities\",WorkingR!X62,\"\")","v":""},{"$f":"IF(WorkingR!$B62=\"Church activities\",WorkingR!Y62,\"\")","v":""},{"$f":"IF(Descriptions!D63=\"Church activities\",Descriptions!AA63,0)","v":0}]
[{"$f":"IF(Descriptions!D64=\"Church activities\",Descriptions!B64,0)","v":0},{"$f":"IF(WorkingR!$B63=\"Church activities\",WorkingR!D63,\"\")","v":""},{"$f":"IF(WorkingR!$B63=\"Church activities\",WorkingR!E63,\"\")","v":""},{"$f":"IF(WorkingR!$B63=\"Church activities\",WorkingR!F63,\"\")","v":""},{"$f":"IF(WorkingR!$B63=\"Church activities\",WorkingR!G63,\"\")","v":""},{"$f":"IF(WorkingR!$B63=\"Church activities\",WorkingR!H63,\"\")","v":""},{"$f":"IF(WorkingR!$B63=\"Church activities\",WorkingR!I63,\"\")","v":""},{"$f":"IF(WorkingR!$B63=\"Church activities\",WorkingR!J63,\"\")","v":""},{"$f":"IF(WorkingR!$B63=\"Church activities\",WorkingR!K63,\"\")","v":""},{"$f":"IF(WorkingR!$B63=\"Church activities\",WorkingR!L63,\"\")","v":""},{"$f":"IF(WorkingR!$B63=\"Church activities\",WorkingR!M63,\"\")","v":""},{"$f":"IF(WorkingR!$B63=\"Church activities\",WorkingR!N63,\"\")","v":""},{"$f":"IF(WorkingR!$B63=\"Church activities\",WorkingR!O63,\"\")","v":""},{"$f":"IF(WorkingR!$B63=\"Church activities\",WorkingR!P63,\"\")","v":""},{"$f":"IF(WorkingR!$B63=\"Church activities\",WorkingR!Q63,\"\")","v":""},{"$f":"IF(WorkingR!$B63=\"Church activities\",WorkingR!R63,\"\")","v":""},{"$f":"IF(WorkingR!$B63=\"Church activities\",WorkingR!S63,\"\")","v":""},{"$f":"IF(WorkingR!$B63=\"Church activities\",WorkingR!T63,\"\")","v":""},{"$f":"IF(WorkingR!$B63=\"Church activities\",WorkingR!U63,\"\")","v":""},{"$f":"IF(WorkingR!$B63=\"Church activities\",WorkingR!V63,\"\")","v":""},{"$f":"IF(WorkingR!$B63=\"Church activities\",WorkingR!W63,\"\")","v":""},{"$f":"IF(WorkingR!$B63=\"Church activities\",WorkingR!X63,\"\")","v":""},{"$f":"IF(WorkingR!$B63=\"Church activities\",WorkingR!Y63,\"\")","v":""},{"$f":"IF(Descriptions!D64=\"Church activities\",Descriptions!AA64,0)","v":0}]
[{"$f":"IF(Descriptions!D65=\"Church activities\",Descriptions!B65,0)","v":0},{"$f":"IF(WorkingR!$B64=\"Church activities\",WorkingR!D64,\"\")","v":""},{"$f":"IF(WorkingR!$B64=\"Church activities\",WorkingR!E64,\"\")","v":""},{"$f":"IF(WorkingR!$B64=\"Church activities\",WorkingR!F64,\"\")","v":""},{"$f":"IF(WorkingR!$B64=\"Church activities\",WorkingR!G64,\"\")","v":""},{"$f":"IF(WorkingR!$B64=\"Church activities\",WorkingR!H64,\"\")","v":""},{"$f":"IF(WorkingR!$B64=\"Church activities\",WorkingR!I64,\"\")","v":""},{"$f":"IF(WorkingR!$B64=\"Church activities\",WorkingR!J64,\"\")","v":""},{"$f":"IF(WorkingR!$B64=\"Church activities\",WorkingR!K64,\"\")","v":""},{"$f":"IF(WorkingR!$B64=\"Church activities\",WorkingR!L64,\"\")","v":""},{"$f":"IF(WorkingR!$B64=\"Church activities\",WorkingR!M64,\"\")","v":""},{"$f":"IF(WorkingR!$B64=\"Church activities\",WorkingR!N64,\"\")","v":""},{"$f":"IF(WorkingR!$B64=\"Church activities\",WorkingR!O64,\"\")","v":""},{"$f":"IF(WorkingR!$B64=\"Church activities\",WorkingR!P64,\"\")","v":""},{"$f":"IF(WorkingR!$B64=\"Church activities\",WorkingR!Q64,\"\")","v":""},{"$f":"IF(WorkingR!$B64=\"Church activities\",WorkingR!R64,\"\")","v":""},{"$f":"IF(WorkingR!$B64=\"Church activities\",WorkingR!S64,\"\")","v":""},{"$f":"IF(WorkingR!$B64=\"Church activities\",WorkingR!T64,\"\")","v":""},{"$f":"IF(WorkingR!$B64=\"Church activities\",WorkingR!U64,\"\")","v":""},{"$f":"IF(WorkingR!$B64=\"Church activities\",WorkingR!V64,\"\")","v":""},{"$f":"IF(WorkingR!$B64=\"Church activities\",WorkingR!W64,\"\")","v":""},{"$f":"IF(WorkingR!$B64=\"Church activities\",WorkingR!X64,\"\")","v":""},{"$f":"IF(WorkingR!$B64=\"Church activities\",WorkingR!Y64,\"\")","v":""},{"$f":"IF(Descriptions!D65=\"Church activities\",Descriptions!AA65,0)","v":0}]
[{"$f":"IF(Descriptions!D66=\"Church activities\",Descriptions!B66,0)","v":0},{"$f":"IF(WorkingR!$B65=\"Church activities\",WorkingR!D65,\"\")","v":""},{"$f":"IF(WorkingR!$B65=\"Church activities\",WorkingR!E65,\"\")","v":""},{"$f":"IF(WorkingR!$B65=\"Church activities\",WorkingR!F65,\"\")","v":""},{"$f":"IF(WorkingR!$B65=\"Church activities\",WorkingR!G65,\"\")","v":""},{"$f":"IF(WorkingR!$B65=\"Church activities\",WorkingR!H65,\"\")","v":""},{"$f":"IF(WorkingR!$B65=\"Church activities\",WorkingR!I65,\"\")","v":""},{"$f":"IF(WorkingR!$B65=\"Church activities\",WorkingR!J65,\"\")","v":""},{"$f":"IF(WorkingR!$B65=\"Church activities\",WorkingR!K65,\"\")","v":""},{"$f":"IF(WorkingR!$B65=\"Church activities\",WorkingR!L65,\"\")","v":""},{"$f":"IF(WorkingR!$B65=\"Church activities\",WorkingR!M65,\"\")","v":""},{"$f":"IF(WorkingR!$B65=\"Church activities\",WorkingR!N65,\"\")","v":""},{"$f":"IF(WorkingR!$B65=\"Church activities\",WorkingR!O65,\"\")","v":""},{"$f":"IF(WorkingR!$B65=\"Church activities\",WorkingR!P65,\"\")","v":""},{"$f":"IF(WorkingR!$B65=\"Church activities\",WorkingR!Q65,\"\")","v":""},{"$f":"IF(WorkingR!$B65=\"Church activities\",WorkingR!R65,\"\")","v":""},{"$f":"IF(WorkingR!$B65=\"Church activities\",WorkingR!S65,\"\")","v":""},{"$f":"IF(WorkingR!$B65=\"Church activities\",WorkingR!T65,\"\")","v":""},{"$f":"IF(WorkingR!$B65=\"Church activities\",WorkingR!U65,\"\")","v":""},{"$f":"IF(WorkingR!$B65=\"Church activities\",WorkingR!V65,\"\")","v":""},{"$f":"IF(WorkingR!$B65=\"Church activities\",WorkingR!W65,\"\")","v":""},{"$f":"IF(WorkingR!$B65=\"Church activities\",WorkingR!X65,\"\")","v":""},{"$f":"IF(WorkingR!$B65=\"Church activities\",WorkingR!Y65,\"\")","v":""},{"$f":"IF(Descriptions!D66=\"Church activities\",Descriptions!AA66,0)","v":0}]
[{"$f":"IF(Descriptions!D67=\"Church activities\",Descriptions!B67,0)","v":0},{"$f":"IF(WorkingR!$B66=\"Church activities\",WorkingR!D66,\"\")","v":""},{"$f":"IF(WorkingR!$B66=\"Church activities\",WorkingR!E66,\"\")","v":""},{"$f":"IF(WorkingR!$B66=\"Church activities\",WorkingR!F66,\"\")","v":""},{"$f":"IF(WorkingR!$B66=\"Church activities\",WorkingR!G66,\"\")","v":""},{"$f":"IF(WorkingR!$B66=\"Church activities\",WorkingR!H66,\"\")","v":""},{"$f":"IF(WorkingR!$B66=\"Church activities\",WorkingR!I66,\"\")","v":""},{"$f":"IF(WorkingR!$B66=\"Church activities\",WorkingR!J66,\"\")","v":""},{"$f":"IF(WorkingR!$B66=\"Church activities\",WorkingR!K66,\"\")","v":""},{"$f":"IF(WorkingR!$B66=\"Church activities\",WorkingR!L66,\"\")","v":""},{"$f":"IF(WorkingR!$B66=\"Church activities\",WorkingR!M66,\"\")","v":""},{"$f":"IF(WorkingR!$B66=\"Church activities\",WorkingR!N66,\"\")","v":""},{"$f":"IF(WorkingR!$B66=\"Church activities\",WorkingR!O66,\"\")","v":""},{"$f":"IF(WorkingR!$B66=\"Church activities\",WorkingR!P66,\"\")","v":""},{"$f":"IF(WorkingR!$B66=\"Church activities\",WorkingR!Q66,\"\")","v":""},{"$f":"IF(WorkingR!$B66=\"Church activities\",WorkingR!R66,\"\")","v":""},{"$f":"IF(WorkingR!$B66=\"Church activities\",WorkingR!S66,\"\")","v":""},{"$f":"IF(WorkingR!$B66=\"Church activities\",WorkingR!T66,\"\")","v":""},{"$f":"IF(WorkingR!$B66=\"Church activities\",WorkingR!U66,\"\")","v":""},{"$f":"IF(WorkingR!$B66=\"Church activities\",WorkingR!V66,\"\")","v":""},{"$f":"IF(WorkingR!$B66=\"Church activities\",WorkingR!W66,\"\")","v":""},{"$f":"IF(WorkingR!$B66=\"Church activities\",WorkingR!X66,\"\")","v":""},{"$f":"IF(WorkingR!$B66=\"Church activities\",WorkingR!Y66,\"\")","v":""},{"$f":"IF(Descriptions!D67=\"Church activities\",Descriptions!AA67,0)","v":0}]
[{"$f":"IF(Descriptions!D68=\"Church activities\",Descriptions!B68,0)","v":0},{"$f":"IF(WorkingR!$B67=\"Church activities\",WorkingR!D67,\"\")","v":""},{"$f":"IF(WorkingR!$B67=\"Church activities\",WorkingR!E67,\"\")","v":""},{"$f":"IF(WorkingR!$B67=\"Church activities\",WorkingR!F67,\"\")","v":""},{"$f":"IF(WorkingR!$B67=\"Church activities\",WorkingR!G67,\"\")","v":""},{"$f":"IF(WorkingR!$B67=\"Church activities\",WorkingR!H67,\"\")","v":""},{"$f":"IF(WorkingR!$B67=\"Church activities\",WorkingR!I67,\"\")","v":""},{"$f":"IF(WorkingR!$B67=\"Church activities\",WorkingR!J67,\"\")","v":""},{"$f":"IF(WorkingR!$B67=\"Church activities\",WorkingR!K67,\"\")","v":""},{"$f":"IF(WorkingR!$B67=\"Church activities\",WorkingR!L67,\"\")","v":""},{"$f":"IF(WorkingR!$B67=\"Church activities\",WorkingR!M67,\"\")","v":""},{"$f":"IF(WorkingR!$B67=\"Church activities\",WorkingR!N67,\"\")","v":""},{"$f":"IF(WorkingR!$B67=\"Church activities\",WorkingR!O67,\"\")","v":""},{"$f":"IF(WorkingR!$B67=\"Church activities\",WorkingR!P67,\"\")","v":""},{"$f":"IF(WorkingR!$B67=\"Church activities\",WorkingR!Q67,\"\")","v":""},{"$f":"IF(WorkingR!$B67=\"Church activities\",WorkingR!R67,\"\")","v":""},{"$f":"IF(WorkingR!$B67=\"Church activities\",WorkingR!S67,\"\")","v":""},{"$f":"IF(WorkingR!$B67=\"Church activities\",WorkingR!T67,\"\")","v":""},{"$f":"IF(WorkingR!$B67=\"Church activities\",WorkingR!U67,\"\")","v":""},{"$f":"IF(WorkingR!$B67=\"Church activities\",WorkingR!V67,\"\")","v":""},{"$f":"IF(WorkingR!$B67=\"Church activities\",WorkingR!W67,\"\")","v":""},{"$f":"IF(WorkingR!$B67=\"Church activities\",WorkingR!X67,\"\")","v":""},{"$f":"IF(WorkingR!$B67=\"Church activities\",WorkingR!Y67,\"\")","v":""},{"$f":"IF(Descriptions!D68=\"Church activities\",Descriptions!AA68,0)","v":0}]
[{"$f":"IF(Descriptions!D69=\"Church activities\",Descriptions!B69,0)","v":0},{"$f":"IF(WorkingR!$B68=\"Church activities\",WorkingR!D68,\"\")","v":""},{"$f":"IF(WorkingR!$B68=\"Church activities\",WorkingR!E68,\"\")","v":""},{"$f":"IF(WorkingR!$B68=\"Church activities\",WorkingR!F68,\"\")","v":""},{"$f":"IF(WorkingR!$B68=\"Church activities\",WorkingR!G68,\"\")","v":""},{"$f":"IF(WorkingR!$B68=\"Church activities\",WorkingR!H68,\"\")","v":""},{"$f":"IF(WorkingR!$B68=\"Church activities\",WorkingR!I68,\"\")","v":""},{"$f":"IF(WorkingR!$B68=\"Church activities\",WorkingR!J68,\"\")","v":""},{"$f":"IF(WorkingR!$B68=\"Church activities\",WorkingR!K68,\"\")","v":""},{"$f":"IF(WorkingR!$B68=\"Church activities\",WorkingR!L68,\"\")","v":""},{"$f":"IF(WorkingR!$B68=\"Church activities\",WorkingR!M68,\"\")","v":""},{"$f":"IF(WorkingR!$B68=\"Church activities\",WorkingR!N68,\"\")","v":""},{"$f":"IF(WorkingR!$B68=\"Church activities\",WorkingR!O68,\"\")","v":""},{"$f":"IF(WorkingR!$B68=\"Church activities\",WorkingR!P68,\"\")","v":""},{"$f":"IF(WorkingR!$B68=\"Church activities\",WorkingR!Q68,\"\")","v":""},{"$f":"IF(WorkingR!$B68=\"Church activities\",WorkingR!R68,\"\")","v":""},{"$f":"IF(WorkingR!$B68=\"Church activities\",WorkingR!S68,\"\")","v":""},{"$f":"IF(WorkingR!$B68=\"Church activities\",WorkingR!T68,\"\")","v":""},{"$f":"IF(WorkingR!$B68=\"Church activities\",WorkingR!U68,\"\")","v":""},{"$f":"IF(WorkingR!$B68=\"Church activities\",WorkingR!V68,\"\")","v":""},{"$f":"IF(WorkingR!$B68=\"Church activities\",WorkingR!W68,\"\")","v":""},{"$f":"IF(WorkingR!$B68=\"Church activities\",WorkingR!X68,\"\")","v":""},{"$f":"IF(WorkingR!$B68=\"Church activities\",WorkingR!Y68,\"\")","v":""},{"$f":"IF(Descriptions!D69=\"Church activities\",Descriptions!AA69,0)","v":0}]
[{"$f":"IF(Descriptions!D70=\"Church activities\",Descriptions!B70,0)","v":0},{"$f":"IF(WorkingR!$B69=\"Church activities\",WorkingR!D69,\"\")","v":""},{"$f":"IF(WorkingR!$B69=\"Church activities\",WorkingR!E69,\"\")","v":""},{"$f":"IF(WorkingR!$B69=\"Church activities\",WorkingR!F69,\"\")","v":""},{"$f":"IF(WorkingR!$B69=\"Church activities\",WorkingR!G69,\"\")","v":""},{"$f":"IF(WorkingR!$B69=\"Church activities\",WorkingR!H69,\"\")","v":""},{"$f":"IF(WorkingR!$B69=\"Church activities\",WorkingR!I69,\"\")","v":""},{"$f":"IF(WorkingR!$B69=\"Church activities\",WorkingR!J69,\"\")","v":""},{"$f":"IF(WorkingR!$B69=\"Church activities\",WorkingR!K69,\"\")","v":""},{"$f":"IF(WorkingR!$B69=\"Church activities\",WorkingR!L69,\"\")","v":""},{"$f":"IF(WorkingR!$B69=\"Church activities\",WorkingR!M69,\"\")","v":""},{"$f":"IF(WorkingR!$B69=\"Church activities\",WorkingR!N69,\"\")","v":""},{"$f":"IF(WorkingR!$B69=\"Church activities\",WorkingR!O69,\"\")","v":""},{"$f":"IF(WorkingR!$B69=\"Church activities\",WorkingR!P69,\"\")","v":""},{"$f":"IF(WorkingR!$B69=\"Church activities\",WorkingR!Q69,\"\")","v":""},{"$f":"IF(WorkingR!$B69=\"Church activities\",WorkingR!R69,\"\")","v":""},{"$f":"IF(WorkingR!$B69=\"Church activities\",WorkingR!S69,\"\")","v":""},{"$f":"IF(WorkingR!$B69=\"Church activities\",WorkingR!T69,\"\")","v":""},{"$f":"IF(WorkingR!$B69=\"Church activities\",WorkingR!U69,\"\")","v":""},{"$f":"IF(WorkingR!$B69=\"Church activities\",WorkingR!V69,\"\")","v":""},{"$f":"IF(WorkingR!$B69=\"Church activities\",WorkingR!W69,\"\")","v":""},{"$f":"IF(WorkingR!$B69=\"Church activities\",WorkingR!X69,\"\")","v":""},{"$f":"IF(WorkingR!$B69=\"Church activities\",WorkingR!Y69,\"\")","v":""},{"$f":"IF(Descriptions!D70=\"Church activities\",Descriptions!AA70,0)","v":0}]
[{"$f":"IF(Descriptions!D71=\"Church activities\",Descriptions!B71,0)","v":0},{"$f":"IF(WorkingR!$B70=\"Church activities\",WorkingR!D70,\"\")","v":""},{"$f":"IF(WorkingR!$B70=\"Church activities\",WorkingR!E70,\"\")","v":""},{"$f":"IF(WorkingR!$B70=\"Church activities\",WorkingR!F70,\"\")","v":""},{"$f":"IF(WorkingR!$B70=\"Church activities\",WorkingR!G70,\"\")","v":""},{"$f":"IF(WorkingR!$B70=\"Church activities\",WorkingR!H70,\"\")","v":""},{"$f":"IF(WorkingR!$B70=\"Church activities\",WorkingR!I70,\"\")","v":""},{"$f":"IF(WorkingR!$B70=\"Church activities\",WorkingR!J70,\"\")","v":""},{"$f":"IF(WorkingR!$B70=\"Church activities\",WorkingR!K70,\"\")","v":""},{"$f":"IF(WorkingR!$B70=\"Church activities\",WorkingR!L70,\"\")","v":""},{"$f":"IF(WorkingR!$B70=\"Church activities\",WorkingR!M70,\"\")","v":""},{"$f":"IF(WorkingR!$B70=\"Church activities\",WorkingR!N70,\"\")","v":""},{"$f":"IF(WorkingR!$B70=\"Church activities\",WorkingR!O70,\"\")","v":""},{"$f":"IF(WorkingR!$B70=\"Church activities\",WorkingR!P70,\"\")","v":""},{"$f":"IF(WorkingR!$B70=\"Church activities\",WorkingR!Q70,\"\")","v":""},{"$f":"IF(WorkingR!$B70=\"Church activities\",WorkingR!R70,\"\")","v":""},{"$f":"IF(WorkingR!$B70=\"Church activities\",WorkingR!S70,\"\")","v":""},{"$f":"IF(WorkingR!$B70=\"Church activities\",WorkingR!T70,\"\")","v":""},{"$f":"IF(WorkingR!$B70=\"Church activities\",WorkingR!U70,\"\")","v":""},{"$f":"IF(WorkingR!$B70=\"Church activities\",WorkingR!V70,\"\")","v":""},{"$f":"IF(WorkingR!$B70=\"Church activities\",WorkingR!W70,\"\")","v":""},{"$f":"IF(WorkingR!$B70=\"Church activities\",WorkingR!X70,\"\")","v":""},{"$f":"IF(WorkingR!$B70=\"Church activities\",WorkingR!Y70,\"\")","v":""},{"$f":"IF(Descriptions!D71=\"Church activities\",Descriptions!AA71,0)","v":0}]
[{"$f":"IF(Descriptions!D72=\"Church activities\",Descriptions!B72,0)","v":0},{"$f":"IF(WorkingR!$B71=\"Church activities\",WorkingR!D71,\"\")","v":""},{"$f":"IF(WorkingR!$B71=\"Church activities\",WorkingR!E71,\"\")","v":""},{"$f":"IF(WorkingR!$B71=\"Church activities\",WorkingR!F71,\"\")","v":""},{"$f":"IF(WorkingR!$B71=\"Church activities\",WorkingR!G71,\"\")","v":""},{"$f":"IF(WorkingR!$B71=\"Church activities\",WorkingR!H71,\"\")","v":""},{"$f":"IF(WorkingR!$B71=\"Church activities\",WorkingR!I71,\"\")","v":""},{"$f":"IF(WorkingR!$B71=\"Church activities\",WorkingR!J71,\"\")","v":""},{"$f":"IF(WorkingR!$B71=\"Church activities\",WorkingR!K71,\"\")","v":""},{"$f":"IF(WorkingR!$B71=\"Church activities\",WorkingR!L71,\"\")","v":""},{"$f":"IF(WorkingR!$B71=\"Church activities\",WorkingR!M71,\"\")","v":""},{"$f":"IF(WorkingR!$B71=\"Church activities\",WorkingR!N71,\"\")","v":""},{"$f":"IF(WorkingR!$B71=\"Church activities\",WorkingR!O71,\"\")","v":""},{"$f":"IF(WorkingR!$B71=\"Church activities\",WorkingR!P71,\"\")","v":""},{"$f":"IF(WorkingR!$B71=\"Church activities\",WorkingR!Q71,\"\")","v":""},{"$f":"IF(WorkingR!$B71=\"Church activities\",WorkingR!R71,\"\")","v":""},{"$f":"IF(WorkingR!$B71=\"Church activities\",WorkingR!S71,\"\")","v":""},{"$f":"IF(WorkingR!$B71=\"Church activities\",WorkingR!T71,\"\")","v":""},{"$f":"IF(WorkingR!$B71=\"Church activities\",WorkingR!U71,\"\")","v":""},{"$f":"IF(WorkingR!$B71=\"Church activities\",WorkingR!V71,\"\")","v":""},{"$f":"IF(WorkingR!$B71=\"Church activities\",WorkingR!W71,\"\")","v":""},{"$f":"IF(WorkingR!$B71=\"Church activities\",WorkingR!X71,\"\")","v":""},{"$f":"IF(WorkingR!$B71=\"Church activities\",WorkingR!Y71,\"\")","v":""},{"$f":"IF(Descriptions!D72=\"Church activities\",Descriptions!AA72,0)","v":0}]
[{"$f":"IF(Descriptions!D73=\"Church activities\",Descriptions!B73,0)","v":0},{"$f":"IF(WorkingR!$B72=\"Church activities\",WorkingR!D72,\"\")","v":""},{"$f":"IF(WorkingR!$B72=\"Church activities\",WorkingR!E72,\"\")","v":""},{"$f":"IF(WorkingR!$B72=\"Church activities\",WorkingR!F72,\"\")","v":""},{"$f":"IF(WorkingR!$B72=\"Church activities\",WorkingR!G72,\"\")","v":""},{"$f":"IF(WorkingR!$B72=\"Church activities\",WorkingR!H72,\"\")","v":""},{"$f":"IF(WorkingR!$B72=\"Church activities\",WorkingR!I72,\"\")","v":""},{"$f":"IF(WorkingR!$B72=\"Church activities\",WorkingR!J72,\"\")","v":""},{"$f":"IF(WorkingR!$B72=\"Church activities\",WorkingR!K72,\"\")","v":""},{"$f":"IF(WorkingR!$B72=\"Church activities\",WorkingR!L72,\"\")","v":""},{"$f":"IF(WorkingR!$B72=\"Church activities\",WorkingR!M72,\"\")","v":""},{"$f":"IF(WorkingR!$B72=\"Church activities\",WorkingR!N72,\"\")","v":""},{"$f":"IF(WorkingR!$B72=\"Church activities\",WorkingR!O72,\"\")","v":""},{"$f":"IF(WorkingR!$B72=\"Church activities\",WorkingR!P72,\"\")","v":""},{"$f":"IF(WorkingR!$B72=\"Church activities\",WorkingR!Q72,\"\")","v":""},{"$f":"IF(WorkingR!$B72=\"Church activities\",WorkingR!R72,\"\")","v":""},{"$f":"IF(WorkingR!$B72=\"Church activities\",WorkingR!S72,\"\")","v":""},{"$f":"IF(WorkingR!$B72=\"Church activities\",WorkingR!T72,\"\")","v":""},{"$f":"IF(WorkingR!$B72=\"Church activities\",WorkingR!U72,\"\")","v":""},{"$f":"IF(WorkingR!$B72=\"Church activities\",WorkingR!V72,\"\")","v":""},{"$f":"IF(WorkingR!$B72=\"Church activities\",WorkingR!W72,\"\")","v":""},{"$f":"IF(WorkingR!$B72=\"Church activities\",WorkingR!X72,\"\")","v":""},{"$f":"IF(WorkingR!$B72=\"Church activities\",WorkingR!Y72,\"\")","v":""},{"$f":"IF(Descriptions!D73=\"Church activities\",Descriptions!AA73,0)","v":0}]
[{"$f":"IF(Descriptions!D74=\"Church activities\",Descriptions!B74,0)","v":0},{"$f":"IF(WorkingR!$B73=\"Church activities\",WorkingR!D73,\"\")","v":""},{"$f":"IF(WorkingR!$B73=\"Church activities\",WorkingR!E73,\"\")","v":""},{"$f":"IF(WorkingR!$B73=\"Church activities\",WorkingR!F73,\"\")","v":""},{"$f":"IF(WorkingR!$B73=\"Church activities\",WorkingR!G73,\"\")","v":""},{"$f":"IF(WorkingR!$B73=\"Church activities\",WorkingR!H73,\"\")","v":""},{"$f":"IF(WorkingR!$B73=\"Church activities\",WorkingR!I73,\"\")","v":""},{"$f":"IF(WorkingR!$B73=\"Church activities\",WorkingR!J73,\"\")","v":""},{"$f":"IF(WorkingR!$B73=\"Church activities\",WorkingR!K73,\"\")","v":""},{"$f":"IF(WorkingR!$B73=\"Church activities\",WorkingR!L73,\"\")","v":""},{"$f":"IF(WorkingR!$B73=\"Church activities\",WorkingR!M73,\"\")","v":""},{"$f":"IF(WorkingR!$B73=\"Church activities\",WorkingR!N73,\"\")","v":""},{"$f":"IF(WorkingR!$B73=\"Church activities\",WorkingR!O73,\"\")","v":""},{"$f":"IF(WorkingR!$B73=\"Church activities\",WorkingR!P73,\"\")","v":""},{"$f":"IF(WorkingR!$B73=\"Church activities\",WorkingR!Q73,\"\")","v":""},{"$f":"IF(WorkingR!$B73=\"Church activities\",WorkingR!R73,\"\")","v":""},{"$f":"IF(WorkingR!$B73=\"Church activities\",WorkingR!S73,\"\")","v":""},{"$f":"IF(WorkingR!$B73=\"Church activities\",WorkingR!T73,\"\")","v":""},{"$f":"IF(WorkingR!$B73=\"Church activities\",WorkingR!U73,\"\")","v":""},{"$f":"IF(WorkingR!$B73=\"Church activities\",WorkingR!V73,\"\")","v":""},{"$f":"IF(WorkingR!$B73=\"Church activities\",WorkingR!W73,\"\")","v":""},{"$f":"IF(WorkingR!$B73=\"Church activities\",WorkingR!X73,\"\")","v":""},{"$f":"IF(WorkingR!$B73=\"Church activities\",WorkingR!Y73,\"\")","v":""},{"$f":"IF(Descriptions!D74=\"Church activities\",Descriptions!AA74,0)","v":0}]
[{"$f":"IF(Descriptions!D75=\"Church activities\",Descriptions!B75,0)","v":0},{"$f":"IF(WorkingR!$B74=\"Church activities\",WorkingR!D74,\"\")","v":""},{"$f":"IF(WorkingR!$B74=\"Church activities\",WorkingR!E74,\"\")","v":""},{"$f":"IF(WorkingR!$B74=\"Church activities\",WorkingR!F74,\"\")","v":""},{"$f":"IF(WorkingR!$B74=\"Church activities\",WorkingR!G74,\"\")","v":""},{"$f":"IF(WorkingR!$B74=\"Church activities\",WorkingR!H74,\"\")","v":""},{"$f":"IF(WorkingR!$B74=\"Church activities\",WorkingR!I74,\"\")","v":""},{"$f":"IF(WorkingR!$B74=\"Church activities\",WorkingR!J74,\"\")","v":""},{"$f":"IF(WorkingR!$B74=\"Church activities\",WorkingR!K74,\"\")","v":""},{"$f":"IF(WorkingR!$B74=\"Church activities\",WorkingR!L74,\"\")","v":""},{"$f":"IF(WorkingR!$B74=\"Church activities\",WorkingR!M74,\"\")","v":""},{"$f":"IF(WorkingR!$B74=\"Church activities\",WorkingR!N74,\"\")","v":""},{"$f":"IF(WorkingR!$B74=\"Church activities\",WorkingR!O74,\"\")","v":""},{"$f":"IF(WorkingR!$B74=\"Church activities\",WorkingR!P74,\"\")","v":""},{"$f":"IF(WorkingR!$B74=\"Church activities\",WorkingR!Q74,\"\")","v":""},{"$f":"IF(WorkingR!$B74=\"Church activities\",WorkingR!R74,\"\")","v":""},{"$f":"IF(WorkingR!$B74=\"Church activities\",WorkingR!S74,\"\")","v":""},{"$f":"IF(WorkingR!$B74=\"Church activities\",WorkingR!T74,\"\")","v":""},{"$f":"IF(WorkingR!$B74=\"Church activities\",WorkingR!U74,\"\")","v":""},{"$f":"IF(WorkingR!$B74=\"Church activities\",WorkingR!V74,\"\")","v":""},{"$f":"IF(WorkingR!$B74=\"Church activities\",WorkingR!W74,\"\")","v":""},{"$f":"IF(WorkingR!$B74=\"Church activities\",WorkingR!X74,\"\")","v":""},{"$f":"IF(WorkingR!$B74=\"Church activities\",WorkingR!Y74,\"\")","v":""},{"$f":"IF(Descriptions!D75=\"Church activities\",Descriptions!AA75,0)","v":0}]
[{"$f":"IF(Descriptions!D76=\"Church activities\",Descriptions!B76,0)","v":0},{"$f":"IF(WorkingR!$B75=\"Church activities\",WorkingR!D75,\"\")","v":""},{"$f":"IF(WorkingR!$B75=\"Church activities\",WorkingR!E75,\"\")","v":""},{"$f":"IF(WorkingR!$B75=\"Church activities\",WorkingR!F75,\"\")","v":""},{"$f":"IF(WorkingR!$B75=\"Church activities\",WorkingR!G75,\"\")","v":""},{"$f":"IF(WorkingR!$B75=\"Church activities\",WorkingR!H75,\"\")","v":""},{"$f":"IF(WorkingR!$B75=\"Church activities\",WorkingR!I75,\"\")","v":""},{"$f":"IF(WorkingR!$B75=\"Church activities\",WorkingR!J75,\"\")","v":""},{"$f":"IF(WorkingR!$B75=\"Church activities\",WorkingR!K75,\"\")","v":""},{"$f":"IF(WorkingR!$B75=\"Church activities\",WorkingR!L75,\"\")","v":""},{"$f":"IF(WorkingR!$B75=\"Church activities\",WorkingR!M75,\"\")","v":""},{"$f":"IF(WorkingR!$B75=\"Church activities\",WorkingR!N75,\"\")","v":""},{"$f":"IF(WorkingR!$B75=\"Church activities\",WorkingR!O75,\"\")","v":""},{"$f":"IF(WorkingR!$B75=\"Church activities\",WorkingR!P75,\"\")","v":""},{"$f":"IF(WorkingR!$B75=\"Church activities\",WorkingR!Q75,\"\")","v":""},{"$f":"IF(WorkingR!$B75=\"Church activities\",WorkingR!R75,\"\")","v":""},{"$f":"IF(WorkingR!$B75=\"Church activities\",WorkingR!S75,\"\")","v":""},{"$f":"IF(WorkingR!$B75=\"Church activities\",WorkingR!T75,\"\")","v":""},{"$f":"IF(WorkingR!$B75=\"Church activities\",WorkingR!U75,\"\")","v":""},{"$f":"IF(WorkingR!$B75=\"Church activities\",WorkingR!V75,\"\")","v":""},{"$f":"IF(WorkingR!$B75=\"Church activities\",WorkingR!W75,\"\")","v":""},{"$f":"IF(WorkingR!$B75=\"Church activities\",WorkingR!X75,\"\")","v":""},{"$f":"IF(WorkingR!$B75=\"Church activities\",WorkingR!Y75,\"\")","v":""},{"$f":"IF(Descriptions!D76=\"Church activities\",Descriptions!AA76,0)","v":0}]
[{"$f":"IF(Descriptions!D77=\"Church activities\",Descriptions!B77,0)","v":0},{"$f":"IF(WorkingR!$B76=\"Church activities\",WorkingR!D76,\"\")","v":""},{"$f":"IF(WorkingR!$B76=\"Church activities\",WorkingR!E76,\"\")","v":""},{"$f":"IF(WorkingR!$B76=\"Church activities\",WorkingR!F76,\"\")","v":""},{"$f":"IF(WorkingR!$B76=\"Church activities\",WorkingR!G76,\"\")","v":""},{"$f":"IF(WorkingR!$B76=\"Church activities\",WorkingR!H76,\"\")","v":""},{"$f":"IF(WorkingR!$B76=\"Church activities\",WorkingR!I76,\"\")","v":""},{"$f":"IF(WorkingR!$B76=\"Church activities\",WorkingR!J76,\"\")","v":""},{"$f":"IF(WorkingR!$B76=\"Church activities\",WorkingR!K76,\"\")","v":""},{"$f":"IF(WorkingR!$B76=\"Church activities\",WorkingR!L76,\"\")","v":""},{"$f":"IF(WorkingR!$B76=\"Church activities\",WorkingR!M76,\"\")","v":""},{"$f":"IF(WorkingR!$B76=\"Church activities\",WorkingR!N76,\"\")","v":""},{"$f":"IF(WorkingR!$B76=\"Church activities\",WorkingR!O76,\"\")","v":""},{"$f":"IF(WorkingR!$B76=\"Church activities\",WorkingR!P76,\"\")","v":""},{"$f":"IF(WorkingR!$B76=\"Church activities\",WorkingR!Q76,\"\")","v":""},{"$f":"IF(WorkingR!$B76=\"Church activities\",WorkingR!R76,\"\")","v":""},{"$f":"IF(WorkingR!$B76=\"Church activities\",WorkingR!S76,\"\")","v":""},{"$f":"IF(WorkingR!$B76=\"Church activities\",WorkingR!T76,\"\")","v":""},{"$f":"IF(WorkingR!$B76=\"Church activities\",WorkingR!U76,\"\")","v":""},{"$f":"IF(WorkingR!$B76=\"Church activities\",WorkingR!V76,\"\")","v":""},{"$f":"IF(WorkingR!$B76=\"Church activities\",WorkingR!W76,\"\")","v":""},{"$f":"IF(WorkingR!$B76=\"Church activities\",WorkingR!X76,\"\")","v":""},{"$f":"IF(WorkingR!$B76=\"Church activities\",WorkingR!Y76,\"\")","v":""},{"$f":"IF(Descriptions!D77=\"Church activities\",Descriptions!AA77,0)","v":0}]
[{"$f":"IF(Descriptions!D78=\"Church activities\",Descriptions!B78,0)","v":0},{"$f":"IF(WorkingR!$B77=\"Church activities\",WorkingR!D77,\"\")","v":""},{"$f":"IF(WorkingR!$B77=\"Church activities\",WorkingR!E77,\"\")","v":""},{"$f":"IF(WorkingR!$B77=\"Church activities\",WorkingR!F77,\"\")","v":""},{"$f":"IF(WorkingR!$B77=\"Church activities\",WorkingR!G77,\"\")","v":""},{"$f":"IF(WorkingR!$B77=\"Church activities\",WorkingR!H77,\"\")","v":""},{"$f":"IF(WorkingR!$B77=\"Church activities\",WorkingR!I77,\"\")","v":""},{"$f":"IF(WorkingR!$B77=\"Church activities\",WorkingR!J77,\"\")","v":""},{"$f":"IF(WorkingR!$B77=\"Church activities\",WorkingR!K77,\"\")","v":""},{"$f":"IF(WorkingR!$B77=\"Church activities\",WorkingR!L77,\"\")","v":""},{"$f":"IF(WorkingR!$B77=\"Church activities\",WorkingR!M77,\"\")","v":""},{"$f":"IF(WorkingR!$B77=\"Church activities\",WorkingR!N77,\"\")","v":""},{"$f":"IF(WorkingR!$B77=\"Church activities\",WorkingR!O77,\"\")","v":""},{"$f":"IF(WorkingR!$B77=\"Church activities\",WorkingR!P77,\"\")","v":""},{"$f":"IF(WorkingR!$B77=\"Church activities\",WorkingR!Q77,\"\")","v":""},{"$f":"IF(WorkingR!$B77=\"Church activities\",WorkingR!R77,\"\")","v":""},{"$f":"IF(WorkingR!$B77=\"Church activities\",WorkingR!S77,\"\")","v":""},{"$f":"IF(WorkingR!$B77=\"Church activities\",WorkingR!T77,\"\")","v":""},{"$f":"IF(WorkingR!$B77=\"Church activities\",WorkingR!U77,\"\")","v":""},{"$f":"IF(WorkingR!$B77=\"Church activities\",WorkingR!V77,\"\")","v":""},{"$f":"IF(WorkingR!$B77=\"Church activities\",WorkingR!W77,\"\")","v":""},{"$f":"IF(WorkingR!$B77=\"Church activities\",WorkingR!X77,\"\")","v":""},{"$f":"IF(WorkingR!$B77=\"Church activities\",WorkingR!Y77,\"\")","v":""},{"$f":"IF(Descriptions!D78=\"Church activities\",Descriptions!AA78,0)","v":0}]
[{"$f":"IF(Descriptions!D79=\"Church activities\",Descriptions!B79,0)","v":0},{"$f":"IF(WorkingR!$B78=\"Church activities\",WorkingR!D78,\"\")","v":""},{"$f":"IF(WorkingR!$B78=\"Church activities\",WorkingR!E78,\"\")","v":""},{"$f":"IF(WorkingR!$B78=\"Church activities\",WorkingR!F78,\"\")","v":""},{"$f":"IF(WorkingR!$B78=\"Church activities\",WorkingR!G78,\"\")","v":""},{"$f":"IF(WorkingR!$B78=\"Church activities\",WorkingR!H78,\"\")","v":""},{"$f":"IF(WorkingR!$B78=\"Church activities\",WorkingR!I78,\"\")","v":""},{"$f":"IF(WorkingR!$B78=\"Church activities\",WorkingR!J78,\"\")","v":""},{"$f":"IF(WorkingR!$B78=\"Church activities\",WorkingR!K78,\"\")","v":""},{"$f":"IF(WorkingR!$B78=\"Church activities\",WorkingR!L78,\"\")","v":""},{"$f":"IF(WorkingR!$B78=\"Church activities\",WorkingR!M78,\"\")","v":""},{"$f":"IF(WorkingR!$B78=\"Church activities\",WorkingR!N78,\"\")","v":""},{"$f":"IF(WorkingR!$B78=\"Church activities\",WorkingR!O78,\"\")","v":""},{"$f":"IF(WorkingR!$B78=\"Church activities\",WorkingR!P78,\"\")","v":""},{"$f":"IF(WorkingR!$B78=\"Church activities\",WorkingR!Q78,\"\")","v":""},{"$f":"IF(WorkingR!$B78=\"Church activities\",WorkingR!R78,\"\")","v":""},{"$f":"IF(WorkingR!$B78=\"Church activities\",WorkingR!S78,\"\")","v":""},{"$f":"IF(WorkingR!$B78=\"Church activities\",WorkingR!T78,\"\")","v":""},{"$f":"IF(WorkingR!$B78=\"Church activities\",WorkingR!U78,\"\")","v":""},{"$f":"IF(WorkingR!$B78=\"Church activities\",WorkingR!V78,\"\")","v":""},{"$f":"IF(WorkingR!$B78=\"Church activities\",WorkingR!W78,\"\")","v":""},{"$f":"IF(WorkingR!$B78=\"Church activities\",WorkingR!X78,\"\")","v":""},{"$f":"IF(WorkingR!$B78=\"Church activities\",WorkingR!Y78,\"\")","v":""},{"$f":"IF(Descriptions!D79=\"Church activities\",Descriptions!AA79,0)","v":0}]
[{"$f":"IF(Descriptions!D80=\"Church activities\",Descriptions!B80,0)","v":0},{"$f":"IF(WorkingR!$B79=\"Church activities\",WorkingR!D79,\"\")","v":""},{"$f":"IF(WorkingR!$B79=\"Church activities\",WorkingR!E79,\"\")","v":""},{"$f":"IF(WorkingR!$B79=\"Church activities\",WorkingR!F79,\"\")","v":""},{"$f":"IF(WorkingR!$B79=\"Church activities\",WorkingR!G79,\"\")","v":""},{"$f":"IF(WorkingR!$B79=\"Church activities\",WorkingR!H79,\"\")","v":""},{"$f":"IF(WorkingR!$B79=\"Church activities\",WorkingR!I79,\"\")","v":""},{"$f":"IF(WorkingR!$B79=\"Church activities\",WorkingR!J79,\"\")","v":""},{"$f":"IF(WorkingR!$B79=\"Church activities\",WorkingR!K79,\"\")","v":""},{"$f":"IF(WorkingR!$B79=\"Church activities\",WorkingR!L79,\"\")","v":""},{"$f":"IF(WorkingR!$B79=\"Church activities\",WorkingR!M79,\"\")","v":""},{"$f":"IF(WorkingR!$B79=\"Church activities\",WorkingR!N79,\"\")","v":""},{"$f":"IF(WorkingR!$B79=\"Church activities\",WorkingR!O79,\"\")","v":""},{"$f":"IF(WorkingR!$B79=\"Church activities\",WorkingR!P79,\"\")","v":""},{"$f":"IF(WorkingR!$B79=\"Church activities\",WorkingR!Q79,\"\")","v":""},{"$f":"IF(WorkingR!$B79=\"Church activities\",WorkingR!R79,\"\")","v":""},{"$f":"IF(WorkingR!$B79=\"Church activities\",WorkingR!S79,\"\")","v":""},{"$f":"IF(WorkingR!$B79=\"Church activities\",WorkingR!T79,\"\")","v":""},{"$f":"IF(WorkingR!$B79=\"Church activities\",WorkingR!U79,\"\")","v":""},{"$f":"IF(WorkingR!$B79=\"Church activities\",WorkingR!V79,\"\")","v":""},{"$f":"IF(WorkingR!$B79=\"Church activities\",WorkingR!W79,\"\")","v":""},{"$f":"IF(WorkingR!$B79=\"Church activities\",WorkingR!X79,\"\")","v":""},{"$f":"IF(WorkingR!$B79=\"Church activities\",WorkingR!Y79,\"\")","v":""},{"$f":"IF(Descriptions!D80=\"Church activities\",Descriptions!AA80,0)","v":0}]
[{"$f":"IF(Descriptions!D81=\"Church activities\",Descriptions!B81,0)","v":0},{"$f":"IF(WorkingR!$B80=\"Church activities\",WorkingR!D80,\"\")","v":""},{"$f":"IF(WorkingR!$B80=\"Church activities\",WorkingR!E80,\"\")","v":""},{"$f":"IF(WorkingR!$B80=\"Church activities\",WorkingR!F80,\"\")","v":""},{"$f":"IF(WorkingR!$B80=\"Church activities\",WorkingR!G80,\"\")","v":""},{"$f":"IF(WorkingR!$B80=\"Church activities\",WorkingR!H80,\"\")","v":""},{"$f":"IF(WorkingR!$B80=\"Church activities\",WorkingR!I80,\"\")","v":""},{"$f":"IF(WorkingR!$B80=\"Church activities\",WorkingR!J80,\"\")","v":""},{"$f":"IF(WorkingR!$B80=\"Church activities\",WorkingR!K80,\"\")","v":""},{"$f":"IF(WorkingR!$B80=\"Church activities\",WorkingR!L80,\"\")","v":""},{"$f":"IF(WorkingR!$B80=\"Church activities\",WorkingR!M80,\"\")","v":""},{"$f":"IF(WorkingR!$B80=\"Church activities\",WorkingR!N80,\"\")","v":""},{"$f":"IF(WorkingR!$B80=\"Church activities\",WorkingR!O80,\"\")","v":""},{"$f":"IF(WorkingR!$B80=\"Church activities\",WorkingR!P80,\"\")","v":""},{"$f":"IF(WorkingR!$B80=\"Church activities\",WorkingR!Q80,\"\")","v":""},{"$f":"IF(WorkingR!$B80=\"Church activities\",WorkingR!R80,\"\")","v":""},{"$f":"IF(WorkingR!$B80=\"Church activities\",WorkingR!S80,\"\")","v":""},{"$f":"IF(WorkingR!$B80=\"Church activities\",WorkingR!T80,\"\")","v":""},{"$f":"IF(WorkingR!$B80=\"Church activities\",WorkingR!U80,\"\")","v":""},{"$f":"IF(WorkingR!$B80=\"Church activities\",WorkingR!V80,\"\")","v":""},{"$f":"IF(WorkingR!$B80=\"Church activities\",WorkingR!W80,\"\")","v":""},{"$f":"IF(WorkingR!$B80=\"Church activities\",WorkingR!X80,\"\")","v":""},{"$f":"IF(WorkingR!$B80=\"Church activities\",WorkingR!Y80,\"\")","v":""},{"$f":"IF(Descriptions!D81=\"Church activities\",Descriptions!AA81,0)","v":0}]
[{"$f":"IF(Descriptions!D82=\"Church activities\",Descriptions!B82,0)","v":0},{"$f":"IF(WorkingR!$B81=\"Church activities\",WorkingR!D81,\"\")","v":""},{"$f":"IF(WorkingR!$B81=\"Church activities\",WorkingR!E81,\"\")","v":""},{"$f":"IF(WorkingR!$B81=\"Church activities\",WorkingR!F81,\"\")","v":""},{"$f":"IF(WorkingR!$B81=\"Church activities\",WorkingR!G81,\"\")","v":""},{"$f":"IF(WorkingR!$B81=\"Church activities\",WorkingR!H81,\"\")","v":""},{"$f":"IF(WorkingR!$B81=\"Church activities\",WorkingR!I81,\"\")","v":""},{"$f":"IF(WorkingR!$B81=\"Church activities\",WorkingR!J81,\"\")","v":""},{"$f":"IF(WorkingR!$B81=\"Church activities\",WorkingR!K81,\"\")","v":""},{"$f":"IF(WorkingR!$B81=\"Church activities\",WorkingR!L81,\"\")","v":""},{"$f":"IF(WorkingR!$B81=\"Church activities\",WorkingR!M81,\"\")","v":""},{"$f":"IF(WorkingR!$B81=\"Church activities\",WorkingR!N81,\"\")","v":""},{"$f":"IF(WorkingR!$B81=\"Church activities\",WorkingR!O81,\"\")","v":""},{"$f":"IF(WorkingR!$B81=\"Church activities\",WorkingR!P81,\"\")","v":""},{"$f":"IF(WorkingR!$B81=\"Church activities\",WorkingR!Q81,\"\")","v":""},{"$f":"IF(WorkingR!$B81=\"Church activities\",WorkingR!R81,\"\")","v":""},{"$f":"IF(WorkingR!$B81=\"Church activities\",WorkingR!S81,\"\")","v":""},{"$f":"IF(WorkingR!$B81=\"Church activities\",WorkingR!T81,\"\")","v":""},{"$f":"IF(WorkingR!$B81=\"Church activities\",WorkingR!U81,\"\")","v":""},{"$f":"IF(WorkingR!$B81=\"Church activities\",WorkingR!V81,\"\")","v":""},{"$f":"IF(WorkingR!$B81=\"Church activities\",WorkingR!W81,\"\")","v":""},{"$f":"IF(WorkingR!$B81=\"Church activities\",WorkingR!X81,\"\")","v":""},{"$f":"IF(WorkingR!$B81=\"Church activities\",WorkingR!Y81,\"\")","v":""},{"$f":"IF(Descriptions!D82=\"Church activities\",Descriptions!AA82,0)","v":0}]
[{"$f":"IF(Descriptions!D83=\"Church activities\",Descriptions!B83,0)","v":0},{"$f":"IF(WorkingR!$B82=\"Church activities\",WorkingR!D82,\"\")","v":""},{"$f":"IF(WorkingR!$B82=\"Church activities\",WorkingR!E82,\"\")","v":""},{"$f":"IF(WorkingR!$B82=\"Church activities\",WorkingR!F82,\"\")","v":""},{"$f":"IF(WorkingR!$B82=\"Church activities\",WorkingR!G82,\"\")","v":""},{"$f":"IF(WorkingR!$B82=\"Church activities\",WorkingR!H82,\"\")","v":""},{"$f":"IF(WorkingR!$B82=\"Church activities\",WorkingR!I82,\"\")","v":""},{"$f":"IF(WorkingR!$B82=\"Church activities\",WorkingR!J82,\"\")","v":""},{"$f":"IF(WorkingR!$B82=\"Church activities\",WorkingR!K82,\"\")","v":""},{"$f":"IF(WorkingR!$B82=\"Church activities\",WorkingR!L82,\"\")","v":""},{"$f":"IF(WorkingR!$B82=\"Church activities\",WorkingR!M82,\"\")","v":""},{"$f":"IF(WorkingR!$B82=\"Church activities\",WorkingR!N82,\"\")","v":""},{"$f":"IF(WorkingR!$B82=\"Church activities\",WorkingR!O82,\"\")","v":""},{"$f":"IF(WorkingR!$B82=\"Church activities\",WorkingR!P82,\"\")","v":""},{"$f":"IF(WorkingR!$B82=\"Church activities\",WorkingR!Q82,\"\")","v":""},{"$f":"IF(WorkingR!$B82=\"Church activities\",WorkingR!R82,\"\")","v":""},{"$f":"IF(WorkingR!$B82=\"Church activities\",WorkingR!S82,\"\")","v":""},{"$f":"IF(WorkingR!$B82=\"Church activities\",WorkingR!T82,\"\")","v":""},{"$f":"IF(WorkingR!$B82=\"Church activities\",WorkingR!U82,\"\")","v":""},{"$f":"IF(WorkingR!$B82=\"Church activities\",WorkingR!V82,\"\")","v":""},{"$f":"IF(WorkingR!$B82=\"Church activities\",WorkingR!W82,\"\")","v":""},{"$f":"IF(WorkingR!$B82=\"Church activities\",WorkingR!X82,\"\")","v":""},{"$f":"IF(WorkingR!$B82=\"Church activities\",WorkingR!Y82,\"\")","v":""},{"$f":"IF(Descriptions!D83=\"Church activities\",Descriptions!AA83,0)","v":0}]
[{"$f":"IF(Descriptions!D84=\"Church activities\",Descriptions!B84,0)","v":0},{"$f":"IF(WorkingR!$B83=\"Church activities\",WorkingR!D83,\"\")","v":""},{"$f":"IF(WorkingR!$B83=\"Church activities\",WorkingR!E83,\"\")","v":""},{"$f":"IF(WorkingR!$B83=\"Church activities\",WorkingR!F83,\"\")","v":""},{"$f":"IF(WorkingR!$B83=\"Church activities\",WorkingR!G83,\"\")","v":""},{"$f":"IF(WorkingR!$B83=\"Church activities\",WorkingR!H83,\"\")","v":""},{"$f":"IF(WorkingR!$B83=\"Church activities\",WorkingR!I83,\"\")","v":""},{"$f":"IF(WorkingR!$B83=\"Church activities\",WorkingR!J83,\"\")","v":""},{"$f":"IF(WorkingR!$B83=\"Church activities\",WorkingR!K83,\"\")","v":""},{"$f":"IF(WorkingR!$B83=\"Church activities\",WorkingR!L83,\"\")","v":""},{"$f":"IF(WorkingR!$B83=\"Church activities\",WorkingR!M83,\"\")","v":""},{"$f":"IF(WorkingR!$B83=\"Church activities\",WorkingR!N83,\"\")","v":""},{"$f":"IF(WorkingR!$B83=\"Church activities\",WorkingR!O83,\"\")","v":""},{"$f":"IF(WorkingR!$B83=\"Church activities\",WorkingR!P83,\"\")","v":""},{"$f":"IF(WorkingR!$B83=\"Church activities\",WorkingR!Q83,\"\")","v":""},{"$f":"IF(WorkingR!$B83=\"Church activities\",WorkingR!R83,\"\")","v":""},{"$f":"IF(WorkingR!$B83=\"Church activities\",WorkingR!S83,\"\")","v":""},{"$f":"IF(WorkingR!$B83=\"Church activities\",WorkingR!T83,\"\")","v":""},{"$f":"IF(WorkingR!$B83=\"Church activities\",WorkingR!U83,\"\")","v":""},{"$f":"IF(WorkingR!$B83=\"Church activities\",WorkingR!V83,\"\")","v":""},{"$f":"IF(WorkingR!$B83=\"Church activities\",WorkingR!W83,\"\")","v":""},{"$f":"IF(WorkingR!$B83=\"Church activities\",WorkingR!X83,\"\")","v":""},{"$f":"IF(WorkingR!$B83=\"Church activities\",WorkingR!Y83,\"\")","v":""},{"$f":"IF(Descriptions!D84=\"Church activities\",Descriptions!AA84,0)","v":0}]
[{"$f":"IF(Descriptions!D85=\"Church activities\",Descriptions!B85,0)","v":0},{"$f":"IF(WorkingR!$B84=\"Church activities\",WorkingR!D84,\"\")","v":""},{"$f":"IF(WorkingR!$B84=\"Church activities\",WorkingR!E84,\"\")","v":""},{"$f":"IF(WorkingR!$B84=\"Church activities\",WorkingR!F84,\"\")","v":""},{"$f":"IF(WorkingR!$B84=\"Church activities\",WorkingR!G84,\"\")","v":""},{"$f":"IF(WorkingR!$B84=\"Church activities\",WorkingR!H84,\"\")","v":""},{"$f":"IF(WorkingR!$B84=\"Church activities\",WorkingR!I84,\"\")","v":""},{"$f":"IF(WorkingR!$B84=\"Church activities\",WorkingR!J84,\"\")","v":""},{"$f":"IF(WorkingR!$B84=\"Church activities\",WorkingR!K84,\"\")","v":""},{"$f":"IF(WorkingR!$B84=\"Church activities\",WorkingR!L84,\"\")","v":""},{"$f":"IF(WorkingR!$B84=\"Church activities\",WorkingR!M84,\"\")","v":""},{"$f":"IF(WorkingR!$B84=\"Church activities\",WorkingR!N84,\"\")","v":""},{"$f":"IF(WorkingR!$B84=\"Church activities\",WorkingR!O84,\"\")","v":""},{"$f":"IF(WorkingR!$B84=\"Church activities\",WorkingR!P84,\"\")","v":""},{"$f":"IF(WorkingR!$B84=\"Church activities\",WorkingR!Q84,\"\")","v":""},{"$f":"IF(WorkingR!$B84=\"Church activities\",WorkingR!R84,\"\")","v":""},{"$f":"IF(WorkingR!$B84=\"Church activities\",WorkingR!S84,\"\")","v":""},{"$f":"IF(WorkingR!$B84=\"Church activities\",WorkingR!T84,\"\")","v":""},{"$f":"IF(WorkingR!$B84=\"Church activities\",WorkingR!U84,\"\")","v":""},{"$f":"IF(WorkingR!$B84=\"Church activities\",WorkingR!V84,\"\")","v":""},{"$f":"IF(WorkingR!$B84=\"Church activities\",WorkingR!W84,\"\")","v":""},{"$f":"IF(WorkingR!$B84=\"Church activities\",WorkingR!X84,\"\")","v":""},{"$f":"IF(WorkingR!$B84=\"Church activities\",WorkingR!Y84,\"\")","v":""},{"$f":"IF(Descriptions!D85=\"Church activities\",Descriptions!AA85,0)","v":0}]
[{"$f":"IF(Descriptions!D86=\"Church activities\",Descriptions!B86,0)","v":0},{"$f":"IF(WorkingR!$B85=\"Church activities\",WorkingR!D85,\"\")","v":""},{"$f":"IF(WorkingR!$B85=\"Church activities\",WorkingR!E85,\"\")","v":""},{"$f":"IF(WorkingR!$B85=\"Church activities\",WorkingR!F85,\"\")","v":""},{"$f":"IF(WorkingR!$B85=\"Church activities\",WorkingR!G85,\"\")","v":""},{"$f":"IF(WorkingR!$B85=\"Church activities\",WorkingR!H85,\"\")","v":""},{"$f":"IF(WorkingR!$B85=\"Church activities\",WorkingR!I85,\"\")","v":""},{"$f":"IF(WorkingR!$B85=\"Church activities\",WorkingR!J85,\"\")","v":""},{"$f":"IF(WorkingR!$B85=\"Church activities\",WorkingR!K85,\"\")","v":""},{"$f":"IF(WorkingR!$B85=\"Church activities\",WorkingR!L85,\"\")","v":""},{"$f":"IF(WorkingR!$B85=\"Church activities\",WorkingR!M85,\"\")","v":""},{"$f":"IF(WorkingR!$B85=\"Church activities\",WorkingR!N85,\"\")","v":""},{"$f":"IF(WorkingR!$B85=\"Church activities\",WorkingR!O85,\"\")","v":""},{"$f":"IF(WorkingR!$B85=\"Church activities\",WorkingR!P85,\"\")","v":""},{"$f":"IF(WorkingR!$B85=\"Church activities\",WorkingR!Q85,\"\")","v":""},{"$f":"IF(WorkingR!$B85=\"Church activities\",WorkingR!R85,\"\")","v":""},{"$f":"IF(WorkingR!$B85=\"Church activities\",WorkingR!S85,\"\")","v":""},{"$f":"IF(WorkingR!$B85=\"Church activities\",WorkingR!T85,\"\")","v":""},{"$f":"IF(WorkingR!$B85=\"Church activities\",WorkingR!U85,\"\")","v":""},{"$f":"IF(WorkingR!$B85=\"Church activities\",WorkingR!V85,\"\")","v":""},{"$f":"IF(WorkingR!$B85=\"Church activities\",WorkingR!W85,\"\")","v":""},{"$f":"IF(WorkingR!$B85=\"Church activities\",WorkingR!X85,\"\")","v":""},{"$f":"IF(WorkingR!$B85=\"Church activities\",WorkingR!Y85,\"\")","v":""},{"$f":"IF(Descriptions!D86=\"Church activities\",Descriptions!AA86,0)","v":0}]
[{"$f":"IF(Descriptions!D87=\"Church activities\",Descriptions!B87,0)","v":0},{"$f":"IF(WorkingR!$B86=\"Church activities\",WorkingR!D86,\"\")","v":""},{"$f":"IF(WorkingR!$B86=\"Church activities\",WorkingR!E86,\"\")","v":""},{"$f":"IF(WorkingR!$B86=\"Church activities\",WorkingR!F86,\"\")","v":""},{"$f":"IF(WorkingR!$B86=\"Church activities\",WorkingR!G86,\"\")","v":""},{"$f":"IF(WorkingR!$B86=\"Church activities\",WorkingR!H86,\"\")","v":""},{"$f":"IF(WorkingR!$B86=\"Church activities\",WorkingR!I86,\"\")","v":""},{"$f":"IF(WorkingR!$B86=\"Church activities\",WorkingR!J86,\"\")","v":""},{"$f":"IF(WorkingR!$B86=\"Church activities\",WorkingR!K86,\"\")","v":""},{"$f":"IF(WorkingR!$B86=\"Church activities\",WorkingR!L86,\"\")","v":""},{"$f":"IF(WorkingR!$B86=\"Church activities\",WorkingR!M86,\"\")","v":""},{"$f":"IF(WorkingR!$B86=\"Church activities\",WorkingR!N86,\"\")","v":""},{"$f":"IF(WorkingR!$B86=\"Church activities\",WorkingR!O86,\"\")","v":""},{"$f":"IF(WorkingR!$B86=\"Church activities\",WorkingR!P86,\"\")","v":""},{"$f":"IF(WorkingR!$B86=\"Church activities\",WorkingR!Q86,\"\")","v":""},{"$f":"IF(WorkingR!$B86=\"Church activities\",WorkingR!R86,\"\")","v":""},{"$f":"IF(WorkingR!$B86=\"Church activities\",WorkingR!S86,\"\")","v":""},{"$f":"IF(WorkingR!$B86=\"Church activities\",WorkingR!T86,\"\")","v":""},{"$f":"IF(WorkingR!$B86=\"Church activities\",WorkingR!U86,\"\")","v":""},{"$f":"IF(WorkingR!$B86=\"Church activities\",WorkingR!V86,\"\")","v":""},{"$f":"IF(WorkingR!$B86=\"Church activities\",WorkingR!W86,\"\")","v":""},{"$f":"IF(WorkingR!$B86=\"Church activities\",WorkingR!X86,\"\")","v":""},{"$f":"IF(WorkingR!$B86=\"Church activities\",WorkingR!Y86,\"\")","v":""},{"$f":"IF(Descriptions!D87=\"Church activities\",Descriptions!AA87,0)","v":0}]
[{"$f":"IF(Descriptions!D88=\"Church activities\",Descriptions!B88,0)","v":0},{"$f":"IF(WorkingR!$B87=\"Church activities\",WorkingR!D87,\"\")","v":""},{"$f":"IF(WorkingR!$B87=\"Church activities\",WorkingR!E87,\"\")","v":""},{"$f":"IF(WorkingR!$B87=\"Church activities\",WorkingR!F87,\"\")","v":""},{"$f":"IF(WorkingR!$B87=\"Church activities\",WorkingR!G87,\"\")","v":""},{"$f":"IF(WorkingR!$B87=\"Church activities\",WorkingR!H87,\"\")","v":""},{"$f":"IF(WorkingR!$B87=\"Church activities\",WorkingR!I87,\"\")","v":""},{"$f":"IF(WorkingR!$B87=\"Church activities\",WorkingR!J87,\"\")","v":""},{"$f":"IF(WorkingR!$B87=\"Church activities\",WorkingR!K87,\"\")","v":""},{"$f":"IF(WorkingR!$B87=\"Church activities\",WorkingR!L87,\"\")","v":""},{"$f":"IF(WorkingR!$B87=\"Church activities\",WorkingR!M87,\"\")","v":""},{"$f":"IF(WorkingR!$B87=\"Church activities\",WorkingR!N87,\"\")","v":""},{"$f":"IF(WorkingR!$B87=\"Church activities\",WorkingR!O87,\"\")","v":""},{"$f":"IF(WorkingR!$B87=\"Church activities\",WorkingR!P87,\"\")","v":""},{"$f":"IF(WorkingR!$B87=\"Church activities\",WorkingR!Q87,\"\")","v":""},{"$f":"IF(WorkingR!$B87=\"Church activities\",WorkingR!R87,\"\")","v":""},{"$f":"IF(WorkingR!$B87=\"Church activities\",WorkingR!S87,\"\")","v":""},{"$f":"IF(WorkingR!$B87=\"Church activities\",WorkingR!T87,\"\")","v":""},{"$f":"IF(WorkingR!$B87=\"Church activities\",WorkingR!U87,\"\")","v":""},{"$f":"IF(WorkingR!$B87=\"Church activities\",WorkingR!V87,\"\")","v":""},{"$f":"IF(WorkingR!$B87=\"Church activities\",WorkingR!W87,\"\")","v":""},{"$f":"IF(WorkingR!$B87=\"Church activities\",WorkingR!X87,\"\")","v":""},{"$f":"IF(WorkingR!$B87=\"Church activities\",WorkingR!Y87,\"\")","v":""},{"$f":"IF(Descriptions!D88=\"Church activities\",Descriptions!AA88,0)","v":0}]
[{"$f":"IF(Descriptions!D89=\"Church activities\",Descriptions!B89,0)","v":0},{"$f":"IF(WorkingR!$B88=\"Church activities\",WorkingR!D88,\"\")","v":""},{"$f":"IF(WorkingR!$B88=\"Church activities\",WorkingR!E88,\"\")","v":""},{"$f":"IF(WorkingR!$B88=\"Church activities\",WorkingR!F88,\"\")","v":""},{"$f":"IF(WorkingR!$B88=\"Church activities\",WorkingR!G88,\"\")","v":""},{"$f":"IF(WorkingR!$B88=\"Church activities\",WorkingR!H88,\"\")","v":""},{"$f":"IF(WorkingR!$B88=\"Church activities\",WorkingR!I88,\"\")","v":""},{"$f":"IF(WorkingR!$B88=\"Church activities\",WorkingR!J88,\"\")","v":""},{"$f":"IF(WorkingR!$B88=\"Church activities\",WorkingR!K88,\"\")","v":""},{"$f":"IF(WorkingR!$B88=\"Church activities\",WorkingR!L88,\"\")","v":""},{"$f":"IF(WorkingR!$B88=\"Church activities\",WorkingR!M88,\"\")","v":""},{"$f":"IF(WorkingR!$B88=\"Church activities\",WorkingR!N88,\"\")","v":""},{"$f":"IF(WorkingR!$B88=\"Church activities\",WorkingR!O88,\"\")","v":""},{"$f":"IF(WorkingR!$B88=\"Church activities\",WorkingR!P88,\"\")","v":""},{"$f":"IF(WorkingR!$B88=\"Church activities\",WorkingR!Q88,\"\")","v":""},{"$f":"IF(WorkingR!$B88=\"Church activities\",WorkingR!R88,\"\")","v":""},{"$f":"IF(WorkingR!$B88=\"Church activities\",WorkingR!S88,\"\")","v":""},{"$f":"IF(WorkingR!$B88=\"Church activities\",WorkingR!T88,\"\")","v":""},{"$f":"IF(WorkingR!$B88=\"Church activities\",WorkingR!U88,\"\")","v":""},{"$f":"IF(WorkingR!$B88=\"Church activities\",WorkingR!V88,\"\")","v":""},{"$f":"IF(WorkingR!$B88=\"Church activities\",WorkingR!W88,\"\")","v":""},{"$f":"IF(WorkingR!$B88=\"Church activities\",WorkingR!X88,\"\")","v":""},{"$f":"IF(WorkingR!$B88=\"Church activities\",WorkingR!Y88,\"\")","v":""},{"$f":"IF(Descriptions!D89=\"Church activities\",Descriptions!AA89,0)","v":0}]
[{"$f":"IF(Descriptions!D90=\"Church activities\",Descriptions!B90,0)","v":0},{"$f":"IF(WorkingR!$B89=\"Church activities\",WorkingR!D89,\"\")","v":""},{"$f":"IF(WorkingR!$B89=\"Church activities\",WorkingR!E89,\"\")","v":""},{"$f":"IF(WorkingR!$B89=\"Church activities\",WorkingR!F89,\"\")","v":""},{"$f":"IF(WorkingR!$B89=\"Church activities\",WorkingR!G89,\"\")","v":""},{"$f":"IF(WorkingR!$B89=\"Church activities\",WorkingR!H89,\"\")","v":""},{"$f":"IF(WorkingR!$B89=\"Church activities\",WorkingR!I89,\"\")","v":""},{"$f":"IF(WorkingR!$B89=\"Church activities\",WorkingR!J89,\"\")","v":""},{"$f":"IF(WorkingR!$B89=\"Church activities\",WorkingR!K89,\"\")","v":""},{"$f":"IF(WorkingR!$B89=\"Church activities\",WorkingR!L89,\"\")","v":""},{"$f":"IF(WorkingR!$B89=\"Church activities\",WorkingR!M89,\"\")","v":""},{"$f":"IF(WorkingR!$B89=\"Church activities\",WorkingR!N89,\"\")","v":""},{"$f":"IF(WorkingR!$B89=\"Church activities\",WorkingR!O89,\"\")","v":""},{"$f":"IF(WorkingR!$B89=\"Church activities\",WorkingR!P89,\"\")","v":""},{"$f":"IF(WorkingR!$B89=\"Church activities\",WorkingR!Q89,\"\")","v":""},{"$f":"IF(WorkingR!$B89=\"Church activities\",WorkingR!R89,\"\")","v":""},{"$f":"IF(WorkingR!$B89=\"Church activities\",WorkingR!S89,\"\")","v":""},{"$f":"IF(WorkingR!$B89=\"Church activities\",WorkingR!T89,\"\")","v":""},{"$f":"IF(WorkingR!$B89=\"Church activities\",WorkingR!U89,\"\")","v":""},{"$f":"IF(WorkingR!$B89=\"Church activities\",WorkingR!V89,\"\")","v":""},{"$f":"IF(WorkingR!$B89=\"Church activities\",WorkingR!W89,\"\")","v":""},{"$f":"IF(WorkingR!$B89=\"Church activities\",WorkingR!X89,\"\")","v":""},{"$f":"IF(WorkingR!$B89=\"Church activities\",WorkingR!Y89,\"\")","v":""},{"$f":"IF(Descriptions!D90=\"Church activities\",Descriptions!AA90,0)","v":0}]
[{"$f":"IF(Descriptions!D91=\"Church activities\",Descriptions!B91,0)","v":0},{"$f":"IF(WorkingR!$B90=\"Church activities\",WorkingR!D90,\"\")","v":""},{"$f":"IF(WorkingR!$B90=\"Church activities\",WorkingR!E90,\"\")","v":""},{"$f":"IF(WorkingR!$B90=\"Church activities\",WorkingR!F90,\"\")","v":""},{"$f":"IF(WorkingR!$B90=\"Church activities\",WorkingR!G90,\"\")","v":""},{"$f":"IF(WorkingR!$B90=\"Church activities\",WorkingR!H90,\"\")","v":""},{"$f":"IF(WorkingR!$B90=\"Church activities\",WorkingR!I90,\"\")","v":""},{"$f":"IF(WorkingR!$B90=\"Church activities\",WorkingR!J90,\"\")","v":""},{"$f":"IF(WorkingR!$B90=\"Church activities\",WorkingR!K90,\"\")","v":""},{"$f":"IF(WorkingR!$B90=\"Church activities\",WorkingR!L90,\"\")","v":""},{"$f":"IF(WorkingR!$B90=\"Church activities\",WorkingR!M90,\"\")","v":""},{"$f":"IF(WorkingR!$B90=\"Church activities\",WorkingR!N90,\"\")","v":""},{"$f":"IF(WorkingR!$B90=\"Church activities\",WorkingR!O90,\"\")","v":""},{"$f":"IF(WorkingR!$B90=\"Church activities\",WorkingR!P90,\"\")","v":""},{"$f":"IF(WorkingR!$B90=\"Church activities\",WorkingR!Q90,\"\")","v":""},{"$f":"IF(WorkingR!$B90=\"Church activities\",WorkingR!R90,\"\")","v":""},{"$f":"IF(WorkingR!$B90=\"Church activities\",WorkingR!S90,\"\")","v":""},{"$f":"IF(WorkingR!$B90=\"Church activities\",WorkingR!T90,\"\")","v":""},{"$f":"IF(WorkingR!$B90=\"Church activities\",WorkingR!U90,\"\")","v":""},{"$f":"IF(WorkingR!$B90=\"Church activities\",WorkingR!V90,\"\")","v":""},{"$f":"IF(WorkingR!$B90=\"Church activities\",WorkingR!W90,\"\")","v":""},{"$f":"IF(WorkingR!$B90=\"Church activities\",WorkingR!X90,\"\")","v":""},{"$f":"IF(WorkingR!$B90=\"Church activities\",WorkingR!Y90,\"\")","v":""},{"$f":"IF(Descriptions!D91=\"Church activities\",Descriptions!AA91,0)","v":0}]
[{"$f":"IF(Descriptions!D92=\"Church activities\",Descriptions!B92,0)","v":0},{"$f":"IF(WorkingR!$B91=\"Church activities\",WorkingR!D91,\"\")","v":""},{"$f":"IF(WorkingR!$B91=\"Church activities\",WorkingR!E91,\"\")","v":""},{"$f":"IF(WorkingR!$B91=\"Church activities\",WorkingR!F91,\"\")","v":""},{"$f":"IF(WorkingR!$B91=\"Church activities\",WorkingR!G91,\"\")","v":""},{"$f":"IF(WorkingR!$B91=\"Church activities\",WorkingR!H91,\"\")","v":""},{"$f":"IF(WorkingR!$B91=\"Church activities\",WorkingR!I91,\"\")","v":""},{"$f":"IF(WorkingR!$B91=\"Church activities\",WorkingR!J91,\"\")","v":""},{"$f":"IF(WorkingR!$B91=\"Church activities\",WorkingR!K91,\"\")","v":""},{"$f":"IF(WorkingR!$B91=\"Church activities\",WorkingR!L91,\"\")","v":""},{"$f":"IF(WorkingR!$B91=\"Church activities\",WorkingR!M91,\"\")","v":""},{"$f":"IF(WorkingR!$B91=\"Church activities\",WorkingR!N91,\"\")","v":""},{"$f":"IF(WorkingR!$B91=\"Church activities\",WorkingR!O91,\"\")","v":""},{"$f":"IF(WorkingR!$B91=\"Church activities\",WorkingR!P91,\"\")","v":""},{"$f":"IF(WorkingR!$B91=\"Church activities\",WorkingR!Q91,\"\")","v":""},{"$f":"IF(WorkingR!$B91=\"Church activities\",WorkingR!R91,\"\")","v":""},{"$f":"IF(WorkingR!$B91=\"Church activities\",WorkingR!S91,\"\")","v":""},{"$f":"IF(WorkingR!$B91=\"Church activities\",WorkingR!T91,\"\")","v":""},{"$f":"IF(WorkingR!$B91=\"Church activities\",WorkingR!U91,\"\")","v":""},{"$f":"IF(WorkingR!$B91=\"Church activities\",WorkingR!V91,\"\")","v":""},{"$f":"IF(WorkingR!$B91=\"Church activities\",WorkingR!W91,\"\")","v":""},{"$f":"IF(WorkingR!$B91=\"Church activities\",WorkingR!X91,\"\")","v":""},{"$f":"IF(WorkingR!$B91=\"Church activities\",WorkingR!Y91,\"\")","v":""},{"$f":"IF(Descriptions!D92=\"Church activities\",Descriptions!AA92,0)","v":0}]
[null,{"$f":"SUM(B290:B346)","v":0},0,0,0,0,0,0,0,0,0,0,0,0,0,0,0,0,0,0,0,0,null,{"$f":"X289","v":0}]
["INVESTMENT INCOME",null,null,null,null,null,null,null,null,null,null,null,null,null,null,null,null,null,null,null,null,null,null,{"$f":"SUM(X349:X399)","v":0}]
["Dividends and Interest",{"$f":"WorkingR!D10","v":0},{"$f":"WorkingR!E10","v":0},{"$f":"WorkingR!F10","v":0},{"$f":"WorkingR!G10","v":0},{"$f":"WorkingR!H10","v":0},{"$f":"WorkingR!I10","v":0},{"$f":"WorkingR!J10","v":0},{"$f":"WorkingR!K10","v":0},{"$f":"WorkingR!L10","v":0},{"$f":"WorkingR!M10","v":0},{"$f":"WorkingR!N10","v":0},{"$f":"WorkingR!O10","v":0},{"$f":"WorkingR!P10","v":0},{"$f":"WorkingR!Q10","v":0},{"$f":"WorkingR!R10","v":0},{"$f":"WorkingR!S10","v":0},{"$f":"WorkingR!T10","v":0},{"$f":"WorkingR!U10","v":0},{"$f":"WorkingR!V10","v":0},{"$f":"WorkingR!W10","v":0},{"$f":"WorkingR!X10","v":0},{"$f":"WorkingR!Y10","v":0},{"$f":"Descriptions!AA9","v":0}]
[{"$f":"IF(Descriptions!D43=\"Investment income\",Descriptions!B43,0)","v":0},{"$f":"IF(WorkingR!$B42=\"Investment Income\",WorkingR!D42,\"\")","v":""},{"$f":"IF(WorkingR!$B42=\"Investment Income\",WorkingR!E42,\"\")","v":""},{"$f":"IF(WorkingR!$B42=\"Investment Income\",WorkingR!F42,\"\")","v":""},{"$f":"IF(WorkingR!$B42=\"Investment Income\",WorkingR!G42,\"\")","v":""},{"$f":"IF(WorkingR!$B42=\"Investment Income\",WorkingR!H42,\"\")","v":""},{"$f":"IF(WorkingR!$B42=\"Investment Income\",WorkingR!I42,\"\")","v":""},{"$f":"IF(WorkingR!$B42=\"Investment Income\",WorkingR!J42,\"\")","v":""},{"$f":"IF(WorkingR!$B42=\"Investment Income\",WorkingR!K42,\"\")","v":""},{"$f":"IF(WorkingR!$B42=\"Investment Income\",WorkingR!L42,\"\")","v":""},{"$f":"IF(WorkingR!$B42=\"Investment Income\",WorkingR!M42,\"\")","v":""},{"$f":"IF(WorkingR!$B42=\"Investment Income\",WorkingR!N42,\"\")","v":""},{"$f":"IF(WorkingR!$B42=\"Investment Income\",WorkingR!O42,\"\")","v":""},{"$f":"IF(WorkingR!$B42=\"Investment Income\",WorkingR!P42,\"\")","v":""},{"$f":"IF(WorkingR!$B42=\"Investment Income\",WorkingR!Q42,\"\")","v":""},{"$f":"IF(WorkingR!$B42=\"Investment Income\",WorkingR!R42,\"\")","v":""},{"$f":"IF(WorkingR!$B42=\"Investment Income\",WorkingR!S42,\"\")","v":""},{"$f":"IF(WorkingR!$B42=\"Investment Income\",WorkingR!T42,\"\")","v":""},{"$f":"IF(WorkingR!$B42=\"Investment Income\",WorkingR!U42,\"\")","v":""},{"$f":"IF(WorkingR!$B42=\"Investment Income\",WorkingR!V42,\"\")","v":""},{"$f":"IF(WorkingR!$B42=\"Investment Income\",WorkingR!W42,\"\")","v":""},{"$f":"IF(WorkingR!$B42=\"Investment Income\",WorkingR!X42,\"\")","v":""},{"$f":"IF(WorkingR!$B42=\"Investment Income\",WorkingR!Y42,\"\")","v":""},{"$f":"IF(Descriptions!D43=\"Investment income\",Descriptions!AA43,0)","v":0}]
[{"$f":"IF(Descriptions!D44=\"Investment income\",Descriptions!B44,0)","v":0},{"$f":"IF(WorkingR!$B43=\"Investment Income\",WorkingR!D43,\"\")","v":""},{"$f":"IF(WorkingR!$B43=\"Investment Income\",WorkingR!E43,\"\")","v":""},{"$f":"IF(WorkingR!$B43=\"Investment Income\",WorkingR!F43,\"\")","v":""},{"$f":"IF(WorkingR!$B43=\"Investment Income\",WorkingR!G43,\"\")","v":""},{"$f":"IF(WorkingR!$B43=\"Investment Income\",WorkingR!H43,\"\")","v":""},{"$f":"IF(WorkingR!$B43=\"Investment Income\",WorkingR!I43,\"\")","v":""},{"$f":"IF(WorkingR!$B43=\"Investment Income\",WorkingR!J43,\"\")","v":""},{"$f":"IF(WorkingR!$B43=\"Investment Income\",WorkingR!K43,\"\")","v":""},{"$f":"IF(WorkingR!$B43=\"Investment Income\",WorkingR!L43,\"\")","v":""},{"$f":"IF(WorkingR!$B43=\"Investment Income\",WorkingR!M43,\"\")","v":""},{"$f":"IF(WorkingR!$B43=\"Investment Income\",WorkingR!N43,\"\")","v":""},{"$f":"IF(WorkingR!$B43=\"Investment Income\",WorkingR!O43,\"\")","v":""},{"$f":"IF(WorkingR!$B43=\"Investment Income\",WorkingR!P43,\"\")","v":""},{"$f":"IF(WorkingR!$B43=\"Investment Income\",WorkingR!Q43,\"\")","v":""},{"$f":"IF(WorkingR!$B43=\"Investment Income\",WorkingR!R43,\"\")","v":""},{"$f":"IF(WorkingR!$B43=\"Investment Income\",WorkingR!S43,\"\")","v":""},{"$f":"IF(WorkingR!$B43=\"Investment Income\",WorkingR!T43,\"\")","v":""},{"$f":"IF(WorkingR!$B43=\"Investment Income\",WorkingR!U43,\"\")","v":""},{"$f":"IF(WorkingR!$B43=\"Investment Income\",WorkingR!V43,\"\")","v":""},{"$f":"IF(WorkingR!$B43=\"Investment Income\",WorkingR!W43,\"\")","v":""},{"$f":"IF(WorkingR!$B43=\"Investment Income\",WorkingR!X43,\"\")","v":""},{"$f":"IF(WorkingR!$B43=\"Investment Income\",WorkingR!Y43,\"\")","v":""},{"$f":"IF(Descriptions!D44=\"Investment income\",Descriptions!AA44,0)","v":0}]
[{"$f":"IF(Descriptions!D45=\"Investment income\",Descriptions!B45,0)","v":0},{"$f":"IF(WorkingR!$B44=\"Investment Income\",WorkingR!D44,\"\")","v":""},{"$f":"IF(WorkingR!$B44=\"Investment Income\",WorkingR!E44,\"\")","v":""},{"$f":"IF(WorkingR!$B44=\"Investment Income\",WorkingR!F44,\"\")","v":""},{"$f":"IF(WorkingR!$B44=\"Investment Income\",WorkingR!G44,\"\")","v":""},{"$f":"IF(WorkingR!$B44=\"Investment Income\",WorkingR!H44,\"\")","v":""},{"$f":"IF(WorkingR!$B44=\"Investment Income\",WorkingR!I44,\"\")","v":""},{"$f":"IF(WorkingR!$B44=\"Investment Income\",WorkingR!J44,\"\")","v":""},{"$f":"IF(WorkingR!$B44=\"Investment Income\",WorkingR!K44,\"\")","v":""},{"$f":"IF(WorkingR!$B44=\"Investment Income\",WorkingR!L44,\"\")","v":""},{"$f":"IF(WorkingR!$B44=\"Investment Income\",WorkingR!M44,\"\")","v":""},{"$f":"IF(WorkingR!$B44=\"Investment Income\",WorkingR!N44,\"\")","v":""},{"$f":"IF(WorkingR!$B44=\"Investment Income\",WorkingR!O44,\"\")","v":""},{"$f":"IF(WorkingR!$B44=\"Investment Income\",WorkingR!P44,\"\")","v":""},{"$f":"IF(WorkingR!$B44=\"Investment Income\",WorkingR!Q44,\"\")","v":""},{"$f":"IF(WorkingR!$B44=\"Investment Income\",WorkingR!R44,\"\")","v":""},{"$f":"IF(WorkingR!$B44=\"Investment Income\",WorkingR!S44,\"\")","v":""},{"$f":"IF(WorkingR!$B44=\"Investment Income\",WorkingR!T44,\"\")","v":""},{"$f":"IF(WorkingR!$B44=\"Investment Income\",WorkingR!U44,\"\")","v":""},{"$f":"IF(WorkingR!$B44=\"Investment Income\",WorkingR!V44,\"\")","v":""},{"$f":"IF(WorkingR!$B44=\"Investment Income\",WorkingR!W44,\"\")","v":""},{"$f":"IF(WorkingR!$B44=\"Investment Income\",WorkingR!X44,\"\")","v":""},{"$f":"IF(WorkingR!$B44=\"Investment Income\",WorkingR!Y44,\"\")","v":""},{"$f":"IF(Descriptions!D45=\"Investment income\",Descriptions!AA45,0)","v":0}]
[{"$f":"IF(Descriptions!D46=\"Investment income\",Descriptions!B46,0)","v":0},{"$f":"IF(WorkingR!$B45=\"Investment Income\",WorkingR!D45,\"\")","v":""},{"$f":"IF(WorkingR!$B45=\"Investment Income\",WorkingR!E45,\"\")","v":""},{"$f":"IF(WorkingR!$B45=\"Investment Income\",WorkingR!F45,\"\")","v":""},{"$f":"IF(WorkingR!$B45=\"Investment Income\",WorkingR!G45,\"\")","v":""},{"$f":"IF(WorkingR!$B45=\"Investment Income\",WorkingR!H45,\"\")","v":""},{"$f":"IF(WorkingR!$B45=\"Investment Income\",WorkingR!I45,\"\")","v":""},{"$f":"IF(WorkingR!$B45=\"Investment Income\",WorkingR!J45,\"\")","v":""},{"$f":"IF(WorkingR!$B45=\"Investment Income\",WorkingR!K45,\"\")","v":""},{"$f":"IF(WorkingR!$B45=\"Investment Income\",WorkingR!L45,\"\")","v":""},{"$f":"IF(WorkingR!$B45=\"Investment Income\",WorkingR!M45,\"\")","v":""},{"$f":"IF(WorkingR!$B45=\"Investment Income\",WorkingR!N45,\"\")","v":""},{"$f":"IF(WorkingR!$B45=\"Investment Income\",WorkingR!O45,\"\")","v":""},{"$f":"IF(WorkingR!$B45=\"Investment Income\",WorkingR!P45,\"\")","v":""},{"$f":"IF(WorkingR!$B45=\"Investment Income\",WorkingR!Q45,\"\")","v":""},{"$f":"IF(WorkingR!$B45=\"Investment Income\",WorkingR!R45,\"\")","v":""},{"$f":"IF(WorkingR!$B45=\"Investment Income\",WorkingR!S45,\"\")","v":""},{"$f":"IF(WorkingR!$B45=\"Investment Income\",WorkingR!T45,\"\")","v":""},{"$f":"IF(WorkingR!$B45=\"Investment Income\",WorkingR!U45,\"\")","v":""},{"$f":"IF(WorkingR!$B45=\"Investment Income\",WorkingR!V45,\"\")","v":""},{"$f":"IF(WorkingR!$B45=\"Investment Income\",WorkingR!W45,\"\")","v":""},{"$f":"IF(WorkingR!$B45=\"Investment Income\",WorkingR!X45,\"\")","v":""},{"$f":"IF(WorkingR!$B45=\"Investment Income\",WorkingR!Y45,\"\")","v":""},{"$f":"IF(Descriptions!D46=\"Investment income\",Descriptions!AA46,0)","v":0}]
[{"$f":"IF(Descriptions!D47=\"Investment income\",Descriptions!B47,0)","v":0},{"$f":"IF(WorkingR!$B46=\"Investment Income\",WorkingR!D46,\"\")","v":""},{"$f":"IF(WorkingR!$B46=\"Investment Income\",WorkingR!E46,\"\")","v":""},{"$f":"IF(WorkingR!$B46=\"Investment Income\",WorkingR!F46,\"\")","v":""},{"$f":"IF(WorkingR!$B46=\"Investment Income\",WorkingR!G46,\"\")","v":""},{"$f":"IF(WorkingR!$B46=\"Investment Income\",WorkingR!H46,\"\")","v":""},{"$f":"IF(WorkingR!$B46=\"Investment Income\",WorkingR!I46,\"\")","v":""},{"$f":"IF(WorkingR!$B46=\"Investment Income\",WorkingR!J46,\"\")","v":""},{"$f":"IF(WorkingR!$B46=\"Investment Income\",WorkingR!K46,\"\")","v":""},{"$f":"IF(WorkingR!$B46=\"Investment Income\",WorkingR!L46,\"\")","v":""},{"$f":"IF(WorkingR!$B46=\"Investment Income\",WorkingR!M46,\"\")","v":""},{"$f":"IF(WorkingR!$B46=\"Investment Income\",WorkingR!N46,\"\")","v":""},{"$f":"IF(WorkingR!$B46=\"Investment Income\",WorkingR!O46,\"\")","v":""},{"$f":"IF(WorkingR!$B46=\"Investment Income\",WorkingR!P46,\"\")","v":""},{"$f":"IF(WorkingR!$B46=\"Investment Income\",WorkingR!Q46,\"\")","v":""},{"$f":"IF(WorkingR!$B46=\"Investment Income\",WorkingR!R46,\"\")","v":""},{"$f":"IF(WorkingR!$B46=\"Investment Income\",WorkingR!S46,\"\")","v":""},{"$f":"IF(WorkingR!$B46=\"Investment Income\",WorkingR!T46,\"\")","v":""},{"$f":"IF(WorkingR!$B46=\"Investment Income\",WorkingR!U46,\"\")","v":""},{"$f":"IF(WorkingR!$B46=\"Investment Income\",WorkingR!V46,\"\")","v":""},{"$f":"IF(WorkingR!$B46=\"Investment Income\",WorkingR!W46,\"\")","v":""},{"$f":"IF(WorkingR!$B46=\"Investment Income\",WorkingR!X46,\"\")","v":""},{"$f":"IF(WorkingR!$B46=\"Investment Income\",WorkingR!Y46,\"\")","v":""},{"$f":"IF(Descriptions!D47=\"Investment income\",Descriptions!AA47,0)","v":0}]
[{"$f":"IF(Descriptions!D48=\"Investment income\",Descriptions!B48,0)","v":0},{"$f":"IF(WorkingR!$B47=\"Investment Income\",WorkingR!D47,\"\")","v":""},{"$f":"IF(WorkingR!$B47=\"Investment Income\",WorkingR!E47,\"\")","v":""},{"$f":"IF(WorkingR!$B47=\"Investment Income\",WorkingR!F47,\"\")","v":""},{"$f":"IF(WorkingR!$B47=\"Investment Income\",WorkingR!G47,\"\")","v":""},{"$f":"IF(WorkingR!$B47=\"Investment Income\",WorkingR!H47,\"\")","v":""},{"$f":"IF(WorkingR!$B47=\"Investment Income\",WorkingR!I47,\"\")","v":""},{"$f":"IF(WorkingR!$B47=\"Investment Income\",WorkingR!J47,\"\")","v":""},{"$f":"IF(WorkingR!$B47=\"Investment Income\",WorkingR!K47,\"\")","v":""},{"$f":"IF(WorkingR!$B47=\"Investment Income\",WorkingR!L47,\"\")","v":""},{"$f":"IF(WorkingR!$B47=\"Investment Income\",WorkingR!M47,\"\")","v":""},{"$f":"IF(WorkingR!$B47=\"Investment Income\",WorkingR!N47,\"\")","v":""},{"$f":"IF(WorkingR!$B47=\"Investment Income\",WorkingR!O47,\"\")","v":""},{"$f":"IF(WorkingR!$B47=\"Investment Income\",WorkingR!P47,\"\")","v":""},{"$f":"IF(WorkingR!$B47=\"Investment Income\",WorkingR!Q47,\"\")","v":""},{"$f":"IF(WorkingR!$B47=\"Investment Income\",WorkingR!R47,\"\")","v":""},{"$f":"IF(WorkingR!$B47=\"Investment Income\",WorkingR!S47,\"\")","v":""},{"$f":"IF(WorkingR!$B47=\"Investment Income\",WorkingR!T47,\"\")","v":""},{"$f":"IF(WorkingR!$B47=\"Investment Income\",WorkingR!U47,\"\")","v":""},{"$f":"IF(WorkingR!$B47=\"Investment Income\",WorkingR!V47,\"\")","v":""},{"$f":"IF(WorkingR!$B47=\"Investment Income\",WorkingR!W47,\"\")","v":""},{"$f":"IF(WorkingR!$B47=\"Investment Income\",WorkingR!X47,\"\")","v":""},{"$f":"IF(WorkingR!$B47=\"Investment Income\",WorkingR!Y47,\"\")","v":""},{"$f":"IF(Descriptions!D48=\"Investment income\",Descriptions!AA48,0)","v":0}]
[{"$f":"IF(Descriptions!D49=\"Investment income\",Descriptions!B49,0)","v":0},{"$f":"IF(WorkingR!$B48=\"Investment Income\",WorkingR!D48,\"\")","v":""},{"$f":"IF(WorkingR!$B48=\"Investment Income\",WorkingR!E48,\"\")","v":""},{"$f":"IF(WorkingR!$B48=\"Investment Income\",WorkingR!F48,\"\")","v":""},{"$f":"IF(WorkingR!$B48=\"Investment Income\",WorkingR!G48,\"\")","v":""},{"$f":"IF(WorkingR!$B48=\"Investment Income\",WorkingR!H48,\"\")","v":""},{"$f":"IF(WorkingR!$B48=\"Investment Income\",WorkingR!I48,\"\")","v":""},{"$f":"IF(WorkingR!$B48=\"Investment Income\",WorkingR!J48,\"\")","v":""},{"$f":"IF(WorkingR!$B48=\"Investment Income\",WorkingR!K48,\"\")","v":""},{"$f":"IF(WorkingR!$B48=\"Investment Income\",WorkingR!L48,\"\")","v":""},{"$f":"IF(WorkingR!$B48=\"Investment Income\",WorkingR!M48,\"\")","v":""},{"$f":"IF(WorkingR!$B48=\"Investment Income\",WorkingR!N48,\"\")","v":""},{"$f":"IF(WorkingR!$B48=\"Investment Income\",WorkingR!O48,\"\")","v":""},{"$f":"IF(WorkingR!$B48=\"Investment Income\",WorkingR!P48,\"\")","v":""},{"$f":"IF(WorkingR!$B48=\"Investment Income\",WorkingR!Q48,\"\")","v":""},{"$f":"IF(WorkingR!$B48=\"Investment Income\",WorkingR!R48,\"\")","v":""},{"$f":"IF(WorkingR!$B48=\"Investment Income\",WorkingR!S48,\"\")","v":""},{"$f":"IF(WorkingR!$B48=\"Investment Income\",WorkingR!T48,\"\")","v":""},{"$f":"IF(WorkingR!$B48=\"Investment Income\",WorkingR!U48,\"\")","v":""},{"$f":"IF(WorkingR!$B48=\"Investment Income\",WorkingR!V48,\"\")","v":""},{"$f":"IF(WorkingR!$B48=\"Investment Income\",WorkingR!W48,\"\")","v":""},{"$f":"IF(WorkingR!$B48=\"Investment Income\",WorkingR!X48,\"\")","v":""},{"$f":"IF(WorkingR!$B48=\"Investment Income\",WorkingR!Y48,\"\")","v":""},{"$f":"IF(Descriptions!D49=\"Investment income\",Descriptions!AA49,0)","v":0}]
[{"$f":"IF(Descriptions!D50=\"Investment income\",Descriptions!B50,0)","v":0},{"$f":"IF(WorkingR!$B49=\"Investment Income\",WorkingR!D49,\"\")","v":""},{"$f":"IF(WorkingR!$B49=\"Investment Income\",WorkingR!E49,\"\")","v":""},{"$f":"IF(WorkingR!$B49=\"Investment Income\",WorkingR!F49,\"\")","v":""},{"$f":"IF(WorkingR!$B49=\"Investment Income\",WorkingR!G49,\"\")","v":""},{"$f":"IF(WorkingR!$B49=\"Investment Income\",WorkingR!H49,\"\")","v":""},{"$f":"IF(WorkingR!$B49=\"Investment Income\",WorkingR!I49,\"\")","v":""},{"$f":"IF(WorkingR!$B49=\"Investment Income\",WorkingR!J49,\"\")","v":""},{"$f":"IF(WorkingR!$B49=\"Investment Income\",WorkingR!K49,\"\")","v":""},{"$f":"IF(WorkingR!$B49=\"Investment Income\",WorkingR!L49,\"\")","v":""},{"$f":"IF(WorkingR!$B49=\"Investment Income\",WorkingR!M49,\"\")","v":""},{"$f":"IF(WorkingR!$B49=\"Investment Income\",WorkingR!N49,\"\")","v":""},{"$f":"IF(WorkingR!$B49=\"Investment Income\",WorkingR!O49,\"\")","v":""},{"$f":"IF(WorkingR!$B49=\"Investment Income\",WorkingR!P49,\"\")","v":""},{"$f":"IF(WorkingR!$B49=\"Investment Income\",WorkingR!Q49,\"\")","v":""},{"$f":"IF(WorkingR!$B49=\"Investment Income\",WorkingR!R49,\"\")","v":""},{"$f":"IF(WorkingR!$B49=\"Investment Income\",WorkingR!S49,\"\")","v":""},{"$f":"IF(WorkingR!$B49=\"Investment Income\",WorkingR!T49,\"\")","v":""},{"$f":"IF(WorkingR!$B49=\"Investment Income\",WorkingR!U49,\"\")","v":""},{"$f":"IF(WorkingR!$B49=\"Investment Income\",WorkingR!V49,\"\")","v":""},{"$f":"IF(WorkingR!$B49=\"Investment Income\",WorkingR!W49,\"\")","v":""},{"$f":"IF(WorkingR!$B49=\"Investment Income\",WorkingR!X49,\"\")","v":""},{"$f":"IF(WorkingR!$B49=\"Investment Income\",WorkingR!Y49,\"\")","v":""},{"$f":"IF(Descriptions!D50=\"Investment income\",Descriptions!AA50,0)","v":0}]
[{"$f":"IF(Descriptions!D51=\"Investment income\",Descriptions!B51,0)","v":0},{"$f":"IF(WorkingR!$B50=\"Investment Income\",WorkingR!D50,\"\")","v":""},{"$f":"IF(WorkingR!$B50=\"Investment Income\",WorkingR!E50,\"\")","v":""},{"$f":"IF(WorkingR!$B50=\"Investment Income\",WorkingR!F50,\"\")","v":""},{"$f":"IF(WorkingR!$B50=\"Investment Income\",WorkingR!G50,\"\")","v":""},{"$f":"IF(WorkingR!$B50=\"Investment Income\",WorkingR!H50,\"\")","v":""},{"$f":"IF(WorkingR!$B50=\"Investment Income\",WorkingR!I50,\"\")","v":""},{"$f":"IF(WorkingR!$B50=\"Investment Income\",WorkingR!J50,\"\")","v":""},{"$f":"IF(WorkingR!$B50=\"Investment Income\",WorkingR!K50,\"\")","v":""},{"$f":"IF(WorkingR!$B50=\"Investment Income\",WorkingR!L50,\"\")","v":""},{"$f":"IF(WorkingR!$B50=\"Investment Income\",WorkingR!M50,\"\")","v":""},{"$f":"IF(WorkingR!$B50=\"Investment Income\",WorkingR!N50,\"\")","v":""},{"$f":"IF(WorkingR!$B50=\"Investment Income\",WorkingR!O50,\"\")","v":""},{"$f":"IF(WorkingR!$B50=\"Investment Income\",WorkingR!P50,\"\")","v":""},{"$f":"IF(WorkingR!$B50=\"Investment Income\",WorkingR!Q50,\"\")","v":""},{"$f":"IF(WorkingR!$B50=\"Investment Income\",WorkingR!R50,\"\")","v":""},{"$f":"IF(WorkingR!$B50=\"Investment Income\",WorkingR!S50,\"\")","v":""},{"$f":"IF(WorkingR!$B50=\"Investment Income\",WorkingR!T50,\"\")","v":""},{"$f":"IF(WorkingR!$B50=\"Investment Income\",WorkingR!U50,\"\")","v":""},{"$f":"IF(WorkingR!$B50=\"Investment Income\",WorkingR!V50,\"\")","v":""},{"$f":"IF(WorkingR!$B50=\"Investment Income\",WorkingR!W50,\"\")","v":""},{"$f":"IF(WorkingR!$B50=\"Investment Income\",WorkingR!X50,\"\")","v":""},{"$f":"IF(WorkingR!$B50=\"Investment Income\",WorkingR!Y50,\"\")","v":""},{"$f":"IF(Descriptions!D51=\"Investment income\",Descriptions!AA51,0)","v":0}]
[{"$f":"IF(Descriptions!D52=\"Investment income\",Descriptions!B52,0)","v":0},{"$f":"IF(WorkingR!$B51=\"Investment Income\",WorkingR!D51,\"\")","v":""},{"$f":"IF(WorkingR!$B51=\"Investment Income\",WorkingR!E51,\"\")","v":""},{"$f":"IF(WorkingR!$B51=\"Investment Income\",WorkingR!F51,\"\")","v":""},{"$f":"IF(WorkingR!$B51=\"Investment Income\",WorkingR!G51,\"\")","v":""},{"$f":"IF(WorkingR!$B51=\"Investment Income\",WorkingR!H51,\"\")","v":""},{"$f":"IF(WorkingR!$B51=\"Investment Income\",WorkingR!I51,\"\")","v":""},{"$f":"IF(WorkingR!$B51=\"Investment Income\",WorkingR!J51,\"\")","v":""},{"$f":"IF(WorkingR!$B51=\"Investment Income\",WorkingR!K51,\"\")","v":""},{"$f":"IF(WorkingR!$B51=\"Investment Income\",WorkingR!L51,\"\")","v":""},{"$f":"IF(WorkingR!$B51=\"Investment Income\",WorkingR!M51,\"\")","v":""},{"$f":"IF(WorkingR!$B51=\"Investment Income\",WorkingR!N51,\"\")","v":""},{"$f":"IF(WorkingR!$B51=\"Investment Income\",WorkingR!O51,\"\")","v":""},{"$f":"IF(WorkingR!$B51=\"Investment Income\",WorkingR!P51,\"\")","v":""},{"$f":"IF(WorkingR!$B51=\"Investment Income\",WorkingR!Q51,\"\")","v":""},{"$f":"IF(WorkingR!$B51=\"Investment Income\",WorkingR!R51,\"\")","v":""},{"$f":"IF(WorkingR!$B51=\"Investment Income\",WorkingR!S51,\"\")","v":""},{"$f":"IF(WorkingR!$B51=\"Investment Income\",WorkingR!T51,\"\")","v":""},{"$f":"IF(WorkingR!$B51=\"Investment Income\",WorkingR!U51,\"\")","v":""},{"$f":"IF(WorkingR!$B51=\"Investment Income\",WorkingR!V51,\"\")","v":""},{"$f":"IF(WorkingR!$B51=\"Investment Income\",WorkingR!W51,\"\")","v":""},{"$f":"IF(WorkingR!$B51=\"Investment Income\",WorkingR!X51,\"\")","v":""},{"$f":"IF(WorkingR!$B51=\"Investment Income\",WorkingR!Y51,\"\")","v":""},{"$f":"IF(Descriptions!D52=\"Investment income\",Descriptions!AA52,0)","v":0}]
[{"$f":"IF(Descriptions!D53=\"Investment income\",Descriptions!B53,0)","v":0},{"$f":"IF(WorkingR!$B52=\"Investment Income\",WorkingR!D52,\"\")","v":""},{"$f":"IF(WorkingR!$B52=\"Investment Income\",WorkingR!E52,\"\")","v":""},{"$f":"IF(WorkingR!$B52=\"Investment Income\",WorkingR!F52,\"\")","v":""},{"$f":"IF(WorkingR!$B52=\"Investment Income\",WorkingR!G52,\"\")","v":""},{"$f":"IF(WorkingR!$B52=\"Investment Income\",WorkingR!H52,\"\")","v":""},{"$f":"IF(WorkingR!$B52=\"Investment Income\",WorkingR!I52,\"\")","v":""},{"$f":"IF(WorkingR!$B52=\"Investment Income\",WorkingR!J52,\"\")","v":""},{"$f":"IF(WorkingR!$B52=\"Investment Income\",WorkingR!K52,\"\")","v":""},{"$f":"IF(WorkingR!$B52=\"Investment Income\",WorkingR!L52,\"\")","v":""},{"$f":"IF(WorkingR!$B52=\"Investment Income\",WorkingR!M52,\"\")","v":""},{"$f":"IF(WorkingR!$B52=\"Investment Income\",WorkingR!N52,\"\")","v":""},{"$f":"IF(WorkingR!$B52=\"Investment Income\",WorkingR!O52,\"\")","v":""},{"$f":"IF(WorkingR!$B52=\"Investment Income\",WorkingR!P52,\"\")","v":""},{"$f":"IF(WorkingR!$B52=\"Investment Income\",WorkingR!Q52,\"\")","v":""},{"$f":"IF(WorkingR!$B52=\"Investment Income\",WorkingR!R52,\"\")","v":""},{"$f":"IF(WorkingR!$B52=\"Investment Income\",WorkingR!S52,\"\")","v":""},{"$f":"IF(WorkingR!$B52=\"Investment Income\",WorkingR!T52,\"\")","v":""},{"$f":"IF(WorkingR!$B52=\"Investment Income\",WorkingR!U52,\"\")","v":""},{"$f":"IF(WorkingR!$B52=\"Investment Income\",WorkingR!V52,\"\")","v":""},{"$f":"IF(WorkingR!$B52=\"Investment Income\",WorkingR!W52,\"\")","v":""},{"$f":"IF(WorkingR!$B52=\"Investment Income\",WorkingR!X52,\"\")","v":""},{"$f":"IF(WorkingR!$B52=\"Investment Income\",WorkingR!Y52,\"\")","v":""},{"$f":"IF(Descriptions!D53=\"Investment income\",Descriptions!AA53,0)","v":0}]
[{"$f":"IF(Descriptions!D54=\"Investment income\",Descriptions!B54,0)","v":0},{"$f":"IF(WorkingR!$B53=\"Investment Income\",WorkingR!D53,\"\")","v":""},{"$f":"IF(WorkingR!$B53=\"Investment Income\",WorkingR!E53,\"\")","v":""},{"$f":"IF(WorkingR!$B53=\"Investment Income\",WorkingR!F53,\"\")","v":""},{"$f":"IF(WorkingR!$B53=\"Investment Income\",WorkingR!G53,\"\")","v":""},{"$f":"IF(WorkingR!$B53=\"Investment Income\",WorkingR!H53,\"\")","v":""},{"$f":"IF(WorkingR!$B53=\"Investment Income\",WorkingR!I53,\"\")","v":""},{"$f":"IF(WorkingR!$B53=\"Investment Income\",WorkingR!J53,\"\")","v":""},{"$f":"IF(WorkingR!$B53=\"Investment Income\",WorkingR!K53,\"\")","v":""},{"$f":"IF(WorkingR!$B53=\"Investment Income\",WorkingR!L53,\"\")","v":""},{"$f":"IF(WorkingR!$B53=\"Investment Income\",WorkingR!M53,\"\")","v":""},{"$f":"IF(WorkingR!$B53=\"Investment Income\",WorkingR!N53,\"\")","v":""},{"$f":"IF(WorkingR!$B53=\"Investment Income\",WorkingR!O53,\"\")","v":""},{"$f":"IF(WorkingR!$B53=\"Investment Income\",WorkingR!P53,\"\")","v":""},{"$f":"IF(WorkingR!$B53=\"Investment Income\",WorkingR!Q53,\"\")","v":""},{"$f":"IF(WorkingR!$B53=\"Investment Income\",WorkingR!R53,\"\")","v":""},{"$f":"IF(WorkingR!$B53=\"Investment Income\",WorkingR!S53,\"\")","v":""},{"$f":"IF(WorkingR!$B53=\"Investment Income\",WorkingR!T53,\"\")","v":""},{"$f":"IF(WorkingR!$B53=\"Investment Income\",WorkingR!U53,\"\")","v":""},{"$f":"IF(WorkingR!$B53=\"Investment Income\",WorkingR!V53,\"\")","v":""},{"$f":"IF(WorkingR!$B53=\"Investment Income\",WorkingR!W53,\"\")","v":""},{"$f":"IF(WorkingR!$B53=\"Investment Income\",WorkingR!X53,\"\")","v":""},{"$f":"IF(WorkingR!$B53=\"Investment Income\",WorkingR!Y53,\"\")","v":""},{"$f":"IF(Descriptions!D54=\"Investment income\",Descriptions!AA54,0)","v":0}]
[{"$f":"IF(Descriptions!D55=\"Investment income\",Descriptions!B55,0)","v":0},{"$f":"IF(WorkingR!$B54=\"Investment Income\",WorkingR!D54,\"\")","v":""},{"$f":"IF(WorkingR!$B54=\"Investment Income\",WorkingR!E54,\"\")","v":""},{"$f":"IF(WorkingR!$B54=\"Investment Income\",WorkingR!F54,\"\")","v":""},{"$f":"IF(WorkingR!$B54=\"Investment Income\",WorkingR!G54,\"\")","v":""},{"$f":"IF(WorkingR!$B54=\"Investment Income\",WorkingR!H54,\"\")","v":""},{"$f":"IF(WorkingR!$B54=\"Investment Income\",WorkingR!I54,\"\")","v":""},{"$f":"IF(WorkingR!$B54=\"Investment Income\",WorkingR!J54,\"\")","v":""},{"$f":"IF(WorkingR!$B54=\"Investment Income\",WorkingR!K54,\"\")","v":""},{"$f":"IF(WorkingR!$B54=\"Investment Income\",WorkingR!L54,\"\")","v":""},{"$f":"IF(WorkingR!$B54=\"Investment Income\",WorkingR!M54,\"\")","v":""},{"$f":"IF(WorkingR!$B54=\"Investment Income\",WorkingR!N54,\"\")","v":""},{"$f":"IF(WorkingR!$B54=\"Investment Income\",WorkingR!O54,\"\")","v":""},{"$f":"IF(WorkingR!$B54=\"Investment Income\",WorkingR!P54,\"\")","v":""},{"$f":"IF(WorkingR!$B54=\"Investment Income\",WorkingR!Q54,\"\")","v":""},{"$f":"IF(WorkingR!$B54=\"Investment Income\",WorkingR!R54,\"\")","v":""},{"$f":"IF(WorkingR!$B54=\"Investment Income\",WorkingR!S54,\"\")","v":""},{"$f":"IF(WorkingR!$B54=\"Investment Income\",WorkingR!T54,\"\")","v":""},{"$f":"IF(WorkingR!$B54=\"Investment Income\",WorkingR!U54,\"\")","v":""},{"$f":"IF(WorkingR!$B54=\"Investment Income\",WorkingR!V54,\"\")","v":""},{"$f":"IF(WorkingR!$B54=\"Investment Income\",WorkingR!W54,\"\")","v":""},{"$f":"IF(WorkingR!$B54=\"Investment Income\",WorkingR!X54,\"\")","v":""},{"$f":"IF(WorkingR!$B54=\"Investment Income\",WorkingR!Y54,\"\")","v":""},{"$f":"IF(Descriptions!D55=\"Investment income\",Descriptions!AA55,0)","v":0}]
[{"$f":"IF(Descriptions!D56=\"Investment income\",Descriptions!B56,0)","v":0},{"$f":"IF(WorkingR!$B55=\"Investment Income\",WorkingR!D55,\"\")","v":""},{"$f":"IF(WorkingR!$B55=\"Investment Income\",WorkingR!E55,\"\")","v":""},{"$f":"IF(WorkingR!$B55=\"Investment Income\",WorkingR!F55,\"\")","v":""},{"$f":"IF(WorkingR!$B55=\"Investment Income\",WorkingR!G55,\"\")","v":""},{"$f":"IF(WorkingR!$B55=\"Investment Income\",WorkingR!H55,\"\")","v":""},{"$f":"IF(WorkingR!$B55=\"Investment Income\",WorkingR!I55,\"\")","v":""},{"$f":"IF(WorkingR!$B55=\"Investment Income\",WorkingR!J55,\"\")","v":""},{"$f":"IF(WorkingR!$B55=\"Investment Income\",WorkingR!K55,\"\")","v":""},{"$f":"IF(WorkingR!$B55=\"Investment Income\",WorkingR!L55,\"\")","v":""},{"$f":"IF(WorkingR!$B55=\"Investment Income\",WorkingR!M55,\"\")","v":""},{"$f":"IF(WorkingR!$B55=\"Investment Income\",WorkingR!N55,\"\")","v":""},{"$f":"IF(WorkingR!$B55=\"Investment Income\",WorkingR!O55,\"\")","v":""},{"$f":"IF(WorkingR!$B55=\"Investment Income\",WorkingR!P55,\"\")","v":""},{"$f":"IF(WorkingR!$B55=\"Investment Income\",WorkingR!Q55,\"\")","v":""},{"$f":"IF(WorkingR!$B55=\"Investment Income\",WorkingR!R55,\"\")","v":""},{"$f":"IF(WorkingR!$B55=\"Investment Income\",WorkingR!S55,\"\")","v":""},{"$f":"IF(WorkingR!$B55=\"Investment Income\",WorkingR!T55,\"\")","v":""},{"$f":"IF(WorkingR!$B55=\"Investment Income\",WorkingR!U55,\"\")","v":""},{"$f":"IF(WorkingR!$B55=\"Investment Income\",WorkingR!V55,\"\")","v":""},{"$f":"IF(WorkingR!$B55=\"Investment Income\",WorkingR!W55,\"\")","v":""},{"$f":"IF(WorkingR!$B55=\"Investment Income\",WorkingR!X55,\"\")","v":""},{"$f":"IF(WorkingR!$B55=\"Investment Income\",WorkingR!Y55,\"\")","v":""},{"$f":"IF(Descriptions!D56=\"Investment income\",Descriptions!AA56,0)","v":0}]
[{"$f":"IF(Descriptions!D57=\"Investment income\",Descriptions!B57,0)","v":0},{"$f":"IF(WorkingR!$B56=\"Investment Income\",WorkingR!D56,\"\")","v":""},{"$f":"IF(WorkingR!$B56=\"Investment Income\",WorkingR!E56,\"\")","v":""},{"$f":"IF(WorkingR!$B56=\"Investment Income\",WorkingR!F56,\"\")","v":""},{"$f":"IF(WorkingR!$B56=\"Investment Income\",WorkingR!G56,\"\")","v":""},{"$f":"IF(WorkingR!$B56=\"Investment Income\",WorkingR!H56,\"\")","v":""},{"$f":"IF(WorkingR!$B56=\"Investment Income\",WorkingR!I56,\"\")","v":""},{"$f":"IF(WorkingR!$B56=\"Investment Income\",WorkingR!J56,\"\")","v":""},{"$f":"IF(WorkingR!$B56=\"Investment Income\",WorkingR!K56,\"\")","v":""},{"$f":"IF(WorkingR!$B56=\"Investment Income\",WorkingR!L56,\"\")","v":""},{"$f":"IF(WorkingR!$B56=\"Investment Income\",WorkingR!M56,\"\")","v":""},{"$f":"IF(WorkingR!$B56=\"Investment Income\",WorkingR!N56,\"\")","v":""},{"$f":"IF(WorkingR!$B56=\"Investment Income\",WorkingR!O56,\"\")","v":""},{"$f":"IF(WorkingR!$B56=\"Investment Income\",WorkingR!P56,\"\")","v":""},{"$f":"IF(WorkingR!$B56=\"Investment Income\",WorkingR!Q56,\"\")","v":""},{"$f":"IF(WorkingR!$B56=\"Investment Income\",WorkingR!R56,\"\")","v":""},{"$f":"IF(WorkingR!$B56=\"Investment Income\",WorkingR!S56,\"\")","v":""},{"$f":"IF(WorkingR!$B56=\"Investment Income\",WorkingR!T56,\"\")","v":""},{"$f":"IF(WorkingR!$B56=\"Investment Income\",WorkingR!U56,\"\")","v":""},{"$f":"IF(WorkingR!$B56=\"Investment Income\",WorkingR!V56,\"\")","v":""},{"$f":"IF(WorkingR!$B56=\"Investment Income\",WorkingR!W56,\"\")","v":""},{"$f":"IF(WorkingR!$B56=\"Investment Income\",WorkingR!X56,\"\")","v":""},{"$f":"IF(WorkingR!$B56=\"Investment Income\",WorkingR!Y56,\"\")","v":""},{"$f":"IF(Descriptions!D57=\"Investment income\",Descriptions!AA57,0)","v":0}]
[{"$f":"IF(Descriptions!D58=\"Investment income\",Descriptions!B58,0)","v":0},{"$f":"IF(WorkingR!$B57=\"Investment Income\",WorkingR!D57,\"\")","v":""},{"$f":"IF(WorkingR!$B57=\"Investment Income\",WorkingR!E57,\"\")","v":""},{"$f":"IF(WorkingR!$B57=\"Investment Income\",WorkingR!F57,\"\")","v":""},{"$f":"IF(WorkingR!$B57=\"Investment Income\",WorkingR!G57,\"\")","v":""},{"$f":"IF(WorkingR!$B57=\"Investment Income\",WorkingR!H57,\"\")","v":""},{"$f":"IF(WorkingR!$B57=\"Investment Income\",WorkingR!I57,\"\")","v":""},{"$f":"IF(WorkingR!$B57=\"Investment Income\",WorkingR!J57,\"\")","v":""},{"$f":"IF(WorkingR!$B57=\"Investment Income\",WorkingR!K57,\"\")","v":""},{"$f":"IF(WorkingR!$B57=\"Investment Income\",WorkingR!L57,\"\")","v":""},{"$f":"IF(WorkingR!$B57=\"Investment Income\",WorkingR!M57,\"\")","v":""},{"$f":"IF(WorkingR!$B57=\"Investment Income\",WorkingR!N57,\"\")","v":""},{"$f":"IF(WorkingR!$B57=\"Investment Income\",WorkingR!O57,\"\")","v":""},{"$f":"IF(WorkingR!$B57=\"Investment Income\",WorkingR!P57,\"\")","v":""},{"$f":"IF(WorkingR!$B57=\"Investment Income\",WorkingR!Q57,\"\")","v":""},{"$f":"IF(WorkingR!$B57=\"Investment Income\",WorkingR!R57,\"\")","v":""},{"$f":"IF(WorkingR!$B57=\"Investment Income\",WorkingR!S57,\"\")","v":""},{"$f":"IF(WorkingR!$B57=\"Investment Income\",WorkingR!T57,\"\")","v":""},{"$f":"IF(WorkingR!$B57=\"Investment Income\",WorkingR!U57,\"\")","v":""},{"$f":"IF(WorkingR!$B57=\"Investment Income\",WorkingR!V57,\"\")","v":""},{"$f":"IF(WorkingR!$B57=\"Investment Income\",WorkingR!W57,\"\")","v":""},{"$f":"IF(WorkingR!$B57=\"Investment Income\",WorkingR!X57,\"\")","v":""},{"$f":"IF(WorkingR!$B57=\"Investment Income\",WorkingR!Y57,\"\")","v":""},{"$f":"IF(Descriptions!D58=\"Investment income\",Descriptions!AA58,0)","v":0}]
[{"$f":"IF(Descriptions!D59=\"Investment income\",Descriptions!B59,0)","v":0},{"$f":"IF(WorkingR!$B58=\"Investment Income\",WorkingR!D58,\"\")","v":""},{"$f":"IF(WorkingR!$B58=\"Investment Income\",WorkingR!E58,\"\")","v":""},{"$f":"IF(WorkingR!$B58=\"Investment Income\",WorkingR!F58,\"\")","v":""},{"$f":"IF(WorkingR!$B58=\"Investment Income\",WorkingR!G58,\"\")","v":""},{"$f":"IF(WorkingR!$B58=\"Investment Income\",WorkingR!H58,\"\")","v":""},{"$f":"IF(WorkingR!$B58=\"Investment Income\",WorkingR!I58,\"\")","v":""},{"$f":"IF(WorkingR!$B58=\"Investment Income\",WorkingR!J58,\"\")","v":""},{"$f":"IF(WorkingR!$B58=\"Investment Income\",WorkingR!K58,\"\")","v":""},{"$f":"IF(WorkingR!$B58=\"Investment Income\",WorkingR!L58,\"\")","v":""},{"$f":"IF(WorkingR!$B58=\"Investment Income\",WorkingR!M58,\"\")","v":""},{"$f":"IF(WorkingR!$B58=\"Investment Income\",WorkingR!N58,\"\")","v":""},{"$f":"IF(WorkingR!$B58=\"Investment Income\",WorkingR!O58,\"\")","v":""},{"$f":"IF(WorkingR!$B58=\"Investment Income\",WorkingR!P58,\"\")","v":""},{"$f":"IF(WorkingR!$B58=\"Investment Income\",WorkingR!Q58,\"\")","v":""},{"$f":"IF(WorkingR!$B58=\"Investment Income\",WorkingR!R58,\"\")","v":""},{"$f":"IF(WorkingR!$B58=\"Investment Income\",WorkingR!S58,\"\")","v":""},{"$f":"IF(WorkingR!$B58=\"Investment Income\",WorkingR!T58,\"\")","v":""},{"$f":"IF(WorkingR!$B58=\"Investment Income\",WorkingR!U58,\"\")","v":""},{"$f":"IF(WorkingR!$B58=\"Investment Income\",WorkingR!V58,\"\")","v":""},{"$f":"IF(WorkingR!$B58=\"Investment Income\",WorkingR!W58,\"\")","v":""},{"$f":"IF(WorkingR!$B58=\"Investment Income\",WorkingR!X58,\"\")","v":""},{"$f":"IF(WorkingR!$B58=\"Investment Income\",WorkingR!Y58,\"\")","v":""},{"$f":"IF(Descriptions!D59=\"Investment income\",Descriptions!AA59,0)","v":0}]
[{"$f":"IF(Descriptions!D60=\"Investment income\",Descriptions!B60,0)","v":0},{"$f":"IF(WorkingR!$B59=\"Investment Income\",WorkingR!D59,\"\")","v":""},{"$f":"IF(WorkingR!$B59=\"Investment Income\",WorkingR!E59,\"\")","v":""},{"$f":"IF(WorkingR!$B59=\"Investment Income\",WorkingR!F59,\"\")","v":""},{"$f":"IF(WorkingR!$B59=\"Investment Income\",WorkingR!G59,\"\")","v":""},{"$f":"IF(WorkingR!$B59=\"Investment Income\",WorkingR!H59,\"\")","v":""},{"$f":"IF(WorkingR!$B59=\"Investment Income\",WorkingR!I59,\"\")","v":""},{"$f":"IF(WorkingR!$B59=\"Investment Income\",WorkingR!J59,\"\")","v":""},{"$f":"IF(WorkingR!$B59=\"Investment Income\",WorkingR!K59,\"\")","v":""},{"$f":"IF(WorkingR!$B59=\"Investment Income\",WorkingR!L59,\"\")","v":""},{"$f":"IF(WorkingR!$B59=\"Investment Income\",WorkingR!M59,\"\")","v":""},{"$f":"IF(WorkingR!$B59=\"Investment Income\",WorkingR!N59,\"\")","v":""},{"$f":"IF(WorkingR!$B59=\"Investment Income\",WorkingR!O59,\"\")","v":""},{"$f":"IF(WorkingR!$B59=\"Investment Income\",WorkingR!P59,\"\")","v":""},{"$f":"IF(WorkingR!$B59=\"Investment Income\",WorkingR!Q59,\"\")","v":""},{"$f":"IF(WorkingR!$B59=\"Investment Income\",WorkingR!R59,\"\")","v":""},{"$f":"IF(WorkingR!$B59=\"Investment Income\",WorkingR!S59,\"\")","v":""},{"$f":"IF(WorkingR!$B59=\"Investment Income\",WorkingR!T59,\"\")","v":""},{"$f":"IF(WorkingR!$B59=\"Investment Income\",WorkingR!U59,\"\")","v":""},{"$f":"IF(WorkingR!$B59=\"Investment Income\",WorkingR!V59,\"\")","v":""},{"$f":"IF(WorkingR!$B59=\"Investment Income\",WorkingR!W59,\"\")","v":""},{"$f":"IF(WorkingR!$B59=\"Investment Income\",WorkingR!X59,\"\")","v":""},{"$f":"IF(WorkingR!$B59=\"Investment Income\",WorkingR!Y59,\"\")","v":""},{"$f":"IF(Descriptions!D60=\"Investment income\",Descriptions!AA60,0)","v":0}]
[{"$f":"IF(Descriptions!D61=\"Investment income\",Descriptions!B61,0)","v":0},{"$f":"IF(WorkingR!$B60=\"Investment Income\",WorkingR!D60,\"\")","v":""},{"$f":"IF(WorkingR!$B60=\"Investment Income\",WorkingR!E60,\"\")","v":""},{"$f":"IF(WorkingR!$B60=\"Investment Income\",WorkingR!F60,\"\")","v":""},{"$f":"IF(WorkingR!$B60=\"Investment Income\",WorkingR!G60,\"\")","v":""},{"$f":"IF(WorkingR!$B60=\"Investment Income\",WorkingR!H60,\"\")","v":""},{"$f":"IF(WorkingR!$B60=\"Investment Income\",WorkingR!I60,\"\")","v":""},{"$f":"IF(WorkingR!$B60=\"Investment Income\",WorkingR!J60,\"\")","v":""},{"$f":"IF(WorkingR!$B60=\"Investment Income\",WorkingR!K60,\"\")","v":""},{"$f":"IF(WorkingR!$B60=\"Investment Income\",WorkingR!L60,\"\")","v":""},{"$f":"IF(WorkingR!$B60=\"Investment Income\",WorkingR!M60,\"\")","v":""},{"$f":"IF(WorkingR!$B60=\"Investment Income\",WorkingR!N60,\"\")","v":""},{"$f":"IF(WorkingR!$B60=\"Investment Income\",WorkingR!O60,\"\")","v":""},{"$f":"IF(WorkingR!$B60=\"Investment Income\",WorkingR!P60,\"\")","v":""},{"$f":"IF(WorkingR!$B60=\"Investment Income\",WorkingR!Q60,\"\")","v":""},{"$f":"IF(WorkingR!$B60=\"Investment Income\",WorkingR!R60,\"\")","v":""},{"$f":"IF(WorkingR!$B60=\"Investment Income\",WorkingR!S60,\"\")","v":""},{"$f":"IF(WorkingR!$B60=\"Investment Income\",WorkingR!T60,\"\")","v":""},{"$f":"IF(WorkingR!$B60=\"Investment Income\",WorkingR!U60,\"\")","v":""},{"$f":"IF(WorkingR!$B60=\"Investment Income\",WorkingR!V60,\"\")","v":""},{"$f":"IF(WorkingR!$B60=\"Investment Income\",WorkingR!W60,\"\")","v":""},{"$f":"IF(WorkingR!$B60=\"Investment Income\",WorkingR!X60,\"\")","v":""},{"$f":"IF(WorkingR!$B60=\"Investment Income\",WorkingR!Y60,\"\")","v":""},{"$f":"IF(Descriptions!D61=\"Investment income\",Descriptions!AA61,0)","v":0}]
[{"$f":"IF(Descriptions!D62=\"Investment income\",Descriptions!B62,0)","v":0},{"$f":"IF(WorkingR!$B61=\"Investment Income\",WorkingR!D61,\"\")","v":""},{"$f":"IF(WorkingR!$B61=\"Investment Income\",WorkingR!E61,\"\")","v":""},{"$f":"IF(WorkingR!$B61=\"Investment Income\",WorkingR!F61,\"\")","v":""},{"$f":"IF(WorkingR!$B61=\"Investment Income\",WorkingR!G61,\"\")","v":""},{"$f":"IF(WorkingR!$B61=\"Investment Income\",WorkingR!H61,\"\")","v":""},{"$f":"IF(WorkingR!$B61=\"Investment Income\",WorkingR!I61,\"\")","v":""},{"$f":"IF(WorkingR!$B61=\"Investment Income\",WorkingR!J61,\"\")","v":""},{"$f":"IF(WorkingR!$B61=\"Investment Income\",WorkingR!K61,\"\")","v":""},{"$f":"IF(WorkingR!$B61=\"Investment Income\",WorkingR!L61,\"\")","v":""},{"$f":"IF(WorkingR!$B61=\"Investment Income\",WorkingR!M61,\"\")","v":""},{"$f":"IF(WorkingR!$B61=\"Investment Income\",WorkingR!N61,\"\")","v":""},{"$f":"IF(WorkingR!$B61=\"Investment Income\",WorkingR!O61,\"\")","v":""},{"$f":"IF(WorkingR!$B61=\"Investment Income\",WorkingR!P61,\"\")","v":""},{"$f":"IF(WorkingR!$B61=\"Investment Income\",WorkingR!Q61,\"\")","v":""},{"$f":"IF(WorkingR!$B61=\"Investment Income\",WorkingR!R61,\"\")","v":""},{"$f":"IF(WorkingR!$B61=\"Investment Income\",WorkingR!S61,\"\")","v":""},{"$f":"IF(WorkingR!$B61=\"Investment Income\",WorkingR!T61,\"\")","v":""},{"$f":"IF(WorkingR!$B61=\"Investment Income\",WorkingR!U61,\"\")","v":""},{"$f":"IF(WorkingR!$B61=\"Investment Income\",WorkingR!V61,\"\")","v":""},{"$f":"IF(WorkingR!$B61=\"Investment Income\",WorkingR!W61,\"\")","v":""},{"$f":"IF(WorkingR!$B61=\"Investment Income\",WorkingR!X61,\"\")","v":""},{"$f":"IF(WorkingR!$B61=\"Investment Income\",WorkingR!Y61,\"\")","v":""},{"$f":"IF(Descriptions!D62=\"Investment income\",Descriptions!AA62,0)","v":0}]
[{"$f":"IF(Descriptions!D63=\"Investment income\",Descriptions!B63,0)","v":0},{"$f":"IF(WorkingR!$B62=\"Investment Income\",WorkingR!D62,\"\")","v":""},{"$f":"IF(WorkingR!$B62=\"Investment Income\",WorkingR!E62,\"\")","v":""},{"$f":"IF(WorkingR!$B62=\"Investment Income\",WorkingR!F62,\"\")","v":""},{"$f":"IF(WorkingR!$B62=\"Investment Income\",WorkingR!G62,\"\")","v":""},{"$f":"IF(WorkingR!$B62=\"Investment Income\",WorkingR!H62,\"\")","v":""},{"$f":"IF(WorkingR!$B62=\"Investment Income\",WorkingR!I62,\"\")","v":""},{"$f":"IF(WorkingR!$B62=\"Investment Income\",WorkingR!J62,\"\")","v":""},{"$f":"IF(WorkingR!$B62=\"Investment Income\",WorkingR!K62,\"\")","v":""},{"$f":"IF(WorkingR!$B62=\"Investment Income\",WorkingR!L62,\"\")","v":""},{"$f":"IF(WorkingR!$B62=\"Investment Income\",WorkingR!M62,\"\")","v":""},{"$f":"IF(WorkingR!$B62=\"Investment Income\",WorkingR!N62,\"\")","v":""},{"$f":"IF(WorkingR!$B62=\"Investment Income\",WorkingR!O62,\"\")","v":""},{"$f":"IF(WorkingR!$B62=\"Investment Income\",WorkingR!P62,\"\")","v":""},{"$f":"IF(WorkingR!$B62=\"Investment Income\",WorkingR!Q62,\"\")","v":""},{"$f":"IF(WorkingR!$B62=\"Investment Income\",WorkingR!R62,\"\")","v":""},{"$f":"IF(WorkingR!$B62=\"Investment Income\",WorkingR!S62,\"\")","v":""},{"$f":"IF(WorkingR!$B62=\"Investment Income\",WorkingR!T62,\"\")","v":""},{"$f":"IF(WorkingR!$B62=\"Investment Income\",WorkingR!U62,\"\")","v":""},{"$f":"IF(WorkingR!$B62=\"Investment Income\",WorkingR!V62,\"\")","v":""},{"$f":"IF(WorkingR!$B62=\"Investment Income\",WorkingR!W62,\"\")","v":""},{"$f":"IF(WorkingR!$B62=\"Investment Income\",WorkingR!X62,\"\")","v":""},{"$f":"IF(WorkingR!$B62=\"Investment Income\",WorkingR!Y62,\"\")","v":""},{"$f":"IF(Descriptions!D63=\"Investment income\",Descriptions!AA63,0)","v":0}]
[{"$f":"IF(Descriptions!D64=\"Investment income\",Descriptions!B64,0)","v":0},{"$f":"IF(WorkingR!$B63=\"Investment Income\",WorkingR!D63,\"\")","v":""},{"$f":"IF(WorkingR!$B63=\"Investment Income\",WorkingR!E63,\"\")","v":""},{"$f":"IF(WorkingR!$B63=\"Investment Income\",WorkingR!F63,\"\")","v":""},{"$f":"IF(WorkingR!$B63=\"Investment Income\",WorkingR!G63,\"\")","v":""},{"$f":"IF(WorkingR!$B63=\"Investment Income\",WorkingR!H63,\"\")","v":""},{"$f":"IF(WorkingR!$B63=\"Investment Income\",WorkingR!I63,\"\")","v":""},{"$f":"IF(WorkingR!$B63=\"Investment Income\",WorkingR!J63,\"\")","v":""},{"$f":"IF(WorkingR!$B63=\"Investment Income\",WorkingR!K63,\"\")","v":""},{"$f":"IF(WorkingR!$B63=\"Investment Income\",WorkingR!L63,\"\")","v":""},{"$f":"IF(WorkingR!$B63=\"Investment Income\",WorkingR!M63,\"\")","v":""},{"$f":"IF(WorkingR!$B63=\"Investment Income\",WorkingR!N63,\"\")","v":""},{"$f":"IF(WorkingR!$B63=\"Investment Income\",WorkingR!O63,\"\")","v":""},{"$f":"IF(WorkingR!$B63=\"Investment Income\",WorkingR!P63,\"\")","v":""},{"$f":"IF(WorkingR!$B63=\"Investment Income\",WorkingR!Q63,\"\")","v":""},{"$f":"IF(WorkingR!$B63=\"Investment Income\",WorkingR!R63,\"\")","v":""},{"$f":"IF(WorkingR!$B63=\"Investment Income\",WorkingR!S63,\"\")","v":""},{"$f":"IF(WorkingR!$B63=\"Investment Income\",WorkingR!T63,\"\")","v":""},{"$f":"IF(WorkingR!$B63=\"Investment Income\",WorkingR!U63,\"\")","v":""},{"$f":"IF(WorkingR!$B63=\"Investment Income\",WorkingR!V63,\"\")","v":""},{"$f":"IF(WorkingR!$B63=\"Investment Income\",WorkingR!W63,\"\")","v":""},{"$f":"IF(WorkingR!$B63=\"Investment Income\",WorkingR!X63,\"\")","v":""},{"$f":"IF(WorkingR!$B63=\"Investment Income\",WorkingR!Y63,\"\")","v":""},{"$f":"IF(Descriptions!D64=\"Investment income\",Descriptions!AA64,0)","v":0}]
[{"$f":"IF(Descriptions!D65=\"Investment income\",Descriptions!B65,0)","v":0},{"$f":"IF(WorkingR!$B64=\"Investment Income\",WorkingR!D64,\"\")","v":""},{"$f":"IF(WorkingR!$B64=\"Investment Income\",WorkingR!E64,\"\")","v":""},{"$f":"IF(WorkingR!$B64=\"Investment Income\",WorkingR!F64,\"\")","v":""},{"$f":"IF(WorkingR!$B64=\"Investment Income\",WorkingR!G64,\"\")","v":""},{"$f":"IF(WorkingR!$B64=\"Investment Income\",WorkingR!H64,\"\")","v":""},{"$f":"IF(WorkingR!$B64=\"Investment Income\",WorkingR!I64,\"\")","v":""},{"$f":"IF(WorkingR!$B64=\"Investment Income\",WorkingR!J64,\"\")","v":""},{"$f":"IF(WorkingR!$B64=\"Investment Income\",WorkingR!K64,\"\")","v":""},{"$f":"IF(WorkingR!$B64=\"Investment Income\",WorkingR!L64,\"\")","v":""},{"$f":"IF(WorkingR!$B64=\"Investment Income\",WorkingR!M64,\"\")","v":""},{"$f":"IF(WorkingR!$B64=\"Investment Income\",WorkingR!N64,\"\")","v":""},{"$f":"IF(WorkingR!$B64=\"Investment Income\",WorkingR!O64,\"\")","v":""},{"$f":"IF(WorkingR!$B64=\"Investment Income\",WorkingR!P64,\"\")","v":""},{"$f":"IF(WorkingR!$B64=\"Investment Income\",WorkingR!Q64,\"\")","v":""},{"$f":"IF(WorkingR!$B64=\"Investment Income\",WorkingR!R64,\"\")","v":""},{"$f":"IF(WorkingR!$B64=\"Investment Income\",WorkingR!S64,\"\")","v":""},{"$f":"IF(WorkingR!$B64=\"Investment Income\",WorkingR!T64,\"\")","v":""},{"$f":"IF(WorkingR!$B64=\"Investment Income\",WorkingR!U64,\"\")","v":""},{"$f":"IF(WorkingR!$B64=\"Investment Income\",WorkingR!V64,\"\")","v":""},{"$f":"IF(WorkingR!$B64=\"Investment Income\",WorkingR!W64,\"\")","v":""},{"$f":"IF(WorkingR!$B64=\"Investment Income\",WorkingR!X64,\"\")","v":""},{"$f":"IF(WorkingR!$B64=\"Investment Income\",WorkingR!Y64,\"\")","v":""},{"$f":"IF(Descriptions!D65=\"Investment income\",Descriptions!AA65,0)","v":0}]
[{"$f":"IF(Descriptions!D66=\"Investment income\",Descriptions!B66,0)","v":0},{"$f":"IF(WorkingR!$B65=\"Investment Income\",WorkingR!D65,\"\")","v":""},{"$f":"IF(WorkingR!$B65=\"Investment Income\",WorkingR!E65,\"\")","v":""},{"$f":"IF(WorkingR!$B65=\"Investment Income\",WorkingR!F65,\"\")","v":""},{"$f":"IF(WorkingR!$B65=\"Investment Income\",WorkingR!G65,\"\")","v":""},{"$f":"IF(WorkingR!$B65=\"Investment Income\",WorkingR!H65,\"\")","v":""},{"$f":"IF(WorkingR!$B65=\"Investment Income\",WorkingR!I65,\"\")","v":""},{"$f":"IF(WorkingR!$B65=\"Investment Income\",WorkingR!J65,\"\")","v":""},{"$f":"IF(WorkingR!$B65=\"Investment Income\",WorkingR!K65,\"\")","v":""},{"$f":"IF(WorkingR!$B65=\"Investment Income\",WorkingR!L65,\"\")","v":""},{"$f":"IF(WorkingR!$B65=\"Investment Income\",WorkingR!M65,\"\")","v":""},{"$f":"IF(WorkingR!$B65=\"Investment Income\",WorkingR!N65,\"\")","v":""},{"$f":"IF(WorkingR!$B65=\"Investment Income\",WorkingR!O65,\"\")","v":""},{"$f":"IF(WorkingR!$B65=\"Investment Income\",WorkingR!P65,\"\")","v":""},{"$f":"IF(WorkingR!$B65=\"Investment Income\",WorkingR!Q65,\"\")","v":""},{"$f":"IF(WorkingR!$B65=\"Investment Income\",WorkingR!R65,\"\")","v":""},{"$f":"IF(WorkingR!$B65=\"Investment Income\",WorkingR!S65,\"\")","v":""},{"$f":"IF(WorkingR!$B65=\"Investment Income\",WorkingR!T65,\"\")","v":""},{"$f":"IF(WorkingR!$B65=\"Investment Income\",WorkingR!U65,\"\")","v":""},{"$f":"IF(WorkingR!$B65=\"Investment Income\",WorkingR!V65,\"\")","v":""},{"$f":"IF(WorkingR!$B65=\"Investment Income\",WorkingR!W65,\"\")","v":""},{"$f":"IF(WorkingR!$B65=\"Investment Income\",WorkingR!X65,\"\")","v":""},{"$f":"IF(WorkingR!$B65=\"Investment Income\",WorkingR!Y65,\"\")","v":""},{"$f":"IF(Descriptions!D66=\"Investment income\",Descriptions!AA66,0)","v":0}]
[{"$f":"IF(Descriptions!D67=\"Investment income\",Descriptions!B67,0)","v":0},{"$f":"IF(WorkingR!$B66=\"Investment Income\",WorkingR!D66,\"\")","v":""},{"$f":"IF(WorkingR!$B66=\"Investment Income\",WorkingR!E66,\"\")","v":""},{"$f":"IF(WorkingR!$B66=\"Investment Income\",WorkingR!F66,\"\")","v":""},{"$f":"IF(WorkingR!$B66=\"Investment Income\",WorkingR!G66,\"\")","v":""},{"$f":"IF(WorkingR!$B66=\"Investment Income\",WorkingR!H66,\"\")","v":""},{"$f":"IF(WorkingR!$B66=\"Investment Income\",WorkingR!I66,\"\")","v":""},{"$f":"IF(WorkingR!$B66=\"Investment Income\",WorkingR!J66,\"\")","v":""},{"$f":"IF(WorkingR!$B66=\"Investment Income\",WorkingR!K66,\"\")","v":""},{"$f":"IF(WorkingR!$B66=\"Investment Income\",WorkingR!L66,\"\")","v":""},{"$f":"IF(WorkingR!$B66=\"Investment Income\",WorkingR!M66,\"\")","v":""},{"$f":"IF(WorkingR!$B66=\"Investment Income\",WorkingR!N66,\"\")","v":""},{"$f":"IF(WorkingR!$B66=\"Investment Income\",WorkingR!O66,\"\")","v":""},{"$f":"IF(WorkingR!$B66=\"Investment Income\",WorkingR!P66,\"\")","v":""},{"$f":"IF(WorkingR!$B66=\"Investment Income\",WorkingR!Q66,\"\")","v":""},{"$f":"IF(WorkingR!$B66=\"Investment Income\",WorkingR!R66,\"\")","v":""},{"$f":"IF(WorkingR!$B66=\"Investment Income\",WorkingR!S66,\"\")","v":""},{"$f":"IF(WorkingR!$B66=\"Investment Income\",WorkingR!T66,\"\")","v":""},{"$f":"IF(WorkingR!$B66=\"Investment Income\",WorkingR!U66,\"\")","v":""},{"$f":"IF(WorkingR!$B66=\"Investment Income\",WorkingR!V66,\"\")","v":""},{"$f":"IF(WorkingR!$B66=\"Investment Income\",WorkingR!W66,\"\")","v":""},{"$f":"IF(WorkingR!$B66=\"Investment Income\",WorkingR!X66,\"\")","v":""},{"$f":"IF(WorkingR!$B66=\"Investment Income\",WorkingR!Y66,\"\")","v":""},{"$f":"IF(Descriptions!D67=\"Investment income\",Descriptions!AA67,0)","v":0}]
[{"$f":"IF(Descriptions!D68=\"Investment income\",Descriptions!B68,0)","v":0},{"$f":"IF(WorkingR!$B67=\"Investment Income\",WorkingR!D67,\"\")","v":""},{"$f":"IF(WorkingR!$B67=\"Investment Income\",WorkingR!E67,\"\")","v":""},{"$f":"IF(WorkingR!$B67=\"Investment Income\",WorkingR!F67,\"\")","v":""},{"$f":"IF(WorkingR!$B67=\"Investment Income\",WorkingR!G67,\"\")","v":""},{"$f":"IF(WorkingR!$B67=\"Investment Income\",WorkingR!H67,\"\")","v":""},{"$f":"IF(WorkingR!$B67=\"Investment Income\",WorkingR!I67,\"\")","v":""},{"$f":"IF(WorkingR!$B67=\"Investment Income\",WorkingR!J67,\"\")","v":""},{"$f":"IF(WorkingR!$B67=\"Investment Income\",WorkingR!K67,\"\")","v":""},{"$f":"IF(WorkingR!$B67=\"Investment Income\",WorkingR!L67,\"\")","v":""},{"$f":"IF(WorkingR!$B67=\"Investment Income\",WorkingR!M67,\"\")","v":""},{"$f":"IF(WorkingR!$B67=\"Investment Income\",WorkingR!N67,\"\")","v":""},{"$f":"IF(WorkingR!$B67=\"Investment Income\",WorkingR!O67,\"\")","v":""},{"$f":"IF(WorkingR!$B67=\"Investment Income\",WorkingR!P67,\"\")","v":""},{"$f":"IF(WorkingR!$B67=\"Investment Income\",WorkingR!Q67,\"\")","v":""},{"$f":"IF(WorkingR!$B67=\"Investment Income\",WorkingR!R67,\"\")","v":""},{"$f":"IF(WorkingR!$B67=\"Investment Income\",WorkingR!S67,\"\")","v":""},{"$f":"IF(WorkingR!$B67=\"Investment Income\",WorkingR!T67,\"\")","v":""},{"$f":"IF(WorkingR!$B67=\"Investment Income\",WorkingR!U67,\"\")","v":""},{"$f":"IF(WorkingR!$B67=\"Investment Income\",WorkingR!V67,\"\")","v":""},{"$f":"IF(WorkingR!$B67=\"Investment Income\",WorkingR!W67,\"\")","v":""},{"$f":"IF(WorkingR!$B67=\"Investment Income\",WorkingR!X67,\"\")","v":""},{"$f":"IF(WorkingR!$B67=\"Investment Income\",WorkingR!Y67,\"\")","v":""},{"$f":"IF(Descriptions!D68=\"Investment income\",Descriptions!AA68,0)","v":0}]
[{"$f":"IF(Descriptions!D69=\"Investment income\",Descriptions!B69,0)","v":0},{"$f":"IF(WorkingR!$B68=\"Investment Income\",WorkingR!D68,\"\")","v":""},{"$f":"IF(WorkingR!$B68=\"Investment Income\",WorkingR!E68,\"\")","v":""},{"$f":"IF(WorkingR!$B68=\"Investment Income\",WorkingR!F68,\"\")","v":""},{"$f":"IF(WorkingR!$B68=\"Investment Income\",WorkingR!G68,\"\")","v":""},{"$f":"IF(WorkingR!$B68=\"Investment Income\",WorkingR!H68,\"\")","v":""},{"$f":"IF(WorkingR!$B68=\"Investment Income\",WorkingR!I68,\"\")","v":""},{"$f":"IF(WorkingR!$B68=\"Investment Income\",WorkingR!J68,\"\")","v":""},{"$f":"IF(WorkingR!$B68=\"Investment Income\",WorkingR!K68,\"\")","v":""},{"$f":"IF(WorkingR!$B68=\"Investment Income\",WorkingR!L68,\"\")","v":""},{"$f":"IF(WorkingR!$B68=\"Investment Income\",WorkingR!M68,\"\")","v":""},{"$f":"IF(WorkingR!$B68=\"Investment Income\",WorkingR!N68,\"\")","v":""},{"$f":"IF(WorkingR!$B68=\"Investment Income\",WorkingR!O68,\"\")","v":""},{"$f":"IF(WorkingR!$B68=\"Investment Income\",WorkingR!P68,\"\")","v":""},{"$f":"IF(WorkingR!$B68=\"Investment Income\",WorkingR!Q68,\"\")","v":""},{"$f":"IF(WorkingR!$B68=\"Investment Income\",WorkingR!R68,\"\")","v":""},{"$f":"IF(WorkingR!$B68=\"Investment Income\",WorkingR!S68,\"\")","v":""},{"$f":"IF(WorkingR!$B68=\"Investment Income\",WorkingR!T68,\"\")","v":""},{"$f":"IF(WorkingR!$B68=\"Investment Income\",WorkingR!U68,\"\")","v":""},{"$f":"IF(WorkingR!$B68=\"Investment Income\",WorkingR!V68,\"\")","v":""},{"$f":"IF(WorkingR!$B68=\"Investment Income\",WorkingR!W68,\"\")","v":""},{"$f":"IF(WorkingR!$B68=\"Investment Income\",WorkingR!X68,\"\")","v":""},{"$f":"IF(WorkingR!$B68=\"Investment Income\",WorkingR!Y68,\"\")","v":""},{"$f":"IF(Descriptions!D69=\"Investment income\",Descriptions!AA69,0)","v":0}]
[{"$f":"IF(Descriptions!D70=\"Investment income\",Descriptions!B70,0)","v":0},{"$f":"IF(WorkingR!$B69=\"Investment Income\",WorkingR!D69,\"\")","v":""},{"$f":"IF(WorkingR!$B69=\"Investment Income\",WorkingR!E69,\"\")","v":""},{"$f":"IF(WorkingR!$B69=\"Investment Income\",WorkingR!F69,\"\")","v":""},{"$f":"IF(WorkingR!$B69=\"Investment Income\",WorkingR!G69,\"\")","v":""},{"$f":"IF(WorkingR!$B69=\"Investment Income\",WorkingR!H69,\"\")","v":""},{"$f":"IF(WorkingR!$B69=\"Investment Income\",WorkingR!I69,\"\")","v":""},{"$f":"IF(WorkingR!$B69=\"Investment Income\",WorkingR!J69,\"\")","v":""},{"$f":"IF(WorkingR!$B69=\"Investment Income\",WorkingR!K69,\"\")","v":""},{"$f":"IF(WorkingR!$B69=\"Investment Income\",WorkingR!L69,\"\")","v":""},{"$f":"IF(WorkingR!$B69=\"Investment Income\",WorkingR!M69,\"\")","v":""},{"$f":"IF(WorkingR!$B69=\"Investment Income\",WorkingR!N69,\"\")","v":""},{"$f":"IF(WorkingR!$B69=\"Investment Income\",WorkingR!O69,\"\")","v":""},{"$f":"IF(WorkingR!$B69=\"Investment Income\",WorkingR!P69,\"\")","v":""},{"$f":"IF(WorkingR!$B69=\"Investment Income\",WorkingR!Q69,\"\")","v":""},{"$f":"IF(WorkingR!$B69=\"Investment Income\",WorkingR!R69,\"\")","v":""},{"$f":"IF(WorkingR!$B69=\"Investment Income\",WorkingR!S69,\"\")","v":""},{"$f":"IF(WorkingR!$B69=\"Investment Income\",WorkingR!T69,\"\")","v":""},{"$f":"IF(WorkingR!$B69=\"Investment Income\",WorkingR!U69,\"\")","v":""},{"$f":"IF(WorkingR!$B69=\"Investment Income\",WorkingR!V69,\"\")","v":""},{"$f":"IF(WorkingR!$B69=\"Investment Income\",WorkingR!W69,\"\")","v":""},{"$f":"IF(WorkingR!$B69=\"Investment Income\",WorkingR!X69,\"\")","v":""},{"$f":"IF(WorkingR!$B69=\"Investment Income\",WorkingR!Y69,\"\")","v":""},{"$f":"IF(Descriptions!D70=\"Investment income\",Descriptions!AA70,0)","v":0}]
[{"$f":"IF(Descriptions!D71=\"Investment income\",Descriptions!B71,0)","v":0},{"$f":"IF(WorkingR!$B70=\"Investment Income\",WorkingR!D70,\"\")","v":""},{"$f":"IF(WorkingR!$B70=\"Investment Income\",WorkingR!E70,\"\")","v":""},{"$f":"IF(WorkingR!$B70=\"Investment Income\",WorkingR!F70,\"\")","v":""},{"$f":"IF(WorkingR!$B70=\"Investment Income\",WorkingR!G70,\"\")","v":""},{"$f":"IF(WorkingR!$B70=\"Investment Income\",WorkingR!H70,\"\")","v":""},{"$f":"IF(WorkingR!$B70=\"Investment Income\",WorkingR!I70,\"\")","v":""},{"$f":"IF(WorkingR!$B70=\"Investment Income\",WorkingR!J70,\"\")","v":""},{"$f":"IF(WorkingR!$B70=\"Investment Income\",WorkingR!K70,\"\")","v":""},{"$f":"IF(WorkingR!$B70=\"Investment Income\",WorkingR!L70,\"\")","v":""},{"$f":"IF(WorkingR!$B70=\"Investment Income\",WorkingR!M70,\"\")","v":""},{"$f":"IF(WorkingR!$B70=\"Investment Income\",WorkingR!N70,\"\")","v":""},{"$f":"IF(WorkingR!$B70=\"Investment Income\",WorkingR!O70,\"\")","v":""},{"$f":"IF(WorkingR!$B70=\"Investment Income\",WorkingR!P70,\"\")","v":""},{"$f":"IF(WorkingR!$B70=\"Investment Income\",WorkingR!Q70,\"\")","v":""},{"$f":"IF(WorkingR!$B70=\"Investment Income\",WorkingR!R70,\"\")","v":""},{"$f":"IF(WorkingR!$B70=\"Investment Income\",WorkingR!S70,\"\")","v":""},{"$f":"IF(WorkingR!$B70=\"Investment Income\",WorkingR!T70,\"\")","v":""},{"$f":"IF(WorkingR!$B70=\"Investment Income\",WorkingR!U70,\"\")","v":""},{"$f":"IF(WorkingR!$B70=\"Investment Income\",WorkingR!V70,\"\")","v":""},{"$f":"IF(WorkingR!$B70=\"Investment Income\",WorkingR!W70,\"\")","v":""},{"$f":"IF(WorkingR!$B70=\"Investment Income\",WorkingR!X70,\"\")","v":""},{"$f":"IF(WorkingR!$B70=\"Investment Income\",WorkingR!Y70,\"\")","v":""},{"$f":"IF(Descriptions!D71=\"Investment income\",Descriptions!AA71,0)","v":0}]
[{"$f":"IF(Descriptions!D72=\"Investment income\",Descriptions!B72,0)","v":0},{"$f":"IF(WorkingR!$B71=\"Investment Income\",WorkingR!D71,\"\")","v":""},{"$f":"IF(WorkingR!$B71=\"Investment Income\",WorkingR!E71,\"\")","v":""},{"$f":"IF(WorkingR!$B71=\"Investment Income\",WorkingR!F71,\"\")","v":""},{"$f":"IF(WorkingR!$B71=\"Investment Income\",WorkingR!G71,\"\")","v":""},{"$f":"IF(WorkingR!$B71=\"Investment Income\",WorkingR!H71,\"\")","v":""},{"$f":"IF(WorkingR!$B71=\"Investment Income\",WorkingR!I71,\"\")","v":""},{"$f":"IF(WorkingR!$B71=\"Investment Income\",WorkingR!J71,\"\")","v":""},{"$f":"IF(WorkingR!$B71=\"Investment Income\",WorkingR!K71,\"\")","v":""},{"$f":"IF(WorkingR!$B71=\"Investment Income\",WorkingR!L71,\"\")","v":""},{"$f":"IF(WorkingR!$B71=\"Investment Income\",WorkingR!M71,\"\")","v":""},{"$f":"IF(WorkingR!$B71=\"Investment Income\",WorkingR!N71,\"\")","v":""},{"$f":"IF(WorkingR!$B71=\"Investment Income\",WorkingR!O71,\"\")","v":""},{"$f":"IF(WorkingR!$B71=\"Investment Income\",WorkingR!P71,\"\")","v":""},{"$f":"IF(WorkingR!$B71=\"Investment Income\",WorkingR!Q71,\"\")","v":""},{"$f":"IF(WorkingR!$B71=\"Investment Income\",WorkingR!R71,\"\")","v":""},{"$f":"IF(WorkingR!$B71=\"Investment Income\",WorkingR!S71,\"\")","v":""},{"$f":"IF(WorkingR!$B71=\"Investment Income\",WorkingR!T71,\"\")","v":""},{"$f":"IF(WorkingR!$B71=\"Investment Income\",WorkingR!U71,\"\")","v":""},{"$f":"IF(WorkingR!$B71=\"Investment Income\",WorkingR!V71,\"\")","v":""},{"$f":"IF(WorkingR!$B71=\"Investment Income\",WorkingR!W71,\"\")","v":""},{"$f":"IF(WorkingR!$B71=\"Investment Income\",WorkingR!X71,\"\")","v":""},{"$f":"IF(WorkingR!$B71=\"Investment Income\",WorkingR!Y71,\"\")","v":""},{"$f":"IF(Descriptions!D72=\"Investment income\",Descriptions!AA72,0)","v":0}]
[{"$f":"IF(Descriptions!D73=\"Investment income\",Descriptions!B73,0)","v":0},{"$f":"IF(WorkingR!$B72=\"Investment Income\",WorkingR!D72,\"\")","v":""},{"$f":"IF(WorkingR!$B72=\"Investment Income\",WorkingR!E72,\"\")","v":""},{"$f":"IF(WorkingR!$B72=\"Investment Income\",WorkingR!F72,\"\")","v":""},{"$f":"IF(WorkingR!$B72=\"Investment Income\",WorkingR!G72,\"\")","v":""},{"$f":"IF(WorkingR!$B72=\"Investment Income\",WorkingR!H72,\"\")","v":""},{"$f":"IF(WorkingR!$B72=\"Investment Income\",WorkingR!I72,\"\")","v":""},{"$f":"IF(WorkingR!$B72=\"Investment Income\",WorkingR!J72,\"\")","v":""},{"$f":"IF(WorkingR!$B72=\"Investment Income\",WorkingR!K72,\"\")","v":""},{"$f":"IF(WorkingR!$B72=\"Investment Income\",WorkingR!L72,\"\")","v":""},{"$f":"IF(WorkingR!$B72=\"Investment Income\",WorkingR!M72,\"\")","v":""},{"$f":"IF(WorkingR!$B72=\"Investment Income\",WorkingR!N72,\"\")","v":""},{"$f":"IF(WorkingR!$B72=\"Investment Income\",WorkingR!O72,\"\")","v":""},{"$f":"IF(WorkingR!$B72=\"Investment Income\",WorkingR!P72,\"\")","v":""},{"$f":"IF(WorkingR!$B72=\"Investment Income\",WorkingR!Q72,\"\")","v":""},{"$f":"IF(WorkingR!$B72=\"Investment Income\",WorkingR!R72,\"\")","v":""},{"$f":"IF(WorkingR!$B72=\"Investment Income\",WorkingR!S72,\"\")","v":""},{"$f":"IF(WorkingR!$B72=\"Investment Income\",WorkingR!T72,\"\")","v":""},{"$f":"IF(WorkingR!$B72=\"Investment Income\",WorkingR!U72,\"\")","v":""},{"$f":"IF(WorkingR!$B72=\"Investment Income\",WorkingR!V72,\"\")","v":""},{"$f":"IF(WorkingR!$B72=\"Investment Income\",WorkingR!W72,\"\")","v":""},{"$f":"IF(WorkingR!$B72=\"Investment Income\",WorkingR!X72,\"\")","v":""},{"$f":"IF(WorkingR!$B72=\"Investment Income\",WorkingR!Y72,\"\")","v":""},{"$f":"IF(Descriptions!D73=\"Investment income\",Descriptions!AA73,0)","v":0}]
[{"$f":"IF(Descriptions!D74=\"Investment income\",Descriptions!B74,0)","v":0},{"$f":"IF(WorkingR!$B73=\"Investment Income\",WorkingR!D73,\"\")","v":""},{"$f":"IF(WorkingR!$B73=\"Investment Income\",WorkingR!E73,\"\")","v":""},{"$f":"IF(WorkingR!$B73=\"Investment Income\",WorkingR!F73,\"\")","v":""},{"$f":"IF(WorkingR!$B73=\"Investment Income\",WorkingR!G73,\"\")","v":""},{"$f":"IF(WorkingR!$B73=\"Investment Income\",WorkingR!H73,\"\")","v":""},{"$f":"IF(WorkingR!$B73=\"Investment Income\",WorkingR!I73,\"\")","v":""},{"$f":"IF(WorkingR!$B73=\"Investment Income\",WorkingR!J73,\"\")","v":""},{"$f":"IF(WorkingR!$B73=\"Investment Income\",WorkingR!K73,\"\")","v":""},{"$f":"IF(WorkingR!$B73=\"Investment Income\",WorkingR!L73,\"\")","v":""},{"$f":"IF(WorkingR!$B73=\"Investment Income\",WorkingR!M73,\"\")","v":""},{"$f":"IF(WorkingR!$B73=\"Investment Income\",WorkingR!N73,\"\")","v":""},{"$f":"IF(WorkingR!$B73=\"Investment Income\",WorkingR!O73,\"\")","v":""},{"$f":"IF(WorkingR!$B73=\"Investment Income\",WorkingR!P73,\"\")","v":""},{"$f":"IF(WorkingR!$B73=\"Investment Income\",WorkingR!Q73,\"\")","v":""},{"$f":"IF(WorkingR!$B73=\"Investment Income\",WorkingR!R73,\"\")","v":""},{"$f":"IF(WorkingR!$B73=\"Investment Income\",WorkingR!S73,\"\")","v":""},{"$f":"IF(WorkingR!$B73=\"Investment Income\",WorkingR!T73,\"\")","v":""},{"$f":"IF(WorkingR!$B73=\"Investment Income\",WorkingR!U73,\"\")","v":""},{"$f":"IF(WorkingR!$B73=\"Investment Income\",WorkingR!V73,\"\")","v":""},{"$f":"IF(WorkingR!$B73=\"Investment Income\",WorkingR!W73,\"\")","v":""},{"$f":"IF(WorkingR!$B73=\"Investment Income\",WorkingR!X73,\"\")","v":""},{"$f":"IF(WorkingR!$B73=\"Investment Income\",WorkingR!Y73,\"\")","v":""},{"$f":"IF(Descriptions!D74=\"Investment income\",Descriptions!AA74,0)","v":0}]
[{"$f":"IF(Descriptions!D75=\"Investment income\",Descriptions!B75,0)","v":0},{"$f":"IF(WorkingR!$B74=\"Investment Income\",WorkingR!D74,\"\")","v":""},{"$f":"IF(WorkingR!$B74=\"Investment Income\",WorkingR!E74,\"\")","v":""},{"$f":"IF(WorkingR!$B74=\"Investment Income\",WorkingR!F74,\"\")","v":""},{"$f":"IF(WorkingR!$B74=\"Investment Income\",WorkingR!G74,\"\")","v":""},{"$f":"IF(WorkingR!$B74=\"Investment Income\",WorkingR!H74,\"\")","v":""},{"$f":"IF(WorkingR!$B74=\"Investment Income\",WorkingR!I74,\"\")","v":""},{"$f":"IF(WorkingR!$B74=\"Investment Income\",WorkingR!J74,\"\")","v":""},{"$f":"IF(WorkingR!$B74=\"Investment Income\",WorkingR!K74,\"\")","v":""},{"$f":"IF(WorkingR!$B74=\"Investment Income\",WorkingR!L74,\"\")","v":""},{"$f":"IF(WorkingR!$B74=\"Investment Income\",WorkingR!M74,\"\")","v":""},{"$f":"IF(WorkingR!$B74=\"Investment Income\",WorkingR!N74,\"\")","v":""},{"$f":"IF(WorkingR!$B74=\"Investment Income\",WorkingR!O74,\"\")","v":""},{"$f":"IF(WorkingR!$B74=\"Investment Income\",WorkingR!P74,\"\")","v":""},{"$f":"IF(WorkingR!$B74=\"Investment Income\",WorkingR!Q74,\"\")","v":""},{"$f":"IF(WorkingR!$B74=\"Investment Income\",WorkingR!R74,\"\")","v":""},{"$f":"IF(WorkingR!$B74=\"Investment Income\",WorkingR!S74,\"\")","v":""},{"$f":"IF(WorkingR!$B74=\"Investment Income\",WorkingR!T74,\"\")","v":""},{"$f":"IF(WorkingR!$B74=\"Investment Income\",WorkingR!U74,\"\")","v":""},{"$f":"IF(WorkingR!$B74=\"Investment Income\",WorkingR!V74,\"\")","v":""},{"$f":"IF(WorkingR!$B74=\"Investment Income\",WorkingR!W74,\"\")","v":""},{"$f":"IF(WorkingR!$B74=\"Investment Income\",WorkingR!X74,\"\")","v":""},{"$f":"IF(WorkingR!$B74=\"Investment Income\",WorkingR!Y74,\"\")","v":""},{"$f":"IF(Descriptions!D75=\"Investment income\",Descriptions!AA75,0)","v":0}]
[{"$f":"IF(Descriptions!D76=\"Investment income\",Descriptions!B76,0)","v":0},{"$f":"IF(WorkingR!$B75=\"Investment Income\",WorkingR!D75,\"\")","v":""},{"$f":"IF(WorkingR!$B75=\"Investment Income\",WorkingR!E75,\"\")","v":""},{"$f":"IF(WorkingR!$B75=\"Investment Income\",WorkingR!F75,\"\")","v":""},{"$f":"IF(WorkingR!$B75=\"Investment Income\",WorkingR!G75,\"\")","v":""},{"$f":"IF(WorkingR!$B75=\"Investment Income\",WorkingR!H75,\"\")","v":""},{"$f":"IF(WorkingR!$B75=\"Investment Income\",WorkingR!I75,\"\")","v":""},{"$f":"IF(WorkingR!$B75=\"Investment Income\",WorkingR!J75,\"\")","v":""},{"$f":"IF(WorkingR!$B75=\"Investment Income\",WorkingR!K75,\"\")","v":""},{"$f":"IF(WorkingR!$B75=\"Investment Income\",WorkingR!L75,\"\")","v":""},{"$f":"IF(WorkingR!$B75=\"Investment Income\",WorkingR!M75,\"\")","v":""},{"$f":"IF(WorkingR!$B75=\"Investment Income\",WorkingR!N75,\"\")","v":""},{"$f":"IF(WorkingR!$B75=\"Investment Income\",WorkingR!O75,\"\")","v":""},{"$f":"IF(WorkingR!$B75=\"Investment Income\",WorkingR!P75,\"\")","v":""},{"$f":"IF(WorkingR!$B75=\"Investment Income\",WorkingR!Q75,\"\")","v":""},{"$f":"IF(WorkingR!$B75=\"Investment Income\",WorkingR!R75,\"\")","v":""},{"$f":"IF(WorkingR!$B75=\"Investment Income\",WorkingR!S75,\"\")","v":""},{"$f":"IF(WorkingR!$B75=\"Investment Income\",WorkingR!T75,\"\")","v":""},{"$f":"IF(WorkingR!$B75=\"Investment Income\",WorkingR!U75,\"\")","v":""},{"$f":"IF(WorkingR!$B75=\"Investment Income\",WorkingR!V75,\"\")","v":""},{"$f":"IF(WorkingR!$B75=\"Investment Income\",WorkingR!W75,\"\")","v":""},{"$f":"IF(WorkingR!$B75=\"Investment Income\",WorkingR!X75,\"\")","v":""},{"$f":"IF(WorkingR!$B75=\"Investment Income\",WorkingR!Y75,\"\")","v":""},{"$f":"IF(Descriptions!D76=\"Investment income\",Descriptions!AA76,0)","v":0}]
[{"$f":"IF(Descriptions!D77=\"Investment income\",Descriptions!B77,0)","v":0},{"$f":"IF(WorkingR!$B76=\"Investment Income\",WorkingR!D76,\"\")","v":""},{"$f":"IF(WorkingR!$B76=\"Investment Income\",WorkingR!E76,\"\")","v":""},{"$f":"IF(WorkingR!$B76=\"Investment Income\",WorkingR!F76,\"\")","v":""},{"$f":"IF(WorkingR!$B76=\"Investment Income\",WorkingR!G76,\"\")","v":""},{"$f":"IF(WorkingR!$B76=\"Investment Income\",WorkingR!H76,\"\")","v":""},{"$f":"IF(WorkingR!$B76=\"Investment Income\",WorkingR!I76,\"\")","v":""},{"$f":"IF(WorkingR!$B76=\"Investment Income\",WorkingR!J76,\"\")","v":""},{"$f":"IF(WorkingR!$B76=\"Investment Income\",WorkingR!K76,\"\")","v":""},{"$f":"IF(WorkingR!$B76=\"Investment Income\",WorkingR!L76,\"\")","v":""},{"$f":"IF(WorkingR!$B76=\"Investment Income\",WorkingR!M76,\"\")","v":""},{"$f":"IF(WorkingR!$B76=\"Investment Income\",WorkingR!N76,\"\")","v":""},{"$f":"IF(WorkingR!$B76=\"Investment Income\",WorkingR!O76,\"\")","v":""},{"$f":"IF(WorkingR!$B76=\"Investment Income\",WorkingR!P76,\"\")","v":""},{"$f":"IF(WorkingR!$B76=\"Investment Income\",WorkingR!Q76,\"\")","v":""},{"$f":"IF(WorkingR!$B76=\"Investment Income\",WorkingR!R76,\"\")","v":""},{"$f":"IF(WorkingR!$B76=\"Investment Income\",WorkingR!S76,\"\")","v":""},{"$f":"IF(WorkingR!$B76=\"Investment Income\",WorkingR!T76,\"\")","v":""},{"$f":"IF(WorkingR!$B76=\"Investment Income\",WorkingR!U76,\"\")","v":""},{"$f":"IF(WorkingR!$B76=\"Investment Income\",WorkingR!V76,\"\")","v":""},{"$f":"IF(WorkingR!$B76=\"Investment Income\",WorkingR!W76,\"\")","v":""},{"$f":"IF(WorkingR!$B76=\"Investment Income\",WorkingR!X76,\"\")","v":""},{"$f":"IF(WorkingR!$B76=\"Investment Income\",WorkingR!Y76,\"\")","v":""},{"$f":"IF(Descriptions!D77=\"Investment income\",Descriptions!AA77,0)","v":0}]
[{"$f":"IF(Descriptions!D78=\"Investment income\",Descriptions!B78,0)","v":0},{"$f":"IF(WorkingR!$B77=\"Investment Income\",WorkingR!D77,\"\")","v":""},{"$f":"IF(WorkingR!$B77=\"Investment Income\",WorkingR!E77,\"\")","v":""},{"$f":"IF(WorkingR!$B77=\"Investment Income\",WorkingR!F77,\"\")","v":""},{"$f":"IF(WorkingR!$B77=\"Investment Income\",WorkingR!G77,\"\")","v":""},{"$f":"IF(WorkingR!$B77=\"Investment Income\",WorkingR!H77,\"\")","v":""},{"$f":"IF(WorkingR!$B77=\"Investment Income\",WorkingR!I77,\"\")","v":""},{"$f":"IF(WorkingR!$B77=\"Investment Income\",WorkingR!J77,\"\")","v":""},{"$f":"IF(WorkingR!$B77=\"Investment Income\",WorkingR!K77,\"\")","v":""},{"$f":"IF(WorkingR!$B77=\"Investment Income\",WorkingR!L77,\"\")","v":""},{"$f":"IF(WorkingR!$B77=\"Investment Income\",WorkingR!M77,\"\")","v":""},{"$f":"IF(WorkingR!$B77=\"Investment Income\",WorkingR!N77,\"\")","v":""},{"$f":"IF(WorkingR!$B77=\"Investment Income\",WorkingR!O77,\"\")","v":""},{"$f":"IF(WorkingR!$B77=\"Investment Income\",WorkingR!P77,\"\")","v":""},{"$f":"IF(WorkingR!$B77=\"Investment Income\",WorkingR!Q77,\"\")","v":""},{"$f":"IF(WorkingR!$B77=\"Investment Income\",WorkingR!R77,\"\")","v":""},{"$f":"IF(WorkingR!$B77=\"Investment Income\",WorkingR!S77,\"\")","v":""},{"$f":"IF(WorkingR!$B77=\"Investment Income\",WorkingR!T77,\"\")","v":""},{"$f":"IF(WorkingR!$B77=\"Investment Income\",WorkingR!U77,\"\")","v":""},{"$f":"IF(WorkingR!$B77=\"Investment Income\",WorkingR!V77,\"\")","v":""},{"$f":"IF(WorkingR!$B77=\"Investment Income\",WorkingR!W77,\"\")","v":""},{"$f":"IF(WorkingR!$B77=\"Investment Income\",WorkingR!X77,\"\")","v":""},{"$f":"IF(WorkingR!$B77=\"Investment Income\",WorkingR!Y77,\"\")","v":""},{"$f":"IF(Descriptions!D78=\"Investment income\",Descriptions!AA78,0)","v":0}]
[{"$f":"IF(Descriptions!D79=\"Investment income\",Descriptions!B79,0)","v":0},{"$f":"IF(WorkingR!$B78=\"Investment Income\",WorkingR!D78,\"\")","v":""},{"$f":"IF(WorkingR!$B78=\"Investment Income\",WorkingR!E78,\"\")","v":""},{"$f":"IF(WorkingR!$B78=\"Investment Income\",WorkingR!F78,\"\")","v":""},{"$f":"IF(WorkingR!$B78=\"Investment Income\",WorkingR!G78,\"\")","v":""},{"$f":"IF(WorkingR!$B78=\"Investment Income\",WorkingR!H78,\"\")","v":""},{"$f":"IF(WorkingR!$B78=\"Investment Income\",WorkingR!I78,\"\")","v":""},{"$f":"IF(WorkingR!$B78=\"Investment Income\",WorkingR!J78,\"\")","v":""},{"$f":"IF(WorkingR!$B78=\"Investment Income\",WorkingR!K78,\"\")","v":""},{"$f":"IF(WorkingR!$B78=\"Investment Income\",WorkingR!L78,\"\")","v":""},{"$f":"IF(WorkingR!$B78=\"Investment Income\",WorkingR!M78,\"\")","v":""},{"$f":"IF(WorkingR!$B78=\"Investment Income\",WorkingR!N78,\"\")","v":""},{"$f":"IF(WorkingR!$B78=\"Investment Income\",WorkingR!O78,\"\")","v":""},{"$f":"IF(WorkingR!$B78=\"Investment Income\",WorkingR!P78,\"\")","v":""},{"$f":"IF(WorkingR!$B78=\"Investment Income\",WorkingR!Q78,\"\")","v":""},{"$f":"IF(WorkingR!$B78=\"Investment Income\",WorkingR!R78,\"\")","v":""},{"$f":"IF(WorkingR!$B78=\"Investment Income\",WorkingR!S78,\"\")","v":""},{"$f":"IF(WorkingR!$B78=\"Investment Income\",WorkingR!T78,\"\")","v":""},{"$f":"IF(WorkingR!$B78=\"Investment Income\",WorkingR!U78,\"\")","v":""},{"$f":"IF(WorkingR!$B78=\"Investment Income\",WorkingR!V78,\"\")","v":""},{"$f":"IF(WorkingR!$B78=\"Investment Income\",WorkingR!W78,\"\")","v":""},{"$f":"IF(WorkingR!$B78=\"Investment Income\",WorkingR!X78,\"\")","v":""},{"$f":"IF(WorkingR!$B78=\"Investment Income\",WorkingR!Y78,\"\")","v":""},{"$f":"IF(Descriptions!D79=\"Investment income\",Descriptions!AA79,0)","v":0}]
[{"$f":"IF(Descriptions!D80=\"Investment income\",Descriptions!B80,0)","v":0},{"$f":"IF(WorkingR!$B79=\"Investment Income\",WorkingR!D79,\"\")","v":""},{"$f":"IF(WorkingR!$B79=\"Investment Income\",WorkingR!E79,\"\")","v":""},{"$f":"IF(WorkingR!$B79=\"Investment Income\",WorkingR!F79,\"\")","v":""},{"$f":"IF(WorkingR!$B79=\"Investment Income\",WorkingR!G79,\"\")","v":""},{"$f":"IF(WorkingR!$B79=\"Investment Income\",WorkingR!H79,\"\")","v":""},{"$f":"IF(WorkingR!$B79=\"Investment Income\",WorkingR!I79,\"\")","v":""},{"$f":"IF(WorkingR!$B79=\"Investment Income\",WorkingR!J79,\"\")","v":""},{"$f":"IF(WorkingR!$B79=\"Investment Income\",WorkingR!K79,\"\")","v":""},{"$f":"IF(WorkingR!$B79=\"Investment Income\",WorkingR!L79,\"\")","v":""},{"$f":"IF(WorkingR!$B79=\"Investment Income\",WorkingR!M79,\"\")","v":""},{"$f":"IF(WorkingR!$B79=\"Investment Income\",WorkingR!N79,\"\")","v":""},{"$f":"IF(WorkingR!$B79=\"Investment Income\",WorkingR!O79,\"\")","v":""},{"$f":"IF(WorkingR!$B79=\"Investment Income\",WorkingR!P79,\"\")","v":""},{"$f":"IF(WorkingR!$B79=\"Investment Income\",WorkingR!Q79,\"\")","v":""},{"$f":"IF(WorkingR!$B79=\"Investment Income\",WorkingR!R79,\"\")","v":""},{"$f":"IF(WorkingR!$B79=\"Investment Income\",WorkingR!S79,\"\")","v":""},{"$f":"IF(WorkingR!$B79=\"Investment Income\",WorkingR!T79,\"\")","v":""},{"$f":"IF(WorkingR!$B79=\"Investment Income\",WorkingR!U79,\"\")","v":""},{"$f":"IF(WorkingR!$B79=\"Investment Income\",WorkingR!V79,\"\")","v":""},{"$f":"IF(WorkingR!$B79=\"Investment Income\",WorkingR!W79,\"\")","v":""},{"$f":"IF(WorkingR!$B79=\"Investment Income\",WorkingR!X79,\"\")","v":""},{"$f":"IF(WorkingR!$B79=\"Investment Income\",WorkingR!Y79,\"\")","v":""},{"$f":"IF(Descriptions!D80=\"Investment income\",Descriptions!AA80,0)","v":0}]
[{"$f":"IF(Descriptions!D81=\"Investment income\",Descriptions!B81,0)","v":0},{"$f":"IF(WorkingR!$B80=\"Investment Income\",WorkingR!D80,\"\")","v":""},{"$f":"IF(WorkingR!$B80=\"Investment Income\",WorkingR!E80,\"\")","v":""},{"$f":"IF(WorkingR!$B80=\"Investment Income\",WorkingR!F80,\"\")","v":""},{"$f":"IF(WorkingR!$B80=\"Investment Income\",WorkingR!G80,\"\")","v":""},{"$f":"IF(WorkingR!$B80=\"Investment Income\",WorkingR!H80,\"\")","v":""},{"$f":"IF(WorkingR!$B80=\"Investment Income\",WorkingR!I80,\"\")","v":""},{"$f":"IF(WorkingR!$B80=\"Investment Income\",WorkingR!J80,\"\")","v":""},{"$f":"IF(WorkingR!$B80=\"Investment Income\",WorkingR!K80,\"\")","v":""},{"$f":"IF(WorkingR!$B80=\"Investment Income\",WorkingR!L80,\"\")","v":""},{"$f":"IF(WorkingR!$B80=\"Investment Income\",WorkingR!M80,\"\")","v":""},{"$f":"IF(WorkingR!$B80=\"Investment Income\",WorkingR!N80,\"\")","v":""},{"$f":"IF(WorkingR!$B80=\"Investment Income\",WorkingR!O80,\"\")","v":""},{"$f":"IF(WorkingR!$B80=\"Investment Income\",WorkingR!P80,\"\")","v":""},{"$f":"IF(WorkingR!$B80=\"Investment Income\",WorkingR!Q80,\"\")","v":""},{"$f":"IF(WorkingR!$B80=\"Investment Income\",WorkingR!R80,\"\")","v":""},{"$f":"IF(WorkingR!$B80=\"Investment Income\",WorkingR!S80,\"\")","v":""},{"$f":"IF(WorkingR!$B80=\"Investment Income\",WorkingR!T80,\"\")","v":""},{"$f":"IF(WorkingR!$B80=\"Investment Income\",WorkingR!U80,\"\")","v":""},{"$f":"IF(WorkingR!$B80=\"Investment Income\",WorkingR!V80,\"\")","v":""},{"$f":"IF(WorkingR!$B80=\"Investment Income\",WorkingR!W80,\"\")","v":""},{"$f":"IF(WorkingR!$B80=\"Investment Income\",WorkingR!X80,\"\")","v":""},{"$f":"IF(WorkingR!$B80=\"Investment Income\",WorkingR!Y80,\"\")","v":""},{"$f":"IF(Descriptions!D81=\"Investment income\",Descriptions!AA81,0)","v":0}]
[{"$f":"IF(Descriptions!D82=\"Investment income\",Descriptions!B82,0)","v":0},{"$f":"IF(WorkingR!$B81=\"Investment Income\",WorkingR!D81,\"\")","v":""},{"$f":"IF(WorkingR!$B81=\"Investment Income\",WorkingR!E81,\"\")","v":""},{"$f":"IF(WorkingR!$B81=\"Investment Income\",WorkingR!F81,\"\")","v":""},{"$f":"IF(WorkingR!$B81=\"Investment Income\",WorkingR!G81,\"\")","v":""},{"$f":"IF(WorkingR!$B81=\"Investment Income\",WorkingR!H81,\"\")","v":""},{"$f":"IF(WorkingR!$B81=\"Investment Income\",WorkingR!I81,\"\")","v":""},{"$f":"IF(WorkingR!$B81=\"Investment Income\",WorkingR!J81,\"\")","v":""},{"$f":"IF(WorkingR!$B81=\"Investment Income\",WorkingR!K81,\"\")","v":""},{"$f":"IF(WorkingR!$B81=\"Investment Income\",WorkingR!L81,\"\")","v":""},{"$f":"IF(WorkingR!$B81=\"Investment Income\",WorkingR!M81,\"\")","v":""},{"$f":"IF(WorkingR!$B81=\"Investment Income\",WorkingR!N81,\"\")","v":""},{"$f":"IF(WorkingR!$B81=\"Investment Income\",WorkingR!O81,\"\")","v":""},{"$f":"IF(WorkingR!$B81=\"Investment Income\",WorkingR!P81,\"\")","v":""},{"$f":"IF(WorkingR!$B81=\"Investment Income\",WorkingR!Q81,\"\")","v":""},{"$f":"IF(WorkingR!$B81=\"Investment Income\",WorkingR!R81,\"\")","v":""},{"$f":"IF(WorkingR!$B81=\"Investment Income\",WorkingR!S81,\"\")","v":""},{"$f":"IF(WorkingR!$B81=\"Investment Income\",WorkingR!T81,\"\")","v":""},{"$f":"IF(WorkingR!$B81=\"Investment Income\",WorkingR!U81,\"\")","v":""},{"$f":"IF(WorkingR!$B81=\"Investment Income\",WorkingR!V81,\"\")","v":""},{"$f":"IF(WorkingR!$B81=\"Investment Income\",WorkingR!W81,\"\")","v":""},{"$f":"IF(WorkingR!$B81=\"Investment Income\",WorkingR!X81,\"\")","v":""},{"$f":"IF(WorkingR!$B81=\"Investment Income\",WorkingR!Y81,\"\")","v":""},{"$f":"IF(Descriptions!D82=\"Investment income\",Descriptions!AA82,0)","v":0}]
[{"$f":"IF(Descriptions!D83=\"Investment income\",Descriptions!B83,0)","v":0},{"$f":"IF(WorkingR!$B82=\"Investment Income\",WorkingR!D82,\"\")","v":""},{"$f":"IF(WorkingR!$B82=\"Investment Income\",WorkingR!E82,\"\")","v":""},{"$f":"IF(WorkingR!$B82=\"Investment Income\",WorkingR!F82,\"\")","v":""},{"$f":"IF(WorkingR!$B82=\"Investment Income\",WorkingR!G82,\"\")","v":""},{"$f":"IF(WorkingR!$B82=\"Investment Income\",WorkingR!H82,\"\")","v":""},{"$f":"IF(WorkingR!$B82=\"Investment Income\",WorkingR!I82,\"\")","v":""},{"$f":"IF(WorkingR!$B82=\"Investment Income\",WorkingR!J82,\"\")","v":""},{"$f":"IF(WorkingR!$B82=\"Investment Income\",WorkingR!K82,\"\")","v":""},{"$f":"IF(WorkingR!$B82=\"Investment Income\",WorkingR!L82,\"\")","v":""},{"$f":"IF(WorkingR!$B82=\"Investment Income\",WorkingR!M82,\"\")","v":""},{"$f":"IF(WorkingR!$B82=\"Investment Income\",WorkingR!N82,\"\")","v":""},{"$f":"IF(WorkingR!$B82=\"Investment Income\",WorkingR!O82,\"\")","v":""},{"$f":"IF(WorkingR!$B82=\"Investment Income\",WorkingR!P82,\"\")","v":""},{"$f":"IF(WorkingR!$B82=\"Investment Income\",WorkingR!Q82,\"\")","v":""},{"$f":"IF(WorkingR!$B82=\"Investment Income\",WorkingR!R82,\"\")","v":""},{"$f":"IF(WorkingR!$B82=\"Investment Income\",WorkingR!S82,\"\")","v":""},{"$f":"IF(WorkingR!$B82=\"Investment Income\",WorkingR!T82,\"\")","v":""},{"$f":"IF(WorkingR!$B82=\"Investment Income\",WorkingR!U82,\"\")","v":""},{"$f":"IF(WorkingR!$B82=\"Investment Income\",WorkingR!V82,\"\")","v":""},{"$f":"IF(WorkingR!$B82=\"Investment Income\",WorkingR!W82,\"\")","v":""},{"$f":"IF(WorkingR!$B82=\"Investment Income\",WorkingR!X82,\"\")","v":""},{"$f":"IF(WorkingR!$B82=\"Investment Income\",WorkingR!Y82,\"\")","v":""},{"$f":"IF(Descriptions!D83=\"Investment income\",Descriptions!AA83,0)","v":0}]
[{"$f":"IF(Descriptions!D84=\"Investment income\",Descriptions!B84,0)","v":0},{"$f":"IF(WorkingR!$B83=\"Investment Income\",WorkingR!D83,\"\")","v":""},{"$f":"IF(WorkingR!$B83=\"Investment Income\",WorkingR!E83,\"\")","v":""},{"$f":"IF(WorkingR!$B83=\"Investment Income\",WorkingR!F83,\"\")","v":""},{"$f":"IF(WorkingR!$B83=\"Investment Income\",WorkingR!G83,\"\")","v":""},{"$f":"IF(WorkingR!$B83=\"Investment Income\",WorkingR!H83,\"\")","v":""},{"$f":"IF(WorkingR!$B83=\"Investment Income\",WorkingR!I83,\"\")","v":""},{"$f":"IF(WorkingR!$B83=\"Investment Income\",WorkingR!J83,\"\")","v":""},{"$f":"IF(WorkingR!$B83=\"Investment Income\",WorkingR!K83,\"\")","v":""},{"$f":"IF(WorkingR!$B83=\"Investment Income\",WorkingR!L83,\"\")","v":""},{"$f":"IF(WorkingR!$B83=\"Investment Income\",WorkingR!M83,\"\")","v":""},{"$f":"IF(WorkingR!$B83=\"Investment Income\",WorkingR!N83,\"\")","v":""},{"$f":"IF(WorkingR!$B83=\"Investment Income\",WorkingR!O83,\"\")","v":""},{"$f":"IF(WorkingR!$B83=\"Investment Income\",WorkingR!P83,\"\")","v":""},{"$f":"IF(WorkingR!$B83=\"Investment Income\",WorkingR!Q83,\"\")","v":""},{"$f":"IF(WorkingR!$B83=\"Investment Income\",WorkingR!R83,\"\")","v":""},{"$f":"IF(WorkingR!$B83=\"Investment Income\",WorkingR!S83,\"\")","v":""},{"$f":"IF(WorkingR!$B83=\"Investment Income\",WorkingR!T83,\"\")","v":""},{"$f":"IF(WorkingR!$B83=\"Investment Income\",WorkingR!U83,\"\")","v":""},{"$f":"IF(WorkingR!$B83=\"Investment Income\",WorkingR!V83,\"\")","v":""},{"$f":"IF(WorkingR!$B83=\"Investment Income\",WorkingR!W83,\"\")","v":""},{"$f":"IF(WorkingR!$B83=\"Investment Income\",WorkingR!X83,\"\")","v":""},{"$f":"IF(WorkingR!$B83=\"Investment Income\",WorkingR!Y83,\"\")","v":""},{"$f":"IF(Descriptions!D84=\"Investment income\",Descriptions!AA84,0)","v":0}]
[{"$f":"IF(Descriptions!D85=\"Investment income\",Descriptions!B85,0)","v":0},{"$f":"IF(WorkingR!$B84=\"Investment Income\",WorkingR!D84,\"\")","v":""},{"$f":"IF(WorkingR!$B84=\"Investment Income\",WorkingR!E84,\"\")","v":""},{"$f":"IF(WorkingR!$B84=\"Investment Income\",WorkingR!F84,\"\")","v":""},{"$f":"IF(WorkingR!$B84=\"Investment Income\",WorkingR!G84,\"\")","v":""},{"$f":"IF(WorkingR!$B84=\"Investment Income\",WorkingR!H84,\"\")","v":""},{"$f":"IF(WorkingR!$B84=\"Investment Income\",WorkingR!I84,\"\")","v":""},{"$f":"IF(WorkingR!$B84=\"Investment Income\",WorkingR!J84,\"\")","v":""},{"$f":"IF(WorkingR!$B84=\"Investment Income\",WorkingR!K84,\"\")","v":""},{"$f":"IF(WorkingR!$B84=\"Investment Income\",WorkingR!L84,\"\")","v":""},{"$f":"IF(WorkingR!$B84=\"Investment Income\",WorkingR!M84,\"\")","v":""},{"$f":"IF(WorkingR!$B84=\"Investment Income\",WorkingR!N84,\"\")","v":""},{"$f":"IF(WorkingR!$B84=\"Investment Income\",WorkingR!O84,\"\")","v":""},{"$f":"IF(WorkingR!$B84=\"Investment Income\",WorkingR!P84,\"\")","v":""},{"$f":"IF(WorkingR!$B84=\"Investment Income\",WorkingR!Q84,\"\")","v":""},{"$f":"IF(WorkingR!$B84=\"Investment Income\",WorkingR!R84,\"\")","v":""},{"$f":"IF(WorkingR!$B84=\"Investment Income\",WorkingR!S84,\"\")","v":""},{"$f":"IF(WorkingR!$B84=\"Investment Income\",WorkingR!T84,\"\")","v":""},{"$f":"IF(WorkingR!$B84=\"Investment Income\",WorkingR!U84,\"\")","v":""},{"$f":"IF(WorkingR!$B84=\"Investment Income\",WorkingR!V84,\"\")","v":""},{"$f":"IF(WorkingR!$B84=\"Investment Income\",WorkingR!W84,\"\")","v":""},{"$f":"IF(WorkingR!$B84=\"Investment Income\",WorkingR!X84,\"\")","v":""},{"$f":"IF(WorkingR!$B84=\"Investment Income\",WorkingR!Y84,\"\")","v":""},{"$f":"IF(Descriptions!D85=\"Investment income\",Descriptions!AA85,0)","v":0}]
[{"$f":"IF(Descriptions!D86=\"Investment income\",Descriptions!B86,0)","v":0},{"$f":"IF(WorkingR!$B85=\"Investment Income\",WorkingR!D85,\"\")","v":""},{"$f":"IF(WorkingR!$B85=\"Investment Income\",WorkingR!E85,\"\")","v":""},{"$f":"IF(WorkingR!$B85=\"Investment Income\",WorkingR!F85,\"\")","v":""},{"$f":"IF(WorkingR!$B85=\"Investment Income\",WorkingR!G85,\"\")","v":""},{"$f":"IF(WorkingR!$B85=\"Investment Income\",WorkingR!H85,\"\")","v":""},{"$f":"IF(WorkingR!$B85=\"Investment Income\",WorkingR!I85,\"\")","v":""},{"$f":"IF(WorkingR!$B85=\"Investment Income\",WorkingR!J85,\"\")","v":""},{"$f":"IF(WorkingR!$B85=\"Investment Income\",WorkingR!K85,\"\")","v":""},{"$f":"IF(WorkingR!$B85=\"Investment Income\",WorkingR!L85,\"\")","v":""},{"$f":"IF(WorkingR!$B85=\"Investment Income\",WorkingR!M85,\"\")","v":""},{"$f":"IF(WorkingR!$B85=\"Investment Income\",WorkingR!N85,\"\")","v":""},{"$f":"IF(WorkingR!$B85=\"Investment Income\",WorkingR!O85,\"\")","v":""},{"$f":"IF(WorkingR!$B85=\"Investment Income\",WorkingR!P85,\"\")","v":""},{"$f":"IF(WorkingR!$B85=\"Investment Income\",WorkingR!Q85,\"\")","v":""},{"$f":"IF(WorkingR!$B85=\"Investment Income\",WorkingR!R85,\"\")","v":""},{"$f":"IF(WorkingR!$B85=\"Investment Income\",WorkingR!S85,\"\")","v":""},{"$f":"IF(WorkingR!$B85=\"Investment Income\",WorkingR!T85,\"\")","v":""},{"$f":"IF(WorkingR!$B85=\"Investment Income\",WorkingR!U85,\"\")","v":""},{"$f":"IF(WorkingR!$B85=\"Investment Income\",WorkingR!V85,\"\")","v":""},{"$f":"IF(WorkingR!$B85=\"Investment Income\",WorkingR!W85,\"\")","v":""},{"$f":"IF(WorkingR!$B85=\"Investment Income\",WorkingR!X85,\"\")","v":""},{"$f":"IF(WorkingR!$B85=\"Investment Income\",WorkingR!Y85,\"\")","v":""},{"$f":"IF(Descriptions!D86=\"Investment income\",Descriptions!AA86,0)","v":0}]
[{"$f":"IF(Descriptions!D87=\"Investment income\",Descriptions!B87,0)","v":0},{"$f":"IF(WorkingR!$B86=\"Investment Income\",WorkingR!D86,\"\")","v":""},{"$f":"IF(WorkingR!$B86=\"Investment Income\",WorkingR!E86,\"\")","v":""},{"$f":"IF(WorkingR!$B86=\"Investment Income\",WorkingR!F86,\"\")","v":""},{"$f":"IF(WorkingR!$B86=\"Investment Income\",WorkingR!G86,\"\")","v":""},{"$f":"IF(WorkingR!$B86=\"Investment Income\",WorkingR!H86,\"\")","v":""},{"$f":"IF(WorkingR!$B86=\"Investment Income\",WorkingR!I86,\"\")","v":""},{"$f":"IF(WorkingR!$B86=\"Investment Income\",WorkingR!J86,\"\")","v":""},{"$f":"IF(WorkingR!$B86=\"Investment Income\",WorkingR!K86,\"\")","v":""},{"$f":"IF(WorkingR!$B86=\"Investment Income\",WorkingR!L86,\"\")","v":""},{"$f":"IF(WorkingR!$B86=\"Investment Income\",WorkingR!M86,\"\")","v":""},{"$f":"IF(WorkingR!$B86=\"Investment Income\",WorkingR!N86,\"\")","v":""},{"$f":"IF(WorkingR!$B86=\"Investment Income\",WorkingR!O86,\"\")","v":""},{"$f":"IF(WorkingR!$B86=\"Investment Income\",WorkingR!P86,\"\")","v":""},{"$f":"IF(WorkingR!$B86=\"Investment Income\",WorkingR!Q86,\"\")","v":""},{"$f":"IF(WorkingR!$B86=\"Investment Income\",WorkingR!R86,\"\")","v":""},{"$f":"IF(WorkingR!$B86=\"Investment Income\",WorkingR!S86,\"\")","v":""},{"$f":"IF(WorkingR!$B86=\"Investment Income\",WorkingR!T86,\"\")","v":""},{"$f":"IF(WorkingR!$B86=\"Investment Income\",WorkingR!U86,\"\")","v":""},{"$f":"IF(WorkingR!$B86=\"Investment Income\",WorkingR!V86,\"\")","v":""},{"$f":"IF(WorkingR!$B86=\"Investment Income\",WorkingR!W86,\"\")","v":""},{"$f":"IF(WorkingR!$B86=\"Investment Income\",WorkingR!X86,\"\")","v":""},{"$f":"IF(WorkingR!$B86=\"Investment Income\",WorkingR!Y86,\"\")","v":""},{"$f":"IF(Descriptions!D87=\"Investment income\",Descriptions!AA87,0)","v":0}]
[{"$f":"IF(Descriptions!D88=\"Investment income\",Descriptions!B88,0)","v":0},{"$f":"IF(WorkingR!$B87=\"Investment Income\",WorkingR!D87,\"\")","v":""},{"$f":"IF(WorkingR!$B87=\"Investment Income\",WorkingR!E87,\"\")","v":""},{"$f":"IF(WorkingR!$B87=\"Investment Income\",WorkingR!F87,\"\")","v":""},{"$f":"IF(WorkingR!$B87=\"Investment Income\",WorkingR!G87,\"\")","v":""},{"$f":"IF(WorkingR!$B87=\"Investment Income\",WorkingR!H87,\"\")","v":""},{"$f":"IF(WorkingR!$B87=\"Investment Income\",WorkingR!I87,\"\")","v":""},{"$f":"IF(WorkingR!$B87=\"Investment Income\",WorkingR!J87,\"\")","v":""},{"$f":"IF(WorkingR!$B87=\"Investment Income\",WorkingR!K87,\"\")","v":""},{"$f":"IF(WorkingR!$B87=\"Investment Income\",WorkingR!L87,\"\")","v":""},{"$f":"IF(WorkingR!$B87=\"Investment Income\",WorkingR!M87,\"\")","v":""},{"$f":"IF(WorkingR!$B87=\"Investment Income\",WorkingR!N87,\"\")","v":""},{"$f":"IF(WorkingR!$B87=\"Investment Income\",WorkingR!O87,\"\")","v":""},{"$f":"IF(WorkingR!$B87=\"Investment Income\",WorkingR!P87,\"\")","v":""},{"$f":"IF(WorkingR!$B87=\"Investment Income\",WorkingR!Q87,\"\")","v":""},{"$f":"IF(WorkingR!$B87=\"Investment Income\",WorkingR!R87,\"\")","v":""},{"$f":"IF(WorkingR!$B87=\"Investment Income\",WorkingR!S87,\"\")","v":""},{"$f":"IF(WorkingR!$B87=\"Investment Income\",WorkingR!T87,\"\")","v":""},{"$f":"IF(WorkingR!$B87=\"Investment Income\",WorkingR!U87,\"\")","v":""},{"$f":"IF(WorkingR!$B87=\"Investment Income\",WorkingR!V87,\"\")","v":""},{"$f":"IF(WorkingR!$B87=\"Investment Income\",WorkingR!W87,\"\")","v":""},{"$f":"IF(WorkingR!$B87=\"Investment Income\",WorkingR!X87,\"\")","v":""},{"$f":"IF(WorkingR!$B87=\"Investment Income\",WorkingR!Y87,\"\")","v":""},{"$f":"IF(Descriptions!D88=\"Investment income\",Descriptions!AA88,0)","v":0}]
[{"$f":"IF(Descriptions!D89=\"Investment income\",Descriptions!B89,0)","v":0},{"$f":"IF(WorkingR!$B88=\"Investment Income\",WorkingR!D88,\"\")","v":""},{"$f":"IF(WorkingR!$B88=\"Investment Income\",WorkingR!E88,\"\")","v":""},{"$f":"IF(WorkingR!$B88=\"Investment Income\",WorkingR!F88,\"\")","v":""},{"$f":"IF(WorkingR!$B88=\"Investment Income\",WorkingR!G88,\"\")","v":""},{"$f":"IF(WorkingR!$B88=\"Investment Income\",WorkingR!H88,\"\")","v":""},{"$f":"IF(WorkingR!$B88=\"Investment Income\",WorkingR!I88,\"\")","v":""},{"$f":"IF(WorkingR!$B88=\"Investment Income\",WorkingR!J88,\"\")","v":""},{"$f":"IF(WorkingR!$B88=\"Investment Income\",WorkingR!K88,\"\")","v":""},{"$f":"IF(WorkingR!$B88=\"Investment Income\",WorkingR!L88,\"\")","v":""},{"$f":"IF(WorkingR!$B88=\"Investment Income\",WorkingR!M88,\"\")","v":""},{"$f":"IF(WorkingR!$B88=\"Investment Income\",WorkingR!N88,\"\")","v":""},{"$f":"IF(WorkingR!$B88=\"Investment Income\",WorkingR!O88,\"\")","v":""},{"$f":"IF(WorkingR!$B88=\"Investment Income\",WorkingR!P88,\"\")","v":""},{"$f":"IF(WorkingR!$B88=\"Investment Income\",WorkingR!Q88,\"\")","v":""},{"$f":"IF(WorkingR!$B88=\"Investment Income\",WorkingR!R88,\"\")","v":""},{"$f":"IF(WorkingR!$B88=\"Investment Income\",WorkingR!S88,\"\")","v":""},{"$f":"IF(WorkingR!$B88=\"Investment Income\",WorkingR!T88,\"\")","v":""},{"$f":"IF(WorkingR!$B88=\"Investment Income\",WorkingR!U88,\"\")","v":""},{"$f":"IF(WorkingR!$B88=\"Investment Income\",WorkingR!V88,\"\")","v":""},{"$f":"IF(WorkingR!$B88=\"Investment Income\",WorkingR!W88,\"\")","v":""},{"$f":"IF(WorkingR!$B88=\"Investment Income\",WorkingR!X88,\"\")","v":""},{"$f":"IF(WorkingR!$B88=\"Investment Income\",WorkingR!Y88,\"\")","v":""},{"$f":"IF(Descriptions!D89=\"Investment income\",Descriptions!AA89,0)","v":0}]
[{"$f":"IF(Descriptions!D90=\"Investment income\",Descriptions!B90,0)","v":0},{"$f":"IF(WorkingR!$B89=\"Investment Income\",WorkingR!D89,\"\")","v":""},{"$f":"IF(WorkingR!$B89=\"Investment Income\",WorkingR!E89,\"\")","v":""},{"$f":"IF(WorkingR!$B89=\"Investment Income\",WorkingR!F89,\"\")","v":""},{"$f":"IF(WorkingR!$B89=\"Investment Income\",WorkingR!G89,\"\")","v":""},{"$f":"IF(WorkingR!$B89=\"Investment Income\",WorkingR!H89,\"\")","v":""},{"$f":"IF(WorkingR!$B89=\"Investment Income\",WorkingR!I89,\"\")","v":""},{"$f":"IF(WorkingR!$B89=\"Investment Income\",WorkingR!J89,\"\")","v":""},{"$f":"IF(WorkingR!$B89=\"Investment Income\",WorkingR!K89,\"\")","v":""},{"$f":"IF(WorkingR!$B89=\"Investment Income\",WorkingR!L89,\"\")","v":""},{"$f":"IF(WorkingR!$B89=\"Investment Income\",WorkingR!M89,\"\")","v":""},{"$f":"IF(WorkingR!$B89=\"Investment Income\",WorkingR!N89,\"\")","v":""},{"$f":"IF(WorkingR!$B89=\"Investment Income\",WorkingR!O89,\"\")","v":""},{"$f":"IF(WorkingR!$B89=\"Investment Income\",WorkingR!P89,\"\")","v":""},{"$f":"IF(WorkingR!$B89=\"Investment Income\",WorkingR!Q89,\"\")","v":""},{"$f":"IF(WorkingR!$B89=\"Investment Income\",WorkingR!R89,\"\")","v":""},{"$f":"IF(WorkingR!$B89=\"Investment Income\",WorkingR!S89,\"\")","v":""},{"$f":"IF(WorkingR!$B89=\"Investment Income\",WorkingR!T89,\"\")","v":""},{"$f":"IF(WorkingR!$B89=\"Investment Income\",WorkingR!U89,\"\")","v":""},{"$f":"IF(WorkingR!$B89=\"Investment Income\",WorkingR!V89,\"\")","v":""},{"$f":"IF(WorkingR!$B89=\"Investment Income\",WorkingR!W89,\"\")","v":""},{"$f":"IF(WorkingR!$B89=\"Investment Income\",WorkingR!X89,\"\")","v":""},{"$f":"IF(WorkingR!$B89=\"Investment Income\",WorkingR!Y89,\"\")","v":""},{"$f":"IF(Descriptions!D90=\"Investment income\",Descriptions!AA90,0)","v":0}]
[{"$f":"IF(Descriptions!D91=\"Investment income\",Descriptions!B91,0)","v":0},{"$f":"IF(WorkingR!$B90=\"Investment Income\",WorkingR!D90,\"\")","v":""},{"$f":"IF(WorkingR!$B90=\"Investment Income\",WorkingR!E90,\"\")","v":""},{"$f":"IF(WorkingR!$B90=\"Investment Income\",WorkingR!F90,\"\")","v":""},{"$f":"IF(WorkingR!$B90=\"Investment Income\",WorkingR!G90,\"\")","v":""},{"$f":"IF(WorkingR!$B90=\"Investment Income\",WorkingR!H90,\"\")","v":""},{"$f":"IF(WorkingR!$B90=\"Investment Income\",WorkingR!I90,\"\")","v":""},{"$f":"IF(WorkingR!$B90=\"Investment Income\",WorkingR!J90,\"\")","v":""},{"$f":"IF(WorkingR!$B90=\"Investment Income\",WorkingR!K90,\"\")","v":""},{"$f":"IF(WorkingR!$B90=\"Investment Income\",WorkingR!L90,\"\")","v":""},{"$f":"IF(WorkingR!$B90=\"Investment Income\",WorkingR!M90,\"\")","v":""},{"$f":"IF(WorkingR!$B90=\"Investment Income\",WorkingR!N90,\"\")","v":""},{"$f":"IF(WorkingR!$B90=\"Investment Income\",WorkingR!O90,\"\")","v":""},{"$f":"IF(WorkingR!$B90=\"Investment Income\",WorkingR!P90,\"\")","v":""},{"$f":"IF(WorkingR!$B90=\"Investment Income\",WorkingR!Q90,\"\")","v":""},{"$f":"IF(WorkingR!$B90=\"Investment Income\",WorkingR!R90,\"\")","v":""},{"$f":"IF(WorkingR!$B90=\"Investment Income\",WorkingR!S90,\"\")","v":""},{"$f":"IF(WorkingR!$B90=\"Investment Income\",WorkingR!T90,\"\")","v":""},{"$f":"IF(WorkingR!$B90=\"Investment Income\",WorkingR!U90,\"\")","v":""},{"$f":"IF(WorkingR!$B90=\"Investment Income\",WorkingR!V90,\"\")","v":""},{"$f":"IF(WorkingR!$B90=\"Investment Income\",WorkingR!W90,\"\")","v":""},{"$f":"IF(WorkingR!$B90=\"Investment Income\",WorkingR!X90,\"\")","v":""},{"$f":"IF(WorkingR!$B90=\"Investment Income\",WorkingR!Y90,\"\")","v":""},{"$f":"IF(Descriptions!D91=\"Investment income\",Descriptions!AA91,0)","v":0}]
[{"$f":"IF(Descriptions!D92=\"Investment income\",Descriptions!B92,0)","v":0},{"$f":"IF(WorkingR!$B91=\"Investment Income\",WorkingR!D91,\"\")","v":""},{"$f":"IF(WorkingR!$B91=\"Investment Income\",WorkingR!E91,\"\")","v":""},{"$f":"IF(WorkingR!$B91=\"Investment Income\",WorkingR!F91,\"\")","v":""},{"$f":"IF(WorkingR!$B91=\"Investment Income\",WorkingR!G91,\"\")","v":""},{"$f":"IF(WorkingR!$B91=\"Investment Income\",WorkingR!H91,\"\")","v":""},{"$f":"IF(WorkingR!$B91=\"Investment Income\",WorkingR!I91,\"\")","v":""},{"$f":"IF(WorkingR!$B91=\"Investment Income\",WorkingR!J91,\"\")","v":""},{"$f":"IF(WorkingR!$B91=\"Investment Income\",WorkingR!K91,\"\")","v":""},{"$f":"IF(WorkingR!$B91=\"Investment Income\",WorkingR!L91,\"\")","v":""},{"$f":"IF(WorkingR!$B91=\"Investment Income\",WorkingR!M91,\"\")","v":""},{"$f":"IF(WorkingR!$B91=\"Investment Income\",WorkingR!N91,\"\")","v":""},{"$f":"IF(WorkingR!$B91=\"Investment Income\",WorkingR!O91,\"\")","v":""},{"$f":"IF(WorkingR!$B91=\"Investment Income\",WorkingR!P91,\"\")","v":""},{"$f":"IF(WorkingR!$B91=\"Investment Income\",WorkingR!Q91,\"\")","v":""},{"$f":"IF(WorkingR!$B91=\"Investment Income\",WorkingR!R91,\"\")","v":""},{"$f":"IF(WorkingR!$B91=\"Investment Income\",WorkingR!S91,\"\")","v":""},{"$f":"IF(WorkingR!$B91=\"Investment Income\",WorkingR!T91,\"\")","v":""},{"$f":"IF(WorkingR!$B91=\"Investment Income\",WorkingR!U91,\"\")","v":""},{"$f":"IF(WorkingR!$B91=\"Investment Income\",WorkingR!V91,\"\")","v":""},{"$f":"IF(WorkingR!$B91=\"Investment Income\",WorkingR!W91,\"\")","v":""},{"$f":"IF(WorkingR!$B91=\"Investment Income\",WorkingR!X91,\"\")","v":""},{"$f":"IF(WorkingR!$B91=\"Investment Income\",WorkingR!Y91,\"\")","v":""},{"$f":"IF(Descriptions!D92=\"Investment income\",Descriptions!AA92,0)","v":0}]
[null,{"$f":"SUM(B349:B399)","v":0},0,0,0,0,0,0,0,0,0,0,0,0,0,0,0,0,0,0,0,0,null,{"$f":"X348","v":0}]
["LEGACIES RECEIVED",null,null,null,null,null,null,null,null,null,null,null,null,null,null,null,null,null,null,null,null,null,null,{"$f":"SUM(X402)","v":0}]
["Legacies",{"$f":"WorkingR!D23","v":0},{"$f":"WorkingR!E23","v":0},{"$f":"WorkingR!F23","v":0},{"$f":"WorkingR!G23","v":0},{"$f":"WorkingR!H23","v":0},{"$f":"WorkingR!I23","v":0},{"$f":"WorkingR!J23","v":0},{"$f":"WorkingR!K23","v":0},{"$f":"WorkingR!L23","v":0},{"$f":"WorkingR!M23","v":0},{"$f":"WorkingR!N23","v":0},{"$f":"WorkingR!O23","v":0},{"$f":"WorkingR!P23","v":0},{"$f":"WorkingR!Q23","v":0},{"$f":"WorkingR!R23","v":0},{"$f":"WorkingR!S23","v":0},{"$f":"WorkingR!T23","v":0},{"$f":"WorkingR!U23","v":0},{"$f":"WorkingR!V23","v":0},{"$f":"WorkingR!W23","v":0},{"$f":"WorkingR!X23","v":0},{"$f":"WorkingR!Y23","v":0},{"$f":"Descriptions!AA22","v":0}]
[{"$f":"IF(Descriptions!D43=\"Legacies Received\",Descriptions!B43,0)","v":0},{"$f":"IF(WorkingR!$B42=\"Legacies Received\",WorkingR!D42,\"\")","v":""},{"$f":"IF(WorkingR!$B42=\"Legacies Received\",WorkingR!E42,\"\")","v":""},{"$f":"IF(WorkingR!$B42=\"Legacies Received\",WorkingR!F42,\"\")","v":""},{"$f":"IF(WorkingR!$B42=\"Legacies Received\",WorkingR!G42,\"\")","v":""},{"$f":"IF(WorkingR!$B42=\"Legacies Received\",WorkingR!H42,\"\")","v":""},{"$f":"IF(WorkingR!$B42=\"Legacies Received\",WorkingR!I42,\"\")","v":""},{"$f":"IF(WorkingR!$B42=\"Legacies Received\",WorkingR!J42,\"\")","v":""},{"$f":"IF(WorkingR!$B42=\"Legacies Received\",WorkingR!K42,\"\")","v":""},{"$f":"IF(WorkingR!$B42=\"Legacies Received\",WorkingR!L42,\"\")","v":""},{"$f":"IF(WorkingR!$B42=\"Legacies Received\",WorkingR!M42,\"\")","v":""},{"$f":"IF(WorkingR!$B42=\"Legacies Received\",WorkingR!N42,\"\")","v":""},{"$f":"IF(WorkingR!$B42=\"Legacies Received\",WorkingR!O42,\"\")","v":""},{"$f":"IF(WorkingR!$B42=\"Legacies Received\",WorkingR!P42,\"\")","v":""},{"$f":"IF(WorkingR!$B42=\"Legacies Received\",WorkingR!Q42,\"\")","v":""},{"$f":"IF(WorkingR!$B42=\"Legacies Received\",WorkingR!R42,\"\")","v":""},{"$f":"IF(WorkingR!$B42=\"Legacies Received\",WorkingR!S42,\"\")","v":""},{"$f":"IF(WorkingR!$B42=\"Legacies Received\",WorkingR!T42,\"\")","v":""},{"$f":"IF(WorkingR!$B42=\"Legacies Received\",WorkingR!U42,\"\")","v":""},{"$f":"IF(WorkingR!$B42=\"Legacies Received\",WorkingR!V42,\"\")","v":""},{"$f":"IF(WorkingR!$B42=\"Legacies Received\",WorkingR!W42,\"\")","v":""},{"$f":"IF(WorkingR!$B42=\"Legacies Received\",WorkingR!X42,\"\")","v":""},{"$f":"IF(WorkingR!$B42=\"Legacies Received\",WorkingR!Y42,\"\")","v":""},{"$f":"IF(Descriptions!D43=\"Legacies Received\",Descriptions!AA43,0)","v":0}]
[{"$f":"IF(Descriptions!D44=\"Legacies Received\",Descriptions!B44,0)","v":0},{"$f":"IF(WorkingR!$B43=\"Legacies Received\",WorkingR!D43,\"\")","v":""},{"$f":"IF(WorkingR!$B43=\"Legacies Received\",WorkingR!E43,\"\")","v":""},{"$f":"IF(WorkingR!$B43=\"Legacies Received\",WorkingR!F43,\"\")","v":""},{"$f":"IF(WorkingR!$B43=\"Legacies Received\",WorkingR!G43,\"\")","v":""},{"$f":"IF(WorkingR!$B43=\"Legacies Received\",WorkingR!H43,\"\")","v":""},{"$f":"IF(WorkingR!$B43=\"Legacies Received\",WorkingR!I43,\"\")","v":""},{"$f":"IF(WorkingR!$B43=\"Legacies Received\",WorkingR!J43,\"\")","v":""},{"$f":"IF(WorkingR!$B43=\"Legacies Received\",WorkingR!K43,\"\")","v":""},{"$f":"IF(WorkingR!$B43=\"Legacies Received\",WorkingR!L43,\"\")","v":""},{"$f":"IF(WorkingR!$B43=\"Legacies Received\",WorkingR!M43,\"\")","v":""},{"$f":"IF(WorkingR!$B43=\"Legacies Received\",WorkingR!N43,\"\")","v":""},{"$f":"IF(WorkingR!$B43=\"Legacies Received\",WorkingR!O43,\"\")","v":""},{"$f":"IF(WorkingR!$B43=\"Legacies Received\",WorkingR!P43,\"\")","v":""},{"$f":"IF(WorkingR!$B43=\"Legacies Received\",WorkingR!Q43,\"\")","v":""},{"$f":"IF(WorkingR!$B43=\"Legacies Received\",WorkingR!R43,\"\")","v":""},{"$f":"IF(WorkingR!$B43=\"Legacies Received\",WorkingR!S43,\"\")","v":""},{"$f":"IF(WorkingR!$B43=\"Legacies Received\",WorkingR!T43,\"\")","v":""},{"$f":"IF(WorkingR!$B43=\"Legacies Received\",WorkingR!U43,\"\")","v":""},{"$f":"IF(WorkingR!$B43=\"Legacies Received\",WorkingR!V43,\"\")","v":""},{"$f":"IF(WorkingR!$B43=\"Legacies Received\",WorkingR!W43,\"\")","v":""},{"$f":"IF(WorkingR!$B43=\"Legacies Received\",WorkingR!X43,\"\")","v":""},{"$f":"IF(WorkingR!$B43=\"Legacies Received\",WorkingR!Y43,\"\")","v":""},{"$f":"IF(Descriptions!D44=\"Legacies Received\",Descriptions!AA44,0)","v":0}]
[{"$f":"IF(Descriptions!D45=\"Legacies Received\",Descriptions!B45,0)","v":0},{"$f":"IF(WorkingR!$B44=\"Legacies Received\",WorkingR!D44,\"\")","v":""},{"$f":"IF(WorkingR!$B44=\"Legacies Received\",WorkingR!E44,\"\")","v":""},{"$f":"IF(WorkingR!$B44=\"Legacies Received\",WorkingR!F44,\"\")","v":""},{"$f":"IF(WorkingR!$B44=\"Legacies Received\",WorkingR!G44,\"\")","v":""},{"$f":"IF(WorkingR!$B44=\"Legacies Received\",WorkingR!H44,\"\")","v":""},{"$f":"IF(WorkingR!$B44=\"Legacies Received\",WorkingR!I44,\"\")","v":""},{"$f":"IF(WorkingR!$B44=\"Legacies Received\",WorkingR!J44,\"\")","v":""},{"$f":"IF(WorkingR!$B44=\"Legacies Received\",WorkingR!K44,\"\")","v":""},{"$f":"IF(WorkingR!$B44=\"Legacies Received\",WorkingR!L44,\"\")","v":""},{"$f":"IF(WorkingR!$B44=\"Legacies Received\",WorkingR!M44,\"\")","v":""},{"$f":"IF(WorkingR!$B44=\"Legacies Received\",WorkingR!N44,\"\")","v":""},{"$f":"IF(WorkingR!$B44=\"Legacies Received\",WorkingR!O44,\"\")","v":""},{"$f":"IF(WorkingR!$B44=\"Legacies Received\",WorkingR!P44,\"\")","v":""},{"$f":"IF(WorkingR!$B44=\"Legacies Received\",WorkingR!Q44,\"\")","v":""},{"$f":"IF(WorkingR!$B44=\"Legacies Received\",WorkingR!R44,\"\")","v":""},{"$f":"IF(WorkingR!$B44=\"Legacies Received\",WorkingR!S44,\"\")","v":""},{"$f":"IF(WorkingR!$B44=\"Legacies Received\",WorkingR!T44,\"\")","v":""},{"$f":"IF(WorkingR!$B44=\"Legacies Received\",WorkingR!U44,\"\")","v":""},{"$f":"IF(WorkingR!$B44=\"Legacies Received\",WorkingR!V44,\"\")","v":""},{"$f":"IF(WorkingR!$B44=\"Legacies Received\",WorkingR!W44,\"\")","v":""},{"$f":"IF(WorkingR!$B44=\"Legacies Received\",WorkingR!X44,\"\")","v":""},{"$f":"IF(WorkingR!$B44=\"Legacies Received\",WorkingR!Y44,\"\")","v":""},{"$f":"IF(Descriptions!D45=\"Legacies Received\",Descriptions!AA45,0)","v":0}]
[{"$f":"IF(Descriptions!D46=\"Legacies Received\",Descriptions!B46,0)","v":0},{"$f":"IF(WorkingR!$B45=\"Legacies Received\",WorkingR!D45,\"\")","v":""},{"$f":"IF(WorkingR!$B45=\"Legacies Received\",WorkingR!E45,\"\")","v":""},{"$f":"IF(WorkingR!$B45=\"Legacies Received\",WorkingR!F45,\"\")","v":""},{"$f":"IF(WorkingR!$B45=\"Legacies Received\",WorkingR!G45,\"\")","v":""},{"$f":"IF(WorkingR!$B45=\"Legacies Received\",WorkingR!H45,\"\")","v":""},{"$f":"IF(WorkingR!$B45=\"Legacies Received\",WorkingR!I45,\"\")","v":""},{"$f":"IF(WorkingR!$B45=\"Legacies Received\",WorkingR!J45,\"\")","v":""},{"$f":"IF(WorkingR!$B45=\"Legacies Received\",WorkingR!K45,\"\")","v":""},{"$f":"IF(WorkingR!$B45=\"Legacies Received\",WorkingR!L45,\"\")","v":""},{"$f":"IF(WorkingR!$B45=\"Legacies Received\",WorkingR!M45,\"\")","v":""},{"$f":"IF(WorkingR!$B45=\"Legacies Received\",WorkingR!N45,\"\")","v":""},{"$f":"IF(WorkingR!$B45=\"Legacies Received\",WorkingR!O45,\"\")","v":""},{"$f":"IF(WorkingR!$B45=\"Legacies Received\",WorkingR!P45,\"\")","v":""},{"$f":"IF(WorkingR!$B45=\"Legacies Received\",WorkingR!Q45,\"\")","v":""},{"$f":"IF(WorkingR!$B45=\"Legacies Received\",WorkingR!R45,\"\")","v":""},{"$f":"IF(WorkingR!$B45=\"Legacies Received\",WorkingR!S45,\"\")","v":""},{"$f":"IF(WorkingR!$B45=\"Legacies Received\",WorkingR!T45,\"\")","v":""},{"$f":"IF(WorkingR!$B45=\"Legacies Received\",WorkingR!U45,\"\")","v":""},{"$f":"IF(WorkingR!$B45=\"Legacies Received\",WorkingR!V45,\"\")","v":""},{"$f":"IF(WorkingR!$B45=\"Legacies Received\",WorkingR!W45,\"\")","v":""},{"$f":"IF(WorkingR!$B45=\"Legacies Received\",WorkingR!X45,\"\")","v":""},{"$f":"IF(WorkingR!$B45=\"Legacies Received\",WorkingR!Y45,\"\")","v":""},{"$f":"IF(Descriptions!D46=\"Legacies Received\",Descriptions!AA46,0)","v":0}]
[{"$f":"IF(Descriptions!D47=\"Legacies Received\",Descriptions!B47,0)","v":0},{"$f":"IF(WorkingR!$B46=\"Legacies Received\",WorkingR!D46,\"\")","v":""},{"$f":"IF(WorkingR!$B46=\"Legacies Received\",WorkingR!E46,\"\")","v":""},{"$f":"IF(WorkingR!$B46=\"Legacies Received\",WorkingR!F46,\"\")","v":""},{"$f":"IF(WorkingR!$B46=\"Legacies Received\",WorkingR!G46,\"\")","v":""},{"$f":"IF(WorkingR!$B46=\"Legacies Received\",WorkingR!H46,\"\")","v":""},{"$f":"IF(WorkingR!$B46=\"Legacies Received\",WorkingR!I46,\"\")","v":""},{"$f":"IF(WorkingR!$B46=\"Legacies Received\",WorkingR!J46,\"\")","v":""},{"$f":"IF(WorkingR!$B46=\"Legacies Received\",WorkingR!K46,\"\")","v":""},{"$f":"IF(WorkingR!$B46=\"Legacies Received\",WorkingR!L46,\"\")","v":""},{"$f":"IF(WorkingR!$B46=\"Legacies Received\",WorkingR!M46,\"\")","v":""},{"$f":"IF(WorkingR!$B46=\"Legacies Received\",WorkingR!N46,\"\")","v":""},{"$f":"IF(WorkingR!$B46=\"Legacies Received\",WorkingR!O46,\"\")","v":""},{"$f":"IF(WorkingR!$B46=\"Legacies Received\",WorkingR!P46,\"\")","v":""},{"$f":"IF(WorkingR!$B46=\"Legacies Received\",WorkingR!Q46,\"\")","v":""},{"$f":"IF(WorkingR!$B46=\"Legacies Received\",WorkingR!R46,\"\")","v":""},{"$f":"IF(WorkingR!$B46=\"Legacies Received\",WorkingR!S46,\"\")","v":""},{"$f":"IF(WorkingR!$B46=\"Legacies Received\",WorkingR!T46,\"\")","v":""},{"$f":"IF(WorkingR!$B46=\"Legacies Received\",WorkingR!U46,\"\")","v":""},{"$f":"IF(WorkingR!$B46=\"Legacies Received\",WorkingR!V46,\"\")","v":""},{"$f":"IF(WorkingR!$B46=\"Legacies Received\",WorkingR!W46,\"\")","v":""},{"$f":"IF(WorkingR!$B46=\"Legacies Received\",WorkingR!X46,\"\")","v":""},{"$f":"IF(WorkingR!$B46=\"Legacies Received\",WorkingR!Y46,\"\")","v":""},{"$f":"IF(Descriptions!D47=\"Legacies Received\",Descriptions!AA47,0)","v":0}]
[{"$f":"IF(Descriptions!D48=\"Legacies Received\",Descriptions!B48,0)","v":0},{"$f":"IF(WorkingR!$B47=\"Legacies Received\",WorkingR!D47,\"\")","v":""},{"$f":"IF(WorkingR!$B47=\"Legacies Received\",WorkingR!E47,\"\")","v":""},{"$f":"IF(WorkingR!$B47=\"Legacies Received\",WorkingR!F47,\"\")","v":""},{"$f":"IF(WorkingR!$B47=\"Legacies Received\",WorkingR!G47,\"\")","v":""},{"$f":"IF(WorkingR!$B47=\"Legacies Received\",WorkingR!H47,\"\")","v":""},{"$f":"IF(WorkingR!$B47=\"Legacies Received\",WorkingR!I47,\"\")","v":""},{"$f":"IF(WorkingR!$B47=\"Legacies Received\",WorkingR!J47,\"\")","v":""},{"$f":"IF(WorkingR!$B47=\"Legacies Received\",WorkingR!K47,\"\")","v":""},{"$f":"IF(WorkingR!$B47=\"Legacies Received\",WorkingR!L47,\"\")","v":""},{"$f":"IF(WorkingR!$B47=\"Legacies Received\",WorkingR!M47,\"\")","v":""},{"$f":"IF(WorkingR!$B47=\"Legacies Received\",WorkingR!N47,\"\")","v":""},{"$f":"IF(WorkingR!$B47=\"Legacies Received\",WorkingR!O47,\"\")","v":""},{"$f":"IF(WorkingR!$B47=\"Legacies Received\",WorkingR!P47,\"\")","v":""},{"$f":"IF(WorkingR!$B47=\"Legacies Received\",WorkingR!Q47,\"\")","v":""},{"$f":"IF(WorkingR!$B47=\"Legacies Received\",WorkingR!R47,\"\")","v":""},{"$f":"IF(WorkingR!$B47=\"Legacies Received\",WorkingR!S47,\"\")","v":""},{"$f":"IF(WorkingR!$B47=\"Legacies Received\",WorkingR!T47,\"\")","v":""},{"$f":"IF(WorkingR!$B47=\"Legacies Received\",WorkingR!U47,\"\")","v":""},{"$f":"IF(WorkingR!$B47=\"Legacies Received\",WorkingR!V47,\"\")","v":""},{"$f":"IF(WorkingR!$B47=\"Legacies Received\",WorkingR!W47,\"\")","v":""},{"$f":"IF(WorkingR!$B47=\"Legacies Received\",WorkingR!X47,\"\")","v":""},{"$f":"IF(WorkingR!$B47=\"Legacies Received\",WorkingR!Y47,\"\")","v":""},{"$f":"IF(Descriptions!D48=\"Legacies Received\",Descriptions!AA48,0)","v":0}]
[{"$f":"IF(Descriptions!D49=\"Legacies Received\",Descriptions!B49,0)","v":0},{"$f":"IF(WorkingR!$B48=\"Legacies Received\",WorkingR!D48,\"\")","v":""},{"$f":"IF(WorkingR!$B48=\"Legacies Received\",WorkingR!E48,\"\")","v":""},{"$f":"IF(WorkingR!$B48=\"Legacies Received\",WorkingR!F48,\"\")","v":""},{"$f":"IF(WorkingR!$B48=\"Legacies Received\",WorkingR!G48,\"\")","v":""},{"$f":"IF(WorkingR!$B48=\"Legacies Received\",WorkingR!H48,\"\")","v":""},{"$f":"IF(WorkingR!$B48=\"Legacies Received\",WorkingR!I48,\"\")","v":""},{"$f":"IF(WorkingR!$B48=\"Legacies Received\",WorkingR!J48,\"\")","v":""},{"$f":"IF(WorkingR!$B48=\"Legacies Received\",WorkingR!K48,\"\")","v":""},{"$f":"IF(WorkingR!$B48=\"Legacies Received\",WorkingR!L48,\"\")","v":""},{"$f":"IF(WorkingR!$B48=\"Legacies Received\",WorkingR!M48,\"\")","v":""},{"$f":"IF(WorkingR!$B48=\"Legacies Received\",WorkingR!N48,\"\")","v":""},{"$f":"IF(WorkingR!$B48=\"Legacies Received\",WorkingR!O48,\"\")","v":""},{"$f":"IF(WorkingR!$B48=\"Legacies Received\",WorkingR!P48,\"\")","v":""},{"$f":"IF(WorkingR!$B48=\"Legacies Received\",WorkingR!Q48,\"\")","v":""},{"$f":"IF(WorkingR!$B48=\"Legacies Received\",WorkingR!R48,\"\")","v":""},{"$f":"IF(WorkingR!$B48=\"Legacies Received\",WorkingR!S48,\"\")","v":""},{"$f":"IF(WorkingR!$B48=\"Legacies Received\",WorkingR!T48,\"\")","v":""},{"$f":"IF(WorkingR!$B48=\"Legacies Received\",WorkingR!U48,\"\")","v":""},{"$f":"IF(WorkingR!$B48=\"Legacies Received\",WorkingR!V48,\"\")","v":""},{"$f":"IF(WorkingR!$B48=\"Legacies Received\",WorkingR!W48,\"\")","v":""},{"$f":"IF(WorkingR!$B48=\"Legacies Received\",WorkingR!X48,\"\")","v":""},{"$f":"IF(WorkingR!$B48=\"Legacies Received\",WorkingR!Y48,\"\")","v":""},{"$f":"IF(Descriptions!D49=\"Legacies Received\",Descriptions!AA49,0)","v":0}]
[{"$f":"IF(Descriptions!D50=\"Legacies Received\",Descriptions!B50,0)","v":0},{"$f":"IF(WorkingR!$B49=\"Legacies Received\",WorkingR!D49,\"\")","v":""},{"$f":"IF(WorkingR!$B49=\"Legacies Received\",WorkingR!E49,\"\")","v":""},{"$f":"IF(WorkingR!$B49=\"Legacies Received\",WorkingR!F49,\"\")","v":""},{"$f":"IF(WorkingR!$B49=\"Legacies Received\",WorkingR!G49,\"\")","v":""},{"$f":"IF(WorkingR!$B49=\"Legacies Received\",WorkingR!H49,\"\")","v":""},{"$f":"IF(WorkingR!$B49=\"Legacies Received\",WorkingR!I49,\"\")","v":""},{"$f":"IF(WorkingR!$B49=\"Legacies Received\",WorkingR!J49,\"\")","v":""},{"$f":"IF(WorkingR!$B49=\"Legacies Received\",WorkingR!K49,\"\")","v":""},{"$f":"IF(WorkingR!$B49=\"Legacies Received\",WorkingR!L49,\"\")","v":""},{"$f":"IF(WorkingR!$B49=\"Legacies Received\",WorkingR!M49,\"\")","v":""},{"$f":"IF(WorkingR!$B49=\"Legacies Received\",WorkingR!N49,\"\")","v":""},{"$f":"IF(WorkingR!$B49=\"Legacies Received\",WorkingR!O49,\"\")","v":""},{"$f":"IF(WorkingR!$B49=\"Legacies Received\",WorkingR!P49,\"\")","v":""},{"$f":"IF(WorkingR!$B49=\"Legacies Received\",WorkingR!Q49,\"\")","v":""},{"$f":"IF(WorkingR!$B49=\"Legacies Received\",WorkingR!R49,\"\")","v":""},{"$f":"IF(WorkingR!$B49=\"Legacies Received\",WorkingR!S49,\"\")","v":""},{"$f":"IF(WorkingR!$B49=\"Legacies Received\",WorkingR!T49,\"\")","v":""},{"$f":"IF(WorkingR!$B49=\"Legacies Received\",WorkingR!U49,\"\")","v":""},{"$f":"IF(WorkingR!$B49=\"Legacies Received\",WorkingR!V49,\"\")","v":""},{"$f":"IF(WorkingR!$B49=\"Legacies Received\",WorkingR!W49,\"\")","v":""},{"$f":"IF(WorkingR!$B49=\"Legacies Received\",WorkingR!X49,\"\")","v":""},{"$f":"IF(WorkingR!$B49=\"Legacies Received\",WorkingR!Y49,\"\")","v":""},{"$f":"IF(Descriptions!D50=\"Legacies Received\",Descriptions!AA50,0)","v":0}]
[{"$f":"IF(Descriptions!D51=\"Legacies Received\",Descriptions!B51,0)","v":0},{"$f":"IF(WorkingR!$B50=\"Legacies Received\",WorkingR!D50,\"\")","v":""},{"$f":"IF(WorkingR!$B50=\"Legacies Received\",WorkingR!E50,\"\")","v":""},{"$f":"IF(WorkingR!$B50=\"Legacies Received\",WorkingR!F50,\"\")","v":""},{"$f":"IF(WorkingR!$B50=\"Legacies Received\",WorkingR!G50,\"\")","v":""},{"$f":"IF(WorkingR!$B50=\"Legacies Received\",WorkingR!H50,\"\")","v":""},{"$f":"IF(WorkingR!$B50=\"Legacies Received\",WorkingR!I50,\"\")","v":""},{"$f":"IF(WorkingR!$B50=\"Legacies Received\",WorkingR!J50,\"\")","v":""},{"$f":"IF(WorkingR!$B50=\"Legacies Received\",WorkingR!K50,\"\")","v":""},{"$f":"IF(WorkingR!$B50=\"Legacies Received\",WorkingR!L50,\"\")","v":""},{"$f":"IF(WorkingR!$B50=\"Legacies Received\",WorkingR!M50,\"\")","v":""},{"$f":"IF(WorkingR!$B50=\"Legacies Received\",WorkingR!N50,\"\")","v":""},{"$f":"IF(WorkingR!$B50=\"Legacies Received\",WorkingR!O50,\"\")","v":""},{"$f":"IF(WorkingR!$B50=\"Legacies Received\",WorkingR!P50,\"\")","v":""},{"$f":"IF(WorkingR!$B50=\"Legacies Received\",WorkingR!Q50,\"\")","v":""},{"$f":"IF(WorkingR!$B50=\"Legacies Received\",WorkingR!R50,\"\")","v":""},{"$f":"IF(WorkingR!$B50=\"Legacies Received\",WorkingR!S50,\"\")","v":""},{"$f":"IF(WorkingR!$B50=\"Legacies Received\",WorkingR!T50,\"\")","v":""},{"$f":"IF(WorkingR!$B50=\"Legacies Received\",WorkingR!U50,\"\")","v":""},{"$f":"IF(WorkingR!$B50=\"Legacies Received\",WorkingR!V50,\"\")","v":""},{"$f":"IF(WorkingR!$B50=\"Legacies Received\",WorkingR!W50,\"\")","v":""},{"$f":"IF(WorkingR!$B50=\"Legacies Received\",WorkingR!X50,\"\")","v":""},{"$f":"IF(WorkingR!$B50=\"Legacies Received\",WorkingR!Y50,\"\")","v":""},{"$f":"IF(Descriptions!D51=\"Legacies Received\",Descriptions!AA51,0)","v":0}]
[{"$f":"IF(Descriptions!D52=\"Legacies Received\",Descriptions!B52,0)","v":0},{"$f":"IF(WorkingR!$B51=\"Legacies Received\",WorkingR!D51,\"\")","v":""},{"$f":"IF(WorkingR!$B51=\"Legacies Received\",WorkingR!E51,\"\")","v":""},{"$f":"IF(WorkingR!$B51=\"Legacies Received\",WorkingR!F51,\"\")","v":""},{"$f":"IF(WorkingR!$B51=\"Legacies Received\",WorkingR!G51,\"\")","v":""},{"$f":"IF(WorkingR!$B51=\"Legacies Received\",WorkingR!H51,\"\")","v":""},{"$f":"IF(WorkingR!$B51=\"Legacies Received\",WorkingR!I51,\"\")","v":""},{"$f":"IF(WorkingR!$B51=\"Legacies Received\",WorkingR!J51,\"\")","v":""},{"$f":"IF(WorkingR!$B51=\"Legacies Received\",WorkingR!K51,\"\")","v":""},{"$f":"IF(WorkingR!$B51=\"Legacies Received\",WorkingR!L51,\"\")","v":""},{"$f":"IF(WorkingR!$B51=\"Legacies Received\",WorkingR!M51,\"\")","v":""},{"$f":"IF(WorkingR!$B51=\"Legacies Received\",WorkingR!N51,\"\")","v":""},{"$f":"IF(WorkingR!$B51=\"Legacies Received\",WorkingR!O51,\"\")","v":""},{"$f":"IF(WorkingR!$B51=\"Legacies Received\",WorkingR!P51,\"\")","v":""},{"$f":"IF(WorkingR!$B51=\"Legacies Received\",WorkingR!Q51,\"\")","v":""},{"$f":"IF(WorkingR!$B51=\"Legacies Received\",WorkingR!R51,\"\")","v":""},{"$f":"IF(WorkingR!$B51=\"Legacies Received\",WorkingR!S51,\"\")","v":""},{"$f":"IF(WorkingR!$B51=\"Legacies Received\",WorkingR!T51,\"\")","v":""},{"$f":"IF(WorkingR!$B51=\"Legacies Received\",WorkingR!U51,\"\")","v":""},{"$f":"IF(WorkingR!$B51=\"Legacies Received\",WorkingR!V51,\"\")","v":""},{"$f":"IF(WorkingR!$B51=\"Legacies Received\",WorkingR!W51,\"\")","v":""},{"$f":"IF(WorkingR!$B51=\"Legacies Received\",WorkingR!X51,\"\")","v":""},{"$f":"IF(WorkingR!$B51=\"Legacies Received\",WorkingR!Y51,\"\")","v":""},{"$f":"IF(Descriptions!D52=\"Legacies Received\",Descriptions!AA52,0)","v":0}]
[{"$f":"IF(Descriptions!D53=\"Legacies Received\",Descriptions!B53,0)","v":0},{"$f":"IF(WorkingR!$B52=\"Legacies Received\",WorkingR!D52,\"\")","v":""},{"$f":"IF(WorkingR!$B52=\"Legacies Received\",WorkingR!E52,\"\")","v":""},{"$f":"IF(WorkingR!$B52=\"Legacies Received\",WorkingR!F52,\"\")","v":""},{"$f":"IF(WorkingR!$B52=\"Legacies Received\",WorkingR!G52,\"\")","v":""},{"$f":"IF(WorkingR!$B52=\"Legacies Received\",WorkingR!H52,\"\")","v":""},{"$f":"IF(WorkingR!$B52=\"Legacies Received\",WorkingR!I52,\"\")","v":""},{"$f":"IF(WorkingR!$B52=\"Legacies Received\",WorkingR!J52,\"\")","v":""},{"$f":"IF(WorkingR!$B52=\"Legacies Received\",WorkingR!K52,\"\")","v":""},{"$f":"IF(WorkingR!$B52=\"Legacies Received\",WorkingR!L52,\"\")","v":""},{"$f":"IF(WorkingR!$B52=\"Legacies Received\",WorkingR!M52,\"\")","v":""},{"$f":"IF(WorkingR!$B52=\"Legacies Received\",WorkingR!N52,\"\")","v":""},{"$f":"IF(WorkingR!$B52=\"Legacies Received\",WorkingR!O52,\"\")","v":""},{"$f":"IF(WorkingR!$B52=\"Legacies Received\",WorkingR!P52,\"\")","v":""},{"$f":"IF(WorkingR!$B52=\"Legacies Received\",WorkingR!Q52,\"\")","v":""},{"$f":"IF(WorkingR!$B52=\"Legacies Received\",WorkingR!R52,\"\")","v":""},{"$f":"IF(WorkingR!$B52=\"Legacies Received\",WorkingR!S52,\"\")","v":""},{"$f":"IF(WorkingR!$B52=\"Legacies Received\",WorkingR!T52,\"\")","v":""},{"$f":"IF(WorkingR!$B52=\"Legacies Received\",WorkingR!U52,\"\")","v":""},{"$f":"IF(WorkingR!$B52=\"Legacies Received\",WorkingR!V52,\"\")","v":""},{"$f":"IF(WorkingR!$B52=\"Legacies Received\",WorkingR!W52,\"\")","v":""},{"$f":"IF(WorkingR!$B52=\"Legacies Received\",WorkingR!X52,\"\")","v":""},{"$f":"IF(WorkingR!$B52=\"Legacies Received\",WorkingR!Y52,\"\")","v":""},{"$f":"IF(Descriptions!D53=\"Legacies Received\",Descriptions!AA53,0)","v":0}]
[{"$f":"IF(Descriptions!D54=\"Legacies Received\",Descriptions!B54,0)","v":0},{"$f":"IF(WorkingR!$B53=\"Legacies Received\",WorkingR!D53,\"\")","v":""},{"$f":"IF(WorkingR!$B53=\"Legacies Received\",WorkingR!E53,\"\")","v":""},{"$f":"IF(WorkingR!$B53=\"Legacies Received\",WorkingR!F53,\"\")","v":""},{"$f":"IF(WorkingR!$B53=\"Legacies Received\",WorkingR!G53,\"\")","v":""},{"$f":"IF(WorkingR!$B53=\"Legacies Received\",WorkingR!H53,\"\")","v":""},{"$f":"IF(WorkingR!$B53=\"Legacies Received\",WorkingR!I53,\"\")","v":""},{"$f":"IF(WorkingR!$B53=\"Legacies Received\",WorkingR!J53,\"\")","v":""},{"$f":"IF(WorkingR!$B53=\"Legacies Received\",WorkingR!K53,\"\")","v":""},{"$f":"IF(WorkingR!$B53=\"Legacies Received\",WorkingR!L53,\"\")","v":""},{"$f":"IF(WorkingR!$B53=\"Legacies Received\",WorkingR!M53,\"\")","v":""},{"$f":"IF(WorkingR!$B53=\"Legacies Received\",WorkingR!N53,\"\")","v":""},{"$f":"IF(WorkingR!$B53=\"Legacies Received\",WorkingR!O53,\"\")","v":""},{"$f":"IF(WorkingR!$B53=\"Legacies Received\",WorkingR!P53,\"\")","v":""},{"$f":"IF(WorkingR!$B53=\"Legacies Received\",WorkingR!Q53,\"\")","v":""},{"$f":"IF(WorkingR!$B53=\"Legacies Received\",WorkingR!R53,\"\")","v":""},{"$f":"IF(WorkingR!$B53=\"Legacies Received\",WorkingR!S53,\"\")","v":""},{"$f":"IF(WorkingR!$B53=\"Legacies Received\",WorkingR!T53,\"\")","v":""},{"$f":"IF(WorkingR!$B53=\"Legacies Received\",WorkingR!U53,\"\")","v":""},{"$f":"IF(WorkingR!$B53=\"Legacies Received\",WorkingR!V53,\"\")","v":""},{"$f":"IF(WorkingR!$B53=\"Legacies Received\",WorkingR!W53,\"\")","v":""},{"$f":"IF(WorkingR!$B53=\"Legacies Received\",WorkingR!X53,\"\")","v":""},{"$f":"IF(WorkingR!$B53=\"Legacies Received\",WorkingR!Y53,\"\")","v":""},{"$f":"IF(Descriptions!D54=\"Legacies Received\",Descriptions!AA54,0)","v":0}]
[{"$f":"IF(Descriptions!D55=\"Legacies Received\",Descriptions!B55,0)","v":0},{"$f":"IF(WorkingR!$B54=\"Legacies Received\",WorkingR!D54,\"\")","v":""},{"$f":"IF(WorkingR!$B54=\"Legacies Received\",WorkingR!E54,\"\")","v":""},{"$f":"IF(WorkingR!$B54=\"Legacies Received\",WorkingR!F54,\"\")","v":""},{"$f":"IF(WorkingR!$B54=\"Legacies Received\",WorkingR!G54,\"\")","v":""},{"$f":"IF(WorkingR!$B54=\"Legacies Received\",WorkingR!H54,\"\")","v":""},{"$f":"IF(WorkingR!$B54=\"Legacies Received\",WorkingR!I54,\"\")","v":""},{"$f":"IF(WorkingR!$B54=\"Legacies Received\",WorkingR!J54,\"\")","v":""},{"$f":"IF(WorkingR!$B54=\"Legacies Received\",WorkingR!K54,\"\")","v":""},{"$f":"IF(WorkingR!$B54=\"Legacies Received\",WorkingR!L54,\"\")","v":""},{"$f":"IF(WorkingR!$B54=\"Legacies Received\",WorkingR!M54,\"\")","v":""},{"$f":"IF(WorkingR!$B54=\"Legacies Received\",WorkingR!N54,\"\")","v":""},{"$f":"IF(WorkingR!$B54=\"Legacies Received\",WorkingR!O54,\"\")","v":""},{"$f":"IF(WorkingR!$B54=\"Legacies Received\",WorkingR!P54,\"\")","v":""},{"$f":"IF(WorkingR!$B54=\"Legacies Received\",WorkingR!Q54,\"\")","v":""},{"$f":"IF(WorkingR!$B54=\"Legacies Received\",WorkingR!R54,\"\")","v":""},{"$f":"IF(WorkingR!$B54=\"Legacies Received\",WorkingR!S54,\"\")","v":""},{"$f":"IF(WorkingR!$B54=\"Legacies Received\",WorkingR!T54,\"\")","v":""},{"$f":"IF(WorkingR!$B54=\"Legacies Received\",WorkingR!U54,\"\")","v":""},{"$f":"IF(WorkingR!$B54=\"Legacies Received\",WorkingR!V54,\"\")","v":""},{"$f":"IF(WorkingR!$B54=\"Legacies Received\",WorkingR!W54,\"\")","v":""},{"$f":"IF(WorkingR!$B54=\"Legacies Received\",WorkingR!X54,\"\")","v":""},{"$f":"IF(WorkingR!$B54=\"Legacies Received\",WorkingR!Y54,\"\")","v":""},{"$f":"IF(Descriptions!D55=\"Legacies Received\",Descriptions!AA55,0)","v":0}]
[{"$f":"IF(Descriptions!D56=\"Legacies Received\",Descriptions!B56,0)","v":0},{"$f":"IF(WorkingR!$B55=\"Legacies Received\",WorkingR!D55,\"\")","v":""},{"$f":"IF(WorkingR!$B55=\"Legacies Received\",WorkingR!E55,\"\")","v":""},{"$f":"IF(WorkingR!$B55=\"Legacies Received\",WorkingR!F55,\"\")","v":""},{"$f":"IF(WorkingR!$B55=\"Legacies Received\",WorkingR!G55,\"\")","v":""},{"$f":"IF(WorkingR!$B55=\"Legacies Received\",WorkingR!H55,\"\")","v":""},{"$f":"IF(WorkingR!$B55=\"Legacies Received\",WorkingR!I55,\"\")","v":""},{"$f":"IF(WorkingR!$B55=\"Legacies Received\",WorkingR!J55,\"\")","v":""},{"$f":"IF(WorkingR!$B55=\"Legacies Received\",WorkingR!K55,\"\")","v":""},{"$f":"IF(WorkingR!$B55=\"Legacies Received\",WorkingR!L55,\"\")","v":""},{"$f":"IF(WorkingR!$B55=\"Legacies Received\",WorkingR!M55,\"\")","v":""},{"$f":"IF(WorkingR!$B55=\"Legacies Received\",WorkingR!N55,\"\")","v":""},{"$f":"IF(WorkingR!$B55=\"Legacies Received\",WorkingR!O55,\"\")","v":""},{"$f":"IF(WorkingR!$B55=\"Legacies Received\",WorkingR!P55,\"\")","v":""},{"$f":"IF(WorkingR!$B55=\"Legacies Received\",WorkingR!Q55,\"\")","v":""},{"$f":"IF(WorkingR!$B55=\"Legacies Received\",WorkingR!R55,\"\")","v":""},{"$f":"IF(WorkingR!$B55=\"Legacies Received\",WorkingR!S55,\"\")","v":""},{"$f":"IF(WorkingR!$B55=\"Legacies Received\",WorkingR!T55,\"\")","v":""},{"$f":"IF(WorkingR!$B55=\"Legacies Received\",WorkingR!U55,\"\")","v":""},{"$f":"IF(WorkingR!$B55=\"Legacies Received\",WorkingR!V55,\"\")","v":""},{"$f":"IF(WorkingR!$B55=\"Legacies Received\",WorkingR!W55,\"\")","v":""},{"$f":"IF(WorkingR!$B55=\"Legacies Received\",WorkingR!X55,\"\")","v":""},{"$f":"IF(WorkingR!$B55=\"Legacies Received\",WorkingR!Y55,\"\")","v":""},{"$f":"IF(Descriptions!D56=\"Legacies Received\",Descriptions!AA56,0)","v":0}]
[{"$f":"IF(Descriptions!D57=\"Legacies Received\",Descriptions!B57,0)","v":0},{"$f":"IF(WorkingR!$B56=\"Legacies Received\",WorkingR!D56,\"\")","v":""},{"$f":"IF(WorkingR!$B56=\"Legacies Received\",WorkingR!E56,\"\")","v":""},{"$f":"IF(WorkingR!$B56=\"Legacies Received\",WorkingR!F56,\"\")","v":""},{"$f":"IF(WorkingR!$B56=\"Legacies Received\",WorkingR!G56,\"\")","v":""},{"$f":"IF(WorkingR!$B56=\"Legacies Received\",WorkingR!H56,\"\")","v":""},{"$f":"IF(WorkingR!$B56=\"Legacies Received\",WorkingR!I56,\"\")","v":""},{"$f":"IF(WorkingR!$B56=\"Legacies Received\",WorkingR!J56,\"\")","v":""},{"$f":"IF(WorkingR!$B56=\"Legacies Received\",WorkingR!K56,\"\")","v":""},{"$f":"IF(WorkingR!$B56=\"Legacies Received\",WorkingR!L56,\"\")","v":""},{"$f":"IF(WorkingR!$B56=\"Legacies Received\",WorkingR!M56,\"\")","v":""},{"$f":"IF(WorkingR!$B56=\"Legacies Received\",WorkingR!N56,\"\")","v":""},{"$f":"IF(WorkingR!$B56=\"Legacies Received\",WorkingR!O56,\"\")","v":""},{"$f":"IF(WorkingR!$B56=\"Legacies Received\",WorkingR!P56,\"\")","v":""},{"$f":"IF(WorkingR!$B56=\"Legacies Received\",WorkingR!Q56,\"\")","v":""},{"$f":"IF(WorkingR!$B56=\"Legacies Received\",WorkingR!R56,\"\")","v":""},{"$f":"IF(WorkingR!$B56=\"Legacies Received\",WorkingR!S56,\"\")","v":""},{"$f":"IF(WorkingR!$B56=\"Legacies Received\",WorkingR!T56,\"\")","v":""},{"$f":"IF(WorkingR!$B56=\"Legacies Received\",WorkingR!U56,\"\")","v":""},{"$f":"IF(WorkingR!$B56=\"Legacies Received\",WorkingR!V56,\"\")","v":""},{"$f":"IF(WorkingR!$B56=\"Legacies Received\",WorkingR!W56,\"\")","v":""},{"$f":"IF(WorkingR!$B56=\"Legacies Received\",WorkingR!X56,\"\")","v":""},{"$f":"IF(WorkingR!$B56=\"Legacies Received\",WorkingR!Y56,\"\")","v":""},{"$f":"IF(Descriptions!D57=\"Legacies Received\",Descriptions!AA57,0)","v":0}]
[{"$f":"IF(Descriptions!D58=\"Legacies Received\",Descriptions!B58,0)","v":0},{"$f":"IF(WorkingR!$B57=\"Legacies Received\",WorkingR!D57,\"\")","v":""},{"$f":"IF(WorkingR!$B57=\"Legacies Received\",WorkingR!E57,\"\")","v":""},{"$f":"IF(WorkingR!$B57=\"Legacies Received\",WorkingR!F57,\"\")","v":""},{"$f":"IF(WorkingR!$B57=\"Legacies Received\",WorkingR!G57,\"\")","v":""},{"$f":"IF(WorkingR!$B57=\"Legacies Received\",WorkingR!H57,\"\")","v":""},{"$f":"IF(WorkingR!$B57=\"Legacies Received\",WorkingR!I57,\"\")","v":""},{"$f":"IF(WorkingR!$B57=\"Legacies Received\",WorkingR!J57,\"\")","v":""},{"$f":"IF(WorkingR!$B57=\"Legacies Received\",WorkingR!K57,\"\")","v":""},{"$f":"IF(WorkingR!$B57=\"Legacies Received\",WorkingR!L57,\"\")","v":""},{"$f":"IF(WorkingR!$B57=\"Legacies Received\",WorkingR!M57,\"\")","v":""},{"$f":"IF(WorkingR!$B57=\"Legacies Received\",WorkingR!N57,\"\")","v":""},{"$f":"IF(WorkingR!$B57=\"Legacies Received\",WorkingR!O57,\"\")","v":""},{"$f":"IF(WorkingR!$B57=\"Legacies Received\",WorkingR!P57,\"\")","v":""},{"$f":"IF(WorkingR!$B57=\"Legacies Received\",WorkingR!Q57,\"\")","v":""},{"$f":"IF(WorkingR!$B57=\"Legacies Received\",WorkingR!R57,\"\")","v":""},{"$f":"IF(WorkingR!$B57=\"Legacies Received\",WorkingR!S57,\"\")","v":""},{"$f":"IF(WorkingR!$B57=\"Legacies Received\",WorkingR!T57,\"\")","v":""},{"$f":"IF(WorkingR!$B57=\"Legacies Received\",WorkingR!U57,\"\")","v":""},{"$f":"IF(WorkingR!$B57=\"Legacies Received\",WorkingR!V57,\"\")","v":""},{"$f":"IF(WorkingR!$B57=\"Legacies Received\",WorkingR!W57,\"\")","v":""},{"$f":"IF(WorkingR!$B57=\"Legacies Received\",WorkingR!X57,\"\")","v":""},{"$f":"IF(WorkingR!$B57=\"Legacies Received\",WorkingR!Y57,\"\")","v":""},{"$f":"IF(Descriptions!D58=\"Legacies Received\",Descriptions!AA58,0)","v":0}]
[{"$f":"IF(Descriptions!D59=\"Legacies Received\",Descriptions!B59,0)","v":0},{"$f":"IF(WorkingR!$B58=\"Legacies Received\",WorkingR!D58,\"\")","v":""},{"$f":"IF(WorkingR!$B58=\"Legacies Received\",WorkingR!E58,\"\")","v":""},{"$f":"IF(WorkingR!$B58=\"Legacies Received\",WorkingR!F58,\"\")","v":""},{"$f":"IF(WorkingR!$B58=\"Legacies Received\",WorkingR!G58,\"\")","v":""},{"$f":"IF(WorkingR!$B58=\"Legacies Received\",WorkingR!H58,\"\")","v":""},{"$f":"IF(WorkingR!$B58=\"Legacies Received\",WorkingR!I58,\"\")","v":""},{"$f":"IF(WorkingR!$B58=\"Legacies Received\",WorkingR!J58,\"\")","v":""},{"$f":"IF(WorkingR!$B58=\"Legacies Received\",WorkingR!K58,\"\")","v":""},{"$f":"IF(WorkingR!$B58=\"Legacies Received\",WorkingR!L58,\"\")","v":""},{"$f":"IF(WorkingR!$B58=\"Legacies Received\",WorkingR!M58,\"\")","v":""},{"$f":"IF(WorkingR!$B58=\"Legacies Received\",WorkingR!N58,\"\")","v":""},{"$f":"IF(WorkingR!$B58=\"Legacies Received\",WorkingR!O58,\"\")","v":""},{"$f":"IF(WorkingR!$B58=\"Legacies Received\",WorkingR!P58,\"\")","v":""},{"$f":"IF(WorkingR!$B58=\"Legacies Received\",WorkingR!Q58,\"\")","v":""},{"$f":"IF(WorkingR!$B58=\"Legacies Received\",WorkingR!R58,\"\")","v":""},{"$f":"IF(WorkingR!$B58=\"Legacies Received\",WorkingR!S58,\"\")","v":""},{"$f":"IF(WorkingR!$B58=\"Legacies Received\",WorkingR!T58,\"\")","v":""},{"$f":"IF(WorkingR!$B58=\"Legacies Received\",WorkingR!U58,\"\")","v":""},{"$f":"IF(WorkingR!$B58=\"Legacies Received\",WorkingR!V58,\"\")","v":""},{"$f":"IF(WorkingR!$B58=\"Legacies Received\",WorkingR!W58,\"\")","v":""},{"$f":"IF(WorkingR!$B58=\"Legacies Received\",WorkingR!X58,\"\")","v":""},{"$f":"IF(WorkingR!$B58=\"Legacies Received\",WorkingR!Y58,\"\")","v":""},{"$f":"IF(Descriptions!D59=\"Legacies Received\",Descriptions!AA59,0)","v":0}]
[{"$f":"IF(Descriptions!D60=\"Legacies Received\",Descriptions!B60,0)","v":0},{"$f":"IF(WorkingR!$B59=\"Legacies Received\",WorkingR!D59,\"\")","v":""},{"$f":"IF(WorkingR!$B59=\"Legacies Received\",WorkingR!E59,\"\")","v":""},{"$f":"IF(WorkingR!$B59=\"Legacies Received\",WorkingR!F59,\"\")","v":""},{"$f":"IF(WorkingR!$B59=\"Legacies Received\",WorkingR!G59,\"\")","v":""},{"$f":"IF(WorkingR!$B59=\"Legacies Received\",WorkingR!H59,\"\")","v":""},{"$f":"IF(WorkingR!$B59=\"Legacies Received\",WorkingR!I59,\"\")","v":""},{"$f":"IF(WorkingR!$B59=\"Legacies Received\",WorkingR!J59,\"\")","v":""},{"$f":"IF(WorkingR!$B59=\"Legacies Received\",WorkingR!K59,\"\")","v":""},{"$f":"IF(WorkingR!$B59=\"Legacies Received\",WorkingR!L59,\"\")","v":""},{"$f":"IF(WorkingR!$B59=\"Legacies Received\",WorkingR!M59,\"\")","v":""},{"$f":"IF(WorkingR!$B59=\"Legacies Received\",WorkingR!N59,\"\")","v":""},{"$f":"IF(WorkingR!$B59=\"Legacies Received\",WorkingR!O59,\"\")","v":""},{"$f":"IF(WorkingR!$B59=\"Legacies Received\",WorkingR!P59,\"\")","v":""},{"$f":"IF(WorkingR!$B59=\"Legacies Received\",WorkingR!Q59,\"\")","v":""},{"$f":"IF(WorkingR!$B59=\"Legacies Received\",WorkingR!R59,\"\")","v":""},{"$f":"IF(WorkingR!$B59=\"Legacies Received\",WorkingR!S59,\"\")","v":""},{"$f":"IF(WorkingR!$B59=\"Legacies Received\",WorkingR!T59,\"\")","v":""},{"$f":"IF(WorkingR!$B59=\"Legacies Received\",WorkingR!U59,\"\")","v":""},{"$f":"IF(WorkingR!$B59=\"Legacies Received\",WorkingR!V59,\"\")","v":""},{"$f":"IF(WorkingR!$B59=\"Legacies Received\",WorkingR!W59,\"\")","v":""},{"$f":"IF(WorkingR!$B59=\"Legacies Received\",WorkingR!X59,\"\")","v":""},{"$f":"IF(WorkingR!$B59=\"Legacies Received\",WorkingR!Y59,\"\")","v":""},{"$f":"IF(Descriptions!D60=\"Legacies Received\",Descriptions!AA60,0)","v":0}]
[{"$f":"IF(Descriptions!D61=\"Legacies Received\",Descriptions!B61,0)","v":0},{"$f":"IF(WorkingR!$B60=\"Legacies Received\",WorkingR!D60,\"\")","v":""},{"$f":"IF(WorkingR!$B60=\"Legacies Received\",WorkingR!E60,\"\")","v":""},{"$f":"IF(WorkingR!$B60=\"Legacies Received\",WorkingR!F60,\"\")","v":""},{"$f":"IF(WorkingR!$B60=\"Legacies Received\",WorkingR!G60,\"\")","v":""},{"$f":"IF(WorkingR!$B60=\"Legacies Received\",WorkingR!H60,\"\")","v":""},{"$f":"IF(WorkingR!$B60=\"Legacies Received\",WorkingR!I60,\"\")","v":""},{"$f":"IF(WorkingR!$B60=\"Legacies Received\",WorkingR!J60,\"\")","v":""},{"$f":"IF(WorkingR!$B60=\"Legacies Received\",WorkingR!K60,\"\")","v":""},{"$f":"IF(WorkingR!$B60=\"Legacies Received\",WorkingR!L60,\"\")","v":""},{"$f":"IF(WorkingR!$B60=\"Legacies Received\",WorkingR!M60,\"\")","v":""},{"$f":"IF(WorkingR!$B60=\"Legacies Received\",WorkingR!N60,\"\")","v":""},{"$f":"IF(WorkingR!$B60=\"Legacies Received\",WorkingR!O60,\"\")","v":""},{"$f":"IF(WorkingR!$B60=\"Legacies Received\",WorkingR!P60,\"\")","v":""},{"$f":"IF(WorkingR!$B60=\"Legacies Received\",WorkingR!Q60,\"\")","v":""},{"$f":"IF(WorkingR!$B60=\"Legacies Received\",WorkingR!R60,\"\")","v":""},{"$f":"IF(WorkingR!$B60=\"Legacies Received\",WorkingR!S60,\"\")","v":""},{"$f":"IF(WorkingR!$B60=\"Legacies Received\",WorkingR!T60,\"\")","v":""},{"$f":"IF(WorkingR!$B60=\"Legacies Received\",WorkingR!U60,\"\")","v":""},{"$f":"IF(WorkingR!$B60=\"Legacies Received\",WorkingR!V60,\"\")","v":""},{"$f":"IF(WorkingR!$B60=\"Legacies Received\",WorkingR!W60,\"\")","v":""},{"$f":"IF(WorkingR!$B60=\"Legacies Received\",WorkingR!X60,\"\")","v":""},{"$f":"IF(WorkingR!$B60=\"Legacies Received\",WorkingR!Y60,\"\")","v":""},{"$f":"IF(Descriptions!D61=\"Legacies Received\",Descriptions!AA61,0)","v":0}]
[{"$f":"IF(Descriptions!D62=\"Legacies Received\",Descriptions!B62,0)","v":0},{"$f":"IF(WorkingR!$B61=\"Legacies Received\",WorkingR!D61,\"\")","v":""},{"$f":"IF(WorkingR!$B61=\"Legacies Received\",WorkingR!E61,\"\")","v":""},{"$f":"IF(WorkingR!$B61=\"Legacies Received\",WorkingR!F61,\"\")","v":""},{"$f":"IF(WorkingR!$B61=\"Legacies Received\",WorkingR!G61,\"\")","v":""},{"$f":"IF(WorkingR!$B61=\"Legacies Received\",WorkingR!H61,\"\")","v":""},{"$f":"IF(WorkingR!$B61=\"Legacies Received\",WorkingR!I61,\"\")","v":""},{"$f":"IF(WorkingR!$B61=\"Legacies Received\",WorkingR!J61,\"\")","v":""},{"$f":"IF(WorkingR!$B61=\"Legacies Received\",WorkingR!K61,\"\")","v":""},{"$f":"IF(WorkingR!$B61=\"Legacies Received\",WorkingR!L61,\"\")","v":""},{"$f":"IF(WorkingR!$B61=\"Legacies Received\",WorkingR!M61,\"\")","v":""},{"$f":"IF(WorkingR!$B61=\"Legacies Received\",WorkingR!N61,\"\")","v":""},{"$f":"IF(WorkingR!$B61=\"Legacies Received\",WorkingR!O61,\"\")","v":""},{"$f":"IF(WorkingR!$B61=\"Legacies Received\",WorkingR!P61,\"\")","v":""},{"$f":"IF(WorkingR!$B61=\"Legacies Received\",WorkingR!Q61,\"\")","v":""},{"$f":"IF(WorkingR!$B61=\"Legacies Received\",WorkingR!R61,\"\")","v":""},{"$f":"IF(WorkingR!$B61=\"Legacies Received\",WorkingR!S61,\"\")","v":""},{"$f":"IF(WorkingR!$B61=\"Legacies Received\",WorkingR!T61,\"\")","v":""},{"$f":"IF(WorkingR!$B61=\"Legacies Received\",WorkingR!U61,\"\")","v":""},{"$f":"IF(WorkingR!$B61=\"Legacies Received\",WorkingR!V61,\"\")","v":""},{"$f":"IF(WorkingR!$B61=\"Legacies Received\",WorkingR!W61,\"\")","v":""},{"$f":"IF(WorkingR!$B61=\"Legacies Received\",WorkingR!X61,\"\")","v":""},{"$f":"IF(WorkingR!$B61=\"Legacies Received\",WorkingR!Y61,\"\")","v":""},{"$f":"IF(Descriptions!D62=\"Legacies Received\",Descriptions!AA62,0)","v":0}]
[{"$f":"IF(Descriptions!D63=\"Legacies Received\",Descriptions!B63,0)","v":0},{"$f":"IF(WorkingR!$B62=\"Legacies Received\",WorkingR!D62,\"\")","v":""},{"$f":"IF(WorkingR!$B62=\"Legacies Received\",WorkingR!E62,\"\")","v":""},{"$f":"IF(WorkingR!$B62=\"Legacies Received\",WorkingR!F62,\"\")","v":""},{"$f":"IF(WorkingR!$B62=\"Legacies Received\",WorkingR!G62,\"\")","v":""},{"$f":"IF(WorkingR!$B62=\"Legacies Received\",WorkingR!H62,\"\")","v":""},{"$f":"IF(WorkingR!$B62=\"Legacies Received\",WorkingR!I62,\"\")","v":""},{"$f":"IF(WorkingR!$B62=\"Legacies Received\",WorkingR!J62,\"\")","v":""},{"$f":"IF(WorkingR!$B62=\"Legacies Received\",WorkingR!K62,\"\")","v":""},{"$f":"IF(WorkingR!$B62=\"Legacies Received\",WorkingR!L62,\"\")","v":""},{"$f":"IF(WorkingR!$B62=\"Legacies Received\",WorkingR!M62,\"\")","v":""},{"$f":"IF(WorkingR!$B62=\"Legacies Received\",WorkingR!N62,\"\")","v":""},{"$f":"IF(WorkingR!$B62=\"Legacies Received\",WorkingR!O62,\"\")","v":""},{"$f":"IF(WorkingR!$B62=\"Legacies Received\",WorkingR!P62,\"\")","v":""},{"$f":"IF(WorkingR!$B62=\"Legacies Received\",WorkingR!Q62,\"\")","v":""},{"$f":"IF(WorkingR!$B62=\"Legacies Received\",WorkingR!R62,\"\")","v":""},{"$f":"IF(WorkingR!$B62=\"Legacies Received\",WorkingR!S62,\"\")","v":""},{"$f":"IF(WorkingR!$B62=\"Legacies Received\",WorkingR!T62,\"\")","v":""},{"$f":"IF(WorkingR!$B62=\"Legacies Received\",WorkingR!U62,\"\")","v":""},{"$f":"IF(WorkingR!$B62=\"Legacies Received\",WorkingR!V62,\"\")","v":""},{"$f":"IF(WorkingR!$B62=\"Legacies Received\",WorkingR!W62,\"\")","v":""},{"$f":"IF(WorkingR!$B62=\"Legacies Received\",WorkingR!X62,\"\")","v":""},{"$f":"IF(WorkingR!$B62=\"Legacies Received\",WorkingR!Y62,\"\")","v":""},{"$f":"IF(Descriptions!D63=\"Legacies Received\",Descriptions!AA63,0)","v":0}]
[{"$f":"IF(Descriptions!D64=\"Legacies Received\",Descriptions!B64,0)","v":0},{"$f":"IF(WorkingR!$B63=\"Legacies Received\",WorkingR!D63,\"\")","v":""},{"$f":"IF(WorkingR!$B63=\"Legacies Received\",WorkingR!E63,\"\")","v":""},{"$f":"IF(WorkingR!$B63=\"Legacies Received\",WorkingR!F63,\"\")","v":""},{"$f":"IF(WorkingR!$B63=\"Legacies Received\",WorkingR!G63,\"\")","v":""},{"$f":"IF(WorkingR!$B63=\"Legacies Received\",WorkingR!H63,\"\")","v":""},{"$f":"IF(WorkingR!$B63=\"Legacies Received\",WorkingR!I63,\"\")","v":""},{"$f":"IF(WorkingR!$B63=\"Legacies Received\",WorkingR!J63,\"\")","v":""},{"$f":"IF(WorkingR!$B63=\"Legacies Received\",WorkingR!K63,\"\")","v":""},{"$f":"IF(WorkingR!$B63=\"Legacies Received\",WorkingR!L63,\"\")","v":""},{"$f":"IF(WorkingR!$B63=\"Legacies Received\",WorkingR!M63,\"\")","v":""},{"$f":"IF(WorkingR!$B63=\"Legacies Received\",WorkingR!N63,\"\")","v":""},{"$f":"IF(WorkingR!$B63=\"Legacies Received\",WorkingR!O63,\"\")","v":""},{"$f":"IF(WorkingR!$B63=\"Legacies Received\",WorkingR!P63,\"\")","v":""},{"$f":"IF(WorkingR!$B63=\"Legacies Received\",WorkingR!Q63,\"\")","v":""},{"$f":"IF(WorkingR!$B63=\"Legacies Received\",WorkingR!R63,\"\")","v":""},{"$f":"IF(WorkingR!$B63=\"Legacies Received\",WorkingR!S63,\"\")","v":""},{"$f":"IF(WorkingR!$B63=\"Legacies Received\",WorkingR!T63,\"\")","v":""},{"$f":"IF(WorkingR!$B63=\"Legacies Received\",WorkingR!U63,\"\")","v":""},{"$f":"IF(WorkingR!$B63=\"Legacies Received\",WorkingR!V63,\"\")","v":""},{"$f":"IF(WorkingR!$B63=\"Legacies Received\",WorkingR!W63,\"\")","v":""},{"$f":"IF(WorkingR!$B63=\"Legacies Received\",WorkingR!X63,\"\")","v":""},{"$f":"IF(WorkingR!$B63=\"Legacies Received\",WorkingR!Y63,\"\")","v":""},{"$f":"IF(Descriptions!D64=\"Legacies Received\",Descriptions!AA64,0)","v":0}]
[{"$f":"IF(Descriptions!D65=\"Legacies Received\",Descriptions!B65,0)","v":0},{"$f":"IF(WorkingR!$B64=\"Legacies Received\",WorkingR!D64,\"\")","v":""},{"$f":"IF(WorkingR!$B64=\"Legacies Received\",WorkingR!E64,\"\")","v":""},{"$f":"IF(WorkingR!$B64=\"Legacies Received\",WorkingR!F64,\"\")","v":""},{"$f":"IF(WorkingR!$B64=\"Legacies Received\",WorkingR!G64,\"\")","v":""},{"$f":"IF(WorkingR!$B64=\"Legacies Received\",WorkingR!H64,\"\")","v":""},{"$f":"IF(WorkingR!$B64=\"Legacies Received\",WorkingR!I64,\"\")","v":""},{"$f":"IF(WorkingR!$B64=\"Legacies Received\",WorkingR!J64,\"\")","v":""},{"$f":"IF(WorkingR!$B64=\"Legacies Received\",WorkingR!K64,\"\")","v":""},{"$f":"IF(WorkingR!$B64=\"Legacies Received\",WorkingR!L64,\"\")","v":""},{"$f":"IF(WorkingR!$B64=\"Legacies Received\",WorkingR!M64,\"\")","v":""},{"$f":"IF(WorkingR!$B64=\"Legacies Received\",WorkingR!N64,\"\")","v":""},{"$f":"IF(WorkingR!$B64=\"Legacies Received\",WorkingR!O64,\"\")","v":""},{"$f":"IF(WorkingR!$B64=\"Legacies Received\",WorkingR!P64,\"\")","v":""},{"$f":"IF(WorkingR!$B64=\"Legacies Received\",WorkingR!Q64,\"\")","v":""},{"$f":"IF(WorkingR!$B64=\"Legacies Received\",WorkingR!R64,\"\")","v":""},{"$f":"IF(WorkingR!$B64=\"Legacies Received\",WorkingR!S64,\"\")","v":""},{"$f":"IF(WorkingR!$B64=\"Legacies Received\",WorkingR!T64,\"\")","v":""},{"$f":"IF(WorkingR!$B64=\"Legacies Received\",WorkingR!U64,\"\")","v":""},{"$f":"IF(WorkingR!$B64=\"Legacies Received\",WorkingR!V64,\"\")","v":""},{"$f":"IF(WorkingR!$B64=\"Legacies Received\",WorkingR!W64,\"\")","v":""},{"$f":"IF(WorkingR!$B64=\"Legacies Received\",WorkingR!X64,\"\")","v":""},{"$f":"IF(WorkingR!$B64=\"Legacies Received\",WorkingR!Y64,\"\")","v":""},{"$f":"IF(Descriptions!D65=\"Legacies Received\",Descriptions!AA65,0)","v":0}]
[{"$f":"IF(Descriptions!D66=\"Legacies Received\",Descriptions!B66,0)","v":0},{"$f":"IF(WorkingR!$B65=\"Legacies Received\",WorkingR!D65,\"\")","v":""},{"$f":"IF(WorkingR!$B65=\"Legacies Received\",WorkingR!E65,\"\")","v":""},{"$f":"IF(WorkingR!$B65=\"Legacies Received\",WorkingR!F65,\"\")","v":""},{"$f":"IF(WorkingR!$B65=\"Legacies Received\",WorkingR!G65,\"\")","v":""},{"$f":"IF(WorkingR!$B65=\"Legacies Received\",WorkingR!H65,\"\")","v":""},{"$f":"IF(WorkingR!$B65=\"Legacies Received\",WorkingR!I65,\"\")","v":""},{"$f":"IF(WorkingR!$B65=\"Legacies Received\",WorkingR!J65,\"\")","v":""},{"$f":"IF(WorkingR!$B65=\"Legacies Received\",WorkingR!K65,\"\")","v":""},{"$f":"IF(WorkingR!$B65=\"Legacies Received\",WorkingR!L65,\"\")","v":""},{"$f":"IF(WorkingR!$B65=\"Legacies Received\",WorkingR!M65,\"\")","v":""},{"$f":"IF(WorkingR!$B65=\"Legacies Received\",WorkingR!N65,\"\")","v":""},{"$f":"IF(WorkingR!$B65=\"Legacies Received\",WorkingR!O65,\"\")","v":""},{"$f":"IF(WorkingR!$B65=\"Legacies Received\",WorkingR!P65,\"\")","v":""},{"$f":"IF(WorkingR!$B65=\"Legacies Received\",WorkingR!Q65,\"\")","v":""},{"$f":"IF(WorkingR!$B65=\"Legacies Received\",WorkingR!R65,\"\")","v":""},{"$f":"IF(WorkingR!$B65=\"Legacies Received\",WorkingR!S65,\"\")","v":""},{"$f":"IF(WorkingR!$B65=\"Legacies Received\",WorkingR!T65,\"\")","v":""},{"$f":"IF(WorkingR!$B65=\"Legacies Received\",WorkingR!U65,\"\")","v":""},{"$f":"IF(WorkingR!$B65=\"Legacies Received\",WorkingR!V65,\"\")","v":""},{"$f":"IF(WorkingR!$B65=\"Legacies Received\",WorkingR!W65,\"\")","v":""},{"$f":"IF(WorkingR!$B65=\"Legacies Received\",WorkingR!X65,\"\")","v":""},{"$f":"IF(WorkingR!$B65=\"Legacies Received\",WorkingR!Y65,\"\")","v":""},{"$f":"IF(Descriptions!D66=\"Legacies Received\",Descriptions!AA66,0)","v":0}]
[{"$f":"IF(Descriptions!D67=\"Legacies Received\",Descriptions!B67,0)","v":0},{"$f":"IF(WorkingR!$B66=\"Legacies Received\",WorkingR!D66,\"\")","v":""},{"$f":"IF(WorkingR!$B66=\"Legacies Received\",WorkingR!E66,\"\")","v":""},{"$f":"IF(WorkingR!$B66=\"Legacies Received\",WorkingR!F66,\"\")","v":""},{"$f":"IF(WorkingR!$B66=\"Legacies Received\",WorkingR!G66,\"\")","v":""},{"$f":"IF(WorkingR!$B66=\"Legacies Received\",WorkingR!H66,\"\")","v":""},{"$f":"IF(WorkingR!$B66=\"Legacies Received\",WorkingR!I66,\"\")","v":""},{"$f":"IF(WorkingR!$B66=\"Legacies Received\",WorkingR!J66,\"\")","v":""},{"$f":"IF(WorkingR!$B66=\"Legacies Received\",WorkingR!K66,\"\")","v":""},{"$f":"IF(WorkingR!$B66=\"Legacies Received\",WorkingR!L66,\"\")","v":""},{"$f":"IF(WorkingR!$B66=\"Legacies Received\",WorkingR!M66,\"\")","v":""},{"$f":"IF(WorkingR!$B66=\"Legacies Received\",WorkingR!N66,\"\")","v":""},{"$f":"IF(WorkingR!$B66=\"Legacies Received\",WorkingR!O66,\"\")","v":""},{"$f":"IF(WorkingR!$B66=\"Legacies Received\",WorkingR!P66,\"\")","v":""},{"$f":"IF(WorkingR!$B66=\"Legacies Received\",WorkingR!Q66,\"\")","v":""},{"$f":"IF(WorkingR!$B66=\"Legacies Received\",WorkingR!R66,\"\")","v":""},{"$f":"IF(WorkingR!$B66=\"Legacies Received\",WorkingR!S66,\"\")","v":""},{"$f":"IF(WorkingR!$B66=\"Legacies Received\",WorkingR!T66,\"\")","v":""},{"$f":"IF(WorkingR!$B66=\"Legacies Received\",WorkingR!U66,\"\")","v":""},{"$f":"IF(WorkingR!$B66=\"Legacies Received\",WorkingR!V66,\"\")","v":""},{"$f":"IF(WorkingR!$B66=\"Legacies Received\",WorkingR!W66,\"\")","v":""},{"$f":"IF(WorkingR!$B66=\"Legacies Received\",WorkingR!X66,\"\")","v":""},{"$f":"IF(WorkingR!$B66=\"Legacies Received\",WorkingR!Y66,\"\")","v":""},{"$f":"IF(Descriptions!D67=\"Legacies Received\",Descriptions!AA67,0)","v":0}]
[{"$f":"IF(Descriptions!D68=\"Legacies Received\",Descriptions!B68,0)","v":0},{"$f":"IF(WorkingR!$B67=\"Legacies Received\",WorkingR!D67,\"\")","v":""},{"$f":"IF(WorkingR!$B67=\"Legacies Received\",WorkingR!E67,\"\")","v":""},{"$f":"IF(WorkingR!$B67=\"Legacies Received\",WorkingR!F67,\"\")","v":""},{"$f":"IF(WorkingR!$B67=\"Legacies Received\",WorkingR!G67,\"\")","v":""},{"$f":"IF(WorkingR!$B67=\"Legacies Received\",WorkingR!H67,\"\")","v":""},{"$f":"IF(WorkingR!$B67=\"Legacies Received\",WorkingR!I67,\"\")","v":""},{"$f":"IF(WorkingR!$B67=\"Legacies Received\",WorkingR!J67,\"\")","v":""},{"$f":"IF(WorkingR!$B67=\"Legacies Received\",WorkingR!K67,\"\")","v":""},{"$f":"IF(WorkingR!$B67=\"Legacies Received\",WorkingR!L67,\"\")","v":""},{"$f":"IF(WorkingR!$B67=\"Legacies Received\",WorkingR!M67,\"\")","v":""},{"$f":"IF(WorkingR!$B67=\"Legacies Received\",WorkingR!N67,\"\")","v":""},{"$f":"IF(WorkingR!$B67=\"Legacies Received\",WorkingR!O67,\"\")","v":""},{"$f":"IF(WorkingR!$B67=\"Legacies Received\",WorkingR!P67,\"\")","v":""},{"$f":"IF(WorkingR!$B67=\"Legacies Received\",WorkingR!Q67,\"\")","v":""},{"$f":"IF(WorkingR!$B67=\"Legacies Received\",WorkingR!R67,\"\")","v":""},{"$f":"IF(WorkingR!$B67=\"Legacies Received\",WorkingR!S67,\"\")","v":""},{"$f":"IF(WorkingR!$B67=\"Legacies Received\",WorkingR!T67,\"\")","v":""},{"$f":"IF(WorkingR!$B67=\"Legacies Received\",WorkingR!U67,\"\")","v":""},{"$f":"IF(WorkingR!$B67=\"Legacies Received\",WorkingR!V67,\"\")","v":""},{"$f":"IF(WorkingR!$B67=\"Legacies Received\",WorkingR!W67,\"\")","v":""},{"$f":"IF(WorkingR!$B67=\"Legacies Received\",WorkingR!X67,\"\")","v":""},{"$f":"IF(WorkingR!$B67=\"Legacies Received\",WorkingR!Y67,\"\")","v":""},{"$f":"IF(Descriptions!D68=\"Legacies Received\",Descriptions!AA68,0)","v":0}]
[{"$f":"IF(Descriptions!D69=\"Legacies Received\",Descriptions!B69,0)","v":0},{"$f":"IF(WorkingR!$B68=\"Legacies Received\",WorkingR!D68,\"\")","v":""},{"$f":"IF(WorkingR!$B68=\"Legacies Received\",WorkingR!E68,\"\")","v":""},{"$f":"IF(WorkingR!$B68=\"Legacies Received\",WorkingR!F68,\"\")","v":""},{"$f":"IF(WorkingR!$B68=\"Legacies Received\",WorkingR!G68,\"\")","v":""},{"$f":"IF(WorkingR!$B68=\"Legacies Received\",WorkingR!H68,\"\")","v":""},{"$f":"IF(WorkingR!$B68=\"Legacies Received\",WorkingR!I68,\"\")","v":""},{"$f":"IF(WorkingR!$B68=\"Legacies Received\",WorkingR!J68,\"\")","v":""},{"$f":"IF(WorkingR!$B68=\"Legacies Received\",WorkingR!K68,\"\")","v":""},{"$f":"IF(WorkingR!$B68=\"Legacies Received\",WorkingR!L68,\"\")","v":""},{"$f":"IF(WorkingR!$B68=\"Legacies Received\",WorkingR!M68,\"\")","v":""},{"$f":"IF(WorkingR!$B68=\"Legacies Received\",WorkingR!N68,\"\")","v":""},{"$f":"IF(WorkingR!$B68=\"Legacies Received\",WorkingR!O68,\"\")","v":""},{"$f":"IF(WorkingR!$B68=\"Legacies Received\",WorkingR!P68,\"\")","v":""},{"$f":"IF(WorkingR!$B68=\"Legacies Received\",WorkingR!Q68,\"\")","v":""},{"$f":"IF(WorkingR!$B68=\"Legacies Received\",WorkingR!R68,\"\")","v":""},{"$f":"IF(WorkingR!$B68=\"Legacies Received\",WorkingR!S68,\"\")","v":""},{"$f":"IF(WorkingR!$B68=\"Legacies Received\",WorkingR!T68,\"\")","v":""},{"$f":"IF(WorkingR!$B68=\"Legacies Received\",WorkingR!U68,\"\")","v":""},{"$f":"IF(WorkingR!$B68=\"Legacies Received\",WorkingR!V68,\"\")","v":""},{"$f":"IF(WorkingR!$B68=\"Legacies Received\",WorkingR!W68,\"\")","v":""},{"$f":"IF(WorkingR!$B68=\"Legacies Received\",WorkingR!X68,\"\")","v":""},{"$f":"IF(WorkingR!$B68=\"Legacies Received\",WorkingR!Y68,\"\")","v":""},{"$f":"IF(Descriptions!D69=\"Legacies Received\",Descriptions!AA69,0)","v":0}]
[{"$f":"IF(Descriptions!D70=\"Legacies Received\",Descriptions!B70,0)","v":0},{"$f":"IF(WorkingR!$B69=\"Legacies Received\",WorkingR!D69,\"\")","v":""},{"$f":"IF(WorkingR!$B69=\"Legacies Received\",WorkingR!E69,\"\")","v":""},{"$f":"IF(WorkingR!$B69=\"Legacies Received\",WorkingR!F69,\"\")","v":""},{"$f":"IF(WorkingR!$B69=\"Legacies Received\",WorkingR!G69,\"\")","v":""},{"$f":"IF(WorkingR!$B69=\"Legacies Received\",WorkingR!H69,\"\")","v":""},{"$f":"IF(WorkingR!$B69=\"Legacies Received\",WorkingR!I69,\"\")","v":""},{"$f":"IF(WorkingR!$B69=\"Legacies Received\",WorkingR!J69,\"\")","v":""},{"$f":"IF(WorkingR!$B69=\"Legacies Received\",WorkingR!K69,\"\")","v":""},{"$f":"IF(WorkingR!$B69=\"Legacies Received\",WorkingR!L69,\"\")","v":""},{"$f":"IF(WorkingR!$B69=\"Legacies Received\",WorkingR!M69,\"\")","v":""},{"$f":"IF(WorkingR!$B69=\"Legacies Received\",WorkingR!N69,\"\")","v":""},{"$f":"IF(WorkingR!$B69=\"Legacies Received\",WorkingR!O69,\"\")","v":""},{"$f":"IF(WorkingR!$B69=\"Legacies Received\",WorkingR!P69,\"\")","v":""},{"$f":"IF(WorkingR!$B69=\"Legacies Received\",WorkingR!Q69,\"\")","v":""},{"$f":"IF(WorkingR!$B69=\"Legacies Received\",WorkingR!R69,\"\")","v":""},{"$f":"IF(WorkingR!$B69=\"Legacies Received\",WorkingR!S69,\"\")","v":""},{"$f":"IF(WorkingR!$B69=\"Legacies Received\",WorkingR!T69,\"\")","v":""},{"$f":"IF(WorkingR!$B69=\"Legacies Received\",WorkingR!U69,\"\")","v":""},{"$f":"IF(WorkingR!$B69=\"Legacies Received\",WorkingR!V69,\"\")","v":""},{"$f":"IF(WorkingR!$B69=\"Legacies Received\",WorkingR!W69,\"\")","v":""},{"$f":"IF(WorkingR!$B69=\"Legacies Received\",WorkingR!X69,\"\")","v":""},{"$f":"IF(WorkingR!$B69=\"Legacies Received\",WorkingR!Y69,\"\")","v":""},{"$f":"IF(Descriptions!D70=\"Legacies Received\",Descriptions!AA70,0)","v":0}]
[{"$f":"IF(Descriptions!D71=\"Legacies Received\",Descriptions!B71,0)","v":0},{"$f":"IF(WorkingR!$B70=\"Legacies Received\",WorkingR!D70,\"\")","v":""},{"$f":"IF(WorkingR!$B70=\"Legacies Received\",WorkingR!E70,\"\")","v":""},{"$f":"IF(WorkingR!$B70=\"Legacies Received\",WorkingR!F70,\"\")","v":""},{"$f":"IF(WorkingR!$B70=\"Legacies Received\",WorkingR!G70,\"\")","v":""},{"$f":"IF(WorkingR!$B70=\"Legacies Received\",WorkingR!H70,\"\")","v":""},{"$f":"IF(WorkingR!$B70=\"Legacies Received\",WorkingR!I70,\"\")","v":""},{"$f":"IF(WorkingR!$B70=\"Legacies Received\",WorkingR!J70,\"\")","v":""},{"$f":"IF(WorkingR!$B70=\"Legacies Received\",WorkingR!K70,\"\")","v":""},{"$f":"IF(WorkingR!$B70=\"Legacies Received\",WorkingR!L70,\"\")","v":""},{"$f":"IF(WorkingR!$B70=\"Legacies Received\",WorkingR!M70,\"\")","v":""},{"$f":"IF(WorkingR!$B70=\"Legacies Received\",WorkingR!N70,\"\")","v":""},{"$f":"IF(WorkingR!$B70=\"Legacies Received\",WorkingR!O70,\"\")","v":""},{"$f":"IF(WorkingR!$B70=\"Legacies Received\",WorkingR!P70,\"\")","v":""},{"$f":"IF(WorkingR!$B70=\"Legacies Received\",WorkingR!Q70,\"\")","v":""},{"$f":"IF(WorkingR!$B70=\"Legacies Received\",WorkingR!R70,\"\")","v":""},{"$f":"IF(WorkingR!$B70=\"Legacies Received\",WorkingR!S70,\"\")","v":""},{"$f":"IF(WorkingR!$B70=\"Legacies Received\",WorkingR!T70,\"\")","v":""},{"$f":"IF(WorkingR!$B70=\"Legacies Received\",WorkingR!U70,\"\")","v":""},{"$f":"IF(WorkingR!$B70=\"Legacies Received\",WorkingR!V70,\"\")","v":""},{"$f":"IF(WorkingR!$B70=\"Legacies Received\",WorkingR!W70,\"\")","v":""},{"$f":"IF(WorkingR!$B70=\"Legacies Received\",WorkingR!X70,\"\")","v":""},{"$f":"IF(WorkingR!$B70=\"Legacies Received\",WorkingR!Y70,\"\")","v":""},{"$f":"IF(Descriptions!D71=\"Legacies Received\",Descriptions!AA71,0)","v":0}]
[{"$f":"IF(Descriptions!D72=\"Legacies Received\",Descriptions!B72,0)","v":0},{"$f":"IF(WorkingR!$B71=\"Legacies Received\",WorkingR!D71,\"\")","v":""},{"$f":"IF(WorkingR!$B71=\"Legacies Received\",WorkingR!E71,\"\")","v":""},{"$f":"IF(WorkingR!$B71=\"Legacies Received\",WorkingR!F71,\"\")","v":""},{"$f":"IF(WorkingR!$B71=\"Legacies Received\",WorkingR!G71,\"\")","v":""},{"$f":"IF(WorkingR!$B71=\"Legacies Received\",WorkingR!H71,\"\")","v":""},{"$f":"IF(WorkingR!$B71=\"Legacies Received\",WorkingR!I71,\"\")","v":""},{"$f":"IF(WorkingR!$B71=\"Legacies Received\",WorkingR!J71,\"\")","v":""},{"$f":"IF(WorkingR!$B71=\"Legacies Received\",WorkingR!K71,\"\")","v":""},{"$f":"IF(WorkingR!$B71=\"Legacies Received\",WorkingR!L71,\"\")","v":""},{"$f":"IF(WorkingR!$B71=\"Legacies Received\",WorkingR!M71,\"\")","v":""},{"$f":"IF(WorkingR!$B71=\"Legacies Received\",WorkingR!N71,\"\")","v":""},{"$f":"IF(WorkingR!$B71=\"Legacies Received\",WorkingR!O71,\"\")","v":""},{"$f":"IF(WorkingR!$B71=\"Legacies Received\",WorkingR!P71,\"\")","v":""},{"$f":"IF(WorkingR!$B71=\"Legacies Received\",WorkingR!Q71,\"\")","v":""},{"$f":"IF(WorkingR!$B71=\"Legacies Received\",WorkingR!R71,\"\")","v":""},{"$f":"IF(WorkingR!$B71=\"Legacies Received\",WorkingR!S71,\"\")","v":""},{"$f":"IF(WorkingR!$B71=\"Legacies Received\",WorkingR!T71,\"\")","v":""},{"$f":"IF(WorkingR!$B71=\"Legacies Received\",WorkingR!U71,\"\")","v":""},{"$f":"IF(WorkingR!$B71=\"Legacies Received\",WorkingR!V71,\"\")","v":""},{"$f":"IF(WorkingR!$B71=\"Legacies Received\",WorkingR!W71,\"\")","v":""},{"$f":"IF(WorkingR!$B71=\"Legacies Received\",WorkingR!X71,\"\")","v":""},{"$f":"IF(WorkingR!$B71=\"Legacies Received\",WorkingR!Y71,\"\")","v":""},{"$f":"IF(Descriptions!D72=\"Legacies Received\",Descriptions!AA72,0)","v":0}]
[{"$f":"IF(Descriptions!D73=\"Legacies Received\",Descriptions!B73,0)","v":0},{"$f":"IF(WorkingR!$B72=\"Legacies Received\",WorkingR!D72,\"\")","v":""},{"$f":"IF(WorkingR!$B72=\"Legacies Received\",WorkingR!E72,\"\")","v":""},{"$f":"IF(WorkingR!$B72=\"Legacies Received\",WorkingR!F72,\"\")","v":""},{"$f":"IF(WorkingR!$B72=\"Legacies Received\",WorkingR!G72,\"\")","v":""},{"$f":"IF(WorkingR!$B72=\"Legacies Received\",WorkingR!H72,\"\")","v":""},{"$f":"IF(WorkingR!$B72=\"Legacies Received\",WorkingR!I72,\"\")","v":""},{"$f":"IF(WorkingR!$B72=\"Legacies Received\",WorkingR!J72,\"\")","v":""},{"$f":"IF(WorkingR!$B72=\"Legacies Received\",WorkingR!K72,\"\")","v":""},{"$f":"IF(WorkingR!$B72=\"Legacies Received\",WorkingR!L72,\"\")","v":""},{"$f":"IF(WorkingR!$B72=\"Legacies Received\",WorkingR!M72,\"\")","v":""},{"$f":"IF(WorkingR!$B72=\"Legacies Received\",WorkingR!N72,\"\")","v":""},{"$f":"IF(WorkingR!$B72=\"Legacies Received\",WorkingR!O72,\"\")","v":""},{"$f":"IF(WorkingR!$B72=\"Legacies Received\",WorkingR!P72,\"\")","v":""},{"$f":"IF(WorkingR!$B72=\"Legacies Received\",WorkingR!Q72,\"\")","v":""},{"$f":"IF(WorkingR!$B72=\"Legacies Received\",WorkingR!R72,\"\")","v":""},{"$f":"IF(WorkingR!$B72=\"Legacies Received\",WorkingR!S72,\"\")","v":""},{"$f":"IF(WorkingR!$B72=\"Legacies Received\",WorkingR!T72,\"\")","v":""},{"$f":"IF(WorkingR!$B72=\"Legacies Received\",WorkingR!U72,\"\")","v":""},{"$f":"IF(WorkingR!$B72=\"Legacies Received\",WorkingR!V72,\"\")","v":""},{"$f":"IF(WorkingR!$B72=\"Legacies Received\",WorkingR!W72,\"\")","v":""},{"$f":"IF(WorkingR!$B72=\"Legacies Received\",WorkingR!X72,\"\")","v":""},{"$f":"IF(WorkingR!$B72=\"Legacies Received\",WorkingR!Y72,\"\")","v":""},{"$f":"IF(Descriptions!D73=\"Legacies Received\",Descriptions!AA73,0)","v":0}]
[{"$f":"IF(Descriptions!D74=\"Legacies Received\",Descriptions!B74,0)","v":0},{"$f":"IF(WorkingR!$B73=\"Legacies Received\",WorkingR!D73,\"\")","v":""},{"$f":"IF(WorkingR!$B73=\"Legacies Received\",WorkingR!E73,\"\")","v":""},{"$f":"IF(WorkingR!$B73=\"Legacies Received\",WorkingR!F73,\"\")","v":""},{"$f":"IF(WorkingR!$B73=\"Legacies Received\",WorkingR!G73,\"\")","v":""},{"$f":"IF(WorkingR!$B73=\"Legacies Received\",WorkingR!H73,\"\")","v":""},{"$f":"IF(WorkingR!$B73=\"Legacies Received\",WorkingR!I73,\"\")","v":""},{"$f":"IF(WorkingR!$B73=\"Legacies Received\",WorkingR!J73,\"\")","v":""},{"$f":"IF(WorkingR!$B73=\"Legacies Received\",WorkingR!K73,\"\")","v":""},{"$f":"IF(WorkingR!$B73=\"Legacies Received\",WorkingR!L73,\"\")","v":""},{"$f":"IF(WorkingR!$B73=\"Legacies Received\",WorkingR!M73,\"\")","v":""},{"$f":"IF(WorkingR!$B73=\"Legacies Received\",WorkingR!N73,\"\")","v":""},{"$f":"IF(WorkingR!$B73=\"Legacies Received\",WorkingR!O73,\"\")","v":""},{"$f":"IF(WorkingR!$B73=\"Legacies Received\",WorkingR!P73,\"\")","v":""},{"$f":"IF(WorkingR!$B73=\"Legacies Received\",WorkingR!Q73,\"\")","v":""},{"$f":"IF(WorkingR!$B73=\"Legacies Received\",WorkingR!R73,\"\")","v":""},{"$f":"IF(WorkingR!$B73=\"Legacies Received\",WorkingR!S73,\"\")","v":""},{"$f":"IF(WorkingR!$B73=\"Legacies Received\",WorkingR!T73,\"\")","v":""},{"$f":"IF(WorkingR!$B73=\"Legacies Received\",WorkingR!U73,\"\")","v":""},{"$f":"IF(WorkingR!$B73=\"Legacies Received\",WorkingR!V73,\"\")","v":""},{"$f":"IF(WorkingR!$B73=\"Legacies Received\",WorkingR!W73,\"\")","v":""},{"$f":"IF(WorkingR!$B73=\"Legacies Received\",WorkingR!X73,\"\")","v":""},{"$f":"IF(WorkingR!$B73=\"Legacies Received\",WorkingR!Y73,\"\")","v":""},{"$f":"IF(Descriptions!D74=\"Legacies Received\",Descriptions!AA74,0)","v":0}]
[{"$f":"IF(Descriptions!D75=\"Legacies Received\",Descriptions!B75,0)","v":0},{"$f":"IF(WorkingR!$B74=\"Legacies Received\",WorkingR!D74,\"\")","v":""},{"$f":"IF(WorkingR!$B74=\"Legacies Received\",WorkingR!E74,\"\")","v":""},{"$f":"IF(WorkingR!$B74=\"Legacies Received\",WorkingR!F74,\"\")","v":""},{"$f":"IF(WorkingR!$B74=\"Legacies Received\",WorkingR!G74,\"\")","v":""},{"$f":"IF(WorkingR!$B74=\"Legacies Received\",WorkingR!H74,\"\")","v":""},{"$f":"IF(WorkingR!$B74=\"Legacies Received\",WorkingR!I74,\"\")","v":""},{"$f":"IF(WorkingR!$B74=\"Legacies Received\",WorkingR!J74,\"\")","v":""},{"$f":"IF(WorkingR!$B74=\"Legacies Received\",WorkingR!K74,\"\")","v":""},{"$f":"IF(WorkingR!$B74=\"Legacies Received\",WorkingR!L74,\"\")","v":""},{"$f":"IF(WorkingR!$B74=\"Legacies Received\",WorkingR!M74,\"\")","v":""},{"$f":"IF(WorkingR!$B74=\"Legacies Received\",WorkingR!N74,\"\")","v":""},{"$f":"IF(WorkingR!$B74=\"Legacies Received\",WorkingR!O74,\"\")","v":""},{"$f":"IF(WorkingR!$B74=\"Legacies Received\",WorkingR!P74,\"\")","v":""},{"$f":"IF(WorkingR!$B74=\"Legacies Received\",WorkingR!Q74,\"\")","v":""},{"$f":"IF(WorkingR!$B74=\"Legacies Received\",WorkingR!R74,\"\")","v":""},{"$f":"IF(WorkingR!$B74=\"Legacies Received\",WorkingR!S74,\"\")","v":""},{"$f":"IF(WorkingR!$B74=\"Legacies Received\",WorkingR!T74,\"\")","v":""},{"$f":"IF(WorkingR!$B74=\"Legacies Received\",WorkingR!U74,\"\")","v":""},{"$f":"IF(WorkingR!$B74=\"Legacies Received\",WorkingR!V74,\"\")","v":""},{"$f":"IF(WorkingR!$B74=\"Legacies Received\",WorkingR!W74,\"\")","v":""},{"$f":"IF(WorkingR!$B74=\"Legacies Received\",WorkingR!X74,\"\")","v":""},{"$f":"IF(WorkingR!$B74=\"Legacies Received\",WorkingR!Y74,\"\")","v":""},{"$f":"IF(Descriptions!D75=\"Legacies Received\",Descriptions!AA75,0)","v":0}]
[{"$f":"IF(Descriptions!D76=\"Legacies Received\",Descriptions!B76,0)","v":0},{"$f":"IF(WorkingR!$B75=\"Legacies Received\",WorkingR!D75,\"\")","v":""},{"$f":"IF(WorkingR!$B75=\"Legacies Received\",WorkingR!E75,\"\")","v":""},{"$f":"IF(WorkingR!$B75=\"Legacies Received\",WorkingR!F75,\"\")","v":""},{"$f":"IF(WorkingR!$B75=\"Legacies Received\",WorkingR!G75,\"\")","v":""},{"$f":"IF(WorkingR!$B75=\"Legacies Received\",WorkingR!H75,\"\")","v":""},{"$f":"IF(WorkingR!$B75=\"Legacies Received\",WorkingR!I75,\"\")","v":""},{"$f":"IF(WorkingR!$B75=\"Legacies Received\",WorkingR!J75,\"\")","v":""},{"$f":"IF(WorkingR!$B75=\"Legacies Received\",WorkingR!K75,\"\")","v":""},{"$f":"IF(WorkingR!$B75=\"Legacies Received\",WorkingR!L75,\"\")","v":""},{"$f":"IF(WorkingR!$B75=\"Legacies Received\",WorkingR!M75,\"\")","v":""},{"$f":"IF(WorkingR!$B75=\"Legacies Received\",WorkingR!N75,\"\")","v":""},{"$f":"IF(WorkingR!$B75=\"Legacies Received\",WorkingR!O75,\"\")","v":""},{"$f":"IF(WorkingR!$B75=\"Legacies Received\",WorkingR!P75,\"\")","v":""},{"$f":"IF(WorkingR!$B75=\"Legacies Received\",WorkingR!Q75,\"\")","v":""},{"$f":"IF(WorkingR!$B75=\"Legacies Received\",WorkingR!R75,\"\")","v":""},{"$f":"IF(WorkingR!$B75=\"Legacies Received\",WorkingR!S75,\"\")","v":""},{"$f":"IF(WorkingR!$B75=\"Legacies Received\",WorkingR!T75,\"\")","v":""},{"$f":"IF(WorkingR!$B75=\"Legacies Received\",WorkingR!U75,\"\")","v":""},{"$f":"IF(WorkingR!$B75=\"Legacies Received\",WorkingR!V75,\"\")","v":""},{"$f":"IF(WorkingR!$B75=\"Legacies Received\",WorkingR!W75,\"\")","v":""},{"$f":"IF(WorkingR!$B75=\"Legacies Received\",WorkingR!X75,\"\")","v":""},{"$f":"IF(WorkingR!$B75=\"Legacies Received\",WorkingR!Y75,\"\")","v":""},{"$f":"IF(Descriptions!D76=\"Legacies Received\",Descriptions!AA76,0)","v":0}]
[{"$f":"IF(Descriptions!D77=\"Legacies Received\",Descriptions!B77,0)","v":0},{"$f":"IF(WorkingR!$B76=\"Legacies Received\",WorkingR!D76,\"\")","v":""},{"$f":"IF(WorkingR!$B76=\"Legacies Received\",WorkingR!E76,\"\")","v":""},{"$f":"IF(WorkingR!$B76=\"Legacies Received\",WorkingR!F76,\"\")","v":""},{"$f":"IF(WorkingR!$B76=\"Legacies Received\",WorkingR!G76,\"\")","v":""},{"$f":"IF(WorkingR!$B76=\"Legacies Received\",WorkingR!H76,\"\")","v":""},{"$f":"IF(WorkingR!$B76=\"Legacies Received\",WorkingR!I76,\"\")","v":""},{"$f":"IF(WorkingR!$B76=\"Legacies Received\",WorkingR!J76,\"\")","v":""},{"$f":"IF(WorkingR!$B76=\"Legacies Received\",WorkingR!K76,\"\")","v":""},{"$f":"IF(WorkingR!$B76=\"Legacies Received\",WorkingR!L76,\"\")","v":""},{"$f":"IF(WorkingR!$B76=\"Legacies Received\",WorkingR!M76,\"\")","v":""},{"$f":"IF(WorkingR!$B76=\"Legacies Received\",WorkingR!N76,\"\")","v":""},{"$f":"IF(WorkingR!$B76=\"Legacies Received\",WorkingR!O76,\"\")","v":""},{"$f":"IF(WorkingR!$B76=\"Legacies Received\",WorkingR!P76,\"\")","v":""},{"$f":"IF(WorkingR!$B76=\"Legacies Received\",WorkingR!Q76,\"\")","v":""},{"$f":"IF(WorkingR!$B76=\"Legacies Received\",WorkingR!R76,\"\")","v":""},{"$f":"IF(WorkingR!$B76=\"Legacies Received\",WorkingR!S76,\"\")","v":""},{"$f":"IF(WorkingR!$B76=\"Legacies Received\",WorkingR!T76,\"\")","v":""},{"$f":"IF(WorkingR!$B76=\"Legacies Received\",WorkingR!U76,\"\")","v":""},{"$f":"IF(WorkingR!$B76=\"Legacies Received\",WorkingR!V76,\"\")","v":""},{"$f":"IF(WorkingR!$B76=\"Legacies Received\",WorkingR!W76,\"\")","v":""},{"$f":"IF(WorkingR!$B76=\"Legacies Received\",WorkingR!X76,\"\")","v":""},{"$f":"IF(WorkingR!$B76=\"Legacies Received\",WorkingR!Y76,\"\")","v":""},{"$f":"IF(Descriptions!D77=\"Legacies Received\",Descriptions!AA77,0)","v":0}]
[{"$f":"IF(Descriptions!D78=\"Legacies Received\",Descriptions!B78,0)","v":0},{"$f":"IF(WorkingR!$B77=\"Legacies Received\",WorkingR!D77,\"\")","v":""},{"$f":"IF(WorkingR!$B77=\"Legacies Received\",WorkingR!E77,\"\")","v":""},{"$f":"IF(WorkingR!$B77=\"Legacies Received\",WorkingR!F77,\"\")","v":""},{"$f":"IF(WorkingR!$B77=\"Legacies Received\",WorkingR!G77,\"\")","v":""},{"$f":"IF(WorkingR!$B77=\"Legacies Received\",WorkingR!H77,\"\")","v":""},{"$f":"IF(WorkingR!$B77=\"Legacies Received\",WorkingR!I77,\"\")","v":""},{"$f":"IF(WorkingR!$B77=\"Legacies Received\",WorkingR!J77,\"\")","v":""},{"$f":"IF(WorkingR!$B77=\"Legacies Received\",WorkingR!K77,\"\")","v":""},{"$f":"IF(WorkingR!$B77=\"Legacies Received\",WorkingR!L77,\"\")","v":""},{"$f":"IF(WorkingR!$B77=\"Legacies Received\",WorkingR!M77,\"\")","v":""},{"$f":"IF(WorkingR!$B77=\"Legacies Received\",WorkingR!N77,\"\")","v":""},{"$f":"IF(WorkingR!$B77=\"Legacies Received\",WorkingR!O77,\"\")","v":""},{"$f":"IF(WorkingR!$B77=\"Legacies Received\",WorkingR!P77,\"\")","v":""},{"$f":"IF(WorkingR!$B77=\"Legacies Received\",WorkingR!Q77,\"\")","v":""},{"$f":"IF(WorkingR!$B77=\"Legacies Received\",WorkingR!R77,\"\")","v":""},{"$f":"IF(WorkingR!$B77=\"Legacies Received\",WorkingR!S77,\"\")","v":""},{"$f":"IF(WorkingR!$B77=\"Legacies Received\",WorkingR!T77,\"\")","v":""},{"$f":"IF(WorkingR!$B77=\"Legacies Received\",WorkingR!U77,\"\")","v":""},{"$f":"IF(WorkingR!$B77=\"Legacies Received\",WorkingR!V77,\"\")","v":""},{"$f":"IF(WorkingR!$B77=\"Legacies Received\",WorkingR!W77,\"\")","v":""},{"$f":"IF(WorkingR!$B77=\"Legacies Received\",WorkingR!X77,\"\")","v":""},{"$f":"IF(WorkingR!$B77=\"Legacies Received\",WorkingR!Y77,\"\")","v":""},{"$f":"IF(Descriptions!D78=\"Legacies Received\",Descriptions!AA78,0)","v":0}]
[{"$f":"IF(Descriptions!D79=\"Legacies Received\",Descriptions!B79,0)","v":0},{"$f":"IF(WorkingR!$B78=\"Legacies Received\",WorkingR!D78,\"\")","v":""},{"$f":"IF(WorkingR!$B78=\"Legacies Received\",WorkingR!E78,\"\")","v":""},{"$f":"IF(WorkingR!$B78=\"Legacies Received\",WorkingR!F78,\"\")","v":""},{"$f":"IF(WorkingR!$B78=\"Legacies Received\",WorkingR!G78,\"\")","v":""},{"$f":"IF(WorkingR!$B78=\"Legacies Received\",WorkingR!H78,\"\")","v":""},{"$f":"IF(WorkingR!$B78=\"Legacies Received\",WorkingR!I78,\"\")","v":""},{"$f":"IF(WorkingR!$B78=\"Legacies Received\",WorkingR!J78,\"\")","v":""},{"$f":"IF(WorkingR!$B78=\"Legacies Received\",WorkingR!K78,\"\")","v":""},{"$f":"IF(WorkingR!$B78=\"Legacies Received\",WorkingR!L78,\"\")","v":""},{"$f":"IF(WorkingR!$B78=\"Legacies Received\",WorkingR!M78,\"\")","v":""},{"$f":"IF(WorkingR!$B78=\"Legacies Received\",WorkingR!N78,\"\")","v":""},{"$f":"IF(WorkingR!$B78=\"Legacies Received\",WorkingR!O78,\"\")","v":""},{"$f":"IF(WorkingR!$B78=\"Legacies Received\",WorkingR!P78,\"\")","v":""},{"$f":"IF(WorkingR!$B78=\"Legacies Received\",WorkingR!Q78,\"\")","v":""},{"$f":"IF(WorkingR!$B78=\"Legacies Received\",WorkingR!R78,\"\")","v":""},{"$f":"IF(WorkingR!$B78=\"Legacies Received\",WorkingR!S78,\"\")","v":""},{"$f":"IF(WorkingR!$B78=\"Legacies Received\",WorkingR!T78,\"\")","v":""},{"$f":"IF(WorkingR!$B78=\"Legacies Received\",WorkingR!U78,\"\")","v":""},{"$f":"IF(WorkingR!$B78=\"Legacies Received\",WorkingR!V78,\"\")","v":""},{"$f":"IF(WorkingR!$B78=\"Legacies Received\",WorkingR!W78,\"\")","v":""},{"$f":"IF(WorkingR!$B78=\"Legacies Received\",WorkingR!X78,\"\")","v":""},{"$f":"IF(WorkingR!$B78=\"Legacies Received\",WorkingR!Y78,\"\")","v":""},{"$f":"IF(Descriptions!D79=\"Legacies Received\",Descriptions!AA79,0)","v":0}]
[{"$f":"IF(Descriptions!D80=\"Legacies Received\",Descriptions!B80,0)","v":0},{"$f":"IF(WorkingR!$B79=\"Legacies Received\",WorkingR!D79,\"\")","v":""},{"$f":"IF(WorkingR!$B79=\"Legacies Received\",WorkingR!E79,\"\")","v":""},{"$f":"IF(WorkingR!$B79=\"Legacies Received\",WorkingR!F79,\"\")","v":""},{"$f":"IF(WorkingR!$B79=\"Legacies Received\",WorkingR!G79,\"\")","v":""},{"$f":"IF(WorkingR!$B79=\"Legacies Received\",WorkingR!H79,\"\")","v":""},{"$f":"IF(WorkingR!$B79=\"Legacies Received\",WorkingR!I79,\"\")","v":""},{"$f":"IF(WorkingR!$B79=\"Legacies Received\",WorkingR!J79,\"\")","v":""},{"$f":"IF(WorkingR!$B79=\"Legacies Received\",WorkingR!K79,\"\")","v":""},{"$f":"IF(WorkingR!$B79=\"Legacies Received\",WorkingR!L79,\"\")","v":""},{"$f":"IF(WorkingR!$B79=\"Legacies Received\",WorkingR!M79,\"\")","v":""},{"$f":"IF(WorkingR!$B79=\"Legacies Received\",WorkingR!N79,\"\")","v":""},{"$f":"IF(WorkingR!$B79=\"Legacies Received\",WorkingR!O79,\"\")","v":""},{"$f":"IF(WorkingR!$B79=\"Legacies Received\",WorkingR!P79,\"\")","v":""},{"$f":"IF(WorkingR!$B79=\"Legacies Received\",WorkingR!Q79,\"\")","v":""},{"$f":"IF(WorkingR!$B79=\"Legacies Received\",WorkingR!R79,\"\")","v":""},{"$f":"IF(WorkingR!$B79=\"Legacies Received\",WorkingR!S79,\"\")","v":""},{"$f":"IF(WorkingR!$B79=\"Legacies Received\",WorkingR!T79,\"\")","v":""},{"$f":"IF(WorkingR!$B79=\"Legacies Received\",WorkingR!U79,\"\")","v":""},{"$f":"IF(WorkingR!$B79=\"Legacies Received\",WorkingR!V79,\"\")","v":""},{"$f":"IF(WorkingR!$B79=\"Legacies Received\",WorkingR!W79,\"\")","v":""},{"$f":"IF(WorkingR!$B79=\"Legacies Received\",WorkingR!X79,\"\")","v":""},{"$f":"IF(WorkingR!$B79=\"Legacies Received\",WorkingR!Y79,\"\")","v":""},{"$f":"IF(Descriptions!D80=\"Legacies Received\",Descriptions!AA80,0)","v":0}]
[{"$f":"IF(Descriptions!D81=\"Legacies Received\",Descriptions!B81,0)","v":0},{"$f":"IF(WorkingR!$B80=\"Legacies Received\",WorkingR!D80,\"\")","v":""},{"$f":"IF(WorkingR!$B80=\"Legacies Received\",WorkingR!E80,\"\")","v":""},{"$f":"IF(WorkingR!$B80=\"Legacies Received\",WorkingR!F80,\"\")","v":""},{"$f":"IF(WorkingR!$B80=\"Legacies Received\",WorkingR!G80,\"\")","v":""},{"$f":"IF(WorkingR!$B80=\"Legacies Received\",WorkingR!H80,\"\")","v":""},{"$f":"IF(WorkingR!$B80=\"Legacies Received\",WorkingR!I80,\"\")","v":""},{"$f":"IF(WorkingR!$B80=\"Legacies Received\",WorkingR!J80,\"\")","v":""},{"$f":"IF(WorkingR!$B80=\"Legacies Received\",WorkingR!K80,\"\")","v":""},{"$f":"IF(WorkingR!$B80=\"Legacies Received\",WorkingR!L80,\"\")","v":""},{"$f":"IF(WorkingR!$B80=\"Legacies Received\",WorkingR!M80,\"\")","v":""},{"$f":"IF(WorkingR!$B80=\"Legacies Received\",WorkingR!N80,\"\")","v":""},{"$f":"IF(WorkingR!$B80=\"Legacies Received\",WorkingR!O80,\"\")","v":""},{"$f":"IF(WorkingR!$B80=\"Legacies Received\",WorkingR!P80,\"\")","v":""},{"$f":"IF(WorkingR!$B80=\"Legacies Received\",WorkingR!Q80,\"\")","v":""},{"$f":"IF(WorkingR!$B80=\"Legacies Received\",WorkingR!R80,\"\")","v":""},{"$f":"IF(WorkingR!$B80=\"Legacies Received\",WorkingR!S80,\"\")","v":""},{"$f":"IF(WorkingR!$B80=\"Legacies Received\",WorkingR!T80,\"\")","v":""},{"$f":"IF(WorkingR!$B80=\"Legacies Received\",WorkingR!U80,\"\")","v":""},{"$f":"IF(WorkingR!$B80=\"Legacies Received\",WorkingR!V80,\"\")","v":""},{"$f":"IF(WorkingR!$B80=\"Legacies Received\",WorkingR!W80,\"\")","v":""},{"$f":"IF(WorkingR!$B80=\"Legacies Received\",WorkingR!X80,\"\")","v":""},{"$f":"IF(WorkingR!$B80=\"Legacies Received\",WorkingR!Y80,\"\")","v":""},{"$f":"IF(Descriptions!D81=\"Legacies Received\",Descriptions!AA81,0)","v":0}]
[{"$f":"IF(Descriptions!D82=\"Legacies Received\",Descriptions!B82,0)","v":0},{"$f":"IF(WorkingR!$B81=\"Legacies Received\",WorkingR!D81,\"\")","v":""},{"$f":"IF(WorkingR!$B81=\"Legacies Received\",WorkingR!E81,\"\")","v":""},{"$f":"IF(WorkingR!$B81=\"Legacies Received\",WorkingR!F81,\"\")","v":""},{"$f":"IF(WorkingR!$B81=\"Legacies Received\",WorkingR!G81,\"\")","v":""},{"$f":"IF(WorkingR!$B81=\"Legacies Received\",WorkingR!H81,\"\")","v":""},{"$f":"IF(WorkingR!$B81=\"Legacies Received\",WorkingR!I81,\"\")","v":""},{"$f":"IF(WorkingR!$B81=\"Legacies Received\",WorkingR!J81,\"\")","v":""},{"$f":"IF(WorkingR!$B81=\"Legacies Received\",WorkingR!K81,\"\")","v":""},{"$f":"IF(WorkingR!$B81=\"Legacies Received\",WorkingR!L81,\"\")","v":""},{"$f":"IF(WorkingR!$B81=\"Legacies Received\",WorkingR!M81,\"\")","v":""},{"$f":"IF(WorkingR!$B81=\"Legacies Received\",WorkingR!N81,\"\")","v":""},{"$f":"IF(WorkingR!$B81=\"Legacies Received\",WorkingR!O81,\"\")","v":""},{"$f":"IF(WorkingR!$B81=\"Legacies Received\",WorkingR!P81,\"\")","v":""},{"$f":"IF(WorkingR!$B81=\"Legacies Received\",WorkingR!Q81,\"\")","v":""},{"$f":"IF(WorkingR!$B81=\"Legacies Received\",WorkingR!R81,\"\")","v":""},{"$f":"IF(WorkingR!$B81=\"Legacies Received\",WorkingR!S81,\"\")","v":""},{"$f":"IF(WorkingR!$B81=\"Legacies Received\",WorkingR!T81,\"\")","v":""},{"$f":"IF(WorkingR!$B81=\"Legacies Received\",WorkingR!U81,\"\")","v":""},{"$f":"IF(WorkingR!$B81=\"Legacies Received\",WorkingR!V81,\"\")","v":""},{"$f":"IF(WorkingR!$B81=\"Legacies Received\",WorkingR!W81,\"\")","v":""},{"$f":"IF(WorkingR!$B81=\"Legacies Received\",WorkingR!X81,\"\")","v":""},{"$f":"IF(WorkingR!$B81=\"Legacies Received\",WorkingR!Y81,\"\")","v":""},{"$f":"IF(Descriptions!D82=\"Legacies Received\",Descriptions!AA82,0)","v":0}]
[{"$f":"IF(Descriptions!D83=\"Legacies Received\",Descriptions!B83,0)","v":0},{"$f":"IF(WorkingR!$B82=\"Legacies Received\",WorkingR!D82,\"\")","v":""},{"$f":"IF(WorkingR!$B82=\"Legacies Received\",WorkingR!E82,\"\")","v":""},{"$f":"IF(WorkingR!$B82=\"Legacies Received\",WorkingR!F82,\"\")","v":""},{"$f":"IF(WorkingR!$B82=\"Legacies Received\",WorkingR!G82,\"\")","v":""},{"$f":"IF(WorkingR!$B82=\"Legacies Received\",WorkingR!H82,\"\")","v":""},{"$f":"IF(WorkingR!$B82=\"Legacies Received\",WorkingR!I82,\"\")","v":""},{"$f":"IF(WorkingR!$B82=\"Legacies Received\",WorkingR!J82,\"\")","v":""},{"$f":"IF(WorkingR!$B82=\"Legacies Received\",WorkingR!K82,\"\")","v":""},{"$f":"IF(WorkingR!$B82=\"Legacies Received\",WorkingR!L82,\"\")","v":""},{"$f":"IF(WorkingR!$B82=\"Legacies Received\",WorkingR!M82,\"\")","v":""},{"$f":"IF(WorkingR!$B82=\"Legacies Received\",WorkingR!N82,\"\")","v":""},{"$f":"IF(WorkingR!$B82=\"Legacies Received\",WorkingR!O82,\"\")","v":""},{"$f":"IF(WorkingR!$B82=\"Legacies Received\",WorkingR!P82,\"\")","v":""},{"$f":"IF(WorkingR!$B82=\"Legacies Received\",WorkingR!Q82,\"\")","v":""},{"$f":"IF(WorkingR!$B82=\"Legacies Received\",WorkingR!R82,\"\")","v":""},{"$f":"IF(WorkingR!$B82=\"Legacies Received\",WorkingR!S82,\"\")","v":""},{"$f":"IF(WorkingR!$B82=\"Legacies Received\",WorkingR!T82,\"\")","v":""},{"$f":"IF(WorkingR!$B82=\"Legacies Received\",WorkingR!U82,\"\")","v":""},{"$f":"IF(WorkingR!$B82=\"Legacies Received\",WorkingR!V82,\"\")","v":""},{"$f":"IF(WorkingR!$B82=\"Legacies Received\",WorkingR!W82,\"\")","v":""},{"$f":"IF(WorkingR!$B82=\"Legacies Received\",WorkingR!X82,\"\")","v":""},{"$f":"IF(WorkingR!$B82=\"Legacies Received\",WorkingR!Y82,\"\")","v":""},{"$f":"IF(Descriptions!D83=\"Legacies Received\",Descriptions!AA83,0)","v":0}]
[{"$f":"IF(Descriptions!D84=\"Legacies Received\",Descriptions!B84,0)","v":0},{"$f":"IF(WorkingR!$B83=\"Legacies Received\",WorkingR!D83,\"\")","v":""},{"$f":"IF(WorkingR!$B83=\"Legacies Received\",WorkingR!E83,\"\")","v":""},{"$f":"IF(WorkingR!$B83=\"Legacies Received\",WorkingR!F83,\"\")","v":""},{"$f":"IF(WorkingR!$B83=\"Legacies Received\",WorkingR!G83,\"\")","v":""},{"$f":"IF(WorkingR!$B83=\"Legacies Received\",WorkingR!H83,\"\")","v":""},{"$f":"IF(WorkingR!$B83=\"Legacies Received\",WorkingR!I83,\"\")","v":""},{"$f":"IF(WorkingR!$B83=\"Legacies Received\",WorkingR!J83,\"\")","v":""},{"$f":"IF(WorkingR!$B83=\"Legacies Received\",WorkingR!K83,\"\")","v":""},{"$f":"IF(WorkingR!$B83=\"Legacies Received\",WorkingR!L83,\"\")","v":""},{"$f":"IF(WorkingR!$B83=\"Legacies Received\",WorkingR!M83,\"\")","v":""},{"$f":"IF(WorkingR!$B83=\"Legacies Received\",WorkingR!N83,\"\")","v":""},{"$f":"IF(WorkingR!$B83=\"Legacies Received\",WorkingR!O83,\"\")","v":""},{"$f":"IF(WorkingR!$B83=\"Legacies Received\",WorkingR!P83,\"\")","v":""},{"$f":"IF(WorkingR!$B83=\"Legacies Received\",WorkingR!Q83,\"\")","v":""},{"$f":"IF(WorkingR!$B83=\"Legacies Received\",WorkingR!R83,\"\")","v":""},{"$f":"IF(WorkingR!$B83=\"Legacies Received\",WorkingR!S83,\"\")","v":""},{"$f":"IF(WorkingR!$B83=\"Legacies Received\",WorkingR!T83,\"\")","v":""},{"$f":"IF(WorkingR!$B83=\"Legacies Received\",WorkingR!U83,\"\")","v":""},{"$f":"IF(WorkingR!$B83=\"Legacies Received\",WorkingR!V83,\"\")","v":""},{"$f":"IF(WorkingR!$B83=\"Legacies Received\",WorkingR!W83,\"\")","v":""},{"$f":"IF(WorkingR!$B83=\"Legacies Received\",WorkingR!X83,\"\")","v":""},{"$f":"IF(WorkingR!$B83=\"Legacies Received\",WorkingR!Y83,\"\")","v":""},{"$f":"IF(Descriptions!D84=\"Legacies Received\",Descriptions!AA84,0)","v":0}]
[{"$f":"IF(Descriptions!D85=\"Legacies Received\",Descriptions!B85,0)","v":0},{"$f":"IF(WorkingR!$B84=\"Legacies Received\",WorkingR!D84,\"\")","v":""},{"$f":"IF(WorkingR!$B84=\"Legacies Received\",WorkingR!E84,\"\")","v":""},{"$f":"IF(WorkingR!$B84=\"Legacies Received\",WorkingR!F84,\"\")","v":""},{"$f":"IF(WorkingR!$B84=\"Legacies Received\",WorkingR!G84,\"\")","v":""},{"$f":"IF(WorkingR!$B84=\"Legacies Received\",WorkingR!H84,\"\")","v":""},{"$f":"IF(WorkingR!$B84=\"Legacies Received\",WorkingR!I84,\"\")","v":""},{"$f":"IF(WorkingR!$B84=\"Legacies Received\",WorkingR!J84,\"\")","v":""},{"$f":"IF(WorkingR!$B84=\"Legacies Received\",WorkingR!K84,\"\")","v":""},{"$f":"IF(WorkingR!$B84=\"Legacies Received\",WorkingR!L84,\"\")","v":""},{"$f":"IF(WorkingR!$B84=\"Legacies Received\",WorkingR!M84,\"\")","v":""},{"$f":"IF(WorkingR!$B84=\"Legacies Received\",WorkingR!N84,\"\")","v":""},{"$f":"IF(WorkingR!$B84=\"Legacies Received\",WorkingR!O84,\"\")","v":""},{"$f":"IF(WorkingR!$B84=\"Legacies Received\",WorkingR!P84,\"\")","v":""},{"$f":"IF(WorkingR!$B84=\"Legacies Received\",WorkingR!Q84,\"\")","v":""},{"$f":"IF(WorkingR!$B84=\"Legacies Received\",WorkingR!R84,\"\")","v":""},{"$f":"IF(WorkingR!$B84=\"Legacies Received\",WorkingR!S84,\"\")","v":""},{"$f":"IF(WorkingR!$B84=\"Legacies Received\",WorkingR!T84,\"\")","v":""},{"$f":"IF(WorkingR!$B84=\"Legacies Received\",WorkingR!U84,\"\")","v":""},{"$f":"IF(WorkingR!$B84=\"Legacies Received\",WorkingR!V84,\"\")","v":""},{"$f":"IF(WorkingR!$B84=\"Legacies Received\",WorkingR!W84,\"\")","v":""},{"$f":"IF(WorkingR!$B84=\"Legacies Received\",WorkingR!X84,\"\")","v":""},{"$f":"IF(WorkingR!$B84=\"Legacies Received\",WorkingR!Y84,\"\")","v":""},{"$f":"IF(Descriptions!D85=\"Legacies Received\",Descriptions!AA85,0)","v":0}]
[{"$f":"IF(Descriptions!D86=\"Legacies Received\",Descriptions!B86,0)","v":0},{"$f":"IF(WorkingR!$B85=\"Legacies Received\",WorkingR!D85,\"\")","v":""},{"$f":"IF(WorkingR!$B85=\"Legacies Received\",WorkingR!E85,\"\")","v":""},{"$f":"IF(WorkingR!$B85=\"Legacies Received\",WorkingR!F85,\"\")","v":""},{"$f":"IF(WorkingR!$B85=\"Legacies Received\",WorkingR!G85,\"\")","v":""},{"$f":"IF(WorkingR!$B85=\"Legacies Received\",WorkingR!H85,\"\")","v":""},{"$f":"IF(WorkingR!$B85=\"Legacies Received\",WorkingR!I85,\"\")","v":""},{"$f":"IF(WorkingR!$B85=\"Legacies Received\",WorkingR!J85,\"\")","v":""},{"$f":"IF(WorkingR!$B85=\"Legacies Received\",WorkingR!K85,\"\")","v":""},{"$f":"IF(WorkingR!$B85=\"Legacies Received\",WorkingR!L85,\"\")","v":""},{"$f":"IF(WorkingR!$B85=\"Legacies Received\",WorkingR!M85,\"\")","v":""},{"$f":"IF(WorkingR!$B85=\"Legacies Received\",WorkingR!N85,\"\")","v":""},{"$f":"IF(WorkingR!$B85=\"Legacies Received\",WorkingR!O85,\"\")","v":""},{"$f":"IF(WorkingR!$B85=\"Legacies Received\",WorkingR!P85,\"\")","v":""},{"$f":"IF(WorkingR!$B85=\"Legacies Received\",WorkingR!Q85,\"\")","v":""},{"$f":"IF(WorkingR!$B85=\"Legacies Received\",WorkingR!R85,\"\")","v":""},{"$f":"IF(WorkingR!$B85=\"Legacies Received\",WorkingR!S85,\"\")","v":""},{"$f":"IF(WorkingR!$B85=\"Legacies Received\",WorkingR!T85,\"\")","v":""},{"$f":"IF(WorkingR!$B85=\"Legacies Received\",WorkingR!U85,\"\")","v":""},{"$f":"IF(WorkingR!$B85=\"Legacies Received\",WorkingR!V85,\"\")","v":""},{"$f":"IF(WorkingR!$B85=\"Legacies Received\",WorkingR!W85,\"\")","v":""},{"$f":"IF(WorkingR!$B85=\"Legacies Received\",WorkingR!X85,\"\")","v":""},{"$f":"IF(WorkingR!$B85=\"Legacies Received\",WorkingR!Y85,\"\")","v":""},{"$f":"IF(Descriptions!D86=\"Legacies Received\",Descriptions!AA86,0)","v":0}]
[{"$f":"IF(Descriptions!D87=\"Legacies Received\",Descriptions!B87,0)","v":0},{"$f":"IF(WorkingR!$B86=\"Legacies Received\",WorkingR!D86,\"\")","v":""},{"$f":"IF(WorkingR!$B86=\"Legacies Received\",WorkingR!E86,\"\")","v":""},{"$f":"IF(WorkingR!$B86=\"Legacies Received\",WorkingR!F86,\"\")","v":""},{"$f":"IF(WorkingR!$B86=\"Legacies Received\",WorkingR!G86,\"\")","v":""},{"$f":"IF(WorkingR!$B86=\"Legacies Received\",WorkingR!H86,\"\")","v":""},{"$f":"IF(WorkingR!$B86=\"Legacies Received\",WorkingR!I86,\"\")","v":""},{"$f":"IF(WorkingR!$B86=\"Legacies Received\",WorkingR!J86,\"\")","v":""},{"$f":"IF(WorkingR!$B86=\"Legacies Received\",WorkingR!K86,\"\")","v":""},{"$f":"IF(WorkingR!$B86=\"Legacies Received\",WorkingR!L86,\"\")","v":""},{"$f":"IF(WorkingR!$B86=\"Legacies Received\",WorkingR!M86,\"\")","v":""},{"$f":"IF(WorkingR!$B86=\"Legacies Received\",WorkingR!N86,\"\")","v":""},{"$f":"IF(WorkingR!$B86=\"Legacies Received\",WorkingR!O86,\"\")","v":""},{"$f":"IF(WorkingR!$B86=\"Legacies Received\",WorkingR!P86,\"\")","v":""},{"$f":"IF(WorkingR!$B86=\"Legacies Received\",WorkingR!Q86,\"\")","v":""},{"$f":"IF(WorkingR!$B86=\"Legacies Received\",WorkingR!R86,\"\")","v":""},{"$f":"IF(WorkingR!$B86=\"Legacies Received\",WorkingR!S86,\"\")","v":""},{"$f":"IF(WorkingR!$B86=\"Legacies Received\",WorkingR!T86,\"\")","v":""},{"$f":"IF(WorkingR!$B86=\"Legacies Received\",WorkingR!U86,\"\")","v":""},{"$f":"IF(WorkingR!$B86=\"Legacies Received\",WorkingR!V86,\"\")","v":""},{"$f":"IF(WorkingR!$B86=\"Legacies Received\",WorkingR!W86,\"\")","v":""},{"$f":"IF(WorkingR!$B86=\"Legacies Received\",WorkingR!X86,\"\")","v":""},{"$f":"IF(WorkingR!$B86=\"Legacies Received\",WorkingR!Y86,\"\")","v":""},{"$f":"IF(Descriptions!D87=\"Legacies Received\",Descriptions!AA87,0)","v":0}]
[{"$f":"IF(Descriptions!D88=\"Legacies Received\",Descriptions!B88,0)","v":0},{"$f":"IF(WorkingR!$B87=\"Legacies Received\",WorkingR!D87,\"\")","v":""},{"$f":"IF(WorkingR!$B87=\"Legacies Received\",WorkingR!E87,\"\")","v":""},{"$f":"IF(WorkingR!$B87=\"Legacies Received\",WorkingR!F87,\"\")","v":""},{"$f":"IF(WorkingR!$B87=\"Legacies Received\",WorkingR!G87,\"\")","v":""},{"$f":"IF(WorkingR!$B87=\"Legacies Received\",WorkingR!H87,\"\")","v":""},{"$f":"IF(WorkingR!$B87=\"Legacies Received\",WorkingR!I87,\"\")","v":""},{"$f":"IF(WorkingR!$B87=\"Legacies Received\",WorkingR!J87,\"\")","v":""},{"$f":"IF(WorkingR!$B87=\"Legacies Received\",WorkingR!K87,\"\")","v":""},{"$f":"IF(WorkingR!$B87=\"Legacies Received\",WorkingR!L87,\"\")","v":""},{"$f":"IF(WorkingR!$B87=\"Legacies Received\",WorkingR!M87,\"\")","v":""},{"$f":"IF(WorkingR!$B87=\"Legacies Received\",WorkingR!N87,\"\")","v":""},{"$f":"IF(WorkingR!$B87=\"Legacies Received\",WorkingR!O87,\"\")","v":""},{"$f":"IF(WorkingR!$B87=\"Legacies Received\",WorkingR!P87,\"\")","v":""},{"$f":"IF(WorkingR!$B87=\"Legacies Received\",WorkingR!Q87,\"\")","v":""},{"$f":"IF(WorkingR!$B87=\"Legacies Received\",WorkingR!R87,\"\")","v":""},{"$f":"IF(WorkingR!$B87=\"Legacies Received\",WorkingR!S87,\"\")","v":""},{"$f":"IF(WorkingR!$B87=\"Legacies Received\",WorkingR!T87,\"\")","v":""},{"$f":"IF(WorkingR!$B87=\"Legacies Received\",WorkingR!U87,\"\")","v":""},{"$f":"IF(WorkingR!$B87=\"Legacies Received\",WorkingR!V87,\"\")","v":""},{"$f":"IF(WorkingR!$B87=\"Legacies Received\",WorkingR!W87,\"\")","v":""},{"$f":"IF(WorkingR!$B87=\"Legacies Received\",WorkingR!X87,\"\")","v":""},{"$f":"IF(WorkingR!$B87=\"Legacies Received\",WorkingR!Y87,\"\")","v":""},{"$f":"IF(Descriptions!D88=\"Legacies Received\",Descriptions!AA88,0)","v":0}]
[{"$f":"IF(Descriptions!D89=\"Legacies Received\",Descriptions!B89,0)","v":0},{"$f":"IF(WorkingR!$B88=\"Legacies Received\",WorkingR!D88,\"\")","v":""},{"$f":"IF(WorkingR!$B88=\"Legacies Received\",WorkingR!E88,\"\")","v":""},{"$f":"IF(WorkingR!$B88=\"Legacies Received\",WorkingR!F88,\"\")","v":""},{"$f":"IF(WorkingR!$B88=\"Legacies Received\",WorkingR!G88,\"\")","v":""},{"$f":"IF(WorkingR!$B88=\"Legacies Received\",WorkingR!H88,\"\")","v":""},{"$f":"IF(WorkingR!$B88=\"Legacies Received\",WorkingR!I88,\"\")","v":""},{"$f":"IF(WorkingR!$B88=\"Legacies Received\",WorkingR!J88,\"\")","v":""},{"$f":"IF(WorkingR!$B88=\"Legacies Received\",WorkingR!K88,\"\")","v":""},{"$f":"IF(WorkingR!$B88=\"Legacies Received\",WorkingR!L88,\"\")","v":""},{"$f":"IF(WorkingR!$B88=\"Legacies Received\",WorkingR!M88,\"\")","v":""},{"$f":"IF(WorkingR!$B88=\"Legacies Received\",WorkingR!N88,\"\")","v":""},{"$f":"IF(WorkingR!$B88=\"Legacies Received\",WorkingR!O88,\"\")","v":""},{"$f":"IF(WorkingR!$B88=\"Legacies Received\",WorkingR!P88,\"\")","v":""},{"$f":"IF(WorkingR!$B88=\"Legacies Received\",WorkingR!Q88,\"\")","v":""},{"$f":"IF(WorkingR!$B88=\"Legacies Received\",WorkingR!R88,\"\")","v":""},{"$f":"IF(WorkingR!$B88=\"Legacies Received\",WorkingR!S88,\"\")","v":""},{"$f":"IF(WorkingR!$B88=\"Legacies Received\",WorkingR!T88,\"\")","v":""},{"$f":"IF(WorkingR!$B88=\"Legacies Received\",WorkingR!U88,\"\")","v":""},{"$f":"IF(WorkingR!$B88=\"Legacies Received\",WorkingR!V88,\"\")","v":""},{"$f":"IF(WorkingR!$B88=\"Legacies Received\",WorkingR!W88,\"\")","v":""},{"$f":"IF(WorkingR!$B88=\"Legacies Received\",WorkingR!X88,\"\")","v":""},{"$f":"IF(WorkingR!$B88=\"Legacies Received\",WorkingR!Y88,\"\")","v":""},{"$f":"IF(Descriptions!D89=\"Legacies Received\",Descriptions!AA89,0)","v":0}]
[{"$f":"IF(Descriptions!D90=\"Legacies Received\",Descriptions!B90,0)","v":0},{"$f":"IF(WorkingR!$B89=\"Legacies Received\",WorkingR!D89,\"\")","v":""},{"$f":"IF(WorkingR!$B89=\"Legacies Received\",WorkingR!E89,\"\")","v":""},{"$f":"IF(WorkingR!$B89=\"Legacies Received\",WorkingR!F89,\"\")","v":""},{"$f":"IF(WorkingR!$B89=\"Legacies Received\",WorkingR!G89,\"\")","v":""},{"$f":"IF(WorkingR!$B89=\"Legacies Received\",WorkingR!H89,\"\")","v":""},{"$f":"IF(WorkingR!$B89=\"Legacies Received\",WorkingR!I89,\"\")","v":""},{"$f":"IF(WorkingR!$B89=\"Legacies Received\",WorkingR!J89,\"\")","v":""},{"$f":"IF(WorkingR!$B89=\"Legacies Received\",WorkingR!K89,\"\")","v":""},{"$f":"IF(WorkingR!$B89=\"Legacies Received\",WorkingR!L89,\"\")","v":""},{"$f":"IF(WorkingR!$B89=\"Legacies Received\",WorkingR!M89,\"\")","v":""},{"$f":"IF(WorkingR!$B89=\"Legacies Received\",WorkingR!N89,\"\")","v":""},{"$f":"IF(WorkingR!$B89=\"Legacies Received\",WorkingR!O89,\"\")","v":""},{"$f":"IF(WorkingR!$B89=\"Legacies Received\",WorkingR!P89,\"\")","v":""},{"$f":"IF(WorkingR!$B89=\"Legacies Received\",WorkingR!Q89,\"\")","v":""},{"$f":"IF(WorkingR!$B89=\"Legacies Received\",WorkingR!R89,\"\")","v":""},{"$f":"IF(WorkingR!$B89=\"Legacies Received\",WorkingR!S89,\"\")","v":""},{"$f":"IF(WorkingR!$B89=\"Legacies Received\",WorkingR!T89,\"\")","v":""},{"$f":"IF(WorkingR!$B89=\"Legacies Received\",WorkingR!U89,\"\")","v":""},{"$f":"IF(WorkingR!$B89=\"Legacies Received\",WorkingR!V89,\"\")","v":""},{"$f":"IF(WorkingR!$B89=\"Legacies Received\",WorkingR!W89,\"\")","v":""},{"$f":"IF(WorkingR!$B89=\"Legacies Received\",WorkingR!X89,\"\")","v":""},{"$f":"IF(WorkingR!$B89=\"Legacies Received\",WorkingR!Y89,\"\")","v":""},{"$f":"IF(Descriptions!D90=\"Legacies Received\",Descriptions!AA90,0)","v":0}]
[{"$f":"IF(Descriptions!D91=\"Legacies Received\",Descriptions!B91,0)","v":0},{"$f":"IF(WorkingR!$B90=\"Legacies Received\",WorkingR!D90,\"\")","v":""},{"$f":"IF(WorkingR!$B90=\"Legacies Received\",WorkingR!E90,\"\")","v":""},{"$f":"IF(WorkingR!$B90=\"Legacies Received\",WorkingR!F90,\"\")","v":""},{"$f":"IF(WorkingR!$B90=\"Legacies Received\",WorkingR!G90,\"\")","v":""},{"$f":"IF(WorkingR!$B90=\"Legacies Received\",WorkingR!H90,\"\")","v":""},{"$f":"IF(WorkingR!$B90=\"Legacies Received\",WorkingR!I90,\"\")","v":""},{"$f":"IF(WorkingR!$B90=\"Legacies Received\",WorkingR!J90,\"\")","v":""},{"$f":"IF(WorkingR!$B90=\"Legacies Received\",WorkingR!K90,\"\")","v":""},{"$f":"IF(WorkingR!$B90=\"Legacies Received\",WorkingR!L90,\"\")","v":""},{"$f":"IF(WorkingR!$B90=\"Legacies Received\",WorkingR!M90,\"\")","v":""},{"$f":"IF(WorkingR!$B90=\"Legacies Received\",WorkingR!N90,\"\")","v":""},{"$f":"IF(WorkingR!$B90=\"Legacies Received\",WorkingR!O90,\"\")","v":""},{"$f":"IF(WorkingR!$B90=\"Legacies Received\",WorkingR!P90,\"\")","v":""},{"$f":"IF(WorkingR!$B90=\"Legacies Received\",WorkingR!Q90,\"\")","v":""},{"$f":"IF(WorkingR!$B90=\"Legacies Received\",WorkingR!R90,\"\")","v":""},{"$f":"IF(WorkingR!$B90=\"Legacies Received\",WorkingR!S90,\"\")","v":""},{"$f":"IF(WorkingR!$B90=\"Legacies Received\",WorkingR!T90,\"\")","v":""},{"$f":"IF(WorkingR!$B90=\"Legacies Received\",WorkingR!U90,\"\")","v":""},{"$f":"IF(WorkingR!$B90=\"Legacies Received\",WorkingR!V90,\"\")","v":""},{"$f":"IF(WorkingR!$B90=\"Legacies Received\",WorkingR!W90,\"\")","v":""},{"$f":"IF(WorkingR!$B90=\"Legacies Received\",WorkingR!X90,\"\")","v":""},{"$f":"IF(WorkingR!$B90=\"Legacies Received\",WorkingR!Y90,\"\")","v":""},{"$f":"IF(Descriptions!D91=\"Legacies Received\",Descriptions!AA91,0)","v":0}]
[{"$f":"IF(Descriptions!D92=\"Legacies Received\",Descriptions!B92,0)","v":0},{"$f":"IF(WorkingR!$B91=\"Legacies Received\",WorkingR!D91,\"\")","v":""},{"$f":"IF(WorkingR!$B91=\"Legacies Received\",WorkingR!E91,\"\")","v":""},{"$f":"IF(WorkingR!$B91=\"Legacies Received\",WorkingR!F91,\"\")","v":""},{"$f":"IF(WorkingR!$B91=\"Legacies Received\",WorkingR!G91,\"\")","v":""},{"$f":"IF(WorkingR!$B91=\"Legacies Received\",WorkingR!H91,\"\")","v":""},{"$f":"IF(WorkingR!$B91=\"Legacies Received\",WorkingR!I91,\"\")","v":""},{"$f":"IF(WorkingR!$B91=\"Legacies Received\",WorkingR!J91,\"\")","v":""},{"$f":"IF(WorkingR!$B91=\"Legacies Received\",WorkingR!K91,\"\")","v":""},{"$f":"IF(WorkingR!$B91=\"Legacies Received\",WorkingR!L91,\"\")","v":""},{"$f":"IF(WorkingR!$B91=\"Legacies Received\",WorkingR!M91,\"\")","v":""},{"$f":"IF(WorkingR!$B91=\"Legacies Received\",WorkingR!N91,\"\")","v":""},{"$f":"IF(WorkingR!$B91=\"Legacies Received\",WorkingR!O91,\"\")","v":""},{"$f":"IF(WorkingR!$B91=\"Legacies Received\",WorkingR!P91,\"\")","v":""},{"$f":"IF(WorkingR!$B91=\"Legacies Received\",WorkingR!Q91,\"\")","v":""},{"$f":"IF(WorkingR!$B91=\"Legacies Received\",WorkingR!R91,\"\")","v":""},{"$f":"IF(WorkingR!$B91=\"Legacies Received\",WorkingR!S91,\"\")","v":""},{"$f":"IF(WorkingR!$B91=\"Legacies Received\",WorkingR!T91,\"\")","v":""},{"$f":"IF(WorkingR!$B91=\"Legacies Received\",WorkingR!U91,\"\")","v":""},{"$f":"IF(WorkingR!$B91=\"Legacies Received\",WorkingR!V91,\"\")","v":""},{"$f":"IF(WorkingR!$B91=\"Legacies Received\",WorkingR!W91,\"\")","v":""},{"$f":"IF(WorkingR!$B91=\"Legacies Received\",WorkingR!X91,\"\")","v":""},{"$f":"IF(WorkingR!$B91=\"Legacies Received\",WorkingR!Y91,\"\")","v":""},{"$f":"IF(Descriptions!D92=\"Legacies Received\",Descriptions!AA92,0)","v":0}]
[null,{"$f":"SUM(B402:B452)","v":0},0,0,0,0,0,0,0,0,0,0,0,0,0,0,0,0,0,0,0,0,null,{"$f":"X401","v":0}]
["GRANT INCOME",null,null,null,null,null,null,null,null,null,null,null,null,null,null,null,null,null,null,null,null,null,null,{"$f":"SUM(X455:X506)","v":0}]
["Recurring Grants",{"$f":"WorkingR!D20","v":0},{"$f":"WorkingR!E20","v":0},{"$f":"WorkingR!F20","v":0},{"$f":"WorkingR!G20","v":0},{"$f":"WorkingR!H20","v":0},{"$f":"WorkingR!I20","v":0},{"$f":"WorkingR!J20","v":0},{"$f":"WorkingR!K20","v":0},{"$f":"WorkingR!L20","v":0},{"$f":"WorkingR!M20","v":0},{"$f":"WorkingR!N20","v":0},{"$f":"WorkingR!O20","v":0},{"$f":"WorkingR!P20","v":0},{"$f":"WorkingR!Q20","v":0},{"$f":"WorkingR!R20","v":0},{"$f":"WorkingR!S20","v":0},{"$f":"WorkingR!T20","v":0},{"$f":"WorkingR!U20","v":0},{"$f":"WorkingR!V20","v":0},{"$f":"WorkingR!W20","v":0},{"$f":"WorkingR!X20","v":0},{"$f":"WorkingR!Y20","v":0},{"$f":"Descriptions!AA19","v":0}]
["Non-Recurring Grants",{"$f":"WorkingR!D19","v":0},{"$f":"WorkingR!E19","v":0},{"$f":"WorkingR!F19","v":0},{"$f":"WorkingR!G19","v":0},{"$f":"WorkingR!H19","v":0},{"$f":"WorkingR!I19","v":0},{"$f":"WorkingR!J19","v":0},{"$f":"WorkingR!K19","v":0},{"$f":"WorkingR!L19","v":0},{"$f":"WorkingR!M19","v":0},{"$f":"WorkingR!N19","v":0},{"$f":"WorkingR!O19","v":0},{"$f":"WorkingR!P19","v":0},{"$f":"WorkingR!Q19","v":0},{"$f":"WorkingR!R19","v":0},{"$f":"WorkingR!S19","v":0},{"$f":"WorkingR!T19","v":0},{"$f":"WorkingR!U19","v":0},{"$f":"WorkingR!V19","v":0},{"$f":"WorkingR!W19","v":0},{"$f":"WorkingR!X19","v":0},{"$f":"WorkingR!Y19","v":0},{"$f":"Descriptions!AA18","v":0}]
[{"$f":"IF(Descriptions!D43=\"Grant income\",Descriptions!B43,0)","v":0},{"$f":"IF(WorkingR!$B42=\"Grant Income\",WorkingR!D42,\"\")","v":""},{"$f":"IF(WorkingR!$B42=\"Grant Income\",WorkingR!E42,\"\")","v":""},{"$f":"IF(WorkingR!$B42=\"Grant Income\",WorkingR!F42,\"\")","v":""},{"$f":"IF(WorkingR!$B42=\"Grant Income\",WorkingR!G42,\"\")","v":""},{"$f":"IF(WorkingR!$B42=\"Grant Income\",WorkingR!H42,\"\")","v":""},{"$f":"IF(WorkingR!$B42=\"Grant Income\",WorkingR!I42,\"\")","v":""},{"$f":"IF(WorkingR!$B42=\"Grant Income\",WorkingR!J42,\"\")","v":""},{"$f":"IF(WorkingR!$B42=\"Grant Income\",WorkingR!K42,\"\")","v":""},{"$f":"IF(WorkingR!$B42=\"Grant Income\",WorkingR!L42,\"\")","v":""},{"$f":"IF(WorkingR!$B42=\"Grant Income\",WorkingR!M42,\"\")","v":""},{"$f":"IF(WorkingR!$B42=\"Grant Income\",WorkingR!N42,\"\")","v":""},{"$f":"IF(WorkingR!$B42=\"Grant Income\",WorkingR!O42,\"\")","v":""},{"$f":"IF(WorkingR!$B42=\"Grant Income\",WorkingR!P42,\"\")","v":""},{"$f":"IF(WorkingR!$B42=\"Grant Income\",WorkingR!Q42,\"\")","v":""},{"$f":"IF(WorkingR!$B42=\"Grant Income\",WorkingR!R42,\"\")","v":""},{"$f":"IF(WorkingR!$B42=\"Grant Income\",WorkingR!S42,\"\")","v":""},{"$f":"IF(WorkingR!$B42=\"Grant Income\",WorkingR!T42,\"\")","v":""},{"$f":"IF(WorkingR!$B42=\"Grant Income\",WorkingR!U42,\"\")","v":""},{"$f":"IF(WorkingR!$B42=\"Grant Income\",WorkingR!V42,\"\")","v":""},{"$f":"IF(WorkingR!$B42=\"Grant Income\",WorkingR!W42,\"\")","v":""},{"$f":"IF(WorkingR!$B42=\"Grant Income\",WorkingR!X42,\"\")","v":""},{"$f":"IF(WorkingR!$B42=\"Grant Income\",WorkingR!Y42,\"\")","v":""},{"$f":"IF(Descriptions!D43=\"Grant income\",Descriptions!AA43,0)","v":0}]
[{"$f":"IF(Descriptions!D44=\"Grant income\",Descriptions!B44,0)","v":0},{"$f":"IF(WorkingR!$B43=\"Grant Income\",WorkingR!D43,\"\")","v":""},{"$f":"IF(WorkingR!$B43=\"Grant Income\",WorkingR!E43,\"\")","v":""},{"$f":"IF(WorkingR!$B43=\"Grant Income\",WorkingR!F43,\"\")","v":""},{"$f":"IF(WorkingR!$B43=\"Grant Income\",WorkingR!G43,\"\")","v":""},{"$f":"IF(WorkingR!$B43=\"Grant Income\",WorkingR!H43,\"\")","v":""},{"$f":"IF(WorkingR!$B43=\"Grant Income\",WorkingR!I43,\"\")","v":""},{"$f":"IF(WorkingR!$B43=\"Grant Income\",WorkingR!J43,\"\")","v":""},{"$f":"IF(WorkingR!$B43=\"Grant Income\",WorkingR!K43,\"\")","v":""},{"$f":"IF(WorkingR!$B43=\"Grant Income\",WorkingR!L43,\"\")","v":""},{"$f":"IF(WorkingR!$B43=\"Grant Income\",WorkingR!M43,\"\")","v":""},{"$f":"IF(WorkingR!$B43=\"Grant Income\",WorkingR!N43,\"\")","v":""},{"$f":"IF(WorkingR!$B43=\"Grant Income\",WorkingR!O43,\"\")","v":""},{"$f":"IF(WorkingR!$B43=\"Grant Income\",WorkingR!P43,\"\")","v":""},{"$f":"IF(WorkingR!$B43=\"Grant Income\",WorkingR!Q43,\"\")","v":""},{"$f":"IF(WorkingR!$B43=\"Grant Income\",WorkingR!R43,\"\")","v":""},{"$f":"IF(WorkingR!$B43=\"Grant Income\",WorkingR!S43,\"\")","v":""},{"$f":"IF(WorkingR!$B43=\"Grant Income\",WorkingR!T43,\"\")","v":""},{"$f":"IF(WorkingR!$B43=\"Grant Income\",WorkingR!U43,\"\")","v":""},{"$f":"IF(WorkingR!$B43=\"Grant Income\",WorkingR!V43,\"\")","v":""},{"$f":"IF(WorkingR!$B43=\"Grant Income\",WorkingR!W43,\"\")","v":""},{"$f":"IF(WorkingR!$B43=\"Grant Income\",WorkingR!X43,\"\")","v":""},{"$f":"IF(WorkingR!$B43=\"Grant Income\",WorkingR!Y43,\"\")","v":""},{"$f":"IF(Descriptions!D44=\"Grant income\",Descriptions!AA44,0)","v":0}]
[{"$f":"IF(Descriptions!D45=\"Grant income\",Descriptions!B45,0)","v":0},{"$f":"IF(WorkingR!$B44=\"Grant Income\",WorkingR!D44,\"\")","v":""},{"$f":"IF(WorkingR!$B44=\"Grant Income\",WorkingR!E44,\"\")","v":""},{"$f":"IF(WorkingR!$B44=\"Grant Income\",WorkingR!F44,\"\")","v":""},{"$f":"IF(WorkingR!$B44=\"Grant Income\",WorkingR!G44,\"\")","v":""},{"$f":"IF(WorkingR!$B44=\"Grant Income\",WorkingR!H44,\"\")","v":""},{"$f":"IF(WorkingR!$B44=\"Grant Income\",WorkingR!I44,\"\")","v":""},{"$f":"IF(WorkingR!$B44=\"Grant Income\",WorkingR!J44,\"\")","v":""},{"$f":"IF(WorkingR!$B44=\"Grant Income\",WorkingR!K44,\"\")","v":""},{"$f":"IF(WorkingR!$B44=\"Grant Income\",WorkingR!L44,\"\")","v":""},{"$f":"IF(WorkingR!$B44=\"Grant Income\",WorkingR!M44,\"\")","v":""},{"$f":"IF(WorkingR!$B44=\"Grant Income\",WorkingR!N44,\"\")","v":""},{"$f":"IF(WorkingR!$B44=\"Grant Income\",WorkingR!O44,\"\")","v":""},{"$f":"IF(WorkingR!$B44=\"Grant Income\",WorkingR!P44,\"\")","v":""},{"$f":"IF(WorkingR!$B44=\"Grant Income\",WorkingR!Q44,\"\")","v":""},{"$f":"IF(WorkingR!$B44=\"Grant Income\",WorkingR!R44,\"\")","v":""},{"$f":"IF(WorkingR!$B44=\"Grant Income\",WorkingR!S44,\"\")","v":""},{"$f":"IF(WorkingR!$B44=\"Grant Income\",WorkingR!T44,\"\")","v":""},{"$f":"IF(WorkingR!$B44=\"Grant Income\",WorkingR!U44,\"\")","v":""},{"$f":"IF(WorkingR!$B44=\"Grant Income\",WorkingR!V44,\"\")","v":""},{"$f":"IF(WorkingR!$B44=\"Grant Income\",WorkingR!W44,\"\")","v":""},{"$f":"IF(WorkingR!$B44=\"Grant Income\",WorkingR!X44,\"\")","v":""},{"$f":"IF(WorkingR!$B44=\"Grant Income\",WorkingR!Y44,\"\")","v":""},{"$f":"IF(Descriptions!D45=\"Grant income\",Descriptions!AA45,0)","v":0}]
[{"$f":"IF(Descriptions!D46=\"Grant income\",Descriptions!B46,0)","v":0},{"$f":"IF(WorkingR!$B45=\"Grant Income\",WorkingR!D45,\"\")","v":""},{"$f":"IF(WorkingR!$B45=\"Grant Income\",WorkingR!E45,\"\")","v":""},{"$f":"IF(WorkingR!$B45=\"Grant Income\",WorkingR!F45,\"\")","v":""},{"$f":"IF(WorkingR!$B45=\"Grant Income\",WorkingR!G45,\"\")","v":""},{"$f":"IF(WorkingR!$B45=\"Grant Income\",WorkingR!H45,\"\")","v":""},{"$f":"IF(WorkingR!$B45=\"Grant Income\",WorkingR!I45,\"\")","v":""},{"$f":"IF(WorkingR!$B45=\"Grant Income\",WorkingR!J45,\"\")","v":""},{"$f":"IF(WorkingR!$B45=\"Grant Income\",WorkingR!K45,\"\")","v":""},{"$f":"IF(WorkingR!$B45=\"Grant Income\",WorkingR!L45,\"\")","v":""},{"$f":"IF(WorkingR!$B45=\"Grant Income\",WorkingR!M45,\"\")","v":""},{"$f":"IF(WorkingR!$B45=\"Grant Income\",WorkingR!N45,\"\")","v":""},{"$f":"IF(WorkingR!$B45=\"Grant Income\",WorkingR!O45,\"\")","v":""},{"$f":"IF(WorkingR!$B45=\"Grant Income\",WorkingR!P45,\"\")","v":""},{"$f":"IF(WorkingR!$B45=\"Grant Income\",WorkingR!Q45,\"\")","v":""},{"$f":"IF(WorkingR!$B45=\"Grant Income\",WorkingR!R45,\"\")","v":""},{"$f":"IF(WorkingR!$B45=\"Grant Income\",WorkingR!S45,\"\")","v":""},{"$f":"IF(WorkingR!$B45=\"Grant Income\",WorkingR!T45,\"\")","v":""},{"$f":"IF(WorkingR!$B45=\"Grant Income\",WorkingR!U45,\"\")","v":""},{"$f":"IF(WorkingR!$B45=\"Grant Income\",WorkingR!V45,\"\")","v":""},{"$f":"IF(WorkingR!$B45=\"Grant Income\",WorkingR!W45,\"\")","v":""},{"$f":"IF(WorkingR!$B45=\"Grant Income\",WorkingR!X45,\"\")","v":""},{"$f":"IF(WorkingR!$B45=\"Grant Income\",WorkingR!Y45,\"\")","v":""},{"$f":"IF(Descriptions!D46=\"Grant income\",Descriptions!AA46,0)","v":0}]
[{"$f":"IF(Descriptions!D47=\"Grant income\",Descriptions!B47,0)","v":0},{"$f":"IF(WorkingR!$B46=\"Grant Income\",WorkingR!D46,\"\")","v":""},{"$f":"IF(WorkingR!$B46=\"Grant Income\",WorkingR!E46,\"\")","v":""},{"$f":"IF(WorkingR!$B46=\"Grant Income\",WorkingR!F46,\"\")","v":""},{"$f":"IF(WorkingR!$B46=\"Grant Income\",WorkingR!G46,\"\")","v":""},{"$f":"IF(WorkingR!$B46=\"Grant Income\",WorkingR!H46,\"\")","v":""},{"$f":"IF(WorkingR!$B46=\"Grant Income\",WorkingR!I46,\"\")","v":""},{"$f":"IF(WorkingR!$B46=\"Grant Income\",WorkingR!J46,\"\")","v":""},{"$f":"IF(WorkingR!$B46=\"Grant Income\",WorkingR!K46,\"\")","v":""},{"$f":"IF(WorkingR!$B46=\"Grant Income\",WorkingR!L46,\"\")","v":""},{"$f":"IF(WorkingR!$B46=\"Grant Income\",WorkingR!M46,\"\")","v":""},{"$f":"IF(WorkingR!$B46=\"Grant Income\",WorkingR!N46,\"\")","v":""},{"$f":"IF(WorkingR!$B46=\"Grant Income\",WorkingR!O46,\"\")","v":""},{"$f":"IF(WorkingR!$B46=\"Grant Income\",WorkingR!P46,\"\")","v":""},{"$f":"IF(WorkingR!$B46=\"Grant Income\",WorkingR!Q46,\"\")","v":""},{"$f":"IF(WorkingR!$B46=\"Grant Income\",WorkingR!R46,\"\")","v":""},{"$f":"IF(WorkingR!$B46=\"Grant Income\",WorkingR!S46,\"\")","v":""},{"$f":"IF(WorkingR!$B46=\"Grant Income\",WorkingR!T46,\"\")","v":""},{"$f":"IF(WorkingR!$B46=\"Grant Income\",WorkingR!U46,\"\")","v":""},{"$f":"IF(WorkingR!$B46=\"Grant Income\",WorkingR!V46,\"\")","v":""},{"$f":"IF(WorkingR!$B46=\"Grant Income\",WorkingR!W46,\"\")","v":""},{"$f":"IF(WorkingR!$B46=\"Grant Income\",WorkingR!X46,\"\")","v":""},{"$f":"IF(WorkingR!$B46=\"Grant Income\",WorkingR!Y46,\"\")","v":""},{"$f":"IF(Descriptions!D47=\"Grant income\",Descriptions!AA47,0)","v":0}]
[{"$f":"IF(Descriptions!D48=\"Grant income\",Descriptions!B48,0)","v":0},{"$f":"IF(WorkingR!$B47=\"Grant Income\",WorkingR!D47,\"\")","v":""},{"$f":"IF(WorkingR!$B47=\"Grant Income\",WorkingR!E47,\"\")","v":""},{"$f":"IF(WorkingR!$B47=\"Grant Income\",WorkingR!F47,\"\")","v":""},{"$f":"IF(WorkingR!$B47=\"Grant Income\",WorkingR!G47,\"\")","v":""},{"$f":"IF(WorkingR!$B47=\"Grant Income\",WorkingR!H47,\"\")","v":""},{"$f":"IF(WorkingR!$B47=\"Grant Income\",WorkingR!I47,\"\")","v":""},{"$f":"IF(WorkingR!$B47=\"Grant Income\",WorkingR!J47,\"\")","v":""},{"$f":"IF(WorkingR!$B47=\"Grant Income\",WorkingR!K47,\"\")","v":""},{"$f":"IF(WorkingR!$B47=\"Grant Income\",WorkingR!L47,\"\")","v":""},{"$f":"IF(WorkingR!$B47=\"Grant Income\",WorkingR!M47,\"\")","v":""},{"$f":"IF(WorkingR!$B47=\"Grant Income\",WorkingR!N47,\"\")","v":""},{"$f":"IF(WorkingR!$B47=\"Grant Income\",WorkingR!O47,\"\")","v":""},{"$f":"IF(WorkingR!$B47=\"Grant Income\",WorkingR!P47,\"\")","v":""},{"$f":"IF(WorkingR!$B47=\"Grant Income\",WorkingR!Q47,\"\")","v":""},{"$f":"IF(WorkingR!$B47=\"Grant Income\",WorkingR!R47,\"\")","v":""},{"$f":"IF(WorkingR!$B47=\"Grant Income\",WorkingR!S47,\"\")","v":""},{"$f":"IF(WorkingR!$B47=\"Grant Income\",WorkingR!T47,\"\")","v":""},{"$f":"IF(WorkingR!$B47=\"Grant Income\",WorkingR!U47,\"\")","v":""},{"$f":"IF(WorkingR!$B47=\"Grant Income\",WorkingR!V47,\"\")","v":""},{"$f":"IF(WorkingR!$B47=\"Grant Income\",WorkingR!W47,\"\")","v":""},{"$f":"IF(WorkingR!$B47=\"Grant Income\",WorkingR!X47,\"\")","v":""},{"$f":"IF(WorkingR!$B47=\"Grant Income\",WorkingR!Y47,\"\")","v":""},{"$f":"IF(Descriptions!D48=\"Grant income\",Descriptions!AA48,0)","v":0}]
[{"$f":"IF(Descriptions!D49=\"Grant income\",Descriptions!B49,0)","v":0},{"$f":"IF(WorkingR!$B48=\"Grant Income\",WorkingR!D48,\"\")","v":""},{"$f":"IF(WorkingR!$B48=\"Grant Income\",WorkingR!E48,\"\")","v":""},{"$f":"IF(WorkingR!$B48=\"Grant Income\",WorkingR!F48,\"\")","v":""},{"$f":"IF(WorkingR!$B48=\"Grant Income\",WorkingR!G48,\"\")","v":""},{"$f":"IF(WorkingR!$B48=\"Grant Income\",WorkingR!H48,\"\")","v":""},{"$f":"IF(WorkingR!$B48=\"Grant Income\",WorkingR!I48,\"\")","v":""},{"$f":"IF(WorkingR!$B48=\"Grant Income\",WorkingR!J48,\"\")","v":""},{"$f":"IF(WorkingR!$B48=\"Grant Income\",WorkingR!K48,\"\")","v":""},{"$f":"IF(WorkingR!$B48=\"Grant Income\",WorkingR!L48,\"\")","v":""},{"$f":"IF(WorkingR!$B48=\"Grant Income\",WorkingR!M48,\"\")","v":""},{"$f":"IF(WorkingR!$B48=\"Grant Income\",WorkingR!N48,\"\")","v":""},{"$f":"IF(WorkingR!$B48=\"Grant Income\",WorkingR!O48,\"\")","v":""},{"$f":"IF(WorkingR!$B48=\"Grant Income\",WorkingR!P48,\"\")","v":""},{"$f":"IF(WorkingR!$B48=\"Grant Income\",WorkingR!Q48,\"\")","v":""},{"$f":"IF(WorkingR!$B48=\"Grant Income\",WorkingR!R48,\"\")","v":""},{"$f":"IF(WorkingR!$B48=\"Grant Income\",WorkingR!S48,\"\")","v":""},{"$f":"IF(WorkingR!$B48=\"Grant Income\",WorkingR!T48,\"\")","v":""},{"$f":"IF(WorkingR!$B48=\"Grant Income\",WorkingR!U48,\"\")","v":""},{"$f":"IF(WorkingR!$B48=\"Grant Income\",WorkingR!V48,\"\")","v":""},{"$f":"IF(WorkingR!$B48=\"Grant Income\",WorkingR!W48,\"\")","v":""},{"$f":"IF(WorkingR!$B48=\"Grant Income\",WorkingR!X48,\"\")","v":""},{"$f":"IF(WorkingR!$B48=\"Grant Income\",WorkingR!Y48,\"\")","v":""},{"$f":"IF(Descriptions!D49=\"Grant income\",Descriptions!AA49,0)","v":0}]
[{"$f":"IF(Descriptions!D50=\"Grant income\",Descriptions!B50,0)","v":0},{"$f":"IF(WorkingR!$B49=\"Grant Income\",WorkingR!D49,\"\")","v":""},{"$f":"IF(WorkingR!$B49=\"Grant Income\",WorkingR!E49,\"\")","v":""},{"$f":"IF(WorkingR!$B49=\"Grant Income\",WorkingR!F49,\"\")","v":""},{"$f":"IF(WorkingR!$B49=\"Grant Income\",WorkingR!G49,\"\")","v":""},{"$f":"IF(WorkingR!$B49=\"Grant Income\",WorkingR!H49,\"\")","v":""},{"$f":"IF(WorkingR!$B49=\"Grant Income\",WorkingR!I49,\"\")","v":""},{"$f":"IF(WorkingR!$B49=\"Grant Income\",WorkingR!J49,\"\")","v":""},{"$f":"IF(WorkingR!$B49=\"Grant Income\",WorkingR!K49,\"\")","v":""},{"$f":"IF(WorkingR!$B49=\"Grant Income\",WorkingR!L49,\"\")","v":""},{"$f":"IF(WorkingR!$B49=\"Grant Income\",WorkingR!M49,\"\")","v":""},{"$f":"IF(WorkingR!$B49=\"Grant Income\",WorkingR!N49,\"\")","v":""},{"$f":"IF(WorkingR!$B49=\"Grant Income\",WorkingR!O49,\"\")","v":""},{"$f":"IF(WorkingR!$B49=\"Grant Income\",WorkingR!P49,\"\")","v":""},{"$f":"IF(WorkingR!$B49=\"Grant Income\",WorkingR!Q49,\"\")","v":""},{"$f":"IF(WorkingR!$B49=\"Grant Income\",WorkingR!R49,\"\")","v":""},{"$f":"IF(WorkingR!$B49=\"Grant Income\",WorkingR!S49,\"\")","v":""},{"$f":"IF(WorkingR!$B49=\"Grant Income\",WorkingR!T49,\"\")","v":""},{"$f":"IF(WorkingR!$B49=\"Grant Income\",WorkingR!U49,\"\")","v":""},{"$f":"IF(WorkingR!$B49=\"Grant Income\",WorkingR!V49,\"\")","v":""},{"$f":"IF(WorkingR!$B49=\"Grant Income\",WorkingR!W49,\"\")","v":""},{"$f":"IF(WorkingR!$B49=\"Grant Income\",WorkingR!X49,\"\")","v":""},{"$f":"IF(WorkingR!$B49=\"Grant Income\",WorkingR!Y49,\"\")","v":""},{"$f":"IF(Descriptions!D50=\"Grant income\",Descriptions!AA50,0)","v":0}]
[{"$f":"IF(Descriptions!D51=\"Grant income\",Descriptions!B51,0)","v":0},{"$f":"IF(WorkingR!$B50=\"Grant Income\",WorkingR!D50,\"\")","v":""},{"$f":"IF(WorkingR!$B50=\"Grant Income\",WorkingR!E50,\"\")","v":""},{"$f":"IF(WorkingR!$B50=\"Grant Income\",WorkingR!F50,\"\")","v":""},{"$f":"IF(WorkingR!$B50=\"Grant Income\",WorkingR!G50,\"\")","v":""},{"$f":"IF(WorkingR!$B50=\"Grant Income\",WorkingR!H50,\"\")","v":""},{"$f":"IF(WorkingR!$B50=\"Grant Income\",WorkingR!I50,\"\")","v":""},{"$f":"IF(WorkingR!$B50=\"Grant Income\",WorkingR!J50,\"\")","v":""},{"$f":"IF(WorkingR!$B50=\"Grant Income\",WorkingR!K50,\"\")","v":""},{"$f":"IF(WorkingR!$B50=\"Grant Income\",WorkingR!L50,\"\")","v":""},{"$f":"IF(WorkingR!$B50=\"Grant Income\",WorkingR!M50,\"\")","v":""},{"$f":"IF(WorkingR!$B50=\"Grant Income\",WorkingR!N50,\"\")","v":""},{"$f":"IF(WorkingR!$B50=\"Grant Income\",WorkingR!O50,\"\")","v":""},{"$f":"IF(WorkingR!$B50=\"Grant Income\",WorkingR!P50,\"\")","v":""},{"$f":"IF(WorkingR!$B50=\"Grant Income\",WorkingR!Q50,\"\")","v":""},{"$f":"IF(WorkingR!$B50=\"Grant Income\",WorkingR!R50,\"\")","v":""},{"$f":"IF(WorkingR!$B50=\"Grant Income\",WorkingR!S50,\"\")","v":""},{"$f":"IF(WorkingR!$B50=\"Grant Income\",WorkingR!T50,\"\")","v":""},{"$f":"IF(WorkingR!$B50=\"Grant Income\",WorkingR!U50,\"\")","v":""},{"$f":"IF(WorkingR!$B50=\"Grant Income\",WorkingR!V50,\"\")","v":""},{"$f":"IF(WorkingR!$B50=\"Grant Income\",WorkingR!W50,\"\")","v":""},{"$f":"IF(WorkingR!$B50=\"Grant Income\",WorkingR!X50,\"\")","v":""},{"$f":"IF(WorkingR!$B50=\"Grant Income\",WorkingR!Y50,\"\")","v":""},{"$f":"IF(Descriptions!D51=\"Grant income\",Descriptions!AA51,0)","v":0}]
[{"$f":"IF(Descriptions!D52=\"Grant income\",Descriptions!B52,0)","v":0},{"$f":"IF(WorkingR!$B51=\"Grant Income\",WorkingR!D51,\"\")","v":""},{"$f":"IF(WorkingR!$B51=\"Grant Income\",WorkingR!E51,\"\")","v":""},{"$f":"IF(WorkingR!$B51=\"Grant Income\",WorkingR!F51,\"\")","v":""},{"$f":"IF(WorkingR!$B51=\"Grant Income\",WorkingR!G51,\"\")","v":""},{"$f":"IF(WorkingR!$B51=\"Grant Income\",WorkingR!H51,\"\")","v":""},{"$f":"IF(WorkingR!$B51=\"Grant Income\",WorkingR!I51,\"\")","v":""},{"$f":"IF(WorkingR!$B51=\"Grant Income\",WorkingR!J51,\"\")","v":""},{"$f":"IF(WorkingR!$B51=\"Grant Income\",WorkingR!K51,\"\")","v":""},{"$f":"IF(WorkingR!$B51=\"Grant Income\",WorkingR!L51,\"\")","v":""},{"$f":"IF(WorkingR!$B51=\"Grant Income\",WorkingR!M51,\"\")","v":""},{"$f":"IF(WorkingR!$B51=\"Grant Income\",WorkingR!N51,\"\")","v":""},{"$f":"IF(WorkingR!$B51=\"Grant Income\",WorkingR!O51,\"\")","v":""},{"$f":"IF(WorkingR!$B51=\"Grant Income\",WorkingR!P51,\"\")","v":""},{"$f":"IF(WorkingR!$B51=\"Grant Income\",WorkingR!Q51,\"\")","v":""},{"$f":"IF(WorkingR!$B51=\"Grant Income\",WorkingR!R51,\"\")","v":""},{"$f":"IF(WorkingR!$B51=\"Grant Income\",WorkingR!S51,\"\")","v":""},{"$f":"IF(WorkingR!$B51=\"Grant Income\",WorkingR!T51,\"\")","v":""},{"$f":"IF(WorkingR!$B51=\"Grant Income\",WorkingR!U51,\"\")","v":""},{"$f":"IF(WorkingR!$B51=\"Grant Income\",WorkingR!V51,\"\")","v":""},{"$f":"IF(WorkingR!$B51=\"Grant Income\",WorkingR!W51,\"\")","v":""},{"$f":"IF(WorkingR!$B51=\"Grant Income\",WorkingR!X51,\"\")","v":""},{"$f":"IF(WorkingR!$B51=\"Grant Income\",WorkingR!Y51,\"\")","v":""},{"$f":"IF(Descriptions!D52=\"Grant income\",Descriptions!AA52,0)","v":0}]
[{"$f":"IF(Descriptions!D53=\"Grant income\",Descriptions!B53,0)","v":0},{"$f":"IF(WorkingR!$B52=\"Grant Income\",WorkingR!D52,\"\")","v":""},{"$f":"IF(WorkingR!$B52=\"Grant Income\",WorkingR!E52,\"\")","v":""},{"$f":"IF(WorkingR!$B52=\"Grant Income\",WorkingR!F52,\"\")","v":""},{"$f":"IF(WorkingR!$B52=\"Grant Income\",WorkingR!G52,\"\")","v":""},{"$f":"IF(WorkingR!$B52=\"Grant Income\",WorkingR!H52,\"\")","v":""},{"$f":"IF(WorkingR!$B52=\"Grant Income\",WorkingR!I52,\"\")","v":""},{"$f":"IF(WorkingR!$B52=\"Grant Income\",WorkingR!J52,\"\")","v":""},{"$f":"IF(WorkingR!$B52=\"Grant Income\",WorkingR!K52,\"\")","v":""},{"$f":"IF(WorkingR!$B52=\"Grant Income\",WorkingR!L52,\"\")","v":""},{"$f":"IF(WorkingR!$B52=\"Grant Income\",WorkingR!M52,\"\")","v":""},{"$f":"IF(WorkingR!$B52=\"Grant Income\",WorkingR!N52,\"\")","v":""},{"$f":"IF(WorkingR!$B52=\"Grant Income\",WorkingR!O52,\"\")","v":""},{"$f":"IF(WorkingR!$B52=\"Grant Income\",WorkingR!P52,\"\")","v":""},{"$f":"IF(WorkingR!$B52=\"Grant Income\",WorkingR!Q52,\"\")","v":""},{"$f":"IF(WorkingR!$B52=\"Grant Income\",WorkingR!R52,\"\")","v":""},{"$f":"IF(WorkingR!$B52=\"Grant Income\",WorkingR!S52,\"\")","v":""},{"$f":"IF(WorkingR!$B52=\"Grant Income\",WorkingR!T52,\"\")","v":""},{"$f":"IF(WorkingR!$B52=\"Grant Income\",WorkingR!U52,\"\")","v":""},{"$f":"IF(WorkingR!$B52=\"Grant Income\",WorkingR!V52,\"\")","v":""},{"$f":"IF(WorkingR!$B52=\"Grant Income\",WorkingR!W52,\"\")","v":""},{"$f":"IF(WorkingR!$B52=\"Grant Income\",WorkingR!X52,\"\")","v":""},{"$f":"IF(WorkingR!$B52=\"Grant Income\",WorkingR!Y52,\"\")","v":""},{"$f":"IF(Descriptions!D53=\"Grant income\",Descriptions!AA53,0)","v":0}]
[{"$f":"IF(Descriptions!D54=\"Grant income\",Descriptions!B54,0)","v":0},{"$f":"IF(WorkingR!$B53=\"Grant Income\",WorkingR!D53,\"\")","v":""},{"$f":"IF(WorkingR!$B53=\"Grant Income\",WorkingR!E53,\"\")","v":""},{"$f":"IF(WorkingR!$B53=\"Grant Income\",WorkingR!F53,\"\")","v":""},{"$f":"IF(WorkingR!$B53=\"Grant Income\",WorkingR!G53,\"\")","v":""},{"$f":"IF(WorkingR!$B53=\"Grant Income\",WorkingR!H53,\"\")","v":""},{"$f":"IF(WorkingR!$B53=\"Grant Income\",WorkingR!I53,\"\")","v":""},{"$f":"IF(WorkingR!$B53=\"Grant Income\",WorkingR!J53,\"\")","v":""},{"$f":"IF(WorkingR!$B53=\"Grant Income\",WorkingR!K53,\"\")","v":""},{"$f":"IF(WorkingR!$B53=\"Grant Income\",WorkingR!L53,\"\")","v":""},{"$f":"IF(WorkingR!$B53=\"Grant Income\",WorkingR!M53,\"\")","v":""},{"$f":"IF(WorkingR!$B53=\"Grant Income\",WorkingR!N53,\"\")","v":""},{"$f":"IF(WorkingR!$B53=\"Grant Income\",WorkingR!O53,\"\")","v":""},{"$f":"IF(WorkingR!$B53=\"Grant Income\",WorkingR!P53,\"\")","v":""},{"$f":"IF(WorkingR!$B53=\"Grant Income\",WorkingR!Q53,\"\")","v":""},{"$f":"IF(WorkingR!$B53=\"Grant Income\",WorkingR!R53,\"\")","v":""},{"$f":"IF(WorkingR!$B53=\"Grant Income\",WorkingR!S53,\"\")","v":""},{"$f":"IF(WorkingR!$B53=\"Grant Income\",WorkingR!T53,\"\")","v":""},{"$f":"IF(WorkingR!$B53=\"Grant Income\",WorkingR!U53,\"\")","v":""},{"$f":"IF(WorkingR!$B53=\"Grant Income\",WorkingR!V53,\"\")","v":""},{"$f":"IF(WorkingR!$B53=\"Grant Income\",WorkingR!W53,\"\")","v":""},{"$f":"IF(WorkingR!$B53=\"Grant Income\",WorkingR!X53,\"\")","v":""},{"$f":"IF(WorkingR!$B53=\"Grant Income\",WorkingR!Y53,\"\")","v":""},{"$f":"IF(Descriptions!D54=\"Grant income\",Descriptions!AA54,0)","v":0}]
[{"$f":"IF(Descriptions!D55=\"Grant income\",Descriptions!B55,0)","v":0},{"$f":"IF(WorkingR!$B54=\"Grant Income\",WorkingR!D54,\"\")","v":""},{"$f":"IF(WorkingR!$B54=\"Grant Income\",WorkingR!E54,\"\")","v":""},{"$f":"IF(WorkingR!$B54=\"Grant Income\",WorkingR!F54,\"\")","v":""},{"$f":"IF(WorkingR!$B54=\"Grant Income\",WorkingR!G54,\"\")","v":""},{"$f":"IF(WorkingR!$B54=\"Grant Income\",WorkingR!H54,\"\")","v":""},{"$f":"IF(WorkingR!$B54=\"Grant Income\",WorkingR!I54,\"\")","v":""},{"$f":"IF(WorkingR!$B54=\"Grant Income\",WorkingR!J54,\"\")","v":""},{"$f":"IF(WorkingR!$B54=\"Grant Income\",WorkingR!K54,\"\")","v":""},{"$f":"IF(WorkingR!$B54=\"Grant Income\",WorkingR!L54,\"\")","v":""},{"$f":"IF(WorkingR!$B54=\"Grant Income\",WorkingR!M54,\"\")","v":""},{"$f":"IF(WorkingR!$B54=\"Grant Income\",WorkingR!N54,\"\")","v":""},{"$f":"IF(WorkingR!$B54=\"Grant Income\",WorkingR!O54,\"\")","v":""},{"$f":"IF(WorkingR!$B54=\"Grant Income\",WorkingR!P54,\"\")","v":""},{"$f":"IF(WorkingR!$B54=\"Grant Income\",WorkingR!Q54,\"\")","v":""},{"$f":"IF(WorkingR!$B54=\"Grant Income\",WorkingR!R54,\"\")","v":""},{"$f":"IF(WorkingR!$B54=\"Grant Income\",WorkingR!S54,\"\")","v":""},{"$f":"IF(WorkingR!$B54=\"Grant Income\",WorkingR!T54,\"\")","v":""},{"$f":"IF(WorkingR!$B54=\"Grant Income\",WorkingR!U54,\"\")","v":""},{"$f":"IF(WorkingR!$B54=\"Grant Income\",WorkingR!V54,\"\")","v":""},{"$f":"IF(WorkingR!$B54=\"Grant Income\",WorkingR!W54,\"\")","v":""},{"$f":"IF(WorkingR!$B54=\"Grant Income\",WorkingR!X54,\"\")","v":""},{"$f":"IF(WorkingR!$B54=\"Grant Income\",WorkingR!Y54,\"\")","v":""},{"$f":"IF(Descriptions!D55=\"Grant income\",Descriptions!AA55,0)","v":0}]
[{"$f":"IF(Descriptions!D56=\"Grant income\",Descriptions!B56,0)","v":0},{"$f":"IF(WorkingR!$B55=\"Grant Income\",WorkingR!D55,\"\")","v":""},{"$f":"IF(WorkingR!$B55=\"Grant Income\",WorkingR!E55,\"\")","v":""},{"$f":"IF(WorkingR!$B55=\"Grant Income\",WorkingR!F55,\"\")","v":""},{"$f":"IF(WorkingR!$B55=\"Grant Income\",WorkingR!G55,\"\")","v":""},{"$f":"IF(WorkingR!$B55=\"Grant Income\",WorkingR!H55,\"\")","v":""},{"$f":"IF(WorkingR!$B55=\"Grant Income\",WorkingR!I55,\"\")","v":""},{"$f":"IF(WorkingR!$B55=\"Grant Income\",WorkingR!J55,\"\")","v":""},{"$f":"IF(WorkingR!$B55=\"Grant Income\",WorkingR!K55,\"\")","v":""},{"$f":"IF(WorkingR!$B55=\"Grant Income\",WorkingR!L55,\"\")","v":""},{"$f":"IF(WorkingR!$B55=\"Grant Income\",WorkingR!M55,\"\")","v":""},{"$f":"IF(WorkingR!$B55=\"Grant Income\",WorkingR!N55,\"\")","v":""},{"$f":"IF(WorkingR!$B55=\"Grant Income\",WorkingR!O55,\"\")","v":""},{"$f":"IF(WorkingR!$B55=\"Grant Income\",WorkingR!P55,\"\")","v":""},{"$f":"IF(WorkingR!$B55=\"Grant Income\",WorkingR!Q55,\"\")","v":""},{"$f":"IF(WorkingR!$B55=\"Grant Income\",WorkingR!R55,\"\")","v":""},{"$f":"IF(WorkingR!$B55=\"Grant Income\",WorkingR!S55,\"\")","v":""},{"$f":"IF(WorkingR!$B55=\"Grant Income\",WorkingR!T55,\"\")","v":""},{"$f":"IF(WorkingR!$B55=\"Grant Income\",WorkingR!U55,\"\")","v":""},{"$f":"IF(WorkingR!$B55=\"Grant Income\",WorkingR!V55,\"\")","v":""},{"$f":"IF(WorkingR!$B55=\"Grant Income\",WorkingR!W55,\"\")","v":""},{"$f":"IF(WorkingR!$B55=\"Grant Income\",WorkingR!X55,\"\")","v":""},{"$f":"IF(WorkingR!$B55=\"Grant Income\",WorkingR!Y55,\"\")","v":""},{"$f":"IF(Descriptions!D56=\"Grant income\",Descriptions!AA56,0)","v":0}]
[{"$f":"IF(Descriptions!D57=\"Grant income\",Descriptions!B57,0)","v":0},{"$f":"IF(WorkingR!$B56=\"Grant Income\",WorkingR!D56,\"\")","v":""},{"$f":"IF(WorkingR!$B56=\"Grant Income\",WorkingR!E56,\"\")","v":""},{"$f":"IF(WorkingR!$B56=\"Grant Income\",WorkingR!F56,\"\")","v":""},{"$f":"IF(WorkingR!$B56=\"Grant Income\",WorkingR!G56,\"\")","v":""},{"$f":"IF(WorkingR!$B56=\"Grant Income\",WorkingR!H56,\"\")","v":""},{"$f":"IF(WorkingR!$B56=\"Grant Income\",WorkingR!I56,\"\")","v":""},{"$f":"IF(WorkingR!$B56=\"Grant Income\",WorkingR!J56,\"\")","v":""},{"$f":"IF(WorkingR!$B56=\"Grant Income\",WorkingR!K56,\"\")","v":""},{"$f":"IF(WorkingR!$B56=\"Grant Income\",WorkingR!L56,\"\")","v":""},{"$f":"IF(WorkingR!$B56=\"Grant Income\",WorkingR!M56,\"\")","v":""},{"$f":"IF(WorkingR!$B56=\"Grant Income\",WorkingR!N56,\"\")","v":""},{"$f":"IF(WorkingR!$B56=\"Grant Income\",WorkingR!O56,\"\")","v":""},{"$f":"IF(WorkingR!$B56=\"Grant Income\",WorkingR!P56,\"\")","v":""},{"$f":"IF(WorkingR!$B56=\"Grant Income\",WorkingR!Q56,\"\")","v":""},{"$f":"IF(WorkingR!$B56=\"Grant Income\",WorkingR!R56,\"\")","v":""},{"$f":"IF(WorkingR!$B56=\"Grant Income\",WorkingR!S56,\"\")","v":""},{"$f":"IF(WorkingR!$B56=\"Grant Income\",WorkingR!T56,\"\")","v":""},{"$f":"IF(WorkingR!$B56=\"Grant Income\",WorkingR!U56,\"\")","v":""},{"$f":"IF(WorkingR!$B56=\"Grant Income\",WorkingR!V56,\"\")","v":""},{"$f":"IF(WorkingR!$B56=\"Grant Income\",WorkingR!W56,\"\")","v":""},{"$f":"IF(WorkingR!$B56=\"Grant Income\",WorkingR!X56,\"\")","v":""},{"$f":"IF(WorkingR!$B56=\"Grant Income\",WorkingR!Y56,\"\")","v":""},{"$f":"IF(Descriptions!D57=\"Grant income\",Descriptions!AA57,0)","v":0}]
[{"$f":"IF(Descriptions!D58=\"Grant income\",Descriptions!B58,0)","v":0},{"$f":"IF(WorkingR!$B57=\"Grant Income\",WorkingR!D57,\"\")","v":""},{"$f":"IF(WorkingR!$B57=\"Grant Income\",WorkingR!E57,\"\")","v":""},{"$f":"IF(WorkingR!$B57=\"Grant Income\",WorkingR!F57,\"\")","v":""},{"$f":"IF(WorkingR!$B57=\"Grant Income\",WorkingR!G57,\"\")","v":""},{"$f":"IF(WorkingR!$B57=\"Grant Income\",WorkingR!H57,\"\")","v":""},{"$f":"IF(WorkingR!$B57=\"Grant Income\",WorkingR!I57,\"\")","v":""},{"$f":"IF(WorkingR!$B57=\"Grant Income\",WorkingR!J57,\"\")","v":""},{"$f":"IF(WorkingR!$B57=\"Grant Income\",WorkingR!K57,\"\")","v":""},{"$f":"IF(WorkingR!$B57=\"Grant Income\",WorkingR!L57,\"\")","v":""},{"$f":"IF(WorkingR!$B57=\"Grant Income\",WorkingR!M57,\"\")","v":""},{"$f":"IF(WorkingR!$B57=\"Grant Income\",WorkingR!N57,\"\")","v":""},{"$f":"IF(WorkingR!$B57=\"Grant Income\",WorkingR!O57,\"\")","v":""},{"$f":"IF(WorkingR!$B57=\"Grant Income\",WorkingR!P57,\"\")","v":""},{"$f":"IF(WorkingR!$B57=\"Grant Income\",WorkingR!Q57,\"\")","v":""},{"$f":"IF(WorkingR!$B57=\"Grant Income\",WorkingR!R57,\"\")","v":""},{"$f":"IF(WorkingR!$B57=\"Grant Income\",WorkingR!S57,\"\")","v":""},{"$f":"IF(WorkingR!$B57=\"Grant Income\",WorkingR!T57,\"\")","v":""},{"$f":"IF(WorkingR!$B57=\"Grant Income\",WorkingR!U57,\"\")","v":""},{"$f":"IF(WorkingR!$B57=\"Grant Income\",WorkingR!V57,\"\")","v":""},{"$f":"IF(WorkingR!$B57=\"Grant Income\",WorkingR!W57,\"\")","v":""},{"$f":"IF(WorkingR!$B57=\"Grant Income\",WorkingR!X57,\"\")","v":""},{"$f":"IF(WorkingR!$B57=\"Grant Income\",WorkingR!Y57,\"\")","v":""},{"$f":"IF(Descriptions!D58=\"Grant income\",Descriptions!AA58,0)","v":0}]
[{"$f":"IF(Descriptions!D59=\"Grant income\",Descriptions!B59,0)","v":0},{"$f":"IF(WorkingR!$B58=\"Grant Income\",WorkingR!D58,\"\")","v":""},{"$f":"IF(WorkingR!$B58=\"Grant Income\",WorkingR!E58,\"\")","v":""},{"$f":"IF(WorkingR!$B58=\"Grant Income\",WorkingR!F58,\"\")","v":""},{"$f":"IF(WorkingR!$B58=\"Grant Income\",WorkingR!G58,\"\")","v":""},{"$f":"IF(WorkingR!$B58=\"Grant Income\",WorkingR!H58,\"\")","v":""},{"$f":"IF(WorkingR!$B58=\"Grant Income\",WorkingR!I58,\"\")","v":""},{"$f":"IF(WorkingR!$B58=\"Grant Income\",WorkingR!J58,\"\")","v":""},{"$f":"IF(WorkingR!$B58=\"Grant Income\",WorkingR!K58,\"\")","v":""},{"$f":"IF(WorkingR!$B58=\"Grant Income\",WorkingR!L58,\"\")","v":""},{"$f":"IF(WorkingR!$B58=\"Grant Income\",WorkingR!M58,\"\")","v":""},{"$f":"IF(WorkingR!$B58=\"Grant Income\",WorkingR!N58,\"\")","v":""},{"$f":"IF(WorkingR!$B58=\"Grant Income\",WorkingR!O58,\"\")","v":""},{"$f":"IF(WorkingR!$B58=\"Grant Income\",WorkingR!P58,\"\")","v":""},{"$f":"IF(WorkingR!$B58=\"Grant Income\",WorkingR!Q58,\"\")","v":""},{"$f":"IF(WorkingR!$B58=\"Grant Income\",WorkingR!R58,\"\")","v":""},{"$f":"IF(WorkingR!$B58=\"Grant Income\",WorkingR!S58,\"\")","v":""},{"$f":"IF(WorkingR!$B58=\"Grant Income\",WorkingR!T58,\"\")","v":""},{"$f":"IF(WorkingR!$B58=\"Grant Income\",WorkingR!U58,\"\")","v":""},{"$f":"IF(WorkingR!$B58=\"Grant Income\",WorkingR!V58,\"\")","v":""},{"$f":"IF(WorkingR!$B58=\"Grant Income\",WorkingR!W58,\"\")","v":""},{"$f":"IF(WorkingR!$B58=\"Grant Income\",WorkingR!X58,\"\")","v":""},{"$f":"IF(WorkingR!$B58=\"Grant Income\",WorkingR!Y58,\"\")","v":""},{"$f":"IF(Descriptions!D59=\"Grant income\",Descriptions!AA59,0)","v":0}]
[{"$f":"IF(Descriptions!D60=\"Grant income\",Descriptions!B60,0)","v":0},{"$f":"IF(WorkingR!$B59=\"Grant Income\",WorkingR!D59,\"\")","v":""},{"$f":"IF(WorkingR!$B59=\"Grant Income\",WorkingR!E59,\"\")","v":""},{"$f":"IF(WorkingR!$B59=\"Grant Income\",WorkingR!F59,\"\")","v":""},{"$f":"IF(WorkingR!$B59=\"Grant Income\",WorkingR!G59,\"\")","v":""},{"$f":"IF(WorkingR!$B59=\"Grant Income\",WorkingR!H59,\"\")","v":""},{"$f":"IF(WorkingR!$B59=\"Grant Income\",WorkingR!I59,\"\")","v":""},{"$f":"IF(WorkingR!$B59=\"Grant Income\",WorkingR!J59,\"\")","v":""},{"$f":"IF(WorkingR!$B59=\"Grant Income\",WorkingR!K59,\"\")","v":""},{"$f":"IF(WorkingR!$B59=\"Grant Income\",WorkingR!L59,\"\")","v":""},{"$f":"IF(WorkingR!$B59=\"Grant Income\",WorkingR!M59,\"\")","v":""},{"$f":"IF(WorkingR!$B59=\"Grant Income\",WorkingR!N59,\"\")","v":""},{"$f":"IF(WorkingR!$B59=\"Grant Income\",WorkingR!O59,\"\")","v":""},{"$f":"IF(WorkingR!$B59=\"Grant Income\",WorkingR!P59,\"\")","v":""},{"$f":"IF(WorkingR!$B59=\"Grant Income\",WorkingR!Q59,\"\")","v":""},{"$f":"IF(WorkingR!$B59=\"Grant Income\",WorkingR!R59,\"\")","v":""},{"$f":"IF(WorkingR!$B59=\"Grant Income\",WorkingR!S59,\"\")","v":""},{"$f":"IF(WorkingR!$B59=\"Grant Income\",WorkingR!T59,\"\")","v":""},{"$f":"IF(WorkingR!$B59=\"Grant Income\",WorkingR!U59,\"\")","v":""},{"$f":"IF(WorkingR!$B59=\"Grant Income\",WorkingR!V59,\"\")","v":""},{"$f":"IF(WorkingR!$B59=\"Grant Income\",WorkingR!W59,\"\")","v":""},{"$f":"IF(WorkingR!$B59=\"Grant Income\",WorkingR!X59,\"\")","v":""},{"$f":"IF(WorkingR!$B59=\"Grant Income\",WorkingR!Y59,\"\")","v":""},{"$f":"IF(Descriptions!D60=\"Grant income\",Descriptions!AA60,0)","v":0}]
[{"$f":"IF(Descriptions!D61=\"Grant income\",Descriptions!B61,0)","v":0},{"$f":"IF(WorkingR!$B60=\"Grant Income\",WorkingR!D60,\"\")","v":""},{"$f":"IF(WorkingR!$B60=\"Grant Income\",WorkingR!E60,\"\")","v":""},{"$f":"IF(WorkingR!$B60=\"Grant Income\",WorkingR!F60,\"\")","v":""},{"$f":"IF(WorkingR!$B60=\"Grant Income\",WorkingR!G60,\"\")","v":""},{"$f":"IF(WorkingR!$B60=\"Grant Income\",WorkingR!H60,\"\")","v":""},{"$f":"IF(WorkingR!$B60=\"Grant Income\",WorkingR!I60,\"\")","v":""},{"$f":"IF(WorkingR!$B60=\"Grant Income\",WorkingR!J60,\"\")","v":""},{"$f":"IF(WorkingR!$B60=\"Grant Income\",WorkingR!K60,\"\")","v":""},{"$f":"IF(WorkingR!$B60=\"Grant Income\",WorkingR!L60,\"\")","v":""},{"$f":"IF(WorkingR!$B60=\"Grant Income\",WorkingR!M60,\"\")","v":""},{"$f":"IF(WorkingR!$B60=\"Grant Income\",WorkingR!N60,\"\")","v":""},{"$f":"IF(WorkingR!$B60=\"Grant Income\",WorkingR!O60,\"\")","v":""},{"$f":"IF(WorkingR!$B60=\"Grant Income\",WorkingR!P60,\"\")","v":""},{"$f":"IF(WorkingR!$B60=\"Grant Income\",WorkingR!Q60,\"\")","v":""},{"$f":"IF(WorkingR!$B60=\"Grant Income\",WorkingR!R60,\"\")","v":""},{"$f":"IF(WorkingR!$B60=\"Grant Income\",WorkingR!S60,\"\")","v":""},{"$f":"IF(WorkingR!$B60=\"Grant Income\",WorkingR!T60,\"\")","v":""},{"$f":"IF(WorkingR!$B60=\"Grant Income\",WorkingR!U60,\"\")","v":""},{"$f":"IF(WorkingR!$B60=\"Grant Income\",WorkingR!V60,\"\")","v":""},{"$f":"IF(WorkingR!$B60=\"Grant Income\",WorkingR!W60,\"\")","v":""},{"$f":"IF(WorkingR!$B60=\"Grant Income\",WorkingR!X60,\"\")","v":""},{"$f":"IF(WorkingR!$B60=\"Grant Income\",WorkingR!Y60,\"\")","v":""},{"$f":"IF(Descriptions!D61=\"Grant income\",Descriptions!AA61,0)","v":0}]
[{"$f":"IF(Descriptions!D62=\"Grant income\",Descriptions!B62,0)","v":0},{"$f":"IF(WorkingR!$B61=\"Grant Income\",WorkingR!D61,\"\")","v":""},{"$f":"IF(WorkingR!$B61=\"Grant Income\",WorkingR!E61,\"\")","v":""},{"$f":"IF(WorkingR!$B61=\"Grant Income\",WorkingR!F61,\"\")","v":""},{"$f":"IF(WorkingR!$B61=\"Grant Income\",WorkingR!G61,\"\")","v":""},{"$f":"IF(WorkingR!$B61=\"Grant Income\",WorkingR!H61,\"\")","v":""},{"$f":"IF(WorkingR!$B61=\"Grant Income\",WorkingR!I61,\"\")","v":""},{"$f":"IF(WorkingR!$B61=\"Grant Income\",WorkingR!J61,\"\")","v":""},{"$f":"IF(WorkingR!$B61=\"Grant Income\",WorkingR!K61,\"\")","v":""},{"$f":"IF(WorkingR!$B61=\"Grant Income\",WorkingR!L61,\"\")","v":""},{"$f":"IF(WorkingR!$B61=\"Grant Income\",WorkingR!M61,\"\")","v":""},{"$f":"IF(WorkingR!$B61=\"Grant Income\",WorkingR!N61,\"\")","v":""},{"$f":"IF(WorkingR!$B61=\"Grant Income\",WorkingR!O61,\"\")","v":""},{"$f":"IF(WorkingR!$B61=\"Grant Income\",WorkingR!P61,\"\")","v":""},{"$f":"IF(WorkingR!$B61=\"Grant Income\",WorkingR!Q61,\"\")","v":""},{"$f":"IF(WorkingR!$B61=\"Grant Income\",WorkingR!R61,\"\")","v":""},{"$f":"IF(WorkingR!$B61=\"Grant Income\",WorkingR!S61,\"\")","v":""},{"$f":"IF(WorkingR!$B61=\"Grant Income\",WorkingR!T61,\"\")","v":""},{"$f":"IF(WorkingR!$B61=\"Grant Income\",WorkingR!U61,\"\")","v":""},{"$f":"IF(WorkingR!$B61=\"Grant Income\",WorkingR!V61,\"\")","v":""},{"$f":"IF(WorkingR!$B61=\"Grant Income\",WorkingR!W61,\"\")","v":""},{"$f":"IF(WorkingR!$B61=\"Grant Income\",WorkingR!X61,\"\")","v":""},{"$f":"IF(WorkingR!$B61=\"Grant Income\",WorkingR!Y61,\"\")","v":""},{"$f":"IF(Descriptions!D62=\"Grant income\",Descriptions!AA62,0)","v":0}]
[{"$f":"IF(Descriptions!D63=\"Grant income\",Descriptions!B63,0)","v":0},{"$f":"IF(WorkingR!$B62=\"Grant Income\",WorkingR!D62,\"\")","v":""},{"$f":"IF(WorkingR!$B62=\"Grant Income\",WorkingR!E62,\"\")","v":""},{"$f":"IF(WorkingR!$B62=\"Grant Income\",WorkingR!F62,\"\")","v":""},{"$f":"IF(WorkingR!$B62=\"Grant Income\",WorkingR!G62,\"\")","v":""},{"$f":"IF(WorkingR!$B62=\"Grant Income\",WorkingR!H62,\"\")","v":""},{"$f":"IF(WorkingR!$B62=\"Grant Income\",WorkingR!I62,\"\")","v":""},{"$f":"IF(WorkingR!$B62=\"Grant Income\",WorkingR!J62,\"\")","v":""},{"$f":"IF(WorkingR!$B62=\"Grant Income\",WorkingR!K62,\"\")","v":""},{"$f":"IF(WorkingR!$B62=\"Grant Income\",WorkingR!L62,\"\")","v":""},{"$f":"IF(WorkingR!$B62=\"Grant Income\",WorkingR!M62,\"\")","v":""},{"$f":"IF(WorkingR!$B62=\"Grant Income\",WorkingR!N62,\"\")","v":""},{"$f":"IF(WorkingR!$B62=\"Grant Income\",WorkingR!O62,\"\")","v":""},{"$f":"IF(WorkingR!$B62=\"Grant Income\",WorkingR!P62,\"\")","v":""},{"$f":"IF(WorkingR!$B62=\"Grant Income\",WorkingR!Q62,\"\")","v":""},{"$f":"IF(WorkingR!$B62=\"Grant Income\",WorkingR!R62,\"\")","v":""},{"$f":"IF(WorkingR!$B62=\"Grant Income\",WorkingR!S62,\"\")","v":""},{"$f":"IF(WorkingR!$B62=\"Grant Income\",WorkingR!T62,\"\")","v":""},{"$f":"IF(WorkingR!$B62=\"Grant Income\",WorkingR!U62,\"\")","v":""},{"$f":"IF(WorkingR!$B62=\"Grant Income\",WorkingR!V62,\"\")","v":""},{"$f":"IF(WorkingR!$B62=\"Grant Income\",WorkingR!W62,\"\")","v":""},{"$f":"IF(WorkingR!$B62=\"Grant Income\",WorkingR!X62,\"\")","v":""},{"$f":"IF(WorkingR!$B62=\"Grant Income\",WorkingR!Y62,\"\")","v":""},{"$f":"IF(Descriptions!D63=\"Grant income\",Descriptions!AA63,0)","v":0}]
[{"$f":"IF(Descriptions!D64=\"Grant income\",Descriptions!B64,0)","v":0},{"$f":"IF(WorkingR!$B63=\"Grant Income\",WorkingR!D63,\"\")","v":""},{"$f":"IF(WorkingR!$B63=\"Grant Income\",WorkingR!E63,\"\")","v":""},{"$f":"IF(WorkingR!$B63=\"Grant Income\",WorkingR!F63,\"\")","v":""},{"$f":"IF(WorkingR!$B63=\"Grant Income\",WorkingR!G63,\"\")","v":""},{"$f":"IF(WorkingR!$B63=\"Grant Income\",WorkingR!H63,\"\")","v":""},{"$f":"IF(WorkingR!$B63=\"Grant Income\",WorkingR!I63,\"\")","v":""},{"$f":"IF(WorkingR!$B63=\"Grant Income\",WorkingR!J63,\"\")","v":""},{"$f":"IF(WorkingR!$B63=\"Grant Income\",WorkingR!K63,\"\")","v":""},{"$f":"IF(WorkingR!$B63=\"Grant Income\",WorkingR!L63,\"\")","v":""},{"$f":"IF(WorkingR!$B63=\"Grant Income\",WorkingR!M63,\"\")","v":""},{"$f":"IF(WorkingR!$B63=\"Grant Income\",WorkingR!N63,\"\")","v":""},{"$f":"IF(WorkingR!$B63=\"Grant Income\",WorkingR!O63,\"\")","v":""},{"$f":"IF(WorkingR!$B63=\"Grant Income\",WorkingR!P63,\"\")","v":""},{"$f":"IF(WorkingR!$B63=\"Grant Income\",WorkingR!Q63,\"\")","v":""},{"$f":"IF(WorkingR!$B63=\"Grant Income\",WorkingR!R63,\"\")","v":""},{"$f":"IF(WorkingR!$B63=\"Grant Income\",WorkingR!S63,\"\")","v":""},{"$f":"IF(WorkingR!$B63=\"Grant Income\",WorkingR!T63,\"\")","v":""},{"$f":"IF(WorkingR!$B63=\"Grant Income\",WorkingR!U63,\"\")","v":""},{"$f":"IF(WorkingR!$B63=\"Grant Income\",WorkingR!V63,\"\")","v":""},{"$f":"IF(WorkingR!$B63=\"Grant Income\",WorkingR!W63,\"\")","v":""},{"$f":"IF(WorkingR!$B63=\"Grant Income\",WorkingR!X63,\"\")","v":""},{"$f":"IF(WorkingR!$B63=\"Grant Income\",WorkingR!Y63,\"\")","v":""},{"$f":"IF(Descriptions!D64=\"Grant income\",Descriptions!AA64,0)","v":0}]
[{"$f":"IF(Descriptions!D65=\"Grant income\",Descriptions!B65,0)","v":0},{"$f":"IF(WorkingR!$B64=\"Grant Income\",WorkingR!D64,\"\")","v":""},{"$f":"IF(WorkingR!$B64=\"Grant Income\",WorkingR!E64,\"\")","v":""},{"$f":"IF(WorkingR!$B64=\"Grant Income\",WorkingR!F64,\"\")","v":""},{"$f":"IF(WorkingR!$B64=\"Grant Income\",WorkingR!G64,\"\")","v":""},{"$f":"IF(WorkingR!$B64=\"Grant Income\",WorkingR!H64,\"\")","v":""},{"$f":"IF(WorkingR!$B64=\"Grant Income\",WorkingR!I64,\"\")","v":""},{"$f":"IF(WorkingR!$B64=\"Grant Income\",WorkingR!J64,\"\")","v":""},{"$f":"IF(WorkingR!$B64=\"Grant Income\",WorkingR!K64,\"\")","v":""},{"$f":"IF(WorkingR!$B64=\"Grant Income\",WorkingR!L64,\"\")","v":""},{"$f":"IF(WorkingR!$B64=\"Grant Income\",WorkingR!M64,\"\")","v":""},{"$f":"IF(WorkingR!$B64=\"Grant Income\",WorkingR!N64,\"\")","v":""},{"$f":"IF(WorkingR!$B64=\"Grant Income\",WorkingR!O64,\"\")","v":""},{"$f":"IF(WorkingR!$B64=\"Grant Income\",WorkingR!P64,\"\")","v":""},{"$f":"IF(WorkingR!$B64=\"Grant Income\",WorkingR!Q64,\"\")","v":""},{"$f":"IF(WorkingR!$B64=\"Grant Income\",WorkingR!R64,\"\")","v":""},{"$f":"IF(WorkingR!$B64=\"Grant Income\",WorkingR!S64,\"\")","v":""},{"$f":"IF(WorkingR!$B64=\"Grant Income\",WorkingR!T64,\"\")","v":""},{"$f":"IF(WorkingR!$B64=\"Grant Income\",WorkingR!U64,\"\")","v":""},{"$f":"IF(WorkingR!$B64=\"Grant Income\",WorkingR!V64,\"\")","v":""},{"$f":"IF(WorkingR!$B64=\"Grant Income\",WorkingR!W64,\"\")","v":""},{"$f":"IF(WorkingR!$B64=\"Grant Income\",WorkingR!X64,\"\")","v":""},{"$f":"IF(WorkingR!$B64=\"Grant Income\",WorkingR!Y64,\"\")","v":""},{"$f":"IF(Descriptions!D65=\"Grant income\",Descriptions!AA65,0)","v":0}]
[{"$f":"IF(Descriptions!D66=\"Grant income\",Descriptions!B66,0)","v":0},{"$f":"IF(WorkingR!$B65=\"Grant Income\",WorkingR!D65,\"\")","v":""},{"$f":"IF(WorkingR!$B65=\"Grant Income\",WorkingR!E65,\"\")","v":""},{"$f":"IF(WorkingR!$B65=\"Grant Income\",WorkingR!F65,\"\")","v":""},{"$f":"IF(WorkingR!$B65=\"Grant Income\",WorkingR!G65,\"\")","v":""},{"$f":"IF(WorkingR!$B65=\"Grant Income\",WorkingR!H65,\"\")","v":""},{"$f":"IF(WorkingR!$B65=\"Grant Income\",WorkingR!I65,\"\")","v":""},{"$f":"IF(WorkingR!$B65=\"Grant Income\",WorkingR!J65,\"\")","v":""},{"$f":"IF(WorkingR!$B65=\"Grant Income\",WorkingR!K65,\"\")","v":""},{"$f":"IF(WorkingR!$B65=\"Grant Income\",WorkingR!L65,\"\")","v":""},{"$f":"IF(WorkingR!$B65=\"Grant Income\",WorkingR!M65,\"\")","v":""},{"$f":"IF(WorkingR!$B65=\"Grant Income\",WorkingR!N65,\"\")","v":""},{"$f":"IF(WorkingR!$B65=\"Grant Income\",WorkingR!O65,\"\")","v":""},{"$f":"IF(WorkingR!$B65=\"Grant Income\",WorkingR!P65,\"\")","v":""},{"$f":"IF(WorkingR!$B65=\"Grant Income\",WorkingR!Q65,\"\")","v":""},{"$f":"IF(WorkingR!$B65=\"Grant Income\",WorkingR!R65,\"\")","v":""},{"$f":"IF(WorkingR!$B65=\"Grant Income\",WorkingR!S65,\"\")","v":""},{"$f":"IF(WorkingR!$B65=\"Grant Income\",WorkingR!T65,\"\")","v":""},{"$f":"IF(WorkingR!$B65=\"Grant Income\",WorkingR!U65,\"\")","v":""},{"$f":"IF(WorkingR!$B65=\"Grant Income\",WorkingR!V65,\"\")","v":""},{"$f":"IF(WorkingR!$B65=\"Grant Income\",WorkingR!W65,\"\")","v":""},{"$f":"IF(WorkingR!$B65=\"Grant Income\",WorkingR!X65,\"\")","v":""},{"$f":"IF(WorkingR!$B65=\"Grant Income\",WorkingR!Y65,\"\")","v":""},{"$f":"IF(Descriptions!D66=\"Grant income\",Descriptions!AA66,0)","v":0}]
[{"$f":"IF(Descriptions!D67=\"Grant income\",Descriptions!B67,0)","v":0},{"$f":"IF(WorkingR!$B66=\"Grant Income\",WorkingR!D66,\"\")","v":""},{"$f":"IF(WorkingR!$B66=\"Grant Income\",WorkingR!E66,\"\")","v":""},{"$f":"IF(WorkingR!$B66=\"Grant Income\",WorkingR!F66,\"\")","v":""},{"$f":"IF(WorkingR!$B66=\"Grant Income\",WorkingR!G66,\"\")","v":""},{"$f":"IF(WorkingR!$B66=\"Grant Income\",WorkingR!H66,\"\")","v":""},{"$f":"IF(WorkingR!$B66=\"Grant Income\",WorkingR!I66,\"\")","v":""},{"$f":"IF(WorkingR!$B66=\"Grant Income\",WorkingR!J66,\"\")","v":""},{"$f":"IF(WorkingR!$B66=\"Grant Income\",WorkingR!K66,\"\")","v":""},{"$f":"IF(WorkingR!$B66=\"Grant Income\",WorkingR!L66,\"\")","v":""},{"$f":"IF(WorkingR!$B66=\"Grant Income\",WorkingR!M66,\"\")","v":""},{"$f":"IF(WorkingR!$B66=\"Grant Income\",WorkingR!N66,\"\")","v":""},{"$f":"IF(WorkingR!$B66=\"Grant Income\",WorkingR!O66,\"\")","v":""},{"$f":"IF(WorkingR!$B66=\"Grant Income\",WorkingR!P66,\"\")","v":""},{"$f":"IF(WorkingR!$B66=\"Grant Income\",WorkingR!Q66,\"\")","v":""},{"$f":"IF(WorkingR!$B66=\"Grant Income\",WorkingR!R66,\"\")","v":""},{"$f":"IF(WorkingR!$B66=\"Grant Income\",WorkingR!S66,\"\")","v":""},{"$f":"IF(WorkingR!$B66=\"Grant Income\",WorkingR!T66,\"\")","v":""},{"$f":"IF(WorkingR!$B66=\"Grant Income\",WorkingR!U66,\"\")","v":""},{"$f":"IF(WorkingR!$B66=\"Grant Income\",WorkingR!V66,\"\")","v":""},{"$f":"IF(WorkingR!$B66=\"Grant Income\",WorkingR!W66,\"\")","v":""},{"$f":"IF(WorkingR!$B66=\"Grant Income\",WorkingR!X66,\"\")","v":""},{"$f":"IF(WorkingR!$B66=\"Grant Income\",WorkingR!Y66,\"\")","v":""},{"$f":"IF(Descriptions!D67=\"Grant income\",Descriptions!AA67,0)","v":0}]
[{"$f":"IF(Descriptions!D68=\"Grant income\",Descriptions!B68,0)","v":0},{"$f":"IF(WorkingR!$B67=\"Grant Income\",WorkingR!D67,\"\")","v":""},{"$f":"IF(WorkingR!$B67=\"Grant Income\",WorkingR!E67,\"\")","v":""},{"$f":"IF(WorkingR!$B67=\"Grant Income\",WorkingR!F67,\"\")","v":""},{"$f":"IF(WorkingR!$B67=\"Grant Income\",WorkingR!G67,\"\")","v":""},{"$f":"IF(WorkingR!$B67=\"Grant Income\",WorkingR!H67,\"\")","v":""},{"$f":"IF(WorkingR!$B67=\"Grant Income\",WorkingR!I67,\"\")","v":""},{"$f":"IF(WorkingR!$B67=\"Grant Income\",WorkingR!J67,\"\")","v":""},{"$f":"IF(WorkingR!$B67=\"Grant Income\",WorkingR!K67,\"\")","v":""},{"$f":"IF(WorkingR!$B67=\"Grant Income\",WorkingR!L67,\"\")","v":""},{"$f":"IF(WorkingR!$B67=\"Grant Income\",WorkingR!M67,\"\")","v":""},{"$f":"IF(WorkingR!$B67=\"Grant Income\",WorkingR!N67,\"\")","v":""},{"$f":"IF(WorkingR!$B67=\"Grant Income\",WorkingR!O67,\"\")","v":""},{"$f":"IF(WorkingR!$B67=\"Grant Income\",WorkingR!P67,\"\")","v":""},{"$f":"IF(WorkingR!$B67=\"Grant Income\",WorkingR!Q67,\"\")","v":""},{"$f":"IF(WorkingR!$B67=\"Grant Income\",WorkingR!R67,\"\")","v":""},{"$f":"IF(WorkingR!$B67=\"Grant Income\",WorkingR!S67,\"\")","v":""},{"$f":"IF(WorkingR!$B67=\"Grant Income\",WorkingR!T67,\"\")","v":""},{"$f":"IF(WorkingR!$B67=\"Grant Income\",WorkingR!U67,\"\")","v":""},{"$f":"IF(WorkingR!$B67=\"Grant Income\",WorkingR!V67,\"\")","v":""},{"$f":"IF(WorkingR!$B67=\"Grant Income\",WorkingR!W67,\"\")","v":""},{"$f":"IF(WorkingR!$B67=\"Grant Income\",WorkingR!X67,\"\")","v":""},{"$f":"IF(WorkingR!$B67=\"Grant Income\",WorkingR!Y67,\"\")","v":""},{"$f":"IF(Descriptions!D68=\"Grant income\",Descriptions!AA68,0)","v":0}]
[{"$f":"IF(Descriptions!D69=\"Grant income\",Descriptions!B69,0)","v":0},{"$f":"IF(WorkingR!$B68=\"Grant Income\",WorkingR!D68,\"\")","v":""},{"$f":"IF(WorkingR!$B68=\"Grant Income\",WorkingR!E68,\"\")","v":""},{"$f":"IF(WorkingR!$B68=\"Grant Income\",WorkingR!F68,\"\")","v":""},{"$f":"IF(WorkingR!$B68=\"Grant Income\",WorkingR!G68,\"\")","v":""},{"$f":"IF(WorkingR!$B68=\"Grant Income\",WorkingR!H68,\"\")","v":""},{"$f":"IF(WorkingR!$B68=\"Grant Income\",WorkingR!I68,\"\")","v":""},{"$f":"IF(WorkingR!$B68=\"Grant Income\",WorkingR!J68,\"\")","v":""},{"$f":"IF(WorkingR!$B68=\"Grant Income\",WorkingR!K68,\"\")","v":""},{"$f":"IF(WorkingR!$B68=\"Grant Income\",WorkingR!L68,\"\")","v":""},{"$f":"IF(WorkingR!$B68=\"Grant Income\",WorkingR!M68,\"\")","v":""},{"$f":"IF(WorkingR!$B68=\"Grant Income\",WorkingR!N68,\"\")","v":""},{"$f":"IF(WorkingR!$B68=\"Grant Income\",WorkingR!O68,\"\")","v":""},{"$f":"IF(WorkingR!$B68=\"Grant Income\",WorkingR!P68,\"\")","v":""},{"$f":"IF(WorkingR!$B68=\"Grant Income\",WorkingR!Q68,\"\")","v":""},{"$f":"IF(WorkingR!$B68=\"Grant Income\",WorkingR!R68,\"\")","v":""},{"$f":"IF(WorkingR!$B68=\"Grant Income\",WorkingR!S68,\"\")","v":""},{"$f":"IF(WorkingR!$B68=\"Grant Income\",WorkingR!T68,\"\")","v":""},{"$f":"IF(WorkingR!$B68=\"Grant Income\",WorkingR!U68,\"\")","v":""},{"$f":"IF(WorkingR!$B68=\"Grant Income\",WorkingR!V68,\"\")","v":""},{"$f":"IF(WorkingR!$B68=\"Grant Income\",WorkingR!W68,\"\")","v":""},{"$f":"IF(WorkingR!$B68=\"Grant Income\",WorkingR!X68,\"\")","v":""},{"$f":"IF(WorkingR!$B68=\"Grant Income\",WorkingR!Y68,\"\")","v":""},{"$f":"IF(Descriptions!D69=\"Grant income\",Descriptions!AA69,0)","v":0}]
[{"$f":"IF(Descriptions!D70=\"Grant income\",Descriptions!B70,0)","v":0},{"$f":"IF(WorkingR!$B69=\"Grant Income\",WorkingR!D69,\"\")","v":""},{"$f":"IF(WorkingR!$B69=\"Grant Income\",WorkingR!E69,\"\")","v":""},{"$f":"IF(WorkingR!$B69=\"Grant Income\",WorkingR!F69,\"\")","v":""},{"$f":"IF(WorkingR!$B69=\"Grant Income\",WorkingR!G69,\"\")","v":""},{"$f":"IF(WorkingR!$B69=\"Grant Income\",WorkingR!H69,\"\")","v":""},{"$f":"IF(WorkingR!$B69=\"Grant Income\",WorkingR!I69,\"\")","v":""},{"$f":"IF(WorkingR!$B69=\"Grant Income\",WorkingR!J69,\"\")","v":""},{"$f":"IF(WorkingR!$B69=\"Grant Income\",WorkingR!K69,\"\")","v":""},{"$f":"IF(WorkingR!$B69=\"Grant Income\",WorkingR!L69,\"\")","v":""},{"$f":"IF(WorkingR!$B69=\"Grant Income\",WorkingR!M69,\"\")","v":""},{"$f":"IF(WorkingR!$B69=\"Grant Income\",WorkingR!N69,\"\")","v":""},{"$f":"IF(WorkingR!$B69=\"Grant Income\",WorkingR!O69,\"\")","v":""},{"$f":"IF(WorkingR!$B69=\"Grant Income\",WorkingR!P69,\"\")","v":""},{"$f":"IF(WorkingR!$B69=\"Grant Income\",WorkingR!Q69,\"\")","v":""},{"$f":"IF(WorkingR!$B69=\"Grant Income\",WorkingR!R69,\"\")","v":""},{"$f":"IF(WorkingR!$B69=\"Grant Income\",WorkingR!S69,\"\")","v":""},{"$f":"IF(WorkingR!$B69=\"Grant Income\",WorkingR!T69,\"\")","v":""},{"$f":"IF(WorkingR!$B69=\"Grant Income\",WorkingR!U69,\"\")","v":""},{"$f":"IF(WorkingR!$B69=\"Grant Income\",WorkingR!V69,\"\")","v":""},{"$f":"IF(WorkingR!$B69=\"Grant Income\",WorkingR!W69,\"\")","v":""},{"$f":"IF(WorkingR!$B69=\"Grant Income\",WorkingR!X69,\"\")","v":""},{"$f":"IF(WorkingR!$B69=\"Grant Income\",WorkingR!Y69,\"\")","v":""},{"$f":"IF(Descriptions!D70=\"Grant income\",Descriptions!AA70,0)","v":0}]
[{"$f":"IF(Descriptions!D71=\"Grant income\",Descriptions!B71,0)","v":0},{"$f":"IF(WorkingR!$B70=\"Grant Income\",WorkingR!D70,\"\")","v":""},{"$f":"IF(WorkingR!$B70=\"Grant Income\",WorkingR!E70,\"\")","v":""},{"$f":"IF(WorkingR!$B70=\"Grant Income\",WorkingR!F70,\"\")","v":""},{"$f":"IF(WorkingR!$B70=\"Grant Income\",WorkingR!G70,\"\")","v":""},{"$f":"IF(WorkingR!$B70=\"Grant Income\",WorkingR!H70,\"\")","v":""},{"$f":"IF(WorkingR!$B70=\"Grant Income\",WorkingR!I70,\"\")","v":""},{"$f":"IF(WorkingR!$B70=\"Grant Income\",WorkingR!J70,\"\")","v":""},{"$f":"IF(WorkingR!$B70=\"Grant Income\",WorkingR!K70,\"\")","v":""},{"$f":"IF(WorkingR!$B70=\"Grant Income\",WorkingR!L70,\"\")","v":""},{"$f":"IF(WorkingR!$B70=\"Grant Income\",WorkingR!M70,\"\")","v":""},{"$f":"IF(WorkingR!$B70=\"Grant Income\",WorkingR!N70,\"\")","v":""},{"$f":"IF(WorkingR!$B70=\"Grant Income\",WorkingR!O70,\"\")","v":""},{"$f":"IF(WorkingR!$B70=\"Grant Income\",WorkingR!P70,\"\")","v":""},{"$f":"IF(WorkingR!$B70=\"Grant Income\",WorkingR!Q70,\"\")","v":""},{"$f":"IF(WorkingR!$B70=\"Grant Income\",WorkingR!R70,\"\")","v":""},{"$f":"IF(WorkingR!$B70=\"Grant Income\",WorkingR!S70,\"\")","v":""},{"$f":"IF(WorkingR!$B70=\"Grant Income\",WorkingR!T70,\"\")","v":""},{"$f":"IF(WorkingR!$B70=\"Grant Income\",WorkingR!U70,\"\")","v":""},{"$f":"IF(WorkingR!$B70=\"Grant Income\",WorkingR!V70,\"\")","v":""},{"$f":"IF(WorkingR!$B70=\"Grant Income\",WorkingR!W70,\"\")","v":""},{"$f":"IF(WorkingR!$B70=\"Grant Income\",WorkingR!X70,\"\")","v":""},{"$f":"IF(WorkingR!$B70=\"Grant Income\",WorkingR!Y70,\"\")","v":""},{"$f":"IF(Descriptions!D71=\"Grant income\",Descriptions!AA71,0)","v":0}]
[{"$f":"IF(Descriptions!D72=\"Grant income\",Descriptions!B72,0)","v":0},{"$f":"IF(WorkingR!$B71=\"Grant Income\",WorkingR!D71,\"\")","v":""},{"$f":"IF(WorkingR!$B71=\"Grant Income\",WorkingR!E71,\"\")","v":""},{"$f":"IF(WorkingR!$B71=\"Grant Income\",WorkingR!F71,\"\")","v":""},{"$f":"IF(WorkingR!$B71=\"Grant Income\",WorkingR!G71,\"\")","v":""},{"$f":"IF(WorkingR!$B71=\"Grant Income\",WorkingR!H71,\"\")","v":""},{"$f":"IF(WorkingR!$B71=\"Grant Income\",WorkingR!I71,\"\")","v":""},{"$f":"IF(WorkingR!$B71=\"Grant Income\",WorkingR!J71,\"\")","v":""},{"$f":"IF(WorkingR!$B71=\"Grant Income\",WorkingR!K71,\"\")","v":""},{"$f":"IF(WorkingR!$B71=\"Grant Income\",WorkingR!L71,\"\")","v":""},{"$f":"IF(WorkingR!$B71=\"Grant Income\",WorkingR!M71,\"\")","v":""},{"$f":"IF(WorkingR!$B71=\"Grant Income\",WorkingR!N71,\"\")","v":""},{"$f":"IF(WorkingR!$B71=\"Grant Income\",WorkingR!O71,\"\")","v":""},{"$f":"IF(WorkingR!$B71=\"Grant Income\",WorkingR!P71,\"\")","v":""},{"$f":"IF(WorkingR!$B71=\"Grant Income\",WorkingR!Q71,\"\")","v":""},{"$f":"IF(WorkingR!$B71=\"Grant Income\",WorkingR!R71,\"\")","v":""},{"$f":"IF(WorkingR!$B71=\"Grant Income\",WorkingR!S71,\"\")","v":""},{"$f":"IF(WorkingR!$B71=\"Grant Income\",WorkingR!T71,\"\")","v":""},{"$f":"IF(WorkingR!$B71=\"Grant Income\",WorkingR!U71,\"\")","v":""},{"$f":"IF(WorkingR!$B71=\"Grant Income\",WorkingR!V71,\"\")","v":""},{"$f":"IF(WorkingR!$B71=\"Grant Income\",WorkingR!W71,\"\")","v":""},{"$f":"IF(WorkingR!$B71=\"Grant Income\",WorkingR!X71,\"\")","v":""},{"$f":"IF(WorkingR!$B71=\"Grant Income\",WorkingR!Y71,\"\")","v":""},{"$f":"IF(Descriptions!D72=\"Grant income\",Descriptions!AA72,0)","v":0}]
[{"$f":"IF(Descriptions!D73=\"Grant income\",Descriptions!B73,0)","v":0},{"$f":"IF(WorkingR!$B72=\"Grant Income\",WorkingR!D72,\"\")","v":""},{"$f":"IF(WorkingR!$B72=\"Grant Income\",WorkingR!E72,\"\")","v":""},{"$f":"IF(WorkingR!$B72=\"Grant Income\",WorkingR!F72,\"\")","v":""},{"$f":"IF(WorkingR!$B72=\"Grant Income\",WorkingR!G72,\"\")","v":""},{"$f":"IF(WorkingR!$B72=\"Grant Income\",WorkingR!H72,\"\")","v":""},{"$f":"IF(WorkingR!$B72=\"Grant Income\",WorkingR!I72,\"\")","v":""},{"$f":"IF(WorkingR!$B72=\"Grant Income\",WorkingR!J72,\"\")","v":""},{"$f":"IF(WorkingR!$B72=\"Grant Income\",WorkingR!K72,\"\")","v":""},{"$f":"IF(WorkingR!$B72=\"Grant Income\",WorkingR!L72,\"\")","v":""},{"$f":"IF(WorkingR!$B72=\"Grant Income\",WorkingR!M72,\"\")","v":""},{"$f":"IF(WorkingR!$B72=\"Grant Income\",WorkingR!N72,\"\")","v":""},{"$f":"IF(WorkingR!$B72=\"Grant Income\",WorkingR!O72,\"\")","v":""},{"$f":"IF(WorkingR!$B72=\"Grant Income\",WorkingR!P72,\"\")","v":""},{"$f":"IF(WorkingR!$B72=\"Grant Income\",WorkingR!Q72,\"\")","v":""},{"$f":"IF(WorkingR!$B72=\"Grant Income\",WorkingR!R72,\"\")","v":""},{"$f":"IF(WorkingR!$B72=\"Grant Income\",WorkingR!S72,\"\")","v":""},{"$f":"IF(WorkingR!$B72=\"Grant Income\",WorkingR!T72,\"\")","v":""},{"$f":"IF(WorkingR!$B72=\"Grant Income\",WorkingR!U72,\"\")","v":""},{"$f":"IF(WorkingR!$B72=\"Grant Income\",WorkingR!V72,\"\")","v":""},{"$f":"IF(WorkingR!$B72=\"Grant Income\",WorkingR!W72,\"\")","v":""},{"$f":"IF(WorkingR!$B72=\"Grant Income\",WorkingR!X72,\"\")","v":""},{"$f":"IF(WorkingR!$B72=\"Grant Income\",WorkingR!Y72,\"\")","v":""},{"$f":"IF(Descriptions!D73=\"Grant income\",Descriptions!AA73,0)","v":0}]
[{"$f":"IF(Descriptions!D74=\"Grant income\",Descriptions!B74,0)","v":0},{"$f":"IF(WorkingR!$B73=\"Grant Income\",WorkingR!D73,\"\")","v":""},{"$f":"IF(WorkingR!$B73=\"Grant Income\",WorkingR!E73,\"\")","v":""},{"$f":"IF(WorkingR!$B73=\"Grant Income\",WorkingR!F73,\"\")","v":""},{"$f":"IF(WorkingR!$B73=\"Grant Income\",WorkingR!G73,\"\")","v":""},{"$f":"IF(WorkingR!$B73=\"Grant Income\",WorkingR!H73,\"\")","v":""},{"$f":"IF(WorkingR!$B73=\"Grant Income\",WorkingR!I73,\"\")","v":""},{"$f":"IF(WorkingR!$B73=\"Grant Income\",WorkingR!J73,\"\")","v":""},{"$f":"IF(WorkingR!$B73=\"Grant Income\",WorkingR!K73,\"\")","v":""},{"$f":"IF(WorkingR!$B73=\"Grant Income\",WorkingR!L73,\"\")","v":""},{"$f":"IF(WorkingR!$B73=\"Grant Income\",WorkingR!M73,\"\")","v":""},{"$f":"IF(WorkingR!$B73=\"Grant Income\",WorkingR!N73,\"\")","v":""},{"$f":"IF(WorkingR!$B73=\"Grant Income\",WorkingR!O73,\"\")","v":""},{"$f":"IF(WorkingR!$B73=\"Grant Income\",WorkingR!P73,\"\")","v":""},{"$f":"IF(WorkingR!$B73=\"Grant Income\",WorkingR!Q73,\"\")","v":""},{"$f":"IF(WorkingR!$B73=\"Grant Income\",WorkingR!R73,\"\")","v":""},{"$f":"IF(WorkingR!$B73=\"Grant Income\",WorkingR!S73,\"\")","v":""},{"$f":"IF(WorkingR!$B73=\"Grant Income\",WorkingR!T73,\"\")","v":""},{"$f":"IF(WorkingR!$B73=\"Grant Income\",WorkingR!U73,\"\")","v":""},{"$f":"IF(WorkingR!$B73=\"Grant Income\",WorkingR!V73,\"\")","v":""},{"$f":"IF(WorkingR!$B73=\"Grant Income\",WorkingR!W73,\"\")","v":""},{"$f":"IF(WorkingR!$B73=\"Grant Income\",WorkingR!X73,\"\")","v":""},{"$f":"IF(WorkingR!$B73=\"Grant Income\",WorkingR!Y73,\"\")","v":""},{"$f":"IF(Descriptions!D74=\"Grant income\",Descriptions!AA74,0)","v":0}]
[{"$f":"IF(Descriptions!D75=\"Grant income\",Descriptions!B75,0)","v":0},{"$f":"IF(WorkingR!$B74=\"Grant Income\",WorkingR!D74,\"\")","v":""},{"$f":"IF(WorkingR!$B74=\"Grant Income\",WorkingR!E74,\"\")","v":""},{"$f":"IF(WorkingR!$B74=\"Grant Income\",WorkingR!F74,\"\")","v":""},{"$f":"IF(WorkingR!$B74=\"Grant Income\",WorkingR!G74,\"\")","v":""},{"$f":"IF(WorkingR!$B74=\"Grant Income\",WorkingR!H74,\"\")","v":""},{"$f":"IF(WorkingR!$B74=\"Grant Income\",WorkingR!I74,\"\")","v":""},{"$f":"IF(WorkingR!$B74=\"Grant Income\",WorkingR!J74,\"\")","v":""},{"$f":"IF(WorkingR!$B74=\"Grant Income\",WorkingR!K74,\"\")","v":""},{"$f":"IF(WorkingR!$B74=\"Grant Income\",WorkingR!L74,\"\")","v":""},{"$f":"IF(WorkingR!$B74=\"Grant Income\",WorkingR!M74,\"\")","v":""},{"$f":"IF(WorkingR!$B74=\"Grant Income\",WorkingR!N74,\"\")","v":""},{"$f":"IF(WorkingR!$B74=\"Grant Income\",WorkingR!O74,\"\")","v":""},{"$f":"IF(WorkingR!$B74=\"Grant Income\",WorkingR!P74,\"\")","v":""},{"$f":"IF(WorkingR!$B74=\"Grant Income\",WorkingR!Q74,\"\")","v":""},{"$f":"IF(WorkingR!$B74=\"Grant Income\",WorkingR!R74,\"\")","v":""},{"$f":"IF(WorkingR!$B74=\"Grant Income\",WorkingR!S74,\"\")","v":""},{"$f":"IF(WorkingR!$B74=\"Grant Income\",WorkingR!T74,\"\")","v":""},{"$f":"IF(WorkingR!$B74=\"Grant Income\",WorkingR!U74,\"\")","v":""},{"$f":"IF(WorkingR!$B74=\"Grant Income\",WorkingR!V74,\"\")","v":""},{"$f":"IF(WorkingR!$B74=\"Grant Income\",WorkingR!W74,\"\")","v":""},{"$f":"IF(WorkingR!$B74=\"Grant Income\",WorkingR!X74,\"\")","v":""},{"$f":"IF(WorkingR!$B74=\"Grant Income\",WorkingR!Y74,\"\")","v":""},{"$f":"IF(Descriptions!D75=\"Grant income\",Descriptions!AA75,0)","v":0}]
[{"$f":"IF(Descriptions!D76=\"Grant income\",Descriptions!B76,0)","v":0},{"$f":"IF(WorkingR!$B75=\"Grant Income\",WorkingR!D75,\"\")","v":""},{"$f":"IF(WorkingR!$B75=\"Grant Income\",WorkingR!E75,\"\")","v":""},{"$f":"IF(WorkingR!$B75=\"Grant Income\",WorkingR!F75,\"\")","v":""},{"$f":"IF(WorkingR!$B75=\"Grant Income\",WorkingR!G75,\"\")","v":""},{"$f":"IF(WorkingR!$B75=\"Grant Income\",WorkingR!H75,\"\")","v":""},{"$f":"IF(WorkingR!$B75=\"Grant Income\",WorkingR!I75,\"\")","v":""},{"$f":"IF(WorkingR!$B75=\"Grant Income\",WorkingR!J75,\"\")","v":""},{"$f":"IF(WorkingR!$B75=\"Grant Income\",WorkingR!K75,\"\")","v":""},{"$f":"IF(WorkingR!$B75=\"Grant Income\",WorkingR!L75,\"\")","v":""},{"$f":"IF(WorkingR!$B75=\"Grant Income\",WorkingR!M75,\"\")","v":""},{"$f":"IF(WorkingR!$B75=\"Grant Income\",WorkingR!N75,\"\")","v":""},{"$f":"IF(WorkingR!$B75=\"Grant Income\",WorkingR!O75,\"\")","v":""},{"$f":"IF(WorkingR!$B75=\"Grant Income\",WorkingR!P75,\"\")","v":""},{"$f":"IF(WorkingR!$B75=\"Grant Income\",WorkingR!Q75,\"\")","v":""},{"$f":"IF(WorkingR!$B75=\"Grant Income\",WorkingR!R75,\"\")","v":""},{"$f":"IF(WorkingR!$B75=\"Grant Income\",WorkingR!S75,\"\")","v":""},{"$f":"IF(WorkingR!$B75=\"Grant Income\",WorkingR!T75,\"\")","v":""},{"$f":"IF(WorkingR!$B75=\"Grant Income\",WorkingR!U75,\"\")","v":""},{"$f":"IF(WorkingR!$B75=\"Grant Income\",WorkingR!V75,\"\")","v":""},{"$f":"IF(WorkingR!$B75=\"Grant Income\",WorkingR!W75,\"\")","v":""},{"$f":"IF(WorkingR!$B75=\"Grant Income\",WorkingR!X75,\"\")","v":""},{"$f":"IF(WorkingR!$B75=\"Grant Income\",WorkingR!Y75,\"\")","v":""},{"$f":"IF(Descriptions!D76=\"Grant income\",Descriptions!AA76,0)","v":0}]
[{"$f":"IF(Descriptions!D77=\"Grant income\",Descriptions!B77,0)","v":0},{"$f":"IF(WorkingR!$B76=\"Grant Income\",WorkingR!D76,\"\")","v":""},{"$f":"IF(WorkingR!$B76=\"Grant Income\",WorkingR!E76,\"\")","v":""},{"$f":"IF(WorkingR!$B76=\"Grant Income\",WorkingR!F76,\"\")","v":""},{"$f":"IF(WorkingR!$B76=\"Grant Income\",WorkingR!G76,\"\")","v":""},{"$f":"IF(WorkingR!$B76=\"Grant Income\",WorkingR!H76,\"\")","v":""},{"$f":"IF(WorkingR!$B76=\"Grant Income\",WorkingR!I76,\"\")","v":""},{"$f":"IF(WorkingR!$B76=\"Grant Income\",WorkingR!J76,\"\")","v":""},{"$f":"IF(WorkingR!$B76=\"Grant Income\",WorkingR!K76,\"\")","v":""},{"$f":"IF(WorkingR!$B76=\"Grant Income\",WorkingR!L76,\"\")","v":""},{"$f":"IF(WorkingR!$B76=\"Grant Income\",WorkingR!M76,\"\")","v":""},{"$f":"IF(WorkingR!$B76=\"Grant Income\",WorkingR!N76,\"\")","v":""},{"$f":"IF(WorkingR!$B76=\"Grant Income\",WorkingR!O76,\"\")","v":""},{"$f":"IF(WorkingR!$B76=\"Grant Income\",WorkingR!P76,\"\")","v":""},{"$f":"IF(WorkingR!$B76=\"Grant Income\",WorkingR!Q76,\"\")","v":""},{"$f":"IF(WorkingR!$B76=\"Grant Income\",WorkingR!R76,\"\")","v":""},{"$f":"IF(WorkingR!$B76=\"Grant Income\",WorkingR!S76,\"\")","v":""},{"$f":"IF(WorkingR!$B76=\"Grant Income\",WorkingR!T76,\"\")","v":""},{"$f":"IF(WorkingR!$B76=\"Grant Income\",WorkingR!U76,\"\")","v":""},{"$f":"IF(WorkingR!$B76=\"Grant Income\",WorkingR!V76,\"\")","v":""},{"$f":"IF(WorkingR!$B76=\"Grant Income\",WorkingR!W76,\"\")","v":""},{"$f":"IF(WorkingR!$B76=\"Grant Income\",WorkingR!X76,\"\")","v":""},{"$f":"IF(WorkingR!$B76=\"Grant Income\",WorkingR!Y76,\"\")","v":""},{"$f":"IF(Descriptions!D77=\"Grant income\",Descriptions!AA77,0)","v":0}]
[{"$f":"IF(Descriptions!D78=\"Grant income\",Descriptions!B78,0)","v":0},{"$f":"IF(WorkingR!$B77=\"Grant Income\",WorkingR!D77,\"\")","v":""},{"$f":"IF(WorkingR!$B77=\"Grant Income\",WorkingR!E77,\"\")","v":""},{"$f":"IF(WorkingR!$B77=\"Grant Income\",WorkingR!F77,\"\")","v":""},{"$f":"IF(WorkingR!$B77=\"Grant Income\",WorkingR!G77,\"\")","v":""},{"$f":"IF(WorkingR!$B77=\"Grant Income\",WorkingR!H77,\"\")","v":""},{"$f":"IF(WorkingR!$B77=\"Grant Income\",WorkingR!I77,\"\")","v":""},{"$f":"IF(WorkingR!$B77=\"Grant Income\",WorkingR!J77,\"\")","v":""},{"$f":"IF(WorkingR!$B77=\"Grant Income\",WorkingR!K77,\"\")","v":""},{"$f":"IF(WorkingR!$B77=\"Grant Income\",WorkingR!L77,\"\")","v":""},{"$f":"IF(WorkingR!$B77=\"Grant Income\",WorkingR!M77,\"\")","v":""},{"$f":"IF(WorkingR!$B77=\"Grant Income\",WorkingR!N77,\"\")","v":""},{"$f":"IF(WorkingR!$B77=\"Grant Income\",WorkingR!O77,\"\")","v":""},{"$f":"IF(WorkingR!$B77=\"Grant Income\",WorkingR!P77,\"\")","v":""},{"$f":"IF(WorkingR!$B77=\"Grant Income\",WorkingR!Q77,\"\")","v":""},{"$f":"IF(WorkingR!$B77=\"Grant Income\",WorkingR!R77,\"\")","v":""},{"$f":"IF(WorkingR!$B77=\"Grant Income\",WorkingR!S77,\"\")","v":""},{"$f":"IF(WorkingR!$B77=\"Grant Income\",WorkingR!T77,\"\")","v":""},{"$f":"IF(WorkingR!$B77=\"Grant Income\",WorkingR!U77,\"\")","v":""},{"$f":"IF(WorkingR!$B77=\"Grant Income\",WorkingR!V77,\"\")","v":""},{"$f":"IF(WorkingR!$B77=\"Grant Income\",WorkingR!W77,\"\")","v":""},{"$f":"IF(WorkingR!$B77=\"Grant Income\",WorkingR!X77,\"\")","v":""},{"$f":"IF(WorkingR!$B77=\"Grant Income\",WorkingR!Y77,\"\")","v":""},{"$f":"IF(Descriptions!D78=\"Grant income\",Descriptions!AA78,0)","v":0}]
[{"$f":"IF(Descriptions!D79=\"Grant income\",Descriptions!B79,0)","v":0},{"$f":"IF(WorkingR!$B78=\"Grant Income\",WorkingR!D78,\"\")","v":""},{"$f":"IF(WorkingR!$B78=\"Grant Income\",WorkingR!E78,\"\")","v":""},{"$f":"IF(WorkingR!$B78=\"Grant Income\",WorkingR!F78,\"\")","v":""},{"$f":"IF(WorkingR!$B78=\"Grant Income\",WorkingR!G78,\"\")","v":""},{"$f":"IF(WorkingR!$B78=\"Grant Income\",WorkingR!H78,\"\")","v":""},{"$f":"IF(WorkingR!$B78=\"Grant Income\",WorkingR!I78,\"\")","v":""},{"$f":"IF(WorkingR!$B78=\"Grant Income\",WorkingR!J78,\"\")","v":""},{"$f":"IF(WorkingR!$B78=\"Grant Income\",WorkingR!K78,\"\")","v":""},{"$f":"IF(WorkingR!$B78=\"Grant Income\",WorkingR!L78,\"\")","v":""},{"$f":"IF(WorkingR!$B78=\"Grant Income\",WorkingR!M78,\"\")","v":""},{"$f":"IF(WorkingR!$B78=\"Grant Income\",WorkingR!N78,\"\")","v":""},{"$f":"IF(WorkingR!$B78=\"Grant Income\",WorkingR!O78,\"\")","v":""},{"$f":"IF(WorkingR!$B78=\"Grant Income\",WorkingR!P78,\"\")","v":""},{"$f":"IF(WorkingR!$B78=\"Grant Income\",WorkingR!Q78,\"\")","v":""},{"$f":"IF(WorkingR!$B78=\"Grant Income\",WorkingR!R78,\"\")","v":""},{"$f":"IF(WorkingR!$B78=\"Grant Income\",WorkingR!S78,\"\")","v":""},{"$f":"IF(WorkingR!$B78=\"Grant Income\",WorkingR!T78,\"\")","v":""},{"$f":"IF(WorkingR!$B78=\"Grant Income\",WorkingR!U78,\"\")","v":""},{"$f":"IF(WorkingR!$B78=\"Grant Income\",WorkingR!V78,\"\")","v":""},{"$f":"IF(WorkingR!$B78=\"Grant Income\",WorkingR!W78,\"\")","v":""},{"$f":"IF(WorkingR!$B78=\"Grant Income\",WorkingR!X78,\"\")","v":""},{"$f":"IF(WorkingR!$B78=\"Grant Income\",WorkingR!Y78,\"\")","v":""},{"$f":"IF(Descriptions!D79=\"Grant income\",Descriptions!AA79,0)","v":0}]
[{"$f":"IF(Descriptions!D80=\"Grant income\",Descriptions!B80,0)","v":0},{"$f":"IF(WorkingR!$B79=\"Grant Income\",WorkingR!D79,\"\")","v":""},{"$f":"IF(WorkingR!$B79=\"Grant Income\",WorkingR!E79,\"\")","v":""},{"$f":"IF(WorkingR!$B79=\"Grant Income\",WorkingR!F79,\"\")","v":""},{"$f":"IF(WorkingR!$B79=\"Grant Income\",WorkingR!G79,\"\")","v":""},{"$f":"IF(WorkingR!$B79=\"Grant Income\",WorkingR!H79,\"\")","v":""},{"$f":"IF(WorkingR!$B79=\"Grant Income\",WorkingR!I79,\"\")","v":""},{"$f":"IF(WorkingR!$B79=\"Grant Income\",WorkingR!J79,\"\")","v":""},{"$f":"IF(WorkingR!$B79=\"Grant Income\",WorkingR!K79,\"\")","v":""},{"$f":"IF(WorkingR!$B79=\"Grant Income\",WorkingR!L79,\"\")","v":""},{"$f":"IF(WorkingR!$B79=\"Grant Income\",WorkingR!M79,\"\")","v":""},{"$f":"IF(WorkingR!$B79=\"Grant Income\",WorkingR!N79,\"\")","v":""},{"$f":"IF(WorkingR!$B79=\"Grant Income\",WorkingR!O79,\"\")","v":""},{"$f":"IF(WorkingR!$B79=\"Grant Income\",WorkingR!P79,\"\")","v":""},{"$f":"IF(WorkingR!$B79=\"Grant Income\",WorkingR!Q79,\"\")","v":""},{"$f":"IF(WorkingR!$B79=\"Grant Income\",WorkingR!R79,\"\")","v":""},{"$f":"IF(WorkingR!$B79=\"Grant Income\",WorkingR!S79,\"\")","v":""},{"$f":"IF(WorkingR!$B79=\"Grant Income\",WorkingR!T79,\"\")","v":""},{"$f":"IF(WorkingR!$B79=\"Grant Income\",WorkingR!U79,\"\")","v":""},{"$f":"IF(WorkingR!$B79=\"Grant Income\",WorkingR!V79,\"\")","v":""},{"$f":"IF(WorkingR!$B79=\"Grant Income\",WorkingR!W79,\"\")","v":""},{"$f":"IF(WorkingR!$B79=\"Grant Income\",WorkingR!X79,\"\")","v":""},{"$f":"IF(WorkingR!$B79=\"Grant Income\",WorkingR!Y79,\"\")","v":""},{"$f":"IF(Descriptions!D80=\"Grant income\",Descriptions!AA80,0)","v":0}]
[{"$f":"IF(Descriptions!D81=\"Grant income\",Descriptions!B81,0)","v":0},{"$f":"IF(WorkingR!$B80=\"Grant Income\",WorkingR!D80,\"\")","v":""},{"$f":"IF(WorkingR!$B80=\"Grant Income\",WorkingR!E80,\"\")","v":""},{"$f":"IF(WorkingR!$B80=\"Grant Income\",WorkingR!F80,\"\")","v":""},{"$f":"IF(WorkingR!$B80=\"Grant Income\",WorkingR!G80,\"\")","v":""},{"$f":"IF(WorkingR!$B80=\"Grant Income\",WorkingR!H80,\"\")","v":""},{"$f":"IF(WorkingR!$B80=\"Grant Income\",WorkingR!I80,\"\")","v":""},{"$f":"IF(WorkingR!$B80=\"Grant Income\",WorkingR!J80,\"\")","v":""},{"$f":"IF(WorkingR!$B80=\"Grant Income\",WorkingR!K80,\"\")","v":""},{"$f":"IF(WorkingR!$B80=\"Grant Income\",WorkingR!L80,\"\")","v":""},{"$f":"IF(WorkingR!$B80=\"Grant Income\",WorkingR!M80,\"\")","v":""},{"$f":"IF(WorkingR!$B80=\"Grant Income\",WorkingR!N80,\"\")","v":""},{"$f":"IF(WorkingR!$B80=\"Grant Income\",WorkingR!O80,\"\")","v":""},{"$f":"IF(WorkingR!$B80=\"Grant Income\",WorkingR!P80,\"\")","v":""},{"$f":"IF(WorkingR!$B80=\"Grant Income\",WorkingR!Q80,\"\")","v":""},{"$f":"IF(WorkingR!$B80=\"Grant Income\",WorkingR!R80,\"\")","v":""},{"$f":"IF(WorkingR!$B80=\"Grant Income\",WorkingR!S80,\"\")","v":""},{"$f":"IF(WorkingR!$B80=\"Grant Income\",WorkingR!T80,\"\")","v":""},{"$f":"IF(WorkingR!$B80=\"Grant Income\",WorkingR!U80,\"\")","v":""},{"$f":"IF(WorkingR!$B80=\"Grant Income\",WorkingR!V80,\"\")","v":""},{"$f":"IF(WorkingR!$B80=\"Grant Income\",WorkingR!W80,\"\")","v":""},{"$f":"IF(WorkingR!$B80=\"Grant Income\",WorkingR!X80,\"\")","v":""},{"$f":"IF(WorkingR!$B80=\"Grant Income\",WorkingR!Y80,\"\")","v":""},{"$f":"IF(Descriptions!D81=\"Grant income\",Descriptions!AA81,0)","v":0}]
[{"$f":"IF(Descriptions!D82=\"Grant income\",Descriptions!B82,0)","v":0},{"$f":"IF(WorkingR!$B81=\"Grant Income\",WorkingR!D81,\"\")","v":""},{"$f":"IF(WorkingR!$B81=\"Grant Income\",WorkingR!E81,\"\")","v":""},{"$f":"IF(WorkingR!$B81=\"Grant Income\",WorkingR!F81,\"\")","v":""},{"$f":"IF(WorkingR!$B81=\"Grant Income\",WorkingR!G81,\"\")","v":""},{"$f":"IF(WorkingR!$B81=\"Grant Income\",WorkingR!H81,\"\")","v":""},{"$f":"IF(WorkingR!$B81=\"Grant Income\",WorkingR!I81,\"\")","v":""},{"$f":"IF(WorkingR!$B81=\"Grant Income\",WorkingR!J81,\"\")","v":""},{"$f":"IF(WorkingR!$B81=\"Grant Income\",WorkingR!K81,\"\")","v":""},{"$f":"IF(WorkingR!$B81=\"Grant Income\",WorkingR!L81,\"\")","v":""},{"$f":"IF(WorkingR!$B81=\"Grant Income\",WorkingR!M81,\"\")","v":""},{"$f":"IF(WorkingR!$B81=\"Grant Income\",WorkingR!N81,\"\")","v":""},{"$f":"IF(WorkingR!$B81=\"Grant Income\",WorkingR!O81,\"\")","v":""},{"$f":"IF(WorkingR!$B81=\"Grant Income\",WorkingR!P81,\"\")","v":""},{"$f":"IF(WorkingR!$B81=\"Grant Income\",WorkingR!Q81,\"\")","v":""},{"$f":"IF(WorkingR!$B81=\"Grant Income\",WorkingR!R81,\"\")","v":""},{"$f":"IF(WorkingR!$B81=\"Grant Income\",WorkingR!S81,\"\")","v":""},{"$f":"IF(WorkingR!$B81=\"Grant Income\",WorkingR!T81,\"\")","v":""},{"$f":"IF(WorkingR!$B81=\"Grant Income\",WorkingR!U81,\"\")","v":""},{"$f":"IF(WorkingR!$B81=\"Grant Income\",WorkingR!V81,\"\")","v":""},{"$f":"IF(WorkingR!$B81=\"Grant Income\",WorkingR!W81,\"\")","v":""},{"$f":"IF(WorkingR!$B81=\"Grant Income\",WorkingR!X81,\"\")","v":""},{"$f":"IF(WorkingR!$B81=\"Grant Income\",WorkingR!Y81,\"\")","v":""},{"$f":"IF(Descriptions!D82=\"Grant income\",Descriptions!AA82,0)","v":0}]
[{"$f":"IF(Descriptions!D83=\"Grant income\",Descriptions!B83,0)","v":0},{"$f":"IF(WorkingR!$B82=\"Grant Income\",WorkingR!D82,\"\")","v":""},{"$f":"IF(WorkingR!$B82=\"Grant Income\",WorkingR!E82,\"\")","v":""},{"$f":"IF(WorkingR!$B82=\"Grant Income\",WorkingR!F82,\"\")","v":""},{"$f":"IF(WorkingR!$B82=\"Grant Income\",WorkingR!G82,\"\")","v":""},{"$f":"IF(WorkingR!$B82=\"Grant Income\",WorkingR!H82,\"\")","v":""},{"$f":"IF(WorkingR!$B82=\"Grant Income\",WorkingR!I82,\"\")","v":""},{"$f":"IF(WorkingR!$B82=\"Grant Income\",WorkingR!J82,\"\")","v":""},{"$f":"IF(WorkingR!$B82=\"Grant Income\",WorkingR!K82,\"\")","v":""},{"$f":"IF(WorkingR!$B82=\"Grant Income\",WorkingR!L82,\"\")","v":""},{"$f":"IF(WorkingR!$B82=\"Grant Income\",WorkingR!M82,\"\")","v":""},{"$f":"IF(WorkingR!$B82=\"Grant Income\",WorkingR!N82,\"\")","v":""},{"$f":"IF(WorkingR!$B82=\"Grant Income\",WorkingR!O82,\"\")","v":""},{"$f":"IF(WorkingR!$B82=\"Grant Income\",WorkingR!P82,\"\")","v":""},{"$f":"IF(WorkingR!$B82=\"Grant Income\",WorkingR!Q82,\"\")","v":""},{"$f":"IF(WorkingR!$B82=\"Grant Income\",WorkingR!R82,\"\")","v":""},{"$f":"IF(WorkingR!$B82=\"Grant Income\",WorkingR!S82,\"\")","v":""},{"$f":"IF(WorkingR!$B82=\"Grant Income\",WorkingR!T82,\"\")","v":""},{"$f":"IF(WorkingR!$B82=\"Grant Income\",WorkingR!U82,\"\")","v":""},{"$f":"IF(WorkingR!$B82=\"Grant Income\",WorkingR!V82,\"\")","v":""},{"$f":"IF(WorkingR!$B82=\"Grant Income\",WorkingR!W82,\"\")","v":""},{"$f":"IF(WorkingR!$B82=\"Grant Income\",WorkingR!X82,\"\")","v":""},{"$f":"IF(WorkingR!$B82=\"Grant Income\",WorkingR!Y82,\"\")","v":""},{"$f":"IF(Descriptions!D83=\"Grant income\",Descriptions!AA83,0)","v":0}]
[{"$f":"IF(Descriptions!D84=\"Grant income\",Descriptions!B84,0)","v":0},{"$f":"IF(WorkingR!$B83=\"Grant Income\",WorkingR!D83,\"\")","v":""},{"$f":"IF(WorkingR!$B83=\"Grant Income\",WorkingR!E83,\"\")","v":""},{"$f":"IF(WorkingR!$B83=\"Grant Income\",WorkingR!F83,\"\")","v":""},{"$f":"IF(WorkingR!$B83=\"Grant Income\",WorkingR!G83,\"\")","v":""},{"$f":"IF(WorkingR!$B83=\"Grant Income\",WorkingR!H83,\"\")","v":""},{"$f":"IF(WorkingR!$B83=\"Grant Income\",WorkingR!I83,\"\")","v":""},{"$f":"IF(WorkingR!$B83=\"Grant Income\",WorkingR!J83,\"\")","v":""},{"$f":"IF(WorkingR!$B83=\"Grant Income\",WorkingR!K83,\"\")","v":""},{"$f":"IF(WorkingR!$B83=\"Grant Income\",WorkingR!L83,\"\")","v":""},{"$f":"IF(WorkingR!$B83=\"Grant Income\",WorkingR!M83,\"\")","v":""},{"$f":"IF(WorkingR!$B83=\"Grant Income\",WorkingR!N83,\"\")","v":""},{"$f":"IF(WorkingR!$B83=\"Grant Income\",WorkingR!O83,\"\")","v":""},{"$f":"IF(WorkingR!$B83=\"Grant Income\",WorkingR!P83,\"\")","v":""},{"$f":"IF(WorkingR!$B83=\"Grant Income\",WorkingR!Q83,\"\")","v":""},{"$f":"IF(WorkingR!$B83=\"Grant Income\",WorkingR!R83,\"\")","v":""},{"$f":"IF(WorkingR!$B83=\"Grant Income\",WorkingR!S83,\"\")","v":""},{"$f":"IF(WorkingR!$B83=\"Grant Income\",WorkingR!T83,\"\")","v":""},{"$f":"IF(WorkingR!$B83=\"Grant Income\",WorkingR!U83,\"\")","v":""},{"$f":"IF(WorkingR!$B83=\"Grant Income\",WorkingR!V83,\"\")","v":""},{"$f":"IF(WorkingR!$B83=\"Grant Income\",WorkingR!W83,\"\")","v":""},{"$f":"IF(WorkingR!$B83=\"Grant Income\",WorkingR!X83,\"\")","v":""},{"$f":"IF(WorkingR!$B83=\"Grant Income\",WorkingR!Y83,\"\")","v":""},{"$f":"IF(Descriptions!D84=\"Grant income\",Descriptions!AA84,0)","v":0}]
[{"$f":"IF(Descriptions!D85=\"Grant income\",Descriptions!B85,0)","v":0},{"$f":"IF(WorkingR!$B84=\"Grant Income\",WorkingR!D84,\"\")","v":""},{"$f":"IF(WorkingR!$B84=\"Grant Income\",WorkingR!E84,\"\")","v":""},{"$f":"IF(WorkingR!$B84=\"Grant Income\",WorkingR!F84,\"\")","v":""},{"$f":"IF(WorkingR!$B84=\"Grant Income\",WorkingR!G84,\"\")","v":""},{"$f":"IF(WorkingR!$B84=\"Grant Income\",WorkingR!H84,\"\")","v":""},{"$f":"IF(WorkingR!$B84=\"Grant Income\",WorkingR!I84,\"\")","v":""},{"$f":"IF(WorkingR!$B84=\"Grant Income\",WorkingR!J84,\"\")","v":""},{"$f":"IF(WorkingR!$B84=\"Grant Income\",WorkingR!K84,\"\")","v":""},{"$f":"IF(WorkingR!$B84=\"Grant Income\",WorkingR!L84,\"\")","v":""},{"$f":"IF(WorkingR!$B84=\"Grant Income\",WorkingR!M84,\"\")","v":""},{"$f":"IF(WorkingR!$B84=\"Grant Income\",WorkingR!N84,\"\")","v":""},{"$f":"IF(WorkingR!$B84=\"Grant Income\",WorkingR!O84,\"\")","v":""},{"$f":"IF(WorkingR!$B84=\"Grant Income\",WorkingR!P84,\"\")","v":""},{"$f":"IF(WorkingR!$B84=\"Grant Income\",WorkingR!Q84,\"\")","v":""},{"$f":"IF(WorkingR!$B84=\"Grant Income\",WorkingR!R84,\"\")","v":""},{"$f":"IF(WorkingR!$B84=\"Grant Income\",WorkingR!S84,\"\")","v":""},{"$f":"IF(WorkingR!$B84=\"Grant Income\",WorkingR!T84,\"\")","v":""},{"$f":"IF(WorkingR!$B84=\"Grant Income\",WorkingR!U84,\"\")","v":""},{"$f":"IF(WorkingR!$B84=\"Grant Income\",WorkingR!V84,\"\")","v":""},{"$f":"IF(WorkingR!$B84=\"Grant Income\",WorkingR!W84,\"\")","v":""},{"$f":"IF(WorkingR!$B84=\"Grant Income\",WorkingR!X84,\"\")","v":""},{"$f":"IF(WorkingR!$B84=\"Grant Income\",WorkingR!Y84,\"\")","v":""},{"$f":"IF(Descriptions!D85=\"Grant income\",Descriptions!AA85,0)","v":0}]
[{"$f":"IF(Descriptions!D86=\"Grant income\",Descriptions!B86,0)","v":0},{"$f":"IF(WorkingR!$B85=\"Grant Income\",WorkingR!D85,\"\")","v":""},{"$f":"IF(WorkingR!$B85=\"Grant Income\",WorkingR!E85,\"\")","v":""},{"$f":"IF(WorkingR!$B85=\"Grant Income\",WorkingR!F85,\"\")","v":""},{"$f":"IF(WorkingR!$B85=\"Grant Income\",WorkingR!G85,\"\")","v":""},{"$f":"IF(WorkingR!$B85=\"Grant Income\",WorkingR!H85,\"\")","v":""},{"$f":"IF(WorkingR!$B85=\"Grant Income\",WorkingR!I85,\"\")","v":""},{"$f":"IF(WorkingR!$B85=\"Grant Income\",WorkingR!J85,\"\")","v":""},{"$f":"IF(WorkingR!$B85=\"Grant Income\",WorkingR!K85,\"\")","v":""},{"$f":"IF(WorkingR!$B85=\"Grant Income\",WorkingR!L85,\"\")","v":""},{"$f":"IF(WorkingR!$B85=\"Grant Income\",WorkingR!M85,\"\")","v":""},{"$f":"IF(WorkingR!$B85=\"Grant Income\",WorkingR!N85,\"\")","v":""},{"$f":"IF(WorkingR!$B85=\"Grant Income\",WorkingR!O85,\"\")","v":""},{"$f":"IF(WorkingR!$B85=\"Grant Income\",WorkingR!P85,\"\")","v":""},{"$f":"IF(WorkingR!$B85=\"Grant Income\",WorkingR!Q85,\"\")","v":""},{"$f":"IF(WorkingR!$B85=\"Grant Income\",WorkingR!R85,\"\")","v":""},{"$f":"IF(WorkingR!$B85=\"Grant Income\",WorkingR!S85,\"\")","v":""},{"$f":"IF(WorkingR!$B85=\"Grant Income\",WorkingR!T85,\"\")","v":""},{"$f":"IF(WorkingR!$B85=\"Grant Income\",WorkingR!U85,\"\")","v":""},{"$f":"IF(WorkingR!$B85=\"Grant Income\",WorkingR!V85,\"\")","v":""},{"$f":"IF(WorkingR!$B85=\"Grant Income\",WorkingR!W85,\"\")","v":""},{"$f":"IF(WorkingR!$B85=\"Grant Income\",WorkingR!X85,\"\")","v":""},{"$f":"IF(WorkingR!$B85=\"Grant Income\",WorkingR!Y85,\"\")","v":""},{"$f":"IF(Descriptions!D86=\"Grant income\",Descriptions!AA86,0)","v":0}]
[{"$f":"IF(Descriptions!D87=\"Grant income\",Descriptions!B87,0)","v":0},{"$f":"IF(WorkingR!$B86=\"Grant Income\",WorkingR!D86,\"\")","v":""},{"$f":"IF(WorkingR!$B86=\"Grant Income\",WorkingR!E86,\"\")","v":""},{"$f":"IF(WorkingR!$B86=\"Grant Income\",WorkingR!F86,\"\")","v":""},{"$f":"IF(WorkingR!$B86=\"Grant Income\",WorkingR!G86,\"\")","v":""},{"$f":"IF(WorkingR!$B86=\"Grant Income\",WorkingR!H86,\"\")","v":""},{"$f":"IF(WorkingR!$B86=\"Grant Income\",WorkingR!I86,\"\")","v":""},{"$f":"IF(WorkingR!$B86=\"Grant Income\",WorkingR!J86,\"\")","v":""},{"$f":"IF(WorkingR!$B86=\"Grant Income\",WorkingR!K86,\"\")","v":""},{"$f":"IF(WorkingR!$B86=\"Grant Income\",WorkingR!L86,\"\")","v":""},{"$f":"IF(WorkingR!$B86=\"Grant Income\",WorkingR!M86,\"\")","v":""},{"$f":"IF(WorkingR!$B86=\"Grant Income\",WorkingR!N86,\"\")","v":""},{"$f":"IF(WorkingR!$B86=\"Grant Income\",WorkingR!O86,\"\")","v":""},{"$f":"IF(WorkingR!$B86=\"Grant Income\",WorkingR!P86,\"\")","v":""},{"$f":"IF(WorkingR!$B86=\"Grant Income\",WorkingR!Q86,\"\")","v":""},{"$f":"IF(WorkingR!$B86=\"Grant Income\",WorkingR!R86,\"\")","v":""},{"$f":"IF(WorkingR!$B86=\"Grant Income\",WorkingR!S86,\"\")","v":""},{"$f":"IF(WorkingR!$B86=\"Grant Income\",WorkingR!T86,\"\")","v":""},{"$f":"IF(WorkingR!$B86=\"Grant Income\",WorkingR!U86,\"\")","v":""},{"$f":"IF(WorkingR!$B86=\"Grant Income\",WorkingR!V86,\"\")","v":""},{"$f":"IF(WorkingR!$B86=\"Grant Income\",WorkingR!W86,\"\")","v":""},{"$f":"IF(WorkingR!$B86=\"Grant Income\",WorkingR!X86,\"\")","v":""},{"$f":"IF(WorkingR!$B86=\"Grant Income\",WorkingR!Y86,\"\")","v":""},{"$f":"IF(Descriptions!D87=\"Grant income\",Descriptions!AA87,0)","v":0}]
[{"$f":"IF(Descriptions!D88=\"Grant income\",Descriptions!B88,0)","v":0},{"$f":"IF(WorkingR!$B87=\"Grant Income\",WorkingR!D87,\"\")","v":""},{"$f":"IF(WorkingR!$B87=\"Grant Income\",WorkingR!E87,\"\")","v":""},{"$f":"IF(WorkingR!$B87=\"Grant Income\",WorkingR!F87,\"\")","v":""},{"$f":"IF(WorkingR!$B87=\"Grant Income\",WorkingR!G87,\"\")","v":""},{"$f":"IF(WorkingR!$B87=\"Grant Income\",WorkingR!H87,\"\")","v":""},{"$f":"IF(WorkingR!$B87=\"Grant Income\",WorkingR!I87,\"\")","v":""},{"$f":"IF(WorkingR!$B87=\"Grant Income\",WorkingR!J87,\"\")","v":""},{"$f":"IF(WorkingR!$B87=\"Grant Income\",WorkingR!K87,\"\")","v":""},{"$f":"IF(WorkingR!$B87=\"Grant Income\",WorkingR!L87,\"\")","v":""},{"$f":"IF(WorkingR!$B87=\"Grant Income\",WorkingR!M87,\"\")","v":""},{"$f":"IF(WorkingR!$B87=\"Grant Income\",WorkingR!N87,\"\")","v":""},{"$f":"IF(WorkingR!$B87=\"Grant Income\",WorkingR!O87,\"\")","v":""},{"$f":"IF(WorkingR!$B87=\"Grant Income\",WorkingR!P87,\"\")","v":""},{"$f":"IF(WorkingR!$B87=\"Grant Income\",WorkingR!Q87,\"\")","v":""},{"$f":"IF(WorkingR!$B87=\"Grant Income\",WorkingR!R87,\"\")","v":""},{"$f":"IF(WorkingR!$B87=\"Grant Income\",WorkingR!S87,\"\")","v":""},{"$f":"IF(WorkingR!$B87=\"Grant Income\",WorkingR!T87,\"\")","v":""},{"$f":"IF(WorkingR!$B87=\"Grant Income\",WorkingR!U87,\"\")","v":""},{"$f":"IF(WorkingR!$B87=\"Grant Income\",WorkingR!V87,\"\")","v":""},{"$f":"IF(WorkingR!$B87=\"Grant Income\",WorkingR!W87,\"\")","v":""},{"$f":"IF(WorkingR!$B87=\"Grant Income\",WorkingR!X87,\"\")","v":""},{"$f":"IF(WorkingR!$B87=\"Grant Income\",WorkingR!Y87,\"\")","v":""},{"$f":"IF(Descriptions!D88=\"Grant income\",Descriptions!AA88,0)","v":0}]
[{"$f":"IF(Descriptions!D89=\"Grant income\",Descriptions!B89,0)","v":0},{"$f":"IF(WorkingR!$B88=\"Grant Income\",WorkingR!D88,\"\")","v":""},{"$f":"IF(WorkingR!$B88=\"Grant Income\",WorkingR!E88,\"\")","v":""},{"$f":"IF(WorkingR!$B88=\"Grant Income\",WorkingR!F88,\"\")","v":""},{"$f":"IF(WorkingR!$B88=\"Grant Income\",WorkingR!G88,\"\")","v":""},{"$f":"IF(WorkingR!$B88=\"Grant Income\",WorkingR!H88,\"\")","v":""},{"$f":"IF(WorkingR!$B88=\"Grant Income\",WorkingR!I88,\"\")","v":""},{"$f":"IF(WorkingR!$B88=\"Grant Income\",WorkingR!J88,\"\")","v":""},{"$f":"IF(WorkingR!$B88=\"Grant Income\",WorkingR!K88,\"\")","v":""},{"$f":"IF(WorkingR!$B88=\"Grant Income\",WorkingR!L88,\"\")","v":""},{"$f":"IF(WorkingR!$B88=\"Grant Income\",WorkingR!M88,\"\")","v":""},{"$f":"IF(WorkingR!$B88=\"Grant Income\",WorkingR!N88,\"\")","v":""},{"$f":"IF(WorkingR!$B88=\"Grant Income\",WorkingR!O88,\"\")","v":""},{"$f":"IF(WorkingR!$B88=\"Grant Income\",WorkingR!P88,\"\")","v":""},{"$f":"IF(WorkingR!$B88=\"Grant Income\",WorkingR!Q88,\"\")","v":""},{"$f":"IF(WorkingR!$B88=\"Grant Income\",WorkingR!R88,\"\")","v":""},{"$f":"IF(WorkingR!$B88=\"Grant Income\",WorkingR!S88,\"\")","v":""},{"$f":"IF(WorkingR!$B88=\"Grant Income\",WorkingR!T88,\"\")","v":""},{"$f":"IF(WorkingR!$B88=\"Grant Income\",WorkingR!U88,\"\")","v":""},{"$f":"IF(WorkingR!$B88=\"Grant Income\",WorkingR!V88,\"\")","v":""},{"$f":"IF(WorkingR!$B88=\"Grant Income\",WorkingR!W88,\"\")","v":""},{"$f":"IF(WorkingR!$B88=\"Grant Income\",WorkingR!X88,\"\")","v":""},{"$f":"IF(WorkingR!$B88=\"Grant Income\",WorkingR!Y88,\"\")","v":""},{"$f":"IF(Descriptions!D89=\"Grant income\",Descriptions!AA89,0)","v":0}]
[{"$f":"IF(Descriptions!D90=\"Grant income\",Descriptions!B90,0)","v":0},{"$f":"IF(WorkingR!$B89=\"Grant Income\",WorkingR!D89,\"\")","v":""},{"$f":"IF(WorkingR!$B89=\"Grant Income\",WorkingR!E89,\"\")","v":""},{"$f":"IF(WorkingR!$B89=\"Grant Income\",WorkingR!F89,\"\")","v":""},{"$f":"IF(WorkingR!$B89=\"Grant Income\",WorkingR!G89,\"\")","v":""},{"$f":"IF(WorkingR!$B89=\"Grant Income\",WorkingR!H89,\"\")","v":""},{"$f":"IF(WorkingR!$B89=\"Grant Income\",WorkingR!I89,\"\")","v":""},{"$f":"IF(WorkingR!$B89=\"Grant Income\",WorkingR!J89,\"\")","v":""},{"$f":"IF(WorkingR!$B89=\"Grant Income\",WorkingR!K89,\"\")","v":""},{"$f":"IF(WorkingR!$B89=\"Grant Income\",WorkingR!L89,\"\")","v":""},{"$f":"IF(WorkingR!$B89=\"Grant Income\",WorkingR!M89,\"\")","v":""},{"$f":"IF(WorkingR!$B89=\"Grant Income\",WorkingR!N89,\"\")","v":""},{"$f":"IF(WorkingR!$B89=\"Grant Income\",WorkingR!O89,\"\")","v":""},{"$f":"IF(WorkingR!$B89=\"Grant Income\",WorkingR!P89,\"\")","v":""},{"$f":"IF(WorkingR!$B89=\"Grant Income\",WorkingR!Q89,\"\")","v":""},{"$f":"IF(WorkingR!$B89=\"Grant Income\",WorkingR!R89,\"\")","v":""},{"$f":"IF(WorkingR!$B89=\"Grant Income\",WorkingR!S89,\"\")","v":""},{"$f":"IF(WorkingR!$B89=\"Grant Income\",WorkingR!T89,\"\")","v":""},{"$f":"IF(WorkingR!$B89=\"Grant Income\",WorkingR!U89,\"\")","v":""},{"$f":"IF(WorkingR!$B89=\"Grant Income\",WorkingR!V89,\"\")","v":""},{"$f":"IF(WorkingR!$B89=\"Grant Income\",WorkingR!W89,\"\")","v":""},{"$f":"IF(WorkingR!$B89=\"Grant Income\",WorkingR!X89,\"\")","v":""},{"$f":"IF(WorkingR!$B89=\"Grant Income\",WorkingR!Y89,\"\")","v":""},{"$f":"IF(Descriptions!D90=\"Grant income\",Descriptions!AA90,0)","v":0}]
[{"$f":"IF(Descriptions!D91=\"Grant income\",Descriptions!B91,0)","v":0},{"$f":"IF(WorkingR!$B90=\"Grant Income\",WorkingR!D90,\"\")","v":""},{"$f":"IF(WorkingR!$B90=\"Grant Income\",WorkingR!E90,\"\")","v":""},{"$f":"IF(WorkingR!$B90=\"Grant Income\",WorkingR!F90,\"\")","v":""},{"$f":"IF(WorkingR!$B90=\"Grant Income\",WorkingR!G90,\"\")","v":""},{"$f":"IF(WorkingR!$B90=\"Grant Income\",WorkingR!H90,\"\")","v":""},{"$f":"IF(WorkingR!$B90=\"Grant Income\",WorkingR!I90,\"\")","v":""},{"$f":"IF(WorkingR!$B90=\"Grant Income\",WorkingR!J90,\"\")","v":""},{"$f":"IF(WorkingR!$B90=\"Grant Income\",WorkingR!K90,\"\")","v":""},{"$f":"IF(WorkingR!$B90=\"Grant Income\",WorkingR!L90,\"\")","v":""},{"$f":"IF(WorkingR!$B90=\"Grant Income\",WorkingR!M90,\"\")","v":""},{"$f":"IF(WorkingR!$B90=\"Grant Income\",WorkingR!N90,\"\")","v":""},{"$f":"IF(WorkingR!$B90=\"Grant Income\",WorkingR!O90,\"\")","v":""},{"$f":"IF(WorkingR!$B90=\"Grant Income\",WorkingR!P90,\"\")","v":""},{"$f":"IF(WorkingR!$B90=\"Grant Income\",WorkingR!Q90,\"\")","v":""},{"$f":"IF(WorkingR!$B90=\"Grant Income\",WorkingR!R90,\"\")","v":""},{"$f":"IF(WorkingR!$B90=\"Grant Income\",WorkingR!S90,\"\")","v":""},{"$f":"IF(WorkingR!$B90=\"Grant Income\",WorkingR!T90,\"\")","v":""},{"$f":"IF(WorkingR!$B90=\"Grant Income\",WorkingR!U90,\"\")","v":""},{"$f":"IF(WorkingR!$B90=\"Grant Income\",WorkingR!V90,\"\")","v":""},{"$f":"IF(WorkingR!$B90=\"Grant Income\",WorkingR!W90,\"\")","v":""},{"$f":"IF(WorkingR!$B90=\"Grant Income\",WorkingR!X90,\"\")","v":""},{"$f":"IF(WorkingR!$B90=\"Grant Income\",WorkingR!Y90,\"\")","v":""},{"$f":"IF(Descriptions!D91=\"Grant income\",Descriptions!AA91,0)","v":0}]
[{"$f":"IF(Descriptions!D92=\"Grant income\",Descriptions!B92,0)","v":0},{"$f":"IF(WorkingR!$B91=\"Grant Income\",WorkingR!D91,\"\")","v":""},{"$f":"IF(WorkingR!$B91=\"Grant Income\",WorkingR!E91,\"\")","v":""},{"$f":"IF(WorkingR!$B91=\"Grant Income\",WorkingR!F91,\"\")","v":""},{"$f":"IF(WorkingR!$B91=\"Grant Income\",WorkingR!G91,\"\")","v":""},{"$f":"IF(WorkingR!$B91=\"Grant Income\",WorkingR!H91,\"\")","v":""},{"$f":"IF(WorkingR!$B91=\"Grant Income\",WorkingR!I91,\"\")","v":""},{"$f":"IF(WorkingR!$B91=\"Grant Income\",WorkingR!J91,\"\")","v":""},{"$f":"IF(WorkingR!$B91=\"Grant Income\",WorkingR!K91,\"\")","v":""},{"$f":"IF(WorkingR!$B91=\"Grant Income\",WorkingR!L91,\"\")","v":""},{"$f":"IF(WorkingR!$B91=\"Grant Income\",WorkingR!M91,\"\")","v":""},{"$f":"IF(WorkingR!$B91=\"Grant Income\",WorkingR!N91,\"\")","v":""},{"$f":"IF(WorkingR!$B91=\"Grant Income\",WorkingR!O91,\"\")","v":""},{"$f":"IF(WorkingR!$B91=\"Grant Income\",WorkingR!P91,\"\")","v":""},{"$f":"IF(WorkingR!$B91=\"Grant Income\",WorkingR!Q91,\"\")","v":""},{"$f":"IF(WorkingR!$B91=\"Grant Income\",WorkingR!R91,\"\")","v":""},{"$f":"IF(WorkingR!$B91=\"Grant Income\",WorkingR!S91,\"\")","v":""},{"$f":"IF(WorkingR!$B91=\"Grant Income\",WorkingR!T91,\"\")","v":""},{"$f":"IF(WorkingR!$B91=\"Grant Income\",WorkingR!U91,\"\")","v":""},{"$f":"IF(WorkingR!$B91=\"Grant Income\",WorkingR!V91,\"\")","v":""},{"$f":"IF(WorkingR!$B91=\"Grant Income\",WorkingR!W91,\"\")","v":""},{"$f":"IF(WorkingR!$B91=\"Grant Income\",WorkingR!X91,\"\")","v":""},{"$f":"IF(WorkingR!$B91=\"Grant Income\",WorkingR!Y91,\"\")","v":""},{"$f":"IF(Descriptions!D92=\"Grant income\",Descriptions!AA92,0)","v":0}]
[null,{"$f":"SUM(B455:B506)","v":0},0,0,0,0,0,0,0,0,0,0,0,0,0,0,0,0,0,0,0,0,null,{"$f":"X454","v":0}]
["OTHER INCOME",null,null,null,null,null,null,null,null,null,null,null,null,null,null,null,null,null,null,null,null,null,null,{"$f":"SUM(X509:X560)","v":0}]
["Sale of Assets",{"$f":"WorkingR!D30","v":0},{"$f":"WorkingR!E30","v":0},{"$f":"WorkingR!F30","v":0},{"$f":"WorkingR!G30","v":0},{"$f":"WorkingR!H30","v":0},{"$f":"WorkingR!I30","v":0},{"$f":"WorkingR!J30","v":0},{"$f":"WorkingR!K30","v":0},{"$f":"WorkingR!L30","v":0},{"$f":"WorkingR!M30","v":0},{"$f":"WorkingR!N30","v":0},{"$f":"WorkingR!O30","v":0},{"$f":"WorkingR!P30","v":0},{"$f":"WorkingR!Q30","v":0},{"$f":"WorkingR!R30","v":0},{"$f":"WorkingR!S30","v":0},{"$f":"WorkingR!T30","v":0},{"$f":"WorkingR!U30","v":0},{"$f":"WorkingR!V30","v":0},{"$f":"WorkingR!W30","v":0},{"$f":"WorkingR!X30","v":0},{"$f":"WorkingR!Y30","v":0},{"$f":"Descriptions!AA29","v":0}]
["Other Recurring Income",{"$f":"WorkingR!D27","v":0},{"$f":"WorkingR!E27","v":0},{"$f":"WorkingR!F27","v":0},{"$f":"WorkingR!G27","v":0},{"$f":"WorkingR!H27","v":0},{"$f":"WorkingR!I27","v":0},{"$f":"WorkingR!J27","v":0},{"$f":"WorkingR!K27","v":0},{"$f":"WorkingR!L27","v":0},{"$f":"WorkingR!M27","v":0},{"$f":"WorkingR!N27","v":0},{"$f":"WorkingR!O27","v":0},{"$f":"WorkingR!P27","v":0},{"$f":"WorkingR!Q27","v":0},{"$f":"WorkingR!R27","v":0},{"$f":"WorkingR!S27","v":0},{"$f":"WorkingR!T27","v":0},{"$f":"WorkingR!U27","v":0},{"$f":"WorkingR!V27","v":0},{"$f":"WorkingR!W27","v":0},{"$f":"WorkingR!X27","v":0},{"$f":"WorkingR!Y27","v":0},{"$f":"Descriptions!AA26","v":0}]
[{"$f":"IF(Descriptions!D43=\"Other income\",Descriptions!B43,0)","v":0},{"$f":"IF(WorkingR!$B42=\"Other Income\",WorkingR!D42,\"\")","v":""},{"$f":"IF(WorkingR!$B42=\"Other Income\",WorkingR!E42,\"\")","v":""},{"$f":"IF(WorkingR!$B42=\"Other Income\",WorkingR!F42,\"\")","v":""},{"$f":"IF(WorkingR!$B42=\"Other Income\",WorkingR!G42,\"\")","v":""},{"$f":"IF(WorkingR!$B42=\"Other Income\",WorkingR!H42,\"\")","v":""},{"$f":"IF(WorkingR!$B42=\"Other Income\",WorkingR!I42,\"\")","v":""},{"$f":"IF(WorkingR!$B42=\"Other Income\",WorkingR!J42,\"\")","v":""},{"$f":"IF(WorkingR!$B42=\"Other Income\",WorkingR!K42,\"\")","v":""},{"$f":"IF(WorkingR!$B42=\"Other Income\",WorkingR!L42,\"\")","v":""},{"$f":"IF(WorkingR!$B42=\"Other Income\",WorkingR!M42,\"\")","v":""},{"$f":"IF(WorkingR!$B42=\"Other Income\",WorkingR!N42,\"\")","v":""},{"$f":"IF(WorkingR!$B42=\"Other Income\",WorkingR!O42,\"\")","v":""},{"$f":"IF(WorkingR!$B42=\"Other Income\",WorkingR!P42,\"\")","v":""},{"$f":"IF(WorkingR!$B42=\"Other Income\",WorkingR!Q42,\"\")","v":""},{"$f":"IF(WorkingR!$B42=\"Other Income\",WorkingR!R42,\"\")","v":""},{"$f":"IF(WorkingR!$B42=\"Other Income\",WorkingR!S42,\"\")","v":""},{"$f":"IF(WorkingR!$B42=\"Other Income\",WorkingR!T42,\"\")","v":""},{"$f":"IF(WorkingR!$B42=\"Other Income\",WorkingR!U42,\"\")","v":""},{"$f":"IF(WorkingR!$B42=\"Other Income\",WorkingR!V42,\"\")","v":""},{"$f":"IF(WorkingR!$B42=\"Other Income\",WorkingR!W42,\"\")","v":""},{"$f":"IF(WorkingR!$B42=\"Other Income\",WorkingR!X42,\"\")","v":""},{"$f":"IF(WorkingR!$B42=\"Other Income\",WorkingR!Y42,\"\")","v":""},{"$f":"IF(Descriptions!D43=\"Other income\",Descriptions!AA43,0)","v":0}]
[{"$f":"IF(Descriptions!D44=\"Other income\",Descriptions!B44,0)","v":0},{"$f":"IF(WorkingR!$B43=\"Other Income\",WorkingR!D43,\"\")","v":""},{"$f":"IF(WorkingR!$B43=\"Other Income\",WorkingR!E43,\"\")","v":""},{"$f":"IF(WorkingR!$B43=\"Other Income\",WorkingR!F43,\"\")","v":""},{"$f":"IF(WorkingR!$B43=\"Other Income\",WorkingR!G43,\"\")","v":""},{"$f":"IF(WorkingR!$B43=\"Other Income\",WorkingR!H43,\"\")","v":""},{"$f":"IF(WorkingR!$B43=\"Other Income\",WorkingR!I43,\"\")","v":""},{"$f":"IF(WorkingR!$B43=\"Other Income\",WorkingR!J43,\"\")","v":""},{"$f":"IF(WorkingR!$B43=\"Other Income\",WorkingR!K43,\"\")","v":""},{"$f":"IF(WorkingR!$B43=\"Other Income\",WorkingR!L43,\"\")","v":""},{"$f":"IF(WorkingR!$B43=\"Other Income\",WorkingR!M43,\"\")","v":""},{"$f":"IF(WorkingR!$B43=\"Other Income\",WorkingR!N43,\"\")","v":""},{"$f":"IF(WorkingR!$B43=\"Other Income\",WorkingR!O43,\"\")","v":""},{"$f":"IF(WorkingR!$B43=\"Other Income\",WorkingR!P43,\"\")","v":""},{"$f":"IF(WorkingR!$B43=\"Other Income\",WorkingR!Q43,\"\")","v":""},{"$f":"IF(WorkingR!$B43=\"Other Income\",WorkingR!R43,\"\")","v":""},{"$f":"IF(WorkingR!$B43=\"Other Income\",WorkingR!S43,\"\")","v":""},{"$f":"IF(WorkingR!$B43=\"Other Income\",WorkingR!T43,\"\")","v":""},{"$f":"IF(WorkingR!$B43=\"Other Income\",WorkingR!U43,\"\")","v":""},{"$f":"IF(WorkingR!$B43=\"Other Income\",WorkingR!V43,\"\")","v":""},{"$f":"IF(WorkingR!$B43=\"Other Income\",WorkingR!W43,\"\")","v":""},{"$f":"IF(WorkingR!$B43=\"Other Income\",WorkingR!X43,\"\")","v":""},{"$f":"IF(WorkingR!$B43=\"Other Income\",WorkingR!Y43,\"\")","v":""},{"$f":"IF(Descriptions!D44=\"Other income\",Descriptions!AA44,0)","v":0}]
[{"$f":"IF(Descriptions!D45=\"Other income\",Descriptions!B45,0)","v":0},{"$f":"IF(WorkingR!$B44=\"Other Income\",WorkingR!D44,\"\")","v":""},{"$f":"IF(WorkingR!$B44=\"Other Income\",WorkingR!E44,\"\")","v":""},{"$f":"IF(WorkingR!$B44=\"Other Income\",WorkingR!F44,\"\")","v":""},{"$f":"IF(WorkingR!$B44=\"Other Income\",WorkingR!G44,\"\")","v":""},{"$f":"IF(WorkingR!$B44=\"Other Income\",WorkingR!H44,\"\")","v":""},{"$f":"IF(WorkingR!$B44=\"Other Income\",WorkingR!I44,\"\")","v":""},{"$f":"IF(WorkingR!$B44=\"Other Income\",WorkingR!J44,\"\")","v":""},{"$f":"IF(WorkingR!$B44=\"Other Income\",WorkingR!K44,\"\")","v":""},{"$f":"IF(WorkingR!$B44=\"Other Income\",WorkingR!L44,\"\")","v":""},{"$f":"IF(WorkingR!$B44=\"Other Income\",WorkingR!M44,\"\")","v":""},{"$f":"IF(WorkingR!$B44=\"Other Income\",WorkingR!N44,\"\")","v":""},{"$f":"IF(WorkingR!$B44=\"Other Income\",WorkingR!O44,\"\")","v":""},{"$f":"IF(WorkingR!$B44=\"Other Income\",WorkingR!P44,\"\")","v":""},{"$f":"IF(WorkingR!$B44=\"Other Income\",WorkingR!Q44,\"\")","v":""},{"$f":"IF(WorkingR!$B44=\"Other Income\",WorkingR!R44,\"\")","v":""},{"$f":"IF(WorkingR!$B44=\"Other Income\",WorkingR!S44,\"\")","v":""},{"$f":"IF(WorkingR!$B44=\"Other Income\",WorkingR!T44,\"\")","v":""},{"$f":"IF(WorkingR!$B44=\"Other Income\",WorkingR!U44,\"\")","v":""},{"$f":"IF(WorkingR!$B44=\"Other Income\",WorkingR!V44,\"\")","v":""},{"$f":"IF(WorkingR!$B44=\"Other Income\",WorkingR!W44,\"\")","v":""},{"$f":"IF(WorkingR!$B44=\"Other Income\",WorkingR!X44,\"\")","v":""},{"$f":"IF(WorkingR!$B44=\"Other Income\",WorkingR!Y44,\"\")","v":""},{"$f":"IF(Descriptions!D45=\"Other income\",Descriptions!AA45,0)","v":0}]
[{"$f":"IF(Descriptions!D46=\"Other income\",Descriptions!B46,0)","v":0},{"$f":"IF(WorkingR!$B45=\"Other Income\",WorkingR!D45,\"\")","v":""},{"$f":"IF(WorkingR!$B45=\"Other Income\",WorkingR!E45,\"\")","v":""},{"$f":"IF(WorkingR!$B45=\"Other Income\",WorkingR!F45,\"\")","v":""},{"$f":"IF(WorkingR!$B45=\"Other Income\",WorkingR!G45,\"\")","v":""},{"$f":"IF(WorkingR!$B45=\"Other Income\",WorkingR!H45,\"\")","v":""},{"$f":"IF(WorkingR!$B45=\"Other Income\",WorkingR!I45,\"\")","v":""},{"$f":"IF(WorkingR!$B45=\"Other Income\",WorkingR!J45,\"\")","v":""},{"$f":"IF(WorkingR!$B45=\"Other Income\",WorkingR!K45,\"\")","v":""},{"$f":"IF(WorkingR!$B45=\"Other Income\",WorkingR!L45,\"\")","v":""},{"$f":"IF(WorkingR!$B45=\"Other Income\",WorkingR!M45,\"\")","v":""},{"$f":"IF(WorkingR!$B45=\"Other Income\",WorkingR!N45,\"\")","v":""},{"$f":"IF(WorkingR!$B45=\"Other Income\",WorkingR!O45,\"\")","v":""},{"$f":"IF(WorkingR!$B45=\"Other Income\",WorkingR!P45,\"\")","v":""},{"$f":"IF(WorkingR!$B45=\"Other Income\",WorkingR!Q45,\"\")","v":""},{"$f":"IF(WorkingR!$B45=\"Other Income\",WorkingR!R45,\"\")","v":""},{"$f":"IF(WorkingR!$B45=\"Other Income\",WorkingR!S45,\"\")","v":""},{"$f":"IF(WorkingR!$B45=\"Other Income\",WorkingR!T45,\"\")","v":""},{"$f":"IF(WorkingR!$B45=\"Other Income\",WorkingR!U45,\"\")","v":""},{"$f":"IF(WorkingR!$B45=\"Other Income\",WorkingR!V45,\"\")","v":""},{"$f":"IF(WorkingR!$B45=\"Other Income\",WorkingR!W45,\"\")","v":""},{"$f":"IF(WorkingR!$B45=\"Other Income\",WorkingR!X45,\"\")","v":""},{"$f":"IF(WorkingR!$B45=\"Other Income\",WorkingR!Y45,\"\")","v":""},{"$f":"IF(Descriptions!D46=\"Other income\",Descriptions!AA46,0)","v":0}]
[{"$f":"IF(Descriptions!D47=\"Other income\",Descriptions!B47,0)","v":0},{"$f":"IF(WorkingR!$B46=\"Other Income\",WorkingR!D46,\"\")","v":""},{"$f":"IF(WorkingR!$B46=\"Other Income\",WorkingR!E46,\"\")","v":""},{"$f":"IF(WorkingR!$B46=\"Other Income\",WorkingR!F46,\"\")","v":""},{"$f":"IF(WorkingR!$B46=\"Other Income\",WorkingR!G46,\"\")","v":""},{"$f":"IF(WorkingR!$B46=\"Other Income\",WorkingR!H46,\"\")","v":""},{"$f":"IF(WorkingR!$B46=\"Other Income\",WorkingR!I46,\"\")","v":""},{"$f":"IF(WorkingR!$B46=\"Other Income\",WorkingR!J46,\"\")","v":""},{"$f":"IF(WorkingR!$B46=\"Other Income\",WorkingR!K46,\"\")","v":""},{"$f":"IF(WorkingR!$B46=\"Other Income\",WorkingR!L46,\"\")","v":""},{"$f":"IF(WorkingR!$B46=\"Other Income\",WorkingR!M46,\"\")","v":""},{"$f":"IF(WorkingR!$B46=\"Other Income\",WorkingR!N46,\"\")","v":""},{"$f":"IF(WorkingR!$B46=\"Other Income\",WorkingR!O46,\"\")","v":""},{"$f":"IF(WorkingR!$B46=\"Other Income\",WorkingR!P46,\"\")","v":""},{"$f":"IF(WorkingR!$B46=\"Other Income\",WorkingR!Q46,\"\")","v":""},{"$f":"IF(WorkingR!$B46=\"Other Income\",WorkingR!R46,\"\")","v":""},{"$f":"IF(WorkingR!$B46=\"Other Income\",WorkingR!S46,\"\")","v":""},{"$f":"IF(WorkingR!$B46=\"Other Income\",WorkingR!T46,\"\")","v":""},{"$f":"IF(WorkingR!$B46=\"Other Income\",WorkingR!U46,\"\")","v":""},{"$f":"IF(WorkingR!$B46=\"Other Income\",WorkingR!V46,\"\")","v":""},{"$f":"IF(WorkingR!$B46=\"Other Income\",WorkingR!W46,\"\")","v":""},{"$f":"IF(WorkingR!$B46=\"Other Income\",WorkingR!X46,\"\")","v":""},{"$f":"IF(WorkingR!$B46=\"Other Income\",WorkingR!Y46,\"\")","v":""},{"$f":"IF(Descriptions!D47=\"Other income\",Descriptions!AA47,0)","v":0}]
[{"$f":"IF(Descriptions!D48=\"Other income\",Descriptions!B48,0)","v":0},{"$f":"IF(WorkingR!$B47=\"Other Income\",WorkingR!D47,\"\")","v":""},{"$f":"IF(WorkingR!$B47=\"Other Income\",WorkingR!E47,\"\")","v":""},{"$f":"IF(WorkingR!$B47=\"Other Income\",WorkingR!F47,\"\")","v":""},{"$f":"IF(WorkingR!$B47=\"Other Income\",WorkingR!G47,\"\")","v":""},{"$f":"IF(WorkingR!$B47=\"Other Income\",WorkingR!H47,\"\")","v":""},{"$f":"IF(WorkingR!$B47=\"Other Income\",WorkingR!I47,\"\")","v":""},{"$f":"IF(WorkingR!$B47=\"Other Income\",WorkingR!J47,\"\")","v":""},{"$f":"IF(WorkingR!$B47=\"Other Income\",WorkingR!K47,\"\")","v":""},{"$f":"IF(WorkingR!$B47=\"Other Income\",WorkingR!L47,\"\")","v":""},{"$f":"IF(WorkingR!$B47=\"Other Income\",WorkingR!M47,\"\")","v":""},{"$f":"IF(WorkingR!$B47=\"Other Income\",WorkingR!N47,\"\")","v":""},{"$f":"IF(WorkingR!$B47=\"Other Income\",WorkingR!O47,\"\")","v":""},{"$f":"IF(WorkingR!$B47=\"Other Income\",WorkingR!P47,\"\")","v":""},{"$f":"IF(WorkingR!$B47=\"Other Income\",WorkingR!Q47,\"\")","v":""},{"$f":"IF(WorkingR!$B47=\"Other Income\",WorkingR!R47,\"\")","v":""},{"$f":"IF(WorkingR!$B47=\"Other Income\",WorkingR!S47,\"\")","v":""},{"$f":"IF(WorkingR!$B47=\"Other Income\",WorkingR!T47,\"\")","v":""},{"$f":"IF(WorkingR!$B47=\"Other Income\",WorkingR!U47,\"\")","v":""},{"$f":"IF(WorkingR!$B47=\"Other Income\",WorkingR!V47,\"\")","v":""},{"$f":"IF(WorkingR!$B47=\"Other Income\",WorkingR!W47,\"\")","v":""},{"$f":"IF(WorkingR!$B47=\"Other Income\",WorkingR!X47,\"\")","v":""},{"$f":"IF(WorkingR!$B47=\"Other Income\",WorkingR!Y47,\"\")","v":""},{"$f":"IF(Descriptions!D48=\"Other income\",Descriptions!AA48,0)","v":0}]
[{"$f":"IF(Descriptions!D49=\"Other income\",Descriptions!B49,0)","v":0},{"$f":"IF(WorkingR!$B48=\"Other Income\",WorkingR!D48,\"\")","v":""},{"$f":"IF(WorkingR!$B48=\"Other Income\",WorkingR!E48,\"\")","v":""},{"$f":"IF(WorkingR!$B48=\"Other Income\",WorkingR!F48,\"\")","v":""},{"$f":"IF(WorkingR!$B48=\"Other Income\",WorkingR!G48,\"\")","v":""},{"$f":"IF(WorkingR!$B48=\"Other Income\",WorkingR!H48,\"\")","v":""},{"$f":"IF(WorkingR!$B48=\"Other Income\",WorkingR!I48,\"\")","v":""},{"$f":"IF(WorkingR!$B48=\"Other Income\",WorkingR!J48,\"\")","v":""},{"$f":"IF(WorkingR!$B48=\"Other Income\",WorkingR!K48,\"\")","v":""},{"$f":"IF(WorkingR!$B48=\"Other Income\",WorkingR!L48,\"\")","v":""},{"$f":"IF(WorkingR!$B48=\"Other Income\",WorkingR!M48,\"\")","v":""},{"$f":"IF(WorkingR!$B48=\"Other Income\",WorkingR!N48,\"\")","v":""},{"$f":"IF(WorkingR!$B48=\"Other Income\",WorkingR!O48,\"\")","v":""},{"$f":"IF(WorkingR!$B48=\"Other Income\",WorkingR!P48,\"\")","v":""},{"$f":"IF(WorkingR!$B48=\"Other Income\",WorkingR!Q48,\"\")","v":""},{"$f":"IF(WorkingR!$B48=\"Other Income\",WorkingR!R48,\"\")","v":""},{"$f":"IF(WorkingR!$B48=\"Other Income\",WorkingR!S48,\"\")","v":""},{"$f":"IF(WorkingR!$B48=\"Other Income\",WorkingR!T48,\"\")","v":""},{"$f":"IF(WorkingR!$B48=\"Other Income\",WorkingR!U48,\"\")","v":""},{"$f":"IF(WorkingR!$B48=\"Other Income\",WorkingR!V48,\"\")","v":""},{"$f":"IF(WorkingR!$B48=\"Other Income\",WorkingR!W48,\"\")","v":""},{"$f":"IF(WorkingR!$B48=\"Other Income\",WorkingR!X48,\"\")","v":""},{"$f":"IF(WorkingR!$B48=\"Other Income\",WorkingR!Y48,\"\")","v":""},{"$f":"IF(Descriptions!D49=\"Other income\",Descriptions!AA49,0)","v":0}]
[{"$f":"IF(Descriptions!D50=\"Other income\",Descriptions!B50,0)","v":0},{"$f":"IF(WorkingR!$B49=\"Other Income\",WorkingR!D49,\"\")","v":""},{"$f":"IF(WorkingR!$B49=\"Other Income\",WorkingR!E49,\"\")","v":""},{"$f":"IF(WorkingR!$B49=\"Other Income\",WorkingR!F49,\"\")","v":""},{"$f":"IF(WorkingR!$B49=\"Other Income\",WorkingR!G49,\"\")","v":""},{"$f":"IF(WorkingR!$B49=\"Other Income\",WorkingR!H49,\"\")","v":""},{"$f":"IF(WorkingR!$B49=\"Other Income\",WorkingR!I49,\"\")","v":""},{"$f":"IF(WorkingR!$B49=\"Other Income\",WorkingR!J49,\"\")","v":""},{"$f":"IF(WorkingR!$B49=\"Other Income\",WorkingR!K49,\"\")","v":""},{"$f":"IF(WorkingR!$B49=\"Other Income\",WorkingR!L49,\"\")","v":""},{"$f":"IF(WorkingR!$B49=\"Other Income\",WorkingR!M49,\"\")","v":""},{"$f":"IF(WorkingR!$B49=\"Other Income\",WorkingR!N49,\"\")","v":""},{"$f":"IF(WorkingR!$B49=\"Other Income\",WorkingR!O49,\"\")","v":""},{"$f":"IF(WorkingR!$B49=\"Other Income\",WorkingR!P49,\"\")","v":""},{"$f":"IF(WorkingR!$B49=\"Other Income\",WorkingR!Q49,\"\")","v":""},{"$f":"IF(WorkingR!$B49=\"Other Income\",WorkingR!R49,\"\")","v":""},{"$f":"IF(WorkingR!$B49=\"Other Income\",WorkingR!S49,\"\")","v":""},{"$f":"IF(WorkingR!$B49=\"Other Income\",WorkingR!T49,\"\")","v":""},{"$f":"IF(WorkingR!$B49=\"Other Income\",WorkingR!U49,\"\")","v":""},{"$f":"IF(WorkingR!$B49=\"Other Income\",WorkingR!V49,\"\")","v":""},{"$f":"IF(WorkingR!$B49=\"Other Income\",WorkingR!W49,\"\")","v":""},{"$f":"IF(WorkingR!$B49=\"Other Income\",WorkingR!X49,\"\")","v":""},{"$f":"IF(WorkingR!$B49=\"Other Income\",WorkingR!Y49,\"\")","v":""},{"$f":"IF(Descriptions!D50=\"Other income\",Descriptions!AA50,0)","v":0}]
[{"$f":"IF(Descriptions!D51=\"Other income\",Descriptions!B51,0)","v":0},{"$f":"IF(WorkingR!$B50=\"Other Income\",WorkingR!D50,\"\")","v":""},{"$f":"IF(WorkingR!$B50=\"Other Income\",WorkingR!E50,\"\")","v":""},{"$f":"IF(WorkingR!$B50=\"Other Income\",WorkingR!F50,\"\")","v":""},{"$f":"IF(WorkingR!$B50=\"Other Income\",WorkingR!G50,\"\")","v":""},{"$f":"IF(WorkingR!$B50=\"Other Income\",WorkingR!H50,\"\")","v":""},{"$f":"IF(WorkingR!$B50=\"Other Income\",WorkingR!I50,\"\")","v":""},{"$f":"IF(WorkingR!$B50=\"Other Income\",WorkingR!J50,\"\")","v":""},{"$f":"IF(WorkingR!$B50=\"Other Income\",WorkingR!K50,\"\")","v":""},{"$f":"IF(WorkingR!$B50=\"Other Income\",WorkingR!L50,\"\")","v":""},{"$f":"IF(WorkingR!$B50=\"Other Income\",WorkingR!M50,\"\")","v":""},{"$f":"IF(WorkingR!$B50=\"Other Income\",WorkingR!N50,\"\")","v":""},{"$f":"IF(WorkingR!$B50=\"Other Income\",WorkingR!O50,\"\")","v":""},{"$f":"IF(WorkingR!$B50=\"Other Income\",WorkingR!P50,\"\")","v":""},{"$f":"IF(WorkingR!$B50=\"Other Income\",WorkingR!Q50,\"\")","v":""},{"$f":"IF(WorkingR!$B50=\"Other Income\",WorkingR!R50,\"\")","v":""},{"$f":"IF(WorkingR!$B50=\"Other Income\",WorkingR!S50,\"\")","v":""},{"$f":"IF(WorkingR!$B50=\"Other Income\",WorkingR!T50,\"\")","v":""},{"$f":"IF(WorkingR!$B50=\"Other Income\",WorkingR!U50,\"\")","v":""},{"$f":"IF(WorkingR!$B50=\"Other Income\",WorkingR!V50,\"\")","v":""},{"$f":"IF(WorkingR!$B50=\"Other Income\",WorkingR!W50,\"\")","v":""},{"$f":"IF(WorkingR!$B50=\"Other Income\",WorkingR!X50,\"\")","v":""},{"$f":"IF(WorkingR!$B50=\"Other Income\",WorkingR!Y50,\"\")","v":""},{"$f":"IF(Descriptions!D51=\"Other income\",Descriptions!AA51,0)","v":0}]
[{"$f":"IF(Descriptions!D52=\"Other income\",Descriptions!B52,0)","v":0},{"$f":"IF(WorkingR!$B51=\"Other Income\",WorkingR!D51,\"\")","v":""},{"$f":"IF(WorkingR!$B51=\"Other Income\",WorkingR!E51,\"\")","v":""},{"$f":"IF(WorkingR!$B51=\"Other Income\",WorkingR!F51,\"\")","v":""},{"$f":"IF(WorkingR!$B51=\"Other Income\",WorkingR!G51,\"\")","v":""},{"$f":"IF(WorkingR!$B51=\"Other Income\",WorkingR!H51,\"\")","v":""},{"$f":"IF(WorkingR!$B51=\"Other Income\",WorkingR!I51,\"\")","v":""},{"$f":"IF(WorkingR!$B51=\"Other Income\",WorkingR!J51,\"\")","v":""},{"$f":"IF(WorkingR!$B51=\"Other Income\",WorkingR!K51,\"\")","v":""},{"$f":"IF(WorkingR!$B51=\"Other Income\",WorkingR!L51,\"\")","v":""},{"$f":"IF(WorkingR!$B51=\"Other Income\",WorkingR!M51,\"\")","v":""},{"$f":"IF(WorkingR!$B51=\"Other Income\",WorkingR!N51,\"\")","v":""},{"$f":"IF(WorkingR!$B51=\"Other Income\",WorkingR!O51,\"\")","v":""},{"$f":"IF(WorkingR!$B51=\"Other Income\",WorkingR!P51,\"\")","v":""},{"$f":"IF(WorkingR!$B51=\"Other Income\",WorkingR!Q51,\"\")","v":""},{"$f":"IF(WorkingR!$B51=\"Other Income\",WorkingR!R51,\"\")","v":""},{"$f":"IF(WorkingR!$B51=\"Other Income\",WorkingR!S51,\"\")","v":""},{"$f":"IF(WorkingR!$B51=\"Other Income\",WorkingR!T51,\"\")","v":""},{"$f":"IF(WorkingR!$B51=\"Other Income\",WorkingR!U51,\"\")","v":""},{"$f":"IF(WorkingR!$B51=\"Other Income\",WorkingR!V51,\"\")","v":""},{"$f":"IF(WorkingR!$B51=\"Other Income\",WorkingR!W51,\"\")","v":""},{"$f":"IF(WorkingR!$B51=\"Other Income\",WorkingR!X51,\"\")","v":""},{"$f":"IF(WorkingR!$B51=\"Other Income\",WorkingR!Y51,\"\")","v":""},{"$f":"IF(Descriptions!D52=\"Other income\",Descriptions!AA52,0)","v":0}]
[{"$f":"IF(Descriptions!D53=\"Other income\",Descriptions!B53,0)","v":0},{"$f":"IF(WorkingR!$B52=\"Other Income\",WorkingR!D52,\"\")","v":""},{"$f":"IF(WorkingR!$B52=\"Other Income\",WorkingR!E52,\"\")","v":""},{"$f":"IF(WorkingR!$B52=\"Other Income\",WorkingR!F52,\"\")","v":""},{"$f":"IF(WorkingR!$B52=\"Other Income\",WorkingR!G52,\"\")","v":""},{"$f":"IF(WorkingR!$B52=\"Other Income\",WorkingR!H52,\"\")","v":""},{"$f":"IF(WorkingR!$B52=\"Other Income\",WorkingR!I52,\"\")","v":""},{"$f":"IF(WorkingR!$B52=\"Other Income\",WorkingR!J52,\"\")","v":""},{"$f":"IF(WorkingR!$B52=\"Other Income\",WorkingR!K52,\"\")","v":""},{"$f":"IF(WorkingR!$B52=\"Other Income\",WorkingR!L52,\"\")","v":""},{"$f":"IF(WorkingR!$B52=\"Other Income\",WorkingR!M52,\"\")","v":""},{"$f":"IF(WorkingR!$B52=\"Other Income\",WorkingR!N52,\"\")","v":""},{"$f":"IF(WorkingR!$B52=\"Other Income\",WorkingR!O52,\"\")","v":""},{"$f":"IF(WorkingR!$B52=\"Other Income\",WorkingR!P52,\"\")","v":""},{"$f":"IF(WorkingR!$B52=\"Other Income\",WorkingR!Q52,\"\")","v":""},{"$f":"IF(WorkingR!$B52=\"Other Income\",WorkingR!R52,\"\")","v":""},{"$f":"IF(WorkingR!$B52=\"Other Income\",WorkingR!S52,\"\")","v":""},{"$f":"IF(WorkingR!$B52=\"Other Income\",WorkingR!T52,\"\")","v":""},{"$f":"IF(WorkingR!$B52=\"Other Income\",WorkingR!U52,\"\")","v":""},{"$f":"IF(WorkingR!$B52=\"Other Income\",WorkingR!V52,\"\")","v":""},{"$f":"IF(WorkingR!$B52=\"Other Income\",WorkingR!W52,\"\")","v":""},{"$f":"IF(WorkingR!$B52=\"Other Income\",WorkingR!X52,\"\")","v":""},{"$f":"IF(WorkingR!$B52=\"Other Income\",WorkingR!Y52,\"\")","v":""},{"$f":"IF(Descriptions!D53=\"Other income\",Descriptions!AA53,0)","v":0}]
[{"$f":"IF(Descriptions!D54=\"Other income\",Descriptions!B54,0)","v":0},{"$f":"IF(WorkingR!$B53=\"Other Income\",WorkingR!D53,\"\")","v":""},{"$f":"IF(WorkingR!$B53=\"Other Income\",WorkingR!E53,\"\")","v":""},{"$f":"IF(WorkingR!$B53=\"Other Income\",WorkingR!F53,\"\")","v":""},{"$f":"IF(WorkingR!$B53=\"Other Income\",WorkingR!G53,\"\")","v":""},{"$f":"IF(WorkingR!$B53=\"Other Income\",WorkingR!H53,\"\")","v":""},{"$f":"IF(WorkingR!$B53=\"Other Income\",WorkingR!I53,\"\")","v":""},{"$f":"IF(WorkingR!$B53=\"Other Income\",WorkingR!J53,\"\")","v":""},{"$f":"IF(WorkingR!$B53=\"Other Income\",WorkingR!K53,\"\")","v":""},{"$f":"IF(WorkingR!$B53=\"Other Income\",WorkingR!L53,\"\")","v":""},{"$f":"IF(WorkingR!$B53=\"Other Income\",WorkingR!M53,\"\")","v":""},{"$f":"IF(WorkingR!$B53=\"Other Income\",WorkingR!N53,\"\")","v":""},{"$f":"IF(WorkingR!$B53=\"Other Income\",WorkingR!O53,\"\")","v":""},{"$f":"IF(WorkingR!$B53=\"Other Income\",WorkingR!P53,\"\")","v":""},{"$f":"IF(WorkingR!$B53=\"Other Income\",WorkingR!Q53,\"\")","v":""},{"$f":"IF(WorkingR!$B53=\"Other Income\",WorkingR!R53,\"\")","v":""},{"$f":"IF(WorkingR!$B53=\"Other Income\",WorkingR!S53,\"\")","v":""},{"$f":"IF(WorkingR!$B53=\"Other Income\",WorkingR!T53,\"\")","v":""},{"$f":"IF(WorkingR!$B53=\"Other Income\",WorkingR!U53,\"\")","v":""},{"$f":"IF(WorkingR!$B53=\"Other Income\",WorkingR!V53,\"\")","v":""},{"$f":"IF(WorkingR!$B53=\"Other Income\",WorkingR!W53,\"\")","v":""},{"$f":"IF(WorkingR!$B53=\"Other Income\",WorkingR!X53,\"\")","v":""},{"$f":"IF(WorkingR!$B53=\"Other Income\",WorkingR!Y53,\"\")","v":""},{"$f":"IF(Descriptions!D54=\"Other income\",Descriptions!AA54,0)","v":0}]
[{"$f":"IF(Descriptions!D55=\"Other income\",Descriptions!B55,0)","v":0},{"$f":"IF(WorkingR!$B54=\"Other Income\",WorkingR!D54,\"\")","v":""},{"$f":"IF(WorkingR!$B54=\"Other Income\",WorkingR!E54,\"\")","v":""},{"$f":"IF(WorkingR!$B54=\"Other Income\",WorkingR!F54,\"\")","v":""},{"$f":"IF(WorkingR!$B54=\"Other Income\",WorkingR!G54,\"\")","v":""},{"$f":"IF(WorkingR!$B54=\"Other Income\",WorkingR!H54,\"\")","v":""},{"$f":"IF(WorkingR!$B54=\"Other Income\",WorkingR!I54,\"\")","v":""},{"$f":"IF(WorkingR!$B54=\"Other Income\",WorkingR!J54,\"\")","v":""},{"$f":"IF(WorkingR!$B54=\"Other Income\",WorkingR!K54,\"\")","v":""},{"$f":"IF(WorkingR!$B54=\"Other Income\",WorkingR!L54,\"\")","v":""},{"$f":"IF(WorkingR!$B54=\"Other Income\",WorkingR!M54,\"\")","v":""},{"$f":"IF(WorkingR!$B54=\"Other Income\",WorkingR!N54,\"\")","v":""},{"$f":"IF(WorkingR!$B54=\"Other Income\",WorkingR!O54,\"\")","v":""},{"$f":"IF(WorkingR!$B54=\"Other Income\",WorkingR!P54,\"\")","v":""},{"$f":"IF(WorkingR!$B54=\"Other Income\",WorkingR!Q54,\"\")","v":""},{"$f":"IF(WorkingR!$B54=\"Other Income\",WorkingR!R54,\"\")","v":""},{"$f":"IF(WorkingR!$B54=\"Other Income\",WorkingR!S54,\"\")","v":""},{"$f":"IF(WorkingR!$B54=\"Other Income\",WorkingR!T54,\"\")","v":""},{"$f":"IF(WorkingR!$B54=\"Other Income\",WorkingR!U54,\"\")","v":""},{"$f":"IF(WorkingR!$B54=\"Other Income\",WorkingR!V54,\"\")","v":""},{"$f":"IF(WorkingR!$B54=\"Other Income\",WorkingR!W54,\"\")","v":""},{"$f":"IF(WorkingR!$B54=\"Other Income\",WorkingR!X54,\"\")","v":""},{"$f":"IF(WorkingR!$B54=\"Other Income\",WorkingR!Y54,\"\")","v":""},{"$f":"IF(Descriptions!D55=\"Other income\",Descriptions!AA55,0)","v":0}]
[{"$f":"IF(Descriptions!D56=\"Other income\",Descriptions!B56,0)","v":0},{"$f":"IF(WorkingR!$B55=\"Other Income\",WorkingR!D55,\"\")","v":""},{"$f":"IF(WorkingR!$B55=\"Other Income\",WorkingR!E55,\"\")","v":""},{"$f":"IF(WorkingR!$B55=\"Other Income\",WorkingR!F55,\"\")","v":""},{"$f":"IF(WorkingR!$B55=\"Other Income\",WorkingR!G55,\"\")","v":""},{"$f":"IF(WorkingR!$B55=\"Other Income\",WorkingR!H55,\"\")","v":""},{"$f":"IF(WorkingR!$B55=\"Other Income\",WorkingR!I55,\"\")","v":""},{"$f":"IF(WorkingR!$B55=\"Other Income\",WorkingR!J55,\"\")","v":""},{"$f":"IF(WorkingR!$B55=\"Other Income\",WorkingR!K55,\"\")","v":""},{"$f":"IF(WorkingR!$B55=\"Other Income\",WorkingR!L55,\"\")","v":""},{"$f":"IF(WorkingR!$B55=\"Other Income\",WorkingR!M55,\"\")","v":""},{"$f":"IF(WorkingR!$B55=\"Other Income\",WorkingR!N55,\"\")","v":""},{"$f":"IF(WorkingR!$B55=\"Other Income\",WorkingR!O55,\"\")","v":""},{"$f":"IF(WorkingR!$B55=\"Other Income\",WorkingR!P55,\"\")","v":""},{"$f":"IF(WorkingR!$B55=\"Other Income\",WorkingR!Q55,\"\")","v":""},{"$f":"IF(WorkingR!$B55=\"Other Income\",WorkingR!R55,\"\")","v":""},{"$f":"IF(WorkingR!$B55=\"Other Income\",WorkingR!S55,\"\")","v":""},{"$f":"IF(WorkingR!$B55=\"Other Income\",WorkingR!T55,\"\")","v":""},{"$f":"IF(WorkingR!$B55=\"Other Income\",WorkingR!U55,\"\")","v":""},{"$f":"IF(WorkingR!$B55=\"Other Income\",WorkingR!V55,\"\")","v":""},{"$f":"IF(WorkingR!$B55=\"Other Income\",WorkingR!W55,\"\")","v":""},{"$f":"IF(WorkingR!$B55=\"Other Income\",WorkingR!X55,\"\")","v":""},{"$f":"IF(WorkingR!$B55=\"Other Income\",WorkingR!Y55,\"\")","v":""},{"$f":"IF(Descriptions!D56=\"Other income\",Descriptions!AA56,0)","v":0}]
[{"$f":"IF(Descriptions!D57=\"Other income\",Descriptions!B57,0)","v":0},{"$f":"IF(WorkingR!$B56=\"Other Income\",WorkingR!D56,\"\")","v":""},{"$f":"IF(WorkingR!$B56=\"Other Income\",WorkingR!E56,\"\")","v":""},{"$f":"IF(WorkingR!$B56=\"Other Income\",WorkingR!F56,\"\")","v":""},{"$f":"IF(WorkingR!$B56=\"Other Income\",WorkingR!G56,\"\")","v":""},{"$f":"IF(WorkingR!$B56=\"Other Income\",WorkingR!H56,\"\")","v":""},{"$f":"IF(WorkingR!$B56=\"Other Income\",WorkingR!I56,\"\")","v":""},{"$f":"IF(WorkingR!$B56=\"Other Income\",WorkingR!J56,\"\")","v":""},{"$f":"IF(WorkingR!$B56=\"Other Income\",WorkingR!K56,\"\")","v":""},{"$f":"IF(WorkingR!$B56=\"Other Income\",WorkingR!L56,\"\")","v":""},{"$f":"IF(WorkingR!$B56=\"Other Income\",WorkingR!M56,\"\")","v":""},{"$f":"IF(WorkingR!$B56=\"Other Income\",WorkingR!N56,\"\")","v":""},{"$f":"IF(WorkingR!$B56=\"Other Income\",WorkingR!O56,\"\")","v":""},{"$f":"IF(WorkingR!$B56=\"Other Income\",WorkingR!P56,\"\")","v":""},{"$f":"IF(WorkingR!$B56=\"Other Income\",WorkingR!Q56,\"\")","v":""},{"$f":"IF(WorkingR!$B56=\"Other Income\",WorkingR!R56,\"\")","v":""},{"$f":"IF(WorkingR!$B56=\"Other Income\",WorkingR!S56,\"\")","v":""},{"$f":"IF(WorkingR!$B56=\"Other Income\",WorkingR!T56,\"\")","v":""},{"$f":"IF(WorkingR!$B56=\"Other Income\",WorkingR!U56,\"\")","v":""},{"$f":"IF(WorkingR!$B56=\"Other Income\",WorkingR!V56,\"\")","v":""},{"$f":"IF(WorkingR!$B56=\"Other Income\",WorkingR!W56,\"\")","v":""},{"$f":"IF(WorkingR!$B56=\"Other Income\",WorkingR!X56,\"\")","v":""},{"$f":"IF(WorkingR!$B56=\"Other Income\",WorkingR!Y56,\"\")","v":""},{"$f":"IF(Descriptions!D57=\"Other income\",Descriptions!AA57,0)","v":0}]
[{"$f":"IF(Descriptions!D58=\"Other income\",Descriptions!B58,0)","v":0},{"$f":"IF(WorkingR!$B57=\"Other Income\",WorkingR!D57,\"\")","v":""},{"$f":"IF(WorkingR!$B57=\"Other Income\",WorkingR!E57,\"\")","v":""},{"$f":"IF(WorkingR!$B57=\"Other Income\",WorkingR!F57,\"\")","v":""},{"$f":"IF(WorkingR!$B57=\"Other Income\",WorkingR!G57,\"\")","v":""},{"$f":"IF(WorkingR!$B57=\"Other Income\",WorkingR!H57,\"\")","v":""},{"$f":"IF(WorkingR!$B57=\"Other Income\",WorkingR!I57,\"\")","v":""},{"$f":"IF(WorkingR!$B57=\"Other Income\",WorkingR!J57,\"\")","v":""},{"$f":"IF(WorkingR!$B57=\"Other Income\",WorkingR!K57,\"\")","v":""},{"$f":"IF(WorkingR!$B57=\"Other Income\",WorkingR!L57,\"\")","v":""},{"$f":"IF(WorkingR!$B57=\"Other Income\",WorkingR!M57,\"\")","v":""},{"$f":"IF(WorkingR!$B57=\"Other Income\",WorkingR!N57,\"\")","v":""},{"$f":"IF(WorkingR!$B57=\"Other Income\",WorkingR!O57,\"\")","v":""},{"$f":"IF(WorkingR!$B57=\"Other Income\",WorkingR!P57,\"\")","v":""},{"$f":"IF(WorkingR!$B57=\"Other Income\",WorkingR!Q57,\"\")","v":""},{"$f":"IF(WorkingR!$B57=\"Other Income\",WorkingR!R57,\"\")","v":""},{"$f":"IF(WorkingR!$B57=\"Other Income\",WorkingR!S57,\"\")","v":""},{"$f":"IF(WorkingR!$B57=\"Other Income\",WorkingR!T57,\"\")","v":""},{"$f":"IF(WorkingR!$B57=\"Other Income\",WorkingR!U57,\"\")","v":""},{"$f":"IF(WorkingR!$B57=\"Other Income\",WorkingR!V57,\"\")","v":""},{"$f":"IF(WorkingR!$B57=\"Other Income\",WorkingR!W57,\"\")","v":""},{"$f":"IF(WorkingR!$B57=\"Other Income\",WorkingR!X57,\"\")","v":""},{"$f":"IF(WorkingR!$B57=\"Other Income\",WorkingR!Y57,\"\")","v":""},{"$f":"IF(Descriptions!D58=\"Other income\",Descriptions!AA58,0)","v":0}]
[{"$f":"IF(Descriptions!D59=\"Other income\",Descriptions!B59,0)","v":0},{"$f":"IF(WorkingR!$B58=\"Other Income\",WorkingR!D58,\"\")","v":""},{"$f":"IF(WorkingR!$B58=\"Other Income\",WorkingR!E58,\"\")","v":""},{"$f":"IF(WorkingR!$B58=\"Other Income\",WorkingR!F58,\"\")","v":""},{"$f":"IF(WorkingR!$B58=\"Other Income\",WorkingR!G58,\"\")","v":""},{"$f":"IF(WorkingR!$B58=\"Other Income\",WorkingR!H58,\"\")","v":""},{"$f":"IF(WorkingR!$B58=\"Other Income\",WorkingR!I58,\"\")","v":""},{"$f":"IF(WorkingR!$B58=\"Other Income\",WorkingR!J58,\"\")","v":""},{"$f":"IF(WorkingR!$B58=\"Other Income\",WorkingR!K58,\"\")","v":""},{"$f":"IF(WorkingR!$B58=\"Other Income\",WorkingR!L58,\"\")","v":""},{"$f":"IF(WorkingR!$B58=\"Other Income\",WorkingR!M58,\"\")","v":""},{"$f":"IF(WorkingR!$B58=\"Other Income\",WorkingR!N58,\"\")","v":""},{"$f":"IF(WorkingR!$B58=\"Other Income\",WorkingR!O58,\"\")","v":""},{"$f":"IF(WorkingR!$B58=\"Other Income\",WorkingR!P58,\"\")","v":""},{"$f":"IF(WorkingR!$B58=\"Other Income\",WorkingR!Q58,\"\")","v":""},{"$f":"IF(WorkingR!$B58=\"Other Income\",WorkingR!R58,\"\")","v":""},{"$f":"IF(WorkingR!$B58=\"Other Income\",WorkingR!S58,\"\")","v":""},{"$f":"IF(WorkingR!$B58=\"Other Income\",WorkingR!T58,\"\")","v":""},{"$f":"IF(WorkingR!$B58=\"Other Income\",WorkingR!U58,\"\")","v":""},{"$f":"IF(WorkingR!$B58=\"Other Income\",WorkingR!V58,\"\")","v":""},{"$f":"IF(WorkingR!$B58=\"Other Income\",WorkingR!W58,\"\")","v":""},{"$f":"IF(WorkingR!$B58=\"Other Income\",WorkingR!X58,\"\")","v":""},{"$f":"IF(WorkingR!$B58=\"Other Income\",WorkingR!Y58,\"\")","v":""},{"$f":"IF(Descriptions!D59=\"Other income\",Descriptions!AA59,0)","v":0}]
[{"$f":"IF(Descriptions!D60=\"Other income\",Descriptions!B60,0)","v":0},{"$f":"IF(WorkingR!$B59=\"Other Income\",WorkingR!D59,\"\")","v":""},{"$f":"IF(WorkingR!$B59=\"Other Income\",WorkingR!E59,\"\")","v":""},{"$f":"IF(WorkingR!$B59=\"Other Income\",WorkingR!F59,\"\")","v":""},{"$f":"IF(WorkingR!$B59=\"Other Income\",WorkingR!G59,\"\")","v":""},{"$f":"IF(WorkingR!$B59=\"Other Income\",WorkingR!H59,\"\")","v":""},{"$f":"IF(WorkingR!$B59=\"Other Income\",WorkingR!I59,\"\")","v":""},{"$f":"IF(WorkingR!$B59=\"Other Income\",WorkingR!J59,\"\")","v":""},{"$f":"IF(WorkingR!$B59=\"Other Income\",WorkingR!K59,\"\")","v":""},{"$f":"IF(WorkingR!$B59=\"Other Income\",WorkingR!L59,\"\")","v":""},{"$f":"IF(WorkingR!$B59=\"Other Income\",WorkingR!M59,\"\")","v":""},{"$f":"IF(WorkingR!$B59=\"Other Income\",WorkingR!N59,\"\")","v":""},{"$f":"IF(WorkingR!$B59=\"Other Income\",WorkingR!O59,\"\")","v":""},{"$f":"IF(WorkingR!$B59=\"Other Income\",WorkingR!P59,\"\")","v":""},{"$f":"IF(WorkingR!$B59=\"Other Income\",WorkingR!Q59,\"\")","v":""},{"$f":"IF(WorkingR!$B59=\"Other Income\",WorkingR!R59,\"\")","v":""},{"$f":"IF(WorkingR!$B59=\"Other Income\",WorkingR!S59,\"\")","v":""},{"$f":"IF(WorkingR!$B59=\"Other Income\",WorkingR!T59,\"\")","v":""},{"$f":"IF(WorkingR!$B59=\"Other Income\",WorkingR!U59,\"\")","v":""},{"$f":"IF(WorkingR!$B59=\"Other Income\",WorkingR!V59,\"\")","v":""},{"$f":"IF(WorkingR!$B59=\"Other Income\",WorkingR!W59,\"\")","v":""},{"$f":"IF(WorkingR!$B59=\"Other Income\",WorkingR!X59,\"\")","v":""},{"$f":"IF(WorkingR!$B59=\"Other Income\",WorkingR!Y59,\"\")","v":""},{"$f":"IF(Descriptions!D60=\"Other income\",Descriptions!AA60,0)","v":0}]
[{"$f":"IF(Descriptions!D61=\"Other income\",Descriptions!B61,0)","v":0},{"$f":"IF(WorkingR!$B60=\"Other Income\",WorkingR!D60,\"\")","v":""},{"$f":"IF(WorkingR!$B60=\"Other Income\",WorkingR!E60,\"\")","v":""},{"$f":"IF(WorkingR!$B60=\"Other Income\",WorkingR!F60,\"\")","v":""},{"$f":"IF(WorkingR!$B60=\"Other Income\",WorkingR!G60,\"\")","v":""},{"$f":"IF(WorkingR!$B60=\"Other Income\",WorkingR!H60,\"\")","v":""},{"$f":"IF(WorkingR!$B60=\"Other Income\",WorkingR!I60,\"\")","v":""},{"$f":"IF(WorkingR!$B60=\"Other Income\",WorkingR!J60,\"\")","v":""},{"$f":"IF(WorkingR!$B60=\"Other Income\",WorkingR!K60,\"\")","v":""},{"$f":"IF(WorkingR!$B60=\"Other Income\",WorkingR!L60,\"\")","v":""},{"$f":"IF(WorkingR!$B60=\"Other Income\",WorkingR!M60,\"\")","v":""},{"$f":"IF(WorkingR!$B60=\"Other Income\",WorkingR!N60,\"\")","v":""},{"$f":"IF(WorkingR!$B60=\"Other Income\",WorkingR!O60,\"\")","v":""},{"$f":"IF(WorkingR!$B60=\"Other Income\",WorkingR!P60,\"\")","v":""},{"$f":"IF(WorkingR!$B60=\"Other Income\",WorkingR!Q60,\"\")","v":""},{"$f":"IF(WorkingR!$B60=\"Other Income\",WorkingR!R60,\"\")","v":""},{"$f":"IF(WorkingR!$B60=\"Other Income\",WorkingR!S60,\"\")","v":""},{"$f":"IF(WorkingR!$B60=\"Other Income\",WorkingR!T60,\"\")","v":""},{"$f":"IF(WorkingR!$B60=\"Other Income\",WorkingR!U60,\"\")","v":""},{"$f":"IF(WorkingR!$B60=\"Other Income\",WorkingR!V60,\"\")","v":""},{"$f":"IF(WorkingR!$B60=\"Other Income\",WorkingR!W60,\"\")","v":""},{"$f":"IF(WorkingR!$B60=\"Other Income\",WorkingR!X60,\"\")","v":""},{"$f":"IF(WorkingR!$B60=\"Other Income\",WorkingR!Y60,\"\")","v":""},{"$f":"IF(Descriptions!D61=\"Other income\",Descriptions!AA61,0)","v":0}]
[{"$f":"IF(Descriptions!D62=\"Other income\",Descriptions!B62,0)","v":0},{"$f":"IF(WorkingR!$B61=\"Other Income\",WorkingR!D61,\"\")","v":""},{"$f":"IF(WorkingR!$B61=\"Other Income\",WorkingR!E61,\"\")","v":""},{"$f":"IF(WorkingR!$B61=\"Other Income\",WorkingR!F61,\"\")","v":""},{"$f":"IF(WorkingR!$B61=\"Other Income\",WorkingR!G61,\"\")","v":""},{"$f":"IF(WorkingR!$B61=\"Other Income\",WorkingR!H61,\"\")","v":""},{"$f":"IF(WorkingR!$B61=\"Other Income\",WorkingR!I61,\"\")","v":""},{"$f":"IF(WorkingR!$B61=\"Other Income\",WorkingR!J61,\"\")","v":""},{"$f":"IF(WorkingR!$B61=\"Other Income\",WorkingR!K61,\"\")","v":""},{"$f":"IF(WorkingR!$B61=\"Other Income\",WorkingR!L61,\"\")","v":""},{"$f":"IF(WorkingR!$B61=\"Other Income\",WorkingR!M61,\"\")","v":""},{"$f":"IF(WorkingR!$B61=\"Other Income\",WorkingR!N61,\"\")","v":""},{"$f":"IF(WorkingR!$B61=\"Other Income\",WorkingR!O61,\"\")","v":""},{"$f":"IF(WorkingR!$B61=\"Other Income\",WorkingR!P61,\"\")","v":""},{"$f":"IF(WorkingR!$B61=\"Other Income\",WorkingR!Q61,\"\")","v":""},{"$f":"IF(WorkingR!$B61=\"Other Income\",WorkingR!R61,\"\")","v":""},{"$f":"IF(WorkingR!$B61=\"Other Income\",WorkingR!S61,\"\")","v":""},{"$f":"IF(WorkingR!$B61=\"Other Income\",WorkingR!T61,\"\")","v":""},{"$f":"IF(WorkingR!$B61=\"Other Income\",WorkingR!U61,\"\")","v":""},{"$f":"IF(WorkingR!$B61=\"Other Income\",WorkingR!V61,\"\")","v":""},{"$f":"IF(WorkingR!$B61=\"Other Income\",WorkingR!W61,\"\")","v":""},{"$f":"IF(WorkingR!$B61=\"Other Income\",WorkingR!X61,\"\")","v":""},{"$f":"IF(WorkingR!$B61=\"Other Income\",WorkingR!Y61,\"\")","v":""},{"$f":"IF(Descriptions!D62=\"Other income\",Descriptions!AA62,0)","v":0}]
[{"$f":"IF(Descriptions!D63=\"Other income\",Descriptions!B63,0)","v":0},{"$f":"IF(WorkingR!$B62=\"Other Income\",WorkingR!D62,\"\")","v":""},{"$f":"IF(WorkingR!$B62=\"Other Income\",WorkingR!E62,\"\")","v":""},{"$f":"IF(WorkingR!$B62=\"Other Income\",WorkingR!F62,\"\")","v":""},{"$f":"IF(WorkingR!$B62=\"Other Income\",WorkingR!G62,\"\")","v":""},{"$f":"IF(WorkingR!$B62=\"Other Income\",WorkingR!H62,\"\")","v":""},{"$f":"IF(WorkingR!$B62=\"Other Income\",WorkingR!I62,\"\")","v":""},{"$f":"IF(WorkingR!$B62=\"Other Income\",WorkingR!J62,\"\")","v":""},{"$f":"IF(WorkingR!$B62=\"Other Income\",WorkingR!K62,\"\")","v":""},{"$f":"IF(WorkingR!$B62=\"Other Income\",WorkingR!L62,\"\")","v":""},{"$f":"IF(WorkingR!$B62=\"Other Income\",WorkingR!M62,\"\")","v":""},{"$f":"IF(WorkingR!$B62=\"Other Income\",WorkingR!N62,\"\")","v":""},{"$f":"IF(WorkingR!$B62=\"Other Income\",WorkingR!O62,\"\")","v":""},{"$f":"IF(WorkingR!$B62=\"Other Income\",WorkingR!P62,\"\")","v":""},{"$f":"IF(WorkingR!$B62=\"Other Income\",WorkingR!Q62,\"\")","v":""},{"$f":"IF(WorkingR!$B62=\"Other Income\",WorkingR!R62,\"\")","v":""},{"$f":"IF(WorkingR!$B62=\"Other Income\",WorkingR!S62,\"\")","v":""},{"$f":"IF(WorkingR!$B62=\"Other Income\",WorkingR!T62,\"\")","v":""},{"$f":"IF(WorkingR!$B62=\"Other Income\",WorkingR!U62,\"\")","v":""},{"$f":"IF(WorkingR!$B62=\"Other Income\",WorkingR!V62,\"\")","v":""},{"$f":"IF(WorkingR!$B62=\"Other Income\",WorkingR!W62,\"\")","v":""},{"$f":"IF(WorkingR!$B62=\"Other Income\",WorkingR!X62,\"\")","v":""},{"$f":"IF(WorkingR!$B62=\"Other Income\",WorkingR!Y62,\"\")","v":""},{"$f":"IF(Descriptions!D63=\"Other income\",Descriptions!AA63,0)","v":0}]
[{"$f":"IF(Descriptions!D64=\"Other income\",Descriptions!B64,0)","v":0},{"$f":"IF(WorkingR!$B63=\"Other Income\",WorkingR!D63,\"\")","v":""},{"$f":"IF(WorkingR!$B63=\"Other Income\",WorkingR!E63,\"\")","v":""},{"$f":"IF(WorkingR!$B63=\"Other Income\",WorkingR!F63,\"\")","v":""},{"$f":"IF(WorkingR!$B63=\"Other Income\",WorkingR!G63,\"\")","v":""},{"$f":"IF(WorkingR!$B63=\"Other Income\",WorkingR!H63,\"\")","v":""},{"$f":"IF(WorkingR!$B63=\"Other Income\",WorkingR!I63,\"\")","v":""},{"$f":"IF(WorkingR!$B63=\"Other Income\",WorkingR!J63,\"\")","v":""},{"$f":"IF(WorkingR!$B63=\"Other Income\",WorkingR!K63,\"\")","v":""},{"$f":"IF(WorkingR!$B63=\"Other Income\",WorkingR!L63,\"\")","v":""},{"$f":"IF(WorkingR!$B63=\"Other Income\",WorkingR!M63,\"\")","v":""},{"$f":"IF(WorkingR!$B63=\"Other Income\",WorkingR!N63,\"\")","v":""},{"$f":"IF(WorkingR!$B63=\"Other Income\",WorkingR!O63,\"\")","v":""},{"$f":"IF(WorkingR!$B63=\"Other Income\",WorkingR!P63,\"\")","v":""},{"$f":"IF(WorkingR!$B63=\"Other Income\",WorkingR!Q63,\"\")","v":""},{"$f":"IF(WorkingR!$B63=\"Other Income\",WorkingR!R63,\"\")","v":""},{"$f":"IF(WorkingR!$B63=\"Other Income\",WorkingR!S63,\"\")","v":""},{"$f":"IF(WorkingR!$B63=\"Other Income\",WorkingR!T63,\"\")","v":""},{"$f":"IF(WorkingR!$B63=\"Other Income\",WorkingR!U63,\"\")","v":""},{"$f":"IF(WorkingR!$B63=\"Other Income\",WorkingR!V63,\"\")","v":""},{"$f":"IF(WorkingR!$B63=\"Other Income\",WorkingR!W63,\"\")","v":""},{"$f":"IF(WorkingR!$B63=\"Other Income\",WorkingR!X63,\"\")","v":""},{"$f":"IF(WorkingR!$B63=\"Other Income\",WorkingR!Y63,\"\")","v":""},{"$f":"IF(Descriptions!D64=\"Other income\",Descriptions!AA64,0)","v":0}]
[{"$f":"IF(Descriptions!D65=\"Other income\",Descriptions!B65,0)","v":0},{"$f":"IF(WorkingR!$B64=\"Other Income\",WorkingR!D64,\"\")","v":""},{"$f":"IF(WorkingR!$B64=\"Other Income\",WorkingR!E64,\"\")","v":""},{"$f":"IF(WorkingR!$B64=\"Other Income\",WorkingR!F64,\"\")","v":""},{"$f":"IF(WorkingR!$B64=\"Other Income\",WorkingR!G64,\"\")","v":""},{"$f":"IF(WorkingR!$B64=\"Other Income\",WorkingR!H64,\"\")","v":""},{"$f":"IF(WorkingR!$B64=\"Other Income\",WorkingR!I64,\"\")","v":""},{"$f":"IF(WorkingR!$B64=\"Other Income\",WorkingR!J64,\"\")","v":""},{"$f":"IF(WorkingR!$B64=\"Other Income\",WorkingR!K64,\"\")","v":""},{"$f":"IF(WorkingR!$B64=\"Other Income\",WorkingR!L64,\"\")","v":""},{"$f":"IF(WorkingR!$B64=\"Other Income\",WorkingR!M64,\"\")","v":""},{"$f":"IF(WorkingR!$B64=\"Other Income\",WorkingR!N64,\"\")","v":""},{"$f":"IF(WorkingR!$B64=\"Other Income\",WorkingR!O64,\"\")","v":""},{"$f":"IF(WorkingR!$B64=\"Other Income\",WorkingR!P64,\"\")","v":""},{"$f":"IF(WorkingR!$B64=\"Other Income\",WorkingR!Q64,\"\")","v":""},{"$f":"IF(WorkingR!$B64=\"Other Income\",WorkingR!R64,\"\")","v":""},{"$f":"IF(WorkingR!$B64=\"Other Income\",WorkingR!S64,\"\")","v":""},{"$f":"IF(WorkingR!$B64=\"Other Income\",WorkingR!T64,\"\")","v":""},{"$f":"IF(WorkingR!$B64=\"Other Income\",WorkingR!U64,\"\")","v":""},{"$f":"IF(WorkingR!$B64=\"Other Income\",WorkingR!V64,\"\")","v":""},{"$f":"IF(WorkingR!$B64=\"Other Income\",WorkingR!W64,\"\")","v":""},{"$f":"IF(WorkingR!$B64=\"Other Income\",WorkingR!X64,\"\")","v":""},{"$f":"IF(WorkingR!$B64=\"Other Income\",WorkingR!Y64,\"\")","v":""},{"$f":"IF(Descriptions!D65=\"Other income\",Descriptions!AA65,0)","v":0}]
[{"$f":"IF(Descriptions!D66=\"Other income\",Descriptions!B66,0)","v":0},{"$f":"IF(WorkingR!$B65=\"Other Income\",WorkingR!D65,\"\")","v":""},{"$f":"IF(WorkingR!$B65=\"Other Income\",WorkingR!E65,\"\")","v":""},{"$f":"IF(WorkingR!$B65=\"Other Income\",WorkingR!F65,\"\")","v":""},{"$f":"IF(WorkingR!$B65=\"Other Income\",WorkingR!G65,\"\")","v":""},{"$f":"IF(WorkingR!$B65=\"Other Income\",WorkingR!H65,\"\")","v":""},{"$f":"IF(WorkingR!$B65=\"Other Income\",WorkingR!I65,\"\")","v":""},{"$f":"IF(WorkingR!$B65=\"Other Income\",WorkingR!J65,\"\")","v":""},{"$f":"IF(WorkingR!$B65=\"Other Income\",WorkingR!K65,\"\")","v":""},{"$f":"IF(WorkingR!$B65=\"Other Income\",WorkingR!L65,\"\")","v":""},{"$f":"IF(WorkingR!$B65=\"Other Income\",WorkingR!M65,\"\")","v":""},{"$f":"IF(WorkingR!$B65=\"Other Income\",WorkingR!N65,\"\")","v":""},{"$f":"IF(WorkingR!$B65=\"Other Income\",WorkingR!O65,\"\")","v":""},{"$f":"IF(WorkingR!$B65=\"Other Income\",WorkingR!P65,\"\")","v":""},{"$f":"IF(WorkingR!$B65=\"Other Income\",WorkingR!Q65,\"\")","v":""},{"$f":"IF(WorkingR!$B65=\"Other Income\",WorkingR!R65,\"\")","v":""},{"$f":"IF(WorkingR!$B65=\"Other Income\",WorkingR!S65,\"\")","v":""},{"$f":"IF(WorkingR!$B65=\"Other Income\",WorkingR!T65,\"\")","v":""},{"$f":"IF(WorkingR!$B65=\"Other Income\",WorkingR!U65,\"\")","v":""},{"$f":"IF(WorkingR!$B65=\"Other Income\",WorkingR!V65,\"\")","v":""},{"$f":"IF(WorkingR!$B65=\"Other Income\",WorkingR!W65,\"\")","v":""},{"$f":"IF(WorkingR!$B65=\"Other Income\",WorkingR!X65,\"\")","v":""},{"$f":"IF(WorkingR!$B65=\"Other Income\",WorkingR!Y65,\"\")","v":""},{"$f":"IF(Descriptions!D66=\"Other income\",Descriptions!AA66,0)","v":0}]
[{"$f":"IF(Descriptions!D67=\"Other income\",Descriptions!B67,0)","v":0},{"$f":"IF(WorkingR!$B66=\"Other Income\",WorkingR!D66,\"\")","v":""},{"$f":"IF(WorkingR!$B66=\"Other Income\",WorkingR!E66,\"\")","v":""},{"$f":"IF(WorkingR!$B66=\"Other Income\",WorkingR!F66,\"\")","v":""},{"$f":"IF(WorkingR!$B66=\"Other Income\",WorkingR!G66,\"\")","v":""},{"$f":"IF(WorkingR!$B66=\"Other Income\",WorkingR!H66,\"\")","v":""},{"$f":"IF(WorkingR!$B66=\"Other Income\",WorkingR!I66,\"\")","v":""},{"$f":"IF(WorkingR!$B66=\"Other Income\",WorkingR!J66,\"\")","v":""},{"$f":"IF(WorkingR!$B66=\"Other Income\",WorkingR!K66,\"\")","v":""},{"$f":"IF(WorkingR!$B66=\"Other Income\",WorkingR!L66,\"\")","v":""},{"$f":"IF(WorkingR!$B66=\"Other Income\",WorkingR!M66,\"\")","v":""},{"$f":"IF(WorkingR!$B66=\"Other Income\",WorkingR!N66,\"\")","v":""},{"$f":"IF(WorkingR!$B66=\"Other Income\",WorkingR!O66,\"\")","v":""},{"$f":"IF(WorkingR!$B66=\"Other Income\",WorkingR!P66,\"\")","v":""},{"$f":"IF(WorkingR!$B66=\"Other Income\",WorkingR!Q66,\"\")","v":""},{"$f":"IF(WorkingR!$B66=\"Other Income\",WorkingR!R66,\"\")","v":""},{"$f":"IF(WorkingR!$B66=\"Other Income\",WorkingR!S66,\"\")","v":""},{"$f":"IF(WorkingR!$B66=\"Other Income\",WorkingR!T66,\"\")","v":""},{"$f":"IF(WorkingR!$B66=\"Other Income\",WorkingR!U66,\"\")","v":""},{"$f":"IF(WorkingR!$B66=\"Other Income\",WorkingR!V66,\"\")","v":""},{"$f":"IF(WorkingR!$B66=\"Other Income\",WorkingR!W66,\"\")","v":""},{"$f":"IF(WorkingR!$B66=\"Other Income\",WorkingR!X66,\"\")","v":""},{"$f":"IF(WorkingR!$B66=\"Other Income\",WorkingR!Y66,\"\")","v":""},{"$f":"IF(Descriptions!D67=\"Other income\",Descriptions!AA67,0)","v":0}]
[{"$f":"IF(Descriptions!D68=\"Other income\",Descriptions!B68,0)","v":0},{"$f":"IF(WorkingR!$B67=\"Other Income\",WorkingR!D67,\"\")","v":""},{"$f":"IF(WorkingR!$B67=\"Other Income\",WorkingR!E67,\"\")","v":""},{"$f":"IF(WorkingR!$B67=\"Other Income\",WorkingR!F67,\"\")","v":""},{"$f":"IF(WorkingR!$B67=\"Other Income\",WorkingR!G67,\"\")","v":""},{"$f":"IF(WorkingR!$B67=\"Other Income\",WorkingR!H67,\"\")","v":""},{"$f":"IF(WorkingR!$B67=\"Other Income\",WorkingR!I67,\"\")","v":""},{"$f":"IF(WorkingR!$B67=\"Other Income\",WorkingR!J67,\"\")","v":""},{"$f":"IF(WorkingR!$B67=\"Other Income\",WorkingR!K67,\"\")","v":""},{"$f":"IF(WorkingR!$B67=\"Other Income\",WorkingR!L67,\"\")","v":""},{"$f":"IF(WorkingR!$B67=\"Other Income\",WorkingR!M67,\"\")","v":""},{"$f":"IF(WorkingR!$B67=\"Other Income\",WorkingR!N67,\"\")","v":""},{"$f":"IF(WorkingR!$B67=\"Other Income\",WorkingR!O67,\"\")","v":""},{"$f":"IF(WorkingR!$B67=\"Other Income\",WorkingR!P67,\"\")","v":""},{"$f":"IF(WorkingR!$B67=\"Other Income\",WorkingR!Q67,\"\")","v":""},{"$f":"IF(WorkingR!$B67=\"Other Income\",WorkingR!R67,\"\")","v":""},{"$f":"IF(WorkingR!$B67=\"Other Income\",WorkingR!S67,\"\")","v":""},{"$f":"IF(WorkingR!$B67=\"Other Income\",WorkingR!T67,\"\")","v":""},{"$f":"IF(WorkingR!$B67=\"Other Income\",WorkingR!U67,\"\")","v":""},{"$f":"IF(WorkingR!$B67=\"Other Income\",WorkingR!V67,\"\")","v":""},{"$f":"IF(WorkingR!$B67=\"Other Income\",WorkingR!W67,\"\")","v":""},{"$f":"IF(WorkingR!$B67=\"Other Income\",WorkingR!X67,\"\")","v":""},{"$f":"IF(WorkingR!$B67=\"Other Income\",WorkingR!Y67,\"\")","v":""},{"$f":"IF(Descriptions!D68=\"Other income\",Descriptions!AA68,0)","v":0}]
[{"$f":"IF(Descriptions!D69=\"Other income\",Descriptions!B69,0)","v":0},{"$f":"IF(WorkingR!$B68=\"Other Income\",WorkingR!D68,\"\")","v":""},{"$f":"IF(WorkingR!$B68=\"Other Income\",WorkingR!E68,\"\")","v":""},{"$f":"IF(WorkingR!$B68=\"Other Income\",WorkingR!F68,\"\")","v":""},{"$f":"IF(WorkingR!$B68=\"Other Income\",WorkingR!G68,\"\")","v":""},{"$f":"IF(WorkingR!$B68=\"Other Income\",WorkingR!H68,\"\")","v":""},{"$f":"IF(WorkingR!$B68=\"Other Income\",WorkingR!I68,\"\")","v":""},{"$f":"IF(WorkingR!$B68=\"Other Income\",WorkingR!J68,\"\")","v":""},{"$f":"IF(WorkingR!$B68=\"Other Income\",WorkingR!K68,\"\")","v":""},{"$f":"IF(WorkingR!$B68=\"Other Income\",WorkingR!L68,\"\")","v":""},{"$f":"IF(WorkingR!$B68=\"Other Income\",WorkingR!M68,\"\")","v":""},{"$f":"IF(WorkingR!$B68=\"Other Income\",WorkingR!N68,\"\")","v":""},{"$f":"IF(WorkingR!$B68=\"Other Income\",WorkingR!O68,\"\")","v":""},{"$f":"IF(WorkingR!$B68=\"Other Income\",WorkingR!P68,\"\")","v":""},{"$f":"IF(WorkingR!$B68=\"Other Income\",WorkingR!Q68,\"\")","v":""},{"$f":"IF(WorkingR!$B68=\"Other Income\",WorkingR!R68,\"\")","v":""},{"$f":"IF(WorkingR!$B68=\"Other Income\",WorkingR!S68,\"\")","v":""},{"$f":"IF(WorkingR!$B68=\"Other Income\",WorkingR!T68,\"\")","v":""},{"$f":"IF(WorkingR!$B68=\"Other Income\",WorkingR!U68,\"\")","v":""},{"$f":"IF(WorkingR!$B68=\"Other Income\",WorkingR!V68,\"\")","v":""},{"$f":"IF(WorkingR!$B68=\"Other Income\",WorkingR!W68,\"\")","v":""},{"$f":"IF(WorkingR!$B68=\"Other Income\",WorkingR!X68,\"\")","v":""},{"$f":"IF(WorkingR!$B68=\"Other Income\",WorkingR!Y68,\"\")","v":""},{"$f":"IF(Descriptions!D69=\"Other income\",Descriptions!AA69,0)","v":0}]
[{"$f":"IF(Descriptions!D70=\"Other income\",Descriptions!B70,0)","v":0},{"$f":"IF(WorkingR!$B69=\"Other Income\",WorkingR!D69,\"\")","v":""},{"$f":"IF(WorkingR!$B69=\"Other Income\",WorkingR!E69,\"\")","v":""},{"$f":"IF(WorkingR!$B69=\"Other Income\",WorkingR!F69,\"\")","v":""},{"$f":"IF(WorkingR!$B69=\"Other Income\",WorkingR!G69,\"\")","v":""},{"$f":"IF(WorkingR!$B69=\"Other Income\",WorkingR!H69,\"\")","v":""},{"$f":"IF(WorkingR!$B69=\"Other Income\",WorkingR!I69,\"\")","v":""},{"$f":"IF(WorkingR!$B69=\"Other Income\",WorkingR!J69,\"\")","v":""},{"$f":"IF(WorkingR!$B69=\"Other Income\",WorkingR!K69,\"\")","v":""},{"$f":"IF(WorkingR!$B69=\"Other Income\",WorkingR!L69,\"\")","v":""},{"$f":"IF(WorkingR!$B69=\"Other Income\",WorkingR!M69,\"\")","v":""},{"$f":"IF(WorkingR!$B69=\"Other Income\",WorkingR!N69,\"\")","v":""},{"$f":"IF(WorkingR!$B69=\"Other Income\",WorkingR!O69,\"\")","v":""},{"$f":"IF(WorkingR!$B69=\"Other Income\",WorkingR!P69,\"\")","v":""},{"$f":"IF(WorkingR!$B69=\"Other Income\",WorkingR!Q69,\"\")","v":""},{"$f":"IF(WorkingR!$B69=\"Other Income\",WorkingR!R69,\"\")","v":""},{"$f":"IF(WorkingR!$B69=\"Other Income\",WorkingR!S69,\"\")","v":""},{"$f":"IF(WorkingR!$B69=\"Other Income\",WorkingR!T69,\"\")","v":""},{"$f":"IF(WorkingR!$B69=\"Other Income\",WorkingR!U69,\"\")","v":""},{"$f":"IF(WorkingR!$B69=\"Other Income\",WorkingR!V69,\"\")","v":""},{"$f":"IF(WorkingR!$B69=\"Other Income\",WorkingR!W69,\"\")","v":""},{"$f":"IF(WorkingR!$B69=\"Other Income\",WorkingR!X69,\"\")","v":""},{"$f":"IF(WorkingR!$B69=\"Other Income\",WorkingR!Y69,\"\")","v":""},{"$f":"IF(Descriptions!D70=\"Other income\",Descriptions!AA70,0)","v":0}]
[{"$f":"IF(Descriptions!D71=\"Other income\",Descriptions!B71,0)","v":0},{"$f":"IF(WorkingR!$B70=\"Other Income\",WorkingR!D70,\"\")","v":""},{"$f":"IF(WorkingR!$B70=\"Other Income\",WorkingR!E70,\"\")","v":""},{"$f":"IF(WorkingR!$B70=\"Other Income\",WorkingR!F70,\"\")","v":""},{"$f":"IF(WorkingR!$B70=\"Other Income\",WorkingR!G70,\"\")","v":""},{"$f":"IF(WorkingR!$B70=\"Other Income\",WorkingR!H70,\"\")","v":""},{"$f":"IF(WorkingR!$B70=\"Other Income\",WorkingR!I70,\"\")","v":""},{"$f":"IF(WorkingR!$B70=\"Other Income\",WorkingR!J70,\"\")","v":""},{"$f":"IF(WorkingR!$B70=\"Other Income\",WorkingR!K70,\"\")","v":""},{"$f":"IF(WorkingR!$B70=\"Other Income\",WorkingR!L70,\"\")","v":""},{"$f":"IF(WorkingR!$B70=\"Other Income\",WorkingR!M70,\"\")","v":""},{"$f":"IF(WorkingR!$B70=\"Other Income\",WorkingR!N70,\"\")","v":""},{"$f":"IF(WorkingR!$B70=\"Other Income\",WorkingR!O70,\"\")","v":""},{"$f":"IF(WorkingR!$B70=\"Other Income\",WorkingR!P70,\"\")","v":""},{"$f":"IF(WorkingR!$B70=\"Other Income\",WorkingR!Q70,\"\")","v":""},{"$f":"IF(WorkingR!$B70=\"Other Income\",WorkingR!R70,\"\")","v":""},{"$f":"IF(WorkingR!$B70=\"Other Income\",WorkingR!S70,\"\")","v":""},{"$f":"IF(WorkingR!$B70=\"Other Income\",WorkingR!T70,\"\")","v":""},{"$f":"IF(WorkingR!$B70=\"Other Income\",WorkingR!U70,\"\")","v":""},{"$f":"IF(WorkingR!$B70=\"Other Income\",WorkingR!V70,\"\")","v":""},{"$f":"IF(WorkingR!$B70=\"Other Income\",WorkingR!W70,\"\")","v":""},{"$f":"IF(WorkingR!$B70=\"Other Income\",WorkingR!X70,\"\")","v":""},{"$f":"IF(WorkingR!$B70=\"Other Income\",WorkingR!Y70,\"\")","v":""},{"$f":"IF(Descriptions!D71=\"Other income\",Descriptions!AA71,0)","v":0}]
[{"$f":"IF(Descriptions!D72=\"Other income\",Descriptions!B72,0)","v":0},{"$f":"IF(WorkingR!$B71=\"Other Income\",WorkingR!D71,\"\")","v":""},{"$f":"IF(WorkingR!$B71=\"Other Income\",WorkingR!E71,\"\")","v":""},{"$f":"IF(WorkingR!$B71=\"Other Income\",WorkingR!F71,\"\")","v":""},{"$f":"IF(WorkingR!$B71=\"Other Income\",WorkingR!G71,\"\")","v":""},{"$f":"IF(WorkingR!$B71=\"Other Income\",WorkingR!H71,\"\")","v":""},{"$f":"IF(WorkingR!$B71=\"Other Income\",WorkingR!I71,\"\")","v":""},{"$f":"IF(WorkingR!$B71=\"Other Income\",WorkingR!J71,\"\")","v":""},{"$f":"IF(WorkingR!$B71=\"Other Income\",WorkingR!K71,\"\")","v":""},{"$f":"IF(WorkingR!$B71=\"Other Income\",WorkingR!L71,\"\")","v":""},{"$f":"IF(WorkingR!$B71=\"Other Income\",WorkingR!M71,\"\")","v":""},{"$f":"IF(WorkingR!$B71=\"Other Income\",WorkingR!N71,\"\")","v":""},{"$f":"IF(WorkingR!$B71=\"Other Income\",WorkingR!O71,\"\")","v":""},{"$f":"IF(WorkingR!$B71=\"Other Income\",WorkingR!P71,\"\")","v":""},{"$f":"IF(WorkingR!$B71=\"Other Income\",WorkingR!Q71,\"\")","v":""},{"$f":"IF(WorkingR!$B71=\"Other Income\",WorkingR!R71,\"\")","v":""},{"$f":"IF(WorkingR!$B71=\"Other Income\",WorkingR!S71,\"\")","v":""},{"$f":"IF(WorkingR!$B71=\"Other Income\",WorkingR!T71,\"\")","v":""},{"$f":"IF(WorkingR!$B71=\"Other Income\",WorkingR!U71,\"\")","v":""},{"$f":"IF(WorkingR!$B71=\"Other Income\",WorkingR!V71,\"\")","v":""},{"$f":"IF(WorkingR!$B71=\"Other Income\",WorkingR!W71,\"\")","v":""},{"$f":"IF(WorkingR!$B71=\"Other Income\",WorkingR!X71,\"\")","v":""},{"$f":"IF(WorkingR!$B71=\"Other Income\",WorkingR!Y71,\"\")","v":""},{"$f":"IF(Descriptions!D72=\"Other income\",Descriptions!AA72,0)","v":0}]
[{"$f":"IF(Descriptions!D73=\"Other income\",Descriptions!B73,0)","v":0},{"$f":"IF(WorkingR!$B72=\"Other Income\",WorkingR!D72,\"\")","v":""},{"$f":"IF(WorkingR!$B72=\"Other Income\",WorkingR!E72,\"\")","v":""},{"$f":"IF(WorkingR!$B72=\"Other Income\",WorkingR!F72,\"\")","v":""},{"$f":"IF(WorkingR!$B72=\"Other Income\",WorkingR!G72,\"\")","v":""},{"$f":"IF(WorkingR!$B72=\"Other Income\",WorkingR!H72,\"\")","v":""},{"$f":"IF(WorkingR!$B72=\"Other Income\",WorkingR!I72,\"\")","v":""},{"$f":"IF(WorkingR!$B72=\"Other Income\",WorkingR!J72,\"\")","v":""},{"$f":"IF(WorkingR!$B72=\"Other Income\",WorkingR!K72,\"\")","v":""},{"$f":"IF(WorkingR!$B72=\"Other Income\",WorkingR!L72,\"\")","v":""},{"$f":"IF(WorkingR!$B72=\"Other Income\",WorkingR!M72,\"\")","v":""},{"$f":"IF(WorkingR!$B72=\"Other Income\",WorkingR!N72,\"\")","v":""},{"$f":"IF(WorkingR!$B72=\"Other Income\",WorkingR!O72,\"\")","v":""},{"$f":"IF(WorkingR!$B72=\"Other Income\",WorkingR!P72,\"\")","v":""},{"$f":"IF(WorkingR!$B72=\"Other Income\",WorkingR!Q72,\"\")","v":""},{"$f":"IF(WorkingR!$B72=\"Other Income\",WorkingR!R72,\"\")","v":""},{"$f":"IF(WorkingR!$B72=\"Other Income\",WorkingR!S72,\"\")","v":""},{"$f":"IF(WorkingR!$B72=\"Other Income\",WorkingR!T72,\"\")","v":""},{"$f":"IF(WorkingR!$B72=\"Other Income\",WorkingR!U72,\"\")","v":""},{"$f":"IF(WorkingR!$B72=\"Other Income\",WorkingR!V72,\"\")","v":""},{"$f":"IF(WorkingR!$B72=\"Other Income\",WorkingR!W72,\"\")","v":""},{"$f":"IF(WorkingR!$B72=\"Other Income\",WorkingR!X72,\"\")","v":""},{"$f":"IF(WorkingR!$B72=\"Other Income\",WorkingR!Y72,\"\")","v":""},{"$f":"IF(Descriptions!D73=\"Other income\",Descriptions!AA73,0)","v":0}]
[{"$f":"IF(Descriptions!D74=\"Other income\",Descriptions!B74,0)","v":0},{"$f":"IF(WorkingR!$B73=\"Other Income\",WorkingR!D73,\"\")","v":""},{"$f":"IF(WorkingR!$B73=\"Other Income\",WorkingR!E73,\"\")","v":""},{"$f":"IF(WorkingR!$B73=\"Other Income\",WorkingR!F73,\"\")","v":""},{"$f":"IF(WorkingR!$B73=\"Other Income\",WorkingR!G73,\"\")","v":""},{"$f":"IF(WorkingR!$B73=\"Other Income\",WorkingR!H73,\"\")","v":""},{"$f":"IF(WorkingR!$B73=\"Other Income\",WorkingR!I73,\"\")","v":""},{"$f":"IF(WorkingR!$B73=\"Other Income\",WorkingR!J73,\"\")","v":""},{"$f":"IF(WorkingR!$B73=\"Other Income\",WorkingR!K73,\"\")","v":""},{"$f":"IF(WorkingR!$B73=\"Other Income\",WorkingR!L73,\"\")","v":""},{"$f":"IF(WorkingR!$B73=\"Other Income\",WorkingR!M73,\"\")","v":""},{"$f":"IF(WorkingR!$B73=\"Other Income\",WorkingR!N73,\"\")","v":""},{"$f":"IF(WorkingR!$B73=\"Other Income\",WorkingR!O73,\"\")","v":""},{"$f":"IF(WorkingR!$B73=\"Other Income\",WorkingR!P73,\"\")","v":""},{"$f":"IF(WorkingR!$B73=\"Other Income\",WorkingR!Q73,\"\")","v":""},{"$f":"IF(WorkingR!$B73=\"Other Income\",WorkingR!R73,\"\")","v":""},{"$f":"IF(WorkingR!$B73=\"Other Income\",WorkingR!S73,\"\")","v":""},{"$f":"IF(WorkingR!$B73=\"Other Income\",WorkingR!T73,\"\")","v":""},{"$f":"IF(WorkingR!$B73=\"Other Income\",WorkingR!U73,\"\")","v":""},{"$f":"IF(WorkingR!$B73=\"Other Income\",WorkingR!V73,\"\")","v":""},{"$f":"IF(WorkingR!$B73=\"Other Income\",WorkingR!W73,\"\")","v":""},{"$f":"IF(WorkingR!$B73=\"Other Income\",WorkingR!X73,\"\")","v":""},{"$f":"IF(WorkingR!$B73=\"Other Income\",WorkingR!Y73,\"\")","v":""},{"$f":"IF(Descriptions!D74=\"Other income\",Descriptions!AA74,0)","v":0}]
[{"$f":"IF(Descriptions!D75=\"Other income\",Descriptions!B75,0)","v":0},{"$f":"IF(WorkingR!$B74=\"Other Income\",WorkingR!D74,\"\")","v":""},{"$f":"IF(WorkingR!$B74=\"Other Income\",WorkingR!E74,\"\")","v":""},{"$f":"IF(WorkingR!$B74=\"Other Income\",WorkingR!F74,\"\")","v":""},{"$f":"IF(WorkingR!$B74=\"Other Income\",WorkingR!G74,\"\")","v":""},{"$f":"IF(WorkingR!$B74=\"Other Income\",WorkingR!H74,\"\")","v":""},{"$f":"IF(WorkingR!$B74=\"Other Income\",WorkingR!I74,\"\")","v":""},{"$f":"IF(WorkingR!$B74=\"Other Income\",WorkingR!J74,\"\")","v":""},{"$f":"IF(WorkingR!$B74=\"Other Income\",WorkingR!K74,\"\")","v":""},{"$f":"IF(WorkingR!$B74=\"Other Income\",WorkingR!L74,\"\")","v":""},{"$f":"IF(WorkingR!$B74=\"Other Income\",WorkingR!M74,\"\")","v":""},{"$f":"IF(WorkingR!$B74=\"Other Income\",WorkingR!N74,\"\")","v":""},{"$f":"IF(WorkingR!$B74=\"Other Income\",WorkingR!O74,\"\")","v":""},{"$f":"IF(WorkingR!$B74=\"Other Income\",WorkingR!P74,\"\")","v":""},{"$f":"IF(WorkingR!$B74=\"Other Income\",WorkingR!Q74,\"\")","v":""},{"$f":"IF(WorkingR!$B74=\"Other Income\",WorkingR!R74,\"\")","v":""},{"$f":"IF(WorkingR!$B74=\"Other Income\",WorkingR!S74,\"\")","v":""},{"$f":"IF(WorkingR!$B74=\"Other Income\",WorkingR!T74,\"\")","v":""},{"$f":"IF(WorkingR!$B74=\"Other Income\",WorkingR!U74,\"\")","v":""},{"$f":"IF(WorkingR!$B74=\"Other Income\",WorkingR!V74,\"\")","v":""},{"$f":"IF(WorkingR!$B74=\"Other Income\",WorkingR!W74,\"\")","v":""},{"$f":"IF(WorkingR!$B74=\"Other Income\",WorkingR!X74,\"\")","v":""},{"$f":"IF(WorkingR!$B74=\"Other Income\",WorkingR!Y74,\"\")","v":""},{"$f":"IF(Descriptions!D75=\"Other income\",Descriptions!AA75,0)","v":0}]
[{"$f":"IF(Descriptions!D76=\"Other income\",Descriptions!B76,0)","v":0},{"$f":"IF(WorkingR!$B75=\"Other Income\",WorkingR!D75,\"\")","v":""},{"$f":"IF(WorkingR!$B75=\"Other Income\",WorkingR!E75,\"\")","v":""},{"$f":"IF(WorkingR!$B75=\"Other Income\",WorkingR!F75,\"\")","v":""},{"$f":"IF(WorkingR!$B75=\"Other Income\",WorkingR!G75,\"\")","v":""},{"$f":"IF(WorkingR!$B75=\"Other Income\",WorkingR!H75,\"\")","v":""},{"$f":"IF(WorkingR!$B75=\"Other Income\",WorkingR!I75,\"\")","v":""},{"$f":"IF(WorkingR!$B75=\"Other Income\",WorkingR!J75,\"\")","v":""},{"$f":"IF(WorkingR!$B75=\"Other Income\",WorkingR!K75,\"\")","v":""},{"$f":"IF(WorkingR!$B75=\"Other Income\",WorkingR!L75,\"\")","v":""},{"$f":"IF(WorkingR!$B75=\"Other Income\",WorkingR!M75,\"\")","v":""},{"$f":"IF(WorkingR!$B75=\"Other Income\",WorkingR!N75,\"\")","v":""},{"$f":"IF(WorkingR!$B75=\"Other Income\",WorkingR!O75,\"\")","v":""},{"$f":"IF(WorkingR!$B75=\"Other Income\",WorkingR!P75,\"\")","v":""},{"$f":"IF(WorkingR!$B75=\"Other Income\",WorkingR!Q75,\"\")","v":""},{"$f":"IF(WorkingR!$B75=\"Other Income\",WorkingR!R75,\"\")","v":""},{"$f":"IF(WorkingR!$B75=\"Other Income\",WorkingR!S75,\"\")","v":""},{"$f":"IF(WorkingR!$B75=\"Other Income\",WorkingR!T75,\"\")","v":""},{"$f":"IF(WorkingR!$B75=\"Other Income\",WorkingR!U75,\"\")","v":""},{"$f":"IF(WorkingR!$B75=\"Other Income\",WorkingR!V75,\"\")","v":""},{"$f":"IF(WorkingR!$B75=\"Other Income\",WorkingR!W75,\"\")","v":""},{"$f":"IF(WorkingR!$B75=\"Other Income\",WorkingR!X75,\"\")","v":""},{"$f":"IF(WorkingR!$B75=\"Other Income\",WorkingR!Y75,\"\")","v":""},{"$f":"IF(Descriptions!D76=\"Other income\",Descriptions!AA76,0)","v":0}]
[{"$f":"IF(Descriptions!D77=\"Other income\",Descriptions!B77,0)","v":0},{"$f":"IF(WorkingR!$B76=\"Other Income\",WorkingR!D76,\"\")","v":""},{"$f":"IF(WorkingR!$B76=\"Other Income\",WorkingR!E76,\"\")","v":""},{"$f":"IF(WorkingR!$B76=\"Other Income\",WorkingR!F76,\"\")","v":""},{"$f":"IF(WorkingR!$B76=\"Other Income\",WorkingR!G76,\"\")","v":""},{"$f":"IF(WorkingR!$B76=\"Other Income\",WorkingR!H76,\"\")","v":""},{"$f":"IF(WorkingR!$B76=\"Other Income\",WorkingR!I76,\"\")","v":""},{"$f":"IF(WorkingR!$B76=\"Other Income\",WorkingR!J76,\"\")","v":""},{"$f":"IF(WorkingR!$B76=\"Other Income\",WorkingR!K76,\"\")","v":""},{"$f":"IF(WorkingR!$B76=\"Other Income\",WorkingR!L76,\"\")","v":""},{"$f":"IF(WorkingR!$B76=\"Other Income\",WorkingR!M76,\"\")","v":""},{"$f":"IF(WorkingR!$B76=\"Other Income\",WorkingR!N76,\"\")","v":""},{"$f":"IF(WorkingR!$B76=\"Other Income\",WorkingR!O76,\"\")","v":""},{"$f":"IF(WorkingR!$B76=\"Other Income\",WorkingR!P76,\"\")","v":""},{"$f":"IF(WorkingR!$B76=\"Other Income\",WorkingR!Q76,\"\")","v":""},{"$f":"IF(WorkingR!$B76=\"Other Income\",WorkingR!R76,\"\")","v":""},{"$f":"IF(WorkingR!$B76=\"Other Income\",WorkingR!S76,\"\")","v":""},{"$f":"IF(WorkingR!$B76=\"Other Income\",WorkingR!T76,\"\")","v":""},{"$f":"IF(WorkingR!$B76=\"Other Income\",WorkingR!U76,\"\")","v":""},{"$f":"IF(WorkingR!$B76=\"Other Income\",WorkingR!V76,\"\")","v":""},{"$f":"IF(WorkingR!$B76=\"Other Income\",WorkingR!W76,\"\")","v":""},{"$f":"IF(WorkingR!$B76=\"Other Income\",WorkingR!X76,\"\")","v":""},{"$f":"IF(WorkingR!$B76=\"Other Income\",WorkingR!Y76,\"\")","v":""},{"$f":"IF(Descriptions!D77=\"Other income\",Descriptions!AA77,0)","v":0}]
[{"$f":"IF(Descriptions!D78=\"Other income\",Descriptions!B78,0)","v":0},{"$f":"IF(WorkingR!$B77=\"Other Income\",WorkingR!D77,\"\")","v":""},{"$f":"IF(WorkingR!$B77=\"Other Income\",WorkingR!E77,\"\")","v":""},{"$f":"IF(WorkingR!$B77=\"Other Income\",WorkingR!F77,\"\")","v":""},{"$f":"IF(WorkingR!$B77=\"Other Income\",WorkingR!G77,\"\")","v":""},{"$f":"IF(WorkingR!$B77=\"Other Income\",WorkingR!H77,\"\")","v":""},{"$f":"IF(WorkingR!$B77=\"Other Income\",WorkingR!I77,\"\")","v":""},{"$f":"IF(WorkingR!$B77=\"Other Income\",WorkingR!J77,\"\")","v":""},{"$f":"IF(WorkingR!$B77=\"Other Income\",WorkingR!K77,\"\")","v":""},{"$f":"IF(WorkingR!$B77=\"Other Income\",WorkingR!L77,\"\")","v":""},{"$f":"IF(WorkingR!$B77=\"Other Income\",WorkingR!M77,\"\")","v":""},{"$f":"IF(WorkingR!$B77=\"Other Income\",WorkingR!N77,\"\")","v":""},{"$f":"IF(WorkingR!$B77=\"Other Income\",WorkingR!O77,\"\")","v":""},{"$f":"IF(WorkingR!$B77=\"Other Income\",WorkingR!P77,\"\")","v":""},{"$f":"IF(WorkingR!$B77=\"Other Income\",WorkingR!Q77,\"\")","v":""},{"$f":"IF(WorkingR!$B77=\"Other Income\",WorkingR!R77,\"\")","v":""},{"$f":"IF(WorkingR!$B77=\"Other Income\",WorkingR!S77,\"\")","v":""},{"$f":"IF(WorkingR!$B77=\"Other Income\",WorkingR!T77,\"\")","v":""},{"$f":"IF(WorkingR!$B77=\"Other Income\",WorkingR!U77,\"\")","v":""},{"$f":"IF(WorkingR!$B77=\"Other Income\",WorkingR!V77,\"\")","v":""},{"$f":"IF(WorkingR!$B77=\"Other Income\",WorkingR!W77,\"\")","v":""},{"$f":"IF(WorkingR!$B77=\"Other Income\",WorkingR!X77,\"\")","v":""},{"$f":"IF(WorkingR!$B77=\"Other Income\",WorkingR!Y77,\"\")","v":""},{"$f":"IF(Descriptions!D78=\"Other income\",Descriptions!AA78,0)","v":0}]
[{"$f":"IF(Descriptions!D79=\"Other income\",Descriptions!B79,0)","v":0},{"$f":"IF(WorkingR!$B78=\"Other Income\",WorkingR!D78,\"\")","v":""},{"$f":"IF(WorkingR!$B78=\"Other Income\",WorkingR!E78,\"\")","v":""},{"$f":"IF(WorkingR!$B78=\"Other Income\",WorkingR!F78,\"\")","v":""},{"$f":"IF(WorkingR!$B78=\"Other Income\",WorkingR!G78,\"\")","v":""},{"$f":"IF(WorkingR!$B78=\"Other Income\",WorkingR!H78,\"\")","v":""},{"$f":"IF(WorkingR!$B78=\"Other Income\",WorkingR!I78,\"\")","v":""},{"$f":"IF(WorkingR!$B78=\"Other Income\",WorkingR!J78,\"\")","v":""},{"$f":"IF(WorkingR!$B78=\"Other Income\",WorkingR!K78,\"\")","v":""},{"$f":"IF(WorkingR!$B78=\"Other Income\",WorkingR!L78,\"\")","v":""},{"$f":"IF(WorkingR!$B78=\"Other Income\",WorkingR!M78,\"\")","v":""},{"$f":"IF(WorkingR!$B78=\"Other Income\",WorkingR!N78,\"\")","v":""},{"$f":"IF(WorkingR!$B78=\"Other Income\",WorkingR!O78,\"\")","v":""},{"$f":"IF(WorkingR!$B78=\"Other Income\",WorkingR!P78,\"\")","v":""},{"$f":"IF(WorkingR!$B78=\"Other Income\",WorkingR!Q78,\"\")","v":""},{"$f":"IF(WorkingR!$B78=\"Other Income\",WorkingR!R78,\"\")","v":""},{"$f":"IF(WorkingR!$B78=\"Other Income\",WorkingR!S78,\"\")","v":""},{"$f":"IF(WorkingR!$B78=\"Other Income\",WorkingR!T78,\"\")","v":""},{"$f":"IF(WorkingR!$B78=\"Other Income\",WorkingR!U78,\"\")","v":""},{"$f":"IF(WorkingR!$B78=\"Other Income\",WorkingR!V78,\"\")","v":""},{"$f":"IF(WorkingR!$B78=\"Other Income\",WorkingR!W78,\"\")","v":""},{"$f":"IF(WorkingR!$B78=\"Other Income\",WorkingR!X78,\"\")","v":""},{"$f":"IF(WorkingR!$B78=\"Other Income\",WorkingR!Y78,\"\")","v":""},{"$f":"IF(Descriptions!D79=\"Other income\",Descriptions!AA79,0)","v":0}]
[{"$f":"IF(Descriptions!D80=\"Other income\",Descriptions!B80,0)","v":0},{"$f":"IF(WorkingR!$B79=\"Other Income\",WorkingR!D79,\"\")","v":""},{"$f":"IF(WorkingR!$B79=\"Other Income\",WorkingR!E79,\"\")","v":""},{"$f":"IF(WorkingR!$B79=\"Other Income\",WorkingR!F79,\"\")","v":""},{"$f":"IF(WorkingR!$B79=\"Other Income\",WorkingR!G79,\"\")","v":""},{"$f":"IF(WorkingR!$B79=\"Other Income\",WorkingR!H79,\"\")","v":""},{"$f":"IF(WorkingR!$B79=\"Other Income\",WorkingR!I79,\"\")","v":""},{"$f":"IF(WorkingR!$B79=\"Other Income\",WorkingR!J79,\"\")","v":""},{"$f":"IF(WorkingR!$B79=\"Other Income\",WorkingR!K79,\"\")","v":""},{"$f":"IF(WorkingR!$B79=\"Other Income\",WorkingR!L79,\"\")","v":""},{"$f":"IF(WorkingR!$B79=\"Other Income\",WorkingR!M79,\"\")","v":""},{"$f":"IF(WorkingR!$B79=\"Other Income\",WorkingR!N79,\"\")","v":""},{"$f":"IF(WorkingR!$B79=\"Other Income\",WorkingR!O79,\"\")","v":""},{"$f":"IF(WorkingR!$B79=\"Other Income\",WorkingR!P79,\"\")","v":""},{"$f":"IF(WorkingR!$B79=\"Other Income\",WorkingR!Q79,\"\")","v":""},{"$f":"IF(WorkingR!$B79=\"Other Income\",WorkingR!R79,\"\")","v":""},{"$f":"IF(WorkingR!$B79=\"Other Income\",WorkingR!S79,\"\")","v":""},{"$f":"IF(WorkingR!$B79=\"Other Income\",WorkingR!T79,\"\")","v":""},{"$f":"IF(WorkingR!$B79=\"Other Income\",WorkingR!U79,\"\")","v":""},{"$f":"IF(WorkingR!$B79=\"Other Income\",WorkingR!V79,\"\")","v":""},{"$f":"IF(WorkingR!$B79=\"Other Income\",WorkingR!W79,\"\")","v":""},{"$f":"IF(WorkingR!$B79=\"Other Income\",WorkingR!X79,\"\")","v":""},{"$f":"IF(WorkingR!$B79=\"Other Income\",WorkingR!Y79,\"\")","v":""},{"$f":"IF(Descriptions!D80=\"Other income\",Descriptions!AA80,0)","v":0}]
[{"$f":"IF(Descriptions!D81=\"Other income\",Descriptions!B81,0)","v":0},{"$f":"IF(WorkingR!$B80=\"Other Income\",WorkingR!D80,\"\")","v":""},{"$f":"IF(WorkingR!$B80=\"Other Income\",WorkingR!E80,\"\")","v":""},{"$f":"IF(WorkingR!$B80=\"Other Income\",WorkingR!F80,\"\")","v":""},{"$f":"IF(WorkingR!$B80=\"Other Income\",WorkingR!G80,\"\")","v":""},{"$f":"IF(WorkingR!$B80=\"Other Income\",WorkingR!H80,\"\")","v":""},{"$f":"IF(WorkingR!$B80=\"Other Income\",WorkingR!I80,\"\")","v":""},{"$f":"IF(WorkingR!$B80=\"Other Income\",WorkingR!J80,\"\")","v":""},{"$f":"IF(WorkingR!$B80=\"Other Income\",WorkingR!K80,\"\")","v":""},{"$f":"IF(WorkingR!$B80=\"Other Income\",WorkingR!L80,\"\")","v":""},{"$f":"IF(WorkingR!$B80=\"Other Income\",WorkingR!M80,\"\")","v":""},{"$f":"IF(WorkingR!$B80=\"Other Income\",WorkingR!N80,\"\")","v":""},{"$f":"IF(WorkingR!$B80=\"Other Income\",WorkingR!O80,\"\")","v":""},{"$f":"IF(WorkingR!$B80=\"Other Income\",WorkingR!P80,\"\")","v":""},{"$f":"IF(WorkingR!$B80=\"Other Income\",WorkingR!Q80,\"\")","v":""},{"$f":"IF(WorkingR!$B80=\"Other Income\",WorkingR!R80,\"\")","v":""},{"$f":"IF(WorkingR!$B80=\"Other Income\",WorkingR!S80,\"\")","v":""},{"$f":"IF(WorkingR!$B80=\"Other Income\",WorkingR!T80,\"\")","v":""},{"$f":"IF(WorkingR!$B80=\"Other Income\",WorkingR!U80,\"\")","v":""},{"$f":"IF(WorkingR!$B80=\"Other Income\",WorkingR!V80,\"\")","v":""},{"$f":"IF(WorkingR!$B80=\"Other Income\",WorkingR!W80,\"\")","v":""},{"$f":"IF(WorkingR!$B80=\"Other Income\",WorkingR!X80,\"\")","v":""},{"$f":"IF(WorkingR!$B80=\"Other Income\",WorkingR!Y80,\"\")","v":""},{"$f":"IF(Descriptions!D81=\"Other income\",Descriptions!AA81,0)","v":0}]
[{"$f":"IF(Descriptions!D82=\"Other income\",Descriptions!B82,0)","v":0},{"$f":"IF(WorkingR!$B81=\"Other Income\",WorkingR!D81,\"\")","v":""},{"$f":"IF(WorkingR!$B81=\"Other Income\",WorkingR!E81,\"\")","v":""},{"$f":"IF(WorkingR!$B81=\"Other Income\",WorkingR!F81,\"\")","v":""},{"$f":"IF(WorkingR!$B81=\"Other Income\",WorkingR!G81,\"\")","v":""},{"$f":"IF(WorkingR!$B81=\"Other Income\",WorkingR!H81,\"\")","v":""},{"$f":"IF(WorkingR!$B81=\"Other Income\",WorkingR!I81,\"\")","v":""},{"$f":"IF(WorkingR!$B81=\"Other Income\",WorkingR!J81,\"\")","v":""},{"$f":"IF(WorkingR!$B81=\"Other Income\",WorkingR!K81,\"\")","v":""},{"$f":"IF(WorkingR!$B81=\"Other Income\",WorkingR!L81,\"\")","v":""},{"$f":"IF(WorkingR!$B81=\"Other Income\",WorkingR!M81,\"\")","v":""},{"$f":"IF(WorkingR!$B81=\"Other Income\",WorkingR!N81,\"\")","v":""},{"$f":"IF(WorkingR!$B81=\"Other Income\",WorkingR!O81,\"\")","v":""},{"$f":"IF(WorkingR!$B81=\"Other Income\",WorkingR!P81,\"\")","v":""},{"$f":"IF(WorkingR!$B81=\"Other Income\",WorkingR!Q81,\"\")","v":""},{"$f":"IF(WorkingR!$B81=\"Other Income\",WorkingR!R81,\"\")","v":""},{"$f":"IF(WorkingR!$B81=\"Other Income\",WorkingR!S81,\"\")","v":""},{"$f":"IF(WorkingR!$B81=\"Other Income\",WorkingR!T81,\"\")","v":""},{"$f":"IF(WorkingR!$B81=\"Other Income\",WorkingR!U81,\"\")","v":""},{"$f":"IF(WorkingR!$B81=\"Other Income\",WorkingR!V81,\"\")","v":""},{"$f":"IF(WorkingR!$B81=\"Other Income\",WorkingR!W81,\"\")","v":""},{"$f":"IF(WorkingR!$B81=\"Other Income\",WorkingR!X81,\"\")","v":""},{"$f":"IF(WorkingR!$B81=\"Other Income\",WorkingR!Y81,\"\")","v":""},{"$f":"IF(Descriptions!D82=\"Other income\",Descriptions!AA82,0)","v":0}]
[{"$f":"IF(Descriptions!D83=\"Other income\",Descriptions!B83,0)","v":0},{"$f":"IF(WorkingR!$B82=\"Other Income\",WorkingR!D82,\"\")","v":""},{"$f":"IF(WorkingR!$B82=\"Other Income\",WorkingR!E82,\"\")","v":""},{"$f":"IF(WorkingR!$B82=\"Other Income\",WorkingR!F82,\"\")","v":""},{"$f":"IF(WorkingR!$B82=\"Other Income\",WorkingR!G82,\"\")","v":""},{"$f":"IF(WorkingR!$B82=\"Other Income\",WorkingR!H82,\"\")","v":""},{"$f":"IF(WorkingR!$B82=\"Other Income\",WorkingR!I82,\"\")","v":""},{"$f":"IF(WorkingR!$B82=\"Other Income\",WorkingR!J82,\"\")","v":""},{"$f":"IF(WorkingR!$B82=\"Other Income\",WorkingR!K82,\"\")","v":""},{"$f":"IF(WorkingR!$B82=\"Other Income\",WorkingR!L82,\"\")","v":""},{"$f":"IF(WorkingR!$B82=\"Other Income\",WorkingR!M82,\"\")","v":""},{"$f":"IF(WorkingR!$B82=\"Other Income\",WorkingR!N82,\"\")","v":""},{"$f":"IF(WorkingR!$B82=\"Other Income\",WorkingR!O82,\"\")","v":""},{"$f":"IF(WorkingR!$B82=\"Other Income\",WorkingR!P82,\"\")","v":""},{"$f":"IF(WorkingR!$B82=\"Other Income\",WorkingR!Q82,\"\")","v":""},{"$f":"IF(WorkingR!$B82=\"Other Income\",WorkingR!R82,\"\")","v":""},{"$f":"IF(WorkingR!$B82=\"Other Income\",WorkingR!S82,\"\")","v":""},{"$f":"IF(WorkingR!$B82=\"Other Income\",WorkingR!T82,\"\")","v":""},{"$f":"IF(WorkingR!$B82=\"Other Income\",WorkingR!U82,\"\")","v":""},{"$f":"IF(WorkingR!$B82=\"Other Income\",WorkingR!V82,\"\")","v":""},{"$f":"IF(WorkingR!$B82=\"Other Income\",WorkingR!W82,\"\")","v":""},{"$f":"IF(WorkingR!$B82=\"Other Income\",WorkingR!X82,\"\")","v":""},{"$f":"IF(WorkingR!$B82=\"Other Income\",WorkingR!Y82,\"\")","v":""},{"$f":"IF(Descriptions!D83=\"Other income\",Descriptions!AA83,0)","v":0}]
[{"$f":"IF(Descriptions!D84=\"Other income\",Descriptions!B84,0)","v":0},{"$f":"IF(WorkingR!$B83=\"Other Income\",WorkingR!D83,\"\")","v":""},{"$f":"IF(WorkingR!$B83=\"Other Income\",WorkingR!E83,\"\")","v":""},{"$f":"IF(WorkingR!$B83=\"Other Income\",WorkingR!F83,\"\")","v":""},{"$f":"IF(WorkingR!$B83=\"Other Income\",WorkingR!G83,\"\")","v":""},{"$f":"IF(WorkingR!$B83=\"Other Income\",WorkingR!H83,\"\")","v":""},{"$f":"IF(WorkingR!$B83=\"Other Income\",WorkingR!I83,\"\")","v":""},{"$f":"IF(WorkingR!$B83=\"Other Income\",WorkingR!J83,\"\")","v":""},{"$f":"IF(WorkingR!$B83=\"Other Income\",WorkingR!K83,\"\")","v":""},{"$f":"IF(WorkingR!$B83=\"Other Income\",WorkingR!L83,\"\")","v":""},{"$f":"IF(WorkingR!$B83=\"Other Income\",WorkingR!M83,\"\")","v":""},{"$f":"IF(WorkingR!$B83=\"Other Income\",WorkingR!N83,\"\")","v":""},{"$f":"IF(WorkingR!$B83=\"Other Income\",WorkingR!O83,\"\")","v":""},{"$f":"IF(WorkingR!$B83=\"Other Income\",WorkingR!P83,\"\")","v":""},{"$f":"IF(WorkingR!$B83=\"Other Income\",WorkingR!Q83,\"\")","v":""},{"$f":"IF(WorkingR!$B83=\"Other Income\",WorkingR!R83,\"\")","v":""},{"$f":"IF(WorkingR!$B83=\"Other Income\",WorkingR!S83,\"\")","v":""},{"$f":"IF(WorkingR!$B83=\"Other Income\",WorkingR!T83,\"\")","v":""},{"$f":"IF(WorkingR!$B83=\"Other Income\",WorkingR!U83,\"\")","v":""},{"$f":"IF(WorkingR!$B83=\"Other Income\",WorkingR!V83,\"\")","v":""},{"$f":"IF(WorkingR!$B83=\"Other Income\",WorkingR!W83,\"\")","v":""},{"$f":"IF(WorkingR!$B83=\"Other Income\",WorkingR!X83,\"\")","v":""},{"$f":"IF(WorkingR!$B83=\"Other Income\",WorkingR!Y83,\"\")","v":""},{"$f":"IF(Descriptions!D84=\"Other income\",Descriptions!AA84,0)","v":0}]
[{"$f":"IF(Descriptions!D85=\"Other income\",Descriptions!B85,0)","v":0},{"$f":"IF(WorkingR!$B84=\"Other Income\",WorkingR!D84,\"\")","v":""},{"$f":"IF(WorkingR!$B84=\"Other Income\",WorkingR!E84,\"\")","v":""},{"$f":"IF(WorkingR!$B84=\"Other Income\",WorkingR!F84,\"\")","v":""},{"$f":"IF(WorkingR!$B84=\"Other Income\",WorkingR!G84,\"\")","v":""},{"$f":"IF(WorkingR!$B84=\"Other Income\",WorkingR!H84,\"\")","v":""},{"$f":"IF(WorkingR!$B84=\"Other Income\",WorkingR!I84,\"\")","v":""},{"$f":"IF(WorkingR!$B84=\"Other Income\",WorkingR!J84,\"\")","v":""},{"$f":"IF(WorkingR!$B84=\"Other Income\",WorkingR!K84,\"\")","v":""},{"$f":"IF(WorkingR!$B84=\"Other Income\",WorkingR!L84,\"\")","v":""},{"$f":"IF(WorkingR!$B84=\"Other Income\",WorkingR!M84,\"\")","v":""},{"$f":"IF(WorkingR!$B84=\"Other Income\",WorkingR!N84,\"\")","v":""},{"$f":"IF(WorkingR!$B84=\"Other Income\",WorkingR!O84,\"\")","v":""},{"$f":"IF(WorkingR!$B84=\"Other Income\",WorkingR!P84,\"\")","v":""},{"$f":"IF(WorkingR!$B84=\"Other Income\",WorkingR!Q84,\"\")","v":""},{"$f":"IF(WorkingR!$B84=\"Other Income\",WorkingR!R84,\"\")","v":""},{"$f":"IF(WorkingR!$B84=\"Other Income\",WorkingR!S84,\"\")","v":""},{"$f":"IF(WorkingR!$B84=\"Other Income\",WorkingR!T84,\"\")","v":""},{"$f":"IF(WorkingR!$B84=\"Other Income\",WorkingR!U84,\"\")","v":""},{"$f":"IF(WorkingR!$B84=\"Other Income\",WorkingR!V84,\"\")","v":""},{"$f":"IF(WorkingR!$B84=\"Other Income\",WorkingR!W84,\"\")","v":""},{"$f":"IF(WorkingR!$B84=\"Other Income\",WorkingR!X84,\"\")","v":""},{"$f":"IF(WorkingR!$B84=\"Other Income\",WorkingR!Y84,\"\")","v":""},{"$f":"IF(Descriptions!D85=\"Other income\",Descriptions!AA85,0)","v":0}]
[{"$f":"IF(Descriptions!D86=\"Other income\",Descriptions!B86,0)","v":0},{"$f":"IF(WorkingR!$B85=\"Other Income\",WorkingR!D85,\"\")","v":""},{"$f":"IF(WorkingR!$B85=\"Other Income\",WorkingR!E85,\"\")","v":""},{"$f":"IF(WorkingR!$B85=\"Other Income\",WorkingR!F85,\"\")","v":""},{"$f":"IF(WorkingR!$B85=\"Other Income\",WorkingR!G85,\"\")","v":""},{"$f":"IF(WorkingR!$B85=\"Other Income\",WorkingR!H85,\"\")","v":""},{"$f":"IF(WorkingR!$B85=\"Other Income\",WorkingR!I85,\"\")","v":""},{"$f":"IF(WorkingR!$B85=\"Other Income\",WorkingR!J85,\"\")","v":""},{"$f":"IF(WorkingR!$B85=\"Other Income\",WorkingR!K85,\"\")","v":""},{"$f":"IF(WorkingR!$B85=\"Other Income\",WorkingR!L85,\"\")","v":""},{"$f":"IF(WorkingR!$B85=\"Other Income\",WorkingR!M85,\"\")","v":""},{"$f":"IF(WorkingR!$B85=\"Other Income\",WorkingR!N85,\"\")","v":""},{"$f":"IF(WorkingR!$B85=\"Other Income\",WorkingR!O85,\"\")","v":""},{"$f":"IF(WorkingR!$B85=\"Other Income\",WorkingR!P85,\"\")","v":""},{"$f":"IF(WorkingR!$B85=\"Other Income\",WorkingR!Q85,\"\")","v":""},{"$f":"IF(WorkingR!$B85=\"Other Income\",WorkingR!R85,\"\")","v":""},{"$f":"IF(WorkingR!$B85=\"Other Income\",WorkingR!S85,\"\")","v":""},{"$f":"IF(WorkingR!$B85=\"Other Income\",WorkingR!T85,\"\")","v":""},{"$f":"IF(WorkingR!$B85=\"Other Income\",WorkingR!U85,\"\")","v":""},{"$f":"IF(WorkingR!$B85=\"Other Income\",WorkingR!V85,\"\")","v":""},{"$f":"IF(WorkingR!$B85=\"Other Income\",WorkingR!W85,\"\")","v":""},{"$f":"IF(WorkingR!$B85=\"Other Income\",WorkingR!X85,\"\")","v":""},{"$f":"IF(WorkingR!$B85=\"Other Income\",WorkingR!Y85,\"\")","v":""},{"$f":"IF(Descriptions!D86=\"Other income\",Descriptions!AA86,0)","v":0}]
[{"$f":"IF(Descriptions!D87=\"Other income\",Descriptions!B87,0)","v":0},{"$f":"IF(WorkingR!$B86=\"Other Income\",WorkingR!D86,\"\")","v":""},{"$f":"IF(WorkingR!$B86=\"Other Income\",WorkingR!E86,\"\")","v":""},{"$f":"IF(WorkingR!$B86=\"Other Income\",WorkingR!F86,\"\")","v":""},{"$f":"IF(WorkingR!$B86=\"Other Income\",WorkingR!G86,\"\")","v":""},{"$f":"IF(WorkingR!$B86=\"Other Income\",WorkingR!H86,\"\")","v":""},{"$f":"IF(WorkingR!$B86=\"Other Income\",WorkingR!I86,\"\")","v":""},{"$f":"IF(WorkingR!$B86=\"Other Income\",WorkingR!J86,\"\")","v":""},{"$f":"IF(WorkingR!$B86=\"Other Income\",WorkingR!K86,\"\")","v":""},{"$f":"IF(WorkingR!$B86=\"Other Income\",WorkingR!L86,\"\")","v":""},{"$f":"IF(WorkingR!$B86=\"Other Income\",WorkingR!M86,\"\")","v":""},{"$f":"IF(WorkingR!$B86=\"Other Income\",WorkingR!N86,\"\")","v":""},{"$f":"IF(WorkingR!$B86=\"Other Income\",WorkingR!O86,\"\")","v":""},{"$f":"IF(WorkingR!$B86=\"Other Income\",WorkingR!P86,\"\")","v":""},{"$f":"IF(WorkingR!$B86=\"Other Income\",WorkingR!Q86,\"\")","v":""},{"$f":"IF(WorkingR!$B86=\"Other Income\",WorkingR!R86,\"\")","v":""},{"$f":"IF(WorkingR!$B86=\"Other Income\",WorkingR!S86,\"\")","v":""},{"$f":"IF(WorkingR!$B86=\"Other Income\",WorkingR!T86,\"\")","v":""},{"$f":"IF(WorkingR!$B86=\"Other Income\",WorkingR!U86,\"\")","v":""},{"$f":"IF(WorkingR!$B86=\"Other Income\",WorkingR!V86,\"\")","v":""},{"$f":"IF(WorkingR!$B86=\"Other Income\",WorkingR!W86,\"\")","v":""},{"$f":"IF(WorkingR!$B86=\"Other Income\",WorkingR!X86,\"\")","v":""},{"$f":"IF(WorkingR!$B86=\"Other Income\",WorkingR!Y86,\"\")","v":""},{"$f":"IF(Descriptions!D87=\"Other income\",Descriptions!AA87,0)","v":0}]
[{"$f":"IF(Descriptions!D88=\"Other income\",Descriptions!B88,0)","v":0},{"$f":"IF(WorkingR!$B87=\"Other Income\",WorkingR!D87,\"\")","v":""},{"$f":"IF(WorkingR!$B87=\"Other Income\",WorkingR!E87,\"\")","v":""},{"$f":"IF(WorkingR!$B87=\"Other Income\",WorkingR!F87,\"\")","v":""},{"$f":"IF(WorkingR!$B87=\"Other Income\",WorkingR!G87,\"\")","v":""},{"$f":"IF(WorkingR!$B87=\"Other Income\",WorkingR!H87,\"\")","v":""},{"$f":"IF(WorkingR!$B87=\"Other Income\",WorkingR!I87,\"\")","v":""},{"$f":"IF(WorkingR!$B87=\"Other Income\",WorkingR!J87,\"\")","v":""},{"$f":"IF(WorkingR!$B87=\"Other Income\",WorkingR!K87,\"\")","v":""},{"$f":"IF(WorkingR!$B87=\"Other Income\",WorkingR!L87,\"\")","v":""},{"$f":"IF(WorkingR!$B87=\"Other Income\",WorkingR!M87,\"\")","v":""},{"$f":"IF(WorkingR!$B87=\"Other Income\",WorkingR!N87,\"\")","v":""},{"$f":"IF(WorkingR!$B87=\"Other Income\",WorkingR!O87,\"\")","v":""},{"$f":"IF(WorkingR!$B87=\"Other Income\",WorkingR!P87,\"\")","v":""},{"$f":"IF(WorkingR!$B87=\"Other Income\",WorkingR!Q87,\"\")","v":""},{"$f":"IF(WorkingR!$B87=\"Other Income\",WorkingR!R87,\"\")","v":""},{"$f":"IF(WorkingR!$B87=\"Other Income\",WorkingR!S87,\"\")","v":""},{"$f":"IF(WorkingR!$B87=\"Other Income\",WorkingR!T87,\"\")","v":""},{"$f":"IF(WorkingR!$B87=\"Other Income\",WorkingR!U87,\"\")","v":""},{"$f":"IF(WorkingR!$B87=\"Other Income\",WorkingR!V87,\"\")","v":""},{"$f":"IF(WorkingR!$B87=\"Other Income\",WorkingR!W87,\"\")","v":""},{"$f":"IF(WorkingR!$B87=\"Other Income\",WorkingR!X87,\"\")","v":""},{"$f":"IF(WorkingR!$B87=\"Other Income\",WorkingR!Y87,\"\")","v":""},{"$f":"IF(Descriptions!D88=\"Other income\",Descriptions!AA88,0)","v":0}]
[{"$f":"IF(Descriptions!D89=\"Other income\",Descriptions!B89,0)","v":0},{"$f":"IF(WorkingR!$B88=\"Other Income\",WorkingR!D88,\"\")","v":""},{"$f":"IF(WorkingR!$B88=\"Other Income\",WorkingR!E88,\"\")","v":""},{"$f":"IF(WorkingR!$B88=\"Other Income\",WorkingR!F88,\"\")","v":""},{"$f":"IF(WorkingR!$B88=\"Other Income\",WorkingR!G88,\"\")","v":""},{"$f":"IF(WorkingR!$B88=\"Other Income\",WorkingR!H88,\"\")","v":""},{"$f":"IF(WorkingR!$B88=\"Other Income\",WorkingR!I88,\"\")","v":""},{"$f":"IF(WorkingR!$B88=\"Other Income\",WorkingR!J88,\"\")","v":""},{"$f":"IF(WorkingR!$B88=\"Other Income\",WorkingR!K88,\"\")","v":""},{"$f":"IF(WorkingR!$B88=\"Other Income\",WorkingR!L88,\"\")","v":""},{"$f":"IF(WorkingR!$B88=\"Other Income\",WorkingR!M88,\"\")","v":""},{"$f":"IF(WorkingR!$B88=\"Other Income\",WorkingR!N88,\"\")","v":""},{"$f":"IF(WorkingR!$B88=\"Other Income\",WorkingR!O88,\"\")","v":""},{"$f":"IF(WorkingR!$B88=\"Other Income\",WorkingR!P88,\"\")","v":""},{"$f":"IF(WorkingR!$B88=\"Other Income\",WorkingR!Q88,\"\")","v":""},{"$f":"IF(WorkingR!$B88=\"Other Income\",WorkingR!R88,\"\")","v":""},{"$f":"IF(WorkingR!$B88=\"Other Income\",WorkingR!S88,\"\")","v":""},{"$f":"IF(WorkingR!$B88=\"Other Income\",WorkingR!T88,\"\")","v":""},{"$f":"IF(WorkingR!$B88=\"Other Income\",WorkingR!U88,\"\")","v":""},{"$f":"IF(WorkingR!$B88=\"Other Income\",WorkingR!V88,\"\")","v":""},{"$f":"IF(WorkingR!$B88=\"Other Income\",WorkingR!W88,\"\")","v":""},{"$f":"IF(WorkingR!$B88=\"Other Income\",WorkingR!X88,\"\")","v":""},{"$f":"IF(WorkingR!$B88=\"Other Income\",WorkingR!Y88,\"\")","v":""},{"$f":"IF(Descriptions!D89=\"Other income\",Descriptions!AA89,0)","v":0}]
[{"$f":"IF(Descriptions!D90=\"Other income\",Descriptions!B90,0)","v":0},{"$f":"IF(WorkingR!$B89=\"Other Income\",WorkingR!D89,\"\")","v":""},{"$f":"IF(WorkingR!$B89=\"Other Income\",WorkingR!E89,\"\")","v":""},{"$f":"IF(WorkingR!$B89=\"Other Income\",WorkingR!F89,\"\")","v":""},{"$f":"IF(WorkingR!$B89=\"Other Income\",WorkingR!G89,\"\")","v":""},{"$f":"IF(WorkingR!$B89=\"Other Income\",WorkingR!H89,\"\")","v":""},{"$f":"IF(WorkingR!$B89=\"Other Income\",WorkingR!I89,\"\")","v":""},{"$f":"IF(WorkingR!$B89=\"Other Income\",WorkingR!J89,\"\")","v":""},{"$f":"IF(WorkingR!$B89=\"Other Income\",WorkingR!K89,\"\")","v":""},{"$f":"IF(WorkingR!$B89=\"Other Income\",WorkingR!L89,\"\")","v":""},{"$f":"IF(WorkingR!$B89=\"Other Income\",WorkingR!M89,\"\")","v":""},{"$f":"IF(WorkingR!$B89=\"Other Income\",WorkingR!N89,\"\")","v":""},{"$f":"IF(WorkingR!$B89=\"Other Income\",WorkingR!O89,\"\")","v":""},{"$f":"IF(WorkingR!$B89=\"Other Income\",WorkingR!P89,\"\")","v":""},{"$f":"IF(WorkingR!$B89=\"Other Income\",WorkingR!Q89,\"\")","v":""},{"$f":"IF(WorkingR!$B89=\"Other Income\",WorkingR!R89,\"\")","v":""},{"$f":"IF(WorkingR!$B89=\"Other Income\",WorkingR!S89,\"\")","v":""},{"$f":"IF(WorkingR!$B89=\"Other Income\",WorkingR!T89,\"\")","v":""},{"$f":"IF(WorkingR!$B89=\"Other Income\",WorkingR!U89,\"\")","v":""},{"$f":"IF(WorkingR!$B89=\"Other Income\",WorkingR!V89,\"\")","v":""},{"$f":"IF(WorkingR!$B89=\"Other Income\",WorkingR!W89,\"\")","v":""},{"$f":"IF(WorkingR!$B89=\"Other Income\",WorkingR!X89,\"\")","v":""},{"$f":"IF(WorkingR!$B89=\"Other Income\",WorkingR!Y89,\"\")","v":""},{"$f":"IF(Descriptions!D90=\"Other income\",Descriptions!AA90,0)","v":0}]
[{"$f":"IF(Descriptions!D91=\"Other income\",Descriptions!B91,0)","v":0},{"$f":"IF(WorkingR!$B90=\"Other Income\",WorkingR!D90,\"\")","v":""},{"$f":"IF(WorkingR!$B90=\"Other Income\",WorkingR!E90,\"\")","v":""},{"$f":"IF(WorkingR!$B90=\"Other Income\",WorkingR!F90,\"\")","v":""},{"$f":"IF(WorkingR!$B90=\"Other Income\",WorkingR!G90,\"\")","v":""},{"$f":"IF(WorkingR!$B90=\"Other Income\",WorkingR!H90,\"\")","v":""},{"$f":"IF(WorkingR!$B90=\"Other Income\",WorkingR!I90,\"\")","v":""},{"$f":"IF(WorkingR!$B90=\"Other Income\",WorkingR!J90,\"\")","v":""},{"$f":"IF(WorkingR!$B90=\"Other Income\",WorkingR!K90,\"\")","v":""},{"$f":"IF(WorkingR!$B90=\"Other Income\",WorkingR!L90,\"\")","v":""},{"$f":"IF(WorkingR!$B90=\"Other Income\",WorkingR!M90,\"\")","v":""},{"$f":"IF(WorkingR!$B90=\"Other Income\",WorkingR!N90,\"\")","v":""},{"$f":"IF(WorkingR!$B90=\"Other Income\",WorkingR!O90,\"\")","v":""},{"$f":"IF(WorkingR!$B90=\"Other Income\",WorkingR!P90,\"\")","v":""},{"$f":"IF(WorkingR!$B90=\"Other Income\",WorkingR!Q90,\"\")","v":""},{"$f":"IF(WorkingR!$B90=\"Other Income\",WorkingR!R90,\"\")","v":""},{"$f":"IF(WorkingR!$B90=\"Other Income\",WorkingR!S90,\"\")","v":""},{"$f":"IF(WorkingR!$B90=\"Other Income\",WorkingR!T90,\"\")","v":""},{"$f":"IF(WorkingR!$B90=\"Other Income\",WorkingR!U90,\"\")","v":""},{"$f":"IF(WorkingR!$B90=\"Other Income\",WorkingR!V90,\"\")","v":""},{"$f":"IF(WorkingR!$B90=\"Other Income\",WorkingR!W90,\"\")","v":""},{"$f":"IF(WorkingR!$B90=\"Other Income\",WorkingR!X90,\"\")","v":""},{"$f":"IF(WorkingR!$B90=\"Other Income\",WorkingR!Y90,\"\")","v":""},{"$f":"IF(Descriptions!D91=\"Other income\",Descriptions!AA91,0)","v":0}]
[{"$f":"IF(Descriptions!D92=\"Other income\",Descriptions!B92,0)","v":0},{"$f":"IF(WorkingR!$B91=\"Other Income\",WorkingR!D91,\"\")","v":""},{"$f":"IF(WorkingR!$B91=\"Other Income\",WorkingR!E91,\"\")","v":""},{"$f":"IF(WorkingR!$B91=\"Other Income\",WorkingR!F91,\"\")","v":""},{"$f":"IF(WorkingR!$B91=\"Other Income\",WorkingR!G91,\"\")","v":""},{"$f":"IF(WorkingR!$B91=\"Other Income\",WorkingR!H91,\"\")","v":""},{"$f":"IF(WorkingR!$B91=\"Other Income\",WorkingR!I91,\"\")","v":""},{"$f":"IF(WorkingR!$B91=\"Other Income\",WorkingR!J91,\"\")","v":""},{"$f":"IF(WorkingR!$B91=\"Other Income\",WorkingR!K91,\"\")","v":""},{"$f":"IF(WorkingR!$B91=\"Other Income\",WorkingR!L91,\"\")","v":""},{"$f":"IF(WorkingR!$B91=\"Other Income\",WorkingR!M91,\"\")","v":""},{"$f":"IF(WorkingR!$B91=\"Other Income\",WorkingR!N91,\"\")","v":""},{"$f":"IF(WorkingR!$B91=\"Other Income\",WorkingR!O91,\"\")","v":""},{"$f":"IF(WorkingR!$B91=\"Other Income\",WorkingR!P91,\"\")","v":""},{"$f":"IF(WorkingR!$B91=\"Other Income\",WorkingR!Q91,\"\")","v":""},{"$f":"IF(WorkingR!$B91=\"Other Income\",WorkingR!R91,\"\")","v":""},{"$f":"IF(WorkingR!$B91=\"Other Income\",WorkingR!S91,\"\")","v":""},{"$f":"IF(WorkingR!$B91=\"Other Income\",WorkingR!T91,\"\")","v":""},{"$f":"IF(WorkingR!$B91=\"Other Income\",WorkingR!U91,\"\")","v":""},{"$f":"IF(WorkingR!$B91=\"Other Income\",WorkingR!V91,\"\")","v":""},{"$f":"IF(WorkingR!$B91=\"Other Income\",WorkingR!W91,\"\")","v":""},{"$f":"IF(WorkingR!$B91=\"Other Income\",WorkingR!X91,\"\")","v":""},{"$f":"IF(WorkingR!$B91=\"Other Income\",WorkingR!Y91,\"\")","v":""},{"$f":"IF(Descriptions!D92=\"Other income\",Descriptions!AA92,0)","v":0}]
[null,{"$f":"SUM(B509:B560)","v":0},0,0,0,0,0,0,0,0,0,0,0,0,0,0,0,0,0,0,0,0,null,{"$f":"X508","v":0}]
[null,null,null,null,null,null,null,null,null,null,null,null,null,null,null,null,null,null,null,null,null,null,null,1]
["TOTAL PRIOR YEAR RECEIPTS",{"$f":"SUM(B561+B507+B453+B400+B347+B288+B230+B171+B118+B64)","v":0},0,0,0,0,0,0,0,0,0,0,0,0,0,0,0,0,0,0,0,0,null,1]
[null,null,null,null,null,null,null,null,null,null,null,null,null,null,null,null,null,null,null,null,null,null,null,1]
[null,null,null,null,null,null,null,null,null,null,null,null,null,null,null,null,null,null,null,null,null,null,null,1]
["PAYMENTS",null,null,null,null,null,null,null,null,null,null,null,null,null,null,null,null,null,null,null,null,null,null,1]
[null,"£","£","£","£","£","£","£","£","£","£","£","£","£","£","£","£","£","£","£","£","£",null,1]
["PARISH SHARE",null,null,null,null,null,null,null,null,null,null,null,null,null,null,null,null,null,null,null,null,null,null,1]
["Parish Share Paid",{"$f":"WorkingP!D23","v":0},{"$f":"WorkingP!E23","v":0},{"$f":"WorkingP!F23","v":0},{"$f":"WorkingP!G23","v":0},{"$f":"WorkingP!H23","v":0},{"$f":"WorkingP!I23","v":0},{"$f":"WorkingP!J23","v":0},{"$f":"WorkingP!K23","v":0},{"$f":"WorkingP!L23","v":0},{"$f":"WorkingP!M23","v":0},{"$f":"WorkingP!N23","v":0},{"$f":"WorkingP!O23","v":0},{"$f":"WorkingP!P23","v":0},{"$f":"WorkingP!Q23","v":0},{"$f":"WorkingP!R23","v":0},{"$f":"WorkingP!S23","v":0},{"$f":"WorkingP!T23","v":0},{"$f":"WorkingP!U23","v":0},{"$f":"WorkingP!V23","v":0},{"$f":"WorkingP!W23","v":0},{"$f":"WorkingP!X23","v":0},{"$f":"WorkingP!Y23","v":0},1]
[{"$f":"IF(Descriptions!K35=\"Parish Share\",Descriptions!I35,0)","v":0},{"$f":"IF(WorkingP!$B34=\"Parish Share\",WorkingP!D34,\"\")","v":""},{"$f":"IF(WorkingP!$B34=\"Parish Share\",WorkingP!E34,\"\")","v":""},{"$f":"IF(WorkingP!$B34=\"Parish Share\",WorkingP!F34,\"\")","v":""},{"$f":"IF(WorkingP!$B34=\"Parish Share\",WorkingP!G34,\"\")","v":""},{"$f":"IF(WorkingP!$B34=\"Parish Share\",WorkingP!H34,\"\")","v":""},{"$f":"IF(WorkingP!$B34=\"Parish Share\",WorkingP!I34,\"\")","v":""},{"$f":"IF(WorkingP!$B34=\"Parish Share\",WorkingP!J34,\"\")","v":""},{"$f":"IF(WorkingP!$B34=\"Parish Share\",WorkingP!K34,\"\")","v":""},{"$f":"IF(WorkingP!$B34=\"Parish Share\",WorkingP!L34,\"\")","v":""},{"$f":"IF(WorkingP!$B34=\"Parish Share\",WorkingP!M34,\"\")","v":""},{"$f":"IF(WorkingP!$B34=\"Parish Share\",WorkingP!N34,\"\")","v":""},{"$f":"IF(WorkingP!$B34=\"Parish Share\",WorkingP!O34,\"\")","v":""},{"$f":"IF(WorkingP!$B34=\"Parish Share\",WorkingP!P34,\"\")","v":""},{"$f":"IF(WorkingP!$B34=\"Parish Share\",WorkingP!Q34,\"\")","v":""},{"$f":"IF(WorkingP!$B34=\"Parish Share\",WorkingP!R34,\"\")","v":""},{"$f":"IF(WorkingP!$B34=\"Parish Share\",WorkingP!S34,\"\")","v":""},{"$f":"IF(WorkingP!$B34=\"Parish Share\",WorkingP!T34,\"\")","v":""},{"$f":"IF(WorkingP!$B34=\"Parish Share\",WorkingP!U34,\"\")","v":""},{"$f":"IF(WorkingP!$B34=\"Parish Share\",WorkingP!V34,\"\")","v":""},{"$f":"IF(WorkingP!$B34=\"Parish Share\",WorkingP!W34,\"\")","v":""},{"$f":"IF(WorkingP!$B34=\"Parish Share\",WorkingP!X34,\"\")","v":""},{"$f":"IF(WorkingP!$B34=\"Parish Share\",WorkingP!Y34,\"\")","v":""},{"$f":"IF(Descriptions!K35=\"Parish Share\",Descriptions!AB35,0)","v":0}]
[{"$f":"IF(Descriptions!K36=\"Parish Share\",Descriptions!I36,0)","v":0},{"$f":"IF(WorkingP!$B35=\"Parish Share\",WorkingP!D35,\"\")","v":""},{"$f":"IF(WorkingP!$B35=\"Parish Share\",WorkingP!E35,\"\")","v":""},{"$f":"IF(WorkingP!$B35=\"Parish Share\",WorkingP!F35,\"\")","v":""},{"$f":"IF(WorkingP!$B35=\"Parish Share\",WorkingP!G35,\"\")","v":""},{"$f":"IF(WorkingP!$B35=\"Parish Share\",WorkingP!H35,\"\")","v":""},{"$f":"IF(WorkingP!$B35=\"Parish Share\",WorkingP!I35,\"\")","v":""},{"$f":"IF(WorkingP!$B35=\"Parish Share\",WorkingP!J35,\"\")","v":""},{"$f":"IF(WorkingP!$B35=\"Parish Share\",WorkingP!K35,\"\")","v":""},{"$f":"IF(WorkingP!$B35=\"Parish Share\",WorkingP!L35,\"\")","v":""},{"$f":"IF(WorkingP!$B35=\"Parish Share\",WorkingP!M35,\"\")","v":""},{"$f":"IF(WorkingP!$B35=\"Parish Share\",WorkingP!N35,\"\")","v":""},{"$f":"IF(WorkingP!$B35=\"Parish Share\",WorkingP!O35,\"\")","v":""},{"$f":"IF(WorkingP!$B35=\"Parish Share\",WorkingP!P35,\"\")","v":""},{"$f":"IF(WorkingP!$B35=\"Parish Share\",WorkingP!Q35,\"\")","v":""},{"$f":"IF(WorkingP!$B35=\"Parish Share\",WorkingP!R35,\"\")","v":""},{"$f":"IF(WorkingP!$B35=\"Parish Share\",WorkingP!S35,\"\")","v":""},{"$f":"IF(WorkingP!$B35=\"Parish Share\",WorkingP!T35,\"\")","v":""},{"$f":"IF(WorkingP!$B35=\"Parish Share\",WorkingP!U35,\"\")","v":""},{"$f":"IF(WorkingP!$B35=\"Parish Share\",WorkingP!V35,\"\")","v":""},{"$f":"IF(WorkingP!$B35=\"Parish Share\",WorkingP!W35,\"\")","v":""},{"$f":"IF(WorkingP!$B35=\"Parish Share\",WorkingP!X35,\"\")","v":""},{"$f":"IF(WorkingP!$B35=\"Parish Share\",WorkingP!Y35,\"\")","v":""},{"$f":"IF(Descriptions!K36=\"Parish Share\",Descriptions!AB36,0)","v":0}]
[{"$f":"IF(Descriptions!K37=\"Parish Share\",Descriptions!I37,0)","v":0},{"$f":"IF(WorkingP!$B36=\"Parish Share\",WorkingP!D36,\"\")","v":""},{"$f":"IF(WorkingP!$B36=\"Parish Share\",WorkingP!E36,\"\")","v":""},{"$f":"IF(WorkingP!$B36=\"Parish Share\",WorkingP!F36,\"\")","v":""},{"$f":"IF(WorkingP!$B36=\"Parish Share\",WorkingP!G36,\"\")","v":""},{"$f":"IF(WorkingP!$B36=\"Parish Share\",WorkingP!H36,\"\")","v":""},{"$f":"IF(WorkingP!$B36=\"Parish Share\",WorkingP!I36,\"\")","v":""},{"$f":"IF(WorkingP!$B36=\"Parish Share\",WorkingP!J36,\"\")","v":""},{"$f":"IF(WorkingP!$B36=\"Parish Share\",WorkingP!K36,\"\")","v":""},{"$f":"IF(WorkingP!$B36=\"Parish Share\",WorkingP!L36,\"\")","v":""},{"$f":"IF(WorkingP!$B36=\"Parish Share\",WorkingP!M36,\"\")","v":""},{"$f":"IF(WorkingP!$B36=\"Parish Share\",WorkingP!N36,\"\")","v":""},{"$f":"IF(WorkingP!$B36=\"Parish Share\",WorkingP!O36,\"\")","v":""},{"$f":"IF(WorkingP!$B36=\"Parish Share\",WorkingP!P36,\"\")","v":""},{"$f":"IF(WorkingP!$B36=\"Parish Share\",WorkingP!Q36,\"\")","v":""},{"$f":"IF(WorkingP!$B36=\"Parish Share\",WorkingP!R36,\"\")","v":""},{"$f":"IF(WorkingP!$B36=\"Parish Share\",WorkingP!S36,\"\")","v":""},{"$f":"IF(WorkingP!$B36=\"Parish Share\",WorkingP!T36,\"\")","v":""},{"$f":"IF(WorkingP!$B36=\"Parish Share\",WorkingP!U36,\"\")","v":""},{"$f":"IF(WorkingP!$B36=\"Parish Share\",WorkingP!V36,\"\")","v":""},{"$f":"IF(WorkingP!$B36=\"Parish Share\",WorkingP!W36,\"\")","v":""},{"$f":"IF(WorkingP!$B36=\"Parish Share\",WorkingP!X36,\"\")","v":""},{"$f":"IF(WorkingP!$B36=\"Parish Share\",WorkingP!Y36,\"\")","v":""},{"$f":"IF(Descriptions!K37=\"Parish Share\",Descriptions!AB37,0)","v":0}]
[{"$f":"IF(Descriptions!K38=\"Parish Share\",Descriptions!I38,0)","v":0},{"$f":"IF(WorkingP!$B37=\"Parish Share\",WorkingP!D37,\"\")","v":""},{"$f":"IF(WorkingP!$B37=\"Parish Share\",WorkingP!E37,\"\")","v":""},{"$f":"IF(WorkingP!$B37=\"Parish Share\",WorkingP!F37,\"\")","v":""},{"$f":"IF(WorkingP!$B37=\"Parish Share\",WorkingP!G37,\"\")","v":""},{"$f":"IF(WorkingP!$B37=\"Parish Share\",WorkingP!H37,\"\")","v":""},{"$f":"IF(WorkingP!$B37=\"Parish Share\",WorkingP!I37,\"\")","v":""},{"$f":"IF(WorkingP!$B37=\"Parish Share\",WorkingP!J37,\"\")","v":""},{"$f":"IF(WorkingP!$B37=\"Parish Share\",WorkingP!K37,\"\")","v":""},{"$f":"IF(WorkingP!$B37=\"Parish Share\",WorkingP!L37,\"\")","v":""},{"$f":"IF(WorkingP!$B37=\"Parish Share\",WorkingP!M37,\"\")","v":""},{"$f":"IF(WorkingP!$B37=\"Parish Share\",WorkingP!N37,\"\")","v":""},{"$f":"IF(WorkingP!$B37=\"Parish Share\",WorkingP!O37,\"\")","v":""},{"$f":"IF(WorkingP!$B37=\"Parish Share\",WorkingP!P37,\"\")","v":""},{"$f":"IF(WorkingP!$B37=\"Parish Share\",WorkingP!Q37,\"\")","v":""},{"$f":"IF(WorkingP!$B37=\"Parish Share\",WorkingP!R37,\"\")","v":""},{"$f":"IF(WorkingP!$B37=\"Parish Share\",WorkingP!S37,\"\")","v":""},{"$f":"IF(WorkingP!$B37=\"Parish Share\",WorkingP!T37,\"\")","v":""},{"$f":"IF(WorkingP!$B37=\"Parish Share\",WorkingP!U37,\"\")","v":""},{"$f":"IF(WorkingP!$B37=\"Parish Share\",WorkingP!V37,\"\")","v":""},{"$f":"IF(WorkingP!$B37=\"Parish Share\",WorkingP!W37,\"\")","v":""},{"$f":"IF(WorkingP!$B37=\"Parish Share\",WorkingP!X37,\"\")","v":""},{"$f":"IF(WorkingP!$B37=\"Parish Share\",WorkingP!Y37,\"\")","v":""},{"$f":"IF(Descriptions!K38=\"Parish Share\",Descriptions!AB38,0)","v":0}]
[{"$f":"IF(Descriptions!K39=\"Parish Share\",Descriptions!I39,0)","v":0},{"$f":"IF(WorkingP!$B38=\"Parish Share\",WorkingP!D38,\"\")","v":""},{"$f":"IF(WorkingP!$B38=\"Parish Share\",WorkingP!E38,\"\")","v":""},{"$f":"IF(WorkingP!$B38=\"Parish Share\",WorkingP!F38,\"\")","v":""},{"$f":"IF(WorkingP!$B38=\"Parish Share\",WorkingP!G38,\"\")","v":""},{"$f":"IF(WorkingP!$B38=\"Parish Share\",WorkingP!H38,\"\")","v":""},{"$f":"IF(WorkingP!$B38=\"Parish Share\",WorkingP!I38,\"\")","v":""},{"$f":"IF(WorkingP!$B38=\"Parish Share\",WorkingP!J38,\"\")","v":""},{"$f":"IF(WorkingP!$B38=\"Parish Share\",WorkingP!K38,\"\")","v":""},{"$f":"IF(WorkingP!$B38=\"Parish Share\",WorkingP!L38,\"\")","v":""},{"$f":"IF(WorkingP!$B38=\"Parish Share\",WorkingP!M38,\"\")","v":""},{"$f":"IF(WorkingP!$B38=\"Parish Share\",WorkingP!N38,\"\")","v":""},{"$f":"IF(WorkingP!$B38=\"Parish Share\",WorkingP!O38,\"\")","v":""},{"$f":"IF(WorkingP!$B38=\"Parish Share\",WorkingP!P38,\"\")","v":""},{"$f":"IF(WorkingP!$B38=\"Parish Share\",WorkingP!Q38,\"\")","v":""},{"$f":"IF(WorkingP!$B38=\"Parish Share\",WorkingP!R38,\"\")","v":""},{"$f":"IF(WorkingP!$B38=\"Parish Share\",WorkingP!S38,\"\")","v":""},{"$f":"IF(WorkingP!$B38=\"Parish Share\",WorkingP!T38,\"\")","v":""},{"$f":"IF(WorkingP!$B38=\"Parish Share\",WorkingP!U38,\"\")","v":""},{"$f":"IF(WorkingP!$B38=\"Parish Share\",WorkingP!V38,\"\")","v":""},{"$f":"IF(WorkingP!$B38=\"Parish Share\",WorkingP!W38,\"\")","v":""},{"$f":"IF(WorkingP!$B38=\"Parish Share\",WorkingP!X38,\"\")","v":""},{"$f":"IF(WorkingP!$B38=\"Parish Share\",WorkingP!Y38,\"\")","v":""},{"$f":"IF(Descriptions!K39=\"Parish Share\",Descriptions!AB39,0)","v":0}]
[{"$f":"IF(Descriptions!K40=\"Parish Share\",Descriptions!I40,0)","v":0},{"$f":"IF(WorkingP!$B39=\"Parish Share\",WorkingP!D39,\"\")","v":""},{"$f":"IF(WorkingP!$B39=\"Parish Share\",WorkingP!E39,\"\")","v":""},{"$f":"IF(WorkingP!$B39=\"Parish Share\",WorkingP!F39,\"\")","v":""},{"$f":"IF(WorkingP!$B39=\"Parish Share\",WorkingP!G39,\"\")","v":""},{"$f":"IF(WorkingP!$B39=\"Parish Share\",WorkingP!H39,\"\")","v":""},{"$f":"IF(WorkingP!$B39=\"Parish Share\",WorkingP!I39,\"\")","v":""},{"$f":"IF(WorkingP!$B39=\"Parish Share\",WorkingP!J39,\"\")","v":""},{"$f":"IF(WorkingP!$B39=\"Parish Share\",WorkingP!K39,\"\")","v":""},{"$f":"IF(WorkingP!$B39=\"Parish Share\",WorkingP!L39,\"\")","v":""},{"$f":"IF(WorkingP!$B39=\"Parish Share\",WorkingP!M39,\"\")","v":""},{"$f":"IF(WorkingP!$B39=\"Parish Share\",WorkingP!N39,\"\")","v":""},{"$f":"IF(WorkingP!$B39=\"Parish Share\",WorkingP!O39,\"\")","v":""},{"$f":"IF(WorkingP!$B39=\"Parish Share\",WorkingP!P39,\"\")","v":""},{"$f":"IF(WorkingP!$B39=\"Parish Share\",WorkingP!Q39,\"\")","v":""},{"$f":"IF(WorkingP!$B39=\"Parish Share\",WorkingP!R39,\"\")","v":""},{"$f":"IF(WorkingP!$B39=\"Parish Share\",WorkingP!S39,\"\")","v":""},{"$f":"IF(WorkingP!$B39=\"Parish Share\",WorkingP!T39,\"\")","v":""},{"$f":"IF(WorkingP!$B39=\"Parish Share\",WorkingP!U39,\"\")","v":""},{"$f":"IF(WorkingP!$B39=\"Parish Share\",WorkingP!V39,\"\")","v":""},{"$f":"IF(WorkingP!$B39=\"Parish Share\",WorkingP!W39,\"\")","v":""},{"$f":"IF(WorkingP!$B39=\"Parish Share\",WorkingP!X39,\"\")","v":""},{"$f":"IF(WorkingP!$B39=\"Parish Share\",WorkingP!Y39,\"\")","v":""},{"$f":"IF(Descriptions!K40=\"Parish Share\",Descriptions!AB40,0)","v":0}]
[{"$f":"IF(Descriptions!K41=\"Parish Share\",Descriptions!I41,0)","v":0},{"$f":"IF(WorkingP!$B40=\"Parish Share\",WorkingP!D40,\"\")","v":""},{"$f":"IF(WorkingP!$B40=\"Parish Share\",WorkingP!E40,\"\")","v":""},{"$f":"IF(WorkingP!$B40=\"Parish Share\",WorkingP!F40,\"\")","v":""},{"$f":"IF(WorkingP!$B40=\"Parish Share\",WorkingP!G40,\"\")","v":""},{"$f":"IF(WorkingP!$B40=\"Parish Share\",WorkingP!H40,\"\")","v":""},{"$f":"IF(WorkingP!$B40=\"Parish Share\",WorkingP!I40,\"\")","v":""},{"$f":"IF(WorkingP!$B40=\"Parish Share\",WorkingP!J40,\"\")","v":""},{"$f":"IF(WorkingP!$B40=\"Parish Share\",WorkingP!K40,\"\")","v":""},{"$f":"IF(WorkingP!$B40=\"Parish Share\",WorkingP!L40,\"\")","v":""},{"$f":"IF(WorkingP!$B40=\"Parish Share\",WorkingP!M40,\"\")","v":""},{"$f":"IF(WorkingP!$B40=\"Parish Share\",WorkingP!N40,\"\")","v":""},{"$f":"IF(WorkingP!$B40=\"Parish Share\",WorkingP!O40,\"\")","v":""},{"$f":"IF(WorkingP!$B40=\"Parish Share\",WorkingP!P40,\"\")","v":""},{"$f":"IF(WorkingP!$B40=\"Parish Share\",WorkingP!Q40,\"\")","v":""},{"$f":"IF(WorkingP!$B40=\"Parish Share\",WorkingP!R40,\"\")","v":""},{"$f":"IF(WorkingP!$B40=\"Parish Share\",WorkingP!S40,\"\")","v":""},{"$f":"IF(WorkingP!$B40=\"Parish Share\",WorkingP!T40,\"\")","v":""},{"$f":"IF(WorkingP!$B40=\"Parish Share\",WorkingP!U40,\"\")","v":""},{"$f":"IF(WorkingP!$B40=\"Parish Share\",WorkingP!V40,\"\")","v":""},{"$f":"IF(WorkingP!$B40=\"Parish Share\",WorkingP!W40,\"\")","v":""},{"$f":"IF(WorkingP!$B40=\"Parish Share\",WorkingP!X40,\"\")","v":""},{"$f":"IF(WorkingP!$B40=\"Parish Share\",WorkingP!Y40,\"\")","v":""},{"$f":"IF(Descriptions!K41=\"Parish Share\",Descriptions!AB41,0)","v":0}]
[{"$f":"IF(Descriptions!K42=\"Parish Share\",Descriptions!I42,0)","v":0},{"$f":"IF(WorkingP!$B41=\"Parish Share\",WorkingP!D41,\"\")","v":""},{"$f":"IF(WorkingP!$B41=\"Parish Share\",WorkingP!E41,\"\")","v":""},{"$f":"IF(WorkingP!$B41=\"Parish Share\",WorkingP!F41,\"\")","v":""},{"$f":"IF(WorkingP!$B41=\"Parish Share\",WorkingP!G41,\"\")","v":""},{"$f":"IF(WorkingP!$B41=\"Parish Share\",WorkingP!H41,\"\")","v":""},{"$f":"IF(WorkingP!$B41=\"Parish Share\",WorkingP!I41,\"\")","v":""},{"$f":"IF(WorkingP!$B41=\"Parish Share\",WorkingP!J41,\"\")","v":""},{"$f":"IF(WorkingP!$B41=\"Parish Share\",WorkingP!K41,\"\")","v":""},{"$f":"IF(WorkingP!$B41=\"Parish Share\",WorkingP!L41,\"\")","v":""},{"$f":"IF(WorkingP!$B41=\"Parish Share\",WorkingP!M41,\"\")","v":""},{"$f":"IF(WorkingP!$B41=\"Parish Share\",WorkingP!N41,\"\")","v":""},{"$f":"IF(WorkingP!$B41=\"Parish Share\",WorkingP!O41,\"\")","v":""},{"$f":"IF(WorkingP!$B41=\"Parish Share\",WorkingP!P41,\"\")","v":""},{"$f":"IF(WorkingP!$B41=\"Parish Share\",WorkingP!Q41,\"\")","v":""},{"$f":"IF(WorkingP!$B41=\"Parish Share\",WorkingP!R41,\"\")","v":""},{"$f":"IF(WorkingP!$B41=\"Parish Share\",WorkingP!S41,\"\")","v":""},{"$f":"IF(WorkingP!$B41=\"Parish Share\",WorkingP!T41,\"\")","v":""},{"$f":"IF(WorkingP!$B41=\"Parish Share\",WorkingP!U41,\"\")","v":""},{"$f":"IF(WorkingP!$B41=\"Parish Share\",WorkingP!V41,\"\")","v":""},{"$f":"IF(WorkingP!$B41=\"Parish Share\",WorkingP!W41,\"\")","v":""},{"$f":"IF(WorkingP!$B41=\"Parish Share\",WorkingP!X41,\"\")","v":""},{"$f":"IF(WorkingP!$B41=\"Parish Share\",WorkingP!Y41,\"\")","v":""},{"$f":"IF(Descriptions!K42=\"Parish Share\",Descriptions!AB42,0)","v":0}]
[{"$f":"IF(Descriptions!K43=\"Parish Share\",Descriptions!I43,0)","v":0},{"$f":"IF(WorkingP!$B42=\"Parish Share\",WorkingP!D42,\"\")","v":""},{"$f":"IF(WorkingP!$B42=\"Parish Share\",WorkingP!E42,\"\")","v":""},{"$f":"IF(WorkingP!$B42=\"Parish Share\",WorkingP!F42,\"\")","v":""},{"$f":"IF(WorkingP!$B42=\"Parish Share\",WorkingP!G42,\"\")","v":""},{"$f":"IF(WorkingP!$B42=\"Parish Share\",WorkingP!H42,\"\")","v":""},{"$f":"IF(WorkingP!$B42=\"Parish Share\",WorkingP!I42,\"\")","v":""},{"$f":"IF(WorkingP!$B42=\"Parish Share\",WorkingP!J42,\"\")","v":""},{"$f":"IF(WorkingP!$B42=\"Parish Share\",WorkingP!K42,\"\")","v":""},{"$f":"IF(WorkingP!$B42=\"Parish Share\",WorkingP!L42,\"\")","v":""},{"$f":"IF(WorkingP!$B42=\"Parish Share\",WorkingP!M42,\"\")","v":""},{"$f":"IF(WorkingP!$B42=\"Parish Share\",WorkingP!N42,\"\")","v":""},{"$f":"IF(WorkingP!$B42=\"Parish Share\",WorkingP!O42,\"\")","v":""},{"$f":"IF(WorkingP!$B42=\"Parish Share\",WorkingP!P42,\"\")","v":""},{"$f":"IF(WorkingP!$B42=\"Parish Share\",WorkingP!Q42,\"\")","v":""},{"$f":"IF(WorkingP!$B42=\"Parish Share\",WorkingP!R42,\"\")","v":""},{"$f":"IF(WorkingP!$B42=\"Parish Share\",WorkingP!S42,\"\")","v":""},{"$f":"IF(WorkingP!$B42=\"Parish Share\",WorkingP!T42,\"\")","v":""},{"$f":"IF(WorkingP!$B42=\"Parish Share\",WorkingP!U42,\"\")","v":""},{"$f":"IF(WorkingP!$B42=\"Parish Share\",WorkingP!V42,\"\")","v":""},{"$f":"IF(WorkingP!$B42=\"Parish Share\",WorkingP!W42,\"\")","v":""},{"$f":"IF(WorkingP!$B42=\"Parish Share\",WorkingP!X42,\"\")","v":""},{"$f":"IF(WorkingP!$B42=\"Parish Share\",WorkingP!Y42,\"\")","v":""},{"$f":"IF(Descriptions!K43=\"Parish Share\",Descriptions!AB43,0)","v":0}]
[{"$f":"IF(Descriptions!K44=\"Parish Share\",Descriptions!I44,0)","v":0},{"$f":"IF(WorkingP!$B43=\"Parish Share\",WorkingP!D43,\"\")","v":""},{"$f":"IF(WorkingP!$B43=\"Parish Share\",WorkingP!E43,\"\")","v":""},{"$f":"IF(WorkingP!$B43=\"Parish Share\",WorkingP!F43,\"\")","v":""},{"$f":"IF(WorkingP!$B43=\"Parish Share\",WorkingP!G43,\"\")","v":""},{"$f":"IF(WorkingP!$B43=\"Parish Share\",WorkingP!H43,\"\")","v":""},{"$f":"IF(WorkingP!$B43=\"Parish Share\",WorkingP!I43,\"\")","v":""},{"$f":"IF(WorkingP!$B43=\"Parish Share\",WorkingP!J43,\"\")","v":""},{"$f":"IF(WorkingP!$B43=\"Parish Share\",WorkingP!K43,\"\")","v":""},{"$f":"IF(WorkingP!$B43=\"Parish Share\",WorkingP!L43,\"\")","v":""},{"$f":"IF(WorkingP!$B43=\"Parish Share\",WorkingP!M43,\"\")","v":""},{"$f":"IF(WorkingP!$B43=\"Parish Share\",WorkingP!N43,\"\")","v":""},{"$f":"IF(WorkingP!$B43=\"Parish Share\",WorkingP!O43,\"\")","v":""},{"$f":"IF(WorkingP!$B43=\"Parish Share\",WorkingP!P43,\"\")","v":""},{"$f":"IF(WorkingP!$B43=\"Parish Share\",WorkingP!Q43,\"\")","v":""},{"$f":"IF(WorkingP!$B43=\"Parish Share\",WorkingP!R43,\"\")","v":""},{"$f":"IF(WorkingP!$B43=\"Parish Share\",WorkingP!S43,\"\")","v":""},{"$f":"IF(WorkingP!$B43=\"Parish Share\",WorkingP!T43,\"\")","v":""},{"$f":"IF(WorkingP!$B43=\"Parish Share\",WorkingP!U43,\"\")","v":""},{"$f":"IF(WorkingP!$B43=\"Parish Share\",WorkingP!V43,\"\")","v":""},{"$f":"IF(WorkingP!$B43=\"Parish Share\",WorkingP!W43,\"\")","v":""},{"$f":"IF(WorkingP!$B43=\"Parish Share\",WorkingP!X43,\"\")","v":""},{"$f":"IF(WorkingP!$B43=\"Parish Share\",WorkingP!Y43,\"\")","v":""},{"$f":"IF(Descriptions!K44=\"Parish Share\",Descriptions!AB44,0)","v":0}]
[{"$f":"IF(Descriptions!K45=\"Parish Share\",Descriptions!I45,0)","v":0},{"$f":"IF(WorkingP!$B44=\"Parish Share\",WorkingP!D44,\"\")","v":""},{"$f":"IF(WorkingP!$B44=\"Parish Share\",WorkingP!E44,\"\")","v":""},{"$f":"IF(WorkingP!$B44=\"Parish Share\",WorkingP!F44,\"\")","v":""},{"$f":"IF(WorkingP!$B44=\"Parish Share\",WorkingP!G44,\"\")","v":""},{"$f":"IF(WorkingP!$B44=\"Parish Share\",WorkingP!H44,\"\")","v":""},{"$f":"IF(WorkingP!$B44=\"Parish Share\",WorkingP!I44,\"\")","v":""},{"$f":"IF(WorkingP!$B44=\"Parish Share\",WorkingP!J44,\"\")","v":""},{"$f":"IF(WorkingP!$B44=\"Parish Share\",WorkingP!K44,\"\")","v":""},{"$f":"IF(WorkingP!$B44=\"Parish Share\",WorkingP!L44,\"\")","v":""},{"$f":"IF(WorkingP!$B44=\"Parish Share\",WorkingP!M44,\"\")","v":""},{"$f":"IF(WorkingP!$B44=\"Parish Share\",WorkingP!N44,\"\")","v":""},{"$f":"IF(WorkingP!$B44=\"Parish Share\",WorkingP!O44,\"\")","v":""},{"$f":"IF(WorkingP!$B44=\"Parish Share\",WorkingP!P44,\"\")","v":""},{"$f":"IF(WorkingP!$B44=\"Parish Share\",WorkingP!Q44,\"\")","v":""},{"$f":"IF(WorkingP!$B44=\"Parish Share\",WorkingP!R44,\"\")","v":""},{"$f":"IF(WorkingP!$B44=\"Parish Share\",WorkingP!S44,\"\")","v":""},{"$f":"IF(WorkingP!$B44=\"Parish Share\",WorkingP!T44,\"\")","v":""},{"$f":"IF(WorkingP!$B44=\"Parish Share\",WorkingP!U44,\"\")","v":""},{"$f":"IF(WorkingP!$B44=\"Parish Share\",WorkingP!V44,\"\")","v":""},{"$f":"IF(WorkingP!$B44=\"Parish Share\",WorkingP!W44,\"\")","v":""},{"$f":"IF(WorkingP!$B44=\"Parish Share\",WorkingP!X44,\"\")","v":""},{"$f":"IF(WorkingP!$B44=\"Parish Share\",WorkingP!Y44,\"\")","v":""},{"$f":"IF(Descriptions!K45=\"Parish Share\",Descriptions!AB45,0)","v":0}]
[{"$f":"IF(Descriptions!K46=\"Parish Share\",Descriptions!I46,0)","v":0},{"$f":"IF(WorkingP!$B45=\"Parish Share\",WorkingP!D45,\"\")","v":""},{"$f":"IF(WorkingP!$B45=\"Parish Share\",WorkingP!E45,\"\")","v":""},{"$f":"IF(WorkingP!$B45=\"Parish Share\",WorkingP!F45,\"\")","v":""},{"$f":"IF(WorkingP!$B45=\"Parish Share\",WorkingP!G45,\"\")","v":""},{"$f":"IF(WorkingP!$B45=\"Parish Share\",WorkingP!H45,\"\")","v":""},{"$f":"IF(WorkingP!$B45=\"Parish Share\",WorkingP!I45,\"\")","v":""},{"$f":"IF(WorkingP!$B45=\"Parish Share\",WorkingP!J45,\"\")","v":""},{"$f":"IF(WorkingP!$B45=\"Parish Share\",WorkingP!K45,\"\")","v":""},{"$f":"IF(WorkingP!$B45=\"Parish Share\",WorkingP!L45,\"\")","v":""},{"$f":"IF(WorkingP!$B45=\"Parish Share\",WorkingP!M45,\"\")","v":""},{"$f":"IF(WorkingP!$B45=\"Parish Share\",WorkingP!N45,\"\")","v":""},{"$f":"IF(WorkingP!$B45=\"Parish Share\",WorkingP!O45,\"\")","v":""},{"$f":"IF(WorkingP!$B45=\"Parish Share\",WorkingP!P45,\"\")","v":""},{"$f":"IF(WorkingP!$B45=\"Parish Share\",WorkingP!Q45,\"\")","v":""},{"$f":"IF(WorkingP!$B45=\"Parish Share\",WorkingP!R45,\"\")","v":""},{"$f":"IF(WorkingP!$B45=\"Parish Share\",WorkingP!S45,\"\")","v":""},{"$f":"IF(WorkingP!$B45=\"Parish Share\",WorkingP!T45,\"\")","v":""},{"$f":"IF(WorkingP!$B45=\"Parish Share\",WorkingP!U45,\"\")","v":""},{"$f":"IF(WorkingP!$B45=\"Parish Share\",WorkingP!V45,\"\")","v":""},{"$f":"IF(WorkingP!$B45=\"Parish Share\",WorkingP!W45,\"\")","v":""},{"$f":"IF(WorkingP!$B45=\"Parish Share\",WorkingP!X45,\"\")","v":""},{"$f":"IF(WorkingP!$B45=\"Parish Share\",WorkingP!Y45,\"\")","v":""},{"$f":"IF(Descriptions!K46=\"Parish Share\",Descriptions!AB46,0)","v":0}]
[{"$f":"IF(Descriptions!K47=\"Parish Share\",Descriptions!I47,0)","v":0},{"$f":"IF(WorkingP!$B46=\"Parish Share\",WorkingP!D46,\"\")","v":""},{"$f":"IF(WorkingP!$B46=\"Parish Share\",WorkingP!E46,\"\")","v":""},{"$f":"IF(WorkingP!$B46=\"Parish Share\",WorkingP!F46,\"\")","v":""},{"$f":"IF(WorkingP!$B46=\"Parish Share\",WorkingP!G46,\"\")","v":""},{"$f":"IF(WorkingP!$B46=\"Parish Share\",WorkingP!H46,\"\")","v":""},{"$f":"IF(WorkingP!$B46=\"Parish Share\",WorkingP!I46,\"\")","v":""},{"$f":"IF(WorkingP!$B46=\"Parish Share\",WorkingP!J46,\"\")","v":""},{"$f":"IF(WorkingP!$B46=\"Parish Share\",WorkingP!K46,\"\")","v":""},{"$f":"IF(WorkingP!$B46=\"Parish Share\",WorkingP!L46,\"\")","v":""},{"$f":"IF(WorkingP!$B46=\"Parish Share\",WorkingP!M46,\"\")","v":""},{"$f":"IF(WorkingP!$B46=\"Parish Share\",WorkingP!N46,\"\")","v":""},{"$f":"IF(WorkingP!$B46=\"Parish Share\",WorkingP!O46,\"\")","v":""},{"$f":"IF(WorkingP!$B46=\"Parish Share\",WorkingP!P46,\"\")","v":""},{"$f":"IF(WorkingP!$B46=\"Parish Share\",WorkingP!Q46,\"\")","v":""},{"$f":"IF(WorkingP!$B46=\"Parish Share\",WorkingP!R46,\"\")","v":""},{"$f":"IF(WorkingP!$B46=\"Parish Share\",WorkingP!S46,\"\")","v":""},{"$f":"IF(WorkingP!$B46=\"Parish Share\",WorkingP!T46,\"\")","v":""},{"$f":"IF(WorkingP!$B46=\"Parish Share\",WorkingP!U46,\"\")","v":""},{"$f":"IF(WorkingP!$B46=\"Parish Share\",WorkingP!V46,\"\")","v":""},{"$f":"IF(WorkingP!$B46=\"Parish Share\",WorkingP!W46,\"\")","v":""},{"$f":"IF(WorkingP!$B46=\"Parish Share\",WorkingP!X46,\"\")","v":""},{"$f":"IF(WorkingP!$B46=\"Parish Share\",WorkingP!Y46,\"\")","v":""},{"$f":"IF(Descriptions!K47=\"Parish Share\",Descriptions!AB47,0)","v":0}]
[{"$f":"IF(Descriptions!K48=\"Parish Share\",Descriptions!I48,0)","v":0},{"$f":"IF(WorkingP!$B47=\"Parish Share\",WorkingP!D47,\"\")","v":""},{"$f":"IF(WorkingP!$B47=\"Parish Share\",WorkingP!E47,\"\")","v":""},{"$f":"IF(WorkingP!$B47=\"Parish Share\",WorkingP!F47,\"\")","v":""},{"$f":"IF(WorkingP!$B47=\"Parish Share\",WorkingP!G47,\"\")","v":""},{"$f":"IF(WorkingP!$B47=\"Parish Share\",WorkingP!H47,\"\")","v":""},{"$f":"IF(WorkingP!$B47=\"Parish Share\",WorkingP!I47,\"\")","v":""},{"$f":"IF(WorkingP!$B47=\"Parish Share\",WorkingP!J47,\"\")","v":""},{"$f":"IF(WorkingP!$B47=\"Parish Share\",WorkingP!K47,\"\")","v":""},{"$f":"IF(WorkingP!$B47=\"Parish Share\",WorkingP!L47,\"\")","v":""},{"$f":"IF(WorkingP!$B47=\"Parish Share\",WorkingP!M47,\"\")","v":""},{"$f":"IF(WorkingP!$B47=\"Parish Share\",WorkingP!N47,\"\")","v":""},{"$f":"IF(WorkingP!$B47=\"Parish Share\",WorkingP!O47,\"\")","v":""},{"$f":"IF(WorkingP!$B47=\"Parish Share\",WorkingP!P47,\"\")","v":""},{"$f":"IF(WorkingP!$B47=\"Parish Share\",WorkingP!Q47,\"\")","v":""},{"$f":"IF(WorkingP!$B47=\"Parish Share\",WorkingP!R47,\"\")","v":""},{"$f":"IF(WorkingP!$B47=\"Parish Share\",WorkingP!S47,\"\")","v":""},{"$f":"IF(WorkingP!$B47=\"Parish Share\",WorkingP!T47,\"\")","v":""},{"$f":"IF(WorkingP!$B47=\"Parish Share\",WorkingP!U47,\"\")","v":""},{"$f":"IF(WorkingP!$B47=\"Parish Share\",WorkingP!V47,\"\")","v":""},{"$f":"IF(WorkingP!$B47=\"Parish Share\",WorkingP!W47,\"\")","v":""},{"$f":"IF(WorkingP!$B47=\"Parish Share\",WorkingP!X47,\"\")","v":""},{"$f":"IF(WorkingP!$B47=\"Parish Share\",WorkingP!Y47,\"\")","v":""},{"$f":"IF(Descriptions!K48=\"Parish Share\",Descriptions!AB48,0)","v":0}]
[{"$f":"IF(Descriptions!K49=\"Parish Share\",Descriptions!I49,0)","v":0},{"$f":"IF(WorkingP!$B48=\"Parish Share\",WorkingP!D48,\"\")","v":""},{"$f":"IF(WorkingP!$B48=\"Parish Share\",WorkingP!E48,\"\")","v":""},{"$f":"IF(WorkingP!$B48=\"Parish Share\",WorkingP!F48,\"\")","v":""},{"$f":"IF(WorkingP!$B48=\"Parish Share\",WorkingP!G48,\"\")","v":""},{"$f":"IF(WorkingP!$B48=\"Parish Share\",WorkingP!H48,\"\")","v":""},{"$f":"IF(WorkingP!$B48=\"Parish Share\",WorkingP!I48,\"\")","v":""},{"$f":"IF(WorkingP!$B48=\"Parish Share\",WorkingP!J48,\"\")","v":""},{"$f":"IF(WorkingP!$B48=\"Parish Share\",WorkingP!K48,\"\")","v":""},{"$f":"IF(WorkingP!$B48=\"Parish Share\",WorkingP!L48,\"\")","v":""},{"$f":"IF(WorkingP!$B48=\"Parish Share\",WorkingP!M48,\"\")","v":""},{"$f":"IF(WorkingP!$B48=\"Parish Share\",WorkingP!N48,\"\")","v":""},{"$f":"IF(WorkingP!$B48=\"Parish Share\",WorkingP!O48,\"\")","v":""},{"$f":"IF(WorkingP!$B48=\"Parish Share\",WorkingP!P48,\"\")","v":""},{"$f":"IF(WorkingP!$B48=\"Parish Share\",WorkingP!Q48,\"\")","v":""},{"$f":"IF(WorkingP!$B48=\"Parish Share\",WorkingP!R48,\"\")","v":""},{"$f":"IF(WorkingP!$B48=\"Parish Share\",WorkingP!S48,\"\")","v":""},{"$f":"IF(WorkingP!$B48=\"Parish Share\",WorkingP!T48,\"\")","v":""},{"$f":"IF(WorkingP!$B48=\"Parish Share\",WorkingP!U48,\"\")","v":""},{"$f":"IF(WorkingP!$B48=\"Parish Share\",WorkingP!V48,\"\")","v":""},{"$f":"IF(WorkingP!$B48=\"Parish Share\",WorkingP!W48,\"\")","v":""},{"$f":"IF(WorkingP!$B48=\"Parish Share\",WorkingP!X48,\"\")","v":""},{"$f":"IF(WorkingP!$B48=\"Parish Share\",WorkingP!Y48,\"\")","v":""},{"$f":"IF(Descriptions!K49=\"Parish Share\",Descriptions!AB49,0)","v":0}]
[{"$f":"IF(Descriptions!K50=\"Parish Share\",Descriptions!I50,0)","v":0},{"$f":"IF(WorkingP!$B49=\"Parish Share\",WorkingP!D49,\"\")","v":""},{"$f":"IF(WorkingP!$B49=\"Parish Share\",WorkingP!E49,\"\")","v":""},{"$f":"IF(WorkingP!$B49=\"Parish Share\",WorkingP!F49,\"\")","v":""},{"$f":"IF(WorkingP!$B49=\"Parish Share\",WorkingP!G49,\"\")","v":""},{"$f":"IF(WorkingP!$B49=\"Parish Share\",WorkingP!H49,\"\")","v":""},{"$f":"IF(WorkingP!$B49=\"Parish Share\",WorkingP!I49,\"\")","v":""},{"$f":"IF(WorkingP!$B49=\"Parish Share\",WorkingP!J49,\"\")","v":""},{"$f":"IF(WorkingP!$B49=\"Parish Share\",WorkingP!K49,\"\")","v":""},{"$f":"IF(WorkingP!$B49=\"Parish Share\",WorkingP!L49,\"\")","v":""},{"$f":"IF(WorkingP!$B49=\"Parish Share\",WorkingP!M49,\"\")","v":""},{"$f":"IF(WorkingP!$B49=\"Parish Share\",WorkingP!N49,\"\")","v":""},{"$f":"IF(WorkingP!$B49=\"Parish Share\",WorkingP!O49,\"\")","v":""},{"$f":"IF(WorkingP!$B49=\"Parish Share\",WorkingP!P49,\"\")","v":""},{"$f":"IF(WorkingP!$B49=\"Parish Share\",WorkingP!Q49,\"\")","v":""},{"$f":"IF(WorkingP!$B49=\"Parish Share\",WorkingP!R49,\"\")","v":""},{"$f":"IF(WorkingP!$B49=\"Parish Share\",WorkingP!S49,\"\")","v":""},{"$f":"IF(WorkingP!$B49=\"Parish Share\",WorkingP!T49,\"\")","v":""},{"$f":"IF(WorkingP!$B49=\"Parish Share\",WorkingP!U49,\"\")","v":""},{"$f":"IF(WorkingP!$B49=\"Parish Share\",WorkingP!V49,\"\")","v":""},{"$f":"IF(WorkingP!$B49=\"Parish Share\",WorkingP!W49,\"\")","v":""},{"$f":"IF(WorkingP!$B49=\"Parish Share\",WorkingP!X49,\"\")","v":""},{"$f":"IF(WorkingP!$B49=\"Parish Share\",WorkingP!Y49,\"\")","v":""},{"$f":"IF(Descriptions!K50=\"Parish Share\",Descriptions!AB50,0)","v":0}]
[{"$f":"IF(Descriptions!K51=\"Parish Share\",Descriptions!I51,0)","v":0},{"$f":"IF(WorkingP!$B50=\"Parish Share\",WorkingP!D50,\"\")","v":""},{"$f":"IF(WorkingP!$B50=\"Parish Share\",WorkingP!E50,\"\")","v":""},{"$f":"IF(WorkingP!$B50=\"Parish Share\",WorkingP!F50,\"\")","v":""},{"$f":"IF(WorkingP!$B50=\"Parish Share\",WorkingP!G50,\"\")","v":""},{"$f":"IF(WorkingP!$B50=\"Parish Share\",WorkingP!H50,\"\")","v":""},{"$f":"IF(WorkingP!$B50=\"Parish Share\",WorkingP!I50,\"\")","v":""},{"$f":"IF(WorkingP!$B50=\"Parish Share\",WorkingP!J50,\"\")","v":""},{"$f":"IF(WorkingP!$B50=\"Parish Share\",WorkingP!K50,\"\")","v":""},{"$f":"IF(WorkingP!$B50=\"Parish Share\",WorkingP!L50,\"\")","v":""},{"$f":"IF(WorkingP!$B50=\"Parish Share\",WorkingP!M50,\"\")","v":""},{"$f":"IF(WorkingP!$B50=\"Parish Share\",WorkingP!N50,\"\")","v":""},{"$f":"IF(WorkingP!$B50=\"Parish Share\",WorkingP!O50,\"\")","v":""},{"$f":"IF(WorkingP!$B50=\"Parish Share\",WorkingP!P50,\"\")","v":""},{"$f":"IF(WorkingP!$B50=\"Parish Share\",WorkingP!Q50,\"\")","v":""},{"$f":"IF(WorkingP!$B50=\"Parish Share\",WorkingP!R50,\"\")","v":""},{"$f":"IF(WorkingP!$B50=\"Parish Share\",WorkingP!S50,\"\")","v":""},{"$f":"IF(WorkingP!$B50=\"Parish Share\",WorkingP!T50,\"\")","v":""},{"$f":"IF(WorkingP!$B50=\"Parish Share\",WorkingP!U50,\"\")","v":""},{"$f":"IF(WorkingP!$B50=\"Parish Share\",WorkingP!V50,\"\")","v":""},{"$f":"IF(WorkingP!$B50=\"Parish Share\",WorkingP!W50,\"\")","v":""},{"$f":"IF(WorkingP!$B50=\"Parish Share\",WorkingP!X50,\"\")","v":""},{"$f":"IF(WorkingP!$B50=\"Parish Share\",WorkingP!Y50,\"\")","v":""},{"$f":"IF(Descriptions!K51=\"Parish Share\",Descriptions!AB51,0)","v":0}]
[{"$f":"IF(Descriptions!K52=\"Parish Share\",Descriptions!I52,0)","v":0},{"$f":"IF(WorkingP!$B51=\"Parish Share\",WorkingP!D51,\"\")","v":""},{"$f":"IF(WorkingP!$B51=\"Parish Share\",WorkingP!E51,\"\")","v":""},{"$f":"IF(WorkingP!$B51=\"Parish Share\",WorkingP!F51,\"\")","v":""},{"$f":"IF(WorkingP!$B51=\"Parish Share\",WorkingP!G51,\"\")","v":""},{"$f":"IF(WorkingP!$B51=\"Parish Share\",WorkingP!H51,\"\")","v":""},{"$f":"IF(WorkingP!$B51=\"Parish Share\",WorkingP!I51,\"\")","v":""},{"$f":"IF(WorkingP!$B51=\"Parish Share\",WorkingP!J51,\"\")","v":""},{"$f":"IF(WorkingP!$B51=\"Parish Share\",WorkingP!K51,\"\")","v":""},{"$f":"IF(WorkingP!$B51=\"Parish Share\",WorkingP!L51,\"\")","v":""},{"$f":"IF(WorkingP!$B51=\"Parish Share\",WorkingP!M51,\"\")","v":""},{"$f":"IF(WorkingP!$B51=\"Parish Share\",WorkingP!N51,\"\")","v":""},{"$f":"IF(WorkingP!$B51=\"Parish Share\",WorkingP!O51,\"\")","v":""},{"$f":"IF(WorkingP!$B51=\"Parish Share\",WorkingP!P51,\"\")","v":""},{"$f":"IF(WorkingP!$B51=\"Parish Share\",WorkingP!Q51,\"\")","v":""},{"$f":"IF(WorkingP!$B51=\"Parish Share\",WorkingP!R51,\"\")","v":""},{"$f":"IF(WorkingP!$B51=\"Parish Share\",WorkingP!S51,\"\")","v":""},{"$f":"IF(WorkingP!$B51=\"Parish Share\",WorkingP!T51,\"\")","v":""},{"$f":"IF(WorkingP!$B51=\"Parish Share\",WorkingP!U51,\"\")","v":""},{"$f":"IF(WorkingP!$B51=\"Parish Share\",WorkingP!V51,\"\")","v":""},{"$f":"IF(WorkingP!$B51=\"Parish Share\",WorkingP!W51,\"\")","v":""},{"$f":"IF(WorkingP!$B51=\"Parish Share\",WorkingP!X51,\"\")","v":""},{"$f":"IF(WorkingP!$B51=\"Parish Share\",WorkingP!Y51,\"\")","v":""},{"$f":"IF(Descriptions!K52=\"Parish Share\",Descriptions!AB52,0)","v":0}]
[{"$f":"IF(Descriptions!K53=\"Parish Share\",Descriptions!I53,0)","v":0},{"$f":"IF(WorkingP!$B52=\"Parish Share\",WorkingP!D52,\"\")","v":""},{"$f":"IF(WorkingP!$B52=\"Parish Share\",WorkingP!E52,\"\")","v":""},{"$f":"IF(WorkingP!$B52=\"Parish Share\",WorkingP!F52,\"\")","v":""},{"$f":"IF(WorkingP!$B52=\"Parish Share\",WorkingP!G52,\"\")","v":""},{"$f":"IF(WorkingP!$B52=\"Parish Share\",WorkingP!H52,\"\")","v":""},{"$f":"IF(WorkingP!$B52=\"Parish Share\",WorkingP!I52,\"\")","v":""},{"$f":"IF(WorkingP!$B52=\"Parish Share\",WorkingP!J52,\"\")","v":""},{"$f":"IF(WorkingP!$B52=\"Parish Share\",WorkingP!K52,\"\")","v":""},{"$f":"IF(WorkingP!$B52=\"Parish Share\",WorkingP!L52,\"\")","v":""},{"$f":"IF(WorkingP!$B52=\"Parish Share\",WorkingP!M52,\"\")","v":""},{"$f":"IF(WorkingP!$B52=\"Parish Share\",WorkingP!N52,\"\")","v":""},{"$f":"IF(WorkingP!$B52=\"Parish Share\",WorkingP!O52,\"\")","v":""},{"$f":"IF(WorkingP!$B52=\"Parish Share\",WorkingP!P52,\"\")","v":""},{"$f":"IF(WorkingP!$B52=\"Parish Share\",WorkingP!Q52,\"\")","v":""},{"$f":"IF(WorkingP!$B52=\"Parish Share\",WorkingP!R52,\"\")","v":""},{"$f":"IF(WorkingP!$B52=\"Parish Share\",WorkingP!S52,\"\")","v":""},{"$f":"IF(WorkingP!$B52=\"Parish Share\",WorkingP!T52,\"\")","v":""},{"$f":"IF(WorkingP!$B52=\"Parish Share\",WorkingP!U52,\"\")","v":""},{"$f":"IF(WorkingP!$B52=\"Parish Share\",WorkingP!V52,\"\")","v":""},{"$f":"IF(WorkingP!$B52=\"Parish Share\",WorkingP!W52,\"\")","v":""},{"$f":"IF(WorkingP!$B52=\"Parish Share\",WorkingP!X52,\"\")","v":""},{"$f":"IF(WorkingP!$B52=\"Parish Share\",WorkingP!Y52,\"\")","v":""},{"$f":"IF(Descriptions!K53=\"Parish Share\",Descriptions!AB53,0)","v":0}]
[{"$f":"IF(Descriptions!K54=\"Parish Share\",Descriptions!I54,0)","v":0},{"$f":"IF(WorkingP!$B53=\"Parish Share\",WorkingP!D53,\"\")","v":""},{"$f":"IF(WorkingP!$B53=\"Parish Share\",WorkingP!E53,\"\")","v":""},{"$f":"IF(WorkingP!$B53=\"Parish Share\",WorkingP!F53,\"\")","v":""},{"$f":"IF(WorkingP!$B53=\"Parish Share\",WorkingP!G53,\"\")","v":""},{"$f":"IF(WorkingP!$B53=\"Parish Share\",WorkingP!H53,\"\")","v":""},{"$f":"IF(WorkingP!$B53=\"Parish Share\",WorkingP!I53,\"\")","v":""},{"$f":"IF(WorkingP!$B53=\"Parish Share\",WorkingP!J53,\"\")","v":""},{"$f":"IF(WorkingP!$B53=\"Parish Share\",WorkingP!K53,\"\")","v":""},{"$f":"IF(WorkingP!$B53=\"Parish Share\",WorkingP!L53,\"\")","v":""},{"$f":"IF(WorkingP!$B53=\"Parish Share\",WorkingP!M53,\"\")","v":""},{"$f":"IF(WorkingP!$B53=\"Parish Share\",WorkingP!N53,\"\")","v":""},{"$f":"IF(WorkingP!$B53=\"Parish Share\",WorkingP!O53,\"\")","v":""},{"$f":"IF(WorkingP!$B53=\"Parish Share\",WorkingP!P53,\"\")","v":""},{"$f":"IF(WorkingP!$B53=\"Parish Share\",WorkingP!Q53,\"\")","v":""},{"$f":"IF(WorkingP!$B53=\"Parish Share\",WorkingP!R53,\"\")","v":""},{"$f":"IF(WorkingP!$B53=\"Parish Share\",WorkingP!S53,\"\")","v":""},{"$f":"IF(WorkingP!$B53=\"Parish Share\",WorkingP!T53,\"\")","v":""},{"$f":"IF(WorkingP!$B53=\"Parish Share\",WorkingP!U53,\"\")","v":""},{"$f":"IF(WorkingP!$B53=\"Parish Share\",WorkingP!V53,\"\")","v":""},{"$f":"IF(WorkingP!$B53=\"Parish Share\",WorkingP!W53,\"\")","v":""},{"$f":"IF(WorkingP!$B53=\"Parish Share\",WorkingP!X53,\"\")","v":""},{"$f":"IF(WorkingP!$B53=\"Parish Share\",WorkingP!Y53,\"\")","v":""},{"$f":"IF(Descriptions!K54=\"Parish Share\",Descriptions!AB54,0)","v":0}]
[{"$f":"IF(Descriptions!K55=\"Parish Share\",Descriptions!I55,0)","v":0},{"$f":"IF(WorkingP!$B54=\"Parish Share\",WorkingP!D54,\"\")","v":""},{"$f":"IF(WorkingP!$B54=\"Parish Share\",WorkingP!E54,\"\")","v":""},{"$f":"IF(WorkingP!$B54=\"Parish Share\",WorkingP!F54,\"\")","v":""},{"$f":"IF(WorkingP!$B54=\"Parish Share\",WorkingP!G54,\"\")","v":""},{"$f":"IF(WorkingP!$B54=\"Parish Share\",WorkingP!H54,\"\")","v":""},{"$f":"IF(WorkingP!$B54=\"Parish Share\",WorkingP!I54,\"\")","v":""},{"$f":"IF(WorkingP!$B54=\"Parish Share\",WorkingP!J54,\"\")","v":""},{"$f":"IF(WorkingP!$B54=\"Parish Share\",WorkingP!K54,\"\")","v":""},{"$f":"IF(WorkingP!$B54=\"Parish Share\",WorkingP!L54,\"\")","v":""},{"$f":"IF(WorkingP!$B54=\"Parish Share\",WorkingP!M54,\"\")","v":""},{"$f":"IF(WorkingP!$B54=\"Parish Share\",WorkingP!N54,\"\")","v":""},{"$f":"IF(WorkingP!$B54=\"Parish Share\",WorkingP!O54,\"\")","v":""},{"$f":"IF(WorkingP!$B54=\"Parish Share\",WorkingP!P54,\"\")","v":""},{"$f":"IF(WorkingP!$B54=\"Parish Share\",WorkingP!Q54,\"\")","v":""},{"$f":"IF(WorkingP!$B54=\"Parish Share\",WorkingP!R54,\"\")","v":""},{"$f":"IF(WorkingP!$B54=\"Parish Share\",WorkingP!S54,\"\")","v":""},{"$f":"IF(WorkingP!$B54=\"Parish Share\",WorkingP!T54,\"\")","v":""},{"$f":"IF(WorkingP!$B54=\"Parish Share\",WorkingP!U54,\"\")","v":""},{"$f":"IF(WorkingP!$B54=\"Parish Share\",WorkingP!V54,\"\")","v":""},{"$f":"IF(WorkingP!$B54=\"Parish Share\",WorkingP!W54,\"\")","v":""},{"$f":"IF(WorkingP!$B54=\"Parish Share\",WorkingP!X54,\"\")","v":""},{"$f":"IF(WorkingP!$B54=\"Parish Share\",WorkingP!Y54,\"\")","v":""},{"$f":"IF(Descriptions!K55=\"Parish Share\",Descriptions!AB55,0)","v":0}]
[{"$f":"IF(Descriptions!K56=\"Parish Share\",Descriptions!I56,0)","v":0},{"$f":"IF(WorkingP!$B55=\"Parish Share\",WorkingP!D55,\"\")","v":""},{"$f":"IF(WorkingP!$B55=\"Parish Share\",WorkingP!E55,\"\")","v":""},{"$f":"IF(WorkingP!$B55=\"Parish Share\",WorkingP!F55,\"\")","v":""},{"$f":"IF(WorkingP!$B55=\"Parish Share\",WorkingP!G55,\"\")","v":""},{"$f":"IF(WorkingP!$B55=\"Parish Share\",WorkingP!H55,\"\")","v":""},{"$f":"IF(WorkingP!$B55=\"Parish Share\",WorkingP!I55,\"\")","v":""},{"$f":"IF(WorkingP!$B55=\"Parish Share\",WorkingP!J55,\"\")","v":""},{"$f":"IF(WorkingP!$B55=\"Parish Share\",WorkingP!K55,\"\")","v":""},{"$f":"IF(WorkingP!$B55=\"Parish Share\",WorkingP!L55,\"\")","v":""},{"$f":"IF(WorkingP!$B55=\"Parish Share\",WorkingP!M55,\"\")","v":""},{"$f":"IF(WorkingP!$B55=\"Parish Share\",WorkingP!N55,\"\")","v":""},{"$f":"IF(WorkingP!$B55=\"Parish Share\",WorkingP!O55,\"\")","v":""},{"$f":"IF(WorkingP!$B55=\"Parish Share\",WorkingP!P55,\"\")","v":""},{"$f":"IF(WorkingP!$B55=\"Parish Share\",WorkingP!Q55,\"\")","v":""},{"$f":"IF(WorkingP!$B55=\"Parish Share\",WorkingP!R55,\"\")","v":""},{"$f":"IF(WorkingP!$B55=\"Parish Share\",WorkingP!S55,\"\")","v":""},{"$f":"IF(WorkingP!$B55=\"Parish Share\",WorkingP!T55,\"\")","v":""},{"$f":"IF(WorkingP!$B55=\"Parish Share\",WorkingP!U55,\"\")","v":""},{"$f":"IF(WorkingP!$B55=\"Parish Share\",WorkingP!V55,\"\")","v":""},{"$f":"IF(WorkingP!$B55=\"Parish Share\",WorkingP!W55,\"\")","v":""},{"$f":"IF(WorkingP!$B55=\"Parish Share\",WorkingP!X55,\"\")","v":""},{"$f":"IF(WorkingP!$B55=\"Parish Share\",WorkingP!Y55,\"\")","v":""},{"$f":"IF(Descriptions!K56=\"Parish Share\",Descriptions!AB56,0)","v":0}]
[{"$f":"IF(Descriptions!K57=\"Parish Share\",Descriptions!I57,0)","v":0},{"$f":"IF(WorkingP!$B56=\"Parish Share\",WorkingP!D56,\"\")","v":""},{"$f":"IF(WorkingP!$B56=\"Parish Share\",WorkingP!E56,\"\")","v":""},{"$f":"IF(WorkingP!$B56=\"Parish Share\",WorkingP!F56,\"\")","v":""},{"$f":"IF(WorkingP!$B56=\"Parish Share\",WorkingP!G56,\"\")","v":""},{"$f":"IF(WorkingP!$B56=\"Parish Share\",WorkingP!H56,\"\")","v":""},{"$f":"IF(WorkingP!$B56=\"Parish Share\",WorkingP!I56,\"\")","v":""},{"$f":"IF(WorkingP!$B56=\"Parish Share\",WorkingP!J56,\"\")","v":""},{"$f":"IF(WorkingP!$B56=\"Parish Share\",WorkingP!K56,\"\")","v":""},{"$f":"IF(WorkingP!$B56=\"Parish Share\",WorkingP!L56,\"\")","v":""},{"$f":"IF(WorkingP!$B56=\"Parish Share\",WorkingP!M56,\"\")","v":""},{"$f":"IF(WorkingP!$B56=\"Parish Share\",WorkingP!N56,\"\")","v":""},{"$f":"IF(WorkingP!$B56=\"Parish Share\",WorkingP!O56,\"\")","v":""},{"$f":"IF(WorkingP!$B56=\"Parish Share\",WorkingP!P56,\"\")","v":""},{"$f":"IF(WorkingP!$B56=\"Parish Share\",WorkingP!Q56,\"\")","v":""},{"$f":"IF(WorkingP!$B56=\"Parish Share\",WorkingP!R56,\"\")","v":""},{"$f":"IF(WorkingP!$B56=\"Parish Share\",WorkingP!S56,\"\")","v":""},{"$f":"IF(WorkingP!$B56=\"Parish Share\",WorkingP!T56,\"\")","v":""},{"$f":"IF(WorkingP!$B56=\"Parish Share\",WorkingP!U56,\"\")","v":""},{"$f":"IF(WorkingP!$B56=\"Parish Share\",WorkingP!V56,\"\")","v":""},{"$f":"IF(WorkingP!$B56=\"Parish Share\",WorkingP!W56,\"\")","v":""},{"$f":"IF(WorkingP!$B56=\"Parish Share\",WorkingP!X56,\"\")","v":""},{"$f":"IF(WorkingP!$B56=\"Parish Share\",WorkingP!Y56,\"\")","v":""},{"$f":"IF(Descriptions!K57=\"Parish Share\",Descriptions!AB57,0)","v":0}]
[{"$f":"IF(Descriptions!K58=\"Parish Share\",Descriptions!I58,0)","v":0},{"$f":"IF(WorkingP!$B57=\"Parish Share\",WorkingP!D57,\"\")","v":""},{"$f":"IF(WorkingP!$B57=\"Parish Share\",WorkingP!E57,\"\")","v":""},{"$f":"IF(WorkingP!$B57=\"Parish Share\",WorkingP!F57,\"\")","v":""},{"$f":"IF(WorkingP!$B57=\"Parish Share\",WorkingP!G57,\"\")","v":""},{"$f":"IF(WorkingP!$B57=\"Parish Share\",WorkingP!H57,\"\")","v":""},{"$f":"IF(WorkingP!$B57=\"Parish Share\",WorkingP!I57,\"\")","v":""},{"$f":"IF(WorkingP!$B57=\"Parish Share\",WorkingP!J57,\"\")","v":""},{"$f":"IF(WorkingP!$B57=\"Parish Share\",WorkingP!K57,\"\")","v":""},{"$f":"IF(WorkingP!$B57=\"Parish Share\",WorkingP!L57,\"\")","v":""},{"$f":"IF(WorkingP!$B57=\"Parish Share\",WorkingP!M57,\"\")","v":""},{"$f":"IF(WorkingP!$B57=\"Parish Share\",WorkingP!N57,\"\")","v":""},{"$f":"IF(WorkingP!$B57=\"Parish Share\",WorkingP!O57,\"\")","v":""},{"$f":"IF(WorkingP!$B57=\"Parish Share\",WorkingP!P57,\"\")","v":""},{"$f":"IF(WorkingP!$B57=\"Parish Share\",WorkingP!Q57,\"\")","v":""},{"$f":"IF(WorkingP!$B57=\"Parish Share\",WorkingP!R57,\"\")","v":""},{"$f":"IF(WorkingP!$B57=\"Parish Share\",WorkingP!S57,\"\")","v":""},{"$f":"IF(WorkingP!$B57=\"Parish Share\",WorkingP!T57,\"\")","v":""},{"$f":"IF(WorkingP!$B57=\"Parish Share\",WorkingP!U57,\"\")","v":""},{"$f":"IF(WorkingP!$B57=\"Parish Share\",WorkingP!V57,\"\")","v":""},{"$f":"IF(WorkingP!$B57=\"Parish Share\",WorkingP!W57,\"\")","v":""},{"$f":"IF(WorkingP!$B57=\"Parish Share\",WorkingP!X57,\"\")","v":""},{"$f":"IF(WorkingP!$B57=\"Parish Share\",WorkingP!Y57,\"\")","v":""},{"$f":"IF(Descriptions!K58=\"Parish Share\",Descriptions!AB58,0)","v":0}]
[{"$f":"IF(Descriptions!K59=\"Parish Share\",Descriptions!I59,0)","v":0},{"$f":"IF(WorkingP!$B58=\"Parish Share\",WorkingP!D58,\"\")","v":""},{"$f":"IF(WorkingP!$B58=\"Parish Share\",WorkingP!E58,\"\")","v":""},{"$f":"IF(WorkingP!$B58=\"Parish Share\",WorkingP!F58,\"\")","v":""},{"$f":"IF(WorkingP!$B58=\"Parish Share\",WorkingP!G58,\"\")","v":""},{"$f":"IF(WorkingP!$B58=\"Parish Share\",WorkingP!H58,\"\")","v":""},{"$f":"IF(WorkingP!$B58=\"Parish Share\",WorkingP!I58,\"\")","v":""},{"$f":"IF(WorkingP!$B58=\"Parish Share\",WorkingP!J58,\"\")","v":""},{"$f":"IF(WorkingP!$B58=\"Parish Share\",WorkingP!K58,\"\")","v":""},{"$f":"IF(WorkingP!$B58=\"Parish Share\",WorkingP!L58,\"\")","v":""},{"$f":"IF(WorkingP!$B58=\"Parish Share\",WorkingP!M58,\"\")","v":""},{"$f":"IF(WorkingP!$B58=\"Parish Share\",WorkingP!N58,\"\")","v":""},{"$f":"IF(WorkingP!$B58=\"Parish Share\",WorkingP!O58,\"\")","v":""},{"$f":"IF(WorkingP!$B58=\"Parish Share\",WorkingP!P58,\"\")","v":""},{"$f":"IF(WorkingP!$B58=\"Parish Share\",WorkingP!Q58,\"\")","v":""},{"$f":"IF(WorkingP!$B58=\"Parish Share\",WorkingP!R58,\"\")","v":""},{"$f":"IF(WorkingP!$B58=\"Parish Share\",WorkingP!S58,\"\")","v":""},{"$f":"IF(WorkingP!$B58=\"Parish Share\",WorkingP!T58,\"\")","v":""},{"$f":"IF(WorkingP!$B58=\"Parish Share\",WorkingP!U58,\"\")","v":""},{"$f":"IF(WorkingP!$B58=\"Parish Share\",WorkingP!V58,\"\")","v":""},{"$f":"IF(WorkingP!$B58=\"Parish Share\",WorkingP!W58,\"\")","v":""},{"$f":"IF(WorkingP!$B58=\"Parish Share\",WorkingP!X58,\"\")","v":""},{"$f":"IF(WorkingP!$B58=\"Parish Share\",WorkingP!Y58,\"\")","v":""},{"$f":"IF(Descriptions!K59=\"Parish Share\",Descriptions!AB59,0)","v":0}]
[{"$f":"IF(Descriptions!K60=\"Parish Share\",Descriptions!I60,0)","v":0},{"$f":"IF(WorkingP!$B59=\"Parish Share\",WorkingP!D59,\"\")","v":""},{"$f":"IF(WorkingP!$B59=\"Parish Share\",WorkingP!E59,\"\")","v":""},{"$f":"IF(WorkingP!$B59=\"Parish Share\",WorkingP!F59,\"\")","v":""},{"$f":"IF(WorkingP!$B59=\"Parish Share\",WorkingP!G59,\"\")","v":""},{"$f":"IF(WorkingP!$B59=\"Parish Share\",WorkingP!H59,\"\")","v":""},{"$f":"IF(WorkingP!$B59=\"Parish Share\",WorkingP!I59,\"\")","v":""},{"$f":"IF(WorkingP!$B59=\"Parish Share\",WorkingP!J59,\"\")","v":""},{"$f":"IF(WorkingP!$B59=\"Parish Share\",WorkingP!K59,\"\")","v":""},{"$f":"IF(WorkingP!$B59=\"Parish Share\",WorkingP!L59,\"\")","v":""},{"$f":"IF(WorkingP!$B59=\"Parish Share\",WorkingP!M59,\"\")","v":""},{"$f":"IF(WorkingP!$B59=\"Parish Share\",WorkingP!N59,\"\")","v":""},{"$f":"IF(WorkingP!$B59=\"Parish Share\",WorkingP!O59,\"\")","v":""},{"$f":"IF(WorkingP!$B59=\"Parish Share\",WorkingP!P59,\"\")","v":""},{"$f":"IF(WorkingP!$B59=\"Parish Share\",WorkingP!Q59,\"\")","v":""},{"$f":"IF(WorkingP!$B59=\"Parish Share\",WorkingP!R59,\"\")","v":""},{"$f":"IF(WorkingP!$B59=\"Parish Share\",WorkingP!S59,\"\")","v":""},{"$f":"IF(WorkingP!$B59=\"Parish Share\",WorkingP!T59,\"\")","v":""},{"$f":"IF(WorkingP!$B59=\"Parish Share\",WorkingP!U59,\"\")","v":""},{"$f":"IF(WorkingP!$B59=\"Parish Share\",WorkingP!V59,\"\")","v":""},{"$f":"IF(WorkingP!$B59=\"Parish Share\",WorkingP!W59,\"\")","v":""},{"$f":"IF(WorkingP!$B59=\"Parish Share\",WorkingP!X59,\"\")","v":""},{"$f":"IF(WorkingP!$B59=\"Parish Share\",WorkingP!Y59,\"\")","v":""},{"$f":"IF(Descriptions!K60=\"Parish Share\",Descriptions!AB60,0)","v":0}]
[{"$f":"IF(Descriptions!K61=\"Parish Share\",Descriptions!I61,0)","v":0},{"$f":"IF(WorkingP!$B60=\"Parish Share\",WorkingP!D60,\"\")","v":""},{"$f":"IF(WorkingP!$B60=\"Parish Share\",WorkingP!E60,\"\")","v":""},{"$f":"IF(WorkingP!$B60=\"Parish Share\",WorkingP!F60,\"\")","v":""},{"$f":"IF(WorkingP!$B60=\"Parish Share\",WorkingP!G60,\"\")","v":""},{"$f":"IF(WorkingP!$B60=\"Parish Share\",WorkingP!H60,\"\")","v":""},{"$f":"IF(WorkingP!$B60=\"Parish Share\",WorkingP!I60,\"\")","v":""},{"$f":"IF(WorkingP!$B60=\"Parish Share\",WorkingP!J60,\"\")","v":""},{"$f":"IF(WorkingP!$B60=\"Parish Share\",WorkingP!K60,\"\")","v":""},{"$f":"IF(WorkingP!$B60=\"Parish Share\",WorkingP!L60,\"\")","v":""},{"$f":"IF(WorkingP!$B60=\"Parish Share\",WorkingP!M60,\"\")","v":""},{"$f":"IF(WorkingP!$B60=\"Parish Share\",WorkingP!N60,\"\")","v":""},{"$f":"IF(WorkingP!$B60=\"Parish Share\",WorkingP!O60,\"\")","v":""},{"$f":"IF(WorkingP!$B60=\"Parish Share\",WorkingP!P60,\"\")","v":""},{"$f":"IF(WorkingP!$B60=\"Parish Share\",WorkingP!Q60,\"\")","v":""},{"$f":"IF(WorkingP!$B60=\"Parish Share\",WorkingP!R60,\"\")","v":""},{"$f":"IF(WorkingP!$B60=\"Parish Share\",WorkingP!S60,\"\")","v":""},{"$f":"IF(WorkingP!$B60=\"Parish Share\",WorkingP!T60,\"\")","v":""},{"$f":"IF(WorkingP!$B60=\"Parish Share\",WorkingP!U60,\"\")","v":""},{"$f":"IF(WorkingP!$B60=\"Parish Share\",WorkingP!V60,\"\")","v":""},{"$f":"IF(WorkingP!$B60=\"Parish Share\",WorkingP!W60,\"\")","v":""},{"$f":"IF(WorkingP!$B60=\"Parish Share\",WorkingP!X60,\"\")","v":""},{"$f":"IF(WorkingP!$B60=\"Parish Share\",WorkingP!Y60,\"\")","v":""},{"$f":"IF(Descriptions!K61=\"Parish Share\",Descriptions!AB61,0)","v":0}]
[{"$f":"IF(Descriptions!K62=\"Parish Share\",Descriptions!I62,0)","v":0},{"$f":"IF(WorkingP!$B61=\"Parish Share\",WorkingP!D61,\"\")","v":""},{"$f":"IF(WorkingP!$B61=\"Parish Share\",WorkingP!E61,\"\")","v":""},{"$f":"IF(WorkingP!$B61=\"Parish Share\",WorkingP!F61,\"\")","v":""},{"$f":"IF(WorkingP!$B61=\"Parish Share\",WorkingP!G61,\"\")","v":""},{"$f":"IF(WorkingP!$B61=\"Parish Share\",WorkingP!H61,\"\")","v":""},{"$f":"IF(WorkingP!$B61=\"Parish Share\",WorkingP!I61,\"\")","v":""},{"$f":"IF(WorkingP!$B61=\"Parish Share\",WorkingP!J61,\"\")","v":""},{"$f":"IF(WorkingP!$B61=\"Parish Share\",WorkingP!K61,\"\")","v":""},{"$f":"IF(WorkingP!$B61=\"Parish Share\",WorkingP!L61,\"\")","v":""},{"$f":"IF(WorkingP!$B61=\"Parish Share\",WorkingP!M61,\"\")","v":""},{"$f":"IF(WorkingP!$B61=\"Parish Share\",WorkingP!N61,\"\")","v":""},{"$f":"IF(WorkingP!$B61=\"Parish Share\",WorkingP!O61,\"\")","v":""},{"$f":"IF(WorkingP!$B61=\"Parish Share\",WorkingP!P61,\"\")","v":""},{"$f":"IF(WorkingP!$B61=\"Parish Share\",WorkingP!Q61,\"\")","v":""},{"$f":"IF(WorkingP!$B61=\"Parish Share\",WorkingP!R61,\"\")","v":""},{"$f":"IF(WorkingP!$B61=\"Parish Share\",WorkingP!S61,\"\")","v":""},{"$f":"IF(WorkingP!$B61=\"Parish Share\",WorkingP!T61,\"\")","v":""},{"$f":"IF(WorkingP!$B61=\"Parish Share\",WorkingP!U61,\"\")","v":""},{"$f":"IF(WorkingP!$B61=\"Parish Share\",WorkingP!V61,\"\")","v":""},{"$f":"IF(WorkingP!$B61=\"Parish Share\",WorkingP!W61,\"\")","v":""},{"$f":"IF(WorkingP!$B61=\"Parish Share\",WorkingP!X61,\"\")","v":""},{"$f":"IF(WorkingP!$B61=\"Parish Share\",WorkingP!Y61,\"\")","v":""},{"$f":"IF(Descriptions!K62=\"Parish Share\",Descriptions!AB62,0)","v":0}]
[{"$f":"IF(Descriptions!K63=\"Parish Share\",Descriptions!I63,0)","v":0},{"$f":"IF(WorkingP!$B62=\"Parish Share\",WorkingP!D62,\"\")","v":""},{"$f":"IF(WorkingP!$B62=\"Parish Share\",WorkingP!E62,\"\")","v":""},{"$f":"IF(WorkingP!$B62=\"Parish Share\",WorkingP!F62,\"\")","v":""},{"$f":"IF(WorkingP!$B62=\"Parish Share\",WorkingP!G62,\"\")","v":""},{"$f":"IF(WorkingP!$B62=\"Parish Share\",WorkingP!H62,\"\")","v":""},{"$f":"IF(WorkingP!$B62=\"Parish Share\",WorkingP!I62,\"\")","v":""},{"$f":"IF(WorkingP!$B62=\"Parish Share\",WorkingP!J62,\"\")","v":""},{"$f":"IF(WorkingP!$B62=\"Parish Share\",WorkingP!K62,\"\")","v":""},{"$f":"IF(WorkingP!$B62=\"Parish Share\",WorkingP!L62,\"\")","v":""},{"$f":"IF(WorkingP!$B62=\"Parish Share\",WorkingP!M62,\"\")","v":""},{"$f":"IF(WorkingP!$B62=\"Parish Share\",WorkingP!N62,\"\")","v":""},{"$f":"IF(WorkingP!$B62=\"Parish Share\",WorkingP!O62,\"\")","v":""},{"$f":"IF(WorkingP!$B62=\"Parish Share\",WorkingP!P62,\"\")","v":""},{"$f":"IF(WorkingP!$B62=\"Parish Share\",WorkingP!Q62,\"\")","v":""},{"$f":"IF(WorkingP!$B62=\"Parish Share\",WorkingP!R62,\"\")","v":""},{"$f":"IF(WorkingP!$B62=\"Parish Share\",WorkingP!S62,\"\")","v":""},{"$f":"IF(WorkingP!$B62=\"Parish Share\",WorkingP!T62,\"\")","v":""},{"$f":"IF(WorkingP!$B62=\"Parish Share\",WorkingP!U62,\"\")","v":""},{"$f":"IF(WorkingP!$B62=\"Parish Share\",WorkingP!V62,\"\")","v":""},{"$f":"IF(WorkingP!$B62=\"Parish Share\",WorkingP!W62,\"\")","v":""},{"$f":"IF(WorkingP!$B62=\"Parish Share\",WorkingP!X62,\"\")","v":""},{"$f":"IF(WorkingP!$B62=\"Parish Share\",WorkingP!Y62,\"\")","v":""},{"$f":"IF(Descriptions!K63=\"Parish Share\",Descriptions!AB63,0)","v":0}]
[{"$f":"IF(Descriptions!K64=\"Parish Share\",Descriptions!I64,0)","v":0},{"$f":"IF(WorkingP!$B63=\"Parish Share\",WorkingP!D63,\"\")","v":""},{"$f":"IF(WorkingP!$B63=\"Parish Share\",WorkingP!E63,\"\")","v":""},{"$f":"IF(WorkingP!$B63=\"Parish Share\",WorkingP!F63,\"\")","v":""},{"$f":"IF(WorkingP!$B63=\"Parish Share\",WorkingP!G63,\"\")","v":""},{"$f":"IF(WorkingP!$B63=\"Parish Share\",WorkingP!H63,\"\")","v":""},{"$f":"IF(WorkingP!$B63=\"Parish Share\",WorkingP!I63,\"\")","v":""},{"$f":"IF(WorkingP!$B63=\"Parish Share\",WorkingP!J63,\"\")","v":""},{"$f":"IF(WorkingP!$B63=\"Parish Share\",WorkingP!K63,\"\")","v":""},{"$f":"IF(WorkingP!$B63=\"Parish Share\",WorkingP!L63,\"\")","v":""},{"$f":"IF(WorkingP!$B63=\"Parish Share\",WorkingP!M63,\"\")","v":""},{"$f":"IF(WorkingP!$B63=\"Parish Share\",WorkingP!N63,\"\")","v":""},{"$f":"IF(WorkingP!$B63=\"Parish Share\",WorkingP!O63,\"\")","v":""},{"$f":"IF(WorkingP!$B63=\"Parish Share\",WorkingP!P63,\"\")","v":""},{"$f":"IF(WorkingP!$B63=\"Parish Share\",WorkingP!Q63,\"\")","v":""},{"$f":"IF(WorkingP!$B63=\"Parish Share\",WorkingP!R63,\"\")","v":""},{"$f":"IF(WorkingP!$B63=\"Parish Share\",WorkingP!S63,\"\")","v":""},{"$f":"IF(WorkingP!$B63=\"Parish Share\",WorkingP!T63,\"\")","v":""},{"$f":"IF(WorkingP!$B63=\"Parish Share\",WorkingP!U63,\"\")","v":""},{"$f":"IF(WorkingP!$B63=\"Parish Share\",WorkingP!V63,\"\")","v":""},{"$f":"IF(WorkingP!$B63=\"Parish Share\",WorkingP!W63,\"\")","v":""},{"$f":"IF(WorkingP!$B63=\"Parish Share\",WorkingP!X63,\"\")","v":""},{"$f":"IF(WorkingP!$B63=\"Parish Share\",WorkingP!Y63,\"\")","v":""},{"$f":"IF(Descriptions!K64=\"Parish Share\",Descriptions!AB64,0)","v":0}]
[{"$f":"IF(Descriptions!K65=\"Parish Share\",Descriptions!I65,0)","v":0},{"$f":"IF(WorkingP!$B64=\"Parish Share\",WorkingP!D64,\"\")","v":""},{"$f":"IF(WorkingP!$B64=\"Parish Share\",WorkingP!E64,\"\")","v":""},{"$f":"IF(WorkingP!$B64=\"Parish Share\",WorkingP!F64,\"\")","v":""},{"$f":"IF(WorkingP!$B64=\"Parish Share\",WorkingP!G64,\"\")","v":""},{"$f":"IF(WorkingP!$B64=\"Parish Share\",WorkingP!H64,\"\")","v":""},{"$f":"IF(WorkingP!$B64=\"Parish Share\",WorkingP!I64,\"\")","v":""},{"$f":"IF(WorkingP!$B64=\"Parish Share\",WorkingP!J64,\"\")","v":""},{"$f":"IF(WorkingP!$B64=\"Parish Share\",WorkingP!K64,\"\")","v":""},{"$f":"IF(WorkingP!$B64=\"Parish Share\",WorkingP!L64,\"\")","v":""},{"$f":"IF(WorkingP!$B64=\"Parish Share\",WorkingP!M64,\"\")","v":""},{"$f":"IF(WorkingP!$B64=\"Parish Share\",WorkingP!N64,\"\")","v":""},{"$f":"IF(WorkingP!$B64=\"Parish Share\",WorkingP!O64,\"\")","v":""},{"$f":"IF(WorkingP!$B64=\"Parish Share\",WorkingP!P64,\"\")","v":""},{"$f":"IF(WorkingP!$B64=\"Parish Share\",WorkingP!Q64,\"\")","v":""},{"$f":"IF(WorkingP!$B64=\"Parish Share\",WorkingP!R64,\"\")","v":""},{"$f":"IF(WorkingP!$B64=\"Parish Share\",WorkingP!S64,\"\")","v":""},{"$f":"IF(WorkingP!$B64=\"Parish Share\",WorkingP!T64,\"\")","v":""},{"$f":"IF(WorkingP!$B64=\"Parish Share\",WorkingP!U64,\"\")","v":""},{"$f":"IF(WorkingP!$B64=\"Parish Share\",WorkingP!V64,\"\")","v":""},{"$f":"IF(WorkingP!$B64=\"Parish Share\",WorkingP!W64,\"\")","v":""},{"$f":"IF(WorkingP!$B64=\"Parish Share\",WorkingP!X64,\"\")","v":""},{"$f":"IF(WorkingP!$B64=\"Parish Share\",WorkingP!Y64,\"\")","v":""},{"$f":"IF(Descriptions!K65=\"Parish Share\",Descriptions!AB65,0)","v":0}]
[{"$f":"IF(Descriptions!K66=\"Parish Share\",Descriptions!I66,0)","v":0},{"$f":"IF(WorkingP!$B65=\"Parish Share\",WorkingP!D65,\"\")","v":""},{"$f":"IF(WorkingP!$B65=\"Parish Share\",WorkingP!E65,\"\")","v":""},{"$f":"IF(WorkingP!$B65=\"Parish Share\",WorkingP!F65,\"\")","v":""},{"$f":"IF(WorkingP!$B65=\"Parish Share\",WorkingP!G65,\"\")","v":""},{"$f":"IF(WorkingP!$B65=\"Parish Share\",WorkingP!H65,\"\")","v":""},{"$f":"IF(WorkingP!$B65=\"Parish Share\",WorkingP!I65,\"\")","v":""},{"$f":"IF(WorkingP!$B65=\"Parish Share\",WorkingP!J65,\"\")","v":""},{"$f":"IF(WorkingP!$B65=\"Parish Share\",WorkingP!K65,\"\")","v":""},{"$f":"IF(WorkingP!$B65=\"Parish Share\",WorkingP!L65,\"\")","v":""},{"$f":"IF(WorkingP!$B65=\"Parish Share\",WorkingP!M65,\"\")","v":""},{"$f":"IF(WorkingP!$B65=\"Parish Share\",WorkingP!N65,\"\")","v":""},{"$f":"IF(WorkingP!$B65=\"Parish Share\",WorkingP!O65,\"\")","v":""},{"$f":"IF(WorkingP!$B65=\"Parish Share\",WorkingP!P65,\"\")","v":""},{"$f":"IF(WorkingP!$B65=\"Parish Share\",WorkingP!Q65,\"\")","v":""},{"$f":"IF(WorkingP!$B65=\"Parish Share\",WorkingP!R65,\"\")","v":""},{"$f":"IF(WorkingP!$B65=\"Parish Share\",WorkingP!S65,\"\")","v":""},{"$f":"IF(WorkingP!$B65=\"Parish Share\",WorkingP!T65,\"\")","v":""},{"$f":"IF(WorkingP!$B65=\"Parish Share\",WorkingP!U65,\"\")","v":""},{"$f":"IF(WorkingP!$B65=\"Parish Share\",WorkingP!V65,\"\")","v":""},{"$f":"IF(WorkingP!$B65=\"Parish Share\",WorkingP!W65,\"\")","v":""},{"$f":"IF(WorkingP!$B65=\"Parish Share\",WorkingP!X65,\"\")","v":""},{"$f":"IF(WorkingP!$B65=\"Parish Share\",WorkingP!Y65,\"\")","v":""},{"$f":"IF(Descriptions!K66=\"Parish Share\",Descriptions!AB66,0)","v":0}]
[{"$f":"IF(Descriptions!K67=\"Parish Share\",Descriptions!I67,0)","v":0},{"$f":"IF(WorkingP!$B66=\"Parish Share\",WorkingP!D66,\"\")","v":""},{"$f":"IF(WorkingP!$B66=\"Parish Share\",WorkingP!E66,\"\")","v":""},{"$f":"IF(WorkingP!$B66=\"Parish Share\",WorkingP!F66,\"\")","v":""},{"$f":"IF(WorkingP!$B66=\"Parish Share\",WorkingP!G66,\"\")","v":""},{"$f":"IF(WorkingP!$B66=\"Parish Share\",WorkingP!H66,\"\")","v":""},{"$f":"IF(WorkingP!$B66=\"Parish Share\",WorkingP!I66,\"\")","v":""},{"$f":"IF(WorkingP!$B66=\"Parish Share\",WorkingP!J66,\"\")","v":""},{"$f":"IF(WorkingP!$B66=\"Parish Share\",WorkingP!K66,\"\")","v":""},{"$f":"IF(WorkingP!$B66=\"Parish Share\",WorkingP!L66,\"\")","v":""},{"$f":"IF(WorkingP!$B66=\"Parish Share\",WorkingP!M66,\"\")","v":""},{"$f":"IF(WorkingP!$B66=\"Parish Share\",WorkingP!N66,\"\")","v":""},{"$f":"IF(WorkingP!$B66=\"Parish Share\",WorkingP!O66,\"\")","v":""},{"$f":"IF(WorkingP!$B66=\"Parish Share\",WorkingP!P66,\"\")","v":""},{"$f":"IF(WorkingP!$B66=\"Parish Share\",WorkingP!Q66,\"\")","v":""},{"$f":"IF(WorkingP!$B66=\"Parish Share\",WorkingP!R66,\"\")","v":""},{"$f":"IF(WorkingP!$B66=\"Parish Share\",WorkingP!S66,\"\")","v":""},{"$f":"IF(WorkingP!$B66=\"Parish Share\",WorkingP!T66,\"\")","v":""},{"$f":"IF(WorkingP!$B66=\"Parish Share\",WorkingP!U66,\"\")","v":""},{"$f":"IF(WorkingP!$B66=\"Parish Share\",WorkingP!V66,\"\")","v":""},{"$f":"IF(WorkingP!$B66=\"Parish Share\",WorkingP!W66,\"\")","v":""},{"$f":"IF(WorkingP!$B66=\"Parish Share\",WorkingP!X66,\"\")","v":""},{"$f":"IF(WorkingP!$B66=\"Parish Share\",WorkingP!Y66,\"\")","v":""},{"$f":"IF(Descriptions!K67=\"Parish Share\",Descriptions!AB67,0)","v":0}]
[{"$f":"IF(Descriptions!K68=\"Parish Share\",Descriptions!I68,0)","v":0},{"$f":"IF(WorkingP!$B67=\"Parish Share\",WorkingP!D67,\"\")","v":""},{"$f":"IF(WorkingP!$B67=\"Parish Share\",WorkingP!E67,\"\")","v":""},{"$f":"IF(WorkingP!$B67=\"Parish Share\",WorkingP!F67,\"\")","v":""},{"$f":"IF(WorkingP!$B67=\"Parish Share\",WorkingP!G67,\"\")","v":""},{"$f":"IF(WorkingP!$B67=\"Parish Share\",WorkingP!H67,\"\")","v":""},{"$f":"IF(WorkingP!$B67=\"Parish Share\",WorkingP!I67,\"\")","v":""},{"$f":"IF(WorkingP!$B67=\"Parish Share\",WorkingP!J67,\"\")","v":""},{"$f":"IF(WorkingP!$B67=\"Parish Share\",WorkingP!K67,\"\")","v":""},{"$f":"IF(WorkingP!$B67=\"Parish Share\",WorkingP!L67,\"\")","v":""},{"$f":"IF(WorkingP!$B67=\"Parish Share\",WorkingP!M67,\"\")","v":""},{"$f":"IF(WorkingP!$B67=\"Parish Share\",WorkingP!N67,\"\")","v":""},{"$f":"IF(WorkingP!$B67=\"Parish Share\",WorkingP!O67,\"\")","v":""},{"$f":"IF(WorkingP!$B67=\"Parish Share\",WorkingP!P67,\"\")","v":""},{"$f":"IF(WorkingP!$B67=\"Parish Share\",WorkingP!Q67,\"\")","v":""},{"$f":"IF(WorkingP!$B67=\"Parish Share\",WorkingP!R67,\"\")","v":""},{"$f":"IF(WorkingP!$B67=\"Parish Share\",WorkingP!S67,\"\")","v":""},{"$f":"IF(WorkingP!$B67=\"Parish Share\",WorkingP!T67,\"\")","v":""},{"$f":"IF(WorkingP!$B67=\"Parish Share\",WorkingP!U67,\"\")","v":""},{"$f":"IF(WorkingP!$B67=\"Parish Share\",WorkingP!V67,\"\")","v":""},{"$f":"IF(WorkingP!$B67=\"Parish Share\",WorkingP!W67,\"\")","v":""},{"$f":"IF(WorkingP!$B67=\"Parish Share\",WorkingP!X67,\"\")","v":""},{"$f":"IF(WorkingP!$B67=\"Parish Share\",WorkingP!Y67,\"\")","v":""},{"$f":"IF(Descriptions!K68=\"Parish Share\",Descriptions!AB68,0)","v":0}]
[{"$f":"IF(Descriptions!K69=\"Parish Share\",Descriptions!I69,0)","v":0},{"$f":"IF(WorkingP!$B68=\"Parish Share\",WorkingP!D68,\"\")","v":""},{"$f":"IF(WorkingP!$B68=\"Parish Share\",WorkingP!E68,\"\")","v":""},{"$f":"IF(WorkingP!$B68=\"Parish Share\",WorkingP!F68,\"\")","v":""},{"$f":"IF(WorkingP!$B68=\"Parish Share\",WorkingP!G68,\"\")","v":""},{"$f":"IF(WorkingP!$B68=\"Parish Share\",WorkingP!H68,\"\")","v":""},{"$f":"IF(WorkingP!$B68=\"Parish Share\",WorkingP!I68,\"\")","v":""},{"$f":"IF(WorkingP!$B68=\"Parish Share\",WorkingP!J68,\"\")","v":""},{"$f":"IF(WorkingP!$B68=\"Parish Share\",WorkingP!K68,\"\")","v":""},{"$f":"IF(WorkingP!$B68=\"Parish Share\",WorkingP!L68,\"\")","v":""},{"$f":"IF(WorkingP!$B68=\"Parish Share\",WorkingP!M68,\"\")","v":""},{"$f":"IF(WorkingP!$B68=\"Parish Share\",WorkingP!N68,\"\")","v":""},{"$f":"IF(WorkingP!$B68=\"Parish Share\",WorkingP!O68,\"\")","v":""},{"$f":"IF(WorkingP!$B68=\"Parish Share\",WorkingP!P68,\"\")","v":""},{"$f":"IF(WorkingP!$B68=\"Parish Share\",WorkingP!Q68,\"\")","v":""},{"$f":"IF(WorkingP!$B68=\"Parish Share\",WorkingP!R68,\"\")","v":""},{"$f":"IF(WorkingP!$B68=\"Parish Share\",WorkingP!S68,\"\")","v":""},{"$f":"IF(WorkingP!$B68=\"Parish Share\",WorkingP!T68,\"\")","v":""},{"$f":"IF(WorkingP!$B68=\"Parish Share\",WorkingP!U68,\"\")","v":""},{"$f":"IF(WorkingP!$B68=\"Parish Share\",WorkingP!V68,\"\")","v":""},{"$f":"IF(WorkingP!$B68=\"Parish Share\",WorkingP!W68,\"\")","v":""},{"$f":"IF(WorkingP!$B68=\"Parish Share\",WorkingP!X68,\"\")","v":""},{"$f":"IF(WorkingP!$B68=\"Parish Share\",WorkingP!Y68,\"\")","v":""},{"$f":"IF(Descriptions!K69=\"Parish Share\",Descriptions!AB69,0)","v":0}]
[{"$f":"IF(Descriptions!K70=\"Parish Share\",Descriptions!I70,0)","v":0},{"$f":"IF(WorkingP!$B69=\"Parish Share\",WorkingP!D69,\"\")","v":""},{"$f":"IF(WorkingP!$B69=\"Parish Share\",WorkingP!E69,\"\")","v":""},{"$f":"IF(WorkingP!$B69=\"Parish Share\",WorkingP!F69,\"\")","v":""},{"$f":"IF(WorkingP!$B69=\"Parish Share\",WorkingP!G69,\"\")","v":""},{"$f":"IF(WorkingP!$B69=\"Parish Share\",WorkingP!H69,\"\")","v":""},{"$f":"IF(WorkingP!$B69=\"Parish Share\",WorkingP!I69,\"\")","v":""},{"$f":"IF(WorkingP!$B69=\"Parish Share\",WorkingP!J69,\"\")","v":""},{"$f":"IF(WorkingP!$B69=\"Parish Share\",WorkingP!K69,\"\")","v":""},{"$f":"IF(WorkingP!$B69=\"Parish Share\",WorkingP!L69,\"\")","v":""},{"$f":"IF(WorkingP!$B69=\"Parish Share\",WorkingP!M69,\"\")","v":""},{"$f":"IF(WorkingP!$B69=\"Parish Share\",WorkingP!N69,\"\")","v":""},{"$f":"IF(WorkingP!$B69=\"Parish Share\",WorkingP!O69,\"\")","v":""},{"$f":"IF(WorkingP!$B69=\"Parish Share\",WorkingP!P69,\"\")","v":""},{"$f":"IF(WorkingP!$B69=\"Parish Share\",WorkingP!Q69,\"\")","v":""},{"$f":"IF(WorkingP!$B69=\"Parish Share\",WorkingP!R69,\"\")","v":""},{"$f":"IF(WorkingP!$B69=\"Parish Share\",WorkingP!S69,\"\")","v":""},{"$f":"IF(WorkingP!$B69=\"Parish Share\",WorkingP!T69,\"\")","v":""},{"$f":"IF(WorkingP!$B69=\"Parish Share\",WorkingP!U69,\"\")","v":""},{"$f":"IF(WorkingP!$B69=\"Parish Share\",WorkingP!V69,\"\")","v":""},{"$f":"IF(WorkingP!$B69=\"Parish Share\",WorkingP!W69,\"\")","v":""},{"$f":"IF(WorkingP!$B69=\"Parish Share\",WorkingP!X69,\"\")","v":""},{"$f":"IF(WorkingP!$B69=\"Parish Share\",WorkingP!Y69,\"\")","v":""},{"$f":"IF(Descriptions!K70=\"Parish Share\",Descriptions!AB70,0)","v":0}]
[{"$f":"IF(Descriptions!K71=\"Parish Share\",Descriptions!I71,0)","v":0},{"$f":"IF(WorkingP!$B70=\"Parish Share\",WorkingP!D70,\"\")","v":""},{"$f":"IF(WorkingP!$B70=\"Parish Share\",WorkingP!E70,\"\")","v":""},{"$f":"IF(WorkingP!$B70=\"Parish Share\",WorkingP!F70,\"\")","v":""},{"$f":"IF(WorkingP!$B70=\"Parish Share\",WorkingP!G70,\"\")","v":""},{"$f":"IF(WorkingP!$B70=\"Parish Share\",WorkingP!H70,\"\")","v":""},{"$f":"IF(WorkingP!$B70=\"Parish Share\",WorkingP!I70,\"\")","v":""},{"$f":"IF(WorkingP!$B70=\"Parish Share\",WorkingP!J70,\"\")","v":""},{"$f":"IF(WorkingP!$B70=\"Parish Share\",WorkingP!K70,\"\")","v":""},{"$f":"IF(WorkingP!$B70=\"Parish Share\",WorkingP!L70,\"\")","v":""},{"$f":"IF(WorkingP!$B70=\"Parish Share\",WorkingP!M70,\"\")","v":""},{"$f":"IF(WorkingP!$B70=\"Parish Share\",WorkingP!N70,\"\")","v":""},{"$f":"IF(WorkingP!$B70=\"Parish Share\",WorkingP!O70,\"\")","v":""},{"$f":"IF(WorkingP!$B70=\"Parish Share\",WorkingP!P70,\"\")","v":""},{"$f":"IF(WorkingP!$B70=\"Parish Share\",WorkingP!Q70,\"\")","v":""},{"$f":"IF(WorkingP!$B70=\"Parish Share\",WorkingP!R70,\"\")","v":""},{"$f":"IF(WorkingP!$B70=\"Parish Share\",WorkingP!S70,\"\")","v":""},{"$f":"IF(WorkingP!$B70=\"Parish Share\",WorkingP!T70,\"\")","v":""},{"$f":"IF(WorkingP!$B70=\"Parish Share\",WorkingP!U70,\"\")","v":""},{"$f":"IF(WorkingP!$B70=\"Parish Share\",WorkingP!V70,\"\")","v":""},{"$f":"IF(WorkingP!$B70=\"Parish Share\",WorkingP!W70,\"\")","v":""},{"$f":"IF(WorkingP!$B70=\"Parish Share\",WorkingP!X70,\"\")","v":""},{"$f":"IF(WorkingP!$B70=\"Parish Share\",WorkingP!Y70,\"\")","v":""},{"$f":"IF(Descriptions!K71=\"Parish Share\",Descriptions!AB71,0)","v":0}]
[{"$f":"IF(Descriptions!K72=\"Parish Share\",Descriptions!I72,0)","v":0},{"$f":"IF(WorkingP!$B71=\"Parish Share\",WorkingP!D71,\"\")","v":""},{"$f":"IF(WorkingP!$B71=\"Parish Share\",WorkingP!E71,\"\")","v":""},{"$f":"IF(WorkingP!$B71=\"Parish Share\",WorkingP!F71,\"\")","v":""},{"$f":"IF(WorkingP!$B71=\"Parish Share\",WorkingP!G71,\"\")","v":""},{"$f":"IF(WorkingP!$B71=\"Parish Share\",WorkingP!H71,\"\")","v":""},{"$f":"IF(WorkingP!$B71=\"Parish Share\",WorkingP!I71,\"\")","v":""},{"$f":"IF(WorkingP!$B71=\"Parish Share\",WorkingP!J71,\"\")","v":""},{"$f":"IF(WorkingP!$B71=\"Parish Share\",WorkingP!K71,\"\")","v":""},{"$f":"IF(WorkingP!$B71=\"Parish Share\",WorkingP!L71,\"\")","v":""},{"$f":"IF(WorkingP!$B71=\"Parish Share\",WorkingP!M71,\"\")","v":""},{"$f":"IF(WorkingP!$B71=\"Parish Share\",WorkingP!N71,\"\")","v":""},{"$f":"IF(WorkingP!$B71=\"Parish Share\",WorkingP!O71,\"\")","v":""},{"$f":"IF(WorkingP!$B71=\"Parish Share\",WorkingP!P71,\"\")","v":""},{"$f":"IF(WorkingP!$B71=\"Parish Share\",WorkingP!Q71,\"\")","v":""},{"$f":"IF(WorkingP!$B71=\"Parish Share\",WorkingP!R71,\"\")","v":""},{"$f":"IF(WorkingP!$B71=\"Parish Share\",WorkingP!S71,\"\")","v":""},{"$f":"IF(WorkingP!$B71=\"Parish Share\",WorkingP!T71,\"\")","v":""},{"$f":"IF(WorkingP!$B71=\"Parish Share\",WorkingP!U71,\"\")","v":""},{"$f":"IF(WorkingP!$B71=\"Parish Share\",WorkingP!V71,\"\")","v":""},{"$f":"IF(WorkingP!$B71=\"Parish Share\",WorkingP!W71,\"\")","v":""},{"$f":"IF(WorkingP!$B71=\"Parish Share\",WorkingP!X71,\"\")","v":""},{"$f":"IF(WorkingP!$B71=\"Parish Share\",WorkingP!Y71,\"\")","v":""},{"$f":"IF(Descriptions!K72=\"Parish Share\",Descriptions!AB72,0)","v":0}]
[{"$f":"IF(Descriptions!K73=\"Parish Share\",Descriptions!I73,0)","v":0},{"$f":"IF(WorkingP!$B72=\"Parish Share\",WorkingP!D72,\"\")","v":""},{"$f":"IF(WorkingP!$B72=\"Parish Share\",WorkingP!E72,\"\")","v":""},{"$f":"IF(WorkingP!$B72=\"Parish Share\",WorkingP!F72,\"\")","v":""},{"$f":"IF(WorkingP!$B72=\"Parish Share\",WorkingP!G72,\"\")","v":""},{"$f":"IF(WorkingP!$B72=\"Parish Share\",WorkingP!H72,\"\")","v":""},{"$f":"IF(WorkingP!$B72=\"Parish Share\",WorkingP!I72,\"\")","v":""},{"$f":"IF(WorkingP!$B72=\"Parish Share\",WorkingP!J72,\"\")","v":""},{"$f":"IF(WorkingP!$B72=\"Parish Share\",WorkingP!K72,\"\")","v":""},{"$f":"IF(WorkingP!$B72=\"Parish Share\",WorkingP!L72,\"\")","v":""},{"$f":"IF(WorkingP!$B72=\"Parish Share\",WorkingP!M72,\"\")","v":""},{"$f":"IF(WorkingP!$B72=\"Parish Share\",WorkingP!N72,\"\")","v":""},{"$f":"IF(WorkingP!$B72=\"Parish Share\",WorkingP!O72,\"\")","v":""},{"$f":"IF(WorkingP!$B72=\"Parish Share\",WorkingP!P72,\"\")","v":""},{"$f":"IF(WorkingP!$B72=\"Parish Share\",WorkingP!Q72,\"\")","v":""},{"$f":"IF(WorkingP!$B72=\"Parish Share\",WorkingP!R72,\"\")","v":""},{"$f":"IF(WorkingP!$B72=\"Parish Share\",WorkingP!S72,\"\")","v":""},{"$f":"IF(WorkingP!$B72=\"Parish Share\",WorkingP!T72,\"\")","v":""},{"$f":"IF(WorkingP!$B72=\"Parish Share\",WorkingP!U72,\"\")","v":""},{"$f":"IF(WorkingP!$B72=\"Parish Share\",WorkingP!V72,\"\")","v":""},{"$f":"IF(WorkingP!$B72=\"Parish Share\",WorkingP!W72,\"\")","v":""},{"$f":"IF(WorkingP!$B72=\"Parish Share\",WorkingP!X72,\"\")","v":""},{"$f":"IF(WorkingP!$B72=\"Parish Share\",WorkingP!Y72,\"\")","v":""},{"$f":"IF(Descriptions!K73=\"Parish Share\",Descriptions!AB73,0)","v":0}]
[{"$f":"IF(Descriptions!K74=\"Parish Share\",Descriptions!I74,0)","v":0},{"$f":"IF(WorkingP!$B73=\"Parish Share\",WorkingP!D73,\"\")","v":""},{"$f":"IF(WorkingP!$B73=\"Parish Share\",WorkingP!E73,\"\")","v":""},{"$f":"IF(WorkingP!$B73=\"Parish Share\",WorkingP!F73,\"\")","v":""},{"$f":"IF(WorkingP!$B73=\"Parish Share\",WorkingP!G73,\"\")","v":""},{"$f":"IF(WorkingP!$B73=\"Parish Share\",WorkingP!H73,\"\")","v":""},{"$f":"IF(WorkingP!$B73=\"Parish Share\",WorkingP!I73,\"\")","v":""},{"$f":"IF(WorkingP!$B73=\"Parish Share\",WorkingP!J73,\"\")","v":""},{"$f":"IF(WorkingP!$B73=\"Parish Share\",WorkingP!K73,\"\")","v":""},{"$f":"IF(WorkingP!$B73=\"Parish Share\",WorkingP!L73,\"\")","v":""},{"$f":"IF(WorkingP!$B73=\"Parish Share\",WorkingP!M73,\"\")","v":""},{"$f":"IF(WorkingP!$B73=\"Parish Share\",WorkingP!N73,\"\")","v":""},{"$f":"IF(WorkingP!$B73=\"Parish Share\",WorkingP!O73,\"\")","v":""},{"$f":"IF(WorkingP!$B73=\"Parish Share\",WorkingP!P73,\"\")","v":""},{"$f":"IF(WorkingP!$B73=\"Parish Share\",WorkingP!Q73,\"\")","v":""},{"$f":"IF(WorkingP!$B73=\"Parish Share\",WorkingP!R73,\"\")","v":""},{"$f":"IF(WorkingP!$B73=\"Parish Share\",WorkingP!S73,\"\")","v":""},{"$f":"IF(WorkingP!$B73=\"Parish Share\",WorkingP!T73,\"\")","v":""},{"$f":"IF(WorkingP!$B73=\"Parish Share\",WorkingP!U73,\"\")","v":""},{"$f":"IF(WorkingP!$B73=\"Parish Share\",WorkingP!V73,\"\")","v":""},{"$f":"IF(WorkingP!$B73=\"Parish Share\",WorkingP!W73,\"\")","v":""},{"$f":"IF(WorkingP!$B73=\"Parish Share\",WorkingP!X73,\"\")","v":""},{"$f":"IF(WorkingP!$B73=\"Parish Share\",WorkingP!Y73,\"\")","v":""},{"$f":"IF(Descriptions!K74=\"Parish Share\",Descriptions!AB74,0)","v":0}]
[{"$f":"IF(Descriptions!K75=\"Parish Share\",Descriptions!I75,0)","v":0},{"$f":"IF(WorkingP!$B74=\"Parish Share\",WorkingP!D74,\"\")","v":""},{"$f":"IF(WorkingP!$B74=\"Parish Share\",WorkingP!E74,\"\")","v":""},{"$f":"IF(WorkingP!$B74=\"Parish Share\",WorkingP!F74,\"\")","v":""},{"$f":"IF(WorkingP!$B74=\"Parish Share\",WorkingP!G74,\"\")","v":""},{"$f":"IF(WorkingP!$B74=\"Parish Share\",WorkingP!H74,\"\")","v":""},{"$f":"IF(WorkingP!$B74=\"Parish Share\",WorkingP!I74,\"\")","v":""},{"$f":"IF(WorkingP!$B74=\"Parish Share\",WorkingP!J74,\"\")","v":""},{"$f":"IF(WorkingP!$B74=\"Parish Share\",WorkingP!K74,\"\")","v":""},{"$f":"IF(WorkingP!$B74=\"Parish Share\",WorkingP!L74,\"\")","v":""},{"$f":"IF(WorkingP!$B74=\"Parish Share\",WorkingP!M74,\"\")","v":""},{"$f":"IF(WorkingP!$B74=\"Parish Share\",WorkingP!N74,\"\")","v":""},{"$f":"IF(WorkingP!$B74=\"Parish Share\",WorkingP!O74,\"\")","v":""},{"$f":"IF(WorkingP!$B74=\"Parish Share\",WorkingP!P74,\"\")","v":""},{"$f":"IF(WorkingP!$B74=\"Parish Share\",WorkingP!Q74,\"\")","v":""},{"$f":"IF(WorkingP!$B74=\"Parish Share\",WorkingP!R74,\"\")","v":""},{"$f":"IF(WorkingP!$B74=\"Parish Share\",WorkingP!S74,\"\")","v":""},{"$f":"IF(WorkingP!$B74=\"Parish Share\",WorkingP!T74,\"\")","v":""},{"$f":"IF(WorkingP!$B74=\"Parish Share\",WorkingP!U74,\"\")","v":""},{"$f":"IF(WorkingP!$B74=\"Parish Share\",WorkingP!V74,\"\")","v":""},{"$f":"IF(WorkingP!$B74=\"Parish Share\",WorkingP!W74,\"\")","v":""},{"$f":"IF(WorkingP!$B74=\"Parish Share\",WorkingP!X74,\"\")","v":""},{"$f":"IF(WorkingP!$B74=\"Parish Share\",WorkingP!Y74,\"\")","v":""},{"$f":"IF(Descriptions!K75=\"Parish Share\",Descriptions!AB75,0)","v":0}]
[{"$f":"IF(Descriptions!K76=\"Parish Share\",Descriptions!I76,0)","v":0},{"$f":"IF(WorkingP!$B75=\"Parish Share\",WorkingP!D75,\"\")","v":""},{"$f":"IF(WorkingP!$B75=\"Parish Share\",WorkingP!E75,\"\")","v":""},{"$f":"IF(WorkingP!$B75=\"Parish Share\",WorkingP!F75,\"\")","v":""},{"$f":"IF(WorkingP!$B75=\"Parish Share\",WorkingP!G75,\"\")","v":""},{"$f":"IF(WorkingP!$B75=\"Parish Share\",WorkingP!H75,\"\")","v":""},{"$f":"IF(WorkingP!$B75=\"Parish Share\",WorkingP!I75,\"\")","v":""},{"$f":"IF(WorkingP!$B75=\"Parish Share\",WorkingP!J75,\"\")","v":""},{"$f":"IF(WorkingP!$B75=\"Parish Share\",WorkingP!K75,\"\")","v":""},{"$f":"IF(WorkingP!$B75=\"Parish Share\",WorkingP!L75,\"\")","v":""},{"$f":"IF(WorkingP!$B75=\"Parish Share\",WorkingP!M75,\"\")","v":""},{"$f":"IF(WorkingP!$B75=\"Parish Share\",WorkingP!N75,\"\")","v":""},{"$f":"IF(WorkingP!$B75=\"Parish Share\",WorkingP!O75,\"\")","v":""},{"$f":"IF(WorkingP!$B75=\"Parish Share\",WorkingP!P75,\"\")","v":""},{"$f":"IF(WorkingP!$B75=\"Parish Share\",WorkingP!Q75,\"\")","v":""},{"$f":"IF(WorkingP!$B75=\"Parish Share\",WorkingP!R75,\"\")","v":""},{"$f":"IF(WorkingP!$B75=\"Parish Share\",WorkingP!S75,\"\")","v":""},{"$f":"IF(WorkingP!$B75=\"Parish Share\",WorkingP!T75,\"\")","v":""},{"$f":"IF(WorkingP!$B75=\"Parish Share\",WorkingP!U75,\"\")","v":""},{"$f":"IF(WorkingP!$B75=\"Parish Share\",WorkingP!V75,\"\")","v":""},{"$f":"IF(WorkingP!$B75=\"Parish Share\",WorkingP!W75,\"\")","v":""},{"$f":"IF(WorkingP!$B75=\"Parish Share\",WorkingP!X75,\"\")","v":""},{"$f":"IF(WorkingP!$B75=\"Parish Share\",WorkingP!Y75,\"\")","v":""},{"$f":"IF(Descriptions!K76=\"Parish Share\",Descriptions!AB76,0)","v":0}]
[{"$f":"IF(Descriptions!K77=\"Parish Share\",Descriptions!I77,0)","v":0},{"$f":"IF(WorkingP!$B76=\"Parish Share\",WorkingP!D76,\"\")","v":""},{"$f":"IF(WorkingP!$B76=\"Parish Share\",WorkingP!E76,\"\")","v":""},{"$f":"IF(WorkingP!$B76=\"Parish Share\",WorkingP!F76,\"\")","v":""},{"$f":"IF(WorkingP!$B76=\"Parish Share\",WorkingP!G76,\"\")","v":""},{"$f":"IF(WorkingP!$B76=\"Parish Share\",WorkingP!H76,\"\")","v":""},{"$f":"IF(WorkingP!$B76=\"Parish Share\",WorkingP!I76,\"\")","v":""},{"$f":"IF(WorkingP!$B76=\"Parish Share\",WorkingP!J76,\"\")","v":""},{"$f":"IF(WorkingP!$B76=\"Parish Share\",WorkingP!K76,\"\")","v":""},{"$f":"IF(WorkingP!$B76=\"Parish Share\",WorkingP!L76,\"\")","v":""},{"$f":"IF(WorkingP!$B76=\"Parish Share\",WorkingP!M76,\"\")","v":""},{"$f":"IF(WorkingP!$B76=\"Parish Share\",WorkingP!N76,\"\")","v":""},{"$f":"IF(WorkingP!$B76=\"Parish Share\",WorkingP!O76,\"\")","v":""},{"$f":"IF(WorkingP!$B76=\"Parish Share\",WorkingP!P76,\"\")","v":""},{"$f":"IF(WorkingP!$B76=\"Parish Share\",WorkingP!Q76,\"\")","v":""},{"$f":"IF(WorkingP!$B76=\"Parish Share\",WorkingP!R76,\"\")","v":""},{"$f":"IF(WorkingP!$B76=\"Parish Share\",WorkingP!S76,\"\")","v":""},{"$f":"IF(WorkingP!$B76=\"Parish Share\",WorkingP!T76,\"\")","v":""},{"$f":"IF(WorkingP!$B76=\"Parish Share\",WorkingP!U76,\"\")","v":""},{"$f":"IF(WorkingP!$B76=\"Parish Share\",WorkingP!V76,\"\")","v":""},{"$f":"IF(WorkingP!$B76=\"Parish Share\",WorkingP!W76,\"\")","v":""},{"$f":"IF(WorkingP!$B76=\"Parish Share\",WorkingP!X76,\"\")","v":""},{"$f":"IF(WorkingP!$B76=\"Parish Share\",WorkingP!Y76,\"\")","v":""},{"$f":"IF(Descriptions!K77=\"Parish Share\",Descriptions!AB77,0)","v":0}]
[{"$f":"IF(Descriptions!K78=\"Parish Share\",Descriptions!I78,0)","v":0},{"$f":"IF(WorkingP!$B77=\"Parish Share\",WorkingP!D77,\"\")","v":""},{"$f":"IF(WorkingP!$B77=\"Parish Share\",WorkingP!E77,\"\")","v":""},{"$f":"IF(WorkingP!$B77=\"Parish Share\",WorkingP!F77,\"\")","v":""},{"$f":"IF(WorkingP!$B77=\"Parish Share\",WorkingP!G77,\"\")","v":""},{"$f":"IF(WorkingP!$B77=\"Parish Share\",WorkingP!H77,\"\")","v":""},{"$f":"IF(WorkingP!$B77=\"Parish Share\",WorkingP!I77,\"\")","v":""},{"$f":"IF(WorkingP!$B77=\"Parish Share\",WorkingP!J77,\"\")","v":""},{"$f":"IF(WorkingP!$B77=\"Parish Share\",WorkingP!K77,\"\")","v":""},{"$f":"IF(WorkingP!$B77=\"Parish Share\",WorkingP!L77,\"\")","v":""},{"$f":"IF(WorkingP!$B77=\"Parish Share\",WorkingP!M77,\"\")","v":""},{"$f":"IF(WorkingP!$B77=\"Parish Share\",WorkingP!N77,\"\")","v":""},{"$f":"IF(WorkingP!$B77=\"Parish Share\",WorkingP!O77,\"\")","v":""},{"$f":"IF(WorkingP!$B77=\"Parish Share\",WorkingP!P77,\"\")","v":""},{"$f":"IF(WorkingP!$B77=\"Parish Share\",WorkingP!Q77,\"\")","v":""},{"$f":"IF(WorkingP!$B77=\"Parish Share\",WorkingP!R77,\"\")","v":""},{"$f":"IF(WorkingP!$B77=\"Parish Share\",WorkingP!S77,\"\")","v":""},{"$f":"IF(WorkingP!$B77=\"Parish Share\",WorkingP!T77,\"\")","v":""},{"$f":"IF(WorkingP!$B77=\"Parish Share\",WorkingP!U77,\"\")","v":""},{"$f":"IF(WorkingP!$B77=\"Parish Share\",WorkingP!V77,\"\")","v":""},{"$f":"IF(WorkingP!$B77=\"Parish Share\",WorkingP!W77,\"\")","v":""},{"$f":"IF(WorkingP!$B77=\"Parish Share\",WorkingP!X77,\"\")","v":""},{"$f":"IF(WorkingP!$B77=\"Parish Share\",WorkingP!Y77,\"\")","v":""},{"$f":"IF(Descriptions!K78=\"Parish Share\",Descriptions!AB78,0)","v":0}]
[{"$f":"IF(Descriptions!K79=\"Parish Share\",Descriptions!I79,0)","v":0},{"$f":"IF(WorkingP!$B78=\"Parish Share\",WorkingP!D78,\"\")","v":""},{"$f":"IF(WorkingP!$B78=\"Parish Share\",WorkingP!E78,\"\")","v":""},{"$f":"IF(WorkingP!$B78=\"Parish Share\",WorkingP!F78,\"\")","v":""},{"$f":"IF(WorkingP!$B78=\"Parish Share\",WorkingP!G78,\"\")","v":""},{"$f":"IF(WorkingP!$B78=\"Parish Share\",WorkingP!H78,\"\")","v":""},{"$f":"IF(WorkingP!$B78=\"Parish Share\",WorkingP!I78,\"\")","v":""},{"$f":"IF(WorkingP!$B78=\"Parish Share\",WorkingP!J78,\"\")","v":""},{"$f":"IF(WorkingP!$B78=\"Parish Share\",WorkingP!K78,\"\")","v":""},{"$f":"IF(WorkingP!$B78=\"Parish Share\",WorkingP!L78,\"\")","v":""},{"$f":"IF(WorkingP!$B78=\"Parish Share\",WorkingP!M78,\"\")","v":""},{"$f":"IF(WorkingP!$B78=\"Parish Share\",WorkingP!N78,\"\")","v":""},{"$f":"IF(WorkingP!$B78=\"Parish Share\",WorkingP!O78,\"\")","v":""},{"$f":"IF(WorkingP!$B78=\"Parish Share\",WorkingP!P78,\"\")","v":""},{"$f":"IF(WorkingP!$B78=\"Parish Share\",WorkingP!Q78,\"\")","v":""},{"$f":"IF(WorkingP!$B78=\"Parish Share\",WorkingP!R78,\"\")","v":""},{"$f":"IF(WorkingP!$B78=\"Parish Share\",WorkingP!S78,\"\")","v":""},{"$f":"IF(WorkingP!$B78=\"Parish Share\",WorkingP!T78,\"\")","v":""},{"$f":"IF(WorkingP!$B78=\"Parish Share\",WorkingP!U78,\"\")","v":""},{"$f":"IF(WorkingP!$B78=\"Parish Share\",WorkingP!V78,\"\")","v":""},{"$f":"IF(WorkingP!$B78=\"Parish Share\",WorkingP!W78,\"\")","v":""},{"$f":"IF(WorkingP!$B78=\"Parish Share\",WorkingP!X78,\"\")","v":""},{"$f":"IF(WorkingP!$B78=\"Parish Share\",WorkingP!Y78,\"\")","v":""},{"$f":"IF(Descriptions!K79=\"Parish Share\",Descriptions!AB79,0)","v":0}]
[{"$f":"IF(Descriptions!K80=\"Parish Share\",Descriptions!I80,0)","v":0},{"$f":"IF(WorkingP!$B79=\"Parish Share\",WorkingP!D79,\"\")","v":""},{"$f":"IF(WorkingP!$B79=\"Parish Share\",WorkingP!E79,\"\")","v":""},{"$f":"IF(WorkingP!$B79=\"Parish Share\",WorkingP!F79,\"\")","v":""},{"$f":"IF(WorkingP!$B79=\"Parish Share\",WorkingP!G79,\"\")","v":""},{"$f":"IF(WorkingP!$B79=\"Parish Share\",WorkingP!H79,\"\")","v":""},{"$f":"IF(WorkingP!$B79=\"Parish Share\",WorkingP!I79,\"\")","v":""},{"$f":"IF(WorkingP!$B79=\"Parish Share\",WorkingP!J79,\"\")","v":""},{"$f":"IF(WorkingP!$B79=\"Parish Share\",WorkingP!K79,\"\")","v":""},{"$f":"IF(WorkingP!$B79=\"Parish Share\",WorkingP!L79,\"\")","v":""},{"$f":"IF(WorkingP!$B79=\"Parish Share\",WorkingP!M79,\"\")","v":""},{"$f":"IF(WorkingP!$B79=\"Parish Share\",WorkingP!N79,\"\")","v":""},{"$f":"IF(WorkingP!$B79=\"Parish Share\",WorkingP!O79,\"\")","v":""},{"$f":"IF(WorkingP!$B79=\"Parish Share\",WorkingP!P79,\"\")","v":""},{"$f":"IF(WorkingP!$B79=\"Parish Share\",WorkingP!Q79,\"\")","v":""},{"$f":"IF(WorkingP!$B79=\"Parish Share\",WorkingP!R79,\"\")","v":""},{"$f":"IF(WorkingP!$B79=\"Parish Share\",WorkingP!S79,\"\")","v":""},{"$f":"IF(WorkingP!$B79=\"Parish Share\",WorkingP!T79,\"\")","v":""},{"$f":"IF(WorkingP!$B79=\"Parish Share\",WorkingP!U79,\"\")","v":""},{"$f":"IF(WorkingP!$B79=\"Parish Share\",WorkingP!V79,\"\")","v":""},{"$f":"IF(WorkingP!$B79=\"Parish Share\",WorkingP!W79,\"\")","v":""},{"$f":"IF(WorkingP!$B79=\"Parish Share\",WorkingP!X79,\"\")","v":""},{"$f":"IF(WorkingP!$B79=\"Parish Share\",WorkingP!Y79,\"\")","v":""},{"$f":"IF(Descriptions!K80=\"Parish Share\",Descriptions!AB80,0)","v":0}]
[{"$f":"IF(Descriptions!K81=\"Parish Share\",Descriptions!I81,0)","v":0},{"$f":"IF(WorkingP!$B80=\"Parish Share\",WorkingP!D80,\"\")","v":""},{"$f":"IF(WorkingP!$B80=\"Parish Share\",WorkingP!E80,\"\")","v":""},{"$f":"IF(WorkingP!$B80=\"Parish Share\",WorkingP!F80,\"\")","v":""},{"$f":"IF(WorkingP!$B80=\"Parish Share\",WorkingP!G80,\"\")","v":""},{"$f":"IF(WorkingP!$B80=\"Parish Share\",WorkingP!H80,\"\")","v":""},{"$f":"IF(WorkingP!$B80=\"Parish Share\",WorkingP!I80,\"\")","v":""},{"$f":"IF(WorkingP!$B80=\"Parish Share\",WorkingP!J80,\"\")","v":""},{"$f":"IF(WorkingP!$B80=\"Parish Share\",WorkingP!K80,\"\")","v":""},{"$f":"IF(WorkingP!$B80=\"Parish Share\",WorkingP!L80,\"\")","v":""},{"$f":"IF(WorkingP!$B80=\"Parish Share\",WorkingP!M80,\"\")","v":""},{"$f":"IF(WorkingP!$B80=\"Parish Share\",WorkingP!N80,\"\")","v":""},{"$f":"IF(WorkingP!$B80=\"Parish Share\",WorkingP!O80,\"\")","v":""},{"$f":"IF(WorkingP!$B80=\"Parish Share\",WorkingP!P80,\"\")","v":""},{"$f":"IF(WorkingP!$B80=\"Parish Share\",WorkingP!Q80,\"\")","v":""},{"$f":"IF(WorkingP!$B80=\"Parish Share\",WorkingP!R80,\"\")","v":""},{"$f":"IF(WorkingP!$B80=\"Parish Share\",WorkingP!S80,\"\")","v":""},{"$f":"IF(WorkingP!$B80=\"Parish Share\",WorkingP!T80,\"\")","v":""},{"$f":"IF(WorkingP!$B80=\"Parish Share\",WorkingP!U80,\"\")","v":""},{"$f":"IF(WorkingP!$B80=\"Parish Share\",WorkingP!V80,\"\")","v":""},{"$f":"IF(WorkingP!$B80=\"Parish Share\",WorkingP!W80,\"\")","v":""},{"$f":"IF(WorkingP!$B80=\"Parish Share\",WorkingP!X80,\"\")","v":""},{"$f":"IF(WorkingP!$B80=\"Parish Share\",WorkingP!Y80,\"\")","v":""},{"$f":"IF(Descriptions!K81=\"Parish Share\",Descriptions!AB81,0)","v":0}]
[{"$f":"IF(Descriptions!K82=\"Parish Share\",Descriptions!I82,0)","v":0},{"$f":"IF(WorkingP!$B81=\"Parish Share\",WorkingP!D81,\"\")","v":""},{"$f":"IF(WorkingP!$B81=\"Parish Share\",WorkingP!E81,\"\")","v":""},{"$f":"IF(WorkingP!$B81=\"Parish Share\",WorkingP!F81,\"\")","v":""},{"$f":"IF(WorkingP!$B81=\"Parish Share\",WorkingP!G81,\"\")","v":""},{"$f":"IF(WorkingP!$B81=\"Parish Share\",WorkingP!H81,\"\")","v":""},{"$f":"IF(WorkingP!$B81=\"Parish Share\",WorkingP!I81,\"\")","v":""},{"$f":"IF(WorkingP!$B81=\"Parish Share\",WorkingP!J81,\"\")","v":""},{"$f":"IF(WorkingP!$B81=\"Parish Share\",WorkingP!K81,\"\")","v":""},{"$f":"IF(WorkingP!$B81=\"Parish Share\",WorkingP!L81,\"\")","v":""},{"$f":"IF(WorkingP!$B81=\"Parish Share\",WorkingP!M81,\"\")","v":""},{"$f":"IF(WorkingP!$B81=\"Parish Share\",WorkingP!N81,\"\")","v":""},{"$f":"IF(WorkingP!$B81=\"Parish Share\",WorkingP!O81,\"\")","v":""},{"$f":"IF(WorkingP!$B81=\"Parish Share\",WorkingP!P81,\"\")","v":""},{"$f":"IF(WorkingP!$B81=\"Parish Share\",WorkingP!Q81,\"\")","v":""},{"$f":"IF(WorkingP!$B81=\"Parish Share\",WorkingP!R81,\"\")","v":""},{"$f":"IF(WorkingP!$B81=\"Parish Share\",WorkingP!S81,\"\")","v":""},{"$f":"IF(WorkingP!$B81=\"Parish Share\",WorkingP!T81,\"\")","v":""},{"$f":"IF(WorkingP!$B81=\"Parish Share\",WorkingP!U81,\"\")","v":""},{"$f":"IF(WorkingP!$B81=\"Parish Share\",WorkingP!V81,\"\")","v":""},{"$f":"IF(WorkingP!$B81=\"Parish Share\",WorkingP!W81,\"\")","v":""},{"$f":"IF(WorkingP!$B81=\"Parish Share\",WorkingP!X81,\"\")","v":""},{"$f":"IF(WorkingP!$B81=\"Parish Share\",WorkingP!Y81,\"\")","v":""},{"$f":"IF(Descriptions!K82=\"Parish Share\",Descriptions!AB82,0)","v":0}]
[{"$f":"IF(Descriptions!K83=\"Parish Share\",Descriptions!I83,0)","v":0},{"$f":"IF(WorkingP!$B82=\"Parish Share\",WorkingP!D82,\"\")","v":""},{"$f":"IF(WorkingP!$B82=\"Parish Share\",WorkingP!E82,\"\")","v":""},{"$f":"IF(WorkingP!$B82=\"Parish Share\",WorkingP!F82,\"\")","v":""},{"$f":"IF(WorkingP!$B82=\"Parish Share\",WorkingP!G82,\"\")","v":""},{"$f":"IF(WorkingP!$B82=\"Parish Share\",WorkingP!H82,\"\")","v":""},{"$f":"IF(WorkingP!$B82=\"Parish Share\",WorkingP!I82,\"\")","v":""},{"$f":"IF(WorkingP!$B82=\"Parish Share\",WorkingP!J82,\"\")","v":""},{"$f":"IF(WorkingP!$B82=\"Parish Share\",WorkingP!K82,\"\")","v":""},{"$f":"IF(WorkingP!$B82=\"Parish Share\",WorkingP!L82,\"\")","v":""},{"$f":"IF(WorkingP!$B82=\"Parish Share\",WorkingP!M82,\"\")","v":""},{"$f":"IF(WorkingP!$B82=\"Parish Share\",WorkingP!N82,\"\")","v":""},{"$f":"IF(WorkingP!$B82=\"Parish Share\",WorkingP!O82,\"\")","v":""},{"$f":"IF(WorkingP!$B82=\"Parish Share\",WorkingP!P82,\"\")","v":""},{"$f":"IF(WorkingP!$B82=\"Parish Share\",WorkingP!Q82,\"\")","v":""},{"$f":"IF(WorkingP!$B82=\"Parish Share\",WorkingP!R82,\"\")","v":""},{"$f":"IF(WorkingP!$B82=\"Parish Share\",WorkingP!S82,\"\")","v":""},{"$f":"IF(WorkingP!$B82=\"Parish Share\",WorkingP!T82,\"\")","v":""},{"$f":"IF(WorkingP!$B82=\"Parish Share\",WorkingP!U82,\"\")","v":""},{"$f":"IF(WorkingP!$B82=\"Parish Share\",WorkingP!V82,\"\")","v":""},{"$f":"IF(WorkingP!$B82=\"Parish Share\",WorkingP!W82,\"\")","v":""},{"$f":"IF(WorkingP!$B82=\"Parish Share\",WorkingP!X82,\"\")","v":""},{"$f":"IF(WorkingP!$B82=\"Parish Share\",WorkingP!Y82,\"\")","v":""},{"$f":"IF(Descriptions!K83=\"Parish Share\",Descriptions!AB83,0)","v":0}]
[{"$f":"IF(Descriptions!K84=\"Parish Share\",Descriptions!I84,0)","v":0},{"$f":"IF(WorkingP!$B83=\"Parish Share\",WorkingP!D83,\"\")","v":""},{"$f":"IF(WorkingP!$B83=\"Parish Share\",WorkingP!E83,\"\")","v":""},{"$f":"IF(WorkingP!$B83=\"Parish Share\",WorkingP!F83,\"\")","v":""},{"$f":"IF(WorkingP!$B83=\"Parish Share\",WorkingP!G83,\"\")","v":""},{"$f":"IF(WorkingP!$B83=\"Parish Share\",WorkingP!H83,\"\")","v":""},{"$f":"IF(WorkingP!$B83=\"Parish Share\",WorkingP!I83,\"\")","v":""},{"$f":"IF(WorkingP!$B83=\"Parish Share\",WorkingP!J83,\"\")","v":""},{"$f":"IF(WorkingP!$B83=\"Parish Share\",WorkingP!K83,\"\")","v":""},{"$f":"IF(WorkingP!$B83=\"Parish Share\",WorkingP!L83,\"\")","v":""},{"$f":"IF(WorkingP!$B83=\"Parish Share\",WorkingP!M83,\"\")","v":""},{"$f":"IF(WorkingP!$B83=\"Parish Share\",WorkingP!N83,\"\")","v":""},{"$f":"IF(WorkingP!$B83=\"Parish Share\",WorkingP!O83,\"\")","v":""},{"$f":"IF(WorkingP!$B83=\"Parish Share\",WorkingP!P83,\"\")","v":""},{"$f":"IF(WorkingP!$B83=\"Parish Share\",WorkingP!Q83,\"\")","v":""},{"$f":"IF(WorkingP!$B83=\"Parish Share\",WorkingP!R83,\"\")","v":""},{"$f":"IF(WorkingP!$B83=\"Parish Share\",WorkingP!S83,\"\")","v":""},{"$f":"IF(WorkingP!$B83=\"Parish Share\",WorkingP!T83,\"\")","v":""},{"$f":"IF(WorkingP!$B83=\"Parish Share\",WorkingP!U83,\"\")","v":""},{"$f":"IF(WorkingP!$B83=\"Parish Share\",WorkingP!V83,\"\")","v":""},{"$f":"IF(WorkingP!$B83=\"Parish Share\",WorkingP!W83,\"\")","v":""},{"$f":"IF(WorkingP!$B83=\"Parish Share\",WorkingP!X83,\"\")","v":""},{"$f":"IF(WorkingP!$B83=\"Parish Share\",WorkingP!Y83,\"\")","v":""},{"$f":"IF(Descriptions!K84=\"Parish Share\",Descriptions!AB84,0)","v":0}]
[null,{"$f":"SUM(B569:B619)","v":0},0,0,0,0,0,0,0,0,0,0,0,0,0,0,0,0,0,0,0,0,null,1]
["CLERGY AND STAFFING COSTS",null,null,null,null,null,null,null,null,null,null,null,null,null,null,null,null,null,null,null,null,null,null,{"$f":"SUM(X622:X674)","v":0}]
["Administrator Parish/Benefice",{"$f":"WorkingP!D5","v":0},{"$f":"WorkingP!E5","v":0},{"$f":"WorkingP!F5","v":0},{"$f":"WorkingP!G5","v":0},{"$f":"WorkingP!H5","v":0},{"$f":"WorkingP!I5","v":0},{"$f":"WorkingP!J5","v":0},{"$f":"WorkingP!K5","v":0},{"$f":"WorkingP!L5","v":0},{"$f":"WorkingP!M5","v":0},{"$f":"WorkingP!N5","v":0},{"$f":"WorkingP!O5","v":0},{"$f":"WorkingP!P5","v":0},{"$f":"WorkingP!Q5","v":0},{"$f":"WorkingP!R5","v":0},{"$f":"WorkingP!S5","v":0},{"$f":"WorkingP!T5","v":0},{"$f":"WorkingP!U5","v":0},{"$f":"WorkingP!V5","v":0},{"$f":"WorkingP!W5","v":0},{"$f":"WorkingP!X5","v":0},{"$f":"WorkingP!Y5","v":0},{"$f":"Descriptions!AB6","v":0}]
["Clergy Expenses",{"$f":"WorkingP!D14","v":0},{"$f":"WorkingP!E14","v":0},{"$f":"WorkingP!F14","v":0},{"$f":"WorkingP!G14","v":0},{"$f":"WorkingP!H14","v":0},{"$f":"WorkingP!I14","v":0},{"$f":"WorkingP!J14","v":0},{"$f":"WorkingP!K14","v":0},{"$f":"WorkingP!L14","v":0},{"$f":"WorkingP!M14","v":0},{"$f":"WorkingP!N14","v":0},{"$f":"WorkingP!O14","v":0},{"$f":"WorkingP!P14","v":0},{"$f":"WorkingP!Q14","v":0},{"$f":"WorkingP!R14","v":0},{"$f":"WorkingP!S14","v":0},{"$f":"WorkingP!T14","v":0},{"$f":"WorkingP!U14","v":0},{"$f":"WorkingP!V14","v":0},{"$f":"WorkingP!W14","v":0},{"$f":"WorkingP!X14","v":0},{"$f":"WorkingP!Y14","v":0},{"$f":"Descriptions!AB15","v":0}]
["Salaries",{"$f":"WorkingP!D25","v":0},{"$f":"WorkingP!E25","v":0},{"$f":"WorkingP!F25","v":0},{"$f":"WorkingP!G25","v":0},{"$f":"WorkingP!H25","v":0},{"$f":"WorkingP!I25","v":0},{"$f":"WorkingP!J25","v":0},{"$f":"WorkingP!K25","v":0},{"$f":"WorkingP!L25","v":0},{"$f":"WorkingP!M25","v":0},{"$f":"WorkingP!N25","v":0},{"$f":"WorkingP!O25","v":0},{"$f":"WorkingP!P25","v":0},{"$f":"WorkingP!Q25","v":0},{"$f":"WorkingP!R25","v":0},{"$f":"WorkingP!S25","v":0},{"$f":"WorkingP!T25","v":0},{"$f":"WorkingP!U25","v":0},{"$f":"WorkingP!V25","v":0},{"$f":"WorkingP!W25","v":0},{"$f":"WorkingP!X25","v":0},{"$f":"WorkingP!Y25","v":0},{"$f":"Descriptions!AB26","v":0}]
[{"$f":"IF(Descriptions!K35=\"Clergy and Staffing Costs\",Descriptions!I35,0)","v":0},{"$f":"IF(WorkingP!$B34=\"Clergy and Staffing Costs\",WorkingP!D34,\"\")","v":""},{"$f":"IF(WorkingP!$B34=\"Clergy and Staffing Costs\",WorkingP!E34,\"\")","v":""},{"$f":"IF(WorkingP!$B34=\"Clergy and Staffing Costs\",WorkingP!F34,\"\")","v":""},{"$f":"IF(WorkingP!$B34=\"Clergy and Staffing Costs\",WorkingP!G34,\"\")","v":""},{"$f":"IF(WorkingP!$B34=\"Clergy and Staffing Costs\",WorkingP!H34,\"\")","v":""},{"$f":"IF(WorkingP!$B34=\"Clergy and Staffing Costs\",WorkingP!I34,\"\")","v":""},{"$f":"IF(WorkingP!$B34=\"Clergy and Staffing Costs\",WorkingP!J34,\"\")","v":""},{"$f":"IF(WorkingP!$B34=\"Clergy and Staffing Costs\",WorkingP!K34,\"\")","v":""},{"$f":"IF(WorkingP!$B34=\"Clergy and Staffing Costs\",WorkingP!L34,\"\")","v":""},{"$f":"IF(WorkingP!$B34=\"Clergy and Staffing Costs\",WorkingP!M34,\"\")","v":""},{"$f":"IF(WorkingP!$B34=\"Clergy and Staffing Costs\",WorkingP!N34,\"\")","v":""},{"$f":"IF(WorkingP!$B34=\"Clergy and Staffing Costs\",WorkingP!O34,\"\")","v":""},{"$f":"IF(WorkingP!$B34=\"Clergy and Staffing Costs\",WorkingP!P34,\"\")","v":""},{"$f":"IF(WorkingP!$B34=\"Clergy and Staffing Costs\",WorkingP!Q34,\"\")","v":""},{"$f":"IF(WorkingP!$B34=\"Clergy and Staffing Costs\",WorkingP!R34,\"\")","v":""},{"$f":"IF(WorkingP!$B34=\"Clergy and Staffing Costs\",WorkingP!S34,\"\")","v":""},{"$f":"IF(WorkingP!$B34=\"Clergy and Staffing Costs\",WorkingP!T34,\"\")","v":""},{"$f":"IF(WorkingP!$B34=\"Clergy and Staffing Costs\",WorkingP!U34,\"\")","v":""},{"$f":"IF(WorkingP!$B34=\"Clergy and Staffing Costs\",WorkingP!V34,\"\")","v":""},{"$f":"IF(WorkingP!$B34=\"Clergy and Staffing Costs\",WorkingP!W34,\"\")","v":""},{"$f":"IF(WorkingP!$B34=\"Clergy and Staffing Costs\",WorkingP!X34,\"\")","v":""},{"$f":"IF(WorkingP!$B34=\"Clergy and Staffing Costs\",WorkingP!Y34,\"\")","v":""},{"$f":"IF(Descriptions!K35=\"Clergy and Staffing Costs\",Descriptions!AB35,0)","v":0}]
[{"$f":"IF(Descriptions!K36=\"Clergy and Staffing Costs\",Descriptions!I36,0)","v":0},{"$f":"IF(WorkingP!$B35=\"Clergy and Staffing Costs\",WorkingP!D35,\"\")","v":""},{"$f":"IF(WorkingP!$B35=\"Clergy and Staffing Costs\",WorkingP!E35,\"\")","v":""},{"$f":"IF(WorkingP!$B35=\"Clergy and Staffing Costs\",WorkingP!F35,\"\")","v":""},{"$f":"IF(WorkingP!$B35=\"Clergy and Staffing Costs\",WorkingP!G35,\"\")","v":""},{"$f":"IF(WorkingP!$B35=\"Clergy and Staffing Costs\",WorkingP!H35,\"\")","v":""},{"$f":"IF(WorkingP!$B35=\"Clergy and Staffing Costs\",WorkingP!I35,\"\")","v":""},{"$f":"IF(WorkingP!$B35=\"Clergy and Staffing Costs\",WorkingP!J35,\"\")","v":""},{"$f":"IF(WorkingP!$B35=\"Clergy and Staffing Costs\",WorkingP!K35,\"\")","v":""},{"$f":"IF(WorkingP!$B35=\"Clergy and Staffing Costs\",WorkingP!L35,\"\")","v":""},{"$f":"IF(WorkingP!$B35=\"Clergy and Staffing Costs\",WorkingP!M35,\"\")","v":""},{"$f":"IF(WorkingP!$B35=\"Clergy and Staffing Costs\",WorkingP!N35,\"\")","v":""},{"$f":"IF(WorkingP!$B35=\"Clergy and Staffing Costs\",WorkingP!O35,\"\")","v":""},{"$f":"IF(WorkingP!$B35=\"Clergy and Staffing Costs\",WorkingP!P35,\"\")","v":""},{"$f":"IF(WorkingP!$B35=\"Clergy and Staffing Costs\",WorkingP!Q35,\"\")","v":""},{"$f":"IF(WorkingP!$B35=\"Clergy and Staffing Costs\",WorkingP!R35,\"\")","v":""},{"$f":"IF(WorkingP!$B35=\"Clergy and Staffing Costs\",WorkingP!S35,\"\")","v":""},{"$f":"IF(WorkingP!$B35=\"Clergy and Staffing Costs\",WorkingP!T35,\"\")","v":""},{"$f":"IF(WorkingP!$B35=\"Clergy and Staffing Costs\",WorkingP!U35,\"\")","v":""},{"$f":"IF(WorkingP!$B35=\"Clergy and Staffing Costs\",WorkingP!V35,\"\")","v":""},{"$f":"IF(WorkingP!$B35=\"Clergy and Staffing Costs\",WorkingP!W35,\"\")","v":""},{"$f":"IF(WorkingP!$B35=\"Clergy and Staffing Costs\",WorkingP!X35,\"\")","v":""},{"$f":"IF(WorkingP!$B35=\"Clergy and Staffing Costs\",WorkingP!Y35,\"\")","v":""},{"$f":"IF(Descriptions!K36=\"Clergy and Staffing Costs\",Descriptions!AB36,0)","v":0}]
[{"$f":"IF(Descriptions!K37=\"Clergy and Staffing Costs\",Descriptions!I37,0)","v":0},{"$f":"IF(WorkingP!$B36=\"Clergy and Staffing Costs\",WorkingP!D36,\"\")","v":""},{"$f":"IF(WorkingP!$B36=\"Clergy and Staffing Costs\",WorkingP!E36,\"\")","v":""},{"$f":"IF(WorkingP!$B36=\"Clergy and Staffing Costs\",WorkingP!F36,\"\")","v":""},{"$f":"IF(WorkingP!$B36=\"Clergy and Staffing Costs\",WorkingP!G36,\"\")","v":""},{"$f":"IF(WorkingP!$B36=\"Clergy and Staffing Costs\",WorkingP!H36,\"\")","v":""},{"$f":"IF(WorkingP!$B36=\"Clergy and Staffing Costs\",WorkingP!I36,\"\")","v":""},{"$f":"IF(WorkingP!$B36=\"Clergy and Staffing Costs\",WorkingP!J36,\"\")","v":""},{"$f":"IF(WorkingP!$B36=\"Clergy and Staffing Costs\",WorkingP!K36,\"\")","v":""},{"$f":"IF(WorkingP!$B36=\"Clergy and Staffing Costs\",WorkingP!L36,\"\")","v":""},{"$f":"IF(WorkingP!$B36=\"Clergy and Staffing Costs\",WorkingP!M36,\"\")","v":""},{"$f":"IF(WorkingP!$B36=\"Clergy and Staffing Costs\",WorkingP!N36,\"\")","v":""},{"$f":"IF(WorkingP!$B36=\"Clergy and Staffing Costs\",WorkingP!O36,\"\")","v":""},{"$f":"IF(WorkingP!$B36=\"Clergy and Staffing Costs\",WorkingP!P36,\"\")","v":""},{"$f":"IF(WorkingP!$B36=\"Clergy and Staffing Costs\",WorkingP!Q36,\"\")","v":""},{"$f":"IF(WorkingP!$B36=\"Clergy and Staffing Costs\",WorkingP!R36,\"\")","v":""},{"$f":"IF(WorkingP!$B36=\"Clergy and Staffing Costs\",WorkingP!S36,\"\")","v":""},{"$f":"IF(WorkingP!$B36=\"Clergy and Staffing Costs\",WorkingP!T36,\"\")","v":""},{"$f":"IF(WorkingP!$B36=\"Clergy and Staffing Costs\",WorkingP!U36,\"\")","v":""},{"$f":"IF(WorkingP!$B36=\"Clergy and Staffing Costs\",WorkingP!V36,\"\")","v":""},{"$f":"IF(WorkingP!$B36=\"Clergy and Staffing Costs\",WorkingP!W36,\"\")","v":""},{"$f":"IF(WorkingP!$B36=\"Clergy and Staffing Costs\",WorkingP!X36,\"\")","v":""},{"$f":"IF(WorkingP!$B36=\"Clergy and Staffing Costs\",WorkingP!Y36,\"\")","v":""},{"$f":"IF(Descriptions!K37=\"Clergy and Staffing Costs\",Descriptions!AB37,0)","v":0}]
[{"$f":"IF(Descriptions!K38=\"Clergy and Staffing Costs\",Descriptions!I38,0)","v":0},{"$f":"IF(WorkingP!$B37=\"Clergy and Staffing Costs\",WorkingP!D37,\"\")","v":""},{"$f":"IF(WorkingP!$B37=\"Clergy and Staffing Costs\",WorkingP!E37,\"\")","v":""},{"$f":"IF(WorkingP!$B37=\"Clergy and Staffing Costs\",WorkingP!F37,\"\")","v":""},{"$f":"IF(WorkingP!$B37=\"Clergy and Staffing Costs\",WorkingP!G37,\"\")","v":""},{"$f":"IF(WorkingP!$B37=\"Clergy and Staffing Costs\",WorkingP!H37,\"\")","v":""},{"$f":"IF(WorkingP!$B37=\"Clergy and Staffing Costs\",WorkingP!I37,\"\")","v":""},{"$f":"IF(WorkingP!$B37=\"Clergy and Staffing Costs\",WorkingP!J37,\"\")","v":""},{"$f":"IF(WorkingP!$B37=\"Clergy and Staffing Costs\",WorkingP!K37,\"\")","v":""},{"$f":"IF(WorkingP!$B37=\"Clergy and Staffing Costs\",WorkingP!L37,\"\")","v":""},{"$f":"IF(WorkingP!$B37=\"Clergy and Staffing Costs\",WorkingP!M37,\"\")","v":""},{"$f":"IF(WorkingP!$B37=\"Clergy and Staffing Costs\",WorkingP!N37,\"\")","v":""},{"$f":"IF(WorkingP!$B37=\"Clergy and Staffing Costs\",WorkingP!O37,\"\")","v":""},{"$f":"IF(WorkingP!$B37=\"Clergy and Staffing Costs\",WorkingP!P37,\"\")","v":""},{"$f":"IF(WorkingP!$B37=\"Clergy and Staffing Costs\",WorkingP!Q37,\"\")","v":""},{"$f":"IF(WorkingP!$B37=\"Clergy and Staffing Costs\",WorkingP!R37,\"\")","v":""},{"$f":"IF(WorkingP!$B37=\"Clergy and Staffing Costs\",WorkingP!S37,\"\")","v":""},{"$f":"IF(WorkingP!$B37=\"Clergy and Staffing Costs\",WorkingP!T37,\"\")","v":""},{"$f":"IF(WorkingP!$B37=\"Clergy and Staffing Costs\",WorkingP!U37,\"\")","v":""},{"$f":"IF(WorkingP!$B37=\"Clergy and Staffing Costs\",WorkingP!V37,\"\")","v":""},{"$f":"IF(WorkingP!$B37=\"Clergy and Staffing Costs\",WorkingP!W37,\"\")","v":""},{"$f":"IF(WorkingP!$B37=\"Clergy and Staffing Costs\",WorkingP!X37,\"\")","v":""},{"$f":"IF(WorkingP!$B37=\"Clergy and Staffing Costs\",WorkingP!Y37,\"\")","v":""},{"$f":"IF(Descriptions!K38=\"Clergy and Staffing Costs\",Descriptions!AB38,0)","v":0}]
[{"$f":"IF(Descriptions!K39=\"Clergy and Staffing Costs\",Descriptions!I39,0)","v":0},{"$f":"IF(WorkingP!$B38=\"Clergy and Staffing Costs\",WorkingP!D38,\"\")","v":""},{"$f":"IF(WorkingP!$B38=\"Clergy and Staffing Costs\",WorkingP!E38,\"\")","v":""},{"$f":"IF(WorkingP!$B38=\"Clergy and Staffing Costs\",WorkingP!F38,\"\")","v":""},{"$f":"IF(WorkingP!$B38=\"Clergy and Staffing Costs\",WorkingP!G38,\"\")","v":""},{"$f":"IF(WorkingP!$B38=\"Clergy and Staffing Costs\",WorkingP!H38,\"\")","v":""},{"$f":"IF(WorkingP!$B38=\"Clergy and Staffing Costs\",WorkingP!I38,\"\")","v":""},{"$f":"IF(WorkingP!$B38=\"Clergy and Staffing Costs\",WorkingP!J38,\"\")","v":""},{"$f":"IF(WorkingP!$B38=\"Clergy and Staffing Costs\",WorkingP!K38,\"\")","v":""},{"$f":"IF(WorkingP!$B38=\"Clergy and Staffing Costs\",WorkingP!L38,\"\")","v":""},{"$f":"IF(WorkingP!$B38=\"Clergy and Staffing Costs\",WorkingP!M38,\"\")","v":""},{"$f":"IF(WorkingP!$B38=\"Clergy and Staffing Costs\",WorkingP!N38,\"\")","v":""},{"$f":"IF(WorkingP!$B38=\"Clergy and Staffing Costs\",WorkingP!O38,\"\")","v":""},{"$f":"IF(WorkingP!$B38=\"Clergy and Staffing Costs\",WorkingP!P38,\"\")","v":""},{"$f":"IF(WorkingP!$B38=\"Clergy and Staffing Costs\",WorkingP!Q38,\"\")","v":""},{"$f":"IF(WorkingP!$B38=\"Clergy and Staffing Costs\",WorkingP!R38,\"\")","v":""},{"$f":"IF(WorkingP!$B38=\"Clergy and Staffing Costs\",WorkingP!S38,\"\")","v":""},{"$f":"IF(WorkingP!$B38=\"Clergy and Staffing Costs\",WorkingP!T38,\"\")","v":""},{"$f":"IF(WorkingP!$B38=\"Clergy and Staffing Costs\",WorkingP!U38,\"\")","v":""},{"$f":"IF(WorkingP!$B38=\"Clergy and Staffing Costs\",WorkingP!V38,\"\")","v":""},{"$f":"IF(WorkingP!$B38=\"Clergy and Staffing Costs\",WorkingP!W38,\"\")","v":""},{"$f":"IF(WorkingP!$B38=\"Clergy and Staffing Costs\",WorkingP!X38,\"\")","v":""},{"$f":"IF(WorkingP!$B38=\"Clergy and Staffing Costs\",WorkingP!Y38,\"\")","v":""},{"$f":"IF(Descriptions!K39=\"Clergy and Staffing Costs\",Descriptions!AB39,0)","v":0}]
[{"$f":"IF(Descriptions!K40=\"Clergy and Staffing Costs\",Descriptions!I40,0)","v":0},{"$f":"IF(WorkingP!$B39=\"Clergy and Staffing Costs\",WorkingP!D39,\"\")","v":""},{"$f":"IF(WorkingP!$B39=\"Clergy and Staffing Costs\",WorkingP!E39,\"\")","v":""},{"$f":"IF(WorkingP!$B39=\"Clergy and Staffing Costs\",WorkingP!F39,\"\")","v":""},{"$f":"IF(WorkingP!$B39=\"Clergy and Staffing Costs\",WorkingP!G39,\"\")","v":""},{"$f":"IF(WorkingP!$B39=\"Clergy and Staffing Costs\",WorkingP!H39,\"\")","v":""},{"$f":"IF(WorkingP!$B39=\"Clergy and Staffing Costs\",WorkingP!I39,\"\")","v":""},{"$f":"IF(WorkingP!$B39=\"Clergy and Staffing Costs\",WorkingP!J39,\"\")","v":""},{"$f":"IF(WorkingP!$B39=\"Clergy and Staffing Costs\",WorkingP!K39,\"\")","v":""},{"$f":"IF(WorkingP!$B39=\"Clergy and Staffing Costs\",WorkingP!L39,\"\")","v":""},{"$f":"IF(WorkingP!$B39=\"Clergy and Staffing Costs\",WorkingP!M39,\"\")","v":""},{"$f":"IF(WorkingP!$B39=\"Clergy and Staffing Costs\",WorkingP!N39,\"\")","v":""},{"$f":"IF(WorkingP!$B39=\"Clergy and Staffing Costs\",WorkingP!O39,\"\")","v":""},{"$f":"IF(WorkingP!$B39=\"Clergy and Staffing Costs\",WorkingP!P39,\"\")","v":""},{"$f":"IF(WorkingP!$B39=\"Clergy and Staffing Costs\",WorkingP!Q39,\"\")","v":""},{"$f":"IF(WorkingP!$B39=\"Clergy and Staffing Costs\",WorkingP!R39,\"\")","v":""},{"$f":"IF(WorkingP!$B39=\"Clergy and Staffing Costs\",WorkingP!S39,\"\")","v":""},{"$f":"IF(WorkingP!$B39=\"Clergy and Staffing Costs\",WorkingP!T39,\"\")","v":""},{"$f":"IF(WorkingP!$B39=\"Clergy and Staffing Costs\",WorkingP!U39,\"\")","v":""},{"$f":"IF(WorkingP!$B39=\"Clergy and Staffing Costs\",WorkingP!V39,\"\")","v":""},{"$f":"IF(WorkingP!$B39=\"Clergy and Staffing Costs\",WorkingP!W39,\"\")","v":""},{"$f":"IF(WorkingP!$B39=\"Clergy and Staffing Costs\",WorkingP!X39,\"\")","v":""},{"$f":"IF(WorkingP!$B39=\"Clergy and Staffing Costs\",WorkingP!Y39,\"\")","v":""},{"$f":"IF(Descriptions!K40=\"Clergy and Staffing Costs\",Descriptions!AB40,0)","v":0}]
[{"$f":"IF(Descriptions!K41=\"Clergy and Staffing Costs\",Descriptions!I41,0)","v":0},{"$f":"IF(WorkingP!$B40=\"Clergy and Staffing Costs\",WorkingP!D40,\"\")","v":""},{"$f":"IF(WorkingP!$B40=\"Clergy and Staffing Costs\",WorkingP!E40,\"\")","v":""},{"$f":"IF(WorkingP!$B40=\"Clergy and Staffing Costs\",WorkingP!F40,\"\")","v":""},{"$f":"IF(WorkingP!$B40=\"Clergy and Staffing Costs\",WorkingP!G40,\"\")","v":""},{"$f":"IF(WorkingP!$B40=\"Clergy and Staffing Costs\",WorkingP!H40,\"\")","v":""},{"$f":"IF(WorkingP!$B40=\"Clergy and Staffing Costs\",WorkingP!I40,\"\")","v":""},{"$f":"IF(WorkingP!$B40=\"Clergy and Staffing Costs\",WorkingP!J40,\"\")","v":""},{"$f":"IF(WorkingP!$B40=\"Clergy and Staffing Costs\",WorkingP!K40,\"\")","v":""},{"$f":"IF(WorkingP!$B40=\"Clergy and Staffing Costs\",WorkingP!L40,\"\")","v":""},{"$f":"IF(WorkingP!$B40=\"Clergy and Staffing Costs\",WorkingP!M40,\"\")","v":""},{"$f":"IF(WorkingP!$B40=\"Clergy and Staffing Costs\",WorkingP!N40,\"\")","v":""},{"$f":"IF(WorkingP!$B40=\"Clergy and Staffing Costs\",WorkingP!O40,\"\")","v":""},{"$f":"IF(WorkingP!$B40=\"Clergy and Staffing Costs\",WorkingP!P40,\"\")","v":""},{"$f":"IF(WorkingP!$B40=\"Clergy and Staffing Costs\",WorkingP!Q40,\"\")","v":""},{"$f":"IF(WorkingP!$B40=\"Clergy and Staffing Costs\",WorkingP!R40,\"\")","v":""},{"$f":"IF(WorkingP!$B40=\"Clergy and Staffing Costs\",WorkingP!S40,\"\")","v":""},{"$f":"IF(WorkingP!$B40=\"Clergy and Staffing Costs\",WorkingP!T40,\"\")","v":""},{"$f":"IF(WorkingP!$B40=\"Clergy and Staffing Costs\",WorkingP!U40,\"\")","v":""},{"$f":"IF(WorkingP!$B40=\"Clergy and Staffing Costs\",WorkingP!V40,\"\")","v":""},{"$f":"IF(WorkingP!$B40=\"Clergy and Staffing Costs\",WorkingP!W40,\"\")","v":""},{"$f":"IF(WorkingP!$B40=\"Clergy and Staffing Costs\",WorkingP!X40,\"\")","v":""},{"$f":"IF(WorkingP!$B40=\"Clergy and Staffing Costs\",WorkingP!Y40,\"\")","v":""},{"$f":"IF(Descriptions!K41=\"Clergy and Staffing Costs\",Descriptions!AB41,0)","v":0}]
[{"$f":"IF(Descriptions!K42=\"Clergy and Staffing Costs\",Descriptions!I42,0)","v":0},{"$f":"IF(WorkingP!$B41=\"Clergy and Staffing Costs\",WorkingP!D41,\"\")","v":""},{"$f":"IF(WorkingP!$B41=\"Clergy and Staffing Costs\",WorkingP!E41,\"\")","v":""},{"$f":"IF(WorkingP!$B41=\"Clergy and Staffing Costs\",WorkingP!F41,\"\")","v":""},{"$f":"IF(WorkingP!$B41=\"Clergy and Staffing Costs\",WorkingP!G41,\"\")","v":""},{"$f":"IF(WorkingP!$B41=\"Clergy and Staffing Costs\",WorkingP!H41,\"\")","v":""},{"$f":"IF(WorkingP!$B41=\"Clergy and Staffing Costs\",WorkingP!I41,\"\")","v":""},{"$f":"IF(WorkingP!$B41=\"Clergy and Staffing Costs\",WorkingP!J41,\"\")","v":""},{"$f":"IF(WorkingP!$B41=\"Clergy and Staffing Costs\",WorkingP!K41,\"\")","v":""},{"$f":"IF(WorkingP!$B41=\"Clergy and Staffing Costs\",WorkingP!L41,\"\")","v":""},{"$f":"IF(WorkingP!$B41=\"Clergy and Staffing Costs\",WorkingP!M41,\"\")","v":""},{"$f":"IF(WorkingP!$B41=\"Clergy and Staffing Costs\",WorkingP!N41,\"\")","v":""},{"$f":"IF(WorkingP!$B41=\"Clergy and Staffing Costs\",WorkingP!O41,\"\")","v":""},{"$f":"IF(WorkingP!$B41=\"Clergy and Staffing Costs\",WorkingP!P41,\"\")","v":""},{"$f":"IF(WorkingP!$B41=\"Clergy and Staffing Costs\",WorkingP!Q41,\"\")","v":""},{"$f":"IF(WorkingP!$B41=\"Clergy and Staffing Costs\",WorkingP!R41,\"\")","v":""},{"$f":"IF(WorkingP!$B41=\"Clergy and Staffing Costs\",WorkingP!S41,\"\")","v":""},{"$f":"IF(WorkingP!$B41=\"Clergy and Staffing Costs\",WorkingP!T41,\"\")","v":""},{"$f":"IF(WorkingP!$B41=\"Clergy and Staffing Costs\",WorkingP!U41,\"\")","v":""},{"$f":"IF(WorkingP!$B41=\"Clergy and Staffing Costs\",WorkingP!V41,\"\")","v":""},{"$f":"IF(WorkingP!$B41=\"Clergy and Staffing Costs\",WorkingP!W41,\"\")","v":""},{"$f":"IF(WorkingP!$B41=\"Clergy and Staffing Costs\",WorkingP!X41,\"\")","v":""},{"$f":"IF(WorkingP!$B41=\"Clergy and Staffing Costs\",WorkingP!Y41,\"\")","v":""},{"$f":"IF(Descriptions!K42=\"Clergy and Staffing Costs\",Descriptions!AB42,0)","v":0}]
[{"$f":"IF(Descriptions!K43=\"Clergy and Staffing Costs\",Descriptions!I43,0)","v":0},{"$f":"IF(WorkingP!$B42=\"Clergy and Staffing Costs\",WorkingP!D42,\"\")","v":""},{"$f":"IF(WorkingP!$B42=\"Clergy and Staffing Costs\",WorkingP!E42,\"\")","v":""},{"$f":"IF(WorkingP!$B42=\"Clergy and Staffing Costs\",WorkingP!F42,\"\")","v":""},{"$f":"IF(WorkingP!$B42=\"Clergy and Staffing Costs\",WorkingP!G42,\"\")","v":""},{"$f":"IF(WorkingP!$B42=\"Clergy and Staffing Costs\",WorkingP!H42,\"\")","v":""},{"$f":"IF(WorkingP!$B42=\"Clergy and Staffing Costs\",WorkingP!I42,\"\")","v":""},{"$f":"IF(WorkingP!$B42=\"Clergy and Staffing Costs\",WorkingP!J42,\"\")","v":""},{"$f":"IF(WorkingP!$B42=\"Clergy and Staffing Costs\",WorkingP!K42,\"\")","v":""},{"$f":"IF(WorkingP!$B42=\"Clergy and Staffing Costs\",WorkingP!L42,\"\")","v":""},{"$f":"IF(WorkingP!$B42=\"Clergy and Staffing Costs\",WorkingP!M42,\"\")","v":""},{"$f":"IF(WorkingP!$B42=\"Clergy and Staffing Costs\",WorkingP!N42,\"\")","v":""},{"$f":"IF(WorkingP!$B42=\"Clergy and Staffing Costs\",WorkingP!O42,\"\")","v":""},{"$f":"IF(WorkingP!$B42=\"Clergy and Staffing Costs\",WorkingP!P42,\"\")","v":""},{"$f":"IF(WorkingP!$B42=\"Clergy and Staffing Costs\",WorkingP!Q42,\"\")","v":""},{"$f":"IF(WorkingP!$B42=\"Clergy and Staffing Costs\",WorkingP!R42,\"\")","v":""},{"$f":"IF(WorkingP!$B42=\"Clergy and Staffing Costs\",WorkingP!S42,\"\")","v":""},{"$f":"IF(WorkingP!$B42=\"Clergy and Staffing Costs\",WorkingP!T42,\"\")","v":""},{"$f":"IF(WorkingP!$B42=\"Clergy and Staffing Costs\",WorkingP!U42,\"\")","v":""},{"$f":"IF(WorkingP!$B42=\"Clergy and Staffing Costs\",WorkingP!V42,\"\")","v":""},{"$f":"IF(WorkingP!$B42=\"Clergy and Staffing Costs\",WorkingP!W42,\"\")","v":""},{"$f":"IF(WorkingP!$B42=\"Clergy and Staffing Costs\",WorkingP!X42,\"\")","v":""},{"$f":"IF(WorkingP!$B42=\"Clergy and Staffing Costs\",WorkingP!Y42,\"\")","v":""},{"$f":"IF(Descriptions!K43=\"Clergy and Staffing Costs\",Descriptions!AB43,0)","v":0}]
[{"$f":"IF(Descriptions!K44=\"Clergy and Staffing Costs\",Descriptions!I44,0)","v":0},{"$f":"IF(WorkingP!$B43=\"Clergy and Staffing Costs\",WorkingP!D43,\"\")","v":""},{"$f":"IF(WorkingP!$B43=\"Clergy and Staffing Costs\",WorkingP!E43,\"\")","v":""},{"$f":"IF(WorkingP!$B43=\"Clergy and Staffing Costs\",WorkingP!F43,\"\")","v":""},{"$f":"IF(WorkingP!$B43=\"Clergy and Staffing Costs\",WorkingP!G43,\"\")","v":""},{"$f":"IF(WorkingP!$B43=\"Clergy and Staffing Costs\",WorkingP!H43,\"\")","v":""},{"$f":"IF(WorkingP!$B43=\"Clergy and Staffing Costs\",WorkingP!I43,\"\")","v":""},{"$f":"IF(WorkingP!$B43=\"Clergy and Staffing Costs\",WorkingP!J43,\"\")","v":""},{"$f":"IF(WorkingP!$B43=\"Clergy and Staffing Costs\",WorkingP!K43,\"\")","v":""},{"$f":"IF(WorkingP!$B43=\"Clergy and Staffing Costs\",WorkingP!L43,\"\")","v":""},{"$f":"IF(WorkingP!$B43=\"Clergy and Staffing Costs\",WorkingP!M43,\"\")","v":""},{"$f":"IF(WorkingP!$B43=\"Clergy and Staffing Costs\",WorkingP!N43,\"\")","v":""},{"$f":"IF(WorkingP!$B43=\"Clergy and Staffing Costs\",WorkingP!O43,\"\")","v":""},{"$f":"IF(WorkingP!$B43=\"Clergy and Staffing Costs\",WorkingP!P43,\"\")","v":""},{"$f":"IF(WorkingP!$B43=\"Clergy and Staffing Costs\",WorkingP!Q43,\"\")","v":""},{"$f":"IF(WorkingP!$B43=\"Clergy and Staffing Costs\",WorkingP!R43,\"\")","v":""},{"$f":"IF(WorkingP!$B43=\"Clergy and Staffing Costs\",WorkingP!S43,\"\")","v":""},{"$f":"IF(WorkingP!$B43=\"Clergy and Staffing Costs\",WorkingP!T43,\"\")","v":""},{"$f":"IF(WorkingP!$B43=\"Clergy and Staffing Costs\",WorkingP!U43,\"\")","v":""},{"$f":"IF(WorkingP!$B43=\"Clergy and Staffing Costs\",WorkingP!V43,\"\")","v":""},{"$f":"IF(WorkingP!$B43=\"Clergy and Staffing Costs\",WorkingP!W43,\"\")","v":""},{"$f":"IF(WorkingP!$B43=\"Clergy and Staffing Costs\",WorkingP!X43,\"\")","v":""},{"$f":"IF(WorkingP!$B43=\"Clergy and Staffing Costs\",WorkingP!Y43,\"\")","v":""},{"$f":"IF(Descriptions!K44=\"Clergy and Staffing Costs\",Descriptions!AB44,0)","v":0}]
[{"$f":"IF(Descriptions!K45=\"Clergy and Staffing Costs\",Descriptions!I45,0)","v":0},{"$f":"IF(WorkingP!$B44=\"Clergy and Staffing Costs\",WorkingP!D44,\"\")","v":""},{"$f":"IF(WorkingP!$B44=\"Clergy and Staffing Costs\",WorkingP!E44,\"\")","v":""},{"$f":"IF(WorkingP!$B44=\"Clergy and Staffing Costs\",WorkingP!F44,\"\")","v":""},{"$f":"IF(WorkingP!$B44=\"Clergy and Staffing Costs\",WorkingP!G44,\"\")","v":""},{"$f":"IF(WorkingP!$B44=\"Clergy and Staffing Costs\",WorkingP!H44,\"\")","v":""},{"$f":"IF(WorkingP!$B44=\"Clergy and Staffing Costs\",WorkingP!I44,\"\")","v":""},{"$f":"IF(WorkingP!$B44=\"Clergy and Staffing Costs\",WorkingP!J44,\"\")","v":""},{"$f":"IF(WorkingP!$B44=\"Clergy and Staffing Costs\",WorkingP!K44,\"\")","v":""},{"$f":"IF(WorkingP!$B44=\"Clergy and Staffing Costs\",WorkingP!L44,\"\")","v":""},{"$f":"IF(WorkingP!$B44=\"Clergy and Staffing Costs\",WorkingP!M44,\"\")","v":""},{"$f":"IF(WorkingP!$B44=\"Clergy and Staffing Costs\",WorkingP!N44,\"\")","v":""},{"$f":"IF(WorkingP!$B44=\"Clergy and Staffing Costs\",WorkingP!O44,\"\")","v":""},{"$f":"IF(WorkingP!$B44=\"Clergy and Staffing Costs\",WorkingP!P44,\"\")","v":""},{"$f":"IF(WorkingP!$B44=\"Clergy and Staffing Costs\",WorkingP!Q44,\"\")","v":""},{"$f":"IF(WorkingP!$B44=\"Clergy and Staffing Costs\",WorkingP!R44,\"\")","v":""},{"$f":"IF(WorkingP!$B44=\"Clergy and Staffing Costs\",WorkingP!S44,\"\")","v":""},{"$f":"IF(WorkingP!$B44=\"Clergy and Staffing Costs\",WorkingP!T44,\"\")","v":""},{"$f":"IF(WorkingP!$B44=\"Clergy and Staffing Costs\",WorkingP!U44,\"\")","v":""},{"$f":"IF(WorkingP!$B44=\"Clergy and Staffing Costs\",WorkingP!V44,\"\")","v":""},{"$f":"IF(WorkingP!$B44=\"Clergy and Staffing Costs\",WorkingP!W44,\"\")","v":""},{"$f":"IF(WorkingP!$B44=\"Clergy and Staffing Costs\",WorkingP!X44,\"\")","v":""},{"$f":"IF(WorkingP!$B44=\"Clergy and Staffing Costs\",WorkingP!Y44,\"\")","v":""},{"$f":"IF(Descriptions!K45=\"Clergy and Staffing Costs\",Descriptions!AB45,0)","v":0}]
[{"$f":"IF(Descriptions!K46=\"Clergy and Staffing Costs\",Descriptions!I46,0)","v":0},{"$f":"IF(WorkingP!$B45=\"Clergy and Staffing Costs\",WorkingP!D45,\"\")","v":""},{"$f":"IF(WorkingP!$B45=\"Clergy and Staffing Costs\",WorkingP!E45,\"\")","v":""},{"$f":"IF(WorkingP!$B45=\"Clergy and Staffing Costs\",WorkingP!F45,\"\")","v":""},{"$f":"IF(WorkingP!$B45=\"Clergy and Staffing Costs\",WorkingP!G45,\"\")","v":""},{"$f":"IF(WorkingP!$B45=\"Clergy and Staffing Costs\",WorkingP!H45,\"\")","v":""},{"$f":"IF(WorkingP!$B45=\"Clergy and Staffing Costs\",WorkingP!I45,\"\")","v":""},{"$f":"IF(WorkingP!$B45=\"Clergy and Staffing Costs\",WorkingP!J45,\"\")","v":""},{"$f":"IF(WorkingP!$B45=\"Clergy and Staffing Costs\",WorkingP!K45,\"\")","v":""},{"$f":"IF(WorkingP!$B45=\"Clergy and Staffing Costs\",WorkingP!L45,\"\")","v":""},{"$f":"IF(WorkingP!$B45=\"Clergy and Staffing Costs\",WorkingP!M45,\"\")","v":""},{"$f":"IF(WorkingP!$B45=\"Clergy and Staffing Costs\",WorkingP!N45,\"\")","v":""},{"$f":"IF(WorkingP!$B45=\"Clergy and Staffing Costs\",WorkingP!O45,\"\")","v":""},{"$f":"IF(WorkingP!$B45=\"Clergy and Staffing Costs\",WorkingP!P45,\"\")","v":""},{"$f":"IF(WorkingP!$B45=\"Clergy and Staffing Costs\",WorkingP!Q45,\"\")","v":""},{"$f":"IF(WorkingP!$B45=\"Clergy and Staffing Costs\",WorkingP!R45,\"\")","v":""},{"$f":"IF(WorkingP!$B45=\"Clergy and Staffing Costs\",WorkingP!S45,\"\")","v":""},{"$f":"IF(WorkingP!$B45=\"Clergy and Staffing Costs\",WorkingP!T45,\"\")","v":""},{"$f":"IF(WorkingP!$B45=\"Clergy and Staffing Costs\",WorkingP!U45,\"\")","v":""},{"$f":"IF(WorkingP!$B45=\"Clergy and Staffing Costs\",WorkingP!V45,\"\")","v":""},{"$f":"IF(WorkingP!$B45=\"Clergy and Staffing Costs\",WorkingP!W45,\"\")","v":""},{"$f":"IF(WorkingP!$B45=\"Clergy and Staffing Costs\",WorkingP!X45,\"\")","v":""},{"$f":"IF(WorkingP!$B45=\"Clergy and Staffing Costs\",WorkingP!Y45,\"\")","v":""},{"$f":"IF(Descriptions!K46=\"Clergy and Staffing Costs\",Descriptions!AB46,0)","v":0}]
[{"$f":"IF(Descriptions!K47=\"Clergy and Staffing Costs\",Descriptions!I47,0)","v":0},{"$f":"IF(WorkingP!$B46=\"Clergy and Staffing Costs\",WorkingP!D46,\"\")","v":""},{"$f":"IF(WorkingP!$B46=\"Clergy and Staffing Costs\",WorkingP!E46,\"\")","v":""},{"$f":"IF(WorkingP!$B46=\"Clergy and Staffing Costs\",WorkingP!F46,\"\")","v":""},{"$f":"IF(WorkingP!$B46=\"Clergy and Staffing Costs\",WorkingP!G46,\"\")","v":""},{"$f":"IF(WorkingP!$B46=\"Clergy and Staffing Costs\",WorkingP!H46,\"\")","v":""},{"$f":"IF(WorkingP!$B46=\"Clergy and Staffing Costs\",WorkingP!I46,\"\")","v":""},{"$f":"IF(WorkingP!$B46=\"Clergy and Staffing Costs\",WorkingP!J46,\"\")","v":""},{"$f":"IF(WorkingP!$B46=\"Clergy and Staffing Costs\",WorkingP!K46,\"\")","v":""},{"$f":"IF(WorkingP!$B46=\"Clergy and Staffing Costs\",WorkingP!L46,\"\")","v":""},{"$f":"IF(WorkingP!$B46=\"Clergy and Staffing Costs\",WorkingP!M46,\"\")","v":""},{"$f":"IF(WorkingP!$B46=\"Clergy and Staffing Costs\",WorkingP!N46,\"\")","v":""},{"$f":"IF(WorkingP!$B46=\"Clergy and Staffing Costs\",WorkingP!O46,\"\")","v":""},{"$f":"IF(WorkingP!$B46=\"Clergy and Staffing Costs\",WorkingP!P46,\"\")","v":""},{"$f":"IF(WorkingP!$B46=\"Clergy and Staffing Costs\",WorkingP!Q46,\"\")","v":""},{"$f":"IF(WorkingP!$B46=\"Clergy and Staffing Costs\",WorkingP!R46,\"\")","v":""},{"$f":"IF(WorkingP!$B46=\"Clergy and Staffing Costs\",WorkingP!S46,\"\")","v":""},{"$f":"IF(WorkingP!$B46=\"Clergy and Staffing Costs\",WorkingP!T46,\"\")","v":""},{"$f":"IF(WorkingP!$B46=\"Clergy and Staffing Costs\",WorkingP!U46,\"\")","v":""},{"$f":"IF(WorkingP!$B46=\"Clergy and Staffing Costs\",WorkingP!V46,\"\")","v":""},{"$f":"IF(WorkingP!$B46=\"Clergy and Staffing Costs\",WorkingP!W46,\"\")","v":""},{"$f":"IF(WorkingP!$B46=\"Clergy and Staffing Costs\",WorkingP!X46,\"\")","v":""},{"$f":"IF(WorkingP!$B46=\"Clergy and Staffing Costs\",WorkingP!Y46,\"\")","v":""},{"$f":"IF(Descriptions!K47=\"Clergy and Staffing Costs\",Descriptions!AB47,0)","v":0}]
[{"$f":"IF(Descriptions!K48=\"Clergy and Staffing Costs\",Descriptions!I48,0)","v":0},{"$f":"IF(WorkingP!$B47=\"Clergy and Staffing Costs\",WorkingP!D47,\"\")","v":""},{"$f":"IF(WorkingP!$B47=\"Clergy and Staffing Costs\",WorkingP!E47,\"\")","v":""},{"$f":"IF(WorkingP!$B47=\"Clergy and Staffing Costs\",WorkingP!F47,\"\")","v":""},{"$f":"IF(WorkingP!$B47=\"Clergy and Staffing Costs\",WorkingP!G47,\"\")","v":""},{"$f":"IF(WorkingP!$B47=\"Clergy and Staffing Costs\",WorkingP!H47,\"\")","v":""},{"$f":"IF(WorkingP!$B47=\"Clergy and Staffing Costs\",WorkingP!I47,\"\")","v":""},{"$f":"IF(WorkingP!$B47=\"Clergy and Staffing Costs\",WorkingP!J47,\"\")","v":""},{"$f":"IF(WorkingP!$B47=\"Clergy and Staffing Costs\",WorkingP!K47,\"\")","v":""},{"$f":"IF(WorkingP!$B47=\"Clergy and Staffing Costs\",WorkingP!L47,\"\")","v":""},{"$f":"IF(WorkingP!$B47=\"Clergy and Staffing Costs\",WorkingP!M47,\"\")","v":""},{"$f":"IF(WorkingP!$B47=\"Clergy and Staffing Costs\",WorkingP!N47,\"\")","v":""},{"$f":"IF(WorkingP!$B47=\"Clergy and Staffing Costs\",WorkingP!O47,\"\")","v":""},{"$f":"IF(WorkingP!$B47=\"Clergy and Staffing Costs\",WorkingP!P47,\"\")","v":""},{"$f":"IF(WorkingP!$B47=\"Clergy and Staffing Costs\",WorkingP!Q47,\"\")","v":""},{"$f":"IF(WorkingP!$B47=\"Clergy and Staffing Costs\",WorkingP!R47,\"\")","v":""},{"$f":"IF(WorkingP!$B47=\"Clergy and Staffing Costs\",WorkingP!S47,\"\")","v":""},{"$f":"IF(WorkingP!$B47=\"Clergy and Staffing Costs\",WorkingP!T47,\"\")","v":""},{"$f":"IF(WorkingP!$B47=\"Clergy and Staffing Costs\",WorkingP!U47,\"\")","v":""},{"$f":"IF(WorkingP!$B47=\"Clergy and Staffing Costs\",WorkingP!V47,\"\")","v":""},{"$f":"IF(WorkingP!$B47=\"Clergy and Staffing Costs\",WorkingP!W47,\"\")","v":""},{"$f":"IF(WorkingP!$B47=\"Clergy and Staffing Costs\",WorkingP!X47,\"\")","v":""},{"$f":"IF(WorkingP!$B47=\"Clergy and Staffing Costs\",WorkingP!Y47,\"\")","v":""},{"$f":"IF(Descriptions!K48=\"Clergy and Staffing Costs\",Descriptions!AB48,0)","v":0}]
[{"$f":"IF(Descriptions!K49=\"Clergy and Staffing Costs\",Descriptions!I49,0)","v":0},{"$f":"IF(WorkingP!$B48=\"Clergy and Staffing Costs\",WorkingP!D48,\"\")","v":""},{"$f":"IF(WorkingP!$B48=\"Clergy and Staffing Costs\",WorkingP!E48,\"\")","v":""},{"$f":"IF(WorkingP!$B48=\"Clergy and Staffing Costs\",WorkingP!F48,\"\")","v":""},{"$f":"IF(WorkingP!$B48=\"Clergy and Staffing Costs\",WorkingP!G48,\"\")","v":""},{"$f":"IF(WorkingP!$B48=\"Clergy and Staffing Costs\",WorkingP!H48,\"\")","v":""},{"$f":"IF(WorkingP!$B48=\"Clergy and Staffing Costs\",WorkingP!I48,\"\")","v":""},{"$f":"IF(WorkingP!$B48=\"Clergy and Staffing Costs\",WorkingP!J48,\"\")","v":""},{"$f":"IF(WorkingP!$B48=\"Clergy and Staffing Costs\",WorkingP!K48,\"\")","v":""},{"$f":"IF(WorkingP!$B48=\"Clergy and Staffing Costs\",WorkingP!L48,\"\")","v":""},{"$f":"IF(WorkingP!$B48=\"Clergy and Staffing Costs\",WorkingP!M48,\"\")","v":""},{"$f":"IF(WorkingP!$B48=\"Clergy and Staffing Costs\",WorkingP!N48,\"\")","v":""},{"$f":"IF(WorkingP!$B48=\"Clergy and Staffing Costs\",WorkingP!O48,\"\")","v":""},{"$f":"IF(WorkingP!$B48=\"Clergy and Staffing Costs\",WorkingP!P48,\"\")","v":""},{"$f":"IF(WorkingP!$B48=\"Clergy and Staffing Costs\",WorkingP!Q48,\"\")","v":""},{"$f":"IF(WorkingP!$B48=\"Clergy and Staffing Costs\",WorkingP!R48,\"\")","v":""},{"$f":"IF(WorkingP!$B48=\"Clergy and Staffing Costs\",WorkingP!S48,\"\")","v":""},{"$f":"IF(WorkingP!$B48=\"Clergy and Staffing Costs\",WorkingP!T48,\"\")","v":""},{"$f":"IF(WorkingP!$B48=\"Clergy and Staffing Costs\",WorkingP!U48,\"\")","v":""},{"$f":"IF(WorkingP!$B48=\"Clergy and Staffing Costs\",WorkingP!V48,\"\")","v":""},{"$f":"IF(WorkingP!$B48=\"Clergy and Staffing Costs\",WorkingP!W48,\"\")","v":""},{"$f":"IF(WorkingP!$B48=\"Clergy and Staffing Costs\",WorkingP!X48,\"\")","v":""},{"$f":"IF(WorkingP!$B48=\"Clergy and Staffing Costs\",WorkingP!Y48,\"\")","v":""},{"$f":"IF(Descriptions!K49=\"Clergy and Staffing Costs\",Descriptions!AB49,0)","v":0}]
[{"$f":"IF(Descriptions!K50=\"Clergy and Staffing Costs\",Descriptions!I50,0)","v":0},{"$f":"IF(WorkingP!$B49=\"Clergy and Staffing Costs\",WorkingP!D49,\"\")","v":""},{"$f":"IF(WorkingP!$B49=\"Clergy and Staffing Costs\",WorkingP!E49,\"\")","v":""},{"$f":"IF(WorkingP!$B49=\"Clergy and Staffing Costs\",WorkingP!F49,\"\")","v":""},{"$f":"IF(WorkingP!$B49=\"Clergy and Staffing Costs\",WorkingP!G49,\"\")","v":""},{"$f":"IF(WorkingP!$B49=\"Clergy and Staffing Costs\",WorkingP!H49,\"\")","v":""},{"$f":"IF(WorkingP!$B49=\"Clergy and Staffing Costs\",WorkingP!I49,\"\")","v":""},{"$f":"IF(WorkingP!$B49=\"Clergy and Staffing Costs\",WorkingP!J49,\"\")","v":""},{"$f":"IF(WorkingP!$B49=\"Clergy and Staffing Costs\",WorkingP!K49,\"\")","v":""},{"$f":"IF(WorkingP!$B49=\"Clergy and Staffing Costs\",WorkingP!L49,\"\")","v":""},{"$f":"IF(WorkingP!$B49=\"Clergy and Staffing Costs\",WorkingP!M49,\"\")","v":""},{"$f":"IF(WorkingP!$B49=\"Clergy and Staffing Costs\",WorkingP!N49,\"\")","v":""},{"$f":"IF(WorkingP!$B49=\"Clergy and Staffing Costs\",WorkingP!O49,\"\")","v":""},{"$f":"IF(WorkingP!$B49=\"Clergy and Staffing Costs\",WorkingP!P49,\"\")","v":""},{"$f":"IF(WorkingP!$B49=\"Clergy and Staffing Costs\",WorkingP!Q49,\"\")","v":""},{"$f":"IF(WorkingP!$B49=\"Clergy and Staffing Costs\",WorkingP!R49,\"\")","v":""},{"$f":"IF(WorkingP!$B49=\"Clergy and Staffing Costs\",WorkingP!S49,\"\")","v":""},{"$f":"IF(WorkingP!$B49=\"Clergy and Staffing Costs\",WorkingP!T49,\"\")","v":""},{"$f":"IF(WorkingP!$B49=\"Clergy and Staffing Costs\",WorkingP!U49,\"\")","v":""},{"$f":"IF(WorkingP!$B49=\"Clergy and Staffing Costs\",WorkingP!V49,\"\")","v":""},{"$f":"IF(WorkingP!$B49=\"Clergy and Staffing Costs\",WorkingP!W49,\"\")","v":""},{"$f":"IF(WorkingP!$B49=\"Clergy and Staffing Costs\",WorkingP!X49,\"\")","v":""},{"$f":"IF(WorkingP!$B49=\"Clergy and Staffing Costs\",WorkingP!Y49,\"\")","v":""},{"$f":"IF(Descriptions!K50=\"Clergy and Staffing Costs\",Descriptions!AB50,0)","v":0}]
[{"$f":"IF(Descriptions!K51=\"Clergy and Staffing Costs\",Descriptions!I51,0)","v":0},{"$f":"IF(WorkingP!$B50=\"Clergy and Staffing Costs\",WorkingP!D50,\"\")","v":""},{"$f":"IF(WorkingP!$B50=\"Clergy and Staffing Costs\",WorkingP!E50,\"\")","v":""},{"$f":"IF(WorkingP!$B50=\"Clergy and Staffing Costs\",WorkingP!F50,\"\")","v":""},{"$f":"IF(WorkingP!$B50=\"Clergy and Staffing Costs\",WorkingP!G50,\"\")","v":""},{"$f":"IF(WorkingP!$B50=\"Clergy and Staffing Costs\",WorkingP!H50,\"\")","v":""},{"$f":"IF(WorkingP!$B50=\"Clergy and Staffing Costs\",WorkingP!I50,\"\")","v":""},{"$f":"IF(WorkingP!$B50=\"Clergy and Staffing Costs\",WorkingP!J50,\"\")","v":""},{"$f":"IF(WorkingP!$B50=\"Clergy and Staffing Costs\",WorkingP!K50,\"\")","v":""},{"$f":"IF(WorkingP!$B50=\"Clergy and Staffing Costs\",WorkingP!L50,\"\")","v":""},{"$f":"IF(WorkingP!$B50=\"Clergy and Staffing Costs\",WorkingP!M50,\"\")","v":""},{"$f":"IF(WorkingP!$B50=\"Clergy and Staffing Costs\",WorkingP!N50,\"\")","v":""},{"$f":"IF(WorkingP!$B50=\"Clergy and Staffing Costs\",WorkingP!O50,\"\")","v":""},{"$f":"IF(WorkingP!$B50=\"Clergy and Staffing Costs\",WorkingP!P50,\"\")","v":""},{"$f":"IF(WorkingP!$B50=\"Clergy and Staffing Costs\",WorkingP!Q50,\"\")","v":""},{"$f":"IF(WorkingP!$B50=\"Clergy and Staffing Costs\",WorkingP!R50,\"\")","v":""},{"$f":"IF(WorkingP!$B50=\"Clergy and Staffing Costs\",WorkingP!S50,\"\")","v":""},{"$f":"IF(WorkingP!$B50=\"Clergy and Staffing Costs\",WorkingP!T50,\"\")","v":""},{"$f":"IF(WorkingP!$B50=\"Clergy and Staffing Costs\",WorkingP!U50,\"\")","v":""},{"$f":"IF(WorkingP!$B50=\"Clergy and Staffing Costs\",WorkingP!V50,\"\")","v":""},{"$f":"IF(WorkingP!$B50=\"Clergy and Staffing Costs\",WorkingP!W50,\"\")","v":""},{"$f":"IF(WorkingP!$B50=\"Clergy and Staffing Costs\",WorkingP!X50,\"\")","v":""},{"$f":"IF(WorkingP!$B50=\"Clergy and Staffing Costs\",WorkingP!Y50,\"\")","v":""},{"$f":"IF(Descriptions!K51=\"Clergy and Staffing Costs\",Descriptions!AB51,0)","v":0}]
[{"$f":"IF(Descriptions!K52=\"Clergy and Staffing Costs\",Descriptions!I52,0)","v":0},{"$f":"IF(WorkingP!$B51=\"Clergy and Staffing Costs\",WorkingP!D51,\"\")","v":""},{"$f":"IF(WorkingP!$B51=\"Clergy and Staffing Costs\",WorkingP!E51,\"\")","v":""},{"$f":"IF(WorkingP!$B51=\"Clergy and Staffing Costs\",WorkingP!F51,\"\")","v":""},{"$f":"IF(WorkingP!$B51=\"Clergy and Staffing Costs\",WorkingP!G51,\"\")","v":""},{"$f":"IF(WorkingP!$B51=\"Clergy and Staffing Costs\",WorkingP!H51,\"\")","v":""},{"$f":"IF(WorkingP!$B51=\"Clergy and Staffing Costs\",WorkingP!I51,\"\")","v":""},{"$f":"IF(WorkingP!$B51=\"Clergy and Staffing Costs\",WorkingP!J51,\"\")","v":""},{"$f":"IF(WorkingP!$B51=\"Clergy and Staffing Costs\",WorkingP!K51,\"\")","v":""},{"$f":"IF(WorkingP!$B51=\"Clergy and Staffing Costs\",WorkingP!L51,\"\")","v":""},{"$f":"IF(WorkingP!$B51=\"Clergy and Staffing Costs\",WorkingP!M51,\"\")","v":""},{"$f":"IF(WorkingP!$B51=\"Clergy and Staffing Costs\",WorkingP!N51,\"\")","v":""},{"$f":"IF(WorkingP!$B51=\"Clergy and Staffing Costs\",WorkingP!O51,\"\")","v":""},{"$f":"IF(WorkingP!$B51=\"Clergy and Staffing Costs\",WorkingP!P51,\"\")","v":""},{"$f":"IF(WorkingP!$B51=\"Clergy and Staffing Costs\",WorkingP!Q51,\"\")","v":""},{"$f":"IF(WorkingP!$B51=\"Clergy and Staffing Costs\",WorkingP!R51,\"\")","v":""},{"$f":"IF(WorkingP!$B51=\"Clergy and Staffing Costs\",WorkingP!S51,\"\")","v":""},{"$f":"IF(WorkingP!$B51=\"Clergy and Staffing Costs\",WorkingP!T51,\"\")","v":""},{"$f":"IF(WorkingP!$B51=\"Clergy and Staffing Costs\",WorkingP!U51,\"\")","v":""},{"$f":"IF(WorkingP!$B51=\"Clergy and Staffing Costs\",WorkingP!V51,\"\")","v":""},{"$f":"IF(WorkingP!$B51=\"Clergy and Staffing Costs\",WorkingP!W51,\"\")","v":""},{"$f":"IF(WorkingP!$B51=\"Clergy and Staffing Costs\",WorkingP!X51,\"\")","v":""},{"$f":"IF(WorkingP!$B51=\"Clergy and Staffing Costs\",WorkingP!Y51,\"\")","v":""},{"$f":"IF(Descriptions!K52=\"Clergy and Staffing Costs\",Descriptions!AB52,0)","v":0}]
[{"$f":"IF(Descriptions!K53=\"Clergy and Staffing Costs\",Descriptions!I53,0)","v":0},{"$f":"IF(WorkingP!$B52=\"Clergy and Staffing Costs\",WorkingP!D52,\"\")","v":""},{"$f":"IF(WorkingP!$B52=\"Clergy and Staffing Costs\",WorkingP!E52,\"\")","v":""},{"$f":"IF(WorkingP!$B52=\"Clergy and Staffing Costs\",WorkingP!F52,\"\")","v":""},{"$f":"IF(WorkingP!$B52=\"Clergy and Staffing Costs\",WorkingP!G52,\"\")","v":""},{"$f":"IF(WorkingP!$B52=\"Clergy and Staffing Costs\",WorkingP!H52,\"\")","v":""},{"$f":"IF(WorkingP!$B52=\"Clergy and Staffing Costs\",WorkingP!I52,\"\")","v":""},{"$f":"IF(WorkingP!$B52=\"Clergy and Staffing Costs\",WorkingP!J52,\"\")","v":""},{"$f":"IF(WorkingP!$B52=\"Clergy and Staffing Costs\",WorkingP!K52,\"\")","v":""},{"$f":"IF(WorkingP!$B52=\"Clergy and Staffing Costs\",WorkingP!L52,\"\")","v":""},{"$f":"IF(WorkingP!$B52=\"Clergy and Staffing Costs\",WorkingP!M52,\"\")","v":""},{"$f":"IF(WorkingP!$B52=\"Clergy and Staffing Costs\",WorkingP!N52,\"\")","v":""},{"$f":"IF(WorkingP!$B52=\"Clergy and Staffing Costs\",WorkingP!O52,\"\")","v":""},{"$f":"IF(WorkingP!$B52=\"Clergy and Staffing Costs\",WorkingP!P52,\"\")","v":""},{"$f":"IF(WorkingP!$B52=\"Clergy and Staffing Costs\",WorkingP!Q52,\"\")","v":""},{"$f":"IF(WorkingP!$B52=\"Clergy and Staffing Costs\",WorkingP!R52,\"\")","v":""},{"$f":"IF(WorkingP!$B52=\"Clergy and Staffing Costs\",WorkingP!S52,\"\")","v":""},{"$f":"IF(WorkingP!$B52=\"Clergy and Staffing Costs\",WorkingP!T52,\"\")","v":""},{"$f":"IF(WorkingP!$B52=\"Clergy and Staffing Costs\",WorkingP!U52,\"\")","v":""},{"$f":"IF(WorkingP!$B52=\"Clergy and Staffing Costs\",WorkingP!V52,\"\")","v":""},{"$f":"IF(WorkingP!$B52=\"Clergy and Staffing Costs\",WorkingP!W52,\"\")","v":""},{"$f":"IF(WorkingP!$B52=\"Clergy and Staffing Costs\",WorkingP!X52,\"\")","v":""},{"$f":"IF(WorkingP!$B52=\"Clergy and Staffing Costs\",WorkingP!Y52,\"\")","v":""},{"$f":"IF(Descriptions!K53=\"Clergy and Staffing Costs\",Descriptions!AB53,0)","v":0}]
[{"$f":"IF(Descriptions!K54=\"Clergy and Staffing Costs\",Descriptions!I54,0)","v":0},{"$f":"IF(WorkingP!$B53=\"Clergy and Staffing Costs\",WorkingP!D53,\"\")","v":""},{"$f":"IF(WorkingP!$B53=\"Clergy and Staffing Costs\",WorkingP!E53,\"\")","v":""},{"$f":"IF(WorkingP!$B53=\"Clergy and Staffing Costs\",WorkingP!F53,\"\")","v":""},{"$f":"IF(WorkingP!$B53=\"Clergy and Staffing Costs\",WorkingP!G53,\"\")","v":""},{"$f":"IF(WorkingP!$B53=\"Clergy and Staffing Costs\",WorkingP!H53,\"\")","v":""},{"$f":"IF(WorkingP!$B53=\"Clergy and Staffing Costs\",WorkingP!I53,\"\")","v":""},{"$f":"IF(WorkingP!$B53=\"Clergy and Staffing Costs\",WorkingP!J53,\"\")","v":""},{"$f":"IF(WorkingP!$B53=\"Clergy and Staffing Costs\",WorkingP!K53,\"\")","v":""},{"$f":"IF(WorkingP!$B53=\"Clergy and Staffing Costs\",WorkingP!L53,\"\")","v":""},{"$f":"IF(WorkingP!$B53=\"Clergy and Staffing Costs\",WorkingP!M53,\"\")","v":""},{"$f":"IF(WorkingP!$B53=\"Clergy and Staffing Costs\",WorkingP!N53,\"\")","v":""},{"$f":"IF(WorkingP!$B53=\"Clergy and Staffing Costs\",WorkingP!O53,\"\")","v":""},{"$f":"IF(WorkingP!$B53=\"Clergy and Staffing Costs\",WorkingP!P53,\"\")","v":""},{"$f":"IF(WorkingP!$B53=\"Clergy and Staffing Costs\",WorkingP!Q53,\"\")","v":""},{"$f":"IF(WorkingP!$B53=\"Clergy and Staffing Costs\",WorkingP!R53,\"\")","v":""},{"$f":"IF(WorkingP!$B53=\"Clergy and Staffing Costs\",WorkingP!S53,\"\")","v":""},{"$f":"IF(WorkingP!$B53=\"Clergy and Staffing Costs\",WorkingP!T53,\"\")","v":""},{"$f":"IF(WorkingP!$B53=\"Clergy and Staffing Costs\",WorkingP!U53,\"\")","v":""},{"$f":"IF(WorkingP!$B53=\"Clergy and Staffing Costs\",WorkingP!V53,\"\")","v":""},{"$f":"IF(WorkingP!$B53=\"Clergy and Staffing Costs\",WorkingP!W53,\"\")","v":""},{"$f":"IF(WorkingP!$B53=\"Clergy and Staffing Costs\",WorkingP!X53,\"\")","v":""},{"$f":"IF(WorkingP!$B53=\"Clergy and Staffing Costs\",WorkingP!Y53,\"\")","v":""},{"$f":"IF(Descriptions!K54=\"Clergy and Staffing Costs\",Descriptions!AB54,0)","v":0}]
[{"$f":"IF(Descriptions!K55=\"Clergy and Staffing Costs\",Descriptions!I55,0)","v":0},{"$f":"IF(WorkingP!$B54=\"Clergy and Staffing Costs\",WorkingP!D54,\"\")","v":""},{"$f":"IF(WorkingP!$B54=\"Clergy and Staffing Costs\",WorkingP!E54,\"\")","v":""},{"$f":"IF(WorkingP!$B54=\"Clergy and Staffing Costs\",WorkingP!F54,\"\")","v":""},{"$f":"IF(WorkingP!$B54=\"Clergy and Staffing Costs\",WorkingP!G54,\"\")","v":""},{"$f":"IF(WorkingP!$B54=\"Clergy and Staffing Costs\",WorkingP!H54,\"\")","v":""},{"$f":"IF(WorkingP!$B54=\"Clergy and Staffing Costs\",WorkingP!I54,\"\")","v":""},{"$f":"IF(WorkingP!$B54=\"Clergy and Staffing Costs\",WorkingP!J54,\"\")","v":""},{"$f":"IF(WorkingP!$B54=\"Clergy and Staffing Costs\",WorkingP!K54,\"\")","v":""},{"$f":"IF(WorkingP!$B54=\"Clergy and Staffing Costs\",WorkingP!L54,\"\")","v":""},{"$f":"IF(WorkingP!$B54=\"Clergy and Staffing Costs\",WorkingP!M54,\"\")","v":""},{"$f":"IF(WorkingP!$B54=\"Clergy and Staffing Costs\",WorkingP!N54,\"\")","v":""},{"$f":"IF(WorkingP!$B54=\"Clergy and Staffing Costs\",WorkingP!O54,\"\")","v":""},{"$f":"IF(WorkingP!$B54=\"Clergy and Staffing Costs\",WorkingP!P54,\"\")","v":""},{"$f":"IF(WorkingP!$B54=\"Clergy and Staffing Costs\",WorkingP!Q54,\"\")","v":""},{"$f":"IF(WorkingP!$B54=\"Clergy and Staffing Costs\",WorkingP!R54,\"\")","v":""},{"$f":"IF(WorkingP!$B54=\"Clergy and Staffing Costs\",WorkingP!S54,\"\")","v":""},{"$f":"IF(WorkingP!$B54=\"Clergy and Staffing Costs\",WorkingP!T54,\"\")","v":""},{"$f":"IF(WorkingP!$B54=\"Clergy and Staffing Costs\",WorkingP!U54,\"\")","v":""},{"$f":"IF(WorkingP!$B54=\"Clergy and Staffing Costs\",WorkingP!V54,\"\")","v":""},{"$f":"IF(WorkingP!$B54=\"Clergy and Staffing Costs\",WorkingP!W54,\"\")","v":""},{"$f":"IF(WorkingP!$B54=\"Clergy and Staffing Costs\",WorkingP!X54,\"\")","v":""},{"$f":"IF(WorkingP!$B54=\"Clergy and Staffing Costs\",WorkingP!Y54,\"\")","v":""},{"$f":"IF(Descriptions!K55=\"Clergy and Staffing Costs\",Descriptions!AB55,0)","v":0}]
[{"$f":"IF(Descriptions!K56=\"Clergy and Staffing Costs\",Descriptions!I56,0)","v":0},{"$f":"IF(WorkingP!$B55=\"Clergy and Staffing Costs\",WorkingP!D55,\"\")","v":""},{"$f":"IF(WorkingP!$B55=\"Clergy and Staffing Costs\",WorkingP!E55,\"\")","v":""},{"$f":"IF(WorkingP!$B55=\"Clergy and Staffing Costs\",WorkingP!F55,\"\")","v":""},{"$f":"IF(WorkingP!$B55=\"Clergy and Staffing Costs\",WorkingP!G55,\"\")","v":""},{"$f":"IF(WorkingP!$B55=\"Clergy and Staffing Costs\",WorkingP!H55,\"\")","v":""},{"$f":"IF(WorkingP!$B55=\"Clergy and Staffing Costs\",WorkingP!I55,\"\")","v":""},{"$f":"IF(WorkingP!$B55=\"Clergy and Staffing Costs\",WorkingP!J55,\"\")","v":""},{"$f":"IF(WorkingP!$B55=\"Clergy and Staffing Costs\",WorkingP!K55,\"\")","v":""},{"$f":"IF(WorkingP!$B55=\"Clergy and Staffing Costs\",WorkingP!L55,\"\")","v":""},{"$f":"IF(WorkingP!$B55=\"Clergy and Staffing Costs\",WorkingP!M55,\"\")","v":""},{"$f":"IF(WorkingP!$B55=\"Clergy and Staffing Costs\",WorkingP!N55,\"\")","v":""},{"$f":"IF(WorkingP!$B55=\"Clergy and Staffing Costs\",WorkingP!O55,\"\")","v":""},{"$f":"IF(WorkingP!$B55=\"Clergy and Staffing Costs\",WorkingP!P55,\"\")","v":""},{"$f":"IF(WorkingP!$B55=\"Clergy and Staffing Costs\",WorkingP!Q55,\"\")","v":""},{"$f":"IF(WorkingP!$B55=\"Clergy and Staffing Costs\",WorkingP!R55,\"\")","v":""},{"$f":"IF(WorkingP!$B55=\"Clergy and Staffing Costs\",WorkingP!S55,\"\")","v":""},{"$f":"IF(WorkingP!$B55=\"Clergy and Staffing Costs\",WorkingP!T55,\"\")","v":""},{"$f":"IF(WorkingP!$B55=\"Clergy and Staffing Costs\",WorkingP!U55,\"\")","v":""},{"$f":"IF(WorkingP!$B55=\"Clergy and Staffing Costs\",WorkingP!V55,\"\")","v":""},{"$f":"IF(WorkingP!$B55=\"Clergy and Staffing Costs\",WorkingP!W55,\"\")","v":""},{"$f":"IF(WorkingP!$B55=\"Clergy and Staffing Costs\",WorkingP!X55,\"\")","v":""},{"$f":"IF(WorkingP!$B55=\"Clergy and Staffing Costs\",WorkingP!Y55,\"\")","v":""},{"$f":"IF(Descriptions!K56=\"Clergy and Staffing Costs\",Descriptions!AB56,0)","v":0}]
[{"$f":"IF(Descriptions!K57=\"Clergy and Staffing Costs\",Descriptions!I57,0)","v":0},{"$f":"IF(WorkingP!$B56=\"Clergy and Staffing Costs\",WorkingP!D56,\"\")","v":""},{"$f":"IF(WorkingP!$B56=\"Clergy and Staffing Costs\",WorkingP!E56,\"\")","v":""},{"$f":"IF(WorkingP!$B56=\"Clergy and Staffing Costs\",WorkingP!F56,\"\")","v":""},{"$f":"IF(WorkingP!$B56=\"Clergy and Staffing Costs\",WorkingP!G56,\"\")","v":""},{"$f":"IF(WorkingP!$B56=\"Clergy and Staffing Costs\",WorkingP!H56,\"\")","v":""},{"$f":"IF(WorkingP!$B56=\"Clergy and Staffing Costs\",WorkingP!I56,\"\")","v":""},{"$f":"IF(WorkingP!$B56=\"Clergy and Staffing Costs\",WorkingP!J56,\"\")","v":""},{"$f":"IF(WorkingP!$B56=\"Clergy and Staffing Costs\",WorkingP!K56,\"\")","v":""},{"$f":"IF(WorkingP!$B56=\"Clergy and Staffing Costs\",WorkingP!L56,\"\")","v":""},{"$f":"IF(WorkingP!$B56=\"Clergy and Staffing Costs\",WorkingP!M56,\"\")","v":""},{"$f":"IF(WorkingP!$B56=\"Clergy and Staffing Costs\",WorkingP!N56,\"\")","v":""},{"$f":"IF(WorkingP!$B56=\"Clergy and Staffing Costs\",WorkingP!O56,\"\")","v":""},{"$f":"IF(WorkingP!$B56=\"Clergy and Staffing Costs\",WorkingP!P56,\"\")","v":""},{"$f":"IF(WorkingP!$B56=\"Clergy and Staffing Costs\",WorkingP!Q56,\"\")","v":""},{"$f":"IF(WorkingP!$B56=\"Clergy and Staffing Costs\",WorkingP!R56,\"\")","v":""},{"$f":"IF(WorkingP!$B56=\"Clergy and Staffing Costs\",WorkingP!S56,\"\")","v":""},{"$f":"IF(WorkingP!$B56=\"Clergy and Staffing Costs\",WorkingP!T56,\"\")","v":""},{"$f":"IF(WorkingP!$B56=\"Clergy and Staffing Costs\",WorkingP!U56,\"\")","v":""},{"$f":"IF(WorkingP!$B56=\"Clergy and Staffing Costs\",WorkingP!V56,\"\")","v":""},{"$f":"IF(WorkingP!$B56=\"Clergy and Staffing Costs\",WorkingP!W56,\"\")","v":""},{"$f":"IF(WorkingP!$B56=\"Clergy and Staffing Costs\",WorkingP!X56,\"\")","v":""},{"$f":"IF(WorkingP!$B56=\"Clergy and Staffing Costs\",WorkingP!Y56,\"\")","v":""},{"$f":"IF(Descriptions!K57=\"Clergy and Staffing Costs\",Descriptions!AB57,0)","v":0}]
[{"$f":"IF(Descriptions!K58=\"Clergy and Staffing Costs\",Descriptions!I58,0)","v":0},{"$f":"IF(WorkingP!$B57=\"Clergy and Staffing Costs\",WorkingP!D57,\"\")","v":""},{"$f":"IF(WorkingP!$B57=\"Clergy and Staffing Costs\",WorkingP!E57,\"\")","v":""},{"$f":"IF(WorkingP!$B57=\"Clergy and Staffing Costs\",WorkingP!F57,\"\")","v":""},{"$f":"IF(WorkingP!$B57=\"Clergy and Staffing Costs\",WorkingP!G57,\"\")","v":""},{"$f":"IF(WorkingP!$B57=\"Clergy and Staffing Costs\",WorkingP!H57,\"\")","v":""},{"$f":"IF(WorkingP!$B57=\"Clergy and Staffing Costs\",WorkingP!I57,\"\")","v":""},{"$f":"IF(WorkingP!$B57=\"Clergy and Staffing Costs\",WorkingP!J57,\"\")","v":""},{"$f":"IF(WorkingP!$B57=\"Clergy and Staffing Costs\",WorkingP!K57,\"\")","v":""},{"$f":"IF(WorkingP!$B57=\"Clergy and Staffing Costs\",WorkingP!L57,\"\")","v":""},{"$f":"IF(WorkingP!$B57=\"Clergy and Staffing Costs\",WorkingP!M57,\"\")","v":""},{"$f":"IF(WorkingP!$B57=\"Clergy and Staffing Costs\",WorkingP!N57,\"\")","v":""},{"$f":"IF(WorkingP!$B57=\"Clergy and Staffing Costs\",WorkingP!O57,\"\")","v":""},{"$f":"IF(WorkingP!$B57=\"Clergy and Staffing Costs\",WorkingP!P57,\"\")","v":""},{"$f":"IF(WorkingP!$B57=\"Clergy and Staffing Costs\",WorkingP!Q57,\"\")","v":""},{"$f":"IF(WorkingP!$B57=\"Clergy and Staffing Costs\",WorkingP!R57,\"\")","v":""},{"$f":"IF(WorkingP!$B57=\"Clergy and Staffing Costs\",WorkingP!S57,\"\")","v":""},{"$f":"IF(WorkingP!$B57=\"Clergy and Staffing Costs\",WorkingP!T57,\"\")","v":""},{"$f":"IF(WorkingP!$B57=\"Clergy and Staffing Costs\",WorkingP!U57,\"\")","v":""},{"$f":"IF(WorkingP!$B57=\"Clergy and Staffing Costs\",WorkingP!V57,\"\")","v":""},{"$f":"IF(WorkingP!$B57=\"Clergy and Staffing Costs\",WorkingP!W57,\"\")","v":""},{"$f":"IF(WorkingP!$B57=\"Clergy and Staffing Costs\",WorkingP!X57,\"\")","v":""},{"$f":"IF(WorkingP!$B57=\"Clergy and Staffing Costs\",WorkingP!Y57,\"\")","v":""},{"$f":"IF(Descriptions!K58=\"Clergy and Staffing Costs\",Descriptions!AB58,0)","v":0}]
[{"$f":"IF(Descriptions!K59=\"Clergy and Staffing Costs\",Descriptions!I59,0)","v":0},{"$f":"IF(WorkingP!$B58=\"Clergy and Staffing Costs\",WorkingP!D58,\"\")","v":""},{"$f":"IF(WorkingP!$B58=\"Clergy and Staffing Costs\",WorkingP!E58,\"\")","v":""},{"$f":"IF(WorkingP!$B58=\"Clergy and Staffing Costs\",WorkingP!F58,\"\")","v":""},{"$f":"IF(WorkingP!$B58=\"Clergy and Staffing Costs\",WorkingP!G58,\"\")","v":""},{"$f":"IF(WorkingP!$B58=\"Clergy and Staffing Costs\",WorkingP!H58,\"\")","v":""},{"$f":"IF(WorkingP!$B58=\"Clergy and Staffing Costs\",WorkingP!I58,\"\")","v":""},{"$f":"IF(WorkingP!$B58=\"Clergy and Staffing Costs\",WorkingP!J58,\"\")","v":""},{"$f":"IF(WorkingP!$B58=\"Clergy and Staffing Costs\",WorkingP!K58,\"\")","v":""},{"$f":"IF(WorkingP!$B58=\"Clergy and Staffing Costs\",WorkingP!L58,\"\")","v":""},{"$f":"IF(WorkingP!$B58=\"Clergy and Staffing Costs\",WorkingP!M58,\"\")","v":""},{"$f":"IF(WorkingP!$B58=\"Clergy and Staffing Costs\",WorkingP!N58,\"\")","v":""},{"$f":"IF(WorkingP!$B58=\"Clergy and Staffing Costs\",WorkingP!O58,\"\")","v":""},{"$f":"IF(WorkingP!$B58=\"Clergy and Staffing Costs\",WorkingP!P58,\"\")","v":""},{"$f":"IF(WorkingP!$B58=\"Clergy and Staffing Costs\",WorkingP!Q58,\"\")","v":""},{"$f":"IF(WorkingP!$B58=\"Clergy and Staffing Costs\",WorkingP!R58,\"\")","v":""},{"$f":"IF(WorkingP!$B58=\"Clergy and Staffing Costs\",WorkingP!S58,\"\")","v":""},{"$f":"IF(WorkingP!$B58=\"Clergy and Staffing Costs\",WorkingP!T58,\"\")","v":""},{"$f":"IF(WorkingP!$B58=\"Clergy and Staffing Costs\",WorkingP!U58,\"\")","v":""},{"$f":"IF(WorkingP!$B58=\"Clergy and Staffing Costs\",WorkingP!V58,\"\")","v":""},{"$f":"IF(WorkingP!$B58=\"Clergy and Staffing Costs\",WorkingP!W58,\"\")","v":""},{"$f":"IF(WorkingP!$B58=\"Clergy and Staffing Costs\",WorkingP!X58,\"\")","v":""},{"$f":"IF(WorkingP!$B58=\"Clergy and Staffing Costs\",WorkingP!Y58,\"\")","v":""},{"$f":"IF(Descriptions!K59=\"Clergy and Staffing Costs\",Descriptions!AB59,0)","v":0}]
[{"$f":"IF(Descriptions!K60=\"Clergy and Staffing Costs\",Descriptions!I60,0)","v":0},{"$f":"IF(WorkingP!$B59=\"Clergy and Staffing Costs\",WorkingP!D59,\"\")","v":""},{"$f":"IF(WorkingP!$B59=\"Clergy and Staffing Costs\",WorkingP!E59,\"\")","v":""},{"$f":"IF(WorkingP!$B59=\"Clergy and Staffing Costs\",WorkingP!F59,\"\")","v":""},{"$f":"IF(WorkingP!$B59=\"Clergy and Staffing Costs\",WorkingP!G59,\"\")","v":""},{"$f":"IF(WorkingP!$B59=\"Clergy and Staffing Costs\",WorkingP!H59,\"\")","v":""},{"$f":"IF(WorkingP!$B59=\"Clergy and Staffing Costs\",WorkingP!I59,\"\")","v":""},{"$f":"IF(WorkingP!$B59=\"Clergy and Staffing Costs\",WorkingP!J59,\"\")","v":""},{"$f":"IF(WorkingP!$B59=\"Clergy and Staffing Costs\",WorkingP!K59,\"\")","v":""},{"$f":"IF(WorkingP!$B59=\"Clergy and Staffing Costs\",WorkingP!L59,\"\")","v":""},{"$f":"IF(WorkingP!$B59=\"Clergy and Staffing Costs\",WorkingP!M59,\"\")","v":""},{"$f":"IF(WorkingP!$B59=\"Clergy and Staffing Costs\",WorkingP!N59,\"\")","v":""},{"$f":"IF(WorkingP!$B59=\"Clergy and Staffing Costs\",WorkingP!O59,\"\")","v":""},{"$f":"IF(WorkingP!$B59=\"Clergy and Staffing Costs\",WorkingP!P59,\"\")","v":""},{"$f":"IF(WorkingP!$B59=\"Clergy and Staffing Costs\",WorkingP!Q59,\"\")","v":""},{"$f":"IF(WorkingP!$B59=\"Clergy and Staffing Costs\",WorkingP!R59,\"\")","v":""},{"$f":"IF(WorkingP!$B59=\"Clergy and Staffing Costs\",WorkingP!S59,\"\")","v":""},{"$f":"IF(WorkingP!$B59=\"Clergy and Staffing Costs\",WorkingP!T59,\"\")","v":""},{"$f":"IF(WorkingP!$B59=\"Clergy and Staffing Costs\",WorkingP!U59,\"\")","v":""},{"$f":"IF(WorkingP!$B59=\"Clergy and Staffing Costs\",WorkingP!V59,\"\")","v":""},{"$f":"IF(WorkingP!$B59=\"Clergy and Staffing Costs\",WorkingP!W59,\"\")","v":""},{"$f":"IF(WorkingP!$B59=\"Clergy and Staffing Costs\",WorkingP!X59,\"\")","v":""},{"$f":"IF(WorkingP!$B59=\"Clergy and Staffing Costs\",WorkingP!Y59,\"\")","v":""},{"$f":"IF(Descriptions!K60=\"Clergy and Staffing Costs\",Descriptions!AB60,0)","v":0}]
[{"$f":"IF(Descriptions!K61=\"Clergy and Staffing Costs\",Descriptions!I61,0)","v":0},{"$f":"IF(WorkingP!$B60=\"Clergy and Staffing Costs\",WorkingP!D60,\"\")","v":""},{"$f":"IF(WorkingP!$B60=\"Clergy and Staffing Costs\",WorkingP!E60,\"\")","v":""},{"$f":"IF(WorkingP!$B60=\"Clergy and Staffing Costs\",WorkingP!F60,\"\")","v":""},{"$f":"IF(WorkingP!$B60=\"Clergy and Staffing Costs\",WorkingP!G60,\"\")","v":""},{"$f":"IF(WorkingP!$B60=\"Clergy and Staffing Costs\",WorkingP!H60,\"\")","v":""},{"$f":"IF(WorkingP!$B60=\"Clergy and Staffing Costs\",WorkingP!I60,\"\")","v":""},{"$f":"IF(WorkingP!$B60=\"Clergy and Staffing Costs\",WorkingP!J60,\"\")","v":""},{"$f":"IF(WorkingP!$B60=\"Clergy and Staffing Costs\",WorkingP!K60,\"\")","v":""},{"$f":"IF(WorkingP!$B60=\"Clergy and Staffing Costs\",WorkingP!L60,\"\")","v":""},{"$f":"IF(WorkingP!$B60=\"Clergy and Staffing Costs\",WorkingP!M60,\"\")","v":""},{"$f":"IF(WorkingP!$B60=\"Clergy and Staffing Costs\",WorkingP!N60,\"\")","v":""},{"$f":"IF(WorkingP!$B60=\"Clergy and Staffing Costs\",WorkingP!O60,\"\")","v":""},{"$f":"IF(WorkingP!$B60=\"Clergy and Staffing Costs\",WorkingP!P60,\"\")","v":""},{"$f":"IF(WorkingP!$B60=\"Clergy and Staffing Costs\",WorkingP!Q60,\"\")","v":""},{"$f":"IF(WorkingP!$B60=\"Clergy and Staffing Costs\",WorkingP!R60,\"\")","v":""},{"$f":"IF(WorkingP!$B60=\"Clergy and Staffing Costs\",WorkingP!S60,\"\")","v":""},{"$f":"IF(WorkingP!$B60=\"Clergy and Staffing Costs\",WorkingP!T60,\"\")","v":""},{"$f":"IF(WorkingP!$B60=\"Clergy and Staffing Costs\",WorkingP!U60,\"\")","v":""},{"$f":"IF(WorkingP!$B60=\"Clergy and Staffing Costs\",WorkingP!V60,\"\")","v":""},{"$f":"IF(WorkingP!$B60=\"Clergy and Staffing Costs\",WorkingP!W60,\"\")","v":""},{"$f":"IF(WorkingP!$B60=\"Clergy and Staffing Costs\",WorkingP!X60,\"\")","v":""},{"$f":"IF(WorkingP!$B60=\"Clergy and Staffing Costs\",WorkingP!Y60,\"\")","v":""},{"$f":"IF(Descriptions!K61=\"Clergy and Staffing Costs\",Descriptions!AB61,0)","v":0}]
[{"$f":"IF(Descriptions!K62=\"Clergy and Staffing Costs\",Descriptions!I62,0)","v":0},{"$f":"IF(WorkingP!$B61=\"Clergy and Staffing Costs\",WorkingP!D61,\"\")","v":""},{"$f":"IF(WorkingP!$B61=\"Clergy and Staffing Costs\",WorkingP!E61,\"\")","v":""},{"$f":"IF(WorkingP!$B61=\"Clergy and Staffing Costs\",WorkingP!F61,\"\")","v":""},{"$f":"IF(WorkingP!$B61=\"Clergy and Staffing Costs\",WorkingP!G61,\"\")","v":""},{"$f":"IF(WorkingP!$B61=\"Clergy and Staffing Costs\",WorkingP!H61,\"\")","v":""},{"$f":"IF(WorkingP!$B61=\"Clergy and Staffing Costs\",WorkingP!I61,\"\")","v":""},{"$f":"IF(WorkingP!$B61=\"Clergy and Staffing Costs\",WorkingP!J61,\"\")","v":""},{"$f":"IF(WorkingP!$B61=\"Clergy and Staffing Costs\",WorkingP!K61,\"\")","v":""},{"$f":"IF(WorkingP!$B61=\"Clergy and Staffing Costs\",WorkingP!L61,\"\")","v":""},{"$f":"IF(WorkingP!$B61=\"Clergy and Staffing Costs\",WorkingP!M61,\"\")","v":""},{"$f":"IF(WorkingP!$B61=\"Clergy and Staffing Costs\",WorkingP!N61,\"\")","v":""},{"$f":"IF(WorkingP!$B61=\"Clergy and Staffing Costs\",WorkingP!O61,\"\")","v":""},{"$f":"IF(WorkingP!$B61=\"Clergy and Staffing Costs\",WorkingP!P61,\"\")","v":""},{"$f":"IF(WorkingP!$B61=\"Clergy and Staffing Costs\",WorkingP!Q61,\"\")","v":""},{"$f":"IF(WorkingP!$B61=\"Clergy and Staffing Costs\",WorkingP!R61,\"\")","v":""},{"$f":"IF(WorkingP!$B61=\"Clergy and Staffing Costs\",WorkingP!S61,\"\")","v":""},{"$f":"IF(WorkingP!$B61=\"Clergy and Staffing Costs\",WorkingP!T61,\"\")","v":""},{"$f":"IF(WorkingP!$B61=\"Clergy and Staffing Costs\",WorkingP!U61,\"\")","v":""},{"$f":"IF(WorkingP!$B61=\"Clergy and Staffing Costs\",WorkingP!V61,\"\")","v":""},{"$f":"IF(WorkingP!$B61=\"Clergy and Staffing Costs\",WorkingP!W61,\"\")","v":""},{"$f":"IF(WorkingP!$B61=\"Clergy and Staffing Costs\",WorkingP!X61,\"\")","v":""},{"$f":"IF(WorkingP!$B61=\"Clergy and Staffing Costs\",WorkingP!Y61,\"\")","v":""},{"$f":"IF(Descriptions!K62=\"Clergy and Staffing Costs\",Descriptions!AB62,0)","v":0}]
[{"$f":"IF(Descriptions!K63=\"Clergy and Staffing Costs\",Descriptions!I63,0)","v":0},{"$f":"IF(WorkingP!$B62=\"Clergy and Staffing Costs\",WorkingP!D62,\"\")","v":""},{"$f":"IF(WorkingP!$B62=\"Clergy and Staffing Costs\",WorkingP!E62,\"\")","v":""},{"$f":"IF(WorkingP!$B62=\"Clergy and Staffing Costs\",WorkingP!F62,\"\")","v":""},{"$f":"IF(WorkingP!$B62=\"Clergy and Staffing Costs\",WorkingP!G62,\"\")","v":""},{"$f":"IF(WorkingP!$B62=\"Clergy and Staffing Costs\",WorkingP!H62,\"\")","v":""},{"$f":"IF(WorkingP!$B62=\"Clergy and Staffing Costs\",WorkingP!I62,\"\")","v":""},{"$f":"IF(WorkingP!$B62=\"Clergy and Staffing Costs\",WorkingP!J62,\"\")","v":""},{"$f":"IF(WorkingP!$B62=\"Clergy and Staffing Costs\",WorkingP!K62,\"\")","v":""},{"$f":"IF(WorkingP!$B62=\"Clergy and Staffing Costs\",WorkingP!L62,\"\")","v":""},{"$f":"IF(WorkingP!$B62=\"Clergy and Staffing Costs\",WorkingP!M62,\"\")","v":""},{"$f":"IF(WorkingP!$B62=\"Clergy and Staffing Costs\",WorkingP!N62,\"\")","v":""},{"$f":"IF(WorkingP!$B62=\"Clergy and Staffing Costs\",WorkingP!O62,\"\")","v":""},{"$f":"IF(WorkingP!$B62=\"Clergy and Staffing Costs\",WorkingP!P62,\"\")","v":""},{"$f":"IF(WorkingP!$B62=\"Clergy and Staffing Costs\",WorkingP!Q62,\"\")","v":""},{"$f":"IF(WorkingP!$B62=\"Clergy and Staffing Costs\",WorkingP!R62,\"\")","v":""},{"$f":"IF(WorkingP!$B62=\"Clergy and Staffing Costs\",WorkingP!S62,\"\")","v":""},{"$f":"IF(WorkingP!$B62=\"Clergy and Staffing Costs\",WorkingP!T62,\"\")","v":""},{"$f":"IF(WorkingP!$B62=\"Clergy and Staffing Costs\",WorkingP!U62,\"\")","v":""},{"$f":"IF(WorkingP!$B62=\"Clergy and Staffing Costs\",WorkingP!V62,\"\")","v":""},{"$f":"IF(WorkingP!$B62=\"Clergy and Staffing Costs\",WorkingP!W62,\"\")","v":""},{"$f":"IF(WorkingP!$B62=\"Clergy and Staffing Costs\",WorkingP!X62,\"\")","v":""},{"$f":"IF(WorkingP!$B62=\"Clergy and Staffing Costs\",WorkingP!Y62,\"\")","v":""},{"$f":"IF(Descriptions!K63=\"Clergy and Staffing Costs\",Descriptions!AB63,0)","v":0}]
[{"$f":"IF(Descriptions!K64=\"Clergy and Staffing Costs\",Descriptions!I64,0)","v":0},{"$f":"IF(WorkingP!$B63=\"Clergy and Staffing Costs\",WorkingP!D63,\"\")","v":""},{"$f":"IF(WorkingP!$B63=\"Clergy and Staffing Costs\",WorkingP!E63,\"\")","v":""},{"$f":"IF(WorkingP!$B63=\"Clergy and Staffing Costs\",WorkingP!F63,\"\")","v":""},{"$f":"IF(WorkingP!$B63=\"Clergy and Staffing Costs\",WorkingP!G63,\"\")","v":""},{"$f":"IF(WorkingP!$B63=\"Clergy and Staffing Costs\",WorkingP!H63,\"\")","v":""},{"$f":"IF(WorkingP!$B63=\"Clergy and Staffing Costs\",WorkingP!I63,\"\")","v":""},{"$f":"IF(WorkingP!$B63=\"Clergy and Staffing Costs\",WorkingP!J63,\"\")","v":""},{"$f":"IF(WorkingP!$B63=\"Clergy and Staffing Costs\",WorkingP!K63,\"\")","v":""},{"$f":"IF(WorkingP!$B63=\"Clergy and Staffing Costs\",WorkingP!L63,\"\")","v":""},{"$f":"IF(WorkingP!$B63=\"Clergy and Staffing Costs\",WorkingP!M63,\"\")","v":""},{"$f":"IF(WorkingP!$B63=\"Clergy and Staffing Costs\",WorkingP!N63,\"\")","v":""},{"$f":"IF(WorkingP!$B63=\"Clergy and Staffing Costs\",WorkingP!O63,\"\")","v":""},{"$f":"IF(WorkingP!$B63=\"Clergy and Staffing Costs\",WorkingP!P63,\"\")","v":""},{"$f":"IF(WorkingP!$B63=\"Clergy and Staffing Costs\",WorkingP!Q63,\"\")","v":""},{"$f":"IF(WorkingP!$B63=\"Clergy and Staffing Costs\",WorkingP!R63,\"\")","v":""},{"$f":"IF(WorkingP!$B63=\"Clergy and Staffing Costs\",WorkingP!S63,\"\")","v":""},{"$f":"IF(WorkingP!$B63=\"Clergy and Staffing Costs\",WorkingP!T63,\"\")","v":""},{"$f":"IF(WorkingP!$B63=\"Clergy and Staffing Costs\",WorkingP!U63,\"\")","v":""},{"$f":"IF(WorkingP!$B63=\"Clergy and Staffing Costs\",WorkingP!V63,\"\")","v":""},{"$f":"IF(WorkingP!$B63=\"Clergy and Staffing Costs\",WorkingP!W63,\"\")","v":""},{"$f":"IF(WorkingP!$B63=\"Clergy and Staffing Costs\",WorkingP!X63,\"\")","v":""},{"$f":"IF(WorkingP!$B63=\"Clergy and Staffing Costs\",WorkingP!Y63,\"\")","v":""},{"$f":"IF(Descriptions!K64=\"Clergy and Staffing Costs\",Descriptions!AB64,0)","v":0}]
[{"$f":"IF(Descriptions!K65=\"Clergy and Staffing Costs\",Descriptions!I65,0)","v":0},{"$f":"IF(WorkingP!$B64=\"Clergy and Staffing Costs\",WorkingP!D64,\"\")","v":""},{"$f":"IF(WorkingP!$B64=\"Clergy and Staffing Costs\",WorkingP!E64,\"\")","v":""},{"$f":"IF(WorkingP!$B64=\"Clergy and Staffing Costs\",WorkingP!F64,\"\")","v":""},{"$f":"IF(WorkingP!$B64=\"Clergy and Staffing Costs\",WorkingP!G64,\"\")","v":""},{"$f":"IF(WorkingP!$B64=\"Clergy and Staffing Costs\",WorkingP!H64,\"\")","v":""},{"$f":"IF(WorkingP!$B64=\"Clergy and Staffing Costs\",WorkingP!I64,\"\")","v":""},{"$f":"IF(WorkingP!$B64=\"Clergy and Staffing Costs\",WorkingP!J64,\"\")","v":""},{"$f":"IF(WorkingP!$B64=\"Clergy and Staffing Costs\",WorkingP!K64,\"\")","v":""},{"$f":"IF(WorkingP!$B64=\"Clergy and Staffing Costs\",WorkingP!L64,\"\")","v":""},{"$f":"IF(WorkingP!$B64=\"Clergy and Staffing Costs\",WorkingP!M64,\"\")","v":""},{"$f":"IF(WorkingP!$B64=\"Clergy and Staffing Costs\",WorkingP!N64,\"\")","v":""},{"$f":"IF(WorkingP!$B64=\"Clergy and Staffing Costs\",WorkingP!O64,\"\")","v":""},{"$f":"IF(WorkingP!$B64=\"Clergy and Staffing Costs\",WorkingP!P64,\"\")","v":""},{"$f":"IF(WorkingP!$B64=\"Clergy and Staffing Costs\",WorkingP!Q64,\"\")","v":""},{"$f":"IF(WorkingP!$B64=\"Clergy and Staffing Costs\",WorkingP!R64,\"\")","v":""},{"$f":"IF(WorkingP!$B64=\"Clergy and Staffing Costs\",WorkingP!S64,\"\")","v":""},{"$f":"IF(WorkingP!$B64=\"Clergy and Staffing Costs\",WorkingP!T64,\"\")","v":""},{"$f":"IF(WorkingP!$B64=\"Clergy and Staffing Costs\",WorkingP!U64,\"\")","v":""},{"$f":"IF(WorkingP!$B64=\"Clergy and Staffing Costs\",WorkingP!V64,\"\")","v":""},{"$f":"IF(WorkingP!$B64=\"Clergy and Staffing Costs\",WorkingP!W64,\"\")","v":""},{"$f":"IF(WorkingP!$B64=\"Clergy and Staffing Costs\",WorkingP!X64,\"\")","v":""},{"$f":"IF(WorkingP!$B64=\"Clergy and Staffing Costs\",WorkingP!Y64,\"\")","v":""},{"$f":"IF(Descriptions!K65=\"Clergy and Staffing Costs\",Descriptions!AB65,0)","v":0}]
[{"$f":"IF(Descriptions!K66=\"Clergy and Staffing Costs\",Descriptions!I66,0)","v":0},{"$f":"IF(WorkingP!$B65=\"Clergy and Staffing Costs\",WorkingP!D65,\"\")","v":""},{"$f":"IF(WorkingP!$B65=\"Clergy and Staffing Costs\",WorkingP!E65,\"\")","v":""},{"$f":"IF(WorkingP!$B65=\"Clergy and Staffing Costs\",WorkingP!F65,\"\")","v":""},{"$f":"IF(WorkingP!$B65=\"Clergy and Staffing Costs\",WorkingP!G65,\"\")","v":""},{"$f":"IF(WorkingP!$B65=\"Clergy and Staffing Costs\",WorkingP!H65,\"\")","v":""},{"$f":"IF(WorkingP!$B65=\"Clergy and Staffing Costs\",WorkingP!I65,\"\")","v":""},{"$f":"IF(WorkingP!$B65=\"Clergy and Staffing Costs\",WorkingP!J65,\"\")","v":""},{"$f":"IF(WorkingP!$B65=\"Clergy and Staffing Costs\",WorkingP!K65,\"\")","v":""},{"$f":"IF(WorkingP!$B65=\"Clergy and Staffing Costs\",WorkingP!L65,\"\")","v":""},{"$f":"IF(WorkingP!$B65=\"Clergy and Staffing Costs\",WorkingP!M65,\"\")","v":""},{"$f":"IF(WorkingP!$B65=\"Clergy and Staffing Costs\",WorkingP!N65,\"\")","v":""},{"$f":"IF(WorkingP!$B65=\"Clergy and Staffing Costs\",WorkingP!O65,\"\")","v":""},{"$f":"IF(WorkingP!$B65=\"Clergy and Staffing Costs\",WorkingP!P65,\"\")","v":""},{"$f":"IF(WorkingP!$B65=\"Clergy and Staffing Costs\",WorkingP!Q65,\"\")","v":""},{"$f":"IF(WorkingP!$B65=\"Clergy and Staffing Costs\",WorkingP!R65,\"\")","v":""},{"$f":"IF(WorkingP!$B65=\"Clergy and Staffing Costs\",WorkingP!S65,\"\")","v":""},{"$f":"IF(WorkingP!$B65=\"Clergy and Staffing Costs\",WorkingP!T65,\"\")","v":""},{"$f":"IF(WorkingP!$B65=\"Clergy and Staffing Costs\",WorkingP!U65,\"\")","v":""},{"$f":"IF(WorkingP!$B65=\"Clergy and Staffing Costs\",WorkingP!V65,\"\")","v":""},{"$f":"IF(WorkingP!$B65=\"Clergy and Staffing Costs\",WorkingP!W65,\"\")","v":""},{"$f":"IF(WorkingP!$B65=\"Clergy and Staffing Costs\",WorkingP!X65,\"\")","v":""},{"$f":"IF(WorkingP!$B65=\"Clergy and Staffing Costs\",WorkingP!Y65,\"\")","v":""},{"$f":"IF(Descriptions!K66=\"Clergy and Staffing Costs\",Descriptions!AB66,0)","v":0}]
[{"$f":"IF(Descriptions!K67=\"Clergy and Staffing Costs\",Descriptions!I67,0)","v":0},{"$f":"IF(WorkingP!$B66=\"Clergy and Staffing Costs\",WorkingP!D66,\"\")","v":""},{"$f":"IF(WorkingP!$B66=\"Clergy and Staffing Costs\",WorkingP!E66,\"\")","v":""},{"$f":"IF(WorkingP!$B66=\"Clergy and Staffing Costs\",WorkingP!F66,\"\")","v":""},{"$f":"IF(WorkingP!$B66=\"Clergy and Staffing Costs\",WorkingP!G66,\"\")","v":""},{"$f":"IF(WorkingP!$B66=\"Clergy and Staffing Costs\",WorkingP!H66,\"\")","v":""},{"$f":"IF(WorkingP!$B66=\"Clergy and Staffing Costs\",WorkingP!I66,\"\")","v":""},{"$f":"IF(WorkingP!$B66=\"Clergy and Staffing Costs\",WorkingP!J66,\"\")","v":""},{"$f":"IF(WorkingP!$B66=\"Clergy and Staffing Costs\",WorkingP!K66,\"\")","v":""},{"$f":"IF(WorkingP!$B66=\"Clergy and Staffing Costs\",WorkingP!L66,\"\")","v":""},{"$f":"IF(WorkingP!$B66=\"Clergy and Staffing Costs\",WorkingP!M66,\"\")","v":""},{"$f":"IF(WorkingP!$B66=\"Clergy and Staffing Costs\",WorkingP!N66,\"\")","v":""},{"$f":"IF(WorkingP!$B66=\"Clergy and Staffing Costs\",WorkingP!O66,\"\")","v":""},{"$f":"IF(WorkingP!$B66=\"Clergy and Staffing Costs\",WorkingP!P66,\"\")","v":""},{"$f":"IF(WorkingP!$B66=\"Clergy and Staffing Costs\",WorkingP!Q66,\"\")","v":""},{"$f":"IF(WorkingP!$B66=\"Clergy and Staffing Costs\",WorkingP!R66,\"\")","v":""},{"$f":"IF(WorkingP!$B66=\"Clergy and Staffing Costs\",WorkingP!S66,\"\")","v":""},{"$f":"IF(WorkingP!$B66=\"Clergy and Staffing Costs\",WorkingP!T66,\"\")","v":""},{"$f":"IF(WorkingP!$B66=\"Clergy and Staffing Costs\",WorkingP!U66,\"\")","v":""},{"$f":"IF(WorkingP!$B66=\"Clergy and Staffing Costs\",WorkingP!V66,\"\")","v":""},{"$f":"IF(WorkingP!$B66=\"Clergy and Staffing Costs\",WorkingP!W66,\"\")","v":""},{"$f":"IF(WorkingP!$B66=\"Clergy and Staffing Costs\",WorkingP!X66,\"\")","v":""},{"$f":"IF(WorkingP!$B66=\"Clergy and Staffing Costs\",WorkingP!Y66,\"\")","v":""},{"$f":"IF(Descriptions!K67=\"Clergy and Staffing Costs\",Descriptions!AB67,0)","v":0}]
[{"$f":"IF(Descriptions!K68=\"Clergy and Staffing Costs\",Descriptions!I68,0)","v":0},{"$f":"IF(WorkingP!$B67=\"Clergy and Staffing Costs\",WorkingP!D67,\"\")","v":""},{"$f":"IF(WorkingP!$B67=\"Clergy and Staffing Costs\",WorkingP!E67,\"\")","v":""},{"$f":"IF(WorkingP!$B67=\"Clergy and Staffing Costs\",WorkingP!F67,\"\")","v":""},{"$f":"IF(WorkingP!$B67=\"Clergy and Staffing Costs\",WorkingP!G67,\"\")","v":""},{"$f":"IF(WorkingP!$B67=\"Clergy and Staffing Costs\",WorkingP!H67,\"\")","v":""},{"$f":"IF(WorkingP!$B67=\"Clergy and Staffing Costs\",WorkingP!I67,\"\")","v":""},{"$f":"IF(WorkingP!$B67=\"Clergy and Staffing Costs\",WorkingP!J67,\"\")","v":""},{"$f":"IF(WorkingP!$B67=\"Clergy and Staffing Costs\",WorkingP!K67,\"\")","v":""},{"$f":"IF(WorkingP!$B67=\"Clergy and Staffing Costs\",WorkingP!L67,\"\")","v":""},{"$f":"IF(WorkingP!$B67=\"Clergy and Staffing Costs\",WorkingP!M67,\"\")","v":""},{"$f":"IF(WorkingP!$B67=\"Clergy and Staffing Costs\",WorkingP!N67,\"\")","v":""},{"$f":"IF(WorkingP!$B67=\"Clergy and Staffing Costs\",WorkingP!O67,\"\")","v":""},{"$f":"IF(WorkingP!$B67=\"Clergy and Staffing Costs\",WorkingP!P67,\"\")","v":""},{"$f":"IF(WorkingP!$B67=\"Clergy and Staffing Costs\",WorkingP!Q67,\"\")","v":""},{"$f":"IF(WorkingP!$B67=\"Clergy and Staffing Costs\",WorkingP!R67,\"\")","v":""},{"$f":"IF(WorkingP!$B67=\"Clergy and Staffing Costs\",WorkingP!S67,\"\")","v":""},{"$f":"IF(WorkingP!$B67=\"Clergy and Staffing Costs\",WorkingP!T67,\"\")","v":""},{"$f":"IF(WorkingP!$B67=\"Clergy and Staffing Costs\",WorkingP!U67,\"\")","v":""},{"$f":"IF(WorkingP!$B67=\"Clergy and Staffing Costs\",WorkingP!V67,\"\")","v":""},{"$f":"IF(WorkingP!$B67=\"Clergy and Staffing Costs\",WorkingP!W67,\"\")","v":""},{"$f":"IF(WorkingP!$B67=\"Clergy and Staffing Costs\",WorkingP!X67,\"\")","v":""},{"$f":"IF(WorkingP!$B67=\"Clergy and Staffing Costs\",WorkingP!Y67,\"\")","v":""},{"$f":"IF(Descriptions!K68=\"Clergy and Staffing Costs\",Descriptions!AB68,0)","v":0}]
[{"$f":"IF(Descriptions!K69=\"Clergy and Staffing Costs\",Descriptions!I69,0)","v":0},{"$f":"IF(WorkingP!$B68=\"Clergy and Staffing Costs\",WorkingP!D68,\"\")","v":""},{"$f":"IF(WorkingP!$B68=\"Clergy and Staffing Costs\",WorkingP!E68,\"\")","v":""},{"$f":"IF(WorkingP!$B68=\"Clergy and Staffing Costs\",WorkingP!F68,\"\")","v":""},{"$f":"IF(WorkingP!$B68=\"Clergy and Staffing Costs\",WorkingP!G68,\"\")","v":""},{"$f":"IF(WorkingP!$B68=\"Clergy and Staffing Costs\",WorkingP!H68,\"\")","v":""},{"$f":"IF(WorkingP!$B68=\"Clergy and Staffing Costs\",WorkingP!I68,\"\")","v":""},{"$f":"IF(WorkingP!$B68=\"Clergy and Staffing Costs\",WorkingP!J68,\"\")","v":""},{"$f":"IF(WorkingP!$B68=\"Clergy and Staffing Costs\",WorkingP!K68,\"\")","v":""},{"$f":"IF(WorkingP!$B68=\"Clergy and Staffing Costs\",WorkingP!L68,\"\")","v":""},{"$f":"IF(WorkingP!$B68=\"Clergy and Staffing Costs\",WorkingP!M68,\"\")","v":""},{"$f":"IF(WorkingP!$B68=\"Clergy and Staffing Costs\",WorkingP!N68,\"\")","v":""},{"$f":"IF(WorkingP!$B68=\"Clergy and Staffing Costs\",WorkingP!O68,\"\")","v":""},{"$f":"IF(WorkingP!$B68=\"Clergy and Staffing Costs\",WorkingP!P68,\"\")","v":""},{"$f":"IF(WorkingP!$B68=\"Clergy and Staffing Costs\",WorkingP!Q68,\"\")","v":""},{"$f":"IF(WorkingP!$B68=\"Clergy and Staffing Costs\",WorkingP!R68,\"\")","v":""},{"$f":"IF(WorkingP!$B68=\"Clergy and Staffing Costs\",WorkingP!S68,\"\")","v":""},{"$f":"IF(WorkingP!$B68=\"Clergy and Staffing Costs\",WorkingP!T68,\"\")","v":""},{"$f":"IF(WorkingP!$B68=\"Clergy and Staffing Costs\",WorkingP!U68,\"\")","v":""},{"$f":"IF(WorkingP!$B68=\"Clergy and Staffing Costs\",WorkingP!V68,\"\")","v":""},{"$f":"IF(WorkingP!$B68=\"Clergy and Staffing Costs\",WorkingP!W68,\"\")","v":""},{"$f":"IF(WorkingP!$B68=\"Clergy and Staffing Costs\",WorkingP!X68,\"\")","v":""},{"$f":"IF(WorkingP!$B68=\"Clergy and Staffing Costs\",WorkingP!Y68,\"\")","v":""},{"$f":"IF(Descriptions!K69=\"Clergy and Staffing Costs\",Descriptions!AB69,0)","v":0}]
[{"$f":"IF(Descriptions!K70=\"Clergy and Staffing Costs\",Descriptions!I70,0)","v":0},{"$f":"IF(WorkingP!$B69=\"Clergy and Staffing Costs\",WorkingP!D69,\"\")","v":""},{"$f":"IF(WorkingP!$B69=\"Clergy and Staffing Costs\",WorkingP!E69,\"\")","v":""},{"$f":"IF(WorkingP!$B69=\"Clergy and Staffing Costs\",WorkingP!F69,\"\")","v":""},{"$f":"IF(WorkingP!$B69=\"Clergy and Staffing Costs\",WorkingP!G69,\"\")","v":""},{"$f":"IF(WorkingP!$B69=\"Clergy and Staffing Costs\",WorkingP!H69,\"\")","v":""},{"$f":"IF(WorkingP!$B69=\"Clergy and Staffing Costs\",WorkingP!I69,\"\")","v":""},{"$f":"IF(WorkingP!$B69=\"Clergy and Staffing Costs\",WorkingP!J69,\"\")","v":""},{"$f":"IF(WorkingP!$B69=\"Clergy and Staffing Costs\",WorkingP!K69,\"\")","v":""},{"$f":"IF(WorkingP!$B69=\"Clergy and Staffing Costs\",WorkingP!L69,\"\")","v":""},{"$f":"IF(WorkingP!$B69=\"Clergy and Staffing Costs\",WorkingP!M69,\"\")","v":""},{"$f":"IF(WorkingP!$B69=\"Clergy and Staffing Costs\",WorkingP!N69,\"\")","v":""},{"$f":"IF(WorkingP!$B69=\"Clergy and Staffing Costs\",WorkingP!O69,\"\")","v":""},{"$f":"IF(WorkingP!$B69=\"Clergy and Staffing Costs\",WorkingP!P69,\"\")","v":""},{"$f":"IF(WorkingP!$B69=\"Clergy and Staffing Costs\",WorkingP!Q69,\"\")","v":""},{"$f":"IF(WorkingP!$B69=\"Clergy and Staffing Costs\",WorkingP!R69,\"\")","v":""},{"$f":"IF(WorkingP!$B69=\"Clergy and Staffing Costs\",WorkingP!S69,\"\")","v":""},{"$f":"IF(WorkingP!$B69=\"Clergy and Staffing Costs\",WorkingP!T69,\"\")","v":""},{"$f":"IF(WorkingP!$B69=\"Clergy and Staffing Costs\",WorkingP!U69,\"\")","v":""},{"$f":"IF(WorkingP!$B69=\"Clergy and Staffing Costs\",WorkingP!V69,\"\")","v":""},{"$f":"IF(WorkingP!$B69=\"Clergy and Staffing Costs\",WorkingP!W69,\"\")","v":""},{"$f":"IF(WorkingP!$B69=\"Clergy and Staffing Costs\",WorkingP!X69,\"\")","v":""},{"$f":"IF(WorkingP!$B69=\"Clergy and Staffing Costs\",WorkingP!Y69,\"\")","v":""},{"$f":"IF(Descriptions!K70=\"Clergy and Staffing Costs\",Descriptions!AB70,0)","v":0}]
[{"$f":"IF(Descriptions!K71=\"Clergy and Staffing Costs\",Descriptions!I71,0)","v":0},{"$f":"IF(WorkingP!$B70=\"Clergy and Staffing Costs\",WorkingP!D70,\"\")","v":""},{"$f":"IF(WorkingP!$B70=\"Clergy and Staffing Costs\",WorkingP!E70,\"\")","v":""},{"$f":"IF(WorkingP!$B70=\"Clergy and Staffing Costs\",WorkingP!F70,\"\")","v":""},{"$f":"IF(WorkingP!$B70=\"Clergy and Staffing Costs\",WorkingP!G70,\"\")","v":""},{"$f":"IF(WorkingP!$B70=\"Clergy and Staffing Costs\",WorkingP!H70,\"\")","v":""},{"$f":"IF(WorkingP!$B70=\"Clergy and Staffing Costs\",WorkingP!I70,\"\")","v":""},{"$f":"IF(WorkingP!$B70=\"Clergy and Staffing Costs\",WorkingP!J70,\"\")","v":""},{"$f":"IF(WorkingP!$B70=\"Clergy and Staffing Costs\",WorkingP!K70,\"\")","v":""},{"$f":"IF(WorkingP!$B70=\"Clergy and Staffing Costs\",WorkingP!L70,\"\")","v":""},{"$f":"IF(WorkingP!$B70=\"Clergy and Staffing Costs\",WorkingP!M70,\"\")","v":""},{"$f":"IF(WorkingP!$B70=\"Clergy and Staffing Costs\",WorkingP!N70,\"\")","v":""},{"$f":"IF(WorkingP!$B70=\"Clergy and Staffing Costs\",WorkingP!O70,\"\")","v":""},{"$f":"IF(WorkingP!$B70=\"Clergy and Staffing Costs\",WorkingP!P70,\"\")","v":""},{"$f":"IF(WorkingP!$B70=\"Clergy and Staffing Costs\",WorkingP!Q70,\"\")","v":""},{"$f":"IF(WorkingP!$B70=\"Clergy and Staffing Costs\",WorkingP!R70,\"\")","v":""},{"$f":"IF(WorkingP!$B70=\"Clergy and Staffing Costs\",WorkingP!S70,\"\")","v":""},{"$f":"IF(WorkingP!$B70=\"Clergy and Staffing Costs\",WorkingP!T70,\"\")","v":""},{"$f":"IF(WorkingP!$B70=\"Clergy and Staffing Costs\",WorkingP!U70,\"\")","v":""},{"$f":"IF(WorkingP!$B70=\"Clergy and Staffing Costs\",WorkingP!V70,\"\")","v":""},{"$f":"IF(WorkingP!$B70=\"Clergy and Staffing Costs\",WorkingP!W70,\"\")","v":""},{"$f":"IF(WorkingP!$B70=\"Clergy and Staffing Costs\",WorkingP!X70,\"\")","v":""},{"$f":"IF(WorkingP!$B70=\"Clergy and Staffing Costs\",WorkingP!Y70,\"\")","v":""},{"$f":"IF(Descriptions!K71=\"Clergy and Staffing Costs\",Descriptions!AB71,0)","v":0}]
[{"$f":"IF(Descriptions!K72=\"Clergy and Staffing Costs\",Descriptions!I72,0)","v":0},{"$f":"IF(WorkingP!$B71=\"Clergy and Staffing Costs\",WorkingP!D71,\"\")","v":""},{"$f":"IF(WorkingP!$B71=\"Clergy and Staffing Costs\",WorkingP!E71,\"\")","v":""},{"$f":"IF(WorkingP!$B71=\"Clergy and Staffing Costs\",WorkingP!F71,\"\")","v":""},{"$f":"IF(WorkingP!$B71=\"Clergy and Staffing Costs\",WorkingP!G71,\"\")","v":""},{"$f":"IF(WorkingP!$B71=\"Clergy and Staffing Costs\",WorkingP!H71,\"\")","v":""},{"$f":"IF(WorkingP!$B71=\"Clergy and Staffing Costs\",WorkingP!I71,\"\")","v":""},{"$f":"IF(WorkingP!$B71=\"Clergy and Staffing Costs\",WorkingP!J71,\"\")","v":""},{"$f":"IF(WorkingP!$B71=\"Clergy and Staffing Costs\",WorkingP!K71,\"\")","v":""},{"$f":"IF(WorkingP!$B71=\"Clergy and Staffing Costs\",WorkingP!L71,\"\")","v":""},{"$f":"IF(WorkingP!$B71=\"Clergy and Staffing Costs\",WorkingP!M71,\"\")","v":""},{"$f":"IF(WorkingP!$B71=\"Clergy and Staffing Costs\",WorkingP!N71,\"\")","v":""},{"$f":"IF(WorkingP!$B71=\"Clergy and Staffing Costs\",WorkingP!O71,\"\")","v":""},{"$f":"IF(WorkingP!$B71=\"Clergy and Staffing Costs\",WorkingP!P71,\"\")","v":""},{"$f":"IF(WorkingP!$B71=\"Clergy and Staffing Costs\",WorkingP!Q71,\"\")","v":""},{"$f":"IF(WorkingP!$B71=\"Clergy and Staffing Costs\",WorkingP!R71,\"\")","v":""},{"$f":"IF(WorkingP!$B71=\"Clergy and Staffing Costs\",WorkingP!S71,\"\")","v":""},{"$f":"IF(WorkingP!$B71=\"Clergy and Staffing Costs\",WorkingP!T71,\"\")","v":""},{"$f":"IF(WorkingP!$B71=\"Clergy and Staffing Costs\",WorkingP!U71,\"\")","v":""},{"$f":"IF(WorkingP!$B71=\"Clergy and Staffing Costs\",WorkingP!V71,\"\")","v":""},{"$f":"IF(WorkingP!$B71=\"Clergy and Staffing Costs\",WorkingP!W71,\"\")","v":""},{"$f":"IF(WorkingP!$B71=\"Clergy and Staffing Costs\",WorkingP!X71,\"\")","v":""},{"$f":"IF(WorkingP!$B71=\"Clergy and Staffing Costs\",WorkingP!Y71,\"\")","v":""},{"$f":"IF(Descriptions!K72=\"Clergy and Staffing Costs\",Descriptions!AB72,0)","v":0}]
[{"$f":"IF(Descriptions!K73=\"Clergy and Staffing Costs\",Descriptions!I73,0)","v":0},{"$f":"IF(WorkingP!$B72=\"Clergy and Staffing Costs\",WorkingP!D72,\"\")","v":""},{"$f":"IF(WorkingP!$B72=\"Clergy and Staffing Costs\",WorkingP!E72,\"\")","v":""},{"$f":"IF(WorkingP!$B72=\"Clergy and Staffing Costs\",WorkingP!F72,\"\")","v":""},{"$f":"IF(WorkingP!$B72=\"Clergy and Staffing Costs\",WorkingP!G72,\"\")","v":""},{"$f":"IF(WorkingP!$B72=\"Clergy and Staffing Costs\",WorkingP!H72,\"\")","v":""},{"$f":"IF(WorkingP!$B72=\"Clergy and Staffing Costs\",WorkingP!I72,\"\")","v":""},{"$f":"IF(WorkingP!$B72=\"Clergy and Staffing Costs\",WorkingP!J72,\"\")","v":""},{"$f":"IF(WorkingP!$B72=\"Clergy and Staffing Costs\",WorkingP!K72,\"\")","v":""},{"$f":"IF(WorkingP!$B72=\"Clergy and Staffing Costs\",WorkingP!L72,\"\")","v":""},{"$f":"IF(WorkingP!$B72=\"Clergy and Staffing Costs\",WorkingP!M72,\"\")","v":""},{"$f":"IF(WorkingP!$B72=\"Clergy and Staffing Costs\",WorkingP!N72,\"\")","v":""},{"$f":"IF(WorkingP!$B72=\"Clergy and Staffing Costs\",WorkingP!O72,\"\")","v":""},{"$f":"IF(WorkingP!$B72=\"Clergy and Staffing Costs\",WorkingP!P72,\"\")","v":""},{"$f":"IF(WorkingP!$B72=\"Clergy and Staffing Costs\",WorkingP!Q72,\"\")","v":""},{"$f":"IF(WorkingP!$B72=\"Clergy and Staffing Costs\",WorkingP!R72,\"\")","v":""},{"$f":"IF(WorkingP!$B72=\"Clergy and Staffing Costs\",WorkingP!S72,\"\")","v":""},{"$f":"IF(WorkingP!$B72=\"Clergy and Staffing Costs\",WorkingP!T72,\"\")","v":""},{"$f":"IF(WorkingP!$B72=\"Clergy and Staffing Costs\",WorkingP!U72,\"\")","v":""},{"$f":"IF(WorkingP!$B72=\"Clergy and Staffing Costs\",WorkingP!V72,\"\")","v":""},{"$f":"IF(WorkingP!$B72=\"Clergy and Staffing Costs\",WorkingP!W72,\"\")","v":""},{"$f":"IF(WorkingP!$B72=\"Clergy and Staffing Costs\",WorkingP!X72,\"\")","v":""},{"$f":"IF(WorkingP!$B72=\"Clergy and Staffing Costs\",WorkingP!Y72,\"\")","v":""},{"$f":"IF(Descriptions!K73=\"Clergy and Staffing Costs\",Descriptions!AB73,0)","v":0}]
[{"$f":"IF(Descriptions!K74=\"Clergy and Staffing Costs\",Descriptions!I74,0)","v":0},{"$f":"IF(WorkingP!$B73=\"Clergy and Staffing Costs\",WorkingP!D73,\"\")","v":""},{"$f":"IF(WorkingP!$B73=\"Clergy and Staffing Costs\",WorkingP!E73,\"\")","v":""},{"$f":"IF(WorkingP!$B73=\"Clergy and Staffing Costs\",WorkingP!F73,\"\")","v":""},{"$f":"IF(WorkingP!$B73=\"Clergy and Staffing Costs\",WorkingP!G73,\"\")","v":""},{"$f":"IF(WorkingP!$B73=\"Clergy and Staffing Costs\",WorkingP!H73,\"\")","v":""},{"$f":"IF(WorkingP!$B73=\"Clergy and Staffing Costs\",WorkingP!I73,\"\")","v":""},{"$f":"IF(WorkingP!$B73=\"Clergy and Staffing Costs\",WorkingP!J73,\"\")","v":""},{"$f":"IF(WorkingP!$B73=\"Clergy and Staffing Costs\",WorkingP!K73,\"\")","v":""},{"$f":"IF(WorkingP!$B73=\"Clergy and Staffing Costs\",WorkingP!L73,\"\")","v":""},{"$f":"IF(WorkingP!$B73=\"Clergy and Staffing Costs\",WorkingP!M73,\"\")","v":""},{"$f":"IF(WorkingP!$B73=\"Clergy and Staffing Costs\",WorkingP!N73,\"\")","v":""},{"$f":"IF(WorkingP!$B73=\"Clergy and Staffing Costs\",WorkingP!O73,\"\")","v":""},{"$f":"IF(WorkingP!$B73=\"Clergy and Staffing Costs\",WorkingP!P73,\"\")","v":""},{"$f":"IF(WorkingP!$B73=\"Clergy and Staffing Costs\",WorkingP!Q73,\"\")","v":""},{"$f":"IF(WorkingP!$B73=\"Clergy and Staffing Costs\",WorkingP!R73,\"\")","v":""},{"$f":"IF(WorkingP!$B73=\"Clergy and Staffing Costs\",WorkingP!S73,\"\")","v":""},{"$f":"IF(WorkingP!$B73=\"Clergy and Staffing Costs\",WorkingP!T73,\"\")","v":""},{"$f":"IF(WorkingP!$B73=\"Clergy and Staffing Costs\",WorkingP!U73,\"\")","v":""},{"$f":"IF(WorkingP!$B73=\"Clergy and Staffing Costs\",WorkingP!V73,\"\")","v":""},{"$f":"IF(WorkingP!$B73=\"Clergy and Staffing Costs\",WorkingP!W73,\"\")","v":""},{"$f":"IF(WorkingP!$B73=\"Clergy and Staffing Costs\",WorkingP!X73,\"\")","v":""},{"$f":"IF(WorkingP!$B73=\"Clergy and Staffing Costs\",WorkingP!Y73,\"\")","v":""},{"$f":"IF(Descriptions!K74=\"Clergy and Staffing Costs\",Descriptions!AB74,0)","v":0}]
[{"$f":"IF(Descriptions!K75=\"Clergy and Staffing Costs\",Descriptions!I75,0)","v":0},{"$f":"IF(WorkingP!$B74=\"Clergy and Staffing Costs\",WorkingP!D74,\"\")","v":""},{"$f":"IF(WorkingP!$B74=\"Clergy and Staffing Costs\",WorkingP!E74,\"\")","v":""},{"$f":"IF(WorkingP!$B74=\"Clergy and Staffing Costs\",WorkingP!F74,\"\")","v":""},{"$f":"IF(WorkingP!$B74=\"Clergy and Staffing Costs\",WorkingP!G74,\"\")","v":""},{"$f":"IF(WorkingP!$B74=\"Clergy and Staffing Costs\",WorkingP!H74,\"\")","v":""},{"$f":"IF(WorkingP!$B74=\"Clergy and Staffing Costs\",WorkingP!I74,\"\")","v":""},{"$f":"IF(WorkingP!$B74=\"Clergy and Staffing Costs\",WorkingP!J74,\"\")","v":""},{"$f":"IF(WorkingP!$B74=\"Clergy and Staffing Costs\",WorkingP!K74,\"\")","v":""},{"$f":"IF(WorkingP!$B74=\"Clergy and Staffing Costs\",WorkingP!L74,\"\")","v":""},{"$f":"IF(WorkingP!$B74=\"Clergy and Staffing Costs\",WorkingP!M74,\"\")","v":""},{"$f":"IF(WorkingP!$B74=\"Clergy and Staffing Costs\",WorkingP!N74,\"\")","v":""},{"$f":"IF(WorkingP!$B74=\"Clergy and Staffing Costs\",WorkingP!O74,\"\")","v":""},{"$f":"IF(WorkingP!$B74=\"Clergy and Staffing Costs\",WorkingP!P74,\"\")","v":""},{"$f":"IF(WorkingP!$B74=\"Clergy and Staffing Costs\",WorkingP!Q74,\"\")","v":""},{"$f":"IF(WorkingP!$B74=\"Clergy and Staffing Costs\",WorkingP!R74,\"\")","v":""},{"$f":"IF(WorkingP!$B74=\"Clergy and Staffing Costs\",WorkingP!S74,\"\")","v":""},{"$f":"IF(WorkingP!$B74=\"Clergy and Staffing Costs\",WorkingP!T74,\"\")","v":""},{"$f":"IF(WorkingP!$B74=\"Clergy and Staffing Costs\",WorkingP!U74,\"\")","v":""},{"$f":"IF(WorkingP!$B74=\"Clergy and Staffing Costs\",WorkingP!V74,\"\")","v":""},{"$f":"IF(WorkingP!$B74=\"Clergy and Staffing Costs\",WorkingP!W74,\"\")","v":""},{"$f":"IF(WorkingP!$B74=\"Clergy and Staffing Costs\",WorkingP!X74,\"\")","v":""},{"$f":"IF(WorkingP!$B74=\"Clergy and Staffing Costs\",WorkingP!Y74,\"\")","v":""},{"$f":"IF(Descriptions!K75=\"Clergy and Staffing Costs\",Descriptions!AB75,0)","v":0}]
[{"$f":"IF(Descriptions!K76=\"Clergy and Staffing Costs\",Descriptions!I76,0)","v":0},{"$f":"IF(WorkingP!$B75=\"Clergy and Staffing Costs\",WorkingP!D75,\"\")","v":""},{"$f":"IF(WorkingP!$B75=\"Clergy and Staffing Costs\",WorkingP!E75,\"\")","v":""},{"$f":"IF(WorkingP!$B75=\"Clergy and Staffing Costs\",WorkingP!F75,\"\")","v":""},{"$f":"IF(WorkingP!$B75=\"Clergy and Staffing Costs\",WorkingP!G75,\"\")","v":""},{"$f":"IF(WorkingP!$B75=\"Clergy and Staffing Costs\",WorkingP!H75,\"\")","v":""},{"$f":"IF(WorkingP!$B75=\"Clergy and Staffing Costs\",WorkingP!I75,\"\")","v":""},{"$f":"IF(WorkingP!$B75=\"Clergy and Staffing Costs\",WorkingP!J75,\"\")","v":""},{"$f":"IF(WorkingP!$B75=\"Clergy and Staffing Costs\",WorkingP!K75,\"\")","v":""},{"$f":"IF(WorkingP!$B75=\"Clergy and Staffing Costs\",WorkingP!L75,\"\")","v":""},{"$f":"IF(WorkingP!$B75=\"Clergy and Staffing Costs\",WorkingP!M75,\"\")","v":""},{"$f":"IF(WorkingP!$B75=\"Clergy and Staffing Costs\",WorkingP!N75,\"\")","v":""},{"$f":"IF(WorkingP!$B75=\"Clergy and Staffing Costs\",WorkingP!O75,\"\")","v":""},{"$f":"IF(WorkingP!$B75=\"Clergy and Staffing Costs\",WorkingP!P75,\"\")","v":""},{"$f":"IF(WorkingP!$B75=\"Clergy and Staffing Costs\",WorkingP!Q75,\"\")","v":""},{"$f":"IF(WorkingP!$B75=\"Clergy and Staffing Costs\",WorkingP!R75,\"\")","v":""},{"$f":"IF(WorkingP!$B75=\"Clergy and Staffing Costs\",WorkingP!S75,\"\")","v":""},{"$f":"IF(WorkingP!$B75=\"Clergy and Staffing Costs\",WorkingP!T75,\"\")","v":""},{"$f":"IF(WorkingP!$B75=\"Clergy and Staffing Costs\",WorkingP!U75,\"\")","v":""},{"$f":"IF(WorkingP!$B75=\"Clergy and Staffing Costs\",WorkingP!V75,\"\")","v":""},{"$f":"IF(WorkingP!$B75=\"Clergy and Staffing Costs\",WorkingP!W75,\"\")","v":""},{"$f":"IF(WorkingP!$B75=\"Clergy and Staffing Costs\",WorkingP!X75,\"\")","v":""},{"$f":"IF(WorkingP!$B75=\"Clergy and Staffing Costs\",WorkingP!Y75,\"\")","v":""},{"$f":"IF(Descriptions!K76=\"Clergy and Staffing Costs\",Descriptions!AB76,0)","v":0}]
[{"$f":"IF(Descriptions!K77=\"Clergy and Staffing Costs\",Descriptions!I77,0)","v":0},{"$f":"IF(WorkingP!$B76=\"Clergy and Staffing Costs\",WorkingP!D76,\"\")","v":""},{"$f":"IF(WorkingP!$B76=\"Clergy and Staffing Costs\",WorkingP!E76,\"\")","v":""},{"$f":"IF(WorkingP!$B76=\"Clergy and Staffing Costs\",WorkingP!F76,\"\")","v":""},{"$f":"IF(WorkingP!$B76=\"Clergy and Staffing Costs\",WorkingP!G76,\"\")","v":""},{"$f":"IF(WorkingP!$B76=\"Clergy and Staffing Costs\",WorkingP!H76,\"\")","v":""},{"$f":"IF(WorkingP!$B76=\"Clergy and Staffing Costs\",WorkingP!I76,\"\")","v":""},{"$f":"IF(WorkingP!$B76=\"Clergy and Staffing Costs\",WorkingP!J76,\"\")","v":""},{"$f":"IF(WorkingP!$B76=\"Clergy and Staffing Costs\",WorkingP!K76,\"\")","v":""},{"$f":"IF(WorkingP!$B76=\"Clergy and Staffing Costs\",WorkingP!L76,\"\")","v":""},{"$f":"IF(WorkingP!$B76=\"Clergy and Staffing Costs\",WorkingP!M76,\"\")","v":""},{"$f":"IF(WorkingP!$B76=\"Clergy and Staffing Costs\",WorkingP!N76,\"\")","v":""},{"$f":"IF(WorkingP!$B76=\"Clergy and Staffing Costs\",WorkingP!O76,\"\")","v":""},{"$f":"IF(WorkingP!$B76=\"Clergy and Staffing Costs\",WorkingP!P76,\"\")","v":""},{"$f":"IF(WorkingP!$B76=\"Clergy and Staffing Costs\",WorkingP!Q76,\"\")","v":""},{"$f":"IF(WorkingP!$B76=\"Clergy and Staffing Costs\",WorkingP!R76,\"\")","v":""},{"$f":"IF(WorkingP!$B76=\"Clergy and Staffing Costs\",WorkingP!S76,\"\")","v":""},{"$f":"IF(WorkingP!$B76=\"Clergy and Staffing Costs\",WorkingP!T76,\"\")","v":""},{"$f":"IF(WorkingP!$B76=\"Clergy and Staffing Costs\",WorkingP!U76,\"\")","v":""},{"$f":"IF(WorkingP!$B76=\"Clergy and Staffing Costs\",WorkingP!V76,\"\")","v":""},{"$f":"IF(WorkingP!$B76=\"Clergy and Staffing Costs\",WorkingP!W76,\"\")","v":""},{"$f":"IF(WorkingP!$B76=\"Clergy and Staffing Costs\",WorkingP!X76,\"\")","v":""},{"$f":"IF(WorkingP!$B76=\"Clergy and Staffing Costs\",WorkingP!Y76,\"\")","v":""},{"$f":"IF(Descriptions!K77=\"Clergy and Staffing Costs\",Descriptions!AB77,0)","v":0}]
[{"$f":"IF(Descriptions!K78=\"Clergy and Staffing Costs\",Descriptions!I78,0)","v":0},{"$f":"IF(WorkingP!$B77=\"Clergy and Staffing Costs\",WorkingP!D77,\"\")","v":""},{"$f":"IF(WorkingP!$B77=\"Clergy and Staffing Costs\",WorkingP!E77,\"\")","v":""},{"$f":"IF(WorkingP!$B77=\"Clergy and Staffing Costs\",WorkingP!F77,\"\")","v":""},{"$f":"IF(WorkingP!$B77=\"Clergy and Staffing Costs\",WorkingP!G77,\"\")","v":""},{"$f":"IF(WorkingP!$B77=\"Clergy and Staffing Costs\",WorkingP!H77,\"\")","v":""},{"$f":"IF(WorkingP!$B77=\"Clergy and Staffing Costs\",WorkingP!I77,\"\")","v":""},{"$f":"IF(WorkingP!$B77=\"Clergy and Staffing Costs\",WorkingP!J77,\"\")","v":""},{"$f":"IF(WorkingP!$B77=\"Clergy and Staffing Costs\",WorkingP!K77,\"\")","v":""},{"$f":"IF(WorkingP!$B77=\"Clergy and Staffing Costs\",WorkingP!L77,\"\")","v":""},{"$f":"IF(WorkingP!$B77=\"Clergy and Staffing Costs\",WorkingP!M77,\"\")","v":""},{"$f":"IF(WorkingP!$B77=\"Clergy and Staffing Costs\",WorkingP!N77,\"\")","v":""},{"$f":"IF(WorkingP!$B77=\"Clergy and Staffing Costs\",WorkingP!O77,\"\")","v":""},{"$f":"IF(WorkingP!$B77=\"Clergy and Staffing Costs\",WorkingP!P77,\"\")","v":""},{"$f":"IF(WorkingP!$B77=\"Clergy and Staffing Costs\",WorkingP!Q77,\"\")","v":""},{"$f":"IF(WorkingP!$B77=\"Clergy and Staffing Costs\",WorkingP!R77,\"\")","v":""},{"$f":"IF(WorkingP!$B77=\"Clergy and Staffing Costs\",WorkingP!S77,\"\")","v":""},{"$f":"IF(WorkingP!$B77=\"Clergy and Staffing Costs\",WorkingP!T77,\"\")","v":""},{"$f":"IF(WorkingP!$B77=\"Clergy and Staffing Costs\",WorkingP!U77,\"\")","v":""},{"$f":"IF(WorkingP!$B77=\"Clergy and Staffing Costs\",WorkingP!V77,\"\")","v":""},{"$f":"IF(WorkingP!$B77=\"Clergy and Staffing Costs\",WorkingP!W77,\"\")","v":""},{"$f":"IF(WorkingP!$B77=\"Clergy and Staffing Costs\",WorkingP!X77,\"\")","v":""},{"$f":"IF(WorkingP!$B77=\"Clergy and Staffing Costs\",WorkingP!Y77,\"\")","v":""},{"$f":"IF(Descriptions!K78=\"Clergy and Staffing Costs\",Descriptions!AB78,0)","v":0}]
[{"$f":"IF(Descriptions!K79=\"Clergy and Staffing Costs\",Descriptions!I79,0)","v":0},{"$f":"IF(WorkingP!$B78=\"Clergy and Staffing Costs\",WorkingP!D78,\"\")","v":""},{"$f":"IF(WorkingP!$B78=\"Clergy and Staffing Costs\",WorkingP!E78,\"\")","v":""},{"$f":"IF(WorkingP!$B78=\"Clergy and Staffing Costs\",WorkingP!F78,\"\")","v":""},{"$f":"IF(WorkingP!$B78=\"Clergy and Staffing Costs\",WorkingP!G78,\"\")","v":""},{"$f":"IF(WorkingP!$B78=\"Clergy and Staffing Costs\",WorkingP!H78,\"\")","v":""},{"$f":"IF(WorkingP!$B78=\"Clergy and Staffing Costs\",WorkingP!I78,\"\")","v":""},{"$f":"IF(WorkingP!$B78=\"Clergy and Staffing Costs\",WorkingP!J78,\"\")","v":""},{"$f":"IF(WorkingP!$B78=\"Clergy and Staffing Costs\",WorkingP!K78,\"\")","v":""},{"$f":"IF(WorkingP!$B78=\"Clergy and Staffing Costs\",WorkingP!L78,\"\")","v":""},{"$f":"IF(WorkingP!$B78=\"Clergy and Staffing Costs\",WorkingP!M78,\"\")","v":""},{"$f":"IF(WorkingP!$B78=\"Clergy and Staffing Costs\",WorkingP!N78,\"\")","v":""},{"$f":"IF(WorkingP!$B78=\"Clergy and Staffing Costs\",WorkingP!O78,\"\")","v":""},{"$f":"IF(WorkingP!$B78=\"Clergy and Staffing Costs\",WorkingP!P78,\"\")","v":""},{"$f":"IF(WorkingP!$B78=\"Clergy and Staffing Costs\",WorkingP!Q78,\"\")","v":""},{"$f":"IF(WorkingP!$B78=\"Clergy and Staffing Costs\",WorkingP!R78,\"\")","v":""},{"$f":"IF(WorkingP!$B78=\"Clergy and Staffing Costs\",WorkingP!S78,\"\")","v":""},{"$f":"IF(WorkingP!$B78=\"Clergy and Staffing Costs\",WorkingP!T78,\"\")","v":""},{"$f":"IF(WorkingP!$B78=\"Clergy and Staffing Costs\",WorkingP!U78,\"\")","v":""},{"$f":"IF(WorkingP!$B78=\"Clergy and Staffing Costs\",WorkingP!V78,\"\")","v":""},{"$f":"IF(WorkingP!$B78=\"Clergy and Staffing Costs\",WorkingP!W78,\"\")","v":""},{"$f":"IF(WorkingP!$B78=\"Clergy and Staffing Costs\",WorkingP!X78,\"\")","v":""},{"$f":"IF(WorkingP!$B78=\"Clergy and Staffing Costs\",WorkingP!Y78,\"\")","v":""},{"$f":"IF(Descriptions!K79=\"Clergy and Staffing Costs\",Descriptions!AB79,0)","v":0}]
[{"$f":"IF(Descriptions!K80=\"Clergy and Staffing Costs\",Descriptions!I80,0)","v":0},{"$f":"IF(WorkingP!$B79=\"Clergy and Staffing Costs\",WorkingP!D79,\"\")","v":""},{"$f":"IF(WorkingP!$B79=\"Clergy and Staffing Costs\",WorkingP!E79,\"\")","v":""},{"$f":"IF(WorkingP!$B79=\"Clergy and Staffing Costs\",WorkingP!F79,\"\")","v":""},{"$f":"IF(WorkingP!$B79=\"Clergy and Staffing Costs\",WorkingP!G79,\"\")","v":""},{"$f":"IF(WorkingP!$B79=\"Clergy and Staffing Costs\",WorkingP!H79,\"\")","v":""},{"$f":"IF(WorkingP!$B79=\"Clergy and Staffing Costs\",WorkingP!I79,\"\")","v":""},{"$f":"IF(WorkingP!$B79=\"Clergy and Staffing Costs\",WorkingP!J79,\"\")","v":""},{"$f":"IF(WorkingP!$B79=\"Clergy and Staffing Costs\",WorkingP!K79,\"\")","v":""},{"$f":"IF(WorkingP!$B79=\"Clergy and Staffing Costs\",WorkingP!L79,\"\")","v":""},{"$f":"IF(WorkingP!$B79=\"Clergy and Staffing Costs\",WorkingP!M79,\"\")","v":""},{"$f":"IF(WorkingP!$B79=\"Clergy and Staffing Costs\",WorkingP!N79,\"\")","v":""},{"$f":"IF(WorkingP!$B79=\"Clergy and Staffing Costs\",WorkingP!O79,\"\")","v":""},{"$f":"IF(WorkingP!$B79=\"Clergy and Staffing Costs\",WorkingP!P79,\"\")","v":""},{"$f":"IF(WorkingP!$B79=\"Clergy and Staffing Costs\",WorkingP!Q79,\"\")","v":""},{"$f":"IF(WorkingP!$B79=\"Clergy and Staffing Costs\",WorkingP!R79,\"\")","v":""},{"$f":"IF(WorkingP!$B79=\"Clergy and Staffing Costs\",WorkingP!S79,\"\")","v":""},{"$f":"IF(WorkingP!$B79=\"Clergy and Staffing Costs\",WorkingP!T79,\"\")","v":""},{"$f":"IF(WorkingP!$B79=\"Clergy and Staffing Costs\",WorkingP!U79,\"\")","v":""},{"$f":"IF(WorkingP!$B79=\"Clergy and Staffing Costs\",WorkingP!V79,\"\")","v":""},{"$f":"IF(WorkingP!$B79=\"Clergy and Staffing Costs\",WorkingP!W79,\"\")","v":""},{"$f":"IF(WorkingP!$B79=\"Clergy and Staffing Costs\",WorkingP!X79,\"\")","v":""},{"$f":"IF(WorkingP!$B79=\"Clergy and Staffing Costs\",WorkingP!Y79,\"\")","v":""},{"$f":"IF(Descriptions!K80=\"Clergy and Staffing Costs\",Descriptions!AB80,0)","v":0}]
[{"$f":"IF(Descriptions!K81=\"Clergy and Staffing Costs\",Descriptions!I81,0)","v":0},{"$f":"IF(WorkingP!$B80=\"Clergy and Staffing Costs\",WorkingP!D80,\"\")","v":""},{"$f":"IF(WorkingP!$B80=\"Clergy and Staffing Costs\",WorkingP!E80,\"\")","v":""},{"$f":"IF(WorkingP!$B80=\"Clergy and Staffing Costs\",WorkingP!F80,\"\")","v":""},{"$f":"IF(WorkingP!$B80=\"Clergy and Staffing Costs\",WorkingP!G80,\"\")","v":""},{"$f":"IF(WorkingP!$B80=\"Clergy and Staffing Costs\",WorkingP!H80,\"\")","v":""},{"$f":"IF(WorkingP!$B80=\"Clergy and Staffing Costs\",WorkingP!I80,\"\")","v":""},{"$f":"IF(WorkingP!$B80=\"Clergy and Staffing Costs\",WorkingP!J80,\"\")","v":""},{"$f":"IF(WorkingP!$B80=\"Clergy and Staffing Costs\",WorkingP!K80,\"\")","v":""},{"$f":"IF(WorkingP!$B80=\"Clergy and Staffing Costs\",WorkingP!L80,\"\")","v":""},{"$f":"IF(WorkingP!$B80=\"Clergy and Staffing Costs\",WorkingP!M80,\"\")","v":""},{"$f":"IF(WorkingP!$B80=\"Clergy and Staffing Costs\",WorkingP!N80,\"\")","v":""},{"$f":"IF(WorkingP!$B80=\"Clergy and Staffing Costs\",WorkingP!O80,\"\")","v":""},{"$f":"IF(WorkingP!$B80=\"Clergy and Staffing Costs\",WorkingP!P80,\"\")","v":""},{"$f":"IF(WorkingP!$B80=\"Clergy and Staffing Costs\",WorkingP!Q80,\"\")","v":""},{"$f":"IF(WorkingP!$B80=\"Clergy and Staffing Costs\",WorkingP!R80,\"\")","v":""},{"$f":"IF(WorkingP!$B80=\"Clergy and Staffing Costs\",WorkingP!S80,\"\")","v":""},{"$f":"IF(WorkingP!$B80=\"Clergy and Staffing Costs\",WorkingP!T80,\"\")","v":""},{"$f":"IF(WorkingP!$B80=\"Clergy and Staffing Costs\",WorkingP!U80,\"\")","v":""},{"$f":"IF(WorkingP!$B80=\"Clergy and Staffing Costs\",WorkingP!V80,\"\")","v":""},{"$f":"IF(WorkingP!$B80=\"Clergy and Staffing Costs\",WorkingP!W80,\"\")","v":""},{"$f":"IF(WorkingP!$B80=\"Clergy and Staffing Costs\",WorkingP!X80,\"\")","v":""},{"$f":"IF(WorkingP!$B80=\"Clergy and Staffing Costs\",WorkingP!Y80,\"\")","v":""},{"$f":"IF(Descriptions!K81=\"Clergy and Staffing Costs\",Descriptions!AB81,0)","v":0}]
[{"$f":"IF(Descriptions!K82=\"Clergy and Staffing Costs\",Descriptions!I82,0)","v":0},{"$f":"IF(WorkingP!$B81=\"Clergy and Staffing Costs\",WorkingP!D81,\"\")","v":""},{"$f":"IF(WorkingP!$B81=\"Clergy and Staffing Costs\",WorkingP!E81,\"\")","v":""},{"$f":"IF(WorkingP!$B81=\"Clergy and Staffing Costs\",WorkingP!F81,\"\")","v":""},{"$f":"IF(WorkingP!$B81=\"Clergy and Staffing Costs\",WorkingP!G81,\"\")","v":""},{"$f":"IF(WorkingP!$B81=\"Clergy and Staffing Costs\",WorkingP!H81,\"\")","v":""},{"$f":"IF(WorkingP!$B81=\"Clergy and Staffing Costs\",WorkingP!I81,\"\")","v":""},{"$f":"IF(WorkingP!$B81=\"Clergy and Staffing Costs\",WorkingP!J81,\"\")","v":""},{"$f":"IF(WorkingP!$B81=\"Clergy and Staffing Costs\",WorkingP!K81,\"\")","v":""},{"$f":"IF(WorkingP!$B81=\"Clergy and Staffing Costs\",WorkingP!L81,\"\")","v":""},{"$f":"IF(WorkingP!$B81=\"Clergy and Staffing Costs\",WorkingP!M81,\"\")","v":""},{"$f":"IF(WorkingP!$B81=\"Clergy and Staffing Costs\",WorkingP!N81,\"\")","v":""},{"$f":"IF(WorkingP!$B81=\"Clergy and Staffing Costs\",WorkingP!O81,\"\")","v":""},{"$f":"IF(WorkingP!$B81=\"Clergy and Staffing Costs\",WorkingP!P81,\"\")","v":""},{"$f":"IF(WorkingP!$B81=\"Clergy and Staffing Costs\",WorkingP!Q81,\"\")","v":""},{"$f":"IF(WorkingP!$B81=\"Clergy and Staffing Costs\",WorkingP!R81,\"\")","v":""},{"$f":"IF(WorkingP!$B81=\"Clergy and Staffing Costs\",WorkingP!S81,\"\")","v":""},{"$f":"IF(WorkingP!$B81=\"Clergy and Staffing Costs\",WorkingP!T81,\"\")","v":""},{"$f":"IF(WorkingP!$B81=\"Clergy and Staffing Costs\",WorkingP!U81,\"\")","v":""},{"$f":"IF(WorkingP!$B81=\"Clergy and Staffing Costs\",WorkingP!V81,\"\")","v":""},{"$f":"IF(WorkingP!$B81=\"Clergy and Staffing Costs\",WorkingP!W81,\"\")","v":""},{"$f":"IF(WorkingP!$B81=\"Clergy and Staffing Costs\",WorkingP!X81,\"\")","v":""},{"$f":"IF(WorkingP!$B81=\"Clergy and Staffing Costs\",WorkingP!Y81,\"\")","v":""},{"$f":"IF(Descriptions!K82=\"Clergy and Staffing Costs\",Descriptions!AB82,0)","v":0}]
[{"$f":"IF(Descriptions!K83=\"Clergy and Staffing Costs\",Descriptions!I83,0)","v":0},{"$f":"IF(WorkingP!$B82=\"Clergy and Staffing Costs\",WorkingP!D82,\"\")","v":""},{"$f":"IF(WorkingP!$B82=\"Clergy and Staffing Costs\",WorkingP!E82,\"\")","v":""},{"$f":"IF(WorkingP!$B82=\"Clergy and Staffing Costs\",WorkingP!F82,\"\")","v":""},{"$f":"IF(WorkingP!$B82=\"Clergy and Staffing Costs\",WorkingP!G82,\"\")","v":""},{"$f":"IF(WorkingP!$B82=\"Clergy and Staffing Costs\",WorkingP!H82,\"\")","v":""},{"$f":"IF(WorkingP!$B82=\"Clergy and Staffing Costs\",WorkingP!I82,\"\")","v":""},{"$f":"IF(WorkingP!$B82=\"Clergy and Staffing Costs\",WorkingP!J82,\"\")","v":""},{"$f":"IF(WorkingP!$B82=\"Clergy and Staffing Costs\",WorkingP!K82,\"\")","v":""},{"$f":"IF(WorkingP!$B82=\"Clergy and Staffing Costs\",WorkingP!L82,\"\")","v":""},{"$f":"IF(WorkingP!$B82=\"Clergy and Staffing Costs\",WorkingP!M82,\"\")","v":""},{"$f":"IF(WorkingP!$B82=\"Clergy and Staffing Costs\",WorkingP!N82,\"\")","v":""},{"$f":"IF(WorkingP!$B82=\"Clergy and Staffing Costs\",WorkingP!O82,\"\")","v":""},{"$f":"IF(WorkingP!$B82=\"Clergy and Staffing Costs\",WorkingP!P82,\"\")","v":""},{"$f":"IF(WorkingP!$B82=\"Clergy and Staffing Costs\",WorkingP!Q82,\"\")","v":""},{"$f":"IF(WorkingP!$B82=\"Clergy and Staffing Costs\",WorkingP!R82,\"\")","v":""},{"$f":"IF(WorkingP!$B82=\"Clergy and Staffing Costs\",WorkingP!S82,\"\")","v":""},{"$f":"IF(WorkingP!$B82=\"Clergy and Staffing Costs\",WorkingP!T82,\"\")","v":""},{"$f":"IF(WorkingP!$B82=\"Clergy and Staffing Costs\",WorkingP!U82,\"\")","v":""},{"$f":"IF(WorkingP!$B82=\"Clergy and Staffing Costs\",WorkingP!V82,\"\")","v":""},{"$f":"IF(WorkingP!$B82=\"Clergy and Staffing Costs\",WorkingP!W82,\"\")","v":""},{"$f":"IF(WorkingP!$B82=\"Clergy and Staffing Costs\",WorkingP!X82,\"\")","v":""},{"$f":"IF(WorkingP!$B82=\"Clergy and Staffing Costs\",WorkingP!Y82,\"\")","v":""},{"$f":"IF(Descriptions!K83=\"Clergy and Staffing Costs\",Descriptions!AB83,0)","v":0}]
[{"$f":"IF(Descriptions!K84=\"Clergy and Staffing Costs\",Descriptions!I84,0)","v":0},{"$f":"IF(WorkingP!$B83=\"Clergy and Staffing Costs\",WorkingP!D83,\"\")","v":""},{"$f":"IF(WorkingP!$B83=\"Clergy and Staffing Costs\",WorkingP!E83,\"\")","v":""},{"$f":"IF(WorkingP!$B83=\"Clergy and Staffing Costs\",WorkingP!F83,\"\")","v":""},{"$f":"IF(WorkingP!$B83=\"Clergy and Staffing Costs\",WorkingP!G83,\"\")","v":""},{"$f":"IF(WorkingP!$B83=\"Clergy and Staffing Costs\",WorkingP!H83,\"\")","v":""},{"$f":"IF(WorkingP!$B83=\"Clergy and Staffing Costs\",WorkingP!I83,\"\")","v":""},{"$f":"IF(WorkingP!$B83=\"Clergy and Staffing Costs\",WorkingP!J83,\"\")","v":""},{"$f":"IF(WorkingP!$B83=\"Clergy and Staffing Costs\",WorkingP!K83,\"\")","v":""},{"$f":"IF(WorkingP!$B83=\"Clergy and Staffing Costs\",WorkingP!L83,\"\")","v":""},{"$f":"IF(WorkingP!$B83=\"Clergy and Staffing Costs\",WorkingP!M83,\"\")","v":""},{"$f":"IF(WorkingP!$B83=\"Clergy and Staffing Costs\",WorkingP!N83,\"\")","v":""},{"$f":"IF(WorkingP!$B83=\"Clergy and Staffing Costs\",WorkingP!O83,\"\")","v":""},{"$f":"IF(WorkingP!$B83=\"Clergy and Staffing Costs\",WorkingP!P83,\"\")","v":""},{"$f":"IF(WorkingP!$B83=\"Clergy and Staffing Costs\",WorkingP!Q83,\"\")","v":""},{"$f":"IF(WorkingP!$B83=\"Clergy and Staffing Costs\",WorkingP!R83,\"\")","v":""},{"$f":"IF(WorkingP!$B83=\"Clergy and Staffing Costs\",WorkingP!S83,\"\")","v":""},{"$f":"IF(WorkingP!$B83=\"Clergy and Staffing Costs\",WorkingP!T83,\"\")","v":""},{"$f":"IF(WorkingP!$B83=\"Clergy and Staffing Costs\",WorkingP!U83,\"\")","v":""},{"$f":"IF(WorkingP!$B83=\"Clergy and Staffing Costs\",WorkingP!V83,\"\")","v":""},{"$f":"IF(WorkingP!$B83=\"Clergy and Staffing Costs\",WorkingP!W83,\"\")","v":""},{"$f":"IF(WorkingP!$B83=\"Clergy and Staffing Costs\",WorkingP!X83,\"\")","v":""},{"$f":"IF(WorkingP!$B83=\"Clergy and Staffing Costs\",WorkingP!Y83,\"\")","v":""},{"$f":"IF(Descriptions!K84=\"Clergy and Staffing Costs\",Descriptions!AB84,0)","v":0}]
[null,{"$f":"SUM(B622:B674)","v":0},0,0,0,0,0,0,0,0,0,0,0,0,0,0,0,0,0,0,0,0,null,{"$f":"X621","v":0}]
["CHURCH RUNNING EXPENSES",null,null,null,null,null,null,null,null,null,null,null,null,null,null,null,null,null,null,null,null,null,null,{"$f":"SUM(X677:X732)","v":0}]
["Cleaning",{"$f":"WorkingP!D13","v":0},{"$f":"WorkingP!E13","v":0},{"$f":"WorkingP!F13","v":0},{"$f":"WorkingP!G13","v":0},{"$f":"WorkingP!H13","v":0},{"$f":"WorkingP!I13","v":0},{"$f":"WorkingP!J13","v":0},{"$f":"WorkingP!K13","v":0},{"$f":"WorkingP!L13","v":0},{"$f":"WorkingP!M13","v":0},{"$f":"WorkingP!N13","v":0},{"$f":"WorkingP!O13","v":0},{"$f":"WorkingP!P13","v":0},{"$f":"WorkingP!Q13","v":0},{"$f":"WorkingP!R13","v":0},{"$f":"WorkingP!S13","v":0},{"$f":"WorkingP!T13","v":0},{"$f":"WorkingP!U13","v":0},{"$f":"WorkingP!V13","v":0},{"$f":"WorkingP!W13","v":0},{"$f":"WorkingP!X13","v":0},{"$f":"WorkingP!Y13","v":0},{"$f":"Descriptions!AB14","v":0}]
["Gas and Electricity Bill",{"$f":"WorkingP!D17","v":0},{"$f":"WorkingP!E17","v":0},{"$f":"WorkingP!F17","v":0},{"$f":"WorkingP!G17","v":0},{"$f":"WorkingP!H17","v":0},{"$f":"WorkingP!I17","v":0},{"$f":"WorkingP!J17","v":0},{"$f":"WorkingP!K17","v":0},{"$f":"WorkingP!L17","v":0},{"$f":"WorkingP!M17","v":0},{"$f":"WorkingP!N17","v":0},{"$f":"WorkingP!O17","v":0},{"$f":"WorkingP!P17","v":0},{"$f":"WorkingP!Q17","v":0},{"$f":"WorkingP!R17","v":0},{"$f":"WorkingP!S17","v":0},{"$f":"WorkingP!T17","v":0},{"$f":"WorkingP!U17","v":0},{"$f":"WorkingP!V17","v":0},{"$f":"WorkingP!W17","v":0},{"$f":"WorkingP!X17","v":0},{"$f":"WorkingP!Y17","v":0},{"$f":"Descriptions!AB18","v":0}]
["Insurance",{"$f":"WorkingP!D19","v":0},{"$f":"WorkingP!E19","v":0},{"$f":"WorkingP!F19","v":0},{"$f":"WorkingP!G19","v":0},{"$f":"WorkingP!H19","v":0},{"$f":"WorkingP!I19","v":0},{"$f":"WorkingP!J19","v":0},{"$f":"WorkingP!K19","v":0},{"$f":"WorkingP!L19","v":0},{"$f":"WorkingP!M19","v":0},{"$f":"WorkingP!N19","v":0},{"$f":"WorkingP!O19","v":0},{"$f":"WorkingP!P19","v":0},{"$f":"WorkingP!Q19","v":0},{"$f":"WorkingP!R19","v":0},{"$f":"WorkingP!S19","v":0},{"$f":"WorkingP!T19","v":0},{"$f":"WorkingP!U19","v":0},{"$f":"WorkingP!V19","v":0},{"$f":"WorkingP!W19","v":0},{"$f":"WorkingP!X19","v":0},{"$f":"WorkingP!Y19","v":0},{"$f":"Descriptions!AB20","v":0}]
["Service Costs",{"$f":"WorkingP!D26","v":0},{"$f":"WorkingP!E26","v":0},{"$f":"WorkingP!F26","v":0},{"$f":"WorkingP!G26","v":0},{"$f":"WorkingP!H26","v":0},{"$f":"WorkingP!I26","v":0},{"$f":"WorkingP!J26","v":0},{"$f":"WorkingP!K26","v":0},{"$f":"WorkingP!L26","v":0},{"$f":"WorkingP!M26","v":0},{"$f":"WorkingP!N26","v":0},{"$f":"WorkingP!O26","v":0},{"$f":"WorkingP!P26","v":0},{"$f":"WorkingP!Q26","v":0},{"$f":"WorkingP!R26","v":0},{"$f":"WorkingP!S26","v":0},{"$f":"WorkingP!T26","v":0},{"$f":"WorkingP!U26","v":0},{"$f":"WorkingP!V26","v":0},{"$f":"WorkingP!W26","v":0},{"$f":"WorkingP!X26","v":0},{"$f":"WorkingP!Y26","v":0},{"$f":"Descriptions!AB27","v":0}]
["Maintenance",{"$f":"WorkingP!D20","v":0},{"$f":"WorkingP!E20","v":0},{"$f":"WorkingP!F20","v":0},{"$f":"WorkingP!G20","v":0},{"$f":"WorkingP!H20","v":0},{"$f":"WorkingP!I20","v":0},{"$f":"WorkingP!J20","v":0},{"$f":"WorkingP!K20","v":0},{"$f":"WorkingP!L20","v":0},{"$f":"WorkingP!M20","v":0},{"$f":"WorkingP!N20","v":0},{"$f":"WorkingP!O20","v":0},{"$f":"WorkingP!P20","v":0},{"$f":"WorkingP!Q20","v":0},{"$f":"WorkingP!R20","v":0},{"$f":"WorkingP!S20","v":0},{"$f":"WorkingP!T20","v":0},{"$f":"WorkingP!U20","v":0},{"$f":"WorkingP!V20","v":0},{"$f":"WorkingP!W20","v":0},{"$f":"WorkingP!X20","v":0},{"$f":"WorkingP!Y20","v":0},{"$f":"Descriptions!AB21","v":0}]
["Water Bill",{"$f":"WorkingP!D33","v":0},{"$f":"WorkingP!E33","v":0},{"$f":"WorkingP!F33","v":0},{"$f":"WorkingP!G33","v":0},{"$f":"WorkingP!H33","v":0},{"$f":"WorkingP!I33","v":0},{"$f":"WorkingP!J33","v":0},{"$f":"WorkingP!K33","v":0},{"$f":"WorkingP!L33","v":0},{"$f":"WorkingP!M33","v":0},{"$f":"WorkingP!N33","v":0},{"$f":"WorkingP!O33","v":0},{"$f":"WorkingP!P33","v":0},{"$f":"WorkingP!Q33","v":0},{"$f":"WorkingP!R33","v":0},{"$f":"WorkingP!S33","v":0},{"$f":"WorkingP!T33","v":0},{"$f":"WorkingP!U33","v":0},{"$f":"WorkingP!V33","v":0},{"$f":"WorkingP!W33","v":0},{"$f":"WorkingP!X33","v":0},{"$f":"WorkingP!Y33","v":0},{"$f":"Descriptions!AB34","v":0}]
[{"$f":"IF(Descriptions!K35=\"Church Running Expenses\",Descriptions!I35,0)","v":0},{"$f":"IF(WorkingP!$B34=\"Church Running Expenses\",WorkingP!D34,\"\")","v":""},{"$f":"IF(WorkingP!$B34=\"Church Running Expenses\",WorkingP!E34,\"\")","v":""},{"$f":"IF(WorkingP!$B34=\"Church Running Expenses\",WorkingP!F34,\"\")","v":""},{"$f":"IF(WorkingP!$B34=\"Church Running Expenses\",WorkingP!G34,\"\")","v":""},{"$f":"IF(WorkingP!$B34=\"Church Running Expenses\",WorkingP!H34,\"\")","v":""},{"$f":"IF(WorkingP!$B34=\"Church Running Expenses\",WorkingP!I34,\"\")","v":""},{"$f":"IF(WorkingP!$B34=\"Church Running Expenses\",WorkingP!J34,\"\")","v":""},{"$f":"IF(WorkingP!$B34=\"Church Running Expenses\",WorkingP!K34,\"\")","v":""},{"$f":"IF(WorkingP!$B34=\"Church Running Expenses\",WorkingP!L34,\"\")","v":""},{"$f":"IF(WorkingP!$B34=\"Church Running Expenses\",WorkingP!M34,\"\")","v":""},{"$f":"IF(WorkingP!$B34=\"Church Running Expenses\",WorkingP!N34,\"\")","v":""},{"$f":"IF(WorkingP!$B34=\"Church Running Expenses\",WorkingP!O34,\"\")","v":""},{"$f":"IF(WorkingP!$B34=\"Church Running Expenses\",WorkingP!P34,\"\")","v":""},{"$f":"IF(WorkingP!$B34=\"Church Running Expenses\",WorkingP!Q34,\"\")","v":""},{"$f":"IF(WorkingP!$B34=\"Church Running Expenses\",WorkingP!R34,\"\")","v":""},{"$f":"IF(WorkingP!$B34=\"Church Running Expenses\",WorkingP!S34,\"\")","v":""},{"$f":"IF(WorkingP!$B34=\"Church Running Expenses\",WorkingP!T34,\"\")","v":""},{"$f":"IF(WorkingP!$B34=\"Church Running Expenses\",WorkingP!U34,\"\")","v":""},{"$f":"IF(WorkingP!$B34=\"Church Running Expenses\",WorkingP!V34,\"\")","v":""},{"$f":"IF(WorkingP!$B34=\"Church Running Expenses\",WorkingP!W34,\"\")","v":""},{"$f":"IF(WorkingP!$B34=\"Church Running Expenses\",WorkingP!X34,\"\")","v":""},{"$f":"IF(WorkingP!$B34=\"Church Running Expenses\",WorkingP!Y34,\"\")","v":""},{"$f":"IF(Descriptions!K35=\"Church Running Expenses\",Descriptions!AB35,0)","v":0}]
[{"$f":"IF(Descriptions!K36=\"Church Running Expenses\",Descriptions!I36,0)","v":0},{"$f":"IF(WorkingP!$B35=\"Church Running Expenses\",WorkingP!D35,\"\")","v":""},{"$f":"IF(WorkingP!$B35=\"Church Running Expenses\",WorkingP!E35,\"\")","v":""},{"$f":"IF(WorkingP!$B35=\"Church Running Expenses\",WorkingP!F35,\"\")","v":""},{"$f":"IF(WorkingP!$B35=\"Church Running Expenses\",WorkingP!G35,\"\")","v":""},{"$f":"IF(WorkingP!$B35=\"Church Running Expenses\",WorkingP!H35,\"\")","v":""},{"$f":"IF(WorkingP!$B35=\"Church Running Expenses\",WorkingP!I35,\"\")","v":""},{"$f":"IF(WorkingP!$B35=\"Church Running Expenses\",WorkingP!J35,\"\")","v":""},{"$f":"IF(WorkingP!$B35=\"Church Running Expenses\",WorkingP!K35,\"\")","v":""},{"$f":"IF(WorkingP!$B35=\"Church Running Expenses\",WorkingP!L35,\"\")","v":""},{"$f":"IF(WorkingP!$B35=\"Church Running Expenses\",WorkingP!M35,\"\")","v":""},{"$f":"IF(WorkingP!$B35=\"Church Running Expenses\",WorkingP!N35,\"\")","v":""},{"$f":"IF(WorkingP!$B35=\"Church Running Expenses\",WorkingP!O35,\"\")","v":""},{"$f":"IF(WorkingP!$B35=\"Church Running Expenses\",WorkingP!P35,\"\")","v":""},{"$f":"IF(WorkingP!$B35=\"Church Running Expenses\",WorkingP!Q35,\"\")","v":""},{"$f":"IF(WorkingP!$B35=\"Church Running Expenses\",WorkingP!R35,\"\")","v":""},{"$f":"IF(WorkingP!$B35=\"Church Running Expenses\",WorkingP!S35,\"\")","v":""},{"$f":"IF(WorkingP!$B35=\"Church Running Expenses\",WorkingP!T35,\"\")","v":""},{"$f":"IF(WorkingP!$B35=\"Church Running Expenses\",WorkingP!U35,\"\")","v":""},{"$f":"IF(WorkingP!$B35=\"Church Running Expenses\",WorkingP!V35,\"\")","v":""},{"$f":"IF(WorkingP!$B35=\"Church Running Expenses\",WorkingP!W35,\"\")","v":""},{"$f":"IF(WorkingP!$B35=\"Church Running Expenses\",WorkingP!X35,\"\")","v":""},{"$f":"IF(WorkingP!$B35=\"Church Running Expenses\",WorkingP!Y35,\"\")","v":""},{"$f":"IF(Descriptions!K36=\"Church Running Expenses\",Descriptions!AB36,0)","v":0}]
[{"$f":"IF(Descriptions!K37=\"Church Running Expenses\",Descriptions!I37,0)","v":0},{"$f":"IF(WorkingP!$B36=\"Church Running Expenses\",WorkingP!D36,\"\")","v":""},{"$f":"IF(WorkingP!$B36=\"Church Running Expenses\",WorkingP!E36,\"\")","v":""},{"$f":"IF(WorkingP!$B36=\"Church Running Expenses\",WorkingP!F36,\"\")","v":""},{"$f":"IF(WorkingP!$B36=\"Church Running Expenses\",WorkingP!G36,\"\")","v":""},{"$f":"IF(WorkingP!$B36=\"Church Running Expenses\",WorkingP!H36,\"\")","v":""},{"$f":"IF(WorkingP!$B36=\"Church Running Expenses\",WorkingP!I36,\"\")","v":""},{"$f":"IF(WorkingP!$B36=\"Church Running Expenses\",WorkingP!J36,\"\")","v":""},{"$f":"IF(WorkingP!$B36=\"Church Running Expenses\",WorkingP!K36,\"\")","v":""},{"$f":"IF(WorkingP!$B36=\"Church Running Expenses\",WorkingP!L36,\"\")","v":""},{"$f":"IF(WorkingP!$B36=\"Church Running Expenses\",WorkingP!M36,\"\")","v":""},{"$f":"IF(WorkingP!$B36=\"Church Running Expenses\",WorkingP!N36,\"\")","v":""},{"$f":"IF(WorkingP!$B36=\"Church Running Expenses\",WorkingP!O36,\"\")","v":""},{"$f":"IF(WorkingP!$B36=\"Church Running Expenses\",WorkingP!P36,\"\")","v":""},{"$f":"IF(WorkingP!$B36=\"Church Running Expenses\",WorkingP!Q36,\"\")","v":""},{"$f":"IF(WorkingP!$B36=\"Church Running Expenses\",WorkingP!R36,\"\")","v":""},{"$f":"IF(WorkingP!$B36=\"Church Running Expenses\",WorkingP!S36,\"\")","v":""},{"$f":"IF(WorkingP!$B36=\"Church Running Expenses\",WorkingP!T36,\"\")","v":""},{"$f":"IF(WorkingP!$B36=\"Church Running Expenses\",WorkingP!U36,\"\")","v":""},{"$f":"IF(WorkingP!$B36=\"Church Running Expenses\",WorkingP!V36,\"\")","v":""},{"$f":"IF(WorkingP!$B36=\"Church Running Expenses\",WorkingP!W36,\"\")","v":""},{"$f":"IF(WorkingP!$B36=\"Church Running Expenses\",WorkingP!X36,\"\")","v":""},{"$f":"IF(WorkingP!$B36=\"Church Running Expenses\",WorkingP!Y36,\"\")","v":""},{"$f":"IF(Descriptions!K37=\"Church Running Expenses\",Descriptions!AB37,0)","v":0}]
[{"$f":"IF(Descriptions!K38=\"Church Running Expenses\",Descriptions!I38,0)","v":0},{"$f":"IF(WorkingP!$B37=\"Church Running Expenses\",WorkingP!D37,\"\")","v":""},{"$f":"IF(WorkingP!$B37=\"Church Running Expenses\",WorkingP!E37,\"\")","v":""},{"$f":"IF(WorkingP!$B37=\"Church Running Expenses\",WorkingP!F37,\"\")","v":""},{"$f":"IF(WorkingP!$B37=\"Church Running Expenses\",WorkingP!G37,\"\")","v":""},{"$f":"IF(WorkingP!$B37=\"Church Running Expenses\",WorkingP!H37,\"\")","v":""},{"$f":"IF(WorkingP!$B37=\"Church Running Expenses\",WorkingP!I37,\"\")","v":""},{"$f":"IF(WorkingP!$B37=\"Church Running Expenses\",WorkingP!J37,\"\")","v":""},{"$f":"IF(WorkingP!$B37=\"Church Running Expenses\",WorkingP!K37,\"\")","v":""},{"$f":"IF(WorkingP!$B37=\"Church Running Expenses\",WorkingP!L37,\"\")","v":""},{"$f":"IF(WorkingP!$B37=\"Church Running Expenses\",WorkingP!M37,\"\")","v":""},{"$f":"IF(WorkingP!$B37=\"Church Running Expenses\",WorkingP!N37,\"\")","v":""},{"$f":"IF(WorkingP!$B37=\"Church Running Expenses\",WorkingP!O37,\"\")","v":""},{"$f":"IF(WorkingP!$B37=\"Church Running Expenses\",WorkingP!P37,\"\")","v":""},{"$f":"IF(WorkingP!$B37=\"Church Running Expenses\",WorkingP!Q37,\"\")","v":""},{"$f":"IF(WorkingP!$B37=\"Church Running Expenses\",WorkingP!R37,\"\")","v":""},{"$f":"IF(WorkingP!$B37=\"Church Running Expenses\",WorkingP!S37,\"\")","v":""},{"$f":"IF(WorkingP!$B37=\"Church Running Expenses\",WorkingP!T37,\"\")","v":""},{"$f":"IF(WorkingP!$B37=\"Church Running Expenses\",WorkingP!U37,\"\")","v":""},{"$f":"IF(WorkingP!$B37=\"Church Running Expenses\",WorkingP!V37,\"\")","v":""},{"$f":"IF(WorkingP!$B37=\"Church Running Expenses\",WorkingP!W37,\"\")","v":""},{"$f":"IF(WorkingP!$B37=\"Church Running Expenses\",WorkingP!X37,\"\")","v":""},{"$f":"IF(WorkingP!$B37=\"Church Running Expenses\",WorkingP!Y37,\"\")","v":""},{"$f":"IF(Descriptions!K38=\"Church Running Expenses\",Descriptions!AB38,0)","v":0}]
[{"$f":"IF(Descriptions!K39=\"Church Running Expenses\",Descriptions!I39,0)","v":0},{"$f":"IF(WorkingP!$B38=\"Church Running Expenses\",WorkingP!D38,\"\")","v":""},{"$f":"IF(WorkingP!$B38=\"Church Running Expenses\",WorkingP!E38,\"\")","v":""},{"$f":"IF(WorkingP!$B38=\"Church Running Expenses\",WorkingP!F38,\"\")","v":""},{"$f":"IF(WorkingP!$B38=\"Church Running Expenses\",WorkingP!G38,\"\")","v":""},{"$f":"IF(WorkingP!$B38=\"Church Running Expenses\",WorkingP!H38,\"\")","v":""},{"$f":"IF(WorkingP!$B38=\"Church Running Expenses\",WorkingP!I38,\"\")","v":""},{"$f":"IF(WorkingP!$B38=\"Church Running Expenses\",WorkingP!J38,\"\")","v":""},{"$f":"IF(WorkingP!$B38=\"Church Running Expenses\",WorkingP!K38,\"\")","v":""},{"$f":"IF(WorkingP!$B38=\"Church Running Expenses\",WorkingP!L38,\"\")","v":""},{"$f":"IF(WorkingP!$B38=\"Church Running Expenses\",WorkingP!M38,\"\")","v":""},{"$f":"IF(WorkingP!$B38=\"Church Running Expenses\",WorkingP!N38,\"\")","v":""},{"$f":"IF(WorkingP!$B38=\"Church Running Expenses\",WorkingP!O38,\"\")","v":""},{"$f":"IF(WorkingP!$B38=\"Church Running Expenses\",WorkingP!P38,\"\")","v":""},{"$f":"IF(WorkingP!$B38=\"Church Running Expenses\",WorkingP!Q38,\"\")","v":""},{"$f":"IF(WorkingP!$B38=\"Church Running Expenses\",WorkingP!R38,\"\")","v":""},{"$f":"IF(WorkingP!$B38=\"Church Running Expenses\",WorkingP!S38,\"\")","v":""},{"$f":"IF(WorkingP!$B38=\"Church Running Expenses\",WorkingP!T38,\"\")","v":""},{"$f":"IF(WorkingP!$B38=\"Church Running Expenses\",WorkingP!U38,\"\")","v":""},{"$f":"IF(WorkingP!$B38=\"Church Running Expenses\",WorkingP!V38,\"\")","v":""},{"$f":"IF(WorkingP!$B38=\"Church Running Expenses\",WorkingP!W38,\"\")","v":""},{"$f":"IF(WorkingP!$B38=\"Church Running Expenses\",WorkingP!X38,\"\")","v":""},{"$f":"IF(WorkingP!$B38=\"Church Running Expenses\",WorkingP!Y38,\"\")","v":""},{"$f":"IF(Descriptions!K39=\"Church Running Expenses\",Descriptions!AB39,0)","v":0}]
[{"$f":"IF(Descriptions!K40=\"Church Running Expenses\",Descriptions!I40,0)","v":0},{"$f":"IF(WorkingP!$B39=\"Church Running Expenses\",WorkingP!D39,\"\")","v":""},{"$f":"IF(WorkingP!$B39=\"Church Running Expenses\",WorkingP!E39,\"\")","v":""},{"$f":"IF(WorkingP!$B39=\"Church Running Expenses\",WorkingP!F39,\"\")","v":""},{"$f":"IF(WorkingP!$B39=\"Church Running Expenses\",WorkingP!G39,\"\")","v":""},{"$f":"IF(WorkingP!$B39=\"Church Running Expenses\",WorkingP!H39,\"\")","v":""},{"$f":"IF(WorkingP!$B39=\"Church Running Expenses\",WorkingP!I39,\"\")","v":""},{"$f":"IF(WorkingP!$B39=\"Church Running Expenses\",WorkingP!J39,\"\")","v":""},{"$f":"IF(WorkingP!$B39=\"Church Running Expenses\",WorkingP!K39,\"\")","v":""},{"$f":"IF(WorkingP!$B39=\"Church Running Expenses\",WorkingP!L39,\"\")","v":""},{"$f":"IF(WorkingP!$B39=\"Church Running Expenses\",WorkingP!M39,\"\")","v":""},{"$f":"IF(WorkingP!$B39=\"Church Running Expenses\",WorkingP!N39,\"\")","v":""},{"$f":"IF(WorkingP!$B39=\"Church Running Expenses\",WorkingP!O39,\"\")","v":""},{"$f":"IF(WorkingP!$B39=\"Church Running Expenses\",WorkingP!P39,\"\")","v":""},{"$f":"IF(WorkingP!$B39=\"Church Running Expenses\",WorkingP!Q39,\"\")","v":""},{"$f":"IF(WorkingP!$B39=\"Church Running Expenses\",WorkingP!R39,\"\")","v":""},{"$f":"IF(WorkingP!$B39=\"Church Running Expenses\",WorkingP!S39,\"\")","v":""},{"$f":"IF(WorkingP!$B39=\"Church Running Expenses\",WorkingP!T39,\"\")","v":""},{"$f":"IF(WorkingP!$B39=\"Church Running Expenses\",WorkingP!U39,\"\")","v":""},{"$f":"IF(WorkingP!$B39=\"Church Running Expenses\",WorkingP!V39,\"\")","v":""},{"$f":"IF(WorkingP!$B39=\"Church Running Expenses\",WorkingP!W39,\"\")","v":""},{"$f":"IF(WorkingP!$B39=\"Church Running Expenses\",WorkingP!X39,\"\")","v":""},{"$f":"IF(WorkingP!$B39=\"Church Running Expenses\",WorkingP!Y39,\"\")","v":""},{"$f":"IF(Descriptions!K40=\"Church Running Expenses\",Descriptions!AB40,0)","v":0}]
[{"$f":"IF(Descriptions!K41=\"Church Running Expenses\",Descriptions!I41,0)","v":0},{"$f":"IF(WorkingP!$B40=\"Church Running Expenses\",WorkingP!D40,\"\")","v":""},{"$f":"IF(WorkingP!$B40=\"Church Running Expenses\",WorkingP!E40,\"\")","v":""},{"$f":"IF(WorkingP!$B40=\"Church Running Expenses\",WorkingP!F40,\"\")","v":""},{"$f":"IF(WorkingP!$B40=\"Church Running Expenses\",WorkingP!G40,\"\")","v":""},{"$f":"IF(WorkingP!$B40=\"Church Running Expenses\",WorkingP!H40,\"\")","v":""},{"$f":"IF(WorkingP!$B40=\"Church Running Expenses\",WorkingP!I40,\"\")","v":""},{"$f":"IF(WorkingP!$B40=\"Church Running Expenses\",WorkingP!J40,\"\")","v":""},{"$f":"IF(WorkingP!$B40=\"Church Running Expenses\",WorkingP!K40,\"\")","v":""},{"$f":"IF(WorkingP!$B40=\"Church Running Expenses\",WorkingP!L40,\"\")","v":""},{"$f":"IF(WorkingP!$B40=\"Church Running Expenses\",WorkingP!M40,\"\")","v":""},{"$f":"IF(WorkingP!$B40=\"Church Running Expenses\",WorkingP!N40,\"\")","v":""},{"$f":"IF(WorkingP!$B40=\"Church Running Expenses\",WorkingP!O40,\"\")","v":""},{"$f":"IF(WorkingP!$B40=\"Church Running Expenses\",WorkingP!P40,\"\")","v":""},{"$f":"IF(WorkingP!$B40=\"Church Running Expenses\",WorkingP!Q40,\"\")","v":""},{"$f":"IF(WorkingP!$B40=\"Church Running Expenses\",WorkingP!R40,\"\")","v":""},{"$f":"IF(WorkingP!$B40=\"Church Running Expenses\",WorkingP!S40,\"\")","v":""},{"$f":"IF(WorkingP!$B40=\"Church Running Expenses\",WorkingP!T40,\"\")","v":""},{"$f":"IF(WorkingP!$B40=\"Church Running Expenses\",WorkingP!U40,\"\")","v":""},{"$f":"IF(WorkingP!$B40=\"Church Running Expenses\",WorkingP!V40,\"\")","v":""},{"$f":"IF(WorkingP!$B40=\"Church Running Expenses\",WorkingP!W40,\"\")","v":""},{"$f":"IF(WorkingP!$B40=\"Church Running Expenses\",WorkingP!X40,\"\")","v":""},{"$f":"IF(WorkingP!$B40=\"Church Running Expenses\",WorkingP!Y40,\"\")","v":""},{"$f":"IF(Descriptions!K41=\"Church Running Expenses\",Descriptions!AB41,0)","v":0}]
[{"$f":"IF(Descriptions!K42=\"Church Running Expenses\",Descriptions!I42,0)","v":0},{"$f":"IF(WorkingP!$B41=\"Church Running Expenses\",WorkingP!D41,\"\")","v":""},{"$f":"IF(WorkingP!$B41=\"Church Running Expenses\",WorkingP!E41,\"\")","v":""},{"$f":"IF(WorkingP!$B41=\"Church Running Expenses\",WorkingP!F41,\"\")","v":""},{"$f":"IF(WorkingP!$B41=\"Church Running Expenses\",WorkingP!G41,\"\")","v":""},{"$f":"IF(WorkingP!$B41=\"Church Running Expenses\",WorkingP!H41,\"\")","v":""},{"$f":"IF(WorkingP!$B41=\"Church Running Expenses\",WorkingP!I41,\"\")","v":""},{"$f":"IF(WorkingP!$B41=\"Church Running Expenses\",WorkingP!J41,\"\")","v":""},{"$f":"IF(WorkingP!$B41=\"Church Running Expenses\",WorkingP!K41,\"\")","v":""},{"$f":"IF(WorkingP!$B41=\"Church Running Expenses\",WorkingP!L41,\"\")","v":""},{"$f":"IF(WorkingP!$B41=\"Church Running Expenses\",WorkingP!M41,\"\")","v":""},{"$f":"IF(WorkingP!$B41=\"Church Running Expenses\",WorkingP!N41,\"\")","v":""},{"$f":"IF(WorkingP!$B41=\"Church Running Expenses\",WorkingP!O41,\"\")","v":""},{"$f":"IF(WorkingP!$B41=\"Church Running Expenses\",WorkingP!P41,\"\")","v":""},{"$f":"IF(WorkingP!$B41=\"Church Running Expenses\",WorkingP!Q41,\"\")","v":""},{"$f":"IF(WorkingP!$B41=\"Church Running Expenses\",WorkingP!R41,\"\")","v":""},{"$f":"IF(WorkingP!$B41=\"Church Running Expenses\",WorkingP!S41,\"\")","v":""},{"$f":"IF(WorkingP!$B41=\"Church Running Expenses\",WorkingP!T41,\"\")","v":""},{"$f":"IF(WorkingP!$B41=\"Church Running Expenses\",WorkingP!U41,\"\")","v":""},{"$f":"IF(WorkingP!$B41=\"Church Running Expenses\",WorkingP!V41,\"\")","v":""},{"$f":"IF(WorkingP!$B41=\"Church Running Expenses\",WorkingP!W41,\"\")","v":""},{"$f":"IF(WorkingP!$B41=\"Church Running Expenses\",WorkingP!X41,\"\")","v":""},{"$f":"IF(WorkingP!$B41=\"Church Running Expenses\",WorkingP!Y41,\"\")","v":""},{"$f":"IF(Descriptions!K42=\"Church Running Expenses\",Descriptions!AB42,0)","v":0}]
[{"$f":"IF(Descriptions!K43=\"Church Running Expenses\",Descriptions!I43,0)","v":0},{"$f":"IF(WorkingP!$B42=\"Church Running Expenses\",WorkingP!D42,\"\")","v":""},{"$f":"IF(WorkingP!$B42=\"Church Running Expenses\",WorkingP!E42,\"\")","v":""},{"$f":"IF(WorkingP!$B42=\"Church Running Expenses\",WorkingP!F42,\"\")","v":""},{"$f":"IF(WorkingP!$B42=\"Church Running Expenses\",WorkingP!G42,\"\")","v":""},{"$f":"IF(WorkingP!$B42=\"Church Running Expenses\",WorkingP!H42,\"\")","v":""},{"$f":"IF(WorkingP!$B42=\"Church Running Expenses\",WorkingP!I42,\"\")","v":""},{"$f":"IF(WorkingP!$B42=\"Church Running Expenses\",WorkingP!J42,\"\")","v":""},{"$f":"IF(WorkingP!$B42=\"Church Running Expenses\",WorkingP!K42,\"\")","v":""},{"$f":"IF(WorkingP!$B42=\"Church Running Expenses\",WorkingP!L42,\"\")","v":""},{"$f":"IF(WorkingP!$B42=\"Church Running Expenses\",WorkingP!M42,\"\")","v":""},{"$f":"IF(WorkingP!$B42=\"Church Running Expenses\",WorkingP!N42,\"\")","v":""},{"$f":"IF(WorkingP!$B42=\"Church Running Expenses\",WorkingP!O42,\"\")","v":""},{"$f":"IF(WorkingP!$B42=\"Church Running Expenses\",WorkingP!P42,\"\")","v":""},{"$f":"IF(WorkingP!$B42=\"Church Running Expenses\",WorkingP!Q42,\"\")","v":""},{"$f":"IF(WorkingP!$B42=\"Church Running Expenses\",WorkingP!R42,\"\")","v":""},{"$f":"IF(WorkingP!$B42=\"Church Running Expenses\",WorkingP!S42,\"\")","v":""},{"$f":"IF(WorkingP!$B42=\"Church Running Expenses\",WorkingP!T42,\"\")","v":""},{"$f":"IF(WorkingP!$B42=\"Church Running Expenses\",WorkingP!U42,\"\")","v":""},{"$f":"IF(WorkingP!$B42=\"Church Running Expenses\",WorkingP!V42,\"\")","v":""},{"$f":"IF(WorkingP!$B42=\"Church Running Expenses\",WorkingP!W42,\"\")","v":""},{"$f":"IF(WorkingP!$B42=\"Church Running Expenses\",WorkingP!X42,\"\")","v":""},{"$f":"IF(WorkingP!$B42=\"Church Running Expenses\",WorkingP!Y42,\"\")","v":""},{"$f":"IF(Descriptions!K43=\"Church Running Expenses\",Descriptions!AB43,0)","v":0}]
[{"$f":"IF(Descriptions!K44=\"Church Running Expenses\",Descriptions!I44,0)","v":0},{"$f":"IF(WorkingP!$B43=\"Church Running Expenses\",WorkingP!D43,\"\")","v":""},{"$f":"IF(WorkingP!$B43=\"Church Running Expenses\",WorkingP!E43,\"\")","v":""},{"$f":"IF(WorkingP!$B43=\"Church Running Expenses\",WorkingP!F43,\"\")","v":""},{"$f":"IF(WorkingP!$B43=\"Church Running Expenses\",WorkingP!G43,\"\")","v":""},{"$f":"IF(WorkingP!$B43=\"Church Running Expenses\",WorkingP!H43,\"\")","v":""},{"$f":"IF(WorkingP!$B43=\"Church Running Expenses\",WorkingP!I43,\"\")","v":""},{"$f":"IF(WorkingP!$B43=\"Church Running Expenses\",WorkingP!J43,\"\")","v":""},{"$f":"IF(WorkingP!$B43=\"Church Running Expenses\",WorkingP!K43,\"\")","v":""},{"$f":"IF(WorkingP!$B43=\"Church Running Expenses\",WorkingP!L43,\"\")","v":""},{"$f":"IF(WorkingP!$B43=\"Church Running Expenses\",WorkingP!M43,\"\")","v":""},{"$f":"IF(WorkingP!$B43=\"Church Running Expenses\",WorkingP!N43,\"\")","v":""},{"$f":"IF(WorkingP!$B43=\"Church Running Expenses\",WorkingP!O43,\"\")","v":""},{"$f":"IF(WorkingP!$B43=\"Church Running Expenses\",WorkingP!P43,\"\")","v":""},{"$f":"IF(WorkingP!$B43=\"Church Running Expenses\",WorkingP!Q43,\"\")","v":""},{"$f":"IF(WorkingP!$B43=\"Church Running Expenses\",WorkingP!R43,\"\")","v":""},{"$f":"IF(WorkingP!$B43=\"Church Running Expenses\",WorkingP!S43,\"\")","v":""},{"$f":"IF(WorkingP!$B43=\"Church Running Expenses\",WorkingP!T43,\"\")","v":""},{"$f":"IF(WorkingP!$B43=\"Church Running Expenses\",WorkingP!U43,\"\")","v":""},{"$f":"IF(WorkingP!$B43=\"Church Running Expenses\",WorkingP!V43,\"\")","v":""},{"$f":"IF(WorkingP!$B43=\"Church Running Expenses\",WorkingP!W43,\"\")","v":""},{"$f":"IF(WorkingP!$B43=\"Church Running Expenses\",WorkingP!X43,\"\")","v":""},{"$f":"IF(WorkingP!$B43=\"Church Running Expenses\",WorkingP!Y43,\"\")","v":""},{"$f":"IF(Descriptions!K44=\"Church Running Expenses\",Descriptions!AB44,0)","v":0}]
[{"$f":"IF(Descriptions!K45=\"Church Running Expenses\",Descriptions!I45,0)","v":0},{"$f":"IF(WorkingP!$B44=\"Church Running Expenses\",WorkingP!D44,\"\")","v":""},{"$f":"IF(WorkingP!$B44=\"Church Running Expenses\",WorkingP!E44,\"\")","v":""},{"$f":"IF(WorkingP!$B44=\"Church Running Expenses\",WorkingP!F44,\"\")","v":""},{"$f":"IF(WorkingP!$B44=\"Church Running Expenses\",WorkingP!G44,\"\")","v":""},{"$f":"IF(WorkingP!$B44=\"Church Running Expenses\",WorkingP!H44,\"\")","v":""},{"$f":"IF(WorkingP!$B44=\"Church Running Expenses\",WorkingP!I44,\"\")","v":""},{"$f":"IF(WorkingP!$B44=\"Church Running Expenses\",WorkingP!J44,\"\")","v":""},{"$f":"IF(WorkingP!$B44=\"Church Running Expenses\",WorkingP!K44,\"\")","v":""},{"$f":"IF(WorkingP!$B44=\"Church Running Expenses\",WorkingP!L44,\"\")","v":""},{"$f":"IF(WorkingP!$B44=\"Church Running Expenses\",WorkingP!M44,\"\")","v":""},{"$f":"IF(WorkingP!$B44=\"Church Running Expenses\",WorkingP!N44,\"\")","v":""},{"$f":"IF(WorkingP!$B44=\"Church Running Expenses\",WorkingP!O44,\"\")","v":""},{"$f":"IF(WorkingP!$B44=\"Church Running Expenses\",WorkingP!P44,\"\")","v":""},{"$f":"IF(WorkingP!$B44=\"Church Running Expenses\",WorkingP!Q44,\"\")","v":""},{"$f":"IF(WorkingP!$B44=\"Church Running Expenses\",WorkingP!R44,\"\")","v":""},{"$f":"IF(WorkingP!$B44=\"Church Running Expenses\",WorkingP!S44,\"\")","v":""},{"$f":"IF(WorkingP!$B44=\"Church Running Expenses\",WorkingP!T44,\"\")","v":""},{"$f":"IF(WorkingP!$B44=\"Church Running Expenses\",WorkingP!U44,\"\")","v":""},{"$f":"IF(WorkingP!$B44=\"Church Running Expenses\",WorkingP!V44,\"\")","v":""},{"$f":"IF(WorkingP!$B44=\"Church Running Expenses\",WorkingP!W44,\"\")","v":""},{"$f":"IF(WorkingP!$B44=\"Church Running Expenses\",WorkingP!X44,\"\")","v":""},{"$f":"IF(WorkingP!$B44=\"Church Running Expenses\",WorkingP!Y44,\"\")","v":""},{"$f":"IF(Descriptions!K45=\"Church Running Expenses\",Descriptions!AB45,0)","v":0}]
[{"$f":"IF(Descriptions!K46=\"Church Running Expenses\",Descriptions!I46,0)","v":0},{"$f":"IF(WorkingP!$B45=\"Church Running Expenses\",WorkingP!D45,\"\")","v":""},{"$f":"IF(WorkingP!$B45=\"Church Running Expenses\",WorkingP!E45,\"\")","v":""},{"$f":"IF(WorkingP!$B45=\"Church Running Expenses\",WorkingP!F45,\"\")","v":""},{"$f":"IF(WorkingP!$B45=\"Church Running Expenses\",WorkingP!G45,\"\")","v":""},{"$f":"IF(WorkingP!$B45=\"Church Running Expenses\",WorkingP!H45,\"\")","v":""},{"$f":"IF(WorkingP!$B45=\"Church Running Expenses\",WorkingP!I45,\"\")","v":""},{"$f":"IF(WorkingP!$B45=\"Church Running Expenses\",WorkingP!J45,\"\")","v":""},{"$f":"IF(WorkingP!$B45=\"Church Running Expenses\",WorkingP!K45,\"\")","v":""},{"$f":"IF(WorkingP!$B45=\"Church Running Expenses\",WorkingP!L45,\"\")","v":""},{"$f":"IF(WorkingP!$B45=\"Church Running Expenses\",WorkingP!M45,\"\")","v":""},{"$f":"IF(WorkingP!$B45=\"Church Running Expenses\",WorkingP!N45,\"\")","v":""},{"$f":"IF(WorkingP!$B45=\"Church Running Expenses\",WorkingP!O45,\"\")","v":""},{"$f":"IF(WorkingP!$B45=\"Church Running Expenses\",WorkingP!P45,\"\")","v":""},{"$f":"IF(WorkingP!$B45=\"Church Running Expenses\",WorkingP!Q45,\"\")","v":""},{"$f":"IF(WorkingP!$B45=\"Church Running Expenses\",WorkingP!R45,\"\")","v":""},{"$f":"IF(WorkingP!$B45=\"Church Running Expenses\",WorkingP!S45,\"\")","v":""},{"$f":"IF(WorkingP!$B45=\"Church Running Expenses\",WorkingP!T45,\"\")","v":""},{"$f":"IF(WorkingP!$B45=\"Church Running Expenses\",WorkingP!U45,\"\")","v":""},{"$f":"IF(WorkingP!$B45=\"Church Running Expenses\",WorkingP!V45,\"\")","v":""},{"$f":"IF(WorkingP!$B45=\"Church Running Expenses\",WorkingP!W45,\"\")","v":""},{"$f":"IF(WorkingP!$B45=\"Church Running Expenses\",WorkingP!X45,\"\")","v":""},{"$f":"IF(WorkingP!$B45=\"Church Running Expenses\",WorkingP!Y45,\"\")","v":""},{"$f":"IF(Descriptions!K46=\"Church Running Expenses\",Descriptions!AB46,0)","v":0}]
[{"$f":"IF(Descriptions!K47=\"Church Running Expenses\",Descriptions!I47,0)","v":0},{"$f":"IF(WorkingP!$B46=\"Church Running Expenses\",WorkingP!D46,\"\")","v":""},{"$f":"IF(WorkingP!$B46=\"Church Running Expenses\",WorkingP!E46,\"\")","v":""},{"$f":"IF(WorkingP!$B46=\"Church Running Expenses\",WorkingP!F46,\"\")","v":""},{"$f":"IF(WorkingP!$B46=\"Church Running Expenses\",WorkingP!G46,\"\")","v":""},{"$f":"IF(WorkingP!$B46=\"Church Running Expenses\",WorkingP!H46,\"\")","v":""},{"$f":"IF(WorkingP!$B46=\"Church Running Expenses\",WorkingP!I46,\"\")","v":""},{"$f":"IF(WorkingP!$B46=\"Church Running Expenses\",WorkingP!J46,\"\")","v":""},{"$f":"IF(WorkingP!$B46=\"Church Running Expenses\",WorkingP!K46,\"\")","v":""},{"$f":"IF(WorkingP!$B46=\"Church Running Expenses\",WorkingP!L46,\"\")","v":""},{"$f":"IF(WorkingP!$B46=\"Church Running Expenses\",WorkingP!M46,\"\")","v":""},{"$f":"IF(WorkingP!$B46=\"Church Running Expenses\",WorkingP!N46,\"\")","v":""},{"$f":"IF(WorkingP!$B46=\"Church Running Expenses\",WorkingP!O46,\"\")","v":""},{"$f":"IF(WorkingP!$B46=\"Church Running Expenses\",WorkingP!P46,\"\")","v":""},{"$f":"IF(WorkingP!$B46=\"Church Running Expenses\",WorkingP!Q46,\"\")","v":""},{"$f":"IF(WorkingP!$B46=\"Church Running Expenses\",WorkingP!R46,\"\")","v":""},{"$f":"IF(WorkingP!$B46=\"Church Running Expenses\",WorkingP!S46,\"\")","v":""},{"$f":"IF(WorkingP!$B46=\"Church Running Expenses\",WorkingP!T46,\"\")","v":""},{"$f":"IF(WorkingP!$B46=\"Church Running Expenses\",WorkingP!U46,\"\")","v":""},{"$f":"IF(WorkingP!$B46=\"Church Running Expenses\",WorkingP!V46,\"\")","v":""},{"$f":"IF(WorkingP!$B46=\"Church Running Expenses\",WorkingP!W46,\"\")","v":""},{"$f":"IF(WorkingP!$B46=\"Church Running Expenses\",WorkingP!X46,\"\")","v":""},{"$f":"IF(WorkingP!$B46=\"Church Running Expenses\",WorkingP!Y46,\"\")","v":""},{"$f":"IF(Descriptions!K47=\"Church Running Expenses\",Descriptions!AB47,0)","v":0}]
[{"$f":"IF(Descriptions!K48=\"Church Running Expenses\",Descriptions!I48,0)","v":0},{"$f":"IF(WorkingP!$B47=\"Church Running Expenses\",WorkingP!D47,\"\")","v":""},{"$f":"IF(WorkingP!$B47=\"Church Running Expenses\",WorkingP!E47,\"\")","v":""},{"$f":"IF(WorkingP!$B47=\"Church Running Expenses\",WorkingP!F47,\"\")","v":""},{"$f":"IF(WorkingP!$B47=\"Church Running Expenses\",WorkingP!G47,\"\")","v":""},{"$f":"IF(WorkingP!$B47=\"Church Running Expenses\",WorkingP!H47,\"\")","v":""},{"$f":"IF(WorkingP!$B47=\"Church Running Expenses\",WorkingP!I47,\"\")","v":""},{"$f":"IF(WorkingP!$B47=\"Church Running Expenses\",WorkingP!J47,\"\")","v":""},{"$f":"IF(WorkingP!$B47=\"Church Running Expenses\",WorkingP!K47,\"\")","v":""},{"$f":"IF(WorkingP!$B47=\"Church Running Expenses\",WorkingP!L47,\"\")","v":""},{"$f":"IF(WorkingP!$B47=\"Church Running Expenses\",WorkingP!M47,\"\")","v":""},{"$f":"IF(WorkingP!$B47=\"Church Running Expenses\",WorkingP!N47,\"\")","v":""},{"$f":"IF(WorkingP!$B47=\"Church Running Expenses\",WorkingP!O47,\"\")","v":""},{"$f":"IF(WorkingP!$B47=\"Church Running Expenses\",WorkingP!P47,\"\")","v":""},{"$f":"IF(WorkingP!$B47=\"Church Running Expenses\",WorkingP!Q47,\"\")","v":""},{"$f":"IF(WorkingP!$B47=\"Church Running Expenses\",WorkingP!R47,\"\")","v":""},{"$f":"IF(WorkingP!$B47=\"Church Running Expenses\",WorkingP!S47,\"\")","v":""},{"$f":"IF(WorkingP!$B47=\"Church Running Expenses\",WorkingP!T47,\"\")","v":""},{"$f":"IF(WorkingP!$B47=\"Church Running Expenses\",WorkingP!U47,\"\")","v":""},{"$f":"IF(WorkingP!$B47=\"Church Running Expenses\",WorkingP!V47,\"\")","v":""},{"$f":"IF(WorkingP!$B47=\"Church Running Expenses\",WorkingP!W47,\"\")","v":""},{"$f":"IF(WorkingP!$B47=\"Church Running Expenses\",WorkingP!X47,\"\")","v":""},{"$f":"IF(WorkingP!$B47=\"Church Running Expenses\",WorkingP!Y47,\"\")","v":""},{"$f":"IF(Descriptions!K48=\"Church Running Expenses\",Descriptions!AB48,0)","v":0}]
[{"$f":"IF(Descriptions!K49=\"Church Running Expenses\",Descriptions!I49,0)","v":0},{"$f":"IF(WorkingP!$B48=\"Church Running Expenses\",WorkingP!D48,\"\")","v":""},{"$f":"IF(WorkingP!$B48=\"Church Running Expenses\",WorkingP!E48,\"\")","v":""},{"$f":"IF(WorkingP!$B48=\"Church Running Expenses\",WorkingP!F48,\"\")","v":""},{"$f":"IF(WorkingP!$B48=\"Church Running Expenses\",WorkingP!G48,\"\")","v":""},{"$f":"IF(WorkingP!$B48=\"Church Running Expenses\",WorkingP!H48,\"\")","v":""},{"$f":"IF(WorkingP!$B48=\"Church Running Expenses\",WorkingP!I48,\"\")","v":""},{"$f":"IF(WorkingP!$B48=\"Church Running Expenses\",WorkingP!J48,\"\")","v":""},{"$f":"IF(WorkingP!$B48=\"Church Running Expenses\",WorkingP!K48,\"\")","v":""},{"$f":"IF(WorkingP!$B48=\"Church Running Expenses\",WorkingP!L48,\"\")","v":""},{"$f":"IF(WorkingP!$B48=\"Church Running Expenses\",WorkingP!M48,\"\")","v":""},{"$f":"IF(WorkingP!$B48=\"Church Running Expenses\",WorkingP!N48,\"\")","v":""},{"$f":"IF(WorkingP!$B48=\"Church Running Expenses\",WorkingP!O48,\"\")","v":""},{"$f":"IF(WorkingP!$B48=\"Church Running Expenses\",WorkingP!P48,\"\")","v":""},{"$f":"IF(WorkingP!$B48=\"Church Running Expenses\",WorkingP!Q48,\"\")","v":""},{"$f":"IF(WorkingP!$B48=\"Church Running Expenses\",WorkingP!R48,\"\")","v":""},{"$f":"IF(WorkingP!$B48=\"Church Running Expenses\",WorkingP!S48,\"\")","v":""},{"$f":"IF(WorkingP!$B48=\"Church Running Expenses\",WorkingP!T48,\"\")","v":""},{"$f":"IF(WorkingP!$B48=\"Church Running Expenses\",WorkingP!U48,\"\")","v":""},{"$f":"IF(WorkingP!$B48=\"Church Running Expenses\",WorkingP!V48,\"\")","v":""},{"$f":"IF(WorkingP!$B48=\"Church Running Expenses\",WorkingP!W48,\"\")","v":""},{"$f":"IF(WorkingP!$B48=\"Church Running Expenses\",WorkingP!X48,\"\")","v":""},{"$f":"IF(WorkingP!$B48=\"Church Running Expenses\",WorkingP!Y48,\"\")","v":""},{"$f":"IF(Descriptions!K49=\"Church Running Expenses\",Descriptions!AB49,0)","v":0}]
[{"$f":"IF(Descriptions!K50=\"Church Running Expenses\",Descriptions!I50,0)","v":0},{"$f":"IF(WorkingP!$B49=\"Church Running Expenses\",WorkingP!D49,\"\")","v":""},{"$f":"IF(WorkingP!$B49=\"Church Running Expenses\",WorkingP!E49,\"\")","v":""},{"$f":"IF(WorkingP!$B49=\"Church Running Expenses\",WorkingP!F49,\"\")","v":""},{"$f":"IF(WorkingP!$B49=\"Church Running Expenses\",WorkingP!G49,\"\")","v":""},{"$f":"IF(WorkingP!$B49=\"Church Running Expenses\",WorkingP!H49,\"\")","v":""},{"$f":"IF(WorkingP!$B49=\"Church Running Expenses\",WorkingP!I49,\"\")","v":""},{"$f":"IF(WorkingP!$B49=\"Church Running Expenses\",WorkingP!J49,\"\")","v":""},{"$f":"IF(WorkingP!$B49=\"Church Running Expenses\",WorkingP!K49,\"\")","v":""},{"$f":"IF(WorkingP!$B49=\"Church Running Expenses\",WorkingP!L49,\"\")","v":""},{"$f":"IF(WorkingP!$B49=\"Church Running Expenses\",WorkingP!M49,\"\")","v":""},{"$f":"IF(WorkingP!$B49=\"Church Running Expenses\",WorkingP!N49,\"\")","v":""},{"$f":"IF(WorkingP!$B49=\"Church Running Expenses\",WorkingP!O49,\"\")","v":""},{"$f":"IF(WorkingP!$B49=\"Church Running Expenses\",WorkingP!P49,\"\")","v":""},{"$f":"IF(WorkingP!$B49=\"Church Running Expenses\",WorkingP!Q49,\"\")","v":""},{"$f":"IF(WorkingP!$B49=\"Church Running Expenses\",WorkingP!R49,\"\")","v":""},{"$f":"IF(WorkingP!$B49=\"Church Running Expenses\",WorkingP!S49,\"\")","v":""},{"$f":"IF(WorkingP!$B49=\"Church Running Expenses\",WorkingP!T49,\"\")","v":""},{"$f":"IF(WorkingP!$B49=\"Church Running Expenses\",WorkingP!U49,\"\")","v":""},{"$f":"IF(WorkingP!$B49=\"Church Running Expenses\",WorkingP!V49,\"\")","v":""},{"$f":"IF(WorkingP!$B49=\"Church Running Expenses\",WorkingP!W49,\"\")","v":""},{"$f":"IF(WorkingP!$B49=\"Church Running Expenses\",WorkingP!X49,\"\")","v":""},{"$f":"IF(WorkingP!$B49=\"Church Running Expenses\",WorkingP!Y49,\"\")","v":""},{"$f":"IF(Descriptions!K50=\"Church Running Expenses\",Descriptions!AB50,0)","v":0}]
[{"$f":"IF(Descriptions!K51=\"Church Running Expenses\",Descriptions!I51,0)","v":0},{"$f":"IF(WorkingP!$B50=\"Church Running Expenses\",WorkingP!D50,\"\")","v":""},{"$f":"IF(WorkingP!$B50=\"Church Running Expenses\",WorkingP!E50,\"\")","v":""},{"$f":"IF(WorkingP!$B50=\"Church Running Expenses\",WorkingP!F50,\"\")","v":""},{"$f":"IF(WorkingP!$B50=\"Church Running Expenses\",WorkingP!G50,\"\")","v":""},{"$f":"IF(WorkingP!$B50=\"Church Running Expenses\",WorkingP!H50,\"\")","v":""},{"$f":"IF(WorkingP!$B50=\"Church Running Expenses\",WorkingP!I50,\"\")","v":""},{"$f":"IF(WorkingP!$B50=\"Church Running Expenses\",WorkingP!J50,\"\")","v":""},{"$f":"IF(WorkingP!$B50=\"Church Running Expenses\",WorkingP!K50,\"\")","v":""},{"$f":"IF(WorkingP!$B50=\"Church Running Expenses\",WorkingP!L50,\"\")","v":""},{"$f":"IF(WorkingP!$B50=\"Church Running Expenses\",WorkingP!M50,\"\")","v":""},{"$f":"IF(WorkingP!$B50=\"Church Running Expenses\",WorkingP!N50,\"\")","v":""},{"$f":"IF(WorkingP!$B50=\"Church Running Expenses\",WorkingP!O50,\"\")","v":""},{"$f":"IF(WorkingP!$B50=\"Church Running Expenses\",WorkingP!P50,\"\")","v":""},{"$f":"IF(WorkingP!$B50=\"Church Running Expenses\",WorkingP!Q50,\"\")","v":""},{"$f":"IF(WorkingP!$B50=\"Church Running Expenses\",WorkingP!R50,\"\")","v":""},{"$f":"IF(WorkingP!$B50=\"Church Running Expenses\",WorkingP!S50,\"\")","v":""},{"$f":"IF(WorkingP!$B50=\"Church Running Expenses\",WorkingP!T50,\"\")","v":""},{"$f":"IF(WorkingP!$B50=\"Church Running Expenses\",WorkingP!U50,\"\")","v":""},{"$f":"IF(WorkingP!$B50=\"Church Running Expenses\",WorkingP!V50,\"\")","v":""},{"$f":"IF(WorkingP!$B50=\"Church Running Expenses\",WorkingP!W50,\"\")","v":""},{"$f":"IF(WorkingP!$B50=\"Church Running Expenses\",WorkingP!X50,\"\")","v":""},{"$f":"IF(WorkingP!$B50=\"Church Running Expenses\",WorkingP!Y50,\"\")","v":""},{"$f":"IF(Descriptions!K51=\"Church Running Expenses\",Descriptions!AB51,0)","v":0}]
[{"$f":"IF(Descriptions!K52=\"Church Running Expenses\",Descriptions!I52,0)","v":0},{"$f":"IF(WorkingP!$B51=\"Church Running Expenses\",WorkingP!D51,\"\")","v":""},{"$f":"IF(WorkingP!$B51=\"Church Running Expenses\",WorkingP!E51,\"\")","v":""},{"$f":"IF(WorkingP!$B51=\"Church Running Expenses\",WorkingP!F51,\"\")","v":""},{"$f":"IF(WorkingP!$B51=\"Church Running Expenses\",WorkingP!G51,\"\")","v":""},{"$f":"IF(WorkingP!$B51=\"Church Running Expenses\",WorkingP!H51,\"\")","v":""},{"$f":"IF(WorkingP!$B51=\"Church Running Expenses\",WorkingP!I51,\"\")","v":""},{"$f":"IF(WorkingP!$B51=\"Church Running Expenses\",WorkingP!J51,\"\")","v":""},{"$f":"IF(WorkingP!$B51=\"Church Running Expenses\",WorkingP!K51,\"\")","v":""},{"$f":"IF(WorkingP!$B51=\"Church Running Expenses\",WorkingP!L51,\"\")","v":""},{"$f":"IF(WorkingP!$B51=\"Church Running Expenses\",WorkingP!M51,\"\")","v":""},{"$f":"IF(WorkingP!$B51=\"Church Running Expenses\",WorkingP!N51,\"\")","v":""},{"$f":"IF(WorkingP!$B51=\"Church Running Expenses\",WorkingP!O51,\"\")","v":""},{"$f":"IF(WorkingP!$B51=\"Church Running Expenses\",WorkingP!P51,\"\")","v":""},{"$f":"IF(WorkingP!$B51=\"Church Running Expenses\",WorkingP!Q51,\"\")","v":""},{"$f":"IF(WorkingP!$B51=\"Church Running Expenses\",WorkingP!R51,\"\")","v":""},{"$f":"IF(WorkingP!$B51=\"Church Running Expenses\",WorkingP!S51,\"\")","v":""},{"$f":"IF(WorkingP!$B51=\"Church Running Expenses\",WorkingP!T51,\"\")","v":""},{"$f":"IF(WorkingP!$B51=\"Church Running Expenses\",WorkingP!U51,\"\")","v":""},{"$f":"IF(WorkingP!$B51=\"Church Running Expenses\",WorkingP!V51,\"\")","v":""},{"$f":"IF(WorkingP!$B51=\"Church Running Expenses\",WorkingP!W51,\"\")","v":""},{"$f":"IF(WorkingP!$B51=\"Church Running Expenses\",WorkingP!X51,\"\")","v":""},{"$f":"IF(WorkingP!$B51=\"Church Running Expenses\",WorkingP!Y51,\"\")","v":""},{"$f":"IF(Descriptions!K52=\"Church Running Expenses\",Descriptions!AB52,0)","v":0}]
[{"$f":"IF(Descriptions!K53=\"Church Running Expenses\",Descriptions!I53,0)","v":0},{"$f":"IF(WorkingP!$B52=\"Church Running Expenses\",WorkingP!D52,\"\")","v":""},{"$f":"IF(WorkingP!$B52=\"Church Running Expenses\",WorkingP!E52,\"\")","v":""},{"$f":"IF(WorkingP!$B52=\"Church Running Expenses\",WorkingP!F52,\"\")","v":""},{"$f":"IF(WorkingP!$B52=\"Church Running Expenses\",WorkingP!G52,\"\")","v":""},{"$f":"IF(WorkingP!$B52=\"Church Running Expenses\",WorkingP!H52,\"\")","v":""},{"$f":"IF(WorkingP!$B52=\"Church Running Expenses\",WorkingP!I52,\"\")","v":""},{"$f":"IF(WorkingP!$B52=\"Church Running Expenses\",WorkingP!J52,\"\")","v":""},{"$f":"IF(WorkingP!$B52=\"Church Running Expenses\",WorkingP!K52,\"\")","v":""},{"$f":"IF(WorkingP!$B52=\"Church Running Expenses\",WorkingP!L52,\"\")","v":""},{"$f":"IF(WorkingP!$B52=\"Church Running Expenses\",WorkingP!M52,\"\")","v":""},{"$f":"IF(WorkingP!$B52=\"Church Running Expenses\",WorkingP!N52,\"\")","v":""},{"$f":"IF(WorkingP!$B52=\"Church Running Expenses\",WorkingP!O52,\"\")","v":""},{"$f":"IF(WorkingP!$B52=\"Church Running Expenses\",WorkingP!P52,\"\")","v":""},{"$f":"IF(WorkingP!$B52=\"Church Running Expenses\",WorkingP!Q52,\"\")","v":""},{"$f":"IF(WorkingP!$B52=\"Church Running Expenses\",WorkingP!R52,\"\")","v":""},{"$f":"IF(WorkingP!$B52=\"Church Running Expenses\",WorkingP!S52,\"\")","v":""},{"$f":"IF(WorkingP!$B52=\"Church Running Expenses\",WorkingP!T52,\"\")","v":""},{"$f":"IF(WorkingP!$B52=\"Church Running Expenses\",WorkingP!U52,\"\")","v":""},{"$f":"IF(WorkingP!$B52=\"Church Running Expenses\",WorkingP!V52,\"\")","v":""},{"$f":"IF(WorkingP!$B52=\"Church Running Expenses\",WorkingP!W52,\"\")","v":""},{"$f":"IF(WorkingP!$B52=\"Church Running Expenses\",WorkingP!X52,\"\")","v":""},{"$f":"IF(WorkingP!$B52=\"Church Running Expenses\",WorkingP!Y52,\"\")","v":""},{"$f":"IF(Descriptions!K53=\"Church Running Expenses\",Descriptions!AB53,0)","v":0}]
[{"$f":"IF(Descriptions!K54=\"Church Running Expenses\",Descriptions!I54,0)","v":0},{"$f":"IF(WorkingP!$B53=\"Church Running Expenses\",WorkingP!D53,\"\")","v":""},{"$f":"IF(WorkingP!$B53=\"Church Running Expenses\",WorkingP!E53,\"\")","v":""},{"$f":"IF(WorkingP!$B53=\"Church Running Expenses\",WorkingP!F53,\"\")","v":""},{"$f":"IF(WorkingP!$B53=\"Church Running Expenses\",WorkingP!G53,\"\")","v":""},{"$f":"IF(WorkingP!$B53=\"Church Running Expenses\",WorkingP!H53,\"\")","v":""},{"$f":"IF(WorkingP!$B53=\"Church Running Expenses\",WorkingP!I53,\"\")","v":""},{"$f":"IF(WorkingP!$B53=\"Church Running Expenses\",WorkingP!J53,\"\")","v":""},{"$f":"IF(WorkingP!$B53=\"Church Running Expenses\",WorkingP!K53,\"\")","v":""},{"$f":"IF(WorkingP!$B53=\"Church Running Expenses\",WorkingP!L53,\"\")","v":""},{"$f":"IF(WorkingP!$B53=\"Church Running Expenses\",WorkingP!M53,\"\")","v":""},{"$f":"IF(WorkingP!$B53=\"Church Running Expenses\",WorkingP!N53,\"\")","v":""},{"$f":"IF(WorkingP!$B53=\"Church Running Expenses\",WorkingP!O53,\"\")","v":""},{"$f":"IF(WorkingP!$B53=\"Church Running Expenses\",WorkingP!P53,\"\")","v":""},{"$f":"IF(WorkingP!$B53=\"Church Running Expenses\",WorkingP!Q53,\"\")","v":""},{"$f":"IF(WorkingP!$B53=\"Church Running Expenses\",WorkingP!R53,\"\")","v":""},{"$f":"IF(WorkingP!$B53=\"Church Running Expenses\",WorkingP!S53,\"\")","v":""},{"$f":"IF(WorkingP!$B53=\"Church Running Expenses\",WorkingP!T53,\"\")","v":""},{"$f":"IF(WorkingP!$B53=\"Church Running Expenses\",WorkingP!U53,\"\")","v":""},{"$f":"IF(WorkingP!$B53=\"Church Running Expenses\",WorkingP!V53,\"\")","v":""},{"$f":"IF(WorkingP!$B53=\"Church Running Expenses\",WorkingP!W53,\"\")","v":""},{"$f":"IF(WorkingP!$B53=\"Church Running Expenses\",WorkingP!X53,\"\")","v":""},{"$f":"IF(WorkingP!$B53=\"Church Running Expenses\",WorkingP!Y53,\"\")","v":""},{"$f":"IF(Descriptions!K54=\"Church Running Expenses\",Descriptions!AB54,0)","v":0}]
[{"$f":"IF(Descriptions!K55=\"Church Running Expenses\",Descriptions!I55,0)","v":0},{"$f":"IF(WorkingP!$B54=\"Church Running Expenses\",WorkingP!D54,\"\")","v":""},{"$f":"IF(WorkingP!$B54=\"Church Running Expenses\",WorkingP!E54,\"\")","v":""},{"$f":"IF(WorkingP!$B54=\"Church Running Expenses\",WorkingP!F54,\"\")","v":""},{"$f":"IF(WorkingP!$B54=\"Church Running Expenses\",WorkingP!G54,\"\")","v":""},{"$f":"IF(WorkingP!$B54=\"Church Running Expenses\",WorkingP!H54,\"\")","v":""},{"$f":"IF(WorkingP!$B54=\"Church Running Expenses\",WorkingP!I54,\"\")","v":""},{"$f":"IF(WorkingP!$B54=\"Church Running Expenses\",WorkingP!J54,\"\")","v":""},{"$f":"IF(WorkingP!$B54=\"Church Running Expenses\",WorkingP!K54,\"\")","v":""},{"$f":"IF(WorkingP!$B54=\"Church Running Expenses\",WorkingP!L54,\"\")","v":""},{"$f":"IF(WorkingP!$B54=\"Church Running Expenses\",WorkingP!M54,\"\")","v":""},{"$f":"IF(WorkingP!$B54=\"Church Running Expenses\",WorkingP!N54,\"\")","v":""},{"$f":"IF(WorkingP!$B54=\"Church Running Expenses\",WorkingP!O54,\"\")","v":""},{"$f":"IF(WorkingP!$B54=\"Church Running Expenses\",WorkingP!P54,\"\")","v":""},{"$f":"IF(WorkingP!$B54=\"Church Running Expenses\",WorkingP!Q54,\"\")","v":""},{"$f":"IF(WorkingP!$B54=\"Church Running Expenses\",WorkingP!R54,\"\")","v":""},{"$f":"IF(WorkingP!$B54=\"Church Running Expenses\",WorkingP!S54,\"\")","v":""},{"$f":"IF(WorkingP!$B54=\"Church Running Expenses\",WorkingP!T54,\"\")","v":""},{"$f":"IF(WorkingP!$B54=\"Church Running Expenses\",WorkingP!U54,\"\")","v":""},{"$f":"IF(WorkingP!$B54=\"Church Running Expenses\",WorkingP!V54,\"\")","v":""},{"$f":"IF(WorkingP!$B54=\"Church Running Expenses\",WorkingP!W54,\"\")","v":""},{"$f":"IF(WorkingP!$B54=\"Church Running Expenses\",WorkingP!X54,\"\")","v":""},{"$f":"IF(WorkingP!$B54=\"Church Running Expenses\",WorkingP!Y54,\"\")","v":""},{"$f":"IF(Descriptions!K55=\"Church Running Expenses\",Descriptions!AB55,0)","v":0}]
[{"$f":"IF(Descriptions!K56=\"Church Running Expenses\",Descriptions!I56,0)","v":0},{"$f":"IF(WorkingP!$B55=\"Church Running Expenses\",WorkingP!D55,\"\")","v":""},{"$f":"IF(WorkingP!$B55=\"Church Running Expenses\",WorkingP!E55,\"\")","v":""},{"$f":"IF(WorkingP!$B55=\"Church Running Expenses\",WorkingP!F55,\"\")","v":""},{"$f":"IF(WorkingP!$B55=\"Church Running Expenses\",WorkingP!G55,\"\")","v":""},{"$f":"IF(WorkingP!$B55=\"Church Running Expenses\",WorkingP!H55,\"\")","v":""},{"$f":"IF(WorkingP!$B55=\"Church Running Expenses\",WorkingP!I55,\"\")","v":""},{"$f":"IF(WorkingP!$B55=\"Church Running Expenses\",WorkingP!J55,\"\")","v":""},{"$f":"IF(WorkingP!$B55=\"Church Running Expenses\",WorkingP!K55,\"\")","v":""},{"$f":"IF(WorkingP!$B55=\"Church Running Expenses\",WorkingP!L55,\"\")","v":""},{"$f":"IF(WorkingP!$B55=\"Church Running Expenses\",WorkingP!M55,\"\")","v":""},{"$f":"IF(WorkingP!$B55=\"Church Running Expenses\",WorkingP!N55,\"\")","v":""},{"$f":"IF(WorkingP!$B55=\"Church Running Expenses\",WorkingP!O55,\"\")","v":""},{"$f":"IF(WorkingP!$B55=\"Church Running Expenses\",WorkingP!P55,\"\")","v":""},{"$f":"IF(WorkingP!$B55=\"Church Running Expenses\",WorkingP!Q55,\"\")","v":""},{"$f":"IF(WorkingP!$B55=\"Church Running Expenses\",WorkingP!R55,\"\")","v":""},{"$f":"IF(WorkingP!$B55=\"Church Running Expenses\",WorkingP!S55,\"\")","v":""},{"$f":"IF(WorkingP!$B55=\"Church Running Expenses\",WorkingP!T55,\"\")","v":""},{"$f":"IF(WorkingP!$B55=\"Church Running Expenses\",WorkingP!U55,\"\")","v":""},{"$f":"IF(WorkingP!$B55=\"Church Running Expenses\",WorkingP!V55,\"\")","v":""},{"$f":"IF(WorkingP!$B55=\"Church Running Expenses\",WorkingP!W55,\"\")","v":""},{"$f":"IF(WorkingP!$B55=\"Church Running Expenses\",WorkingP!X55,\"\")","v":""},{"$f":"IF(WorkingP!$B55=\"Church Running Expenses\",WorkingP!Y55,\"\")","v":""},{"$f":"IF(Descriptions!K56=\"Church Running Expenses\",Descriptions!AB56,0)","v":0}]
[{"$f":"IF(Descriptions!K57=\"Church Running Expenses\",Descriptions!I57,0)","v":0},{"$f":"IF(WorkingP!$B56=\"Church Running Expenses\",WorkingP!D56,\"\")","v":""},{"$f":"IF(WorkingP!$B56=\"Church Running Expenses\",WorkingP!E56,\"\")","v":""},{"$f":"IF(WorkingP!$B56=\"Church Running Expenses\",WorkingP!F56,\"\")","v":""},{"$f":"IF(WorkingP!$B56=\"Church Running Expenses\",WorkingP!G56,\"\")","v":""},{"$f":"IF(WorkingP!$B56=\"Church Running Expenses\",WorkingP!H56,\"\")","v":""},{"$f":"IF(WorkingP!$B56=\"Church Running Expenses\",WorkingP!I56,\"\")","v":""},{"$f":"IF(WorkingP!$B56=\"Church Running Expenses\",WorkingP!J56,\"\")","v":""},{"$f":"IF(WorkingP!$B56=\"Church Running Expenses\",WorkingP!K56,\"\")","v":""},{"$f":"IF(WorkingP!$B56=\"Church Running Expenses\",WorkingP!L56,\"\")","v":""},{"$f":"IF(WorkingP!$B56=\"Church Running Expenses\",WorkingP!M56,\"\")","v":""},{"$f":"IF(WorkingP!$B56=\"Church Running Expenses\",WorkingP!N56,\"\")","v":""},{"$f":"IF(WorkingP!$B56=\"Church Running Expenses\",WorkingP!O56,\"\")","v":""},{"$f":"IF(WorkingP!$B56=\"Church Running Expenses\",WorkingP!P56,\"\")","v":""},{"$f":"IF(WorkingP!$B56=\"Church Running Expenses\",WorkingP!Q56,\"\")","v":""},{"$f":"IF(WorkingP!$B56=\"Church Running Expenses\",WorkingP!R56,\"\")","v":""},{"$f":"IF(WorkingP!$B56=\"Church Running Expenses\",WorkingP!S56,\"\")","v":""},{"$f":"IF(WorkingP!$B56=\"Church Running Expenses\",WorkingP!T56,\"\")","v":""},{"$f":"IF(WorkingP!$B56=\"Church Running Expenses\",WorkingP!U56,\"\")","v":""},{"$f":"IF(WorkingP!$B56=\"Church Running Expenses\",WorkingP!V56,\"\")","v":""},{"$f":"IF(WorkingP!$B56=\"Church Running Expenses\",WorkingP!W56,\"\")","v":""},{"$f":"IF(WorkingP!$B56=\"Church Running Expenses\",WorkingP!X56,\"\")","v":""},{"$f":"IF(WorkingP!$B56=\"Church Running Expenses\",WorkingP!Y56,\"\")","v":""},{"$f":"IF(Descriptions!K57=\"Church Running Expenses\",Descriptions!AB57,0)","v":0}]
[{"$f":"IF(Descriptions!K58=\"Church Running Expenses\",Descriptions!I58,0)","v":0},{"$f":"IF(WorkingP!$B57=\"Church Running Expenses\",WorkingP!D57,\"\")","v":""},{"$f":"IF(WorkingP!$B57=\"Church Running Expenses\",WorkingP!E57,\"\")","v":""},{"$f":"IF(WorkingP!$B57=\"Church Running Expenses\",WorkingP!F57,\"\")","v":""},{"$f":"IF(WorkingP!$B57=\"Church Running Expenses\",WorkingP!G57,\"\")","v":""},{"$f":"IF(WorkingP!$B57=\"Church Running Expenses\",WorkingP!H57,\"\")","v":""},{"$f":"IF(WorkingP!$B57=\"Church Running Expenses\",WorkingP!I57,\"\")","v":""},{"$f":"IF(WorkingP!$B57=\"Church Running Expenses\",WorkingP!J57,\"\")","v":""},{"$f":"IF(WorkingP!$B57=\"Church Running Expenses\",WorkingP!K57,\"\")","v":""},{"$f":"IF(WorkingP!$B57=\"Church Running Expenses\",WorkingP!L57,\"\")","v":""},{"$f":"IF(WorkingP!$B57=\"Church Running Expenses\",WorkingP!M57,\"\")","v":""},{"$f":"IF(WorkingP!$B57=\"Church Running Expenses\",WorkingP!N57,\"\")","v":""},{"$f":"IF(WorkingP!$B57=\"Church Running Expenses\",WorkingP!O57,\"\")","v":""},{"$f":"IF(WorkingP!$B57=\"Church Running Expenses\",WorkingP!P57,\"\")","v":""},{"$f":"IF(WorkingP!$B57=\"Church Running Expenses\",WorkingP!Q57,\"\")","v":""},{"$f":"IF(WorkingP!$B57=\"Church Running Expenses\",WorkingP!R57,\"\")","v":""},{"$f":"IF(WorkingP!$B57=\"Church Running Expenses\",WorkingP!S57,\"\")","v":""},{"$f":"IF(WorkingP!$B57=\"Church Running Expenses\",WorkingP!T57,\"\")","v":""},{"$f":"IF(WorkingP!$B57=\"Church Running Expenses\",WorkingP!U57,\"\")","v":""},{"$f":"IF(WorkingP!$B57=\"Church Running Expenses\",WorkingP!V57,\"\")","v":""},{"$f":"IF(WorkingP!$B57=\"Church Running Expenses\",WorkingP!W57,\"\")","v":""},{"$f":"IF(WorkingP!$B57=\"Church Running Expenses\",WorkingP!X57,\"\")","v":""},{"$f":"IF(WorkingP!$B57=\"Church Running Expenses\",WorkingP!Y57,\"\")","v":""},{"$f":"IF(Descriptions!K58=\"Church Running Expenses\",Descriptions!AB58,0)","v":0}]
[{"$f":"IF(Descriptions!K59=\"Church Running Expenses\",Descriptions!I59,0)","v":0},{"$f":"IF(WorkingP!$B58=\"Church Running Expenses\",WorkingP!D58,\"\")","v":""},{"$f":"IF(WorkingP!$B58=\"Church Running Expenses\",WorkingP!E58,\"\")","v":""},{"$f":"IF(WorkingP!$B58=\"Church Running Expenses\",WorkingP!F58,\"\")","v":""},{"$f":"IF(WorkingP!$B58=\"Church Running Expenses\",WorkingP!G58,\"\")","v":""},{"$f":"IF(WorkingP!$B58=\"Church Running Expenses\",WorkingP!H58,\"\")","v":""},{"$f":"IF(WorkingP!$B58=\"Church Running Expenses\",WorkingP!I58,\"\")","v":""},{"$f":"IF(WorkingP!$B58=\"Church Running Expenses\",WorkingP!J58,\"\")","v":""},{"$f":"IF(WorkingP!$B58=\"Church Running Expenses\",WorkingP!K58,\"\")","v":""},{"$f":"IF(WorkingP!$B58=\"Church Running Expenses\",WorkingP!L58,\"\")","v":""},{"$f":"IF(WorkingP!$B58=\"Church Running Expenses\",WorkingP!M58,\"\")","v":""},{"$f":"IF(WorkingP!$B58=\"Church Running Expenses\",WorkingP!N58,\"\")","v":""},{"$f":"IF(WorkingP!$B58=\"Church Running Expenses\",WorkingP!O58,\"\")","v":""},{"$f":"IF(WorkingP!$B58=\"Church Running Expenses\",WorkingP!P58,\"\")","v":""},{"$f":"IF(WorkingP!$B58=\"Church Running Expenses\",WorkingP!Q58,\"\")","v":""},{"$f":"IF(WorkingP!$B58=\"Church Running Expenses\",WorkingP!R58,\"\")","v":""},{"$f":"IF(WorkingP!$B58=\"Church Running Expenses\",WorkingP!S58,\"\")","v":""},{"$f":"IF(WorkingP!$B58=\"Church Running Expenses\",WorkingP!T58,\"\")","v":""},{"$f":"IF(WorkingP!$B58=\"Church Running Expenses\",WorkingP!U58,\"\")","v":""},{"$f":"IF(WorkingP!$B58=\"Church Running Expenses\",WorkingP!V58,\"\")","v":""},{"$f":"IF(WorkingP!$B58=\"Church Running Expenses\",WorkingP!W58,\"\")","v":""},{"$f":"IF(WorkingP!$B58=\"Church Running Expenses\",WorkingP!X58,\"\")","v":""},{"$f":"IF(WorkingP!$B58=\"Church Running Expenses\",WorkingP!Y58,\"\")","v":""},{"$f":"IF(Descriptions!K59=\"Church Running Expenses\",Descriptions!AB59,0)","v":0}]
[{"$f":"IF(Descriptions!K60=\"Church Running Expenses\",Descriptions!I60,0)","v":0},{"$f":"IF(WorkingP!$B59=\"Church Running Expenses\",WorkingP!D59,\"\")","v":""},{"$f":"IF(WorkingP!$B59=\"Church Running Expenses\",WorkingP!E59,\"\")","v":""},{"$f":"IF(WorkingP!$B59=\"Church Running Expenses\",WorkingP!F59,\"\")","v":""},{"$f":"IF(WorkingP!$B59=\"Church Running Expenses\",WorkingP!G59,\"\")","v":""},{"$f":"IF(WorkingP!$B59=\"Church Running Expenses\",WorkingP!H59,\"\")","v":""},{"$f":"IF(WorkingP!$B59=\"Church Running Expenses\",WorkingP!I59,\"\")","v":""},{"$f":"IF(WorkingP!$B59=\"Church Running Expenses\",WorkingP!J59,\"\")","v":""},{"$f":"IF(WorkingP!$B59=\"Church Running Expenses\",WorkingP!K59,\"\")","v":""},{"$f":"IF(WorkingP!$B59=\"Church Running Expenses\",WorkingP!L59,\"\")","v":""},{"$f":"IF(WorkingP!$B59=\"Church Running Expenses\",WorkingP!M59,\"\")","v":""},{"$f":"IF(WorkingP!$B59=\"Church Running Expenses\",WorkingP!N59,\"\")","v":""},{"$f":"IF(WorkingP!$B59=\"Church Running Expenses\",WorkingP!O59,\"\")","v":""},{"$f":"IF(WorkingP!$B59=\"Church Running Expenses\",WorkingP!P59,\"\")","v":""},{"$f":"IF(WorkingP!$B59=\"Church Running Expenses\",WorkingP!Q59,\"\")","v":""},{"$f":"IF(WorkingP!$B59=\"Church Running Expenses\",WorkingP!R59,\"\")","v":""},{"$f":"IF(WorkingP!$B59=\"Church Running Expenses\",WorkingP!S59,\"\")","v":""},{"$f":"IF(WorkingP!$B59=\"Church Running Expenses\",WorkingP!T59,\"\")","v":""},{"$f":"IF(WorkingP!$B59=\"Church Running Expenses\",WorkingP!U59,\"\")","v":""},{"$f":"IF(WorkingP!$B59=\"Church Running Expenses\",WorkingP!V59,\"\")","v":""},{"$f":"IF(WorkingP!$B59=\"Church Running Expenses\",WorkingP!W59,\"\")","v":""},{"$f":"IF(WorkingP!$B59=\"Church Running Expenses\",WorkingP!X59,\"\")","v":""},{"$f":"IF(WorkingP!$B59=\"Church Running Expenses\",WorkingP!Y59,\"\")","v":""},{"$f":"IF(Descriptions!K60=\"Church Running Expenses\",Descriptions!AB60,0)","v":0}]
[{"$f":"IF(Descriptions!K61=\"Church Running Expenses\",Descriptions!I61,0)","v":0},{"$f":"IF(WorkingP!$B60=\"Church Running Expenses\",WorkingP!D60,\"\")","v":""},{"$f":"IF(WorkingP!$B60=\"Church Running Expenses\",WorkingP!E60,\"\")","v":""},{"$f":"IF(WorkingP!$B60=\"Church Running Expenses\",WorkingP!F60,\"\")","v":""},{"$f":"IF(WorkingP!$B60=\"Church Running Expenses\",WorkingP!G60,\"\")","v":""},{"$f":"IF(WorkingP!$B60=\"Church Running Expenses\",WorkingP!H60,\"\")","v":""},{"$f":"IF(WorkingP!$B60=\"Church Running Expenses\",WorkingP!I60,\"\")","v":""},{"$f":"IF(WorkingP!$B60=\"Church Running Expenses\",WorkingP!J60,\"\")","v":""},{"$f":"IF(WorkingP!$B60=\"Church Running Expenses\",WorkingP!K60,\"\")","v":""},{"$f":"IF(WorkingP!$B60=\"Church Running Expenses\",WorkingP!L60,\"\")","v":""},{"$f":"IF(WorkingP!$B60=\"Church Running Expenses\",WorkingP!M60,\"\")","v":""},{"$f":"IF(WorkingP!$B60=\"Church Running Expenses\",WorkingP!N60,\"\")","v":""},{"$f":"IF(WorkingP!$B60=\"Church Running Expenses\",WorkingP!O60,\"\")","v":""},{"$f":"IF(WorkingP!$B60=\"Church Running Expenses\",WorkingP!P60,\"\")","v":""},{"$f":"IF(WorkingP!$B60=\"Church Running Expenses\",WorkingP!Q60,\"\")","v":""},{"$f":"IF(WorkingP!$B60=\"Church Running Expenses\",WorkingP!R60,\"\")","v":""},{"$f":"IF(WorkingP!$B60=\"Church Running Expenses\",WorkingP!S60,\"\")","v":""},{"$f":"IF(WorkingP!$B60=\"Church Running Expenses\",WorkingP!T60,\"\")","v":""},{"$f":"IF(WorkingP!$B60=\"Church Running Expenses\",WorkingP!U60,\"\")","v":""},{"$f":"IF(WorkingP!$B60=\"Church Running Expenses\",WorkingP!V60,\"\")","v":""},{"$f":"IF(WorkingP!$B60=\"Church Running Expenses\",WorkingP!W60,\"\")","v":""},{"$f":"IF(WorkingP!$B60=\"Church Running Expenses\",WorkingP!X60,\"\")","v":""},{"$f":"IF(WorkingP!$B60=\"Church Running Expenses\",WorkingP!Y60,\"\")","v":""},{"$f":"IF(Descriptions!K61=\"Church Running Expenses\",Descriptions!AB61,0)","v":0}]
[{"$f":"IF(Descriptions!K62=\"Church Running Expenses\",Descriptions!I62,0)","v":0},{"$f":"IF(WorkingP!$B61=\"Church Running Expenses\",WorkingP!D61,\"\")","v":""},{"$f":"IF(WorkingP!$B61=\"Church Running Expenses\",WorkingP!E61,\"\")","v":""},{"$f":"IF(WorkingP!$B61=\"Church Running Expenses\",WorkingP!F61,\"\")","v":""},{"$f":"IF(WorkingP!$B61=\"Church Running Expenses\",WorkingP!G61,\"\")","v":""},{"$f":"IF(WorkingP!$B61=\"Church Running Expenses\",WorkingP!H61,\"\")","v":""},{"$f":"IF(WorkingP!$B61=\"Church Running Expenses\",WorkingP!I61,\"\")","v":""},{"$f":"IF(WorkingP!$B61=\"Church Running Expenses\",WorkingP!J61,\"\")","v":""},{"$f":"IF(WorkingP!$B61=\"Church Running Expenses\",WorkingP!K61,\"\")","v":""},{"$f":"IF(WorkingP!$B61=\"Church Running Expenses\",WorkingP!L61,\"\")","v":""},{"$f":"IF(WorkingP!$B61=\"Church Running Expenses\",WorkingP!M61,\"\")","v":""},{"$f":"IF(WorkingP!$B61=\"Church Running Expenses\",WorkingP!N61,\"\")","v":""},{"$f":"IF(WorkingP!$B61=\"Church Running Expenses\",WorkingP!O61,\"\")","v":""},{"$f":"IF(WorkingP!$B61=\"Church Running Expenses\",WorkingP!P61,\"\")","v":""},{"$f":"IF(WorkingP!$B61=\"Church Running Expenses\",WorkingP!Q61,\"\")","v":""},{"$f":"IF(WorkingP!$B61=\"Church Running Expenses\",WorkingP!R61,\"\")","v":""},{"$f":"IF(WorkingP!$B61=\"Church Running Expenses\",WorkingP!S61,\"\")","v":""},{"$f":"IF(WorkingP!$B61=\"Church Running Expenses\",WorkingP!T61,\"\")","v":""},{"$f":"IF(WorkingP!$B61=\"Church Running Expenses\",WorkingP!U61,\"\")","v":""},{"$f":"IF(WorkingP!$B61=\"Church Running Expenses\",WorkingP!V61,\"\")","v":""},{"$f":"IF(WorkingP!$B61=\"Church Running Expenses\",WorkingP!W61,\"\")","v":""},{"$f":"IF(WorkingP!$B61=\"Church Running Expenses\",WorkingP!X61,\"\")","v":""},{"$f":"IF(WorkingP!$B61=\"Church Running Expenses\",WorkingP!Y61,\"\")","v":""},{"$f":"IF(Descriptions!K62=\"Church Running Expenses\",Descriptions!AB62,0)","v":0}]
[{"$f":"IF(Descriptions!K63=\"Church Running Expenses\",Descriptions!I63,0)","v":0},{"$f":"IF(WorkingP!$B62=\"Church Running Expenses\",WorkingP!D62,\"\")","v":""},{"$f":"IF(WorkingP!$B62=\"Church Running Expenses\",WorkingP!E62,\"\")","v":""},{"$f":"IF(WorkingP!$B62=\"Church Running Expenses\",WorkingP!F62,\"\")","v":""},{"$f":"IF(WorkingP!$B62=\"Church Running Expenses\",WorkingP!G62,\"\")","v":""},{"$f":"IF(WorkingP!$B62=\"Church Running Expenses\",WorkingP!H62,\"\")","v":""},{"$f":"IF(WorkingP!$B62=\"Church Running Expenses\",WorkingP!I62,\"\")","v":""},{"$f":"IF(WorkingP!$B62=\"Church Running Expenses\",WorkingP!J62,\"\")","v":""},{"$f":"IF(WorkingP!$B62=\"Church Running Expenses\",WorkingP!K62,\"\")","v":""},{"$f":"IF(WorkingP!$B62=\"Church Running Expenses\",WorkingP!L62,\"\")","v":""},{"$f":"IF(WorkingP!$B62=\"Church Running Expenses\",WorkingP!M62,\"\")","v":""},{"$f":"IF(WorkingP!$B62=\"Church Running Expenses\",WorkingP!N62,\"\")","v":""},{"$f":"IF(WorkingP!$B62=\"Church Running Expenses\",WorkingP!O62,\"\")","v":""},{"$f":"IF(WorkingP!$B62=\"Church Running Expenses\",WorkingP!P62,\"\")","v":""},{"$f":"IF(WorkingP!$B62=\"Church Running Expenses\",WorkingP!Q62,\"\")","v":""},{"$f":"IF(WorkingP!$B62=\"Church Running Expenses\",WorkingP!R62,\"\")","v":""},{"$f":"IF(WorkingP!$B62=\"Church Running Expenses\",WorkingP!S62,\"\")","v":""},{"$f":"IF(WorkingP!$B62=\"Church Running Expenses\",WorkingP!T62,\"\")","v":""},{"$f":"IF(WorkingP!$B62=\"Church Running Expenses\",WorkingP!U62,\"\")","v":""},{"$f":"IF(WorkingP!$B62=\"Church Running Expenses\",WorkingP!V62,\"\")","v":""},{"$f":"IF(WorkingP!$B62=\"Church Running Expenses\",WorkingP!W62,\"\")","v":""},{"$f":"IF(WorkingP!$B62=\"Church Running Expenses\",WorkingP!X62,\"\")","v":""},{"$f":"IF(WorkingP!$B62=\"Church Running Expenses\",WorkingP!Y62,\"\")","v":""},{"$f":"IF(Descriptions!K63=\"Church Running Expenses\",Descriptions!AB63,0)","v":0}]
[{"$f":"IF(Descriptions!K64=\"Church Running Expenses\",Descriptions!I64,0)","v":0},{"$f":"IF(WorkingP!$B63=\"Church Running Expenses\",WorkingP!D63,\"\")","v":""},{"$f":"IF(WorkingP!$B63=\"Church Running Expenses\",WorkingP!E63,\"\")","v":""},{"$f":"IF(WorkingP!$B63=\"Church Running Expenses\",WorkingP!F63,\"\")","v":""},{"$f":"IF(WorkingP!$B63=\"Church Running Expenses\",WorkingP!G63,\"\")","v":""},{"$f":"IF(WorkingP!$B63=\"Church Running Expenses\",WorkingP!H63,\"\")","v":""},{"$f":"IF(WorkingP!$B63=\"Church Running Expenses\",WorkingP!I63,\"\")","v":""},{"$f":"IF(WorkingP!$B63=\"Church Running Expenses\",WorkingP!J63,\"\")","v":""},{"$f":"IF(WorkingP!$B63=\"Church Running Expenses\",WorkingP!K63,\"\")","v":""},{"$f":"IF(WorkingP!$B63=\"Church Running Expenses\",WorkingP!L63,\"\")","v":""},{"$f":"IF(WorkingP!$B63=\"Church Running Expenses\",WorkingP!M63,\"\")","v":""},{"$f":"IF(WorkingP!$B63=\"Church Running Expenses\",WorkingP!N63,\"\")","v":""},{"$f":"IF(WorkingP!$B63=\"Church Running Expenses\",WorkingP!O63,\"\")","v":""},{"$f":"IF(WorkingP!$B63=\"Church Running Expenses\",WorkingP!P63,\"\")","v":""},{"$f":"IF(WorkingP!$B63=\"Church Running Expenses\",WorkingP!Q63,\"\")","v":""},{"$f":"IF(WorkingP!$B63=\"Church Running Expenses\",WorkingP!R63,\"\")","v":""},{"$f":"IF(WorkingP!$B63=\"Church Running Expenses\",WorkingP!S63,\"\")","v":""},{"$f":"IF(WorkingP!$B63=\"Church Running Expenses\",WorkingP!T63,\"\")","v":""},{"$f":"IF(WorkingP!$B63=\"Church Running Expenses\",WorkingP!U63,\"\")","v":""},{"$f":"IF(WorkingP!$B63=\"Church Running Expenses\",WorkingP!V63,\"\")","v":""},{"$f":"IF(WorkingP!$B63=\"Church Running Expenses\",WorkingP!W63,\"\")","v":""},{"$f":"IF(WorkingP!$B63=\"Church Running Expenses\",WorkingP!X63,\"\")","v":""},{"$f":"IF(WorkingP!$B63=\"Church Running Expenses\",WorkingP!Y63,\"\")","v":""},{"$f":"IF(Descriptions!K64=\"Church Running Expenses\",Descriptions!AB64,0)","v":0}]
[{"$f":"IF(Descriptions!K65=\"Church Running Expenses\",Descriptions!I65,0)","v":0},{"$f":"IF(WorkingP!$B64=\"Church Running Expenses\",WorkingP!D64,\"\")","v":""},{"$f":"IF(WorkingP!$B64=\"Church Running Expenses\",WorkingP!E64,\"\")","v":""},{"$f":"IF(WorkingP!$B64=\"Church Running Expenses\",WorkingP!F64,\"\")","v":""},{"$f":"IF(WorkingP!$B64=\"Church Running Expenses\",WorkingP!G64,\"\")","v":""},{"$f":"IF(WorkingP!$B64=\"Church Running Expenses\",WorkingP!H64,\"\")","v":""},{"$f":"IF(WorkingP!$B64=\"Church Running Expenses\",WorkingP!I64,\"\")","v":""},{"$f":"IF(WorkingP!$B64=\"Church Running Expenses\",WorkingP!J64,\"\")","v":""},{"$f":"IF(WorkingP!$B64=\"Church Running Expenses\",WorkingP!K64,\"\")","v":""},{"$f":"IF(WorkingP!$B64=\"Church Running Expenses\",WorkingP!L64,\"\")","v":""},{"$f":"IF(WorkingP!$B64=\"Church Running Expenses\",WorkingP!M64,\"\")","v":""},{"$f":"IF(WorkingP!$B64=\"Church Running Expenses\",WorkingP!N64,\"\")","v":""},{"$f":"IF(WorkingP!$B64=\"Church Running Expenses\",WorkingP!O64,\"\")","v":""},{"$f":"IF(WorkingP!$B64=\"Church Running Expenses\",WorkingP!P64,\"\")","v":""},{"$f":"IF(WorkingP!$B64=\"Church Running Expenses\",WorkingP!Q64,\"\")","v":""},{"$f":"IF(WorkingP!$B64=\"Church Running Expenses\",WorkingP!R64,\"\")","v":""},{"$f":"IF(WorkingP!$B64=\"Church Running Expenses\",WorkingP!S64,\"\")","v":""},{"$f":"IF(WorkingP!$B64=\"Church Running Expenses\",WorkingP!T64,\"\")","v":""},{"$f":"IF(WorkingP!$B64=\"Church Running Expenses\",WorkingP!U64,\"\")","v":""},{"$f":"IF(WorkingP!$B64=\"Church Running Expenses\",WorkingP!V64,\"\")","v":""},{"$f":"IF(WorkingP!$B64=\"Church Running Expenses\",WorkingP!W64,\"\")","v":""},{"$f":"IF(WorkingP!$B64=\"Church Running Expenses\",WorkingP!X64,\"\")","v":""},{"$f":"IF(WorkingP!$B64=\"Church Running Expenses\",WorkingP!Y64,\"\")","v":""},{"$f":"IF(Descriptions!K65=\"Church Running Expenses\",Descriptions!AB65,0)","v":0}]
[{"$f":"IF(Descriptions!K66=\"Church Running Expenses\",Descriptions!I66,0)","v":0},{"$f":"IF(WorkingP!$B65=\"Church Running Expenses\",WorkingP!D65,\"\")","v":""},{"$f":"IF(WorkingP!$B65=\"Church Running Expenses\",WorkingP!E65,\"\")","v":""},{"$f":"IF(WorkingP!$B65=\"Church Running Expenses\",WorkingP!F65,\"\")","v":""},{"$f":"IF(WorkingP!$B65=\"Church Running Expenses\",WorkingP!G65,\"\")","v":""},{"$f":"IF(WorkingP!$B65=\"Church Running Expenses\",WorkingP!H65,\"\")","v":""},{"$f":"IF(WorkingP!$B65=\"Church Running Expenses\",WorkingP!I65,\"\")","v":""},{"$f":"IF(WorkingP!$B65=\"Church Running Expenses\",WorkingP!J65,\"\")","v":""},{"$f":"IF(WorkingP!$B65=\"Church Running Expenses\",WorkingP!K65,\"\")","v":""},{"$f":"IF(WorkingP!$B65=\"Church Running Expenses\",WorkingP!L65,\"\")","v":""},{"$f":"IF(WorkingP!$B65=\"Church Running Expenses\",WorkingP!M65,\"\")","v":""},{"$f":"IF(WorkingP!$B65=\"Church Running Expenses\",WorkingP!N65,\"\")","v":""},{"$f":"IF(WorkingP!$B65=\"Church Running Expenses\",WorkingP!O65,\"\")","v":""},{"$f":"IF(WorkingP!$B65=\"Church Running Expenses\",WorkingP!P65,\"\")","v":""},{"$f":"IF(WorkingP!$B65=\"Church Running Expenses\",WorkingP!Q65,\"\")","v":""},{"$f":"IF(WorkingP!$B65=\"Church Running Expenses\",WorkingP!R65,\"\")","v":""},{"$f":"IF(WorkingP!$B65=\"Church Running Expenses\",WorkingP!S65,\"\")","v":""},{"$f":"IF(WorkingP!$B65=\"Church Running Expenses\",WorkingP!T65,\"\")","v":""},{"$f":"IF(WorkingP!$B65=\"Church Running Expenses\",WorkingP!U65,\"\")","v":""},{"$f":"IF(WorkingP!$B65=\"Church Running Expenses\",WorkingP!V65,\"\")","v":""},{"$f":"IF(WorkingP!$B65=\"Church Running Expenses\",WorkingP!W65,\"\")","v":""},{"$f":"IF(WorkingP!$B65=\"Church Running Expenses\",WorkingP!X65,\"\")","v":""},{"$f":"IF(WorkingP!$B65=\"Church Running Expenses\",WorkingP!Y65,\"\")","v":""},{"$f":"IF(Descriptions!K66=\"Church Running Expenses\",Descriptions!AB66,0)","v":0}]
[{"$f":"IF(Descriptions!K67=\"Church Running Expenses\",Descriptions!I67,0)","v":0},{"$f":"IF(WorkingP!$B66=\"Church Running Expenses\",WorkingP!D66,\"\")","v":""},{"$f":"IF(WorkingP!$B66=\"Church Running Expenses\",WorkingP!E66,\"\")","v":""},{"$f":"IF(WorkingP!$B66=\"Church Running Expenses\",WorkingP!F66,\"\")","v":""},{"$f":"IF(WorkingP!$B66=\"Church Running Expenses\",WorkingP!G66,\"\")","v":""},{"$f":"IF(WorkingP!$B66=\"Church Running Expenses\",WorkingP!H66,\"\")","v":""},{"$f":"IF(WorkingP!$B66=\"Church Running Expenses\",WorkingP!I66,\"\")","v":""},{"$f":"IF(WorkingP!$B66=\"Church Running Expenses\",WorkingP!J66,\"\")","v":""},{"$f":"IF(WorkingP!$B66=\"Church Running Expenses\",WorkingP!K66,\"\")","v":""},{"$f":"IF(WorkingP!$B66=\"Church Running Expenses\",WorkingP!L66,\"\")","v":""},{"$f":"IF(WorkingP!$B66=\"Church Running Expenses\",WorkingP!M66,\"\")","v":""},{"$f":"IF(WorkingP!$B66=\"Church Running Expenses\",WorkingP!N66,\"\")","v":""},{"$f":"IF(WorkingP!$B66=\"Church Running Expenses\",WorkingP!O66,\"\")","v":""},{"$f":"IF(WorkingP!$B66=\"Church Running Expenses\",WorkingP!P66,\"\")","v":""},{"$f":"IF(WorkingP!$B66=\"Church Running Expenses\",WorkingP!Q66,\"\")","v":""},{"$f":"IF(WorkingP!$B66=\"Church Running Expenses\",WorkingP!R66,\"\")","v":""},{"$f":"IF(WorkingP!$B66=\"Church Running Expenses\",WorkingP!S66,\"\")","v":""},{"$f":"IF(WorkingP!$B66=\"Church Running Expenses\",WorkingP!T66,\"\")","v":""},{"$f":"IF(WorkingP!$B66=\"Church Running Expenses\",WorkingP!U66,\"\")","v":""},{"$f":"IF(WorkingP!$B66=\"Church Running Expenses\",WorkingP!V66,\"\")","v":""},{"$f":"IF(WorkingP!$B66=\"Church Running Expenses\",WorkingP!W66,\"\")","v":""},{"$f":"IF(WorkingP!$B66=\"Church Running Expenses\",WorkingP!X66,\"\")","v":""},{"$f":"IF(WorkingP!$B66=\"Church Running Expenses\",WorkingP!Y66,\"\")","v":""},{"$f":"IF(Descriptions!K67=\"Church Running Expenses\",Descriptions!AB67,0)","v":0}]
[{"$f":"IF(Descriptions!K68=\"Church Running Expenses\",Descriptions!I68,0)","v":0},{"$f":"IF(WorkingP!$B67=\"Church Running Expenses\",WorkingP!D67,\"\")","v":""},{"$f":"IF(WorkingP!$B67=\"Church Running Expenses\",WorkingP!E67,\"\")","v":""},{"$f":"IF(WorkingP!$B67=\"Church Running Expenses\",WorkingP!F67,\"\")","v":""},{"$f":"IF(WorkingP!$B67=\"Church Running Expenses\",WorkingP!G67,\"\")","v":""},{"$f":"IF(WorkingP!$B67=\"Church Running Expenses\",WorkingP!H67,\"\")","v":""},{"$f":"IF(WorkingP!$B67=\"Church Running Expenses\",WorkingP!I67,\"\")","v":""},{"$f":"IF(WorkingP!$B67=\"Church Running Expenses\",WorkingP!J67,\"\")","v":""},{"$f":"IF(WorkingP!$B67=\"Church Running Expenses\",WorkingP!K67,\"\")","v":""},{"$f":"IF(WorkingP!$B67=\"Church Running Expenses\",WorkingP!L67,\"\")","v":""},{"$f":"IF(WorkingP!$B67=\"Church Running Expenses\",WorkingP!M67,\"\")","v":""},{"$f":"IF(WorkingP!$B67=\"Church Running Expenses\",WorkingP!N67,\"\")","v":""},{"$f":"IF(WorkingP!$B67=\"Church Running Expenses\",WorkingP!O67,\"\")","v":""},{"$f":"IF(WorkingP!$B67=\"Church Running Expenses\",WorkingP!P67,\"\")","v":""},{"$f":"IF(WorkingP!$B67=\"Church Running Expenses\",WorkingP!Q67,\"\")","v":""},{"$f":"IF(WorkingP!$B67=\"Church Running Expenses\",WorkingP!R67,\"\")","v":""},{"$f":"IF(WorkingP!$B67=\"Church Running Expenses\",WorkingP!S67,\"\")","v":""},{"$f":"IF(WorkingP!$B67=\"Church Running Expenses\",WorkingP!T67,\"\")","v":""},{"$f":"IF(WorkingP!$B67=\"Church Running Expenses\",WorkingP!U67,\"\")","v":""},{"$f":"IF(WorkingP!$B67=\"Church Running Expenses\",WorkingP!V67,\"\")","v":""},{"$f":"IF(WorkingP!$B67=\"Church Running Expenses\",WorkingP!W67,\"\")","v":""},{"$f":"IF(WorkingP!$B67=\"Church Running Expenses\",WorkingP!X67,\"\")","v":""},{"$f":"IF(WorkingP!$B67=\"Church Running Expenses\",WorkingP!Y67,\"\")","v":""},{"$f":"IF(Descriptions!K68=\"Church Running Expenses\",Descriptions!AB68,0)","v":0}]
[{"$f":"IF(Descriptions!K69=\"Church Running Expenses\",Descriptions!I69,0)","v":0},{"$f":"IF(WorkingP!$B68=\"Church Running Expenses\",WorkingP!D68,\"\")","v":""},{"$f":"IF(WorkingP!$B68=\"Church Running Expenses\",WorkingP!E68,\"\")","v":""},{"$f":"IF(WorkingP!$B68=\"Church Running Expenses\",WorkingP!F68,\"\")","v":""},{"$f":"IF(WorkingP!$B68=\"Church Running Expenses\",WorkingP!G68,\"\")","v":""},{"$f":"IF(WorkingP!$B68=\"Church Running Expenses\",WorkingP!H68,\"\")","v":""},{"$f":"IF(WorkingP!$B68=\"Church Running Expenses\",WorkingP!I68,\"\")","v":""},{"$f":"IF(WorkingP!$B68=\"Church Running Expenses\",WorkingP!J68,\"\")","v":""},{"$f":"IF(WorkingP!$B68=\"Church Running Expenses\",WorkingP!K68,\"\")","v":""},{"$f":"IF(WorkingP!$B68=\"Church Running Expenses\",WorkingP!L68,\"\")","v":""},{"$f":"IF(WorkingP!$B68=\"Church Running Expenses\",WorkingP!M68,\"\")","v":""},{"$f":"IF(WorkingP!$B68=\"Church Running Expenses\",WorkingP!N68,\"\")","v":""},{"$f":"IF(WorkingP!$B68=\"Church Running Expenses\",WorkingP!O68,\"\")","v":""},{"$f":"IF(WorkingP!$B68=\"Church Running Expenses\",WorkingP!P68,\"\")","v":""},{"$f":"IF(WorkingP!$B68=\"Church Running Expenses\",WorkingP!Q68,\"\")","v":""},{"$f":"IF(WorkingP!$B68=\"Church Running Expenses\",WorkingP!R68,\"\")","v":""},{"$f":"IF(WorkingP!$B68=\"Church Running Expenses\",WorkingP!S68,\"\")","v":""},{"$f":"IF(WorkingP!$B68=\"Church Running Expenses\",WorkingP!T68,\"\")","v":""},{"$f":"IF(WorkingP!$B68=\"Church Running Expenses\",WorkingP!U68,\"\")","v":""},{"$f":"IF(WorkingP!$B68=\"Church Running Expenses\",WorkingP!V68,\"\")","v":""},{"$f":"IF(WorkingP!$B68=\"Church Running Expenses\",WorkingP!W68,\"\")","v":""},{"$f":"IF(WorkingP!$B68=\"Church Running Expenses\",WorkingP!X68,\"\")","v":""},{"$f":"IF(WorkingP!$B68=\"Church Running Expenses\",WorkingP!Y68,\"\")","v":""},{"$f":"IF(Descriptions!K69=\"Church Running Expenses\",Descriptions!AB69,0)","v":0}]
[{"$f":"IF(Descriptions!K70=\"Church Running Expenses\",Descriptions!I70,0)","v":0},{"$f":"IF(WorkingP!$B69=\"Church Running Expenses\",WorkingP!D69,\"\")","v":""},{"$f":"IF(WorkingP!$B69=\"Church Running Expenses\",WorkingP!E69,\"\")","v":""},{"$f":"IF(WorkingP!$B69=\"Church Running Expenses\",WorkingP!F69,\"\")","v":""},{"$f":"IF(WorkingP!$B69=\"Church Running Expenses\",WorkingP!G69,\"\")","v":""},{"$f":"IF(WorkingP!$B69=\"Church Running Expenses\",WorkingP!H69,\"\")","v":""},{"$f":"IF(WorkingP!$B69=\"Church Running Expenses\",WorkingP!I69,\"\")","v":""},{"$f":"IF(WorkingP!$B69=\"Church Running Expenses\",WorkingP!J69,\"\")","v":""},{"$f":"IF(WorkingP!$B69=\"Church Running Expenses\",WorkingP!K69,\"\")","v":""},{"$f":"IF(WorkingP!$B69=\"Church Running Expenses\",WorkingP!L69,\"\")","v":""},{"$f":"IF(WorkingP!$B69=\"Church Running Expenses\",WorkingP!M69,\"\")","v":""},{"$f":"IF(WorkingP!$B69=\"Church Running Expenses\",WorkingP!N69,\"\")","v":""},{"$f":"IF(WorkingP!$B69=\"Church Running Expenses\",WorkingP!O69,\"\")","v":""},{"$f":"IF(WorkingP!$B69=\"Church Running Expenses\",WorkingP!P69,\"\")","v":""},{"$f":"IF(WorkingP!$B69=\"Church Running Expenses\",WorkingP!Q69,\"\")","v":""},{"$f":"IF(WorkingP!$B69=\"Church Running Expenses\",WorkingP!R69,\"\")","v":""},{"$f":"IF(WorkingP!$B69=\"Church Running Expenses\",WorkingP!S69,\"\")","v":""},{"$f":"IF(WorkingP!$B69=\"Church Running Expenses\",WorkingP!T69,\"\")","v":""},{"$f":"IF(WorkingP!$B69=\"Church Running Expenses\",WorkingP!U69,\"\")","v":""},{"$f":"IF(WorkingP!$B69=\"Church Running Expenses\",WorkingP!V69,\"\")","v":""},{"$f":"IF(WorkingP!$B69=\"Church Running Expenses\",WorkingP!W69,\"\")","v":""},{"$f":"IF(WorkingP!$B69=\"Church Running Expenses\",WorkingP!X69,\"\")","v":""},{"$f":"IF(WorkingP!$B69=\"Church Running Expenses\",WorkingP!Y69,\"\")","v":""},{"$f":"IF(Descriptions!K70=\"Church Running Expenses\",Descriptions!AB70,0)","v":0}]
[{"$f":"IF(Descriptions!K71=\"Church Running Expenses\",Descriptions!I71,0)","v":0},{"$f":"IF(WorkingP!$B70=\"Church Running Expenses\",WorkingP!D70,\"\")","v":""},{"$f":"IF(WorkingP!$B70=\"Church Running Expenses\",WorkingP!E70,\"\")","v":""},{"$f":"IF(WorkingP!$B70=\"Church Running Expenses\",WorkingP!F70,\"\")","v":""},{"$f":"IF(WorkingP!$B70=\"Church Running Expenses\",WorkingP!G70,\"\")","v":""},{"$f":"IF(WorkingP!$B70=\"Church Running Expenses\",WorkingP!H70,\"\")","v":""},{"$f":"IF(WorkingP!$B70=\"Church Running Expenses\",WorkingP!I70,\"\")","v":""},{"$f":"IF(WorkingP!$B70=\"Church Running Expenses\",WorkingP!J70,\"\")","v":""},{"$f":"IF(WorkingP!$B70=\"Church Running Expenses\",WorkingP!K70,\"\")","v":""},{"$f":"IF(WorkingP!$B70=\"Church Running Expenses\",WorkingP!L70,\"\")","v":""},{"$f":"IF(WorkingP!$B70=\"Church Running Expenses\",WorkingP!M70,\"\")","v":""},{"$f":"IF(WorkingP!$B70=\"Church Running Expenses\",WorkingP!N70,\"\")","v":""},{"$f":"IF(WorkingP!$B70=\"Church Running Expenses\",WorkingP!O70,\"\")","v":""},{"$f":"IF(WorkingP!$B70=\"Church Running Expenses\",WorkingP!P70,\"\")","v":""},{"$f":"IF(WorkingP!$B70=\"Church Running Expenses\",WorkingP!Q70,\"\")","v":""},{"$f":"IF(WorkingP!$B70=\"Church Running Expenses\",WorkingP!R70,\"\")","v":""},{"$f":"IF(WorkingP!$B70=\"Church Running Expenses\",WorkingP!S70,\"\")","v":""},{"$f":"IF(WorkingP!$B70=\"Church Running Expenses\",WorkingP!T70,\"\")","v":""},{"$f":"IF(WorkingP!$B70=\"Church Running Expenses\",WorkingP!U70,\"\")","v":""},{"$f":"IF(WorkingP!$B70=\"Church Running Expenses\",WorkingP!V70,\"\")","v":""},{"$f":"IF(WorkingP!$B70=\"Church Running Expenses\",WorkingP!W70,\"\")","v":""},{"$f":"IF(WorkingP!$B70=\"Church Running Expenses\",WorkingP!X70,\"\")","v":""},{"$f":"IF(WorkingP!$B70=\"Church Running Expenses\",WorkingP!Y70,\"\")","v":""},{"$f":"IF(Descriptions!K71=\"Church Running Expenses\",Descriptions!AB71,0)","v":0}]
[{"$f":"IF(Descriptions!K72=\"Church Running Expenses\",Descriptions!I72,0)","v":0},{"$f":"IF(WorkingP!$B71=\"Church Running Expenses\",WorkingP!D71,\"\")","v":""},{"$f":"IF(WorkingP!$B71=\"Church Running Expenses\",WorkingP!E71,\"\")","v":""},{"$f":"IF(WorkingP!$B71=\"Church Running Expenses\",WorkingP!F71,\"\")","v":""},{"$f":"IF(WorkingP!$B71=\"Church Running Expenses\",WorkingP!G71,\"\")","v":""},{"$f":"IF(WorkingP!$B71=\"Church Running Expenses\",WorkingP!H71,\"\")","v":""},{"$f":"IF(WorkingP!$B71=\"Church Running Expenses\",WorkingP!I71,\"\")","v":""},{"$f":"IF(WorkingP!$B71=\"Church Running Expenses\",WorkingP!J71,\"\")","v":""},{"$f":"IF(WorkingP!$B71=\"Church Running Expenses\",WorkingP!K71,\"\")","v":""},{"$f":"IF(WorkingP!$B71=\"Church Running Expenses\",WorkingP!L71,\"\")","v":""},{"$f":"IF(WorkingP!$B71=\"Church Running Expenses\",WorkingP!M71,\"\")","v":""},{"$f":"IF(WorkingP!$B71=\"Church Running Expenses\",WorkingP!N71,\"\")","v":""},{"$f":"IF(WorkingP!$B71=\"Church Running Expenses\",WorkingP!O71,\"\")","v":""},{"$f":"IF(WorkingP!$B71=\"Church Running Expenses\",WorkingP!P71,\"\")","v":""},{"$f":"IF(WorkingP!$B71=\"Church Running Expenses\",WorkingP!Q71,\"\")","v":""},{"$f":"IF(WorkingP!$B71=\"Church Running Expenses\",WorkingP!R71,\"\")","v":""},{"$f":"IF(WorkingP!$B71=\"Church Running Expenses\",WorkingP!S71,\"\")","v":""},{"$f":"IF(WorkingP!$B71=\"Church Running Expenses\",WorkingP!T71,\"\")","v":""},{"$f":"IF(WorkingP!$B71=\"Church Running Expenses\",WorkingP!U71,\"\")","v":""},{"$f":"IF(WorkingP!$B71=\"Church Running Expenses\",WorkingP!V71,\"\")","v":""},{"$f":"IF(WorkingP!$B71=\"Church Running Expenses\",WorkingP!W71,\"\")","v":""},{"$f":"IF(WorkingP!$B71=\"Church Running Expenses\",WorkingP!X71,\"\")","v":""},{"$f":"IF(WorkingP!$B71=\"Church Running Expenses\",WorkingP!Y71,\"\")","v":""},{"$f":"IF(Descriptions!K72=\"Church Running Expenses\",Descriptions!AB72,0)","v":0}]
[{"$f":"IF(Descriptions!K73=\"Church Running Expenses\",Descriptions!I73,0)","v":0},{"$f":"IF(WorkingP!$B72=\"Church Running Expenses\",WorkingP!D72,\"\")","v":""},{"$f":"IF(WorkingP!$B72=\"Church Running Expenses\",WorkingP!E72,\"\")","v":""},{"$f":"IF(WorkingP!$B72=\"Church Running Expenses\",WorkingP!F72,\"\")","v":""},{"$f":"IF(WorkingP!$B72=\"Church Running Expenses\",WorkingP!G72,\"\")","v":""},{"$f":"IF(WorkingP!$B72=\"Church Running Expenses\",WorkingP!H72,\"\")","v":""},{"$f":"IF(WorkingP!$B72=\"Church Running Expenses\",WorkingP!I72,\"\")","v":""},{"$f":"IF(WorkingP!$B72=\"Church Running Expenses\",WorkingP!J72,\"\")","v":""},{"$f":"IF(WorkingP!$B72=\"Church Running Expenses\",WorkingP!K72,\"\")","v":""},{"$f":"IF(WorkingP!$B72=\"Church Running Expenses\",WorkingP!L72,\"\")","v":""},{"$f":"IF(WorkingP!$B72=\"Church Running Expenses\",WorkingP!M72,\"\")","v":""},{"$f":"IF(WorkingP!$B72=\"Church Running Expenses\",WorkingP!N72,\"\")","v":""},{"$f":"IF(WorkingP!$B72=\"Church Running Expenses\",WorkingP!O72,\"\")","v":""},{"$f":"IF(WorkingP!$B72=\"Church Running Expenses\",WorkingP!P72,\"\")","v":""},{"$f":"IF(WorkingP!$B72=\"Church Running Expenses\",WorkingP!Q72,\"\")","v":""},{"$f":"IF(WorkingP!$B72=\"Church Running Expenses\",WorkingP!R72,\"\")","v":""},{"$f":"IF(WorkingP!$B72=\"Church Running Expenses\",WorkingP!S72,\"\")","v":""},{"$f":"IF(WorkingP!$B72=\"Church Running Expenses\",WorkingP!T72,\"\")","v":""},{"$f":"IF(WorkingP!$B72=\"Church Running Expenses\",WorkingP!U72,\"\")","v":""},{"$f":"IF(WorkingP!$B72=\"Church Running Expenses\",WorkingP!V72,\"\")","v":""},{"$f":"IF(WorkingP!$B72=\"Church Running Expenses\",WorkingP!W72,\"\")","v":""},{"$f":"IF(WorkingP!$B72=\"Church Running Expenses\",WorkingP!X72,\"\")","v":""},{"$f":"IF(WorkingP!$B72=\"Church Running Expenses\",WorkingP!Y72,\"\")","v":""},{"$f":"IF(Descriptions!K73=\"Church Running Expenses\",Descriptions!AB73,0)","v":0}]
[{"$f":"IF(Descriptions!K74=\"Church Running Expenses\",Descriptions!I74,0)","v":0},{"$f":"IF(WorkingP!$B73=\"Church Running Expenses\",WorkingP!D73,\"\")","v":""},{"$f":"IF(WorkingP!$B73=\"Church Running Expenses\",WorkingP!E73,\"\")","v":""},{"$f":"IF(WorkingP!$B73=\"Church Running Expenses\",WorkingP!F73,\"\")","v":""},{"$f":"IF(WorkingP!$B73=\"Church Running Expenses\",WorkingP!G73,\"\")","v":""},{"$f":"IF(WorkingP!$B73=\"Church Running Expenses\",WorkingP!H73,\"\")","v":""},{"$f":"IF(WorkingP!$B73=\"Church Running Expenses\",WorkingP!I73,\"\")","v":""},{"$f":"IF(WorkingP!$B73=\"Church Running Expenses\",WorkingP!J73,\"\")","v":""},{"$f":"IF(WorkingP!$B73=\"Church Running Expenses\",WorkingP!K73,\"\")","v":""},{"$f":"IF(WorkingP!$B73=\"Church Running Expenses\",WorkingP!L73,\"\")","v":""},{"$f":"IF(WorkingP!$B73=\"Church Running Expenses\",WorkingP!M73,\"\")","v":""},{"$f":"IF(WorkingP!$B73=\"Church Running Expenses\",WorkingP!N73,\"\")","v":""},{"$f":"IF(WorkingP!$B73=\"Church Running Expenses\",WorkingP!O73,\"\")","v":""},{"$f":"IF(WorkingP!$B73=\"Church Running Expenses\",WorkingP!P73,\"\")","v":""},{"$f":"IF(WorkingP!$B73=\"Church Running Expenses\",WorkingP!Q73,\"\")","v":""},{"$f":"IF(WorkingP!$B73=\"Church Running Expenses\",WorkingP!R73,\"\")","v":""},{"$f":"IF(WorkingP!$B73=\"Church Running Expenses\",WorkingP!S73,\"\")","v":""},{"$f":"IF(WorkingP!$B73=\"Church Running Expenses\",WorkingP!T73,\"\")","v":""},{"$f":"IF(WorkingP!$B73=\"Church Running Expenses\",WorkingP!U73,\"\")","v":""},{"$f":"IF(WorkingP!$B73=\"Church Running Expenses\",WorkingP!V73,\"\")","v":""},{"$f":"IF(WorkingP!$B73=\"Church Running Expenses\",WorkingP!W73,\"\")","v":""},{"$f":"IF(WorkingP!$B73=\"Church Running Expenses\",WorkingP!X73,\"\")","v":""},{"$f":"IF(WorkingP!$B73=\"Church Running Expenses\",WorkingP!Y73,\"\")","v":""},{"$f":"IF(Descriptions!K74=\"Church Running Expenses\",Descriptions!AB74,0)","v":0}]
[{"$f":"IF(Descriptions!K75=\"Church Running Expenses\",Descriptions!I75,0)","v":0},{"$f":"IF(WorkingP!$B74=\"Church Running Expenses\",WorkingP!D74,\"\")","v":""},{"$f":"IF(WorkingP!$B74=\"Church Running Expenses\",WorkingP!E74,\"\")","v":""},{"$f":"IF(WorkingP!$B74=\"Church Running Expenses\",WorkingP!F74,\"\")","v":""},{"$f":"IF(WorkingP!$B74=\"Church Running Expenses\",WorkingP!G74,\"\")","v":""},{"$f":"IF(WorkingP!$B74=\"Church Running Expenses\",WorkingP!H74,\"\")","v":""},{"$f":"IF(WorkingP!$B74=\"Church Running Expenses\",WorkingP!I74,\"\")","v":""},{"$f":"IF(WorkingP!$B74=\"Church Running Expenses\",WorkingP!J74,\"\")","v":""},{"$f":"IF(WorkingP!$B74=\"Church Running Expenses\",WorkingP!K74,\"\")","v":""},{"$f":"IF(WorkingP!$B74=\"Church Running Expenses\",WorkingP!L74,\"\")","v":""},{"$f":"IF(WorkingP!$B74=\"Church Running Expenses\",WorkingP!M74,\"\")","v":""},{"$f":"IF(WorkingP!$B74=\"Church Running Expenses\",WorkingP!N74,\"\")","v":""},{"$f":"IF(WorkingP!$B74=\"Church Running Expenses\",WorkingP!O74,\"\")","v":""},{"$f":"IF(WorkingP!$B74=\"Church Running Expenses\",WorkingP!P74,\"\")","v":""},{"$f":"IF(WorkingP!$B74=\"Church Running Expenses\",WorkingP!Q74,\"\")","v":""},{"$f":"IF(WorkingP!$B74=\"Church Running Expenses\",WorkingP!R74,\"\")","v":""},{"$f":"IF(WorkingP!$B74=\"Church Running Expenses\",WorkingP!S74,\"\")","v":""},{"$f":"IF(WorkingP!$B74=\"Church Running Expenses\",WorkingP!T74,\"\")","v":""},{"$f":"IF(WorkingP!$B74=\"Church Running Expenses\",WorkingP!U74,\"\")","v":""},{"$f":"IF(WorkingP!$B74=\"Church Running Expenses\",WorkingP!V74,\"\")","v":""},{"$f":"IF(WorkingP!$B74=\"Church Running Expenses\",WorkingP!W74,\"\")","v":""},{"$f":"IF(WorkingP!$B74=\"Church Running Expenses\",WorkingP!X74,\"\")","v":""},{"$f":"IF(WorkingP!$B74=\"Church Running Expenses\",WorkingP!Y74,\"\")","v":""},{"$f":"IF(Descriptions!K75=\"Church Running Expenses\",Descriptions!AB75,0)","v":0}]
[{"$f":"IF(Descriptions!K76=\"Church Running Expenses\",Descriptions!I76,0)","v":0},{"$f":"IF(WorkingP!$B75=\"Church Running Expenses\",WorkingP!D75,\"\")","v":""},{"$f":"IF(WorkingP!$B75=\"Church Running Expenses\",WorkingP!E75,\"\")","v":""},{"$f":"IF(WorkingP!$B75=\"Church Running Expenses\",WorkingP!F75,\"\")","v":""},{"$f":"IF(WorkingP!$B75=\"Church Running Expenses\",WorkingP!G75,\"\")","v":""},{"$f":"IF(WorkingP!$B75=\"Church Running Expenses\",WorkingP!H75,\"\")","v":""},{"$f":"IF(WorkingP!$B75=\"Church Running Expenses\",WorkingP!I75,\"\")","v":""},{"$f":"IF(WorkingP!$B75=\"Church Running Expenses\",WorkingP!J75,\"\")","v":""},{"$f":"IF(WorkingP!$B75=\"Church Running Expenses\",WorkingP!K75,\"\")","v":""},{"$f":"IF(WorkingP!$B75=\"Church Running Expenses\",WorkingP!L75,\"\")","v":""},{"$f":"IF(WorkingP!$B75=\"Church Running Expenses\",WorkingP!M75,\"\")","v":""},{"$f":"IF(WorkingP!$B75=\"Church Running Expenses\",WorkingP!N75,\"\")","v":""},{"$f":"IF(WorkingP!$B75=\"Church Running Expenses\",WorkingP!O75,\"\")","v":""},{"$f":"IF(WorkingP!$B75=\"Church Running Expenses\",WorkingP!P75,\"\")","v":""},{"$f":"IF(WorkingP!$B75=\"Church Running Expenses\",WorkingP!Q75,\"\")","v":""},{"$f":"IF(WorkingP!$B75=\"Church Running Expenses\",WorkingP!R75,\"\")","v":""},{"$f":"IF(WorkingP!$B75=\"Church Running Expenses\",WorkingP!S75,\"\")","v":""},{"$f":"IF(WorkingP!$B75=\"Church Running Expenses\",WorkingP!T75,\"\")","v":""},{"$f":"IF(WorkingP!$B75=\"Church Running Expenses\",WorkingP!U75,\"\")","v":""},{"$f":"IF(WorkingP!$B75=\"Church Running Expenses\",WorkingP!V75,\"\")","v":""},{"$f":"IF(WorkingP!$B75=\"Church Running Expenses\",WorkingP!W75,\"\")","v":""},{"$f":"IF(WorkingP!$B75=\"Church Running Expenses\",WorkingP!X75,\"\")","v":""},{"$f":"IF(WorkingP!$B75=\"Church Running Expenses\",WorkingP!Y75,\"\")","v":""},{"$f":"IF(Descriptions!K76=\"Church Running Expenses\",Descriptions!AB76,0)","v":0}]
[{"$f":"IF(Descriptions!K77=\"Church Running Expenses\",Descriptions!I77,0)","v":0},{"$f":"IF(WorkingP!$B76=\"Church Running Expenses\",WorkingP!D76,\"\")","v":""},{"$f":"IF(WorkingP!$B76=\"Church Running Expenses\",WorkingP!E76,\"\")","v":""},{"$f":"IF(WorkingP!$B76=\"Church Running Expenses\",WorkingP!F76,\"\")","v":""},{"$f":"IF(WorkingP!$B76=\"Church Running Expenses\",WorkingP!G76,\"\")","v":""},{"$f":"IF(WorkingP!$B76=\"Church Running Expenses\",WorkingP!H76,\"\")","v":""},{"$f":"IF(WorkingP!$B76=\"Church Running Expenses\",WorkingP!I76,\"\")","v":""},{"$f":"IF(WorkingP!$B76=\"Church Running Expenses\",WorkingP!J76,\"\")","v":""},{"$f":"IF(WorkingP!$B76=\"Church Running Expenses\",WorkingP!K76,\"\")","v":""},{"$f":"IF(WorkingP!$B76=\"Church Running Expenses\",WorkingP!L76,\"\")","v":""},{"$f":"IF(WorkingP!$B76=\"Church Running Expenses\",WorkingP!M76,\"\")","v":""},{"$f":"IF(WorkingP!$B76=\"Church Running Expenses\",WorkingP!N76,\"\")","v":""},{"$f":"IF(WorkingP!$B76=\"Church Running Expenses\",WorkingP!O76,\"\")","v":""},{"$f":"IF(WorkingP!$B76=\"Church Running Expenses\",WorkingP!P76,\"\")","v":""},{"$f":"IF(WorkingP!$B76=\"Church Running Expenses\",WorkingP!Q76,\"\")","v":""},{"$f":"IF(WorkingP!$B76=\"Church Running Expenses\",WorkingP!R76,\"\")","v":""},{"$f":"IF(WorkingP!$B76=\"Church Running Expenses\",WorkingP!S76,\"\")","v":""},{"$f":"IF(WorkingP!$B76=\"Church Running Expenses\",WorkingP!T76,\"\")","v":""},{"$f":"IF(WorkingP!$B76=\"Church Running Expenses\",WorkingP!U76,\"\")","v":""},{"$f":"IF(WorkingP!$B76=\"Church Running Expenses\",WorkingP!V76,\"\")","v":""},{"$f":"IF(WorkingP!$B76=\"Church Running Expenses\",WorkingP!W76,\"\")","v":""},{"$f":"IF(WorkingP!$B76=\"Church Running Expenses\",WorkingP!X76,\"\")","v":""},{"$f":"IF(WorkingP!$B76=\"Church Running Expenses\",WorkingP!Y76,\"\")","v":""},{"$f":"IF(Descriptions!K77=\"Church Running Expenses\",Descriptions!AB77,0)","v":0}]
[{"$f":"IF(Descriptions!K78=\"Church Running Expenses\",Descriptions!I78,0)","v":0},{"$f":"IF(WorkingP!$B77=\"Church Running Expenses\",WorkingP!D77,\"\")","v":""},{"$f":"IF(WorkingP!$B77=\"Church Running Expenses\",WorkingP!E77,\"\")","v":""},{"$f":"IF(WorkingP!$B77=\"Church Running Expenses\",WorkingP!F77,\"\")","v":""},{"$f":"IF(WorkingP!$B77=\"Church Running Expenses\",WorkingP!G77,\"\")","v":""},{"$f":"IF(WorkingP!$B77=\"Church Running Expenses\",WorkingP!H77,\"\")","v":""},{"$f":"IF(WorkingP!$B77=\"Church Running Expenses\",WorkingP!I77,\"\")","v":""},{"$f":"IF(WorkingP!$B77=\"Church Running Expenses\",WorkingP!J77,\"\")","v":""},{"$f":"IF(WorkingP!$B77=\"Church Running Expenses\",WorkingP!K77,\"\")","v":""},{"$f":"IF(WorkingP!$B77=\"Church Running Expenses\",WorkingP!L77,\"\")","v":""},{"$f":"IF(WorkingP!$B77=\"Church Running Expenses\",WorkingP!M77,\"\")","v":""},{"$f":"IF(WorkingP!$B77=\"Church Running Expenses\",WorkingP!N77,\"\")","v":""},{"$f":"IF(WorkingP!$B77=\"Church Running Expenses\",WorkingP!O77,\"\")","v":""},{"$f":"IF(WorkingP!$B77=\"Church Running Expenses\",WorkingP!P77,\"\")","v":""},{"$f":"IF(WorkingP!$B77=\"Church Running Expenses\",WorkingP!Q77,\"\")","v":""},{"$f":"IF(WorkingP!$B77=\"Church Running Expenses\",WorkingP!R77,\"\")","v":""},{"$f":"IF(WorkingP!$B77=\"Church Running Expenses\",WorkingP!S77,\"\")","v":""},{"$f":"IF(WorkingP!$B77=\"Church Running Expenses\",WorkingP!T77,\"\")","v":""},{"$f":"IF(WorkingP!$B77=\"Church Running Expenses\",WorkingP!U77,\"\")","v":""},{"$f":"IF(WorkingP!$B77=\"Church Running Expenses\",WorkingP!V77,\"\")","v":""},{"$f":"IF(WorkingP!$B77=\"Church Running Expenses\",WorkingP!W77,\"\")","v":""},{"$f":"IF(WorkingP!$B77=\"Church Running Expenses\",WorkingP!X77,\"\")","v":""},{"$f":"IF(WorkingP!$B77=\"Church Running Expenses\",WorkingP!Y77,\"\")","v":""},{"$f":"IF(Descriptions!K78=\"Church Running Expenses\",Descriptions!AB78,0)","v":0}]
[{"$f":"IF(Descriptions!K79=\"Church Running Expenses\",Descriptions!I79,0)","v":0},{"$f":"IF(WorkingP!$B78=\"Church Running Expenses\",WorkingP!D78,\"\")","v":""},{"$f":"IF(WorkingP!$B78=\"Church Running Expenses\",WorkingP!E78,\"\")","v":""},{"$f":"IF(WorkingP!$B78=\"Church Running Expenses\",WorkingP!F78,\"\")","v":""},{"$f":"IF(WorkingP!$B78=\"Church Running Expenses\",WorkingP!G78,\"\")","v":""},{"$f":"IF(WorkingP!$B78=\"Church Running Expenses\",WorkingP!H78,\"\")","v":""},{"$f":"IF(WorkingP!$B78=\"Church Running Expenses\",WorkingP!I78,\"\")","v":""},{"$f":"IF(WorkingP!$B78=\"Church Running Expenses\",WorkingP!J78,\"\")","v":""},{"$f":"IF(WorkingP!$B78=\"Church Running Expenses\",WorkingP!K78,\"\")","v":""},{"$f":"IF(WorkingP!$B78=\"Church Running Expenses\",WorkingP!L78,\"\")","v":""},{"$f":"IF(WorkingP!$B78=\"Church Running Expenses\",WorkingP!M78,\"\")","v":""},{"$f":"IF(WorkingP!$B78=\"Church Running Expenses\",WorkingP!N78,\"\")","v":""},{"$f":"IF(WorkingP!$B78=\"Church Running Expenses\",WorkingP!O78,\"\")","v":""},{"$f":"IF(WorkingP!$B78=\"Church Running Expenses\",WorkingP!P78,\"\")","v":""},{"$f":"IF(WorkingP!$B78=\"Church Running Expenses\",WorkingP!Q78,\"\")","v":""},{"$f":"IF(WorkingP!$B78=\"Church Running Expenses\",WorkingP!R78,\"\")","v":""},{"$f":"IF(WorkingP!$B78=\"Church Running Expenses\",WorkingP!S78,\"\")","v":""},{"$f":"IF(WorkingP!$B78=\"Church Running Expenses\",WorkingP!T78,\"\")","v":""},{"$f":"IF(WorkingP!$B78=\"Church Running Expenses\",WorkingP!U78,\"\")","v":""},{"$f":"IF(WorkingP!$B78=\"Church Running Expenses\",WorkingP!V78,\"\")","v":""},{"$f":"IF(WorkingP!$B78=\"Church Running Expenses\",WorkingP!W78,\"\")","v":""},{"$f":"IF(WorkingP!$B78=\"Church Running Expenses\",WorkingP!X78,\"\")","v":""},{"$f":"IF(WorkingP!$B78=\"Church Running Expenses\",WorkingP!Y78,\"\")","v":""},{"$f":"IF(Descriptions!K79=\"Church Running Expenses\",Descriptions!AB79,0)","v":0}]
[{"$f":"IF(Descriptions!K80=\"Church Running Expenses\",Descriptions!I80,0)","v":0},{"$f":"IF(WorkingP!$B79=\"Church Running Expenses\",WorkingP!D79,\"\")","v":""},{"$f":"IF(WorkingP!$B79=\"Church Running Expenses\",WorkingP!E79,\"\")","v":""},{"$f":"IF(WorkingP!$B79=\"Church Running Expenses\",WorkingP!F79,\"\")","v":""},{"$f":"IF(WorkingP!$B79=\"Church Running Expenses\",WorkingP!G79,\"\")","v":""},{"$f":"IF(WorkingP!$B79=\"Church Running Expenses\",WorkingP!H79,\"\")","v":""},{"$f":"IF(WorkingP!$B79=\"Church Running Expenses\",WorkingP!I79,\"\")","v":""},{"$f":"IF(WorkingP!$B79=\"Church Running Expenses\",WorkingP!J79,\"\")","v":""},{"$f":"IF(WorkingP!$B79=\"Church Running Expenses\",WorkingP!K79,\"\")","v":""},{"$f":"IF(WorkingP!$B79=\"Church Running Expenses\",WorkingP!L79,\"\")","v":""},{"$f":"IF(WorkingP!$B79=\"Church Running Expenses\",WorkingP!M79,\"\")","v":""},{"$f":"IF(WorkingP!$B79=\"Church Running Expenses\",WorkingP!N79,\"\")","v":""},{"$f":"IF(WorkingP!$B79=\"Church Running Expenses\",WorkingP!O79,\"\")","v":""},{"$f":"IF(WorkingP!$B79=\"Church Running Expenses\",WorkingP!P79,\"\")","v":""},{"$f":"IF(WorkingP!$B79=\"Church Running Expenses\",WorkingP!Q79,\"\")","v":""},{"$f":"IF(WorkingP!$B79=\"Church Running Expenses\",WorkingP!R79,\"\")","v":""},{"$f":"IF(WorkingP!$B79=\"Church Running Expenses\",WorkingP!S79,\"\")","v":""},{"$f":"IF(WorkingP!$B79=\"Church Running Expenses\",WorkingP!T79,\"\")","v":""},{"$f":"IF(WorkingP!$B79=\"Church Running Expenses\",WorkingP!U79,\"\")","v":""},{"$f":"IF(WorkingP!$B79=\"Church Running Expenses\",WorkingP!V79,\"\")","v":""},{"$f":"IF(WorkingP!$B79=\"Church Running Expenses\",WorkingP!W79,\"\")","v":""},{"$f":"IF(WorkingP!$B79=\"Church Running Expenses\",WorkingP!X79,\"\")","v":""},{"$f":"IF(WorkingP!$B79=\"Church Running Expenses\",WorkingP!Y79,\"\")","v":""},{"$f":"IF(Descriptions!K80=\"Church Running Expenses\",Descriptions!AB80,0)","v":0}]
[{"$f":"IF(Descriptions!K81=\"Church Running Expenses\",Descriptions!I81,0)","v":0},{"$f":"IF(WorkingP!$B80=\"Church Running Expenses\",WorkingP!D80,\"\")","v":""},{"$f":"IF(WorkingP!$B80=\"Church Running Expenses\",WorkingP!E80,\"\")","v":""},{"$f":"IF(WorkingP!$B80=\"Church Running Expenses\",WorkingP!F80,\"\")","v":""},{"$f":"IF(WorkingP!$B80=\"Church Running Expenses\",WorkingP!G80,\"\")","v":""},{"$f":"IF(WorkingP!$B80=\"Church Running Expenses\",WorkingP!H80,\"\")","v":""},{"$f":"IF(WorkingP!$B80=\"Church Running Expenses\",WorkingP!I80,\"\")","v":""},{"$f":"IF(WorkingP!$B80=\"Church Running Expenses\",WorkingP!J80,\"\")","v":""},{"$f":"IF(WorkingP!$B80=\"Church Running Expenses\",WorkingP!K80,\"\")","v":""},{"$f":"IF(WorkingP!$B80=\"Church Running Expenses\",WorkingP!L80,\"\")","v":""},{"$f":"IF(WorkingP!$B80=\"Church Running Expenses\",WorkingP!M80,\"\")","v":""},{"$f":"IF(WorkingP!$B80=\"Church Running Expenses\",WorkingP!N80,\"\")","v":""},{"$f":"IF(WorkingP!$B80=\"Church Running Expenses\",WorkingP!O80,\"\")","v":""},{"$f":"IF(WorkingP!$B80=\"Church Running Expenses\",WorkingP!P80,\"\")","v":""},{"$f":"IF(WorkingP!$B80=\"Church Running Expenses\",WorkingP!Q80,\"\")","v":""},{"$f":"IF(WorkingP!$B80=\"Church Running Expenses\",WorkingP!R80,\"\")","v":""},{"$f":"IF(WorkingP!$B80=\"Church Running Expenses\",WorkingP!S80,\"\")","v":""},{"$f":"IF(WorkingP!$B80=\"Church Running Expenses\",WorkingP!T80,\"\")","v":""},{"$f":"IF(WorkingP!$B80=\"Church Running Expenses\",WorkingP!U80,\"\")","v":""},{"$f":"IF(WorkingP!$B80=\"Church Running Expenses\",WorkingP!V80,\"\")","v":""},{"$f":"IF(WorkingP!$B80=\"Church Running Expenses\",WorkingP!W80,\"\")","v":""},{"$f":"IF(WorkingP!$B80=\"Church Running Expenses\",WorkingP!X80,\"\")","v":""},{"$f":"IF(WorkingP!$B80=\"Church Running Expenses\",WorkingP!Y80,\"\")","v":""},{"$f":"IF(Descriptions!K81=\"Church Running Expenses\",Descriptions!AB81,0)","v":0}]
[{"$f":"IF(Descriptions!K82=\"Church Running Expenses\",Descriptions!I82,0)","v":0},{"$f":"IF(WorkingP!$B81=\"Church Running Expenses\",WorkingP!D81,\"\")","v":""},{"$f":"IF(WorkingP!$B81=\"Church Running Expenses\",WorkingP!E81,\"\")","v":""},{"$f":"IF(WorkingP!$B81=\"Church Running Expenses\",WorkingP!F81,\"\")","v":""},{"$f":"IF(WorkingP!$B81=\"Church Running Expenses\",WorkingP!G81,\"\")","v":""},{"$f":"IF(WorkingP!$B81=\"Church Running Expenses\",WorkingP!H81,\"\")","v":""},{"$f":"IF(WorkingP!$B81=\"Church Running Expenses\",WorkingP!I81,\"\")","v":""},{"$f":"IF(WorkingP!$B81=\"Church Running Expenses\",WorkingP!J81,\"\")","v":""},{"$f":"IF(WorkingP!$B81=\"Church Running Expenses\",WorkingP!K81,\"\")","v":""},{"$f":"IF(WorkingP!$B81=\"Church Running Expenses\",WorkingP!L81,\"\")","v":""},{"$f":"IF(WorkingP!$B81=\"Church Running Expenses\",WorkingP!M81,\"\")","v":""},{"$f":"IF(WorkingP!$B81=\"Church Running Expenses\",WorkingP!N81,\"\")","v":""},{"$f":"IF(WorkingP!$B81=\"Church Running Expenses\",WorkingP!O81,\"\")","v":""},{"$f":"IF(WorkingP!$B81=\"Church Running Expenses\",WorkingP!P81,\"\")","v":""},{"$f":"IF(WorkingP!$B81=\"Church Running Expenses\",WorkingP!Q81,\"\")","v":""},{"$f":"IF(WorkingP!$B81=\"Church Running Expenses\",WorkingP!R81,\"\")","v":""},{"$f":"IF(WorkingP!$B81=\"Church Running Expenses\",WorkingP!S81,\"\")","v":""},{"$f":"IF(WorkingP!$B81=\"Church Running Expenses\",WorkingP!T81,\"\")","v":""},{"$f":"IF(WorkingP!$B81=\"Church Running Expenses\",WorkingP!U81,\"\")","v":""},{"$f":"IF(WorkingP!$B81=\"Church Running Expenses\",WorkingP!V81,\"\")","v":""},{"$f":"IF(WorkingP!$B81=\"Church Running Expenses\",WorkingP!W81,\"\")","v":""},{"$f":"IF(WorkingP!$B81=\"Church Running Expenses\",WorkingP!X81,\"\")","v":""},{"$f":"IF(WorkingP!$B81=\"Church Running Expenses\",WorkingP!Y81,\"\")","v":""},{"$f":"IF(Descriptions!K82=\"Church Running Expenses\",Descriptions!AB82,0)","v":0}]
[{"$f":"IF(Descriptions!K83=\"Church Running Expenses\",Descriptions!I83,0)","v":0},{"$f":"IF(WorkingP!$B82=\"Church Running Expenses\",WorkingP!D82,\"\")","v":""},{"$f":"IF(WorkingP!$B82=\"Church Running Expenses\",WorkingP!E82,\"\")","v":""},{"$f":"IF(WorkingP!$B82=\"Church Running Expenses\",WorkingP!F82,\"\")","v":""},{"$f":"IF(WorkingP!$B82=\"Church Running Expenses\",WorkingP!G82,\"\")","v":""},{"$f":"IF(WorkingP!$B82=\"Church Running Expenses\",WorkingP!H82,\"\")","v":""},{"$f":"IF(WorkingP!$B82=\"Church Running Expenses\",WorkingP!I82,\"\")","v":""},{"$f":"IF(WorkingP!$B82=\"Church Running Expenses\",WorkingP!J82,\"\")","v":""},{"$f":"IF(WorkingP!$B82=\"Church Running Expenses\",WorkingP!K82,\"\")","v":""},{"$f":"IF(WorkingP!$B82=\"Church Running Expenses\",WorkingP!L82,\"\")","v":""},{"$f":"IF(WorkingP!$B82=\"Church Running Expenses\",WorkingP!M82,\"\")","v":""},{"$f":"IF(WorkingP!$B82=\"Church Running Expenses\",WorkingP!N82,\"\")","v":""},{"$f":"IF(WorkingP!$B82=\"Church Running Expenses\",WorkingP!O82,\"\")","v":""},{"$f":"IF(WorkingP!$B82=\"Church Running Expenses\",WorkingP!P82,\"\")","v":""},{"$f":"IF(WorkingP!$B82=\"Church Running Expenses\",WorkingP!Q82,\"\")","v":""},{"$f":"IF(WorkingP!$B82=\"Church Running Expenses\",WorkingP!R82,\"\")","v":""},{"$f":"IF(WorkingP!$B82=\"Church Running Expenses\",WorkingP!S82,\"\")","v":""},{"$f":"IF(WorkingP!$B82=\"Church Running Expenses\",WorkingP!T82,\"\")","v":""},{"$f":"IF(WorkingP!$B82=\"Church Running Expenses\",WorkingP!U82,\"\")","v":""},{"$f":"IF(WorkingP!$B82=\"Church Running Expenses\",WorkingP!V82,\"\")","v":""},{"$f":"IF(WorkingP!$B82=\"Church Running Expenses\",WorkingP!W82,\"\")","v":""},{"$f":"IF(WorkingP!$B82=\"Church Running Expenses\",WorkingP!X82,\"\")","v":""},{"$f":"IF(WorkingP!$B82=\"Church Running Expenses\",WorkingP!Y82,\"\")","v":""},{"$f":"IF(Descriptions!K83=\"Church Running Expenses\",Descriptions!AB83,0)","v":0}]
[{"$f":"IF(Descriptions!K84=\"Church Running Expenses\",Descriptions!I84,0)","v":0},{"$f":"IF(WorkingP!$B83=\"Church Running Expenses\",WorkingP!D83,\"\")","v":""},{"$f":"IF(WorkingP!$B83=\"Church Running Expenses\",WorkingP!E83,\"\")","v":""},{"$f":"IF(WorkingP!$B83=\"Church Running Expenses\",WorkingP!F83,\"\")","v":""},{"$f":"IF(WorkingP!$B83=\"Church Running Expenses\",WorkingP!G83,\"\")","v":""},{"$f":"IF(WorkingP!$B83=\"Church Running Expenses\",WorkingP!H83,\"\")","v":""},{"$f":"IF(WorkingP!$B83=\"Church Running Expenses\",WorkingP!I83,\"\")","v":""},{"$f":"IF(WorkingP!$B83=\"Church Running Expenses\",WorkingP!J83,\"\")","v":""},{"$f":"IF(WorkingP!$B83=\"Church Running Expenses\",WorkingP!K83,\"\")","v":""},{"$f":"IF(WorkingP!$B83=\"Church Running Expenses\",WorkingP!L83,\"\")","v":""},{"$f":"IF(WorkingP!$B83=\"Church Running Expenses\",WorkingP!M83,\"\")","v":""},{"$f":"IF(WorkingP!$B83=\"Church Running Expenses\",WorkingP!N83,\"\")","v":""},{"$f":"IF(WorkingP!$B83=\"Church Running Expenses\",WorkingP!O83,\"\")","v":""},{"$f":"IF(WorkingP!$B83=\"Church Running Expenses\",WorkingP!P83,\"\")","v":""},{"$f":"IF(WorkingP!$B83=\"Church Running Expenses\",WorkingP!Q83,\"\")","v":""},{"$f":"IF(WorkingP!$B83=\"Church Running Expenses\",WorkingP!R83,\"\")","v":""},{"$f":"IF(WorkingP!$B83=\"Church Running Expenses\",WorkingP!S83,\"\")","v":""},{"$f":"IF(WorkingP!$B83=\"Church Running Expenses\",WorkingP!T83,\"\")","v":""},{"$f":"IF(WorkingP!$B83=\"Church Running Expenses\",WorkingP!U83,\"\")","v":""},{"$f":"IF(WorkingP!$B83=\"Church Running Expenses\",WorkingP!V83,\"\")","v":""},{"$f":"IF(WorkingP!$B83=\"Church Running Expenses\",WorkingP!W83,\"\")","v":""},{"$f":"IF(WorkingP!$B83=\"Church Running Expenses\",WorkingP!X83,\"\")","v":""},{"$f":"IF(WorkingP!$B83=\"Church Running Expenses\",WorkingP!Y83,\"\")","v":""},{"$f":"IF(Descriptions!K84=\"Church Running Expenses\",Descriptions!AB84,0)","v":0}]
[null,{"$f":"SUM(B677:B732)","v":0},0,0,0,0,0,0,0,0,0,0,0,0,0,0,0,0,0,0,0,0,null,{"$f":"X676","v":0}]
["MISSION GIVING AND DONATIONS",null,null,null,null,null,null,null,null,null,null,null,null,null,null,null,null,null,null,null,null,null,null,{"$f":"SUM(X735:X788)","v":0}]
["Charities - Home (UK)",{"$f":"WorkingP!D8","v":0},{"$f":"WorkingP!E8","v":0},{"$f":"WorkingP!F8","v":0},{"$f":"WorkingP!G8","v":0},{"$f":"WorkingP!H8","v":0},{"$f":"WorkingP!I8","v":0},{"$f":"WorkingP!J8","v":0},{"$f":"WorkingP!K8","v":0},{"$f":"WorkingP!L8","v":0},{"$f":"WorkingP!M8","v":0},{"$f":"WorkingP!N8","v":0},{"$f":"WorkingP!O8","v":0},{"$f":"WorkingP!P8","v":0},{"$f":"WorkingP!Q8","v":0},{"$f":"WorkingP!R8","v":0},{"$f":"WorkingP!S8","v":0},{"$f":"WorkingP!T8","v":0},{"$f":"WorkingP!U8","v":0},{"$f":"WorkingP!V8","v":0},{"$f":"WorkingP!W8","v":0},{"$f":"WorkingP!X8","v":0},{"$f":"WorkingP!Y8","v":0},{"$f":"Descriptions!AB9","v":0}]
["Charities - Overseas",{"$f":"WorkingP!D9","v":0},{"$f":"WorkingP!E9","v":0},{"$f":"WorkingP!F9","v":0},{"$f":"WorkingP!G9","v":0},{"$f":"WorkingP!H9","v":0},{"$f":"WorkingP!I9","v":0},{"$f":"WorkingP!J9","v":0},{"$f":"WorkingP!K9","v":0},{"$f":"WorkingP!L9","v":0},{"$f":"WorkingP!M9","v":0},{"$f":"WorkingP!N9","v":0},{"$f":"WorkingP!O9","v":0},{"$f":"WorkingP!P9","v":0},{"$f":"WorkingP!Q9","v":0},{"$f":"WorkingP!R9","v":0},{"$f":"WorkingP!S9","v":0},{"$f":"WorkingP!T9","v":0},{"$f":"WorkingP!U9","v":0},{"$f":"WorkingP!V9","v":0},{"$f":"WorkingP!W9","v":0},{"$f":"WorkingP!X9","v":0},{"$f":"WorkingP!Y9","v":0},{"$f":"Descriptions!AB10","v":0}]
["Charities - Secular",{"$f":"WorkingP!D10","v":0},{"$f":"WorkingP!E10","v":0},{"$f":"WorkingP!F10","v":0},{"$f":"WorkingP!G10","v":0},{"$f":"WorkingP!H10","v":0},{"$f":"WorkingP!I10","v":0},{"$f":"WorkingP!J10","v":0},{"$f":"WorkingP!K10","v":0},{"$f":"WorkingP!L10","v":0},{"$f":"WorkingP!M10","v":0},{"$f":"WorkingP!N10","v":0},{"$f":"WorkingP!O10","v":0},{"$f":"WorkingP!P10","v":0},{"$f":"WorkingP!Q10","v":0},{"$f":"WorkingP!R10","v":0},{"$f":"WorkingP!S10","v":0},{"$f":"WorkingP!T10","v":0},{"$f":"WorkingP!U10","v":0},{"$f":"WorkingP!V10","v":0},{"$f":"WorkingP!W10","v":0},{"$f":"WorkingP!X10","v":0},{"$f":"WorkingP!Y10","v":0},{"$f":"Descriptions!AB11","v":0}]
["Charities - Christian Relief",{"$f":"WorkingP!D7","v":0},{"$f":"WorkingP!E7","v":0},{"$f":"WorkingP!F7","v":0},{"$f":"WorkingP!G7","v":0},{"$f":"WorkingP!H7","v":0},{"$f":"WorkingP!I7","v":0},{"$f":"WorkingP!J7","v":0},{"$f":"WorkingP!K7","v":0},{"$f":"WorkingP!L7","v":0},{"$f":"WorkingP!M7","v":0},{"$f":"WorkingP!N7","v":0},{"$f":"WorkingP!O7","v":0},{"$f":"WorkingP!P7","v":0},{"$f":"WorkingP!Q7","v":0},{"$f":"WorkingP!R7","v":0},{"$f":"WorkingP!S7","v":0},{"$f":"WorkingP!T7","v":0},{"$f":"WorkingP!U7","v":0},{"$f":"WorkingP!V7","v":0},{"$f":"WorkingP!W7","v":0},{"$f":"WorkingP!X7","v":0},{"$f":"WorkingP!Y7","v":0},{"$f":"Descriptions!AB8","v":0}]
[{"$f":"IF(Descriptions!K35=\"Mission Giving and Donations\",Descriptions!I35,0)","v":0},{"$f":"IF(WorkingP!$B34=\"Mission Giving and Donations\",WorkingP!D34,\"\")","v":""},{"$f":"IF(WorkingP!$B34=\"Mission Giving and Donations\",WorkingP!E34,\"\")","v":""},{"$f":"IF(WorkingP!$B34=\"Mission Giving and Donations\",WorkingP!F34,\"\")","v":""},{"$f":"IF(WorkingP!$B34=\"Mission Giving and Donations\",WorkingP!G34,\"\")","v":""},{"$f":"IF(WorkingP!$B34=\"Mission Giving and Donations\",WorkingP!H34,\"\")","v":""},{"$f":"IF(WorkingP!$B34=\"Mission Giving and Donations\",WorkingP!I34,\"\")","v":""},{"$f":"IF(WorkingP!$B34=\"Mission Giving and Donations\",WorkingP!J34,\"\")","v":""},{"$f":"IF(WorkingP!$B34=\"Mission Giving and Donations\",WorkingP!K34,\"\")","v":""},{"$f":"IF(WorkingP!$B34=\"Mission Giving and Donations\",WorkingP!L34,\"\")","v":""},{"$f":"IF(WorkingP!$B34=\"Mission Giving and Donations\",WorkingP!M34,\"\")","v":""},{"$f":"IF(WorkingP!$B34=\"Mission Giving and Donations\",WorkingP!N34,\"\")","v":""},{"$f":"IF(WorkingP!$B34=\"Mission Giving and Donations\",WorkingP!O34,\"\")","v":""},{"$f":"IF(WorkingP!$B34=\"Mission Giving and Donations\",WorkingP!P34,\"\")","v":""},{"$f":"IF(WorkingP!$B34=\"Mission Giving and Donations\",WorkingP!Q34,\"\")","v":""},{"$f":"IF(WorkingP!$B34=\"Mission Giving and Donations\",WorkingP!R34,\"\")","v":""},{"$f":"IF(WorkingP!$B34=\"Mission Giving and Donations\",WorkingP!S34,\"\")","v":""},{"$f":"IF(WorkingP!$B34=\"Mission Giving and Donations\",WorkingP!T34,\"\")","v":""},{"$f":"IF(WorkingP!$B34=\"Mission Giving and Donations\",WorkingP!U34,\"\")","v":""},{"$f":"IF(WorkingP!$B34=\"Mission Giving and Donations\",WorkingP!V34,\"\")","v":""},{"$f":"IF(WorkingP!$B34=\"Mission Giving and Donations\",WorkingP!W34,\"\")","v":""},{"$f":"IF(WorkingP!$B34=\"Mission Giving and Donations\",WorkingP!X34,\"\")","v":""},{"$f":"IF(WorkingP!$B34=\"Mission Giving and Donations\",WorkingP!Y34,\"\")","v":""},{"$f":"IF(Descriptions!K35=\"Mission Giving and Donations\",Descriptions!AB35,0)","v":0}]
[{"$f":"IF(Descriptions!K36=\"Mission Giving and Donations\",Descriptions!I36,0)","v":0},{"$f":"IF(WorkingP!$B35=\"Mission Giving and Donations\",WorkingP!D35,\"\")","v":""},{"$f":"IF(WorkingP!$B35=\"Mission Giving and Donations\",WorkingP!E35,\"\")","v":""},{"$f":"IF(WorkingP!$B35=\"Mission Giving and Donations\",WorkingP!F35,\"\")","v":""},{"$f":"IF(WorkingP!$B35=\"Mission Giving and Donations\",WorkingP!G35,\"\")","v":""},{"$f":"IF(WorkingP!$B35=\"Mission Giving and Donations\",WorkingP!H35,\"\")","v":""},{"$f":"IF(WorkingP!$B35=\"Mission Giving and Donations\",WorkingP!I35,\"\")","v":""},{"$f":"IF(WorkingP!$B35=\"Mission Giving and Donations\",WorkingP!J35,\"\")","v":""},{"$f":"IF(WorkingP!$B35=\"Mission Giving and Donations\",WorkingP!K35,\"\")","v":""},{"$f":"IF(WorkingP!$B35=\"Mission Giving and Donations\",WorkingP!L35,\"\")","v":""},{"$f":"IF(WorkingP!$B35=\"Mission Giving and Donations\",WorkingP!M35,\"\")","v":""},{"$f":"IF(WorkingP!$B35=\"Mission Giving and Donations\",WorkingP!N35,\"\")","v":""},{"$f":"IF(WorkingP!$B35=\"Mission Giving and Donations\",WorkingP!O35,\"\")","v":""},{"$f":"IF(WorkingP!$B35=\"Mission Giving and Donations\",WorkingP!P35,\"\")","v":""},{"$f":"IF(WorkingP!$B35=\"Mission Giving and Donations\",WorkingP!Q35,\"\")","v":""},{"$f":"IF(WorkingP!$B35=\"Mission Giving and Donations\",WorkingP!R35,\"\")","v":""},{"$f":"IF(WorkingP!$B35=\"Mission Giving and Donations\",WorkingP!S35,\"\")","v":""},{"$f":"IF(WorkingP!$B35=\"Mission Giving and Donations\",WorkingP!T35,\"\")","v":""},{"$f":"IF(WorkingP!$B35=\"Mission Giving and Donations\",WorkingP!U35,\"\")","v":""},{"$f":"IF(WorkingP!$B35=\"Mission Giving and Donations\",WorkingP!V35,\"\")","v":""},{"$f":"IF(WorkingP!$B35=\"Mission Giving and Donations\",WorkingP!W35,\"\")","v":""},{"$f":"IF(WorkingP!$B35=\"Mission Giving and Donations\",WorkingP!X35,\"\")","v":""},{"$f":"IF(WorkingP!$B35=\"Mission Giving and Donations\",WorkingP!Y35,\"\")","v":""},{"$f":"IF(Descriptions!K36=\"Mission Giving and Donations\",Descriptions!AB36,0)","v":0}]
[{"$f":"IF(Descriptions!K37=\"Mission Giving and Donations\",Descriptions!I37,0)","v":0},{"$f":"IF(WorkingP!$B36=\"Mission Giving and Donations\",WorkingP!D36,\"\")","v":""},{"$f":"IF(WorkingP!$B36=\"Mission Giving and Donations\",WorkingP!E36,\"\")","v":""},{"$f":"IF(WorkingP!$B36=\"Mission Giving and Donations\",WorkingP!F36,\"\")","v":""},{"$f":"IF(WorkingP!$B36=\"Mission Giving and Donations\",WorkingP!G36,\"\")","v":""},{"$f":"IF(WorkingP!$B36=\"Mission Giving and Donations\",WorkingP!H36,\"\")","v":""},{"$f":"IF(WorkingP!$B36=\"Mission Giving and Donations\",WorkingP!I36,\"\")","v":""},{"$f":"IF(WorkingP!$B36=\"Mission Giving and Donations\",WorkingP!J36,\"\")","v":""},{"$f":"IF(WorkingP!$B36=\"Mission Giving and Donations\",WorkingP!K36,\"\")","v":""},{"$f":"IF(WorkingP!$B36=\"Mission Giving and Donations\",WorkingP!L36,\"\")","v":""},{"$f":"IF(WorkingP!$B36=\"Mission Giving and Donations\",WorkingP!M36,\"\")","v":""},{"$f":"IF(WorkingP!$B36=\"Mission Giving and Donations\",WorkingP!N36,\"\")","v":""},{"$f":"IF(WorkingP!$B36=\"Mission Giving and Donations\",WorkingP!O36,\"\")","v":""},{"$f":"IF(WorkingP!$B36=\"Mission Giving and Donations\",WorkingP!P36,\"\")","v":""},{"$f":"IF(WorkingP!$B36=\"Mission Giving and Donations\",WorkingP!Q36,\"\")","v":""},{"$f":"IF(WorkingP!$B36=\"Mission Giving and Donations\",WorkingP!R36,\"\")","v":""},{"$f":"IF(WorkingP!$B36=\"Mission Giving and Donations\",WorkingP!S36,\"\")","v":""},{"$f":"IF(WorkingP!$B36=\"Mission Giving and Donations\",WorkingP!T36,\"\")","v":""},{"$f":"IF(WorkingP!$B36=\"Mission Giving and Donations\",WorkingP!U36,\"\")","v":""},{"$f":"IF(WorkingP!$B36=\"Mission Giving and Donations\",WorkingP!V36,\"\")","v":""},{"$f":"IF(WorkingP!$B36=\"Mission Giving and Donations\",WorkingP!W36,\"\")","v":""},{"$f":"IF(WorkingP!$B36=\"Mission Giving and Donations\",WorkingP!X36,\"\")","v":""},{"$f":"IF(WorkingP!$B36=\"Mission Giving and Donations\",WorkingP!Y36,\"\")","v":""},{"$f":"IF(Descriptions!K37=\"Mission Giving and Donations\",Descriptions!AB37,0)","v":0}]
[{"$f":"IF(Descriptions!K38=\"Mission Giving and Donations\",Descriptions!I38,0)","v":0},{"$f":"IF(WorkingP!$B37=\"Mission Giving and Donations\",WorkingP!D37,\"\")","v":""},{"$f":"IF(WorkingP!$B37=\"Mission Giving and Donations\",WorkingP!E37,\"\")","v":""},{"$f":"IF(WorkingP!$B37=\"Mission Giving and Donations\",WorkingP!F37,\"\")","v":""},{"$f":"IF(WorkingP!$B37=\"Mission Giving and Donations\",WorkingP!G37,\"\")","v":""},{"$f":"IF(WorkingP!$B37=\"Mission Giving and Donations\",WorkingP!H37,\"\")","v":""},{"$f":"IF(WorkingP!$B37=\"Mission Giving and Donations\",WorkingP!I37,\"\")","v":""},{"$f":"IF(WorkingP!$B37=\"Mission Giving and Donations\",WorkingP!J37,\"\")","v":""},{"$f":"IF(WorkingP!$B37=\"Mission Giving and Donations\",WorkingP!K37,\"\")","v":""},{"$f":"IF(WorkingP!$B37=\"Mission Giving and Donations\",WorkingP!L37,\"\")","v":""},{"$f":"IF(WorkingP!$B37=\"Mission Giving and Donations\",WorkingP!M37,\"\")","v":""},{"$f":"IF(WorkingP!$B37=\"Mission Giving and Donations\",WorkingP!N37,\"\")","v":""},{"$f":"IF(WorkingP!$B37=\"Mission Giving and Donations\",WorkingP!O37,\"\")","v":""},{"$f":"IF(WorkingP!$B37=\"Mission Giving and Donations\",WorkingP!P37,\"\")","v":""},{"$f":"IF(WorkingP!$B37=\"Mission Giving and Donations\",WorkingP!Q37,\"\")","v":""},{"$f":"IF(WorkingP!$B37=\"Mission Giving and Donations\",WorkingP!R37,\"\")","v":""},{"$f":"IF(WorkingP!$B37=\"Mission Giving and Donations\",WorkingP!S37,\"\")","v":""},{"$f":"IF(WorkingP!$B37=\"Mission Giving and Donations\",WorkingP!T37,\"\")","v":""},{"$f":"IF(WorkingP!$B37=\"Mission Giving and Donations\",WorkingP!U37,\"\")","v":""},{"$f":"IF(WorkingP!$B37=\"Mission Giving and Donations\",WorkingP!V37,\"\")","v":""},{"$f":"IF(WorkingP!$B37=\"Mission Giving and Donations\",WorkingP!W37,\"\")","v":""},{"$f":"IF(WorkingP!$B37=\"Mission Giving and Donations\",WorkingP!X37,\"\")","v":""},{"$f":"IF(WorkingP!$B37=\"Mission Giving and Donations\",WorkingP!Y37,\"\")","v":""},{"$f":"IF(Descriptions!K38=\"Mission Giving and Donations\",Descriptions!AB38,0)","v":0}]
[{"$f":"IF(Descriptions!K39=\"Mission Giving and Donations\",Descriptions!I39,0)","v":0},{"$f":"IF(WorkingP!$B38=\"Mission Giving and Donations\",WorkingP!D38,\"\")","v":""},{"$f":"IF(WorkingP!$B38=\"Mission Giving and Donations\",WorkingP!E38,\"\")","v":""},{"$f":"IF(WorkingP!$B38=\"Mission Giving and Donations\",WorkingP!F38,\"\")","v":""},{"$f":"IF(WorkingP!$B38=\"Mission Giving and Donations\",WorkingP!G38,\"\")","v":""},{"$f":"IF(WorkingP!$B38=\"Mission Giving and Donations\",WorkingP!H38,\"\")","v":""},{"$f":"IF(WorkingP!$B38=\"Mission Giving and Donations\",WorkingP!I38,\"\")","v":""},{"$f":"IF(WorkingP!$B38=\"Mission Giving and Donations\",WorkingP!J38,\"\")","v":""},{"$f":"IF(WorkingP!$B38=\"Mission Giving and Donations\",WorkingP!K38,\"\")","v":""},{"$f":"IF(WorkingP!$B38=\"Mission Giving and Donations\",WorkingP!L38,\"\")","v":""},{"$f":"IF(WorkingP!$B38=\"Mission Giving and Donations\",WorkingP!M38,\"\")","v":""},{"$f":"IF(WorkingP!$B38=\"Mission Giving and Donations\",WorkingP!N38,\"\")","v":""},{"$f":"IF(WorkingP!$B38=\"Mission Giving and Donations\",WorkingP!O38,\"\")","v":""},{"$f":"IF(WorkingP!$B38=\"Mission Giving and Donations\",WorkingP!P38,\"\")","v":""},{"$f":"IF(WorkingP!$B38=\"Mission Giving and Donations\",WorkingP!Q38,\"\")","v":""},{"$f":"IF(WorkingP!$B38=\"Mission Giving and Donations\",WorkingP!R38,\"\")","v":""},{"$f":"IF(WorkingP!$B38=\"Mission Giving and Donations\",WorkingP!S38,\"\")","v":""},{"$f":"IF(WorkingP!$B38=\"Mission Giving and Donations\",WorkingP!T38,\"\")","v":""},{"$f":"IF(WorkingP!$B38=\"Mission Giving and Donations\",WorkingP!U38,\"\")","v":""},{"$f":"IF(WorkingP!$B38=\"Mission Giving and Donations\",WorkingP!V38,\"\")","v":""},{"$f":"IF(WorkingP!$B38=\"Mission Giving and Donations\",WorkingP!W38,\"\")","v":""},{"$f":"IF(WorkingP!$B38=\"Mission Giving and Donations\",WorkingP!X38,\"\")","v":""},{"$f":"IF(WorkingP!$B38=\"Mission Giving and Donations\",WorkingP!Y38,\"\")","v":""},{"$f":"IF(Descriptions!K39=\"Mission Giving and Donations\",Descriptions!AB39,0)","v":0}]
[{"$f":"IF(Descriptions!K40=\"Mission Giving and Donations\",Descriptions!I40,0)","v":0},{"$f":"IF(WorkingP!$B39=\"Mission Giving and Donations\",WorkingP!D39,\"\")","v":""},{"$f":"IF(WorkingP!$B39=\"Mission Giving and Donations\",WorkingP!E39,\"\")","v":""},{"$f":"IF(WorkingP!$B39=\"Mission Giving and Donations\",WorkingP!F39,\"\")","v":""},{"$f":"IF(WorkingP!$B39=\"Mission Giving and Donations\",WorkingP!G39,\"\")","v":""},{"$f":"IF(WorkingP!$B39=\"Mission Giving and Donations\",WorkingP!H39,\"\")","v":""},{"$f":"IF(WorkingP!$B39=\"Mission Giving and Donations\",WorkingP!I39,\"\")","v":""},{"$f":"IF(WorkingP!$B39=\"Mission Giving and Donations\",WorkingP!J39,\"\")","v":""},{"$f":"IF(WorkingP!$B39=\"Mission Giving and Donations\",WorkingP!K39,\"\")","v":""},{"$f":"IF(WorkingP!$B39=\"Mission Giving and Donations\",WorkingP!L39,\"\")","v":""},{"$f":"IF(WorkingP!$B39=\"Mission Giving and Donations\",WorkingP!M39,\"\")","v":""},{"$f":"IF(WorkingP!$B39=\"Mission Giving and Donations\",WorkingP!N39,\"\")","v":""},{"$f":"IF(WorkingP!$B39=\"Mission Giving and Donations\",WorkingP!O39,\"\")","v":""},{"$f":"IF(WorkingP!$B39=\"Mission Giving and Donations\",WorkingP!P39,\"\")","v":""},{"$f":"IF(WorkingP!$B39=\"Mission Giving and Donations\",WorkingP!Q39,\"\")","v":""},{"$f":"IF(WorkingP!$B39=\"Mission Giving and Donations\",WorkingP!R39,\"\")","v":""},{"$f":"IF(WorkingP!$B39=\"Mission Giving and Donations\",WorkingP!S39,\"\")","v":""},{"$f":"IF(WorkingP!$B39=\"Mission Giving and Donations\",WorkingP!T39,\"\")","v":""},{"$f":"IF(WorkingP!$B39=\"Mission Giving and Donations\",WorkingP!U39,\"\")","v":""},{"$f":"IF(WorkingP!$B39=\"Mission Giving and Donations\",WorkingP!V39,\"\")","v":""},{"$f":"IF(WorkingP!$B39=\"Mission Giving and Donations\",WorkingP!W39,\"\")","v":""},{"$f":"IF(WorkingP!$B39=\"Mission Giving and Donations\",WorkingP!X39,\"\")","v":""},{"$f":"IF(WorkingP!$B39=\"Mission Giving and Donations\",WorkingP!Y39,\"\")","v":""},{"$f":"IF(Descriptions!K40=\"Mission Giving and Donations\",Descriptions!AB40,0)","v":0}]
[{"$f":"IF(Descriptions!K41=\"Mission Giving and Donations\",Descriptions!I41,0)","v":0},{"$f":"IF(WorkingP!$B40=\"Mission Giving and Donations\",WorkingP!D40,\"\")","v":""},{"$f":"IF(WorkingP!$B40=\"Mission Giving and Donations\",WorkingP!E40,\"\")","v":""},{"$f":"IF(WorkingP!$B40=\"Mission Giving and Donations\",WorkingP!F40,\"\")","v":""},{"$f":"IF(WorkingP!$B40=\"Mission Giving and Donations\",WorkingP!G40,\"\")","v":""},{"$f":"IF(WorkingP!$B40=\"Mission Giving and Donations\",WorkingP!H40,\"\")","v":""},{"$f":"IF(WorkingP!$B40=\"Mission Giving and Donations\",WorkingP!I40,\"\")","v":""},{"$f":"IF(WorkingP!$B40=\"Mission Giving and Donations\",WorkingP!J40,\"\")","v":""},{"$f":"IF(WorkingP!$B40=\"Mission Giving and Donations\",WorkingP!K40,\"\")","v":""},{"$f":"IF(WorkingP!$B40=\"Mission Giving and Donations\",WorkingP!L40,\"\")","v":""},{"$f":"IF(WorkingP!$B40=\"Mission Giving and Donations\",WorkingP!M40,\"\")","v":""},{"$f":"IF(WorkingP!$B40=\"Mission Giving and Donations\",WorkingP!N40,\"\")","v":""},{"$f":"IF(WorkingP!$B40=\"Mission Giving and Donations\",WorkingP!O40,\"\")","v":""},{"$f":"IF(WorkingP!$B40=\"Mission Giving and Donations\",WorkingP!P40,\"\")","v":""},{"$f":"IF(WorkingP!$B40=\"Mission Giving and Donations\",WorkingP!Q40,\"\")","v":""},{"$f":"IF(WorkingP!$B40=\"Mission Giving and Donations\",WorkingP!R40,\"\")","v":""},{"$f":"IF(WorkingP!$B40=\"Mission Giving and Donations\",WorkingP!S40,\"\")","v":""},{"$f":"IF(WorkingP!$B40=\"Mission Giving and Donations\",WorkingP!T40,\"\")","v":""},{"$f":"IF(WorkingP!$B40=\"Mission Giving and Donations\",WorkingP!U40,\"\")","v":""},{"$f":"IF(WorkingP!$B40=\"Mission Giving and Donations\",WorkingP!V40,\"\")","v":""},{"$f":"IF(WorkingP!$B40=\"Mission Giving and Donations\",WorkingP!W40,\"\")","v":""},{"$f":"IF(WorkingP!$B40=\"Mission Giving and Donations\",WorkingP!X40,\"\")","v":""},{"$f":"IF(WorkingP!$B40=\"Mission Giving and Donations\",WorkingP!Y40,\"\")","v":""},{"$f":"IF(Descriptions!K41=\"Mission Giving and Donations\",Descriptions!AB41,0)","v":0}]
[{"$f":"IF(Descriptions!K42=\"Mission Giving and Donations\",Descriptions!I42,0)","v":0},{"$f":"IF(WorkingP!$B41=\"Mission Giving and Donations\",WorkingP!D41,\"\")","v":""},{"$f":"IF(WorkingP!$B41=\"Mission Giving and Donations\",WorkingP!E41,\"\")","v":""},{"$f":"IF(WorkingP!$B41=\"Mission Giving and Donations\",WorkingP!F41,\"\")","v":""},{"$f":"IF(WorkingP!$B41=\"Mission Giving and Donations\",WorkingP!G41,\"\")","v":""},{"$f":"IF(WorkingP!$B41=\"Mission Giving and Donations\",WorkingP!H41,\"\")","v":""},{"$f":"IF(WorkingP!$B41=\"Mission Giving and Donations\",WorkingP!I41,\"\")","v":""},{"$f":"IF(WorkingP!$B41=\"Mission Giving and Donations\",WorkingP!J41,\"\")","v":""},{"$f":"IF(WorkingP!$B41=\"Mission Giving and Donations\",WorkingP!K41,\"\")","v":""},{"$f":"IF(WorkingP!$B41=\"Mission Giving and Donations\",WorkingP!L41,\"\")","v":""},{"$f":"IF(WorkingP!$B41=\"Mission Giving and Donations\",WorkingP!M41,\"\")","v":""},{"$f":"IF(WorkingP!$B41=\"Mission Giving and Donations\",WorkingP!N41,\"\")","v":""},{"$f":"IF(WorkingP!$B41=\"Mission Giving and Donations\",WorkingP!O41,\"\")","v":""},{"$f":"IF(WorkingP!$B41=\"Mission Giving and Donations\",WorkingP!P41,\"\")","v":""},{"$f":"IF(WorkingP!$B41=\"Mission Giving and Donations\",WorkingP!Q41,\"\")","v":""},{"$f":"IF(WorkingP!$B41=\"Mission Giving and Donations\",WorkingP!R41,\"\")","v":""},{"$f":"IF(WorkingP!$B41=\"Mission Giving and Donations\",WorkingP!S41,\"\")","v":""},{"$f":"IF(WorkingP!$B41=\"Mission Giving and Donations\",WorkingP!T41,\"\")","v":""},{"$f":"IF(WorkingP!$B41=\"Mission Giving and Donations\",WorkingP!U41,\"\")","v":""},{"$f":"IF(WorkingP!$B41=\"Mission Giving and Donations\",WorkingP!V41,\"\")","v":""},{"$f":"IF(WorkingP!$B41=\"Mission Giving and Donations\",WorkingP!W41,\"\")","v":""},{"$f":"IF(WorkingP!$B41=\"Mission Giving and Donations\",WorkingP!X41,\"\")","v":""},{"$f":"IF(WorkingP!$B41=\"Mission Giving and Donations\",WorkingP!Y41,\"\")","v":""},{"$f":"IF(Descriptions!K42=\"Mission Giving and Donations\",Descriptions!AB42,0)","v":0}]
[{"$f":"IF(Descriptions!K43=\"Mission Giving and Donations\",Descriptions!I43,0)","v":0},{"$f":"IF(WorkingP!$B42=\"Mission Giving and Donations\",WorkingP!D42,\"\")","v":""},{"$f":"IF(WorkingP!$B42=\"Mission Giving and Donations\",WorkingP!E42,\"\")","v":""},{"$f":"IF(WorkingP!$B42=\"Mission Giving and Donations\",WorkingP!F42,\"\")","v":""},{"$f":"IF(WorkingP!$B42=\"Mission Giving and Donations\",WorkingP!G42,\"\")","v":""},{"$f":"IF(WorkingP!$B42=\"Mission Giving and Donations\",WorkingP!H42,\"\")","v":""},{"$f":"IF(WorkingP!$B42=\"Mission Giving and Donations\",WorkingP!I42,\"\")","v":""},{"$f":"IF(WorkingP!$B42=\"Mission Giving and Donations\",WorkingP!J42,\"\")","v":""},{"$f":"IF(WorkingP!$B42=\"Mission Giving and Donations\",WorkingP!K42,\"\")","v":""},{"$f":"IF(WorkingP!$B42=\"Mission Giving and Donations\",WorkingP!L42,\"\")","v":""},{"$f":"IF(WorkingP!$B42=\"Mission Giving and Donations\",WorkingP!M42,\"\")","v":""},{"$f":"IF(WorkingP!$B42=\"Mission Giving and Donations\",WorkingP!N42,\"\")","v":""},{"$f":"IF(WorkingP!$B42=\"Mission Giving and Donations\",WorkingP!O42,\"\")","v":""},{"$f":"IF(WorkingP!$B42=\"Mission Giving and Donations\",WorkingP!P42,\"\")","v":""},{"$f":"IF(WorkingP!$B42=\"Mission Giving and Donations\",WorkingP!Q42,\"\")","v":""},{"$f":"IF(WorkingP!$B42=\"Mission Giving and Donations\",WorkingP!R42,\"\")","v":""},{"$f":"IF(WorkingP!$B42=\"Mission Giving and Donations\",WorkingP!S42,\"\")","v":""},{"$f":"IF(WorkingP!$B42=\"Mission Giving and Donations\",WorkingP!T42,\"\")","v":""},{"$f":"IF(WorkingP!$B42=\"Mission Giving and Donations\",WorkingP!U42,\"\")","v":""},{"$f":"IF(WorkingP!$B42=\"Mission Giving and Donations\",WorkingP!V42,\"\")","v":""},{"$f":"IF(WorkingP!$B42=\"Mission Giving and Donations\",WorkingP!W42,\"\")","v":""},{"$f":"IF(WorkingP!$B42=\"Mission Giving and Donations\",WorkingP!X42,\"\")","v":""},{"$f":"IF(WorkingP!$B42=\"Mission Giving and Donations\",WorkingP!Y42,\"\")","v":""},{"$f":"IF(Descriptions!K43=\"Mission Giving and Donations\",Descriptions!AB43,0)","v":0}]
[{"$f":"IF(Descriptions!K44=\"Mission Giving and Donations\",Descriptions!I44,0)","v":0},{"$f":"IF(WorkingP!$B43=\"Mission Giving and Donations\",WorkingP!D43,\"\")","v":""},{"$f":"IF(WorkingP!$B43=\"Mission Giving and Donations\",WorkingP!E43,\"\")","v":""},{"$f":"IF(WorkingP!$B43=\"Mission Giving and Donations\",WorkingP!F43,\"\")","v":""},{"$f":"IF(WorkingP!$B43=\"Mission Giving and Donations\",WorkingP!G43,\"\")","v":""},{"$f":"IF(WorkingP!$B43=\"Mission Giving and Donations\",WorkingP!H43,\"\")","v":""},{"$f":"IF(WorkingP!$B43=\"Mission Giving and Donations\",WorkingP!I43,\"\")","v":""},{"$f":"IF(WorkingP!$B43=\"Mission Giving and Donations\",WorkingP!J43,\"\")","v":""},{"$f":"IF(WorkingP!$B43=\"Mission Giving and Donations\",WorkingP!K43,\"\")","v":""},{"$f":"IF(WorkingP!$B43=\"Mission Giving and Donations\",WorkingP!L43,\"\")","v":""},{"$f":"IF(WorkingP!$B43=\"Mission Giving and Donations\",WorkingP!M43,\"\")","v":""},{"$f":"IF(WorkingP!$B43=\"Mission Giving and Donations\",WorkingP!N43,\"\")","v":""},{"$f":"IF(WorkingP!$B43=\"Mission Giving and Donations\",WorkingP!O43,\"\")","v":""},{"$f":"IF(WorkingP!$B43=\"Mission Giving and Donations\",WorkingP!P43,\"\")","v":""},{"$f":"IF(WorkingP!$B43=\"Mission Giving and Donations\",WorkingP!Q43,\"\")","v":""},{"$f":"IF(WorkingP!$B43=\"Mission Giving and Donations\",WorkingP!R43,\"\")","v":""},{"$f":"IF(WorkingP!$B43=\"Mission Giving and Donations\",WorkingP!S43,\"\")","v":""},{"$f":"IF(WorkingP!$B43=\"Mission Giving and Donations\",WorkingP!T43,\"\")","v":""},{"$f":"IF(WorkingP!$B43=\"Mission Giving and Donations\",WorkingP!U43,\"\")","v":""},{"$f":"IF(WorkingP!$B43=\"Mission Giving and Donations\",WorkingP!V43,\"\")","v":""},{"$f":"IF(WorkingP!$B43=\"Mission Giving and Donations\",WorkingP!W43,\"\")","v":""},{"$f":"IF(WorkingP!$B43=\"Mission Giving and Donations\",WorkingP!X43,\"\")","v":""},{"$f":"IF(WorkingP!$B43=\"Mission Giving and Donations\",WorkingP!Y43,\"\")","v":""},{"$f":"IF(Descriptions!K44=\"Mission Giving and Donations\",Descriptions!AB44,0)","v":0}]
[{"$f":"IF(Descriptions!K45=\"Mission Giving and Donations\",Descriptions!I45,0)","v":0},{"$f":"IF(WorkingP!$B44=\"Mission Giving and Donations\",WorkingP!D44,\"\")","v":""},{"$f":"IF(WorkingP!$B44=\"Mission Giving and Donations\",WorkingP!E44,\"\")","v":""},{"$f":"IF(WorkingP!$B44=\"Mission Giving and Donations\",WorkingP!F44,\"\")","v":""},{"$f":"IF(WorkingP!$B44=\"Mission Giving and Donations\",WorkingP!G44,\"\")","v":""},{"$f":"IF(WorkingP!$B44=\"Mission Giving and Donations\",WorkingP!H44,\"\")","v":""},{"$f":"IF(WorkingP!$B44=\"Mission Giving and Donations\",WorkingP!I44,\"\")","v":""},{"$f":"IF(WorkingP!$B44=\"Mission Giving and Donations\",WorkingP!J44,\"\")","v":""},{"$f":"IF(WorkingP!$B44=\"Mission Giving and Donations\",WorkingP!K44,\"\")","v":""},{"$f":"IF(WorkingP!$B44=\"Mission Giving and Donations\",WorkingP!L44,\"\")","v":""},{"$f":"IF(WorkingP!$B44=\"Mission Giving and Donations\",WorkingP!M44,\"\")","v":""},{"$f":"IF(WorkingP!$B44=\"Mission Giving and Donations\",WorkingP!N44,\"\")","v":""},{"$f":"IF(WorkingP!$B44=\"Mission Giving and Donations\",WorkingP!O44,\"\")","v":""},{"$f":"IF(WorkingP!$B44=\"Mission Giving and Donations\",WorkingP!P44,\"\")","v":""},{"$f":"IF(WorkingP!$B44=\"Mission Giving and Donations\",WorkingP!Q44,\"\")","v":""},{"$f":"IF(WorkingP!$B44=\"Mission Giving and Donations\",WorkingP!R44,\"\")","v":""},{"$f":"IF(WorkingP!$B44=\"Mission Giving and Donations\",WorkingP!S44,\"\")","v":""},{"$f":"IF(WorkingP!$B44=\"Mission Giving and Donations\",WorkingP!T44,\"\")","v":""},{"$f":"IF(WorkingP!$B44=\"Mission Giving and Donations\",WorkingP!U44,\"\")","v":""},{"$f":"IF(WorkingP!$B44=\"Mission Giving and Donations\",WorkingP!V44,\"\")","v":""},{"$f":"IF(WorkingP!$B44=\"Mission Giving and Donations\",WorkingP!W44,\"\")","v":""},{"$f":"IF(WorkingP!$B44=\"Mission Giving and Donations\",WorkingP!X44,\"\")","v":""},{"$f":"IF(WorkingP!$B44=\"Mission Giving and Donations\",WorkingP!Y44,\"\")","v":""},{"$f":"IF(Descriptions!K45=\"Mission Giving and Donations\",Descriptions!AB45,0)","v":0}]
[{"$f":"IF(Descriptions!K46=\"Mission Giving and Donations\",Descriptions!I46,0)","v":0},{"$f":"IF(WorkingP!$B45=\"Mission Giving and Donations\",WorkingP!D45,\"\")","v":""},{"$f":"IF(WorkingP!$B45=\"Mission Giving and Donations\",WorkingP!E45,\"\")","v":""},{"$f":"IF(WorkingP!$B45=\"Mission Giving and Donations\",WorkingP!F45,\"\")","v":""},{"$f":"IF(WorkingP!$B45=\"Mission Giving and Donations\",WorkingP!G45,\"\")","v":""},{"$f":"IF(WorkingP!$B45=\"Mission Giving and Donations\",WorkingP!H45,\"\")","v":""},{"$f":"IF(WorkingP!$B45=\"Mission Giving and Donations\",WorkingP!I45,\"\")","v":""},{"$f":"IF(WorkingP!$B45=\"Mission Giving and Donations\",WorkingP!J45,\"\")","v":""},{"$f":"IF(WorkingP!$B45=\"Mission Giving and Donations\",WorkingP!K45,\"\")","v":""},{"$f":"IF(WorkingP!$B45=\"Mission Giving and Donations\",WorkingP!L45,\"\")","v":""},{"$f":"IF(WorkingP!$B45=\"Mission Giving and Donations\",WorkingP!M45,\"\")","v":""},{"$f":"IF(WorkingP!$B45=\"Mission Giving and Donations\",WorkingP!N45,\"\")","v":""},{"$f":"IF(WorkingP!$B45=\"Mission Giving and Donations\",WorkingP!O45,\"\")","v":""},{"$f":"IF(WorkingP!$B45=\"Mission Giving and Donations\",WorkingP!P45,\"\")","v":""},{"$f":"IF(WorkingP!$B45=\"Mission Giving and Donations\",WorkingP!Q45,\"\")","v":""},{"$f":"IF(WorkingP!$B45=\"Mission Giving and Donations\",WorkingP!R45,\"\")","v":""},{"$f":"IF(WorkingP!$B45=\"Mission Giving and Donations\",WorkingP!S45,\"\")","v":""},{"$f":"IF(WorkingP!$B45=\"Mission Giving and Donations\",WorkingP!T45,\"\")","v":""},{"$f":"IF(WorkingP!$B45=\"Mission Giving and Donations\",WorkingP!U45,\"\")","v":""},{"$f":"IF(WorkingP!$B45=\"Mission Giving and Donations\",WorkingP!V45,\"\")","v":""},{"$f":"IF(WorkingP!$B45=\"Mission Giving and Donations\",WorkingP!W45,\"\")","v":""},{"$f":"IF(WorkingP!$B45=\"Mission Giving and Donations\",WorkingP!X45,\"\")","v":""},{"$f":"IF(WorkingP!$B45=\"Mission Giving and Donations\",WorkingP!Y45,\"\")","v":""},{"$f":"IF(Descriptions!K46=\"Mission Giving and Donations\",Descriptions!AB46,0)","v":0}]
[{"$f":"IF(Descriptions!K47=\"Mission Giving and Donations\",Descriptions!I47,0)","v":0},{"$f":"IF(WorkingP!$B46=\"Mission Giving and Donations\",WorkingP!D46,\"\")","v":""},{"$f":"IF(WorkingP!$B46=\"Mission Giving and Donations\",WorkingP!E46,\"\")","v":""},{"$f":"IF(WorkingP!$B46=\"Mission Giving and Donations\",WorkingP!F46,\"\")","v":""},{"$f":"IF(WorkingP!$B46=\"Mission Giving and Donations\",WorkingP!G46,\"\")","v":""},{"$f":"IF(WorkingP!$B46=\"Mission Giving and Donations\",WorkingP!H46,\"\")","v":""},{"$f":"IF(WorkingP!$B46=\"Mission Giving and Donations\",WorkingP!I46,\"\")","v":""},{"$f":"IF(WorkingP!$B46=\"Mission Giving and Donations\",WorkingP!J46,\"\")","v":""},{"$f":"IF(WorkingP!$B46=\"Mission Giving and Donations\",WorkingP!K46,\"\")","v":""},{"$f":"IF(WorkingP!$B46=\"Mission Giving and Donations\",WorkingP!L46,\"\")","v":""},{"$f":"IF(WorkingP!$B46=\"Mission Giving and Donations\",WorkingP!M46,\"\")","v":""},{"$f":"IF(WorkingP!$B46=\"Mission Giving and Donations\",WorkingP!N46,\"\")","v":""},{"$f":"IF(WorkingP!$B46=\"Mission Giving and Donations\",WorkingP!O46,\"\")","v":""},{"$f":"IF(WorkingP!$B46=\"Mission Giving and Donations\",WorkingP!P46,\"\")","v":""},{"$f":"IF(WorkingP!$B46=\"Mission Giving and Donations\",WorkingP!Q46,\"\")","v":""},{"$f":"IF(WorkingP!$B46=\"Mission Giving and Donations\",WorkingP!R46,\"\")","v":""},{"$f":"IF(WorkingP!$B46=\"Mission Giving and Donations\",WorkingP!S46,\"\")","v":""},{"$f":"IF(WorkingP!$B46=\"Mission Giving and Donations\",WorkingP!T46,\"\")","v":""},{"$f":"IF(WorkingP!$B46=\"Mission Giving and Donations\",WorkingP!U46,\"\")","v":""},{"$f":"IF(WorkingP!$B46=\"Mission Giving and Donations\",WorkingP!V46,\"\")","v":""},{"$f":"IF(WorkingP!$B46=\"Mission Giving and Donations\",WorkingP!W46,\"\")","v":""},{"$f":"IF(WorkingP!$B46=\"Mission Giving and Donations\",WorkingP!X46,\"\")","v":""},{"$f":"IF(WorkingP!$B46=\"Mission Giving and Donations\",WorkingP!Y46,\"\")","v":""},{"$f":"IF(Descriptions!K47=\"Mission Giving and Donations\",Descriptions!AB47,0)","v":0}]
[{"$f":"IF(Descriptions!K48=\"Mission Giving and Donations\",Descriptions!I48,0)","v":0},{"$f":"IF(WorkingP!$B47=\"Mission Giving and Donations\",WorkingP!D47,\"\")","v":""},{"$f":"IF(WorkingP!$B47=\"Mission Giving and Donations\",WorkingP!E47,\"\")","v":""},{"$f":"IF(WorkingP!$B47=\"Mission Giving and Donations\",WorkingP!F47,\"\")","v":""},{"$f":"IF(WorkingP!$B47=\"Mission Giving and Donations\",WorkingP!G47,\"\")","v":""},{"$f":"IF(WorkingP!$B47=\"Mission Giving and Donations\",WorkingP!H47,\"\")","v":""},{"$f":"IF(WorkingP!$B47=\"Mission Giving and Donations\",WorkingP!I47,\"\")","v":""},{"$f":"IF(WorkingP!$B47=\"Mission Giving and Donations\",WorkingP!J47,\"\")","v":""},{"$f":"IF(WorkingP!$B47=\"Mission Giving and Donations\",WorkingP!K47,\"\")","v":""},{"$f":"IF(WorkingP!$B47=\"Mission Giving and Donations\",WorkingP!L47,\"\")","v":""},{"$f":"IF(WorkingP!$B47=\"Mission Giving and Donations\",WorkingP!M47,\"\")","v":""},{"$f":"IF(WorkingP!$B47=\"Mission Giving and Donations\",WorkingP!N47,\"\")","v":""},{"$f":"IF(WorkingP!$B47=\"Mission Giving and Donations\",WorkingP!O47,\"\")","v":""},{"$f":"IF(WorkingP!$B47=\"Mission Giving and Donations\",WorkingP!P47,\"\")","v":""},{"$f":"IF(WorkingP!$B47=\"Mission Giving and Donations\",WorkingP!Q47,\"\")","v":""},{"$f":"IF(WorkingP!$B47=\"Mission Giving and Donations\",WorkingP!R47,\"\")","v":""},{"$f":"IF(WorkingP!$B47=\"Mission Giving and Donations\",WorkingP!S47,\"\")","v":""},{"$f":"IF(WorkingP!$B47=\"Mission Giving and Donations\",WorkingP!T47,\"\")","v":""},{"$f":"IF(WorkingP!$B47=\"Mission Giving and Donations\",WorkingP!U47,\"\")","v":""},{"$f":"IF(WorkingP!$B47=\"Mission Giving and Donations\",WorkingP!V47,\"\")","v":""},{"$f":"IF(WorkingP!$B47=\"Mission Giving and Donations\",WorkingP!W47,\"\")","v":""},{"$f":"IF(WorkingP!$B47=\"Mission Giving and Donations\",WorkingP!X47,\"\")","v":""},{"$f":"IF(WorkingP!$B47=\"Mission Giving and Donations\",WorkingP!Y47,\"\")","v":""},{"$f":"IF(Descriptions!K48=\"Mission Giving and Donations\",Descriptions!AB48,0)","v":0}]
[{"$f":"IF(Descriptions!K49=\"Mission Giving and Donations\",Descriptions!I49,0)","v":0},{"$f":"IF(WorkingP!$B48=\"Mission Giving and Donations\",WorkingP!D48,\"\")","v":""},{"$f":"IF(WorkingP!$B48=\"Mission Giving and Donations\",WorkingP!E48,\"\")","v":""},{"$f":"IF(WorkingP!$B48=\"Mission Giving and Donations\",WorkingP!F48,\"\")","v":""},{"$f":"IF(WorkingP!$B48=\"Mission Giving and Donations\",WorkingP!G48,\"\")","v":""},{"$f":"IF(WorkingP!$B48=\"Mission Giving and Donations\",WorkingP!H48,\"\")","v":""},{"$f":"IF(WorkingP!$B48=\"Mission Giving and Donations\",WorkingP!I48,\"\")","v":""},{"$f":"IF(WorkingP!$B48=\"Mission Giving and Donations\",WorkingP!J48,\"\")","v":""},{"$f":"IF(WorkingP!$B48=\"Mission Giving and Donations\",WorkingP!K48,\"\")","v":""},{"$f":"IF(WorkingP!$B48=\"Mission Giving and Donations\",WorkingP!L48,\"\")","v":""},{"$f":"IF(WorkingP!$B48=\"Mission Giving and Donations\",WorkingP!M48,\"\")","v":""},{"$f":"IF(WorkingP!$B48=\"Mission Giving and Donations\",WorkingP!N48,\"\")","v":""},{"$f":"IF(WorkingP!$B48=\"Mission Giving and Donations\",WorkingP!O48,\"\")","v":""},{"$f":"IF(WorkingP!$B48=\"Mission Giving and Donations\",WorkingP!P48,\"\")","v":""},{"$f":"IF(WorkingP!$B48=\"Mission Giving and Donations\",WorkingP!Q48,\"\")","v":""},{"$f":"IF(WorkingP!$B48=\"Mission Giving and Donations\",WorkingP!R48,\"\")","v":""},{"$f":"IF(WorkingP!$B48=\"Mission Giving and Donations\",WorkingP!S48,\"\")","v":""},{"$f":"IF(WorkingP!$B48=\"Mission Giving and Donations\",WorkingP!T48,\"\")","v":""},{"$f":"IF(WorkingP!$B48=\"Mission Giving and Donations\",WorkingP!U48,\"\")","v":""},{"$f":"IF(WorkingP!$B48=\"Mission Giving and Donations\",WorkingP!V48,\"\")","v":""},{"$f":"IF(WorkingP!$B48=\"Mission Giving and Donations\",WorkingP!W48,\"\")","v":""},{"$f":"IF(WorkingP!$B48=\"Mission Giving and Donations\",WorkingP!X48,\"\")","v":""},{"$f":"IF(WorkingP!$B48=\"Mission Giving and Donations\",WorkingP!Y48,\"\")","v":""},{"$f":"IF(Descriptions!K49=\"Mission Giving and Donations\",Descriptions!AB49,0)","v":0}]
[{"$f":"IF(Descriptions!K50=\"Mission Giving and Donations\",Descriptions!I50,0)","v":0},{"$f":"IF(WorkingP!$B49=\"Mission Giving and Donations\",WorkingP!D49,\"\")","v":""},{"$f":"IF(WorkingP!$B49=\"Mission Giving and Donations\",WorkingP!E49,\"\")","v":""},{"$f":"IF(WorkingP!$B49=\"Mission Giving and Donations\",WorkingP!F49,\"\")","v":""},{"$f":"IF(WorkingP!$B49=\"Mission Giving and Donations\",WorkingP!G49,\"\")","v":""},{"$f":"IF(WorkingP!$B49=\"Mission Giving and Donations\",WorkingP!H49,\"\")","v":""},{"$f":"IF(WorkingP!$B49=\"Mission Giving and Donations\",WorkingP!I49,\"\")","v":""},{"$f":"IF(WorkingP!$B49=\"Mission Giving and Donations\",WorkingP!J49,\"\")","v":""},{"$f":"IF(WorkingP!$B49=\"Mission Giving and Donations\",WorkingP!K49,\"\")","v":""},{"$f":"IF(WorkingP!$B49=\"Mission Giving and Donations\",WorkingP!L49,\"\")","v":""},{"$f":"IF(WorkingP!$B49=\"Mission Giving and Donations\",WorkingP!M49,\"\")","v":""},{"$f":"IF(WorkingP!$B49=\"Mission Giving and Donations\",WorkingP!N49,\"\")","v":""},{"$f":"IF(WorkingP!$B49=\"Mission Giving and Donations\",WorkingP!O49,\"\")","v":""},{"$f":"IF(WorkingP!$B49=\"Mission Giving and Donations\",WorkingP!P49,\"\")","v":""},{"$f":"IF(WorkingP!$B49=\"Mission Giving and Donations\",WorkingP!Q49,\"\")","v":""},{"$f":"IF(WorkingP!$B49=\"Mission Giving and Donations\",WorkingP!R49,\"\")","v":""},{"$f":"IF(WorkingP!$B49=\"Mission Giving and Donations\",WorkingP!S49,\"\")","v":""},{"$f":"IF(WorkingP!$B49=\"Mission Giving and Donations\",WorkingP!T49,\"\")","v":""},{"$f":"IF(WorkingP!$B49=\"Mission Giving and Donations\",WorkingP!U49,\"\")","v":""},{"$f":"IF(WorkingP!$B49=\"Mission Giving and Donations\",WorkingP!V49,\"\")","v":""},{"$f":"IF(WorkingP!$B49=\"Mission Giving and Donations\",WorkingP!W49,\"\")","v":""},{"$f":"IF(WorkingP!$B49=\"Mission Giving and Donations\",WorkingP!X49,\"\")","v":""},{"$f":"IF(WorkingP!$B49=\"Mission Giving and Donations\",WorkingP!Y49,\"\")","v":""},{"$f":"IF(Descriptions!K50=\"Mission Giving and Donations\",Descriptions!AB50,0)","v":0}]
[{"$f":"IF(Descriptions!K51=\"Mission Giving and Donations\",Descriptions!I51,0)","v":0},{"$f":"IF(WorkingP!$B50=\"Mission Giving and Donations\",WorkingP!D50,\"\")","v":""},{"$f":"IF(WorkingP!$B50=\"Mission Giving and Donations\",WorkingP!E50,\"\")","v":""},{"$f":"IF(WorkingP!$B50=\"Mission Giving and Donations\",WorkingP!F50,\"\")","v":""},{"$f":"IF(WorkingP!$B50=\"Mission Giving and Donations\",WorkingP!G50,\"\")","v":""},{"$f":"IF(WorkingP!$B50=\"Mission Giving and Donations\",WorkingP!H50,\"\")","v":""},{"$f":"IF(WorkingP!$B50=\"Mission Giving and Donations\",WorkingP!I50,\"\")","v":""},{"$f":"IF(WorkingP!$B50=\"Mission Giving and Donations\",WorkingP!J50,\"\")","v":""},{"$f":"IF(WorkingP!$B50=\"Mission Giving and Donations\",WorkingP!K50,\"\")","v":""},{"$f":"IF(WorkingP!$B50=\"Mission Giving and Donations\",WorkingP!L50,\"\")","v":""},{"$f":"IF(WorkingP!$B50=\"Mission Giving and Donations\",WorkingP!M50,\"\")","v":""},{"$f":"IF(WorkingP!$B50=\"Mission Giving and Donations\",WorkingP!N50,\"\")","v":""},{"$f":"IF(WorkingP!$B50=\"Mission Giving and Donations\",WorkingP!O50,\"\")","v":""},{"$f":"IF(WorkingP!$B50=\"Mission Giving and Donations\",WorkingP!P50,\"\")","v":""},{"$f":"IF(WorkingP!$B50=\"Mission Giving and Donations\",WorkingP!Q50,\"\")","v":""},{"$f":"IF(WorkingP!$B50=\"Mission Giving and Donations\",WorkingP!R50,\"\")","v":""},{"$f":"IF(WorkingP!$B50=\"Mission Giving and Donations\",WorkingP!S50,\"\")","v":""},{"$f":"IF(WorkingP!$B50=\"Mission Giving and Donations\",WorkingP!T50,\"\")","v":""},{"$f":"IF(WorkingP!$B50=\"Mission Giving and Donations\",WorkingP!U50,\"\")","v":""},{"$f":"IF(WorkingP!$B50=\"Mission Giving and Donations\",WorkingP!V50,\"\")","v":""},{"$f":"IF(WorkingP!$B50=\"Mission Giving and Donations\",WorkingP!W50,\"\")","v":""},{"$f":"IF(WorkingP!$B50=\"Mission Giving and Donations\",WorkingP!X50,\"\")","v":""},{"$f":"IF(WorkingP!$B50=\"Mission Giving and Donations\",WorkingP!Y50,\"\")","v":""},{"$f":"IF(Descriptions!K51=\"Mission Giving and Donations\",Descriptions!AB51,0)","v":0}]
[{"$f":"IF(Descriptions!K52=\"Mission Giving and Donations\",Descriptions!I52,0)","v":0},{"$f":"IF(WorkingP!$B51=\"Mission Giving and Donations\",WorkingP!D51,\"\")","v":""},{"$f":"IF(WorkingP!$B51=\"Mission Giving and Donations\",WorkingP!E51,\"\")","v":""},{"$f":"IF(WorkingP!$B51=\"Mission Giving and Donations\",WorkingP!F51,\"\")","v":""},{"$f":"IF(WorkingP!$B51=\"Mission Giving and Donations\",WorkingP!G51,\"\")","v":""},{"$f":"IF(WorkingP!$B51=\"Mission Giving and Donations\",WorkingP!H51,\"\")","v":""},{"$f":"IF(WorkingP!$B51=\"Mission Giving and Donations\",WorkingP!I51,\"\")","v":""},{"$f":"IF(WorkingP!$B51=\"Mission Giving and Donations\",WorkingP!J51,\"\")","v":""},{"$f":"IF(WorkingP!$B51=\"Mission Giving and Donations\",WorkingP!K51,\"\")","v":""},{"$f":"IF(WorkingP!$B51=\"Mission Giving and Donations\",WorkingP!L51,\"\")","v":""},{"$f":"IF(WorkingP!$B51=\"Mission Giving and Donations\",WorkingP!M51,\"\")","v":""},{"$f":"IF(WorkingP!$B51=\"Mission Giving and Donations\",WorkingP!N51,\"\")","v":""},{"$f":"IF(WorkingP!$B51=\"Mission Giving and Donations\",WorkingP!O51,\"\")","v":""},{"$f":"IF(WorkingP!$B51=\"Mission Giving and Donations\",WorkingP!P51,\"\")","v":""},{"$f":"IF(WorkingP!$B51=\"Mission Giving and Donations\",WorkingP!Q51,\"\")","v":""},{"$f":"IF(WorkingP!$B51=\"Mission Giving and Donations\",WorkingP!R51,\"\")","v":""},{"$f":"IF(WorkingP!$B51=\"Mission Giving and Donations\",WorkingP!S51,\"\")","v":""},{"$f":"IF(WorkingP!$B51=\"Mission Giving and Donations\",WorkingP!T51,\"\")","v":""},{"$f":"IF(WorkingP!$B51=\"Mission Giving and Donations\",WorkingP!U51,\"\")","v":""},{"$f":"IF(WorkingP!$B51=\"Mission Giving and Donations\",WorkingP!V51,\"\")","v":""},{"$f":"IF(WorkingP!$B51=\"Mission Giving and Donations\",WorkingP!W51,\"\")","v":""},{"$f":"IF(WorkingP!$B51=\"Mission Giving and Donations\",WorkingP!X51,\"\")","v":""},{"$f":"IF(WorkingP!$B51=\"Mission Giving and Donations\",WorkingP!Y51,\"\")","v":""},{"$f":"IF(Descriptions!K52=\"Mission Giving and Donations\",Descriptions!AB52,0)","v":0}]
[{"$f":"IF(Descriptions!K53=\"Mission Giving and Donations\",Descriptions!I53,0)","v":0},{"$f":"IF(WorkingP!$B52=\"Mission Giving and Donations\",WorkingP!D52,\"\")","v":""},{"$f":"IF(WorkingP!$B52=\"Mission Giving and Donations\",WorkingP!E52,\"\")","v":""},{"$f":"IF(WorkingP!$B52=\"Mission Giving and Donations\",WorkingP!F52,\"\")","v":""},{"$f":"IF(WorkingP!$B52=\"Mission Giving and Donations\",WorkingP!G52,\"\")","v":""},{"$f":"IF(WorkingP!$B52=\"Mission Giving and Donations\",WorkingP!H52,\"\")","v":""},{"$f":"IF(WorkingP!$B52=\"Mission Giving and Donations\",WorkingP!I52,\"\")","v":""},{"$f":"IF(WorkingP!$B52=\"Mission Giving and Donations\",WorkingP!J52,\"\")","v":""},{"$f":"IF(WorkingP!$B52=\"Mission Giving and Donations\",WorkingP!K52,\"\")","v":""},{"$f":"IF(WorkingP!$B52=\"Mission Giving and Donations\",WorkingP!L52,\"\")","v":""},{"$f":"IF(WorkingP!$B52=\"Mission Giving and Donations\",WorkingP!M52,\"\")","v":""},{"$f":"IF(WorkingP!$B52=\"Mission Giving and Donations\",WorkingP!N52,\"\")","v":""},{"$f":"IF(WorkingP!$B52=\"Mission Giving and Donations\",WorkingP!O52,\"\")","v":""},{"$f":"IF(WorkingP!$B52=\"Mission Giving and Donations\",WorkingP!P52,\"\")","v":""},{"$f":"IF(WorkingP!$B52=\"Mission Giving and Donations\",WorkingP!Q52,\"\")","v":""},{"$f":"IF(WorkingP!$B52=\"Mission Giving and Donations\",WorkingP!R52,\"\")","v":""},{"$f":"IF(WorkingP!$B52=\"Mission Giving and Donations\",WorkingP!S52,\"\")","v":""},{"$f":"IF(WorkingP!$B52=\"Mission Giving and Donations\",WorkingP!T52,\"\")","v":""},{"$f":"IF(WorkingP!$B52=\"Mission Giving and Donations\",WorkingP!U52,\"\")","v":""},{"$f":"IF(WorkingP!$B52=\"Mission Giving and Donations\",WorkingP!V52,\"\")","v":""},{"$f":"IF(WorkingP!$B52=\"Mission Giving and Donations\",WorkingP!W52,\"\")","v":""},{"$f":"IF(WorkingP!$B52=\"Mission Giving and Donations\",WorkingP!X52,\"\")","v":""},{"$f":"IF(WorkingP!$B52=\"Mission Giving and Donations\",WorkingP!Y52,\"\")","v":""},{"$f":"IF(Descriptions!K53=\"Mission Giving and Donations\",Descriptions!AB53,0)","v":0}]
[{"$f":"IF(Descriptions!K54=\"Mission Giving and Donations\",Descriptions!I54,0)","v":0},{"$f":"IF(WorkingP!$B53=\"Mission Giving and Donations\",WorkingP!D53,\"\")","v":""},{"$f":"IF(WorkingP!$B53=\"Mission Giving and Donations\",WorkingP!E53,\"\")","v":""},{"$f":"IF(WorkingP!$B53=\"Mission Giving and Donations\",WorkingP!F53,\"\")","v":""},{"$f":"IF(WorkingP!$B53=\"Mission Giving and Donations\",WorkingP!G53,\"\")","v":""},{"$f":"IF(WorkingP!$B53=\"Mission Giving and Donations\",WorkingP!H53,\"\")","v":""},{"$f":"IF(WorkingP!$B53=\"Mission Giving and Donations\",WorkingP!I53,\"\")","v":""},{"$f":"IF(WorkingP!$B53=\"Mission Giving and Donations\",WorkingP!J53,\"\")","v":""},{"$f":"IF(WorkingP!$B53=\"Mission Giving and Donations\",WorkingP!K53,\"\")","v":""},{"$f":"IF(WorkingP!$B53=\"Mission Giving and Donations\",WorkingP!L53,\"\")","v":""},{"$f":"IF(WorkingP!$B53=\"Mission Giving and Donations\",WorkingP!M53,\"\")","v":""},{"$f":"IF(WorkingP!$B53=\"Mission Giving and Donations\",WorkingP!N53,\"\")","v":""},{"$f":"IF(WorkingP!$B53=\"Mission Giving and Donations\",WorkingP!O53,\"\")","v":""},{"$f":"IF(WorkingP!$B53=\"Mission Giving and Donations\",WorkingP!P53,\"\")","v":""},{"$f":"IF(WorkingP!$B53=\"Mission Giving and Donations\",WorkingP!Q53,\"\")","v":""},{"$f":"IF(WorkingP!$B53=\"Mission Giving and Donations\",WorkingP!R53,\"\")","v":""},{"$f":"IF(WorkingP!$B53=\"Mission Giving and Donations\",WorkingP!S53,\"\")","v":""},{"$f":"IF(WorkingP!$B53=\"Mission Giving and Donations\",WorkingP!T53,\"\")","v":""},{"$f":"IF(WorkingP!$B53=\"Mission Giving and Donations\",WorkingP!U53,\"\")","v":""},{"$f":"IF(WorkingP!$B53=\"Mission Giving and Donations\",WorkingP!V53,\"\")","v":""},{"$f":"IF(WorkingP!$B53=\"Mission Giving and Donations\",WorkingP!W53,\"\")","v":""},{"$f":"IF(WorkingP!$B53=\"Mission Giving and Donations\",WorkingP!X53,\"\")","v":""},{"$f":"IF(WorkingP!$B53=\"Mission Giving and Donations\",WorkingP!Y53,\"\")","v":""},{"$f":"IF(Descriptions!K54=\"Mission Giving and Donations\",Descriptions!AB54,0)","v":0}]
[{"$f":"IF(Descriptions!K55=\"Mission Giving and Donations\",Descriptions!I55,0)","v":0},{"$f":"IF(WorkingP!$B54=\"Mission Giving and Donations\",WorkingP!D54,\"\")","v":""},{"$f":"IF(WorkingP!$B54=\"Mission Giving and Donations\",WorkingP!E54,\"\")","v":""},{"$f":"IF(WorkingP!$B54=\"Mission Giving and Donations\",WorkingP!F54,\"\")","v":""},{"$f":"IF(WorkingP!$B54=\"Mission Giving and Donations\",WorkingP!G54,\"\")","v":""},{"$f":"IF(WorkingP!$B54=\"Mission Giving and Donations\",WorkingP!H54,\"\")","v":""},{"$f":"IF(WorkingP!$B54=\"Mission Giving and Donations\",WorkingP!I54,\"\")","v":""},{"$f":"IF(WorkingP!$B54=\"Mission Giving and Donations\",WorkingP!J54,\"\")","v":""},{"$f":"IF(WorkingP!$B54=\"Mission Giving and Donations\",WorkingP!K54,\"\")","v":""},{"$f":"IF(WorkingP!$B54=\"Mission Giving and Donations\",WorkingP!L54,\"\")","v":""},{"$f":"IF(WorkingP!$B54=\"Mission Giving and Donations\",WorkingP!M54,\"\")","v":""},{"$f":"IF(WorkingP!$B54=\"Mission Giving and Donations\",WorkingP!N54,\"\")","v":""},{"$f":"IF(WorkingP!$B54=\"Mission Giving and Donations\",WorkingP!O54,\"\")","v":""},{"$f":"IF(WorkingP!$B54=\"Mission Giving and Donations\",WorkingP!P54,\"\")","v":""},{"$f":"IF(WorkingP!$B54=\"Mission Giving and Donations\",WorkingP!Q54,\"\")","v":""},{"$f":"IF(WorkingP!$B54=\"Mission Giving and Donations\",WorkingP!R54,\"\")","v":""},{"$f":"IF(WorkingP!$B54=\"Mission Giving and Donations\",WorkingP!S54,\"\")","v":""},{"$f":"IF(WorkingP!$B54=\"Mission Giving and Donations\",WorkingP!T54,\"\")","v":""},{"$f":"IF(WorkingP!$B54=\"Mission Giving and Donations\",WorkingP!U54,\"\")","v":""},{"$f":"IF(WorkingP!$B54=\"Mission Giving and Donations\",WorkingP!V54,\"\")","v":""},{"$f":"IF(WorkingP!$B54=\"Mission Giving and Donations\",WorkingP!W54,\"\")","v":""},{"$f":"IF(WorkingP!$B54=\"Mission Giving and Donations\",WorkingP!X54,\"\")","v":""},{"$f":"IF(WorkingP!$B54=\"Mission Giving and Donations\",WorkingP!Y54,\"\")","v":""},{"$f":"IF(Descriptions!K55=\"Mission Giving and Donations\",Descriptions!AB55,0)","v":0}]
[{"$f":"IF(Descriptions!K56=\"Mission Giving and Donations\",Descriptions!I56,0)","v":0},{"$f":"IF(WorkingP!$B55=\"Mission Giving and Donations\",WorkingP!D55,\"\")","v":""},{"$f":"IF(WorkingP!$B55=\"Mission Giving and Donations\",WorkingP!E55,\"\")","v":""},{"$f":"IF(WorkingP!$B55=\"Mission Giving and Donations\",WorkingP!F55,\"\")","v":""},{"$f":"IF(WorkingP!$B55=\"Mission Giving and Donations\",WorkingP!G55,\"\")","v":""},{"$f":"IF(WorkingP!$B55=\"Mission Giving and Donations\",WorkingP!H55,\"\")","v":""},{"$f":"IF(WorkingP!$B55=\"Mission Giving and Donations\",WorkingP!I55,\"\")","v":""},{"$f":"IF(WorkingP!$B55=\"Mission Giving and Donations\",WorkingP!J55,\"\")","v":""},{"$f":"IF(WorkingP!$B55=\"Mission Giving and Donations\",WorkingP!K55,\"\")","v":""},{"$f":"IF(WorkingP!$B55=\"Mission Giving and Donations\",WorkingP!L55,\"\")","v":""},{"$f":"IF(WorkingP!$B55=\"Mission Giving and Donations\",WorkingP!M55,\"\")","v":""},{"$f":"IF(WorkingP!$B55=\"Mission Giving and Donations\",WorkingP!N55,\"\")","v":""},{"$f":"IF(WorkingP!$B55=\"Mission Giving and Donations\",WorkingP!O55,\"\")","v":""},{"$f":"IF(WorkingP!$B55=\"Mission Giving and Donations\",WorkingP!P55,\"\")","v":""},{"$f":"IF(WorkingP!$B55=\"Mission Giving and Donations\",WorkingP!Q55,\"\")","v":""},{"$f":"IF(WorkingP!$B55=\"Mission Giving and Donations\",WorkingP!R55,\"\")","v":""},{"$f":"IF(WorkingP!$B55=\"Mission Giving and Donations\",WorkingP!S55,\"\")","v":""},{"$f":"IF(WorkingP!$B55=\"Mission Giving and Donations\",WorkingP!T55,\"\")","v":""},{"$f":"IF(WorkingP!$B55=\"Mission Giving and Donations\",WorkingP!U55,\"\")","v":""},{"$f":"IF(WorkingP!$B55=\"Mission Giving and Donations\",WorkingP!V55,\"\")","v":""},{"$f":"IF(WorkingP!$B55=\"Mission Giving and Donations\",WorkingP!W55,\"\")","v":""},{"$f":"IF(WorkingP!$B55=\"Mission Giving and Donations\",WorkingP!X55,\"\")","v":""},{"$f":"IF(WorkingP!$B55=\"Mission Giving and Donations\",WorkingP!Y55,\"\")","v":""},{"$f":"IF(Descriptions!K56=\"Mission Giving and Donations\",Descriptions!AB56,0)","v":0}]
[{"$f":"IF(Descriptions!K57=\"Mission Giving and Donations\",Descriptions!I57,0)","v":0},{"$f":"IF(WorkingP!$B56=\"Mission Giving and Donations\",WorkingP!D56,\"\")","v":""},{"$f":"IF(WorkingP!$B56=\"Mission Giving and Donations\",WorkingP!E56,\"\")","v":""},{"$f":"IF(WorkingP!$B56=\"Mission Giving and Donations\",WorkingP!F56,\"\")","v":""},{"$f":"IF(WorkingP!$B56=\"Mission Giving and Donations\",WorkingP!G56,\"\")","v":""},{"$f":"IF(WorkingP!$B56=\"Mission Giving and Donations\",WorkingP!H56,\"\")","v":""},{"$f":"IF(WorkingP!$B56=\"Mission Giving and Donations\",WorkingP!I56,\"\")","v":""},{"$f":"IF(WorkingP!$B56=\"Mission Giving and Donations\",WorkingP!J56,\"\")","v":""},{"$f":"IF(WorkingP!$B56=\"Mission Giving and Donations\",WorkingP!K56,\"\")","v":""},{"$f":"IF(WorkingP!$B56=\"Mission Giving and Donations\",WorkingP!L56,\"\")","v":""},{"$f":"IF(WorkingP!$B56=\"Mission Giving and Donations\",WorkingP!M56,\"\")","v":""},{"$f":"IF(WorkingP!$B56=\"Mission Giving and Donations\",WorkingP!N56,\"\")","v":""},{"$f":"IF(WorkingP!$B56=\"Mission Giving and Donations\",WorkingP!O56,\"\")","v":""},{"$f":"IF(WorkingP!$B56=\"Mission Giving and Donations\",WorkingP!P56,\"\")","v":""},{"$f":"IF(WorkingP!$B56=\"Mission Giving and Donations\",WorkingP!Q56,\"\")","v":""},{"$f":"IF(WorkingP!$B56=\"Mission Giving and Donations\",WorkingP!R56,\"\")","v":""},{"$f":"IF(WorkingP!$B56=\"Mission Giving and Donations\",WorkingP!S56,\"\")","v":""},{"$f":"IF(WorkingP!$B56=\"Mission Giving and Donations\",WorkingP!T56,\"\")","v":""},{"$f":"IF(WorkingP!$B56=\"Mission Giving and Donations\",WorkingP!U56,\"\")","v":""},{"$f":"IF(WorkingP!$B56=\"Mission Giving and Donations\",WorkingP!V56,\"\")","v":""},{"$f":"IF(WorkingP!$B56=\"Mission Giving and Donations\",WorkingP!W56,\"\")","v":""},{"$f":"IF(WorkingP!$B56=\"Mission Giving and Donations\",WorkingP!X56,\"\")","v":""},{"$f":"IF(WorkingP!$B56=\"Mission Giving and Donations\",WorkingP!Y56,\"\")","v":""},{"$f":"IF(Descriptions!K57=\"Mission Giving and Donations\",Descriptions!AB57,0)","v":0}]
[{"$f":"IF(Descriptions!K58=\"Mission Giving and Donations\",Descriptions!I58,0)","v":0},{"$f":"IF(WorkingP!$B57=\"Mission Giving and Donations\",WorkingP!D57,\"\")","v":""},{"$f":"IF(WorkingP!$B57=\"Mission Giving and Donations\",WorkingP!E57,\"\")","v":""},{"$f":"IF(WorkingP!$B57=\"Mission Giving and Donations\",WorkingP!F57,\"\")","v":""},{"$f":"IF(WorkingP!$B57=\"Mission Giving and Donations\",WorkingP!G57,\"\")","v":""},{"$f":"IF(WorkingP!$B57=\"Mission Giving and Donations\",WorkingP!H57,\"\")","v":""},{"$f":"IF(WorkingP!$B57=\"Mission Giving and Donations\",WorkingP!I57,\"\")","v":""},{"$f":"IF(WorkingP!$B57=\"Mission Giving and Donations\",WorkingP!J57,\"\")","v":""},{"$f":"IF(WorkingP!$B57=\"Mission Giving and Donations\",WorkingP!K57,\"\")","v":""},{"$f":"IF(WorkingP!$B57=\"Mission Giving and Donations\",WorkingP!L57,\"\")","v":""},{"$f":"IF(WorkingP!$B57=\"Mission Giving and Donations\",WorkingP!M57,\"\")","v":""},{"$f":"IF(WorkingP!$B57=\"Mission Giving and Donations\",WorkingP!N57,\"\")","v":""},{"$f":"IF(WorkingP!$B57=\"Mission Giving and Donations\",WorkingP!O57,\"\")","v":""},{"$f":"IF(WorkingP!$B57=\"Mission Giving and Donations\",WorkingP!P57,\"\")","v":""},{"$f":"IF(WorkingP!$B57=\"Mission Giving and Donations\",WorkingP!Q57,\"\")","v":""},{"$f":"IF(WorkingP!$B57=\"Mission Giving and Donations\",WorkingP!R57,\"\")","v":""},{"$f":"IF(WorkingP!$B57=\"Mission Giving and Donations\",WorkingP!S57,\"\")","v":""},{"$f":"IF(WorkingP!$B57=\"Mission Giving and Donations\",WorkingP!T57,\"\")","v":""},{"$f":"IF(WorkingP!$B57=\"Mission Giving and Donations\",WorkingP!U57,\"\")","v":""},{"$f":"IF(WorkingP!$B57=\"Mission Giving and Donations\",WorkingP!V57,\"\")","v":""},{"$f":"IF(WorkingP!$B57=\"Mission Giving and Donations\",WorkingP!W57,\"\")","v":""},{"$f":"IF(WorkingP!$B57=\"Mission Giving and Donations\",WorkingP!X57,\"\")","v":""},{"$f":"IF(WorkingP!$B57=\"Mission Giving and Donations\",WorkingP!Y57,\"\")","v":""},{"$f":"IF(Descriptions!K58=\"Mission Giving and Donations\",Descriptions!AB58,0)","v":0}]
[{"$f":"IF(Descriptions!K59=\"Mission Giving and Donations\",Descriptions!I59,0)","v":0},{"$f":"IF(WorkingP!$B58=\"Mission Giving and Donations\",WorkingP!D58,\"\")","v":""},{"$f":"IF(WorkingP!$B58=\"Mission Giving and Donations\",WorkingP!E58,\"\")","v":""},{"$f":"IF(WorkingP!$B58=\"Mission Giving and Donations\",WorkingP!F58,\"\")","v":""},{"$f":"IF(WorkingP!$B58=\"Mission Giving and Donations\",WorkingP!G58,\"\")","v":""},{"$f":"IF(WorkingP!$B58=\"Mission Giving and Donations\",WorkingP!H58,\"\")","v":""},{"$f":"IF(WorkingP!$B58=\"Mission Giving and Donations\",WorkingP!I58,\"\")","v":""},{"$f":"IF(WorkingP!$B58=\"Mission Giving and Donations\",WorkingP!J58,\"\")","v":""},{"$f":"IF(WorkingP!$B58=\"Mission Giving and Donations\",WorkingP!K58,\"\")","v":""},{"$f":"IF(WorkingP!$B58=\"Mission Giving and Donations\",WorkingP!L58,\"\")","v":""},{"$f":"IF(WorkingP!$B58=\"Mission Giving and Donations\",WorkingP!M58,\"\")","v":""},{"$f":"IF(WorkingP!$B58=\"Mission Giving and Donations\",WorkingP!N58,\"\")","v":""},{"$f":"IF(WorkingP!$B58=\"Mission Giving and Donations\",WorkingP!O58,\"\")","v":""},{"$f":"IF(WorkingP!$B58=\"Mission Giving and Donations\",WorkingP!P58,\"\")","v":""},{"$f":"IF(WorkingP!$B58=\"Mission Giving and Donations\",WorkingP!Q58,\"\")","v":""},{"$f":"IF(WorkingP!$B58=\"Mission Giving and Donations\",WorkingP!R58,\"\")","v":""},{"$f":"IF(WorkingP!$B58=\"Mission Giving and Donations\",WorkingP!S58,\"\")","v":""},{"$f":"IF(WorkingP!$B58=\"Mission Giving and Donations\",WorkingP!T58,\"\")","v":""},{"$f":"IF(WorkingP!$B58=\"Mission Giving and Donations\",WorkingP!U58,\"\")","v":""},{"$f":"IF(WorkingP!$B58=\"Mission Giving and Donations\",WorkingP!V58,\"\")","v":""},{"$f":"IF(WorkingP!$B58=\"Mission Giving and Donations\",WorkingP!W58,\"\")","v":""},{"$f":"IF(WorkingP!$B58=\"Mission Giving and Donations\",WorkingP!X58,\"\")","v":""},{"$f":"IF(WorkingP!$B58=\"Mission Giving and Donations\",WorkingP!Y58,\"\")","v":""},{"$f":"IF(Descriptions!K59=\"Mission Giving and Donations\",Descriptions!AB59,0)","v":0}]
[{"$f":"IF(Descriptions!K60=\"Mission Giving and Donations\",Descriptions!I60,0)","v":0},{"$f":"IF(WorkingP!$B59=\"Mission Giving and Donations\",WorkingP!D59,\"\")","v":""},{"$f":"IF(WorkingP!$B59=\"Mission Giving and Donations\",WorkingP!E59,\"\")","v":""},{"$f":"IF(WorkingP!$B59=\"Mission Giving and Donations\",WorkingP!F59,\"\")","v":""},{"$f":"IF(WorkingP!$B59=\"Mission Giving and Donations\",WorkingP!G59,\"\")","v":""},{"$f":"IF(WorkingP!$B59=\"Mission Giving and Donations\",WorkingP!H59,\"\")","v":""},{"$f":"IF(WorkingP!$B59=\"Mission Giving and Donations\",WorkingP!I59,\"\")","v":""},{"$f":"IF(WorkingP!$B59=\"Mission Giving and Donations\",WorkingP!J59,\"\")","v":""},{"$f":"IF(WorkingP!$B59=\"Mission Giving and Donations\",WorkingP!K59,\"\")","v":""},{"$f":"IF(WorkingP!$B59=\"Mission Giving and Donations\",WorkingP!L59,\"\")","v":""},{"$f":"IF(WorkingP!$B59=\"Mission Giving and Donations\",WorkingP!M59,\"\")","v":""},{"$f":"IF(WorkingP!$B59=\"Mission Giving and Donations\",WorkingP!N59,\"\")","v":""},{"$f":"IF(WorkingP!$B59=\"Mission Giving and Donations\",WorkingP!O59,\"\")","v":""},{"$f":"IF(WorkingP!$B59=\"Mission Giving and Donations\",WorkingP!P59,\"\")","v":""},{"$f":"IF(WorkingP!$B59=\"Mission Giving and Donations\",WorkingP!Q59,\"\")","v":""},{"$f":"IF(WorkingP!$B59=\"Mission Giving and Donations\",WorkingP!R59,\"\")","v":""},{"$f":"IF(WorkingP!$B59=\"Mission Giving and Donations\",WorkingP!S59,\"\")","v":""},{"$f":"IF(WorkingP!$B59=\"Mission Giving and Donations\",WorkingP!T59,\"\")","v":""},{"$f":"IF(WorkingP!$B59=\"Mission Giving and Donations\",WorkingP!U59,\"\")","v":""},{"$f":"IF(WorkingP!$B59=\"Mission Giving and Donations\",WorkingP!V59,\"\")","v":""},{"$f":"IF(WorkingP!$B59=\"Mission Giving and Donations\",WorkingP!W59,\"\")","v":""},{"$f":"IF(WorkingP!$B59=\"Mission Giving and Donations\",WorkingP!X59,\"\")","v":""},{"$f":"IF(WorkingP!$B59=\"Mission Giving and Donations\",WorkingP!Y59,\"\")","v":""},{"$f":"IF(Descriptions!K60=\"Mission Giving and Donations\",Descriptions!AB60,0)","v":0}]
[{"$f":"IF(Descriptions!K61=\"Mission Giving and Donations\",Descriptions!I61,0)","v":0},{"$f":"IF(WorkingP!$B60=\"Mission Giving and Donations\",WorkingP!D60,\"\")","v":""},{"$f":"IF(WorkingP!$B60=\"Mission Giving and Donations\",WorkingP!E60,\"\")","v":""},{"$f":"IF(WorkingP!$B60=\"Mission Giving and Donations\",WorkingP!F60,\"\")","v":""},{"$f":"IF(WorkingP!$B60=\"Mission Giving and Donations\",WorkingP!G60,\"\")","v":""},{"$f":"IF(WorkingP!$B60=\"Mission Giving and Donations\",WorkingP!H60,\"\")","v":""},{"$f":"IF(WorkingP!$B60=\"Mission Giving and Donations\",WorkingP!I60,\"\")","v":""},{"$f":"IF(WorkingP!$B60=\"Mission Giving and Donations\",WorkingP!J60,\"\")","v":""},{"$f":"IF(WorkingP!$B60=\"Mission Giving and Donations\",WorkingP!K60,\"\")","v":""},{"$f":"IF(WorkingP!$B60=\"Mission Giving and Donations\",WorkingP!L60,\"\")","v":""},{"$f":"IF(WorkingP!$B60=\"Mission Giving and Donations\",WorkingP!M60,\"\")","v":""},{"$f":"IF(WorkingP!$B60=\"Mission Giving and Donations\",WorkingP!N60,\"\")","v":""},{"$f":"IF(WorkingP!$B60=\"Mission Giving and Donations\",WorkingP!O60,\"\")","v":""},{"$f":"IF(WorkingP!$B60=\"Mission Giving and Donations\",WorkingP!P60,\"\")","v":""},{"$f":"IF(WorkingP!$B60=\"Mission Giving and Donations\",WorkingP!Q60,\"\")","v":""},{"$f":"IF(WorkingP!$B60=\"Mission Giving and Donations\",WorkingP!R60,\"\")","v":""},{"$f":"IF(WorkingP!$B60=\"Mission Giving and Donations\",WorkingP!S60,\"\")","v":""},{"$f":"IF(WorkingP!$B60=\"Mission Giving and Donations\",WorkingP!T60,\"\")","v":""},{"$f":"IF(WorkingP!$B60=\"Mission Giving and Donations\",WorkingP!U60,\"\")","v":""},{"$f":"IF(WorkingP!$B60=\"Mission Giving and Donations\",WorkingP!V60,\"\")","v":""},{"$f":"IF(WorkingP!$B60=\"Mission Giving and Donations\",WorkingP!W60,\"\")","v":""},{"$f":"IF(WorkingP!$B60=\"Mission Giving and Donations\",WorkingP!X60,\"\")","v":""},{"$f":"IF(WorkingP!$B60=\"Mission Giving and Donations\",WorkingP!Y60,\"\")","v":""},{"$f":"IF(Descriptions!K61=\"Mission Giving and Donations\",Descriptions!AB61,0)","v":0}]
[{"$f":"IF(Descriptions!K62=\"Mission Giving and Donations\",Descriptions!I62,0)","v":0},{"$f":"IF(WorkingP!$B61=\"Mission Giving and Donations\",WorkingP!D61,\"\")","v":""},{"$f":"IF(WorkingP!$B61=\"Mission Giving and Donations\",WorkingP!E61,\"\")","v":""},{"$f":"IF(WorkingP!$B61=\"Mission Giving and Donations\",WorkingP!F61,\"\")","v":""},{"$f":"IF(WorkingP!$B61=\"Mission Giving and Donations\",WorkingP!G61,\"\")","v":""},{"$f":"IF(WorkingP!$B61=\"Mission Giving and Donations\",WorkingP!H61,\"\")","v":""},{"$f":"IF(WorkingP!$B61=\"Mission Giving and Donations\",WorkingP!I61,\"\")","v":""},{"$f":"IF(WorkingP!$B61=\"Mission Giving and Donations\",WorkingP!J61,\"\")","v":""},{"$f":"IF(WorkingP!$B61=\"Mission Giving and Donations\",WorkingP!K61,\"\")","v":""},{"$f":"IF(WorkingP!$B61=\"Mission Giving and Donations\",WorkingP!L61,\"\")","v":""},{"$f":"IF(WorkingP!$B61=\"Mission Giving and Donations\",WorkingP!M61,\"\")","v":""},{"$f":"IF(WorkingP!$B61=\"Mission Giving and Donations\",WorkingP!N61,\"\")","v":""},{"$f":"IF(WorkingP!$B61=\"Mission Giving and Donations\",WorkingP!O61,\"\")","v":""},{"$f":"IF(WorkingP!$B61=\"Mission Giving and Donations\",WorkingP!P61,\"\")","v":""},{"$f":"IF(WorkingP!$B61=\"Mission Giving and Donations\",WorkingP!Q61,\"\")","v":""},{"$f":"IF(WorkingP!$B61=\"Mission Giving and Donations\",WorkingP!R61,\"\")","v":""},{"$f":"IF(WorkingP!$B61=\"Mission Giving and Donations\",WorkingP!S61,\"\")","v":""},{"$f":"IF(WorkingP!$B61=\"Mission Giving and Donations\",WorkingP!T61,\"\")","v":""},{"$f":"IF(WorkingP!$B61=\"Mission Giving and Donations\",WorkingP!U61,\"\")","v":""},{"$f":"IF(WorkingP!$B61=\"Mission Giving and Donations\",WorkingP!V61,\"\")","v":""},{"$f":"IF(WorkingP!$B61=\"Mission Giving and Donations\",WorkingP!W61,\"\")","v":""},{"$f":"IF(WorkingP!$B61=\"Mission Giving and Donations\",WorkingP!X61,\"\")","v":""},{"$f":"IF(WorkingP!$B61=\"Mission Giving and Donations\",WorkingP!Y61,\"\")","v":""},{"$f":"IF(Descriptions!K62=\"Mission Giving and Donations\",Descriptions!AB62,0)","v":0}]
[{"$f":"IF(Descriptions!K63=\"Mission Giving and Donations\",Descriptions!I63,0)","v":0},{"$f":"IF(WorkingP!$B62=\"Mission Giving and Donations\",WorkingP!D62,\"\")","v":""},{"$f":"IF(WorkingP!$B62=\"Mission Giving and Donations\",WorkingP!E62,\"\")","v":""},{"$f":"IF(WorkingP!$B62=\"Mission Giving and Donations\",WorkingP!F62,\"\")","v":""},{"$f":"IF(WorkingP!$B62=\"Mission Giving and Donations\",WorkingP!G62,\"\")","v":""},{"$f":"IF(WorkingP!$B62=\"Mission Giving and Donations\",WorkingP!H62,\"\")","v":""},{"$f":"IF(WorkingP!$B62=\"Mission Giving and Donations\",WorkingP!I62,\"\")","v":""},{"$f":"IF(WorkingP!$B62=\"Mission Giving and Donations\",WorkingP!J62,\"\")","v":""},{"$f":"IF(WorkingP!$B62=\"Mission Giving and Donations\",WorkingP!K62,\"\")","v":""},{"$f":"IF(WorkingP!$B62=\"Mission Giving and Donations\",WorkingP!L62,\"\")","v":""},{"$f":"IF(WorkingP!$B62=\"Mission Giving and Donations\",WorkingP!M62,\"\")","v":""},{"$f":"IF(WorkingP!$B62=\"Mission Giving and Donations\",WorkingP!N62,\"\")","v":""},{"$f":"IF(WorkingP!$B62=\"Mission Giving and Donations\",WorkingP!O62,\"\")","v":""},{"$f":"IF(WorkingP!$B62=\"Mission Giving and Donations\",WorkingP!P62,\"\")","v":""},{"$f":"IF(WorkingP!$B62=\"Mission Giving and Donations\",WorkingP!Q62,\"\")","v":""},{"$f":"IF(WorkingP!$B62=\"Mission Giving and Donations\",WorkingP!R62,\"\")","v":""},{"$f":"IF(WorkingP!$B62=\"Mission Giving and Donations\",WorkingP!S62,\"\")","v":""},{"$f":"IF(WorkingP!$B62=\"Mission Giving and Donations\",WorkingP!T62,\"\")","v":""},{"$f":"IF(WorkingP!$B62=\"Mission Giving and Donations\",WorkingP!U62,\"\")","v":""},{"$f":"IF(WorkingP!$B62=\"Mission Giving and Donations\",WorkingP!V62,\"\")","v":""},{"$f":"IF(WorkingP!$B62=\"Mission Giving and Donations\",WorkingP!W62,\"\")","v":""},{"$f":"IF(WorkingP!$B62=\"Mission Giving and Donations\",WorkingP!X62,\"\")","v":""},{"$f":"IF(WorkingP!$B62=\"Mission Giving and Donations\",WorkingP!Y62,\"\")","v":""},{"$f":"IF(Descriptions!K63=\"Mission Giving and Donations\",Descriptions!AB63,0)","v":0}]
[{"$f":"IF(Descriptions!K64=\"Mission Giving and Donations\",Descriptions!I64,0)","v":0},{"$f":"IF(WorkingP!$B63=\"Mission Giving and Donations\",WorkingP!D63,\"\")","v":""},{"$f":"IF(WorkingP!$B63=\"Mission Giving and Donations\",WorkingP!E63,\"\")","v":""},{"$f":"IF(WorkingP!$B63=\"Mission Giving and Donations\",WorkingP!F63,\"\")","v":""},{"$f":"IF(WorkingP!$B63=\"Mission Giving and Donations\",WorkingP!G63,\"\")","v":""},{"$f":"IF(WorkingP!$B63=\"Mission Giving and Donations\",WorkingP!H63,\"\")","v":""},{"$f":"IF(WorkingP!$B63=\"Mission Giving and Donations\",WorkingP!I63,\"\")","v":""},{"$f":"IF(WorkingP!$B63=\"Mission Giving and Donations\",WorkingP!J63,\"\")","v":""},{"$f":"IF(WorkingP!$B63=\"Mission Giving and Donations\",WorkingP!K63,\"\")","v":""},{"$f":"IF(WorkingP!$B63=\"Mission Giving and Donations\",WorkingP!L63,\"\")","v":""},{"$f":"IF(WorkingP!$B63=\"Mission Giving and Donations\",WorkingP!M63,\"\")","v":""},{"$f":"IF(WorkingP!$B63=\"Mission Giving and Donations\",WorkingP!N63,\"\")","v":""},{"$f":"IF(WorkingP!$B63=\"Mission Giving and Donations\",WorkingP!O63,\"\")","v":""},{"$f":"IF(WorkingP!$B63=\"Mission Giving and Donations\",WorkingP!P63,\"\")","v":""},{"$f":"IF(WorkingP!$B63=\"Mission Giving and Donations\",WorkingP!Q63,\"\")","v":""},{"$f":"IF(WorkingP!$B63=\"Mission Giving and Donations\",WorkingP!R63,\"\")","v":""},{"$f":"IF(WorkingP!$B63=\"Mission Giving and Donations\",WorkingP!S63,\"\")","v":""},{"$f":"IF(WorkingP!$B63=\"Mission Giving and Donations\",WorkingP!T63,\"\")","v":""},{"$f":"IF(WorkingP!$B63=\"Mission Giving and Donations\",WorkingP!U63,\"\")","v":""},{"$f":"IF(WorkingP!$B63=\"Mission Giving and Donations\",WorkingP!V63,\"\")","v":""},{"$f":"IF(WorkingP!$B63=\"Mission Giving and Donations\",WorkingP!W63,\"\")","v":""},{"$f":"IF(WorkingP!$B63=\"Mission Giving and Donations\",WorkingP!X63,\"\")","v":""},{"$f":"IF(WorkingP!$B63=\"Mission Giving and Donations\",WorkingP!Y63,\"\")","v":""},{"$f":"IF(Descriptions!K64=\"Mission Giving and Donations\",Descriptions!AB64,0)","v":0}]
[{"$f":"IF(Descriptions!K65=\"Mission Giving and Donations\",Descriptions!I65,0)","v":0},{"$f":"IF(WorkingP!$B64=\"Mission Giving and Donations\",WorkingP!D64,\"\")","v":""},{"$f":"IF(WorkingP!$B64=\"Mission Giving and Donations\",WorkingP!E64,\"\")","v":""},{"$f":"IF(WorkingP!$B64=\"Mission Giving and Donations\",WorkingP!F64,\"\")","v":""},{"$f":"IF(WorkingP!$B64=\"Mission Giving and Donations\",WorkingP!G64,\"\")","v":""},{"$f":"IF(WorkingP!$B64=\"Mission Giving and Donations\",WorkingP!H64,\"\")","v":""},{"$f":"IF(WorkingP!$B64=\"Mission Giving and Donations\",WorkingP!I64,\"\")","v":""},{"$f":"IF(WorkingP!$B64=\"Mission Giving and Donations\",WorkingP!J64,\"\")","v":""},{"$f":"IF(WorkingP!$B64=\"Mission Giving and Donations\",WorkingP!K64,\"\")","v":""},{"$f":"IF(WorkingP!$B64=\"Mission Giving and Donations\",WorkingP!L64,\"\")","v":""},{"$f":"IF(WorkingP!$B64=\"Mission Giving and Donations\",WorkingP!M64,\"\")","v":""},{"$f":"IF(WorkingP!$B64=\"Mission Giving and Donations\",WorkingP!N64,\"\")","v":""},{"$f":"IF(WorkingP!$B64=\"Mission Giving and Donations\",WorkingP!O64,\"\")","v":""},{"$f":"IF(WorkingP!$B64=\"Mission Giving and Donations\",WorkingP!P64,\"\")","v":""},{"$f":"IF(WorkingP!$B64=\"Mission Giving and Donations\",WorkingP!Q64,\"\")","v":""},{"$f":"IF(WorkingP!$B64=\"Mission Giving and Donations\",WorkingP!R64,\"\")","v":""},{"$f":"IF(WorkingP!$B64=\"Mission Giving and Donations\",WorkingP!S64,\"\")","v":""},{"$f":"IF(WorkingP!$B64=\"Mission Giving and Donations\",WorkingP!T64,\"\")","v":""},{"$f":"IF(WorkingP!$B64=\"Mission Giving and Donations\",WorkingP!U64,\"\")","v":""},{"$f":"IF(WorkingP!$B64=\"Mission Giving and Donations\",WorkingP!V64,\"\")","v":""},{"$f":"IF(WorkingP!$B64=\"Mission Giving and Donations\",WorkingP!W64,\"\")","v":""},{"$f":"IF(WorkingP!$B64=\"Mission Giving and Donations\",WorkingP!X64,\"\")","v":""},{"$f":"IF(WorkingP!$B64=\"Mission Giving and Donations\",WorkingP!Y64,\"\")","v":""},{"$f":"IF(Descriptions!K65=\"Mission Giving and Donations\",Descriptions!AB65,0)","v":0}]
[{"$f":"IF(Descriptions!K66=\"Mission Giving and Donations\",Descriptions!I66,0)","v":0},{"$f":"IF(WorkingP!$B65=\"Mission Giving and Donations\",WorkingP!D65,\"\")","v":""},{"$f":"IF(WorkingP!$B65=\"Mission Giving and Donations\",WorkingP!E65,\"\")","v":""},{"$f":"IF(WorkingP!$B65=\"Mission Giving and Donations\",WorkingP!F65,\"\")","v":""},{"$f":"IF(WorkingP!$B65=\"Mission Giving and Donations\",WorkingP!G65,\"\")","v":""},{"$f":"IF(WorkingP!$B65=\"Mission Giving and Donations\",WorkingP!H65,\"\")","v":""},{"$f":"IF(WorkingP!$B65=\"Mission Giving and Donations\",WorkingP!I65,\"\")","v":""},{"$f":"IF(WorkingP!$B65=\"Mission Giving and Donations\",WorkingP!J65,\"\")","v":""},{"$f":"IF(WorkingP!$B65=\"Mission Giving and Donations\",WorkingP!K65,\"\")","v":""},{"$f":"IF(WorkingP!$B65=\"Mission Giving and Donations\",WorkingP!L65,\"\")","v":""},{"$f":"IF(WorkingP!$B65=\"Mission Giving and Donations\",WorkingP!M65,\"\")","v":""},{"$f":"IF(WorkingP!$B65=\"Mission Giving and Donations\",WorkingP!N65,\"\")","v":""},{"$f":"IF(WorkingP!$B65=\"Mission Giving and Donations\",WorkingP!O65,\"\")","v":""},{"$f":"IF(WorkingP!$B65=\"Mission Giving and Donations\",WorkingP!P65,\"\")","v":""},{"$f":"IF(WorkingP!$B65=\"Mission Giving and Donations\",WorkingP!Q65,\"\")","v":""},{"$f":"IF(WorkingP!$B65=\"Mission Giving and Donations\",WorkingP!R65,\"\")","v":""},{"$f":"IF(WorkingP!$B65=\"Mission Giving and Donations\",WorkingP!S65,\"\")","v":""},{"$f":"IF(WorkingP!$B65=\"Mission Giving and Donations\",WorkingP!T65,\"\")","v":""},{"$f":"IF(WorkingP!$B65=\"Mission Giving and Donations\",WorkingP!U65,\"\")","v":""},{"$f":"IF(WorkingP!$B65=\"Mission Giving and Donations\",WorkingP!V65,\"\")","v":""},{"$f":"IF(WorkingP!$B65=\"Mission Giving and Donations\",WorkingP!W65,\"\")","v":""},{"$f":"IF(WorkingP!$B65=\"Mission Giving and Donations\",WorkingP!X65,\"\")","v":""},{"$f":"IF(WorkingP!$B65=\"Mission Giving and Donations\",WorkingP!Y65,\"\")","v":""},{"$f":"IF(Descriptions!K66=\"Mission Giving and Donations\",Descriptions!AB66,0)","v":0}]
[{"$f":"IF(Descriptions!K67=\"Mission Giving and Donations\",Descriptions!I67,0)","v":0},{"$f":"IF(WorkingP!$B66=\"Mission Giving and Donations\",WorkingP!D66,\"\")","v":""},{"$f":"IF(WorkingP!$B66=\"Mission Giving and Donations\",WorkingP!E66,\"\")","v":""},{"$f":"IF(WorkingP!$B66=\"Mission Giving and Donations\",WorkingP!F66,\"\")","v":""},{"$f":"IF(WorkingP!$B66=\"Mission Giving and Donations\",WorkingP!G66,\"\")","v":""},{"$f":"IF(WorkingP!$B66=\"Mission Giving and Donations\",WorkingP!H66,\"\")","v":""},{"$f":"IF(WorkingP!$B66=\"Mission Giving and Donations\",WorkingP!I66,\"\")","v":""},{"$f":"IF(WorkingP!$B66=\"Mission Giving and Donations\",WorkingP!J66,\"\")","v":""},{"$f":"IF(WorkingP!$B66=\"Mission Giving and Donations\",WorkingP!K66,\"\")","v":""},{"$f":"IF(WorkingP!$B66=\"Mission Giving and Donations\",WorkingP!L66,\"\")","v":""},{"$f":"IF(WorkingP!$B66=\"Mission Giving and Donations\",WorkingP!M66,\"\")","v":""},{"$f":"IF(WorkingP!$B66=\"Mission Giving and Donations\",WorkingP!N66,\"\")","v":""},{"$f":"IF(WorkingP!$B66=\"Mission Giving and Donations\",WorkingP!O66,\"\")","v":""},{"$f":"IF(WorkingP!$B66=\"Mission Giving and Donations\",WorkingP!P66,\"\")","v":""},{"$f":"IF(WorkingP!$B66=\"Mission Giving and Donations\",WorkingP!Q66,\"\")","v":""},{"$f":"IF(WorkingP!$B66=\"Mission Giving and Donations\",WorkingP!R66,\"\")","v":""},{"$f":"IF(WorkingP!$B66=\"Mission Giving and Donations\",WorkingP!S66,\"\")","v":""},{"$f":"IF(WorkingP!$B66=\"Mission Giving and Donations\",WorkingP!T66,\"\")","v":""},{"$f":"IF(WorkingP!$B66=\"Mission Giving and Donations\",WorkingP!U66,\"\")","v":""},{"$f":"IF(WorkingP!$B66=\"Mission Giving and Donations\",WorkingP!V66,\"\")","v":""},{"$f":"IF(WorkingP!$B66=\"Mission Giving and Donations\",WorkingP!W66,\"\")","v":""},{"$f":"IF(WorkingP!$B66=\"Mission Giving and Donations\",WorkingP!X66,\"\")","v":""},{"$f":"IF(WorkingP!$B66=\"Mission Giving and Donations\",WorkingP!Y66,\"\")","v":""},{"$f":"IF(Descriptions!K67=\"Mission Giving and Donations\",Descriptions!AB67,0)","v":0}]
[{"$f":"IF(Descriptions!K68=\"Mission Giving and Donations\",Descriptions!I68,0)","v":0},{"$f":"IF(WorkingP!$B67=\"Mission Giving and Donations\",WorkingP!D67,\"\")","v":""},{"$f":"IF(WorkingP!$B67=\"Mission Giving and Donations\",WorkingP!E67,\"\")","v":""},{"$f":"IF(WorkingP!$B67=\"Mission Giving and Donations\",WorkingP!F67,\"\")","v":""},{"$f":"IF(WorkingP!$B67=\"Mission Giving and Donations\",WorkingP!G67,\"\")","v":""},{"$f":"IF(WorkingP!$B67=\"Mission Giving and Donations\",WorkingP!H67,\"\")","v":""},{"$f":"IF(WorkingP!$B67=\"Mission Giving and Donations\",WorkingP!I67,\"\")","v":""},{"$f":"IF(WorkingP!$B67=\"Mission Giving and Donations\",WorkingP!J67,\"\")","v":""},{"$f":"IF(WorkingP!$B67=\"Mission Giving and Donations\",WorkingP!K67,\"\")","v":""},{"$f":"IF(WorkingP!$B67=\"Mission Giving and Donations\",WorkingP!L67,\"\")","v":""},{"$f":"IF(WorkingP!$B67=\"Mission Giving and Donations\",WorkingP!M67,\"\")","v":""},{"$f":"IF(WorkingP!$B67=\"Mission Giving and Donations\",WorkingP!N67,\"\")","v":""},{"$f":"IF(WorkingP!$B67=\"Mission Giving and Donations\",WorkingP!O67,\"\")","v":""},{"$f":"IF(WorkingP!$B67=\"Mission Giving and Donations\",WorkingP!P67,\"\")","v":""},{"$f":"IF(WorkingP!$B67=\"Mission Giving and Donations\",WorkingP!Q67,\"\")","v":""},{"$f":"IF(WorkingP!$B67=\"Mission Giving and Donations\",WorkingP!R67,\"\")","v":""},{"$f":"IF(WorkingP!$B67=\"Mission Giving and Donations\",WorkingP!S67,\"\")","v":""},{"$f":"IF(WorkingP!$B67=\"Mission Giving and Donations\",WorkingP!T67,\"\")","v":""},{"$f":"IF(WorkingP!$B67=\"Mission Giving and Donations\",WorkingP!U67,\"\")","v":""},{"$f":"IF(WorkingP!$B67=\"Mission Giving and Donations\",WorkingP!V67,\"\")","v":""},{"$f":"IF(WorkingP!$B67=\"Mission Giving and Donations\",WorkingP!W67,\"\")","v":""},{"$f":"IF(WorkingP!$B67=\"Mission Giving and Donations\",WorkingP!X67,\"\")","v":""},{"$f":"IF(WorkingP!$B67=\"Mission Giving and Donations\",WorkingP!Y67,\"\")","v":""},{"$f":"IF(Descriptions!K68=\"Mission Giving and Donations\",Descriptions!AB68,0)","v":0}]
[{"$f":"IF(Descriptions!K69=\"Mission Giving and Donations\",Descriptions!I69,0)","v":0},{"$f":"IF(WorkingP!$B68=\"Mission Giving and Donations\",WorkingP!D68,\"\")","v":""},{"$f":"IF(WorkingP!$B68=\"Mission Giving and Donations\",WorkingP!E68,\"\")","v":""},{"$f":"IF(WorkingP!$B68=\"Mission Giving and Donations\",WorkingP!F68,\"\")","v":""},{"$f":"IF(WorkingP!$B68=\"Mission Giving and Donations\",WorkingP!G68,\"\")","v":""},{"$f":"IF(WorkingP!$B68=\"Mission Giving and Donations\",WorkingP!H68,\"\")","v":""},{"$f":"IF(WorkingP!$B68=\"Mission Giving and Donations\",WorkingP!I68,\"\")","v":""},{"$f":"IF(WorkingP!$B68=\"Mission Giving and Donations\",WorkingP!J68,\"\")","v":""},{"$f":"IF(WorkingP!$B68=\"Mission Giving and Donations\",WorkingP!K68,\"\")","v":""},{"$f":"IF(WorkingP!$B68=\"Mission Giving and Donations\",WorkingP!L68,\"\")","v":""},{"$f":"IF(WorkingP!$B68=\"Mission Giving and Donations\",WorkingP!M68,\"\")","v":""},{"$f":"IF(WorkingP!$B68=\"Mission Giving and Donations\",WorkingP!N68,\"\")","v":""},{"$f":"IF(WorkingP!$B68=\"Mission Giving and Donations\",WorkingP!O68,\"\")","v":""},{"$f":"IF(WorkingP!$B68=\"Mission Giving and Donations\",WorkingP!P68,\"\")","v":""},{"$f":"IF(WorkingP!$B68=\"Mission Giving and Donations\",WorkingP!Q68,\"\")","v":""},{"$f":"IF(WorkingP!$B68=\"Mission Giving and Donations\",WorkingP!R68,\"\")","v":""},{"$f":"IF(WorkingP!$B68=\"Mission Giving and Donations\",WorkingP!S68,\"\")","v":""},{"$f":"IF(WorkingP!$B68=\"Mission Giving and Donations\",WorkingP!T68,\"\")","v":""},{"$f":"IF(WorkingP!$B68=\"Mission Giving and Donations\",WorkingP!U68,\"\")","v":""},{"$f":"IF(WorkingP!$B68=\"Mission Giving and Donations\",WorkingP!V68,\"\")","v":""},{"$f":"IF(WorkingP!$B68=\"Mission Giving and Donations\",WorkingP!W68,\"\")","v":""},{"$f":"IF(WorkingP!$B68=\"Mission Giving and Donations\",WorkingP!X68,\"\")","v":""},{"$f":"IF(WorkingP!$B68=\"Mission Giving and Donations\",WorkingP!Y68,\"\")","v":""},{"$f":"IF(Descriptions!K69=\"Mission Giving and Donations\",Descriptions!AB69,0)","v":0}]
[{"$f":"IF(Descriptions!K70=\"Mission Giving and Donations\",Descriptions!I70,0)","v":0},{"$f":"IF(WorkingP!$B69=\"Mission Giving and Donations\",WorkingP!D69,\"\")","v":""},{"$f":"IF(WorkingP!$B69=\"Mission Giving and Donations\",WorkingP!E69,\"\")","v":""},{"$f":"IF(WorkingP!$B69=\"Mission Giving and Donations\",WorkingP!F69,\"\")","v":""},{"$f":"IF(WorkingP!$B69=\"Mission Giving and Donations\",WorkingP!G69,\"\")","v":""},{"$f":"IF(WorkingP!$B69=\"Mission Giving and Donations\",WorkingP!H69,\"\")","v":""},{"$f":"IF(WorkingP!$B69=\"Mission Giving and Donations\",WorkingP!I69,\"\")","v":""},{"$f":"IF(WorkingP!$B69=\"Mission Giving and Donations\",WorkingP!J69,\"\")","v":""},{"$f":"IF(WorkingP!$B69=\"Mission Giving and Donations\",WorkingP!K69,\"\")","v":""},{"$f":"IF(WorkingP!$B69=\"Mission Giving and Donations\",WorkingP!L69,\"\")","v":""},{"$f":"IF(WorkingP!$B69=\"Mission Giving and Donations\",WorkingP!M69,\"\")","v":""},{"$f":"IF(WorkingP!$B69=\"Mission Giving and Donations\",WorkingP!N69,\"\")","v":""},{"$f":"IF(WorkingP!$B69=\"Mission Giving and Donations\",WorkingP!O69,\"\")","v":""},{"$f":"IF(WorkingP!$B69=\"Mission Giving and Donations\",WorkingP!P69,\"\")","v":""},{"$f":"IF(WorkingP!$B69=\"Mission Giving and Donations\",WorkingP!Q69,\"\")","v":""},{"$f":"IF(WorkingP!$B69=\"Mission Giving and Donations\",WorkingP!R69,\"\")","v":""},{"$f":"IF(WorkingP!$B69=\"Mission Giving and Donations\",WorkingP!S69,\"\")","v":""},{"$f":"IF(WorkingP!$B69=\"Mission Giving and Donations\",WorkingP!T69,\"\")","v":""},{"$f":"IF(WorkingP!$B69=\"Mission Giving and Donations\",WorkingP!U69,\"\")","v":""},{"$f":"IF(WorkingP!$B69=\"Mission Giving and Donations\",WorkingP!V69,\"\")","v":""},{"$f":"IF(WorkingP!$B69=\"Mission Giving and Donations\",WorkingP!W69,\"\")","v":""},{"$f":"IF(WorkingP!$B69=\"Mission Giving and Donations\",WorkingP!X69,\"\")","v":""},{"$f":"IF(WorkingP!$B69=\"Mission Giving and Donations\",WorkingP!Y69,\"\")","v":""},{"$f":"IF(Descriptions!K70=\"Mission Giving and Donations\",Descriptions!AB70,0)","v":0}]
[{"$f":"IF(Descriptions!K71=\"Mission Giving and Donations\",Descriptions!I71,0)","v":0},{"$f":"IF(WorkingP!$B70=\"Mission Giving and Donations\",WorkingP!D70,\"\")","v":""},{"$f":"IF(WorkingP!$B70=\"Mission Giving and Donations\",WorkingP!E70,\"\")","v":""},{"$f":"IF(WorkingP!$B70=\"Mission Giving and Donations\",WorkingP!F70,\"\")","v":""},{"$f":"IF(WorkingP!$B70=\"Mission Giving and Donations\",WorkingP!G70,\"\")","v":""},{"$f":"IF(WorkingP!$B70=\"Mission Giving and Donations\",WorkingP!H70,\"\")","v":""},{"$f":"IF(WorkingP!$B70=\"Mission Giving and Donations\",WorkingP!I70,\"\")","v":""},{"$f":"IF(WorkingP!$B70=\"Mission Giving and Donations\",WorkingP!J70,\"\")","v":""},{"$f":"IF(WorkingP!$B70=\"Mission Giving and Donations\",WorkingP!K70,\"\")","v":""},{"$f":"IF(WorkingP!$B70=\"Mission Giving and Donations\",WorkingP!L70,\"\")","v":""},{"$f":"IF(WorkingP!$B70=\"Mission Giving and Donations\",WorkingP!M70,\"\")","v":""},{"$f":"IF(WorkingP!$B70=\"Mission Giving and Donations\",WorkingP!N70,\"\")","v":""},{"$f":"IF(WorkingP!$B70=\"Mission Giving and Donations\",WorkingP!O70,\"\")","v":""},{"$f":"IF(WorkingP!$B70=\"Mission Giving and Donations\",WorkingP!P70,\"\")","v":""},{"$f":"IF(WorkingP!$B70=\"Mission Giving and Donations\",WorkingP!Q70,\"\")","v":""},{"$f":"IF(WorkingP!$B70=\"Mission Giving and Donations\",WorkingP!R70,\"\")","v":""},{"$f":"IF(WorkingP!$B70=\"Mission Giving and Donations\",WorkingP!S70,\"\")","v":""},{"$f":"IF(WorkingP!$B70=\"Mission Giving and Donations\",WorkingP!T70,\"\")","v":""},{"$f":"IF(WorkingP!$B70=\"Mission Giving and Donations\",WorkingP!U70,\"\")","v":""},{"$f":"IF(WorkingP!$B70=\"Mission Giving and Donations\",WorkingP!V70,\"\")","v":""},{"$f":"IF(WorkingP!$B70=\"Mission Giving and Donations\",WorkingP!W70,\"\")","v":""},{"$f":"IF(WorkingP!$B70=\"Mission Giving and Donations\",WorkingP!X70,\"\")","v":""},{"$f":"IF(WorkingP!$B70=\"Mission Giving and Donations\",WorkingP!Y70,\"\")","v":""},{"$f":"IF(Descriptions!K71=\"Mission Giving and Donations\",Descriptions!AB71,0)","v":0}]
[{"$f":"IF(Descriptions!K72=\"Mission Giving and Donations\",Descriptions!I72,0)","v":0},{"$f":"IF(WorkingP!$B71=\"Mission Giving and Donations\",WorkingP!D71,\"\")","v":""},{"$f":"IF(WorkingP!$B71=\"Mission Giving and Donations\",WorkingP!E71,\"\")","v":""},{"$f":"IF(WorkingP!$B71=\"Mission Giving and Donations\",WorkingP!F71,\"\")","v":""},{"$f":"IF(WorkingP!$B71=\"Mission Giving and Donations\",WorkingP!G71,\"\")","v":""},{"$f":"IF(WorkingP!$B71=\"Mission Giving and Donations\",WorkingP!H71,\"\")","v":""},{"$f":"IF(WorkingP!$B71=\"Mission Giving and Donations\",WorkingP!I71,\"\")","v":""},{"$f":"IF(WorkingP!$B71=\"Mission Giving and Donations\",WorkingP!J71,\"\")","v":""},{"$f":"IF(WorkingP!$B71=\"Mission Giving and Donations\",WorkingP!K71,\"\")","v":""},{"$f":"IF(WorkingP!$B71=\"Mission Giving and Donations\",WorkingP!L71,\"\")","v":""},{"$f":"IF(WorkingP!$B71=\"Mission Giving and Donations\",WorkingP!M71,\"\")","v":""},{"$f":"IF(WorkingP!$B71=\"Mission Giving and Donations\",WorkingP!N71,\"\")","v":""},{"$f":"IF(WorkingP!$B71=\"Mission Giving and Donations\",WorkingP!O71,\"\")","v":""},{"$f":"IF(WorkingP!$B71=\"Mission Giving and Donations\",WorkingP!P71,\"\")","v":""},{"$f":"IF(WorkingP!$B71=\"Mission Giving and Donations\",WorkingP!Q71,\"\")","v":""},{"$f":"IF(WorkingP!$B71=\"Mission Giving and Donations\",WorkingP!R71,\"\")","v":""},{"$f":"IF(WorkingP!$B71=\"Mission Giving and Donations\",WorkingP!S71,\"\")","v":""},{"$f":"IF(WorkingP!$B71=\"Mission Giving and Donations\",WorkingP!T71,\"\")","v":""},{"$f":"IF(WorkingP!$B71=\"Mission Giving and Donations\",WorkingP!U71,\"\")","v":""},{"$f":"IF(WorkingP!$B71=\"Mission Giving and Donations\",WorkingP!V71,\"\")","v":""},{"$f":"IF(WorkingP!$B71=\"Mission Giving and Donations\",WorkingP!W71,\"\")","v":""},{"$f":"IF(WorkingP!$B71=\"Mission Giving and Donations\",WorkingP!X71,\"\")","v":""},{"$f":"IF(WorkingP!$B71=\"Mission Giving and Donations\",WorkingP!Y71,\"\")","v":""},{"$f":"IF(Descriptions!K72=\"Mission Giving and Donations\",Descriptions!AB72,0)","v":0}]
[{"$f":"IF(Descriptions!K73=\"Mission Giving and Donations\",Descriptions!I73,0)","v":0},{"$f":"IF(WorkingP!$B72=\"Mission Giving and Donations\",WorkingP!D72,\"\")","v":""},{"$f":"IF(WorkingP!$B72=\"Mission Giving and Donations\",WorkingP!E72,\"\")","v":""},{"$f":"IF(WorkingP!$B72=\"Mission Giving and Donations\",WorkingP!F72,\"\")","v":""},{"$f":"IF(WorkingP!$B72=\"Mission Giving and Donations\",WorkingP!G72,\"\")","v":""},{"$f":"IF(WorkingP!$B72=\"Mission Giving and Donations\",WorkingP!H72,\"\")","v":""},{"$f":"IF(WorkingP!$B72=\"Mission Giving and Donations\",WorkingP!I72,\"\")","v":""},{"$f":"IF(WorkingP!$B72=\"Mission Giving and Donations\",WorkingP!J72,\"\")","v":""},{"$f":"IF(WorkingP!$B72=\"Mission Giving and Donations\",WorkingP!K72,\"\")","v":""},{"$f":"IF(WorkingP!$B72=\"Mission Giving and Donations\",WorkingP!L72,\"\")","v":""},{"$f":"IF(WorkingP!$B72=\"Mission Giving and Donations\",WorkingP!M72,\"\")","v":""},{"$f":"IF(WorkingP!$B72=\"Mission Giving and Donations\",WorkingP!N72,\"\")","v":""},{"$f":"IF(WorkingP!$B72=\"Mission Giving and Donations\",WorkingP!O72,\"\")","v":""},{"$f":"IF(WorkingP!$B72=\"Mission Giving and Donations\",WorkingP!P72,\"\")","v":""},{"$f":"IF(WorkingP!$B72=\"Mission Giving and Donations\",WorkingP!Q72,\"\")","v":""},{"$f":"IF(WorkingP!$B72=\"Mission Giving and Donations\",WorkingP!R72,\"\")","v":""},{"$f":"IF(WorkingP!$B72=\"Mission Giving and Donations\",WorkingP!S72,\"\")","v":""},{"$f":"IF(WorkingP!$B72=\"Mission Giving and Donations\",WorkingP!T72,\"\")","v":""},{"$f":"IF(WorkingP!$B72=\"Mission Giving and Donations\",WorkingP!U72,\"\")","v":""},{"$f":"IF(WorkingP!$B72=\"Mission Giving and Donations\",WorkingP!V72,\"\")","v":""},{"$f":"IF(WorkingP!$B72=\"Mission Giving and Donations\",WorkingP!W72,\"\")","v":""},{"$f":"IF(WorkingP!$B72=\"Mission Giving and Donations\",WorkingP!X72,\"\")","v":""},{"$f":"IF(WorkingP!$B72=\"Mission Giving and Donations\",WorkingP!Y72,\"\")","v":""},{"$f":"IF(Descriptions!K73=\"Mission Giving and Donations\",Descriptions!AB73,0)","v":0}]
[{"$f":"IF(Descriptions!K74=\"Mission Giving and Donations\",Descriptions!I74,0)","v":0},{"$f":"IF(WorkingP!$B73=\"Mission Giving and Donations\",WorkingP!D73,\"\")","v":""},{"$f":"IF(WorkingP!$B73=\"Mission Giving and Donations\",WorkingP!E73,\"\")","v":""},{"$f":"IF(WorkingP!$B73=\"Mission Giving and Donations\",WorkingP!F73,\"\")","v":""},{"$f":"IF(WorkingP!$B73=\"Mission Giving and Donations\",WorkingP!G73,\"\")","v":""},{"$f":"IF(WorkingP!$B73=\"Mission Giving and Donations\",WorkingP!H73,\"\")","v":""},{"$f":"IF(WorkingP!$B73=\"Mission Giving and Donations\",WorkingP!I73,\"\")","v":""},{"$f":"IF(WorkingP!$B73=\"Mission Giving and Donations\",WorkingP!J73,\"\")","v":""},{"$f":"IF(WorkingP!$B73=\"Mission Giving and Donations\",WorkingP!K73,\"\")","v":""},{"$f":"IF(WorkingP!$B73=\"Mission Giving and Donations\",WorkingP!L73,\"\")","v":""},{"$f":"IF(WorkingP!$B73=\"Mission Giving and Donations\",WorkingP!M73,\"\")","v":""},{"$f":"IF(WorkingP!$B73=\"Mission Giving and Donations\",WorkingP!N73,\"\")","v":""},{"$f":"IF(WorkingP!$B73=\"Mission Giving and Donations\",WorkingP!O73,\"\")","v":""},{"$f":"IF(WorkingP!$B73=\"Mission Giving and Donations\",WorkingP!P73,\"\")","v":""},{"$f":"IF(WorkingP!$B73=\"Mission Giving and Donations\",WorkingP!Q73,\"\")","v":""},{"$f":"IF(WorkingP!$B73=\"Mission Giving and Donations\",WorkingP!R73,\"\")","v":""},{"$f":"IF(WorkingP!$B73=\"Mission Giving and Donations\",WorkingP!S73,\"\")","v":""},{"$f":"IF(WorkingP!$B73=\"Mission Giving and Donations\",WorkingP!T73,\"\")","v":""},{"$f":"IF(WorkingP!$B73=\"Mission Giving and Donations\",WorkingP!U73,\"\")","v":""},{"$f":"IF(WorkingP!$B73=\"Mission Giving and Donations\",WorkingP!V73,\"\")","v":""},{"$f":"IF(WorkingP!$B73=\"Mission Giving and Donations\",WorkingP!W73,\"\")","v":""},{"$f":"IF(WorkingP!$B73=\"Mission Giving and Donations\",WorkingP!X73,\"\")","v":""},{"$f":"IF(WorkingP!$B73=\"Mission Giving and Donations\",WorkingP!Y73,\"\")","v":""},{"$f":"IF(Descriptions!K74=\"Mission Giving and Donations\",Descriptions!AB74,0)","v":0}]
[{"$f":"IF(Descriptions!K75=\"Mission Giving and Donations\",Descriptions!I75,0)","v":0},{"$f":"IF(WorkingP!$B74=\"Mission Giving and Donations\",WorkingP!D74,\"\")","v":""},{"$f":"IF(WorkingP!$B74=\"Mission Giving and Donations\",WorkingP!E74,\"\")","v":""},{"$f":"IF(WorkingP!$B74=\"Mission Giving and Donations\",WorkingP!F74,\"\")","v":""},{"$f":"IF(WorkingP!$B74=\"Mission Giving and Donations\",WorkingP!G74,\"\")","v":""},{"$f":"IF(WorkingP!$B74=\"Mission Giving and Donations\",WorkingP!H74,\"\")","v":""},{"$f":"IF(WorkingP!$B74=\"Mission Giving and Donations\",WorkingP!I74,\"\")","v":""},{"$f":"IF(WorkingP!$B74=\"Mission Giving and Donations\",WorkingP!J74,\"\")","v":""},{"$f":"IF(WorkingP!$B74=\"Mission Giving and Donations\",WorkingP!K74,\"\")","v":""},{"$f":"IF(WorkingP!$B74=\"Mission Giving and Donations\",WorkingP!L74,\"\")","v":""},{"$f":"IF(WorkingP!$B74=\"Mission Giving and Donations\",WorkingP!M74,\"\")","v":""},{"$f":"IF(WorkingP!$B74=\"Mission Giving and Donations\",WorkingP!N74,\"\")","v":""},{"$f":"IF(WorkingP!$B74=\"Mission Giving and Donations\",WorkingP!O74,\"\")","v":""},{"$f":"IF(WorkingP!$B74=\"Mission Giving and Donations\",WorkingP!P74,\"\")","v":""},{"$f":"IF(WorkingP!$B74=\"Mission Giving and Donations\",WorkingP!Q74,\"\")","v":""},{"$f":"IF(WorkingP!$B74=\"Mission Giving and Donations\",WorkingP!R74,\"\")","v":""},{"$f":"IF(WorkingP!$B74=\"Mission Giving and Donations\",WorkingP!S74,\"\")","v":""},{"$f":"IF(WorkingP!$B74=\"Mission Giving and Donations\",WorkingP!T74,\"\")","v":""},{"$f":"IF(WorkingP!$B74=\"Mission Giving and Donations\",WorkingP!U74,\"\")","v":""},{"$f":"IF(WorkingP!$B74=\"Mission Giving and Donations\",WorkingP!V74,\"\")","v":""},{"$f":"IF(WorkingP!$B74=\"Mission Giving and Donations\",WorkingP!W74,\"\")","v":""},{"$f":"IF(WorkingP!$B74=\"Mission Giving and Donations\",WorkingP!X74,\"\")","v":""},{"$f":"IF(WorkingP!$B74=\"Mission Giving and Donations\",WorkingP!Y74,\"\")","v":""},{"$f":"IF(Descriptions!K75=\"Mission Giving and Donations\",Descriptions!AB75,0)","v":0}]
[{"$f":"IF(Descriptions!K76=\"Mission Giving and Donations\",Descriptions!I76,0)","v":0},{"$f":"IF(WorkingP!$B75=\"Mission Giving and Donations\",WorkingP!D75,\"\")","v":""},{"$f":"IF(WorkingP!$B75=\"Mission Giving and Donations\",WorkingP!E75,\"\")","v":""},{"$f":"IF(WorkingP!$B75=\"Mission Giving and Donations\",WorkingP!F75,\"\")","v":""},{"$f":"IF(WorkingP!$B75=\"Mission Giving and Donations\",WorkingP!G75,\"\")","v":""},{"$f":"IF(WorkingP!$B75=\"Mission Giving and Donations\",WorkingP!H75,\"\")","v":""},{"$f":"IF(WorkingP!$B75=\"Mission Giving and Donations\",WorkingP!I75,\"\")","v":""},{"$f":"IF(WorkingP!$B75=\"Mission Giving and Donations\",WorkingP!J75,\"\")","v":""},{"$f":"IF(WorkingP!$B75=\"Mission Giving and Donations\",WorkingP!K75,\"\")","v":""},{"$f":"IF(WorkingP!$B75=\"Mission Giving and Donations\",WorkingP!L75,\"\")","v":""},{"$f":"IF(WorkingP!$B75=\"Mission Giving and Donations\",WorkingP!M75,\"\")","v":""},{"$f":"IF(WorkingP!$B75=\"Mission Giving and Donations\",WorkingP!N75,\"\")","v":""},{"$f":"IF(WorkingP!$B75=\"Mission Giving and Donations\",WorkingP!O75,\"\")","v":""},{"$f":"IF(WorkingP!$B75=\"Mission Giving and Donations\",WorkingP!P75,\"\")","v":""},{"$f":"IF(WorkingP!$B75=\"Mission Giving and Donations\",WorkingP!Q75,\"\")","v":""},{"$f":"IF(WorkingP!$B75=\"Mission Giving and Donations\",WorkingP!R75,\"\")","v":""},{"$f":"IF(WorkingP!$B75=\"Mission Giving and Donations\",WorkingP!S75,\"\")","v":""},{"$f":"IF(WorkingP!$B75=\"Mission Giving and Donations\",WorkingP!T75,\"\")","v":""},{"$f":"IF(WorkingP!$B75=\"Mission Giving and Donations\",WorkingP!U75,\"\")","v":""},{"$f":"IF(WorkingP!$B75=\"Mission Giving and Donations\",WorkingP!V75,\"\")","v":""},{"$f":"IF(WorkingP!$B75=\"Mission Giving and Donations\",WorkingP!W75,\"\")","v":""},{"$f":"IF(WorkingP!$B75=\"Mission Giving and Donations\",WorkingP!X75,\"\")","v":""},{"$f":"IF(WorkingP!$B75=\"Mission Giving and Donations\",WorkingP!Y75,\"\")","v":""},{"$f":"IF(Descriptions!K76=\"Mission Giving and Donations\",Descriptions!AB76,0)","v":0}]
[{"$f":"IF(Descriptions!K77=\"Mission Giving and Donations\",Descriptions!I77,0)","v":0},{"$f":"IF(WorkingP!$B76=\"Mission Giving and Donations\",WorkingP!D76,\"\")","v":""},{"$f":"IF(WorkingP!$B76=\"Mission Giving and Donations\",WorkingP!E76,\"\")","v":""},{"$f":"IF(WorkingP!$B76=\"Mission Giving and Donations\",WorkingP!F76,\"\")","v":""},{"$f":"IF(WorkingP!$B76=\"Mission Giving and Donations\",WorkingP!G76,\"\")","v":""},{"$f":"IF(WorkingP!$B76=\"Mission Giving and Donations\",WorkingP!H76,\"\")","v":""},{"$f":"IF(WorkingP!$B76=\"Mission Giving and Donations\",WorkingP!I76,\"\")","v":""},{"$f":"IF(WorkingP!$B76=\"Mission Giving and Donations\",WorkingP!J76,\"\")","v":""},{"$f":"IF(WorkingP!$B76=\"Mission Giving and Donations\",WorkingP!K76,\"\")","v":""},{"$f":"IF(WorkingP!$B76=\"Mission Giving and Donations\",WorkingP!L76,\"\")","v":""},{"$f":"IF(WorkingP!$B76=\"Mission Giving and Donations\",WorkingP!M76,\"\")","v":""},{"$f":"IF(WorkingP!$B76=\"Mission Giving and Donations\",WorkingP!N76,\"\")","v":""},{"$f":"IF(WorkingP!$B76=\"Mission Giving and Donations\",WorkingP!O76,\"\")","v":""},{"$f":"IF(WorkingP!$B76=\"Mission Giving and Donations\",WorkingP!P76,\"\")","v":""},{"$f":"IF(WorkingP!$B76=\"Mission Giving and Donations\",WorkingP!Q76,\"\")","v":""},{"$f":"IF(WorkingP!$B76=\"Mission Giving and Donations\",WorkingP!R76,\"\")","v":""},{"$f":"IF(WorkingP!$B76=\"Mission Giving and Donations\",WorkingP!S76,\"\")","v":""},{"$f":"IF(WorkingP!$B76=\"Mission Giving and Donations\",WorkingP!T76,\"\")","v":""},{"$f":"IF(WorkingP!$B76=\"Mission Giving and Donations\",WorkingP!U76,\"\")","v":""},{"$f":"IF(WorkingP!$B76=\"Mission Giving and Donations\",WorkingP!V76,\"\")","v":""},{"$f":"IF(WorkingP!$B76=\"Mission Giving and Donations\",WorkingP!W76,\"\")","v":""},{"$f":"IF(WorkingP!$B76=\"Mission Giving and Donations\",WorkingP!X76,\"\")","v":""},{"$f":"IF(WorkingP!$B76=\"Mission Giving and Donations\",WorkingP!Y76,\"\")","v":""},{"$f":"IF(Descriptions!K77=\"Mission Giving and Donations\",Descriptions!AB77,0)","v":0}]
[{"$f":"IF(Descriptions!K78=\"Mission Giving and Donations\",Descriptions!I78,0)","v":0},{"$f":"IF(WorkingP!$B77=\"Mission Giving and Donations\",WorkingP!D77,\"\")","v":""},{"$f":"IF(WorkingP!$B77=\"Mission Giving and Donations\",WorkingP!E77,\"\")","v":""},{"$f":"IF(WorkingP!$B77=\"Mission Giving and Donations\",WorkingP!F77,\"\")","v":""},{"$f":"IF(WorkingP!$B77=\"Mission Giving and Donations\",WorkingP!G77,\"\")","v":""},{"$f":"IF(WorkingP!$B77=\"Mission Giving and Donations\",WorkingP!H77,\"\")","v":""},{"$f":"IF(WorkingP!$B77=\"Mission Giving and Donations\",WorkingP!I77,\"\")","v":""},{"$f":"IF(WorkingP!$B77=\"Mission Giving and Donations\",WorkingP!J77,\"\")","v":""},{"$f":"IF(WorkingP!$B77=\"Mission Giving and Donations\",WorkingP!K77,\"\")","v":""},{"$f":"IF(WorkingP!$B77=\"Mission Giving and Donations\",WorkingP!L77,\"\")","v":""},{"$f":"IF(WorkingP!$B77=\"Mission Giving and Donations\",WorkingP!M77,\"\")","v":""},{"$f":"IF(WorkingP!$B77=\"Mission Giving and Donations\",WorkingP!N77,\"\")","v":""},{"$f":"IF(WorkingP!$B77=\"Mission Giving and Donations\",WorkingP!O77,\"\")","v":""},{"$f":"IF(WorkingP!$B77=\"Mission Giving and Donations\",WorkingP!P77,\"\")","v":""},{"$f":"IF(WorkingP!$B77=\"Mission Giving and Donations\",WorkingP!Q77,\"\")","v":""},{"$f":"IF(WorkingP!$B77=\"Mission Giving and Donations\",WorkingP!R77,\"\")","v":""},{"$f":"IF(WorkingP!$B77=\"Mission Giving and Donations\",WorkingP!S77,\"\")","v":""},{"$f":"IF(WorkingP!$B77=\"Mission Giving and Donations\",WorkingP!T77,\"\")","v":""},{"$f":"IF(WorkingP!$B77=\"Mission Giving and Donations\",WorkingP!U77,\"\")","v":""},{"$f":"IF(WorkingP!$B77=\"Mission Giving and Donations\",WorkingP!V77,\"\")","v":""},{"$f":"IF(WorkingP!$B77=\"Mission Giving and Donations\",WorkingP!W77,\"\")","v":""},{"$f":"IF(WorkingP!$B77=\"Mission Giving and Donations\",WorkingP!X77,\"\")","v":""},{"$f":"IF(WorkingP!$B77=\"Mission Giving and Donations\",WorkingP!Y77,\"\")","v":""},{"$f":"IF(Descriptions!K78=\"Mission Giving and Donations\",Descriptions!AB78,0)","v":0}]
[{"$f":"IF(Descriptions!K79=\"Mission Giving and Donations\",Descriptions!I79,0)","v":0},{"$f":"IF(WorkingP!$B78=\"Mission Giving and Donations\",WorkingP!D78,\"\")","v":""},{"$f":"IF(WorkingP!$B78=\"Mission Giving and Donations\",WorkingP!E78,\"\")","v":""},{"$f":"IF(WorkingP!$B78=\"Mission Giving and Donations\",WorkingP!F78,\"\")","v":""},{"$f":"IF(WorkingP!$B78=\"Mission Giving and Donations\",WorkingP!G78,\"\")","v":""},{"$f":"IF(WorkingP!$B78=\"Mission Giving and Donations\",WorkingP!H78,\"\")","v":""},{"$f":"IF(WorkingP!$B78=\"Mission Giving and Donations\",WorkingP!I78,\"\")","v":""},{"$f":"IF(WorkingP!$B78=\"Mission Giving and Donations\",WorkingP!J78,\"\")","v":""},{"$f":"IF(WorkingP!$B78=\"Mission Giving and Donations\",WorkingP!K78,\"\")","v":""},{"$f":"IF(WorkingP!$B78=\"Mission Giving and Donations\",WorkingP!L78,\"\")","v":""},{"$f":"IF(WorkingP!$B78=\"Mission Giving and Donations\",WorkingP!M78,\"\")","v":""},{"$f":"IF(WorkingP!$B78=\"Mission Giving and Donations\",WorkingP!N78,\"\")","v":""},{"$f":"IF(WorkingP!$B78=\"Mission Giving and Donations\",WorkingP!O78,\"\")","v":""},{"$f":"IF(WorkingP!$B78=\"Mission Giving and Donations\",WorkingP!P78,\"\")","v":""},{"$f":"IF(WorkingP!$B78=\"Mission Giving and Donations\",WorkingP!Q78,\"\")","v":""},{"$f":"IF(WorkingP!$B78=\"Mission Giving and Donations\",WorkingP!R78,\"\")","v":""},{"$f":"IF(WorkingP!$B78=\"Mission Giving and Donations\",WorkingP!S78,\"\")","v":""},{"$f":"IF(WorkingP!$B78=\"Mission Giving and Donations\",WorkingP!T78,\"\")","v":""},{"$f":"IF(WorkingP!$B78=\"Mission Giving and Donations\",WorkingP!U78,\"\")","v":""},{"$f":"IF(WorkingP!$B78=\"Mission Giving and Donations\",WorkingP!V78,\"\")","v":""},{"$f":"IF(WorkingP!$B78=\"Mission Giving and Donations\",WorkingP!W78,\"\")","v":""},{"$f":"IF(WorkingP!$B78=\"Mission Giving and Donations\",WorkingP!X78,\"\")","v":""},{"$f":"IF(WorkingP!$B78=\"Mission Giving and Donations\",WorkingP!Y78,\"\")","v":""},{"$f":"IF(Descriptions!K79=\"Mission Giving and Donations\",Descriptions!AB79,0)","v":0}]
[{"$f":"IF(Descriptions!K80=\"Mission Giving and Donations\",Descriptions!I80,0)","v":0},{"$f":"IF(WorkingP!$B79=\"Mission Giving and Donations\",WorkingP!D79,\"\")","v":""},{"$f":"IF(WorkingP!$B79=\"Mission Giving and Donations\",WorkingP!E79,\"\")","v":""},{"$f":"IF(WorkingP!$B79=\"Mission Giving and Donations\",WorkingP!F79,\"\")","v":""},{"$f":"IF(WorkingP!$B79=\"Mission Giving and Donations\",WorkingP!G79,\"\")","v":""},{"$f":"IF(WorkingP!$B79=\"Mission Giving and Donations\",WorkingP!H79,\"\")","v":""},{"$f":"IF(WorkingP!$B79=\"Mission Giving and Donations\",WorkingP!I79,\"\")","v":""},{"$f":"IF(WorkingP!$B79=\"Mission Giving and Donations\",WorkingP!J79,\"\")","v":""},{"$f":"IF(WorkingP!$B79=\"Mission Giving and Donations\",WorkingP!K79,\"\")","v":""},{"$f":"IF(WorkingP!$B79=\"Mission Giving and Donations\",WorkingP!L79,\"\")","v":""},{"$f":"IF(WorkingP!$B79=\"Mission Giving and Donations\",WorkingP!M79,\"\")","v":""},{"$f":"IF(WorkingP!$B79=\"Mission Giving and Donations\",WorkingP!N79,\"\")","v":""},{"$f":"IF(WorkingP!$B79=\"Mission Giving and Donations\",WorkingP!O79,\"\")","v":""},{"$f":"IF(WorkingP!$B79=\"Mission Giving and Donations\",WorkingP!P79,\"\")","v":""},{"$f":"IF(WorkingP!$B79=\"Mission Giving and Donations\",WorkingP!Q79,\"\")","v":""},{"$f":"IF(WorkingP!$B79=\"Mission Giving and Donations\",WorkingP!R79,\"\")","v":""},{"$f":"IF(WorkingP!$B79=\"Mission Giving and Donations\",WorkingP!S79,\"\")","v":""},{"$f":"IF(WorkingP!$B79=\"Mission Giving and Donations\",WorkingP!T79,\"\")","v":""},{"$f":"IF(WorkingP!$B79=\"Mission Giving and Donations\",WorkingP!U79,\"\")","v":""},{"$f":"IF(WorkingP!$B79=\"Mission Giving and Donations\",WorkingP!V79,\"\")","v":""},{"$f":"IF(WorkingP!$B79=\"Mission Giving and Donations\",WorkingP!W79,\"\")","v":""},{"$f":"IF(WorkingP!$B79=\"Mission Giving and Donations\",WorkingP!X79,\"\")","v":""},{"$f":"IF(WorkingP!$B79=\"Mission Giving and Donations\",WorkingP!Y79,\"\")","v":""},{"$f":"IF(Descriptions!K80=\"Mission Giving and Donations\",Descriptions!AB80,0)","v":0}]
[{"$f":"IF(Descriptions!K81=\"Mission Giving and Donations\",Descriptions!I81,0)","v":0},{"$f":"IF(WorkingP!$B80=\"Mission Giving and Donations\",WorkingP!D80,\"\")","v":""},{"$f":"IF(WorkingP!$B80=\"Mission Giving and Donations\",WorkingP!E80,\"\")","v":""},{"$f":"IF(WorkingP!$B80=\"Mission Giving and Donations\",WorkingP!F80,\"\")","v":""},{"$f":"IF(WorkingP!$B80=\"Mission Giving and Donations\",WorkingP!G80,\"\")","v":""},{"$f":"IF(WorkingP!$B80=\"Mission Giving and Donations\",WorkingP!H80,\"\")","v":""},{"$f":"IF(WorkingP!$B80=\"Mission Giving and Donations\",WorkingP!I80,\"\")","v":""},{"$f":"IF(WorkingP!$B80=\"Mission Giving and Donations\",WorkingP!J80,\"\")","v":""},{"$f":"IF(WorkingP!$B80=\"Mission Giving and Donations\",WorkingP!K80,\"\")","v":""},{"$f":"IF(WorkingP!$B80=\"Mission Giving and Donations\",WorkingP!L80,\"\")","v":""},{"$f":"IF(WorkingP!$B80=\"Mission Giving and Donations\",WorkingP!M80,\"\")","v":""},{"$f":"IF(WorkingP!$B80=\"Mission Giving and Donations\",WorkingP!N80,\"\")","v":""},{"$f":"IF(WorkingP!$B80=\"Mission Giving and Donations\",WorkingP!O80,\"\")","v":""},{"$f":"IF(WorkingP!$B80=\"Mission Giving and Donations\",WorkingP!P80,\"\")","v":""},{"$f":"IF(WorkingP!$B80=\"Mission Giving and Donations\",WorkingP!Q80,\"\")","v":""},{"$f":"IF(WorkingP!$B80=\"Mission Giving and Donations\",WorkingP!R80,\"\")","v":""},{"$f":"IF(WorkingP!$B80=\"Mission Giving and Donations\",WorkingP!S80,\"\")","v":""},{"$f":"IF(WorkingP!$B80=\"Mission Giving and Donations\",WorkingP!T80,\"\")","v":""},{"$f":"IF(WorkingP!$B80=\"Mission Giving and Donations\",WorkingP!U80,\"\")","v":""},{"$f":"IF(WorkingP!$B80=\"Mission Giving and Donations\",WorkingP!V80,\"\")","v":""},{"$f":"IF(WorkingP!$B80=\"Mission Giving and Donations\",WorkingP!W80,\"\")","v":""},{"$f":"IF(WorkingP!$B80=\"Mission Giving and Donations\",WorkingP!X80,\"\")","v":""},{"$f":"IF(WorkingP!$B80=\"Mission Giving and Donations\",WorkingP!Y80,\"\")","v":""},{"$f":"IF(Descriptions!K81=\"Mission Giving and Donations\",Descriptions!AB81,0)","v":0}]
[{"$f":"IF(Descriptions!K82=\"Mission Giving and Donations\",Descriptions!I82,0)","v":0},{"$f":"IF(WorkingP!$B81=\"Mission Giving and Donations\",WorkingP!D81,\"\")","v":""},{"$f":"IF(WorkingP!$B81=\"Mission Giving and Donations\",WorkingP!E81,\"\")","v":""},{"$f":"IF(WorkingP!$B81=\"Mission Giving and Donations\",WorkingP!F81,\"\")","v":""},{"$f":"IF(WorkingP!$B81=\"Mission Giving and Donations\",WorkingP!G81,\"\")","v":""},{"$f":"IF(WorkingP!$B81=\"Mission Giving and Donations\",WorkingP!H81,\"\")","v":""},{"$f":"IF(WorkingP!$B81=\"Mission Giving and Donations\",WorkingP!I81,\"\")","v":""},{"$f":"IF(WorkingP!$B81=\"Mission Giving and Donations\",WorkingP!J81,\"\")","v":""},{"$f":"IF(WorkingP!$B81=\"Mission Giving and Donations\",WorkingP!K81,\"\")","v":""},{"$f":"IF(WorkingP!$B81=\"Mission Giving and Donations\",WorkingP!L81,\"\")","v":""},{"$f":"IF(WorkingP!$B81=\"Mission Giving and Donations\",WorkingP!M81,\"\")","v":""},{"$f":"IF(WorkingP!$B81=\"Mission Giving and Donations\",WorkingP!N81,\"\")","v":""},{"$f":"IF(WorkingP!$B81=\"Mission Giving and Donations\",WorkingP!O81,\"\")","v":""},{"$f":"IF(WorkingP!$B81=\"Mission Giving and Donations\",WorkingP!P81,\"\")","v":""},{"$f":"IF(WorkingP!$B81=\"Mission Giving and Donations\",WorkingP!Q81,\"\")","v":""},{"$f":"IF(WorkingP!$B81=\"Mission Giving and Donations\",WorkingP!R81,\"\")","v":""},{"$f":"IF(WorkingP!$B81=\"Mission Giving and Donations\",WorkingP!S81,\"\")","v":""},{"$f":"IF(WorkingP!$B81=\"Mission Giving and Donations\",WorkingP!T81,\"\")","v":""},{"$f":"IF(WorkingP!$B81=\"Mission Giving and Donations\",WorkingP!U81,\"\")","v":""},{"$f":"IF(WorkingP!$B81=\"Mission Giving and Donations\",WorkingP!V81,\"\")","v":""},{"$f":"IF(WorkingP!$B81=\"Mission Giving and Donations\",WorkingP!W81,\"\")","v":""},{"$f":"IF(WorkingP!$B81=\"Mission Giving and Donations\",WorkingP!X81,\"\")","v":""},{"$f":"IF(WorkingP!$B81=\"Mission Giving and Donations\",WorkingP!Y81,\"\")","v":""},{"$f":"IF(Descriptions!K82=\"Mission Giving and Donations\",Descriptions!AB82,0)","v":0}]
[{"$f":"IF(Descriptions!K83=\"Mission Giving and Donations\",Descriptions!I83,0)","v":0},{"$f":"IF(WorkingP!$B82=\"Mission Giving and Donations\",WorkingP!D82,\"\")","v":""},{"$f":"IF(WorkingP!$B82=\"Mission Giving and Donations\",WorkingP!E82,\"\")","v":""},{"$f":"IF(WorkingP!$B82=\"Mission Giving and Donations\",WorkingP!F82,\"\")","v":""},{"$f":"IF(WorkingP!$B82=\"Mission Giving and Donations\",WorkingP!G82,\"\")","v":""},{"$f":"IF(WorkingP!$B82=\"Mission Giving and Donations\",WorkingP!H82,\"\")","v":""},{"$f":"IF(WorkingP!$B82=\"Mission Giving and Donations\",WorkingP!I82,\"\")","v":""},{"$f":"IF(WorkingP!$B82=\"Mission Giving and Donations\",WorkingP!J82,\"\")","v":""},{"$f":"IF(WorkingP!$B82=\"Mission Giving and Donations\",WorkingP!K82,\"\")","v":""},{"$f":"IF(WorkingP!$B82=\"Mission Giving and Donations\",WorkingP!L82,\"\")","v":""},{"$f":"IF(WorkingP!$B82=\"Mission Giving and Donations\",WorkingP!M82,\"\")","v":""},{"$f":"IF(WorkingP!$B82=\"Mission Giving and Donations\",WorkingP!N82,\"\")","v":""},{"$f":"IF(WorkingP!$B82=\"Mission Giving and Donations\",WorkingP!O82,\"\")","v":""},{"$f":"IF(WorkingP!$B82=\"Mission Giving and Donations\",WorkingP!P82,\"\")","v":""},{"$f":"IF(WorkingP!$B82=\"Mission Giving and Donations\",WorkingP!Q82,\"\")","v":""},{"$f":"IF(WorkingP!$B82=\"Mission Giving and Donations\",WorkingP!R82,\"\")","v":""},{"$f":"IF(WorkingP!$B82=\"Mission Giving and Donations\",WorkingP!S82,\"\")","v":""},{"$f":"IF(WorkingP!$B82=\"Mission Giving and Donations\",WorkingP!T82,\"\")","v":""},{"$f":"IF(WorkingP!$B82=\"Mission Giving and Donations\",WorkingP!U82,\"\")","v":""},{"$f":"IF(WorkingP!$B82=\"Mission Giving and Donations\",WorkingP!V82,\"\")","v":""},{"$f":"IF(WorkingP!$B82=\"Mission Giving and Donations\",WorkingP!W82,\"\")","v":""},{"$f":"IF(WorkingP!$B82=\"Mission Giving and Donations\",WorkingP!X82,\"\")","v":""},{"$f":"IF(WorkingP!$B82=\"Mission Giving and Donations\",WorkingP!Y82,\"\")","v":""},{"$f":"IF(Descriptions!K83=\"Mission Giving and Donations\",Descriptions!AB83,0)","v":0}]
[{"$f":"IF(Descriptions!K84=\"Mission Giving and Donations\",Descriptions!I84,0)","v":0},{"$f":"IF(WorkingP!$B83=\"Mission Giving and Donations\",WorkingP!D83,\"\")","v":""},{"$f":"IF(WorkingP!$B83=\"Mission Giving and Donations\",WorkingP!E83,\"\")","v":""},{"$f":"IF(WorkingP!$B83=\"Mission Giving and Donations\",WorkingP!F83,\"\")","v":""},{"$f":"IF(WorkingP!$B83=\"Mission Giving and Donations\",WorkingP!G83,\"\")","v":""},{"$f":"IF(WorkingP!$B83=\"Mission Giving and Donations\",WorkingP!H83,\"\")","v":""},{"$f":"IF(WorkingP!$B83=\"Mission Giving and Donations\",WorkingP!I83,\"\")","v":""},{"$f":"IF(WorkingP!$B83=\"Mission Giving and Donations\",WorkingP!J83,\"\")","v":""},{"$f":"IF(WorkingP!$B83=\"Mission Giving and Donations\",WorkingP!K83,\"\")","v":""},{"$f":"IF(WorkingP!$B83=\"Mission Giving and Donations\",WorkingP!L83,\"\")","v":""},{"$f":"IF(WorkingP!$B83=\"Mission Giving and Donations\",WorkingP!M83,\"\")","v":""},{"$f":"IF(WorkingP!$B83=\"Mission Giving and Donations\",WorkingP!N83,\"\")","v":""},{"$f":"IF(WorkingP!$B83=\"Mission Giving and Donations\",WorkingP!O83,\"\")","v":""},{"$f":"IF(WorkingP!$B83=\"Mission Giving and Donations\",WorkingP!P83,\"\")","v":""},{"$f":"IF(WorkingP!$B83=\"Mission Giving and Donations\",WorkingP!Q83,\"\")","v":""},{"$f":"IF(WorkingP!$B83=\"Mission Giving and Donations\",WorkingP!R83,\"\")","v":""},{"$f":"IF(WorkingP!$B83=\"Mission Giving and Donations\",WorkingP!S83,\"\")","v":""},{"$f":"IF(WorkingP!$B83=\"Mission Giving and Donations\",WorkingP!T83,\"\")","v":""},{"$f":"IF(WorkingP!$B83=\"Mission Giving and Donations\",WorkingP!U83,\"\")","v":""},{"$f":"IF(WorkingP!$B83=\"Mission Giving and Donations\",WorkingP!V83,\"\")","v":""},{"$f":"IF(WorkingP!$B83=\"Mission Giving and Donations\",WorkingP!W83,\"\")","v":""},{"$f":"IF(WorkingP!$B83=\"Mission Giving and Donations\",WorkingP!X83,\"\")","v":""},{"$f":"IF(WorkingP!$B83=\"Mission Giving and Donations\",WorkingP!Y83,\"\")","v":""},{"$f":"IF(Descriptions!K84=\"Mission Giving and Donations\",Descriptions!AB84,0)","v":0}]
[null,{"$f":"SUM(B735:B788)","v":0},0,0,0,0,0,0,0,0,0,0,0,0,0,0,0,0,0,0,0,0,null,{"$f":"X734","v":0}]
["BUILDING WORK AND REPAIRS",null,null,null,null,null,null,null,null,null,null,null,null,null,null,null,null,null,null,null,null,null,null,{"$f":"SUM(X791:X843)","v":0}]
["Church - Major repairs and Redecorations",{"$f":"WorkingP!D11","v":0},{"$f":"WorkingP!E11","v":0},{"$f":"WorkingP!F11","v":0},{"$f":"WorkingP!G11","v":0},{"$f":"WorkingP!H11","v":0},{"$f":"WorkingP!I11","v":0},{"$f":"WorkingP!J11","v":0},{"$f":"WorkingP!K11","v":0},{"$f":"WorkingP!L11","v":0},{"$f":"WorkingP!M11","v":0},{"$f":"WorkingP!N11","v":0},{"$f":"WorkingP!O11","v":0},{"$f":"WorkingP!P11","v":0},{"$f":"WorkingP!Q11","v":0},{"$f":"WorkingP!R11","v":0},{"$f":"WorkingP!S11","v":0},{"$f":"WorkingP!T11","v":0},{"$f":"WorkingP!U11","v":0},{"$f":"WorkingP!V11","v":0},{"$f":"WorkingP!W11","v":0},{"$f":"WorkingP!X11","v":0},{"$f":"WorkingP!Y11","v":0},{"$f":"Descriptions!AB12","v":0}]
["Hall/Other Buildings - Major Repairs and Redecorations",{"$f":"WorkingP!D18","v":0},{"$f":"WorkingP!E18","v":0},{"$f":"WorkingP!F18","v":0},{"$f":"WorkingP!G18","v":0},{"$f":"WorkingP!H18","v":0},{"$f":"WorkingP!I18","v":0},{"$f":"WorkingP!J18","v":0},{"$f":"WorkingP!K18","v":0},{"$f":"WorkingP!L18","v":0},{"$f":"WorkingP!M18","v":0},{"$f":"WorkingP!N18","v":0},{"$f":"WorkingP!O18","v":0},{"$f":"WorkingP!P18","v":0},{"$f":"WorkingP!Q18","v":0},{"$f":"WorkingP!R18","v":0},{"$f":"WorkingP!S18","v":0},{"$f":"WorkingP!T18","v":0},{"$f":"WorkingP!U18","v":0},{"$f":"WorkingP!V18","v":0},{"$f":"WorkingP!W18","v":0},{"$f":"WorkingP!X18","v":0},{"$f":"WorkingP!Y18","v":0},{"$f":"Descriptions!AB19","v":0}]
["New Building Work",{"$f":"WorkingP!D22","v":0},{"$f":"WorkingP!E22","v":0},{"$f":"WorkingP!F22","v":0},{"$f":"WorkingP!G22","v":0},{"$f":"WorkingP!H22","v":0},{"$f":"WorkingP!I22","v":0},{"$f":"WorkingP!J22","v":0},{"$f":"WorkingP!K22","v":0},{"$f":"WorkingP!L22","v":0},{"$f":"WorkingP!M22","v":0},{"$f":"WorkingP!N22","v":0},{"$f":"WorkingP!O22","v":0},{"$f":"WorkingP!P22","v":0},{"$f":"WorkingP!Q22","v":0},{"$f":"WorkingP!R22","v":0},{"$f":"WorkingP!S22","v":0},{"$f":"WorkingP!T22","v":0},{"$f":"WorkingP!U22","v":0},{"$f":"WorkingP!V22","v":0},{"$f":"WorkingP!W22","v":0},{"$f":"WorkingP!X22","v":0},{"$f":"WorkingP!Y22","v":0},{"$f":"Descriptions!AB23","v":0}]
[{"$f":"IF(Descriptions!K35=\"Building Work and Repairs\",Descriptions!I35,0)","v":0},{"$f":"IF(WorkingP!$B34=\"Building Work and Repairs\",WorkingP!D34,\"\")","v":""},{"$f":"IF(WorkingP!$B34=\"Building Work and Repairs\",WorkingP!E34,\"\")","v":""},{"$f":"IF(WorkingP!$B34=\"Building Work and Repairs\",WorkingP!F34,\"\")","v":""},{"$f":"IF(WorkingP!$B34=\"Building Work and Repairs\",WorkingP!G34,\"\")","v":""},{"$f":"IF(WorkingP!$B34=\"Building Work and Repairs\",WorkingP!H34,\"\")","v":""},{"$f":"IF(WorkingP!$B34=\"Building Work and Repairs\",WorkingP!I34,\"\")","v":""},{"$f":"IF(WorkingP!$B34=\"Building Work and Repairs\",WorkingP!J34,\"\")","v":""},{"$f":"IF(WorkingP!$B34=\"Building Work and Repairs\",WorkingP!K34,\"\")","v":""},{"$f":"IF(WorkingP!$B34=\"Building Work and Repairs\",WorkingP!L34,\"\")","v":""},{"$f":"IF(WorkingP!$B34=\"Building Work and Repairs\",WorkingP!M34,\"\")","v":""},{"$f":"IF(WorkingP!$B34=\"Building Work and Repairs\",WorkingP!N34,\"\")","v":""},{"$f":"IF(WorkingP!$B34=\"Building Work and Repairs\",WorkingP!O34,\"\")","v":""},{"$f":"IF(WorkingP!$B34=\"Building Work and Repairs\",WorkingP!P34,\"\")","v":""},{"$f":"IF(WorkingP!$B34=\"Building Work and Repairs\",WorkingP!Q34,\"\")","v":""},{"$f":"IF(WorkingP!$B34=\"Building Work and Repairs\",WorkingP!R34,\"\")","v":""},{"$f":"IF(WorkingP!$B34=\"Building Work and Repairs\",WorkingP!S34,\"\")","v":""},{"$f":"IF(WorkingP!$B34=\"Building Work and Repairs\",WorkingP!T34,\"\")","v":""},{"$f":"IF(WorkingP!$B34=\"Building Work and Repairs\",WorkingP!U34,\"\")","v":""},{"$f":"IF(WorkingP!$B34=\"Building Work and Repairs\",WorkingP!V34,\"\")","v":""},{"$f":"IF(WorkingP!$B34=\"Building Work and Repairs\",WorkingP!W34,\"\")","v":""},{"$f":"IF(WorkingP!$B34=\"Building Work and Repairs\",WorkingP!X34,\"\")","v":""},{"$f":"IF(WorkingP!$B34=\"Building Work and Repairs\",WorkingP!Y34,\"\")","v":""},{"$f":"IF(Descriptions!K35=\"Building Work and Repairs\",Descriptions!AB35,0)","v":0}]
[{"$f":"IF(Descriptions!K36=\"Building Work and Repairs\",Descriptions!I36,0)","v":0},{"$f":"IF(WorkingP!$B35=\"Building Work and Repairs\",WorkingP!D35,\"\")","v":""},{"$f":"IF(WorkingP!$B35=\"Building Work and Repairs\",WorkingP!E35,\"\")","v":""},{"$f":"IF(WorkingP!$B35=\"Building Work and Repairs\",WorkingP!F35,\"\")","v":""},{"$f":"IF(WorkingP!$B35=\"Building Work and Repairs\",WorkingP!G35,\"\")","v":""},{"$f":"IF(WorkingP!$B35=\"Building Work and Repairs\",WorkingP!H35,\"\")","v":""},{"$f":"IF(WorkingP!$B35=\"Building Work and Repairs\",WorkingP!I35,\"\")","v":""},{"$f":"IF(WorkingP!$B35=\"Building Work and Repairs\",WorkingP!J35,\"\")","v":""},{"$f":"IF(WorkingP!$B35=\"Building Work and Repairs\",WorkingP!K35,\"\")","v":""},{"$f":"IF(WorkingP!$B35=\"Building Work and Repairs\",WorkingP!L35,\"\")","v":""},{"$f":"IF(WorkingP!$B35=\"Building Work and Repairs\",WorkingP!M35,\"\")","v":""},{"$f":"IF(WorkingP!$B35=\"Building Work and Repairs\",WorkingP!N35,\"\")","v":""},{"$f":"IF(WorkingP!$B35=\"Building Work and Repairs\",WorkingP!O35,\"\")","v":""},{"$f":"IF(WorkingP!$B35=\"Building Work and Repairs\",WorkingP!P35,\"\")","v":""},{"$f":"IF(WorkingP!$B35=\"Building Work and Repairs\",WorkingP!Q35,\"\")","v":""},{"$f":"IF(WorkingP!$B35=\"Building Work and Repairs\",WorkingP!R35,\"\")","v":""},{"$f":"IF(WorkingP!$B35=\"Building Work and Repairs\",WorkingP!S35,\"\")","v":""},{"$f":"IF(WorkingP!$B35=\"Building Work and Repairs\",WorkingP!T35,\"\")","v":""},{"$f":"IF(WorkingP!$B35=\"Building Work and Repairs\",WorkingP!U35,\"\")","v":""},{"$f":"IF(WorkingP!$B35=\"Building Work and Repairs\",WorkingP!V35,\"\")","v":""},{"$f":"IF(WorkingP!$B35=\"Building Work and Repairs\",WorkingP!W35,\"\")","v":""},{"$f":"IF(WorkingP!$B35=\"Building Work and Repairs\",WorkingP!X35,\"\")","v":""},{"$f":"IF(WorkingP!$B35=\"Building Work and Repairs\",WorkingP!Y35,\"\")","v":""},{"$f":"IF(Descriptions!K36=\"Building Work and Repairs\",Descriptions!AB36,0)","v":0}]
[{"$f":"IF(Descriptions!K37=\"Building Work and Repairs\",Descriptions!I37,0)","v":0},{"$f":"IF(WorkingP!$B36=\"Building Work and Repairs\",WorkingP!D36,\"\")","v":""},{"$f":"IF(WorkingP!$B36=\"Building Work and Repairs\",WorkingP!E36,\"\")","v":""},{"$f":"IF(WorkingP!$B36=\"Building Work and Repairs\",WorkingP!F36,\"\")","v":""},{"$f":"IF(WorkingP!$B36=\"Building Work and Repairs\",WorkingP!G36,\"\")","v":""},{"$f":"IF(WorkingP!$B36=\"Building Work and Repairs\",WorkingP!H36,\"\")","v":""},{"$f":"IF(WorkingP!$B36=\"Building Work and Repairs\",WorkingP!I36,\"\")","v":""},{"$f":"IF(WorkingP!$B36=\"Building Work and Repairs\",WorkingP!J36,\"\")","v":""},{"$f":"IF(WorkingP!$B36=\"Building Work and Repairs\",WorkingP!K36,\"\")","v":""},{"$f":"IF(WorkingP!$B36=\"Building Work and Repairs\",WorkingP!L36,\"\")","v":""},{"$f":"IF(WorkingP!$B36=\"Building Work and Repairs\",WorkingP!M36,\"\")","v":""},{"$f":"IF(WorkingP!$B36=\"Building Work and Repairs\",WorkingP!N36,\"\")","v":""},{"$f":"IF(WorkingP!$B36=\"Building Work and Repairs\",WorkingP!O36,\"\")","v":""},{"$f":"IF(WorkingP!$B36=\"Building Work and Repairs\",WorkingP!P36,\"\")","v":""},{"$f":"IF(WorkingP!$B36=\"Building Work and Repairs\",WorkingP!Q36,\"\")","v":""},{"$f":"IF(WorkingP!$B36=\"Building Work and Repairs\",WorkingP!R36,\"\")","v":""},{"$f":"IF(WorkingP!$B36=\"Building Work and Repairs\",WorkingP!S36,\"\")","v":""},{"$f":"IF(WorkingP!$B36=\"Building Work and Repairs\",WorkingP!T36,\"\")","v":""},{"$f":"IF(WorkingP!$B36=\"Building Work and Repairs\",WorkingP!U36,\"\")","v":""},{"$f":"IF(WorkingP!$B36=\"Building Work and Repairs\",WorkingP!V36,\"\")","v":""},{"$f":"IF(WorkingP!$B36=\"Building Work and Repairs\",WorkingP!W36,\"\")","v":""},{"$f":"IF(WorkingP!$B36=\"Building Work and Repairs\",WorkingP!X36,\"\")","v":""},{"$f":"IF(WorkingP!$B36=\"Building Work and Repairs\",WorkingP!Y36,\"\")","v":""},{"$f":"IF(Descriptions!K37=\"Building Work and Repairs\",Descriptions!AB37,0)","v":0}]
[{"$f":"IF(Descriptions!K38=\"Building Work and Repairs\",Descriptions!I38,0)","v":0},{"$f":"IF(WorkingP!$B37=\"Building Work and Repairs\",WorkingP!D37,\"\")","v":""},{"$f":"IF(WorkingP!$B37=\"Building Work and Repairs\",WorkingP!E37,\"\")","v":""},{"$f":"IF(WorkingP!$B37=\"Building Work and Repairs\",WorkingP!F37,\"\")","v":""},{"$f":"IF(WorkingP!$B37=\"Building Work and Repairs\",WorkingP!G37,\"\")","v":""},{"$f":"IF(WorkingP!$B37=\"Building Work and Repairs\",WorkingP!H37,\"\")","v":""},{"$f":"IF(WorkingP!$B37=\"Building Work and Repairs\",WorkingP!I37,\"\")","v":""},{"$f":"IF(WorkingP!$B37=\"Building Work and Repairs\",WorkingP!J37,\"\")","v":""},{"$f":"IF(WorkingP!$B37=\"Building Work and Repairs\",WorkingP!K37,\"\")","v":""},{"$f":"IF(WorkingP!$B37=\"Building Work and Repairs\",WorkingP!L37,\"\")","v":""},{"$f":"IF(WorkingP!$B37=\"Building Work and Repairs\",WorkingP!M37,\"\")","v":""},{"$f":"IF(WorkingP!$B37=\"Building Work and Repairs\",WorkingP!N37,\"\")","v":""},{"$f":"IF(WorkingP!$B37=\"Building Work and Repairs\",WorkingP!O37,\"\")","v":""},{"$f":"IF(WorkingP!$B37=\"Building Work and Repairs\",WorkingP!P37,\"\")","v":""},{"$f":"IF(WorkingP!$B37=\"Building Work and Repairs\",WorkingP!Q37,\"\")","v":""},{"$f":"IF(WorkingP!$B37=\"Building Work and Repairs\",WorkingP!R37,\"\")","v":""},{"$f":"IF(WorkingP!$B37=\"Building Work and Repairs\",WorkingP!S37,\"\")","v":""},{"$f":"IF(WorkingP!$B37=\"Building Work and Repairs\",WorkingP!T37,\"\")","v":""},{"$f":"IF(WorkingP!$B37=\"Building Work and Repairs\",WorkingP!U37,\"\")","v":""},{"$f":"IF(WorkingP!$B37=\"Building Work and Repairs\",WorkingP!V37,\"\")","v":""},{"$f":"IF(WorkingP!$B37=\"Building Work and Repairs\",WorkingP!W37,\"\")","v":""},{"$f":"IF(WorkingP!$B37=\"Building Work and Repairs\",WorkingP!X37,\"\")","v":""},{"$f":"IF(WorkingP!$B37=\"Building Work and Repairs\",WorkingP!Y37,\"\")","v":""},{"$f":"IF(Descriptions!K38=\"Building Work and Repairs\",Descriptions!AB38,0)","v":0}]
[{"$f":"IF(Descriptions!K39=\"Building Work and Repairs\",Descriptions!I39,0)","v":0},{"$f":"IF(WorkingP!$B38=\"Building Work and Repairs\",WorkingP!D38,\"\")","v":""},{"$f":"IF(WorkingP!$B38=\"Building Work and Repairs\",WorkingP!E38,\"\")","v":""},{"$f":"IF(WorkingP!$B38=\"Building Work and Repairs\",WorkingP!F38,\"\")","v":""},{"$f":"IF(WorkingP!$B38=\"Building Work and Repairs\",WorkingP!G38,\"\")","v":""},{"$f":"IF(WorkingP!$B38=\"Building Work and Repairs\",WorkingP!H38,\"\")","v":""},{"$f":"IF(WorkingP!$B38=\"Building Work and Repairs\",WorkingP!I38,\"\")","v":""},{"$f":"IF(WorkingP!$B38=\"Building Work and Repairs\",WorkingP!J38,\"\")","v":""},{"$f":"IF(WorkingP!$B38=\"Building Work and Repairs\",WorkingP!K38,\"\")","v":""},{"$f":"IF(WorkingP!$B38=\"Building Work and Repairs\",WorkingP!L38,\"\")","v":""},{"$f":"IF(WorkingP!$B38=\"Building Work and Repairs\",WorkingP!M38,\"\")","v":""},{"$f":"IF(WorkingP!$B38=\"Building Work and Repairs\",WorkingP!N38,\"\")","v":""},{"$f":"IF(WorkingP!$B38=\"Building Work and Repairs\",WorkingP!O38,\"\")","v":""},{"$f":"IF(WorkingP!$B38=\"Building Work and Repairs\",WorkingP!P38,\"\")","v":""},{"$f":"IF(WorkingP!$B38=\"Building Work and Repairs\",WorkingP!Q38,\"\")","v":""},{"$f":"IF(WorkingP!$B38=\"Building Work and Repairs\",WorkingP!R38,\"\")","v":""},{"$f":"IF(WorkingP!$B38=\"Building Work and Repairs\",WorkingP!S38,\"\")","v":""},{"$f":"IF(WorkingP!$B38=\"Building Work and Repairs\",WorkingP!T38,\"\")","v":""},{"$f":"IF(WorkingP!$B38=\"Building Work and Repairs\",WorkingP!U38,\"\")","v":""},{"$f":"IF(WorkingP!$B38=\"Building Work and Repairs\",WorkingP!V38,\"\")","v":""},{"$f":"IF(WorkingP!$B38=\"Building Work and Repairs\",WorkingP!W38,\"\")","v":""},{"$f":"IF(WorkingP!$B38=\"Building Work and Repairs\",WorkingP!X38,\"\")","v":""},{"$f":"IF(WorkingP!$B38=\"Building Work and Repairs\",WorkingP!Y38,\"\")","v":""},{"$f":"IF(Descriptions!K39=\"Building Work and Repairs\",Descriptions!AB39,0)","v":0}]
[{"$f":"IF(Descriptions!K40=\"Building Work and Repairs\",Descriptions!I40,0)","v":0},{"$f":"IF(WorkingP!$B39=\"Building Work and Repairs\",WorkingP!D39,\"\")","v":""},{"$f":"IF(WorkingP!$B39=\"Building Work and Repairs\",WorkingP!E39,\"\")","v":""},{"$f":"IF(WorkingP!$B39=\"Building Work and Repairs\",WorkingP!F39,\"\")","v":""},{"$f":"IF(WorkingP!$B39=\"Building Work and Repairs\",WorkingP!G39,\"\")","v":""},{"$f":"IF(WorkingP!$B39=\"Building Work and Repairs\",WorkingP!H39,\"\")","v":""},{"$f":"IF(WorkingP!$B39=\"Building Work and Repairs\",WorkingP!I39,\"\")","v":""},{"$f":"IF(WorkingP!$B39=\"Building Work and Repairs\",WorkingP!J39,\"\")","v":""},{"$f":"IF(WorkingP!$B39=\"Building Work and Repairs\",WorkingP!K39,\"\")","v":""},{"$f":"IF(WorkingP!$B39=\"Building Work and Repairs\",WorkingP!L39,\"\")","v":""},{"$f":"IF(WorkingP!$B39=\"Building Work and Repairs\",WorkingP!M39,\"\")","v":""},{"$f":"IF(WorkingP!$B39=\"Building Work and Repairs\",WorkingP!N39,\"\")","v":""},{"$f":"IF(WorkingP!$B39=\"Building Work and Repairs\",WorkingP!O39,\"\")","v":""},{"$f":"IF(WorkingP!$B39=\"Building Work and Repairs\",WorkingP!P39,\"\")","v":""},{"$f":"IF(WorkingP!$B39=\"Building Work and Repairs\",WorkingP!Q39,\"\")","v":""},{"$f":"IF(WorkingP!$B39=\"Building Work and Repairs\",WorkingP!R39,\"\")","v":""},{"$f":"IF(WorkingP!$B39=\"Building Work and Repairs\",WorkingP!S39,\"\")","v":""},{"$f":"IF(WorkingP!$B39=\"Building Work and Repairs\",WorkingP!T39,\"\")","v":""},{"$f":"IF(WorkingP!$B39=\"Building Work and Repairs\",WorkingP!U39,\"\")","v":""},{"$f":"IF(WorkingP!$B39=\"Building Work and Repairs\",WorkingP!V39,\"\")","v":""},{"$f":"IF(WorkingP!$B39=\"Building Work and Repairs\",WorkingP!W39,\"\")","v":""},{"$f":"IF(WorkingP!$B39=\"Building Work and Repairs\",WorkingP!X39,\"\")","v":""},{"$f":"IF(WorkingP!$B39=\"Building Work and Repairs\",WorkingP!Y39,\"\")","v":""},{"$f":"IF(Descriptions!K40=\"Building Work and Repairs\",Descriptions!AB40,0)","v":0}]
[{"$f":"IF(Descriptions!K41=\"Building Work and Repairs\",Descriptions!I41,0)","v":0},{"$f":"IF(WorkingP!$B40=\"Building Work and Repairs\",WorkingP!D40,\"\")","v":""},{"$f":"IF(WorkingP!$B40=\"Building Work and Repairs\",WorkingP!E40,\"\")","v":""},{"$f":"IF(WorkingP!$B40=\"Building Work and Repairs\",WorkingP!F40,\"\")","v":""},{"$f":"IF(WorkingP!$B40=\"Building Work and Repairs\",WorkingP!G40,\"\")","v":""},{"$f":"IF(WorkingP!$B40=\"Building Work and Repairs\",WorkingP!H40,\"\")","v":""},{"$f":"IF(WorkingP!$B40=\"Building Work and Repairs\",WorkingP!I40,\"\")","v":""},{"$f":"IF(WorkingP!$B40=\"Building Work and Repairs\",WorkingP!J40,\"\")","v":""},{"$f":"IF(WorkingP!$B40=\"Building Work and Repairs\",WorkingP!K40,\"\")","v":""},{"$f":"IF(WorkingP!$B40=\"Building Work and Repairs\",WorkingP!L40,\"\")","v":""},{"$f":"IF(WorkingP!$B40=\"Building Work and Repairs\",WorkingP!M40,\"\")","v":""},{"$f":"IF(WorkingP!$B40=\"Building Work and Repairs\",WorkingP!N40,\"\")","v":""},{"$f":"IF(WorkingP!$B40=\"Building Work and Repairs\",WorkingP!O40,\"\")","v":""},{"$f":"IF(WorkingP!$B40=\"Building Work and Repairs\",WorkingP!P40,\"\")","v":""},{"$f":"IF(WorkingP!$B40=\"Building Work and Repairs\",WorkingP!Q40,\"\")","v":""},{"$f":"IF(WorkingP!$B40=\"Building Work and Repairs\",WorkingP!R40,\"\")","v":""},{"$f":"IF(WorkingP!$B40=\"Building Work and Repairs\",WorkingP!S40,\"\")","v":""},{"$f":"IF(WorkingP!$B40=\"Building Work and Repairs\",WorkingP!T40,\"\")","v":""},{"$f":"IF(WorkingP!$B40=\"Building Work and Repairs\",WorkingP!U40,\"\")","v":""},{"$f":"IF(WorkingP!$B40=\"Building Work and Repairs\",WorkingP!V40,\"\")","v":""},{"$f":"IF(WorkingP!$B40=\"Building Work and Repairs\",WorkingP!W40,\"\")","v":""},{"$f":"IF(WorkingP!$B40=\"Building Work and Repairs\",WorkingP!X40,\"\")","v":""},{"$f":"IF(WorkingP!$B40=\"Building Work and Repairs\",WorkingP!Y40,\"\")","v":""},{"$f":"IF(Descriptions!K41=\"Building Work and Repairs\",Descriptions!AB41,0)","v":0}]
[{"$f":"IF(Descriptions!K42=\"Building Work and Repairs\",Descriptions!I42,0)","v":0},{"$f":"IF(WorkingP!$B41=\"Building Work and Repairs\",WorkingP!D41,\"\")","v":""},{"$f":"IF(WorkingP!$B41=\"Building Work and Repairs\",WorkingP!E41,\"\")","v":""},{"$f":"IF(WorkingP!$B41=\"Building Work and Repairs\",WorkingP!F41,\"\")","v":""},{"$f":"IF(WorkingP!$B41=\"Building Work and Repairs\",WorkingP!G41,\"\")","v":""},{"$f":"IF(WorkingP!$B41=\"Building Work and Repairs\",WorkingP!H41,\"\")","v":""},{"$f":"IF(WorkingP!$B41=\"Building Work and Repairs\",WorkingP!I41,\"\")","v":""},{"$f":"IF(WorkingP!$B41=\"Building Work and Repairs\",WorkingP!J41,\"\")","v":""},{"$f":"IF(WorkingP!$B41=\"Building Work and Repairs\",WorkingP!K41,\"\")","v":""},{"$f":"IF(WorkingP!$B41=\"Building Work and Repairs\",WorkingP!L41,\"\")","v":""},{"$f":"IF(WorkingP!$B41=\"Building Work and Repairs\",WorkingP!M41,\"\")","v":""},{"$f":"IF(WorkingP!$B41=\"Building Work and Repairs\",WorkingP!N41,\"\")","v":""},{"$f":"IF(WorkingP!$B41=\"Building Work and Repairs\",WorkingP!O41,\"\")","v":""},{"$f":"IF(WorkingP!$B41=\"Building Work and Repairs\",WorkingP!P41,\"\")","v":""},{"$f":"IF(WorkingP!$B41=\"Building Work and Repairs\",WorkingP!Q41,\"\")","v":""},{"$f":"IF(WorkingP!$B41=\"Building Work and Repairs\",WorkingP!R41,\"\")","v":""},{"$f":"IF(WorkingP!$B41=\"Building Work and Repairs\",WorkingP!S41,\"\")","v":""},{"$f":"IF(WorkingP!$B41=\"Building Work and Repairs\",WorkingP!T41,\"\")","v":""},{"$f":"IF(WorkingP!$B41=\"Building Work and Repairs\",WorkingP!U41,\"\")","v":""},{"$f":"IF(WorkingP!$B41=\"Building Work and Repairs\",WorkingP!V41,\"\")","v":""},{"$f":"IF(WorkingP!$B41=\"Building Work and Repairs\",WorkingP!W41,\"\")","v":""},{"$f":"IF(WorkingP!$B41=\"Building Work and Repairs\",WorkingP!X41,\"\")","v":""},{"$f":"IF(WorkingP!$B41=\"Building Work and Repairs\",WorkingP!Y41,\"\")","v":""},{"$f":"IF(Descriptions!K42=\"Building Work and Repairs\",Descriptions!AB42,0)","v":0}]
[{"$f":"IF(Descriptions!K43=\"Building Work and Repairs\",Descriptions!I43,0)","v":0},{"$f":"IF(WorkingP!$B42=\"Building Work and Repairs\",WorkingP!D42,\"\")","v":""},{"$f":"IF(WorkingP!$B42=\"Building Work and Repairs\",WorkingP!E42,\"\")","v":""},{"$f":"IF(WorkingP!$B42=\"Building Work and Repairs\",WorkingP!F42,\"\")","v":""},{"$f":"IF(WorkingP!$B42=\"Building Work and Repairs\",WorkingP!G42,\"\")","v":""},{"$f":"IF(WorkingP!$B42=\"Building Work and Repairs\",WorkingP!H42,\"\")","v":""},{"$f":"IF(WorkingP!$B42=\"Building Work and Repairs\",WorkingP!I42,\"\")","v":""},{"$f":"IF(WorkingP!$B42=\"Building Work and Repairs\",WorkingP!J42,\"\")","v":""},{"$f":"IF(WorkingP!$B42=\"Building Work and Repairs\",WorkingP!K42,\"\")","v":""},{"$f":"IF(WorkingP!$B42=\"Building Work and Repairs\",WorkingP!L42,\"\")","v":""},{"$f":"IF(WorkingP!$B42=\"Building Work and Repairs\",WorkingP!M42,\"\")","v":""},{"$f":"IF(WorkingP!$B42=\"Building Work and Repairs\",WorkingP!N42,\"\")","v":""},{"$f":"IF(WorkingP!$B42=\"Building Work and Repairs\",WorkingP!O42,\"\")","v":""},{"$f":"IF(WorkingP!$B42=\"Building Work and Repairs\",WorkingP!P42,\"\")","v":""},{"$f":"IF(WorkingP!$B42=\"Building Work and Repairs\",WorkingP!Q42,\"\")","v":""},{"$f":"IF(WorkingP!$B42=\"Building Work and Repairs\",WorkingP!R42,\"\")","v":""},{"$f":"IF(WorkingP!$B42=\"Building Work and Repairs\",WorkingP!S42,\"\")","v":""},{"$f":"IF(WorkingP!$B42=\"Building Work and Repairs\",WorkingP!T42,\"\")","v":""},{"$f":"IF(WorkingP!$B42=\"Building Work and Repairs\",WorkingP!U42,\"\")","v":""},{"$f":"IF(WorkingP!$B42=\"Building Work and Repairs\",WorkingP!V42,\"\")","v":""},{"$f":"IF(WorkingP!$B42=\"Building Work and Repairs\",WorkingP!W42,\"\")","v":""},{"$f":"IF(WorkingP!$B42=\"Building Work and Repairs\",WorkingP!X42,\"\")","v":""},{"$f":"IF(WorkingP!$B42=\"Building Work and Repairs\",WorkingP!Y42,\"\")","v":""},{"$f":"IF(Descriptions!K43=\"Building Work and Repairs\",Descriptions!AB43,0)","v":0}]
[{"$f":"IF(Descriptions!K44=\"Building Work and Repairs\",Descriptions!I44,0)","v":0},{"$f":"IF(WorkingP!$B43=\"Building Work and Repairs\",WorkingP!D43,\"\")","v":""},{"$f":"IF(WorkingP!$B43=\"Building Work and Repairs\",WorkingP!E43,\"\")","v":""},{"$f":"IF(WorkingP!$B43=\"Building Work and Repairs\",WorkingP!F43,\"\")","v":""},{"$f":"IF(WorkingP!$B43=\"Building Work and Repairs\",WorkingP!G43,\"\")","v":""},{"$f":"IF(WorkingP!$B43=\"Building Work and Repairs\",WorkingP!H43,\"\")","v":""},{"$f":"IF(WorkingP!$B43=\"Building Work and Repairs\",WorkingP!I43,\"\")","v":""},{"$f":"IF(WorkingP!$B43=\"Building Work and Repairs\",WorkingP!J43,\"\")","v":""},{"$f":"IF(WorkingP!$B43=\"Building Work and Repairs\",WorkingP!K43,\"\")","v":""},{"$f":"IF(WorkingP!$B43=\"Building Work and Repairs\",WorkingP!L43,\"\")","v":""},{"$f":"IF(WorkingP!$B43=\"Building Work and Repairs\",WorkingP!M43,\"\")","v":""},{"$f":"IF(WorkingP!$B43=\"Building Work and Repairs\",WorkingP!N43,\"\")","v":""},{"$f":"IF(WorkingP!$B43=\"Building Work and Repairs\",WorkingP!O43,\"\")","v":""},{"$f":"IF(WorkingP!$B43=\"Building Work and Repairs\",WorkingP!P43,\"\")","v":""},{"$f":"IF(WorkingP!$B43=\"Building Work and Repairs\",WorkingP!Q43,\"\")","v":""},{"$f":"IF(WorkingP!$B43=\"Building Work and Repairs\",WorkingP!R43,\"\")","v":""},{"$f":"IF(WorkingP!$B43=\"Building Work and Repairs\",WorkingP!S43,\"\")","v":""},{"$f":"IF(WorkingP!$B43=\"Building Work and Repairs\",WorkingP!T43,\"\")","v":""},{"$f":"IF(WorkingP!$B43=\"Building Work and Repairs\",WorkingP!U43,\"\")","v":""},{"$f":"IF(WorkingP!$B43=\"Building Work and Repairs\",WorkingP!V43,\"\")","v":""},{"$f":"IF(WorkingP!$B43=\"Building Work and Repairs\",WorkingP!W43,\"\")","v":""},{"$f":"IF(WorkingP!$B43=\"Building Work and Repairs\",WorkingP!X43,\"\")","v":""},{"$f":"IF(WorkingP!$B43=\"Building Work and Repairs\",WorkingP!Y43,\"\")","v":""},{"$f":"IF(Descriptions!K44=\"Building Work and Repairs\",Descriptions!AB44,0)","v":0}]
[{"$f":"IF(Descriptions!K45=\"Building Work and Repairs\",Descriptions!I45,0)","v":0},{"$f":"IF(WorkingP!$B44=\"Building Work and Repairs\",WorkingP!D44,\"\")","v":""},{"$f":"IF(WorkingP!$B44=\"Building Work and Repairs\",WorkingP!E44,\"\")","v":""},{"$f":"IF(WorkingP!$B44=\"Building Work and Repairs\",WorkingP!F44,\"\")","v":""},{"$f":"IF(WorkingP!$B44=\"Building Work and Repairs\",WorkingP!G44,\"\")","v":""},{"$f":"IF(WorkingP!$B44=\"Building Work and Repairs\",WorkingP!H44,\"\")","v":""},{"$f":"IF(WorkingP!$B44=\"Building Work and Repairs\",WorkingP!I44,\"\")","v":""},{"$f":"IF(WorkingP!$B44=\"Building Work and Repairs\",WorkingP!J44,\"\")","v":""},{"$f":"IF(WorkingP!$B44=\"Building Work and Repairs\",WorkingP!K44,\"\")","v":""},{"$f":"IF(WorkingP!$B44=\"Building Work and Repairs\",WorkingP!L44,\"\")","v":""},{"$f":"IF(WorkingP!$B44=\"Building Work and Repairs\",WorkingP!M44,\"\")","v":""},{"$f":"IF(WorkingP!$B44=\"Building Work and Repairs\",WorkingP!N44,\"\")","v":""},{"$f":"IF(WorkingP!$B44=\"Building Work and Repairs\",WorkingP!O44,\"\")","v":""},{"$f":"IF(WorkingP!$B44=\"Building Work and Repairs\",WorkingP!P44,\"\")","v":""},{"$f":"IF(WorkingP!$B44=\"Building Work and Repairs\",WorkingP!Q44,\"\")","v":""},{"$f":"IF(WorkingP!$B44=\"Building Work and Repairs\",WorkingP!R44,\"\")","v":""},{"$f":"IF(WorkingP!$B44=\"Building Work and Repairs\",WorkingP!S44,\"\")","v":""},{"$f":"IF(WorkingP!$B44=\"Building Work and Repairs\",WorkingP!T44,\"\")","v":""},{"$f":"IF(WorkingP!$B44=\"Building Work and Repairs\",WorkingP!U44,\"\")","v":""},{"$f":"IF(WorkingP!$B44=\"Building Work and Repairs\",WorkingP!V44,\"\")","v":""},{"$f":"IF(WorkingP!$B44=\"Building Work and Repairs\",WorkingP!W44,\"\")","v":""},{"$f":"IF(WorkingP!$B44=\"Building Work and Repairs\",WorkingP!X44,\"\")","v":""},{"$f":"IF(WorkingP!$B44=\"Building Work and Repairs\",WorkingP!Y44,\"\")","v":""},{"$f":"IF(Descriptions!K45=\"Building Work and Repairs\",Descriptions!AB45,0)","v":0}]
[{"$f":"IF(Descriptions!K46=\"Building Work and Repairs\",Descriptions!I46,0)","v":0},{"$f":"IF(WorkingP!$B45=\"Building Work and Repairs\",WorkingP!D45,\"\")","v":""},{"$f":"IF(WorkingP!$B45=\"Building Work and Repairs\",WorkingP!E45,\"\")","v":""},{"$f":"IF(WorkingP!$B45=\"Building Work and Repairs\",WorkingP!F45,\"\")","v":""},{"$f":"IF(WorkingP!$B45=\"Building Work and Repairs\",WorkingP!G45,\"\")","v":""},{"$f":"IF(WorkingP!$B45=\"Building Work and Repairs\",WorkingP!H45,\"\")","v":""},{"$f":"IF(WorkingP!$B45=\"Building Work and Repairs\",WorkingP!I45,\"\")","v":""},{"$f":"IF(WorkingP!$B45=\"Building Work and Repairs\",WorkingP!J45,\"\")","v":""},{"$f":"IF(WorkingP!$B45=\"Building Work and Repairs\",WorkingP!K45,\"\")","v":""},{"$f":"IF(WorkingP!$B45=\"Building Work and Repairs\",WorkingP!L45,\"\")","v":""},{"$f":"IF(WorkingP!$B45=\"Building Work and Repairs\",WorkingP!M45,\"\")","v":""},{"$f":"IF(WorkingP!$B45=\"Building Work and Repairs\",WorkingP!N45,\"\")","v":""},{"$f":"IF(WorkingP!$B45=\"Building Work and Repairs\",WorkingP!O45,\"\")","v":""},{"$f":"IF(WorkingP!$B45=\"Building Work and Repairs\",WorkingP!P45,\"\")","v":""},{"$f":"IF(WorkingP!$B45=\"Building Work and Repairs\",WorkingP!Q45,\"\")","v":""},{"$f":"IF(WorkingP!$B45=\"Building Work and Repairs\",WorkingP!R45,\"\")","v":""},{"$f":"IF(WorkingP!$B45=\"Building Work and Repairs\",WorkingP!S45,\"\")","v":""},{"$f":"IF(WorkingP!$B45=\"Building Work and Repairs\",WorkingP!T45,\"\")","v":""},{"$f":"IF(WorkingP!$B45=\"Building Work and Repairs\",WorkingP!U45,\"\")","v":""},{"$f":"IF(WorkingP!$B45=\"Building Work and Repairs\",WorkingP!V45,\"\")","v":""},{"$f":"IF(WorkingP!$B45=\"Building Work and Repairs\",WorkingP!W45,\"\")","v":""},{"$f":"IF(WorkingP!$B45=\"Building Work and Repairs\",WorkingP!X45,\"\")","v":""},{"$f":"IF(WorkingP!$B45=\"Building Work and Repairs\",WorkingP!Y45,\"\")","v":""},{"$f":"IF(Descriptions!K46=\"Building Work and Repairs\",Descriptions!AB46,0)","v":0}]
[{"$f":"IF(Descriptions!K47=\"Building Work and Repairs\",Descriptions!I47,0)","v":0},{"$f":"IF(WorkingP!$B46=\"Building Work and Repairs\",WorkingP!D46,\"\")","v":""},{"$f":"IF(WorkingP!$B46=\"Building Work and Repairs\",WorkingP!E46,\"\")","v":""},{"$f":"IF(WorkingP!$B46=\"Building Work and Repairs\",WorkingP!F46,\"\")","v":""},{"$f":"IF(WorkingP!$B46=\"Building Work and Repairs\",WorkingP!G46,\"\")","v":""},{"$f":"IF(WorkingP!$B46=\"Building Work and Repairs\",WorkingP!H46,\"\")","v":""},{"$f":"IF(WorkingP!$B46=\"Building Work and Repairs\",WorkingP!I46,\"\")","v":""},{"$f":"IF(WorkingP!$B46=\"Building Work and Repairs\",WorkingP!J46,\"\")","v":""},{"$f":"IF(WorkingP!$B46=\"Building Work and Repairs\",WorkingP!K46,\"\")","v":""},{"$f":"IF(WorkingP!$B46=\"Building Work and Repairs\",WorkingP!L46,\"\")","v":""},{"$f":"IF(WorkingP!$B46=\"Building Work and Repairs\",WorkingP!M46,\"\")","v":""},{"$f":"IF(WorkingP!$B46=\"Building Work and Repairs\",WorkingP!N46,\"\")","v":""},{"$f":"IF(WorkingP!$B46=\"Building Work and Repairs\",WorkingP!O46,\"\")","v":""},{"$f":"IF(WorkingP!$B46=\"Building Work and Repairs\",WorkingP!P46,\"\")","v":""},{"$f":"IF(WorkingP!$B46=\"Building Work and Repairs\",WorkingP!Q46,\"\")","v":""},{"$f":"IF(WorkingP!$B46=\"Building Work and Repairs\",WorkingP!R46,\"\")","v":""},{"$f":"IF(WorkingP!$B46=\"Building Work and Repairs\",WorkingP!S46,\"\")","v":""},{"$f":"IF(WorkingP!$B46=\"Building Work and Repairs\",WorkingP!T46,\"\")","v":""},{"$f":"IF(WorkingP!$B46=\"Building Work and Repairs\",WorkingP!U46,\"\")","v":""},{"$f":"IF(WorkingP!$B46=\"Building Work and Repairs\",WorkingP!V46,\"\")","v":""},{"$f":"IF(WorkingP!$B46=\"Building Work and Repairs\",WorkingP!W46,\"\")","v":""},{"$f":"IF(WorkingP!$B46=\"Building Work and Repairs\",WorkingP!X46,\"\")","v":""},{"$f":"IF(WorkingP!$B46=\"Building Work and Repairs\",WorkingP!Y46,\"\")","v":""},{"$f":"IF(Descriptions!K47=\"Building Work and Repairs\",Descriptions!AB47,0)","v":0}]
[{"$f":"IF(Descriptions!K48=\"Building Work and Repairs\",Descriptions!I48,0)","v":0},{"$f":"IF(WorkingP!$B47=\"Building Work and Repairs\",WorkingP!D47,\"\")","v":""},{"$f":"IF(WorkingP!$B47=\"Building Work and Repairs\",WorkingP!E47,\"\")","v":""},{"$f":"IF(WorkingP!$B47=\"Building Work and Repairs\",WorkingP!F47,\"\")","v":""},{"$f":"IF(WorkingP!$B47=\"Building Work and Repairs\",WorkingP!G47,\"\")","v":""},{"$f":"IF(WorkingP!$B47=\"Building Work and Repairs\",WorkingP!H47,\"\")","v":""},{"$f":"IF(WorkingP!$B47=\"Building Work and Repairs\",WorkingP!I47,\"\")","v":""},{"$f":"IF(WorkingP!$B47=\"Building Work and Repairs\",WorkingP!J47,\"\")","v":""},{"$f":"IF(WorkingP!$B47=\"Building Work and Repairs\",WorkingP!K47,\"\")","v":""},{"$f":"IF(WorkingP!$B47=\"Building Work and Repairs\",WorkingP!L47,\"\")","v":""},{"$f":"IF(WorkingP!$B47=\"Building Work and Repairs\",WorkingP!M47,\"\")","v":""},{"$f":"IF(WorkingP!$B47=\"Building Work and Repairs\",WorkingP!N47,\"\")","v":""},{"$f":"IF(WorkingP!$B47=\"Building Work and Repairs\",WorkingP!O47,\"\")","v":""},{"$f":"IF(WorkingP!$B47=\"Building Work and Repairs\",WorkingP!P47,\"\")","v":""},{"$f":"IF(WorkingP!$B47=\"Building Work and Repairs\",WorkingP!Q47,\"\")","v":""},{"$f":"IF(WorkingP!$B47=\"Building Work and Repairs\",WorkingP!R47,\"\")","v":""},{"$f":"IF(WorkingP!$B47=\"Building Work and Repairs\",WorkingP!S47,\"\")","v":""},{"$f":"IF(WorkingP!$B47=\"Building Work and Repairs\",WorkingP!T47,\"\")","v":""},{"$f":"IF(WorkingP!$B47=\"Building Work and Repairs\",WorkingP!U47,\"\")","v":""},{"$f":"IF(WorkingP!$B47=\"Building Work and Repairs\",WorkingP!V47,\"\")","v":""},{"$f":"IF(WorkingP!$B47=\"Building Work and Repairs\",WorkingP!W47,\"\")","v":""},{"$f":"IF(WorkingP!$B47=\"Building Work and Repairs\",WorkingP!X47,\"\")","v":""},{"$f":"IF(WorkingP!$B47=\"Building Work and Repairs\",WorkingP!Y47,\"\")","v":""},{"$f":"IF(Descriptions!K48=\"Building Work and Repairs\",Descriptions!AB48,0)","v":0}]
[{"$f":"IF(Descriptions!K49=\"Building Work and Repairs\",Descriptions!I49,0)","v":0},{"$f":"IF(WorkingP!$B48=\"Building Work and Repairs\",WorkingP!D48,\"\")","v":""},{"$f":"IF(WorkingP!$B48=\"Building Work and Repairs\",WorkingP!E48,\"\")","v":""},{"$f":"IF(WorkingP!$B48=\"Building Work and Repairs\",WorkingP!F48,\"\")","v":""},{"$f":"IF(WorkingP!$B48=\"Building Work and Repairs\",WorkingP!G48,\"\")","v":""},{"$f":"IF(WorkingP!$B48=\"Building Work and Repairs\",WorkingP!H48,\"\")","v":""},{"$f":"IF(WorkingP!$B48=\"Building Work and Repairs\",WorkingP!I48,\"\")","v":""},{"$f":"IF(WorkingP!$B48=\"Building Work and Repairs\",WorkingP!J48,\"\")","v":""},{"$f":"IF(WorkingP!$B48=\"Building Work and Repairs\",WorkingP!K48,\"\")","v":""},{"$f":"IF(WorkingP!$B48=\"Building Work and Repairs\",WorkingP!L48,\"\")","v":""},{"$f":"IF(WorkingP!$B48=\"Building Work and Repairs\",WorkingP!M48,\"\")","v":""},{"$f":"IF(WorkingP!$B48=\"Building Work and Repairs\",WorkingP!N48,\"\")","v":""},{"$f":"IF(WorkingP!$B48=\"Building Work and Repairs\",WorkingP!O48,\"\")","v":""},{"$f":"IF(WorkingP!$B48=\"Building Work and Repairs\",WorkingP!P48,\"\")","v":""},{"$f":"IF(WorkingP!$B48=\"Building Work and Repairs\",WorkingP!Q48,\"\")","v":""},{"$f":"IF(WorkingP!$B48=\"Building Work and Repairs\",WorkingP!R48,\"\")","v":""},{"$f":"IF(WorkingP!$B48=\"Building Work and Repairs\",WorkingP!S48,\"\")","v":""},{"$f":"IF(WorkingP!$B48=\"Building Work and Repairs\",WorkingP!T48,\"\")","v":""},{"$f":"IF(WorkingP!$B48=\"Building Work and Repairs\",WorkingP!U48,\"\")","v":""},{"$f":"IF(WorkingP!$B48=\"Building Work and Repairs\",WorkingP!V48,\"\")","v":""},{"$f":"IF(WorkingP!$B48=\"Building Work and Repairs\",WorkingP!W48,\"\")","v":""},{"$f":"IF(WorkingP!$B48=\"Building Work and Repairs\",WorkingP!X48,\"\")","v":""},{"$f":"IF(WorkingP!$B48=\"Building Work and Repairs\",WorkingP!Y48,\"\")","v":""},{"$f":"IF(Descriptions!K49=\"Building Work and Repairs\",Descriptions!AB49,0)","v":0}]
[{"$f":"IF(Descriptions!K50=\"Building Work and Repairs\",Descriptions!I50,0)","v":0},{"$f":"IF(WorkingP!$B49=\"Building Work and Repairs\",WorkingP!D49,\"\")","v":""},{"$f":"IF(WorkingP!$B49=\"Building Work and Repairs\",WorkingP!E49,\"\")","v":""},{"$f":"IF(WorkingP!$B49=\"Building Work and Repairs\",WorkingP!F49,\"\")","v":""},{"$f":"IF(WorkingP!$B49=\"Building Work and Repairs\",WorkingP!G49,\"\")","v":""},{"$f":"IF(WorkingP!$B49=\"Building Work and Repairs\",WorkingP!H49,\"\")","v":""},{"$f":"IF(WorkingP!$B49=\"Building Work and Repairs\",WorkingP!I49,\"\")","v":""},{"$f":"IF(WorkingP!$B49=\"Building Work and Repairs\",WorkingP!J49,\"\")","v":""},{"$f":"IF(WorkingP!$B49=\"Building Work and Repairs\",WorkingP!K49,\"\")","v":""},{"$f":"IF(WorkingP!$B49=\"Building Work and Repairs\",WorkingP!L49,\"\")","v":""},{"$f":"IF(WorkingP!$B49=\"Building Work and Repairs\",WorkingP!M49,\"\")","v":""},{"$f":"IF(WorkingP!$B49=\"Building Work and Repairs\",WorkingP!N49,\"\")","v":""},{"$f":"IF(WorkingP!$B49=\"Building Work and Repairs\",WorkingP!O49,\"\")","v":""},{"$f":"IF(WorkingP!$B49=\"Building Work and Repairs\",WorkingP!P49,\"\")","v":""},{"$f":"IF(WorkingP!$B49=\"Building Work and Repairs\",WorkingP!Q49,\"\")","v":""},{"$f":"IF(WorkingP!$B49=\"Building Work and Repairs\",WorkingP!R49,\"\")","v":""},{"$f":"IF(WorkingP!$B49=\"Building Work and Repairs\",WorkingP!S49,\"\")","v":""},{"$f":"IF(WorkingP!$B49=\"Building Work and Repairs\",WorkingP!T49,\"\")","v":""},{"$f":"IF(WorkingP!$B49=\"Building Work and Repairs\",WorkingP!U49,\"\")","v":""},{"$f":"IF(WorkingP!$B49=\"Building Work and Repairs\",WorkingP!V49,\"\")","v":""},{"$f":"IF(WorkingP!$B49=\"Building Work and Repairs\",WorkingP!W49,\"\")","v":""},{"$f":"IF(WorkingP!$B49=\"Building Work and Repairs\",WorkingP!X49,\"\")","v":""},{"$f":"IF(WorkingP!$B49=\"Building Work and Repairs\",WorkingP!Y49,\"\")","v":""},{"$f":"IF(Descriptions!K50=\"Building Work and Repairs\",Descriptions!AB50,0)","v":0}]
[{"$f":"IF(Descriptions!K51=\"Building Work and Repairs\",Descriptions!I51,0)","v":0},{"$f":"IF(WorkingP!$B50=\"Building Work and Repairs\",WorkingP!D50,\"\")","v":""},{"$f":"IF(WorkingP!$B50=\"Building Work and Repairs\",WorkingP!E50,\"\")","v":""},{"$f":"IF(WorkingP!$B50=\"Building Work and Repairs\",WorkingP!F50,\"\")","v":""},{"$f":"IF(WorkingP!$B50=\"Building Work and Repairs\",WorkingP!G50,\"\")","v":""},{"$f":"IF(WorkingP!$B50=\"Building Work and Repairs\",WorkingP!H50,\"\")","v":""},{"$f":"IF(WorkingP!$B50=\"Building Work and Repairs\",WorkingP!I50,\"\")","v":""},{"$f":"IF(WorkingP!$B50=\"Building Work and Repairs\",WorkingP!J50,\"\")","v":""},{"$f":"IF(WorkingP!$B50=\"Building Work and Repairs\",WorkingP!K50,\"\")","v":""},{"$f":"IF(WorkingP!$B50=\"Building Work and Repairs\",WorkingP!L50,\"\")","v":""},{"$f":"IF(WorkingP!$B50=\"Building Work and Repairs\",WorkingP!M50,\"\")","v":""},{"$f":"IF(WorkingP!$B50=\"Building Work and Repairs\",WorkingP!N50,\"\")","v":""},{"$f":"IF(WorkingP!$B50=\"Building Work and Repairs\",WorkingP!O50,\"\")","v":""},{"$f":"IF(WorkingP!$B50=\"Building Work and Repairs\",WorkingP!P50,\"\")","v":""},{"$f":"IF(WorkingP!$B50=\"Building Work and Repairs\",WorkingP!Q50,\"\")","v":""},{"$f":"IF(WorkingP!$B50=\"Building Work and Repairs\",WorkingP!R50,\"\")","v":""},{"$f":"IF(WorkingP!$B50=\"Building Work and Repairs\",WorkingP!S50,\"\")","v":""},{"$f":"IF(WorkingP!$B50=\"Building Work and Repairs\",WorkingP!T50,\"\")","v":""},{"$f":"IF(WorkingP!$B50=\"Building Work and Repairs\",WorkingP!U50,\"\")","v":""},{"$f":"IF(WorkingP!$B50=\"Building Work and Repairs\",WorkingP!V50,\"\")","v":""},{"$f":"IF(WorkingP!$B50=\"Building Work and Repairs\",WorkingP!W50,\"\")","v":""},{"$f":"IF(WorkingP!$B50=\"Building Work and Repairs\",WorkingP!X50,\"\")","v":""},{"$f":"IF(WorkingP!$B50=\"Building Work and Repairs\",WorkingP!Y50,\"\")","v":""},{"$f":"IF(Descriptions!K51=\"Building Work and Repairs\",Descriptions!AB51,0)","v":0}]
[{"$f":"IF(Descriptions!K52=\"Building Work and Repairs\",Descriptions!I52,0)","v":0},{"$f":"IF(WorkingP!$B51=\"Building Work and Repairs\",WorkingP!D51,\"\")","v":""},{"$f":"IF(WorkingP!$B51=\"Building Work and Repairs\",WorkingP!E51,\"\")","v":""},{"$f":"IF(WorkingP!$B51=\"Building Work and Repairs\",WorkingP!F51,\"\")","v":""},{"$f":"IF(WorkingP!$B51=\"Building Work and Repairs\",WorkingP!G51,\"\")","v":""},{"$f":"IF(WorkingP!$B51=\"Building Work and Repairs\",WorkingP!H51,\"\")","v":""},{"$f":"IF(WorkingP!$B51=\"Building Work and Repairs\",WorkingP!I51,\"\")","v":""},{"$f":"IF(WorkingP!$B51=\"Building Work and Repairs\",WorkingP!J51,\"\")","v":""},{"$f":"IF(WorkingP!$B51=\"Building Work and Repairs\",WorkingP!K51,\"\")","v":""},{"$f":"IF(WorkingP!$B51=\"Building Work and Repairs\",WorkingP!L51,\"\")","v":""},{"$f":"IF(WorkingP!$B51=\"Building Work and Repairs\",WorkingP!M51,\"\")","v":""},{"$f":"IF(WorkingP!$B51=\"Building Work and Repairs\",WorkingP!N51,\"\")","v":""},{"$f":"IF(WorkingP!$B51=\"Building Work and Repairs\",WorkingP!O51,\"\")","v":""},{"$f":"IF(WorkingP!$B51=\"Building Work and Repairs\",WorkingP!P51,\"\")","v":""},{"$f":"IF(WorkingP!$B51=\"Building Work and Repairs\",WorkingP!Q51,\"\")","v":""},{"$f":"IF(WorkingP!$B51=\"Building Work and Repairs\",WorkingP!R51,\"\")","v":""},{"$f":"IF(WorkingP!$B51=\"Building Work and Repairs\",WorkingP!S51,\"\")","v":""},{"$f":"IF(WorkingP!$B51=\"Building Work and Repairs\",WorkingP!T51,\"\")","v":""},{"$f":"IF(WorkingP!$B51=\"Building Work and Repairs\",WorkingP!U51,\"\")","v":""},{"$f":"IF(WorkingP!$B51=\"Building Work and Repairs\",WorkingP!V51,\"\")","v":""},{"$f":"IF(WorkingP!$B51=\"Building Work and Repairs\",WorkingP!W51,\"\")","v":""},{"$f":"IF(WorkingP!$B51=\"Building Work and Repairs\",WorkingP!X51,\"\")","v":""},{"$f":"IF(WorkingP!$B51=\"Building Work and Repairs\",WorkingP!Y51,\"\")","v":""},{"$f":"IF(Descriptions!K52=\"Building Work and Repairs\",Descriptions!AB52,0)","v":0}]
[{"$f":"IF(Descriptions!K53=\"Building Work and Repairs\",Descriptions!I53,0)","v":0},{"$f":"IF(WorkingP!$B52=\"Building Work and Repairs\",WorkingP!D52,\"\")","v":""},{"$f":"IF(WorkingP!$B52=\"Building Work and Repairs\",WorkingP!E52,\"\")","v":""},{"$f":"IF(WorkingP!$B52=\"Building Work and Repairs\",WorkingP!F52,\"\")","v":""},{"$f":"IF(WorkingP!$B52=\"Building Work and Repairs\",WorkingP!G52,\"\")","v":""},{"$f":"IF(WorkingP!$B52=\"Building Work and Repairs\",WorkingP!H52,\"\")","v":""},{"$f":"IF(WorkingP!$B52=\"Building Work and Repairs\",WorkingP!I52,\"\")","v":""},{"$f":"IF(WorkingP!$B52=\"Building Work and Repairs\",WorkingP!J52,\"\")","v":""},{"$f":"IF(WorkingP!$B52=\"Building Work and Repairs\",WorkingP!K52,\"\")","v":""},{"$f":"IF(WorkingP!$B52=\"Building Work and Repairs\",WorkingP!L52,\"\")","v":""},{"$f":"IF(WorkingP!$B52=\"Building Work and Repairs\",WorkingP!M52,\"\")","v":""},{"$f":"IF(WorkingP!$B52=\"Building Work and Repairs\",WorkingP!N52,\"\")","v":""},{"$f":"IF(WorkingP!$B52=\"Building Work and Repairs\",WorkingP!O52,\"\")","v":""},{"$f":"IF(WorkingP!$B52=\"Building Work and Repairs\",WorkingP!P52,\"\")","v":""},{"$f":"IF(WorkingP!$B52=\"Building Work and Repairs\",WorkingP!Q52,\"\")","v":""},{"$f":"IF(WorkingP!$B52=\"Building Work and Repairs\",WorkingP!R52,\"\")","v":""},{"$f":"IF(WorkingP!$B52=\"Building Work and Repairs\",WorkingP!S52,\"\")","v":""},{"$f":"IF(WorkingP!$B52=\"Building Work and Repairs\",WorkingP!T52,\"\")","v":""},{"$f":"IF(WorkingP!$B52=\"Building Work and Repairs\",WorkingP!U52,\"\")","v":""},{"$f":"IF(WorkingP!$B52=\"Building Work and Repairs\",WorkingP!V52,\"\")","v":""},{"$f":"IF(WorkingP!$B52=\"Building Work and Repairs\",WorkingP!W52,\"\")","v":""},{"$f":"IF(WorkingP!$B52=\"Building Work and Repairs\",WorkingP!X52,\"\")","v":""},{"$f":"IF(WorkingP!$B52=\"Building Work and Repairs\",WorkingP!Y52,\"\")","v":""},{"$f":"IF(Descriptions!K53=\"Building Work and Repairs\",Descriptions!AB53,0)","v":0}]
[{"$f":"IF(Descriptions!K54=\"Building Work and Repairs\",Descriptions!I54,0)","v":0},{"$f":"IF(WorkingP!$B53=\"Building Work and Repairs\",WorkingP!D53,\"\")","v":""},{"$f":"IF(WorkingP!$B53=\"Building Work and Repairs\",WorkingP!E53,\"\")","v":""},{"$f":"IF(WorkingP!$B53=\"Building Work and Repairs\",WorkingP!F53,\"\")","v":""},{"$f":"IF(WorkingP!$B53=\"Building Work and Repairs\",WorkingP!G53,\"\")","v":""},{"$f":"IF(WorkingP!$B53=\"Building Work and Repairs\",WorkingP!H53,\"\")","v":""},{"$f":"IF(WorkingP!$B53=\"Building Work and Repairs\",WorkingP!I53,\"\")","v":""},{"$f":"IF(WorkingP!$B53=\"Building Work and Repairs\",WorkingP!J53,\"\")","v":""},{"$f":"IF(WorkingP!$B53=\"Building Work and Repairs\",WorkingP!K53,\"\")","v":""},{"$f":"IF(WorkingP!$B53=\"Building Work and Repairs\",WorkingP!L53,\"\")","v":""},{"$f":"IF(WorkingP!$B53=\"Building Work and Repairs\",WorkingP!M53,\"\")","v":""},{"$f":"IF(WorkingP!$B53=\"Building Work and Repairs\",WorkingP!N53,\"\")","v":""},{"$f":"IF(WorkingP!$B53=\"Building Work and Repairs\",WorkingP!O53,\"\")","v":""},{"$f":"IF(WorkingP!$B53=\"Building Work and Repairs\",WorkingP!P53,\"\")","v":""},{"$f":"IF(WorkingP!$B53=\"Building Work and Repairs\",WorkingP!Q53,\"\")","v":""},{"$f":"IF(WorkingP!$B53=\"Building Work and Repairs\",WorkingP!R53,\"\")","v":""},{"$f":"IF(WorkingP!$B53=\"Building Work and Repairs\",WorkingP!S53,\"\")","v":""},{"$f":"IF(WorkingP!$B53=\"Building Work and Repairs\",WorkingP!T53,\"\")","v":""},{"$f":"IF(WorkingP!$B53=\"Building Work and Repairs\",WorkingP!U53,\"\")","v":""},{"$f":"IF(WorkingP!$B53=\"Building Work and Repairs\",WorkingP!V53,\"\")","v":""},{"$f":"IF(WorkingP!$B53=\"Building Work and Repairs\",WorkingP!W53,\"\")","v":""},{"$f":"IF(WorkingP!$B53=\"Building Work and Repairs\",WorkingP!X53,\"\")","v":""},{"$f":"IF(WorkingP!$B53=\"Building Work and Repairs\",WorkingP!Y53,\"\")","v":""},{"$f":"IF(Descriptions!K54=\"Building Work and Repairs\",Descriptions!AB54,0)","v":0}]
[{"$f":"IF(Descriptions!K55=\"Building Work and Repairs\",Descriptions!I55,0)","v":0},{"$f":"IF(WorkingP!$B54=\"Building Work and Repairs\",WorkingP!D54,\"\")","v":""},{"$f":"IF(WorkingP!$B54=\"Building Work and Repairs\",WorkingP!E54,\"\")","v":""},{"$f":"IF(WorkingP!$B54=\"Building Work and Repairs\",WorkingP!F54,\"\")","v":""},{"$f":"IF(WorkingP!$B54=\"Building Work and Repairs\",WorkingP!G54,\"\")","v":""},{"$f":"IF(WorkingP!$B54=\"Building Work and Repairs\",WorkingP!H54,\"\")","v":""},{"$f":"IF(WorkingP!$B54=\"Building Work and Repairs\",WorkingP!I54,\"\")","v":""},{"$f":"IF(WorkingP!$B54=\"Building Work and Repairs\",WorkingP!J54,\"\")","v":""},{"$f":"IF(WorkingP!$B54=\"Building Work and Repairs\",WorkingP!K54,\"\")","v":""},{"$f":"IF(WorkingP!$B54=\"Building Work and Repairs\",WorkingP!L54,\"\")","v":""},{"$f":"IF(WorkingP!$B54=\"Building Work and Repairs\",WorkingP!M54,\"\")","v":""},{"$f":"IF(WorkingP!$B54=\"Building Work and Repairs\",WorkingP!N54,\"\")","v":""},{"$f":"IF(WorkingP!$B54=\"Building Work and Repairs\",WorkingP!O54,\"\")","v":""},{"$f":"IF(WorkingP!$B54=\"Building Work and Repairs\",WorkingP!P54,\"\")","v":""},{"$f":"IF(WorkingP!$B54=\"Building Work and Repairs\",WorkingP!Q54,\"\")","v":""},{"$f":"IF(WorkingP!$B54=\"Building Work and Repairs\",WorkingP!R54,\"\")","v":""},{"$f":"IF(WorkingP!$B54=\"Building Work and Repairs\",WorkingP!S54,\"\")","v":""},{"$f":"IF(WorkingP!$B54=\"Building Work and Repairs\",WorkingP!T54,\"\")","v":""},{"$f":"IF(WorkingP!$B54=\"Building Work and Repairs\",WorkingP!U54,\"\")","v":""},{"$f":"IF(WorkingP!$B54=\"Building Work and Repairs\",WorkingP!V54,\"\")","v":""},{"$f":"IF(WorkingP!$B54=\"Building Work and Repairs\",WorkingP!W54,\"\")","v":""},{"$f":"IF(WorkingP!$B54=\"Building Work and Repairs\",WorkingP!X54,\"\")","v":""},{"$f":"IF(WorkingP!$B54=\"Building Work and Repairs\",WorkingP!Y54,\"\")","v":""},{"$f":"IF(Descriptions!K55=\"Building Work and Repairs\",Descriptions!AB55,0)","v":0}]
[{"$f":"IF(Descriptions!K56=\"Building Work and Repairs\",Descriptions!I56,0)","v":0},{"$f":"IF(WorkingP!$B55=\"Building Work and Repairs\",WorkingP!D55,\"\")","v":""},{"$f":"IF(WorkingP!$B55=\"Building Work and Repairs\",WorkingP!E55,\"\")","v":""},{"$f":"IF(WorkingP!$B55=\"Building Work and Repairs\",WorkingP!F55,\"\")","v":""},{"$f":"IF(WorkingP!$B55=\"Building Work and Repairs\",WorkingP!G55,\"\")","v":""},{"$f":"IF(WorkingP!$B55=\"Building Work and Repairs\",WorkingP!H55,\"\")","v":""},{"$f":"IF(WorkingP!$B55=\"Building Work and Repairs\",WorkingP!I55,\"\")","v":""},{"$f":"IF(WorkingP!$B55=\"Building Work and Repairs\",WorkingP!J55,\"\")","v":""},{"$f":"IF(WorkingP!$B55=\"Building Work and Repairs\",WorkingP!K55,\"\")","v":""},{"$f":"IF(WorkingP!$B55=\"Building Work and Repairs\",WorkingP!L55,\"\")","v":""},{"$f":"IF(WorkingP!$B55=\"Building Work and Repairs\",WorkingP!M55,\"\")","v":""},{"$f":"IF(WorkingP!$B55=\"Building Work and Repairs\",WorkingP!N55,\"\")","v":""},{"$f":"IF(WorkingP!$B55=\"Building Work and Repairs\",WorkingP!O55,\"\")","v":""},{"$f":"IF(WorkingP!$B55=\"Building Work and Repairs\",WorkingP!P55,\"\")","v":""},{"$f":"IF(WorkingP!$B55=\"Building Work and Repairs\",WorkingP!Q55,\"\")","v":""},{"$f":"IF(WorkingP!$B55=\"Building Work and Repairs\",WorkingP!R55,\"\")","v":""},{"$f":"IF(WorkingP!$B55=\"Building Work and Repairs\",WorkingP!S55,\"\")","v":""},{"$f":"IF(WorkingP!$B55=\"Building Work and Repairs\",WorkingP!T55,\"\")","v":""},{"$f":"IF(WorkingP!$B55=\"Building Work and Repairs\",WorkingP!U55,\"\")","v":""},{"$f":"IF(WorkingP!$B55=\"Building Work and Repairs\",WorkingP!V55,\"\")","v":""},{"$f":"IF(WorkingP!$B55=\"Building Work and Repairs\",WorkingP!W55,\"\")","v":""},{"$f":"IF(WorkingP!$B55=\"Building Work and Repairs\",WorkingP!X55,\"\")","v":""},{"$f":"IF(WorkingP!$B55=\"Building Work and Repairs\",WorkingP!Y55,\"\")","v":""},{"$f":"IF(Descriptions!K56=\"Building Work and Repairs\",Descriptions!AB56,0)","v":0}]
[{"$f":"IF(Descriptions!K57=\"Building Work and Repairs\",Descriptions!I57,0)","v":0},{"$f":"IF(WorkingP!$B56=\"Building Work and Repairs\",WorkingP!D56,\"\")","v":""},{"$f":"IF(WorkingP!$B56=\"Building Work and Repairs\",WorkingP!E56,\"\")","v":""},{"$f":"IF(WorkingP!$B56=\"Building Work and Repairs\",WorkingP!F56,\"\")","v":""},{"$f":"IF(WorkingP!$B56=\"Building Work and Repairs\",WorkingP!G56,\"\")","v":""},{"$f":"IF(WorkingP!$B56=\"Building Work and Repairs\",WorkingP!H56,\"\")","v":""},{"$f":"IF(WorkingP!$B56=\"Building Work and Repairs\",WorkingP!I56,\"\")","v":""},{"$f":"IF(WorkingP!$B56=\"Building Work and Repairs\",WorkingP!J56,\"\")","v":""},{"$f":"IF(WorkingP!$B56=\"Building Work and Repairs\",WorkingP!K56,\"\")","v":""},{"$f":"IF(WorkingP!$B56=\"Building Work and Repairs\",WorkingP!L56,\"\")","v":""},{"$f":"IF(WorkingP!$B56=\"Building Work and Repairs\",WorkingP!M56,\"\")","v":""},{"$f":"IF(WorkingP!$B56=\"Building Work and Repairs\",WorkingP!N56,\"\")","v":""},{"$f":"IF(WorkingP!$B56=\"Building Work and Repairs\",WorkingP!O56,\"\")","v":""},{"$f":"IF(WorkingP!$B56=\"Building Work and Repairs\",WorkingP!P56,\"\")","v":""},{"$f":"IF(WorkingP!$B56=\"Building Work and Repairs\",WorkingP!Q56,\"\")","v":""},{"$f":"IF(WorkingP!$B56=\"Building Work and Repairs\",WorkingP!R56,\"\")","v":""},{"$f":"IF(WorkingP!$B56=\"Building Work and Repairs\",WorkingP!S56,\"\")","v":""},{"$f":"IF(WorkingP!$B56=\"Building Work and Repairs\",WorkingP!T56,\"\")","v":""},{"$f":"IF(WorkingP!$B56=\"Building Work and Repairs\",WorkingP!U56,\"\")","v":""},{"$f":"IF(WorkingP!$B56=\"Building Work and Repairs\",WorkingP!V56,\"\")","v":""},{"$f":"IF(WorkingP!$B56=\"Building Work and Repairs\",WorkingP!W56,\"\")","v":""},{"$f":"IF(WorkingP!$B56=\"Building Work and Repairs\",WorkingP!X56,\"\")","v":""},{"$f":"IF(WorkingP!$B56=\"Building Work and Repairs\",WorkingP!Y56,\"\")","v":""},{"$f":"IF(Descriptions!K57=\"Building Work and Repairs\",Descriptions!AB57,0)","v":0}]
[{"$f":"IF(Descriptions!K58=\"Building Work and Repairs\",Descriptions!I58,0)","v":0},{"$f":"IF(WorkingP!$B57=\"Building Work and Repairs\",WorkingP!D57,\"\")","v":""},{"$f":"IF(WorkingP!$B57=\"Building Work and Repairs\",WorkingP!E57,\"\")","v":""},{"$f":"IF(WorkingP!$B57=\"Building Work and Repairs\",WorkingP!F57,\"\")","v":""},{"$f":"IF(WorkingP!$B57=\"Building Work and Repairs\",WorkingP!G57,\"\")","v":""},{"$f":"IF(WorkingP!$B57=\"Building Work and Repairs\",WorkingP!H57,\"\")","v":""},{"$f":"IF(WorkingP!$B57=\"Building Work and Repairs\",WorkingP!I57,\"\")","v":""},{"$f":"IF(WorkingP!$B57=\"Building Work and Repairs\",WorkingP!J57,\"\")","v":""},{"$f":"IF(WorkingP!$B57=\"Building Work and Repairs\",WorkingP!K57,\"\")","v":""},{"$f":"IF(WorkingP!$B57=\"Building Work and Repairs\",WorkingP!L57,\"\")","v":""},{"$f":"IF(WorkingP!$B57=\"Building Work and Repairs\",WorkingP!M57,\"\")","v":""},{"$f":"IF(WorkingP!$B57=\"Building Work and Repairs\",WorkingP!N57,\"\")","v":""},{"$f":"IF(WorkingP!$B57=\"Building Work and Repairs\",WorkingP!O57,\"\")","v":""},{"$f":"IF(WorkingP!$B57=\"Building Work and Repairs\",WorkingP!P57,\"\")","v":""},{"$f":"IF(WorkingP!$B57=\"Building Work and Repairs\",WorkingP!Q57,\"\")","v":""},{"$f":"IF(WorkingP!$B57=\"Building Work and Repairs\",WorkingP!R57,\"\")","v":""},{"$f":"IF(WorkingP!$B57=\"Building Work and Repairs\",WorkingP!S57,\"\")","v":""},{"$f":"IF(WorkingP!$B57=\"Building Work and Repairs\",WorkingP!T57,\"\")","v":""},{"$f":"IF(WorkingP!$B57=\"Building Work and Repairs\",WorkingP!U57,\"\")","v":""},{"$f":"IF(WorkingP!$B57=\"Building Work and Repairs\",WorkingP!V57,\"\")","v":""},{"$f":"IF(WorkingP!$B57=\"Building Work and Repairs\",WorkingP!W57,\"\")","v":""},{"$f":"IF(WorkingP!$B57=\"Building Work and Repairs\",WorkingP!X57,\"\")","v":""},{"$f":"IF(WorkingP!$B57=\"Building Work and Repairs\",WorkingP!Y57,\"\")","v":""},{"$f":"IF(Descriptions!K58=\"Building Work and Repairs\",Descriptions!AB58,0)","v":0}]
[{"$f":"IF(Descriptions!K59=\"Building Work and Repairs\",Descriptions!I59,0)","v":0},{"$f":"IF(WorkingP!$B58=\"Building Work and Repairs\",WorkingP!D58,\"\")","v":""},{"$f":"IF(WorkingP!$B58=\"Building Work and Repairs\",WorkingP!E58,\"\")","v":""},{"$f":"IF(WorkingP!$B58=\"Building Work and Repairs\",WorkingP!F58,\"\")","v":""},{"$f":"IF(WorkingP!$B58=\"Building Work and Repairs\",WorkingP!G58,\"\")","v":""},{"$f":"IF(WorkingP!$B58=\"Building Work and Repairs\",WorkingP!H58,\"\")","v":""},{"$f":"IF(WorkingP!$B58=\"Building Work and Repairs\",WorkingP!I58,\"\")","v":""},{"$f":"IF(WorkingP!$B58=\"Building Work and Repairs\",WorkingP!J58,\"\")","v":""},{"$f":"IF(WorkingP!$B58=\"Building Work and Repairs\",WorkingP!K58,\"\")","v":""},{"$f":"IF(WorkingP!$B58=\"Building Work and Repairs\",WorkingP!L58,\"\")","v":""},{"$f":"IF(WorkingP!$B58=\"Building Work and Repairs\",WorkingP!M58,\"\")","v":""},{"$f":"IF(WorkingP!$B58=\"Building Work and Repairs\",WorkingP!N58,\"\")","v":""},{"$f":"IF(WorkingP!$B58=\"Building Work and Repairs\",WorkingP!O58,\"\")","v":""},{"$f":"IF(WorkingP!$B58=\"Building Work and Repairs\",WorkingP!P58,\"\")","v":""},{"$f":"IF(WorkingP!$B58=\"Building Work and Repairs\",WorkingP!Q58,\"\")","v":""},{"$f":"IF(WorkingP!$B58=\"Building Work and Repairs\",WorkingP!R58,\"\")","v":""},{"$f":"IF(WorkingP!$B58=\"Building Work and Repairs\",WorkingP!S58,\"\")","v":""},{"$f":"IF(WorkingP!$B58=\"Building Work and Repairs\",WorkingP!T58,\"\")","v":""},{"$f":"IF(WorkingP!$B58=\"Building Work and Repairs\",WorkingP!U58,\"\")","v":""},{"$f":"IF(WorkingP!$B58=\"Building Work and Repairs\",WorkingP!V58,\"\")","v":""},{"$f":"IF(WorkingP!$B58=\"Building Work and Repairs\",WorkingP!W58,\"\")","v":""},{"$f":"IF(WorkingP!$B58=\"Building Work and Repairs\",WorkingP!X58,\"\")","v":""},{"$f":"IF(WorkingP!$B58=\"Building Work and Repairs\",WorkingP!Y58,\"\")","v":""},{"$f":"IF(Descriptions!K59=\"Building Work and Repairs\",Descriptions!AB59,0)","v":0}]
[{"$f":"IF(Descriptions!K60=\"Building Work and Repairs\",Descriptions!I60,0)","v":0},{"$f":"IF(WorkingP!$B59=\"Building Work and Repairs\",WorkingP!D59,\"\")","v":""},{"$f":"IF(WorkingP!$B59=\"Building Work and Repairs\",WorkingP!E59,\"\")","v":""},{"$f":"IF(WorkingP!$B59=\"Building Work and Repairs\",WorkingP!F59,\"\")","v":""},{"$f":"IF(WorkingP!$B59=\"Building Work and Repairs\",WorkingP!G59,\"\")","v":""},{"$f":"IF(WorkingP!$B59=\"Building Work and Repairs\",WorkingP!H59,\"\")","v":""},{"$f":"IF(WorkingP!$B59=\"Building Work and Repairs\",WorkingP!I59,\"\")","v":""},{"$f":"IF(WorkingP!$B59=\"Building Work and Repairs\",WorkingP!J59,\"\")","v":""},{"$f":"IF(WorkingP!$B59=\"Building Work and Repairs\",WorkingP!K59,\"\")","v":""},{"$f":"IF(WorkingP!$B59=\"Building Work and Repairs\",WorkingP!L59,\"\")","v":""},{"$f":"IF(WorkingP!$B59=\"Building Work and Repairs\",WorkingP!M59,\"\")","v":""},{"$f":"IF(WorkingP!$B59=\"Building Work and Repairs\",WorkingP!N59,\"\")","v":""},{"$f":"IF(WorkingP!$B59=\"Building Work and Repairs\",WorkingP!O59,\"\")","v":""},{"$f":"IF(WorkingP!$B59=\"Building Work and Repairs\",WorkingP!P59,\"\")","v":""},{"$f":"IF(WorkingP!$B59=\"Building Work and Repairs\",WorkingP!Q59,\"\")","v":""},{"$f":"IF(WorkingP!$B59=\"Building Work and Repairs\",WorkingP!R59,\"\")","v":""},{"$f":"IF(WorkingP!$B59=\"Building Work and Repairs\",WorkingP!S59,\"\")","v":""},{"$f":"IF(WorkingP!$B59=\"Building Work and Repairs\",WorkingP!T59,\"\")","v":""},{"$f":"IF(WorkingP!$B59=\"Building Work and Repairs\",WorkingP!U59,\"\")","v":""},{"$f":"IF(WorkingP!$B59=\"Building Work and Repairs\",WorkingP!V59,\"\")","v":""},{"$f":"IF(WorkingP!$B59=\"Building Work and Repairs\",WorkingP!W59,\"\")","v":""},{"$f":"IF(WorkingP!$B59=\"Building Work and Repairs\",WorkingP!X59,\"\")","v":""},{"$f":"IF(WorkingP!$B59=\"Building Work and Repairs\",WorkingP!Y59,\"\")","v":""},{"$f":"IF(Descriptions!K60=\"Building Work and Repairs\",Descriptions!AB60,0)","v":0}]
[{"$f":"IF(Descriptions!K61=\"Building Work and Repairs\",Descriptions!I61,0)","v":0},{"$f":"IF(WorkingP!$B60=\"Building Work and Repairs\",WorkingP!D60,\"\")","v":""},{"$f":"IF(WorkingP!$B60=\"Building Work and Repairs\",WorkingP!E60,\"\")","v":""},{"$f":"IF(WorkingP!$B60=\"Building Work and Repairs\",WorkingP!F60,\"\")","v":""},{"$f":"IF(WorkingP!$B60=\"Building Work and Repairs\",WorkingP!G60,\"\")","v":""},{"$f":"IF(WorkingP!$B60=\"Building Work and Repairs\",WorkingP!H60,\"\")","v":""},{"$f":"IF(WorkingP!$B60=\"Building Work and Repairs\",WorkingP!I60,\"\")","v":""},{"$f":"IF(WorkingP!$B60=\"Building Work and Repairs\",WorkingP!J60,\"\")","v":""},{"$f":"IF(WorkingP!$B60=\"Building Work and Repairs\",WorkingP!K60,\"\")","v":""},{"$f":"IF(WorkingP!$B60=\"Building Work and Repairs\",WorkingP!L60,\"\")","v":""},{"$f":"IF(WorkingP!$B60=\"Building Work and Repairs\",WorkingP!M60,\"\")","v":""},{"$f":"IF(WorkingP!$B60=\"Building Work and Repairs\",WorkingP!N60,\"\")","v":""},{"$f":"IF(WorkingP!$B60=\"Building Work and Repairs\",WorkingP!O60,\"\")","v":""},{"$f":"IF(WorkingP!$B60=\"Building Work and Repairs\",WorkingP!P60,\"\")","v":""},{"$f":"IF(WorkingP!$B60=\"Building Work and Repairs\",WorkingP!Q60,\"\")","v":""},{"$f":"IF(WorkingP!$B60=\"Building Work and Repairs\",WorkingP!R60,\"\")","v":""},{"$f":"IF(WorkingP!$B60=\"Building Work and Repairs\",WorkingP!S60,\"\")","v":""},{"$f":"IF(WorkingP!$B60=\"Building Work and Repairs\",WorkingP!T60,\"\")","v":""},{"$f":"IF(WorkingP!$B60=\"Building Work and Repairs\",WorkingP!U60,\"\")","v":""},{"$f":"IF(WorkingP!$B60=\"Building Work and Repairs\",WorkingP!V60,\"\")","v":""},{"$f":"IF(WorkingP!$B60=\"Building Work and Repairs\",WorkingP!W60,\"\")","v":""},{"$f":"IF(WorkingP!$B60=\"Building Work and Repairs\",WorkingP!X60,\"\")","v":""},{"$f":"IF(WorkingP!$B60=\"Building Work and Repairs\",WorkingP!Y60,\"\")","v":""},{"$f":"IF(Descriptions!K61=\"Building Work and Repairs\",Descriptions!AB61,0)","v":0}]
[{"$f":"IF(Descriptions!K62=\"Building Work and Repairs\",Descriptions!I62,0)","v":0},{"$f":"IF(WorkingP!$B61=\"Building Work and Repairs\",WorkingP!D61,\"\")","v":""},{"$f":"IF(WorkingP!$B61=\"Building Work and Repairs\",WorkingP!E61,\"\")","v":""},{"$f":"IF(WorkingP!$B61=\"Building Work and Repairs\",WorkingP!F61,\"\")","v":""},{"$f":"IF(WorkingP!$B61=\"Building Work and Repairs\",WorkingP!G61,\"\")","v":""},{"$f":"IF(WorkingP!$B61=\"Building Work and Repairs\",WorkingP!H61,\"\")","v":""},{"$f":"IF(WorkingP!$B61=\"Building Work and Repairs\",WorkingP!I61,\"\")","v":""},{"$f":"IF(WorkingP!$B61=\"Building Work and Repairs\",WorkingP!J61,\"\")","v":""},{"$f":"IF(WorkingP!$B61=\"Building Work and Repairs\",WorkingP!K61,\"\")","v":""},{"$f":"IF(WorkingP!$B61=\"Building Work and Repairs\",WorkingP!L61,\"\")","v":""},{"$f":"IF(WorkingP!$B61=\"Building Work and Repairs\",WorkingP!M61,\"\")","v":""},{"$f":"IF(WorkingP!$B61=\"Building Work and Repairs\",WorkingP!N61,\"\")","v":""},{"$f":"IF(WorkingP!$B61=\"Building Work and Repairs\",WorkingP!O61,\"\")","v":""},{"$f":"IF(WorkingP!$B61=\"Building Work and Repairs\",WorkingP!P61,\"\")","v":""},{"$f":"IF(WorkingP!$B61=\"Building Work and Repairs\",WorkingP!Q61,\"\")","v":""},{"$f":"IF(WorkingP!$B61=\"Building Work and Repairs\",WorkingP!R61,\"\")","v":""},{"$f":"IF(WorkingP!$B61=\"Building Work and Repairs\",WorkingP!S61,\"\")","v":""},{"$f":"IF(WorkingP!$B61=\"Building Work and Repairs\",WorkingP!T61,\"\")","v":""},{"$f":"IF(WorkingP!$B61=\"Building Work and Repairs\",WorkingP!U61,\"\")","v":""},{"$f":"IF(WorkingP!$B61=\"Building Work and Repairs\",WorkingP!V61,\"\")","v":""},{"$f":"IF(WorkingP!$B61=\"Building Work and Repairs\",WorkingP!W61,\"\")","v":""},{"$f":"IF(WorkingP!$B61=\"Building Work and Repairs\",WorkingP!X61,\"\")","v":""},{"$f":"IF(WorkingP!$B61=\"Building Work and Repairs\",WorkingP!Y61,\"\")","v":""},{"$f":"IF(Descriptions!K62=\"Building Work and Repairs\",Descriptions!AB62,0)","v":0}]
[{"$f":"IF(Descriptions!K63=\"Building Work and Repairs\",Descriptions!I63,0)","v":0},{"$f":"IF(WorkingP!$B62=\"Building Work and Repairs\",WorkingP!D62,\"\")","v":""},{"$f":"IF(WorkingP!$B62=\"Building Work and Repairs\",WorkingP!E62,\"\")","v":""},{"$f":"IF(WorkingP!$B62=\"Building Work and Repairs\",WorkingP!F62,\"\")","v":""},{"$f":"IF(WorkingP!$B62=\"Building Work and Repairs\",WorkingP!G62,\"\")","v":""},{"$f":"IF(WorkingP!$B62=\"Building Work and Repairs\",WorkingP!H62,\"\")","v":""},{"$f":"IF(WorkingP!$B62=\"Building Work and Repairs\",WorkingP!I62,\"\")","v":""},{"$f":"IF(WorkingP!$B62=\"Building Work and Repairs\",WorkingP!J62,\"\")","v":""},{"$f":"IF(WorkingP!$B62=\"Building Work and Repairs\",WorkingP!K62,\"\")","v":""},{"$f":"IF(WorkingP!$B62=\"Building Work and Repairs\",WorkingP!L62,\"\")","v":""},{"$f":"IF(WorkingP!$B62=\"Building Work and Repairs\",WorkingP!M62,\"\")","v":""},{"$f":"IF(WorkingP!$B62=\"Building Work and Repairs\",WorkingP!N62,\"\")","v":""},{"$f":"IF(WorkingP!$B62=\"Building Work and Repairs\",WorkingP!O62,\"\")","v":""},{"$f":"IF(WorkingP!$B62=\"Building Work and Repairs\",WorkingP!P62,\"\")","v":""},{"$f":"IF(WorkingP!$B62=\"Building Work and Repairs\",WorkingP!Q62,\"\")","v":""},{"$f":"IF(WorkingP!$B62=\"Building Work and Repairs\",WorkingP!R62,\"\")","v":""},{"$f":"IF(WorkingP!$B62=\"Building Work and Repairs\",WorkingP!S62,\"\")","v":""},{"$f":"IF(WorkingP!$B62=\"Building Work and Repairs\",WorkingP!T62,\"\")","v":""},{"$f":"IF(WorkingP!$B62=\"Building Work and Repairs\",WorkingP!U62,\"\")","v":""},{"$f":"IF(WorkingP!$B62=\"Building Work and Repairs\",WorkingP!V62,\"\")","v":""},{"$f":"IF(WorkingP!$B62=\"Building Work and Repairs\",WorkingP!W62,\"\")","v":""},{"$f":"IF(WorkingP!$B62=\"Building Work and Repairs\",WorkingP!X62,\"\")","v":""},{"$f":"IF(WorkingP!$B62=\"Building Work and Repairs\",WorkingP!Y62,\"\")","v":""},{"$f":"IF(Descriptions!K63=\"Building Work and Repairs\",Descriptions!AB63,0)","v":0}]
[{"$f":"IF(Descriptions!K64=\"Building Work and Repairs\",Descriptions!I64,0)","v":0},{"$f":"IF(WorkingP!$B63=\"Building Work and Repairs\",WorkingP!D63,\"\")","v":""},{"$f":"IF(WorkingP!$B63=\"Building Work and Repairs\",WorkingP!E63,\"\")","v":""},{"$f":"IF(WorkingP!$B63=\"Building Work and Repairs\",WorkingP!F63,\"\")","v":""},{"$f":"IF(WorkingP!$B63=\"Building Work and Repairs\",WorkingP!G63,\"\")","v":""},{"$f":"IF(WorkingP!$B63=\"Building Work and Repairs\",WorkingP!H63,\"\")","v":""},{"$f":"IF(WorkingP!$B63=\"Building Work and Repairs\",WorkingP!I63,\"\")","v":""},{"$f":"IF(WorkingP!$B63=\"Building Work and Repairs\",WorkingP!J63,\"\")","v":""},{"$f":"IF(WorkingP!$B63=\"Building Work and Repairs\",WorkingP!K63,\"\")","v":""},{"$f":"IF(WorkingP!$B63=\"Building Work and Repairs\",WorkingP!L63,\"\")","v":""},{"$f":"IF(WorkingP!$B63=\"Building Work and Repairs\",WorkingP!M63,\"\")","v":""},{"$f":"IF(WorkingP!$B63=\"Building Work and Repairs\",WorkingP!N63,\"\")","v":""},{"$f":"IF(WorkingP!$B63=\"Building Work and Repairs\",WorkingP!O63,\"\")","v":""},{"$f":"IF(WorkingP!$B63=\"Building Work and Repairs\",WorkingP!P63,\"\")","v":""},{"$f":"IF(WorkingP!$B63=\"Building Work and Repairs\",WorkingP!Q63,\"\")","v":""},{"$f":"IF(WorkingP!$B63=\"Building Work and Repairs\",WorkingP!R63,\"\")","v":""},{"$f":"IF(WorkingP!$B63=\"Building Work and Repairs\",WorkingP!S63,\"\")","v":""},{"$f":"IF(WorkingP!$B63=\"Building Work and Repairs\",WorkingP!T63,\"\")","v":""},{"$f":"IF(WorkingP!$B63=\"Building Work and Repairs\",WorkingP!U63,\"\")","v":""},{"$f":"IF(WorkingP!$B63=\"Building Work and Repairs\",WorkingP!V63,\"\")","v":""},{"$f":"IF(WorkingP!$B63=\"Building Work and Repairs\",WorkingP!W63,\"\")","v":""},{"$f":"IF(WorkingP!$B63=\"Building Work and Repairs\",WorkingP!X63,\"\")","v":""},{"$f":"IF(WorkingP!$B63=\"Building Work and Repairs\",WorkingP!Y63,\"\")","v":""},{"$f":"IF(Descriptions!K64=\"Building Work and Repairs\",Descriptions!AB64,0)","v":0}]
[{"$f":"IF(Descriptions!K65=\"Building Work and Repairs\",Descriptions!I65,0)","v":0},{"$f":"IF(WorkingP!$B64=\"Building Work and Repairs\",WorkingP!D64,\"\")","v":""},{"$f":"IF(WorkingP!$B64=\"Building Work and Repairs\",WorkingP!E64,\"\")","v":""},{"$f":"IF(WorkingP!$B64=\"Building Work and Repairs\",WorkingP!F64,\"\")","v":""},{"$f":"IF(WorkingP!$B64=\"Building Work and Repairs\",WorkingP!G64,\"\")","v":""},{"$f":"IF(WorkingP!$B64=\"Building Work and Repairs\",WorkingP!H64,\"\")","v":""},{"$f":"IF(WorkingP!$B64=\"Building Work and Repairs\",WorkingP!I64,\"\")","v":""},{"$f":"IF(WorkingP!$B64=\"Building Work and Repairs\",WorkingP!J64,\"\")","v":""},{"$f":"IF(WorkingP!$B64=\"Building Work and Repairs\",WorkingP!K64,\"\")","v":""},{"$f":"IF(WorkingP!$B64=\"Building Work and Repairs\",WorkingP!L64,\"\")","v":""},{"$f":"IF(WorkingP!$B64=\"Building Work and Repairs\",WorkingP!M64,\"\")","v":""},{"$f":"IF(WorkingP!$B64=\"Building Work and Repairs\",WorkingP!N64,\"\")","v":""},{"$f":"IF(WorkingP!$B64=\"Building Work and Repairs\",WorkingP!O64,\"\")","v":""},{"$f":"IF(WorkingP!$B64=\"Building Work and Repairs\",WorkingP!P64,\"\")","v":""},{"$f":"IF(WorkingP!$B64=\"Building Work and Repairs\",WorkingP!Q64,\"\")","v":""},{"$f":"IF(WorkingP!$B64=\"Building Work and Repairs\",WorkingP!R64,\"\")","v":""},{"$f":"IF(WorkingP!$B64=\"Building Work and Repairs\",WorkingP!S64,\"\")","v":""},{"$f":"IF(WorkingP!$B64=\"Building Work and Repairs\",WorkingP!T64,\"\")","v":""},{"$f":"IF(WorkingP!$B64=\"Building Work and Repairs\",WorkingP!U64,\"\")","v":""},{"$f":"IF(WorkingP!$B64=\"Building Work and Repairs\",WorkingP!V64,\"\")","v":""},{"$f":"IF(WorkingP!$B64=\"Building Work and Repairs\",WorkingP!W64,\"\")","v":""},{"$f":"IF(WorkingP!$B64=\"Building Work and Repairs\",WorkingP!X64,\"\")","v":""},{"$f":"IF(WorkingP!$B64=\"Building Work and Repairs\",WorkingP!Y64,\"\")","v":""},{"$f":"IF(Descriptions!K65=\"Building Work and Repairs\",Descriptions!AB65,0)","v":0}]
[{"$f":"IF(Descriptions!K66=\"Building Work and Repairs\",Descriptions!I66,0)","v":0},{"$f":"IF(WorkingP!$B65=\"Building Work and Repairs\",WorkingP!D65,\"\")","v":""},{"$f":"IF(WorkingP!$B65=\"Building Work and Repairs\",WorkingP!E65,\"\")","v":""},{"$f":"IF(WorkingP!$B65=\"Building Work and Repairs\",WorkingP!F65,\"\")","v":""},{"$f":"IF(WorkingP!$B65=\"Building Work and Repairs\",WorkingP!G65,\"\")","v":""},{"$f":"IF(WorkingP!$B65=\"Building Work and Repairs\",WorkingP!H65,\"\")","v":""},{"$f":"IF(WorkingP!$B65=\"Building Work and Repairs\",WorkingP!I65,\"\")","v":""},{"$f":"IF(WorkingP!$B65=\"Building Work and Repairs\",WorkingP!J65,\"\")","v":""},{"$f":"IF(WorkingP!$B65=\"Building Work and Repairs\",WorkingP!K65,\"\")","v":""},{"$f":"IF(WorkingP!$B65=\"Building Work and Repairs\",WorkingP!L65,\"\")","v":""},{"$f":"IF(WorkingP!$B65=\"Building Work and Repairs\",WorkingP!M65,\"\")","v":""},{"$f":"IF(WorkingP!$B65=\"Building Work and Repairs\",WorkingP!N65,\"\")","v":""},{"$f":"IF(WorkingP!$B65=\"Building Work and Repairs\",WorkingP!O65,\"\")","v":""},{"$f":"IF(WorkingP!$B65=\"Building Work and Repairs\",WorkingP!P65,\"\")","v":""},{"$f":"IF(WorkingP!$B65=\"Building Work and Repairs\",WorkingP!Q65,\"\")","v":""},{"$f":"IF(WorkingP!$B65=\"Building Work and Repairs\",WorkingP!R65,\"\")","v":""},{"$f":"IF(WorkingP!$B65=\"Building Work and Repairs\",WorkingP!S65,\"\")","v":""},{"$f":"IF(WorkingP!$B65=\"Building Work and Repairs\",WorkingP!T65,\"\")","v":""},{"$f":"IF(WorkingP!$B65=\"Building Work and Repairs\",WorkingP!U65,\"\")","v":""},{"$f":"IF(WorkingP!$B65=\"Building Work and Repairs\",WorkingP!V65,\"\")","v":""},{"$f":"IF(WorkingP!$B65=\"Building Work and Repairs\",WorkingP!W65,\"\")","v":""},{"$f":"IF(WorkingP!$B65=\"Building Work and Repairs\",WorkingP!X65,\"\")","v":""},{"$f":"IF(WorkingP!$B65=\"Building Work and Repairs\",WorkingP!Y65,\"\")","v":""},{"$f":"IF(Descriptions!K66=\"Building Work and Repairs\",Descriptions!AB66,0)","v":0}]
[{"$f":"IF(Descriptions!K67=\"Building Work and Repairs\",Descriptions!I67,0)","v":0},{"$f":"IF(WorkingP!$B66=\"Building Work and Repairs\",WorkingP!D66,\"\")","v":""},{"$f":"IF(WorkingP!$B66=\"Building Work and Repairs\",WorkingP!E66,\"\")","v":""},{"$f":"IF(WorkingP!$B66=\"Building Work and Repairs\",WorkingP!F66,\"\")","v":""},{"$f":"IF(WorkingP!$B66=\"Building Work and Repairs\",WorkingP!G66,\"\")","v":""},{"$f":"IF(WorkingP!$B66=\"Building Work and Repairs\",WorkingP!H66,\"\")","v":""},{"$f":"IF(WorkingP!$B66=\"Building Work and Repairs\",WorkingP!I66,\"\")","v":""},{"$f":"IF(WorkingP!$B66=\"Building Work and Repairs\",WorkingP!J66,\"\")","v":""},{"$f":"IF(WorkingP!$B66=\"Building Work and Repairs\",WorkingP!K66,\"\")","v":""},{"$f":"IF(WorkingP!$B66=\"Building Work and Repairs\",WorkingP!L66,\"\")","v":""},{"$f":"IF(WorkingP!$B66=\"Building Work and Repairs\",WorkingP!M66,\"\")","v":""},{"$f":"IF(WorkingP!$B66=\"Building Work and Repairs\",WorkingP!N66,\"\")","v":""},{"$f":"IF(WorkingP!$B66=\"Building Work and Repairs\",WorkingP!O66,\"\")","v":""},{"$f":"IF(WorkingP!$B66=\"Building Work and Repairs\",WorkingP!P66,\"\")","v":""},{"$f":"IF(WorkingP!$B66=\"Building Work and Repairs\",WorkingP!Q66,\"\")","v":""},{"$f":"IF(WorkingP!$B66=\"Building Work and Repairs\",WorkingP!R66,\"\")","v":""},{"$f":"IF(WorkingP!$B66=\"Building Work and Repairs\",WorkingP!S66,\"\")","v":""},{"$f":"IF(WorkingP!$B66=\"Building Work and Repairs\",WorkingP!T66,\"\")","v":""},{"$f":"IF(WorkingP!$B66=\"Building Work and Repairs\",WorkingP!U66,\"\")","v":""},{"$f":"IF(WorkingP!$B66=\"Building Work and Repairs\",WorkingP!V66,\"\")","v":""},{"$f":"IF(WorkingP!$B66=\"Building Work and Repairs\",WorkingP!W66,\"\")","v":""},{"$f":"IF(WorkingP!$B66=\"Building Work and Repairs\",WorkingP!X66,\"\")","v":""},{"$f":"IF(WorkingP!$B66=\"Building Work and Repairs\",WorkingP!Y66,\"\")","v":""},{"$f":"IF(Descriptions!K67=\"Building Work and Repairs\",Descriptions!AB67,0)","v":0}]
[{"$f":"IF(Descriptions!K68=\"Building Work and Repairs\",Descriptions!I68,0)","v":0},{"$f":"IF(WorkingP!$B67=\"Building Work and Repairs\",WorkingP!D67,\"\")","v":""},{"$f":"IF(WorkingP!$B67=\"Building Work and Repairs\",WorkingP!E67,\"\")","v":""},{"$f":"IF(WorkingP!$B67=\"Building Work and Repairs\",WorkingP!F67,\"\")","v":""},{"$f":"IF(WorkingP!$B67=\"Building Work and Repairs\",WorkingP!G67,\"\")","v":""},{"$f":"IF(WorkingP!$B67=\"Building Work and Repairs\",WorkingP!H67,\"\")","v":""},{"$f":"IF(WorkingP!$B67=\"Building Work and Repairs\",WorkingP!I67,\"\")","v":""},{"$f":"IF(WorkingP!$B67=\"Building Work and Repairs\",WorkingP!J67,\"\")","v":""},{"$f":"IF(WorkingP!$B67=\"Building Work and Repairs\",WorkingP!K67,\"\")","v":""},{"$f":"IF(WorkingP!$B67=\"Building Work and Repairs\",WorkingP!L67,\"\")","v":""},{"$f":"IF(WorkingP!$B67=\"Building Work and Repairs\",WorkingP!M67,\"\")","v":""},{"$f":"IF(WorkingP!$B67=\"Building Work and Repairs\",WorkingP!N67,\"\")","v":""},{"$f":"IF(WorkingP!$B67=\"Building Work and Repairs\",WorkingP!O67,\"\")","v":""},{"$f":"IF(WorkingP!$B67=\"Building Work and Repairs\",WorkingP!P67,\"\")","v":""},{"$f":"IF(WorkingP!$B67=\"Building Work and Repairs\",WorkingP!Q67,\"\")","v":""},{"$f":"IF(WorkingP!$B67=\"Building Work and Repairs\",WorkingP!R67,\"\")","v":""},{"$f":"IF(WorkingP!$B67=\"Building Work and Repairs\",WorkingP!S67,\"\")","v":""},{"$f":"IF(WorkingP!$B67=\"Building Work and Repairs\",WorkingP!T67,\"\")","v":""},{"$f":"IF(WorkingP!$B67=\"Building Work and Repairs\",WorkingP!U67,\"\")","v":""},{"$f":"IF(WorkingP!$B67=\"Building Work and Repairs\",WorkingP!V67,\"\")","v":""},{"$f":"IF(WorkingP!$B67=\"Building Work and Repairs\",WorkingP!W67,\"\")","v":""},{"$f":"IF(WorkingP!$B67=\"Building Work and Repairs\",WorkingP!X67,\"\")","v":""},{"$f":"IF(WorkingP!$B67=\"Building Work and Repairs\",WorkingP!Y67,\"\")","v":""},{"$f":"IF(Descriptions!K68=\"Building Work and Repairs\",Descriptions!AB68,0)","v":0}]
[{"$f":"IF(Descriptions!K69=\"Building Work and Repairs\",Descriptions!I69,0)","v":0},{"$f":"IF(WorkingP!$B68=\"Building Work and Repairs\",WorkingP!D68,\"\")","v":""},{"$f":"IF(WorkingP!$B68=\"Building Work and Repairs\",WorkingP!E68,\"\")","v":""},{"$f":"IF(WorkingP!$B68=\"Building Work and Repairs\",WorkingP!F68,\"\")","v":""},{"$f":"IF(WorkingP!$B68=\"Building Work and Repairs\",WorkingP!G68,\"\")","v":""},{"$f":"IF(WorkingP!$B68=\"Building Work and Repairs\",WorkingP!H68,\"\")","v":""},{"$f":"IF(WorkingP!$B68=\"Building Work and Repairs\",WorkingP!I68,\"\")","v":""},{"$f":"IF(WorkingP!$B68=\"Building Work and Repairs\",WorkingP!J68,\"\")","v":""},{"$f":"IF(WorkingP!$B68=\"Building Work and Repairs\",WorkingP!K68,\"\")","v":""},{"$f":"IF(WorkingP!$B68=\"Building Work and Repairs\",WorkingP!L68,\"\")","v":""},{"$f":"IF(WorkingP!$B68=\"Building Work and Repairs\",WorkingP!M68,\"\")","v":""},{"$f":"IF(WorkingP!$B68=\"Building Work and Repairs\",WorkingP!N68,\"\")","v":""},{"$f":"IF(WorkingP!$B68=\"Building Work and Repairs\",WorkingP!O68,\"\")","v":""},{"$f":"IF(WorkingP!$B68=\"Building Work and Repairs\",WorkingP!P68,\"\")","v":""},{"$f":"IF(WorkingP!$B68=\"Building Work and Repairs\",WorkingP!Q68,\"\")","v":""},{"$f":"IF(WorkingP!$B68=\"Building Work and Repairs\",WorkingP!R68,\"\")","v":""},{"$f":"IF(WorkingP!$B68=\"Building Work and Repairs\",WorkingP!S68,\"\")","v":""},{"$f":"IF(WorkingP!$B68=\"Building Work and Repairs\",WorkingP!T68,\"\")","v":""},{"$f":"IF(WorkingP!$B68=\"Building Work and Repairs\",WorkingP!U68,\"\")","v":""},{"$f":"IF(WorkingP!$B68=\"Building Work and Repairs\",WorkingP!V68,\"\")","v":""},{"$f":"IF(WorkingP!$B68=\"Building Work and Repairs\",WorkingP!W68,\"\")","v":""},{"$f":"IF(WorkingP!$B68=\"Building Work and Repairs\",WorkingP!X68,\"\")","v":""},{"$f":"IF(WorkingP!$B68=\"Building Work and Repairs\",WorkingP!Y68,\"\")","v":""},{"$f":"IF(Descriptions!K69=\"Building Work and Repairs\",Descriptions!AB69,0)","v":0}]
[{"$f":"IF(Descriptions!K70=\"Building Work and Repairs\",Descriptions!I70,0)","v":0},{"$f":"IF(WorkingP!$B69=\"Building Work and Repairs\",WorkingP!D69,\"\")","v":""},{"$f":"IF(WorkingP!$B69=\"Building Work and Repairs\",WorkingP!E69,\"\")","v":""},{"$f":"IF(WorkingP!$B69=\"Building Work and Repairs\",WorkingP!F69,\"\")","v":""},{"$f":"IF(WorkingP!$B69=\"Building Work and Repairs\",WorkingP!G69,\"\")","v":""},{"$f":"IF(WorkingP!$B69=\"Building Work and Repairs\",WorkingP!H69,\"\")","v":""},{"$f":"IF(WorkingP!$B69=\"Building Work and Repairs\",WorkingP!I69,\"\")","v":""},{"$f":"IF(WorkingP!$B69=\"Building Work and Repairs\",WorkingP!J69,\"\")","v":""},{"$f":"IF(WorkingP!$B69=\"Building Work and Repairs\",WorkingP!K69,\"\")","v":""},{"$f":"IF(WorkingP!$B69=\"Building Work and Repairs\",WorkingP!L69,\"\")","v":""},{"$f":"IF(WorkingP!$B69=\"Building Work and Repairs\",WorkingP!M69,\"\")","v":""},{"$f":"IF(WorkingP!$B69=\"Building Work and Repairs\",WorkingP!N69,\"\")","v":""},{"$f":"IF(WorkingP!$B69=\"Building Work and Repairs\",WorkingP!O69,\"\")","v":""},{"$f":"IF(WorkingP!$B69=\"Building Work and Repairs\",WorkingP!P69,\"\")","v":""},{"$f":"IF(WorkingP!$B69=\"Building Work and Repairs\",WorkingP!Q69,\"\")","v":""},{"$f":"IF(WorkingP!$B69=\"Building Work and Repairs\",WorkingP!R69,\"\")","v":""},{"$f":"IF(WorkingP!$B69=\"Building Work and Repairs\",WorkingP!S69,\"\")","v":""},{"$f":"IF(WorkingP!$B69=\"Building Work and Repairs\",WorkingP!T69,\"\")","v":""},{"$f":"IF(WorkingP!$B69=\"Building Work and Repairs\",WorkingP!U69,\"\")","v":""},{"$f":"IF(WorkingP!$B69=\"Building Work and Repairs\",WorkingP!V69,\"\")","v":""},{"$f":"IF(WorkingP!$B69=\"Building Work and Repairs\",WorkingP!W69,\"\")","v":""},{"$f":"IF(WorkingP!$B69=\"Building Work and Repairs\",WorkingP!X69,\"\")","v":""},{"$f":"IF(WorkingP!$B69=\"Building Work and Repairs\",WorkingP!Y69,\"\")","v":""},{"$f":"IF(Descriptions!K70=\"Building Work and Repairs\",Descriptions!AB70,0)","v":0}]
[{"$f":"IF(Descriptions!K71=\"Building Work and Repairs\",Descriptions!I71,0)","v":0},{"$f":"IF(WorkingP!$B70=\"Building Work and Repairs\",WorkingP!D70,\"\")","v":""},{"$f":"IF(WorkingP!$B70=\"Building Work and Repairs\",WorkingP!E70,\"\")","v":""},{"$f":"IF(WorkingP!$B70=\"Building Work and Repairs\",WorkingP!F70,\"\")","v":""},{"$f":"IF(WorkingP!$B70=\"Building Work and Repairs\",WorkingP!G70,\"\")","v":""},{"$f":"IF(WorkingP!$B70=\"Building Work and Repairs\",WorkingP!H70,\"\")","v":""},{"$f":"IF(WorkingP!$B70=\"Building Work and Repairs\",WorkingP!I70,\"\")","v":""},{"$f":"IF(WorkingP!$B70=\"Building Work and Repairs\",WorkingP!J70,\"\")","v":""},{"$f":"IF(WorkingP!$B70=\"Building Work and Repairs\",WorkingP!K70,\"\")","v":""},{"$f":"IF(WorkingP!$B70=\"Building Work and Repairs\",WorkingP!L70,\"\")","v":""},{"$f":"IF(WorkingP!$B70=\"Building Work and Repairs\",WorkingP!M70,\"\")","v":""},{"$f":"IF(WorkingP!$B70=\"Building Work and Repairs\",WorkingP!N70,\"\")","v":""},{"$f":"IF(WorkingP!$B70=\"Building Work and Repairs\",WorkingP!O70,\"\")","v":""},{"$f":"IF(WorkingP!$B70=\"Building Work and Repairs\",WorkingP!P70,\"\")","v":""},{"$f":"IF(WorkingP!$B70=\"Building Work and Repairs\",WorkingP!Q70,\"\")","v":""},{"$f":"IF(WorkingP!$B70=\"Building Work and Repairs\",WorkingP!R70,\"\")","v":""},{"$f":"IF(WorkingP!$B70=\"Building Work and Repairs\",WorkingP!S70,\"\")","v":""},{"$f":"IF(WorkingP!$B70=\"Building Work and Repairs\",WorkingP!T70,\"\")","v":""},{"$f":"IF(WorkingP!$B70=\"Building Work and Repairs\",WorkingP!U70,\"\")","v":""},{"$f":"IF(WorkingP!$B70=\"Building Work and Repairs\",WorkingP!V70,\"\")","v":""},{"$f":"IF(WorkingP!$B70=\"Building Work and Repairs\",WorkingP!W70,\"\")","v":""},{"$f":"IF(WorkingP!$B70=\"Building Work and Repairs\",WorkingP!X70,\"\")","v":""},{"$f":"IF(WorkingP!$B70=\"Building Work and Repairs\",WorkingP!Y70,\"\")","v":""},{"$f":"IF(Descriptions!K71=\"Building Work and Repairs\",Descriptions!AB71,0)","v":0}]
[{"$f":"IF(Descriptions!K72=\"Building Work and Repairs\",Descriptions!I72,0)","v":0},{"$f":"IF(WorkingP!$B71=\"Building Work and Repairs\",WorkingP!D71,\"\")","v":""},{"$f":"IF(WorkingP!$B71=\"Building Work and Repairs\",WorkingP!E71,\"\")","v":""},{"$f":"IF(WorkingP!$B71=\"Building Work and Repairs\",WorkingP!F71,\"\")","v":""},{"$f":"IF(WorkingP!$B71=\"Building Work and Repairs\",WorkingP!G71,\"\")","v":""},{"$f":"IF(WorkingP!$B71=\"Building Work and Repairs\",WorkingP!H71,\"\")","v":""},{"$f":"IF(WorkingP!$B71=\"Building Work and Repairs\",WorkingP!I71,\"\")","v":""},{"$f":"IF(WorkingP!$B71=\"Building Work and Repairs\",WorkingP!J71,\"\")","v":""},{"$f":"IF(WorkingP!$B71=\"Building Work and Repairs\",WorkingP!K71,\"\")","v":""},{"$f":"IF(WorkingP!$B71=\"Building Work and Repairs\",WorkingP!L71,\"\")","v":""},{"$f":"IF(WorkingP!$B71=\"Building Work and Repairs\",WorkingP!M71,\"\")","v":""},{"$f":"IF(WorkingP!$B71=\"Building Work and Repairs\",WorkingP!N71,\"\")","v":""},{"$f":"IF(WorkingP!$B71=\"Building Work and Repairs\",WorkingP!O71,\"\")","v":""},{"$f":"IF(WorkingP!$B71=\"Building Work and Repairs\",WorkingP!P71,\"\")","v":""},{"$f":"IF(WorkingP!$B71=\"Building Work and Repairs\",WorkingP!Q71,\"\")","v":""},{"$f":"IF(WorkingP!$B71=\"Building Work and Repairs\",WorkingP!R71,\"\")","v":""},{"$f":"IF(WorkingP!$B71=\"Building Work and Repairs\",WorkingP!S71,\"\")","v":""},{"$f":"IF(WorkingP!$B71=\"Building Work and Repairs\",WorkingP!T71,\"\")","v":""},{"$f":"IF(WorkingP!$B71=\"Building Work and Repairs\",WorkingP!U71,\"\")","v":""},{"$f":"IF(WorkingP!$B71=\"Building Work and Repairs\",WorkingP!V71,\"\")","v":""},{"$f":"IF(WorkingP!$B71=\"Building Work and Repairs\",WorkingP!W71,\"\")","v":""},{"$f":"IF(WorkingP!$B71=\"Building Work and Repairs\",WorkingP!X71,\"\")","v":""},{"$f":"IF(WorkingP!$B71=\"Building Work and Repairs\",WorkingP!Y71,\"\")","v":""},{"$f":"IF(Descriptions!K72=\"Building Work and Repairs\",Descriptions!AB72,0)","v":0}]
[{"$f":"IF(Descriptions!K73=\"Building Work and Repairs\",Descriptions!I73,0)","v":0},{"$f":"IF(WorkingP!$B72=\"Building Work and Repairs\",WorkingP!D72,\"\")","v":""},{"$f":"IF(WorkingP!$B72=\"Building Work and Repairs\",WorkingP!E72,\"\")","v":""},{"$f":"IF(WorkingP!$B72=\"Building Work and Repairs\",WorkingP!F72,\"\")","v":""},{"$f":"IF(WorkingP!$B72=\"Building Work and Repairs\",WorkingP!G72,\"\")","v":""},{"$f":"IF(WorkingP!$B72=\"Building Work and Repairs\",WorkingP!H72,\"\")","v":""},{"$f":"IF(WorkingP!$B72=\"Building Work and Repairs\",WorkingP!I72,\"\")","v":""},{"$f":"IF(WorkingP!$B72=\"Building Work and Repairs\",WorkingP!J72,\"\")","v":""},{"$f":"IF(WorkingP!$B72=\"Building Work and Repairs\",WorkingP!K72,\"\")","v":""},{"$f":"IF(WorkingP!$B72=\"Building Work and Repairs\",WorkingP!L72,\"\")","v":""},{"$f":"IF(WorkingP!$B72=\"Building Work and Repairs\",WorkingP!M72,\"\")","v":""},{"$f":"IF(WorkingP!$B72=\"Building Work and Repairs\",WorkingP!N72,\"\")","v":""},{"$f":"IF(WorkingP!$B72=\"Building Work and Repairs\",WorkingP!O72,\"\")","v":""},{"$f":"IF(WorkingP!$B72=\"Building Work and Repairs\",WorkingP!P72,\"\")","v":""},{"$f":"IF(WorkingP!$B72=\"Building Work and Repairs\",WorkingP!Q72,\"\")","v":""},{"$f":"IF(WorkingP!$B72=\"Building Work and Repairs\",WorkingP!R72,\"\")","v":""},{"$f":"IF(WorkingP!$B72=\"Building Work and Repairs\",WorkingP!S72,\"\")","v":""},{"$f":"IF(WorkingP!$B72=\"Building Work and Repairs\",WorkingP!T72,\"\")","v":""},{"$f":"IF(WorkingP!$B72=\"Building Work and Repairs\",WorkingP!U72,\"\")","v":""},{"$f":"IF(WorkingP!$B72=\"Building Work and Repairs\",WorkingP!V72,\"\")","v":""},{"$f":"IF(WorkingP!$B72=\"Building Work and Repairs\",WorkingP!W72,\"\")","v":""},{"$f":"IF(WorkingP!$B72=\"Building Work and Repairs\",WorkingP!X72,\"\")","v":""},{"$f":"IF(WorkingP!$B72=\"Building Work and Repairs\",WorkingP!Y72,\"\")","v":""},{"$f":"IF(Descriptions!K73=\"Building Work and Repairs\",Descriptions!AB73,0)","v":0}]
[{"$f":"IF(Descriptions!K74=\"Building Work and Repairs\",Descriptions!I74,0)","v":0},{"$f":"IF(WorkingP!$B73=\"Building Work and Repairs\",WorkingP!D73,\"\")","v":""},{"$f":"IF(WorkingP!$B73=\"Building Work and Repairs\",WorkingP!E73,\"\")","v":""},{"$f":"IF(WorkingP!$B73=\"Building Work and Repairs\",WorkingP!F73,\"\")","v":""},{"$f":"IF(WorkingP!$B73=\"Building Work and Repairs\",WorkingP!G73,\"\")","v":""},{"$f":"IF(WorkingP!$B73=\"Building Work and Repairs\",WorkingP!H73,\"\")","v":""},{"$f":"IF(WorkingP!$B73=\"Building Work and Repairs\",WorkingP!I73,\"\")","v":""},{"$f":"IF(WorkingP!$B73=\"Building Work and Repairs\",WorkingP!J73,\"\")","v":""},{"$f":"IF(WorkingP!$B73=\"Building Work and Repairs\",WorkingP!K73,\"\")","v":""},{"$f":"IF(WorkingP!$B73=\"Building Work and Repairs\",WorkingP!L73,\"\")","v":""},{"$f":"IF(WorkingP!$B73=\"Building Work and Repairs\",WorkingP!M73,\"\")","v":""},{"$f":"IF(WorkingP!$B73=\"Building Work and Repairs\",WorkingP!N73,\"\")","v":""},{"$f":"IF(WorkingP!$B73=\"Building Work and Repairs\",WorkingP!O73,\"\")","v":""},{"$f":"IF(WorkingP!$B73=\"Building Work and Repairs\",WorkingP!P73,\"\")","v":""},{"$f":"IF(WorkingP!$B73=\"Building Work and Repairs\",WorkingP!Q73,\"\")","v":""},{"$f":"IF(WorkingP!$B73=\"Building Work and Repairs\",WorkingP!R73,\"\")","v":""},{"$f":"IF(WorkingP!$B73=\"Building Work and Repairs\",WorkingP!S73,\"\")","v":""},{"$f":"IF(WorkingP!$B73=\"Building Work and Repairs\",WorkingP!T73,\"\")","v":""},{"$f":"IF(WorkingP!$B73=\"Building Work and Repairs\",WorkingP!U73,\"\")","v":""},{"$f":"IF(WorkingP!$B73=\"Building Work and Repairs\",WorkingP!V73,\"\")","v":""},{"$f":"IF(WorkingP!$B73=\"Building Work and Repairs\",WorkingP!W73,\"\")","v":""},{"$f":"IF(WorkingP!$B73=\"Building Work and Repairs\",WorkingP!X73,\"\")","v":""},{"$f":"IF(WorkingP!$B73=\"Building Work and Repairs\",WorkingP!Y73,\"\")","v":""},{"$f":"IF(Descriptions!K74=\"Building Work and Repairs\",Descriptions!AB74,0)","v":0}]
[{"$f":"IF(Descriptions!K75=\"Building Work and Repairs\",Descriptions!I75,0)","v":0},{"$f":"IF(WorkingP!$B74=\"Building Work and Repairs\",WorkingP!D74,\"\")","v":""},{"$f":"IF(WorkingP!$B74=\"Building Work and Repairs\",WorkingP!E74,\"\")","v":""},{"$f":"IF(WorkingP!$B74=\"Building Work and Repairs\",WorkingP!F74,\"\")","v":""},{"$f":"IF(WorkingP!$B74=\"Building Work and Repairs\",WorkingP!G74,\"\")","v":""},{"$f":"IF(WorkingP!$B74=\"Building Work and Repairs\",WorkingP!H74,\"\")","v":""},{"$f":"IF(WorkingP!$B74=\"Building Work and Repairs\",WorkingP!I74,\"\")","v":""},{"$f":"IF(WorkingP!$B74=\"Building Work and Repairs\",WorkingP!J74,\"\")","v":""},{"$f":"IF(WorkingP!$B74=\"Building Work and Repairs\",WorkingP!K74,\"\")","v":""},{"$f":"IF(WorkingP!$B74=\"Building Work and Repairs\",WorkingP!L74,\"\")","v":""},{"$f":"IF(WorkingP!$B74=\"Building Work and Repairs\",WorkingP!M74,\"\")","v":""},{"$f":"IF(WorkingP!$B74=\"Building Work and Repairs\",WorkingP!N74,\"\")","v":""},{"$f":"IF(WorkingP!$B74=\"Building Work and Repairs\",WorkingP!O74,\"\")","v":""},{"$f":"IF(WorkingP!$B74=\"Building Work and Repairs\",WorkingP!P74,\"\")","v":""},{"$f":"IF(WorkingP!$B74=\"Building Work and Repairs\",WorkingP!Q74,\"\")","v":""},{"$f":"IF(WorkingP!$B74=\"Building Work and Repairs\",WorkingP!R74,\"\")","v":""},{"$f":"IF(WorkingP!$B74=\"Building Work and Repairs\",WorkingP!S74,\"\")","v":""},{"$f":"IF(WorkingP!$B74=\"Building Work and Repairs\",WorkingP!T74,\"\")","v":""},{"$f":"IF(WorkingP!$B74=\"Building Work and Repairs\",WorkingP!U74,\"\")","v":""},{"$f":"IF(WorkingP!$B74=\"Building Work and Repairs\",WorkingP!V74,\"\")","v":""},{"$f":"IF(WorkingP!$B74=\"Building Work and Repairs\",WorkingP!W74,\"\")","v":""},{"$f":"IF(WorkingP!$B74=\"Building Work and Repairs\",WorkingP!X74,\"\")","v":""},{"$f":"IF(WorkingP!$B74=\"Building Work and Repairs\",WorkingP!Y74,\"\")","v":""},{"$f":"IF(Descriptions!K75=\"Building Work and Repairs\",Descriptions!AB75,0)","v":0}]
[{"$f":"IF(Descriptions!K76=\"Building Work and Repairs\",Descriptions!I76,0)","v":0},{"$f":"IF(WorkingP!$B75=\"Building Work and Repairs\",WorkingP!D75,\"\")","v":""},{"$f":"IF(WorkingP!$B75=\"Building Work and Repairs\",WorkingP!E75,\"\")","v":""},{"$f":"IF(WorkingP!$B75=\"Building Work and Repairs\",WorkingP!F75,\"\")","v":""},{"$f":"IF(WorkingP!$B75=\"Building Work and Repairs\",WorkingP!G75,\"\")","v":""},{"$f":"IF(WorkingP!$B75=\"Building Work and Repairs\",WorkingP!H75,\"\")","v":""},{"$f":"IF(WorkingP!$B75=\"Building Work and Repairs\",WorkingP!I75,\"\")","v":""},{"$f":"IF(WorkingP!$B75=\"Building Work and Repairs\",WorkingP!J75,\"\")","v":""},{"$f":"IF(WorkingP!$B75=\"Building Work and Repairs\",WorkingP!K75,\"\")","v":""},{"$f":"IF(WorkingP!$B75=\"Building Work and Repairs\",WorkingP!L75,\"\")","v":""},{"$f":"IF(WorkingP!$B75=\"Building Work and Repairs\",WorkingP!M75,\"\")","v":""},{"$f":"IF(WorkingP!$B75=\"Building Work and Repairs\",WorkingP!N75,\"\")","v":""},{"$f":"IF(WorkingP!$B75=\"Building Work and Repairs\",WorkingP!O75,\"\")","v":""},{"$f":"IF(WorkingP!$B75=\"Building Work and Repairs\",WorkingP!P75,\"\")","v":""},{"$f":"IF(WorkingP!$B75=\"Building Work and Repairs\",WorkingP!Q75,\"\")","v":""},{"$f":"IF(WorkingP!$B75=\"Building Work and Repairs\",WorkingP!R75,\"\")","v":""},{"$f":"IF(WorkingP!$B75=\"Building Work and Repairs\",WorkingP!S75,\"\")","v":""},{"$f":"IF(WorkingP!$B75=\"Building Work and Repairs\",WorkingP!T75,\"\")","v":""},{"$f":"IF(WorkingP!$B75=\"Building Work and Repairs\",WorkingP!U75,\"\")","v":""},{"$f":"IF(WorkingP!$B75=\"Building Work and Repairs\",WorkingP!V75,\"\")","v":""},{"$f":"IF(WorkingP!$B75=\"Building Work and Repairs\",WorkingP!W75,\"\")","v":""},{"$f":"IF(WorkingP!$B75=\"Building Work and Repairs\",WorkingP!X75,\"\")","v":""},{"$f":"IF(WorkingP!$B75=\"Building Work and Repairs\",WorkingP!Y75,\"\")","v":""},{"$f":"IF(Descriptions!K76=\"Building Work and Repairs\",Descriptions!AB76,0)","v":0}]
[{"$f":"IF(Descriptions!K77=\"Building Work and Repairs\",Descriptions!I77,0)","v":0},{"$f":"IF(WorkingP!$B76=\"Building Work and Repairs\",WorkingP!D76,\"\")","v":""},{"$f":"IF(WorkingP!$B76=\"Building Work and Repairs\",WorkingP!E76,\"\")","v":""},{"$f":"IF(WorkingP!$B76=\"Building Work and Repairs\",WorkingP!F76,\"\")","v":""},{"$f":"IF(WorkingP!$B76=\"Building Work and Repairs\",WorkingP!G76,\"\")","v":""},{"$f":"IF(WorkingP!$B76=\"Building Work and Repairs\",WorkingP!H76,\"\")","v":""},{"$f":"IF(WorkingP!$B76=\"Building Work and Repairs\",WorkingP!I76,\"\")","v":""},{"$f":"IF(WorkingP!$B76=\"Building Work and Repairs\",WorkingP!J76,\"\")","v":""},{"$f":"IF(WorkingP!$B76=\"Building Work and Repairs\",WorkingP!K76,\"\")","v":""},{"$f":"IF(WorkingP!$B76=\"Building Work and Repairs\",WorkingP!L76,\"\")","v":""},{"$f":"IF(WorkingP!$B76=\"Building Work and Repairs\",WorkingP!M76,\"\")","v":""},{"$f":"IF(WorkingP!$B76=\"Building Work and Repairs\",WorkingP!N76,\"\")","v":""},{"$f":"IF(WorkingP!$B76=\"Building Work and Repairs\",WorkingP!O76,\"\")","v":""},{"$f":"IF(WorkingP!$B76=\"Building Work and Repairs\",WorkingP!P76,\"\")","v":""},{"$f":"IF(WorkingP!$B76=\"Building Work and Repairs\",WorkingP!Q76,\"\")","v":""},{"$f":"IF(WorkingP!$B76=\"Building Work and Repairs\",WorkingP!R76,\"\")","v":""},{"$f":"IF(WorkingP!$B76=\"Building Work and Repairs\",WorkingP!S76,\"\")","v":""},{"$f":"IF(WorkingP!$B76=\"Building Work and Repairs\",WorkingP!T76,\"\")","v":""},{"$f":"IF(WorkingP!$B76=\"Building Work and Repairs\",WorkingP!U76,\"\")","v":""},{"$f":"IF(WorkingP!$B76=\"Building Work and Repairs\",WorkingP!V76,\"\")","v":""},{"$f":"IF(WorkingP!$B76=\"Building Work and Repairs\",WorkingP!W76,\"\")","v":""},{"$f":"IF(WorkingP!$B76=\"Building Work and Repairs\",WorkingP!X76,\"\")","v":""},{"$f":"IF(WorkingP!$B76=\"Building Work and Repairs\",WorkingP!Y76,\"\")","v":""},{"$f":"IF(Descriptions!K77=\"Building Work and Repairs\",Descriptions!AB77,0)","v":0}]
[{"$f":"IF(Descriptions!K78=\"Building Work and Repairs\",Descriptions!I78,0)","v":0},{"$f":"IF(WorkingP!$B77=\"Building Work and Repairs\",WorkingP!D77,\"\")","v":""},{"$f":"IF(WorkingP!$B77=\"Building Work and Repairs\",WorkingP!E77,\"\")","v":""},{"$f":"IF(WorkingP!$B77=\"Building Work and Repairs\",WorkingP!F77,\"\")","v":""},{"$f":"IF(WorkingP!$B77=\"Building Work and Repairs\",WorkingP!G77,\"\")","v":""},{"$f":"IF(WorkingP!$B77=\"Building Work and Repairs\",WorkingP!H77,\"\")","v":""},{"$f":"IF(WorkingP!$B77=\"Building Work and Repairs\",WorkingP!I77,\"\")","v":""},{"$f":"IF(WorkingP!$B77=\"Building Work and Repairs\",WorkingP!J77,\"\")","v":""},{"$f":"IF(WorkingP!$B77=\"Building Work and Repairs\",WorkingP!K77,\"\")","v":""},{"$f":"IF(WorkingP!$B77=\"Building Work and Repairs\",WorkingP!L77,\"\")","v":""},{"$f":"IF(WorkingP!$B77=\"Building Work and Repairs\",WorkingP!M77,\"\")","v":""},{"$f":"IF(WorkingP!$B77=\"Building Work and Repairs\",WorkingP!N77,\"\")","v":""},{"$f":"IF(WorkingP!$B77=\"Building Work and Repairs\",WorkingP!O77,\"\")","v":""},{"$f":"IF(WorkingP!$B77=\"Building Work and Repairs\",WorkingP!P77,\"\")","v":""},{"$f":"IF(WorkingP!$B77=\"Building Work and Repairs\",WorkingP!Q77,\"\")","v":""},{"$f":"IF(WorkingP!$B77=\"Building Work and Repairs\",WorkingP!R77,\"\")","v":""},{"$f":"IF(WorkingP!$B77=\"Building Work and Repairs\",WorkingP!S77,\"\")","v":""},{"$f":"IF(WorkingP!$B77=\"Building Work and Repairs\",WorkingP!T77,\"\")","v":""},{"$f":"IF(WorkingP!$B77=\"Building Work and Repairs\",WorkingP!U77,\"\")","v":""},{"$f":"IF(WorkingP!$B77=\"Building Work and Repairs\",WorkingP!V77,\"\")","v":""},{"$f":"IF(WorkingP!$B77=\"Building Work and Repairs\",WorkingP!W77,\"\")","v":""},{"$f":"IF(WorkingP!$B77=\"Building Work and Repairs\",WorkingP!X77,\"\")","v":""},{"$f":"IF(WorkingP!$B77=\"Building Work and Repairs\",WorkingP!Y77,\"\")","v":""},{"$f":"IF(Descriptions!K78=\"Building Work and Repairs\",Descriptions!AB78,0)","v":0}]
[{"$f":"IF(Descriptions!K79=\"Building Work and Repairs\",Descriptions!I79,0)","v":0},{"$f":"IF(WorkingP!$B78=\"Building Work and Repairs\",WorkingP!D78,\"\")","v":""},{"$f":"IF(WorkingP!$B78=\"Building Work and Repairs\",WorkingP!E78,\"\")","v":""},{"$f":"IF(WorkingP!$B78=\"Building Work and Repairs\",WorkingP!F78,\"\")","v":""},{"$f":"IF(WorkingP!$B78=\"Building Work and Repairs\",WorkingP!G78,\"\")","v":""},{"$f":"IF(WorkingP!$B78=\"Building Work and Repairs\",WorkingP!H78,\"\")","v":""},{"$f":"IF(WorkingP!$B78=\"Building Work and Repairs\",WorkingP!I78,\"\")","v":""},{"$f":"IF(WorkingP!$B78=\"Building Work and Repairs\",WorkingP!J78,\"\")","v":""},{"$f":"IF(WorkingP!$B78=\"Building Work and Repairs\",WorkingP!K78,\"\")","v":""},{"$f":"IF(WorkingP!$B78=\"Building Work and Repairs\",WorkingP!L78,\"\")","v":""},{"$f":"IF(WorkingP!$B78=\"Building Work and Repairs\",WorkingP!M78,\"\")","v":""},{"$f":"IF(WorkingP!$B78=\"Building Work and Repairs\",WorkingP!N78,\"\")","v":""},{"$f":"IF(WorkingP!$B78=\"Building Work and Repairs\",WorkingP!O78,\"\")","v":""},{"$f":"IF(WorkingP!$B78=\"Building Work and Repairs\",WorkingP!P78,\"\")","v":""},{"$f":"IF(WorkingP!$B78=\"Building Work and Repairs\",WorkingP!Q78,\"\")","v":""},{"$f":"IF(WorkingP!$B78=\"Building Work and Repairs\",WorkingP!R78,\"\")","v":""},{"$f":"IF(WorkingP!$B78=\"Building Work and Repairs\",WorkingP!S78,\"\")","v":""},{"$f":"IF(WorkingP!$B78=\"Building Work and Repairs\",WorkingP!T78,\"\")","v":""},{"$f":"IF(WorkingP!$B78=\"Building Work and Repairs\",WorkingP!U78,\"\")","v":""},{"$f":"IF(WorkingP!$B78=\"Building Work and Repairs\",WorkingP!V78,\"\")","v":""},{"$f":"IF(WorkingP!$B78=\"Building Work and Repairs\",WorkingP!W78,\"\")","v":""},{"$f":"IF(WorkingP!$B78=\"Building Work and Repairs\",WorkingP!X78,\"\")","v":""},{"$f":"IF(WorkingP!$B78=\"Building Work and Repairs\",WorkingP!Y78,\"\")","v":""},{"$f":"IF(Descriptions!K79=\"Building Work and Repairs\",Descriptions!AB79,0)","v":0}]
[{"$f":"IF(Descriptions!K80=\"Building Work and Repairs\",Descriptions!I80,0)","v":0},{"$f":"IF(WorkingP!$B79=\"Building Work and Repairs\",WorkingP!D79,\"\")","v":""},{"$f":"IF(WorkingP!$B79=\"Building Work and Repairs\",WorkingP!E79,\"\")","v":""},{"$f":"IF(WorkingP!$B79=\"Building Work and Repairs\",WorkingP!F79,\"\")","v":""},{"$f":"IF(WorkingP!$B79=\"Building Work and Repairs\",WorkingP!G79,\"\")","v":""},{"$f":"IF(WorkingP!$B79=\"Building Work and Repairs\",WorkingP!H79,\"\")","v":""},{"$f":"IF(WorkingP!$B79=\"Building Work and Repairs\",WorkingP!I79,\"\")","v":""},{"$f":"IF(WorkingP!$B79=\"Building Work and Repairs\",WorkingP!J79,\"\")","v":""},{"$f":"IF(WorkingP!$B79=\"Building Work and Repairs\",WorkingP!K79,\"\")","v":""},{"$f":"IF(WorkingP!$B79=\"Building Work and Repairs\",WorkingP!L79,\"\")","v":""},{"$f":"IF(WorkingP!$B79=\"Building Work and Repairs\",WorkingP!M79,\"\")","v":""},{"$f":"IF(WorkingP!$B79=\"Building Work and Repairs\",WorkingP!N79,\"\")","v":""},{"$f":"IF(WorkingP!$B79=\"Building Work and Repairs\",WorkingP!O79,\"\")","v":""},{"$f":"IF(WorkingP!$B79=\"Building Work and Repairs\",WorkingP!P79,\"\")","v":""},{"$f":"IF(WorkingP!$B79=\"Building Work and Repairs\",WorkingP!Q79,\"\")","v":""},{"$f":"IF(WorkingP!$B79=\"Building Work and Repairs\",WorkingP!R79,\"\")","v":""},{"$f":"IF(WorkingP!$B79=\"Building Work and Repairs\",WorkingP!S79,\"\")","v":""},{"$f":"IF(WorkingP!$B79=\"Building Work and Repairs\",WorkingP!T79,\"\")","v":""},{"$f":"IF(WorkingP!$B79=\"Building Work and Repairs\",WorkingP!U79,\"\")","v":""},{"$f":"IF(WorkingP!$B79=\"Building Work and Repairs\",WorkingP!V79,\"\")","v":""},{"$f":"IF(WorkingP!$B79=\"Building Work and Repairs\",WorkingP!W79,\"\")","v":""},{"$f":"IF(WorkingP!$B79=\"Building Work and Repairs\",WorkingP!X79,\"\")","v":""},{"$f":"IF(WorkingP!$B79=\"Building Work and Repairs\",WorkingP!Y79,\"\")","v":""},{"$f":"IF(Descriptions!K80=\"Building Work and Repairs\",Descriptions!AB80,0)","v":0}]
[{"$f":"IF(Descriptions!K81=\"Building Work and Repairs\",Descriptions!I81,0)","v":0},{"$f":"IF(WorkingP!$B80=\"Building Work and Repairs\",WorkingP!D80,\"\")","v":""},{"$f":"IF(WorkingP!$B80=\"Building Work and Repairs\",WorkingP!E80,\"\")","v":""},{"$f":"IF(WorkingP!$B80=\"Building Work and Repairs\",WorkingP!F80,\"\")","v":""},{"$f":"IF(WorkingP!$B80=\"Building Work and Repairs\",WorkingP!G80,\"\")","v":""},{"$f":"IF(WorkingP!$B80=\"Building Work and Repairs\",WorkingP!H80,\"\")","v":""},{"$f":"IF(WorkingP!$B80=\"Building Work and Repairs\",WorkingP!I80,\"\")","v":""},{"$f":"IF(WorkingP!$B80=\"Building Work and Repairs\",WorkingP!J80,\"\")","v":""},{"$f":"IF(WorkingP!$B80=\"Building Work and Repairs\",WorkingP!K80,\"\")","v":""},{"$f":"IF(WorkingP!$B80=\"Building Work and Repairs\",WorkingP!L80,\"\")","v":""},{"$f":"IF(WorkingP!$B80=\"Building Work and Repairs\",WorkingP!M80,\"\")","v":""},{"$f":"IF(WorkingP!$B80=\"Building Work and Repairs\",WorkingP!N80,\"\")","v":""},{"$f":"IF(WorkingP!$B80=\"Building Work and Repairs\",WorkingP!O80,\"\")","v":""},{"$f":"IF(WorkingP!$B80=\"Building Work and Repairs\",WorkingP!P80,\"\")","v":""},{"$f":"IF(WorkingP!$B80=\"Building Work and Repairs\",WorkingP!Q80,\"\")","v":""},{"$f":"IF(WorkingP!$B80=\"Building Work and Repairs\",WorkingP!R80,\"\")","v":""},{"$f":"IF(WorkingP!$B80=\"Building Work and Repairs\",WorkingP!S80,\"\")","v":""},{"$f":"IF(WorkingP!$B80=\"Building Work and Repairs\",WorkingP!T80,\"\")","v":""},{"$f":"IF(WorkingP!$B80=\"Building Work and Repairs\",WorkingP!U80,\"\")","v":""},{"$f":"IF(WorkingP!$B80=\"Building Work and Repairs\",WorkingP!V80,\"\")","v":""},{"$f":"IF(WorkingP!$B80=\"Building Work and Repairs\",WorkingP!W80,\"\")","v":""},{"$f":"IF(WorkingP!$B80=\"Building Work and Repairs\",WorkingP!X80,\"\")","v":""},{"$f":"IF(WorkingP!$B80=\"Building Work and Repairs\",WorkingP!Y80,\"\")","v":""},{"$f":"IF(Descriptions!K81=\"Building Work and Repairs\",Descriptions!AB81,0)","v":0}]
[{"$f":"IF(Descriptions!K82=\"Building Work and Repairs\",Descriptions!I82,0)","v":0},{"$f":"IF(WorkingP!$B81=\"Building Work and Repairs\",WorkingP!D81,\"\")","v":""},{"$f":"IF(WorkingP!$B81=\"Building Work and Repairs\",WorkingP!E81,\"\")","v":""},{"$f":"IF(WorkingP!$B81=\"Building Work and Repairs\",WorkingP!F81,\"\")","v":""},{"$f":"IF(WorkingP!$B81=\"Building Work and Repairs\",WorkingP!G81,\"\")","v":""},{"$f":"IF(WorkingP!$B81=\"Building Work and Repairs\",WorkingP!H81,\"\")","v":""},{"$f":"IF(WorkingP!$B81=\"Building Work and Repairs\",WorkingP!I81,\"\")","v":""},{"$f":"IF(WorkingP!$B81=\"Building Work and Repairs\",WorkingP!J81,\"\")","v":""},{"$f":"IF(WorkingP!$B81=\"Building Work and Repairs\",WorkingP!K81,\"\")","v":""},{"$f":"IF(WorkingP!$B81=\"Building Work and Repairs\",WorkingP!L81,\"\")","v":""},{"$f":"IF(WorkingP!$B81=\"Building Work and Repairs\",WorkingP!M81,\"\")","v":""},{"$f":"IF(WorkingP!$B81=\"Building Work and Repairs\",WorkingP!N81,\"\")","v":""},{"$f":"IF(WorkingP!$B81=\"Building Work and Repairs\",WorkingP!O81,\"\")","v":""},{"$f":"IF(WorkingP!$B81=\"Building Work and Repairs\",WorkingP!P81,\"\")","v":""},{"$f":"IF(WorkingP!$B81=\"Building Work and Repairs\",WorkingP!Q81,\"\")","v":""},{"$f":"IF(WorkingP!$B81=\"Building Work and Repairs\",WorkingP!R81,\"\")","v":""},{"$f":"IF(WorkingP!$B81=\"Building Work and Repairs\",WorkingP!S81,\"\")","v":""},{"$f":"IF(WorkingP!$B81=\"Building Work and Repairs\",WorkingP!T81,\"\")","v":""},{"$f":"IF(WorkingP!$B81=\"Building Work and Repairs\",WorkingP!U81,\"\")","v":""},{"$f":"IF(WorkingP!$B81=\"Building Work and Repairs\",WorkingP!V81,\"\")","v":""},{"$f":"IF(WorkingP!$B81=\"Building Work and Repairs\",WorkingP!W81,\"\")","v":""},{"$f":"IF(WorkingP!$B81=\"Building Work and Repairs\",WorkingP!X81,\"\")","v":""},{"$f":"IF(WorkingP!$B81=\"Building Work and Repairs\",WorkingP!Y81,\"\")","v":""},{"$f":"IF(Descriptions!K82=\"Building Work and Repairs\",Descriptions!AB82,0)","v":0}]
[{"$f":"IF(Descriptions!K83=\"Building Work and Repairs\",Descriptions!I83,0)","v":0},{"$f":"IF(WorkingP!$B82=\"Building Work and Repairs\",WorkingP!D82,\"\")","v":""},{"$f":"IF(WorkingP!$B82=\"Building Work and Repairs\",WorkingP!E82,\"\")","v":""},{"$f":"IF(WorkingP!$B82=\"Building Work and Repairs\",WorkingP!F82,\"\")","v":""},{"$f":"IF(WorkingP!$B82=\"Building Work and Repairs\",WorkingP!G82,\"\")","v":""},{"$f":"IF(WorkingP!$B82=\"Building Work and Repairs\",WorkingP!H82,\"\")","v":""},{"$f":"IF(WorkingP!$B82=\"Building Work and Repairs\",WorkingP!I82,\"\")","v":""},{"$f":"IF(WorkingP!$B82=\"Building Work and Repairs\",WorkingP!J82,\"\")","v":""},{"$f":"IF(WorkingP!$B82=\"Building Work and Repairs\",WorkingP!K82,\"\")","v":""},{"$f":"IF(WorkingP!$B82=\"Building Work and Repairs\",WorkingP!L82,\"\")","v":""},{"$f":"IF(WorkingP!$B82=\"Building Work and Repairs\",WorkingP!M82,\"\")","v":""},{"$f":"IF(WorkingP!$B82=\"Building Work and Repairs\",WorkingP!N82,\"\")","v":""},{"$f":"IF(WorkingP!$B82=\"Building Work and Repairs\",WorkingP!O82,\"\")","v":""},{"$f":"IF(WorkingP!$B82=\"Building Work and Repairs\",WorkingP!P82,\"\")","v":""},{"$f":"IF(WorkingP!$B82=\"Building Work and Repairs\",WorkingP!Q82,\"\")","v":""},{"$f":"IF(WorkingP!$B82=\"Building Work and Repairs\",WorkingP!R82,\"\")","v":""},{"$f":"IF(WorkingP!$B82=\"Building Work and Repairs\",WorkingP!S82,\"\")","v":""},{"$f":"IF(WorkingP!$B82=\"Building Work and Repairs\",WorkingP!T82,\"\")","v":""},{"$f":"IF(WorkingP!$B82=\"Building Work and Repairs\",WorkingP!U82,\"\")","v":""},{"$f":"IF(WorkingP!$B82=\"Building Work and Repairs\",WorkingP!V82,\"\")","v":""},{"$f":"IF(WorkingP!$B82=\"Building Work and Repairs\",WorkingP!W82,\"\")","v":""},{"$f":"IF(WorkingP!$B82=\"Building Work and Repairs\",WorkingP!X82,\"\")","v":""},{"$f":"IF(WorkingP!$B82=\"Building Work and Repairs\",WorkingP!Y82,\"\")","v":""},{"$f":"IF(Descriptions!K83=\"Building Work and Repairs\",Descriptions!AB83,0)","v":0}]
[{"$f":"IF(Descriptions!K84=\"Building Work and Repairs\",Descriptions!I84,0)","v":0},{"$f":"IF(WorkingP!$B83=\"Building Work and Repairs\",WorkingP!D83,\"\")","v":""},{"$f":"IF(WorkingP!$B83=\"Building Work and Repairs\",WorkingP!E83,\"\")","v":""},{"$f":"IF(WorkingP!$B83=\"Building Work and Repairs\",WorkingP!F83,\"\")","v":""},{"$f":"IF(WorkingP!$B83=\"Building Work and Repairs\",WorkingP!G83,\"\")","v":""},{"$f":"IF(WorkingP!$B83=\"Building Work and Repairs\",WorkingP!H83,\"\")","v":""},{"$f":"IF(WorkingP!$B83=\"Building Work and Repairs\",WorkingP!I83,\"\")","v":""},{"$f":"IF(WorkingP!$B83=\"Building Work and Repairs\",WorkingP!J83,\"\")","v":""},{"$f":"IF(WorkingP!$B83=\"Building Work and Repairs\",WorkingP!K83,\"\")","v":""},{"$f":"IF(WorkingP!$B83=\"Building Work and Repairs\",WorkingP!L83,\"\")","v":""},{"$f":"IF(WorkingP!$B83=\"Building Work and Repairs\",WorkingP!M83,\"\")","v":""},{"$f":"IF(WorkingP!$B83=\"Building Work and Repairs\",WorkingP!N83,\"\")","v":""},{"$f":"IF(WorkingP!$B83=\"Building Work and Repairs\",WorkingP!O83,\"\")","v":""},{"$f":"IF(WorkingP!$B83=\"Building Work and Repairs\",WorkingP!P83,\"\")","v":""},{"$f":"IF(WorkingP!$B83=\"Building Work and Repairs\",WorkingP!Q83,\"\")","v":""},{"$f":"IF(WorkingP!$B83=\"Building Work and Repairs\",WorkingP!R83,\"\")","v":""},{"$f":"IF(WorkingP!$B83=\"Building Work and Repairs\",WorkingP!S83,\"\")","v":""},{"$f":"IF(WorkingP!$B83=\"Building Work and Repairs\",WorkingP!T83,\"\")","v":""},{"$f":"IF(WorkingP!$B83=\"Building Work and Repairs\",WorkingP!U83,\"\")","v":""},{"$f":"IF(WorkingP!$B83=\"Building Work and Repairs\",WorkingP!V83,\"\")","v":""},{"$f":"IF(WorkingP!$B83=\"Building Work and Repairs\",WorkingP!W83,\"\")","v":""},{"$f":"IF(WorkingP!$B83=\"Building Work and Repairs\",WorkingP!X83,\"\")","v":""},{"$f":"IF(WorkingP!$B83=\"Building Work and Repairs\",WorkingP!Y83,\"\")","v":""},{"$f":"IF(Descriptions!K84=\"Building Work and Repairs\",Descriptions!AB84,0)","v":0}]
[null,{"$f":"SUM(B791:B843)","v":0},0,0,0,0,0,0,0,0,0,0,0,0,0,0,0,0,0,0,0,0,null,{"$f":"X790","v":0}]
["COSTS OF GENERATING FUNDS",null,null,null,null,null,null,null,null,null,null,null,null,null,null,null,null,null,null,null,null,null,null,{"$f":"SUM(X846:X899)","v":0}]
["Fund Raising",{"$f":"WorkingP!D16","v":0},{"$f":"WorkingP!E16","v":0},{"$f":"WorkingP!F16","v":0},{"$f":"WorkingP!G16","v":0},{"$f":"WorkingP!H16","v":0},{"$f":"WorkingP!I16","v":0},{"$f":"WorkingP!J16","v":0},{"$f":"WorkingP!K16","v":0},{"$f":"WorkingP!L16","v":0},{"$f":"WorkingP!M16","v":0},{"$f":"WorkingP!N16","v":0},{"$f":"WorkingP!O16","v":0},{"$f":"WorkingP!P16","v":0},{"$f":"WorkingP!Q16","v":0},{"$f":"WorkingP!R16","v":0},{"$f":"WorkingP!S16","v":0},{"$f":"WorkingP!T16","v":0},{"$f":"WorkingP!U16","v":0},{"$f":"WorkingP!V16","v":0},{"$f":"WorkingP!W16","v":0},{"$f":"WorkingP!X16","v":0},{"$f":"WorkingP!Y16","v":0},{"$f":"Descriptions!AB17","v":0}]
["Bookstall",{"$f":"WorkingP!D29","v":0},{"$f":"WorkingP!E29","v":0},{"$f":"WorkingP!F29","v":0},{"$f":"WorkingP!G29","v":0},{"$f":"WorkingP!H29","v":0},{"$f":"WorkingP!I29","v":0},{"$f":"WorkingP!J29","v":0},{"$f":"WorkingP!K29","v":0},{"$f":"WorkingP!L29","v":0},{"$f":"WorkingP!M29","v":0},{"$f":"WorkingP!N29","v":0},{"$f":"WorkingP!O29","v":0},{"$f":"WorkingP!P29","v":0},{"$f":"WorkingP!Q29","v":0},{"$f":"WorkingP!R29","v":0},{"$f":"WorkingP!S29","v":0},{"$f":"WorkingP!T29","v":0},{"$f":"WorkingP!U29","v":0},{"$f":"WorkingP!V29","v":0},{"$f":"WorkingP!W29","v":0},{"$f":"WorkingP!X29","v":0},{"$f":"WorkingP!Y29","v":0},{"$f":"Descriptions!AB30","v":0}]
["Magazine",{"$f":"WorkingP!D31","v":0},{"$f":"WorkingP!E31","v":0},{"$f":"WorkingP!F31","v":0},{"$f":"WorkingP!G31","v":0},{"$f":"WorkingP!H31","v":0},{"$f":"WorkingP!I31","v":0},{"$f":"WorkingP!J31","v":0},{"$f":"WorkingP!K31","v":0},{"$f":"WorkingP!L31","v":0},{"$f":"WorkingP!M31","v":0},{"$f":"WorkingP!N31","v":0},{"$f":"WorkingP!O31","v":0},{"$f":"WorkingP!P31","v":0},{"$f":"WorkingP!Q31","v":0},{"$f":"WorkingP!R31","v":0},{"$f":"WorkingP!S31","v":0},{"$f":"WorkingP!T31","v":0},{"$f":"WorkingP!U31","v":0},{"$f":"WorkingP!V31","v":0},{"$f":"WorkingP!W31","v":0},{"$f":"WorkingP!X31","v":0},{"$f":"WorkingP!Y31","v":0},{"$f":"Descriptions!AB32","v":0}]
["Hall Running Costs",{"$f":"WorkingP!D30","v":0},{"$f":"WorkingP!E30","v":0},{"$f":"WorkingP!F30","v":0},{"$f":"WorkingP!G30","v":0},{"$f":"WorkingP!H30","v":0},{"$f":"WorkingP!I30","v":0},{"$f":"WorkingP!J30","v":0},{"$f":"WorkingP!K30","v":0},{"$f":"WorkingP!L30","v":0},{"$f":"WorkingP!M30","v":0},{"$f":"WorkingP!N30","v":0},{"$f":"WorkingP!O30","v":0},{"$f":"WorkingP!P30","v":0},{"$f":"WorkingP!Q30","v":0},{"$f":"WorkingP!R30","v":0},{"$f":"WorkingP!S30","v":0},{"$f":"WorkingP!T30","v":0},{"$f":"WorkingP!U30","v":0},{"$f":"WorkingP!V30","v":0},{"$f":"WorkingP!W30","v":0},{"$f":"WorkingP!X30","v":0},{"$f":"WorkingP!Y30","v":0},{"$f":"Descriptions!AB31","v":0}]
[{"$f":"IF(Descriptions!K35=\"Costs of Generating Funds\",Descriptions!I35,0)","v":0},{"$f":"IF(WorkingP!$B34=\"Cost of Generating Funds\",WorkingP!D34,\"\")","v":""},{"$f":"IF(WorkingP!$B34=\"Cost of Generating Funds\",WorkingP!E34,\"\")","v":""},{"$f":"IF(WorkingP!$B34=\"Cost of Generating Funds\",WorkingP!F34,\"\")","v":""},{"$f":"IF(WorkingP!$B34=\"Cost of Generating Funds\",WorkingP!G34,\"\")","v":""},{"$f":"IF(WorkingP!$B34=\"Cost of Generating Funds\",WorkingP!H34,\"\")","v":""},{"$f":"IF(WorkingP!$B34=\"Cost of Generating Funds\",WorkingP!I34,\"\")","v":""},{"$f":"IF(WorkingP!$B34=\"Cost of Generating Funds\",WorkingP!J34,\"\")","v":""},{"$f":"IF(WorkingP!$B34=\"Cost of Generating Funds\",WorkingP!K34,\"\")","v":""},{"$f":"IF(WorkingP!$B34=\"Cost of Generating Funds\",WorkingP!L34,\"\")","v":""},{"$f":"IF(WorkingP!$B34=\"Cost of Generating Funds\",WorkingP!M34,\"\")","v":""},{"$f":"IF(WorkingP!$B34=\"Cost of Generating Funds\",WorkingP!N34,\"\")","v":""},{"$f":"IF(WorkingP!$B34=\"Cost of Generating Funds\",WorkingP!O34,\"\")","v":""},{"$f":"IF(WorkingP!$B34=\"Cost of Generating Funds\",WorkingP!P34,\"\")","v":""},{"$f":"IF(WorkingP!$B34=\"Cost of Generating Funds\",WorkingP!Q34,\"\")","v":""},{"$f":"IF(WorkingP!$B34=\"Cost of Generating Funds\",WorkingP!R34,\"\")","v":""},{"$f":"IF(WorkingP!$B34=\"Cost of Generating Funds\",WorkingP!S34,\"\")","v":""},{"$f":"IF(WorkingP!$B34=\"Cost of Generating Funds\",WorkingP!T34,\"\")","v":""},{"$f":"IF(WorkingP!$B34=\"Cost of Generating Funds\",WorkingP!U34,\"\")","v":""},{"$f":"IF(WorkingP!$B34=\"Cost of Generating Funds\",WorkingP!V34,\"\")","v":""},{"$f":"IF(WorkingP!$B34=\"Cost of Generating Funds\",WorkingP!W34,\"\")","v":""},{"$f":"IF(WorkingP!$B34=\"Cost of Generating Funds\",WorkingP!X34,\"\")","v":""},{"$f":"IF(WorkingP!$B34=\"Cost of Generating Funds\",WorkingP!Y34,\"\")","v":""},{"$f":"IF(Descriptions!K35=\"Costs of Generating Funds\",Descriptions!AB35,0)","v":0}]
[{"$f":"IF(Descriptions!K36=\"Costs of Generating Funds\",Descriptions!I36,0)","v":0},{"$f":"IF(WorkingP!$B35=\"Cost of Generating Funds\",WorkingP!D35,\"\")","v":""},{"$f":"IF(WorkingP!$B35=\"Cost of Generating Funds\",WorkingP!E35,\"\")","v":""},{"$f":"IF(WorkingP!$B35=\"Cost of Generating Funds\",WorkingP!F35,\"\")","v":""},{"$f":"IF(WorkingP!$B35=\"Cost of Generating Funds\",WorkingP!G35,\"\")","v":""},{"$f":"IF(WorkingP!$B35=\"Cost of Generating Funds\",WorkingP!H35,\"\")","v":""},{"$f":"IF(WorkingP!$B35=\"Cost of Generating Funds\",WorkingP!I35,\"\")","v":""},{"$f":"IF(WorkingP!$B35=\"Cost of Generating Funds\",WorkingP!J35,\"\")","v":""},{"$f":"IF(WorkingP!$B35=\"Cost of Generating Funds\",WorkingP!K35,\"\")","v":""},{"$f":"IF(WorkingP!$B35=\"Cost of Generating Funds\",WorkingP!L35,\"\")","v":""},{"$f":"IF(WorkingP!$B35=\"Cost of Generating Funds\",WorkingP!M35,\"\")","v":""},{"$f":"IF(WorkingP!$B35=\"Cost of Generating Funds\",WorkingP!N35,\"\")","v":""},{"$f":"IF(WorkingP!$B35=\"Cost of Generating Funds\",WorkingP!O35,\"\")","v":""},{"$f":"IF(WorkingP!$B35=\"Cost of Generating Funds\",WorkingP!P35,\"\")","v":""},{"$f":"IF(WorkingP!$B35=\"Cost of Generating Funds\",WorkingP!Q35,\"\")","v":""},{"$f":"IF(WorkingP!$B35=\"Cost of Generating Funds\",WorkingP!R35,\"\")","v":""},{"$f":"IF(WorkingP!$B35=\"Cost of Generating Funds\",WorkingP!S35,\"\")","v":""},{"$f":"IF(WorkingP!$B35=\"Cost of Generating Funds\",WorkingP!T35,\"\")","v":""},{"$f":"IF(WorkingP!$B35=\"Cost of Generating Funds\",WorkingP!U35,\"\")","v":""},{"$f":"IF(WorkingP!$B35=\"Cost of Generating Funds\",WorkingP!V35,\"\")","v":""},{"$f":"IF(WorkingP!$B35=\"Cost of Generating Funds\",WorkingP!W35,\"\")","v":""},{"$f":"IF(WorkingP!$B35=\"Cost of Generating Funds\",WorkingP!X35,\"\")","v":""},{"$f":"IF(WorkingP!$B35=\"Cost of Generating Funds\",WorkingP!Y35,\"\")","v":""},{"$f":"IF(Descriptions!K36=\"Costs of Generating Funds\",Descriptions!AB36,0)","v":0}]
[{"$f":"IF(Descriptions!K37=\"Costs of Generating Funds\",Descriptions!I37,0)","v":0},{"$f":"IF(WorkingP!$B36=\"Cost of Generating Funds\",WorkingP!D36,\"\")","v":""},{"$f":"IF(WorkingP!$B36=\"Cost of Generating Funds\",WorkingP!E36,\"\")","v":""},{"$f":"IF(WorkingP!$B36=\"Cost of Generating Funds\",WorkingP!F36,\"\")","v":""},{"$f":"IF(WorkingP!$B36=\"Cost of Generating Funds\",WorkingP!G36,\"\")","v":""},{"$f":"IF(WorkingP!$B36=\"Cost of Generating Funds\",WorkingP!H36,\"\")","v":""},{"$f":"IF(WorkingP!$B36=\"Cost of Generating Funds\",WorkingP!I36,\"\")","v":""},{"$f":"IF(WorkingP!$B36=\"Cost of Generating Funds\",WorkingP!J36,\"\")","v":""},{"$f":"IF(WorkingP!$B36=\"Cost of Generating Funds\",WorkingP!K36,\"\")","v":""},{"$f":"IF(WorkingP!$B36=\"Cost of Generating Funds\",WorkingP!L36,\"\")","v":""},{"$f":"IF(WorkingP!$B36=\"Cost of Generating Funds\",WorkingP!M36,\"\")","v":""},{"$f":"IF(WorkingP!$B36=\"Cost of Generating Funds\",WorkingP!N36,\"\")","v":""},{"$f":"IF(WorkingP!$B36=\"Cost of Generating Funds\",WorkingP!O36,\"\")","v":""},{"$f":"IF(WorkingP!$B36=\"Cost of Generating Funds\",WorkingP!P36,\"\")","v":""},{"$f":"IF(WorkingP!$B36=\"Cost of Generating Funds\",WorkingP!Q36,\"\")","v":""},{"$f":"IF(WorkingP!$B36=\"Cost of Generating Funds\",WorkingP!R36,\"\")","v":""},{"$f":"IF(WorkingP!$B36=\"Cost of Generating Funds\",WorkingP!S36,\"\")","v":""},{"$f":"IF(WorkingP!$B36=\"Cost of Generating Funds\",WorkingP!T36,\"\")","v":""},{"$f":"IF(WorkingP!$B36=\"Cost of Generating Funds\",WorkingP!U36,\"\")","v":""},{"$f":"IF(WorkingP!$B36=\"Cost of Generating Funds\",WorkingP!V36,\"\")","v":""},{"$f":"IF(WorkingP!$B36=\"Cost of Generating Funds\",WorkingP!W36,\"\")","v":""},{"$f":"IF(WorkingP!$B36=\"Cost of Generating Funds\",WorkingP!X36,\"\")","v":""},{"$f":"IF(WorkingP!$B36=\"Cost of Generating Funds\",WorkingP!Y36,\"\")","v":""},{"$f":"IF(Descriptions!K37=\"Costs of Generating Funds\",Descriptions!AB37,0)","v":0}]
[{"$f":"IF(Descriptions!K38=\"Costs of Generating Funds\",Descriptions!I38,0)","v":0},{"$f":"IF(WorkingP!$B37=\"Cost of Generating Funds\",WorkingP!D37,\"\")","v":""},{"$f":"IF(WorkingP!$B37=\"Cost of Generating Funds\",WorkingP!E37,\"\")","v":""},{"$f":"IF(WorkingP!$B37=\"Cost of Generating Funds\",WorkingP!F37,\"\")","v":""},{"$f":"IF(WorkingP!$B37=\"Cost of Generating Funds\",WorkingP!G37,\"\")","v":""},{"$f":"IF(WorkingP!$B37=\"Cost of Generating Funds\",WorkingP!H37,\"\")","v":""},{"$f":"IF(WorkingP!$B37=\"Cost of Generating Funds\",WorkingP!I37,\"\")","v":""},{"$f":"IF(WorkingP!$B37=\"Cost of Generating Funds\",WorkingP!J37,\"\")","v":""},{"$f":"IF(WorkingP!$B37=\"Cost of Generating Funds\",WorkingP!K37,\"\")","v":""},{"$f":"IF(WorkingP!$B37=\"Cost of Generating Funds\",WorkingP!L37,\"\")","v":""},{"$f":"IF(WorkingP!$B37=\"Cost of Generating Funds\",WorkingP!M37,\"\")","v":""},{"$f":"IF(WorkingP!$B37=\"Cost of Generating Funds\",WorkingP!N37,\"\")","v":""},{"$f":"IF(WorkingP!$B37=\"Cost of Generating Funds\",WorkingP!O37,\"\")","v":""},{"$f":"IF(WorkingP!$B37=\"Cost of Generating Funds\",WorkingP!P37,\"\")","v":""},{"$f":"IF(WorkingP!$B37=\"Cost of Generating Funds\",WorkingP!Q37,\"\")","v":""},{"$f":"IF(WorkingP!$B37=\"Cost of Generating Funds\",WorkingP!R37,\"\")","v":""},{"$f":"IF(WorkingP!$B37=\"Cost of Generating Funds\",WorkingP!S37,\"\")","v":""},{"$f":"IF(WorkingP!$B37=\"Cost of Generating Funds\",WorkingP!T37,\"\")","v":""},{"$f":"IF(WorkingP!$B37=\"Cost of Generating Funds\",WorkingP!U37,\"\")","v":""},{"$f":"IF(WorkingP!$B37=\"Cost of Generating Funds\",WorkingP!V37,\"\")","v":""},{"$f":"IF(WorkingP!$B37=\"Cost of Generating Funds\",WorkingP!W37,\"\")","v":""},{"$f":"IF(WorkingP!$B37=\"Cost of Generating Funds\",WorkingP!X37,\"\")","v":""},{"$f":"IF(WorkingP!$B37=\"Cost of Generating Funds\",WorkingP!Y37,\"\")","v":""},{"$f":"IF(Descriptions!K38=\"Costs of Generating Funds\",Descriptions!AB38,0)","v":0}]
[{"$f":"IF(Descriptions!K39=\"Costs of Generating Funds\",Descriptions!I39,0)","v":0},{"$f":"IF(WorkingP!$B38=\"Cost of Generating Funds\",WorkingP!D38,\"\")","v":""},{"$f":"IF(WorkingP!$B38=\"Cost of Generating Funds\",WorkingP!E38,\"\")","v":""},{"$f":"IF(WorkingP!$B38=\"Cost of Generating Funds\",WorkingP!F38,\"\")","v":""},{"$f":"IF(WorkingP!$B38=\"Cost of Generating Funds\",WorkingP!G38,\"\")","v":""},{"$f":"IF(WorkingP!$B38=\"Cost of Generating Funds\",WorkingP!H38,\"\")","v":""},{"$f":"IF(WorkingP!$B38=\"Cost of Generating Funds\",WorkingP!I38,\"\")","v":""},{"$f":"IF(WorkingP!$B38=\"Cost of Generating Funds\",WorkingP!J38,\"\")","v":""},{"$f":"IF(WorkingP!$B38=\"Cost of Generating Funds\",WorkingP!K38,\"\")","v":""},{"$f":"IF(WorkingP!$B38=\"Cost of Generating Funds\",WorkingP!L38,\"\")","v":""},{"$f":"IF(WorkingP!$B38=\"Cost of Generating Funds\",WorkingP!M38,\"\")","v":""},{"$f":"IF(WorkingP!$B38=\"Cost of Generating Funds\",WorkingP!N38,\"\")","v":""},{"$f":"IF(WorkingP!$B38=\"Cost of Generating Funds\",WorkingP!O38,\"\")","v":""},{"$f":"IF(WorkingP!$B38=\"Cost of Generating Funds\",WorkingP!P38,\"\")","v":""},{"$f":"IF(WorkingP!$B38=\"Cost of Generating Funds\",WorkingP!Q38,\"\")","v":""},{"$f":"IF(WorkingP!$B38=\"Cost of Generating Funds\",WorkingP!R38,\"\")","v":""},{"$f":"IF(WorkingP!$B38=\"Cost of Generating Funds\",WorkingP!S38,\"\")","v":""},{"$f":"IF(WorkingP!$B38=\"Cost of Generating Funds\",WorkingP!T38,\"\")","v":""},{"$f":"IF(WorkingP!$B38=\"Cost of Generating Funds\",WorkingP!U38,\"\")","v":""},{"$f":"IF(WorkingP!$B38=\"Cost of Generating Funds\",WorkingP!V38,\"\")","v":""},{"$f":"IF(WorkingP!$B38=\"Cost of Generating Funds\",WorkingP!W38,\"\")","v":""},{"$f":"IF(WorkingP!$B38=\"Cost of Generating Funds\",WorkingP!X38,\"\")","v":""},{"$f":"IF(WorkingP!$B38=\"Cost of Generating Funds\",WorkingP!Y38,\"\")","v":""},{"$f":"IF(Descriptions!K39=\"Costs of Generating Funds\",Descriptions!AB39,0)","v":0}]
[{"$f":"IF(Descriptions!K40=\"Costs of Generating Funds\",Descriptions!I40,0)","v":0},{"$f":"IF(WorkingP!$B39=\"Cost of Generating Funds\",WorkingP!D39,\"\")","v":""},{"$f":"IF(WorkingP!$B39=\"Cost of Generating Funds\",WorkingP!E39,\"\")","v":""},{"$f":"IF(WorkingP!$B39=\"Cost of Generating Funds\",WorkingP!F39,\"\")","v":""},{"$f":"IF(WorkingP!$B39=\"Cost of Generating Funds\",WorkingP!G39,\"\")","v":""},{"$f":"IF(WorkingP!$B39=\"Cost of Generating Funds\",WorkingP!H39,\"\")","v":""},{"$f":"IF(WorkingP!$B39=\"Cost of Generating Funds\",WorkingP!I39,\"\")","v":""},{"$f":"IF(WorkingP!$B39=\"Cost of Generating Funds\",WorkingP!J39,\"\")","v":""},{"$f":"IF(WorkingP!$B39=\"Cost of Generating Funds\",WorkingP!K39,\"\")","v":""},{"$f":"IF(WorkingP!$B39=\"Cost of Generating Funds\",WorkingP!L39,\"\")","v":""},{"$f":"IF(WorkingP!$B39=\"Cost of Generating Funds\",WorkingP!M39,\"\")","v":""},{"$f":"IF(WorkingP!$B39=\"Cost of Generating Funds\",WorkingP!N39,\"\")","v":""},{"$f":"IF(WorkingP!$B39=\"Cost of Generating Funds\",WorkingP!O39,\"\")","v":""},{"$f":"IF(WorkingP!$B39=\"Cost of Generating Funds\",WorkingP!P39,\"\")","v":""},{"$f":"IF(WorkingP!$B39=\"Cost of Generating Funds\",WorkingP!Q39,\"\")","v":""},{"$f":"IF(WorkingP!$B39=\"Cost of Generating Funds\",WorkingP!R39,\"\")","v":""},{"$f":"IF(WorkingP!$B39=\"Cost of Generating Funds\",WorkingP!S39,\"\")","v":""},{"$f":"IF(WorkingP!$B39=\"Cost of Generating Funds\",WorkingP!T39,\"\")","v":""},{"$f":"IF(WorkingP!$B39=\"Cost of Generating Funds\",WorkingP!U39,\"\")","v":""},{"$f":"IF(WorkingP!$B39=\"Cost of Generating Funds\",WorkingP!V39,\"\")","v":""},{"$f":"IF(WorkingP!$B39=\"Cost of Generating Funds\",WorkingP!W39,\"\")","v":""},{"$f":"IF(WorkingP!$B39=\"Cost of Generating Funds\",WorkingP!X39,\"\")","v":""},{"$f":"IF(WorkingP!$B39=\"Cost of Generating Funds\",WorkingP!Y39,\"\")","v":""},{"$f":"IF(Descriptions!K40=\"Costs of Generating Funds\",Descriptions!AB40,0)","v":0}]
[{"$f":"IF(Descriptions!K41=\"Costs of Generating Funds\",Descriptions!I41,0)","v":0},{"$f":"IF(WorkingP!$B40=\"Cost of Generating Funds\",WorkingP!D40,\"\")","v":""},{"$f":"IF(WorkingP!$B40=\"Cost of Generating Funds\",WorkingP!E40,\"\")","v":""},{"$f":"IF(WorkingP!$B40=\"Cost of Generating Funds\",WorkingP!F40,\"\")","v":""},{"$f":"IF(WorkingP!$B40=\"Cost of Generating Funds\",WorkingP!G40,\"\")","v":""},{"$f":"IF(WorkingP!$B40=\"Cost of Generating Funds\",WorkingP!H40,\"\")","v":""},{"$f":"IF(WorkingP!$B40=\"Cost of Generating Funds\",WorkingP!I40,\"\")","v":""},{"$f":"IF(WorkingP!$B40=\"Cost of Generating Funds\",WorkingP!J40,\"\")","v":""},{"$f":"IF(WorkingP!$B40=\"Cost of Generating Funds\",WorkingP!K40,\"\")","v":""},{"$f":"IF(WorkingP!$B40=\"Cost of Generating Funds\",WorkingP!L40,\"\")","v":""},{"$f":"IF(WorkingP!$B40=\"Cost of Generating Funds\",WorkingP!M40,\"\")","v":""},{"$f":"IF(WorkingP!$B40=\"Cost of Generating Funds\",WorkingP!N40,\"\")","v":""},{"$f":"IF(WorkingP!$B40=\"Cost of Generating Funds\",WorkingP!O40,\"\")","v":""},{"$f":"IF(WorkingP!$B40=\"Cost of Generating Funds\",WorkingP!P40,\"\")","v":""},{"$f":"IF(WorkingP!$B40=\"Cost of Generating Funds\",WorkingP!Q40,\"\")","v":""},{"$f":"IF(WorkingP!$B40=\"Cost of Generating Funds\",WorkingP!R40,\"\")","v":""},{"$f":"IF(WorkingP!$B40=\"Cost of Generating Funds\",WorkingP!S40,\"\")","v":""},{"$f":"IF(WorkingP!$B40=\"Cost of Generating Funds\",WorkingP!T40,\"\")","v":""},{"$f":"IF(WorkingP!$B40=\"Cost of Generating Funds\",WorkingP!U40,\"\")","v":""},{"$f":"IF(WorkingP!$B40=\"Cost of Generating Funds\",WorkingP!V40,\"\")","v":""},{"$f":"IF(WorkingP!$B40=\"Cost of Generating Funds\",WorkingP!W40,\"\")","v":""},{"$f":"IF(WorkingP!$B40=\"Cost of Generating Funds\",WorkingP!X40,\"\")","v":""},{"$f":"IF(WorkingP!$B40=\"Cost of Generating Funds\",WorkingP!Y40,\"\")","v":""},{"$f":"IF(Descriptions!K41=\"Costs of Generating Funds\",Descriptions!AB41,0)","v":0}]
[{"$f":"IF(Descriptions!K42=\"Costs of Generating Funds\",Descriptions!I42,0)","v":0},{"$f":"IF(WorkingP!$B41=\"Cost of Generating Funds\",WorkingP!D41,\"\")","v":""},{"$f":"IF(WorkingP!$B41=\"Cost of Generating Funds\",WorkingP!E41,\"\")","v":""},{"$f":"IF(WorkingP!$B41=\"Cost of Generating Funds\",WorkingP!F41,\"\")","v":""},{"$f":"IF(WorkingP!$B41=\"Cost of Generating Funds\",WorkingP!G41,\"\")","v":""},{"$f":"IF(WorkingP!$B41=\"Cost of Generating Funds\",WorkingP!H41,\"\")","v":""},{"$f":"IF(WorkingP!$B41=\"Cost of Generating Funds\",WorkingP!I41,\"\")","v":""},{"$f":"IF(WorkingP!$B41=\"Cost of Generating Funds\",WorkingP!J41,\"\")","v":""},{"$f":"IF(WorkingP!$B41=\"Cost of Generating Funds\",WorkingP!K41,\"\")","v":""},{"$f":"IF(WorkingP!$B41=\"Cost of Generating Funds\",WorkingP!L41,\"\")","v":""},{"$f":"IF(WorkingP!$B41=\"Cost of Generating Funds\",WorkingP!M41,\"\")","v":""},{"$f":"IF(WorkingP!$B41=\"Cost of Generating Funds\",WorkingP!N41,\"\")","v":""},{"$f":"IF(WorkingP!$B41=\"Cost of Generating Funds\",WorkingP!O41,\"\")","v":""},{"$f":"IF(WorkingP!$B41=\"Cost of Generating Funds\",WorkingP!P41,\"\")","v":""},{"$f":"IF(WorkingP!$B41=\"Cost of Generating Funds\",WorkingP!Q41,\"\")","v":""},{"$f":"IF(WorkingP!$B41=\"Cost of Generating Funds\",WorkingP!R41,\"\")","v":""},{"$f":"IF(WorkingP!$B41=\"Cost of Generating Funds\",WorkingP!S41,\"\")","v":""},{"$f":"IF(WorkingP!$B41=\"Cost of Generating Funds\",WorkingP!T41,\"\")","v":""},{"$f":"IF(WorkingP!$B41=\"Cost of Generating Funds\",WorkingP!U41,\"\")","v":""},{"$f":"IF(WorkingP!$B41=\"Cost of Generating Funds\",WorkingP!V41,\"\")","v":""},{"$f":"IF(WorkingP!$B41=\"Cost of Generating Funds\",WorkingP!W41,\"\")","v":""},{"$f":"IF(WorkingP!$B41=\"Cost of Generating Funds\",WorkingP!X41,\"\")","v":""},{"$f":"IF(WorkingP!$B41=\"Cost of Generating Funds\",WorkingP!Y41,\"\")","v":""},{"$f":"IF(Descriptions!K42=\"Costs of Generating Funds\",Descriptions!AB42,0)","v":0}]
[{"$f":"IF(Descriptions!K43=\"Costs of Generating Funds\",Descriptions!I43,0)","v":0},{"$f":"IF(WorkingP!$B42=\"Cost of Generating Funds\",WorkingP!D42,\"\")","v":""},{"$f":"IF(WorkingP!$B42=\"Cost of Generating Funds\",WorkingP!E42,\"\")","v":""},{"$f":"IF(WorkingP!$B42=\"Cost of Generating Funds\",WorkingP!F42,\"\")","v":""},{"$f":"IF(WorkingP!$B42=\"Cost of Generating Funds\",WorkingP!G42,\"\")","v":""},{"$f":"IF(WorkingP!$B42=\"Cost of Generating Funds\",WorkingP!H42,\"\")","v":""},{"$f":"IF(WorkingP!$B42=\"Cost of Generating Funds\",WorkingP!I42,\"\")","v":""},{"$f":"IF(WorkingP!$B42=\"Cost of Generating Funds\",WorkingP!J42,\"\")","v":""},{"$f":"IF(WorkingP!$B42=\"Cost of Generating Funds\",WorkingP!K42,\"\")","v":""},{"$f":"IF(WorkingP!$B42=\"Cost of Generating Funds\",WorkingP!L42,\"\")","v":""},{"$f":"IF(WorkingP!$B42=\"Cost of Generating Funds\",WorkingP!M42,\"\")","v":""},{"$f":"IF(WorkingP!$B42=\"Cost of Generating Funds\",WorkingP!N42,\"\")","v":""},{"$f":"IF(WorkingP!$B42=\"Cost of Generating Funds\",WorkingP!O42,\"\")","v":""},{"$f":"IF(WorkingP!$B42=\"Cost of Generating Funds\",WorkingP!P42,\"\")","v":""},{"$f":"IF(WorkingP!$B42=\"Cost of Generating Funds\",WorkingP!Q42,\"\")","v":""},{"$f":"IF(WorkingP!$B42=\"Cost of Generating Funds\",WorkingP!R42,\"\")","v":""},{"$f":"IF(WorkingP!$B42=\"Cost of Generating Funds\",WorkingP!S42,\"\")","v":""},{"$f":"IF(WorkingP!$B42=\"Cost of Generating Funds\",WorkingP!T42,\"\")","v":""},{"$f":"IF(WorkingP!$B42=\"Cost of Generating Funds\",WorkingP!U42,\"\")","v":""},{"$f":"IF(WorkingP!$B42=\"Cost of Generating Funds\",WorkingP!V42,\"\")","v":""},{"$f":"IF(WorkingP!$B42=\"Cost of Generating Funds\",WorkingP!W42,\"\")","v":""},{"$f":"IF(WorkingP!$B42=\"Cost of Generating Funds\",WorkingP!X42,\"\")","v":""},{"$f":"IF(WorkingP!$B42=\"Cost of Generating Funds\",WorkingP!Y42,\"\")","v":""},{"$f":"IF(Descriptions!K43=\"Costs of Generating Funds\",Descriptions!AB43,0)","v":0}]
[{"$f":"IF(Descriptions!K44=\"Costs of Generating Funds\",Descriptions!I44,0)","v":0},{"$f":"IF(WorkingP!$B43=\"Cost of Generating Funds\",WorkingP!D43,\"\")","v":""},{"$f":"IF(WorkingP!$B43=\"Cost of Generating Funds\",WorkingP!E43,\"\")","v":""},{"$f":"IF(WorkingP!$B43=\"Cost of Generating Funds\",WorkingP!F43,\"\")","v":""},{"$f":"IF(WorkingP!$B43=\"Cost of Generating Funds\",WorkingP!G43,\"\")","v":""},{"$f":"IF(WorkingP!$B43=\"Cost of Generating Funds\",WorkingP!H43,\"\")","v":""},{"$f":"IF(WorkingP!$B43=\"Cost of Generating Funds\",WorkingP!I43,\"\")","v":""},{"$f":"IF(WorkingP!$B43=\"Cost of Generating Funds\",WorkingP!J43,\"\")","v":""},{"$f":"IF(WorkingP!$B43=\"Cost of Generating Funds\",WorkingP!K43,\"\")","v":""},{"$f":"IF(WorkingP!$B43=\"Cost of Generating Funds\",WorkingP!L43,\"\")","v":""},{"$f":"IF(WorkingP!$B43=\"Cost of Generating Funds\",WorkingP!M43,\"\")","v":""},{"$f":"IF(WorkingP!$B43=\"Cost of Generating Funds\",WorkingP!N43,\"\")","v":""},{"$f":"IF(WorkingP!$B43=\"Cost of Generating Funds\",WorkingP!O43,\"\")","v":""},{"$f":"IF(WorkingP!$B43=\"Cost of Generating Funds\",WorkingP!P43,\"\")","v":""},{"$f":"IF(WorkingP!$B43=\"Cost of Generating Funds\",WorkingP!Q43,\"\")","v":""},{"$f":"IF(WorkingP!$B43=\"Cost of Generating Funds\",WorkingP!R43,\"\")","v":""},{"$f":"IF(WorkingP!$B43=\"Cost of Generating Funds\",WorkingP!S43,\"\")","v":""},{"$f":"IF(WorkingP!$B43=\"Cost of Generating Funds\",WorkingP!T43,\"\")","v":""},{"$f":"IF(WorkingP!$B43=\"Cost of Generating Funds\",WorkingP!U43,\"\")","v":""},{"$f":"IF(WorkingP!$B43=\"Cost of Generating Funds\",WorkingP!V43,\"\")","v":""},{"$f":"IF(WorkingP!$B43=\"Cost of Generating Funds\",WorkingP!W43,\"\")","v":""},{"$f":"IF(WorkingP!$B43=\"Cost of Generating Funds\",WorkingP!X43,\"\")","v":""},{"$f":"IF(WorkingP!$B43=\"Cost of Generating Funds\",WorkingP!Y43,\"\")","v":""},{"$f":"IF(Descriptions!K44=\"Costs of Generating Funds\",Descriptions!AB44,0)","v":0}]
[{"$f":"IF(Descriptions!K45=\"Costs of Generating Funds\",Descriptions!I45,0)","v":0},{"$f":"IF(WorkingP!$B44=\"Cost of Generating Funds\",WorkingP!D44,\"\")","v":""},{"$f":"IF(WorkingP!$B44=\"Cost of Generating Funds\",WorkingP!E44,\"\")","v":""},{"$f":"IF(WorkingP!$B44=\"Cost of Generating Funds\",WorkingP!F44,\"\")","v":""},{"$f":"IF(WorkingP!$B44=\"Cost of Generating Funds\",WorkingP!G44,\"\")","v":""},{"$f":"IF(WorkingP!$B44=\"Cost of Generating Funds\",WorkingP!H44,\"\")","v":""},{"$f":"IF(WorkingP!$B44=\"Cost of Generating Funds\",WorkingP!I44,\"\")","v":""},{"$f":"IF(WorkingP!$B44=\"Cost of Generating Funds\",WorkingP!J44,\"\")","v":""},{"$f":"IF(WorkingP!$B44=\"Cost of Generating Funds\",WorkingP!K44,\"\")","v":""},{"$f":"IF(WorkingP!$B44=\"Cost of Generating Funds\",WorkingP!L44,\"\")","v":""},{"$f":"IF(WorkingP!$B44=\"Cost of Generating Funds\",WorkingP!M44,\"\")","v":""},{"$f":"IF(WorkingP!$B44=\"Cost of Generating Funds\",WorkingP!N44,\"\")","v":""},{"$f":"IF(WorkingP!$B44=\"Cost of Generating Funds\",WorkingP!O44,\"\")","v":""},{"$f":"IF(WorkingP!$B44=\"Cost of Generating Funds\",WorkingP!P44,\"\")","v":""},{"$f":"IF(WorkingP!$B44=\"Cost of Generating Funds\",WorkingP!Q44,\"\")","v":""},{"$f":"IF(WorkingP!$B44=\"Cost of Generating Funds\",WorkingP!R44,\"\")","v":""},{"$f":"IF(WorkingP!$B44=\"Cost of Generating Funds\",WorkingP!S44,\"\")","v":""},{"$f":"IF(WorkingP!$B44=\"Cost of Generating Funds\",WorkingP!T44,\"\")","v":""},{"$f":"IF(WorkingP!$B44=\"Cost of Generating Funds\",WorkingP!U44,\"\")","v":""},{"$f":"IF(WorkingP!$B44=\"Cost of Generating Funds\",WorkingP!V44,\"\")","v":""},{"$f":"IF(WorkingP!$B44=\"Cost of Generating Funds\",WorkingP!W44,\"\")","v":""},{"$f":"IF(WorkingP!$B44=\"Cost of Generating Funds\",WorkingP!X44,\"\")","v":""},{"$f":"IF(WorkingP!$B44=\"Cost of Generating Funds\",WorkingP!Y44,\"\")","v":""},{"$f":"IF(Descriptions!K45=\"Costs of Generating Funds\",Descriptions!AB45,0)","v":0}]
[{"$f":"IF(Descriptions!K46=\"Costs of Generating Funds\",Descriptions!I46,0)","v":0},{"$f":"IF(WorkingP!$B45=\"Cost of Generating Funds\",WorkingP!D45,\"\")","v":""},{"$f":"IF(WorkingP!$B45=\"Cost of Generating Funds\",WorkingP!E45,\"\")","v":""},{"$f":"IF(WorkingP!$B45=\"Cost of Generating Funds\",WorkingP!F45,\"\")","v":""},{"$f":"IF(WorkingP!$B45=\"Cost of Generating Funds\",WorkingP!G45,\"\")","v":""},{"$f":"IF(WorkingP!$B45=\"Cost of Generating Funds\",WorkingP!H45,\"\")","v":""},{"$f":"IF(WorkingP!$B45=\"Cost of Generating Funds\",WorkingP!I45,\"\")","v":""},{"$f":"IF(WorkingP!$B45=\"Cost of Generating Funds\",WorkingP!J45,\"\")","v":""},{"$f":"IF(WorkingP!$B45=\"Cost of Generating Funds\",WorkingP!K45,\"\")","v":""},{"$f":"IF(WorkingP!$B45=\"Cost of Generating Funds\",WorkingP!L45,\"\")","v":""},{"$f":"IF(WorkingP!$B45=\"Cost of Generating Funds\",WorkingP!M45,\"\")","v":""},{"$f":"IF(WorkingP!$B45=\"Cost of Generating Funds\",WorkingP!N45,\"\")","v":""},{"$f":"IF(WorkingP!$B45=\"Cost of Generating Funds\",WorkingP!O45,\"\")","v":""},{"$f":"IF(WorkingP!$B45=\"Cost of Generating Funds\",WorkingP!P45,\"\")","v":""},{"$f":"IF(WorkingP!$B45=\"Cost of Generating Funds\",WorkingP!Q45,\"\")","v":""},{"$f":"IF(WorkingP!$B45=\"Cost of Generating Funds\",WorkingP!R45,\"\")","v":""},{"$f":"IF(WorkingP!$B45=\"Cost of Generating Funds\",WorkingP!S45,\"\")","v":""},{"$f":"IF(WorkingP!$B45=\"Cost of Generating Funds\",WorkingP!T45,\"\")","v":""},{"$f":"IF(WorkingP!$B45=\"Cost of Generating Funds\",WorkingP!U45,\"\")","v":""},{"$f":"IF(WorkingP!$B45=\"Cost of Generating Funds\",WorkingP!V45,\"\")","v":""},{"$f":"IF(WorkingP!$B45=\"Cost of Generating Funds\",WorkingP!W45,\"\")","v":""},{"$f":"IF(WorkingP!$B45=\"Cost of Generating Funds\",WorkingP!X45,\"\")","v":""},{"$f":"IF(WorkingP!$B45=\"Cost of Generating Funds\",WorkingP!Y45,\"\")","v":""},{"$f":"IF(Descriptions!K46=\"Costs of Generating Funds\",Descriptions!AB46,0)","v":0}]
[{"$f":"IF(Descriptions!K47=\"Costs of Generating Funds\",Descriptions!I47,0)","v":0},{"$f":"IF(WorkingP!$B46=\"Cost of Generating Funds\",WorkingP!D46,\"\")","v":""},{"$f":"IF(WorkingP!$B46=\"Cost of Generating Funds\",WorkingP!E46,\"\")","v":""},{"$f":"IF(WorkingP!$B46=\"Cost of Generating Funds\",WorkingP!F46,\"\")","v":""},{"$f":"IF(WorkingP!$B46=\"Cost of Generating Funds\",WorkingP!G46,\"\")","v":""},{"$f":"IF(WorkingP!$B46=\"Cost of Generating Funds\",WorkingP!H46,\"\")","v":""},{"$f":"IF(WorkingP!$B46=\"Cost of Generating Funds\",WorkingP!I46,\"\")","v":""},{"$f":"IF(WorkingP!$B46=\"Cost of Generating Funds\",WorkingP!J46,\"\")","v":""},{"$f":"IF(WorkingP!$B46=\"Cost of Generating Funds\",WorkingP!K46,\"\")","v":""},{"$f":"IF(WorkingP!$B46=\"Cost of Generating Funds\",WorkingP!L46,\"\")","v":""},{"$f":"IF(WorkingP!$B46=\"Cost of Generating Funds\",WorkingP!M46,\"\")","v":""},{"$f":"IF(WorkingP!$B46=\"Cost of Generating Funds\",WorkingP!N46,\"\")","v":""},{"$f":"IF(WorkingP!$B46=\"Cost of Generating Funds\",WorkingP!O46,\"\")","v":""},{"$f":"IF(WorkingP!$B46=\"Cost of Generating Funds\",WorkingP!P46,\"\")","v":""},{"$f":"IF(WorkingP!$B46=\"Cost of Generating Funds\",WorkingP!Q46,\"\")","v":""},{"$f":"IF(WorkingP!$B46=\"Cost of Generating Funds\",WorkingP!R46,\"\")","v":""},{"$f":"IF(WorkingP!$B46=\"Cost of Generating Funds\",WorkingP!S46,\"\")","v":""},{"$f":"IF(WorkingP!$B46=\"Cost of Generating Funds\",WorkingP!T46,\"\")","v":""},{"$f":"IF(WorkingP!$B46=\"Cost of Generating Funds\",WorkingP!U46,\"\")","v":""},{"$f":"IF(WorkingP!$B46=\"Cost of Generating Funds\",WorkingP!V46,\"\")","v":""},{"$f":"IF(WorkingP!$B46=\"Cost of Generating Funds\",WorkingP!W46,\"\")","v":""},{"$f":"IF(WorkingP!$B46=\"Cost of Generating Funds\",WorkingP!X46,\"\")","v":""},{"$f":"IF(WorkingP!$B46=\"Cost of Generating Funds\",WorkingP!Y46,\"\")","v":""},{"$f":"IF(Descriptions!K47=\"Costs of Generating Funds\",Descriptions!AB47,0)","v":0}]
[{"$f":"IF(Descriptions!K48=\"Costs of Generating Funds\",Descriptions!I48,0)","v":0},{"$f":"IF(WorkingP!$B47=\"Cost of Generating Funds\",WorkingP!D47,\"\")","v":""},{"$f":"IF(WorkingP!$B47=\"Cost of Generating Funds\",WorkingP!E47,\"\")","v":""},{"$f":"IF(WorkingP!$B47=\"Cost of Generating Funds\",WorkingP!F47,\"\")","v":""},{"$f":"IF(WorkingP!$B47=\"Cost of Generating Funds\",WorkingP!G47,\"\")","v":""},{"$f":"IF(WorkingP!$B47=\"Cost of Generating Funds\",WorkingP!H47,\"\")","v":""},{"$f":"IF(WorkingP!$B47=\"Cost of Generating Funds\",WorkingP!I47,\"\")","v":""},{"$f":"IF(WorkingP!$B47=\"Cost of Generating Funds\",WorkingP!J47,\"\")","v":""},{"$f":"IF(WorkingP!$B47=\"Cost of Generating Funds\",WorkingP!K47,\"\")","v":""},{"$f":"IF(WorkingP!$B47=\"Cost of Generating Funds\",WorkingP!L47,\"\")","v":""},{"$f":"IF(WorkingP!$B47=\"Cost of Generating Funds\",WorkingP!M47,\"\")","v":""},{"$f":"IF(WorkingP!$B47=\"Cost of Generating Funds\",WorkingP!N47,\"\")","v":""},{"$f":"IF(WorkingP!$B47=\"Cost of Generating Funds\",WorkingP!O47,\"\")","v":""},{"$f":"IF(WorkingP!$B47=\"Cost of Generating Funds\",WorkingP!P47,\"\")","v":""},{"$f":"IF(WorkingP!$B47=\"Cost of Generating Funds\",WorkingP!Q47,\"\")","v":""},{"$f":"IF(WorkingP!$B47=\"Cost of Generating Funds\",WorkingP!R47,\"\")","v":""},{"$f":"IF(WorkingP!$B47=\"Cost of Generating Funds\",WorkingP!S47,\"\")","v":""},{"$f":"IF(WorkingP!$B47=\"Cost of Generating Funds\",WorkingP!T47,\"\")","v":""},{"$f":"IF(WorkingP!$B47=\"Cost of Generating Funds\",WorkingP!U47,\"\")","v":""},{"$f":"IF(WorkingP!$B47=\"Cost of Generating Funds\",WorkingP!V47,\"\")","v":""},{"$f":"IF(WorkingP!$B47=\"Cost of Generating Funds\",WorkingP!W47,\"\")","v":""},{"$f":"IF(WorkingP!$B47=\"Cost of Generating Funds\",WorkingP!X47,\"\")","v":""},{"$f":"IF(WorkingP!$B47=\"Cost of Generating Funds\",WorkingP!Y47,\"\")","v":""},{"$f":"IF(Descriptions!K48=\"Costs of Generating Funds\",Descriptions!AB48,0)","v":0}]
[{"$f":"IF(Descriptions!K49=\"Costs of Generating Funds\",Descriptions!I49,0)","v":0},{"$f":"IF(WorkingP!$B48=\"Cost of Generating Funds\",WorkingP!D48,\"\")","v":""},{"$f":"IF(WorkingP!$B48=\"Cost of Generating Funds\",WorkingP!E48,\"\")","v":""},{"$f":"IF(WorkingP!$B48=\"Cost of Generating Funds\",WorkingP!F48,\"\")","v":""},{"$f":"IF(WorkingP!$B48=\"Cost of Generating Funds\",WorkingP!G48,\"\")","v":""},{"$f":"IF(WorkingP!$B48=\"Cost of Generating Funds\",WorkingP!H48,\"\")","v":""},{"$f":"IF(WorkingP!$B48=\"Cost of Generating Funds\",WorkingP!I48,\"\")","v":""},{"$f":"IF(WorkingP!$B48=\"Cost of Generating Funds\",WorkingP!J48,\"\")","v":""},{"$f":"IF(WorkingP!$B48=\"Cost of Generating Funds\",WorkingP!K48,\"\")","v":""},{"$f":"IF(WorkingP!$B48=\"Cost of Generating Funds\",WorkingP!L48,\"\")","v":""},{"$f":"IF(WorkingP!$B48=\"Cost of Generating Funds\",WorkingP!M48,\"\")","v":""},{"$f":"IF(WorkingP!$B48=\"Cost of Generating Funds\",WorkingP!N48,\"\")","v":""},{"$f":"IF(WorkingP!$B48=\"Cost of Generating Funds\",WorkingP!O48,\"\")","v":""},{"$f":"IF(WorkingP!$B48=\"Cost of Generating Funds\",WorkingP!P48,\"\")","v":""},{"$f":"IF(WorkingP!$B48=\"Cost of Generating Funds\",WorkingP!Q48,\"\")","v":""},{"$f":"IF(WorkingP!$B48=\"Cost of Generating Funds\",WorkingP!R48,\"\")","v":""},{"$f":"IF(WorkingP!$B48=\"Cost of Generating Funds\",WorkingP!S48,\"\")","v":""},{"$f":"IF(WorkingP!$B48=\"Cost of Generating Funds\",WorkingP!T48,\"\")","v":""},{"$f":"IF(WorkingP!$B48=\"Cost of Generating Funds\",WorkingP!U48,\"\")","v":""},{"$f":"IF(WorkingP!$B48=\"Cost of Generating Funds\",WorkingP!V48,\"\")","v":""},{"$f":"IF(WorkingP!$B48=\"Cost of Generating Funds\",WorkingP!W48,\"\")","v":""},{"$f":"IF(WorkingP!$B48=\"Cost of Generating Funds\",WorkingP!X48,\"\")","v":""},{"$f":"IF(WorkingP!$B48=\"Cost of Generating Funds\",WorkingP!Y48,\"\")","v":""},{"$f":"IF(Descriptions!K49=\"Costs of Generating Funds\",Descriptions!AB49,0)","v":0}]
[{"$f":"IF(Descriptions!K50=\"Costs of Generating Funds\",Descriptions!I50,0)","v":0},{"$f":"IF(WorkingP!$B49=\"Cost of Generating Funds\",WorkingP!D49,\"\")","v":""},{"$f":"IF(WorkingP!$B49=\"Cost of Generating Funds\",WorkingP!E49,\"\")","v":""},{"$f":"IF(WorkingP!$B49=\"Cost of Generating Funds\",WorkingP!F49,\"\")","v":""},{"$f":"IF(WorkingP!$B49=\"Cost of Generating Funds\",WorkingP!G49,\"\")","v":""},{"$f":"IF(WorkingP!$B49=\"Cost of Generating Funds\",WorkingP!H49,\"\")","v":""},{"$f":"IF(WorkingP!$B49=\"Cost of Generating Funds\",WorkingP!I49,\"\")","v":""},{"$f":"IF(WorkingP!$B49=\"Cost of Generating Funds\",WorkingP!J49,\"\")","v":""},{"$f":"IF(WorkingP!$B49=\"Cost of Generating Funds\",WorkingP!K49,\"\")","v":""},{"$f":"IF(WorkingP!$B49=\"Cost of Generating Funds\",WorkingP!L49,\"\")","v":""},{"$f":"IF(WorkingP!$B49=\"Cost of Generating Funds\",WorkingP!M49,\"\")","v":""},{"$f":"IF(WorkingP!$B49=\"Cost of Generating Funds\",WorkingP!N49,\"\")","v":""},{"$f":"IF(WorkingP!$B49=\"Cost of Generating Funds\",WorkingP!O49,\"\")","v":""},{"$f":"IF(WorkingP!$B49=\"Cost of Generating Funds\",WorkingP!P49,\"\")","v":""},{"$f":"IF(WorkingP!$B49=\"Cost of Generating Funds\",WorkingP!Q49,\"\")","v":""},{"$f":"IF(WorkingP!$B49=\"Cost of Generating Funds\",WorkingP!R49,\"\")","v":""},{"$f":"IF(WorkingP!$B49=\"Cost of Generating Funds\",WorkingP!S49,\"\")","v":""},{"$f":"IF(WorkingP!$B49=\"Cost of Generating Funds\",WorkingP!T49,\"\")","v":""},{"$f":"IF(WorkingP!$B49=\"Cost of Generating Funds\",WorkingP!U49,\"\")","v":""},{"$f":"IF(WorkingP!$B49=\"Cost of Generating Funds\",WorkingP!V49,\"\")","v":""},{"$f":"IF(WorkingP!$B49=\"Cost of Generating Funds\",WorkingP!W49,\"\")","v":""},{"$f":"IF(WorkingP!$B49=\"Cost of Generating Funds\",WorkingP!X49,\"\")","v":""},{"$f":"IF(WorkingP!$B49=\"Cost of Generating Funds\",WorkingP!Y49,\"\")","v":""},{"$f":"IF(Descriptions!K50=\"Costs of Generating Funds\",Descriptions!AB50,0)","v":0}]
[{"$f":"IF(Descriptions!K51=\"Costs of Generating Funds\",Descriptions!I51,0)","v":0},{"$f":"IF(WorkingP!$B50=\"Cost of Generating Funds\",WorkingP!D50,\"\")","v":""},{"$f":"IF(WorkingP!$B50=\"Cost of Generating Funds\",WorkingP!E50,\"\")","v":""},{"$f":"IF(WorkingP!$B50=\"Cost of Generating Funds\",WorkingP!F50,\"\")","v":""},{"$f":"IF(WorkingP!$B50=\"Cost of Generating Funds\",WorkingP!G50,\"\")","v":""},{"$f":"IF(WorkingP!$B50=\"Cost of Generating Funds\",WorkingP!H50,\"\")","v":""},{"$f":"IF(WorkingP!$B50=\"Cost of Generating Funds\",WorkingP!I50,\"\")","v":""},{"$f":"IF(WorkingP!$B50=\"Cost of Generating Funds\",WorkingP!J50,\"\")","v":""},{"$f":"IF(WorkingP!$B50=\"Cost of Generating Funds\",WorkingP!K50,\"\")","v":""},{"$f":"IF(WorkingP!$B50=\"Cost of Generating Funds\",WorkingP!L50,\"\")","v":""},{"$f":"IF(WorkingP!$B50=\"Cost of Generating Funds\",WorkingP!M50,\"\")","v":""},{"$f":"IF(WorkingP!$B50=\"Cost of Generating Funds\",WorkingP!N50,\"\")","v":""},{"$f":"IF(WorkingP!$B50=\"Cost of Generating Funds\",WorkingP!O50,\"\")","v":""},{"$f":"IF(WorkingP!$B50=\"Cost of Generating Funds\",WorkingP!P50,\"\")","v":""},{"$f":"IF(WorkingP!$B50=\"Cost of Generating Funds\",WorkingP!Q50,\"\")","v":""},{"$f":"IF(WorkingP!$B50=\"Cost of Generating Funds\",WorkingP!R50,\"\")","v":""},{"$f":"IF(WorkingP!$B50=\"Cost of Generating Funds\",WorkingP!S50,\"\")","v":""},{"$f":"IF(WorkingP!$B50=\"Cost of Generating Funds\",WorkingP!T50,\"\")","v":""},{"$f":"IF(WorkingP!$B50=\"Cost of Generating Funds\",WorkingP!U50,\"\")","v":""},{"$f":"IF(WorkingP!$B50=\"Cost of Generating Funds\",WorkingP!V50,\"\")","v":""},{"$f":"IF(WorkingP!$B50=\"Cost of Generating Funds\",WorkingP!W50,\"\")","v":""},{"$f":"IF(WorkingP!$B50=\"Cost of Generating Funds\",WorkingP!X50,\"\")","v":""},{"$f":"IF(WorkingP!$B50=\"Cost of Generating Funds\",WorkingP!Y50,\"\")","v":""},{"$f":"IF(Descriptions!K51=\"Costs of Generating Funds\",Descriptions!AB51,0)","v":0}]
[{"$f":"IF(Descriptions!K52=\"Costs of Generating Funds\",Descriptions!I52,0)","v":0},{"$f":"IF(WorkingP!$B51=\"Cost of Generating Funds\",WorkingP!D51,\"\")","v":""},{"$f":"IF(WorkingP!$B51=\"Cost of Generating Funds\",WorkingP!E51,\"\")","v":""},{"$f":"IF(WorkingP!$B51=\"Cost of Generating Funds\",WorkingP!F51,\"\")","v":""},{"$f":"IF(WorkingP!$B51=\"Cost of Generating Funds\",WorkingP!G51,\"\")","v":""},{"$f":"IF(WorkingP!$B51=\"Cost of Generating Funds\",WorkingP!H51,\"\")","v":""},{"$f":"IF(WorkingP!$B51=\"Cost of Generating Funds\",WorkingP!I51,\"\")","v":""},{"$f":"IF(WorkingP!$B51=\"Cost of Generating Funds\",WorkingP!J51,\"\")","v":""},{"$f":"IF(WorkingP!$B51=\"Cost of Generating Funds\",WorkingP!K51,\"\")","v":""},{"$f":"IF(WorkingP!$B51=\"Cost of Generating Funds\",WorkingP!L51,\"\")","v":""},{"$f":"IF(WorkingP!$B51=\"Cost of Generating Funds\",WorkingP!M51,\"\")","v":""},{"$f":"IF(WorkingP!$B51=\"Cost of Generating Funds\",WorkingP!N51,\"\")","v":""},{"$f":"IF(WorkingP!$B51=\"Cost of Generating Funds\",WorkingP!O51,\"\")","v":""},{"$f":"IF(WorkingP!$B51=\"Cost of Generating Funds\",WorkingP!P51,\"\")","v":""},{"$f":"IF(WorkingP!$B51=\"Cost of Generating Funds\",WorkingP!Q51,\"\")","v":""},{"$f":"IF(WorkingP!$B51=\"Cost of Generating Funds\",WorkingP!R51,\"\")","v":""},{"$f":"IF(WorkingP!$B51=\"Cost of Generating Funds\",WorkingP!S51,\"\")","v":""},{"$f":"IF(WorkingP!$B51=\"Cost of Generating Funds\",WorkingP!T51,\"\")","v":""},{"$f":"IF(WorkingP!$B51=\"Cost of Generating Funds\",WorkingP!U51,\"\")","v":""},{"$f":"IF(WorkingP!$B51=\"Cost of Generating Funds\",WorkingP!V51,\"\")","v":""},{"$f":"IF(WorkingP!$B51=\"Cost of Generating Funds\",WorkingP!W51,\"\")","v":""},{"$f":"IF(WorkingP!$B51=\"Cost of Generating Funds\",WorkingP!X51,\"\")","v":""},{"$f":"IF(WorkingP!$B51=\"Cost of Generating Funds\",WorkingP!Y51,\"\")","v":""},{"$f":"IF(Descriptions!K52=\"Costs of Generating Funds\",Descriptions!AB52,0)","v":0}]
[{"$f":"IF(Descriptions!K53=\"Costs of Generating Funds\",Descriptions!I53,0)","v":0},{"$f":"IF(WorkingP!$B52=\"Cost of Generating Funds\",WorkingP!D52,\"\")","v":""},{"$f":"IF(WorkingP!$B52=\"Cost of Generating Funds\",WorkingP!E52,\"\")","v":""},{"$f":"IF(WorkingP!$B52=\"Cost of Generating Funds\",WorkingP!F52,\"\")","v":""},{"$f":"IF(WorkingP!$B52=\"Cost of Generating Funds\",WorkingP!G52,\"\")","v":""},{"$f":"IF(WorkingP!$B52=\"Cost of Generating Funds\",WorkingP!H52,\"\")","v":""},{"$f":"IF(WorkingP!$B52=\"Cost of Generating Funds\",WorkingP!I52,\"\")","v":""},{"$f":"IF(WorkingP!$B52=\"Cost of Generating Funds\",WorkingP!J52,\"\")","v":""},{"$f":"IF(WorkingP!$B52=\"Cost of Generating Funds\",WorkingP!K52,\"\")","v":""},{"$f":"IF(WorkingP!$B52=\"Cost of Generating Funds\",WorkingP!L52,\"\")","v":""},{"$f":"IF(WorkingP!$B52=\"Cost of Generating Funds\",WorkingP!M52,\"\")","v":""},{"$f":"IF(WorkingP!$B52=\"Cost of Generating Funds\",WorkingP!N52,\"\")","v":""},{"$f":"IF(WorkingP!$B52=\"Cost of Generating Funds\",WorkingP!O52,\"\")","v":""},{"$f":"IF(WorkingP!$B52=\"Cost of Generating Funds\",WorkingP!P52,\"\")","v":""},{"$f":"IF(WorkingP!$B52=\"Cost of Generating Funds\",WorkingP!Q52,\"\")","v":""},{"$f":"IF(WorkingP!$B52=\"Cost of Generating Funds\",WorkingP!R52,\"\")","v":""},{"$f":"IF(WorkingP!$B52=\"Cost of Generating Funds\",WorkingP!S52,\"\")","v":""},{"$f":"IF(WorkingP!$B52=\"Cost of Generating Funds\",WorkingP!T52,\"\")","v":""},{"$f":"IF(WorkingP!$B52=\"Cost of Generating Funds\",WorkingP!U52,\"\")","v":""},{"$f":"IF(WorkingP!$B52=\"Cost of Generating Funds\",WorkingP!V52,\"\")","v":""},{"$f":"IF(WorkingP!$B52=\"Cost of Generating Funds\",WorkingP!W52,\"\")","v":""},{"$f":"IF(WorkingP!$B52=\"Cost of Generating Funds\",WorkingP!X52,\"\")","v":""},{"$f":"IF(WorkingP!$B52=\"Cost of Generating Funds\",WorkingP!Y52,\"\")","v":""},{"$f":"IF(Descriptions!K53=\"Costs of Generating Funds\",Descriptions!AB53,0)","v":0}]
[{"$f":"IF(Descriptions!K54=\"Costs of Generating Funds\",Descriptions!I54,0)","v":0},{"$f":"IF(WorkingP!$B53=\"Cost of Generating Funds\",WorkingP!D53,\"\")","v":""},{"$f":"IF(WorkingP!$B53=\"Cost of Generating Funds\",WorkingP!E53,\"\")","v":""},{"$f":"IF(WorkingP!$B53=\"Cost of Generating Funds\",WorkingP!F53,\"\")","v":""},{"$f":"IF(WorkingP!$B53=\"Cost of Generating Funds\",WorkingP!G53,\"\")","v":""},{"$f":"IF(WorkingP!$B53=\"Cost of Generating Funds\",WorkingP!H53,\"\")","v":""},{"$f":"IF(WorkingP!$B53=\"Cost of Generating Funds\",WorkingP!I53,\"\")","v":""},{"$f":"IF(WorkingP!$B53=\"Cost of Generating Funds\",WorkingP!J53,\"\")","v":""},{"$f":"IF(WorkingP!$B53=\"Cost of Generating Funds\",WorkingP!K53,\"\")","v":""},{"$f":"IF(WorkingP!$B53=\"Cost of Generating Funds\",WorkingP!L53,\"\")","v":""},{"$f":"IF(WorkingP!$B53=\"Cost of Generating Funds\",WorkingP!M53,\"\")","v":""},{"$f":"IF(WorkingP!$B53=\"Cost of Generating Funds\",WorkingP!N53,\"\")","v":""},{"$f":"IF(WorkingP!$B53=\"Cost of Generating Funds\",WorkingP!O53,\"\")","v":""},{"$f":"IF(WorkingP!$B53=\"Cost of Generating Funds\",WorkingP!P53,\"\")","v":""},{"$f":"IF(WorkingP!$B53=\"Cost of Generating Funds\",WorkingP!Q53,\"\")","v":""},{"$f":"IF(WorkingP!$B53=\"Cost of Generating Funds\",WorkingP!R53,\"\")","v":""},{"$f":"IF(WorkingP!$B53=\"Cost of Generating Funds\",WorkingP!S53,\"\")","v":""},{"$f":"IF(WorkingP!$B53=\"Cost of Generating Funds\",WorkingP!T53,\"\")","v":""},{"$f":"IF(WorkingP!$B53=\"Cost of Generating Funds\",WorkingP!U53,\"\")","v":""},{"$f":"IF(WorkingP!$B53=\"Cost of Generating Funds\",WorkingP!V53,\"\")","v":""},{"$f":"IF(WorkingP!$B53=\"Cost of Generating Funds\",WorkingP!W53,\"\")","v":""},{"$f":"IF(WorkingP!$B53=\"Cost of Generating Funds\",WorkingP!X53,\"\")","v":""},{"$f":"IF(WorkingP!$B53=\"Cost of Generating Funds\",WorkingP!Y53,\"\")","v":""},{"$f":"IF(Descriptions!K54=\"Costs of Generating Funds\",Descriptions!AB54,0)","v":0}]
[{"$f":"IF(Descriptions!K55=\"Costs of Generating Funds\",Descriptions!I55,0)","v":0},{"$f":"IF(WorkingP!$B54=\"Cost of Generating Funds\",WorkingP!D54,\"\")","v":""},{"$f":"IF(WorkingP!$B54=\"Cost of Generating Funds\",WorkingP!E54,\"\")","v":""},{"$f":"IF(WorkingP!$B54=\"Cost of Generating Funds\",WorkingP!F54,\"\")","v":""},{"$f":"IF(WorkingP!$B54=\"Cost of Generating Funds\",WorkingP!G54,\"\")","v":""},{"$f":"IF(WorkingP!$B54=\"Cost of Generating Funds\",WorkingP!H54,\"\")","v":""},{"$f":"IF(WorkingP!$B54=\"Cost of Generating Funds\",WorkingP!I54,\"\")","v":""},{"$f":"IF(WorkingP!$B54=\"Cost of Generating Funds\",WorkingP!J54,\"\")","v":""},{"$f":"IF(WorkingP!$B54=\"Cost of Generating Funds\",WorkingP!K54,\"\")","v":""},{"$f":"IF(WorkingP!$B54=\"Cost of Generating Funds\",WorkingP!L54,\"\")","v":""},{"$f":"IF(WorkingP!$B54=\"Cost of Generating Funds\",WorkingP!M54,\"\")","v":""},{"$f":"IF(WorkingP!$B54=\"Cost of Generating Funds\",WorkingP!N54,\"\")","v":""},{"$f":"IF(WorkingP!$B54=\"Cost of Generating Funds\",WorkingP!O54,\"\")","v":""},{"$f":"IF(WorkingP!$B54=\"Cost of Generating Funds\",WorkingP!P54,\"\")","v":""},{"$f":"IF(WorkingP!$B54=\"Cost of Generating Funds\",WorkingP!Q54,\"\")","v":""},{"$f":"IF(WorkingP!$B54=\"Cost of Generating Funds\",WorkingP!R54,\"\")","v":""},{"$f":"IF(WorkingP!$B54=\"Cost of Generating Funds\",WorkingP!S54,\"\")","v":""},{"$f":"IF(WorkingP!$B54=\"Cost of Generating Funds\",WorkingP!T54,\"\")","v":""},{"$f":"IF(WorkingP!$B54=\"Cost of Generating Funds\",WorkingP!U54,\"\")","v":""},{"$f":"IF(WorkingP!$B54=\"Cost of Generating Funds\",WorkingP!V54,\"\")","v":""},{"$f":"IF(WorkingP!$B54=\"Cost of Generating Funds\",WorkingP!W54,\"\")","v":""},{"$f":"IF(WorkingP!$B54=\"Cost of Generating Funds\",WorkingP!X54,\"\")","v":""},{"$f":"IF(WorkingP!$B54=\"Cost of Generating Funds\",WorkingP!Y54,\"\")","v":""},{"$f":"IF(Descriptions!K55=\"Costs of Generating Funds\",Descriptions!AB55,0)","v":0}]
[{"$f":"IF(Descriptions!K56=\"Costs of Generating Funds\",Descriptions!I56,0)","v":0},{"$f":"IF(WorkingP!$B55=\"Cost of Generating Funds\",WorkingP!D55,\"\")","v":""},{"$f":"IF(WorkingP!$B55=\"Cost of Generating Funds\",WorkingP!E55,\"\")","v":""},{"$f":"IF(WorkingP!$B55=\"Cost of Generating Funds\",WorkingP!F55,\"\")","v":""},{"$f":"IF(WorkingP!$B55=\"Cost of Generating Funds\",WorkingP!G55,\"\")","v":""},{"$f":"IF(WorkingP!$B55=\"Cost of Generating Funds\",WorkingP!H55,\"\")","v":""},{"$f":"IF(WorkingP!$B55=\"Cost of Generating Funds\",WorkingP!I55,\"\")","v":""},{"$f":"IF(WorkingP!$B55=\"Cost of Generating Funds\",WorkingP!J55,\"\")","v":""},{"$f":"IF(WorkingP!$B55=\"Cost of Generating Funds\",WorkingP!K55,\"\")","v":""},{"$f":"IF(WorkingP!$B55=\"Cost of Generating Funds\",WorkingP!L55,\"\")","v":""},{"$f":"IF(WorkingP!$B55=\"Cost of Generating Funds\",WorkingP!M55,\"\")","v":""},{"$f":"IF(WorkingP!$B55=\"Cost of Generating Funds\",WorkingP!N55,\"\")","v":""},{"$f":"IF(WorkingP!$B55=\"Cost of Generating Funds\",WorkingP!O55,\"\")","v":""},{"$f":"IF(WorkingP!$B55=\"Cost of Generating Funds\",WorkingP!P55,\"\")","v":""},{"$f":"IF(WorkingP!$B55=\"Cost of Generating Funds\",WorkingP!Q55,\"\")","v":""},{"$f":"IF(WorkingP!$B55=\"Cost of Generating Funds\",WorkingP!R55,\"\")","v":""},{"$f":"IF(WorkingP!$B55=\"Cost of Generating Funds\",WorkingP!S55,\"\")","v":""},{"$f":"IF(WorkingP!$B55=\"Cost of Generating Funds\",WorkingP!T55,\"\")","v":""},{"$f":"IF(WorkingP!$B55=\"Cost of Generating Funds\",WorkingP!U55,\"\")","v":""},{"$f":"IF(WorkingP!$B55=\"Cost of Generating Funds\",WorkingP!V55,\"\")","v":""},{"$f":"IF(WorkingP!$B55=\"Cost of Generating Funds\",WorkingP!W55,\"\")","v":""},{"$f":"IF(WorkingP!$B55=\"Cost of Generating Funds\",WorkingP!X55,\"\")","v":""},{"$f":"IF(WorkingP!$B55=\"Cost of Generating Funds\",WorkingP!Y55,\"\")","v":""},{"$f":"IF(Descriptions!K56=\"Costs of Generating Funds\",Descriptions!AB56,0)","v":0}]
[{"$f":"IF(Descriptions!K57=\"Costs of Generating Funds\",Descriptions!I57,0)","v":0},{"$f":"IF(WorkingP!$B56=\"Cost of Generating Funds\",WorkingP!D56,\"\")","v":""},{"$f":"IF(WorkingP!$B56=\"Cost of Generating Funds\",WorkingP!E56,\"\")","v":""},{"$f":"IF(WorkingP!$B56=\"Cost of Generating Funds\",WorkingP!F56,\"\")","v":""},{"$f":"IF(WorkingP!$B56=\"Cost of Generating Funds\",WorkingP!G56,\"\")","v":""},{"$f":"IF(WorkingP!$B56=\"Cost of Generating Funds\",WorkingP!H56,\"\")","v":""},{"$f":"IF(WorkingP!$B56=\"Cost of Generating Funds\",WorkingP!I56,\"\")","v":""},{"$f":"IF(WorkingP!$B56=\"Cost of Generating Funds\",WorkingP!J56,\"\")","v":""},{"$f":"IF(WorkingP!$B56=\"Cost of Generating Funds\",WorkingP!K56,\"\")","v":""},{"$f":"IF(WorkingP!$B56=\"Cost of Generating Funds\",WorkingP!L56,\"\")","v":""},{"$f":"IF(WorkingP!$B56=\"Cost of Generating Funds\",WorkingP!M56,\"\")","v":""},{"$f":"IF(WorkingP!$B56=\"Cost of Generating Funds\",WorkingP!N56,\"\")","v":""},{"$f":"IF(WorkingP!$B56=\"Cost of Generating Funds\",WorkingP!O56,\"\")","v":""},{"$f":"IF(WorkingP!$B56=\"Cost of Generating Funds\",WorkingP!P56,\"\")","v":""},{"$f":"IF(WorkingP!$B56=\"Cost of Generating Funds\",WorkingP!Q56,\"\")","v":""},{"$f":"IF(WorkingP!$B56=\"Cost of Generating Funds\",WorkingP!R56,\"\")","v":""},{"$f":"IF(WorkingP!$B56=\"Cost of Generating Funds\",WorkingP!S56,\"\")","v":""},{"$f":"IF(WorkingP!$B56=\"Cost of Generating Funds\",WorkingP!T56,\"\")","v":""},{"$f":"IF(WorkingP!$B56=\"Cost of Generating Funds\",WorkingP!U56,\"\")","v":""},{"$f":"IF(WorkingP!$B56=\"Cost of Generating Funds\",WorkingP!V56,\"\")","v":""},{"$f":"IF(WorkingP!$B56=\"Cost of Generating Funds\",WorkingP!W56,\"\")","v":""},{"$f":"IF(WorkingP!$B56=\"Cost of Generating Funds\",WorkingP!X56,\"\")","v":""},{"$f":"IF(WorkingP!$B56=\"Cost of Generating Funds\",WorkingP!Y56,\"\")","v":""},{"$f":"IF(Descriptions!K57=\"Costs of Generating Funds\",Descriptions!AB57,0)","v":0}]
[{"$f":"IF(Descriptions!K58=\"Costs of Generating Funds\",Descriptions!I58,0)","v":0},{"$f":"IF(WorkingP!$B57=\"Cost of Generating Funds\",WorkingP!D57,\"\")","v":""},{"$f":"IF(WorkingP!$B57=\"Cost of Generating Funds\",WorkingP!E57,\"\")","v":""},{"$f":"IF(WorkingP!$B57=\"Cost of Generating Funds\",WorkingP!F57,\"\")","v":""},{"$f":"IF(WorkingP!$B57=\"Cost of Generating Funds\",WorkingP!G57,\"\")","v":""},{"$f":"IF(WorkingP!$B57=\"Cost of Generating Funds\",WorkingP!H57,\"\")","v":""},{"$f":"IF(WorkingP!$B57=\"Cost of Generating Funds\",WorkingP!I57,\"\")","v":""},{"$f":"IF(WorkingP!$B57=\"Cost of Generating Funds\",WorkingP!J57,\"\")","v":""},{"$f":"IF(WorkingP!$B57=\"Cost of Generating Funds\",WorkingP!K57,\"\")","v":""},{"$f":"IF(WorkingP!$B57=\"Cost of Generating Funds\",WorkingP!L57,\"\")","v":""},{"$f":"IF(WorkingP!$B57=\"Cost of Generating Funds\",WorkingP!M57,\"\")","v":""},{"$f":"IF(WorkingP!$B57=\"Cost of Generating Funds\",WorkingP!N57,\"\")","v":""},{"$f":"IF(WorkingP!$B57=\"Cost of Generating Funds\",WorkingP!O57,\"\")","v":""},{"$f":"IF(WorkingP!$B57=\"Cost of Generating Funds\",WorkingP!P57,\"\")","v":""},{"$f":"IF(WorkingP!$B57=\"Cost of Generating Funds\",WorkingP!Q57,\"\")","v":""},{"$f":"IF(WorkingP!$B57=\"Cost of Generating Funds\",WorkingP!R57,\"\")","v":""},{"$f":"IF(WorkingP!$B57=\"Cost of Generating Funds\",WorkingP!S57,\"\")","v":""},{"$f":"IF(WorkingP!$B57=\"Cost of Generating Funds\",WorkingP!T57,\"\")","v":""},{"$f":"IF(WorkingP!$B57=\"Cost of Generating Funds\",WorkingP!U57,\"\")","v":""},{"$f":"IF(WorkingP!$B57=\"Cost of Generating Funds\",WorkingP!V57,\"\")","v":""},{"$f":"IF(WorkingP!$B57=\"Cost of Generating Funds\",WorkingP!W57,\"\")","v":""},{"$f":"IF(WorkingP!$B57=\"Cost of Generating Funds\",WorkingP!X57,\"\")","v":""},{"$f":"IF(WorkingP!$B57=\"Cost of Generating Funds\",WorkingP!Y57,\"\")","v":""},{"$f":"IF(Descriptions!K58=\"Costs of Generating Funds\",Descriptions!AB58,0)","v":0}]
[{"$f":"IF(Descriptions!K59=\"Costs of Generating Funds\",Descriptions!I59,0)","v":0},{"$f":"IF(WorkingP!$B58=\"Cost of Generating Funds\",WorkingP!D58,\"\")","v":""},{"$f":"IF(WorkingP!$B58=\"Cost of Generating Funds\",WorkingP!E58,\"\")","v":""},{"$f":"IF(WorkingP!$B58=\"Cost of Generating Funds\",WorkingP!F58,\"\")","v":""},{"$f":"IF(WorkingP!$B58=\"Cost of Generating Funds\",WorkingP!G58,\"\")","v":""},{"$f":"IF(WorkingP!$B58=\"Cost of Generating Funds\",WorkingP!H58,\"\")","v":""},{"$f":"IF(WorkingP!$B58=\"Cost of Generating Funds\",WorkingP!I58,\"\")","v":""},{"$f":"IF(WorkingP!$B58=\"Cost of Generating Funds\",WorkingP!J58,\"\")","v":""},{"$f":"IF(WorkingP!$B58=\"Cost of Generating Funds\",WorkingP!K58,\"\")","v":""},{"$f":"IF(WorkingP!$B58=\"Cost of Generating Funds\",WorkingP!L58,\"\")","v":""},{"$f":"IF(WorkingP!$B58=\"Cost of Generating Funds\",WorkingP!M58,\"\")","v":""},{"$f":"IF(WorkingP!$B58=\"Cost of Generating Funds\",WorkingP!N58,\"\")","v":""},{"$f":"IF(WorkingP!$B58=\"Cost of Generating Funds\",WorkingP!O58,\"\")","v":""},{"$f":"IF(WorkingP!$B58=\"Cost of Generating Funds\",WorkingP!P58,\"\")","v":""},{"$f":"IF(WorkingP!$B58=\"Cost of Generating Funds\",WorkingP!Q58,\"\")","v":""},{"$f":"IF(WorkingP!$B58=\"Cost of Generating Funds\",WorkingP!R58,\"\")","v":""},{"$f":"IF(WorkingP!$B58=\"Cost of Generating Funds\",WorkingP!S58,\"\")","v":""},{"$f":"IF(WorkingP!$B58=\"Cost of Generating Funds\",WorkingP!T58,\"\")","v":""},{"$f":"IF(WorkingP!$B58=\"Cost of Generating Funds\",WorkingP!U58,\"\")","v":""},{"$f":"IF(WorkingP!$B58=\"Cost of Generating Funds\",WorkingP!V58,\"\")","v":""},{"$f":"IF(WorkingP!$B58=\"Cost of Generating Funds\",WorkingP!W58,\"\")","v":""},{"$f":"IF(WorkingP!$B58=\"Cost of Generating Funds\",WorkingP!X58,\"\")","v":""},{"$f":"IF(WorkingP!$B58=\"Cost of Generating Funds\",WorkingP!Y58,\"\")","v":""},{"$f":"IF(Descriptions!K59=\"Costs of Generating Funds\",Descriptions!AB59,0)","v":0}]
[{"$f":"IF(Descriptions!K60=\"Costs of Generating Funds\",Descriptions!I60,0)","v":0},{"$f":"IF(WorkingP!$B59=\"Cost of Generating Funds\",WorkingP!D59,\"\")","v":""},{"$f":"IF(WorkingP!$B59=\"Cost of Generating Funds\",WorkingP!E59,\"\")","v":""},{"$f":"IF(WorkingP!$B59=\"Cost of Generating Funds\",WorkingP!F59,\"\")","v":""},{"$f":"IF(WorkingP!$B59=\"Cost of Generating Funds\",WorkingP!G59,\"\")","v":""},{"$f":"IF(WorkingP!$B59=\"Cost of Generating Funds\",WorkingP!H59,\"\")","v":""},{"$f":"IF(WorkingP!$B59=\"Cost of Generating Funds\",WorkingP!I59,\"\")","v":""},{"$f":"IF(WorkingP!$B59=\"Cost of Generating Funds\",WorkingP!J59,\"\")","v":""},{"$f":"IF(WorkingP!$B59=\"Cost of Generating Funds\",WorkingP!K59,\"\")","v":""},{"$f":"IF(WorkingP!$B59=\"Cost of Generating Funds\",WorkingP!L59,\"\")","v":""},{"$f":"IF(WorkingP!$B59=\"Cost of Generating Funds\",WorkingP!M59,\"\")","v":""},{"$f":"IF(WorkingP!$B59=\"Cost of Generating Funds\",WorkingP!N59,\"\")","v":""},{"$f":"IF(WorkingP!$B59=\"Cost of Generating Funds\",WorkingP!O59,\"\")","v":""},{"$f":"IF(WorkingP!$B59=\"Cost of Generating Funds\",WorkingP!P59,\"\")","v":""},{"$f":"IF(WorkingP!$B59=\"Cost of Generating Funds\",WorkingP!Q59,\"\")","v":""},{"$f":"IF(WorkingP!$B59=\"Cost of Generating Funds\",WorkingP!R59,\"\")","v":""},{"$f":"IF(WorkingP!$B59=\"Cost of Generating Funds\",WorkingP!S59,\"\")","v":""},{"$f":"IF(WorkingP!$B59=\"Cost of Generating Funds\",WorkingP!T59,\"\")","v":""},{"$f":"IF(WorkingP!$B59=\"Cost of Generating Funds\",WorkingP!U59,\"\")","v":""},{"$f":"IF(WorkingP!$B59=\"Cost of Generating Funds\",WorkingP!V59,\"\")","v":""},{"$f":"IF(WorkingP!$B59=\"Cost of Generating Funds\",WorkingP!W59,\"\")","v":""},{"$f":"IF(WorkingP!$B59=\"Cost of Generating Funds\",WorkingP!X59,\"\")","v":""},{"$f":"IF(WorkingP!$B59=\"Cost of Generating Funds\",WorkingP!Y59,\"\")","v":""},{"$f":"IF(Descriptions!K60=\"Costs of Generating Funds\",Descriptions!AB60,0)","v":0}]
[{"$f":"IF(Descriptions!K61=\"Costs of Generating Funds\",Descriptions!I61,0)","v":0},{"$f":"IF(WorkingP!$B60=\"Cost of Generating Funds\",WorkingP!D60,\"\")","v":""},{"$f":"IF(WorkingP!$B60=\"Cost of Generating Funds\",WorkingP!E60,\"\")","v":""},{"$f":"IF(WorkingP!$B60=\"Cost of Generating Funds\",WorkingP!F60,\"\")","v":""},{"$f":"IF(WorkingP!$B60=\"Cost of Generating Funds\",WorkingP!G60,\"\")","v":""},{"$f":"IF(WorkingP!$B60=\"Cost of Generating Funds\",WorkingP!H60,\"\")","v":""},{"$f":"IF(WorkingP!$B60=\"Cost of Generating Funds\",WorkingP!I60,\"\")","v":""},{"$f":"IF(WorkingP!$B60=\"Cost of Generating Funds\",WorkingP!J60,\"\")","v":""},{"$f":"IF(WorkingP!$B60=\"Cost of Generating Funds\",WorkingP!K60,\"\")","v":""},{"$f":"IF(WorkingP!$B60=\"Cost of Generating Funds\",WorkingP!L60,\"\")","v":""},{"$f":"IF(WorkingP!$B60=\"Cost of Generating Funds\",WorkingP!M60,\"\")","v":""},{"$f":"IF(WorkingP!$B60=\"Cost of Generating Funds\",WorkingP!N60,\"\")","v":""},{"$f":"IF(WorkingP!$B60=\"Cost of Generating Funds\",WorkingP!O60,\"\")","v":""},{"$f":"IF(WorkingP!$B60=\"Cost of Generating Funds\",WorkingP!P60,\"\")","v":""},{"$f":"IF(WorkingP!$B60=\"Cost of Generating Funds\",WorkingP!Q60,\"\")","v":""},{"$f":"IF(WorkingP!$B60=\"Cost of Generating Funds\",WorkingP!R60,\"\")","v":""},{"$f":"IF(WorkingP!$B60=\"Cost of Generating Funds\",WorkingP!S60,\"\")","v":""},{"$f":"IF(WorkingP!$B60=\"Cost of Generating Funds\",WorkingP!T60,\"\")","v":""},{"$f":"IF(WorkingP!$B60=\"Cost of Generating Funds\",WorkingP!U60,\"\")","v":""},{"$f":"IF(WorkingP!$B60=\"Cost of Generating Funds\",WorkingP!V60,\"\")","v":""},{"$f":"IF(WorkingP!$B60=\"Cost of Generating Funds\",WorkingP!W60,\"\")","v":""},{"$f":"IF(WorkingP!$B60=\"Cost of Generating Funds\",WorkingP!X60,\"\")","v":""},{"$f":"IF(WorkingP!$B60=\"Cost of Generating Funds\",WorkingP!Y60,\"\")","v":""},{"$f":"IF(Descriptions!K61=\"Costs of Generating Funds\",Descriptions!AB61,0)","v":0}]
[{"$f":"IF(Descriptions!K62=\"Costs of Generating Funds\",Descriptions!I62,0)","v":0},{"$f":"IF(WorkingP!$B61=\"Cost of Generating Funds\",WorkingP!D61,\"\")","v":""},{"$f":"IF(WorkingP!$B61=\"Cost of Generating Funds\",WorkingP!E61,\"\")","v":""},{"$f":"IF(WorkingP!$B61=\"Cost of Generating Funds\",WorkingP!F61,\"\")","v":""},{"$f":"IF(WorkingP!$B61=\"Cost of Generating Funds\",WorkingP!G61,\"\")","v":""},{"$f":"IF(WorkingP!$B61=\"Cost of Generating Funds\",WorkingP!H61,\"\")","v":""},{"$f":"IF(WorkingP!$B61=\"Cost of Generating Funds\",WorkingP!I61,\"\")","v":""},{"$f":"IF(WorkingP!$B61=\"Cost of Generating Funds\",WorkingP!J61,\"\")","v":""},{"$f":"IF(WorkingP!$B61=\"Cost of Generating Funds\",WorkingP!K61,\"\")","v":""},{"$f":"IF(WorkingP!$B61=\"Cost of Generating Funds\",WorkingP!L61,\"\")","v":""},{"$f":"IF(WorkingP!$B61=\"Cost of Generating Funds\",WorkingP!M61,\"\")","v":""},{"$f":"IF(WorkingP!$B61=\"Cost of Generating Funds\",WorkingP!N61,\"\")","v":""},{"$f":"IF(WorkingP!$B61=\"Cost of Generating Funds\",WorkingP!O61,\"\")","v":""},{"$f":"IF(WorkingP!$B61=\"Cost of Generating Funds\",WorkingP!P61,\"\")","v":""},{"$f":"IF(WorkingP!$B61=\"Cost of Generating Funds\",WorkingP!Q61,\"\")","v":""},{"$f":"IF(WorkingP!$B61=\"Cost of Generating Funds\",WorkingP!R61,\"\")","v":""},{"$f":"IF(WorkingP!$B61=\"Cost of Generating Funds\",WorkingP!S61,\"\")","v":""},{"$f":"IF(WorkingP!$B61=\"Cost of Generating Funds\",WorkingP!T61,\"\")","v":""},{"$f":"IF(WorkingP!$B61=\"Cost of Generating Funds\",WorkingP!U61,\"\")","v":""},{"$f":"IF(WorkingP!$B61=\"Cost of Generating Funds\",WorkingP!V61,\"\")","v":""},{"$f":"IF(WorkingP!$B61=\"Cost of Generating Funds\",WorkingP!W61,\"\")","v":""},{"$f":"IF(WorkingP!$B61=\"Cost of Generating Funds\",WorkingP!X61,\"\")","v":""},{"$f":"IF(WorkingP!$B61=\"Cost of Generating Funds\",WorkingP!Y61,\"\")","v":""},{"$f":"IF(Descriptions!K62=\"Costs of Generating Funds\",Descriptions!AB62,0)","v":0}]
[{"$f":"IF(Descriptions!K63=\"Costs of Generating Funds\",Descriptions!I63,0)","v":0},{"$f":"IF(WorkingP!$B62=\"Cost of Generating Funds\",WorkingP!D62,\"\")","v":""},{"$f":"IF(WorkingP!$B62=\"Cost of Generating Funds\",WorkingP!E62,\"\")","v":""},{"$f":"IF(WorkingP!$B62=\"Cost of Generating Funds\",WorkingP!F62,\"\")","v":""},{"$f":"IF(WorkingP!$B62=\"Cost of Generating Funds\",WorkingP!G62,\"\")","v":""},{"$f":"IF(WorkingP!$B62=\"Cost of Generating Funds\",WorkingP!H62,\"\")","v":""},{"$f":"IF(WorkingP!$B62=\"Cost of Generating Funds\",WorkingP!I62,\"\")","v":""},{"$f":"IF(WorkingP!$B62=\"Cost of Generating Funds\",WorkingP!J62,\"\")","v":""},{"$f":"IF(WorkingP!$B62=\"Cost of Generating Funds\",WorkingP!K62,\"\")","v":""},{"$f":"IF(WorkingP!$B62=\"Cost of Generating Funds\",WorkingP!L62,\"\")","v":""},{"$f":"IF(WorkingP!$B62=\"Cost of Generating Funds\",WorkingP!M62,\"\")","v":""},{"$f":"IF(WorkingP!$B62=\"Cost of Generating Funds\",WorkingP!N62,\"\")","v":""},{"$f":"IF(WorkingP!$B62=\"Cost of Generating Funds\",WorkingP!O62,\"\")","v":""},{"$f":"IF(WorkingP!$B62=\"Cost of Generating Funds\",WorkingP!P62,\"\")","v":""},{"$f":"IF(WorkingP!$B62=\"Cost of Generating Funds\",WorkingP!Q62,\"\")","v":""},{"$f":"IF(WorkingP!$B62=\"Cost of Generating Funds\",WorkingP!R62,\"\")","v":""},{"$f":"IF(WorkingP!$B62=\"Cost of Generating Funds\",WorkingP!S62,\"\")","v":""},{"$f":"IF(WorkingP!$B62=\"Cost of Generating Funds\",WorkingP!T62,\"\")","v":""},{"$f":"IF(WorkingP!$B62=\"Cost of Generating Funds\",WorkingP!U62,\"\")","v":""},{"$f":"IF(WorkingP!$B62=\"Cost of Generating Funds\",WorkingP!V62,\"\")","v":""},{"$f":"IF(WorkingP!$B62=\"Cost of Generating Funds\",WorkingP!W62,\"\")","v":""},{"$f":"IF(WorkingP!$B62=\"Cost of Generating Funds\",WorkingP!X62,\"\")","v":""},{"$f":"IF(WorkingP!$B62=\"Cost of Generating Funds\",WorkingP!Y62,\"\")","v":""},{"$f":"IF(Descriptions!K63=\"Costs of Generating Funds\",Descriptions!AB63,0)","v":0}]
[{"$f":"IF(Descriptions!K64=\"Costs of Generating Funds\",Descriptions!I64,0)","v":0},{"$f":"IF(WorkingP!$B63=\"Cost of Generating Funds\",WorkingP!D63,\"\")","v":""},{"$f":"IF(WorkingP!$B63=\"Cost of Generating Funds\",WorkingP!E63,\"\")","v":""},{"$f":"IF(WorkingP!$B63=\"Cost of Generating Funds\",WorkingP!F63,\"\")","v":""},{"$f":"IF(WorkingP!$B63=\"Cost of Generating Funds\",WorkingP!G63,\"\")","v":""},{"$f":"IF(WorkingP!$B63=\"Cost of Generating Funds\",WorkingP!H63,\"\")","v":""},{"$f":"IF(WorkingP!$B63=\"Cost of Generating Funds\",WorkingP!I63,\"\")","v":""},{"$f":"IF(WorkingP!$B63=\"Cost of Generating Funds\",WorkingP!J63,\"\")","v":""},{"$f":"IF(WorkingP!$B63=\"Cost of Generating Funds\",WorkingP!K63,\"\")","v":""},{"$f":"IF(WorkingP!$B63=\"Cost of Generating Funds\",WorkingP!L63,\"\")","v":""},{"$f":"IF(WorkingP!$B63=\"Cost of Generating Funds\",WorkingP!M63,\"\")","v":""},{"$f":"IF(WorkingP!$B63=\"Cost of Generating Funds\",WorkingP!N63,\"\")","v":""},{"$f":"IF(WorkingP!$B63=\"Cost of Generating Funds\",WorkingP!O63,\"\")","v":""},{"$f":"IF(WorkingP!$B63=\"Cost of Generating Funds\",WorkingP!P63,\"\")","v":""},{"$f":"IF(WorkingP!$B63=\"Cost of Generating Funds\",WorkingP!Q63,\"\")","v":""},{"$f":"IF(WorkingP!$B63=\"Cost of Generating Funds\",WorkingP!R63,\"\")","v":""},{"$f":"IF(WorkingP!$B63=\"Cost of Generating Funds\",WorkingP!S63,\"\")","v":""},{"$f":"IF(WorkingP!$B63=\"Cost of Generating Funds\",WorkingP!T63,\"\")","v":""},{"$f":"IF(WorkingP!$B63=\"Cost of Generating Funds\",WorkingP!U63,\"\")","v":""},{"$f":"IF(WorkingP!$B63=\"Cost of Generating Funds\",WorkingP!V63,\"\")","v":""},{"$f":"IF(WorkingP!$B63=\"Cost of Generating Funds\",WorkingP!W63,\"\")","v":""},{"$f":"IF(WorkingP!$B63=\"Cost of Generating Funds\",WorkingP!X63,\"\")","v":""},{"$f":"IF(WorkingP!$B63=\"Cost of Generating Funds\",WorkingP!Y63,\"\")","v":""},{"$f":"IF(Descriptions!K64=\"Costs of Generating Funds\",Descriptions!AB64,0)","v":0}]
[{"$f":"IF(Descriptions!K65=\"Costs of Generating Funds\",Descriptions!I65,0)","v":0},{"$f":"IF(WorkingP!$B64=\"Cost of Generating Funds\",WorkingP!D64,\"\")","v":""},{"$f":"IF(WorkingP!$B64=\"Cost of Generating Funds\",WorkingP!E64,\"\")","v":""},{"$f":"IF(WorkingP!$B64=\"Cost of Generating Funds\",WorkingP!F64,\"\")","v":""},{"$f":"IF(WorkingP!$B64=\"Cost of Generating Funds\",WorkingP!G64,\"\")","v":""},{"$f":"IF(WorkingP!$B64=\"Cost of Generating Funds\",WorkingP!H64,\"\")","v":""},{"$f":"IF(WorkingP!$B64=\"Cost of Generating Funds\",WorkingP!I64,\"\")","v":""},{"$f":"IF(WorkingP!$B64=\"Cost of Generating Funds\",WorkingP!J64,\"\")","v":""},{"$f":"IF(WorkingP!$B64=\"Cost of Generating Funds\",WorkingP!K64,\"\")","v":""},{"$f":"IF(WorkingP!$B64=\"Cost of Generating Funds\",WorkingP!L64,\"\")","v":""},{"$f":"IF(WorkingP!$B64=\"Cost of Generating Funds\",WorkingP!M64,\"\")","v":""},{"$f":"IF(WorkingP!$B64=\"Cost of Generating Funds\",WorkingP!N64,\"\")","v":""},{"$f":"IF(WorkingP!$B64=\"Cost of Generating Funds\",WorkingP!O64,\"\")","v":""},{"$f":"IF(WorkingP!$B64=\"Cost of Generating Funds\",WorkingP!P64,\"\")","v":""},{"$f":"IF(WorkingP!$B64=\"Cost of Generating Funds\",WorkingP!Q64,\"\")","v":""},{"$f":"IF(WorkingP!$B64=\"Cost of Generating Funds\",WorkingP!R64,\"\")","v":""},{"$f":"IF(WorkingP!$B64=\"Cost of Generating Funds\",WorkingP!S64,\"\")","v":""},{"$f":"IF(WorkingP!$B64=\"Cost of Generating Funds\",WorkingP!T64,\"\")","v":""},{"$f":"IF(WorkingP!$B64=\"Cost of Generating Funds\",WorkingP!U64,\"\")","v":""},{"$f":"IF(WorkingP!$B64=\"Cost of Generating Funds\",WorkingP!V64,\"\")","v":""},{"$f":"IF(WorkingP!$B64=\"Cost of Generating Funds\",WorkingP!W64,\"\")","v":""},{"$f":"IF(WorkingP!$B64=\"Cost of Generating Funds\",WorkingP!X64,\"\")","v":""},{"$f":"IF(WorkingP!$B64=\"Cost of Generating Funds\",WorkingP!Y64,\"\")","v":""},{"$f":"IF(Descriptions!K65=\"Costs of Generating Funds\",Descriptions!AB65,0)","v":0}]
[{"$f":"IF(Descriptions!K66=\"Costs of Generating Funds\",Descriptions!I66,0)","v":0},{"$f":"IF(WorkingP!$B65=\"Cost of Generating Funds\",WorkingP!D65,\"\")","v":""},{"$f":"IF(WorkingP!$B65=\"Cost of Generating Funds\",WorkingP!E65,\"\")","v":""},{"$f":"IF(WorkingP!$B65=\"Cost of Generating Funds\",WorkingP!F65,\"\")","v":""},{"$f":"IF(WorkingP!$B65=\"Cost of Generating Funds\",WorkingP!G65,\"\")","v":""},{"$f":"IF(WorkingP!$B65=\"Cost of Generating Funds\",WorkingP!H65,\"\")","v":""},{"$f":"IF(WorkingP!$B65=\"Cost of Generating Funds\",WorkingP!I65,\"\")","v":""},{"$f":"IF(WorkingP!$B65=\"Cost of Generating Funds\",WorkingP!J65,\"\")","v":""},{"$f":"IF(WorkingP!$B65=\"Cost of Generating Funds\",WorkingP!K65,\"\")","v":""},{"$f":"IF(WorkingP!$B65=\"Cost of Generating Funds\",WorkingP!L65,\"\")","v":""},{"$f":"IF(WorkingP!$B65=\"Cost of Generating Funds\",WorkingP!M65,\"\")","v":""},{"$f":"IF(WorkingP!$B65=\"Cost of Generating Funds\",WorkingP!N65,\"\")","v":""},{"$f":"IF(WorkingP!$B65=\"Cost of Generating Funds\",WorkingP!O65,\"\")","v":""},{"$f":"IF(WorkingP!$B65=\"Cost of Generating Funds\",WorkingP!P65,\"\")","v":""},{"$f":"IF(WorkingP!$B65=\"Cost of Generating Funds\",WorkingP!Q65,\"\")","v":""},{"$f":"IF(WorkingP!$B65=\"Cost of Generating Funds\",WorkingP!R65,\"\")","v":""},{"$f":"IF(WorkingP!$B65=\"Cost of Generating Funds\",WorkingP!S65,\"\")","v":""},{"$f":"IF(WorkingP!$B65=\"Cost of Generating Funds\",WorkingP!T65,\"\")","v":""},{"$f":"IF(WorkingP!$B65=\"Cost of Generating Funds\",WorkingP!U65,\"\")","v":""},{"$f":"IF(WorkingP!$B65=\"Cost of Generating Funds\",WorkingP!V65,\"\")","v":""},{"$f":"IF(WorkingP!$B65=\"Cost of Generating Funds\",WorkingP!W65,\"\")","v":""},{"$f":"IF(WorkingP!$B65=\"Cost of Generating Funds\",WorkingP!X65,\"\")","v":""},{"$f":"IF(WorkingP!$B65=\"Cost of Generating Funds\",WorkingP!Y65,\"\")","v":""},{"$f":"IF(Descriptions!K66=\"Costs of Generating Funds\",Descriptions!AB66,0)","v":0}]
[{"$f":"IF(Descriptions!K67=\"Costs of Generating Funds\",Descriptions!I67,0)","v":0},{"$f":"IF(WorkingP!$B66=\"Cost of Generating Funds\",WorkingP!D66,\"\")","v":""},{"$f":"IF(WorkingP!$B66=\"Cost of Generating Funds\",WorkingP!E66,\"\")","v":""},{"$f":"IF(WorkingP!$B66=\"Cost of Generating Funds\",WorkingP!F66,\"\")","v":""},{"$f":"IF(WorkingP!$B66=\"Cost of Generating Funds\",WorkingP!G66,\"\")","v":""},{"$f":"IF(WorkingP!$B66=\"Cost of Generating Funds\",WorkingP!H66,\"\")","v":""},{"$f":"IF(WorkingP!$B66=\"Cost of Generating Funds\",WorkingP!I66,\"\")","v":""},{"$f":"IF(WorkingP!$B66=\"Cost of Generating Funds\",WorkingP!J66,\"\")","v":""},{"$f":"IF(WorkingP!$B66=\"Cost of Generating Funds\",WorkingP!K66,\"\")","v":""},{"$f":"IF(WorkingP!$B66=\"Cost of Generating Funds\",WorkingP!L66,\"\")","v":""},{"$f":"IF(WorkingP!$B66=\"Cost of Generating Funds\",WorkingP!M66,\"\")","v":""},{"$f":"IF(WorkingP!$B66=\"Cost of Generating Funds\",WorkingP!N66,\"\")","v":""},{"$f":"IF(WorkingP!$B66=\"Cost of Generating Funds\",WorkingP!O66,\"\")","v":""},{"$f":"IF(WorkingP!$B66=\"Cost of Generating Funds\",WorkingP!P66,\"\")","v":""},{"$f":"IF(WorkingP!$B66=\"Cost of Generating Funds\",WorkingP!Q66,\"\")","v":""},{"$f":"IF(WorkingP!$B66=\"Cost of Generating Funds\",WorkingP!R66,\"\")","v":""},{"$f":"IF(WorkingP!$B66=\"Cost of Generating Funds\",WorkingP!S66,\"\")","v":""},{"$f":"IF(WorkingP!$B66=\"Cost of Generating Funds\",WorkingP!T66,\"\")","v":""},{"$f":"IF(WorkingP!$B66=\"Cost of Generating Funds\",WorkingP!U66,\"\")","v":""},{"$f":"IF(WorkingP!$B66=\"Cost of Generating Funds\",WorkingP!V66,\"\")","v":""},{"$f":"IF(WorkingP!$B66=\"Cost of Generating Funds\",WorkingP!W66,\"\")","v":""},{"$f":"IF(WorkingP!$B66=\"Cost of Generating Funds\",WorkingP!X66,\"\")","v":""},{"$f":"IF(WorkingP!$B66=\"Cost of Generating Funds\",WorkingP!Y66,\"\")","v":""},{"$f":"IF(Descriptions!K67=\"Costs of Generating Funds\",Descriptions!AB67,0)","v":0}]
[{"$f":"IF(Descriptions!K68=\"Costs of Generating Funds\",Descriptions!I68,0)","v":0},{"$f":"IF(WorkingP!$B67=\"Cost of Generating Funds\",WorkingP!D67,\"\")","v":""},{"$f":"IF(WorkingP!$B67=\"Cost of Generating Funds\",WorkingP!E67,\"\")","v":""},{"$f":"IF(WorkingP!$B67=\"Cost of Generating Funds\",WorkingP!F67,\"\")","v":""},{"$f":"IF(WorkingP!$B67=\"Cost of Generating Funds\",WorkingP!G67,\"\")","v":""},{"$f":"IF(WorkingP!$B67=\"Cost of Generating Funds\",WorkingP!H67,\"\")","v":""},{"$f":"IF(WorkingP!$B67=\"Cost of Generating Funds\",WorkingP!I67,\"\")","v":""},{"$f":"IF(WorkingP!$B67=\"Cost of Generating Funds\",WorkingP!J67,\"\")","v":""},{"$f":"IF(WorkingP!$B67=\"Cost of Generating Funds\",WorkingP!K67,\"\")","v":""},{"$f":"IF(WorkingP!$B67=\"Cost of Generating Funds\",WorkingP!L67,\"\")","v":""},{"$f":"IF(WorkingP!$B67=\"Cost of Generating Funds\",WorkingP!M67,\"\")","v":""},{"$f":"IF(WorkingP!$B67=\"Cost of Generating Funds\",WorkingP!N67,\"\")","v":""},{"$f":"IF(WorkingP!$B67=\"Cost of Generating Funds\",WorkingP!O67,\"\")","v":""},{"$f":"IF(WorkingP!$B67=\"Cost of Generating Funds\",WorkingP!P67,\"\")","v":""},{"$f":"IF(WorkingP!$B67=\"Cost of Generating Funds\",WorkingP!Q67,\"\")","v":""},{"$f":"IF(WorkingP!$B67=\"Cost of Generating Funds\",WorkingP!R67,\"\")","v":""},{"$f":"IF(WorkingP!$B67=\"Cost of Generating Funds\",WorkingP!S67,\"\")","v":""},{"$f":"IF(WorkingP!$B67=\"Cost of Generating Funds\",WorkingP!T67,\"\")","v":""},{"$f":"IF(WorkingP!$B67=\"Cost of Generating Funds\",WorkingP!U67,\"\")","v":""},{"$f":"IF(WorkingP!$B67=\"Cost of Generating Funds\",WorkingP!V67,\"\")","v":""},{"$f":"IF(WorkingP!$B67=\"Cost of Generating Funds\",WorkingP!W67,\"\")","v":""},{"$f":"IF(WorkingP!$B67=\"Cost of Generating Funds\",WorkingP!X67,\"\")","v":""},{"$f":"IF(WorkingP!$B67=\"Cost of Generating Funds\",WorkingP!Y67,\"\")","v":""},{"$f":"IF(Descriptions!K68=\"Costs of Generating Funds\",Descriptions!AB68,0)","v":0}]
[{"$f":"IF(Descriptions!K69=\"Costs of Generating Funds\",Descriptions!I69,0)","v":0},{"$f":"IF(WorkingP!$B68=\"Cost of Generating Funds\",WorkingP!D68,\"\")","v":""},{"$f":"IF(WorkingP!$B68=\"Cost of Generating Funds\",WorkingP!E68,\"\")","v":""},{"$f":"IF(WorkingP!$B68=\"Cost of Generating Funds\",WorkingP!F68,\"\")","v":""},{"$f":"IF(WorkingP!$B68=\"Cost of Generating Funds\",WorkingP!G68,\"\")","v":""},{"$f":"IF(WorkingP!$B68=\"Cost of Generating Funds\",WorkingP!H68,\"\")","v":""},{"$f":"IF(WorkingP!$B68=\"Cost of Generating Funds\",WorkingP!I68,\"\")","v":""},{"$f":"IF(WorkingP!$B68=\"Cost of Generating Funds\",WorkingP!J68,\"\")","v":""},{"$f":"IF(WorkingP!$B68=\"Cost of Generating Funds\",WorkingP!K68,\"\")","v":""},{"$f":"IF(WorkingP!$B68=\"Cost of Generating Funds\",WorkingP!L68,\"\")","v":""},{"$f":"IF(WorkingP!$B68=\"Cost of Generating Funds\",WorkingP!M68,\"\")","v":""},{"$f":"IF(WorkingP!$B68=\"Cost of Generating Funds\",WorkingP!N68,\"\")","v":""},{"$f":"IF(WorkingP!$B68=\"Cost of Generating Funds\",WorkingP!O68,\"\")","v":""},{"$f":"IF(WorkingP!$B68=\"Cost of Generating Funds\",WorkingP!P68,\"\")","v":""},{"$f":"IF(WorkingP!$B68=\"Cost of Generating Funds\",WorkingP!Q68,\"\")","v":""},{"$f":"IF(WorkingP!$B68=\"Cost of Generating Funds\",WorkingP!R68,\"\")","v":""},{"$f":"IF(WorkingP!$B68=\"Cost of Generating Funds\",WorkingP!S68,\"\")","v":""},{"$f":"IF(WorkingP!$B68=\"Cost of Generating Funds\",WorkingP!T68,\"\")","v":""},{"$f":"IF(WorkingP!$B68=\"Cost of Generating Funds\",WorkingP!U68,\"\")","v":""},{"$f":"IF(WorkingP!$B68=\"Cost of Generating Funds\",WorkingP!V68,\"\")","v":""},{"$f":"IF(WorkingP!$B68=\"Cost of Generating Funds\",WorkingP!W68,\"\")","v":""},{"$f":"IF(WorkingP!$B68=\"Cost of Generating Funds\",WorkingP!X68,\"\")","v":""},{"$f":"IF(WorkingP!$B68=\"Cost of Generating Funds\",WorkingP!Y68,\"\")","v":""},{"$f":"IF(Descriptions!K69=\"Costs of Generating Funds\",Descriptions!AB69,0)","v":0}]
[{"$f":"IF(Descriptions!K70=\"Costs of Generating Funds\",Descriptions!I70,0)","v":0},{"$f":"IF(WorkingP!$B69=\"Cost of Generating Funds\",WorkingP!D69,\"\")","v":""},{"$f":"IF(WorkingP!$B69=\"Cost of Generating Funds\",WorkingP!E69,\"\")","v":""},{"$f":"IF(WorkingP!$B69=\"Cost of Generating Funds\",WorkingP!F69,\"\")","v":""},{"$f":"IF(WorkingP!$B69=\"Cost of Generating Funds\",WorkingP!G69,\"\")","v":""},{"$f":"IF(WorkingP!$B69=\"Cost of Generating Funds\",WorkingP!H69,\"\")","v":""},{"$f":"IF(WorkingP!$B69=\"Cost of Generating Funds\",WorkingP!I69,\"\")","v":""},{"$f":"IF(WorkingP!$B69=\"Cost of Generating Funds\",WorkingP!J69,\"\")","v":""},{"$f":"IF(WorkingP!$B69=\"Cost of Generating Funds\",WorkingP!K69,\"\")","v":""},{"$f":"IF(WorkingP!$B69=\"Cost of Generating Funds\",WorkingP!L69,\"\")","v":""},{"$f":"IF(WorkingP!$B69=\"Cost of Generating Funds\",WorkingP!M69,\"\")","v":""},{"$f":"IF(WorkingP!$B69=\"Cost of Generating Funds\",WorkingP!N69,\"\")","v":""},{"$f":"IF(WorkingP!$B69=\"Cost of Generating Funds\",WorkingP!O69,\"\")","v":""},{"$f":"IF(WorkingP!$B69=\"Cost of Generating Funds\",WorkingP!P69,\"\")","v":""},{"$f":"IF(WorkingP!$B69=\"Cost of Generating Funds\",WorkingP!Q69,\"\")","v":""},{"$f":"IF(WorkingP!$B69=\"Cost of Generating Funds\",WorkingP!R69,\"\")","v":""},{"$f":"IF(WorkingP!$B69=\"Cost of Generating Funds\",WorkingP!S69,\"\")","v":""},{"$f":"IF(WorkingP!$B69=\"Cost of Generating Funds\",WorkingP!T69,\"\")","v":""},{"$f":"IF(WorkingP!$B69=\"Cost of Generating Funds\",WorkingP!U69,\"\")","v":""},{"$f":"IF(WorkingP!$B69=\"Cost of Generating Funds\",WorkingP!V69,\"\")","v":""},{"$f":"IF(WorkingP!$B69=\"Cost of Generating Funds\",WorkingP!W69,\"\")","v":""},{"$f":"IF(WorkingP!$B69=\"Cost of Generating Funds\",WorkingP!X69,\"\")","v":""},{"$f":"IF(WorkingP!$B69=\"Cost of Generating Funds\",WorkingP!Y69,\"\")","v":""},{"$f":"IF(Descriptions!K70=\"Costs of Generating Funds\",Descriptions!AB70,0)","v":0}]
[{"$f":"IF(Descriptions!K71=\"Costs of Generating Funds\",Descriptions!I71,0)","v":0},{"$f":"IF(WorkingP!$B70=\"Cost of Generating Funds\",WorkingP!D70,\"\")","v":""},{"$f":"IF(WorkingP!$B70=\"Cost of Generating Funds\",WorkingP!E70,\"\")","v":""},{"$f":"IF(WorkingP!$B70=\"Cost of Generating Funds\",WorkingP!F70,\"\")","v":""},{"$f":"IF(WorkingP!$B70=\"Cost of Generating Funds\",WorkingP!G70,\"\")","v":""},{"$f":"IF(WorkingP!$B70=\"Cost of Generating Funds\",WorkingP!H70,\"\")","v":""},{"$f":"IF(WorkingP!$B70=\"Cost of Generating Funds\",WorkingP!I70,\"\")","v":""},{"$f":"IF(WorkingP!$B70=\"Cost of Generating Funds\",WorkingP!J70,\"\")","v":""},{"$f":"IF(WorkingP!$B70=\"Cost of Generating Funds\",WorkingP!K70,\"\")","v":""},{"$f":"IF(WorkingP!$B70=\"Cost of Generating Funds\",WorkingP!L70,\"\")","v":""},{"$f":"IF(WorkingP!$B70=\"Cost of Generating Funds\",WorkingP!M70,\"\")","v":""},{"$f":"IF(WorkingP!$B70=\"Cost of Generating Funds\",WorkingP!N70,\"\")","v":""},{"$f":"IF(WorkingP!$B70=\"Cost of Generating Funds\",WorkingP!O70,\"\")","v":""},{"$f":"IF(WorkingP!$B70=\"Cost of Generating Funds\",WorkingP!P70,\"\")","v":""},{"$f":"IF(WorkingP!$B70=\"Cost of Generating Funds\",WorkingP!Q70,\"\")","v":""},{"$f":"IF(WorkingP!$B70=\"Cost of Generating Funds\",WorkingP!R70,\"\")","v":""},{"$f":"IF(WorkingP!$B70=\"Cost of Generating Funds\",WorkingP!S70,\"\")","v":""},{"$f":"IF(WorkingP!$B70=\"Cost of Generating Funds\",WorkingP!T70,\"\")","v":""},{"$f":"IF(WorkingP!$B70=\"Cost of Generating Funds\",WorkingP!U70,\"\")","v":""},{"$f":"IF(WorkingP!$B70=\"Cost of Generating Funds\",WorkingP!V70,\"\")","v":""},{"$f":"IF(WorkingP!$B70=\"Cost of Generating Funds\",WorkingP!W70,\"\")","v":""},{"$f":"IF(WorkingP!$B70=\"Cost of Generating Funds\",WorkingP!X70,\"\")","v":""},{"$f":"IF(WorkingP!$B70=\"Cost of Generating Funds\",WorkingP!Y70,\"\")","v":""},{"$f":"IF(Descriptions!K71=\"Costs of Generating Funds\",Descriptions!AB71,0)","v":0}]
[{"$f":"IF(Descriptions!K72=\"Costs of Generating Funds\",Descriptions!I72,0)","v":0},{"$f":"IF(WorkingP!$B71=\"Cost of Generating Funds\",WorkingP!D71,\"\")","v":""},{"$f":"IF(WorkingP!$B71=\"Cost of Generating Funds\",WorkingP!E71,\"\")","v":""},{"$f":"IF(WorkingP!$B71=\"Cost of Generating Funds\",WorkingP!F71,\"\")","v":""},{"$f":"IF(WorkingP!$B71=\"Cost of Generating Funds\",WorkingP!G71,\"\")","v":""},{"$f":"IF(WorkingP!$B71=\"Cost of Generating Funds\",WorkingP!H71,\"\")","v":""},{"$f":"IF(WorkingP!$B71=\"Cost of Generating Funds\",WorkingP!I71,\"\")","v":""},{"$f":"IF(WorkingP!$B71=\"Cost of Generating Funds\",WorkingP!J71,\"\")","v":""},{"$f":"IF(WorkingP!$B71=\"Cost of Generating Funds\",WorkingP!K71,\"\")","v":""},{"$f":"IF(WorkingP!$B71=\"Cost of Generating Funds\",WorkingP!L71,\"\")","v":""},{"$f":"IF(WorkingP!$B71=\"Cost of Generating Funds\",WorkingP!M71,\"\")","v":""},{"$f":"IF(WorkingP!$B71=\"Cost of Generating Funds\",WorkingP!N71,\"\")","v":""},{"$f":"IF(WorkingP!$B71=\"Cost of Generating Funds\",WorkingP!O71,\"\")","v":""},{"$f":"IF(WorkingP!$B71=\"Cost of Generating Funds\",WorkingP!P71,\"\")","v":""},{"$f":"IF(WorkingP!$B71=\"Cost of Generating Funds\",WorkingP!Q71,\"\")","v":""},{"$f":"IF(WorkingP!$B71=\"Cost of Generating Funds\",WorkingP!R71,\"\")","v":""},{"$f":"IF(WorkingP!$B71=\"Cost of Generating Funds\",WorkingP!S71,\"\")","v":""},{"$f":"IF(WorkingP!$B71=\"Cost of Generating Funds\",WorkingP!T71,\"\")","v":""},{"$f":"IF(WorkingP!$B71=\"Cost of Generating Funds\",WorkingP!U71,\"\")","v":""},{"$f":"IF(WorkingP!$B71=\"Cost of Generating Funds\",WorkingP!V71,\"\")","v":""},{"$f":"IF(WorkingP!$B71=\"Cost of Generating Funds\",WorkingP!W71,\"\")","v":""},{"$f":"IF(WorkingP!$B71=\"Cost of Generating Funds\",WorkingP!X71,\"\")","v":""},{"$f":"IF(WorkingP!$B71=\"Cost of Generating Funds\",WorkingP!Y71,\"\")","v":""},{"$f":"IF(Descriptions!K72=\"Costs of Generating Funds\",Descriptions!AB72,0)","v":0}]
[{"$f":"IF(Descriptions!K73=\"Costs of Generating Funds\",Descriptions!I73,0)","v":0},{"$f":"IF(WorkingP!$B72=\"Cost of Generating Funds\",WorkingP!D72,\"\")","v":""},{"$f":"IF(WorkingP!$B72=\"Cost of Generating Funds\",WorkingP!E72,\"\")","v":""},{"$f":"IF(WorkingP!$B72=\"Cost of Generating Funds\",WorkingP!F72,\"\")","v":""},{"$f":"IF(WorkingP!$B72=\"Cost of Generating Funds\",WorkingP!G72,\"\")","v":""},{"$f":"IF(WorkingP!$B72=\"Cost of Generating Funds\",WorkingP!H72,\"\")","v":""},{"$f":"IF(WorkingP!$B72=\"Cost of Generating Funds\",WorkingP!I72,\"\")","v":""},{"$f":"IF(WorkingP!$B72=\"Cost of Generating Funds\",WorkingP!J72,\"\")","v":""},{"$f":"IF(WorkingP!$B72=\"Cost of Generating Funds\",WorkingP!K72,\"\")","v":""},{"$f":"IF(WorkingP!$B72=\"Cost of Generating Funds\",WorkingP!L72,\"\")","v":""},{"$f":"IF(WorkingP!$B72=\"Cost of Generating Funds\",WorkingP!M72,\"\")","v":""},{"$f":"IF(WorkingP!$B72=\"Cost of Generating Funds\",WorkingP!N72,\"\")","v":""},{"$f":"IF(WorkingP!$B72=\"Cost of Generating Funds\",WorkingP!O72,\"\")","v":""},{"$f":"IF(WorkingP!$B72=\"Cost of Generating Funds\",WorkingP!P72,\"\")","v":""},{"$f":"IF(WorkingP!$B72=\"Cost of Generating Funds\",WorkingP!Q72,\"\")","v":""},{"$f":"IF(WorkingP!$B72=\"Cost of Generating Funds\",WorkingP!R72,\"\")","v":""},{"$f":"IF(WorkingP!$B72=\"Cost of Generating Funds\",WorkingP!S72,\"\")","v":""},{"$f":"IF(WorkingP!$B72=\"Cost of Generating Funds\",WorkingP!T72,\"\")","v":""},{"$f":"IF(WorkingP!$B72=\"Cost of Generating Funds\",WorkingP!U72,\"\")","v":""},{"$f":"IF(WorkingP!$B72=\"Cost of Generating Funds\",WorkingP!V72,\"\")","v":""},{"$f":"IF(WorkingP!$B72=\"Cost of Generating Funds\",WorkingP!W72,\"\")","v":""},{"$f":"IF(WorkingP!$B72=\"Cost of Generating Funds\",WorkingP!X72,\"\")","v":""},{"$f":"IF(WorkingP!$B72=\"Cost of Generating Funds\",WorkingP!Y72,\"\")","v":""},{"$f":"IF(Descriptions!K73=\"Costs of Generating Funds\",Descriptions!AB73,0)","v":0}]
[{"$f":"IF(Descriptions!K74=\"Costs of Generating Funds\",Descriptions!I74,0)","v":0},{"$f":"IF(WorkingP!$B73=\"Cost of Generating Funds\",WorkingP!D73,\"\")","v":""},{"$f":"IF(WorkingP!$B73=\"Cost of Generating Funds\",WorkingP!E73,\"\")","v":""},{"$f":"IF(WorkingP!$B73=\"Cost of Generating Funds\",WorkingP!F73,\"\")","v":""},{"$f":"IF(WorkingP!$B73=\"Cost of Generating Funds\",WorkingP!G73,\"\")","v":""},{"$f":"IF(WorkingP!$B73=\"Cost of Generating Funds\",WorkingP!H73,\"\")","v":""},{"$f":"IF(WorkingP!$B73=\"Cost of Generating Funds\",WorkingP!I73,\"\")","v":""},{"$f":"IF(WorkingP!$B73=\"Cost of Generating Funds\",WorkingP!J73,\"\")","v":""},{"$f":"IF(WorkingP!$B73=\"Cost of Generating Funds\",WorkingP!K73,\"\")","v":""},{"$f":"IF(WorkingP!$B73=\"Cost of Generating Funds\",WorkingP!L73,\"\")","v":""},{"$f":"IF(WorkingP!$B73=\"Cost of Generating Funds\",WorkingP!M73,\"\")","v":""},{"$f":"IF(WorkingP!$B73=\"Cost of Generating Funds\",WorkingP!N73,\"\")","v":""},{"$f":"IF(WorkingP!$B73=\"Cost of Generating Funds\",WorkingP!O73,\"\")","v":""},{"$f":"IF(WorkingP!$B73=\"Cost of Generating Funds\",WorkingP!P73,\"\")","v":""},{"$f":"IF(WorkingP!$B73=\"Cost of Generating Funds\",WorkingP!Q73,\"\")","v":""},{"$f":"IF(WorkingP!$B73=\"Cost of Generating Funds\",WorkingP!R73,\"\")","v":""},{"$f":"IF(WorkingP!$B73=\"Cost of Generating Funds\",WorkingP!S73,\"\")","v":""},{"$f":"IF(WorkingP!$B73=\"Cost of Generating Funds\",WorkingP!T73,\"\")","v":""},{"$f":"IF(WorkingP!$B73=\"Cost of Generating Funds\",WorkingP!U73,\"\")","v":""},{"$f":"IF(WorkingP!$B73=\"Cost of Generating Funds\",WorkingP!V73,\"\")","v":""},{"$f":"IF(WorkingP!$B73=\"Cost of Generating Funds\",WorkingP!W73,\"\")","v":""},{"$f":"IF(WorkingP!$B73=\"Cost of Generating Funds\",WorkingP!X73,\"\")","v":""},{"$f":"IF(WorkingP!$B73=\"Cost of Generating Funds\",WorkingP!Y73,\"\")","v":""},{"$f":"IF(Descriptions!K74=\"Costs of Generating Funds\",Descriptions!AB74,0)","v":0}]
[{"$f":"IF(Descriptions!K75=\"Costs of Generating Funds\",Descriptions!I75,0)","v":0},{"$f":"IF(WorkingP!$B74=\"Cost of Generating Funds\",WorkingP!D74,\"\")","v":""},{"$f":"IF(WorkingP!$B74=\"Cost of Generating Funds\",WorkingP!E74,\"\")","v":""},{"$f":"IF(WorkingP!$B74=\"Cost of Generating Funds\",WorkingP!F74,\"\")","v":""},{"$f":"IF(WorkingP!$B74=\"Cost of Generating Funds\",WorkingP!G74,\"\")","v":""},{"$f":"IF(WorkingP!$B74=\"Cost of Generating Funds\",WorkingP!H74,\"\")","v":""},{"$f":"IF(WorkingP!$B74=\"Cost of Generating Funds\",WorkingP!I74,\"\")","v":""},{"$f":"IF(WorkingP!$B74=\"Cost of Generating Funds\",WorkingP!J74,\"\")","v":""},{"$f":"IF(WorkingP!$B74=\"Cost of Generating Funds\",WorkingP!K74,\"\")","v":""},{"$f":"IF(WorkingP!$B74=\"Cost of Generating Funds\",WorkingP!L74,\"\")","v":""},{"$f":"IF(WorkingP!$B74=\"Cost of Generating Funds\",WorkingP!M74,\"\")","v":""},{"$f":"IF(WorkingP!$B74=\"Cost of Generating Funds\",WorkingP!N74,\"\")","v":""},{"$f":"IF(WorkingP!$B74=\"Cost of Generating Funds\",WorkingP!O74,\"\")","v":""},{"$f":"IF(WorkingP!$B74=\"Cost of Generating Funds\",WorkingP!P74,\"\")","v":""},{"$f":"IF(WorkingP!$B74=\"Cost of Generating Funds\",WorkingP!Q74,\"\")","v":""},{"$f":"IF(WorkingP!$B74=\"Cost of Generating Funds\",WorkingP!R74,\"\")","v":""},{"$f":"IF(WorkingP!$B74=\"Cost of Generating Funds\",WorkingP!S74,\"\")","v":""},{"$f":"IF(WorkingP!$B74=\"Cost of Generating Funds\",WorkingP!T74,\"\")","v":""},{"$f":"IF(WorkingP!$B74=\"Cost of Generating Funds\",WorkingP!U74,\"\")","v":""},{"$f":"IF(WorkingP!$B74=\"Cost of Generating Funds\",WorkingP!V74,\"\")","v":""},{"$f":"IF(WorkingP!$B74=\"Cost of Generating Funds\",WorkingP!W74,\"\")","v":""},{"$f":"IF(WorkingP!$B74=\"Cost of Generating Funds\",WorkingP!X74,\"\")","v":""},{"$f":"IF(WorkingP!$B74=\"Cost of Generating Funds\",WorkingP!Y74,\"\")","v":""},{"$f":"IF(Descriptions!K75=\"Costs of Generating Funds\",Descriptions!AB75,0)","v":0}]
[{"$f":"IF(Descriptions!K76=\"Costs of Generating Funds\",Descriptions!I76,0)","v":0},{"$f":"IF(WorkingP!$B75=\"Cost of Generating Funds\",WorkingP!D75,\"\")","v":""},{"$f":"IF(WorkingP!$B75=\"Cost of Generating Funds\",WorkingP!E75,\"\")","v":""},{"$f":"IF(WorkingP!$B75=\"Cost of Generating Funds\",WorkingP!F75,\"\")","v":""},{"$f":"IF(WorkingP!$B75=\"Cost of Generating Funds\",WorkingP!G75,\"\")","v":""},{"$f":"IF(WorkingP!$B75=\"Cost of Generating Funds\",WorkingP!H75,\"\")","v":""},{"$f":"IF(WorkingP!$B75=\"Cost of Generating Funds\",WorkingP!I75,\"\")","v":""},{"$f":"IF(WorkingP!$B75=\"Cost of Generating Funds\",WorkingP!J75,\"\")","v":""},{"$f":"IF(WorkingP!$B75=\"Cost of Generating Funds\",WorkingP!K75,\"\")","v":""},{"$f":"IF(WorkingP!$B75=\"Cost of Generating Funds\",WorkingP!L75,\"\")","v":""},{"$f":"IF(WorkingP!$B75=\"Cost of Generating Funds\",WorkingP!M75,\"\")","v":""},{"$f":"IF(WorkingP!$B75=\"Cost of Generating Funds\",WorkingP!N75,\"\")","v":""},{"$f":"IF(WorkingP!$B75=\"Cost of Generating Funds\",WorkingP!O75,\"\")","v":""},{"$f":"IF(WorkingP!$B75=\"Cost of Generating Funds\",WorkingP!P75,\"\")","v":""},{"$f":"IF(WorkingP!$B75=\"Cost of Generating Funds\",WorkingP!Q75,\"\")","v":""},{"$f":"IF(WorkingP!$B75=\"Cost of Generating Funds\",WorkingP!R75,\"\")","v":""},{"$f":"IF(WorkingP!$B75=\"Cost of Generating Funds\",WorkingP!S75,\"\")","v":""},{"$f":"IF(WorkingP!$B75=\"Cost of Generating Funds\",WorkingP!T75,\"\")","v":""},{"$f":"IF(WorkingP!$B75=\"Cost of Generating Funds\",WorkingP!U75,\"\")","v":""},{"$f":"IF(WorkingP!$B75=\"Cost of Generating Funds\",WorkingP!V75,\"\")","v":""},{"$f":"IF(WorkingP!$B75=\"Cost of Generating Funds\",WorkingP!W75,\"\")","v":""},{"$f":"IF(WorkingP!$B75=\"Cost of Generating Funds\",WorkingP!X75,\"\")","v":""},{"$f":"IF(WorkingP!$B75=\"Cost of Generating Funds\",WorkingP!Y75,\"\")","v":""},{"$f":"IF(Descriptions!K76=\"Costs of Generating Funds\",Descriptions!AB76,0)","v":0}]
[{"$f":"IF(Descriptions!K77=\"Costs of Generating Funds\",Descriptions!I77,0)","v":0},{"$f":"IF(WorkingP!$B76=\"Cost of Generating Funds\",WorkingP!D76,\"\")","v":""},{"$f":"IF(WorkingP!$B76=\"Cost of Generating Funds\",WorkingP!E76,\"\")","v":""},{"$f":"IF(WorkingP!$B76=\"Cost of Generating Funds\",WorkingP!F76,\"\")","v":""},{"$f":"IF(WorkingP!$B76=\"Cost of Generating Funds\",WorkingP!G76,\"\")","v":""},{"$f":"IF(WorkingP!$B76=\"Cost of Generating Funds\",WorkingP!H76,\"\")","v":""},{"$f":"IF(WorkingP!$B76=\"Cost of Generating Funds\",WorkingP!I76,\"\")","v":""},{"$f":"IF(WorkingP!$B76=\"Cost of Generating Funds\",WorkingP!J76,\"\")","v":""},{"$f":"IF(WorkingP!$B76=\"Cost of Generating Funds\",WorkingP!K76,\"\")","v":""},{"$f":"IF(WorkingP!$B76=\"Cost of Generating Funds\",WorkingP!L76,\"\")","v":""},{"$f":"IF(WorkingP!$B76=\"Cost of Generating Funds\",WorkingP!M76,\"\")","v":""},{"$f":"IF(WorkingP!$B76=\"Cost of Generating Funds\",WorkingP!N76,\"\")","v":""},{"$f":"IF(WorkingP!$B76=\"Cost of Generating Funds\",WorkingP!O76,\"\")","v":""},{"$f":"IF(WorkingP!$B76=\"Cost of Generating Funds\",WorkingP!P76,\"\")","v":""},{"$f":"IF(WorkingP!$B76=\"Cost of Generating Funds\",WorkingP!Q76,\"\")","v":""},{"$f":"IF(WorkingP!$B76=\"Cost of Generating Funds\",WorkingP!R76,\"\")","v":""},{"$f":"IF(WorkingP!$B76=\"Cost of Generating Funds\",WorkingP!S76,\"\")","v":""},{"$f":"IF(WorkingP!$B76=\"Cost of Generating Funds\",WorkingP!T76,\"\")","v":""},{"$f":"IF(WorkingP!$B76=\"Cost of Generating Funds\",WorkingP!U76,\"\")","v":""},{"$f":"IF(WorkingP!$B76=\"Cost of Generating Funds\",WorkingP!V76,\"\")","v":""},{"$f":"IF(WorkingP!$B76=\"Cost of Generating Funds\",WorkingP!W76,\"\")","v":""},{"$f":"IF(WorkingP!$B76=\"Cost of Generating Funds\",WorkingP!X76,\"\")","v":""},{"$f":"IF(WorkingP!$B76=\"Cost of Generating Funds\",WorkingP!Y76,\"\")","v":""},{"$f":"IF(Descriptions!K77=\"Costs of Generating Funds\",Descriptions!AB77,0)","v":0}]
[{"$f":"IF(Descriptions!K78=\"Costs of Generating Funds\",Descriptions!I78,0)","v":0},{"$f":"IF(WorkingP!$B77=\"Cost of Generating Funds\",WorkingP!D77,\"\")","v":""},{"$f":"IF(WorkingP!$B77=\"Cost of Generating Funds\",WorkingP!E77,\"\")","v":""},{"$f":"IF(WorkingP!$B77=\"Cost of Generating Funds\",WorkingP!F77,\"\")","v":""},{"$f":"IF(WorkingP!$B77=\"Cost of Generating Funds\",WorkingP!G77,\"\")","v":""},{"$f":"IF(WorkingP!$B77=\"Cost of Generating Funds\",WorkingP!H77,\"\")","v":""},{"$f":"IF(WorkingP!$B77=\"Cost of Generating Funds\",WorkingP!I77,\"\")","v":""},{"$f":"IF(WorkingP!$B77=\"Cost of Generating Funds\",WorkingP!J77,\"\")","v":""},{"$f":"IF(WorkingP!$B77=\"Cost of Generating Funds\",WorkingP!K77,\"\")","v":""},{"$f":"IF(WorkingP!$B77=\"Cost of Generating Funds\",WorkingP!L77,\"\")","v":""},{"$f":"IF(WorkingP!$B77=\"Cost of Generating Funds\",WorkingP!M77,\"\")","v":""},{"$f":"IF(WorkingP!$B77=\"Cost of Generating Funds\",WorkingP!N77,\"\")","v":""},{"$f":"IF(WorkingP!$B77=\"Cost of Generating Funds\",WorkingP!O77,\"\")","v":""},{"$f":"IF(WorkingP!$B77=\"Cost of Generating Funds\",WorkingP!P77,\"\")","v":""},{"$f":"IF(WorkingP!$B77=\"Cost of Generating Funds\",WorkingP!Q77,\"\")","v":""},{"$f":"IF(WorkingP!$B77=\"Cost of Generating Funds\",WorkingP!R77,\"\")","v":""},{"$f":"IF(WorkingP!$B77=\"Cost of Generating Funds\",WorkingP!S77,\"\")","v":""},{"$f":"IF(WorkingP!$B77=\"Cost of Generating Funds\",WorkingP!T77,\"\")","v":""},{"$f":"IF(WorkingP!$B77=\"Cost of Generating Funds\",WorkingP!U77,\"\")","v":""},{"$f":"IF(WorkingP!$B77=\"Cost of Generating Funds\",WorkingP!V77,\"\")","v":""},{"$f":"IF(WorkingP!$B77=\"Cost of Generating Funds\",WorkingP!W77,\"\")","v":""},{"$f":"IF(WorkingP!$B77=\"Cost of Generating Funds\",WorkingP!X77,\"\")","v":""},{"$f":"IF(WorkingP!$B77=\"Cost of Generating Funds\",WorkingP!Y77,\"\")","v":""},{"$f":"IF(Descriptions!K78=\"Costs of Generating Funds\",Descriptions!AB78,0)","v":0}]
[{"$f":"IF(Descriptions!K79=\"Costs of Generating Funds\",Descriptions!I79,0)","v":0},{"$f":"IF(WorkingP!$B78=\"Cost of Generating Funds\",WorkingP!D78,\"\")","v":""},{"$f":"IF(WorkingP!$B78=\"Cost of Generating Funds\",WorkingP!E78,\"\")","v":""},{"$f":"IF(WorkingP!$B78=\"Cost of Generating Funds\",WorkingP!F78,\"\")","v":""},{"$f":"IF(WorkingP!$B78=\"Cost of Generating Funds\",WorkingP!G78,\"\")","v":""},{"$f":"IF(WorkingP!$B78=\"Cost of Generating Funds\",WorkingP!H78,\"\")","v":""},{"$f":"IF(WorkingP!$B78=\"Cost of Generating Funds\",WorkingP!I78,\"\")","v":""},{"$f":"IF(WorkingP!$B78=\"Cost of Generating Funds\",WorkingP!J78,\"\")","v":""},{"$f":"IF(WorkingP!$B78=\"Cost of Generating Funds\",WorkingP!K78,\"\")","v":""},{"$f":"IF(WorkingP!$B78=\"Cost of Generating Funds\",WorkingP!L78,\"\")","v":""},{"$f":"IF(WorkingP!$B78=\"Cost of Generating Funds\",WorkingP!M78,\"\")","v":""},{"$f":"IF(WorkingP!$B78=\"Cost of Generating Funds\",WorkingP!N78,\"\")","v":""},{"$f":"IF(WorkingP!$B78=\"Cost of Generating Funds\",WorkingP!O78,\"\")","v":""},{"$f":"IF(WorkingP!$B78=\"Cost of Generating Funds\",WorkingP!P78,\"\")","v":""},{"$f":"IF(WorkingP!$B78=\"Cost of Generating Funds\",WorkingP!Q78,\"\")","v":""},{"$f":"IF(WorkingP!$B78=\"Cost of Generating Funds\",WorkingP!R78,\"\")","v":""},{"$f":"IF(WorkingP!$B78=\"Cost of Generating Funds\",WorkingP!S78,\"\")","v":""},{"$f":"IF(WorkingP!$B78=\"Cost of Generating Funds\",WorkingP!T78,\"\")","v":""},{"$f":"IF(WorkingP!$B78=\"Cost of Generating Funds\",WorkingP!U78,\"\")","v":""},{"$f":"IF(WorkingP!$B78=\"Cost of Generating Funds\",WorkingP!V78,\"\")","v":""},{"$f":"IF(WorkingP!$B78=\"Cost of Generating Funds\",WorkingP!W78,\"\")","v":""},{"$f":"IF(WorkingP!$B78=\"Cost of Generating Funds\",WorkingP!X78,\"\")","v":""},{"$f":"IF(WorkingP!$B78=\"Cost of Generating Funds\",WorkingP!Y78,\"\")","v":""},{"$f":"IF(Descriptions!K79=\"Costs of Generating Funds\",Descriptions!AB79,0)","v":0}]
[{"$f":"IF(Descriptions!K80=\"Costs of Generating Funds\",Descriptions!I80,0)","v":0},{"$f":"IF(WorkingP!$B79=\"Cost of Generating Funds\",WorkingP!D79,\"\")","v":""},{"$f":"IF(WorkingP!$B79=\"Cost of Generating Funds\",WorkingP!E79,\"\")","v":""},{"$f":"IF(WorkingP!$B79=\"Cost of Generating Funds\",WorkingP!F79,\"\")","v":""},{"$f":"IF(WorkingP!$B79=\"Cost of Generating Funds\",WorkingP!G79,\"\")","v":""},{"$f":"IF(WorkingP!$B79=\"Cost of Generating Funds\",WorkingP!H79,\"\")","v":""},{"$f":"IF(WorkingP!$B79=\"Cost of Generating Funds\",WorkingP!I79,\"\")","v":""},{"$f":"IF(WorkingP!$B79=\"Cost of Generating Funds\",WorkingP!J79,\"\")","v":""},{"$f":"IF(WorkingP!$B79=\"Cost of Generating Funds\",WorkingP!K79,\"\")","v":""},{"$f":"IF(WorkingP!$B79=\"Cost of Generating Funds\",WorkingP!L79,\"\")","v":""},{"$f":"IF(WorkingP!$B79=\"Cost of Generating Funds\",WorkingP!M79,\"\")","v":""},{"$f":"IF(WorkingP!$B79=\"Cost of Generating Funds\",WorkingP!N79,\"\")","v":""},{"$f":"IF(WorkingP!$B79=\"Cost of Generating Funds\",WorkingP!O79,\"\")","v":""},{"$f":"IF(WorkingP!$B79=\"Cost of Generating Funds\",WorkingP!P79,\"\")","v":""},{"$f":"IF(WorkingP!$B79=\"Cost of Generating Funds\",WorkingP!Q79,\"\")","v":""},{"$f":"IF(WorkingP!$B79=\"Cost of Generating Funds\",WorkingP!R79,\"\")","v":""},{"$f":"IF(WorkingP!$B79=\"Cost of Generating Funds\",WorkingP!S79,\"\")","v":""},{"$f":"IF(WorkingP!$B79=\"Cost of Generating Funds\",WorkingP!T79,\"\")","v":""},{"$f":"IF(WorkingP!$B79=\"Cost of Generating Funds\",WorkingP!U79,\"\")","v":""},{"$f":"IF(WorkingP!$B79=\"Cost of Generating Funds\",WorkingP!V79,\"\")","v":""},{"$f":"IF(WorkingP!$B79=\"Cost of Generating Funds\",WorkingP!W79,\"\")","v":""},{"$f":"IF(WorkingP!$B79=\"Cost of Generating Funds\",WorkingP!X79,\"\")","v":""},{"$f":"IF(WorkingP!$B79=\"Cost of Generating Funds\",WorkingP!Y79,\"\")","v":""},{"$f":"IF(Descriptions!K80=\"Costs of Generating Funds\",Descriptions!AB80,0)","v":0}]
[{"$f":"IF(Descriptions!K81=\"Costs of Generating Funds\",Descriptions!I81,0)","v":0},{"$f":"IF(WorkingP!$B80=\"Cost of Generating Funds\",WorkingP!D80,\"\")","v":""},{"$f":"IF(WorkingP!$B80=\"Cost of Generating Funds\",WorkingP!E80,\"\")","v":""},{"$f":"IF(WorkingP!$B80=\"Cost of Generating Funds\",WorkingP!F80,\"\")","v":""},{"$f":"IF(WorkingP!$B80=\"Cost of Generating Funds\",WorkingP!G80,\"\")","v":""},{"$f":"IF(WorkingP!$B80=\"Cost of Generating Funds\",WorkingP!H80,\"\")","v":""},{"$f":"IF(WorkingP!$B80=\"Cost of Generating Funds\",WorkingP!I80,\"\")","v":""},{"$f":"IF(WorkingP!$B80=\"Cost of Generating Funds\",WorkingP!J80,\"\")","v":""},{"$f":"IF(WorkingP!$B80=\"Cost of Generating Funds\",WorkingP!K80,\"\")","v":""},{"$f":"IF(WorkingP!$B80=\"Cost of Generating Funds\",WorkingP!L80,\"\")","v":""},{"$f":"IF(WorkingP!$B80=\"Cost of Generating Funds\",WorkingP!M80,\"\")","v":""},{"$f":"IF(WorkingP!$B80=\"Cost of Generating Funds\",WorkingP!N80,\"\")","v":""},{"$f":"IF(WorkingP!$B80=\"Cost of Generating Funds\",WorkingP!O80,\"\")","v":""},{"$f":"IF(WorkingP!$B80=\"Cost of Generating Funds\",WorkingP!P80,\"\")","v":""},{"$f":"IF(WorkingP!$B80=\"Cost of Generating Funds\",WorkingP!Q80,\"\")","v":""},{"$f":"IF(WorkingP!$B80=\"Cost of Generating Funds\",WorkingP!R80,\"\")","v":""},{"$f":"IF(WorkingP!$B80=\"Cost of Generating Funds\",WorkingP!S80,\"\")","v":""},{"$f":"IF(WorkingP!$B80=\"Cost of Generating Funds\",WorkingP!T80,\"\")","v":""},{"$f":"IF(WorkingP!$B80=\"Cost of Generating Funds\",WorkingP!U80,\"\")","v":""},{"$f":"IF(WorkingP!$B80=\"Cost of Generating Funds\",WorkingP!V80,\"\")","v":""},{"$f":"IF(WorkingP!$B80=\"Cost of Generating Funds\",WorkingP!W80,\"\")","v":""},{"$f":"IF(WorkingP!$B80=\"Cost of Generating Funds\",WorkingP!X80,\"\")","v":""},{"$f":"IF(WorkingP!$B80=\"Cost of Generating Funds\",WorkingP!Y80,\"\")","v":""},{"$f":"IF(Descriptions!K81=\"Costs of Generating Funds\",Descriptions!AB81,0)","v":0}]
[{"$f":"IF(Descriptions!K82=\"Costs of Generating Funds\",Descriptions!I82,0)","v":0},{"$f":"IF(WorkingP!$B81=\"Cost of Generating Funds\",WorkingP!D81,\"\")","v":""},{"$f":"IF(WorkingP!$B81=\"Cost of Generating Funds\",WorkingP!E81,\"\")","v":""},{"$f":"IF(WorkingP!$B81=\"Cost of Generating Funds\",WorkingP!F81,\"\")","v":""},{"$f":"IF(WorkingP!$B81=\"Cost of Generating Funds\",WorkingP!G81,\"\")","v":""},{"$f":"IF(WorkingP!$B81=\"Cost of Generating Funds\",WorkingP!H81,\"\")","v":""},{"$f":"IF(WorkingP!$B81=\"Cost of Generating Funds\",WorkingP!I81,\"\")","v":""},{"$f":"IF(WorkingP!$B81=\"Cost of Generating Funds\",WorkingP!J81,\"\")","v":""},{"$f":"IF(WorkingP!$B81=\"Cost of Generating Funds\",WorkingP!K81,\"\")","v":""},{"$f":"IF(WorkingP!$B81=\"Cost of Generating Funds\",WorkingP!L81,\"\")","v":""},{"$f":"IF(WorkingP!$B81=\"Cost of Generating Funds\",WorkingP!M81,\"\")","v":""},{"$f":"IF(WorkingP!$B81=\"Cost of Generating Funds\",WorkingP!N81,\"\")","v":""},{"$f":"IF(WorkingP!$B81=\"Cost of Generating Funds\",WorkingP!O81,\"\")","v":""},{"$f":"IF(WorkingP!$B81=\"Cost of Generating Funds\",WorkingP!P81,\"\")","v":""},{"$f":"IF(WorkingP!$B81=\"Cost of Generating Funds\",WorkingP!Q81,\"\")","v":""},{"$f":"IF(WorkingP!$B81=\"Cost of Generating Funds\",WorkingP!R81,\"\")","v":""},{"$f":"IF(WorkingP!$B81=\"Cost of Generating Funds\",WorkingP!S81,\"\")","v":""},{"$f":"IF(WorkingP!$B81=\"Cost of Generating Funds\",WorkingP!T81,\"\")","v":""},{"$f":"IF(WorkingP!$B81=\"Cost of Generating Funds\",WorkingP!U81,\"\")","v":""},{"$f":"IF(WorkingP!$B81=\"Cost of Generating Funds\",WorkingP!V81,\"\")","v":""},{"$f":"IF(WorkingP!$B81=\"Cost of Generating Funds\",WorkingP!W81,\"\")","v":""},{"$f":"IF(WorkingP!$B81=\"Cost of Generating Funds\",WorkingP!X81,\"\")","v":""},{"$f":"IF(WorkingP!$B81=\"Cost of Generating Funds\",WorkingP!Y81,\"\")","v":""},{"$f":"IF(Descriptions!K82=\"Costs of Generating Funds\",Descriptions!AB82,0)","v":0}]
[{"$f":"IF(Descriptions!K83=\"Costs of Generating Funds\",Descriptions!I83,0)","v":0},{"$f":"IF(WorkingP!$B82=\"Cost of Generating Funds\",WorkingP!D82,\"\")","v":""},{"$f":"IF(WorkingP!$B82=\"Cost of Generating Funds\",WorkingP!E82,\"\")","v":""},{"$f":"IF(WorkingP!$B82=\"Cost of Generating Funds\",WorkingP!F82,\"\")","v":""},{"$f":"IF(WorkingP!$B82=\"Cost of Generating Funds\",WorkingP!G82,\"\")","v":""},{"$f":"IF(WorkingP!$B82=\"Cost of Generating Funds\",WorkingP!H82,\"\")","v":""},{"$f":"IF(WorkingP!$B82=\"Cost of Generating Funds\",WorkingP!I82,\"\")","v":""},{"$f":"IF(WorkingP!$B82=\"Cost of Generating Funds\",WorkingP!J82,\"\")","v":""},{"$f":"IF(WorkingP!$B82=\"Cost of Generating Funds\",WorkingP!K82,\"\")","v":""},{"$f":"IF(WorkingP!$B82=\"Cost of Generating Funds\",WorkingP!L82,\"\")","v":""},{"$f":"IF(WorkingP!$B82=\"Cost of Generating Funds\",WorkingP!M82,\"\")","v":""},{"$f":"IF(WorkingP!$B82=\"Cost of Generating Funds\",WorkingP!N82,\"\")","v":""},{"$f":"IF(WorkingP!$B82=\"Cost of Generating Funds\",WorkingP!O82,\"\")","v":""},{"$f":"IF(WorkingP!$B82=\"Cost of Generating Funds\",WorkingP!P82,\"\")","v":""},{"$f":"IF(WorkingP!$B82=\"Cost of Generating Funds\",WorkingP!Q82,\"\")","v":""},{"$f":"IF(WorkingP!$B82=\"Cost of Generating Funds\",WorkingP!R82,\"\")","v":""},{"$f":"IF(WorkingP!$B82=\"Cost of Generating Funds\",WorkingP!S82,\"\")","v":""},{"$f":"IF(WorkingP!$B82=\"Cost of Generating Funds\",WorkingP!T82,\"\")","v":""},{"$f":"IF(WorkingP!$B82=\"Cost of Generating Funds\",WorkingP!U82,\"\")","v":""},{"$f":"IF(WorkingP!$B82=\"Cost of Generating Funds\",WorkingP!V82,\"\")","v":""},{"$f":"IF(WorkingP!$B82=\"Cost of Generating Funds\",WorkingP!W82,\"\")","v":""},{"$f":"IF(WorkingP!$B82=\"Cost of Generating Funds\",WorkingP!X82,\"\")","v":""},{"$f":"IF(WorkingP!$B82=\"Cost of Generating Funds\",WorkingP!Y82,\"\")","v":""},{"$f":"IF(Descriptions!K83=\"Costs of Generating Funds\",Descriptions!AB83,0)","v":0}]
[{"$f":"IF(Descriptions!K84=\"Costs of Generating Funds\",Descriptions!I84,0)","v":0},{"$f":"IF(WorkingP!$B83=\"Cost of Generating Funds\",WorkingP!D83,\"\")","v":""},{"$f":"IF(WorkingP!$B83=\"Cost of Generating Funds\",WorkingP!E83,\"\")","v":""},{"$f":"IF(WorkingP!$B83=\"Cost of Generating Funds\",WorkingP!F83,\"\")","v":""},{"$f":"IF(WorkingP!$B83=\"Cost of Generating Funds\",WorkingP!G83,\"\")","v":""},{"$f":"IF(WorkingP!$B83=\"Cost of Generating Funds\",WorkingP!H83,\"\")","v":""},{"$f":"IF(WorkingP!$B83=\"Cost of Generating Funds\",WorkingP!I83,\"\")","v":""},{"$f":"IF(WorkingP!$B83=\"Cost of Generating Funds\",WorkingP!J83,\"\")","v":""},{"$f":"IF(WorkingP!$B83=\"Cost of Generating Funds\",WorkingP!K83,\"\")","v":""},{"$f":"IF(WorkingP!$B83=\"Cost of Generating Funds\",WorkingP!L83,\"\")","v":""},{"$f":"IF(WorkingP!$B83=\"Cost of Generating Funds\",WorkingP!M83,\"\")","v":""},{"$f":"IF(WorkingP!$B83=\"Cost of Generating Funds\",WorkingP!N83,\"\")","v":""},{"$f":"IF(WorkingP!$B83=\"Cost of Generating Funds\",WorkingP!O83,\"\")","v":""},{"$f":"IF(WorkingP!$B83=\"Cost of Generating Funds\",WorkingP!P83,\"\")","v":""},{"$f":"IF(WorkingP!$B83=\"Cost of Generating Funds\",WorkingP!Q83,\"\")","v":""},{"$f":"IF(WorkingP!$B83=\"Cost of Generating Funds\",WorkingP!R83,\"\")","v":""},{"$f":"IF(WorkingP!$B83=\"Cost of Generating Funds\",WorkingP!S83,\"\")","v":""},{"$f":"IF(WorkingP!$B83=\"Cost of Generating Funds\",WorkingP!T83,\"\")","v":""},{"$f":"IF(WorkingP!$B83=\"Cost of Generating Funds\",WorkingP!U83,\"\")","v":""},{"$f":"IF(WorkingP!$B83=\"Cost of Generating Funds\",WorkingP!V83,\"\")","v":""},{"$f":"IF(WorkingP!$B83=\"Cost of Generating Funds\",WorkingP!W83,\"\")","v":""},{"$f":"IF(WorkingP!$B83=\"Cost of Generating Funds\",WorkingP!X83,\"\")","v":""},{"$f":"IF(WorkingP!$B83=\"Cost of Generating Funds\",WorkingP!Y83,\"\")","v":""},{"$f":"IF(Descriptions!K84=\"Costs of Generating Funds\",Descriptions!AB84,0)","v":0}]
[null,{"$f":"SUM(B846:B899)","v":0},0,0,0,0,0,0,0,0,0,0,0,0,0,0,0,0,0,0,0,0,null,{"$f":"X845","v":0}]
["ADMINISTRATION COSTS",null,null,null,null,null,null,null,null,null,null,null,null,null,null,null,null,null,null,null,null,null,null,{"$f":"SUM(X902:X956)","v":0}]
["Bank Charges",{"$f":"WorkingP!D6","v":0},{"$f":"WorkingP!E6","v":0},{"$f":"WorkingP!F6","v":0},{"$f":"WorkingP!G6","v":0},{"$f":"WorkingP!H6","v":0},{"$f":"WorkingP!I6","v":0},{"$f":"WorkingP!J6","v":0},{"$f":"WorkingP!K6","v":0},{"$f":"WorkingP!L6","v":0},{"$f":"WorkingP!M6","v":0},{"$f":"WorkingP!N6","v":0},{"$f":"WorkingP!O6","v":0},{"$f":"WorkingP!P6","v":0},{"$f":"WorkingP!Q6","v":0},{"$f":"WorkingP!R6","v":0},{"$f":"WorkingP!S6","v":0},{"$f":"WorkingP!T6","v":0},{"$f":"WorkingP!U6","v":0},{"$f":"WorkingP!V6","v":0},{"$f":"WorkingP!W6","v":0},{"$f":"WorkingP!X6","v":0},{"$f":"WorkingP!Y6","v":0},{"$f":"Descriptions!AB7","v":0}]
["Printing",{"$f":"WorkingP!D24","v":0},{"$f":"WorkingP!E24","v":0},{"$f":"WorkingP!F24","v":0},{"$f":"WorkingP!G24","v":0},{"$f":"WorkingP!H24","v":0},{"$f":"WorkingP!I24","v":0},{"$f":"WorkingP!J24","v":0},{"$f":"WorkingP!K24","v":0},{"$f":"WorkingP!L24","v":0},{"$f":"WorkingP!M24","v":0},{"$f":"WorkingP!N24","v":0},{"$f":"WorkingP!O24","v":0},{"$f":"WorkingP!P24","v":0},{"$f":"WorkingP!Q24","v":0},{"$f":"WorkingP!R24","v":0},{"$f":"WorkingP!S24","v":0},{"$f":"WorkingP!T24","v":0},{"$f":"WorkingP!U24","v":0},{"$f":"WorkingP!V24","v":0},{"$f":"WorkingP!W24","v":0},{"$f":"WorkingP!X24","v":0},{"$f":"WorkingP!Y24","v":0},{"$f":"Descriptions!AB25","v":0}]
["Stationery",{"$f":"WorkingP!D27","v":0},{"$f":"WorkingP!E27","v":0},{"$f":"WorkingP!F27","v":0},{"$f":"WorkingP!G27","v":0},{"$f":"WorkingP!H27","v":0},{"$f":"WorkingP!I27","v":0},{"$f":"WorkingP!J27","v":0},{"$f":"WorkingP!K27","v":0},{"$f":"WorkingP!L27","v":0},{"$f":"WorkingP!M27","v":0},{"$f":"WorkingP!N27","v":0},{"$f":"WorkingP!O27","v":0},{"$f":"WorkingP!P27","v":0},{"$f":"WorkingP!Q27","v":0},{"$f":"WorkingP!R27","v":0},{"$f":"WorkingP!S27","v":0},{"$f":"WorkingP!T27","v":0},{"$f":"WorkingP!U27","v":0},{"$f":"WorkingP!V27","v":0},{"$f":"WorkingP!W27","v":0},{"$f":"WorkingP!X27","v":0},{"$f":"WorkingP!Y27","v":0},{"$f":"Descriptions!AB28","v":0}]
["Support Costs",{"$f":"WorkingP!D28","v":0},{"$f":"WorkingP!E28","v":0},{"$f":"WorkingP!F28","v":0},{"$f":"WorkingP!G28","v":0},{"$f":"WorkingP!H28","v":0},{"$f":"WorkingP!I28","v":0},{"$f":"WorkingP!J28","v":0},{"$f":"WorkingP!K28","v":0},{"$f":"WorkingP!L28","v":0},{"$f":"WorkingP!M28","v":0},{"$f":"WorkingP!N28","v":0},{"$f":"WorkingP!O28","v":0},{"$f":"WorkingP!P28","v":0},{"$f":"WorkingP!Q28","v":0},{"$f":"WorkingP!R28","v":0},{"$f":"WorkingP!S28","v":0},{"$f":"WorkingP!T28","v":0},{"$f":"WorkingP!U28","v":0},{"$f":"WorkingP!V28","v":0},{"$f":"WorkingP!W28","v":0},{"$f":"WorkingP!X28","v":0},{"$f":"WorkingP!Y28","v":0},{"$f":"Descriptions!AB29","v":0}]
["Computer",{"$f":"WorkingP!D15","v":0},{"$f":"WorkingP!E15","v":0},{"$f":"WorkingP!F15","v":0},{"$f":"WorkingP!G15","v":0},{"$f":"WorkingP!H15","v":0},{"$f":"WorkingP!I15","v":0},{"$f":"WorkingP!J15","v":0},{"$f":"WorkingP!K15","v":0},{"$f":"WorkingP!L15","v":0},{"$f":"WorkingP!M15","v":0},{"$f":"WorkingP!N15","v":0},{"$f":"WorkingP!O15","v":0},{"$f":"WorkingP!P15","v":0},{"$f":"WorkingP!Q15","v":0},{"$f":"WorkingP!R15","v":0},{"$f":"WorkingP!S15","v":0},{"$f":"WorkingP!T15","v":0},{"$f":"WorkingP!U15","v":0},{"$f":"WorkingP!V15","v":0},{"$f":"WorkingP!W15","v":0},{"$f":"WorkingP!X15","v":0},{"$f":"WorkingP!Y15","v":0},{"$f":"Descriptions!AB16","v":0}]
[{"$f":"IF(Descriptions!K35=\"Administration Costs\",Descriptions!I35,0)","v":0},{"$f":"IF(WorkingP!$B34=\"Administration Costs\",WorkingP!D34,\"\")","v":0},{"$f":"IF(WorkingP!$B34=\"Administration Costs\",WorkingP!E34,\"\")","v":0},{"$f":"IF(WorkingP!$B34=\"Administration Costs\",WorkingP!F34,\"\")","v":0},{"$f":"IF(WorkingP!$B34=\"Administration Costs\",WorkingP!G34,\"\")","v":0},{"$f":"IF(WorkingP!$B34=\"Administration Costs\",WorkingP!H34,\"\")","v":0},{"$f":"IF(WorkingP!$B34=\"Administration Costs\",WorkingP!I34,\"\")","v":0},{"$f":"IF(WorkingP!$B34=\"Administration Costs\",WorkingP!J34,\"\")","v":0},{"$f":"IF(WorkingP!$B34=\"Administration Costs\",WorkingP!K34,\"\")","v":0},{"$f":"IF(WorkingP!$B34=\"Administration Costs\",WorkingP!L34,\"\")","v":0},{"$f":"IF(WorkingP!$B34=\"Administration Costs\",WorkingP!M34,\"\")","v":0},{"$f":"IF(WorkingP!$B34=\"Administration Costs\",WorkingP!N34,\"\")","v":0},{"$f":"IF(WorkingP!$B34=\"Administration Costs\",WorkingP!O34,\"\")","v":0},{"$f":"IF(WorkingP!$B34=\"Administration Costs\",WorkingP!P34,\"\")","v":0},{"$f":"IF(WorkingP!$B34=\"Administration Costs\",WorkingP!Q34,\"\")","v":0},{"$f":"IF(WorkingP!$B34=\"Administration Costs\",WorkingP!R34,\"\")","v":0},{"$f":"IF(WorkingP!$B34=\"Administration Costs\",WorkingP!S34,\"\")","v":0},{"$f":"IF(WorkingP!$B34=\"Administration Costs\",WorkingP!T34,\"\")","v":0},{"$f":"IF(WorkingP!$B34=\"Administration Costs\",WorkingP!U34,\"\")","v":0},{"$f":"IF(WorkingP!$B34=\"Administration Costs\",WorkingP!V34,\"\")","v":0},{"$f":"IF(WorkingP!$B34=\"Administration Costs\",WorkingP!W34,\"\")","v":0},{"$f":"IF(WorkingP!$B34=\"Administration Costs\",WorkingP!X34,\"\")","v":0},{"$f":"IF(WorkingP!$B34=\"Administration Costs\",WorkingP!Y34,\"\")","v":0},{"$f":"IF(Descriptions!K35=\"Administration Costs\",Descriptions!AB35,0)","v":0}]
[{"$f":"IF(Descriptions!K36=\"Administration Costs\",Descriptions!I36,0)","v":0},{"$f":"IF(WorkingP!$B35=\"Administration Costs\",WorkingP!D35,\"\")","v":0},{"$f":"IF(WorkingP!$B35=\"Administration Costs\",WorkingP!E35,\"\")","v":0},{"$f":"IF(WorkingP!$B35=\"Administration Costs\",WorkingP!F35,\"\")","v":0},{"$f":"IF(WorkingP!$B35=\"Administration Costs\",WorkingP!G35,\"\")","v":0},{"$f":"IF(WorkingP!$B35=\"Administration Costs\",WorkingP!H35,\"\")","v":0},{"$f":"IF(WorkingP!$B35=\"Administration Costs\",WorkingP!I35,\"\")","v":0},{"$f":"IF(WorkingP!$B35=\"Administration Costs\",WorkingP!J35,\"\")","v":0},{"$f":"IF(WorkingP!$B35=\"Administration Costs\",WorkingP!K35,\"\")","v":0},{"$f":"IF(WorkingP!$B35=\"Administration Costs\",WorkingP!L35,\"\")","v":0},{"$f":"IF(WorkingP!$B35=\"Administration Costs\",WorkingP!M35,\"\")","v":0},{"$f":"IF(WorkingP!$B35=\"Administration Costs\",WorkingP!N35,\"\")","v":0},{"$f":"IF(WorkingP!$B35=\"Administration Costs\",WorkingP!O35,\"\")","v":0},{"$f":"IF(WorkingP!$B35=\"Administration Costs\",WorkingP!P35,\"\")","v":0},{"$f":"IF(WorkingP!$B35=\"Administration Costs\",WorkingP!Q35,\"\")","v":0},{"$f":"IF(WorkingP!$B35=\"Administration Costs\",WorkingP!R35,\"\")","v":0},{"$f":"IF(WorkingP!$B35=\"Administration Costs\",WorkingP!S35,\"\")","v":0},{"$f":"IF(WorkingP!$B35=\"Administration Costs\",WorkingP!T35,\"\")","v":0},{"$f":"IF(WorkingP!$B35=\"Administration Costs\",WorkingP!U35,\"\")","v":0},{"$f":"IF(WorkingP!$B35=\"Administration Costs\",WorkingP!V35,\"\")","v":0},{"$f":"IF(WorkingP!$B35=\"Administration Costs\",WorkingP!W35,\"\")","v":0},{"$f":"IF(WorkingP!$B35=\"Administration Costs\",WorkingP!X35,\"\")","v":0},{"$f":"IF(WorkingP!$B35=\"Administration Costs\",WorkingP!Y35,\"\")","v":0},{"$f":"IF(Descriptions!K36=\"Administration Costs\",Descriptions!AB36,0)","v":0}]
[{"$f":"IF(Descriptions!K37=\"Administration Costs\",Descriptions!I37,0)","v":0},{"$f":"IF(WorkingP!$B36=\"Administration Costs\",WorkingP!D36,\"\")","v":0},{"$f":"IF(WorkingP!$B36=\"Administration Costs\",WorkingP!E36,\"\")","v":0},{"$f":"IF(WorkingP!$B36=\"Administration Costs\",WorkingP!F36,\"\")","v":0},{"$f":"IF(WorkingP!$B36=\"Administration Costs\",WorkingP!G36,\"\")","v":0},{"$f":"IF(WorkingP!$B36=\"Administration Costs\",WorkingP!H36,\"\")","v":0},{"$f":"IF(WorkingP!$B36=\"Administration Costs\",WorkingP!I36,\"\")","v":0},{"$f":"IF(WorkingP!$B36=\"Administration Costs\",WorkingP!J36,\"\")","v":0},{"$f":"IF(WorkingP!$B36=\"Administration Costs\",WorkingP!K36,\"\")","v":0},{"$f":"IF(WorkingP!$B36=\"Administration Costs\",WorkingP!L36,\"\")","v":0},{"$f":"IF(WorkingP!$B36=\"Administration Costs\",WorkingP!M36,\"\")","v":0},{"$f":"IF(WorkingP!$B36=\"Administration Costs\",WorkingP!N36,\"\")","v":0},{"$f":"IF(WorkingP!$B36=\"Administration Costs\",WorkingP!O36,\"\")","v":0},{"$f":"IF(WorkingP!$B36=\"Administration Costs\",WorkingP!P36,\"\")","v":0},{"$f":"IF(WorkingP!$B36=\"Administration Costs\",WorkingP!Q36,\"\")","v":0},{"$f":"IF(WorkingP!$B36=\"Administration Costs\",WorkingP!R36,\"\")","v":0},{"$f":"IF(WorkingP!$B36=\"Administration Costs\",WorkingP!S36,\"\")","v":0},{"$f":"IF(WorkingP!$B36=\"Administration Costs\",WorkingP!T36,\"\")","v":0},{"$f":"IF(WorkingP!$B36=\"Administration Costs\",WorkingP!U36,\"\")","v":0},{"$f":"IF(WorkingP!$B36=\"Administration Costs\",WorkingP!V36,\"\")","v":0},{"$f":"IF(WorkingP!$B36=\"Administration Costs\",WorkingP!W36,\"\")","v":0},{"$f":"IF(WorkingP!$B36=\"Administration Costs\",WorkingP!X36,\"\")","v":0},{"$f":"IF(WorkingP!$B36=\"Administration Costs\",WorkingP!Y36,\"\")","v":0},{"$f":"IF(Descriptions!K37=\"Administration Costs\",Descriptions!AB37,0)","v":0}]
[{"$f":"IF(Descriptions!K38=\"Administration Costs\",Descriptions!I38,0)","v":0},{"$f":"IF(WorkingP!$B37=\"Administration Costs\",WorkingP!D37,\"\")","v":0},{"$f":"IF(WorkingP!$B37=\"Administration Costs\",WorkingP!E37,\"\")","v":0},{"$f":"IF(WorkingP!$B37=\"Administration Costs\",WorkingP!F37,\"\")","v":0},{"$f":"IF(WorkingP!$B37=\"Administration Costs\",WorkingP!G37,\"\")","v":0},{"$f":"IF(WorkingP!$B37=\"Administration Costs\",WorkingP!H37,\"\")","v":0},{"$f":"IF(WorkingP!$B37=\"Administration Costs\",WorkingP!I37,\"\")","v":0},{"$f":"IF(WorkingP!$B37=\"Administration Costs\",WorkingP!J37,\"\")","v":0},{"$f":"IF(WorkingP!$B37=\"Administration Costs\",WorkingP!K37,\"\")","v":0},{"$f":"IF(WorkingP!$B37=\"Administration Costs\",WorkingP!L37,\"\")","v":0},{"$f":"IF(WorkingP!$B37=\"Administration Costs\",WorkingP!M37,\"\")","v":0},{"$f":"IF(WorkingP!$B37=\"Administration Costs\",WorkingP!N37,\"\")","v":0},{"$f":"IF(WorkingP!$B37=\"Administration Costs\",WorkingP!O37,\"\")","v":0},{"$f":"IF(WorkingP!$B37=\"Administration Costs\",WorkingP!P37,\"\")","v":0},{"$f":"IF(WorkingP!$B37=\"Administration Costs\",WorkingP!Q37,\"\")","v":0},{"$f":"IF(WorkingP!$B37=\"Administration Costs\",WorkingP!R37,\"\")","v":0},{"$f":"IF(WorkingP!$B37=\"Administration Costs\",WorkingP!S37,\"\")","v":0},{"$f":"IF(WorkingP!$B37=\"Administration Costs\",WorkingP!T37,\"\")","v":0},{"$f":"IF(WorkingP!$B37=\"Administration Costs\",WorkingP!U37,\"\")","v":0},{"$f":"IF(WorkingP!$B37=\"Administration Costs\",WorkingP!V37,\"\")","v":0},{"$f":"IF(WorkingP!$B37=\"Administration Costs\",WorkingP!W37,\"\")","v":0},{"$f":"IF(WorkingP!$B37=\"Administration Costs\",WorkingP!X37,\"\")","v":0},{"$f":"IF(WorkingP!$B37=\"Administration Costs\",WorkingP!Y37,\"\")","v":0},{"$f":"IF(Descriptions!K38=\"Administration Costs\",Descriptions!AB38,0)","v":0}]
[{"$f":"IF(Descriptions!K39=\"Administration Costs\",Descriptions!I39,0)","v":0},{"$f":"IF(WorkingP!$B38=\"Administration Costs\",WorkingP!D38,\"\")","v":0},{"$f":"IF(WorkingP!$B38=\"Administration Costs\",WorkingP!E38,\"\")","v":0},{"$f":"IF(WorkingP!$B38=\"Administration Costs\",WorkingP!F38,\"\")","v":0},{"$f":"IF(WorkingP!$B38=\"Administration Costs\",WorkingP!G38,\"\")","v":0},{"$f":"IF(WorkingP!$B38=\"Administration Costs\",WorkingP!H38,\"\")","v":0},{"$f":"IF(WorkingP!$B38=\"Administration Costs\",WorkingP!I38,\"\")","v":0},{"$f":"IF(WorkingP!$B38=\"Administration Costs\",WorkingP!J38,\"\")","v":0},{"$f":"IF(WorkingP!$B38=\"Administration Costs\",WorkingP!K38,\"\")","v":0},{"$f":"IF(WorkingP!$B38=\"Administration Costs\",WorkingP!L38,\"\")","v":0},{"$f":"IF(WorkingP!$B38=\"Administration Costs\",WorkingP!M38,\"\")","v":0},{"$f":"IF(WorkingP!$B38=\"Administration Costs\",WorkingP!N38,\"\")","v":0},{"$f":"IF(WorkingP!$B38=\"Administration Costs\",WorkingP!O38,\"\")","v":0},{"$f":"IF(WorkingP!$B38=\"Administration Costs\",WorkingP!P38,\"\")","v":0},{"$f":"IF(WorkingP!$B38=\"Administration Costs\",WorkingP!Q38,\"\")","v":0},{"$f":"IF(WorkingP!$B38=\"Administration Costs\",WorkingP!R38,\"\")","v":0},{"$f":"IF(WorkingP!$B38=\"Administration Costs\",WorkingP!S38,\"\")","v":0},{"$f":"IF(WorkingP!$B38=\"Administration Costs\",WorkingP!T38,\"\")","v":0},{"$f":"IF(WorkingP!$B38=\"Administration Costs\",WorkingP!U38,\"\")","v":0},{"$f":"IF(WorkingP!$B38=\"Administration Costs\",WorkingP!V38,\"\")","v":0},{"$f":"IF(WorkingP!$B38=\"Administration Costs\",WorkingP!W38,\"\")","v":0},{"$f":"IF(WorkingP!$B38=\"Administration Costs\",WorkingP!X38,\"\")","v":0},{"$f":"IF(WorkingP!$B38=\"Administration Costs\",WorkingP!Y38,\"\")","v":0},{"$f":"IF(Descriptions!K39=\"Administration Costs\",Descriptions!AB39,0)","v":0}]
[{"$f":"IF(Descriptions!K40=\"Administration Costs\",Descriptions!I40,0)","v":0},{"$f":"IF(WorkingP!$B39=\"Administration Costs\",WorkingP!D39,\"\")","v":0},{"$f":"IF(WorkingP!$B39=\"Administration Costs\",WorkingP!E39,\"\")","v":0},{"$f":"IF(WorkingP!$B39=\"Administration Costs\",WorkingP!F39,\"\")","v":0},{"$f":"IF(WorkingP!$B39=\"Administration Costs\",WorkingP!G39,\"\")","v":0},{"$f":"IF(WorkingP!$B39=\"Administration Costs\",WorkingP!H39,\"\")","v":0},{"$f":"IF(WorkingP!$B39=\"Administration Costs\",WorkingP!I39,\"\")","v":0},{"$f":"IF(WorkingP!$B39=\"Administration Costs\",WorkingP!J39,\"\")","v":0},{"$f":"IF(WorkingP!$B39=\"Administration Costs\",WorkingP!K39,\"\")","v":0},{"$f":"IF(WorkingP!$B39=\"Administration Costs\",WorkingP!L39,\"\")","v":0},{"$f":"IF(WorkingP!$B39=\"Administration Costs\",WorkingP!M39,\"\")","v":0},{"$f":"IF(WorkingP!$B39=\"Administration Costs\",WorkingP!N39,\"\")","v":0},{"$f":"IF(WorkingP!$B39=\"Administration Costs\",WorkingP!O39,\"\")","v":0},{"$f":"IF(WorkingP!$B39=\"Administration Costs\",WorkingP!P39,\"\")","v":0},{"$f":"IF(WorkingP!$B39=\"Administration Costs\",WorkingP!Q39,\"\")","v":0},{"$f":"IF(WorkingP!$B39=\"Administration Costs\",WorkingP!R39,\"\")","v":0},{"$f":"IF(WorkingP!$B39=\"Administration Costs\",WorkingP!S39,\"\")","v":0},{"$f":"IF(WorkingP!$B39=\"Administration Costs\",WorkingP!T39,\"\")","v":0},{"$f":"IF(WorkingP!$B39=\"Administration Costs\",WorkingP!U39,\"\")","v":0},{"$f":"IF(WorkingP!$B39=\"Administration Costs\",WorkingP!V39,\"\")","v":0},{"$f":"IF(WorkingP!$B39=\"Administration Costs\",WorkingP!W39,\"\")","v":0},{"$f":"IF(WorkingP!$B39=\"Administration Costs\",WorkingP!X39,\"\")","v":0},{"$f":"IF(WorkingP!$B39=\"Administration Costs\",WorkingP!Y39,\"\")","v":0},{"$f":"IF(Descriptions!K40=\"Administration Costs\",Descriptions!AB40,0)","v":0}]
[{"$f":"IF(Descriptions!K41=\"Administration Costs\",Descriptions!I41,0)","v":0},{"$f":"IF(WorkingP!$B40=\"Administration Costs\",WorkingP!D40,\"\")","v":0},{"$f":"IF(WorkingP!$B40=\"Administration Costs\",WorkingP!E40,\"\")","v":0},{"$f":"IF(WorkingP!$B40=\"Administration Costs\",WorkingP!F40,\"\")","v":0},{"$f":"IF(WorkingP!$B40=\"Administration Costs\",WorkingP!G40,\"\")","v":0},{"$f":"IF(WorkingP!$B40=\"Administration Costs\",WorkingP!H40,\"\")","v":0},{"$f":"IF(WorkingP!$B40=\"Administration Costs\",WorkingP!I40,\"\")","v":0},{"$f":"IF(WorkingP!$B40=\"Administration Costs\",WorkingP!J40,\"\")","v":0},{"$f":"IF(WorkingP!$B40=\"Administration Costs\",WorkingP!K40,\"\")","v":0},{"$f":"IF(WorkingP!$B40=\"Administration Costs\",WorkingP!L40,\"\")","v":0},{"$f":"IF(WorkingP!$B40=\"Administration Costs\",WorkingP!M40,\"\")","v":0},{"$f":"IF(WorkingP!$B40=\"Administration Costs\",WorkingP!N40,\"\")","v":0},{"$f":"IF(WorkingP!$B40=\"Administration Costs\",WorkingP!O40,\"\")","v":0},{"$f":"IF(WorkingP!$B40=\"Administration Costs\",WorkingP!P40,\"\")","v":0},{"$f":"IF(WorkingP!$B40=\"Administration Costs\",WorkingP!Q40,\"\")","v":0},{"$f":"IF(WorkingP!$B40=\"Administration Costs\",WorkingP!R40,\"\")","v":0},{"$f":"IF(WorkingP!$B40=\"Administration Costs\",WorkingP!S40,\"\")","v":0},{"$f":"IF(WorkingP!$B40=\"Administration Costs\",WorkingP!T40,\"\")","v":0},{"$f":"IF(WorkingP!$B40=\"Administration Costs\",WorkingP!U40,\"\")","v":0},{"$f":"IF(WorkingP!$B40=\"Administration Costs\",WorkingP!V40,\"\")","v":0},{"$f":"IF(WorkingP!$B40=\"Administration Costs\",WorkingP!W40,\"\")","v":0},{"$f":"IF(WorkingP!$B40=\"Administration Costs\",WorkingP!X40,\"\")","v":0},{"$f":"IF(WorkingP!$B40=\"Administration Costs\",WorkingP!Y40,\"\")","v":0},{"$f":"IF(Descriptions!K41=\"Administration Costs\",Descriptions!AB41,0)","v":0}]
[{"$f":"IF(Descriptions!K42=\"Administration Costs\",Descriptions!I42,0)","v":0},{"$f":"IF(WorkingP!$B41=\"Administration Costs\",WorkingP!D41,\"\")","v":0},{"$f":"IF(WorkingP!$B41=\"Administration Costs\",WorkingP!E41,\"\")","v":0},{"$f":"IF(WorkingP!$B41=\"Administration Costs\",WorkingP!F41,\"\")","v":0},{"$f":"IF(WorkingP!$B41=\"Administration Costs\",WorkingP!G41,\"\")","v":0},{"$f":"IF(WorkingP!$B41=\"Administration Costs\",WorkingP!H41,\"\")","v":0},{"$f":"IF(WorkingP!$B41=\"Administration Costs\",WorkingP!I41,\"\")","v":0},{"$f":"IF(WorkingP!$B41=\"Administration Costs\",WorkingP!J41,\"\")","v":0},{"$f":"IF(WorkingP!$B41=\"Administration Costs\",WorkingP!K41,\"\")","v":0},{"$f":"IF(WorkingP!$B41=\"Administration Costs\",WorkingP!L41,\"\")","v":0},{"$f":"IF(WorkingP!$B41=\"Administration Costs\",WorkingP!M41,\"\")","v":0},{"$f":"IF(WorkingP!$B41=\"Administration Costs\",WorkingP!N41,\"\")","v":0},{"$f":"IF(WorkingP!$B41=\"Administration Costs\",WorkingP!O41,\"\")","v":0},{"$f":"IF(WorkingP!$B41=\"Administration Costs\",WorkingP!P41,\"\")","v":0},{"$f":"IF(WorkingP!$B41=\"Administration Costs\",WorkingP!Q41,\"\")","v":0},{"$f":"IF(WorkingP!$B41=\"Administration Costs\",WorkingP!R41,\"\")","v":0},{"$f":"IF(WorkingP!$B41=\"Administration Costs\",WorkingP!S41,\"\")","v":0},{"$f":"IF(WorkingP!$B41=\"Administration Costs\",WorkingP!T41,\"\")","v":0},{"$f":"IF(WorkingP!$B41=\"Administration Costs\",WorkingP!U41,\"\")","v":0},{"$f":"IF(WorkingP!$B41=\"Administration Costs\",WorkingP!V41,\"\")","v":0},{"$f":"IF(WorkingP!$B41=\"Administration Costs\",WorkingP!W41,\"\")","v":0},{"$f":"IF(WorkingP!$B41=\"Administration Costs\",WorkingP!X41,\"\")","v":0},{"$f":"IF(WorkingP!$B41=\"Administration Costs\",WorkingP!Y41,\"\")","v":0},{"$f":"IF(Descriptions!K42=\"Administration Costs\",Descriptions!AB42,0)","v":0}]
[{"$f":"IF(Descriptions!K43=\"Administration Costs\",Descriptions!I43,0)","v":0},{"$f":"IF(WorkingP!$B42=\"Administration Costs\",WorkingP!D42,\"\")","v":0},{"$f":"IF(WorkingP!$B42=\"Administration Costs\",WorkingP!E42,\"\")","v":0},{"$f":"IF(WorkingP!$B42=\"Administration Costs\",WorkingP!F42,\"\")","v":0},{"$f":"IF(WorkingP!$B42=\"Administration Costs\",WorkingP!G42,\"\")","v":0},{"$f":"IF(WorkingP!$B42=\"Administration Costs\",WorkingP!H42,\"\")","v":0},{"$f":"IF(WorkingP!$B42=\"Administration Costs\",WorkingP!I42,\"\")","v":0},{"$f":"IF(WorkingP!$B42=\"Administration Costs\",WorkingP!J42,\"\")","v":0},{"$f":"IF(WorkingP!$B42=\"Administration Costs\",WorkingP!K42,\"\")","v":0},{"$f":"IF(WorkingP!$B42=\"Administration Costs\",WorkingP!L42,\"\")","v":0},{"$f":"IF(WorkingP!$B42=\"Administration Costs\",WorkingP!M42,\"\")","v":0},{"$f":"IF(WorkingP!$B42=\"Administration Costs\",WorkingP!N42,\"\")","v":0},{"$f":"IF(WorkingP!$B42=\"Administration Costs\",WorkingP!O42,\"\")","v":0},{"$f":"IF(WorkingP!$B42=\"Administration Costs\",WorkingP!P42,\"\")","v":0},{"$f":"IF(WorkingP!$B42=\"Administration Costs\",WorkingP!Q42,\"\")","v":0},{"$f":"IF(WorkingP!$B42=\"Administration Costs\",WorkingP!R42,\"\")","v":0},{"$f":"IF(WorkingP!$B42=\"Administration Costs\",WorkingP!S42,\"\")","v":0},{"$f":"IF(WorkingP!$B42=\"Administration Costs\",WorkingP!T42,\"\")","v":0},{"$f":"IF(WorkingP!$B42=\"Administration Costs\",WorkingP!U42,\"\")","v":0},{"$f":"IF(WorkingP!$B42=\"Administration Costs\",WorkingP!V42,\"\")","v":0},{"$f":"IF(WorkingP!$B42=\"Administration Costs\",WorkingP!W42,\"\")","v":0},{"$f":"IF(WorkingP!$B42=\"Administration Costs\",WorkingP!X42,\"\")","v":0},{"$f":"IF(WorkingP!$B42=\"Administration Costs\",WorkingP!Y42,\"\")","v":0},{"$f":"IF(Descriptions!K43=\"Administration Costs\",Descriptions!AB43,0)","v":0}]
[{"$f":"IF(Descriptions!K44=\"Administration Costs\",Descriptions!I44,0)","v":0},{"$f":"IF(WorkingP!$B43=\"Administration Costs\",WorkingP!D43,\"\")","v":0},{"$f":"IF(WorkingP!$B43=\"Administration Costs\",WorkingP!E43,\"\")","v":0},{"$f":"IF(WorkingP!$B43=\"Administration Costs\",WorkingP!F43,\"\")","v":0},{"$f":"IF(WorkingP!$B43=\"Administration Costs\",WorkingP!G43,\"\")","v":0},{"$f":"IF(WorkingP!$B43=\"Administration Costs\",WorkingP!H43,\"\")","v":0},{"$f":"IF(WorkingP!$B43=\"Administration Costs\",WorkingP!I43,\"\")","v":0},{"$f":"IF(WorkingP!$B43=\"Administration Costs\",WorkingP!J43,\"\")","v":0},{"$f":"IF(WorkingP!$B43=\"Administration Costs\",WorkingP!K43,\"\")","v":0},{"$f":"IF(WorkingP!$B43=\"Administration Costs\",WorkingP!L43,\"\")","v":0},{"$f":"IF(WorkingP!$B43=\"Administration Costs\",WorkingP!M43,\"\")","v":0},{"$f":"IF(WorkingP!$B43=\"Administration Costs\",WorkingP!N43,\"\")","v":0},{"$f":"IF(WorkingP!$B43=\"Administration Costs\",WorkingP!O43,\"\")","v":0},{"$f":"IF(WorkingP!$B43=\"Administration Costs\",WorkingP!P43,\"\")","v":0},{"$f":"IF(WorkingP!$B43=\"Administration Costs\",WorkingP!Q43,\"\")","v":0},{"$f":"IF(WorkingP!$B43=\"Administration Costs\",WorkingP!R43,\"\")","v":0},{"$f":"IF(WorkingP!$B43=\"Administration Costs\",WorkingP!S43,\"\")","v":0},{"$f":"IF(WorkingP!$B43=\"Administration Costs\",WorkingP!T43,\"\")","v":0},{"$f":"IF(WorkingP!$B43=\"Administration Costs\",WorkingP!U43,\"\")","v":0},{"$f":"IF(WorkingP!$B43=\"Administration Costs\",WorkingP!V43,\"\")","v":0},{"$f":"IF(WorkingP!$B43=\"Administration Costs\",WorkingP!W43,\"\")","v":0},{"$f":"IF(WorkingP!$B43=\"Administration Costs\",WorkingP!X43,\"\")","v":0},{"$f":"IF(WorkingP!$B43=\"Administration Costs\",WorkingP!Y43,\"\")","v":0},{"$f":"IF(Descriptions!K44=\"Administration Costs\",Descriptions!AB44,0)","v":0}]
[{"$f":"IF(Descriptions!K45=\"Administration Costs\",Descriptions!I45,0)","v":0},{"$f":"IF(WorkingP!$B44=\"Administration Costs\",WorkingP!D44,\"\")","v":0},{"$f":"IF(WorkingP!$B44=\"Administration Costs\",WorkingP!E44,\"\")","v":0},{"$f":"IF(WorkingP!$B44=\"Administration Costs\",WorkingP!F44,\"\")","v":0},{"$f":"IF(WorkingP!$B44=\"Administration Costs\",WorkingP!G44,\"\")","v":0},{"$f":"IF(WorkingP!$B44=\"Administration Costs\",WorkingP!H44,\"\")","v":0},{"$f":"IF(WorkingP!$B44=\"Administration Costs\",WorkingP!I44,\"\")","v":0},{"$f":"IF(WorkingP!$B44=\"Administration Costs\",WorkingP!J44,\"\")","v":0},{"$f":"IF(WorkingP!$B44=\"Administration Costs\",WorkingP!K44,\"\")","v":0},{"$f":"IF(WorkingP!$B44=\"Administration Costs\",WorkingP!L44,\"\")","v":0},{"$f":"IF(WorkingP!$B44=\"Administration Costs\",WorkingP!M44,\"\")","v":0},{"$f":"IF(WorkingP!$B44=\"Administration Costs\",WorkingP!N44,\"\")","v":0},{"$f":"IF(WorkingP!$B44=\"Administration Costs\",WorkingP!O44,\"\")","v":0},{"$f":"IF(WorkingP!$B44=\"Administration Costs\",WorkingP!P44,\"\")","v":0},{"$f":"IF(WorkingP!$B44=\"Administration Costs\",WorkingP!Q44,\"\")","v":0},{"$f":"IF(WorkingP!$B44=\"Administration Costs\",WorkingP!R44,\"\")","v":0},{"$f":"IF(WorkingP!$B44=\"Administration Costs\",WorkingP!S44,\"\")","v":0},{"$f":"IF(WorkingP!$B44=\"Administration Costs\",WorkingP!T44,\"\")","v":0},{"$f":"IF(WorkingP!$B44=\"Administration Costs\",WorkingP!U44,\"\")","v":0},{"$f":"IF(WorkingP!$B44=\"Administration Costs\",WorkingP!V44,\"\")","v":0},{"$f":"IF(WorkingP!$B44=\"Administration Costs\",WorkingP!W44,\"\")","v":0},{"$f":"IF(WorkingP!$B44=\"Administration Costs\",WorkingP!X44,\"\")","v":0},{"$f":"IF(WorkingP!$B44=\"Administration Costs\",WorkingP!Y44,\"\")","v":0},{"$f":"IF(Descriptions!K45=\"Administration Costs\",Descriptions!AB45,0)","v":0}]
[{"$f":"IF(Descriptions!K46=\"Administration Costs\",Descriptions!I46,0)","v":0},{"$f":"IF(WorkingP!$B45=\"Administration Costs\",WorkingP!D45,\"\")","v":0},{"$f":"IF(WorkingP!$B45=\"Administration Costs\",WorkingP!E45,\"\")","v":0},{"$f":"IF(WorkingP!$B45=\"Administration Costs\",WorkingP!F45,\"\")","v":0},{"$f":"IF(WorkingP!$B45=\"Administration Costs\",WorkingP!G45,\"\")","v":0},{"$f":"IF(WorkingP!$B45=\"Administration Costs\",WorkingP!H45,\"\")","v":0},{"$f":"IF(WorkingP!$B45=\"Administration Costs\",WorkingP!I45,\"\")","v":0},{"$f":"IF(WorkingP!$B45=\"Administration Costs\",WorkingP!J45,\"\")","v":0},{"$f":"IF(WorkingP!$B45=\"Administration Costs\",WorkingP!K45,\"\")","v":0},{"$f":"IF(WorkingP!$B45=\"Administration Costs\",WorkingP!L45,\"\")","v":0},{"$f":"IF(WorkingP!$B45=\"Administration Costs\",WorkingP!M45,\"\")","v":0},{"$f":"IF(WorkingP!$B45=\"Administration Costs\",WorkingP!N45,\"\")","v":0},{"$f":"IF(WorkingP!$B45=\"Administration Costs\",WorkingP!O45,\"\")","v":0},{"$f":"IF(WorkingP!$B45=\"Administration Costs\",WorkingP!P45,\"\")","v":0},{"$f":"IF(WorkingP!$B45=\"Administration Costs\",WorkingP!Q45,\"\")","v":0},{"$f":"IF(WorkingP!$B45=\"Administration Costs\",WorkingP!R45,\"\")","v":0},{"$f":"IF(WorkingP!$B45=\"Administration Costs\",WorkingP!S45,\"\")","v":0},{"$f":"IF(WorkingP!$B45=\"Administration Costs\",WorkingP!T45,\"\")","v":0},{"$f":"IF(WorkingP!$B45=\"Administration Costs\",WorkingP!U45,\"\")","v":0},{"$f":"IF(WorkingP!$B45=\"Administration Costs\",WorkingP!V45,\"\")","v":0},{"$f":"IF(WorkingP!$B45=\"Administration Costs\",WorkingP!W45,\"\")","v":0},{"$f":"IF(WorkingP!$B45=\"Administration Costs\",WorkingP!X45,\"\")","v":0},{"$f":"IF(WorkingP!$B45=\"Administration Costs\",WorkingP!Y45,\"\")","v":0},{"$f":"IF(Descriptions!K46=\"Administration Costs\",Descriptions!AB46,0)","v":0}]
[{"$f":"IF(Descriptions!K47=\"Administration Costs\",Descriptions!I47,0)","v":0},{"$f":"IF(WorkingP!$B46=\"Administration Costs\",WorkingP!D46,\"\")","v":0},{"$f":"IF(WorkingP!$B46=\"Administration Costs\",WorkingP!E46,\"\")","v":0},{"$f":"IF(WorkingP!$B46=\"Administration Costs\",WorkingP!F46,\"\")","v":0},{"$f":"IF(WorkingP!$B46=\"Administration Costs\",WorkingP!G46,\"\")","v":0},{"$f":"IF(WorkingP!$B46=\"Administration Costs\",WorkingP!H46,\"\")","v":0},{"$f":"IF(WorkingP!$B46=\"Administration Costs\",WorkingP!I46,\"\")","v":0},{"$f":"IF(WorkingP!$B46=\"Administration Costs\",WorkingP!J46,\"\")","v":0},{"$f":"IF(WorkingP!$B46=\"Administration Costs\",WorkingP!K46,\"\")","v":0},{"$f":"IF(WorkingP!$B46=\"Administration Costs\",WorkingP!L46,\"\")","v":0},{"$f":"IF(WorkingP!$B46=\"Administration Costs\",WorkingP!M46,\"\")","v":0},{"$f":"IF(WorkingP!$B46=\"Administration Costs\",WorkingP!N46,\"\")","v":0},{"$f":"IF(WorkingP!$B46=\"Administration Costs\",WorkingP!O46,\"\")","v":0},{"$f":"IF(WorkingP!$B46=\"Administration Costs\",WorkingP!P46,\"\")","v":0},{"$f":"IF(WorkingP!$B46=\"Administration Costs\",WorkingP!Q46,\"\")","v":0},{"$f":"IF(WorkingP!$B46=\"Administration Costs\",WorkingP!R46,\"\")","v":0},{"$f":"IF(WorkingP!$B46=\"Administration Costs\",WorkingP!S46,\"\")","v":0},{"$f":"IF(WorkingP!$B46=\"Administration Costs\",WorkingP!T46,\"\")","v":0},{"$f":"IF(WorkingP!$B46=\"Administration Costs\",WorkingP!U46,\"\")","v":0},{"$f":"IF(WorkingP!$B46=\"Administration Costs\",WorkingP!V46,\"\")","v":0},{"$f":"IF(WorkingP!$B46=\"Administration Costs\",WorkingP!W46,\"\")","v":0},{"$f":"IF(WorkingP!$B46=\"Administration Costs\",WorkingP!X46,\"\")","v":0},{"$f":"IF(WorkingP!$B46=\"Administration Costs\",WorkingP!Y46,\"\")","v":0},{"$f":"IF(Descriptions!K47=\"Administration Costs\",Descriptions!AB47,0)","v":0}]
[{"$f":"IF(Descriptions!K48=\"Administration Costs\",Descriptions!I48,0)","v":0},{"$f":"IF(WorkingP!$B47=\"Administration Costs\",WorkingP!D47,\"\")","v":0},{"$f":"IF(WorkingP!$B47=\"Administration Costs\",WorkingP!E47,\"\")","v":0},{"$f":"IF(WorkingP!$B47=\"Administration Costs\",WorkingP!F47,\"\")","v":0},{"$f":"IF(WorkingP!$B47=\"Administration Costs\",WorkingP!G47,\"\")","v":0},{"$f":"IF(WorkingP!$B47=\"Administration Costs\",WorkingP!H47,\"\")","v":0},{"$f":"IF(WorkingP!$B47=\"Administration Costs\",WorkingP!I47,\"\")","v":0},{"$f":"IF(WorkingP!$B47=\"Administration Costs\",WorkingP!J47,\"\")","v":0},{"$f":"IF(WorkingP!$B47=\"Administration Costs\",WorkingP!K47,\"\")","v":0},{"$f":"IF(WorkingP!$B47=\"Administration Costs\",WorkingP!L47,\"\")","v":0},{"$f":"IF(WorkingP!$B47=\"Administration Costs\",WorkingP!M47,\"\")","v":0},{"$f":"IF(WorkingP!$B47=\"Administration Costs\",WorkingP!N47,\"\")","v":0},{"$f":"IF(WorkingP!$B47=\"Administration Costs\",WorkingP!O47,\"\")","v":0},{"$f":"IF(WorkingP!$B47=\"Administration Costs\",WorkingP!P47,\"\")","v":0},{"$f":"IF(WorkingP!$B47=\"Administration Costs\",WorkingP!Q47,\"\")","v":0},{"$f":"IF(WorkingP!$B47=\"Administration Costs\",WorkingP!R47,\"\")","v":0},{"$f":"IF(WorkingP!$B47=\"Administration Costs\",WorkingP!S47,\"\")","v":0},{"$f":"IF(WorkingP!$B47=\"Administration Costs\",WorkingP!T47,\"\")","v":0},{"$f":"IF(WorkingP!$B47=\"Administration Costs\",WorkingP!U47,\"\")","v":0},{"$f":"IF(WorkingP!$B47=\"Administration Costs\",WorkingP!V47,\"\")","v":0},{"$f":"IF(WorkingP!$B47=\"Administration Costs\",WorkingP!W47,\"\")","v":0},{"$f":"IF(WorkingP!$B47=\"Administration Costs\",WorkingP!X47,\"\")","v":0},{"$f":"IF(WorkingP!$B47=\"Administration Costs\",WorkingP!Y47,\"\")","v":0},{"$f":"IF(Descriptions!K48=\"Administration Costs\",Descriptions!AB48,0)","v":0}]
[{"$f":"IF(Descriptions!K49=\"Administration Costs\",Descriptions!I49,0)","v":0},{"$f":"IF(WorkingP!$B48=\"Administration Costs\",WorkingP!D48,\"\")","v":0},{"$f":"IF(WorkingP!$B48=\"Administration Costs\",WorkingP!E48,\"\")","v":0},{"$f":"IF(WorkingP!$B48=\"Administration Costs\",WorkingP!F48,\"\")","v":0},{"$f":"IF(WorkingP!$B48=\"Administration Costs\",WorkingP!G48,\"\")","v":0},{"$f":"IF(WorkingP!$B48=\"Administration Costs\",WorkingP!H48,\"\")","v":0},{"$f":"IF(WorkingP!$B48=\"Administration Costs\",WorkingP!I48,\"\")","v":0},{"$f":"IF(WorkingP!$B48=\"Administration Costs\",WorkingP!J48,\"\")","v":0},{"$f":"IF(WorkingP!$B48=\"Administration Costs\",WorkingP!K48,\"\")","v":0},{"$f":"IF(WorkingP!$B48=\"Administration Costs\",WorkingP!L48,\"\")","v":0},{"$f":"IF(WorkingP!$B48=\"Administration Costs\",WorkingP!M48,\"\")","v":0},{"$f":"IF(WorkingP!$B48=\"Administration Costs\",WorkingP!N48,\"\")","v":0},{"$f":"IF(WorkingP!$B48=\"Administration Costs\",WorkingP!O48,\"\")","v":0},{"$f":"IF(WorkingP!$B48=\"Administration Costs\",WorkingP!P48,\"\")","v":0},{"$f":"IF(WorkingP!$B48=\"Administration Costs\",WorkingP!Q48,\"\")","v":0},{"$f":"IF(WorkingP!$B48=\"Administration Costs\",WorkingP!R48,\"\")","v":0},{"$f":"IF(WorkingP!$B48=\"Administration Costs\",WorkingP!S48,\"\")","v":0},{"$f":"IF(WorkingP!$B48=\"Administration Costs\",WorkingP!T48,\"\")","v":0},{"$f":"IF(WorkingP!$B48=\"Administration Costs\",WorkingP!U48,\"\")","v":0},{"$f":"IF(WorkingP!$B48=\"Administration Costs\",WorkingP!V48,\"\")","v":0},{"$f":"IF(WorkingP!$B48=\"Administration Costs\",WorkingP!W48,\"\")","v":0},{"$f":"IF(WorkingP!$B48=\"Administration Costs\",WorkingP!X48,\"\")","v":0},{"$f":"IF(WorkingP!$B48=\"Administration Costs\",WorkingP!Y48,\"\")","v":0},{"$f":"IF(Descriptions!K49=\"Administration Costs\",Descriptions!AB49,0)","v":0}]
[{"$f":"IF(Descriptions!K50=\"Administration Costs\",Descriptions!I50,0)","v":0},{"$f":"IF(WorkingP!$B49=\"Administration Costs\",WorkingP!D49,\"\")","v":0},{"$f":"IF(WorkingP!$B49=\"Administration Costs\",WorkingP!E49,\"\")","v":0},{"$f":"IF(WorkingP!$B49=\"Administration Costs\",WorkingP!F49,\"\")","v":0},{"$f":"IF(WorkingP!$B49=\"Administration Costs\",WorkingP!G49,\"\")","v":0},{"$f":"IF(WorkingP!$B49=\"Administration Costs\",WorkingP!H49,\"\")","v":0},{"$f":"IF(WorkingP!$B49=\"Administration Costs\",WorkingP!I49,\"\")","v":0},{"$f":"IF(WorkingP!$B49=\"Administration Costs\",WorkingP!J49,\"\")","v":0},{"$f":"IF(WorkingP!$B49=\"Administration Costs\",WorkingP!K49,\"\")","v":0},{"$f":"IF(WorkingP!$B49=\"Administration Costs\",WorkingP!L49,\"\")","v":0},{"$f":"IF(WorkingP!$B49=\"Administration Costs\",WorkingP!M49,\"\")","v":0},{"$f":"IF(WorkingP!$B49=\"Administration Costs\",WorkingP!N49,\"\")","v":0},{"$f":"IF(WorkingP!$B49=\"Administration Costs\",WorkingP!O49,\"\")","v":0},{"$f":"IF(WorkingP!$B49=\"Administration Costs\",WorkingP!P49,\"\")","v":0},{"$f":"IF(WorkingP!$B49=\"Administration Costs\",WorkingP!Q49,\"\")","v":0},{"$f":"IF(WorkingP!$B49=\"Administration Costs\",WorkingP!R49,\"\")","v":0},{"$f":"IF(WorkingP!$B49=\"Administration Costs\",WorkingP!S49,\"\")","v":0},{"$f":"IF(WorkingP!$B49=\"Administration Costs\",WorkingP!T49,\"\")","v":0},{"$f":"IF(WorkingP!$B49=\"Administration Costs\",WorkingP!U49,\"\")","v":0},{"$f":"IF(WorkingP!$B49=\"Administration Costs\",WorkingP!V49,\"\")","v":0},{"$f":"IF(WorkingP!$B49=\"Administration Costs\",WorkingP!W49,\"\")","v":0},{"$f":"IF(WorkingP!$B49=\"Administration Costs\",WorkingP!X49,\"\")","v":0},{"$f":"IF(WorkingP!$B49=\"Administration Costs\",WorkingP!Y49,\"\")","v":0},{"$f":"IF(Descriptions!K50=\"Administration Costs\",Descriptions!AB50,0)","v":0}]
[{"$f":"IF(Descriptions!K51=\"Administration Costs\",Descriptions!I51,0)","v":0},{"$f":"IF(WorkingP!$B50=\"Administration Costs\",WorkingP!D50,\"\")","v":0},{"$f":"IF(WorkingP!$B50=\"Administration Costs\",WorkingP!E50,\"\")","v":0},{"$f":"IF(WorkingP!$B50=\"Administration Costs\",WorkingP!F50,\"\")","v":0},{"$f":"IF(WorkingP!$B50=\"Administration Costs\",WorkingP!G50,\"\")","v":0},{"$f":"IF(WorkingP!$B50=\"Administration Costs\",WorkingP!H50,\"\")","v":0},{"$f":"IF(WorkingP!$B50=\"Administration Costs\",WorkingP!I50,\"\")","v":0},{"$f":"IF(WorkingP!$B50=\"Administration Costs\",WorkingP!J50,\"\")","v":0},{"$f":"IF(WorkingP!$B50=\"Administration Costs\",WorkingP!K50,\"\")","v":0},{"$f":"IF(WorkingP!$B50=\"Administration Costs\",WorkingP!L50,\"\")","v":0},{"$f":"IF(WorkingP!$B50=\"Administration Costs\",WorkingP!M50,\"\")","v":0},{"$f":"IF(WorkingP!$B50=\"Administration Costs\",WorkingP!N50,\"\")","v":0},{"$f":"IF(WorkingP!$B50=\"Administration Costs\",WorkingP!O50,\"\")","v":0},{"$f":"IF(WorkingP!$B50=\"Administration Costs\",WorkingP!P50,\"\")","v":0},{"$f":"IF(WorkingP!$B50=\"Administration Costs\",WorkingP!Q50,\"\")","v":0},{"$f":"IF(WorkingP!$B50=\"Administration Costs\",WorkingP!R50,\"\")","v":0},{"$f":"IF(WorkingP!$B50=\"Administration Costs\",WorkingP!S50,\"\")","v":0},{"$f":"IF(WorkingP!$B50=\"Administration Costs\",WorkingP!T50,\"\")","v":0},{"$f":"IF(WorkingP!$B50=\"Administration Costs\",WorkingP!U50,\"\")","v":0},{"$f":"IF(WorkingP!$B50=\"Administration Costs\",WorkingP!V50,\"\")","v":0},{"$f":"IF(WorkingP!$B50=\"Administration Costs\",WorkingP!W50,\"\")","v":0},{"$f":"IF(WorkingP!$B50=\"Administration Costs\",WorkingP!X50,\"\")","v":0},{"$f":"IF(WorkingP!$B50=\"Administration Costs\",WorkingP!Y50,\"\")","v":0},{"$f":"IF(Descriptions!K51=\"Administration Costs\",Descriptions!AB51,0)","v":0}]
[{"$f":"IF(Descriptions!K52=\"Administration Costs\",Descriptions!I52,0)","v":0},{"$f":"IF(WorkingP!$B51=\"Administration Costs\",WorkingP!D51,\"\")","v":0},{"$f":"IF(WorkingP!$B51=\"Administration Costs\",WorkingP!E51,\"\")","v":0},{"$f":"IF(WorkingP!$B51=\"Administration Costs\",WorkingP!F51,\"\")","v":0},{"$f":"IF(WorkingP!$B51=\"Administration Costs\",WorkingP!G51,\"\")","v":0},{"$f":"IF(WorkingP!$B51=\"Administration Costs\",WorkingP!H51,\"\")","v":0},{"$f":"IF(WorkingP!$B51=\"Administration Costs\",WorkingP!I51,\"\")","v":0},{"$f":"IF(WorkingP!$B51=\"Administration Costs\",WorkingP!J51,\"\")","v":0},{"$f":"IF(WorkingP!$B51=\"Administration Costs\",WorkingP!K51,\"\")","v":0},{"$f":"IF(WorkingP!$B51=\"Administration Costs\",WorkingP!L51,\"\")","v":0},{"$f":"IF(WorkingP!$B51=\"Administration Costs\",WorkingP!M51,\"\")","v":0},{"$f":"IF(WorkingP!$B51=\"Administration Costs\",WorkingP!N51,\"\")","v":0},{"$f":"IF(WorkingP!$B51=\"Administration Costs\",WorkingP!O51,\"\")","v":0},{"$f":"IF(WorkingP!$B51=\"Administration Costs\",WorkingP!P51,\"\")","v":0},{"$f":"IF(WorkingP!$B51=\"Administration Costs\",WorkingP!Q51,\"\")","v":0},{"$f":"IF(WorkingP!$B51=\"Administration Costs\",WorkingP!R51,\"\")","v":0},{"$f":"IF(WorkingP!$B51=\"Administration Costs\",WorkingP!S51,\"\")","v":0},{"$f":"IF(WorkingP!$B51=\"Administration Costs\",WorkingP!T51,\"\")","v":0},{"$f":"IF(WorkingP!$B51=\"Administration Costs\",WorkingP!U51,\"\")","v":0},{"$f":"IF(WorkingP!$B51=\"Administration Costs\",WorkingP!V51,\"\")","v":0},{"$f":"IF(WorkingP!$B51=\"Administration Costs\",WorkingP!W51,\"\")","v":0},{"$f":"IF(WorkingP!$B51=\"Administration Costs\",WorkingP!X51,\"\")","v":0},{"$f":"IF(WorkingP!$B51=\"Administration Costs\",WorkingP!Y51,\"\")","v":0},{"$f":"IF(Descriptions!K52=\"Administration Costs\",Descriptions!AB52,0)","v":0}]
[{"$f":"IF(Descriptions!K53=\"Administration Costs\",Descriptions!I53,0)","v":0},{"$f":"IF(WorkingP!$B52=\"Administration Costs\",WorkingP!D52,\"\")","v":0},{"$f":"IF(WorkingP!$B52=\"Administration Costs\",WorkingP!E52,\"\")","v":0},{"$f":"IF(WorkingP!$B52=\"Administration Costs\",WorkingP!F52,\"\")","v":0},{"$f":"IF(WorkingP!$B52=\"Administration Costs\",WorkingP!G52,\"\")","v":0},{"$f":"IF(WorkingP!$B52=\"Administration Costs\",WorkingP!H52,\"\")","v":0},{"$f":"IF(WorkingP!$B52=\"Administration Costs\",WorkingP!I52,\"\")","v":0},{"$f":"IF(WorkingP!$B52=\"Administration Costs\",WorkingP!J52,\"\")","v":0},{"$f":"IF(WorkingP!$B52=\"Administration Costs\",WorkingP!K52,\"\")","v":0},{"$f":"IF(WorkingP!$B52=\"Administration Costs\",WorkingP!L52,\"\")","v":0},{"$f":"IF(WorkingP!$B52=\"Administration Costs\",WorkingP!M52,\"\")","v":0},{"$f":"IF(WorkingP!$B52=\"Administration Costs\",WorkingP!N52,\"\")","v":0},{"$f":"IF(WorkingP!$B52=\"Administration Costs\",WorkingP!O52,\"\")","v":0},{"$f":"IF(WorkingP!$B52=\"Administration Costs\",WorkingP!P52,\"\")","v":0},{"$f":"IF(WorkingP!$B52=\"Administration Costs\",WorkingP!Q52,\"\")","v":0},{"$f":"IF(WorkingP!$B52=\"Administration Costs\",WorkingP!R52,\"\")","v":0},{"$f":"IF(WorkingP!$B52=\"Administration Costs\",WorkingP!S52,\"\")","v":0},{"$f":"IF(WorkingP!$B52=\"Administration Costs\",WorkingP!T52,\"\")","v":0},{"$f":"IF(WorkingP!$B52=\"Administration Costs\",WorkingP!U52,\"\")","v":0},{"$f":"IF(WorkingP!$B52=\"Administration Costs\",WorkingP!V52,\"\")","v":0},{"$f":"IF(WorkingP!$B52=\"Administration Costs\",WorkingP!W52,\"\")","v":0},{"$f":"IF(WorkingP!$B52=\"Administration Costs\",WorkingP!X52,\"\")","v":0},{"$f":"IF(WorkingP!$B52=\"Administration Costs\",WorkingP!Y52,\"\")","v":0},{"$f":"IF(Descriptions!K53=\"Administration Costs\",Descriptions!AB53,0)","v":0}]
[{"$f":"IF(Descriptions!K54=\"Administration Costs\",Descriptions!I54,0)","v":0},{"$f":"IF(WorkingP!$B53=\"Administration Costs\",WorkingP!D53,\"\")","v":0},{"$f":"IF(WorkingP!$B53=\"Administration Costs\",WorkingP!E53,\"\")","v":0},{"$f":"IF(WorkingP!$B53=\"Administration Costs\",WorkingP!F53,\"\")","v":0},{"$f":"IF(WorkingP!$B53=\"Administration Costs\",WorkingP!G53,\"\")","v":0},{"$f":"IF(WorkingP!$B53=\"Administration Costs\",WorkingP!H53,\"\")","v":0},{"$f":"IF(WorkingP!$B53=\"Administration Costs\",WorkingP!I53,\"\")","v":0},{"$f":"IF(WorkingP!$B53=\"Administration Costs\",WorkingP!J53,\"\")","v":0},{"$f":"IF(WorkingP!$B53=\"Administration Costs\",WorkingP!K53,\"\")","v":0},{"$f":"IF(WorkingP!$B53=\"Administration Costs\",WorkingP!L53,\"\")","v":0},{"$f":"IF(WorkingP!$B53=\"Administration Costs\",WorkingP!M53,\"\")","v":0},{"$f":"IF(WorkingP!$B53=\"Administration Costs\",WorkingP!N53,\"\")","v":0},{"$f":"IF(WorkingP!$B53=\"Administration Costs\",WorkingP!O53,\"\")","v":0},{"$f":"IF(WorkingP!$B53=\"Administration Costs\",WorkingP!P53,\"\")","v":0},{"$f":"IF(WorkingP!$B53=\"Administration Costs\",WorkingP!Q53,\"\")","v":0},{"$f":"IF(WorkingP!$B53=\"Administration Costs\",WorkingP!R53,\"\")","v":0},{"$f":"IF(WorkingP!$B53=\"Administration Costs\",WorkingP!S53,\"\")","v":0},{"$f":"IF(WorkingP!$B53=\"Administration Costs\",WorkingP!T53,\"\")","v":0},{"$f":"IF(WorkingP!$B53=\"Administration Costs\",WorkingP!U53,\"\")","v":0},{"$f":"IF(WorkingP!$B53=\"Administration Costs\",WorkingP!V53,\"\")","v":0},{"$f":"IF(WorkingP!$B53=\"Administration Costs\",WorkingP!W53,\"\")","v":0},{"$f":"IF(WorkingP!$B53=\"Administration Costs\",WorkingP!X53,\"\")","v":0},{"$f":"IF(WorkingP!$B53=\"Administration Costs\",WorkingP!Y53,\"\")","v":0},{"$f":"IF(Descriptions!K54=\"Administration Costs\",Descriptions!AB54,0)","v":0}]
[{"$f":"IF(Descriptions!K55=\"Administration Costs\",Descriptions!I55,0)","v":0},{"$f":"IF(WorkingP!$B54=\"Administration Costs\",WorkingP!D54,\"\")","v":0},{"$f":"IF(WorkingP!$B54=\"Administration Costs\",WorkingP!E54,\"\")","v":0},{"$f":"IF(WorkingP!$B54=\"Administration Costs\",WorkingP!F54,\"\")","v":0},{"$f":"IF(WorkingP!$B54=\"Administration Costs\",WorkingP!G54,\"\")","v":0},{"$f":"IF(WorkingP!$B54=\"Administration Costs\",WorkingP!H54,\"\")","v":0},{"$f":"IF(WorkingP!$B54=\"Administration Costs\",WorkingP!I54,\"\")","v":0},{"$f":"IF(WorkingP!$B54=\"Administration Costs\",WorkingP!J54,\"\")","v":0},{"$f":"IF(WorkingP!$B54=\"Administration Costs\",WorkingP!K54,\"\")","v":0},{"$f":"IF(WorkingP!$B54=\"Administration Costs\",WorkingP!L54,\"\")","v":0},{"$f":"IF(WorkingP!$B54=\"Administration Costs\",WorkingP!M54,\"\")","v":0},{"$f":"IF(WorkingP!$B54=\"Administration Costs\",WorkingP!N54,\"\")","v":0},{"$f":"IF(WorkingP!$B54=\"Administration Costs\",WorkingP!O54,\"\")","v":0},{"$f":"IF(WorkingP!$B54=\"Administration Costs\",WorkingP!P54,\"\")","v":0},{"$f":"IF(WorkingP!$B54=\"Administration Costs\",WorkingP!Q54,\"\")","v":0},{"$f":"IF(WorkingP!$B54=\"Administration Costs\",WorkingP!R54,\"\")","v":0},{"$f":"IF(WorkingP!$B54=\"Administration Costs\",WorkingP!S54,\"\")","v":0},{"$f":"IF(WorkingP!$B54=\"Administration Costs\",WorkingP!T54,\"\")","v":0},{"$f":"IF(WorkingP!$B54=\"Administration Costs\",WorkingP!U54,\"\")","v":0},{"$f":"IF(WorkingP!$B54=\"Administration Costs\",WorkingP!V54,\"\")","v":0},{"$f":"IF(WorkingP!$B54=\"Administration Costs\",WorkingP!W54,\"\")","v":0},{"$f":"IF(WorkingP!$B54=\"Administration Costs\",WorkingP!X54,\"\")","v":0},{"$f":"IF(WorkingP!$B54=\"Administration Costs\",WorkingP!Y54,\"\")","v":0},{"$f":"IF(Descriptions!K55=\"Administration Costs\",Descriptions!AB55,0)","v":0}]
[{"$f":"IF(Descriptions!K56=\"Administration Costs\",Descriptions!I56,0)","v":0},{"$f":"IF(WorkingP!$B55=\"Administration Costs\",WorkingP!D55,\"\")","v":0},{"$f":"IF(WorkingP!$B55=\"Administration Costs\",WorkingP!E55,\"\")","v":0},{"$f":"IF(WorkingP!$B55=\"Administration Costs\",WorkingP!F55,\"\")","v":0},{"$f":"IF(WorkingP!$B55=\"Administration Costs\",WorkingP!G55,\"\")","v":0},{"$f":"IF(WorkingP!$B55=\"Administration Costs\",WorkingP!H55,\"\")","v":0},{"$f":"IF(WorkingP!$B55=\"Administration Costs\",WorkingP!I55,\"\")","v":0},{"$f":"IF(WorkingP!$B55=\"Administration Costs\",WorkingP!J55,\"\")","v":0},{"$f":"IF(WorkingP!$B55=\"Administration Costs\",WorkingP!K55,\"\")","v":0},{"$f":"IF(WorkingP!$B55=\"Administration Costs\",WorkingP!L55,\"\")","v":0},{"$f":"IF(WorkingP!$B55=\"Administration Costs\",WorkingP!M55,\"\")","v":0},{"$f":"IF(WorkingP!$B55=\"Administration Costs\",WorkingP!N55,\"\")","v":0},{"$f":"IF(WorkingP!$B55=\"Administration Costs\",WorkingP!O55,\"\")","v":0},{"$f":"IF(WorkingP!$B55=\"Administration Costs\",WorkingP!P55,\"\")","v":0},{"$f":"IF(WorkingP!$B55=\"Administration Costs\",WorkingP!Q55,\"\")","v":0},{"$f":"IF(WorkingP!$B55=\"Administration Costs\",WorkingP!R55,\"\")","v":0},{"$f":"IF(WorkingP!$B55=\"Administration Costs\",WorkingP!S55,\"\")","v":0},{"$f":"IF(WorkingP!$B55=\"Administration Costs\",WorkingP!T55,\"\")","v":0},{"$f":"IF(WorkingP!$B55=\"Administration Costs\",WorkingP!U55,\"\")","v":0},{"$f":"IF(WorkingP!$B55=\"Administration Costs\",WorkingP!V55,\"\")","v":0},{"$f":"IF(WorkingP!$B55=\"Administration Costs\",WorkingP!W55,\"\")","v":0},{"$f":"IF(WorkingP!$B55=\"Administration Costs\",WorkingP!X55,\"\")","v":0},{"$f":"IF(WorkingP!$B55=\"Administration Costs\",WorkingP!Y55,\"\")","v":0},{"$f":"IF(Descriptions!K56=\"Administration Costs\",Descriptions!AB56,0)","v":0}]
[{"$f":"IF(Descriptions!K57=\"Administration Costs\",Descriptions!I57,0)","v":0},{"$f":"IF(WorkingP!$B56=\"Administration Costs\",WorkingP!D56,\"\")","v":0},{"$f":"IF(WorkingP!$B56=\"Administration Costs\",WorkingP!E56,\"\")","v":0},{"$f":"IF(WorkingP!$B56=\"Administration Costs\",WorkingP!F56,\"\")","v":0},{"$f":"IF(WorkingP!$B56=\"Administration Costs\",WorkingP!G56,\"\")","v":0},{"$f":"IF(WorkingP!$B56=\"Administration Costs\",WorkingP!H56,\"\")","v":0},{"$f":"IF(WorkingP!$B56=\"Administration Costs\",WorkingP!I56,\"\")","v":0},{"$f":"IF(WorkingP!$B56=\"Administration Costs\",WorkingP!J56,\"\")","v":0},{"$f":"IF(WorkingP!$B56=\"Administration Costs\",WorkingP!K56,\"\")","v":0},{"$f":"IF(WorkingP!$B56=\"Administration Costs\",WorkingP!L56,\"\")","v":0},{"$f":"IF(WorkingP!$B56=\"Administration Costs\",WorkingP!M56,\"\")","v":0},{"$f":"IF(WorkingP!$B56=\"Administration Costs\",WorkingP!N56,\"\")","v":0},{"$f":"IF(WorkingP!$B56=\"Administration Costs\",WorkingP!O56,\"\")","v":0},{"$f":"IF(WorkingP!$B56=\"Administration Costs\",WorkingP!P56,\"\")","v":0},{"$f":"IF(WorkingP!$B56=\"Administration Costs\",WorkingP!Q56,\"\")","v":0},{"$f":"IF(WorkingP!$B56=\"Administration Costs\",WorkingP!R56,\"\")","v":0},{"$f":"IF(WorkingP!$B56=\"Administration Costs\",WorkingP!S56,\"\")","v":0},{"$f":"IF(WorkingP!$B56=\"Administration Costs\",WorkingP!T56,\"\")","v":0},{"$f":"IF(WorkingP!$B56=\"Administration Costs\",WorkingP!U56,\"\")","v":0},{"$f":"IF(WorkingP!$B56=\"Administration Costs\",WorkingP!V56,\"\")","v":0},{"$f":"IF(WorkingP!$B56=\"Administration Costs\",WorkingP!W56,\"\")","v":0},{"$f":"IF(WorkingP!$B56=\"Administration Costs\",WorkingP!X56,\"\")","v":0},{"$f":"IF(WorkingP!$B56=\"Administration Costs\",WorkingP!Y56,\"\")","v":0},{"$f":"IF(Descriptions!K57=\"Administration Costs\",Descriptions!AB57,0)","v":0}]
[{"$f":"IF(Descriptions!K58=\"Administration Costs\",Descriptions!I58,0)","v":0},{"$f":"IF(WorkingP!$B57=\"Administration Costs\",WorkingP!D57,\"\")","v":0},{"$f":"IF(WorkingP!$B57=\"Administration Costs\",WorkingP!E57,\"\")","v":0},{"$f":"IF(WorkingP!$B57=\"Administration Costs\",WorkingP!F57,\"\")","v":0},{"$f":"IF(WorkingP!$B57=\"Administration Costs\",WorkingP!G57,\"\")","v":0},{"$f":"IF(WorkingP!$B57=\"Administration Costs\",WorkingP!H57,\"\")","v":0},{"$f":"IF(WorkingP!$B57=\"Administration Costs\",WorkingP!I57,\"\")","v":0},{"$f":"IF(WorkingP!$B57=\"Administration Costs\",WorkingP!J57,\"\")","v":0},{"$f":"IF(WorkingP!$B57=\"Administration Costs\",WorkingP!K57,\"\")","v":0},{"$f":"IF(WorkingP!$B57=\"Administration Costs\",WorkingP!L57,\"\")","v":0},{"$f":"IF(WorkingP!$B57=\"Administration Costs\",WorkingP!M57,\"\")","v":0},{"$f":"IF(WorkingP!$B57=\"Administration Costs\",WorkingP!N57,\"\")","v":0},{"$f":"IF(WorkingP!$B57=\"Administration Costs\",WorkingP!O57,\"\")","v":0},{"$f":"IF(WorkingP!$B57=\"Administration Costs\",WorkingP!P57,\"\")","v":0},{"$f":"IF(WorkingP!$B57=\"Administration Costs\",WorkingP!Q57,\"\")","v":0},{"$f":"IF(WorkingP!$B57=\"Administration Costs\",WorkingP!R57,\"\")","v":0},{"$f":"IF(WorkingP!$B57=\"Administration Costs\",WorkingP!S57,\"\")","v":0},{"$f":"IF(WorkingP!$B57=\"Administration Costs\",WorkingP!T57,\"\")","v":0},{"$f":"IF(WorkingP!$B57=\"Administration Costs\",WorkingP!U57,\"\")","v":0},{"$f":"IF(WorkingP!$B57=\"Administration Costs\",WorkingP!V57,\"\")","v":0},{"$f":"IF(WorkingP!$B57=\"Administration Costs\",WorkingP!W57,\"\")","v":0},{"$f":"IF(WorkingP!$B57=\"Administration Costs\",WorkingP!X57,\"\")","v":0},{"$f":"IF(WorkingP!$B57=\"Administration Costs\",WorkingP!Y57,\"\")","v":0},{"$f":"IF(Descriptions!K58=\"Administration Costs\",Descriptions!AB58,0)","v":0}]
[{"$f":"IF(Descriptions!K59=\"Administration Costs\",Descriptions!I59,0)","v":0},{"$f":"IF(WorkingP!$B58=\"Administration Costs\",WorkingP!D58,\"\")","v":0},{"$f":"IF(WorkingP!$B58=\"Administration Costs\",WorkingP!E58,\"\")","v":0},{"$f":"IF(WorkingP!$B58=\"Administration Costs\",WorkingP!F58,\"\")","v":0},{"$f":"IF(WorkingP!$B58=\"Administration Costs\",WorkingP!G58,\"\")","v":0},{"$f":"IF(WorkingP!$B58=\"Administration Costs\",WorkingP!H58,\"\")","v":0},{"$f":"IF(WorkingP!$B58=\"Administration Costs\",WorkingP!I58,\"\")","v":0},{"$f":"IF(WorkingP!$B58=\"Administration Costs\",WorkingP!J58,\"\")","v":0},{"$f":"IF(WorkingP!$B58=\"Administration Costs\",WorkingP!K58,\"\")","v":0},{"$f":"IF(WorkingP!$B58=\"Administration Costs\",WorkingP!L58,\"\")","v":0},{"$f":"IF(WorkingP!$B58=\"Administration Costs\",WorkingP!M58,\"\")","v":0},{"$f":"IF(WorkingP!$B58=\"Administration Costs\",WorkingP!N58,\"\")","v":0},{"$f":"IF(WorkingP!$B58=\"Administration Costs\",WorkingP!O58,\"\")","v":0},{"$f":"IF(WorkingP!$B58=\"Administration Costs\",WorkingP!P58,\"\")","v":0},{"$f":"IF(WorkingP!$B58=\"Administration Costs\",WorkingP!Q58,\"\")","v":0},{"$f":"IF(WorkingP!$B58=\"Administration Costs\",WorkingP!R58,\"\")","v":0},{"$f":"IF(WorkingP!$B58=\"Administration Costs\",WorkingP!S58,\"\")","v":0},{"$f":"IF(WorkingP!$B58=\"Administration Costs\",WorkingP!T58,\"\")","v":0},{"$f":"IF(WorkingP!$B58=\"Administration Costs\",WorkingP!U58,\"\")","v":0},{"$f":"IF(WorkingP!$B58=\"Administration Costs\",WorkingP!V58,\"\")","v":0},{"$f":"IF(WorkingP!$B58=\"Administration Costs\",WorkingP!W58,\"\")","v":0},{"$f":"IF(WorkingP!$B58=\"Administration Costs\",WorkingP!X58,\"\")","v":0},{"$f":"IF(WorkingP!$B58=\"Administration Costs\",WorkingP!Y58,\"\")","v":0},{"$f":"IF(Descriptions!K59=\"Administration Costs\",Descriptions!AB59,0)","v":0}]
[{"$f":"IF(Descriptions!K60=\"Administration Costs\",Descriptions!I60,0)","v":0},{"$f":"IF(WorkingP!$B59=\"Administration Costs\",WorkingP!D59,\"\")","v":0},{"$f":"IF(WorkingP!$B59=\"Administration Costs\",WorkingP!E59,\"\")","v":0},{"$f":"IF(WorkingP!$B59=\"Administration Costs\",WorkingP!F59,\"\")","v":0},{"$f":"IF(WorkingP!$B59=\"Administration Costs\",WorkingP!G59,\"\")","v":0},{"$f":"IF(WorkingP!$B59=\"Administration Costs\",WorkingP!H59,\"\")","v":0},{"$f":"IF(WorkingP!$B59=\"Administration Costs\",WorkingP!I59,\"\")","v":0},{"$f":"IF(WorkingP!$B59=\"Administration Costs\",WorkingP!J59,\"\")","v":0},{"$f":"IF(WorkingP!$B59=\"Administration Costs\",WorkingP!K59,\"\")","v":0},{"$f":"IF(WorkingP!$B59=\"Administration Costs\",WorkingP!L59,\"\")","v":0},{"$f":"IF(WorkingP!$B59=\"Administration Costs\",WorkingP!M59,\"\")","v":0},{"$f":"IF(WorkingP!$B59=\"Administration Costs\",WorkingP!N59,\"\")","v":0},{"$f":"IF(WorkingP!$B59=\"Administration Costs\",WorkingP!O59,\"\")","v":0},{"$f":"IF(WorkingP!$B59=\"Administration Costs\",WorkingP!P59,\"\")","v":0},{"$f":"IF(WorkingP!$B59=\"Administration Costs\",WorkingP!Q59,\"\")","v":0},{"$f":"IF(WorkingP!$B59=\"Administration Costs\",WorkingP!R59,\"\")","v":0},{"$f":"IF(WorkingP!$B59=\"Administration Costs\",WorkingP!S59,\"\")","v":0},{"$f":"IF(WorkingP!$B59=\"Administration Costs\",WorkingP!T59,\"\")","v":0},{"$f":"IF(WorkingP!$B59=\"Administration Costs\",WorkingP!U59,\"\")","v":0},{"$f":"IF(WorkingP!$B59=\"Administration Costs\",WorkingP!V59,\"\")","v":0},{"$f":"IF(WorkingP!$B59=\"Administration Costs\",WorkingP!W59,\"\")","v":0},{"$f":"IF(WorkingP!$B59=\"Administration Costs\",WorkingP!X59,\"\")","v":0},{"$f":"IF(WorkingP!$B59=\"Administration Costs\",WorkingP!Y59,\"\")","v":0},{"$f":"IF(Descriptions!K60=\"Administration Costs\",Descriptions!AB60,0)","v":0}]
[{"$f":"IF(Descriptions!K61=\"Administration Costs\",Descriptions!I61,0)","v":0},{"$f":"IF(WorkingP!$B60=\"Administration Costs\",WorkingP!D60,\"\")","v":0},{"$f":"IF(WorkingP!$B60=\"Administration Costs\",WorkingP!E60,\"\")","v":0},{"$f":"IF(WorkingP!$B60=\"Administration Costs\",WorkingP!F60,\"\")","v":0},{"$f":"IF(WorkingP!$B60=\"Administration Costs\",WorkingP!G60,\"\")","v":0},{"$f":"IF(WorkingP!$B60=\"Administration Costs\",WorkingP!H60,\"\")","v":0},{"$f":"IF(WorkingP!$B60=\"Administration Costs\",WorkingP!I60,\"\")","v":0},{"$f":"IF(WorkingP!$B60=\"Administration Costs\",WorkingP!J60,\"\")","v":0},{"$f":"IF(WorkingP!$B60=\"Administration Costs\",WorkingP!K60,\"\")","v":0},{"$f":"IF(WorkingP!$B60=\"Administration Costs\",WorkingP!L60,\"\")","v":0},{"$f":"IF(WorkingP!$B60=\"Administration Costs\",WorkingP!M60,\"\")","v":0},{"$f":"IF(WorkingP!$B60=\"Administration Costs\",WorkingP!N60,\"\")","v":0},{"$f":"IF(WorkingP!$B60=\"Administration Costs\",WorkingP!O60,\"\")","v":0},{"$f":"IF(WorkingP!$B60=\"Administration Costs\",WorkingP!P60,\"\")","v":0},{"$f":"IF(WorkingP!$B60=\"Administration Costs\",WorkingP!Q60,\"\")","v":0},{"$f":"IF(WorkingP!$B60=\"Administration Costs\",WorkingP!R60,\"\")","v":0},{"$f":"IF(WorkingP!$B60=\"Administration Costs\",WorkingP!S60,\"\")","v":0},{"$f":"IF(WorkingP!$B60=\"Administration Costs\",WorkingP!T60,\"\")","v":0},{"$f":"IF(WorkingP!$B60=\"Administration Costs\",WorkingP!U60,\"\")","v":0},{"$f":"IF(WorkingP!$B60=\"Administration Costs\",WorkingP!V60,\"\")","v":0},{"$f":"IF(WorkingP!$B60=\"Administration Costs\",WorkingP!W60,\"\")","v":0},{"$f":"IF(WorkingP!$B60=\"Administration Costs\",WorkingP!X60,\"\")","v":0},{"$f":"IF(WorkingP!$B60=\"Administration Costs\",WorkingP!Y60,\"\")","v":0},{"$f":"IF(Descriptions!K61=\"Administration Costs\",Descriptions!AB61,0)","v":0}]
[{"$f":"IF(Descriptions!K62=\"Administration Costs\",Descriptions!I62,0)","v":0},{"$f":"IF(WorkingP!$B61=\"Administration Costs\",WorkingP!D61,\"\")","v":0},{"$f":"IF(WorkingP!$B61=\"Administration Costs\",WorkingP!E61,\"\")","v":0},{"$f":"IF(WorkingP!$B61=\"Administration Costs\",WorkingP!F61,\"\")","v":0},{"$f":"IF(WorkingP!$B61=\"Administration Costs\",WorkingP!G61,\"\")","v":0},{"$f":"IF(WorkingP!$B61=\"Administration Costs\",WorkingP!H61,\"\")","v":0},{"$f":"IF(WorkingP!$B61=\"Administration Costs\",WorkingP!I61,\"\")","v":0},{"$f":"IF(WorkingP!$B61=\"Administration Costs\",WorkingP!J61,\"\")","v":0},{"$f":"IF(WorkingP!$B61=\"Administration Costs\",WorkingP!K61,\"\")","v":0},{"$f":"IF(WorkingP!$B61=\"Administration Costs\",WorkingP!L61,\"\")","v":0},{"$f":"IF(WorkingP!$B61=\"Administration Costs\",WorkingP!M61,\"\")","v":0},{"$f":"IF(WorkingP!$B61=\"Administration Costs\",WorkingP!N61,\"\")","v":0},{"$f":"IF(WorkingP!$B61=\"Administration Costs\",WorkingP!O61,\"\")","v":0},{"$f":"IF(WorkingP!$B61=\"Administration Costs\",WorkingP!P61,\"\")","v":0},{"$f":"IF(WorkingP!$B61=\"Administration Costs\",WorkingP!Q61,\"\")","v":0},{"$f":"IF(WorkingP!$B61=\"Administration Costs\",WorkingP!R61,\"\")","v":0},{"$f":"IF(WorkingP!$B61=\"Administration Costs\",WorkingP!S61,\"\")","v":0},{"$f":"IF(WorkingP!$B61=\"Administration Costs\",WorkingP!T61,\"\")","v":0},{"$f":"IF(WorkingP!$B61=\"Administration Costs\",WorkingP!U61,\"\")","v":0},{"$f":"IF(WorkingP!$B61=\"Administration Costs\",WorkingP!V61,\"\")","v":0},{"$f":"IF(WorkingP!$B61=\"Administration Costs\",WorkingP!W61,\"\")","v":0},{"$f":"IF(WorkingP!$B61=\"Administration Costs\",WorkingP!X61,\"\")","v":0},{"$f":"IF(WorkingP!$B61=\"Administration Costs\",WorkingP!Y61,\"\")","v":0},{"$f":"IF(Descriptions!K62=\"Administration Costs\",Descriptions!AB62,0)","v":0}]
[{"$f":"IF(Descriptions!K63=\"Administration Costs\",Descriptions!I63,0)","v":0},{"$f":"IF(WorkingP!$B62=\"Administration Costs\",WorkingP!D62,\"\")","v":0},{"$f":"IF(WorkingP!$B62=\"Administration Costs\",WorkingP!E62,\"\")","v":0},{"$f":"IF(WorkingP!$B62=\"Administration Costs\",WorkingP!F62,\"\")","v":0},{"$f":"IF(WorkingP!$B62=\"Administration Costs\",WorkingP!G62,\"\")","v":0},{"$f":"IF(WorkingP!$B62=\"Administration Costs\",WorkingP!H62,\"\")","v":0},{"$f":"IF(WorkingP!$B62=\"Administration Costs\",WorkingP!I62,\"\")","v":0},{"$f":"IF(WorkingP!$B62=\"Administration Costs\",WorkingP!J62,\"\")","v":0},{"$f":"IF(WorkingP!$B62=\"Administration Costs\",WorkingP!K62,\"\")","v":0},{"$f":"IF(WorkingP!$B62=\"Administration Costs\",WorkingP!L62,\"\")","v":0},{"$f":"IF(WorkingP!$B62=\"Administration Costs\",WorkingP!M62,\"\")","v":0},{"$f":"IF(WorkingP!$B62=\"Administration Costs\",WorkingP!N62,\"\")","v":0},{"$f":"IF(WorkingP!$B62=\"Administration Costs\",WorkingP!O62,\"\")","v":0},{"$f":"IF(WorkingP!$B62=\"Administration Costs\",WorkingP!P62,\"\")","v":0},{"$f":"IF(WorkingP!$B62=\"Administration Costs\",WorkingP!Q62,\"\")","v":0},{"$f":"IF(WorkingP!$B62=\"Administration Costs\",WorkingP!R62,\"\")","v":0},{"$f":"IF(WorkingP!$B62=\"Administration Costs\",WorkingP!S62,\"\")","v":0},{"$f":"IF(WorkingP!$B62=\"Administration Costs\",WorkingP!T62,\"\")","v":0},{"$f":"IF(WorkingP!$B62=\"Administration Costs\",WorkingP!U62,\"\")","v":0},{"$f":"IF(WorkingP!$B62=\"Administration Costs\",WorkingP!V62,\"\")","v":0},{"$f":"IF(WorkingP!$B62=\"Administration Costs\",WorkingP!W62,\"\")","v":0},{"$f":"IF(WorkingP!$B62=\"Administration Costs\",WorkingP!X62,\"\")","v":0},{"$f":"IF(WorkingP!$B62=\"Administration Costs\",WorkingP!Y62,\"\")","v":0},{"$f":"IF(Descriptions!K63=\"Administration Costs\",Descriptions!AB63,0)","v":0}]
[{"$f":"IF(Descriptions!K64=\"Administration Costs\",Descriptions!I64,0)","v":0},{"$f":"IF(WorkingP!$B63=\"Administration Costs\",WorkingP!D63,\"\")","v":0},{"$f":"IF(WorkingP!$B63=\"Administration Costs\",WorkingP!E63,\"\")","v":0},{"$f":"IF(WorkingP!$B63=\"Administration Costs\",WorkingP!F63,\"\")","v":0},{"$f":"IF(WorkingP!$B63=\"Administration Costs\",WorkingP!G63,\"\")","v":0},{"$f":"IF(WorkingP!$B63=\"Administration Costs\",WorkingP!H63,\"\")","v":0},{"$f":"IF(WorkingP!$B63=\"Administration Costs\",WorkingP!I63,\"\")","v":0},{"$f":"IF(WorkingP!$B63=\"Administration Costs\",WorkingP!J63,\"\")","v":0},{"$f":"IF(WorkingP!$B63=\"Administration Costs\",WorkingP!K63,\"\")","v":0},{"$f":"IF(WorkingP!$B63=\"Administration Costs\",WorkingP!L63,\"\")","v":0},{"$f":"IF(WorkingP!$B63=\"Administration Costs\",WorkingP!M63,\"\")","v":0},{"$f":"IF(WorkingP!$B63=\"Administration Costs\",WorkingP!N63,\"\")","v":0},{"$f":"IF(WorkingP!$B63=\"Administration Costs\",WorkingP!O63,\"\")","v":0},{"$f":"IF(WorkingP!$B63=\"Administration Costs\",WorkingP!P63,\"\")","v":0},{"$f":"IF(WorkingP!$B63=\"Administration Costs\",WorkingP!Q63,\"\")","v":0},{"$f":"IF(WorkingP!$B63=\"Administration Costs\",WorkingP!R63,\"\")","v":0},{"$f":"IF(WorkingP!$B63=\"Administration Costs\",WorkingP!S63,\"\")","v":0},{"$f":"IF(WorkingP!$B63=\"Administration Costs\",WorkingP!T63,\"\")","v":0},{"$f":"IF(WorkingP!$B63=\"Administration Costs\",WorkingP!U63,\"\")","v":0},{"$f":"IF(WorkingP!$B63=\"Administration Costs\",WorkingP!V63,\"\")","v":0},{"$f":"IF(WorkingP!$B63=\"Administration Costs\",WorkingP!W63,\"\")","v":0},{"$f":"IF(WorkingP!$B63=\"Administration Costs\",WorkingP!X63,\"\")","v":0},{"$f":"IF(WorkingP!$B63=\"Administration Costs\",WorkingP!Y63,\"\")","v":0},{"$f":"IF(Descriptions!K64=\"Administration Costs\",Descriptions!AB64,0)","v":0}]
[{"$f":"IF(Descriptions!K65=\"Administration Costs\",Descriptions!I65,0)","v":0},{"$f":"IF(WorkingP!$B64=\"Administration Costs\",WorkingP!D64,\"\")","v":0},{"$f":"IF(WorkingP!$B64=\"Administration Costs\",WorkingP!E64,\"\")","v":0},{"$f":"IF(WorkingP!$B64=\"Administration Costs\",WorkingP!F64,\"\")","v":0},{"$f":"IF(WorkingP!$B64=\"Administration Costs\",WorkingP!G64,\"\")","v":0},{"$f":"IF(WorkingP!$B64=\"Administration Costs\",WorkingP!H64,\"\")","v":0},{"$f":"IF(WorkingP!$B64=\"Administration Costs\",WorkingP!I64,\"\")","v":0},{"$f":"IF(WorkingP!$B64=\"Administration Costs\",WorkingP!J64,\"\")","v":0},{"$f":"IF(WorkingP!$B64=\"Administration Costs\",WorkingP!K64,\"\")","v":0},{"$f":"IF(WorkingP!$B64=\"Administration Costs\",WorkingP!L64,\"\")","v":0},{"$f":"IF(WorkingP!$B64=\"Administration Costs\",WorkingP!M64,\"\")","v":0},{"$f":"IF(WorkingP!$B64=\"Administration Costs\",WorkingP!N64,\"\")","v":0},{"$f":"IF(WorkingP!$B64=\"Administration Costs\",WorkingP!O64,\"\")","v":0},{"$f":"IF(WorkingP!$B64=\"Administration Costs\",WorkingP!P64,\"\")","v":0},{"$f":"IF(WorkingP!$B64=\"Administration Costs\",WorkingP!Q64,\"\")","v":0},{"$f":"IF(WorkingP!$B64=\"Administration Costs\",WorkingP!R64,\"\")","v":0},{"$f":"IF(WorkingP!$B64=\"Administration Costs\",WorkingP!S64,\"\")","v":0},{"$f":"IF(WorkingP!$B64=\"Administration Costs\",WorkingP!T64,\"\")","v":0},{"$f":"IF(WorkingP!$B64=\"Administration Costs\",WorkingP!U64,\"\")","v":0},{"$f":"IF(WorkingP!$B64=\"Administration Costs\",WorkingP!V64,\"\")","v":0},{"$f":"IF(WorkingP!$B64=\"Administration Costs\",WorkingP!W64,\"\")","v":0},{"$f":"IF(WorkingP!$B64=\"Administration Costs\",WorkingP!X64,\"\")","v":0},{"$f":"IF(WorkingP!$B64=\"Administration Costs\",WorkingP!Y64,\"\")","v":0},{"$f":"IF(Descriptions!K65=\"Administration Costs\",Descriptions!AB65,0)","v":0}]
[{"$f":"IF(Descriptions!K66=\"Administration Costs\",Descriptions!I66,0)","v":0},{"$f":"IF(WorkingP!$B65=\"Administration Costs\",WorkingP!D65,\"\")","v":0},{"$f":"IF(WorkingP!$B65=\"Administration Costs\",WorkingP!E65,\"\")","v":0},{"$f":"IF(WorkingP!$B65=\"Administration Costs\",WorkingP!F65,\"\")","v":0},{"$f":"IF(WorkingP!$B65=\"Administration Costs\",WorkingP!G65,\"\")","v":0},{"$f":"IF(WorkingP!$B65=\"Administration Costs\",WorkingP!H65,\"\")","v":0},{"$f":"IF(WorkingP!$B65=\"Administration Costs\",WorkingP!I65,\"\")","v":0},{"$f":"IF(WorkingP!$B65=\"Administration Costs\",WorkingP!J65,\"\")","v":0},{"$f":"IF(WorkingP!$B65=\"Administration Costs\",WorkingP!K65,\"\")","v":0},{"$f":"IF(WorkingP!$B65=\"Administration Costs\",WorkingP!L65,\"\")","v":0},{"$f":"IF(WorkingP!$B65=\"Administration Costs\",WorkingP!M65,\"\")","v":0},{"$f":"IF(WorkingP!$B65=\"Administration Costs\",WorkingP!N65,\"\")","v":0},{"$f":"IF(WorkingP!$B65=\"Administration Costs\",WorkingP!O65,\"\")","v":0},{"$f":"IF(WorkingP!$B65=\"Administration Costs\",WorkingP!P65,\"\")","v":0},{"$f":"IF(WorkingP!$B65=\"Administration Costs\",WorkingP!Q65,\"\")","v":0},{"$f":"IF(WorkingP!$B65=\"Administration Costs\",WorkingP!R65,\"\")","v":0},{"$f":"IF(WorkingP!$B65=\"Administration Costs\",WorkingP!S65,\"\")","v":0},{"$f":"IF(WorkingP!$B65=\"Administration Costs\",WorkingP!T65,\"\")","v":0},{"$f":"IF(WorkingP!$B65=\"Administration Costs\",WorkingP!U65,\"\")","v":0},{"$f":"IF(WorkingP!$B65=\"Administration Costs\",WorkingP!V65,\"\")","v":0},{"$f":"IF(WorkingP!$B65=\"Administration Costs\",WorkingP!W65,\"\")","v":0},{"$f":"IF(WorkingP!$B65=\"Administration Costs\",WorkingP!X65,\"\")","v":0},{"$f":"IF(WorkingP!$B65=\"Administration Costs\",WorkingP!Y65,\"\")","v":0},{"$f":"IF(Descriptions!K66=\"Administration Costs\",Descriptions!AB66,0)","v":0}]
[{"$f":"IF(Descriptions!K67=\"Administration Costs\",Descriptions!I67,0)","v":0},{"$f":"IF(WorkingP!$B66=\"Administration Costs\",WorkingP!D66,\"\")","v":0},{"$f":"IF(WorkingP!$B66=\"Administration Costs\",WorkingP!E66,\"\")","v":0},{"$f":"IF(WorkingP!$B66=\"Administration Costs\",WorkingP!F66,\"\")","v":0},{"$f":"IF(WorkingP!$B66=\"Administration Costs\",WorkingP!G66,\"\")","v":0},{"$f":"IF(WorkingP!$B66=\"Administration Costs\",WorkingP!H66,\"\")","v":0},{"$f":"IF(WorkingP!$B66=\"Administration Costs\",WorkingP!I66,\"\")","v":0},{"$f":"IF(WorkingP!$B66=\"Administration Costs\",WorkingP!J66,\"\")","v":0},{"$f":"IF(WorkingP!$B66=\"Administration Costs\",WorkingP!K66,\"\")","v":0},{"$f":"IF(WorkingP!$B66=\"Administration Costs\",WorkingP!L66,\"\")","v":0},{"$f":"IF(WorkingP!$B66=\"Administration Costs\",WorkingP!M66,\"\")","v":0},{"$f":"IF(WorkingP!$B66=\"Administration Costs\",WorkingP!N66,\"\")","v":0},{"$f":"IF(WorkingP!$B66=\"Administration Costs\",WorkingP!O66,\"\")","v":0},{"$f":"IF(WorkingP!$B66=\"Administration Costs\",WorkingP!P66,\"\")","v":0},{"$f":"IF(WorkingP!$B66=\"Administration Costs\",WorkingP!Q66,\"\")","v":0},{"$f":"IF(WorkingP!$B66=\"Administration Costs\",WorkingP!R66,\"\")","v":0},{"$f":"IF(WorkingP!$B66=\"Administration Costs\",WorkingP!S66,\"\")","v":0},{"$f":"IF(WorkingP!$B66=\"Administration Costs\",WorkingP!T66,\"\")","v":0},{"$f":"IF(WorkingP!$B66=\"Administration Costs\",WorkingP!U66,\"\")","v":0},{"$f":"IF(WorkingP!$B66=\"Administration Costs\",WorkingP!V66,\"\")","v":0},{"$f":"IF(WorkingP!$B66=\"Administration Costs\",WorkingP!W66,\"\")","v":0},{"$f":"IF(WorkingP!$B66=\"Administration Costs\",WorkingP!X66,\"\")","v":0},{"$f":"IF(WorkingP!$B66=\"Administration Costs\",WorkingP!Y66,\"\")","v":0},{"$f":"IF(Descriptions!K67=\"Administration Costs\",Descriptions!AB67,0)","v":0}]
[{"$f":"IF(Descriptions!K68=\"Administration Costs\",Descriptions!I68,0)","v":0},{"$f":"IF(WorkingP!$B67=\"Administration Costs\",WorkingP!D67,\"\")","v":0},{"$f":"IF(WorkingP!$B67=\"Administration Costs\",WorkingP!E67,\"\")","v":0},{"$f":"IF(WorkingP!$B67=\"Administration Costs\",WorkingP!F67,\"\")","v":0},{"$f":"IF(WorkingP!$B67=\"Administration Costs\",WorkingP!G67,\"\")","v":0},{"$f":"IF(WorkingP!$B67=\"Administration Costs\",WorkingP!H67,\"\")","v":0},{"$f":"IF(WorkingP!$B67=\"Administration Costs\",WorkingP!I67,\"\")","v":0},{"$f":"IF(WorkingP!$B67=\"Administration Costs\",WorkingP!J67,\"\")","v":0},{"$f":"IF(WorkingP!$B67=\"Administration Costs\",WorkingP!K67,\"\")","v":0},{"$f":"IF(WorkingP!$B67=\"Administration Costs\",WorkingP!L67,\"\")","v":0},{"$f":"IF(WorkingP!$B67=\"Administration Costs\",WorkingP!M67,\"\")","v":0},{"$f":"IF(WorkingP!$B67=\"Administration Costs\",WorkingP!N67,\"\")","v":0},{"$f":"IF(WorkingP!$B67=\"Administration Costs\",WorkingP!O67,\"\")","v":0},{"$f":"IF(WorkingP!$B67=\"Administration Costs\",WorkingP!P67,\"\")","v":0},{"$f":"IF(WorkingP!$B67=\"Administration Costs\",WorkingP!Q67,\"\")","v":0},{"$f":"IF(WorkingP!$B67=\"Administration Costs\",WorkingP!R67,\"\")","v":0},{"$f":"IF(WorkingP!$B67=\"Administration Costs\",WorkingP!S67,\"\")","v":0},{"$f":"IF(WorkingP!$B67=\"Administration Costs\",WorkingP!T67,\"\")","v":0},{"$f":"IF(WorkingP!$B67=\"Administration Costs\",WorkingP!U67,\"\")","v":0},{"$f":"IF(WorkingP!$B67=\"Administration Costs\",WorkingP!V67,\"\")","v":0},{"$f":"IF(WorkingP!$B67=\"Administration Costs\",WorkingP!W67,\"\")","v":0},{"$f":"IF(WorkingP!$B67=\"Administration Costs\",WorkingP!X67,\"\")","v":0},{"$f":"IF(WorkingP!$B67=\"Administration Costs\",WorkingP!Y67,\"\")","v":0},{"$f":"IF(Descriptions!K68=\"Administration Costs\",Descriptions!AB68,0)","v":0}]
[{"$f":"IF(Descriptions!K69=\"Administration Costs\",Descriptions!I69,0)","v":0},{"$f":"IF(WorkingP!$B68=\"Administration Costs\",WorkingP!D68,\"\")","v":0},{"$f":"IF(WorkingP!$B68=\"Administration Costs\",WorkingP!E68,\"\")","v":0},{"$f":"IF(WorkingP!$B68=\"Administration Costs\",WorkingP!F68,\"\")","v":0},{"$f":"IF(WorkingP!$B68=\"Administration Costs\",WorkingP!G68,\"\")","v":0},{"$f":"IF(WorkingP!$B68=\"Administration Costs\",WorkingP!H68,\"\")","v":0},{"$f":"IF(WorkingP!$B68=\"Administration Costs\",WorkingP!I68,\"\")","v":0},{"$f":"IF(WorkingP!$B68=\"Administration Costs\",WorkingP!J68,\"\")","v":0},{"$f":"IF(WorkingP!$B68=\"Administration Costs\",WorkingP!K68,\"\")","v":0},{"$f":"IF(WorkingP!$B68=\"Administration Costs\",WorkingP!L68,\"\")","v":0},{"$f":"IF(WorkingP!$B68=\"Administration Costs\",WorkingP!M68,\"\")","v":0},{"$f":"IF(WorkingP!$B68=\"Administration Costs\",WorkingP!N68,\"\")","v":0},{"$f":"IF(WorkingP!$B68=\"Administration Costs\",WorkingP!O68,\"\")","v":0},{"$f":"IF(WorkingP!$B68=\"Administration Costs\",WorkingP!P68,\"\")","v":0},{"$f":"IF(WorkingP!$B68=\"Administration Costs\",WorkingP!Q68,\"\")","v":0},{"$f":"IF(WorkingP!$B68=\"Administration Costs\",WorkingP!R68,\"\")","v":0},{"$f":"IF(WorkingP!$B68=\"Administration Costs\",WorkingP!S68,\"\")","v":0},{"$f":"IF(WorkingP!$B68=\"Administration Costs\",WorkingP!T68,\"\")","v":0},{"$f":"IF(WorkingP!$B68=\"Administration Costs\",WorkingP!U68,\"\")","v":0},{"$f":"IF(WorkingP!$B68=\"Administration Costs\",WorkingP!V68,\"\")","v":0},{"$f":"IF(WorkingP!$B68=\"Administration Costs\",WorkingP!W68,\"\")","v":0},{"$f":"IF(WorkingP!$B68=\"Administration Costs\",WorkingP!X68,\"\")","v":0},{"$f":"IF(WorkingP!$B68=\"Administration Costs\",WorkingP!Y68,\"\")","v":0},{"$f":"IF(Descriptions!K69=\"Administration Costs\",Descriptions!AB69,0)","v":0}]
[{"$f":"IF(Descriptions!K70=\"Administration Costs\",Descriptions!I70,0)","v":0},{"$f":"IF(WorkingP!$B69=\"Administration Costs\",WorkingP!D69,\"\")","v":0},{"$f":"IF(WorkingP!$B69=\"Administration Costs\",WorkingP!E69,\"\")","v":0},{"$f":"IF(WorkingP!$B69=\"Administration Costs\",WorkingP!F69,\"\")","v":0},{"$f":"IF(WorkingP!$B69=\"Administration Costs\",WorkingP!G69,\"\")","v":0},{"$f":"IF(WorkingP!$B69=\"Administration Costs\",WorkingP!H69,\"\")","v":0},{"$f":"IF(WorkingP!$B69=\"Administration Costs\",WorkingP!I69,\"\")","v":0},{"$f":"IF(WorkingP!$B69=\"Administration Costs\",WorkingP!J69,\"\")","v":0},{"$f":"IF(WorkingP!$B69=\"Administration Costs\",WorkingP!K69,\"\")","v":0},{"$f":"IF(WorkingP!$B69=\"Administration Costs\",WorkingP!L69,\"\")","v":0},{"$f":"IF(WorkingP!$B69=\"Administration Costs\",WorkingP!M69,\"\")","v":0},{"$f":"IF(WorkingP!$B69=\"Administration Costs\",WorkingP!N69,\"\")","v":0},{"$f":"IF(WorkingP!$B69=\"Administration Costs\",WorkingP!O69,\"\")","v":0},{"$f":"IF(WorkingP!$B69=\"Administration Costs\",WorkingP!P69,\"\")","v":0},{"$f":"IF(WorkingP!$B69=\"Administration Costs\",WorkingP!Q69,\"\")","v":0},{"$f":"IF(WorkingP!$B69=\"Administration Costs\",WorkingP!R69,\"\")","v":0},{"$f":"IF(WorkingP!$B69=\"Administration Costs\",WorkingP!S69,\"\")","v":0},{"$f":"IF(WorkingP!$B69=\"Administration Costs\",WorkingP!T69,\"\")","v":0},{"$f":"IF(WorkingP!$B69=\"Administration Costs\",WorkingP!U69,\"\")","v":0},{"$f":"IF(WorkingP!$B69=\"Administration Costs\",WorkingP!V69,\"\")","v":0},{"$f":"IF(WorkingP!$B69=\"Administration Costs\",WorkingP!W69,\"\")","v":0},{"$f":"IF(WorkingP!$B69=\"Administration Costs\",WorkingP!X69,\"\")","v":0},{"$f":"IF(WorkingP!$B69=\"Administration Costs\",WorkingP!Y69,\"\")","v":0},{"$f":"IF(Descriptions!K70=\"Administration Costs\",Descriptions!AB70,0)","v":0}]
[{"$f":"IF(Descriptions!K71=\"Administration Costs\",Descriptions!I71,0)","v":0},{"$f":"IF(WorkingP!$B70=\"Administration Costs\",WorkingP!D70,\"\")","v":0},{"$f":"IF(WorkingP!$B70=\"Administration Costs\",WorkingP!E70,\"\")","v":0},{"$f":"IF(WorkingP!$B70=\"Administration Costs\",WorkingP!F70,\"\")","v":0},{"$f":"IF(WorkingP!$B70=\"Administration Costs\",WorkingP!G70,\"\")","v":0},{"$f":"IF(WorkingP!$B70=\"Administration Costs\",WorkingP!H70,\"\")","v":0},{"$f":"IF(WorkingP!$B70=\"Administration Costs\",WorkingP!I70,\"\")","v":0},{"$f":"IF(WorkingP!$B70=\"Administration Costs\",WorkingP!J70,\"\")","v":0},{"$f":"IF(WorkingP!$B70=\"Administration Costs\",WorkingP!K70,\"\")","v":0},{"$f":"IF(WorkingP!$B70=\"Administration Costs\",WorkingP!L70,\"\")","v":0},{"$f":"IF(WorkingP!$B70=\"Administration Costs\",WorkingP!M70,\"\")","v":0},{"$f":"IF(WorkingP!$B70=\"Administration Costs\",WorkingP!N70,\"\")","v":0},{"$f":"IF(WorkingP!$B70=\"Administration Costs\",WorkingP!O70,\"\")","v":0},{"$f":"IF(WorkingP!$B70=\"Administration Costs\",WorkingP!P70,\"\")","v":0},{"$f":"IF(WorkingP!$B70=\"Administration Costs\",WorkingP!Q70,\"\")","v":0},{"$f":"IF(WorkingP!$B70=\"Administration Costs\",WorkingP!R70,\"\")","v":0},{"$f":"IF(WorkingP!$B70=\"Administration Costs\",WorkingP!S70,\"\")","v":0},{"$f":"IF(WorkingP!$B70=\"Administration Costs\",WorkingP!T70,\"\")","v":0},{"$f":"IF(WorkingP!$B70=\"Administration Costs\",WorkingP!U70,\"\")","v":0},{"$f":"IF(WorkingP!$B70=\"Administration Costs\",WorkingP!V70,\"\")","v":0},{"$f":"IF(WorkingP!$B70=\"Administration Costs\",WorkingP!W70,\"\")","v":0},{"$f":"IF(WorkingP!$B70=\"Administration Costs\",WorkingP!X70,\"\")","v":0},{"$f":"IF(WorkingP!$B70=\"Administration Costs\",WorkingP!Y70,\"\")","v":0},{"$f":"IF(Descriptions!K71=\"Administration Costs\",Descriptions!AB71,0)","v":0}]
[{"$f":"IF(Descriptions!K72=\"Administration Costs\",Descriptions!I72,0)","v":0},{"$f":"IF(WorkingP!$B71=\"Administration Costs\",WorkingP!D71,\"\")","v":0},{"$f":"IF(WorkingP!$B71=\"Administration Costs\",WorkingP!E71,\"\")","v":0},{"$f":"IF(WorkingP!$B71=\"Administration Costs\",WorkingP!F71,\"\")","v":0},{"$f":"IF(WorkingP!$B71=\"Administration Costs\",WorkingP!G71,\"\")","v":0},{"$f":"IF(WorkingP!$B71=\"Administration Costs\",WorkingP!H71,\"\")","v":0},{"$f":"IF(WorkingP!$B71=\"Administration Costs\",WorkingP!I71,\"\")","v":0},{"$f":"IF(WorkingP!$B71=\"Administration Costs\",WorkingP!J71,\"\")","v":0},{"$f":"IF(WorkingP!$B71=\"Administration Costs\",WorkingP!K71,\"\")","v":0},{"$f":"IF(WorkingP!$B71=\"Administration Costs\",WorkingP!L71,\"\")","v":0},{"$f":"IF(WorkingP!$B71=\"Administration Costs\",WorkingP!M71,\"\")","v":0},{"$f":"IF(WorkingP!$B71=\"Administration Costs\",WorkingP!N71,\"\")","v":0},{"$f":"IF(WorkingP!$B71=\"Administration Costs\",WorkingP!O71,\"\")","v":0},{"$f":"IF(WorkingP!$B71=\"Administration Costs\",WorkingP!P71,\"\")","v":0},{"$f":"IF(WorkingP!$B71=\"Administration Costs\",WorkingP!Q71,\"\")","v":0},{"$f":"IF(WorkingP!$B71=\"Administration Costs\",WorkingP!R71,\"\")","v":0},{"$f":"IF(WorkingP!$B71=\"Administration Costs\",WorkingP!S71,\"\")","v":0},{"$f":"IF(WorkingP!$B71=\"Administration Costs\",WorkingP!T71,\"\")","v":0},{"$f":"IF(WorkingP!$B71=\"Administration Costs\",WorkingP!U71,\"\")","v":0},{"$f":"IF(WorkingP!$B71=\"Administration Costs\",WorkingP!V71,\"\")","v":0},{"$f":"IF(WorkingP!$B71=\"Administration Costs\",WorkingP!W71,\"\")","v":0},{"$f":"IF(WorkingP!$B71=\"Administration Costs\",WorkingP!X71,\"\")","v":0},{"$f":"IF(WorkingP!$B71=\"Administration Costs\",WorkingP!Y71,\"\")","v":0},{"$f":"IF(Descriptions!K72=\"Administration Costs\",Descriptions!AB72,0)","v":0}]
[{"$f":"IF(Descriptions!K73=\"Administration Costs\",Descriptions!I73,0)","v":0},{"$f":"IF(WorkingP!$B72=\"Administration Costs\",WorkingP!D72,\"\")","v":0},{"$f":"IF(WorkingP!$B72=\"Administration Costs\",WorkingP!E72,\"\")","v":0},{"$f":"IF(WorkingP!$B72=\"Administration Costs\",WorkingP!F72,\"\")","v":0},{"$f":"IF(WorkingP!$B72=\"Administration Costs\",WorkingP!G72,\"\")","v":0},{"$f":"IF(WorkingP!$B72=\"Administration Costs\",WorkingP!H72,\"\")","v":0},{"$f":"IF(WorkingP!$B72=\"Administration Costs\",WorkingP!I72,\"\")","v":0},{"$f":"IF(WorkingP!$B72=\"Administration Costs\",WorkingP!J72,\"\")","v":0},{"$f":"IF(WorkingP!$B72=\"Administration Costs\",WorkingP!K72,\"\")","v":0},{"$f":"IF(WorkingP!$B72=\"Administration Costs\",WorkingP!L72,\"\")","v":0},{"$f":"IF(WorkingP!$B72=\"Administration Costs\",WorkingP!M72,\"\")","v":0},{"$f":"IF(WorkingP!$B72=\"Administration Costs\",WorkingP!N72,\"\")","v":0},{"$f":"IF(WorkingP!$B72=\"Administration Costs\",WorkingP!O72,\"\")","v":0},{"$f":"IF(WorkingP!$B72=\"Administration Costs\",WorkingP!P72,\"\")","v":0},{"$f":"IF(WorkingP!$B72=\"Administration Costs\",WorkingP!Q72,\"\")","v":0},{"$f":"IF(WorkingP!$B72=\"Administration Costs\",WorkingP!R72,\"\")","v":0},{"$f":"IF(WorkingP!$B72=\"Administration Costs\",WorkingP!S72,\"\")","v":0},{"$f":"IF(WorkingP!$B72=\"Administration Costs\",WorkingP!T72,\"\")","v":0},{"$f":"IF(WorkingP!$B72=\"Administration Costs\",WorkingP!U72,\"\")","v":0},{"$f":"IF(WorkingP!$B72=\"Administration Costs\",WorkingP!V72,\"\")","v":0},{"$f":"IF(WorkingP!$B72=\"Administration Costs\",WorkingP!W72,\"\")","v":0},{"$f":"IF(WorkingP!$B72=\"Administration Costs\",WorkingP!X72,\"\")","v":0},{"$f":"IF(WorkingP!$B72=\"Administration Costs\",WorkingP!Y72,\"\")","v":0},{"$f":"IF(Descriptions!K73=\"Administration Costs\",Descriptions!AB73,0)","v":0}]
[{"$f":"IF(Descriptions!K74=\"Administration Costs\",Descriptions!I74,0)","v":0},{"$f":"IF(WorkingP!$B73=\"Administration Costs\",WorkingP!D73,\"\")","v":0},{"$f":"IF(WorkingP!$B73=\"Administration Costs\",WorkingP!E73,\"\")","v":0},{"$f":"IF(WorkingP!$B73=\"Administration Costs\",WorkingP!F73,\"\")","v":0},{"$f":"IF(WorkingP!$B73=\"Administration Costs\",WorkingP!G73,\"\")","v":0},{"$f":"IF(WorkingP!$B73=\"Administration Costs\",WorkingP!H73,\"\")","v":0},{"$f":"IF(WorkingP!$B73=\"Administration Costs\",WorkingP!I73,\"\")","v":0},{"$f":"IF(WorkingP!$B73=\"Administration Costs\",WorkingP!J73,\"\")","v":0},{"$f":"IF(WorkingP!$B73=\"Administration Costs\",WorkingP!K73,\"\")","v":0},{"$f":"IF(WorkingP!$B73=\"Administration Costs\",WorkingP!L73,\"\")","v":0},{"$f":"IF(WorkingP!$B73=\"Administration Costs\",WorkingP!M73,\"\")","v":0},{"$f":"IF(WorkingP!$B73=\"Administration Costs\",WorkingP!N73,\"\")","v":0},{"$f":"IF(WorkingP!$B73=\"Administration Costs\",WorkingP!O73,\"\")","v":0},{"$f":"IF(WorkingP!$B73=\"Administration Costs\",WorkingP!P73,\"\")","v":0},{"$f":"IF(WorkingP!$B73=\"Administration Costs\",WorkingP!Q73,\"\")","v":0},{"$f":"IF(WorkingP!$B73=\"Administration Costs\",WorkingP!R73,\"\")","v":0},{"$f":"IF(WorkingP!$B73=\"Administration Costs\",WorkingP!S73,\"\")","v":0},{"$f":"IF(WorkingP!$B73=\"Administration Costs\",WorkingP!T73,\"\")","v":0},{"$f":"IF(WorkingP!$B73=\"Administration Costs\",WorkingP!U73,\"\")","v":0},{"$f":"IF(WorkingP!$B73=\"Administration Costs\",WorkingP!V73,\"\")","v":0},{"$f":"IF(WorkingP!$B73=\"Administration Costs\",WorkingP!W73,\"\")","v":0},{"$f":"IF(WorkingP!$B73=\"Administration Costs\",WorkingP!X73,\"\")","v":0},{"$f":"IF(WorkingP!$B73=\"Administration Costs\",WorkingP!Y73,\"\")","v":0},{"$f":"IF(Descriptions!K74=\"Administration Costs\",Descriptions!AB74,0)","v":0}]
[{"$f":"IF(Descriptions!K75=\"Administration Costs\",Descriptions!I75,0)","v":0},{"$f":"IF(WorkingP!$B74=\"Administration Costs\",WorkingP!D74,\"\")","v":0},{"$f":"IF(WorkingP!$B74=\"Administration Costs\",WorkingP!E74,\"\")","v":0},{"$f":"IF(WorkingP!$B74=\"Administration Costs\",WorkingP!F74,\"\")","v":0},{"$f":"IF(WorkingP!$B74=\"Administration Costs\",WorkingP!G74,\"\")","v":0},{"$f":"IF(WorkingP!$B74=\"Administration Costs\",WorkingP!H74,\"\")","v":0},{"$f":"IF(WorkingP!$B74=\"Administration Costs\",WorkingP!I74,\"\")","v":0},{"$f":"IF(WorkingP!$B74=\"Administration Costs\",WorkingP!J74,\"\")","v":0},{"$f":"IF(WorkingP!$B74=\"Administration Costs\",WorkingP!K74,\"\")","v":0},{"$f":"IF(WorkingP!$B74=\"Administration Costs\",WorkingP!L74,\"\")","v":0},{"$f":"IF(WorkingP!$B74=\"Administration Costs\",WorkingP!M74,\"\")","v":0},{"$f":"IF(WorkingP!$B74=\"Administration Costs\",WorkingP!N74,\"\")","v":0},{"$f":"IF(WorkingP!$B74=\"Administration Costs\",WorkingP!O74,\"\")","v":0},{"$f":"IF(WorkingP!$B74=\"Administration Costs\",WorkingP!P74,\"\")","v":0},{"$f":"IF(WorkingP!$B74=\"Administration Costs\",WorkingP!Q74,\"\")","v":0},{"$f":"IF(WorkingP!$B74=\"Administration Costs\",WorkingP!R74,\"\")","v":0},{"$f":"IF(WorkingP!$B74=\"Administration Costs\",WorkingP!S74,\"\")","v":0},{"$f":"IF(WorkingP!$B74=\"Administration Costs\",WorkingP!T74,\"\")","v":0},{"$f":"IF(WorkingP!$B74=\"Administration Costs\",WorkingP!U74,\"\")","v":0},{"$f":"IF(WorkingP!$B74=\"Administration Costs\",WorkingP!V74,\"\")","v":0},{"$f":"IF(WorkingP!$B74=\"Administration Costs\",WorkingP!W74,\"\")","v":0},{"$f":"IF(WorkingP!$B74=\"Administration Costs\",WorkingP!X74,\"\")","v":0},{"$f":"IF(WorkingP!$B74=\"Administration Costs\",WorkingP!Y74,\"\")","v":0},{"$f":"IF(Descriptions!K75=\"Administration Costs\",Descriptions!AB75,0)","v":0}]
[{"$f":"IF(Descriptions!K76=\"Administration Costs\",Descriptions!I76,0)","v":0},{"$f":"IF(WorkingP!$B75=\"Administration Costs\",WorkingP!D75,\"\")","v":0},{"$f":"IF(WorkingP!$B75=\"Administration Costs\",WorkingP!E75,\"\")","v":0},{"$f":"IF(WorkingP!$B75=\"Administration Costs\",WorkingP!F75,\"\")","v":0},{"$f":"IF(WorkingP!$B75=\"Administration Costs\",WorkingP!G75,\"\")","v":0},{"$f":"IF(WorkingP!$B75=\"Administration Costs\",WorkingP!H75,\"\")","v":0},{"$f":"IF(WorkingP!$B75=\"Administration Costs\",WorkingP!I75,\"\")","v":0},{"$f":"IF(WorkingP!$B75=\"Administration Costs\",WorkingP!J75,\"\")","v":0},{"$f":"IF(WorkingP!$B75=\"Administration Costs\",WorkingP!K75,\"\")","v":0},{"$f":"IF(WorkingP!$B75=\"Administration Costs\",WorkingP!L75,\"\")","v":0},{"$f":"IF(WorkingP!$B75=\"Administration Costs\",WorkingP!M75,\"\")","v":0},{"$f":"IF(WorkingP!$B75=\"Administration Costs\",WorkingP!N75,\"\")","v":0},{"$f":"IF(WorkingP!$B75=\"Administration Costs\",WorkingP!O75,\"\")","v":0},{"$f":"IF(WorkingP!$B75=\"Administration Costs\",WorkingP!P75,\"\")","v":0},{"$f":"IF(WorkingP!$B75=\"Administration Costs\",WorkingP!Q75,\"\")","v":0},{"$f":"IF(WorkingP!$B75=\"Administration Costs\",WorkingP!R75,\"\")","v":0},{"$f":"IF(WorkingP!$B75=\"Administration Costs\",WorkingP!S75,\"\")","v":0},{"$f":"IF(WorkingP!$B75=\"Administration Costs\",WorkingP!T75,\"\")","v":0},{"$f":"IF(WorkingP!$B75=\"Administration Costs\",WorkingP!U75,\"\")","v":0},{"$f":"IF(WorkingP!$B75=\"Administration Costs\",WorkingP!V75,\"\")","v":0},{"$f":"IF(WorkingP!$B75=\"Administration Costs\",WorkingP!W75,\"\")","v":0},{"$f":"IF(WorkingP!$B75=\"Administration Costs\",WorkingP!X75,\"\")","v":0},{"$f":"IF(WorkingP!$B75=\"Administration Costs\",WorkingP!Y75,\"\")","v":0},{"$f":"IF(Descriptions!K76=\"Administration Costs\",Descriptions!AB76,0)","v":0}]
[{"$f":"IF(Descriptions!K77=\"Administration Costs\",Descriptions!I77,0)","v":0},{"$f":"IF(WorkingP!$B76=\"Administration Costs\",WorkingP!D76,\"\")","v":0},{"$f":"IF(WorkingP!$B76=\"Administration Costs\",WorkingP!E76,\"\")","v":0},{"$f":"IF(WorkingP!$B76=\"Administration Costs\",WorkingP!F76,\"\")","v":0},{"$f":"IF(WorkingP!$B76=\"Administration Costs\",WorkingP!G76,\"\")","v":0},{"$f":"IF(WorkingP!$B76=\"Administration Costs\",WorkingP!H76,\"\")","v":0},{"$f":"IF(WorkingP!$B76=\"Administration Costs\",WorkingP!I76,\"\")","v":0},{"$f":"IF(WorkingP!$B76=\"Administration Costs\",WorkingP!J76,\"\")","v":0},{"$f":"IF(WorkingP!$B76=\"Administration Costs\",WorkingP!K76,\"\")","v":0},{"$f":"IF(WorkingP!$B76=\"Administration Costs\",WorkingP!L76,\"\")","v":0},{"$f":"IF(WorkingP!$B76=\"Administration Costs\",WorkingP!M76,\"\")","v":0},{"$f":"IF(WorkingP!$B76=\"Administration Costs\",WorkingP!N76,\"\")","v":0},{"$f":"IF(WorkingP!$B76=\"Administration Costs\",WorkingP!O76,\"\")","v":0},{"$f":"IF(WorkingP!$B76=\"Administration Costs\",WorkingP!P76,\"\")","v":0},{"$f":"IF(WorkingP!$B76=\"Administration Costs\",WorkingP!Q76,\"\")","v":0},{"$f":"IF(WorkingP!$B76=\"Administration Costs\",WorkingP!R76,\"\")","v":0},{"$f":"IF(WorkingP!$B76=\"Administration Costs\",WorkingP!S76,\"\")","v":0},{"$f":"IF(WorkingP!$B76=\"Administration Costs\",WorkingP!T76,\"\")","v":0},{"$f":"IF(WorkingP!$B76=\"Administration Costs\",WorkingP!U76,\"\")","v":0},{"$f":"IF(WorkingP!$B76=\"Administration Costs\",WorkingP!V76,\"\")","v":0},{"$f":"IF(WorkingP!$B76=\"Administration Costs\",WorkingP!W76,\"\")","v":0},{"$f":"IF(WorkingP!$B76=\"Administration Costs\",WorkingP!X76,\"\")","v":0},{"$f":"IF(WorkingP!$B76=\"Administration Costs\",WorkingP!Y76,\"\")","v":0},{"$f":"IF(Descriptions!K77=\"Administration Costs\",Descriptions!AB77,0)","v":0}]
[{"$f":"IF(Descriptions!K78=\"Administration Costs\",Descriptions!I78,0)","v":0},{"$f":"IF(WorkingP!$B77=\"Administration Costs\",WorkingP!D77,\"\")","v":0},{"$f":"IF(WorkingP!$B77=\"Administration Costs\",WorkingP!E77,\"\")","v":0},{"$f":"IF(WorkingP!$B77=\"Administration Costs\",WorkingP!F77,\"\")","v":0},{"$f":"IF(WorkingP!$B77=\"Administration Costs\",WorkingP!G77,\"\")","v":0},{"$f":"IF(WorkingP!$B77=\"Administration Costs\",WorkingP!H77,\"\")","v":0},{"$f":"IF(WorkingP!$B77=\"Administration Costs\",WorkingP!I77,\"\")","v":0},{"$f":"IF(WorkingP!$B77=\"Administration Costs\",WorkingP!J77,\"\")","v":0},{"$f":"IF(WorkingP!$B77=\"Administration Costs\",WorkingP!K77,\"\")","v":0},{"$f":"IF(WorkingP!$B77=\"Administration Costs\",WorkingP!L77,\"\")","v":0},{"$f":"IF(WorkingP!$B77=\"Administration Costs\",WorkingP!M77,\"\")","v":0},{"$f":"IF(WorkingP!$B77=\"Administration Costs\",WorkingP!N77,\"\")","v":0},{"$f":"IF(WorkingP!$B77=\"Administration Costs\",WorkingP!O77,\"\")","v":0},{"$f":"IF(WorkingP!$B77=\"Administration Costs\",WorkingP!P77,\"\")","v":0},{"$f":"IF(WorkingP!$B77=\"Administration Costs\",WorkingP!Q77,\"\")","v":0},{"$f":"IF(WorkingP!$B77=\"Administration Costs\",WorkingP!R77,\"\")","v":0},{"$f":"IF(WorkingP!$B77=\"Administration Costs\",WorkingP!S77,\"\")","v":0},{"$f":"IF(WorkingP!$B77=\"Administration Costs\",WorkingP!T77,\"\")","v":0},{"$f":"IF(WorkingP!$B77=\"Administration Costs\",WorkingP!U77,\"\")","v":0},{"$f":"IF(WorkingP!$B77=\"Administration Costs\",WorkingP!V77,\"\")","v":0},{"$f":"IF(WorkingP!$B77=\"Administration Costs\",WorkingP!W77,\"\")","v":0},{"$f":"IF(WorkingP!$B77=\"Administration Costs\",WorkingP!X77,\"\")","v":0},{"$f":"IF(WorkingP!$B77=\"Administration Costs\",WorkingP!Y77,\"\")","v":0},{"$f":"IF(Descriptions!K78=\"Administration Costs\",Descriptions!AB78,0)","v":0}]
[{"$f":"IF(Descriptions!K79=\"Administration Costs\",Descriptions!I79,0)","v":0},{"$f":"IF(WorkingP!$B78=\"Administration Costs\",WorkingP!D78,\"\")","v":0},{"$f":"IF(WorkingP!$B78=\"Administration Costs\",WorkingP!E78,\"\")","v":0},{"$f":"IF(WorkingP!$B78=\"Administration Costs\",WorkingP!F78,\"\")","v":0},{"$f":"IF(WorkingP!$B78=\"Administration Costs\",WorkingP!G78,\"\")","v":0},{"$f":"IF(WorkingP!$B78=\"Administration Costs\",WorkingP!H78,\"\")","v":0},{"$f":"IF(WorkingP!$B78=\"Administration Costs\",WorkingP!I78,\"\")","v":0},{"$f":"IF(WorkingP!$B78=\"Administration Costs\",WorkingP!J78,\"\")","v":0},{"$f":"IF(WorkingP!$B78=\"Administration Costs\",WorkingP!K78,\"\")","v":0},{"$f":"IF(WorkingP!$B78=\"Administration Costs\",WorkingP!L78,\"\")","v":0},{"$f":"IF(WorkingP!$B78=\"Administration Costs\",WorkingP!M78,\"\")","v":0},{"$f":"IF(WorkingP!$B78=\"Administration Costs\",WorkingP!N78,\"\")","v":0},{"$f":"IF(WorkingP!$B78=\"Administration Costs\",WorkingP!O78,\"\")","v":0},{"$f":"IF(WorkingP!$B78=\"Administration Costs\",WorkingP!P78,\"\")","v":0},{"$f":"IF(WorkingP!$B78=\"Administration Costs\",WorkingP!Q78,\"\")","v":0},{"$f":"IF(WorkingP!$B78=\"Administration Costs\",WorkingP!R78,\"\")","v":0},{"$f":"IF(WorkingP!$B78=\"Administration Costs\",WorkingP!S78,\"\")","v":0},{"$f":"IF(WorkingP!$B78=\"Administration Costs\",WorkingP!T78,\"\")","v":0},{"$f":"IF(WorkingP!$B78=\"Administration Costs\",WorkingP!U78,\"\")","v":0},{"$f":"IF(WorkingP!$B78=\"Administration Costs\",WorkingP!V78,\"\")","v":0},{"$f":"IF(WorkingP!$B78=\"Administration Costs\",WorkingP!W78,\"\")","v":0},{"$f":"IF(WorkingP!$B78=\"Administration Costs\",WorkingP!X78,\"\")","v":0},{"$f":"IF(WorkingP!$B78=\"Administration Costs\",WorkingP!Y78,\"\")","v":0},{"$f":"IF(Descriptions!K79=\"Administration Costs\",Descriptions!AB79,0)","v":0}]
[{"$f":"IF(Descriptions!K80=\"Administration Costs\",Descriptions!I80,0)","v":0},{"$f":"IF(WorkingP!$B79=\"Administration Costs\",WorkingP!D79,\"\")","v":0},{"$f":"IF(WorkingP!$B79=\"Administration Costs\",WorkingP!E79,\"\")","v":0},{"$f":"IF(WorkingP!$B79=\"Administration Costs\",WorkingP!F79,\"\")","v":0},{"$f":"IF(WorkingP!$B79=\"Administration Costs\",WorkingP!G79,\"\")","v":0},{"$f":"IF(WorkingP!$B79=\"Administration Costs\",WorkingP!H79,\"\")","v":0},{"$f":"IF(WorkingP!$B79=\"Administration Costs\",WorkingP!I79,\"\")","v":0},{"$f":"IF(WorkingP!$B79=\"Administration Costs\",WorkingP!J79,\"\")","v":0},{"$f":"IF(WorkingP!$B79=\"Administration Costs\",WorkingP!K79,\"\")","v":0},{"$f":"IF(WorkingP!$B79=\"Administration Costs\",WorkingP!L79,\"\")","v":0},{"$f":"IF(WorkingP!$B79=\"Administration Costs\",WorkingP!M79,\"\")","v":0},{"$f":"IF(WorkingP!$B79=\"Administration Costs\",WorkingP!N79,\"\")","v":0},{"$f":"IF(WorkingP!$B79=\"Administration Costs\",WorkingP!O79,\"\")","v":0},{"$f":"IF(WorkingP!$B79=\"Administration Costs\",WorkingP!P79,\"\")","v":0},{"$f":"IF(WorkingP!$B79=\"Administration Costs\",WorkingP!Q79,\"\")","v":0},{"$f":"IF(WorkingP!$B79=\"Administration Costs\",WorkingP!R79,\"\")","v":0},{"$f":"IF(WorkingP!$B79=\"Administration Costs\",WorkingP!S79,\"\")","v":0},{"$f":"IF(WorkingP!$B79=\"Administration Costs\",WorkingP!T79,\"\")","v":0},{"$f":"IF(WorkingP!$B79=\"Administration Costs\",WorkingP!U79,\"\")","v":0},{"$f":"IF(WorkingP!$B79=\"Administration Costs\",WorkingP!V79,\"\")","v":0},{"$f":"IF(WorkingP!$B79=\"Administration Costs\",WorkingP!W79,\"\")","v":0},{"$f":"IF(WorkingP!$B79=\"Administration Costs\",WorkingP!X79,\"\")","v":0},{"$f":"IF(WorkingP!$B79=\"Administration Costs\",WorkingP!Y79,\"\")","v":0},{"$f":"IF(Descriptions!K80=\"Administration Costs\",Descriptions!AB80,0)","v":0}]
[{"$f":"IF(Descriptions!K81=\"Administration Costs\",Descriptions!I81,0)","v":0},{"$f":"IF(WorkingP!$B80=\"Administration Costs\",WorkingP!D80,\"\")","v":0},{"$f":"IF(WorkingP!$B80=\"Administration Costs\",WorkingP!E80,\"\")","v":0},{"$f":"IF(WorkingP!$B80=\"Administration Costs\",WorkingP!F80,\"\")","v":0},{"$f":"IF(WorkingP!$B80=\"Administration Costs\",WorkingP!G80,\"\")","v":0},{"$f":"IF(WorkingP!$B80=\"Administration Costs\",WorkingP!H80,\"\")","v":0},{"$f":"IF(WorkingP!$B80=\"Administration Costs\",WorkingP!I80,\"\")","v":0},{"$f":"IF(WorkingP!$B80=\"Administration Costs\",WorkingP!J80,\"\")","v":0},{"$f":"IF(WorkingP!$B80=\"Administration Costs\",WorkingP!K80,\"\")","v":0},{"$f":"IF(WorkingP!$B80=\"Administration Costs\",WorkingP!L80,\"\")","v":0},{"$f":"IF(WorkingP!$B80=\"Administration Costs\",WorkingP!M80,\"\")","v":0},{"$f":"IF(WorkingP!$B80=\"Administration Costs\",WorkingP!N80,\"\")","v":0},{"$f":"IF(WorkingP!$B80=\"Administration Costs\",WorkingP!O80,\"\")","v":0},{"$f":"IF(WorkingP!$B80=\"Administration Costs\",WorkingP!P80,\"\")","v":0},{"$f":"IF(WorkingP!$B80=\"Administration Costs\",WorkingP!Q80,\"\")","v":0},{"$f":"IF(WorkingP!$B80=\"Administration Costs\",WorkingP!R80,\"\")","v":0},{"$f":"IF(WorkingP!$B80=\"Administration Costs\",WorkingP!S80,\"\")","v":0},{"$f":"IF(WorkingP!$B80=\"Administration Costs\",WorkingP!T80,\"\")","v":0},{"$f":"IF(WorkingP!$B80=\"Administration Costs\",WorkingP!U80,\"\")","v":0},{"$f":"IF(WorkingP!$B80=\"Administration Costs\",WorkingP!V80,\"\")","v":0},{"$f":"IF(WorkingP!$B80=\"Administration Costs\",WorkingP!W80,\"\")","v":0},{"$f":"IF(WorkingP!$B80=\"Administration Costs\",WorkingP!X80,\"\")","v":0},{"$f":"IF(WorkingP!$B80=\"Administration Costs\",WorkingP!Y80,\"\")","v":0},{"$f":"IF(Descriptions!K81=\"Administration Costs\",Descriptions!AB81,0)","v":0}]
[{"$f":"IF(Descriptions!K82=\"Administration Costs\",Descriptions!I82,0)","v":0},{"$f":"IF(WorkingP!$B81=\"Administration Costs\",WorkingP!D81,\"\")","v":0},{"$f":"IF(WorkingP!$B81=\"Administration Costs\",WorkingP!E81,\"\")","v":0},{"$f":"IF(WorkingP!$B81=\"Administration Costs\",WorkingP!F81,\"\")","v":0},{"$f":"IF(WorkingP!$B81=\"Administration Costs\",WorkingP!G81,\"\")","v":0},{"$f":"IF(WorkingP!$B81=\"Administration Costs\",WorkingP!H81,\"\")","v":0},{"$f":"IF(WorkingP!$B81=\"Administration Costs\",WorkingP!I81,\"\")","v":0},{"$f":"IF(WorkingP!$B81=\"Administration Costs\",WorkingP!J81,\"\")","v":0},{"$f":"IF(WorkingP!$B81=\"Administration Costs\",WorkingP!K81,\"\")","v":0},{"$f":"IF(WorkingP!$B81=\"Administration Costs\",WorkingP!L81,\"\")","v":0},{"$f":"IF(WorkingP!$B81=\"Administration Costs\",WorkingP!M81,\"\")","v":0},{"$f":"IF(WorkingP!$B81=\"Administration Costs\",WorkingP!N81,\"\")","v":0},{"$f":"IF(WorkingP!$B81=\"Administration Costs\",WorkingP!O81,\"\")","v":0},{"$f":"IF(WorkingP!$B81=\"Administration Costs\",WorkingP!P81,\"\")","v":0},{"$f":"IF(WorkingP!$B81=\"Administration Costs\",WorkingP!Q81,\"\")","v":0},{"$f":"IF(WorkingP!$B81=\"Administration Costs\",WorkingP!R81,\"\")","v":0},{"$f":"IF(WorkingP!$B81=\"Administration Costs\",WorkingP!S81,\"\")","v":0},{"$f":"IF(WorkingP!$B81=\"Administration Costs\",WorkingP!T81,\"\")","v":0},{"$f":"IF(WorkingP!$B81=\"Administration Costs\",WorkingP!U81,\"\")","v":0},{"$f":"IF(WorkingP!$B81=\"Administration Costs\",WorkingP!V81,\"\")","v":0},{"$f":"IF(WorkingP!$B81=\"Administration Costs\",WorkingP!W81,\"\")","v":0},{"$f":"IF(WorkingP!$B81=\"Administration Costs\",WorkingP!X81,\"\")","v":0},{"$f":"IF(WorkingP!$B81=\"Administration Costs\",WorkingP!Y81,\"\")","v":0},{"$f":"IF(Descriptions!K82=\"Administration Costs\",Descriptions!AB82,0)","v":0}]
[{"$f":"IF(Descriptions!K83=\"Administration Costs\",Descriptions!I83,0)","v":0},{"$f":"IF(WorkingP!$B82=\"Administration Costs\",WorkingP!D82,\"\")","v":0},{"$f":"IF(WorkingP!$B82=\"Administration Costs\",WorkingP!E82,\"\")","v":0},{"$f":"IF(WorkingP!$B82=\"Administration Costs\",WorkingP!F82,\"\")","v":0},{"$f":"IF(WorkingP!$B82=\"Administration Costs\",WorkingP!G82,\"\")","v":0},{"$f":"IF(WorkingP!$B82=\"Administration Costs\",WorkingP!H82,\"\")","v":0},{"$f":"IF(WorkingP!$B82=\"Administration Costs\",WorkingP!I82,\"\")","v":0},{"$f":"IF(WorkingP!$B82=\"Administration Costs\",WorkingP!J82,\"\")","v":0},{"$f":"IF(WorkingP!$B82=\"Administration Costs\",WorkingP!K82,\"\")","v":0},{"$f":"IF(WorkingP!$B82=\"Administration Costs\",WorkingP!L82,\"\")","v":0},{"$f":"IF(WorkingP!$B82=\"Administration Costs\",WorkingP!M82,\"\")","v":0},{"$f":"IF(WorkingP!$B82=\"Administration Costs\",WorkingP!N82,\"\")","v":0},{"$f":"IF(WorkingP!$B82=\"Administration Costs\",WorkingP!O82,\"\")","v":0},{"$f":"IF(WorkingP!$B82=\"Administration Costs\",WorkingP!P82,\"\")","v":0},{"$f":"IF(WorkingP!$B82=\"Administration Costs\",WorkingP!Q82,\"\")","v":0},{"$f":"IF(WorkingP!$B82=\"Administration Costs\",WorkingP!R82,\"\")","v":0},{"$f":"IF(WorkingP!$B82=\"Administration Costs\",WorkingP!S82,\"\")","v":0},{"$f":"IF(WorkingP!$B82=\"Administration Costs\",WorkingP!T82,\"\")","v":0},{"$f":"IF(WorkingP!$B82=\"Administration Costs\",WorkingP!U82,\"\")","v":0},{"$f":"IF(WorkingP!$B82=\"Administration Costs\",WorkingP!V82,\"\")","v":0},{"$f":"IF(WorkingP!$B82=\"Administration Costs\",WorkingP!W82,\"\")","v":0},{"$f":"IF(WorkingP!$B82=\"Administration Costs\",WorkingP!X82,\"\")","v":0},{"$f":"IF(WorkingP!$B82=\"Administration Costs\",WorkingP!Y82,\"\")","v":0},{"$f":"IF(Descriptions!K83=\"Administration Costs\",Descriptions!AB83,0)","v":0}]
[{"$f":"IF(Descriptions!K84=\"Administration Costs\",Descriptions!I84,0)","v":0},{"$f":"IF(WorkingP!$B83=\"Administration Costs\",WorkingP!D83,\"\")","v":0},{"$f":"IF(WorkingP!$B83=\"Administration Costs\",WorkingP!E83,\"\")","v":0},{"$f":"IF(WorkingP!$B83=\"Administration Costs\",WorkingP!F83,\"\")","v":0},{"$f":"IF(WorkingP!$B83=\"Administration Costs\",WorkingP!G83,\"\")","v":0},{"$f":"IF(WorkingP!$B83=\"Administration Costs\",WorkingP!H83,\"\")","v":0},{"$f":"IF(WorkingP!$B83=\"Administration Costs\",WorkingP!I83,\"\")","v":0},{"$f":"IF(WorkingP!$B83=\"Administration Costs\",WorkingP!J83,\"\")","v":0},{"$f":"IF(WorkingP!$B83=\"Administration Costs\",WorkingP!K83,\"\")","v":0},{"$f":"IF(WorkingP!$B83=\"Administration Costs\",WorkingP!L83,\"\")","v":0},{"$f":"IF(WorkingP!$B83=\"Administration Costs\",WorkingP!M83,\"\")","v":0},{"$f":"IF(WorkingP!$B83=\"Administration Costs\",WorkingP!N83,\"\")","v":0},{"$f":"IF(WorkingP!$B83=\"Administration Costs\",WorkingP!O83,\"\")","v":0},{"$f":"IF(WorkingP!$B83=\"Administration Costs\",WorkingP!P83,\"\")","v":0},{"$f":"IF(WorkingP!$B83=\"Administration Costs\",WorkingP!Q83,\"\")","v":0},{"$f":"IF(WorkingP!$B83=\"Administration Costs\",WorkingP!R83,\"\")","v":0},{"$f":"IF(WorkingP!$B83=\"Administration Costs\",WorkingP!S83,\"\")","v":0},{"$f":"IF(WorkingP!$B83=\"Administration Costs\",WorkingP!T83,\"\")","v":0},{"$f":"IF(WorkingP!$B83=\"Administration Costs\",WorkingP!U83,\"\")","v":0},{"$f":"IF(WorkingP!$B83=\"Administration Costs\",WorkingP!V83,\"\")","v":0},{"$f":"IF(WorkingP!$B83=\"Administration Costs\",WorkingP!W83,\"\")","v":0},{"$f":"IF(WorkingP!$B83=\"Administration Costs\",WorkingP!X83,\"\")","v":0},{"$f":"IF(WorkingP!$B83=\"Administration Costs\",WorkingP!Y83,\"\")","v":0},{"$f":"IF(Descriptions!K84=\"Administration Costs\",Descriptions!AB84,0)","v":0}]
[null,{"$f":"SUM(B902:B956)","v":0},0,0,0,0,0,0,0,0,0,0,0,0,0,0,0,0,0,0,0,0,null,{"$f":"X901","v":0}]
["OTHER EXPENDITURE",null,null,null,null,null,null,null,null,null,null,null,null,null,null,null,null,null,null,null,null,null,null,{"$f":"SUM(X959:X1011)","v":0}]
["Mission and Evangelism Costs",{"$f":"WorkingP!D21","v":0},{"$f":"WorkingP!E21","v":0},{"$f":"WorkingP!F21","v":0},{"$f":"WorkingP!G21","v":0},{"$f":"WorkingP!H21","v":0},{"$f":"WorkingP!I21","v":0},{"$f":"WorkingP!J21","v":0},{"$f":"WorkingP!K21","v":0},{"$f":"WorkingP!L21","v":0},{"$f":"WorkingP!M21","v":0},{"$f":"WorkingP!N21","v":0},{"$f":"WorkingP!O21","v":0},{"$f":"WorkingP!P21","v":0},{"$f":"WorkingP!Q21","v":0},{"$f":"WorkingP!R21","v":0},{"$f":"WorkingP!S21","v":0},{"$f":"WorkingP!T21","v":0},{"$f":"WorkingP!U21","v":0},{"$f":"WorkingP!V21","v":0},{"$f":"WorkingP!W21","v":0},{"$f":"WorkingP!X21","v":0},{"$f":"WorkingP!Y21","v":0},{"$f":"Descriptions!AB22","v":0}]
["Churchyard Expenses",{"$f":"WorkingP!D12","v":0},{"$f":"WorkingP!E12","v":0},{"$f":"WorkingP!F12","v":0},{"$f":"WorkingP!G12","v":0},{"$f":"WorkingP!H12","v":0},{"$f":"WorkingP!I12","v":0},{"$f":"WorkingP!J12","v":0},{"$f":"WorkingP!K12","v":0},{"$f":"WorkingP!L12","v":0},{"$f":"WorkingP!M12","v":0},{"$f":"WorkingP!N12","v":0},{"$f":"WorkingP!O12","v":0},{"$f":"WorkingP!P12","v":0},{"$f":"WorkingP!Q12","v":0},{"$f":"WorkingP!R12","v":0},{"$f":"WorkingP!S12","v":0},{"$f":"WorkingP!T12","v":0},{"$f":"WorkingP!U12","v":0},{"$f":"WorkingP!V12","v":0},{"$f":"WorkingP!W12","v":0},{"$f":"WorkingP!X12","v":0},{"$f":"WorkingP!Y12","v":0},{"$f":"Descriptions!AB13","v":0}]
["Trading Costs - Property",{"$f":"WorkingP!D32","v":0},{"$f":"WorkingP!E32","v":0},{"$f":"WorkingP!F32","v":0},{"$f":"WorkingP!G32","v":0},{"$f":"WorkingP!H32","v":0},{"$f":"WorkingP!I32","v":0},{"$f":"WorkingP!J32","v":0},{"$f":"WorkingP!K32","v":0},{"$f":"WorkingP!L32","v":0},{"$f":"WorkingP!M32","v":0},{"$f":"WorkingP!N32","v":0},{"$f":"WorkingP!O32","v":0},{"$f":"WorkingP!P32","v":0},{"$f":"WorkingP!Q32","v":0},{"$f":"WorkingP!R32","v":0},{"$f":"WorkingP!S32","v":0},{"$f":"WorkingP!T32","v":0},{"$f":"WorkingP!U32","v":0},{"$f":"WorkingP!V32","v":0},{"$f":"WorkingP!W32","v":0},{"$f":"WorkingP!X32","v":0},{"$f":"WorkingP!Y32","v":0},{"$f":"Descriptions!AB33","v":0}]
[{"$f":"IF(Descriptions!K35=\"Other Expenditure\",Descriptions!I35,0)","v":0},{"$f":"IF(WorkingP!$B34=\"Other Expenditure\",WorkingP!D34,\"\")","v":""},{"$f":"IF(WorkingP!$B34=\"Other Expenditure\",WorkingP!E34,\"\")","v":""},{"$f":"IF(WorkingP!$B34=\"Other Expenditure\",WorkingP!F34,\"\")","v":""},{"$f":"IF(WorkingP!$B34=\"Other Expenditure\",WorkingP!G34,\"\")","v":""},{"$f":"IF(WorkingP!$B34=\"Other Expenditure\",WorkingP!H34,\"\")","v":""},{"$f":"IF(WorkingP!$B34=\"Other Expenditure\",WorkingP!I34,\"\")","v":""},{"$f":"IF(WorkingP!$B34=\"Other Expenditure\",WorkingP!J34,\"\")","v":""},{"$f":"IF(WorkingP!$B34=\"Other Expenditure\",WorkingP!K34,\"\")","v":""},{"$f":"IF(WorkingP!$B34=\"Other Expenditure\",WorkingP!L34,\"\")","v":""},{"$f":"IF(WorkingP!$B34=\"Other Expenditure\",WorkingP!M34,\"\")","v":""},{"$f":"IF(WorkingP!$B34=\"Other Expenditure\",WorkingP!N34,\"\")","v":""},{"$f":"IF(WorkingP!$B34=\"Other Expenditure\",WorkingP!O34,\"\")","v":""},{"$f":"IF(WorkingP!$B34=\"Other Expenditure\",WorkingP!P34,\"\")","v":""},{"$f":"IF(WorkingP!$B34=\"Other Expenditure\",WorkingP!Q34,\"\")","v":""},{"$f":"IF(WorkingP!$B34=\"Other Expenditure\",WorkingP!R34,\"\")","v":""},{"$f":"IF(WorkingP!$B34=\"Other Expenditure\",WorkingP!S34,\"\")","v":""},{"$f":"IF(WorkingP!$B34=\"Other Expenditure\",WorkingP!T34,\"\")","v":""},{"$f":"IF(WorkingP!$B34=\"Other Expenditure\",WorkingP!U34,\"\")","v":""},{"$f":"IF(WorkingP!$B34=\"Other Expenditure\",WorkingP!V34,\"\")","v":""},{"$f":"IF(WorkingP!$B34=\"Other Expenditure\",WorkingP!W34,\"\")","v":""},{"$f":"IF(WorkingP!$B34=\"Other Expenditure\",WorkingP!X34,\"\")","v":""},{"$f":"IF(WorkingP!$B34=\"Other Expenditure\",WorkingP!Y34,\"\")","v":""},{"$f":"IF(Descriptions!K35=\"Other Expenditure\",Descriptions!AB35,0)","v":0}]
[{"$f":"IF(Descriptions!K36=\"Other Expenditure\",Descriptions!I36,0)","v":0},{"$f":"IF(WorkingP!$B35=\"Other Expenditure\",WorkingP!D35,\"\")","v":""},{"$f":"IF(WorkingP!$B35=\"Other Expenditure\",WorkingP!E35,\"\")","v":""},{"$f":"IF(WorkingP!$B35=\"Other Expenditure\",WorkingP!F35,\"\")","v":""},{"$f":"IF(WorkingP!$B35=\"Other Expenditure\",WorkingP!G35,\"\")","v":""},{"$f":"IF(WorkingP!$B35=\"Other Expenditure\",WorkingP!H35,\"\")","v":""},{"$f":"IF(WorkingP!$B35=\"Other Expenditure\",WorkingP!I35,\"\")","v":""},{"$f":"IF(WorkingP!$B35=\"Other Expenditure\",WorkingP!J35,\"\")","v":""},{"$f":"IF(WorkingP!$B35=\"Other Expenditure\",WorkingP!K35,\"\")","v":""},{"$f":"IF(WorkingP!$B35=\"Other Expenditure\",WorkingP!L35,\"\")","v":""},{"$f":"IF(WorkingP!$B35=\"Other Expenditure\",WorkingP!M35,\"\")","v":""},{"$f":"IF(WorkingP!$B35=\"Other Expenditure\",WorkingP!N35,\"\")","v":""},{"$f":"IF(WorkingP!$B35=\"Other Expenditure\",WorkingP!O35,\"\")","v":""},{"$f":"IF(WorkingP!$B35=\"Other Expenditure\",WorkingP!P35,\"\")","v":""},{"$f":"IF(WorkingP!$B35=\"Other Expenditure\",WorkingP!Q35,\"\")","v":""},{"$f":"IF(WorkingP!$B35=\"Other Expenditure\",WorkingP!R35,\"\")","v":""},{"$f":"IF(WorkingP!$B35=\"Other Expenditure\",WorkingP!S35,\"\")","v":""},{"$f":"IF(WorkingP!$B35=\"Other Expenditure\",WorkingP!T35,\"\")","v":""},{"$f":"IF(WorkingP!$B35=\"Other Expenditure\",WorkingP!U35,\"\")","v":""},{"$f":"IF(WorkingP!$B35=\"Other Expenditure\",WorkingP!V35,\"\")","v":""},{"$f":"IF(WorkingP!$B35=\"Other Expenditure\",WorkingP!W35,\"\")","v":""},{"$f":"IF(WorkingP!$B35=\"Other Expenditure\",WorkingP!X35,\"\")","v":""},{"$f":"IF(WorkingP!$B35=\"Other Expenditure\",WorkingP!Y35,\"\")","v":""},{"$f":"IF(Descriptions!K36=\"Other Expenditure\",Descriptions!AB36,0)","v":0}]
[{"$f":"IF(Descriptions!K37=\"Other Expenditure\",Descriptions!I37,0)","v":0},{"$f":"IF(WorkingP!$B36=\"Other Expenditure\",WorkingP!D36,\"\")","v":""},{"$f":"IF(WorkingP!$B36=\"Other Expenditure\",WorkingP!E36,\"\")","v":""},{"$f":"IF(WorkingP!$B36=\"Other Expenditure\",WorkingP!F36,\"\")","v":""},{"$f":"IF(WorkingP!$B36=\"Other Expenditure\",WorkingP!G36,\"\")","v":""},{"$f":"IF(WorkingP!$B36=\"Other Expenditure\",WorkingP!H36,\"\")","v":""},{"$f":"IF(WorkingP!$B36=\"Other Expenditure\",WorkingP!I36,\"\")","v":""},{"$f":"IF(WorkingP!$B36=\"Other Expenditure\",WorkingP!J36,\"\")","v":""},{"$f":"IF(WorkingP!$B36=\"Other Expenditure\",WorkingP!K36,\"\")","v":""},{"$f":"IF(WorkingP!$B36=\"Other Expenditure\",WorkingP!L36,\"\")","v":""},{"$f":"IF(WorkingP!$B36=\"Other Expenditure\",WorkingP!M36,\"\")","v":""},{"$f":"IF(WorkingP!$B36=\"Other Expenditure\",WorkingP!N36,\"\")","v":""},{"$f":"IF(WorkingP!$B36=\"Other Expenditure\",WorkingP!O36,\"\")","v":""},{"$f":"IF(WorkingP!$B36=\"Other Expenditure\",WorkingP!P36,\"\")","v":""},{"$f":"IF(WorkingP!$B36=\"Other Expenditure\",WorkingP!Q36,\"\")","v":""},{"$f":"IF(WorkingP!$B36=\"Other Expenditure\",WorkingP!R36,\"\")","v":""},{"$f":"IF(WorkingP!$B36=\"Other Expenditure\",WorkingP!S36,\"\")","v":""},{"$f":"IF(WorkingP!$B36=\"Other Expenditure\",WorkingP!T36,\"\")","v":""},{"$f":"IF(WorkingP!$B36=\"Other Expenditure\",WorkingP!U36,\"\")","v":""},{"$f":"IF(WorkingP!$B36=\"Other Expenditure\",WorkingP!V36,\"\")","v":""},{"$f":"IF(WorkingP!$B36=\"Other Expenditure\",WorkingP!W36,\"\")","v":""},{"$f":"IF(WorkingP!$B36=\"Other Expenditure\",WorkingP!X36,\"\")","v":""},{"$f":"IF(WorkingP!$B36=\"Other Expenditure\",WorkingP!Y36,\"\")","v":""},{"$f":"IF(Descriptions!K37=\"Other Expenditure\",Descriptions!AB37,0)","v":0}]
[{"$f":"IF(Descriptions!K38=\"Other Expenditure\",Descriptions!I38,0)","v":0},{"$f":"IF(WorkingP!$B37=\"Other Expenditure\",WorkingP!D37,\"\")","v":""},{"$f":"IF(WorkingP!$B37=\"Other Expenditure\",WorkingP!E37,\"\")","v":""},{"$f":"IF(WorkingP!$B37=\"Other Expenditure\",WorkingP!F37,\"\")","v":""},{"$f":"IF(WorkingP!$B37=\"Other Expenditure\",WorkingP!G37,\"\")","v":""},{"$f":"IF(WorkingP!$B37=\"Other Expenditure\",WorkingP!H37,\"\")","v":""},{"$f":"IF(WorkingP!$B37=\"Other Expenditure\",WorkingP!I37,\"\")","v":""},{"$f":"IF(WorkingP!$B37=\"Other Expenditure\",WorkingP!J37,\"\")","v":""},{"$f":"IF(WorkingP!$B37=\"Other Expenditure\",WorkingP!K37,\"\")","v":""},{"$f":"IF(WorkingP!$B37=\"Other Expenditure\",WorkingP!L37,\"\")","v":""},{"$f":"IF(WorkingP!$B37=\"Other Expenditure\",WorkingP!M37,\"\")","v":""},{"$f":"IF(WorkingP!$B37=\"Other Expenditure\",WorkingP!N37,\"\")","v":""},{"$f":"IF(WorkingP!$B37=\"Other Expenditure\",WorkingP!O37,\"\")","v":""},{"$f":"IF(WorkingP!$B37=\"Other Expenditure\",WorkingP!P37,\"\")","v":""},{"$f":"IF(WorkingP!$B37=\"Other Expenditure\",WorkingP!Q37,\"\")","v":""},{"$f":"IF(WorkingP!$B37=\"Other Expenditure\",WorkingP!R37,\"\")","v":""},{"$f":"IF(WorkingP!$B37=\"Other Expenditure\",WorkingP!S37,\"\")","v":""},{"$f":"IF(WorkingP!$B37=\"Other Expenditure\",WorkingP!T37,\"\")","v":""},{"$f":"IF(WorkingP!$B37=\"Other Expenditure\",WorkingP!U37,\"\")","v":""},{"$f":"IF(WorkingP!$B37=\"Other Expenditure\",WorkingP!V37,\"\")","v":""},{"$f":"IF(WorkingP!$B37=\"Other Expenditure\",WorkingP!W37,\"\")","v":""},{"$f":"IF(WorkingP!$B37=\"Other Expenditure\",WorkingP!X37,\"\")","v":""},{"$f":"IF(WorkingP!$B37=\"Other Expenditure\",WorkingP!Y37,\"\")","v":""},{"$f":"IF(Descriptions!K38=\"Other Expenditure\",Descriptions!AB38,0)","v":0}]
[{"$f":"IF(Descriptions!K39=\"Other Expenditure\",Descriptions!I39,0)","v":0},{"$f":"IF(WorkingP!$B38=\"Other Expenditure\",WorkingP!D38,\"\")","v":""},{"$f":"IF(WorkingP!$B38=\"Other Expenditure\",WorkingP!E38,\"\")","v":""},{"$f":"IF(WorkingP!$B38=\"Other Expenditure\",WorkingP!F38,\"\")","v":""},{"$f":"IF(WorkingP!$B38=\"Other Expenditure\",WorkingP!G38,\"\")","v":""},{"$f":"IF(WorkingP!$B38=\"Other Expenditure\",WorkingP!H38,\"\")","v":""},{"$f":"IF(WorkingP!$B38=\"Other Expenditure\",WorkingP!I38,\"\")","v":""},{"$f":"IF(WorkingP!$B38=\"Other Expenditure\",WorkingP!J38,\"\")","v":""},{"$f":"IF(WorkingP!$B38=\"Other Expenditure\",WorkingP!K38,\"\")","v":""},{"$f":"IF(WorkingP!$B38=\"Other Expenditure\",WorkingP!L38,\"\")","v":""},{"$f":"IF(WorkingP!$B38=\"Other Expenditure\",WorkingP!M38,\"\")","v":""},{"$f":"IF(WorkingP!$B38=\"Other Expenditure\",WorkingP!N38,\"\")","v":""},{"$f":"IF(WorkingP!$B38=\"Other Expenditure\",WorkingP!O38,\"\")","v":""},{"$f":"IF(WorkingP!$B38=\"Other Expenditure\",WorkingP!P38,\"\")","v":""},{"$f":"IF(WorkingP!$B38=\"Other Expenditure\",WorkingP!Q38,\"\")","v":""},{"$f":"IF(WorkingP!$B38=\"Other Expenditure\",WorkingP!R38,\"\")","v":""},{"$f":"IF(WorkingP!$B38=\"Other Expenditure\",WorkingP!S38,\"\")","v":""},{"$f":"IF(WorkingP!$B38=\"Other Expenditure\",WorkingP!T38,\"\")","v":""},{"$f":"IF(WorkingP!$B38=\"Other Expenditure\",WorkingP!U38,\"\")","v":""},{"$f":"IF(WorkingP!$B38=\"Other Expenditure\",WorkingP!V38,\"\")","v":""},{"$f":"IF(WorkingP!$B38=\"Other Expenditure\",WorkingP!W38,\"\")","v":""},{"$f":"IF(WorkingP!$B38=\"Other Expenditure\",WorkingP!X38,\"\")","v":""},{"$f":"IF(WorkingP!$B38=\"Other Expenditure\",WorkingP!Y38,\"\")","v":""},{"$f":"IF(Descriptions!K39=\"Other Expenditure\",Descriptions!AB39,0)","v":0}]
[{"$f":"IF(Descriptions!K40=\"Other Expenditure\",Descriptions!I40,0)","v":0},{"$f":"IF(WorkingP!$B39=\"Other Expenditure\",WorkingP!D39,\"\")","v":""},{"$f":"IF(WorkingP!$B39=\"Other Expenditure\",WorkingP!E39,\"\")","v":""},{"$f":"IF(WorkingP!$B39=\"Other Expenditure\",WorkingP!F39,\"\")","v":""},{"$f":"IF(WorkingP!$B39=\"Other Expenditure\",WorkingP!G39,\"\")","v":""},{"$f":"IF(WorkingP!$B39=\"Other Expenditure\",WorkingP!H39,\"\")","v":""},{"$f":"IF(WorkingP!$B39=\"Other Expenditure\",WorkingP!I39,\"\")","v":""},{"$f":"IF(WorkingP!$B39=\"Other Expenditure\",WorkingP!J39,\"\")","v":""},{"$f":"IF(WorkingP!$B39=\"Other Expenditure\",WorkingP!K39,\"\")","v":""},{"$f":"IF(WorkingP!$B39=\"Other Expenditure\",WorkingP!L39,\"\")","v":""},{"$f":"IF(WorkingP!$B39=\"Other Expenditure\",WorkingP!M39,\"\")","v":""},{"$f":"IF(WorkingP!$B39=\"Other Expenditure\",WorkingP!N39,\"\")","v":""},{"$f":"IF(WorkingP!$B39=\"Other Expenditure\",WorkingP!O39,\"\")","v":""},{"$f":"IF(WorkingP!$B39=\"Other Expenditure\",WorkingP!P39,\"\")","v":""},{"$f":"IF(WorkingP!$B39=\"Other Expenditure\",WorkingP!Q39,\"\")","v":""},{"$f":"IF(WorkingP!$B39=\"Other Expenditure\",WorkingP!R39,\"\")","v":""},{"$f":"IF(WorkingP!$B39=\"Other Expenditure\",WorkingP!S39,\"\")","v":""},{"$f":"IF(WorkingP!$B39=\"Other Expenditure\",WorkingP!T39,\"\")","v":""},{"$f":"IF(WorkingP!$B39=\"Other Expenditure\",WorkingP!U39,\"\")","v":""},{"$f":"IF(WorkingP!$B39=\"Other Expenditure\",WorkingP!V39,\"\")","v":""},{"$f":"IF(WorkingP!$B39=\"Other Expenditure\",WorkingP!W39,\"\")","v":""},{"$f":"IF(WorkingP!$B39=\"Other Expenditure\",WorkingP!X39,\"\")","v":""},{"$f":"IF(WorkingP!$B39=\"Other Expenditure\",WorkingP!Y39,\"\")","v":""},{"$f":"IF(Descriptions!K40=\"Other Expenditure\",Descriptions!AB40,0)","v":0}]
[{"$f":"IF(Descriptions!K41=\"Other Expenditure\",Descriptions!I41,0)","v":0},{"$f":"IF(WorkingP!$B40=\"Other Expenditure\",WorkingP!D40,\"\")","v":""},{"$f":"IF(WorkingP!$B40=\"Other Expenditure\",WorkingP!E40,\"\")","v":""},{"$f":"IF(WorkingP!$B40=\"Other Expenditure\",WorkingP!F40,\"\")","v":""},{"$f":"IF(WorkingP!$B40=\"Other Expenditure\",WorkingP!G40,\"\")","v":""},{"$f":"IF(WorkingP!$B40=\"Other Expenditure\",WorkingP!H40,\"\")","v":""},{"$f":"IF(WorkingP!$B40=\"Other Expenditure\",WorkingP!I40,\"\")","v":""},{"$f":"IF(WorkingP!$B40=\"Other Expenditure\",WorkingP!J40,\"\")","v":""},{"$f":"IF(WorkingP!$B40=\"Other Expenditure\",WorkingP!K40,\"\")","v":""},{"$f":"IF(WorkingP!$B40=\"Other Expenditure\",WorkingP!L40,\"\")","v":""},{"$f":"IF(WorkingP!$B40=\"Other Expenditure\",WorkingP!M40,\"\")","v":""},{"$f":"IF(WorkingP!$B40=\"Other Expenditure\",WorkingP!N40,\"\")","v":""},{"$f":"IF(WorkingP!$B40=\"Other Expenditure\",WorkingP!O40,\"\")","v":""},{"$f":"IF(WorkingP!$B40=\"Other Expenditure\",WorkingP!P40,\"\")","v":""},{"$f":"IF(WorkingP!$B40=\"Other Expenditure\",WorkingP!Q40,\"\")","v":""},{"$f":"IF(WorkingP!$B40=\"Other Expenditure\",WorkingP!R40,\"\")","v":""},{"$f":"IF(WorkingP!$B40=\"Other Expenditure\",WorkingP!S40,\"\")","v":""},{"$f":"IF(WorkingP!$B40=\"Other Expenditure\",WorkingP!T40,\"\")","v":""},{"$f":"IF(WorkingP!$B40=\"Other Expenditure\",WorkingP!U40,\"\")","v":""},{"$f":"IF(WorkingP!$B40=\"Other Expenditure\",WorkingP!V40,\"\")","v":""},{"$f":"IF(WorkingP!$B40=\"Other Expenditure\",WorkingP!W40,\"\")","v":""},{"$f":"IF(WorkingP!$B40=\"Other Expenditure\",WorkingP!X40,\"\")","v":""},{"$f":"IF(WorkingP!$B40=\"Other Expenditure\",WorkingP!Y40,\"\")","v":""},{"$f":"IF(Descriptions!K41=\"Other Expenditure\",Descriptions!AB41,0)","v":0}]
[{"$f":"IF(Descriptions!K42=\"Other Expenditure\",Descriptions!I42,0)","v":0},{"$f":"IF(WorkingP!$B41=\"Other Expenditure\",WorkingP!D41,\"\")","v":""},{"$f":"IF(WorkingP!$B41=\"Other Expenditure\",WorkingP!E41,\"\")","v":""},{"$f":"IF(WorkingP!$B41=\"Other Expenditure\",WorkingP!F41,\"\")","v":""},{"$f":"IF(WorkingP!$B41=\"Other Expenditure\",WorkingP!G41,\"\")","v":""},{"$f":"IF(WorkingP!$B41=\"Other Expenditure\",WorkingP!H41,\"\")","v":""},{"$f":"IF(WorkingP!$B41=\"Other Expenditure\",WorkingP!I41,\"\")","v":""},{"$f":"IF(WorkingP!$B41=\"Other Expenditure\",WorkingP!J41,\"\")","v":""},{"$f":"IF(WorkingP!$B41=\"Other Expenditure\",WorkingP!K41,\"\")","v":""},{"$f":"IF(WorkingP!$B41=\"Other Expenditure\",WorkingP!L41,\"\")","v":""},{"$f":"IF(WorkingP!$B41=\"Other Expenditure\",WorkingP!M41,\"\")","v":""},{"$f":"IF(WorkingP!$B41=\"Other Expenditure\",WorkingP!N41,\"\")","v":""},{"$f":"IF(WorkingP!$B41=\"Other Expenditure\",WorkingP!O41,\"\")","v":""},{"$f":"IF(WorkingP!$B41=\"Other Expenditure\",WorkingP!P41,\"\")","v":""},{"$f":"IF(WorkingP!$B41=\"Other Expenditure\",WorkingP!Q41,\"\")","v":""},{"$f":"IF(WorkingP!$B41=\"Other Expenditure\",WorkingP!R41,\"\")","v":""},{"$f":"IF(WorkingP!$B41=\"Other Expenditure\",WorkingP!S41,\"\")","v":""},{"$f":"IF(WorkingP!$B41=\"Other Expenditure\",WorkingP!T41,\"\")","v":""},{"$f":"IF(WorkingP!$B41=\"Other Expenditure\",WorkingP!U41,\"\")","v":""},{"$f":"IF(WorkingP!$B41=\"Other Expenditure\",WorkingP!V41,\"\")","v":""},{"$f":"IF(WorkingP!$B41=\"Other Expenditure\",WorkingP!W41,\"\")","v":""},{"$f":"IF(WorkingP!$B41=\"Other Expenditure\",WorkingP!X41,\"\")","v":""},{"$f":"IF(WorkingP!$B41=\"Other Expenditure\",WorkingP!Y41,\"\")","v":""},{"$f":"IF(Descriptions!K42=\"Other Expenditure\",Descriptions!AB42,0)","v":0}]
[{"$f":"IF(Descriptions!K43=\"Other Expenditure\",Descriptions!I43,0)","v":0},{"$f":"IF(WorkingP!$B42=\"Other Expenditure\",WorkingP!D42,\"\")","v":""},{"$f":"IF(WorkingP!$B42=\"Other Expenditure\",WorkingP!E42,\"\")","v":""},{"$f":"IF(WorkingP!$B42=\"Other Expenditure\",WorkingP!F42,\"\")","v":""},{"$f":"IF(WorkingP!$B42=\"Other Expenditure\",WorkingP!G42,\"\")","v":""},{"$f":"IF(WorkingP!$B42=\"Other Expenditure\",WorkingP!H42,\"\")","v":""},{"$f":"IF(WorkingP!$B42=\"Other Expenditure\",WorkingP!I42,\"\")","v":""},{"$f":"IF(WorkingP!$B42=\"Other Expenditure\",WorkingP!J42,\"\")","v":""},{"$f":"IF(WorkingP!$B42=\"Other Expenditure\",WorkingP!K42,\"\")","v":""},{"$f":"IF(WorkingP!$B42=\"Other Expenditure\",WorkingP!L42,\"\")","v":""},{"$f":"IF(WorkingP!$B42=\"Other Expenditure\",WorkingP!M42,\"\")","v":""},{"$f":"IF(WorkingP!$B42=\"Other Expenditure\",WorkingP!N42,\"\")","v":""},{"$f":"IF(WorkingP!$B42=\"Other Expenditure\",WorkingP!O42,\"\")","v":""},{"$f":"IF(WorkingP!$B42=\"Other Expenditure\",WorkingP!P42,\"\")","v":""},{"$f":"IF(WorkingP!$B42=\"Other Expenditure\",WorkingP!Q42,\"\")","v":""},{"$f":"IF(WorkingP!$B42=\"Other Expenditure\",WorkingP!R42,\"\")","v":""},{"$f":"IF(WorkingP!$B42=\"Other Expenditure\",WorkingP!S42,\"\")","v":""},{"$f":"IF(WorkingP!$B42=\"Other Expenditure\",WorkingP!T42,\"\")","v":""},{"$f":"IF(WorkingP!$B42=\"Other Expenditure\",WorkingP!U42,\"\")","v":""},{"$f":"IF(WorkingP!$B42=\"Other Expenditure\",WorkingP!V42,\"\")","v":""},{"$f":"IF(WorkingP!$B42=\"Other Expenditure\",WorkingP!W42,\"\")","v":""},{"$f":"IF(WorkingP!$B42=\"Other Expenditure\",WorkingP!X42,\"\")","v":""},{"$f":"IF(WorkingP!$B42=\"Other Expenditure\",WorkingP!Y42,\"\")","v":""},{"$f":"IF(Descriptions!K43=\"Other Expenditure\",Descriptions!AB43,0)","v":0}]
[{"$f":"IF(Descriptions!K44=\"Other Expenditure\",Descriptions!I44,0)","v":0},{"$f":"IF(WorkingP!$B43=\"Other Expenditure\",WorkingP!D43,\"\")","v":""},{"$f":"IF(WorkingP!$B43=\"Other Expenditure\",WorkingP!E43,\"\")","v":""},{"$f":"IF(WorkingP!$B43=\"Other Expenditure\",WorkingP!F43,\"\")","v":""},{"$f":"IF(WorkingP!$B43=\"Other Expenditure\",WorkingP!G43,\"\")","v":""},{"$f":"IF(WorkingP!$B43=\"Other Expenditure\",WorkingP!H43,\"\")","v":""},{"$f":"IF(WorkingP!$B43=\"Other Expenditure\",WorkingP!I43,\"\")","v":""},{"$f":"IF(WorkingP!$B43=\"Other Expenditure\",WorkingP!J43,\"\")","v":""},{"$f":"IF(WorkingP!$B43=\"Other Expenditure\",WorkingP!K43,\"\")","v":""},{"$f":"IF(WorkingP!$B43=\"Other Expenditure\",WorkingP!L43,\"\")","v":""},{"$f":"IF(WorkingP!$B43=\"Other Expenditure\",WorkingP!M43,\"\")","v":""},{"$f":"IF(WorkingP!$B43=\"Other Expenditure\",WorkingP!N43,\"\")","v":""},{"$f":"IF(WorkingP!$B43=\"Other Expenditure\",WorkingP!O43,\"\")","v":""},{"$f":"IF(WorkingP!$B43=\"Other Expenditure\",WorkingP!P43,\"\")","v":""},{"$f":"IF(WorkingP!$B43=\"Other Expenditure\",WorkingP!Q43,\"\")","v":""},{"$f":"IF(WorkingP!$B43=\"Other Expenditure\",WorkingP!R43,\"\")","v":""},{"$f":"IF(WorkingP!$B43=\"Other Expenditure\",WorkingP!S43,\"\")","v":""},{"$f":"IF(WorkingP!$B43=\"Other Expenditure\",WorkingP!T43,\"\")","v":""},{"$f":"IF(WorkingP!$B43=\"Other Expenditure\",WorkingP!U43,\"\")","v":""},{"$f":"IF(WorkingP!$B43=\"Other Expenditure\",WorkingP!V43,\"\")","v":""},{"$f":"IF(WorkingP!$B43=\"Other Expenditure\",WorkingP!W43,\"\")","v":""},{"$f":"IF(WorkingP!$B43=\"Other Expenditure\",WorkingP!X43,\"\")","v":""},{"$f":"IF(WorkingP!$B43=\"Other Expenditure\",WorkingP!Y43,\"\")","v":""},{"$f":"IF(Descriptions!K44=\"Other Expenditure\",Descriptions!AB44,0)","v":0}]
[{"$f":"IF(Descriptions!K45=\"Other Expenditure\",Descriptions!I45,0)","v":0},{"$f":"IF(WorkingP!$B44=\"Other Expenditure\",WorkingP!D44,\"\")","v":""},{"$f":"IF(WorkingP!$B44=\"Other Expenditure\",WorkingP!E44,\"\")","v":""},{"$f":"IF(WorkingP!$B44=\"Other Expenditure\",WorkingP!F44,\"\")","v":""},{"$f":"IF(WorkingP!$B44=\"Other Expenditure\",WorkingP!G44,\"\")","v":""},{"$f":"IF(WorkingP!$B44=\"Other Expenditure\",WorkingP!H44,\"\")","v":""},{"$f":"IF(WorkingP!$B44=\"Other Expenditure\",WorkingP!I44,\"\")","v":""},{"$f":"IF(WorkingP!$B44=\"Other Expenditure\",WorkingP!J44,\"\")","v":""},{"$f":"IF(WorkingP!$B44=\"Other Expenditure\",WorkingP!K44,\"\")","v":""},{"$f":"IF(WorkingP!$B44=\"Other Expenditure\",WorkingP!L44,\"\")","v":""},{"$f":"IF(WorkingP!$B44=\"Other Expenditure\",WorkingP!M44,\"\")","v":""},{"$f":"IF(WorkingP!$B44=\"Other Expenditure\",WorkingP!N44,\"\")","v":""},{"$f":"IF(WorkingP!$B44=\"Other Expenditure\",WorkingP!O44,\"\")","v":""},{"$f":"IF(WorkingP!$B44=\"Other Expenditure\",WorkingP!P44,\"\")","v":""},{"$f":"IF(WorkingP!$B44=\"Other Expenditure\",WorkingP!Q44,\"\")","v":""},{"$f":"IF(WorkingP!$B44=\"Other Expenditure\",WorkingP!R44,\"\")","v":""},{"$f":"IF(WorkingP!$B44=\"Other Expenditure\",WorkingP!S44,\"\")","v":""},{"$f":"IF(WorkingP!$B44=\"Other Expenditure\",WorkingP!T44,\"\")","v":""},{"$f":"IF(WorkingP!$B44=\"Other Expenditure\",WorkingP!U44,\"\")","v":""},{"$f":"IF(WorkingP!$B44=\"Other Expenditure\",WorkingP!V44,\"\")","v":""},{"$f":"IF(WorkingP!$B44=\"Other Expenditure\",WorkingP!W44,\"\")","v":""},{"$f":"IF(WorkingP!$B44=\"Other Expenditure\",WorkingP!X44,\"\")","v":""},{"$f":"IF(WorkingP!$B44=\"Other Expenditure\",WorkingP!Y44,\"\")","v":""},{"$f":"IF(Descriptions!K45=\"Other Expenditure\",Descriptions!AB45,0)","v":0}]
[{"$f":"IF(Descriptions!K46=\"Other Expenditure\",Descriptions!I46,0)","v":0},{"$f":"IF(WorkingP!$B45=\"Other Expenditure\",WorkingP!D45,\"\")","v":""},{"$f":"IF(WorkingP!$B45=\"Other Expenditure\",WorkingP!E45,\"\")","v":""},{"$f":"IF(WorkingP!$B45=\"Other Expenditure\",WorkingP!F45,\"\")","v":""},{"$f":"IF(WorkingP!$B45=\"Other Expenditure\",WorkingP!G45,\"\")","v":""},{"$f":"IF(WorkingP!$B45=\"Other Expenditure\",WorkingP!H45,\"\")","v":""},{"$f":"IF(WorkingP!$B45=\"Other Expenditure\",WorkingP!I45,\"\")","v":""},{"$f":"IF(WorkingP!$B45=\"Other Expenditure\",WorkingP!J45,\"\")","v":""},{"$f":"IF(WorkingP!$B45=\"Other Expenditure\",WorkingP!K45,\"\")","v":""},{"$f":"IF(WorkingP!$B45=\"Other Expenditure\",WorkingP!L45,\"\")","v":""},{"$f":"IF(WorkingP!$B45=\"Other Expenditure\",WorkingP!M45,\"\")","v":""},{"$f":"IF(WorkingP!$B45=\"Other Expenditure\",WorkingP!N45,\"\")","v":""},{"$f":"IF(WorkingP!$B45=\"Other Expenditure\",WorkingP!O45,\"\")","v":""},{"$f":"IF(WorkingP!$B45=\"Other Expenditure\",WorkingP!P45,\"\")","v":""},{"$f":"IF(WorkingP!$B45=\"Other Expenditure\",WorkingP!Q45,\"\")","v":""},{"$f":"IF(WorkingP!$B45=\"Other Expenditure\",WorkingP!R45,\"\")","v":""},{"$f":"IF(WorkingP!$B45=\"Other Expenditure\",WorkingP!S45,\"\")","v":""},{"$f":"IF(WorkingP!$B45=\"Other Expenditure\",WorkingP!T45,\"\")","v":""},{"$f":"IF(WorkingP!$B45=\"Other Expenditure\",WorkingP!U45,\"\")","v":""},{"$f":"IF(WorkingP!$B45=\"Other Expenditure\",WorkingP!V45,\"\")","v":""},{"$f":"IF(WorkingP!$B45=\"Other Expenditure\",WorkingP!W45,\"\")","v":""},{"$f":"IF(WorkingP!$B45=\"Other Expenditure\",WorkingP!X45,\"\")","v":""},{"$f":"IF(WorkingP!$B45=\"Other Expenditure\",WorkingP!Y45,\"\")","v":""},{"$f":"IF(Descriptions!K46=\"Other Expenditure\",Descriptions!AB46,0)","v":0}]
[{"$f":"IF(Descriptions!K47=\"Other Expenditure\",Descriptions!I47,0)","v":0},{"$f":"IF(WorkingP!$B46=\"Other Expenditure\",WorkingP!D46,\"\")","v":""},{"$f":"IF(WorkingP!$B46=\"Other Expenditure\",WorkingP!E46,\"\")","v":""},{"$f":"IF(WorkingP!$B46=\"Other Expenditure\",WorkingP!F46,\"\")","v":""},{"$f":"IF(WorkingP!$B46=\"Other Expenditure\",WorkingP!G46,\"\")","v":""},{"$f":"IF(WorkingP!$B46=\"Other Expenditure\",WorkingP!H46,\"\")","v":""},{"$f":"IF(WorkingP!$B46=\"Other Expenditure\",WorkingP!I46,\"\")","v":""},{"$f":"IF(WorkingP!$B46=\"Other Expenditure\",WorkingP!J46,\"\")","v":""},{"$f":"IF(WorkingP!$B46=\"Other Expenditure\",WorkingP!K46,\"\")","v":""},{"$f":"IF(WorkingP!$B46=\"Other Expenditure\",WorkingP!L46,\"\")","v":""},{"$f":"IF(WorkingP!$B46=\"Other Expenditure\",WorkingP!M46,\"\")","v":""},{"$f":"IF(WorkingP!$B46=\"Other Expenditure\",WorkingP!N46,\"\")","v":""},{"$f":"IF(WorkingP!$B46=\"Other Expenditure\",WorkingP!O46,\"\")","v":""},{"$f":"IF(WorkingP!$B46=\"Other Expenditure\",WorkingP!P46,\"\")","v":""},{"$f":"IF(WorkingP!$B46=\"Other Expenditure\",WorkingP!Q46,\"\")","v":""},{"$f":"IF(WorkingP!$B46=\"Other Expenditure\",WorkingP!R46,\"\")","v":""},{"$f":"IF(WorkingP!$B46=\"Other Expenditure\",WorkingP!S46,\"\")","v":""},{"$f":"IF(WorkingP!$B46=\"Other Expenditure\",WorkingP!T46,\"\")","v":""},{"$f":"IF(WorkingP!$B46=\"Other Expenditure\",WorkingP!U46,\"\")","v":""},{"$f":"IF(WorkingP!$B46=\"Other Expenditure\",WorkingP!V46,\"\")","v":""},{"$f":"IF(WorkingP!$B46=\"Other Expenditure\",WorkingP!W46,\"\")","v":""},{"$f":"IF(WorkingP!$B46=\"Other Expenditure\",WorkingP!X46,\"\")","v":""},{"$f":"IF(WorkingP!$B46=\"Other Expenditure\",WorkingP!Y46,\"\")","v":""},{"$f":"IF(Descriptions!K47=\"Other Expenditure\",Descriptions!AB47,0)","v":0}]
[{"$f":"IF(Descriptions!K48=\"Other Expenditure\",Descriptions!I48,0)","v":0},{"$f":"IF(WorkingP!$B47=\"Other Expenditure\",WorkingP!D47,\"\")","v":""},{"$f":"IF(WorkingP!$B47=\"Other Expenditure\",WorkingP!E47,\"\")","v":""},{"$f":"IF(WorkingP!$B47=\"Other Expenditure\",WorkingP!F47,\"\")","v":""},{"$f":"IF(WorkingP!$B47=\"Other Expenditure\",WorkingP!G47,\"\")","v":""},{"$f":"IF(WorkingP!$B47=\"Other Expenditure\",WorkingP!H47,\"\")","v":""},{"$f":"IF(WorkingP!$B47=\"Other Expenditure\",WorkingP!I47,\"\")","v":""},{"$f":"IF(WorkingP!$B47=\"Other Expenditure\",WorkingP!J47,\"\")","v":""},{"$f":"IF(WorkingP!$B47=\"Other Expenditure\",WorkingP!K47,\"\")","v":""},{"$f":"IF(WorkingP!$B47=\"Other Expenditure\",WorkingP!L47,\"\")","v":""},{"$f":"IF(WorkingP!$B47=\"Other Expenditure\",WorkingP!M47,\"\")","v":""},{"$f":"IF(WorkingP!$B47=\"Other Expenditure\",WorkingP!N47,\"\")","v":""},{"$f":"IF(WorkingP!$B47=\"Other Expenditure\",WorkingP!O47,\"\")","v":""},{"$f":"IF(WorkingP!$B47=\"Other Expenditure\",WorkingP!P47,\"\")","v":""},{"$f":"IF(WorkingP!$B47=\"Other Expenditure\",WorkingP!Q47,\"\")","v":""},{"$f":"IF(WorkingP!$B47=\"Other Expenditure\",WorkingP!R47,\"\")","v":""},{"$f":"IF(WorkingP!$B47=\"Other Expenditure\",WorkingP!S47,\"\")","v":""},{"$f":"IF(WorkingP!$B47=\"Other Expenditure\",WorkingP!T47,\"\")","v":""},{"$f":"IF(WorkingP!$B47=\"Other Expenditure\",WorkingP!U47,\"\")","v":""},{"$f":"IF(WorkingP!$B47=\"Other Expenditure\",WorkingP!V47,\"\")","v":""},{"$f":"IF(WorkingP!$B47=\"Other Expenditure\",WorkingP!W47,\"\")","v":""},{"$f":"IF(WorkingP!$B47=\"Other Expenditure\",WorkingP!X47,\"\")","v":""},{"$f":"IF(WorkingP!$B47=\"Other Expenditure\",WorkingP!Y47,\"\")","v":""},{"$f":"IF(Descriptions!K48=\"Other Expenditure\",Descriptions!AB48,0)","v":0}]
[{"$f":"IF(Descriptions!K49=\"Other Expenditure\",Descriptions!I49,0)","v":0},{"$f":"IF(WorkingP!$B48=\"Other Expenditure\",WorkingP!D48,\"\")","v":""},{"$f":"IF(WorkingP!$B48=\"Other Expenditure\",WorkingP!E48,\"\")","v":""},{"$f":"IF(WorkingP!$B48=\"Other Expenditure\",WorkingP!F48,\"\")","v":""},{"$f":"IF(WorkingP!$B48=\"Other Expenditure\",WorkingP!G48,\"\")","v":""},{"$f":"IF(WorkingP!$B48=\"Other Expenditure\",WorkingP!H48,\"\")","v":""},{"$f":"IF(WorkingP!$B48=\"Other Expenditure\",WorkingP!I48,\"\")","v":""},{"$f":"IF(WorkingP!$B48=\"Other Expenditure\",WorkingP!J48,\"\")","v":""},{"$f":"IF(WorkingP!$B48=\"Other Expenditure\",WorkingP!K48,\"\")","v":""},{"$f":"IF(WorkingP!$B48=\"Other Expenditure\",WorkingP!L48,\"\")","v":""},{"$f":"IF(WorkingP!$B48=\"Other Expenditure\",WorkingP!M48,\"\")","v":""},{"$f":"IF(WorkingP!$B48=\"Other Expenditure\",WorkingP!N48,\"\")","v":""},{"$f":"IF(WorkingP!$B48=\"Other Expenditure\",WorkingP!O48,\"\")","v":""},{"$f":"IF(WorkingP!$B48=\"Other Expenditure\",WorkingP!P48,\"\")","v":""},{"$f":"IF(WorkingP!$B48=\"Other Expenditure\",WorkingP!Q48,\"\")","v":""},{"$f":"IF(WorkingP!$B48=\"Other Expenditure\",WorkingP!R48,\"\")","v":""},{"$f":"IF(WorkingP!$B48=\"Other Expenditure\",WorkingP!S48,\"\")","v":""},{"$f":"IF(WorkingP!$B48=\"Other Expenditure\",WorkingP!T48,\"\")","v":""},{"$f":"IF(WorkingP!$B48=\"Other Expenditure\",WorkingP!U48,\"\")","v":""},{"$f":"IF(WorkingP!$B48=\"Other Expenditure\",WorkingP!V48,\"\")","v":""},{"$f":"IF(WorkingP!$B48=\"Other Expenditure\",WorkingP!W48,\"\")","v":""},{"$f":"IF(WorkingP!$B48=\"Other Expenditure\",WorkingP!X48,\"\")","v":""},{"$f":"IF(WorkingP!$B48=\"Other Expenditure\",WorkingP!Y48,\"\")","v":""},{"$f":"IF(Descriptions!K49=\"Other Expenditure\",Descriptions!AB49,0)","v":0}]
[{"$f":"IF(Descriptions!K50=\"Other Expenditure\",Descriptions!I50,0)","v":0},{"$f":"IF(WorkingP!$B49=\"Other Expenditure\",WorkingP!D49,\"\")","v":""},{"$f":"IF(WorkingP!$B49=\"Other Expenditure\",WorkingP!E49,\"\")","v":""},{"$f":"IF(WorkingP!$B49=\"Other Expenditure\",WorkingP!F49,\"\")","v":""},{"$f":"IF(WorkingP!$B49=\"Other Expenditure\",WorkingP!G49,\"\")","v":""},{"$f":"IF(WorkingP!$B49=\"Other Expenditure\",WorkingP!H49,\"\")","v":""},{"$f":"IF(WorkingP!$B49=\"Other Expenditure\",WorkingP!I49,\"\")","v":""},{"$f":"IF(WorkingP!$B49=\"Other Expenditure\",WorkingP!J49,\"\")","v":""},{"$f":"IF(WorkingP!$B49=\"Other Expenditure\",WorkingP!K49,\"\")","v":""},{"$f":"IF(WorkingP!$B49=\"Other Expenditure\",WorkingP!L49,\"\")","v":""},{"$f":"IF(WorkingP!$B49=\"Other Expenditure\",WorkingP!M49,\"\")","v":""},{"$f":"IF(WorkingP!$B49=\"Other Expenditure\",WorkingP!N49,\"\")","v":""},{"$f":"IF(WorkingP!$B49=\"Other Expenditure\",WorkingP!O49,\"\")","v":""},{"$f":"IF(WorkingP!$B49=\"Other Expenditure\",WorkingP!P49,\"\")","v":""},{"$f":"IF(WorkingP!$B49=\"Other Expenditure\",WorkingP!Q49,\"\")","v":""},{"$f":"IF(WorkingP!$B49=\"Other Expenditure\",WorkingP!R49,\"\")","v":""},{"$f":"IF(WorkingP!$B49=\"Other Expenditure\",WorkingP!S49,\"\")","v":""},{"$f":"IF(WorkingP!$B49=\"Other Expenditure\",WorkingP!T49,\"\")","v":""},{"$f":"IF(WorkingP!$B49=\"Other Expenditure\",WorkingP!U49,\"\")","v":""},{"$f":"IF(WorkingP!$B49=\"Other Expenditure\",WorkingP!V49,\"\")","v":""},{"$f":"IF(WorkingP!$B49=\"Other Expenditure\",WorkingP!W49,\"\")","v":""},{"$f":"IF(WorkingP!$B49=\"Other Expenditure\",WorkingP!X49,\"\")","v":""},{"$f":"IF(WorkingP!$B49=\"Other Expenditure\",WorkingP!Y49,\"\")","v":""},{"$f":"IF(Descriptions!K50=\"Other Expenditure\",Descriptions!AB50,0)","v":0}]
[{"$f":"IF(Descriptions!K51=\"Other Expenditure\",Descriptions!I51,0)","v":0},{"$f":"IF(WorkingP!$B50=\"Other Expenditure\",WorkingP!D50,\"\")","v":""},{"$f":"IF(WorkingP!$B50=\"Other Expenditure\",WorkingP!E50,\"\")","v":""},{"$f":"IF(WorkingP!$B50=\"Other Expenditure\",WorkingP!F50,\"\")","v":""},{"$f":"IF(WorkingP!$B50=\"Other Expenditure\",WorkingP!G50,\"\")","v":""},{"$f":"IF(WorkingP!$B50=\"Other Expenditure\",WorkingP!H50,\"\")","v":""},{"$f":"IF(WorkingP!$B50=\"Other Expenditure\",WorkingP!I50,\"\")","v":""},{"$f":"IF(WorkingP!$B50=\"Other Expenditure\",WorkingP!J50,\"\")","v":""},{"$f":"IF(WorkingP!$B50=\"Other Expenditure\",WorkingP!K50,\"\")","v":""},{"$f":"IF(WorkingP!$B50=\"Other Expenditure\",WorkingP!L50,\"\")","v":""},{"$f":"IF(WorkingP!$B50=\"Other Expenditure\",WorkingP!M50,\"\")","v":""},{"$f":"IF(WorkingP!$B50=\"Other Expenditure\",WorkingP!N50,\"\")","v":""},{"$f":"IF(WorkingP!$B50=\"Other Expenditure\",WorkingP!O50,\"\")","v":""},{"$f":"IF(WorkingP!$B50=\"Other Expenditure\",WorkingP!P50,\"\")","v":""},{"$f":"IF(WorkingP!$B50=\"Other Expenditure\",WorkingP!Q50,\"\")","v":""},{"$f":"IF(WorkingP!$B50=\"Other Expenditure\",WorkingP!R50,\"\")","v":""},{"$f":"IF(WorkingP!$B50=\"Other Expenditure\",WorkingP!S50,\"\")","v":""},{"$f":"IF(WorkingP!$B50=\"Other Expenditure\",WorkingP!T50,\"\")","v":""},{"$f":"IF(WorkingP!$B50=\"Other Expenditure\",WorkingP!U50,\"\")","v":""},{"$f":"IF(WorkingP!$B50=\"Other Expenditure\",WorkingP!V50,\"\")","v":""},{"$f":"IF(WorkingP!$B50=\"Other Expenditure\",WorkingP!W50,\"\")","v":""},{"$f":"IF(WorkingP!$B50=\"Other Expenditure\",WorkingP!X50,\"\")","v":""},{"$f":"IF(WorkingP!$B50=\"Other Expenditure\",WorkingP!Y50,\"\")","v":""},{"$f":"IF(Descriptions!K51=\"Other Expenditure\",Descriptions!AB51,0)","v":0}]
[{"$f":"IF(Descriptions!K52=\"Other Expenditure\",Descriptions!I52,0)","v":0},{"$f":"IF(WorkingP!$B51=\"Other Expenditure\",WorkingP!D51,\"\")","v":""},{"$f":"IF(WorkingP!$B51=\"Other Expenditure\",WorkingP!E51,\"\")","v":""},{"$f":"IF(WorkingP!$B51=\"Other Expenditure\",WorkingP!F51,\"\")","v":""},{"$f":"IF(WorkingP!$B51=\"Other Expenditure\",WorkingP!G51,\"\")","v":""},{"$f":"IF(WorkingP!$B51=\"Other Expenditure\",WorkingP!H51,\"\")","v":""},{"$f":"IF(WorkingP!$B51=\"Other Expenditure\",WorkingP!I51,\"\")","v":""},{"$f":"IF(WorkingP!$B51=\"Other Expenditure\",WorkingP!J51,\"\")","v":""},{"$f":"IF(WorkingP!$B51=\"Other Expenditure\",WorkingP!K51,\"\")","v":""},{"$f":"IF(WorkingP!$B51=\"Other Expenditure\",WorkingP!L51,\"\")","v":""},{"$f":"IF(WorkingP!$B51=\"Other Expenditure\",WorkingP!M51,\"\")","v":""},{"$f":"IF(WorkingP!$B51=\"Other Expenditure\",WorkingP!N51,\"\")","v":""},{"$f":"IF(WorkingP!$B51=\"Other Expenditure\",WorkingP!O51,\"\")","v":""},{"$f":"IF(WorkingP!$B51=\"Other Expenditure\",WorkingP!P51,\"\")","v":""},{"$f":"IF(WorkingP!$B51=\"Other Expenditure\",WorkingP!Q51,\"\")","v":""},{"$f":"IF(WorkingP!$B51=\"Other Expenditure\",WorkingP!R51,\"\")","v":""},{"$f":"IF(WorkingP!$B51=\"Other Expenditure\",WorkingP!S51,\"\")","v":""},{"$f":"IF(WorkingP!$B51=\"Other Expenditure\",WorkingP!T51,\"\")","v":""},{"$f":"IF(WorkingP!$B51=\"Other Expenditure\",WorkingP!U51,\"\")","v":""},{"$f":"IF(WorkingP!$B51=\"Other Expenditure\",WorkingP!V51,\"\")","v":""},{"$f":"IF(WorkingP!$B51=\"Other Expenditure\",WorkingP!W51,\"\")","v":""},{"$f":"IF(WorkingP!$B51=\"Other Expenditure\",WorkingP!X51,\"\")","v":""},{"$f":"IF(WorkingP!$B51=\"Other Expenditure\",WorkingP!Y51,\"\")","v":""},{"$f":"IF(Descriptions!K52=\"Other Expenditure\",Descriptions!AB52,0)","v":0}]
[{"$f":"IF(Descriptions!K53=\"Other Expenditure\",Descriptions!I53,0)","v":0},{"$f":"IF(WorkingP!$B52=\"Other Expenditure\",WorkingP!D52,\"\")","v":""},{"$f":"IF(WorkingP!$B52=\"Other Expenditure\",WorkingP!E52,\"\")","v":""},{"$f":"IF(WorkingP!$B52=\"Other Expenditure\",WorkingP!F52,\"\")","v":""},{"$f":"IF(WorkingP!$B52=\"Other Expenditure\",WorkingP!G52,\"\")","v":""},{"$f":"IF(WorkingP!$B52=\"Other Expenditure\",WorkingP!H52,\"\")","v":""},{"$f":"IF(WorkingP!$B52=\"Other Expenditure\",WorkingP!I52,\"\")","v":""},{"$f":"IF(WorkingP!$B52=\"Other Expenditure\",WorkingP!J52,\"\")","v":""},{"$f":"IF(WorkingP!$B52=\"Other Expenditure\",WorkingP!K52,\"\")","v":""},{"$f":"IF(WorkingP!$B52=\"Other Expenditure\",WorkingP!L52,\"\")","v":""},{"$f":"IF(WorkingP!$B52=\"Other Expenditure\",WorkingP!M52,\"\")","v":""},{"$f":"IF(WorkingP!$B52=\"Other Expenditure\",WorkingP!N52,\"\")","v":""},{"$f":"IF(WorkingP!$B52=\"Other Expenditure\",WorkingP!O52,\"\")","v":""},{"$f":"IF(WorkingP!$B52=\"Other Expenditure\",WorkingP!P52,\"\")","v":""},{"$f":"IF(WorkingP!$B52=\"Other Expenditure\",WorkingP!Q52,\"\")","v":""},{"$f":"IF(WorkingP!$B52=\"Other Expenditure\",WorkingP!R52,\"\")","v":""},{"$f":"IF(WorkingP!$B52=\"Other Expenditure\",WorkingP!S52,\"\")","v":""},{"$f":"IF(WorkingP!$B52=\"Other Expenditure\",WorkingP!T52,\"\")","v":""},{"$f":"IF(WorkingP!$B52=\"Other Expenditure\",WorkingP!U52,\"\")","v":""},{"$f":"IF(WorkingP!$B52=\"Other Expenditure\",WorkingP!V52,\"\")","v":""},{"$f":"IF(WorkingP!$B52=\"Other Expenditure\",WorkingP!W52,\"\")","v":""},{"$f":"IF(WorkingP!$B52=\"Other Expenditure\",WorkingP!X52,\"\")","v":""},{"$f":"IF(WorkingP!$B52=\"Other Expenditure\",WorkingP!Y52,\"\")","v":""},{"$f":"IF(Descriptions!K53=\"Other Expenditure\",Descriptions!AB53,0)","v":0}]
[{"$f":"IF(Descriptions!K54=\"Other Expenditure\",Descriptions!I54,0)","v":0},{"$f":"IF(WorkingP!$B53=\"Other Expenditure\",WorkingP!D53,\"\")","v":""},{"$f":"IF(WorkingP!$B53=\"Other Expenditure\",WorkingP!E53,\"\")","v":""},{"$f":"IF(WorkingP!$B53=\"Other Expenditure\",WorkingP!F53,\"\")","v":""},{"$f":"IF(WorkingP!$B53=\"Other Expenditure\",WorkingP!G53,\"\")","v":""},{"$f":"IF(WorkingP!$B53=\"Other Expenditure\",WorkingP!H53,\"\")","v":""},{"$f":"IF(WorkingP!$B53=\"Other Expenditure\",WorkingP!I53,\"\")","v":""},{"$f":"IF(WorkingP!$B53=\"Other Expenditure\",WorkingP!J53,\"\")","v":""},{"$f":"IF(WorkingP!$B53=\"Other Expenditure\",WorkingP!K53,\"\")","v":""},{"$f":"IF(WorkingP!$B53=\"Other Expenditure\",WorkingP!L53,\"\")","v":""},{"$f":"IF(WorkingP!$B53=\"Other Expenditure\",WorkingP!M53,\"\")","v":""},{"$f":"IF(WorkingP!$B53=\"Other Expenditure\",WorkingP!N53,\"\")","v":""},{"$f":"IF(WorkingP!$B53=\"Other Expenditure\",WorkingP!O53,\"\")","v":""},{"$f":"IF(WorkingP!$B53=\"Other Expenditure\",WorkingP!P53,\"\")","v":""},{"$f":"IF(WorkingP!$B53=\"Other Expenditure\",WorkingP!Q53,\"\")","v":""},{"$f":"IF(WorkingP!$B53=\"Other Expenditure\",WorkingP!R53,\"\")","v":""},{"$f":"IF(WorkingP!$B53=\"Other Expenditure\",WorkingP!S53,\"\")","v":""},{"$f":"IF(WorkingP!$B53=\"Other Expenditure\",WorkingP!T53,\"\")","v":""},{"$f":"IF(WorkingP!$B53=\"Other Expenditure\",WorkingP!U53,\"\")","v":""},{"$f":"IF(WorkingP!$B53=\"Other Expenditure\",WorkingP!V53,\"\")","v":""},{"$f":"IF(WorkingP!$B53=\"Other Expenditure\",WorkingP!W53,\"\")","v":""},{"$f":"IF(WorkingP!$B53=\"Other Expenditure\",WorkingP!X53,\"\")","v":""},{"$f":"IF(WorkingP!$B53=\"Other Expenditure\",WorkingP!Y53,\"\")","v":""},{"$f":"IF(Descriptions!K54=\"Other Expenditure\",Descriptions!AB54,0)","v":0}]
[{"$f":"IF(Descriptions!K55=\"Other Expenditure\",Descriptions!I55,0)","v":0},{"$f":"IF(WorkingP!$B54=\"Other Expenditure\",WorkingP!D54,\"\")","v":""},{"$f":"IF(WorkingP!$B54=\"Other Expenditure\",WorkingP!E54,\"\")","v":""},{"$f":"IF(WorkingP!$B54=\"Other Expenditure\",WorkingP!F54,\"\")","v":""},{"$f":"IF(WorkingP!$B54=\"Other Expenditure\",WorkingP!G54,\"\")","v":""},{"$f":"IF(WorkingP!$B54=\"Other Expenditure\",WorkingP!H54,\"\")","v":""},{"$f":"IF(WorkingP!$B54=\"Other Expenditure\",WorkingP!I54,\"\")","v":""},{"$f":"IF(WorkingP!$B54=\"Other Expenditure\",WorkingP!J54,\"\")","v":""},{"$f":"IF(WorkingP!$B54=\"Other Expenditure\",WorkingP!K54,\"\")","v":""},{"$f":"IF(WorkingP!$B54=\"Other Expenditure\",WorkingP!L54,\"\")","v":""},{"$f":"IF(WorkingP!$B54=\"Other Expenditure\",WorkingP!M54,\"\")","v":""},{"$f":"IF(WorkingP!$B54=\"Other Expenditure\",WorkingP!N54,\"\")","v":""},{"$f":"IF(WorkingP!$B54=\"Other Expenditure\",WorkingP!O54,\"\")","v":""},{"$f":"IF(WorkingP!$B54=\"Other Expenditure\",WorkingP!P54,\"\")","v":""},{"$f":"IF(WorkingP!$B54=\"Other Expenditure\",WorkingP!Q54,\"\")","v":""},{"$f":"IF(WorkingP!$B54=\"Other Expenditure\",WorkingP!R54,\"\")","v":""},{"$f":"IF(WorkingP!$B54=\"Other Expenditure\",WorkingP!S54,\"\")","v":""},{"$f":"IF(WorkingP!$B54=\"Other Expenditure\",WorkingP!T54,\"\")","v":""},{"$f":"IF(WorkingP!$B54=\"Other Expenditure\",WorkingP!U54,\"\")","v":""},{"$f":"IF(WorkingP!$B54=\"Other Expenditure\",WorkingP!V54,\"\")","v":""},{"$f":"IF(WorkingP!$B54=\"Other Expenditure\",WorkingP!W54,\"\")","v":""},{"$f":"IF(WorkingP!$B54=\"Other Expenditure\",WorkingP!X54,\"\")","v":""},{"$f":"IF(WorkingP!$B54=\"Other Expenditure\",WorkingP!Y54,\"\")","v":""},{"$f":"IF(Descriptions!K55=\"Other Expenditure\",Descriptions!AB55,0)","v":0}]
[{"$f":"IF(Descriptions!K56=\"Other Expenditure\",Descriptions!I56,0)","v":0},{"$f":"IF(WorkingP!$B55=\"Other Expenditure\",WorkingP!D55,\"\")","v":""},{"$f":"IF(WorkingP!$B55=\"Other Expenditure\",WorkingP!E55,\"\")","v":""},{"$f":"IF(WorkingP!$B55=\"Other Expenditure\",WorkingP!F55,\"\")","v":""},{"$f":"IF(WorkingP!$B55=\"Other Expenditure\",WorkingP!G55,\"\")","v":""},{"$f":"IF(WorkingP!$B55=\"Other Expenditure\",WorkingP!H55,\"\")","v":""},{"$f":"IF(WorkingP!$B55=\"Other Expenditure\",WorkingP!I55,\"\")","v":""},{"$f":"IF(WorkingP!$B55=\"Other Expenditure\",WorkingP!J55,\"\")","v":""},{"$f":"IF(WorkingP!$B55=\"Other Expenditure\",WorkingP!K55,\"\")","v":""},{"$f":"IF(WorkingP!$B55=\"Other Expenditure\",WorkingP!L55,\"\")","v":""},{"$f":"IF(WorkingP!$B55=\"Other Expenditure\",WorkingP!M55,\"\")","v":""},{"$f":"IF(WorkingP!$B55=\"Other Expenditure\",WorkingP!N55,\"\")","v":""},{"$f":"IF(WorkingP!$B55=\"Other Expenditure\",WorkingP!O55,\"\")","v":""},{"$f":"IF(WorkingP!$B55=\"Other Expenditure\",WorkingP!P55,\"\")","v":""},{"$f":"IF(WorkingP!$B55=\"Other Expenditure\",WorkingP!Q55,\"\")","v":""},{"$f":"IF(WorkingP!$B55=\"Other Expenditure\",WorkingP!R55,\"\")","v":""},{"$f":"IF(WorkingP!$B55=\"Other Expenditure\",WorkingP!S55,\"\")","v":""},{"$f":"IF(WorkingP!$B55=\"Other Expenditure\",WorkingP!T55,\"\")","v":""},{"$f":"IF(WorkingP!$B55=\"Other Expenditure\",WorkingP!U55,\"\")","v":""},{"$f":"IF(WorkingP!$B55=\"Other Expenditure\",WorkingP!V55,\"\")","v":""},{"$f":"IF(WorkingP!$B55=\"Other Expenditure\",WorkingP!W55,\"\")","v":""},{"$f":"IF(WorkingP!$B55=\"Other Expenditure\",WorkingP!X55,\"\")","v":""},{"$f":"IF(WorkingP!$B55=\"Other Expenditure\",WorkingP!Y55,\"\")","v":""},{"$f":"IF(Descriptions!K56=\"Other Expenditure\",Descriptions!AB56,0)","v":0}]
[{"$f":"IF(Descriptions!K57=\"Other Expenditure\",Descriptions!I57,0)","v":0},{"$f":"IF(WorkingP!$B56=\"Other Expenditure\",WorkingP!D56,\"\")","v":""},{"$f":"IF(WorkingP!$B56=\"Other Expenditure\",WorkingP!E56,\"\")","v":""},{"$f":"IF(WorkingP!$B56=\"Other Expenditure\",WorkingP!F56,\"\")","v":""},{"$f":"IF(WorkingP!$B56=\"Other Expenditure\",WorkingP!G56,\"\")","v":""},{"$f":"IF(WorkingP!$B56=\"Other Expenditure\",WorkingP!H56,\"\")","v":""},{"$f":"IF(WorkingP!$B56=\"Other Expenditure\",WorkingP!I56,\"\")","v":""},{"$f":"IF(WorkingP!$B56=\"Other Expenditure\",WorkingP!J56,\"\")","v":""},{"$f":"IF(WorkingP!$B56=\"Other Expenditure\",WorkingP!K56,\"\")","v":""},{"$f":"IF(WorkingP!$B56=\"Other Expenditure\",WorkingP!L56,\"\")","v":""},{"$f":"IF(WorkingP!$B56=\"Other Expenditure\",WorkingP!M56,\"\")","v":""},{"$f":"IF(WorkingP!$B56=\"Other Expenditure\",WorkingP!N56,\"\")","v":""},{"$f":"IF(WorkingP!$B56=\"Other Expenditure\",WorkingP!O56,\"\")","v":""},{"$f":"IF(WorkingP!$B56=\"Other Expenditure\",WorkingP!P56,\"\")","v":""},{"$f":"IF(WorkingP!$B56=\"Other Expenditure\",WorkingP!Q56,\"\")","v":""},{"$f":"IF(WorkingP!$B56=\"Other Expenditure\",WorkingP!R56,\"\")","v":""},{"$f":"IF(WorkingP!$B56=\"Other Expenditure\",WorkingP!S56,\"\")","v":""},{"$f":"IF(WorkingP!$B56=\"Other Expenditure\",WorkingP!T56,\"\")","v":""},{"$f":"IF(WorkingP!$B56=\"Other Expenditure\",WorkingP!U56,\"\")","v":""},{"$f":"IF(WorkingP!$B56=\"Other Expenditure\",WorkingP!V56,\"\")","v":""},{"$f":"IF(WorkingP!$B56=\"Other Expenditure\",WorkingP!W56,\"\")","v":""},{"$f":"IF(WorkingP!$B56=\"Other Expenditure\",WorkingP!X56,\"\")","v":""},{"$f":"IF(WorkingP!$B56=\"Other Expenditure\",WorkingP!Y56,\"\")","v":""},{"$f":"IF(Descriptions!K57=\"Other Expenditure\",Descriptions!AB57,0)","v":0}]
[{"$f":"IF(Descriptions!K58=\"Other Expenditure\",Descriptions!I58,0)","v":0},{"$f":"IF(WorkingP!$B57=\"Other Expenditure\",WorkingP!D57,\"\")","v":""},{"$f":"IF(WorkingP!$B57=\"Other Expenditure\",WorkingP!E57,\"\")","v":""},{"$f":"IF(WorkingP!$B57=\"Other Expenditure\",WorkingP!F57,\"\")","v":""},{"$f":"IF(WorkingP!$B57=\"Other Expenditure\",WorkingP!G57,\"\")","v":""},{"$f":"IF(WorkingP!$B57=\"Other Expenditure\",WorkingP!H57,\"\")","v":""},{"$f":"IF(WorkingP!$B57=\"Other Expenditure\",WorkingP!I57,\"\")","v":""},{"$f":"IF(WorkingP!$B57=\"Other Expenditure\",WorkingP!J57,\"\")","v":""},{"$f":"IF(WorkingP!$B57=\"Other Expenditure\",WorkingP!K57,\"\")","v":""},{"$f":"IF(WorkingP!$B57=\"Other Expenditure\",WorkingP!L57,\"\")","v":""},{"$f":"IF(WorkingP!$B57=\"Other Expenditure\",WorkingP!M57,\"\")","v":""},{"$f":"IF(WorkingP!$B57=\"Other Expenditure\",WorkingP!N57,\"\")","v":""},{"$f":"IF(WorkingP!$B57=\"Other Expenditure\",WorkingP!O57,\"\")","v":""},{"$f":"IF(WorkingP!$B57=\"Other Expenditure\",WorkingP!P57,\"\")","v":""},{"$f":"IF(WorkingP!$B57=\"Other Expenditure\",WorkingP!Q57,\"\")","v":""},{"$f":"IF(WorkingP!$B57=\"Other Expenditure\",WorkingP!R57,\"\")","v":""},{"$f":"IF(WorkingP!$B57=\"Other Expenditure\",WorkingP!S57,\"\")","v":""},{"$f":"IF(WorkingP!$B57=\"Other Expenditure\",WorkingP!T57,\"\")","v":""},{"$f":"IF(WorkingP!$B57=\"Other Expenditure\",WorkingP!U57,\"\")","v":""},{"$f":"IF(WorkingP!$B57=\"Other Expenditure\",WorkingP!V57,\"\")","v":""},{"$f":"IF(WorkingP!$B57=\"Other Expenditure\",WorkingP!W57,\"\")","v":""},{"$f":"IF(WorkingP!$B57=\"Other Expenditure\",WorkingP!X57,\"\")","v":""},{"$f":"IF(WorkingP!$B57=\"Other Expenditure\",WorkingP!Y57,\"\")","v":""},{"$f":"IF(Descriptions!K58=\"Other Expenditure\",Descriptions!AB58,0)","v":0}]
[{"$f":"IF(Descriptions!K59=\"Other Expenditure\",Descriptions!I59,0)","v":0},{"$f":"IF(WorkingP!$B58=\"Other Expenditure\",WorkingP!D58,\"\")","v":""},{"$f":"IF(WorkingP!$B58=\"Other Expenditure\",WorkingP!E58,\"\")","v":""},{"$f":"IF(WorkingP!$B58=\"Other Expenditure\",WorkingP!F58,\"\")","v":""},{"$f":"IF(WorkingP!$B58=\"Other Expenditure\",WorkingP!G58,\"\")","v":""},{"$f":"IF(WorkingP!$B58=\"Other Expenditure\",WorkingP!H58,\"\")","v":""},{"$f":"IF(WorkingP!$B58=\"Other Expenditure\",WorkingP!I58,\"\")","v":""},{"$f":"IF(WorkingP!$B58=\"Other Expenditure\",WorkingP!J58,\"\")","v":""},{"$f":"IF(WorkingP!$B58=\"Other Expenditure\",WorkingP!K58,\"\")","v":""},{"$f":"IF(WorkingP!$B58=\"Other Expenditure\",WorkingP!L58,\"\")","v":""},{"$f":"IF(WorkingP!$B58=\"Other Expenditure\",WorkingP!M58,\"\")","v":""},{"$f":"IF(WorkingP!$B58=\"Other Expenditure\",WorkingP!N58,\"\")","v":""},{"$f":"IF(WorkingP!$B58=\"Other Expenditure\",WorkingP!O58,\"\")","v":""},{"$f":"IF(WorkingP!$B58=\"Other Expenditure\",WorkingP!P58,\"\")","v":""},{"$f":"IF(WorkingP!$B58=\"Other Expenditure\",WorkingP!Q58,\"\")","v":""},{"$f":"IF(WorkingP!$B58=\"Other Expenditure\",WorkingP!R58,\"\")","v":""},{"$f":"IF(WorkingP!$B58=\"Other Expenditure\",WorkingP!S58,\"\")","v":""},{"$f":"IF(WorkingP!$B58=\"Other Expenditure\",WorkingP!T58,\"\")","v":""},{"$f":"IF(WorkingP!$B58=\"Other Expenditure\",WorkingP!U58,\"\")","v":""},{"$f":"IF(WorkingP!$B58=\"Other Expenditure\",WorkingP!V58,\"\")","v":""},{"$f":"IF(WorkingP!$B58=\"Other Expenditure\",WorkingP!W58,\"\")","v":""},{"$f":"IF(WorkingP!$B58=\"Other Expenditure\",WorkingP!X58,\"\")","v":""},{"$f":"IF(WorkingP!$B58=\"Other Expenditure\",WorkingP!Y58,\"\")","v":""},{"$f":"IF(Descriptions!K59=\"Other Expenditure\",Descriptions!AB59,0)","v":0}]
[{"$f":"IF(Descriptions!K60=\"Other Expenditure\",Descriptions!I60,0)","v":0},{"$f":"IF(WorkingP!$B59=\"Other Expenditure\",WorkingP!D59,\"\")","v":""},{"$f":"IF(WorkingP!$B59=\"Other Expenditure\",WorkingP!E59,\"\")","v":""},{"$f":"IF(WorkingP!$B59=\"Other Expenditure\",WorkingP!F59,\"\")","v":""},{"$f":"IF(WorkingP!$B59=\"Other Expenditure\",WorkingP!G59,\"\")","v":""},{"$f":"IF(WorkingP!$B59=\"Other Expenditure\",WorkingP!H59,\"\")","v":""},{"$f":"IF(WorkingP!$B59=\"Other Expenditure\",WorkingP!I59,\"\")","v":""},{"$f":"IF(WorkingP!$B59=\"Other Expenditure\",WorkingP!J59,\"\")","v":""},{"$f":"IF(WorkingP!$B59=\"Other Expenditure\",WorkingP!K59,\"\")","v":""},{"$f":"IF(WorkingP!$B59=\"Other Expenditure\",WorkingP!L59,\"\")","v":""},{"$f":"IF(WorkingP!$B59=\"Other Expenditure\",WorkingP!M59,\"\")","v":""},{"$f":"IF(WorkingP!$B59=\"Other Expenditure\",WorkingP!N59,\"\")","v":""},{"$f":"IF(WorkingP!$B59=\"Other Expenditure\",WorkingP!O59,\"\")","v":""},{"$f":"IF(WorkingP!$B59=\"Other Expenditure\",WorkingP!P59,\"\")","v":""},{"$f":"IF(WorkingP!$B59=\"Other Expenditure\",WorkingP!Q59,\"\")","v":""},{"$f":"IF(WorkingP!$B59=\"Other Expenditure\",WorkingP!R59,\"\")","v":""},{"$f":"IF(WorkingP!$B59=\"Other Expenditure\",WorkingP!S59,\"\")","v":""},{"$f":"IF(WorkingP!$B59=\"Other Expenditure\",WorkingP!T59,\"\")","v":""},{"$f":"IF(WorkingP!$B59=\"Other Expenditure\",WorkingP!U59,\"\")","v":""},{"$f":"IF(WorkingP!$B59=\"Other Expenditure\",WorkingP!V59,\"\")","v":""},{"$f":"IF(WorkingP!$B59=\"Other Expenditure\",WorkingP!W59,\"\")","v":""},{"$f":"IF(WorkingP!$B59=\"Other Expenditure\",WorkingP!X59,\"\")","v":""},{"$f":"IF(WorkingP!$B59=\"Other Expenditure\",WorkingP!Y59,\"\")","v":""},{"$f":"IF(Descriptions!K60=\"Other Expenditure\",Descriptions!AB60,0)","v":0}]
[{"$f":"IF(Descriptions!K61=\"Other Expenditure\",Descriptions!I61,0)","v":0},{"$f":"IF(WorkingP!$B60=\"Other Expenditure\",WorkingP!D60,\"\")","v":""},{"$f":"IF(WorkingP!$B60=\"Other Expenditure\",WorkingP!E60,\"\")","v":""},{"$f":"IF(WorkingP!$B60=\"Other Expenditure\",WorkingP!F60,\"\")","v":""},{"$f":"IF(WorkingP!$B60=\"Other Expenditure\",WorkingP!G60,\"\")","v":""},{"$f":"IF(WorkingP!$B60=\"Other Expenditure\",WorkingP!H60,\"\")","v":""},{"$f":"IF(WorkingP!$B60=\"Other Expenditure\",WorkingP!I60,\"\")","v":""},{"$f":"IF(WorkingP!$B60=\"Other Expenditure\",WorkingP!J60,\"\")","v":""},{"$f":"IF(WorkingP!$B60=\"Other Expenditure\",WorkingP!K60,\"\")","v":""},{"$f":"IF(WorkingP!$B60=\"Other Expenditure\",WorkingP!L60,\"\")","v":""},{"$f":"IF(WorkingP!$B60=\"Other Expenditure\",WorkingP!M60,\"\")","v":""},{"$f":"IF(WorkingP!$B60=\"Other Expenditure\",WorkingP!N60,\"\")","v":""},{"$f":"IF(WorkingP!$B60=\"Other Expenditure\",WorkingP!O60,\"\")","v":""},{"$f":"IF(WorkingP!$B60=\"Other Expenditure\",WorkingP!P60,\"\")","v":""},{"$f":"IF(WorkingP!$B60=\"Other Expenditure\",WorkingP!Q60,\"\")","v":""},{"$f":"IF(WorkingP!$B60=\"Other Expenditure\",WorkingP!R60,\"\")","v":""},{"$f":"IF(WorkingP!$B60=\"Other Expenditure\",WorkingP!S60,\"\")","v":""},{"$f":"IF(WorkingP!$B60=\"Other Expenditure\",WorkingP!T60,\"\")","v":""},{"$f":"IF(WorkingP!$B60=\"Other Expenditure\",WorkingP!U60,\"\")","v":""},{"$f":"IF(WorkingP!$B60=\"Other Expenditure\",WorkingP!V60,\"\")","v":""},{"$f":"IF(WorkingP!$B60=\"Other Expenditure\",WorkingP!W60,\"\")","v":""},{"$f":"IF(WorkingP!$B60=\"Other Expenditure\",WorkingP!X60,\"\")","v":""},{"$f":"IF(WorkingP!$B60=\"Other Expenditure\",WorkingP!Y60,\"\")","v":""},{"$f":"IF(Descriptions!K61=\"Other Expenditure\",Descriptions!AB61,0)","v":0}]
[{"$f":"IF(Descriptions!K62=\"Other Expenditure\",Descriptions!I62,0)","v":0},{"$f":"IF(WorkingP!$B61=\"Other Expenditure\",WorkingP!D61,\"\")","v":""},{"$f":"IF(WorkingP!$B61=\"Other Expenditure\",WorkingP!E61,\"\")","v":""},{"$f":"IF(WorkingP!$B61=\"Other Expenditure\",WorkingP!F61,\"\")","v":""},{"$f":"IF(WorkingP!$B61=\"Other Expenditure\",WorkingP!G61,\"\")","v":""},{"$f":"IF(WorkingP!$B61=\"Other Expenditure\",WorkingP!H61,\"\")","v":""},{"$f":"IF(WorkingP!$B61=\"Other Expenditure\",WorkingP!I61,\"\")","v":""},{"$f":"IF(WorkingP!$B61=\"Other Expenditure\",WorkingP!J61,\"\")","v":""},{"$f":"IF(WorkingP!$B61=\"Other Expenditure\",WorkingP!K61,\"\")","v":""},{"$f":"IF(WorkingP!$B61=\"Other Expenditure\",WorkingP!L61,\"\")","v":""},{"$f":"IF(WorkingP!$B61=\"Other Expenditure\",WorkingP!M61,\"\")","v":""},{"$f":"IF(WorkingP!$B61=\"Other Expenditure\",WorkingP!N61,\"\")","v":""},{"$f":"IF(WorkingP!$B61=\"Other Expenditure\",WorkingP!O61,\"\")","v":""},{"$f":"IF(WorkingP!$B61=\"Other Expenditure\",WorkingP!P61,\"\")","v":""},{"$f":"IF(WorkingP!$B61=\"Other Expenditure\",WorkingP!Q61,\"\")","v":""},{"$f":"IF(WorkingP!$B61=\"Other Expenditure\",WorkingP!R61,\"\")","v":""},{"$f":"IF(WorkingP!$B61=\"Other Expenditure\",WorkingP!S61,\"\")","v":""},{"$f":"IF(WorkingP!$B61=\"Other Expenditure\",WorkingP!T61,\"\")","v":""},{"$f":"IF(WorkingP!$B61=\"Other Expenditure\",WorkingP!U61,\"\")","v":""},{"$f":"IF(WorkingP!$B61=\"Other Expenditure\",WorkingP!V61,\"\")","v":""},{"$f":"IF(WorkingP!$B61=\"Other Expenditure\",WorkingP!W61,\"\")","v":""},{"$f":"IF(WorkingP!$B61=\"Other Expenditure\",WorkingP!X61,\"\")","v":""},{"$f":"IF(WorkingP!$B61=\"Other Expenditure\",WorkingP!Y61,\"\")","v":""},{"$f":"IF(Descriptions!K62=\"Other Expenditure\",Descriptions!AB62,0)","v":0}]
[{"$f":"IF(Descriptions!K63=\"Other Expenditure\",Descriptions!I63,0)","v":0},{"$f":"IF(WorkingP!$B62=\"Other Expenditure\",WorkingP!D62,\"\")","v":""},{"$f":"IF(WorkingP!$B62=\"Other Expenditure\",WorkingP!E62,\"\")","v":""},{"$f":"IF(WorkingP!$B62=\"Other Expenditure\",WorkingP!F62,\"\")","v":""},{"$f":"IF(WorkingP!$B62=\"Other Expenditure\",WorkingP!G62,\"\")","v":""},{"$f":"IF(WorkingP!$B62=\"Other Expenditure\",WorkingP!H62,\"\")","v":""},{"$f":"IF(WorkingP!$B62=\"Other Expenditure\",WorkingP!I62,\"\")","v":""},{"$f":"IF(WorkingP!$B62=\"Other Expenditure\",WorkingP!J62,\"\")","v":""},{"$f":"IF(WorkingP!$B62=\"Other Expenditure\",WorkingP!K62,\"\")","v":""},{"$f":"IF(WorkingP!$B62=\"Other Expenditure\",WorkingP!L62,\"\")","v":""},{"$f":"IF(WorkingP!$B62=\"Other Expenditure\",WorkingP!M62,\"\")","v":""},{"$f":"IF(WorkingP!$B62=\"Other Expenditure\",WorkingP!N62,\"\")","v":""},{"$f":"IF(WorkingP!$B62=\"Other Expenditure\",WorkingP!O62,\"\")","v":""},{"$f":"IF(WorkingP!$B62=\"Other Expenditure\",WorkingP!P62,\"\")","v":""},{"$f":"IF(WorkingP!$B62=\"Other Expenditure\",WorkingP!Q62,\"\")","v":""},{"$f":"IF(WorkingP!$B62=\"Other Expenditure\",WorkingP!R62,\"\")","v":""},{"$f":"IF(WorkingP!$B62=\"Other Expenditure\",WorkingP!S62,\"\")","v":""},{"$f":"IF(WorkingP!$B62=\"Other Expenditure\",WorkingP!T62,\"\")","v":""},{"$f":"IF(WorkingP!$B62=\"Other Expenditure\",WorkingP!U62,\"\")","v":""},{"$f":"IF(WorkingP!$B62=\"Other Expenditure\",WorkingP!V62,\"\")","v":""},{"$f":"IF(WorkingP!$B62=\"Other Expenditure\",WorkingP!W62,\"\")","v":""},{"$f":"IF(WorkingP!$B62=\"Other Expenditure\",WorkingP!X62,\"\")","v":""},{"$f":"IF(WorkingP!$B62=\"Other Expenditure\",WorkingP!Y62,\"\")","v":""},{"$f":"IF(Descriptions!K63=\"Other Expenditure\",Descriptions!AB63,0)","v":0}]
[{"$f":"IF(Descriptions!K64=\"Other Expenditure\",Descriptions!I64,0)","v":0},{"$f":"IF(WorkingP!$B63=\"Other Expenditure\",WorkingP!D63,\"\")","v":""},{"$f":"IF(WorkingP!$B63=\"Other Expenditure\",WorkingP!E63,\"\")","v":""},{"$f":"IF(WorkingP!$B63=\"Other Expenditure\",WorkingP!F63,\"\")","v":""},{"$f":"IF(WorkingP!$B63=\"Other Expenditure\",WorkingP!G63,\"\")","v":""},{"$f":"IF(WorkingP!$B63=\"Other Expenditure\",WorkingP!H63,\"\")","v":""},{"$f":"IF(WorkingP!$B63=\"Other Expenditure\",WorkingP!I63,\"\")","v":""},{"$f":"IF(WorkingP!$B63=\"Other Expenditure\",WorkingP!J63,\"\")","v":""},{"$f":"IF(WorkingP!$B63=\"Other Expenditure\",WorkingP!K63,\"\")","v":""},{"$f":"IF(WorkingP!$B63=\"Other Expenditure\",WorkingP!L63,\"\")","v":""},{"$f":"IF(WorkingP!$B63=\"Other Expenditure\",WorkingP!M63,\"\")","v":""},{"$f":"IF(WorkingP!$B63=\"Other Expenditure\",WorkingP!N63,\"\")","v":""},{"$f":"IF(WorkingP!$B63=\"Other Expenditure\",WorkingP!O63,\"\")","v":""},{"$f":"IF(WorkingP!$B63=\"Other Expenditure\",WorkingP!P63,\"\")","v":""},{"$f":"IF(WorkingP!$B63=\"Other Expenditure\",WorkingP!Q63,\"\")","v":""},{"$f":"IF(WorkingP!$B63=\"Other Expenditure\",WorkingP!R63,\"\")","v":""},{"$f":"IF(WorkingP!$B63=\"Other Expenditure\",WorkingP!S63,\"\")","v":""},{"$f":"IF(WorkingP!$B63=\"Other Expenditure\",WorkingP!T63,\"\")","v":""},{"$f":"IF(WorkingP!$B63=\"Other Expenditure\",WorkingP!U63,\"\")","v":""},{"$f":"IF(WorkingP!$B63=\"Other Expenditure\",WorkingP!V63,\"\")","v":""},{"$f":"IF(WorkingP!$B63=\"Other Expenditure\",WorkingP!W63,\"\")","v":""},{"$f":"IF(WorkingP!$B63=\"Other Expenditure\",WorkingP!X63,\"\")","v":""},{"$f":"IF(WorkingP!$B63=\"Other Expenditure\",WorkingP!Y63,\"\")","v":""},{"$f":"IF(Descriptions!K64=\"Other Expenditure\",Descriptions!AB64,0)","v":0}]
[{"$f":"IF(Descriptions!K65=\"Other Expenditure\",Descriptions!I65,0)","v":0},{"$f":"IF(WorkingP!$B64=\"Other Expenditure\",WorkingP!D64,\"\")","v":""},{"$f":"IF(WorkingP!$B64=\"Other Expenditure\",WorkingP!E64,\"\")","v":""},{"$f":"IF(WorkingP!$B64=\"Other Expenditure\",WorkingP!F64,\"\")","v":""},{"$f":"IF(WorkingP!$B64=\"Other Expenditure\",WorkingP!G64,\"\")","v":""},{"$f":"IF(WorkingP!$B64=\"Other Expenditure\",WorkingP!H64,\"\")","v":""},{"$f":"IF(WorkingP!$B64=\"Other Expenditure\",WorkingP!I64,\"\")","v":""},{"$f":"IF(WorkingP!$B64=\"Other Expenditure\",WorkingP!J64,\"\")","v":""},{"$f":"IF(WorkingP!$B64=\"Other Expenditure\",WorkingP!K64,\"\")","v":""},{"$f":"IF(WorkingP!$B64=\"Other Expenditure\",WorkingP!L64,\"\")","v":""},{"$f":"IF(WorkingP!$B64=\"Other Expenditure\",WorkingP!M64,\"\")","v":""},{"$f":"IF(WorkingP!$B64=\"Other Expenditure\",WorkingP!N64,\"\")","v":""},{"$f":"IF(WorkingP!$B64=\"Other Expenditure\",WorkingP!O64,\"\")","v":""},{"$f":"IF(WorkingP!$B64=\"Other Expenditure\",WorkingP!P64,\"\")","v":""},{"$f":"IF(WorkingP!$B64=\"Other Expenditure\",WorkingP!Q64,\"\")","v":""},{"$f":"IF(WorkingP!$B64=\"Other Expenditure\",WorkingP!R64,\"\")","v":""},{"$f":"IF(WorkingP!$B64=\"Other Expenditure\",WorkingP!S64,\"\")","v":""},{"$f":"IF(WorkingP!$B64=\"Other Expenditure\",WorkingP!T64,\"\")","v":""},{"$f":"IF(WorkingP!$B64=\"Other Expenditure\",WorkingP!U64,\"\")","v":""},{"$f":"IF(WorkingP!$B64=\"Other Expenditure\",WorkingP!V64,\"\")","v":""},{"$f":"IF(WorkingP!$B64=\"Other Expenditure\",WorkingP!W64,\"\")","v":""},{"$f":"IF(WorkingP!$B64=\"Other Expenditure\",WorkingP!X64,\"\")","v":""},{"$f":"IF(WorkingP!$B64=\"Other Expenditure\",WorkingP!Y64,\"\")","v":""},{"$f":"IF(Descriptions!K65=\"Other Expenditure\",Descriptions!AB65,0)","v":0}]
[{"$f":"IF(Descriptions!K66=\"Other Expenditure\",Descriptions!I66,0)","v":0},{"$f":"IF(WorkingP!$B65=\"Other Expenditure\",WorkingP!D65,\"\")","v":""},{"$f":"IF(WorkingP!$B65=\"Other Expenditure\",WorkingP!E65,\"\")","v":""},{"$f":"IF(WorkingP!$B65=\"Other Expenditure\",WorkingP!F65,\"\")","v":""},{"$f":"IF(WorkingP!$B65=\"Other Expenditure\",WorkingP!G65,\"\")","v":""},{"$f":"IF(WorkingP!$B65=\"Other Expenditure\",WorkingP!H65,\"\")","v":""},{"$f":"IF(WorkingP!$B65=\"Other Expenditure\",WorkingP!I65,\"\")","v":""},{"$f":"IF(WorkingP!$B65=\"Other Expenditure\",WorkingP!J65,\"\")","v":""},{"$f":"IF(WorkingP!$B65=\"Other Expenditure\",WorkingP!K65,\"\")","v":""},{"$f":"IF(WorkingP!$B65=\"Other Expenditure\",WorkingP!L65,\"\")","v":""},{"$f":"IF(WorkingP!$B65=\"Other Expenditure\",WorkingP!M65,\"\")","v":""},{"$f":"IF(WorkingP!$B65=\"Other Expenditure\",WorkingP!N65,\"\")","v":""},{"$f":"IF(WorkingP!$B65=\"Other Expenditure\",WorkingP!O65,\"\")","v":""},{"$f":"IF(WorkingP!$B65=\"Other Expenditure\",WorkingP!P65,\"\")","v":""},{"$f":"IF(WorkingP!$B65=\"Other Expenditure\",WorkingP!Q65,\"\")","v":""},{"$f":"IF(WorkingP!$B65=\"Other Expenditure\",WorkingP!R65,\"\")","v":""},{"$f":"IF(WorkingP!$B65=\"Other Expenditure\",WorkingP!S65,\"\")","v":""},{"$f":"IF(WorkingP!$B65=\"Other Expenditure\",WorkingP!T65,\"\")","v":""},{"$f":"IF(WorkingP!$B65=\"Other Expenditure\",WorkingP!U65,\"\")","v":""},{"$f":"IF(WorkingP!$B65=\"Other Expenditure\",WorkingP!V65,\"\")","v":""},{"$f":"IF(WorkingP!$B65=\"Other Expenditure\",WorkingP!W65,\"\")","v":""},{"$f":"IF(WorkingP!$B65=\"Other Expenditure\",WorkingP!X65,\"\")","v":""},{"$f":"IF(WorkingP!$B65=\"Other Expenditure\",WorkingP!Y65,\"\")","v":""},{"$f":"IF(Descriptions!K66=\"Other Expenditure\",Descriptions!AB66,0)","v":0}]
[{"$f":"IF(Descriptions!K67=\"Other Expenditure\",Descriptions!I67,0)","v":0},{"$f":"IF(WorkingP!$B66=\"Other Expenditure\",WorkingP!D66,\"\")","v":""},{"$f":"IF(WorkingP!$B66=\"Other Expenditure\",WorkingP!E66,\"\")","v":""},{"$f":"IF(WorkingP!$B66=\"Other Expenditure\",WorkingP!F66,\"\")","v":""},{"$f":"IF(WorkingP!$B66=\"Other Expenditure\",WorkingP!G66,\"\")","v":""},{"$f":"IF(WorkingP!$B66=\"Other Expenditure\",WorkingP!H66,\"\")","v":""},{"$f":"IF(WorkingP!$B66=\"Other Expenditure\",WorkingP!I66,\"\")","v":""},{"$f":"IF(WorkingP!$B66=\"Other Expenditure\",WorkingP!J66,\"\")","v":""},{"$f":"IF(WorkingP!$B66=\"Other Expenditure\",WorkingP!K66,\"\")","v":""},{"$f":"IF(WorkingP!$B66=\"Other Expenditure\",WorkingP!L66,\"\")","v":""},{"$f":"IF(WorkingP!$B66=\"Other Expenditure\",WorkingP!M66,\"\")","v":""},{"$f":"IF(WorkingP!$B66=\"Other Expenditure\",WorkingP!N66,\"\")","v":""},{"$f":"IF(WorkingP!$B66=\"Other Expenditure\",WorkingP!O66,\"\")","v":""},{"$f":"IF(WorkingP!$B66=\"Other Expenditure\",WorkingP!P66,\"\")","v":""},{"$f":"IF(WorkingP!$B66=\"Other Expenditure\",WorkingP!Q66,\"\")","v":""},{"$f":"IF(WorkingP!$B66=\"Other Expenditure\",WorkingP!R66,\"\")","v":""},{"$f":"IF(WorkingP!$B66=\"Other Expenditure\",WorkingP!S66,\"\")","v":""},{"$f":"IF(WorkingP!$B66=\"Other Expenditure\",WorkingP!T66,\"\")","v":""},{"$f":"IF(WorkingP!$B66=\"Other Expenditure\",WorkingP!U66,\"\")","v":""},{"$f":"IF(WorkingP!$B66=\"Other Expenditure\",WorkingP!V66,\"\")","v":""},{"$f":"IF(WorkingP!$B66=\"Other Expenditure\",WorkingP!W66,\"\")","v":""},{"$f":"IF(WorkingP!$B66=\"Other Expenditure\",WorkingP!X66,\"\")","v":""},{"$f":"IF(WorkingP!$B66=\"Other Expenditure\",WorkingP!Y66,\"\")","v":""},{"$f":"IF(Descriptions!K67=\"Other Expenditure\",Descriptions!AB67,0)","v":0}]
[{"$f":"IF(Descriptions!K68=\"Other Expenditure\",Descriptions!I68,0)","v":0},{"$f":"IF(WorkingP!$B67=\"Other Expenditure\",WorkingP!D67,\"\")","v":""},{"$f":"IF(WorkingP!$B67=\"Other Expenditure\",WorkingP!E67,\"\")","v":""},{"$f":"IF(WorkingP!$B67=\"Other Expenditure\",WorkingP!F67,\"\")","v":""},{"$f":"IF(WorkingP!$B67=\"Other Expenditure\",WorkingP!G67,\"\")","v":""},{"$f":"IF(WorkingP!$B67=\"Other Expenditure\",WorkingP!H67,\"\")","v":""},{"$f":"IF(WorkingP!$B67=\"Other Expenditure\",WorkingP!I67,\"\")","v":""},{"$f":"IF(WorkingP!$B67=\"Other Expenditure\",WorkingP!J67,\"\")","v":""},{"$f":"IF(WorkingP!$B67=\"Other Expenditure\",WorkingP!K67,\"\")","v":""},{"$f":"IF(WorkingP!$B67=\"Other Expenditure\",WorkingP!L67,\"\")","v":""},{"$f":"IF(WorkingP!$B67=\"Other Expenditure\",WorkingP!M67,\"\")","v":""},{"$f":"IF(WorkingP!$B67=\"Other Expenditure\",WorkingP!N67,\"\")","v":""},{"$f":"IF(WorkingP!$B67=\"Other Expenditure\",WorkingP!O67,\"\")","v":""},{"$f":"IF(WorkingP!$B67=\"Other Expenditure\",WorkingP!P67,\"\")","v":""},{"$f":"IF(WorkingP!$B67=\"Other Expenditure\",WorkingP!Q67,\"\")","v":""},{"$f":"IF(WorkingP!$B67=\"Other Expenditure\",WorkingP!R67,\"\")","v":""},{"$f":"IF(WorkingP!$B67=\"Other Expenditure\",WorkingP!S67,\"\")","v":""},{"$f":"IF(WorkingP!$B67=\"Other Expenditure\",WorkingP!T67,\"\")","v":""},{"$f":"IF(WorkingP!$B67=\"Other Expenditure\",WorkingP!U67,\"\")","v":""},{"$f":"IF(WorkingP!$B67=\"Other Expenditure\",WorkingP!V67,\"\")","v":""},{"$f":"IF(WorkingP!$B67=\"Other Expenditure\",WorkingP!W67,\"\")","v":""},{"$f":"IF(WorkingP!$B67=\"Other Expenditure\",WorkingP!X67,\"\")","v":""},{"$f":"IF(WorkingP!$B67=\"Other Expenditure\",WorkingP!Y67,\"\")","v":""},{"$f":"IF(Descriptions!K68=\"Other Expenditure\",Descriptions!AB68,0)","v":0}]
[{"$f":"IF(Descriptions!K69=\"Other Expenditure\",Descriptions!I69,0)","v":0},{"$f":"IF(WorkingP!$B68=\"Other Expenditure\",WorkingP!D68,\"\")","v":""},{"$f":"IF(WorkingP!$B68=\"Other Expenditure\",WorkingP!E68,\"\")","v":""},{"$f":"IF(WorkingP!$B68=\"Other Expenditure\",WorkingP!F68,\"\")","v":""},{"$f":"IF(WorkingP!$B68=\"Other Expenditure\",WorkingP!G68,\"\")","v":""},{"$f":"IF(WorkingP!$B68=\"Other Expenditure\",WorkingP!H68,\"\")","v":""},{"$f":"IF(WorkingP!$B68=\"Other Expenditure\",WorkingP!I68,\"\")","v":""},{"$f":"IF(WorkingP!$B68=\"Other Expenditure\",WorkingP!J68,\"\")","v":""},{"$f":"IF(WorkingP!$B68=\"Other Expenditure\",WorkingP!K68,\"\")","v":""},{"$f":"IF(WorkingP!$B68=\"Other Expenditure\",WorkingP!L68,\"\")","v":""},{"$f":"IF(WorkingP!$B68=\"Other Expenditure\",WorkingP!M68,\"\")","v":""},{"$f":"IF(WorkingP!$B68=\"Other Expenditure\",WorkingP!N68,\"\")","v":""},{"$f":"IF(WorkingP!$B68=\"Other Expenditure\",WorkingP!O68,\"\")","v":""},{"$f":"IF(WorkingP!$B68=\"Other Expenditure\",WorkingP!P68,\"\")","v":""},{"$f":"IF(WorkingP!$B68=\"Other Expenditure\",WorkingP!Q68,\"\")","v":""},{"$f":"IF(WorkingP!$B68=\"Other Expenditure\",WorkingP!R68,\"\")","v":""},{"$f":"IF(WorkingP!$B68=\"Other Expenditure\",WorkingP!S68,\"\")","v":""},{"$f":"IF(WorkingP!$B68=\"Other Expenditure\",WorkingP!T68,\"\")","v":""},{"$f":"IF(WorkingP!$B68=\"Other Expenditure\",WorkingP!U68,\"\")","v":""},{"$f":"IF(WorkingP!$B68=\"Other Expenditure\",WorkingP!V68,\"\")","v":""},{"$f":"IF(WorkingP!$B68=\"Other Expenditure\",WorkingP!W68,\"\")","v":""},{"$f":"IF(WorkingP!$B68=\"Other Expenditure\",WorkingP!X68,\"\")","v":""},{"$f":"IF(WorkingP!$B68=\"Other Expenditure\",WorkingP!Y68,\"\")","v":""},{"$f":"IF(Descriptions!K69=\"Other Expenditure\",Descriptions!AB69,0)","v":0}]
[{"$f":"IF(Descriptions!K70=\"Other Expenditure\",Descriptions!I70,0)","v":0},{"$f":"IF(WorkingP!$B69=\"Other Expenditure\",WorkingP!D69,\"\")","v":""},{"$f":"IF(WorkingP!$B69=\"Other Expenditure\",WorkingP!E69,\"\")","v":""},{"$f":"IF(WorkingP!$B69=\"Other Expenditure\",WorkingP!F69,\"\")","v":""},{"$f":"IF(WorkingP!$B69=\"Other Expenditure\",WorkingP!G69,\"\")","v":""},{"$f":"IF(WorkingP!$B69=\"Other Expenditure\",WorkingP!H69,\"\")","v":""},{"$f":"IF(WorkingP!$B69=\"Other Expenditure\",WorkingP!I69,\"\")","v":""},{"$f":"IF(WorkingP!$B69=\"Other Expenditure\",WorkingP!J69,\"\")","v":""},{"$f":"IF(WorkingP!$B69=\"Other Expenditure\",WorkingP!K69,\"\")","v":""},{"$f":"IF(WorkingP!$B69=\"Other Expenditure\",WorkingP!L69,\"\")","v":""},{"$f":"IF(WorkingP!$B69=\"Other Expenditure\",WorkingP!M69,\"\")","v":""},{"$f":"IF(WorkingP!$B69=\"Other Expenditure\",WorkingP!N69,\"\")","v":""},{"$f":"IF(WorkingP!$B69=\"Other Expenditure\",WorkingP!O69,\"\")","v":""},{"$f":"IF(WorkingP!$B69=\"Other Expenditure\",WorkingP!P69,\"\")","v":""},{"$f":"IF(WorkingP!$B69=\"Other Expenditure\",WorkingP!Q69,\"\")","v":""},{"$f":"IF(WorkingP!$B69=\"Other Expenditure\",WorkingP!R69,\"\")","v":""},{"$f":"IF(WorkingP!$B69=\"Other Expenditure\",WorkingP!S69,\"\")","v":""},{"$f":"IF(WorkingP!$B69=\"Other Expenditure\",WorkingP!T69,\"\")","v":""},{"$f":"IF(WorkingP!$B69=\"Other Expenditure\",WorkingP!U69,\"\")","v":""},{"$f":"IF(WorkingP!$B69=\"Other Expenditure\",WorkingP!V69,\"\")","v":""},{"$f":"IF(WorkingP!$B69=\"Other Expenditure\",WorkingP!W69,\"\")","v":""},{"$f":"IF(WorkingP!$B69=\"Other Expenditure\",WorkingP!X69,\"\")","v":""},{"$f":"IF(WorkingP!$B69=\"Other Expenditure\",WorkingP!Y69,\"\")","v":""},{"$f":"IF(Descriptions!K70=\"Other Expenditure\",Descriptions!AB70,0)","v":0}]
[{"$f":"IF(Descriptions!K71=\"Other Expenditure\",Descriptions!I71,0)","v":0},{"$f":"IF(WorkingP!$B70=\"Other Expenditure\",WorkingP!D70,\"\")","v":""},{"$f":"IF(WorkingP!$B70=\"Other Expenditure\",WorkingP!E70,\"\")","v":""},{"$f":"IF(WorkingP!$B70=\"Other Expenditure\",WorkingP!F70,\"\")","v":""},{"$f":"IF(WorkingP!$B70=\"Other Expenditure\",WorkingP!G70,\"\")","v":""},{"$f":"IF(WorkingP!$B70=\"Other Expenditure\",WorkingP!H70,\"\")","v":""},{"$f":"IF(WorkingP!$B70=\"Other Expenditure\",WorkingP!I70,\"\")","v":""},{"$f":"IF(WorkingP!$B70=\"Other Expenditure\",WorkingP!J70,\"\")","v":""},{"$f":"IF(WorkingP!$B70=\"Other Expenditure\",WorkingP!K70,\"\")","v":""},{"$f":"IF(WorkingP!$B70=\"Other Expenditure\",WorkingP!L70,\"\")","v":""},{"$f":"IF(WorkingP!$B70=\"Other Expenditure\",WorkingP!M70,\"\")","v":""},{"$f":"IF(WorkingP!$B70=\"Other Expenditure\",WorkingP!N70,\"\")","v":""},{"$f":"IF(WorkingP!$B70=\"Other Expenditure\",WorkingP!O70,\"\")","v":""},{"$f":"IF(WorkingP!$B70=\"Other Expenditure\",WorkingP!P70,\"\")","v":""},{"$f":"IF(WorkingP!$B70=\"Other Expenditure\",WorkingP!Q70,\"\")","v":""},{"$f":"IF(WorkingP!$B70=\"Other Expenditure\",WorkingP!R70,\"\")","v":""},{"$f":"IF(WorkingP!$B70=\"Other Expenditure\",WorkingP!S70,\"\")","v":""},{"$f":"IF(WorkingP!$B70=\"Other Expenditure\",WorkingP!T70,\"\")","v":""},{"$f":"IF(WorkingP!$B70=\"Other Expenditure\",WorkingP!U70,\"\")","v":""},{"$f":"IF(WorkingP!$B70=\"Other Expenditure\",WorkingP!V70,\"\")","v":""},{"$f":"IF(WorkingP!$B70=\"Other Expenditure\",WorkingP!W70,\"\")","v":""},{"$f":"IF(WorkingP!$B70=\"Other Expenditure\",WorkingP!X70,\"\")","v":""},{"$f":"IF(WorkingP!$B70=\"Other Expenditure\",WorkingP!Y70,\"\")","v":""},{"$f":"IF(Descriptions!K71=\"Other Expenditure\",Descriptions!AB71,0)","v":0}]
[{"$f":"IF(Descriptions!K72=\"Other Expenditure\",Descriptions!I72,0)","v":0},{"$f":"IF(WorkingP!$B71=\"Other Expenditure\",WorkingP!D71,\"\")","v":""},{"$f":"IF(WorkingP!$B71=\"Other Expenditure\",WorkingP!E71,\"\")","v":""},{"$f":"IF(WorkingP!$B71=\"Other Expenditure\",WorkingP!F71,\"\")","v":""},{"$f":"IF(WorkingP!$B71=\"Other Expenditure\",WorkingP!G71,\"\")","v":""},{"$f":"IF(WorkingP!$B71=\"Other Expenditure\",WorkingP!H71,\"\")","v":""},{"$f":"IF(WorkingP!$B71=\"Other Expenditure\",WorkingP!I71,\"\")","v":""},{"$f":"IF(WorkingP!$B71=\"Other Expenditure\",WorkingP!J71,\"\")","v":""},{"$f":"IF(WorkingP!$B71=\"Other Expenditure\",WorkingP!K71,\"\")","v":""},{"$f":"IF(WorkingP!$B71=\"Other Expenditure\",WorkingP!L71,\"\")","v":""},{"$f":"IF(WorkingP!$B71=\"Other Expenditure\",WorkingP!M71,\"\")","v":""},{"$f":"IF(WorkingP!$B71=\"Other Expenditure\",WorkingP!N71,\"\")","v":""},{"$f":"IF(WorkingP!$B71=\"Other Expenditure\",WorkingP!O71,\"\")","v":""},{"$f":"IF(WorkingP!$B71=\"Other Expenditure\",WorkingP!P71,\"\")","v":""},{"$f":"IF(WorkingP!$B71=\"Other Expenditure\",WorkingP!Q71,\"\")","v":""},{"$f":"IF(WorkingP!$B71=\"Other Expenditure\",WorkingP!R71,\"\")","v":""},{"$f":"IF(WorkingP!$B71=\"Other Expenditure\",WorkingP!S71,\"\")","v":""},{"$f":"IF(WorkingP!$B71=\"Other Expenditure\",WorkingP!T71,\"\")","v":""},{"$f":"IF(WorkingP!$B71=\"Other Expenditure\",WorkingP!U71,\"\")","v":""},{"$f":"IF(WorkingP!$B71=\"Other Expenditure\",WorkingP!V71,\"\")","v":""},{"$f":"IF(WorkingP!$B71=\"Other Expenditure\",WorkingP!W71,\"\")","v":""},{"$f":"IF(WorkingP!$B71=\"Other Expenditure\",WorkingP!X71,\"\")","v":""},{"$f":"IF(WorkingP!$B71=\"Other Expenditure\",WorkingP!Y71,\"\")","v":""},{"$f":"IF(Descriptions!K72=\"Other Expenditure\",Descriptions!AB72,0)","v":0}]
[{"$f":"IF(Descriptions!K73=\"Other Expenditure\",Descriptions!I73,0)","v":0},{"$f":"IF(WorkingP!$B72=\"Other Expenditure\",WorkingP!D72,\"\")","v":""},{"$f":"IF(WorkingP!$B72=\"Other Expenditure\",WorkingP!E72,\"\")","v":""},{"$f":"IF(WorkingP!$B72=\"Other Expenditure\",WorkingP!F72,\"\")","v":""},{"$f":"IF(WorkingP!$B72=\"Other Expenditure\",WorkingP!G72,\"\")","v":""},{"$f":"IF(WorkingP!$B72=\"Other Expenditure\",WorkingP!H72,\"\")","v":""},{"$f":"IF(WorkingP!$B72=\"Other Expenditure\",WorkingP!I72,\"\")","v":""},{"$f":"IF(WorkingP!$B72=\"Other Expenditure\",WorkingP!J72,\"\")","v":""},{"$f":"IF(WorkingP!$B72=\"Other Expenditure\",WorkingP!K72,\"\")","v":""},{"$f":"IF(WorkingP!$B72=\"Other Expenditure\",WorkingP!L72,\"\")","v":""},{"$f":"IF(WorkingP!$B72=\"Other Expenditure\",WorkingP!M72,\"\")","v":""},{"$f":"IF(WorkingP!$B72=\"Other Expenditure\",WorkingP!N72,\"\")","v":""},{"$f":"IF(WorkingP!$B72=\"Other Expenditure\",WorkingP!O72,\"\")","v":""},{"$f":"IF(WorkingP!$B72=\"Other Expenditure\",WorkingP!P72,\"\")","v":""},{"$f":"IF(WorkingP!$B72=\"Other Expenditure\",WorkingP!Q72,\"\")","v":""},{"$f":"IF(WorkingP!$B72=\"Other Expenditure\",WorkingP!R72,\"\")","v":""},{"$f":"IF(WorkingP!$B72=\"Other Expenditure\",WorkingP!S72,\"\")","v":""},{"$f":"IF(WorkingP!$B72=\"Other Expenditure\",WorkingP!T72,\"\")","v":""},{"$f":"IF(WorkingP!$B72=\"Other Expenditure\",WorkingP!U72,\"\")","v":""},{"$f":"IF(WorkingP!$B72=\"Other Expenditure\",WorkingP!V72,\"\")","v":""},{"$f":"IF(WorkingP!$B72=\"Other Expenditure\",WorkingP!W72,\"\")","v":""},{"$f":"IF(WorkingP!$B72=\"Other Expenditure\",WorkingP!X72,\"\")","v":""},{"$f":"IF(WorkingP!$B72=\"Other Expenditure\",WorkingP!Y72,\"\")","v":""},{"$f":"IF(Descriptions!K73=\"Other Expenditure\",Descriptions!AB73,0)","v":0}]
[{"$f":"IF(Descriptions!K74=\"Other Expenditure\",Descriptions!I74,0)","v":0},{"$f":"IF(WorkingP!$B73=\"Other Expenditure\",WorkingP!D73,\"\")","v":""},{"$f":"IF(WorkingP!$B73=\"Other Expenditure\",WorkingP!E73,\"\")","v":""},{"$f":"IF(WorkingP!$B73=\"Other Expenditure\",WorkingP!F73,\"\")","v":""},{"$f":"IF(WorkingP!$B73=\"Other Expenditure\",WorkingP!G73,\"\")","v":""},{"$f":"IF(WorkingP!$B73=\"Other Expenditure\",WorkingP!H73,\"\")","v":""},{"$f":"IF(WorkingP!$B73=\"Other Expenditure\",WorkingP!I73,\"\")","v":""},{"$f":"IF(WorkingP!$B73=\"Other Expenditure\",WorkingP!J73,\"\")","v":""},{"$f":"IF(WorkingP!$B73=\"Other Expenditure\",WorkingP!K73,\"\")","v":""},{"$f":"IF(WorkingP!$B73=\"Other Expenditure\",WorkingP!L73,\"\")","v":""},{"$f":"IF(WorkingP!$B73=\"Other Expenditure\",WorkingP!M73,\"\")","v":""},{"$f":"IF(WorkingP!$B73=\"Other Expenditure\",WorkingP!N73,\"\")","v":""},{"$f":"IF(WorkingP!$B73=\"Other Expenditure\",WorkingP!O73,\"\")","v":""},{"$f":"IF(WorkingP!$B73=\"Other Expenditure\",WorkingP!P73,\"\")","v":""},{"$f":"IF(WorkingP!$B73=\"Other Expenditure\",WorkingP!Q73,\"\")","v":""},{"$f":"IF(WorkingP!$B73=\"Other Expenditure\",WorkingP!R73,\"\")","v":""},{"$f":"IF(WorkingP!$B73=\"Other Expenditure\",WorkingP!S73,\"\")","v":""},{"$f":"IF(WorkingP!$B73=\"Other Expenditure\",WorkingP!T73,\"\")","v":""},{"$f":"IF(WorkingP!$B73=\"Other Expenditure\",WorkingP!U73,\"\")","v":""},{"$f":"IF(WorkingP!$B73=\"Other Expenditure\",WorkingP!V73,\"\")","v":""},{"$f":"IF(WorkingP!$B73=\"Other Expenditure\",WorkingP!W73,\"\")","v":""},{"$f":"IF(WorkingP!$B73=\"Other Expenditure\",WorkingP!X73,\"\")","v":""},{"$f":"IF(WorkingP!$B73=\"Other Expenditure\",WorkingP!Y73,\"\")","v":""},{"$f":"IF(Descriptions!K74=\"Other Expenditure\",Descriptions!AB74,0)","v":0}]
[{"$f":"IF(Descriptions!K75=\"Other Expenditure\",Descriptions!I75,0)","v":0},{"$f":"IF(WorkingP!$B74=\"Other Expenditure\",WorkingP!D74,\"\")","v":""},{"$f":"IF(WorkingP!$B74=\"Other Expenditure\",WorkingP!E74,\"\")","v":""},{"$f":"IF(WorkingP!$B74=\"Other Expenditure\",WorkingP!F74,\"\")","v":""},{"$f":"IF(WorkingP!$B74=\"Other Expenditure\",WorkingP!G74,\"\")","v":""},{"$f":"IF(WorkingP!$B74=\"Other Expenditure\",WorkingP!H74,\"\")","v":""},{"$f":"IF(WorkingP!$B74=\"Other Expenditure\",WorkingP!I74,\"\")","v":""},{"$f":"IF(WorkingP!$B74=\"Other Expenditure\",WorkingP!J74,\"\")","v":""},{"$f":"IF(WorkingP!$B74=\"Other Expenditure\",WorkingP!K74,\"\")","v":""},{"$f":"IF(WorkingP!$B74=\"Other Expenditure\",WorkingP!L74,\"\")","v":""},{"$f":"IF(WorkingP!$B74=\"Other Expenditure\",WorkingP!M74,\"\")","v":""},{"$f":"IF(WorkingP!$B74=\"Other Expenditure\",WorkingP!N74,\"\")","v":""},{"$f":"IF(WorkingP!$B74=\"Other Expenditure\",WorkingP!O74,\"\")","v":""},{"$f":"IF(WorkingP!$B74=\"Other Expenditure\",WorkingP!P74,\"\")","v":""},{"$f":"IF(WorkingP!$B74=\"Other Expenditure\",WorkingP!Q74,\"\")","v":""},{"$f":"IF(WorkingP!$B74=\"Other Expenditure\",WorkingP!R74,\"\")","v":""},{"$f":"IF(WorkingP!$B74=\"Other Expenditure\",WorkingP!S74,\"\")","v":""},{"$f":"IF(WorkingP!$B74=\"Other Expenditure\",WorkingP!T74,\"\")","v":""},{"$f":"IF(WorkingP!$B74=\"Other Expenditure\",WorkingP!U74,\"\")","v":""},{"$f":"IF(WorkingP!$B74=\"Other Expenditure\",WorkingP!V74,\"\")","v":""},{"$f":"IF(WorkingP!$B74=\"Other Expenditure\",WorkingP!W74,\"\")","v":""},{"$f":"IF(WorkingP!$B74=\"Other Expenditure\",WorkingP!X74,\"\")","v":""},{"$f":"IF(WorkingP!$B74=\"Other Expenditure\",WorkingP!Y74,\"\")","v":""},{"$f":"IF(Descriptions!K75=\"Other Expenditure\",Descriptions!AB75,0)","v":0}]
[{"$f":"IF(Descriptions!K76=\"Other Expenditure\",Descriptions!I76,0)","v":0},{"$f":"IF(WorkingP!$B75=\"Other Expenditure\",WorkingP!D75,\"\")","v":""},{"$f":"IF(WorkingP!$B75=\"Other Expenditure\",WorkingP!E75,\"\")","v":""},{"$f":"IF(WorkingP!$B75=\"Other Expenditure\",WorkingP!F75,\"\")","v":""},{"$f":"IF(WorkingP!$B75=\"Other Expenditure\",WorkingP!G75,\"\")","v":""},{"$f":"IF(WorkingP!$B75=\"Other Expenditure\",WorkingP!H75,\"\")","v":""},{"$f":"IF(WorkingP!$B75=\"Other Expenditure\",WorkingP!I75,\"\")","v":""},{"$f":"IF(WorkingP!$B75=\"Other Expenditure\",WorkingP!J75,\"\")","v":""},{"$f":"IF(WorkingP!$B75=\"Other Expenditure\",WorkingP!K75,\"\")","v":""},{"$f":"IF(WorkingP!$B75=\"Other Expenditure\",WorkingP!L75,\"\")","v":""},{"$f":"IF(WorkingP!$B75=\"Other Expenditure\",WorkingP!M75,\"\")","v":""},{"$f":"IF(WorkingP!$B75=\"Other Expenditure\",WorkingP!N75,\"\")","v":""},{"$f":"IF(WorkingP!$B75=\"Other Expenditure\",WorkingP!O75,\"\")","v":""},{"$f":"IF(WorkingP!$B75=\"Other Expenditure\",WorkingP!P75,\"\")","v":""},{"$f":"IF(WorkingP!$B75=\"Other Expenditure\",WorkingP!Q75,\"\")","v":""},{"$f":"IF(WorkingP!$B75=\"Other Expenditure\",WorkingP!R75,\"\")","v":""},{"$f":"IF(WorkingP!$B75=\"Other Expenditure\",WorkingP!S75,\"\")","v":""},{"$f":"IF(WorkingP!$B75=\"Other Expenditure\",WorkingP!T75,\"\")","v":""},{"$f":"IF(WorkingP!$B75=\"Other Expenditure\",WorkingP!U75,\"\")","v":""},{"$f":"IF(WorkingP!$B75=\"Other Expenditure\",WorkingP!V75,\"\")","v":""},{"$f":"IF(WorkingP!$B75=\"Other Expenditure\",WorkingP!W75,\"\")","v":""},{"$f":"IF(WorkingP!$B75=\"Other Expenditure\",WorkingP!X75,\"\")","v":""},{"$f":"IF(WorkingP!$B75=\"Other Expenditure\",WorkingP!Y75,\"\")","v":""},{"$f":"IF(Descriptions!K76=\"Other Expenditure\",Descriptions!AB76,0)","v":0}]
[{"$f":"IF(Descriptions!K77=\"Other Expenditure\",Descriptions!I77,0)","v":0},{"$f":"IF(WorkingP!$B76=\"Other Expenditure\",WorkingP!D76,\"\")","v":""},{"$f":"IF(WorkingP!$B76=\"Other Expenditure\",WorkingP!E76,\"\")","v":""},{"$f":"IF(WorkingP!$B76=\"Other Expenditure\",WorkingP!F76,\"\")","v":""},{"$f":"IF(WorkingP!$B76=\"Other Expenditure\",WorkingP!G76,\"\")","v":""},{"$f":"IF(WorkingP!$B76=\"Other Expenditure\",WorkingP!H76,\"\")","v":""},{"$f":"IF(WorkingP!$B76=\"Other Expenditure\",WorkingP!I76,\"\")","v":""},{"$f":"IF(WorkingP!$B76=\"Other Expenditure\",WorkingP!J76,\"\")","v":""},{"$f":"IF(WorkingP!$B76=\"Other Expenditure\",WorkingP!K76,\"\")","v":""},{"$f":"IF(WorkingP!$B76=\"Other Expenditure\",WorkingP!L76,\"\")","v":""},{"$f":"IF(WorkingP!$B76=\"Other Expenditure\",WorkingP!M76,\"\")","v":""},{"$f":"IF(WorkingP!$B76=\"Other Expenditure\",WorkingP!N76,\"\")","v":""},{"$f":"IF(WorkingP!$B76=\"Other Expenditure\",WorkingP!O76,\"\")","v":""},{"$f":"IF(WorkingP!$B76=\"Other Expenditure\",WorkingP!P76,\"\")","v":""},{"$f":"IF(WorkingP!$B76=\"Other Expenditure\",WorkingP!Q76,\"\")","v":""},{"$f":"IF(WorkingP!$B76=\"Other Expenditure\",WorkingP!R76,\"\")","v":""},{"$f":"IF(WorkingP!$B76=\"Other Expenditure\",WorkingP!S76,\"\")","v":""},{"$f":"IF(WorkingP!$B76=\"Other Expenditure\",WorkingP!T76,\"\")","v":""},{"$f":"IF(WorkingP!$B76=\"Other Expenditure\",WorkingP!U76,\"\")","v":""},{"$f":"IF(WorkingP!$B76=\"Other Expenditure\",WorkingP!V76,\"\")","v":""},{"$f":"IF(WorkingP!$B76=\"Other Expenditure\",WorkingP!W76,\"\")","v":""},{"$f":"IF(WorkingP!$B76=\"Other Expenditure\",WorkingP!X76,\"\")","v":""},{"$f":"IF(WorkingP!$B76=\"Other Expenditure\",WorkingP!Y76,\"\")","v":""},{"$f":"IF(Descriptions!K77=\"Other Expenditure\",Descriptions!AB77,0)","v":0}]
[{"$f":"IF(Descriptions!K78=\"Other Expenditure\",Descriptions!I78,0)","v":0},{"$f":"IF(WorkingP!$B77=\"Other Expenditure\",WorkingP!D77,\"\")","v":""},{"$f":"IF(WorkingP!$B77=\"Other Expenditure\",WorkingP!E77,\"\")","v":""},{"$f":"IF(WorkingP!$B77=\"Other Expenditure\",WorkingP!F77,\"\")","v":""},{"$f":"IF(WorkingP!$B77=\"Other Expenditure\",WorkingP!G77,\"\")","v":""},{"$f":"IF(WorkingP!$B77=\"Other Expenditure\",WorkingP!H77,\"\")","v":""},{"$f":"IF(WorkingP!$B77=\"Other Expenditure\",WorkingP!I77,\"\")","v":""},{"$f":"IF(WorkingP!$B77=\"Other Expenditure\",WorkingP!J77,\"\")","v":""},{"$f":"IF(WorkingP!$B77=\"Other Expenditure\",WorkingP!K77,\"\")","v":""},{"$f":"IF(WorkingP!$B77=\"Other Expenditure\",WorkingP!L77,\"\")","v":""},{"$f":"IF(WorkingP!$B77=\"Other Expenditure\",WorkingP!M77,\"\")","v":""},{"$f":"IF(WorkingP!$B77=\"Other Expenditure\",WorkingP!N77,\"\")","v":""},{"$f":"IF(WorkingP!$B77=\"Other Expenditure\",WorkingP!O77,\"\")","v":""},{"$f":"IF(WorkingP!$B77=\"Other Expenditure\",WorkingP!P77,\"\")","v":""},{"$f":"IF(WorkingP!$B77=\"Other Expenditure\",WorkingP!Q77,\"\")","v":""},{"$f":"IF(WorkingP!$B77=\"Other Expenditure\",WorkingP!R77,\"\")","v":""},{"$f":"IF(WorkingP!$B77=\"Other Expenditure\",WorkingP!S77,\"\")","v":""},{"$f":"IF(WorkingP!$B77=\"Other Expenditure\",WorkingP!T77,\"\")","v":""},{"$f":"IF(WorkingP!$B77=\"Other Expenditure\",WorkingP!U77,\"\")","v":""},{"$f":"IF(WorkingP!$B77=\"Other Expenditure\",WorkingP!V77,\"\")","v":""},{"$f":"IF(WorkingP!$B77=\"Other Expenditure\",WorkingP!W77,\"\")","v":""},{"$f":"IF(WorkingP!$B77=\"Other Expenditure\",WorkingP!X77,\"\")","v":""},{"$f":"IF(WorkingP!$B77=\"Other Expenditure\",WorkingP!Y77,\"\")","v":""},{"$f":"IF(Descriptions!K78=\"Other Expenditure\",Descriptions!AB78,0)","v":0}]
[{"$f":"IF(Descriptions!K79=\"Other Expenditure\",Descriptions!I79,0)","v":0},{"$f":"IF(WorkingP!$B78=\"Other Expenditure\",WorkingP!D78,\"\")","v":""},{"$f":"IF(WorkingP!$B78=\"Other Expenditure\",WorkingP!E78,\"\")","v":""},{"$f":"IF(WorkingP!$B78=\"Other Expenditure\",WorkingP!F78,\"\")","v":""},{"$f":"IF(WorkingP!$B78=\"Other Expenditure\",WorkingP!G78,\"\")","v":""},{"$f":"IF(WorkingP!$B78=\"Other Expenditure\",WorkingP!H78,\"\")","v":""},{"$f":"IF(WorkingP!$B78=\"Other Expenditure\",WorkingP!I78,\"\")","v":""},{"$f":"IF(WorkingP!$B78=\"Other Expenditure\",WorkingP!J78,\"\")","v":""},{"$f":"IF(WorkingP!$B78=\"Other Expenditure\",WorkingP!K78,\"\")","v":""},{"$f":"IF(WorkingP!$B78=\"Other Expenditure\",WorkingP!L78,\"\")","v":""},{"$f":"IF(WorkingP!$B78=\"Other Expenditure\",WorkingP!M78,\"\")","v":""},{"$f":"IF(WorkingP!$B78=\"Other Expenditure\",WorkingP!N78,\"\")","v":""},{"$f":"IF(WorkingP!$B78=\"Other Expenditure\",WorkingP!O78,\"\")","v":""},{"$f":"IF(WorkingP!$B78=\"Other Expenditure\",WorkingP!P78,\"\")","v":""},{"$f":"IF(WorkingP!$B78=\"Other Expenditure\",WorkingP!Q78,\"\")","v":""},{"$f":"IF(WorkingP!$B78=\"Other Expenditure\",WorkingP!R78,\"\")","v":""},{"$f":"IF(WorkingP!$B78=\"Other Expenditure\",WorkingP!S78,\"\")","v":""},{"$f":"IF(WorkingP!$B78=\"Other Expenditure\",WorkingP!T78,\"\")","v":""},{"$f":"IF(WorkingP!$B78=\"Other Expenditure\",WorkingP!U78,\"\")","v":""},{"$f":"IF(WorkingP!$B78=\"Other Expenditure\",WorkingP!V78,\"\")","v":""},{"$f":"IF(WorkingP!$B78=\"Other Expenditure\",WorkingP!W78,\"\")","v":""},{"$f":"IF(WorkingP!$B78=\"Other Expenditure\",WorkingP!X78,\"\")","v":""},{"$f":"IF(WorkingP!$B78=\"Other Expenditure\",WorkingP!Y78,\"\")","v":""},{"$f":"IF(Descriptions!K79=\"Other Expenditure\",Descriptions!AB79,0)","v":0}]
[{"$f":"IF(Descriptions!K80=\"Other Expenditure\",Descriptions!I80,0)","v":0},{"$f":"IF(WorkingP!$B79=\"Other Expenditure\",WorkingP!D79,\"\")","v":""},{"$f":"IF(WorkingP!$B79=\"Other Expenditure\",WorkingP!E79,\"\")","v":""},{"$f":"IF(WorkingP!$B79=\"Other Expenditure\",WorkingP!F79,\"\")","v":""},{"$f":"IF(WorkingP!$B79=\"Other Expenditure\",WorkingP!G79,\"\")","v":""},{"$f":"IF(WorkingP!$B79=\"Other Expenditure\",WorkingP!H79,\"\")","v":""},{"$f":"IF(WorkingP!$B79=\"Other Expenditure\",WorkingP!I79,\"\")","v":""},{"$f":"IF(WorkingP!$B79=\"Other Expenditure\",WorkingP!J79,\"\")","v":""},{"$f":"IF(WorkingP!$B79=\"Other Expenditure\",WorkingP!K79,\"\")","v":""},{"$f":"IF(WorkingP!$B79=\"Other Expenditure\",WorkingP!L79,\"\")","v":""},{"$f":"IF(WorkingP!$B79=\"Other Expenditure\",WorkingP!M79,\"\")","v":""},{"$f":"IF(WorkingP!$B79=\"Other Expenditure\",WorkingP!N79,\"\")","v":""},{"$f":"IF(WorkingP!$B79=\"Other Expenditure\",WorkingP!O79,\"\")","v":""},{"$f":"IF(WorkingP!$B79=\"Other Expenditure\",WorkingP!P79,\"\")","v":""},{"$f":"IF(WorkingP!$B79=\"Other Expenditure\",WorkingP!Q79,\"\")","v":""},{"$f":"IF(WorkingP!$B79=\"Other Expenditure\",WorkingP!R79,\"\")","v":""},{"$f":"IF(WorkingP!$B79=\"Other Expenditure\",WorkingP!S79,\"\")","v":""},{"$f":"IF(WorkingP!$B79=\"Other Expenditure\",WorkingP!T79,\"\")","v":""},{"$f":"IF(WorkingP!$B79=\"Other Expenditure\",WorkingP!U79,\"\")","v":""},{"$f":"IF(WorkingP!$B79=\"Other Expenditure\",WorkingP!V79,\"\")","v":""},{"$f":"IF(WorkingP!$B79=\"Other Expenditure\",WorkingP!W79,\"\")","v":""},{"$f":"IF(WorkingP!$B79=\"Other Expenditure\",WorkingP!X79,\"\")","v":""},{"$f":"IF(WorkingP!$B79=\"Other Expenditure\",WorkingP!Y79,\"\")","v":""},{"$f":"IF(Descriptions!K80=\"Other Expenditure\",Descriptions!AB80,0)","v":0}]
[{"$f":"IF(Descriptions!K81=\"Other Expenditure\",Descriptions!I81,0)","v":0},{"$f":"IF(WorkingP!$B80=\"Other Expenditure\",WorkingP!D80,\"\")","v":""},{"$f":"IF(WorkingP!$B80=\"Other Expenditure\",WorkingP!E80,\"\")","v":""},{"$f":"IF(WorkingP!$B80=\"Other Expenditure\",WorkingP!F80,\"\")","v":""},{"$f":"IF(WorkingP!$B80=\"Other Expenditure\",WorkingP!G80,\"\")","v":""},{"$f":"IF(WorkingP!$B80=\"Other Expenditure\",WorkingP!H80,\"\")","v":""},{"$f":"IF(WorkingP!$B80=\"Other Expenditure\",WorkingP!I80,\"\")","v":""},{"$f":"IF(WorkingP!$B80=\"Other Expenditure\",WorkingP!J80,\"\")","v":""},{"$f":"IF(WorkingP!$B80=\"Other Expenditure\",WorkingP!K80,\"\")","v":""},{"$f":"IF(WorkingP!$B80=\"Other Expenditure\",WorkingP!L80,\"\")","v":""},{"$f":"IF(WorkingP!$B80=\"Other Expenditure\",WorkingP!M80,\"\")","v":""},{"$f":"IF(WorkingP!$B80=\"Other Expenditure\",WorkingP!N80,\"\")","v":""},{"$f":"IF(WorkingP!$B80=\"Other Expenditure\",WorkingP!O80,\"\")","v":""},{"$f":"IF(WorkingP!$B80=\"Other Expenditure\",WorkingP!P80,\"\")","v":""},{"$f":"IF(WorkingP!$B80=\"Other Expenditure\",WorkingP!Q80,\"\")","v":""},{"$f":"IF(WorkingP!$B80=\"Other Expenditure\",WorkingP!R80,\"\")","v":""},{"$f":"IF(WorkingP!$B80=\"Other Expenditure\",WorkingP!S80,\"\")","v":""},{"$f":"IF(WorkingP!$B80=\"Other Expenditure\",WorkingP!T80,\"\")","v":""},{"$f":"IF(WorkingP!$B80=\"Other Expenditure\",WorkingP!U80,\"\")","v":""},{"$f":"IF(WorkingP!$B80=\"Other Expenditure\",WorkingP!V80,\"\")","v":""},{"$f":"IF(WorkingP!$B80=\"Other Expenditure\",WorkingP!W80,\"\")","v":""},{"$f":"IF(WorkingP!$B80=\"Other Expenditure\",WorkingP!X80,\"\")","v":""},{"$f":"IF(WorkingP!$B80=\"Other Expenditure\",WorkingP!Y80,\"\")","v":""},{"$f":"IF(Descriptions!K81=\"Other Expenditure\",Descriptions!AB81,0)","v":0}]
[{"$f":"IF(Descriptions!K82=\"Other Expenditure\",Descriptions!I82,0)","v":0},{"$f":"IF(WorkingP!$B81=\"Other Expenditure\",WorkingP!D81,\"\")","v":""},{"$f":"IF(WorkingP!$B81=\"Other Expenditure\",WorkingP!E81,\"\")","v":""},{"$f":"IF(WorkingP!$B81=\"Other Expenditure\",WorkingP!F81,\"\")","v":""},{"$f":"IF(WorkingP!$B81=\"Other Expenditure\",WorkingP!G81,\"\")","v":""},{"$f":"IF(WorkingP!$B81=\"Other Expenditure\",WorkingP!H81,\"\")","v":""},{"$f":"IF(WorkingP!$B81=\"Other Expenditure\",WorkingP!I81,\"\")","v":""},{"$f":"IF(WorkingP!$B81=\"Other Expenditure\",WorkingP!J81,\"\")","v":""},{"$f":"IF(WorkingP!$B81=\"Other Expenditure\",WorkingP!K81,\"\")","v":""},{"$f":"IF(WorkingP!$B81=\"Other Expenditure\",WorkingP!L81,\"\")","v":""},{"$f":"IF(WorkingP!$B81=\"Other Expenditure\",WorkingP!M81,\"\")","v":""},{"$f":"IF(WorkingP!$B81=\"Other Expenditure\",WorkingP!N81,\"\")","v":""},{"$f":"IF(WorkingP!$B81=\"Other Expenditure\",WorkingP!O81,\"\")","v":""},{"$f":"IF(WorkingP!$B81=\"Other Expenditure\",WorkingP!P81,\"\")","v":""},{"$f":"IF(WorkingP!$B81=\"Other Expenditure\",WorkingP!Q81,\"\")","v":""},{"$f":"IF(WorkingP!$B81=\"Other Expenditure\",WorkingP!R81,\"\")","v":""},{"$f":"IF(WorkingP!$B81=\"Other Expenditure\",WorkingP!S81,\"\")","v":""},{"$f":"IF(WorkingP!$B81=\"Other Expenditure\",WorkingP!T81,\"\")","v":""},{"$f":"IF(WorkingP!$B81=\"Other Expenditure\",WorkingP!U81,\"\")","v":""},{"$f":"IF(WorkingP!$B81=\"Other Expenditure\",WorkingP!V81,\"\")","v":""},{"$f":"IF(WorkingP!$B81=\"Other Expenditure\",WorkingP!W81,\"\")","v":""},{"$f":"IF(WorkingP!$B81=\"Other Expenditure\",WorkingP!X81,\"\")","v":""},{"$f":"IF(WorkingP!$B81=\"Other Expenditure\",WorkingP!Y81,\"\")","v":""},{"$f":"IF(Descriptions!K82=\"Other Expenditure\",Descriptions!AB82,0)","v":0}]
[{"$f":"IF(Descriptions!K83=\"Other Expenditure\",Descriptions!I83,0)","v":0},{"$f":"IF(WorkingP!$B82=\"Other Expenditure\",WorkingP!D82,\"\")","v":""},{"$f":"IF(WorkingP!$B82=\"Other Expenditure\",WorkingP!E82,\"\")","v":""},{"$f":"IF(WorkingP!$B82=\"Other Expenditure\",WorkingP!F82,\"\")","v":""},{"$f":"IF(WorkingP!$B82=\"Other Expenditure\",WorkingP!G82,\"\")","v":""},{"$f":"IF(WorkingP!$B82=\"Other Expenditure\",WorkingP!H82,\"\")","v":""},{"$f":"IF(WorkingP!$B82=\"Other Expenditure\",WorkingP!I82,\"\")","v":""},{"$f":"IF(WorkingP!$B82=\"Other Expenditure\",WorkingP!J82,\"\")","v":""},{"$f":"IF(WorkingP!$B82=\"Other Expenditure\",WorkingP!K82,\"\")","v":""},{"$f":"IF(WorkingP!$B82=\"Other Expenditure\",WorkingP!L82,\"\")","v":""},{"$f":"IF(WorkingP!$B82=\"Other Expenditure\",WorkingP!M82,\"\")","v":""},{"$f":"IF(WorkingP!$B82=\"Other Expenditure\",WorkingP!N82,\"\")","v":""},{"$f":"IF(WorkingP!$B82=\"Other Expenditure\",WorkingP!O82,\"\")","v":""},{"$f":"IF(WorkingP!$B82=\"Other Expenditure\",WorkingP!P82,\"\")","v":""},{"$f":"IF(WorkingP!$B82=\"Other Expenditure\",WorkingP!Q82,\"\")","v":""},{"$f":"IF(WorkingP!$B82=\"Other Expenditure\",WorkingP!R82,\"\")","v":""},{"$f":"IF(WorkingP!$B82=\"Other Expenditure\",WorkingP!S82,\"\")","v":""},{"$f":"IF(WorkingP!$B82=\"Other Expenditure\",WorkingP!T82,\"\")","v":""},{"$f":"IF(WorkingP!$B82=\"Other Expenditure\",WorkingP!U82,\"\")","v":""},{"$f":"IF(WorkingP!$B82=\"Other Expenditure\",WorkingP!V82,\"\")","v":""},{"$f":"IF(WorkingP!$B82=\"Other Expenditure\",WorkingP!W82,\"\")","v":""},{"$f":"IF(WorkingP!$B82=\"Other Expenditure\",WorkingP!X82,\"\")","v":""},{"$f":"IF(WorkingP!$B82=\"Other Expenditure\",WorkingP!Y82,\"\")","v":""},{"$f":"IF(Descriptions!K83=\"Other Expenditure\",Descriptions!AB83,0)","v":0}]
[{"$f":"IF(Descriptions!K84=\"Other Expenditure\",Descriptions!I84,0)","v":0},{"$f":"IF(WorkingP!$B83=\"Other Expenditure\",WorkingP!D83,\"\")","v":""},{"$f":"IF(WorkingP!$B83=\"Other Expenditure\",WorkingP!E83,\"\")","v":""},{"$f":"IF(WorkingP!$B83=\"Other Expenditure\",WorkingP!F83,\"\")","v":""},{"$f":"IF(WorkingP!$B83=\"Other Expenditure\",WorkingP!G83,\"\")","v":""},{"$f":"IF(WorkingP!$B83=\"Other Expenditure\",WorkingP!H83,\"\")","v":""},{"$f":"IF(WorkingP!$B83=\"Other Expenditure\",WorkingP!I83,\"\")","v":""},{"$f":"IF(WorkingP!$B83=\"Other Expenditure\",WorkingP!J83,\"\")","v":""},{"$f":"IF(WorkingP!$B83=\"Other Expenditure\",WorkingP!K83,\"\")","v":""},{"$f":"IF(WorkingP!$B83=\"Other Expenditure\",WorkingP!L83,\"\")","v":""},{"$f":"IF(WorkingP!$B83=\"Other Expenditure\",WorkingP!M83,\"\")","v":""},{"$f":"IF(WorkingP!$B83=\"Other Expenditure\",WorkingP!N83,\"\")","v":""},{"$f":"IF(WorkingP!$B83=\"Other Expenditure\",WorkingP!O83,\"\")","v":""},{"$f":"IF(WorkingP!$B83=\"Other Expenditure\",WorkingP!P83,\"\")","v":""},{"$f":"IF(WorkingP!$B83=\"Other Expenditure\",WorkingP!Q83,\"\")","v":""},{"$f":"IF(WorkingP!$B83=\"Other Expenditure\",WorkingP!R83,\"\")","v":""},{"$f":"IF(WorkingP!$B83=\"Other Expenditure\",WorkingP!S83,\"\")","v":""},{"$f":"IF(WorkingP!$B83=\"Other Expenditure\",WorkingP!T83,\"\")","v":""},{"$f":"IF(WorkingP!$B83=\"Other Expenditure\",WorkingP!U83,\"\")","v":""},{"$f":"IF(WorkingP!$B83=\"Other Expenditure\",WorkingP!V83,\"\")","v":""},{"$f":"IF(WorkingP!$B83=\"Other Expenditure\",WorkingP!W83,\"\")","v":""},{"$f":"IF(WorkingP!$B83=\"Other Expenditure\",WorkingP!X83,\"\")","v":""},{"$f":"IF(WorkingP!$B83=\"Other Expenditure\",WorkingP!Y83,\"\")","v":""},{"$f":"IF(Descriptions!K84=\"Other Expenditure\",Descriptions!AB84,0)","v":0}]
[null,{"$f":"SUM(B959:B1011)","v":0},0,0,0,0,0,0,0,0,0,0,0,0,0,0,0,0,0,0,0,0,null,{"$f":"X958","v":0}]
[null,null,null,null,null,null,null,null,null,null,null,null,null,null,null,null,null,null,null,null,null,null,null,1]
["TOTAL PRIOR YEAR PAYMENTS",{"$f":"SUM(B1012+B957+B900+B844+B789+B733+B675+B620)","v":0},0,0,0,0,0,0,0,0,0,0,0,0,0,0,0,0,0,0,0,0,null,1]
[null,null,null,null,null,null,null,null,null,null,null,null,null,null,null,null,null,null,null,null,null,null,null,1]
["TOTAL RECEIPTS",{"$f":"B563","v":0},0,0,0,0,0,0,0,0,0,0,0,0,0,0,0,0,0,0,0,0,null,1]
[null,null,null,null,null,null,null,null,null,null,null,null,null,null,null,null,null,null,null,null,null,null,null,1]
["EXCESS OF RECEIPTS OVER PAYMENTS",{"$f":"B1016-B1014","v":0},0,0,0,0,0,0,0,0,0,0,0,0,0,0,0,0,0,0,0,0,null,1]

{"sheet":"WorkingR","index":7,"n_rows":93,"n_cols":45,"rows_kept":93,"cut":false,"hidden":true,"merged":[]}
[]
[]
[null,null,null,{"$f":"'Bank and Fund Details'!B15","v":"General Fund"},{"$f":"'Bank and Fund Details'!B16","v":"Petty Cash"},{"$f":"'Bank and Fund Details'!B17","v":"Fund A"},{"$f":"'Bank and Fund Details'!B18","v":"Fund B"},{"$f":"'Bank and Fund Details'!B19","v":"Fund C"},{"$f":"'Bank and Fund Details'!B20","v":"Fund D"},{"$f":"'Bank and Fund Details'!B21","v":"Fund E"},{"$f":"'Bank and Fund Details'!B22","v":"Fund F"},{"$f":"'Bank and Fund Details'!B23","v":"Fund G"},{"$f":"'Bank and Fund Details'!B24","v":"Fund H"},{"$f":"'Bank and Fund Details'!B25","v":"Fund I"},{"$f":"'Bank and Fund Details'!B26","v":"Fund J"},{"$f":"'Bank and Fund Details'!B27","v":"Fund K"},{"$f":"'Bank and Fund Details'!B28","v":"Fund L"},{"$f":"'Bank and Fund Details'!B29","v":"Fund M"},{"$f":"'Bank and Fund Details'!B30","v":"Fund N"},{"$f":"'Bank and Fund Details'!B31","v":"Fund O"},{"$f":"'Bank and Fund Details'!B32","v":"Fund P"},{"$f":"'Bank and Fund Details'!B33","v":"Fund Q"},{"$f":"'Bank and Fund Details'!B34","v":"Fund R"},{"$f":"'Bank and Fund Details'!B35","v":"Fund S"},{"$f":"'Bank and Fund Details'!B36","v":"Fund T"},{"$f":"'Bank and Fund Details'!B39","v":"Investment A"},{"$f":"'Bank and Fund Details'!B40","v":"Investment B"},{"$f":"'Bank and Fund Details'!B41","v":"Investment C"},{"$f":"'Bank and Fund Details'!B42","v":"Investment D"},{"$f":"'Bank and Fund Details'!B43","v":"Investment E"},null,null,null,null,null,null,null,null,null,null,null,"Unrestricted","Designated","Restricted","Endowment"]
[null,null,null,{"$f":"'Bank and Fund Details'!C15","v":"Unrestricted"},{"$f":"'Bank and Fund Details'!C16","v":"Unrestricted"},{"$f":"'Bank and Fund Details'!C17","v":"Unrestricted"},{"$f":"'Bank and Fund Details'!C18","v":"Unrestricted"},{"$f":"'Bank and Fund Details'!C19","v":"Unrestricted"},{"$f":"'Bank and Fund Details'!C20","v":"Unrestricted"},{"$f":"'Bank and Fund Details'!C21","v":"Unrestricted"},{"$f":"'Bank and Fund Details'!C22","v":"Unrestricted"},{"$f":"'Bank and Fund Details'!C23","v":"Unrestricted"},{"$f":"'Bank and Fund Details'!C24","v":"Unrestricted"},{"$f":"'Bank and Fund Details'!C25","v":"Unrestricted"},{"$f":"'Bank and Fund Details'!C26","v":"Unrestricted"},{"$f":"'Bank and Fund Details'!C27","v":"Unrestricted"},{"$f":"'Bank and Fund Details'!C28","v":"Unrestricted"},{"$f":"'Bank and Fund Details'!C29","v":"Unrestricted"},{"$f":"'Bank and Fund Details'!C30","v":"Unrestricted"},{"$f":"'Bank and Fund Details'!C31","v":"Unrestricted"},{"$f":"'Bank and Fund Details'!C32","v":"Unrestricted"},{"$f":"'Bank and Fund Details'!C33","v":"Unrestricted"},{"$f":"'Bank and Fund Details'!C34","v":"Unrestricted"},{"$f":"'Bank and Fund Details'!C35","v":"Unrestricted"},{"$f":"'Bank and Fund Details'!C36","v":"Unrestricted"},{"$f":"'Bank and Fund Details'!C39","v":"Unrestricted"},{"$f":"'Bank and Fund Details'!C40","v":"Unrestricted"},{"$f":"'Bank and Fund Details'!C41","v":"Unrestricted"},{"$f":"'Bank and Fund Details'!C42","v":"Unrestricted"},{"$f":"'Bank and Fund Details'!C43","v":"Unrestricted"},null,"Unrestricted","Designated","Restricted","Endowment",null,null,null,4,"All other giving and voluntary receipts, including Special Appeals (recurring and one-off)",null,{"$f":"SUMPRODUCT(($D$4:$AD$4=$AP$3)*($C$5:$C$91=AN4)*($D$5:$AD$91))","v":0},{"$f":"SUMPRODUCT(($D$4:$AD$4=$AQ$3)*($C$5:$C$91=AN4)*($D$5:$AD$91))","v":0},{"$f":"SUMPRODUCT(($D$4:$AD$4=$AR$3)*($C$5:$C$91=AN4)*($D$5:$AD$91))","v":0},{"$f":"SUMPRODUCT(($D$4:$AD$4=$AS$3)*($C$5:$C$91=AN4)*($D$5:$AD$91))","v":0}]
[{"$f":"Descriptions!B6","v":"Appeals"},{"$f":"Descriptions!D6","v":"All other giving/voluntary receipts"},{"$f":"Descriptions!E6","v":"All other giving and voluntary receipts, including Special Appeals (recurring and one-off)"},{"$f":"SUMPRODUCT(--(Receipts!$C$5:$C$1355=A5),--(Receipts!$D$5:$D$1355=$D$3),Receipts!$E$5:$E$1355)","v":0},{"$f":"SUMPRODUCT(--(Receipts!$C$5:$C$1355=A5),--(Receipts!$D$5:$D$1355=$E$3),Receipts!$E$5:$E$1355)","v":0},{"$f":"SUMPRODUCT(--(Receipts!$C$5:$C$1355=A5),--(Receipts!$D$5:$D$1355=$F$3),Receipts!$E$5:$E$1355)","v":0},{"$f":"SUMPRODUCT(--(Receipts!$C$5:$C$1355=A5),--(Receipts!$D$5:$D$1355=$G$3),Receipts!$E$5:$E$1355)","v":0},{"$f":"SUMPRODUCT(--(Receipts!$C$5:$C$1355=A5),--(Receipts!$D$5:$D$1355=$H$3),Receipts!$E$5:$E$1355)","v":0},{"$f":"SUMPRODUCT(--(Receipts!$C$5:$C$1355=A5),--(Receipts!$D$5:$D$1355=$I$3),Receipts!$E$5:$E$1355)","v":0},{"$f":"SUMPRODUCT(--(Receipts!$C$5:$C$1355=A5),--(Receipts!$D$5:$D$1355=$J$3),Receipts!$E$5:$E$1355)","v":0},{"$f":"SUMPRODUCT(--(Receipts!$C$5:$C$1355=A5),--(Receipts!$D$5:$D$1355=$K$3),Receipts!$E$5:$E$1355)","v":0},{"$f":"SUMPRODUCT(--(Receipts!$C$5:$C$1355=A5),--(Receipts!$D$5:$D$1355=$L$3),Receipts!$E$5:$E$1355)","v":0},{"$f":"SUMPRODUCT(--(Receipts!$C$5:$C$1355=A5),--(Receipts!$D$5:$D$1355=$M$3),Receipts!$E$5:$E$1355)","v":0},{"$f":"SUMPRODUCT(--(Receipts!$C$5:$C$1355=A5),--(Receipts!$D$5:$D$1355=$N$3),Receipts!$E$5:$E$1355)","v":0},{"$f":"SUMPRODUCT(--(Receipts!$C$5:$C$1355=A5),--(Receipts!$D$5:$D$1355=$O$3),Receipts!$E$5:$E$1355)","v":0},{"$f":"SUMPRODUCT(--(Receipts!$C$5:$C$1355=A5),--(Receipts!$D$5:$D$1355=$P$3),Receipts!$E$5:$E$1355)","v":0},{"$f":"SUMPRODUCT(--(Receipts!$C$5:$C$1355=A5),--(Receipts!$D$5:$D$1355=$Q$3),Receipts!$E$5:$E$1355)","v":0},{"$f":"SUMPRODUCT(--(Receipts!$C$5:$C$1355=A5),--(Receipts!$D$5:$D$1355=$R$3),Receipts!$E$5:$E$1355)","v":0},{"$f":"SUMPRODUCT(--(Receipts!$C$5:$C$1355=A5),--(Receipts!$D$5:$D$1355=$S$3),Receipts!$E$5:$E$1355)","v":0},{"$f":"SUMPRODUCT(--(Receipts!$C$5:$C$1355=A5),--(Receipts!$D$5:$D$1355=$T$3),Receipts!$E$5:$E$1355)","v":0},{"$f":"SUMPRODUCT(--(Receipts!$C$5:$C$1355=A5),--(Receipts!$D$5:$D$1355=$U$3),Receipts!$E$5:$E$1355)","v":0},{"$f":"SUMPRODUCT(--(Receipts!$C$5:$C$1355=A5),--(Receipts!$D$5:$D$1355=$V$3),Receipts!$E$5:$E$1355)","v":0},{"$f":"SUMPRODUCT(--(Receipts!$C$5:$C$1355=A5),--(Receipts!$D$5:$D$1355=$W$3),Receipts!$E$5:$E$1355)","v":0},{"$f":"SUMPRODUCT(--(Receipts!$C$5:$C$1355=A5),--(Receipts!$D$5:$D$1355=$X$3),Receipts!$E$5:$E$1355)","v":0},{"$f":"SUMPRODUCT(--(Receipts!$C$5:$C$1355=A5),--(Receipts!$D$5:$D$1355=$Y$3),Receipts!$E$5:$E$1355)","v":0},{"$f":"SUMPRODUCT(--(Receipts!$C$5:$C$1355=A5),--(Receipts!$D$5:$D$1355=$Z$3),Receipts!$E$5:$E$1355)","v":0},{"$f":"SUMPRODUCT(--(Receipts!$C$5:$C$1355=A5),--(Receipts!$D$5:$D$1355=$AA$3),Receipts!$E$5:$E$1355)","v":0},{"$f":"SUMPRODUCT(--(Receipts!$C$5:$C$1355=A5),--(Receipts!$D$5:$D$1355=$AB$3),Receipts!$E$5:$E$1355)","v":0},{"$f":"SUMPRODUCT(--(Receipts!$C$5:$C$1355=A5),--(Receipts!$D$5:$D$1355=$AC$3),Receipts!$E$5:$E$1355)","v":0},{"$f":"SUMPRODUCT(--(Receipts!$C$5:$C$1355=A5),--(Receipts!$D$5:$D$1355=$AD$3),Receipts!$E$5:$E$1355)","v":0},{"$f":"SUM(D5:Y5)","v":0},{"$f":"SUMPRODUCT(($D$4:$AD$4=$AF$4)*(D5:AD5))","v":0},{"$f":"SUMPRODUCT(($D$4:$AD$4=$AG$4)*(D5:AD5))","v":0},{"$f":"SUMPRODUCT(($D$4:$AD$4=$AH$4)*(D5:AD5))","v":0},{"$f":"SUMPRODUCT(($D$4:$AD$4=$AI$4)*(D5:AD5))","v":0},null,null,null,3,"Collections at services",null,0,{"$f":"SUMPRODUCT(($D$4:$AD$4=$AQ$3)*($C$5:$C$91=AN5)*($D$5:$AD$91))","v":0},{"$f":"SUMPRODUCT(($D$4:$AD$4=$AR$3)*($C$5:$C$91=AN5)*($D$5:$AD$91))","v":0},{"$f":"SUMPRODUCT(($D$4:$AD$4=$AS$3)*($C$5:$C$91=AN5)*($D$5:$AD$91))","v":0}]
[{"$f":"Descriptions!B7","v":"Bookstall"},{"$f":"Descriptions!D7","v":"Activites for generating funds"},{"$f":"Descriptions!E7","v":"Gross receipts from trading (e.g. hall lettings, magazine, bookstall) NOT fundraising."},{"$f":"SUMPRODUCT(--(Receipts!$C$5:$C$1355=A6),--(Receipts!$D$5:$D$1355=$D$3),Receipts!$E$5:$E$1355)","v":0},{"$f":"SUMPRODUCT(--(Receipts!$C$5:$C$1355=A6),--(Receipts!$D$5:$D$1355=$E$3),Receipts!$E$5:$E$1355)","v":0},{"$f":"SUMPRODUCT(--(Receipts!$C$5:$C$1355=A6),--(Receipts!$D$5:$D$1355=$F$3),Receipts!$E$5:$E$1355)","v":0},{"$f":"SUMPRODUCT(--(Receipts!$C$5:$C$1355=A6),--(Receipts!$D$5:$D$1355=$G$3),Receipts!$E$5:$E$1355)","v":0},{"$f":"SUMPRODUCT(--(Receipts!$C$5:$C$1355=A6),--(Receipts!$D$5:$D$1355=$H$3),Receipts!$E$5:$E$1355)","v":0},{"$f":"SUMPRODUCT(--(Receipts!$C$5:$C$1355=A6),--(Receipts!$D$5:$D$1355=$I$3),Receipts!$E$5:$E$1355)","v":0},{"$f":"SUMPRODUCT(--(Receipts!$C$5:$C$1355=A6),--(Receipts!$D$5:$D$1355=$J$3),Receipts!$E$5:$E$1355)","v":0},{"$f":"SUMPRODUCT(--(Receipts!$C$5:$C$1355=A6),--(Receipts!$D$5:$D$1355=$K$3),Receipts!$E$5:$E$1355)","v":0},{"$f":"SUMPRODUCT(--(Receipts!$C$5:$C$1355=A6),--(Receipts!$D$5:$D$1355=$L$3),Receipts!$E$5:$E$1355)","v":0},{"$f":"SUMPRODUCT(--(Receipts!$C$5:$C$1355=A6),--(Receipts!$D$5:$D$1355=$M$3),Receipts!$E$5:$E$1355)","v":0},{"$f":"SUMPRODUCT(--(Receipts!$C$5:$C$1355=A6),--(Receipts!$D$5:$D$1355=$N$3),Receipts!$E$5:$E$1355)","v":0},{"$f":"SUMPRODUCT(--(Receipts!$C$5:$C$1355=A6),--(Receipts!$D$5:$D$1355=$O$3),Receipts!$E$5:$E$1355)","v":0},{"$f":"SUMPRODUCT(--(Receipts!$C$5:$C$1355=A6),--(Receipts!$D$5:$D$1355=$P$3),Receipts!$E$5:$E$1355)","v":0},{"$f":"SUMPRODUCT(--(Receipts!$C$5:$C$1355=A6),--(Receipts!$D$5:$D$1355=$Q$3),Receipts!$E$5:$E$1355)","v":0},{"$f":"SUMPRODUCT(--(Receipts!$C$5:$C$1355=A6),--(Receipts!$D$5:$D$1355=$R$3),Receipts!$E$5:$E$1355)","v":0},{"$f":"SUMPRODUCT(--(Receipts!$C$5:$C$1355=A6),--(Receipts!$D$5:$D$1355=$S$3),Receipts!$E$5:$E$1355)","v":0},{"$f":"SUMPRODUCT(--(Receipts!$C$5:$C$1355=A6),--(Receipts!$D$5:$D$1355=$T$3),Receipts!$E$5:$E$1355)","v":0},{"$f":"SUMPRODUCT(--(Receipts!$C$5:$C$1355=A6),--(Receipts!$D$5:$D$1355=$U$3),Receipts!$E$5:$E$1355)","v":0},{"$f":"SUMPRODUCT(--(Receipts!$C$5:$C$1355=A6),--(Receipts!$D$5:$D$1355=$V$3),Receipts!$E$5:$E$1355)","v":0},{"$f":"SUMPRODUCT(--(Receipts!$C$5:$C$1355=A6),--(Receipts!$D$5:$D$1355=$W$3),Receipts!$E$5:$E$1355)","v":0},{"$f":"SUMPRODUCT(--(Receipts!$C$5:$C$1355=A6),--(Receipts!$D$5:$D$1355=$X$3),Receipts!$E$5:$E$1355)","v":0},{"$f":"SUMPRODUCT(--(Receipts!$C$5:$C$1355=A6),--(Receipts!$D$5:$D$1355=$Y$3),Receipts!$E$5:$E$1355)","v":0},{"$f":"SUMPRODUCT(--(Receipts!$C$5:$C$1355=A6),--(Receipts!$D$5:$D$1355=$Z$3),Receipts!$E$5:$E$1355)","v":0},{"$f":"SUMPRODUCT(--(Receipts!$C$5:$C$1355=A6),--(Receipts!$D$5:$D$1355=$AA$3),Receipts!$E$5:$E$1355)","v":0},{"$f":"SUMPRODUCT(--(Receipts!$C$5:$C$1355=A6),--(Receipts!$D$5:$D$1355=$AB$3),Receipts!$E$5:$E$1355)","v":0},{"$f":"SUMPRODUCT(--(Receipts!$C$5:$C$1355=A6),--(Receipts!$D$5:$D$1355=$AC$3),Receipts!$E$5:$E$1355)","v":0},{"$f":"SUMPRODUCT(--(Receipts!$C$5:$C$1355=A6),--(Receipts!$D$5:$D$1355=$AD$3),Receipts!$E$5:$E$1355)","v":0},null,{"$f":"SUMPRODUCT(($D$4:$AD$4=$AF$4)*(D6:AD6))","v":0},0,0,0,null,null,null,10,"Dividends, interest, receipts from property etc. ",null,0,0,0,0]
[{"$f":"Descriptions!B8","v":"CAF & GAYE giving"},{"$f":"Descriptions!D8","v":"All other giving/voluntary receipts"},{"$f":"Descriptions!E8","v":"All other giving and voluntary receipts, including Special Appeals (recurring and one-off)"},{"$f":"SUMPRODUCT(--(Receipts!$C$5:$C$1355=A7),--(Receipts!$D$5:$D$1355=$D$3),Receipts!$E$5:$E$1355)","v":0},{"$f":"SUMPRODUCT(--(Receipts!$C$5:$C$1355=A7),--(Receipts!$D$5:$D$1355=$E$3),Receipts!$E$5:$E$1355)","v":0},{"$f":"SUMPRODUCT(--(Receipts!$C$5:$C$1355=A7),--(Receipts!$D$5:$D$1355=$F$3),Receipts!$E$5:$E$1355)","v":0},{"$f":"SUMPRODUCT(--(Receipts!$C$5:$C$1355=A7),--(Receipts!$D$5:$D$1355=$G$3),Receipts!$E$5:$E$1355)","v":0},{"$f":"SUMPRODUCT(--(Receipts!$C$5:$C$1355=A7),--(Receipts!$D$5:$D$1355=$H$3),Receipts!$E$5:$E$1355)","v":0},{"$f":"SUMPRODUCT(--(Receipts!$C$5:$C$1355=A7),--(Receipts!$D$5:$D$1355=$I$3),Receipts!$E$5:$E$1355)","v":0},{"$f":"SUMPRODUCT(--(Receipts!$C$5:$C$1355=A7),--(Receipts!$D$5:$D$1355=$J$3),Receipts!$E$5:$E$1355)","v":0},{"$f":"SUMPRODUCT(--(Receipts!$C$5:$C$1355=A7),--(Receipts!$D$5:$D$1355=$K$3),Receipts!$E$5:$E$1355)","v":0},{"$f":"SUMPRODUCT(--(Receipts!$C$5:$C$1355=A7),--(Receipts!$D$5:$D$1355=$L$3),Receipts!$E$5:$E$1355)","v":0},{"$f":"SUMPRODUCT(--(Receipts!$C$5:$C$1355=A7),--(Receipts!$D$5:$D$1355=$M$3),Receipts!$E$5:$E$1355)","v":0},{"$f":"SUMPRODUCT(--(Receipts!$C$5:$C$1355=A7),--(Receipts!$D$5:$D$1355=$N$3),Receipts!$E$5:$E$1355)","v":0},{"$f":"SUMPRODUCT(--(Receipts!$C$5:$C$1355=A7),--(Receipts!$D$5:$D$1355=$O$3),Receipts!$E$5:$E$1355)","v":0},{"$f":"SUMPRODUCT(--(Receipts!$C$5:$C$1355=A7),--(Receipts!$D$5:$D$1355=$P$3),Receipts!$E$5:$E$1355)","v":0},{"$f":"SUMPRODUCT(--(Receipts!$C$5:$C$1355=A7),--(Receipts!$D$5:$D$1355=$Q$3),Receipts!$E$5:$E$1355)","v":0},{"$f":"SUMPRODUCT(--(Receipts!$C$5:$C$1355=A7),--(Receipts!$D$5:$D$1355=$R$3),Receipts!$E$5:$E$1355)","v":0},{"$f":"SUMPRODUCT(--(Receipts!$C$5:$C$1355=A7),--(Receipts!$D$5:$D$1355=$S$3),Receipts!$E$5:$E$1355)","v":0},{"$f":"SUMPRODUCT(--(Receipts!$C$5:$C$1355=A7),--(Receipts!$D$5:$D$1355=$T$3),Receipts!$E$5:$E$1355)","v":0},{"$f":"SUMPRODUCT(--(Receipts!$C$5:$C$1355=A7),--(Receipts!$D$5:$D$1355=$U$3),Receipts!$E$5:$E$1355)","v":0},{"$f":"SUMPRODUCT(--(Receipts!$C$5:$C$1355=A7),--(Receipts!$D$5:$D$1355=$V$3),Receipts!$E$5:$E$1355)","v":0},{"$f":"SUMPRODUCT(--(Receipts!$C$5:$C$1355=A7),--(Receipts!$D$5:$D$1355=$W$3),Receipts!$E$5:$E$1355)","v":0},{"$f":"SUMPRODUCT(--(Receipts!$C$5:$C$1355=A7),--(Receipts!$D$5:$D$1355=$X$3),Receipts!$E$5:$E$1355)","v":0},{"$f":"SUMPRODUCT(--(Receipts!$C$5:$C$1355=A7),--(Receipts!$D$5:$D$1355=$Y$3),Receipts!$E$5:$E$1355)","v":0},{"$f":"SUMPRODUCT(--(Receipts!$C$5:$C$1355=A7),--(Receipts!$D$5:$D$1355=$Z$3),Receipts!$E$5:$E$1355)","v":0},{"$f":"SUMPRODUCT(--(Receipts!$C$5:$C$1355=A7),--(Receipts!$D$5:$D$1355=$AA$3),Receipts!$E$5:$E$1355)","v":0},{"$f":"SUMPRODUCT(--(Receipts!$C$5:$C$1355=A7),--(Receipts!$D$5:$D$1355=$AB$3),Receipts!$E$5:$E$1355)","v":0},{"$f":"SUMPRODUCT(--(Receipts!$C$5:$C$1355=A7),--(Receipts!$D$5:$D$1355=$AC$3),Receipts!$E$5:$E$1355)","v":0},{"$f":"SUMPRODUCT(--(Receipts!$C$5:$C$1355=A7),--(Receipts!$D$5:$D$1355=$AD$3),Receipts!$E$5:$E$1355)","v":0},null,0,0,0,0,null,null,null,6,"Gift Aid recovered",null,0,0,0,0]
[{"$f":"Descriptions!B9","v":"Church Building Appeal"},{"$f":"Descriptions!D9","v":"Church Activities"},{"$f":"Descriptions!E9","v":"All other giving and voluntary receipts, including Special Appeals (recurring and one-off)"},{"$f":"SUMPRODUCT(--(Receipts!$C$5:$C$1355=A8),--(Receipts!$D$5:$D$1355=$D$3),Receipts!$E$5:$E$1355)","v":0},{"$f":"SUMPRODUCT(--(Receipts!$C$5:$C$1355=A8),--(Receipts!$D$5:$D$1355=$E$3),Receipts!$E$5:$E$1355)","v":0},{"$f":"SUMPRODUCT(--(Receipts!$C$5:$C$1355=A8),--(Receipts!$D$5:$D$1355=$F$3),Receipts!$E$5:$E$1355)","v":0},{"$f":"SUMPRODUCT(--(Receipts!$C$5:$C$1355=A8),--(Receipts!$D$5:$D$1355=$G$3),Receipts!$E$5:$E$1355)","v":0},{"$f":"SUMPRODUCT(--(Receipts!$C$5:$C$1355=A8),--(Receipts!$D$5:$D$1355=$H$3),Receipts!$E$5:$E$1355)","v":0},{"$f":"SUMPRODUCT(--(Receipts!$C$5:$C$1355=A8),--(Receipts!$D$5:$D$1355=$I$3),Receipts!$E$5:$E$1355)","v":0},{"$f":"SUMPRODUCT(--(Receipts!$C$5:$C$1355=A8),--(Receipts!$D$5:$D$1355=$J$3),Receipts!$E$5:$E$1355)","v":0},{"$f":"SUMPRODUCT(--(Receipts!$C$5:$C$1355=A8),--(Receipts!$D$5:$D$1355=$K$3),Receipts!$E$5:$E$1355)","v":0},{"$f":"SUMPRODUCT(--(Receipts!$C$5:$C$1355=A8),--(Receipts!$D$5:$D$1355=$L$3),Receipts!$E$5:$E$1355)","v":0},{"$f":"SUMPRODUCT(--(Receipts!$C$5:$C$1355=A8),--(Receipts!$D$5:$D$1355=$M$3),Receipts!$E$5:$E$1355)","v":0},{"$f":"SUMPRODUCT(--(Receipts!$C$5:$C$1355=A8),--(Receipts!$D$5:$D$1355=$N$3),Receipts!$E$5:$E$1355)","v":0},{"$f":"SUMPRODUCT(--(Receipts!$C$5:$C$1355=A8),--(Receipts!$D$5:$D$1355=$O$3),Receipts!$E$5:$E$1355)","v":0},{"$f":"SUMPRODUCT(--(Receipts!$C$5:$C$1355=A8),--(Receipts!$D$5:$D$1355=$P$3),Receipts!$E$5:$E$1355)","v":0},{"$f":"SUMPRODUCT(--(Receipts!$C$5:$C$1355=A8),--(Receipts!$D$5:$D$1355=$Q$3),Receipts!$E$5:$E$1355)","v":0},{"$f":"SUMPRODUCT(--(Receipts!$C$5:$C$1355=A8),--(Receipts!$D$5:$D$1355=$R$3),Receipts!$E$5:$E$1355)","v":0},{"$f":"SUMPRODUCT(--(Receipts!$C$5:$C$1355=A8),--(Receipts!$D$5:$D$1355=$S$3),Receipts!$E$5:$E$1355)","v":0},{"$f":"SUMPRODUCT(--(Receipts!$C$5:$C$1355=A8),--(Receipts!$D$5:$D$1355=$T$3),Receipts!$E$5:$E$1355)","v":0},{"$f":"SUMPRODUCT(--(Receipts!$C$5:$C$1355=A8),--(Receipts!$D$5:$D$1355=$U$3),Receipts!$E$5:$E$1355)","v":0},{"$f":"SUMPRODUCT(--(Receipts!$C$5:$C$1355=A8),--(Receipts!$D$5:$D$1355=$V$3),Receipts!$E$5:$E$1355)","v":0},{"$f":"SUMPRODUCT(--(Receipts!$C$5:$C$1355=A8),--(Receipts!$D$5:$D$1355=$W$3),Receipts!$E$5:$E$1355)","v":0},{"$f":"SUMPRODUCT(--(Receipts!$C$5:$C$1355=A8),--(Receipts!$D$5:$D$1355=$X$3),Receipts!$E$5:$E$1355)","v":0},{"$f":"SUMPRODUCT(--(Receipts!$C$5:$C$1355=A8),--(Receipts!$D$5:$D$1355=$Y$3),Receipts!$E$5:$E$1355)","v":0},{"$f":"SUMPRODUCT(--(Receipts!$C$5:$C$1355=A8),--(Receipts!$D$5:$D$1355=$Z$3),Receipts!$E$5:$E$1355)","v":0},{"$f":"SUMPRODUCT(--(Receipts!$C$5:$C$1355=A8),--(Receipts!$D$5:$D$1355=$AA$3),Receipts!$E$5:$E$1355)","v":0},{"$f":"SUMPRODUCT(--(Receipts!$C$5:$C$1355=A8),--(Receipts!$D$5:$D$1355=$AB$3),Receipts!$E$5:$E$1355)","v":0},{"$f":"SUMPRODUCT(--(Receipts!$C$5:$C$1355=A8),--(Receipts!$D$5:$D$1355=$AC$3),Receipts!$E$5:$E$1355)","v":0},{"$f":"SUMPRODUCT(--(Receipts!$C$5:$C$1355=A8),--(Receipts!$D$5:$D$1355=$AD$3),Receipts!$E$5:$E$1355)","v":0},null,0,0,0,0,null,null,null,8,"Grants (include recurring and one-off)",null,0,0,0,0]
[{"$f":"Descriptions!B10","v":"Churches Together Bike Ride"},{"$f":"Descriptions!D10","v":"Activites for generating funds"},{"$f":"Descriptions!E10","v":"Gross receipts from fundraising activities"},{"$f":"SUMPRODUCT(--(Receipts!$C$5:$C$1355=A9),--(Receipts!$D$5:$D$1355=$D$3),Receipts!$E$5:$E$1355)","v":0},{"$f":"SUMPRODUCT(--(Receipts!$C$5:$C$1355=A9),--(Receipts!$D$5:$D$1355=$E$3),Receipts!$E$5:$E$1355)","v":0},{"$f":"SUMPRODUCT(--(Receipts!$C$5:$C$1355=A9),--(Receipts!$D$5:$D$1355=$F$3),Receipts!$E$5:$E$1355)","v":0},{"$f":"SUMPRODUCT(--(Receipts!$C$5:$C$1355=A9),--(Receipts!$D$5:$D$1355=$G$3),Receipts!$E$5:$E$1355)","v":0},{"$f":"SUMPRODUCT(--(Receipts!$C$5:$C$1355=A9),--(Receipts!$D$5:$D$1355=$H$3),Receipts!$E$5:$E$1355)","v":0},{"$f":"SUMPRODUCT(--(Receipts!$C$5:$C$1355=A9),--(Receipts!$D$5:$D$1355=$I$3),Receipts!$E$5:$E$1355)","v":0},{"$f":"SUMPRODUCT(--(Receipts!$C$5:$C$1355=A9),--(Receipts!$D$5:$D$1355=$J$3),Receipts!$E$5:$E$1355)","v":0},{"$f":"SUMPRODUCT(--(Receipts!$C$5:$C$1355=A9),--(Receipts!$D$5:$D$1355=$K$3),Receipts!$E$5:$E$1355)","v":0},{"$f":"SUMPRODUCT(--(Receipts!$C$5:$C$1355=A9),--(Receipts!$D$5:$D$1355=$L$3),Receipts!$E$5:$E$1355)","v":0},{"$f":"SUMPRODUCT(--(Receipts!$C$5:$C$1355=A9),--(Receipts!$D$5:$D$1355=$M$3),Receipts!$E$5:$E$1355)","v":0},{"$f":"SUMPRODUCT(--(Receipts!$C$5:$C$1355=A9),--(Receipts!$D$5:$D$1355=$N$3),Receipts!$E$5:$E$1355)","v":0},{"$f":"SUMPRODUCT(--(Receipts!$C$5:$C$1355=A9),--(Receipts!$D$5:$D$1355=$O$3),Receipts!$E$5:$E$1355)","v":0},{"$f":"SUMPRODUCT(--(Receipts!$C$5:$C$1355=A9),--(Receipts!$D$5:$D$1355=$P$3),Receipts!$E$5:$E$1355)","v":0},{"$f":"SUMPRODUCT(--(Receipts!$C$5:$C$1355=A9),--(Receipts!$D$5:$D$1355=$Q$3),Receipts!$E$5:$E$1355)","v":0},{"$f":"SUMPRODUCT(--(Receipts!$C$5:$C$1355=A9),--(Receipts!$D$5:$D$1355=$R$3),Receipts!$E$5:$E$1355)","v":0},{"$f":"SUMPRODUCT(--(Receipts!$C$5:$C$1355=A9),--(Receipts!$D$5:$D$1355=$S$3),Receipts!$E$5:$E$1355)","v":0},{"$f":"SUMPRODUCT(--(Receipts!$C$5:$C$1355=A9),--(Receipts!$D$5:$D$1355=$T$3),Receipts!$E$5:$E$1355)","v":0},{"$f":"SUMPRODUCT(--(Receipts!$C$5:$C$1355=A9),--(Receipts!$D$5:$D$1355=$U$3),Receipts!$E$5:$E$1355)","v":0},{"$f":"SUMPRODUCT(--(Receipts!$C$5:$C$1355=A9),--(Receipts!$D$5:$D$1355=$V$3),Receipts!$E$5:$E$1355)","v":0},{"$f":"SUMPRODUCT(--(Receipts!$C$5:$C$1355=A9),--(Receipts!$D$5:$D$1355=$W$3),Receipts!$E$5:$E$1355)","v":0},{"$f":"SUMPRODUCT(--(Receipts!$C$5:$C$1355=A9),--(Receipts!$D$5:$D$1355=$X$3),Receipts!$E$5:$E$1355)","v":0},{"$f":"SUMPRODUCT(--(Receipts!$C$5:$C$1355=A9),--(Receipts!$D$5:$D$1355=$Y$3),Receipts!$E$5:$E$1355)","v":0},{"$f":"SUMPRODUCT(--(Receipts!$C$5:$C$1355=A9),--(Receipts!$D$5:$D$1355=$Z$3),Receipts!$E$5:$E$1355)","v":0},{"$f":"SUMPRODUCT(--(Receipts!$C$5:$C$1355=A9),--(Receipts!$D$5:$D$1355=$AA$3),Receipts!$E$5:$E$1355)","v":0},{"$f":"SUMPRODUCT(--(Receipts!$C$5:$C$1355=A9),--(Receipts!$D$5:$D$1355=$AB$3),Receipts!$E$5:$E$1355)","v":0},{"$f":"SUMPRODUCT(--(Receipts!$C$5:$C$1355=A9),--(Receipts!$D$5:$D$1355=$AC$3),Receipts!$E$5:$E$1355)","v":0},{"$f":"SUMPRODUCT(--(Receipts!$C$5:$C$1355=A9),--(Receipts!$D$5:$D$1355=$AD$3),Receipts!$E$5:$E$1355)","v":0},null,0,0,0,0,null,null,null,9,"Gross receipts from fundraising activities",null,0,0,0,0]
[{"$f":"Descriptions!B11","v":"Dividends and Interest"},{"$f":"Descriptions!D11","v":"Investment Income"},{"$f":"Descriptions!E11","v":"Dividends, interest, receipts from property etc. "},{"$f":"SUMPRODUCT(--(Receipts!$C$5:$C$1355=A10),--(Receipts!$D$5:$D$1355=$D$3),Receipts!$E$5:$E$1355)","v":0},{"$f":"SUMPRODUCT(--(Receipts!$C$5:$C$1355=A10),--(Receipts!$D$5:$D$1355=$E$3),Receipts!$E$5:$E$1355)","v":0},{"$f":"SUMPRODUCT(--(Receipts!$C$5:$C$1355=A10),--(Receipts!$D$5:$D$1355=$F$3),Receipts!$E$5:$E$1355)","v":0},{"$f":"SUMPRODUCT(--(Receipts!$C$5:$C$1355=A10),--(Receipts!$D$5:$D$1355=$G$3),Receipts!$E$5:$E$1355)","v":0},{"$f":"SUMPRODUCT(--(Receipts!$C$5:$C$1355=A10),--(Receipts!$D$5:$D$1355=$H$3),Receipts!$E$5:$E$1355)","v":0},{"$f":"SUMPRODUCT(--(Receipts!$C$5:$C$1355=A10),--(Receipts!$D$5:$D$1355=$I$3),Receipts!$E$5:$E$1355)","v":0},{"$f":"SUMPRODUCT(--(Receipts!$C$5:$C$1355=A10),--(Receipts!$D$5:$D$1355=$J$3),Receipts!$E$5:$E$1355)","v":0},{"$f":"SUMPRODUCT(--(Receipts!$C$5:$C$1355=A10),--(Receipts!$D$5:$D$1355=$K$3),Receipts!$E$5:$E$1355)","v":0},{"$f":"SUMPRODUCT(--(Receipts!$C$5:$C$1355=A10),--(Receipts!$D$5:$D$1355=$L$3),Receipts!$E$5:$E$1355)","v":0},{"$f":"SUMPRODUCT(--(Receipts!$C$5:$C$1355=A10),--(Receipts!$D$5:$D$1355=$M$3),Receipts!$E$5:$E$1355)","v":0},{"$f":"SUMPRODUCT(--(Receipts!$C$5:$C$1355=A10),--(Receipts!$D$5:$D$1355=$N$3),Receipts!$E$5:$E$1355)","v":0},{"$f":"SUMPRODUCT(--(Receipts!$C$5:$C$1355=A10),--(Receipts!$D$5:$D$1355=$O$3),Receipts!$E$5:$E$1355)","v":0},{"$f":"SUMPRODUCT(--(Receipts!$C$5:$C$1355=A10),--(Receipts!$D$5:$D$1355=$P$3),Receipts!$E$5:$E$1355)","v":0},{"$f":"SUMPRODUCT(--(Receipts!$C$5:$C$1355=A10),--(Receipts!$D$5:$D$1355=$Q$3),Receipts!$E$5:$E$1355)","v":0},{"$f":"SUMPRODUCT(--(Receipts!$C$5:$C$1355=A10),--(Receipts!$D$5:$D$1355=$R$3),Receipts!$E$5:$E$1355)","v":0},{"$f":"SUMPRODUCT(--(Receipts!$C$5:$C$1355=A10),--(Receipts!$D$5:$D$1355=$S$3),Receipts!$E$5:$E$1355)","v":0},{"$f":"SUMPRODUCT(--(Receipts!$C$5:$C$1355=A10),--(Receipts!$D$5:$D$1355=$T$3),Receipts!$E$5:$E$1355)","v":0},{"$f":"SUMPRODUCT(--(Receipts!$C$5:$C$1355=A10),--(Receipts!$D$5:$D$1355=$U$3),Receipts!$E$5:$E$1355)","v":0},{"$f":"SUMPRODUCT(--(Receipts!$C$5:$C$1355=A10),--(Receipts!$D$5:$D$1355=$V$3),Receipts!$E$5:$E$1355)","v":0},{"$f":"SUMPRODUCT(--(Receipts!$C$5:$C$1355=A10),--(Receipts!$D$5:$D$1355=$W$3),Receipts!$E$5:$E$1355)","v":0},{"$f":"SUMPRODUCT(--(Receipts!$C$5:$C$1355=A10),--(Receipts!$D$5:$D$1355=$X$3),Receipts!$E$5:$E$1355)","v":0},{"$f":"SUMPRODUCT(--(Receipts!$C$5:$C$1355=A10),--(Receipts!$D$5:$D$1355=$Y$3),Receipts!$E$5:$E$1355)","v":0},{"$f":"SUMPRODUCT(--(Receipts!$C$5:$C$1355=A10),--(Receipts!$D$5:$D$1355=$Z$3),Receipts!$E$5:$E$1355)","v":0},{"$f":"SUMPRODUCT(--(Receipts!$C$5:$C$1355=A10),--(Receipts!$D$5:$D$1355=$AA$3),Receipts!$E$5:$E$1355)","v":0},{"$f":"SUMPRODUCT(--(Receipts!$C$5:$C$1355=A10),--(Receipts!$D$5:$D$1355=$AB$3),Receipts!$E$5:$E$1355)","v":0},{"$f":"SUMPRODUCT(--(Receipts!$C$5:$C$1355=A10),--(Receipts!$D$5:$D$1355=$AC$3),Receipts!$E$5:$E$1355)","v":0},{"$f":"SUMPRODUCT(--(Receipts!$C$5:$C$1355=A10),--(Receipts!$D$5:$D$1355=$AD$3),Receipts!$E$5:$E$1355)","v":0},null,0,0,0,0,null,null,null,12,"Gross receipts from trading (e.g. hall lettings, magazine, bookstall) NOT fundraising.",null,0,0,0,0]
[{"$f":"Descriptions!B12","v":"Donations"},{"$f":"Descriptions!D12","v":"All other giving/voluntary receipts"},{"$f":"Descriptions!E12","v":"Other planned giving"},{"$f":"SUMPRODUCT(--(Receipts!$C$5:$C$1355=A11),--(Receipts!$D$5:$D$1355=$D$3),Receipts!$E$5:$E$1355)","v":0},{"$f":"SUMPRODUCT(--(Receipts!$C$5:$C$1355=A11),--(Receipts!$D$5:$D$1355=$E$3),Receipts!$E$5:$E$1355)","v":0},{"$f":"SUMPRODUCT(--(Receipts!$C$5:$C$1355=A11),--(Receipts!$D$5:$D$1355=$F$3),Receipts!$E$5:$E$1355)","v":0},{"$f":"SUMPRODUCT(--(Receipts!$C$5:$C$1355=A11),--(Receipts!$D$5:$D$1355=$G$3),Receipts!$E$5:$E$1355)","v":0},{"$f":"SUMPRODUCT(--(Receipts!$C$5:$C$1355=A11),--(Receipts!$D$5:$D$1355=$H$3),Receipts!$E$5:$E$1355)","v":0},{"$f":"SUMPRODUCT(--(Receipts!$C$5:$C$1355=A11),--(Receipts!$D$5:$D$1355=$I$3),Receipts!$E$5:$E$1355)","v":0},{"$f":"SUMPRODUCT(--(Receipts!$C$5:$C$1355=A11),--(Receipts!$D$5:$D$1355=$J$3),Receipts!$E$5:$E$1355)","v":0},{"$f":"SUMPRODUCT(--(Receipts!$C$5:$C$1355=A11),--(Receipts!$D$5:$D$1355=$K$3),Receipts!$E$5:$E$1355)","v":0},{"$f":"SUMPRODUCT(--(Receipts!$C$5:$C$1355=A11),--(Receipts!$D$5:$D$1355=$L$3),Receipts!$E$5:$E$1355)","v":0},{"$f":"SUMPRODUCT(--(Receipts!$C$5:$C$1355=A11),--(Receipts!$D$5:$D$1355=$M$3),Receipts!$E$5:$E$1355)","v":0},{"$f":"SUMPRODUCT(--(Receipts!$C$5:$C$1355=A11),--(Receipts!$D$5:$D$1355=$N$3),Receipts!$E$5:$E$1355)","v":0},{"$f":"SUMPRODUCT(--(Receipts!$C$5:$C$1355=A11),--(Receipts!$D$5:$D$1355=$O$3),Receipts!$E$5:$E$1355)","v":0},{"$f":"SUMPRODUCT(--(Receipts!$C$5:$C$1355=A11),--(Receipts!$D$5:$D$1355=$P$3),Receipts!$E$5:$E$1355)","v":0},{"$f":"SUMPRODUCT(--(Receipts!$C$5:$C$1355=A11),--(Receipts!$D$5:$D$1355=$Q$3),Receipts!$E$5:$E$1355)","v":0},{"$f":"SUMPRODUCT(--(Receipts!$C$5:$C$1355=A11),--(Receipts!$D$5:$D$1355=$R$3),Receipts!$E$5:$E$1355)","v":0},{"$f":"SUMPRODUCT(--(Receipts!$C$5:$C$1355=A11),--(Receipts!$D$5:$D$1355=$S$3),Receipts!$E$5:$E$1355)","v":0},{"$f":"SUMPRODUCT(--(Receipts!$C$5:$C$1355=A11),--(Receipts!$D$5:$D$1355=$T$3),Receipts!$E$5:$E$1355)","v":0},{"$f":"SUMPRODUCT(--(Receipts!$C$5:$C$1355=A11),--(Receipts!$D$5:$D$1355=$U$3),Receipts!$E$5:$E$1355)","v":0},{"$f":"SUMPRODUCT(--(Receipts!$C$5:$C$1355=A11),--(Receipts!$D$5:$D$1355=$V$3),Receipts!$E$5:$E$1355)","v":0},{"$f":"SUMPRODUCT(--(Receipts!$C$5:$C$1355=A11),--(Receipts!$D$5:$D$1355=$W$3),Receipts!$E$5:$E$1355)","v":0},{"$f":"SUMPRODUCT(--(Receipts!$C$5:$C$1355=A11),--(Receipts!$D$5:$D$1355=$X$3),Receipts!$E$5:$E$1355)","v":0},{"$f":"SUMPRODUCT(--(Receipts!$C$5:$C$1355=A11),--(Receipts!$D$5:$D$1355=$Y$3),Receipts!$E$5:$E$1355)","v":0},{"$f":"SUMPRODUCT(--(Receipts!$C$5:$C$1355=A11),--(Receipts!$D$5:$D$1355=$Z$3),Receipts!$E$5:$E$1355)","v":0},{"$f":"SUMPRODUCT(--(Receipts!$C$5:$C$1355=A11),--(Receipts!$D$5:$D$1355=$AA$3),Receipts!$E$5:$E$1355)","v":0},{"$f":"SUMPRODUCT(--(Receipts!$C$5:$C$1355=A11),--(Receipts!$D$5:$D$1355=$AB$3),Receipts!$E$5:$E$1355)","v":0},{"$f":"SUMPRODUCT(--(Receipts!$C$5:$C$1355=A11),--(Receipts!$D$5:$D$1355=$AC$3),Receipts!$E$5:$E$1355)","v":0},{"$f":"SUMPRODUCT(--(Receipts!$C$5:$C$1355=A11),--(Receipts!$D$5:$D$1355=$AD$3),Receipts!$E$5:$E$1355)","v":0},null,0,0,0,0,null,null,null,7,"Legacies received (capital value)",null,0,0,0,0]
[{"$f":"Descriptions!B13","v":"Donations - Gift Aided"},{"$f":"Descriptions!D13","v":"All other giving/voluntary receipts"},{"$f":"Descriptions!E13","v":"Tax efficient planned giving"},{"$f":"SUMPRODUCT(--(Receipts!$C$5:$C$1355=A12),--(Receipts!$D$5:$D$1355=$D$3),Receipts!$E$5:$E$1355)","v":0},{"$f":"SUMPRODUCT(--(Receipts!$C$5:$C$1355=A12),--(Receipts!$D$5:$D$1355=$E$3),Receipts!$E$5:$E$1355)","v":0},{"$f":"SUMPRODUCT(--(Receipts!$C$5:$C$1355=A12),--(Receipts!$D$5:$D$1355=$F$3),Receipts!$E$5:$E$1355)","v":0},{"$f":"SUMPRODUCT(--(Receipts!$C$5:$C$1355=A12),--(Receipts!$D$5:$D$1355=$G$3),Receipts!$E$5:$E$1355)","v":0},{"$f":"SUMPRODUCT(--(Receipts!$C$5:$C$1355=A12),--(Receipts!$D$5:$D$1355=$H$3),Receipts!$E$5:$E$1355)","v":0},{"$f":"SUMPRODUCT(--(Receipts!$C$5:$C$1355=A12),--(Receipts!$D$5:$D$1355=$I$3),Receipts!$E$5:$E$1355)","v":0},{"$f":"SUMPRODUCT(--(Receipts!$C$5:$C$1355=A12),--(Receipts!$D$5:$D$1355=$J$3),Receipts!$E$5:$E$1355)","v":0},{"$f":"SUMPRODUCT(--(Receipts!$C$5:$C$1355=A12),--(Receipts!$D$5:$D$1355=$K$3),Receipts!$E$5:$E$1355)","v":0},{"$f":"SUMPRODUCT(--(Receipts!$C$5:$C$1355=A12),--(Receipts!$D$5:$D$1355=$L$3),Receipts!$E$5:$E$1355)","v":0},{"$f":"SUMPRODUCT(--(Receipts!$C$5:$C$1355=A12),--(Receipts!$D$5:$D$1355=$M$3),Receipts!$E$5:$E$1355)","v":0},{"$f":"SUMPRODUCT(--(Receipts!$C$5:$C$1355=A12),--(Receipts!$D$5:$D$1355=$N$3),Receipts!$E$5:$E$1355)","v":0},{"$f":"SUMPRODUCT(--(Receipts!$C$5:$C$1355=A12),--(Receipts!$D$5:$D$1355=$O$3),Receipts!$E$5:$E$1355)","v":0},{"$f":"SUMPRODUCT(--(Receipts!$C$5:$C$1355=A12),--(Receipts!$D$5:$D$1355=$P$3),Receipts!$E$5:$E$1355)","v":0},{"$f":"SUMPRODUCT(--(Receipts!$C$5:$C$1355=A12),--(Receipts!$D$5:$D$1355=$Q$3),Receipts!$E$5:$E$1355)","v":0},{"$f":"SUMPRODUCT(--(Receipts!$C$5:$C$1355=A12),--(Receipts!$D$5:$D$1355=$R$3),Receipts!$E$5:$E$1355)","v":0},{"$f":"SUMPRODUCT(--(Receipts!$C$5:$C$1355=A12),--(Receipts!$D$5:$D$1355=$S$3),Receipts!$E$5:$E$1355)","v":0},{"$f":"SUMPRODUCT(--(Receipts!$C$5:$C$1355=A12),--(Receipts!$D$5:$D$1355=$T$3),Receipts!$E$5:$E$1355)","v":0},{"$f":"SUMPRODUCT(--(Receipts!$C$5:$C$1355=A12),--(Receipts!$D$5:$D$1355=$U$3),Receipts!$E$5:$E$1355)","v":0},{"$f":"SUMPRODUCT(--(Receipts!$C$5:$C$1355=A12),--(Receipts!$D$5:$D$1355=$V$3),Receipts!$E$5:$E$1355)","v":0},{"$f":"SUMPRODUCT(--(Receipts!$C$5:$C$1355=A12),--(Receipts!$D$5:$D$1355=$W$3),Receipts!$E$5:$E$1355)","v":0},{"$f":"SUMPRODUCT(--(Receipts!$C$5:$C$1355=A12),--(Receipts!$D$5:$D$1355=$X$3),Receipts!$E$5:$E$1355)","v":0},{"$f":"SUMPRODUCT(--(Receipts!$C$5:$C$1355=A12),--(Receipts!$D$5:$D$1355=$Y$3),Receipts!$E$5:$E$1355)","v":0},{"$f":"SUMPRODUCT(--(Receipts!$C$5:$C$1355=A12),--(Receipts!$D$5:$D$1355=$Z$3),Receipts!$E$5:$E$1355)","v":0},{"$f":"SUMPRODUCT(--(Receipts!$C$5:$C$1355=A12),--(Receipts!$D$5:$D$1355=$AA$3),Receipts!$E$5:$E$1355)","v":0},{"$f":"SUMPRODUCT(--(Receipts!$C$5:$C$1355=A12),--(Receipts!$D$5:$D$1355=$AB$3),Receipts!$E$5:$E$1355)","v":0},{"$f":"SUMPRODUCT(--(Receipts!$C$5:$C$1355=A12),--(Receipts!$D$5:$D$1355=$AC$3),Receipts!$E$5:$E$1355)","v":0},{"$f":"SUMPRODUCT(--(Receipts!$C$5:$C$1355=A12),--(Receipts!$D$5:$D$1355=$AD$3),Receipts!$E$5:$E$1355)","v":0},null,0,0,0,0,null,null,null,2,"Other planned giving",null,0,0,0,0]
[{"$f":"Descriptions!B14","v":"Fees - Additional"},{"$f":"Descriptions!D14","v":"Church Activities"},{"$f":"Descriptions!E14","v":"Other receipts not already listed"},{"$f":"SUMPRODUCT(--(Receipts!$C$5:$C$1355=A13),--(Receipts!$D$5:$D$1355=$D$3),Receipts!$E$5:$E$1355)","v":0},{"$f":"SUMPRODUCT(--(Receipts!$C$5:$C$1355=A13),--(Receipts!$D$5:$D$1355=$E$3),Receipts!$E$5:$E$1355)","v":0},{"$f":"SUMPRODUCT(--(Receipts!$C$5:$C$1355=A13),--(Receipts!$D$5:$D$1355=$F$3),Receipts!$E$5:$E$1355)","v":0},{"$f":"SUMPRODUCT(--(Receipts!$C$5:$C$1355=A13),--(Receipts!$D$5:$D$1355=$G$3),Receipts!$E$5:$E$1355)","v":0},{"$f":"SUMPRODUCT(--(Receipts!$C$5:$C$1355=A13),--(Receipts!$D$5:$D$1355=$H$3),Receipts!$E$5:$E$1355)","v":0},{"$f":"SUMPRODUCT(--(Receipts!$C$5:$C$1355=A13),--(Receipts!$D$5:$D$1355=$I$3),Receipts!$E$5:$E$1355)","v":0},{"$f":"SUMPRODUCT(--(Receipts!$C$5:$C$1355=A13),--(Receipts!$D$5:$D$1355=$J$3),Receipts!$E$5:$E$1355)","v":0},{"$f":"SUMPRODUCT(--(Receipts!$C$5:$C$1355=A13),--(Receipts!$D$5:$D$1355=$K$3),Receipts!$E$5:$E$1355)","v":0},{"$f":"SUMPRODUCT(--(Receipts!$C$5:$C$1355=A13),--(Receipts!$D$5:$D$1355=$L$3),Receipts!$E$5:$E$1355)","v":0},{"$f":"SUMPRODUCT(--(Receipts!$C$5:$C$1355=A13),--(Receipts!$D$5:$D$1355=$M$3),Receipts!$E$5:$E$1355)","v":0},{"$f":"SUMPRODUCT(--(Receipts!$C$5:$C$1355=A13),--(Receipts!$D$5:$D$1355=$N$3),Receipts!$E$5:$E$1355)","v":0},{"$f":"SUMPRODUCT(--(Receipts!$C$5:$C$1355=A13),--(Receipts!$D$5:$D$1355=$O$3),Receipts!$E$5:$E$1355)","v":0},{"$f":"SUMPRODUCT(--(Receipts!$C$5:$C$1355=A13),--(Receipts!$D$5:$D$1355=$P$3),Receipts!$E$5:$E$1355)","v":0},{"$f":"SUMPRODUCT(--(Receipts!$C$5:$C$1355=A13),--(Receipts!$D$5:$D$1355=$Q$3),Receipts!$E$5:$E$1355)","v":0},{"$f":"SUMPRODUCT(--(Receipts!$C$5:$C$1355=A13),--(Receipts!$D$5:$D$1355=$R$3),Receipts!$E$5:$E$1355)","v":0},{"$f":"SUMPRODUCT(--(Receipts!$C$5:$C$1355=A13),--(Receipts!$D$5:$D$1355=$S$3),Receipts!$E$5:$E$1355)","v":0},{"$f":"SUMPRODUCT(--(Receipts!$C$5:$C$1355=A13),--(Receipts!$D$5:$D$1355=$T$3),Receipts!$E$5:$E$1355)","v":0},{"$f":"SUMPRODUCT(--(Receipts!$C$5:$C$1355=A13),--(Receipts!$D$5:$D$1355=$U$3),Receipts!$E$5:$E$1355)","v":0},{"$f":"SUMPRODUCT(--(Receipts!$C$5:$C$1355=A13),--(Receipts!$D$5:$D$1355=$V$3),Receipts!$E$5:$E$1355)","v":0},{"$f":"SUMPRODUCT(--(Receipts!$C$5:$C$1355=A13),--(Receipts!$D$5:$D$1355=$W$3),Receipts!$E$5:$E$1355)","v":0},{"$f":"SUMPRODUCT(--(Receipts!$C$5:$C$1355=A13),--(Receipts!$D$5:$D$1355=$X$3),Receipts!$E$5:$E$1355)","v":0},{"$f":"SUMPRODUCT(--(Receipts!$C$5:$C$1355=A13),--(Receipts!$D$5:$D$1355=$Y$3),Receipts!$E$5:$E$1355)","v":0},{"$f":"SUMPRODUCT(--(Receipts!$C$5:$C$1355=A13),--(Receipts!$D$5:$D$1355=$Z$3),Receipts!$E$5:$E$1355)","v":0},{"$f":"SUMPRODUCT(--(Receipts!$C$5:$C$1355=A13),--(Receipts!$D$5:$D$1355=$AA$3),Receipts!$E$5:$E$1355)","v":0},{"$f":"SUMPRODUCT(--(Receipts!$C$5:$C$1355=A13),--(Receipts!$D$5:$D$1355=$AB$3),Receipts!$E$5:$E$1355)","v":0},{"$f":"SUMPRODUCT(--(Receipts!$C$5:$C$1355=A13),--(Receipts!$D$5:$D$1355=$AC$3),Receipts!$E$5:$E$1355)","v":0},{"$f":"SUMPRODUCT(--(Receipts!$C$5:$C$1355=A13),--(Receipts!$D$5:$D$1355=$AD$3),Receipts!$E$5:$E$1355)","v":0},null,0,0,0,0,null,null,null,13,"Other receipts not already listed",null,0,0,0,0]
[{"$f":"Descriptions!B15","v":"Fees - Statutory"},{"$f":"Descriptions!D15","v":"Church Activities"},{"$f":"Descriptions!E15","v":"Statutory fees retained by the PCC (weddings, funerals etc.)"},{"$f":"SUMPRODUCT(--(Receipts!$C$5:$C$1355=A14),--(Receipts!$D$5:$D$1355=$D$3),Receipts!$E$5:$E$1355)","v":0},{"$f":"SUMPRODUCT(--(Receipts!$C$5:$C$1355=A14),--(Receipts!$D$5:$D$1355=$E$3),Receipts!$E$5:$E$1355)","v":0},{"$f":"SUMPRODUCT(--(Receipts!$C$5:$C$1355=A14),--(Receipts!$D$5:$D$1355=$F$3),Receipts!$E$5:$E$1355)","v":0},{"$f":"SUMPRODUCT(--(Receipts!$C$5:$C$1355=A14),--(Receipts!$D$5:$D$1355=$G$3),Receipts!$E$5:$E$1355)","v":0},{"$f":"SUMPRODUCT(--(Receipts!$C$5:$C$1355=A14),--(Receipts!$D$5:$D$1355=$H$3),Receipts!$E$5:$E$1355)","v":0},{"$f":"SUMPRODUCT(--(Receipts!$C$5:$C$1355=A14),--(Receipts!$D$5:$D$1355=$I$3),Receipts!$E$5:$E$1355)","v":0},{"$f":"SUMPRODUCT(--(Receipts!$C$5:$C$1355=A14),--(Receipts!$D$5:$D$1355=$J$3),Receipts!$E$5:$E$1355)","v":0},{"$f":"SUMPRODUCT(--(Receipts!$C$5:$C$1355=A14),--(Receipts!$D$5:$D$1355=$K$3),Receipts!$E$5:$E$1355)","v":0},{"$f":"SUMPRODUCT(--(Receipts!$C$5:$C$1355=A14),--(Receipts!$D$5:$D$1355=$L$3),Receipts!$E$5:$E$1355)","v":0},{"$f":"SUMPRODUCT(--(Receipts!$C$5:$C$1355=A14),--(Receipts!$D$5:$D$1355=$M$3),Receipts!$E$5:$E$1355)","v":0},{"$f":"SUMPRODUCT(--(Receipts!$C$5:$C$1355=A14),--(Receipts!$D$5:$D$1355=$N$3),Receipts!$E$5:$E$1355)","v":0},{"$f":"SUMPRODUCT(--(Receipts!$C$5:$C$1355=A14),--(Receipts!$D$5:$D$1355=$O$3),Receipts!$E$5:$E$1355)","v":0},{"$f":"SUMPRODUCT(--(Receipts!$C$5:$C$1355=A14),--(Receipts!$D$5:$D$1355=$P$3),Receipts!$E$5:$E$1355)","v":0},{"$f":"SUMPRODUCT(--(Receipts!$C$5:$C$1355=A14),--(Receipts!$D$5:$D$1355=$Q$3),Receipts!$E$5:$E$1355)","v":0},{"$f":"SUMPRODUCT(--(Receipts!$C$5:$C$1355=A14),--(Receipts!$D$5:$D$1355=$R$3),Receipts!$E$5:$E$1355)","v":0},{"$f":"SUMPRODUCT(--(Receipts!$C$5:$C$1355=A14),--(Receipts!$D$5:$D$1355=$S$3),Receipts!$E$5:$E$1355)","v":0},{"$f":"SUMPRODUCT(--(Receipts!$C$5:$C$1355=A14),--(Receipts!$D$5:$D$1355=$T$3),Receipts!$E$5:$E$1355)","v":0},{"$f":"SUMPRODUCT(--(Receipts!$C$5:$C$1355=A14),--(Receipts!$D$5:$D$1355=$U$3),Receipts!$E$5:$E$1355)","v":0},{"$f":"SUMPRODUCT(--(Receipts!$C$5:$C$1355=A14),--(Receipts!$D$5:$D$1355=$V$3),Receipts!$E$5:$E$1355)","v":0},{"$f":"SUMPRODUCT(--(Receipts!$C$5:$C$1355=A14),--(Receipts!$D$5:$D$1355=$W$3),Receipts!$E$5:$E$1355)","v":0},{"$f":"SUMPRODUCT(--(Receipts!$C$5:$C$1355=A14),--(Receipts!$D$5:$D$1355=$X$3),Receipts!$E$5:$E$1355)","v":0},{"$f":"SUMPRODUCT(--(Receipts!$C$5:$C$1355=A14),--(Receipts!$D$5:$D$1355=$Y$3),Receipts!$E$5:$E$1355)","v":0},{"$f":"SUMPRODUCT(--(Receipts!$C$5:$C$1355=A14),--(Receipts!$D$5:$D$1355=$Z$3),Receipts!$E$5:$E$1355)","v":0},{"$f":"SUMPRODUCT(--(Receipts!$C$5:$C$1355=A14),--(Receipts!$D$5:$D$1355=$AA$3),Receipts!$E$5:$E$1355)","v":0},{"$f":"SUMPRODUCT(--(Receipts!$C$5:$C$1355=A14),--(Receipts!$D$5:$D$1355=$AB$3),Receipts!$E$5:$E$1355)","v":0},{"$f":"SUMPRODUCT(--(Receipts!$C$5:$C$1355=A14),--(Receipts!$D$5:$D$1355=$AC$3),Receipts!$E$5:$E$1355)","v":0},{"$f":"SUMPRODUCT(--(Receipts!$C$5:$C$1355=A14),--(Receipts!$D$5:$D$1355=$AD$3),Receipts!$E$5:$E$1355)","v":0},null,0,0,0,0,null,null,null,11,"Statutory fees retained by the PCC (weddings, funerals etc.)",null,0,0,0,0]
[{"$f":"Descriptions!B16","v":"Fete"},{"$f":"Descriptions!D16","v":"Activites for generating funds"},{"$f":"Descriptions!E16","v":"Gross receipts from fundraising activities"},{"$f":"SUMPRODUCT(--(Receipts!$C$5:$C$1355=A15),--(Receipts!$D$5:$D$1355=$D$3),Receipts!$E$5:$E$1355)","v":0},{"$f":"SUMPRODUCT(--(Receipts!$C$5:$C$1355=A15),--(Receipts!$D$5:$D$1355=$E$3),Receipts!$E$5:$E$1355)","v":0},{"$f":"SUMPRODUCT(--(Receipts!$C$5:$C$1355=A15),--(Receipts!$D$5:$D$1355=$F$3),Receipts!$E$5:$E$1355)","v":0},{"$f":"SUMPRODUCT(--(Receipts!$C$5:$C$1355=A15),--(Receipts!$D$5:$D$1355=$G$3),Receipts!$E$5:$E$1355)","v":0},{"$f":"SUMPRODUCT(--(Receipts!$C$5:$C$1355=A15),--(Receipts!$D$5:$D$1355=$H$3),Receipts!$E$5:$E$1355)","v":0},{"$f":"SUMPRODUCT(--(Receipts!$C$5:$C$1355=A15),--(Receipts!$D$5:$D$1355=$I$3),Receipts!$E$5:$E$1355)","v":0},{"$f":"SUMPRODUCT(--(Receipts!$C$5:$C$1355=A15),--(Receipts!$D$5:$D$1355=$J$3),Receipts!$E$5:$E$1355)","v":0},{"$f":"SUMPRODUCT(--(Receipts!$C$5:$C$1355=A15),--(Receipts!$D$5:$D$1355=$K$3),Receipts!$E$5:$E$1355)","v":0},{"$f":"SUMPRODUCT(--(Receipts!$C$5:$C$1355=A15),--(Receipts!$D$5:$D$1355=$L$3),Receipts!$E$5:$E$1355)","v":0},{"$f":"SUMPRODUCT(--(Receipts!$C$5:$C$1355=A15),--(Receipts!$D$5:$D$1355=$M$3),Receipts!$E$5:$E$1355)","v":0},{"$f":"SUMPRODUCT(--(Receipts!$C$5:$C$1355=A15),--(Receipts!$D$5:$D$1355=$N$3),Receipts!$E$5:$E$1355)","v":0},{"$f":"SUMPRODUCT(--(Receipts!$C$5:$C$1355=A15),--(Receipts!$D$5:$D$1355=$O$3),Receipts!$E$5:$E$1355)","v":0},{"$f":"SUMPRODUCT(--(Receipts!$C$5:$C$1355=A15),--(Receipts!$D$5:$D$1355=$P$3),Receipts!$E$5:$E$1355)","v":0},{"$f":"SUMPRODUCT(--(Receipts!$C$5:$C$1355=A15),--(Receipts!$D$5:$D$1355=$Q$3),Receipts!$E$5:$E$1355)","v":0},{"$f":"SUMPRODUCT(--(Receipts!$C$5:$C$1355=A15),--(Receipts!$D$5:$D$1355=$R$3),Receipts!$E$5:$E$1355)","v":0},{"$f":"SUMPRODUCT(--(Receipts!$C$5:$C$1355=A15),--(Receipts!$D$5:$D$1355=$S$3),Receipts!$E$5:$E$1355)","v":0},{"$f":"SUMPRODUCT(--(Receipts!$C$5:$C$1355=A15),--(Receipts!$D$5:$D$1355=$T$3),Receipts!$E$5:$E$1355)","v":0},{"$f":"SUMPRODUCT(--(Receipts!$C$5:$C$1355=A15),--(Receipts!$D$5:$D$1355=$U$3),Receipts!$E$5:$E$1355)","v":0},{"$f":"SUMPRODUCT(--(Receipts!$C$5:$C$1355=A15),--(Receipts!$D$5:$D$1355=$V$3),Receipts!$E$5:$E$1355)","v":0},{"$f":"SUMPRODUCT(--(Receipts!$C$5:$C$1355=A15),--(Receipts!$D$5:$D$1355=$W$3),Receipts!$E$5:$E$1355)","v":0},{"$f":"SUMPRODUCT(--(Receipts!$C$5:$C$1355=A15),--(Receipts!$D$5:$D$1355=$X$3),Receipts!$E$5:$E$1355)","v":0},{"$f":"SUMPRODUCT(--(Receipts!$C$5:$C$1355=A15),--(Receipts!$D$5:$D$1355=$Y$3),Receipts!$E$5:$E$1355)","v":0},{"$f":"SUMPRODUCT(--(Receipts!$C$5:$C$1355=A15),--(Receipts!$D$5:$D$1355=$Z$3),Receipts!$E$5:$E$1355)","v":0},{"$f":"SUMPRODUCT(--(Receipts!$C$5:$C$1355=A15),--(Receipts!$D$5:$D$1355=$AA$3),Receipts!$E$5:$E$1355)","v":0},{"$f":"SUMPRODUCT(--(Receipts!$C$5:$C$1355=A15),--(Receipts!$D$5:$D$1355=$AB$3),Receipts!$E$5:$E$1355)","v":0},{"$f":"SUMPRODUCT(--(Receipts!$C$5:$C$1355=A15),--(Receipts!$D$5:$D$1355=$AC$3),Receipts!$E$5:$E$1355)","v":0},{"$f":"SUMPRODUCT(--(Receipts!$C$5:$C$1355=A15),--(Receipts!$D$5:$D$1355=$AD$3),Receipts!$E$5:$E$1355)","v":0},null,0,0,0,0,null,null,null,1,"Tax efficient planned giving",null,0,0,0,0]
[{"$f":"Descriptions!B17","v":"Gift Aid Envelopes"},{"$f":"Descriptions!D17","v":"All other giving/voluntary receipts"},{"$f":"Descriptions!E17","v":"Tax efficient planned giving"},{"$f":"SUMPRODUCT(--(Receipts!$C$5:$C$1355=A16),--(Receipts!$D$5:$D$1355=$D$3),Receipts!$E$5:$E$1355)","v":0},{"$f":"SUMPRODUCT(--(Receipts!$C$5:$C$1355=A16),--(Receipts!$D$5:$D$1355=$E$3),Receipts!$E$5:$E$1355)","v":0},{"$f":"SUMPRODUCT(--(Receipts!$C$5:$C$1355=A16),--(Receipts!$D$5:$D$1355=$F$3),Receipts!$E$5:$E$1355)","v":0},{"$f":"SUMPRODUCT(--(Receipts!$C$5:$C$1355=A16),--(Receipts!$D$5:$D$1355=$G$3),Receipts!$E$5:$E$1355)","v":0},{"$f":"SUMPRODUCT(--(Receipts!$C$5:$C$1355=A16),--(Receipts!$D$5:$D$1355=$H$3),Receipts!$E$5:$E$1355)","v":0},{"$f":"SUMPRODUCT(--(Receipts!$C$5:$C$1355=A16),--(Receipts!$D$5:$D$1355=$I$3),Receipts!$E$5:$E$1355)","v":0},{"$f":"SUMPRODUCT(--(Receipts!$C$5:$C$1355=A16),--(Receipts!$D$5:$D$1355=$J$3),Receipts!$E$5:$E$1355)","v":0},{"$f":"SUMPRODUCT(--(Receipts!$C$5:$C$1355=A16),--(Receipts!$D$5:$D$1355=$K$3),Receipts!$E$5:$E$1355)","v":0},{"$f":"SUMPRODUCT(--(Receipts!$C$5:$C$1355=A16),--(Receipts!$D$5:$D$1355=$L$3),Receipts!$E$5:$E$1355)","v":0},{"$f":"SUMPRODUCT(--(Receipts!$C$5:$C$1355=A16),--(Receipts!$D$5:$D$1355=$M$3),Receipts!$E$5:$E$1355)","v":0},{"$f":"SUMPRODUCT(--(Receipts!$C$5:$C$1355=A16),--(Receipts!$D$5:$D$1355=$N$3),Receipts!$E$5:$E$1355)","v":0},{"$f":"SUMPRODUCT(--(Receipts!$C$5:$C$1355=A16),--(Receipts!$D$5:$D$1355=$O$3),Receipts!$E$5:$E$1355)","v":0},{"$f":"SUMPRODUCT(--(Receipts!$C$5:$C$1355=A16),--(Receipts!$D$5:$D$1355=$P$3),Receipts!$E$5:$E$1355)","v":0},{"$f":"SUMPRODUCT(--(Receipts!$C$5:$C$1355=A16),--(Receipts!$D$5:$D$1355=$Q$3),Receipts!$E$5:$E$1355)","v":0},{"$f":"SUMPRODUCT(--(Receipts!$C$5:$C$1355=A16),--(Receipts!$D$5:$D$1355=$R$3),Receipts!$E$5:$E$1355)","v":0},{"$f":"SUMPRODUCT(--(Receipts!$C$5:$C$1355=A16),--(Receipts!$D$5:$D$1355=$S$3),Receipts!$E$5:$E$1355)","v":0},{"$f":"SUMPRODUCT(--(Receipts!$C$5:$C$1355=A16),--(Receipts!$D$5:$D$1355=$T$3),Receipts!$E$5:$E$1355)","v":0},{"$f":"SUMPRODUCT(--(Receipts!$C$5:$C$1355=A16),--(Receipts!$D$5:$D$1355=$U$3),Receipts!$E$5:$E$1355)","v":0},{"$f":"SUMPRODUCT(--(Receipts!$C$5:$C$1355=A16),--(Receipts!$D$5:$D$1355=$V$3),Receipts!$E$5:$E$1355)","v":0},{"$f":"SUMPRODUCT(--(Receipts!$C$5:$C$1355=A16),--(Receipts!$D$5:$D$1355=$W$3),Receipts!$E$5:$E$1355)","v":0},{"$f":"SUMPRODUCT(--(Receipts!$C$5:$C$1355=A16),--(Receipts!$D$5:$D$1355=$X$3),Receipts!$E$5:$E$1355)","v":0},{"$f":"SUMPRODUCT(--(Receipts!$C$5:$C$1355=A16),--(Receipts!$D$5:$D$1355=$Y$3),Receipts!$E$5:$E$1355)","v":0},{"$f":"SUMPRODUCT(--(Receipts!$C$5:$C$1355=A16),--(Receipts!$D$5:$D$1355=$Z$3),Receipts!$E$5:$E$1355)","v":0},{"$f":"SUMPRODUCT(--(Receipts!$C$5:$C$1355=A16),--(Receipts!$D$5:$D$1355=$AA$3),Receipts!$E$5:$E$1355)","v":0},{"$f":"SUMPRODUCT(--(Receipts!$C$5:$C$1355=A16),--(Receipts!$D$5:$D$1355=$AB$3),Receipts!$E$5:$E$1355)","v":0},{"$f":"SUMPRODUCT(--(Receipts!$C$5:$C$1355=A16),--(Receipts!$D$5:$D$1355=$AC$3),Receipts!$E$5:$E$1355)","v":0},{"$f":"SUMPRODUCT(--(Receipts!$C$5:$C$1355=A16),--(Receipts!$D$5:$D$1355=$AD$3),Receipts!$E$5:$E$1355)","v":0},null,0,0,0,0]
[{"$f":"Descriptions!B18","v":"Gift Aid Reclaim"},{"$f":"Descriptions!D18","v":"Gift Aid Recovered"},{"$f":"Descriptions!E18","v":"Gift Aid recovered"},{"$f":"SUMPRODUCT(--(Receipts!$C$5:$C$1355=A17),--(Receipts!$D$5:$D$1355=$D$3),Receipts!$E$5:$E$1355)","v":0},{"$f":"SUMPRODUCT(--(Receipts!$C$5:$C$1355=A17),--(Receipts!$D$5:$D$1355=$E$3),Receipts!$E$5:$E$1355)","v":0},{"$f":"SUMPRODUCT(--(Receipts!$C$5:$C$1355=A17),--(Receipts!$D$5:$D$1355=$F$3),Receipts!$E$5:$E$1355)","v":0},{"$f":"SUMPRODUCT(--(Receipts!$C$5:$C$1355=A17),--(Receipts!$D$5:$D$1355=$G$3),Receipts!$E$5:$E$1355)","v":0},{"$f":"SUMPRODUCT(--(Receipts!$C$5:$C$1355=A17),--(Receipts!$D$5:$D$1355=$H$3),Receipts!$E$5:$E$1355)","v":0},{"$f":"SUMPRODUCT(--(Receipts!$C$5:$C$1355=A17),--(Receipts!$D$5:$D$1355=$I$3),Receipts!$E$5:$E$1355)","v":0},{"$f":"SUMPRODUCT(--(Receipts!$C$5:$C$1355=A17),--(Receipts!$D$5:$D$1355=$J$3),Receipts!$E$5:$E$1355)","v":0},{"$f":"SUMPRODUCT(--(Receipts!$C$5:$C$1355=A17),--(Receipts!$D$5:$D$1355=$K$3),Receipts!$E$5:$E$1355)","v":0},{"$f":"SUMPRODUCT(--(Receipts!$C$5:$C$1355=A17),--(Receipts!$D$5:$D$1355=$L$3),Receipts!$E$5:$E$1355)","v":0},{"$f":"SUMPRODUCT(--(Receipts!$C$5:$C$1355=A17),--(Receipts!$D$5:$D$1355=$M$3),Receipts!$E$5:$E$1355)","v":0},{"$f":"SUMPRODUCT(--(Receipts!$C$5:$C$1355=A17),--(Receipts!$D$5:$D$1355=$N$3),Receipts!$E$5:$E$1355)","v":0},{"$f":"SUMPRODUCT(--(Receipts!$C$5:$C$1355=A17),--(Receipts!$D$5:$D$1355=$O$3),Receipts!$E$5:$E$1355)","v":0},{"$f":"SUMPRODUCT(--(Receipts!$C$5:$C$1355=A17),--(Receipts!$D$5:$D$1355=$P$3),Receipts!$E$5:$E$1355)","v":0},{"$f":"SUMPRODUCT(--(Receipts!$C$5:$C$1355=A17),--(Receipts!$D$5:$D$1355=$Q$3),Receipts!$E$5:$E$1355)","v":0},{"$f":"SUMPRODUCT(--(Receipts!$C$5:$C$1355=A17),--(Receipts!$D$5:$D$1355=$R$3),Receipts!$E$5:$E$1355)","v":0},{"$f":"SUMPRODUCT(--(Receipts!$C$5:$C$1355=A17),--(Receipts!$D$5:$D$1355=$S$3),Receipts!$E$5:$E$1355)","v":0},{"$f":"SUMPRODUCT(--(Receipts!$C$5:$C$1355=A17),--(Receipts!$D$5:$D$1355=$T$3),Receipts!$E$5:$E$1355)","v":0},{"$f":"SUMPRODUCT(--(Receipts!$C$5:$C$1355=A17),--(Receipts!$D$5:$D$1355=$U$3),Receipts!$E$5:$E$1355)","v":0},{"$f":"SUMPRODUCT(--(Receipts!$C$5:$C$1355=A17),--(Receipts!$D$5:$D$1355=$V$3),Receipts!$E$5:$E$1355)","v":0},{"$f":"SUMPRODUCT(--(Receipts!$C$5:$C$1355=A17),--(Receipts!$D$5:$D$1355=$W$3),Receipts!$E$5:$E$1355)","v":0},{"$f":"SUMPRODUCT(--(Receipts!$C$5:$C$1355=A17),--(Receipts!$D$5:$D$1355=$X$3),Receipts!$E$5:$E$1355)","v":0},{"$f":"SUMPRODUCT(--(Receipts!$C$5:$C$1355=A17),--(Receipts!$D$5:$D$1355=$Y$3),Receipts!$E$5:$E$1355)","v":0},{"$f":"SUMPRODUCT(--(Receipts!$C$5:$C$1355=A17),--(Receipts!$D$5:$D$1355=$Z$3),Receipts!$E$5:$E$1355)","v":0},{"$f":"SUMPRODUCT(--(Receipts!$C$5:$C$1355=A17),--(Receipts!$D$5:$D$1355=$AA$3),Receipts!$E$5:$E$1355)","v":0},{"$f":"SUMPRODUCT(--(Receipts!$C$5:$C$1355=A17),--(Receipts!$D$5:$D$1355=$AB$3),Receipts!$E$5:$E$1355)","v":0},{"$f":"SUMPRODUCT(--(Receipts!$C$5:$C$1355=A17),--(Receipts!$D$5:$D$1355=$AC$3),Receipts!$E$5:$E$1355)","v":0},{"$f":"SUMPRODUCT(--(Receipts!$C$5:$C$1355=A17),--(Receipts!$D$5:$D$1355=$AD$3),Receipts!$E$5:$E$1355)","v":0},null,0,0,0,0]
[{"$f":"Descriptions!B19","v":"Gift Days"},{"$f":"Descriptions!D19","v":"All other giving/voluntary receipts"},{"$f":"Descriptions!E19","v":"All other giving and voluntary receipts, including Special Appeals (recurring and one-off)"},{"$f":"SUMPRODUCT(--(Receipts!$C$5:$C$1355=A18),--(Receipts!$D$5:$D$1355=$D$3),Receipts!$E$5:$E$1355)","v":0},{"$f":"SUMPRODUCT(--(Receipts!$C$5:$C$1355=A18),--(Receipts!$D$5:$D$1355=$E$3),Receipts!$E$5:$E$1355)","v":0},{"$f":"SUMPRODUCT(--(Receipts!$C$5:$C$1355=A18),--(Receipts!$D$5:$D$1355=$F$3),Receipts!$E$5:$E$1355)","v":0},{"$f":"SUMPRODUCT(--(Receipts!$C$5:$C$1355=A18),--(Receipts!$D$5:$D$1355=$G$3),Receipts!$E$5:$E$1355)","v":0},{"$f":"SUMPRODUCT(--(Receipts!$C$5:$C$1355=A18),--(Receipts!$D$5:$D$1355=$H$3),Receipts!$E$5:$E$1355)","v":0},{"$f":"SUMPRODUCT(--(Receipts!$C$5:$C$1355=A18),--(Receipts!$D$5:$D$1355=$I$3),Receipts!$E$5:$E$1355)","v":0},{"$f":"SUMPRODUCT(--(Receipts!$C$5:$C$1355=A18),--(Receipts!$D$5:$D$1355=$J$3),Receipts!$E$5:$E$1355)","v":0},{"$f":"SUMPRODUCT(--(Receipts!$C$5:$C$1355=A18),--(Receipts!$D$5:$D$1355=$K$3),Receipts!$E$5:$E$1355)","v":0},{"$f":"SUMPRODUCT(--(Receipts!$C$5:$C$1355=A18),--(Receipts!$D$5:$D$1355=$L$3),Receipts!$E$5:$E$1355)","v":0},{"$f":"SUMPRODUCT(--(Receipts!$C$5:$C$1355=A18),--(Receipts!$D$5:$D$1355=$M$3),Receipts!$E$5:$E$1355)","v":0},{"$f":"SUMPRODUCT(--(Receipts!$C$5:$C$1355=A18),--(Receipts!$D$5:$D$1355=$N$3),Receipts!$E$5:$E$1355)","v":0},{"$f":"SUMPRODUCT(--(Receipts!$C$5:$C$1355=A18),--(Receipts!$D$5:$D$1355=$O$3),Receipts!$E$5:$E$1355)","v":0},{"$f":"SUMPRODUCT(--(Receipts!$C$5:$C$1355=A18),--(Receipts!$D$5:$D$1355=$P$3),Receipts!$E$5:$E$1355)","v":0},{"$f":"SUMPRODUCT(--(Receipts!$C$5:$C$1355=A18),--(Receipts!$D$5:$D$1355=$Q$3),Receipts!$E$5:$E$1355)","v":0},{"$f":"SUMPRODUCT(--(Receipts!$C$5:$C$1355=A18),--(Receipts!$D$5:$D$1355=$R$3),Receipts!$E$5:$E$1355)","v":0},{"$f":"SUMPRODUCT(--(Receipts!$C$5:$C$1355=A18),--(Receipts!$D$5:$D$1355=$S$3),Receipts!$E$5:$E$1355)","v":0},{"$f":"SUMPRODUCT(--(Receipts!$C$5:$C$1355=A18),--(Receipts!$D$5:$D$1355=$T$3),Receipts!$E$5:$E$1355)","v":0},{"$f":"SUMPRODUCT(--(Receipts!$C$5:$C$1355=A18),--(Receipts!$D$5:$D$1355=$U$3),Receipts!$E$5:$E$1355)","v":0},{"$f":"SUMPRODUCT(--(Receipts!$C$5:$C$1355=A18),--(Receipts!$D$5:$D$1355=$V$3),Receipts!$E$5:$E$1355)","v":0},{"$f":"SUMPRODUCT(--(Receipts!$C$5:$C$1355=A18),--(Receipts!$D$5:$D$1355=$W$3),Receipts!$E$5:$E$1355)","v":0},{"$f":"SUMPRODUCT(--(Receipts!$C$5:$C$1355=A18),--(Receipts!$D$5:$D$1355=$X$3),Receipts!$E$5:$E$1355)","v":0},{"$f":"SUMPRODUCT(--(Receipts!$C$5:$C$1355=A18),--(Receipts!$D$5:$D$1355=$Y$3),Receipts!$E$5:$E$1355)","v":0},{"$f":"SUMPRODUCT(--(Receipts!$C$5:$C$1355=A18),--(Receipts!$D$5:$D$1355=$Z$3),Receipts!$E$5:$E$1355)","v":0},{"$f":"SUMPRODUCT(--(Receipts!$C$5:$C$1355=A18),--(Receipts!$D$5:$D$1355=$AA$3),Receipts!$E$5:$E$1355)","v":0},{"$f":"SUMPRODUCT(--(Receipts!$C$5:$C$1355=A18),--(Receipts!$D$5:$D$1355=$AB$3),Receipts!$E$5:$E$1355)","v":0},{"$f":"SUMPRODUCT(--(Receipts!$C$5:$C$1355=A18),--(Receipts!$D$5:$D$1355=$AC$3),Receipts!$E$5:$E$1355)","v":0},{"$f":"SUMPRODUCT(--(Receipts!$C$5:$C$1355=A18),--(Receipts!$D$5:$D$1355=$AD$3),Receipts!$E$5:$E$1355)","v":0},null,0,0,0,0]
[{"$f":"Descriptions!B20","v":"Grants - One Off"},{"$f":"Descriptions!D20","v":"Grant Income"},{"$f":"Descriptions!E20","v":"All other giving and voluntary receipts, including Special Appeals (recurring and one-off)"},{"$f":"SUMPRODUCT(--(Receipts!$C$5:$C$1355=A19),--(Receipts!$D$5:$D$1355=$D$3),Receipts!$E$5:$E$1355)","v":0},{"$f":"SUMPRODUCT(--(Receipts!$C$5:$C$1355=A19),--(Receipts!$D$5:$D$1355=$E$3),Receipts!$E$5:$E$1355)","v":0},{"$f":"SUMPRODUCT(--(Receipts!$C$5:$C$1355=A19),--(Receipts!$D$5:$D$1355=$F$3),Receipts!$E$5:$E$1355)","v":0},{"$f":"SUMPRODUCT(--(Receipts!$C$5:$C$1355=A19),--(Receipts!$D$5:$D$1355=$G$3),Receipts!$E$5:$E$1355)","v":0},{"$f":"SUMPRODUCT(--(Receipts!$C$5:$C$1355=A19),--(Receipts!$D$5:$D$1355=$H$3),Receipts!$E$5:$E$1355)","v":0},{"$f":"SUMPRODUCT(--(Receipts!$C$5:$C$1355=A19),--(Receipts!$D$5:$D$1355=$I$3),Receipts!$E$5:$E$1355)","v":0},{"$f":"SUMPRODUCT(--(Receipts!$C$5:$C$1355=A19),--(Receipts!$D$5:$D$1355=$J$3),Receipts!$E$5:$E$1355)","v":0},{"$f":"SUMPRODUCT(--(Receipts!$C$5:$C$1355=A19),--(Receipts!$D$5:$D$1355=$K$3),Receipts!$E$5:$E$1355)","v":0},{"$f":"SUMPRODUCT(--(Receipts!$C$5:$C$1355=A19),--(Receipts!$D$5:$D$1355=$L$3),Receipts!$E$5:$E$1355)","v":0},{"$f":"SUMPRODUCT(--(Receipts!$C$5:$C$1355=A19),--(Receipts!$D$5:$D$1355=$M$3),Receipts!$E$5:$E$1355)","v":0},{"$f":"SUMPRODUCT(--(Receipts!$C$5:$C$1355=A19),--(Receipts!$D$5:$D$1355=$N$3),Receipts!$E$5:$E$1355)","v":0},{"$f":"SUMPRODUCT(--(Receipts!$C$5:$C$1355=A19),--(Receipts!$D$5:$D$1355=$O$3),Receipts!$E$5:$E$1355)","v":0},{"$f":"SUMPRODUCT(--(Receipts!$C$5:$C$1355=A19),--(Receipts!$D$5:$D$1355=$P$3),Receipts!$E$5:$E$1355)","v":0},{"$f":"SUMPRODUCT(--(Receipts!$C$5:$C$1355=A19),--(Receipts!$D$5:$D$1355=$Q$3),Receipts!$E$5:$E$1355)","v":0},{"$f":"SUMPRODUCT(--(Receipts!$C$5:$C$1355=A19),--(Receipts!$D$5:$D$1355=$R$3),Receipts!$E$5:$E$1355)","v":0},{"$f":"SUMPRODUCT(--(Receipts!$C$5:$C$1355=A19),--(Receipts!$D$5:$D$1355=$S$3),Receipts!$E$5:$E$1355)","v":0},{"$f":"SUMPRODUCT(--(Receipts!$C$5:$C$1355=A19),--(Receipts!$D$5:$D$1355=$T$3),Receipts!$E$5:$E$1355)","v":0},{"$f":"SUMPRODUCT(--(Receipts!$C$5:$C$1355=A19),--(Receipts!$D$5:$D$1355=$U$3),Receipts!$E$5:$E$1355)","v":0},{"$f":"SUMPRODUCT(--(Receipts!$C$5:$C$1355=A19),--(Receipts!$D$5:$D$1355=$V$3),Receipts!$E$5:$E$1355)","v":0},{"$f":"SUMPRODUCT(--(Receipts!$C$5:$C$1355=A19),--(Receipts!$D$5:$D$1355=$W$3),Receipts!$E$5:$E$1355)","v":0},{"$f":"SUMPRODUCT(--(Receipts!$C$5:$C$1355=A19),--(Receipts!$D$5:$D$1355=$X$3),Receipts!$E$5:$E$1355)","v":0},{"$f":"SUMPRODUCT(--(Receipts!$C$5:$C$1355=A19),--(Receipts!$D$5:$D$1355=$Y$3),Receipts!$E$5:$E$1355)","v":0},{"$f":"SUMPRODUCT(--(Receipts!$C$5:$C$1355=A19),--(Receipts!$D$5:$D$1355=$Z$3),Receipts!$E$5:$E$1355)","v":0},{"$f":"SUMPRODUCT(--(Receipts!$C$5:$C$1355=A19),--(Receipts!$D$5:$D$1355=$AA$3),Receipts!$E$5:$E$1355)","v":0},{"$f":"SUMPRODUCT(--(Receipts!$C$5:$C$1355=A19),--(Receipts!$D$5:$D$1355=$AB$3),Receipts!$E$5:$E$1355)","v":0},{"$f":"SUMPRODUCT(--(Receipts!$C$5:$C$1355=A19),--(Receipts!$D$5:$D$1355=$AC$3),Receipts!$E$5:$E$1355)","v":0},{"$f":"SUMPRODUCT(--(Receipts!$C$5:$C$1355=A19),--(Receipts!$D$5:$D$1355=$AD$3),Receipts!$E$5:$E$1355)","v":0},null,0,0,0,0]
[{"$f":"Descriptions!B21","v":"Grants - Recurring"},{"$f":"Descriptions!D21","v":"Grant Income"},{"$f":"Descriptions!E21","v":"Grants (include recurring and one-off)"},{"$f":"SUMPRODUCT(--(Receipts!$C$5:$C$1355=A20),--(Receipts!$D$5:$D$1355=$D$3),Receipts!$E$5:$E$1355)","v":0},{"$f":"SUMPRODUCT(--(Receipts!$C$5:$C$1355=A20),--(Receipts!$D$5:$D$1355=$E$3),Receipts!$E$5:$E$1355)","v":0},{"$f":"SUMPRODUCT(--(Receipts!$C$5:$C$1355=A20),--(Receipts!$D$5:$D$1355=$F$3),Receipts!$E$5:$E$1355)","v":0},{"$f":"SUMPRODUCT(--(Receipts!$C$5:$C$1355=A20),--(Receipts!$D$5:$D$1355=$G$3),Receipts!$E$5:$E$1355)","v":0},{"$f":"SUMPRODUCT(--(Receipts!$C$5:$C$1355=A20),--(Receipts!$D$5:$D$1355=$H$3),Receipts!$E$5:$E$1355)","v":0},{"$f":"SUMPRODUCT(--(Receipts!$C$5:$C$1355=A20),--(Receipts!$D$5:$D$1355=$I$3),Receipts!$E$5:$E$1355)","v":0},{"$f":"SUMPRODUCT(--(Receipts!$C$5:$C$1355=A20),--(Receipts!$D$5:$D$1355=$J$3),Receipts!$E$5:$E$1355)","v":0},{"$f":"SUMPRODUCT(--(Receipts!$C$5:$C$1355=A20),--(Receipts!$D$5:$D$1355=$K$3),Receipts!$E$5:$E$1355)","v":0},{"$f":"SUMPRODUCT(--(Receipts!$C$5:$C$1355=A20),--(Receipts!$D$5:$D$1355=$L$3),Receipts!$E$5:$E$1355)","v":0},{"$f":"SUMPRODUCT(--(Receipts!$C$5:$C$1355=A20),--(Receipts!$D$5:$D$1355=$M$3),Receipts!$E$5:$E$1355)","v":0},{"$f":"SUMPRODUCT(--(Receipts!$C$5:$C$1355=A20),--(Receipts!$D$5:$D$1355=$N$3),Receipts!$E$5:$E$1355)","v":0},{"$f":"SUMPRODUCT(--(Receipts!$C$5:$C$1355=A20),--(Receipts!$D$5:$D$1355=$O$3),Receipts!$E$5:$E$1355)","v":0},{"$f":"SUMPRODUCT(--(Receipts!$C$5:$C$1355=A20),--(Receipts!$D$5:$D$1355=$P$3),Receipts!$E$5:$E$1355)","v":0},{"$f":"SUMPRODUCT(--(Receipts!$C$5:$C$1355=A20),--(Receipts!$D$5:$D$1355=$Q$3),Receipts!$E$5:$E$1355)","v":0},{"$f":"SUMPRODUCT(--(Receipts!$C$5:$C$1355=A20),--(Receipts!$D$5:$D$1355=$R$3),Receipts!$E$5:$E$1355)","v":0},{"$f":"SUMPRODUCT(--(Receipts!$C$5:$C$1355=A20),--(Receipts!$D$5:$D$1355=$S$3),Receipts!$E$5:$E$1355)","v":0},{"$f":"SUMPRODUCT(--(Receipts!$C$5:$C$1355=A20),--(Receipts!$D$5:$D$1355=$T$3),Receipts!$E$5:$E$1355)","v":0},{"$f":"SUMPRODUCT(--(Receipts!$C$5:$C$1355=A20),--(Receipts!$D$5:$D$1355=$U$3),Receipts!$E$5:$E$1355)","v":0},{"$f":"SUMPRODUCT(--(Receipts!$C$5:$C$1355=A20),--(Receipts!$D$5:$D$1355=$V$3),Receipts!$E$5:$E$1355)","v":0},{"$f":"SUMPRODUCT(--(Receipts!$C$5:$C$1355=A20),--(Receipts!$D$5:$D$1355=$W$3),Receipts!$E$5:$E$1355)","v":0},{"$f":"SUMPRODUCT(--(Receipts!$C$5:$C$1355=A20),--(Receipts!$D$5:$D$1355=$X$3),Receipts!$E$5:$E$1355)","v":0},{"$f":"SUMPRODUCT(--(Receipts!$C$5:$C$1355=A20),--(Receipts!$D$5:$D$1355=$Y$3),Receipts!$E$5:$E$1355)","v":0},{"$f":"SUMPRODUCT(--(Receipts!$C$5:$C$1355=A20),--(Receipts!$D$5:$D$1355=$Z$3),Receipts!$E$5:$E$1355)","v":0},{"$f":"SUMPRODUCT(--(Receipts!$C$5:$C$1355=A20),--(Receipts!$D$5:$D$1355=$AA$3),Receipts!$E$5:$E$1355)","v":0},{"$f":"SUMPRODUCT(--(Receipts!$C$5:$C$1355=A20),--(Receipts!$D$5:$D$1355=$AB$3),Receipts!$E$5:$E$1355)","v":0},{"$f":"SUMPRODUCT(--(Receipts!$C$5:$C$1355=A20),--(Receipts!$D$5:$D$1355=$AC$3),Receipts!$E$5:$E$1355)","v":0},{"$f":"SUMPRODUCT(--(Receipts!$C$5:$C$1355=A20),--(Receipts!$D$5:$D$1355=$AD$3),Receipts!$E$5:$E$1355)","v":0},null,0,0,0,0]
[{"$f":"Descriptions!B22","v":"Junior Church Collections"},{"$f":"Descriptions!D22","v":"Collections at Services"},{"$f":"Descriptions!E22","v":"Collections at services"},{"$f":"SUMPRODUCT(--(Receipts!$C$5:$C$1355=A21),--(Receipts!$D$5:$D$1355=$D$3),Receipts!$E$5:$E$1355)","v":0},{"$f":"SUMPRODUCT(--(Receipts!$C$5:$C$1355=A21),--(Receipts!$D$5:$D$1355=$E$3),Receipts!$E$5:$E$1355)","v":0},{"$f":"SUMPRODUCT(--(Receipts!$C$5:$C$1355=A21),--(Receipts!$D$5:$D$1355=$F$3),Receipts!$E$5:$E$1355)","v":0},{"$f":"SUMPRODUCT(--(Receipts!$C$5:$C$1355=A21),--(Receipts!$D$5:$D$1355=$G$3),Receipts!$E$5:$E$1355)","v":0},{"$f":"SUMPRODUCT(--(Receipts!$C$5:$C$1355=A21),--(Receipts!$D$5:$D$1355=$H$3),Receipts!$E$5:$E$1355)","v":0},{"$f":"SUMPRODUCT(--(Receipts!$C$5:$C$1355=A21),--(Receipts!$D$5:$D$1355=$I$3),Receipts!$E$5:$E$1355)","v":0},{"$f":"SUMPRODUCT(--(Receipts!$C$5:$C$1355=A21),--(Receipts!$D$5:$D$1355=$J$3),Receipts!$E$5:$E$1355)","v":0},{"$f":"SUMPRODUCT(--(Receipts!$C$5:$C$1355=A21),--(Receipts!$D$5:$D$1355=$K$3),Receipts!$E$5:$E$1355)","v":0},{"$f":"SUMPRODUCT(--(Receipts!$C$5:$C$1355=A21),--(Receipts!$D$5:$D$1355=$L$3),Receipts!$E$5:$E$1355)","v":0},{"$f":"SUMPRODUCT(--(Receipts!$C$5:$C$1355=A21),--(Receipts!$D$5:$D$1355=$M$3),Receipts!$E$5:$E$1355)","v":0},{"$f":"SUMPRODUCT(--(Receipts!$C$5:$C$1355=A21),--(Receipts!$D$5:$D$1355=$N$3),Receipts!$E$5:$E$1355)","v":0},{"$f":"SUMPRODUCT(--(Receipts!$C$5:$C$1355=A21),--(Receipts!$D$5:$D$1355=$O$3),Receipts!$E$5:$E$1355)","v":0},{"$f":"SUMPRODUCT(--(Receipts!$C$5:$C$1355=A21),--(Receipts!$D$5:$D$1355=$P$3),Receipts!$E$5:$E$1355)","v":0},{"$f":"SUMPRODUCT(--(Receipts!$C$5:$C$1355=A21),--(Receipts!$D$5:$D$1355=$Q$3),Receipts!$E$5:$E$1355)","v":0},{"$f":"SUMPRODUCT(--(Receipts!$C$5:$C$1355=A21),--(Receipts!$D$5:$D$1355=$R$3),Receipts!$E$5:$E$1355)","v":0},{"$f":"SUMPRODUCT(--(Receipts!$C$5:$C$1355=A21),--(Receipts!$D$5:$D$1355=$S$3),Receipts!$E$5:$E$1355)","v":0},{"$f":"SUMPRODUCT(--(Receipts!$C$5:$C$1355=A21),--(Receipts!$D$5:$D$1355=$T$3),Receipts!$E$5:$E$1355)","v":0},{"$f":"SUMPRODUCT(--(Receipts!$C$5:$C$1355=A21),--(Receipts!$D$5:$D$1355=$U$3),Receipts!$E$5:$E$1355)","v":0},{"$f":"SUMPRODUCT(--(Receipts!$C$5:$C$1355=A21),--(Receipts!$D$5:$D$1355=$V$3),Receipts!$E$5:$E$1355)","v":0},{"$f":"SUMPRODUCT(--(Receipts!$C$5:$C$1355=A21),--(Receipts!$D$5:$D$1355=$W$3),Receipts!$E$5:$E$1355)","v":0},{"$f":"SUMPRODUCT(--(Receipts!$C$5:$C$1355=A21),--(Receipts!$D$5:$D$1355=$X$3),Receipts!$E$5:$E$1355)","v":0},{"$f":"SUMPRODUCT(--(Receipts!$C$5:$C$1355=A21),--(Receipts!$D$5:$D$1355=$Y$3),Receipts!$E$5:$E$1355)","v":0},{"$f":"SUMPRODUCT(--(Receipts!$C$5:$C$1355=A21),--(Receipts!$D$5:$D$1355=$Z$3),Receipts!$E$5:$E$1355)","v":0},{"$f":"SUMPRODUCT(--(Receipts!$C$5:$C$1355=A21),--(Receipts!$D$5:$D$1355=$AA$3),Receipts!$E$5:$E$1355)","v":0},{"$f":"SUMPRODUCT(--(Receipts!$C$5:$C$1355=A21),--(Receipts!$D$5:$D$1355=$AB$3),Receipts!$E$5:$E$1355)","v":0},{"$f":"SUMPRODUCT(--(Receipts!$C$5:$C$1355=A21),--(Receipts!$D$5:$D$1355=$AC$3),Receipts!$E$5:$E$1355)","v":0},{"$f":"SUMPRODUCT(--(Receipts!$C$5:$C$1355=A21),--(Receipts!$D$5:$D$1355=$AD$3),Receipts!$E$5:$E$1355)","v":0},null,0,0,0,0]
[{"$f":"Descriptions!B23","v":"Junior Church Collections - Gift Aided"},{"$f":"Descriptions!D23","v":"Collections at Services"},{"$f":"Descriptions!E23","v":"Tax efficient planned giving"},{"$f":"SUMPRODUCT(--(Receipts!$C$5:$C$1355=A22),--(Receipts!$D$5:$D$1355=$D$3),Receipts!$E$5:$E$1355)","v":0},{"$f":"SUMPRODUCT(--(Receipts!$C$5:$C$1355=A22),--(Receipts!$D$5:$D$1355=$E$3),Receipts!$E$5:$E$1355)","v":0},{"$f":"SUMPRODUCT(--(Receipts!$C$5:$C$1355=A22),--(Receipts!$D$5:$D$1355=$F$3),Receipts!$E$5:$E$1355)","v":0},{"$f":"SUMPRODUCT(--(Receipts!$C$5:$C$1355=A22),--(Receipts!$D$5:$D$1355=$G$3),Receipts!$E$5:$E$1355)","v":0},{"$f":"SUMPRODUCT(--(Receipts!$C$5:$C$1355=A22),--(Receipts!$D$5:$D$1355=$H$3),Receipts!$E$5:$E$1355)","v":0},{"$f":"SUMPRODUCT(--(Receipts!$C$5:$C$1355=A22),--(Receipts!$D$5:$D$1355=$I$3),Receipts!$E$5:$E$1355)","v":0},{"$f":"SUMPRODUCT(--(Receipts!$C$5:$C$1355=A22),--(Receipts!$D$5:$D$1355=$J$3),Receipts!$E$5:$E$1355)","v":0},{"$f":"SUMPRODUCT(--(Receipts!$C$5:$C$1355=A22),--(Receipts!$D$5:$D$1355=$K$3),Receipts!$E$5:$E$1355)","v":0},{"$f":"SUMPRODUCT(--(Receipts!$C$5:$C$1355=A22),--(Receipts!$D$5:$D$1355=$L$3),Receipts!$E$5:$E$1355)","v":0},{"$f":"SUMPRODUCT(--(Receipts!$C$5:$C$1355=A22),--(Receipts!$D$5:$D$1355=$M$3),Receipts!$E$5:$E$1355)","v":0},{"$f":"SUMPRODUCT(--(Receipts!$C$5:$C$1355=A22),--(Receipts!$D$5:$D$1355=$N$3),Receipts!$E$5:$E$1355)","v":0},{"$f":"SUMPRODUCT(--(Receipts!$C$5:$C$1355=A22),--(Receipts!$D$5:$D$1355=$O$3),Receipts!$E$5:$E$1355)","v":0},{"$f":"SUMPRODUCT(--(Receipts!$C$5:$C$1355=A22),--(Receipts!$D$5:$D$1355=$P$3),Receipts!$E$5:$E$1355)","v":0},{"$f":"SUMPRODUCT(--(Receipts!$C$5:$C$1355=A22),--(Receipts!$D$5:$D$1355=$Q$3),Receipts!$E$5:$E$1355)","v":0},{"$f":"SUMPRODUCT(--(Receipts!$C$5:$C$1355=A22),--(Receipts!$D$5:$D$1355=$R$3),Receipts!$E$5:$E$1355)","v":0},{"$f":"SUMPRODUCT(--(Receipts!$C$5:$C$1355=A22),--(Receipts!$D$5:$D$1355=$S$3),Receipts!$E$5:$E$1355)","v":0},{"$f":"SUMPRODUCT(--(Receipts!$C$5:$C$1355=A22),--(Receipts!$D$5:$D$1355=$T$3),Receipts!$E$5:$E$1355)","v":0},{"$f":"SUMPRODUCT(--(Receipts!$C$5:$C$1355=A22),--(Receipts!$D$5:$D$1355=$U$3),Receipts!$E$5:$E$1355)","v":0},{"$f":"SUMPRODUCT(--(Receipts!$C$5:$C$1355=A22),--(Receipts!$D$5:$D$1355=$V$3),Receipts!$E$5:$E$1355)","v":0},{"$f":"SUMPRODUCT(--(Receipts!$C$5:$C$1355=A22),--(Receipts!$D$5:$D$1355=$W$3),Receipts!$E$5:$E$1355)","v":0},{"$f":"SUMPRODUCT(--(Receipts!$C$5:$C$1355=A22),--(Receipts!$D$5:$D$1355=$X$3),Receipts!$E$5:$E$1355)","v":0},{"$f":"SUMPRODUCT(--(Receipts!$C$5:$C$1355=A22),--(Receipts!$D$5:$D$1355=$Y$3),Receipts!$E$5:$E$1355)","v":0},{"$f":"SUMPRODUCT(--(Receipts!$C$5:$C$1355=A22),--(Receipts!$D$5:$D$1355=$Z$3),Receipts!$E$5:$E$1355)","v":0},{"$f":"SUMPRODUCT(--(Receipts!$C$5:$C$1355=A22),--(Receipts!$D$5:$D$1355=$AA$3),Receipts!$E$5:$E$1355)","v":0},{"$f":"SUMPRODUCT(--(Receipts!$C$5:$C$1355=A22),--(Receipts!$D$5:$D$1355=$AB$3),Receipts!$E$5:$E$1355)","v":0},{"$f":"SUMPRODUCT(--(Receipts!$C$5:$C$1355=A22),--(Receipts!$D$5:$D$1355=$AC$3),Receipts!$E$5:$E$1355)","v":0},{"$f":"SUMPRODUCT(--(Receipts!$C$5:$C$1355=A22),--(Receipts!$D$5:$D$1355=$AD$3),Receipts!$E$5:$E$1355)","v":0},null,0,0,0,0]
[{"$f":"Descriptions!B24","v":"Legacies"},{"$f":"Descriptions!D24","v":"Legacies Received"},{"$f":"Descriptions!E24","v":"Legacies received (capital value)"},{"$f":"SUMPRODUCT(--(Receipts!$C$5:$C$1355=A23),--(Receipts!$D$5:$D$1355=$D$3),Receipts!$E$5:$E$1355)","v":0},{"$f":"SUMPRODUCT(--(Receipts!$C$5:$C$1355=A23),--(Receipts!$D$5:$D$1355=$E$3),Receipts!$E$5:$E$1355)","v":0},{"$f":"SUMPRODUCT(--(Receipts!$C$5:$C$1355=A23),--(Receipts!$D$5:$D$1355=$F$3),Receipts!$E$5:$E$1355)","v":0},{"$f":"SUMPRODUCT(--(Receipts!$C$5:$C$1355=A23),--(Receipts!$D$5:$D$1355=$G$3),Receipts!$E$5:$E$1355)","v":0},{"$f":"SUMPRODUCT(--(Receipts!$C$5:$C$1355=A23),--(Receipts!$D$5:$D$1355=$H$3),Receipts!$E$5:$E$1355)","v":0},{"$f":"SUMPRODUCT(--(Receipts!$C$5:$C$1355=A23),--(Receipts!$D$5:$D$1355=$I$3),Receipts!$E$5:$E$1355)","v":0},{"$f":"SUMPRODUCT(--(Receipts!$C$5:$C$1355=A23),--(Receipts!$D$5:$D$1355=$J$3),Receipts!$E$5:$E$1355)","v":0},{"$f":"SUMPRODUCT(--(Receipts!$C$5:$C$1355=A23),--(Receipts!$D$5:$D$1355=$K$3),Receipts!$E$5:$E$1355)","v":0},{"$f":"SUMPRODUCT(--(Receipts!$C$5:$C$1355=A23),--(Receipts!$D$5:$D$1355=$L$3),Receipts!$E$5:$E$1355)","v":0},{"$f":"SUMPRODUCT(--(Receipts!$C$5:$C$1355=A23),--(Receipts!$D$5:$D$1355=$M$3),Receipts!$E$5:$E$1355)","v":0},{"$f":"SUMPRODUCT(--(Receipts!$C$5:$C$1355=A23),--(Receipts!$D$5:$D$1355=$N$3),Receipts!$E$5:$E$1355)","v":0},{"$f":"SUMPRODUCT(--(Receipts!$C$5:$C$1355=A23),--(Receipts!$D$5:$D$1355=$O$3),Receipts!$E$5:$E$1355)","v":0},{"$f":"SUMPRODUCT(--(Receipts!$C$5:$C$1355=A23),--(Receipts!$D$5:$D$1355=$P$3),Receipts!$E$5:$E$1355)","v":0},{"$f":"SUMPRODUCT(--(Receipts!$C$5:$C$1355=A23),--(Receipts!$D$5:$D$1355=$Q$3),Receipts!$E$5:$E$1355)","v":0},{"$f":"SUMPRODUCT(--(Receipts!$C$5:$C$1355=A23),--(Receipts!$D$5:$D$1355=$R$3),Receipts!$E$5:$E$1355)","v":0},{"$f":"SUMPRODUCT(--(Receipts!$C$5:$C$1355=A23),--(Receipts!$D$5:$D$1355=$S$3),Receipts!$E$5:$E$1355)","v":0},{"$f":"SUMPRODUCT(--(Receipts!$C$5:$C$1355=A23),--(Receipts!$D$5:$D$1355=$T$3),Receipts!$E$5:$E$1355)","v":0},{"$f":"SUMPRODUCT(--(Receipts!$C$5:$C$1355=A23),--(Receipts!$D$5:$D$1355=$U$3),Receipts!$E$5:$E$1355)","v":0},{"$f":"SUMPRODUCT(--(Receipts!$C$5:$C$1355=A23),--(Receipts!$D$5:$D$1355=$V$3),Receipts!$E$5:$E$1355)","v":0},{"$f":"SUMPRODUCT(--(Receipts!$C$5:$C$1355=A23),--(Receipts!$D$5:$D$1355=$W$3),Receipts!$E$5:$E$1355)","v":0},{"$f":"SUMPRODUCT(--(Receipts!$C$5:$C$1355=A23),--(Receipts!$D$5:$D$1355=$X$3),Receipts!$E$5:$E$1355)","v":0},{"$f":"SUMPRODUCT(--(Receipts!$C$5:$C$1355=A23),--(Receipts!$D$5:$D$1355=$Y$3),Receipts!$E$5:$E$1355)","v":0},{"$f":"SUMPRODUCT(--(Receipts!$C$5:$C$1355=A23),--(Receipts!$D$5:$D$1355=$Z$3),Receipts!$E$5:$E$1355)","v":0},{"$f":"SUMPRODUCT(--(Receipts!$C$5:$C$1355=A23),--(Receipts!$D$5:$D$1355=$AA$3),Receipts!$E$5:$E$1355)","v":0},{"$f":"SUMPRODUCT(--(Receipts!$C$5:$C$1355=A23),--(Receipts!$D$5:$D$1355=$AB$3),Receipts!$E$5:$E$1355)","v":0},{"$f":"SUMPRODUCT(--(Receipts!$C$5:$C$1355=A23),--(Receipts!$D$5:$D$1355=$AC$3),Receipts!$E$5:$E$1355)","v":0},{"$f":"SUMPRODUCT(--(Receipts!$C$5:$C$1355=A23),--(Receipts!$D$5:$D$1355=$AD$3),Receipts!$E$5:$E$1355)","v":0},null,0,0,0,0]
[{"$f":"Descriptions!B25","v":"Magazine"},{"$f":"Descriptions!D25","v":"Activites for generating funds"},{"$f":"Descriptions!E25","v":"Gross receipts from trading (e.g. hall lettings, magazine, bookstall) NOT fundraising."},{"$f":"SUMPRODUCT(--(Receipts!$C$5:$C$1355=A24),--(Receipts!$D$5:$D$1355=$D$3),Receipts!$E$5:$E$1355)","v":0},{"$f":"SUMPRODUCT(--(Receipts!$C$5:$C$1355=A24),--(Receipts!$D$5:$D$1355=$E$3),Receipts!$E$5:$E$1355)","v":0},{"$f":"SUMPRODUCT(--(Receipts!$C$5:$C$1355=A24),--(Receipts!$D$5:$D$1355=$F$3),Receipts!$E$5:$E$1355)","v":0},{"$f":"SUMPRODUCT(--(Receipts!$C$5:$C$1355=A24),--(Receipts!$D$5:$D$1355=$G$3),Receipts!$E$5:$E$1355)","v":0},{"$f":"SUMPRODUCT(--(Receipts!$C$5:$C$1355=A24),--(Receipts!$D$5:$D$1355=$H$3),Receipts!$E$5:$E$1355)","v":0},{"$f":"SUMPRODUCT(--(Receipts!$C$5:$C$1355=A24),--(Receipts!$D$5:$D$1355=$I$3),Receipts!$E$5:$E$1355)","v":0},{"$f":"SUMPRODUCT(--(Receipts!$C$5:$C$1355=A24),--(Receipts!$D$5:$D$1355=$J$3),Receipts!$E$5:$E$1355)","v":0},{"$f":"SUMPRODUCT(--(Receipts!$C$5:$C$1355=A24),--(Receipts!$D$5:$D$1355=$K$3),Receipts!$E$5:$E$1355)","v":0},{"$f":"SUMPRODUCT(--(Receipts!$C$5:$C$1355=A24),--(Receipts!$D$5:$D$1355=$L$3),Receipts!$E$5:$E$1355)","v":0},{"$f":"SUMPRODUCT(--(Receipts!$C$5:$C$1355=A24),--(Receipts!$D$5:$D$1355=$M$3),Receipts!$E$5:$E$1355)","v":0},{"$f":"SUMPRODUCT(--(Receipts!$C$5:$C$1355=A24),--(Receipts!$D$5:$D$1355=$N$3),Receipts!$E$5:$E$1355)","v":0},{"$f":"SUMPRODUCT(--(Receipts!$C$5:$C$1355=A24),--(Receipts!$D$5:$D$1355=$O$3),Receipts!$E$5:$E$1355)","v":0},{"$f":"SUMPRODUCT(--(Receipts!$C$5:$C$1355=A24),--(Receipts!$D$5:$D$1355=$P$3),Receipts!$E$5:$E$1355)","v":0},{"$f":"SUMPRODUCT(--(Receipts!$C$5:$C$1355=A24),--(Receipts!$D$5:$D$1355=$Q$3),Receipts!$E$5:$E$1355)","v":0},{"$f":"SUMPRODUCT(--(Receipts!$C$5:$C$1355=A24),--(Receipts!$D$5:$D$1355=$R$3),Receipts!$E$5:$E$1355)","v":0},{"$f":"SUMPRODUCT(--(Receipts!$C$5:$C$1355=A24),--(Receipts!$D$5:$D$1355=$S$3),Receipts!$E$5:$E$1355)","v":0},{"$f":"SUMPRODUCT(--(Receipts!$C$5:$C$1355=A24),--(Receipts!$D$5:$D$1355=$T$3),Receipts!$E$5:$E$1355)","v":0},{"$f":"SUMPRODUCT(--(Receipts!$C$5:$C$1355=A24),--(Receipts!$D$5:$D$1355=$U$3),Receipts!$E$5:$E$1355)","v":0},{"$f":"SUMPRODUCT(--(Receipts!$C$5:$C$1355=A24),--(Receipts!$D$5:$D$1355=$V$3),Receipts!$E$5:$E$1355)","v":0},{"$f":"SUMPRODUCT(--(Receipts!$C$5:$C$1355=A24),--(Receipts!$D$5:$D$1355=$W$3),Receipts!$E$5:$E$1355)","v":0},{"$f":"SUMPRODUCT(--(Receipts!$C$5:$C$1355=A24),--(Receipts!$D$5:$D$1355=$X$3),Receipts!$E$5:$E$1355)","v":0},{"$f":"SUMPRODUCT(--(Receipts!$C$5:$C$1355=A24),--(Receipts!$D$5:$D$1355=$Y$3),Receipts!$E$5:$E$1355)","v":0},{"$f":"SUMPRODUCT(--(Receipts!$C$5:$C$1355=A24),--(Receipts!$D$5:$D$1355=$Z$3),Receipts!$E$5:$E$1355)","v":0},{"$f":"SUMPRODUCT(--(Receipts!$C$5:$C$1355=A24),--(Receipts!$D$5:$D$1355=$AA$3),Receipts!$E$5:$E$1355)","v":0},{"$f":"SUMPRODUCT(--(Receipts!$C$5:$C$1355=A24),--(Receipts!$D$5:$D$1355=$AB$3),Receipts!$E$5:$E$1355)","v":0},{"$f":"SUMPRODUCT(--(Receipts!$C$5:$C$1355=A24),--(Receipts!$D$5:$D$1355=$AC$3),Receipts!$E$5:$E$1355)","v":0},{"$f":"SUMPRODUCT(--(Receipts!$C$5:$C$1355=A24),--(Receipts!$D$5:$D$1355=$AD$3),Receipts!$E$5:$E$1355)","v":0},null,0,0,0,0]
[{"$f":"Descriptions!B26","v":"Non-charitable trading"},{"$f":"Descriptions!D26","v":"Church Activities"},{"$f":"Descriptions!E26","v":"Gross receipts from trading (e.g. hall lettings, magazine, bookstall) NOT fundraising."},{"$f":"SUMPRODUCT(--(Receipts!$C$5:$C$1355=A25),--(Receipts!$D$5:$D$1355=$D$3),Receipts!$E$5:$E$1355)","v":0},{"$f":"SUMPRODUCT(--(Receipts!$C$5:$C$1355=A25),--(Receipts!$D$5:$D$1355=$E$3),Receipts!$E$5:$E$1355)","v":0},{"$f":"SUMPRODUCT(--(Receipts!$C$5:$C$1355=A25),--(Receipts!$D$5:$D$1355=$F$3),Receipts!$E$5:$E$1355)","v":0},{"$f":"SUMPRODUCT(--(Receipts!$C$5:$C$1355=A25),--(Receipts!$D$5:$D$1355=$G$3),Receipts!$E$5:$E$1355)","v":0},{"$f":"SUMPRODUCT(--(Receipts!$C$5:$C$1355=A25),--(Receipts!$D$5:$D$1355=$H$3),Receipts!$E$5:$E$1355)","v":0},{"$f":"SUMPRODUCT(--(Receipts!$C$5:$C$1355=A25),--(Receipts!$D$5:$D$1355=$I$3),Receipts!$E$5:$E$1355)","v":0},{"$f":"SUMPRODUCT(--(Receipts!$C$5:$C$1355=A25),--(Receipts!$D$5:$D$1355=$J$3),Receipts!$E$5:$E$1355)","v":0},{"$f":"SUMPRODUCT(--(Receipts!$C$5:$C$1355=A25),--(Receipts!$D$5:$D$1355=$K$3),Receipts!$E$5:$E$1355)","v":0},{"$f":"SUMPRODUCT(--(Receipts!$C$5:$C$1355=A25),--(Receipts!$D$5:$D$1355=$L$3),Receipts!$E$5:$E$1355)","v":0},{"$f":"SUMPRODUCT(--(Receipts!$C$5:$C$1355=A25),--(Receipts!$D$5:$D$1355=$M$3),Receipts!$E$5:$E$1355)","v":0},{"$f":"SUMPRODUCT(--(Receipts!$C$5:$C$1355=A25),--(Receipts!$D$5:$D$1355=$N$3),Receipts!$E$5:$E$1355)","v":0},{"$f":"SUMPRODUCT(--(Receipts!$C$5:$C$1355=A25),--(Receipts!$D$5:$D$1355=$O$3),Receipts!$E$5:$E$1355)","v":0},{"$f":"SUMPRODUCT(--(Receipts!$C$5:$C$1355=A25),--(Receipts!$D$5:$D$1355=$P$3),Receipts!$E$5:$E$1355)","v":0},{"$f":"SUMPRODUCT(--(Receipts!$C$5:$C$1355=A25),--(Receipts!$D$5:$D$1355=$Q$3),Receipts!$E$5:$E$1355)","v":0},{"$f":"SUMPRODUCT(--(Receipts!$C$5:$C$1355=A25),--(Receipts!$D$5:$D$1355=$R$3),Receipts!$E$5:$E$1355)","v":0},{"$f":"SUMPRODUCT(--(Receipts!$C$5:$C$1355=A25),--(Receipts!$D$5:$D$1355=$S$3),Receipts!$E$5:$E$1355)","v":0},{"$f":"SUMPRODUCT(--(Receipts!$C$5:$C$1355=A25),--(Receipts!$D$5:$D$1355=$T$3),Receipts!$E$5:$E$1355)","v":0},{"$f":"SUMPRODUCT(--(Receipts!$C$5:$C$1355=A25),--(Receipts!$D$5:$D$1355=$U$3),Receipts!$E$5:$E$1355)","v":0},{"$f":"SUMPRODUCT(--(Receipts!$C$5:$C$1355=A25),--(Receipts!$D$5:$D$1355=$V$3),Receipts!$E$5:$E$1355)","v":0},{"$f":"SUMPRODUCT(--(Receipts!$C$5:$C$1355=A25),--(Receipts!$D$5:$D$1355=$W$3),Receipts!$E$5:$E$1355)","v":0},{"$f":"SUMPRODUCT(--(Receipts!$C$5:$C$1355=A25),--(Receipts!$D$5:$D$1355=$X$3),Receipts!$E$5:$E$1355)","v":0},{"$f":"SUMPRODUCT(--(Receipts!$C$5:$C$1355=A25),--(Receipts!$D$5:$D$1355=$Y$3),Receipts!$E$5:$E$1355)","v":0},{"$f":"SUMPRODUCT(--(Receipts!$C$5:$C$1355=A25),--(Receipts!$D$5:$D$1355=$Z$3),Receipts!$E$5:$E$1355)","v":0},{"$f":"SUMPRODUCT(--(Receipts!$C$5:$C$1355=A25),--(Receipts!$D$5:$D$1355=$AA$3),Receipts!$E$5:$E$1355)","v":0},{"$f":"SUMPRODUCT(--(Receipts!$C$5:$C$1355=A25),--(Receipts!$D$5:$D$1355=$AB$3),Receipts!$E$5:$E$1355)","v":0},{"$f":"SUMPRODUCT(--(Receipts!$C$5:$C$1355=A25),--(Receipts!$D$5:$D$1355=$AC$3),Receipts!$E$5:$E$1355)","v":0},{"$f":"SUMPRODUCT(--(Receipts!$C$5:$C$1355=A25),--(Receipts!$D$5:$D$1355=$AD$3),Receipts!$E$5:$E$1355)","v":0},null,0,0,0,0]
[{"$f":"Descriptions!B27","v":"Other Fundraising Income"},{"$f":"Descriptions!D27","v":"Activites for generating funds"},{"$f":"Descriptions!E27","v":"All other giving and voluntary receipts, including Special Appeals (recurring and one-off)"},{"$f":"SUMPRODUCT(--(Receipts!$C$5:$C$1355=A26),--(Receipts!$D$5:$D$1355=$D$3),Receipts!$E$5:$E$1355)","v":0},{"$f":"SUMPRODUCT(--(Receipts!$C$5:$C$1355=A26),--(Receipts!$D$5:$D$1355=$E$3),Receipts!$E$5:$E$1355)","v":0},{"$f":"SUMPRODUCT(--(Receipts!$C$5:$C$1355=A26),--(Receipts!$D$5:$D$1355=$F$3),Receipts!$E$5:$E$1355)","v":0},{"$f":"SUMPRODUCT(--(Receipts!$C$5:$C$1355=A26),--(Receipts!$D$5:$D$1355=$G$3),Receipts!$E$5:$E$1355)","v":0},{"$f":"SUMPRODUCT(--(Receipts!$C$5:$C$1355=A26),--(Receipts!$D$5:$D$1355=$H$3),Receipts!$E$5:$E$1355)","v":0},{"$f":"SUMPRODUCT(--(Receipts!$C$5:$C$1355=A26),--(Receipts!$D$5:$D$1355=$I$3),Receipts!$E$5:$E$1355)","v":0},{"$f":"SUMPRODUCT(--(Receipts!$C$5:$C$1355=A26),--(Receipts!$D$5:$D$1355=$J$3),Receipts!$E$5:$E$1355)","v":0},{"$f":"SUMPRODUCT(--(Receipts!$C$5:$C$1355=A26),--(Receipts!$D$5:$D$1355=$K$3),Receipts!$E$5:$E$1355)","v":0},{"$f":"SUMPRODUCT(--(Receipts!$C$5:$C$1355=A26),--(Receipts!$D$5:$D$1355=$L$3),Receipts!$E$5:$E$1355)","v":0},{"$f":"SUMPRODUCT(--(Receipts!$C$5:$C$1355=A26),--(Receipts!$D$5:$D$1355=$M$3),Receipts!$E$5:$E$1355)","v":0},{"$f":"SUMPRODUCT(--(Receipts!$C$5:$C$1355=A26),--(Receipts!$D$5:$D$1355=$N$3),Receipts!$E$5:$E$1355)","v":0},{"$f":"SUMPRODUCT(--(Receipts!$C$5:$C$1355=A26),--(Receipts!$D$5:$D$1355=$O$3),Receipts!$E$5:$E$1355)","v":0},{"$f":"SUMPRODUCT(--(Receipts!$C$5:$C$1355=A26),--(Receipts!$D$5:$D$1355=$P$3),Receipts!$E$5:$E$1355)","v":0},{"$f":"SUMPRODUCT(--(Receipts!$C$5:$C$1355=A26),--(Receipts!$D$5:$D$1355=$Q$3),Receipts!$E$5:$E$1355)","v":0},{"$f":"SUMPRODUCT(--(Receipts!$C$5:$C$1355=A26),--(Receipts!$D$5:$D$1355=$R$3),Receipts!$E$5:$E$1355)","v":0},{"$f":"SUMPRODUCT(--(Receipts!$C$5:$C$1355=A26),--(Receipts!$D$5:$D$1355=$S$3),Receipts!$E$5:$E$1355)","v":0},{"$f":"SUMPRODUCT(--(Receipts!$C$5:$C$1355=A26),--(Receipts!$D$5:$D$1355=$T$3),Receipts!$E$5:$E$1355)","v":0},{"$f":"SUMPRODUCT(--(Receipts!$C$5:$C$1355=A26),--(Receipts!$D$5:$D$1355=$U$3),Receipts!$E$5:$E$1355)","v":0},{"$f":"SUMPRODUCT(--(Receipts!$C$5:$C$1355=A26),--(Receipts!$D$5:$D$1355=$V$3),Receipts!$E$5:$E$1355)","v":0},{"$f":"SUMPRODUCT(--(Receipts!$C$5:$C$1355=A26),--(Receipts!$D$5:$D$1355=$W$3),Receipts!$E$5:$E$1355)","v":0},{"$f":"SUMPRODUCT(--(Receipts!$C$5:$C$1355=A26),--(Receipts!$D$5:$D$1355=$X$3),Receipts!$E$5:$E$1355)","v":0},{"$f":"SUMPRODUCT(--(Receipts!$C$5:$C$1355=A26),--(Receipts!$D$5:$D$1355=$Y$3),Receipts!$E$5:$E$1355)","v":0},{"$f":"SUMPRODUCT(--(Receipts!$C$5:$C$1355=A26),--(Receipts!$D$5:$D$1355=$Z$3),Receipts!$E$5:$E$1355)","v":0},{"$f":"SUMPRODUCT(--(Receipts!$C$5:$C$1355=A26),--(Receipts!$D$5:$D$1355=$AA$3),Receipts!$E$5:$E$1355)","v":0},{"$f":"SUMPRODUCT(--(Receipts!$C$5:$C$1355=A26),--(Receipts!$D$5:$D$1355=$AB$3),Receipts!$E$5:$E$1355)","v":0},{"$f":"SUMPRODUCT(--(Receipts!$C$5:$C$1355=A26),--(Receipts!$D$5:$D$1355=$AC$3),Receipts!$E$5:$E$1355)","v":0},{"$f":"SUMPRODUCT(--(Receipts!$C$5:$C$1355=A26),--(Receipts!$D$5:$D$1355=$AD$3),Receipts!$E$5:$E$1355)","v":0},null,0,0,0,0]
[{"$f":"Descriptions!B28","v":"Other Recurring Income"},{"$f":"Descriptions!D28","v":"Other Income"},{"$f":"Descriptions!E28","v":"All other giving and voluntary receipts, including Special Appeals (recurring and one-off)"},{"$f":"SUMPRODUCT(--(Receipts!$C$5:$C$1355=A27),--(Receipts!$D$5:$D$1355=$D$3),Receipts!$E$5:$E$1355)","v":0},{"$f":"SUMPRODUCT(--(Receipts!$C$5:$C$1355=A27),--(Receipts!$D$5:$D$1355=$E$3),Receipts!$E$5:$E$1355)","v":0},{"$f":"SUMPRODUCT(--(Receipts!$C$5:$C$1355=A27),--(Receipts!$D$5:$D$1355=$F$3),Receipts!$E$5:$E$1355)","v":0},{"$f":"SUMPRODUCT(--(Receipts!$C$5:$C$1355=A27),--(Receipts!$D$5:$D$1355=$G$3),Receipts!$E$5:$E$1355)","v":0},{"$f":"SUMPRODUCT(--(Receipts!$C$5:$C$1355=A27),--(Receipts!$D$5:$D$1355=$H$3),Receipts!$E$5:$E$1355)","v":0},{"$f":"SUMPRODUCT(--(Receipts!$C$5:$C$1355=A27),--(Receipts!$D$5:$D$1355=$I$3),Receipts!$E$5:$E$1355)","v":0},{"$f":"SUMPRODUCT(--(Receipts!$C$5:$C$1355=A27),--(Receipts!$D$5:$D$1355=$J$3),Receipts!$E$5:$E$1355)","v":0},{"$f":"SUMPRODUCT(--(Receipts!$C$5:$C$1355=A27),--(Receipts!$D$5:$D$1355=$K$3),Receipts!$E$5:$E$1355)","v":0},{"$f":"SUMPRODUCT(--(Receipts!$C$5:$C$1355=A27),--(Receipts!$D$5:$D$1355=$L$3),Receipts!$E$5:$E$1355)","v":0},{"$f":"SUMPRODUCT(--(Receipts!$C$5:$C$1355=A27),--(Receipts!$D$5:$D$1355=$M$3),Receipts!$E$5:$E$1355)","v":0},{"$f":"SUMPRODUCT(--(Receipts!$C$5:$C$1355=A27),--(Receipts!$D$5:$D$1355=$N$3),Receipts!$E$5:$E$1355)","v":0},{"$f":"SUMPRODUCT(--(Receipts!$C$5:$C$1355=A27),--(Receipts!$D$5:$D$1355=$O$3),Receipts!$E$5:$E$1355)","v":0},{"$f":"SUMPRODUCT(--(Receipts!$C$5:$C$1355=A27),--(Receipts!$D$5:$D$1355=$P$3),Receipts!$E$5:$E$1355)","v":0},{"$f":"SUMPRODUCT(--(Receipts!$C$5:$C$1355=A27),--(Receipts!$D$5:$D$1355=$Q$3),Receipts!$E$5:$E$1355)","v":0},{"$f":"SUMPRODUCT(--(Receipts!$C$5:$C$1355=A27),--(Receipts!$D$5:$D$1355=$R$3),Receipts!$E$5:$E$1355)","v":0},{"$f":"SUMPRODUCT(--(Receipts!$C$5:$C$1355=A27),--(Receipts!$D$5:$D$1355=$S$3),Receipts!$E$5:$E$1355)","v":0},{"$f":"SUMPRODUCT(--(Receipts!$C$5:$C$1355=A27),--(Receipts!$D$5:$D$1355=$T$3),Receipts!$E$5:$E$1355)","v":0},{"$f":"SUMPRODUCT(--(Receipts!$C$5:$C$1355=A27),--(Receipts!$D$5:$D$1355=$U$3),Receipts!$E$5:$E$1355)","v":0},{"$f":"SUMPRODUCT(--(Receipts!$C$5:$C$1355=A27),--(Receipts!$D$5:$D$1355=$V$3),Receipts!$E$5:$E$1355)","v":0},{"$f":"SUMPRODUCT(--(Receipts!$C$5:$C$1355=A27),--(Receipts!$D$5:$D$1355=$W$3),Receipts!$E$5:$E$1355)","v":0},{"$f":"SUMPRODUCT(--(Receipts!$C$5:$C$1355=A27),--(Receipts!$D$5:$D$1355=$X$3),Receipts!$E$5:$E$1355)","v":0},{"$f":"SUMPRODUCT(--(Receipts!$C$5:$C$1355=A27),--(Receipts!$D$5:$D$1355=$Y$3),Receipts!$E$5:$E$1355)","v":0},{"$f":"SUMPRODUCT(--(Receipts!$C$5:$C$1355=A27),--(Receipts!$D$5:$D$1355=$Z$3),Receipts!$E$5:$E$1355)","v":0},{"$f":"SUMPRODUCT(--(Receipts!$C$5:$C$1355=A27),--(Receipts!$D$5:$D$1355=$AA$3),Receipts!$E$5:$E$1355)","v":0},{"$f":"SUMPRODUCT(--(Receipts!$C$5:$C$1355=A27),--(Receipts!$D$5:$D$1355=$AB$3),Receipts!$E$5:$E$1355)","v":0},{"$f":"SUMPRODUCT(--(Receipts!$C$5:$C$1355=A27),--(Receipts!$D$5:$D$1355=$AC$3),Receipts!$E$5:$E$1355)","v":0},{"$f":"SUMPRODUCT(--(Receipts!$C$5:$C$1355=A27),--(Receipts!$D$5:$D$1355=$AD$3),Receipts!$E$5:$E$1355)","v":0},null,0,0,0,0]
[{"$f":"Descriptions!B29","v":"Parish Giving Scheme Income"},{"$f":"Descriptions!D29","v":"Planned Giving"},{"$f":"Descriptions!E29","v":"Other planned giving"},{"$f":"SUMPRODUCT(--(Receipts!$C$5:$C$1355=A28),--(Receipts!$D$5:$D$1355=$D$3),Receipts!$E$5:$E$1355)","v":0},{"$f":"SUMPRODUCT(--(Receipts!$C$5:$C$1355=A28),--(Receipts!$D$5:$D$1355=$E$3),Receipts!$E$5:$E$1355)","v":0},{"$f":"SUMPRODUCT(--(Receipts!$C$5:$C$1355=A28),--(Receipts!$D$5:$D$1355=$F$3),Receipts!$E$5:$E$1355)","v":0},{"$f":"SUMPRODUCT(--(Receipts!$C$5:$C$1355=A28),--(Receipts!$D$5:$D$1355=$G$3),Receipts!$E$5:$E$1355)","v":0},{"$f":"SUMPRODUCT(--(Receipts!$C$5:$C$1355=A28),--(Receipts!$D$5:$D$1355=$H$3),Receipts!$E$5:$E$1355)","v":0},{"$f":"SUMPRODUCT(--(Receipts!$C$5:$C$1355=A28),--(Receipts!$D$5:$D$1355=$I$3),Receipts!$E$5:$E$1355)","v":0},{"$f":"SUMPRODUCT(--(Receipts!$C$5:$C$1355=A28),--(Receipts!$D$5:$D$1355=$J$3),Receipts!$E$5:$E$1355)","v":0},{"$f":"SUMPRODUCT(--(Receipts!$C$5:$C$1355=A28),--(Receipts!$D$5:$D$1355=$K$3),Receipts!$E$5:$E$1355)","v":0},{"$f":"SUMPRODUCT(--(Receipts!$C$5:$C$1355=A28),--(Receipts!$D$5:$D$1355=$L$3),Receipts!$E$5:$E$1355)","v":0},{"$f":"SUMPRODUCT(--(Receipts!$C$5:$C$1355=A28),--(Receipts!$D$5:$D$1355=$M$3),Receipts!$E$5:$E$1355)","v":0},{"$f":"SUMPRODUCT(--(Receipts!$C$5:$C$1355=A28),--(Receipts!$D$5:$D$1355=$N$3),Receipts!$E$5:$E$1355)","v":0},{"$f":"SUMPRODUCT(--(Receipts!$C$5:$C$1355=A28),--(Receipts!$D$5:$D$1355=$O$3),Receipts!$E$5:$E$1355)","v":0},{"$f":"SUMPRODUCT(--(Receipts!$C$5:$C$1355=A28),--(Receipts!$D$5:$D$1355=$P$3),Receipts!$E$5:$E$1355)","v":0},{"$f":"SUMPRODUCT(--(Receipts!$C$5:$C$1355=A28),--(Receipts!$D$5:$D$1355=$Q$3),Receipts!$E$5:$E$1355)","v":0},{"$f":"SUMPRODUCT(--(Receipts!$C$5:$C$1355=A28),--(Receipts!$D$5:$D$1355=$R$3),Receipts!$E$5:$E$1355)","v":0},{"$f":"SUMPRODUCT(--(Receipts!$C$5:$C$1355=A28),--(Receipts!$D$5:$D$1355=$S$3),Receipts!$E$5:$E$1355)","v":0},{"$f":"SUMPRODUCT(--(Receipts!$C$5:$C$1355=A28),--(Receipts!$D$5:$D$1355=$T$3),Receipts!$E$5:$E$1355)","v":0},{"$f":"SUMPRODUCT(--(Receipts!$C$5:$C$1355=A28),--(Receipts!$D$5:$D$1355=$U$3),Receipts!$E$5:$E$1355)","v":0},{"$f":"SUMPRODUCT(--(Receipts!$C$5:$C$1355=A28),--(Receipts!$D$5:$D$1355=$V$3),Receipts!$E$5:$E$1355)","v":0},{"$f":"SUMPRODUCT(--(Receipts!$C$5:$C$1355=A28),--(Receipts!$D$5:$D$1355=$W$3),Receipts!$E$5:$E$1355)","v":0},{"$f":"SUMPRODUCT(--(Receipts!$C$5:$C$1355=A28),--(Receipts!$D$5:$D$1355=$X$3),Receipts!$E$5:$E$1355)","v":0},{"$f":"SUMPRODUCT(--(Receipts!$C$5:$C$1355=A28),--(Receipts!$D$5:$D$1355=$Y$3),Receipts!$E$5:$E$1355)","v":0},{"$f":"SUMPRODUCT(--(Receipts!$C$5:$C$1355=A28),--(Receipts!$D$5:$D$1355=$Z$3),Receipts!$E$5:$E$1355)","v":0},{"$f":"SUMPRODUCT(--(Receipts!$C$5:$C$1355=A28),--(Receipts!$D$5:$D$1355=$AA$3),Receipts!$E$5:$E$1355)","v":0},{"$f":"SUMPRODUCT(--(Receipts!$C$5:$C$1355=A28),--(Receipts!$D$5:$D$1355=$AB$3),Receipts!$E$5:$E$1355)","v":0},{"$f":"SUMPRODUCT(--(Receipts!$C$5:$C$1355=A28),--(Receipts!$D$5:$D$1355=$AC$3),Receipts!$E$5:$E$1355)","v":0},{"$f":"SUMPRODUCT(--(Receipts!$C$5:$C$1355=A28),--(Receipts!$D$5:$D$1355=$AD$3),Receipts!$E$5:$E$1355)","v":0},null,0,0,0,0]
[{"$f":"Descriptions!B30","v":"Rental Income"},{"$f":"Descriptions!D30","v":"Church Activities"},{"$f":"Descriptions!E30","v":"Dividends, interest, receipts from property etc. "},{"$f":"SUMPRODUCT(--(Receipts!$C$5:$C$1355=A29),--(Receipts!$D$5:$D$1355=$D$3),Receipts!$E$5:$E$1355)","v":0},{"$f":"SUMPRODUCT(--(Receipts!$C$5:$C$1355=A29),--(Receipts!$D$5:$D$1355=$E$3),Receipts!$E$5:$E$1355)","v":0},{"$f":"SUMPRODUCT(--(Receipts!$C$5:$C$1355=A29),--(Receipts!$D$5:$D$1355=$F$3),Receipts!$E$5:$E$1355)","v":0},{"$f":"SUMPRODUCT(--(Receipts!$C$5:$C$1355=A29),--(Receipts!$D$5:$D$1355=$G$3),Receipts!$E$5:$E$1355)","v":0},{"$f":"SUMPRODUCT(--(Receipts!$C$5:$C$1355=A29),--(Receipts!$D$5:$D$1355=$H$3),Receipts!$E$5:$E$1355)","v":0},{"$f":"SUMPRODUCT(--(Receipts!$C$5:$C$1355=A29),--(Receipts!$D$5:$D$1355=$I$3),Receipts!$E$5:$E$1355)","v":0},{"$f":"SUMPRODUCT(--(Receipts!$C$5:$C$1355=A29),--(Receipts!$D$5:$D$1355=$J$3),Receipts!$E$5:$E$1355)","v":0},{"$f":"SUMPRODUCT(--(Receipts!$C$5:$C$1355=A29),--(Receipts!$D$5:$D$1355=$K$3),Receipts!$E$5:$E$1355)","v":0},{"$f":"SUMPRODUCT(--(Receipts!$C$5:$C$1355=A29),--(Receipts!$D$5:$D$1355=$L$3),Receipts!$E$5:$E$1355)","v":0},{"$f":"SUMPRODUCT(--(Receipts!$C$5:$C$1355=A29),--(Receipts!$D$5:$D$1355=$M$3),Receipts!$E$5:$E$1355)","v":0},{"$f":"SUMPRODUCT(--(Receipts!$C$5:$C$1355=A29),--(Receipts!$D$5:$D$1355=$N$3),Receipts!$E$5:$E$1355)","v":0},{"$f":"SUMPRODUCT(--(Receipts!$C$5:$C$1355=A29),--(Receipts!$D$5:$D$1355=$O$3),Receipts!$E$5:$E$1355)","v":0},{"$f":"SUMPRODUCT(--(Receipts!$C$5:$C$1355=A29),--(Receipts!$D$5:$D$1355=$P$3),Receipts!$E$5:$E$1355)","v":0},{"$f":"SUMPRODUCT(--(Receipts!$C$5:$C$1355=A29),--(Receipts!$D$5:$D$1355=$Q$3),Receipts!$E$5:$E$1355)","v":0},{"$f":"SUMPRODUCT(--(Receipts!$C$5:$C$1355=A29),--(Receipts!$D$5:$D$1355=$R$3),Receipts!$E$5:$E$1355)","v":0},{"$f":"SUMPRODUCT(--(Receipts!$C$5:$C$1355=A29),--(Receipts!$D$5:$D$1355=$S$3),Receipts!$E$5:$E$1355)","v":0},{"$f":"SUMPRODUCT(--(Receipts!$C$5:$C$1355=A29),--(Receipts!$D$5:$D$1355=$T$3),Receipts!$E$5:$E$1355)","v":0},{"$f":"SUMPRODUCT(--(Receipts!$C$5:$C$1355=A29),--(Receipts!$D$5:$D$1355=$U$3),Receipts!$E$5:$E$1355)","v":0},{"$f":"SUMPRODUCT(--(Receipts!$C$5:$C$1355=A29),--(Receipts!$D$5:$D$1355=$V$3),Receipts!$E$5:$E$1355)","v":0},{"$f":"SUMPRODUCT(--(Receipts!$C$5:$C$1355=A29),--(Receipts!$D$5:$D$1355=$W$3),Receipts!$E$5:$E$1355)","v":0},{"$f":"SUMPRODUCT(--(Receipts!$C$5:$C$1355=A29),--(Receipts!$D$5:$D$1355=$X$3),Receipts!$E$5:$E$1355)","v":0},{"$f":"SUMPRODUCT(--(Receipts!$C$5:$C$1355=A29),--(Receipts!$D$5:$D$1355=$Y$3),Receipts!$E$5:$E$1355)","v":0},{"$f":"SUMPRODUCT(--(Receipts!$C$5:$C$1355=A29),--(Receipts!$D$5:$D$1355=$Z$3),Receipts!$E$5:$E$1355)","v":0},{"$f":"SUMPRODUCT(--(Receipts!$C$5:$C$1355=A29),--(Receipts!$D$5:$D$1355=$AA$3),Receipts!$E$5:$E$1355)","v":0},{"$f":"SUMPRODUCT(--(Receipts!$C$5:$C$1355=A29),--(Receipts!$D$5:$D$1355=$AB$3),Receipts!$E$5:$E$1355)","v":0},{"$f":"SUMPRODUCT(--(Receipts!$C$5:$C$1355=A29),--(Receipts!$D$5:$D$1355=$AC$3),Receipts!$E$5:$E$1355)","v":0},{"$f":"SUMPRODUCT(--(Receipts!$C$5:$C$1355=A29),--(Receipts!$D$5:$D$1355=$AD$3),Receipts!$E$5:$E$1355)","v":0},null,0,0,0,0]
[{"$f":"Descriptions!B31","v":"Sale of Assets"},{"$f":"Descriptions!D31","v":"Other Income"},{"$f":"Descriptions!E31","v":"Other receipts not already listed"},{"$f":"SUMPRODUCT(--(Receipts!$C$5:$C$1355=A30),--(Receipts!$D$5:$D$1355=$D$3),Receipts!$E$5:$E$1355)","v":0},{"$f":"SUMPRODUCT(--(Receipts!$C$5:$C$1355=A30),--(Receipts!$D$5:$D$1355=$E$3),Receipts!$E$5:$E$1355)","v":0},{"$f":"SUMPRODUCT(--(Receipts!$C$5:$C$1355=A30),--(Receipts!$D$5:$D$1355=$F$3),Receipts!$E$5:$E$1355)","v":0},{"$f":"SUMPRODUCT(--(Receipts!$C$5:$C$1355=A30),--(Receipts!$D$5:$D$1355=$G$3),Receipts!$E$5:$E$1355)","v":0},{"$f":"SUMPRODUCT(--(Receipts!$C$5:$C$1355=A30),--(Receipts!$D$5:$D$1355=$H$3),Receipts!$E$5:$E$1355)","v":0},{"$f":"SUMPRODUCT(--(Receipts!$C$5:$C$1355=A30),--(Receipts!$D$5:$D$1355=$I$3),Receipts!$E$5:$E$1355)","v":0},{"$f":"SUMPRODUCT(--(Receipts!$C$5:$C$1355=A30),--(Receipts!$D$5:$D$1355=$J$3),Receipts!$E$5:$E$1355)","v":0},{"$f":"SUMPRODUCT(--(Receipts!$C$5:$C$1355=A30),--(Receipts!$D$5:$D$1355=$K$3),Receipts!$E$5:$E$1355)","v":0},{"$f":"SUMPRODUCT(--(Receipts!$C$5:$C$1355=A30),--(Receipts!$D$5:$D$1355=$L$3),Receipts!$E$5:$E$1355)","v":0},{"$f":"SUMPRODUCT(--(Receipts!$C$5:$C$1355=A30),--(Receipts!$D$5:$D$1355=$M$3),Receipts!$E$5:$E$1355)","v":0},{"$f":"SUMPRODUCT(--(Receipts!$C$5:$C$1355=A30),--(Receipts!$D$5:$D$1355=$N$3),Receipts!$E$5:$E$1355)","v":0},{"$f":"SUMPRODUCT(--(Receipts!$C$5:$C$1355=A30),--(Receipts!$D$5:$D$1355=$O$3),Receipts!$E$5:$E$1355)","v":0},{"$f":"SUMPRODUCT(--(Receipts!$C$5:$C$1355=A30),--(Receipts!$D$5:$D$1355=$P$3),Receipts!$E$5:$E$1355)","v":0},{"$f":"SUMPRODUCT(--(Receipts!$C$5:$C$1355=A30),--(Receipts!$D$5:$D$1355=$Q$3),Receipts!$E$5:$E$1355)","v":0},{"$f":"SUMPRODUCT(--(Receipts!$C$5:$C$1355=A30),--(Receipts!$D$5:$D$1355=$R$3),Receipts!$E$5:$E$1355)","v":0},{"$f":"SUMPRODUCT(--(Receipts!$C$5:$C$1355=A30),--(Receipts!$D$5:$D$1355=$S$3),Receipts!$E$5:$E$1355)","v":0},{"$f":"SUMPRODUCT(--(Receipts!$C$5:$C$1355=A30),--(Receipts!$D$5:$D$1355=$T$3),Receipts!$E$5:$E$1355)","v":0},{"$f":"SUMPRODUCT(--(Receipts!$C$5:$C$1355=A30),--(Receipts!$D$5:$D$1355=$U$3),Receipts!$E$5:$E$1355)","v":0},{"$f":"SUMPRODUCT(--(Receipts!$C$5:$C$1355=A30),--(Receipts!$D$5:$D$1355=$V$3),Receipts!$E$5:$E$1355)","v":0},{"$f":"SUMPRODUCT(--(Receipts!$C$5:$C$1355=A30),--(Receipts!$D$5:$D$1355=$W$3),Receipts!$E$5:$E$1355)","v":0},{"$f":"SUMPRODUCT(--(Receipts!$C$5:$C$1355=A30),--(Receipts!$D$5:$D$1355=$X$3),Receipts!$E$5:$E$1355)","v":0},{"$f":"SUMPRODUCT(--(Receipts!$C$5:$C$1355=A30),--(Receipts!$D$5:$D$1355=$Y$3),Receipts!$E$5:$E$1355)","v":0},{"$f":"SUMPRODUCT(--(Receipts!$C$5:$C$1355=A30),--(Receipts!$D$5:$D$1355=$Z$3),Receipts!$E$5:$E$1355)","v":0},{"$f":"SUMPRODUCT(--(Receipts!$C$5:$C$1355=A30),--(Receipts!$D$5:$D$1355=$AA$3),Receipts!$E$5:$E$1355)","v":0},{"$f":"SUMPRODUCT(--(Receipts!$C$5:$C$1355=A30),--(Receipts!$D$5:$D$1355=$AB$3),Receipts!$E$5:$E$1355)","v":0},{"$f":"SUMPRODUCT(--(Receipts!$C$5:$C$1355=A30),--(Receipts!$D$5:$D$1355=$AC$3),Receipts!$E$5:$E$1355)","v":0},{"$f":"SUMPRODUCT(--(Receipts!$C$5:$C$1355=A30),--(Receipts!$D$5:$D$1355=$AD$3),Receipts!$E$5:$E$1355)","v":0},null,0,0,0,0]
[{"$f":"Descriptions!B32","v":"Sales"},{"$f":"Descriptions!D32","v":"Activites for generating funds"},{"$f":"Descriptions!E32","v":"Gross receipts from fundraising activities"},{"$f":"SUMPRODUCT(--(Receipts!$C$5:$C$1355=A31),--(Receipts!$D$5:$D$1355=$D$3),Receipts!$E$5:$E$1355)","v":0},{"$f":"SUMPRODUCT(--(Receipts!$C$5:$C$1355=A31),--(Receipts!$D$5:$D$1355=$E$3),Receipts!$E$5:$E$1355)","v":0},{"$f":"SUMPRODUCT(--(Receipts!$C$5:$C$1355=A31),--(Receipts!$D$5:$D$1355=$F$3),Receipts!$E$5:$E$1355)","v":0},{"$f":"SUMPRODUCT(--(Receipts!$C$5:$C$1355=A31),--(Receipts!$D$5:$D$1355=$G$3),Receipts!$E$5:$E$1355)","v":0},{"$f":"SUMPRODUCT(--(Receipts!$C$5:$C$1355=A31),--(Receipts!$D$5:$D$1355=$H$3),Receipts!$E$5:$E$1355)","v":0},{"$f":"SUMPRODUCT(--(Receipts!$C$5:$C$1355=A31),--(Receipts!$D$5:$D$1355=$I$3),Receipts!$E$5:$E$1355)","v":0},{"$f":"SUMPRODUCT(--(Receipts!$C$5:$C$1355=A31),--(Receipts!$D$5:$D$1355=$J$3),Receipts!$E$5:$E$1355)","v":0},{"$f":"SUMPRODUCT(--(Receipts!$C$5:$C$1355=A31),--(Receipts!$D$5:$D$1355=$K$3),Receipts!$E$5:$E$1355)","v":0},{"$f":"SUMPRODUCT(--(Receipts!$C$5:$C$1355=A31),--(Receipts!$D$5:$D$1355=$L$3),Receipts!$E$5:$E$1355)","v":0},{"$f":"SUMPRODUCT(--(Receipts!$C$5:$C$1355=A31),--(Receipts!$D$5:$D$1355=$M$3),Receipts!$E$5:$E$1355)","v":0},{"$f":"SUMPRODUCT(--(Receipts!$C$5:$C$1355=A31),--(Receipts!$D$5:$D$1355=$N$3),Receipts!$E$5:$E$1355)","v":0},{"$f":"SUMPRODUCT(--(Receipts!$C$5:$C$1355=A31),--(Receipts!$D$5:$D$1355=$O$3),Receipts!$E$5:$E$1355)","v":0},{"$f":"SUMPRODUCT(--(Receipts!$C$5:$C$1355=A31),--(Receipts!$D$5:$D$1355=$P$3),Receipts!$E$5:$E$1355)","v":0},{"$f":"SUMPRODUCT(--(Receipts!$C$5:$C$1355=A31),--(Receipts!$D$5:$D$1355=$Q$3),Receipts!$E$5:$E$1355)","v":0},{"$f":"SUMPRODUCT(--(Receipts!$C$5:$C$1355=A31),--(Receipts!$D$5:$D$1355=$R$3),Receipts!$E$5:$E$1355)","v":0},{"$f":"SUMPRODUCT(--(Receipts!$C$5:$C$1355=A31),--(Receipts!$D$5:$D$1355=$S$3),Receipts!$E$5:$E$1355)","v":0},{"$f":"SUMPRODUCT(--(Receipts!$C$5:$C$1355=A31),--(Receipts!$D$5:$D$1355=$T$3),Receipts!$E$5:$E$1355)","v":0},{"$f":"SUMPRODUCT(--(Receipts!$C$5:$C$1355=A31),--(Receipts!$D$5:$D$1355=$U$3),Receipts!$E$5:$E$1355)","v":0},{"$f":"SUMPRODUCT(--(Receipts!$C$5:$C$1355=A31),--(Receipts!$D$5:$D$1355=$V$3),Receipts!$E$5:$E$1355)","v":0},{"$f":"SUMPRODUCT(--(Receipts!$C$5:$C$1355=A31),--(Receipts!$D$5:$D$1355=$W$3),Receipts!$E$5:$E$1355)","v":0},{"$f":"SUMPRODUCT(--(Receipts!$C$5:$C$1355=A31),--(Receipts!$D$5:$D$1355=$X$3),Receipts!$E$5:$E$1355)","v":0},{"$f":"SUMPRODUCT(--(Receipts!$C$5:$C$1355=A31),--(Receipts!$D$5:$D$1355=$Y$3),Receipts!$E$5:$E$1355)","v":0},{"$f":"SUMPRODUCT(--(Receipts!$C$5:$C$1355=A31),--(Receipts!$D$5:$D$1355=$Z$3),Receipts!$E$5:$E$1355)","v":0},{"$f":"SUMPRODUCT(--(Receipts!$C$5:$C$1355=A31),--(Receipts!$D$5:$D$1355=$AA$3),Receipts!$E$5:$E$1355)","v":0},{"$f":"SUMPRODUCT(--(Receipts!$C$5:$C$1355=A31),--(Receipts!$D$5:$D$1355=$AB$3),Receipts!$E$5:$E$1355)","v":0},{"$f":"SUMPRODUCT(--(Receipts!$C$5:$C$1355=A31),--(Receipts!$D$5:$D$1355=$AC$3),Receipts!$E$5:$E$1355)","v":0},{"$f":"SUMPRODUCT(--(Receipts!$C$5:$C$1355=A31),--(Receipts!$D$5:$D$1355=$AD$3),Receipts!$E$5:$E$1355)","v":0},null,0,0,0,0]
[{"$f":"Descriptions!B33","v":"Standing Order"},{"$f":"Descriptions!D33","v":"Planned Giving"},{"$f":"Descriptions!E33","v":"Other receipts not already listed"},{"$f":"SUMPRODUCT(--(Receipts!$C$5:$C$1355=A32),--(Receipts!$D$5:$D$1355=$D$3),Receipts!$E$5:$E$1355)","v":0},{"$f":"SUMPRODUCT(--(Receipts!$C$5:$C$1355=A32),--(Receipts!$D$5:$D$1355=$E$3),Receipts!$E$5:$E$1355)","v":0},{"$f":"SUMPRODUCT(--(Receipts!$C$5:$C$1355=A32),--(Receipts!$D$5:$D$1355=$F$3),Receipts!$E$5:$E$1355)","v":0},{"$f":"SUMPRODUCT(--(Receipts!$C$5:$C$1355=A32),--(Receipts!$D$5:$D$1355=$G$3),Receipts!$E$5:$E$1355)","v":0},{"$f":"SUMPRODUCT(--(Receipts!$C$5:$C$1355=A32),--(Receipts!$D$5:$D$1355=$H$3),Receipts!$E$5:$E$1355)","v":0},{"$f":"SUMPRODUCT(--(Receipts!$C$5:$C$1355=A32),--(Receipts!$D$5:$D$1355=$I$3),Receipts!$E$5:$E$1355)","v":0},{"$f":"SUMPRODUCT(--(Receipts!$C$5:$C$1355=A32),--(Receipts!$D$5:$D$1355=$J$3),Receipts!$E$5:$E$1355)","v":0},{"$f":"SUMPRODUCT(--(Receipts!$C$5:$C$1355=A32),--(Receipts!$D$5:$D$1355=$K$3),Receipts!$E$5:$E$1355)","v":0},{"$f":"SUMPRODUCT(--(Receipts!$C$5:$C$1355=A32),--(Receipts!$D$5:$D$1355=$L$3),Receipts!$E$5:$E$1355)","v":0},{"$f":"SUMPRODUCT(--(Receipts!$C$5:$C$1355=A32),--(Receipts!$D$5:$D$1355=$M$3),Receipts!$E$5:$E$1355)","v":0},{"$f":"SUMPRODUCT(--(Receipts!$C$5:$C$1355=A32),--(Receipts!$D$5:$D$1355=$N$3),Receipts!$E$5:$E$1355)","v":0},{"$f":"SUMPRODUCT(--(Receipts!$C$5:$C$1355=A32),--(Receipts!$D$5:$D$1355=$O$3),Receipts!$E$5:$E$1355)","v":0},{"$f":"SUMPRODUCT(--(Receipts!$C$5:$C$1355=A32),--(Receipts!$D$5:$D$1355=$P$3),Receipts!$E$5:$E$1355)","v":0},{"$f":"SUMPRODUCT(--(Receipts!$C$5:$C$1355=A32),--(Receipts!$D$5:$D$1355=$Q$3),Receipts!$E$5:$E$1355)","v":0},{"$f":"SUMPRODUCT(--(Receipts!$C$5:$C$1355=A32),--(Receipts!$D$5:$D$1355=$R$3),Receipts!$E$5:$E$1355)","v":0},{"$f":"SUMPRODUCT(--(Receipts!$C$5:$C$1355=A32),--(Receipts!$D$5:$D$1355=$S$3),Receipts!$E$5:$E$1355)","v":0},{"$f":"SUMPRODUCT(--(Receipts!$C$5:$C$1355=A32),--(Receipts!$D$5:$D$1355=$T$3),Receipts!$E$5:$E$1355)","v":0},{"$f":"SUMPRODUCT(--(Receipts!$C$5:$C$1355=A32),--(Receipts!$D$5:$D$1355=$U$3),Receipts!$E$5:$E$1355)","v":0},{"$f":"SUMPRODUCT(--(Receipts!$C$5:$C$1355=A32),--(Receipts!$D$5:$D$1355=$V$3),Receipts!$E$5:$E$1355)","v":0},{"$f":"SUMPRODUCT(--(Receipts!$C$5:$C$1355=A32),--(Receipts!$D$5:$D$1355=$W$3),Receipts!$E$5:$E$1355)","v":0},{"$f":"SUMPRODUCT(--(Receipts!$C$5:$C$1355=A32),--(Receipts!$D$5:$D$1355=$X$3),Receipts!$E$5:$E$1355)","v":0},{"$f":"SUMPRODUCT(--(Receipts!$C$5:$C$1355=A32),--(Receipts!$D$5:$D$1355=$Y$3),Receipts!$E$5:$E$1355)","v":0},{"$f":"SUMPRODUCT(--(Receipts!$C$5:$C$1355=A32),--(Receipts!$D$5:$D$1355=$Z$3),Receipts!$E$5:$E$1355)","v":0},{"$f":"SUMPRODUCT(--(Receipts!$C$5:$C$1355=A32),--(Receipts!$D$5:$D$1355=$AA$3),Receipts!$E$5:$E$1355)","v":0},{"$f":"SUMPRODUCT(--(Receipts!$C$5:$C$1355=A32),--(Receipts!$D$5:$D$1355=$AB$3),Receipts!$E$5:$E$1355)","v":0},{"$f":"SUMPRODUCT(--(Receipts!$C$5:$C$1355=A32),--(Receipts!$D$5:$D$1355=$AC$3),Receipts!$E$5:$E$1355)","v":0},{"$f":"SUMPRODUCT(--(Receipts!$C$5:$C$1355=A32),--(Receipts!$D$5:$D$1355=$AD$3),Receipts!$E$5:$E$1355)","v":0},null,0,0,0,0,null,null,null,null,"All other giving/voluntary receipts",null,{"$f":"SUMPRODUCT(($B$5:$B$91=AN32)*($AF$5:$AF$91))","v":0},{"$f":"SUMPRODUCT(($B$5:$B$91=AN32)*($AG$5:$AG$91))","v":0},{"$f":"SUMPRODUCT(($B$5:$B$91=AN32)*($AH$5:$AH$91))","v":0},{"$f":"SUMPRODUCT(($B$5:$B$91=AN32)*($AI$5:$AI$91))","v":0}]
[{"$f":"Descriptions!B34","v":"Sunday Collections"},{"$f":"Descriptions!D34","v":"Collections at Services"},{"$f":"Descriptions!E34","v":"Collections at services"},{"$f":"SUMPRODUCT(--(Receipts!$C$5:$C$1355=A33),--(Receipts!$D$5:$D$1355=$D$3),Receipts!$E$5:$E$1355)","v":0},{"$f":"SUMPRODUCT(--(Receipts!$C$5:$C$1355=A33),--(Receipts!$D$5:$D$1355=$E$3),Receipts!$E$5:$E$1355)","v":0},{"$f":"SUMPRODUCT(--(Receipts!$C$5:$C$1355=A33),--(Receipts!$D$5:$D$1355=$F$3),Receipts!$E$5:$E$1355)","v":0},{"$f":"SUMPRODUCT(--(Receipts!$C$5:$C$1355=A33),--(Receipts!$D$5:$D$1355=$G$3),Receipts!$E$5:$E$1355)","v":0},{"$f":"SUMPRODUCT(--(Receipts!$C$5:$C$1355=A33),--(Receipts!$D$5:$D$1355=$H$3),Receipts!$E$5:$E$1355)","v":0},{"$f":"SUMPRODUCT(--(Receipts!$C$5:$C$1355=A33),--(Receipts!$D$5:$D$1355=$I$3),Receipts!$E$5:$E$1355)","v":0},{"$f":"SUMPRODUCT(--(Receipts!$C$5:$C$1355=A33),--(Receipts!$D$5:$D$1355=$J$3),Receipts!$E$5:$E$1355)","v":0},{"$f":"SUMPRODUCT(--(Receipts!$C$5:$C$1355=A33),--(Receipts!$D$5:$D$1355=$K$3),Receipts!$E$5:$E$1355)","v":0},{"$f":"SUMPRODUCT(--(Receipts!$C$5:$C$1355=A33),--(Receipts!$D$5:$D$1355=$L$3),Receipts!$E$5:$E$1355)","v":0},{"$f":"SUMPRODUCT(--(Receipts!$C$5:$C$1355=A33),--(Receipts!$D$5:$D$1355=$M$3),Receipts!$E$5:$E$1355)","v":0},{"$f":"SUMPRODUCT(--(Receipts!$C$5:$C$1355=A33),--(Receipts!$D$5:$D$1355=$N$3),Receipts!$E$5:$E$1355)","v":0},{"$f":"SUMPRODUCT(--(Receipts!$C$5:$C$1355=A33),--(Receipts!$D$5:$D$1355=$O$3),Receipts!$E$5:$E$1355)","v":0},{"$f":"SUMPRODUCT(--(Receipts!$C$5:$C$1355=A33),--(Receipts!$D$5:$D$1355=$P$3),Receipts!$E$5:$E$1355)","v":0},{"$f":"SUMPRODUCT(--(Receipts!$C$5:$C$1355=A33),--(Receipts!$D$5:$D$1355=$Q$3),Receipts!$E$5:$E$1355)","v":0},{"$f":"SUMPRODUCT(--(Receipts!$C$5:$C$1355=A33),--(Receipts!$D$5:$D$1355=$R$3),Receipts!$E$5:$E$1355)","v":0},{"$f":"SUMPRODUCT(--(Receipts!$C$5:$C$1355=A33),--(Receipts!$D$5:$D$1355=$S$3),Receipts!$E$5:$E$1355)","v":0},{"$f":"SUMPRODUCT(--(Receipts!$C$5:$C$1355=A33),--(Receipts!$D$5:$D$1355=$T$3),Receipts!$E$5:$E$1355)","v":0},{"$f":"SUMPRODUCT(--(Receipts!$C$5:$C$1355=A33),--(Receipts!$D$5:$D$1355=$U$3),Receipts!$E$5:$E$1355)","v":0},{"$f":"SUMPRODUCT(--(Receipts!$C$5:$C$1355=A33),--(Receipts!$D$5:$D$1355=$V$3),Receipts!$E$5:$E$1355)","v":0},{"$f":"SUMPRODUCT(--(Receipts!$C$5:$C$1355=A33),--(Receipts!$D$5:$D$1355=$W$3),Receipts!$E$5:$E$1355)","v":0},{"$f":"SUMPRODUCT(--(Receipts!$C$5:$C$1355=A33),--(Receipts!$D$5:$D$1355=$X$3),Receipts!$E$5:$E$1355)","v":0},{"$f":"SUMPRODUCT(--(Receipts!$C$5:$C$1355=A33),--(Receipts!$D$5:$D$1355=$Y$3),Receipts!$E$5:$E$1355)","v":0},{"$f":"SUMPRODUCT(--(Receipts!$C$5:$C$1355=A33),--(Receipts!$D$5:$D$1355=$Z$3),Receipts!$E$5:$E$1355)","v":0},{"$f":"SUMPRODUCT(--(Receipts!$C$5:$C$1355=A33),--(Receipts!$D$5:$D$1355=$AA$3),Receipts!$E$5:$E$1355)","v":0},{"$f":"SUMPRODUCT(--(Receipts!$C$5:$C$1355=A33),--(Receipts!$D$5:$D$1355=$AB$3),Receipts!$E$5:$E$1355)","v":0},{"$f":"SUMPRODUCT(--(Receipts!$C$5:$C$1355=A33),--(Receipts!$D$5:$D$1355=$AC$3),Receipts!$E$5:$E$1355)","v":0},{"$f":"SUMPRODUCT(--(Receipts!$C$5:$C$1355=A33),--(Receipts!$D$5:$D$1355=$AD$3),Receipts!$E$5:$E$1355)","v":0},null,0,0,0,0,null,null,null,null,"Activites for generating funds",null,{"$f":"SUMPRODUCT(($B$5:$B$91=AN33)*($AF$5:$AF$91))","v":0},{"$f":"SUMPRODUCT(($B$5:$B$91=AN33)*($AG$5:$AG$91))","v":0},{"$f":"SUMPRODUCT(($B$5:$B$91=AN33)*($AH$5:$AH$91))","v":0},{"$f":"SUMPRODUCT(($B$5:$B$91=AN33)*($AI$5:$AI$91))","v":0}]
[{"$f":"Descriptions!B35","v":"Sunday Collections - Gift Aided"},{"$f":"Descriptions!D35","v":"Collections at Services"},{"$f":"Descriptions!E35","v":"Tax efficient planned giving"},{"$f":"SUMPRODUCT(--(Receipts!$C$5:$C$1355=A34),--(Receipts!$D$5:$D$1355=$D$3),Receipts!$E$5:$E$1355)","v":0},{"$f":"SUMPRODUCT(--(Receipts!$C$5:$C$1355=A34),--(Receipts!$D$5:$D$1355=$E$3),Receipts!$E$5:$E$1355)","v":0},{"$f":"SUMPRODUCT(--(Receipts!$C$5:$C$1355=A34),--(Receipts!$D$5:$D$1355=$F$3),Receipts!$E$5:$E$1355)","v":0},{"$f":"SUMPRODUCT(--(Receipts!$C$5:$C$1355=A34),--(Receipts!$D$5:$D$1355=$G$3),Receipts!$E$5:$E$1355)","v":0},{"$f":"SUMPRODUCT(--(Receipts!$C$5:$C$1355=A34),--(Receipts!$D$5:$D$1355=$H$3),Receipts!$E$5:$E$1355)","v":0},{"$f":"SUMPRODUCT(--(Receipts!$C$5:$C$1355=A34),--(Receipts!$D$5:$D$1355=$I$3),Receipts!$E$5:$E$1355)","v":0},{"$f":"SUMPRODUCT(--(Receipts!$C$5:$C$1355=A34),--(Receipts!$D$5:$D$1355=$J$3),Receipts!$E$5:$E$1355)","v":0},{"$f":"SUMPRODUCT(--(Receipts!$C$5:$C$1355=A34),--(Receipts!$D$5:$D$1355=$K$3),Receipts!$E$5:$E$1355)","v":0},{"$f":"SUMPRODUCT(--(Receipts!$C$5:$C$1355=A34),--(Receipts!$D$5:$D$1355=$L$3),Receipts!$E$5:$E$1355)","v":0},{"$f":"SUMPRODUCT(--(Receipts!$C$5:$C$1355=A34),--(Receipts!$D$5:$D$1355=$M$3),Receipts!$E$5:$E$1355)","v":0},{"$f":"SUMPRODUCT(--(Receipts!$C$5:$C$1355=A34),--(Receipts!$D$5:$D$1355=$N$3),Receipts!$E$5:$E$1355)","v":0},{"$f":"SUMPRODUCT(--(Receipts!$C$5:$C$1355=A34),--(Receipts!$D$5:$D$1355=$O$3),Receipts!$E$5:$E$1355)","v":0},{"$f":"SUMPRODUCT(--(Receipts!$C$5:$C$1355=A34),--(Receipts!$D$5:$D$1355=$P$3),Receipts!$E$5:$E$1355)","v":0},{"$f":"SUMPRODUCT(--(Receipts!$C$5:$C$1355=A34),--(Receipts!$D$5:$D$1355=$Q$3),Receipts!$E$5:$E$1355)","v":0},{"$f":"SUMPRODUCT(--(Receipts!$C$5:$C$1355=A34),--(Receipts!$D$5:$D$1355=$R$3),Receipts!$E$5:$E$1355)","v":0},{"$f":"SUMPRODUCT(--(Receipts!$C$5:$C$1355=A34),--(Receipts!$D$5:$D$1355=$S$3),Receipts!$E$5:$E$1355)","v":0},{"$f":"SUMPRODUCT(--(Receipts!$C$5:$C$1355=A34),--(Receipts!$D$5:$D$1355=$T$3),Receipts!$E$5:$E$1355)","v":0},{"$f":"SUMPRODUCT(--(Receipts!$C$5:$C$1355=A34),--(Receipts!$D$5:$D$1355=$U$3),Receipts!$E$5:$E$1355)","v":0},{"$f":"SUMPRODUCT(--(Receipts!$C$5:$C$1355=A34),--(Receipts!$D$5:$D$1355=$V$3),Receipts!$E$5:$E$1355)","v":0},{"$f":"SUMPRODUCT(--(Receipts!$C$5:$C$1355=A34),--(Receipts!$D$5:$D$1355=$W$3),Receipts!$E$5:$E$1355)","v":0},{"$f":"SUMPRODUCT(--(Receipts!$C$5:$C$1355=A34),--(Receipts!$D$5:$D$1355=$X$3),Receipts!$E$5:$E$1355)","v":0},{"$f":"SUMPRODUCT(--(Receipts!$C$5:$C$1355=A34),--(Receipts!$D$5:$D$1355=$Y$3),Receipts!$E$5:$E$1355)","v":0},{"$f":"SUMPRODUCT(--(Receipts!$C$5:$C$1355=A34),--(Receipts!$D$5:$D$1355=$Z$3),Receipts!$E$5:$E$1355)","v":0},{"$f":"SUMPRODUCT(--(Receipts!$C$5:$C$1355=A34),--(Receipts!$D$5:$D$1355=$AA$3),Receipts!$E$5:$E$1355)","v":0},{"$f":"SUMPRODUCT(--(Receipts!$C$5:$C$1355=A34),--(Receipts!$D$5:$D$1355=$AB$3),Receipts!$E$5:$E$1355)","v":0},{"$f":"SUMPRODUCT(--(Receipts!$C$5:$C$1355=A34),--(Receipts!$D$5:$D$1355=$AC$3),Receipts!$E$5:$E$1355)","v":0},{"$f":"SUMPRODUCT(--(Receipts!$C$5:$C$1355=A34),--(Receipts!$D$5:$D$1355=$AD$3),Receipts!$E$5:$E$1355)","v":0},null,0,0,0,0,null,null,null,null,"Church Activities",null,{"$f":"SUMPRODUCT(($B$5:$B$91=AN34)*($AF$5:$AF$91))","v":0},0,0,0]
[{"$f":"Descriptions!B36","v":"Use of Church Buildings"},{"$f":"Descriptions!D36","v":"Church Activities"},{"$f":"Descriptions!E36","v":"Other receipts not already listed"},{"$f":"SUMPRODUCT(--(Receipts!$C$5:$C$1355=A35),--(Receipts!$D$5:$D$1355=$D$3),Receipts!$E$5:$E$1355)","v":0},{"$f":"SUMPRODUCT(--(Receipts!$C$5:$C$1355=A35),--(Receipts!$D$5:$D$1355=$E$3),Receipts!$E$5:$E$1355)","v":0},{"$f":"SUMPRODUCT(--(Receipts!$C$5:$C$1355=A35),--(Receipts!$D$5:$D$1355=$F$3),Receipts!$E$5:$E$1355)","v":0},{"$f":"SUMPRODUCT(--(Receipts!$C$5:$C$1355=A35),--(Receipts!$D$5:$D$1355=$G$3),Receipts!$E$5:$E$1355)","v":0},{"$f":"SUMPRODUCT(--(Receipts!$C$5:$C$1355=A35),--(Receipts!$D$5:$D$1355=$H$3),Receipts!$E$5:$E$1355)","v":0},{"$f":"SUMPRODUCT(--(Receipts!$C$5:$C$1355=A35),--(Receipts!$D$5:$D$1355=$I$3),Receipts!$E$5:$E$1355)","v":0},{"$f":"SUMPRODUCT(--(Receipts!$C$5:$C$1355=A35),--(Receipts!$D$5:$D$1355=$J$3),Receipts!$E$5:$E$1355)","v":0},{"$f":"SUMPRODUCT(--(Receipts!$C$5:$C$1355=A35),--(Receipts!$D$5:$D$1355=$K$3),Receipts!$E$5:$E$1355)","v":0},{"$f":"SUMPRODUCT(--(Receipts!$C$5:$C$1355=A35),--(Receipts!$D$5:$D$1355=$L$3),Receipts!$E$5:$E$1355)","v":0},{"$f":"SUMPRODUCT(--(Receipts!$C$5:$C$1355=A35),--(Receipts!$D$5:$D$1355=$M$3),Receipts!$E$5:$E$1355)","v":0},{"$f":"SUMPRODUCT(--(Receipts!$C$5:$C$1355=A35),--(Receipts!$D$5:$D$1355=$N$3),Receipts!$E$5:$E$1355)","v":0},{"$f":"SUMPRODUCT(--(Receipts!$C$5:$C$1355=A35),--(Receipts!$D$5:$D$1355=$O$3),Receipts!$E$5:$E$1355)","v":0},{"$f":"SUMPRODUCT(--(Receipts!$C$5:$C$1355=A35),--(Receipts!$D$5:$D$1355=$P$3),Receipts!$E$5:$E$1355)","v":0},{"$f":"SUMPRODUCT(--(Receipts!$C$5:$C$1355=A35),--(Receipts!$D$5:$D$1355=$Q$3),Receipts!$E$5:$E$1355)","v":0},{"$f":"SUMPRODUCT(--(Receipts!$C$5:$C$1355=A35),--(Receipts!$D$5:$D$1355=$R$3),Receipts!$E$5:$E$1355)","v":0},{"$f":"SUMPRODUCT(--(Receipts!$C$5:$C$1355=A35),--(Receipts!$D$5:$D$1355=$S$3),Receipts!$E$5:$E$1355)","v":0},{"$f":"SUMPRODUCT(--(Receipts!$C$5:$C$1355=A35),--(Receipts!$D$5:$D$1355=$T$3),Receipts!$E$5:$E$1355)","v":0},{"$f":"SUMPRODUCT(--(Receipts!$C$5:$C$1355=A35),--(Receipts!$D$5:$D$1355=$U$3),Receipts!$E$5:$E$1355)","v":0},{"$f":"SUMPRODUCT(--(Receipts!$C$5:$C$1355=A35),--(Receipts!$D$5:$D$1355=$V$3),Receipts!$E$5:$E$1355)","v":0},{"$f":"SUMPRODUCT(--(Receipts!$C$5:$C$1355=A35),--(Receipts!$D$5:$D$1355=$W$3),Receipts!$E$5:$E$1355)","v":0},{"$f":"SUMPRODUCT(--(Receipts!$C$5:$C$1355=A35),--(Receipts!$D$5:$D$1355=$X$3),Receipts!$E$5:$E$1355)","v":0},{"$f":"SUMPRODUCT(--(Receipts!$C$5:$C$1355=A35),--(Receipts!$D$5:$D$1355=$Y$3),Receipts!$E$5:$E$1355)","v":0},{"$f":"SUMPRODUCT(--(Receipts!$C$5:$C$1355=A35),--(Receipts!$D$5:$D$1355=$Z$3),Receipts!$E$5:$E$1355)","v":0},{"$f":"SUMPRODUCT(--(Receipts!$C$5:$C$1355=A35),--(Receipts!$D$5:$D$1355=$AA$3),Receipts!$E$5:$E$1355)","v":0},{"$f":"SUMPRODUCT(--(Receipts!$C$5:$C$1355=A35),--(Receipts!$D$5:$D$1355=$AB$3),Receipts!$E$5:$E$1355)","v":0},{"$f":"SUMPRODUCT(--(Receipts!$C$5:$C$1355=A35),--(Receipts!$D$5:$D$1355=$AC$3),Receipts!$E$5:$E$1355)","v":0},{"$f":"SUMPRODUCT(--(Receipts!$C$5:$C$1355=A35),--(Receipts!$D$5:$D$1355=$AD$3),Receipts!$E$5:$E$1355)","v":0},null,0,0,0,0,null,null,null,null,"Investment Income",null,{"$f":"SUMPRODUCT(($B$5:$B$91=AN35)*($AF$5:$AF$91))","v":0},0,0,0]
[{"$f":"Descriptions!B37","v":"VAT Reclaim"},{"$f":"Descriptions!D37","v":"Church Activities"},{"$f":"Descriptions!E37","v":"Grants (include recurring and one-off)"},{"$f":"SUMPRODUCT(--(Receipts!$C$5:$C$1355=A36),--(Receipts!$D$5:$D$1355=$D$3),Receipts!$E$5:$E$1355)","v":0},{"$f":"SUMPRODUCT(--(Receipts!$C$5:$C$1355=A36),--(Receipts!$D$5:$D$1355=$E$3),Receipts!$E$5:$E$1355)","v":0},{"$f":"SUMPRODUCT(--(Receipts!$C$5:$C$1355=A36),--(Receipts!$D$5:$D$1355=$F$3),Receipts!$E$5:$E$1355)","v":0},{"$f":"SUMPRODUCT(--(Receipts!$C$5:$C$1355=A36),--(Receipts!$D$5:$D$1355=$G$3),Receipts!$E$5:$E$1355)","v":0},{"$f":"SUMPRODUCT(--(Receipts!$C$5:$C$1355=A36),--(Receipts!$D$5:$D$1355=$H$3),Receipts!$E$5:$E$1355)","v":0},{"$f":"SUMPRODUCT(--(Receipts!$C$5:$C$1355=A36),--(Receipts!$D$5:$D$1355=$I$3),Receipts!$E$5:$E$1355)","v":0},{"$f":"SUMPRODUCT(--(Receipts!$C$5:$C$1355=A36),--(Receipts!$D$5:$D$1355=$J$3),Receipts!$E$5:$E$1355)","v":0},{"$f":"SUMPRODUCT(--(Receipts!$C$5:$C$1355=A36),--(Receipts!$D$5:$D$1355=$K$3),Receipts!$E$5:$E$1355)","v":0},{"$f":"SUMPRODUCT(--(Receipts!$C$5:$C$1355=A36),--(Receipts!$D$5:$D$1355=$L$3),Receipts!$E$5:$E$1355)","v":0},{"$f":"SUMPRODUCT(--(Receipts!$C$5:$C$1355=A36),--(Receipts!$D$5:$D$1355=$M$3),Receipts!$E$5:$E$1355)","v":0},{"$f":"SUMPRODUCT(--(Receipts!$C$5:$C$1355=A36),--(Receipts!$D$5:$D$1355=$N$3),Receipts!$E$5:$E$1355)","v":0},{"$f":"SUMPRODUCT(--(Receipts!$C$5:$C$1355=A36),--(Receipts!$D$5:$D$1355=$O$3),Receipts!$E$5:$E$1355)","v":0},{"$f":"SUMPRODUCT(--(Receipts!$C$5:$C$1355=A36),--(Receipts!$D$5:$D$1355=$P$3),Receipts!$E$5:$E$1355)","v":0},{"$f":"SUMPRODUCT(--(Receipts!$C$5:$C$1355=A36),--(Receipts!$D$5:$D$1355=$Q$3),Receipts!$E$5:$E$1355)","v":0},{"$f":"SUMPRODUCT(--(Receipts!$C$5:$C$1355=A36),--(Receipts!$D$5:$D$1355=$R$3),Receipts!$E$5:$E$1355)","v":0},{"$f":"SUMPRODUCT(--(Receipts!$C$5:$C$1355=A36),--(Receipts!$D$5:$D$1355=$S$3),Receipts!$E$5:$E$1355)","v":0},{"$f":"SUMPRODUCT(--(Receipts!$C$5:$C$1355=A36),--(Receipts!$D$5:$D$1355=$T$3),Receipts!$E$5:$E$1355)","v":0},{"$f":"SUMPRODUCT(--(Receipts!$C$5:$C$1355=A36),--(Receipts!$D$5:$D$1355=$U$3),Receipts!$E$5:$E$1355)","v":0},{"$f":"SUMPRODUCT(--(Receipts!$C$5:$C$1355=A36),--(Receipts!$D$5:$D$1355=$V$3),Receipts!$E$5:$E$1355)","v":0},{"$f":"SUMPRODUCT(--(Receipts!$C$5:$C$1355=A36),--(Receipts!$D$5:$D$1355=$W$3),Receipts!$E$5:$E$1355)","v":0},{"$f":"SUMPRODUCT(--(Receipts!$C$5:$C$1355=A36),--(Receipts!$D$5:$D$1355=$X$3),Receipts!$E$5:$E$1355)","v":0},{"$f":"SUMPRODUCT(--(Receipts!$C$5:$C$1355=A36),--(Receipts!$D$5:$D$1355=$Y$3),Receipts!$E$5:$E$1355)","v":0},{"$f":"SUMPRODUCT(--(Receipts!$C$5:$C$1355=A36),--(Receipts!$D$5:$D$1355=$Z$3),Receipts!$E$5:$E$1355)","v":0},{"$f":"SUMPRODUCT(--(Receipts!$C$5:$C$1355=A36),--(Receipts!$D$5:$D$1355=$AA$3),Receipts!$E$5:$E$1355)","v":0},{"$f":"SUMPRODUCT(--(Receipts!$C$5:$C$1355=A36),--(Receipts!$D$5:$D$1355=$AB$3),Receipts!$E$5:$E$1355)","v":0},{"$f":"SUMPRODUCT(--(Receipts!$C$5:$C$1355=A36),--(Receipts!$D$5:$D$1355=$AC$3),Receipts!$E$5:$E$1355)","v":0},{"$f":"SUMPRODUCT(--(Receipts!$C$5:$C$1355=A36),--(Receipts!$D$5:$D$1355=$AD$3),Receipts!$E$5:$E$1355)","v":0},null,0,0,0,0,null,null,null,null,"Gift Day and Sundry Donations",null,0,0,0,0]
[{"$f":"Descriptions!B38","v":"Wall Boxes"},{"$f":"Descriptions!D38","v":"Gift Day and Sundry Donations"},{"$f":"Descriptions!E38","v":"Other planned giving"},{"$f":"SUMPRODUCT(--(Receipts!$C$5:$C$1355=A37),--(Receipts!$D$5:$D$1355=$D$3),Receipts!$E$5:$E$1355)","v":0},{"$f":"SUMPRODUCT(--(Receipts!$C$5:$C$1355=A37),--(Receipts!$D$5:$D$1355=$E$3),Receipts!$E$5:$E$1355)","v":0},{"$f":"SUMPRODUCT(--(Receipts!$C$5:$C$1355=A37),--(Receipts!$D$5:$D$1355=$F$3),Receipts!$E$5:$E$1355)","v":0},{"$f":"SUMPRODUCT(--(Receipts!$C$5:$C$1355=A37),--(Receipts!$D$5:$D$1355=$G$3),Receipts!$E$5:$E$1355)","v":0},{"$f":"SUMPRODUCT(--(Receipts!$C$5:$C$1355=A37),--(Receipts!$D$5:$D$1355=$H$3),Receipts!$E$5:$E$1355)","v":0},{"$f":"SUMPRODUCT(--(Receipts!$C$5:$C$1355=A37),--(Receipts!$D$5:$D$1355=$I$3),Receipts!$E$5:$E$1355)","v":0},{"$f":"SUMPRODUCT(--(Receipts!$C$5:$C$1355=A37),--(Receipts!$D$5:$D$1355=$J$3),Receipts!$E$5:$E$1355)","v":0},{"$f":"SUMPRODUCT(--(Receipts!$C$5:$C$1355=A37),--(Receipts!$D$5:$D$1355=$K$3),Receipts!$E$5:$E$1355)","v":0},{"$f":"SUMPRODUCT(--(Receipts!$C$5:$C$1355=A37),--(Receipts!$D$5:$D$1355=$L$3),Receipts!$E$5:$E$1355)","v":0},{"$f":"SUMPRODUCT(--(Receipts!$C$5:$C$1355=A37),--(Receipts!$D$5:$D$1355=$M$3),Receipts!$E$5:$E$1355)","v":0},{"$f":"SUMPRODUCT(--(Receipts!$C$5:$C$1355=A37),--(Receipts!$D$5:$D$1355=$N$3),Receipts!$E$5:$E$1355)","v":0},{"$f":"SUMPRODUCT(--(Receipts!$C$5:$C$1355=A37),--(Receipts!$D$5:$D$1355=$O$3),Receipts!$E$5:$E$1355)","v":0},{"$f":"SUMPRODUCT(--(Receipts!$C$5:$C$1355=A37),--(Receipts!$D$5:$D$1355=$P$3),Receipts!$E$5:$E$1355)","v":0},{"$f":"SUMPRODUCT(--(Receipts!$C$5:$C$1355=A37),--(Receipts!$D$5:$D$1355=$Q$3),Receipts!$E$5:$E$1355)","v":0},{"$f":"SUMPRODUCT(--(Receipts!$C$5:$C$1355=A37),--(Receipts!$D$5:$D$1355=$R$3),Receipts!$E$5:$E$1355)","v":0},{"$f":"SUMPRODUCT(--(Receipts!$C$5:$C$1355=A37),--(Receipts!$D$5:$D$1355=$S$3),Receipts!$E$5:$E$1355)","v":0},{"$f":"SUMPRODUCT(--(Receipts!$C$5:$C$1355=A37),--(Receipts!$D$5:$D$1355=$T$3),Receipts!$E$5:$E$1355)","v":0},{"$f":"SUMPRODUCT(--(Receipts!$C$5:$C$1355=A37),--(Receipts!$D$5:$D$1355=$U$3),Receipts!$E$5:$E$1355)","v":0},{"$f":"SUMPRODUCT(--(Receipts!$C$5:$C$1355=A37),--(Receipts!$D$5:$D$1355=$V$3),Receipts!$E$5:$E$1355)","v":0},{"$f":"SUMPRODUCT(--(Receipts!$C$5:$C$1355=A37),--(Receipts!$D$5:$D$1355=$W$3),Receipts!$E$5:$E$1355)","v":0},{"$f":"SUMPRODUCT(--(Receipts!$C$5:$C$1355=A37),--(Receipts!$D$5:$D$1355=$X$3),Receipts!$E$5:$E$1355)","v":0},{"$f":"SUMPRODUCT(--(Receipts!$C$5:$C$1355=A37),--(Receipts!$D$5:$D$1355=$Y$3),Receipts!$E$5:$E$1355)","v":0},{"$f":"SUMPRODUCT(--(Receipts!$C$5:$C$1355=A37),--(Receipts!$D$5:$D$1355=$Z$3),Receipts!$E$5:$E$1355)","v":0},{"$f":"SUMPRODUCT(--(Receipts!$C$5:$C$1355=A37),--(Receipts!$D$5:$D$1355=$AA$3),Receipts!$E$5:$E$1355)","v":0},{"$f":"SUMPRODUCT(--(Receipts!$C$5:$C$1355=A37),--(Receipts!$D$5:$D$1355=$AB$3),Receipts!$E$5:$E$1355)","v":0},{"$f":"SUMPRODUCT(--(Receipts!$C$5:$C$1355=A37),--(Receipts!$D$5:$D$1355=$AC$3),Receipts!$E$5:$E$1355)","v":0},{"$f":"SUMPRODUCT(--(Receipts!$C$5:$C$1355=A37),--(Receipts!$D$5:$D$1355=$AD$3),Receipts!$E$5:$E$1355)","v":0},null,{"$f":"SUMPRODUCT(($D$4:$AD$4=$AF$4)*(D37:AD37))","v":0},{"$f":"SUMPRODUCT(($D$4:$AD$4=$AG$4)*(D37:AD37))","v":0},{"$f":"SUMPRODUCT(($D$4:$AD$4=$AH$4)*(D37:AD37))","v":0},{"$f":"SUMPRODUCT(($D$4:$AD$4=$AI$4)*(D37:AD37))","v":0},null,null,null,null,"Recurring Income",null,0,0,0,0]
[{"$f":"Descriptions!B39","v":"Wedding and Funeral Collections"},{"$f":"Descriptions!D39","v":"Collections at Services"},{"$f":"Descriptions!E39","v":"Collections at services"},{"$f":"SUMPRODUCT(--(Receipts!$C$5:$C$1355=A38),--(Receipts!$D$5:$D$1355=$D$3),Receipts!$E$5:$E$1355)","v":0},{"$f":"SUMPRODUCT(--(Receipts!$C$5:$C$1355=A38),--(Receipts!$D$5:$D$1355=$E$3),Receipts!$E$5:$E$1355)","v":0},{"$f":"SUMPRODUCT(--(Receipts!$C$5:$C$1355=A38),--(Receipts!$D$5:$D$1355=$F$3),Receipts!$E$5:$E$1355)","v":0},{"$f":"SUMPRODUCT(--(Receipts!$C$5:$C$1355=A38),--(Receipts!$D$5:$D$1355=$G$3),Receipts!$E$5:$E$1355)","v":0},{"$f":"SUMPRODUCT(--(Receipts!$C$5:$C$1355=A38),--(Receipts!$D$5:$D$1355=$H$3),Receipts!$E$5:$E$1355)","v":0},{"$f":"SUMPRODUCT(--(Receipts!$C$5:$C$1355=A38),--(Receipts!$D$5:$D$1355=$I$3),Receipts!$E$5:$E$1355)","v":0},{"$f":"SUMPRODUCT(--(Receipts!$C$5:$C$1355=A38),--(Receipts!$D$5:$D$1355=$J$3),Receipts!$E$5:$E$1355)","v":0},{"$f":"SUMPRODUCT(--(Receipts!$C$5:$C$1355=A38),--(Receipts!$D$5:$D$1355=$K$3),Receipts!$E$5:$E$1355)","v":0},{"$f":"SUMPRODUCT(--(Receipts!$C$5:$C$1355=A38),--(Receipts!$D$5:$D$1355=$L$3),Receipts!$E$5:$E$1355)","v":0},{"$f":"SUMPRODUCT(--(Receipts!$C$5:$C$1355=A38),--(Receipts!$D$5:$D$1355=$M$3),Receipts!$E$5:$E$1355)","v":0},{"$f":"SUMPRODUCT(--(Receipts!$C$5:$C$1355=A38),--(Receipts!$D$5:$D$1355=$N$3),Receipts!$E$5:$E$1355)","v":0},{"$f":"SUMPRODUCT(--(Receipts!$C$5:$C$1355=A38),--(Receipts!$D$5:$D$1355=$O$3),Receipts!$E$5:$E$1355)","v":0},{"$f":"SUMPRODUCT(--(Receipts!$C$5:$C$1355=A38),--(Receipts!$D$5:$D$1355=$P$3),Receipts!$E$5:$E$1355)","v":0},{"$f":"SUMPRODUCT(--(Receipts!$C$5:$C$1355=A38),--(Receipts!$D$5:$D$1355=$Q$3),Receipts!$E$5:$E$1355)","v":0},{"$f":"SUMPRODUCT(--(Receipts!$C$5:$C$1355=A38),--(Receipts!$D$5:$D$1355=$R$3),Receipts!$E$5:$E$1355)","v":0},{"$f":"SUMPRODUCT(--(Receipts!$C$5:$C$1355=A38),--(Receipts!$D$5:$D$1355=$S$3),Receipts!$E$5:$E$1355)","v":0},{"$f":"SUMPRODUCT(--(Receipts!$C$5:$C$1355=A38),--(Receipts!$D$5:$D$1355=$T$3),Receipts!$E$5:$E$1355)","v":0},{"$f":"SUMPRODUCT(--(Receipts!$C$5:$C$1355=A38),--(Receipts!$D$5:$D$1355=$U$3),Receipts!$E$5:$E$1355)","v":0},{"$f":"SUMPRODUCT(--(Receipts!$C$5:$C$1355=A38),--(Receipts!$D$5:$D$1355=$V$3),Receipts!$E$5:$E$1355)","v":0},{"$f":"SUMPRODUCT(--(Receipts!$C$5:$C$1355=A38),--(Receipts!$D$5:$D$1355=$W$3),Receipts!$E$5:$E$1355)","v":0},{"$f":"SUMPRODUCT(--(Receipts!$C$5:$C$1355=A38),--(Receipts!$D$5:$D$1355=$X$3),Receipts!$E$5:$E$1355)","v":0},{"$f":"SUMPRODUCT(--(Receipts!$C$5:$C$1355=A38),--(Receipts!$D$5:$D$1355=$Y$3),Receipts!$E$5:$E$1355)","v":0},{"$f":"SUMPRODUCT(--(Receipts!$C$5:$C$1355=A38),--(Receipts!$D$5:$D$1355=$Z$3),Receipts!$E$5:$E$1355)","v":0},{"$f":"SUMPRODUCT(--(Receipts!$C$5:$C$1355=A38),--(Receipts!$D$5:$D$1355=$AA$3),Receipts!$E$5:$E$1355)","v":0},{"$f":"SUMPRODUCT(--(Receipts!$C$5:$C$1355=A38),--(Receipts!$D$5:$D$1355=$AB$3),Receipts!$E$5:$E$1355)","v":0},{"$f":"SUMPRODUCT(--(Receipts!$C$5:$C$1355=A38),--(Receipts!$D$5:$D$1355=$AC$3),Receipts!$E$5:$E$1355)","v":0},{"$f":"SUMPRODUCT(--(Receipts!$C$5:$C$1355=A38),--(Receipts!$D$5:$D$1355=$AD$3),Receipts!$E$5:$E$1355)","v":0},null,0,0,0,0,null,null,null,null,"Gift Aid Recovered",null,0,0,0,0]
[{"$f":"Descriptions!B40","v":"Wedding and Funeral Collections - Gift Aided"},{"$f":"Descriptions!D40","v":"Collections at Services"},{"$f":"Descriptions!E40","v":"Tax efficient planned giving"},{"$f":"SUMPRODUCT(--(Receipts!$C$5:$C$1355=A39),--(Receipts!$D$5:$D$1355=$D$3),Receipts!$E$5:$E$1355)","v":0},{"$f":"SUMPRODUCT(--(Receipts!$C$5:$C$1355=A39),--(Receipts!$D$5:$D$1355=$E$3),Receipts!$E$5:$E$1355)","v":0},{"$f":"SUMPRODUCT(--(Receipts!$C$5:$C$1355=A39),--(Receipts!$D$5:$D$1355=$F$3),Receipts!$E$5:$E$1355)","v":0},{"$f":"SUMPRODUCT(--(Receipts!$C$5:$C$1355=A39),--(Receipts!$D$5:$D$1355=$G$3),Receipts!$E$5:$E$1355)","v":0},{"$f":"SUMPRODUCT(--(Receipts!$C$5:$C$1355=A39),--(Receipts!$D$5:$D$1355=$H$3),Receipts!$E$5:$E$1355)","v":0},{"$f":"SUMPRODUCT(--(Receipts!$C$5:$C$1355=A39),--(Receipts!$D$5:$D$1355=$I$3),Receipts!$E$5:$E$1355)","v":0},{"$f":"SUMPRODUCT(--(Receipts!$C$5:$C$1355=A39),--(Receipts!$D$5:$D$1355=$J$3),Receipts!$E$5:$E$1355)","v":0},{"$f":"SUMPRODUCT(--(Receipts!$C$5:$C$1355=A39),--(Receipts!$D$5:$D$1355=$K$3),Receipts!$E$5:$E$1355)","v":0},{"$f":"SUMPRODUCT(--(Receipts!$C$5:$C$1355=A39),--(Receipts!$D$5:$D$1355=$L$3),Receipts!$E$5:$E$1355)","v":0},{"$f":"SUMPRODUCT(--(Receipts!$C$5:$C$1355=A39),--(Receipts!$D$5:$D$1355=$M$3),Receipts!$E$5:$E$1355)","v":0},{"$f":"SUMPRODUCT(--(Receipts!$C$5:$C$1355=A39),--(Receipts!$D$5:$D$1355=$N$3),Receipts!$E$5:$E$1355)","v":0},{"$f":"SUMPRODUCT(--(Receipts!$C$5:$C$1355=A39),--(Receipts!$D$5:$D$1355=$O$3),Receipts!$E$5:$E$1355)","v":0},{"$f":"SUMPRODUCT(--(Receipts!$C$5:$C$1355=A39),--(Receipts!$D$5:$D$1355=$P$3),Receipts!$E$5:$E$1355)","v":0},{"$f":"SUMPRODUCT(--(Receipts!$C$5:$C$1355=A39),--(Receipts!$D$5:$D$1355=$Q$3),Receipts!$E$5:$E$1355)","v":0},{"$f":"SUMPRODUCT(--(Receipts!$C$5:$C$1355=A39),--(Receipts!$D$5:$D$1355=$R$3),Receipts!$E$5:$E$1355)","v":0},{"$f":"SUMPRODUCT(--(Receipts!$C$5:$C$1355=A39),--(Receipts!$D$5:$D$1355=$S$3),Receipts!$E$5:$E$1355)","v":0},{"$f":"SUMPRODUCT(--(Receipts!$C$5:$C$1355=A39),--(Receipts!$D$5:$D$1355=$T$3),Receipts!$E$5:$E$1355)","v":0},{"$f":"SUMPRODUCT(--(Receipts!$C$5:$C$1355=A39),--(Receipts!$D$5:$D$1355=$U$3),Receipts!$E$5:$E$1355)","v":0},{"$f":"SUMPRODUCT(--(Receipts!$C$5:$C$1355=A39),--(Receipts!$D$5:$D$1355=$V$3),Receipts!$E$5:$E$1355)","v":0},{"$f":"SUMPRODUCT(--(Receipts!$C$5:$C$1355=A39),--(Receipts!$D$5:$D$1355=$W$3),Receipts!$E$5:$E$1355)","v":0},{"$f":"SUMPRODUCT(--(Receipts!$C$5:$C$1355=A39),--(Receipts!$D$5:$D$1355=$X$3),Receipts!$E$5:$E$1355)","v":0},{"$f":"SUMPRODUCT(--(Receipts!$C$5:$C$1355=A39),--(Receipts!$D$5:$D$1355=$Y$3),Receipts!$E$5:$E$1355)","v":0},{"$f":"SUMPRODUCT(--(Receipts!$C$5:$C$1355=A39),--(Receipts!$D$5:$D$1355=$Z$3),Receipts!$E$5:$E$1355)","v":0},{"$f":"SUMPRODUCT(--(Receipts!$C$5:$C$1355=A39),--(Receipts!$D$5:$D$1355=$AA$3),Receipts!$E$5:$E$1355)","v":0},{"$f":"SUMPRODUCT(--(Receipts!$C$5:$C$1355=A39),--(Receipts!$D$5:$D$1355=$AB$3),Receipts!$E$5:$E$1355)","v":0},{"$f":"SUMPRODUCT(--(Receipts!$C$5:$C$1355=A39),--(Receipts!$D$5:$D$1355=$AC$3),Receipts!$E$5:$E$1355)","v":0},{"$f":"SUMPRODUCT(--(Receipts!$C$5:$C$1355=A39),--(Receipts!$D$5:$D$1355=$AD$3),Receipts!$E$5:$E$1355)","v":0},null,0,0,0,0,null,null,null,null,"Grant Income",null,0,0,0,0]
[{"$f":"Descriptions!B41","v":"Weekday Collections"},{"$f":"Descriptions!D41","v":"Collections at Services"},{"$f":"Descriptions!E41","v":"Collections at services"},{"$f":"SUMPRODUCT(--(Receipts!$C$5:$C$1355=A40),--(Receipts!$D$5:$D$1355=$D$3),Receipts!$E$5:$E$1355)","v":0},{"$f":"SUMPRODUCT(--(Receipts!$C$5:$C$1355=A40),--(Receipts!$D$5:$D$1355=$E$3),Receipts!$E$5:$E$1355)","v":0},{"$f":"SUMPRODUCT(--(Receipts!$C$5:$C$1355=A40),--(Receipts!$D$5:$D$1355=$F$3),Receipts!$E$5:$E$1355)","v":0},{"$f":"SUMPRODUCT(--(Receipts!$C$5:$C$1355=A40),--(Receipts!$D$5:$D$1355=$G$3),Receipts!$E$5:$E$1355)","v":0},{"$f":"SUMPRODUCT(--(Receipts!$C$5:$C$1355=A40),--(Receipts!$D$5:$D$1355=$H$3),Receipts!$E$5:$E$1355)","v":0},{"$f":"SUMPRODUCT(--(Receipts!$C$5:$C$1355=A40),--(Receipts!$D$5:$D$1355=$I$3),Receipts!$E$5:$E$1355)","v":0},{"$f":"SUMPRODUCT(--(Receipts!$C$5:$C$1355=A40),--(Receipts!$D$5:$D$1355=$J$3),Receipts!$E$5:$E$1355)","v":0},{"$f":"SUMPRODUCT(--(Receipts!$C$5:$C$1355=A40),--(Receipts!$D$5:$D$1355=$K$3),Receipts!$E$5:$E$1355)","v":0},{"$f":"SUMPRODUCT(--(Receipts!$C$5:$C$1355=A40),--(Receipts!$D$5:$D$1355=$L$3),Receipts!$E$5:$E$1355)","v":0},{"$f":"SUMPRODUCT(--(Receipts!$C$5:$C$1355=A40),--(Receipts!$D$5:$D$1355=$M$3),Receipts!$E$5:$E$1355)","v":0},{"$f":"SUMPRODUCT(--(Receipts!$C$5:$C$1355=A40),--(Receipts!$D$5:$D$1355=$N$3),Receipts!$E$5:$E$1355)","v":0},{"$f":"SUMPRODUCT(--(Receipts!$C$5:$C$1355=A40),--(Receipts!$D$5:$D$1355=$O$3),Receipts!$E$5:$E$1355)","v":0},{"$f":"SUMPRODUCT(--(Receipts!$C$5:$C$1355=A40),--(Receipts!$D$5:$D$1355=$P$3),Receipts!$E$5:$E$1355)","v":0},{"$f":"SUMPRODUCT(--(Receipts!$C$5:$C$1355=A40),--(Receipts!$D$5:$D$1355=$Q$3),Receipts!$E$5:$E$1355)","v":0},{"$f":"SUMPRODUCT(--(Receipts!$C$5:$C$1355=A40),--(Receipts!$D$5:$D$1355=$R$3),Receipts!$E$5:$E$1355)","v":0},{"$f":"SUMPRODUCT(--(Receipts!$C$5:$C$1355=A40),--(Receipts!$D$5:$D$1355=$S$3),Receipts!$E$5:$E$1355)","v":0},{"$f":"SUMPRODUCT(--(Receipts!$C$5:$C$1355=A40),--(Receipts!$D$5:$D$1355=$T$3),Receipts!$E$5:$E$1355)","v":0},{"$f":"SUMPRODUCT(--(Receipts!$C$5:$C$1355=A40),--(Receipts!$D$5:$D$1355=$U$3),Receipts!$E$5:$E$1355)","v":0},{"$f":"SUMPRODUCT(--(Receipts!$C$5:$C$1355=A40),--(Receipts!$D$5:$D$1355=$V$3),Receipts!$E$5:$E$1355)","v":0},{"$f":"SUMPRODUCT(--(Receipts!$C$5:$C$1355=A40),--(Receipts!$D$5:$D$1355=$W$3),Receipts!$E$5:$E$1355)","v":0},{"$f":"SUMPRODUCT(--(Receipts!$C$5:$C$1355=A40),--(Receipts!$D$5:$D$1355=$X$3),Receipts!$E$5:$E$1355)","v":0},{"$f":"SUMPRODUCT(--(Receipts!$C$5:$C$1355=A40),--(Receipts!$D$5:$D$1355=$Y$3),Receipts!$E$5:$E$1355)","v":0},{"$f":"SUMPRODUCT(--(Receipts!$C$5:$C$1355=A40),--(Receipts!$D$5:$D$1355=$Z$3),Receipts!$E$5:$E$1355)","v":0},{"$f":"SUMPRODUCT(--(Receipts!$C$5:$C$1355=A40),--(Receipts!$D$5:$D$1355=$AA$3),Receipts!$E$5:$E$1355)","v":0},{"$f":"SUMPRODUCT(--(Receipts!$C$5:$C$1355=A40),--(Receipts!$D$5:$D$1355=$AB$3),Receipts!$E$5:$E$1355)","v":0},{"$f":"SUMPRODUCT(--(Receipts!$C$5:$C$1355=A40),--(Receipts!$D$5:$D$1355=$AC$3),Receipts!$E$5:$E$1355)","v":0},{"$f":"SUMPRODUCT(--(Receipts!$C$5:$C$1355=A40),--(Receipts!$D$5:$D$1355=$AD$3),Receipts!$E$5:$E$1355)","v":0},null,0,0,0,0,null,null,null,null,"Collections at Services",null,0,0,0,0]
[{"$f":"Descriptions!B42","v":"Weekday Collections - Gift Aided"},{"$f":"Descriptions!D42","v":"Collections at Services"},{"$f":"Descriptions!E42","v":"Tax efficient planned giving"},{"$f":"SUMPRODUCT(--(Receipts!$C$5:$C$1355=A41),--(Receipts!$D$5:$D$1355=$D$3),Receipts!$E$5:$E$1355)","v":0},{"$f":"SUMPRODUCT(--(Receipts!$C$5:$C$1355=A41),--(Receipts!$D$5:$D$1355=$E$3),Receipts!$E$5:$E$1355)","v":0},{"$f":"SUMPRODUCT(--(Receipts!$C$5:$C$1355=A41),--(Receipts!$D$5:$D$1355=$F$3),Receipts!$E$5:$E$1355)","v":0},{"$f":"SUMPRODUCT(--(Receipts!$C$5:$C$1355=A41),--(Receipts!$D$5:$D$1355=$G$3),Receipts!$E$5:$E$1355)","v":0},{"$f":"SUMPRODUCT(--(Receipts!$C$5:$C$1355=A41),--(Receipts!$D$5:$D$1355=$H$3),Receipts!$E$5:$E$1355)","v":0},{"$f":"SUMPRODUCT(--(Receipts!$C$5:$C$1355=A41),--(Receipts!$D$5:$D$1355=$I$3),Receipts!$E$5:$E$1355)","v":0},{"$f":"SUMPRODUCT(--(Receipts!$C$5:$C$1355=A41),--(Receipts!$D$5:$D$1355=$J$3),Receipts!$E$5:$E$1355)","v":0},{"$f":"SUMPRODUCT(--(Receipts!$C$5:$C$1355=A41),--(Receipts!$D$5:$D$1355=$K$3),Receipts!$E$5:$E$1355)","v":0},{"$f":"SUMPRODUCT(--(Receipts!$C$5:$C$1355=A41),--(Receipts!$D$5:$D$1355=$L$3),Receipts!$E$5:$E$1355)","v":0},{"$f":"SUMPRODUCT(--(Receipts!$C$5:$C$1355=A41),--(Receipts!$D$5:$D$1355=$M$3),Receipts!$E$5:$E$1355)","v":0},{"$f":"SUMPRODUCT(--(Receipts!$C$5:$C$1355=A41),--(Receipts!$D$5:$D$1355=$N$3),Receipts!$E$5:$E$1355)","v":0},{"$f":"SUMPRODUCT(--(Receipts!$C$5:$C$1355=A41),--(Receipts!$D$5:$D$1355=$O$3),Receipts!$E$5:$E$1355)","v":0},{"$f":"SUMPRODUCT(--(Receipts!$C$5:$C$1355=A41),--(Receipts!$D$5:$D$1355=$P$3),Receipts!$E$5:$E$1355)","v":0},{"$f":"SUMPRODUCT(--(Receipts!$C$5:$C$1355=A41),--(Receipts!$D$5:$D$1355=$Q$3),Receipts!$E$5:$E$1355)","v":0},{"$f":"SUMPRODUCT(--(Receipts!$C$5:$C$1355=A41),--(Receipts!$D$5:$D$1355=$R$3),Receipts!$E$5:$E$1355)","v":0},{"$f":"SUMPRODUCT(--(Receipts!$C$5:$C$1355=A41),--(Receipts!$D$5:$D$1355=$S$3),Receipts!$E$5:$E$1355)","v":0},{"$f":"SUMPRODUCT(--(Receipts!$C$5:$C$1355=A41),--(Receipts!$D$5:$D$1355=$T$3),Receipts!$E$5:$E$1355)","v":0},{"$f":"SUMPRODUCT(--(Receipts!$C$5:$C$1355=A41),--(Receipts!$D$5:$D$1355=$U$3),Receipts!$E$5:$E$1355)","v":0},{"$f":"SUMPRODUCT(--(Receipts!$C$5:$C$1355=A41),--(Receipts!$D$5:$D$1355=$V$3),Receipts!$E$5:$E$1355)","v":0},{"$f":"SUMPRODUCT(--(Receipts!$C$5:$C$1355=A41),--(Receipts!$D$5:$D$1355=$W$3),Receipts!$E$5:$E$1355)","v":0},{"$f":"SUMPRODUCT(--(Receipts!$C$5:$C$1355=A41),--(Receipts!$D$5:$D$1355=$X$3),Receipts!$E$5:$E$1355)","v":0},{"$f":"SUMPRODUCT(--(Receipts!$C$5:$C$1355=A41),--(Receipts!$D$5:$D$1355=$Y$3),Receipts!$E$5:$E$1355)","v":0},{"$f":"SUMPRODUCT(--(Receipts!$C$5:$C$1355=A41),--(Receipts!$D$5:$D$1355=$Z$3),Receipts!$E$5:$E$1355)","v":0},{"$f":"SUMPRODUCT(--(Receipts!$C$5:$C$1355=A41),--(Receipts!$D$5:$D$1355=$AA$3),Receipts!$E$5:$E$1355)","v":0},{"$f":"SUMPRODUCT(--(Receipts!$C$5:$C$1355=A41),--(Receipts!$D$5:$D$1355=$AB$3),Receipts!$E$5:$E$1355)","v":0},{"$f":"SUMPRODUCT(--(Receipts!$C$5:$C$1355=A41),--(Receipts!$D$5:$D$1355=$AC$3),Receipts!$E$5:$E$1355)","v":0},{"$f":"SUMPRODUCT(--(Receipts!$C$5:$C$1355=A41),--(Receipts!$D$5:$D$1355=$AD$3),Receipts!$E$5:$E$1355)","v":0},null,0,0,0,0,null,null,null,null,"Legacies Received",null,0,0,0,0]
[{"$f":"Descriptions!B43","v":0},{"$f":"Descriptions!D43","v":"All other giving/voluntary receipts"},{"$f":"Descriptions!E43","v":0},{"$f":"SUMPRODUCT(--(Receipts!$C$5:$C$1355=A42),--(Receipts!$D$5:$D$1355=$D$3),Receipts!$E$5:$E$1355)","v":0},{"$f":"SUMPRODUCT(--(Receipts!$C$5:$C$1355=A42),--(Receipts!$D$5:$D$1355=$E$3),Receipts!$E$5:$E$1355)","v":0},{"$f":"SUMPRODUCT(--(Receipts!$C$5:$C$1355=A42),--(Receipts!$D$5:$D$1355=$F$3),Receipts!$E$5:$E$1355)","v":0},{"$f":"SUMPRODUCT(--(Receipts!$C$5:$C$1355=A42),--(Receipts!$D$5:$D$1355=$G$3),Receipts!$E$5:$E$1355)","v":0},{"$f":"SUMPRODUCT(--(Receipts!$C$5:$C$1355=A42),--(Receipts!$D$5:$D$1355=$H$3),Receipts!$E$5:$E$1355)","v":0},{"$f":"SUMPRODUCT(--(Receipts!$C$5:$C$1355=A42),--(Receipts!$D$5:$D$1355=$I$3),Receipts!$E$5:$E$1355)","v":0},{"$f":"SUMPRODUCT(--(Receipts!$C$5:$C$1355=A42),--(Receipts!$D$5:$D$1355=$J$3),Receipts!$E$5:$E$1355)","v":0},{"$f":"SUMPRODUCT(--(Receipts!$C$5:$C$1355=A42),--(Receipts!$D$5:$D$1355=$K$3),Receipts!$E$5:$E$1355)","v":0},{"$f":"SUMPRODUCT(--(Receipts!$C$5:$C$1355=A42),--(Receipts!$D$5:$D$1355=$L$3),Receipts!$E$5:$E$1355)","v":0},{"$f":"SUMPRODUCT(--(Receipts!$C$5:$C$1355=A42),--(Receipts!$D$5:$D$1355=$M$3),Receipts!$E$5:$E$1355)","v":0},{"$f":"SUMPRODUCT(--(Receipts!$C$5:$C$1355=A42),--(Receipts!$D$5:$D$1355=$N$3),Receipts!$E$5:$E$1355)","v":0},{"$f":"SUMPRODUCT(--(Receipts!$C$5:$C$1355=A42),--(Receipts!$D$5:$D$1355=$O$3),Receipts!$E$5:$E$1355)","v":0},{"$f":"SUMPRODUCT(--(Receipts!$C$5:$C$1355=A42),--(Receipts!$D$5:$D$1355=$P$3),Receipts!$E$5:$E$1355)","v":0},{"$f":"SUMPRODUCT(--(Receipts!$C$5:$C$1355=A42),--(Receipts!$D$5:$D$1355=$Q$3),Receipts!$E$5:$E$1355)","v":0},{"$f":"SUMPRODUCT(--(Receipts!$C$5:$C$1355=A42),--(Receipts!$D$5:$D$1355=$R$3),Receipts!$E$5:$E$1355)","v":0},{"$f":"SUMPRODUCT(--(Receipts!$C$5:$C$1355=A42),--(Receipts!$D$5:$D$1355=$S$3),Receipts!$E$5:$E$1355)","v":0},{"$f":"SUMPRODUCT(--(Receipts!$C$5:$C$1355=A42),--(Receipts!$D$5:$D$1355=$T$3),Receipts!$E$5:$E$1355)","v":0},{"$f":"SUMPRODUCT(--(Receipts!$C$5:$C$1355=A42),--(Receipts!$D$5:$D$1355=$U$3),Receipts!$E$5:$E$1355)","v":0},{"$f":"SUMPRODUCT(--(Receipts!$C$5:$C$1355=A42),--(Receipts!$D$5:$D$1355=$V$3),Receipts!$E$5:$E$1355)","v":0},{"$f":"SUMPRODUCT(--(Receipts!$C$5:$C$1355=A42),--(Receipts!$D$5:$D$1355=$W$3),Receipts!$E$5:$E$1355)","v":0},{"$f":"SUMPRODUCT(--(Receipts!$C$5:$C$1355=A42),--(Receipts!$D$5:$D$1355=$X$3),Receipts!$E$5:$E$1355)","v":0},{"$f":"SUMPRODUCT(--(Receipts!$C$5:$C$1355=A42),--(Receipts!$D$5:$D$1355=$Y$3),Receipts!$E$5:$E$1355)","v":0},{"$f":"SUMPRODUCT(--(Receipts!$C$5:$C$1355=A42),--(Receipts!$D$5:$D$1355=$Z$3),Receipts!$E$5:$E$1355)","v":0},{"$f":"SUMPRODUCT(--(Receipts!$C$5:$C$1355=A42),--(Receipts!$D$5:$D$1355=$AA$3),Receipts!$E$5:$E$1355)","v":0},{"$f":"SUMPRODUCT(--(Receipts!$C$5:$C$1355=A42),--(Receipts!$D$5:$D$1355=$AB$3),Receipts!$E$5:$E$1355)","v":0},{"$f":"SUMPRODUCT(--(Receipts!$C$5:$C$1355=A42),--(Receipts!$D$5:$D$1355=$AC$3),Receipts!$E$5:$E$1355)","v":0},{"$f":"SUMPRODUCT(--(Receipts!$C$5:$C$1355=A42),--(Receipts!$D$5:$D$1355=$AD$3),Receipts!$E$5:$E$1355)","v":0},null,0,0,0,0,null,null,null,null,"Other Income",null,0,0,0,0]
[{"$f":"Descriptions!B44","v":0},{"$f":"Descriptions!D44","v":"All other giving/voluntary receipts"},{"$f":"Descriptions!E44","v":0},{"$f":"SUMPRODUCT(--(Receipts!$C$5:$C$1355=A43),--(Receipts!$D$5:$D$1355=$D$3),Receipts!$E$5:$E$1355)","v":0},{"$f":"SUMPRODUCT(--(Receipts!$C$5:$C$1355=A43),--(Receipts!$D$5:$D$1355=$E$3),Receipts!$E$5:$E$1355)","v":0},{"$f":"SUMPRODUCT(--(Receipts!$C$5:$C$1355=A43),--(Receipts!$D$5:$D$1355=$F$3),Receipts!$E$5:$E$1355)","v":0},{"$f":"SUMPRODUCT(--(Receipts!$C$5:$C$1355=A43),--(Receipts!$D$5:$D$1355=$G$3),Receipts!$E$5:$E$1355)","v":0},{"$f":"SUMPRODUCT(--(Receipts!$C$5:$C$1355=A43),--(Receipts!$D$5:$D$1355=$H$3),Receipts!$E$5:$E$1355)","v":0},{"$f":"SUMPRODUCT(--(Receipts!$C$5:$C$1355=A43),--(Receipts!$D$5:$D$1355=$I$3),Receipts!$E$5:$E$1355)","v":0},{"$f":"SUMPRODUCT(--(Receipts!$C$5:$C$1355=A43),--(Receipts!$D$5:$D$1355=$J$3),Receipts!$E$5:$E$1355)","v":0},{"$f":"SUMPRODUCT(--(Receipts!$C$5:$C$1355=A43),--(Receipts!$D$5:$D$1355=$K$3),Receipts!$E$5:$E$1355)","v":0},{"$f":"SUMPRODUCT(--(Receipts!$C$5:$C$1355=A43),--(Receipts!$D$5:$D$1355=$L$3),Receipts!$E$5:$E$1355)","v":0},{"$f":"SUMPRODUCT(--(Receipts!$C$5:$C$1355=A43),--(Receipts!$D$5:$D$1355=$M$3),Receipts!$E$5:$E$1355)","v":0},{"$f":"SUMPRODUCT(--(Receipts!$C$5:$C$1355=A43),--(Receipts!$D$5:$D$1355=$N$3),Receipts!$E$5:$E$1355)","v":0},{"$f":"SUMPRODUCT(--(Receipts!$C$5:$C$1355=A43),--(Receipts!$D$5:$D$1355=$O$3),Receipts!$E$5:$E$1355)","v":0},{"$f":"SUMPRODUCT(--(Receipts!$C$5:$C$1355=A43),--(Receipts!$D$5:$D$1355=$P$3),Receipts!$E$5:$E$1355)","v":0},{"$f":"SUMPRODUCT(--(Receipts!$C$5:$C$1355=A43),--(Receipts!$D$5:$D$1355=$Q$3),Receipts!$E$5:$E$1355)","v":0},{"$f":"SUMPRODUCT(--(Receipts!$C$5:$C$1355=A43),--(Receipts!$D$5:$D$1355=$R$3),Receipts!$E$5:$E$1355)","v":0},{"$f":"SUMPRODUCT(--(Receipts!$C$5:$C$1355=A43),--(Receipts!$D$5:$D$1355=$S$3),Receipts!$E$5:$E$1355)","v":0},{"$f":"SUMPRODUCT(--(Receipts!$C$5:$C$1355=A43),--(Receipts!$D$5:$D$1355=$T$3),Receipts!$E$5:$E$1355)","v":0},{"$f":"SUMPRODUCT(--(Receipts!$C$5:$C$1355=A43),--(Receipts!$D$5:$D$1355=$U$3),Receipts!$E$5:$E$1355)","v":0},{"$f":"SUMPRODUCT(--(Receipts!$C$5:$C$1355=A43),--(Receipts!$D$5:$D$1355=$V$3),Receipts!$E$5:$E$1355)","v":0},{"$f":"SUMPRODUCT(--(Receipts!$C$5:$C$1355=A43),--(Receipts!$D$5:$D$1355=$W$3),Receipts!$E$5:$E$1355)","v":0},{"$f":"SUMPRODUCT(--(Receipts!$C$5:$C$1355=A43),--(Receipts!$D$5:$D$1355=$X$3),Receipts!$E$5:$E$1355)","v":0},{"$f":"SUMPRODUCT(--(Receipts!$C$5:$C$1355=A43),--(Receipts!$D$5:$D$1355=$Y$3),Receipts!$E$5:$E$1355)","v":0},{"$f":"SUMPRODUCT(--(Receipts!$C$5:$C$1355=A43),--(Receipts!$D$5:$D$1355=$Z$3),Receipts!$E$5:$E$1355)","v":0},{"$f":"SUMPRODUCT(--(Receipts!$C$5:$C$1355=A43),--(Receipts!$D$5:$D$1355=$AA$3),Receipts!$E$5:$E$1355)","v":0},{"$f":"SUMPRODUCT(--(Receipts!$C$5:$C$1355=A43),--(Receipts!$D$5:$D$1355=$AB$3),Receipts!$E$5:$E$1355)","v":0},{"$f":"SUMPRODUCT(--(Receipts!$C$5:$C$1355=A43),--(Receipts!$D$5:$D$1355=$AC$3),Receipts!$E$5:$E$1355)","v":0},{"$f":"SUMPRODUCT(--(Receipts!$C$5:$C$1355=A43),--(Receipts!$D$5:$D$1355=$AD$3),Receipts!$E$5:$E$1355)","v":0},null,0,0,0,0,null,null,null,null,"Planned Giving",null,0,0,0,0]
[{"$f":"Descriptions!B45","v":0},{"$f":"Descriptions!D45","v":"All other giving/voluntary receipts"},{"$f":"Descriptions!E45","v":0},{"$f":"SUMPRODUCT(--(Receipts!$C$5:$C$1355=A44),--(Receipts!$D$5:$D$1355=$D$3),Receipts!$E$5:$E$1355)","v":0},{"$f":"SUMPRODUCT(--(Receipts!$C$5:$C$1355=A44),--(Receipts!$D$5:$D$1355=$E$3),Receipts!$E$5:$E$1355)","v":0},{"$f":"SUMPRODUCT(--(Receipts!$C$5:$C$1355=A44),--(Receipts!$D$5:$D$1355=$F$3),Receipts!$E$5:$E$1355)","v":0},{"$f":"SUMPRODUCT(--(Receipts!$C$5:$C$1355=A44),--(Receipts!$D$5:$D$1355=$G$3),Receipts!$E$5:$E$1355)","v":0},{"$f":"SUMPRODUCT(--(Receipts!$C$5:$C$1355=A44),--(Receipts!$D$5:$D$1355=$H$3),Receipts!$E$5:$E$1355)","v":0},{"$f":"SUMPRODUCT(--(Receipts!$C$5:$C$1355=A44),--(Receipts!$D$5:$D$1355=$I$3),Receipts!$E$5:$E$1355)","v":0},{"$f":"SUMPRODUCT(--(Receipts!$C$5:$C$1355=A44),--(Receipts!$D$5:$D$1355=$J$3),Receipts!$E$5:$E$1355)","v":0},{"$f":"SUMPRODUCT(--(Receipts!$C$5:$C$1355=A44),--(Receipts!$D$5:$D$1355=$K$3),Receipts!$E$5:$E$1355)","v":0},{"$f":"SUMPRODUCT(--(Receipts!$C$5:$C$1355=A44),--(Receipts!$D$5:$D$1355=$L$3),Receipts!$E$5:$E$1355)","v":0},{"$f":"SUMPRODUCT(--(Receipts!$C$5:$C$1355=A44),--(Receipts!$D$5:$D$1355=$M$3),Receipts!$E$5:$E$1355)","v":0},{"$f":"SUMPRODUCT(--(Receipts!$C$5:$C$1355=A44),--(Receipts!$D$5:$D$1355=$N$3),Receipts!$E$5:$E$1355)","v":0},{"$f":"SUMPRODUCT(--(Receipts!$C$5:$C$1355=A44),--(Receipts!$D$5:$D$1355=$O$3),Receipts!$E$5:$E$1355)","v":0},{"$f":"SUMPRODUCT(--(Receipts!$C$5:$C$1355=A44),--(Receipts!$D$5:$D$1355=$P$3),Receipts!$E$5:$E$1355)","v":0},{"$f":"SUMPRODUCT(--(Receipts!$C$5:$C$1355=A44),--(Receipts!$D$5:$D$1355=$Q$3),Receipts!$E$5:$E$1355)","v":0},{"$f":"SUMPRODUCT(--(Receipts!$C$5:$C$1355=A44),--(Receipts!$D$5:$D$1355=$R$3),Receipts!$E$5:$E$1355)","v":0},{"$f":"SUMPRODUCT(--(Receipts!$C$5:$C$1355=A44),--(Receipts!$D$5:$D$1355=$S$3),Receipts!$E$5:$E$1355)","v":0},{"$f":"SUMPRODUCT(--(Receipts!$C$5:$C$1355=A44),--(Receipts!$D$5:$D$1355=$T$3),Receipts!$E$5:$E$1355)","v":0},{"$f":"SUMPRODUCT(--(Receipts!$C$5:$C$1355=A44),--(Receipts!$D$5:$D$1355=$U$3),Receipts!$E$5:$E$1355)","v":0},{"$f":"SUMPRODUCT(--(Receipts!$C$5:$C$1355=A44),--(Receipts!$D$5:$D$1355=$V$3),Receipts!$E$5:$E$1355)","v":0},{"$f":"SUMPRODUCT(--(Receipts!$C$5:$C$1355=A44),--(Receipts!$D$5:$D$1355=$W$3),Receipts!$E$5:$E$1355)","v":0},{"$f":"SUMPRODUCT(--(Receipts!$C$5:$C$1355=A44),--(Receipts!$D$5:$D$1355=$X$3),Receipts!$E$5:$E$1355)","v":0},{"$f":"SUMPRODUCT(--(Receipts!$C$5:$C$1355=A44),--(Receipts!$D$5:$D$1355=$Y$3),Receipts!$E$5:$E$1355)","v":0},{"$f":"SUMPRODUCT(--(Receipts!$C$5:$C$1355=A44),--(Receipts!$D$5:$D$1355=$Z$3),Receipts!$E$5:$E$1355)","v":0},{"$f":"SUMPRODUCT(--(Receipts!$C$5:$C$1355=A44),--(Receipts!$D$5:$D$1355=$AA$3),Receipts!$E$5:$E$1355)","v":0},{"$f":"SUMPRODUCT(--(Receipts!$C$5:$C$1355=A44),--(Receipts!$D$5:$D$1355=$AB$3),Receipts!$E$5:$E$1355)","v":0},{"$f":"SUMPRODUCT(--(Receipts!$C$5:$C$1355=A44),--(Receipts!$D$5:$D$1355=$AC$3),Receipts!$E$5:$E$1355)","v":0},{"$f":"SUMPRODUCT(--(Receipts!$C$5:$C$1355=A44),--(Receipts!$D$5:$D$1355=$AD$3),Receipts!$E$5:$E$1355)","v":0},null,0,0,0,0]
[{"$f":"Descriptions!B46","v":0},{"$f":"Descriptions!D46","v":"All other giving/voluntary receipts"},{"$f":"Descriptions!E46","v":0},{"$f":"SUMPRODUCT(--(Receipts!$C$5:$C$1355=A45),--(Receipts!$D$5:$D$1355=$D$3),Receipts!$E$5:$E$1355)","v":0},{"$f":"SUMPRODUCT(--(Receipts!$C$5:$C$1355=A45),--(Receipts!$D$5:$D$1355=$E$3),Receipts!$E$5:$E$1355)","v":0},{"$f":"SUMPRODUCT(--(Receipts!$C$5:$C$1355=A45),--(Receipts!$D$5:$D$1355=$F$3),Receipts!$E$5:$E$1355)","v":0},{"$f":"SUMPRODUCT(--(Receipts!$C$5:$C$1355=A45),--(Receipts!$D$5:$D$1355=$G$3),Receipts!$E$5:$E$1355)","v":0},{"$f":"SUMPRODUCT(--(Receipts!$C$5:$C$1355=A45),--(Receipts!$D$5:$D$1355=$H$3),Receipts!$E$5:$E$1355)","v":0},{"$f":"SUMPRODUCT(--(Receipts!$C$5:$C$1355=A45),--(Receipts!$D$5:$D$1355=$I$3),Receipts!$E$5:$E$1355)","v":0},{"$f":"SUMPRODUCT(--(Receipts!$C$5:$C$1355=A45),--(Receipts!$D$5:$D$1355=$J$3),Receipts!$E$5:$E$1355)","v":0},{"$f":"SUMPRODUCT(--(Receipts!$C$5:$C$1355=A45),--(Receipts!$D$5:$D$1355=$K$3),Receipts!$E$5:$E$1355)","v":0},{"$f":"SUMPRODUCT(--(Receipts!$C$5:$C$1355=A45),--(Receipts!$D$5:$D$1355=$L$3),Receipts!$E$5:$E$1355)","v":0},{"$f":"SUMPRODUCT(--(Receipts!$C$5:$C$1355=A45),--(Receipts!$D$5:$D$1355=$M$3),Receipts!$E$5:$E$1355)","v":0},{"$f":"SUMPRODUCT(--(Receipts!$C$5:$C$1355=A45),--(Receipts!$D$5:$D$1355=$N$3),Receipts!$E$5:$E$1355)","v":0},{"$f":"SUMPRODUCT(--(Receipts!$C$5:$C$1355=A45),--(Receipts!$D$5:$D$1355=$O$3),Receipts!$E$5:$E$1355)","v":0},{"$f":"SUMPRODUCT(--(Receipts!$C$5:$C$1355=A45),--(Receipts!$D$5:$D$1355=$P$3),Receipts!$E$5:$E$1355)","v":0},{"$f":"SUMPRODUCT(--(Receipts!$C$5:$C$1355=A45),--(Receipts!$D$5:$D$1355=$Q$3),Receipts!$E$5:$E$1355)","v":0},{"$f":"SUMPRODUCT(--(Receipts!$C$5:$C$1355=A45),--(Receipts!$D$5:$D$1355=$R$3),Receipts!$E$5:$E$1355)","v":0},{"$f":"SUMPRODUCT(--(Receipts!$C$5:$C$1355=A45),--(Receipts!$D$5:$D$1355=$S$3),Receipts!$E$5:$E$1355)","v":0},{"$f":"SUMPRODUCT(--(Receipts!$C$5:$C$1355=A45),--(Receipts!$D$5:$D$1355=$T$3),Receipts!$E$5:$E$1355)","v":0},{"$f":"SUMPRODUCT(--(Receipts!$C$5:$C$1355=A45),--(Receipts!$D$5:$D$1355=$U$3),Receipts!$E$5:$E$1355)","v":0},{"$f":"SUMPRODUCT(--(Receipts!$C$5:$C$1355=A45),--(Receipts!$D$5:$D$1355=$V$3),Receipts!$E$5:$E$1355)","v":0},{"$f":"SUMPRODUCT(--(Receipts!$C$5:$C$1355=A45),--(Receipts!$D$5:$D$1355=$W$3),Receipts!$E$5:$E$1355)","v":0},{"$f":"SUMPRODUCT(--(Receipts!$C$5:$C$1355=A45),--(Receipts!$D$5:$D$1355=$X$3),Receipts!$E$5:$E$1355)","v":0},{"$f":"SUMPRODUCT(--(Receipts!$C$5:$C$1355=A45),--(Receipts!$D$5:$D$1355=$Y$3),Receipts!$E$5:$E$1355)","v":0},{"$f":"SUMPRODUCT(--(Receipts!$C$5:$C$1355=A45),--(Receipts!$D$5:$D$1355=$Z$3),Receipts!$E$5:$E$1355)","v":0},{"$f":"SUMPRODUCT(--(Receipts!$C$5:$C$1355=A45),--(Receipts!$D$5:$D$1355=$AA$3),Receipts!$E$5:$E$1355)","v":0},{"$f":"SUMPRODUCT(--(Receipts!$C$5:$C$1355=A45),--(Receipts!$D$5:$D$1355=$AB$3),Receipts!$E$5:$E$1355)","v":0},{"$f":"SUMPRODUCT(--(Receipts!$C$5:$C$1355=A45),--(Receipts!$D$5:$D$1355=$AC$3),Receipts!$E$5:$E$1355)","v":0},{"$f":"SUMPRODUCT(--(Receipts!$C$5:$C$1355=A45),--(Receipts!$D$5:$D$1355=$AD$3),Receipts!$E$5:$E$1355)","v":0},null,0,0,0,0]
[{"$f":"Descriptions!B47","v":0},{"$f":"Descriptions!D47","v":"All other giving/voluntary receipts"},{"$f":"Descriptions!E47","v":0},{"$f":"SUMPRODUCT(--(Receipts!$C$5:$C$1355=A46),--(Receipts!$D$5:$D$1355=$D$3),Receipts!$E$5:$E$1355)","v":0},{"$f":"SUMPRODUCT(--(Receipts!$C$5:$C$1355=A46),--(Receipts!$D$5:$D$1355=$E$3),Receipts!$E$5:$E$1355)","v":0},{"$f":"SUMPRODUCT(--(Receipts!$C$5:$C$1355=A46),--(Receipts!$D$5:$D$1355=$F$3),Receipts!$E$5:$E$1355)","v":0},{"$f":"SUMPRODUCT(--(Receipts!$C$5:$C$1355=A46),--(Receipts!$D$5:$D$1355=$G$3),Receipts!$E$5:$E$1355)","v":0},{"$f":"SUMPRODUCT(--(Receipts!$C$5:$C$1355=A46),--(Receipts!$D$5:$D$1355=$H$3),Receipts!$E$5:$E$1355)","v":0},{"$f":"SUMPRODUCT(--(Receipts!$C$5:$C$1355=A46),--(Receipts!$D$5:$D$1355=$I$3),Receipts!$E$5:$E$1355)","v":0},{"$f":"SUMPRODUCT(--(Receipts!$C$5:$C$1355=A46),--(Receipts!$D$5:$D$1355=$J$3),Receipts!$E$5:$E$1355)","v":0},{"$f":"SUMPRODUCT(--(Receipts!$C$5:$C$1355=A46),--(Receipts!$D$5:$D$1355=$K$3),Receipts!$E$5:$E$1355)","v":0},{"$f":"SUMPRODUCT(--(Receipts!$C$5:$C$1355=A46),--(Receipts!$D$5:$D$1355=$L$3),Receipts!$E$5:$E$1355)","v":0},{"$f":"SUMPRODUCT(--(Receipts!$C$5:$C$1355=A46),--(Receipts!$D$5:$D$1355=$M$3),Receipts!$E$5:$E$1355)","v":0},{"$f":"SUMPRODUCT(--(Receipts!$C$5:$C$1355=A46),--(Receipts!$D$5:$D$1355=$N$3),Receipts!$E$5:$E$1355)","v":0},{"$f":"SUMPRODUCT(--(Receipts!$C$5:$C$1355=A46),--(Receipts!$D$5:$D$1355=$O$3),Receipts!$E$5:$E$1355)","v":0},{"$f":"SUMPRODUCT(--(Receipts!$C$5:$C$1355=A46),--(Receipts!$D$5:$D$1355=$P$3),Receipts!$E$5:$E$1355)","v":0},{"$f":"SUMPRODUCT(--(Receipts!$C$5:$C$1355=A46),--(Receipts!$D$5:$D$1355=$Q$3),Receipts!$E$5:$E$1355)","v":0},{"$f":"SUMPRODUCT(--(Receipts!$C$5:$C$1355=A46),--(Receipts!$D$5:$D$1355=$R$3),Receipts!$E$5:$E$1355)","v":0},{"$f":"SUMPRODUCT(--(Receipts!$C$5:$C$1355=A46),--(Receipts!$D$5:$D$1355=$S$3),Receipts!$E$5:$E$1355)","v":0},{"$f":"SUMPRODUCT(--(Receipts!$C$5:$C$1355=A46),--(Receipts!$D$5:$D$1355=$T$3),Receipts!$E$5:$E$1355)","v":0},{"$f":"SUMPRODUCT(--(Receipts!$C$5:$C$1355=A46),--(Receipts!$D$5:$D$1355=$U$3),Receipts!$E$5:$E$1355)","v":0},{"$f":"SUMPRODUCT(--(Receipts!$C$5:$C$1355=A46),--(Receipts!$D$5:$D$1355=$V$3),Receipts!$E$5:$E$1355)","v":0},{"$f":"SUMPRODUCT(--(Receipts!$C$5:$C$1355=A46),--(Receipts!$D$5:$D$1355=$W$3),Receipts!$E$5:$E$1355)","v":0},{"$f":"SUMPRODUCT(--(Receipts!$C$5:$C$1355=A46),--(Receipts!$D$5:$D$1355=$X$3),Receipts!$E$5:$E$1355)","v":0},{"$f":"SUMPRODUCT(--(Receipts!$C$5:$C$1355=A46),--(Receipts!$D$5:$D$1355=$Y$3),Receipts!$E$5:$E$1355)","v":0},{"$f":"SUMPRODUCT(--(Receipts!$C$5:$C$1355=A46),--(Receipts!$D$5:$D$1355=$Z$3),Receipts!$E$5:$E$1355)","v":0},{"$f":"SUMPRODUCT(--(Receipts!$C$5:$C$1355=A46),--(Receipts!$D$5:$D$1355=$AA$3),Receipts!$E$5:$E$1355)","v":0},{"$f":"SUMPRODUCT(--(Receipts!$C$5:$C$1355=A46),--(Receipts!$D$5:$D$1355=$AB$3),Receipts!$E$5:$E$1355)","v":0},{"$f":"SUMPRODUCT(--(Receipts!$C$5:$C$1355=A46),--(Receipts!$D$5:$D$1355=$AC$3),Receipts!$E$5:$E$1355)","v":0},{"$f":"SUMPRODUCT(--(Receipts!$C$5:$C$1355=A46),--(Receipts!$D$5:$D$1355=$AD$3),Receipts!$E$5:$E$1355)","v":0},null,0,0,0,0]
[{"$f":"Descriptions!B48","v":0},{"$f":"Descriptions!D48","v":"All other giving/voluntary receipts"},{"$f":"Descriptions!E48","v":0},{"$f":"SUMPRODUCT(--(Receipts!$C$5:$C$1355=A47),--(Receipts!$D$5:$D$1355=$D$3),Receipts!$E$5:$E$1355)","v":0},{"$f":"SUMPRODUCT(--(Receipts!$C$5:$C$1355=A47),--(Receipts!$D$5:$D$1355=$E$3),Receipts!$E$5:$E$1355)","v":0},{"$f":"SUMPRODUCT(--(Receipts!$C$5:$C$1355=A47),--(Receipts!$D$5:$D$1355=$F$3),Receipts!$E$5:$E$1355)","v":0},{"$f":"SUMPRODUCT(--(Receipts!$C$5:$C$1355=A47),--(Receipts!$D$5:$D$1355=$G$3),Receipts!$E$5:$E$1355)","v":0},{"$f":"SUMPRODUCT(--(Receipts!$C$5:$C$1355=A47),--(Receipts!$D$5:$D$1355=$H$3),Receipts!$E$5:$E$1355)","v":0},{"$f":"SUMPRODUCT(--(Receipts!$C$5:$C$1355=A47),--(Receipts!$D$5:$D$1355=$I$3),Receipts!$E$5:$E$1355)","v":0},{"$f":"SUMPRODUCT(--(Receipts!$C$5:$C$1355=A47),--(Receipts!$D$5:$D$1355=$J$3),Receipts!$E$5:$E$1355)","v":0},{"$f":"SUMPRODUCT(--(Receipts!$C$5:$C$1355=A47),--(Receipts!$D$5:$D$1355=$K$3),Receipts!$E$5:$E$1355)","v":0},{"$f":"SUMPRODUCT(--(Receipts!$C$5:$C$1355=A47),--(Receipts!$D$5:$D$1355=$L$3),Receipts!$E$5:$E$1355)","v":0},{"$f":"SUMPRODUCT(--(Receipts!$C$5:$C$1355=A47),--(Receipts!$D$5:$D$1355=$M$3),Receipts!$E$5:$E$1355)","v":0},{"$f":"SUMPRODUCT(--(Receipts!$C$5:$C$1355=A47),--(Receipts!$D$5:$D$1355=$N$3),Receipts!$E$5:$E$1355)","v":0},{"$f":"SUMPRODUCT(--(Receipts!$C$5:$C$1355=A47),--(Receipts!$D$5:$D$1355=$O$3),Receipts!$E$5:$E$1355)","v":0},{"$f":"SUMPRODUCT(--(Receipts!$C$5:$C$1355=A47),--(Receipts!$D$5:$D$1355=$P$3),Receipts!$E$5:$E$1355)","v":0},{"$f":"SUMPRODUCT(--(Receipts!$C$5:$C$1355=A47),--(Receipts!$D$5:$D$1355=$Q$3),Receipts!$E$5:$E$1355)","v":0},{"$f":"SUMPRODUCT(--(Receipts!$C$5:$C$1355=A47),--(Receipts!$D$5:$D$1355=$R$3),Receipts!$E$5:$E$1355)","v":0},{"$f":"SUMPRODUCT(--(Receipts!$C$5:$C$1355=A47),--(Receipts!$D$5:$D$1355=$S$3),Receipts!$E$5:$E$1355)","v":0},{"$f":"SUMPRODUCT(--(Receipts!$C$5:$C$1355=A47),--(Receipts!$D$5:$D$1355=$T$3),Receipts!$E$5:$E$1355)","v":0},{"$f":"SUMPRODUCT(--(Receipts!$C$5:$C$1355=A47),--(Receipts!$D$5:$D$1355=$U$3),Receipts!$E$5:$E$1355)","v":0},{"$f":"SUMPRODUCT(--(Receipts!$C$5:$C$1355=A47),--(Receipts!$D$5:$D$1355=$V$3),Receipts!$E$5:$E$1355)","v":0},{"$f":"SUMPRODUCT(--(Receipts!$C$5:$C$1355=A47),--(Receipts!$D$5:$D$1355=$W$3),Receipts!$E$5:$E$1355)","v":0},{"$f":"SUMPRODUCT(--(Receipts!$C$5:$C$1355=A47),--(Receipts!$D$5:$D$1355=$X$3),Receipts!$E$5:$E$1355)","v":0},{"$f":"SUMPRODUCT(--(Receipts!$C$5:$C$1355=A47),--(Receipts!$D$5:$D$1355=$Y$3),Receipts!$E$5:$E$1355)","v":0},{"$f":"SUMPRODUCT(--(Receipts!$C$5:$C$1355=A47),--(Receipts!$D$5:$D$1355=$Z$3),Receipts!$E$5:$E$1355)","v":0},{"$f":"SUMPRODUCT(--(Receipts!$C$5:$C$1355=A47),--(Receipts!$D$5:$D$1355=$AA$3),Receipts!$E$5:$E$1355)","v":0},{"$f":"SUMPRODUCT(--(Receipts!$C$5:$C$1355=A47),--(Receipts!$D$5:$D$1355=$AB$3),Receipts!$E$5:$E$1355)","v":0},{"$f":"SUMPRODUCT(--(Receipts!$C$5:$C$1355=A47),--(Receipts!$D$5:$D$1355=$AC$3),Receipts!$E$5:$E$1355)","v":0},{"$f":"SUMPRODUCT(--(Receipts!$C$5:$C$1355=A47),--(Receipts!$D$5:$D$1355=$AD$3),Receipts!$E$5:$E$1355)","v":0},null,0,0,0,0]
[{"$f":"Descriptions!B49","v":0},{"$f":"Descriptions!D49","v":"All other giving/voluntary receipts"},{"$f":"Descriptions!E49","v":0},{"$f":"SUMPRODUCT(--(Receipts!$C$5:$C$1355=A48),--(Receipts!$D$5:$D$1355=$D$3),Receipts!$E$5:$E$1355)","v":0},{"$f":"SUMPRODUCT(--(Receipts!$C$5:$C$1355=A48),--(Receipts!$D$5:$D$1355=$E$3),Receipts!$E$5:$E$1355)","v":0},{"$f":"SUMPRODUCT(--(Receipts!$C$5:$C$1355=A48),--(Receipts!$D$5:$D$1355=$F$3),Receipts!$E$5:$E$1355)","v":0},{"$f":"SUMPRODUCT(--(Receipts!$C$5:$C$1355=A48),--(Receipts!$D$5:$D$1355=$G$3),Receipts!$E$5:$E$1355)","v":0},{"$f":"SUMPRODUCT(--(Receipts!$C$5:$C$1355=A48),--(Receipts!$D$5:$D$1355=$H$3),Receipts!$E$5:$E$1355)","v":0},{"$f":"SUMPRODUCT(--(Receipts!$C$5:$C$1355=A48),--(Receipts!$D$5:$D$1355=$I$3),Receipts!$E$5:$E$1355)","v":0},{"$f":"SUMPRODUCT(--(Receipts!$C$5:$C$1355=A48),--(Receipts!$D$5:$D$1355=$J$3),Receipts!$E$5:$E$1355)","v":0},{"$f":"SUMPRODUCT(--(Receipts!$C$5:$C$1355=A48),--(Receipts!$D$5:$D$1355=$K$3),Receipts!$E$5:$E$1355)","v":0},{"$f":"SUMPRODUCT(--(Receipts!$C$5:$C$1355=A48),--(Receipts!$D$5:$D$1355=$L$3),Receipts!$E$5:$E$1355)","v":0},{"$f":"SUMPRODUCT(--(Receipts!$C$5:$C$1355=A48),--(Receipts!$D$5:$D$1355=$M$3),Receipts!$E$5:$E$1355)","v":0},{"$f":"SUMPRODUCT(--(Receipts!$C$5:$C$1355=A48),--(Receipts!$D$5:$D$1355=$N$3),Receipts!$E$5:$E$1355)","v":0},{"$f":"SUMPRODUCT(--(Receipts!$C$5:$C$1355=A48),--(Receipts!$D$5:$D$1355=$O$3),Receipts!$E$5:$E$1355)","v":0},{"$f":"SUMPRODUCT(--(Receipts!$C$5:$C$1355=A48),--(Receipts!$D$5:$D$1355=$P$3),Receipts!$E$5:$E$1355)","v":0},{"$f":"SUMPRODUCT(--(Receipts!$C$5:$C$1355=A48),--(Receipts!$D$5:$D$1355=$Q$3),Receipts!$E$5:$E$1355)","v":0},{"$f":"SUMPRODUCT(--(Receipts!$C$5:$C$1355=A48),--(Receipts!$D$5:$D$1355=$R$3),Receipts!$E$5:$E$1355)","v":0},{"$f":"SUMPRODUCT(--(Receipts!$C$5:$C$1355=A48),--(Receipts!$D$5:$D$1355=$S$3),Receipts!$E$5:$E$1355)","v":0},{"$f":"SUMPRODUCT(--(Receipts!$C$5:$C$1355=A48),--(Receipts!$D$5:$D$1355=$T$3),Receipts!$E$5:$E$1355)","v":0},{"$f":"SUMPRODUCT(--(Receipts!$C$5:$C$1355=A48),--(Receipts!$D$5:$D$1355=$U$3),Receipts!$E$5:$E$1355)","v":0},{"$f":"SUMPRODUCT(--(Receipts!$C$5:$C$1355=A48),--(Receipts!$D$5:$D$1355=$V$3),Receipts!$E$5:$E$1355)","v":0},{"$f":"SUMPRODUCT(--(Receipts!$C$5:$C$1355=A48),--(Receipts!$D$5:$D$1355=$W$3),Receipts!$E$5:$E$1355)","v":0},{"$f":"SUMPRODUCT(--(Receipts!$C$5:$C$1355=A48),--(Receipts!$D$5:$D$1355=$X$3),Receipts!$E$5:$E$1355)","v":0},{"$f":"SUMPRODUCT(--(Receipts!$C$5:$C$1355=A48),--(Receipts!$D$5:$D$1355=$Y$3),Receipts!$E$5:$E$1355)","v":0},{"$f":"SUMPRODUCT(--(Receipts!$C$5:$C$1355=A48),--(Receipts!$D$5:$D$1355=$Z$3),Receipts!$E$5:$E$1355)","v":0},{"$f":"SUMPRODUCT(--(Receipts!$C$5:$C$1355=A48),--(Receipts!$D$5:$D$1355=$AA$3),Receipts!$E$5:$E$1355)","v":0},{"$f":"SUMPRODUCT(--(Receipts!$C$5:$C$1355=A48),--(Receipts!$D$5:$D$1355=$AB$3),Receipts!$E$5:$E$1355)","v":0},{"$f":"SUMPRODUCT(--(Receipts!$C$5:$C$1355=A48),--(Receipts!$D$5:$D$1355=$AC$3),Receipts!$E$5:$E$1355)","v":0},{"$f":"SUMPRODUCT(--(Receipts!$C$5:$C$1355=A48),--(Receipts!$D$5:$D$1355=$AD$3),Receipts!$E$5:$E$1355)","v":0},null,0,0,0,0]
[{"$f":"Descriptions!B50","v":0},{"$f":"Descriptions!D50","v":"All other giving/voluntary receipts"},{"$f":"Descriptions!E50","v":0},{"$f":"SUMPRODUCT(--(Receipts!$C$5:$C$1355=A49),--(Receipts!$D$5:$D$1355=$D$3),Receipts!$E$5:$E$1355)","v":0},{"$f":"SUMPRODUCT(--(Receipts!$C$5:$C$1355=A49),--(Receipts!$D$5:$D$1355=$E$3),Receipts!$E$5:$E$1355)","v":0},{"$f":"SUMPRODUCT(--(Receipts!$C$5:$C$1355=A49),--(Receipts!$D$5:$D$1355=$F$3),Receipts!$E$5:$E$1355)","v":0},{"$f":"SUMPRODUCT(--(Receipts!$C$5:$C$1355=A49),--(Receipts!$D$5:$D$1355=$G$3),Receipts!$E$5:$E$1355)","v":0},{"$f":"SUMPRODUCT(--(Receipts!$C$5:$C$1355=A49),--(Receipts!$D$5:$D$1355=$H$3),Receipts!$E$5:$E$1355)","v":0},{"$f":"SUMPRODUCT(--(Receipts!$C$5:$C$1355=A49),--(Receipts!$D$5:$D$1355=$I$3),Receipts!$E$5:$E$1355)","v":0},{"$f":"SUMPRODUCT(--(Receipts!$C$5:$C$1355=A49),--(Receipts!$D$5:$D$1355=$J$3),Receipts!$E$5:$E$1355)","v":0},{"$f":"SUMPRODUCT(--(Receipts!$C$5:$C$1355=A49),--(Receipts!$D$5:$D$1355=$K$3),Receipts!$E$5:$E$1355)","v":0},{"$f":"SUMPRODUCT(--(Receipts!$C$5:$C$1355=A49),--(Receipts!$D$5:$D$1355=$L$3),Receipts!$E$5:$E$1355)","v":0},{"$f":"SUMPRODUCT(--(Receipts!$C$5:$C$1355=A49),--(Receipts!$D$5:$D$1355=$M$3),Receipts!$E$5:$E$1355)","v":0},{"$f":"SUMPRODUCT(--(Receipts!$C$5:$C$1355=A49),--(Receipts!$D$5:$D$1355=$N$3),Receipts!$E$5:$E$1355)","v":0},{"$f":"SUMPRODUCT(--(Receipts!$C$5:$C$1355=A49),--(Receipts!$D$5:$D$1355=$O$3),Receipts!$E$5:$E$1355)","v":0},{"$f":"SUMPRODUCT(--(Receipts!$C$5:$C$1355=A49),--(Receipts!$D$5:$D$1355=$P$3),Receipts!$E$5:$E$1355)","v":0},{"$f":"SUMPRODUCT(--(Receipts!$C$5:$C$1355=A49),--(Receipts!$D$5:$D$1355=$Q$3),Receipts!$E$5:$E$1355)","v":0},{"$f":"SUMPRODUCT(--(Receipts!$C$5:$C$1355=A49),--(Receipts!$D$5:$D$1355=$R$3),Receipts!$E$5:$E$1355)","v":0},{"$f":"SUMPRODUCT(--(Receipts!$C$5:$C$1355=A49),--(Receipts!$D$5:$D$1355=$S$3),Receipts!$E$5:$E$1355)","v":0},{"$f":"SUMPRODUCT(--(Receipts!$C$5:$C$1355=A49),--(Receipts!$D$5:$D$1355=$T$3),Receipts!$E$5:$E$1355)","v":0},{"$f":"SUMPRODUCT(--(Receipts!$C$5:$C$1355=A49),--(Receipts!$D$5:$D$1355=$U$3),Receipts!$E$5:$E$1355)","v":0},{"$f":"SUMPRODUCT(--(Receipts!$C$5:$C$1355=A49),--(Receipts!$D$5:$D$1355=$V$3),Receipts!$E$5:$E$1355)","v":0},{"$f":"SUMPRODUCT(--(Receipts!$C$5:$C$1355=A49),--(Receipts!$D$5:$D$1355=$W$3),Receipts!$E$5:$E$1355)","v":0},{"$f":"SUMPRODUCT(--(Receipts!$C$5:$C$1355=A49),--(Receipts!$D$5:$D$1355=$X$3),Receipts!$E$5:$E$1355)","v":0},{"$f":"SUMPRODUCT(--(Receipts!$C$5:$C$1355=A49),--(Receipts!$D$5:$D$1355=$Y$3),Receipts!$E$5:$E$1355)","v":0},{"$f":"SUMPRODUCT(--(Receipts!$C$5:$C$1355=A49),--(Receipts!$D$5:$D$1355=$Z$3),Receipts!$E$5:$E$1355)","v":0},{"$f":"SUMPRODUCT(--(Receipts!$C$5:$C$1355=A49),--(Receipts!$D$5:$D$1355=$AA$3),Receipts!$E$5:$E$1355)","v":0},{"$f":"SUMPRODUCT(--(Receipts!$C$5:$C$1355=A49),--(Receipts!$D$5:$D$1355=$AB$3),Receipts!$E$5:$E$1355)","v":0},{"$f":"SUMPRODUCT(--(Receipts!$C$5:$C$1355=A49),--(Receipts!$D$5:$D$1355=$AC$3),Receipts!$E$5:$E$1355)","v":0},{"$f":"SUMPRODUCT(--(Receipts!$C$5:$C$1355=A49),--(Receipts!$D$5:$D$1355=$AD$3),Receipts!$E$5:$E$1355)","v":0},null,0,0,0,0]
[{"$f":"Descriptions!B51","v":0},{"$f":"Descriptions!D51","v":"All other giving/voluntary receipts"},{"$f":"Descriptions!E51","v":0},{"$f":"SUMPRODUCT(--(Receipts!$C$5:$C$1355=A50),--(Receipts!$D$5:$D$1355=$D$3),Receipts!$E$5:$E$1355)","v":0},{"$f":"SUMPRODUCT(--(Receipts!$C$5:$C$1355=A50),--(Receipts!$D$5:$D$1355=$E$3),Receipts!$E$5:$E$1355)","v":0},{"$f":"SUMPRODUCT(--(Receipts!$C$5:$C$1355=A50),--(Receipts!$D$5:$D$1355=$F$3),Receipts!$E$5:$E$1355)","v":0},{"$f":"SUMPRODUCT(--(Receipts!$C$5:$C$1355=A50),--(Receipts!$D$5:$D$1355=$G$3),Receipts!$E$5:$E$1355)","v":0},{"$f":"SUMPRODUCT(--(Receipts!$C$5:$C$1355=A50),--(Receipts!$D$5:$D$1355=$H$3),Receipts!$E$5:$E$1355)","v":0},{"$f":"SUMPRODUCT(--(Receipts!$C$5:$C$1355=A50),--(Receipts!$D$5:$D$1355=$I$3),Receipts!$E$5:$E$1355)","v":0},{"$f":"SUMPRODUCT(--(Receipts!$C$5:$C$1355=A50),--(Receipts!$D$5:$D$1355=$J$3),Receipts!$E$5:$E$1355)","v":0},{"$f":"SUMPRODUCT(--(Receipts!$C$5:$C$1355=A50),--(Receipts!$D$5:$D$1355=$K$3),Receipts!$E$5:$E$1355)","v":0},{"$f":"SUMPRODUCT(--(Receipts!$C$5:$C$1355=A50),--(Receipts!$D$5:$D$1355=$L$3),Receipts!$E$5:$E$1355)","v":0},{"$f":"SUMPRODUCT(--(Receipts!$C$5:$C$1355=A50),--(Receipts!$D$5:$D$1355=$M$3),Receipts!$E$5:$E$1355)","v":0},{"$f":"SUMPRODUCT(--(Receipts!$C$5:$C$1355=A50),--(Receipts!$D$5:$D$1355=$N$3),Receipts!$E$5:$E$1355)","v":0},{"$f":"SUMPRODUCT(--(Receipts!$C$5:$C$1355=A50),--(Receipts!$D$5:$D$1355=$O$3),Receipts!$E$5:$E$1355)","v":0},{"$f":"SUMPRODUCT(--(Receipts!$C$5:$C$1355=A50),--(Receipts!$D$5:$D$1355=$P$3),Receipts!$E$5:$E$1355)","v":0},{"$f":"SUMPRODUCT(--(Receipts!$C$5:$C$1355=A50),--(Receipts!$D$5:$D$1355=$Q$3),Receipts!$E$5:$E$1355)","v":0},{"$f":"SUMPRODUCT(--(Receipts!$C$5:$C$1355=A50),--(Receipts!$D$5:$D$1355=$R$3),Receipts!$E$5:$E$1355)","v":0},{"$f":"SUMPRODUCT(--(Receipts!$C$5:$C$1355=A50),--(Receipts!$D$5:$D$1355=$S$3),Receipts!$E$5:$E$1355)","v":0},{"$f":"SUMPRODUCT(--(Receipts!$C$5:$C$1355=A50),--(Receipts!$D$5:$D$1355=$T$3),Receipts!$E$5:$E$1355)","v":0},{"$f":"SUMPRODUCT(--(Receipts!$C$5:$C$1355=A50),--(Receipts!$D$5:$D$1355=$U$3),Receipts!$E$5:$E$1355)","v":0},{"$f":"SUMPRODUCT(--(Receipts!$C$5:$C$1355=A50),--(Receipts!$D$5:$D$1355=$V$3),Receipts!$E$5:$E$1355)","v":0},{"$f":"SUMPRODUCT(--(Receipts!$C$5:$C$1355=A50),--(Receipts!$D$5:$D$1355=$W$3),Receipts!$E$5:$E$1355)","v":0},{"$f":"SUMPRODUCT(--(Receipts!$C$5:$C$1355=A50),--(Receipts!$D$5:$D$1355=$X$3),Receipts!$E$5:$E$1355)","v":0},{"$f":"SUMPRODUCT(--(Receipts!$C$5:$C$1355=A50),--(Receipts!$D$5:$D$1355=$Y$3),Receipts!$E$5:$E$1355)","v":0},{"$f":"SUMPRODUCT(--(Receipts!$C$5:$C$1355=A50),--(Receipts!$D$5:$D$1355=$Z$3),Receipts!$E$5:$E$1355)","v":0},{"$f":"SUMPRODUCT(--(Receipts!$C$5:$C$1355=A50),--(Receipts!$D$5:$D$1355=$AA$3),Receipts!$E$5:$E$1355)","v":0},{"$f":"SUMPRODUCT(--(Receipts!$C$5:$C$1355=A50),--(Receipts!$D$5:$D$1355=$AB$3),Receipts!$E$5:$E$1355)","v":0},{"$f":"SUMPRODUCT(--(Receipts!$C$5:$C$1355=A50),--(Receipts!$D$5:$D$1355=$AC$3),Receipts!$E$5:$E$1355)","v":0},{"$f":"SUMPRODUCT(--(Receipts!$C$5:$C$1355=A50),--(Receipts!$D$5:$D$1355=$AD$3),Receipts!$E$5:$E$1355)","v":0},null,0,0,0,0]
[{"$f":"Descriptions!B52","v":0},{"$f":"Descriptions!D52","v":"All other giving/voluntary receipts"},{"$f":"Descriptions!E52","v":0},{"$f":"SUMPRODUCT(--(Receipts!$C$5:$C$1355=A51),--(Receipts!$D$5:$D$1355=$D$3),Receipts!$E$5:$E$1355)","v":0},{"$f":"SUMPRODUCT(--(Receipts!$C$5:$C$1355=A51),--(Receipts!$D$5:$D$1355=$E$3),Receipts!$E$5:$E$1355)","v":0},{"$f":"SUMPRODUCT(--(Receipts!$C$5:$C$1355=A51),--(Receipts!$D$5:$D$1355=$F$3),Receipts!$E$5:$E$1355)","v":0},{"$f":"SUMPRODUCT(--(Receipts!$C$5:$C$1355=A51),--(Receipts!$D$5:$D$1355=$G$3),Receipts!$E$5:$E$1355)","v":0},{"$f":"SUMPRODUCT(--(Receipts!$C$5:$C$1355=A51),--(Receipts!$D$5:$D$1355=$H$3),Receipts!$E$5:$E$1355)","v":0},{"$f":"SUMPRODUCT(--(Receipts!$C$5:$C$1355=A51),--(Receipts!$D$5:$D$1355=$I$3),Receipts!$E$5:$E$1355)","v":0},{"$f":"SUMPRODUCT(--(Receipts!$C$5:$C$1355=A51),--(Receipts!$D$5:$D$1355=$J$3),Receipts!$E$5:$E$1355)","v":0},{"$f":"SUMPRODUCT(--(Receipts!$C$5:$C$1355=A51),--(Receipts!$D$5:$D$1355=$K$3),Receipts!$E$5:$E$1355)","v":0},{"$f":"SUMPRODUCT(--(Receipts!$C$5:$C$1355=A51),--(Receipts!$D$5:$D$1355=$L$3),Receipts!$E$5:$E$1355)","v":0},{"$f":"SUMPRODUCT(--(Receipts!$C$5:$C$1355=A51),--(Receipts!$D$5:$D$1355=$M$3),Receipts!$E$5:$E$1355)","v":0},{"$f":"SUMPRODUCT(--(Receipts!$C$5:$C$1355=A51),--(Receipts!$D$5:$D$1355=$N$3),Receipts!$E$5:$E$1355)","v":0},{"$f":"SUMPRODUCT(--(Receipts!$C$5:$C$1355=A51),--(Receipts!$D$5:$D$1355=$O$3),Receipts!$E$5:$E$1355)","v":0},{"$f":"SUMPRODUCT(--(Receipts!$C$5:$C$1355=A51),--(Receipts!$D$5:$D$1355=$P$3),Receipts!$E$5:$E$1355)","v":0},{"$f":"SUMPRODUCT(--(Receipts!$C$5:$C$1355=A51),--(Receipts!$D$5:$D$1355=$Q$3),Receipts!$E$5:$E$1355)","v":0},{"$f":"SUMPRODUCT(--(Receipts!$C$5:$C$1355=A51),--(Receipts!$D$5:$D$1355=$R$3),Receipts!$E$5:$E$1355)","v":0},{"$f":"SUMPRODUCT(--(Receipts!$C$5:$C$1355=A51),--(Receipts!$D$5:$D$1355=$S$3),Receipts!$E$5:$E$1355)","v":0},{"$f":"SUMPRODUCT(--(Receipts!$C$5:$C$1355=A51),--(Receipts!$D$5:$D$1355=$T$3),Receipts!$E$5:$E$1355)","v":0},{"$f":"SUMPRODUCT(--(Receipts!$C$5:$C$1355=A51),--(Receipts!$D$5:$D$1355=$U$3),Receipts!$E$5:$E$1355)","v":0},{"$f":"SUMPRODUCT(--(Receipts!$C$5:$C$1355=A51),--(Receipts!$D$5:$D$1355=$V$3),Receipts!$E$5:$E$1355)","v":0},{"$f":"SUMPRODUCT(--(Receipts!$C$5:$C$1355=A51),--(Receipts!$D$5:$D$1355=$W$3),Receipts!$E$5:$E$1355)","v":0},{"$f":"SUMPRODUCT(--(Receipts!$C$5:$C$1355=A51),--(Receipts!$D$5:$D$1355=$X$3),Receipts!$E$5:$E$1355)","v":0},{"$f":"SUMPRODUCT(--(Receipts!$C$5:$C$1355=A51),--(Receipts!$D$5:$D$1355=$Y$3),Receipts!$E$5:$E$1355)","v":0},{"$f":"SUMPRODUCT(--(Receipts!$C$5:$C$1355=A51),--(Receipts!$D$5:$D$1355=$Z$3),Receipts!$E$5:$E$1355)","v":0},{"$f":"SUMPRODUCT(--(Receipts!$C$5:$C$1355=A51),--(Receipts!$D$5:$D$1355=$AA$3),Receipts!$E$5:$E$1355)","v":0},{"$f":"SUMPRODUCT(--(Receipts!$C$5:$C$1355=A51),--(Receipts!$D$5:$D$1355=$AB$3),Receipts!$E$5:$E$1355)","v":0},{"$f":"SUMPRODUCT(--(Receipts!$C$5:$C$1355=A51),--(Receipts!$D$5:$D$1355=$AC$3),Receipts!$E$5:$E$1355)","v":0},{"$f":"SUMPRODUCT(--(Receipts!$C$5:$C$1355=A51),--(Receipts!$D$5:$D$1355=$AD$3),Receipts!$E$5:$E$1355)","v":0},null,0,0,0,0]
[{"$f":"Descriptions!B53","v":0},{"$f":"Descriptions!D53","v":"All other giving/voluntary receipts"},{"$f":"Descriptions!E53","v":0},{"$f":"SUMPRODUCT(--(Receipts!$C$5:$C$1355=A52),--(Receipts!$D$5:$D$1355=$D$3),Receipts!$E$5:$E$1355)","v":0},{"$f":"SUMPRODUCT(--(Receipts!$C$5:$C$1355=A52),--(Receipts!$D$5:$D$1355=$E$3),Receipts!$E$5:$E$1355)","v":0},{"$f":"SUMPRODUCT(--(Receipts!$C$5:$C$1355=A52),--(Receipts!$D$5:$D$1355=$F$3),Receipts!$E$5:$E$1355)","v":0},{"$f":"SUMPRODUCT(--(Receipts!$C$5:$C$1355=A52),--(Receipts!$D$5:$D$1355=$G$3),Receipts!$E$5:$E$1355)","v":0},{"$f":"SUMPRODUCT(--(Receipts!$C$5:$C$1355=A52),--(Receipts!$D$5:$D$1355=$H$3),Receipts!$E$5:$E$1355)","v":0},{"$f":"SUMPRODUCT(--(Receipts!$C$5:$C$1355=A52),--(Receipts!$D$5:$D$1355=$I$3),Receipts!$E$5:$E$1355)","v":0},{"$f":"SUMPRODUCT(--(Receipts!$C$5:$C$1355=A52),--(Receipts!$D$5:$D$1355=$J$3),Receipts!$E$5:$E$1355)","v":0},{"$f":"SUMPRODUCT(--(Receipts!$C$5:$C$1355=A52),--(Receipts!$D$5:$D$1355=$K$3),Receipts!$E$5:$E$1355)","v":0},{"$f":"SUMPRODUCT(--(Receipts!$C$5:$C$1355=A52),--(Receipts!$D$5:$D$1355=$L$3),Receipts!$E$5:$E$1355)","v":0},{"$f":"SUMPRODUCT(--(Receipts!$C$5:$C$1355=A52),--(Receipts!$D$5:$D$1355=$M$3),Receipts!$E$5:$E$1355)","v":0},{"$f":"SUMPRODUCT(--(Receipts!$C$5:$C$1355=A52),--(Receipts!$D$5:$D$1355=$N$3),Receipts!$E$5:$E$1355)","v":0},{"$f":"SUMPRODUCT(--(Receipts!$C$5:$C$1355=A52),--(Receipts!$D$5:$D$1355=$O$3),Receipts!$E$5:$E$1355)","v":0},{"$f":"SUMPRODUCT(--(Receipts!$C$5:$C$1355=A52),--(Receipts!$D$5:$D$1355=$P$3),Receipts!$E$5:$E$1355)","v":0},{"$f":"SUMPRODUCT(--(Receipts!$C$5:$C$1355=A52),--(Receipts!$D$5:$D$1355=$Q$3),Receipts!$E$5:$E$1355)","v":0},{"$f":"SUMPRODUCT(--(Receipts!$C$5:$C$1355=A52),--(Receipts!$D$5:$D$1355=$R$3),Receipts!$E$5:$E$1355)","v":0},{"$f":"SUMPRODUCT(--(Receipts!$C$5:$C$1355=A52),--(Receipts!$D$5:$D$1355=$S$3),Receipts!$E$5:$E$1355)","v":0},{"$f":"SUMPRODUCT(--(Receipts!$C$5:$C$1355=A52),--(Receipts!$D$5:$D$1355=$T$3),Receipts!$E$5:$E$1355)","v":0},{"$f":"SUMPRODUCT(--(Receipts!$C$5:$C$1355=A52),--(Receipts!$D$5:$D$1355=$U$3),Receipts!$E$5:$E$1355)","v":0},{"$f":"SUMPRODUCT(--(Receipts!$C$5:$C$1355=A52),--(Receipts!$D$5:$D$1355=$V$3),Receipts!$E$5:$E$1355)","v":0},{"$f":"SUMPRODUCT(--(Receipts!$C$5:$C$1355=A52),--(Receipts!$D$5:$D$1355=$W$3),Receipts!$E$5:$E$1355)","v":0},{"$f":"SUMPRODUCT(--(Receipts!$C$5:$C$1355=A52),--(Receipts!$D$5:$D$1355=$X$3),Receipts!$E$5:$E$1355)","v":0},{"$f":"SUMPRODUCT(--(Receipts!$C$5:$C$1355=A52),--(Receipts!$D$5:$D$1355=$Y$3),Receipts!$E$5:$E$1355)","v":0},{"$f":"SUMPRODUCT(--(Receipts!$C$5:$C$1355=A52),--(Receipts!$D$5:$D$1355=$Z$3),Receipts!$E$5:$E$1355)","v":0},{"$f":"SUMPRODUCT(--(Receipts!$C$5:$C$1355=A52),--(Receipts!$D$5:$D$1355=$AA$3),Receipts!$E$5:$E$1355)","v":0},{"$f":"SUMPRODUCT(--(Receipts!$C$5:$C$1355=A52),--(Receipts!$D$5:$D$1355=$AB$3),Receipts!$E$5:$E$1355)","v":0},{"$f":"SUMPRODUCT(--(Receipts!$C$5:$C$1355=A52),--(Receipts!$D$5:$D$1355=$AC$3),Receipts!$E$5:$E$1355)","v":0},{"$f":"SUMPRODUCT(--(Receipts!$C$5:$C$1355=A52),--(Receipts!$D$5:$D$1355=$AD$3),Receipts!$E$5:$E$1355)","v":0},null,0,0,0,0]
[{"$f":"Descriptions!B54","v":0},{"$f":"Descriptions!D54","v":"All other giving/voluntary receipts"},{"$f":"Descriptions!E54","v":0},{"$f":"SUMPRODUCT(--(Receipts!$C$5:$C$1355=A53),--(Receipts!$D$5:$D$1355=$D$3),Receipts!$E$5:$E$1355)","v":0},{"$f":"SUMPRODUCT(--(Receipts!$C$5:$C$1355=A53),--(Receipts!$D$5:$D$1355=$E$3),Receipts!$E$5:$E$1355)","v":0},{"$f":"SUMPRODUCT(--(Receipts!$C$5:$C$1355=A53),--(Receipts!$D$5:$D$1355=$F$3),Receipts!$E$5:$E$1355)","v":0},{"$f":"SUMPRODUCT(--(Receipts!$C$5:$C$1355=A53),--(Receipts!$D$5:$D$1355=$G$3),Receipts!$E$5:$E$1355)","v":0},{"$f":"SUMPRODUCT(--(Receipts!$C$5:$C$1355=A53),--(Receipts!$D$5:$D$1355=$H$3),Receipts!$E$5:$E$1355)","v":0},{"$f":"SUMPRODUCT(--(Receipts!$C$5:$C$1355=A53),--(Receipts!$D$5:$D$1355=$I$3),Receipts!$E$5:$E$1355)","v":0},{"$f":"SUMPRODUCT(--(Receipts!$C$5:$C$1355=A53),--(Receipts!$D$5:$D$1355=$J$3),Receipts!$E$5:$E$1355)","v":0},{"$f":"SUMPRODUCT(--(Receipts!$C$5:$C$1355=A53),--(Receipts!$D$5:$D$1355=$K$3),Receipts!$E$5:$E$1355)","v":0},{"$f":"SUMPRODUCT(--(Receipts!$C$5:$C$1355=A53),--(Receipts!$D$5:$D$1355=$L$3),Receipts!$E$5:$E$1355)","v":0},{"$f":"SUMPRODUCT(--(Receipts!$C$5:$C$1355=A53),--(Receipts!$D$5:$D$1355=$M$3),Receipts!$E$5:$E$1355)","v":0},{"$f":"SUMPRODUCT(--(Receipts!$C$5:$C$1355=A53),--(Receipts!$D$5:$D$1355=$N$3),Receipts!$E$5:$E$1355)","v":0},{"$f":"SUMPRODUCT(--(Receipts!$C$5:$C$1355=A53),--(Receipts!$D$5:$D$1355=$O$3),Receipts!$E$5:$E$1355)","v":0},{"$f":"SUMPRODUCT(--(Receipts!$C$5:$C$1355=A53),--(Receipts!$D$5:$D$1355=$P$3),Receipts!$E$5:$E$1355)","v":0},{"$f":"SUMPRODUCT(--(Receipts!$C$5:$C$1355=A53),--(Receipts!$D$5:$D$1355=$Q$3),Receipts!$E$5:$E$1355)","v":0},{"$f":"SUMPRODUCT(--(Receipts!$C$5:$C$1355=A53),--(Receipts!$D$5:$D$1355=$R$3),Receipts!$E$5:$E$1355)","v":0},{"$f":"SUMPRODUCT(--(Receipts!$C$5:$C$1355=A53),--(Receipts!$D$5:$D$1355=$S$3),Receipts!$E$5:$E$1355)","v":0},{"$f":"SUMPRODUCT(--(Receipts!$C$5:$C$1355=A53),--(Receipts!$D$5:$D$1355=$T$3),Receipts!$E$5:$E$1355)","v":0},{"$f":"SUMPRODUCT(--(Receipts!$C$5:$C$1355=A53),--(Receipts!$D$5:$D$1355=$U$3),Receipts!$E$5:$E$1355)","v":0},{"$f":"SUMPRODUCT(--(Receipts!$C$5:$C$1355=A53),--(Receipts!$D$5:$D$1355=$V$3),Receipts!$E$5:$E$1355)","v":0},{"$f":"SUMPRODUCT(--(Receipts!$C$5:$C$1355=A53),--(Receipts!$D$5:$D$1355=$W$3),Receipts!$E$5:$E$1355)","v":0},{"$f":"SUMPRODUCT(--(Receipts!$C$5:$C$1355=A53),--(Receipts!$D$5:$D$1355=$X$3),Receipts!$E$5:$E$1355)","v":0},{"$f":"SUMPRODUCT(--(Receipts!$C$5:$C$1355=A53),--(Receipts!$D$5:$D$1355=$Y$3),Receipts!$E$5:$E$1355)","v":0},{"$f":"SUMPRODUCT(--(Receipts!$C$5:$C$1355=A53),--(Receipts!$D$5:$D$1355=$Z$3),Receipts!$E$5:$E$1355)","v":0},{"$f":"SUMPRODUCT(--(Receipts!$C$5:$C$1355=A53),--(Receipts!$D$5:$D$1355=$AA$3),Receipts!$E$5:$E$1355)","v":0},{"$f":"SUMPRODUCT(--(Receipts!$C$5:$C$1355=A53),--(Receipts!$D$5:$D$1355=$AB$3),Receipts!$E$5:$E$1355)","v":0},{"$f":"SUMPRODUCT(--(Receipts!$C$5:$C$1355=A53),--(Receipts!$D$5:$D$1355=$AC$3),Receipts!$E$5:$E$1355)","v":0},{"$f":"SUMPRODUCT(--(Receipts!$C$5:$C$1355=A53),--(Receipts!$D$5:$D$1355=$AD$3),Receipts!$E$5:$E$1355)","v":0},null,0,0,0,0]
[{"$f":"Descriptions!B55","v":0},{"$f":"Descriptions!D55","v":"All other giving/voluntary receipts"},{"$f":"Descriptions!E55","v":0},{"$f":"SUMPRODUCT(--(Receipts!$C$5:$C$1355=A54),--(Receipts!$D$5:$D$1355=$D$3),Receipts!$E$5:$E$1355)","v":0},{"$f":"SUMPRODUCT(--(Receipts!$C$5:$C$1355=A54),--(Receipts!$D$5:$D$1355=$E$3),Receipts!$E$5:$E$1355)","v":0},{"$f":"SUMPRODUCT(--(Receipts!$C$5:$C$1355=A54),--(Receipts!$D$5:$D$1355=$F$3),Receipts!$E$5:$E$1355)","v":0},{"$f":"SUMPRODUCT(--(Receipts!$C$5:$C$1355=A54),--(Receipts!$D$5:$D$1355=$G$3),Receipts!$E$5:$E$1355)","v":0},{"$f":"SUMPRODUCT(--(Receipts!$C$5:$C$1355=A54),--(Receipts!$D$5:$D$1355=$H$3),Receipts!$E$5:$E$1355)","v":0},{"$f":"SUMPRODUCT(--(Receipts!$C$5:$C$1355=A54),--(Receipts!$D$5:$D$1355=$I$3),Receipts!$E$5:$E$1355)","v":0},{"$f":"SUMPRODUCT(--(Receipts!$C$5:$C$1355=A54),--(Receipts!$D$5:$D$1355=$J$3),Receipts!$E$5:$E$1355)","v":0},{"$f":"SUMPRODUCT(--(Receipts!$C$5:$C$1355=A54),--(Receipts!$D$5:$D$1355=$K$3),Receipts!$E$5:$E$1355)","v":0},{"$f":"SUMPRODUCT(--(Receipts!$C$5:$C$1355=A54),--(Receipts!$D$5:$D$1355=$L$3),Receipts!$E$5:$E$1355)","v":0},{"$f":"SUMPRODUCT(--(Receipts!$C$5:$C$1355=A54),--(Receipts!$D$5:$D$1355=$M$3),Receipts!$E$5:$E$1355)","v":0},{"$f":"SUMPRODUCT(--(Receipts!$C$5:$C$1355=A54),--(Receipts!$D$5:$D$1355=$N$3),Receipts!$E$5:$E$1355)","v":0},{"$f":"SUMPRODUCT(--(Receipts!$C$5:$C$1355=A54),--(Receipts!$D$5:$D$1355=$O$3),Receipts!$E$5:$E$1355)","v":0},{"$f":"SUMPRODUCT(--(Receipts!$C$5:$C$1355=A54),--(Receipts!$D$5:$D$1355=$P$3),Receipts!$E$5:$E$1355)","v":0},{"$f":"SUMPRODUCT(--(Receipts!$C$5:$C$1355=A54),--(Receipts!$D$5:$D$1355=$Q$3),Receipts!$E$5:$E$1355)","v":0},{"$f":"SUMPRODUCT(--(Receipts!$C$5:$C$1355=A54),--(Receipts!$D$5:$D$1355=$R$3),Receipts!$E$5:$E$1355)","v":0},{"$f":"SUMPRODUCT(--(Receipts!$C$5:$C$1355=A54),--(Receipts!$D$5:$D$1355=$S$3),Receipts!$E$5:$E$1355)","v":0},{"$f":"SUMPRODUCT(--(Receipts!$C$5:$C$1355=A54),--(Receipts!$D$5:$D$1355=$T$3),Receipts!$E$5:$E$1355)","v":0},{"$f":"SUMPRODUCT(--(Receipts!$C$5:$C$1355=A54),--(Receipts!$D$5:$D$1355=$U$3),Receipts!$E$5:$E$1355)","v":0},{"$f":"SUMPRODUCT(--(Receipts!$C$5:$C$1355=A54),--(Receipts!$D$5:$D$1355=$V$3),Receipts!$E$5:$E$1355)","v":0},{"$f":"SUMPRODUCT(--(Receipts!$C$5:$C$1355=A54),--(Receipts!$D$5:$D$1355=$W$3),Receipts!$E$5:$E$1355)","v":0},{"$f":"SUMPRODUCT(--(Receipts!$C$5:$C$1355=A54),--(Receipts!$D$5:$D$1355=$X$3),Receipts!$E$5:$E$1355)","v":0},{"$f":"SUMPRODUCT(--(Receipts!$C$5:$C$1355=A54),--(Receipts!$D$5:$D$1355=$Y$3),Receipts!$E$5:$E$1355)","v":0},{"$f":"SUMPRODUCT(--(Receipts!$C$5:$C$1355=A54),--(Receipts!$D$5:$D$1355=$Z$3),Receipts!$E$5:$E$1355)","v":0},{"$f":"SUMPRODUCT(--(Receipts!$C$5:$C$1355=A54),--(Receipts!$D$5:$D$1355=$AA$3),Receipts!$E$5:$E$1355)","v":0},{"$f":"SUMPRODUCT(--(Receipts!$C$5:$C$1355=A54),--(Receipts!$D$5:$D$1355=$AB$3),Receipts!$E$5:$E$1355)","v":0},{"$f":"SUMPRODUCT(--(Receipts!$C$5:$C$1355=A54),--(Receipts!$D$5:$D$1355=$AC$3),Receipts!$E$5:$E$1355)","v":0},{"$f":"SUMPRODUCT(--(Receipts!$C$5:$C$1355=A54),--(Receipts!$D$5:$D$1355=$AD$3),Receipts!$E$5:$E$1355)","v":0},null,0,0,0,0]
[{"$f":"Descriptions!B56","v":0},{"$f":"Descriptions!D56","v":"All other giving/voluntary receipts"},{"$f":"Descriptions!E56","v":0},{"$f":"SUMPRODUCT(--(Receipts!$C$5:$C$1355=A55),--(Receipts!$D$5:$D$1355=$D$3),Receipts!$E$5:$E$1355)","v":0},{"$f":"SUMPRODUCT(--(Receipts!$C$5:$C$1355=A55),--(Receipts!$D$5:$D$1355=$E$3),Receipts!$E$5:$E$1355)","v":0},{"$f":"SUMPRODUCT(--(Receipts!$C$5:$C$1355=A55),--(Receipts!$D$5:$D$1355=$F$3),Receipts!$E$5:$E$1355)","v":0},{"$f":"SUMPRODUCT(--(Receipts!$C$5:$C$1355=A55),--(Receipts!$D$5:$D$1355=$G$3),Receipts!$E$5:$E$1355)","v":0},{"$f":"SUMPRODUCT(--(Receipts!$C$5:$C$1355=A55),--(Receipts!$D$5:$D$1355=$H$3),Receipts!$E$5:$E$1355)","v":0},{"$f":"SUMPRODUCT(--(Receipts!$C$5:$C$1355=A55),--(Receipts!$D$5:$D$1355=$I$3),Receipts!$E$5:$E$1355)","v":0},{"$f":"SUMPRODUCT(--(Receipts!$C$5:$C$1355=A55),--(Receipts!$D$5:$D$1355=$J$3),Receipts!$E$5:$E$1355)","v":0},{"$f":"SUMPRODUCT(--(Receipts!$C$5:$C$1355=A55),--(Receipts!$D$5:$D$1355=$K$3),Receipts!$E$5:$E$1355)","v":0},{"$f":"SUMPRODUCT(--(Receipts!$C$5:$C$1355=A55),--(Receipts!$D$5:$D$1355=$L$3),Receipts!$E$5:$E$1355)","v":0},{"$f":"SUMPRODUCT(--(Receipts!$C$5:$C$1355=A55),--(Receipts!$D$5:$D$1355=$M$3),Receipts!$E$5:$E$1355)","v":0},{"$f":"SUMPRODUCT(--(Receipts!$C$5:$C$1355=A55),--(Receipts!$D$5:$D$1355=$N$3),Receipts!$E$5:$E$1355)","v":0},{"$f":"SUMPRODUCT(--(Receipts!$C$5:$C$1355=A55),--(Receipts!$D$5:$D$1355=$O$3),Receipts!$E$5:$E$1355)","v":0},{"$f":"SUMPRODUCT(--(Receipts!$C$5:$C$1355=A55),--(Receipts!$D$5:$D$1355=$P$3),Receipts!$E$5:$E$1355)","v":0},{"$f":"SUMPRODUCT(--(Receipts!$C$5:$C$1355=A55),--(Receipts!$D$5:$D$1355=$Q$3),Receipts!$E$5:$E$1355)","v":0},{"$f":"SUMPRODUCT(--(Receipts!$C$5:$C$1355=A55),--(Receipts!$D$5:$D$1355=$R$3),Receipts!$E$5:$E$1355)","v":0},{"$f":"SUMPRODUCT(--(Receipts!$C$5:$C$1355=A55),--(Receipts!$D$5:$D$1355=$S$3),Receipts!$E$5:$E$1355)","v":0},{"$f":"SUMPRODUCT(--(Receipts!$C$5:$C$1355=A55),--(Receipts!$D$5:$D$1355=$T$3),Receipts!$E$5:$E$1355)","v":0},{"$f":"SUMPRODUCT(--(Receipts!$C$5:$C$1355=A55),--(Receipts!$D$5:$D$1355=$U$3),Receipts!$E$5:$E$1355)","v":0},{"$f":"SUMPRODUCT(--(Receipts!$C$5:$C$1355=A55),--(Receipts!$D$5:$D$1355=$V$3),Receipts!$E$5:$E$1355)","v":0},{"$f":"SUMPRODUCT(--(Receipts!$C$5:$C$1355=A55),--(Receipts!$D$5:$D$1355=$W$3),Receipts!$E$5:$E$1355)","v":0},{"$f":"SUMPRODUCT(--(Receipts!$C$5:$C$1355=A55),--(Receipts!$D$5:$D$1355=$X$3),Receipts!$E$5:$E$1355)","v":0},{"$f":"SUMPRODUCT(--(Receipts!$C$5:$C$1355=A55),--(Receipts!$D$5:$D$1355=$Y$3),Receipts!$E$5:$E$1355)","v":0},{"$f":"SUMPRODUCT(--(Receipts!$C$5:$C$1355=A55),--(Receipts!$D$5:$D$1355=$Z$3),Receipts!$E$5:$E$1355)","v":0},{"$f":"SUMPRODUCT(--(Receipts!$C$5:$C$1355=A55),--(Receipts!$D$5:$D$1355=$AA$3),Receipts!$E$5:$E$1355)","v":0},{"$f":"SUMPRODUCT(--(Receipts!$C$5:$C$1355=A55),--(Receipts!$D$5:$D$1355=$AB$3),Receipts!$E$5:$E$1355)","v":0},{"$f":"SUMPRODUCT(--(Receipts!$C$5:$C$1355=A55),--(Receipts!$D$5:$D$1355=$AC$3),Receipts!$E$5:$E$1355)","v":0},{"$f":"SUMPRODUCT(--(Receipts!$C$5:$C$1355=A55),--(Receipts!$D$5:$D$1355=$AD$3),Receipts!$E$5:$E$1355)","v":0},null,0,0,0,0]
[{"$f":"Descriptions!B57","v":0},{"$f":"Descriptions!D57","v":"All other giving/voluntary receipts"},{"$f":"Descriptions!E57","v":0},{"$f":"SUMPRODUCT(--(Receipts!$C$5:$C$1355=A56),--(Receipts!$D$5:$D$1355=$D$3),Receipts!$E$5:$E$1355)","v":0},{"$f":"SUMPRODUCT(--(Receipts!$C$5:$C$1355=A56),--(Receipts!$D$5:$D$1355=$E$3),Receipts!$E$5:$E$1355)","v":0},{"$f":"SUMPRODUCT(--(Receipts!$C$5:$C$1355=A56),--(Receipts!$D$5:$D$1355=$F$3),Receipts!$E$5:$E$1355)","v":0},{"$f":"SUMPRODUCT(--(Receipts!$C$5:$C$1355=A56),--(Receipts!$D$5:$D$1355=$G$3),Receipts!$E$5:$E$1355)","v":0},{"$f":"SUMPRODUCT(--(Receipts!$C$5:$C$1355=A56),--(Receipts!$D$5:$D$1355=$H$3),Receipts!$E$5:$E$1355)","v":0},{"$f":"SUMPRODUCT(--(Receipts!$C$5:$C$1355=A56),--(Receipts!$D$5:$D$1355=$I$3),Receipts!$E$5:$E$1355)","v":0},{"$f":"SUMPRODUCT(--(Receipts!$C$5:$C$1355=A56),--(Receipts!$D$5:$D$1355=$J$3),Receipts!$E$5:$E$1355)","v":0},{"$f":"SUMPRODUCT(--(Receipts!$C$5:$C$1355=A56),--(Receipts!$D$5:$D$1355=$K$3),Receipts!$E$5:$E$1355)","v":0},{"$f":"SUMPRODUCT(--(Receipts!$C$5:$C$1355=A56),--(Receipts!$D$5:$D$1355=$L$3),Receipts!$E$5:$E$1355)","v":0},{"$f":"SUMPRODUCT(--(Receipts!$C$5:$C$1355=A56),--(Receipts!$D$5:$D$1355=$M$3),Receipts!$E$5:$E$1355)","v":0},{"$f":"SUMPRODUCT(--(Receipts!$C$5:$C$1355=A56),--(Receipts!$D$5:$D$1355=$N$3),Receipts!$E$5:$E$1355)","v":0},{"$f":"SUMPRODUCT(--(Receipts!$C$5:$C$1355=A56),--(Receipts!$D$5:$D$1355=$O$3),Receipts!$E$5:$E$1355)","v":0},{"$f":"SUMPRODUCT(--(Receipts!$C$5:$C$1355=A56),--(Receipts!$D$5:$D$1355=$P$3),Receipts!$E$5:$E$1355)","v":0},{"$f":"SUMPRODUCT(--(Receipts!$C$5:$C$1355=A56),--(Receipts!$D$5:$D$1355=$Q$3),Receipts!$E$5:$E$1355)","v":0},{"$f":"SUMPRODUCT(--(Receipts!$C$5:$C$1355=A56),--(Receipts!$D$5:$D$1355=$R$3),Receipts!$E$5:$E$1355)","v":0},{"$f":"SUMPRODUCT(--(Receipts!$C$5:$C$1355=A56),--(Receipts!$D$5:$D$1355=$S$3),Receipts!$E$5:$E$1355)","v":0},{"$f":"SUMPRODUCT(--(Receipts!$C$5:$C$1355=A56),--(Receipts!$D$5:$D$1355=$T$3),Receipts!$E$5:$E$1355)","v":0},{"$f":"SUMPRODUCT(--(Receipts!$C$5:$C$1355=A56),--(Receipts!$D$5:$D$1355=$U$3),Receipts!$E$5:$E$1355)","v":0},{"$f":"SUMPRODUCT(--(Receipts!$C$5:$C$1355=A56),--(Receipts!$D$5:$D$1355=$V$3),Receipts!$E$5:$E$1355)","v":0},{"$f":"SUMPRODUCT(--(Receipts!$C$5:$C$1355=A56),--(Receipts!$D$5:$D$1355=$W$3),Receipts!$E$5:$E$1355)","v":0},{"$f":"SUMPRODUCT(--(Receipts!$C$5:$C$1355=A56),--(Receipts!$D$5:$D$1355=$X$3),Receipts!$E$5:$E$1355)","v":0},{"$f":"SUMPRODUCT(--(Receipts!$C$5:$C$1355=A56),--(Receipts!$D$5:$D$1355=$Y$3),Receipts!$E$5:$E$1355)","v":0},{"$f":"SUMPRODUCT(--(Receipts!$C$5:$C$1355=A56),--(Receipts!$D$5:$D$1355=$Z$3),Receipts!$E$5:$E$1355)","v":0},{"$f":"SUMPRODUCT(--(Receipts!$C$5:$C$1355=A56),--(Receipts!$D$5:$D$1355=$AA$3),Receipts!$E$5:$E$1355)","v":0},{"$f":"SUMPRODUCT(--(Receipts!$C$5:$C$1355=A56),--(Receipts!$D$5:$D$1355=$AB$3),Receipts!$E$5:$E$1355)","v":0},{"$f":"SUMPRODUCT(--(Receipts!$C$5:$C$1355=A56),--(Receipts!$D$5:$D$1355=$AC$3),Receipts!$E$5:$E$1355)","v":0},{"$f":"SUMPRODUCT(--(Receipts!$C$5:$C$1355=A56),--(Receipts!$D$5:$D$1355=$AD$3),Receipts!$E$5:$E$1355)","v":0},null,0,0,0,0]
[{"$f":"Descriptions!B58","v":0},{"$f":"Descriptions!D58","v":"All other giving/voluntary receipts"},{"$f":"Descriptions!E58","v":0},{"$f":"SUMPRODUCT(--(Receipts!$C$5:$C$1355=A57),--(Receipts!$D$5:$D$1355=$D$3),Receipts!$E$5:$E$1355)","v":0},{"$f":"SUMPRODUCT(--(Receipts!$C$5:$C$1355=A57),--(Receipts!$D$5:$D$1355=$E$3),Receipts!$E$5:$E$1355)","v":0},{"$f":"SUMPRODUCT(--(Receipts!$C$5:$C$1355=A57),--(Receipts!$D$5:$D$1355=$F$3),Receipts!$E$5:$E$1355)","v":0},{"$f":"SUMPRODUCT(--(Receipts!$C$5:$C$1355=A57),--(Receipts!$D$5:$D$1355=$G$3),Receipts!$E$5:$E$1355)","v":0},{"$f":"SUMPRODUCT(--(Receipts!$C$5:$C$1355=A57),--(Receipts!$D$5:$D$1355=$H$3),Receipts!$E$5:$E$1355)","v":0},{"$f":"SUMPRODUCT(--(Receipts!$C$5:$C$1355=A57),--(Receipts!$D$5:$D$1355=$I$3),Receipts!$E$5:$E$1355)","v":0},{"$f":"SUMPRODUCT(--(Receipts!$C$5:$C$1355=A57),--(Receipts!$D$5:$D$1355=$J$3),Receipts!$E$5:$E$1355)","v":0},{"$f":"SUMPRODUCT(--(Receipts!$C$5:$C$1355=A57),--(Receipts!$D$5:$D$1355=$K$3),Receipts!$E$5:$E$1355)","v":0},{"$f":"SUMPRODUCT(--(Receipts!$C$5:$C$1355=A57),--(Receipts!$D$5:$D$1355=$L$3),Receipts!$E$5:$E$1355)","v":0},{"$f":"SUMPRODUCT(--(Receipts!$C$5:$C$1355=A57),--(Receipts!$D$5:$D$1355=$M$3),Receipts!$E$5:$E$1355)","v":0},{"$f":"SUMPRODUCT(--(Receipts!$C$5:$C$1355=A57),--(Receipts!$D$5:$D$1355=$N$3),Receipts!$E$5:$E$1355)","v":0},{"$f":"SUMPRODUCT(--(Receipts!$C$5:$C$1355=A57),--(Receipts!$D$5:$D$1355=$O$3),Receipts!$E$5:$E$1355)","v":0},{"$f":"SUMPRODUCT(--(Receipts!$C$5:$C$1355=A57),--(Receipts!$D$5:$D$1355=$P$3),Receipts!$E$5:$E$1355)","v":0},{"$f":"SUMPRODUCT(--(Receipts!$C$5:$C$1355=A57),--(Receipts!$D$5:$D$1355=$Q$3),Receipts!$E$5:$E$1355)","v":0},{"$f":"SUMPRODUCT(--(Receipts!$C$5:$C$1355=A57),--(Receipts!$D$5:$D$1355=$R$3),Receipts!$E$5:$E$1355)","v":0},{"$f":"SUMPRODUCT(--(Receipts!$C$5:$C$1355=A57),--(Receipts!$D$5:$D$1355=$S$3),Receipts!$E$5:$E$1355)","v":0},{"$f":"SUMPRODUCT(--(Receipts!$C$5:$C$1355=A57),--(Receipts!$D$5:$D$1355=$T$3),Receipts!$E$5:$E$1355)","v":0},{"$f":"SUMPRODUCT(--(Receipts!$C$5:$C$1355=A57),--(Receipts!$D$5:$D$1355=$U$3),Receipts!$E$5:$E$1355)","v":0},{"$f":"SUMPRODUCT(--(Receipts!$C$5:$C$1355=A57),--(Receipts!$D$5:$D$1355=$V$3),Receipts!$E$5:$E$1355)","v":0},{"$f":"SUMPRODUCT(--(Receipts!$C$5:$C$1355=A57),--(Receipts!$D$5:$D$1355=$W$3),Receipts!$E$5:$E$1355)","v":0},{"$f":"SUMPRODUCT(--(Receipts!$C$5:$C$1355=A57),--(Receipts!$D$5:$D$1355=$X$3),Receipts!$E$5:$E$1355)","v":0},{"$f":"SUMPRODUCT(--(Receipts!$C$5:$C$1355=A57),--(Receipts!$D$5:$D$1355=$Y$3),Receipts!$E$5:$E$1355)","v":0},{"$f":"SUMPRODUCT(--(Receipts!$C$5:$C$1355=A57),--(Receipts!$D$5:$D$1355=$Z$3),Receipts!$E$5:$E$1355)","v":0},{"$f":"SUMPRODUCT(--(Receipts!$C$5:$C$1355=A57),--(Receipts!$D$5:$D$1355=$AA$3),Receipts!$E$5:$E$1355)","v":0},{"$f":"SUMPRODUCT(--(Receipts!$C$5:$C$1355=A57),--(Receipts!$D$5:$D$1355=$AB$3),Receipts!$E$5:$E$1355)","v":0},{"$f":"SUMPRODUCT(--(Receipts!$C$5:$C$1355=A57),--(Receipts!$D$5:$D$1355=$AC$3),Receipts!$E$5:$E$1355)","v":0},{"$f":"SUMPRODUCT(--(Receipts!$C$5:$C$1355=A57),--(Receipts!$D$5:$D$1355=$AD$3),Receipts!$E$5:$E$1355)","v":0},null,0,0,0,0]
[{"$f":"Descriptions!B59","v":0},{"$f":"Descriptions!D59","v":"All other giving/voluntary receipts"},{"$f":"Descriptions!E59","v":0},{"$f":"SUMPRODUCT(--(Receipts!$C$5:$C$1355=A58),--(Receipts!$D$5:$D$1355=$D$3),Receipts!$E$5:$E$1355)","v":0},{"$f":"SUMPRODUCT(--(Receipts!$C$5:$C$1355=A58),--(Receipts!$D$5:$D$1355=$E$3),Receipts!$E$5:$E$1355)","v":0},{"$f":"SUMPRODUCT(--(Receipts!$C$5:$C$1355=A58),--(Receipts!$D$5:$D$1355=$F$3),Receipts!$E$5:$E$1355)","v":0},{"$f":"SUMPRODUCT(--(Receipts!$C$5:$C$1355=A58),--(Receipts!$D$5:$D$1355=$G$3),Receipts!$E$5:$E$1355)","v":0},{"$f":"SUMPRODUCT(--(Receipts!$C$5:$C$1355=A58),--(Receipts!$D$5:$D$1355=$H$3),Receipts!$E$5:$E$1355)","v":0},{"$f":"SUMPRODUCT(--(Receipts!$C$5:$C$1355=A58),--(Receipts!$D$5:$D$1355=$I$3),Receipts!$E$5:$E$1355)","v":0},{"$f":"SUMPRODUCT(--(Receipts!$C$5:$C$1355=A58),--(Receipts!$D$5:$D$1355=$J$3),Receipts!$E$5:$E$1355)","v":0},{"$f":"SUMPRODUCT(--(Receipts!$C$5:$C$1355=A58),--(Receipts!$D$5:$D$1355=$K$3),Receipts!$E$5:$E$1355)","v":0},{"$f":"SUMPRODUCT(--(Receipts!$C$5:$C$1355=A58),--(Receipts!$D$5:$D$1355=$L$3),Receipts!$E$5:$E$1355)","v":0},{"$f":"SUMPRODUCT(--(Receipts!$C$5:$C$1355=A58),--(Receipts!$D$5:$D$1355=$M$3),Receipts!$E$5:$E$1355)","v":0},{"$f":"SUMPRODUCT(--(Receipts!$C$5:$C$1355=A58),--(Receipts!$D$5:$D$1355=$N$3),Receipts!$E$5:$E$1355)","v":0},{"$f":"SUMPRODUCT(--(Receipts!$C$5:$C$1355=A58),--(Receipts!$D$5:$D$1355=$O$3),Receipts!$E$5:$E$1355)","v":0},{"$f":"SUMPRODUCT(--(Receipts!$C$5:$C$1355=A58),--(Receipts!$D$5:$D$1355=$P$3),Receipts!$E$5:$E$1355)","v":0},{"$f":"SUMPRODUCT(--(Receipts!$C$5:$C$1355=A58),--(Receipts!$D$5:$D$1355=$Q$3),Receipts!$E$5:$E$1355)","v":0},{"$f":"SUMPRODUCT(--(Receipts!$C$5:$C$1355=A58),--(Receipts!$D$5:$D$1355=$R$3),Receipts!$E$5:$E$1355)","v":0},{"$f":"SUMPRODUCT(--(Receipts!$C$5:$C$1355=A58),--(Receipts!$D$5:$D$1355=$S$3),Receipts!$E$5:$E$1355)","v":0},{"$f":"SUMPRODUCT(--(Receipts!$C$5:$C$1355=A58),--(Receipts!$D$5:$D$1355=$T$3),Receipts!$E$5:$E$1355)","v":0},{"$f":"SUMPRODUCT(--(Receipts!$C$5:$C$1355=A58),--(Receipts!$D$5:$D$1355=$U$3),Receipts!$E$5:$E$1355)","v":0},{"$f":"SUMPRODUCT(--(Receipts!$C$5:$C$1355=A58),--(Receipts!$D$5:$D$1355=$V$3),Receipts!$E$5:$E$1355)","v":0},{"$f":"SUMPRODUCT(--(Receipts!$C$5:$C$1355=A58),--(Receipts!$D$5:$D$1355=$W$3),Receipts!$E$5:$E$1355)","v":0},{"$f":"SUMPRODUCT(--(Receipts!$C$5:$C$1355=A58),--(Receipts!$D$5:$D$1355=$X$3),Receipts!$E$5:$E$1355)","v":0},{"$f":"SUMPRODUCT(--(Receipts!$C$5:$C$1355=A58),--(Receipts!$D$5:$D$1355=$Y$3),Receipts!$E$5:$E$1355)","v":0},{"$f":"SUMPRODUCT(--(Receipts!$C$5:$C$1355=A58),--(Receipts!$D$5:$D$1355=$Z$3),Receipts!$E$5:$E$1355)","v":0},{"$f":"SUMPRODUCT(--(Receipts!$C$5:$C$1355=A58),--(Receipts!$D$5:$D$1355=$AA$3),Receipts!$E$5:$E$1355)","v":0},{"$f":"SUMPRODUCT(--(Receipts!$C$5:$C$1355=A58),--(Receipts!$D$5:$D$1355=$AB$3),Receipts!$E$5:$E$1355)","v":0},{"$f":"SUMPRODUCT(--(Receipts!$C$5:$C$1355=A58),--(Receipts!$D$5:$D$1355=$AC$3),Receipts!$E$5:$E$1355)","v":0},{"$f":"SUMPRODUCT(--(Receipts!$C$5:$C$1355=A58),--(Receipts!$D$5:$D$1355=$AD$3),Receipts!$E$5:$E$1355)","v":0},null,0,0,0,0]
[{"$f":"Descriptions!B60","v":0},{"$f":"Descriptions!D60","v":"All other giving/voluntary receipts"},{"$f":"Descriptions!E60","v":0},{"$f":"SUMPRODUCT(--(Receipts!$C$5:$C$1355=A59),--(Receipts!$D$5:$D$1355=$D$3),Receipts!$E$5:$E$1355)","v":0},{"$f":"SUMPRODUCT(--(Receipts!$C$5:$C$1355=A59),--(Receipts!$D$5:$D$1355=$E$3),Receipts!$E$5:$E$1355)","v":0},{"$f":"SUMPRODUCT(--(Receipts!$C$5:$C$1355=A59),--(Receipts!$D$5:$D$1355=$F$3),Receipts!$E$5:$E$1355)","v":0},{"$f":"SUMPRODUCT(--(Receipts!$C$5:$C$1355=A59),--(Receipts!$D$5:$D$1355=$G$3),Receipts!$E$5:$E$1355)","v":0},{"$f":"SUMPRODUCT(--(Receipts!$C$5:$C$1355=A59),--(Receipts!$D$5:$D$1355=$H$3),Receipts!$E$5:$E$1355)","v":0},{"$f":"SUMPRODUCT(--(Receipts!$C$5:$C$1355=A59),--(Receipts!$D$5:$D$1355=$I$3),Receipts!$E$5:$E$1355)","v":0},{"$f":"SUMPRODUCT(--(Receipts!$C$5:$C$1355=A59),--(Receipts!$D$5:$D$1355=$J$3),Receipts!$E$5:$E$1355)","v":0},{"$f":"SUMPRODUCT(--(Receipts!$C$5:$C$1355=A59),--(Receipts!$D$5:$D$1355=$K$3),Receipts!$E$5:$E$1355)","v":0},{"$f":"SUMPRODUCT(--(Receipts!$C$5:$C$1355=A59),--(Receipts!$D$5:$D$1355=$L$3),Receipts!$E$5:$E$1355)","v":0},{"$f":"SUMPRODUCT(--(Receipts!$C$5:$C$1355=A59),--(Receipts!$D$5:$D$1355=$M$3),Receipts!$E$5:$E$1355)","v":0},{"$f":"SUMPRODUCT(--(Receipts!$C$5:$C$1355=A59),--(Receipts!$D$5:$D$1355=$N$3),Receipts!$E$5:$E$1355)","v":0},{"$f":"SUMPRODUCT(--(Receipts!$C$5:$C$1355=A59),--(Receipts!$D$5:$D$1355=$O$3),Receipts!$E$5:$E$1355)","v":0},{"$f":"SUMPRODUCT(--(Receipts!$C$5:$C$1355=A59),--(Receipts!$D$5:$D$1355=$P$3),Receipts!$E$5:$E$1355)","v":0},{"$f":"SUMPRODUCT(--(Receipts!$C$5:$C$1355=A59),--(Receipts!$D$5:$D$1355=$Q$3),Receipts!$E$5:$E$1355)","v":0},{"$f":"SUMPRODUCT(--(Receipts!$C$5:$C$1355=A59),--(Receipts!$D$5:$D$1355=$R$3),Receipts!$E$5:$E$1355)","v":0},{"$f":"SUMPRODUCT(--(Receipts!$C$5:$C$1355=A59),--(Receipts!$D$5:$D$1355=$S$3),Receipts!$E$5:$E$1355)","v":0},{"$f":"SUMPRODUCT(--(Receipts!$C$5:$C$1355=A59),--(Receipts!$D$5:$D$1355=$T$3),Receipts!$E$5:$E$1355)","v":0},{"$f":"SUMPRODUCT(--(Receipts!$C$5:$C$1355=A59),--(Receipts!$D$5:$D$1355=$U$3),Receipts!$E$5:$E$1355)","v":0},{"$f":"SUMPRODUCT(--(Receipts!$C$5:$C$1355=A59),--(Receipts!$D$5:$D$1355=$V$3),Receipts!$E$5:$E$1355)","v":0},{"$f":"SUMPRODUCT(--(Receipts!$C$5:$C$1355=A59),--(Receipts!$D$5:$D$1355=$W$3),Receipts!$E$5:$E$1355)","v":0},{"$f":"SUMPRODUCT(--(Receipts!$C$5:$C$1355=A59),--(Receipts!$D$5:$D$1355=$X$3),Receipts!$E$5:$E$1355)","v":0},{"$f":"SUMPRODUCT(--(Receipts!$C$5:$C$1355=A59),--(Receipts!$D$5:$D$1355=$Y$3),Receipts!$E$5:$E$1355)","v":0},{"$f":"SUMPRODUCT(--(Receipts!$C$5:$C$1355=A59),--(Receipts!$D$5:$D$1355=$Z$3),Receipts!$E$5:$E$1355)","v":0},{"$f":"SUMPRODUCT(--(Receipts!$C$5:$C$1355=A59),--(Receipts!$D$5:$D$1355=$AA$3),Receipts!$E$5:$E$1355)","v":0},{"$f":"SUMPRODUCT(--(Receipts!$C$5:$C$1355=A59),--(Receipts!$D$5:$D$1355=$AB$3),Receipts!$E$5:$E$1355)","v":0},{"$f":"SUMPRODUCT(--(Receipts!$C$5:$C$1355=A59),--(Receipts!$D$5:$D$1355=$AC$3),Receipts!$E$5:$E$1355)","v":0},{"$f":"SUMPRODUCT(--(Receipts!$C$5:$C$1355=A59),--(Receipts!$D$5:$D$1355=$AD$3),Receipts!$E$5:$E$1355)","v":0},null,0,0,0,0]
[{"$f":"Descriptions!B61","v":0},{"$f":"Descriptions!D61","v":"All other giving/voluntary receipts"},{"$f":"Descriptions!E61","v":0},{"$f":"SUMPRODUCT(--(Receipts!$C$5:$C$1355=A60),--(Receipts!$D$5:$D$1355=$D$3),Receipts!$E$5:$E$1355)","v":0},{"$f":"SUMPRODUCT(--(Receipts!$C$5:$C$1355=A60),--(Receipts!$D$5:$D$1355=$E$3),Receipts!$E$5:$E$1355)","v":0},{"$f":"SUMPRODUCT(--(Receipts!$C$5:$C$1355=A60),--(Receipts!$D$5:$D$1355=$F$3),Receipts!$E$5:$E$1355)","v":0},{"$f":"SUMPRODUCT(--(Receipts!$C$5:$C$1355=A60),--(Receipts!$D$5:$D$1355=$G$3),Receipts!$E$5:$E$1355)","v":0},{"$f":"SUMPRODUCT(--(Receipts!$C$5:$C$1355=A60),--(Receipts!$D$5:$D$1355=$H$3),Receipts!$E$5:$E$1355)","v":0},{"$f":"SUMPRODUCT(--(Receipts!$C$5:$C$1355=A60),--(Receipts!$D$5:$D$1355=$I$3),Receipts!$E$5:$E$1355)","v":0},{"$f":"SUMPRODUCT(--(Receipts!$C$5:$C$1355=A60),--(Receipts!$D$5:$D$1355=$J$3),Receipts!$E$5:$E$1355)","v":0},{"$f":"SUMPRODUCT(--(Receipts!$C$5:$C$1355=A60),--(Receipts!$D$5:$D$1355=$K$3),Receipts!$E$5:$E$1355)","v":0},{"$f":"SUMPRODUCT(--(Receipts!$C$5:$C$1355=A60),--(Receipts!$D$5:$D$1355=$L$3),Receipts!$E$5:$E$1355)","v":0},{"$f":"SUMPRODUCT(--(Receipts!$C$5:$C$1355=A60),--(Receipts!$D$5:$D$1355=$M$3),Receipts!$E$5:$E$1355)","v":0},{"$f":"SUMPRODUCT(--(Receipts!$C$5:$C$1355=A60),--(Receipts!$D$5:$D$1355=$N$3),Receipts!$E$5:$E$1355)","v":0},{"$f":"SUMPRODUCT(--(Receipts!$C$5:$C$1355=A60),--(Receipts!$D$5:$D$1355=$O$3),Receipts!$E$5:$E$1355)","v":0},{"$f":"SUMPRODUCT(--(Receipts!$C$5:$C$1355=A60),--(Receipts!$D$5:$D$1355=$P$3),Receipts!$E$5:$E$1355)","v":0},{"$f":"SUMPRODUCT(--(Receipts!$C$5:$C$1355=A60),--(Receipts!$D$5:$D$1355=$Q$3),Receipts!$E$5:$E$1355)","v":0},{"$f":"SUMPRODUCT(--(Receipts!$C$5:$C$1355=A60),--(Receipts!$D$5:$D$1355=$R$3),Receipts!$E$5:$E$1355)","v":0},{"$f":"SUMPRODUCT(--(Receipts!$C$5:$C$1355=A60),--(Receipts!$D$5:$D$1355=$S$3),Receipts!$E$5:$E$1355)","v":0},{"$f":"SUMPRODUCT(--(Receipts!$C$5:$C$1355=A60),--(Receipts!$D$5:$D$1355=$T$3),Receipts!$E$5:$E$1355)","v":0},{"$f":"SUMPRODUCT(--(Receipts!$C$5:$C$1355=A60),--(Receipts!$D$5:$D$1355=$U$3),Receipts!$E$5:$E$1355)","v":0},{"$f":"SUMPRODUCT(--(Receipts!$C$5:$C$1355=A60),--(Receipts!$D$5:$D$1355=$V$3),Receipts!$E$5:$E$1355)","v":0},{"$f":"SUMPRODUCT(--(Receipts!$C$5:$C$1355=A60),--(Receipts!$D$5:$D$1355=$W$3),Receipts!$E$5:$E$1355)","v":0},{"$f":"SUMPRODUCT(--(Receipts!$C$5:$C$1355=A60),--(Receipts!$D$5:$D$1355=$X$3),Receipts!$E$5:$E$1355)","v":0},{"$f":"SUMPRODUCT(--(Receipts!$C$5:$C$1355=A60),--(Receipts!$D$5:$D$1355=$Y$3),Receipts!$E$5:$E$1355)","v":0},{"$f":"SUMPRODUCT(--(Receipts!$C$5:$C$1355=A60),--(Receipts!$D$5:$D$1355=$Z$3),Receipts!$E$5:$E$1355)","v":0},{"$f":"SUMPRODUCT(--(Receipts!$C$5:$C$1355=A60),--(Receipts!$D$5:$D$1355=$AA$3),Receipts!$E$5:$E$1355)","v":0},{"$f":"SUMPRODUCT(--(Receipts!$C$5:$C$1355=A60),--(Receipts!$D$5:$D$1355=$AB$3),Receipts!$E$5:$E$1355)","v":0},{"$f":"SUMPRODUCT(--(Receipts!$C$5:$C$1355=A60),--(Receipts!$D$5:$D$1355=$AC$3),Receipts!$E$5:$E$1355)","v":0},{"$f":"SUMPRODUCT(--(Receipts!$C$5:$C$1355=A60),--(Receipts!$D$5:$D$1355=$AD$3),Receipts!$E$5:$E$1355)","v":0},null,0,0,0,0]
[{"$f":"Descriptions!B62","v":0},{"$f":"Descriptions!D62","v":"All other giving/voluntary receipts"},{"$f":"Descriptions!E62","v":0},{"$f":"SUMPRODUCT(--(Receipts!$C$5:$C$1355=A61),--(Receipts!$D$5:$D$1355=$D$3),Receipts!$E$5:$E$1355)","v":0},{"$f":"SUMPRODUCT(--(Receipts!$C$5:$C$1355=A61),--(Receipts!$D$5:$D$1355=$E$3),Receipts!$E$5:$E$1355)","v":0},{"$f":"SUMPRODUCT(--(Receipts!$C$5:$C$1355=A61),--(Receipts!$D$5:$D$1355=$F$3),Receipts!$E$5:$E$1355)","v":0},{"$f":"SUMPRODUCT(--(Receipts!$C$5:$C$1355=A61),--(Receipts!$D$5:$D$1355=$G$3),Receipts!$E$5:$E$1355)","v":0},{"$f":"SUMPRODUCT(--(Receipts!$C$5:$C$1355=A61),--(Receipts!$D$5:$D$1355=$H$3),Receipts!$E$5:$E$1355)","v":0},{"$f":"SUMPRODUCT(--(Receipts!$C$5:$C$1355=A61),--(Receipts!$D$5:$D$1355=$I$3),Receipts!$E$5:$E$1355)","v":0},{"$f":"SUMPRODUCT(--(Receipts!$C$5:$C$1355=A61),--(Receipts!$D$5:$D$1355=$J$3),Receipts!$E$5:$E$1355)","v":0},{"$f":"SUMPRODUCT(--(Receipts!$C$5:$C$1355=A61),--(Receipts!$D$5:$D$1355=$K$3),Receipts!$E$5:$E$1355)","v":0},{"$f":"SUMPRODUCT(--(Receipts!$C$5:$C$1355=A61),--(Receipts!$D$5:$D$1355=$L$3),Receipts!$E$5:$E$1355)","v":0},{"$f":"SUMPRODUCT(--(Receipts!$C$5:$C$1355=A61),--(Receipts!$D$5:$D$1355=$M$3),Receipts!$E$5:$E$1355)","v":0},{"$f":"SUMPRODUCT(--(Receipts!$C$5:$C$1355=A61),--(Receipts!$D$5:$D$1355=$N$3),Receipts!$E$5:$E$1355)","v":0},{"$f":"SUMPRODUCT(--(Receipts!$C$5:$C$1355=A61),--(Receipts!$D$5:$D$1355=$O$3),Receipts!$E$5:$E$1355)","v":0},{"$f":"SUMPRODUCT(--(Receipts!$C$5:$C$1355=A61),--(Receipts!$D$5:$D$1355=$P$3),Receipts!$E$5:$E$1355)","v":0},{"$f":"SUMPRODUCT(--(Receipts!$C$5:$C$1355=A61),--(Receipts!$D$5:$D$1355=$Q$3),Receipts!$E$5:$E$1355)","v":0},{"$f":"SUMPRODUCT(--(Receipts!$C$5:$C$1355=A61),--(Receipts!$D$5:$D$1355=$R$3),Receipts!$E$5:$E$1355)","v":0},{"$f":"SUMPRODUCT(--(Receipts!$C$5:$C$1355=A61),--(Receipts!$D$5:$D$1355=$S$3),Receipts!$E$5:$E$1355)","v":0},{"$f":"SUMPRODUCT(--(Receipts!$C$5:$C$1355=A61),--(Receipts!$D$5:$D$1355=$T$3),Receipts!$E$5:$E$1355)","v":0},{"$f":"SUMPRODUCT(--(Receipts!$C$5:$C$1355=A61),--(Receipts!$D$5:$D$1355=$U$3),Receipts!$E$5:$E$1355)","v":0},{"$f":"SUMPRODUCT(--(Receipts!$C$5:$C$1355=A61),--(Receipts!$D$5:$D$1355=$V$3),Receipts!$E$5:$E$1355)","v":0},{"$f":"SUMPRODUCT(--(Receipts!$C$5:$C$1355=A61),--(Receipts!$D$5:$D$1355=$W$3),Receipts!$E$5:$E$1355)","v":0},{"$f":"SUMPRODUCT(--(Receipts!$C$5:$C$1355=A61),--(Receipts!$D$5:$D$1355=$X$3),Receipts!$E$5:$E$1355)","v":0},{"$f":"SUMPRODUCT(--(Receipts!$C$5:$C$1355=A61),--(Receipts!$D$5:$D$1355=$Y$3),Receipts!$E$5:$E$1355)","v":0},{"$f":"SUMPRODUCT(--(Receipts!$C$5:$C$1355=A61),--(Receipts!$D$5:$D$1355=$Z$3),Receipts!$E$5:$E$1355)","v":0},{"$f":"SUMPRODUCT(--(Receipts!$C$5:$C$1355=A61),--(Receipts!$D$5:$D$1355=$AA$3),Receipts!$E$5:$E$1355)","v":0},{"$f":"SUMPRODUCT(--(Receipts!$C$5:$C$1355=A61),--(Receipts!$D$5:$D$1355=$AB$3),Receipts!$E$5:$E$1355)","v":0},{"$f":"SUMPRODUCT(--(Receipts!$C$5:$C$1355=A61),--(Receipts!$D$5:$D$1355=$AC$3),Receipts!$E$5:$E$1355)","v":0},{"$f":"SUMPRODUCT(--(Receipts!$C$5:$C$1355=A61),--(Receipts!$D$5:$D$1355=$AD$3),Receipts!$E$5:$E$1355)","v":0},null,0,0,0,0]
[{"$f":"Descriptions!B63","v":0},{"$f":"Descriptions!D63","v":"All other giving/voluntary receipts"},{"$f":"Descriptions!E63","v":0},{"$f":"SUMPRODUCT(--(Receipts!$C$5:$C$1355=A62),--(Receipts!$D$5:$D$1355=$D$3),Receipts!$E$5:$E$1355)","v":0},{"$f":"SUMPRODUCT(--(Receipts!$C$5:$C$1355=A62),--(Receipts!$D$5:$D$1355=$E$3),Receipts!$E$5:$E$1355)","v":0},{"$f":"SUMPRODUCT(--(Receipts!$C$5:$C$1355=A62),--(Receipts!$D$5:$D$1355=$F$3),Receipts!$E$5:$E$1355)","v":0},{"$f":"SUMPRODUCT(--(Receipts!$C$5:$C$1355=A62),--(Receipts!$D$5:$D$1355=$G$3),Receipts!$E$5:$E$1355)","v":0},{"$f":"SUMPRODUCT(--(Receipts!$C$5:$C$1355=A62),--(Receipts!$D$5:$D$1355=$H$3),Receipts!$E$5:$E$1355)","v":0},{"$f":"SUMPRODUCT(--(Receipts!$C$5:$C$1355=A62),--(Receipts!$D$5:$D$1355=$I$3),Receipts!$E$5:$E$1355)","v":0},{"$f":"SUMPRODUCT(--(Receipts!$C$5:$C$1355=A62),--(Receipts!$D$5:$D$1355=$J$3),Receipts!$E$5:$E$1355)","v":0},{"$f":"SUMPRODUCT(--(Receipts!$C$5:$C$1355=A62),--(Receipts!$D$5:$D$1355=$K$3),Receipts!$E$5:$E$1355)","v":0},{"$f":"SUMPRODUCT(--(Receipts!$C$5:$C$1355=A62),--(Receipts!$D$5:$D$1355=$L$3),Receipts!$E$5:$E$1355)","v":0},{"$f":"SUMPRODUCT(--(Receipts!$C$5:$C$1355=A62),--(Receipts!$D$5:$D$1355=$M$3),Receipts!$E$5:$E$1355)","v":0},{"$f":"SUMPRODUCT(--(Receipts!$C$5:$C$1355=A62),--(Receipts!$D$5:$D$1355=$N$3),Receipts!$E$5:$E$1355)","v":0},{"$f":"SUMPRODUCT(--(Receipts!$C$5:$C$1355=A62),--(Receipts!$D$5:$D$1355=$O$3),Receipts!$E$5:$E$1355)","v":0},{"$f":"SUMPRODUCT(--(Receipts!$C$5:$C$1355=A62),--(Receipts!$D$5:$D$1355=$P$3),Receipts!$E$5:$E$1355)","v":0},{"$f":"SUMPRODUCT(--(Receipts!$C$5:$C$1355=A62),--(Receipts!$D$5:$D$1355=$Q$3),Receipts!$E$5:$E$1355)","v":0},{"$f":"SUMPRODUCT(--(Receipts!$C$5:$C$1355=A62),--(Receipts!$D$5:$D$1355=$R$3),Receipts!$E$5:$E$1355)","v":0},{"$f":"SUMPRODUCT(--(Receipts!$C$5:$C$1355=A62),--(Receipts!$D$5:$D$1355=$S$3),Receipts!$E$5:$E$1355)","v":0},{"$f":"SUMPRODUCT(--(Receipts!$C$5:$C$1355=A62),--(Receipts!$D$5:$D$1355=$T$3),Receipts!$E$5:$E$1355)","v":0},{"$f":"SUMPRODUCT(--(Receipts!$C$5:$C$1355=A62),--(Receipts!$D$5:$D$1355=$U$3),Receipts!$E$5:$E$1355)","v":0},{"$f":"SUMPRODUCT(--(Receipts!$C$5:$C$1355=A62),--(Receipts!$D$5:$D$1355=$V$3),Receipts!$E$5:$E$1355)","v":0},{"$f":"SUMPRODUCT(--(Receipts!$C$5:$C$1355=A62),--(Receipts!$D$5:$D$1355=$W$3),Receipts!$E$5:$E$1355)","v":0},{"$f":"SUMPRODUCT(--(Receipts!$C$5:$C$1355=A62),--(Receipts!$D$5:$D$1355=$X$3),Receipts!$E$5:$E$1355)","v":0},{"$f":"SUMPRODUCT(--(Receipts!$C$5:$C$1355=A62),--(Receipts!$D$5:$D$1355=$Y$3),Receipts!$E$5:$E$1355)","v":0},{"$f":"SUMPRODUCT(--(Receipts!$C$5:$C$1355=A62),--(Receipts!$D$5:$D$1355=$Z$3),Receipts!$E$5:$E$1355)","v":0},{"$f":"SUMPRODUCT(--(Receipts!$C$5:$C$1355=A62),--(Receipts!$D$5:$D$1355=$AA$3),Receipts!$E$5:$E$1355)","v":0},{"$f":"SUMPRODUCT(--(Receipts!$C$5:$C$1355=A62),--(Receipts!$D$5:$D$1355=$AB$3),Receipts!$E$5:$E$1355)","v":0},{"$f":"SUMPRODUCT(--(Receipts!$C$5:$C$1355=A62),--(Receipts!$D$5:$D$1355=$AC$3),Receipts!$E$5:$E$1355)","v":0},{"$f":"SUMPRODUCT(--(Receipts!$C$5:$C$1355=A62),--(Receipts!$D$5:$D$1355=$AD$3),Receipts!$E$5:$E$1355)","v":0},null,0,0,0,0]
[{"$f":"Descriptions!B64","v":0},{"$f":"Descriptions!D64","v":"All other giving/voluntary receipts"},{"$f":"Descriptions!E64","v":0},{"$f":"SUMPRODUCT(--(Receipts!$C$5:$C$1355=A63),--(Receipts!$D$5:$D$1355=$D$3),Receipts!$E$5:$E$1355)","v":0},{"$f":"SUMPRODUCT(--(Receipts!$C$5:$C$1355=A63),--(Receipts!$D$5:$D$1355=$E$3),Receipts!$E$5:$E$1355)","v":0},{"$f":"SUMPRODUCT(--(Receipts!$C$5:$C$1355=A63),--(Receipts!$D$5:$D$1355=$F$3),Receipts!$E$5:$E$1355)","v":0},{"$f":"SUMPRODUCT(--(Receipts!$C$5:$C$1355=A63),--(Receipts!$D$5:$D$1355=$G$3),Receipts!$E$5:$E$1355)","v":0},{"$f":"SUMPRODUCT(--(Receipts!$C$5:$C$1355=A63),--(Receipts!$D$5:$D$1355=$H$3),Receipts!$E$5:$E$1355)","v":0},{"$f":"SUMPRODUCT(--(Receipts!$C$5:$C$1355=A63),--(Receipts!$D$5:$D$1355=$I$3),Receipts!$E$5:$E$1355)","v":0},{"$f":"SUMPRODUCT(--(Receipts!$C$5:$C$1355=A63),--(Receipts!$D$5:$D$1355=$J$3),Receipts!$E$5:$E$1355)","v":0},{"$f":"SUMPRODUCT(--(Receipts!$C$5:$C$1355=A63),--(Receipts!$D$5:$D$1355=$K$3),Receipts!$E$5:$E$1355)","v":0},{"$f":"SUMPRODUCT(--(Receipts!$C$5:$C$1355=A63),--(Receipts!$D$5:$D$1355=$L$3),Receipts!$E$5:$E$1355)","v":0},{"$f":"SUMPRODUCT(--(Receipts!$C$5:$C$1355=A63),--(Receipts!$D$5:$D$1355=$M$3),Receipts!$E$5:$E$1355)","v":0},{"$f":"SUMPRODUCT(--(Receipts!$C$5:$C$1355=A63),--(Receipts!$D$5:$D$1355=$N$3),Receipts!$E$5:$E$1355)","v":0},{"$f":"SUMPRODUCT(--(Receipts!$C$5:$C$1355=A63),--(Receipts!$D$5:$D$1355=$O$3),Receipts!$E$5:$E$1355)","v":0},{"$f":"SUMPRODUCT(--(Receipts!$C$5:$C$1355=A63),--(Receipts!$D$5:$D$1355=$P$3),Receipts!$E$5:$E$1355)","v":0},{"$f":"SUMPRODUCT(--(Receipts!$C$5:$C$1355=A63),--(Receipts!$D$5:$D$1355=$Q$3),Receipts!$E$5:$E$1355)","v":0},{"$f":"SUMPRODUCT(--(Receipts!$C$5:$C$1355=A63),--(Receipts!$D$5:$D$1355=$R$3),Receipts!$E$5:$E$1355)","v":0},{"$f":"SUMPRODUCT(--(Receipts!$C$5:$C$1355=A63),--(Receipts!$D$5:$D$1355=$S$3),Receipts!$E$5:$E$1355)","v":0},{"$f":"SUMPRODUCT(--(Receipts!$C$5:$C$1355=A63),--(Receipts!$D$5:$D$1355=$T$3),Receipts!$E$5:$E$1355)","v":0},{"$f":"SUMPRODUCT(--(Receipts!$C$5:$C$1355=A63),--(Receipts!$D$5:$D$1355=$U$3),Receipts!$E$5:$E$1355)","v":0},{"$f":"SUMPRODUCT(--(Receipts!$C$5:$C$1355=A63),--(Receipts!$D$5:$D$1355=$V$3),Receipts!$E$5:$E$1355)","v":0},{"$f":"SUMPRODUCT(--(Receipts!$C$5:$C$1355=A63),--(Receipts!$D$5:$D$1355=$W$3),Receipts!$E$5:$E$1355)","v":0},{"$f":"SUMPRODUCT(--(Receipts!$C$5:$C$1355=A63),--(Receipts!$D$5:$D$1355=$X$3),Receipts!$E$5:$E$1355)","v":0},{"$f":"SUMPRODUCT(--(Receipts!$C$5:$C$1355=A63),--(Receipts!$D$5:$D$1355=$Y$3),Receipts!$E$5:$E$1355)","v":0},{"$f":"SUMPRODUCT(--(Receipts!$C$5:$C$1355=A63),--(Receipts!$D$5:$D$1355=$Z$3),Receipts!$E$5:$E$1355)","v":0},{"$f":"SUMPRODUCT(--(Receipts!$C$5:$C$1355=A63),--(Receipts!$D$5:$D$1355=$AA$3),Receipts!$E$5:$E$1355)","v":0},{"$f":"SUMPRODUCT(--(Receipts!$C$5:$C$1355=A63),--(Receipts!$D$5:$D$1355=$AB$3),Receipts!$E$5:$E$1355)","v":0},{"$f":"SUMPRODUCT(--(Receipts!$C$5:$C$1355=A63),--(Receipts!$D$5:$D$1355=$AC$3),Receipts!$E$5:$E$1355)","v":0},{"$f":"SUMPRODUCT(--(Receipts!$C$5:$C$1355=A63),--(Receipts!$D$5:$D$1355=$AD$3),Receipts!$E$5:$E$1355)","v":0},null,0,0,0,0]
[{"$f":"Descriptions!B65","v":0},{"$f":"Descriptions!D65","v":"All other giving/voluntary receipts"},{"$f":"Descriptions!E65","v":0},{"$f":"SUMPRODUCT(--(Receipts!$C$5:$C$1355=A64),--(Receipts!$D$5:$D$1355=$D$3),Receipts!$E$5:$E$1355)","v":0},{"$f":"SUMPRODUCT(--(Receipts!$C$5:$C$1355=A64),--(Receipts!$D$5:$D$1355=$E$3),Receipts!$E$5:$E$1355)","v":0},{"$f":"SUMPRODUCT(--(Receipts!$C$5:$C$1355=A64),--(Receipts!$D$5:$D$1355=$F$3),Receipts!$E$5:$E$1355)","v":0},{"$f":"SUMPRODUCT(--(Receipts!$C$5:$C$1355=A64),--(Receipts!$D$5:$D$1355=$G$3),Receipts!$E$5:$E$1355)","v":0},{"$f":"SUMPRODUCT(--(Receipts!$C$5:$C$1355=A64),--(Receipts!$D$5:$D$1355=$H$3),Receipts!$E$5:$E$1355)","v":0},{"$f":"SUMPRODUCT(--(Receipts!$C$5:$C$1355=A64),--(Receipts!$D$5:$D$1355=$I$3),Receipts!$E$5:$E$1355)","v":0},{"$f":"SUMPRODUCT(--(Receipts!$C$5:$C$1355=A64),--(Receipts!$D$5:$D$1355=$J$3),Receipts!$E$5:$E$1355)","v":0},{"$f":"SUMPRODUCT(--(Receipts!$C$5:$C$1355=A64),--(Receipts!$D$5:$D$1355=$K$3),Receipts!$E$5:$E$1355)","v":0},{"$f":"SUMPRODUCT(--(Receipts!$C$5:$C$1355=A64),--(Receipts!$D$5:$D$1355=$L$3),Receipts!$E$5:$E$1355)","v":0},{"$f":"SUMPRODUCT(--(Receipts!$C$5:$C$1355=A64),--(Receipts!$D$5:$D$1355=$M$3),Receipts!$E$5:$E$1355)","v":0},{"$f":"SUMPRODUCT(--(Receipts!$C$5:$C$1355=A64),--(Receipts!$D$5:$D$1355=$N$3),Receipts!$E$5:$E$1355)","v":0},{"$f":"SUMPRODUCT(--(Receipts!$C$5:$C$1355=A64),--(Receipts!$D$5:$D$1355=$O$3),Receipts!$E$5:$E$1355)","v":0},{"$f":"SUMPRODUCT(--(Receipts!$C$5:$C$1355=A64),--(Receipts!$D$5:$D$1355=$P$3),Receipts!$E$5:$E$1355)","v":0},{"$f":"SUMPRODUCT(--(Receipts!$C$5:$C$1355=A64),--(Receipts!$D$5:$D$1355=$Q$3),Receipts!$E$5:$E$1355)","v":0},{"$f":"SUMPRODUCT(--(Receipts!$C$5:$C$1355=A64),--(Receipts!$D$5:$D$1355=$R$3),Receipts!$E$5:$E$1355)","v":0},{"$f":"SUMPRODUCT(--(Receipts!$C$5:$C$1355=A64),--(Receipts!$D$5:$D$1355=$S$3),Receipts!$E$5:$E$1355)","v":0},{"$f":"SUMPRODUCT(--(Receipts!$C$5:$C$1355=A64),--(Receipts!$D$5:$D$1355=$T$3),Receipts!$E$5:$E$1355)","v":0},{"$f":"SUMPRODUCT(--(Receipts!$C$5:$C$1355=A64),--(Receipts!$D$5:$D$1355=$U$3),Receipts!$E$5:$E$1355)","v":0},{"$f":"SUMPRODUCT(--(Receipts!$C$5:$C$1355=A64),--(Receipts!$D$5:$D$1355=$V$3),Receipts!$E$5:$E$1355)","v":0},{"$f":"SUMPRODUCT(--(Receipts!$C$5:$C$1355=A64),--(Receipts!$D$5:$D$1355=$W$3),Receipts!$E$5:$E$1355)","v":0},{"$f":"SUMPRODUCT(--(Receipts!$C$5:$C$1355=A64),--(Receipts!$D$5:$D$1355=$X$3),Receipts!$E$5:$E$1355)","v":0},{"$f":"SUMPRODUCT(--(Receipts!$C$5:$C$1355=A64),--(Receipts!$D$5:$D$1355=$Y$3),Receipts!$E$5:$E$1355)","v":0},{"$f":"SUMPRODUCT(--(Receipts!$C$5:$C$1355=A64),--(Receipts!$D$5:$D$1355=$Z$3),Receipts!$E$5:$E$1355)","v":0},{"$f":"SUMPRODUCT(--(Receipts!$C$5:$C$1355=A64),--(Receipts!$D$5:$D$1355=$AA$3),Receipts!$E$5:$E$1355)","v":0},{"$f":"SUMPRODUCT(--(Receipts!$C$5:$C$1355=A64),--(Receipts!$D$5:$D$1355=$AB$3),Receipts!$E$5:$E$1355)","v":0},{"$f":"SUMPRODUCT(--(Receipts!$C$5:$C$1355=A64),--(Receipts!$D$5:$D$1355=$AC$3),Receipts!$E$5:$E$1355)","v":0},{"$f":"SUMPRODUCT(--(Receipts!$C$5:$C$1355=A64),--(Receipts!$D$5:$D$1355=$AD$3),Receipts!$E$5:$E$1355)","v":0},null,0,0,0,0]
[{"$f":"Descriptions!B66","v":0},{"$f":"Descriptions!D66","v":"All other giving/voluntary receipts"},{"$f":"Descriptions!E66","v":0},{"$f":"SUMPRODUCT(--(Receipts!$C$5:$C$1355=A65),--(Receipts!$D$5:$D$1355=$D$3),Receipts!$E$5:$E$1355)","v":0},{"$f":"SUMPRODUCT(--(Receipts!$C$5:$C$1355=A65),--(Receipts!$D$5:$D$1355=$E$3),Receipts!$E$5:$E$1355)","v":0},{"$f":"SUMPRODUCT(--(Receipts!$C$5:$C$1355=A65),--(Receipts!$D$5:$D$1355=$F$3),Receipts!$E$5:$E$1355)","v":0},{"$f":"SUMPRODUCT(--(Receipts!$C$5:$C$1355=A65),--(Receipts!$D$5:$D$1355=$G$3),Receipts!$E$5:$E$1355)","v":0},{"$f":"SUMPRODUCT(--(Receipts!$C$5:$C$1355=A65),--(Receipts!$D$5:$D$1355=$H$3),Receipts!$E$5:$E$1355)","v":0},{"$f":"SUMPRODUCT(--(Receipts!$C$5:$C$1355=A65),--(Receipts!$D$5:$D$1355=$I$3),Receipts!$E$5:$E$1355)","v":0},{"$f":"SUMPRODUCT(--(Receipts!$C$5:$C$1355=A65),--(Receipts!$D$5:$D$1355=$J$3),Receipts!$E$5:$E$1355)","v":0},{"$f":"SUMPRODUCT(--(Receipts!$C$5:$C$1355=A65),--(Receipts!$D$5:$D$1355=$K$3),Receipts!$E$5:$E$1355)","v":0},{"$f":"SUMPRODUCT(--(Receipts!$C$5:$C$1355=A65),--(Receipts!$D$5:$D$1355=$L$3),Receipts!$E$5:$E$1355)","v":0},{"$f":"SUMPRODUCT(--(Receipts!$C$5:$C$1355=A65),--(Receipts!$D$5:$D$1355=$M$3),Receipts!$E$5:$E$1355)","v":0},{"$f":"SUMPRODUCT(--(Receipts!$C$5:$C$1355=A65),--(Receipts!$D$5:$D$1355=$N$3),Receipts!$E$5:$E$1355)","v":0},{"$f":"SUMPRODUCT(--(Receipts!$C$5:$C$1355=A65),--(Receipts!$D$5:$D$1355=$O$3),Receipts!$E$5:$E$1355)","v":0},{"$f":"SUMPRODUCT(--(Receipts!$C$5:$C$1355=A65),--(Receipts!$D$5:$D$1355=$P$3),Receipts!$E$5:$E$1355)","v":0},{"$f":"SUMPRODUCT(--(Receipts!$C$5:$C$1355=A65),--(Receipts!$D$5:$D$1355=$Q$3),Receipts!$E$5:$E$1355)","v":0},{"$f":"SUMPRODUCT(--(Receipts!$C$5:$C$1355=A65),--(Receipts!$D$5:$D$1355=$R$3),Receipts!$E$5:$E$1355)","v":0},{"$f":"SUMPRODUCT(--(Receipts!$C$5:$C$1355=A65),--(Receipts!$D$5:$D$1355=$S$3),Receipts!$E$5:$E$1355)","v":0},{"$f":"SUMPRODUCT(--(Receipts!$C$5:$C$1355=A65),--(Receipts!$D$5:$D$1355=$T$3),Receipts!$E$5:$E$1355)","v":0},{"$f":"SUMPRODUCT(--(Receipts!$C$5:$C$1355=A65),--(Receipts!$D$5:$D$1355=$U$3),Receipts!$E$5:$E$1355)","v":0},{"$f":"SUMPRODUCT(--(Receipts!$C$5:$C$1355=A65),--(Receipts!$D$5:$D$1355=$V$3),Receipts!$E$5:$E$1355)","v":0},{"$f":"SUMPRODUCT(--(Receipts!$C$5:$C$1355=A65),--(Receipts!$D$5:$D$1355=$W$3),Receipts!$E$5:$E$1355)","v":0},{"$f":"SUMPRODUCT(--(Receipts!$C$5:$C$1355=A65),--(Receipts!$D$5:$D$1355=$X$3),Receipts!$E$5:$E$1355)","v":0},{"$f":"SUMPRODUCT(--(Receipts!$C$5:$C$1355=A65),--(Receipts!$D$5:$D$1355=$Y$3),Receipts!$E$5:$E$1355)","v":0},{"$f":"SUMPRODUCT(--(Receipts!$C$5:$C$1355=A65),--(Receipts!$D$5:$D$1355=$Z$3),Receipts!$E$5:$E$1355)","v":0},{"$f":"SUMPRODUCT(--(Receipts!$C$5:$C$1355=A65),--(Receipts!$D$5:$D$1355=$AA$3),Receipts!$E$5:$E$1355)","v":0},{"$f":"SUMPRODUCT(--(Receipts!$C$5:$C$1355=A65),--(Receipts!$D$5:$D$1355=$AB$3),Receipts!$E$5:$E$1355)","v":0},{"$f":"SUMPRODUCT(--(Receipts!$C$5:$C$1355=A65),--(Receipts!$D$5:$D$1355=$AC$3),Receipts!$E$5:$E$1355)","v":0},{"$f":"SUMPRODUCT(--(Receipts!$C$5:$C$1355=A65),--(Receipts!$D$5:$D$1355=$AD$3),Receipts!$E$5:$E$1355)","v":0},null,0,0,0,0]
[{"$f":"Descriptions!B67","v":0},{"$f":"Descriptions!D67","v":"All other giving/voluntary receipts"},{"$f":"Descriptions!E67","v":0},{"$f":"SUMPRODUCT(--(Receipts!$C$5:$C$1355=A66),--(Receipts!$D$5:$D$1355=$D$3),Receipts!$E$5:$E$1355)","v":0},{"$f":"SUMPRODUCT(--(Receipts!$C$5:$C$1355=A66),--(Receipts!$D$5:$D$1355=$E$3),Receipts!$E$5:$E$1355)","v":0},{"$f":"SUMPRODUCT(--(Receipts!$C$5:$C$1355=A66),--(Receipts!$D$5:$D$1355=$F$3),Receipts!$E$5:$E$1355)","v":0},{"$f":"SUMPRODUCT(--(Receipts!$C$5:$C$1355=A66),--(Receipts!$D$5:$D$1355=$G$3),Receipts!$E$5:$E$1355)","v":0},{"$f":"SUMPRODUCT(--(Receipts!$C$5:$C$1355=A66),--(Receipts!$D$5:$D$1355=$H$3),Receipts!$E$5:$E$1355)","v":0},{"$f":"SUMPRODUCT(--(Receipts!$C$5:$C$1355=A66),--(Receipts!$D$5:$D$1355=$I$3),Receipts!$E$5:$E$1355)","v":0},{"$f":"SUMPRODUCT(--(Receipts!$C$5:$C$1355=A66),--(Receipts!$D$5:$D$1355=$J$3),Receipts!$E$5:$E$1355)","v":0},{"$f":"SUMPRODUCT(--(Receipts!$C$5:$C$1355=A66),--(Receipts!$D$5:$D$1355=$K$3),Receipts!$E$5:$E$1355)","v":0},{"$f":"SUMPRODUCT(--(Receipts!$C$5:$C$1355=A66),--(Receipts!$D$5:$D$1355=$L$3),Receipts!$E$5:$E$1355)","v":0},{"$f":"SUMPRODUCT(--(Receipts!$C$5:$C$1355=A66),--(Receipts!$D$5:$D$1355=$M$3),Receipts!$E$5:$E$1355)","v":0},{"$f":"SUMPRODUCT(--(Receipts!$C$5:$C$1355=A66),--(Receipts!$D$5:$D$1355=$N$3),Receipts!$E$5:$E$1355)","v":0},{"$f":"SUMPRODUCT(--(Receipts!$C$5:$C$1355=A66),--(Receipts!$D$5:$D$1355=$O$3),Receipts!$E$5:$E$1355)","v":0},{"$f":"SUMPRODUCT(--(Receipts!$C$5:$C$1355=A66),--(Receipts!$D$5:$D$1355=$P$3),Receipts!$E$5:$E$1355)","v":0},{"$f":"SUMPRODUCT(--(Receipts!$C$5:$C$1355=A66),--(Receipts!$D$5:$D$1355=$Q$3),Receipts!$E$5:$E$1355)","v":0},{"$f":"SUMPRODUCT(--(Receipts!$C$5:$C$1355=A66),--(Receipts!$D$5:$D$1355=$R$3),Receipts!$E$5:$E$1355)","v":0},{"$f":"SUMPRODUCT(--(Receipts!$C$5:$C$1355=A66),--(Receipts!$D$5:$D$1355=$S$3),Receipts!$E$5:$E$1355)","v":0},{"$f":"SUMPRODUCT(--(Receipts!$C$5:$C$1355=A66),--(Receipts!$D$5:$D$1355=$T$3),Receipts!$E$5:$E$1355)","v":0},{"$f":"SUMPRODUCT(--(Receipts!$C$5:$C$1355=A66),--(Receipts!$D$5:$D$1355=$U$3),Receipts!$E$5:$E$1355)","v":0},{"$f":"SUMPRODUCT(--(Receipts!$C$5:$C$1355=A66),--(Receipts!$D$5:$D$1355=$V$3),Receipts!$E$5:$E$1355)","v":0},{"$f":"SUMPRODUCT(--(Receipts!$C$5:$C$1355=A66),--(Receipts!$D$5:$D$1355=$W$3),Receipts!$E$5:$E$1355)","v":0},{"$f":"SUMPRODUCT(--(Receipts!$C$5:$C$1355=A66),--(Receipts!$D$5:$D$1355=$X$3),Receipts!$E$5:$E$1355)","v":0},{"$f":"SUMPRODUCT(--(Receipts!$C$5:$C$1355=A66),--(Receipts!$D$5:$D$1355=$Y$3),Receipts!$E$5:$E$1355)","v":0},{"$f":"SUMPRODUCT(--(Receipts!$C$5:$C$1355=A66),--(Receipts!$D$5:$D$1355=$Z$3),Receipts!$E$5:$E$1355)","v":0},{"$f":"SUMPRODUCT(--(Receipts!$C$5:$C$1355=A66),--(Receipts!$D$5:$D$1355=$AA$3),Receipts!$E$5:$E$1355)","v":0},{"$f":"SUMPRODUCT(--(Receipts!$C$5:$C$1355=A66),--(Receipts!$D$5:$D$1355=$AB$3),Receipts!$E$5:$E$1355)","v":0},{"$f":"SUMPRODUCT(--(Receipts!$C$5:$C$1355=A66),--(Receipts!$D$5:$D$1355=$AC$3),Receipts!$E$5:$E$1355)","v":0},{"$f":"SUMPRODUCT(--(Receipts!$C$5:$C$1355=A66),--(Receipts!$D$5:$D$1355=$AD$3),Receipts!$E$5:$E$1355)","v":0},null,0,0,0,0]
[{"$f":"Descriptions!B68","v":0},{"$f":"Descriptions!D68","v":"All other giving/voluntary receipts"},{"$f":"Descriptions!E68","v":0},{"$f":"SUMPRODUCT(--(Receipts!$C$5:$C$1355=A67),--(Receipts!$D$5:$D$1355=$D$3),Receipts!$E$5:$E$1355)","v":0},{"$f":"SUMPRODUCT(--(Receipts!$C$5:$C$1355=A67),--(Receipts!$D$5:$D$1355=$E$3),Receipts!$E$5:$E$1355)","v":0},{"$f":"SUMPRODUCT(--(Receipts!$C$5:$C$1355=A67),--(Receipts!$D$5:$D$1355=$F$3),Receipts!$E$5:$E$1355)","v":0},{"$f":"SUMPRODUCT(--(Receipts!$C$5:$C$1355=A67),--(Receipts!$D$5:$D$1355=$G$3),Receipts!$E$5:$E$1355)","v":0},{"$f":"SUMPRODUCT(--(Receipts!$C$5:$C$1355=A67),--(Receipts!$D$5:$D$1355=$H$3),Receipts!$E$5:$E$1355)","v":0},{"$f":"SUMPRODUCT(--(Receipts!$C$5:$C$1355=A67),--(Receipts!$D$5:$D$1355=$I$3),Receipts!$E$5:$E$1355)","v":0},{"$f":"SUMPRODUCT(--(Receipts!$C$5:$C$1355=A67),--(Receipts!$D$5:$D$1355=$J$3),Receipts!$E$5:$E$1355)","v":0},{"$f":"SUMPRODUCT(--(Receipts!$C$5:$C$1355=A67),--(Receipts!$D$5:$D$1355=$K$3),Receipts!$E$5:$E$1355)","v":0},{"$f":"SUMPRODUCT(--(Receipts!$C$5:$C$1355=A67),--(Receipts!$D$5:$D$1355=$L$3),Receipts!$E$5:$E$1355)","v":0},{"$f":"SUMPRODUCT(--(Receipts!$C$5:$C$1355=A67),--(Receipts!$D$5:$D$1355=$M$3),Receipts!$E$5:$E$1355)","v":0},{"$f":"SUMPRODUCT(--(Receipts!$C$5:$C$1355=A67),--(Receipts!$D$5:$D$1355=$N$3),Receipts!$E$5:$E$1355)","v":0},{"$f":"SUMPRODUCT(--(Receipts!$C$5:$C$1355=A67),--(Receipts!$D$5:$D$1355=$O$3),Receipts!$E$5:$E$1355)","v":0},{"$f":"SUMPRODUCT(--(Receipts!$C$5:$C$1355=A67),--(Receipts!$D$5:$D$1355=$P$3),Receipts!$E$5:$E$1355)","v":0},{"$f":"SUMPRODUCT(--(Receipts!$C$5:$C$1355=A67),--(Receipts!$D$5:$D$1355=$Q$3),Receipts!$E$5:$E$1355)","v":0},{"$f":"SUMPRODUCT(--(Receipts!$C$5:$C$1355=A67),--(Receipts!$D$5:$D$1355=$R$3),Receipts!$E$5:$E$1355)","v":0},{"$f":"SUMPRODUCT(--(Receipts!$C$5:$C$1355=A67),--(Receipts!$D$5:$D$1355=$S$3),Receipts!$E$5:$E$1355)","v":0},{"$f":"SUMPRODUCT(--(Receipts!$C$5:$C$1355=A67),--(Receipts!$D$5:$D$1355=$T$3),Receipts!$E$5:$E$1355)","v":0},{"$f":"SUMPRODUCT(--(Receipts!$C$5:$C$1355=A67),--(Receipts!$D$5:$D$1355=$U$3),Receipts!$E$5:$E$1355)","v":0},{"$f":"SUMPRODUCT(--(Receipts!$C$5:$C$1355=A67),--(Receipts!$D$5:$D$1355=$V$3),Receipts!$E$5:$E$1355)","v":0},{"$f":"SUMPRODUCT(--(Receipts!$C$5:$C$1355=A67),--(Receipts!$D$5:$D$1355=$W$3),Receipts!$E$5:$E$1355)","v":0},{"$f":"SUMPRODUCT(--(Receipts!$C$5:$C$1355=A67),--(Receipts!$D$5:$D$1355=$X$3),Receipts!$E$5:$E$1355)","v":0},{"$f":"SUMPRODUCT(--(Receipts!$C$5:$C$1355=A67),--(Receipts!$D$5:$D$1355=$Y$3),Receipts!$E$5:$E$1355)","v":0},{"$f":"SUMPRODUCT(--(Receipts!$C$5:$C$1355=A67),--(Receipts!$D$5:$D$1355=$Z$3),Receipts!$E$5:$E$1355)","v":0},{"$f":"SUMPRODUCT(--(Receipts!$C$5:$C$1355=A67),--(Receipts!$D$5:$D$1355=$AA$3),Receipts!$E$5:$E$1355)","v":0},{"$f":"SUMPRODUCT(--(Receipts!$C$5:$C$1355=A67),--(Receipts!$D$5:$D$1355=$AB$3),Receipts!$E$5:$E$1355)","v":0},{"$f":"SUMPRODUCT(--(Receipts!$C$5:$C$1355=A67),--(Receipts!$D$5:$D$1355=$AC$3),Receipts!$E$5:$E$1355)","v":0},{"$f":"SUMPRODUCT(--(Receipts!$C$5:$C$1355=A67),--(Receipts!$D$5:$D$1355=$AD$3),Receipts!$E$5:$E$1355)","v":0},null,0,0,0,0]
[{"$f":"Descriptions!B69","v":0},{"$f":"Descriptions!D69","v":"All other giving/voluntary receipts"},{"$f":"Descriptions!E69","v":0},{"$f":"SUMPRODUCT(--(Receipts!$C$5:$C$1355=A68),--(Receipts!$D$5:$D$1355=$D$3),Receipts!$E$5:$E$1355)","v":0},{"$f":"SUMPRODUCT(--(Receipts!$C$5:$C$1355=A68),--(Receipts!$D$5:$D$1355=$E$3),Receipts!$E$5:$E$1355)","v":0},{"$f":"SUMPRODUCT(--(Receipts!$C$5:$C$1355=A68),--(Receipts!$D$5:$D$1355=$F$3),Receipts!$E$5:$E$1355)","v":0},{"$f":"SUMPRODUCT(--(Receipts!$C$5:$C$1355=A68),--(Receipts!$D$5:$D$1355=$G$3),Receipts!$E$5:$E$1355)","v":0},{"$f":"SUMPRODUCT(--(Receipts!$C$5:$C$1355=A68),--(Receipts!$D$5:$D$1355=$H$3),Receipts!$E$5:$E$1355)","v":0},{"$f":"SUMPRODUCT(--(Receipts!$C$5:$C$1355=A68),--(Receipts!$D$5:$D$1355=$I$3),Receipts!$E$5:$E$1355)","v":0},{"$f":"SUMPRODUCT(--(Receipts!$C$5:$C$1355=A68),--(Receipts!$D$5:$D$1355=$J$3),Receipts!$E$5:$E$1355)","v":0},{"$f":"SUMPRODUCT(--(Receipts!$C$5:$C$1355=A68),--(Receipts!$D$5:$D$1355=$K$3),Receipts!$E$5:$E$1355)","v":0},{"$f":"SUMPRODUCT(--(Receipts!$C$5:$C$1355=A68),--(Receipts!$D$5:$D$1355=$L$3),Receipts!$E$5:$E$1355)","v":0},{"$f":"SUMPRODUCT(--(Receipts!$C$5:$C$1355=A68),--(Receipts!$D$5:$D$1355=$M$3),Receipts!$E$5:$E$1355)","v":0},{"$f":"SUMPRODUCT(--(Receipts!$C$5:$C$1355=A68),--(Receipts!$D$5:$D$1355=$N$3),Receipts!$E$5:$E$1355)","v":0},{"$f":"SUMPRODUCT(--(Receipts!$C$5:$C$1355=A68),--(Receipts!$D$5:$D$1355=$O$3),Receipts!$E$5:$E$1355)","v":0},{"$f":"SUMPRODUCT(--(Receipts!$C$5:$C$1355=A68),--(Receipts!$D$5:$D$1355=$P$3),Receipts!$E$5:$E$1355)","v":0},{"$f":"SUMPRODUCT(--(Receipts!$C$5:$C$1355=A68),--(Receipts!$D$5:$D$1355=$Q$3),Receipts!$E$5:$E$1355)","v":0},{"$f":"SUMPRODUCT(--(Receipts!$C$5:$C$1355=A68),--(Receipts!$D$5:$D$1355=$R$3),Receipts!$E$5:$E$1355)","v":0},{"$f":"SUMPRODUCT(--(Receipts!$C$5:$C$1355=A68),--(Receipts!$D$5:$D$1355=$S$3),Receipts!$E$5:$E$1355)","v":0},{"$f":"SUMPRODUCT(--(Receipts!$C$5:$C$1355=A68),--(Receipts!$D$5:$D$1355=$T$3),Receipts!$E$5:$E$1355)","v":0},{"$f":"SUMPRODUCT(--(Receipts!$C$5:$C$1355=A68),--(Receipts!$D$5:$D$1355=$U$3),Receipts!$E$5:$E$1355)","v":0},{"$f":"SUMPRODUCT(--(Receipts!$C$5:$C$1355=A68),--(Receipts!$D$5:$D$1355=$V$3),Receipts!$E$5:$E$1355)","v":0},{"$f":"SUMPRODUCT(--(Receipts!$C$5:$C$1355=A68),--(Receipts!$D$5:$D$1355=$W$3),Receipts!$E$5:$E$1355)","v":0},{"$f":"SUMPRODUCT(--(Receipts!$C$5:$C$1355=A68),--(Receipts!$D$5:$D$1355=$X$3),Receipts!$E$5:$E$1355)","v":0},{"$f":"SUMPRODUCT(--(Receipts!$C$5:$C$1355=A68),--(Receipts!$D$5:$D$1355=$Y$3),Receipts!$E$5:$E$1355)","v":0},{"$f":"SUMPRODUCT(--(Receipts!$C$5:$C$1355=A68),--(Receipts!$D$5:$D$1355=$Z$3),Receipts!$E$5:$E$1355)","v":0},{"$f":"SUMPRODUCT(--(Receipts!$C$5:$C$1355=A68),--(Receipts!$D$5:$D$1355=$AA$3),Receipts!$E$5:$E$1355)","v":0},{"$f":"SUMPRODUCT(--(Receipts!$C$5:$C$1355=A68),--(Receipts!$D$5:$D$1355=$AB$3),Receipts!$E$5:$E$1355)","v":0},{"$f":"SUMPRODUCT(--(Receipts!$C$5:$C$1355=A68),--(Receipts!$D$5:$D$1355=$AC$3),Receipts!$E$5:$E$1355)","v":0},{"$f":"SUMPRODUCT(--(Receipts!$C$5:$C$1355=A68),--(Receipts!$D$5:$D$1355=$AD$3),Receipts!$E$5:$E$1355)","v":0},null,0,0,0,0]
[{"$f":"Descriptions!B70","v":0},{"$f":"Descriptions!D70","v":"All other giving/voluntary receipts"},{"$f":"Descriptions!E70","v":0},{"$f":"SUMPRODUCT(--(Receipts!$C$5:$C$1355=A69),--(Receipts!$D$5:$D$1355=$D$3),Receipts!$E$5:$E$1355)","v":0},{"$f":"SUMPRODUCT(--(Receipts!$C$5:$C$1355=A69),--(Receipts!$D$5:$D$1355=$E$3),Receipts!$E$5:$E$1355)","v":0},{"$f":"SUMPRODUCT(--(Receipts!$C$5:$C$1355=A69),--(Receipts!$D$5:$D$1355=$F$3),Receipts!$E$5:$E$1355)","v":0},{"$f":"SUMPRODUCT(--(Receipts!$C$5:$C$1355=A69),--(Receipts!$D$5:$D$1355=$G$3),Receipts!$E$5:$E$1355)","v":0},{"$f":"SUMPRODUCT(--(Receipts!$C$5:$C$1355=A69),--(Receipts!$D$5:$D$1355=$H$3),Receipts!$E$5:$E$1355)","v":0},{"$f":"SUMPRODUCT(--(Receipts!$C$5:$C$1355=A69),--(Receipts!$D$5:$D$1355=$I$3),Receipts!$E$5:$E$1355)","v":0},{"$f":"SUMPRODUCT(--(Receipts!$C$5:$C$1355=A69),--(Receipts!$D$5:$D$1355=$J$3),Receipts!$E$5:$E$1355)","v":0},{"$f":"SUMPRODUCT(--(Receipts!$C$5:$C$1355=A69),--(Receipts!$D$5:$D$1355=$K$3),Receipts!$E$5:$E$1355)","v":0},{"$f":"SUMPRODUCT(--(Receipts!$C$5:$C$1355=A69),--(Receipts!$D$5:$D$1355=$L$3),Receipts!$E$5:$E$1355)","v":0},{"$f":"SUMPRODUCT(--(Receipts!$C$5:$C$1355=A69),--(Receipts!$D$5:$D$1355=$M$3),Receipts!$E$5:$E$1355)","v":0},{"$f":"SUMPRODUCT(--(Receipts!$C$5:$C$1355=A69),--(Receipts!$D$5:$D$1355=$N$3),Receipts!$E$5:$E$1355)","v":0},{"$f":"SUMPRODUCT(--(Receipts!$C$5:$C$1355=A69),--(Receipts!$D$5:$D$1355=$O$3),Receipts!$E$5:$E$1355)","v":0},{"$f":"SUMPRODUCT(--(Receipts!$C$5:$C$1355=A69),--(Receipts!$D$5:$D$1355=$P$3),Receipts!$E$5:$E$1355)","v":0},{"$f":"SUMPRODUCT(--(Receipts!$C$5:$C$1355=A69),--(Receipts!$D$5:$D$1355=$Q$3),Receipts!$E$5:$E$1355)","v":0},{"$f":"SUMPRODUCT(--(Receipts!$C$5:$C$1355=A69),--(Receipts!$D$5:$D$1355=$R$3),Receipts!$E$5:$E$1355)","v":0},{"$f":"SUMPRODUCT(--(Receipts!$C$5:$C$1355=A69),--(Receipts!$D$5:$D$1355=$S$3),Receipts!$E$5:$E$1355)","v":0},{"$f":"SUMPRODUCT(--(Receipts!$C$5:$C$1355=A69),--(Receipts!$D$5:$D$1355=$T$3),Receipts!$E$5:$E$1355)","v":0},{"$f":"SUMPRODUCT(--(Receipts!$C$5:$C$1355=A69),--(Receipts!$D$5:$D$1355=$U$3),Receipts!$E$5:$E$1355)","v":0},{"$f":"SUMPRODUCT(--(Receipts!$C$5:$C$1355=A69),--(Receipts!$D$5:$D$1355=$V$3),Receipts!$E$5:$E$1355)","v":0},{"$f":"SUMPRODUCT(--(Receipts!$C$5:$C$1355=A69),--(Receipts!$D$5:$D$1355=$W$3),Receipts!$E$5:$E$1355)","v":0},{"$f":"SUMPRODUCT(--(Receipts!$C$5:$C$1355=A69),--(Receipts!$D$5:$D$1355=$X$3),Receipts!$E$5:$E$1355)","v":0},{"$f":"SUMPRODUCT(--(Receipts!$C$5:$C$1355=A69),--(Receipts!$D$5:$D$1355=$Y$3),Receipts!$E$5:$E$1355)","v":0},{"$f":"SUMPRODUCT(--(Receipts!$C$5:$C$1355=A69),--(Receipts!$D$5:$D$1355=$Z$3),Receipts!$E$5:$E$1355)","v":0},{"$f":"SUMPRODUCT(--(Receipts!$C$5:$C$1355=A69),--(Receipts!$D$5:$D$1355=$AA$3),Receipts!$E$5:$E$1355)","v":0},{"$f":"SUMPRODUCT(--(Receipts!$C$5:$C$1355=A69),--(Receipts!$D$5:$D$1355=$AB$3),Receipts!$E$5:$E$1355)","v":0},{"$f":"SUMPRODUCT(--(Receipts!$C$5:$C$1355=A69),--(Receipts!$D$5:$D$1355=$AC$3),Receipts!$E$5:$E$1355)","v":0},{"$f":"SUMPRODUCT(--(Receipts!$C$5:$C$1355=A69),--(Receipts!$D$5:$D$1355=$AD$3),Receipts!$E$5:$E$1355)","v":0},null,{"$f":"SUMPRODUCT(($D$4:$AD$4=$AF$4)*(D69:AD69))","v":0},{"$f":"SUMPRODUCT(($D$4:$AD$4=$AG$4)*(D69:AD69))","v":0},{"$f":"SUMPRODUCT(($D$4:$AD$4=$AH$4)*(D69:AD69))","v":0},{"$f":"SUMPRODUCT(($D$4:$AD$4=$AI$4)*(D69:AD69))","v":0}]
[{"$f":"Descriptions!B71","v":0},{"$f":"Descriptions!D71","v":"All other giving/voluntary receipts"},{"$f":"Descriptions!E71","v":0},{"$f":"SUMPRODUCT(--(Receipts!$C$5:$C$1355=A70),--(Receipts!$D$5:$D$1355=$D$3),Receipts!$E$5:$E$1355)","v":0},{"$f":"SUMPRODUCT(--(Receipts!$C$5:$C$1355=A70),--(Receipts!$D$5:$D$1355=$E$3),Receipts!$E$5:$E$1355)","v":0},{"$f":"SUMPRODUCT(--(Receipts!$C$5:$C$1355=A70),--(Receipts!$D$5:$D$1355=$F$3),Receipts!$E$5:$E$1355)","v":0},{"$f":"SUMPRODUCT(--(Receipts!$C$5:$C$1355=A70),--(Receipts!$D$5:$D$1355=$G$3),Receipts!$E$5:$E$1355)","v":0},{"$f":"SUMPRODUCT(--(Receipts!$C$5:$C$1355=A70),--(Receipts!$D$5:$D$1355=$H$3),Receipts!$E$5:$E$1355)","v":0},{"$f":"SUMPRODUCT(--(Receipts!$C$5:$C$1355=A70),--(Receipts!$D$5:$D$1355=$I$3),Receipts!$E$5:$E$1355)","v":0},{"$f":"SUMPRODUCT(--(Receipts!$C$5:$C$1355=A70),--(Receipts!$D$5:$D$1355=$J$3),Receipts!$E$5:$E$1355)","v":0},{"$f":"SUMPRODUCT(--(Receipts!$C$5:$C$1355=A70),--(Receipts!$D$5:$D$1355=$K$3),Receipts!$E$5:$E$1355)","v":0},{"$f":"SUMPRODUCT(--(Receipts!$C$5:$C$1355=A70),--(Receipts!$D$5:$D$1355=$L$3),Receipts!$E$5:$E$1355)","v":0},{"$f":"SUMPRODUCT(--(Receipts!$C$5:$C$1355=A70),--(Receipts!$D$5:$D$1355=$M$3),Receipts!$E$5:$E$1355)","v":0},{"$f":"SUMPRODUCT(--(Receipts!$C$5:$C$1355=A70),--(Receipts!$D$5:$D$1355=$N$3),Receipts!$E$5:$E$1355)","v":0},{"$f":"SUMPRODUCT(--(Receipts!$C$5:$C$1355=A70),--(Receipts!$D$5:$D$1355=$O$3),Receipts!$E$5:$E$1355)","v":0},{"$f":"SUMPRODUCT(--(Receipts!$C$5:$C$1355=A70),--(Receipts!$D$5:$D$1355=$P$3),Receipts!$E$5:$E$1355)","v":0},{"$f":"SUMPRODUCT(--(Receipts!$C$5:$C$1355=A70),--(Receipts!$D$5:$D$1355=$Q$3),Receipts!$E$5:$E$1355)","v":0},{"$f":"SUMPRODUCT(--(Receipts!$C$5:$C$1355=A70),--(Receipts!$D$5:$D$1355=$R$3),Receipts!$E$5:$E$1355)","v":0},{"$f":"SUMPRODUCT(--(Receipts!$C$5:$C$1355=A70),--(Receipts!$D$5:$D$1355=$S$3),Receipts!$E$5:$E$1355)","v":0},{"$f":"SUMPRODUCT(--(Receipts!$C$5:$C$1355=A70),--(Receipts!$D$5:$D$1355=$T$3),Receipts!$E$5:$E$1355)","v":0},{"$f":"SUMPRODUCT(--(Receipts!$C$5:$C$1355=A70),--(Receipts!$D$5:$D$1355=$U$3),Receipts!$E$5:$E$1355)","v":0},{"$f":"SUMPRODUCT(--(Receipts!$C$5:$C$1355=A70),--(Receipts!$D$5:$D$1355=$V$3),Receipts!$E$5:$E$1355)","v":0},{"$f":"SUMPRODUCT(--(Receipts!$C$5:$C$1355=A70),--(Receipts!$D$5:$D$1355=$W$3),Receipts!$E$5:$E$1355)","v":0},{"$f":"SUMPRODUCT(--(Receipts!$C$5:$C$1355=A70),--(Receipts!$D$5:$D$1355=$X$3),Receipts!$E$5:$E$1355)","v":0},{"$f":"SUMPRODUCT(--(Receipts!$C$5:$C$1355=A70),--(Receipts!$D$5:$D$1355=$Y$3),Receipts!$E$5:$E$1355)","v":0},{"$f":"SUMPRODUCT(--(Receipts!$C$5:$C$1355=A70),--(Receipts!$D$5:$D$1355=$Z$3),Receipts!$E$5:$E$1355)","v":0},{"$f":"SUMPRODUCT(--(Receipts!$C$5:$C$1355=A70),--(Receipts!$D$5:$D$1355=$AA$3),Receipts!$E$5:$E$1355)","v":0},{"$f":"SUMPRODUCT(--(Receipts!$C$5:$C$1355=A70),--(Receipts!$D$5:$D$1355=$AB$3),Receipts!$E$5:$E$1355)","v":0},{"$f":"SUMPRODUCT(--(Receipts!$C$5:$C$1355=A70),--(Receipts!$D$5:$D$1355=$AC$3),Receipts!$E$5:$E$1355)","v":0},{"$f":"SUMPRODUCT(--(Receipts!$C$5:$C$1355=A70),--(Receipts!$D$5:$D$1355=$AD$3),Receipts!$E$5:$E$1355)","v":0},null,0,0,0,0]
[{"$f":"Descriptions!B72","v":0},{"$f":"Descriptions!D72","v":"All other giving/voluntary receipts"},{"$f":"Descriptions!E72","v":0},{"$f":"SUMPRODUCT(--(Receipts!$C$5:$C$1355=A71),--(Receipts!$D$5:$D$1355=$D$3),Receipts!$E$5:$E$1355)","v":0},{"$f":"SUMPRODUCT(--(Receipts!$C$5:$C$1355=A71),--(Receipts!$D$5:$D$1355=$E$3),Receipts!$E$5:$E$1355)","v":0},{"$f":"SUMPRODUCT(--(Receipts!$C$5:$C$1355=A71),--(Receipts!$D$5:$D$1355=$F$3),Receipts!$E$5:$E$1355)","v":0},{"$f":"SUMPRODUCT(--(Receipts!$C$5:$C$1355=A71),--(Receipts!$D$5:$D$1355=$G$3),Receipts!$E$5:$E$1355)","v":0},{"$f":"SUMPRODUCT(--(Receipts!$C$5:$C$1355=A71),--(Receipts!$D$5:$D$1355=$H$3),Receipts!$E$5:$E$1355)","v":0},{"$f":"SUMPRODUCT(--(Receipts!$C$5:$C$1355=A71),--(Receipts!$D$5:$D$1355=$I$3),Receipts!$E$5:$E$1355)","v":0},{"$f":"SUMPRODUCT(--(Receipts!$C$5:$C$1355=A71),--(Receipts!$D$5:$D$1355=$J$3),Receipts!$E$5:$E$1355)","v":0},{"$f":"SUMPRODUCT(--(Receipts!$C$5:$C$1355=A71),--(Receipts!$D$5:$D$1355=$K$3),Receipts!$E$5:$E$1355)","v":0},{"$f":"SUMPRODUCT(--(Receipts!$C$5:$C$1355=A71),--(Receipts!$D$5:$D$1355=$L$3),Receipts!$E$5:$E$1355)","v":0},{"$f":"SUMPRODUCT(--(Receipts!$C$5:$C$1355=A71),--(Receipts!$D$5:$D$1355=$M$3),Receipts!$E$5:$E$1355)","v":0},{"$f":"SUMPRODUCT(--(Receipts!$C$5:$C$1355=A71),--(Receipts!$D$5:$D$1355=$N$3),Receipts!$E$5:$E$1355)","v":0},{"$f":"SUMPRODUCT(--(Receipts!$C$5:$C$1355=A71),--(Receipts!$D$5:$D$1355=$O$3),Receipts!$E$5:$E$1355)","v":0},{"$f":"SUMPRODUCT(--(Receipts!$C$5:$C$1355=A71),--(Receipts!$D$5:$D$1355=$P$3),Receipts!$E$5:$E$1355)","v":0},{"$f":"SUMPRODUCT(--(Receipts!$C$5:$C$1355=A71),--(Receipts!$D$5:$D$1355=$Q$3),Receipts!$E$5:$E$1355)","v":0},{"$f":"SUMPRODUCT(--(Receipts!$C$5:$C$1355=A71),--(Receipts!$D$5:$D$1355=$R$3),Receipts!$E$5:$E$1355)","v":0},{"$f":"SUMPRODUCT(--(Receipts!$C$5:$C$1355=A71),--(Receipts!$D$5:$D$1355=$S$3),Receipts!$E$5:$E$1355)","v":0},{"$f":"SUMPRODUCT(--(Receipts!$C$5:$C$1355=A71),--(Receipts!$D$5:$D$1355=$T$3),Receipts!$E$5:$E$1355)","v":0},{"$f":"SUMPRODUCT(--(Receipts!$C$5:$C$1355=A71),--(Receipts!$D$5:$D$1355=$U$3),Receipts!$E$5:$E$1355)","v":0},{"$f":"SUMPRODUCT(--(Receipts!$C$5:$C$1355=A71),--(Receipts!$D$5:$D$1355=$V$3),Receipts!$E$5:$E$1355)","v":0},{"$f":"SUMPRODUCT(--(Receipts!$C$5:$C$1355=A71),--(Receipts!$D$5:$D$1355=$W$3),Receipts!$E$5:$E$1355)","v":0},{"$f":"SUMPRODUCT(--(Receipts!$C$5:$C$1355=A71),--(Receipts!$D$5:$D$1355=$X$3),Receipts!$E$5:$E$1355)","v":0},{"$f":"SUMPRODUCT(--(Receipts!$C$5:$C$1355=A71),--(Receipts!$D$5:$D$1355=$Y$3),Receipts!$E$5:$E$1355)","v":0},{"$f":"SUMPRODUCT(--(Receipts!$C$5:$C$1355=A71),--(Receipts!$D$5:$D$1355=$Z$3),Receipts!$E$5:$E$1355)","v":0},{"$f":"SUMPRODUCT(--(Receipts!$C$5:$C$1355=A71),--(Receipts!$D$5:$D$1355=$AA$3),Receipts!$E$5:$E$1355)","v":0},{"$f":"SUMPRODUCT(--(Receipts!$C$5:$C$1355=A71),--(Receipts!$D$5:$D$1355=$AB$3),Receipts!$E$5:$E$1355)","v":0},{"$f":"SUMPRODUCT(--(Receipts!$C$5:$C$1355=A71),--(Receipts!$D$5:$D$1355=$AC$3),Receipts!$E$5:$E$1355)","v":0},{"$f":"SUMPRODUCT(--(Receipts!$C$5:$C$1355=A71),--(Receipts!$D$5:$D$1355=$AD$3),Receipts!$E$5:$E$1355)","v":0},null,0,0,0,0]
[{"$f":"Descriptions!B73","v":0},{"$f":"Descriptions!D73","v":"All other giving/voluntary receipts"},{"$f":"Descriptions!E73","v":0},{"$f":"SUMPRODUCT(--(Receipts!$C$5:$C$1355=A72),--(Receipts!$D$5:$D$1355=$D$3),Receipts!$E$5:$E$1355)","v":0},{"$f":"SUMPRODUCT(--(Receipts!$C$5:$C$1355=A72),--(Receipts!$D$5:$D$1355=$E$3),Receipts!$E$5:$E$1355)","v":0},{"$f":"SUMPRODUCT(--(Receipts!$C$5:$C$1355=A72),--(Receipts!$D$5:$D$1355=$F$3),Receipts!$E$5:$E$1355)","v":0},{"$f":"SUMPRODUCT(--(Receipts!$C$5:$C$1355=A72),--(Receipts!$D$5:$D$1355=$G$3),Receipts!$E$5:$E$1355)","v":0},{"$f":"SUMPRODUCT(--(Receipts!$C$5:$C$1355=A72),--(Receipts!$D$5:$D$1355=$H$3),Receipts!$E$5:$E$1355)","v":0},{"$f":"SUMPRODUCT(--(Receipts!$C$5:$C$1355=A72),--(Receipts!$D$5:$D$1355=$I$3),Receipts!$E$5:$E$1355)","v":0},{"$f":"SUMPRODUCT(--(Receipts!$C$5:$C$1355=A72),--(Receipts!$D$5:$D$1355=$J$3),Receipts!$E$5:$E$1355)","v":0},{"$f":"SUMPRODUCT(--(Receipts!$C$5:$C$1355=A72),--(Receipts!$D$5:$D$1355=$K$3),Receipts!$E$5:$E$1355)","v":0},{"$f":"SUMPRODUCT(--(Receipts!$C$5:$C$1355=A72),--(Receipts!$D$5:$D$1355=$L$3),Receipts!$E$5:$E$1355)","v":0},{"$f":"SUMPRODUCT(--(Receipts!$C$5:$C$1355=A72),--(Receipts!$D$5:$D$1355=$M$3),Receipts!$E$5:$E$1355)","v":0},{"$f":"SUMPRODUCT(--(Receipts!$C$5:$C$1355=A72),--(Receipts!$D$5:$D$1355=$N$3),Receipts!$E$5:$E$1355)","v":0},{"$f":"SUMPRODUCT(--(Receipts!$C$5:$C$1355=A72),--(Receipts!$D$5:$D$1355=$O$3),Receipts!$E$5:$E$1355)","v":0},{"$f":"SUMPRODUCT(--(Receipts!$C$5:$C$1355=A72),--(Receipts!$D$5:$D$1355=$P$3),Receipts!$E$5:$E$1355)","v":0},{"$f":"SUMPRODUCT(--(Receipts!$C$5:$C$1355=A72),--(Receipts!$D$5:$D$1355=$Q$3),Receipts!$E$5:$E$1355)","v":0},{"$f":"SUMPRODUCT(--(Receipts!$C$5:$C$1355=A72),--(Receipts!$D$5:$D$1355=$R$3),Receipts!$E$5:$E$1355)","v":0},{"$f":"SUMPRODUCT(--(Receipts!$C$5:$C$1355=A72),--(Receipts!$D$5:$D$1355=$S$3),Receipts!$E$5:$E$1355)","v":0},{"$f":"SUMPRODUCT(--(Receipts!$C$5:$C$1355=A72),--(Receipts!$D$5:$D$1355=$T$3),Receipts!$E$5:$E$1355)","v":0},{"$f":"SUMPRODUCT(--(Receipts!$C$5:$C$1355=A72),--(Receipts!$D$5:$D$1355=$U$3),Receipts!$E$5:$E$1355)","v":0},{"$f":"SUMPRODUCT(--(Receipts!$C$5:$C$1355=A72),--(Receipts!$D$5:$D$1355=$V$3),Receipts!$E$5:$E$1355)","v":0},{"$f":"SUMPRODUCT(--(Receipts!$C$5:$C$1355=A72),--(Receipts!$D$5:$D$1355=$W$3),Receipts!$E$5:$E$1355)","v":0},{"$f":"SUMPRODUCT(--(Receipts!$C$5:$C$1355=A72),--(Receipts!$D$5:$D$1355=$X$3),Receipts!$E$5:$E$1355)","v":0},{"$f":"SUMPRODUCT(--(Receipts!$C$5:$C$1355=A72),--(Receipts!$D$5:$D$1355=$Y$3),Receipts!$E$5:$E$1355)","v":0},{"$f":"SUMPRODUCT(--(Receipts!$C$5:$C$1355=A72),--(Receipts!$D$5:$D$1355=$Z$3),Receipts!$E$5:$E$1355)","v":0},{"$f":"SUMPRODUCT(--(Receipts!$C$5:$C$1355=A72),--(Receipts!$D$5:$D$1355=$AA$3),Receipts!$E$5:$E$1355)","v":0},{"$f":"SUMPRODUCT(--(Receipts!$C$5:$C$1355=A72),--(Receipts!$D$5:$D$1355=$AB$3),Receipts!$E$5:$E$1355)","v":0},{"$f":"SUMPRODUCT(--(Receipts!$C$5:$C$1355=A72),--(Receipts!$D$5:$D$1355=$AC$3),Receipts!$E$5:$E$1355)","v":0},{"$f":"SUMPRODUCT(--(Receipts!$C$5:$C$1355=A72),--(Receipts!$D$5:$D$1355=$AD$3),Receipts!$E$5:$E$1355)","v":0},null,0,0,0,0]
[{"$f":"Descriptions!B74","v":0},{"$f":"Descriptions!D74","v":"All other giving/voluntary receipts"},{"$f":"Descriptions!E74","v":0},{"$f":"SUMPRODUCT(--(Receipts!$C$5:$C$1355=A73),--(Receipts!$D$5:$D$1355=$D$3),Receipts!$E$5:$E$1355)","v":0},{"$f":"SUMPRODUCT(--(Receipts!$C$5:$C$1355=A73),--(Receipts!$D$5:$D$1355=$E$3),Receipts!$E$5:$E$1355)","v":0},{"$f":"SUMPRODUCT(--(Receipts!$C$5:$C$1355=A73),--(Receipts!$D$5:$D$1355=$F$3),Receipts!$E$5:$E$1355)","v":0},{"$f":"SUMPRODUCT(--(Receipts!$C$5:$C$1355=A73),--(Receipts!$D$5:$D$1355=$G$3),Receipts!$E$5:$E$1355)","v":0},{"$f":"SUMPRODUCT(--(Receipts!$C$5:$C$1355=A73),--(Receipts!$D$5:$D$1355=$H$3),Receipts!$E$5:$E$1355)","v":0},{"$f":"SUMPRODUCT(--(Receipts!$C$5:$C$1355=A73),--(Receipts!$D$5:$D$1355=$I$3),Receipts!$E$5:$E$1355)","v":0},{"$f":"SUMPRODUCT(--(Receipts!$C$5:$C$1355=A73),--(Receipts!$D$5:$D$1355=$J$3),Receipts!$E$5:$E$1355)","v":0},{"$f":"SUMPRODUCT(--(Receipts!$C$5:$C$1355=A73),--(Receipts!$D$5:$D$1355=$K$3),Receipts!$E$5:$E$1355)","v":0},{"$f":"SUMPRODUCT(--(Receipts!$C$5:$C$1355=A73),--(Receipts!$D$5:$D$1355=$L$3),Receipts!$E$5:$E$1355)","v":0},{"$f":"SUMPRODUCT(--(Receipts!$C$5:$C$1355=A73),--(Receipts!$D$5:$D$1355=$M$3),Receipts!$E$5:$E$1355)","v":0},{"$f":"SUMPRODUCT(--(Receipts!$C$5:$C$1355=A73),--(Receipts!$D$5:$D$1355=$N$3),Receipts!$E$5:$E$1355)","v":0},{"$f":"SUMPRODUCT(--(Receipts!$C$5:$C$1355=A73),--(Receipts!$D$5:$D$1355=$O$3),Receipts!$E$5:$E$1355)","v":0},{"$f":"SUMPRODUCT(--(Receipts!$C$5:$C$1355=A73),--(Receipts!$D$5:$D$1355=$P$3),Receipts!$E$5:$E$1355)","v":0},{"$f":"SUMPRODUCT(--(Receipts!$C$5:$C$1355=A73),--(Receipts!$D$5:$D$1355=$Q$3),Receipts!$E$5:$E$1355)","v":0},{"$f":"SUMPRODUCT(--(Receipts!$C$5:$C$1355=A73),--(Receipts!$D$5:$D$1355=$R$3),Receipts!$E$5:$E$1355)","v":0},{"$f":"SUMPRODUCT(--(Receipts!$C$5:$C$1355=A73),--(Receipts!$D$5:$D$1355=$S$3),Receipts!$E$5:$E$1355)","v":0},{"$f":"SUMPRODUCT(--(Receipts!$C$5:$C$1355=A73),--(Receipts!$D$5:$D$1355=$T$3),Receipts!$E$5:$E$1355)","v":0},{"$f":"SUMPRODUCT(--(Receipts!$C$5:$C$1355=A73),--(Receipts!$D$5:$D$1355=$U$3),Receipts!$E$5:$E$1355)","v":0},{"$f":"SUMPRODUCT(--(Receipts!$C$5:$C$1355=A73),--(Receipts!$D$5:$D$1355=$V$3),Receipts!$E$5:$E$1355)","v":0},{"$f":"SUMPRODUCT(--(Receipts!$C$5:$C$1355=A73),--(Receipts!$D$5:$D$1355=$W$3),Receipts!$E$5:$E$1355)","v":0},{"$f":"SUMPRODUCT(--(Receipts!$C$5:$C$1355=A73),--(Receipts!$D$5:$D$1355=$X$3),Receipts!$E$5:$E$1355)","v":0},{"$f":"SUMPRODUCT(--(Receipts!$C$5:$C$1355=A73),--(Receipts!$D$5:$D$1355=$Y$3),Receipts!$E$5:$E$1355)","v":0},{"$f":"SUMPRODUCT(--(Receipts!$C$5:$C$1355=A73),--(Receipts!$D$5:$D$1355=$Z$3),Receipts!$E$5:$E$1355)","v":0},{"$f":"SUMPRODUCT(--(Receipts!$C$5:$C$1355=A73),--(Receipts!$D$5:$D$1355=$AA$3),Receipts!$E$5:$E$1355)","v":0},{"$f":"SUMPRODUCT(--(Receipts!$C$5:$C$1355=A73),--(Receipts!$D$5:$D$1355=$AB$3),Receipts!$E$5:$E$1355)","v":0},{"$f":"SUMPRODUCT(--(Receipts!$C$5:$C$1355=A73),--(Receipts!$D$5:$D$1355=$AC$3),Receipts!$E$5:$E$1355)","v":0},{"$f":"SUMPRODUCT(--(Receipts!$C$5:$C$1355=A73),--(Receipts!$D$5:$D$1355=$AD$3),Receipts!$E$5:$E$1355)","v":0},null,0,0,0,0]
[{"$f":"Descriptions!B75","v":0},{"$f":"Descriptions!D75","v":"All other giving/voluntary receipts"},{"$f":"Descriptions!E75","v":0},{"$f":"SUMPRODUCT(--(Receipts!$C$5:$C$1355=A74),--(Receipts!$D$5:$D$1355=$D$3),Receipts!$E$5:$E$1355)","v":0},{"$f":"SUMPRODUCT(--(Receipts!$C$5:$C$1355=A74),--(Receipts!$D$5:$D$1355=$E$3),Receipts!$E$5:$E$1355)","v":0},{"$f":"SUMPRODUCT(--(Receipts!$C$5:$C$1355=A74),--(Receipts!$D$5:$D$1355=$F$3),Receipts!$E$5:$E$1355)","v":0},{"$f":"SUMPRODUCT(--(Receipts!$C$5:$C$1355=A74),--(Receipts!$D$5:$D$1355=$G$3),Receipts!$E$5:$E$1355)","v":0},{"$f":"SUMPRODUCT(--(Receipts!$C$5:$C$1355=A74),--(Receipts!$D$5:$D$1355=$H$3),Receipts!$E$5:$E$1355)","v":0},{"$f":"SUMPRODUCT(--(Receipts!$C$5:$C$1355=A74),--(Receipts!$D$5:$D$1355=$I$3),Receipts!$E$5:$E$1355)","v":0},{"$f":"SUMPRODUCT(--(Receipts!$C$5:$C$1355=A74),--(Receipts!$D$5:$D$1355=$J$3),Receipts!$E$5:$E$1355)","v":0},{"$f":"SUMPRODUCT(--(Receipts!$C$5:$C$1355=A74),--(Receipts!$D$5:$D$1355=$K$3),Receipts!$E$5:$E$1355)","v":0},{"$f":"SUMPRODUCT(--(Receipts!$C$5:$C$1355=A74),--(Receipts!$D$5:$D$1355=$L$3),Receipts!$E$5:$E$1355)","v":0},{"$f":"SUMPRODUCT(--(Receipts!$C$5:$C$1355=A74),--(Receipts!$D$5:$D$1355=$M$3),Receipts!$E$5:$E$1355)","v":0},{"$f":"SUMPRODUCT(--(Receipts!$C$5:$C$1355=A74),--(Receipts!$D$5:$D$1355=$N$3),Receipts!$E$5:$E$1355)","v":0},{"$f":"SUMPRODUCT(--(Receipts!$C$5:$C$1355=A74),--(Receipts!$D$5:$D$1355=$O$3),Receipts!$E$5:$E$1355)","v":0},{"$f":"SUMPRODUCT(--(Receipts!$C$5:$C$1355=A74),--(Receipts!$D$5:$D$1355=$P$3),Receipts!$E$5:$E$1355)","v":0},{"$f":"SUMPRODUCT(--(Receipts!$C$5:$C$1355=A74),--(Receipts!$D$5:$D$1355=$Q$3),Receipts!$E$5:$E$1355)","v":0},{"$f":"SUMPRODUCT(--(Receipts!$C$5:$C$1355=A74),--(Receipts!$D$5:$D$1355=$R$3),Receipts!$E$5:$E$1355)","v":0},{"$f":"SUMPRODUCT(--(Receipts!$C$5:$C$1355=A74),--(Receipts!$D$5:$D$1355=$S$3),Receipts!$E$5:$E$1355)","v":0},{"$f":"SUMPRODUCT(--(Receipts!$C$5:$C$1355=A74),--(Receipts!$D$5:$D$1355=$T$3),Receipts!$E$5:$E$1355)","v":0},{"$f":"SUMPRODUCT(--(Receipts!$C$5:$C$1355=A74),--(Receipts!$D$5:$D$1355=$U$3),Receipts!$E$5:$E$1355)","v":0},{"$f":"SUMPRODUCT(--(Receipts!$C$5:$C$1355=A74),--(Receipts!$D$5:$D$1355=$V$3),Receipts!$E$5:$E$1355)","v":0},{"$f":"SUMPRODUCT(--(Receipts!$C$5:$C$1355=A74),--(Receipts!$D$5:$D$1355=$W$3),Receipts!$E$5:$E$1355)","v":0},{"$f":"SUMPRODUCT(--(Receipts!$C$5:$C$1355=A74),--(Receipts!$D$5:$D$1355=$X$3),Receipts!$E$5:$E$1355)","v":0},{"$f":"SUMPRODUCT(--(Receipts!$C$5:$C$1355=A74),--(Receipts!$D$5:$D$1355=$Y$3),Receipts!$E$5:$E$1355)","v":0},{"$f":"SUMPRODUCT(--(Receipts!$C$5:$C$1355=A74),--(Receipts!$D$5:$D$1355=$Z$3),Receipts!$E$5:$E$1355)","v":0},{"$f":"SUMPRODUCT(--(Receipts!$C$5:$C$1355=A74),--(Receipts!$D$5:$D$1355=$AA$3),Receipts!$E$5:$E$1355)","v":0},{"$f":"SUMPRODUCT(--(Receipts!$C$5:$C$1355=A74),--(Receipts!$D$5:$D$1355=$AB$3),Receipts!$E$5:$E$1355)","v":0},{"$f":"SUMPRODUCT(--(Receipts!$C$5:$C$1355=A74),--(Receipts!$D$5:$D$1355=$AC$3),Receipts!$E$5:$E$1355)","v":0},{"$f":"SUMPRODUCT(--(Receipts!$C$5:$C$1355=A74),--(Receipts!$D$5:$D$1355=$AD$3),Receipts!$E$5:$E$1355)","v":0},null,0,0,0,0]
[{"$f":"Descriptions!B76","v":0},{"$f":"Descriptions!D76","v":"All other giving/voluntary receipts"},{"$f":"Descriptions!E76","v":0},{"$f":"SUMPRODUCT(--(Receipts!$C$5:$C$1355=A75),--(Receipts!$D$5:$D$1355=$D$3),Receipts!$E$5:$E$1355)","v":0},{"$f":"SUMPRODUCT(--(Receipts!$C$5:$C$1355=A75),--(Receipts!$D$5:$D$1355=$E$3),Receipts!$E$5:$E$1355)","v":0},{"$f":"SUMPRODUCT(--(Receipts!$C$5:$C$1355=A75),--(Receipts!$D$5:$D$1355=$F$3),Receipts!$E$5:$E$1355)","v":0},{"$f":"SUMPRODUCT(--(Receipts!$C$5:$C$1355=A75),--(Receipts!$D$5:$D$1355=$G$3),Receipts!$E$5:$E$1355)","v":0},{"$f":"SUMPRODUCT(--(Receipts!$C$5:$C$1355=A75),--(Receipts!$D$5:$D$1355=$H$3),Receipts!$E$5:$E$1355)","v":0},{"$f":"SUMPRODUCT(--(Receipts!$C$5:$C$1355=A75),--(Receipts!$D$5:$D$1355=$I$3),Receipts!$E$5:$E$1355)","v":0},{"$f":"SUMPRODUCT(--(Receipts!$C$5:$C$1355=A75),--(Receipts!$D$5:$D$1355=$J$3),Receipts!$E$5:$E$1355)","v":0},{"$f":"SUMPRODUCT(--(Receipts!$C$5:$C$1355=A75),--(Receipts!$D$5:$D$1355=$K$3),Receipts!$E$5:$E$1355)","v":0},{"$f":"SUMPRODUCT(--(Receipts!$C$5:$C$1355=A75),--(Receipts!$D$5:$D$1355=$L$3),Receipts!$E$5:$E$1355)","v":0},{"$f":"SUMPRODUCT(--(Receipts!$C$5:$C$1355=A75),--(Receipts!$D$5:$D$1355=$M$3),Receipts!$E$5:$E$1355)","v":0},{"$f":"SUMPRODUCT(--(Receipts!$C$5:$C$1355=A75),--(Receipts!$D$5:$D$1355=$N$3),Receipts!$E$5:$E$1355)","v":0},{"$f":"SUMPRODUCT(--(Receipts!$C$5:$C$1355=A75),--(Receipts!$D$5:$D$1355=$O$3),Receipts!$E$5:$E$1355)","v":0},{"$f":"SUMPRODUCT(--(Receipts!$C$5:$C$1355=A75),--(Receipts!$D$5:$D$1355=$P$3),Receipts!$E$5:$E$1355)","v":0},{"$f":"SUMPRODUCT(--(Receipts!$C$5:$C$1355=A75),--(Receipts!$D$5:$D$1355=$Q$3),Receipts!$E$5:$E$1355)","v":0},{"$f":"SUMPRODUCT(--(Receipts!$C$5:$C$1355=A75),--(Receipts!$D$5:$D$1355=$R$3),Receipts!$E$5:$E$1355)","v":0},{"$f":"SUMPRODUCT(--(Receipts!$C$5:$C$1355=A75),--(Receipts!$D$5:$D$1355=$S$3),Receipts!$E$5:$E$1355)","v":0},{"$f":"SUMPRODUCT(--(Receipts!$C$5:$C$1355=A75),--(Receipts!$D$5:$D$1355=$T$3),Receipts!$E$5:$E$1355)","v":0},{"$f":"SUMPRODUCT(--(Receipts!$C$5:$C$1355=A75),--(Receipts!$D$5:$D$1355=$U$3),Receipts!$E$5:$E$1355)","v":0},{"$f":"SUMPRODUCT(--(Receipts!$C$5:$C$1355=A75),--(Receipts!$D$5:$D$1355=$V$3),Receipts!$E$5:$E$1355)","v":0},{"$f":"SUMPRODUCT(--(Receipts!$C$5:$C$1355=A75),--(Receipts!$D$5:$D$1355=$W$3),Receipts!$E$5:$E$1355)","v":0},{"$f":"SUMPRODUCT(--(Receipts!$C$5:$C$1355=A75),--(Receipts!$D$5:$D$1355=$X$3),Receipts!$E$5:$E$1355)","v":0},{"$f":"SUMPRODUCT(--(Receipts!$C$5:$C$1355=A75),--(Receipts!$D$5:$D$1355=$Y$3),Receipts!$E$5:$E$1355)","v":0},{"$f":"SUMPRODUCT(--(Receipts!$C$5:$C$1355=A75),--(Receipts!$D$5:$D$1355=$Z$3),Receipts!$E$5:$E$1355)","v":0},{"$f":"SUMPRODUCT(--(Receipts!$C$5:$C$1355=A75),--(Receipts!$D$5:$D$1355=$AA$3),Receipts!$E$5:$E$1355)","v":0},{"$f":"SUMPRODUCT(--(Receipts!$C$5:$C$1355=A75),--(Receipts!$D$5:$D$1355=$AB$3),Receipts!$E$5:$E$1355)","v":0},{"$f":"SUMPRODUCT(--(Receipts!$C$5:$C$1355=A75),--(Receipts!$D$5:$D$1355=$AC$3),Receipts!$E$5:$E$1355)","v":0},{"$f":"SUMPRODUCT(--(Receipts!$C$5:$C$1355=A75),--(Receipts!$D$5:$D$1355=$AD$3),Receipts!$E$5:$E$1355)","v":0},null,0,0,0,0]
[{"$f":"Descriptions!B77","v":0},{"$f":"Descriptions!D77","v":"All other giving/voluntary receipts"},{"$f":"Descriptions!E77","v":0},{"$f":"SUMPRODUCT(--(Receipts!$C$5:$C$1355=A76),--(Receipts!$D$5:$D$1355=$D$3),Receipts!$E$5:$E$1355)","v":0},{"$f":"SUMPRODUCT(--(Receipts!$C$5:$C$1355=A76),--(Receipts!$D$5:$D$1355=$E$3),Receipts!$E$5:$E$1355)","v":0},{"$f":"SUMPRODUCT(--(Receipts!$C$5:$C$1355=A76),--(Receipts!$D$5:$D$1355=$F$3),Receipts!$E$5:$E$1355)","v":0},{"$f":"SUMPRODUCT(--(Receipts!$C$5:$C$1355=A76),--(Receipts!$D$5:$D$1355=$G$3),Receipts!$E$5:$E$1355)","v":0},{"$f":"SUMPRODUCT(--(Receipts!$C$5:$C$1355=A76),--(Receipts!$D$5:$D$1355=$H$3),Receipts!$E$5:$E$1355)","v":0},{"$f":"SUMPRODUCT(--(Receipts!$C$5:$C$1355=A76),--(Receipts!$D$5:$D$1355=$I$3),Receipts!$E$5:$E$1355)","v":0},{"$f":"SUMPRODUCT(--(Receipts!$C$5:$C$1355=A76),--(Receipts!$D$5:$D$1355=$J$3),Receipts!$E$5:$E$1355)","v":0},{"$f":"SUMPRODUCT(--(Receipts!$C$5:$C$1355=A76),--(Receipts!$D$5:$D$1355=$K$3),Receipts!$E$5:$E$1355)","v":0},{"$f":"SUMPRODUCT(--(Receipts!$C$5:$C$1355=A76),--(Receipts!$D$5:$D$1355=$L$3),Receipts!$E$5:$E$1355)","v":0},{"$f":"SUMPRODUCT(--(Receipts!$C$5:$C$1355=A76),--(Receipts!$D$5:$D$1355=$M$3),Receipts!$E$5:$E$1355)","v":0},{"$f":"SUMPRODUCT(--(Receipts!$C$5:$C$1355=A76),--(Receipts!$D$5:$D$1355=$N$3),Receipts!$E$5:$E$1355)","v":0},{"$f":"SUMPRODUCT(--(Receipts!$C$5:$C$1355=A76),--(Receipts!$D$5:$D$1355=$O$3),Receipts!$E$5:$E$1355)","v":0},{"$f":"SUMPRODUCT(--(Receipts!$C$5:$C$1355=A76),--(Receipts!$D$5:$D$1355=$P$3),Receipts!$E$5:$E$1355)","v":0},{"$f":"SUMPRODUCT(--(Receipts!$C$5:$C$1355=A76),--(Receipts!$D$5:$D$1355=$Q$3),Receipts!$E$5:$E$1355)","v":0},{"$f":"SUMPRODUCT(--(Receipts!$C$5:$C$1355=A76),--(Receipts!$D$5:$D$1355=$R$3),Receipts!$E$5:$E$1355)","v":0},{"$f":"SUMPRODUCT(--(Receipts!$C$5:$C$1355=A76),--(Receipts!$D$5:$D$1355=$S$3),Receipts!$E$5:$E$1355)","v":0},{"$f":"SUMPRODUCT(--(Receipts!$C$5:$C$1355=A76),--(Receipts!$D$5:$D$1355=$T$3),Receipts!$E$5:$E$1355)","v":0},{"$f":"SUMPRODUCT(--(Receipts!$C$5:$C$1355=A76),--(Receipts!$D$5:$D$1355=$U$3),Receipts!$E$5:$E$1355)","v":0},{"$f":"SUMPRODUCT(--(Receipts!$C$5:$C$1355=A76),--(Receipts!$D$5:$D$1355=$V$3),Receipts!$E$5:$E$1355)","v":0},{"$f":"SUMPRODUCT(--(Receipts!$C$5:$C$1355=A76),--(Receipts!$D$5:$D$1355=$W$3),Receipts!$E$5:$E$1355)","v":0},{"$f":"SUMPRODUCT(--(Receipts!$C$5:$C$1355=A76),--(Receipts!$D$5:$D$1355=$X$3),Receipts!$E$5:$E$1355)","v":0},{"$f":"SUMPRODUCT(--(Receipts!$C$5:$C$1355=A76),--(Receipts!$D$5:$D$1355=$Y$3),Receipts!$E$5:$E$1355)","v":0},{"$f":"SUMPRODUCT(--(Receipts!$C$5:$C$1355=A76),--(Receipts!$D$5:$D$1355=$Z$3),Receipts!$E$5:$E$1355)","v":0},{"$f":"SUMPRODUCT(--(Receipts!$C$5:$C$1355=A76),--(Receipts!$D$5:$D$1355=$AA$3),Receipts!$E$5:$E$1355)","v":0},{"$f":"SUMPRODUCT(--(Receipts!$C$5:$C$1355=A76),--(Receipts!$D$5:$D$1355=$AB$3),Receipts!$E$5:$E$1355)","v":0},{"$f":"SUMPRODUCT(--(Receipts!$C$5:$C$1355=A76),--(Receipts!$D$5:$D$1355=$AC$3),Receipts!$E$5:$E$1355)","v":0},{"$f":"SUMPRODUCT(--(Receipts!$C$5:$C$1355=A76),--(Receipts!$D$5:$D$1355=$AD$3),Receipts!$E$5:$E$1355)","v":0},null,0,0,0,0]
[{"$f":"Descriptions!B78","v":0},{"$f":"Descriptions!D78","v":"All other giving/voluntary receipts"},{"$f":"Descriptions!E78","v":0},{"$f":"SUMPRODUCT(--(Receipts!$C$5:$C$1355=A77),--(Receipts!$D$5:$D$1355=$D$3),Receipts!$E$5:$E$1355)","v":0},{"$f":"SUMPRODUCT(--(Receipts!$C$5:$C$1355=A77),--(Receipts!$D$5:$D$1355=$E$3),Receipts!$E$5:$E$1355)","v":0},{"$f":"SUMPRODUCT(--(Receipts!$C$5:$C$1355=A77),--(Receipts!$D$5:$D$1355=$F$3),Receipts!$E$5:$E$1355)","v":0},{"$f":"SUMPRODUCT(--(Receipts!$C$5:$C$1355=A77),--(Receipts!$D$5:$D$1355=$G$3),Receipts!$E$5:$E$1355)","v":0},{"$f":"SUMPRODUCT(--(Receipts!$C$5:$C$1355=A77),--(Receipts!$D$5:$D$1355=$H$3),Receipts!$E$5:$E$1355)","v":0},{"$f":"SUMPRODUCT(--(Receipts!$C$5:$C$1355=A77),--(Receipts!$D$5:$D$1355=$I$3),Receipts!$E$5:$E$1355)","v":0},{"$f":"SUMPRODUCT(--(Receipts!$C$5:$C$1355=A77),--(Receipts!$D$5:$D$1355=$J$3),Receipts!$E$5:$E$1355)","v":0},{"$f":"SUMPRODUCT(--(Receipts!$C$5:$C$1355=A77),--(Receipts!$D$5:$D$1355=$K$3),Receipts!$E$5:$E$1355)","v":0},{"$f":"SUMPRODUCT(--(Receipts!$C$5:$C$1355=A77),--(Receipts!$D$5:$D$1355=$L$3),Receipts!$E$5:$E$1355)","v":0},{"$f":"SUMPRODUCT(--(Receipts!$C$5:$C$1355=A77),--(Receipts!$D$5:$D$1355=$M$3),Receipts!$E$5:$E$1355)","v":0},{"$f":"SUMPRODUCT(--(Receipts!$C$5:$C$1355=A77),--(Receipts!$D$5:$D$1355=$N$3),Receipts!$E$5:$E$1355)","v":0},{"$f":"SUMPRODUCT(--(Receipts!$C$5:$C$1355=A77),--(Receipts!$D$5:$D$1355=$O$3),Receipts!$E$5:$E$1355)","v":0},{"$f":"SUMPRODUCT(--(Receipts!$C$5:$C$1355=A77),--(Receipts!$D$5:$D$1355=$P$3),Receipts!$E$5:$E$1355)","v":0},{"$f":"SUMPRODUCT(--(Receipts!$C$5:$C$1355=A77),--(Receipts!$D$5:$D$1355=$Q$3),Receipts!$E$5:$E$1355)","v":0},{"$f":"SUMPRODUCT(--(Receipts!$C$5:$C$1355=A77),--(Receipts!$D$5:$D$1355=$R$3),Receipts!$E$5:$E$1355)","v":0},{"$f":"SUMPRODUCT(--(Receipts!$C$5:$C$1355=A77),--(Receipts!$D$5:$D$1355=$S$3),Receipts!$E$5:$E$1355)","v":0},{"$f":"SUMPRODUCT(--(Receipts!$C$5:$C$1355=A77),--(Receipts!$D$5:$D$1355=$T$3),Receipts!$E$5:$E$1355)","v":0},{"$f":"SUMPRODUCT(--(Receipts!$C$5:$C$1355=A77),--(Receipts!$D$5:$D$1355=$U$3),Receipts!$E$5:$E$1355)","v":0},{"$f":"SUMPRODUCT(--(Receipts!$C$5:$C$1355=A77),--(Receipts!$D$5:$D$1355=$V$3),Receipts!$E$5:$E$1355)","v":0},{"$f":"SUMPRODUCT(--(Receipts!$C$5:$C$1355=A77),--(Receipts!$D$5:$D$1355=$W$3),Receipts!$E$5:$E$1355)","v":0},{"$f":"SUMPRODUCT(--(Receipts!$C$5:$C$1355=A77),--(Receipts!$D$5:$D$1355=$X$3),Receipts!$E$5:$E$1355)","v":0},{"$f":"SUMPRODUCT(--(Receipts!$C$5:$C$1355=A77),--(Receipts!$D$5:$D$1355=$Y$3),Receipts!$E$5:$E$1355)","v":0},{"$f":"SUMPRODUCT(--(Receipts!$C$5:$C$1355=A77),--(Receipts!$D$5:$D$1355=$Z$3),Receipts!$E$5:$E$1355)","v":0},{"$f":"SUMPRODUCT(--(Receipts!$C$5:$C$1355=A77),--(Receipts!$D$5:$D$1355=$AA$3),Receipts!$E$5:$E$1355)","v":0},{"$f":"SUMPRODUCT(--(Receipts!$C$5:$C$1355=A77),--(Receipts!$D$5:$D$1355=$AB$3),Receipts!$E$5:$E$1355)","v":0},{"$f":"SUMPRODUCT(--(Receipts!$C$5:$C$1355=A77),--(Receipts!$D$5:$D$1355=$AC$3),Receipts!$E$5:$E$1355)","v":0},{"$f":"SUMPRODUCT(--(Receipts!$C$5:$C$1355=A77),--(Receipts!$D$5:$D$1355=$AD$3),Receipts!$E$5:$E$1355)","v":0},null,0,0,0,0]
[{"$f":"Descriptions!B79","v":0},{"$f":"Descriptions!D79","v":"All other giving/voluntary receipts"},{"$f":"Descriptions!E79","v":0},{"$f":"SUMPRODUCT(--(Receipts!$C$5:$C$1355=A78),--(Receipts!$D$5:$D$1355=$D$3),Receipts!$E$5:$E$1355)","v":0},{"$f":"SUMPRODUCT(--(Receipts!$C$5:$C$1355=A78),--(Receipts!$D$5:$D$1355=$E$3),Receipts!$E$5:$E$1355)","v":0},{"$f":"SUMPRODUCT(--(Receipts!$C$5:$C$1355=A78),--(Receipts!$D$5:$D$1355=$F$3),Receipts!$E$5:$E$1355)","v":0},{"$f":"SUMPRODUCT(--(Receipts!$C$5:$C$1355=A78),--(Receipts!$D$5:$D$1355=$G$3),Receipts!$E$5:$E$1355)","v":0},{"$f":"SUMPRODUCT(--(Receipts!$C$5:$C$1355=A78),--(Receipts!$D$5:$D$1355=$H$3),Receipts!$E$5:$E$1355)","v":0},{"$f":"SUMPRODUCT(--(Receipts!$C$5:$C$1355=A78),--(Receipts!$D$5:$D$1355=$I$3),Receipts!$E$5:$E$1355)","v":0},{"$f":"SUMPRODUCT(--(Receipts!$C$5:$C$1355=A78),--(Receipts!$D$5:$D$1355=$J$3),Receipts!$E$5:$E$1355)","v":0},{"$f":"SUMPRODUCT(--(Receipts!$C$5:$C$1355=A78),--(Receipts!$D$5:$D$1355=$K$3),Receipts!$E$5:$E$1355)","v":0},{"$f":"SUMPRODUCT(--(Receipts!$C$5:$C$1355=A78),--(Receipts!$D$5:$D$1355=$L$3),Receipts!$E$5:$E$1355)","v":0},{"$f":"SUMPRODUCT(--(Receipts!$C$5:$C$1355=A78),--(Receipts!$D$5:$D$1355=$M$3),Receipts!$E$5:$E$1355)","v":0},{"$f":"SUMPRODUCT(--(Receipts!$C$5:$C$1355=A78),--(Receipts!$D$5:$D$1355=$N$3),Receipts!$E$5:$E$1355)","v":0},{"$f":"SUMPRODUCT(--(Receipts!$C$5:$C$1355=A78),--(Receipts!$D$5:$D$1355=$O$3),Receipts!$E$5:$E$1355)","v":0},{"$f":"SUMPRODUCT(--(Receipts!$C$5:$C$1355=A78),--(Receipts!$D$5:$D$1355=$P$3),Receipts!$E$5:$E$1355)","v":0},{"$f":"SUMPRODUCT(--(Receipts!$C$5:$C$1355=A78),--(Receipts!$D$5:$D$1355=$Q$3),Receipts!$E$5:$E$1355)","v":0},{"$f":"SUMPRODUCT(--(Receipts!$C$5:$C$1355=A78),--(Receipts!$D$5:$D$1355=$R$3),Receipts!$E$5:$E$1355)","v":0},{"$f":"SUMPRODUCT(--(Receipts!$C$5:$C$1355=A78),--(Receipts!$D$5:$D$1355=$S$3),Receipts!$E$5:$E$1355)","v":0},{"$f":"SUMPRODUCT(--(Receipts!$C$5:$C$1355=A78),--(Receipts!$D$5:$D$1355=$T$3),Receipts!$E$5:$E$1355)","v":0},{"$f":"SUMPRODUCT(--(Receipts!$C$5:$C$1355=A78),--(Receipts!$D$5:$D$1355=$U$3),Receipts!$E$5:$E$1355)","v":0},{"$f":"SUMPRODUCT(--(Receipts!$C$5:$C$1355=A78),--(Receipts!$D$5:$D$1355=$V$3),Receipts!$E$5:$E$1355)","v":0},{"$f":"SUMPRODUCT(--(Receipts!$C$5:$C$1355=A78),--(Receipts!$D$5:$D$1355=$W$3),Receipts!$E$5:$E$1355)","v":0},{"$f":"SUMPRODUCT(--(Receipts!$C$5:$C$1355=A78),--(Receipts!$D$5:$D$1355=$X$3),Receipts!$E$5:$E$1355)","v":0},{"$f":"SUMPRODUCT(--(Receipts!$C$5:$C$1355=A78),--(Receipts!$D$5:$D$1355=$Y$3),Receipts!$E$5:$E$1355)","v":0},{"$f":"SUMPRODUCT(--(Receipts!$C$5:$C$1355=A78),--(Receipts!$D$5:$D$1355=$Z$3),Receipts!$E$5:$E$1355)","v":0},{"$f":"SUMPRODUCT(--(Receipts!$C$5:$C$1355=A78),--(Receipts!$D$5:$D$1355=$AA$3),Receipts!$E$5:$E$1355)","v":0},{"$f":"SUMPRODUCT(--(Receipts!$C$5:$C$1355=A78),--(Receipts!$D$5:$D$1355=$AB$3),Receipts!$E$5:$E$1355)","v":0},{"$f":"SUMPRODUCT(--(Receipts!$C$5:$C$1355=A78),--(Receipts!$D$5:$D$1355=$AC$3),Receipts!$E$5:$E$1355)","v":0},{"$f":"SUMPRODUCT(--(Receipts!$C$5:$C$1355=A78),--(Receipts!$D$5:$D$1355=$AD$3),Receipts!$E$5:$E$1355)","v":0},null,0,0,0,0]
[{"$f":"Descriptions!B80","v":0},{"$f":"Descriptions!D80","v":"All other giving/voluntary receipts"},{"$f":"Descriptions!E80","v":0},{"$f":"SUMPRODUCT(--(Receipts!$C$5:$C$1355=A79),--(Receipts!$D$5:$D$1355=$D$3),Receipts!$E$5:$E$1355)","v":0},{"$f":"SUMPRODUCT(--(Receipts!$C$5:$C$1355=A79),--(Receipts!$D$5:$D$1355=$E$3),Receipts!$E$5:$E$1355)","v":0},{"$f":"SUMPRODUCT(--(Receipts!$C$5:$C$1355=A79),--(Receipts!$D$5:$D$1355=$F$3),Receipts!$E$5:$E$1355)","v":0},{"$f":"SUMPRODUCT(--(Receipts!$C$5:$C$1355=A79),--(Receipts!$D$5:$D$1355=$G$3),Receipts!$E$5:$E$1355)","v":0},{"$f":"SUMPRODUCT(--(Receipts!$C$5:$C$1355=A79),--(Receipts!$D$5:$D$1355=$H$3),Receipts!$E$5:$E$1355)","v":0},{"$f":"SUMPRODUCT(--(Receipts!$C$5:$C$1355=A79),--(Receipts!$D$5:$D$1355=$I$3),Receipts!$E$5:$E$1355)","v":0},{"$f":"SUMPRODUCT(--(Receipts!$C$5:$C$1355=A79),--(Receipts!$D$5:$D$1355=$J$3),Receipts!$E$5:$E$1355)","v":0},{"$f":"SUMPRODUCT(--(Receipts!$C$5:$C$1355=A79),--(Receipts!$D$5:$D$1355=$K$3),Receipts!$E$5:$E$1355)","v":0},{"$f":"SUMPRODUCT(--(Receipts!$C$5:$C$1355=A79),--(Receipts!$D$5:$D$1355=$L$3),Receipts!$E$5:$E$1355)","v":0},{"$f":"SUMPRODUCT(--(Receipts!$C$5:$C$1355=A79),--(Receipts!$D$5:$D$1355=$M$3),Receipts!$E$5:$E$1355)","v":0},{"$f":"SUMPRODUCT(--(Receipts!$C$5:$C$1355=A79),--(Receipts!$D$5:$D$1355=$N$3),Receipts!$E$5:$E$1355)","v":0},{"$f":"SUMPRODUCT(--(Receipts!$C$5:$C$1355=A79),--(Receipts!$D$5:$D$1355=$O$3),Receipts!$E$5:$E$1355)","v":0},{"$f":"SUMPRODUCT(--(Receipts!$C$5:$C$1355=A79),--(Receipts!$D$5:$D$1355=$P$3),Receipts!$E$5:$E$1355)","v":0},{"$f":"SUMPRODUCT(--(Receipts!$C$5:$C$1355=A79),--(Receipts!$D$5:$D$1355=$Q$3),Receipts!$E$5:$E$1355)","v":0},{"$f":"SUMPRODUCT(--(Receipts!$C$5:$C$1355=A79),--(Receipts!$D$5:$D$1355=$R$3),Receipts!$E$5:$E$1355)","v":0},{"$f":"SUMPRODUCT(--(Receipts!$C$5:$C$1355=A79),--(Receipts!$D$5:$D$1355=$S$3),Receipts!$E$5:$E$1355)","v":0},{"$f":"SUMPRODUCT(--(Receipts!$C$5:$C$1355=A79),--(Receipts!$D$5:$D$1355=$T$3),Receipts!$E$5:$E$1355)","v":0},{"$f":"SUMPRODUCT(--(Receipts!$C$5:$C$1355=A79),--(Receipts!$D$5:$D$1355=$U$3),Receipts!$E$5:$E$1355)","v":0},{"$f":"SUMPRODUCT(--(Receipts!$C$5:$C$1355=A79),--(Receipts!$D$5:$D$1355=$V$3),Receipts!$E$5:$E$1355)","v":0},{"$f":"SUMPRODUCT(--(Receipts!$C$5:$C$1355=A79),--(Receipts!$D$5:$D$1355=$W$3),Receipts!$E$5:$E$1355)","v":0},{"$f":"SUMPRODUCT(--(Receipts!$C$5:$C$1355=A79),--(Receipts!$D$5:$D$1355=$X$3),Receipts!$E$5:$E$1355)","v":0},{"$f":"SUMPRODUCT(--(Receipts!$C$5:$C$1355=A79),--(Receipts!$D$5:$D$1355=$Y$3),Receipts!$E$5:$E$1355)","v":0},{"$f":"SUMPRODUCT(--(Receipts!$C$5:$C$1355=A79),--(Receipts!$D$5:$D$1355=$Z$3),Receipts!$E$5:$E$1355)","v":0},{"$f":"SUMPRODUCT(--(Receipts!$C$5:$C$1355=A79),--(Receipts!$D$5:$D$1355=$AA$3),Receipts!$E$5:$E$1355)","v":0},{"$f":"SUMPRODUCT(--(Receipts!$C$5:$C$1355=A79),--(Receipts!$D$5:$D$1355=$AB$3),Receipts!$E$5:$E$1355)","v":0},{"$f":"SUMPRODUCT(--(Receipts!$C$5:$C$1355=A79),--(Receipts!$D$5:$D$1355=$AC$3),Receipts!$E$5:$E$1355)","v":0},{"$f":"SUMPRODUCT(--(Receipts!$C$5:$C$1355=A79),--(Receipts!$D$5:$D$1355=$AD$3),Receipts!$E$5:$E$1355)","v":0},null,0,0,0,0]
[{"$f":"Descriptions!B81","v":0},{"$f":"Descriptions!D81","v":"All other giving/voluntary receipts"},{"$f":"Descriptions!E81","v":0},{"$f":"SUMPRODUCT(--(Receipts!$C$5:$C$1355=A80),--(Receipts!$D$5:$D$1355=$D$3),Receipts!$E$5:$E$1355)","v":0},{"$f":"SUMPRODUCT(--(Receipts!$C$5:$C$1355=A80),--(Receipts!$D$5:$D$1355=$E$3),Receipts!$E$5:$E$1355)","v":0},{"$f":"SUMPRODUCT(--(Receipts!$C$5:$C$1355=A80),--(Receipts!$D$5:$D$1355=$F$3),Receipts!$E$5:$E$1355)","v":0},{"$f":"SUMPRODUCT(--(Receipts!$C$5:$C$1355=A80),--(Receipts!$D$5:$D$1355=$G$3),Receipts!$E$5:$E$1355)","v":0},{"$f":"SUMPRODUCT(--(Receipts!$C$5:$C$1355=A80),--(Receipts!$D$5:$D$1355=$H$3),Receipts!$E$5:$E$1355)","v":0},{"$f":"SUMPRODUCT(--(Receipts!$C$5:$C$1355=A80),--(Receipts!$D$5:$D$1355=$I$3),Receipts!$E$5:$E$1355)","v":0},{"$f":"SUMPRODUCT(--(Receipts!$C$5:$C$1355=A80),--(Receipts!$D$5:$D$1355=$J$3),Receipts!$E$5:$E$1355)","v":0},{"$f":"SUMPRODUCT(--(Receipts!$C$5:$C$1355=A80),--(Receipts!$D$5:$D$1355=$K$3),Receipts!$E$5:$E$1355)","v":0},{"$f":"SUMPRODUCT(--(Receipts!$C$5:$C$1355=A80),--(Receipts!$D$5:$D$1355=$L$3),Receipts!$E$5:$E$1355)","v":0},{"$f":"SUMPRODUCT(--(Receipts!$C$5:$C$1355=A80),--(Receipts!$D$5:$D$1355=$M$3),Receipts!$E$5:$E$1355)","v":0},{"$f":"SUMPRODUCT(--(Receipts!$C$5:$C$1355=A80),--(Receipts!$D$5:$D$1355=$N$3),Receipts!$E$5:$E$1355)","v":0},{"$f":"SUMPRODUCT(--(Receipts!$C$5:$C$1355=A80),--(Receipts!$D$5:$D$1355=$O$3),Receipts!$E$5:$E$1355)","v":0},{"$f":"SUMPRODUCT(--(Receipts!$C$5:$C$1355=A80),--(Receipts!$D$5:$D$1355=$P$3),Receipts!$E$5:$E$1355)","v":0},{"$f":"SUMPRODUCT(--(Receipts!$C$5:$C$1355=A80),--(Receipts!$D$5:$D$1355=$Q$3),Receipts!$E$5:$E$1355)","v":0},{"$f":"SUMPRODUCT(--(Receipts!$C$5:$C$1355=A80),--(Receipts!$D$5:$D$1355=$R$3),Receipts!$E$5:$E$1355)","v":0},{"$f":"SUMPRODUCT(--(Receipts!$C$5:$C$1355=A80),--(Receipts!$D$5:$D$1355=$S$3),Receipts!$E$5:$E$1355)","v":0},{"$f":"SUMPRODUCT(--(Receipts!$C$5:$C$1355=A80),--(Receipts!$D$5:$D$1355=$T$3),Receipts!$E$5:$E$1355)","v":0},{"$f":"SUMPRODUCT(--(Receipts!$C$5:$C$1355=A80),--(Receipts!$D$5:$D$1355=$U$3),Receipts!$E$5:$E$1355)","v":0},{"$f":"SUMPRODUCT(--(Receipts!$C$5:$C$1355=A80),--(Receipts!$D$5:$D$1355=$V$3),Receipts!$E$5:$E$1355)","v":0},{"$f":"SUMPRODUCT(--(Receipts!$C$5:$C$1355=A80),--(Receipts!$D$5:$D$1355=$W$3),Receipts!$E$5:$E$1355)","v":0},{"$f":"SUMPRODUCT(--(Receipts!$C$5:$C$1355=A80),--(Receipts!$D$5:$D$1355=$X$3),Receipts!$E$5:$E$1355)","v":0},{"$f":"SUMPRODUCT(--(Receipts!$C$5:$C$1355=A80),--(Receipts!$D$5:$D$1355=$Y$3),Receipts!$E$5:$E$1355)","v":0},{"$f":"SUMPRODUCT(--(Receipts!$C$5:$C$1355=A80),--(Receipts!$D$5:$D$1355=$Z$3),Receipts!$E$5:$E$1355)","v":0},{"$f":"SUMPRODUCT(--(Receipts!$C$5:$C$1355=A80),--(Receipts!$D$5:$D$1355=$AA$3),Receipts!$E$5:$E$1355)","v":0},{"$f":"SUMPRODUCT(--(Receipts!$C$5:$C$1355=A80),--(Receipts!$D$5:$D$1355=$AB$3),Receipts!$E$5:$E$1355)","v":0},{"$f":"SUMPRODUCT(--(Receipts!$C$5:$C$1355=A80),--(Receipts!$D$5:$D$1355=$AC$3),Receipts!$E$5:$E$1355)","v":0},{"$f":"SUMPRODUCT(--(Receipts!$C$5:$C$1355=A80),--(Receipts!$D$5:$D$1355=$AD$3),Receipts!$E$5:$E$1355)","v":0},null,0,0,0,0]
[{"$f":"Descriptions!B82","v":0},{"$f":"Descriptions!D82","v":"All other giving/voluntary receipts"},{"$f":"Descriptions!E82","v":0},{"$f":"SUMPRODUCT(--(Receipts!$C$5:$C$1355=A81),--(Receipts!$D$5:$D$1355=$D$3),Receipts!$E$5:$E$1355)","v":0},{"$f":"SUMPRODUCT(--(Receipts!$C$5:$C$1355=A81),--(Receipts!$D$5:$D$1355=$E$3),Receipts!$E$5:$E$1355)","v":0},{"$f":"SUMPRODUCT(--(Receipts!$C$5:$C$1355=A81),--(Receipts!$D$5:$D$1355=$F$3),Receipts!$E$5:$E$1355)","v":0},{"$f":"SUMPRODUCT(--(Receipts!$C$5:$C$1355=A81),--(Receipts!$D$5:$D$1355=$G$3),Receipts!$E$5:$E$1355)","v":0},{"$f":"SUMPRODUCT(--(Receipts!$C$5:$C$1355=A81),--(Receipts!$D$5:$D$1355=$H$3),Receipts!$E$5:$E$1355)","v":0},{"$f":"SUMPRODUCT(--(Receipts!$C$5:$C$1355=A81),--(Receipts!$D$5:$D$1355=$I$3),Receipts!$E$5:$E$1355)","v":0},{"$f":"SUMPRODUCT(--(Receipts!$C$5:$C$1355=A81),--(Receipts!$D$5:$D$1355=$J$3),Receipts!$E$5:$E$1355)","v":0},{"$f":"SUMPRODUCT(--(Receipts!$C$5:$C$1355=A81),--(Receipts!$D$5:$D$1355=$K$3),Receipts!$E$5:$E$1355)","v":0},{"$f":"SUMPRODUCT(--(Receipts!$C$5:$C$1355=A81),--(Receipts!$D$5:$D$1355=$L$3),Receipts!$E$5:$E$1355)","v":0},{"$f":"SUMPRODUCT(--(Receipts!$C$5:$C$1355=A81),--(Receipts!$D$5:$D$1355=$M$3),Receipts!$E$5:$E$1355)","v":0},{"$f":"SUMPRODUCT(--(Receipts!$C$5:$C$1355=A81),--(Receipts!$D$5:$D$1355=$N$3),Receipts!$E$5:$E$1355)","v":0},{"$f":"SUMPRODUCT(--(Receipts!$C$5:$C$1355=A81),--(Receipts!$D$5:$D$1355=$O$3),Receipts!$E$5:$E$1355)","v":0},{"$f":"SUMPRODUCT(--(Receipts!$C$5:$C$1355=A81),--(Receipts!$D$5:$D$1355=$P$3),Receipts!$E$5:$E$1355)","v":0},{"$f":"SUMPRODUCT(--(Receipts!$C$5:$C$1355=A81),--(Receipts!$D$5:$D$1355=$Q$3),Receipts!$E$5:$E$1355)","v":0},{"$f":"SUMPRODUCT(--(Receipts!$C$5:$C$1355=A81),--(Receipts!$D$5:$D$1355=$R$3),Receipts!$E$5:$E$1355)","v":0},{"$f":"SUMPRODUCT(--(Receipts!$C$5:$C$1355=A81),--(Receipts!$D$5:$D$1355=$S$3),Receipts!$E$5:$E$1355)","v":0},{"$f":"SUMPRODUCT(--(Receipts!$C$5:$C$1355=A81),--(Receipts!$D$5:$D$1355=$T$3),Receipts!$E$5:$E$1355)","v":0},{"$f":"SUMPRODUCT(--(Receipts!$C$5:$C$1355=A81),--(Receipts!$D$5:$D$1355=$U$3),Receipts!$E$5:$E$1355)","v":0},{"$f":"SUMPRODUCT(--(Receipts!$C$5:$C$1355=A81),--(Receipts!$D$5:$D$1355=$V$3),Receipts!$E$5:$E$1355)","v":0},{"$f":"SUMPRODUCT(--(Receipts!$C$5:$C$1355=A81),--(Receipts!$D$5:$D$1355=$W$3),Receipts!$E$5:$E$1355)","v":0},{"$f":"SUMPRODUCT(--(Receipts!$C$5:$C$1355=A81),--(Receipts!$D$5:$D$1355=$X$3),Receipts!$E$5:$E$1355)","v":0},{"$f":"SUMPRODUCT(--(Receipts!$C$5:$C$1355=A81),--(Receipts!$D$5:$D$1355=$Y$3),Receipts!$E$5:$E$1355)","v":0},{"$f":"SUMPRODUCT(--(Receipts!$C$5:$C$1355=A81),--(Receipts!$D$5:$D$1355=$Z$3),Receipts!$E$5:$E$1355)","v":0},{"$f":"SUMPRODUCT(--(Receipts!$C$5:$C$1355=A81),--(Receipts!$D$5:$D$1355=$AA$3),Receipts!$E$5:$E$1355)","v":0},{"$f":"SUMPRODUCT(--(Receipts!$C$5:$C$1355=A81),--(Receipts!$D$5:$D$1355=$AB$3),Receipts!$E$5:$E$1355)","v":0},{"$f":"SUMPRODUCT(--(Receipts!$C$5:$C$1355=A81),--(Receipts!$D$5:$D$1355=$AC$3),Receipts!$E$5:$E$1355)","v":0},{"$f":"SUMPRODUCT(--(Receipts!$C$5:$C$1355=A81),--(Receipts!$D$5:$D$1355=$AD$3),Receipts!$E$5:$E$1355)","v":0},null,0,0,0,0]
[{"$f":"Descriptions!B83","v":0},{"$f":"Descriptions!D83","v":"All other giving/voluntary receipts"},{"$f":"Descriptions!E83","v":0},{"$f":"SUMPRODUCT(--(Receipts!$C$5:$C$1355=A82),--(Receipts!$D$5:$D$1355=$D$3),Receipts!$E$5:$E$1355)","v":0},{"$f":"SUMPRODUCT(--(Receipts!$C$5:$C$1355=A82),--(Receipts!$D$5:$D$1355=$E$3),Receipts!$E$5:$E$1355)","v":0},{"$f":"SUMPRODUCT(--(Receipts!$C$5:$C$1355=A82),--(Receipts!$D$5:$D$1355=$F$3),Receipts!$E$5:$E$1355)","v":0},{"$f":"SUMPRODUCT(--(Receipts!$C$5:$C$1355=A82),--(Receipts!$D$5:$D$1355=$G$3),Receipts!$E$5:$E$1355)","v":0},{"$f":"SUMPRODUCT(--(Receipts!$C$5:$C$1355=A82),--(Receipts!$D$5:$D$1355=$H$3),Receipts!$E$5:$E$1355)","v":0},{"$f":"SUMPRODUCT(--(Receipts!$C$5:$C$1355=A82),--(Receipts!$D$5:$D$1355=$I$3),Receipts!$E$5:$E$1355)","v":0},{"$f":"SUMPRODUCT(--(Receipts!$C$5:$C$1355=A82),--(Receipts!$D$5:$D$1355=$J$3),Receipts!$E$5:$E$1355)","v":0},{"$f":"SUMPRODUCT(--(Receipts!$C$5:$C$1355=A82),--(Receipts!$D$5:$D$1355=$K$3),Receipts!$E$5:$E$1355)","v":0},{"$f":"SUMPRODUCT(--(Receipts!$C$5:$C$1355=A82),--(Receipts!$D$5:$D$1355=$L$3),Receipts!$E$5:$E$1355)","v":0},{"$f":"SUMPRODUCT(--(Receipts!$C$5:$C$1355=A82),--(Receipts!$D$5:$D$1355=$M$3),Receipts!$E$5:$E$1355)","v":0},{"$f":"SUMPRODUCT(--(Receipts!$C$5:$C$1355=A82),--(Receipts!$D$5:$D$1355=$N$3),Receipts!$E$5:$E$1355)","v":0},{"$f":"SUMPRODUCT(--(Receipts!$C$5:$C$1355=A82),--(Receipts!$D$5:$D$1355=$O$3),Receipts!$E$5:$E$1355)","v":0},{"$f":"SUMPRODUCT(--(Receipts!$C$5:$C$1355=A82),--(Receipts!$D$5:$D$1355=$P$3),Receipts!$E$5:$E$1355)","v":0},{"$f":"SUMPRODUCT(--(Receipts!$C$5:$C$1355=A82),--(Receipts!$D$5:$D$1355=$Q$3),Receipts!$E$5:$E$1355)","v":0},{"$f":"SUMPRODUCT(--(Receipts!$C$5:$C$1355=A82),--(Receipts!$D$5:$D$1355=$R$3),Receipts!$E$5:$E$1355)","v":0},{"$f":"SUMPRODUCT(--(Receipts!$C$5:$C$1355=A82),--(Receipts!$D$5:$D$1355=$S$3),Receipts!$E$5:$E$1355)","v":0},{"$f":"SUMPRODUCT(--(Receipts!$C$5:$C$1355=A82),--(Receipts!$D$5:$D$1355=$T$3),Receipts!$E$5:$E$1355)","v":0},{"$f":"SUMPRODUCT(--(Receipts!$C$5:$C$1355=A82),--(Receipts!$D$5:$D$1355=$U$3),Receipts!$E$5:$E$1355)","v":0},{"$f":"SUMPRODUCT(--(Receipts!$C$5:$C$1355=A82),--(Receipts!$D$5:$D$1355=$V$3),Receipts!$E$5:$E$1355)","v":0},{"$f":"SUMPRODUCT(--(Receipts!$C$5:$C$1355=A82),--(Receipts!$D$5:$D$1355=$W$3),Receipts!$E$5:$E$1355)","v":0},{"$f":"SUMPRODUCT(--(Receipts!$C$5:$C$1355=A82),--(Receipts!$D$5:$D$1355=$X$3),Receipts!$E$5:$E$1355)","v":0},{"$f":"SUMPRODUCT(--(Receipts!$C$5:$C$1355=A82),--(Receipts!$D$5:$D$1355=$Y$3),Receipts!$E$5:$E$1355)","v":0},{"$f":"SUMPRODUCT(--(Receipts!$C$5:$C$1355=A82),--(Receipts!$D$5:$D$1355=$Z$3),Receipts!$E$5:$E$1355)","v":0},{"$f":"SUMPRODUCT(--(Receipts!$C$5:$C$1355=A82),--(Receipts!$D$5:$D$1355=$AA$3),Receipts!$E$5:$E$1355)","v":0},{"$f":"SUMPRODUCT(--(Receipts!$C$5:$C$1355=A82),--(Receipts!$D$5:$D$1355=$AB$3),Receipts!$E$5:$E$1355)","v":0},{"$f":"SUMPRODUCT(--(Receipts!$C$5:$C$1355=A82),--(Receipts!$D$5:$D$1355=$AC$3),Receipts!$E$5:$E$1355)","v":0},{"$f":"SUMPRODUCT(--(Receipts!$C$5:$C$1355=A82),--(Receipts!$D$5:$D$1355=$AD$3),Receipts!$E$5:$E$1355)","v":0},null,0,0,0,0]
[{"$f":"Descriptions!B84","v":0},{"$f":"Descriptions!D84","v":"All other giving/voluntary receipts"},{"$f":"Descriptions!E84","v":0},{"$f":"SUMPRODUCT(--(Receipts!$C$5:$C$1355=A83),--(Receipts!$D$5:$D$1355=$D$3),Receipts!$E$5:$E$1355)","v":0},{"$f":"SUMPRODUCT(--(Receipts!$C$5:$C$1355=A83),--(Receipts!$D$5:$D$1355=$E$3),Receipts!$E$5:$E$1355)","v":0},{"$f":"SUMPRODUCT(--(Receipts!$C$5:$C$1355=A83),--(Receipts!$D$5:$D$1355=$F$3),Receipts!$E$5:$E$1355)","v":0},{"$f":"SUMPRODUCT(--(Receipts!$C$5:$C$1355=A83),--(Receipts!$D$5:$D$1355=$G$3),Receipts!$E$5:$E$1355)","v":0},{"$f":"SUMPRODUCT(--(Receipts!$C$5:$C$1355=A83),--(Receipts!$D$5:$D$1355=$H$3),Receipts!$E$5:$E$1355)","v":0},{"$f":"SUMPRODUCT(--(Receipts!$C$5:$C$1355=A83),--(Receipts!$D$5:$D$1355=$I$3),Receipts!$E$5:$E$1355)","v":0},{"$f":"SUMPRODUCT(--(Receipts!$C$5:$C$1355=A83),--(Receipts!$D$5:$D$1355=$J$3),Receipts!$E$5:$E$1355)","v":0},{"$f":"SUMPRODUCT(--(Receipts!$C$5:$C$1355=A83),--(Receipts!$D$5:$D$1355=$K$3),Receipts!$E$5:$E$1355)","v":0},{"$f":"SUMPRODUCT(--(Receipts!$C$5:$C$1355=A83),--(Receipts!$D$5:$D$1355=$L$3),Receipts!$E$5:$E$1355)","v":0},{"$f":"SUMPRODUCT(--(Receipts!$C$5:$C$1355=A83),--(Receipts!$D$5:$D$1355=$M$3),Receipts!$E$5:$E$1355)","v":0},{"$f":"SUMPRODUCT(--(Receipts!$C$5:$C$1355=A83),--(Receipts!$D$5:$D$1355=$N$3),Receipts!$E$5:$E$1355)","v":0},{"$f":"SUMPRODUCT(--(Receipts!$C$5:$C$1355=A83),--(Receipts!$D$5:$D$1355=$O$3),Receipts!$E$5:$E$1355)","v":0},{"$f":"SUMPRODUCT(--(Receipts!$C$5:$C$1355=A83),--(Receipts!$D$5:$D$1355=$P$3),Receipts!$E$5:$E$1355)","v":0},{"$f":"SUMPRODUCT(--(Receipts!$C$5:$C$1355=A83),--(Receipts!$D$5:$D$1355=$Q$3),Receipts!$E$5:$E$1355)","v":0},{"$f":"SUMPRODUCT(--(Receipts!$C$5:$C$1355=A83),--(Receipts!$D$5:$D$1355=$R$3),Receipts!$E$5:$E$1355)","v":0},{"$f":"SUMPRODUCT(--(Receipts!$C$5:$C$1355=A83),--(Receipts!$D$5:$D$1355=$S$3),Receipts!$E$5:$E$1355)","v":0},{"$f":"SUMPRODUCT(--(Receipts!$C$5:$C$1355=A83),--(Receipts!$D$5:$D$1355=$T$3),Receipts!$E$5:$E$1355)","v":0},{"$f":"SUMPRODUCT(--(Receipts!$C$5:$C$1355=A83),--(Receipts!$D$5:$D$1355=$U$3),Receipts!$E$5:$E$1355)","v":0},{"$f":"SUMPRODUCT(--(Receipts!$C$5:$C$1355=A83),--(Receipts!$D$5:$D$1355=$V$3),Receipts!$E$5:$E$1355)","v":0},{"$f":"SUMPRODUCT(--(Receipts!$C$5:$C$1355=A83),--(Receipts!$D$5:$D$1355=$W$3),Receipts!$E$5:$E$1355)","v":0},{"$f":"SUMPRODUCT(--(Receipts!$C$5:$C$1355=A83),--(Receipts!$D$5:$D$1355=$X$3),Receipts!$E$5:$E$1355)","v":0},{"$f":"SUMPRODUCT(--(Receipts!$C$5:$C$1355=A83),--(Receipts!$D$5:$D$1355=$Y$3),Receipts!$E$5:$E$1355)","v":0},{"$f":"SUMPRODUCT(--(Receipts!$C$5:$C$1355=A83),--(Receipts!$D$5:$D$1355=$Z$3),Receipts!$E$5:$E$1355)","v":0},{"$f":"SUMPRODUCT(--(Receipts!$C$5:$C$1355=A83),--(Receipts!$D$5:$D$1355=$AA$3),Receipts!$E$5:$E$1355)","v":0},{"$f":"SUMPRODUCT(--(Receipts!$C$5:$C$1355=A83),--(Receipts!$D$5:$D$1355=$AB$3),Receipts!$E$5:$E$1355)","v":0},{"$f":"SUMPRODUCT(--(Receipts!$C$5:$C$1355=A83),--(Receipts!$D$5:$D$1355=$AC$3),Receipts!$E$5:$E$1355)","v":0},{"$f":"SUMPRODUCT(--(Receipts!$C$5:$C$1355=A83),--(Receipts!$D$5:$D$1355=$AD$3),Receipts!$E$5:$E$1355)","v":0},null,0,0,0,0]
[{"$f":"Descriptions!B85","v":0},{"$f":"Descriptions!D85","v":"All other giving/voluntary receipts"},{"$f":"Descriptions!E85","v":0},{"$f":"SUMPRODUCT(--(Receipts!$C$5:$C$1355=A84),--(Receipts!$D$5:$D$1355=$D$3),Receipts!$E$5:$E$1355)","v":0},{"$f":"SUMPRODUCT(--(Receipts!$C$5:$C$1355=A84),--(Receipts!$D$5:$D$1355=$E$3),Receipts!$E$5:$E$1355)","v":0},{"$f":"SUMPRODUCT(--(Receipts!$C$5:$C$1355=A84),--(Receipts!$D$5:$D$1355=$F$3),Receipts!$E$5:$E$1355)","v":0},{"$f":"SUMPRODUCT(--(Receipts!$C$5:$C$1355=A84),--(Receipts!$D$5:$D$1355=$G$3),Receipts!$E$5:$E$1355)","v":0},{"$f":"SUMPRODUCT(--(Receipts!$C$5:$C$1355=A84),--(Receipts!$D$5:$D$1355=$H$3),Receipts!$E$5:$E$1355)","v":0},{"$f":"SUMPRODUCT(--(Receipts!$C$5:$C$1355=A84),--(Receipts!$D$5:$D$1355=$I$3),Receipts!$E$5:$E$1355)","v":0},{"$f":"SUMPRODUCT(--(Receipts!$C$5:$C$1355=A84),--(Receipts!$D$5:$D$1355=$J$3),Receipts!$E$5:$E$1355)","v":0},{"$f":"SUMPRODUCT(--(Receipts!$C$5:$C$1355=A84),--(Receipts!$D$5:$D$1355=$K$3),Receipts!$E$5:$E$1355)","v":0},{"$f":"SUMPRODUCT(--(Receipts!$C$5:$C$1355=A84),--(Receipts!$D$5:$D$1355=$L$3),Receipts!$E$5:$E$1355)","v":0},{"$f":"SUMPRODUCT(--(Receipts!$C$5:$C$1355=A84),--(Receipts!$D$5:$D$1355=$M$3),Receipts!$E$5:$E$1355)","v":0},{"$f":"SUMPRODUCT(--(Receipts!$C$5:$C$1355=A84),--(Receipts!$D$5:$D$1355=$N$3),Receipts!$E$5:$E$1355)","v":0},{"$f":"SUMPRODUCT(--(Receipts!$C$5:$C$1355=A84),--(Receipts!$D$5:$D$1355=$O$3),Receipts!$E$5:$E$1355)","v":0},{"$f":"SUMPRODUCT(--(Receipts!$C$5:$C$1355=A84),--(Receipts!$D$5:$D$1355=$P$3),Receipts!$E$5:$E$1355)","v":0},{"$f":"SUMPRODUCT(--(Receipts!$C$5:$C$1355=A84),--(Receipts!$D$5:$D$1355=$Q$3),Receipts!$E$5:$E$1355)","v":0},{"$f":"SUMPRODUCT(--(Receipts!$C$5:$C$1355=A84),--(Receipts!$D$5:$D$1355=$R$3),Receipts!$E$5:$E$1355)","v":0},{"$f":"SUMPRODUCT(--(Receipts!$C$5:$C$1355=A84),--(Receipts!$D$5:$D$1355=$S$3),Receipts!$E$5:$E$1355)","v":0},{"$f":"SUMPRODUCT(--(Receipts!$C$5:$C$1355=A84),--(Receipts!$D$5:$D$1355=$T$3),Receipts!$E$5:$E$1355)","v":0},{"$f":"SUMPRODUCT(--(Receipts!$C$5:$C$1355=A84),--(Receipts!$D$5:$D$1355=$U$3),Receipts!$E$5:$E$1355)","v":0},{"$f":"SUMPRODUCT(--(Receipts!$C$5:$C$1355=A84),--(Receipts!$D$5:$D$1355=$V$3),Receipts!$E$5:$E$1355)","v":0},{"$f":"SUMPRODUCT(--(Receipts!$C$5:$C$1355=A84),--(Receipts!$D$5:$D$1355=$W$3),Receipts!$E$5:$E$1355)","v":0},{"$f":"SUMPRODUCT(--(Receipts!$C$5:$C$1355=A84),--(Receipts!$D$5:$D$1355=$X$3),Receipts!$E$5:$E$1355)","v":0},{"$f":"SUMPRODUCT(--(Receipts!$C$5:$C$1355=A84),--(Receipts!$D$5:$D$1355=$Y$3),Receipts!$E$5:$E$1355)","v":0},{"$f":"SUMPRODUCT(--(Receipts!$C$5:$C$1355=A84),--(Receipts!$D$5:$D$1355=$Z$3),Receipts!$E$5:$E$1355)","v":0},{"$f":"SUMPRODUCT(--(Receipts!$C$5:$C$1355=A84),--(Receipts!$D$5:$D$1355=$AA$3),Receipts!$E$5:$E$1355)","v":0},{"$f":"SUMPRODUCT(--(Receipts!$C$5:$C$1355=A84),--(Receipts!$D$5:$D$1355=$AB$3),Receipts!$E$5:$E$1355)","v":0},{"$f":"SUMPRODUCT(--(Receipts!$C$5:$C$1355=A84),--(Receipts!$D$5:$D$1355=$AC$3),Receipts!$E$5:$E$1355)","v":0},{"$f":"SUMPRODUCT(--(Receipts!$C$5:$C$1355=A84),--(Receipts!$D$5:$D$1355=$AD$3),Receipts!$E$5:$E$1355)","v":0},null,0,0,0,0]
[{"$f":"Descriptions!B86","v":0},{"$f":"Descriptions!D86","v":"All other giving/voluntary receipts"},{"$f":"Descriptions!E86","v":0},{"$f":"SUMPRODUCT(--(Receipts!$C$5:$C$1355=A85),--(Receipts!$D$5:$D$1355=$D$3),Receipts!$E$5:$E$1355)","v":0},{"$f":"SUMPRODUCT(--(Receipts!$C$5:$C$1355=A85),--(Receipts!$D$5:$D$1355=$E$3),Receipts!$E$5:$E$1355)","v":0},{"$f":"SUMPRODUCT(--(Receipts!$C$5:$C$1355=A85),--(Receipts!$D$5:$D$1355=$F$3),Receipts!$E$5:$E$1355)","v":0},{"$f":"SUMPRODUCT(--(Receipts!$C$5:$C$1355=A85),--(Receipts!$D$5:$D$1355=$G$3),Receipts!$E$5:$E$1355)","v":0},{"$f":"SUMPRODUCT(--(Receipts!$C$5:$C$1355=A85),--(Receipts!$D$5:$D$1355=$H$3),Receipts!$E$5:$E$1355)","v":0},{"$f":"SUMPRODUCT(--(Receipts!$C$5:$C$1355=A85),--(Receipts!$D$5:$D$1355=$I$3),Receipts!$E$5:$E$1355)","v":0},{"$f":"SUMPRODUCT(--(Receipts!$C$5:$C$1355=A85),--(Receipts!$D$5:$D$1355=$J$3),Receipts!$E$5:$E$1355)","v":0},{"$f":"SUMPRODUCT(--(Receipts!$C$5:$C$1355=A85),--(Receipts!$D$5:$D$1355=$K$3),Receipts!$E$5:$E$1355)","v":0},{"$f":"SUMPRODUCT(--(Receipts!$C$5:$C$1355=A85),--(Receipts!$D$5:$D$1355=$L$3),Receipts!$E$5:$E$1355)","v":0},{"$f":"SUMPRODUCT(--(Receipts!$C$5:$C$1355=A85),--(Receipts!$D$5:$D$1355=$M$3),Receipts!$E$5:$E$1355)","v":0},{"$f":"SUMPRODUCT(--(Receipts!$C$5:$C$1355=A85),--(Receipts!$D$5:$D$1355=$N$3),Receipts!$E$5:$E$1355)","v":0},{"$f":"SUMPRODUCT(--(Receipts!$C$5:$C$1355=A85),--(Receipts!$D$5:$D$1355=$O$3),Receipts!$E$5:$E$1355)","v":0},{"$f":"SUMPRODUCT(--(Receipts!$C$5:$C$1355=A85),--(Receipts!$D$5:$D$1355=$P$3),Receipts!$E$5:$E$1355)","v":0},{"$f":"SUMPRODUCT(--(Receipts!$C$5:$C$1355=A85),--(Receipts!$D$5:$D$1355=$Q$3),Receipts!$E$5:$E$1355)","v":0},{"$f":"SUMPRODUCT(--(Receipts!$C$5:$C$1355=A85),--(Receipts!$D$5:$D$1355=$R$3),Receipts!$E$5:$E$1355)","v":0},{"$f":"SUMPRODUCT(--(Receipts!$C$5:$C$1355=A85),--(Receipts!$D$5:$D$1355=$S$3),Receipts!$E$5:$E$1355)","v":0},{"$f":"SUMPRODUCT(--(Receipts!$C$5:$C$1355=A85),--(Receipts!$D$5:$D$1355=$T$3),Receipts!$E$5:$E$1355)","v":0},{"$f":"SUMPRODUCT(--(Receipts!$C$5:$C$1355=A85),--(Receipts!$D$5:$D$1355=$U$3),Receipts!$E$5:$E$1355)","v":0},{"$f":"SUMPRODUCT(--(Receipts!$C$5:$C$1355=A85),--(Receipts!$D$5:$D$1355=$V$3),Receipts!$E$5:$E$1355)","v":0},{"$f":"SUMPRODUCT(--(Receipts!$C$5:$C$1355=A85),--(Receipts!$D$5:$D$1355=$W$3),Receipts!$E$5:$E$1355)","v":0},{"$f":"SUMPRODUCT(--(Receipts!$C$5:$C$1355=A85),--(Receipts!$D$5:$D$1355=$X$3),Receipts!$E$5:$E$1355)","v":0},{"$f":"SUMPRODUCT(--(Receipts!$C$5:$C$1355=A85),--(Receipts!$D$5:$D$1355=$Y$3),Receipts!$E$5:$E$1355)","v":0},{"$f":"SUMPRODUCT(--(Receipts!$C$5:$C$1355=A85),--(Receipts!$D$5:$D$1355=$Z$3),Receipts!$E$5:$E$1355)","v":0},{"$f":"SUMPRODUCT(--(Receipts!$C$5:$C$1355=A85),--(Receipts!$D$5:$D$1355=$AA$3),Receipts!$E$5:$E$1355)","v":0},{"$f":"SUMPRODUCT(--(Receipts!$C$5:$C$1355=A85),--(Receipts!$D$5:$D$1355=$AB$3),Receipts!$E$5:$E$1355)","v":0},{"$f":"SUMPRODUCT(--(Receipts!$C$5:$C$1355=A85),--(Receipts!$D$5:$D$1355=$AC$3),Receipts!$E$5:$E$1355)","v":0},{"$f":"SUMPRODUCT(--(Receipts!$C$5:$C$1355=A85),--(Receipts!$D$5:$D$1355=$AD$3),Receipts!$E$5:$E$1355)","v":0},null,0,0,0,0]
[{"$f":"Descriptions!B87","v":0},{"$f":"Descriptions!D87","v":"All other giving/voluntary receipts"},{"$f":"Descriptions!E87","v":0},{"$f":"SUMPRODUCT(--(Receipts!$C$5:$C$1355=A86),--(Receipts!$D$5:$D$1355=$D$3),Receipts!$E$5:$E$1355)","v":0},{"$f":"SUMPRODUCT(--(Receipts!$C$5:$C$1355=A86),--(Receipts!$D$5:$D$1355=$E$3),Receipts!$E$5:$E$1355)","v":0},{"$f":"SUMPRODUCT(--(Receipts!$C$5:$C$1355=A86),--(Receipts!$D$5:$D$1355=$F$3),Receipts!$E$5:$E$1355)","v":0},{"$f":"SUMPRODUCT(--(Receipts!$C$5:$C$1355=A86),--(Receipts!$D$5:$D$1355=$G$3),Receipts!$E$5:$E$1355)","v":0},{"$f":"SUMPRODUCT(--(Receipts!$C$5:$C$1355=A86),--(Receipts!$D$5:$D$1355=$H$3),Receipts!$E$5:$E$1355)","v":0},{"$f":"SUMPRODUCT(--(Receipts!$C$5:$C$1355=A86),--(Receipts!$D$5:$D$1355=$I$3),Receipts!$E$5:$E$1355)","v":0},{"$f":"SUMPRODUCT(--(Receipts!$C$5:$C$1355=A86),--(Receipts!$D$5:$D$1355=$J$3),Receipts!$E$5:$E$1355)","v":0},{"$f":"SUMPRODUCT(--(Receipts!$C$5:$C$1355=A86),--(Receipts!$D$5:$D$1355=$K$3),Receipts!$E$5:$E$1355)","v":0},{"$f":"SUMPRODUCT(--(Receipts!$C$5:$C$1355=A86),--(Receipts!$D$5:$D$1355=$L$3),Receipts!$E$5:$E$1355)","v":0},{"$f":"SUMPRODUCT(--(Receipts!$C$5:$C$1355=A86),--(Receipts!$D$5:$D$1355=$M$3),Receipts!$E$5:$E$1355)","v":0},{"$f":"SUMPRODUCT(--(Receipts!$C$5:$C$1355=A86),--(Receipts!$D$5:$D$1355=$N$3),Receipts!$E$5:$E$1355)","v":0},{"$f":"SUMPRODUCT(--(Receipts!$C$5:$C$1355=A86),--(Receipts!$D$5:$D$1355=$O$3),Receipts!$E$5:$E$1355)","v":0},{"$f":"SUMPRODUCT(--(Receipts!$C$5:$C$1355=A86),--(Receipts!$D$5:$D$1355=$P$3),Receipts!$E$5:$E$1355)","v":0},{"$f":"SUMPRODUCT(--(Receipts!$C$5:$C$1355=A86),--(Receipts!$D$5:$D$1355=$Q$3),Receipts!$E$5:$E$1355)","v":0},{"$f":"SUMPRODUCT(--(Receipts!$C$5:$C$1355=A86),--(Receipts!$D$5:$D$1355=$R$3),Receipts!$E$5:$E$1355)","v":0},{"$f":"SUMPRODUCT(--(Receipts!$C$5:$C$1355=A86),--(Receipts!$D$5:$D$1355=$S$3),Receipts!$E$5:$E$1355)","v":0},{"$f":"SUMPRODUCT(--(Receipts!$C$5:$C$1355=A86),--(Receipts!$D$5:$D$1355=$T$3),Receipts!$E$5:$E$1355)","v":0},{"$f":"SUMPRODUCT(--(Receipts!$C$5:$C$1355=A86),--(Receipts!$D$5:$D$1355=$U$3),Receipts!$E$5:$E$1355)","v":0},{"$f":"SUMPRODUCT(--(Receipts!$C$5:$C$1355=A86),--(Receipts!$D$5:$D$1355=$V$3),Receipts!$E$5:$E$1355)","v":0},{"$f":"SUMPRODUCT(--(Receipts!$C$5:$C$1355=A86),--(Receipts!$D$5:$D$1355=$W$3),Receipts!$E$5:$E$1355)","v":0},{"$f":"SUMPRODUCT(--(Receipts!$C$5:$C$1355=A86),--(Receipts!$D$5:$D$1355=$X$3),Receipts!$E$5:$E$1355)","v":0},{"$f":"SUMPRODUCT(--(Receipts!$C$5:$C$1355=A86),--(Receipts!$D$5:$D$1355=$Y$3),Receipts!$E$5:$E$1355)","v":0},{"$f":"SUMPRODUCT(--(Receipts!$C$5:$C$1355=A86),--(Receipts!$D$5:$D$1355=$Z$3),Receipts!$E$5:$E$1355)","v":0},{"$f":"SUMPRODUCT(--(Receipts!$C$5:$C$1355=A86),--(Receipts!$D$5:$D$1355=$AA$3),Receipts!$E$5:$E$1355)","v":0},{"$f":"SUMPRODUCT(--(Receipts!$C$5:$C$1355=A86),--(Receipts!$D$5:$D$1355=$AB$3),Receipts!$E$5:$E$1355)","v":0},{"$f":"SUMPRODUCT(--(Receipts!$C$5:$C$1355=A86),--(Receipts!$D$5:$D$1355=$AC$3),Receipts!$E$5:$E$1355)","v":0},{"$f":"SUMPRODUCT(--(Receipts!$C$5:$C$1355=A86),--(Receipts!$D$5:$D$1355=$AD$3),Receipts!$E$5:$E$1355)","v":0},null,0,0,0,0]
[{"$f":"Descriptions!B88","v":0},{"$f":"Descriptions!D88","v":"All other giving/voluntary receipts"},{"$f":"Descriptions!E88","v":0},{"$f":"SUMPRODUCT(--(Receipts!$C$5:$C$1355=A87),--(Receipts!$D$5:$D$1355=$D$3),Receipts!$E$5:$E$1355)","v":0},{"$f":"SUMPRODUCT(--(Receipts!$C$5:$C$1355=A87),--(Receipts!$D$5:$D$1355=$E$3),Receipts!$E$5:$E$1355)","v":0},{"$f":"SUMPRODUCT(--(Receipts!$C$5:$C$1355=A87),--(Receipts!$D$5:$D$1355=$F$3),Receipts!$E$5:$E$1355)","v":0},{"$f":"SUMPRODUCT(--(Receipts!$C$5:$C$1355=A87),--(Receipts!$D$5:$D$1355=$G$3),Receipts!$E$5:$E$1355)","v":0},{"$f":"SUMPRODUCT(--(Receipts!$C$5:$C$1355=A87),--(Receipts!$D$5:$D$1355=$H$3),Receipts!$E$5:$E$1355)","v":0},{"$f":"SUMPRODUCT(--(Receipts!$C$5:$C$1355=A87),--(Receipts!$D$5:$D$1355=$I$3),Receipts!$E$5:$E$1355)","v":0},{"$f":"SUMPRODUCT(--(Receipts!$C$5:$C$1355=A87),--(Receipts!$D$5:$D$1355=$J$3),Receipts!$E$5:$E$1355)","v":0},{"$f":"SUMPRODUCT(--(Receipts!$C$5:$C$1355=A87),--(Receipts!$D$5:$D$1355=$K$3),Receipts!$E$5:$E$1355)","v":0},{"$f":"SUMPRODUCT(--(Receipts!$C$5:$C$1355=A87),--(Receipts!$D$5:$D$1355=$L$3),Receipts!$E$5:$E$1355)","v":0},{"$f":"SUMPRODUCT(--(Receipts!$C$5:$C$1355=A87),--(Receipts!$D$5:$D$1355=$M$3),Receipts!$E$5:$E$1355)","v":0},{"$f":"SUMPRODUCT(--(Receipts!$C$5:$C$1355=A87),--(Receipts!$D$5:$D$1355=$N$3),Receipts!$E$5:$E$1355)","v":0},{"$f":"SUMPRODUCT(--(Receipts!$C$5:$C$1355=A87),--(Receipts!$D$5:$D$1355=$O$3),Receipts!$E$5:$E$1355)","v":0},{"$f":"SUMPRODUCT(--(Receipts!$C$5:$C$1355=A87),--(Receipts!$D$5:$D$1355=$P$3),Receipts!$E$5:$E$1355)","v":0},{"$f":"SUMPRODUCT(--(Receipts!$C$5:$C$1355=A87),--(Receipts!$D$5:$D$1355=$Q$3),Receipts!$E$5:$E$1355)","v":0},{"$f":"SUMPRODUCT(--(Receipts!$C$5:$C$1355=A87),--(Receipts!$D$5:$D$1355=$R$3),Receipts!$E$5:$E$1355)","v":0},{"$f":"SUMPRODUCT(--(Receipts!$C$5:$C$1355=A87),--(Receipts!$D$5:$D$1355=$S$3),Receipts!$E$5:$E$1355)","v":0},{"$f":"SUMPRODUCT(--(Receipts!$C$5:$C$1355=A87),--(Receipts!$D$5:$D$1355=$T$3),Receipts!$E$5:$E$1355)","v":0},{"$f":"SUMPRODUCT(--(Receipts!$C$5:$C$1355=A87),--(Receipts!$D$5:$D$1355=$U$3),Receipts!$E$5:$E$1355)","v":0},{"$f":"SUMPRODUCT(--(Receipts!$C$5:$C$1355=A87),--(Receipts!$D$5:$D$1355=$V$3),Receipts!$E$5:$E$1355)","v":0},{"$f":"SUMPRODUCT(--(Receipts!$C$5:$C$1355=A87),--(Receipts!$D$5:$D$1355=$W$3),Receipts!$E$5:$E$1355)","v":0},{"$f":"SUMPRODUCT(--(Receipts!$C$5:$C$1355=A87),--(Receipts!$D$5:$D$1355=$X$3),Receipts!$E$5:$E$1355)","v":0},{"$f":"SUMPRODUCT(--(Receipts!$C$5:$C$1355=A87),--(Receipts!$D$5:$D$1355=$Y$3),Receipts!$E$5:$E$1355)","v":0},{"$f":"SUMPRODUCT(--(Receipts!$C$5:$C$1355=A87),--(Receipts!$D$5:$D$1355=$Z$3),Receipts!$E$5:$E$1355)","v":0},{"$f":"SUMPRODUCT(--(Receipts!$C$5:$C$1355=A87),--(Receipts!$D$5:$D$1355=$AA$3),Receipts!$E$5:$E$1355)","v":0},{"$f":"SUMPRODUCT(--(Receipts!$C$5:$C$1355=A87),--(Receipts!$D$5:$D$1355=$AB$3),Receipts!$E$5:$E$1355)","v":0},{"$f":"SUMPRODUCT(--(Receipts!$C$5:$C$1355=A87),--(Receipts!$D$5:$D$1355=$AC$3),Receipts!$E$5:$E$1355)","v":0},{"$f":"SUMPRODUCT(--(Receipts!$C$5:$C$1355=A87),--(Receipts!$D$5:$D$1355=$AD$3),Receipts!$E$5:$E$1355)","v":0},null,0,0,0,0]
[{"$f":"Descriptions!B89","v":0},{"$f":"Descriptions!D89","v":"All other giving/voluntary receipts"},{"$f":"Descriptions!E89","v":0},{"$f":"SUMPRODUCT(--(Receipts!$C$5:$C$1355=A88),--(Receipts!$D$5:$D$1355=$D$3),Receipts!$E$5:$E$1355)","v":0},{"$f":"SUMPRODUCT(--(Receipts!$C$5:$C$1355=A88),--(Receipts!$D$5:$D$1355=$E$3),Receipts!$E$5:$E$1355)","v":0},{"$f":"SUMPRODUCT(--(Receipts!$C$5:$C$1355=A88),--(Receipts!$D$5:$D$1355=$F$3),Receipts!$E$5:$E$1355)","v":0},{"$f":"SUMPRODUCT(--(Receipts!$C$5:$C$1355=A88),--(Receipts!$D$5:$D$1355=$G$3),Receipts!$E$5:$E$1355)","v":0},{"$f":"SUMPRODUCT(--(Receipts!$C$5:$C$1355=A88),--(Receipts!$D$5:$D$1355=$H$3),Receipts!$E$5:$E$1355)","v":0},{"$f":"SUMPRODUCT(--(Receipts!$C$5:$C$1355=A88),--(Receipts!$D$5:$D$1355=$I$3),Receipts!$E$5:$E$1355)","v":0},{"$f":"SUMPRODUCT(--(Receipts!$C$5:$C$1355=A88),--(Receipts!$D$5:$D$1355=$J$3),Receipts!$E$5:$E$1355)","v":0},{"$f":"SUMPRODUCT(--(Receipts!$C$5:$C$1355=A88),--(Receipts!$D$5:$D$1355=$K$3),Receipts!$E$5:$E$1355)","v":0},{"$f":"SUMPRODUCT(--(Receipts!$C$5:$C$1355=A88),--(Receipts!$D$5:$D$1355=$L$3),Receipts!$E$5:$E$1355)","v":0},{"$f":"SUMPRODUCT(--(Receipts!$C$5:$C$1355=A88),--(Receipts!$D$5:$D$1355=$M$3),Receipts!$E$5:$E$1355)","v":0},{"$f":"SUMPRODUCT(--(Receipts!$C$5:$C$1355=A88),--(Receipts!$D$5:$D$1355=$N$3),Receipts!$E$5:$E$1355)","v":0},{"$f":"SUMPRODUCT(--(Receipts!$C$5:$C$1355=A88),--(Receipts!$D$5:$D$1355=$O$3),Receipts!$E$5:$E$1355)","v":0},{"$f":"SUMPRODUCT(--(Receipts!$C$5:$C$1355=A88),--(Receipts!$D$5:$D$1355=$P$3),Receipts!$E$5:$E$1355)","v":0},{"$f":"SUMPRODUCT(--(Receipts!$C$5:$C$1355=A88),--(Receipts!$D$5:$D$1355=$Q$3),Receipts!$E$5:$E$1355)","v":0},{"$f":"SUMPRODUCT(--(Receipts!$C$5:$C$1355=A88),--(Receipts!$D$5:$D$1355=$R$3),Receipts!$E$5:$E$1355)","v":0},{"$f":"SUMPRODUCT(--(Receipts!$C$5:$C$1355=A88),--(Receipts!$D$5:$D$1355=$S$3),Receipts!$E$5:$E$1355)","v":0},{"$f":"SUMPRODUCT(--(Receipts!$C$5:$C$1355=A88),--(Receipts!$D$5:$D$1355=$T$3),Receipts!$E$5:$E$1355)","v":0},{"$f":"SUMPRODUCT(--(Receipts!$C$5:$C$1355=A88),--(Receipts!$D$5:$D$1355=$U$3),Receipts!$E$5:$E$1355)","v":0},{"$f":"SUMPRODUCT(--(Receipts!$C$5:$C$1355=A88),--(Receipts!$D$5:$D$1355=$V$3),Receipts!$E$5:$E$1355)","v":0},{"$f":"SUMPRODUCT(--(Receipts!$C$5:$C$1355=A88),--(Receipts!$D$5:$D$1355=$W$3),Receipts!$E$5:$E$1355)","v":0},{"$f":"SUMPRODUCT(--(Receipts!$C$5:$C$1355=A88),--(Receipts!$D$5:$D$1355=$X$3),Receipts!$E$5:$E$1355)","v":0},{"$f":"SUMPRODUCT(--(Receipts!$C$5:$C$1355=A88),--(Receipts!$D$5:$D$1355=$Y$3),Receipts!$E$5:$E$1355)","v":0},{"$f":"SUMPRODUCT(--(Receipts!$C$5:$C$1355=A88),--(Receipts!$D$5:$D$1355=$Z$3),Receipts!$E$5:$E$1355)","v":0},{"$f":"SUMPRODUCT(--(Receipts!$C$5:$C$1355=A88),--(Receipts!$D$5:$D$1355=$AA$3),Receipts!$E$5:$E$1355)","v":0},{"$f":"SUMPRODUCT(--(Receipts!$C$5:$C$1355=A88),--(Receipts!$D$5:$D$1355=$AB$3),Receipts!$E$5:$E$1355)","v":0},{"$f":"SUMPRODUCT(--(Receipts!$C$5:$C$1355=A88),--(Receipts!$D$5:$D$1355=$AC$3),Receipts!$E$5:$E$1355)","v":0},{"$f":"SUMPRODUCT(--(Receipts!$C$5:$C$1355=A88),--(Receipts!$D$5:$D$1355=$AD$3),Receipts!$E$5:$E$1355)","v":0},null,0,0,0,0]
[{"$f":"Descriptions!B90","v":0},{"$f":"Descriptions!D90","v":"All other giving/voluntary receipts"},{"$f":"Descriptions!E90","v":0},{"$f":"SUMPRODUCT(--(Receipts!$C$5:$C$1355=A89),--(Receipts!$D$5:$D$1355=$D$3),Receipts!$E$5:$E$1355)","v":0},{"$f":"SUMPRODUCT(--(Receipts!$C$5:$C$1355=A89),--(Receipts!$D$5:$D$1355=$E$3),Receipts!$E$5:$E$1355)","v":0},{"$f":"SUMPRODUCT(--(Receipts!$C$5:$C$1355=A89),--(Receipts!$D$5:$D$1355=$F$3),Receipts!$E$5:$E$1355)","v":0},{"$f":"SUMPRODUCT(--(Receipts!$C$5:$C$1355=A89),--(Receipts!$D$5:$D$1355=$G$3),Receipts!$E$5:$E$1355)","v":0},{"$f":"SUMPRODUCT(--(Receipts!$C$5:$C$1355=A89),--(Receipts!$D$5:$D$1355=$H$3),Receipts!$E$5:$E$1355)","v":0},{"$f":"SUMPRODUCT(--(Receipts!$C$5:$C$1355=A89),--(Receipts!$D$5:$D$1355=$I$3),Receipts!$E$5:$E$1355)","v":0},{"$f":"SUMPRODUCT(--(Receipts!$C$5:$C$1355=A89),--(Receipts!$D$5:$D$1355=$J$3),Receipts!$E$5:$E$1355)","v":0},{"$f":"SUMPRODUCT(--(Receipts!$C$5:$C$1355=A89),--(Receipts!$D$5:$D$1355=$K$3),Receipts!$E$5:$E$1355)","v":0},{"$f":"SUMPRODUCT(--(Receipts!$C$5:$C$1355=A89),--(Receipts!$D$5:$D$1355=$L$3),Receipts!$E$5:$E$1355)","v":0},{"$f":"SUMPRODUCT(--(Receipts!$C$5:$C$1355=A89),--(Receipts!$D$5:$D$1355=$M$3),Receipts!$E$5:$E$1355)","v":0},{"$f":"SUMPRODUCT(--(Receipts!$C$5:$C$1355=A89),--(Receipts!$D$5:$D$1355=$N$3),Receipts!$E$5:$E$1355)","v":0},{"$f":"SUMPRODUCT(--(Receipts!$C$5:$C$1355=A89),--(Receipts!$D$5:$D$1355=$O$3),Receipts!$E$5:$E$1355)","v":0},{"$f":"SUMPRODUCT(--(Receipts!$C$5:$C$1355=A89),--(Receipts!$D$5:$D$1355=$P$3),Receipts!$E$5:$E$1355)","v":0},{"$f":"SUMPRODUCT(--(Receipts!$C$5:$C$1355=A89),--(Receipts!$D$5:$D$1355=$Q$3),Receipts!$E$5:$E$1355)","v":0},{"$f":"SUMPRODUCT(--(Receipts!$C$5:$C$1355=A89),--(Receipts!$D$5:$D$1355=$R$3),Receipts!$E$5:$E$1355)","v":0},{"$f":"SUMPRODUCT(--(Receipts!$C$5:$C$1355=A89),--(Receipts!$D$5:$D$1355=$S$3),Receipts!$E$5:$E$1355)","v":0},{"$f":"SUMPRODUCT(--(Receipts!$C$5:$C$1355=A89),--(Receipts!$D$5:$D$1355=$T$3),Receipts!$E$5:$E$1355)","v":0},{"$f":"SUMPRODUCT(--(Receipts!$C$5:$C$1355=A89),--(Receipts!$D$5:$D$1355=$U$3),Receipts!$E$5:$E$1355)","v":0},{"$f":"SUMPRODUCT(--(Receipts!$C$5:$C$1355=A89),--(Receipts!$D$5:$D$1355=$V$3),Receipts!$E$5:$E$1355)","v":0},{"$f":"SUMPRODUCT(--(Receipts!$C$5:$C$1355=A89),--(Receipts!$D$5:$D$1355=$W$3),Receipts!$E$5:$E$1355)","v":0},{"$f":"SUMPRODUCT(--(Receipts!$C$5:$C$1355=A89),--(Receipts!$D$5:$D$1355=$X$3),Receipts!$E$5:$E$1355)","v":0},{"$f":"SUMPRODUCT(--(Receipts!$C$5:$C$1355=A89),--(Receipts!$D$5:$D$1355=$Y$3),Receipts!$E$5:$E$1355)","v":0},{"$f":"SUMPRODUCT(--(Receipts!$C$5:$C$1355=A89),--(Receipts!$D$5:$D$1355=$Z$3),Receipts!$E$5:$E$1355)","v":0},{"$f":"SUMPRODUCT(--(Receipts!$C$5:$C$1355=A89),--(Receipts!$D$5:$D$1355=$AA$3),Receipts!$E$5:$E$1355)","v":0},{"$f":"SUMPRODUCT(--(Receipts!$C$5:$C$1355=A89),--(Receipts!$D$5:$D$1355=$AB$3),Receipts!$E$5:$E$1355)","v":0},{"$f":"SUMPRODUCT(--(Receipts!$C$5:$C$1355=A89),--(Receipts!$D$5:$D$1355=$AC$3),Receipts!$E$5:$E$1355)","v":0},{"$f":"SUMPRODUCT(--(Receipts!$C$5:$C$1355=A89),--(Receipts!$D$5:$D$1355=$AD$3),Receipts!$E$5:$E$1355)","v":0},null,0,0,0,0]
[{"$f":"Descriptions!B91","v":0},{"$f":"Descriptions!D91","v":"All other giving/voluntary receipts"},{"$f":"Descriptions!E91","v":0},{"$f":"SUMPRODUCT(--(Receipts!$C$5:$C$1355=A90),--(Receipts!$D$5:$D$1355=$D$3),Receipts!$E$5:$E$1355)","v":0},{"$f":"SUMPRODUCT(--(Receipts!$C$5:$C$1355=A90),--(Receipts!$D$5:$D$1355=$E$3),Receipts!$E$5:$E$1355)","v":0},{"$f":"SUMPRODUCT(--(Receipts!$C$5:$C$1355=A90),--(Receipts!$D$5:$D$1355=$F$3),Receipts!$E$5:$E$1355)","v":0},{"$f":"SUMPRODUCT(--(Receipts!$C$5:$C$1355=A90),--(Receipts!$D$5:$D$1355=$G$3),Receipts!$E$5:$E$1355)","v":0},{"$f":"SUMPRODUCT(--(Receipts!$C$5:$C$1355=A90),--(Receipts!$D$5:$D$1355=$H$3),Receipts!$E$5:$E$1355)","v":0},{"$f":"SUMPRODUCT(--(Receipts!$C$5:$C$1355=A90),--(Receipts!$D$5:$D$1355=$I$3),Receipts!$E$5:$E$1355)","v":0},{"$f":"SUMPRODUCT(--(Receipts!$C$5:$C$1355=A90),--(Receipts!$D$5:$D$1355=$J$3),Receipts!$E$5:$E$1355)","v":0},{"$f":"SUMPRODUCT(--(Receipts!$C$5:$C$1355=A90),--(Receipts!$D$5:$D$1355=$K$3),Receipts!$E$5:$E$1355)","v":0},{"$f":"SUMPRODUCT(--(Receipts!$C$5:$C$1355=A90),--(Receipts!$D$5:$D$1355=$L$3),Receipts!$E$5:$E$1355)","v":0},{"$f":"SUMPRODUCT(--(Receipts!$C$5:$C$1355=A90),--(Receipts!$D$5:$D$1355=$M$3),Receipts!$E$5:$E$1355)","v":0},{"$f":"SUMPRODUCT(--(Receipts!$C$5:$C$1355=A90),--(Receipts!$D$5:$D$1355=$N$3),Receipts!$E$5:$E$1355)","v":0},{"$f":"SUMPRODUCT(--(Receipts!$C$5:$C$1355=A90),--(Receipts!$D$5:$D$1355=$O$3),Receipts!$E$5:$E$1355)","v":0},{"$f":"SUMPRODUCT(--(Receipts!$C$5:$C$1355=A90),--(Receipts!$D$5:$D$1355=$P$3),Receipts!$E$5:$E$1355)","v":0},{"$f":"SUMPRODUCT(--(Receipts!$C$5:$C$1355=A90),--(Receipts!$D$5:$D$1355=$Q$3),Receipts!$E$5:$E$1355)","v":0},{"$f":"SUMPRODUCT(--(Receipts!$C$5:$C$1355=A90),--(Receipts!$D$5:$D$1355=$R$3),Receipts!$E$5:$E$1355)","v":0},{"$f":"SUMPRODUCT(--(Receipts!$C$5:$C$1355=A90),--(Receipts!$D$5:$D$1355=$S$3),Receipts!$E$5:$E$1355)","v":0},{"$f":"SUMPRODUCT(--(Receipts!$C$5:$C$1355=A90),--(Receipts!$D$5:$D$1355=$T$3),Receipts!$E$5:$E$1355)","v":0},{"$f":"SUMPRODUCT(--(Receipts!$C$5:$C$1355=A90),--(Receipts!$D$5:$D$1355=$U$3),Receipts!$E$5:$E$1355)","v":0},{"$f":"SUMPRODUCT(--(Receipts!$C$5:$C$1355=A90),--(Receipts!$D$5:$D$1355=$V$3),Receipts!$E$5:$E$1355)","v":0},{"$f":"SUMPRODUCT(--(Receipts!$C$5:$C$1355=A90),--(Receipts!$D$5:$D$1355=$W$3),Receipts!$E$5:$E$1355)","v":0},{"$f":"SUMPRODUCT(--(Receipts!$C$5:$C$1355=A90),--(Receipts!$D$5:$D$1355=$X$3),Receipts!$E$5:$E$1355)","v":0},{"$f":"SUMPRODUCT(--(Receipts!$C$5:$C$1355=A90),--(Receipts!$D$5:$D$1355=$Y$3),Receipts!$E$5:$E$1355)","v":0},{"$f":"SUMPRODUCT(--(Receipts!$C$5:$C$1355=A90),--(Receipts!$D$5:$D$1355=$Z$3),Receipts!$E$5:$E$1355)","v":0},{"$f":"SUMPRODUCT(--(Receipts!$C$5:$C$1355=A90),--(Receipts!$D$5:$D$1355=$AA$3),Receipts!$E$5:$E$1355)","v":0},{"$f":"SUMPRODUCT(--(Receipts!$C$5:$C$1355=A90),--(Receipts!$D$5:$D$1355=$AB$3),Receipts!$E$5:$E$1355)","v":0},{"$f":"SUMPRODUCT(--(Receipts!$C$5:$C$1355=A90),--(Receipts!$D$5:$D$1355=$AC$3),Receipts!$E$5:$E$1355)","v":0},{"$f":"SUMPRODUCT(--(Receipts!$C$5:$C$1355=A90),--(Receipts!$D$5:$D$1355=$AD$3),Receipts!$E$5:$E$1355)","v":0},null,0,0,0,0]
[{"$f":"Descriptions!B92","v":0},{"$f":"Descriptions!D92","v":"All other giving/voluntary receipts"},{"$f":"Descriptions!E92","v":0},{"$f":"SUMPRODUCT(--(Receipts!$C$5:$C$1355=A91),--(Receipts!$D$5:$D$1355=$D$3),Receipts!$E$5:$E$1355)","v":0},{"$f":"SUMPRODUCT(--(Receipts!$C$5:$C$1355=A91),--(Receipts!$D$5:$D$1355=$E$3),Receipts!$E$5:$E$1355)","v":0},{"$f":"SUMPRODUCT(--(Receipts!$C$5:$C$1355=A91),--(Receipts!$D$5:$D$1355=$F$3),Receipts!$E$5:$E$1355)","v":0},{"$f":"SUMPRODUCT(--(Receipts!$C$5:$C$1355=A91),--(Receipts!$D$5:$D$1355=$G$3),Receipts!$E$5:$E$1355)","v":0},{"$f":"SUMPRODUCT(--(Receipts!$C$5:$C$1355=A91),--(Receipts!$D$5:$D$1355=$H$3),Receipts!$E$5:$E$1355)","v":0},{"$f":"SUMPRODUCT(--(Receipts!$C$5:$C$1355=A91),--(Receipts!$D$5:$D$1355=$I$3),Receipts!$E$5:$E$1355)","v":0},{"$f":"SUMPRODUCT(--(Receipts!$C$5:$C$1355=A91),--(Receipts!$D$5:$D$1355=$J$3),Receipts!$E$5:$E$1355)","v":0},{"$f":"SUMPRODUCT(--(Receipts!$C$5:$C$1355=A91),--(Receipts!$D$5:$D$1355=$K$3),Receipts!$E$5:$E$1355)","v":0},{"$f":"SUMPRODUCT(--(Receipts!$C$5:$C$1355=A91),--(Receipts!$D$5:$D$1355=$L$3),Receipts!$E$5:$E$1355)","v":0},{"$f":"SUMPRODUCT(--(Receipts!$C$5:$C$1355=A91),--(Receipts!$D$5:$D$1355=$M$3),Receipts!$E$5:$E$1355)","v":0},{"$f":"SUMPRODUCT(--(Receipts!$C$5:$C$1355=A91),--(Receipts!$D$5:$D$1355=$N$3),Receipts!$E$5:$E$1355)","v":0},{"$f":"SUMPRODUCT(--(Receipts!$C$5:$C$1355=A91),--(Receipts!$D$5:$D$1355=$O$3),Receipts!$E$5:$E$1355)","v":0},{"$f":"SUMPRODUCT(--(Receipts!$C$5:$C$1355=A91),--(Receipts!$D$5:$D$1355=$P$3),Receipts!$E$5:$E$1355)","v":0},{"$f":"SUMPRODUCT(--(Receipts!$C$5:$C$1355=A91),--(Receipts!$D$5:$D$1355=$Q$3),Receipts!$E$5:$E$1355)","v":0},{"$f":"SUMPRODUCT(--(Receipts!$C$5:$C$1355=A91),--(Receipts!$D$5:$D$1355=$R$3),Receipts!$E$5:$E$1355)","v":0},{"$f":"SUMPRODUCT(--(Receipts!$C$5:$C$1355=A91),--(Receipts!$D$5:$D$1355=$S$3),Receipts!$E$5:$E$1355)","v":0},{"$f":"SUMPRODUCT(--(Receipts!$C$5:$C$1355=A91),--(Receipts!$D$5:$D$1355=$T$3),Receipts!$E$5:$E$1355)","v":0},{"$f":"SUMPRODUCT(--(Receipts!$C$5:$C$1355=A91),--(Receipts!$D$5:$D$1355=$U$3),Receipts!$E$5:$E$1355)","v":0},{"$f":"SUMPRODUCT(--(Receipts!$C$5:$C$1355=A91),--(Receipts!$D$5:$D$1355=$V$3),Receipts!$E$5:$E$1355)","v":0},{"$f":"SUMPRODUCT(--(Receipts!$C$5:$C$1355=A91),--(Receipts!$D$5:$D$1355=$W$3),Receipts!$E$5:$E$1355)","v":0},{"$f":"SUMPRODUCT(--(Receipts!$C$5:$C$1355=A91),--(Receipts!$D$5:$D$1355=$X$3),Receipts!$E$5:$E$1355)","v":0},{"$f":"SUMPRODUCT(--(Receipts!$C$5:$C$1355=A91),--(Receipts!$D$5:$D$1355=$Y$3),Receipts!$E$5:$E$1355)","v":0},{"$f":"SUMPRODUCT(--(Receipts!$C$5:$C$1355=A91),--(Receipts!$D$5:$D$1355=$Z$3),Receipts!$E$5:$E$1355)","v":0},{"$f":"SUMPRODUCT(--(Receipts!$C$5:$C$1355=A91),--(Receipts!$D$5:$D$1355=$AA$3),Receipts!$E$5:$E$1355)","v":0},{"$f":"SUMPRODUCT(--(Receipts!$C$5:$C$1355=A91),--(Receipts!$D$5:$D$1355=$AB$3),Receipts!$E$5:$E$1355)","v":0},{"$f":"SUMPRODUCT(--(Receipts!$C$5:$C$1355=A91),--(Receipts!$D$5:$D$1355=$AC$3),Receipts!$E$5:$E$1355)","v":0},{"$f":"SUMPRODUCT(--(Receipts!$C$5:$C$1355=A91),--(Receipts!$D$5:$D$1355=$AD$3),Receipts!$E$5:$E$1355)","v":0},null,0,0,0,0]
[]
[null,null,null,{"$f":"SUM(D5:D91)","v":0},{"$f":"SUM(E5:E91)","v":0},0,0,0,0,0,0,0,0,0,0,0,0,0,0,0,0,0,0,0,0,0,0,0,0,0]

{"sheet":"Prior Year Comparative","index":8,"n_rows":1018,"n_cols":24,"rows_kept":1018,"cut":false,"hidden":false,"merged":[]}
[null,"N",{"$f":"IF(C3=\"Fund A\",\"Y\",\"N\")","v":"Y"},{"$f":"IF(D3=\"Fund B\",\"Y\",\"N\")","v":"Y"},{"$f":"IF(E3=\"Fund C\",\"Y\",\"N\")","v":"Y"},{"$f":"IF(F3=\"Fund D\",\"Y\",\"N\")","v":"Y"},{"$f":"IF(G3=\"Fund E\",\"Y\",\"N\")","v":"Y"},{"$f":"IF(H3=\"Fund F\",\"Y\",\"N\")","v":"Y"},{"$f":"IF(I3=\"Fund G\",\"Y\",\"N\")","v":"Y"},{"$f":"IF(J3=\"Fund H\",\"Y\",\"N\")","v":"Y"},{"$f":"IF(K3=\"Fund I\",\"Y\",\"N\")","v":"Y"},{"$f":"IF(L3=\"Fund J\",\"Y\",\"N\")","v":"Y"},{"$f":"IF(M3=\"Fund K\",\"Y\",\"N\")","v":"Y"},{"$f":"IF(N3=\"Fund L\",\"Y\",\"N\")","v":"Y"},{"$f":"IF(O3=\"Fund M\",\"Y\",\"N\")","v":"Y"},{"$f":"IF(P3=\"Fund N\",\"Y\",\"N\")","v":"Y"},{"$f":"IF(Q3=\"Fund O\",\"Y\",\"N\")","v":"Y"},{"$f":"IF(R3=\"Fund P\",\"Y\",\"N\")","v":"Y"},{"$f":"IF(S3=\"Fund Q\",\"Y\",\"N\")","v":"Y"},{"$f":"IF(T3=\"Fund R\",\"Y\",\"N\")","v":"Y"},{"$f":"IF(U3=\"Fund S\",\"Y\",\"N\")","v":"Y"},{"$f":"IF(V3=\"Fund T\",\"Y\",\"N\")","v":"Y"},"Y",1]
[null,{"$f":"VLOOKUP(B3,'Bank and Fund Details'!$B$15:$C$36,2,FALSE)","v":"Unrestricted"},{"$f":"VLOOKUP(C3,'Bank and Fund Details'!$B$15:$C$36,2,FALSE)","v":"Unrestricted"},{"$f":"VLOOKUP(D3,'Bank and Fund Details'!$B$15:$C$36,2,FALSE)","v":"Unrestricted"},{"$f":"VLOOKUP(E3,'Bank and Fund Details'!$B$15:$C$36,2,FALSE)","v":"Unrestricted"},{"$f":"VLOOKUP(F3,'Bank and Fund Details'!$B$15:$C$36,2,FALSE)","v":"Unrestricted"},{"$f":"VLOOKUP(G3,'Bank and Fund Details'!$B$15:$C$36,2,FALSE)","v":"Unrestricted"},{"$f":"VLOOKUP(H3,'Bank and Fund Details'!$B$15:$C$36,2,FALSE)","v":"Unrestricted"},{"$f":"VLOOKUP(I3,'Bank and Fund Details'!$B$15:$C$36,2,FALSE)","v":"Unrestricted"},{"$f":"VLOOKUP(J3,'Bank and Fund Details'!$B$15:$C$36,2,FALSE)","v":"Unrestricted"},{"$f":"VLOOKUP(K3,'Bank and Fund Details'!$B$15:$C$36,2,FALSE)","v":"Unrestricted"},{"$f":"VLOOKUP(L3,'Bank and Fund Details'!$B$15:$C$36,2,FALSE)","v":"Unrestricted"},{"$f":"VLOOKUP(M3,'Bank and Fund Details'!$B$15:$C$36,2,FALSE)","v":"Unrestricted"},{"$f":"VLOOKUP(N3,'Bank and Fund Details'!$B$15:$C$36,2,FALSE)","v":"Unrestricted"},{"$f":"VLOOKUP(O3,'Bank and Fund Details'!$B$15:$C$36,2,FALSE)","v":"Unrestricted"},{"$f":"VLOOKUP(P3,'Bank and Fund Details'!$B$15:$C$36,2,FALSE)","v":"Unrestricted"},{"$f":"VLOOKUP(Q3,'Bank and Fund Details'!$B$15:$C$36,2,FALSE)","v":"Unrestricted"},{"$f":"VLOOKUP(R3,'Bank and Fund Details'!$B$15:$C$36,2,FALSE)","v":"Unrestricted"},{"$f":"VLOOKUP(S3,'Bank and Fund Details'!$B$15:$C$36,2,FALSE)","v":"Unrestricted"},{"$f":"VLOOKUP(T3,'Bank and Fund Details'!$B$15:$C$36,2,FALSE)","v":"Unrestricted"},{"$f":"VLOOKUP(U3,'Bank and Fund Details'!$B$15:$C$36,2,FALSE)","v":"Unrestricted"},{"$f":"VLOOKUP(V3,'Bank and Fund Details'!$B$15:$C$36,2,FALSE)","v":"Unrestricted"},null,1]
["RECEIPTS",{"$f":"'Bank and Fund Details'!B15","v":"General Fund"},{"$f":"'Bank and Fund Details'!B17","v":"Fund A"},{"$f":"'Bank and Fund Details'!B18","v":"Fund B"},{"$f":"'Bank and Fund Details'!B19","v":"Fund C"},{"$f":"'Bank and Fund Details'!B20","v":"Fund D"},{"$f":"'Bank and Fund Details'!B21","v":"Fund E"},{"$f":"'Bank and Fund Details'!B22","v":"Fund F"},{"$f":"'Bank and Fund Details'!B23","v":"Fund G"},{"$f":"'Bank and Fund Details'!B24","v":"Fund H"},{"$f":"'Bank and Fund Details'!B25","v":"Fund I"},{"$f":"'Bank and Fund Details'!B26","v":"Fund J"},{"$f":"'Bank and Fund Details'!B27","v":"Fund K"},{"$f":"'Bank and Fund Details'!B28","v":"Fund L"},{"$f":"'Bank and Fund Details'!B29","v":"Fund M"},{"$f":"'Bank and Fund Details'!B30","v":"Fund N"},{"$f":"'Bank and Fund Details'!B31","v":"Fund O"},{"$f":"'Bank and Fund Details'!B32","v":"Fund P"},{"$f":"'Bank and Fund Details'!B33","v":"Fund Q"},{"$f":"'Bank and Fund Details'!B34","v":"Fund R"},{"$f":"'Bank and Fund Details'!B35","v":"Fund S"},{"$f":"'Bank and Fund Details'!B36","v":"Fund T"},null,1]
[null,"£","£","£","£","£","£","£","£","£","£","£","£","£","£","£","£","£","£","£","£","£",null,1]
["COLLECTIONS AT SERVICES",null,null,null,null,null,null,null,null,null,null,null,null,null,null,null,null,null,null,null,null,null,null,{"$f":"SUM(X6:X63)","v":0}]
["Sunday Collections",0,0,0,0,0,0,0,0,0,0,0,0,0,0,0,0,0,0,0,0,0,{"$f":"SUM(B6:V6)","v":0},{"$f":"Descriptions!AA34","v":0}]
["Sunday Collections - Gift Aided",0,0,0,0,0,0,0,0,0,0,0,0,0,0,0,0,0,0,0,0,0,{"$f":"SUM(B7:V7)","v":0},{"$f":"Descriptions!AA35","v":0}]
["Weekday Collections",0,0,0,0,0,0,0,0,0,0,0,0,0,0,0,0,0,0,0,0,0,0,{"$f":"Descriptions!AA41","v":0}]
["Weekday Collections - Gift Aided",0,0,0,0,0,0,0,0,0,0,0,0,0,0,0,0,0,0,0,0,0,0,{"$f":"Descriptions!AA42","v":0}]
["Wedding and Funeral Collections",0,0,0,0,0,0,0,0,0,0,0,0,0,0,0,0,0,0,0,0,0,0,{"$f":"Descriptions!AA39","v":0}]
["Wedding and Funeral Collections - Gift Aided",0,0,0,0,0,0,0,0,0,0,0,0,0,0,0,0,0,0,0,0,0,0,{"$f":"Descriptions!AA40","v":0}]
["Junior Church Collections",0,0,0,0,0,0,0,0,0,0,0,0,0,0,0,0,0,0,0,0,0,0,{"$f":"Descriptions!AA22","v":0}]
["Junior Church Collections - Gift Aided",0,0,0,0,0,0,0,0,0,0,0,0,0,0,0,0,0,0,0,0,0,0,{"$f":"Descriptions!AA23","v":0}]
[{"$f":"IF(Descriptions!D43=\"Collections at services\",Descriptions!B43,0)","v":0},0,0,0,0,0,0,0,0,0,0,0,0,0,0,0,0,0,0,0,0,0,0,{"$f":"IF(Descriptions!D43=\"Collections at services\",Descriptions!AA43,0)","v":0}]
[{"$f":"IF(Descriptions!D44=\"Collections at services\",Descriptions!B44,0)","v":0},0,0,0,0,0,0,0,0,0,0,0,0,0,0,0,0,0,0,0,0,0,0,{"$f":"IF(Descriptions!D44=\"Collections at services\",Descriptions!AA44,0)","v":0}]
[{"$f":"IF(Descriptions!D45=\"Collections at services\",Descriptions!B45,0)","v":0},0,0,0,0,0,0,0,0,0,0,0,0,0,0,0,0,0,0,0,0,0,0,{"$f":"IF(Descriptions!D45=\"Collections at services\",Descriptions!AA45,0)","v":0}]
[{"$f":"IF(Descriptions!D46=\"Collections at services\",Descriptions!B46,0)","v":0},0,0,0,0,0,0,0,0,0,0,0,0,0,0,0,0,0,0,0,0,0,0,{"$f":"IF(Descriptions!D46=\"Collections at services\",Descriptions!AA46,0)","v":0}]
[{"$f":"IF(Descriptions!D47=\"Collections at services\",Descriptions!B47,0)","v":0},0,0,0,0,0,0,0,0,0,0,0,0,0,0,0,0,0,0,0,0,0,0,{"$f":"IF(Descriptions!D47=\"Collections at services\",Descriptions!AA47,0)","v":0}]
[{"$f":"IF(Descriptions!D48=\"Collections at services\",Descriptions!B48,0)","v":0},0,0,0,0,0,0,0,0,0,0,0,0,0,0,0,0,0,0,0,0,0,0,{"$f":"IF(Descriptions!D48=\"Collections at services\",Descriptions!AA48,0)","v":0}]
[{"$f":"IF(Descriptions!D49=\"Collections at services\",Descriptions!B49,0)","v":0},0,0,0,0,0,0,0,0,0,0,0,0,0,0,0,0,0,0,0,0,0,0,{"$f":"IF(Descriptions!D49=\"Collections at services\",Descriptions!AA49,0)","v":0}]
[{"$f":"IF(Descriptions!D50=\"Collections at services\",Descriptions!B50,0)","v":0},0,0,0,0,0,0,0,0,0,0,0,0,0,0,0,0,0,0,0,0,0,0,{"$f":"IF(Descriptions!D50=\"Collections at services\",Descriptions!AA50,0)","v":0}]
[{"$f":"IF(Descriptions!D51=\"Collections at services\",Descriptions!B51,0)","v":0},0,0,0,0,0,0,0,0,0,0,0,0,0,0,0,0,0,0,0,0,0,0,{"$f":"IF(Descriptions!D51=\"Collections at services\",Descriptions!AA51,0)","v":0}]
[{"$f":"IF(Descriptions!D52=\"Collections at services\",Descriptions!B52,0)","v":0},0,0,0,0,0,0,0,0,0,0,0,0,0,0,0,0,0,0,0,0,0,0,{"$f":"IF(Descriptions!D52=\"Collections at services\",Descriptions!AA52,0)","v":0}]
[{"$f":"IF(Descriptions!D53=\"Collections at services\",Descriptions!B53,0)","v":0},0,0,0,0,0,0,0,0,0,0,0,0,0,0,0,0,0,0,0,0,0,0,{"$f":"IF(Descriptions!D53=\"Collections at services\",Descriptions!AA53,0)","v":0}]
[{"$f":"IF(Descriptions!D54=\"Collections at services\",Descriptions!B54,0)","v":0},0,0,0,0,0,0,0,0,0,0,0,0,0,0,0,0,0,0,0,0,0,0,{"$f":"IF(Descriptions!D54=\"Collections at services\",Descriptions!AA54,0)","v":0}]
[{"$f":"IF(Descriptions!D55=\"Collections at services\",Descriptions!B55,0)","v":0},0,0,0,0,0,0,0,0,0,0,0,0,0,0,0,0,0,0,0,0,0,0,{"$f":"IF(Descriptions!D55=\"Collections at services\",Descriptions!AA55,0)","v":0}]
[{"$f":"IF(Descriptions!D56=\"Collections at services\",Descriptions!B56,0)","v":0},0,0,0,0,0,0,0,0,0,0,0,0,0,0,0,0,0,0,0,0,0,0,{"$f":"IF(Descriptions!D56=\"Collections at services\",Descriptions!AA56,0)","v":0}]
[{"$f":"IF(Descriptions!D57=\"Collections at services\",Descriptions!B57,0)","v":0},0,0,0,0,0,0,0,0,0,0,0,0,0,0,0,0,0,0,0,0,0,0,{"$f":"IF(Descriptions!D57=\"Collections at services\",Descriptions!AA57,0)","v":0}]
[{"$f":"IF(Descriptions!D58=\"Collections at services\",Descriptions!B58,0)","v":0},0,0,0,0,0,0,0,0,0,0,0,0,0,0,0,0,0,0,0,0,0,0,{"$f":"IF(Descriptions!D58=\"Collections at services\",Descriptions!AA58,0)","v":0}]
[{"$f":"IF(Descriptions!D59=\"Collections at services\",Descriptions!B59,0)","v":0},0,0,0,0,0,0,0,0,0,0,0,0,0,0,0,0,0,0,0,0,0,0,{"$f":"IF(Descriptions!D59=\"Collections at services\",Descriptions!AA59,0)","v":0}]
[{"$f":"IF(Descriptions!D60=\"Collections at services\",Descriptions!B60,0)","v":0},0,0,0,0,0,0,0,0,0,0,0,0,0,0,0,0,0,0,0,0,0,0,{"$f":"IF(Descriptions!D60=\"Collections at services\",Descriptions!AA60,0)","v":0}]
[{"$f":"IF(Descriptions!D61=\"Collections at services\",Descriptions!B61,0)","v":0},0,0,0,0,0,0,0,0,0,0,0,0,0,0,0,0,0,0,0,0,0,0,{"$f":"IF(Descriptions!D61=\"Collections at services\",Descriptions!AA61,0)","v":0}]
[{"$f":"IF(Descriptions!D62=\"Collections at services\",Descriptions!B62,0)","v":0},0,0,0,0,0,0,0,0,0,0,0,0,0,0,0,0,0,0,0,0,0,0,{"$f":"IF(Descriptions!D62=\"Collections at services\",Descriptions!AA62,0)","v":0}]
[{"$f":"IF(Descriptions!D63=\"Collections at services\",Descriptions!B63,0)","v":0},0,0,0,0,0,0,0,0,0,0,0,0,0,0,0,0,0,0,0,0,0,0,{"$f":"IF(Descriptions!D63=\"Collections at services\",Descriptions!AA63,0)","v":0}]
[{"$f":"IF(Descriptions!D64=\"Collections at services\",Descriptions!B64,0)","v":0},0,0,0,0,0,0,0,0,0,0,0,0,0,0,0,0,0,0,0,0,0,0,{"$f":"IF(Descriptions!D64=\"Collections at services\",Descriptions!AA64,0)","v":0}]
[{"$f":"IF(Descriptions!D65=\"Collections at services\",Descriptions!B65,0)","v":0},0,0,0,0,0,0,0,0,0,0,0,0,0,0,0,0,0,0,0,0,0,0,{"$f":"IF(Descriptions!D65=\"Collections at services\",Descriptions!AA65,0)","v":0}]
[{"$f":"IF(Descriptions!D66=\"Collections at services\",Descriptions!B66,0)","v":0},0,0,0,0,0,0,0,0,0,0,0,0,0,0,0,0,0,0,0,0,0,0,{"$f":"IF(Descriptions!D66=\"Collections at services\",Descriptions!AA66,0)","v":0}]
[{"$f":"IF(Descriptions!D67=\"Collections at services\",Descriptions!B67,0)","v":0},0,0,0,0,0,0,0,0,0,0,0,0,0,0,0,0,0,0,0,0,0,0,{"$f":"IF(Descriptions!D67=\"Collections at services\",Descriptions!AA67,0)","v":0}]
[{"$f":"IF(Descriptions!D68=\"Collections at services\",Descriptions!B68,0)","v":0},0,0,0,0,0,0,0,0,0,0,0,0,0,0,0,0,0,0,0,0,0,0,{"$f":"IF(Descriptions!D68=\"Collections at services\",Descriptions!AA68,0)","v":0}]
[{"$f":"IF(Descriptions!D69=\"Collections at services\",Descriptions!B69,0)","v":0},0,0,0,0,0,0,0,0,0,0,0,0,0,0,0,0,0,0,0,0,0,0,{"$f":"IF(Descriptions!D69=\"Collections at services\",Descriptions!AA69,0)","v":0}]
[{"$f":"IF(Descriptions!D70=\"Collections at services\",Descriptions!B70,0)","v":0},0,0,0,0,0,0,0,0,0,0,0,0,0,0,0,0,0,0,0,0,0,0,{"$f":"IF(Descriptions!D70=\"Collections at services\",Descriptions!AA70,0)","v":0}]
[{"$f":"IF(Descriptions!D71=\"Collections at services\",Descriptions!B71,0)","v":0},0,0,0,0,0,0,0,0,0,0,0,0,0,0,0,0,0,0,0,0,0,0,{"$f":"IF(Descriptions!D71=\"Collections at services\",Descriptions!AA71,0)","v":0}]
[{"$f":"IF(Descriptions!D72=\"Collections at services\",Descriptions!B72,0)","v":0},0,0,0,0,0,0,0,0,0,0,0,0,0,0,0,0,0,0,0,0,0,0,{"$f":"IF(Descriptions!D72=\"Collections at services\",Descriptions!AA72,0)","v":0}]
[{"$f":"IF(Descriptions!D73=\"Collections at services\",Descriptions!B73,0)","v":0},0,0,0,0,0,0,0,0,0,0,0,0,0,0,0,0,0,0,0,0,0,0,{"$f":"IF(Descriptions!D73=\"Collections at services\",Descriptions!AA73,0)","v":0}]
[{"$f":"IF(Descriptions!D74=\"Collections at services\",Descriptions!B74,0)","v":0},0,0,0,0,0,0,0,0,0,0,0,0,0,0,0,0,0,0,0,0,0,0,{"$f":"IF(Descriptions!D74=\"Collections at services\",Descriptions!AA74,0)","v":0}]
[{"$f":"IF(Descriptions!D75=\"Collections at services\",Descriptions!B75,0)","v":0},0,0,0,0,0,0,0,0,0,0,0,0,0,0,0,0,0,0,0,0,0,0,{"$f":"IF(Descriptions!D75=\"Collections at services\",Descriptions!AA75,0)","v":0}]
[{"$f":"IF(Descriptions!D76=\"Collections at services\",Descriptions!B76,0)","v":0},0,0,0,0,0,0,0,0,0,0,0,0,0,0,0,0,0,0,0,0,0,0,{"$f":"IF(Descriptions!D76=\"Collections at services\",Descriptions!AA76,0)","v":0}]
[{"$f":"IF(Descriptions!D77=\"Collections at services\",Descriptions!B77,0)","v":0},0,0,0,0,0,0,0,0,0,0,0,0,0,0,0,0,0,0,0,0,0,0,{"$f":"IF(Descriptions!D77=\"Collections at services\",Descriptions!AA77,0)","v":0}]
[{"$f":"IF(Descriptions!D78=\"Collections at services\",Descriptions!B78,0)","v":0},0,0,0,0,0,0,0,0,0,0,0,0,0,0,0,0,0,0,0,0,0,0,{"$f":"IF(Descriptions!D78=\"Collections at services\",Descriptions!AA78,0)","v":0}]
[{"$f":"IF(Descriptions!D79=\"Collections at services\",Descriptions!B79,0)","v":0},0,0,0,0,0,0,0,0,0,0,0,0,0,0,0,0,0,0,0,0,0,0,{"$f":"IF(Descriptions!D79=\"Collections at services\",Descriptions!AA79,0)","v":0}]
[{"$f":"IF(Descriptions!D80=\"Collections at services\",Descriptions!B80,0)","v":0},0,0,0,0,0,0,0,0,0,0,0,0,0,0,0,0,0,0,0,0,0,0,{"$f":"IF(Descriptions!D80=\"Collections at services\",Descriptions!AA80,0)","v":0}]
[{"$f":"IF(Descriptions!D81=\"Collections at services\",Descriptions!B81,0)","v":0},0,0,0,0,0,0,0,0,0,0,0,0,0,0,0,0,0,0,0,0,0,0,{"$f":"IF(Descriptions!D81=\"Collections at services\",Descriptions!AA81,0)","v":0}]
[{"$f":"IF(Descriptions!D82=\"Collections at services\",Descriptions!B82,0)","v":0},0,0,0,0,0,0,0,0,0,0,0,0,0,0,0,0,0,0,0,0,0,0,{"$f":"IF(Descriptions!D82=\"Collections at services\",Descriptions!AA82,0)","v":0}]
[{"$f":"IF(Descriptions!D83=\"Collections at services\",Descriptions!B83,0)","v":0},0,0,0,0,0,0,0,0,0,0,0,0,0,0,0,0,0,0,0,0,0,0,{"$f":"IF(Descriptions!D83=\"Collections at services\",Descriptions!AA83,0)","v":0}]
[{"$f":"IF(Descriptions!D84=\"Collections at services\",Descriptions!B84,0)","v":0},0,0,0,0,0,0,0,0,0,0,0,0,0,0,0,0,0,0,0,0,0,0,{"$f":"IF(Descriptions!D84=\"Collections at services\",Descriptions!AA84,0)","v":0}]
[{"$f":"IF(Descriptions!D85=\"Collections at services\",Descriptions!B85,0)","v":0},0,0,0,0,0,0,0,0,0,0,0,0,0,0,0,0,0,0,0,0,0,0,{"$f":"IF(Descriptions!D85=\"Collections at services\",Descriptions!AA85,0)","v":0}]
[{"$f":"IF(Descriptions!D86=\"Collections at services\",Descriptions!B86,0)","v":0},0,0,0,0,0,0,0,0,0,0,0,0,0,0,0,0,0,0,0,0,0,0,{"$f":"IF(Descriptions!D86=\"Collections at services\",Descriptions!AA86,0)","v":0}]
[{"$f":"IF(Descriptions!D87=\"Collections at services\",Descriptions!B87,0)","v":0},0,0,0,0,0,0,0,0,0,0,0,0,0,0,0,0,0,0,0,0,0,0,{"$f":"IF(Descriptions!D87=\"Collections at services\",Descriptions!AA87,0)","v":0}]
[{"$f":"IF(Descriptions!D88=\"Collections at services\",Descriptions!B88,0)","v":0},0,0,0,0,0,0,0,0,0,0,0,0,0,0,0,0,0,0,0,0,0,0,{"$f":"IF(Descriptions!D88=\"Collections at services\",Descriptions!AA88,0)","v":0}]
[{"$f":"IF(Descriptions!D89=\"Collections at services\",Descriptions!B89,0)","v":0},0,0,0,0,0,0,0,0,0,0,0,0,0,0,0,0,0,0,0,0,0,0,{"$f":"IF(Descriptions!D89=\"Collections at services\",Descriptions!AA89,0)","v":0}]
[{"$f":"IF(Descriptions!D90=\"Collections at services\",Descriptions!B90,0)","v":0},0,0,0,0,0,0,0,0,0,0,0,0,0,0,0,0,0,0,0,0,0,0,{"$f":"IF(Descriptions!D90=\"Collections at services\",Descriptions!AA90,0)","v":0}]
[{"$f":"IF(Descriptions!D91=\"Collections at services\",Descriptions!B91,0)","v":0},0,0,0,0,0,0,0,0,0,0,0,0,0,0,0,0,0,0,0,0,0,0,{"$f":"IF(Descriptions!D91=\"Collections at services\",Descriptions!AA91,0)","v":0}]
[{"$f":"IF(Descriptions!D92=\"Collections at services\",Descriptions!B92,0)","v":0},0,0,0,0,0,0,0,0,0,0,0,0,0,0,0,0,0,0,0,0,0,0,{"$f":"IF(Descriptions!D92=\"Collections at services\",Descriptions!AA92,0)","v":0}]
[null,{"$f":"SUM(B6:B63)","v":0},0,0,0,0,0,0,0,0,0,0,0,0,0,0,0,0,0,0,0,0,null,{"$f":"X5","v":0}]
["PLANNED GIVING",null,null,null,null,null,null,null,null,null,null,null,null,null,null,null,null,null,null,null,null,null,null,{"$f":"SUM(X66:X117)","v":0}]
["Standing Order",0,0,0,0,0,0,0,0,0,0,0,0,0,0,0,0,0,0,0,0,0,{"$f":"SUM(B66:V66)","v":0},{"$f":"Descriptions!AA33","v":0}]
["Parish Giving Scheme Income",0,0,0,0,0,0,0,0,0,0,0,0,0,0,0,0,0,0,0,0,0,0,{"$f":"Descriptions!AA29","v":0}]
[{"$f":"IF(Descriptions!D43=\"Planned giving\",Descriptions!B43,0)","v":0},0,0,0,0,0,0,0,0,0,0,0,0,0,0,0,0,0,0,0,0,0,0,{"$f":"IF(Descriptions!D43=\"Planned giving\",Descriptions!AA43,0)","v":0}]
[{"$f":"IF(Descriptions!D44=\"Planned giving\",Descriptions!B44,0)","v":0},0,0,0,0,0,0,0,0,0,0,0,0,0,0,0,0,0,0,0,0,0,0,{"$f":"IF(Descriptions!D44=\"Planned giving\",Descriptions!AA44,0)","v":0}]
[{"$f":"IF(Descriptions!D45=\"Planned giving\",Descriptions!B45,0)","v":0},0,0,0,0,0,0,0,0,0,0,0,0,0,0,0,0,0,0,0,0,0,0,{"$f":"IF(Descriptions!D45=\"Planned giving\",Descriptions!AA45,0)","v":0}]
[{"$f":"IF(Descriptions!D46=\"Planned giving\",Descriptions!B46,0)","v":0},0,0,0,0,0,0,0,0,0,0,0,0,0,0,0,0,0,0,0,0,0,0,{"$f":"IF(Descriptions!D46=\"Planned giving\",Descriptions!AA46,0)","v":0}]
[{"$f":"IF(Descriptions!D47=\"Planned giving\",Descriptions!B47,0)","v":0},0,0,0,0,0,0,0,0,0,0,0,0,0,0,0,0,0,0,0,0,0,0,{"$f":"IF(Descriptions!D47=\"Planned giving\",Descriptions!AA47,0)","v":0}]
[{"$f":"IF(Descriptions!D48=\"Planned giving\",Descriptions!B48,0)","v":0},0,0,0,0,0,0,0,0,0,0,0,0,0,0,0,0,0,0,0,0,0,0,{"$f":"IF(Descriptions!D48=\"Planned giving\",Descriptions!AA48,0)","v":0}]
[{"$f":"IF(Descriptions!D49=\"Planned giving\",Descriptions!B49,0)","v":0},0,0,0,0,0,0,0,0,0,0,0,0,0,0,0,0,0,0,0,0,0,0,{"$f":"IF(Descriptions!D49=\"Planned giving\",Descriptions!AA49,0)","v":0}]
[{"$f":"IF(Descriptions!D50=\"Planned giving\",Descriptions!B50,0)","v":0},0,0,0,0,0,0,0,0,0,0,0,0,0,0,0,0,0,0,0,0,0,0,{"$f":"IF(Descriptions!D50=\"Planned giving\",Descriptions!AA50,0)","v":0}]
[{"$f":"IF(Descriptions!D51=\"Planned giving\",Descriptions!B51,0)","v":0},0,0,0,0,0,0,0,0,0,0,0,0,0,0,0,0,0,0,0,0,0,0,{"$f":"IF(Descriptions!D51=\"Planned giving\",Descriptions!AA51,0)","v":0}]
[{"$f":"IF(Descriptions!D52=\"Planned giving\",Descriptions!B52,0)","v":0},0,0,0,0,0,0,0,0,0,0,0,0,0,0,0,0,0,0,0,0,0,0,{"$f":"IF(Descriptions!D52=\"Planned giving\",Descriptions!AA52,0)","v":0}]
[{"$f":"IF(Descriptions!D53=\"Planned giving\",Descriptions!B53,0)","v":0},0,0,0,0,0,0,0,0,0,0,0,0,0,0,0,0,0,0,0,0,0,0,{"$f":"IF(Descriptions!D53=\"Planned giving\",Descriptions!AA53,0)","v":0}]
[{"$f":"IF(Descriptions!D54=\"Planned giving\",Descriptions!B54,0)","v":0},0,0,0,0,0,0,0,0,0,0,0,0,0,0,0,0,0,0,0,0,0,0,{"$f":"IF(Descriptions!D54=\"Planned giving\",Descriptions!AA54,0)","v":0}]
[{"$f":"IF(Descriptions!D55=\"Planned giving\",Descriptions!B55,0)","v":0},0,0,0,0,0,0,0,0,0,0,0,0,0,0,0,0,0,0,0,0,0,0,{"$f":"IF(Descriptions!D55=\"Planned giving\",Descriptions!AA55,0)","v":0}]
[{"$f":"IF(Descriptions!D56=\"Planned giving\",Descriptions!B56,0)","v":0},0,0,0,0,0,0,0,0,0,0,0,0,0,0,0,0,0,0,0,0,0,0,{"$f":"IF(Descriptions!D56=\"Planned giving\",Descriptions!AA56,0)","v":0}]
[{"$f":"IF(Descriptions!D57=\"Planned giving\",Descriptions!B57,0)","v":0},0,0,0,0,0,0,0,0,0,0,0,0,0,0,0,0,0,0,0,0,0,0,{"$f":"IF(Descriptions!D57=\"Planned giving\",Descriptions!AA57,0)","v":0}]
[{"$f":"IF(Descriptions!D58=\"Planned giving\",Descriptions!B58,0)","v":0},0,0,0,0,0,0,0,0,0,0,0,0,0,0,0,0,0,0,0,0,0,0,{"$f":"IF(Descriptions!D58=\"Planned giving\",Descriptions!AA58,0)","v":0}]
[{"$f":"IF(Descriptions!D59=\"Planned giving\",Descriptions!B59,0)","v":0},0,0,0,0,0,0,0,0,0,0,0,0,0,0,0,0,0,0,0,0,0,0,{"$f":"IF(Descriptions!D59=\"Planned giving\",Descriptions!AA59,0)","v":0}]
[{"$f":"IF(Descriptions!D60=\"Planned giving\",Descriptions!B60,0)","v":0},0,0,0,0,0,0,0,0,0,0,0,0,0,0,0,0,0,0,0,0,0,0,{"$f":"IF(Descriptions!D60=\"Planned giving\",Descriptions!AA60,0)","v":0}]
[{"$f":"IF(Descriptions!D61=\"Planned giving\",Descriptions!B61,0)","v":0},0,0,0,0,0,0,0,0,0,0,0,0,0,0,0,0,0,0,0,0,0,0,{"$f":"IF(Descriptions!D61=\"Planned giving\",Descriptions!AA61,0)","v":0}]
[{"$f":"IF(Descriptions!D62=\"Planned giving\",Descriptions!B62,0)","v":0},0,0,0,0,0,0,0,0,0,0,0,0,0,0,0,0,0,0,0,0,0,0,{"$f":"IF(Descriptions!D62=\"Planned giving\",Descriptions!AA62,0)","v":0}]
[{"$f":"IF(Descriptions!D63=\"Planned giving\",Descriptions!B63,0)","v":0},0,0,0,0,0,0,0,0,0,0,0,0,0,0,0,0,0,0,0,0,0,0,{"$f":"IF(Descriptions!D63=\"Planned giving\",Descriptions!AA63,0)","v":0}]
[{"$f":"IF(Descriptions!D64=\"Planned giving\",Descriptions!B64,0)","v":0},0,0,0,0,0,0,0,0,0,0,0,0,0,0,0,0,0,0,0,0,0,0,{"$f":"IF(Descriptions!D64=\"Planned giving\",Descriptions!AA64,0)","v":0}]
[{"$f":"IF(Descriptions!D65=\"Planned giving\",Descriptions!B65,0)","v":0},0,0,0,0,0,0,0,0,0,0,0,0,0,0,0,0,0,0,0,0,0,0,{"$f":"IF(Descriptions!D65=\"Planned giving\",Descriptions!AA65,0)","v":0}]
[{"$f":"IF(Descriptions!D66=\"Planned giving\",Descriptions!B66,0)","v":0},0,0,0,0,0,0,0,0,0,0,0,0,0,0,0,0,0,0,0,0,0,0,{"$f":"IF(Descriptions!D66=\"Planned giving\",Descriptions!AA66,0)","v":0}]
[{"$f":"IF(Descriptions!D67=\"Planned giving\",Descriptions!B67,0)","v":0},0,0,0,0,0,0,0,0,0,0,0,0,0,0,0,0,0,0,0,0,0,0,{"$f":"IF(Descriptions!D67=\"Planned giving\",Descriptions!AA67,0)","v":0}]
[{"$f":"IF(Descriptions!D68=\"Planned giving\",Descriptions!B68,0)","v":0},0,0,0,0,0,0,0,0,0,0,0,0,0,0,0,0,0,0,0,0,0,0,{"$f":"IF(Descriptions!D68=\"Planned giving\",Descriptions!AA68,0)","v":0}]
[{"$f":"IF(Descriptions!D69=\"Planned giving\",Descriptions!B69,0)","v":0},0,0,0,0,0,0,0,0,0,0,0,0,0,0,0,0,0,0,0,0,0,0,{"$f":"IF(Descriptions!D69=\"Planned giving\",Descriptions!AA69,0)","v":0}]
[{"$f":"IF(Descriptions!D70=\"Planned giving\",Descriptions!B70,0)","v":0},0,0,0,0,0,0,0,0,0,0,0,0,0,0,0,0,0,0,0,0,0,0,{"$f":"IF(Descriptions!D70=\"Planned giving\",Descriptions!AA70,0)","v":0}]
[{"$f":"IF(Descriptions!D71=\"Planned giving\",Descriptions!B71,0)","v":0},0,0,0,0,0,0,0,0,0,0,0,0,0,0,0,0,0,0,0,0,0,0,{"$f":"IF(Descriptions!D71=\"Planned giving\",Descriptions!AA71,0)","v":0}]
[{"$f":"IF(Descriptions!D72=\"Planned giving\",Descriptions!B72,0)","v":0},0,0,0,0,0,0,0,0,0,0,0,0,0,0,0,0,0,0,0,0,0,0,{"$f":"IF(Descriptions!D72=\"Planned giving\",Descriptions!AA72,0)","v":0}]
[{"$f":"IF(Descriptions!D73=\"Planned giving\",Descriptions!B73,0)","v":0},0,0,0,0,0,0,0,0,0,0,0,0,0,0,0,0,0,0,0,0,0,0,{"$f":"IF(Descriptions!D73=\"Planned giving\",Descriptions!AA73,0)","v":0}]
[{"$f":"IF(Descriptions!D74=\"Planned giving\",Descriptions!B74,0)","v":0},0,0,0,0,0,0,0,0,0,0,0,0,0,0,0,0,0,0,0,0,0,0,{"$f":"IF(Descriptions!D74=\"Planned giving\",Descriptions!AA74,0)","v":0}]
[{"$f":"IF(Descriptions!D75=\"Planned giving\",Descriptions!B75,0)","v":0},0,0,0,0,0,0,0,0,0,0,0,0,0,0,0,0,0,0,0,0,0,0,{"$f":"IF(Descriptions!D75=\"Planned giving\",Descriptions!AA75,0)","v":0}]
[{"$f":"IF(Descriptions!D76=\"Planned giving\",Descriptions!B76,0)","v":0},0,0,0,0,0,0,0,0,0,0,0,0,0,0,0,0,0,0,0,0,0,0,{"$f":"IF(Descriptions!D76=\"Planned giving\",Descriptions!AA76,0)","v":0}]
[{"$f":"IF(Descriptions!D77=\"Planned giving\",Descriptions!B77,0)","v":0},0,0,0,0,0,0,0,0,0,0,0,0,0,0,0,0,0,0,0,0,0,0,{"$f":"IF(Descriptions!D77=\"Planned giving\",Descriptions!AA77,0)","v":0}]
[{"$f":"IF(Descriptions!D78=\"Planned giving\",Descriptions!B78,0)","v":0},0,0,0,0,0,0,0,0,0,0,0,0,0,0,0,0,0,0,0,0,0,0,{"$f":"IF(Descriptions!D78=\"Planned giving\",Descriptions!AA78,0)","v":0}]
[{"$f":"IF(Descriptions!D79=\"Planned giving\",Descriptions!B79,0)","v":0},0,0,0,0,0,0,0,0,0,0,0,0,0,0,0,0,0,0,0,0,0,0,{"$f":"IF(Descriptions!D79=\"Planned giving\",Descriptions!AA79,0)","v":0}]
[{"$f":"IF(Descriptions!D80=\"Planned giving\",Descriptions!B80,0)","v":0},0,0,0,0,0,0,0,0,0,0,0,0,0,0,0,0,0,0,0,0,0,0,{"$f":"IF(Descriptions!D80=\"Planned giving\",Descriptions!AA80,0)","v":0}]
[{"$f":"IF(Descriptions!D81=\"Planned giving\",Descriptions!B81,0)","v":0},0,0,0,0,0,0,0,0,0,0,0,0,0,0,0,0,0,0,0,0,0,0,{"$f":"IF(Descriptions!D81=\"Planned giving\",Descriptions!AA81,0)","v":0}]
[{"$f":"IF(Descriptions!D82=\"Planned giving\",Descriptions!B82,0)","v":0},0,0,0,0,0,0,0,0,0,0,0,0,0,0,0,0,0,0,0,0,0,0,{"$f":"IF(Descriptions!D82=\"Planned giving\",Descriptions!AA82,0)","v":0}]
[{"$f":"IF(Descriptions!D83=\"Planned giving\",Descriptions!B83,0)","v":0},0,0,0,0,0,0,0,0,0,0,0,0,0,0,0,0,0,0,0,0,0,0,{"$f":"IF(Descriptions!D83=\"Planned giving\",Descriptions!AA83,0)","v":0}]
[{"$f":"IF(Descriptions!D84=\"Planned giving\",Descriptions!B84,0)","v":0},0,0,0,0,0,0,0,0,0,0,0,0,0,0,0,0,0,0,0,0,0,0,{"$f":"IF(Descriptions!D84=\"Planned giving\",Descriptions!AA84,0)","v":0}]
[{"$f":"IF(Descriptions!D85=\"Planned giving\",Descriptions!B85,0)","v":0},0,0,0,0,0,0,0,0,0,0,0,0,0,0,0,0,0,0,0,0,0,0,{"$f":"IF(Descriptions!D85=\"Planned giving\",Descriptions!AA85,0)","v":0}]
[{"$f":"IF(Descriptions!D86=\"Planned giving\",Descriptions!B86,0)","v":0},0,0,0,0,0,0,0,0,0,0,0,0,0,0,0,0,0,0,0,0,0,0,{"$f":"IF(Descriptions!D86=\"Planned giving\",Descriptions!AA86,0)","v":0}]
[{"$f":"IF(Descriptions!D87=\"Planned giving\",Descriptions!B87,0)","v":0},0,0,0,0,0,0,0,0,0,0,0,0,0,0,0,0,0,0,0,0,0,0,{"$f":"IF(Descriptions!D87=\"Planned giving\",Descriptions!AA87,0)","v":0}]
[{"$f":"IF(Descriptions!D88=\"Planned giving\",Descriptions!B88,0)","v":0},0,0,0,0,0,0,0,0,0,0,0,0,0,0,0,0,0,0,0,0,0,0,{"$f":"IF(Descriptions!D88=\"Planned giving\",Descriptions!AA88,0)","v":0}]
[{"$f":"IF(Descriptions!D89=\"Planned giving\",Descriptions!B89,0)","v":0},0,0,0,0,0,0,0,0,0,0,0,0,0,0,0,0,0,0,0,0,0,0,{"$f":"IF(Descriptions!D89=\"Planned giving\",Descriptions!AA89,0)","v":0}]
[{"$f":"IF(Descriptions!D90=\"Planned giving\",Descriptions!B90,0)","v":0},0,0,0,0,0,0,0,0,0,0,0,0,0,0,0,0,0,0,0,0,0,0,{"$f":"IF(Descriptions!D90=\"Planned giving\",Descriptions!AA90,0)","v":0}]
[{"$f":"IF(Descriptions!D91=\"Planned giving\",Descriptions!B91,0)","v":0},0,0,0,0,0,0,0,0,0,0,0,0,0,0,0,0,0,0,0,0,0,0,{"$f":"IF(Descriptions!D91=\"Planned giving\",Descriptions!AA91,0)","v":0}]
[{"$f":"IF(Descriptions!D92=\"Planned giving\",Descriptions!B92,0)","v":0},0,0,0,0,0,0,0,0,0,0,0,0,0,0,0,0,0,0,0,0,0,0,{"$f":"IF(Descriptions!D92=\"Planned giving\",Descriptions!AA92,0)","v":0}]
[null,{"$f":"SUM(B66:B117)","v":0},0,0,0,0,0,0,0,0,0,0,0,0,0,0,0,0,0,0,0,0,null,{"$f":"X65","v":0}]
["GIFT AID RECEIVED",null,null,null,null,null,null,null,null,null,null,null,null,null,null,null,null,null,null,null,null,null,null,{"$f":"SUM(X120)","v":0}]
["Gift Aid Reclaim",0,0,0,0,0,0,0,0,0,0,0,0,0,0,0,0,0,0,0,0,0,{"$f":"SUM(B120:V120)","v":0},{"$f":"Descriptions!AA18","v":0}]
[{"$f":"IF(Descriptions!D43=\"Gift aid recovered\",Descriptions!B43,0)","v":0},0,0,0,0,0,0,0,0,0,0,0,0,0,0,0,0,0,0,0,0,0,0,{"$f":"IF(Descriptions!D43=\"Gift aid recovered\",Descriptions!AA43,0)","v":0}]
[{"$f":"IF(Descriptions!D44=\"Gift aid recovered\",Descriptions!B44,0)","v":0},0,0,0,0,0,0,0,0,0,0,0,0,0,0,0,0,0,0,0,0,0,0,{"$f":"IF(Descriptions!D44=\"Gift aid recovered\",Descriptions!AA44,0)","v":0}]
[{"$f":"IF(Descriptions!D45=\"Gift aid recovered\",Descriptions!B45,0)","v":0},0,0,0,0,0,0,0,0,0,0,0,0,0,0,0,0,0,0,0,0,0,0,{"$f":"IF(Descriptions!D45=\"Gift aid recovered\",Descriptions!AA45,0)","v":0}]
[{"$f":"IF(Descriptions!D46=\"Gift aid recovered\",Descriptions!B46,0)","v":0},0,0,0,0,0,0,0,0,0,0,0,0,0,0,0,0,0,0,0,0,0,0,{"$f":"IF(Descriptions!D46=\"Gift aid recovered\",Descriptions!AA46,0)","v":0}]
[{"$f":"IF(Descriptions!D47=\"Gift aid recovered\",Descriptions!B47,0)","v":0},0,0,0,0,0,0,0,0,0,0,0,0,0,0,0,0,0,0,0,0,0,0,{"$f":"IF(Descriptions!D47=\"Gift aid recovered\",Descriptions!AA47,0)","v":0}]
[{"$f":"IF(Descriptions!D48=\"Gift aid recovered\",Descriptions!B48,0)","v":0},0,0,0,0,0,0,0,0,0,0,0,0,0,0,0,0,0,0,0,0,0,0,{"$f":"IF(Descriptions!D48=\"Gift aid recovered\",Descriptions!AA48,0)","v":0}]
[{"$f":"IF(Descriptions!D49=\"Gift aid recovered\",Descriptions!B49,0)","v":0},0,0,0,0,0,0,0,0,0,0,0,0,0,0,0,0,0,0,0,0,0,0,{"$f":"IF(Descriptions!D49=\"Gift aid recovered\",Descriptions!AA49,0)","v":0}]
[{"$f":"IF(Descriptions!D50=\"Gift aid recovered\",Descriptions!B50,0)","v":0},0,0,0,0,0,0,0,0,0,0,0,0,0,0,0,0,0,0,0,0,0,0,{"$f":"IF(Descriptions!D50=\"Gift aid recovered\",Descriptions!AA50,0)","v":0}]
[{"$f":"IF(Descriptions!D51=\"Gift aid recovered\",Descriptions!B51,0)","v":0},0,0,0,0,0,0,0,0,0,0,0,0,0,0,0,0,0,0,0,0,0,0,{"$f":"IF(Descriptions!D51=\"Gift aid recovered\",Descriptions!AA51,0)","v":0}]
[{"$f":"IF(Descriptions!D52=\"Gift aid recovered\",Descriptions!B52,0)","v":0},0,0,0,0,0,0,0,0,0,0,0,0,0,0,0,0,0,0,0,0,0,0,{"$f":"IF(Descriptions!D52=\"Gift aid recovered\",Descriptions!AA52,0)","v":0}]
[{"$f":"IF(Descriptions!D53=\"Gift aid recovered\",Descriptions!B53,0)","v":0},0,0,0,0,0,0,0,0,0,0,0,0,0,0,0,0,0,0,0,0,0,0,{"$f":"IF(Descriptions!D53=\"Gift aid recovered\",Descriptions!AA53,0)","v":0}]
[{"$f":"IF(Descriptions!D54=\"Gift aid recovered\",Descriptions!B54,0)","v":0},0,0,0,0,0,0,0,0,0,0,0,0,0,0,0,0,0,0,0,0,0,0,{"$f":"IF(Descriptions!D54=\"Gift aid recovered\",Descriptions!AA54,0)","v":0}]
[{"$f":"IF(Descriptions!D55=\"Gift aid recovered\",Descriptions!B55,0)","v":0},0,0,0,0,0,0,0,0,0,0,0,0,0,0,0,0,0,0,0,0,0,0,{"$f":"IF(Descriptions!D55=\"Gift aid recovered\",Descriptions!AA55,0)","v":0}]
[{"$f":"IF(Descriptions!D56=\"Gift aid recovered\",Descriptions!B56,0)","v":0},0,0,0,0,0,0,0,0,0,0,0,0,0,0,0,0,0,0,0,0,0,0,{"$f":"IF(Descriptions!D56=\"Gift aid recovered\",Descriptions!AA56,0)","v":0}]
[{"$f":"IF(Descriptions!D57=\"Gift aid recovered\",Descriptions!B57,0)","v":0},0,0,0,0,0,0,0,0,0,0,0,0,0,0,0,0,0,0,0,0,0,0,{"$f":"IF(Descriptions!D57=\"Gift aid recovered\",Descriptions!AA57,0)","v":0}]
[{"$f":"IF(Descriptions!D58=\"Gift aid recovered\",Descriptions!B58,0)","v":0},0,0,0,0,0,0,0,0,0,0,0,0,0,0,0,0,0,0,0,0,0,0,{"$f":"IF(Descriptions!D58=\"Gift aid recovered\",Descriptions!AA58,0)","v":0}]
[{"$f":"IF(Descriptions!D59=\"Gift aid recovered\",Descriptions!B59,0)","v":0},0,0,0,0,0,0,0,0,0,0,0,0,0,0,0,0,0,0,0,0,0,0,{"$f":"IF(Descriptions!D59=\"Gift aid recovered\",Descriptions!AA59,0)","v":0}]
[{"$f":"IF(Descriptions!D60=\"Gift aid recovered\",Descriptions!B60,0)","v":0},0,0,0,0,0,0,0,0,0,0,0,0,0,0,0,0,0,0,0,0,0,0,{"$f":"IF(Descriptions!D60=\"Gift aid recovered\",Descriptions!AA60,0)","v":0}]
[{"$f":"IF(Descriptions!D61=\"Gift aid recovered\",Descriptions!B61,0)","v":0},0,0,0,0,0,0,0,0,0,0,0,0,0,0,0,0,0,0,0,0,0,0,{"$f":"IF(Descriptions!D61=\"Gift aid recovered\",Descriptions!AA61,0)","v":0}]
[{"$f":"IF(Descriptions!D62=\"Gift aid recovered\",Descriptions!B62,0)","v":0},0,0,0,0,0,0,0,0,0,0,0,0,0,0,0,0,0,0,0,0,0,0,{"$f":"IF(Descriptions!D62=\"Gift aid recovered\",Descriptions!AA62,0)","v":0}]
[{"$f":"IF(Descriptions!D63=\"Gift aid recovered\",Descriptions!B63,0)","v":0},0,0,0,0,0,0,0,0,0,0,0,0,0,0,0,0,0,0,0,0,0,0,{"$f":"IF(Descriptions!D63=\"Gift aid recovered\",Descriptions!AA63,0)","v":0}]
[{"$f":"IF(Descriptions!D64=\"Gift aid recovered\",Descriptions!B64,0)","v":0},0,0,0,0,0,0,0,0,0,0,0,0,0,0,0,0,0,0,0,0,0,0,{"$f":"IF(Descriptions!D64=\"Gift aid recovered\",Descriptions!AA64,0)","v":0}]
[{"$f":"IF(Descriptions!D65=\"Gift aid recovered\",Descriptions!B65,0)","v":0},0,0,0,0,0,0,0,0,0,0,0,0,0,0,0,0,0,0,0,0,0,0,{"$f":"IF(Descriptions!D65=\"Gift aid recovered\",Descriptions!AA65,0)","v":0}]
[{"$f":"IF(Descriptions!D66=\"Gift aid recovered\",Descriptions!B66,0)","v":0},0,0,0,0,0,0,0,0,0,0,0,0,0,0,0,0,0,0,0,0,0,0,{"$f":"IF(Descriptions!D66=\"Gift aid recovered\",Descriptions!AA66,0)","v":0}]
[{"$f":"IF(Descriptions!D67=\"Gift aid recovered\",Descriptions!B67,0)","v":0},0,0,0,0,0,0,0,0,0,0,0,0,0,0,0,0,0,0,0,0,0,0,{"$f":"IF(Descriptions!D67=\"Gift aid recovered\",Descriptions!AA67,0)","v":0}]
[{"$f":"IF(Descriptions!D68=\"Gift aid recovered\",Descriptions!B68,0)","v":0},0,0,0,0,0,0,0,0,0,0,0,0,0,0,0,0,0,0,0,0,0,0,{"$f":"IF(Descriptions!D68=\"Gift aid recovered\",Descriptions!AA68,0)","v":0}]
[{"$f":"IF(Descriptions!D69=\"Gift aid recovered\",Descriptions!B69,0)","v":0},0,0,0,0,0,0,0,0,0,0,0,0,0,0,0,0,0,0,0,0,0,0,{"$f":"IF(Descriptions!D69=\"Gift aid recovered\",Descriptions!AA69,0)","v":0}]
[{"$f":"IF(Descriptions!D70=\"Gift aid recovered\",Descriptions!B70,0)","v":0},0,0,0,0,0,0,0,0,0,0,0,0,0,0,0,0,0,0,0,0,0,0,{"$f":"IF(Descriptions!D70=\"Gift aid recovered\",Descriptions!AA70,0)","v":0}]
[{"$f":"IF(Descriptions!D71=\"Gift aid recovered\",Descriptions!B71,0)","v":0},0,0,0,0,0,0,0,0,0,0,0,0,0,0,0,0,0,0,0,0,0,0,{"$f":"IF(Descriptions!D71=\"Gift aid recovered\",Descriptions!AA71,0)","v":0}]
[{"$f":"IF(Descriptions!D72=\"Gift aid recovered\",Descriptions!B72,0)","v":0},0,0,0,0,0,0,0,0,0,0,0,0,0,0,0,0,0,0,0,0,0,0,{"$f":"IF(Descriptions!D72=\"Gift aid recovered\",Descriptions!AA72,0)","v":0}]
[{"$f":"IF(Descriptions!D73=\"Gift aid recovered\",Descriptions!B73,0)","v":0},0,0,0,0,0,0,0,0,0,0,0,0,0,0,0,0,0,0,0,0,0,0,{"$f":"IF(Descriptions!D73=\"Gift aid recovered\",Descriptions!AA73,0)","v":0}]
[{"$f":"IF(Descriptions!D74=\"Gift aid recovered\",Descriptions!B74,0)","v":0},0,0,0,0,0,0,0,0,0,0,0,0,0,0,0,0,0,0,0,0,0,0,{"$f":"IF(Descriptions!D74=\"Gift aid recovered\",Descriptions!AA74,0)","v":0}]
[{"$f":"IF(Descriptions!D75=\"Gift aid recovered\",Descriptions!B75,0)","v":0},0,0,0,0,0,0,0,0,0,0,0,0,0,0,0,0,0,0,0,0,0,0,{"$f":"IF(Descriptions!D75=\"Gift aid recovered\",Descriptions!AA75,0)","v":0}]
[{"$f":"IF(Descriptions!D76=\"Gift aid recovered\",Descriptions!B76,0)","v":0},0,0,0,0,0,0,0,0,0,0,0,0,0,0,0,0,0,0,0,0,0,0,{"$f":"IF(Descriptions!D76=\"Gift aid recovered\",Descriptions!AA76,0)","v":0}]
[{"$f":"IF(Descriptions!D77=\"Gift aid recovered\",Descriptions!B77,0)","v":0},0,0,0,0,0,0,0,0,0,0,0,0,0,0,0,0,0,0,0,0,0,0,{"$f":"IF(Descriptions!D77=\"Gift aid recovered\",Descriptions!AA77,0)","v":0}]
[{"$f":"IF(Descriptions!D78=\"Gift aid recovered\",Descriptions!B78,0)","v":0},0,0,0,0,0,0,0,0,0,0,0,0,0,0,0,0,0,0,0,0,0,0,{"$f":"IF(Descriptions!D78=\"Gift aid recovered\",Descriptions!AA78,0)","v":0}]
[{"$f":"IF(Descriptions!D79=\"Gift aid recovered\",Descriptions!B79,0)","v":0},0,0,0,0,0,0,0,0,0,0,0,0,0,0,0,0,0,0,0,0,0,0,{"$f":"IF(Descriptions!D79=\"Gift aid recovered\",Descriptions!AA79,0)","v":0}]
[{"$f":"IF(Descriptions!D80=\"Gift aid recovered\",Descriptions!B80,0)","v":0},0,0,0,0,0,0,0,0,0,0,0,0,0,0,0,0,0,0,0,0,0,0,{"$f":"IF(Descriptions!D80=\"Gift aid recovered\",Descriptions!AA80,0)","v":0}]
[{"$f":"IF(Descriptions!D81=\"Gift aid recovered\",Descriptions!B81,0)","v":0},0,0,0,0,0,0,0,0,0,0,0,0,0,0,0,0,0,0,0,0,0,0,{"$f":"IF(Descriptions!D81=\"Gift aid recovered\",Descriptions!AA81,0)","v":0}]
[{"$f":"IF(Descriptions!D82=\"Gift aid recovered\",Descriptions!B82,0)","v":0},0,0,0,0,0,0,0,0,0,0,0,0,0,0,0,0,0,0,0,0,0,0,{"$f":"IF(Descriptions!D82=\"Gift aid recovered\",Descriptions!AA82,0)","v":0}]
[{"$f":"IF(Descriptions!D83=\"Gift aid recovered\",Descriptions!B83,0)","v":0},0,0,0,0,0,0,0,0,0,0,0,0,0,0,0,0,0,0,0,0,0,0,{"$f":"IF(Descriptions!D83=\"Gift aid recovered\",Descriptions!AA83,0)","v":0}]
[{"$f":"IF(Descriptions!D84=\"Gift aid recovered\",Descriptions!B84,0)","v":0},0,0,0,0,0,0,0,0,0,0,0,0,0,0,0,0,0,0,0,0,0,0,{"$f":"IF(Descriptions!D84=\"Gift aid recovered\",Descriptions!AA84,0)","v":0}]
[{"$f":"IF(Descriptions!D85=\"Gift aid recovered\",Descriptions!B85,0)","v":0},0,0,0,0,0,0,0,0,0,0,0,0,0,0,0,0,0,0,0,0,0,0,{"$f":"IF(Descriptions!D85=\"Gift aid recovered\",Descriptions!AA85,0)","v":0}]
[{"$f":"IF(Descriptions!D86=\"Gift aid recovered\",Descriptions!B86,0)","v":0},0,0,0,0,0,0,0,0,0,0,0,0,0,0,0,0,0,0,0,0,0,0,{"$f":"IF(Descriptions!D86=\"Gift aid recovered\",Descriptions!AA86,0)","v":0}]
[{"$f":"IF(Descriptions!D87=\"Gift aid recovered\",Descriptions!B87,0)","v":0},0,0,0,0,0,0,0,0,0,0,0,0,0,0,0,0,0,0,0,0,0,0,{"$f":"IF(Descriptions!D87=\"Gift aid recovered\",Descriptions!AA87,0)","v":0}]
[{"$f":"IF(Descriptions!D88=\"Gift aid recovered\",Descriptions!B88,0)","v":0},0,0,0,0,0,0,0,0,0,0,0,0,0,0,0,0,0,0,0,0,0,0,{"$f":"IF(Descriptions!D88=\"Gift aid recovered\",Descriptions!AA88,0)","v":0}]
[{"$f":"IF(Descriptions!D89=\"Gift aid recovered\",Descriptions!B89,0)","v":0},0,0,0,0,0,0,0,0,0,0,0,0,0,0,0,0,0,0,0,0,0,0,{"$f":"IF(Descriptions!D89=\"Gift aid recovered\",Descriptions!AA89,0)","v":0}]
[{"$f":"IF(Descriptions!D90=\"Gift aid recovered\",Descriptions!B90,0)","v":0},0,0,0,0,0,0,0,0,0,0,0,0,0,0,0,0,0,0,0,0,0,0,{"$f":"IF(Descriptions!D90=\"Gift aid recovered\",Descriptions!AA90,0)","v":0}]
[{"$f":"IF(Descriptions!D91=\"Gift aid recovered\",Descriptions!B91,0)","v":0},0,0,0,0,0,0,0,0,0,0,0,0,0,0,0,0,0,0,0,0,0,0,{"$f":"IF(Descriptions!D91=\"Gift aid recovered\",Descriptions!AA91,0)","v":0}]
[{"$f":"IF(Descriptions!D92=\"Gift aid recovered\",Descriptions!B92,0)","v":0},0,0,0,0,0,0,0,0,0,0,0,0,0,0,0,0,0,0,0,0,0,0,{"$f":"IF(Descriptions!D92=\"Gift aid recovered\",Descriptions!AA92,0)","v":0}]
[null,{"$f":"SUM(B120:B170)","v":0},0,0,0,0,0,0,0,0,0,0,0,0,0,0,0,0,0,0,0,0,null,{"$f":"X119","v":0}]
["ALL OTHER GIVING/VOLUNTARY RECEIPTS",null,null,null,null,null,null,null,null,null,null,null,null,null,null,null,null,null,null,null,null,null,null,{"$f":"SUM(X173:X229)","v":0}]
["Appeals",0,0,0,0,0,0,0,0,0,0,0,0,0,0,0,0,0,0,0,0,0,{"$f":"SUM(B173:V173)","v":0},{"$f":"Descriptions!AA6","v":0}]
["CAF & GAYE giving",0,0,0,0,0,0,0,0,0,0,0,0,0,0,0,0,0,0,0,0,0,0,{"$f":"Descriptions!AA8","v":0}]
["Donations",0,0,0,0,0,0,0,0,0,0,0,0,0,0,0,0,0,0,0,0,0,0,{"$f":"Descriptions!AA12","v":0}]
["Gift Aid Envelopes",0,0,0,0,0,0,0,0,0,0,0,0,0,0,0,0,0,0,0,0,0,0,{"$f":"Descriptions!AA17","v":0}]
["Gift Days",0,0,0,0,0,0,0,0,0,0,0,0,0,0,0,0,0,0,0,0,0,0,{"$f":"Descriptions!AA19","v":0}]
["Donations - Gift Aided",0,0,0,0,0,0,0,0,0,0,0,0,0,0,0,0,0,0,0,0,0,0,{"$f":"Descriptions!AA13","v":0}]
["Wall Boxes",0,0,0,0,0,0,0,0,0,0,0,0,0,0,0,0,0,0,0,0,0,0,{"$f":"Descriptions!AA38","v":0}]
[{"$f":"IF(Descriptions!D43=\"All other giving/voluntary receipts\",Descriptions!B43,0)","v":0},0,0,0,0,0,0,0,0,0,0,0,0,0,0,0,0,0,0,0,0,0,0,{"$f":"IF(Descriptions!D43=\"All other giving/voluntary receipts\",Descriptions!AA43,0)","v":0}]
[{"$f":"IF(Descriptions!D44=\"All other giving/voluntary receipts\",Descriptions!B44,0)","v":0},0,0,0,0,0,0,0,0,0,0,0,0,0,0,0,0,0,0,0,0,0,0,{"$f":"IF(Descriptions!D44=\"All other giving/voluntary receipts\",Descriptions!AA44,0)","v":0}]
[{"$f":"IF(Descriptions!D45=\"All other giving/voluntary receipts\",Descriptions!B45,0)","v":0},0,0,0,0,0,0,0,0,0,0,0,0,0,0,0,0,0,0,0,0,0,0,{"$f":"IF(Descriptions!D45=\"All other giving/voluntary receipts\",Descriptions!AA45,0)","v":0}]
[{"$f":"IF(Descriptions!D46=\"All other giving/voluntary receipts\",Descriptions!B46,0)","v":0},0,0,0,0,0,0,0,0,0,0,0,0,0,0,0,0,0,0,0,0,0,0,{"$f":"IF(Descriptions!D46=\"All other giving/voluntary receipts\",Descriptions!AA46,0)","v":0}]
[{"$f":"IF(Descriptions!D47=\"All other giving/voluntary receipts\",Descriptions!B47,0)","v":0},0,0,0,0,0,0,0,0,0,0,0,0,0,0,0,0,0,0,0,0,0,0,{"$f":"IF(Descriptions!D47=\"All other giving/voluntary receipts\",Descriptions!AA47,0)","v":0}]
[{"$f":"IF(Descriptions!D48=\"All other giving/voluntary receipts\",Descriptions!B48,0)","v":0},0,0,0,0,0,0,0,0,0,0,0,0,0,0,0,0,0,0,0,0,0,0,{"$f":"IF(Descriptions!D48=\"All other giving/voluntary receipts\",Descriptions!AA48,0)","v":0}]
[{"$f":"IF(Descriptions!D49=\"All other giving/voluntary receipts\",Descriptions!B49,0)","v":0},0,0,0,0,0,0,0,0,0,0,0,0,0,0,0,0,0,0,0,0,0,0,{"$f":"IF(Descriptions!D49=\"All other giving/voluntary receipts\",Descriptions!AA49,0)","v":0}]
[{"$f":"IF(Descriptions!D50=\"All other giving/voluntary receipts\",Descriptions!B50,0)","v":0},0,0,0,0,0,0,0,0,0,0,0,0,0,0,0,0,0,0,0,0,0,0,{"$f":"IF(Descriptions!D50=\"All other giving/voluntary receipts\",Descriptions!AA50,0)","v":0}]
[{"$f":"IF(Descriptions!D51=\"All other giving/voluntary receipts\",Descriptions!B51,0)","v":0},0,0,0,0,0,0,0,0,0,0,0,0,0,0,0,0,0,0,0,0,0,0,{"$f":"IF(Descriptions!D51=\"All other giving/voluntary receipts\",Descriptions!AA51,0)","v":0}]
[{"$f":"IF(Descriptions!D52=\"All other giving/voluntary receipts\",Descriptions!B52,0)","v":0},0,0,0,0,0,0,0,0,0,0,0,0,0,0,0,0,0,0,0,0,0,0,{"$f":"IF(Descriptions!D52=\"All other giving/voluntary receipts\",Descriptions!AA52,0)","v":0}]
[{"$f":"IF(Descriptions!D53=\"All other giving/voluntary receipts\",Descriptions!B53,0)","v":0},0,0,0,0,0,0,0,0,0,0,0,0,0,0,0,0,0,0,0,0,0,0,{"$f":"IF(Descriptions!D53=\"All other giving/voluntary receipts\",Descriptions!AA53,0)","v":0}]
[{"$f":"IF(Descriptions!D54=\"All other giving/voluntary receipts\",Descriptions!B54,0)","v":0},0,0,0,0,0,0,0,0,0,0,0,0,0,0,0,0,0,0,0,0,0,0,{"$f":"IF(Descriptions!D54=\"All other giving/voluntary receipts\",Descriptions!AA54,0)","v":0}]
[{"$f":"IF(Descriptions!D55=\"All other giving/voluntary receipts\",Descriptions!B55,0)","v":0},0,0,0,0,0,0,0,0,0,0,0,0,0,0,0,0,0,0,0,0,0,0,{"$f":"IF(Descriptions!D55=\"All other giving/voluntary receipts\",Descriptions!AA55,0)","v":0}]
[{"$f":"IF(Descriptions!D56=\"All other giving/voluntary receipts\",Descriptions!B56,0)","v":0},0,0,0,0,0,0,0,0,0,0,0,0,0,0,0,0,0,0,0,0,0,0,{"$f":"IF(Descriptions!D56=\"All other giving/voluntary receipts\",Descriptions!AA56,0)","v":0}]
[{"$f":"IF(Descriptions!D57=\"All other giving/voluntary receipts\",Descriptions!B57,0)","v":0},0,0,0,0,0,0,0,0,0,0,0,0,0,0,0,0,0,0,0,0,0,0,{"$f":"IF(Descriptions!D57=\"All other giving/voluntary receipts\",Descriptions!AA57,0)","v":0}]
[{"$f":"IF(Descriptions!D58=\"All other giving/voluntary receipts\",Descriptions!B58,0)","v":0},0,0,0,0,0,0,0,0,0,0,0,0,0,0,0,0,0,0,0,0,0,0,{"$f":"IF(Descriptions!D58=\"All other giving/voluntary receipts\",Descriptions!AA58,0)","v":0}]
[{"$f":"IF(Descriptions!D59=\"All other giving/voluntary receipts\",Descriptions!B59,0)","v":0},0,0,0,0,0,0,0,0,0,0,0,0,0,0,0,0,0,0,0,0,0,0,{"$f":"IF(Descriptions!D59=\"All other giving/voluntary receipts\",Descriptions!AA59,0)","v":0}]
[{"$f":"IF(Descriptions!D60=\"All other giving/voluntary receipts\",Descriptions!B60,0)","v":0},0,0,0,0,0,0,0,0,0,0,0,0,0,0,0,0,0,0,0,0,0,0,{"$f":"IF(Descriptions!D60=\"All other giving/voluntary receipts\",Descriptions!AA60,0)","v":0}]
[{"$f":"IF(Descriptions!D61=\"All other giving/voluntary receipts\",Descriptions!B61,0)","v":0},0,0,0,0,0,0,0,0,0,0,0,0,0,0,0,0,0,0,0,0,0,0,{"$f":"IF(Descriptions!D61=\"All other giving/voluntary receipts\",Descriptions!AA61,0)","v":0}]
[{"$f":"IF(Descriptions!D62=\"All other giving/voluntary receipts\",Descriptions!B62,0)","v":0},0,0,0,0,0,0,0,0,0,0,0,0,0,0,0,0,0,0,0,0,0,0,{"$f":"IF(Descriptions!D62=\"All other giving/voluntary receipts\",Descriptions!AA62,0)","v":0}]
[{"$f":"IF(Descriptions!D63=\"All other giving/voluntary receipts\",Descriptions!B63,0)","v":0},0,0,0,0,0,0,0,0,0,0,0,0,0,0,0,0,0,0,0,0,0,0,{"$f":"IF(Descriptions!D63=\"All other giving/voluntary receipts\",Descriptions!AA63,0)","v":0}]
[{"$f":"IF(Descriptions!D64=\"All other giving/voluntary receipts\",Descriptions!B64,0)","v":0},0,0,0,0,0,0,0,0,0,0,0,0,0,0,0,0,0,0,0,0,0,0,{"$f":"IF(Descriptions!D64=\"All other giving/voluntary receipts\",Descriptions!AA64,0)","v":0}]
[{"$f":"IF(Descriptions!D65=\"All other giving/voluntary receipts\",Descriptions!B65,0)","v":0},0,0,0,0,0,0,0,0,0,0,0,0,0,0,0,0,0,0,0,0,0,0,{"$f":"IF(Descriptions!D65=\"All other giving/voluntary receipts\",Descriptions!AA65,0)","v":0}]
[{"$f":"IF(Descriptions!D66=\"All other giving/voluntary receipts\",Descriptions!B66,0)","v":0},0,0,0,0,0,0,0,0,0,0,0,0,0,0,0,0,0,0,0,0,0,0,{"$f":"IF(Descriptions!D66=\"All other giving/voluntary receipts\",Descriptions!AA66,0)","v":0}]
[{"$f":"IF(Descriptions!D67=\"All other giving/voluntary receipts\",Descriptions!B67,0)","v":0},0,0,0,0,0,0,0,0,0,0,0,0,0,0,0,0,0,0,0,0,0,0,{"$f":"IF(Descriptions!D67=\"All other giving/voluntary receipts\",Descriptions!AA67,0)","v":0}]
[{"$f":"IF(Descriptions!D68=\"All other giving/voluntary receipts\",Descriptions!B68,0)","v":0},0,0,0,0,0,0,0,0,0,0,0,0,0,0,0,0,0,0,0,0,0,0,{"$f":"IF(Descriptions!D68=\"All other giving/voluntary receipts\",Descriptions!AA68,0)","v":0}]
[{"$f":"IF(Descriptions!D69=\"All other giving/voluntary receipts\",Descriptions!B69,0)","v":0},0,0,0,0,0,0,0,0,0,0,0,0,0,0,0,0,0,0,0,0,0,0,{"$f":"IF(Descriptions!D69=\"All other giving/voluntary receipts\",Descriptions!AA69,0)","v":0}]
[{"$f":"IF(Descriptions!D70=\"All other giving/voluntary receipts\",Descriptions!B70,0)","v":0},0,0,0,0,0,0,0,0,0,0,0,0,0,0,0,0,0,0,0,0,0,0,{"$f":"IF(Descriptions!D70=\"All other giving/voluntary receipts\",Descriptions!AA70,0)","v":0}]
[{"$f":"IF(Descriptions!D71=\"All other giving/voluntary receipts\",Descriptions!B71,0)","v":0},0,0,0,0,0,0,0,0,0,0,0,0,0,0,0,0,0,0,0,0,0,0,{"$f":"IF(Descriptions!D71=\"All other giving/voluntary receipts\",Descriptions!AA71,0)","v":0}]
[{"$f":"IF(Descriptions!D72=\"All other giving/voluntary receipts\",Descriptions!B72,0)","v":0},0,0,0,0,0,0,0,0,0,0,0,0,0,0,0,0,0,0,0,0,0,0,{"$f":"IF(Descriptions!D72=\"All other giving/voluntary receipts\",Descriptions!AA72,0)","v":0}]
[{"$f":"IF(Descriptions!D73=\"All other giving/voluntary receipts\",Descriptions!B73,0)","v":0},0,0,0,0,0,0,0,0,0,0,0,0,0,0,0,0,0,0,0,0,0,0,{"$f":"IF(Descriptions!D73=\"All other giving/voluntary receipts\",Descriptions!AA73,0)","v":0}]
[{"$f":"IF(Descriptions!D74=\"All other giving/voluntary receipts\",Descriptions!B74,0)","v":0},0,0,0,0,0,0,0,0,0,0,0,0,0,0,0,0,0,0,0,0,0,0,{"$f":"IF(Descriptions!D74=\"All other giving/voluntary receipts\",Descriptions!AA74,0)","v":0}]
[{"$f":"IF(Descriptions!D75=\"All other giving/voluntary receipts\",Descriptions!B75,0)","v":0},0,0,0,0,0,0,0,0,0,0,0,0,0,0,0,0,0,0,0,0,0,0,{"$f":"IF(Descriptions!D75=\"All other giving/voluntary receipts\",Descriptions!AA75,0)","v":0}]
[{"$f":"IF(Descriptions!D76=\"All other giving/voluntary receipts\",Descriptions!B76,0)","v":0},0,0,0,0,0,0,0,0,0,0,0,0,0,0,0,0,0,0,0,0,0,0,{"$f":"IF(Descriptions!D76=\"All other giving/voluntary receipts\",Descriptions!AA76,0)","v":0}]
[{"$f":"IF(Descriptions!D77=\"All other giving/voluntary receipts\",Descriptions!B77,0)","v":0},0,0,0,0,0,0,0,0,0,0,0,0,0,0,0,0,0,0,0,0,0,0,{"$f":"IF(Descriptions!D77=\"All other giving/voluntary receipts\",Descriptions!AA77,0)","v":0}]
[{"$f":"IF(Descriptions!D78=\"All other giving/voluntary receipts\",Descriptions!B78,0)","v":0},0,0,0,0,0,0,0,0,0,0,0,0,0,0,0,0,0,0,0,0,0,0,{"$f":"IF(Descriptions!D78=\"All other giving/voluntary receipts\",Descriptions!AA78,0)","v":0}]
[{"$f":"IF(Descriptions!D79=\"All other giving/voluntary receipts\",Descriptions!B79,0)","v":0},0,0,0,0,0,0,0,0,0,0,0,0,0,0,0,0,0,0,0,0,0,0,{"$f":"IF(Descriptions!D79=\"All other giving/voluntary receipts\",Descriptions!AA79,0)","v":0}]
[{"$f":"IF(Descriptions!D80=\"All other giving/voluntary receipts\",Descriptions!B80,0)","v":0},0,0,0,0,0,0,0,0,0,0,0,0,0,0,0,0,0,0,0,0,0,0,{"$f":"IF(Descriptions!D80=\"All other giving/voluntary receipts\",Descriptions!AA80,0)","v":0}]
[{"$f":"IF(Descriptions!D81=\"All other giving/voluntary receipts\",Descriptions!B81,0)","v":0},0,0,0,0,0,0,0,0,0,0,0,0,0,0,0,0,0,0,0,0,0,0,{"$f":"IF(Descriptions!D81=\"All other giving/voluntary receipts\",Descriptions!AA81,0)","v":0}]
[{"$f":"IF(Descriptions!D82=\"All other giving/voluntary receipts\",Descriptions!B82,0)","v":0},0,0,0,0,0,0,0,0,0,0,0,0,0,0,0,0,0,0,0,0,0,0,{"$f":"IF(Descriptions!D82=\"All other giving/voluntary receipts\",Descriptions!AA82,0)","v":0}]
[{"$f":"IF(Descriptions!D83=\"All other giving/voluntary receipts\",Descriptions!B83,0)","v":0},0,0,0,0,0,0,0,0,0,0,0,0,0,0,0,0,0,0,0,0,0,0,{"$f":"IF(Descriptions!D83=\"All other giving/voluntary receipts\",Descriptions!AA83,0)","v":0}]
[{"$f":"IF(Descriptions!D84=\"All other giving/voluntary receipts\",Descriptions!B84,0)","v":0},0,0,0,0,0,0,0,0,0,0,0,0,0,0,0,0,0,0,0,0,0,0,{"$f":"IF(Descriptions!D84=\"All other giving/voluntary receipts\",Descriptions!AA84,0)","v":0}]
[{"$f":"IF(Descriptions!D85=\"All other giving/voluntary receipts\",Descriptions!B85,0)","v":0},0,0,0,0,0,0,0,0,0,0,0,0,0,0,0,0,0,0,0,0,0,0,{"$f":"IF(Descriptions!D85=\"All other giving/voluntary receipts\",Descriptions!AA85,0)","v":0}]
[{"$f":"IF(Descriptions!D86=\"All other giving/voluntary receipts\",Descriptions!B86,0)","v":0},0,0,0,0,0,0,0,0,0,0,0,0,0,0,0,0,0,0,0,0,0,0,{"$f":"IF(Descriptions!D86=\"All other giving/voluntary receipts\",Descriptions!AA86,0)","v":0}]
[{"$f":"IF(Descriptions!D87=\"All other giving/voluntary receipts\",Descriptions!B87,0)","v":0},0,0,0,0,0,0,0,0,0,0,0,0,0,0,0,0,0,0,0,0,0,0,{"$f":"IF(Descriptions!D87=\"All other giving/voluntary receipts\",Descriptions!AA87,0)","v":0}]
[{"$f":"IF(Descriptions!D88=\"All other giving/voluntary receipts\",Descriptions!B88,0)","v":0},0,0,0,0,0,0,0,0,0,0,0,0,0,0,0,0,0,0,0,0,0,0,{"$f":"IF(Descriptions!D88=\"All other giving/voluntary receipts\",Descriptions!AA88,0)","v":0}]
[{"$f":"IF(Descriptions!D89=\"All other giving/voluntary receipts\",Descriptions!B89,0)","v":0},0,0,0,0,0,0,0,0,0,0,0,0,0,0,0,0,0,0,0,0,0,0,{"$f":"IF(Descriptions!D89=\"All other giving/voluntary receipts\",Descriptions!AA89,0)","v":0}]
[{"$f":"IF(Descriptions!D90=\"All other giving/voluntary receipts\",Descriptions!B90,0)","v":0},0,0,0,0,0,0,0,0,0,0,0,0,0,0,0,0,0,0,0,0,0,0,{"$f":"IF(Descriptions!D90=\"All other giving/voluntary receipts\",Descriptions!AA90,0)","v":0}]
[{"$f":"IF(Descriptions!D91=\"All other giving/voluntary receipts\",Descriptions!B91,0)","v":0},0,0,0,0,0,0,0,0,0,0,0,0,0,0,0,0,0,0,0,0,0,0,{"$f":"IF(Descriptions!D91=\"All other giving/voluntary receipts\",Descriptions!AA91,0)","v":0}]
[{"$f":"IF(Descriptions!D92=\"All other giving/voluntary receipts\",Descriptions!B92,0)","v":0},0,0,0,0,0,0,0,0,0,0,0,0,0,0,0,0,0,0,0,0,0,0,{"$f":"IF(Descriptions!D92=\"All other giving/voluntary receipts\",Descriptions!AA92,0)","v":0}]
[null,{"$f":"SUM(B173:B229)","v":0},0,0,0,0,0,0,0,0,0,0,0,0,0,0,0,0,0,0,0,0,null,{"$f":"X172","v":0}]
["ACTIVITIES FOR GENERATING FUNDS",null,null,null,null,null,null,null,null,null,null,null,null,null,null,null,null,null,null,null,null,null,null,{"$f":"SUM(X232:X287)","v":0}]
["Bookstall",0,0,0,0,0,0,0,0,0,0,0,0,0,0,0,0,0,0,0,0,0,{"$f":"SUM(B232:V232)","v":0},{"$f":"Descriptions!AA7","v":0}]
["Magazine",0,0,0,0,0,0,0,0,0,0,0,0,0,0,0,0,0,0,0,0,0,0,{"$f":"Descriptions!AA25","v":0}]
["Fete",0,0,0,0,0,0,0,0,0,0,0,0,0,0,0,0,0,0,0,0,0,0,{"$f":"Descriptions!AA16","v":0}]
["Churches Together Bike Ride",0,0,0,0,0,0,0,0,0,0,0,0,0,0,0,0,0,0,0,0,0,0,{"$f":"Descriptions!AA10","v":0}]
["Sales",0,0,0,0,0,0,0,0,0,0,0,0,0,0,0,0,0,0,0,0,0,0,{"$f":"Descriptions!AA32","v":0}]
["Other Fundraising Income",0,0,0,0,0,0,0,0,0,0,0,0,0,0,0,0,0,0,0,0,0,0,{"$f":"Descriptions!AA27","v":0}]
[{"$f":"IF(Descriptions!D43=\"Activites for generating funds\",Descriptions!B43,0)","v":0},0,0,0,0,0,0,0,0,0,0,0,0,0,0,0,0,0,0,0,0,0,0,{"$f":"IF(Descriptions!D43=\"Activites for generating funds\",Descriptions!AA43,0)","v":0}]
[{"$f":"IF(Descriptions!D44=\"Activites for generating funds\",Descriptions!B44,0)","v":0},0,0,0,0,0,0,0,0,0,0,0,0,0,0,0,0,0,0,0,0,0,0,{"$f":"IF(Descriptions!D44=\"Activites for generating funds\",Descriptions!AA44,0)","v":0}]
[{"$f":"IF(Descriptions!D45=\"Activites for generating funds\",Descriptions!B45,0)","v":0},0,0,0,0,0,0,0,0,0,0,0,0,0,0,0,0,0,0,0,0,0,0,{"$f":"IF(Descriptions!D45=\"Activites for generating funds\",Descriptions!AA45,0)","v":0}]
[{"$f":"IF(Descriptions!D46=\"Activites for generating funds\",Descriptions!B46,0)","v":0},0,0,0,0,0,0,0,0,0,0,0,0,0,0,0,0,0,0,0,0,0,0,{"$f":"IF(Descriptions!D46=\"Activites for generating funds\",Descriptions!AA46,0)","v":0}]
[{"$f":"IF(Descriptions!D47=\"Activites for generating funds\",Descriptions!B47,0)","v":0},0,0,0,0,0,0,0,0,0,0,0,0,0,0,0,0,0,0,0,0,0,0,{"$f":"IF(Descriptions!D47=\"Activites for generating funds\",Descriptions!AA47,0)","v":0}]
[{"$f":"IF(Descriptions!D48=\"Activites for generating funds\",Descriptions!B48,0)","v":0},0,0,0,0,0,0,0,0,0,0,0,0,0,0,0,0,0,0,0,0,0,0,{"$f":"IF(Descriptions!D48=\"Activites for generating funds\",Descriptions!AA48,0)","v":0}]
[{"$f":"IF(Descriptions!D49=\"Activites for generating funds\",Descriptions!B49,0)","v":0},0,0,0,0,0,0,0,0,0,0,0,0,0,0,0,0,0,0,0,0,0,0,{"$f":"IF(Descriptions!D49=\"Activites for generating funds\",Descriptions!AA49,0)","v":0}]
[{"$f":"IF(Descriptions!D50=\"Activites for generating funds\",Descriptions!B50,0)","v":0},0,0,0,0,0,0,0,0,0,0,0,0,0,0,0,0,0,0,0,0,0,0,{"$f":"IF(Descriptions!D50=\"Activites for generating funds\",Descriptions!AA50,0)","v":0}]
[{"$f":"IF(Descriptions!D51=\"Activites for generating funds\",Descriptions!B51,0)","v":0},0,0,0,0,0,0,0,0,0,0,0,0,0,0,0,0,0,0,0,0,0,0,{"$f":"IF(Descriptions!D51=\"Activites for generating funds\",Descriptions!AA51,0)","v":0}]
[{"$f":"IF(Descriptions!D52=\"Activites for generating funds\",Descriptions!B52,0)","v":0},0,0,0,0,0,0,0,0,0,0,0,0,0,0,0,0,0,0,0,0,0,0,{"$f":"IF(Descriptions!D52=\"Activites for generating funds\",Descriptions!AA52,0)","v":0}]
[{"$f":"IF(Descriptions!D53=\"Activites for generating funds\",Descriptions!B53,0)","v":0},0,0,0,0,0,0,0,0,0,0,0,0,0,0,0,0,0,0,0,0,0,0,{"$f":"IF(Descriptions!D53=\"Activites for generating funds\",Descriptions!AA53,0)","v":0}]
[{"$f":"IF(Descriptions!D54=\"Activites for generating funds\",Descriptions!B54,0)","v":0},0,0,0,0,0,0,0,0,0,0,0,0,0,0,0,0,0,0,0,0,0,0,{"$f":"IF(Descriptions!D54=\"Activites for generating funds\",Descriptions!AA54,0)","v":0}]
[{"$f":"IF(Descriptions!D55=\"Activites for generating funds\",Descriptions!B55,0)","v":0},0,0,0,0,0,0,0,0,0,0,0,0,0,0,0,0,0,0,0,0,0,0,{"$f":"IF(Descriptions!D55=\"Activites for generating funds\",Descriptions!AA55,0)","v":0}]
[{"$f":"IF(Descriptions!D56=\"Activites for generating funds\",Descriptions!B56,0)","v":0},0,0,0,0,0,0,0,0,0,0,0,0,0,0,0,0,0,0,0,0,0,0,{"$f":"IF(Descriptions!D56=\"Activites for generating funds\",Descriptions!AA56,0)","v":0}]
[{"$f":"IF(Descriptions!D57=\"Activites for generating funds\",Descriptions!B57,0)","v":0},0,0,0,0,0,0,0,0,0,0,0,0,0,0,0,0,0,0,0,0,0,0,{"$f":"IF(Descriptions!D57=\"Activites for generating funds\",Descriptions!AA57,0)","v":0}]
[{"$f":"IF(Descriptions!D58=\"Activites for generating funds\",Descriptions!B58,0)","v":0},0,0,0,0,0,0,0,0,0,0,0,0,0,0,0,0,0,0,0,0,0,0,{"$f":"IF(Descriptions!D58=\"Activites for generating funds\",Descriptions!AA58,0)","v":0}]
[{"$f":"IF(Descriptions!D59=\"Activites for generating funds\",Descriptions!B59,0)","v":0},0,0,0,0,0,0,0,0,0,0,0,0,0,0,0,0,0,0,0,0,0,0,{"$f":"IF(Descriptions!D59=\"Activites for generating funds\",Descriptions!AA59,0)","v":0}]
[{"$f":"IF(Descriptions!D60=\"Activites for generating funds\",Descriptions!B60,0)","v":0},0,0,0,0,0,0,0,0,0,0,0,0,0,0,0,0,0,0,0,0,0,0,{"$f":"IF(Descriptions!D60=\"Activites for generating funds\",Descriptions!AA60,0)","v":0}]
[{"$f":"IF(Descriptions!D61=\"Activites for generating funds\",Descriptions!B61,0)","v":0},0,0,0,0,0,0,0,0,0,0,0,0,0,0,0,0,0,0,0,0,0,0,{"$f":"IF(Descriptions!D61=\"Activites for generating funds\",Descriptions!AA61,0)","v":0}]
[{"$f":"IF(Descriptions!D62=\"Activites for generating funds\",Descriptions!B62,0)","v":0},0,0,0,0,0,0,0,0,0,0,0,0,0,0,0,0,0,0,0,0,0,0,{"$f":"IF(Descriptions!D62=\"Activites for generating funds\",Descriptions!AA62,0)","v":0}]
[{"$f":"IF(Descriptions!D63=\"Activites for generating funds\",Descriptions!B63,0)","v":0},0,0,0,0,0,0,0,0,0,0,0,0,0,0,0,0,0,0,0,0,0,0,{"$f":"IF(Descriptions!D63=\"Activites for generating funds\",Descriptions!AA63,0)","v":0}]
[{"$f":"IF(Descriptions!D64=\"Activites for generating funds\",Descriptions!B64,0)","v":0},0,0,0,0,0,0,0,0,0,0,0,0,0,0,0,0,0,0,0,0,0,0,{"$f":"IF(Descriptions!D64=\"Activites for generating funds\",Descriptions!AA64,0)","v":0}]
[{"$f":"IF(Descriptions!D65=\"Activites for generating funds\",Descriptions!B65,0)","v":0},0,0,0,0,0,0,0,0,0,0,0,0,0,0,0,0,0,0,0,0,0,0,{"$f":"IF(Descriptions!D65=\"Activites for generating funds\",Descriptions!AA65,0)","v":0}]
[{"$f":"IF(Descriptions!D66=\"Activites for generating funds\",Descriptions!B66,0)","v":0},0,0,0,0,0,0,0,0,0,0,0,0,0,0,0,0,0,0,0,0,0,0,{"$f":"IF(Descriptions!D66=\"Activites for generating funds\",Descriptions!AA66,0)","v":0}]
[{"$f":"IF(Descriptions!D67=\"Activites for generating funds\",Descriptions!B67,0)","v":0},0,0,0,0,0,0,0,0,0,0,0,0,0,0,0,0,0,0,0,0,0,0,{"$f":"IF(Descriptions!D67=\"Activites for generating funds\",Descriptions!AA67,0)","v":0}]
[{"$f":"IF(Descriptions!D68=\"Activites for generating funds\",Descriptions!B68,0)","v":0},0,0,0,0,0,0,0,0,0,0,0,0,0,0,0,0,0,0,0,0,0,0,{"$f":"IF(Descriptions!D68=\"Activites for generating funds\",Descriptions!AA68,0)","v":0}]
[{"$f":"IF(Descriptions!D69=\"Activites for generating funds\",Descriptions!B69,0)","v":0},0,0,0,0,0,0,0,0,0,0,0,0,0,0,0,0,0,0,0,0,0,0,{"$f":"IF(Descriptions!D69=\"Activites for generating funds\",Descriptions!AA69,0)","v":0}]
[{"$f":"IF(Descriptions!D70=\"Activites for generating funds\",Descriptions!B70,0)","v":0},0,0,0,0,0,0,0,0,0,0,0,0,0,0,0,0,0,0,0,0,0,0,{"$f":"IF(Descriptions!D70=\"Activites for generating funds\",Descriptions!AA70,0)","v":0}]
[{"$f":"IF(Descriptions!D71=\"Activites for generating funds\",Descriptions!B71,0)","v":0},0,0,0,0,0,0,0,0,0,0,0,0,0,0,0,0,0,0,0,0,0,0,{"$f":"IF(Descriptions!D71=\"Activites for generating funds\",Descriptions!AA71,0)","v":0}]
[{"$f":"IF(Descriptions!D72=\"Activites for generating funds\",Descriptions!B72,0)","v":0},0,0,0,0,0,0,0,0,0,0,0,0,0,0,0,0,0,0,0,0,0,0,{"$f":"IF(Descriptions!D72=\"Activites for generating funds\",Descriptions!AA72,0)","v":0}]
[{"$f":"IF(Descriptions!D73=\"Activites for generating funds\",Descriptions!B73,0)","v":0},0,0,0,0,0,0,0,0,0,0,0,0,0,0,0,0,0,0,0,0,0,0,{"$f":"IF(Descriptions!D73=\"Activites for generating funds\",Descriptions!AA73,0)","v":0}]
[{"$f":"IF(Descriptions!D74=\"Activites for generating funds\",Descriptions!B74,0)","v":0},0,0,0,0,0,0,0,0,0,0,0,0,0,0,0,0,0,0,0,0,0,0,{"$f":"IF(Descriptions!D74=\"Activites for generating funds\",Descriptions!AA74,0)","v":0}]
[{"$f":"IF(Descriptions!D75=\"Activites for generating funds\",Descriptions!B75,0)","v":0},0,0,0,0,0,0,0,0,0,0,0,0,0,0,0,0,0,0,0,0,0,0,{"$f":"IF(Descriptions!D75=\"Activites for generating funds\",Descriptions!AA75,0)","v":0}]
[{"$f":"IF(Descriptions!D76=\"Activites for generating funds\",Descriptions!B76,0)","v":0},0,0,0,0,0,0,0,0,0,0,0,0,0,0,0,0,0,0,0,0,0,0,{"$f":"IF(Descriptions!D76=\"Activites for generating funds\",Descriptions!AA76,0)","v":0}]
[{"$f":"IF(Descriptions!D77=\"Activites for generating funds\",Descriptions!B77,0)","v":0},0,0,0,0,0,0,0,0,0,0,0,0,0,0,0,0,0,0,0,0,0,0,{"$f":"IF(Descriptions!D77=\"Activites for generating funds\",Descriptions!AA77,0)","v":0}]
[{"$f":"IF(Descriptions!D78=\"Activites for generating funds\",Descriptions!B78,0)","v":0},0,0,0,0,0,0,0,0,0,0,0,0,0,0,0,0,0,0,0,0,0,0,{"$f":"IF(Descriptions!D78=\"Activites for generating funds\",Descriptions!AA78,0)","v":0}]
[{"$f":"IF(Descriptions!D79=\"Activites for generating funds\",Descriptions!B79,0)","v":0},0,0,0,0,0,0,0,0,0,0,0,0,0,0,0,0,0,0,0,0,0,0,{"$f":"IF(Descriptions!D79=\"Activites for generating funds\",Descriptions!AA79,0)","v":0}]
[{"$f":"IF(Descriptions!D80=\"Activites for generating funds\",Descriptions!B80,0)","v":0},0,0,0,0,0,0,0,0,0,0,0,0,0,0,0,0,0,0,0,0,0,0,{"$f":"IF(Descriptions!D80=\"Activites for generating funds\",Descriptions!AA80,0)","v":0}]
[{"$f":"IF(Descriptions!D81=\"Activites for generating funds\",Descriptions!B81,0)","v":0},0,0,0,0,0,0,0,0,0,0,0,0,0,0,0,0,0,0,0,0,0,0,{"$f":"IF(Descriptions!D81=\"Activites for generating funds\",Descriptions!AA81,0)","v":0}]
[{"$f":"IF(Descriptions!D82=\"Activites for generating funds\",Descriptions!B82,0)","v":0},0,0,0,0,0,0,0,0,0,0,0,0,0,0,0,0,0,0,0,0,0,0,{"$f":"IF(Descriptions!D82=\"Activites for generating funds\",Descriptions!AA82,0)","v":0}]
[{"$f":"IF(Descriptions!D83=\"Activites for generating funds\",Descriptions!B83,0)","v":0},0,0,0,0,0,0,0,0,0,0,0,0,0,0,0,0,0,0,0,0,0,0,{"$f":"IF(Descriptions!D83=\"Activites for generating funds\",Descriptions!AA83,0)","v":0}]
[{"$f":"IF(Descriptions!D84=\"Activites for generating funds\",Descriptions!B84,0)","v":0},0,0,0,0,0,0,0,0,0,0,0,0,0,0,0,0,0,0,0,0,0,0,{"$f":"IF(Descriptions!D84=\"Activites for generating funds\",Descriptions!AA84,0)","v":0}]
[{"$f":"IF(Descriptions!D85=\"Activites for generating funds\",Descriptions!B85,0)","v":0},0,0,0,0,0,0,0,0,0,0,0,0,0,0,0,0,0,0,0,0,0,0,{"$f":"IF(Descriptions!D85=\"Activites for generating funds\",Descriptions!AA85,0)","v":0}]
[{"$f":"IF(Descriptions!D86=\"Activites for generating funds\",Descriptions!B86,0)","v":0},0,0,0,0,0,0,0,0,0,0,0,0,0,0,0,0,0,0,0,0,0,0,{"$f":"IF(Descriptions!D86=\"Activites for generating funds\",Descriptions!AA86,0)","v":0}]
[{"$f":"IF(Descriptions!D87=\"Activites for generating funds\",Descriptions!B87,0)","v":0},0,0,0,0,0,0,0,0,0,0,0,0,0,0,0,0,0,0,0,0,0,0,{"$f":"IF(Descriptions!D87=\"Activites for generating funds\",Descriptions!AA87,0)","v":0}]
[{"$f":"IF(Descriptions!D88=\"Activites for generating funds\",Descriptions!B88,0)","v":0},0,0,0,0,0,0,0,0,0,0,0,0,0,0,0,0,0,0,0,0,0,0,{"$f":"IF(Descriptions!D88=\"Activites for generating funds\",Descriptions!AA88,0)","v":0}]
[{"$f":"IF(Descriptions!D89=\"Activites for generating funds\",Descriptions!B89,0)","v":0},0,0,0,0,0,0,0,0,0,0,0,0,0,0,0,0,0,0,0,0,0,0,{"$f":"IF(Descriptions!D89=\"Activites for generating funds\",Descriptions!AA89,0)","v":0}]
[{"$f":"IF(Descriptions!D90=\"Activites for generating funds\",Descriptions!B90,0)","v":0},0,0,0,0,0,0,0,0,0,0,0,0,0,0,0,0,0,0,0,0,0,0,{"$f":"IF(Descriptions!D90=\"Activites for generating funds\",Descriptions!AA90,0)","v":0}]
[{"$f":"IF(Descriptions!D91=\"Activites for generating funds\",Descriptions!B91,0)","v":0},0,0,0,0,0,0,0,0,0,0,0,0,0,0,0,0,0,0,0,0,0,0,{"$f":"IF(Descriptions!D91=\"Activites for generating funds\",Descriptions!AA91,0)","v":0}]
[{"$f":"IF(Descriptions!D92=\"Activites for generating funds\",Descriptions!B92,0)","v":0},0,0,0,0,0,0,0,0,0,0,0,0,0,0,0,0,0,0,0,0,0,0,{"$f":"IF(Descriptions!D92=\"Activites for generating funds\",Descriptions!AA92,0)","v":0}]
[null,{"$f":"SUM(B232:B287)","v":0},0,0,0,0,0,0,0,0,0,0,0,0,0,0,0,0,0,0,0,0,null,{"$f":"X231","v":0}]
["CHURCH ACTIVITIES",null,null,null,null,null,null,null,null,null,null,null,null,null,null,null,null,null,null,null,null,null,null,{"$f":"SUM(X290:X346)","v":0}]
["Use of Church buildings",0,0,0,0,0,0,0,0,0,0,0,0,0,0,0,0,0,0,0,0,0,{"$f":"SUM(B290:V290)","v":0},{"$f":"Descriptions!AA36","v":0}]
["Non-charitable trading",0,0,0,0,0,0,0,0,0,0,0,0,0,0,0,0,0,0,0,0,0,0,{"$f":"Descriptions!AA26","v":0}]
["Fees - Statutory",0,0,0,0,0,0,0,0,0,0,0,0,0,0,0,0,0,0,0,0,0,0,{"$f":"Descriptions!AA15","v":0}]
["Fees - Additional",0,0,0,0,0,0,0,0,0,0,0,0,0,0,0,0,0,0,0,0,0,0,{"$f":"Descriptions!AA14","v":0}]
["Church Building Appeal",0,0,0,0,0,0,0,0,0,0,0,0,0,0,0,0,0,0,0,0,0,0,{"$f":"Descriptions!AA9","v":0}]
["VAT Reclaim",0,0,0,0,0,0,0,0,0,0,0,0,0,0,0,0,0,0,0,0,0,0,{"$f":"Descriptions!AA37","v":0}]
["Rental Income",0,0,0,0,0,0,0,0,0,0,0,0,0,0,0,0,0,0,0,0,0,0,{"$f":"Descriptions!AA30","v":0}]
[{"$f":"IF(Descriptions!D43=\"Church activities\",Descriptions!B43,0)","v":0},0,0,0,0,0,0,0,0,0,0,0,0,0,0,0,0,0,0,0,0,0,0,{"$f":"IF(Descriptions!D43=\"Church activities\",Descriptions!AA43,0)","v":0}]
[{"$f":"IF(Descriptions!D44=\"Church activities\",Descriptions!B44,0)","v":0},0,0,0,0,0,0,0,0,0,0,0,0,0,0,0,0,0,0,0,0,0,0,{"$f":"IF(Descriptions!D44=\"Church activities\",Descriptions!AA44,0)","v":0}]
[{"$f":"IF(Descriptions!D45=\"Church activities\",Descriptions!B45,0)","v":0},0,0,0,0,0,0,0,0,0,0,0,0,0,0,0,0,0,0,0,0,0,0,{"$f":"IF(Descriptions!D45=\"Church activities\",Descriptions!AA45,0)","v":0}]
[{"$f":"IF(Descriptions!D46=\"Church activities\",Descriptions!B46,0)","v":0},0,0,0,0,0,0,0,0,0,0,0,0,0,0,0,0,0,0,0,0,0,0,{"$f":"IF(Descriptions!D46=\"Church activities\",Descriptions!AA46,0)","v":0}]
[{"$f":"IF(Descriptions!D47=\"Church activities\",Descriptions!B47,0)","v":0},0,0,0,0,0,0,0,0,0,0,0,0,0,0,0,0,0,0,0,0,0,0,{"$f":"IF(Descriptions!D47=\"Church activities\",Descriptions!AA47,0)","v":0}]
[{"$f":"IF(Descriptions!D48=\"Church activities\",Descriptions!B48,0)","v":0},0,0,0,0,0,0,0,0,0,0,0,0,0,0,0,0,0,0,0,0,0,0,{"$f":"IF(Descriptions!D48=\"Church activities\",Descriptions!AA48,0)","v":0}]
[{"$f":"IF(Descriptions!D49=\"Church activities\",Descriptions!B49,0)","v":0},0,0,0,0,0,0,0,0,0,0,0,0,0,0,0,0,0,0,0,0,0,0,{"$f":"IF(Descriptions!D49=\"Church activities\",Descriptions!AA49,0)","v":0}]
[{"$f":"IF(Descriptions!D50=\"Church activities\",Descriptions!B50,0)","v":0},0,0,0,0,0,0,0,0,0,0,0,0,0,0,0,0,0,0,0,0,0,0,{"$f":"IF(Descriptions!D50=\"Church activities\",Descriptions!AA50,0)","v":0}]
[{"$f":"IF(Descriptions!D51=\"Church activities\",Descriptions!B51,0)","v":0},0,0,0,0,0,0,0,0,0,0,0,0,0,0,0,0,0,0,0,0,0,0,{"$f":"IF(Descriptions!D51=\"Church activities\",Descriptions!AA51,0)","v":0}]
[{"$f":"IF(Descriptions!D52=\"Church activities\",Descriptions!B52,0)","v":0},0,0,0,0,0,0,0,0,0,0,0,0,0,0,0,0,0,0,0,0,0,0,{"$f":"IF(Descriptions!D52=\"Church activities\",Descriptions!AA52,0)","v":0}]
[{"$f":"IF(Descriptions!D53=\"Church activities\",Descriptions!B53,0)","v":0},0,0,0,0,0,0,0,0,0,0,0,0,0,0,0,0,0,0,0,0,0,0,{"$f":"IF(Descriptions!D53=\"Church activities\",Descriptions!AA53,0)","v":0}]
[{"$f":"IF(Descriptions!D54=\"Church activities\",Descriptions!B54,0)","v":0},0,0,0,0,0,0,0,0,0,0,0,0,0,0,0,0,0,0,0,0,0,0,{"$f":"IF(Descriptions!D54=\"Church activities\",Descriptions!AA54,0)","v":0}]
[{"$f":"IF(Descriptions!D55=\"Church activities\",Descriptions!B55,0)","v":0},0,0,0,0,0,0,0,0,0,0,0,0,0,0,0,0,0,0,0,0,0,0,{"$f":"IF(Descriptions!D55=\"Church activities\",Descriptions!AA55,0)","v":0}]
[{"$f":"IF(Descriptions!D56=\"Church activities\",Descriptions!B56,0)","v":0},0,0,0,0,0,0,0,0,0,0,0,0,0,0,0,0,0,0,0,0,0,0,{"$f":"IF(Descriptions!D56=\"Church activities\",Descriptions!AA56,0)","v":0}]
[{"$f":"IF(Descriptions!D57=\"Church activities\",Descriptions!B57,0)","v":0},0,0,0,0,0,0,0,0,0,0,0,0,0,0,0,0,0,0,0,0,0,0,{"$f":"IF(Descriptions!D57=\"Church activities\",Descriptions!AA57,0)","v":0}]
[{"$f":"IF(Descriptions!D58=\"Church activities\",Descriptions!B58,0)","v":0},0,0,0,0,0,0,0,0,0,0,0,0,0,0,0,0,0,0,0,0,0,0,{"$f":"IF(Descriptions!D58=\"Church activities\",Descriptions!AA58,0)","v":0}]
[{"$f":"IF(Descriptions!D59=\"Church activities\",Descriptions!B59,0)","v":0},0,0,0,0,0,0,0,0,0,0,0,0,0,0,0,0,0,0,0,0,0,0,{"$f":"IF(Descriptions!D59=\"Church activities\",Descriptions!AA59,0)","v":0}]
[{"$f":"IF(Descriptions!D60=\"Church activities\",Descriptions!B60,0)","v":0},0,0,0,0,0,0,0,0,0,0,0,0,0,0,0,0,0,0,0,0,0,0,{"$f":"IF(Descriptions!D60=\"Church activities\",Descriptions!AA60,0)","v":0}]
[{"$f":"IF(Descriptions!D61=\"Church activities\",Descriptions!B61,0)","v":0},0,0,0,0,0,0,0,0,0,0,0,0,0,0,0,0,0,0,0,0,0,0,{"$f":"IF(Descriptions!D61=\"Church activities\",Descriptions!AA61,0)","v":0}]
[{"$f":"IF(Descriptions!D62=\"Church activities\",Descriptions!B62,0)","v":0},0,0,0,0,0,0,0,0,0,0,0,0,0,0,0,0,0,0,0,0,0,0,{"$f":"IF(Descriptions!D62=\"Church activities\",Descriptions!AA62,0)","v":0}]
[{"$f":"IF(Descriptions!D63=\"Church activities\",Descriptions!B63,0)","v":0},0,0,0,0,0,0,0,0,0,0,0,0,0,0,0,0,0,0,0,0,0,0,{"$f":"IF(Descriptions!D63=\"Church activities\",Descriptions!AA63,0)","v":0}]
[{"$f":"IF(Descriptions!D64=\"Church activities\",Descriptions!B64,0)","v":0},0,0,0,0,0,0,0,0,0,0,0,0,0,0,0,0,0,0,0,0,0,0,{"$f":"IF(Descriptions!D64=\"Church activities\",Descriptions!AA64,0)","v":0}]
[{"$f":"IF(Descriptions!D65=\"Church activities\",Descriptions!B65,0)","v":0},0,0,0,0,0,0,0,0,0,0,0,0,0,0,0,0,0,0,0,0,0,0,{"$f":"IF(Descriptions!D65=\"Church activities\",Descriptions!AA65,0)","v":0}]
[{"$f":"IF(Descriptions!D66=\"Church activities\",Descriptions!B66,0)","v":0},0,0,0,0,0,0,0,0,0,0,0,0,0,0,0,0,0,0,0,0,0,0,{"$f":"IF(Descriptions!D66=\"Church activities\",Descriptions!AA66,0)","v":0}]
[{"$f":"IF(Descriptions!D67=\"Church activities\",Descriptions!B67,0)","v":0},0,0,0,0,0,0,0,0,0,0,0,0,0,0,0,0,0,0,0,0,0,0,{"$f":"IF(Descriptions!D67=\"Church activities\",Descriptions!AA67,0)","v":0}]
[{"$f":"IF(Descriptions!D68=\"Church activities\",Descriptions!B68,0)","v":0},0,0,0,0,0,0,0,0,0,0,0,0,0,0,0,0,0,0,0,0,0,0,{"$f":"IF(Descriptions!D68=\"Church activities\",Descriptions!AA68,0)","v":0}]
[{"$f":"IF(Descriptions!D69=\"Church activities\",Descriptions!B69,0)","v":0},0,0,0,0,0,0,0,0,0,0,0,0,0,0,0,0,0,0,0,0,0,0,{"$f":"IF(Descriptions!D69=\"Church activities\",Descriptions!AA69,0)","v":0}]
[{"$f":"IF(Descriptions!D70=\"Church activities\",Descriptions!B70,0)","v":0},0,0,0,0,0,0,0,0,0,0,0,0,0,0,0,0,0,0,0,0,0,0,{"$f":"IF(Descriptions!D70=\"Church activities\",Descriptions!AA70,0)","v":0}]
[{"$f":"IF(Descriptions!D71=\"Church activities\",Descriptions!B71,0)","v":0},0,0,0,0,0,0,0,0,0,0,0,0,0,0,0,0,0,0,0,0,0,0,{"$f":"IF(Descriptions!D71=\"Church activities\",Descriptions!AA71,0)","v":0}]
[{"$f":"IF(Descriptions!D72=\"Church activities\",Descriptions!B72,0)","v":0},0,0,0,0,0,0,0,0,0,0,0,0,0,0,0,0,0,0,0,0,0,0,{"$f":"IF(Descriptions!D72=\"Church activities\",Descriptions!AA72,0)","v":0}]
[{"$f":"IF(Descriptions!D73=\"Church activities\",Descriptions!B73,0)","v":0},0,0,0,0,0,0,0,0,0,0,0,0,0,0,0,0,0,0,0,0,0,0,{"$f":"IF(Descriptions!D73=\"Church activities\",Descriptions!AA73,0)","v":0}]
[{"$f":"IF(Descriptions!D74=\"Church activities\",Descriptions!B74,0)","v":0},0,0,0,0,0,0,0,0,0,0,0,0,0,0,0,0,0,0,0,0,0,0,{"$f":"IF(Descriptions!D74=\"Church activities\",Descriptions!AA74,0)","v":0}]
[{"$f":"IF(Descriptions!D75=\"Church activities\",Descriptions!B75,0)","v":0},0,0,0,0,0,0,0,0,0,0,0,0,0,0,0,0,0,0,0,0,0,0,{"$f":"IF(Descriptions!D75=\"Church activities\",Descriptions!AA75,0)","v":0}]
[{"$f":"IF(Descriptions!D76=\"Church activities\",Descriptions!B76,0)","v":0},0,0,0,0,0,0,0,0,0,0,0,0,0,0,0,0,0,0,0,0,0,0,{"$f":"IF(Descriptions!D76=\"Church activities\",Descriptions!AA76,0)","v":0}]
[{"$f":"IF(Descriptions!D77=\"Church activities\",Descriptions!B77,0)","v":0},0,0,0,0,0,0,0,0,0,0,0,0,0,0,0,0,0,0,0,0,0,0,{"$f":"IF(Descriptions!D77=\"Church activities\",Descriptions!AA77,0)","v":0}]
[{"$f":"IF(Descriptions!D78=\"Church activities\",Descriptions!B78,0)","v":0},0,0,0,0,0,0,0,0,0,0,0,0,0,0,0,0,0,0,0,0,0,0,{"$f":"IF(Descriptions!D78=\"Church activities\",Descriptions!AA78,0)","v":0}]
[{"$f":"IF(Descriptions!D79=\"Church activities\",Descriptions!B79,0)","v":0},0,0,0,0,0,0,0,0,0,0,0,0,0,0,0,0,0,0,0,0,0,0,{"$f":"IF(Descriptions!D79=\"Church activities\",Descriptions!AA79,0)","v":0}]
[{"$f":"IF(Descriptions!D80=\"Church activities\",Descriptions!B80,0)","v":0},0,0,0,0,0,0,0,0,0,0,0,0,0,0,0,0,0,0,0,0,0,0,{"$f":"IF(Descriptions!D80=\"Church activities\",Descriptions!AA80,0)","v":0}]
[{"$f":"IF(Descriptions!D81=\"Church activities\",Descriptions!B81,0)","v":0},0,0,0,0,0,0,0,0,0,0,0,0,0,0,0,0,0,0,0,0,0,0,{"$f":"IF(Descriptions!D81=\"Church activities\",Descriptions!AA81,0)","v":0}]
[{"$f":"IF(Descriptions!D82=\"Church activities\",Descriptions!B82,0)","v":0},0,0,0,0,0,0,0,0,0,0,0,0,0,0,0,0,0,0,0,0,0,0,{"$f":"IF(Descriptions!D82=\"Church activities\",Descriptions!AA82,0)","v":0}]
[{"$f":"IF(Descriptions!D83=\"Church activities\",Descriptions!B83,0)","v":0},0,0,0,0,0,0,0,0,0,0,0,0,0,0,0,0,0,0,0,0,0,0,{"$f":"IF(Descriptions!D83=\"Church activities\",Descriptions!AA83,0)","v":0}]
[{"$f":"IF(Descriptions!D84=\"Church activities\",Descriptions!B84,0)","v":0},0,0,0,0,0,0,0,0,0,0,0,0,0,0,0,0,0,0,0,0,0,0,{"$f":"IF(Descriptions!D84=\"Church activities\",Descriptions!AA84,0)","v":0}]
[{"$f":"IF(Descriptions!D85=\"Church activities\",Descriptions!B85,0)","v":0},0,0,0,0,0,0,0,0,0,0,0,0,0,0,0,0,0,0,0,0,0,0,{"$f":"IF(Descriptions!D85=\"Church activities\",Descriptions!AA85,0)","v":0}]
[{"$f":"IF(Descriptions!D86=\"Church activities\",Descriptions!B86,0)","v":0},0,0,0,0,0,0,0,0,0,0,0,0,0,0,0,0,0,0,0,0,0,0,{"$f":"IF(Descriptions!D86=\"Church activities\",Descriptions!AA86,0)","v":0}]
[{"$f":"IF(Descriptions!D87=\"Church activities\",Descriptions!B87,0)","v":0},0,0,0,0,0,0,0,0,0,0,0,0,0,0,0,0,0,0,0,0,0,0,{"$f":"IF(Descriptions!D87=\"Church activities\",Descriptions!AA87,0)","v":0}]
[{"$f":"IF(Descriptions!D88=\"Church activities\",Descriptions!B88,0)","v":0},0,0,0,0,0,0,0,0,0,0,0,0,0,0,0,0,0,0,0,0,0,0,{"$f":"IF(Descriptions!D88=\"Church activities\",Descriptions!AA88,0)","v":0}]
[{"$f":"IF(Descriptions!D89=\"Church activities\",Descriptions!B89,0)","v":0},0,0,0,0,0,0,0,0,0,0,0,0,0,0,0,0,0,0,0,0,0,0,{"$f":"IF(Descriptions!D89=\"Church activities\",Descriptions!AA89,0)","v":0}]
[{"$f":"IF(Descriptions!D90=\"Church activities\",Descriptions!B90,0)","v":0},0,0,0,0,0,0,0,0,0,0,0,0,0,0,0,0,0,0,0,0,0,0,{"$f":"IF(Descriptions!D90=\"Church activities\",Descriptions!AA90,0)","v":0}]
[{"$f":"IF(Descriptions!D91=\"Church activities\",Descriptions!B91,0)","v":0},0,0,0,0,0,0,0,0,0,0,0,0,0,0,0,0,0,0,0,0,0,0,{"$f":"IF(Descriptions!D91=\"Church activities\",Descriptions!AA91,0)","v":0}]
[{"$f":"IF(Descriptions!D92=\"Church activities\",Descriptions!B92,0)","v":0},0,0,0,0,0,0,0,0,0,0,0,0,0,0,0,0,0,0,0,0,0,0,{"$f":"IF(Descriptions!D92=\"Church activities\",Descriptions!AA92,0)","v":0}]
[null,{"$f":"SUM(B290:B346)","v":0},0,0,0,0,0,0,0,0,0,0,0,0,0,0,0,0,0,0,0,0,null,{"$f":"X289","v":0}]
["INVESTMENT INCOME",null,null,null,null,null,null,null,null,null,null,null,null,null,null,null,null,null,null,null,null,null,null,{"$f":"SUM(X349:X399)","v":0}]
["Dividends and Interest",0,0,0,0,0,0,0,0,0,0,0,0,0,0,0,0,0,0,0,0,0,{"$f":"SUM(B349:V349)","v":0},{"$f":"Descriptions!AA11","v":0}]
[{"$f":"IF(Descriptions!D43=\"Investment income\",Descriptions!B43,0)","v":0},0,0,0,0,0,0,0,0,0,0,0,0,0,0,0,0,0,0,0,0,0,0,{"$f":"IF(Descriptions!D43=\"Investment income\",Descriptions!AA43,0)","v":0}]
[{"$f":"IF(Descriptions!D44=\"Investment income\",Descriptions!B44,0)","v":0},0,0,0,0,0,0,0,0,0,0,0,0,0,0,0,0,0,0,0,0,0,0,{"$f":"IF(Descriptions!D44=\"Investment income\",Descriptions!AA44,0)","v":0}]
[{"$f":"IF(Descriptions!D45=\"Investment income\",Descriptions!B45,0)","v":0},0,0,0,0,0,0,0,0,0,0,0,0,0,0,0,0,0,0,0,0,0,0,{"$f":"IF(Descriptions!D45=\"Investment income\",Descriptions!AA45,0)","v":0}]
[{"$f":"IF(Descriptions!D46=\"Investment income\",Descriptions!B46,0)","v":0},0,0,0,0,0,0,0,0,0,0,0,0,0,0,0,0,0,0,0,0,0,0,{"$f":"IF(Descriptions!D46=\"Investment income\",Descriptions!AA46,0)","v":0}]
[{"$f":"IF(Descriptions!D47=\"Investment income\",Descriptions!B47,0)","v":0},0,0,0,0,0,0,0,0,0,0,0,0,0,0,0,0,0,0,0,0,0,0,{"$f":"IF(Descriptions!D47=\"Investment income\",Descriptions!AA47,0)","v":0}]
[{"$f":"IF(Descriptions!D48=\"Investment income\",Descriptions!B48,0)","v":0},0,0,0,0,0,0,0,0,0,0,0,0,0,0,0,0,0,0,0,0,0,0,{"$f":"IF(Descriptions!D48=\"Investment income\",Descriptions!AA48,0)","v":0}]
[{"$f":"IF(Descriptions!D49=\"Investment income\",Descriptions!B49,0)","v":0},0,0,0,0,0,0,0,0,0,0,0,0,0,0,0,0,0,0,0,0,0,0,{"$f":"IF(Descriptions!D49=\"Investment income\",Descriptions!AA49,0)","v":0}]
[{"$f":"IF(Descriptions!D50=\"Investment income\",Descriptions!B50,0)","v":0},0,0,0,0,0,0,0,0,0,0,0,0,0,0,0,0,0,0,0,0,0,0,{"$f":"IF(Descriptions!D50=\"Investment income\",Descriptions!AA50,0)","v":0}]
[{"$f":"IF(Descriptions!D51=\"Investment income\",Descriptions!B51,0)","v":0},0,0,0,0,0,0,0,0,0,0,0,0,0,0,0,0,0,0,0,0,0,0,{"$f":"IF(Descriptions!D51=\"Investment income\",Descriptions!AA51,0)","v":0}]
[{"$f":"IF(Descriptions!D52=\"Investment income\",Descriptions!B52,0)","v":0},0,0,0,0,0,0,0,0,0,0,0,0,0,0,0,0,0,0,0,0,0,0,{"$f":"IF(Descriptions!D52=\"Investment income\",Descriptions!AA52,0)","v":0}]
[{"$f":"IF(Descriptions!D53=\"Investment income\",Descriptions!B53,0)","v":0},0,0,0,0,0,0,0,0,0,0,0,0,0,0,0,0,0,0,0,0,0,0,{"$f":"IF(Descriptions!D53=\"Investment income\",Descriptions!AA53,0)","v":0}]
[{"$f":"IF(Descriptions!D54=\"Investment income\",Descriptions!B54,0)","v":0},0,0,0,0,0,0,0,0,0,0,0,0,0,0,0,0,0,0,0,0,0,0,{"$f":"IF(Descriptions!D54=\"Investment income\",Descriptions!AA54,0)","v":0}]
[{"$f":"IF(Descriptions!D55=\"Investment income\",Descriptions!B55,0)","v":0},0,0,0,0,0,0,0,0,0,0,0,0,0,0,0,0,0,0,0,0,0,0,{"$f":"IF(Descriptions!D55=\"Investment income\",Descriptions!AA55,0)","v":0}]
[{"$f":"IF(Descriptions!D56=\"Investment income\",Descriptions!B56,0)","v":0},0,0,0,0,0,0,0,0,0,0,0,0,0,0,0,0,0,0,0,0,0,0,{"$f":"IF(Descriptions!D56=\"Investment income\",Descriptions!AA56,0)","v":0}]
[{"$f":"IF(Descriptions!D57=\"Investment income\",Descriptions!B57,0)","v":0},0,0,0,0,0,0,0,0,0,0,0,0,0,0,0,0,0,0,0,0,0,0,{"$f":"IF(Descriptions!D57=\"Investment income\",Descriptions!AA57,0)","v":0}]
[{"$f":"IF(Descriptions!D58=\"Investment income\",Descriptions!B58,0)","v":0},0,0,0,0,0,0,0,0,0,0,0,0,0,0,0,0,0,0,0,0,0,0,{"$f":"IF(Descriptions!D58=\"Investment income\",Descriptions!AA58,0)","v":0}]
[{"$f":"IF(Descriptions!D59=\"Investment income\",Descriptions!B59,0)","v":0},0,0,0,0,0,0,0,0,0,0,0,0,0,0,0,0,0,0,0,0,0,0,{"$f":"IF(Descriptions!D59=\"Investment income\",Descriptions!AA59,0)","v":0}]
[{"$f":"IF(Descriptions!D60=\"Investment income\",Descriptions!B60,0)","v":0},0,0,0,0,0,0,0,0,0,0,0,0,0,0,0,0,0,0,0,0,0,0,{"$f":"IF(Descriptions!D60=\"Investment income\",Descriptions!AA60,0)","v":0}]
[{"$f":"IF(Descriptions!D61=\"Investment income\",Descriptions!B61,0)","v":0},0,0,0,0,0,0,0,0,0,0,0,0,0,0,0,0,0,0,0,0,0,0,{"$f":"IF(Descriptions!D61=\"Investment income\",Descriptions!AA61,0)","v":0}]
[{"$f":"IF(Descriptions!D62=\"Investment income\",Descriptions!B62,0)","v":0},0,0,0,0,0,0,0,0,0,0,0,0,0,0,0,0,0,0,0,0,0,0,{"$f":"IF(Descriptions!D62=\"Investment income\",Descriptions!AA62,0)","v":0}]
[{"$f":"IF(Descriptions!D63=\"Investment income\",Descriptions!B63,0)","v":0},0,0,0,0,0,0,0,0,0,0,0,0,0,0,0,0,0,0,0,0,0,0,{"$f":"IF(Descriptions!D63=\"Investment income\",Descriptions!AA63,0)","v":0}]
[{"$f":"IF(Descriptions!D64=\"Investment income\",Descriptions!B64,0)","v":0},0,0,0,0,0,0,0,0,0,0,0,0,0,0,0,0,0,0,0,0,0,0,{"$f":"IF(Descriptions!D64=\"Investment income\",Descriptions!AA64,0)","v":0}]
[{"$f":"IF(Descriptions!D65=\"Investment income\",Descriptions!B65,0)","v":0},0,0,0,0,0,0,0,0,0,0,0,0,0,0,0,0,0,0,0,0,0,0,{"$f":"IF(Descriptions!D65=\"Investment income\",Descriptions!AA65,0)","v":0}]
[{"$f":"IF(Descriptions!D66=\"Investment income\",Descriptions!B66,0)","v":0},0,0,0,0,0,0,0,0,0,0,0,0,0,0,0,0,0,0,0,0,0,0,{"$f":"IF(Descriptions!D66=\"Investment income\",Descriptions!AA66,0)","v":0}]
[{"$f":"IF(Descriptions!D67=\"Investment income\",Descriptions!B67,0)","v":0},0,0,0,0,0,0,0,0,0,0,0,0,0,0,0,0,0,0,0,0,0,0,{"$f":"IF(Descriptions!D67=\"Investment income\",Descriptions!AA67,0)","v":0}]
[{"$f":"IF(Descriptions!D68=\"Investment income\",Descriptions!B68,0)","v":0},0,0,0,0,0,0,0,0,0,0,0,0,0,0,0,0,0,0,0,0,0,0,{"$f":"IF(Descriptions!D68=\"Investment income\",Descriptions!AA68,0)","v":0}]
[{"$f":"IF(Descriptions!D69=\"Investment income\",Descriptions!B69,0)","v":0},0,0,0,0,0,0,0,0,0,0,0,0,0,0,0,0,0,0,0,0,0,0,{"$f":"IF(Descriptions!D69=\"Investment income\",Descriptions!AA69,0)","v":0}]
[{"$f":"IF(Descriptions!D70=\"Investment income\",Descriptions!B70,0)","v":0},0,0,0,0,0,0,0,0,0,0,0,0,0,0,0,0,0,0,0,0,0,0,{"$f":"IF(Descriptions!D70=\"Investment income\",Descriptions!AA70,0)","v":0}]
[{"$f":"IF(Descriptions!D71=\"Investment income\",Descriptions!B71,0)","v":0},0,0,0,0,0,0,0,0,0,0,0,0,0,0,0,0,0,0,0,0,0,0,{"$f":"IF(Descriptions!D71=\"Investment income\",Descriptions!AA71,0)","v":0}]
[{"$f":"IF(Descriptions!D72=\"Investment income\",Descriptions!B72,0)","v":0},0,0,0,0,0,0,0,0,0,0,0,0,0,0,0,0,0,0,0,0,0,0,{"$f":"IF(Descriptions!D72=\"Investment income\",Descriptions!AA72,0)","v":0}]
[{"$f":"IF(Descriptions!D73=\"Investment income\",Descriptions!B73,0)","v":0},0,0,0,0,0,0,0,0,0,0,0,0,0,0,0,0,0,0,0,0,0,0,{"$f":"IF(Descriptions!D73=\"Investment income\",Descriptions!AA73,0)","v":0}]
[{"$f":"IF(Descriptions!D74=\"Investment income\",Descriptions!B74,0)","v":0},0,0,0,0,0,0,0,0,0,0,0,0,0,0,0,0,0,0,0,0,0,0,{"$f":"IF(Descriptions!D74=\"Investment income\",Descriptions!AA74,0)","v":0}]
[{"$f":"IF(Descriptions!D75=\"Investment income\",Descriptions!B75,0)","v":0},0,0,0,0,0,0,0,0,0,0,0,0,0,0,0,0,0,0,0,0,0,0,{"$f":"IF(Descriptions!D75=\"Investment income\",Descriptions!AA75,0)","v":0}]
[{"$f":"IF(Descriptions!D76=\"Investment income\",Descriptions!B76,0)","v":0},0,0,0,0,0,0,0,0,0,0,0,0,0,0,0,0,0,0,0,0,0,0,{"$f":"IF(Descriptions!D76=\"Investment income\",Descriptions!AA76,0)","v":0}]
[{"$f":"IF(Descriptions!D77=\"Investment income\",Descriptions!B77,0)","v":0},0,0,0,0,0,0,0,0,0,0,0,0,0,0,0,0,0,0,0,0,0,0,{"$f":"IF(Descriptions!D77=\"Investment income\",Descriptions!AA77,0)","v":0}]
[{"$f":"IF(Descriptions!D78=\"Investment income\",Descriptions!B78,0)","v":0},0,0,0,0,0,0,0,0,0,0,0,0,0,0,0,0,0,0,0,0,0,0,{"$f":"IF(Descriptions!D78=\"Investment income\",Descriptions!AA78,0)","v":0}]
[{"$f":"IF(Descriptions!D79=\"Investment income\",Descriptions!B79,0)","v":0},0,0,0,0,0,0,0,0,0,0,0,0,0,0,0,0,0,0,0,0,0,0,{"$f":"IF(Descriptions!D79=\"Investment income\",Descriptions!AA79,0)","v":0}]
[{"$f":"IF(Descriptions!D80=\"Investment income\",Descriptions!B80,0)","v":0},0,0,0,0,0,0,0,0,0,0,0,0,0,0,0,0,0,0,0,0,0,0,{"$f":"IF(Descriptions!D80=\"Investment income\",Descriptions!AA80,0)","v":0}]
[{"$f":"IF(Descriptions!D81=\"Investment income\",Descriptions!B81,0)","v":0},0,0,0,0,0,0,0,0,0,0,0,0,0,0,0,0,0,0,0,0,0,0,{"$f":"IF(Descriptions!D81=\"Investment income\",Descriptions!AA81,0)","v":0}]
[{"$f":"IF(Descriptions!D82=\"Investment income\",Descriptions!B82,0)","v":0},0,0,0,0,0,0,0,0,0,0,0,0,0,0,0,0,0,0,0,0,0,0,{"$f":"IF(Descriptions!D82=\"Investment income\",Descriptions!AA82,0)","v":0}]
[{"$f":"IF(Descriptions!D83=\"Investment income\",Descriptions!B83,0)","v":0},0,0,0,0,0,0,0,0,0,0,0,0,0,0,0,0,0,0,0,0,0,0,{"$f":"IF(Descriptions!D83=\"Investment income\",Descriptions!AA83,0)","v":0}]
[{"$f":"IF(Descriptions!D84=\"Investment income\",Descriptions!B84,0)","v":0},0,0,0,0,0,0,0,0,0,0,0,0,0,0,0,0,0,0,0,0,0,0,{"$f":"IF(Descriptions!D84=\"Investment income\",Descriptions!AA84,0)","v":0}]
[{"$f":"IF(Descriptions!D85=\"Investment income\",Descriptions!B85,0)","v":0},0,0,0,0,0,0,0,0,0,0,0,0,0,0,0,0,0,0,0,0,0,0,{"$f":"IF(Descriptions!D85=\"Investment income\",Descriptions!AA85,0)","v":0}]
[{"$f":"IF(Descriptions!D86=\"Investment income\",Descriptions!B86,0)","v":0},0,0,0,0,0,0,0,0,0,0,0,0,0,0,0,0,0,0,0,0,0,0,{"$f":"IF(Descriptions!D86=\"Investment income\",Descriptions!AA86,0)","v":0}]
[{"$f":"IF(Descriptions!D87=\"Investment income\",Descriptions!B87,0)","v":0},0,0,0,0,0,0,0,0,0,0,0,0,0,0,0,0,0,0,0,0,0,0,{"$f":"IF(Descriptions!D87=\"Investment income\",Descriptions!AA87,0)","v":0}]
[{"$f":"IF(Descriptions!D88=\"Investment income\",Descriptions!B88,0)","v":0},0,0,0,0,0,0,0,0,0,0,0,0,0,0,0,0,0,0,0,0,0,0,{"$f":"IF(Descriptions!D88=\"Investment income\",Descriptions!AA88,0)","v":0}]
[{"$f":"IF(Descriptions!D89=\"Investment income\",Descriptions!B89,0)","v":0},0,0,0,0,0,0,0,0,0,0,0,0,0,0,0,0,0,0,0,0,0,0,{"$f":"IF(Descriptions!D89=\"Investment income\",Descriptions!AA89,0)","v":0}]
[{"$f":"IF(Descriptions!D90=\"Investment income\",Descriptions!B90,0)","v":0},0,0,0,0,0,0,0,0,0,0,0,0,0,0,0,0,0,0,0,0,0,0,{"$f":"IF(Descriptions!D90=\"Investment income\",Descriptions!AA90,0)","v":0}]
[{"$f":"IF(Descriptions!D91=\"Investment income\",Descriptions!B91,0)","v":0},0,0,0,0,0,0,0,0,0,0,0,0,0,0,0,0,0,0,0,0,0,0,{"$f":"IF(Descriptions!D91=\"Investment income\",Descriptions!AA91,0)","v":0}]
[{"$f":"IF(Descriptions!D92=\"Investment income\",Descriptions!B92,0)","v":0},0,0,0,0,0,0,0,0,0,0,0,0,0,0,0,0,0,0,0,0,0,0,{"$f":"IF(Descriptions!D92=\"Investment income\",Descriptions!AA92,0)","v":0}]
[null,{"$f":"SUM(B349:B399)","v":0},0,0,0,0,0,0,0,0,0,0,0,0,0,0,0,0,0,0,0,0,null,{"$f":"X348","v":0}]
["LEGACIES RECEIVED",null,null,null,null,null,null,null,null,null,null,null,null,null,null,null,null,null,null,null,null,null,null,{"$f":"SUM(X402)","v":0}]
["Legacies",0,0,0,0,0,0,0,0,0,0,0,0,0,0,0,0,0,0,0,0,0,{"$f":"SUM(B402:V402)","v":0},{"$f":"Descriptions!AA22","v":0}]
[{"$f":"IF(Descriptions!D43=\"Legacies Received\",Descriptions!B43,0)","v":0},0,0,0,0,0,0,0,0,0,0,0,0,0,0,0,0,0,0,0,0,0,0,{"$f":"IF(Descriptions!D43=\"Legacies Received\",Descriptions!AA43,0)","v":0}]
[{"$f":"IF(Descriptions!D44=\"Legacies Received\",Descriptions!B44,0)","v":0},0,0,0,0,0,0,0,0,0,0,0,0,0,0,0,0,0,0,0,0,0,0,{"$f":"IF(Descriptions!D44=\"Legacies Received\",Descriptions!AA44,0)","v":0}]
[{"$f":"IF(Descriptions!D45=\"Legacies Received\",Descriptions!B45,0)","v":0},0,0,0,0,0,0,0,0,0,0,0,0,0,0,0,0,0,0,0,0,0,0,{"$f":"IF(Descriptions!D45=\"Legacies Received\",Descriptions!AA45,0)","v":0}]
[{"$f":"IF(Descriptions!D46=\"Legacies Received\",Descriptions!B46,0)","v":0},0,0,0,0,0,0,0,0,0,0,0,0,0,0,0,0,0,0,0,0,0,0,{"$f":"IF(Descriptions!D46=\"Legacies Received\",Descriptions!AA46,0)","v":0}]
[{"$f":"IF(Descriptions!D47=\"Legacies Received\",Descriptions!B47,0)","v":0},0,0,0,0,0,0,0,0,0,0,0,0,0,0,0,0,0,0,0,0,0,0,{"$f":"IF(Descriptions!D47=\"Legacies Received\",Descriptions!AA47,0)","v":0}]
[{"$f":"IF(Descriptions!D48=\"Legacies Received\",Descriptions!B48,0)","v":0},0,0,0,0,0,0,0,0,0,0,0,0,0,0,0,0,0,0,0,0,0,0,{"$f":"IF(Descriptions!D48=\"Legacies Received\",Descriptions!AA48,0)","v":0}]
[{"$f":"IF(Descriptions!D49=\"Legacies Received\",Descriptions!B49,0)","v":0},0,0,0,0,0,0,0,0,0,0,0,0,0,0,0,0,0,0,0,0,0,0,{"$f":"IF(Descriptions!D49=\"Legacies Received\",Descriptions!AA49,0)","v":0}]
[{"$f":"IF(Descriptions!D50=\"Legacies Received\",Descriptions!B50,0)","v":0},0,0,0,0,0,0,0,0,0,0,0,0,0,0,0,0,0,0,0,0,0,0,{"$f":"IF(Descriptions!D50=\"Legacies Received\",Descriptions!AA50,0)","v":0}]
[{"$f":"IF(Descriptions!D51=\"Legacies Received\",Descriptions!B51,0)","v":0},0,0,0,0,0,0,0,0,0,0,0,0,0,0,0,0,0,0,0,0,0,0,{"$f":"IF(Descriptions!D51=\"Legacies Received\",Descriptions!AA51,0)","v":0}]
[{"$f":"IF(Descriptions!D52=\"Legacies Received\",Descriptions!B52,0)","v":0},0,0,0,0,0,0,0,0,0,0,0,0,0,0,0,0,0,0,0,0,0,0,{"$f":"IF(Descriptions!D52=\"Legacies Received\",Descriptions!AA52,0)","v":0}]
[{"$f":"IF(Descriptions!D53=\"Legacies Received\",Descriptions!B53,0)","v":0},0,0,0,0,0,0,0,0,0,0,0,0,0,0,0,0,0,0,0,0,0,0,{"$f":"IF(Descriptions!D53=\"Legacies Received\",Descriptions!AA53,0)","v":0}]
[{"$f":"IF(Descriptions!D54=\"Legacies Received\",Descriptions!B54,0)","v":0},0,0,0,0,0,0,0,0,0,0,0,0,0,0,0,0,0,0,0,0,0,0,{"$f":"IF(Descriptions!D54=\"Legacies Received\",Descriptions!AA54,0)","v":0}]
[{"$f":"IF(Descriptions!D55=\"Legacies Received\",Descriptions!B55,0)","v":0},0,0,0,0,0,0,0,0,0,0,0,0,0,0,0,0,0,0,0,0,0,0,{"$f":"IF(Descriptions!D55=\"Legacies Received\",Descriptions!AA55,0)","v":0}]
[{"$f":"IF(Descriptions!D56=\"Legacies Received\",Descriptions!B56,0)","v":0},0,0,0,0,0,0,0,0,0,0,0,0,0,0,0,0,0,0,0,0,0,0,{"$f":"IF(Descriptions!D56=\"Legacies Received\",Descriptions!AA56,0)","v":0}]
[{"$f":"IF(Descriptions!D57=\"Legacies Received\",Descriptions!B57,0)","v":0},0,0,0,0,0,0,0,0,0,0,0,0,0,0,0,0,0,0,0,0,0,0,{"$f":"IF(Descriptions!D57=\"Legacies Received\",Descriptions!AA57,0)","v":0}]
[{"$f":"IF(Descriptions!D58=\"Legacies Received\",Descriptions!B58,0)","v":0},0,0,0,0,0,0,0,0,0,0,0,0,0,0,0,0,0,0,0,0,0,0,{"$f":"IF(Descriptions!D58=\"Legacies Received\",Descriptions!AA58,0)","v":0}]
[{"$f":"IF(Descriptions!D59=\"Legacies Received\",Descriptions!B59,0)","v":0},0,0,0,0,0,0,0,0,0,0,0,0,0,0,0,0,0,0,0,0,0,0,{"$f":"IF(Descriptions!D59=\"Legacies Received\",Descriptions!AA59,0)","v":0}]
[{"$f":"IF(Descriptions!D60=\"Legacies Received\",Descriptions!B60,0)","v":0},0,0,0,0,0,0,0,0,0,0,0,0,0,0,0,0,0,0,0,0,0,0,{"$f":"IF(Descriptions!D60=\"Legacies Received\",Descriptions!AA60,0)","v":0}]
[{"$f":"IF(Descriptions!D61=\"Legacies Received\",Descriptions!B61,0)","v":0},0,0,0,0,0,0,0,0,0,0,0,0,0,0,0,0,0,0,0,0,0,0,{"$f":"IF(Descriptions!D61=\"Legacies Received\",Descriptions!AA61,0)","v":0}]
[{"$f":"IF(Descriptions!D62=\"Legacies Received\",Descriptions!B62,0)","v":0},0,0,0,0,0,0,0,0,0,0,0,0,0,0,0,0,0,0,0,0,0,0,{"$f":"IF(Descriptions!D62=\"Legacies Received\",Descriptions!AA62,0)","v":0}]
[{"$f":"IF(Descriptions!D63=\"Legacies Received\",Descriptions!B63,0)","v":0},0,0,0,0,0,0,0,0,0,0,0,0,0,0,0,0,0,0,0,0,0,0,{"$f":"IF(Descriptions!D63=\"Legacies Received\",Descriptions!AA63,0)","v":0}]
[{"$f":"IF(Descriptions!D64=\"Legacies Received\",Descriptions!B64,0)","v":0},0,0,0,0,0,0,0,0,0,0,0,0,0,0,0,0,0,0,0,0,0,0,{"$f":"IF(Descriptions!D64=\"Legacies Received\",Descriptions!AA64,0)","v":0}]
[{"$f":"IF(Descriptions!D65=\"Legacies Received\",Descriptions!B65,0)","v":0},0,0,0,0,0,0,0,0,0,0,0,0,0,0,0,0,0,0,0,0,0,0,{"$f":"IF(Descriptions!D65=\"Legacies Received\",Descriptions!AA65,0)","v":0}]
[{"$f":"IF(Descriptions!D66=\"Legacies Received\",Descriptions!B66,0)","v":0},0,0,0,0,0,0,0,0,0,0,0,0,0,0,0,0,0,0,0,0,0,0,{"$f":"IF(Descriptions!D66=\"Legacies Received\",Descriptions!AA66,0)","v":0}]
[{"$f":"IF(Descriptions!D67=\"Legacies Received\",Descriptions!B67,0)","v":0},0,0,0,0,0,0,0,0,0,0,0,0,0,0,0,0,0,0,0,0,0,0,{"$f":"IF(Descriptions!D67=\"Legacies Received\",Descriptions!AA67,0)","v":0}]
[{"$f":"IF(Descriptions!D68=\"Legacies Received\",Descriptions!B68,0)","v":0},0,0,0,0,0,0,0,0,0,0,0,0,0,0,0,0,0,0,0,0,0,0,{"$f":"IF(Descriptions!D68=\"Legacies Received\",Descriptions!AA68,0)","v":0}]
[{"$f":"IF(Descriptions!D69=\"Legacies Received\",Descriptions!B69,0)","v":0},0,0,0,0,0,0,0,0,0,0,0,0,0,0,0,0,0,0,0,0,0,0,{"$f":"IF(Descriptions!D69=\"Legacies Received\",Descriptions!AA69,0)","v":0}]
[{"$f":"IF(Descriptions!D70=\"Legacies Received\",Descriptions!B70,0)","v":0},0,0,0,0,0,0,0,0,0,0,0,0,0,0,0,0,0,0,0,0,0,0,{"$f":"IF(Descriptions!D70=\"Legacies Received\",Descriptions!AA70,0)","v":0}]
[{"$f":"IF(Descriptions!D71=\"Legacies Received\",Descriptions!B71,0)","v":0},0,0,0,0,0,0,0,0,0,0,0,0,0,0,0,0,0,0,0,0,0,0,{"$f":"IF(Descriptions!D71=\"Legacies Received\",Descriptions!AA71,0)","v":0}]
[{"$f":"IF(Descriptions!D72=\"Legacies Received\",Descriptions!B72,0)","v":0},0,0,0,0,0,0,0,0,0,0,0,0,0,0,0,0,0,0,0,0,0,0,{"$f":"IF(Descriptions!D72=\"Legacies Received\",Descriptions!AA72,0)","v":0}]
[{"$f":"IF(Descriptions!D73=\"Legacies Received\",Descriptions!B73,0)","v":0},0,0,0,0,0,0,0,0,0,0,0,0,0,0,0,0,0,0,0,0,0,0,{"$f":"IF(Descriptions!D73=\"Legacies Received\",Descriptions!AA73,0)","v":0}]
[{"$f":"IF(Descriptions!D74=\"Legacies Received\",Descriptions!B74,0)","v":0},0,0,0,0,0,0,0,0,0,0,0,0,0,0,0,0,0,0,0,0,0,0,{"$f":"IF(Descriptions!D74=\"Legacies Received\",Descriptions!AA74,0)","v":0}]
[{"$f":"IF(Descriptions!D75=\"Legacies Received\",Descriptions!B75,0)","v":0},0,0,0,0,0,0,0,0,0,0,0,0,0,0,0,0,0,0,0,0,0,0,{"$f":"IF(Descriptions!D75=\"Legacies Received\",Descriptions!AA75,0)","v":0}]
[{"$f":"IF(Descriptions!D76=\"Legacies Received\",Descriptions!B76,0)","v":0},0,0,0,0,0,0,0,0,0,0,0,0,0,0,0,0,0,0,0,0,0,0,{"$f":"IF(Descriptions!D76=\"Legacies Received\",Descriptions!AA76,0)","v":0}]
[{"$f":"IF(Descriptions!D77=\"Legacies Received\",Descriptions!B77,0)","v":0},0,0,0,0,0,0,0,0,0,0,0,0,0,0,0,0,0,0,0,0,0,0,{"$f":"IF(Descriptions!D77=\"Legacies Received\",Descriptions!AA77,0)","v":0}]
[{"$f":"IF(Descriptions!D78=\"Legacies Received\",Descriptions!B78,0)","v":0},0,0,0,0,0,0,0,0,0,0,0,0,0,0,0,0,0,0,0,0,0,0,{"$f":"IF(Descriptions!D78=\"Legacies Received\",Descriptions!AA78,0)","v":0}]
[{"$f":"IF(Descriptions!D79=\"Legacies Received\",Descriptions!B79,0)","v":0},0,0,0,0,0,0,0,0,0,0,0,0,0,0,0,0,0,0,0,0,0,0,{"$f":"IF(Descriptions!D79=\"Legacies Received\",Descriptions!AA79,0)","v":0}]
[{"$f":"IF(Descriptions!D80=\"Legacies Received\",Descriptions!B80,0)","v":0},0,0,0,0,0,0,0,0,0,0,0,0,0,0,0,0,0,0,0,0,0,0,{"$f":"IF(Descriptions!D80=\"Legacies Received\",Descriptions!AA80,0)","v":0}]
[{"$f":"IF(Descriptions!D81=\"Legacies Received\",Descriptions!B81,0)","v":0},0,0,0,0,0,0,0,0,0,0,0,0,0,0,0,0,0,0,0,0,0,0,{"$f":"IF(Descriptions!D81=\"Legacies Received\",Descriptions!AA81,0)","v":0}]
[{"$f":"IF(Descriptions!D82=\"Legacies Received\",Descriptions!B82,0)","v":0},0,0,0,0,0,0,0,0,0,0,0,0,0,0,0,0,0,0,0,0,0,0,{"$f":"IF(Descriptions!D82=\"Legacies Received\",Descriptions!AA82,0)","v":0}]
[{"$f":"IF(Descriptions!D83=\"Legacies Received\",Descriptions!B83,0)","v":0},0,0,0,0,0,0,0,0,0,0,0,0,0,0,0,0,0,0,0,0,0,0,{"$f":"IF(Descriptions!D83=\"Legacies Received\",Descriptions!AA83,0)","v":0}]
[{"$f":"IF(Descriptions!D84=\"Legacies Received\",Descriptions!B84,0)","v":0},0,0,0,0,0,0,0,0,0,0,0,0,0,0,0,0,0,0,0,0,0,0,{"$f":"IF(Descriptions!D84=\"Legacies Received\",Descriptions!AA84,0)","v":0}]
[{"$f":"IF(Descriptions!D85=\"Legacies Received\",Descriptions!B85,0)","v":0},0,0,0,0,0,0,0,0,0,0,0,0,0,0,0,0,0,0,0,0,0,0,{"$f":"IF(Descriptions!D85=\"Legacies Received\",Descriptions!AA85,0)","v":0}]
[{"$f":"IF(Descriptions!D86=\"Legacies Received\",Descriptions!B86,0)","v":0},0,0,0,0,0,0,0,0,0,0,0,0,0,0,0,0,0,0,0,0,0,0,{"$f":"IF(Descriptions!D86=\"Legacies Received\",Descriptions!AA86,0)","v":0}]
[{"$f":"IF(Descriptions!D87=\"Legacies Received\",Descriptions!B87,0)","v":0},0,0,0,0,0,0,0,0,0,0,0,0,0,0,0,0,0,0,0,0,0,0,{"$f":"IF(Descriptions!D87=\"Legacies Received\",Descriptions!AA87,0)","v":0}]
[{"$f":"IF(Descriptions!D88=\"Legacies Received\",Descriptions!B88,0)","v":0},0,0,0,0,0,0,0,0,0,0,0,0,0,0,0,0,0,0,0,0,0,0,{"$f":"IF(Descriptions!D88=\"Legacies Received\",Descriptions!AA88,0)","v":0}]
[{"$f":"IF(Descriptions!D89=\"Legacies Received\",Descriptions!B89,0)","v":0},0,0,0,0,0,0,0,0,0,0,0,0,0,0,0,0,0,0,0,0,0,0,{"$f":"IF(Descriptions!D89=\"Legacies Received\",Descriptions!AA89,0)","v":0}]
[{"$f":"IF(Descriptions!D90=\"Legacies Received\",Descriptions!B90,0)","v":0},0,0,0,0,0,0,0,0,0,0,0,0,0,0,0,0,0,0,0,0,0,0,{"$f":"IF(Descriptions!D90=\"Legacies Received\",Descriptions!AA90,0)","v":0}]
[{"$f":"IF(Descriptions!D91=\"Legacies Received\",Descriptions!B91,0)","v":0},0,0,0,0,0,0,0,0,0,0,0,0,0,0,0,0,0,0,0,0,0,0,{"$f":"IF(Descriptions!D91=\"Legacies Received\",Descriptions!AA91,0)","v":0}]
[{"$f":"IF(Descriptions!D92=\"Legacies Received\",Descriptions!B92,0)","v":0},0,0,0,0,0,0,0,0,0,0,0,0,0,0,0,0,0,0,0,0,0,0,{"$f":"IF(Descriptions!D92=\"Legacies Received\",Descriptions!AA92,0)","v":0}]
[null,{"$f":"SUM(B402:B452)","v":0},0,0,0,0,0,0,0,0,0,0,0,0,0,0,0,0,0,0,0,0,null,{"$f":"X401","v":0}]
["GRANT INCOME",null,null,null,null,null,null,null,null,null,null,null,null,null,null,null,null,null,null,null,null,null,null,{"$f":"SUM(X455:X506)","v":0}]
["Recurring Grants",0,0,0,0,0,0,0,0,0,0,0,0,0,0,0,0,0,0,0,0,0,{"$f":"SUM(B455:V455)","v":0},{"$f":"Descriptions!AA19","v":0}]
["Non-Recurring Grants",0,0,0,0,0,0,0,0,0,0,0,0,0,0,0,0,0,0,0,0,0,0,{"$f":"Descriptions!AA18","v":0}]
[{"$f":"IF(Descriptions!D43=\"Grant income\",Descriptions!B43,0)","v":0},0,0,0,0,0,0,0,0,0,0,0,0,0,0,0,0,0,0,0,0,0,0,{"$f":"IF(Descriptions!D43=\"Grant income\",Descriptions!AA43,0)","v":0}]
[{"$f":"IF(Descriptions!D44=\"Grant income\",Descriptions!B44,0)","v":0},0,0,0,0,0,0,0,0,0,0,0,0,0,0,0,0,0,0,0,0,0,0,{"$f":"IF(Descriptions!D44=\"Grant income\",Descriptions!AA44,0)","v":0}]
[{"$f":"IF(Descriptions!D45=\"Grant income\",Descriptions!B45,0)","v":0},0,0,0,0,0,0,0,0,0,0,0,0,0,0,0,0,0,0,0,0,0,0,{"$f":"IF(Descriptions!D45=\"Grant income\",Descriptions!AA45,0)","v":0}]
[{"$f":"IF(Descriptions!D46=\"Grant income\",Descriptions!B46,0)","v":0},0,0,0,0,0,0,0,0,0,0,0,0,0,0,0,0,0,0,0,0,0,0,{"$f":"IF(Descriptions!D46=\"Grant income\",Descriptions!AA46,0)","v":0}]
[{"$f":"IF(Descriptions!D47=\"Grant income\",Descriptions!B47,0)","v":0},0,0,0,0,0,0,0,0,0,0,0,0,0,0,0,0,0,0,0,0,0,0,{"$f":"IF(Descriptions!D47=\"Grant income\",Descriptions!AA47,0)","v":0}]
[{"$f":"IF(Descriptions!D48=\"Grant income\",Descriptions!B48,0)","v":0},0,0,0,0,0,0,0,0,0,0,0,0,0,0,0,0,0,0,0,0,0,0,{"$f":"IF(Descriptions!D48=\"Grant income\",Descriptions!AA48,0)","v":0}]
[{"$f":"IF(Descriptions!D49=\"Grant income\",Descriptions!B49,0)","v":0},0,0,0,0,0,0,0,0,0,0,0,0,0,0,0,0,0,0,0,0,0,0,{"$f":"IF(Descriptions!D49=\"Grant income\",Descriptions!AA49,0)","v":0}]
[{"$f":"IF(Descriptions!D50=\"Grant income\",Descriptions!B50,0)","v":0},0,0,0,0,0,0,0,0,0,0,0,0,0,0,0,0,0,0,0,0,0,0,{"$f":"IF(Descriptions!D50=\"Grant income\",Descriptions!AA50,0)","v":0}]
[{"$f":"IF(Descriptions!D51=\"Grant income\",Descriptions!B51,0)","v":0},0,0,0,0,0,0,0,0,0,0,0,0,0,0,0,0,0,0,0,0,0,0,{"$f":"IF(Descriptions!D51=\"Grant income\",Descriptions!AA51,0)","v":0}]
[{"$f":"IF(Descriptions!D52=\"Grant income\",Descriptions!B52,0)","v":0},0,0,0,0,0,0,0,0,0,0,0,0,0,0,0,0,0,0,0,0,0,0,{"$f":"IF(Descriptions!D52=\"Grant income\",Descriptions!AA52,0)","v":0}]
[{"$f":"IF(Descriptions!D53=\"Grant income\",Descriptions!B53,0)","v":0},0,0,0,0,0,0,0,0,0,0,0,0,0,0,0,0,0,0,0,0,0,0,{"$f":"IF(Descriptions!D53=\"Grant income\",Descriptions!AA53,0)","v":0}]
[{"$f":"IF(Descriptions!D54=\"Grant income\",Descriptions!B54,0)","v":0},0,0,0,0,0,0,0,0,0,0,0,0,0,0,0,0,0,0,0,0,0,0,{"$f":"IF(Descriptions!D54=\"Grant income\",Descriptions!AA54,0)","v":0}]
[{"$f":"IF(Descriptions!D55=\"Grant income\",Descriptions!B55,0)","v":0},0,0,0,0,0,0,0,0,0,0,0,0,0,0,0,0,0,0,0,0,0,0,{"$f":"IF(Descriptions!D55=\"Grant income\",Descriptions!AA55,0)","v":0}]
[{"$f":"IF(Descriptions!D56=\"Grant income\",Descriptions!B56,0)","v":0},0,0,0,0,0,0,0,0,0,0,0,0,0,0,0,0,0,0,0,0,0,0,{"$f":"IF(Descriptions!D56=\"Grant income\",Descriptions!AA56,0)","v":0}]
[{"$f":"IF(Descriptions!D57=\"Grant income\",Descriptions!B57,0)","v":0},0,0,0,0,0,0,0,0,0,0,0,0,0,0,0,0,0,0,0,0,0,0,{"$f":"IF(Descriptions!D57=\"Grant income\",Descriptions!AA57,0)","v":0}]
[{"$f":"IF(Descriptions!D58=\"Grant income\",Descriptions!B58,0)","v":0},0,0,0,0,0,0,0,0,0,0,0,0,0,0,0,0,0,0,0,0,0,0,{"$f":"IF(Descriptions!D58=\"Grant income\",Descriptions!AA58,0)","v":0}]
[{"$f":"IF(Descriptions!D59=\"Grant income\",Descriptions!B59,0)","v":0},0,0,0,0,0,0,0,0,0,0,0,0,0,0,0,0,0,0,0,0,0,0,{"$f":"IF(Descriptions!D59=\"Grant income\",Descriptions!AA59,0)","v":0}]
[{"$f":"IF(Descriptions!D60=\"Grant income\",Descriptions!B60,0)","v":0},0,0,0,0,0,0,0,0,0,0,0,0,0,0,0,0,0,0,0,0,0,0,{"$f":"IF(Descriptions!D60=\"Grant income\",Descriptions!AA60,0)","v":0}]
[{"$f":"IF(Descriptions!D61=\"Grant income\",Descriptions!B61,0)","v":0},0,0,0,0,0,0,0,0,0,0,0,0,0,0,0,0,0,0,0,0,0,0,{"$f":"IF(Descriptions!D61=\"Grant income\",Descriptions!AA61,0)","v":0}]
[{"$f":"IF(Descriptions!D62=\"Grant income\",Descriptions!B62,0)","v":0},0,0,0,0,0,0,0,0,0,0,0,0,0,0,0,0,0,0,0,0,0,0,{"$f":"IF(Descriptions!D62=\"Grant income\",Descriptions!AA62,0)","v":0}]
[{"$f":"IF(Descriptions!D63=\"Grant income\",Descriptions!B63,0)","v":0},0,0,0,0,0,0,0,0,0,0,0,0,0,0,0,0,0,0,0,0,0,0,{"$f":"IF(Descriptions!D63=\"Grant income\",Descriptions!AA63,0)","v":0}]
[{"$f":"IF(Descriptions!D64=\"Grant income\",Descriptions!B64,0)","v":0},0,0,0,0,0,0,0,0,0,0,0,0,0,0,0,0,0,0,0,0,0,0,{"$f":"IF(Descriptions!D64=\"Grant income\",Descriptions!AA64,0)","v":0}]
[{"$f":"IF(Descriptions!D65=\"Grant income\",Descriptions!B65,0)","v":0},0,0,0,0,0,0,0,0,0,0,0,0,0,0,0,0,0,0,0,0,0,0,{"$f":"IF(Descriptions!D65=\"Grant income\",Descriptions!AA65,0)","v":0}]
[{"$f":"IF(Descriptions!D66=\"Grant income\",Descriptions!B66,0)","v":0},0,0,0,0,0,0,0,0,0,0,0,0,0,0,0,0,0,0,0,0,0,0,{"$f":"IF(Descriptions!D66=\"Grant income\",Descriptions!AA66,0)","v":0}]
[{"$f":"IF(Descriptions!D67=\"Grant income\",Descriptions!B67,0)","v":0},0,0,0,0,0,0,0,0,0,0,0,0,0,0,0,0,0,0,0,0,0,0,{"$f":"IF(Descriptions!D67=\"Grant income\",Descriptions!AA67,0)","v":0}]
[{"$f":"IF(Descriptions!D68=\"Grant income\",Descriptions!B68,0)","v":0},0,0,0,0,0,0,0,0,0,0,0,0,0,0,0,0,0,0,0,0,0,0,{"$f":"IF(Descriptions!D68=\"Grant income\",Descriptions!AA68,0)","v":0}]
[{"$f":"IF(Descriptions!D69=\"Grant income\",Descriptions!B69,0)","v":0},0,0,0,0,0,0,0,0,0,0,0,0,0,0,0,0,0,0,0,0,0,0,{"$f":"IF(Descriptions!D69=\"Grant income\",Descriptions!AA69,0)","v":0}]
[{"$f":"IF(Descriptions!D70=\"Grant income\",Descriptions!B70,0)","v":0},0,0,0,0,0,0,0,0,0,0,0,0,0,0,0,0,0,0,0,0,0,0,{"$f":"IF(Descriptions!D70=\"Grant income\",Descriptions!AA70,0)","v":0}]
[{"$f":"IF(Descriptions!D71=\"Grant income\",Descriptions!B71,0)","v":0},0,0,0,0,0,0,0,0,0,0,0,0,0,0,0,0,0,0,0,0,0,0,{"$f":"IF(Descriptions!D71=\"Grant income\",Descriptions!AA71,0)","v":0}]
[{"$f":"IF(Descriptions!D72=\"Grant income\",Descriptions!B72,0)","v":0},0,0,0,0,0,0,0,0,0,0,0,0,0,0,0,0,0,0,0,0,0,0,{"$f":"IF(Descriptions!D72=\"Grant income\",Descriptions!AA72,0)","v":0}]
[{"$f":"IF(Descriptions!D73=\"Grant income\",Descriptions!B73,0)","v":0},0,0,0,0,0,0,0,0,0,0,0,0,0,0,0,0,0,0,0,0,0,0,{"$f":"IF(Descriptions!D73=\"Grant income\",Descriptions!AA73,0)","v":0}]
[{"$f":"IF(Descriptions!D74=\"Grant income\",Descriptions!B74,0)","v":0},0,0,0,0,0,0,0,0,0,0,0,0,0,0,0,0,0,0,0,0,0,0,{"$f":"IF(Descriptions!D74=\"Grant income\",Descriptions!AA74,0)","v":0}]
[{"$f":"IF(Descriptions!D75=\"Grant income\",Descriptions!B75,0)","v":0},0,0,0,0,0,0,0,0,0,0,0,0,0,0,0,0,0,0,0,0,0,0,{"$f":"IF(Descriptions!D75=\"Grant income\",Descriptions!AA75,0)","v":0}]
[{"$f":"IF(Descriptions!D76=\"Grant income\",Descriptions!B76,0)","v":0},0,0,0,0,0,0,0,0,0,0,0,0,0,0,0,0,0,0,0,0,0,0,{"$f":"IF(Descriptions!D76=\"Grant income\",Descriptions!AA76,0)","v":0}]
[{"$f":"IF(Descriptions!D77=\"Grant income\",Descriptions!B77,0)","v":0},0,0,0,0,0,0,0,0,0,0,0,0,0,0,0,0,0,0,0,0,0,0,{"$f":"IF(Descriptions!D77=\"Grant income\",Descriptions!AA77,0)","v":0}]
[{"$f":"IF(Descriptions!D78=\"Grant income\",Descriptions!B78,0)","v":0},0,0,0,0,0,0,0,0,0,0,0,0,0,0,0,0,0,0,0,0,0,0,{"$f":"IF(Descriptions!D78=\"Grant income\",Descriptions!AA78,0)","v":0}]
[{"$f":"IF(Descriptions!D79=\"Grant income\",Descriptions!B79,0)","v":0},0,0,0,0,0,0,0,0,0,0,0,0,0,0,0,0,0,0,0,0,0,0,{"$f":"IF(Descriptions!D79=\"Grant income\",Descriptions!AA79,0)","v":0}]
[{"$f":"IF(Descriptions!D80=\"Grant income\",Descriptions!B80,0)","v":0},0,0,0,0,0,0,0,0,0,0,0,0,0,0,0,0,0,0,0,0,0,0,{"$f":"IF(Descriptions!D80=\"Grant income\",Descriptions!AA80,0)","v":0}]
[{"$f":"IF(Descriptions!D81=\"Grant income\",Descriptions!B81,0)","v":0},0,0,0,0,0,0,0,0,0,0,0,0,0,0,0,0,0,0,0,0,0,0,{"$f":"IF(Descriptions!D81=\"Grant income\",Descriptions!AA81,0)","v":0}]
[{"$f":"IF(Descriptions!D82=\"Grant income\",Descriptions!B82,0)","v":0},0,0,0,0,0,0,0,0,0,0,0,0,0,0,0,0,0,0,0,0,0,0,{"$f":"IF(Descriptions!D82=\"Grant income\",Descriptions!AA82,0)","v":0}]
[{"$f":"IF(Descriptions!D83=\"Grant income\",Descriptions!B83,0)","v":0},0,0,0,0,0,0,0,0,0,0,0,0,0,0,0,0,0,0,0,0,0,0,{"$f":"IF(Descriptions!D83=\"Grant income\",Descriptions!AA83,0)","v":0}]
[{"$f":"IF(Descriptions!D84=\"Grant income\",Descriptions!B84,0)","v":0},0,0,0,0,0,0,0,0,0,0,0,0,0,0,0,0,0,0,0,0,0,0,{"$f":"IF(Descriptions!D84=\"Grant income\",Descriptions!AA84,0)","v":0}]
[{"$f":"IF(Descriptions!D85=\"Grant income\",Descriptions!B85,0)","v":0},0,0,0,0,0,0,0,0,0,0,0,0,0,0,0,0,0,0,0,0,0,0,{"$f":"IF(Descriptions!D85=\"Grant income\",Descriptions!AA85,0)","v":0}]
[{"$f":"IF(Descriptions!D86=\"Grant income\",Descriptions!B86,0)","v":0},0,0,0,0,0,0,0,0,0,0,0,0,0,0,0,0,0,0,0,0,0,0,{"$f":"IF(Descriptions!D86=\"Grant income\",Descriptions!AA86,0)","v":0}]
[{"$f":"IF(Descriptions!D87=\"Grant income\",Descriptions!B87,0)","v":0},0,0,0,0,0,0,0,0,0,0,0,0,0,0,0,0,0,0,0,0,0,0,{"$f":"IF(Descriptions!D87=\"Grant income\",Descriptions!AA87,0)","v":0}]
[{"$f":"IF(Descriptions!D88=\"Grant income\",Descriptions!B88,0)","v":0},0,0,0,0,0,0,0,0,0,0,0,0,0,0,0,0,0,0,0,0,0,0,{"$f":"IF(Descriptions!D88=\"Grant income\",Descriptions!AA88,0)","v":0}]
[{"$f":"IF(Descriptions!D89=\"Grant income\",Descriptions!B89,0)","v":0},0,0,0,0,0,0,0,0,0,0,0,0,0,0,0,0,0,0,0,0,0,0,{"$f":"IF(Descriptions!D89=\"Grant income\",Descriptions!AA89,0)","v":0}]
[{"$f":"IF(Descriptions!D90=\"Grant income\",Descriptions!B90,0)","v":0},0,0,0,0,0,0,0,0,0,0,0,0,0,0,0,0,0,0,0,0,0,0,{"$f":"IF(Descriptions!D90=\"Grant income\",Descriptions!AA90,0)","v":0}]
[{"$f":"IF(Descriptions!D91=\"Grant income\",Descriptions!B91,0)","v":0},0,0,0,0,0,0,0,0,0,0,0,0,0,0,0,0,0,0,0,0,0,0,{"$f":"IF(Descriptions!D91=\"Grant income\",Descriptions!AA91,0)","v":0}]
[{"$f":"IF(Descriptions!D92=\"Grant income\",Descriptions!B92,0)","v":0},0,0,0,0,0,0,0,0,0,0,0,0,0,0,0,0,0,0,0,0,0,0,{"$f":"IF(Descriptions!D92=\"Grant income\",Descriptions!AA92,0)","v":0}]
[null,{"$f":"SUM(B455:B506)","v":0},0,0,0,0,0,0,0,0,0,0,0,0,0,0,0,0,0,0,0,0,null,{"$f":"X454","v":0}]
["OTHER INCOME",null,null,null,null,null,null,null,null,null,null,null,null,null,null,null,null,null,null,null,null,null,null,{"$f":"SUM(X509:X560)","v":0}]
["Sale of Assets",0,0,0,0,0,0,0,0,0,0,0,0,0,0,0,0,0,0,0,0,0,{"$f":"SUM(B509:V509)","v":0},{"$f":"Descriptions!AA29","v":0}]
["Other Recurring Income",0,0,0,0,0,0,0,0,0,0,0,0,0,0,0,0,0,0,0,0,0,0,{"$f":"Descriptions!AA26","v":0}]
[{"$f":"IF(Descriptions!D43=\"Other income\",Descriptions!B43,0)","v":0},0,0,0,0,0,0,0,0,0,0,0,0,0,0,0,0,0,0,0,0,0,0,{"$f":"IF(Descriptions!D43=\"Other income\",Descriptions!AA43,0)","v":0}]
[{"$f":"IF(Descriptions!D44=\"Other income\",Descriptions!B44,0)","v":0},0,0,0,0,0,0,0,0,0,0,0,0,0,0,0,0,0,0,0,0,0,0,{"$f":"IF(Descriptions!D44=\"Other income\",Descriptions!AA44,0)","v":0}]
[{"$f":"IF(Descriptions!D45=\"Other income\",Descriptions!B45,0)","v":0},0,0,0,0,0,0,0,0,0,0,0,0,0,0,0,0,0,0,0,0,0,0,{"$f":"IF(Descriptions!D45=\"Other income\",Descriptions!AA45,0)","v":0}]
[{"$f":"IF(Descriptions!D46=\"Other income\",Descriptions!B46,0)","v":0},0,0,0,0,0,0,0,0,0,0,0,0,0,0,0,0,0,0,0,0,0,0,{"$f":"IF(Descriptions!D46=\"Other income\",Descriptions!AA46,0)","v":0}]
[{"$f":"IF(Descriptions!D47=\"Other income\",Descriptions!B47,0)","v":0},0,0,0,0,0,0,0,0,0,0,0,0,0,0,0,0,0,0,0,0,0,0,{"$f":"IF(Descriptions!D47=\"Other income\",Descriptions!AA47,0)","v":0}]
[{"$f":"IF(Descriptions!D48=\"Other income\",Descriptions!B48,0)","v":0},0,0,0,0,0,0,0,0,0,0,0,0,0,0,0,0,0,0,0,0,0,0,{"$f":"IF(Descriptions!D48=\"Other income\",Descriptions!AA48,0)","v":0}]
[{"$f":"IF(Descriptions!D49=\"Other income\",Descriptions!B49,0)","v":0},0,0,0,0,0,0,0,0,0,0,0,0,0,0,0,0,0,0,0,0,0,0,{"$f":"IF(Descriptions!D49=\"Other income\",Descriptions!AA49,0)","v":0}]
[{"$f":"IF(Descriptions!D50=\"Other income\",Descriptions!B50,0)","v":0},0,0,0,0,0,0,0,0,0,0,0,0,0,0,0,0,0,0,0,0,0,0,{"$f":"IF(Descriptions!D50=\"Other income\",Descriptions!AA50,0)","v":0}]
[{"$f":"IF(Descriptions!D51=\"Other income\",Descriptions!B51,0)","v":0},0,0,0,0,0,0,0,0,0,0,0,0,0,0,0,0,0,0,0,0,0,0,{"$f":"IF(Descriptions!D51=\"Other income\",Descriptions!AA51,0)","v":0}]
[{"$f":"IF(Descriptions!D52=\"Other income\",Descriptions!B52,0)","v":0},0,0,0,0,0,0,0,0,0,0,0,0,0,0,0,0,0,0,0,0,0,0,{"$f":"IF(Descriptions!D52=\"Other income\",Descriptions!AA52,0)","v":0}]
[{"$f":"IF(Descriptions!D53=\"Other income\",Descriptions!B53,0)","v":0},0,0,0,0,0,0,0,0,0,0,0,0,0,0,0,0,0,0,0,0,0,0,{"$f":"IF(Descriptions!D53=\"Other income\",Descriptions!AA53,0)","v":0}]
[{"$f":"IF(Descriptions!D54=\"Other income\",Descriptions!B54,0)","v":0},0,0,0,0,0,0,0,0,0,0,0,0,0,0,0,0,0,0,0,0,0,0,{"$f":"IF(Descriptions!D54=\"Other income\",Descriptions!AA54,0)","v":0}]
[{"$f":"IF(Descriptions!D55=\"Other income\",Descriptions!B55,0)","v":0},0,0,0,0,0,0,0,0,0,0,0,0,0,0,0,0,0,0,0,0,0,0,{"$f":"IF(Descriptions!D55=\"Other income\",Descriptions!AA55,0)","v":0}]
[{"$f":"IF(Descriptions!D56=\"Other income\",Descriptions!B56,0)","v":0},0,0,0,0,0,0,0,0,0,0,0,0,0,0,0,0,0,0,0,0,0,0,{"$f":"IF(Descriptions!D56=\"Other income\",Descriptions!AA56,0)","v":0}]
[{"$f":"IF(Descriptions!D57=\"Other income\",Descriptions!B57,0)","v":0},0,0,0,0,0,0,0,0,0,0,0,0,0,0,0,0,0,0,0,0,0,0,{"$f":"IF(Descriptions!D57=\"Other income\",Descriptions!AA57,0)","v":0}]
[{"$f":"IF(Descriptions!D58=\"Other income\",Descriptions!B58,0)","v":0},0,0,0,0,0,0,0,0,0,0,0,0,0,0,0,0,0,0,0,0,0,0,{"$f":"IF(Descriptions!D58=\"Other income\",Descriptions!AA58,0)","v":0}]
[{"$f":"IF(Descriptions!D59=\"Other income\",Descriptions!B59,0)","v":0},0,0,0,0,0,0,0,0,0,0,0,0,0,0,0,0,0,0,0,0,0,0,{"$f":"IF(Descriptions!D59=\"Other income\",Descriptions!AA59,0)","v":0}]
[{"$f":"IF(Descriptions!D60=\"Other income\",Descriptions!B60,0)","v":0},0,0,0,0,0,0,0,0,0,0,0,0,0,0,0,0,0,0,0,0,0,0,{"$f":"IF(Descriptions!D60=\"Other income\",Descriptions!AA60,0)","v":0}]
[{"$f":"IF(Descriptions!D61=\"Other income\",Descriptions!B61,0)","v":0},0,0,0,0,0,0,0,0,0,0,0,0,0,0,0,0,0,0,0,0,0,0,{"$f":"IF(Descriptions!D61=\"Other income\",Descriptions!AA61,0)","v":0}]
[{"$f":"IF(Descriptions!D62=\"Other income\",Descriptions!B62,0)","v":0},0,0,0,0,0,0,0,0,0,0,0,0,0,0,0,0,0,0,0,0,0,0,{"$f":"IF(Descriptions!D62=\"Other income\",Descriptions!AA62,0)","v":0}]
[{"$f":"IF(Descriptions!D63=\"Other income\",Descriptions!B63,0)","v":0},0,0,0,0,0,0,0,0,0,0,0,0,0,0,0,0,0,0,0,0,0,0,{"$f":"IF(Descriptions!D63=\"Other income\",Descriptions!AA63,0)","v":0}]
[{"$f":"IF(Descriptions!D64=\"Other income\",Descriptions!B64,0)","v":0},0,0,0,0,0,0,0,0,0,0,0,0,0,0,0,0,0,0,0,0,0,0,{"$f":"IF(Descriptions!D64=\"Other income\",Descriptions!AA64,0)","v":0}]
[{"$f":"IF(Descriptions!D65=\"Other income\",Descriptions!B65,0)","v":0},0,0,0,0,0,0,0,0,0,0,0,0,0,0,0,0,0,0,0,0,0,0,{"$f":"IF(Descriptions!D65=\"Other income\",Descriptions!AA65,0)","v":0}]
[{"$f":"IF(Descriptions!D66=\"Other income\",Descriptions!B66,0)","v":0},0,0,0,0,0,0,0,0,0,0,0,0,0,0,0,0,0,0,0,0,0,0,{"$f":"IF(Descriptions!D66=\"Other income\",Descriptions!AA66,0)","v":0}]
[{"$f":"IF(Descriptions!D67=\"Other income\",Descriptions!B67,0)","v":0},0,0,0,0,0,0,0,0,0,0,0,0,0,0,0,0,0,0,0,0,0,0,{"$f":"IF(Descriptions!D67=\"Other income\",Descriptions!AA67,0)","v":0}]
[{"$f":"IF(Descriptions!D68=\"Other income\",Descriptions!B68,0)","v":0},0,0,0,0,0,0,0,0,0,0,0,0,0,0,0,0,0,0,0,0,0,0,{"$f":"IF(Descriptions!D68=\"Other income\",Descriptions!AA68,0)","v":0}]
[{"$f":"IF(Descriptions!D69=\"Other income\",Descriptions!B69,0)","v":0},0,0,0,0,0,0,0,0,0,0,0,0,0,0,0,0,0,0,0,0,0,0,{"$f":"IF(Descriptions!D69=\"Other income\",Descriptions!AA69,0)","v":0}]
[{"$f":"IF(Descriptions!D70=\"Other income\",Descriptions!B70,0)","v":0},0,0,0,0,0,0,0,0,0,0,0,0,0,0,0,0,0,0,0,0,0,0,{"$f":"IF(Descriptions!D70=\"Other income\",Descriptions!AA70,0)","v":0}]
[{"$f":"IF(Descriptions!D71=\"Other income\",Descriptions!B71,0)","v":0},0,0,0,0,0,0,0,0,0,0,0,0,0,0,0,0,0,0,0,0,0,0,{"$f":"IF(Descriptions!D71=\"Other income\",Descriptions!AA71,0)","v":0}]
[{"$f":"IF(Descriptions!D72=\"Other income\",Descriptions!B72,0)","v":0},0,0,0,0,0,0,0,0,0,0,0,0,0,0,0,0,0,0,0,0,0,0,{"$f":"IF(Descriptions!D72=\"Other income\",Descriptions!AA72,0)","v":0}]
[{"$f":"IF(Descriptions!D73=\"Other income\",Descriptions!B73,0)","v":0},0,0,0,0,0,0,0,0,0,0,0,0,0,0,0,0,0,0,0,0,0,0,{"$f":"IF(Descriptions!D73=\"Other income\",Descriptions!AA73,0)","v":0}]
[{"$f":"IF(Descriptions!D74=\"Other income\",Descriptions!B74,0)","v":0},0,0,0,0,0,0,0,0,0,0,0,0,0,0,0,0,0,0,0,0,0,0,{"$f":"IF(Descriptions!D74=\"Other income\",Descriptions!AA74,0)","v":0}]
[{"$f":"IF(Descriptions!D75=\"Other income\",Descriptions!B75,0)","v":0},0,0,0,0,0,0,0,0,0,0,0,0,0,0,0,0,0,0,0,0,0,0,{"$f":"IF(Descriptions!D75=\"Other income\",Descriptions!AA75,0)","v":0}]
[{"$f":"IF(Descriptions!D76=\"Other income\",Descriptions!B76,0)","v":0},0,0,0,0,0,0,0,0,0,0,0,0,0,0,0,0,0,0,0,0,0,0,{"$f":"IF(Descriptions!D76=\"Other income\",Descriptions!AA76,0)","v":0}]
[{"$f":"IF(Descriptions!D77=\"Other income\",Descriptions!B77,0)","v":0},0,0,0,0,0,0,0,0,0,0,0,0,0,0,0,0,0,0,0,0,0,0,{"$f":"IF(Descriptions!D77=\"Other income\",Descriptions!AA77,0)","v":0}]
[{"$f":"IF(Descriptions!D78=\"Other income\",Descriptions!B78,0)","v":0},0,0,0,0,0,0,0,0,0,0,0,0,0,0,0,0,0,0,0,0,0,0,{"$f":"IF(Descriptions!D78=\"Other income\",Descriptions!AA78,0)","v":0}]
[{"$f":"IF(Descriptions!D79=\"Other income\",Descriptions!B79,0)","v":0},0,0,0,0,0,0,0,0,0,0,0,0,0,0,0,0,0,0,0,0,0,0,{"$f":"IF(Descriptions!D79=\"Other income\",Descriptions!AA79,0)","v":0}]
[{"$f":"IF(Descriptions!D80=\"Other income\",Descriptions!B80,0)","v":0},0,0,0,0,0,0,0,0,0,0,0,0,0,0,0,0,0,0,0,0,0,0,{"$f":"IF(Descriptions!D80=\"Other income\",Descriptions!AA80,0)","v":0}]
[{"$f":"IF(Descriptions!D81=\"Other income\",Descriptions!B81,0)","v":0},0,0,0,0,0,0,0,0,0,0,0,0,0,0,0,0,0,0,0,0,0,0,{"$f":"IF(Descriptions!D81=\"Other income\",Descriptions!AA81,0)","v":0}]
[{"$f":"IF(Descriptions!D82=\"Other income\",Descriptions!B82,0)","v":0},0,0,0,0,0,0,0,0,0,0,0,0,0,0,0,0,0,0,0,0,0,0,{"$f":"IF(Descriptions!D82=\"Other income\",Descriptions!AA82,0)","v":0}]
[{"$f":"IF(Descriptions!D83=\"Other income\",Descriptions!B83,0)","v":0},0,0,0,0,0,0,0,0,0,0,0,0,0,0,0,0,0,0,0,0,0,0,{"$f":"IF(Descriptions!D83=\"Other income\",Descriptions!AA83,0)","v":0}]
[{"$f":"IF(Descriptions!D84=\"Other income\",Descriptions!B84,0)","v":0},0,0,0,0,0,0,0,0,0,0,0,0,0,0,0,0,0,0,0,0,0,0,{"$f":"IF(Descriptions!D84=\"Other income\",Descriptions!AA84,0)","v":0}]
[{"$f":"IF(Descriptions!D85=\"Other income\",Descriptions!B85,0)","v":0},0,0,0,0,0,0,0,0,0,0,0,0,0,0,0,0,0,0,0,0,0,0,{"$f":"IF(Descriptions!D85=\"Other income\",Descriptions!AA85,0)","v":0}]
[{"$f":"IF(Descriptions!D86=\"Other income\",Descriptions!B86,0)","v":0},0,0,0,0,0,0,0,0,0,0,0,0,0,0,0,0,0,0,0,0,0,0,{"$f":"IF(Descriptions!D86=\"Other income\",Descriptions!AA86,0)","v":0}]
[{"$f":"IF(Descriptions!D87=\"Other income\",Descriptions!B87,0)","v":0},0,0,0,0,0,0,0,0,0,0,0,0,0,0,0,0,0,0,0,0,0,0,{"$f":"IF(Descriptions!D87=\"Other income\",Descriptions!AA87,0)","v":0}]
[{"$f":"IF(Descriptions!D88=\"Other income\",Descriptions!B88,0)","v":0},0,0,0,0,0,0,0,0,0,0,0,0,0,0,0,0,0,0,0,0,0,0,{"$f":"IF(Descriptions!D88=\"Other income\",Descriptions!AA88,0)","v":0}]
[{"$f":"IF(Descriptions!D89=\"Other income\",Descriptions!B89,0)","v":0},0,0,0,0,0,0,0,0,0,0,0,0,0,0,0,0,0,0,0,0,0,0,{"$f":"IF(Descriptions!D89=\"Other income\",Descriptions!AA89,0)","v":0}]
[{"$f":"IF(Descriptions!D90=\"Other income\",Descriptions!B90,0)","v":0},0,0,0,0,0,0,0,0,0,0,0,0,0,0,0,0,0,0,0,0,0,0,{"$f":"IF(Descriptions!D90=\"Other income\",Descriptions!AA90,0)","v":0}]
[{"$f":"IF(Descriptions!D91=\"Other income\",Descriptions!B91,0)","v":0},0,0,0,0,0,0,0,0,0,0,0,0,0,0,0,0,0,0,0,0,0,0,{"$f":"IF(Descriptions!D91=\"Other income\",Descriptions!AA91,0)","v":0}]
[{"$f":"IF(Descriptions!D92=\"Other income\",Descriptions!B92,0)","v":0},0,0,0,0,0,0,0,0,0,0,0,0,0,0,0,0,0,0,0,0,0,0,{"$f":"IF(Descriptions!D92=\"Other income\",Descriptions!AA92,0)","v":0}]
[null,{"$f":"SUM(B509:B560)","v":0},0,0,0,0,0,0,0,0,0,0,0,0,0,0,0,0,0,0,0,0,null,{"$f":"X508","v":0}]
[null,null,null,null,null,null,null,null,null,null,null,null,null,null,null,null,null,null,null,null,null,null,null,1]
["TOTAL PRIOR YEAR RECEIPTS",{"$f":"SUM(B561+B507+B453+B400+B347+B288+B230+B171+B118+B64)","v":0},0,0,0,0,0,0,0,0,0,0,0,0,0,0,0,0,0,0,0,0,null,1]
[null,null,null,null,null,null,null,null,null,null,null,null,null,null,null,null,null,null,null,null,null,null,null,1]
[null,null,null,null,null,null,null,null,null,null,null,null,null,null,null,null,null,null,null,null,null,null,null,1]
["PAYMENTS",null,null,null,null,null,null,null,null,null,null,null,null,null,null,null,null,null,null,null,null,null,null,1]
[null,"£","£","£","£","£","£","£","£","£","£","£","£","£","£","£","£","£","£","£","£","£",null,1]
["PARISH SHARE",null,null,null,null,null,null,null,null,null,null,null,null,null,null,null,null,null,null,null,null,null,null,1]
["Parish Share Paid",0,0,0,0,0,0,0,0,0,0,0,0,0,0,0,0,0,0,0,0,0,{"$f":"SUM(B569:V569)","v":0},1]
[{"$f":"IF(Descriptions!K35=\"Parish Share\",Descriptions!I35,0)","v":0},0,0,0,0,0,0,0,0,0,0,0,0,0,0,0,0,0,0,0,0,0,0,{"$f":"IF(Descriptions!K35=\"Parish Share\",Descriptions!AB35,0)","v":0}]
[{"$f":"IF(Descriptions!K36=\"Parish Share\",Descriptions!I36,0)","v":0},0,0,0,0,0,0,0,0,0,0,0,0,0,0,0,0,0,0,0,0,0,0,{"$f":"IF(Descriptions!K36=\"Parish Share\",Descriptions!AB36,0)","v":0}]
[{"$f":"IF(Descriptions!K37=\"Parish Share\",Descriptions!I37,0)","v":0},0,0,0,0,0,0,0,0,0,0,0,0,0,0,0,0,0,0,0,0,0,0,{"$f":"IF(Descriptions!K37=\"Parish Share\",Descriptions!AB37,0)","v":0}]
[{"$f":"IF(Descriptions!K38=\"Parish Share\",Descriptions!I38,0)","v":0},0,0,0,0,0,0,0,0,0,0,0,0,0,0,0,0,0,0,0,0,0,0,{"$f":"IF(Descriptions!K38=\"Parish Share\",Descriptions!AB38,0)","v":0}]
[{"$f":"IF(Descriptions!K39=\"Parish Share\",Descriptions!I39,0)","v":0},0,0,0,0,0,0,0,0,0,0,0,0,0,0,0,0,0,0,0,0,0,0,{"$f":"IF(Descriptions!K39=\"Parish Share\",Descriptions!AB39,0)","v":0}]
[{"$f":"IF(Descriptions!K40=\"Parish Share\",Descriptions!I40,0)","v":0},0,0,0,0,0,0,0,0,0,0,0,0,0,0,0,0,0,0,0,0,0,0,{"$f":"IF(Descriptions!K40=\"Parish Share\",Descriptions!AB40,0)","v":0}]
[{"$f":"IF(Descriptions!K41=\"Parish Share\",Descriptions!I41,0)","v":0},0,0,0,0,0,0,0,0,0,0,0,0,0,0,0,0,0,0,0,0,0,0,{"$f":"IF(Descriptions!K41=\"Parish Share\",Descriptions!AB41,0)","v":0}]
[{"$f":"IF(Descriptions!K42=\"Parish Share\",Descriptions!I42,0)","v":0},0,0,0,0,0,0,0,0,0,0,0,0,0,0,0,0,0,0,0,0,0,0,{"$f":"IF(Descriptions!K42=\"Parish Share\",Descriptions!AB42,0)","v":0}]
[{"$f":"IF(Descriptions!K43=\"Parish Share\",Descriptions!I43,0)","v":0},0,0,0,0,0,0,0,0,0,0,0,0,0,0,0,0,0,0,0,0,0,0,{"$f":"IF(Descriptions!K43=\"Parish Share\",Descriptions!AB43,0)","v":0}]
[{"$f":"IF(Descriptions!K44=\"Parish Share\",Descriptions!I44,0)","v":0},0,0,0,0,0,0,0,0,0,0,0,0,0,0,0,0,0,0,0,0,0,0,{"$f":"IF(Descriptions!K44=\"Parish Share\",Descriptions!AB44,0)","v":0}]
[{"$f":"IF(Descriptions!K45=\"Parish Share\",Descriptions!I45,0)","v":0},0,0,0,0,0,0,0,0,0,0,0,0,0,0,0,0,0,0,0,0,0,0,{"$f":"IF(Descriptions!K45=\"Parish Share\",Descriptions!AB45,0)","v":0}]
[{"$f":"IF(Descriptions!K46=\"Parish Share\",Descriptions!I46,0)","v":0},0,0,0,0,0,0,0,0,0,0,0,0,0,0,0,0,0,0,0,0,0,0,{"$f":"IF(Descriptions!K46=\"Parish Share\",Descriptions!AB46,0)","v":0}]
[{"$f":"IF(Descriptions!K47=\"Parish Share\",Descriptions!I47,0)","v":0},0,0,0,0,0,0,0,0,0,0,0,0,0,0,0,0,0,0,0,0,0,0,{"$f":"IF(Descriptions!K47=\"Parish Share\",Descriptions!AB47,0)","v":0}]
[{"$f":"IF(Descriptions!K48=\"Parish Share\",Descriptions!I48,0)","v":0},0,0,0,0,0,0,0,0,0,0,0,0,0,0,0,0,0,0,0,0,0,0,{"$f":"IF(Descriptions!K48=\"Parish Share\",Descriptions!AB48,0)","v":0}]
[{"$f":"IF(Descriptions!K49=\"Parish Share\",Descriptions!I49,0)","v":0},0,0,0,0,0,0,0,0,0,0,0,0,0,0,0,0,0,0,0,0,0,0,{"$f":"IF(Descriptions!K49=\"Parish Share\",Descriptions!AB49,0)","v":0}]
[{"$f":"IF(Descriptions!K50=\"Parish Share\",Descriptions!I50,0)","v":0},0,0,0,0,0,0,0,0,0,0,0,0,0,0,0,0,0,0,0,0,0,0,{"$f":"IF(Descriptions!K50=\"Parish Share\",Descriptions!AB50,0)","v":0}]
[{"$f":"IF(Descriptions!K51=\"Parish Share\",Descriptions!I51,0)","v":0},0,0,0,0,0,0,0,0,0,0,0,0,0,0,0,0,0,0,0,0,0,0,{"$f":"IF(Descriptions!K51=\"Parish Share\",Descriptions!AB51,0)","v":0}]
[{"$f":"IF(Descriptions!K52=\"Parish Share\",Descriptions!I52,0)","v":0},0,0,0,0,0,0,0,0,0,0,0,0,0,0,0,0,0,0,0,0,0,0,{"$f":"IF(Descriptions!K52=\"Parish Share\",Descriptions!AB52,0)","v":0}]
[{"$f":"IF(Descriptions!K53=\"Parish Share\",Descriptions!I53,0)","v":0},0,0,0,0,0,0,0,0,0,0,0,0,0,0,0,0,0,0,0,0,0,0,{"$f":"IF(Descriptions!K53=\"Parish Share\",Descriptions!AB53,0)","v":0}]
[{"$f":"IF(Descriptions!K54=\"Parish Share\",Descriptions!I54,0)","v":0},0,0,0,0,0,0,0,0,0,0,0,0,0,0,0,0,0,0,0,0,0,0,{"$f":"IF(Descriptions!K54=\"Parish Share\",Descriptions!AB54,0)","v":0}]
[{"$f":"IF(Descriptions!K55=\"Parish Share\",Descriptions!I55,0)","v":0},0,0,0,0,0,0,0,0,0,0,0,0,0,0,0,0,0,0,0,0,0,0,{"$f":"IF(Descriptions!K55=\"Parish Share\",Descriptions!AB55,0)","v":0}]
[{"$f":"IF(Descriptions!K56=\"Parish Share\",Descriptions!I56,0)","v":0},0,0,0,0,0,0,0,0,0,0,0,0,0,0,0,0,0,0,0,0,0,0,{"$f":"IF(Descriptions!K56=\"Parish Share\",Descriptions!AB56,0)","v":0}]
[{"$f":"IF(Descriptions!K57=\"Parish Share\",Descriptions!I57,0)","v":0},0,0,0,0,0,0,0,0,0,0,0,0,0,0,0,0,0,0,0,0,0,0,{"$f":"IF(Descriptions!K57=\"Parish Share\",Descriptions!AB57,0)","v":0}]
[{"$f":"IF(Descriptions!K58=\"Parish Share\",Descriptions!I58,0)","v":0},0,0,0,0,0,0,0,0,0,0,0,0,0,0,0,0,0,0,0,0,0,0,{"$f":"IF(Descriptions!K58=\"Parish Share\",Descriptions!AB58,0)","v":0}]
[{"$f":"IF(Descriptions!K59=\"Parish Share\",Descriptions!I59,0)","v":0},0,0,0,0,0,0,0,0,0,0,0,0,0,0,0,0,0,0,0,0,0,0,{"$f":"IF(Descriptions!K59=\"Parish Share\",Descriptions!AB59,0)","v":0}]
[{"$f":"IF(Descriptions!K60=\"Parish Share\",Descriptions!I60,0)","v":0},0,0,0,0,0,0,0,0,0,0,0,0,0,0,0,0,0,0,0,0,0,0,{"$f":"IF(Descriptions!K60=\"Parish Share\",Descriptions!AB60,0)","v":0}]
[{"$f":"IF(Descriptions!K61=\"Parish Share\",Descriptions!I61,0)","v":0},0,0,0,0,0,0,0,0,0,0,0,0,0,0,0,0,0,0,0,0,0,0,{"$f":"IF(Descriptions!K61=\"Parish Share\",Descriptions!AB61,0)","v":0}]
[{"$f":"IF(Descriptions!K62=\"Parish Share\",Descriptions!I62,0)","v":0},0,0,0,0,0,0,0,0,0,0,0,0,0,0,0,0,0,0,0,0,0,0,{"$f":"IF(Descriptions!K62=\"Parish Share\",Descriptions!AB62,0)","v":0}]
[{"$f":"IF(Descriptions!K63=\"Parish Share\",Descriptions!I63,0)","v":0},0,0,0,0,0,0,0,0,0,0,0,0,0,0,0,0,0,0,0,0,0,0,{"$f":"IF(Descriptions!K63=\"Parish Share\",Descriptions!AB63,0)","v":0}]
[{"$f":"IF(Descriptions!K64=\"Parish Share\",Descriptions!I64,0)","v":0},0,0,0,0,0,0,0,0,0,0,0,0,0,0,0,0,0,0,0,0,0,0,{"$f":"IF(Descriptions!K64=\"Parish Share\",Descriptions!AB64,0)","v":0}]
[{"$f":"IF(Descriptions!K65=\"Parish Share\",Descriptions!I65,0)","v":0},0,0,0,0,0,0,0,0,0,0,0,0,0,0,0,0,0,0,0,0,0,0,{"$f":"IF(Descriptions!K65=\"Parish Share\",Descriptions!AB65,0)","v":0}]
[{"$f":"IF(Descriptions!K66=\"Parish Share\",Descriptions!I66,0)","v":0},0,0,0,0,0,0,0,0,0,0,0,0,0,0,0,0,0,0,0,0,0,0,{"$f":"IF(Descriptions!K66=\"Parish Share\",Descriptions!AB66,0)","v":0}]
[{"$f":"IF(Descriptions!K67=\"Parish Share\",Descriptions!I67,0)","v":0},0,0,0,0,0,0,0,0,0,0,0,0,0,0,0,0,0,0,0,0,0,0,{"$f":"IF(Descriptions!K67=\"Parish Share\",Descriptions!AB67,0)","v":0}]
[{"$f":"IF(Descriptions!K68=\"Parish Share\",Descriptions!I68,0)","v":0},0,0,0,0,0,0,0,0,0,0,0,0,0,0,0,0,0,0,0,0,0,0,{"$f":"IF(Descriptions!K68=\"Parish Share\",Descriptions!AB68,0)","v":0}]
[{"$f":"IF(Descriptions!K69=\"Parish Share\",Descriptions!I69,0)","v":0},0,0,0,0,0,0,0,0,0,0,0,0,0,0,0,0,0,0,0,0,0,0,{"$f":"IF(Descriptions!K69=\"Parish Share\",Descriptions!AB69,0)","v":0}]
[{"$f":"IF(Descriptions!K70=\"Parish Share\",Descriptions!I70,0)","v":0},0,0,0,0,0,0,0,0,0,0,0,0,0,0,0,0,0,0,0,0,0,0,{"$f":"IF(Descriptions!K70=\"Parish Share\",Descriptions!AB70,0)","v":0}]
[{"$f":"IF(Descriptions!K71=\"Parish Share\",Descriptions!I71,0)","v":0},0,0,0,0,0,0,0,0,0,0,0,0,0,0,0,0,0,0,0,0,0,0,{"$f":"IF(Descriptions!K71=\"Parish Share\",Descriptions!AB71,0)","v":0}]
[{"$f":"IF(Descriptions!K72=\"Parish Share\",Descriptions!I72,0)","v":0},0,0,0,0,0,0,0,0,0,0,0,0,0,0,0,0,0,0,0,0,0,0,{"$f":"IF(Descriptions!K72=\"Parish Share\",Descriptions!AB72,0)","v":0}]
[{"$f":"IF(Descriptions!K73=\"Parish Share\",Descriptions!I73,0)","v":0},0,0,0,0,0,0,0,0,0,0,0,0,0,0,0,0,0,0,0,0,0,0,{"$f":"IF(Descriptions!K73=\"Parish Share\",Descriptions!AB73,0)","v":0}]
[{"$f":"IF(Descriptions!K74=\"Parish Share\",Descriptions!I74,0)","v":0},0,0,0,0,0,0,0,0,0,0,0,0,0,0,0,0,0,0,0,0,0,0,{"$f":"IF(Descriptions!K74=\"Parish Share\",Descriptions!AB74,0)","v":0}]
[{"$f":"IF(Descriptions!K75=\"Parish Share\",Descriptions!I75,0)","v":0},0,0,0,0,0,0,0,0,0,0,0,0,0,0,0,0,0,0,0,0,0,0,{"$f":"IF(Descriptions!K75=\"Parish Share\",Descriptions!AB75,0)","v":0}]
[{"$f":"IF(Descriptions!K76=\"Parish Share\",Descriptions!I76,0)","v":0},0,0,0,0,0,0,0,0,0,0,0,0,0,0,0,0,0,0,0,0,0,0,{"$f":"IF(Descriptions!K76=\"Parish Share\",Descriptions!AB76,0)","v":0}]
[{"$f":"IF(Descriptions!K77=\"Parish Share\",Descriptions!I77,0)","v":0},0,0,0,0,0,0,0,0,0,0,0,0,0,0,0,0,0,0,0,0,0,0,{"$f":"IF(Descriptions!K77=\"Parish Share\",Descriptions!AB77,0)","v":0}]
[{"$f":"IF(Descriptions!K78=\"Parish Share\",Descriptions!I78,0)","v":0},0,0,0,0,0,0,0,0,0,0,0,0,0,0,0,0,0,0,0,0,0,0,{"$f":"IF(Descriptions!K78=\"Parish Share\",Descriptions!AB78,0)","v":0}]
[{"$f":"IF(Descriptions!K79=\"Parish Share\",Descriptions!I79,0)","v":0},0,0,0,0,0,0,0,0,0,0,0,0,0,0,0,0,0,0,0,0,0,0,{"$f":"IF(Descriptions!K79=\"Parish Share\",Descriptions!AB79,0)","v":0}]
[{"$f":"IF(Descriptions!K80=\"Parish Share\",Descriptions!I80,0)","v":0},0,0,0,0,0,0,0,0,0,0,0,0,0,0,0,0,0,0,0,0,0,0,{"$f":"IF(Descriptions!K80=\"Parish Share\",Descriptions!AB80,0)","v":0}]
[{"$f":"IF(Descriptions!K81=\"Parish Share\",Descriptions!I81,0)","v":0},0,0,0,0,0,0,0,0,0,0,0,0,0,0,0,0,0,0,0,0,0,0,{"$f":"IF(Descriptions!K81=\"Parish Share\",Descriptions!AB81,0)","v":0}]
[{"$f":"IF(Descriptions!K82=\"Parish Share\",Descriptions!I82,0)","v":0},0,0,0,0,0,0,0,0,0,0,0,0,0,0,0,0,0,0,0,0,0,0,{"$f":"IF(Descriptions!K82=\"Parish Share\",Descriptions!AB82,0)","v":0}]
[{"$f":"IF(Descriptions!K83=\"Parish Share\",Descriptions!I83,0)","v":0},0,0,0,0,0,0,0,0,0,0,0,0,0,0,0,0,0,0,0,0,0,0,{"$f":"IF(Descriptions!K83=\"Parish Share\",Descriptions!AB83,0)","v":0}]
[{"$f":"IF(Descriptions!K84=\"Parish Share\",Descriptions!I84,0)","v":0},0,0,0,0,0,0,0,0,0,0,0,0,0,0,0,0,0,0,0,0,0,0,{"$f":"IF(Descriptions!K84=\"Parish Share\",Descriptions!AB84,0)","v":0}]
[null,{"$f":"SUM(B569:B619)","v":0},0,0,0,0,0,0,0,0,0,0,0,0,0,0,0,0,0,0,0,0,null,1]
["CLERGY AND STAFFING COSTS",null,null,null,null,null,null,null,null,null,null,null,null,null,null,null,null,null,null,null,null,null,null,{"$f":"SUM(X622:X674)","v":0}]
["Administrator Parish/Benefice",0,0,0,0,0,0,0,0,0,0,0,0,0,0,0,0,0,0,0,0,0,{"$f":"SUM(B622:V622)","v":0},{"$f":"Descriptions!AB6","v":0}]
["Clergy Expenses",0,0,0,0,0,0,0,0,0,0,0,0,0,0,0,0,0,0,0,0,0,0,{"$f":"Descriptions!AB15","v":0}]
["Salaries",0,0,0,0,0,0,0,0,0,0,0,0,0,0,0,0,0,0,0,0,0,0,{"$f":"Descriptions!AB26","v":0}]
[{"$f":"IF(Descriptions!K35=\"Clergy and Staffing Costs\",Descriptions!I35,0)","v":0},0,0,0,0,0,0,0,0,0,0,0,0,0,0,0,0,0,0,0,0,0,0,{"$f":"IF(Descriptions!K35=\"Clergy and Staffing Costs\",Descriptions!AB35,0)","v":0}]
[{"$f":"IF(Descriptions!K36=\"Clergy and Staffing Costs\",Descriptions!I36,0)","v":0},0,0,0,0,0,0,0,0,0,0,0,0,0,0,0,0,0,0,0,0,0,0,{"$f":"IF(Descriptions!K36=\"Clergy and Staffing Costs\",Descriptions!AB36,0)","v":0}]
[{"$f":"IF(Descriptions!K37=\"Clergy and Staffing Costs\",Descriptions!I37,0)","v":0},0,0,0,0,0,0,0,0,0,0,0,0,0,0,0,0,0,0,0,0,0,0,{"$f":"IF(Descriptions!K37=\"Clergy and Staffing Costs\",Descriptions!AB37,0)","v":0}]
[{"$f":"IF(Descriptions!K38=\"Clergy and Staffing Costs\",Descriptions!I38,0)","v":0},0,0,0,0,0,0,0,0,0,0,0,0,0,0,0,0,0,0,0,0,0,0,{"$f":"IF(Descriptions!K38=\"Clergy and Staffing Costs\",Descriptions!AB38,0)","v":0}]
[{"$f":"IF(Descriptions!K39=\"Clergy and Staffing Costs\",Descriptions!I39,0)","v":0},0,0,0,0,0,0,0,0,0,0,0,0,0,0,0,0,0,0,0,0,0,0,{"$f":"IF(Descriptions!K39=\"Clergy and Staffing Costs\",Descriptions!AB39,0)","v":0}]
[{"$f":"IF(Descriptions!K40=\"Clergy and Staffing Costs\",Descriptions!I40,0)","v":0},0,0,0,0,0,0,0,0,0,0,0,0,0,0,0,0,0,0,0,0,0,0,{"$f":"IF(Descriptions!K40=\"Clergy and Staffing Costs\",Descriptions!AB40,0)","v":0}]
[{"$f":"IF(Descriptions!K41=\"Clergy and Staffing Costs\",Descriptions!I41,0)","v":0},0,0,0,0,0,0,0,0,0,0,0,0,0,0,0,0,0,0,0,0,0,0,{"$f":"IF(Descriptions!K41=\"Clergy and Staffing Costs\",Descriptions!AB41,0)","v":0}]
[{"$f":"IF(Descriptions!K42=\"Clergy and Staffing Costs\",Descriptions!I42,0)","v":0},0,0,0,0,0,0,0,0,0,0,0,0,0,0,0,0,0,0,0,0,0,0,{"$f":"IF(Descriptions!K42=\"Clergy and Staffing Costs\",Descriptions!AB42,0)","v":0}]
[{"$f":"IF(Descriptions!K43=\"Clergy and Staffing Costs\",Descriptions!I43,0)","v":0},0,0,0,0,0,0,0,0,0,0,0,0,0,0,0,0,0,0,0,0,0,0,{"$f":"IF(Descriptions!K43=\"Clergy and Staffing Costs\",Descriptions!AB43,0)","v":0}]
[{"$f":"IF(Descriptions!K44=\"Clergy and Staffing Costs\",Descriptions!I44,0)","v":0},0,0,0,0,0,0,0,0,0,0,0,0,0,0,0,0,0,0,0,0,0,0,{"$f":"IF(Descriptions!K44=\"Clergy and Staffing Costs\",Descriptions!AB44,0)","v":0}]
[{"$f":"IF(Descriptions!K45=\"Clergy and Staffing Costs\",Descriptions!I45,0)","v":0},0,0,0,0,0,0,0,0,0,0,0,0,0,0,0,0,0,0,0,0,0,0,{"$f":"IF(Descriptions!K45=\"Clergy and Staffing Costs\",Descriptions!AB45,0)","v":0}]
[{"$f":"IF(Descriptions!K46=\"Clergy and Staffing Costs\",Descriptions!I46,0)","v":0},0,0,0,0,0,0,0,0,0,0,0,0,0,0,0,0,0,0,0,0,0,0,{"$f":"IF(Descriptions!K46=\"Clergy and Staffing Costs\",Descriptions!AB46,0)","v":0}]
[{"$f":"IF(Descriptions!K47=\"Clergy and Staffing Costs\",Descriptions!I47,0)","v":0},0,0,0,0,0,0,0,0,0,0,0,0,0,0,0,0,0,0,0,0,0,0,{"$f":"IF(Descriptions!K47=\"Clergy and Staffing Costs\",Descriptions!AB47,0)","v":0}]
[{"$f":"IF(Descriptions!K48=\"Clergy and Staffing Costs\",Descriptions!I48,0)","v":0},0,0,0,0,0,0,0,0,0,0,0,0,0,0,0,0,0,0,0,0,0,0,{"$f":"IF(Descriptions!K48=\"Clergy and Staffing Costs\",Descriptions!AB48,0)","v":0}]
[{"$f":"IF(Descriptions!K49=\"Clergy and Staffing Costs\",Descriptions!I49,0)","v":0},0,0,0,0,0,0,0,0,0,0,0,0,0,0,0,0,0,0,0,0,0,0,{"$f":"IF(Descriptions!K49=\"Clergy and Staffing Costs\",Descriptions!AB49,0)","v":0}]
[{"$f":"IF(Descriptions!K50=\"Clergy and Staffing Costs\",Descriptions!I50,0)","v":0},0,0,0,0,0,0,0,0,0,0,0,0,0,0,0,0,0,0,0,0,0,0,{"$f":"IF(Descriptions!K50=\"Clergy and Staffing Costs\",Descriptions!AB50,0)","v":0}]
[{"$f":"IF(Descriptions!K51=\"Clergy and Staffing Costs\",Descriptions!I51,0)","v":0},0,0,0,0,0,0,0,0,0,0,0,0,0,0,0,0,0,0,0,0,0,0,{"$f":"IF(Descriptions!K51=\"Clergy and Staffing Costs\",Descriptions!AB51,0)","v":0}]
[{"$f":"IF(Descriptions!K52=\"Clergy and Staffing Costs\",Descriptions!I52,0)","v":0},0,0,0,0,0,0,0,0,0,0,0,0,0,0,0,0,0,0,0,0,0,0,{"$f":"IF(Descriptions!K52=\"Clergy and Staffing Costs\",Descriptions!AB52,0)","v":0}]
[{"$f":"IF(Descriptions!K53=\"Clergy and Staffing Costs\",Descriptions!I53,0)","v":0},0,0,0,0,0,0,0,0,0,0,0,0,0,0,0,0,0,0,0,0,0,0,{"$f":"IF(Descriptions!K53=\"Clergy and Staffing Costs\",Descriptions!AB53,0)","v":0}]
[{"$f":"IF(Descriptions!K54=\"Clergy and Staffing Costs\",Descriptions!I54,0)","v":0},0,0,0,0,0,0,0,0,0,0,0,0,0,0,0,0,0,0,0,0,0,0,{"$f":"IF(Descriptions!K54=\"Clergy and Staffing Costs\",Descriptions!AB54,0)","v":0}]
[{"$f":"IF(Descriptions!K55=\"Clergy and Staffing Costs\",Descriptions!I55,0)","v":0},0,0,0,0,0,0,0,0,0,0,0,0,0,0,0,0,0,0,0,0,0,0,{"$f":"IF(Descriptions!K55=\"Clergy and Staffing Costs\",Descriptions!AB55,0)","v":0}]
[{"$f":"IF(Descriptions!K56=\"Clergy and Staffing Costs\",Descriptions!I56,0)","v":0},0,0,0,0,0,0,0,0,0,0,0,0,0,0,0,0,0,0,0,0,0,0,{"$f":"IF(Descriptions!K56=\"Clergy and Staffing Costs\",Descriptions!AB56,0)","v":0}]
[{"$f":"IF(Descriptions!K57=\"Clergy and Staffing Costs\",Descriptions!I57,0)","v":0},0,0,0,0,0,0,0,0,0,0,0,0,0,0,0,0,0,0,0,0,0,0,{"$f":"IF(Descriptions!K57=\"Clergy and Staffing Costs\",Descriptions!AB57,0)","v":0}]
[{"$f":"IF(Descriptions!K58=\"Clergy and Staffing Costs\",Descriptions!I58,0)","v":0},0,0,0,0,0,0,0,0,0,0,0,0,0,0,0,0,0,0,0,0,0,0,{"$f":"IF(Descriptions!K58=\"Clergy and Staffing Costs\",Descriptions!AB58,0)","v":0}]
[{"$f":"IF(Descriptions!K59=\"Clergy and Staffing Costs\",Descriptions!I59,0)","v":0},0,0,0,0,0,0,0,0,0,0,0,0,0,0,0,0,0,0,0,0,0,0,{"$f":"IF(Descriptions!K59=\"Clergy and Staffing Costs\",Descriptions!AB59,0)","v":0}]
[{"$f":"IF(Descriptions!K60=\"Clergy and Staffing Costs\",Descriptions!I60,0)","v":0},0,0,0,0,0,0,0,0,0,0,0,0,0,0,0,0,0,0,0,0,0,0,{"$f":"IF(Descriptions!K60=\"Clergy and Staffing Costs\",Descriptions!AB60,0)","v":0}]
[{"$f":"IF(Descriptions!K61=\"Clergy and Staffing Costs\",Descriptions!I61,0)","v":0},0,0,0,0,0,0,0,0,0,0,0,0,0,0,0,0,0,0,0,0,0,0,{"$f":"IF(Descriptions!K61=\"Clergy and Staffing Costs\",Descriptions!AB61,0)","v":0}]
[{"$f":"IF(Descriptions!K62=\"Clergy and Staffing Costs\",Descriptions!I62,0)","v":0},0,0,0,0,0,0,0,0,0,0,0,0,0,0,0,0,0,0,0,0,0,0,{"$f":"IF(Descriptions!K62=\"Clergy and Staffing Costs\",Descriptions!AB62,0)","v":0}]
[{"$f":"IF(Descriptions!K63=\"Clergy and Staffing Costs\",Descriptions!I63,0)","v":0},0,0,0,0,0,0,0,0,0,0,0,0,0,0,0,0,0,0,0,0,0,0,{"$f":"IF(Descriptions!K63=\"Clergy and Staffing Costs\",Descriptions!AB63,0)","v":0}]
[{"$f":"IF(Descriptions!K64=\"Clergy and Staffing Costs\",Descriptions!I64,0)","v":0},0,0,0,0,0,0,0,0,0,0,0,0,0,0,0,0,0,0,0,0,0,0,{"$f":"IF(Descriptions!K64=\"Clergy and Staffing Costs\",Descriptions!AB64,0)","v":0}]
[{"$f":"IF(Descriptions!K65=\"Clergy and Staffing Costs\",Descriptions!I65,0)","v":0},0,0,0,0,0,0,0,0,0,0,0,0,0,0,0,0,0,0,0,0,0,0,{"$f":"IF(Descriptions!K65=\"Clergy and Staffing Costs\",Descriptions!AB65,0)","v":0}]
[{"$f":"IF(Descriptions!K66=\"Clergy and Staffing Costs\",Descriptions!I66,0)","v":0},0,0,0,0,0,0,0,0,0,0,0,0,0,0,0,0,0,0,0,0,0,0,{"$f":"IF(Descriptions!K66=\"Clergy and Staffing Costs\",Descriptions!AB66,0)","v":0}]
[{"$f":"IF(Descriptions!K67=\"Clergy and Staffing Costs\",Descriptions!I67,0)","v":0},0,0,0,0,0,0,0,0,0,0,0,0,0,0,0,0,0,0,0,0,0,0,{"$f":"IF(Descriptions!K67=\"Clergy and Staffing Costs\",Descriptions!AB67,0)","v":0}]
[{"$f":"IF(Descriptions!K68=\"Clergy and Staffing Costs\",Descriptions!I68,0)","v":0},0,0,0,0,0,0,0,0,0,0,0,0,0,0,0,0,0,0,0,0,0,0,{"$f":"IF(Descriptions!K68=\"Clergy and Staffing Costs\",Descriptions!AB68,0)","v":0}]
[{"$f":"IF(Descriptions!K69=\"Clergy and Staffing Costs\",Descriptions!I69,0)","v":0},0,0,0,0,0,0,0,0,0,0,0,0,0,0,0,0,0,0,0,0,0,0,{"$f":"IF(Descriptions!K69=\"Clergy and Staffing Costs\",Descriptions!AB69,0)","v":0}]
[{"$f":"IF(Descriptions!K70=\"Clergy and Staffing Costs\",Descriptions!I70,0)","v":0},0,0,0,0,0,0,0,0,0,0,0,0,0,0,0,0,0,0,0,0,0,0,{"$f":"IF(Descriptions!K70=\"Clergy and Staffing Costs\",Descriptions!AB70,0)","v":0}]
[{"$f":"IF(Descriptions!K71=\"Clergy and Staffing Costs\",Descriptions!I71,0)","v":0},0,0,0,0,0,0,0,0,0,0,0,0,0,0,0,0,0,0,0,0,0,0,{"$f":"IF(Descriptions!K71=\"Clergy and Staffing Costs\",Descriptions!AB71,0)","v":0}]
[{"$f":"IF(Descriptions!K72=\"Clergy and Staffing Costs\",Descriptions!I72,0)","v":0},0,0,0,0,0,0,0,0,0,0,0,0,0,0,0,0,0,0,0,0,0,0,{"$f":"IF(Descriptions!K72=\"Clergy and Staffing Costs\",Descriptions!AB72,0)","v":0}]
[{"$f":"IF(Descriptions!K73=\"Clergy and Staffing Costs\",Descriptions!I73,0)","v":0},0,0,0,0,0,0,0,0,0,0,0,0,0,0,0,0,0,0,0,0,0,0,{"$f":"IF(Descriptions!K73=\"Clergy and Staffing Costs\",Descriptions!AB73,0)","v":0}]
[{"$f":"IF(Descriptions!K74=\"Clergy and Staffing Costs\",Descriptions!I74,0)","v":0},0,0,0,0,0,0,0,0,0,0,0,0,0,0,0,0,0,0,0,0,0,0,{"$f":"IF(Descriptions!K74=\"Clergy and Staffing Costs\",Descriptions!AB74,0)","v":0}]
[{"$f":"IF(Descriptions!K75=\"Clergy and Staffing Costs\",Descriptions!I75,0)","v":0},0,0,0,0,0,0,0,0,0,0,0,0,0,0,0,0,0,0,0,0,0,0,{"$f":"IF(Descriptions!K75=\"Clergy and Staffing Costs\",Descriptions!AB75,0)","v":0}]
[{"$f":"IF(Descriptions!K76=\"Clergy and Staffing Costs\",Descriptions!I76,0)","v":0},0,0,0,0,0,0,0,0,0,0,0,0,0,0,0,0,0,0,0,0,0,0,{"$f":"IF(Descriptions!K76=\"Clergy and Staffing Costs\",Descriptions!AB76,0)","v":0}]
[{"$f":"IF(Descriptions!K77=\"Clergy and Staffing Costs\",Descriptions!I77,0)","v":0},0,0,0,0,0,0,0,0,0,0,0,0,0,0,0,0,0,0,0,0,0,0,{"$f":"IF(Descriptions!K77=\"Clergy and Staffing Costs\",Descriptions!AB77,0)","v":0}]
[{"$f":"IF(Descriptions!K78=\"Clergy and Staffing Costs\",Descriptions!I78,0)","v":0},0,0,0,0,0,0,0,0,0,0,0,0,0,0,0,0,0,0,0,0,0,0,{"$f":"IF(Descriptions!K78=\"Clergy and Staffing Costs\",Descriptions!AB78,0)","v":0}]
[{"$f":"IF(Descriptions!K79=\"Clergy and Staffing Costs\",Descriptions!I79,0)","v":0},0,0,0,0,0,0,0,0,0,0,0,0,0,0,0,0,0,0,0,0,0,0,{"$f":"IF(Descriptions!K79=\"Clergy and Staffing Costs\",Descriptions!AB79,0)","v":0}]
[{"$f":"IF(Descriptions!K80=\"Clergy and Staffing Costs\",Descriptions!I80,0)","v":0},0,0,0,0,0,0,0,0,0,0,0,0,0,0,0,0,0,0,0,0,0,0,{"$f":"IF(Descriptions!K80=\"Clergy and Staffing Costs\",Descriptions!AB80,0)","v":0}]
[{"$f":"IF(Descriptions!K81=\"Clergy and Staffing Costs\",Descriptions!I81,0)","v":0},0,0,0,0,0,0,0,0,0,0,0,0,0,0,0,0,0,0,0,0,0,0,{"$f":"IF(Descriptions!K81=\"Clergy and Staffing Costs\",Descriptions!AB81,0)","v":0}]
[{"$f":"IF(Descriptions!K82=\"Clergy and Staffing Costs\",Descriptions!I82,0)","v":0},0,0,0,0,0,0,0,0,0,0,0,0,0,0,0,0,0,0,0,0,0,0,{"$f":"IF(Descriptions!K82=\"Clergy and Staffing Costs\",Descriptions!AB82,0)","v":0}]
[{"$f":"IF(Descriptions!K83=\"Clergy and Staffing Costs\",Descriptions!I83,0)","v":0},0,0,0,0,0,0,0,0,0,0,0,0,0,0,0,0,0,0,0,0,0,0,{"$f":"IF(Descriptions!K83=\"Clergy and Staffing Costs\",Descriptions!AB83,0)","v":0}]
[{"$f":"IF(Descriptions!K84=\"Clergy and Staffing Costs\",Descriptions!I84,0)","v":0},0,0,0,0,0,0,0,0,0,0,0,0,0,0,0,0,0,0,0,0,0,0,{"$f":"IF(Descriptions!K84=\"Clergy and Staffing Costs\",Descriptions!AB84,0)","v":0}]
[null,{"$f":"SUM(B622:B674)","v":0},0,0,0,0,0,0,0,0,0,0,0,0,0,0,0,0,0,0,0,0,null,{"$f":"X621","v":0}]
["CHURCH RUNNING EXPENSES",null,null,null,null,null,null,null,null,null,null,null,null,null,null,null,null,null,null,null,null,null,null,{"$f":"SUM(X677:X732)","v":0}]
["Cleaning",0,0,0,0,0,0,0,0,0,0,0,0,0,0,0,0,0,0,0,0,0,{"$f":"SUM(B677:V677)","v":0},{"$f":"Descriptions!AB14","v":0}]
["Gas and Electricity Bill",0,0,0,0,0,0,0,0,0,0,0,0,0,0,0,0,0,0,0,0,0,0,{"$f":"Descriptions!AB18","v":0}]
["Insurance",0,0,0,0,0,0,0,0,0,0,0,0,0,0,0,0,0,0,0,0,0,0,{"$f":"Descriptions!AB20","v":0}]
["Service Costs",0,0,0,0,0,0,0,0,0,0,0,0,0,0,0,0,0,0,0,0,0,0,{"$f":"Descriptions!AB27","v":0}]
["Maintenance",0,0,0,0,0,0,0,0,0,0,0,0,0,0,0,0,0,0,0,0,0,0,{"$f":"Descriptions!AB21","v":0}]
["Water Bill",0,0,0,0,0,0,0,0,0,0,0,0,0,0,0,0,0,0,0,0,0,0,{"$f":"Descriptions!AB34","v":0}]
[{"$f":"IF(Descriptions!K35=\"Church Running Expenses\",Descriptions!I35,0)","v":0},0,0,0,0,0,0,0,0,0,0,0,0,0,0,0,0,0,0,0,0,0,0,{"$f":"IF(Descriptions!K35=\"Church Running Expenses\",Descriptions!AB35,0)","v":0}]
[{"$f":"IF(Descriptions!K36=\"Church Running Expenses\",Descriptions!I36,0)","v":0},0,0,0,0,0,0,0,0,0,0,0,0,0,0,0,0,0,0,0,0,0,0,{"$f":"IF(Descriptions!K36=\"Church Running Expenses\",Descriptions!AB36,0)","v":0}]
[{"$f":"IF(Descriptions!K37=\"Church Running Expenses\",Descriptions!I37,0)","v":0},0,0,0,0,0,0,0,0,0,0,0,0,0,0,0,0,0,0,0,0,0,0,{"$f":"IF(Descriptions!K37=\"Church Running Expenses\",Descriptions!AB37,0)","v":0}]
[{"$f":"IF(Descriptions!K38=\"Church Running Expenses\",Descriptions!I38,0)","v":0},0,0,0,0,0,0,0,0,0,0,0,0,0,0,0,0,0,0,0,0,0,0,{"$f":"IF(Descriptions!K38=\"Church Running Expenses\",Descriptions!AB38,0)","v":0}]
[{"$f":"IF(Descriptions!K39=\"Church Running Expenses\",Descriptions!I39,0)","v":0},0,0,0,0,0,0,0,0,0,0,0,0,0,0,0,0,0,0,0,0,0,0,{"$f":"IF(Descriptions!K39=\"Church Running Expenses\",Descriptions!AB39,0)","v":0}]
[{"$f":"IF(Descriptions!K40=\"Church Running Expenses\",Descriptions!I40,0)","v":0},0,0,0,0,0,0,0,0,0,0,0,0,0,0,0,0,0,0,0,0,0,0,{"$f":"IF(Descriptions!K40=\"Church Running Expenses\",Descriptions!AB40,0)","v":0}]
[{"$f":"IF(Descriptions!K41=\"Church Running Expenses\",Descriptions!I41,0)","v":0},0,0,0,0,0,0,0,0,0,0,0,0,0,0,0,0,0,0,0,0,0,0,{"$f":"IF(Descriptions!K41=\"Church Running Expenses\",Descriptions!AB41,0)","v":0}]
[{"$f":"IF(Descriptions!K42=\"Church Running Expenses\",Descriptions!I42,0)","v":0},0,0,0,0,0,0,0,0,0,0,0,0,0,0,0,0,0,0,0,0,0,0,{"$f":"IF(Descriptions!K42=\"Church Running Expenses\",Descriptions!AB42,0)","v":0}]
[{"$f":"IF(Descriptions!K43=\"Church Running Expenses\",Descriptions!I43,0)","v":0},0,0,0,0,0,0,0,0,0,0,0,0,0,0,0,0,0,0,0,0,0,0,{"$f":"IF(Descriptions!K43=\"Church Running Expenses\",Descriptions!AB43,0)","v":0}]
[{"$f":"IF(Descriptions!K44=\"Church Running Expenses\",Descriptions!I44,0)","v":0},0,0,0,0,0,0,0,0,0,0,0,0,0,0,0,0,0,0,0,0,0,0,{"$f":"IF(Descriptions!K44=\"Church Running Expenses\",Descriptions!AB44,0)","v":0}]
[{"$f":"IF(Descriptions!K45=\"Church Running Expenses\",Descriptions!I45,0)","v":0},0,0,0,0,0,0,0,0,0,0,0,0,0,0,0,0,0,0,0,0,0,0,{"$f":"IF(Descriptions!K45=\"Church Running Expenses\",Descriptions!AB45,0)","v":0}]
[{"$f":"IF(Descriptions!K46=\"Church Running Expenses\",Descriptions!I46,0)","v":0},0,0,0,0,0,0,0,0,0,0,0,0,0,0,0,0,0,0,0,0,0,0,{"$f":"IF(Descriptions!K46=\"Church Running Expenses\",Descriptions!AB46,0)","v":0}]
[{"$f":"IF(Descriptions!K47=\"Church Running Expenses\",Descriptions!I47,0)","v":0},0,0,0,0,0,0,0,0,0,0,0,0,0,0,0,0,0,0,0,0,0,0,{"$f":"IF(Descriptions!K47=\"Church Running Expenses\",Descriptions!AB47,0)","v":0}]
[{"$f":"IF(Descriptions!K48=\"Church Running Expenses\",Descriptions!I48,0)","v":0},0,0,0,0,0,0,0,0,0,0,0,0,0,0,0,0,0,0,0,0,0,0,{"$f":"IF(Descriptions!K48=\"Church Running Expenses\",Descriptions!AB48,0)","v":0}]
[{"$f":"IF(Descriptions!K49=\"Church Running Expenses\",Descriptions!I49,0)","v":0},0,0,0,0,0,0,0,0,0,0,0,0,0,0,0,0,0,0,0,0,0,0,{"$f":"IF(Descriptions!K49=\"Church Running Expenses\",Descriptions!AB49,0)","v":0}]
[{"$f":"IF(Descriptions!K50=\"Church Running Expenses\",Descriptions!I50,0)","v":0},0,0,0,0,0,0,0,0,0,0,0,0,0,0,0,0,0,0,0,0,0,0,{"$f":"IF(Descriptions!K50=\"Church Running Expenses\",Descriptions!AB50,0)","v":0}]
[{"$f":"IF(Descriptions!K51=\"Church Running Expenses\",Descriptions!I51,0)","v":0},0,0,0,0,0,0,0,0,0,0,0,0,0,0,0,0,0,0,0,0,0,0,{"$f":"IF(Descriptions!K51=\"Church Running Expenses\",Descriptions!AB51,0)","v":0}]
[{"$f":"IF(Descriptions!K52=\"Church Running Expenses\",Descriptions!I52,0)","v":0},0,0,0,0,0,0,0,0,0,0,0,0,0,0,0,0,0,0,0,0,0,0,{"$f":"IF(Descriptions!K52=\"Church Running Expenses\",Descriptions!AB52,0)","v":0}]
[{"$f":"IF(Descriptions!K53=\"Church Running Expenses\",Descriptions!I53,0)","v":0},0,0,0,0,0,0,0,0,0,0,0,0,0,0,0,0,0,0,0,0,0,0,{"$f":"IF(Descriptions!K53=\"Church Running Expenses\",Descriptions!AB53,0)","v":0}]
[{"$f":"IF(Descriptions!K54=\"Church Running Expenses\",Descriptions!I54,0)","v":0},0,0,0,0,0,0,0,0,0,0,0,0,0,0,0,0,0,0,0,0,0,0,{"$f":"IF(Descriptions!K54=\"Church Running Expenses\",Descriptions!AB54,0)","v":0}]
[{"$f":"IF(Descriptions!K55=\"Church Running Expenses\",Descriptions!I55,0)","v":0},0,0,0,0,0,0,0,0,0,0,0,0,0,0,0,0,0,0,0,0,0,0,{"$f":"IF(Descriptions!K55=\"Church Running Expenses\",Descriptions!AB55,0)","v":0}]
[{"$f":"IF(Descriptions!K56=\"Church Running Expenses\",Descriptions!I56,0)","v":0},0,0,0,0,0,0,0,0,0,0,0,0,0,0,0,0,0,0,0,0,0,0,{"$f":"IF(Descriptions!K56=\"Church Running Expenses\",Descriptions!AB56,0)","v":0}]
[{"$f":"IF(Descriptions!K57=\"Church Running Expenses\",Descriptions!I57,0)","v":0},0,0,0,0,0,0,0,0,0,0,0,0,0,0,0,0,0,0,0,0,0,0,{"$f":"IF(Descriptions!K57=\"Church Running Expenses\",Descriptions!AB57,0)","v":0}]
[{"$f":"IF(Descriptions!K58=\"Church Running Expenses\",Descriptions!I58,0)","v":0},0,0,0,0,0,0,0,0,0,0,0,0,0,0,0,0,0,0,0,0,0,0,{"$f":"IF(Descriptions!K58=\"Church Running Expenses\",Descriptions!AB58,0)","v":0}]
[{"$f":"IF(Descriptions!K59=\"Church Running Expenses\",Descriptions!I59,0)","v":0},0,0,0,0,0,0,0,0,0,0,0,0,0,0,0,0,0,0,0,0,0,0,{"$f":"IF(Descriptions!K59=\"Church Running Expenses\",Descriptions!AB59,0)","v":0}]
[{"$f":"IF(Descriptions!K60=\"Church Running Expenses\",Descriptions!I60,0)","v":0},0,0,0,0,0,0,0,0,0,0,0,0,0,0,0,0,0,0,0,0,0,0,{"$f":"IF(Descriptions!K60=\"Church Running Expenses\",Descriptions!AB60,0)","v":0}]
[{"$f":"IF(Descriptions!K61=\"Church Running Expenses\",Descriptions!I61,0)","v":0},0,0,0,0,0,0,0,0,0,0,0,0,0,0,0,0,0,0,0,0,0,0,{"$f":"IF(Descriptions!K61=\"Church Running Expenses\",Descriptions!AB61,0)","v":0}]
[{"$f":"IF(Descriptions!K62=\"Church Running Expenses\",Descriptions!I62,0)","v":0},0,0,0,0,0,0,0,0,0,0,0,0,0,0,0,0,0,0,0,0,0,0,{"$f":"IF(Descriptions!K62=\"Church Running Expenses\",Descriptions!AB62,0)","v":0}]
[{"$f":"IF(Descriptions!K63=\"Church Running Expenses\",Descriptions!I63,0)","v":0},0,0,0,0,0,0,0,0,0,0,0,0,0,0,0,0,0,0,0,0,0,0,{"$f":"IF(Descriptions!K63=\"Church Running Expenses\",Descriptions!AB63,0)","v":0}]
[{"$f":"IF(Descriptions!K64=\"Church Running Expenses\",Descriptions!I64,0)","v":0},0,0,0,0,0,0,0,0,0,0,0,0,0,0,0,0,0,0,0,0,0,0,{"$f":"IF(Descriptions!K64=\"Church Running Expenses\",Descriptions!AB64,0)","v":0}]
[{"$f":"IF(Descriptions!K65=\"Church Running Expenses\",Descriptions!I65,0)","v":0},0,0,0,0,0,0,0,0,0,0,0,0,0,0,0,0,0,0,0,0,0,0,{"$f":"IF(Descriptions!K65=\"Church Running Expenses\",Descriptions!AB65,0)","v":0}]
[{"$f":"IF(Descriptions!K66=\"Church Running Expenses\",Descriptions!I66,0)","v":0},0,0,0,0,0,0,0,0,0,0,0,0,0,0,0,0,0,0,0,0,0,0,{"$f":"IF(Descriptions!K66=\"Church Running Expenses\",Descriptions!AB66,0)","v":0}]
[{"$f":"IF(Descriptions!K67=\"Church Running Expenses\",Descriptions!I67,0)","v":0},0,0,0,0,0,0,0,0,0,0,0,0,0,0,0,0,0,0,0,0,0,0,{"$f":"IF(Descriptions!K67=\"Church Running Expenses\",Descriptions!AB67,0)","v":0}]
[{"$f":"IF(Descriptions!K68=\"Church Running Expenses\",Descriptions!I68,0)","v":0},0,0,0,0,0,0,0,0,0,0,0,0,0,0,0,0,0,0,0,0,0,0,{"$f":"IF(Descriptions!K68=\"Church Running Expenses\",Descriptions!AB68,0)","v":0}]
[{"$f":"IF(Descriptions!K69=\"Church Running Expenses\",Descriptions!I69,0)","v":0},0,0,0,0,0,0,0,0,0,0,0,0,0,0,0,0,0,0,0,0,0,0,{"$f":"IF(Descriptions!K69=\"Church Running Expenses\",Descriptions!AB69,0)","v":0}]
[{"$f":"IF(Descriptions!K70=\"Church Running Expenses\",Descriptions!I70,0)","v":0},0,0,0,0,0,0,0,0,0,0,0,0,0,0,0,0,0,0,0,0,0,0,{"$f":"IF(Descriptions!K70=\"Church Running Expenses\",Descriptions!AB70,0)","v":0}]
[{"$f":"IF(Descriptions!K71=\"Church Running Expenses\",Descriptions!I71,0)","v":0},0,0,0,0,0,0,0,0,0,0,0,0,0,0,0,0,0,0,0,0,0,0,{"$f":"IF(Descriptions!K71=\"Church Running Expenses\",Descriptions!AB71,0)","v":0}]
[{"$f":"IF(Descriptions!K72=\"Church Running Expenses\",Descriptions!I72,0)","v":0},0,0,0,0,0,0,0,0,0,0,0,0,0,0,0,0,0,0,0,0,0,0,{"$f":"IF(Descriptions!K72=\"Church Running Expenses\",Descriptions!AB72,0)","v":0}]
[{"$f":"IF(Descriptions!K73=\"Church Running Expenses\",Descriptions!I73,0)","v":0},0,0,0,0,0,0,0,0,0,0,0,0,0,0,0,0,0,0,0,0,0,0,{"$f":"IF(Descriptions!K73=\"Church Running Expenses\",Descriptions!AB73,0)","v":0}]
[{"$f":"IF(Descriptions!K74=\"Church Running Expenses\",Descriptions!I74,0)","v":0},0,0,0,0,0,0,0,0,0,0,0,0,0,0,0,0,0,0,0,0,0,0,{"$f":"IF(Descriptions!K74=\"Church Running Expenses\",Descriptions!AB74,0)","v":0}]
[{"$f":"IF(Descriptions!K75=\"Church Running Expenses\",Descriptions!I75,0)","v":0},0,0,0,0,0,0,0,0,0,0,0,0,0,0,0,0,0,0,0,0,0,0,{"$f":"IF(Descriptions!K75=\"Church Running Expenses\",Descriptions!AB75,0)","v":0}]
[{"$f":"IF(Descriptions!K76=\"Church Running Expenses\",Descriptions!I76,0)","v":0},0,0,0,0,0,0,0,0,0,0,0,0,0,0,0,0,0,0,0,0,0,0,{"$f":"IF(Descriptions!K76=\"Church Running Expenses\",Descriptions!AB76,0)","v":0}]
[{"$f":"IF(Descriptions!K77=\"Church Running Expenses\",Descriptions!I77,0)","v":0},0,0,0,0,0,0,0,0,0,0,0,0,0,0,0,0,0,0,0,0,0,0,{"$f":"IF(Descriptions!K77=\"Church Running Expenses\",Descriptions!AB77,0)","v":0}]
[{"$f":"IF(Descriptions!K78=\"Church Running Expenses\",Descriptions!I78,0)","v":0},0,0,0,0,0,0,0,0,0,0,0,0,0,0,0,0,0,0,0,0,0,0,{"$f":"IF(Descriptions!K78=\"Church Running Expenses\",Descriptions!AB78,0)","v":0}]
[{"$f":"IF(Descriptions!K79=\"Church Running Expenses\",Descriptions!I79,0)","v":0},0,0,0,0,0,0,0,0,0,0,0,0,0,0,0,0,0,0,0,0,0,0,{"$f":"IF(Descriptions!K79=\"Church Running Expenses\",Descriptions!AB79,0)","v":0}]
[{"$f":"IF(Descriptions!K80=\"Church Running Expenses\",Descriptions!I80,0)","v":0},0,0,0,0,0,0,0,0,0,0,0,0,0,0,0,0,0,0,0,0,0,0,{"$f":"IF(Descriptions!K80=\"Church Running Expenses\",Descriptions!AB80,0)","v":0}]
[{"$f":"IF(Descriptions!K81=\"Church Running Expenses\",Descriptions!I81,0)","v":0},0,0,0,0,0,0,0,0,0,0,0,0,0,0,0,0,0,0,0,0,0,0,{"$f":"IF(Descriptions!K81=\"Church Running Expenses\",Descriptions!AB81,0)","v":0}]
[{"$f":"IF(Descriptions!K82=\"Church Running Expenses\",Descriptions!I82,0)","v":0},0,0,0,0,0,0,0,0,0,0,0,0,0,0,0,0,0,0,0,0,0,0,{"$f":"IF(Descriptions!K82=\"Church Running Expenses\",Descriptions!AB82,0)","v":0}]
[{"$f":"IF(Descriptions!K83=\"Church Running Expenses\",Descriptions!I83,0)","v":0},0,0,0,0,0,0,0,0,0,0,0,0,0,0,0,0,0,0,0,0,0,0,{"$f":"IF(Descriptions!K83=\"Church Running Expenses\",Descriptions!AB83,0)","v":0}]
[{"$f":"IF(Descriptions!K84=\"Church Running Expenses\",Descriptions!I84,0)","v":0},0,0,0,0,0,0,0,0,0,0,0,0,0,0,0,0,0,0,0,0,0,0,{"$f":"IF(Descriptions!K84=\"Church Running Expenses\",Descriptions!AB84,0)","v":0}]
[null,{"$f":"SUM(B677:B732)","v":0},0,0,0,0,0,0,0,0,0,0,0,0,0,0,0,0,0,0,0,0,null,{"$f":"X676","v":0}]
["MISSION GIVING AND DONATIONS",null,null,null,null,null,null,null,null,null,null,null,null,null,null,null,null,null,null,null,null,null,null,{"$f":"SUM(X735:X788)","v":0}]
["Charities - Home (UK)",0,0,0,0,0,0,0,0,0,0,0,0,0,0,0,0,0,0,0,0,0,{"$f":"SUM(B735:V735)","v":0},{"$f":"Descriptions!AB9","v":0}]
["Charities - Overseas",0,0,0,0,0,0,0,0,0,0,0,0,0,0,0,0,0,0,0,0,0,0,{"$f":"Descriptions!AB10","v":0}]
["Charities - Secular",0,0,0,0,0,0,0,0,0,0,0,0,0,0,0,0,0,0,0,0,0,0,{"$f":"Descriptions!AB11","v":0}]
["Charities - Christian Relief",0,0,0,0,0,0,0,0,0,0,0,0,0,0,0,0,0,0,0,0,0,0,{"$f":"Descriptions!AB8","v":0}]
[{"$f":"IF(Descriptions!K35=\"Mission Giving and Donations\",Descriptions!I35,0)","v":0},0,0,0,0,0,0,0,0,0,0,0,0,0,0,0,0,0,0,0,0,0,0,{"$f":"IF(Descriptions!K35=\"Mission Giving and Donations\",Descriptions!AB35,0)","v":0}]
[{"$f":"IF(Descriptions!K36=\"Mission Giving and Donations\",Descriptions!I36,0)","v":0},0,0,0,0,0,0,0,0,0,0,0,0,0,0,0,0,0,0,0,0,0,0,{"$f":"IF(Descriptions!K36=\"Mission Giving and Donations\",Descriptions!AB36,0)","v":0}]
[{"$f":"IF(Descriptions!K37=\"Mission Giving and Donations\",Descriptions!I37,0)","v":0},0,0,0,0,0,0,0,0,0,0,0,0,0,0,0,0,0,0,0,0,0,0,{"$f":"IF(Descriptions!K37=\"Mission Giving and Donations\",Descriptions!AB37,0)","v":0}]
[{"$f":"IF(Descriptions!K38=\"Mission Giving and Donations\",Descriptions!I38,0)","v":0},0,0,0,0,0,0,0,0,0,0,0,0,0,0,0,0,0,0,0,0,0,0,{"$f":"IF(Descriptions!K38=\"Mission Giving and Donations\",Descriptions!AB38,0)","v":0}]
[{"$f":"IF(Descriptions!K39=\"Mission Giving and Donations\",Descriptions!I39,0)","v":0},0,0,0,0,0,0,0,0,0,0,0,0,0,0,0,0,0,0,0,0,0,0,{"$f":"IF(Descriptions!K39=\"Mission Giving and Donations\",Descriptions!AB39,0)","v":0}]
[{"$f":"IF(Descriptions!K40=\"Mission Giving and Donations\",Descriptions!I40,0)","v":0},0,0,0,0,0,0,0,0,0,0,0,0,0,0,0,0,0,0,0,0,0,0,{"$f":"IF(Descriptions!K40=\"Mission Giving and Donations\",Descriptions!AB40,0)","v":0}]
[{"$f":"IF(Descriptions!K41=\"Mission Giving and Donations\",Descriptions!I41,0)","v":0},0,0,0,0,0,0,0,0,0,0,0,0,0,0,0,0,0,0,0,0,0,0,{"$f":"IF(Descriptions!K41=\"Mission Giving and Donations\",Descriptions!AB41,0)","v":0}]
[{"$f":"IF(Descriptions!K42=\"Mission Giving and Donations\",Descriptions!I42,0)","v":0},0,0,0,0,0,0,0,0,0,0,0,0,0,0,0,0,0,0,0,0,0,0,{"$f":"IF(Descriptions!K42=\"Mission Giving and Donations\",Descriptions!AB42,0)","v":0}]
[{"$f":"IF(Descriptions!K43=\"Mission Giving and Donations\",Descriptions!I43,0)","v":0},0,0,0,0,0,0,0,0,0,0,0,0,0,0,0,0,0,0,0,0,0,0,{"$f":"IF(Descriptions!K43=\"Mission Giving and Donations\",Descriptions!AB43,0)","v":0}]
[{"$f":"IF(Descriptions!K44=\"Mission Giving and Donations\",Descriptions!I44,0)","v":0},0,0,0,0,0,0,0,0,0,0,0,0,0,0,0,0,0,0,0,0,0,0,{"$f":"IF(Descriptions!K44=\"Mission Giving and Donations\",Descriptions!AB44,0)","v":0}]
[{"$f":"IF(Descriptions!K45=\"Mission Giving and Donations\",Descriptions!I45,0)","v":0},0,0,0,0,0,0,0,0,0,0,0,0,0,0,0,0,0,0,0,0,0,0,{"$f":"IF(Descriptions!K45=\"Mission Giving and Donations\",Descriptions!AB45,0)","v":0}]
[{"$f":"IF(Descriptions!K46=\"Mission Giving and Donations\",Descriptions!I46,0)","v":0},0,0,0,0,0,0,0,0,0,0,0,0,0,0,0,0,0,0,0,0,0,0,{"$f":"IF(Descriptions!K46=\"Mission Giving and Donations\",Descriptions!AB46,0)","v":0}]
[{"$f":"IF(Descriptions!K47=\"Mission Giving and Donations\",Descriptions!I47,0)","v":0},0,0,0,0,0,0,0,0,0,0,0,0,0,0,0,0,0,0,0,0,0,0,{"$f":"IF(Descriptions!K47=\"Mission Giving and Donations\",Descriptions!AB47,0)","v":0}]
[{"$f":"IF(Descriptions!K48=\"Mission Giving and Donations\",Descriptions!I48,0)","v":0},0,0,0,0,0,0,0,0,0,0,0,0,0,0,0,0,0,0,0,0,0,0,{"$f":"IF(Descriptions!K48=\"Mission Giving and Donations\",Descriptions!AB48,0)","v":0}]
[{"$f":"IF(Descriptions!K49=\"Mission Giving and Donations\",Descriptions!I49,0)","v":0},0,0,0,0,0,0,0,0,0,0,0,0,0,0,0,0,0,0,0,0,0,0,{"$f":"IF(Descriptions!K49=\"Mission Giving and Donations\",Descriptions!AB49,0)","v":0}]
[{"$f":"IF(Descriptions!K50=\"Mission Giving and Donations\",Descriptions!I50,0)","v":0},0,0,0,0,0,0,0,0,0,0,0,0,0,0,0,0,0,0,0,0,0,0,{"$f":"IF(Descriptions!K50=\"Mission Giving and Donations\",Descriptions!AB50,0)","v":0}]
[{"$f":"IF(Descriptions!K51=\"Mission Giving and Donations\",Descriptions!I51,0)","v":0},0,0,0,0,0,0,0,0,0,0,0,0,0,0,0,0,0,0,0,0,0,0,{"$f":"IF(Descriptions!K51=\"Mission Giving and Donations\",Descriptions!AB51,0)","v":0}]
[{"$f":"IF(Descriptions!K52=\"Mission Giving and Donations\",Descriptions!I52,0)","v":0},0,0,0,0,0,0,0,0,0,0,0,0,0,0,0,0,0,0,0,0,0,0,{"$f":"IF(Descriptions!K52=\"Mission Giving and Donations\",Descriptions!AB52,0)","v":0}]
[{"$f":"IF(Descriptions!K53=\"Mission Giving and Donations\",Descriptions!I53,0)","v":0},0,0,0,0,0,0,0,0,0,0,0,0,0,0,0,0,0,0,0,0,0,0,{"$f":"IF(Descriptions!K53=\"Mission Giving and Donations\",Descriptions!AB53,0)","v":0}]
[{"$f":"IF(Descriptions!K54=\"Mission Giving and Donations\",Descriptions!I54,0)","v":0},0,0,0,0,0,0,0,0,0,0,0,0,0,0,0,0,0,0,0,0,0,0,{"$f":"IF(Descriptions!K54=\"Mission Giving and Donations\",Descriptions!AB54,0)","v":0}]
[{"$f":"IF(Descriptions!K55=\"Mission Giving and Donations\",Descriptions!I55,0)","v":0},0,0,0,0,0,0,0,0,0,0,0,0,0,0,0,0,0,0,0,0,0,0,{"$f":"IF(Descriptions!K55=\"Mission Giving and Donations\",Descriptions!AB55,0)","v":0}]
[{"$f":"IF(Descriptions!K56=\"Mission Giving and Donations\",Descriptions!I56,0)","v":0},0,0,0,0,0,0,0,0,0,0,0,0,0,0,0,0,0,0,0,0,0,0,{"$f":"IF(Descriptions!K56=\"Mission Giving and Donations\",Descriptions!AB56,0)","v":0}]
[{"$f":"IF(Descriptions!K57=\"Mission Giving and Donations\",Descriptions!I57,0)","v":0},0,0,0,0,0,0,0,0,0,0,0,0,0,0,0,0,0,0,0,0,0,0,{"$f":"IF(Descriptions!K57=\"Mission Giving and Donations\",Descriptions!AB57,0)","v":0}]
[{"$f":"IF(Descriptions!K58=\"Mission Giving and Donations\",Descriptions!I58,0)","v":0},0,0,0,0,0,0,0,0,0,0,0,0,0,0,0,0,0,0,0,0,0,0,{"$f":"IF(Descriptions!K58=\"Mission Giving and Donations\",Descriptions!AB58,0)","v":0}]
[{"$f":"IF(Descriptions!K59=\"Mission Giving and Donations\",Descriptions!I59,0)","v":0},0,0,0,0,0,0,0,0,0,0,0,0,0,0,0,0,0,0,0,0,0,0,{"$f":"IF(Descriptions!K59=\"Mission Giving and Donations\",Descriptions!AB59,0)","v":0}]
[{"$f":"IF(Descriptions!K60=\"Mission Giving and Donations\",Descriptions!I60,0)","v":0},0,0,0,0,0,0,0,0,0,0,0,0,0,0,0,0,0,0,0,0,0,0,{"$f":"IF(Descriptions!K60=\"Mission Giving and Donations\",Descriptions!AB60,0)","v":0}]
[{"$f":"IF(Descriptions!K61=\"Mission Giving and Donations\",Descriptions!I61,0)","v":0},0,0,0,0,0,0,0,0,0,0,0,0,0,0,0,0,0,0,0,0,0,0,{"$f":"IF(Descriptions!K61=\"Mission Giving and Donations\",Descriptions!AB61,0)","v":0}]
[{"$f":"IF(Descriptions!K62=\"Mission Giving and Donations\",Descriptions!I62,0)","v":0},0,0,0,0,0,0,0,0,0,0,0,0,0,0,0,0,0,0,0,0,0,0,{"$f":"IF(Descriptions!K62=\"Mission Giving and Donations\",Descriptions!AB62,0)","v":0}]
[{"$f":"IF(Descriptions!K63=\"Mission Giving and Donations\",Descriptions!I63,0)","v":0},0,0,0,0,0,0,0,0,0,0,0,0,0,0,0,0,0,0,0,0,0,0,{"$f":"IF(Descriptions!K63=\"Mission Giving and Donations\",Descriptions!AB63,0)","v":0}]
[{"$f":"IF(Descriptions!K64=\"Mission Giving and Donations\",Descriptions!I64,0)","v":0},0,0,0,0,0,0,0,0,0,0,0,0,0,0,0,0,0,0,0,0,0,0,{"$f":"IF(Descriptions!K64=\"Mission Giving and Donations\",Descriptions!AB64,0)","v":0}]
[{"$f":"IF(Descriptions!K65=\"Mission Giving and Donations\",Descriptions!I65,0)","v":0},0,0,0,0,0,0,0,0,0,0,0,0,0,0,0,0,0,0,0,0,0,0,{"$f":"IF(Descriptions!K65=\"Mission Giving and Donations\",Descriptions!AB65,0)","v":0}]
[{"$f":"IF(Descriptions!K66=\"Mission Giving and Donations\",Descriptions!I66,0)","v":0},0,0,0,0,0,0,0,0,0,0,0,0,0,0,0,0,0,0,0,0,0,0,{"$f":"IF(Descriptions!K66=\"Mission Giving and Donations\",Descriptions!AB66,0)","v":0}]
[{"$f":"IF(Descriptions!K67=\"Mission Giving and Donations\",Descriptions!I67,0)","v":0},0,0,0,0,0,0,0,0,0,0,0,0,0,0,0,0,0,0,0,0,0,0,{"$f":"IF(Descriptions!K67=\"Mission Giving and Donations\",Descriptions!AB67,0)","v":0}]
[{"$f":"IF(Descriptions!K68=\"Mission Giving and Donations\",Descriptions!I68,0)","v":0},0,0,0,0,0,0,0,0,0,0,0,0,0,0,0,0,0,0,0,0,0,0,{"$f":"IF(Descriptions!K68=\"Mission Giving and Donations\",Descriptions!AB68,0)","v":0}]
[{"$f":"IF(Descriptions!K69=\"Mission Giving and Donations\",Descriptions!I69,0)","v":0},0,0,0,0,0,0,0,0,0,0,0,0,0,0,0,0,0,0,0,0,0,0,{"$f":"IF(Descriptions!K69=\"Mission Giving and Donations\",Descriptions!AB69,0)","v":0}]
[{"$f":"IF(Descriptions!K70=\"Mission Giving and Donations\",Descriptions!I70,0)","v":0},0,0,0,0,0,0,0,0,0,0,0,0,0,0,0,0,0,0,0,0,0,0,{"$f":"IF(Descriptions!K70=\"Mission Giving and Donations\",Descriptions!AB70,0)","v":0}]
[{"$f":"IF(Descriptions!K71=\"Mission Giving and Donations\",Descriptions!I71,0)","v":0},0,0,0,0,0,0,0,0,0,0,0,0,0,0,0,0,0,0,0,0,0,0,{"$f":"IF(Descriptions!K71=\"Mission Giving and Donations\",Descriptions!AB71,0)","v":0}]
[{"$f":"IF(Descriptions!K72=\"Mission Giving and Donations\",Descriptions!I72,0)","v":0},0,0,0,0,0,0,0,0,0,0,0,0,0,0,0,0,0,0,0,0,0,0,{"$f":"IF(Descriptions!K72=\"Mission Giving and Donations\",Descriptions!AB72,0)","v":0}]
[{"$f":"IF(Descriptions!K73=\"Mission Giving and Donations\",Descriptions!I73,0)","v":0},0,0,0,0,0,0,0,0,0,0,0,0,0,0,0,0,0,0,0,0,0,0,{"$f":"IF(Descriptions!K73=\"Mission Giving and Donations\",Descriptions!AB73,0)","v":0}]
[{"$f":"IF(Descriptions!K74=\"Mission Giving and Donations\",Descriptions!I74,0)","v":0},0,0,0,0,0,0,0,0,0,0,0,0,0,0,0,0,0,0,0,0,0,0,{"$f":"IF(Descriptions!K74=\"Mission Giving and Donations\",Descriptions!AB74,0)","v":0}]
[{"$f":"IF(Descriptions!K75=\"Mission Giving and Donations\",Descriptions!I75,0)","v":0},0,0,0,0,0,0,0,0,0,0,0,0,0,0,0,0,0,0,0,0,0,0,{"$f":"IF(Descriptions!K75=\"Mission Giving and Donations\",Descriptions!AB75,0)","v":0}]
[{"$f":"IF(Descriptions!K76=\"Mission Giving and Donations\",Descriptions!I76,0)","v":0},0,0,0,0,0,0,0,0,0,0,0,0,0,0,0,0,0,0,0,0,0,0,{"$f":"IF(Descriptions!K76=\"Mission Giving and Donations\",Descriptions!AB76,0)","v":0}]
[{"$f":"IF(Descriptions!K77=\"Mission Giving and Donations\",Descriptions!I77,0)","v":0},0,0,0,0,0,0,0,0,0,0,0,0,0,0,0,0,0,0,0,0,0,0,{"$f":"IF(Descriptions!K77=\"Mission Giving and Donations\",Descriptions!AB77,0)","v":0}]
[{"$f":"IF(Descriptions!K78=\"Mission Giving and Donations\",Descriptions!I78,0)","v":0},0,0,0,0,0,0,0,0,0,0,0,0,0,0,0,0,0,0,0,0,0,0,{"$f":"IF(Descriptions!K78=\"Mission Giving and Donations\",Descriptions!AB78,0)","v":0}]
[{"$f":"IF(Descriptions!K79=\"Mission Giving and Donations\",Descriptions!I79,0)","v":0},0,0,0,0,0,0,0,0,0,0,0,0,0,0,0,0,0,0,0,0,0,0,{"$f":"IF(Descriptions!K79=\"Mission Giving and Donations\",Descriptions!AB79,0)","v":0}]
[{"$f":"IF(Descriptions!K80=\"Mission Giving and Donations\",Descriptions!I80,0)","v":0},0,0,0,0,0,0,0,0,0,0,0,0,0,0,0,0,0,0,0,0,0,0,{"$f":"IF(Descriptions!K80=\"Mission Giving and Donations\",Descriptions!AB80,0)","v":0}]
[{"$f":"IF(Descriptions!K81=\"Mission Giving and Donations\",Descriptions!I81,0)","v":0},0,0,0,0,0,0,0,0,0,0,0,0,0,0,0,0,0,0,0,0,0,0,{"$f":"IF(Descriptions!K81=\"Mission Giving and Donations\",Descriptions!AB81,0)","v":0}]
[{"$f":"IF(Descriptions!K82=\"Mission Giving and Donations\",Descriptions!I82,0)","v":0},0,0,0,0,0,0,0,0,0,0,0,0,0,0,0,0,0,0,0,0,0,0,{"$f":"IF(Descriptions!K82=\"Mission Giving and Donations\",Descriptions!AB82,0)","v":0}]
[{"$f":"IF(Descriptions!K83=\"Mission Giving and Donations\",Descriptions!I83,0)","v":0},0,0,0,0,0,0,0,0,0,0,0,0,0,0,0,0,0,0,0,0,0,0,{"$f":"IF(Descriptions!K83=\"Mission Giving and Donations\",Descriptions!AB83,0)","v":0}]
[{"$f":"IF(Descriptions!K84=\"Mission Giving and Donations\",Descriptions!I84,0)","v":0},0,0,0,0,0,0,0,0,0,0,0,0,0,0,0,0,0,0,0,0,0,0,{"$f":"IF(Descriptions!K84=\"Mission Giving and Donations\",Descriptions!AB84,0)","v":0}]
[null,{"$f":"SUM(B735:B788)","v":0},0,0,0,0,0,0,0,0,0,0,0,0,0,0,0,0,0,0,0,0,null,{"$f":"X734","v":0}]
["BUILDING WORK AND REPAIRS",null,null,null,null,null,null,null,null,null,null,null,null,null,null,null,null,null,null,null,null,null,null,{"$f":"SUM(X791:X843)","v":0}]
["Church - Major repairs and Redecorations",0,0,0,0,0,0,0,0,0,0,0,0,0,0,0,0,0,0,0,0,0,{"$f":"SUM(B791:V791)","v":0},{"$f":"Descriptions!AB12","v":0}]
["Hall/Other Buildings - Major Repairs and Redecorations",0,0,0,0,0,0,0,0,0,0,0,0,0,0,0,0,0,0,0,0,0,0,{"$f":"Descriptions!AB19","v":0}]
["New Building Work",0,0,0,0,0,0,0,0,0,0,0,0,0,0,0,0,0,0,0,0,0,0,{"$f":"Descriptions!AB23","v":0}]
[{"$f":"IF(Descriptions!K35=\"Building Work and Repairs\",Descriptions!I35,0)","v":0},0,0,0,0,0,0,0,0,0,0,0,0,0,0,0,0,0,0,0,0,0,0,{"$f":"IF(Descriptions!K35=\"Building Work and Repairs\",Descriptions!AB35,0)","v":0}]
[{"$f":"IF(Descriptions!K36=\"Building Work and Repairs\",Descriptions!I36,0)","v":0},0,0,0,0,0,0,0,0,0,0,0,0,0,0,0,0,0,0,0,0,0,0,{"$f":"IF(Descriptions!K36=\"Building Work and Repairs\",Descriptions!AB36,0)","v":0}]
[{"$f":"IF(Descriptions!K37=\"Building Work and Repairs\",Descriptions!I37,0)","v":0},0,0,0,0,0,0,0,0,0,0,0,0,0,0,0,0,0,0,0,0,0,0,{"$f":"IF(Descriptions!K37=\"Building Work and Repairs\",Descriptions!AB37,0)","v":0}]
[{"$f":"IF(Descriptions!K38=\"Building Work and Repairs\",Descriptions!I38,0)","v":0},0,0,0,0,0,0,0,0,0,0,0,0,0,0,0,0,0,0,0,0,0,0,{"$f":"IF(Descriptions!K38=\"Building Work and Repairs\",Descriptions!AB38,0)","v":0}]
[{"$f":"IF(Descriptions!K39=\"Building Work and Repairs\",Descriptions!I39,0)","v":0},0,0,0,0,0,0,0,0,0,0,0,0,0,0,0,0,0,0,0,0,0,0,{"$f":"IF(Descriptions!K39=\"Building Work and Repairs\",Descriptions!AB39,0)","v":0}]
[{"$f":"IF(Descriptions!K40=\"Building Work and Repairs\",Descriptions!I40,0)","v":0},0,0,0,0,0,0,0,0,0,0,0,0,0,0,0,0,0,0,0,0,0,0,{"$f":"IF(Descriptions!K40=\"Building Work and Repairs\",Descriptions!AB40,0)","v":0}]
[{"$f":"IF(Descriptions!K41=\"Building Work and Repairs\",Descriptions!I41,0)","v":0},0,0,0,0,0,0,0,0,0,0,0,0,0,0,0,0,0,0,0,0,0,0,{"$f":"IF(Descriptions!K41=\"Building Work and Repairs\",Descriptions!AB41,0)","v":0}]
[{"$f":"IF(Descriptions!K42=\"Building Work and Repairs\",Descriptions!I42,0)","v":0},0,0,0,0,0,0,0,0,0,0,0,0,0,0,0,0,0,0,0,0,0,0,{"$f":"IF(Descriptions!K42=\"Building Work and Repairs\",Descriptions!AB42,0)","v":0}]
[{"$f":"IF(Descriptions!K43=\"Building Work and Repairs\",Descriptions!I43,0)","v":0},0,0,0,0,0,0,0,0,0,0,0,0,0,0,0,0,0,0,0,0,0,0,{"$f":"IF(Descriptions!K43=\"Building Work and Repairs\",Descriptions!AB43,0)","v":0}]
[{"$f":"IF(Descriptions!K44=\"Building Work and Repairs\",Descriptions!I44,0)","v":0},0,0,0,0,0,0,0,0,0,0,0,0,0,0,0,0,0,0,0,0,0,0,{"$f":"IF(Descriptions!K44=\"Building Work and Repairs\",Descriptions!AB44,0)","v":0}]
[{"$f":"IF(Descriptions!K45=\"Building Work and Repairs\",Descriptions!I45,0)","v":0},0,0,0,0,0,0,0,0,0,0,0,0,0,0,0,0,0,0,0,0,0,0,{"$f":"IF(Descriptions!K45=\"Building Work and Repairs\",Descriptions!AB45,0)","v":0}]
[{"$f":"IF(Descriptions!K46=\"Building Work and Repairs\",Descriptions!I46,0)","v":0},0,0,0,0,0,0,0,0,0,0,0,0,0,0,0,0,0,0,0,0,0,0,{"$f":"IF(Descriptions!K46=\"Building Work and Repairs\",Descriptions!AB46,0)","v":0}]
[{"$f":"IF(Descriptions!K47=\"Building Work and Repairs\",Descriptions!I47,0)","v":0},0,0,0,0,0,0,0,0,0,0,0,0,0,0,0,0,0,0,0,0,0,0,{"$f":"IF(Descriptions!K47=\"Building Work and Repairs\",Descriptions!AB47,0)","v":0}]
[{"$f":"IF(Descriptions!K48=\"Building Work and Repairs\",Descriptions!I48,0)","v":0},0,0,0,0,0,0,0,0,0,0,0,0,0,0,0,0,0,0,0,0,0,0,{"$f":"IF(Descriptions!K48=\"Building Work and Repairs\",Descriptions!AB48,0)","v":0}]
[{"$f":"IF(Descriptions!K49=\"Building Work and Repairs\",Descriptions!I49,0)","v":0},0,0,0,0,0,0,0,0,0,0,0,0,0,0,0,0,0,0,0,0,0,0,{"$f":"IF(Descriptions!K49=\"Building Work and Repairs\",Descriptions!AB49,0)","v":0}]
[{"$f":"IF(Descriptions!K50=\"Building Work and Repairs\",Descriptions!I50,0)","v":0},0,0,0,0,0,0,0,0,0,0,0,0,0,0,0,0,0,0,0,0,0,0,{"$f":"IF(Descriptions!K50=\"Building Work and Repairs\",Descriptions!AB50,0)","v":0}]
[{"$f":"IF(Descriptions!K51=\"Building Work and Repairs\",Descriptions!I51,0)","v":0},0,0,0,0,0,0,0,0,0,0,0,0,0,0,0,0,0,0,0,0,0,0,{"$f":"IF(Descriptions!K51=\"Building Work and Repairs\",Descriptions!AB51,0)","v":0}]
[{"$f":"IF(Descriptions!K52=\"Building Work and Repairs\",Descriptions!I52,0)","v":0},0,0,0,0,0,0,0,0,0,0,0,0,0,0,0,0,0,0,0,0,0,0,{"$f":"IF(Descriptions!K52=\"Building Work and Repairs\",Descriptions!AB52,0)","v":0}]
[{"$f":"IF(Descriptions!K53=\"Building Work and Repairs\",Descriptions!I53,0)","v":0},0,0,0,0,0,0,0,0,0,0,0,0,0,0,0,0,0,0,0,0,0,0,{"$f":"IF(Descriptions!K53=\"Building Work and Repairs\",Descriptions!AB53,0)","v":0}]
[{"$f":"IF(Descriptions!K54=\"Building Work and Repairs\",Descriptions!I54,0)","v":0},0,0,0,0,0,0,0,0,0,0,0,0,0,0,0,0,0,0,0,0,0,0,{"$f":"IF(Descriptions!K54=\"Building Work and Repairs\",Descriptions!AB54,0)","v":0}]
[{"$f":"IF(Descriptions!K55=\"Building Work and Repairs\",Descriptions!I55,0)","v":0},0,0,0,0,0,0,0,0,0,0,0,0,0,0,0,0,0,0,0,0,0,0,{"$f":"IF(Descriptions!K55=\"Building Work and Repairs\",Descriptions!AB55,0)","v":0}]
[{"$f":"IF(Descriptions!K56=\"Building Work and Repairs\",Descriptions!I56,0)","v":0},0,0,0,0,0,0,0,0,0,0,0,0,0,0,0,0,0,0,0,0,0,0,{"$f":"IF(Descriptions!K56=\"Building Work and Repairs\",Descriptions!AB56,0)","v":0}]
[{"$f":"IF(Descriptions!K57=\"Building Work and Repairs\",Descriptions!I57,0)","v":0},0,0,0,0,0,0,0,0,0,0,0,0,0,0,0,0,0,0,0,0,0,0,{"$f":"IF(Descriptions!K57=\"Building Work and Repairs\",Descriptions!AB57,0)","v":0}]
[{"$f":"IF(Descriptions!K58=\"Building Work and Repairs\",Descriptions!I58,0)","v":0},0,0,0,0,0,0,0,0,0,0,0,0,0,0,0,0,0,0,0,0,0,0,{"$f":"IF(Descriptions!K58=\"Building Work and Repairs\",Descriptions!AB58,0)","v":0}]
[{"$f":"IF(Descriptions!K59=\"Building Work and Repairs\",Descriptions!I59,0)","v":0},0,0,0,0,0,0,0,0,0,0,0,0,0,0,0,0,0,0,0,0,0,0,{"$f":"IF(Descriptions!K59=\"Building Work and Repairs\",Descriptions!AB59,0)","v":0}]
[{"$f":"IF(Descriptions!K60=\"Building Work and Repairs\",Descriptions!I60,0)","v":0},0,0,0,0,0,0,0,0,0,0,0,0,0,0,0,0,0,0,0,0,0,0,{"$f":"IF(Descriptions!K60=\"Building Work and Repairs\",Descriptions!AB60,0)","v":0}]
[{"$f":"IF(Descriptions!K61=\"Building Work and Repairs\",Descriptions!I61,0)","v":0},0,0,0,0,0,0,0,0,0,0,0,0,0,0,0,0,0,0,0,0,0,0,{"$f":"IF(Descriptions!K61=\"Building Work and Repairs\",Descriptions!AB61,0)","v":0}]
[{"$f":"IF(Descriptions!K62=\"Building Work and Repairs\",Descriptions!I62,0)","v":0},0,0,0,0,0,0,0,0,0,0,0,0,0,0,0,0,0,0,0,0,0,0,{"$f":"IF(Descriptions!K62=\"Building Work and Repairs\",Descriptions!AB62,0)","v":0}]
[{"$f":"IF(Descriptions!K63=\"Building Work and Repairs\",Descriptions!I63,0)","v":0},0,0,0,0,0,0,0,0,0,0,0,0,0,0,0,0,0,0,0,0,0,0,{"$f":"IF(Descriptions!K63=\"Building Work and Repairs\",Descriptions!AB63,0)","v":0}]
[{"$f":"IF(Descriptions!K64=\"Building Work and Repairs\",Descriptions!I64,0)","v":0},0,0,0,0,0,0,0,0,0,0,0,0,0,0,0,0,0,0,0,0,0,0,{"$f":"IF(Descriptions!K64=\"Building Work and Repairs\",Descriptions!AB64,0)","v":0}]
[{"$f":"IF(Descriptions!K65=\"Building Work and Repairs\",Descriptions!I65,0)","v":0},0,0,0,0,0,0,0,0,0,0,0,0,0,0,0,0,0,0,0,0,0,0,{"$f":"IF(Descriptions!K65=\"Building Work and Repairs\",Descriptions!AB65,0)","v":0}]
[{"$f":"IF(Descriptions!K66=\"Building Work and Repairs\",Descriptions!I66,0)","v":0},0,0,0,0,0,0,0,0,0,0,0,0,0,0,0,0,0,0,0,0,0,0,{"$f":"IF(Descriptions!K66=\"Building Work and Repairs\",Descriptions!AB66,0)","v":0}]
[{"$f":"IF(Descriptions!K67=\"Building Work and Repairs\",Descriptions!I67,0)","v":0},0,0,0,0,0,0,0,0,0,0,0,0,0,0,0,0,0,0,0,0,0,0,{"$f":"IF(Descriptions!K67=\"Building Work and Repairs\",Descriptions!AB67,0)","v":0}]
[{"$f":"IF(Descriptions!K68=\"Building Work and Repairs\",Descriptions!I68,0)","v":0},0,0,0,0,0,0,0,0,0,0,0,0,0,0,0,0,0,0,0,0,0,0,{"$f":"IF(Descriptions!K68=\"Building Work and Repairs\",Descriptions!AB68,0)","v":0}]
[{"$f":"IF(Descriptions!K69=\"Building Work and Repairs\",Descriptions!I69,0)","v":0},0,0,0,0,0,0,0,0,0,0,0,0,0,0,0,0,0,0,0,0,0,0,{"$f":"IF(Descriptions!K69=\"Building Work and Repairs\",Descriptions!AB69,0)","v":0}]
[{"$f":"IF(Descriptions!K70=\"Building Work and Repairs\",Descriptions!I70,0)","v":0},0,0,0,0,0,0,0,0,0,0,0,0,0,0,0,0,0,0,0,0,0,0,{"$f":"IF(Descriptions!K70=\"Building Work and Repairs\",Descriptions!AB70,0)","v":0}]
[{"$f":"IF(Descriptions!K71=\"Building Work and Repairs\",Descriptions!I71,0)","v":0},0,0,0,0,0,0,0,0,0,0,0,0,0,0,0,0,0,0,0,0,0,0,{"$f":"IF(Descriptions!K71=\"Building Work and Repairs\",Descriptions!AB71,0)","v":0}]
[{"$f":"IF(Descriptions!K72=\"Building Work and Repairs\",Descriptions!I72,0)","v":0},0,0,0,0,0,0,0,0,0,0,0,0,0,0,0,0,0,0,0,0,0,0,{"$f":"IF(Descriptions!K72=\"Building Work and Repairs\",Descriptions!AB72,0)","v":0}]
[{"$f":"IF(Descriptions!K73=\"Building Work and Repairs\",Descriptions!I73,0)","v":0},0,0,0,0,0,0,0,0,0,0,0,0,0,0,0,0,0,0,0,0,0,0,{"$f":"IF(Descriptions!K73=\"Building Work and Repairs\",Descriptions!AB73,0)","v":0}]
[{"$f":"IF(Descriptions!K74=\"Building Work and Repairs\",Descriptions!I74,0)","v":0},0,0,0,0,0,0,0,0,0,0,0,0,0,0,0,0,0,0,0,0,0,0,{"$f":"IF(Descriptions!K74=\"Building Work and Repairs\",Descriptions!AB74,0)","v":0}]
[{"$f":"IF(Descriptions!K75=\"Building Work and Repairs\",Descriptions!I75,0)","v":0},0,0,0,0,0,0,0,0,0,0,0,0,0,0,0,0,0,0,0,0,0,0,{"$f":"IF(Descriptions!K75=\"Building Work and Repairs\",Descriptions!AB75,0)","v":0}]
[{"$f":"IF(Descriptions!K76=\"Building Work and Repairs\",Descriptions!I76,0)","v":0},0,0,0,0,0,0,0,0,0,0,0,0,0,0,0,0,0,0,0,0,0,0,{"$f":"IF(Descriptions!K76=\"Building Work and Repairs\",Descriptions!AB76,0)","v":0}]
[{"$f":"IF(Descriptions!K77=\"Building Work and Repairs\",Descriptions!I77,0)","v":0},0,0,0,0,0,0,0,0,0,0,0,0,0,0,0,0,0,0,0,0,0,0,{"$f":"IF(Descriptions!K77=\"Building Work and Repairs\",Descriptions!AB77,0)","v":0}]
[{"$f":"IF(Descriptions!K78=\"Building Work and Repairs\",Descriptions!I78,0)","v":0},0,0,0,0,0,0,0,0,0,0,0,0,0,0,0,0,0,0,0,0,0,0,{"$f":"IF(Descriptions!K78=\"Building Work and Repairs\",Descriptions!AB78,0)","v":0}]
[{"$f":"IF(Descriptions!K79=\"Building Work and Repairs\",Descriptions!I79,0)","v":0},0,0,0,0,0,0,0,0,0,0,0,0,0,0,0,0,0,0,0,0,0,0,{"$f":"IF(Descriptions!K79=\"Building Work and Repairs\",Descriptions!AB79,0)","v":0}]
[{"$f":"IF(Descriptions!K80=\"Building Work and Repairs\",Descriptions!I80,0)","v":0},0,0,0,0,0,0,0,0,0,0,0,0,0,0,0,0,0,0,0,0,0,0,{"$f":"IF(Descriptions!K80=\"Building Work and Repairs\",Descriptions!AB80,0)","v":0}]
[{"$f":"IF(Descriptions!K81=\"Building Work and Repairs\",Descriptions!I81,0)","v":0},0,0,0,0,0,0,0,0,0,0,0,0,0,0,0,0,0,0,0,0,0,0,{"$f":"IF(Descriptions!K81=\"Building Work and Repairs\",Descriptions!AB81,0)","v":0}]
[{"$f":"IF(Descriptions!K82=\"Building Work and Repairs\",Descriptions!I82,0)","v":0},0,0,0,0,0,0,0,0,0,0,0,0,0,0,0,0,0,0,0,0,0,0,{"$f":"IF(Descriptions!K82=\"Building Work and Repairs\",Descriptions!AB82,0)","v":0}]
[{"$f":"IF(Descriptions!K83=\"Building Work and Repairs\",Descriptions!I83,0)","v":0},0,0,0,0,0,0,0,0,0,0,0,0,0,0,0,0,0,0,0,0,0,0,{"$f":"IF(Descriptions!K83=\"Building Work and Repairs\",Descriptions!AB83,0)","v":0}]
[{"$f":"IF(Descriptions!K84=\"Building Work and Repairs\",Descriptions!I84,0)","v":0},0,0,0,0,0,0,0,0,0,0,0,0,0,0,0,0,0,0,0,0,0,0,{"$f":"IF(Descriptions!K84=\"Building Work and Repairs\",Descriptions!AB84,0)","v":0}]
[null,{"$f":"SUM(B791:B843)","v":0},0,0,0,0,0,0,0,0,0,0,0,0,0,0,0,0,0,0,0,0,null,{"$f":"X790","v":0}]
["COSTS OF GENERATING FUNDS",null,null,null,null,null,null,null,null,null,null,null,null,null,null,null,null,null,null,null,null,null,null,{"$f":"SUM(X846:X899)","v":0}]
["Fund Raising",0,0,0,0,0,0,0,0,0,0,0,0,0,0,0,0,0,0,0,0,0,{"$f":"SUM(B846:V846)","v":0},{"$f":"Descriptions!AB17","v":0}]
["Bookstall",0,0,0,0,0,0,0,0,0,0,0,0,0,0,0,0,0,0,0,0,0,0,{"$f":"Descriptions!AB30","v":0}]
["Magazine",0,0,0,0,0,0,0,0,0,0,0,0,0,0,0,0,0,0,0,0,0,0,{"$f":"Descriptions!AB32","v":0}]
["Hall Running Costs",0,0,0,0,0,0,0,0,0,0,0,0,0,0,0,0,0,0,0,0,0,0,{"$f":"Descriptions!AB31","v":0}]
[{"$f":"IF(Descriptions!K35=\"Costs of Generating Funds\",Descriptions!I35,0)","v":0},0,0,0,0,0,0,0,0,0,0,0,0,0,0,0,0,0,0,0,0,0,0,{"$f":"IF(Descriptions!K35=\"Costs of Generating Funds\",Descriptions!AB35,0)","v":0}]
[{"$f":"IF(Descriptions!K36=\"Costs of Generating Funds\",Descriptions!I36,0)","v":0},0,0,0,0,0,0,0,0,0,0,0,0,0,0,0,0,0,0,0,0,0,0,{"$f":"IF(Descriptions!K36=\"Costs of Generating Funds\",Descriptions!AB36,0)","v":0}]
[{"$f":"IF(Descriptions!K37=\"Costs of Generating Funds\",Descriptions!I37,0)","v":0},0,0,0,0,0,0,0,0,0,0,0,0,0,0,0,0,0,0,0,0,0,0,{"$f":"IF(Descriptions!K37=\"Costs of Generating Funds\",Descriptions!AB37,0)","v":0}]
[{"$f":"IF(Descriptions!K38=\"Costs of Generating Funds\",Descriptions!I38,0)","v":0},0,0,0,0,0,0,0,0,0,0,0,0,0,0,0,0,0,0,0,0,0,0,{"$f":"IF(Descriptions!K38=\"Costs of Generating Funds\",Descriptions!AB38,0)","v":0}]
[{"$f":"IF(Descriptions!K39=\"Costs of Generating Funds\",Descriptions!I39,0)","v":0},0,0,0,0,0,0,0,0,0,0,0,0,0,0,0,0,0,0,0,0,0,0,{"$f":"IF(Descriptions!K39=\"Costs of Generating Funds\",Descriptions!AB39,0)","v":0}]
[{"$f":"IF(Descriptions!K40=\"Costs of Generating Funds\",Descriptions!I40,0)","v":0},0,0,0,0,0,0,0,0,0,0,0,0,0,0,0,0,0,0,0,0,0,0,{"$f":"IF(Descriptions!K40=\"Costs of Generating Funds\",Descriptions!AB40,0)","v":0}]
[{"$f":"IF(Descriptions!K41=\"Costs of Generating Funds\",Descriptions!I41,0)","v":0},0,0,0,0,0,0,0,0,0,0,0,0,0,0,0,0,0,0,0,0,0,0,{"$f":"IF(Descriptions!K41=\"Costs of Generating Funds\",Descriptions!AB41,0)","v":0}]
[{"$f":"IF(Descriptions!K42=\"Costs of Generating Funds\",Descriptions!I42,0)","v":0},0,0,0,0,0,0,0,0,0,0,0,0,0,0,0,0,0,0,0,0,0,0,{"$f":"IF(Descriptions!K42=\"Costs of Generating Funds\",Descriptions!AB42,0)","v":0}]
[{"$f":"IF(Descriptions!K43=\"Costs of Generating Funds\",Descriptions!I43,0)","v":0},0,0,0,0,0,0,0,0,0,0,0,0,0,0,0,0,0,0,0,0,0,0,{"$f":"IF(Descriptions!K43=\"Costs of Generating Funds\",Descriptions!AB43,0)","v":0}]
[{"$f":"IF(Descriptions!K44=\"Costs of Generating Funds\",Descriptions!I44,0)","v":0},0,0,0,0,0,0,0,0,0,0,0,0,0,0,0,0,0,0,0,0,0,0,{"$f":"IF(Descriptions!K44=\"Costs of Generating Funds\",Descriptions!AB44,0)","v":0}]
[{"$f":"IF(Descriptions!K45=\"Costs of Generating Funds\",Descriptions!I45,0)","v":0},0,0,0,0,0,0,0,0,0,0,0,0,0,0,0,0,0,0,0,0,0,0,{"$f":"IF(Descriptions!K45=\"Costs of Generating Funds\",Descriptions!AB45,0)","v":0}]
[{"$f":"IF(Descriptions!K46=\"Costs of Generating Funds\",Descriptions!I46,0)","v":0},0,0,0,0,0,0,0,0,0,0,0,0,0,0,0,0,0,0,0,0,0,0,{"$f":"IF(Descriptions!K46=\"Costs of Generating Funds\",Descriptions!AB46,0)","v":0}]
[{"$f":"IF(Descriptions!K47=\"Costs of Generating Funds\",Descriptions!I47,0)","v":0},0,0,0,0,0,0,0,0,0,0,0,0,0,0,0,0,0,0,0,0,0,0,{"$f":"IF(Descriptions!K47=\"Costs of Generating Funds\",Descriptions!AB47,0)","v":0}]
[{"$f":"IF(Descriptions!K48=\"Costs of Generating Funds\",Descriptions!I48,0)","v":0},0,0,0,0,0,0,0,0,0,0,0,0,0,0,0,0,0,0,0,0,0,0,{"$f":"IF(Descriptions!K48=\"Costs of Generating Funds\",Descriptions!AB48,0)","v":0}]
[{"$f":"IF(Descriptions!K49=\"Costs of Generating Funds\",Descriptions!I49,0)","v":0},0,0,0,0,0,0,0,0,0,0,0,0,0,0,0,0,0,0,0,0,0,0,{"$f":"IF(Descriptions!K49=\"Costs of Generating Funds\",Descriptions!AB49,0)","v":0}]
[{"$f":"IF(Descriptions!K50=\"Costs of Generating Funds\",Descriptions!I50,0)","v":0},0,0,0,0,0,0,0,0,0,0,0,0,0,0,0,0,0,0,0,0,0,0,{"$f":"IF(Descriptions!K50=\"Costs of Generating Funds\",Descriptions!AB50,0)","v":0}]
[{"$f":"IF(Descriptions!K51=\"Costs of Generating Funds\",Descriptions!I51,0)","v":0},0,0,0,0,0,0,0,0,0,0,0,0,0,0,0,0,0,0,0,0,0,0,{"$f":"IF(Descriptions!K51=\"Costs of Generating Funds\",Descriptions!AB51,0)","v":0}]
[{"$f":"IF(Descriptions!K52=\"Costs of Generating Funds\",Descriptions!I52,0)","v":0},0,0,0,0,0,0,0,0,0,0,0,0,0,0,0,0,0,0,0,0,0,0,{"$f":"IF(Descriptions!K52=\"Costs of Generating Funds\",Descriptions!AB52,0)","v":0}]
[{"$f":"IF(Descriptions!K53=\"Costs of Generating Funds\",Descriptions!I53,0)","v":0},0,0,0,0,0,0,0,0,0,0,0,0,0,0,0,0,0,0,0,0,0,0,{"$f":"IF(Descriptions!K53=\"Costs of Generating Funds\",Descriptions!AB53,0)","v":0}]
[{"$f":"IF(Descriptions!K54=\"Costs of Generating Funds\",Descriptions!I54,0)","v":0},0,0,0,0,0,0,0,0,0,0,0,0,0,0,0,0,0,0,0,0,0,0,{"$f":"IF(Descriptions!K54=\"Costs of Generating Funds\",Descriptions!AB54,0)","v":0}]
[{"$f":"IF(Descriptions!K55=\"Costs of Generating Funds\",Descriptions!I55,0)","v":0},0,0,0,0,0,0,0,0,0,0,0,0,0,0,0,0,0,0,0,0,0,0,{"$f":"IF(Descriptions!K55=\"Costs of Generating Funds\",Descriptions!AB55,0)","v":0}]
[{"$f":"IF(Descriptions!K56=\"Costs of Generating Funds\",Descriptions!I56,0)","v":0},0,0,0,0,0,0,0,0,0,0,0,0,0,0,0,0,0,0,0,0,0,0,{"$f":"IF(Descriptions!K56=\"Costs of Generating Funds\",Descriptions!AB56,0)","v":0}]
[{"$f":"IF(Descriptions!K57=\"Costs of Generating Funds\",Descriptions!I57,0)","v":0},0,0,0,0,0,0,0,0,0,0,0,0,0,0,0,0,0,0,0,0,0,0,{"$f":"IF(Descriptions!K57=\"Costs of Generating Funds\",Descriptions!AB57,0)","v":0}]
[{"$f":"IF(Descriptions!K58=\"Costs of Generating Funds\",Descriptions!I58,0)","v":0},0,0,0,0,0,0,0,0,0,0,0,0,0,0,0,0,0,0,0,0,0,0,{"$f":"IF(Descriptions!K58=\"Costs of Generating Funds\",Descriptions!AB58,0)","v":0}]
[{"$f":"IF(Descriptions!K59=\"Costs of Generating Funds\",Descriptions!I59,0)","v":0},0,0,0,0,0,0,0,0,0,0,0,0,0,0,0,0,0,0,0,0,0,0,{"$f":"IF(Descriptions!K59=\"Costs of Generating Funds\",Descriptions!AB59,0)","v":0}]
[{"$f":"IF(Descriptions!K60=\"Costs of Generating Funds\",Descriptions!I60,0)","v":0},0,0,0,0,0,0,0,0,0,0,0,0,0,0,0,0,0,0,0,0,0,0,{"$f":"IF(Descriptions!K60=\"Costs of Generating Funds\",Descriptions!AB60,0)","v":0}]
[{"$f":"IF(Descriptions!K61=\"Costs of Generating Funds\",Descriptions!I61,0)","v":0},0,0,0,0,0,0,0,0,0,0,0,0,0,0,0,0,0,0,0,0,0,0,{"$f":"IF(Descriptions!K61=\"Costs of Generating Funds\",Descriptions!AB61,0)","v":0}]
[{"$f":"IF(Descriptions!K62=\"Costs of Generating Funds\",Descriptions!I62,0)","v":0},0,0,0,0,0,0,0,0,0,0,0,0,0,0,0,0,0,0,0,0,0,0,{"$f":"IF(Descriptions!K62=\"Costs of Generating Funds\",Descriptions!AB62,0)","v":0}]
[{"$f":"IF(Descriptions!K63=\"Costs of Generating Funds\",Descriptions!I63,0)","v":0},0,0,0,0,0,0,0,0,0,0,0,0,0,0,0,0,0,0,0,0,0,0,{"$f":"IF(Descriptions!K63=\"Costs of Generating Funds\",Descriptions!AB63,0)","v":0}]
[{"$f":"IF(Descriptions!K64=\"Costs of Generating Funds\",Descriptions!I64,0)","v":0},0,0,0,0,0,0,0,0,0,0,0,0,0,0,0,0,0,0,0,0,0,0,{"$f":"IF(Descriptions!K64=\"Costs of Generating Funds\",Descriptions!AB64,0)","v":0}]
[{"$f":"IF(Descriptions!K65=\"Costs of Generating Funds\",Descriptions!I65,0)","v":0},0,0,0,0,0,0,0,0,0,0,0,0,0,0,0,0,0,0,0,0,0,0,{"$f":"IF(Descriptions!K65=\"Costs of Generating Funds\",Descriptions!AB65,0)","v":0}]
[{"$f":"IF(Descriptions!K66=\"Costs of Generating Funds\",Descriptions!I66,0)","v":0},0,0,0,0,0,0,0,0,0,0,0,0,0,0,0,0,0,0,0,0,0,0,{"$f":"IF(Descriptions!K66=\"Costs of Generating Funds\",Descriptions!AB66,0)","v":0}]
[{"$f":"IF(Descriptions!K67=\"Costs of Generating Funds\",Descriptions!I67,0)","v":0},0,0,0,0,0,0,0,0,0,0,0,0,0,0,0,0,0,0,0,0,0,0,{"$f":"IF(Descriptions!K67=\"Costs of Generating Funds\",Descriptions!AB67,0)","v":0}]
[{"$f":"IF(Descriptions!K68=\"Costs of Generating Funds\",Descriptions!I68,0)","v":0},0,0,0,0,0,0,0,0,0,0,0,0,0,0,0,0,0,0,0,0,0,0,{"$f":"IF(Descriptions!K68=\"Costs of Generating Funds\",Descriptions!AB68,0)","v":0}]
[{"$f":"IF(Descriptions!K69=\"Costs of Generating Funds\",Descriptions!I69,0)","v":0},0,0,0,0,0,0,0,0,0,0,0,0,0,0,0,0,0,0,0,0,0,0,{"$f":"IF(Descriptions!K69=\"Costs of Generating Funds\",Descriptions!AB69,0)","v":0}]
[{"$f":"IF(Descriptions!K70=\"Costs of Generating Funds\",Descriptions!I70,0)","v":0},0,0,0,0,0,0,0,0,0,0,0,0,0,0,0,0,0,0,0,0,0,0,{"$f":"IF(Descriptions!K70=\"Costs of Generating Funds\",Descriptions!AB70,0)","v":0}]
[{"$f":"IF(Descriptions!K71=\"Costs of Generating Funds\",Descriptions!I71,0)","v":0},0,0,0,0,0,0,0,0,0,0,0,0,0,0,0,0,0,0,0,0,0,0,{"$f":"IF(Descriptions!K71=\"Costs of Generating Funds\",Descriptions!AB71,0)","v":0}]
[{"$f":"IF(Descriptions!K72=\"Costs of Generating Funds\",Descriptions!I72,0)","v":0},0,0,0,0,0,0,0,0,0,0,0,0,0,0,0,0,0,0,0,0,0,0,{"$f":"IF(Descriptions!K72=\"Costs of Generating Funds\",Descriptions!AB72,0)","v":0}]
[{"$f":"IF(Descriptions!K73=\"Costs of Generating Funds\",Descriptions!I73,0)","v":0},0,0,0,0,0,0,0,0,0,0,0,0,0,0,0,0,0,0,0,0,0,0,{"$f":"IF(Descriptions!K73=\"Costs of Generating Funds\",Descriptions!AB73,0)","v":0}]
[{"$f":"IF(Descriptions!K74=\"Costs of Generating Funds\",Descriptions!I74,0)","v":0},0,0,0,0,0,0,0,0,0,0,0,0,0,0,0,0,0,0,0,0,0,0,{"$f":"IF(Descriptions!K74=\"Costs of Generating Funds\",Descriptions!AB74,0)","v":0}]
[{"$f":"IF(Descriptions!K75=\"Costs of Generating Funds\",Descriptions!I75,0)","v":0},0,0,0,0,0,0,0,0,0,0,0,0,0,0,0,0,0,0,0,0,0,0,{"$f":"IF(Descriptions!K75=\"Costs of Generating Funds\",Descriptions!AB75,0)","v":0}]
[{"$f":"IF(Descriptions!K76=\"Costs of Generating Funds\",Descriptions!I76,0)","v":0},0,0,0,0,0,0,0,0,0,0,0,0,0,0,0,0,0,0,0,0,0,0,{"$f":"IF(Descriptions!K76=\"Costs of Generating Funds\",Descriptions!AB76,0)","v":0}]
[{"$f":"IF(Descriptions!K77=\"Costs of Generating Funds\",Descriptions!I77,0)","v":0},0,0,0,0,0,0,0,0,0,0,0,0,0,0,0,0,0,0,0,0,0,0,{"$f":"IF(Descriptions!K77=\"Costs of Generating Funds\",Descriptions!AB77,0)","v":0}]
[{"$f":"IF(Descriptions!K78=\"Costs of Generating Funds\",Descriptions!I78,0)","v":0},0,0,0,0,0,0,0,0,0,0,0,0,0,0,0,0,0,0,0,0,0,0,{"$f":"IF(Descriptions!K78=\"Costs of Generating Funds\",Descriptions!AB78,0)","v":0}]
[{"$f":"IF(Descriptions!K79=\"Costs of Generating Funds\",Descriptions!I79,0)","v":0},0,0,0,0,0,0,0,0,0,0,0,0,0,0,0,0,0,0,0,0,0,0,{"$f":"IF(Descriptions!K79=\"Costs of Generating Funds\",Descriptions!AB79,0)","v":0}]
[{"$f":"IF(Descriptions!K80=\"Costs of Generating Funds\",Descriptions!I80,0)","v":0},0,0,0,0,0,0,0,0,0,0,0,0,0,0,0,0,0,0,0,0,0,0,{"$f":"IF(Descriptions!K80=\"Costs of Generating Funds\",Descriptions!AB80,0)","v":0}]
[{"$f":"IF(Descriptions!K81=\"Costs of Generating Funds\",Descriptions!I81,0)","v":0},0,0,0,0,0,0,0,0,0,0,0,0,0,0,0,0,0,0,0,0,0,0,{"$f":"IF(Descriptions!K81=\"Costs of Generating Funds\",Descriptions!AB81,0)","v":0}]
[{"$f":"IF(Descriptions!K82=\"Costs of Generating Funds\",Descriptions!I82,0)","v":0},0,0,0,0,0,0,0,0,0,0,0,0,0,0,0,0,0,0,0,0,0,0,{"$f":"IF(Descriptions!K82=\"Costs of Generating Funds\",Descriptions!AB82,0)","v":0}]
[{"$f":"IF(Descriptions!K83=\"Costs of Generating Funds\",Descriptions!I83,0)","v":0},0,0,0,0,0,0,0,0,0,0,0,0,0,0,0,0,0,0,0,0,0,0,{"$f":"IF(Descriptions!K83=\"Costs of Generating Funds\",Descriptions!AB83,0)","v":0}]
[{"$f":"IF(Descriptions!K84=\"Costs of Generating Funds\",Descriptions!I84,0)","v":0},0,0,0,0,0,0,0,0,0,0,0,0,0,0,0,0,0,0,0,0,0,0,{"$f":"IF(Descriptions!K84=\"Costs of Generating Funds\",Descriptions!AB84,0)","v":0}]
[null,{"$f":"SUM(B846:B899)","v":0},0,0,0,0,0,0,0,0,0,0,0,0,0,0,0,0,0,0,0,0,null,{"$f":"X845","v":0}]
["ADMINISTRATION COSTS",null,null,null,null,null,null,null,null,null,null,null,null,null,null,null,null,null,null,null,null,null,null,{"$f":"SUM(X902:X956)","v":0}]
["Bank Charges",0,0,0,0,0,0,0,0,0,0,0,0,0,0,0,0,0,0,0,0,0,{"$f":"SUM(B902:V902)","v":0},{"$f":"Descriptions!AB7","v":0}]
["Printing",0,0,0,0,0,0,0,0,0,0,0,0,0,0,0,0,0,0,0,0,0,0,{"$f":"Descriptions!AB25","v":0}]
["Stationery",0,0,0,0,0,0,0,0,0,0,0,0,0,0,0,0,0,0,0,0,0,0,{"$f":"Descriptions!AB28","v":0}]
["Support Costs",0,0,0,0,0,0,0,0,0,0,0,0,0,0,0,0,0,0,0,0,0,0,{"$f":"Descriptions!AB29","v":0}]
["Computer",0,0,0,0,0,0,0,0,0,0,0,0,0,0,0,0,0,0,0,0,0,0,{"$f":"Descriptions!AB16","v":0}]
[{"$f":"IF(Descriptions!K35=\"Administration Costs\",Descriptions!I35,0)","v":0},0,0,0,0,0,0,0,0,0,0,0,0,0,0,0,0,0,0,0,0,0,0,{"$f":"IF(Descriptions!K35=\"Administration Costs\",Descriptions!AB35,0)","v":0}]
[{"$f":"IF(Descriptions!K36=\"Administration Costs\",Descriptions!I36,0)","v":0},0,0,0,0,0,0,0,0,0,0,0,0,0,0,0,0,0,0,0,0,0,0,{"$f":"IF(Descriptions!K36=\"Administration Costs\",Descriptions!AB36,0)","v":0}]
[{"$f":"IF(Descriptions!K37=\"Administration Costs\",Descriptions!I37,0)","v":0},0,0,0,0,0,0,0,0,0,0,0,0,0,0,0,0,0,0,0,0,0,0,{"$f":"IF(Descriptions!K37=\"Administration Costs\",Descriptions!AB37,0)","v":0}]
[{"$f":"IF(Descriptions!K38=\"Administration Costs\",Descriptions!I38,0)","v":0},0,0,0,0,0,0,0,0,0,0,0,0,0,0,0,0,0,0,0,0,0,0,{"$f":"IF(Descriptions!K38=\"Administration Costs\",Descriptions!AB38,0)","v":0}]
[{"$f":"IF(Descriptions!K39=\"Administration Costs\",Descriptions!I39,0)","v":0},0,0,0,0,0,0,0,0,0,0,0,0,0,0,0,0,0,0,0,0,0,0,{"$f":"IF(Descriptions!K39=\"Administration Costs\",Descriptions!AB39,0)","v":0}]
[{"$f":"IF(Descriptions!K40=\"Administration Costs\",Descriptions!I40,0)","v":0},0,0,0,0,0,0,0,0,0,0,0,0,0,0,0,0,0,0,0,0,0,0,{"$f":"IF(Descriptions!K40=\"Administration Costs\",Descriptions!AB40,0)","v":0}]
[{"$f":"IF(Descriptions!K41=\"Administration Costs\",Descriptions!I41,0)","v":0},0,0,0,0,0,0,0,0,0,0,0,0,0,0,0,0,0,0,0,0,0,0,{"$f":"IF(Descriptions!K41=\"Administration Costs\",Descriptions!AB41,0)","v":0}]
[{"$f":"IF(Descriptions!K42=\"Administration Costs\",Descriptions!I42,0)","v":0},0,0,0,0,0,0,0,0,0,0,0,0,0,0,0,0,0,0,0,0,0,0,{"$f":"IF(Descriptions!K42=\"Administration Costs\",Descriptions!AB42,0)","v":0}]
[{"$f":"IF(Descriptions!K43=\"Administration Costs\",Descriptions!I43,0)","v":0},0,0,0,0,0,0,0,0,0,0,0,0,0,0,0,0,0,0,0,0,0,0,{"$f":"IF(Descriptions!K43=\"Administration Costs\",Descriptions!AB43,0)","v":0}]
[{"$f":"IF(Descriptions!K44=\"Administration Costs\",Descriptions!I44,0)","v":0},0,0,0,0,0,0,0,0,0,0,0,0,0,0,0,0,0,0,0,0,0,0,{"$f":"IF(Descriptions!K44=\"Administration Costs\",Descriptions!AB44,0)","v":0}]
[{"$f":"IF(Descriptions!K45=\"Administration Costs\",Descriptions!I45,0)","v":0},0,0,0,0,0,0,0,0,0,0,0,0,0,0,0,0,0,0,0,0,0,0,{"$f":"IF(Descriptions!K45=\"Administration Costs\",Descriptions!AB45,0)","v":0}]
[{"$f":"IF(Descriptions!K46=\"Administration Costs\",Descriptions!I46,0)","v":0},0,0,0,0,0,0,0,0,0,0,0,0,0,0,0,0,0,0,0,0,0,0,{"$f":"IF(Descriptions!K46=\"Administration Costs\",Descriptions!AB46,0)","v":0}]
[{"$f":"IF(Descriptions!K47=\"Administration Costs\",Descriptions!I47,0)","v":0},0,0,0,0,0,0,0,0,0,0,0,0,0,0,0,0,0,0,0,0,0,0,{"$f":"IF(Descriptions!K47=\"Administration Costs\",Descriptions!AB47,0)","v":0}]
[{"$f":"IF(Descriptions!K48=\"Administration Costs\",Descriptions!I48,0)","v":0},0,0,0,0,0,0,0,0,0,0,0,0,0,0,0,0,0,0,0,0,0,0,{"$f":"IF(Descriptions!K48=\"Administration Costs\",Descriptions!AB48,0)","v":0}]
[{"$f":"IF(Descriptions!K49=\"Administration Costs\",Descriptions!I49,0)","v":0},0,0,0,0,0,0,0,0,0,0,0,0,0,0,0,0,0,0,0,0,0,0,{"$f":"IF(Descriptions!K49=\"Administration Costs\",Descriptions!AB49,0)","v":0}]
[{"$f":"IF(Descriptions!K50=\"Administration Costs\",Descriptions!I50,0)","v":0},0,0,0,0,0,0,0,0,0,0,0,0,0,0,0,0,0,0,0,0,0,0,{"$f":"IF(Descriptions!K50=\"Administration Costs\",Descriptions!AB50,0)","v":0}]
[{"$f":"IF(Descriptions!K51=\"Administration Costs\",Descriptions!I51,0)","v":0},0,0,0,0,0,0,0,0,0,0,0,0,0,0,0,0,0,0,0,0,0,0,{"$f":"IF(Descriptions!K51=\"Administration Costs\",Descriptions!AB51,0)","v":0}]
[{"$f":"IF(Descriptions!K52=\"Administration Costs\",Descriptions!I52,0)","v":0},0,0,0,0,0,0,0,0,0,0,0,0,0,0,0,0,0,0,0,0,0,0,{"$f":"IF(Descriptions!K52=\"Administration Costs\",Descriptions!AB52,0)","v":0}]
[{"$f":"IF(Descriptions!K53=\"Administration Costs\",Descriptions!I53,0)","v":0},0,0,0,0,0,0,0,0,0,0,0,0,0,0,0,0,0,0,0,0,0,0,{"$f":"IF(Descriptions!K53=\"Administration Costs\",Descriptions!AB53,0)","v":0}]
[{"$f":"IF(Descriptions!K54=\"Administration Costs\",Descriptions!I54,0)","v":0},0,0,0,0,0,0,0,0,0,0,0,0,0,0,0,0,0,0,0,0,0,0,{"$f":"IF(Descriptions!K54=\"Administration Costs\",Descriptions!AB54,0)","v":0}]
[{"$f":"IF(Descriptions!K55=\"Administration Costs\",Descriptions!I55,0)","v":0},0,0,0,0,0,0,0,0,0,0,0,0,0,0,0,0,0,0,0,0,0,0,{"$f":"IF(Descriptions!K55=\"Administration Costs\",Descriptions!AB55,0)","v":0}]
[{"$f":"IF(Descriptions!K56=\"Administration Costs\",Descriptions!I56,0)","v":0},0,0,0,0,0,0,0,0,0,0,0,0,0,0,0,0,0,0,0,0,0,0,{"$f":"IF(Descriptions!K56=\"Administration Costs\",Descriptions!AB56,0)","v":0}]
[{"$f":"IF(Descriptions!K57=\"Administration Costs\",Descriptions!I57,0)","v":0},0,0,0,0,0,0,0,0,0,0,0,0,0,0,0,0,0,0,0,0,0,0,{"$f":"IF(Descriptions!K57=\"Administration Costs\",Descriptions!AB57,0)","v":0}]
[{"$f":"IF(Descriptions!K58=\"Administration Costs\",Descriptions!I58,0)","v":0},0,0,0,0,0,0,0,0,0,0,0,0,0,0,0,0,0,0,0,0,0,0,{"$f":"IF(Descriptions!K58=\"Administration Costs\",Descriptions!AB58,0)","v":0}]
[{"$f":"IF(Descriptions!K59=\"Administration Costs\",Descriptions!I59,0)","v":0},0,0,0,0,0,0,0,0,0,0,0,0,0,0,0,0,0,0,0,0,0,0,{"$f":"IF(Descriptions!K59=\"Administration Costs\",Descriptions!AB59,0)","v":0}]
[{"$f":"IF(Descriptions!K60=\"Administration Costs\",Descriptions!I60,0)","v":0},0,0,0,0,0,0,0,0,0,0,0,0,0,0,0,0,0,0,0,0,0,0,{"$f":"IF(Descriptions!K60=\"Administration Costs\",Descriptions!AB60,0)","v":0}]
[{"$f":"IF(Descriptions!K61=\"Administration Costs\",Descriptions!I61,0)","v":0},0,0,0,0,0,0,0,0,0,0,0,0,0,0,0,0,0,0,0,0,0,0,{"$f":"IF(Descriptions!K61=\"Administration Costs\",Descriptions!AB61,0)","v":0}]
[{"$f":"IF(Descriptions!K62=\"Administration Costs\",Descriptions!I62,0)","v":0},0,0,0,0,0,0,0,0,0,0,0,0,0,0,0,0,0,0,0,0,0,0,{"$f":"IF(Descriptions!K62=\"Administration Costs\",Descriptions!AB62,0)","v":0}]
[{"$f":"IF(Descriptions!K63=\"Administration Costs\",Descriptions!I63,0)","v":0},0,0,0,0,0,0,0,0,0,0,0,0,0,0,0,0,0,0,0,0,0,0,{"$f":"IF(Descriptions!K63=\"Administration Costs\",Descriptions!AB63,0)","v":0}]
[{"$f":"IF(Descriptions!K64=\"Administration Costs\",Descriptions!I64,0)","v":0},0,0,0,0,0,0,0,0,0,0,0,0,0,0,0,0,0,0,0,0,0,0,{"$f":"IF(Descriptions!K64=\"Administration Costs\",Descriptions!AB64,0)","v":0}]
[{"$f":"IF(Descriptions!K65=\"Administration Costs\",Descriptions!I65,0)","v":0},0,0,0,0,0,0,0,0,0,0,0,0,0,0,0,0,0,0,0,0,0,0,{"$f":"IF(Descriptions!K65=\"Administration Costs\",Descriptions!AB65,0)","v":0}]
[{"$f":"IF(Descriptions!K66=\"Administration Costs\",Descriptions!I66,0)","v":0},0,0,0,0,0,0,0,0,0,0,0,0,0,0,0,0,0,0,0,0,0,0,{"$f":"IF(Descriptions!K66=\"Administration Costs\",Descriptions!AB66,0)","v":0}]
[{"$f":"IF(Descriptions!K67=\"Administration Costs\",Descriptions!I67,0)","v":0},0,0,0,0,0,0,0,0,0,0,0,0,0,0,0,0,0,0,0,0,0,0,{"$f":"IF(Descriptions!K67=\"Administration Costs\",Descriptions!AB67,0)","v":0}]
[{"$f":"IF(Descriptions!K68=\"Administration Costs\",Descriptions!I68,0)","v":0},0,0,0,0,0,0,0,0,0,0,0,0,0,0,0,0,0,0,0,0,0,0,{"$f":"IF(Descriptions!K68=\"Administration Costs\",Descriptions!AB68,0)","v":0}]
[{"$f":"IF(Descriptions!K69=\"Administration Costs\",Descriptions!I69,0)","v":0},0,0,0,0,0,0,0,0,0,0,0,0,0,0,0,0,0,0,0,0,0,0,{"$f":"IF(Descriptions!K69=\"Administration Costs\",Descriptions!AB69,0)","v":0}]
[{"$f":"IF(Descriptions!K70=\"Administration Costs\",Descriptions!I70,0)","v":0},0,0,0,0,0,0,0,0,0,0,0,0,0,0,0,0,0,0,0,0,0,0,{"$f":"IF(Descriptions!K70=\"Administration Costs\",Descriptions!AB70,0)","v":0}]
[{"$f":"IF(Descriptions!K71=\"Administration Costs\",Descriptions!I71,0)","v":0},0,0,0,0,0,0,0,0,0,0,0,0,0,0,0,0,0,0,0,0,0,0,{"$f":"IF(Descriptions!K71=\"Administration Costs\",Descriptions!AB71,0)","v":0}]
[{"$f":"IF(Descriptions!K72=\"Administration Costs\",Descriptions!I72,0)","v":0},0,0,0,0,0,0,0,0,0,0,0,0,0,0,0,0,0,0,0,0,0,0,{"$f":"IF(Descriptions!K72=\"Administration Costs\",Descriptions!AB72,0)","v":0}]
[{"$f":"IF(Descriptions!K73=\"Administration Costs\",Descriptions!I73,0)","v":0},0,0,0,0,0,0,0,0,0,0,0,0,0,0,0,0,0,0,0,0,0,0,{"$f":"IF(Descriptions!K73=\"Administration Costs\",Descriptions!AB73,0)","v":0}]
[{"$f":"IF(Descriptions!K74=\"Administration Costs\",Descriptions!I74,0)","v":0},0,0,0,0,0,0,0,0,0,0,0,0,0,0,0,0,0,0,0,0,0,0,{"$f":"IF(Descriptions!K74=\"Administration Costs\",Descriptions!AB74,0)","v":0}]
[{"$f":"IF(Descriptions!K75=\"Administration Costs\",Descriptions!I75,0)","v":0},0,0,0,0,0,0,0,0,0,0,0,0,0,0,0,0,0,0,0,0,0,0,{"$f":"IF(Descriptions!K75=\"Administration Costs\",Descriptions!AB75,0)","v":0}]
[{"$f":"IF(Descriptions!K76=\"Administration Costs\",Descriptions!I76,0)","v":0},0,0,0,0,0,0,0,0,0,0,0,0,0,0,0,0,0,0,0,0,0,0,{"$f":"IF(Descriptions!K76=\"Administration Costs\",Descriptions!AB76,0)","v":0}]
[{"$f":"IF(Descriptions!K77=\"Administration Costs\",Descriptions!I77,0)","v":0},0,0,0,0,0,0,0,0,0,0,0,0,0,0,0,0,0,0,0,0,0,0,{"$f":"IF(Descriptions!K77=\"Administration Costs\",Descriptions!AB77,0)","v":0}]
[{"$f":"IF(Descriptions!K78=\"Administration Costs\",Descriptions!I78,0)","v":0},0,0,0,0,0,0,0,0,0,0,0,0,0,0,0,0,0,0,0,0,0,0,{"$f":"IF(Descriptions!K78=\"Administration Costs\",Descriptions!AB78,0)","v":0}]
[{"$f":"IF(Descriptions!K79=\"Administration Costs\",Descriptions!I79,0)","v":0},0,0,0,0,0,0,0,0,0,0,0,0,0,0,0,0,0,0,0,0,0,0,{"$f":"IF(Descriptions!K79=\"Administration Costs\",Descriptions!AB79,0)","v":0}]
[{"$f":"IF(Descriptions!K80=\"Administration Costs\",Descriptions!I80,0)","v":0},0,0,0,0,0,0,0,0,0,0,0,0,0,0,0,0,0,0,0,0,0,0,{"$f":"IF(Descriptions!K80=\"Administration Costs\",Descriptions!AB80,0)","v":0}]
[{"$f":"IF(Descriptions!K81=\"Administration Costs\",Descriptions!I81,0)","v":0},0,0,0,0,0,0,0,0,0,0,0,0,0,0,0,0,0,0,0,0,0,0,{"$f":"IF(Descriptions!K81=\"Administration Costs\",Descriptions!AB81,0)","v":0}]
[{"$f":"IF(Descriptions!K82=\"Administration Costs\",Descriptions!I82,0)","v":0},0,0,0,0,0,0,0,0,0,0,0,0,0,0,0,0,0,0,0,0,0,0,{"$f":"IF(Descriptions!K82=\"Administration Costs\",Descriptions!AB82,0)","v":0}]
[{"$f":"IF(Descriptions!K83=\"Administration Costs\",Descriptions!I83,0)","v":0},0,0,0,0,0,0,0,0,0,0,0,0,0,0,0,0,0,0,0,0,0,0,{"$f":"IF(Descriptions!K83=\"Administration Costs\",Descriptions!AB83,0)","v":0}]
[{"$f":"IF(Descriptions!K84=\"Administration Costs\",Descriptions!I84,0)","v":0},0,0,0,0,0,0,0,0,0,0,0,0,0,0,0,0,0,0,0,0,0,0,{"$f":"IF(Descriptions!K84=\"Administration Costs\",Descriptions!AB84,0)","v":0}]
[null,{"$f":"SUM(B902:B956)","v":0},0,0,0,0,0,0,0,0,0,0,0,0,0,0,0,0,0,0,0,0,null,{"$f":"X901","v":0}]
["OTHER EXPENDITURE",null,null,null,null,null,null,null,null,null,null,null,null,null,null,null,null,null,null,null,null,null,null,{"$f":"SUM(X959:X1011)","v":0}]
["Mission and Evangelism Costs",0,0,0,0,0,0,0,0,0,0,0,0,0,0,0,0,0,0,0,0,0,{"$f":"SUM(B959:V959)","v":0},{"$f":"Descriptions!AB22","v":0}]
["Churchyard Expenses",0,0,0,0,0,0,0,0,0,0,0,0,0,0,0,0,0,0,0,0,0,0,{"$f":"Descriptions!AB13","v":0}]
["Trading Costs - Property",0,0,0,0,0,0,0,0,0,0,0,0,0,0,0,0,0,0,0,0,0,0,{"$f":"Descriptions!AB33","v":0}]
[{"$f":"IF(Descriptions!K35=\"Other Expenditure\",Descriptions!I35,0)","v":0},0,0,0,0,0,0,0,0,0,0,0,0,0,0,0,0,0,0,0,0,0,0,{"$f":"IF(Descriptions!K35=\"Other Expenditure\",Descriptions!AB35,0)","v":0}]
[{"$f":"IF(Descriptions!K36=\"Other Expenditure\",Descriptions!I36,0)","v":0},0,0,0,0,0,0,0,0,0,0,0,0,0,0,0,0,0,0,0,0,0,0,{"$f":"IF(Descriptions!K36=\"Other Expenditure\",Descriptions!AB36,0)","v":0}]
[{"$f":"IF(Descriptions!K37=\"Other Expenditure\",Descriptions!I37,0)","v":0},0,0,0,0,0,0,0,0,0,0,0,0,0,0,0,0,0,0,0,0,0,0,{"$f":"IF(Descriptions!K37=\"Other Expenditure\",Descriptions!AB37,0)","v":0}]
[{"$f":"IF(Descriptions!K38=\"Other Expenditure\",Descriptions!I38,0)","v":0},0,0,0,0,0,0,0,0,0,0,0,0,0,0,0,0,0,0,0,0,0,0,{"$f":"IF(Descriptions!K38=\"Other Expenditure\",Descriptions!AB38,0)","v":0}]
[{"$f":"IF(Descriptions!K39=\"Other Expenditure\",Descriptions!I39,0)","v":0},0,0,0,0,0,0,0,0,0,0,0,0,0,0,0,0,0,0,0,0,0,0,{"$f":"IF(Descriptions!K39=\"Other Expenditure\",Descriptions!AB39,0)","v":0}]
[{"$f":"IF(Descriptions!K40=\"Other Expenditure\",Descriptions!I40,0)","v":0},0,0,0,0,0,0,0,0,0,0,0,0,0,0,0,0,0,0,0,0,0,0,{"$f":"IF(Descriptions!K40=\"Other Expenditure\",Descriptions!AB40,0)","v":0}]
[{"$f":"IF(Descriptions!K41=\"Other Expenditure\",Descriptions!I41,0)","v":0},0,0,0,0,0,0,0,0,0,0,0,0,0,0,0,0,0,0,0,0,0,0,{"$f":"IF(Descriptions!K41=\"Other Expenditure\",Descriptions!AB41,0)","v":0}]
[{"$f":"IF(Descriptions!K42=\"Other Expenditure\",Descriptions!I42,0)","v":0},0,0,0,0,0,0,0,0,0,0,0,0,0,0,0,0,0,0,0,0,0,0,{"$f":"IF(Descriptions!K42=\"Other Expenditure\",Descriptions!AB42,0)","v":0}]
[{"$f":"IF(Descriptions!K43=\"Other Expenditure\",Descriptions!I43,0)","v":0},0,0,0,0,0,0,0,0,0,0,0,0,0,0,0,0,0,0,0,0,0,0,{"$f":"IF(Descriptions!K43=\"Other Expenditure\",Descriptions!AB43,0)","v":0}]
[{"$f":"IF(Descriptions!K44=\"Other Expenditure\",Descriptions!I44,0)","v":0},0,0,0,0,0,0,0,0,0,0,0,0,0,0,0,0,0,0,0,0,0,0,{"$f":"IF(Descriptions!K44=\"Other Expenditure\",Descriptions!AB44,0)","v":0}]
[{"$f":"IF(Descriptions!K45=\"Other Expenditure\",Descriptions!I45,0)","v":0},0,0,0,0,0,0,0,0,0,0,0,0,0,0,0,0,0,0,0,0,0,0,{"$f":"IF(Descriptions!K45=\"Other Expenditure\",Descriptions!AB45,0)","v":0}]
[{"$f":"IF(Descriptions!K46=\"Other Expenditure\",Descriptions!I46,0)","v":0},0,0,0,0,0,0,0,0,0,0,0,0,0,0,0,0,0,0,0,0,0,0,{"$f":"IF(Descriptions!K46=\"Other Expenditure\",Descriptions!AB46,0)","v":0}]
[{"$f":"IF(Descriptions!K47=\"Other Expenditure\",Descriptions!I47,0)","v":0},0,0,0,0,0,0,0,0,0,0,0,0,0,0,0,0,0,0,0,0,0,0,{"$f":"IF(Descriptions!K47=\"Other Expenditure\",Descriptions!AB47,0)","v":0}]
[{"$f":"IF(Descriptions!K48=\"Other Expenditure\",Descriptions!I48,0)","v":0},0,0,0,0,0,0,0,0,0,0,0,0,0,0,0,0,0,0,0,0,0,0,{"$f":"IF(Descriptions!K48=\"Other Expenditure\",Descriptions!AB48,0)","v":0}]
[{"$f":"IF(Descriptions!K49=\"Other Expenditure\",Descriptions!I49,0)","v":0},0,0,0,0,0,0,0,0,0,0,0,0,0,0,0,0,0,0,0,0,0,0,{"$f":"IF(Descriptions!K49=\"Other Expenditure\",Descriptions!AB49,0)","v":0}]
[{"$f":"IF(Descriptions!K50=\"Other Expenditure\",Descriptions!I50,0)","v":0},0,0,0,0,0,0,0,0,0,0,0,0,0,0,0,0,0,0,0,0,0,0,{"$f":"IF(Descriptions!K50=\"Other Expenditure\",Descriptions!AB50,0)","v":0}]
[{"$f":"IF(Descriptions!K51=\"Other Expenditure\",Descriptions!I51,0)","v":0},0,0,0,0,0,0,0,0,0,0,0,0,0,0,0,0,0,0,0,0,0,0,{"$f":"IF(Descriptions!K51=\"Other Expenditure\",Descriptions!AB51,0)","v":0}]
[{"$f":"IF(Descriptions!K52=\"Other Expenditure\",Descriptions!I52,0)","v":0},0,0,0,0,0,0,0,0,0,0,0,0,0,0,0,0,0,0,0,0,0,0,{"$f":"IF(Descriptions!K52=\"Other Expenditure\",Descriptions!AB52,0)","v":0}]
[{"$f":"IF(Descriptions!K53=\"Other Expenditure\",Descriptions!I53,0)","v":0},0,0,0,0,0,0,0,0,0,0,0,0,0,0,0,0,0,0,0,0,0,0,{"$f":"IF(Descriptions!K53=\"Other Expenditure\",Descriptions!AB53,0)","v":0}]
[{"$f":"IF(Descriptions!K54=\"Other Expenditure\",Descriptions!I54,0)","v":0},0,0,0,0,0,0,0,0,0,0,0,0,0,0,0,0,0,0,0,0,0,0,{"$f":"IF(Descriptions!K54=\"Other Expenditure\",Descriptions!AB54,0)","v":0}]
[{"$f":"IF(Descriptions!K55=\"Other Expenditure\",Descriptions!I55,0)","v":0},0,0,0,0,0,0,0,0,0,0,0,0,0,0,0,0,0,0,0,0,0,0,{"$f":"IF(Descriptions!K55=\"Other Expenditure\",Descriptions!AB55,0)","v":0}]
[{"$f":"IF(Descriptions!K56=\"Other Expenditure\",Descriptions!I56,0)","v":0},0,0,0,0,0,0,0,0,0,0,0,0,0,0,0,0,0,0,0,0,0,0,{"$f":"IF(Descriptions!K56=\"Other Expenditure\",Descriptions!AB56,0)","v":0}]
[{"$f":"IF(Descriptions!K57=\"Other Expenditure\",Descriptions!I57,0)","v":0},0,0,0,0,0,0,0,0,0,0,0,0,0,0,0,0,0,0,0,0,0,0,{"$f":"IF(Descriptions!K57=\"Other Expenditure\",Descriptions!AB57,0)","v":0}]
[{"$f":"IF(Descriptions!K58=\"Other Expenditure\",Descriptions!I58,0)","v":0},0,0,0,0,0,0,0,0,0,0,0,0,0,0,0,0,0,0,0,0,0,0,{"$f":"IF(Descriptions!K58=\"Other Expenditure\",Descriptions!AB58,0)","v":0}]
[{"$f":"IF(Descriptions!K59=\"Other Expenditure\",Descriptions!I59,0)","v":0},0,0,0,0,0,0,0,0,0,0,0,0,0,0,0,0,0,0,0,0,0,0,{"$f":"IF(Descriptions!K59=\"Other Expenditure\",Descriptions!AB59,0)","v":0}]
[{"$f":"IF(Descriptions!K60=\"Other Expenditure\",Descriptions!I60,0)","v":0},0,0,0,0,0,0,0,0,0,0,0,0,0,0,0,0,0,0,0,0,0,0,{"$f":"IF(Descriptions!K60=\"Other Expenditure\",Descriptions!AB60,0)","v":0}]
[{"$f":"IF(Descriptions!K61=\"Other Expenditure\",Descriptions!I61,0)","v":0},0,0,0,0,0,0,0,0,0,0,0,0,0,0,0,0,0,0,0,0,0,0,{"$f":"IF(Descriptions!K61=\"Other Expenditure\",Descriptions!AB61,0)","v":0}]
[{"$f":"IF(Descriptions!K62=\"Other Expenditure\",Descriptions!I62,0)","v":0},0,0,0,0,0,0,0,0,0,0,0,0,0,0,0,0,0,0,0,0,0,0,{"$f":"IF(Descriptions!K62=\"Other Expenditure\",Descriptions!AB62,0)","v":0}]
[{"$f":"IF(Descriptions!K63=\"Other Expenditure\",Descriptions!I63,0)","v":0},0,0,0,0,0,0,0,0,0,0,0,0,0,0,0,0,0,0,0,0,0,0,{"$f":"IF(Descriptions!K63=\"Other Expenditure\",Descriptions!AB63,0)","v":0}]
[{"$f":"IF(Descriptions!K64=\"Other Expenditure\",Descriptions!I64,0)","v":0},0,0,0,0,0,0,0,0,0,0,0,0,0,0,0,0,0,0,0,0,0,0,{"$f":"IF(Descriptions!K64=\"Other Expenditure\",Descriptions!AB64,0)","v":0}]
[{"$f":"IF(Descriptions!K65=\"Other Expenditure\",Descriptions!I65,0)","v":0},0,0,0,0,0,0,0,0,0,0,0,0,0,0,0,0,0,0,0,0,0,0,{"$f":"IF(Descriptions!K65=\"Other Expenditure\",Descriptions!AB65,0)","v":0}]
[{"$f":"IF(Descriptions!K66=\"Other Expenditure\",Descriptions!I66,0)","v":0},0,0,0,0,0,0,0,0,0,0,0,0,0,0,0,0,0,0,0,0,0,0,{"$f":"IF(Descriptions!K66=\"Other Expenditure\",Descriptions!AB66,0)","v":0}]
[{"$f":"IF(Descriptions!K67=\"Other Expenditure\",Descriptions!I67,0)","v":0},0,0,0,0,0,0,0,0,0,0,0,0,0,0,0,0,0,0,0,0,0,0,{"$f":"IF(Descriptions!K67=\"Other Expenditure\",Descriptions!AB67,0)","v":0}]
[{"$f":"IF(Descriptions!K68=\"Other Expenditure\",Descriptions!I68,0)","v":0},0,0,0,0,0,0,0,0,0,0,0,0,0,0,0,0,0,0,0,0,0,0,{"$f":"IF(Descriptions!K68=\"Other Expenditure\",Descriptions!AB68,0)","v":0}]
[{"$f":"IF(Descriptions!K69=\"Other Expenditure\",Descriptions!I69,0)","v":0},0,0,0,0,0,0,0,0,0,0,0,0,0,0,0,0,0,0,0,0,0,0,{"$f":"IF(Descriptions!K69=\"Other Expenditure\",Descriptions!AB69,0)","v":0}]
[{"$f":"IF(Descriptions!K70=\"Other Expenditure\",Descriptions!I70,0)","v":0},0,0,0,0,0,0,0,0,0,0,0,0,0,0,0,0,0,0,0,0,0,0,{"$f":"IF(Descriptions!K70=\"Other Expenditure\",Descriptions!AB70,0)","v":0}]
[{"$f":"IF(Descriptions!K71=\"Other Expenditure\",Descriptions!I71,0)","v":0},0,0,0,0,0,0,0,0,0,0,0,0,0,0,0,0,0,0,0,0,0,0,{"$f":"IF(Descriptions!K71=\"Other Expenditure\",Descriptions!AB71,0)","v":0}]
[{"$f":"IF(Descriptions!K72=\"Other Expenditure\",Descriptions!I72,0)","v":0},0,0,0,0,0,0,0,0,0,0,0,0,0,0,0,0,0,0,0,0,0,0,{"$f":"IF(Descriptions!K72=\"Other Expenditure\",Descriptions!AB72,0)","v":0}]
[{"$f":"IF(Descriptions!K73=\"Other Expenditure\",Descriptions!I73,0)","v":0},0,0,0,0,0,0,0,0,0,0,0,0,0,0,0,0,0,0,0,0,0,0,{"$f":"IF(Descriptions!K73=\"Other Expenditure\",Descriptions!AB73,0)","v":0}]
[{"$f":"IF(Descriptions!K74=\"Other Expenditure\",Descriptions!I74,0)","v":0},0,0,0,0,0,0,0,0,0,0,0,0,0,0,0,0,0,0,0,0,0,0,{"$f":"IF(Descriptions!K74=\"Other Expenditure\",Descriptions!AB74,0)","v":0}]
[{"$f":"IF(Descriptions!K75=\"Other Expenditure\",Descriptions!I75,0)","v":0},0,0,0,0,0,0,0,0,0,0,0,0,0,0,0,0,0,0,0,0,0,0,{"$f":"IF(Descriptions!K75=\"Other Expenditure\",Descriptions!AB75,0)","v":0}]
[{"$f":"IF(Descriptions!K76=\"Other Expenditure\",Descriptions!I76,0)","v":0},0,0,0,0,0,0,0,0,0,0,0,0,0,0,0,0,0,0,0,0,0,0,{"$f":"IF(Descriptions!K76=\"Other Expenditure\",Descriptions!AB76,0)","v":0}]
[{"$f":"IF(Descriptions!K77=\"Other Expenditure\",Descriptions!I77,0)","v":0},0,0,0,0,0,0,0,0,0,0,0,0,0,0,0,0,0,0,0,0,0,0,{"$f":"IF(Descriptions!K77=\"Other Expenditure\",Descriptions!AB77,0)","v":0}]
[{"$f":"IF(Descriptions!K78=\"Other Expenditure\",Descriptions!I78,0)","v":0},0,0,0,0,0,0,0,0,0,0,0,0,0,0,0,0,0,0,0,0,0,0,{"$f":"IF(Descriptions!K78=\"Other Expenditure\",Descriptions!AB78,0)","v":0}]
[{"$f":"IF(Descriptions!K79=\"Other Expenditure\",Descriptions!I79,0)","v":0},0,0,0,0,0,0,0,0,0,0,0,0,0,0,0,0,0,0,0,0,0,0,{"$f":"IF(Descriptions!K79=\"Other Expenditure\",Descriptions!AB79,0)","v":0}]
[{"$f":"IF(Descriptions!K80=\"Other Expenditure\",Descriptions!I80,0)","v":0},0,0,0,0,0,0,0,0,0,0,0,0,0,0,0,0,0,0,0,0,0,0,{"$f":"IF(Descriptions!K80=\"Other Expenditure\",Descriptions!AB80,0)","v":0}]
[{"$f":"IF(Descriptions!K81=\"Other Expenditure\",Descriptions!I81,0)","v":0},0,0,0,0,0,0,0,0,0,0,0,0,0,0,0,0,0,0,0,0,0,0,{"$f":"IF(Descriptions!K81=\"Other Expenditure\",Descriptions!AB81,0)","v":0}]
[{"$f":"IF(Descriptions!K82=\"Other Expenditure\",Descriptions!I82,0)","v":0},0,0,0,0,0,0,0,0,0,0,0,0,0,0,0,0,0,0,0,0,0,0,{"$f":"IF(Descriptions!K82=\"Other Expenditure\",Descriptions!AB82,0)","v":0}]
[{"$f":"IF(Descriptions!K83=\"Other Expenditure\",Descriptions!I83,0)","v":0},0,0,0,0,0,0,0,0,0,0,0,0,0,0,0,0,0,0,0,0,0,0,{"$f":"IF(Descriptions!K83=\"Other Expenditure\",Descriptions!AB83,0)","v":0}]
[{"$f":"IF(Descriptions!K84=\"Other Expenditure\",Descriptions!I84,0)","v":0},0,0,0,0,0,0,0,0,0,0,0,0,0,0,0,0,0,0,0,0,0,0,{"$f":"IF(Descriptions!K84=\"Other Expenditure\",Descriptions!AB84,0)","v":0}]
[null,{"$f":"SUM(B959:B1011)","v":0},0,0,0,0,0,0,0,0,0,0,0,0,0,0,0,0,0,0,0,0,null,{"$f":"X958","v":0}]
[null,null,null,null,null,null,null,null,null,null,null,null,null,null,null,null,null,null,null,null,null,null,null,1]
["TOTAL PRIOR YEAR PAYMENTS",{"$f":"SUM(B1012+B957+B900+B844+B789+B733+B675+B620)","v":0},0,0,0,0,0,0,0,0,0,0,0,0,0,0,0,0,0,0,0,0,null,1]
[null,null,null,null,null,null,null,null,null,null,null,null,null,null,null,null,null,null,null,null,null,null,null,1]
["TOTAL RECEIPTS",{"$f":"B563","v":0},0,0,0,0,0,0,0,0,0,0,0,0,0,0,0,0,0,0,0,0,null,1]
[null,null,null,null,null,null,null,null,null,null,null,null,null,null,null,null,null,null,null,null,null,null,null,1]
["EXCESS OF RECEIPTS OVER PAYMENTS",{"$f":"B1016-B1014","v":0},0,0,0,0,0,0,0,0,0,0,0,0,0,0,0,0,0,0,0,0,null,1]

{"sheet":"Budget Setting","index":9,"n_rows":1018,"n_cols":26,"rows_kept":1018,"cut":false,"hidden":false,"merged":[]}
[null,"N",{"$f":"IF(C3=\"Fund A\",\"Y\",\"N\")","v":"Y"},{"$f":"IF(D3=\"Fund B\",\"Y\",\"N\")","v":"Y"},{"$f":"IF(E3=\"Fund C\",\"Y\",\"N\")","v":"Y"},{"$f":"IF(F3=\"Fund D\",\"Y\",\"N\")","v":"Y"},{"$f":"IF(G3=\"Fund E\",\"Y\",\"N\")","v":"Y"},{"$f":"IF(H3=\"Fund F\",\"Y\",\"N\")","v":"Y"},{"$f":"IF(I3=\"Fund G\",\"Y\",\"N\")","v":"Y"},{"$f":"IF(J3=\"Fund H\",\"Y\",\"N\")","v":"Y"},{"$f":"IF(K3=\"Fund I\",\"Y\",\"N\")","v":"Y"},{"$f":"IF(L3=\"Fund J\",\"Y\",\"N\")","v":"Y"},{"$f":"IF(M3=\"Fund K\",\"Y\",\"N\")","v":"Y"},{"$f":"IF(N3=\"Fund L\",\"Y\",\"N\")","v":"Y"},{"$f":"IF(O3=\"Fund M\",\"Y\",\"N\")","v":"Y"},{"$f":"IF(P3=\"Fund N\",\"Y\",\"N\")","v":"Y"},{"$f":"IF(Q3=\"Fund O\",\"Y\",\"N\")","v":"Y"},{"$f":"IF(R3=\"Fund P\",\"Y\",\"N\")","v":"Y"},{"$f":"IF(S3=\"Fund Q\",\"Y\",\"N\")","v":"Y"},{"$f":"IF(T3=\"Fund R\",\"Y\",\"N\")","v":"Y"},{"$f":"IF(U3=\"Fund S\",\"Y\",\"N\")","v":"Y"},{"$f":"IF(V3=\"Fund T\",\"Y\",\"N\")","v":"Y"},null,1]
[null,{"$f":"VLOOKUP(B3,'Bank and Fund Details'!$B$15:$C$36,2,FALSE)","v":"Unrestricted"},{"$f":"VLOOKUP(C3,'Bank and Fund Details'!$B$15:$C$36,2,FALSE)","v":"Unrestricted"},{"$f":"VLOOKUP(D3,'Bank and Fund Details'!$B$15:$C$36,2,FALSE)","v":"Unrestricted"},{"$f":"VLOOKUP(E3,'Bank and Fund Details'!$B$15:$C$36,2,FALSE)","v":"Unrestricted"},{"$f":"VLOOKUP(F3,'Bank and Fund Details'!$B$15:$C$36,2,FALSE)","v":"Unrestricted"},{"$f":"VLOOKUP(G3,'Bank and Fund Details'!$B$15:$C$36,2,FALSE)","v":"Unrestricted"},{"$f":"VLOOKUP(H3,'Bank and Fund Details'!$B$15:$C$36,2,FALSE)","v":"Unrestricted"},{"$f":"VLOOKUP(I3,'Bank and Fund Details'!$B$15:$C$36,2,FALSE)","v":"Unrestricted"},{"$f":"VLOOKUP(J3,'Bank and Fund Details'!$B$15:$C$36,2,FALSE)","v":"Unrestricted"},{"$f":"VLOOKUP(K3,'Bank and Fund Details'!$B$15:$C$36,2,FALSE)","v":"Unrestricted"},{"$f":"VLOOKUP(L3,'Bank and Fund Details'!$B$15:$C$36,2,FALSE)","v":"Unrestricted"},{"$f":"VLOOKUP(M3,'Bank and Fund Details'!$B$15:$C$36,2,FALSE)","v":"Unrestricted"},{"$f":"VLOOKUP(N3,'Bank and Fund Details'!$B$15:$C$36,2,FALSE)","v":"Unrestricted"},{"$f":"VLOOKUP(O3,'Bank and Fund Details'!$B$15:$C$36,2,FALSE)","v":"Unrestricted"},{"$f":"VLOOKUP(P3,'Bank and Fund Details'!$B$15:$C$36,2,FALSE)","v":"Unrestricted"},{"$f":"VLOOKUP(Q3,'Bank and Fund Details'!$B$15:$C$36,2,FALSE)","v":"Unrestricted"},{"$f":"VLOOKUP(R3,'Bank and Fund Details'!$B$15:$C$36,2,FALSE)","v":"Unrestricted"},{"$f":"VLOOKUP(S3,'Bank and Fund Details'!$B$15:$C$36,2,FALSE)","v":"Unrestricted"},{"$f":"VLOOKUP(T3,'Bank and Fund Details'!$B$15:$C$36,2,FALSE)","v":"Unrestricted"},{"$f":"VLOOKUP(U3,'Bank and Fund Details'!$B$15:$C$36,2,FALSE)","v":"Unrestricted"},{"$f":"VLOOKUP(V3,'Bank and Fund Details'!$B$15:$C$36,2,FALSE)","v":"Unrestricted"},null,1]
["RECEIPTS",{"$f":"'Bank and Fund Details'!B15","v":"General Fund"},{"$f":"'Bank and Fund Details'!B17","v":"Fund A"},{"$f":"'Bank and Fund Details'!B18","v":"Fund B"},{"$f":"'Bank and Fund Details'!B19","v":"Fund C"},{"$f":"'Bank and Fund Details'!B20","v":"Fund D"},{"$f":"'Bank and Fund Details'!B21","v":"Fund E"},{"$f":"'Bank and Fund Details'!B22","v":"Fund F"},{"$f":"'Bank and Fund Details'!B23","v":"Fund G"},{"$f":"'Bank and Fund Details'!B24","v":"Fund H"},{"$f":"'Bank and Fund Details'!B25","v":"Fund I"},{"$f":"'Bank and Fund Details'!B26","v":"Fund J"},{"$f":"'Bank and Fund Details'!B27","v":"Fund K"},{"$f":"'Bank and Fund Details'!B28","v":"Fund L"},{"$f":"'Bank and Fund Details'!B29","v":"Fund M"},{"$f":"'Bank and Fund Details'!B30","v":"Fund N"},{"$f":"'Bank and Fund Details'!B31","v":"Fund O"},{"$f":"'Bank and Fund Details'!B32","v":"Fund P"},{"$f":"'Bank and Fund Details'!B33","v":"Fund Q"},{"$f":"'Bank and Fund Details'!B34","v":"Fund R"},{"$f":"'Bank and Fund Details'!B35","v":"Fund S"},{"$f":"'Bank and Fund Details'!B36","v":"Fund T"},null,1,"General Account"]
[null,"£","£","£","£","£","£","£","£","£","£","£","£","£","£","£","£","£","£","£","£","£",null,1]
["COLLECTIONS AT SERVICES",null,null,null,null,null,null,null,null,null,null,null,null,null,null,null,null,null,null,null,null,null,null,{"$f":"SUM(X6:X63)","v":0}]
["Sunday Collections",0,0,0,0,0,0,0,0,0,0,0,0,0,0,0,0,0,0,0,0,0,null,{"$f":"Descriptions!AA34","v":0},{"$f":"[1]Descriptions!B32","v":"Sunday Collections"},{"$f":"CONCATENATE(Y6,$Y$3)","v":"Sunday CollectionsGeneral Account"}]
["Sunday Collections - Gift Aided",0,0,0,0,0,0,0,0,0,0,0,0,0,0,0,0,0,0,0,0,0,null,{"$f":"Descriptions!AA35","v":0},{"$f":"[1]Descriptions!B33","v":"Sunday Collections - Gift Aided"},"Sunday Collections - Gift AidedGeneral Account"]
["Weekday Collections",0,0,0,0,0,0,0,0,0,0,0,0,0,0,0,0,0,0,0,0,0,null,{"$f":"Descriptions!AA41","v":0},{"$f":"[1]Descriptions!B39","v":"Weekday Collections"},"Weekday CollectionsGeneral Account"]
["Weekday Collections - Gift Aided",0,0,0,0,0,0,0,0,0,0,0,0,0,0,0,0,0,0,0,0,0,null,{"$f":"Descriptions!AA42","v":0},{"$f":"[1]Descriptions!B40","v":"Weekday Collections - Gift Aided"},"Weekday Collections - Gift AidedGeneral Account"]
["Wedding and Funeral Collections",0,0,0,0,0,0,0,0,0,0,0,0,0,0,0,0,0,0,0,0,0,null,{"$f":"Descriptions!AA39","v":0},{"$f":"[1]Descriptions!B37","v":"Wedding and Funeral Collections"},"Wedding and Funeral CollectionsGeneral Account"]
["Wedding and Funeral Collections - Gift Aided",0,0,0,0,0,0,0,0,0,0,0,0,0,0,0,0,0,0,0,0,0,null,{"$f":"Descriptions!AA40","v":0},{"$f":"[1]Descriptions!B38","v":"Wedding and Funeral Collections - Gift Aided"},"Wedding and Funeral Collections - Gift AidedGeneral Account"]
["Junior Church Collections",0,0,0,0,0,0,0,0,0,0,0,0,0,0,0,0,0,0,0,0,0,null,{"$f":"Descriptions!AA22","v":0},{"$f":"[1]Descriptions!B20","v":"Junior Church Collections"},"Junior Church CollectionsGeneral Account"]
["Junior Church Collections - Gift Aided",0,0,0,0,0,0,0,0,0,0,0,0,0,0,0,0,0,0,0,0,0,null,{"$f":"Descriptions!AA23","v":0},{"$f":"[1]Descriptions!B21","v":"Junior Church Collections - Gift Aided"},"Junior Church Collections - Gift AidedGeneral Account"]
[{"$f":"IF(Descriptions!D43=\"Collections at services\",Descriptions!B43,0)","v":0},0,0,0,0,0,0,0,0,0,0,0,0,0,0,0,0,0,0,0,0,0,null,{"$f":"IF(Descriptions!D43=\"Collections at services\",Descriptions!AA43,0)","v":0},{"$f":"IF([1]Descriptions!D41=\"Collections at services\",[1]Descriptions!B41,0)","v":0},{"$f":"CONCATENATE(Y14,$Y$3)","v":"0General Account"}]
[{"$f":"IF(Descriptions!D44=\"Collections at services\",Descriptions!B44,0)","v":0},0,0,0,0,0,0,0,0,0,0,0,0,0,0,0,0,0,0,0,0,0,null,{"$f":"IF(Descriptions!D44=\"Collections at services\",Descriptions!AA44,0)","v":0},{"$f":"IF([1]Descriptions!D42=\"Collections at services\",[1]Descriptions!B42,0)","v":0},{"$f":"CONCATENATE(Y15,$Y$3)","v":"0General Account"}]
[{"$f":"IF(Descriptions!D45=\"Collections at services\",Descriptions!B45,0)","v":0},0,0,0,0,0,0,0,0,0,0,0,0,0,0,0,0,0,0,0,0,0,null,{"$f":"IF(Descriptions!D45=\"Collections at services\",Descriptions!AA45,0)","v":0},{"$f":"IF([1]Descriptions!D43=\"Collections at services\",[1]Descriptions!B43,0)","v":0},"0General Account"]
[{"$f":"IF(Descriptions!D46=\"Collections at services\",Descriptions!B46,0)","v":0},0,0,0,0,0,0,0,0,0,0,0,0,0,0,0,0,0,0,0,0,0,null,{"$f":"IF(Descriptions!D46=\"Collections at services\",Descriptions!AA46,0)","v":0},{"$f":"IF([1]Descriptions!D44=\"Collections at services\",[1]Descriptions!B44,0)","v":0},"0General Account"]
[{"$f":"IF(Descriptions!D47=\"Collections at services\",Descriptions!B47,0)","v":0},0,0,0,0,0,0,0,0,0,0,0,0,0,0,0,0,0,0,0,0,0,null,{"$f":"IF(Descriptions!D47=\"Collections at services\",Descriptions!AA47,0)","v":0},{"$f":"IF([1]Descriptions!D45=\"Collections at services\",[1]Descriptions!B45,0)","v":0},"0General Account"]
[{"$f":"IF(Descriptions!D48=\"Collections at services\",Descriptions!B48,0)","v":0},0,0,0,0,0,0,0,0,0,0,0,0,0,0,0,0,0,0,0,0,0,null,{"$f":"IF(Descriptions!D48=\"Collections at services\",Descriptions!AA48,0)","v":0},{"$f":"IF([1]Descriptions!D46=\"Collections at services\",[1]Descriptions!B46,0)","v":0},"0General Account"]
[{"$f":"IF(Descriptions!D49=\"Collections at services\",Descriptions!B49,0)","v":0},0,0,0,0,0,0,0,0,0,0,0,0,0,0,0,0,0,0,0,0,0,null,{"$f":"IF(Descriptions!D49=\"Collections at services\",Descriptions!AA49,0)","v":0},{"$f":"IF([1]Descriptions!D47=\"Collections at services\",[1]Descriptions!B47,0)","v":0},"0General Account"]
[{"$f":"IF(Descriptions!D50=\"Collections at services\",Descriptions!B50,0)","v":0},0,0,0,0,0,0,0,0,0,0,0,0,0,0,0,0,0,0,0,0,0,null,{"$f":"IF(Descriptions!D50=\"Collections at services\",Descriptions!AA50,0)","v":0},{"$f":"IF([1]Descriptions!D48=\"Collections at services\",[1]Descriptions!B48,0)","v":0},"0General Account"]
[{"$f":"IF(Descriptions!D51=\"Collections at services\",Descriptions!B51,0)","v":0},0,0,0,0,0,0,0,0,0,0,0,0,0,0,0,0,0,0,0,0,0,null,{"$f":"IF(Descriptions!D51=\"Collections at services\",Descriptions!AA51,0)","v":0},{"$f":"IF([1]Descriptions!D49=\"Collections at services\",[1]Descriptions!B49,0)","v":0},"0General Account"]
[{"$f":"IF(Descriptions!D52=\"Collections at services\",Descriptions!B52,0)","v":0},0,0,0,0,0,0,0,0,0,0,0,0,0,0,0,0,0,0,0,0,0,null,{"$f":"IF(Descriptions!D52=\"Collections at services\",Descriptions!AA52,0)","v":0},{"$f":"IF([1]Descriptions!D50=\"Collections at services\",[1]Descriptions!B50,0)","v":0},"0General Account"]
[{"$f":"IF(Descriptions!D53=\"Collections at services\",Descriptions!B53,0)","v":0},0,0,0,0,0,0,0,0,0,0,0,0,0,0,0,0,0,0,0,0,0,null,{"$f":"IF(Descriptions!D53=\"Collections at services\",Descriptions!AA53,0)","v":0},{"$f":"IF([1]Descriptions!D51=\"Collections at services\",[1]Descriptions!B51,0)","v":0},"0General Account"]
[{"$f":"IF(Descriptions!D54=\"Collections at services\",Descriptions!B54,0)","v":0},0,0,0,0,0,0,0,0,0,0,0,0,0,0,0,0,0,0,0,0,0,null,{"$f":"IF(Descriptions!D54=\"Collections at services\",Descriptions!AA54,0)","v":0},{"$f":"IF([1]Descriptions!D52=\"Collections at services\",[1]Descriptions!B52,0)","v":0},"0General Account"]
[{"$f":"IF(Descriptions!D55=\"Collections at services\",Descriptions!B55,0)","v":0},0,0,0,0,0,0,0,0,0,0,0,0,0,0,0,0,0,0,0,0,0,null,{"$f":"IF(Descriptions!D55=\"Collections at services\",Descriptions!AA55,0)","v":0},{"$f":"IF([1]Descriptions!D53=\"Collections at services\",[1]Descriptions!B53,0)","v":0},"0General Account"]
[{"$f":"IF(Descriptions!D56=\"Collections at services\",Descriptions!B56,0)","v":0},0,0,0,0,0,0,0,0,0,0,0,0,0,0,0,0,0,0,0,0,0,null,{"$f":"IF(Descriptions!D56=\"Collections at services\",Descriptions!AA56,0)","v":0},{"$f":"IF([1]Descriptions!D54=\"Collections at services\",[1]Descriptions!B54,0)","v":0},"0General Account"]
[{"$f":"IF(Descriptions!D57=\"Collections at services\",Descriptions!B57,0)","v":0},0,0,0,0,0,0,0,0,0,0,0,0,0,0,0,0,0,0,0,0,0,null,{"$f":"IF(Descriptions!D57=\"Collections at services\",Descriptions!AA57,0)","v":0},{"$f":"IF([1]Descriptions!D55=\"Collections at services\",[1]Descriptions!B55,0)","v":0},"0General Account"]
[{"$f":"IF(Descriptions!D58=\"Collections at services\",Descriptions!B58,0)","v":0},0,0,0,0,0,0,0,0,0,0,0,0,0,0,0,0,0,0,0,0,0,null,{"$f":"IF(Descriptions!D58=\"Collections at services\",Descriptions!AA58,0)","v":0},{"$f":"IF([1]Descriptions!D56=\"Collections at services\",[1]Descriptions!B56,0)","v":0},"0General Account"]
[{"$f":"IF(Descriptions!D59=\"Collections at services\",Descriptions!B59,0)","v":0},0,0,0,0,0,0,0,0,0,0,0,0,0,0,0,0,0,0,0,0,0,null,{"$f":"IF(Descriptions!D59=\"Collections at services\",Descriptions!AA59,0)","v":0},{"$f":"IF([1]Descriptions!D57=\"Collections at services\",[1]Descriptions!B57,0)","v":0},"0General Account"]
[{"$f":"IF(Descriptions!D60=\"Collections at services\",Descriptions!B60,0)","v":0},0,0,0,0,0,0,0,0,0,0,0,0,0,0,0,0,0,0,0,0,0,null,{"$f":"IF(Descriptions!D60=\"Collections at services\",Descriptions!AA60,0)","v":0},{"$f":"IF([1]Descriptions!D58=\"Collections at services\",[1]Descriptions!B58,0)","v":0},"0General Account"]
[{"$f":"IF(Descriptions!D61=\"Collections at services\",Descriptions!B61,0)","v":0},0,0,0,0,0,0,0,0,0,0,0,0,0,0,0,0,0,0,0,0,0,null,{"$f":"IF(Descriptions!D61=\"Collections at services\",Descriptions!AA61,0)","v":0},{"$f":"IF([1]Descriptions!D59=\"Collections at services\",[1]Descriptions!B59,0)","v":0},"0General Account"]
[{"$f":"IF(Descriptions!D62=\"Collections at services\",Descriptions!B62,0)","v":0},0,0,0,0,0,0,0,0,0,0,0,0,0,0,0,0,0,0,0,0,0,null,{"$f":"IF(Descriptions!D62=\"Collections at services\",Descriptions!AA62,0)","v":0},{"$f":"IF([1]Descriptions!D60=\"Collections at services\",[1]Descriptions!B60,0)","v":0},"0General Account"]
[{"$f":"IF(Descriptions!D63=\"Collections at services\",Descriptions!B63,0)","v":0},0,0,0,0,0,0,0,0,0,0,0,0,0,0,0,0,0,0,0,0,0,null,{"$f":"IF(Descriptions!D63=\"Collections at services\",Descriptions!AA63,0)","v":0},{"$f":"IF([1]Descriptions!D61=\"Collections at services\",[1]Descriptions!B61,0)","v":0},"0General Account"]
[{"$f":"IF(Descriptions!D64=\"Collections at services\",Descriptions!B64,0)","v":0},0,0,0,0,0,0,0,0,0,0,0,0,0,0,0,0,0,0,0,0,0,null,{"$f":"IF(Descriptions!D64=\"Collections at services\",Descriptions!AA64,0)","v":0},{"$f":"IF([1]Descriptions!D62=\"Collections at services\",[1]Descriptions!B62,0)","v":0},"0General Account"]
[{"$f":"IF(Descriptions!D65=\"Collections at services\",Descriptions!B65,0)","v":0},0,0,0,0,0,0,0,0,0,0,0,0,0,0,0,0,0,0,0,0,0,null,{"$f":"IF(Descriptions!D65=\"Collections at services\",Descriptions!AA65,0)","v":0},{"$f":"IF([1]Descriptions!D63=\"Collections at services\",[1]Descriptions!B63,0)","v":0},"0General Account"]
[{"$f":"IF(Descriptions!D66=\"Collections at services\",Descriptions!B66,0)","v":0},0,0,0,0,0,0,0,0,0,0,0,0,0,0,0,0,0,0,0,0,0,null,{"$f":"IF(Descriptions!D66=\"Collections at services\",Descriptions!AA66,0)","v":0},{"$f":"IF([1]Descriptions!D64=\"Collections at services\",[1]Descriptions!B64,0)","v":0},"0General Account"]
[{"$f":"IF(Descriptions!D67=\"Collections at services\",Descriptions!B67,0)","v":0},0,0,0,0,0,0,0,0,0,0,0,0,0,0,0,0,0,0,0,0,0,null,{"$f":"IF(Descriptions!D67=\"Collections at services\",Descriptions!AA67,0)","v":0},{"$f":"IF([1]Descriptions!D65=\"Collections at services\",[1]Descriptions!B65,0)","v":0},"0General Account"]
[{"$f":"IF(Descriptions!D68=\"Collections at services\",Descriptions!B68,0)","v":0},0,0,0,0,0,0,0,0,0,0,0,0,0,0,0,0,0,0,0,0,0,null,{"$f":"IF(Descriptions!D68=\"Collections at services\",Descriptions!AA68,0)","v":0},{"$f":"IF([1]Descriptions!D66=\"Collections at services\",[1]Descriptions!B66,0)","v":0},"0General Account"]
[{"$f":"IF(Descriptions!D69=\"Collections at services\",Descriptions!B69,0)","v":0},0,0,0,0,0,0,0,0,0,0,0,0,0,0,0,0,0,0,0,0,0,null,{"$f":"IF(Descriptions!D69=\"Collections at services\",Descriptions!AA69,0)","v":0},{"$f":"IF([1]Descriptions!D67=\"Collections at services\",[1]Descriptions!B67,0)","v":0},"0General Account"]
[{"$f":"IF(Descriptions!D70=\"Collections at services\",Descriptions!B70,0)","v":0},0,0,0,0,0,0,0,0,0,0,0,0,0,0,0,0,0,0,0,0,0,null,{"$f":"IF(Descriptions!D70=\"Collections at services\",Descriptions!AA70,0)","v":0},{"$f":"IF([1]Descriptions!D68=\"Collections at services\",[1]Descriptions!B68,0)","v":0},"0General Account"]
[{"$f":"IF(Descriptions!D71=\"Collections at services\",Descriptions!B71,0)","v":0},0,0,0,0,0,0,0,0,0,0,0,0,0,0,0,0,0,0,0,0,0,null,{"$f":"IF(Descriptions!D71=\"Collections at services\",Descriptions!AA71,0)","v":0},{"$f":"IF([1]Descriptions!D69=\"Collections at services\",[1]Descriptions!B69,0)","v":0},"0General Account"]
[{"$f":"IF(Descriptions!D72=\"Collections at services\",Descriptions!B72,0)","v":0},0,0,0,0,0,0,0,0,0,0,0,0,0,0,0,0,0,0,0,0,0,null,{"$f":"IF(Descriptions!D72=\"Collections at services\",Descriptions!AA72,0)","v":0},{"$f":"IF([1]Descriptions!D70=\"Collections at services\",[1]Descriptions!B70,0)","v":0},"0General Account"]
[{"$f":"IF(Descriptions!D73=\"Collections at services\",Descriptions!B73,0)","v":0},0,0,0,0,0,0,0,0,0,0,0,0,0,0,0,0,0,0,0,0,0,null,{"$f":"IF(Descriptions!D73=\"Collections at services\",Descriptions!AA73,0)","v":0},{"$f":"IF([1]Descriptions!D71=\"Collections at services\",[1]Descriptions!B71,0)","v":0},"0General Account"]
[{"$f":"IF(Descriptions!D74=\"Collections at services\",Descriptions!B74,0)","v":0},0,0,0,0,0,0,0,0,0,0,0,0,0,0,0,0,0,0,0,0,0,null,{"$f":"IF(Descriptions!D74=\"Collections at services\",Descriptions!AA74,0)","v":0},{"$f":"IF([1]Descriptions!D72=\"Collections at services\",[1]Descriptions!B72,0)","v":0},"0General Account"]
[{"$f":"IF(Descriptions!D75=\"Collections at services\",Descriptions!B75,0)","v":0},0,0,0,0,0,0,0,0,0,0,0,0,0,0,0,0,0,0,0,0,0,null,{"$f":"IF(Descriptions!D75=\"Collections at services\",Descriptions!AA75,0)","v":0},{"$f":"IF([1]Descriptions!D73=\"Collections at services\",[1]Descriptions!B73,0)","v":0},"0General Account"]
[{"$f":"IF(Descriptions!D76=\"Collections at services\",Descriptions!B76,0)","v":0},0,0,0,0,0,0,0,0,0,0,0,0,0,0,0,0,0,0,0,0,0,null,{"$f":"IF(Descriptions!D76=\"Collections at services\",Descriptions!AA76,0)","v":0},{"$f":"IF([1]Descriptions!D74=\"Collections at services\",[1]Descriptions!B74,0)","v":0},"0General Account"]
[{"$f":"IF(Descriptions!D77=\"Collections at services\",Descriptions!B77,0)","v":0},0,0,0,0,0,0,0,0,0,0,0,0,0,0,0,0,0,0,0,0,0,null,{"$f":"IF(Descriptions!D77=\"Collections at services\",Descriptions!AA77,0)","v":0},{"$f":"IF([1]Descriptions!D75=\"Collections at services\",[1]Descriptions!B75,0)","v":0},"0General Account"]
[{"$f":"IF(Descriptions!D78=\"Collections at services\",Descriptions!B78,0)","v":0},0,0,0,0,0,0,0,0,0,0,0,0,0,0,0,0,0,0,0,0,0,null,{"$f":"IF(Descriptions!D78=\"Collections at services\",Descriptions!AA78,0)","v":0},{"$f":"IF([1]Descriptions!D76=\"Collections at services\",[1]Descriptions!B76,0)","v":0},"0General Account"]
[{"$f":"IF(Descriptions!D79=\"Collections at services\",Descriptions!B79,0)","v":0},0,0,0,0,0,0,0,0,0,0,0,0,0,0,0,0,0,0,0,0,0,null,{"$f":"IF(Descriptions!D79=\"Collections at services\",Descriptions!AA79,0)","v":0},{"$f":"IF([1]Descriptions!D77=\"Collections at services\",[1]Descriptions!B77,0)","v":0},"0General Account"]
[{"$f":"IF(Descriptions!D80=\"Collections at services\",Descriptions!B80,0)","v":0},0,0,0,0,0,0,0,0,0,0,0,0,0,0,0,0,0,0,0,0,0,null,{"$f":"IF(Descriptions!D80=\"Collections at services\",Descriptions!AA80,0)","v":0},{"$f":"IF([1]Descriptions!D78=\"Collections at services\",[1]Descriptions!B78,0)","v":0},"0General Account"]
[{"$f":"IF(Descriptions!D81=\"Collections at services\",Descriptions!B81,0)","v":0},0,0,0,0,0,0,0,0,0,0,0,0,0,0,0,0,0,0,0,0,0,null,{"$f":"IF(Descriptions!D81=\"Collections at services\",Descriptions!AA81,0)","v":0},{"$f":"IF([1]Descriptions!D79=\"Collections at services\",[1]Descriptions!B79,0)","v":0},"0General Account"]
[{"$f":"IF(Descriptions!D82=\"Collections at services\",Descriptions!B82,0)","v":0},0,0,0,0,0,0,0,0,0,0,0,0,0,0,0,0,0,0,0,0,0,null,{"$f":"IF(Descriptions!D82=\"Collections at services\",Descriptions!AA82,0)","v":0},{"$f":"IF([1]Descriptions!D80=\"Collections at services\",[1]Descriptions!B80,0)","v":0},"0General Account"]
[{"$f":"IF(Descriptions!D83=\"Collections at services\",Descriptions!B83,0)","v":0},0,0,0,0,0,0,0,0,0,0,0,0,0,0,0,0,0,0,0,0,0,null,{"$f":"IF(Descriptions!D83=\"Collections at services\",Descriptions!AA83,0)","v":0},{"$f":"IF([1]Descriptions!D81=\"Collections at services\",[1]Descriptions!B81,0)","v":0},"0General Account"]
[{"$f":"IF(Descriptions!D84=\"Collections at services\",Descriptions!B84,0)","v":0},0,0,0,0,0,0,0,0,0,0,0,0,0,0,0,0,0,0,0,0,0,null,{"$f":"IF(Descriptions!D84=\"Collections at services\",Descriptions!AA84,0)","v":0},{"$f":"IF([1]Descriptions!D82=\"Collections at services\",[1]Descriptions!B82,0)","v":0},"0General Account"]
[{"$f":"IF(Descriptions!D85=\"Collections at services\",Descriptions!B85,0)","v":0},0,0,0,0,0,0,0,0,0,0,0,0,0,0,0,0,0,0,0,0,0,null,{"$f":"IF(Descriptions!D85=\"Collections at services\",Descriptions!AA85,0)","v":0},{"$f":"IF([1]Descriptions!D83=\"Collections at services\",[1]Descriptions!B83,0)","v":0},"0General Account"]
[{"$f":"IF(Descriptions!D86=\"Collections at services\",Descriptions!B86,0)","v":0},0,0,0,0,0,0,0,0,0,0,0,0,0,0,0,0,0,0,0,0,0,null,{"$f":"IF(Descriptions!D86=\"Collections at services\",Descriptions!AA86,0)","v":0},{"$f":"IF([1]Descriptions!D84=\"Collections at services\",[1]Descriptions!B84,0)","v":0},"0General Account"]
[{"$f":"IF(Descriptions!D87=\"Collections at services\",Descriptions!B87,0)","v":0},0,0,0,0,0,0,0,0,0,0,0,0,0,0,0,0,0,0,0,0,0,null,{"$f":"IF(Descriptions!D87=\"Collections at services\",Descriptions!AA87,0)","v":0},{"$f":"IF([1]Descriptions!D85=\"Collections at services\",[1]Descriptions!B85,0)","v":0},"0General Account"]
[{"$f":"IF(Descriptions!D88=\"Collections at services\",Descriptions!B88,0)","v":0},0,0,0,0,0,0,0,0,0,0,0,0,0,0,0,0,0,0,0,0,0,null,{"$f":"IF(Descriptions!D88=\"Collections at services\",Descriptions!AA88,0)","v":0},{"$f":"IF([1]Descriptions!D86=\"Collections at services\",[1]Descriptions!B86,0)","v":0},"0General Account"]
[{"$f":"IF(Descriptions!D89=\"Collections at services\",Descriptions!B89,0)","v":0},0,0,0,0,0,0,0,0,0,0,0,0,0,0,0,0,0,0,0,0,0,null,{"$f":"IF(Descriptions!D89=\"Collections at services\",Descriptions!AA89,0)","v":0},{"$f":"IF([1]Descriptions!D87=\"Collections at services\",[1]Descriptions!B87,0)","v":0},"0General Account"]
[{"$f":"IF(Descriptions!D90=\"Collections at services\",Descriptions!B90,0)","v":0},0,0,0,0,0,0,0,0,0,0,0,0,0,0,0,0,0,0,0,0,0,null,{"$f":"IF(Descriptions!D90=\"Collections at services\",Descriptions!AA90,0)","v":0},{"$f":"IF([1]Descriptions!D88=\"Collections at services\",[1]Descriptions!B88,0)","v":0},"0General Account"]
[{"$f":"IF(Descriptions!D91=\"Collections at services\",Descriptions!B91,0)","v":0},0,0,0,0,0,0,0,0,0,0,0,0,0,0,0,0,0,0,0,0,0,null,{"$f":"IF(Descriptions!D91=\"Collections at services\",Descriptions!AA91,0)","v":0},{"$f":"IF([1]Descriptions!D89=\"Collections at services\",[1]Descriptions!B89,0)","v":0},"0General Account"]
[{"$f":"IF(Descriptions!D92=\"Collections at services\",Descriptions!B92,0)","v":0},0,0,0,0,0,0,0,0,0,0,0,0,0,0,0,0,0,0,0,0,0,null,{"$f":"IF(Descriptions!D92=\"Collections at services\",Descriptions!AA92,0)","v":0},{"$f":"IF([1]Descriptions!D90=\"Collections at services\",[1]Descriptions!B90,0)","v":0},"0General Account"]
[null,{"$f":"SUM(B6:B63)","v":0},0,0,0,0,0,0,0,0,0,0,0,0,0,0,0,0,0,0,0,0,null,{"$f":"X5","v":0}]
["PLANNED GIVING",null,null,null,null,null,null,null,null,null,null,null,null,null,null,null,null,null,null,null,null,null,null,{"$f":"SUM(X66:X117)","v":0}]
["Standing Order",0,0,0,0,0,0,0,0,0,0,0,0,0,0,0,0,0,0,0,0,0,null,{"$f":"Descriptions!AA33","v":0},{"$f":"[1]Descriptions!B31","v":"Standing Order"},{"$f":"CONCATENATE(Y66,$Y$3)","v":"Standing OrderGeneral Account"}]
["Parish Giving Scheme Income",0,0,0,0,0,0,0,0,0,0,0,0,0,0,0,0,0,0,0,0,0,null,{"$f":"Descriptions!AA29","v":0},{"$f":"[1]Descriptions!B27","v":"Parish Giving Scheme Income"},{"$f":"CONCATENATE(Y67,$Y$3)","v":"Parish Giving Scheme IncomeGeneral Account"}]
[{"$f":"IF(Descriptions!D43=\"Planned giving\",Descriptions!B43,0)","v":0},0,0,0,0,0,0,0,0,0,0,0,0,0,0,0,0,0,0,0,0,0,null,{"$f":"IF(Descriptions!D43=\"Planned giving\",Descriptions!AA43,0)","v":0},{"$f":"IF([1]Descriptions!D41=\"Planned giving\",[1]Descriptions!B41,0)","v":0},{"$f":"CONCATENATE(Y68,$Y$3)","v":"0General Account"}]
[{"$f":"IF(Descriptions!D44=\"Planned giving\",Descriptions!B44,0)","v":0},0,0,0,0,0,0,0,0,0,0,0,0,0,0,0,0,0,0,0,0,0,null,{"$f":"IF(Descriptions!D44=\"Planned giving\",Descriptions!AA44,0)","v":0},{"$f":"IF([1]Descriptions!D42=\"Planned giving\",[1]Descriptions!B42,0)","v":0},{"$f":"CONCATENATE(Y69,$Y$3)","v":"0General Account"}]
[{"$f":"IF(Descriptions!D45=\"Planned giving\",Descriptions!B45,0)","v":0},0,0,0,0,0,0,0,0,0,0,0,0,0,0,0,0,0,0,0,0,0,null,{"$f":"IF(Descriptions!D45=\"Planned giving\",Descriptions!AA45,0)","v":0},{"$f":"IF([1]Descriptions!D43=\"Planned giving\",[1]Descriptions!B43,0)","v":0},"0General Account"]
[{"$f":"IF(Descriptions!D46=\"Planned giving\",Descriptions!B46,0)","v":0},0,0,0,0,0,0,0,0,0,0,0,0,0,0,0,0,0,0,0,0,0,null,{"$f":"IF(Descriptions!D46=\"Planned giving\",Descriptions!AA46,0)","v":0},{"$f":"IF([1]Descriptions!D44=\"Planned giving\",[1]Descriptions!B44,0)","v":0},"0General Account"]
[{"$f":"IF(Descriptions!D47=\"Planned giving\",Descriptions!B47,0)","v":0},0,0,0,0,0,0,0,0,0,0,0,0,0,0,0,0,0,0,0,0,0,null,{"$f":"IF(Descriptions!D47=\"Planned giving\",Descriptions!AA47,0)","v":0},{"$f":"IF([1]Descriptions!D45=\"Planned giving\",[1]Descriptions!B45,0)","v":0},"0General Account"]
[{"$f":"IF(Descriptions!D48=\"Planned giving\",Descriptions!B48,0)","v":0},0,0,0,0,0,0,0,0,0,0,0,0,0,0,0,0,0,0,0,0,0,null,{"$f":"IF(Descriptions!D48=\"Planned giving\",Descriptions!AA48,0)","v":0},{"$f":"IF([1]Descriptions!D46=\"Planned giving\",[1]Descriptions!B46,0)","v":0},"0General Account"]
[{"$f":"IF(Descriptions!D49=\"Planned giving\",Descriptions!B49,0)","v":0},0,0,0,0,0,0,0,0,0,0,0,0,0,0,0,0,0,0,0,0,0,null,{"$f":"IF(Descriptions!D49=\"Planned giving\",Descriptions!AA49,0)","v":0},{"$f":"IF([1]Descriptions!D47=\"Planned giving\",[1]Descriptions!B47,0)","v":0},"0General Account"]
[{"$f":"IF(Descriptions!D50=\"Planned giving\",Descriptions!B50,0)","v":0},0,0,0,0,0,0,0,0,0,0,0,0,0,0,0,0,0,0,0,0,0,null,{"$f":"IF(Descriptions!D50=\"Planned giving\",Descriptions!AA50,0)","v":0},{"$f":"IF([1]Descriptions!D48=\"Planned giving\",[1]Descriptions!B48,0)","v":0},"0General Account"]
[{"$f":"IF(Descriptions!D51=\"Planned giving\",Descriptions!B51,0)","v":0},0,0,0,0,0,0,0,0,0,0,0,0,0,0,0,0,0,0,0,0,0,null,{"$f":"IF(Descriptions!D51=\"Planned giving\",Descriptions!AA51,0)","v":0},{"$f":"IF([1]Descriptions!D49=\"Planned giving\",[1]Descriptions!B49,0)","v":0},"0General Account"]
[{"$f":"IF(Descriptions!D52=\"Planned giving\",Descriptions!B52,0)","v":0},0,0,0,0,0,0,0,0,0,0,0,0,0,0,0,0,0,0,0,0,0,null,{"$f":"IF(Descriptions!D52=\"Planned giving\",Descriptions!AA52,0)","v":0},{"$f":"IF([1]Descriptions!D50=\"Planned giving\",[1]Descriptions!B50,0)","v":0},"0General Account"]
[{"$f":"IF(Descriptions!D53=\"Planned giving\",Descriptions!B53,0)","v":0},0,0,0,0,0,0,0,0,0,0,0,0,0,0,0,0,0,0,0,0,0,null,{"$f":"IF(Descriptions!D53=\"Planned giving\",Descriptions!AA53,0)","v":0},{"$f":"IF([1]Descriptions!D51=\"Planned giving\",[1]Descriptions!B51,0)","v":0},"0General Account"]
[{"$f":"IF(Descriptions!D54=\"Planned giving\",Descriptions!B54,0)","v":0},0,0,0,0,0,0,0,0,0,0,0,0,0,0,0,0,0,0,0,0,0,null,{"$f":"IF(Descriptions!D54=\"Planned giving\",Descriptions!AA54,0)","v":0},{"$f":"IF([1]Descriptions!D52=\"Planned giving\",[1]Descriptions!B52,0)","v":0},"0General Account"]
[{"$f":"IF(Descriptions!D55=\"Planned giving\",Descriptions!B55,0)","v":0},0,0,0,0,0,0,0,0,0,0,0,0,0,0,0,0,0,0,0,0,0,null,{"$f":"IF(Descriptions!D55=\"Planned giving\",Descriptions!AA55,0)","v":0},{"$f":"IF([1]Descriptions!D53=\"Planned giving\",[1]Descriptions!B53,0)","v":0},"0General Account"]
[{"$f":"IF(Descriptions!D56=\"Planned giving\",Descriptions!B56,0)","v":0},0,0,0,0,0,0,0,0,0,0,0,0,0,0,0,0,0,0,0,0,0,null,{"$f":"IF(Descriptions!D56=\"Planned giving\",Descriptions!AA56,0)","v":0},{"$f":"IF([1]Descriptions!D54=\"Planned giving\",[1]Descriptions!B54,0)","v":0},"0General Account"]
[{"$f":"IF(Descriptions!D57=\"Planned giving\",Descriptions!B57,0)","v":0},0,0,0,0,0,0,0,0,0,0,0,0,0,0,0,0,0,0,0,0,0,null,{"$f":"IF(Descriptions!D57=\"Planned giving\",Descriptions!AA57,0)","v":0},{"$f":"IF([1]Descriptions!D55=\"Planned giving\",[1]Descriptions!B55,0)","v":0},"0General Account"]
[{"$f":"IF(Descriptions!D58=\"Planned giving\",Descriptions!B58,0)","v":0},0,0,0,0,0,0,0,0,0,0,0,0,0,0,0,0,0,0,0,0,0,null,{"$f":"IF(Descriptions!D58=\"Planned giving\",Descriptions!AA58,0)","v":0},{"$f":"IF([1]Descriptions!D56=\"Planned giving\",[1]Descriptions!B56,0)","v":0},"0General Account"]
[{"$f":"IF(Descriptions!D59=\"Planned giving\",Descriptions!B59,0)","v":0},0,0,0,0,0,0,0,0,0,0,0,0,0,0,0,0,0,0,0,0,0,null,{"$f":"IF(Descriptions!D59=\"Planned giving\",Descriptions!AA59,0)","v":0},{"$f":"IF([1]Descriptions!D57=\"Planned giving\",[1]Descriptions!B57,0)","v":0},"0General Account"]
[{"$f":"IF(Descriptions!D60=\"Planned giving\",Descriptions!B60,0)","v":0},0,0,0,0,0,0,0,0,0,0,0,0,0,0,0,0,0,0,0,0,0,null,{"$f":"IF(Descriptions!D60=\"Planned giving\",Descriptions!AA60,0)","v":0},{"$f":"IF([1]Descriptions!D58=\"Planned giving\",[1]Descriptions!B58,0)","v":0},"0General Account"]
[{"$f":"IF(Descriptions!D61=\"Planned giving\",Descriptions!B61,0)","v":0},0,0,0,0,0,0,0,0,0,0,0,0,0,0,0,0,0,0,0,0,0,null,{"$f":"IF(Descriptions!D61=\"Planned giving\",Descriptions!AA61,0)","v":0},{"$f":"IF([1]Descriptions!D59=\"Planned giving\",[1]Descriptions!B59,0)","v":0},"0General Account"]
[{"$f":"IF(Descriptions!D62=\"Planned giving\",Descriptions!B62,0)","v":0},0,0,0,0,0,0,0,0,0,0,0,0,0,0,0,0,0,0,0,0,0,null,{"$f":"IF(Descriptions!D62=\"Planned giving\",Descriptions!AA62,0)","v":0},{"$f":"IF([1]Descriptions!D60=\"Planned giving\",[1]Descriptions!B60,0)","v":0},"0General Account"]
[{"$f":"IF(Descriptions!D63=\"Planned giving\",Descriptions!B63,0)","v":0},0,0,0,0,0,0,0,0,0,0,0,0,0,0,0,0,0,0,0,0,0,null,{"$f":"IF(Descriptions!D63=\"Planned giving\",Descriptions!AA63,0)","v":0},{"$f":"IF([1]Descriptions!D61=\"Planned giving\",[1]Descriptions!B61,0)","v":0},"0General Account"]
[{"$f":"IF(Descriptions!D64=\"Planned giving\",Descriptions!B64,0)","v":0},0,0,0,0,0,0,0,0,0,0,0,0,0,0,0,0,0,0,0,0,0,null,{"$f":"IF(Descriptions!D64=\"Planned giving\",Descriptions!AA64,0)","v":0},{"$f":"IF([1]Descriptions!D62=\"Planned giving\",[1]Descriptions!B62,0)","v":0},"0General Account"]
[{"$f":"IF(Descriptions!D65=\"Planned giving\",Descriptions!B65,0)","v":0},0,0,0,0,0,0,0,0,0,0,0,0,0,0,0,0,0,0,0,0,0,null,{"$f":"IF(Descriptions!D65=\"Planned giving\",Descriptions!AA65,0)","v":0},{"$f":"IF([1]Descriptions!D63=\"Planned giving\",[1]Descriptions!B63,0)","v":0},"0General Account"]
[{"$f":"IF(Descriptions!D66=\"Planned giving\",Descriptions!B66,0)","v":0},0,0,0,0,0,0,0,0,0,0,0,0,0,0,0,0,0,0,0,0,0,null,{"$f":"IF(Descriptions!D66=\"Planned giving\",Descriptions!AA66,0)","v":0},{"$f":"IF([1]Descriptions!D64=\"Planned giving\",[1]Descriptions!B64,0)","v":0},"0General Account"]
[{"$f":"IF(Descriptions!D67=\"Planned giving\",Descriptions!B67,0)","v":0},0,0,0,0,0,0,0,0,0,0,0,0,0,0,0,0,0,0,0,0,0,null,{"$f":"IF(Descriptions!D67=\"Planned giving\",Descriptions!AA67,0)","v":0},{"$f":"IF([1]Descriptions!D65=\"Planned giving\",[1]Descriptions!B65,0)","v":0},"0General Account"]
[{"$f":"IF(Descriptions!D68=\"Planned giving\",Descriptions!B68,0)","v":0},0,0,0,0,0,0,0,0,0,0,0,0,0,0,0,0,0,0,0,0,0,null,{"$f":"IF(Descriptions!D68=\"Planned giving\",Descriptions!AA68,0)","v":0},{"$f":"IF([1]Descriptions!D66=\"Planned giving\",[1]Descriptions!B66,0)","v":0},"0General Account"]
[{"$f":"IF(Descriptions!D69=\"Planned giving\",Descriptions!B69,0)","v":0},0,0,0,0,0,0,0,0,0,0,0,0,0,0,0,0,0,0,0,0,0,null,{"$f":"IF(Descriptions!D69=\"Planned giving\",Descriptions!AA69,0)","v":0},{"$f":"IF([1]Descriptions!D67=\"Planned giving\",[1]Descriptions!B67,0)","v":0},"0General Account"]
[{"$f":"IF(Descriptions!D70=\"Planned giving\",Descriptions!B70,0)","v":0},0,0,0,0,0,0,0,0,0,0,0,0,0,0,0,0,0,0,0,0,0,null,{"$f":"IF(Descriptions!D70=\"Planned giving\",Descriptions!AA70,0)","v":0},{"$f":"IF([1]Descriptions!D68=\"Planned giving\",[1]Descriptions!B68,0)","v":0},"0General Account"]
[{"$f":"IF(Descriptions!D71=\"Planned giving\",Descriptions!B71,0)","v":0},0,0,0,0,0,0,0,0,0,0,0,0,0,0,0,0,0,0,0,0,0,null,{"$f":"IF(Descriptions!D71=\"Planned giving\",Descriptions!AA71,0)","v":0},{"$f":"IF([1]Descriptions!D69=\"Planned giving\",[1]Descriptions!B69,0)","v":0},"0General Account"]
[{"$f":"IF(Descriptions!D72=\"Planned giving\",Descriptions!B72,0)","v":0},0,0,0,0,0,0,0,0,0,0,0,0,0,0,0,0,0,0,0,0,0,null,{"$f":"IF(Descriptions!D72=\"Planned giving\",Descriptions!AA72,0)","v":0},{"$f":"IF([1]Descriptions!D70=\"Planned giving\",[1]Descriptions!B70,0)","v":0},"0General Account"]
[{"$f":"IF(Descriptions!D73=\"Planned giving\",Descriptions!B73,0)","v":0},0,0,0,0,0,0,0,0,0,0,0,0,0,0,0,0,0,0,0,0,0,null,{"$f":"IF(Descriptions!D73=\"Planned giving\",Descriptions!AA73,0)","v":0},{"$f":"IF([1]Descriptions!D71=\"Planned giving\",[1]Descriptions!B71,0)","v":0},"0General Account"]
[{"$f":"IF(Descriptions!D74=\"Planned giving\",Descriptions!B74,0)","v":0},0,0,0,0,0,0,0,0,0,0,0,0,0,0,0,0,0,0,0,0,0,null,{"$f":"IF(Descriptions!D74=\"Planned giving\",Descriptions!AA74,0)","v":0},{"$f":"IF([1]Descriptions!D72=\"Planned giving\",[1]Descriptions!B72,0)","v":0},"0General Account"]
[{"$f":"IF(Descriptions!D75=\"Planned giving\",Descriptions!B75,0)","v":0},0,0,0,0,0,0,0,0,0,0,0,0,0,0,0,0,0,0,0,0,0,null,{"$f":"IF(Descriptions!D75=\"Planned giving\",Descriptions!AA75,0)","v":0},{"$f":"IF([1]Descriptions!D73=\"Planned giving\",[1]Descriptions!B73,0)","v":0},"0General Account"]
[{"$f":"IF(Descriptions!D76=\"Planned giving\",Descriptions!B76,0)","v":0},0,0,0,0,0,0,0,0,0,0,0,0,0,0,0,0,0,0,0,0,0,null,{"$f":"IF(Descriptions!D76=\"Planned giving\",Descriptions!AA76,0)","v":0},{"$f":"IF([1]Descriptions!D74=\"Planned giving\",[1]Descriptions!B74,0)","v":0},"0General Account"]
[{"$f":"IF(Descriptions!D77=\"Planned giving\",Descriptions!B77,0)","v":0},0,0,0,0,0,0,0,0,0,0,0,0,0,0,0,0,0,0,0,0,0,null,{"$f":"IF(Descriptions!D77=\"Planned giving\",Descriptions!AA77,0)","v":0},{"$f":"IF([1]Descriptions!D75=\"Planned giving\",[1]Descriptions!B75,0)","v":0},"0General Account"]
[{"$f":"IF(Descriptions!D78=\"Planned giving\",Descriptions!B78,0)","v":0},0,0,0,0,0,0,0,0,0,0,0,0,0,0,0,0,0,0,0,0,0,null,{"$f":"IF(Descriptions!D78=\"Planned giving\",Descriptions!AA78,0)","v":0},{"$f":"IF([1]Descriptions!D76=\"Planned giving\",[1]Descriptions!B76,0)","v":0},"0General Account"]
[{"$f":"IF(Descriptions!D79=\"Planned giving\",Descriptions!B79,0)","v":0},0,0,0,0,0,0,0,0,0,0,0,0,0,0,0,0,0,0,0,0,0,null,{"$f":"IF(Descriptions!D79=\"Planned giving\",Descriptions!AA79,0)","v":0},{"$f":"IF([1]Descriptions!D77=\"Planned giving\",[1]Descriptions!B77,0)","v":0},"0General Account"]
[{"$f":"IF(Descriptions!D80=\"Planned giving\",Descriptions!B80,0)","v":0},0,0,0,0,0,0,0,0,0,0,0,0,0,0,0,0,0,0,0,0,0,null,{"$f":"IF(Descriptions!D80=\"Planned giving\",Descriptions!AA80,0)","v":0},{"$f":"IF([1]Descriptions!D78=\"Planned giving\",[1]Descriptions!B78,0)","v":0},"0General Account"]
[{"$f":"IF(Descriptions!D81=\"Planned giving\",Descriptions!B81,0)","v":0},0,0,0,0,0,0,0,0,0,0,0,0,0,0,0,0,0,0,0,0,0,null,{"$f":"IF(Descriptions!D81=\"Planned giving\",Descriptions!AA81,0)","v":0},{"$f":"IF([1]Descriptions!D79=\"Planned giving\",[1]Descriptions!B79,0)","v":0},"0General Account"]
[{"$f":"IF(Descriptions!D82=\"Planned giving\",Descriptions!B82,0)","v":0},0,0,0,0,0,0,0,0,0,0,0,0,0,0,0,0,0,0,0,0,0,null,{"$f":"IF(Descriptions!D82=\"Planned giving\",Descriptions!AA82,0)","v":0},{"$f":"IF([1]Descriptions!D80=\"Planned giving\",[1]Descriptions!B80,0)","v":0},"0General Account"]
[{"$f":"IF(Descriptions!D83=\"Planned giving\",Descriptions!B83,0)","v":0},0,0,0,0,0,0,0,0,0,0,0,0,0,0,0,0,0,0,0,0,0,null,{"$f":"IF(Descriptions!D83=\"Planned giving\",Descriptions!AA83,0)","v":0},{"$f":"IF([1]Descriptions!D81=\"Planned giving\",[1]Descriptions!B81,0)","v":0},"0General Account"]
[{"$f":"IF(Descriptions!D84=\"Planned giving\",Descriptions!B84,0)","v":0},0,0,0,0,0,0,0,0,0,0,0,0,0,0,0,0,0,0,0,0,0,null,{"$f":"IF(Descriptions!D84=\"Planned giving\",Descriptions!AA84,0)","v":0},{"$f":"IF([1]Descriptions!D82=\"Planned giving\",[1]Descriptions!B82,0)","v":0},"0General Account"]
[{"$f":"IF(Descriptions!D85=\"Planned giving\",Descriptions!B85,0)","v":0},0,0,0,0,0,0,0,0,0,0,0,0,0,0,0,0,0,0,0,0,0,null,{"$f":"IF(Descriptions!D85=\"Planned giving\",Descriptions!AA85,0)","v":0},{"$f":"IF([1]Descriptions!D83=\"Planned giving\",[1]Descriptions!B83,0)","v":0},"0General Account"]
[{"$f":"IF(Descriptions!D86=\"Planned giving\",Descriptions!B86,0)","v":0},0,0,0,0,0,0,0,0,0,0,0,0,0,0,0,0,0,0,0,0,0,null,{"$f":"IF(Descriptions!D86=\"Planned giving\",Descriptions!AA86,0)","v":0},{"$f":"IF([1]Descriptions!D84=\"Planned giving\",[1]Descriptions!B84,0)","v":0},"0General Account"]
[{"$f":"IF(Descriptions!D87=\"Planned giving\",Descriptions!B87,0)","v":0},0,0,0,0,0,0,0,0,0,0,0,0,0,0,0,0,0,0,0,0,0,null,{"$f":"IF(Descriptions!D87=\"Planned giving\",Descriptions!AA87,0)","v":0},{"$f":"IF([1]Descriptions!D85=\"Planned giving\",[1]Descriptions!B85,0)","v":0},"0General Account"]
[{"$f":"IF(Descriptions!D88=\"Planned giving\",Descriptions!B88,0)","v":0},0,0,0,0,0,0,0,0,0,0,0,0,0,0,0,0,0,0,0,0,0,null,{"$f":"IF(Descriptions!D88=\"Planned giving\",Descriptions!AA88,0)","v":0},{"$f":"IF([1]Descriptions!D86=\"Planned giving\",[1]Descriptions!B86,0)","v":0},"0General Account"]
[{"$f":"IF(Descriptions!D89=\"Planned giving\",Descriptions!B89,0)","v":0},0,0,0,0,0,0,0,0,0,0,0,0,0,0,0,0,0,0,0,0,0,null,{"$f":"IF(Descriptions!D89=\"Planned giving\",Descriptions!AA89,0)","v":0},{"$f":"IF([1]Descriptions!D87=\"Planned giving\",[1]Descriptions!B87,0)","v":0},"0General Account"]
[{"$f":"IF(Descriptions!D90=\"Planned giving\",Descriptions!B90,0)","v":0},0,0,0,0,0,0,0,0,0,0,0,0,0,0,0,0,0,0,0,0,0,null,{"$f":"IF(Descriptions!D90=\"Planned giving\",Descriptions!AA90,0)","v":0},{"$f":"IF([1]Descriptions!D88=\"Planned giving\",[1]Descriptions!B88,0)","v":0},"0General Account"]
[{"$f":"IF(Descriptions!D91=\"Planned giving\",Descriptions!B91,0)","v":0},0,0,0,0,0,0,0,0,0,0,0,0,0,0,0,0,0,0,0,0,0,null,{"$f":"IF(Descriptions!D91=\"Planned giving\",Descriptions!AA91,0)","v":0},{"$f":"IF([1]Descriptions!D89=\"Planned giving\",[1]Descriptions!B89,0)","v":0},"0General Account"]
[{"$f":"IF(Descriptions!D92=\"Planned giving\",Descriptions!B92,0)","v":0},0,0,0,0,0,0,0,0,0,0,0,0,0,0,0,0,0,0,0,0,0,null,{"$f":"IF(Descriptions!D92=\"Planned giving\",Descriptions!AA92,0)","v":0},{"$f":"IF([1]Descriptions!D90=\"Planned giving\",[1]Descriptions!B90,0)","v":0},"0General Account"]
[null,{"$f":"SUM(B66:B117)","v":0},0,0,0,0,0,0,0,0,0,0,0,0,0,0,0,0,0,0,0,0,null,{"$f":"X65","v":0}]
["GIFT AID RECEIVED",null,null,null,null,null,null,null,null,null,null,null,null,null,null,null,null,null,null,null,null,null,null,{"$f":"SUM(X120)","v":0}]
["Gift Aid Reclaim",0,0,0,0,0,0,0,0,0,0,0,0,0,0,0,0,0,0,0,0,0,null,{"$f":"Descriptions!AA18","v":0},{"$f":"[1]Descriptions!B16","v":"Gift Aid Reclaim"},{"$f":"CONCATENATE(Y120,$Y$3)","v":"Gift Aid ReclaimGeneral Account"}]
[{"$f":"IF(Descriptions!D43=\"Gift aid recovered\",Descriptions!B43,0)","v":0},0,0,0,0,0,0,0,0,0,0,0,0,0,0,0,0,0,0,0,0,0,null,{"$f":"IF(Descriptions!D43=\"Gift aid recovered\",Descriptions!AA43,0)","v":0},{"$f":"IF([1]Descriptions!D41=\"Gift aid recovered\",[1]Descriptions!B41,0)","v":0},{"$f":"CONCATENATE(Y121,$Y$3)","v":"0General Account"}]
[{"$f":"IF(Descriptions!D44=\"Gift aid recovered\",Descriptions!B44,0)","v":0},0,0,0,0,0,0,0,0,0,0,0,0,0,0,0,0,0,0,0,0,0,null,{"$f":"IF(Descriptions!D44=\"Gift aid recovered\",Descriptions!AA44,0)","v":0},{"$f":"IF([1]Descriptions!D42=\"Gift aid recovered\",[1]Descriptions!B42,0)","v":0},"0General Account"]
[{"$f":"IF(Descriptions!D45=\"Gift aid recovered\",Descriptions!B45,0)","v":0},0,0,0,0,0,0,0,0,0,0,0,0,0,0,0,0,0,0,0,0,0,null,{"$f":"IF(Descriptions!D45=\"Gift aid recovered\",Descriptions!AA45,0)","v":0},{"$f":"IF([1]Descriptions!D43=\"Gift aid recovered\",[1]Descriptions!B43,0)","v":0},"0General Account"]
[{"$f":"IF(Descriptions!D46=\"Gift aid recovered\",Descriptions!B46,0)","v":0},0,0,0,0,0,0,0,0,0,0,0,0,0,0,0,0,0,0,0,0,0,null,{"$f":"IF(Descriptions!D46=\"Gift aid recovered\",Descriptions!AA46,0)","v":0},{"$f":"IF([1]Descriptions!D44=\"Gift aid recovered\",[1]Descriptions!B44,0)","v":0},"0General Account"]
[{"$f":"IF(Descriptions!D47=\"Gift aid recovered\",Descriptions!B47,0)","v":0},0,0,0,0,0,0,0,0,0,0,0,0,0,0,0,0,0,0,0,0,0,null,{"$f":"IF(Descriptions!D47=\"Gift aid recovered\",Descriptions!AA47,0)","v":0},{"$f":"IF([1]Descriptions!D45=\"Gift aid recovered\",[1]Descriptions!B45,0)","v":0},"0General Account"]
[{"$f":"IF(Descriptions!D48=\"Gift aid recovered\",Descriptions!B48,0)","v":0},0,0,0,0,0,0,0,0,0,0,0,0,0,0,0,0,0,0,0,0,0,null,{"$f":"IF(Descriptions!D48=\"Gift aid recovered\",Descriptions!AA48,0)","v":0},{"$f":"IF([1]Descriptions!D46=\"Gift aid recovered\",[1]Descriptions!B46,0)","v":0},"0General Account"]
[{"$f":"IF(Descriptions!D49=\"Gift aid recovered\",Descriptions!B49,0)","v":0},0,0,0,0,0,0,0,0,0,0,0,0,0,0,0,0,0,0,0,0,0,null,{"$f":"IF(Descriptions!D49=\"Gift aid recovered\",Descriptions!AA49,0)","v":0},{"$f":"IF([1]Descriptions!D47=\"Gift aid recovered\",[1]Descriptions!B47,0)","v":0},"0General Account"]
[{"$f":"IF(Descriptions!D50=\"Gift aid recovered\",Descriptions!B50,0)","v":0},0,0,0,0,0,0,0,0,0,0,0,0,0,0,0,0,0,0,0,0,0,null,{"$f":"IF(Descriptions!D50=\"Gift aid recovered\",Descriptions!AA50,0)","v":0},{"$f":"IF([1]Descriptions!D48=\"Gift aid recovered\",[1]Descriptions!B48,0)","v":0},"0General Account"]
[{"$f":"IF(Descriptions!D51=\"Gift aid recovered\",Descriptions!B51,0)","v":0},0,0,0,0,0,0,0,0,0,0,0,0,0,0,0,0,0,0,0,0,0,null,{"$f":"IF(Descriptions!D51=\"Gift aid recovered\",Descriptions!AA51,0)","v":0},{"$f":"IF([1]Descriptions!D49=\"Gift aid recovered\",[1]Descriptions!B49,0)","v":0},"0General Account"]
[{"$f":"IF(Descriptions!D52=\"Gift aid recovered\",Descriptions!B52,0)","v":0},0,0,0,0,0,0,0,0,0,0,0,0,0,0,0,0,0,0,0,0,0,null,{"$f":"IF(Descriptions!D52=\"Gift aid recovered\",Descriptions!AA52,0)","v":0},{"$f":"IF([1]Descriptions!D50=\"Gift aid recovered\",[1]Descriptions!B50,0)","v":0},"0General Account"]
[{"$f":"IF(Descriptions!D53=\"Gift aid recovered\",Descriptions!B53,0)","v":0},0,0,0,0,0,0,0,0,0,0,0,0,0,0,0,0,0,0,0,0,0,null,{"$f":"IF(Descriptions!D53=\"Gift aid recovered\",Descriptions!AA53,0)","v":0},{"$f":"IF([1]Descriptions!D51=\"Gift aid recovered\",[1]Descriptions!B51,0)","v":0},"0General Account"]
[{"$f":"IF(Descriptions!D54=\"Gift aid recovered\",Descriptions!B54,0)","v":0},0,0,0,0,0,0,0,0,0,0,0,0,0,0,0,0,0,0,0,0,0,null,{"$f":"IF(Descriptions!D54=\"Gift aid recovered\",Descriptions!AA54,0)","v":0},{"$f":"IF([1]Descriptions!D52=\"Gift aid recovered\",[1]Descriptions!B52,0)","v":0},"0General Account"]
[{"$f":"IF(Descriptions!D55=\"Gift aid recovered\",Descriptions!B55,0)","v":0},0,0,0,0,0,0,0,0,0,0,0,0,0,0,0,0,0,0,0,0,0,null,{"$f":"IF(Descriptions!D55=\"Gift aid recovered\",Descriptions!AA55,0)","v":0},{"$f":"IF([1]Descriptions!D53=\"Gift aid recovered\",[1]Descriptions!B53,0)","v":0},"0General Account"]
[{"$f":"IF(Descriptions!D56=\"Gift aid recovered\",Descriptions!B56,0)","v":0},0,0,0,0,0,0,0,0,0,0,0,0,0,0,0,0,0,0,0,0,0,null,{"$f":"IF(Descriptions!D56=\"Gift aid recovered\",Descriptions!AA56,0)","v":0},{"$f":"IF([1]Descriptions!D54=\"Gift aid recovered\",[1]Descriptions!B54,0)","v":0},"0General Account"]
[{"$f":"IF(Descriptions!D57=\"Gift aid recovered\",Descriptions!B57,0)","v":0},0,0,0,0,0,0,0,0,0,0,0,0,0,0,0,0,0,0,0,0,0,null,{"$f":"IF(Descriptions!D57=\"Gift aid recovered\",Descriptions!AA57,0)","v":0},{"$f":"IF([1]Descriptions!D55=\"Gift aid recovered\",[1]Descriptions!B55,0)","v":0},"0General Account"]
[{"$f":"IF(Descriptions!D58=\"Gift aid recovered\",Descriptions!B58,0)","v":0},0,0,0,0,0,0,0,0,0,0,0,0,0,0,0,0,0,0,0,0,0,null,{"$f":"IF(Descriptions!D58=\"Gift aid recovered\",Descriptions!AA58,0)","v":0},{"$f":"IF([1]Descriptions!D56=\"Gift aid recovered\",[1]Descriptions!B56,0)","v":0},"0General Account"]
[{"$f":"IF(Descriptions!D59=\"Gift aid recovered\",Descriptions!B59,0)","v":0},0,0,0,0,0,0,0,0,0,0,0,0,0,0,0,0,0,0,0,0,0,null,{"$f":"IF(Descriptions!D59=\"Gift aid recovered\",Descriptions!AA59,0)","v":0},{"$f":"IF([1]Descriptions!D57=\"Gift aid recovered\",[1]Descriptions!B57,0)","v":0},"0General Account"]
[{"$f":"IF(Descriptions!D60=\"Gift aid recovered\",Descriptions!B60,0)","v":0},0,0,0,0,0,0,0,0,0,0,0,0,0,0,0,0,0,0,0,0,0,null,{"$f":"IF(Descriptions!D60=\"Gift aid recovered\",Descriptions!AA60,0)","v":0},{"$f":"IF([1]Descriptions!D58=\"Gift aid recovered\",[1]Descriptions!B58,0)","v":0},"0General Account"]
[{"$f":"IF(Descriptions!D61=\"Gift aid recovered\",Descriptions!B61,0)","v":0},0,0,0,0,0,0,0,0,0,0,0,0,0,0,0,0,0,0,0,0,0,null,{"$f":"IF(Descriptions!D61=\"Gift aid recovered\",Descriptions!AA61,0)","v":0},{"$f":"IF([1]Descriptions!D59=\"Gift aid recovered\",[1]Descriptions!B59,0)","v":0},"0General Account"]
[{"$f":"IF(Descriptions!D62=\"Gift aid recovered\",Descriptions!B62,0)","v":0},0,0,0,0,0,0,0,0,0,0,0,0,0,0,0,0,0,0,0,0,0,null,{"$f":"IF(Descriptions!D62=\"Gift aid recovered\",Descriptions!AA62,0)","v":0},{"$f":"IF([1]Descriptions!D60=\"Gift aid recovered\",[1]Descriptions!B60,0)","v":0},"0General Account"]
[{"$f":"IF(Descriptions!D63=\"Gift aid recovered\",Descriptions!B63,0)","v":0},0,0,0,0,0,0,0,0,0,0,0,0,0,0,0,0,0,0,0,0,0,null,{"$f":"IF(Descriptions!D63=\"Gift aid recovered\",Descriptions!AA63,0)","v":0},{"$f":"IF([1]Descriptions!D61=\"Gift aid recovered\",[1]Descriptions!B61,0)","v":0},"0General Account"]
[{"$f":"IF(Descriptions!D64=\"Gift aid recovered\",Descriptions!B64,0)","v":0},0,0,0,0,0,0,0,0,0,0,0,0,0,0,0,0,0,0,0,0,0,null,{"$f":"IF(Descriptions!D64=\"Gift aid recovered\",Descriptions!AA64,0)","v":0},{"$f":"IF([1]Descriptions!D62=\"Gift aid recovered\",[1]Descriptions!B62,0)","v":0},"0General Account"]
[{"$f":"IF(Descriptions!D65=\"Gift aid recovered\",Descriptions!B65,0)","v":0},0,0,0,0,0,0,0,0,0,0,0,0,0,0,0,0,0,0,0,0,0,null,{"$f":"IF(Descriptions!D65=\"Gift aid recovered\",Descriptions!AA65,0)","v":0},{"$f":"IF([1]Descriptions!D63=\"Gift aid recovered\",[1]Descriptions!B63,0)","v":0},"0General Account"]
[{"$f":"IF(Descriptions!D66=\"Gift aid recovered\",Descriptions!B66,0)","v":0},0,0,0,0,0,0,0,0,0,0,0,0,0,0,0,0,0,0,0,0,0,null,{"$f":"IF(Descriptions!D66=\"Gift aid recovered\",Descriptions!AA66,0)","v":0},{"$f":"IF([1]Descriptions!D64=\"Gift aid recovered\",[1]Descriptions!B64,0)","v":0},"0General Account"]
[{"$f":"IF(Descriptions!D67=\"Gift aid recovered\",Descriptions!B67,0)","v":0},0,0,0,0,0,0,0,0,0,0,0,0,0,0,0,0,0,0,0,0,0,null,{"$f":"IF(Descriptions!D67=\"Gift aid recovered\",Descriptions!AA67,0)","v":0},{"$f":"IF([1]Descriptions!D65=\"Gift aid recovered\",[1]Descriptions!B65,0)","v":0},"0General Account"]
[{"$f":"IF(Descriptions!D68=\"Gift aid recovered\",Descriptions!B68,0)","v":0},0,0,0,0,0,0,0,0,0,0,0,0,0,0,0,0,0,0,0,0,0,null,{"$f":"IF(Descriptions!D68=\"Gift aid recovered\",Descriptions!AA68,0)","v":0},{"$f":"IF([1]Descriptions!D66=\"Gift aid recovered\",[1]Descriptions!B66,0)","v":0},"0General Account"]
[{"$f":"IF(Descriptions!D69=\"Gift aid recovered\",Descriptions!B69,0)","v":0},0,0,0,0,0,0,0,0,0,0,0,0,0,0,0,0,0,0,0,0,0,null,{"$f":"IF(Descriptions!D69=\"Gift aid recovered\",Descriptions!AA69,0)","v":0},{"$f":"IF([1]Descriptions!D67=\"Gift aid recovered\",[1]Descriptions!B67,0)","v":0},"0General Account"]
[{"$f":"IF(Descriptions!D70=\"Gift aid recovered\",Descriptions!B70,0)","v":0},0,0,0,0,0,0,0,0,0,0,0,0,0,0,0,0,0,0,0,0,0,null,{"$f":"IF(Descriptions!D70=\"Gift aid recovered\",Descriptions!AA70,0)","v":0},{"$f":"IF([1]Descriptions!D68=\"Gift aid recovered\",[1]Descriptions!B68,0)","v":0},"0General Account"]
[{"$f":"IF(Descriptions!D71=\"Gift aid recovered\",Descriptions!B71,0)","v":0},0,0,0,0,0,0,0,0,0,0,0,0,0,0,0,0,0,0,0,0,0,null,{"$f":"IF(Descriptions!D71=\"Gift aid recovered\",Descriptions!AA71,0)","v":0},{"$f":"IF([1]Descriptions!D69=\"Gift aid recovered\",[1]Descriptions!B69,0)","v":0},"0General Account"]
[{"$f":"IF(Descriptions!D72=\"Gift aid recovered\",Descriptions!B72,0)","v":0},0,0,0,0,0,0,0,0,0,0,0,0,0,0,0,0,0,0,0,0,0,null,{"$f":"IF(Descriptions!D72=\"Gift aid recovered\",Descriptions!AA72,0)","v":0},{"$f":"IF([1]Descriptions!D70=\"Gift aid recovered\",[1]Descriptions!B70,0)","v":0},"0General Account"]
[{"$f":"IF(Descriptions!D73=\"Gift aid recovered\",Descriptions!B73,0)","v":0},0,0,0,0,0,0,0,0,0,0,0,0,0,0,0,0,0,0,0,0,0,null,{"$f":"IF(Descriptions!D73=\"Gift aid recovered\",Descriptions!AA73,0)","v":0},{"$f":"IF([1]Descriptions!D71=\"Gift aid recovered\",[1]Descriptions!B71,0)","v":0},"0General Account"]
[{"$f":"IF(Descriptions!D74=\"Gift aid recovered\",Descriptions!B74,0)","v":0},0,0,0,0,0,0,0,0,0,0,0,0,0,0,0,0,0,0,0,0,0,null,{"$f":"IF(Descriptions!D74=\"Gift aid recovered\",Descriptions!AA74,0)","v":0},{"$f":"IF([1]Descriptions!D72=\"Gift aid recovered\",[1]Descriptions!B72,0)","v":0},"0General Account"]
[{"$f":"IF(Descriptions!D75=\"Gift aid recovered\",Descriptions!B75,0)","v":0},0,0,0,0,0,0,0,0,0,0,0,0,0,0,0,0,0,0,0,0,0,null,{"$f":"IF(Descriptions!D75=\"Gift aid recovered\",Descriptions!AA75,0)","v":0},{"$f":"IF([1]Descriptions!D73=\"Gift aid recovered\",[1]Descriptions!B73,0)","v":0},"0General Account"]
[{"$f":"IF(Descriptions!D76=\"Gift aid recovered\",Descriptions!B76,0)","v":0},0,0,0,0,0,0,0,0,0,0,0,0,0,0,0,0,0,0,0,0,0,null,{"$f":"IF(Descriptions!D76=\"Gift aid recovered\",Descriptions!AA76,0)","v":0},{"$f":"IF([1]Descriptions!D74=\"Gift aid recovered\",[1]Descriptions!B74,0)","v":0},"0General Account"]
[{"$f":"IF(Descriptions!D77=\"Gift aid recovered\",Descriptions!B77,0)","v":0},0,0,0,0,0,0,0,0,0,0,0,0,0,0,0,0,0,0,0,0,0,null,{"$f":"IF(Descriptions!D77=\"Gift aid recovered\",Descriptions!AA77,0)","v":0},{"$f":"IF([1]Descriptions!D75=\"Gift aid recovered\",[1]Descriptions!B75,0)","v":0},"0General Account"]
[{"$f":"IF(Descriptions!D78=\"Gift aid recovered\",Descriptions!B78,0)","v":0},0,0,0,0,0,0,0,0,0,0,0,0,0,0,0,0,0,0,0,0,0,null,{"$f":"IF(Descriptions!D78=\"Gift aid recovered\",Descriptions!AA78,0)","v":0},{"$f":"IF([1]Descriptions!D76=\"Gift aid recovered\",[1]Descriptions!B76,0)","v":0},"0General Account"]
[{"$f":"IF(Descriptions!D79=\"Gift aid recovered\",Descriptions!B79,0)","v":0},0,0,0,0,0,0,0,0,0,0,0,0,0,0,0,0,0,0,0,0,0,null,{"$f":"IF(Descriptions!D79=\"Gift aid recovered\",Descriptions!AA79,0)","v":0},{"$f":"IF([1]Descriptions!D77=\"Gift aid recovered\",[1]Descriptions!B77,0)","v":0},"0General Account"]
[{"$f":"IF(Descriptions!D80=\"Gift aid recovered\",Descriptions!B80,0)","v":0},0,0,0,0,0,0,0,0,0,0,0,0,0,0,0,0,0,0,0,0,0,null,{"$f":"IF(Descriptions!D80=\"Gift aid recovered\",Descriptions!AA80,0)","v":0},{"$f":"IF([1]Descriptions!D78=\"Gift aid recovered\",[1]Descriptions!B78,0)","v":0},"0General Account"]
[{"$f":"IF(Descriptions!D81=\"Gift aid recovered\",Descriptions!B81,0)","v":0},0,0,0,0,0,0,0,0,0,0,0,0,0,0,0,0,0,0,0,0,0,null,{"$f":"IF(Descriptions!D81=\"Gift aid recovered\",Descriptions!AA81,0)","v":0},{"$f":"IF([1]Descriptions!D79=\"Gift aid recovered\",[1]Descriptions!B79,0)","v":0},"0General Account"]
[{"$f":"IF(Descriptions!D82=\"Gift aid recovered\",Descriptions!B82,0)","v":0},0,0,0,0,0,0,0,0,0,0,0,0,0,0,0,0,0,0,0,0,0,null,{"$f":"IF(Descriptions!D82=\"Gift aid recovered\",Descriptions!AA82,0)","v":0},{"$f":"IF([1]Descriptions!D80=\"Gift aid recovered\",[1]Descriptions!B80,0)","v":0},"0General Account"]
[{"$f":"IF(Descriptions!D83=\"Gift aid recovered\",Descriptions!B83,0)","v":0},0,0,0,0,0,0,0,0,0,0,0,0,0,0,0,0,0,0,0,0,0,null,{"$f":"IF(Descriptions!D83=\"Gift aid recovered\",Descriptions!AA83,0)","v":0},{"$f":"IF([1]Descriptions!D81=\"Gift aid recovered\",[1]Descriptions!B81,0)","v":0},"0General Account"]
[{"$f":"IF(Descriptions!D84=\"Gift aid recovered\",Descriptions!B84,0)","v":0},0,0,0,0,0,0,0,0,0,0,0,0,0,0,0,0,0,0,0,0,0,null,{"$f":"IF(Descriptions!D84=\"Gift aid recovered\",Descriptions!AA84,0)","v":0},{"$f":"IF([1]Descriptions!D82=\"Gift aid recovered\",[1]Descriptions!B82,0)","v":0},"0General Account"]
[{"$f":"IF(Descriptions!D85=\"Gift aid recovered\",Descriptions!B85,0)","v":0},0,0,0,0,0,0,0,0,0,0,0,0,0,0,0,0,0,0,0,0,0,null,{"$f":"IF(Descriptions!D85=\"Gift aid recovered\",Descriptions!AA85,0)","v":0},{"$f":"IF([1]Descriptions!D83=\"Gift aid recovered\",[1]Descriptions!B83,0)","v":0},"0General Account"]
[{"$f":"IF(Descriptions!D86=\"Gift aid recovered\",Descriptions!B86,0)","v":0},0,0,0,0,0,0,0,0,0,0,0,0,0,0,0,0,0,0,0,0,0,null,{"$f":"IF(Descriptions!D86=\"Gift aid recovered\",Descriptions!AA86,0)","v":0},{"$f":"IF([1]Descriptions!D84=\"Gift aid recovered\",[1]Descriptions!B84,0)","v":0},"0General Account"]
[{"$f":"IF(Descriptions!D87=\"Gift aid recovered\",Descriptions!B87,0)","v":0},0,0,0,0,0,0,0,0,0,0,0,0,0,0,0,0,0,0,0,0,0,null,{"$f":"IF(Descriptions!D87=\"Gift aid recovered\",Descriptions!AA87,0)","v":0},{"$f":"IF([1]Descriptions!D85=\"Gift aid recovered\",[1]Descriptions!B85,0)","v":0},"0General Account"]
[{"$f":"IF(Descriptions!D88=\"Gift aid recovered\",Descriptions!B88,0)","v":0},0,0,0,0,0,0,0,0,0,0,0,0,0,0,0,0,0,0,0,0,0,null,{"$f":"IF(Descriptions!D88=\"Gift aid recovered\",Descriptions!AA88,0)","v":0},{"$f":"IF([1]Descriptions!D86=\"Gift aid recovered\",[1]Descriptions!B86,0)","v":0},"0General Account"]
[{"$f":"IF(Descriptions!D89=\"Gift aid recovered\",Descriptions!B89,0)","v":0},0,0,0,0,0,0,0,0,0,0,0,0,0,0,0,0,0,0,0,0,0,null,{"$f":"IF(Descriptions!D89=\"Gift aid recovered\",Descriptions!AA89,0)","v":0},{"$f":"IF([1]Descriptions!D87=\"Gift aid recovered\",[1]Descriptions!B87,0)","v":0},"0General Account"]
[{"$f":"IF(Descriptions!D90=\"Gift aid recovered\",Descriptions!B90,0)","v":0},0,0,0,0,0,0,0,0,0,0,0,0,0,0,0,0,0,0,0,0,0,null,{"$f":"IF(Descriptions!D90=\"Gift aid recovered\",Descriptions!AA90,0)","v":0},{"$f":"IF([1]Descriptions!D88=\"Gift aid recovered\",[1]Descriptions!B88,0)","v":0},"0General Account"]
[{"$f":"IF(Descriptions!D91=\"Gift aid recovered\",Descriptions!B91,0)","v":0},0,0,0,0,0,0,0,0,0,0,0,0,0,0,0,0,0,0,0,0,0,null,{"$f":"IF(Descriptions!D91=\"Gift aid recovered\",Descriptions!AA91,0)","v":0},{"$f":"IF([1]Descriptions!D89=\"Gift aid recovered\",[1]Descriptions!B89,0)","v":0},"0General Account"]
[{"$f":"IF(Descriptions!D92=\"Gift aid recovered\",Descriptions!B92,0)","v":0},0,0,0,0,0,0,0,0,0,0,0,0,0,0,0,0,0,0,0,0,0,null,{"$f":"IF(Descriptions!D92=\"Gift aid recovered\",Descriptions!AA92,0)","v":0},{"$f":"IF([1]Descriptions!D90=\"Gift aid recovered\",[1]Descriptions!B90,0)","v":0},"0General Account"]
[null,{"$f":"SUM(B120:B170)","v":0},0,0,0,0,0,0,0,0,0,0,0,0,0,0,0,0,0,0,0,0,null,{"$f":"X119","v":0}]
["ALL OTHER GIVING/VOLUNTARY RECEIPTS",null,null,null,null,null,null,null,null,null,null,null,null,null,null,null,null,null,null,null,null,null,null,{"$f":"SUM(X173:X229)","v":0}]
["Appeals",0,0,0,0,0,0,0,0,0,0,0,0,0,0,0,0,0,0,0,0,0,null,{"$f":"Descriptions!AA6","v":0},{"$f":"[1]Descriptions!B4","v":"Appeals"},{"$f":"CONCATENATE(Y173,$Y$3)","v":"AppealsGeneral Account"}]
["CAF & GAYE giving",0,0,0,0,0,0,0,0,0,0,0,0,0,0,0,0,0,0,0,0,0,null,{"$f":"Descriptions!AA8","v":0},{"$f":"[1]Descriptions!B6","v":"CAF & GAYE giving"},"CAF & GAYE givingGeneral Account"]
["Donations",0,0,0,0,0,0,0,0,0,0,0,0,0,0,0,0,0,0,0,0,0,null,{"$f":"Descriptions!AA12","v":0},{"$f":"[1]Descriptions!B10","v":"Donations"},"DonationsGeneral Account"]
["Gift Aid Envelopes",0,0,0,0,0,0,0,0,0,0,0,0,0,0,0,0,0,0,0,0,0,null,{"$f":"Descriptions!AA17","v":0},{"$f":"[1]Descriptions!B15","v":"Gift Aid Envelopes"},"Gift Aid EnvelopesGeneral Account"]
["Gift Days",0,0,0,0,0,0,0,0,0,0,0,0,0,0,0,0,0,0,0,0,0,null,{"$f":"Descriptions!AA19","v":0},{"$f":"[1]Descriptions!B17","v":"Gift Days"},"Gift DaysGeneral Account"]
["Donations - Gift Aided",0,0,0,0,0,0,0,0,0,0,0,0,0,0,0,0,0,0,0,0,0,null,{"$f":"Descriptions!AA13","v":0},{"$f":"[1]Descriptions!B11","v":"Donations - Gift Aided"},"Donations - Gift AidedGeneral Account"]
["Wall Boxes",0,0,0,0,0,0,0,0,0,0,0,0,0,0,0,0,0,0,0,0,0,null,{"$f":"Descriptions!AA38","v":0},{"$f":"[1]Descriptions!B36","v":"Wall Boxes"},"Wall BoxesGeneral Account"]
[{"$f":"IF(Descriptions!D43=\"All other giving/voluntary receipts\",Descriptions!B43,0)","v":0},0,0,0,0,0,0,0,0,0,0,0,0,0,0,0,0,0,0,0,0,0,null,{"$f":"IF(Descriptions!D43=\"All other giving/voluntary receipts\",Descriptions!AA43,0)","v":0},{"$f":"IF([1]Descriptions!D41=\"All other giving/voluntary receipts\",[1]Descriptions!B41,0)","v":0},"0General Account"]
[{"$f":"IF(Descriptions!D44=\"All other giving/voluntary receipts\",Descriptions!B44,0)","v":0},0,0,0,0,0,0,0,0,0,0,0,0,0,0,0,0,0,0,0,0,0,null,{"$f":"IF(Descriptions!D44=\"All other giving/voluntary receipts\",Descriptions!AA44,0)","v":0},{"$f":"IF([1]Descriptions!D42=\"All other giving/voluntary receipts\",[1]Descriptions!B42,0)","v":0},"0General Account"]
[{"$f":"IF(Descriptions!D45=\"All other giving/voluntary receipts\",Descriptions!B45,0)","v":0},0,0,0,0,0,0,0,0,0,0,0,0,0,0,0,0,0,0,0,0,0,null,{"$f":"IF(Descriptions!D45=\"All other giving/voluntary receipts\",Descriptions!AA45,0)","v":0},{"$f":"IF([1]Descriptions!D43=\"All other giving/voluntary receipts\",[1]Descriptions!B43,0)","v":0},"0General Account"]
[{"$f":"IF(Descriptions!D46=\"All other giving/voluntary receipts\",Descriptions!B46,0)","v":0},0,0,0,0,0,0,0,0,0,0,0,0,0,0,0,0,0,0,0,0,0,null,{"$f":"IF(Descriptions!D46=\"All other giving/voluntary receipts\",Descriptions!AA46,0)","v":0},{"$f":"IF([1]Descriptions!D44=\"All other giving/voluntary receipts\",[1]Descriptions!B44,0)","v":0},"0General Account"]
[{"$f":"IF(Descriptions!D47=\"All other giving/voluntary receipts\",Descriptions!B47,0)","v":0},0,0,0,0,0,0,0,0,0,0,0,0,0,0,0,0,0,0,0,0,0,null,{"$f":"IF(Descriptions!D47=\"All other giving/voluntary receipts\",Descriptions!AA47,0)","v":0},{"$f":"IF([1]Descriptions!D45=\"All other giving/voluntary receipts\",[1]Descriptions!B45,0)","v":0},"0General Account"]
[{"$f":"IF(Descriptions!D48=\"All other giving/voluntary receipts\",Descriptions!B48,0)","v":0},0,0,0,0,0,0,0,0,0,0,0,0,0,0,0,0,0,0,0,0,0,null,{"$f":"IF(Descriptions!D48=\"All other giving/voluntary receipts\",Descriptions!AA48,0)","v":0},{"$f":"IF([1]Descriptions!D46=\"All other giving/voluntary receipts\",[1]Descriptions!B46,0)","v":0},"0General Account"]
[{"$f":"IF(Descriptions!D49=\"All other giving/voluntary receipts\",Descriptions!B49,0)","v":0},0,0,0,0,0,0,0,0,0,0,0,0,0,0,0,0,0,0,0,0,0,null,{"$f":"IF(Descriptions!D49=\"All other giving/voluntary receipts\",Descriptions!AA49,0)","v":0},{"$f":"IF([1]Descriptions!D47=\"All other giving/voluntary receipts\",[1]Descriptions!B47,0)","v":0},"0General Account"]
[{"$f":"IF(Descriptions!D50=\"All other giving/voluntary receipts\",Descriptions!B50,0)","v":0},0,0,0,0,0,0,0,0,0,0,0,0,0,0,0,0,0,0,0,0,0,null,{"$f":"IF(Descriptions!D50=\"All other giving/voluntary receipts\",Descriptions!AA50,0)","v":0},{"$f":"IF([1]Descriptions!D48=\"All other giving/voluntary receipts\",[1]Descriptions!B48,0)","v":0},"0General Account"]
[{"$f":"IF(Descriptions!D51=\"All other giving/voluntary receipts\",Descriptions!B51,0)","v":0},0,0,0,0,0,0,0,0,0,0,0,0,0,0,0,0,0,0,0,0,0,null,{"$f":"IF(Descriptions!D51=\"All other giving/voluntary receipts\",Descriptions!AA51,0)","v":0},{"$f":"IF([1]Descriptions!D49=\"All other giving/voluntary receipts\",[1]Descriptions!B49,0)","v":0},"0General Account"]
[{"$f":"IF(Descriptions!D52=\"All other giving/voluntary receipts\",Descriptions!B52,0)","v":0},0,0,0,0,0,0,0,0,0,0,0,0,0,0,0,0,0,0,0,0,0,null,{"$f":"IF(Descriptions!D52=\"All other giving/voluntary receipts\",Descriptions!AA52,0)","v":0},{"$f":"IF([1]Descriptions!D50=\"All other giving/voluntary receipts\",[1]Descriptions!B50,0)","v":0},"0General Account"]
[{"$f":"IF(Descriptions!D53=\"All other giving/voluntary receipts\",Descriptions!B53,0)","v":0},0,0,0,0,0,0,0,0,0,0,0,0,0,0,0,0,0,0,0,0,0,null,{"$f":"IF(Descriptions!D53=\"All other giving/voluntary receipts\",Descriptions!AA53,0)","v":0},{"$f":"IF([1]Descriptions!D51=\"All other giving/voluntary receipts\",[1]Descriptions!B51,0)","v":0},"0General Account"]
[{"$f":"IF(Descriptions!D54=\"All other giving/voluntary receipts\",Descriptions!B54,0)","v":0},0,0,0,0,0,0,0,0,0,0,0,0,0,0,0,0,0,0,0,0,0,null,{"$f":"IF(Descriptions!D54=\"All other giving/voluntary receipts\",Descriptions!AA54,0)","v":0},{"$f":"IF([1]Descriptions!D52=\"All other giving/voluntary receipts\",[1]Descriptions!B52,0)","v":0},"0General Account"]
[{"$f":"IF(Descriptions!D55=\"All other giving/voluntary receipts\",Descriptions!B55,0)","v":0},0,0,0,0,0,0,0,0,0,0,0,0,0,0,0,0,0,0,0,0,0,null,{"$f":"IF(Descriptions!D55=\"All other giving/voluntary receipts\",Descriptions!AA55,0)","v":0},{"$f":"IF([1]Descriptions!D53=\"All other giving/voluntary receipts\",[1]Descriptions!B53,0)","v":0},"0General Account"]
[{"$f":"IF(Descriptions!D56=\"All other giving/voluntary receipts\",Descriptions!B56,0)","v":0},0,0,0,0,0,0,0,0,0,0,0,0,0,0,0,0,0,0,0,0,0,null,{"$f":"IF(Descriptions!D56=\"All other giving/voluntary receipts\",Descriptions!AA56,0)","v":0},{"$f":"IF([1]Descriptions!D54=\"All other giving/voluntary receipts\",[1]Descriptions!B54,0)","v":0},"0General Account"]
[{"$f":"IF(Descriptions!D57=\"All other giving/voluntary receipts\",Descriptions!B57,0)","v":0},0,0,0,0,0,0,0,0,0,0,0,0,0,0,0,0,0,0,0,0,0,null,{"$f":"IF(Descriptions!D57=\"All other giving/voluntary receipts\",Descriptions!AA57,0)","v":0},{"$f":"IF([1]Descriptions!D55=\"All other giving/voluntary receipts\",[1]Descriptions!B55,0)","v":0},"0General Account"]
[{"$f":"IF(Descriptions!D58=\"All other giving/voluntary receipts\",Descriptions!B58,0)","v":0},0,0,0,0,0,0,0,0,0,0,0,0,0,0,0,0,0,0,0,0,0,null,{"$f":"IF(Descriptions!D58=\"All other giving/voluntary receipts\",Descriptions!AA58,0)","v":0},{"$f":"IF([1]Descriptions!D56=\"All other giving/voluntary receipts\",[1]Descriptions!B56,0)","v":0},"0General Account"]
[{"$f":"IF(Descriptions!D59=\"All other giving/voluntary receipts\",Descriptions!B59,0)","v":0},0,0,0,0,0,0,0,0,0,0,0,0,0,0,0,0,0,0,0,0,0,null,{"$f":"IF(Descriptions!D59=\"All other giving/voluntary receipts\",Descriptions!AA59,0)","v":0},{"$f":"IF([1]Descriptions!D57=\"All other giving/voluntary receipts\",[1]Descriptions!B57,0)","v":0},"0General Account"]
[{"$f":"IF(Descriptions!D60=\"All other giving/voluntary receipts\",Descriptions!B60,0)","v":0},0,0,0,0,0,0,0,0,0,0,0,0,0,0,0,0,0,0,0,0,0,null,{"$f":"IF(Descriptions!D60=\"All other giving/voluntary receipts\",Descriptions!AA60,0)","v":0},{"$f":"IF([1]Descriptions!D58=\"All other giving/voluntary receipts\",[1]Descriptions!B58,0)","v":0},"0General Account"]
[{"$f":"IF(Descriptions!D61=\"All other giving/voluntary receipts\",Descriptions!B61,0)","v":0},0,0,0,0,0,0,0,0,0,0,0,0,0,0,0,0,0,0,0,0,0,null,{"$f":"IF(Descriptions!D61=\"All other giving/voluntary receipts\",Descriptions!AA61,0)","v":0},{"$f":"IF([1]Descriptions!D59=\"All other giving/voluntary receipts\",[1]Descriptions!B59,0)","v":0},"0General Account"]
[{"$f":"IF(Descriptions!D62=\"All other giving/voluntary receipts\",Descriptions!B62,0)","v":0},0,0,0,0,0,0,0,0,0,0,0,0,0,0,0,0,0,0,0,0,0,null,{"$f":"IF(Descriptions!D62=\"All other giving/voluntary receipts\",Descriptions!AA62,0)","v":0},{"$f":"IF([1]Descriptions!D60=\"All other giving/voluntary receipts\",[1]Descriptions!B60,0)","v":0},"0General Account"]
[{"$f":"IF(Descriptions!D63=\"All other giving/voluntary receipts\",Descriptions!B63,0)","v":0},0,0,0,0,0,0,0,0,0,0,0,0,0,0,0,0,0,0,0,0,0,null,{"$f":"IF(Descriptions!D63=\"All other giving/voluntary receipts\",Descriptions!AA63,0)","v":0},{"$f":"IF([1]Descriptions!D61=\"All other giving/voluntary receipts\",[1]Descriptions!B61,0)","v":0},"0General Account"]
[{"$f":"IF(Descriptions!D64=\"All other giving/voluntary receipts\",Descriptions!B64,0)","v":0},0,0,0,0,0,0,0,0,0,0,0,0,0,0,0,0,0,0,0,0,0,null,{"$f":"IF(Descriptions!D64=\"All other giving/voluntary receipts\",Descriptions!AA64,0)","v":0},{"$f":"IF([1]Descriptions!D62=\"All other giving/voluntary receipts\",[1]Descriptions!B62,0)","v":0},"0General Account"]
[{"$f":"IF(Descriptions!D65=\"All other giving/voluntary receipts\",Descriptions!B65,0)","v":0},0,0,0,0,0,0,0,0,0,0,0,0,0,0,0,0,0,0,0,0,0,null,{"$f":"IF(Descriptions!D65=\"All other giving/voluntary receipts\",Descriptions!AA65,0)","v":0},{"$f":"IF([1]Descriptions!D63=\"All other giving/voluntary receipts\",[1]Descriptions!B63,0)","v":0},"0General Account"]
[{"$f":"IF(Descriptions!D66=\"All other giving/voluntary receipts\",Descriptions!B66,0)","v":0},0,0,0,0,0,0,0,0,0,0,0,0,0,0,0,0,0,0,0,0,0,null,{"$f":"IF(Descriptions!D66=\"All other giving/voluntary receipts\",Descriptions!AA66,0)","v":0},{"$f":"IF([1]Descriptions!D64=\"All other giving/voluntary receipts\",[1]Descriptions!B64,0)","v":0},"0General Account"]
[{"$f":"IF(Descriptions!D67=\"All other giving/voluntary receipts\",Descriptions!B67,0)","v":0},0,0,0,0,0,0,0,0,0,0,0,0,0,0,0,0,0,0,0,0,0,null,{"$f":"IF(Descriptions!D67=\"All other giving/voluntary receipts\",Descriptions!AA67,0)","v":0},{"$f":"IF([1]Descriptions!D65=\"All other giving/voluntary receipts\",[1]Descriptions!B65,0)","v":0},"0General Account"]
[{"$f":"IF(Descriptions!D68=\"All other giving/voluntary receipts\",Descriptions!B68,0)","v":0},0,0,0,0,0,0,0,0,0,0,0,0,0,0,0,0,0,0,0,0,0,null,{"$f":"IF(Descriptions!D68=\"All other giving/voluntary receipts\",Descriptions!AA68,0)","v":0},{"$f":"IF([1]Descriptions!D66=\"All other giving/voluntary receipts\",[1]Descriptions!B66,0)","v":0},"0General Account"]
[{"$f":"IF(Descriptions!D69=\"All other giving/voluntary receipts\",Descriptions!B69,0)","v":0},0,0,0,0,0,0,0,0,0,0,0,0,0,0,0,0,0,0,0,0,0,null,{"$f":"IF(Descriptions!D69=\"All other giving/voluntary receipts\",Descriptions!AA69,0)","v":0},{"$f":"IF([1]Descriptions!D67=\"All other giving/voluntary receipts\",[1]Descriptions!B67,0)","v":0},"0General Account"]
[{"$f":"IF(Descriptions!D70=\"All other giving/voluntary receipts\",Descriptions!B70,0)","v":0},0,0,0,0,0,0,0,0,0,0,0,0,0,0,0,0,0,0,0,0,0,null,{"$f":"IF(Descriptions!D70=\"All other giving/voluntary receipts\",Descriptions!AA70,0)","v":0},{"$f":"IF([1]Descriptions!D68=\"All other giving/voluntary receipts\",[1]Descriptions!B68,0)","v":0},"0General Account"]
[{"$f":"IF(Descriptions!D71=\"All other giving/voluntary receipts\",Descriptions!B71,0)","v":0},0,0,0,0,0,0,0,0,0,0,0,0,0,0,0,0,0,0,0,0,0,null,{"$f":"IF(Descriptions!D71=\"All other giving/voluntary receipts\",Descriptions!AA71,0)","v":0},{"$f":"IF([1]Descriptions!D69=\"All other giving/voluntary receipts\",[1]Descriptions!B69,0)","v":0},"0General Account"]
[{"$f":"IF(Descriptions!D72=\"All other giving/voluntary receipts\",Descriptions!B72,0)","v":0},0,0,0,0,0,0,0,0,0,0,0,0,0,0,0,0,0,0,0,0,0,null,{"$f":"IF(Descriptions!D72=\"All other giving/voluntary receipts\",Descriptions!AA72,0)","v":0},{"$f":"IF([1]Descriptions!D70=\"All other giving/voluntary receipts\",[1]Descriptions!B70,0)","v":0},"0General Account"]
[{"$f":"IF(Descriptions!D73=\"All other giving/voluntary receipts\",Descriptions!B73,0)","v":0},0,0,0,0,0,0,0,0,0,0,0,0,0,0,0,0,0,0,0,0,0,null,{"$f":"IF(Descriptions!D73=\"All other giving/voluntary receipts\",Descriptions!AA73,0)","v":0},{"$f":"IF([1]Descriptions!D71=\"All other giving/voluntary receipts\",[1]Descriptions!B71,0)","v":0},"0General Account"]
[{"$f":"IF(Descriptions!D74=\"All other giving/voluntary receipts\",Descriptions!B74,0)","v":0},0,0,0,0,0,0,0,0,0,0,0,0,0,0,0,0,0,0,0,0,0,null,{"$f":"IF(Descriptions!D74=\"All other giving/voluntary receipts\",Descriptions!AA74,0)","v":0},{"$f":"IF([1]Descriptions!D72=\"All other giving/voluntary receipts\",[1]Descriptions!B72,0)","v":0},"0General Account"]
[{"$f":"IF(Descriptions!D75=\"All other giving/voluntary receipts\",Descriptions!B75,0)","v":0},0,0,0,0,0,0,0,0,0,0,0,0,0,0,0,0,0,0,0,0,0,null,{"$f":"IF(Descriptions!D75=\"All other giving/voluntary receipts\",Descriptions!AA75,0)","v":0},{"$f":"IF([1]Descriptions!D73=\"All other giving/voluntary receipts\",[1]Descriptions!B73,0)","v":0},"0General Account"]
[{"$f":"IF(Descriptions!D76=\"All other giving/voluntary receipts\",Descriptions!B76,0)","v":0},0,0,0,0,0,0,0,0,0,0,0,0,0,0,0,0,0,0,0,0,0,null,{"$f":"IF(Descriptions!D76=\"All other giving/voluntary receipts\",Descriptions!AA76,0)","v":0},{"$f":"IF([1]Descriptions!D74=\"All other giving/voluntary receipts\",[1]Descriptions!B74,0)","v":0},"0General Account"]
[{"$f":"IF(Descriptions!D77=\"All other giving/voluntary receipts\",Descriptions!B77,0)","v":0},0,0,0,0,0,0,0,0,0,0,0,0,0,0,0,0,0,0,0,0,0,null,{"$f":"IF(Descriptions!D77=\"All other giving/voluntary receipts\",Descriptions!AA77,0)","v":0},{"$f":"IF([1]Descriptions!D75=\"All other giving/voluntary receipts\",[1]Descriptions!B75,0)","v":0},"0General Account"]
[{"$f":"IF(Descriptions!D78=\"All other giving/voluntary receipts\",Descriptions!B78,0)","v":0},0,0,0,0,0,0,0,0,0,0,0,0,0,0,0,0,0,0,0,0,0,null,{"$f":"IF(Descriptions!D78=\"All other giving/voluntary receipts\",Descriptions!AA78,0)","v":0},{"$f":"IF([1]Descriptions!D76=\"All other giving/voluntary receipts\",[1]Descriptions!B76,0)","v":0},"0General Account"]
[{"$f":"IF(Descriptions!D79=\"All other giving/voluntary receipts\",Descriptions!B79,0)","v":0},0,0,0,0,0,0,0,0,0,0,0,0,0,0,0,0,0,0,0,0,0,null,{"$f":"IF(Descriptions!D79=\"All other giving/voluntary receipts\",Descriptions!AA79,0)","v":0},{"$f":"IF([1]Descriptions!D77=\"All other giving/voluntary receipts\",[1]Descriptions!B77,0)","v":0},"0General Account"]
[{"$f":"IF(Descriptions!D80=\"All other giving/voluntary receipts\",Descriptions!B80,0)","v":0},0,0,0,0,0,0,0,0,0,0,0,0,0,0,0,0,0,0,0,0,0,null,{"$f":"IF(Descriptions!D80=\"All other giving/voluntary receipts\",Descriptions!AA80,0)","v":0},{"$f":"IF([1]Descriptions!D78=\"All other giving/voluntary receipts\",[1]Descriptions!B78,0)","v":0},"0General Account"]
[{"$f":"IF(Descriptions!D81=\"All other giving/voluntary receipts\",Descriptions!B81,0)","v":0},0,0,0,0,0,0,0,0,0,0,0,0,0,0,0,0,0,0,0,0,0,null,{"$f":"IF(Descriptions!D81=\"All other giving/voluntary receipts\",Descriptions!AA81,0)","v":0},{"$f":"IF([1]Descriptions!D79=\"All other giving/voluntary receipts\",[1]Descriptions!B79,0)","v":0},"0General Account"]
[{"$f":"IF(Descriptions!D82=\"All other giving/voluntary receipts\",Descriptions!B82,0)","v":0},0,0,0,0,0,0,0,0,0,0,0,0,0,0,0,0,0,0,0,0,0,null,{"$f":"IF(Descriptions!D82=\"All other giving/voluntary receipts\",Descriptions!AA82,0)","v":0},{"$f":"IF([1]Descriptions!D80=\"All other giving/voluntary receipts\",[1]Descriptions!B80,0)","v":0},"0General Account"]
[{"$f":"IF(Descriptions!D83=\"All other giving/voluntary receipts\",Descriptions!B83,0)","v":0},0,0,0,0,0,0,0,0,0,0,0,0,0,0,0,0,0,0,0,0,0,null,{"$f":"IF(Descriptions!D83=\"All other giving/voluntary receipts\",Descriptions!AA83,0)","v":0},{"$f":"IF([1]Descriptions!D81=\"All other giving/voluntary receipts\",[1]Descriptions!B81,0)","v":0},"0General Account"]
[{"$f":"IF(Descriptions!D84=\"All other giving/voluntary receipts\",Descriptions!B84,0)","v":0},0,0,0,0,0,0,0,0,0,0,0,0,0,0,0,0,0,0,0,0,0,null,{"$f":"IF(Descriptions!D84=\"All other giving/voluntary receipts\",Descriptions!AA84,0)","v":0},{"$f":"IF([1]Descriptions!D82=\"All other giving/voluntary receipts\",[1]Descriptions!B82,0)","v":0},"0General Account"]
[{"$f":"IF(Descriptions!D85=\"All other giving/voluntary receipts\",Descriptions!B85,0)","v":0},0,0,0,0,0,0,0,0,0,0,0,0,0,0,0,0,0,0,0,0,0,null,{"$f":"IF(Descriptions!D85=\"All other giving/voluntary receipts\",Descriptions!AA85,0)","v":0},{"$f":"IF([1]Descriptions!D83=\"All other giving/voluntary receipts\",[1]Descriptions!B83,0)","v":0},"0General Account"]
[{"$f":"IF(Descriptions!D86=\"All other giving/voluntary receipts\",Descriptions!B86,0)","v":0},0,0,0,0,0,0,0,0,0,0,0,0,0,0,0,0,0,0,0,0,0,null,{"$f":"IF(Descriptions!D86=\"All other giving/voluntary receipts\",Descriptions!AA86,0)","v":0},{"$f":"IF([1]Descriptions!D84=\"All other giving/voluntary receipts\",[1]Descriptions!B84,0)","v":0},"0General Account"]
[{"$f":"IF(Descriptions!D87=\"All other giving/voluntary receipts\",Descriptions!B87,0)","v":0},0,0,0,0,0,0,0,0,0,0,0,0,0,0,0,0,0,0,0,0,0,null,{"$f":"IF(Descriptions!D87=\"All other giving/voluntary receipts\",Descriptions!AA87,0)","v":0},{"$f":"IF([1]Descriptions!D85=\"All other giving/voluntary receipts\",[1]Descriptions!B85,0)","v":0},"0General Account"]
[{"$f":"IF(Descriptions!D88=\"All other giving/voluntary receipts\",Descriptions!B88,0)","v":0},0,0,0,0,0,0,0,0,0,0,0,0,0,0,0,0,0,0,0,0,0,null,{"$f":"IF(Descriptions!D88=\"All other giving/voluntary receipts\",Descriptions!AA88,0)","v":0},{"$f":"IF([1]Descriptions!D86=\"All other giving/voluntary receipts\",[1]Descriptions!B86,0)","v":0},"0General Account"]
[{"$f":"IF(Descriptions!D89=\"All other giving/voluntary receipts\",Descriptions!B89,0)","v":0},0,0,0,0,0,0,0,0,0,0,0,0,0,0,0,0,0,0,0,0,0,null,{"$f":"IF(Descriptions!D89=\"All other giving/voluntary receipts\",Descriptions!AA89,0)","v":0},{"$f":"IF([1]Descriptions!D87=\"All other giving/voluntary receipts\",[1]Descriptions!B87,0)","v":0},"0General Account"]
[{"$f":"IF(Descriptions!D90=\"All other giving/voluntary receipts\",Descriptions!B90,0)","v":0},0,0,0,0,0,0,0,0,0,0,0,0,0,0,0,0,0,0,0,0,0,null,{"$f":"IF(Descriptions!D90=\"All other giving/voluntary receipts\",Descriptions!AA90,0)","v":0},{"$f":"IF([1]Descriptions!D88=\"All other giving/voluntary receipts\",[1]Descriptions!B88,0)","v":0},"0General Account"]
[{"$f":"IF(Descriptions!D91=\"All other giving/voluntary receipts\",Descriptions!B91,0)","v":0},0,0,0,0,0,0,0,0,0,0,0,0,0,0,0,0,0,0,0,0,0,null,{"$f":"IF(Descriptions!D91=\"All other giving/voluntary receipts\",Descriptions!AA91,0)","v":0},{"$f":"IF([1]Descriptions!D89=\"All other giving/voluntary receipts\",[1]Descriptions!B89,0)","v":0},"0General Account"]
[{"$f":"IF(Descriptions!D92=\"All other giving/voluntary receipts\",Descriptions!B92,0)","v":0},0,0,0,0,0,0,0,0,0,0,0,0,0,0,0,0,0,0,0,0,0,null,{"$f":"IF(Descriptions!D92=\"All other giving/voluntary receipts\",Descriptions!AA92,0)","v":0},{"$f":"IF([1]Descriptions!D90=\"All other giving/voluntary receipts\",[1]Descriptions!B90,0)","v":0},"0General Account"]
[null,{"$f":"SUM(B173:B229)","v":0},0,0,0,0,0,0,0,0,0,0,0,0,0,0,0,0,0,0,0,0,null,{"$f":"X172","v":0}]
["ACTIVITIES FOR GENERATING FUNDS",null,null,null,null,null,null,null,null,null,null,null,null,null,null,null,null,null,null,null,null,null,null,{"$f":"SUM(X232:X287)","v":0}]
["Bookstall",0,0,0,0,0,0,0,0,0,0,0,0,0,0,0,0,0,0,0,0,0,null,{"$f":"Descriptions!AA7","v":0},{"$f":"[1]Descriptions!B5","v":"Bookstall"},{"$f":"CONCATENATE(Y232,$Y$3)","v":"BookstallGeneral Account"}]
["Magazine",0,0,0,0,0,0,0,0,0,0,0,0,0,0,0,0,0,0,0,0,0,null,{"$f":"Descriptions!AA25","v":0},{"$f":"[1]Descriptions!B23","v":"Magazine"},"MagazineGeneral Account"]
["Fete",0,0,0,0,0,0,0,0,0,0,0,0,0,0,0,0,0,0,0,0,0,null,{"$f":"Descriptions!AA16","v":0},{"$f":"[1]Descriptions!B14","v":"Fete"},"FeteGeneral Account"]
["Churches Together Bike Ride",0,0,0,0,0,0,0,0,0,0,0,0,0,0,0,0,0,0,0,0,0,null,{"$f":"Descriptions!AA10","v":0},{"$f":"[1]Descriptions!B8","v":"Churches Together Bike Ride"},"Churches Together Bike RideGeneral Account"]
["Sales",0,0,0,0,0,0,0,0,0,0,0,0,0,0,0,0,0,0,0,0,0,null,{"$f":"Descriptions!AA32","v":0},{"$f":"[1]Descriptions!B30","v":"Sales"},"SalesGeneral Account"]
["Other Fundraising Income",0,0,0,0,0,0,0,0,0,0,0,0,0,0,0,0,0,0,0,0,0,null,{"$f":"Descriptions!AA27","v":0},{"$f":"[1]Descriptions!B25","v":"Other Fundraising Income"},"Other Fundraising IncomeGeneral Account"]
[{"$f":"IF(Descriptions!D43=\"Activites for generating funds\",Descriptions!B43,0)","v":0},0,0,0,0,0,0,0,0,0,0,0,0,0,0,0,0,0,0,0,0,0,null,{"$f":"IF(Descriptions!D43=\"Activites for generating funds\",Descriptions!AA43,0)","v":0},{"$f":"IF([1]Descriptions!D41=\"Activites for generating funds\",[1]Descriptions!B41,0)","v":0},"0General Account"]
[{"$f":"IF(Descriptions!D44=\"Activites for generating funds\",Descriptions!B44,0)","v":0},0,0,0,0,0,0,0,0,0,0,0,0,0,0,0,0,0,0,0,0,0,null,{"$f":"IF(Descriptions!D44=\"Activites for generating funds\",Descriptions!AA44,0)","v":0},{"$f":"IF([1]Descriptions!D42=\"Activites for generating funds\",[1]Descriptions!B42,0)","v":0},"0General Account"]
[{"$f":"IF(Descriptions!D45=\"Activites for generating funds\",Descriptions!B45,0)","v":0},0,0,0,0,0,0,0,0,0,0,0,0,0,0,0,0,0,0,0,0,0,null,{"$f":"IF(Descriptions!D45=\"Activites for generating funds\",Descriptions!AA45,0)","v":0},{"$f":"IF([1]Descriptions!D43=\"Activites for generating funds\",[1]Descriptions!B43,0)","v":0},"0General Account"]
[{"$f":"IF(Descriptions!D46=\"Activites for generating funds\",Descriptions!B46,0)","v":0},0,0,0,0,0,0,0,0,0,0,0,0,0,0,0,0,0,0,0,0,0,null,{"$f":"IF(Descriptions!D46=\"Activites for generating funds\",Descriptions!AA46,0)","v":0},{"$f":"IF([1]Descriptions!D44=\"Activites for generating funds\",[1]Descriptions!B44,0)","v":0},"0General Account"]
[{"$f":"IF(Descriptions!D47=\"Activites for generating funds\",Descriptions!B47,0)","v":0},0,0,0,0,0,0,0,0,0,0,0,0,0,0,0,0,0,0,0,0,0,null,{"$f":"IF(Descriptions!D47=\"Activites for generating funds\",Descriptions!AA47,0)","v":0},{"$f":"IF([1]Descriptions!D45=\"Activites for generating funds\",[1]Descriptions!B45,0)","v":0},"0General Account"]
[{"$f":"IF(Descriptions!D48=\"Activites for generating funds\",Descriptions!B48,0)","v":0},0,0,0,0,0,0,0,0,0,0,0,0,0,0,0,0,0,0,0,0,0,null,{"$f":"IF(Descriptions!D48=\"Activites for generating funds\",Descriptions!AA48,0)","v":0},{"$f":"IF([1]Descriptions!D46=\"Activites for generating funds\",[1]Descriptions!B46,0)","v":0},"0General Account"]
[{"$f":"IF(Descriptions!D49=\"Activites for generating funds\",Descriptions!B49,0)","v":0},0,0,0,0,0,0,0,0,0,0,0,0,0,0,0,0,0,0,0,0,0,null,{"$f":"IF(Descriptions!D49=\"Activites for generating funds\",Descriptions!AA49,0)","v":0},{"$f":"IF([1]Descriptions!D47=\"Activites for generating funds\",[1]Descriptions!B47,0)","v":0},"0General Account"]
[{"$f":"IF(Descriptions!D50=\"Activites for generating funds\",Descriptions!B50,0)","v":0},0,0,0,0,0,0,0,0,0,0,0,0,0,0,0,0,0,0,0,0,0,null,{"$f":"IF(Descriptions!D50=\"Activites for generating funds\",Descriptions!AA50,0)","v":0},{"$f":"IF([1]Descriptions!D48=\"Activites for generating funds\",[1]Descriptions!B48,0)","v":0},"0General Account"]
[{"$f":"IF(Descriptions!D51=\"Activites for generating funds\",Descriptions!B51,0)","v":0},0,0,0,0,0,0,0,0,0,0,0,0,0,0,0,0,0,0,0,0,0,null,{"$f":"IF(Descriptions!D51=\"Activites for generating funds\",Descriptions!AA51,0)","v":0},{"$f":"IF([1]Descriptions!D49=\"Activites for generating funds\",[1]Descriptions!B49,0)","v":0},"0General Account"]
[{"$f":"IF(Descriptions!D52=\"Activites for generating funds\",Descriptions!B52,0)","v":0},0,0,0,0,0,0,0,0,0,0,0,0,0,0,0,0,0,0,0,0,0,null,{"$f":"IF(Descriptions!D52=\"Activites for generating funds\",Descriptions!AA52,0)","v":0},{"$f":"IF([1]Descriptions!D50=\"Activites for generating funds\",[1]Descriptions!B50,0)","v":0},"0General Account"]
[{"$f":"IF(Descriptions!D53=\"Activites for generating funds\",Descriptions!B53,0)","v":0},0,0,0,0,0,0,0,0,0,0,0,0,0,0,0,0,0,0,0,0,0,null,{"$f":"IF(Descriptions!D53=\"Activites for generating funds\",Descriptions!AA53,0)","v":0},{"$f":"IF([1]Descriptions!D51=\"Activites for generating funds\",[1]Descriptions!B51,0)","v":0},"0General Account"]
[{"$f":"IF(Descriptions!D54=\"Activites for generating funds\",Descriptions!B54,0)","v":0},0,0,0,0,0,0,0,0,0,0,0,0,0,0,0,0,0,0,0,0,0,null,{"$f":"IF(Descriptions!D54=\"Activites for generating funds\",Descriptions!AA54,0)","v":0},{"$f":"IF([1]Descriptions!D52=\"Activites for generating funds\",[1]Descriptions!B52,0)","v":0},"0General Account"]
[{"$f":"IF(Descriptions!D55=\"Activites for generating funds\",Descriptions!B55,0)","v":0},0,0,0,0,0,0,0,0,0,0,0,0,0,0,0,0,0,0,0,0,0,null,{"$f":"IF(Descriptions!D55=\"Activites for generating funds\",Descriptions!AA55,0)","v":0},{"$f":"IF([1]Descriptions!D53=\"Activites for generating funds\",[1]Descriptions!B53,0)","v":0},"0General Account"]
[{"$f":"IF(Descriptions!D56=\"Activites for generating funds\",Descriptions!B56,0)","v":0},0,0,0,0,0,0,0,0,0,0,0,0,0,0,0,0,0,0,0,0,0,null,{"$f":"IF(Descriptions!D56=\"Activites for generating funds\",Descriptions!AA56,0)","v":0},{"$f":"IF([1]Descriptions!D54=\"Activites for generating funds\",[1]Descriptions!B54,0)","v":0},"0General Account"]
[{"$f":"IF(Descriptions!D57=\"Activites for generating funds\",Descriptions!B57,0)","v":0},0,0,0,0,0,0,0,0,0,0,0,0,0,0,0,0,0,0,0,0,0,null,{"$f":"IF(Descriptions!D57=\"Activites for generating funds\",Descriptions!AA57,0)","v":0},{"$f":"IF([1]Descriptions!D55=\"Activites for generating funds\",[1]Descriptions!B55,0)","v":0},"0General Account"]
[{"$f":"IF(Descriptions!D58=\"Activites for generating funds\",Descriptions!B58,0)","v":0},0,0,0,0,0,0,0,0,0,0,0,0,0,0,0,0,0,0,0,0,0,null,{"$f":"IF(Descriptions!D58=\"Activites for generating funds\",Descriptions!AA58,0)","v":0},{"$f":"IF([1]Descriptions!D56=\"Activites for generating funds\",[1]Descriptions!B56,0)","v":0},"0General Account"]
[{"$f":"IF(Descriptions!D59=\"Activites for generating funds\",Descriptions!B59,0)","v":0},0,0,0,0,0,0,0,0,0,0,0,0,0,0,0,0,0,0,0,0,0,null,{"$f":"IF(Descriptions!D59=\"Activites for generating funds\",Descriptions!AA59,0)","v":0},{"$f":"IF([1]Descriptions!D57=\"Activites for generating funds\",[1]Descriptions!B57,0)","v":0},"0General Account"]
[{"$f":"IF(Descriptions!D60=\"Activites for generating funds\",Descriptions!B60,0)","v":0},0,0,0,0,0,0,0,0,0,0,0,0,0,0,0,0,0,0,0,0,0,null,{"$f":"IF(Descriptions!D60=\"Activites for generating funds\",Descriptions!AA60,0)","v":0},{"$f":"IF([1]Descriptions!D58=\"Activites for generating funds\",[1]Descriptions!B58,0)","v":0},"0General Account"]
[{"$f":"IF(Descriptions!D61=\"Activites for generating funds\",Descriptions!B61,0)","v":0},0,0,0,0,0,0,0,0,0,0,0,0,0,0,0,0,0,0,0,0,0,null,{"$f":"IF(Descriptions!D61=\"Activites for generating funds\",Descriptions!AA61,0)","v":0},{"$f":"IF([1]Descriptions!D59=\"Activites for generating funds\",[1]Descriptions!B59,0)","v":0},"0General Account"]
[{"$f":"IF(Descriptions!D62=\"Activites for generating funds\",Descriptions!B62,0)","v":0},0,0,0,0,0,0,0,0,0,0,0,0,0,0,0,0,0,0,0,0,0,null,{"$f":"IF(Descriptions!D62=\"Activites for generating funds\",Descriptions!AA62,0)","v":0},{"$f":"IF([1]Descriptions!D60=\"Activites for generating funds\",[1]Descriptions!B60,0)","v":0},"0General Account"]
[{"$f":"IF(Descriptions!D63=\"Activites for generating funds\",Descriptions!B63,0)","v":0},0,0,0,0,0,0,0,0,0,0,0,0,0,0,0,0,0,0,0,0,0,null,{"$f":"IF(Descriptions!D63=\"Activites for generating funds\",Descriptions!AA63,0)","v":0},{"$f":"IF([1]Descriptions!D61=\"Activites for generating funds\",[1]Descriptions!B61,0)","v":0},"0General Account"]
[{"$f":"IF(Descriptions!D64=\"Activites for generating funds\",Descriptions!B64,0)","v":0},0,0,0,0,0,0,0,0,0,0,0,0,0,0,0,0,0,0,0,0,0,null,{"$f":"IF(Descriptions!D64=\"Activites for generating funds\",Descriptions!AA64,0)","v":0},{"$f":"IF([1]Descriptions!D62=\"Activites for generating funds\",[1]Descriptions!B62,0)","v":0},"0General Account"]
[{"$f":"IF(Descriptions!D65=\"Activites for generating funds\",Descriptions!B65,0)","v":0},0,0,0,0,0,0,0,0,0,0,0,0,0,0,0,0,0,0,0,0,0,null,{"$f":"IF(Descriptions!D65=\"Activites for generating funds\",Descriptions!AA65,0)","v":0},{"$f":"IF([1]Descriptions!D63=\"Activites for generating funds\",[1]Descriptions!B63,0)","v":0},"0General Account"]
[{"$f":"IF(Descriptions!D66=\"Activites for generating funds\",Descriptions!B66,0)","v":0},0,0,0,0,0,0,0,0,0,0,0,0,0,0,0,0,0,0,0,0,0,null,{"$f":"IF(Descriptions!D66=\"Activites for generating funds\",Descriptions!AA66,0)","v":0},{"$f":"IF([1]Descriptions!D64=\"Activites for generating funds\",[1]Descriptions!B64,0)","v":0},"0General Account"]
[{"$f":"IF(Descriptions!D67=\"Activites for generating funds\",Descriptions!B67,0)","v":0},0,0,0,0,0,0,0,0,0,0,0,0,0,0,0,0,0,0,0,0,0,null,{"$f":"IF(Descriptions!D67=\"Activites for generating funds\",Descriptions!AA67,0)","v":0},{"$f":"IF([1]Descriptions!D65=\"Activites for generating funds\",[1]Descriptions!B65,0)","v":0},"0General Account"]
[{"$f":"IF(Descriptions!D68=\"Activites for generating funds\",Descriptions!B68,0)","v":0},0,0,0,0,0,0,0,0,0,0,0,0,0,0,0,0,0,0,0,0,0,null,{"$f":"IF(Descriptions!D68=\"Activites for generating funds\",Descriptions!AA68,0)","v":0},{"$f":"IF([1]Descriptions!D66=\"Activites for generating funds\",[1]Descriptions!B66,0)","v":0},"0General Account"]
[{"$f":"IF(Descriptions!D69=\"Activites for generating funds\",Descriptions!B69,0)","v":0},0,0,0,0,0,0,0,0,0,0,0,0,0,0,0,0,0,0,0,0,0,null,{"$f":"IF(Descriptions!D69=\"Activites for generating funds\",Descriptions!AA69,0)","v":0},{"$f":"IF([1]Descriptions!D67=\"Activites for generating funds\",[1]Descriptions!B67,0)","v":0},"0General Account"]
[{"$f":"IF(Descriptions!D70=\"Activites for generating funds\",Descriptions!B70,0)","v":0},0,0,0,0,0,0,0,0,0,0,0,0,0,0,0,0,0,0,0,0,0,null,{"$f":"IF(Descriptions!D70=\"Activites for generating funds\",Descriptions!AA70,0)","v":0},{"$f":"IF([1]Descriptions!D68=\"Activites for generating funds\",[1]Descriptions!B68,0)","v":0},"0General Account"]
[{"$f":"IF(Descriptions!D71=\"Activites for generating funds\",Descriptions!B71,0)","v":0},0,0,0,0,0,0,0,0,0,0,0,0,0,0,0,0,0,0,0,0,0,null,{"$f":"IF(Descriptions!D71=\"Activites for generating funds\",Descriptions!AA71,0)","v":0},{"$f":"IF([1]Descriptions!D69=\"Activites for generating funds\",[1]Descriptions!B69,0)","v":0},"0General Account"]
[{"$f":"IF(Descriptions!D72=\"Activites for generating funds\",Descriptions!B72,0)","v":0},0,0,0,0,0,0,0,0,0,0,0,0,0,0,0,0,0,0,0,0,0,null,{"$f":"IF(Descriptions!D72=\"Activites for generating funds\",Descriptions!AA72,0)","v":0},{"$f":"IF([1]Descriptions!D70=\"Activites for generating funds\",[1]Descriptions!B70,0)","v":0},"0General Account"]
[{"$f":"IF(Descriptions!D73=\"Activites for generating funds\",Descriptions!B73,0)","v":0},0,0,0,0,0,0,0,0,0,0,0,0,0,0,0,0,0,0,0,0,0,null,{"$f":"IF(Descriptions!D73=\"Activites for generating funds\",Descriptions!AA73,0)","v":0},{"$f":"IF([1]Descriptions!D71=\"Activites for generating funds\",[1]Descriptions!B71,0)","v":0},"0General Account"]
[{"$f":"IF(Descriptions!D74=\"Activites for generating funds\",Descriptions!B74,0)","v":0},0,0,0,0,0,0,0,0,0,0,0,0,0,0,0,0,0,0,0,0,0,null,{"$f":"IF(Descriptions!D74=\"Activites for generating funds\",Descriptions!AA74,0)","v":0},{"$f":"IF([1]Descriptions!D72=\"Activites for generating funds\",[1]Descriptions!B72,0)","v":0},"0General Account"]
[{"$f":"IF(Descriptions!D75=\"Activites for generating funds\",Descriptions!B75,0)","v":0},0,0,0,0,0,0,0,0,0,0,0,0,0,0,0,0,0,0,0,0,0,null,{"$f":"IF(Descriptions!D75=\"Activites for generating funds\",Descriptions!AA75,0)","v":0},{"$f":"IF([1]Descriptions!D73=\"Activites for generating funds\",[1]Descriptions!B73,0)","v":0},"0General Account"]
[{"$f":"IF(Descriptions!D76=\"Activites for generating funds\",Descriptions!B76,0)","v":0},0,0,0,0,0,0,0,0,0,0,0,0,0,0,0,0,0,0,0,0,0,null,{"$f":"IF(Descriptions!D76=\"Activites for generating funds\",Descriptions!AA76,0)","v":0},{"$f":"IF([1]Descriptions!D74=\"Activites for generating funds\",[1]Descriptions!B74,0)","v":0},"0General Account"]
[{"$f":"IF(Descriptions!D77=\"Activites for generating funds\",Descriptions!B77,0)","v":0},0,0,0,0,0,0,0,0,0,0,0,0,0,0,0,0,0,0,0,0,0,null,{"$f":"IF(Descriptions!D77=\"Activites for generating funds\",Descriptions!AA77,0)","v":0},{"$f":"IF([1]Descriptions!D75=\"Activites for generating funds\",[1]Descriptions!B75,0)","v":0},"0General Account"]
[{"$f":"IF(Descriptions!D78=\"Activites for generating funds\",Descriptions!B78,0)","v":0},0,0,0,0,0,0,0,0,0,0,0,0,0,0,0,0,0,0,0,0,0,null,{"$f":"IF(Descriptions!D78=\"Activites for generating funds\",Descriptions!AA78,0)","v":0},{"$f":"IF([1]Descriptions!D76=\"Activites for generating funds\",[1]Descriptions!B76,0)","v":0},"0General Account"]
[{"$f":"IF(Descriptions!D79=\"Activites for generating funds\",Descriptions!B79,0)","v":0},0,0,0,0,0,0,0,0,0,0,0,0,0,0,0,0,0,0,0,0,0,null,{"$f":"IF(Descriptions!D79=\"Activites for generating funds\",Descriptions!AA79,0)","v":0},{"$f":"IF([1]Descriptions!D77=\"Activites for generating funds\",[1]Descriptions!B77,0)","v":0},"0General Account"]
[{"$f":"IF(Descriptions!D80=\"Activites for generating funds\",Descriptions!B80,0)","v":0},0,0,0,0,0,0,0,0,0,0,0,0,0,0,0,0,0,0,0,0,0,null,{"$f":"IF(Descriptions!D80=\"Activites for generating funds\",Descriptions!AA80,0)","v":0},{"$f":"IF([1]Descriptions!D78=\"Activites for generating funds\",[1]Descriptions!B78,0)","v":0},"0General Account"]
[{"$f":"IF(Descriptions!D81=\"Activites for generating funds\",Descriptions!B81,0)","v":0},0,0,0,0,0,0,0,0,0,0,0,0,0,0,0,0,0,0,0,0,0,null,{"$f":"IF(Descriptions!D81=\"Activites for generating funds\",Descriptions!AA81,0)","v":0},{"$f":"IF([1]Descriptions!D79=\"Activites for generating funds\",[1]Descriptions!B79,0)","v":0},"0General Account"]
[{"$f":"IF(Descriptions!D82=\"Activites for generating funds\",Descriptions!B82,0)","v":0},0,0,0,0,0,0,0,0,0,0,0,0,0,0,0,0,0,0,0,0,0,null,{"$f":"IF(Descriptions!D82=\"Activites for generating funds\",Descriptions!AA82,0)","v":0},{"$f":"IF([1]Descriptions!D80=\"Activites for generating funds\",[1]Descriptions!B80,0)","v":0},"0General Account"]
[{"$f":"IF(Descriptions!D83=\"Activites for generating funds\",Descriptions!B83,0)","v":0},0,0,0,0,0,0,0,0,0,0,0,0,0,0,0,0,0,0,0,0,0,null,{"$f":"IF(Descriptions!D83=\"Activites for generating funds\",Descriptions!AA83,0)","v":0},{"$f":"IF([1]Descriptions!D81=\"Activites for generating funds\",[1]Descriptions!B81,0)","v":0},"0General Account"]
[{"$f":"IF(Descriptions!D84=\"Activites for generating funds\",Descriptions!B84,0)","v":0},0,0,0,0,0,0,0,0,0,0,0,0,0,0,0,0,0,0,0,0,0,null,{"$f":"IF(Descriptions!D84=\"Activites for generating funds\",Descriptions!AA84,0)","v":0},{"$f":"IF([1]Descriptions!D82=\"Activites for generating funds\",[1]Descriptions!B82,0)","v":0},"0General Account"]
[{"$f":"IF(Descriptions!D85=\"Activites for generating funds\",Descriptions!B85,0)","v":0},0,0,0,0,0,0,0,0,0,0,0,0,0,0,0,0,0,0,0,0,0,null,{"$f":"IF(Descriptions!D85=\"Activites for generating funds\",Descriptions!AA85,0)","v":0},{"$f":"IF([1]Descriptions!D83=\"Activites for generating funds\",[1]Descriptions!B83,0)","v":0},"0General Account"]
[{"$f":"IF(Descriptions!D86=\"Activites for generating funds\",Descriptions!B86,0)","v":0},0,0,0,0,0,0,0,0,0,0,0,0,0,0,0,0,0,0,0,0,0,null,{"$f":"IF(Descriptions!D86=\"Activites for generating funds\",Descriptions!AA86,0)","v":0},{"$f":"IF([1]Descriptions!D84=\"Activites for generating funds\",[1]Descriptions!B84,0)","v":0},"0General Account"]
[{"$f":"IF(Descriptions!D87=\"Activites for generating funds\",Descriptions!B87,0)","v":0},0,0,0,0,0,0,0,0,0,0,0,0,0,0,0,0,0,0,0,0,0,null,{"$f":"IF(Descriptions!D87=\"Activites for generating funds\",Descriptions!AA87,0)","v":0},{"$f":"IF([1]Descriptions!D85=\"Activites for generating funds\",[1]Descriptions!B85,0)","v":0},"0General Account"]
[{"$f":"IF(Descriptions!D88=\"Activites for generating funds\",Descriptions!B88,0)","v":0},0,0,0,0,0,0,0,0,0,0,0,0,0,0,0,0,0,0,0,0,0,null,{"$f":"IF(Descriptions!D88=\"Activites for generating funds\",Descriptions!AA88,0)","v":0},{"$f":"IF([1]Descriptions!D86=\"Activites for generating funds\",[1]Descriptions!B86,0)","v":0},"0General Account"]
[{"$f":"IF(Descriptions!D89=\"Activites for generating funds\",Descriptions!B89,0)","v":0},0,0,0,0,0,0,0,0,0,0,0,0,0,0,0,0,0,0,0,0,0,null,{"$f":"IF(Descriptions!D89=\"Activites for generating funds\",Descriptions!AA89,0)","v":0},{"$f":"IF([1]Descriptions!D87=\"Activites for generating funds\",[1]Descriptions!B87,0)","v":0},"0General Account"]
[{"$f":"IF(Descriptions!D90=\"Activites for generating funds\",Descriptions!B90,0)","v":0},0,0,0,0,0,0,0,0,0,0,0,0,0,0,0,0,0,0,0,0,0,null,{"$f":"IF(Descriptions!D90=\"Activites for generating funds\",Descriptions!AA90,0)","v":0},{"$f":"IF([1]Descriptions!D88=\"Activites for generating funds\",[1]Descriptions!B88,0)","v":0},"0General Account"]
[{"$f":"IF(Descriptions!D91=\"Activites for generating funds\",Descriptions!B91,0)","v":0},0,0,0,0,0,0,0,0,0,0,0,0,0,0,0,0,0,0,0,0,0,null,{"$f":"IF(Descriptions!D91=\"Activites for generating funds\",Descriptions!AA91,0)","v":0},{"$f":"IF([1]Descriptions!D89=\"Activites for generating funds\",[1]Descriptions!B89,0)","v":0},"0General Account"]
[{"$f":"IF(Descriptions!D92=\"Activites for generating funds\",Descriptions!B92,0)","v":0},0,0,0,0,0,0,0,0,0,0,0,0,0,0,0,0,0,0,0,0,0,null,{"$f":"IF(Descriptions!D92=\"Activites for generating funds\",Descriptions!AA92,0)","v":0},{"$f":"IF([1]Descriptions!D90=\"Activites for generating funds\",[1]Descriptions!B90,0)","v":0},"0General Account"]
[null,{"$f":"SUM(B232:B287)","v":0},0,0,0,0,0,0,0,0,0,0,0,0,0,0,0,0,0,0,0,0,null,{"$f":"X231","v":0}]
["CHURCH ACTIVITIES",null,null,null,null,null,null,null,null,null,null,null,null,null,null,null,null,null,null,null,null,null,null,{"$f":"SUM(X290:X346)","v":0}]
["Use of Church buildings",0,0,0,0,0,0,0,0,0,0,0,0,0,0,0,0,0,0,0,0,0,null,{"$f":"Descriptions!AA36","v":0},{"$f":"[1]Descriptions!B34","v":"Use of Church Buildings"},{"$f":"CONCATENATE(Y290,$Y$3)","v":"Use of Church BuildingsGeneral Account"}]
["Non-charitable trading",0,0,0,0,0,0,0,0,0,0,0,0,0,0,0,0,0,0,0,0,0,null,{"$f":"Descriptions!AA26","v":0},{"$f":"[1]Descriptions!B24","v":"Non-charitable trading"},"Non-charitable tradingGeneral Account"]
["Fees - Statutory",0,0,0,0,0,0,0,0,0,0,0,0,0,0,0,0,0,0,0,0,0,null,{"$f":"Descriptions!AA15","v":0},{"$f":"[1]Descriptions!B13","v":"Fees - Statutory"},"Fees - StatutoryGeneral Account"]
["Fees - Additional",0,0,0,0,0,0,0,0,0,0,0,0,0,0,0,0,0,0,0,0,0,null,{"$f":"Descriptions!AA14","v":0},{"$f":"[1]Descriptions!B12","v":"Fees - Additional"},"Fees - AdditionalGeneral Account"]
["Church Building Appeal",0,0,0,0,0,0,0,0,0,0,0,0,0,0,0,0,0,0,0,0,0,null,{"$f":"Descriptions!AA9","v":0},{"$f":"[1]Descriptions!B7","v":"Church Building Appeal"},"Church Building AppealGeneral Account"]
["VAT Reclaim",0,0,0,0,0,0,0,0,0,0,0,0,0,0,0,0,0,0,0,0,0,null,{"$f":"Descriptions!AA37","v":0},{"$f":"[1]Descriptions!B35","v":"VAT Reclaim"},"VAT ReclaimGeneral Account"]
["Rental Income",0,0,0,0,0,0,0,0,0,0,0,0,0,0,0,0,0,0,0,0,0,null,{"$f":"Descriptions!AA30","v":0},{"$f":"[1]Descriptions!B28","v":"Rental Income"},"Rental IncomeGeneral Account"]
[{"$f":"IF(Descriptions!D43=\"Church activities\",Descriptions!B43,0)","v":0},0,0,0,0,0,0,0,0,0,0,0,0,0,0,0,0,0,0,0,0,0,null,{"$f":"IF(Descriptions!D43=\"Church activities\",Descriptions!AA43,0)","v":0},{"$f":"IF([1]Descriptions!D41=\"Church activities\",[1]Descriptions!B41,0)","v":0},"0General Account"]
[{"$f":"IF(Descriptions!D44=\"Church activities\",Descriptions!B44,0)","v":0},0,0,0,0,0,0,0,0,0,0,0,0,0,0,0,0,0,0,0,0,0,null,{"$f":"IF(Descriptions!D44=\"Church activities\",Descriptions!AA44,0)","v":0},{"$f":"IF([1]Descriptions!D42=\"Church activities\",[1]Descriptions!B42,0)","v":0},"0General Account"]
[{"$f":"IF(Descriptions!D45=\"Church activities\",Descriptions!B45,0)","v":0},0,0,0,0,0,0,0,0,0,0,0,0,0,0,0,0,0,0,0,0,0,null,{"$f":"IF(Descriptions!D45=\"Church activities\",Descriptions!AA45,0)","v":0},{"$f":"IF([1]Descriptions!D43=\"Church activities\",[1]Descriptions!B43,0)","v":0},"0General Account"]
[{"$f":"IF(Descriptions!D46=\"Church activities\",Descriptions!B46,0)","v":0},0,0,0,0,0,0,0,0,0,0,0,0,0,0,0,0,0,0,0,0,0,null,{"$f":"IF(Descriptions!D46=\"Church activities\",Descriptions!AA46,0)","v":0},{"$f":"IF([1]Descriptions!D44=\"Church activities\",[1]Descriptions!B44,0)","v":0},"0General Account"]
[{"$f":"IF(Descriptions!D47=\"Church activities\",Descriptions!B47,0)","v":0},0,0,0,0,0,0,0,0,0,0,0,0,0,0,0,0,0,0,0,0,0,null,{"$f":"IF(Descriptions!D47=\"Church activities\",Descriptions!AA47,0)","v":0},{"$f":"IF([1]Descriptions!D45=\"Church activities\",[1]Descriptions!B45,0)","v":0},"0General Account"]
[{"$f":"IF(Descriptions!D48=\"Church activities\",Descriptions!B48,0)","v":0},0,0,0,0,0,0,0,0,0,0,0,0,0,0,0,0,0,0,0,0,0,null,{"$f":"IF(Descriptions!D48=\"Church activities\",Descriptions!AA48,0)","v":0},{"$f":"IF([1]Descriptions!D46=\"Church activities\",[1]Descriptions!B46,0)","v":0},"0General Account"]
[{"$f":"IF(Descriptions!D49=\"Church activities\",Descriptions!B49,0)","v":0},0,0,0,0,0,0,0,0,0,0,0,0,0,0,0,0,0,0,0,0,0,null,{"$f":"IF(Descriptions!D49=\"Church activities\",Descriptions!AA49,0)","v":0},{"$f":"IF([1]Descriptions!D47=\"Church activities\",[1]Descriptions!B47,0)","v":0},"0General Account"]
[{"$f":"IF(Descriptions!D50=\"Church activities\",Descriptions!B50,0)","v":0},0,0,0,0,0,0,0,0,0,0,0,0,0,0,0,0,0,0,0,0,0,null,{"$f":"IF(Descriptions!D50=\"Church activities\",Descriptions!AA50,0)","v":0},{"$f":"IF([1]Descriptions!D48=\"Church activities\",[1]Descriptions!B48,0)","v":0},"0General Account"]
[{"$f":"IF(Descriptions!D51=\"Church activities\",Descriptions!B51,0)","v":0},0,0,0,0,0,0,0,0,0,0,0,0,0,0,0,0,0,0,0,0,0,null,{"$f":"IF(Descriptions!D51=\"Church activities\",Descriptions!AA51,0)","v":0},{"$f":"IF([1]Descriptions!D49=\"Church activities\",[1]Descriptions!B49,0)","v":0},"0General Account"]
[{"$f":"IF(Descriptions!D52=\"Church activities\",Descriptions!B52,0)","v":0},0,0,0,0,0,0,0,0,0,0,0,0,0,0,0,0,0,0,0,0,0,null,{"$f":"IF(Descriptions!D52=\"Church activities\",Descriptions!AA52,0)","v":0},{"$f":"IF([1]Descriptions!D50=\"Church activities\",[1]Descriptions!B50,0)","v":0},"0General Account"]
[{"$f":"IF(Descriptions!D53=\"Church activities\",Descriptions!B53,0)","v":0},0,0,0,0,0,0,0,0,0,0,0,0,0,0,0,0,0,0,0,0,0,null,{"$f":"IF(Descriptions!D53=\"Church activities\",Descriptions!AA53,0)","v":0},{"$f":"IF([1]Descriptions!D51=\"Church activities\",[1]Descriptions!B51,0)","v":0},"0General Account"]
[{"$f":"IF(Descriptions!D54=\"Church activities\",Descriptions!B54,0)","v":0},0,0,0,0,0,0,0,0,0,0,0,0,0,0,0,0,0,0,0,0,0,null,{"$f":"IF(Descriptions!D54=\"Church activities\",Descriptions!AA54,0)","v":0},{"$f":"IF([1]Descriptions!D52=\"Church activities\",[1]Descriptions!B52,0)","v":0},"0General Account"]
[{"$f":"IF(Descriptions!D55=\"Church activities\",Descriptions!B55,0)","v":0},0,0,0,0,0,0,0,0,0,0,0,0,0,0,0,0,0,0,0,0,0,null,{"$f":"IF(Descriptions!D55=\"Church activities\",Descriptions!AA55,0)","v":0},{"$f":"IF([1]Descriptions!D53=\"Church activities\",[1]Descriptions!B53,0)","v":0},"0General Account"]
[{"$f":"IF(Descriptions!D56=\"Church activities\",Descriptions!B56,0)","v":0},0,0,0,0,0,0,0,0,0,0,0,0,0,0,0,0,0,0,0,0,0,null,{"$f":"IF(Descriptions!D56=\"Church activities\",Descriptions!AA56,0)","v":0},{"$f":"IF([1]Descriptions!D54=\"Church activities\",[1]Descriptions!B54,0)","v":0},"0General Account"]
[{"$f":"IF(Descriptions!D57=\"Church activities\",Descriptions!B57,0)","v":0},0,0,0,0,0,0,0,0,0,0,0,0,0,0,0,0,0,0,0,0,0,null,{"$f":"IF(Descriptions!D57=\"Church activities\",Descriptions!AA57,0)","v":0},{"$f":"IF([1]Descriptions!D55=\"Church activities\",[1]Descriptions!B55,0)","v":0},"0General Account"]
[{"$f":"IF(Descriptions!D58=\"Church activities\",Descriptions!B58,0)","v":0},0,0,0,0,0,0,0,0,0,0,0,0,0,0,0,0,0,0,0,0,0,null,{"$f":"IF(Descriptions!D58=\"Church activities\",Descriptions!AA58,0)","v":0},{"$f":"IF([1]Descriptions!D56=\"Church activities\",[1]Descriptions!B56,0)","v":0},"0General Account"]
[{"$f":"IF(Descriptions!D59=\"Church activities\",Descriptions!B59,0)","v":0},0,0,0,0,0,0,0,0,0,0,0,0,0,0,0,0,0,0,0,0,0,null,{"$f":"IF(Descriptions!D59=\"Church activities\",Descriptions!AA59,0)","v":0},{"$f":"IF([1]Descriptions!D57=\"Church activities\",[1]Descriptions!B57,0)","v":0},"0General Account"]
[{"$f":"IF(Descriptions!D60=\"Church activities\",Descriptions!B60,0)","v":0},0,0,0,0,0,0,0,0,0,0,0,0,0,0,0,0,0,0,0,0,0,null,{"$f":"IF(Descriptions!D60=\"Church activities\",Descriptions!AA60,0)","v":0},{"$f":"IF([1]Descriptions!D58=\"Church activities\",[1]Descriptions!B58,0)","v":0},"0General Account"]
[{"$f":"IF(Descriptions!D61=\"Church activities\",Descriptions!B61,0)","v":0},0,0,0,0,0,0,0,0,0,0,0,0,0,0,0,0,0,0,0,0,0,null,{"$f":"IF(Descriptions!D61=\"Church activities\",Descriptions!AA61,0)","v":0},{"$f":"IF([1]Descriptions!D59=\"Church activities\",[1]Descriptions!B59,0)","v":0},"0General Account"]
[{"$f":"IF(Descriptions!D62=\"Church activities\",Descriptions!B62,0)","v":0},0,0,0,0,0,0,0,0,0,0,0,0,0,0,0,0,0,0,0,0,0,null,{"$f":"IF(Descriptions!D62=\"Church activities\",Descriptions!AA62,0)","v":0},{"$f":"IF([1]Descriptions!D60=\"Church activities\",[1]Descriptions!B60,0)","v":0},"0General Account"]
[{"$f":"IF(Descriptions!D63=\"Church activities\",Descriptions!B63,0)","v":0},0,0,0,0,0,0,0,0,0,0,0,0,0,0,0,0,0,0,0,0,0,null,{"$f":"IF(Descriptions!D63=\"Church activities\",Descriptions!AA63,0)","v":0},{"$f":"IF([1]Descriptions!D61=\"Church activities\",[1]Descriptions!B61,0)","v":0},"0General Account"]
[{"$f":"IF(Descriptions!D64=\"Church activities\",Descriptions!B64,0)","v":0},0,0,0,0,0,0,0,0,0,0,0,0,0,0,0,0,0,0,0,0,0,null,{"$f":"IF(Descriptions!D64=\"Church activities\",Descriptions!AA64,0)","v":0},{"$f":"IF([1]Descriptions!D62=\"Church activities\",[1]Descriptions!B62,0)","v":0},"0General Account"]
[{"$f":"IF(Descriptions!D65=\"Church activities\",Descriptions!B65,0)","v":0},0,0,0,0,0,0,0,0,0,0,0,0,0,0,0,0,0,0,0,0,0,null,{"$f":"IF(Descriptions!D65=\"Church activities\",Descriptions!AA65,0)","v":0},{"$f":"IF([1]Descriptions!D63=\"Church activities\",[1]Descriptions!B63,0)","v":0},"0General Account"]
[{"$f":"IF(Descriptions!D66=\"Church activities\",Descriptions!B66,0)","v":0},0,0,0,0,0,0,0,0,0,0,0,0,0,0,0,0,0,0,0,0,0,null,{"$f":"IF(Descriptions!D66=\"Church activities\",Descriptions!AA66,0)","v":0},{"$f":"IF([1]Descriptions!D64=\"Church activities\",[1]Descriptions!B64,0)","v":0},"0General Account"]
[{"$f":"IF(Descriptions!D67=\"Church activities\",Descriptions!B67,0)","v":0},0,0,0,0,0,0,0,0,0,0,0,0,0,0,0,0,0,0,0,0,0,null,{"$f":"IF(Descriptions!D67=\"Church activities\",Descriptions!AA67,0)","v":0},{"$f":"IF([1]Descriptions!D65=\"Church activities\",[1]Descriptions!B65,0)","v":0},"0General Account"]
[{"$f":"IF(Descriptions!D68=\"Church activities\",Descriptions!B68,0)","v":0},0,0,0,0,0,0,0,0,0,0,0,0,0,0,0,0,0,0,0,0,0,null,{"$f":"IF(Descriptions!D68=\"Church activities\",Descriptions!AA68,0)","v":0},{"$f":"IF([1]Descriptions!D66=\"Church activities\",[1]Descriptions!B66,0)","v":0},"0General Account"]
[{"$f":"IF(Descriptions!D69=\"Church activities\",Descriptions!B69,0)","v":0},0,0,0,0,0,0,0,0,0,0,0,0,0,0,0,0,0,0,0,0,0,null,{"$f":"IF(Descriptions!D69=\"Church activities\",Descriptions!AA69,0)","v":0},{"$f":"IF([1]Descriptions!D67=\"Church activities\",[1]Descriptions!B67,0)","v":0},"0General Account"]
[{"$f":"IF(Descriptions!D70=\"Church activities\",Descriptions!B70,0)","v":0},0,0,0,0,0,0,0,0,0,0,0,0,0,0,0,0,0,0,0,0,0,null,{"$f":"IF(Descriptions!D70=\"Church activities\",Descriptions!AA70,0)","v":0},{"$f":"IF([1]Descriptions!D68=\"Church activities\",[1]Descriptions!B68,0)","v":0},"0General Account"]
[{"$f":"IF(Descriptions!D71=\"Church activities\",Descriptions!B71,0)","v":0},0,0,0,0,0,0,0,0,0,0,0,0,0,0,0,0,0,0,0,0,0,null,{"$f":"IF(Descriptions!D71=\"Church activities\",Descriptions!AA71,0)","v":0},{"$f":"IF([1]Descriptions!D69=\"Church activities\",[1]Descriptions!B69,0)","v":0},"0General Account"]
[{"$f":"IF(Descriptions!D72=\"Church activities\",Descriptions!B72,0)","v":0},0,0,0,0,0,0,0,0,0,0,0,0,0,0,0,0,0,0,0,0,0,null,{"$f":"IF(Descriptions!D72=\"Church activities\",Descriptions!AA72,0)","v":0},{"$f":"IF([1]Descriptions!D70=\"Church activities\",[1]Descriptions!B70,0)","v":0},"0General Account"]
[{"$f":"IF(Descriptions!D73=\"Church activities\",Descriptions!B73,0)","v":0},0,0,0,0,0,0,0,0,0,0,0,0,0,0,0,0,0,0,0,0,0,null,{"$f":"IF(Descriptions!D73=\"Church activities\",Descriptions!AA73,0)","v":0},{"$f":"IF([1]Descriptions!D71=\"Church activities\",[1]Descriptions!B71,0)","v":0},"0General Account"]
[{"$f":"IF(Descriptions!D74=\"Church activities\",Descriptions!B74,0)","v":0},0,0,0,0,0,0,0,0,0,0,0,0,0,0,0,0,0,0,0,0,0,null,{"$f":"IF(Descriptions!D74=\"Church activities\",Descriptions!AA74,0)","v":0},{"$f":"IF([1]Descriptions!D72=\"Church activities\",[1]Descriptions!B72,0)","v":0},"0General Account"]
[{"$f":"IF(Descriptions!D75=\"Church activities\",Descriptions!B75,0)","v":0},0,0,0,0,0,0,0,0,0,0,0,0,0,0,0,0,0,0,0,0,0,null,{"$f":"IF(Descriptions!D75=\"Church activities\",Descriptions!AA75,0)","v":0},{"$f":"IF([1]Descriptions!D73=\"Church activities\",[1]Descriptions!B73,0)","v":0},"0General Account"]
[{"$f":"IF(Descriptions!D76=\"Church activities\",Descriptions!B76,0)","v":0},0,0,0,0,0,0,0,0,0,0,0,0,0,0,0,0,0,0,0,0,0,null,{"$f":"IF(Descriptions!D76=\"Church activities\",Descriptions!AA76,0)","v":0},{"$f":"IF([1]Descriptions!D74=\"Church activities\",[1]Descriptions!B74,0)","v":0},"0General Account"]
[{"$f":"IF(Descriptions!D77=\"Church activities\",Descriptions!B77,0)","v":0},0,0,0,0,0,0,0,0,0,0,0,0,0,0,0,0,0,0,0,0,0,null,{"$f":"IF(Descriptions!D77=\"Church activities\",Descriptions!AA77,0)","v":0},{"$f":"IF([1]Descriptions!D75=\"Church activities\",[1]Descriptions!B75,0)","v":0},"0General Account"]
[{"$f":"IF(Descriptions!D78=\"Church activities\",Descriptions!B78,0)","v":0},0,0,0,0,0,0,0,0,0,0,0,0,0,0,0,0,0,0,0,0,0,null,{"$f":"IF(Descriptions!D78=\"Church activities\",Descriptions!AA78,0)","v":0},{"$f":"IF([1]Descriptions!D76=\"Church activities\",[1]Descriptions!B76,0)","v":0},"0General Account"]
[{"$f":"IF(Descriptions!D79=\"Church activities\",Descriptions!B79,0)","v":0},0,0,0,0,0,0,0,0,0,0,0,0,0,0,0,0,0,0,0,0,0,null,{"$f":"IF(Descriptions!D79=\"Church activities\",Descriptions!AA79,0)","v":0},{"$f":"IF([1]Descriptions!D77=\"Church activities\",[1]Descriptions!B77,0)","v":0},"0General Account"]
[{"$f":"IF(Descriptions!D80=\"Church activities\",Descriptions!B80,0)","v":0},0,0,0,0,0,0,0,0,0,0,0,0,0,0,0,0,0,0,0,0,0,null,{"$f":"IF(Descriptions!D80=\"Church activities\",Descriptions!AA80,0)","v":0},{"$f":"IF([1]Descriptions!D78=\"Church activities\",[1]Descriptions!B78,0)","v":0},"0General Account"]
[{"$f":"IF(Descriptions!D81=\"Church activities\",Descriptions!B81,0)","v":0},0,0,0,0,0,0,0,0,0,0,0,0,0,0,0,0,0,0,0,0,0,null,{"$f":"IF(Descriptions!D81=\"Church activities\",Descriptions!AA81,0)","v":0},{"$f":"IF([1]Descriptions!D79=\"Church activities\",[1]Descriptions!B79,0)","v":0},"0General Account"]
[{"$f":"IF(Descriptions!D82=\"Church activities\",Descriptions!B82,0)","v":0},0,0,0,0,0,0,0,0,0,0,0,0,0,0,0,0,0,0,0,0,0,null,{"$f":"IF(Descriptions!D82=\"Church activities\",Descriptions!AA82,0)","v":0},{"$f":"IF([1]Descriptions!D80=\"Church activities\",[1]Descriptions!B80,0)","v":0},"0General Account"]
[{"$f":"IF(Descriptions!D83=\"Church activities\",Descriptions!B83,0)","v":0},0,0,0,0,0,0,0,0,0,0,0,0,0,0,0,0,0,0,0,0,0,null,{"$f":"IF(Descriptions!D83=\"Church activities\",Descriptions!AA83,0)","v":0},{"$f":"IF([1]Descriptions!D81=\"Church activities\",[1]Descriptions!B81,0)","v":0},"0General Account"]
[{"$f":"IF(Descriptions!D84=\"Church activities\",Descriptions!B84,0)","v":0},0,0,0,0,0,0,0,0,0,0,0,0,0,0,0,0,0,0,0,0,0,null,{"$f":"IF(Descriptions!D84=\"Church activities\",Descriptions!AA84,0)","v":0},{"$f":"IF([1]Descriptions!D82=\"Church activities\",[1]Descriptions!B82,0)","v":0},"0General Account"]
[{"$f":"IF(Descriptions!D85=\"Church activities\",Descriptions!B85,0)","v":0},0,0,0,0,0,0,0,0,0,0,0,0,0,0,0,0,0,0,0,0,0,null,{"$f":"IF(Descriptions!D85=\"Church activities\",Descriptions!AA85,0)","v":0},{"$f":"IF([1]Descriptions!D83=\"Church activities\",[1]Descriptions!B83,0)","v":0},"0General Account"]
[{"$f":"IF(Descriptions!D86=\"Church activities\",Descriptions!B86,0)","v":0},0,0,0,0,0,0,0,0,0,0,0,0,0,0,0,0,0,0,0,0,0,null,{"$f":"IF(Descriptions!D86=\"Church activities\",Descriptions!AA86,0)","v":0},{"$f":"IF([1]Descriptions!D84=\"Church activities\",[1]Descriptions!B84,0)","v":0},"0General Account"]
[{"$f":"IF(Descriptions!D87=\"Church activities\",Descriptions!B87,0)","v":0},0,0,0,0,0,0,0,0,0,0,0,0,0,0,0,0,0,0,0,0,0,null,{"$f":"IF(Descriptions!D87=\"Church activities\",Descriptions!AA87,0)","v":0},{"$f":"IF([1]Descriptions!D85=\"Church activities\",[1]Descriptions!B85,0)","v":0},"0General Account"]
[{"$f":"IF(Descriptions!D88=\"Church activities\",Descriptions!B88,0)","v":0},0,0,0,0,0,0,0,0,0,0,0,0,0,0,0,0,0,0,0,0,0,null,{"$f":"IF(Descriptions!D88=\"Church activities\",Descriptions!AA88,0)","v":0},{"$f":"IF([1]Descriptions!D86=\"Church activities\",[1]Descriptions!B86,0)","v":0},"0General Account"]
[{"$f":"IF(Descriptions!D89=\"Church activities\",Descriptions!B89,0)","v":0},0,0,0,0,0,0,0,0,0,0,0,0,0,0,0,0,0,0,0,0,0,null,{"$f":"IF(Descriptions!D89=\"Church activities\",Descriptions!AA89,0)","v":0},{"$f":"IF([1]Descriptions!D87=\"Church activities\",[1]Descriptions!B87,0)","v":0},"0General Account"]
[{"$f":"IF(Descriptions!D90=\"Church activities\",Descriptions!B90,0)","v":0},0,0,0,0,0,0,0,0,0,0,0,0,0,0,0,0,0,0,0,0,0,null,{"$f":"IF(Descriptions!D90=\"Church activities\",Descriptions!AA90,0)","v":0},{"$f":"IF([1]Descriptions!D88=\"Church activities\",[1]Descriptions!B88,0)","v":0},"0General Account"]
[{"$f":"IF(Descriptions!D91=\"Church activities\",Descriptions!B91,0)","v":0},0,0,0,0,0,0,0,0,0,0,0,0,0,0,0,0,0,0,0,0,0,null,{"$f":"IF(Descriptions!D91=\"Church activities\",Descriptions!AA91,0)","v":0},{"$f":"IF([1]Descriptions!D89=\"Church activities\",[1]Descriptions!B89,0)","v":0},"0General Account"]
[{"$f":"IF(Descriptions!D92=\"Church activities\",Descriptions!B92,0)","v":0},0,0,0,0,0,0,0,0,0,0,0,0,0,0,0,0,0,0,0,0,0,null,{"$f":"IF(Descriptions!D92=\"Church activities\",Descriptions!AA92,0)","v":0},{"$f":"IF([1]Descriptions!D90=\"Church activities\",[1]Descriptions!B90,0)","v":0},"0General Account"]
[null,{"$f":"SUM(B290:B346)","v":0},0,0,0,0,0,0,0,0,0,0,0,0,0,0,0,0,0,0,0,0,null,{"$f":"X289","v":0}]
["INVESTMENT INCOME",null,null,null,null,null,null,null,null,null,null,null,null,null,null,null,null,null,null,null,null,null,null,{"$f":"SUM(X349:X399)","v":0}]
["Dividends and Interest",0,0,0,0,0,0,0,0,0,0,0,0,0,0,0,0,0,0,0,0,0,null,{"$f":"Descriptions!AA11","v":0},{"$f":"[1]Descriptions!B9","v":"Dividends and Interest"},{"$f":"CONCATENATE(Y349,$Y$3)","v":"Dividends and InterestGeneral Account"}]
[{"$f":"IF(Descriptions!D43=\"Investment income\",Descriptions!B43,0)","v":0},0,0,0,0,0,0,0,0,0,0,0,0,0,0,0,0,0,0,0,0,0,null,{"$f":"IF(Descriptions!D43=\"Investment income\",Descriptions!AA43,0)","v":0},{"$f":"IF([1]Descriptions!D41=\"Investment income\",[1]Descriptions!B41,0)","v":0},{"$f":"CONCATENATE(Y350,$Y$3)","v":"0General Account"}]
[{"$f":"IF(Descriptions!D44=\"Investment income\",Descriptions!B44,0)","v":0},0,0,0,0,0,0,0,0,0,0,0,0,0,0,0,0,0,0,0,0,0,null,{"$f":"IF(Descriptions!D44=\"Investment income\",Descriptions!AA44,0)","v":0},{"$f":"IF([1]Descriptions!D42=\"Investment income\",[1]Descriptions!B42,0)","v":0},{"$f":"CONCATENATE(Y351,$Y$3)","v":"0General Account"}]
[{"$f":"IF(Descriptions!D45=\"Investment income\",Descriptions!B45,0)","v":0},0,0,0,0,0,0,0,0,0,0,0,0,0,0,0,0,0,0,0,0,0,null,{"$f":"IF(Descriptions!D45=\"Investment income\",Descriptions!AA45,0)","v":0},{"$f":"IF([1]Descriptions!D43=\"Investment income\",[1]Descriptions!B43,0)","v":0},"0General Account"]
[{"$f":"IF(Descriptions!D46=\"Investment income\",Descriptions!B46,0)","v":0},0,0,0,0,0,0,0,0,0,0,0,0,0,0,0,0,0,0,0,0,0,null,{"$f":"IF(Descriptions!D46=\"Investment income\",Descriptions!AA46,0)","v":0},{"$f":"IF([1]Descriptions!D44=\"Investment income\",[1]Descriptions!B44,0)","v":0},"0General Account"]
[{"$f":"IF(Descriptions!D47=\"Investment income\",Descriptions!B47,0)","v":0},0,0,0,0,0,0,0,0,0,0,0,0,0,0,0,0,0,0,0,0,0,null,{"$f":"IF(Descriptions!D47=\"Investment income\",Descriptions!AA47,0)","v":0},{"$f":"IF([1]Descriptions!D45=\"Investment income\",[1]Descriptions!B45,0)","v":0},"0General Account"]
[{"$f":"IF(Descriptions!D48=\"Investment income\",Descriptions!B48,0)","v":0},0,0,0,0,0,0,0,0,0,0,0,0,0,0,0,0,0,0,0,0,0,null,{"$f":"IF(Descriptions!D48=\"Investment income\",Descriptions!AA48,0)","v":0},{"$f":"IF([1]Descriptions!D46=\"Investment income\",[1]Descriptions!B46,0)","v":0},"0General Account"]
[{"$f":"IF(Descriptions!D49=\"Investment income\",Descriptions!B49,0)","v":0},0,0,0,0,0,0,0,0,0,0,0,0,0,0,0,0,0,0,0,0,0,null,{"$f":"IF(Descriptions!D49=\"Investment income\",Descriptions!AA49,0)","v":0},{"$f":"IF([1]Descriptions!D47=\"Investment income\",[1]Descriptions!B47,0)","v":0},"0General Account"]
[{"$f":"IF(Descriptions!D50=\"Investment income\",Descriptions!B50,0)","v":0},0,0,0,0,0,0,0,0,0,0,0,0,0,0,0,0,0,0,0,0,0,null,{"$f":"IF(Descriptions!D50=\"Investment income\",Descriptions!AA50,0)","v":0},{"$f":"IF([1]Descriptions!D48=\"Investment income\",[1]Descriptions!B48,0)","v":0},"0General Account"]
[{"$f":"IF(Descriptions!D51=\"Investment income\",Descriptions!B51,0)","v":0},0,0,0,0,0,0,0,0,0,0,0,0,0,0,0,0,0,0,0,0,0,null,{"$f":"IF(Descriptions!D51=\"Investment income\",Descriptions!AA51,0)","v":0},{"$f":"IF([1]Descriptions!D49=\"Investment income\",[1]Descriptions!B49,0)","v":0},"0General Account"]
[{"$f":"IF(Descriptions!D52=\"Investment income\",Descriptions!B52,0)","v":0},0,0,0,0,0,0,0,0,0,0,0,0,0,0,0,0,0,0,0,0,0,null,{"$f":"IF(Descriptions!D52=\"Investment income\",Descriptions!AA52,0)","v":0},{"$f":"IF([1]Descriptions!D50=\"Investment income\",[1]Descriptions!B50,0)","v":0},"0General Account"]
[{"$f":"IF(Descriptions!D53=\"Investment income\",Descriptions!B53,0)","v":0},0,0,0,0,0,0,0,0,0,0,0,0,0,0,0,0,0,0,0,0,0,null,{"$f":"IF(Descriptions!D53=\"Investment income\",Descriptions!AA53,0)","v":0},{"$f":"IF([1]Descriptions!D51=\"Investment income\",[1]Descriptions!B51,0)","v":0},"0General Account"]
[{"$f":"IF(Descriptions!D54=\"Investment income\",Descriptions!B54,0)","v":0},0,0,0,0,0,0,0,0,0,0,0,0,0,0,0,0,0,0,0,0,0,null,{"$f":"IF(Descriptions!D54=\"Investment income\",Descriptions!AA54,0)","v":0},{"$f":"IF([1]Descriptions!D52=\"Investment income\",[1]Descriptions!B52,0)","v":0},"0General Account"]
[{"$f":"IF(Descriptions!D55=\"Investment income\",Descriptions!B55,0)","v":0},0,0,0,0,0,0,0,0,0,0,0,0,0,0,0,0,0,0,0,0,0,null,{"$f":"IF(Descriptions!D55=\"Investment income\",Descriptions!AA55,0)","v":0},{"$f":"IF([1]Descriptions!D53=\"Investment income\",[1]Descriptions!B53,0)","v":0},"0General Account"]
[{"$f":"IF(Descriptions!D56=\"Investment income\",Descriptions!B56,0)","v":0},0,0,0,0,0,0,0,0,0,0,0,0,0,0,0,0,0,0,0,0,0,null,{"$f":"IF(Descriptions!D56=\"Investment income\",Descriptions!AA56,0)","v":0},{"$f":"IF([1]Descriptions!D54=\"Investment income\",[1]Descriptions!B54,0)","v":0},"0General Account"]
[{"$f":"IF(Descriptions!D57=\"Investment income\",Descriptions!B57,0)","v":0},0,0,0,0,0,0,0,0,0,0,0,0,0,0,0,0,0,0,0,0,0,null,{"$f":"IF(Descriptions!D57=\"Investment income\",Descriptions!AA57,0)","v":0},{"$f":"IF([1]Descriptions!D55=\"Investment income\",[1]Descriptions!B55,0)","v":0},"0General Account"]
[{"$f":"IF(Descriptions!D58=\"Investment income\",Descriptions!B58,0)","v":0},0,0,0,0,0,0,0,0,0,0,0,0,0,0,0,0,0,0,0,0,0,null,{"$f":"IF(Descriptions!D58=\"Investment income\",Descriptions!AA58,0)","v":0},{"$f":"IF([1]Descriptions!D56=\"Investment income\",[1]Descriptions!B56,0)","v":0},"0General Account"]
[{"$f":"IF(Descriptions!D59=\"Investment income\",Descriptions!B59,0)","v":0},0,0,0,0,0,0,0,0,0,0,0,0,0,0,0,0,0,0,0,0,0,null,{"$f":"IF(Descriptions!D59=\"Investment income\",Descriptions!AA59,0)","v":0},{"$f":"IF([1]Descriptions!D57=\"Investment income\",[1]Descriptions!B57,0)","v":0},"0General Account"]
[{"$f":"IF(Descriptions!D60=\"Investment income\",Descriptions!B60,0)","v":0},0,0,0,0,0,0,0,0,0,0,0,0,0,0,0,0,0,0,0,0,0,null,{"$f":"IF(Descriptions!D60=\"Investment income\",Descriptions!AA60,0)","v":0},{"$f":"IF([1]Descriptions!D58=\"Investment income\",[1]Descriptions!B58,0)","v":0},"0General Account"]
[{"$f":"IF(Descriptions!D61=\"Investment income\",Descriptions!B61,0)","v":0},0,0,0,0,0,0,0,0,0,0,0,0,0,0,0,0,0,0,0,0,0,null,{"$f":"IF(Descriptions!D61=\"Investment income\",Descriptions!AA61,0)","v":0},{"$f":"IF([1]Descriptions!D59=\"Investment income\",[1]Descriptions!B59,0)","v":0},"0General Account"]
[{"$f":"IF(Descriptions!D62=\"Investment income\",Descriptions!B62,0)","v":0},0,0,0,0,0,0,0,0,0,0,0,0,0,0,0,0,0,0,0,0,0,null,{"$f":"IF(Descriptions!D62=\"Investment income\",Descriptions!AA62,0)","v":0},{"$f":"IF([1]Descriptions!D60=\"Investment income\",[1]Descriptions!B60,0)","v":0},"0General Account"]
[{"$f":"IF(Descriptions!D63=\"Investment income\",Descriptions!B63,0)","v":0},0,0,0,0,0,0,0,0,0,0,0,0,0,0,0,0,0,0,0,0,0,null,{"$f":"IF(Descriptions!D63=\"Investment income\",Descriptions!AA63,0)","v":0},{"$f":"IF([1]Descriptions!D61=\"Investment income\",[1]Descriptions!B61,0)","v":0},"0General Account"]
[{"$f":"IF(Descriptions!D64=\"Investment income\",Descriptions!B64,0)","v":0},0,0,0,0,0,0,0,0,0,0,0,0,0,0,0,0,0,0,0,0,0,null,{"$f":"IF(Descriptions!D64=\"Investment income\",Descriptions!AA64,0)","v":0},{"$f":"IF([1]Descriptions!D62=\"Investment income\",[1]Descriptions!B62,0)","v":0},"0General Account"]
[{"$f":"IF(Descriptions!D65=\"Investment income\",Descriptions!B65,0)","v":0},0,0,0,0,0,0,0,0,0,0,0,0,0,0,0,0,0,0,0,0,0,null,{"$f":"IF(Descriptions!D65=\"Investment income\",Descriptions!AA65,0)","v":0},{"$f":"IF([1]Descriptions!D63=\"Investment income\",[1]Descriptions!B63,0)","v":0},"0General Account"]
[{"$f":"IF(Descriptions!D66=\"Investment income\",Descriptions!B66,0)","v":0},0,0,0,0,0,0,0,0,0,0,0,0,0,0,0,0,0,0,0,0,0,null,{"$f":"IF(Descriptions!D66=\"Investment income\",Descriptions!AA66,0)","v":0},{"$f":"IF([1]Descriptions!D64=\"Investment income\",[1]Descriptions!B64,0)","v":0},"0General Account"]
[{"$f":"IF(Descriptions!D67=\"Investment income\",Descriptions!B67,0)","v":0},0,0,0,0,0,0,0,0,0,0,0,0,0,0,0,0,0,0,0,0,0,null,{"$f":"IF(Descriptions!D67=\"Investment income\",Descriptions!AA67,0)","v":0},{"$f":"IF([1]Descriptions!D65=\"Investment income\",[1]Descriptions!B65,0)","v":0},"0General Account"]
[{"$f":"IF(Descriptions!D68=\"Investment income\",Descriptions!B68,0)","v":0},0,0,0,0,0,0,0,0,0,0,0,0,0,0,0,0,0,0,0,0,0,null,{"$f":"IF(Descriptions!D68=\"Investment income\",Descriptions!AA68,0)","v":0},{"$f":"IF([1]Descriptions!D66=\"Investment income\",[1]Descriptions!B66,0)","v":0},"0General Account"]
[{"$f":"IF(Descriptions!D69=\"Investment income\",Descriptions!B69,0)","v":0},0,0,0,0,0,0,0,0,0,0,0,0,0,0,0,0,0,0,0,0,0,null,{"$f":"IF(Descriptions!D69=\"Investment income\",Descriptions!AA69,0)","v":0},{"$f":"IF([1]Descriptions!D67=\"Investment income\",[1]Descriptions!B67,0)","v":0},"0General Account"]
[{"$f":"IF(Descriptions!D70=\"Investment income\",Descriptions!B70,0)","v":0},0,0,0,0,0,0,0,0,0,0,0,0,0,0,0,0,0,0,0,0,0,null,{"$f":"IF(Descriptions!D70=\"Investment income\",Descriptions!AA70,0)","v":0},{"$f":"IF([1]Descriptions!D68=\"Investment income\",[1]Descriptions!B68,0)","v":0},"0General Account"]
[{"$f":"IF(Descriptions!D71=\"Investment income\",Descriptions!B71,0)","v":0},0,0,0,0,0,0,0,0,0,0,0,0,0,0,0,0,0,0,0,0,0,null,{"$f":"IF(Descriptions!D71=\"Investment income\",Descriptions!AA71,0)","v":0},{"$f":"IF([1]Descriptions!D69=\"Investment income\",[1]Descriptions!B69,0)","v":0},"0General Account"]
[{"$f":"IF(Descriptions!D72=\"Investment income\",Descriptions!B72,0)","v":0},0,0,0,0,0,0,0,0,0,0,0,0,0,0,0,0,0,0,0,0,0,null,{"$f":"IF(Descriptions!D72=\"Investment income\",Descriptions!AA72,0)","v":0},{"$f":"IF([1]Descriptions!D70=\"Investment income\",[1]Descriptions!B70,0)","v":0},"0General Account"]
[{"$f":"IF(Descriptions!D73=\"Investment income\",Descriptions!B73,0)","v":0},0,0,0,0,0,0,0,0,0,0,0,0,0,0,0,0,0,0,0,0,0,null,{"$f":"IF(Descriptions!D73=\"Investment income\",Descriptions!AA73,0)","v":0},{"$f":"IF([1]Descriptions!D71=\"Investment income\",[1]Descriptions!B71,0)","v":0},"0General Account"]
[{"$f":"IF(Descriptions!D74=\"Investment income\",Descriptions!B74,0)","v":0},0,0,0,0,0,0,0,0,0,0,0,0,0,0,0,0,0,0,0,0,0,null,{"$f":"IF(Descriptions!D74=\"Investment income\",Descriptions!AA74,0)","v":0},{"$f":"IF([1]Descriptions!D72=\"Investment income\",[1]Descriptions!B72,0)","v":0},"0General Account"]
[{"$f":"IF(Descriptions!D75=\"Investment income\",Descriptions!B75,0)","v":0},0,0,0,0,0,0,0,0,0,0,0,0,0,0,0,0,0,0,0,0,0,null,{"$f":"IF(Descriptions!D75=\"Investment income\",Descriptions!AA75,0)","v":0},{"$f":"IF([1]Descriptions!D73=\"Investment income\",[1]Descriptions!B73,0)","v":0},"0General Account"]
[{"$f":"IF(Descriptions!D76=\"Investment income\",Descriptions!B76,0)","v":0},0,0,0,0,0,0,0,0,0,0,0,0,0,0,0,0,0,0,0,0,0,null,{"$f":"IF(Descriptions!D76=\"Investment income\",Descriptions!AA76,0)","v":0},{"$f":"IF([1]Descriptions!D74=\"Investment income\",[1]Descriptions!B74,0)","v":0},"0General Account"]
[{"$f":"IF(Descriptions!D77=\"Investment income\",Descriptions!B77,0)","v":0},0,0,0,0,0,0,0,0,0,0,0,0,0,0,0,0,0,0,0,0,0,null,{"$f":"IF(Descriptions!D77=\"Investment income\",Descriptions!AA77,0)","v":0},{"$f":"IF([1]Descriptions!D75=\"Investment income\",[1]Descriptions!B75,0)","v":0},"0General Account"]
[{"$f":"IF(Descriptions!D78=\"Investment income\",Descriptions!B78,0)","v":0},0,0,0,0,0,0,0,0,0,0,0,0,0,0,0,0,0,0,0,0,0,null,{"$f":"IF(Descriptions!D78=\"Investment income\",Descriptions!AA78,0)","v":0},{"$f":"IF([1]Descriptions!D76=\"Investment income\",[1]Descriptions!B76,0)","v":0},"0General Account"]
[{"$f":"IF(Descriptions!D79=\"Investment income\",Descriptions!B79,0)","v":0},0,0,0,0,0,0,0,0,0,0,0,0,0,0,0,0,0,0,0,0,0,null,{"$f":"IF(Descriptions!D79=\"Investment income\",Descriptions!AA79,0)","v":0},{"$f":"IF([1]Descriptions!D77=\"Investment income\",[1]Descriptions!B77,0)","v":0},"0General Account"]
[{"$f":"IF(Descriptions!D80=\"Investment income\",Descriptions!B80,0)","v":0},0,0,0,0,0,0,0,0,0,0,0,0,0,0,0,0,0,0,0,0,0,null,{"$f":"IF(Descriptions!D80=\"Investment income\",Descriptions!AA80,0)","v":0},{"$f":"IF([1]Descriptions!D78=\"Investment income\",[1]Descriptions!B78,0)","v":0},"0General Account"]
[{"$f":"IF(Descriptions!D81=\"Investment income\",Descriptions!B81,0)","v":0},0,0,0,0,0,0,0,0,0,0,0,0,0,0,0,0,0,0,0,0,0,null,{"$f":"IF(Descriptions!D81=\"Investment income\",Descriptions!AA81,0)","v":0},{"$f":"IF([1]Descriptions!D79=\"Investment income\",[1]Descriptions!B79,0)","v":0},"0General Account"]
[{"$f":"IF(Descriptions!D82=\"Investment income\",Descriptions!B82,0)","v":0},0,0,0,0,0,0,0,0,0,0,0,0,0,0,0,0,0,0,0,0,0,null,{"$f":"IF(Descriptions!D82=\"Investment income\",Descriptions!AA82,0)","v":0},{"$f":"IF([1]Descriptions!D80=\"Investment income\",[1]Descriptions!B80,0)","v":0},"0General Account"]
[{"$f":"IF(Descriptions!D83=\"Investment income\",Descriptions!B83,0)","v":0},0,0,0,0,0,0,0,0,0,0,0,0,0,0,0,0,0,0,0,0,0,null,{"$f":"IF(Descriptions!D83=\"Investment income\",Descriptions!AA83,0)","v":0},{"$f":"IF([1]Descriptions!D81=\"Investment income\",[1]Descriptions!B81,0)","v":0},"0General Account"]
[{"$f":"IF(Descriptions!D84=\"Investment income\",Descriptions!B84,0)","v":0},0,0,0,0,0,0,0,0,0,0,0,0,0,0,0,0,0,0,0,0,0,null,{"$f":"IF(Descriptions!D84=\"Investment income\",Descriptions!AA84,0)","v":0},{"$f":"IF([1]Descriptions!D82=\"Investment income\",[1]Descriptions!B82,0)","v":0},"0General Account"]
[{"$f":"IF(Descriptions!D85=\"Investment income\",Descriptions!B85,0)","v":0},0,0,0,0,0,0,0,0,0,0,0,0,0,0,0,0,0,0,0,0,0,null,{"$f":"IF(Descriptions!D85=\"Investment income\",Descriptions!AA85,0)","v":0},{"$f":"IF([1]Descriptions!D83=\"Investment income\",[1]Descriptions!B83,0)","v":0},"0General Account"]
[{"$f":"IF(Descriptions!D86=\"Investment income\",Descriptions!B86,0)","v":0},0,0,0,0,0,0,0,0,0,0,0,0,0,0,0,0,0,0,0,0,0,null,{"$f":"IF(Descriptions!D86=\"Investment income\",Descriptions!AA86,0)","v":0},{"$f":"IF([1]Descriptions!D84=\"Investment income\",[1]Descriptions!B84,0)","v":0},"0General Account"]
[{"$f":"IF(Descriptions!D87=\"Investment income\",Descriptions!B87,0)","v":0},0,0,0,0,0,0,0,0,0,0,0,0,0,0,0,0,0,0,0,0,0,null,{"$f":"IF(Descriptions!D87=\"Investment income\",Descriptions!AA87,0)","v":0},{"$f":"IF([1]Descriptions!D85=\"Investment income\",[1]Descriptions!B85,0)","v":0},"0General Account"]
[{"$f":"IF(Descriptions!D88=\"Investment income\",Descriptions!B88,0)","v":0},0,0,0,0,0,0,0,0,0,0,0,0,0,0,0,0,0,0,0,0,0,null,{"$f":"IF(Descriptions!D88=\"Investment income\",Descriptions!AA88,0)","v":0},{"$f":"IF([1]Descriptions!D86=\"Investment income\",[1]Descriptions!B86,0)","v":0},"0General Account"]
[{"$f":"IF(Descriptions!D89=\"Investment income\",Descriptions!B89,0)","v":0},0,0,0,0,0,0,0,0,0,0,0,0,0,0,0,0,0,0,0,0,0,null,{"$f":"IF(Descriptions!D89=\"Investment income\",Descriptions!AA89,0)","v":0},{"$f":"IF([1]Descriptions!D87=\"Investment income\",[1]Descriptions!B87,0)","v":0},"0General Account"]
[{"$f":"IF(Descriptions!D90=\"Investment income\",Descriptions!B90,0)","v":0},0,0,0,0,0,0,0,0,0,0,0,0,0,0,0,0,0,0,0,0,0,null,{"$f":"IF(Descriptions!D90=\"Investment income\",Descriptions!AA90,0)","v":0},{"$f":"IF([1]Descriptions!D88=\"Investment income\",[1]Descriptions!B88,0)","v":0},"0General Account"]
[{"$f":"IF(Descriptions!D91=\"Investment income\",Descriptions!B91,0)","v":0},0,0,0,0,0,0,0,0,0,0,0,0,0,0,0,0,0,0,0,0,0,null,{"$f":"IF(Descriptions!D91=\"Investment income\",Descriptions!AA91,0)","v":0},{"$f":"IF([1]Descriptions!D89=\"Investment income\",[1]Descriptions!B89,0)","v":0},"0General Account"]
[{"$f":"IF(Descriptions!D92=\"Investment income\",Descriptions!B92,0)","v":0},0,0,0,0,0,0,0,0,0,0,0,0,0,0,0,0,0,0,0,0,0,null,{"$f":"IF(Descriptions!D92=\"Investment income\",Descriptions!AA92,0)","v":0},{"$f":"IF([1]Descriptions!D90=\"Investment income\",[1]Descriptions!B90,0)","v":0},"0General Account"]
[null,{"$f":"SUM(B349:B399)","v":0},0,0,0,0,0,0,0,0,0,0,0,0,0,0,0,0,0,0,0,0,null,{"$f":"X348","v":0}]
["LEGACIES RECEIVED",null,null,null,null,null,null,null,null,null,null,null,null,null,null,null,null,null,null,null,null,null,null,{"$f":"SUM(X402)","v":0}]
["Legacies",0,0,0,0,0,0,0,0,0,0,0,0,0,0,0,0,0,0,0,0,0,null,{"$f":"Descriptions!AA24","v":0},{"$f":"[1]Descriptions!B22","v":"Legacies"},{"$f":"CONCATENATE(Y402,$Y$3)","v":"LegaciesGeneral Account"}]
[{"$f":"IF(Descriptions!D43=\"Legacies Received\",Descriptions!B43,0)","v":0},0,0,0,0,0,0,0,0,0,0,0,0,0,0,0,0,0,0,0,0,0,null,{"$f":"IF(Descriptions!D43=\"Legacies Received\",Descriptions!AA43,0)","v":0},{"$f":"IF([1]Descriptions!D41=\"Legacies Received\",[1]Descriptions!B41,0)","v":0},{"$f":"CONCATENATE(Y403,$Y$3)","v":"0General Account"}]
[{"$f":"IF(Descriptions!D44=\"Legacies Received\",Descriptions!B44,0)","v":0},0,0,0,0,0,0,0,0,0,0,0,0,0,0,0,0,0,0,0,0,0,null,{"$f":"IF(Descriptions!D44=\"Legacies Received\",Descriptions!AA44,0)","v":0},{"$f":"IF([1]Descriptions!D42=\"Legacies Received\",[1]Descriptions!B42,0)","v":0}]
[{"$f":"IF(Descriptions!D45=\"Legacies Received\",Descriptions!B45,0)","v":0},0,0,0,0,0,0,0,0,0,0,0,0,0,0,0,0,0,0,0,0,0,null,{"$f":"IF(Descriptions!D45=\"Legacies Received\",Descriptions!AA45,0)","v":0},{"$f":"IF([1]Descriptions!D43=\"Legacies Received\",[1]Descriptions!B43,0)","v":0}]
[{"$f":"IF(Descriptions!D46=\"Legacies Received\",Descriptions!B46,0)","v":0},0,0,0,0,0,0,0,0,0,0,0,0,0,0,0,0,0,0,0,0,0,null,{"$f":"IF(Descriptions!D46=\"Legacies Received\",Descriptions!AA46,0)","v":0},{"$f":"IF([1]Descriptions!D44=\"Legacies Received\",[1]Descriptions!B44,0)","v":0}]
[{"$f":"IF(Descriptions!D47=\"Legacies Received\",Descriptions!B47,0)","v":0},0,0,0,0,0,0,0,0,0,0,0,0,0,0,0,0,0,0,0,0,0,null,{"$f":"IF(Descriptions!D47=\"Legacies Received\",Descriptions!AA47,0)","v":0},{"$f":"IF([1]Descriptions!D45=\"Legacies Received\",[1]Descriptions!B45,0)","v":0}]
[{"$f":"IF(Descriptions!D48=\"Legacies Received\",Descriptions!B48,0)","v":0},0,0,0,0,0,0,0,0,0,0,0,0,0,0,0,0,0,0,0,0,0,null,{"$f":"IF(Descriptions!D48=\"Legacies Received\",Descriptions!AA48,0)","v":0},{"$f":"IF([1]Descriptions!D46=\"Legacies Received\",[1]Descriptions!B46,0)","v":0}]
[{"$f":"IF(Descriptions!D49=\"Legacies Received\",Descriptions!B49,0)","v":0},0,0,0,0,0,0,0,0,0,0,0,0,0,0,0,0,0,0,0,0,0,null,{"$f":"IF(Descriptions!D49=\"Legacies Received\",Descriptions!AA49,0)","v":0},{"$f":"IF([1]Descriptions!D47=\"Legacies Received\",[1]Descriptions!B47,0)","v":0}]
[{"$f":"IF(Descriptions!D50=\"Legacies Received\",Descriptions!B50,0)","v":0},0,0,0,0,0,0,0,0,0,0,0,0,0,0,0,0,0,0,0,0,0,null,{"$f":"IF(Descriptions!D50=\"Legacies Received\",Descriptions!AA50,0)","v":0},{"$f":"IF([1]Descriptions!D48=\"Legacies Received\",[1]Descriptions!B48,0)","v":0}]
[{"$f":"IF(Descriptions!D51=\"Legacies Received\",Descriptions!B51,0)","v":0},0,0,0,0,0,0,0,0,0,0,0,0,0,0,0,0,0,0,0,0,0,null,{"$f":"IF(Descriptions!D51=\"Legacies Received\",Descriptions!AA51,0)","v":0},{"$f":"IF([1]Descriptions!D49=\"Legacies Received\",[1]Descriptions!B49,0)","v":0}]
[{"$f":"IF(Descriptions!D52=\"Legacies Received\",Descriptions!B52,0)","v":0},0,0,0,0,0,0,0,0,0,0,0,0,0,0,0,0,0,0,0,0,0,null,{"$f":"IF(Descriptions!D52=\"Legacies Received\",Descriptions!AA52,0)","v":0},{"$f":"IF([1]Descriptions!D50=\"Legacies Received\",[1]Descriptions!B50,0)","v":0}]
[{"$f":"IF(Descriptions!D53=\"Legacies Received\",Descriptions!B53,0)","v":0},0,0,0,0,0,0,0,0,0,0,0,0,0,0,0,0,0,0,0,0,0,null,{"$f":"IF(Descriptions!D53=\"Legacies Received\",Descriptions!AA53,0)","v":0},{"$f":"IF([1]Descriptions!D51=\"Legacies Received\",[1]Descriptions!B51,0)","v":0}]
[{"$f":"IF(Descriptions!D54=\"Legacies Received\",Descriptions!B54,0)","v":0},0,0,0,0,0,0,0,0,0,0,0,0,0,0,0,0,0,0,0,0,0,null,{"$f":"IF(Descriptions!D54=\"Legacies Received\",Descriptions!AA54,0)","v":0},{"$f":"IF([1]Descriptions!D52=\"Legacies Received\",[1]Descriptions!B52,0)","v":0}]
[{"$f":"IF(Descriptions!D55=\"Legacies Received\",Descriptions!B55,0)","v":0},0,0,0,0,0,0,0,0,0,0,0,0,0,0,0,0,0,0,0,0,0,null,{"$f":"IF(Descriptions!D55=\"Legacies Received\",Descriptions!AA55,0)","v":0},{"$f":"IF([1]Descriptions!D53=\"Legacies Received\",[1]Descriptions!B53,0)","v":0}]
[{"$f":"IF(Descriptions!D56=\"Legacies Received\",Descriptions!B56,0)","v":0},0,0,0,0,0,0,0,0,0,0,0,0,0,0,0,0,0,0,0,0,0,null,{"$f":"IF(Descriptions!D56=\"Legacies Received\",Descriptions!AA56,0)","v":0},{"$f":"IF([1]Descriptions!D54=\"Legacies Received\",[1]Descriptions!B54,0)","v":0}]
[{"$f":"IF(Descriptions!D57=\"Legacies Received\",Descriptions!B57,0)","v":0},0,0,0,0,0,0,0,0,0,0,0,0,0,0,0,0,0,0,0,0,0,null,{"$f":"IF(Descriptions!D57=\"Legacies Received\",Descriptions!AA57,0)","v":0},{"$f":"IF([1]Descriptions!D55=\"Legacies Received\",[1]Descriptions!B55,0)","v":0}]
[{"$f":"IF(Descriptions!D58=\"Legacies Received\",Descriptions!B58,0)","v":0},0,0,0,0,0,0,0,0,0,0,0,0,0,0,0,0,0,0,0,0,0,null,{"$f":"IF(Descriptions!D58=\"Legacies Received\",Descriptions!AA58,0)","v":0},{"$f":"IF([1]Descriptions!D56=\"Legacies Received\",[1]Descriptions!B56,0)","v":0}]
[{"$f":"IF(Descriptions!D59=\"Legacies Received\",Descriptions!B59,0)","v":0},0,0,0,0,0,0,0,0,0,0,0,0,0,0,0,0,0,0,0,0,0,null,{"$f":"IF(Descriptions!D59=\"Legacies Received\",Descriptions!AA59,0)","v":0},{"$f":"IF([1]Descriptions!D57=\"Legacies Received\",[1]Descriptions!B57,0)","v":0}]
[{"$f":"IF(Descriptions!D60=\"Legacies Received\",Descriptions!B60,0)","v":0},0,0,0,0,0,0,0,0,0,0,0,0,0,0,0,0,0,0,0,0,0,null,{"$f":"IF(Descriptions!D60=\"Legacies Received\",Descriptions!AA60,0)","v":0},{"$f":"IF([1]Descriptions!D58=\"Legacies Received\",[1]Descriptions!B58,0)","v":0}]
[{"$f":"IF(Descriptions!D61=\"Legacies Received\",Descriptions!B61,0)","v":0},0,0,0,0,0,0,0,0,0,0,0,0,0,0,0,0,0,0,0,0,0,null,{"$f":"IF(Descriptions!D61=\"Legacies Received\",Descriptions!AA61,0)","v":0},{"$f":"IF([1]Descriptions!D59=\"Legacies Received\",[1]Descriptions!B59,0)","v":0}]
[{"$f":"IF(Descriptions!D62=\"Legacies Received\",Descriptions!B62,0)","v":0},0,0,0,0,0,0,0,0,0,0,0,0,0,0,0,0,0,0,0,0,0,null,{"$f":"IF(Descriptions!D62=\"Legacies Received\",Descriptions!AA62,0)","v":0},{"$f":"IF([1]Descriptions!D60=\"Legacies Received\",[1]Descriptions!B60,0)","v":0}]
[{"$f":"IF(Descriptions!D63=\"Legacies Received\",Descriptions!B63,0)","v":0},0,0,0,0,0,0,0,0,0,0,0,0,0,0,0,0,0,0,0,0,0,null,{"$f":"IF(Descriptions!D63=\"Legacies Received\",Descriptions!AA63,0)","v":0},{"$f":"IF([1]Descriptions!D61=\"Legacies Received\",[1]Descriptions!B61,0)","v":0}]
[{"$f":"IF(Descriptions!D64=\"Legacies Received\",Descriptions!B64,0)","v":0},0,0,0,0,0,0,0,0,0,0,0,0,0,0,0,0,0,0,0,0,0,null,{"$f":"IF(Descriptions!D64=\"Legacies Received\",Descriptions!AA64,0)","v":0},{"$f":"IF([1]Descriptions!D62=\"Legacies Received\",[1]Descriptions!B62,0)","v":0}]
[{"$f":"IF(Descriptions!D65=\"Legacies Received\",Descriptions!B65,0)","v":0},0,0,0,0,0,0,0,0,0,0,0,0,0,0,0,0,0,0,0,0,0,null,{"$f":"IF(Descriptions!D65=\"Legacies Received\",Descriptions!AA65,0)","v":0},{"$f":"IF([1]Descriptions!D63=\"Legacies Received\",[1]Descriptions!B63,0)","v":0}]
[{"$f":"IF(Descriptions!D66=\"Legacies Received\",Descriptions!B66,0)","v":0},0,0,0,0,0,0,0,0,0,0,0,0,0,0,0,0,0,0,0,0,0,null,{"$f":"IF(Descriptions!D66=\"Legacies Received\",Descriptions!AA66,0)","v":0},{"$f":"IF([1]Descriptions!D64=\"Legacies Received\",[1]Descriptions!B64,0)","v":0}]
[{"$f":"IF(Descriptions!D67=\"Legacies Received\",Descriptions!B67,0)","v":0},0,0,0,0,0,0,0,0,0,0,0,0,0,0,0,0,0,0,0,0,0,null,{"$f":"IF(Descriptions!D67=\"Legacies Received\",Descriptions!AA67,0)","v":0},{"$f":"IF([1]Descriptions!D65=\"Legacies Received\",[1]Descriptions!B65,0)","v":0}]
[{"$f":"IF(Descriptions!D68=\"Legacies Received\",Descriptions!B68,0)","v":0},0,0,0,0,0,0,0,0,0,0,0,0,0,0,0,0,0,0,0,0,0,null,{"$f":"IF(Descriptions!D68=\"Legacies Received\",Descriptions!AA68,0)","v":0},{"$f":"IF([1]Descriptions!D66=\"Legacies Received\",[1]Descriptions!B66,0)","v":0}]
[{"$f":"IF(Descriptions!D69=\"Legacies Received\",Descriptions!B69,0)","v":0},0,0,0,0,0,0,0,0,0,0,0,0,0,0,0,0,0,0,0,0,0,null,{"$f":"IF(Descriptions!D69=\"Legacies Received\",Descriptions!AA69,0)","v":0},{"$f":"IF([1]Descriptions!D67=\"Legacies Received\",[1]Descriptions!B67,0)","v":0}]
[{"$f":"IF(Descriptions!D70=\"Legacies Received\",Descriptions!B70,0)","v":0},0,0,0,0,0,0,0,0,0,0,0,0,0,0,0,0,0,0,0,0,0,null,{"$f":"IF(Descriptions!D70=\"Legacies Received\",Descriptions!AA70,0)","v":0},{"$f":"IF([1]Descriptions!D68=\"Legacies Received\",[1]Descriptions!B68,0)","v":0}]
[{"$f":"IF(Descriptions!D71=\"Legacies Received\",Descriptions!B71,0)","v":0},0,0,0,0,0,0,0,0,0,0,0,0,0,0,0,0,0,0,0,0,0,null,{"$f":"IF(Descriptions!D71=\"Legacies Received\",Descriptions!AA71,0)","v":0},{"$f":"IF([1]Descriptions!D69=\"Legacies Received\",[1]Descriptions!B69,0)","v":0}]
[{"$f":"IF(Descriptions!D72=\"Legacies Received\",Descriptions!B72,0)","v":0},0,0,0,0,0,0,0,0,0,0,0,0,0,0,0,0,0,0,0,0,0,null,{"$f":"IF(Descriptions!D72=\"Legacies Received\",Descriptions!AA72,0)","v":0},{"$f":"IF([1]Descriptions!D70=\"Legacies Received\",[1]Descriptions!B70,0)","v":0}]
[{"$f":"IF(Descriptions!D73=\"Legacies Received\",Descriptions!B73,0)","v":0},0,0,0,0,0,0,0,0,0,0,0,0,0,0,0,0,0,0,0,0,0,null,{"$f":"IF(Descriptions!D73=\"Legacies Received\",Descriptions!AA73,0)","v":0},{"$f":"IF([1]Descriptions!D71=\"Legacies Received\",[1]Descriptions!B71,0)","v":0}]
[{"$f":"IF(Descriptions!D74=\"Legacies Received\",Descriptions!B74,0)","v":0},0,0,0,0,0,0,0,0,0,0,0,0,0,0,0,0,0,0,0,0,0,null,{"$f":"IF(Descriptions!D74=\"Legacies Received\",Descriptions!AA74,0)","v":0},{"$f":"IF([1]Descriptions!D72=\"Legacies Received\",[1]Descriptions!B72,0)","v":0}]
[{"$f":"IF(Descriptions!D75=\"Legacies Received\",Descriptions!B75,0)","v":0},0,0,0,0,0,0,0,0,0,0,0,0,0,0,0,0,0,0,0,0,0,null,{"$f":"IF(Descriptions!D75=\"Legacies Received\",Descriptions!AA75,0)","v":0},{"$f":"IF([1]Descriptions!D73=\"Legacies Received\",[1]Descriptions!B73,0)","v":0}]
[{"$f":"IF(Descriptions!D76=\"Legacies Received\",Descriptions!B76,0)","v":0},0,0,0,0,0,0,0,0,0,0,0,0,0,0,0,0,0,0,0,0,0,null,{"$f":"IF(Descriptions!D76=\"Legacies Received\",Descriptions!AA76,0)","v":0},{"$f":"IF([1]Descriptions!D74=\"Legacies Received\",[1]Descriptions!B74,0)","v":0}]
[{"$f":"IF(Descriptions!D77=\"Legacies Received\",Descriptions!B77,0)","v":0},0,0,0,0,0,0,0,0,0,0,0,0,0,0,0,0,0,0,0,0,0,null,{"$f":"IF(Descriptions!D77=\"Legacies Received\",Descriptions!AA77,0)","v":0},{"$f":"IF([1]Descriptions!D75=\"Legacies Received\",[1]Descriptions!B75,0)","v":0}]
[{"$f":"IF(Descriptions!D78=\"Legacies Received\",Descriptions!B78,0)","v":0},0,0,0,0,0,0,0,0,0,0,0,0,0,0,0,0,0,0,0,0,0,null,{"$f":"IF(Descriptions!D78=\"Legacies Received\",Descriptions!AA78,0)","v":0},{"$f":"IF([1]Descriptions!D76=\"Legacies Received\",[1]Descriptions!B76,0)","v":0}]
[{"$f":"IF(Descriptions!D79=\"Legacies Received\",Descriptions!B79,0)","v":0},0,0,0,0,0,0,0,0,0,0,0,0,0,0,0,0,0,0,0,0,0,null,{"$f":"IF(Descriptions!D79=\"Legacies Received\",Descriptions!AA79,0)","v":0},{"$f":"IF([1]Descriptions!D77=\"Legacies Received\",[1]Descriptions!B77,0)","v":0}]
[{"$f":"IF(Descriptions!D80=\"Legacies Received\",Descriptions!B80,0)","v":0},0,0,0,0,0,0,0,0,0,0,0,0,0,0,0,0,0,0,0,0,0,null,{"$f":"IF(Descriptions!D80=\"Legacies Received\",Descriptions!AA80,0)","v":0},{"$f":"IF([1]Descriptions!D78=\"Legacies Received\",[1]Descriptions!B78,0)","v":0}]
[{"$f":"IF(Descriptions!D81=\"Legacies Received\",Descriptions!B81,0)","v":0},0,0,0,0,0,0,0,0,0,0,0,0,0,0,0,0,0,0,0,0,0,null,{"$f":"IF(Descriptions!D81=\"Legacies Received\",Descriptions!AA81,0)","v":0},{"$f":"IF([1]Descriptions!D79=\"Legacies Received\",[1]Descriptions!B79,0)","v":0}]
[{"$f":"IF(Descriptions!D82=\"Legacies Received\",Descriptions!B82,0)","v":0},0,0,0,0,0,0,0,0,0,0,0,0,0,0,0,0,0,0,0,0,0,null,{"$f":"IF(Descriptions!D82=\"Legacies Received\",Descriptions!AA82,0)","v":0},{"$f":"IF([1]Descriptions!D80=\"Legacies Received\",[1]Descriptions!B80,0)","v":0}]
[{"$f":"IF(Descriptions!D83=\"Legacies Received\",Descriptions!B83,0)","v":0},0,0,0,0,0,0,0,0,0,0,0,0,0,0,0,0,0,0,0,0,0,null,{"$f":"IF(Descriptions!D83=\"Legacies Received\",Descriptions!AA83,0)","v":0},{"$f":"IF([1]Descriptions!D81=\"Legacies Received\",[1]Descriptions!B81,0)","v":0}]
[{"$f":"IF(Descriptions!D84=\"Legacies Received\",Descriptions!B84,0)","v":0},0,0,0,0,0,0,0,0,0,0,0,0,0,0,0,0,0,0,0,0,0,null,{"$f":"IF(Descriptions!D84=\"Legacies Received\",Descriptions!AA84,0)","v":0},{"$f":"IF([1]Descriptions!D82=\"Legacies Received\",[1]Descriptions!B82,0)","v":0}]
[{"$f":"IF(Descriptions!D85=\"Legacies Received\",Descriptions!B85,0)","v":0},0,0,0,0,0,0,0,0,0,0,0,0,0,0,0,0,0,0,0,0,0,null,{"$f":"IF(Descriptions!D85=\"Legacies Received\",Descriptions!AA85,0)","v":0},{"$f":"IF([1]Descriptions!D83=\"Legacies Received\",[1]Descriptions!B83,0)","v":0}]
[{"$f":"IF(Descriptions!D86=\"Legacies Received\",Descriptions!B86,0)","v":0},0,0,0,0,0,0,0,0,0,0,0,0,0,0,0,0,0,0,0,0,0,null,{"$f":"IF(Descriptions!D86=\"Legacies Received\",Descriptions!AA86,0)","v":0},{"$f":"IF([1]Descriptions!D84=\"Legacies Received\",[1]Descriptions!B84,0)","v":0}]
[{"$f":"IF(Descriptions!D87=\"Legacies Received\",Descriptions!B87,0)","v":0},0,0,0,0,0,0,0,0,0,0,0,0,0,0,0,0,0,0,0,0,0,null,{"$f":"IF(Descriptions!D87=\"Legacies Received\",Descriptions!AA87,0)","v":0},{"$f":"IF([1]Descriptions!D85=\"Legacies Received\",[1]Descriptions!B85,0)","v":0}]
[{"$f":"IF(Descriptions!D88=\"Legacies Received\",Descriptions!B88,0)","v":0},0,0,0,0,0,0,0,0,0,0,0,0,0,0,0,0,0,0,0,0,0,null,{"$f":"IF(Descriptions!D88=\"Legacies Received\",Descriptions!AA88,0)","v":0},{"$f":"IF([1]Descriptions!D86=\"Legacies Received\",[1]Descriptions!B86,0)","v":0}]
[{"$f":"IF(Descriptions!D89=\"Legacies Received\",Descriptions!B89,0)","v":0},0,0,0,0,0,0,0,0,0,0,0,0,0,0,0,0,0,0,0,0,0,null,{"$f":"IF(Descriptions!D89=\"Legacies Received\",Descriptions!AA89,0)","v":0},{"$f":"IF([1]Descriptions!D87=\"Legacies Received\",[1]Descriptions!B87,0)","v":0}]
[{"$f":"IF(Descriptions!D90=\"Legacies Received\",Descriptions!B90,0)","v":0},0,0,0,0,0,0,0,0,0,0,0,0,0,0,0,0,0,0,0,0,0,null,{"$f":"IF(Descriptions!D90=\"Legacies Received\",Descriptions!AA90,0)","v":0},{"$f":"IF([1]Descriptions!D88=\"Legacies Received\",[1]Descriptions!B88,0)","v":0}]
[{"$f":"IF(Descriptions!D91=\"Legacies Received\",Descriptions!B91,0)","v":0},0,0,0,0,0,0,0,0,0,0,0,0,0,0,0,0,0,0,0,0,0,null,{"$f":"IF(Descriptions!D91=\"Legacies Received\",Descriptions!AA91,0)","v":0},{"$f":"IF([1]Descriptions!D89=\"Legacies Received\",[1]Descriptions!B89,0)","v":0}]
[{"$f":"IF(Descriptions!D92=\"Legacies Received\",Descriptions!B92,0)","v":0},0,0,0,0,0,0,0,0,0,0,0,0,0,0,0,0,0,0,0,0,0,null,{"$f":"IF(Descriptions!D92=\"Legacies Received\",Descriptions!AA92,0)","v":0},{"$f":"IF([1]Descriptions!D90=\"Legacies Received\",[1]Descriptions!B90,0)","v":0}]
[null,{"$f":"SUM(B402:B452)","v":0},0,0,0,0,0,0,0,0,0,0,0,0,0,0,0,0,0,0,0,0,null,{"$f":"X401","v":0}]
["GRANT INCOME",null,null,null,null,null,null,null,null,null,null,null,null,null,null,null,null,null,null,null,null,null,null,{"$f":"SUM(X455:X506)","v":0}]
["Recurring Grants",0,0,0,0,0,0,0,0,0,0,0,0,0,0,0,0,0,0,0,0,0,null,{"$f":"Descriptions!AA21","v":0},{"$f":"[1]Descriptions!B19","v":"Grants - Recurring"},{"$f":"CONCATENATE(Y455,$Y$3)","v":"Grants - RecurringGeneral Account"}]
["Non-Recurring Grants",0,0,0,0,0,0,0,0,0,0,0,0,0,0,0,0,0,0,0,0,0,null,{"$f":"Descriptions!AA20","v":0},{"$f":"[1]Descriptions!B18","v":"Grants - One Off"},{"$f":"CONCATENATE(Y456,$Y$3)","v":"Grants - One OffGeneral Account"}]
[{"$f":"IF(Descriptions!D43=\"Grant income\",Descriptions!B43,0)","v":0},0,0,0,0,0,0,0,0,0,0,0,0,0,0,0,0,0,0,0,0,0,null,{"$f":"IF(Descriptions!D43=\"Grant income\",Descriptions!AA43,0)","v":0},{"$f":"IF([1]Descriptions!D41=\"Grant income\",[1]Descriptions!B41,0)","v":0},{"$f":"CONCATENATE(Y457,$Y$3)","v":"0General Account"}]
[{"$f":"IF(Descriptions!D44=\"Grant income\",Descriptions!B44,0)","v":0},0,0,0,0,0,0,0,0,0,0,0,0,0,0,0,0,0,0,0,0,0,null,{"$f":"IF(Descriptions!D44=\"Grant income\",Descriptions!AA44,0)","v":0},{"$f":"IF([1]Descriptions!D42=\"Grant income\",[1]Descriptions!B42,0)","v":0},{"$f":"CONCATENATE(Y458,$Y$3)","v":"0General Account"}]
[{"$f":"IF(Descriptions!D45=\"Grant income\",Descriptions!B45,0)","v":0},0,0,0,0,0,0,0,0,0,0,0,0,0,0,0,0,0,0,0,0,0,null,{"$f":"IF(Descriptions!D45=\"Grant income\",Descriptions!AA45,0)","v":0},{"$f":"IF([1]Descriptions!D43=\"Grant income\",[1]Descriptions!B43,0)","v":0},"0General Account"]
[{"$f":"IF(Descriptions!D46=\"Grant income\",Descriptions!B46,0)","v":0},0,0,0,0,0,0,0,0,0,0,0,0,0,0,0,0,0,0,0,0,0,null,{"$f":"IF(Descriptions!D46=\"Grant income\",Descriptions!AA46,0)","v":0},{"$f":"IF([1]Descriptions!D44=\"Grant income\",[1]Descriptions!B44,0)","v":0},"0General Account"]
[{"$f":"IF(Descriptions!D47=\"Grant income\",Descriptions!B47,0)","v":0},0,0,0,0,0,0,0,0,0,0,0,0,0,0,0,0,0,0,0,0,0,null,{"$f":"IF(Descriptions!D47=\"Grant income\",Descriptions!AA47,0)","v":0},{"$f":"IF([1]Descriptions!D45=\"Grant income\",[1]Descriptions!B45,0)","v":0},"0General Account"]
[{"$f":"IF(Descriptions!D48=\"Grant income\",Descriptions!B48,0)","v":0},0,0,0,0,0,0,0,0,0,0,0,0,0,0,0,0,0,0,0,0,0,null,{"$f":"IF(Descriptions!D48=\"Grant income\",Descriptions!AA48,0)","v":0},{"$f":"IF([1]Descriptions!D46=\"Grant income\",[1]Descriptions!B46,0)","v":0},"0General Account"]
[{"$f":"IF(Descriptions!D49=\"Grant income\",Descriptions!B49,0)","v":0},0,0,0,0,0,0,0,0,0,0,0,0,0,0,0,0,0,0,0,0,0,null,{"$f":"IF(Descriptions!D49=\"Grant income\",Descriptions!AA49,0)","v":0},{"$f":"IF([1]Descriptions!D47=\"Grant income\",[1]Descriptions!B47,0)","v":0},"0General Account"]
[{"$f":"IF(Descriptions!D50=\"Grant income\",Descriptions!B50,0)","v":0},0,0,0,0,0,0,0,0,0,0,0,0,0,0,0,0,0,0,0,0,0,null,{"$f":"IF(Descriptions!D50=\"Grant income\",Descriptions!AA50,0)","v":0},{"$f":"IF([1]Descriptions!D48=\"Grant income\",[1]Descriptions!B48,0)","v":0},"0General Account"]
[{"$f":"IF(Descriptions!D51=\"Grant income\",Descriptions!B51,0)","v":0},0,0,0,0,0,0,0,0,0,0,0,0,0,0,0,0,0,0,0,0,0,null,{"$f":"IF(Descriptions!D51=\"Grant income\",Descriptions!AA51,0)","v":0},{"$f":"IF([1]Descriptions!D49=\"Grant income\",[1]Descriptions!B49,0)","v":0},"0General Account"]
[{"$f":"IF(Descriptions!D52=\"Grant income\",Descriptions!B52,0)","v":0},0,0,0,0,0,0,0,0,0,0,0,0,0,0,0,0,0,0,0,0,0,null,{"$f":"IF(Descriptions!D52=\"Grant income\",Descriptions!AA52,0)","v":0},{"$f":"IF([1]Descriptions!D50=\"Grant income\",[1]Descriptions!B50,0)","v":0},"0General Account"]
[{"$f":"IF(Descriptions!D53=\"Grant income\",Descriptions!B53,0)","v":0},0,0,0,0,0,0,0,0,0,0,0,0,0,0,0,0,0,0,0,0,0,null,{"$f":"IF(Descriptions!D53=\"Grant income\",Descriptions!AA53,0)","v":0},{"$f":"IF([1]Descriptions!D51=\"Grant income\",[1]Descriptions!B51,0)","v":0},"0General Account"]
[{"$f":"IF(Descriptions!D54=\"Grant income\",Descriptions!B54,0)","v":0},0,0,0,0,0,0,0,0,0,0,0,0,0,0,0,0,0,0,0,0,0,null,{"$f":"IF(Descriptions!D54=\"Grant income\",Descriptions!AA54,0)","v":0},{"$f":"IF([1]Descriptions!D52=\"Grant income\",[1]Descriptions!B52,0)","v":0},"0General Account"]
[{"$f":"IF(Descriptions!D55=\"Grant income\",Descriptions!B55,0)","v":0},0,0,0,0,0,0,0,0,0,0,0,0,0,0,0,0,0,0,0,0,0,null,{"$f":"IF(Descriptions!D55=\"Grant income\",Descriptions!AA55,0)","v":0},{"$f":"IF([1]Descriptions!D53=\"Grant income\",[1]Descriptions!B53,0)","v":0},"0General Account"]
[{"$f":"IF(Descriptions!D56=\"Grant income\",Descriptions!B56,0)","v":0},0,0,0,0,0,0,0,0,0,0,0,0,0,0,0,0,0,0,0,0,0,null,{"$f":"IF(Descriptions!D56=\"Grant income\",Descriptions!AA56,0)","v":0},{"$f":"IF([1]Descriptions!D54=\"Grant income\",[1]Descriptions!B54,0)","v":0},"0General Account"]
[{"$f":"IF(Descriptions!D57=\"Grant income\",Descriptions!B57,0)","v":0},0,0,0,0,0,0,0,0,0,0,0,0,0,0,0,0,0,0,0,0,0,null,{"$f":"IF(Descriptions!D57=\"Grant income\",Descriptions!AA57,0)","v":0},{"$f":"IF([1]Descriptions!D55=\"Grant income\",[1]Descriptions!B55,0)","v":0},"0General Account"]
[{"$f":"IF(Descriptions!D58=\"Grant income\",Descriptions!B58,0)","v":0},0,0,0,0,0,0,0,0,0,0,0,0,0,0,0,0,0,0,0,0,0,null,{"$f":"IF(Descriptions!D58=\"Grant income\",Descriptions!AA58,0)","v":0},{"$f":"IF([1]Descriptions!D56=\"Grant income\",[1]Descriptions!B56,0)","v":0},"0General Account"]
[{"$f":"IF(Descriptions!D59=\"Grant income\",Descriptions!B59,0)","v":0},0,0,0,0,0,0,0,0,0,0,0,0,0,0,0,0,0,0,0,0,0,null,{"$f":"IF(Descriptions!D59=\"Grant income\",Descriptions!AA59,0)","v":0},{"$f":"IF([1]Descriptions!D57=\"Grant income\",[1]Descriptions!B57,0)","v":0},"0General Account"]
[{"$f":"IF(Descriptions!D60=\"Grant income\",Descriptions!B60,0)","v":0},0,0,0,0,0,0,0,0,0,0,0,0,0,0,0,0,0,0,0,0,0,null,{"$f":"IF(Descriptions!D60=\"Grant income\",Descriptions!AA60,0)","v":0},{"$f":"IF([1]Descriptions!D58=\"Grant income\",[1]Descriptions!B58,0)","v":0},"0General Account"]
[{"$f":"IF(Descriptions!D61=\"Grant income\",Descriptions!B61,0)","v":0},0,0,0,0,0,0,0,0,0,0,0,0,0,0,0,0,0,0,0,0,0,null,{"$f":"IF(Descriptions!D61=\"Grant income\",Descriptions!AA61,0)","v":0},{"$f":"IF([1]Descriptions!D59=\"Grant income\",[1]Descriptions!B59,0)","v":0},"0General Account"]
[{"$f":"IF(Descriptions!D62=\"Grant income\",Descriptions!B62,0)","v":0},0,0,0,0,0,0,0,0,0,0,0,0,0,0,0,0,0,0,0,0,0,null,{"$f":"IF(Descriptions!D62=\"Grant income\",Descriptions!AA62,0)","v":0},{"$f":"IF([1]Descriptions!D60=\"Grant income\",[1]Descriptions!B60,0)","v":0},"0General Account"]
[{"$f":"IF(Descriptions!D63=\"Grant income\",Descriptions!B63,0)","v":0},0,0,0,0,0,0,0,0,0,0,0,0,0,0,0,0,0,0,0,0,0,null,{"$f":"IF(Descriptions!D63=\"Grant income\",Descriptions!AA63,0)","v":0},{"$f":"IF([1]Descriptions!D61=\"Grant income\",[1]Descriptions!B61,0)","v":0},"0General Account"]
[{"$f":"IF(Descriptions!D64=\"Grant income\",Descriptions!B64,0)","v":0},0,0,0,0,0,0,0,0,0,0,0,0,0,0,0,0,0,0,0,0,0,null,{"$f":"IF(Descriptions!D64=\"Grant income\",Descriptions!AA64,0)","v":0},{"$f":"IF([1]Descriptions!D62=\"Grant income\",[1]Descriptions!B62,0)","v":0},"0General Account"]
[{"$f":"IF(Descriptions!D65=\"Grant income\",Descriptions!B65,0)","v":0},0,0,0,0,0,0,0,0,0,0,0,0,0,0,0,0,0,0,0,0,0,null,{"$f":"IF(Descriptions!D65=\"Grant income\",Descriptions!AA65,0)","v":0},{"$f":"IF([1]Descriptions!D63=\"Grant income\",[1]Descriptions!B63,0)","v":0},"0General Account"]
[{"$f":"IF(Descriptions!D66=\"Grant income\",Descriptions!B66,0)","v":0},0,0,0,0,0,0,0,0,0,0,0,0,0,0,0,0,0,0,0,0,0,null,{"$f":"IF(Descriptions!D66=\"Grant income\",Descriptions!AA66,0)","v":0},{"$f":"IF([1]Descriptions!D64=\"Grant income\",[1]Descriptions!B64,0)","v":0},"0General Account"]
[{"$f":"IF(Descriptions!D67=\"Grant income\",Descriptions!B67,0)","v":0},0,0,0,0,0,0,0,0,0,0,0,0,0,0,0,0,0,0,0,0,0,null,{"$f":"IF(Descriptions!D67=\"Grant income\",Descriptions!AA67,0)","v":0},{"$f":"IF([1]Descriptions!D65=\"Grant income\",[1]Descriptions!B65,0)","v":0},"0General Account"]
[{"$f":"IF(Descriptions!D68=\"Grant income\",Descriptions!B68,0)","v":0},0,0,0,0,0,0,0,0,0,0,0,0,0,0,0,0,0,0,0,0,0,null,{"$f":"IF(Descriptions!D68=\"Grant income\",Descriptions!AA68,0)","v":0},{"$f":"IF([1]Descriptions!D66=\"Grant income\",[1]Descriptions!B66,0)","v":0},"0General Account"]
[{"$f":"IF(Descriptions!D69=\"Grant income\",Descriptions!B69,0)","v":0},0,0,0,0,0,0,0,0,0,0,0,0,0,0,0,0,0,0,0,0,0,null,{"$f":"IF(Descriptions!D69=\"Grant income\",Descriptions!AA69,0)","v":0},{"$f":"IF([1]Descriptions!D67=\"Grant income\",[1]Descriptions!B67,0)","v":0},"0General Account"]
[{"$f":"IF(Descriptions!D70=\"Grant income\",Descriptions!B70,0)","v":0},0,0,0,0,0,0,0,0,0,0,0,0,0,0,0,0,0,0,0,0,0,null,{"$f":"IF(Descriptions!D70=\"Grant income\",Descriptions!AA70,0)","v":0},{"$f":"IF([1]Descriptions!D68=\"Grant income\",[1]Descriptions!B68,0)","v":0},"0General Account"]
[{"$f":"IF(Descriptions!D71=\"Grant income\",Descriptions!B71,0)","v":0},0,0,0,0,0,0,0,0,0,0,0,0,0,0,0,0,0,0,0,0,0,null,{"$f":"IF(Descriptions!D71=\"Grant income\",Descriptions!AA71,0)","v":0},{"$f":"IF([1]Descriptions!D69=\"Grant income\",[1]Descriptions!B69,0)","v":0},"0General Account"]
[{"$f":"IF(Descriptions!D72=\"Grant income\",Descriptions!B72,0)","v":0},0,0,0,0,0,0,0,0,0,0,0,0,0,0,0,0,0,0,0,0,0,null,{"$f":"IF(Descriptions!D72=\"Grant income\",Descriptions!AA72,0)","v":0},{"$f":"IF([1]Descriptions!D70=\"Grant income\",[1]Descriptions!B70,0)","v":0},"0General Account"]
[{"$f":"IF(Descriptions!D73=\"Grant income\",Descriptions!B73,0)","v":0},0,0,0,0,0,0,0,0,0,0,0,0,0,0,0,0,0,0,0,0,0,null,{"$f":"IF(Descriptions!D73=\"Grant income\",Descriptions!AA73,0)","v":0},{"$f":"IF([1]Descriptions!D71=\"Grant income\",[1]Descriptions!B71,0)","v":0},"0General Account"]
[{"$f":"IF(Descriptions!D74=\"Grant income\",Descriptions!B74,0)","v":0},0,0,0,0,0,0,0,0,0,0,0,0,0,0,0,0,0,0,0,0,0,null,{"$f":"IF(Descriptions!D74=\"Grant income\",Descriptions!AA74,0)","v":0},{"$f":"IF([1]Descriptions!D72=\"Grant income\",[1]Descriptions!B72,0)","v":0},"0General Account"]
[{"$f":"IF(Descriptions!D75=\"Grant income\",Descriptions!B75,0)","v":0},0,0,0,0,0,0,0,0,0,0,0,0,0,0,0,0,0,0,0,0,0,null,{"$f":"IF(Descriptions!D75=\"Grant income\",Descriptions!AA75,0)","v":0},{"$f":"IF([1]Descriptions!D73=\"Grant income\",[1]Descriptions!B73,0)","v":0},"0General Account"]
[{"$f":"IF(Descriptions!D76=\"Grant income\",Descriptions!B76,0)","v":0},0,0,0,0,0,0,0,0,0,0,0,0,0,0,0,0,0,0,0,0,0,null,{"$f":"IF(Descriptions!D76=\"Grant income\",Descriptions!AA76,0)","v":0},{"$f":"IF([1]Descriptions!D74=\"Grant income\",[1]Descriptions!B74,0)","v":0},"0General Account"]
[{"$f":"IF(Descriptions!D77=\"Grant income\",Descriptions!B77,0)","v":0},0,0,0,0,0,0,0,0,0,0,0,0,0,0,0,0,0,0,0,0,0,null,{"$f":"IF(Descriptions!D77=\"Grant income\",Descriptions!AA77,0)","v":0},{"$f":"IF([1]Descriptions!D75=\"Grant income\",[1]Descriptions!B75,0)","v":0},"0General Account"]
[{"$f":"IF(Descriptions!D78=\"Grant income\",Descriptions!B78,0)","v":0},0,0,0,0,0,0,0,0,0,0,0,0,0,0,0,0,0,0,0,0,0,null,{"$f":"IF(Descriptions!D78=\"Grant income\",Descriptions!AA78,0)","v":0},{"$f":"IF([1]Descriptions!D76=\"Grant income\",[1]Descriptions!B76,0)","v":0},"0General Account"]
[{"$f":"IF(Descriptions!D79=\"Grant income\",Descriptions!B79,0)","v":0},0,0,0,0,0,0,0,0,0,0,0,0,0,0,0,0,0,0,0,0,0,null,{"$f":"IF(Descriptions!D79=\"Grant income\",Descriptions!AA79,0)","v":0},{"$f":"IF([1]Descriptions!D77=\"Grant income\",[1]Descriptions!B77,0)","v":0},"0General Account"]
[{"$f":"IF(Descriptions!D80=\"Grant income\",Descriptions!B80,0)","v":0},0,0,0,0,0,0,0,0,0,0,0,0,0,0,0,0,0,0,0,0,0,null,{"$f":"IF(Descriptions!D80=\"Grant income\",Descriptions!AA80,0)","v":0},{"$f":"IF([1]Descriptions!D78=\"Grant income\",[1]Descriptions!B78,0)","v":0},"0General Account"]
[{"$f":"IF(Descriptions!D81=\"Grant income\",Descriptions!B81,0)","v":0},0,0,0,0,0,0,0,0,0,0,0,0,0,0,0,0,0,0,0,0,0,null,{"$f":"IF(Descriptions!D81=\"Grant income\",Descriptions!AA81,0)","v":0},{"$f":"IF([1]Descriptions!D79=\"Grant income\",[1]Descriptions!B79,0)","v":0},"0General Account"]
[{"$f":"IF(Descriptions!D82=\"Grant income\",Descriptions!B82,0)","v":0},0,0,0,0,0,0,0,0,0,0,0,0,0,0,0,0,0,0,0,0,0,null,{"$f":"IF(Descriptions!D82=\"Grant income\",Descriptions!AA82,0)","v":0},{"$f":"IF([1]Descriptions!D80=\"Grant income\",[1]Descriptions!B80,0)","v":0},"0General Account"]
[{"$f":"IF(Descriptions!D83=\"Grant income\",Descriptions!B83,0)","v":0},0,0,0,0,0,0,0,0,0,0,0,0,0,0,0,0,0,0,0,0,0,null,{"$f":"IF(Descriptions!D83=\"Grant income\",Descriptions!AA83,0)","v":0},{"$f":"IF([1]Descriptions!D81=\"Grant income\",[1]Descriptions!B81,0)","v":0},"0General Account"]
[{"$f":"IF(Descriptions!D84=\"Grant income\",Descriptions!B84,0)","v":0},0,0,0,0,0,0,0,0,0,0,0,0,0,0,0,0,0,0,0,0,0,null,{"$f":"IF(Descriptions!D84=\"Grant income\",Descriptions!AA84,0)","v":0},{"$f":"IF([1]Descriptions!D82=\"Grant income\",[1]Descriptions!B82,0)","v":0},"0General Account"]
[{"$f":"IF(Descriptions!D85=\"Grant income\",Descriptions!B85,0)","v":0},0,0,0,0,0,0,0,0,0,0,0,0,0,0,0,0,0,0,0,0,0,null,{"$f":"IF(Descriptions!D85=\"Grant income\",Descriptions!AA85,0)","v":0},{"$f":"IF([1]Descriptions!D83=\"Grant income\",[1]Descriptions!B83,0)","v":0},"0General Account"]
[{"$f":"IF(Descriptions!D86=\"Grant income\",Descriptions!B86,0)","v":0},0,0,0,0,0,0,0,0,0,0,0,0,0,0,0,0,0,0,0,0,0,null,{"$f":"IF(Descriptions!D86=\"Grant income\",Descriptions!AA86,0)","v":0},{"$f":"IF([1]Descriptions!D84=\"Grant income\",[1]Descriptions!B84,0)","v":0},"0General Account"]
[{"$f":"IF(Descriptions!D87=\"Grant income\",Descriptions!B87,0)","v":0},0,0,0,0,0,0,0,0,0,0,0,0,0,0,0,0,0,0,0,0,0,null,{"$f":"IF(Descriptions!D87=\"Grant income\",Descriptions!AA87,0)","v":0},{"$f":"IF([1]Descriptions!D85=\"Grant income\",[1]Descriptions!B85,0)","v":0},"0General Account"]
[{"$f":"IF(Descriptions!D88=\"Grant income\",Descriptions!B88,0)","v":0},0,0,0,0,0,0,0,0,0,0,0,0,0,0,0,0,0,0,0,0,0,null,{"$f":"IF(Descriptions!D88=\"Grant income\",Descriptions!AA88,0)","v":0},{"$f":"IF([1]Descriptions!D86=\"Grant income\",[1]Descriptions!B86,0)","v":0},"0General Account"]
[{"$f":"IF(Descriptions!D89=\"Grant income\",Descriptions!B89,0)","v":0},0,0,0,0,0,0,0,0,0,0,0,0,0,0,0,0,0,0,0,0,0,null,{"$f":"IF(Descriptions!D89=\"Grant income\",Descriptions!AA89,0)","v":0},{"$f":"IF([1]Descriptions!D87=\"Grant income\",[1]Descriptions!B87,0)","v":0},"0General Account"]
[{"$f":"IF(Descriptions!D90=\"Grant income\",Descriptions!B90,0)","v":0},0,0,0,0,0,0,0,0,0,0,0,0,0,0,0,0,0,0,0,0,0,null,{"$f":"IF(Descriptions!D90=\"Grant income\",Descriptions!AA90,0)","v":0},{"$f":"IF([1]Descriptions!D88=\"Grant income\",[1]Descriptions!B88,0)","v":0},"0General Account"]
[{"$f":"IF(Descriptions!D91=\"Grant income\",Descriptions!B91,0)","v":0},0,0,0,0,0,0,0,0,0,0,0,0,0,0,0,0,0,0,0,0,0,null,{"$f":"IF(Descriptions!D91=\"Grant income\",Descriptions!AA91,0)","v":0},{"$f":"IF([1]Descriptions!D89=\"Grant income\",[1]Descriptions!B89,0)","v":0},"0General Account"]
[{"$f":"IF(Descriptions!D92=\"Grant income\",Descriptions!B92,0)","v":0},0,0,0,0,0,0,0,0,0,0,0,0,0,0,0,0,0,0,0,0,0,null,{"$f":"IF(Descriptions!D92=\"Grant income\",Descriptions!AA92,0)","v":0},{"$f":"IF([1]Descriptions!D90=\"Grant income\",[1]Descriptions!B90,0)","v":0},"0General Account"]
[null,{"$f":"SUM(B455:B506)","v":0},0,0,0,0,0,0,0,0,0,0,0,0,0,0,0,0,0,0,0,0,null,{"$f":"X454","v":0}]
["OTHER INCOME",null,null,null,null,null,null,null,null,null,null,null,null,null,null,null,null,null,null,null,null,null,null,{"$f":"SUM(X509:X560)","v":0}]
["Sale of Assets",0,0,0,0,0,0,0,0,0,0,0,0,0,0,0,0,0,0,0,0,0,null,{"$f":"Descriptions!AA31","v":0},{"$f":"[1]Descriptions!B29","v":"Sale of Assets"},{"$f":"CONCATENATE(Y509,$Y$3)","v":"Sale of AssetsGeneral Account"}]
["Other Recurring Income",0,0,0,0,0,0,0,0,0,0,0,0,0,0,0,0,0,0,0,0,0,null,{"$f":"Descriptions!AA28","v":0},{"$f":"[1]Descriptions!B26","v":"Other Recurring Income"},{"$f":"CONCATENATE(Y510,$Y$3)","v":"Other Recurring IncomeGeneral Account"}]
[{"$f":"IF(Descriptions!D43=\"Other income\",Descriptions!B43,0)","v":0},0,0,0,0,0,0,0,0,0,0,0,0,0,0,0,0,0,0,0,0,0,null,{"$f":"IF(Descriptions!D43=\"Other income\",Descriptions!AA43,0)","v":0},{"$f":"IF([1]Descriptions!D41=\"Other income\",[1]Descriptions!B41,0)","v":0},{"$f":"CONCATENATE(Y511,$Y$3)","v":"0General Account"}]
[{"$f":"IF(Descriptions!D44=\"Other income\",Descriptions!B44,0)","v":0},0,0,0,0,0,0,0,0,0,0,0,0,0,0,0,0,0,0,0,0,0,null,{"$f":"IF(Descriptions!D44=\"Other income\",Descriptions!AA44,0)","v":0},{"$f":"IF([1]Descriptions!D42=\"Other income\",[1]Descriptions!B42,0)","v":0},{"$f":"CONCATENATE(Y512,$Y$3)","v":"0General Account"}]
[{"$f":"IF(Descriptions!D45=\"Other income\",Descriptions!B45,0)","v":0},0,0,0,0,0,0,0,0,0,0,0,0,0,0,0,0,0,0,0,0,0,null,{"$f":"IF(Descriptions!D45=\"Other income\",Descriptions!AA45,0)","v":0},{"$f":"IF([1]Descriptions!D43=\"Other income\",[1]Descriptions!B43,0)","v":0},"0General Account"]
[{"$f":"IF(Descriptions!D46=\"Other income\",Descriptions!B46,0)","v":0},0,0,0,0,0,0,0,0,0,0,0,0,0,0,0,0,0,0,0,0,0,null,{"$f":"IF(Descriptions!D46=\"Other income\",Descriptions!AA46,0)","v":0},{"$f":"IF([1]Descriptions!D44=\"Other income\",[1]Descriptions!B44,0)","v":0},"0General Account"]
[{"$f":"IF(Descriptions!D47=\"Other income\",Descriptions!B47,0)","v":0},0,0,0,0,0,0,0,0,0,0,0,0,0,0,0,0,0,0,0,0,0,null,{"$f":"IF(Descriptions!D47=\"Other income\",Descriptions!AA47,0)","v":0},{"$f":"IF([1]Descriptions!D45=\"Other income\",[1]Descriptions!B45,0)","v":0},"0General Account"]
[{"$f":"IF(Descriptions!D48=\"Other income\",Descriptions!B48,0)","v":0},0,0,0,0,0,0,0,0,0,0,0,0,0,0,0,0,0,0,0,0,0,null,{"$f":"IF(Descriptions!D48=\"Other income\",Descriptions!AA48,0)","v":0},{"$f":"IF([1]Descriptions!D46=\"Other income\",[1]Descriptions!B46,0)","v":0},"0General Account"]
[{"$f":"IF(Descriptions!D49=\"Other income\",Descriptions!B49,0)","v":0},0,0,0,0,0,0,0,0,0,0,0,0,0,0,0,0,0,0,0,0,0,null,{"$f":"IF(Descriptions!D49=\"Other income\",Descriptions!AA49,0)","v":0},{"$f":"IF([1]Descriptions!D47=\"Other income\",[1]Descriptions!B47,0)","v":0},"0General Account"]
[{"$f":"IF(Descriptions!D50=\"Other income\",Descriptions!B50,0)","v":0},0,0,0,0,0,0,0,0,0,0,0,0,0,0,0,0,0,0,0,0,0,null,{"$f":"IF(Descriptions!D50=\"Other income\",Descriptions!AA50,0)","v":0},{"$f":"IF([1]Descriptions!D48=\"Other income\",[1]Descriptions!B48,0)","v":0},"0General Account"]
[{"$f":"IF(Descriptions!D51=\"Other income\",Descriptions!B51,0)","v":0},0,0,0,0,0,0,0,0,0,0,0,0,0,0,0,0,0,0,0,0,0,null,{"$f":"IF(Descriptions!D51=\"Other income\",Descriptions!AA51,0)","v":0},{"$f":"IF([1]Descriptions!D49=\"Other income\",[1]Descriptions!B49,0)","v":0},"0General Account"]
[{"$f":"IF(Descriptions!D52=\"Other income\",Descriptions!B52,0)","v":0},0,0,0,0,0,0,0,0,0,0,0,0,0,0,0,0,0,0,0,0,0,null,{"$f":"IF(Descriptions!D52=\"Other income\",Descriptions!AA52,0)","v":0},{"$f":"IF([1]Descriptions!D50=\"Other income\",[1]Descriptions!B50,0)","v":0},"0General Account"]
[{"$f":"IF(Descriptions!D53=\"Other income\",Descriptions!B53,0)","v":0},0,0,0,0,0,0,0,0,0,0,0,0,0,0,0,0,0,0,0,0,0,null,{"$f":"IF(Descriptions!D53=\"Other income\",Descriptions!AA53,0)","v":0},{"$f":"IF([1]Descriptions!D51=\"Other income\",[1]Descriptions!B51,0)","v":0},"0General Account"]
[{"$f":"IF(Descriptions!D54=\"Other income\",Descriptions!B54,0)","v":0},0,0,0,0,0,0,0,0,0,0,0,0,0,0,0,0,0,0,0,0,0,null,{"$f":"IF(Descriptions!D54=\"Other income\",Descriptions!AA54,0)","v":0},{"$f":"IF([1]Descriptions!D52=\"Other income\",[1]Descriptions!B52,0)","v":0},"0General Account"]
[{"$f":"IF(Descriptions!D55=\"Other income\",Descriptions!B55,0)","v":0},0,0,0,0,0,0,0,0,0,0,0,0,0,0,0,0,0,0,0,0,0,null,{"$f":"IF(Descriptions!D55=\"Other income\",Descriptions!AA55,0)","v":0},{"$f":"IF([1]Descriptions!D53=\"Other income\",[1]Descriptions!B53,0)","v":0},"0General Account"]
[{"$f":"IF(Descriptions!D56=\"Other income\",Descriptions!B56,0)","v":0},0,0,0,0,0,0,0,0,0,0,0,0,0,0,0,0,0,0,0,0,0,null,{"$f":"IF(Descriptions!D56=\"Other income\",Descriptions!AA56,0)","v":0},{"$f":"IF([1]Descriptions!D54=\"Other income\",[1]Descriptions!B54,0)","v":0},"0General Account"]
[{"$f":"IF(Descriptions!D57=\"Other income\",Descriptions!B57,0)","v":0},0,0,0,0,0,0,0,0,0,0,0,0,0,0,0,0,0,0,0,0,0,null,{"$f":"IF(Descriptions!D57=\"Other income\",Descriptions!AA57,0)","v":0},{"$f":"IF([1]Descriptions!D55=\"Other income\",[1]Descriptions!B55,0)","v":0},"0General Account"]
[{"$f":"IF(Descriptions!D58=\"Other income\",Descriptions!B58,0)","v":0},0,0,0,0,0,0,0,0,0,0,0,0,0,0,0,0,0,0,0,0,0,null,{"$f":"IF(Descriptions!D58=\"Other income\",Descriptions!AA58,0)","v":0},{"$f":"IF([1]Descriptions!D56=\"Other income\",[1]Descriptions!B56,0)","v":0},"0General Account"]
[{"$f":"IF(Descriptions!D59=\"Other income\",Descriptions!B59,0)","v":0},0,0,0,0,0,0,0,0,0,0,0,0,0,0,0,0,0,0,0,0,0,null,{"$f":"IF(Descriptions!D59=\"Other income\",Descriptions!AA59,0)","v":0},{"$f":"IF([1]Descriptions!D57=\"Other income\",[1]Descriptions!B57,0)","v":0},"0General Account"]
[{"$f":"IF(Descriptions!D60=\"Other income\",Descriptions!B60,0)","v":0},0,0,0,0,0,0,0,0,0,0,0,0,0,0,0,0,0,0,0,0,0,null,{"$f":"IF(Descriptions!D60=\"Other income\",Descriptions!AA60,0)","v":0},{"$f":"IF([1]Descriptions!D58=\"Other income\",[1]Descriptions!B58,0)","v":0},"0General Account"]
[{"$f":"IF(Descriptions!D61=\"Other income\",Descriptions!B61,0)","v":0},0,0,0,0,0,0,0,0,0,0,0,0,0,0,0,0,0,0,0,0,0,null,{"$f":"IF(Descriptions!D61=\"Other income\",Descriptions!AA61,0)","v":0},{"$f":"IF([1]Descriptions!D59=\"Other income\",[1]Descriptions!B59,0)","v":0},"0General Account"]
[{"$f":"IF(Descriptions!D62=\"Other income\",Descriptions!B62,0)","v":0},0,0,0,0,0,0,0,0,0,0,0,0,0,0,0,0,0,0,0,0,0,null,{"$f":"IF(Descriptions!D62=\"Other income\",Descriptions!AA62,0)","v":0},{"$f":"IF([1]Descriptions!D60=\"Other income\",[1]Descriptions!B60,0)","v":0},"0General Account"]
[{"$f":"IF(Descriptions!D63=\"Other income\",Descriptions!B63,0)","v":0},0,0,0,0,0,0,0,0,0,0,0,0,0,0,0,0,0,0,0,0,0,null,{"$f":"IF(Descriptions!D63=\"Other income\",Descriptions!AA63,0)","v":0},{"$f":"IF([1]Descriptions!D61=\"Other income\",[1]Descriptions!B61,0)","v":0},"0General Account"]
[{"$f":"IF(Descriptions!D64=\"Other income\",Descriptions!B64,0)","v":0},0,0,0,0,0,0,0,0,0,0,0,0,0,0,0,0,0,0,0,0,0,null,{"$f":"IF(Descriptions!D64=\"Other income\",Descriptions!AA64,0)","v":0},{"$f":"IF([1]Descriptions!D62=\"Other income\",[1]Descriptions!B62,0)","v":0},"0General Account"]
[{"$f":"IF(Descriptions!D65=\"Other income\",Descriptions!B65,0)","v":0},0,0,0,0,0,0,0,0,0,0,0,0,0,0,0,0,0,0,0,0,0,null,{"$f":"IF(Descriptions!D65=\"Other income\",Descriptions!AA65,0)","v":0},{"$f":"IF([1]Descriptions!D63=\"Other income\",[1]Descriptions!B63,0)","v":0},"0General Account"]
[{"$f":"IF(Descriptions!D66=\"Other income\",Descriptions!B66,0)","v":0},0,0,0,0,0,0,0,0,0,0,0,0,0,0,0,0,0,0,0,0,0,null,{"$f":"IF(Descriptions!D66=\"Other income\",Descriptions!AA66,0)","v":0},{"$f":"IF([1]Descriptions!D64=\"Other income\",[1]Descriptions!B64,0)","v":0},"0General Account"]
[{"$f":"IF(Descriptions!D67=\"Other income\",Descriptions!B67,0)","v":0},0,0,0,0,0,0,0,0,0,0,0,0,0,0,0,0,0,0,0,0,0,null,{"$f":"IF(Descriptions!D67=\"Other income\",Descriptions!AA67,0)","v":0},{"$f":"IF([1]Descriptions!D65=\"Other income\",[1]Descriptions!B65,0)","v":0},"0General Account"]
[{"$f":"IF(Descriptions!D68=\"Other income\",Descriptions!B68,0)","v":0},0,0,0,0,0,0,0,0,0,0,0,0,0,0,0,0,0,0,0,0,0,null,{"$f":"IF(Descriptions!D68=\"Other income\",Descriptions!AA68,0)","v":0},{"$f":"IF([1]Descriptions!D66=\"Other income\",[1]Descriptions!B66,0)","v":0},"0General Account"]
[{"$f":"IF(Descriptions!D69=\"Other income\",Descriptions!B69,0)","v":0},0,0,0,0,0,0,0,0,0,0,0,0,0,0,0,0,0,0,0,0,0,null,{"$f":"IF(Descriptions!D69=\"Other income\",Descriptions!AA69,0)","v":0},{"$f":"IF([1]Descriptions!D67=\"Other income\",[1]Descriptions!B67,0)","v":0},"0General Account"]
[{"$f":"IF(Descriptions!D70=\"Other income\",Descriptions!B70,0)","v":0},0,0,0,0,0,0,0,0,0,0,0,0,0,0,0,0,0,0,0,0,0,null,{"$f":"IF(Descriptions!D70=\"Other income\",Descriptions!AA70,0)","v":0},{"$f":"IF([1]Descriptions!D68=\"Other income\",[1]Descriptions!B68,0)","v":0},"0General Account"]
[{"$f":"IF(Descriptions!D71=\"Other income\",Descriptions!B71,0)","v":0},0,0,0,0,0,0,0,0,0,0,0,0,0,0,0,0,0,0,0,0,0,null,{"$f":"IF(Descriptions!D71=\"Other income\",Descriptions!AA71,0)","v":0},{"$f":"IF([1]Descriptions!D69=\"Other income\",[1]Descriptions!B69,0)","v":0},"0General Account"]
[{"$f":"IF(Descriptions!D72=\"Other income\",Descriptions!B72,0)","v":0},0,0,0,0,0,0,0,0,0,0,0,0,0,0,0,0,0,0,0,0,0,null,{"$f":"IF(Descriptions!D72=\"Other income\",Descriptions!AA72,0)","v":0},{"$f":"IF([1]Descriptions!D70=\"Other income\",[1]Descriptions!B70,0)","v":0},"0General Account"]
[{"$f":"IF(Descriptions!D73=\"Other income\",Descriptions!B73,0)","v":0},0,0,0,0,0,0,0,0,0,0,0,0,0,0,0,0,0,0,0,0,0,null,{"$f":"IF(Descriptions!D73=\"Other income\",Descriptions!AA73,0)","v":0},{"$f":"IF([1]Descriptions!D71=\"Other income\",[1]Descriptions!B71,0)","v":0},"0General Account"]
[{"$f":"IF(Descriptions!D74=\"Other income\",Descriptions!B74,0)","v":0},0,0,0,0,0,0,0,0,0,0,0,0,0,0,0,0,0,0,0,0,0,null,{"$f":"IF(Descriptions!D74=\"Other income\",Descriptions!AA74,0)","v":0},{"$f":"IF([1]Descriptions!D72=\"Other income\",[1]Descriptions!B72,0)","v":0},"0General Account"]
[{"$f":"IF(Descriptions!D75=\"Other income\",Descriptions!B75,0)","v":0},0,0,0,0,0,0,0,0,0,0,0,0,0,0,0,0,0,0,0,0,0,null,{"$f":"IF(Descriptions!D75=\"Other income\",Descriptions!AA75,0)","v":0},{"$f":"IF([1]Descriptions!D73=\"Other income\",[1]Descriptions!B73,0)","v":0},"0General Account"]
[{"$f":"IF(Descriptions!D76=\"Other income\",Descriptions!B76,0)","v":0},0,0,0,0,0,0,0,0,0,0,0,0,0,0,0,0,0,0,0,0,0,null,{"$f":"IF(Descriptions!D76=\"Other income\",Descriptions!AA76,0)","v":0},{"$f":"IF([1]Descriptions!D74=\"Other income\",[1]Descriptions!B74,0)","v":0},"0General Account"]
[{"$f":"IF(Descriptions!D77=\"Other income\",Descriptions!B77,0)","v":0},0,0,0,0,0,0,0,0,0,0,0,0,0,0,0,0,0,0,0,0,0,null,{"$f":"IF(Descriptions!D77=\"Other income\",Descriptions!AA77,0)","v":0},{"$f":"IF([1]Descriptions!D75=\"Other income\",[1]Descriptions!B75,0)","v":0},"0General Account"]
[{"$f":"IF(Descriptions!D78=\"Other income\",Descriptions!B78,0)","v":0},0,0,0,0,0,0,0,0,0,0,0,0,0,0,0,0,0,0,0,0,0,null,{"$f":"IF(Descriptions!D78=\"Other income\",Descriptions!AA78,0)","v":0},{"$f":"IF([1]Descriptions!D76=\"Other income\",[1]Descriptions!B76,0)","v":0},"0General Account"]
[{"$f":"IF(Descriptions!D79=\"Other income\",Descriptions!B79,0)","v":0},0,0,0,0,0,0,0,0,0,0,0,0,0,0,0,0,0,0,0,0,0,null,{"$f":"IF(Descriptions!D79=\"Other income\",Descriptions!AA79,0)","v":0},{"$f":"IF([1]Descriptions!D77=\"Other income\",[1]Descriptions!B77,0)","v":0},"0General Account"]
[{"$f":"IF(Descriptions!D80=\"Other income\",Descriptions!B80,0)","v":0},0,0,0,0,0,0,0,0,0,0,0,0,0,0,0,0,0,0,0,0,0,null,{"$f":"IF(Descriptions!D80=\"Other income\",Descriptions!AA80,0)","v":0},{"$f":"IF([1]Descriptions!D78=\"Other income\",[1]Descriptions!B78,0)","v":0},"0General Account"]
[{"$f":"IF(Descriptions!D81=\"Other income\",Descriptions!B81,0)","v":0},0,0,0,0,0,0,0,0,0,0,0,0,0,0,0,0,0,0,0,0,0,null,{"$f":"IF(Descriptions!D81=\"Other income\",Descriptions!AA81,0)","v":0},{"$f":"IF([1]Descriptions!D79=\"Other income\",[1]Descriptions!B79,0)","v":0},"0General Account"]
[{"$f":"IF(Descriptions!D82=\"Other income\",Descriptions!B82,0)","v":0},0,0,0,0,0,0,0,0,0,0,0,0,0,0,0,0,0,0,0,0,0,null,{"$f":"IF(Descriptions!D82=\"Other income\",Descriptions!AA82,0)","v":0},{"$f":"IF([1]Descriptions!D80=\"Other income\",[1]Descriptions!B80,0)","v":0},"0General Account"]
[{"$f":"IF(Descriptions!D83=\"Other income\",Descriptions!B83,0)","v":0},0,0,0,0,0,0,0,0,0,0,0,0,0,0,0,0,0,0,0,0,0,null,{"$f":"IF(Descriptions!D83=\"Other income\",Descriptions!AA83,0)","v":0},{"$f":"IF([1]Descriptions!D81=\"Other income\",[1]Descriptions!B81,0)","v":0},"0General Account"]
[{"$f":"IF(Descriptions!D84=\"Other income\",Descriptions!B84,0)","v":0},0,0,0,0,0,0,0,0,0,0,0,0,0,0,0,0,0,0,0,0,0,null,{"$f":"IF(Descriptions!D84=\"Other income\",Descriptions!AA84,0)","v":0},{"$f":"IF([1]Descriptions!D82=\"Other income\",[1]Descriptions!B82,0)","v":0},"0General Account"]
[{"$f":"IF(Descriptions!D85=\"Other income\",Descriptions!B85,0)","v":0},0,0,0,0,0,0,0,0,0,0,0,0,0,0,0,0,0,0,0,0,0,null,{"$f":"IF(Descriptions!D85=\"Other income\",Descriptions!AA85,0)","v":0},{"$f":"IF([1]Descriptions!D83=\"Other income\",[1]Descriptions!B83,0)","v":0},"0General Account"]
[{"$f":"IF(Descriptions!D86=\"Other income\",Descriptions!B86,0)","v":0},0,0,0,0,0,0,0,0,0,0,0,0,0,0,0,0,0,0,0,0,0,null,{"$f":"IF(Descriptions!D86=\"Other income\",Descriptions!AA86,0)","v":0},{"$f":"IF([1]Descriptions!D84=\"Other income\",[1]Descriptions!B84,0)","v":0},"0General Account"]
[{"$f":"IF(Descriptions!D87=\"Other income\",Descriptions!B87,0)","v":0},0,0,0,0,0,0,0,0,0,0,0,0,0,0,0,0,0,0,0,0,0,null,{"$f":"IF(Descriptions!D87=\"Other income\",Descriptions!AA87,0)","v":0},{"$f":"IF([1]Descriptions!D85=\"Other income\",[1]Descriptions!B85,0)","v":0},"0General Account"]
[{"$f":"IF(Descriptions!D88=\"Other income\",Descriptions!B88,0)","v":0},0,0,0,0,0,0,0,0,0,0,0,0,0,0,0,0,0,0,0,0,0,null,{"$f":"IF(Descriptions!D88=\"Other income\",Descriptions!AA88,0)","v":0},{"$f":"IF([1]Descriptions!D86=\"Other income\",[1]Descriptions!B86,0)","v":0},"0General Account"]
[{"$f":"IF(Descriptions!D89=\"Other income\",Descriptions!B89,0)","v":0},0,0,0,0,0,0,0,0,0,0,0,0,0,0,0,0,0,0,0,0,0,null,{"$f":"IF(Descriptions!D89=\"Other income\",Descriptions!AA89,0)","v":0},{"$f":"IF([1]Descriptions!D87=\"Other income\",[1]Descriptions!B87,0)","v":0},"0General Account"]
[{"$f":"IF(Descriptions!D90=\"Other income\",Descriptions!B90,0)","v":0},0,0,0,0,0,0,0,0,0,0,0,0,0,0,0,0,0,0,0,0,0,null,{"$f":"IF(Descriptions!D90=\"Other income\",Descriptions!AA90,0)","v":0},{"$f":"IF([1]Descriptions!D88=\"Other income\",[1]Descriptions!B88,0)","v":0},"0General Account"]
[{"$f":"IF(Descriptions!D91=\"Other income\",Descriptions!B91,0)","v":0},0,0,0,0,0,0,0,0,0,0,0,0,0,0,0,0,0,0,0,0,0,null,{"$f":"IF(Descriptions!D91=\"Other income\",Descriptions!AA91,0)","v":0},{"$f":"IF([1]Descriptions!D89=\"Other income\",[1]Descriptions!B89,0)","v":0},"0General Account"]
[{"$f":"IF(Descriptions!D92=\"Other income\",Descriptions!B92,0)","v":0},0,0,0,0,0,0,0,0,0,0,0,0,0,0,0,0,0,0,0,0,0,null,{"$f":"IF(Descriptions!D92=\"Other income\",Descriptions!AA92,0)","v":0},{"$f":"IF([1]Descriptions!D90=\"Other income\",[1]Descriptions!B90,0)","v":0},"0General Account"]
[null,{"$f":"SUM(B509:B560)","v":0},0,0,0,0,0,0,0,0,0,0,0,0,0,0,0,0,0,0,0,0,null,{"$f":"X508","v":0}]
[null,null,null,null,null,null,null,null,null,null,null,null,null,null,null,null,null,null,null,null,null,null,null,1]
["TOTAL BUDGETED RECEIPTS",{"$f":"SUM(B561+B507+B453+B400+B347+B288+B230+B171+B118+B64)","v":0},0,0,0,0,0,0,0,0,0,0,0,0,0,0,0,0,0,0,0,0,null,1]
[null,null,null,null,null,null,null,null,null,null,null,null,null,null,null,null,null,null,null,null,null,null,null,1]
[null,null,null,null,null,null,null,null,null,null,null,null,null,null,null,null,null,null,null,null,null,null,null,1]
["PAYMENTS",null,null,null,null,null,null,null,null,null,null,null,null,null,null,null,null,null,null,null,null,null,null,1]
[null,"£","£","£","£","£","£","£","£","£","£","£","£","£","£","£","£","£","£","£","£","£",null,1]
["PARISH SHARE",null,null,null,null,null,null,null,null,null,null,null,null,null,null,null,null,null,null,null,null,null,null,1]
["Parish Share Paid",0,0,0,0,0,0,0,0,0,0,0,0,0,0,0,0,0,0,0,0,0,null,1,{"$f":"[1]Descriptions!I22","v":"Parish Share Paid"},{"$f":"CONCATENATE(Y569,$Y$3)","v":"Parish Share PaidGeneral Account"}]
[{"$f":"IF(Descriptions!K35=\"Parish Share\",Descriptions!I35,0)","v":0},0,0,0,0,0,0,0,0,0,0,0,0,0,0,0,0,0,0,0,0,0,null,{"$f":"IF(Descriptions!K35=\"Parish Share\",Descriptions!AB35,0)","v":0},{"$f":"IF([1]Descriptions!K33=\"Parish Share\",[1]Descriptions!I33,0)","v":0},{"$f":"CONCATENATE(Y570,$Y$3)","v":"0General Account"}]
[{"$f":"IF(Descriptions!K36=\"Parish Share\",Descriptions!I36,0)","v":0},0,0,0,0,0,0,0,0,0,0,0,0,0,0,0,0,0,0,0,0,0,null,{"$f":"IF(Descriptions!K36=\"Parish Share\",Descriptions!AB36,0)","v":0},{"$f":"IF([1]Descriptions!K34=\"Parish Share\",[1]Descriptions!I34,0)","v":0},{"$f":"CONCATENATE(Y571,$Y$3)","v":"0General Account"}]
[{"$f":"IF(Descriptions!K37=\"Parish Share\",Descriptions!I37,0)","v":0},0,0,0,0,0,0,0,0,0,0,0,0,0,0,0,0,0,0,0,0,0,null,{"$f":"IF(Descriptions!K37=\"Parish Share\",Descriptions!AB37,0)","v":0},{"$f":"IF([1]Descriptions!K35=\"Parish Share\",[1]Descriptions!I35,0)","v":0},"0General Account"]
[{"$f":"IF(Descriptions!K38=\"Parish Share\",Descriptions!I38,0)","v":0},0,0,0,0,0,0,0,0,0,0,0,0,0,0,0,0,0,0,0,0,0,null,{"$f":"IF(Descriptions!K38=\"Parish Share\",Descriptions!AB38,0)","v":0},{"$f":"IF([1]Descriptions!K36=\"Parish Share\",[1]Descriptions!I36,0)","v":0},"0General Account"]
[{"$f":"IF(Descriptions!K39=\"Parish Share\",Descriptions!I39,0)","v":0},0,0,0,0,0,0,0,0,0,0,0,0,0,0,0,0,0,0,0,0,0,null,{"$f":"IF(Descriptions!K39=\"Parish Share\",Descriptions!AB39,0)","v":0},{"$f":"IF([1]Descriptions!K37=\"Parish Share\",[1]Descriptions!I37,0)","v":0},"0General Account"]
[{"$f":"IF(Descriptions!K40=\"Parish Share\",Descriptions!I40,0)","v":0},0,0,0,0,0,0,0,0,0,0,0,0,0,0,0,0,0,0,0,0,0,null,{"$f":"IF(Descriptions!K40=\"Parish Share\",Descriptions!AB40,0)","v":0},{"$f":"IF([1]Descriptions!K38=\"Parish Share\",[1]Descriptions!I38,0)","v":0},"0General Account"]
[{"$f":"IF(Descriptions!K41=\"Parish Share\",Descriptions!I41,0)","v":0},0,0,0,0,0,0,0,0,0,0,0,0,0,0,0,0,0,0,0,0,0,null,{"$f":"IF(Descriptions!K41=\"Parish Share\",Descriptions!AB41,0)","v":0},{"$f":"IF([1]Descriptions!K39=\"Parish Share\",[1]Descriptions!I39,0)","v":0},"0General Account"]
[{"$f":"IF(Descriptions!K42=\"Parish Share\",Descriptions!I42,0)","v":0},0,0,0,0,0,0,0,0,0,0,0,0,0,0,0,0,0,0,0,0,0,null,{"$f":"IF(Descriptions!K42=\"Parish Share\",Descriptions!AB42,0)","v":0},{"$f":"IF([1]Descriptions!K40=\"Parish Share\",[1]Descriptions!I40,0)","v":0},"0General Account"]
[{"$f":"IF(Descriptions!K43=\"Parish Share\",Descriptions!I43,0)","v":0},0,0,0,0,0,0,0,0,0,0,0,0,0,0,0,0,0,0,0,0,0,null,{"$f":"IF(Descriptions!K43=\"Parish Share\",Descriptions!AB43,0)","v":0},{"$f":"IF([1]Descriptions!K41=\"Parish Share\",[1]Descriptions!I41,0)","v":0},"0General Account"]
[{"$f":"IF(Descriptions!K44=\"Parish Share\",Descriptions!I44,0)","v":0},0,0,0,0,0,0,0,0,0,0,0,0,0,0,0,0,0,0,0,0,0,null,{"$f":"IF(Descriptions!K44=\"Parish Share\",Descriptions!AB44,0)","v":0},{"$f":"IF([1]Descriptions!K42=\"Parish Share\",[1]Descriptions!I42,0)","v":0},"0General Account"]
[{"$f":"IF(Descriptions!K45=\"Parish Share\",Descriptions!I45,0)","v":0},0,0,0,0,0,0,0,0,0,0,0,0,0,0,0,0,0,0,0,0,0,null,{"$f":"IF(Descriptions!K45=\"Parish Share\",Descriptions!AB45,0)","v":0},{"$f":"IF([1]Descriptions!K43=\"Parish Share\",[1]Descriptions!I43,0)","v":0},"0General Account"]
[{"$f":"IF(Descriptions!K46=\"Parish Share\",Descriptions!I46,0)","v":0},0,0,0,0,0,0,0,0,0,0,0,0,0,0,0,0,0,0,0,0,0,null,{"$f":"IF(Descriptions!K46=\"Parish Share\",Descriptions!AB46,0)","v":0},{"$f":"IF([1]Descriptions!K44=\"Parish Share\",[1]Descriptions!I44,0)","v":0},"0General Account"]
[{"$f":"IF(Descriptions!K47=\"Parish Share\",Descriptions!I47,0)","v":0},0,0,0,0,0,0,0,0,0,0,0,0,0,0,0,0,0,0,0,0,0,null,{"$f":"IF(Descriptions!K47=\"Parish Share\",Descriptions!AB47,0)","v":0},{"$f":"IF([1]Descriptions!K45=\"Parish Share\",[1]Descriptions!I45,0)","v":0},"0General Account"]
[{"$f":"IF(Descriptions!K48=\"Parish Share\",Descriptions!I48,0)","v":0},0,0,0,0,0,0,0,0,0,0,0,0,0,0,0,0,0,0,0,0,0,null,{"$f":"IF(Descriptions!K48=\"Parish Share\",Descriptions!AB48,0)","v":0},{"$f":"IF([1]Descriptions!K46=\"Parish Share\",[1]Descriptions!I46,0)","v":0},"0General Account"]
[{"$f":"IF(Descriptions!K49=\"Parish Share\",Descriptions!I49,0)","v":0},0,0,0,0,0,0,0,0,0,0,0,0,0,0,0,0,0,0,0,0,0,null,{"$f":"IF(Descriptions!K49=\"Parish Share\",Descriptions!AB49,0)","v":0},{"$f":"IF([1]Descriptions!K47=\"Parish Share\",[1]Descriptions!I47,0)","v":0},"0General Account"]
[{"$f":"IF(Descriptions!K50=\"Parish Share\",Descriptions!I50,0)","v":0},0,0,0,0,0,0,0,0,0,0,0,0,0,0,0,0,0,0,0,0,0,null,{"$f":"IF(Descriptions!K50=\"Parish Share\",Descriptions!AB50,0)","v":0},{"$f":"IF([1]Descriptions!K48=\"Parish Share\",[1]Descriptions!I48,0)","v":0},"0General Account"]
[{"$f":"IF(Descriptions!K51=\"Parish Share\",Descriptions!I51,0)","v":0},0,0,0,0,0,0,0,0,0,0,0,0,0,0,0,0,0,0,0,0,0,null,{"$f":"IF(Descriptions!K51=\"Parish Share\",Descriptions!AB51,0)","v":0},{"$f":"IF([1]Descriptions!K49=\"Parish Share\",[1]Descriptions!I49,0)","v":0},"0General Account"]
[{"$f":"IF(Descriptions!K52=\"Parish Share\",Descriptions!I52,0)","v":0},0,0,0,0,0,0,0,0,0,0,0,0,0,0,0,0,0,0,0,0,0,null,{"$f":"IF(Descriptions!K52=\"Parish Share\",Descriptions!AB52,0)","v":0},{"$f":"IF([1]Descriptions!K50=\"Parish Share\",[1]Descriptions!I50,0)","v":0},"0General Account"]
[{"$f":"IF(Descriptions!K53=\"Parish Share\",Descriptions!I53,0)","v":0},0,0,0,0,0,0,0,0,0,0,0,0,0,0,0,0,0,0,0,0,0,null,{"$f":"IF(Descriptions!K53=\"Parish Share\",Descriptions!AB53,0)","v":0},{"$f":"IF([1]Descriptions!K51=\"Parish Share\",[1]Descriptions!I51,0)","v":0},"0General Account"]
[{"$f":"IF(Descriptions!K54=\"Parish Share\",Descriptions!I54,0)","v":0},0,0,0,0,0,0,0,0,0,0,0,0,0,0,0,0,0,0,0,0,0,null,{"$f":"IF(Descriptions!K54=\"Parish Share\",Descriptions!AB54,0)","v":0},{"$f":"IF([1]Descriptions!K52=\"Parish Share\",[1]Descriptions!I52,0)","v":0},"0General Account"]
[{"$f":"IF(Descriptions!K55=\"Parish Share\",Descriptions!I55,0)","v":0},0,0,0,0,0,0,0,0,0,0,0,0,0,0,0,0,0,0,0,0,0,null,{"$f":"IF(Descriptions!K55=\"Parish Share\",Descriptions!AB55,0)","v":0},{"$f":"IF([1]Descriptions!K53=\"Parish Share\",[1]Descriptions!I53,0)","v":0},"0General Account"]
[{"$f":"IF(Descriptions!K56=\"Parish Share\",Descriptions!I56,0)","v":0},0,0,0,0,0,0,0,0,0,0,0,0,0,0,0,0,0,0,0,0,0,null,{"$f":"IF(Descriptions!K56=\"Parish Share\",Descriptions!AB56,0)","v":0},{"$f":"IF([1]Descriptions!K54=\"Parish Share\",[1]Descriptions!I54,0)","v":0},"0General Account"]
[{"$f":"IF(Descriptions!K57=\"Parish Share\",Descriptions!I57,0)","v":0},0,0,0,0,0,0,0,0,0,0,0,0,0,0,0,0,0,0,0,0,0,null,{"$f":"IF(Descriptions!K57=\"Parish Share\",Descriptions!AB57,0)","v":0},{"$f":"IF([1]Descriptions!K55=\"Parish Share\",[1]Descriptions!I55,0)","v":0},"0General Account"]
[{"$f":"IF(Descriptions!K58=\"Parish Share\",Descriptions!I58,0)","v":0},0,0,0,0,0,0,0,0,0,0,0,0,0,0,0,0,0,0,0,0,0,null,{"$f":"IF(Descriptions!K58=\"Parish Share\",Descriptions!AB58,0)","v":0},{"$f":"IF([1]Descriptions!K56=\"Parish Share\",[1]Descriptions!I56,0)","v":0},"0General Account"]
[{"$f":"IF(Descriptions!K59=\"Parish Share\",Descriptions!I59,0)","v":0},0,0,0,0,0,0,0,0,0,0,0,0,0,0,0,0,0,0,0,0,0,null,{"$f":"IF(Descriptions!K59=\"Parish Share\",Descriptions!AB59,0)","v":0},{"$f":"IF([1]Descriptions!K57=\"Parish Share\",[1]Descriptions!I57,0)","v":0},"0General Account"]
[{"$f":"IF(Descriptions!K60=\"Parish Share\",Descriptions!I60,0)","v":0},0,0,0,0,0,0,0,0,0,0,0,0,0,0,0,0,0,0,0,0,0,null,{"$f":"IF(Descriptions!K60=\"Parish Share\",Descriptions!AB60,0)","v":0},{"$f":"IF([1]Descriptions!K58=\"Parish Share\",[1]Descriptions!I58,0)","v":0},"0General Account"]
[{"$f":"IF(Descriptions!K61=\"Parish Share\",Descriptions!I61,0)","v":0},0,0,0,0,0,0,0,0,0,0,0,0,0,0,0,0,0,0,0,0,0,null,{"$f":"IF(Descriptions!K61=\"Parish Share\",Descriptions!AB61,0)","v":0},{"$f":"IF([1]Descriptions!K59=\"Parish Share\",[1]Descriptions!I59,0)","v":0},"0General Account"]
[{"$f":"IF(Descriptions!K62=\"Parish Share\",Descriptions!I62,0)","v":0},0,0,0,0,0,0,0,0,0,0,0,0,0,0,0,0,0,0,0,0,0,null,{"$f":"IF(Descriptions!K62=\"Parish Share\",Descriptions!AB62,0)","v":0},{"$f":"IF([1]Descriptions!K60=\"Parish Share\",[1]Descriptions!I60,0)","v":0},"0General Account"]
[{"$f":"IF(Descriptions!K63=\"Parish Share\",Descriptions!I63,0)","v":0},0,0,0,0,0,0,0,0,0,0,0,0,0,0,0,0,0,0,0,0,0,null,{"$f":"IF(Descriptions!K63=\"Parish Share\",Descriptions!AB63,0)","v":0},{"$f":"IF([1]Descriptions!K61=\"Parish Share\",[1]Descriptions!I61,0)","v":0},"0General Account"]
[{"$f":"IF(Descriptions!K64=\"Parish Share\",Descriptions!I64,0)","v":0},0,0,0,0,0,0,0,0,0,0,0,0,0,0,0,0,0,0,0,0,0,null,{"$f":"IF(Descriptions!K64=\"Parish Share\",Descriptions!AB64,0)","v":0},{"$f":"IF([1]Descriptions!K62=\"Parish Share\",[1]Descriptions!I62,0)","v":0},"0General Account"]
[{"$f":"IF(Descriptions!K65=\"Parish Share\",Descriptions!I65,0)","v":0},0,0,0,0,0,0,0,0,0,0,0,0,0,0,0,0,0,0,0,0,0,null,{"$f":"IF(Descriptions!K65=\"Parish Share\",Descriptions!AB65,0)","v":0},{"$f":"IF([1]Descriptions!K63=\"Parish Share\",[1]Descriptions!I63,0)","v":0},"0General Account"]
[{"$f":"IF(Descriptions!K66=\"Parish Share\",Descriptions!I66,0)","v":0},0,0,0,0,0,0,0,0,0,0,0,0,0,0,0,0,0,0,0,0,0,null,{"$f":"IF(Descriptions!K66=\"Parish Share\",Descriptions!AB66,0)","v":0},{"$f":"IF([1]Descriptions!K64=\"Parish Share\",[1]Descriptions!I64,0)","v":0},"0General Account"]
[{"$f":"IF(Descriptions!K67=\"Parish Share\",Descriptions!I67,0)","v":0},0,0,0,0,0,0,0,0,0,0,0,0,0,0,0,0,0,0,0,0,0,null,{"$f":"IF(Descriptions!K67=\"Parish Share\",Descriptions!AB67,0)","v":0},{"$f":"IF([1]Descriptions!K65=\"Parish Share\",[1]Descriptions!I65,0)","v":0},"0General Account"]
[{"$f":"IF(Descriptions!K68=\"Parish Share\",Descriptions!I68,0)","v":0},0,0,0,0,0,0,0,0,0,0,0,0,0,0,0,0,0,0,0,0,0,null,{"$f":"IF(Descriptions!K68=\"Parish Share\",Descriptions!AB68,0)","v":0},{"$f":"IF([1]Descriptions!K66=\"Parish Share\",[1]Descriptions!I66,0)","v":0},"0General Account"]
[{"$f":"IF(Descriptions!K69=\"Parish Share\",Descriptions!I69,0)","v":0},0,0,0,0,0,0,0,0,0,0,0,0,0,0,0,0,0,0,0,0,0,null,{"$f":"IF(Descriptions!K69=\"Parish Share\",Descriptions!AB69,0)","v":0},{"$f":"IF([1]Descriptions!K67=\"Parish Share\",[1]Descriptions!I67,0)","v":0},"0General Account"]
[{"$f":"IF(Descriptions!K70=\"Parish Share\",Descriptions!I70,0)","v":0},0,0,0,0,0,0,0,0,0,0,0,0,0,0,0,0,0,0,0,0,0,null,{"$f":"IF(Descriptions!K70=\"Parish Share\",Descriptions!AB70,0)","v":0},{"$f":"IF([1]Descriptions!K68=\"Parish Share\",[1]Descriptions!I68,0)","v":0},"0General Account"]
[{"$f":"IF(Descriptions!K71=\"Parish Share\",Descriptions!I71,0)","v":0},0,0,0,0,0,0,0,0,0,0,0,0,0,0,0,0,0,0,0,0,0,null,{"$f":"IF(Descriptions!K71=\"Parish Share\",Descriptions!AB71,0)","v":0},{"$f":"IF([1]Descriptions!K69=\"Parish Share\",[1]Descriptions!I69,0)","v":0},"0General Account"]
[{"$f":"IF(Descriptions!K72=\"Parish Share\",Descriptions!I72,0)","v":0},0,0,0,0,0,0,0,0,0,0,0,0,0,0,0,0,0,0,0,0,0,null,{"$f":"IF(Descriptions!K72=\"Parish Share\",Descriptions!AB72,0)","v":0},{"$f":"IF([1]Descriptions!K70=\"Parish Share\",[1]Descriptions!I70,0)","v":0},"0General Account"]
[{"$f":"IF(Descriptions!K73=\"Parish Share\",Descriptions!I73,0)","v":0},0,0,0,0,0,0,0,0,0,0,0,0,0,0,0,0,0,0,0,0,0,null,{"$f":"IF(Descriptions!K73=\"Parish Share\",Descriptions!AB73,0)","v":0},{"$f":"IF([1]Descriptions!K71=\"Parish Share\",[1]Descriptions!I71,0)","v":0},"0General Account"]
[{"$f":"IF(Descriptions!K74=\"Parish Share\",Descriptions!I74,0)","v":0},0,0,0,0,0,0,0,0,0,0,0,0,0,0,0,0,0,0,0,0,0,null,{"$f":"IF(Descriptions!K74=\"Parish Share\",Descriptions!AB74,0)","v":0},{"$f":"IF([1]Descriptions!K72=\"Parish Share\",[1]Descriptions!I72,0)","v":0},"0General Account"]
[{"$f":"IF(Descriptions!K75=\"Parish Share\",Descriptions!I75,0)","v":0},0,0,0,0,0,0,0,0,0,0,0,0,0,0,0,0,0,0,0,0,0,null,{"$f":"IF(Descriptions!K75=\"Parish Share\",Descriptions!AB75,0)","v":0},{"$f":"IF([1]Descriptions!K73=\"Parish Share\",[1]Descriptions!I73,0)","v":0},"0General Account"]
[{"$f":"IF(Descriptions!K76=\"Parish Share\",Descriptions!I76,0)","v":0},0,0,0,0,0,0,0,0,0,0,0,0,0,0,0,0,0,0,0,0,0,null,{"$f":"IF(Descriptions!K76=\"Parish Share\",Descriptions!AB76,0)","v":0},{"$f":"IF([1]Descriptions!K74=\"Parish Share\",[1]Descriptions!I74,0)","v":0},"0General Account"]
[{"$f":"IF(Descriptions!K77=\"Parish Share\",Descriptions!I77,0)","v":0},0,0,0,0,0,0,0,0,0,0,0,0,0,0,0,0,0,0,0,0,0,null,{"$f":"IF(Descriptions!K77=\"Parish Share\",Descriptions!AB77,0)","v":0},{"$f":"IF([1]Descriptions!K75=\"Parish Share\",[1]Descriptions!I75,0)","v":0},"0General Account"]
[{"$f":"IF(Descriptions!K78=\"Parish Share\",Descriptions!I78,0)","v":0},0,0,0,0,0,0,0,0,0,0,0,0,0,0,0,0,0,0,0,0,0,null,{"$f":"IF(Descriptions!K78=\"Parish Share\",Descriptions!AB78,0)","v":0},{"$f":"IF([1]Descriptions!K76=\"Parish Share\",[1]Descriptions!I76,0)","v":0},"0General Account"]
[{"$f":"IF(Descriptions!K79=\"Parish Share\",Descriptions!I79,0)","v":0},0,0,0,0,0,0,0,0,0,0,0,0,0,0,0,0,0,0,0,0,0,null,{"$f":"IF(Descriptions!K79=\"Parish Share\",Descriptions!AB79,0)","v":0},{"$f":"IF([1]Descriptions!K77=\"Parish Share\",[1]Descriptions!I77,0)","v":0},"0General Account"]
[{"$f":"IF(Descriptions!K80=\"Parish Share\",Descriptions!I80,0)","v":0},0,0,0,0,0,0,0,0,0,0,0,0,0,0,0,0,0,0,0,0,0,null,{"$f":"IF(Descriptions!K80=\"Parish Share\",Descriptions!AB80,0)","v":0},{"$f":"IF([1]Descriptions!K78=\"Parish Share\",[1]Descriptions!I78,0)","v":0},"0General Account"]
[{"$f":"IF(Descriptions!K81=\"Parish Share\",Descriptions!I81,0)","v":0},0,0,0,0,0,0,0,0,0,0,0,0,0,0,0,0,0,0,0,0,0,null,{"$f":"IF(Descriptions!K81=\"Parish Share\",Descriptions!AB81,0)","v":0},{"$f":"IF([1]Descriptions!K79=\"Parish Share\",[1]Descriptions!I79,0)","v":0},"0General Account"]
[{"$f":"IF(Descriptions!K82=\"Parish Share\",Descriptions!I82,0)","v":0},0,0,0,0,0,0,0,0,0,0,0,0,0,0,0,0,0,0,0,0,0,null,{"$f":"IF(Descriptions!K82=\"Parish Share\",Descriptions!AB82,0)","v":0},{"$f":"IF([1]Descriptions!K80=\"Parish Share\",[1]Descriptions!I80,0)","v":0},"0General Account"]
[{"$f":"IF(Descriptions!K83=\"Parish Share\",Descriptions!I83,0)","v":0},0,0,0,0,0,0,0,0,0,0,0,0,0,0,0,0,0,0,0,0,0,null,{"$f":"IF(Descriptions!K83=\"Parish Share\",Descriptions!AB83,0)","v":0},{"$f":"IF([1]Descriptions!K81=\"Parish Share\",[1]Descriptions!I81,0)","v":0},"0General Account"]
[{"$f":"IF(Descriptions!K84=\"Parish Share\",Descriptions!I84,0)","v":0},0,0,0,0,0,0,0,0,0,0,0,0,0,0,0,0,0,0,0,0,0,null,{"$f":"IF(Descriptions!K84=\"Parish Share\",Descriptions!AB84,0)","v":0},{"$f":"IF([1]Descriptions!K82=\"Parish Share\",[1]Descriptions!I82,0)","v":0},"0General Account"]
[null,{"$f":"SUM(B569:B619)","v":0},0,0,0,0,0,0,0,0,0,0,0,0,0,0,0,0,0,0,0,0,null,1]
["CLERGY AND STAFFING COSTS",null,null,null,null,null,null,null,null,null,null,null,null,null,null,null,null,null,null,null,null,null,null,{"$f":"SUM(X622:X674)","v":0}]
["Administrator Parish/Benefice",0,0,0,0,0,0,0,0,0,0,0,0,0,0,0,0,0,0,0,0,0,null,{"$f":"Descriptions!AB6","v":0},{"$f":"[1]Descriptions!I4","v":"Administrator Parish/Benefice"},{"$f":"CONCATENATE(Y622,$Y$3)","v":"Administrator Parish/BeneficeGeneral Account"}]
["Clergy Expenses",0,0,0,0,0,0,0,0,0,0,0,0,0,0,0,0,0,0,0,0,0,null,{"$f":"Descriptions!AB15","v":0},{"$f":"[1]Descriptions!I13","v":"Clergy Expenses"},{"$f":"CONCATENATE(Y623,$Y$3)","v":"Clergy ExpensesGeneral Account"}]
["Salaries",0,0,0,0,0,0,0,0,0,0,0,0,0,0,0,0,0,0,0,0,0,null,{"$f":"Descriptions!AB26","v":0},{"$f":"[1]Descriptions!I24","v":"Salaries"},{"$f":"CONCATENATE(Y624,$Y$3)","v":"SalariesGeneral Account"}]
[{"$f":"IF(Descriptions!K35=\"Clergy and Staffing Costs\",Descriptions!I35,0)","v":0},0,0,0,0,0,0,0,0,0,0,0,0,0,0,0,0,0,0,0,0,0,null,{"$f":"IF(Descriptions!K35=\"Clergy and Staffing Costs\",Descriptions!AB35,0)","v":0},{"$f":"IF([1]Descriptions!K33=\"Clergy and Staffing Costs\",[1]Descriptions!I33,0)","v":0},{"$f":"CONCATENATE(Y625,$Y$3)","v":"0General Account"}]
[{"$f":"IF(Descriptions!K36=\"Clergy and Staffing Costs\",Descriptions!I36,0)","v":0},0,0,0,0,0,0,0,0,0,0,0,0,0,0,0,0,0,0,0,0,0,null,{"$f":"IF(Descriptions!K36=\"Clergy and Staffing Costs\",Descriptions!AB36,0)","v":0},{"$f":"IF([1]Descriptions!K34=\"Clergy and Staffing Costs\",[1]Descriptions!I34,0)","v":0},{"$f":"CONCATENATE(Y626,$Y$3)","v":"0General Account"}]
[{"$f":"IF(Descriptions!K37=\"Clergy and Staffing Costs\",Descriptions!I37,0)","v":0},0,0,0,0,0,0,0,0,0,0,0,0,0,0,0,0,0,0,0,0,0,null,{"$f":"IF(Descriptions!K37=\"Clergy and Staffing Costs\",Descriptions!AB37,0)","v":0},{"$f":"IF([1]Descriptions!K35=\"Clergy and Staffing Costs\",[1]Descriptions!I35,0)","v":0},"0General Account"]
[{"$f":"IF(Descriptions!K38=\"Clergy and Staffing Costs\",Descriptions!I38,0)","v":0},0,0,0,0,0,0,0,0,0,0,0,0,0,0,0,0,0,0,0,0,0,null,{"$f":"IF(Descriptions!K38=\"Clergy and Staffing Costs\",Descriptions!AB38,0)","v":0},{"$f":"IF([1]Descriptions!K36=\"Clergy and Staffing Costs\",[1]Descriptions!I36,0)","v":0},"0General Account"]
[{"$f":"IF(Descriptions!K39=\"Clergy and Staffing Costs\",Descriptions!I39,0)","v":0},0,0,0,0,0,0,0,0,0,0,0,0,0,0,0,0,0,0,0,0,0,null,{"$f":"IF(Descriptions!K39=\"Clergy and Staffing Costs\",Descriptions!AB39,0)","v":0},{"$f":"IF([1]Descriptions!K37=\"Clergy and Staffing Costs\",[1]Descriptions!I37,0)","v":0},"0General Account"]
[{"$f":"IF(Descriptions!K40=\"Clergy and Staffing Costs\",Descriptions!I40,0)","v":0},0,0,0,0,0,0,0,0,0,0,0,0,0,0,0,0,0,0,0,0,0,null,{"$f":"IF(Descriptions!K40=\"Clergy and Staffing Costs\",Descriptions!AB40,0)","v":0},{"$f":"IF([1]Descriptions!K38=\"Clergy and Staffing Costs\",[1]Descriptions!I38,0)","v":0},"0General Account"]
[{"$f":"IF(Descriptions!K41=\"Clergy and Staffing Costs\",Descriptions!I41,0)","v":0},0,0,0,0,0,0,0,0,0,0,0,0,0,0,0,0,0,0,0,0,0,null,{"$f":"IF(Descriptions!K41=\"Clergy and Staffing Costs\",Descriptions!AB41,0)","v":0},{"$f":"IF([1]Descriptions!K39=\"Clergy and Staffing Costs\",[1]Descriptions!I39,0)","v":0},"0General Account"]
[{"$f":"IF(Descriptions!K42=\"Clergy and Staffing Costs\",Descriptions!I42,0)","v":0},0,0,0,0,0,0,0,0,0,0,0,0,0,0,0,0,0,0,0,0,0,null,{"$f":"IF(Descriptions!K42=\"Clergy and Staffing Costs\",Descriptions!AB42,0)","v":0},{"$f":"IF([1]Descriptions!K40=\"Clergy and Staffing Costs\",[1]Descriptions!I40,0)","v":0},"0General Account"]
[{"$f":"IF(Descriptions!K43=\"Clergy and Staffing Costs\",Descriptions!I43,0)","v":0},0,0,0,0,0,0,0,0,0,0,0,0,0,0,0,0,0,0,0,0,0,null,{"$f":"IF(Descriptions!K43=\"Clergy and Staffing Costs\",Descriptions!AB43,0)","v":0},{"$f":"IF([1]Descriptions!K41=\"Clergy and Staffing Costs\",[1]Descriptions!I41,0)","v":0},"0General Account"]
[{"$f":"IF(Descriptions!K44=\"Clergy and Staffing Costs\",Descriptions!I44,0)","v":0},0,0,0,0,0,0,0,0,0,0,0,0,0,0,0,0,0,0,0,0,0,null,{"$f":"IF(Descriptions!K44=\"Clergy and Staffing Costs\",Descriptions!AB44,0)","v":0},{"$f":"IF([1]Descriptions!K42=\"Clergy and Staffing Costs\",[1]Descriptions!I42,0)","v":0},"0General Account"]
[{"$f":"IF(Descriptions!K45=\"Clergy and Staffing Costs\",Descriptions!I45,0)","v":0},0,0,0,0,0,0,0,0,0,0,0,0,0,0,0,0,0,0,0,0,0,null,{"$f":"IF(Descriptions!K45=\"Clergy and Staffing Costs\",Descriptions!AB45,0)","v":0},{"$f":"IF([1]Descriptions!K43=\"Clergy and Staffing Costs\",[1]Descriptions!I43,0)","v":0},"0General Account"]
[{"$f":"IF(Descriptions!K46=\"Clergy and Staffing Costs\",Descriptions!I46,0)","v":0},0,0,0,0,0,0,0,0,0,0,0,0,0,0,0,0,0,0,0,0,0,null,{"$f":"IF(Descriptions!K46=\"Clergy and Staffing Costs\",Descriptions!AB46,0)","v":0},{"$f":"IF([1]Descriptions!K44=\"Clergy and Staffing Costs\",[1]Descriptions!I44,0)","v":0},"0General Account"]
[{"$f":"IF(Descriptions!K47=\"Clergy and Staffing Costs\",Descriptions!I47,0)","v":0},0,0,0,0,0,0,0,0,0,0,0,0,0,0,0,0,0,0,0,0,0,null,{"$f":"IF(Descriptions!K47=\"Clergy and Staffing Costs\",Descriptions!AB47,0)","v":0},{"$f":"IF([1]Descriptions!K45=\"Clergy and Staffing Costs\",[1]Descriptions!I45,0)","v":0},"0General Account"]
[{"$f":"IF(Descriptions!K48=\"Clergy and Staffing Costs\",Descriptions!I48,0)","v":0},0,0,0,0,0,0,0,0,0,0,0,0,0,0,0,0,0,0,0,0,0,null,{"$f":"IF(Descriptions!K48=\"Clergy and Staffing Costs\",Descriptions!AB48,0)","v":0},{"$f":"IF([1]Descriptions!K46=\"Clergy and Staffing Costs\",[1]Descriptions!I46,0)","v":0},"0General Account"]
[{"$f":"IF(Descriptions!K49=\"Clergy and Staffing Costs\",Descriptions!I49,0)","v":0},0,0,0,0,0,0,0,0,0,0,0,0,0,0,0,0,0,0,0,0,0,null,{"$f":"IF(Descriptions!K49=\"Clergy and Staffing Costs\",Descriptions!AB49,0)","v":0},{"$f":"IF([1]Descriptions!K47=\"Clergy and Staffing Costs\",[1]Descriptions!I47,0)","v":0},"0General Account"]
[{"$f":"IF(Descriptions!K50=\"Clergy and Staffing Costs\",Descriptions!I50,0)","v":0},0,0,0,0,0,0,0,0,0,0,0,0,0,0,0,0,0,0,0,0,0,null,{"$f":"IF(Descriptions!K50=\"Clergy and Staffing Costs\",Descriptions!AB50,0)","v":0},{"$f":"IF([1]Descriptions!K48=\"Clergy and Staffing Costs\",[1]Descriptions!I48,0)","v":0},"0General Account"]
[{"$f":"IF(Descriptions!K51=\"Clergy and Staffing Costs\",Descriptions!I51,0)","v":0},0,0,0,0,0,0,0,0,0,0,0,0,0,0,0,0,0,0,0,0,0,null,{"$f":"IF(Descriptions!K51=\"Clergy and Staffing Costs\",Descriptions!AB51,0)","v":0},{"$f":"IF([1]Descriptions!K49=\"Clergy and Staffing Costs\",[1]Descriptions!I49,0)","v":0},"0General Account"]
[{"$f":"IF(Descriptions!K52=\"Clergy and Staffing Costs\",Descriptions!I52,0)","v":0},0,0,0,0,0,0,0,0,0,0,0,0,0,0,0,0,0,0,0,0,0,null,{"$f":"IF(Descriptions!K52=\"Clergy and Staffing Costs\",Descriptions!AB52,0)","v":0},{"$f":"IF([1]Descriptions!K50=\"Clergy and Staffing Costs\",[1]Descriptions!I50,0)","v":0},"0General Account"]
[{"$f":"IF(Descriptions!K53=\"Clergy and Staffing Costs\",Descriptions!I53,0)","v":0},0,0,0,0,0,0,0,0,0,0,0,0,0,0,0,0,0,0,0,0,0,null,{"$f":"IF(Descriptions!K53=\"Clergy and Staffing Costs\",Descriptions!AB53,0)","v":0},{"$f":"IF([1]Descriptions!K51=\"Clergy and Staffing Costs\",[1]Descriptions!I51,0)","v":0},"0General Account"]
[{"$f":"IF(Descriptions!K54=\"Clergy and Staffing Costs\",Descriptions!I54,0)","v":0},0,0,0,0,0,0,0,0,0,0,0,0,0,0,0,0,0,0,0,0,0,null,{"$f":"IF(Descriptions!K54=\"Clergy and Staffing Costs\",Descriptions!AB54,0)","v":0},{"$f":"IF([1]Descriptions!K52=\"Clergy and Staffing Costs\",[1]Descriptions!I52,0)","v":0},"0General Account"]
[{"$f":"IF(Descriptions!K55=\"Clergy and Staffing Costs\",Descriptions!I55,0)","v":0},0,0,0,0,0,0,0,0,0,0,0,0,0,0,0,0,0,0,0,0,0,null,{"$f":"IF(Descriptions!K55=\"Clergy and Staffing Costs\",Descriptions!AB55,0)","v":0},{"$f":"IF([1]Descriptions!K53=\"Clergy and Staffing Costs\",[1]Descriptions!I53,0)","v":0},"0General Account"]
[{"$f":"IF(Descriptions!K56=\"Clergy and Staffing Costs\",Descriptions!I56,0)","v":0},0,0,0,0,0,0,0,0,0,0,0,0,0,0,0,0,0,0,0,0,0,null,{"$f":"IF(Descriptions!K56=\"Clergy and Staffing Costs\",Descriptions!AB56,0)","v":0},{"$f":"IF([1]Descriptions!K54=\"Clergy and Staffing Costs\",[1]Descriptions!I54,0)","v":0},"0General Account"]
[{"$f":"IF(Descriptions!K57=\"Clergy and Staffing Costs\",Descriptions!I57,0)","v":0},0,0,0,0,0,0,0,0,0,0,0,0,0,0,0,0,0,0,0,0,0,null,{"$f":"IF(Descriptions!K57=\"Clergy and Staffing Costs\",Descriptions!AB57,0)","v":0},{"$f":"IF([1]Descriptions!K55=\"Clergy and Staffing Costs\",[1]Descriptions!I55,0)","v":0},"0General Account"]
[{"$f":"IF(Descriptions!K58=\"Clergy and Staffing Costs\",Descriptions!I58,0)","v":0},0,0,0,0,0,0,0,0,0,0,0,0,0,0,0,0,0,0,0,0,0,null,{"$f":"IF(Descriptions!K58=\"Clergy and Staffing Costs\",Descriptions!AB58,0)","v":0},{"$f":"IF([1]Descriptions!K56=\"Clergy and Staffing Costs\",[1]Descriptions!I56,0)","v":0},"0General Account"]
[{"$f":"IF(Descriptions!K59=\"Clergy and Staffing Costs\",Descriptions!I59,0)","v":0},0,0,0,0,0,0,0,0,0,0,0,0,0,0,0,0,0,0,0,0,0,null,{"$f":"IF(Descriptions!K59=\"Clergy and Staffing Costs\",Descriptions!AB59,0)","v":0},{"$f":"IF([1]Descriptions!K57=\"Clergy and Staffing Costs\",[1]Descriptions!I57,0)","v":0},"0General Account"]
[{"$f":"IF(Descriptions!K60=\"Clergy and Staffing Costs\",Descriptions!I60,0)","v":0},0,0,0,0,0,0,0,0,0,0,0,0,0,0,0,0,0,0,0,0,0,null,{"$f":"IF(Descriptions!K60=\"Clergy and Staffing Costs\",Descriptions!AB60,0)","v":0},{"$f":"IF([1]Descriptions!K58=\"Clergy and Staffing Costs\",[1]Descriptions!I58,0)","v":0},"0General Account"]
[{"$f":"IF(Descriptions!K61=\"Clergy and Staffing Costs\",Descriptions!I61,0)","v":0},0,0,0,0,0,0,0,0,0,0,0,0,0,0,0,0,0,0,0,0,0,null,{"$f":"IF(Descriptions!K61=\"Clergy and Staffing Costs\",Descriptions!AB61,0)","v":0},{"$f":"IF([1]Descriptions!K59=\"Clergy and Staffing Costs\",[1]Descriptions!I59,0)","v":0},"0General Account"]
[{"$f":"IF(Descriptions!K62=\"Clergy and Staffing Costs\",Descriptions!I62,0)","v":0},0,0,0,0,0,0,0,0,0,0,0,0,0,0,0,0,0,0,0,0,0,null,{"$f":"IF(Descriptions!K62=\"Clergy and Staffing Costs\",Descriptions!AB62,0)","v":0},{"$f":"IF([1]Descriptions!K60=\"Clergy and Staffing Costs\",[1]Descriptions!I60,0)","v":0},"0General Account"]
[{"$f":"IF(Descriptions!K63=\"Clergy and Staffing Costs\",Descriptions!I63,0)","v":0},0,0,0,0,0,0,0,0,0,0,0,0,0,0,0,0,0,0,0,0,0,null,{"$f":"IF(Descriptions!K63=\"Clergy and Staffing Costs\",Descriptions!AB63,0)","v":0},{"$f":"IF([1]Descriptions!K61=\"Clergy and Staffing Costs\",[1]Descriptions!I61,0)","v":0},"0General Account"]
[{"$f":"IF(Descriptions!K64=\"Clergy and Staffing Costs\",Descriptions!I64,0)","v":0},0,0,0,0,0,0,0,0,0,0,0,0,0,0,0,0,0,0,0,0,0,null,{"$f":"IF(Descriptions!K64=\"Clergy and Staffing Costs\",Descriptions!AB64,0)","v":0},{"$f":"IF([1]Descriptions!K62=\"Clergy and Staffing Costs\",[1]Descriptions!I62,0)","v":0},"0General Account"]
[{"$f":"IF(Descriptions!K65=\"Clergy and Staffing Costs\",Descriptions!I65,0)","v":0},0,0,0,0,0,0,0,0,0,0,0,0,0,0,0,0,0,0,0,0,0,null,{"$f":"IF(Descriptions!K65=\"Clergy and Staffing Costs\",Descriptions!AB65,0)","v":0},{"$f":"IF([1]Descriptions!K63=\"Clergy and Staffing Costs\",[1]Descriptions!I63,0)","v":0},"0General Account"]
[{"$f":"IF(Descriptions!K66=\"Clergy and Staffing Costs\",Descriptions!I66,0)","v":0},0,0,0,0,0,0,0,0,0,0,0,0,0,0,0,0,0,0,0,0,0,null,{"$f":"IF(Descriptions!K66=\"Clergy and Staffing Costs\",Descriptions!AB66,0)","v":0},{"$f":"IF([1]Descriptions!K64=\"Clergy and Staffing Costs\",[1]Descriptions!I64,0)","v":0},"0General Account"]
[{"$f":"IF(Descriptions!K67=\"Clergy and Staffing Costs\",Descriptions!I67,0)","v":0},0,0,0,0,0,0,0,0,0,0,0,0,0,0,0,0,0,0,0,0,0,null,{"$f":"IF(Descriptions!K67=\"Clergy and Staffing Costs\",Descriptions!AB67,0)","v":0},{"$f":"IF([1]Descriptions!K65=\"Clergy and Staffing Costs\",[1]Descriptions!I65,0)","v":0},"0General Account"]
[{"$f":"IF(Descriptions!K68=\"Clergy and Staffing Costs\",Descriptions!I68,0)","v":0},0,0,0,0,0,0,0,0,0,0,0,0,0,0,0,0,0,0,0,0,0,null,{"$f":"IF(Descriptions!K68=\"Clergy and Staffing Costs\",Descriptions!AB68,0)","v":0},{"$f":"IF([1]Descriptions!K66=\"Clergy and Staffing Costs\",[1]Descriptions!I66,0)","v":0},"0General Account"]
[{"$f":"IF(Descriptions!K69=\"Clergy and Staffing Costs\",Descriptions!I69,0)","v":0},0,0,0,0,0,0,0,0,0,0,0,0,0,0,0,0,0,0,0,0,0,null,{"$f":"IF(Descriptions!K69=\"Clergy and Staffing Costs\",Descriptions!AB69,0)","v":0},{"$f":"IF([1]Descriptions!K67=\"Clergy and Staffing Costs\",[1]Descriptions!I67,0)","v":0},"0General Account"]
[{"$f":"IF(Descriptions!K70=\"Clergy and Staffing Costs\",Descriptions!I70,0)","v":0},0,0,0,0,0,0,0,0,0,0,0,0,0,0,0,0,0,0,0,0,0,null,{"$f":"IF(Descriptions!K70=\"Clergy and Staffing Costs\",Descriptions!AB70,0)","v":0},{"$f":"IF([1]Descriptions!K68=\"Clergy and Staffing Costs\",[1]Descriptions!I68,0)","v":0},"0General Account"]
[{"$f":"IF(Descriptions!K71=\"Clergy and Staffing Costs\",Descriptions!I71,0)","v":0},0,0,0,0,0,0,0,0,0,0,0,0,0,0,0,0,0,0,0,0,0,null,{"$f":"IF(Descriptions!K71=\"Clergy and Staffing Costs\",Descriptions!AB71,0)","v":0},{"$f":"IF([1]Descriptions!K69=\"Clergy and Staffing Costs\",[1]Descriptions!I69,0)","v":0},"0General Account"]
[{"$f":"IF(Descriptions!K72=\"Clergy and Staffing Costs\",Descriptions!I72,0)","v":0},0,0,0,0,0,0,0,0,0,0,0,0,0,0,0,0,0,0,0,0,0,null,{"$f":"IF(Descriptions!K72=\"Clergy and Staffing Costs\",Descriptions!AB72,0)","v":0},{"$f":"IF([1]Descriptions!K70=\"Clergy and Staffing Costs\",[1]Descriptions!I70,0)","v":0},"0General Account"]
[{"$f":"IF(Descriptions!K73=\"Clergy and Staffing Costs\",Descriptions!I73,0)","v":0},0,0,0,0,0,0,0,0,0,0,0,0,0,0,0,0,0,0,0,0,0,null,{"$f":"IF(Descriptions!K73=\"Clergy and Staffing Costs\",Descriptions!AB73,0)","v":0},{"$f":"IF([1]Descriptions!K71=\"Clergy and Staffing Costs\",[1]Descriptions!I71,0)","v":0},"0General Account"]
[{"$f":"IF(Descriptions!K74=\"Clergy and Staffing Costs\",Descriptions!I74,0)","v":0},0,0,0,0,0,0,0,0,0,0,0,0,0,0,0,0,0,0,0,0,0,null,{"$f":"IF(Descriptions!K74=\"Clergy and Staffing Costs\",Descriptions!AB74,0)","v":0},{"$f":"IF([1]Descriptions!K72=\"Clergy and Staffing Costs\",[1]Descriptions!I72,0)","v":0},"0General Account"]
[{"$f":"IF(Descriptions!K75=\"Clergy and Staffing Costs\",Descriptions!I75,0)","v":0},0,0,0,0,0,0,0,0,0,0,0,0,0,0,0,0,0,0,0,0,0,null,{"$f":"IF(Descriptions!K75=\"Clergy and Staffing Costs\",Descriptions!AB75,0)","v":0},{"$f":"IF([1]Descriptions!K73=\"Clergy and Staffing Costs\",[1]Descriptions!I73,0)","v":0},"0General Account"]
[{"$f":"IF(Descriptions!K76=\"Clergy and Staffing Costs\",Descriptions!I76,0)","v":0},0,0,0,0,0,0,0,0,0,0,0,0,0,0,0,0,0,0,0,0,0,null,{"$f":"IF(Descriptions!K76=\"Clergy and Staffing Costs\",Descriptions!AB76,0)","v":0},{"$f":"IF([1]Descriptions!K74=\"Clergy and Staffing Costs\",[1]Descriptions!I74,0)","v":0},"0General Account"]
[{"$f":"IF(Descriptions!K77=\"Clergy and Staffing Costs\",Descriptions!I77,0)","v":0},0,0,0,0,0,0,0,0,0,0,0,0,0,0,0,0,0,0,0,0,0,null,{"$f":"IF(Descriptions!K77=\"Clergy and Staffing Costs\",Descriptions!AB77,0)","v":0},{"$f":"IF([1]Descriptions!K75=\"Clergy and Staffing Costs\",[1]Descriptions!I75,0)","v":0},"0General Account"]
[{"$f":"IF(Descriptions!K78=\"Clergy and Staffing Costs\",Descriptions!I78,0)","v":0},0,0,0,0,0,0,0,0,0,0,0,0,0,0,0,0,0,0,0,0,0,null,{"$f":"IF(Descriptions!K78=\"Clergy and Staffing Costs\",Descriptions!AB78,0)","v":0},{"$f":"IF([1]Descriptions!K76=\"Clergy and Staffing Costs\",[1]Descriptions!I76,0)","v":0},"0General Account"]
[{"$f":"IF(Descriptions!K79=\"Clergy and Staffing Costs\",Descriptions!I79,0)","v":0},0,0,0,0,0,0,0,0,0,0,0,0,0,0,0,0,0,0,0,0,0,null,{"$f":"IF(Descriptions!K79=\"Clergy and Staffing Costs\",Descriptions!AB79,0)","v":0},{"$f":"IF([1]Descriptions!K77=\"Clergy and Staffing Costs\",[1]Descriptions!I77,0)","v":0},"0General Account"]
[{"$f":"IF(Descriptions!K80=\"Clergy and Staffing Costs\",Descriptions!I80,0)","v":0},0,0,0,0,0,0,0,0,0,0,0,0,0,0,0,0,0,0,0,0,0,null,{"$f":"IF(Descriptions!K80=\"Clergy and Staffing Costs\",Descriptions!AB80,0)","v":0},{"$f":"IF([1]Descriptions!K78=\"Clergy and Staffing Costs\",[1]Descriptions!I78,0)","v":0},"0General Account"]
[{"$f":"IF(Descriptions!K81=\"Clergy and Staffing Costs\",Descriptions!I81,0)","v":0},0,0,0,0,0,0,0,0,0,0,0,0,0,0,0,0,0,0,0,0,0,null,{"$f":"IF(Descriptions!K81=\"Clergy and Staffing Costs\",Descriptions!AB81,0)","v":0},{"$f":"IF([1]Descriptions!K79=\"Clergy and Staffing Costs\",[1]Descriptions!I79,0)","v":0},"0General Account"]
[{"$f":"IF(Descriptions!K82=\"Clergy and Staffing Costs\",Descriptions!I82,0)","v":0},0,0,0,0,0,0,0,0,0,0,0,0,0,0,0,0,0,0,0,0,0,null,{"$f":"IF(Descriptions!K82=\"Clergy and Staffing Costs\",Descriptions!AB82,0)","v":0},{"$f":"IF([1]Descriptions!K80=\"Clergy and Staffing Costs\",[1]Descriptions!I80,0)","v":0},"0General Account"]
[{"$f":"IF(Descriptions!K83=\"Clergy and Staffing Costs\",Descriptions!I83,0)","v":0},0,0,0,0,0,0,0,0,0,0,0,0,0,0,0,0,0,0,0,0,0,null,{"$f":"IF(Descriptions!K83=\"Clergy and Staffing Costs\",Descriptions!AB83,0)","v":0},{"$f":"IF([1]Descriptions!K81=\"Clergy and Staffing Costs\",[1]Descriptions!I81,0)","v":0},"0General Account"]
[{"$f":"IF(Descriptions!K84=\"Clergy and Staffing Costs\",Descriptions!I84,0)","v":0},0,0,0,0,0,0,0,0,0,0,0,0,0,0,0,0,0,0,0,0,0,null,{"$f":"IF(Descriptions!K84=\"Clergy and Staffing Costs\",Descriptions!AB84,0)","v":0},{"$f":"IF([1]Descriptions!K82=\"Clergy and Staffing Costs\",[1]Descriptions!I82,0)","v":0},"0General Account"]
[null,{"$f":"SUM(B622:B674)","v":0},0,0,0,0,0,0,0,0,0,0,0,0,0,0,0,0,0,0,0,0,null,{"$f":"X621","v":0}]
["CHURCH RUNNING EXPENSES",null,null,null,null,null,null,null,null,null,null,null,null,null,null,null,null,null,null,null,null,null,null,{"$f":"SUM(X677:X732)","v":0}]
["Cleaning",0,0,0,0,0,0,0,0,0,0,0,0,0,0,0,0,0,0,0,0,0,null,{"$f":"Descriptions!AB14","v":0},{"$f":"[1]Descriptions!I12","v":"Cleaning"},{"$f":"CONCATENATE(Y677,$Y$3)","v":"CleaningGeneral Account"}]
["Gas and Electricity Bill",0,0,0,0,0,0,0,0,0,0,0,0,0,0,0,0,0,0,0,0,0,null,{"$f":"Descriptions!AB18","v":0},{"$f":"[1]Descriptions!I16","v":"Gas and Electricity Bill"},"Gas and Electricity BillGeneral Account"]
["Insurance",0,0,0,0,0,0,0,0,0,0,0,0,0,0,0,0,0,0,0,0,0,null,{"$f":"Descriptions!AB20","v":0},{"$f":"[1]Descriptions!I18","v":"Insurance"},"InsuranceGeneral Account"]
["Service Costs",0,0,0,0,0,0,0,0,0,0,0,0,0,0,0,0,0,0,0,0,0,null,{"$f":"Descriptions!AB27","v":0},{"$f":"[1]Descriptions!I25","v":"Service Costs"},"Service CostsGeneral Account"]
["Maintenance",0,0,0,0,0,0,0,0,0,0,0,0,0,0,0,0,0,0,0,0,0,null,{"$f":"Descriptions!AB21","v":0},{"$f":"[1]Descriptions!I19","v":"Maintenance"},"MaintenanceGeneral Account"]
["Water Bill",0,0,0,0,0,0,0,0,0,0,0,0,0,0,0,0,0,0,0,0,0,null,{"$f":"Descriptions!AB34","v":0},{"$f":"[1]Descriptions!I32","v":"Water Bill"},"Water BillGeneral Account"]
[{"$f":"IF(Descriptions!K35=\"Church Running Expenses\",Descriptions!I35,0)","v":0},0,0,0,0,0,0,0,0,0,0,0,0,0,0,0,0,0,0,0,0,0,null,{"$f":"IF(Descriptions!K35=\"Church Running Expenses\",Descriptions!AB35,0)","v":0},{"$f":"IF([1]Descriptions!K33=\"Church Running Expenses\",[1]Descriptions!I33,0)","v":0},"0General Account"]
[{"$f":"IF(Descriptions!K36=\"Church Running Expenses\",Descriptions!I36,0)","v":0},0,0,0,0,0,0,0,0,0,0,0,0,0,0,0,0,0,0,0,0,0,null,{"$f":"IF(Descriptions!K36=\"Church Running Expenses\",Descriptions!AB36,0)","v":0},{"$f":"IF([1]Descriptions!K34=\"Church Running Expenses\",[1]Descriptions!I34,0)","v":0},"0General Account"]
[{"$f":"IF(Descriptions!K37=\"Church Running Expenses\",Descriptions!I37,0)","v":0},0,0,0,0,0,0,0,0,0,0,0,0,0,0,0,0,0,0,0,0,0,null,{"$f":"IF(Descriptions!K37=\"Church Running Expenses\",Descriptions!AB37,0)","v":0},{"$f":"IF([1]Descriptions!K35=\"Church Running Expenses\",[1]Descriptions!I35,0)","v":0},"0General Account"]
[{"$f":"IF(Descriptions!K38=\"Church Running Expenses\",Descriptions!I38,0)","v":0},0,0,0,0,0,0,0,0,0,0,0,0,0,0,0,0,0,0,0,0,0,null,{"$f":"IF(Descriptions!K38=\"Church Running Expenses\",Descriptions!AB38,0)","v":0},{"$f":"IF([1]Descriptions!K36=\"Church Running Expenses\",[1]Descriptions!I36,0)","v":0},"0General Account"]
[{"$f":"IF(Descriptions!K39=\"Church Running Expenses\",Descriptions!I39,0)","v":0},0,0,0,0,0,0,0,0,0,0,0,0,0,0,0,0,0,0,0,0,0,null,{"$f":"IF(Descriptions!K39=\"Church Running Expenses\",Descriptions!AB39,0)","v":0},{"$f":"IF([1]Descriptions!K37=\"Church Running Expenses\",[1]Descriptions!I37,0)","v":0},"0General Account"]
[{"$f":"IF(Descriptions!K40=\"Church Running Expenses\",Descriptions!I40,0)","v":0},0,0,0,0,0,0,0,0,0,0,0,0,0,0,0,0,0,0,0,0,0,null,{"$f":"IF(Descriptions!K40=\"Church Running Expenses\",Descriptions!AB40,0)","v":0},{"$f":"IF([1]Descriptions!K38=\"Church Running Expenses\",[1]Descriptions!I38,0)","v":0},"0General Account"]
[{"$f":"IF(Descriptions!K41=\"Church Running Expenses\",Descriptions!I41,0)","v":0},0,0,0,0,0,0,0,0,0,0,0,0,0,0,0,0,0,0,0,0,0,null,{"$f":"IF(Descriptions!K41=\"Church Running Expenses\",Descriptions!AB41,0)","v":0},{"$f":"IF([1]Descriptions!K39=\"Church Running Expenses\",[1]Descriptions!I39,0)","v":0},"0General Account"]
[{"$f":"IF(Descriptions!K42=\"Church Running Expenses\",Descriptions!I42,0)","v":0},0,0,0,0,0,0,0,0,0,0,0,0,0,0,0,0,0,0,0,0,0,null,{"$f":"IF(Descriptions!K42=\"Church Running Expenses\",Descriptions!AB42,0)","v":0},{"$f":"IF([1]Descriptions!K40=\"Church Running Expenses\",[1]Descriptions!I40,0)","v":0},"0General Account"]
[{"$f":"IF(Descriptions!K43=\"Church Running Expenses\",Descriptions!I43,0)","v":0},0,0,0,0,0,0,0,0,0,0,0,0,0,0,0,0,0,0,0,0,0,null,{"$f":"IF(Descriptions!K43=\"Church Running Expenses\",Descriptions!AB43,0)","v":0},{"$f":"IF([1]Descriptions!K41=\"Church Running Expenses\",[1]Descriptions!I41,0)","v":0},"0General Account"]
[{"$f":"IF(Descriptions!K44=\"Church Running Expenses\",Descriptions!I44,0)","v":0},0,0,0,0,0,0,0,0,0,0,0,0,0,0,0,0,0,0,0,0,0,null,{"$f":"IF(Descriptions!K44=\"Church Running Expenses\",Descriptions!AB44,0)","v":0},{"$f":"IF([1]Descriptions!K42=\"Church Running Expenses\",[1]Descriptions!I42,0)","v":0},"0General Account"]
[{"$f":"IF(Descriptions!K45=\"Church Running Expenses\",Descriptions!I45,0)","v":0},0,0,0,0,0,0,0,0,0,0,0,0,0,0,0,0,0,0,0,0,0,null,{"$f":"IF(Descriptions!K45=\"Church Running Expenses\",Descriptions!AB45,0)","v":0},{"$f":"IF([1]Descriptions!K43=\"Church Running Expenses\",[1]Descriptions!I43,0)","v":0},"0General Account"]
[{"$f":"IF(Descriptions!K46=\"Church Running Expenses\",Descriptions!I46,0)","v":0},0,0,0,0,0,0,0,0,0,0,0,0,0,0,0,0,0,0,0,0,0,null,{"$f":"IF(Descriptions!K46=\"Church Running Expenses\",Descriptions!AB46,0)","v":0},{"$f":"IF([1]Descriptions!K44=\"Church Running Expenses\",[1]Descriptions!I44,0)","v":0},"0General Account"]
[{"$f":"IF(Descriptions!K47=\"Church Running Expenses\",Descriptions!I47,0)","v":0},0,0,0,0,0,0,0,0,0,0,0,0,0,0,0,0,0,0,0,0,0,null,{"$f":"IF(Descriptions!K47=\"Church Running Expenses\",Descriptions!AB47,0)","v":0},{"$f":"IF([1]Descriptions!K45=\"Church Running Expenses\",[1]Descriptions!I45,0)","v":0},"0General Account"]
[{"$f":"IF(Descriptions!K48=\"Church Running Expenses\",Descriptions!I48,0)","v":0},0,0,0,0,0,0,0,0,0,0,0,0,0,0,0,0,0,0,0,0,0,null,{"$f":"IF(Descriptions!K48=\"Church Running Expenses\",Descriptions!AB48,0)","v":0},{"$f":"IF([1]Descriptions!K46=\"Church Running Expenses\",[1]Descriptions!I46,0)","v":0},"0General Account"]
[{"$f":"IF(Descriptions!K49=\"Church Running Expenses\",Descriptions!I49,0)","v":0},0,0,0,0,0,0,0,0,0,0,0,0,0,0,0,0,0,0,0,0,0,null,{"$f":"IF(Descriptions!K49=\"Church Running Expenses\",Descriptions!AB49,0)","v":0},{"$f":"IF([1]Descriptions!K47=\"Church Running Expenses\",[1]Descriptions!I47,0)","v":0},"0General Account"]
[{"$f":"IF(Descriptions!K50=\"Church Running Expenses\",Descriptions!I50,0)","v":0},0,0,0,0,0,0,0,0,0,0,0,0,0,0,0,0,0,0,0,0,0,null,{"$f":"IF(Descriptions!K50=\"Church Running Expenses\",Descriptions!AB50,0)","v":0},{"$f":"IF([1]Descriptions!K48=\"Church Running Expenses\",[1]Descriptions!I48,0)","v":0},"0General Account"]
[{"$f":"IF(Descriptions!K51=\"Church Running Expenses\",Descriptions!I51,0)","v":0},0,0,0,0,0,0,0,0,0,0,0,0,0,0,0,0,0,0,0,0,0,null,{"$f":"IF(Descriptions!K51=\"Church Running Expenses\",Descriptions!AB51,0)","v":0},{"$f":"IF([1]Descriptions!K49=\"Church Running Expenses\",[1]Descriptions!I49,0)","v":0},"0General Account"]
[{"$f":"IF(Descriptions!K52=\"Church Running Expenses\",Descriptions!I52,0)","v":0},0,0,0,0,0,0,0,0,0,0,0,0,0,0,0,0,0,0,0,0,0,null,{"$f":"IF(Descriptions!K52=\"Church Running Expenses\",Descriptions!AB52,0)","v":0},{"$f":"IF([1]Descriptions!K50=\"Church Running Expenses\",[1]Descriptions!I50,0)","v":0},"0General Account"]
[{"$f":"IF(Descriptions!K53=\"Church Running Expenses\",Descriptions!I53,0)","v":0},0,0,0,0,0,0,0,0,0,0,0,0,0,0,0,0,0,0,0,0,0,null,{"$f":"IF(Descriptions!K53=\"Church Running Expenses\",Descriptions!AB53,0)","v":0},{"$f":"IF([1]Descriptions!K51=\"Church Running Expenses\",[1]Descriptions!I51,0)","v":0},"0General Account"]
[{"$f":"IF(Descriptions!K54=\"Church Running Expenses\",Descriptions!I54,0)","v":0},0,0,0,0,0,0,0,0,0,0,0,0,0,0,0,0,0,0,0,0,0,null,{"$f":"IF(Descriptions!K54=\"Church Running Expenses\",Descriptions!AB54,0)","v":0},{"$f":"IF([1]Descriptions!K52=\"Church Running Expenses\",[1]Descriptions!I52,0)","v":0},"0General Account"]
[{"$f":"IF(Descriptions!K55=\"Church Running Expenses\",Descriptions!I55,0)","v":0},0,0,0,0,0,0,0,0,0,0,0,0,0,0,0,0,0,0,0,0,0,null,{"$f":"IF(Descriptions!K55=\"Church Running Expenses\",Descriptions!AB55,0)","v":0},{"$f":"IF([1]Descriptions!K53=\"Church Running Expenses\",[1]Descriptions!I53,0)","v":0},"0General Account"]
[{"$f":"IF(Descriptions!K56=\"Church Running Expenses\",Descriptions!I56,0)","v":0},0,0,0,0,0,0,0,0,0,0,0,0,0,0,0,0,0,0,0,0,0,null,{"$f":"IF(Descriptions!K56=\"Church Running Expenses\",Descriptions!AB56,0)","v":0},{"$f":"IF([1]Descriptions!K54=\"Church Running Expenses\",[1]Descriptions!I54,0)","v":0},"0General Account"]
[{"$f":"IF(Descriptions!K57=\"Church Running Expenses\",Descriptions!I57,0)","v":0},0,0,0,0,0,0,0,0,0,0,0,0,0,0,0,0,0,0,0,0,0,null,{"$f":"IF(Descriptions!K57=\"Church Running Expenses\",Descriptions!AB57,0)","v":0},{"$f":"IF([1]Descriptions!K55=\"Church Running Expenses\",[1]Descriptions!I55,0)","v":0},"0General Account"]
[{"$f":"IF(Descriptions!K58=\"Church Running Expenses\",Descriptions!I58,0)","v":0},0,0,0,0,0,0,0,0,0,0,0,0,0,0,0,0,0,0,0,0,0,null,{"$f":"IF(Descriptions!K58=\"Church Running Expenses\",Descriptions!AB58,0)","v":0},{"$f":"IF([1]Descriptions!K56=\"Church Running Expenses\",[1]Descriptions!I56,0)","v":0},"0General Account"]
[{"$f":"IF(Descriptions!K59=\"Church Running Expenses\",Descriptions!I59,0)","v":0},0,0,0,0,0,0,0,0,0,0,0,0,0,0,0,0,0,0,0,0,0,null,{"$f":"IF(Descriptions!K59=\"Church Running Expenses\",Descriptions!AB59,0)","v":0},{"$f":"IF([1]Descriptions!K57=\"Church Running Expenses\",[1]Descriptions!I57,0)","v":0},"0General Account"]
[{"$f":"IF(Descriptions!K60=\"Church Running Expenses\",Descriptions!I60,0)","v":0},0,0,0,0,0,0,0,0,0,0,0,0,0,0,0,0,0,0,0,0,0,null,{"$f":"IF(Descriptions!K60=\"Church Running Expenses\",Descriptions!AB60,0)","v":0},{"$f":"IF([1]Descriptions!K58=\"Church Running Expenses\",[1]Descriptions!I58,0)","v":0},"0General Account"]
[{"$f":"IF(Descriptions!K61=\"Church Running Expenses\",Descriptions!I61,0)","v":0},0,0,0,0,0,0,0,0,0,0,0,0,0,0,0,0,0,0,0,0,0,null,{"$f":"IF(Descriptions!K61=\"Church Running Expenses\",Descriptions!AB61,0)","v":0},{"$f":"IF([1]Descriptions!K59=\"Church Running Expenses\",[1]Descriptions!I59,0)","v":0},"0General Account"]
[{"$f":"IF(Descriptions!K62=\"Church Running Expenses\",Descriptions!I62,0)","v":0},0,0,0,0,0,0,0,0,0,0,0,0,0,0,0,0,0,0,0,0,0,null,{"$f":"IF(Descriptions!K62=\"Church Running Expenses\",Descriptions!AB62,0)","v":0},{"$f":"IF([1]Descriptions!K60=\"Church Running Expenses\",[1]Descriptions!I60,0)","v":0},"0General Account"]
[{"$f":"IF(Descriptions!K63=\"Church Running Expenses\",Descriptions!I63,0)","v":0},0,0,0,0,0,0,0,0,0,0,0,0,0,0,0,0,0,0,0,0,0,null,{"$f":"IF(Descriptions!K63=\"Church Running Expenses\",Descriptions!AB63,0)","v":0},{"$f":"IF([1]Descriptions!K61=\"Church Running Expenses\",[1]Descriptions!I61,0)","v":0},"0General Account"]
[{"$f":"IF(Descriptions!K64=\"Church Running Expenses\",Descriptions!I64,0)","v":0},0,0,0,0,0,0,0,0,0,0,0,0,0,0,0,0,0,0,0,0,0,null,{"$f":"IF(Descriptions!K64=\"Church Running Expenses\",Descriptions!AB64,0)","v":0},{"$f":"IF([1]Descriptions!K62=\"Church Running Expenses\",[1]Descriptions!I62,0)","v":0},"0General Account"]
[{"$f":"IF(Descriptions!K65=\"Church Running Expenses\",Descriptions!I65,0)","v":0},0,0,0,0,0,0,0,0,0,0,0,0,0,0,0,0,0,0,0,0,0,null,{"$f":"IF(Descriptions!K65=\"Church Running Expenses\",Descriptions!AB65,0)","v":0},{"$f":"IF([1]Descriptions!K63=\"Church Running Expenses\",[1]Descriptions!I63,0)","v":0},"0General Account"]
[{"$f":"IF(Descriptions!K66=\"Church Running Expenses\",Descriptions!I66,0)","v":0},0,0,0,0,0,0,0,0,0,0,0,0,0,0,0,0,0,0,0,0,0,null,{"$f":"IF(Descriptions!K66=\"Church Running Expenses\",Descriptions!AB66,0)","v":0},{"$f":"IF([1]Descriptions!K64=\"Church Running Expenses\",[1]Descriptions!I64,0)","v":0},"0General Account"]
[{"$f":"IF(Descriptions!K67=\"Church Running Expenses\",Descriptions!I67,0)","v":0},0,0,0,0,0,0,0,0,0,0,0,0,0,0,0,0,0,0,0,0,0,null,{"$f":"IF(Descriptions!K67=\"Church Running Expenses\",Descriptions!AB67,0)","v":0},{"$f":"IF([1]Descriptions!K65=\"Church Running Expenses\",[1]Descriptions!I65,0)","v":0},"0General Account"]
[{"$f":"IF(Descriptions!K68=\"Church Running Expenses\",Descriptions!I68,0)","v":0},0,0,0,0,0,0,0,0,0,0,0,0,0,0,0,0,0,0,0,0,0,null,{"$f":"IF(Descriptions!K68=\"Church Running Expenses\",Descriptions!AB68,0)","v":0},{"$f":"IF([1]Descriptions!K66=\"Church Running Expenses\",[1]Descriptions!I66,0)","v":0},"0General Account"]
[{"$f":"IF(Descriptions!K69=\"Church Running Expenses\",Descriptions!I69,0)","v":0},0,0,0,0,0,0,0,0,0,0,0,0,0,0,0,0,0,0,0,0,0,null,{"$f":"IF(Descriptions!K69=\"Church Running Expenses\",Descriptions!AB69,0)","v":0},{"$f":"IF([1]Descriptions!K67=\"Church Running Expenses\",[1]Descriptions!I67,0)","v":0},"0General Account"]
[{"$f":"IF(Descriptions!K70=\"Church Running Expenses\",Descriptions!I70,0)","v":0},0,0,0,0,0,0,0,0,0,0,0,0,0,0,0,0,0,0,0,0,0,null,{"$f":"IF(Descriptions!K70=\"Church Running Expenses\",Descriptions!AB70,0)","v":0},{"$f":"IF([1]Descriptions!K68=\"Church Running Expenses\",[1]Descriptions!I68,0)","v":0},"0General Account"]
[{"$f":"IF(Descriptions!K71=\"Church Running Expenses\",Descriptions!I71,0)","v":0},0,0,0,0,0,0,0,0,0,0,0,0,0,0,0,0,0,0,0,0,0,null,{"$f":"IF(Descriptions!K71=\"Church Running Expenses\",Descriptions!AB71,0)","v":0},{"$f":"IF([1]Descriptions!K69=\"Church Running Expenses\",[1]Descriptions!I69,0)","v":0},"0General Account"]
[{"$f":"IF(Descriptions!K72=\"Church Running Expenses\",Descriptions!I72,0)","v":0},0,0,0,0,0,0,0,0,0,0,0,0,0,0,0,0,0,0,0,0,0,null,{"$f":"IF(Descriptions!K72=\"Church Running Expenses\",Descriptions!AB72,0)","v":0},{"$f":"IF([1]Descriptions!K70=\"Church Running Expenses\",[1]Descriptions!I70,0)","v":0},"0General Account"]
[{"$f":"IF(Descriptions!K73=\"Church Running Expenses\",Descriptions!I73,0)","v":0},0,0,0,0,0,0,0,0,0,0,0,0,0,0,0,0,0,0,0,0,0,null,{"$f":"IF(Descriptions!K73=\"Church Running Expenses\",Descriptions!AB73,0)","v":0},{"$f":"IF([1]Descriptions!K71=\"Church Running Expenses\",[1]Descriptions!I71,0)","v":0},"0General Account"]
[{"$f":"IF(Descriptions!K74=\"Church Running Expenses\",Descriptions!I74,0)","v":0},0,0,0,0,0,0,0,0,0,0,0,0,0,0,0,0,0,0,0,0,0,null,{"$f":"IF(Descriptions!K74=\"Church Running Expenses\",Descriptions!AB74,0)","v":0},{"$f":"IF([1]Descriptions!K72=\"Church Running Expenses\",[1]Descriptions!I72,0)","v":0},"0General Account"]
[{"$f":"IF(Descriptions!K75=\"Church Running Expenses\",Descriptions!I75,0)","v":0},0,0,0,0,0,0,0,0,0,0,0,0,0,0,0,0,0,0,0,0,0,null,{"$f":"IF(Descriptions!K75=\"Church Running Expenses\",Descriptions!AB75,0)","v":0},{"$f":"IF([1]Descriptions!K73=\"Church Running Expenses\",[1]Descriptions!I73,0)","v":0},"0General Account"]
[{"$f":"IF(Descriptions!K76=\"Church Running Expenses\",Descriptions!I76,0)","v":0},0,0,0,0,0,0,0,0,0,0,0,0,0,0,0,0,0,0,0,0,0,null,{"$f":"IF(Descriptions!K76=\"Church Running Expenses\",Descriptions!AB76,0)","v":0},{"$f":"IF([1]Descriptions!K74=\"Church Running Expenses\",[1]Descriptions!I74,0)","v":0},"0General Account"]
[{"$f":"IF(Descriptions!K77=\"Church Running Expenses\",Descriptions!I77,0)","v":0},0,0,0,0,0,0,0,0,0,0,0,0,0,0,0,0,0,0,0,0,0,null,{"$f":"IF(Descriptions!K77=\"Church Running Expenses\",Descriptions!AB77,0)","v":0},{"$f":"IF([1]Descriptions!K75=\"Church Running Expenses\",[1]Descriptions!I75,0)","v":0},"0General Account"]
[{"$f":"IF(Descriptions!K78=\"Church Running Expenses\",Descriptions!I78,0)","v":0},0,0,0,0,0,0,0,0,0,0,0,0,0,0,0,0,0,0,0,0,0,null,{"$f":"IF(Descriptions!K78=\"Church Running Expenses\",Descriptions!AB78,0)","v":0},{"$f":"IF([1]Descriptions!K76=\"Church Running Expenses\",[1]Descriptions!I76,0)","v":0},"0General Account"]
[{"$f":"IF(Descriptions!K79=\"Church Running Expenses\",Descriptions!I79,0)","v":0},0,0,0,0,0,0,0,0,0,0,0,0,0,0,0,0,0,0,0,0,0,null,{"$f":"IF(Descriptions!K79=\"Church Running Expenses\",Descriptions!AB79,0)","v":0},{"$f":"IF([1]Descriptions!K77=\"Church Running Expenses\",[1]Descriptions!I77,0)","v":0},"0General Account"]
[{"$f":"IF(Descriptions!K80=\"Church Running Expenses\",Descriptions!I80,0)","v":0},0,0,0,0,0,0,0,0,0,0,0,0,0,0,0,0,0,0,0,0,0,null,{"$f":"IF(Descriptions!K80=\"Church Running Expenses\",Descriptions!AB80,0)","v":0},{"$f":"IF([1]Descriptions!K78=\"Church Running Expenses\",[1]Descriptions!I78,0)","v":0},"0General Account"]
[{"$f":"IF(Descriptions!K81=\"Church Running Expenses\",Descriptions!I81,0)","v":0},0,0,0,0,0,0,0,0,0,0,0,0,0,0,0,0,0,0,0,0,0,null,{"$f":"IF(Descriptions!K81=\"Church Running Expenses\",Descriptions!AB81,0)","v":0},{"$f":"IF([1]Descriptions!K79=\"Church Running Expenses\",[1]Descriptions!I79,0)","v":0},"0General Account"]
[{"$f":"IF(Descriptions!K82=\"Church Running Expenses\",Descriptions!I82,0)","v":0},0,0,0,0,0,0,0,0,0,0,0,0,0,0,0,0,0,0,0,0,0,null,{"$f":"IF(Descriptions!K82=\"Church Running Expenses\",Descriptions!AB82,0)","v":0},{"$f":"IF([1]Descriptions!K80=\"Church Running Expenses\",[1]Descriptions!I80,0)","v":0},"0General Account"]
[{"$f":"IF(Descriptions!K83=\"Church Running Expenses\",Descriptions!I83,0)","v":0},0,0,0,0,0,0,0,0,0,0,0,0,0,0,0,0,0,0,0,0,0,null,{"$f":"IF(Descriptions!K83=\"Church Running Expenses\",Descriptions!AB83,0)","v":0},{"$f":"IF([1]Descriptions!K81=\"Church Running Expenses\",[1]Descriptions!I81,0)","v":0},"0General Account"]
[{"$f":"IF(Descriptions!K84=\"Church Running Expenses\",Descriptions!I84,0)","v":0},0,0,0,0,0,0,0,0,0,0,0,0,0,0,0,0,0,0,0,0,0,null,{"$f":"IF(Descriptions!K84=\"Church Running Expenses\",Descriptions!AB84,0)","v":0},{"$f":"IF([1]Descriptions!K82=\"Church Running Expenses\",[1]Descriptions!I82,0)","v":0},"0General Account"]
[null,{"$f":"SUM(B677:B732)","v":0},0,0,0,0,0,0,0,0,0,0,0,0,0,0,0,0,0,0,0,0,null,{"$f":"X676","v":0}]
["MISSION GIVING AND DONATIONS",null,null,null,null,null,null,null,null,null,null,null,null,null,null,null,null,null,null,null,null,null,null,{"$f":"SUM(X735:X788)","v":0}]
["Charities - Home (UK)",0,0,0,0,0,0,0,0,0,0,0,0,0,0,0,0,0,0,0,0,0,null,{"$f":"Descriptions!AB9","v":0},{"$f":"[1]Descriptions!I7","v":"Charities - Home (UK)"},{"$f":"CONCATENATE(Y735,$Y$3)","v":"Charities - Home (UK)General Account"}]
["Charities - Overseas",0,0,0,0,0,0,0,0,0,0,0,0,0,0,0,0,0,0,0,0,0,null,{"$f":"Descriptions!AB10","v":0},{"$f":"[1]Descriptions!I8","v":"Charities - Overseas"},{"$f":"CONCATENATE(Y736,$Y$3)","v":"Charities - OverseasGeneral Account"}]
["Charities - Secular",0,0,0,0,0,0,0,0,0,0,0,0,0,0,0,0,0,0,0,0,0,null,{"$f":"Descriptions!AB11","v":0},{"$f":"[1]Descriptions!I9","v":"Charities - Secular"},{"$f":"CONCATENATE(Y737,$Y$3)","v":"Charities - SecularGeneral Account"}]
["Charities - Christian Relief",0,0,0,0,0,0,0,0,0,0,0,0,0,0,0,0,0,0,0,0,0,null,{"$f":"Descriptions!AB8","v":0},{"$f":"[1]Descriptions!I6","v":"Charities - Christian Relief"},{"$f":"CONCATENATE(Y738,$Y$3)","v":"Charities - Christian ReliefGeneral Account"}]
[{"$f":"IF(Descriptions!K35=\"Mission Giving and Donations\",Descriptions!I35,0)","v":0},0,0,0,0,0,0,0,0,0,0,0,0,0,0,0,0,0,0,0,0,0,null,{"$f":"IF(Descriptions!K35=\"Mission Giving and Donations\",Descriptions!AB35,0)","v":0},{"$f":"IF([1]Descriptions!K33=\"Mission Giving and Donations\",[1]Descriptions!I33,0)","v":0},{"$f":"CONCATENATE(Y739,$Y$3)","v":"0General Account"}]
[{"$f":"IF(Descriptions!K36=\"Mission Giving and Donations\",Descriptions!I36,0)","v":0},0,0,0,0,0,0,0,0,0,0,0,0,0,0,0,0,0,0,0,0,0,null,{"$f":"IF(Descriptions!K36=\"Mission Giving and Donations\",Descriptions!AB36,0)","v":0},{"$f":"IF([1]Descriptions!K34=\"Mission Giving and Donations\",[1]Descriptions!I34,0)","v":0},{"$f":"CONCATENATE(Y740,$Y$3)","v":"0General Account"}]
[{"$f":"IF(Descriptions!K37=\"Mission Giving and Donations\",Descriptions!I37,0)","v":0},0,0,0,0,0,0,0,0,0,0,0,0,0,0,0,0,0,0,0,0,0,null,{"$f":"IF(Descriptions!K37=\"Mission Giving and Donations\",Descriptions!AB37,0)","v":0},{"$f":"IF([1]Descriptions!K35=\"Mission Giving and Donations\",[1]Descriptions!I35,0)","v":0},"0General Account"]
[{"$f":"IF(Descriptions!K38=\"Mission Giving and Donations\",Descriptions!I38,0)","v":0},0,0,0,0,0,0,0,0,0,0,0,0,0,0,0,0,0,0,0,0,0,null,{"$f":"IF(Descriptions!K38=\"Mission Giving and Donations\",Descriptions!AB38,0)","v":0},{"$f":"IF([1]Descriptions!K36=\"Mission Giving and Donations\",[1]Descriptions!I36,0)","v":0},"0General Account"]
[{"$f":"IF(Descriptions!K39=\"Mission Giving and Donations\",Descriptions!I39,0)","v":0},0,0,0,0,0,0,0,0,0,0,0,0,0,0,0,0,0,0,0,0,0,null,{"$f":"IF(Descriptions!K39=\"Mission Giving and Donations\",Descriptions!AB39,0)","v":0},{"$f":"IF([1]Descriptions!K37=\"Mission Giving and Donations\",[1]Descriptions!I37,0)","v":0},"0General Account"]
[{"$f":"IF(Descriptions!K40=\"Mission Giving and Donations\",Descriptions!I40,0)","v":0},0,0,0,0,0,0,0,0,0,0,0,0,0,0,0,0,0,0,0,0,0,null,{"$f":"IF(Descriptions!K40=\"Mission Giving and Donations\",Descriptions!AB40,0)","v":0},{"$f":"IF([1]Descriptions!K38=\"Mission Giving and Donations\",[1]Descriptions!I38,0)","v":0},"0General Account"]
[{"$f":"IF(Descriptions!K41=\"Mission Giving and Donations\",Descriptions!I41,0)","v":0},0,0,0,0,0,0,0,0,0,0,0,0,0,0,0,0,0,0,0,0,0,null,{"$f":"IF(Descriptions!K41=\"Mission Giving and Donations\",Descriptions!AB41,0)","v":0},{"$f":"IF([1]Descriptions!K39=\"Mission Giving and Donations\",[1]Descriptions!I39,0)","v":0},"0General Account"]
[{"$f":"IF(Descriptions!K42=\"Mission Giving and Donations\",Descriptions!I42,0)","v":0},0,0,0,0,0,0,0,0,0,0,0,0,0,0,0,0,0,0,0,0,0,null,{"$f":"IF(Descriptions!K42=\"Mission Giving and Donations\",Descriptions!AB42,0)","v":0},{"$f":"IF([1]Descriptions!K40=\"Mission Giving and Donations\",[1]Descriptions!I40,0)","v":0},"0General Account"]
[{"$f":"IF(Descriptions!K43=\"Mission Giving and Donations\",Descriptions!I43,0)","v":0},0,0,0,0,0,0,0,0,0,0,0,0,0,0,0,0,0,0,0,0,0,null,{"$f":"IF(Descriptions!K43=\"Mission Giving and Donations\",Descriptions!AB43,0)","v":0},{"$f":"IF([1]Descriptions!K41=\"Mission Giving and Donations\",[1]Descriptions!I41,0)","v":0},"0General Account"]
[{"$f":"IF(Descriptions!K44=\"Mission Giving and Donations\",Descriptions!I44,0)","v":0},0,0,0,0,0,0,0,0,0,0,0,0,0,0,0,0,0,0,0,0,0,null,{"$f":"IF(Descriptions!K44=\"Mission Giving and Donations\",Descriptions!AB44,0)","v":0},{"$f":"IF([1]Descriptions!K42=\"Mission Giving and Donations\",[1]Descriptions!I42,0)","v":0},"0General Account"]
[{"$f":"IF(Descriptions!K45=\"Mission Giving and Donations\",Descriptions!I45,0)","v":0},0,0,0,0,0,0,0,0,0,0,0,0,0,0,0,0,0,0,0,0,0,null,{"$f":"IF(Descriptions!K45=\"Mission Giving and Donations\",Descriptions!AB45,0)","v":0},{"$f":"IF([1]Descriptions!K43=\"Mission Giving and Donations\",[1]Descriptions!I43,0)","v":0},"0General Account"]
[{"$f":"IF(Descriptions!K46=\"Mission Giving and Donations\",Descriptions!I46,0)","v":0},0,0,0,0,0,0,0,0,0,0,0,0,0,0,0,0,0,0,0,0,0,null,{"$f":"IF(Descriptions!K46=\"Mission Giving and Donations\",Descriptions!AB46,0)","v":0},{"$f":"IF([1]Descriptions!K44=\"Mission Giving and Donations\",[1]Descriptions!I44,0)","v":0},"0General Account"]
[{"$f":"IF(Descriptions!K47=\"Mission Giving and Donations\",Descriptions!I47,0)","v":0},0,0,0,0,0,0,0,0,0,0,0,0,0,0,0,0,0,0,0,0,0,null,{"$f":"IF(Descriptions!K47=\"Mission Giving and Donations\",Descriptions!AB47,0)","v":0},{"$f":"IF([1]Descriptions!K45=\"Mission Giving and Donations\",[1]Descriptions!I45,0)","v":0},"0General Account"]
[{"$f":"IF(Descriptions!K48=\"Mission Giving and Donations\",Descriptions!I48,0)","v":0},0,0,0,0,0,0,0,0,0,0,0,0,0,0,0,0,0,0,0,0,0,null,{"$f":"IF(Descriptions!K48=\"Mission Giving and Donations\",Descriptions!AB48,0)","v":0},{"$f":"IF([1]Descriptions!K46=\"Mission Giving and Donations\",[1]Descriptions!I46,0)","v":0},"0General Account"]
[{"$f":"IF(Descriptions!K49=\"Mission Giving and Donations\",Descriptions!I49,0)","v":0},0,0,0,0,0,0,0,0,0,0,0,0,0,0,0,0,0,0,0,0,0,null,{"$f":"IF(Descriptions!K49=\"Mission Giving and Donations\",Descriptions!AB49,0)","v":0},{"$f":"IF([1]Descriptions!K47=\"Mission Giving and Donations\",[1]Descriptions!I47,0)","v":0},"0General Account"]
[{"$f":"IF(Descriptions!K50=\"Mission Giving and Donations\",Descriptions!I50,0)","v":0},0,0,0,0,0,0,0,0,0,0,0,0,0,0,0,0,0,0,0,0,0,null,{"$f":"IF(Descriptions!K50=\"Mission Giving and Donations\",Descriptions!AB50,0)","v":0},{"$f":"IF([1]Descriptions!K48=\"Mission Giving and Donations\",[1]Descriptions!I48,0)","v":0},"0General Account"]
[{"$f":"IF(Descriptions!K51=\"Mission Giving and Donations\",Descriptions!I51,0)","v":0},0,0,0,0,0,0,0,0,0,0,0,0,0,0,0,0,0,0,0,0,0,null,{"$f":"IF(Descriptions!K51=\"Mission Giving and Donations\",Descriptions!AB51,0)","v":0},{"$f":"IF([1]Descriptions!K49=\"Mission Giving and Donations\",[1]Descriptions!I49,0)","v":0},"0General Account"]
[{"$f":"IF(Descriptions!K52=\"Mission Giving and Donations\",Descriptions!I52,0)","v":0},0,0,0,0,0,0,0,0,0,0,0,0,0,0,0,0,0,0,0,0,0,null,{"$f":"IF(Descriptions!K52=\"Mission Giving and Donations\",Descriptions!AB52,0)","v":0},{"$f":"IF([1]Descriptions!K50=\"Mission Giving and Donations\",[1]Descriptions!I50,0)","v":0},"0General Account"]
[{"$f":"IF(Descriptions!K53=\"Mission Giving and Donations\",Descriptions!I53,0)","v":0},0,0,0,0,0,0,0,0,0,0,0,0,0,0,0,0,0,0,0,0,0,null,{"$f":"IF(Descriptions!K53=\"Mission Giving and Donations\",Descriptions!AB53,0)","v":0},{"$f":"IF([1]Descriptions!K51=\"Mission Giving and Donations\",[1]Descriptions!I51,0)","v":0},"0General Account"]
[{"$f":"IF(Descriptions!K54=\"Mission Giving and Donations\",Descriptions!I54,0)","v":0},0,0,0,0,0,0,0,0,0,0,0,0,0,0,0,0,0,0,0,0,0,null,{"$f":"IF(Descriptions!K54=\"Mission Giving and Donations\",Descriptions!AB54,0)","v":0},{"$f":"IF([1]Descriptions!K52=\"Mission Giving and Donations\",[1]Descriptions!I52,0)","v":0},"0General Account"]
[{"$f":"IF(Descriptions!K55=\"Mission Giving and Donations\",Descriptions!I55,0)","v":0},0,0,0,0,0,0,0,0,0,0,0,0,0,0,0,0,0,0,0,0,0,null,{"$f":"IF(Descriptions!K55=\"Mission Giving and Donations\",Descriptions!AB55,0)","v":0},{"$f":"IF([1]Descriptions!K53=\"Mission Giving and Donations\",[1]Descriptions!I53,0)","v":0},"0General Account"]
[{"$f":"IF(Descriptions!K56=\"Mission Giving and Donations\",Descriptions!I56,0)","v":0},0,0,0,0,0,0,0,0,0,0,0,0,0,0,0,0,0,0,0,0,0,null,{"$f":"IF(Descriptions!K56=\"Mission Giving and Donations\",Descriptions!AB56,0)","v":0},{"$f":"IF([1]Descriptions!K54=\"Mission Giving and Donations\",[1]Descriptions!I54,0)","v":0},"0General Account"]
[{"$f":"IF(Descriptions!K57=\"Mission Giving and Donations\",Descriptions!I57,0)","v":0},0,0,0,0,0,0,0,0,0,0,0,0,0,0,0,0,0,0,0,0,0,null,{"$f":"IF(Descriptions!K57=\"Mission Giving and Donations\",Descriptions!AB57,0)","v":0},{"$f":"IF([1]Descriptions!K55=\"Mission Giving and Donations\",[1]Descriptions!I55,0)","v":0},"0General Account"]
[{"$f":"IF(Descriptions!K58=\"Mission Giving and Donations\",Descriptions!I58,0)","v":0},0,0,0,0,0,0,0,0,0,0,0,0,0,0,0,0,0,0,0,0,0,null,{"$f":"IF(Descriptions!K58=\"Mission Giving and Donations\",Descriptions!AB58,0)","v":0},{"$f":"IF([1]Descriptions!K56=\"Mission Giving and Donations\",[1]Descriptions!I56,0)","v":0},"0General Account"]
[{"$f":"IF(Descriptions!K59=\"Mission Giving and Donations\",Descriptions!I59,0)","v":0},0,0,0,0,0,0,0,0,0,0,0,0,0,0,0,0,0,0,0,0,0,null,{"$f":"IF(Descriptions!K59=\"Mission Giving and Donations\",Descriptions!AB59,0)","v":0},{"$f":"IF([1]Descriptions!K57=\"Mission Giving and Donations\",[1]Descriptions!I57,0)","v":0},"0General Account"]
[{"$f":"IF(Descriptions!K60=\"Mission Giving and Donations\",Descriptions!I60,0)","v":0},0,0,0,0,0,0,0,0,0,0,0,0,0,0,0,0,0,0,0,0,0,null,{"$f":"IF(Descriptions!K60=\"Mission Giving and Donations\",Descriptions!AB60,0)","v":0},{"$f":"IF([1]Descriptions!K58=\"Mission Giving and Donations\",[1]Descriptions!I58,0)","v":0},"0General Account"]
[{"$f":"IF(Descriptions!K61=\"Mission Giving and Donations\",Descriptions!I61,0)","v":0},0,0,0,0,0,0,0,0,0,0,0,0,0,0,0,0,0,0,0,0,0,null,{"$f":"IF(Descriptions!K61=\"Mission Giving and Donations\",Descriptions!AB61,0)","v":0},{"$f":"IF([1]Descriptions!K59=\"Mission Giving and Donations\",[1]Descriptions!I59,0)","v":0},"0General Account"]
[{"$f":"IF(Descriptions!K62=\"Mission Giving and Donations\",Descriptions!I62,0)","v":0},0,0,0,0,0,0,0,0,0,0,0,0,0,0,0,0,0,0,0,0,0,null,{"$f":"IF(Descriptions!K62=\"Mission Giving and Donations\",Descriptions!AB62,0)","v":0},{"$f":"IF([1]Descriptions!K60=\"Mission Giving and Donations\",[1]Descriptions!I60,0)","v":0},"0General Account"]
[{"$f":"IF(Descriptions!K63=\"Mission Giving and Donations\",Descriptions!I63,0)","v":0},0,0,0,0,0,0,0,0,0,0,0,0,0,0,0,0,0,0,0,0,0,null,{"$f":"IF(Descriptions!K63=\"Mission Giving and Donations\",Descriptions!AB63,0)","v":0},{"$f":"IF([1]Descriptions!K61=\"Mission Giving and Donations\",[1]Descriptions!I61,0)","v":0},"0General Account"]
[{"$f":"IF(Descriptions!K64=\"Mission Giving and Donations\",Descriptions!I64,0)","v":0},0,0,0,0,0,0,0,0,0,0,0,0,0,0,0,0,0,0,0,0,0,null,{"$f":"IF(Descriptions!K64=\"Mission Giving and Donations\",Descriptions!AB64,0)","v":0},{"$f":"IF([1]Descriptions!K62=\"Mission Giving and Donations\",[1]Descriptions!I62,0)","v":0},"0General Account"]
[{"$f":"IF(Descriptions!K65=\"Mission Giving and Donations\",Descriptions!I65,0)","v":0},0,0,0,0,0,0,0,0,0,0,0,0,0,0,0,0,0,0,0,0,0,null,{"$f":"IF(Descriptions!K65=\"Mission Giving and Donations\",Descriptions!AB65,0)","v":0},{"$f":"IF([1]Descriptions!K63=\"Mission Giving and Donations\",[1]Descriptions!I63,0)","v":0},"0General Account"]
[{"$f":"IF(Descriptions!K66=\"Mission Giving and Donations\",Descriptions!I66,0)","v":0},0,0,0,0,0,0,0,0,0,0,0,0,0,0,0,0,0,0,0,0,0,null,{"$f":"IF(Descriptions!K66=\"Mission Giving and Donations\",Descriptions!AB66,0)","v":0},{"$f":"IF([1]Descriptions!K64=\"Mission Giving and Donations\",[1]Descriptions!I64,0)","v":0},"0General Account"]
[{"$f":"IF(Descriptions!K67=\"Mission Giving and Donations\",Descriptions!I67,0)","v":0},0,0,0,0,0,0,0,0,0,0,0,0,0,0,0,0,0,0,0,0,0,null,{"$f":"IF(Descriptions!K67=\"Mission Giving and Donations\",Descriptions!AB67,0)","v":0},{"$f":"IF([1]Descriptions!K65=\"Mission Giving and Donations\",[1]Descriptions!I65,0)","v":0},"0General Account"]
[{"$f":"IF(Descriptions!K68=\"Mission Giving and Donations\",Descriptions!I68,0)","v":0},0,0,0,0,0,0,0,0,0,0,0,0,0,0,0,0,0,0,0,0,0,null,{"$f":"IF(Descriptions!K68=\"Mission Giving and Donations\",Descriptions!AB68,0)","v":0},{"$f":"IF([1]Descriptions!K66=\"Mission Giving and Donations\",[1]Descriptions!I66,0)","v":0},"0General Account"]
[{"$f":"IF(Descriptions!K69=\"Mission Giving and Donations\",Descriptions!I69,0)","v":0},0,0,0,0,0,0,0,0,0,0,0,0,0,0,0,0,0,0,0,0,0,null,{"$f":"IF(Descriptions!K69=\"Mission Giving and Donations\",Descriptions!AB69,0)","v":0},{"$f":"IF([1]Descriptions!K67=\"Mission Giving and Donations\",[1]Descriptions!I67,0)","v":0},"0General Account"]
[{"$f":"IF(Descriptions!K70=\"Mission Giving and Donations\",Descriptions!I70,0)","v":0},0,0,0,0,0,0,0,0,0,0,0,0,0,0,0,0,0,0,0,0,0,null,{"$f":"IF(Descriptions!K70=\"Mission Giving and Donations\",Descriptions!AB70,0)","v":0},{"$f":"IF([1]Descriptions!K68=\"Mission Giving and Donations\",[1]Descriptions!I68,0)","v":0},"0General Account"]
[{"$f":"IF(Descriptions!K71=\"Mission Giving and Donations\",Descriptions!I71,0)","v":0},0,0,0,0,0,0,0,0,0,0,0,0,0,0,0,0,0,0,0,0,0,null,{"$f":"IF(Descriptions!K71=\"Mission Giving and Donations\",Descriptions!AB71,0)","v":0},{"$f":"IF([1]Descriptions!K69=\"Mission Giving and Donations\",[1]Descriptions!I69,0)","v":0},"0General Account"]
[{"$f":"IF(Descriptions!K72=\"Mission Giving and Donations\",Descriptions!I72,0)","v":0},0,0,0,0,0,0,0,0,0,0,0,0,0,0,0,0,0,0,0,0,0,null,{"$f":"IF(Descriptions!K72=\"Mission Giving and Donations\",Descriptions!AB72,0)","v":0},{"$f":"IF([1]Descriptions!K70=\"Mission Giving and Donations\",[1]Descriptions!I70,0)","v":0},"0General Account"]
[{"$f":"IF(Descriptions!K73=\"Mission Giving and Donations\",Descriptions!I73,0)","v":0},0,0,0,0,0,0,0,0,0,0,0,0,0,0,0,0,0,0,0,0,0,null,{"$f":"IF(Descriptions!K73=\"Mission Giving and Donations\",Descriptions!AB73,0)","v":0},{"$f":"IF([1]Descriptions!K71=\"Mission Giving and Donations\",[1]Descriptions!I71,0)","v":0},"0General Account"]
[{"$f":"IF(Descriptions!K74=\"Mission Giving and Donations\",Descriptions!I74,0)","v":0},0,0,0,0,0,0,0,0,0,0,0,0,0,0,0,0,0,0,0,0,0,null,{"$f":"IF(Descriptions!K74=\"Mission Giving and Donations\",Descriptions!AB74,0)","v":0},{"$f":"IF([1]Descriptions!K72=\"Mission Giving and Donations\",[1]Descriptions!I72,0)","v":0},"0General Account"]
[{"$f":"IF(Descriptions!K75=\"Mission Giving and Donations\",Descriptions!I75,0)","v":0},0,0,0,0,0,0,0,0,0,0,0,0,0,0,0,0,0,0,0,0,0,null,{"$f":"IF(Descriptions!K75=\"Mission Giving and Donations\",Descriptions!AB75,0)","v":0},{"$f":"IF([1]Descriptions!K73=\"Mission Giving and Donations\",[1]Descriptions!I73,0)","v":0},"0General Account"]
[{"$f":"IF(Descriptions!K76=\"Mission Giving and Donations\",Descriptions!I76,0)","v":0},0,0,0,0,0,0,0,0,0,0,0,0,0,0,0,0,0,0,0,0,0,null,{"$f":"IF(Descriptions!K76=\"Mission Giving and Donations\",Descriptions!AB76,0)","v":0},{"$f":"IF([1]Descriptions!K74=\"Mission Giving and Donations\",[1]Descriptions!I74,0)","v":0},"0General Account"]
[{"$f":"IF(Descriptions!K77=\"Mission Giving and Donations\",Descriptions!I77,0)","v":0},0,0,0,0,0,0,0,0,0,0,0,0,0,0,0,0,0,0,0,0,0,null,{"$f":"IF(Descriptions!K77=\"Mission Giving and Donations\",Descriptions!AB77,0)","v":0},{"$f":"IF([1]Descriptions!K75=\"Mission Giving and Donations\",[1]Descriptions!I75,0)","v":0},"0General Account"]
[{"$f":"IF(Descriptions!K78=\"Mission Giving and Donations\",Descriptions!I78,0)","v":0},0,0,0,0,0,0,0,0,0,0,0,0,0,0,0,0,0,0,0,0,0,null,{"$f":"IF(Descriptions!K78=\"Mission Giving and Donations\",Descriptions!AB78,0)","v":0},{"$f":"IF([1]Descriptions!K76=\"Mission Giving and Donations\",[1]Descriptions!I76,0)","v":0},"0General Account"]
[{"$f":"IF(Descriptions!K79=\"Mission Giving and Donations\",Descriptions!I79,0)","v":0},0,0,0,0,0,0,0,0,0,0,0,0,0,0,0,0,0,0,0,0,0,null,{"$f":"IF(Descriptions!K79=\"Mission Giving and Donations\",Descriptions!AB79,0)","v":0},{"$f":"IF([1]Descriptions!K77=\"Mission Giving and Donations\",[1]Descriptions!I77,0)","v":0},"0General Account"]
[{"$f":"IF(Descriptions!K80=\"Mission Giving and Donations\",Descriptions!I80,0)","v":0},0,0,0,0,0,0,0,0,0,0,0,0,0,0,0,0,0,0,0,0,0,null,{"$f":"IF(Descriptions!K80=\"Mission Giving and Donations\",Descriptions!AB80,0)","v":0},{"$f":"IF([1]Descriptions!K78=\"Mission Giving and Donations\",[1]Descriptions!I78,0)","v":0},"0General Account"]
[{"$f":"IF(Descriptions!K81=\"Mission Giving and Donations\",Descriptions!I81,0)","v":0},0,0,0,0,0,0,0,0,0,0,0,0,0,0,0,0,0,0,0,0,0,null,{"$f":"IF(Descriptions!K81=\"Mission Giving and Donations\",Descriptions!AB81,0)","v":0},{"$f":"IF([1]Descriptions!K79=\"Mission Giving and Donations\",[1]Descriptions!I79,0)","v":0},"0General Account"]
[{"$f":"IF(Descriptions!K82=\"Mission Giving and Donations\",Descriptions!I82,0)","v":0},0,0,0,0,0,0,0,0,0,0,0,0,0,0,0,0,0,0,0,0,0,null,{"$f":"IF(Descriptions!K82=\"Mission Giving and Donations\",Descriptions!AB82,0)","v":0},{"$f":"IF([1]Descriptions!K80=\"Mission Giving and Donations\",[1]Descriptions!I80,0)","v":0},"0General Account"]
[{"$f":"IF(Descriptions!K83=\"Mission Giving and Donations\",Descriptions!I83,0)","v":0},0,0,0,0,0,0,0,0,0,0,0,0,0,0,0,0,0,0,0,0,0,null,{"$f":"IF(Descriptions!K83=\"Mission Giving and Donations\",Descriptions!AB83,0)","v":0},{"$f":"IF([1]Descriptions!K81=\"Mission Giving and Donations\",[1]Descriptions!I81,0)","v":0},"0General Account"]
[{"$f":"IF(Descriptions!K84=\"Mission Giving and Donations\",Descriptions!I84,0)","v":0},0,0,0,0,0,0,0,0,0,0,0,0,0,0,0,0,0,0,0,0,0,null,{"$f":"IF(Descriptions!K84=\"Mission Giving and Donations\",Descriptions!AB84,0)","v":0},{"$f":"IF([1]Descriptions!K82=\"Mission Giving and Donations\",[1]Descriptions!I82,0)","v":0},"0General Account"]
[null,{"$f":"SUM(B735:B788)","v":0},0,0,0,0,0,0,0,0,0,0,0,0,0,0,0,0,0,0,0,0,null,{"$f":"X734","v":0}]
["BUILDING WORK AND REPAIRS",null,null,null,null,null,null,null,null,null,null,null,null,null,null,null,null,null,null,null,null,null,null,{"$f":"SUM(X791:X843)","v":0}]
["Church - Major repairs and Redecorations",0,0,0,0,0,0,0,0,0,0,0,0,0,0,0,0,0,0,0,0,0,null,{"$f":"Descriptions!AB12","v":0},{"$f":"[1]Descriptions!I10","v":"Church - Major Repairs and Redecorations"},{"$f":"CONCATENATE(Y791,$Y$3)","v":"Church - Major Repairs and RedecorationsGeneral Account"}]
["Hall/Other Buildings - Major Repairs and Redecorations",0,0,0,0,0,0,0,0,0,0,0,0,0,0,0,0,0,0,0,0,0,null,{"$f":"Descriptions!AB19","v":0},{"$f":"[1]Descriptions!I17","v":"Hall/Other Buildings - Major Repairs and Redecorations"},{"$f":"CONCATENATE(Y792,$Y$3)","v":"Hall/Other Buildings - Major Repairs and RedecorationsGeneral Account"}]
["New Building Work",0,0,0,0,0,0,0,0,0,0,0,0,0,0,0,0,0,0,0,0,0,null,{"$f":"Descriptions!AB23","v":0},{"$f":"[1]Descriptions!I21","v":"New Building Work"},{"$f":"CONCATENATE(Y793,$Y$3)","v":"New Building WorkGeneral Account"}]
[{"$f":"IF(Descriptions!K35=\"Building Work and Repairs\",Descriptions!I35,0)","v":0},0,0,0,0,0,0,0,0,0,0,0,0,0,0,0,0,0,0,0,0,0,null,{"$f":"IF(Descriptions!K35=\"Building Work and Repairs\",Descriptions!AB35,0)","v":0},{"$f":"IF([1]Descriptions!K33=\"Building Work and Repairs\",[1]Descriptions!I33,0)","v":0},{"$f":"CONCATENATE(Y794,$Y$3)","v":"0General Account"}]
[{"$f":"IF(Descriptions!K36=\"Building Work and Repairs\",Descriptions!I36,0)","v":0},0,0,0,0,0,0,0,0,0,0,0,0,0,0,0,0,0,0,0,0,0,null,{"$f":"IF(Descriptions!K36=\"Building Work and Repairs\",Descriptions!AB36,0)","v":0},{"$f":"IF([1]Descriptions!K34=\"Building Work and Repairs\",[1]Descriptions!I34,0)","v":0},{"$f":"CONCATENATE(Y795,$Y$3)","v":"0General Account"}]
[{"$f":"IF(Descriptions!K37=\"Building Work and Repairs\",Descriptions!I37,0)","v":0},0,0,0,0,0,0,0,0,0,0,0,0,0,0,0,0,0,0,0,0,0,null,{"$f":"IF(Descriptions!K37=\"Building Work and Repairs\",Descriptions!AB37,0)","v":0},{"$f":"IF([1]Descriptions!K35=\"Building Work and Repairs\",[1]Descriptions!I35,0)","v":0},"0General Account"]
[{"$f":"IF(Descriptions!K38=\"Building Work and Repairs\",Descriptions!I38,0)","v":0},0,0,0,0,0,0,0,0,0,0,0,0,0,0,0,0,0,0,0,0,0,null,{"$f":"IF(Descriptions!K38=\"Building Work and Repairs\",Descriptions!AB38,0)","v":0},{"$f":"IF([1]Descriptions!K36=\"Building Work and Repairs\",[1]Descriptions!I36,0)","v":0},"0General Account"]
[{"$f":"IF(Descriptions!K39=\"Building Work and Repairs\",Descriptions!I39,0)","v":0},0,0,0,0,0,0,0,0,0,0,0,0,0,0,0,0,0,0,0,0,0,null,{"$f":"IF(Descriptions!K39=\"Building Work and Repairs\",Descriptions!AB39,0)","v":0},{"$f":"IF([1]Descriptions!K37=\"Building Work and Repairs\",[1]Descriptions!I37,0)","v":0},"0General Account"]
[{"$f":"IF(Descriptions!K40=\"Building Work and Repairs\",Descriptions!I40,0)","v":0},0,0,0,0,0,0,0,0,0,0,0,0,0,0,0,0,0,0,0,0,0,null,{"$f":"IF(Descriptions!K40=\"Building Work and Repairs\",Descriptions!AB40,0)","v":0},{"$f":"IF([1]Descriptions!K38=\"Building Work and Repairs\",[1]Descriptions!I38,0)","v":0},"0General Account"]
[{"$f":"IF(Descriptions!K41=\"Building Work and Repairs\",Descriptions!I41,0)","v":0},0,0,0,0,0,0,0,0,0,0,0,0,0,0,0,0,0,0,0,0,0,null,{"$f":"IF(Descriptions!K41=\"Building Work and Repairs\",Descriptions!AB41,0)","v":0},{"$f":"IF([1]Descriptions!K39=\"Building Work and Repairs\",[1]Descriptions!I39,0)","v":0},"0General Account"]
[{"$f":"IF(Descriptions!K42=\"Building Work and Repairs\",Descriptions!I42,0)","v":0},0,0,0,0,0,0,0,0,0,0,0,0,0,0,0,0,0,0,0,0,0,null,{"$f":"IF(Descriptions!K42=\"Building Work and Repairs\",Descriptions!AB42,0)","v":0},{"$f":"IF([1]Descriptions!K40=\"Building Work and Repairs\",[1]Descriptions!I40,0)","v":0},"0General Account"]
[{"$f":"IF(Descriptions!K43=\"Building Work and Repairs\",Descriptions!I43,0)","v":0},0,0,0,0,0,0,0,0,0,0,0,0,0,0,0,0,0,0,0,0,0,null,{"$f":"IF(Descriptions!K43=\"Building Work and Repairs\",Descriptions!AB43,0)","v":0},{"$f":"IF([1]Descriptions!K41=\"Building Work and Repairs\",[1]Descriptions!I41,0)","v":0},"0General Account"]
[{"$f":"IF(Descriptions!K44=\"Building Work and Repairs\",Descriptions!I44,0)","v":0},0,0,0,0,0,0,0,0,0,0,0,0,0,0,0,0,0,0,0,0,0,null,{"$f":"IF(Descriptions!K44=\"Building Work and Repairs\",Descriptions!AB44,0)","v":0},{"$f":"IF([1]Descriptions!K42=\"Building Work and Repairs\",[1]Descriptions!I42,0)","v":0},"0General Account"]
[{"$f":"IF(Descriptions!K45=\"Building Work and Repairs\",Descriptions!I45,0)","v":0},0,0,0,0,0,0,0,0,0,0,0,0,0,0,0,0,0,0,0,0,0,null,{"$f":"IF(Descriptions!K45=\"Building Work and Repairs\",Descriptions!AB45,0)","v":0},{"$f":"IF([1]Descriptions!K43=\"Building Work and Repairs\",[1]Descriptions!I43,0)","v":0},"0General Account"]
[{"$f":"IF(Descriptions!K46=\"Building Work and Repairs\",Descriptions!I46,0)","v":0},0,0,0,0,0,0,0,0,0,0,0,0,0,0,0,0,0,0,0,0,0,null,{"$f":"IF(Descriptions!K46=\"Building Work and Repairs\",Descriptions!AB46,0)","v":0},{"$f":"IF([1]Descriptions!K44=\"Building Work and Repairs\",[1]Descriptions!I44,0)","v":0},"0General Account"]
[{"$f":"IF(Descriptions!K47=\"Building Work and Repairs\",Descriptions!I47,0)","v":0},0,0,0,0,0,0,0,0,0,0,0,0,0,0,0,0,0,0,0,0,0,null,{"$f":"IF(Descriptions!K47=\"Building Work and Repairs\",Descriptions!AB47,0)","v":0},{"$f":"IF([1]Descriptions!K45=\"Building Work and Repairs\",[1]Descriptions!I45,0)","v":0},"0General Account"]
[{"$f":"IF(Descriptions!K48=\"Building Work and Repairs\",Descriptions!I48,0)","v":0},0,0,0,0,0,0,0,0,0,0,0,0,0,0,0,0,0,0,0,0,0,null,{"$f":"IF(Descriptions!K48=\"Building Work and Repairs\",Descriptions!AB48,0)","v":0},{"$f":"IF([1]Descriptions!K46=\"Building Work and Repairs\",[1]Descriptions!I46,0)","v":0},"0General Account"]
[{"$f":"IF(Descriptions!K49=\"Building Work and Repairs\",Descriptions!I49,0)","v":0},0,0,0,0,0,0,0,0,0,0,0,0,0,0,0,0,0,0,0,0,0,null,{"$f":"IF(Descriptions!K49=\"Building Work and Repairs\",Descriptions!AB49,0)","v":0},{"$f":"IF([1]Descriptions!K47=\"Building Work and Repairs\",[1]Descriptions!I47,0)","v":0},"0General Account"]
[{"$f":"IF(Descriptions!K50=\"Building Work and Repairs\",Descriptions!I50,0)","v":0},0,0,0,0,0,0,0,0,0,0,0,0,0,0,0,0,0,0,0,0,0,null,{"$f":"IF(Descriptions!K50=\"Building Work and Repairs\",Descriptions!AB50,0)","v":0},{"$f":"IF([1]Descriptions!K48=\"Building Work and Repairs\",[1]Descriptions!I48,0)","v":0},"0General Account"]
[{"$f":"IF(Descriptions!K51=\"Building Work and Repairs\",Descriptions!I51,0)","v":0},0,0,0,0,0,0,0,0,0,0,0,0,0,0,0,0,0,0,0,0,0,null,{"$f":"IF(Descriptions!K51=\"Building Work and Repairs\",Descriptions!AB51,0)","v":0},{"$f":"IF([1]Descriptions!K49=\"Building Work and Repairs\",[1]Descriptions!I49,0)","v":0},"0General Account"]
[{"$f":"IF(Descriptions!K52=\"Building Work and Repairs\",Descriptions!I52,0)","v":0},0,0,0,0,0,0,0,0,0,0,0,0,0,0,0,0,0,0,0,0,0,null,{"$f":"IF(Descriptions!K52=\"Building Work and Repairs\",Descriptions!AB52,0)","v":0},{"$f":"IF([1]Descriptions!K50=\"Building Work and Repairs\",[1]Descriptions!I50,0)","v":0},"0General Account"]
[{"$f":"IF(Descriptions!K53=\"Building Work and Repairs\",Descriptions!I53,0)","v":0},0,0,0,0,0,0,0,0,0,0,0,0,0,0,0,0,0,0,0,0,0,null,{"$f":"IF(Descriptions!K53=\"Building Work and Repairs\",Descriptions!AB53,0)","v":0},{"$f":"IF([1]Descriptions!K51=\"Building Work and Repairs\",[1]Descriptions!I51,0)","v":0},"0General Account"]
[{"$f":"IF(Descriptions!K54=\"Building Work and Repairs\",Descriptions!I54,0)","v":0},0,0,0,0,0,0,0,0,0,0,0,0,0,0,0,0,0,0,0,0,0,null,{"$f":"IF(Descriptions!K54=\"Building Work and Repairs\",Descriptions!AB54,0)","v":0},{"$f":"IF([1]Descriptions!K52=\"Building Work and Repairs\",[1]Descriptions!I52,0)","v":0},"0General Account"]
[{"$f":"IF(Descriptions!K55=\"Building Work and Repairs\",Descriptions!I55,0)","v":0},0,0,0,0,0,0,0,0,0,0,0,0,0,0,0,0,0,0,0,0,0,null,{"$f":"IF(Descriptions!K55=\"Building Work and Repairs\",Descriptions!AB55,0)","v":0},{"$f":"IF([1]Descriptions!K53=\"Building Work and Repairs\",[1]Descriptions!I53,0)","v":0},"0General Account"]
[{"$f":"IF(Descriptions!K56=\"Building Work and Repairs\",Descriptions!I56,0)","v":0},0,0,0,0,0,0,0,0,0,0,0,0,0,0,0,0,0,0,0,0,0,null,{"$f":"IF(Descriptions!K56=\"Building Work and Repairs\",Descriptions!AB56,0)","v":0},{"$f":"IF([1]Descriptions!K54=\"Building Work and Repairs\",[1]Descriptions!I54,0)","v":0},"0General Account"]
[{"$f":"IF(Descriptions!K57=\"Building Work and Repairs\",Descriptions!I57,0)","v":0},0,0,0,0,0,0,0,0,0,0,0,0,0,0,0,0,0,0,0,0,0,null,{"$f":"IF(Descriptions!K57=\"Building Work and Repairs\",Descriptions!AB57,0)","v":0},{"$f":"IF([1]Descriptions!K55=\"Building Work and Repairs\",[1]Descriptions!I55,0)","v":0},"0General Account"]
[{"$f":"IF(Descriptions!K58=\"Building Work and Repairs\",Descriptions!I58,0)","v":0},0,0,0,0,0,0,0,0,0,0,0,0,0,0,0,0,0,0,0,0,0,null,{"$f":"IF(Descriptions!K58=\"Building Work and Repairs\",Descriptions!AB58,0)","v":0},{"$f":"IF([1]Descriptions!K56=\"Building Work and Repairs\",[1]Descriptions!I56,0)","v":0},"0General Account"]
[{"$f":"IF(Descriptions!K59=\"Building Work and Repairs\",Descriptions!I59,0)","v":0},0,0,0,0,0,0,0,0,0,0,0,0,0,0,0,0,0,0,0,0,0,null,{"$f":"IF(Descriptions!K59=\"Building Work and Repairs\",Descriptions!AB59,0)","v":0},{"$f":"IF([1]Descriptions!K57=\"Building Work and Repairs\",[1]Descriptions!I57,0)","v":0},"0General Account"]
[{"$f":"IF(Descriptions!K60=\"Building Work and Repairs\",Descriptions!I60,0)","v":0},0,0,0,0,0,0,0,0,0,0,0,0,0,0,0,0,0,0,0,0,0,null,{"$f":"IF(Descriptions!K60=\"Building Work and Repairs\",Descriptions!AB60,0)","v":0},{"$f":"IF([1]Descriptions!K58=\"Building Work and Repairs\",[1]Descriptions!I58,0)","v":0},"0General Account"]
[{"$f":"IF(Descriptions!K61=\"Building Work and Repairs\",Descriptions!I61,0)","v":0},0,0,0,0,0,0,0,0,0,0,0,0,0,0,0,0,0,0,0,0,0,null,{"$f":"IF(Descriptions!K61=\"Building Work and Repairs\",Descriptions!AB61,0)","v":0},{"$f":"IF([1]Descriptions!K59=\"Building Work and Repairs\",[1]Descriptions!I59,0)","v":0},"0General Account"]
[{"$f":"IF(Descriptions!K62=\"Building Work and Repairs\",Descriptions!I62,0)","v":0},0,0,0,0,0,0,0,0,0,0,0,0,0,0,0,0,0,0,0,0,0,null,{"$f":"IF(Descriptions!K62=\"Building Work and Repairs\",Descriptions!AB62,0)","v":0},{"$f":"IF([1]Descriptions!K60=\"Building Work and Repairs\",[1]Descriptions!I60,0)","v":0},"0General Account"]
[{"$f":"IF(Descriptions!K63=\"Building Work and Repairs\",Descriptions!I63,0)","v":0},0,0,0,0,0,0,0,0,0,0,0,0,0,0,0,0,0,0,0,0,0,null,{"$f":"IF(Descriptions!K63=\"Building Work and Repairs\",Descriptions!AB63,0)","v":0},{"$f":"IF([1]Descriptions!K61=\"Building Work and Repairs\",[1]Descriptions!I61,0)","v":0},"0General Account"]
[{"$f":"IF(Descriptions!K64=\"Building Work and Repairs\",Descriptions!I64,0)","v":0},0,0,0,0,0,0,0,0,0,0,0,0,0,0,0,0,0,0,0,0,0,null,{"$f":"IF(Descriptions!K64=\"Building Work and Repairs\",Descriptions!AB64,0)","v":0},{"$f":"IF([1]Descriptions!K62=\"Building Work and Repairs\",[1]Descriptions!I62,0)","v":0},"0General Account"]
[{"$f":"IF(Descriptions!K65=\"Building Work and Repairs\",Descriptions!I65,0)","v":0},0,0,0,0,0,0,0,0,0,0,0,0,0,0,0,0,0,0,0,0,0,null,{"$f":"IF(Descriptions!K65=\"Building Work and Repairs\",Descriptions!AB65,0)","v":0},{"$f":"IF([1]Descriptions!K63=\"Building Work and Repairs\",[1]Descriptions!I63,0)","v":0},"0General Account"]
[{"$f":"IF(Descriptions!K66=\"Building Work and Repairs\",Descriptions!I66,0)","v":0},0,0,0,0,0,0,0,0,0,0,0,0,0,0,0,0,0,0,0,0,0,null,{"$f":"IF(Descriptions!K66=\"Building Work and Repairs\",Descriptions!AB66,0)","v":0},{"$f":"IF([1]Descriptions!K64=\"Building Work and Repairs\",[1]Descriptions!I64,0)","v":0},"0General Account"]
[{"$f":"IF(Descriptions!K67=\"Building Work and Repairs\",Descriptions!I67,0)","v":0},0,0,0,0,0,0,0,0,0,0,0,0,0,0,0,0,0,0,0,0,0,null,{"$f":"IF(Descriptions!K67=\"Building Work and Repairs\",Descriptions!AB67,0)","v":0},{"$f":"IF([1]Descriptions!K65=\"Building Work and Repairs\",[1]Descriptions!I65,0)","v":0},"0General Account"]
[{"$f":"IF(Descriptions!K68=\"Building Work and Repairs\",Descriptions!I68,0)","v":0},0,0,0,0,0,0,0,0,0,0,0,0,0,0,0,0,0,0,0,0,0,null,{"$f":"IF(Descriptions!K68=\"Building Work and Repairs\",Descriptions!AB68,0)","v":0},{"$f":"IF([1]Descriptions!K66=\"Building Work and Repairs\",[1]Descriptions!I66,0)","v":0},"0General Account"]
[{"$f":"IF(Descriptions!K69=\"Building Work and Repairs\",Descriptions!I69,0)","v":0},0,0,0,0,0,0,0,0,0,0,0,0,0,0,0,0,0,0,0,0,0,null,{"$f":"IF(Descriptions!K69=\"Building Work and Repairs\",Descriptions!AB69,0)","v":0},{"$f":"IF([1]Descriptions!K67=\"Building Work and Repairs\",[1]Descriptions!I67,0)","v":0},"0General Account"]
[{"$f":"IF(Descriptions!K70=\"Building Work and Repairs\",Descriptions!I70,0)","v":0},0,0,0,0,0,0,0,0,0,0,0,0,0,0,0,0,0,0,0,0,0,null,{"$f":"IF(Descriptions!K70=\"Building Work and Repairs\",Descriptions!AB70,0)","v":0},{"$f":"IF([1]Descriptions!K68=\"Building Work and Repairs\",[1]Descriptions!I68,0)","v":0},"0General Account"]
[{"$f":"IF(Descriptions!K71=\"Building Work and Repairs\",Descriptions!I71,0)","v":0},0,0,0,0,0,0,0,0,0,0,0,0,0,0,0,0,0,0,0,0,0,null,{"$f":"IF(Descriptions!K71=\"Building Work and Repairs\",Descriptions!AB71,0)","v":0},{"$f":"IF([1]Descriptions!K69=\"Building Work and Repairs\",[1]Descriptions!I69,0)","v":0},"0General Account"]
[{"$f":"IF(Descriptions!K72=\"Building Work and Repairs\",Descriptions!I72,0)","v":0},0,0,0,0,0,0,0,0,0,0,0,0,0,0,0,0,0,0,0,0,0,null,{"$f":"IF(Descriptions!K72=\"Building Work and Repairs\",Descriptions!AB72,0)","v":0},{"$f":"IF([1]Descriptions!K70=\"Building Work and Repairs\",[1]Descriptions!I70,0)","v":0},"0General Account"]
[{"$f":"IF(Descriptions!K73=\"Building Work and Repairs\",Descriptions!I73,0)","v":0},0,0,0,0,0,0,0,0,0,0,0,0,0,0,0,0,0,0,0,0,0,null,{"$f":"IF(Descriptions!K73=\"Building Work and Repairs\",Descriptions!AB73,0)","v":0},{"$f":"IF([1]Descriptions!K71=\"Building Work and Repairs\",[1]Descriptions!I71,0)","v":0},"0General Account"]
[{"$f":"IF(Descriptions!K74=\"Building Work and Repairs\",Descriptions!I74,0)","v":0},0,0,0,0,0,0,0,0,0,0,0,0,0,0,0,0,0,0,0,0,0,null,{"$f":"IF(Descriptions!K74=\"Building Work and Repairs\",Descriptions!AB74,0)","v":0},{"$f":"IF([1]Descriptions!K72=\"Building Work and Repairs\",[1]Descriptions!I72,0)","v":0},"0General Account"]
[{"$f":"IF(Descriptions!K75=\"Building Work and Repairs\",Descriptions!I75,0)","v":0},0,0,0,0,0,0,0,0,0,0,0,0,0,0,0,0,0,0,0,0,0,null,{"$f":"IF(Descriptions!K75=\"Building Work and Repairs\",Descriptions!AB75,0)","v":0},{"$f":"IF([1]Descriptions!K73=\"Building Work and Repairs\",[1]Descriptions!I73,0)","v":0},"0General Account"]
[{"$f":"IF(Descriptions!K76=\"Building Work and Repairs\",Descriptions!I76,0)","v":0},0,0,0,0,0,0,0,0,0,0,0,0,0,0,0,0,0,0,0,0,0,null,{"$f":"IF(Descriptions!K76=\"Building Work and Repairs\",Descriptions!AB76,0)","v":0},{"$f":"IF([1]Descriptions!K74=\"Building Work and Repairs\",[1]Descriptions!I74,0)","v":0},"0General Account"]
[{"$f":"IF(Descriptions!K77=\"Building Work and Repairs\",Descriptions!I77,0)","v":0},0,0,0,0,0,0,0,0,0,0,0,0,0,0,0,0,0,0,0,0,0,null,{"$f":"IF(Descriptions!K77=\"Building Work and Repairs\",Descriptions!AB77,0)","v":0},{"$f":"IF([1]Descriptions!K75=\"Building Work and Repairs\",[1]Descriptions!I75,0)","v":0},"0General Account"]
[{"$f":"IF(Descriptions!K78=\"Building Work and Repairs\",Descriptions!I78,0)","v":0},0,0,0,0,0,0,0,0,0,0,0,0,0,0,0,0,0,0,0,0,0,null,{"$f":"IF(Descriptions!K78=\"Building Work and Repairs\",Descriptions!AB78,0)","v":0},{"$f":"IF([1]Descriptions!K76=\"Building Work and Repairs\",[1]Descriptions!I76,0)","v":0},"0General Account"]
[{"$f":"IF(Descriptions!K79=\"Building Work and Repairs\",Descriptions!I79,0)","v":0},0,0,0,0,0,0,0,0,0,0,0,0,0,0,0,0,0,0,0,0,0,null,{"$f":"IF(Descriptions!K79=\"Building Work and Repairs\",Descriptions!AB79,0)","v":0},{"$f":"IF([1]Descriptions!K77=\"Building Work and Repairs\",[1]Descriptions!I77,0)","v":0},"0General Account"]
[{"$f":"IF(Descriptions!K80=\"Building Work and Repairs\",Descriptions!I80,0)","v":0},0,0,0,0,0,0,0,0,0,0,0,0,0,0,0,0,0,0,0,0,0,null,{"$f":"IF(Descriptions!K80=\"Building Work and Repairs\",Descriptions!AB80,0)","v":0},{"$f":"IF([1]Descriptions!K78=\"Building Work and Repairs\",[1]Descriptions!I78,0)","v":0},"0General Account"]
[{"$f":"IF(Descriptions!K81=\"Building Work and Repairs\",Descriptions!I81,0)","v":0},0,0,0,0,0,0,0,0,0,0,0,0,0,0,0,0,0,0,0,0,0,null,{"$f":"IF(Descriptions!K81=\"Building Work and Repairs\",Descriptions!AB81,0)","v":0},{"$f":"IF([1]Descriptions!K79=\"Building Work and Repairs\",[1]Descriptions!I79,0)","v":0},"0General Account"]
[{"$f":"IF(Descriptions!K82=\"Building Work and Repairs\",Descriptions!I82,0)","v":0},0,0,0,0,0,0,0,0,0,0,0,0,0,0,0,0,0,0,0,0,0,null,{"$f":"IF(Descriptions!K82=\"Building Work and Repairs\",Descriptions!AB82,0)","v":0},{"$f":"IF([1]Descriptions!K80=\"Building Work and Repairs\",[1]Descriptions!I80,0)","v":0},"0General Account"]
[{"$f":"IF(Descriptions!K83=\"Building Work and Repairs\",Descriptions!I83,0)","v":0},0,0,0,0,0,0,0,0,0,0,0,0,0,0,0,0,0,0,0,0,0,null,{"$f":"IF(Descriptions!K83=\"Building Work and Repairs\",Descriptions!AB83,0)","v":0},{"$f":"IF([1]Descriptions!K81=\"Building Work and Repairs\",[1]Descriptions!I81,0)","v":0},"0General Account"]
[{"$f":"IF(Descriptions!K84=\"Building Work and Repairs\",Descriptions!I84,0)","v":0},0,0,0,0,0,0,0,0,0,0,0,0,0,0,0,0,0,0,0,0,0,null,{"$f":"IF(Descriptions!K84=\"Building Work and Repairs\",Descriptions!AB84,0)","v":0},{"$f":"IF([1]Descriptions!K82=\"Building Work and Repairs\",[1]Descriptions!I82,0)","v":0},"0General Account"]
[null,{"$f":"SUM(B791:B843)","v":0},0,0,0,0,0,0,0,0,0,0,0,0,0,0,0,0,0,0,0,0,null,{"$f":"X790","v":0}]
["COSTS OF GENERATING FUNDS",null,null,null,null,null,null,null,null,null,null,null,null,null,null,null,null,null,null,null,null,null,null,{"$f":"SUM(X846:X899)","v":0}]
["Fund Raising",0,0,0,0,0,0,0,0,0,0,0,0,0,0,0,0,0,0,0,0,0,null,{"$f":"Descriptions!AB17","v":0},{"$f":"[1]Descriptions!I15","v":"Fund Raising"},{"$f":"CONCATENATE(Y846,$Y$3)","v":"Fund RaisingGeneral Account"}]
["Bookstall",0,0,0,0,0,0,0,0,0,0,0,0,0,0,0,0,0,0,0,0,0,null,{"$f":"Descriptions!AB30","v":0},{"$f":"[1]Descriptions!I28","v":"Bookstall"},{"$f":"CONCATENATE(Y847,$Y$3)","v":"BookstallGeneral Account"}]
["Magazine",0,0,0,0,0,0,0,0,0,0,0,0,0,0,0,0,0,0,0,0,0,null,{"$f":"Descriptions!AB32","v":0},{"$f":"[1]Descriptions!I30","v":"Magazine"},{"$f":"CONCATENATE(Y848,$Y$3)","v":"MagazineGeneral Account"}]
["Hall Running Costs",0,0,0,0,0,0,0,0,0,0,0,0,0,0,0,0,0,0,0,0,0,null,{"$f":"Descriptions!AB31","v":0},{"$f":"[1]Descriptions!I29","v":"Hall Running Costs"},{"$f":"CONCATENATE(Y849,$Y$3)","v":"Hall Running CostsGeneral Account"}]
[{"$f":"IF(Descriptions!K35=\"Costs of Generating Funds\",Descriptions!I35,0)","v":0},0,0,0,0,0,0,0,0,0,0,0,0,0,0,0,0,0,0,0,0,0,null,{"$f":"IF(Descriptions!K35=\"Costs of Generating Funds\",Descriptions!AB35,0)","v":0},{"$f":"IF([1]Descriptions!K33=\"Costs of Generating Funds\",[1]Descriptions!I33,0)","v":0},{"$f":"CONCATENATE(Y850,$Y$3)","v":"0General Account"}]
[{"$f":"IF(Descriptions!K36=\"Costs of Generating Funds\",Descriptions!I36,0)","v":0},0,0,0,0,0,0,0,0,0,0,0,0,0,0,0,0,0,0,0,0,0,null,{"$f":"IF(Descriptions!K36=\"Costs of Generating Funds\",Descriptions!AB36,0)","v":0},{"$f":"IF([1]Descriptions!K34=\"Costs of Generating Funds\",[1]Descriptions!I34,0)","v":0},{"$f":"CONCATENATE(Y851,$Y$3)","v":"0General Account"}]
[{"$f":"IF(Descriptions!K37=\"Costs of Generating Funds\",Descriptions!I37,0)","v":0},0,0,0,0,0,0,0,0,0,0,0,0,0,0,0,0,0,0,0,0,0,null,{"$f":"IF(Descriptions!K37=\"Costs of Generating Funds\",Descriptions!AB37,0)","v":0},{"$f":"IF([1]Descriptions!K35=\"Costs of Generating Funds\",[1]Descriptions!I35,0)","v":0},"0General Account"]
[{"$f":"IF(Descriptions!K38=\"Costs of Generating Funds\",Descriptions!I38,0)","v":0},0,0,0,0,0,0,0,0,0,0,0,0,0,0,0,0,0,0,0,0,0,null,{"$f":"IF(Descriptions!K38=\"Costs of Generating Funds\",Descriptions!AB38,0)","v":0},{"$f":"IF([1]Descriptions!K36=\"Costs of Generating Funds\",[1]Descriptions!I36,0)","v":0},"0General Account"]
[{"$f":"IF(Descriptions!K39=\"Costs of Generating Funds\",Descriptions!I39,0)","v":0},0,0,0,0,0,0,0,0,0,0,0,0,0,0,0,0,0,0,0,0,0,null,{"$f":"IF(Descriptions!K39=\"Costs of Generating Funds\",Descriptions!AB39,0)","v":0},{"$f":"IF([1]Descriptions!K37=\"Costs of Generating Funds\",[1]Descriptions!I37,0)","v":0},"0General Account"]
[{"$f":"IF(Descriptions!K40=\"Costs of Generating Funds\",Descriptions!I40,0)","v":0},0,0,0,0,0,0,0,0,0,0,0,0,0,0,0,0,0,0,0,0,0,null,{"$f":"IF(Descriptions!K40=\"Costs of Generating Funds\",Descriptions!AB40,0)","v":0},{"$f":"IF([1]Descriptions!K38=\"Costs of Generating Funds\",[1]Descriptions!I38,0)","v":0},"0General Account"]
[{"$f":"IF(Descriptions!K41=\"Costs of Generating Funds\",Descriptions!I41,0)","v":0},0,0,0,0,0,0,0,0,0,0,0,0,0,0,0,0,0,0,0,0,0,null,{"$f":"IF(Descriptions!K41=\"Costs of Generating Funds\",Descriptions!AB41,0)","v":0},{"$f":"IF([1]Descriptions!K39=\"Costs of Generating Funds\",[1]Descriptions!I39,0)","v":0},"0General Account"]
[{"$f":"IF(Descriptions!K42=\"Costs of Generating Funds\",Descriptions!I42,0)","v":0},0,0,0,0,0,0,0,0,0,0,0,0,0,0,0,0,0,0,0,0,0,null,{"$f":"IF(Descriptions!K42=\"Costs of Generating Funds\",Descriptions!AB42,0)","v":0},{"$f":"IF([1]Descriptions!K40=\"Costs of Generating Funds\",[1]Descriptions!I40,0)","v":0},"0General Account"]
[{"$f":"IF(Descriptions!K43=\"Costs of Generating Funds\",Descriptions!I43,0)","v":0},0,0,0,0,0,0,0,0,0,0,0,0,0,0,0,0,0,0,0,0,0,null,{"$f":"IF(Descriptions!K43=\"Costs of Generating Funds\",Descriptions!AB43,0)","v":0},{"$f":"IF([1]Descriptions!K41=\"Costs of Generating Funds\",[1]Descriptions!I41,0)","v":0},"0General Account"]
[{"$f":"IF(Descriptions!K44=\"Costs of Generating Funds\",Descriptions!I44,0)","v":0},0,0,0,0,0,0,0,0,0,0,0,0,0,0,0,0,0,0,0,0,0,null,{"$f":"IF(Descriptions!K44=\"Costs of Generating Funds\",Descriptions!AB44,0)","v":0},{"$f":"IF([1]Descriptions!K42=\"Costs of Generating Funds\",[1]Descriptions!I42,0)","v":0},"0General Account"]
[{"$f":"IF(Descriptions!K45=\"Costs of Generating Funds\",Descriptions!I45,0)","v":0},0,0,0,0,0,0,0,0,0,0,0,0,0,0,0,0,0,0,0,0,0,null,{"$f":"IF(Descriptions!K45=\"Costs of Generating Funds\",Descriptions!AB45,0)","v":0},{"$f":"IF([1]Descriptions!K43=\"Costs of Generating Funds\",[1]Descriptions!I43,0)","v":0},"0General Account"]
[{"$f":"IF(Descriptions!K46=\"Costs of Generating Funds\",Descriptions!I46,0)","v":0},0,0,0,0,0,0,0,0,0,0,0,0,0,0,0,0,0,0,0,0,0,null,{"$f":"IF(Descriptions!K46=\"Costs of Generating Funds\",Descriptions!AB46,0)","v":0},{"$f":"IF([1]Descriptions!K44=\"Costs of Generating Funds\",[1]Descriptions!I44,0)","v":0},"0General Account"]
[{"$f":"IF(Descriptions!K47=\"Costs of Generating Funds\",Descriptions!I47,0)","v":0},0,0,0,0,0,0,0,0,0,0,0,0,0,0,0,0,0,0,0,0,0,null,{"$f":"IF(Descriptions!K47=\"Costs of Generating Funds\",Descriptions!AB47,0)","v":0},{"$f":"IF([1]Descriptions!K45=\"Costs of Generating Funds\",[1]Descriptions!I45,0)","v":0},"0General Account"]
[{"$f":"IF(Descriptions!K48=\"Costs of Generating Funds\",Descriptions!I48,0)","v":0},0,0,0,0,0,0,0,0,0,0,0,0,0,0,0,0,0,0,0,0,0,null,{"$f":"IF(Descriptions!K48=\"Costs of Generating Funds\",Descriptions!AB48,0)","v":0},{"$f":"IF([1]Descriptions!K46=\"Costs of Generating Funds\",[1]Descriptions!I46,0)","v":0},"0General Account"]
[{"$f":"IF(Descriptions!K49=\"Costs of Generating Funds\",Descriptions!I49,0)","v":0},0,0,0,0,0,0,0,0,0,0,0,0,0,0,0,0,0,0,0,0,0,null,{"$f":"IF(Descriptions!K49=\"Costs of Generating Funds\",Descriptions!AB49,0)","v":0},{"$f":"IF([1]Descriptions!K47=\"Costs of Generating Funds\",[1]Descriptions!I47,0)","v":0},"0General Account"]
[{"$f":"IF(Descriptions!K50=\"Costs of Generating Funds\",Descriptions!I50,0)","v":0},0,0,0,0,0,0,0,0,0,0,0,0,0,0,0,0,0,0,0,0,0,null,{"$f":"IF(Descriptions!K50=\"Costs of Generating Funds\",Descriptions!AB50,0)","v":0},{"$f":"IF([1]Descriptions!K48=\"Costs of Generating Funds\",[1]Descriptions!I48,0)","v":0},"0General Account"]
[{"$f":"IF(Descriptions!K51=\"Costs of Generating Funds\",Descriptions!I51,0)","v":0},0,0,0,0,0,0,0,0,0,0,0,0,0,0,0,0,0,0,0,0,0,null,{"$f":"IF(Descriptions!K51=\"Costs of Generating Funds\",Descriptions!AB51,0)","v":0},{"$f":"IF([1]Descriptions!K49=\"Costs of Generating Funds\",[1]Descriptions!I49,0)","v":0},"0General Account"]
[{"$f":"IF(Descriptions!K52=\"Costs of Generating Funds\",Descriptions!I52,0)","v":0},0,0,0,0,0,0,0,0,0,0,0,0,0,0,0,0,0,0,0,0,0,null,{"$f":"IF(Descriptions!K52=\"Costs of Generating Funds\",Descriptions!AB52,0)","v":0},{"$f":"IF([1]Descriptions!K50=\"Costs of Generating Funds\",[1]Descriptions!I50,0)","v":0},"0General Account"]
[{"$f":"IF(Descriptions!K53=\"Costs of Generating Funds\",Descriptions!I53,0)","v":0},0,0,0,0,0,0,0,0,0,0,0,0,0,0,0,0,0,0,0,0,0,null,{"$f":"IF(Descriptions!K53=\"Costs of Generating Funds\",Descriptions!AB53,0)","v":0},{"$f":"IF([1]Descriptions!K51=\"Costs of Generating Funds\",[1]Descriptions!I51,0)","v":0},"0General Account"]
[{"$f":"IF(Descriptions!K54=\"Costs of Generating Funds\",Descriptions!I54,0)","v":0},0,0,0,0,0,0,0,0,0,0,0,0,0,0,0,0,0,0,0,0,0,null,{"$f":"IF(Descriptions!K54=\"Costs of Generating Funds\",Descriptions!AB54,0)","v":0},{"$f":"IF([1]Descriptions!K52=\"Costs of Generating Funds\",[1]Descriptions!I52,0)","v":0},"0General Account"]
[{"$f":"IF(Descriptions!K55=\"Costs of Generating Funds\",Descriptions!I55,0)","v":0},0,0,0,0,0,0,0,0,0,0,0,0,0,0,0,0,0,0,0,0,0,null,{"$f":"IF(Descriptions!K55=\"Costs of Generating Funds\",Descriptions!AB55,0)","v":0},{"$f":"IF([1]Descriptions!K53=\"Costs of Generating Funds\",[1]Descriptions!I53,0)","v":0},"0General Account"]
[{"$f":"IF(Descriptions!K56=\"Costs of Generating Funds\",Descriptions!I56,0)","v":0},0,0,0,0,0,0,0,0,0,0,0,0,0,0,0,0,0,0,0,0,0,null,{"$f":"IF(Descriptions!K56=\"Costs of Generating Funds\",Descriptions!AB56,0)","v":0},{"$f":"IF([1]Descriptions!K54=\"Costs of Generating Funds\",[1]Descriptions!I54,0)","v":0},"0General Account"]
[{"$f":"IF(Descriptions!K57=\"Costs of Generating Funds\",Descriptions!I57,0)","v":0},0,0,0,0,0,0,0,0,0,0,0,0,0,0,0,0,0,0,0,0,0,null,{"$f":"IF(Descriptions!K57=\"Costs of Generating Funds\",Descriptions!AB57,0)","v":0},{"$f":"IF([1]Descriptions!K55=\"Costs of Generating Funds\",[1]Descriptions!I55,0)","v":0},"0General Account"]
[{"$f":"IF(Descriptions!K58=\"Costs of Generating Funds\",Descriptions!I58,0)","v":0},0,0,0,0,0,0,0,0,0,0,0,0,0,0,0,0,0,0,0,0,0,null,{"$f":"IF(Descriptions!K58=\"Costs of Generating Funds\",Descriptions!AB58,0)","v":0},{"$f":"IF([1]Descriptions!K56=\"Costs of Generating Funds\",[1]Descriptions!I56,0)","v":0},"0General Account"]
[{"$f":"IF(Descriptions!K59=\"Costs of Generating Funds\",Descriptions!I59,0)","v":0},0,0,0,0,0,0,0,0,0,0,0,0,0,0,0,0,0,0,0,0,0,null,{"$f":"IF(Descriptions!K59=\"Costs of Generating Funds\",Descriptions!AB59,0)","v":0},{"$f":"IF([1]Descriptions!K57=\"Costs of Generating Funds\",[1]Descriptions!I57,0)","v":0},"0General Account"]
[{"$f":"IF(Descriptions!K60=\"Costs of Generating Funds\",Descriptions!I60,0)","v":0},0,0,0,0,0,0,0,0,0,0,0,0,0,0,0,0,0,0,0,0,0,null,{"$f":"IF(Descriptions!K60=\"Costs of Generating Funds\",Descriptions!AB60,0)","v":0},{"$f":"IF([1]Descriptions!K58=\"Costs of Generating Funds\",[1]Descriptions!I58,0)","v":0},"0General Account"]
[{"$f":"IF(Descriptions!K61=\"Costs of Generating Funds\",Descriptions!I61,0)","v":0},0,0,0,0,0,0,0,0,0,0,0,0,0,0,0,0,0,0,0,0,0,null,{"$f":"IF(Descriptions!K61=\"Costs of Generating Funds\",Descriptions!AB61,0)","v":0},{"$f":"IF([1]Descriptions!K59=\"Costs of Generating Funds\",[1]Descriptions!I59,0)","v":0},"0General Account"]
[{"$f":"IF(Descriptions!K62=\"Costs of Generating Funds\",Descriptions!I62,0)","v":0},0,0,0,0,0,0,0,0,0,0,0,0,0,0,0,0,0,0,0,0,0,null,{"$f":"IF(Descriptions!K62=\"Costs of Generating Funds\",Descriptions!AB62,0)","v":0},{"$f":"IF([1]Descriptions!K60=\"Costs of Generating Funds\",[1]Descriptions!I60,0)","v":0},"0General Account"]
[{"$f":"IF(Descriptions!K63=\"Costs of Generating Funds\",Descriptions!I63,0)","v":0},0,0,0,0,0,0,0,0,0,0,0,0,0,0,0,0,0,0,0,0,0,null,{"$f":"IF(Descriptions!K63=\"Costs of Generating Funds\",Descriptions!AB63,0)","v":0},{"$f":"IF([1]Descriptions!K61=\"Costs of Generating Funds\",[1]Descriptions!I61,0)","v":0},"0General Account"]
[{"$f":"IF(Descriptions!K64=\"Costs of Generating Funds\",Descriptions!I64,0)","v":0},0,0,0,0,0,0,0,0,0,0,0,0,0,0,0,0,0,0,0,0,0,null,{"$f":"IF(Descriptions!K64=\"Costs of Generating Funds\",Descriptions!AB64,0)","v":0},{"$f":"IF([1]Descriptions!K62=\"Costs of Generating Funds\",[1]Descriptions!I62,0)","v":0},"0General Account"]
[{"$f":"IF(Descriptions!K65=\"Costs of Generating Funds\",Descriptions!I65,0)","v":0},0,0,0,0,0,0,0,0,0,0,0,0,0,0,0,0,0,0,0,0,0,null,{"$f":"IF(Descriptions!K65=\"Costs of Generating Funds\",Descriptions!AB65,0)","v":0},{"$f":"IF([1]Descriptions!K63=\"Costs of Generating Funds\",[1]Descriptions!I63,0)","v":0},"0General Account"]
[{"$f":"IF(Descriptions!K66=\"Costs of Generating Funds\",Descriptions!I66,0)","v":0},0,0,0,0,0,0,0,0,0,0,0,0,0,0,0,0,0,0,0,0,0,null,{"$f":"IF(Descriptions!K66=\"Costs of Generating Funds\",Descriptions!AB66,0)","v":0},{"$f":"IF([1]Descriptions!K64=\"Costs of Generating Funds\",[1]Descriptions!I64,0)","v":0},"0General Account"]
[{"$f":"IF(Descriptions!K67=\"Costs of Generating Funds\",Descriptions!I67,0)","v":0},0,0,0,0,0,0,0,0,0,0,0,0,0,0,0,0,0,0,0,0,0,null,{"$f":"IF(Descriptions!K67=\"Costs of Generating Funds\",Descriptions!AB67,0)","v":0},{"$f":"IF([1]Descriptions!K65=\"Costs of Generating Funds\",[1]Descriptions!I65,0)","v":0},"0General Account"]
[{"$f":"IF(Descriptions!K68=\"Costs of Generating Funds\",Descriptions!I68,0)","v":0},0,0,0,0,0,0,0,0,0,0,0,0,0,0,0,0,0,0,0,0,0,null,{"$f":"IF(Descriptions!K68=\"Costs of Generating Funds\",Descriptions!AB68,0)","v":0},{"$f":"IF([1]Descriptions!K66=\"Costs of Generating Funds\",[1]Descriptions!I66,0)","v":0},"0General Account"]
[{"$f":"IF(Descriptions!K69=\"Costs of Generating Funds\",Descriptions!I69,0)","v":0},0,0,0,0,0,0,0,0,0,0,0,0,0,0,0,0,0,0,0,0,0,null,{"$f":"IF(Descriptions!K69=\"Costs of Generating Funds\",Descriptions!AB69,0)","v":0},{"$f":"IF([1]Descriptions!K67=\"Costs of Generating Funds\",[1]Descriptions!I67,0)","v":0},"0General Account"]
[{"$f":"IF(Descriptions!K70=\"Costs of Generating Funds\",Descriptions!I70,0)","v":0},0,0,0,0,0,0,0,0,0,0,0,0,0,0,0,0,0,0,0,0,0,null,{"$f":"IF(Descriptions!K70=\"Costs of Generating Funds\",Descriptions!AB70,0)","v":0},{"$f":"IF([1]Descriptions!K68=\"Costs of Generating Funds\",[1]Descriptions!I68,0)","v":0},"0General Account"]
[{"$f":"IF(Descriptions!K71=\"Costs of Generating Funds\",Descriptions!I71,0)","v":0},0,0,0,0,0,0,0,0,0,0,0,0,0,0,0,0,0,0,0,0,0,null,{"$f":"IF(Descriptions!K71=\"Costs of Generating Funds\",Descriptions!AB71,0)","v":0},{"$f":"IF([1]Descriptions!K69=\"Costs of Generating Funds\",[1]Descriptions!I69,0)","v":0},"0General Account"]
[{"$f":"IF(Descriptions!K72=\"Costs of Generating Funds\",Descriptions!I72,0)","v":0},0,0,0,0,0,0,0,0,0,0,0,0,0,0,0,0,0,0,0,0,0,null,{"$f":"IF(Descriptions!K72=\"Costs of Generating Funds\",Descriptions!AB72,0)","v":0},{"$f":"IF([1]Descriptions!K70=\"Costs of Generating Funds\",[1]Descriptions!I70,0)","v":0},"0General Account"]
[{"$f":"IF(Descriptions!K73=\"Costs of Generating Funds\",Descriptions!I73,0)","v":0},0,0,0,0,0,0,0,0,0,0,0,0,0,0,0,0,0,0,0,0,0,null,{"$f":"IF(Descriptions!K73=\"Costs of Generating Funds\",Descriptions!AB73,0)","v":0},{"$f":"IF([1]Descriptions!K71=\"Costs of Generating Funds\",[1]Descriptions!I71,0)","v":0},"0General Account"]
[{"$f":"IF(Descriptions!K74=\"Costs of Generating Funds\",Descriptions!I74,0)","v":0},0,0,0,0,0,0,0,0,0,0,0,0,0,0,0,0,0,0,0,0,0,null,{"$f":"IF(Descriptions!K74=\"Costs of Generating Funds\",Descriptions!AB74,0)","v":0},{"$f":"IF([1]Descriptions!K72=\"Costs of Generating Funds\",[1]Descriptions!I72,0)","v":0},"0General Account"]
[{"$f":"IF(Descriptions!K75=\"Costs of Generating Funds\",Descriptions!I75,0)","v":0},0,0,0,0,0,0,0,0,0,0,0,0,0,0,0,0,0,0,0,0,0,null,{"$f":"IF(Descriptions!K75=\"Costs of Generating Funds\",Descriptions!AB75,0)","v":0},{"$f":"IF([1]Descriptions!K73=\"Costs of Generating Funds\",[1]Descriptions!I73,0)","v":0},"0General Account"]
[{"$f":"IF(Descriptions!K76=\"Costs of Generating Funds\",Descriptions!I76,0)","v":0},0,0,0,0,0,0,0,0,0,0,0,0,0,0,0,0,0,0,0,0,0,null,{"$f":"IF(Descriptions!K76=\"Costs of Generating Funds\",Descriptions!AB76,0)","v":0},{"$f":"IF([1]Descriptions!K74=\"Costs of Generating Funds\",[1]Descriptions!I74,0)","v":0},"0General Account"]
[{"$f":"IF(Descriptions!K77=\"Costs of Generating Funds\",Descriptions!I77,0)","v":0},0,0,0,0,0,0,0,0,0,0,0,0,0,0,0,0,0,0,0,0,0,null,{"$f":"IF(Descriptions!K77=\"Costs of Generating Funds\",Descriptions!AB77,0)","v":0},{"$f":"IF([1]Descriptions!K75=\"Costs of Generating Funds\",[1]Descriptions!I75,0)","v":0},"0General Account"]
[{"$f":"IF(Descriptions!K78=\"Costs of Generating Funds\",Descriptions!I78,0)","v":0},0,0,0,0,0,0,0,0,0,0,0,0,0,0,0,0,0,0,0,0,0,null,{"$f":"IF(Descriptions!K78=\"Costs of Generating Funds\",Descriptions!AB78,0)","v":0},{"$f":"IF([1]Descriptions!K76=\"Costs of Generating Funds\",[1]Descriptions!I76,0)","v":0},"0General Account"]
[{"$f":"IF(Descriptions!K79=\"Costs of Generating Funds\",Descriptions!I79,0)","v":0},0,0,0,0,0,0,0,0,0,0,0,0,0,0,0,0,0,0,0,0,0,null,{"$f":"IF(Descriptions!K79=\"Costs of Generating Funds\",Descriptions!AB79,0)","v":0},{"$f":"IF([1]Descriptions!K77=\"Costs of Generating Funds\",[1]Descriptions!I77,0)","v":0},"0General Account"]
[{"$f":"IF(Descriptions!K80=\"Costs of Generating Funds\",Descriptions!I80,0)","v":0},0,0,0,0,0,0,0,0,0,0,0,0,0,0,0,0,0,0,0,0,0,null,{"$f":"IF(Descriptions!K80=\"Costs of Generating Funds\",Descriptions!AB80,0)","v":0},{"$f":"IF([1]Descriptions!K78=\"Costs of Generating Funds\",[1]Descriptions!I78,0)","v":0},"0General Account"]
[{"$f":"IF(Descriptions!K81=\"Costs of Generating Funds\",Descriptions!I81,0)","v":0},0,0,0,0,0,0,0,0,0,0,0,0,0,0,0,0,0,0,0,0,0,null,{"$f":"IF(Descriptions!K81=\"Costs of Generating Funds\",Descriptions!AB81,0)","v":0},{"$f":"IF([1]Descriptions!K79=\"Costs of Generating Funds\",[1]Descriptions!I79,0)","v":0},"0General Account"]
[{"$f":"IF(Descriptions!K82=\"Costs of Generating Funds\",Descriptions!I82,0)","v":0},0,0,0,0,0,0,0,0,0,0,0,0,0,0,0,0,0,0,0,0,0,null,{"$f":"IF(Descriptions!K82=\"Costs of Generating Funds\",Descriptions!AB82,0)","v":0},{"$f":"IF([1]Descriptions!K80=\"Costs of Generating Funds\",[1]Descriptions!I80,0)","v":0},"0General Account"]
[{"$f":"IF(Descriptions!K83=\"Costs of Generating Funds\",Descriptions!I83,0)","v":0},0,0,0,0,0,0,0,0,0,0,0,0,0,0,0,0,0,0,0,0,0,null,{"$f":"IF(Descriptions!K83=\"Costs of Generating Funds\",Descriptions!AB83,0)","v":0},{"$f":"IF([1]Descriptions!K81=\"Costs of Generating Funds\",[1]Descriptions!I81,0)","v":0},"0General Account"]
[{"$f":"IF(Descriptions!K84=\"Costs of Generating Funds\",Descriptions!I84,0)","v":0},0,0,0,0,0,0,0,0,0,0,0,0,0,0,0,0,0,0,0,0,0,null,{"$f":"IF(Descriptions!K84=\"Costs of Generating Funds\",Descriptions!AB84,0)","v":0},{"$f":"IF([1]Descriptions!K82=\"Costs of Generating Funds\",[1]Descriptions!I82,0)","v":0},"0General Account"]
[null,{"$f":"SUM(B846:B899)","v":0},0,0,0,0,0,0,0,0,0,0,0,0,0,0,0,0,0,0,0,0,null,{"$f":"X845","v":0}]
["ADMINISTRATION COSTS",null,null,null,null,null,null,null,null,null,null,null,null,null,null,null,null,null,null,null,null,null,null,{"$f":"SUM(X902:X956)","v":0}]
["Bank Charges",0,0,0,0,0,0,0,0,0,0,0,0,0,0,0,0,0,0,0,0,0,null,{"$f":"Descriptions!AB7","v":0},{"$f":"[1]Descriptions!I5","v":"Bank Charges"},{"$f":"CONCATENATE(Y902,$Y$3)","v":"Bank ChargesGeneral Account"}]
["Printing",0,0,0,0,0,0,0,0,0,0,0,0,0,0,0,0,0,0,0,0,0,null,{"$f":"Descriptions!AB25","v":0},{"$f":"[1]Descriptions!I23","v":"Printing"},"PrintingGeneral Account"]
["Stationery",0,0,0,0,0,0,0,0,0,0,0,0,0,0,0,0,0,0,0,0,0,null,{"$f":"Descriptions!AB28","v":0},{"$f":"[1]Descriptions!I26","v":"Stationery"},"StationeryGeneral Account"]
["Support Costs",0,0,0,0,0,0,0,0,0,0,0,0,0,0,0,0,0,0,0,0,0,null,{"$f":"Descriptions!AB29","v":0},{"$f":"[1]Descriptions!I27","v":"Support Costs"},"Support CostsGeneral Account"]
["Computer",0,0,0,0,0,0,0,0,0,0,0,0,0,0,0,0,0,0,0,0,0,null,{"$f":"Descriptions!AB16","v":0},{"$f":"[1]Descriptions!I14","v":"Computer"},"ComputerGeneral Account"]
[{"$f":"IF(Descriptions!K35=\"Administration Costs\",Descriptions!I35,0)","v":0},0,0,0,0,0,0,0,0,0,0,0,0,0,0,0,0,0,0,0,0,0,null,{"$f":"IF(Descriptions!K35=\"Administration Costs\",Descriptions!AB35,0)","v":0},{"$f":"IF([1]Descriptions!K33=\"Administration Costs\",[1]Descriptions!I33,0)","v":0},"0General Account"]
[{"$f":"IF(Descriptions!K36=\"Administration Costs\",Descriptions!I36,0)","v":0},0,0,0,0,0,0,0,0,0,0,0,0,0,0,0,0,0,0,0,0,0,null,{"$f":"IF(Descriptions!K36=\"Administration Costs\",Descriptions!AB36,0)","v":0},{"$f":"IF([1]Descriptions!K34=\"Administration Costs\",[1]Descriptions!I34,0)","v":0},"0General Account"]
[{"$f":"IF(Descriptions!K37=\"Administration Costs\",Descriptions!I37,0)","v":0},0,0,0,0,0,0,0,0,0,0,0,0,0,0,0,0,0,0,0,0,0,null,{"$f":"IF(Descriptions!K37=\"Administration Costs\",Descriptions!AB37,0)","v":0},{"$f":"IF([1]Descriptions!K35=\"Administration Costs\",[1]Descriptions!I35,0)","v":0},"0General Account"]
[{"$f":"IF(Descriptions!K38=\"Administration Costs\",Descriptions!I38,0)","v":0},0,0,0,0,0,0,0,0,0,0,0,0,0,0,0,0,0,0,0,0,0,null,{"$f":"IF(Descriptions!K38=\"Administration Costs\",Descriptions!AB38,0)","v":0},{"$f":"IF([1]Descriptions!K36=\"Administration Costs\",[1]Descriptions!I36,0)","v":0},"0General Account"]
[{"$f":"IF(Descriptions!K39=\"Administration Costs\",Descriptions!I39,0)","v":0},0,0,0,0,0,0,0,0,0,0,0,0,0,0,0,0,0,0,0,0,0,null,{"$f":"IF(Descriptions!K39=\"Administration Costs\",Descriptions!AB39,0)","v":0},{"$f":"IF([1]Descriptions!K37=\"Administration Costs\",[1]Descriptions!I37,0)","v":0},"0General Account"]
[{"$f":"IF(Descriptions!K40=\"Administration Costs\",Descriptions!I40,0)","v":0},0,0,0,0,0,0,0,0,0,0,0,0,0,0,0,0,0,0,0,0,0,null,{"$f":"IF(Descriptions!K40=\"Administration Costs\",Descriptions!AB40,0)","v":0},{"$f":"IF([1]Descriptions!K38=\"Administration Costs\",[1]Descriptions!I38,0)","v":0},"0General Account"]
[{"$f":"IF(Descriptions!K41=\"Administration Costs\",Descriptions!I41,0)","v":0},0,0,0,0,0,0,0,0,0,0,0,0,0,0,0,0,0,0,0,0,0,null,{"$f":"IF(Descriptions!K41=\"Administration Costs\",Descriptions!AB41,0)","v":0},{"$f":"IF([1]Descriptions!K39=\"Administration Costs\",[1]Descriptions!I39,0)","v":0},"0General Account"]
[{"$f":"IF(Descriptions!K42=\"Administration Costs\",Descriptions!I42,0)","v":0},0,0,0,0,0,0,0,0,0,0,0,0,0,0,0,0,0,0,0,0,0,null,{"$f":"IF(Descriptions!K42=\"Administration Costs\",Descriptions!AB42,0)","v":0},{"$f":"IF([1]Descriptions!K40=\"Administration Costs\",[1]Descriptions!I40,0)","v":0},"0General Account"]
[{"$f":"IF(Descriptions!K43=\"Administration Costs\",Descriptions!I43,0)","v":0},0,0,0,0,0,0,0,0,0,0,0,0,0,0,0,0,0,0,0,0,0,null,{"$f":"IF(Descriptions!K43=\"Administration Costs\",Descriptions!AB43,0)","v":0},{"$f":"IF([1]Descriptions!K41=\"Administration Costs\",[1]Descriptions!I41,0)","v":0},"0General Account"]
[{"$f":"IF(Descriptions!K44=\"Administration Costs\",Descriptions!I44,0)","v":0},0,0,0,0,0,0,0,0,0,0,0,0,0,0,0,0,0,0,0,0,0,null,{"$f":"IF(Descriptions!K44=\"Administration Costs\",Descriptions!AB44,0)","v":0},{"$f":"IF([1]Descriptions!K42=\"Administration Costs\",[1]Descriptions!I42,0)","v":0},"0General Account"]
[{"$f":"IF(Descriptions!K45=\"Administration Costs\",Descriptions!I45,0)","v":0},0,0,0,0,0,0,0,0,0,0,0,0,0,0,0,0,0,0,0,0,0,null,{"$f":"IF(Descriptions!K45=\"Administration Costs\",Descriptions!AB45,0)","v":0},{"$f":"IF([1]Descriptions!K43=\"Administration Costs\",[1]Descriptions!I43,0)","v":0},"0General Account"]
[{"$f":"IF(Descriptions!K46=\"Administration Costs\",Descriptions!I46,0)","v":0},0,0,0,0,0,0,0,0,0,0,0,0,0,0,0,0,0,0,0,0,0,null,{"$f":"IF(Descriptions!K46=\"Administration Costs\",Descriptions!AB46,0)","v":0},{"$f":"IF([1]Descriptions!K44=\"Administration Costs\",[1]Descriptions!I44,0)","v":0},"0General Account"]
[{"$f":"IF(Descriptions!K47=\"Administration Costs\",Descriptions!I47,0)","v":0},0,0,0,0,0,0,0,0,0,0,0,0,0,0,0,0,0,0,0,0,0,null,{"$f":"IF(Descriptions!K47=\"Administration Costs\",Descriptions!AB47,0)","v":0},{"$f":"IF([1]Descriptions!K45=\"Administration Costs\",[1]Descriptions!I45,0)","v":0},"0General Account"]
[{"$f":"IF(Descriptions!K48=\"Administration Costs\",Descriptions!I48,0)","v":0},0,0,0,0,0,0,0,0,0,0,0,0,0,0,0,0,0,0,0,0,0,null,{"$f":"IF(Descriptions!K48=\"Administration Costs\",Descriptions!AB48,0)","v":0},{"$f":"IF([1]Descriptions!K46=\"Administration Costs\",[1]Descriptions!I46,0)","v":0},"0General Account"]
[{"$f":"IF(Descriptions!K49=\"Administration Costs\",Descriptions!I49,0)","v":0},0,0,0,0,0,0,0,0,0,0,0,0,0,0,0,0,0,0,0,0,0,null,{"$f":"IF(Descriptions!K49=\"Administration Costs\",Descriptions!AB49,0)","v":0},{"$f":"IF([1]Descriptions!K47=\"Administration Costs\",[1]Descriptions!I47,0)","v":0},"0General Account"]
[{"$f":"IF(Descriptions!K50=\"Administration Costs\",Descriptions!I50,0)","v":0},0,0,0,0,0,0,0,0,0,0,0,0,0,0,0,0,0,0,0,0,0,null,{"$f":"IF(Descriptions!K50=\"Administration Costs\",Descriptions!AB50,0)","v":0},{"$f":"IF([1]Descriptions!K48=\"Administration Costs\",[1]Descriptions!I48,0)","v":0},"0General Account"]
[{"$f":"IF(Descriptions!K51=\"Administration Costs\",Descriptions!I51,0)","v":0},0,0,0,0,0,0,0,0,0,0,0,0,0,0,0,0,0,0,0,0,0,null,{"$f":"IF(Descriptions!K51=\"Administration Costs\",Descriptions!AB51,0)","v":0},{"$f":"IF([1]Descriptions!K49=\"Administration Costs\",[1]Descriptions!I49,0)","v":0},"0General Account"]
[{"$f":"IF(Descriptions!K52=\"Administration Costs\",Descriptions!I52,0)","v":0},0,0,0,0,0,0,0,0,0,0,0,0,0,0,0,0,0,0,0,0,0,null,{"$f":"IF(Descriptions!K52=\"Administration Costs\",Descriptions!AB52,0)","v":0},{"$f":"IF([1]Descriptions!K50=\"Administration Costs\",[1]Descriptions!I50,0)","v":0},"0General Account"]
[{"$f":"IF(Descriptions!K53=\"Administration Costs\",Descriptions!I53,0)","v":0},0,0,0,0,0,0,0,0,0,0,0,0,0,0,0,0,0,0,0,0,0,null,{"$f":"IF(Descriptions!K53=\"Administration Costs\",Descriptions!AB53,0)","v":0},{"$f":"IF([1]Descriptions!K51=\"Administration Costs\",[1]Descriptions!I51,0)","v":0},"0General Account"]
[{"$f":"IF(Descriptions!K54=\"Administration Costs\",Descriptions!I54,0)","v":0},0,0,0,0,0,0,0,0,0,0,0,0,0,0,0,0,0,0,0,0,0,null,{"$f":"IF(Descriptions!K54=\"Administration Costs\",Descriptions!AB54,0)","v":0},{"$f":"IF([1]Descriptions!K52=\"Administration Costs\",[1]Descriptions!I52,0)","v":0},"0General Account"]
[{"$f":"IF(Descriptions!K55=\"Administration Costs\",Descriptions!I55,0)","v":0},0,0,0,0,0,0,0,0,0,0,0,0,0,0,0,0,0,0,0,0,0,null,{"$f":"IF(Descriptions!K55=\"Administration Costs\",Descriptions!AB55,0)","v":0},{"$f":"IF([1]Descriptions!K53=\"Administration Costs\",[1]Descriptions!I53,0)","v":0},"0General Account"]
[{"$f":"IF(Descriptions!K56=\"Administration Costs\",Descriptions!I56,0)","v":0},0,0,0,0,0,0,0,0,0,0,0,0,0,0,0,0,0,0,0,0,0,null,{"$f":"IF(Descriptions!K56=\"Administration Costs\",Descriptions!AB56,0)","v":0},{"$f":"IF([1]Descriptions!K54=\"Administration Costs\",[1]Descriptions!I54,0)","v":0},"0General Account"]
[{"$f":"IF(Descriptions!K57=\"Administration Costs\",Descriptions!I57,0)","v":0},0,0,0,0,0,0,0,0,0,0,0,0,0,0,0,0,0,0,0,0,0,null,{"$f":"IF(Descriptions!K57=\"Administration Costs\",Descriptions!AB57,0)","v":0},{"$f":"IF([1]Descriptions!K55=\"Administration Costs\",[1]Descriptions!I55,0)","v":0},"0General Account"]
[{"$f":"IF(Descriptions!K58=\"Administration Costs\",Descriptions!I58,0)","v":0},0,0,0,0,0,0,0,0,0,0,0,0,0,0,0,0,0,0,0,0,0,null,{"$f":"IF(Descriptions!K58=\"Administration Costs\",Descriptions!AB58,0)","v":0},{"$f":"IF([1]Descriptions!K56=\"Administration Costs\",[1]Descriptions!I56,0)","v":0},"0General Account"]
[{"$f":"IF(Descriptions!K59=\"Administration Costs\",Descriptions!I59,0)","v":0},0,0,0,0,0,0,0,0,0,0,0,0,0,0,0,0,0,0,0,0,0,null,{"$f":"IF(Descriptions!K59=\"Administration Costs\",Descriptions!AB59,0)","v":0},{"$f":"IF([1]Descriptions!K57=\"Administration Costs\",[1]Descriptions!I57,0)","v":0},"0General Account"]
[{"$f":"IF(Descriptions!K60=\"Administration Costs\",Descriptions!I60,0)","v":0},0,0,0,0,0,0,0,0,0,0,0,0,0,0,0,0,0,0,0,0,0,null,{"$f":"IF(Descriptions!K60=\"Administration Costs\",Descriptions!AB60,0)","v":0},{"$f":"IF([1]Descriptions!K58=\"Administration Costs\",[1]Descriptions!I58,0)","v":0},"0General Account"]
[{"$f":"IF(Descriptions!K61=\"Administration Costs\",Descriptions!I61,0)","v":0},0,0,0,0,0,0,0,0,0,0,0,0,0,0,0,0,0,0,0,0,0,null,{"$f":"IF(Descriptions!K61=\"Administration Costs\",Descriptions!AB61,0)","v":0},{"$f":"IF([1]Descriptions!K59=\"Administration Costs\",[1]Descriptions!I59,0)","v":0},"0General Account"]
[{"$f":"IF(Descriptions!K62=\"Administration Costs\",Descriptions!I62,0)","v":0},0,0,0,0,0,0,0,0,0,0,0,0,0,0,0,0,0,0,0,0,0,null,{"$f":"IF(Descriptions!K62=\"Administration Costs\",Descriptions!AB62,0)","v":0},{"$f":"IF([1]Descriptions!K60=\"Administration Costs\",[1]Descriptions!I60,0)","v":0},"0General Account"]
[{"$f":"IF(Descriptions!K63=\"Administration Costs\",Descriptions!I63,0)","v":0},0,0,0,0,0,0,0,0,0,0,0,0,0,0,0,0,0,0,0,0,0,null,{"$f":"IF(Descriptions!K63=\"Administration Costs\",Descriptions!AB63,0)","v":0},{"$f":"IF([1]Descriptions!K61=\"Administration Costs\",[1]Descriptions!I61,0)","v":0},"0General Account"]
[{"$f":"IF(Descriptions!K64=\"Administration Costs\",Descriptions!I64,0)","v":0},0,0,0,0,0,0,0,0,0,0,0,0,0,0,0,0,0,0,0,0,0,null,{"$f":"IF(Descriptions!K64=\"Administration Costs\",Descriptions!AB64,0)","v":0},{"$f":"IF([1]Descriptions!K62=\"Administration Costs\",[1]Descriptions!I62,0)","v":0},"0General Account"]
[{"$f":"IF(Descriptions!K65=\"Administration Costs\",Descriptions!I65,0)","v":0},0,0,0,0,0,0,0,0,0,0,0,0,0,0,0,0,0,0,0,0,0,null,{"$f":"IF(Descriptions!K65=\"Administration Costs\",Descriptions!AB65,0)","v":0},{"$f":"IF([1]Descriptions!K63=\"Administration Costs\",[1]Descriptions!I63,0)","v":0},"0General Account"]
[{"$f":"IF(Descriptions!K66=\"Administration Costs\",Descriptions!I66,0)","v":0},0,0,0,0,0,0,0,0,0,0,0,0,0,0,0,0,0,0,0,0,0,null,{"$f":"IF(Descriptions!K66=\"Administration Costs\",Descriptions!AB66,0)","v":0},{"$f":"IF([1]Descriptions!K64=\"Administration Costs\",[1]Descriptions!I64,0)","v":0},"0General Account"]
[{"$f":"IF(Descriptions!K67=\"Administration Costs\",Descriptions!I67,0)","v":0},0,0,0,0,0,0,0,0,0,0,0,0,0,0,0,0,0,0,0,0,0,null,{"$f":"IF(Descriptions!K67=\"Administration Costs\",Descriptions!AB67,0)","v":0},{"$f":"IF([1]Descriptions!K65=\"Administration Costs\",[1]Descriptions!I65,0)","v":0},"0General Account"]
[{"$f":"IF(Descriptions!K68=\"Administration Costs\",Descriptions!I68,0)","v":0},0,0,0,0,0,0,0,0,0,0,0,0,0,0,0,0,0,0,0,0,0,null,{"$f":"IF(Descriptions!K68=\"Administration Costs\",Descriptions!AB68,0)","v":0},{"$f":"IF([1]Descriptions!K66=\"Administration Costs\",[1]Descriptions!I66,0)","v":0},"0General Account"]
[{"$f":"IF(Descriptions!K69=\"Administration Costs\",Descriptions!I69,0)","v":0},0,0,0,0,0,0,0,0,0,0,0,0,0,0,0,0,0,0,0,0,0,null,{"$f":"IF(Descriptions!K69=\"Administration Costs\",Descriptions!AB69,0)","v":0},{"$f":"IF([1]Descriptions!K67=\"Administration Costs\",[1]Descriptions!I67,0)","v":0},"0General Account"]
[{"$f":"IF(Descriptions!K70=\"Administration Costs\",Descriptions!I70,0)","v":0},0,0,0,0,0,0,0,0,0,0,0,0,0,0,0,0,0,0,0,0,0,null,{"$f":"IF(Descriptions!K70=\"Administration Costs\",Descriptions!AB70,0)","v":0},{"$f":"IF([1]Descriptions!K68=\"Administration Costs\",[1]Descriptions!I68,0)","v":0},"0General Account"]
[{"$f":"IF(Descriptions!K71=\"Administration Costs\",Descriptions!I71,0)","v":0},0,0,0,0,0,0,0,0,0,0,0,0,0,0,0,0,0,0,0,0,0,null,{"$f":"IF(Descriptions!K71=\"Administration Costs\",Descriptions!AB71,0)","v":0},{"$f":"IF([1]Descriptions!K69=\"Administration Costs\",[1]Descriptions!I69,0)","v":0},"0General Account"]
[{"$f":"IF(Descriptions!K72=\"Administration Costs\",Descriptions!I72,0)","v":0},0,0,0,0,0,0,0,0,0,0,0,0,0,0,0,0,0,0,0,0,0,null,{"$f":"IF(Descriptions!K72=\"Administration Costs\",Descriptions!AB72,0)","v":0},{"$f":"IF([1]Descriptions!K70=\"Administration Costs\",[1]Descriptions!I70,0)","v":0},"0General Account"]
[{"$f":"IF(Descriptions!K73=\"Administration Costs\",Descriptions!I73,0)","v":0},0,0,0,0,0,0,0,0,0,0,0,0,0,0,0,0,0,0,0,0,0,null,{"$f":"IF(Descriptions!K73=\"Administration Costs\",Descriptions!AB73,0)","v":0},{"$f":"IF([1]Descriptions!K71=\"Administration Costs\",[1]Descriptions!I71,0)","v":0},"0General Account"]
[{"$f":"IF(Descriptions!K74=\"Administration Costs\",Descriptions!I74,0)","v":0},0,0,0,0,0,0,0,0,0,0,0,0,0,0,0,0,0,0,0,0,0,null,{"$f":"IF(Descriptions!K74=\"Administration Costs\",Descriptions!AB74,0)","v":0},{"$f":"IF([1]Descriptions!K72=\"Administration Costs\",[1]Descriptions!I72,0)","v":0},"0General Account"]
[{"$f":"IF(Descriptions!K75=\"Administration Costs\",Descriptions!I75,0)","v":0},0,0,0,0,0,0,0,0,0,0,0,0,0,0,0,0,0,0,0,0,0,null,{"$f":"IF(Descriptions!K75=\"Administration Costs\",Descriptions!AB75,0)","v":0},{"$f":"IF([1]Descriptions!K73=\"Administration Costs\",[1]Descriptions!I73,0)","v":0},"0General Account"]
[{"$f":"IF(Descriptions!K76=\"Administration Costs\",Descriptions!I76,0)","v":0},0,0,0,0,0,0,0,0,0,0,0,0,0,0,0,0,0,0,0,0,0,null,{"$f":"IF(Descriptions!K76=\"Administration Costs\",Descriptions!AB76,0)","v":0},{"$f":"IF([1]Descriptions!K74=\"Administration Costs\",[1]Descriptions!I74,0)","v":0},"0General Account"]
[{"$f":"IF(Descriptions!K77=\"Administration Costs\",Descriptions!I77,0)","v":0},0,0,0,0,0,0,0,0,0,0,0,0,0,0,0,0,0,0,0,0,0,null,{"$f":"IF(Descriptions!K77=\"Administration Costs\",Descriptions!AB77,0)","v":0},{"$f":"IF([1]Descriptions!K75=\"Administration Costs\",[1]Descriptions!I75,0)","v":0},"0General Account"]
[{"$f":"IF(Descriptions!K78=\"Administration Costs\",Descriptions!I78,0)","v":0},0,0,0,0,0,0,0,0,0,0,0,0,0,0,0,0,0,0,0,0,0,null,{"$f":"IF(Descriptions!K78=\"Administration Costs\",Descriptions!AB78,0)","v":0},{"$f":"IF([1]Descriptions!K76=\"Administration Costs\",[1]Descriptions!I76,0)","v":0},"0General Account"]
[{"$f":"IF(Descriptions!K79=\"Administration Costs\",Descriptions!I79,0)","v":0},0,0,0,0,0,0,0,0,0,0,0,0,0,0,0,0,0,0,0,0,0,null,{"$f":"IF(Descriptions!K79=\"Administration Costs\",Descriptions!AB79,0)","v":0},{"$f":"IF([1]Descriptions!K77=\"Administration Costs\",[1]Descriptions!I77,0)","v":0},"0General Account"]
[{"$f":"IF(Descriptions!K80=\"Administration Costs\",Descriptions!I80,0)","v":0},0,0,0,0,0,0,0,0,0,0,0,0,0,0,0,0,0,0,0,0,0,null,{"$f":"IF(Descriptions!K80=\"Administration Costs\",Descriptions!AB80,0)","v":0},{"$f":"IF([1]Descriptions!K78=\"Administration Costs\",[1]Descriptions!I78,0)","v":0},"0General Account"]
[{"$f":"IF(Descriptions!K81=\"Administration Costs\",Descriptions!I81,0)","v":0},0,0,0,0,0,0,0,0,0,0,0,0,0,0,0,0,0,0,0,0,0,null,{"$f":"IF(Descriptions!K81=\"Administration Costs\",Descriptions!AB81,0)","v":0},{"$f":"IF([1]Descriptions!K79=\"Administration Costs\",[1]Descriptions!I79,0)","v":0},"0General Account"]
[{"$f":"IF(Descriptions!K82=\"Administration Costs\",Descriptions!I82,0)","v":0},0,0,0,0,0,0,0,0,0,0,0,0,0,0,0,0,0,0,0,0,0,null,{"$f":"IF(Descriptions!K82=\"Administration Costs\",Descriptions!AB82,0)","v":0},{"$f":"IF([1]Descriptions!K80=\"Administration Costs\",[1]Descriptions!I80,0)","v":0},"0General Account"]
[{"$f":"IF(Descriptions!K83=\"Administration Costs\",Descriptions!I83,0)","v":0},0,0,0,0,0,0,0,0,0,0,0,0,0,0,0,0,0,0,0,0,0,null,{"$f":"IF(Descriptions!K83=\"Administration Costs\",Descriptions!AB83,0)","v":0},{"$f":"IF([1]Descriptions!K81=\"Administration Costs\",[1]Descriptions!I81,0)","v":0},"0General Account"]
[{"$f":"IF(Descriptions!K84=\"Administration Costs\",Descriptions!I84,0)","v":0},0,0,0,0,0,0,0,0,0,0,0,0,0,0,0,0,0,0,0,0,0,null,{"$f":"IF(Descriptions!K84=\"Administration Costs\",Descriptions!AB84,0)","v":0},{"$f":"IF([1]Descriptions!K82=\"Administration Costs\",[1]Descriptions!I82,0)","v":0},"0General Account"]
[null,{"$f":"SUM(B902:B956)","v":0},0,0,0,0,0,0,0,0,0,0,0,0,0,0,0,0,0,0,0,0,null,{"$f":"X901","v":0}]
["OTHER EXPENDITURE",null,null,null,null,null,null,null,null,null,null,null,null,null,null,null,null,null,null,null,null,null,null,{"$f":"SUM(X959:X1011)","v":0}]
["Mission and Evangelism Costs",0,0,0,0,0,0,0,0,0,0,0,0,0,0,0,0,0,0,0,0,0,null,{"$f":"Descriptions!AB22","v":0},{"$f":"[1]Descriptions!I20","v":"Mission and Evangelism Costs"},{"$f":"CONCATENATE(Y959,$Y$3)","v":"Mission and Evangelism CostsGeneral Account"}]
["Churchyard Expenses",0,0,0,0,0,0,0,0,0,0,0,0,0,0,0,0,0,0,0,0,0,null,{"$f":"Descriptions!AB13","v":0},{"$f":"[1]Descriptions!I11","v":"Churchyard Expenses"},{"$f":"CONCATENATE(Y960,$Y$3)","v":"Churchyard ExpensesGeneral Account"}]
["Trading Costs - Property",0,0,0,0,0,0,0,0,0,0,0,0,0,0,0,0,0,0,0,0,0,null,{"$f":"Descriptions!AB33","v":0},{"$f":"[1]Descriptions!I31","v":"Trading Costs - Property"},{"$f":"CONCATENATE(Y961,$Y$3)","v":"Trading Costs - PropertyGeneral Account"}]
[{"$f":"IF(Descriptions!K35=\"Other Expenditure\",Descriptions!I35,0)","v":0},0,0,0,0,0,0,0,0,0,0,0,0,0,0,0,0,0,0,0,0,0,null,{"$f":"IF(Descriptions!K35=\"Other Expenditure\",Descriptions!AB35,0)","v":0},{"$f":"IF([1]Descriptions!K33=\"Other Expenditure\",[1]Descriptions!I33,0)","v":0},{"$f":"CONCATENATE(Y962,$Y$3)","v":"0General Account"}]
[{"$f":"IF(Descriptions!K36=\"Other Expenditure\",Descriptions!I36,0)","v":0},0,0,0,0,0,0,0,0,0,0,0,0,0,0,0,0,0,0,0,0,0,null,{"$f":"IF(Descriptions!K36=\"Other Expenditure\",Descriptions!AB36,0)","v":0},{"$f":"IF([1]Descriptions!K34=\"Other Expenditure\",[1]Descriptions!I34,0)","v":0},{"$f":"CONCATENATE(Y963,$Y$3)","v":"0General Account"}]
[{"$f":"IF(Descriptions!K37=\"Other Expenditure\",Descriptions!I37,0)","v":0},0,0,0,0,0,0,0,0,0,0,0,0,0,0,0,0,0,0,0,0,0,null,{"$f":"IF(Descriptions!K37=\"Other Expenditure\",Descriptions!AB37,0)","v":0},{"$f":"IF([1]Descriptions!K35=\"Other Expenditure\",[1]Descriptions!I35,0)","v":0},"0General Account"]
[{"$f":"IF(Descriptions!K38=\"Other Expenditure\",Descriptions!I38,0)","v":0},0,0,0,0,0,0,0,0,0,0,0,0,0,0,0,0,0,0,0,0,0,null,{"$f":"IF(Descriptions!K38=\"Other Expenditure\",Descriptions!AB38,0)","v":0},{"$f":"IF([1]Descriptions!K36=\"Other Expenditure\",[1]Descriptions!I36,0)","v":0},"0General Account"]
[{"$f":"IF(Descriptions!K39=\"Other Expenditure\",Descriptions!I39,0)","v":0},0,0,0,0,0,0,0,0,0,0,0,0,0,0,0,0,0,0,0,0,0,null,{"$f":"IF(Descriptions!K39=\"Other Expenditure\",Descriptions!AB39,0)","v":0},{"$f":"IF([1]Descriptions!K37=\"Other Expenditure\",[1]Descriptions!I37,0)","v":0},"0General Account"]
[{"$f":"IF(Descriptions!K40=\"Other Expenditure\",Descriptions!I40,0)","v":0},0,0,0,0,0,0,0,0,0,0,0,0,0,0,0,0,0,0,0,0,0,null,{"$f":"IF(Descriptions!K40=\"Other Expenditure\",Descriptions!AB40,0)","v":0},{"$f":"IF([1]Descriptions!K38=\"Other Expenditure\",[1]Descriptions!I38,0)","v":0},"0General Account"]
[{"$f":"IF(Descriptions!K41=\"Other Expenditure\",Descriptions!I41,0)","v":0},0,0,0,0,0,0,0,0,0,0,0,0,0,0,0,0,0,0,0,0,0,null,{"$f":"IF(Descriptions!K41=\"Other Expenditure\",Descriptions!AB41,0)","v":0},{"$f":"IF([1]Descriptions!K39=\"Other Expenditure\",[1]Descriptions!I39,0)","v":0},"0General Account"]
[{"$f":"IF(Descriptions!K42=\"Other Expenditure\",Descriptions!I42,0)","v":0},0,0,0,0,0,0,0,0,0,0,0,0,0,0,0,0,0,0,0,0,0,null,{"$f":"IF(Descriptions!K42=\"Other Expenditure\",Descriptions!AB42,0)","v":0},{"$f":"IF([1]Descriptions!K40=\"Other Expenditure\",[1]Descriptions!I40,0)","v":0},"0General Account"]
[{"$f":"IF(Descriptions!K43=\"Other Expenditure\",Descriptions!I43,0)","v":0},0,0,0,0,0,0,0,0,0,0,0,0,0,0,0,0,0,0,0,0,0,null,{"$f":"IF(Descriptions!K43=\"Other Expenditure\",Descriptions!AB43,0)","v":0},{"$f":"IF([1]Descriptions!K41=\"Other Expenditure\",[1]Descriptions!I41,0)","v":0},"0General Account"]
[{"$f":"IF(Descriptions!K44=\"Other Expenditure\",Descriptions!I44,0)","v":0},0,0,0,0,0,0,0,0,0,0,0,0,0,0,0,0,0,0,0,0,0,null,{"$f":"IF(Descriptions!K44=\"Other Expenditure\",Descriptions!AB44,0)","v":0},{"$f":"IF([1]Descriptions!K42=\"Other Expenditure\",[1]Descriptions!I42,0)","v":0},"0General Account"]
[{"$f":"IF(Descriptions!K45=\"Other Expenditure\",Descriptions!I45,0)","v":0},0,0,0,0,0,0,0,0,0,0,0,0,0,0,0,0,0,0,0,0,0,null,{"$f":"IF(Descriptions!K45=\"Other Expenditure\",Descriptions!AB45,0)","v":0},{"$f":"IF([1]Descriptions!K43=\"Other Expenditure\",[1]Descriptions!I43,0)","v":0},"0General Account"]
[{"$f":"IF(Descriptions!K46=\"Other Expenditure\",Descriptions!I46,0)","v":0},0,0,0,0,0,0,0,0,0,0,0,0,0,0,0,0,0,0,0,0,0,null,{"$f":"IF(Descriptions!K46=\"Other Expenditure\",Descriptions!AB46,0)","v":0},{"$f":"IF([1]Descriptions!K44=\"Other Expenditure\",[1]Descriptions!I44,0)","v":0},"0General Account"]
[{"$f":"IF(Descriptions!K47=\"Other Expenditure\",Descriptions!I47,0)","v":0},0,0,0,0,0,0,0,0,0,0,0,0,0,0,0,0,0,0,0,0,0,null,{"$f":"IF(Descriptions!K47=\"Other Expenditure\",Descriptions!AB47,0)","v":0},{"$f":"IF([1]Descriptions!K45=\"Other Expenditure\",[1]Descriptions!I45,0)","v":0},"0General Account"]
[{"$f":"IF(Descriptions!K48=\"Other Expenditure\",Descriptions!I48,0)","v":0},0,0,0,0,0,0,0,0,0,0,0,0,0,0,0,0,0,0,0,0,0,null,{"$f":"IF(Descriptions!K48=\"Other Expenditure\",Descriptions!AB48,0)","v":0},{"$f":"IF([1]Descriptions!K46=\"Other Expenditure\",[1]Descriptions!I46,0)","v":0},"0General Account"]
[{"$f":"IF(Descriptions!K49=\"Other Expenditure\",Descriptions!I49,0)","v":0},0,0,0,0,0,0,0,0,0,0,0,0,0,0,0,0,0,0,0,0,0,null,{"$f":"IF(Descriptions!K49=\"Other Expenditure\",Descriptions!AB49,0)","v":0},{"$f":"IF([1]Descriptions!K47=\"Other Expenditure\",[1]Descriptions!I47,0)","v":0},"0General Account"]
[{"$f":"IF(Descriptions!K50=\"Other Expenditure\",Descriptions!I50,0)","v":0},0,0,0,0,0,0,0,0,0,0,0,0,0,0,0,0,0,0,0,0,0,null,{"$f":"IF(Descriptions!K50=\"Other Expenditure\",Descriptions!AB50,0)","v":0},{"$f":"IF([1]Descriptions!K48=\"Other Expenditure\",[1]Descriptions!I48,0)","v":0},"0General Account"]
[{"$f":"IF(Descriptions!K51=\"Other Expenditure\",Descriptions!I51,0)","v":0},0,0,0,0,0,0,0,0,0,0,0,0,0,0,0,0,0,0,0,0,0,null,{"$f":"IF(Descriptions!K51=\"Other Expenditure\",Descriptions!AB51,0)","v":0},{"$f":"IF([1]Descriptions!K49=\"Other Expenditure\",[1]Descriptions!I49,0)","v":0},"0General Account"]
[{"$f":"IF(Descriptions!K52=\"Other Expenditure\",Descriptions!I52,0)","v":0},0,0,0,0,0,0,0,0,0,0,0,0,0,0,0,0,0,0,0,0,0,null,{"$f":"IF(Descriptions!K52=\"Other Expenditure\",Descriptions!AB52,0)","v":0},{"$f":"IF([1]Descriptions!K50=\"Other Expenditure\",[1]Descriptions!I50,0)","v":0},"0General Account"]
[{"$f":"IF(Descriptions!K53=\"Other Expenditure\",Descriptions!I53,0)","v":0},0,0,0,0,0,0,0,0,0,0,0,0,0,0,0,0,0,0,0,0,0,null,{"$f":"IF(Descriptions!K53=\"Other Expenditure\",Descriptions!AB53,0)","v":0},{"$f":"IF([1]Descriptions!K51=\"Other Expenditure\",[1]Descriptions!I51,0)","v":0},"0General Account"]
[{"$f":"IF(Descriptions!K54=\"Other Expenditure\",Descriptions!I54,0)","v":0},0,0,0,0,0,0,0,0,0,0,0,0,0,0,0,0,0,0,0,0,0,null,{"$f":"IF(Descriptions!K54=\"Other Expenditure\",Descriptions!AB54,0)","v":0},{"$f":"IF([1]Descriptions!K52=\"Other Expenditure\",[1]Descriptions!I52,0)","v":0},"0General Account"]
[{"$f":"IF(Descriptions!K55=\"Other Expenditure\",Descriptions!I55,0)","v":0},0,0,0,0,0,0,0,0,0,0,0,0,0,0,0,0,0,0,0,0,0,null,{"$f":"IF(Descriptions!K55=\"Other Expenditure\",Descriptions!AB55,0)","v":0},{"$f":"IF([1]Descriptions!K53=\"Other Expenditure\",[1]Descriptions!I53,0)","v":0},"0General Account"]
[{"$f":"IF(Descriptions!K56=\"Other Expenditure\",Descriptions!I56,0)","v":0},0,0,0,0,0,0,0,0,0,0,0,0,0,0,0,0,0,0,0,0,0,null,{"$f":"IF(Descriptions!K56=\"Other Expenditure\",Descriptions!AB56,0)","v":0},{"$f":"IF([1]Descriptions!K54=\"Other Expenditure\",[1]Descriptions!I54,0)","v":0},"0General Account"]
[{"$f":"IF(Descriptions!K57=\"Other Expenditure\",Descriptions!I57,0)","v":0},0,0,0,0,0,0,0,0,0,0,0,0,0,0,0,0,0,0,0,0,0,null,{"$f":"IF(Descriptions!K57=\"Other Expenditure\",Descriptions!AB57,0)","v":0},{"$f":"IF([1]Descriptions!K55=\"Other Expenditure\",[1]Descriptions!I55,0)","v":0},"0General Account"]
[{"$f":"IF(Descriptions!K58=\"Other Expenditure\",Descriptions!I58,0)","v":0},0,0,0,0,0,0,0,0,0,0,0,0,0,0,0,0,0,0,0,0,0,null,{"$f":"IF(Descriptions!K58=\"Other Expenditure\",Descriptions!AB58,0)","v":0},{"$f":"IF([1]Descriptions!K56=\"Other Expenditure\",[1]Descriptions!I56,0)","v":0},"0General Account"]
[{"$f":"IF(Descriptions!K59=\"Other Expenditure\",Descriptions!I59,0)","v":0},0,0,0,0,0,0,0,0,0,0,0,0,0,0,0,0,0,0,0,0,0,null,{"$f":"IF(Descriptions!K59=\"Other Expenditure\",Descriptions!AB59,0)","v":0},{"$f":"IF([1]Descriptions!K57=\"Other Expenditure\",[1]Descriptions!I57,0)","v":0},"0General Account"]
[{"$f":"IF(Descriptions!K60=\"Other Expenditure\",Descriptions!I60,0)","v":0},0,0,0,0,0,0,0,0,0,0,0,0,0,0,0,0,0,0,0,0,0,null,{"$f":"IF(Descriptions!K60=\"Other Expenditure\",Descriptions!AB60,0)","v":0},{"$f":"IF([1]Descriptions!K58=\"Other Expenditure\",[1]Descriptions!I58,0)","v":0},"0General Account"]
[{"$f":"IF(Descriptions!K61=\"Other Expenditure\",Descriptions!I61,0)","v":0},0,0,0,0,0,0,0,0,0,0,0,0,0,0,0,0,0,0,0,0,0,null,{"$f":"IF(Descriptions!K61=\"Other Expenditure\",Descriptions!AB61,0)","v":0},{"$f":"IF([1]Descriptions!K59=\"Other Expenditure\",[1]Descriptions!I59,0)","v":0},"0General Account"]
[{"$f":"IF(Descriptions!K62=\"Other Expenditure\",Descriptions!I62,0)","v":0},0,0,0,0,0,0,0,0,0,0,0,0,0,0,0,0,0,0,0,0,0,null,{"$f":"IF(Descriptions!K62=\"Other Expenditure\",Descriptions!AB62,0)","v":0},{"$f":"IF([1]Descriptions!K60=\"Other Expenditure\",[1]Descriptions!I60,0)","v":0},"0General Account"]
[{"$f":"IF(Descriptions!K63=\"Other Expenditure\",Descriptions!I63,0)","v":0},0,0,0,0,0,0,0,0,0,0,0,0,0,0,0,0,0,0,0,0,0,null,{"$f":"IF(Descriptions!K63=\"Other Expenditure\",Descriptions!AB63,0)","v":0},{"$f":"IF([1]Descriptions!K61=\"Other Expenditure\",[1]Descriptions!I61,0)","v":0},"0General Account"]
[{"$f":"IF(Descriptions!K64=\"Other Expenditure\",Descriptions!I64,0)","v":0},0,0,0,0,0,0,0,0,0,0,0,0,0,0,0,0,0,0,0,0,0,null,{"$f":"IF(Descriptions!K64=\"Other Expenditure\",Descriptions!AB64,0)","v":0},{"$f":"IF([1]Descriptions!K62=\"Other Expenditure\",[1]Descriptions!I62,0)","v":0},"0General Account"]
[{"$f":"IF(Descriptions!K65=\"Other Expenditure\",Descriptions!I65,0)","v":0},0,0,0,0,0,0,0,0,0,0,0,0,0,0,0,0,0,0,0,0,0,null,{"$f":"IF(Descriptions!K65=\"Other Expenditure\",Descriptions!AB65,0)","v":0},{"$f":"IF([1]Descriptions!K63=\"Other Expenditure\",[1]Descriptions!I63,0)","v":0},"0General Account"]
[{"$f":"IF(Descriptions!K66=\"Other Expenditure\",Descriptions!I66,0)","v":0},0,0,0,0,0,0,0,0,0,0,0,0,0,0,0,0,0,0,0,0,0,null,{"$f":"IF(Descriptions!K66=\"Other Expenditure\",Descriptions!AB66,0)","v":0},{"$f":"IF([1]Descriptions!K64=\"Other Expenditure\",[1]Descriptions!I64,0)","v":0},"0General Account"]
[{"$f":"IF(Descriptions!K67=\"Other Expenditure\",Descriptions!I67,0)","v":0},0,0,0,0,0,0,0,0,0,0,0,0,0,0,0,0,0,0,0,0,0,null,{"$f":"IF(Descriptions!K67=\"Other Expenditure\",Descriptions!AB67,0)","v":0},{"$f":"IF([1]Descriptions!K65=\"Other Expenditure\",[1]Descriptions!I65,0)","v":0},"0General Account"]
[{"$f":"IF(Descriptions!K68=\"Other Expenditure\",Descriptions!I68,0)","v":0},0,0,0,0,0,0,0,0,0,0,0,0,0,0,0,0,0,0,0,0,0,null,{"$f":"IF(Descriptions!K68=\"Other Expenditure\",Descriptions!AB68,0)","v":0},{"$f":"IF([1]Descriptions!K66=\"Other Expenditure\",[1]Descriptions!I66,0)","v":0},"0General Account"]
[{"$f":"IF(Descriptions!K69=\"Other Expenditure\",Descriptions!I69,0)","v":0},0,0,0,0,0,0,0,0,0,0,0,0,0,0,0,0,0,0,0,0,0,null,{"$f":"IF(Descriptions!K69=\"Other Expenditure\",Descriptions!AB69,0)","v":0},{"$f":"IF([1]Descriptions!K67=\"Other Expenditure\",[1]Descriptions!I67,0)","v":0},"0General Account"]
[{"$f":"IF(Descriptions!K70=\"Other Expenditure\",Descriptions!I70,0)","v":0},0,0,0,0,0,0,0,0,0,0,0,0,0,0,0,0,0,0,0,0,0,null,{"$f":"IF(Descriptions!K70=\"Other Expenditure\",Descriptions!AB70,0)","v":0},{"$f":"IF([1]Descriptions!K68=\"Other Expenditure\",[1]Descriptions!I68,0)","v":0},"0General Account"]
[{"$f":"IF(Descriptions!K71=\"Other Expenditure\",Descriptions!I71,0)","v":0},0,0,0,0,0,0,0,0,0,0,0,0,0,0,0,0,0,0,0,0,0,null,{"$f":"IF(Descriptions!K71=\"Other Expenditure\",Descriptions!AB71,0)","v":0},{"$f":"IF([1]Descriptions!K69=\"Other Expenditure\",[1]Descriptions!I69,0)","v":0},"0General Account"]
[{"$f":"IF(Descriptions!K72=\"Other Expenditure\",Descriptions!I72,0)","v":0},0,0,0,0,0,0,0,0,0,0,0,0,0,0,0,0,0,0,0,0,0,null,{"$f":"IF(Descriptions!K72=\"Other Expenditure\",Descriptions!AB72,0)","v":0},{"$f":"IF([1]Descriptions!K70=\"Other Expenditure\",[1]Descriptions!I70,0)","v":0},"0General Account"]
[{"$f":"IF(Descriptions!K73=\"Other Expenditure\",Descriptions!I73,0)","v":0},0,0,0,0,0,0,0,0,0,0,0,0,0,0,0,0,0,0,0,0,0,null,{"$f":"IF(Descriptions!K73=\"Other Expenditure\",Descriptions!AB73,0)","v":0},{"$f":"IF([1]Descriptions!K71=\"Other Expenditure\",[1]Descriptions!I71,0)","v":0},"0General Account"]
[{"$f":"IF(Descriptions!K74=\"Other Expenditure\",Descriptions!I74,0)","v":0},0,0,0,0,0,0,0,0,0,0,0,0,0,0,0,0,0,0,0,0,0,null,{"$f":"IF(Descriptions!K74=\"Other Expenditure\",Descriptions!AB74,0)","v":0},{"$f":"IF([1]Descriptions!K72=\"Other Expenditure\",[1]Descriptions!I72,0)","v":0},"0General Account"]
[{"$f":"IF(Descriptions!K75=\"Other Expenditure\",Descriptions!I75,0)","v":0},0,0,0,0,0,0,0,0,0,0,0,0,0,0,0,0,0,0,0,0,0,null,{"$f":"IF(Descriptions!K75=\"Other Expenditure\",Descriptions!AB75,0)","v":0},{"$f":"IF([1]Descriptions!K73=\"Other Expenditure\",[1]Descriptions!I73,0)","v":0},"0General Account"]
[{"$f":"IF(Descriptions!K76=\"Other Expenditure\",Descriptions!I76,0)","v":0},0,0,0,0,0,0,0,0,0,0,0,0,0,0,0,0,0,0,0,0,0,null,{"$f":"IF(Descriptions!K76=\"Other Expenditure\",Descriptions!AB76,0)","v":0},{"$f":"IF([1]Descriptions!K74=\"Other Expenditure\",[1]Descriptions!I74,0)","v":0},"0General Account"]
[{"$f":"IF(Descriptions!K77=\"Other Expenditure\",Descriptions!I77,0)","v":0},0,0,0,0,0,0,0,0,0,0,0,0,0,0,0,0,0,0,0,0,0,null,{"$f":"IF(Descriptions!K77=\"Other Expenditure\",Descriptions!AB77,0)","v":0},{"$f":"IF([1]Descriptions!K75=\"Other Expenditure\",[1]Descriptions!I75,0)","v":0},"0General Account"]
[{"$f":"IF(Descriptions!K78=\"Other Expenditure\",Descriptions!I78,0)","v":0},0,0,0,0,0,0,0,0,0,0,0,0,0,0,0,0,0,0,0,0,0,null,{"$f":"IF(Descriptions!K78=\"Other Expenditure\",Descriptions!AB78,0)","v":0},{"$f":"IF([1]Descriptions!K76=\"Other Expenditure\",[1]Descriptions!I76,0)","v":0},"0General Account"]
[{"$f":"IF(Descriptions!K79=\"Other Expenditure\",Descriptions!I79,0)","v":0},0,0,0,0,0,0,0,0,0,0,0,0,0,0,0,0,0,0,0,0,0,null,{"$f":"IF(Descriptions!K79=\"Other Expenditure\",Descriptions!AB79,0)","v":0},{"$f":"IF([1]Descriptions!K77=\"Other Expenditure\",[1]Descriptions!I77,0)","v":0},"0General Account"]
[{"$f":"IF(Descriptions!K80=\"Other Expenditure\",Descriptions!I80,0)","v":0},0,0,0,0,0,0,0,0,0,0,0,0,0,0,0,0,0,0,0,0,0,null,{"$f":"IF(Descriptions!K80=\"Other Expenditure\",Descriptions!AB80,0)","v":0},{"$f":"IF([1]Descriptions!K78=\"Other Expenditure\",[1]Descriptions!I78,0)","v":0},"0General Account"]
[{"$f":"IF(Descriptions!K81=\"Other Expenditure\",Descriptions!I81,0)","v":0},0,0,0,0,0,0,0,0,0,0,0,0,0,0,0,0,0,0,0,0,0,null,{"$f":"IF(Descriptions!K81=\"Other Expenditure\",Descriptions!AB81,0)","v":0},{"$f":"IF([1]Descriptions!K79=\"Other Expenditure\",[1]Descriptions!I79,0)","v":0},"0General Account"]
[{"$f":"IF(Descriptions!K82=\"Other Expenditure\",Descriptions!I82,0)","v":0},0,0,0,0,0,0,0,0,0,0,0,0,0,0,0,0,0,0,0,0,0,null,{"$f":"IF(Descriptions!K82=\"Other Expenditure\",Descriptions!AB82,0)","v":0},{"$f":"IF([1]Descriptions!K80=\"Other Expenditure\",[1]Descriptions!I80,0)","v":0},"0General Account"]
[{"$f":"IF(Descriptions!K83=\"Other Expenditure\",Descriptions!I83,0)","v":0},0,0,0,0,0,0,0,0,0,0,0,0,0,0,0,0,0,0,0,0,0,null,{"$f":"IF(Descriptions!K83=\"Other Expenditure\",Descriptions!AB83,0)","v":0},{"$f":"IF([1]Descriptions!K81=\"Other Expenditure\",[1]Descriptions!I81,0)","v":0},"0General Account"]
[{"$f":"IF(Descriptions!K84=\"Other Expenditure\",Descriptions!I84,0)","v":0},0,0,0,0,0,0,0,0,0,0,0,0,0,0,0,0,0,0,0,0,0,null,{"$f":"IF(Descriptions!K84=\"Other Expenditure\",Descriptions!AB84,0)","v":0},{"$f":"IF([1]Descriptions!K82=\"Other Expenditure\",[1]Descriptions!I82,0)","v":0},"0General Account"]
[null,{"$f":"SUM(B959:B1011)","v":0},0,0,0,0,0,0,0,0,0,0,0,0,0,0,0,0,0,0,0,0,null,{"$f":"X958","v":0}]
[null,null,null,null,null,null,null,null,null,null,null,null,null,null,null,null,null,null,null,null,null,null,null,1]
["TOTAL PAYMENTS",{"$f":"SUM(B1012+B957+B900+B844+B789+B733+B675+B620)","v":0},0,0,0,0,0,0,0,0,0,0,0,0,0,0,0,0,0,0,0,0,null,1]
[null,null,null,null,null,null,null,null,null,null,null,null,null,null,null,null,null,null,null,null,null,null,null,1]
["TOTAL RECEIPTS",{"$f":"B563","v":0},0,0,0,0,0,0,0,0,0,0,0,0,0,0,0,0,0,0,0,0,null,1]
[null,null,null,null,null,null,null,null,null,null,null,null,null,null,null,null,null,null,null,null,null,null,null,1]
["EXCESS OF RECEIPTS OVER PAYMENTS",{"$f":"B1016-B1014","v":0},0,0,0,0,0,0,0,0,0,0,0,0,0,0,0,0,0,0,0,0,null,1]

{"sheet":"Receipts","index":10,"n_rows":1359,"n_cols":34,"rows_kept":1359,"cut":false,"hidden":false,"merged":[[1359,37,1359,43],[1359,28,1359,36],[2,1,2,6],[1,1,1,6],[1355,1,1355,3],[1356,1,1356,3]]}
[]
[null,{"$f":"VLOOKUP('Name and Parish'!D13,Index!B:C,1,FALSE)","v":{"$error":"#N/A"}},null,null,null,null,null,null,null,null,null,null,null,null,null,null,null,null,null,null,null,null,null,"Y",null,null,"Type of Fund"]
[null,"Receipts",null,null,null,null,null,null,null,null,null,null,null,null,null,null,null,null,null,null,null,null,null,"N",null,null,"Restricted"]
["Bank Rec Check","Date","Description","Fund","Amount","Payment Reference","Additional Details","Description or Account Incorrect/Correct"]
[null,null,null,"General Fund",null,null,null,null,null,{"$f":"VLOOKUP(D5,'Bank and Fund Details'!$B$15:$D$36,3,FALSE)","v":0},{"$f":"VLOOKUP(D5,'Bank and Fund Details'!$B$15:$C$36,2,FALSE)","v":"Unrestricted"},{"$f":"IFERROR(VLOOKUP(C5,Descriptions!$B$6:$D$92,3,FALSE),\"\")","v":""},null,null,null,null,null,null,null,null,null,null,null,null,null,null,{"$f":"CONCATENATE(C5,D5)","v":"General Fund"},{"$f":"IFERROR(VLOOKUP(C5,Descriptions!B:F,5,FALSE),\"N\")","v":"N"},{"$f":"ISBLANK(C5)","v":true},{"$f":"CONCATENATE(AB5,AC5)","v":"NTRUE"},{"$f":"IF(AD5=\"NFALSE\",1,0)","v":0},null,{"$f":"IFERROR(VLOOKUP(D5,'Bank and Fund Details'!$B$14:$L$35,11,FALSE),\"N\")","v":"Y"},{"$f":"CONCATENATE(AB5,AG5)","v":"NY"}]
[null,null,null,"General Fund",null,null,null,null,null,{"$f":"VLOOKUP(D6,'Bank and Fund Details'!$B$15:$D$36,3,FALSE)","v":0},{"$f":"VLOOKUP(D6,'Bank and Fund Details'!$B$15:$C$36,2,FALSE)","v":"Unrestricted"},{"$f":"IFERROR(VLOOKUP(C6,Descriptions!$B$6:$D$92,3,FALSE),\"\")","v":""},null,null,null,null,null,null,null,null,null,null,null,null,null,null,"General Fund",{"$f":"IFERROR(VLOOKUP(C6,Descriptions!B:F,5,FALSE),\"N\")","v":"N"},true,"NTRUE",0,null,{"$f":"IFERROR(VLOOKUP(D6,'Bank and Fund Details'!$B$14:$L$35,11,FALSE),\"N\")","v":"Y"},{"$f":"CONCATENATE(AB6,AG6)","v":"NY"}]
[null,null,null,"General Fund",null,null,null,null,null,{"$f":"VLOOKUP(D7,'Bank and Fund Details'!$B$15:$D$36,3,FALSE)","v":0},{"$f":"VLOOKUP(D7,'Bank and Fund Details'!$B$15:$C$36,2,FALSE)","v":"Unrestricted"},{"$f":"IFERROR(VLOOKUP(C7,Descriptions!$B$6:$D$92,3,FALSE),\"\")","v":""},null,null,null,null,null,null,null,null,null,null,null,null,null,null,"General Fund",{"$f":"IFERROR(VLOOKUP(C7,Descriptions!B:F,5,FALSE),\"N\")","v":"N"},true,"NTRUE",0,null,{"$f":"IFERROR(VLOOKUP(D7,'Bank and Fund Details'!$B$14:$L$35,11,FALSE),\"N\")","v":"Y"},"NY"]
[null,null,null,"General Fund",null,null,null,null,null,{"$f":"VLOOKUP(D8,'Bank and Fund Details'!$B$15:$D$36,3,FALSE)","v":0},{"$f":"VLOOKUP(D8,'Bank and Fund Details'!$B$15:$C$36,2,FALSE)","v":"Unrestricted"},{"$f":"IFERROR(VLOOKUP(C8,Descriptions!$B$6:$D$92,3,FALSE),\"\")","v":""},null,null,null,null,null,null,null,null,null,null,null,null,null,null,"General Fund",{"$f":"IFERROR(VLOOKUP(C8,Descriptions!B:F,5,FALSE),\"N\")","v":"N"},true,"NTRUE",0,null,{"$f":"IFERROR(VLOOKUP(D8,'Bank and Fund Details'!$B$14:$L$35,11,FALSE),\"N\")","v":"Y"},"NY"]
[null,null,null,"General Fund",null,null,null,null,null,{"$f":"VLOOKUP(D9,'Bank and Fund Details'!$B$15:$D$36,3,FALSE)","v":0},{"$f":"VLOOKUP(D9,'Bank and Fund Details'!$B$15:$C$36,2,FALSE)","v":"Unrestricted"},{"$f":"IFERROR(VLOOKUP(C9,Descriptions!$B$6:$D$92,3,FALSE),\"\")","v":""},null,null,null,null,null,null,null,null,null,null,null,null,null,null,"General Fund",{"$f":"IFERROR(VLOOKUP(C9,Descriptions!B:F,5,FALSE),\"N\")","v":"N"},true,"NTRUE",0,null,{"$f":"IFERROR(VLOOKUP(D9,'Bank and Fund Details'!$B$14:$L$35,11,FALSE),\"N\")","v":"Y"},"NY"]
[null,null,null,"General Fund",null,null,null,null,null,{"$f":"VLOOKUP(D10,'Bank and Fund Details'!$B$15:$D$36,3,FALSE)","v":0},{"$f":"VLOOKUP(D10,'Bank and Fund Details'!$B$15:$C$36,2,FALSE)","v":"Unrestricted"},{"$f":"IFERROR(VLOOKUP(C10,Descriptions!$B$6:$D$92,3,FALSE),\"\")","v":""},null,null,null,null,null,null,null,null,null,null,null,null,null,null,"General Fund",{"$f":"IFERROR(VLOOKUP(C10,Descriptions!B:F,5,FALSE),\"N\")","v":"N"},true,"NTRUE",0,null,{"$f":"IFERROR(VLOOKUP(D10,'Bank and Fund Details'!$B$14:$L$35,11,FALSE),\"N\")","v":"Y"},"NY"]
[null,null,null,"General Fund",null,null,null,null,null,{"$f":"VLOOKUP(D11,'Bank and Fund Details'!$B$15:$D$36,3,FALSE)","v":0},{"$f":"VLOOKUP(D11,'Bank and Fund Details'!$B$15:$C$36,2,FALSE)","v":"Unrestricted"},{"$f":"IFERROR(VLOOKUP(C11,Descriptions!$B$6:$D$92,3,FALSE),\"\")","v":""},null,null,null,null,null,null,null,null,null,null,null,null,null,null,"General Fund",{"$f":"IFERROR(VLOOKUP(C11,Descriptions!B:F,5,FALSE),\"N\")","v":"N"},true,"NTRUE",0,null,{"$f":"IFERROR(VLOOKUP(D11,'Bank and Fund Details'!$B$14:$L$35,11,FALSE),\"N\")","v":"Y"},"NY"]
[null,null,null,"General Fund",null,null,null,null,null,{"$f":"VLOOKUP(D12,'Bank and Fund Details'!$B$15:$D$36,3,FALSE)","v":0},{"$f":"VLOOKUP(D12,'Bank and Fund Details'!$B$15:$C$36,2,FALSE)","v":"Unrestricted"},{"$f":"IFERROR(VLOOKUP(C12,Descriptions!$B$6:$D$92,3,FALSE),\"\")","v":""},null,null,null,null,null,null,null,null,null,null,null,null,null,null,"General Fund",{"$f":"IFERROR(VLOOKUP(C12,Descriptions!B:F,5,FALSE),\"N\")","v":"N"},true,"NTRUE",0,null,{"$f":"IFERROR(VLOOKUP(D12,'Bank and Fund Details'!$B$14:$L$35,11,FALSE),\"N\")","v":"Y"},"NY"]
[null,null,null,"General Fund",null,null,null,null,null,{"$f":"VLOOKUP(D13,'Bank and Fund Details'!$B$15:$D$36,3,FALSE)","v":0},{"$f":"VLOOKUP(D13,'Bank and Fund Details'!$B$15:$C$36,2,FALSE)","v":"Unrestricted"},{"$f":"IFERROR(VLOOKUP(C13,Descriptions!$B$6:$D$92,3,FALSE),\"\")","v":""},null,null,null,null,null,null,null,null,null,null,null,null,null,null,"General Fund",{"$f":"IFERROR(VLOOKUP(C13,Descriptions!B:F,5,FALSE),\"N\")","v":"N"},true,"NTRUE",0,null,{"$f":"IFERROR(VLOOKUP(D13,'Bank and Fund Details'!$B$14:$L$35,11,FALSE),\"N\")","v":"Y"},"NY"]
[null,null,null,"General Fund",null,null,null,null,null,{"$f":"VLOOKUP(D14,'Bank and Fund Details'!$B$15:$D$36,3,FALSE)","v":0},{"$f":"VLOOKUP(D14,'Bank and Fund Details'!$B$15:$C$36,2,FALSE)","v":"Unrestricted"},{"$f":"IFERROR(VLOOKUP(C14,Descriptions!$B$6:$D$92,3,FALSE),\"\")","v":""},null,null,null,null,null,null,null,null,null,null,null,null,null,null,"General Fund",{"$f":"IFERROR(VLOOKUP(C14,Descriptions!B:F,5,FALSE),\"N\")","v":"N"},true,"NTRUE",0,null,{"$f":"IFERROR(VLOOKUP(D14,'Bank and Fund Details'!$B$14:$L$35,11,FALSE),\"N\")","v":"Y"},"NY"]
[null,null,null,"General Fund",null,null,null,null,null,{"$f":"VLOOKUP(D15,'Bank and Fund Details'!$B$15:$D$36,3,FALSE)","v":0},{"$f":"VLOOKUP(D15,'Bank and Fund Details'!$B$15:$C$36,2,FALSE)","v":"Unrestricted"},{"$f":"IFERROR(VLOOKUP(C15,Descriptions!$B$6:$D$92,3,FALSE),\"\")","v":""},null,null,null,null,null,null,null,null,null,null,null,null,null,null,"General Fund",{"$f":"IFERROR(VLOOKUP(C15,Descriptions!B:F,5,FALSE),\"N\")","v":"N"},true,"NTRUE",0,null,{"$f":"IFERROR(VLOOKUP(D15,'Bank and Fund Details'!$B$14:$L$35,11,FALSE),\"N\")","v":"Y"},"NY"]
[null,null,null,"General Fund",null,null,null,null,null,{"$f":"VLOOKUP(D16,'Bank and Fund Details'!$B$15:$D$36,3,FALSE)","v":0},{"$f":"VLOOKUP(D16,'Bank and Fund Details'!$B$15:$C$36,2,FALSE)","v":"Unrestricted"},{"$f":"IFERROR(VLOOKUP(C16,Descriptions!$B$6:$D$92,3,FALSE),\"\")","v":""},null,null,null,null,null,null,null,null,null,null,null,null,null,null,"General Fund",{"$f":"IFERROR(VLOOKUP(C16,Descriptions!B:F,5,FALSE),\"N\")","v":"N"},true,"NTRUE",0,null,{"$f":"IFERROR(VLOOKUP(D16,'Bank and Fund Details'!$B$14:$L$35,11,FALSE),\"N\")","v":"Y"},"NY"]
[null,null,null,"General Fund",null,null,null,null,null,{"$f":"VLOOKUP(D17,'Bank and Fund Details'!$B$15:$D$36,3,FALSE)","v":0},{"$f":"VLOOKUP(D17,'Bank and Fund Details'!$B$15:$C$36,2,FALSE)","v":"Unrestricted"},{"$f":"IFERROR(VLOOKUP(C17,Descriptions!$B$6:$D$92,3,FALSE),\"\")","v":""},null,null,null,null,null,null,null,null,null,null,null,null,null,null,"General Fund",{"$f":"IFERROR(VLOOKUP(C17,Descriptions!B:F,5,FALSE),\"N\")","v":"N"},true,"NTRUE",0,null,{"$f":"IFERROR(VLOOKUP(D17,'Bank and Fund Details'!$B$14:$L$35,11,FALSE),\"N\")","v":"Y"},"NY"]
[null,null,null,"General Fund",null,null,null,null,null,{"$f":"VLOOKUP(D18,'Bank and Fund Details'!$B$15:$D$36,3,FALSE)","v":0},{"$f":"VLOOKUP(D18,'Bank and Fund Details'!$B$15:$C$36,2,FALSE)","v":"Unrestricted"},{"$f":"IFERROR(VLOOKUP(C18,Descriptions!$B$6:$D$92,3,FALSE),\"\")","v":""},null,null,null,null,null,null,null,null,null,null,null,null,null,null,"General Fund",{"$f":"IFERROR(VLOOKUP(C18,Descriptions!B:F,5,FALSE),\"N\")","v":"N"},true,"NTRUE",0,null,{"$f":"IFERROR(VLOOKUP(D18,'Bank and Fund Details'!$B$14:$L$35,11,FALSE),\"N\")","v":"Y"},"NY"]
[null,null,null,"General Fund",null,null,null,null,null,{"$f":"VLOOKUP(D19,'Bank and Fund Details'!$B$15:$D$36,3,FALSE)","v":0},{"$f":"VLOOKUP(D19,'Bank and Fund Details'!$B$15:$C$36,2,FALSE)","v":"Unrestricted"},{"$f":"IFERROR(VLOOKUP(C19,Descriptions!$B$6:$D$92,3,FALSE),\"\")","v":""},null,null,null,null,null,null,null,null,null,null,null,null,null,null,"General Fund",{"$f":"IFERROR(VLOOKUP(C19,Descriptions!B:F,5,FALSE),\"N\")","v":"N"},true,"NTRUE",0,null,{"$f":"IFERROR(VLOOKUP(D19,'Bank and Fund Details'!$B$14:$L$35,11,FALSE),\"N\")","v":"Y"},"NY"]
[null,null,null,"General Fund",null,null,null,null,null,{"$f":"VLOOKUP(D20,'Bank and Fund Details'!$B$15:$D$36,3,FALSE)","v":0},{"$f":"VLOOKUP(D20,'Bank and Fund Details'!$B$15:$C$36,2,FALSE)","v":"Unrestricted"},{"$f":"IFERROR(VLOOKUP(C20,Descriptions!$B$6:$D$92,3,FALSE),\"\")","v":""},null,null,null,null,null,null,null,null,null,null,null,null,null,null,"General Fund",{"$f":"IFERROR(VLOOKUP(C20,Descriptions!B:F,5,FALSE),\"N\")","v":"N"},true,"NTRUE",0,null,{"$f":"IFERROR(VLOOKUP(D20,'Bank and Fund Details'!$B$14:$L$35,11,FALSE),\"N\")","v":"Y"},"NY"]
[null,null,null,"General Fund",null,null,null,null,null,{"$f":"VLOOKUP(D21,'Bank and Fund Details'!$B$15:$D$36,3,FALSE)","v":0},{"$f":"VLOOKUP(D21,'Bank and Fund Details'!$B$15:$C$36,2,FALSE)","v":"Unrestricted"},{"$f":"IFERROR(VLOOKUP(C21,Descriptions!$B$6:$D$92,3,FALSE),\"\")","v":""},null,null,null,null,null,null,null,null,null,null,null,null,null,null,"General Fund",{"$f":"IFERROR(VLOOKUP(C21,Descriptions!B:F,5,FALSE),\"N\")","v":"N"},true,"NTRUE",0,null,{"$f":"IFERROR(VLOOKUP(D21,'Bank and Fund Details'!$B$14:$L$35,11,FALSE),\"N\")","v":"Y"},"NY"]
[null,null,null,"General Fund",null,null,null,null,null,{"$f":"VLOOKUP(D22,'Bank and Fund Details'!$B$15:$D$36,3,FALSE)","v":0},{"$f":"VLOOKUP(D22,'Bank and Fund Details'!$B$15:$C$36,2,FALSE)","v":"Unrestricted"},{"$f":"IFERROR(VLOOKUP(C22,Descriptions!$B$6:$D$92,3,FALSE),\"\")","v":""},null,null,null,null,null,null,null,null,null,null,null,null,null,null,"General Fund",{"$f":"IFERROR(VLOOKUP(C22,Descriptions!B:F,5,FALSE),\"N\")","v":"N"},true,"NTRUE",0,null,{"$f":"IFERROR(VLOOKUP(D22,'Bank and Fund Details'!$B$14:$L$35,11,FALSE),\"N\")","v":"Y"},"NY"]
[null,null,null,"General Fund",null,null,null,null,null,{"$f":"VLOOKUP(D23,'Bank and Fund Details'!$B$15:$D$36,3,FALSE)","v":0},{"$f":"VLOOKUP(D23,'Bank and Fund Details'!$B$15:$C$36,2,FALSE)","v":"Unrestricted"},{"$f":"IFERROR(VLOOKUP(C23,Descriptions!$B$6:$D$92,3,FALSE),\"\")","v":""},null,null,null,null,null,null,null,null,null,null,null,null,null,null,"General Fund",{"$f":"IFERROR(VLOOKUP(C23,Descriptions!B:F,5,FALSE),\"N\")","v":"N"},true,"NTRUE",0,null,{"$f":"IFERROR(VLOOKUP(D23,'Bank and Fund Details'!$B$14:$L$35,11,FALSE),\"N\")","v":"Y"},"NY"]
[null,null,null,"General Fund",null,null,null,null,null,{"$f":"VLOOKUP(D24,'Bank and Fund Details'!$B$15:$D$36,3,FALSE)","v":0},{"$f":"VLOOKUP(D24,'Bank and Fund Details'!$B$15:$C$36,2,FALSE)","v":"Unrestricted"},{"$f":"IFERROR(VLOOKUP(C24,Descriptions!$B$6:$D$92,3,FALSE),\"\")","v":""},null,null,null,null,null,null,null,null,null,null,null,null,null,null,"General Fund",{"$f":"IFERROR(VLOOKUP(C24,Descriptions!B:F,5,FALSE),\"N\")","v":"N"},true,"NTRUE",0,null,{"$f":"IFERROR(VLOOKUP(D24,'Bank and Fund Details'!$B$14:$L$35,11,FALSE),\"N\")","v":"Y"},"NY"]
[null,null,null,"General Fund",null,null,null,null,null,{"$f":"VLOOKUP(D25,'Bank and Fund Details'!$B$15:$D$36,3,FALSE)","v":0},{"$f":"VLOOKUP(D25,'Bank and Fund Details'!$B$15:$C$36,2,FALSE)","v":"Unrestricted"},{"$f":"IFERROR(VLOOKUP(C25,Descriptions!$B$6:$D$92,3,FALSE),\"\")","v":""},null,null,null,null,null,null,null,null,null,null,null,null,null,null,"General Fund",{"$f":"IFERROR(VLOOKUP(C25,Descriptions!B:F,5,FALSE),\"N\")","v":"N"},true,"NTRUE",0,null,{"$f":"IFERROR(VLOOKUP(D25,'Bank and Fund Details'!$B$14:$L$35,11,FALSE),\"N\")","v":"Y"},"NY"]
[null,null,null,"General Fund",null,null,null,null,null,{"$f":"VLOOKUP(D26,'Bank and Fund Details'!$B$15:$D$36,3,FALSE)","v":0},{"$f":"VLOOKUP(D26,'Bank and Fund Details'!$B$15:$C$36,2,FALSE)","v":"Unrestricted"},{"$f":"IFERROR(VLOOKUP(C26,Descriptions!$B$6:$D$92,3,FALSE),\"\")","v":""},null,null,null,null,null,null,null,null,null,null,null,null,null,null,"General Fund",{"$f":"IFERROR(VLOOKUP(C26,Descriptions!B:F,5,FALSE),\"N\")","v":"N"},true,"NTRUE",0,null,{"$f":"IFERROR(VLOOKUP(D26,'Bank and Fund Details'!$B$14:$L$35,11,FALSE),\"N\")","v":"Y"},"NY"]
[null,null,null,"General Fund",null,null,null,null,null,{"$f":"VLOOKUP(D27,'Bank and Fund Details'!$B$15:$D$36,3,FALSE)","v":0},{"$f":"VLOOKUP(D27,'Bank and Fund Details'!$B$15:$C$36,2,FALSE)","v":"Unrestricted"},{"$f":"IFERROR(VLOOKUP(C27,Descriptions!$B$6:$D$92,3,FALSE),\"\")","v":""},null,null,null,null,null,null,null,null,null,null,null,null,null,null,"General Fund",{"$f":"IFERROR(VLOOKUP(C27,Descriptions!B:F,5,FALSE),\"N\")","v":"N"},true,"NTRUE",0,null,{"$f":"IFERROR(VLOOKUP(D27,'Bank and Fund Details'!$B$14:$L$35,11,FALSE),\"N\")","v":"Y"},"NY"]
[null,null,null,"General Fund",null,null,null,null,null,{"$f":"VLOOKUP(D28,'Bank and Fund Details'!$B$15:$D$36,3,FALSE)","v":0},{"$f":"VLOOKUP(D28,'Bank and Fund Details'!$B$15:$C$36,2,FALSE)","v":"Unrestricted"},{"$f":"IFERROR(VLOOKUP(C28,Descriptions!$B$6:$D$92,3,FALSE),\"\")","v":""},null,null,null,null,null,null,null,null,null,null,null,null,null,null,"General Fund",{"$f":"IFERROR(VLOOKUP(C28,Descriptions!B:F,5,FALSE),\"N\")","v":"N"},true,"NTRUE",0,null,{"$f":"IFERROR(VLOOKUP(D28,'Bank and Fund Details'!$B$14:$L$35,11,FALSE),\"N\")","v":"Y"},"NY"]
[null,null,null,"General Fund",null,null,null,null,null,{"$f":"VLOOKUP(D29,'Bank and Fund Details'!$B$15:$D$36,3,FALSE)","v":0},{"$f":"VLOOKUP(D29,'Bank and Fund Details'!$B$15:$C$36,2,FALSE)","v":"Unrestricted"},{"$f":"IFERROR(VLOOKUP(C29,Descriptions!$B$6:$D$92,3,FALSE),\"\")","v":""},null,null,null,null,null,null,null,null,null,null,null,null,null,null,"General Fund",{"$f":"IFERROR(VLOOKUP(C29,Descriptions!B:F,5,FALSE),\"N\")","v":"N"},true,"NTRUE",0,null,{"$f":"IFERROR(VLOOKUP(D29,'Bank and Fund Details'!$B$14:$L$35,11,FALSE),\"N\")","v":"Y"},"NY"]
[null,null,null,"General Fund",null,null,null,null,null,{"$f":"VLOOKUP(D30,'Bank and Fund Details'!$B$15:$D$36,3,FALSE)","v":0},{"$f":"VLOOKUP(D30,'Bank and Fund Details'!$B$15:$C$36,2,FALSE)","v":"Unrestricted"},{"$f":"IFERROR(VLOOKUP(C30,Descriptions!$B$6:$D$92,3,FALSE),\"\")","v":""},null,null,null,null,null,null,null,null,null,null,null,null,null,null,"General Fund",{"$f":"IFERROR(VLOOKUP(C30,Descriptions!B:F,5,FALSE),\"N\")","v":"N"},true,"NTRUE",0,null,{"$f":"IFERROR(VLOOKUP(D30,'Bank and Fund Details'!$B$14:$L$35,11,FALSE),\"N\")","v":"Y"},"NY"]
[null,null,null,"General Fund",null,null,null,null,null,{"$f":"VLOOKUP(D31,'Bank and Fund Details'!$B$15:$D$36,3,FALSE)","v":0},{"$f":"VLOOKUP(D31,'Bank and Fund Details'!$B$15:$C$36,2,FALSE)","v":"Unrestricted"},{"$f":"IFERROR(VLOOKUP(C31,Descriptions!$B$6:$D$92,3,FALSE),\"\")","v":""},null,null,null,null,null,null,null,null,null,null,null,null,null,null,"General Fund",{"$f":"IFERROR(VLOOKUP(C31,Descriptions!B:F,5,FALSE),\"N\")","v":"N"},true,"NTRUE",0,null,{"$f":"IFERROR(VLOOKUP(D31,'Bank and Fund Details'!$B$14:$L$35,11,FALSE),\"N\")","v":"Y"},"NY"]
[null,null,null,"General Fund",null,null,null,null,null,{"$f":"VLOOKUP(D32,'Bank and Fund Details'!$B$15:$D$36,3,FALSE)","v":0},{"$f":"VLOOKUP(D32,'Bank and Fund Details'!$B$15:$C$36,2,FALSE)","v":"Unrestricted"},{"$f":"IFERROR(VLOOKUP(C32,Descriptions!$B$6:$D$92,3,FALSE),\"\")","v":""},null,null,null,null,null,null,null,null,null,null,null,null,null,null,"General Fund",{"$f":"IFERROR(VLOOKUP(C32,Descriptions!B:F,5,FALSE),\"N\")","v":"N"},true,"NTRUE",0,null,{"$f":"IFERROR(VLOOKUP(D32,'Bank and Fund Details'!$B$14:$L$35,11,FALSE),\"N\")","v":"Y"},"NY"]
[null,null,null,"General Fund",null,null,null,null,null,{"$f":"VLOOKUP(D33,'Bank and Fund Details'!$B$15:$D$36,3,FALSE)","v":0},{"$f":"VLOOKUP(D33,'Bank and Fund Details'!$B$15:$C$36,2,FALSE)","v":"Unrestricted"},{"$f":"IFERROR(VLOOKUP(C33,Descriptions!$B$6:$D$92,3,FALSE),\"\")","v":""},null,null,null,null,null,null,null,null,null,null,null,null,null,null,{"$f":"CONCATENATE(C33,D33)","v":"General Fund"},{"$f":"IFERROR(VLOOKUP(C33,Descriptions!B:F,5,FALSE),\"N\")","v":"N"},true,"NTRUE",0,null,{"$f":"IFERROR(VLOOKUP(D33,'Bank and Fund Details'!$B$14:$L$35,11,FALSE),\"N\")","v":"Y"},"NY"]
[null,null,null,"General Fund",null,null,null,null,null,{"$f":"VLOOKUP(D34,'Bank and Fund Details'!$B$15:$D$36,3,FALSE)","v":0},{"$f":"VLOOKUP(D34,'Bank and Fund Details'!$B$15:$C$36,2,FALSE)","v":"Unrestricted"},{"$f":"IFERROR(VLOOKUP(C34,Descriptions!$B$6:$D$92,3,FALSE),\"\")","v":""},null,null,null,null,null,null,null,null,null,null,null,null,null,null,"General Fund",{"$f":"IFERROR(VLOOKUP(C34,Descriptions!B:F,5,FALSE),\"N\")","v":"N"},true,"NTRUE",0,null,{"$f":"IFERROR(VLOOKUP(D34,'Bank and Fund Details'!$B$14:$L$35,11,FALSE),\"N\")","v":"Y"},"NY"]
[null,null,null,"General Fund",null,null,null,null,null,{"$f":"VLOOKUP(D35,'Bank and Fund Details'!$B$15:$D$36,3,FALSE)","v":0},{"$f":"VLOOKUP(D35,'Bank and Fund Details'!$B$15:$C$36,2,FALSE)","v":"Unrestricted"},{"$f":"IFERROR(VLOOKUP(C35,Descriptions!$B$6:$D$92,3,FALSE),\"\")","v":""},null,null,null,null,null,null,null,null,null,null,null,null,null,null,"General Fund",{"$f":"IFERROR(VLOOKUP(C35,Descriptions!B:F,5,FALSE),\"N\")","v":"N"},true,"NTRUE",0,null,{"$f":"IFERROR(VLOOKUP(D35,'Bank and Fund Details'!$B$14:$L$35,11,FALSE),\"N\")","v":"Y"},"NY"]
[null,null,null,"General Fund",null,null,null,null,null,{"$f":"VLOOKUP(D36,'Bank and Fund Details'!$B$15:$D$36,3,FALSE)","v":0},{"$f":"VLOOKUP(D36,'Bank and Fund Details'!$B$15:$C$36,2,FALSE)","v":"Unrestricted"},{"$f":"IFERROR(VLOOKUP(C36,Descriptions!$B$6:$D$92,3,FALSE),\"\")","v":""},null,null,null,null,null,null,null,null,null,null,null,null,null,null,"General Fund",{"$f":"IFERROR(VLOOKUP(C36,Descriptions!B:F,5,FALSE),\"N\")","v":"N"},true,"NTRUE",0,null,{"$f":"IFERROR(VLOOKUP(D36,'Bank and Fund Details'!$B$14:$L$35,11,FALSE),\"N\")","v":"Y"},"NY"]
[null,null,null,"General Fund",null,null,null,null,null,{"$f":"VLOOKUP(D37,'Bank and Fund Details'!$B$15:$D$36,3,FALSE)","v":0},{"$f":"VLOOKUP(D37,'Bank and Fund Details'!$B$15:$C$36,2,FALSE)","v":"Unrestricted"},{"$f":"IFERROR(VLOOKUP(C37,Descriptions!$B$6:$D$92,3,FALSE),\"\")","v":""},null,null,null,null,null,null,null,null,null,null,null,null,null,null,"General Fund",{"$f":"IFERROR(VLOOKUP(C37,Descriptions!B:F,5,FALSE),\"N\")","v":"N"},true,"NTRUE",0,null,{"$f":"IFERROR(VLOOKUP(D37,'Bank and Fund Details'!$B$14:$L$35,11,FALSE),\"N\")","v":"Y"},"NY"]
[null,null,null,"General Fund",null,null,null,null,null,{"$f":"VLOOKUP(D38,'Bank and Fund Details'!$B$15:$D$36,3,FALSE)","v":0},{"$f":"VLOOKUP(D38,'Bank and Fund Details'!$B$15:$C$36,2,FALSE)","v":"Unrestricted"},{"$f":"IFERROR(VLOOKUP(C38,Descriptions!$B$6:$D$92,3,FALSE),\"\")","v":""},null,null,null,null,null,null,null,null,null,null,null,null,null,null,"General Fund",{"$f":"IFERROR(VLOOKUP(C38,Descriptions!B:F,5,FALSE),\"N\")","v":"N"},true,"NTRUE",0,null,{"$f":"IFERROR(VLOOKUP(D38,'Bank and Fund Details'!$B$14:$L$35,11,FALSE),\"N\")","v":"Y"},"NY"]
[null,null,null,"General Fund",null,null,null,null,null,{"$f":"VLOOKUP(D39,'Bank and Fund Details'!$B$15:$D$36,3,FALSE)","v":0},{"$f":"VLOOKUP(D39,'Bank and Fund Details'!$B$15:$C$36,2,FALSE)","v":"Unrestricted"},{"$f":"IFERROR(VLOOKUP(C39,Descriptions!$B$6:$D$92,3,FALSE),\"\")","v":""},null,null,null,null,null,null,null,null,null,null,null,null,null,null,"General Fund",{"$f":"IFERROR(VLOOKUP(C39,Descriptions!B:F,5,FALSE),\"N\")","v":"N"},true,"NTRUE",0,null,{"$f":"IFERROR(VLOOKUP(D39,'Bank and Fund Details'!$B$14:$L$35,11,FALSE),\"N\")","v":"Y"},"NY"]
[null,null,null,"General Fund",null,null,null,null,null,{"$f":"VLOOKUP(D40,'Bank and Fund Details'!$B$15:$D$36,3,FALSE)","v":0},{"$f":"VLOOKUP(D40,'Bank and Fund Details'!$B$15:$C$36,2,FALSE)","v":"Unrestricted"},{"$f":"IFERROR(VLOOKUP(C40,Descriptions!$B$6:$D$92,3,FALSE),\"\")","v":""},null,null,null,null,null,null,null,null,null,null,null,null,null,null,"General Fund",{"$f":"IFERROR(VLOOKUP(C40,Descriptions!B:F,5,FALSE),\"N\")","v":"N"},true,"NTRUE",0,null,{"$f":"IFERROR(VLOOKUP(D40,'Bank and Fund Details'!$B$14:$L$35,11,FALSE),\"N\")","v":"Y"},"NY"]
[null,null,null,"General Fund",null,null,null,null,null,{"$f":"VLOOKUP(D41,'Bank and Fund Details'!$B$15:$D$36,3,FALSE)","v":0},{"$f":"VLOOKUP(D41,'Bank and Fund Details'!$B$15:$C$36,2,FALSE)","v":"Unrestricted"},{"$f":"IFERROR(VLOOKUP(C41,Descriptions!$B$6:$D$92,3,FALSE),\"\")","v":""},null,null,null,null,null,null,null,null,null,null,null,null,null,null,"General Fund",{"$f":"IFERROR(VLOOKUP(C41,Descriptions!B:F,5,FALSE),\"N\")","v":"N"},true,"NTRUE",0,null,{"$f":"IFERROR(VLOOKUP(D41,'Bank and Fund Details'!$B$14:$L$35,11,FALSE),\"N\")","v":"Y"},"NY"]
[null,null,null,"General Fund",null,null,null,null,null,{"$f":"VLOOKUP(D42,'Bank and Fund Details'!$B$15:$D$36,3,FALSE)","v":0},{"$f":"VLOOKUP(D42,'Bank and Fund Details'!$B$15:$C$36,2,FALSE)","v":"Unrestricted"},{"$f":"IFERROR(VLOOKUP(C42,Descriptions!$B$6:$D$92,3,FALSE),\"\")","v":""},null,null,null,null,null,null,null,null,null,null,null,null,null,null,"General Fund",{"$f":"IFERROR(VLOOKUP(C42,Descriptions!B:F,5,FALSE),\"N\")","v":"N"},true,"NTRUE",0,null,{"$f":"IFERROR(VLOOKUP(D42,'Bank and Fund Details'!$B$14:$L$35,11,FALSE),\"N\")","v":"Y"},"NY"]
[null,null,null,"General Fund",null,null,null,null,null,{"$f":"VLOOKUP(D43,'Bank and Fund Details'!$B$15:$D$36,3,FALSE)","v":0},{"$f":"VLOOKUP(D43,'Bank and Fund Details'!$B$15:$C$36,2,FALSE)","v":"Unrestricted"},{"$f":"IFERROR(VLOOKUP(C43,Descriptions!$B$6:$D$92,3,FALSE),\"\")","v":""},null,null,null,null,null,null,null,null,null,null,null,null,null,null,"General Fund",{"$f":"IFERROR(VLOOKUP(C43,Descriptions!B:F,5,FALSE),\"N\")","v":"N"},true,"NTRUE",0,null,{"$f":"IFERROR(VLOOKUP(D43,'Bank and Fund Details'!$B$14:$L$35,11,FALSE),\"N\")","v":"Y"},"NY"]
[null,null,null,"General Fund",null,null,null,null,null,{"$f":"VLOOKUP(D44,'Bank and Fund Details'!$B$15:$D$36,3,FALSE)","v":0},{"$f":"VLOOKUP(D44,'Bank and Fund Details'!$B$15:$C$36,2,FALSE)","v":"Unrestricted"},{"$f":"IFERROR(VLOOKUP(C44,Descriptions!$B$6:$D$92,3,FALSE),\"\")","v":""},null,null,null,null,null,null,null,null,null,null,null,null,null,null,"General Fund",{"$f":"IFERROR(VLOOKUP(C44,Descriptions!B:F,5,FALSE),\"N\")","v":"N"},true,"NTRUE",0,null,{"$f":"IFERROR(VLOOKUP(D44,'Bank and Fund Details'!$B$14:$L$35,11,FALSE),\"N\")","v":"Y"},"NY"]
[null,null,null,"General Fund",null,null,null,null,null,{"$f":"VLOOKUP(D45,'Bank and Fund Details'!$B$15:$D$36,3,FALSE)","v":0},{"$f":"VLOOKUP(D45,'Bank and Fund Details'!$B$15:$C$36,2,FALSE)","v":"Unrestricted"},{"$f":"IFERROR(VLOOKUP(C45,Descriptions!$B$6:$D$92,3,FALSE),\"\")","v":""},null,null,null,null,null,null,null,null,null,null,null,null,null,null,"General Fund",{"$f":"IFERROR(VLOOKUP(C45,Descriptions!B:F,5,FALSE),\"N\")","v":"N"},true,"NTRUE",0,null,{"$f":"IFERROR(VLOOKUP(D45,'Bank and Fund Details'!$B$14:$L$35,11,FALSE),\"N\")","v":"Y"},"NY"]
[null,null,null,"General Fund",null,null,null,null,null,{"$f":"VLOOKUP(D46,'Bank and Fund Details'!$B$15:$D$36,3,FALSE)","v":0},{"$f":"VLOOKUP(D46,'Bank and Fund Details'!$B$15:$C$36,2,FALSE)","v":"Unrestricted"},{"$f":"IFERROR(VLOOKUP(C46,Descriptions!$B$6:$D$92,3,FALSE),\"\")","v":""},null,null,null,null,null,null,null,null,null,null,null,null,null,null,"General Fund",{"$f":"IFERROR(VLOOKUP(C46,Descriptions!B:F,5,FALSE),\"N\")","v":"N"},true,"NTRUE",0,null,{"$f":"IFERROR(VLOOKUP(D46,'Bank and Fund Details'!$B$14:$L$35,11,FALSE),\"N\")","v":"Y"},"NY"]
[null,null,null,"General Fund",null,null,null,null,null,{"$f":"VLOOKUP(D47,'Bank and Fund Details'!$B$15:$D$36,3,FALSE)","v":0},{"$f":"VLOOKUP(D47,'Bank and Fund Details'!$B$15:$C$36,2,FALSE)","v":"Unrestricted"},{"$f":"IFERROR(VLOOKUP(C47,Descriptions!$B$6:$D$92,3,FALSE),\"\")","v":""},null,null,null,null,null,null,null,null,null,null,null,null,null,null,"General Fund",{"$f":"IFERROR(VLOOKUP(C47,Descriptions!B:F,5,FALSE),\"N\")","v":"N"},true,"NTRUE",0,null,{"$f":"IFERROR(VLOOKUP(D47,'Bank and Fund Details'!$B$14:$L$35,11,FALSE),\"N\")","v":"Y"},"NY"]
[null,null,null,"General Fund",null,null,null,null,null,{"$f":"VLOOKUP(D48,'Bank and Fund Details'!$B$15:$D$36,3,FALSE)","v":0},{"$f":"VLOOKUP(D48,'Bank and Fund Details'!$B$15:$C$36,2,FALSE)","v":"Unrestricted"},{"$f":"IFERROR(VLOOKUP(C48,Descriptions!$B$6:$D$92,3,FALSE),\"\")","v":""},null,null,null,null,null,null,null,null,null,null,null,null,null,null,"General Fund",{"$f":"IFERROR(VLOOKUP(C48,Descriptions!B:F,5,FALSE),\"N\")","v":"N"},true,"NTRUE",0,null,{"$f":"IFERROR(VLOOKUP(D48,'Bank and Fund Details'!$B$14:$L$35,11,FALSE),\"N\")","v":"Y"},"NY"]
[null,null,null,"General Fund",null,null,null,null,null,{"$f":"VLOOKUP(D49,'Bank and Fund Details'!$B$15:$D$36,3,FALSE)","v":0},{"$f":"VLOOKUP(D49,'Bank and Fund Details'!$B$15:$C$36,2,FALSE)","v":"Unrestricted"},{"$f":"IFERROR(VLOOKUP(C49,Descriptions!$B$6:$D$92,3,FALSE),\"\")","v":""},null,null,null,null,null,null,null,null,null,null,null,null,null,null,"General Fund",{"$f":"IFERROR(VLOOKUP(C49,Descriptions!B:F,5,FALSE),\"N\")","v":"N"},true,"NTRUE",0,null,{"$f":"IFERROR(VLOOKUP(D49,'Bank and Fund Details'!$B$14:$L$35,11,FALSE),\"N\")","v":"Y"},"NY"]
[null,null,null,"General Fund",null,null,null,null,null,{"$f":"VLOOKUP(D50,'Bank and Fund Details'!$B$15:$D$36,3,FALSE)","v":0},{"$f":"VLOOKUP(D50,'Bank and Fund Details'!$B$15:$C$36,2,FALSE)","v":"Unrestricted"},{"$f":"IFERROR(VLOOKUP(C50,Descriptions!$B$6:$D$92,3,FALSE),\"\")","v":""},null,null,null,null,null,null,null,null,null,null,null,null,null,null,"General Fund",{"$f":"IFERROR(VLOOKUP(C50,Descriptions!B:F,5,FALSE),\"N\")","v":"N"},true,"NTRUE",0,null,{"$f":"IFERROR(VLOOKUP(D50,'Bank and Fund Details'!$B$14:$L$35,11,FALSE),\"N\")","v":"Y"},"NY"]
[null,null,null,"General Fund",null,null,null,null,null,{"$f":"VLOOKUP(D51,'Bank and Fund Details'!$B$15:$D$36,3,FALSE)","v":0},{"$f":"VLOOKUP(D51,'Bank and Fund Details'!$B$15:$C$36,2,FALSE)","v":"Unrestricted"},{"$f":"IFERROR(VLOOKUP(C51,Descriptions!$B$6:$D$92,3,FALSE),\"\")","v":""},null,null,null,null,null,null,null,null,null,null,null,null,null,null,"General Fund",{"$f":"IFERROR(VLOOKUP(C51,Descriptions!B:F,5,FALSE),\"N\")","v":"N"},true,"NTRUE",0,null,{"$f":"IFERROR(VLOOKUP(D51,'Bank and Fund Details'!$B$14:$L$35,11,FALSE),\"N\")","v":"Y"},"NY"]
[null,null,null,"General Fund",null,null,null,null,null,{"$f":"VLOOKUP(D52,'Bank and Fund Details'!$B$15:$D$36,3,FALSE)","v":0},{"$f":"VLOOKUP(D52,'Bank and Fund Details'!$B$15:$C$36,2,FALSE)","v":"Unrestricted"},{"$f":"IFERROR(VLOOKUP(C52,Descriptions!$B$6:$D$92,3,FALSE),\"\")","v":""},null,null,null,null,null,null,null,null,null,null,null,null,null,null,"General Fund",{"$f":"IFERROR(VLOOKUP(C52,Descriptions!B:F,5,FALSE),\"N\")","v":"N"},true,"NTRUE",0,null,{"$f":"IFERROR(VLOOKUP(D52,'Bank and Fund Details'!$B$14:$L$35,11,FALSE),\"N\")","v":"Y"},"NY"]
[null,null,null,"General Fund",null,null,null,null,null,{"$f":"VLOOKUP(D53,'Bank and Fund Details'!$B$15:$D$36,3,FALSE)","v":0},{"$f":"VLOOKUP(D53,'Bank and Fund Details'!$B$15:$C$36,2,FALSE)","v":"Unrestricted"},{"$f":"IFERROR(VLOOKUP(C53,Descriptions!$B$6:$D$92,3,FALSE),\"\")","v":""},null,null,null,null,null,null,null,null,null,null,null,null,null,null,"General Fund",{"$f":"IFERROR(VLOOKUP(C53,Descriptions!B:F,5,FALSE),\"N\")","v":"N"},true,"NTRUE",0,null,{"$f":"IFERROR(VLOOKUP(D53,'Bank and Fund Details'!$B$14:$L$35,11,FALSE),\"N\")","v":"Y"},"NY"]
[null,null,null,"General Fund",null,null,null,null,null,{"$f":"VLOOKUP(D54,'Bank and Fund Details'!$B$15:$D$36,3,FALSE)","v":0},{"$f":"VLOOKUP(D54,'Bank and Fund Details'!$B$15:$C$36,2,FALSE)","v":"Unrestricted"},{"$f":"IFERROR(VLOOKUP(C54,Descriptions!$B$6:$D$92,3,FALSE),\"\")","v":""},null,null,null,null,null,null,null,null,null,null,null,null,null,null,"General Fund",{"$f":"IFERROR(VLOOKUP(C54,Descriptions!B:F,5,FALSE),\"N\")","v":"N"},true,"NTRUE",0,null,{"$f":"IFERROR(VLOOKUP(D54,'Bank and Fund Details'!$B$14:$L$35,11,FALSE),\"N\")","v":"Y"},"NY"]
[null,null,null,"General Fund",null,null,null,null,null,{"$f":"VLOOKUP(D55,'Bank and Fund Details'!$B$15:$D$36,3,FALSE)","v":0},{"$f":"VLOOKUP(D55,'Bank and Fund Details'!$B$15:$C$36,2,FALSE)","v":"Unrestricted"},{"$f":"IFERROR(VLOOKUP(C55,Descriptions!$B$6:$D$92,3,FALSE),\"\")","v":""},null,null,null,null,null,null,null,null,null,null,null,null,null,null,"General Fund",{"$f":"IFERROR(VLOOKUP(C55,Descriptions!B:F,5,FALSE),\"N\")","v":"N"},true,"NTRUE",0,null,{"$f":"IFERROR(VLOOKUP(D55,'Bank and Fund Details'!$B$14:$L$35,11,FALSE),\"N\")","v":"Y"},"NY"]
[null,null,null,"General Fund",null,null,null,null,null,{"$f":"VLOOKUP(D56,'Bank and Fund Details'!$B$15:$D$36,3,FALSE)","v":0},{"$f":"VLOOKUP(D56,'Bank and Fund Details'!$B$15:$C$36,2,FALSE)","v":"Unrestricted"},{"$f":"IFERROR(VLOOKUP(C56,Descriptions!$B$6:$D$92,3,FALSE),\"\")","v":""},null,null,null,null,null,null,null,null,null,null,null,null,null,null,"General Fund",{"$f":"IFERROR(VLOOKUP(C56,Descriptions!B:F,5,FALSE),\"N\")","v":"N"},true,"NTRUE",0,null,{"$f":"IFERROR(VLOOKUP(D56,'Bank and Fund Details'!$B$14:$L$35,11,FALSE),\"N\")","v":"Y"},"NY"]
[null,null,null,"General Fund",null,null,null,null,null,{"$f":"VLOOKUP(D57,'Bank and Fund Details'!$B$15:$D$36,3,FALSE)","v":0},{"$f":"VLOOKUP(D57,'Bank and Fund Details'!$B$15:$C$36,2,FALSE)","v":"Unrestricted"},{"$f":"IFERROR(VLOOKUP(C57,Descriptions!$B$6:$D$92,3,FALSE),\"\")","v":""},null,null,null,null,null,null,null,null,null,null,null,null,null,null,"General Fund",{"$f":"IFERROR(VLOOKUP(C57,Descriptions!B:F,5,FALSE),\"N\")","v":"N"},true,"NTRUE",0,null,{"$f":"IFERROR(VLOOKUP(D57,'Bank and Fund Details'!$B$14:$L$35,11,FALSE),\"N\")","v":"Y"},"NY"]
[null,null,null,"General Fund",null,null,null,null,null,{"$f":"VLOOKUP(D58,'Bank and Fund Details'!$B$15:$D$36,3,FALSE)","v":0},{"$f":"VLOOKUP(D58,'Bank and Fund Details'!$B$15:$C$36,2,FALSE)","v":"Unrestricted"},{"$f":"IFERROR(VLOOKUP(C58,Descriptions!$B$6:$D$92,3,FALSE),\"\")","v":""},null,null,null,null,null,null,null,null,null,null,null,null,null,null,"General Fund",{"$f":"IFERROR(VLOOKUP(C58,Descriptions!B:F,5,FALSE),\"N\")","v":"N"},true,"NTRUE",0,null,{"$f":"IFERROR(VLOOKUP(D58,'Bank and Fund Details'!$B$14:$L$35,11,FALSE),\"N\")","v":"Y"},"NY"]
[null,null,null,"General Fund",null,null,null,null,null,{"$f":"VLOOKUP(D59,'Bank and Fund Details'!$B$15:$D$36,3,FALSE)","v":0},{"$f":"VLOOKUP(D59,'Bank and Fund Details'!$B$15:$C$36,2,FALSE)","v":"Unrestricted"},{"$f":"IFERROR(VLOOKUP(C59,Descriptions!$B$6:$D$92,3,FALSE),\"\")","v":""},null,null,null,null,null,null,null,null,null,null,null,null,null,null,"General Fund",{"$f":"IFERROR(VLOOKUP(C59,Descriptions!B:F,5,FALSE),\"N\")","v":"N"},true,"NTRUE",0,null,{"$f":"IFERROR(VLOOKUP(D59,'Bank and Fund Details'!$B$14:$L$35,11,FALSE),\"N\")","v":"Y"},"NY"]
[null,null,null,"General Fund",null,null,null,null,null,{"$f":"VLOOKUP(D60,'Bank and Fund Details'!$B$15:$D$36,3,FALSE)","v":0},{"$f":"VLOOKUP(D60,'Bank and Fund Details'!$B$15:$C$36,2,FALSE)","v":"Unrestricted"},{"$f":"IFERROR(VLOOKUP(C60,Descriptions!$B$6:$D$92,3,FALSE),\"\")","v":""},null,null,null,null,null,null,null,null,null,null,null,null,null,null,"General Fund",{"$f":"IFERROR(VLOOKUP(C60,Descriptions!B:F,5,FALSE),\"N\")","v":"N"},true,"NTRUE",0,null,{"$f":"IFERROR(VLOOKUP(D60,'Bank and Fund Details'!$B$14:$L$35,11,FALSE),\"N\")","v":"Y"},"NY"]
[null,null,null,"General Fund",null,null,null,null,null,{"$f":"VLOOKUP(D61,'Bank and Fund Details'!$B$15:$D$36,3,FALSE)","v":0},{"$f":"VLOOKUP(D61,'Bank and Fund Details'!$B$15:$C$36,2,FALSE)","v":"Unrestricted"},{"$f":"IFERROR(VLOOKUP(C61,Descriptions!$B$6:$D$92,3,FALSE),\"\")","v":""},null,null,null,null,null,null,null,null,null,null,null,null,null,null,"General Fund",{"$f":"IFERROR(VLOOKUP(C61,Descriptions!B:F,5,FALSE),\"N\")","v":"N"},true,"NTRUE",0,null,{"$f":"IFERROR(VLOOKUP(D61,'Bank and Fund Details'!$B$14:$L$35,11,FALSE),\"N\")","v":"Y"},"NY"]
[null,null,null,"General Fund",null,null,null,null,null,{"$f":"VLOOKUP(D62,'Bank and Fund Details'!$B$15:$D$36,3,FALSE)","v":0},{"$f":"VLOOKUP(D62,'Bank and Fund Details'!$B$15:$C$36,2,FALSE)","v":"Unrestricted"},{"$f":"IFERROR(VLOOKUP(C62,Descriptions!$B$6:$D$92,3,FALSE),\"\")","v":""},null,null,null,null,null,null,null,null,null,null,null,null,null,null,"General Fund",{"$f":"IFERROR(VLOOKUP(C62,Descriptions!B:F,5,FALSE),\"N\")","v":"N"},true,"NTRUE",0,null,{"$f":"IFERROR(VLOOKUP(D62,'Bank and Fund Details'!$B$14:$L$35,11,FALSE),\"N\")","v":"Y"},"NY"]
[null,null,null,"General Fund",null,null,null,null,null,{"$f":"VLOOKUP(D63,'Bank and Fund Details'!$B$15:$D$36,3,FALSE)","v":0},{"$f":"VLOOKUP(D63,'Bank and Fund Details'!$B$15:$C$36,2,FALSE)","v":"Unrestricted"},{"$f":"IFERROR(VLOOKUP(C63,Descriptions!$B$6:$D$92,3,FALSE),\"\")","v":""},null,null,null,null,null,null,null,null,null,null,null,null,null,null,"General Fund",{"$f":"IFERROR(VLOOKUP(C63,Descriptions!B:F,5,FALSE),\"N\")","v":"N"},true,"NTRUE",0,null,{"$f":"IFERROR(VLOOKUP(D63,'Bank and Fund Details'!$B$14:$L$35,11,FALSE),\"N\")","v":"Y"},"NY"]
[null,null,null,"General Fund",null,null,null,null,null,{"$f":"VLOOKUP(D64,'Bank and Fund Details'!$B$15:$D$36,3,FALSE)","v":0},{"$f":"VLOOKUP(D64,'Bank and Fund Details'!$B$15:$C$36,2,FALSE)","v":"Unrestricted"},{"$f":"IFERROR(VLOOKUP(C64,Descriptions!$B$6:$D$92,3,FALSE),\"\")","v":""},null,null,null,null,null,null,null,null,null,null,null,null,null,null,"General Fund",{"$f":"IFERROR(VLOOKUP(C64,Descriptions!B:F,5,FALSE),\"N\")","v":"N"},true,"NTRUE",0,null,{"$f":"IFERROR(VLOOKUP(D64,'Bank and Fund Details'!$B$14:$L$35,11,FALSE),\"N\")","v":"Y"},"NY"]
[null,null,null,"General Fund",null,null,null,null,null,{"$f":"VLOOKUP(D65,'Bank and Fund Details'!$B$15:$D$36,3,FALSE)","v":0},{"$f":"VLOOKUP(D65,'Bank and Fund Details'!$B$15:$C$36,2,FALSE)","v":"Unrestricted"},{"$f":"IFERROR(VLOOKUP(C65,Descriptions!$B$6:$D$92,3,FALSE),\"\")","v":""},null,null,null,null,null,null,null,null,null,null,null,null,null,null,"General Fund",{"$f":"IFERROR(VLOOKUP(C65,Descriptions!B:F,5,FALSE),\"N\")","v":"N"},true,"NTRUE",0,null,{"$f":"IFERROR(VLOOKUP(D65,'Bank and Fund Details'!$B$14:$L$35,11,FALSE),\"N\")","v":"Y"},"NY"]
[null,null,null,"General Fund",null,null,null,null,null,{"$f":"VLOOKUP(D66,'Bank and Fund Details'!$B$15:$D$36,3,FALSE)","v":0},{"$f":"VLOOKUP(D66,'Bank and Fund Details'!$B$15:$C$36,2,FALSE)","v":"Unrestricted"},{"$f":"IFERROR(VLOOKUP(C66,Descriptions!$B$6:$D$92,3,FALSE),\"\")","v":""},null,null,null,null,null,null,null,null,null,null,null,null,null,null,"General Fund",{"$f":"IFERROR(VLOOKUP(C66,Descriptions!B:F,5,FALSE),\"N\")","v":"N"},true,"NTRUE",0,null,{"$f":"IFERROR(VLOOKUP(D66,'Bank and Fund Details'!$B$14:$L$35,11,FALSE),\"N\")","v":"Y"},"NY"]
[null,null,null,"General Fund",null,null,null,null,null,{"$f":"VLOOKUP(D67,'Bank and Fund Details'!$B$15:$D$36,3,FALSE)","v":0},{"$f":"VLOOKUP(D67,'Bank and Fund Details'!$B$15:$C$36,2,FALSE)","v":"Unrestricted"},{"$f":"IFERROR(VLOOKUP(C67,Descriptions!$B$6:$D$92,3,FALSE),\"\")","v":""},null,null,null,null,null,null,null,null,null,null,null,null,null,null,"General Fund",{"$f":"IFERROR(VLOOKUP(C67,Descriptions!B:F,5,FALSE),\"N\")","v":"N"},true,"NTRUE",0,null,{"$f":"IFERROR(VLOOKUP(D67,'Bank and Fund Details'!$B$14:$L$35,11,FALSE),\"N\")","v":"Y"},"NY"]
[null,null,null,"General Fund",null,null,null,null,null,{"$f":"VLOOKUP(D68,'Bank and Fund Details'!$B$15:$D$36,3,FALSE)","v":0},{"$f":"VLOOKUP(D68,'Bank and Fund Details'!$B$15:$C$36,2,FALSE)","v":"Unrestricted"},{"$f":"IFERROR(VLOOKUP(C68,Descriptions!$B$6:$D$92,3,FALSE),\"\")","v":""},null,null,null,null,null,null,null,null,null,null,null,null,null,null,"General Fund",{"$f":"IFERROR(VLOOKUP(C68,Descriptions!B:F,5,FALSE),\"N\")","v":"N"},true,"NTRUE",0,null,{"$f":"IFERROR(VLOOKUP(D68,'Bank and Fund Details'!$B$14:$L$35,11,FALSE),\"N\")","v":"Y"},"NY"]
[null,null,null,"General Fund",null,null,null,null,null,{"$f":"VLOOKUP(D69,'Bank and Fund Details'!$B$15:$D$36,3,FALSE)","v":0},{"$f":"VLOOKUP(D69,'Bank and Fund Details'!$B$15:$C$36,2,FALSE)","v":"Unrestricted"},{"$f":"IFERROR(VLOOKUP(C69,Descriptions!$B$6:$D$92,3,FALSE),\"\")","v":""},null,null,null,null,null,null,null,null,null,null,null,null,null,null,{"$f":"CONCATENATE(C69,D69)","v":"General Fund"},{"$f":"IFERROR(VLOOKUP(C69,Descriptions!B:F,5,FALSE),\"N\")","v":"N"},{"$f":"ISBLANK(C69)","v":true},{"$f":"CONCATENATE(AB69,AC69)","v":"NTRUE"},{"$f":"IF(AD69=\"NFALSE\",1,0)","v":0},null,{"$f":"IFERROR(VLOOKUP(D69,'Bank and Fund Details'!$B$14:$L$35,11,FALSE),\"N\")","v":"Y"},"NY"]
[null,null,null,"General Fund",null,null,null,null,null,{"$f":"VLOOKUP(D70,'Bank and Fund Details'!$B$15:$D$36,3,FALSE)","v":0},{"$f":"VLOOKUP(D70,'Bank and Fund Details'!$B$15:$C$36,2,FALSE)","v":"Unrestricted"},{"$f":"IFERROR(VLOOKUP(C70,Descriptions!$B$6:$D$92,3,FALSE),\"\")","v":""},null,null,null,null,null,null,null,null,null,null,null,null,null,null,"General Fund",{"$f":"IFERROR(VLOOKUP(C70,Descriptions!B:F,5,FALSE),\"N\")","v":"N"},true,"NTRUE",0,null,{"$f":"IFERROR(VLOOKUP(D70,'Bank and Fund Details'!$B$14:$L$35,11,FALSE),\"N\")","v":"Y"},{"$f":"CONCATENATE(AB70,AG70)","v":"NY"}]
[null,null,null,"General Fund",null,null,null,null,null,{"$f":"VLOOKUP(D71,'Bank and Fund Details'!$B$15:$D$36,3,FALSE)","v":0},{"$f":"VLOOKUP(D71,'Bank and Fund Details'!$B$15:$C$36,2,FALSE)","v":"Unrestricted"},{"$f":"IFERROR(VLOOKUP(C71,Descriptions!$B$6:$D$92,3,FALSE),\"\")","v":""},null,null,null,null,null,null,null,null,null,null,null,null,null,null,"General Fund",{"$f":"IFERROR(VLOOKUP(C71,Descriptions!B:F,5,FALSE),\"N\")","v":"N"},true,"NTRUE",0,null,{"$f":"IFERROR(VLOOKUP(D71,'Bank and Fund Details'!$B$14:$L$35,11,FALSE),\"N\")","v":"Y"},"NY"]
[null,null,null,"General Fund",null,null,null,null,null,{"$f":"VLOOKUP(D72,'Bank and Fund Details'!$B$15:$D$36,3,FALSE)","v":0},{"$f":"VLOOKUP(D72,'Bank and Fund Details'!$B$15:$C$36,2,FALSE)","v":"Unrestricted"},{"$f":"IFERROR(VLOOKUP(C72,Descriptions!$B$6:$D$92,3,FALSE),\"\")","v":""},null,null,null,null,null,null,null,null,null,null,null,null,null,null,"General Fund",{"$f":"IFERROR(VLOOKUP(C72,Descriptions!B:F,5,FALSE),\"N\")","v":"N"},true,"NTRUE",0,null,{"$f":"IFERROR(VLOOKUP(D72,'Bank and Fund Details'!$B$14:$L$35,11,FALSE),\"N\")","v":"Y"},"NY"]
[null,null,null,"General Fund",null,null,null,null,null,{"$f":"VLOOKUP(D73,'Bank and Fund Details'!$B$15:$D$36,3,FALSE)","v":0},{"$f":"VLOOKUP(D73,'Bank and Fund Details'!$B$15:$C$36,2,FALSE)","v":"Unrestricted"},{"$f":"IFERROR(VLOOKUP(C73,Descriptions!$B$6:$D$92,3,FALSE),\"\")","v":""},null,null,null,null,null,null,null,null,null,null,null,null,null,null,"General Fund",{"$f":"IFERROR(VLOOKUP(C73,Descriptions!B:F,5,FALSE),\"N\")","v":"N"},true,"NTRUE",0,null,{"$f":"IFERROR(VLOOKUP(D73,'Bank and Fund Details'!$B$14:$L$35,11,FALSE),\"N\")","v":"Y"},"NY"]
[null,null,null,"General Fund",null,null,null,null,null,{"$f":"VLOOKUP(D74,'Bank and Fund Details'!$B$15:$D$36,3,FALSE)","v":0},{"$f":"VLOOKUP(D74,'Bank and Fund Details'!$B$15:$C$36,2,FALSE)","v":"Unrestricted"},{"$f":"IFERROR(VLOOKUP(C74,Descriptions!$B$6:$D$92,3,FALSE),\"\")","v":""},null,null,null,null,null,null,null,null,null,null,null,null,null,null,"General Fund",{"$f":"IFERROR(VLOOKUP(C74,Descriptions!B:F,5,FALSE),\"N\")","v":"N"},true,"NTRUE",0,null,{"$f":"IFERROR(VLOOKUP(D74,'Bank and Fund Details'!$B$14:$L$35,11,FALSE),\"N\")","v":"Y"},"NY"]
[null,null,null,"General Fund",null,null,null,null,null,{"$f":"VLOOKUP(D75,'Bank and Fund Details'!$B$15:$D$36,3,FALSE)","v":0},{"$f":"VLOOKUP(D75,'Bank and Fund Details'!$B$15:$C$36,2,FALSE)","v":"Unrestricted"},{"$f":"IFERROR(VLOOKUP(C75,Descriptions!$B$6:$D$92,3,FALSE),\"\")","v":""},null,null,null,null,null,null,null,null,null,null,null,null,null,null,"General Fund",{"$f":"IFERROR(VLOOKUP(C75,Descriptions!B:F,5,FALSE),\"N\")","v":"N"},true,"NTRUE",0,null,{"$f":"IFERROR(VLOOKUP(D75,'Bank and Fund Details'!$B$14:$L$35,11,FALSE),\"N\")","v":"Y"},"NY"]
[null,null,null,"General Fund",null,null,null,null,null,{"$f":"VLOOKUP(D76,'Bank and Fund Details'!$B$15:$D$36,3,FALSE)","v":0},{"$f":"VLOOKUP(D76,'Bank and Fund Details'!$B$15:$C$36,2,FALSE)","v":"Unrestricted"},{"$f":"IFERROR(VLOOKUP(C76,Descriptions!$B$6:$D$92,3,FALSE),\"\")","v":""},null,null,null,null,null,null,null,null,null,null,null,null,null,null,"General Fund",{"$f":"IFERROR(VLOOKUP(C76,Descriptions!B:F,5,FALSE),\"N\")","v":"N"},true,"NTRUE",0,null,{"$f":"IFERROR(VLOOKUP(D76,'Bank and Fund Details'!$B$14:$L$35,11,FALSE),\"N\")","v":"Y"},"NY"]
[null,null,null,"General Fund",null,null,null,null,null,{"$f":"VLOOKUP(D77,'Bank and Fund Details'!$B$15:$D$36,3,FALSE)","v":0},{"$f":"VLOOKUP(D77,'Bank and Fund Details'!$B$15:$C$36,2,FALSE)","v":"Unrestricted"},{"$f":"IFERROR(VLOOKUP(C77,Descriptions!$B$6:$D$92,3,FALSE),\"\")","v":""},null,null,null,null,null,null,null,null,null,null,null,null,null,null,"General Fund",{"$f":"IFERROR(VLOOKUP(C77,Descriptions!B:F,5,FALSE),\"N\")","v":"N"},true,"NTRUE",0,null,{"$f":"IFERROR(VLOOKUP(D77,'Bank and Fund Details'!$B$14:$L$35,11,FALSE),\"N\")","v":"Y"},"NY"]
[null,null,null,"General Fund",null,null,null,null,null,{"$f":"VLOOKUP(D78,'Bank and Fund Details'!$B$15:$D$36,3,FALSE)","v":0},{"$f":"VLOOKUP(D78,'Bank and Fund Details'!$B$15:$C$36,2,FALSE)","v":"Unrestricted"},{"$f":"IFERROR(VLOOKUP(C78,Descriptions!$B$6:$D$92,3,FALSE),\"\")","v":""},null,null,null,null,null,null,null,null,null,null,null,null,null,null,"General Fund",{"$f":"IFERROR(VLOOKUP(C78,Descriptions!B:F,5,FALSE),\"N\")","v":"N"},true,"NTRUE",0,null,{"$f":"IFERROR(VLOOKUP(D78,'Bank and Fund Details'!$B$14:$L$35,11,FALSE),\"N\")","v":"Y"},"NY"]
[null,null,null,"General Fund",null,null,null,null,null,{"$f":"VLOOKUP(D79,'Bank and Fund Details'!$B$15:$D$36,3,FALSE)","v":0},{"$f":"VLOOKUP(D79,'Bank and Fund Details'!$B$15:$C$36,2,FALSE)","v":"Unrestricted"},{"$f":"IFERROR(VLOOKUP(C79,Descriptions!$B$6:$D$92,3,FALSE),\"\")","v":""},null,null,null,null,null,null,null,null,null,null,null,null,null,null,"General Fund",{"$f":"IFERROR(VLOOKUP(C79,Descriptions!B:F,5,FALSE),\"N\")","v":"N"},true,"NTRUE",0,null,{"$f":"IFERROR(VLOOKUP(D79,'Bank and Fund Details'!$B$14:$L$35,11,FALSE),\"N\")","v":"Y"},"NY"]
[null,null,null,"General Fund",null,null,null,null,null,{"$f":"VLOOKUP(D80,'Bank and Fund Details'!$B$15:$D$36,3,FALSE)","v":0},{"$f":"VLOOKUP(D80,'Bank and Fund Details'!$B$15:$C$36,2,FALSE)","v":"Unrestricted"},{"$f":"IFERROR(VLOOKUP(C80,Descriptions!$B$6:$D$92,3,FALSE),\"\")","v":""},null,null,null,null,null,null,null,null,null,null,null,null,null,null,"General Fund",{"$f":"IFERROR(VLOOKUP(C80,Descriptions!B:F,5,FALSE),\"N\")","v":"N"},true,"NTRUE",0,null,{"$f":"IFERROR(VLOOKUP(D80,'Bank and Fund Details'!$B$14:$L$35,11,FALSE),\"N\")","v":"Y"},"NY"]
[null,null,null,"General Fund",null,null,null,null,null,{"$f":"VLOOKUP(D81,'Bank and Fund Details'!$B$15:$D$36,3,FALSE)","v":0},{"$f":"VLOOKUP(D81,'Bank and Fund Details'!$B$15:$C$36,2,FALSE)","v":"Unrestricted"},{"$f":"IFERROR(VLOOKUP(C81,Descriptions!$B$6:$D$92,3,FALSE),\"\")","v":""},null,null,null,null,null,null,null,null,null,null,null,null,null,null,"General Fund",{"$f":"IFERROR(VLOOKUP(C81,Descriptions!B:F,5,FALSE),\"N\")","v":"N"},true,"NTRUE",0,null,{"$f":"IFERROR(VLOOKUP(D81,'Bank and Fund Details'!$B$14:$L$35,11,FALSE),\"N\")","v":"Y"},"NY"]
[null,null,null,"General Fund",null,null,null,null,null,{"$f":"VLOOKUP(D82,'Bank and Fund Details'!$B$15:$D$36,3,FALSE)","v":0},{"$f":"VLOOKUP(D82,'Bank and Fund Details'!$B$15:$C$36,2,FALSE)","v":"Unrestricted"},{"$f":"IFERROR(VLOOKUP(C82,Descriptions!$B$6:$D$92,3,FALSE),\"\")","v":""},null,null,null,null,null,null,null,null,null,null,null,null,null,null,"General Fund",{"$f":"IFERROR(VLOOKUP(C82,Descriptions!B:F,5,FALSE),\"N\")","v":"N"},true,"NTRUE",0,null,{"$f":"IFERROR(VLOOKUP(D82,'Bank and Fund Details'!$B$14:$L$35,11,FALSE),\"N\")","v":"Y"},"NY"]
[null,null,null,"General Fund",null,null,null,null,null,{"$f":"VLOOKUP(D83,'Bank and Fund Details'!$B$15:$D$36,3,FALSE)","v":0},{"$f":"VLOOKUP(D83,'Bank and Fund Details'!$B$15:$C$36,2,FALSE)","v":"Unrestricted"},{"$f":"IFERROR(VLOOKUP(C83,Descriptions!$B$6:$D$92,3,FALSE),\"\")","v":""},null,null,null,null,null,null,null,null,null,null,null,null,null,null,"General Fund",{"$f":"IFERROR(VLOOKUP(C83,Descriptions!B:F,5,FALSE),\"N\")","v":"N"},true,"NTRUE",0,null,{"$f":"IFERROR(VLOOKUP(D83,'Bank and Fund Details'!$B$14:$L$35,11,FALSE),\"N\")","v":"Y"},"NY"]
[null,null,null,"General Fund",null,null,null,null,null,{"$f":"VLOOKUP(D84,'Bank and Fund Details'!$B$15:$D$36,3,FALSE)","v":0},{"$f":"VLOOKUP(D84,'Bank and Fund Details'!$B$15:$C$36,2,FALSE)","v":"Unrestricted"},{"$f":"IFERROR(VLOOKUP(C84,Descriptions!$B$6:$D$92,3,FALSE),\"\")","v":""},null,null,null,null,null,null,null,null,null,null,null,null,null,null,"General Fund",{"$f":"IFERROR(VLOOKUP(C84,Descriptions!B:F,5,FALSE),\"N\")","v":"N"},true,"NTRUE",0,null,{"$f":"IFERROR(VLOOKUP(D84,'Bank and Fund Details'!$B$14:$L$35,11,FALSE),\"N\")","v":"Y"},"NY"]
[null,null,null,"General Fund",null,null,null,null,null,{"$f":"VLOOKUP(D85,'Bank and Fund Details'!$B$15:$D$36,3,FALSE)","v":0},{"$f":"VLOOKUP(D85,'Bank and Fund Details'!$B$15:$C$36,2,FALSE)","v":"Unrestricted"},{"$f":"IFERROR(VLOOKUP(C85,Descriptions!$B$6:$D$92,3,FALSE),\"\")","v":""},null,null,null,null,null,null,null,null,null,null,null,null,null,null,"General Fund",{"$f":"IFERROR(VLOOKUP(C85,Descriptions!B:F,5,FALSE),\"N\")","v":"N"},true,"NTRUE",0,null,{"$f":"IFERROR(VLOOKUP(D85,'Bank and Fund Details'!$B$14:$L$35,11,FALSE),\"N\")","v":"Y"},"NY"]
[null,null,null,"General Fund",null,null,null,null,null,{"$f":"VLOOKUP(D86,'Bank and Fund Details'!$B$15:$D$36,3,FALSE)","v":0},{"$f":"VLOOKUP(D86,'Bank and Fund Details'!$B$15:$C$36,2,FALSE)","v":"Unrestricted"},{"$f":"IFERROR(VLOOKUP(C86,Descriptions!$B$6:$D$92,3,FALSE),\"\")","v":""},null,null,null,null,null,null,null,null,null,null,null,null,null,null,"General Fund",{"$f":"IFERROR(VLOOKUP(C86,Descriptions!B:F,5,FALSE),\"N\")","v":"N"},true,"NTRUE",0,null,{"$f":"IFERROR(VLOOKUP(D86,'Bank and Fund Details'!$B$14:$L$35,11,FALSE),\"N\")","v":"Y"},"NY"]
[null,null,null,"General Fund",null,null,null,null,null,{"$f":"VLOOKUP(D87,'Bank and Fund Details'!$B$15:$D$36,3,FALSE)","v":0},{"$f":"VLOOKUP(D87,'Bank and Fund Details'!$B$15:$C$36,2,FALSE)","v":"Unrestricted"},{"$f":"IFERROR(VLOOKUP(C87,Descriptions!$B$6:$D$92,3,FALSE),\"\")","v":""},null,null,null,null,null,null,null,null,null,null,null,null,null,null,"General Fund",{"$f":"IFERROR(VLOOKUP(C87,Descriptions!B:F,5,FALSE),\"N\")","v":"N"},true,"NTRUE",0,null,{"$f":"IFERROR(VLOOKUP(D87,'Bank and Fund Details'!$B$14:$L$35,11,FALSE),\"N\")","v":"Y"},"NY"]
[null,null,null,"General Fund",null,null,null,null,null,{"$f":"VLOOKUP(D88,'Bank and Fund Details'!$B$15:$D$36,3,FALSE)","v":0},{"$f":"VLOOKUP(D88,'Bank and Fund Details'!$B$15:$C$36,2,FALSE)","v":"Unrestricted"},{"$f":"IFERROR(VLOOKUP(C88,Descriptions!$B$6:$D$92,3,FALSE),\"\")","v":""},null,null,null,null,null,null,null,null,null,null,null,null,null,null,"General Fund",{"$f":"IFERROR(VLOOKUP(C88,Descriptions!B:F,5,FALSE),\"N\")","v":"N"},true,"NTRUE",0,null,{"$f":"IFERROR(VLOOKUP(D88,'Bank and Fund Details'!$B$14:$L$35,11,FALSE),\"N\")","v":"Y"},"NY"]
[null,null,null,"General Fund",null,null,null,null,null,{"$f":"VLOOKUP(D89,'Bank and Fund Details'!$B$15:$D$36,3,FALSE)","v":0},{"$f":"VLOOKUP(D89,'Bank and Fund Details'!$B$15:$C$36,2,FALSE)","v":"Unrestricted"},{"$f":"IFERROR(VLOOKUP(C89,Descriptions!$B$6:$D$92,3,FALSE),\"\")","v":""},null,null,null,null,null,null,null,null,null,null,null,null,null,null,"General Fund",{"$f":"IFERROR(VLOOKUP(C89,Descriptions!B:F,5,FALSE),\"N\")","v":"N"},true,"NTRUE",0,null,{"$f":"IFERROR(VLOOKUP(D89,'Bank and Fund Details'!$B$14:$L$35,11,FALSE),\"N\")","v":"Y"},"NY"]
[null,null,null,"General Fund",null,null,null,null,null,{"$f":"VLOOKUP(D90,'Bank and Fund Details'!$B$15:$D$36,3,FALSE)","v":0},{"$f":"VLOOKUP(D90,'Bank and Fund Details'!$B$15:$C$36,2,FALSE)","v":"Unrestricted"},{"$f":"IFERROR(VLOOKUP(C90,Descriptions!$B$6:$D$92,3,FALSE),\"\")","v":""},null,null,null,null,null,null,null,null,null,null,null,null,null,null,"General Fund",{"$f":"IFERROR(VLOOKUP(C90,Descriptions!B:F,5,FALSE),\"N\")","v":"N"},true,"NTRUE",0,null,{"$f":"IFERROR(VLOOKUP(D90,'Bank and Fund Details'!$B$14:$L$35,11,FALSE),\"N\")","v":"Y"},"NY"]
[null,null,null,"General Fund",null,null,null,null,null,{"$f":"VLOOKUP(D91,'Bank and Fund Details'!$B$15:$D$36,3,FALSE)","v":0},{"$f":"VLOOKUP(D91,'Bank and Fund Details'!$B$15:$C$36,2,FALSE)","v":"Unrestricted"},{"$f":"IFERROR(VLOOKUP(C91,Descriptions!$B$6:$D$92,3,FALSE),\"\")","v":""},null,null,null,null,null,null,null,null,null,null,null,null,null,null,"General Fund",{"$f":"IFERROR(VLOOKUP(C91,Descriptions!B:F,5,FALSE),\"N\")","v":"N"},true,"NTRUE",0,null,{"$f":"IFERROR(VLOOKUP(D91,'Bank and Fund Details'!$B$14:$L$35,11,FALSE),\"N\")","v":"Y"},"NY"]
[null,null,null,"General Fund",null,null,null,null,null,{"$f":"VLOOKUP(D92,'Bank and Fund Details'!$B$15:$D$36,3,FALSE)","v":0},{"$f":"VLOOKUP(D92,'Bank and Fund Details'!$B$15:$C$36,2,FALSE)","v":"Unrestricted"},{"$f":"IFERROR(VLOOKUP(C92,Descriptions!$B$6:$D$92,3,FALSE),\"\")","v":""},null,null,null,null,null,null,null,null,null,null,null,null,null,null,"General Fund",{"$f":"IFERROR(VLOOKUP(C92,Descriptions!B:F,5,FALSE),\"N\")","v":"N"},true,"NTRUE",0,null,{"$f":"IFERROR(VLOOKUP(D92,'Bank and Fund Details'!$B$14:$L$35,11,FALSE),\"N\")","v":"Y"},"NY"]
[null,null,null,"General Fund",null,null,null,null,null,{"$f":"VLOOKUP(D93,'Bank and Fund Details'!$B$15:$D$36,3,FALSE)","v":0},{"$f":"VLOOKUP(D93,'Bank and Fund Details'!$B$15:$C$36,2,FALSE)","v":"Unrestricted"},{"$f":"IFERROR(VLOOKUP(C93,Descriptions!$B$6:$D$92,3,FALSE),\"\")","v":""},null,null,null,null,null,null,null,null,null,null,null,null,null,null,"General Fund",{"$f":"IFERROR(VLOOKUP(C93,Descriptions!B:F,5,FALSE),\"N\")","v":"N"},true,"NTRUE",0,null,{"$f":"IFERROR(VLOOKUP(D93,'Bank and Fund Details'!$B$14:$L$35,11,FALSE),\"N\")","v":"Y"},"NY"]
[null,null,null,"General Fund",null,null,null,null,null,{"$f":"VLOOKUP(D94,'Bank and Fund Details'!$B$15:$D$36,3,FALSE)","v":0},{"$f":"VLOOKUP(D94,'Bank and Fund Details'!$B$15:$C$36,2,FALSE)","v":"Unrestricted"},{"$f":"IFERROR(VLOOKUP(C94,Descriptions!$B$6:$D$92,3,FALSE),\"\")","v":""},null,null,null,null,null,null,null,null,null,null,null,null,null,null,"General Fund",{"$f":"IFERROR(VLOOKUP(C94,Descriptions!B:F,5,FALSE),\"N\")","v":"N"},true,"NTRUE",0,null,{"$f":"IFERROR(VLOOKUP(D94,'Bank and Fund Details'!$B$14:$L$35,11,FALSE),\"N\")","v":"Y"},"NY"]
[null,null,null,"General Fund",null,null,null,null,null,{"$f":"VLOOKUP(D95,'Bank and Fund Details'!$B$15:$D$36,3,FALSE)","v":0},{"$f":"VLOOKUP(D95,'Bank and Fund Details'!$B$15:$C$36,2,FALSE)","v":"Unrestricted"},{"$f":"IFERROR(VLOOKUP(C95,Descriptions!$B$6:$D$92,3,FALSE),\"\")","v":""},null,null,null,null,null,null,null,null,null,null,null,null,null,null,"General Fund",{"$f":"IFERROR(VLOOKUP(C95,Descriptions!B:F,5,FALSE),\"N\")","v":"N"},true,"NTRUE",0,null,{"$f":"IFERROR(VLOOKUP(D95,'Bank and Fund Details'!$B$14:$L$35,11,FALSE),\"N\")","v":"Y"},"NY"]
[null,null,null,"General Fund",null,null,null,null,null,{"$f":"VLOOKUP(D96,'Bank and Fund Details'!$B$15:$D$36,3,FALSE)","v":0},{"$f":"VLOOKUP(D96,'Bank and Fund Details'!$B$15:$C$36,2,FALSE)","v":"Unrestricted"},{"$f":"IFERROR(VLOOKUP(C96,Descriptions!$B$6:$D$92,3,FALSE),\"\")","v":""},null,null,null,null,null,null,null,null,null,null,null,null,null,null,"General Fund",{"$f":"IFERROR(VLOOKUP(C96,Descriptions!B:F,5,FALSE),\"N\")","v":"N"},true,"NTRUE",0,null,{"$f":"IFERROR(VLOOKUP(D96,'Bank and Fund Details'!$B$14:$L$35,11,FALSE),\"N\")","v":"Y"},"NY"]
[null,null,null,"General Fund",null,null,null,null,null,{"$f":"VLOOKUP(D97,'Bank and Fund Details'!$B$15:$D$36,3,FALSE)","v":0},{"$f":"VLOOKUP(D97,'Bank and Fund Details'!$B$15:$C$36,2,FALSE)","v":"Unrestricted"},{"$f":"IFERROR(VLOOKUP(C97,Descriptions!$B$6:$D$92,3,FALSE),\"\")","v":""},null,null,null,null,null,null,null,null,null,null,null,null,null,null,"General Fund",{"$f":"IFERROR(VLOOKUP(C97,Descriptions!B:F,5,FALSE),\"N\")","v":"N"},true,"NTRUE",0,null,{"$f":"IFERROR(VLOOKUP(D97,'Bank and Fund Details'!$B$14:$L$35,11,FALSE),\"N\")","v":"Y"},"NY"]
[null,null,null,"General Fund",null,null,null,null,null,{"$f":"VLOOKUP(D98,'Bank and Fund Details'!$B$15:$D$36,3,FALSE)","v":0},{"$f":"VLOOKUP(D98,'Bank and Fund Details'!$B$15:$C$36,2,FALSE)","v":"Unrestricted"},{"$f":"IFERROR(VLOOKUP(C98,Descriptions!$B$6:$D$92,3,FALSE),\"\")","v":""},null,null,null,null,null,null,null,null,null,null,null,null,null,null,"General Fund",{"$f":"IFERROR(VLOOKUP(C98,Descriptions!B:F,5,FALSE),\"N\")","v":"N"},true,"NTRUE",0,null,{"$f":"IFERROR(VLOOKUP(D98,'Bank and Fund Details'!$B$14:$L$35,11,FALSE),\"N\")","v":"Y"},"NY"]
[null,null,null,"General Fund",null,null,null,null,null,{"$f":"VLOOKUP(D99,'Bank and Fund Details'!$B$15:$D$36,3,FALSE)","v":0},{"$f":"VLOOKUP(D99,'Bank and Fund Details'!$B$15:$C$36,2,FALSE)","v":"Unrestricted"},{"$f":"IFERROR(VLOOKUP(C99,Descriptions!$B$6:$D$92,3,FALSE),\"\")","v":""},null,null,null,null,null,null,null,null,null,null,null,null,null,null,"General Fund",{"$f":"IFERROR(VLOOKUP(C99,Descriptions!B:F,5,FALSE),\"N\")","v":"N"},true,"NTRUE",0,null,{"$f":"IFERROR(VLOOKUP(D99,'Bank and Fund Details'!$B$14:$L$35,11,FALSE),\"N\")","v":"Y"},"NY"]
[null,null,null,"General Fund",null,null,null,null,null,{"$f":"VLOOKUP(D100,'Bank and Fund Details'!$B$15:$D$36,3,FALSE)","v":0},{"$f":"VLOOKUP(D100,'Bank and Fund Details'!$B$15:$C$36,2,FALSE)","v":"Unrestricted"},{"$f":"IFERROR(VLOOKUP(C100,Descriptions!$B$6:$D$92,3,FALSE),\"\")","v":""},null,null,null,null,null,null,null,null,null,null,null,null,null,null,"General Fund",{"$f":"IFERROR(VLOOKUP(C100,Descriptions!B:F,5,FALSE),\"N\")","v":"N"},true,"NTRUE",0,null,{"$f":"IFERROR(VLOOKUP(D100,'Bank and Fund Details'!$B$14:$L$35,11,FALSE),\"N\")","v":"Y"},"NY"]
[null,null,null,"General Fund",null,null,null,null,null,{"$f":"VLOOKUP(D101,'Bank and Fund Details'!$B$15:$D$36,3,FALSE)","v":0},{"$f":"VLOOKUP(D101,'Bank and Fund Details'!$B$15:$C$36,2,FALSE)","v":"Unrestricted"},{"$f":"IFERROR(VLOOKUP(C101,Descriptions!$B$6:$D$92,3,FALSE),\"\")","v":""},null,null,null,null,null,null,null,null,null,null,null,null,null,null,"General Fund",{"$f":"IFERROR(VLOOKUP(C101,Descriptions!B:F,5,FALSE),\"N\")","v":"N"},true,"NTRUE",0,null,{"$f":"IFERROR(VLOOKUP(D101,'Bank and Fund Details'!$B$14:$L$35,11,FALSE),\"N\")","v":"Y"},"NY"]
[null,null,null,"General Fund",null,null,null,null,null,{"$f":"VLOOKUP(D102,'Bank and Fund Details'!$B$15:$D$36,3,FALSE)","v":0},{"$f":"VLOOKUP(D102,'Bank and Fund Details'!$B$15:$C$36,2,FALSE)","v":"Unrestricted"},{"$f":"IFERROR(VLOOKUP(C102,Descriptions!$B$6:$D$92,3,FALSE),\"\")","v":""},null,null,null,null,null,null,null,null,null,null,null,null,null,null,"General Fund",{"$f":"IFERROR(VLOOKUP(C102,Descriptions!B:F,5,FALSE),\"N\")","v":"N"},true,"NTRUE",0,null,{"$f":"IFERROR(VLOOKUP(D102,'Bank and Fund Details'!$B$14:$L$35,11,FALSE),\"N\")","v":"Y"},"NY"]
[null,null,null,"General Fund",null,null,null,null,null,{"$f":"VLOOKUP(D103,'Bank and Fund Details'!$B$15:$D$36,3,FALSE)","v":0},{"$f":"VLOOKUP(D103,'Bank and Fund Details'!$B$15:$C$36,2,FALSE)","v":"Unrestricted"},{"$f":"IFERROR(VLOOKUP(C103,Descriptions!$B$6:$D$92,3,FALSE),\"\")","v":""},null,null,null,null,null,null,null,null,null,null,null,null,null,null,"General Fund",{"$f":"IFERROR(VLOOKUP(C103,Descriptions!B:F,5,FALSE),\"N\")","v":"N"},true,"NTRUE",0,null,{"$f":"IFERROR(VLOOKUP(D103,'Bank and Fund Details'!$B$14:$L$35,11,FALSE),\"N\")","v":"Y"},"NY"]
[null,null,null,"General Fund",null,null,null,null,null,{"$f":"VLOOKUP(D104,'Bank and Fund Details'!$B$15:$D$36,3,FALSE)","v":0},{"$f":"VLOOKUP(D104,'Bank and Fund Details'!$B$15:$C$36,2,FALSE)","v":"Unrestricted"},{"$f":"IFERROR(VLOOKUP(C104,Descriptions!$B$6:$D$92,3,FALSE),\"\")","v":""},null,null,null,null,null,null,null,null,null,null,null,null,null,null,"General Fund",{"$f":"IFERROR(VLOOKUP(C104,Descriptions!B:F,5,FALSE),\"N\")","v":"N"},true,"NTRUE",0,null,{"$f":"IFERROR(VLOOKUP(D104,'Bank and Fund Details'!$B$14:$L$35,11,FALSE),\"N\")","v":"Y"},"NY"]
[null,null,null,"General Fund",null,null,null,null,null,{"$f":"VLOOKUP(D105,'Bank and Fund Details'!$B$15:$D$36,3,FALSE)","v":0},{"$f":"VLOOKUP(D105,'Bank and Fund Details'!$B$15:$C$36,2,FALSE)","v":"Unrestricted"},{"$f":"IFERROR(VLOOKUP(C105,Descriptions!$B$6:$D$92,3,FALSE),\"\")","v":""},null,null,null,null,null,null,null,null,null,null,null,null,null,null,"General Fund",{"$f":"IFERROR(VLOOKUP(C105,Descriptions!B:F,5,FALSE),\"N\")","v":"N"},true,"NTRUE",0,null,{"$f":"IFERROR(VLOOKUP(D105,'Bank and Fund Details'!$B$14:$L$35,11,FALSE),\"N\")","v":"Y"},"NY"]
[null,null,null,"General Fund",null,null,null,null,null,{"$f":"VLOOKUP(D106,'Bank and Fund Details'!$B$15:$D$36,3,FALSE)","v":0},{"$f":"VLOOKUP(D106,'Bank and Fund Details'!$B$15:$C$36,2,FALSE)","v":"Unrestricted"},{"$f":"IFERROR(VLOOKUP(C106,Descriptions!$B$6:$D$92,3,FALSE),\"\")","v":""},null,null,null,null,null,null,null,null,null,null,null,null,null,null,"General Fund",{"$f":"IFERROR(VLOOKUP(C106,Descriptions!B:F,5,FALSE),\"N\")","v":"N"},true,"NTRUE",0,null,{"$f":"IFERROR(VLOOKUP(D106,'Bank and Fund Details'!$B$14:$L$35,11,FALSE),\"N\")","v":"Y"},"NY"]
[null,null,null,"General Fund",null,null,null,null,null,{"$f":"VLOOKUP(D107,'Bank and Fund Details'!$B$15:$D$36,3,FALSE)","v":0},{"$f":"VLOOKUP(D107,'Bank and Fund Details'!$B$15:$C$36,2,FALSE)","v":"Unrestricted"},{"$f":"IFERROR(VLOOKUP(C107,Descriptions!$B$6:$D$92,3,FALSE),\"\")","v":""},null,null,null,null,null,null,null,null,null,null,null,null,null,null,"General Fund",{"$f":"IFERROR(VLOOKUP(C107,Descriptions!B:F,5,FALSE),\"N\")","v":"N"},true,"NTRUE",0,null,{"$f":"IFERROR(VLOOKUP(D107,'Bank and Fund Details'!$B$14:$L$35,11,FALSE),\"N\")","v":"Y"},"NY"]
[null,null,null,"General Fund",null,null,null,null,null,{"$f":"VLOOKUP(D108,'Bank and Fund Details'!$B$15:$D$36,3,FALSE)","v":0},{"$f":"VLOOKUP(D108,'Bank and Fund Details'!$B$15:$C$36,2,FALSE)","v":"Unrestricted"},{"$f":"IFERROR(VLOOKUP(C108,Descriptions!$B$6:$D$92,3,FALSE),\"\")","v":""},null,null,null,null,null,null,null,null,null,null,null,null,null,null,"General Fund",{"$f":"IFERROR(VLOOKUP(C108,Descriptions!B:F,5,FALSE),\"N\")","v":"N"},true,"NTRUE",0,null,{"$f":"IFERROR(VLOOKUP(D108,'Bank and Fund Details'!$B$14:$L$35,11,FALSE),\"N\")","v":"Y"},"NY"]
[null,null,null,"General Fund",null,null,null,null,null,{"$f":"VLOOKUP(D109,'Bank and Fund Details'!$B$15:$D$36,3,FALSE)","v":0},{"$f":"VLOOKUP(D109,'Bank and Fund Details'!$B$15:$C$36,2,FALSE)","v":"Unrestricted"},{"$f":"IFERROR(VLOOKUP(C109,Descriptions!$B$6:$D$92,3,FALSE),\"\")","v":""},null,null,null,null,null,null,null,null,null,null,null,null,null,null,"General Fund",{"$f":"IFERROR(VLOOKUP(C109,Descriptions!B:F,5,FALSE),\"N\")","v":"N"},true,"NTRUE",0,null,{"$f":"IFERROR(VLOOKUP(D109,'Bank and Fund Details'!$B$14:$L$35,11,FALSE),\"N\")","v":"Y"},"NY"]
[null,null,null,"General Fund",null,null,null,null,null,{"$f":"VLOOKUP(D110,'Bank and Fund Details'!$B$15:$D$36,3,FALSE)","v":0},{"$f":"VLOOKUP(D110,'Bank and Fund Details'!$B$15:$C$36,2,FALSE)","v":"Unrestricted"},{"$f":"IFERROR(VLOOKUP(C110,Descriptions!$B$6:$D$92,3,FALSE),\"\")","v":""},null,null,null,null,null,null,null,null,null,null,null,null,null,null,"General Fund",{"$f":"IFERROR(VLOOKUP(C110,Descriptions!B:F,5,FALSE),\"N\")","v":"N"},true,"NTRUE",0,null,{"$f":"IFERROR(VLOOKUP(D110,'Bank and Fund Details'!$B$14:$L$35,11,FALSE),\"N\")","v":"Y"},"NY"]
[null,null,null,"General Fund",null,null,null,null,null,{"$f":"VLOOKUP(D111,'Bank and Fund Details'!$B$15:$D$36,3,FALSE)","v":0},{"$f":"VLOOKUP(D111,'Bank and Fund Details'!$B$15:$C$36,2,FALSE)","v":"Unrestricted"},{"$f":"IFERROR(VLOOKUP(C111,Descriptions!$B$6:$D$92,3,FALSE),\"\")","v":""},null,null,null,null,null,null,null,null,null,null,null,null,null,null,"General Fund",{"$f":"IFERROR(VLOOKUP(C111,Descriptions!B:F,5,FALSE),\"N\")","v":"N"},true,"NTRUE",0,null,{"$f":"IFERROR(VLOOKUP(D111,'Bank and Fund Details'!$B$14:$L$35,11,FALSE),\"N\")","v":"Y"},"NY"]
[null,null,null,"General Fund",null,null,null,null,null,{"$f":"VLOOKUP(D112,'Bank and Fund Details'!$B$15:$D$36,3,FALSE)","v":0},{"$f":"VLOOKUP(D112,'Bank and Fund Details'!$B$15:$C$36,2,FALSE)","v":"Unrestricted"},{"$f":"IFERROR(VLOOKUP(C112,Descriptions!$B$6:$D$92,3,FALSE),\"\")","v":""},null,null,null,null,null,null,null,null,null,null,null,null,null,null,"General Fund",{"$f":"IFERROR(VLOOKUP(C112,Descriptions!B:F,5,FALSE),\"N\")","v":"N"},true,"NTRUE",0,null,{"$f":"IFERROR(VLOOKUP(D112,'Bank and Fund Details'!$B$14:$L$35,11,FALSE),\"N\")","v":"Y"},"NY"]
[null,null,null,"General Fund",null,null,null,null,null,{"$f":"VLOOKUP(D113,'Bank and Fund Details'!$B$15:$D$36,3,FALSE)","v":0},{"$f":"VLOOKUP(D113,'Bank and Fund Details'!$B$15:$C$36,2,FALSE)","v":"Unrestricted"},{"$f":"IFERROR(VLOOKUP(C113,Descriptions!$B$6:$D$92,3,FALSE),\"\")","v":""},null,null,null,null,null,null,null,null,null,null,null,null,null,null,"General Fund",{"$f":"IFERROR(VLOOKUP(C113,Descriptions!B:F,5,FALSE),\"N\")","v":"N"},true,"NTRUE",0,null,{"$f":"IFERROR(VLOOKUP(D113,'Bank and Fund Details'!$B$14:$L$35,11,FALSE),\"N\")","v":"Y"},"NY"]
[null,null,null,"General Fund",null,null,null,null,null,{"$f":"VLOOKUP(D114,'Bank and Fund Details'!$B$15:$D$36,3,FALSE)","v":0},{"$f":"VLOOKUP(D114,'Bank and Fund Details'!$B$15:$C$36,2,FALSE)","v":"Unrestricted"},{"$f":"IFERROR(VLOOKUP(C114,Descriptions!$B$6:$D$92,3,FALSE),\"\")","v":""},null,null,null,null,null,null,null,null,null,null,null,null,null,null,"General Fund",{"$f":"IFERROR(VLOOKUP(C114,Descriptions!B:F,5,FALSE),\"N\")","v":"N"},true,"NTRUE",0,null,{"$f":"IFERROR(VLOOKUP(D114,'Bank and Fund Details'!$B$14:$L$35,11,FALSE),\"N\")","v":"Y"},"NY"]
[null,null,null,"General Fund",null,null,null,null,null,{"$f":"VLOOKUP(D115,'Bank and Fund Details'!$B$15:$D$36,3,FALSE)","v":0},{"$f":"VLOOKUP(D115,'Bank and Fund Details'!$B$15:$C$36,2,FALSE)","v":"Unrestricted"},{"$f":"IFERROR(VLOOKUP(C115,Descriptions!$B$6:$D$92,3,FALSE),\"\")","v":""},null,null,null,null,null,null,null,null,null,null,null,null,null,null,"General Fund",{"$f":"IFERROR(VLOOKUP(C115,Descriptions!B:F,5,FALSE),\"N\")","v":"N"},true,"NTRUE",0,null,{"$f":"IFERROR(VLOOKUP(D115,'Bank and Fund Details'!$B$14:$L$35,11,FALSE),\"N\")","v":"Y"},"NY"]
[null,null,null,"General Fund",null,null,null,null,null,{"$f":"VLOOKUP(D116,'Bank and Fund Details'!$B$15:$D$36,3,FALSE)","v":0},{"$f":"VLOOKUP(D116,'Bank and Fund Details'!$B$15:$C$36,2,FALSE)","v":"Unrestricted"},{"$f":"IFERROR(VLOOKUP(C116,Descriptions!$B$6:$D$92,3,FALSE),\"\")","v":""},null,null,null,null,null,null,null,null,null,null,null,null,null,null,"General Fund",{"$f":"IFERROR(VLOOKUP(C116,Descriptions!B:F,5,FALSE),\"N\")","v":"N"},true,"NTRUE",0,null,{"$f":"IFERROR(VLOOKUP(D116,'Bank and Fund Details'!$B$14:$L$35,11,FALSE),\"N\")","v":"Y"},"NY"]
[null,null,null,"General Fund",null,null,null,null,null,{"$f":"VLOOKUP(D117,'Bank and Fund Details'!$B$15:$D$36,3,FALSE)","v":0},{"$f":"VLOOKUP(D117,'Bank and Fund Details'!$B$15:$C$36,2,FALSE)","v":"Unrestricted"},{"$f":"IFERROR(VLOOKUP(C117,Descriptions!$B$6:$D$92,3,FALSE),\"\")","v":""},null,null,null,null,null,null,null,null,null,null,null,null,null,null,"General Fund",{"$f":"IFERROR(VLOOKUP(C117,Descriptions!B:F,5,FALSE),\"N\")","v":"N"},true,"NTRUE",0,null,{"$f":"IFERROR(VLOOKUP(D117,'Bank and Fund Details'!$B$14:$L$35,11,FALSE),\"N\")","v":"Y"},"NY"]
[null,null,null,"General Fund",null,null,null,null,null,{"$f":"VLOOKUP(D118,'Bank and Fund Details'!$B$15:$D$36,3,FALSE)","v":0},{"$f":"VLOOKUP(D118,'Bank and Fund Details'!$B$15:$C$36,2,FALSE)","v":"Unrestricted"},{"$f":"IFERROR(VLOOKUP(C118,Descriptions!$B$6:$D$92,3,FALSE),\"\")","v":""},null,null,null,null,null,null,null,null,null,null,null,null,null,null,"General Fund",{"$f":"IFERROR(VLOOKUP(C118,Descriptions!B:F,5,FALSE),\"N\")","v":"N"},true,"NTRUE",0,null,{"$f":"IFERROR(VLOOKUP(D118,'Bank and Fund Details'!$B$14:$L$35,11,FALSE),\"N\")","v":"Y"},"NY"]
[null,null,null,"General Fund",null,null,null,null,null,{"$f":"VLOOKUP(D119,'Bank and Fund Details'!$B$15:$D$36,3,FALSE)","v":0},{"$f":"VLOOKUP(D119,'Bank and Fund Details'!$B$15:$C$36,2,FALSE)","v":"Unrestricted"},{"$f":"IFERROR(VLOOKUP(C119,Descriptions!$B$6:$D$92,3,FALSE),\"\")","v":""},null,null,null,null,null,null,null,null,null,null,null,null,null,null,"General Fund",{"$f":"IFERROR(VLOOKUP(C119,Descriptions!B:F,5,FALSE),\"N\")","v":"N"},true,"NTRUE",0,null,{"$f":"IFERROR(VLOOKUP(D119,'Bank and Fund Details'!$B$14:$L$35,11,FALSE),\"N\")","v":"Y"},"NY"]
[null,null,null,"General Fund",null,null,null,null,null,{"$f":"VLOOKUP(D120,'Bank and Fund Details'!$B$15:$D$36,3,FALSE)","v":0},{"$f":"VLOOKUP(D120,'Bank and Fund Details'!$B$15:$C$36,2,FALSE)","v":"Unrestricted"},{"$f":"IFERROR(VLOOKUP(C120,Descriptions!$B$6:$D$92,3,FALSE),\"\")","v":""},null,null,null,null,null,null,null,null,null,null,null,null,null,null,"General Fund",{"$f":"IFERROR(VLOOKUP(C120,Descriptions!B:F,5,FALSE),\"N\")","v":"N"},true,"NTRUE",0,null,{"$f":"IFERROR(VLOOKUP(D120,'Bank and Fund Details'!$B$14:$L$35,11,FALSE),\"N\")","v":"Y"},"NY"]
[null,null,null,"General Fund",null,null,null,null,null,{"$f":"VLOOKUP(D121,'Bank and Fund Details'!$B$15:$D$36,3,FALSE)","v":0},{"$f":"VLOOKUP(D121,'Bank and Fund Details'!$B$15:$C$36,2,FALSE)","v":"Unrestricted"},{"$f":"IFERROR(VLOOKUP(C121,Descriptions!$B$6:$D$92,3,FALSE),\"\")","v":""},null,null,null,null,null,null,null,null,null,null,null,null,null,null,"General Fund",{"$f":"IFERROR(VLOOKUP(C121,Descriptions!B:F,5,FALSE),\"N\")","v":"N"},true,"NTRUE",0,null,{"$f":"IFERROR(VLOOKUP(D121,'Bank and Fund Details'!$B$14:$L$35,11,FALSE),\"N\")","v":"Y"},"NY"]
[null,null,null,"General Fund",null,null,null,null,null,{"$f":"VLOOKUP(D122,'Bank and Fund Details'!$B$15:$D$36,3,FALSE)","v":0},{"$f":"VLOOKUP(D122,'Bank and Fund Details'!$B$15:$C$36,2,FALSE)","v":"Unrestricted"},{"$f":"IFERROR(VLOOKUP(C122,Descriptions!$B$6:$D$92,3,FALSE),\"\")","v":""},null,null,null,null,null,null,null,null,null,null,null,null,null,null,"General Fund",{"$f":"IFERROR(VLOOKUP(C122,Descriptions!B:F,5,FALSE),\"N\")","v":"N"},true,"NTRUE",0,null,{"$f":"IFERROR(VLOOKUP(D122,'Bank and Fund Details'!$B$14:$L$35,11,FALSE),\"N\")","v":"Y"},"NY"]
[null,null,null,"General Fund",null,null,null,null,null,{"$f":"VLOOKUP(D123,'Bank and Fund Details'!$B$15:$D$36,3,FALSE)","v":0},{"$f":"VLOOKUP(D123,'Bank and Fund Details'!$B$15:$C$36,2,FALSE)","v":"Unrestricted"},{"$f":"IFERROR(VLOOKUP(C123,Descriptions!$B$6:$D$92,3,FALSE),\"\")","v":""},null,null,null,null,null,null,null,null,null,null,null,null,null,null,"General Fund",{"$f":"IFERROR(VLOOKUP(C123,Descriptions!B:F,5,FALSE),\"N\")","v":"N"},true,"NTRUE",0,null,{"$f":"IFERROR(VLOOKUP(D123,'Bank and Fund Details'!$B$14:$L$35,11,FALSE),\"N\")","v":"Y"},"NY"]
[null,null,null,"General Fund",null,null,null,null,null,{"$f":"VLOOKUP(D124,'Bank and Fund Details'!$B$15:$D$36,3,FALSE)","v":0},{"$f":"VLOOKUP(D124,'Bank and Fund Details'!$B$15:$C$36,2,FALSE)","v":"Unrestricted"},{"$f":"IFERROR(VLOOKUP(C124,Descriptions!$B$6:$D$92,3,FALSE),\"\")","v":""},null,null,null,null,null,null,null,null,null,null,null,null,null,null,"General Fund",{"$f":"IFERROR(VLOOKUP(C124,Descriptions!B:F,5,FALSE),\"N\")","v":"N"},true,"NTRUE",0,null,{"$f":"IFERROR(VLOOKUP(D124,'Bank and Fund Details'!$B$14:$L$35,11,FALSE),\"N\")","v":"Y"},"NY"]
[null,null,null,"General Fund",null,null,null,null,null,{"$f":"VLOOKUP(D125,'Bank and Fund Details'!$B$15:$D$36,3,FALSE)","v":0},{"$f":"VLOOKUP(D125,'Bank and Fund Details'!$B$15:$C$36,2,FALSE)","v":"Unrestricted"},{"$f":"IFERROR(VLOOKUP(C125,Descriptions!$B$6:$D$92,3,FALSE),\"\")","v":""},null,null,null,null,null,null,null,null,null,null,null,null,null,null,"General Fund",{"$f":"IFERROR(VLOOKUP(C125,Descriptions!B:F,5,FALSE),\"N\")","v":"N"},true,"NTRUE",0,null,{"$f":"IFERROR(VLOOKUP(D125,'Bank and Fund Details'!$B$14:$L$35,11,FALSE),\"N\")","v":"Y"},"NY"]
[null,null,null,"General Fund",null,null,null,null,null,{"$f":"VLOOKUP(D126,'Bank and Fund Details'!$B$15:$D$36,3,FALSE)","v":0},{"$f":"VLOOKUP(D126,'Bank and Fund Details'!$B$15:$C$36,2,FALSE)","v":"Unrestricted"},{"$f":"IFERROR(VLOOKUP(C126,Descriptions!$B$6:$D$92,3,FALSE),\"\")","v":""},null,null,null,null,null,null,null,null,null,null,null,null,null,null,"General Fund",{"$f":"IFERROR(VLOOKUP(C126,Descriptions!B:F,5,FALSE),\"N\")","v":"N"},true,"NTRUE",0,null,{"$f":"IFERROR(VLOOKUP(D126,'Bank and Fund Details'!$B$14:$L$35,11,FALSE),\"N\")","v":"Y"},"NY"]
[null,null,null,"General Fund",null,null,null,null,null,{"$f":"VLOOKUP(D127,'Bank and Fund Details'!$B$15:$D$36,3,FALSE)","v":0},{"$f":"VLOOKUP(D127,'Bank and Fund Details'!$B$15:$C$36,2,FALSE)","v":"Unrestricted"},{"$f":"IFERROR(VLOOKUP(C127,Descriptions!$B$6:$D$92,3,FALSE),\"\")","v":""},null,null,null,null,null,null,null,null,null,null,null,null,null,null,"General Fund",{"$f":"IFERROR(VLOOKUP(C127,Descriptions!B:F,5,FALSE),\"N\")","v":"N"},true,"NTRUE",0,null,{"$f":"IFERROR(VLOOKUP(D127,'Bank and Fund Details'!$B$14:$L$35,11,FALSE),\"N\")","v":"Y"},"NY"]
[null,null,null,"General Fund",null,null,null,null,null,{"$f":"VLOOKUP(D128,'Bank and Fund Details'!$B$15:$D$36,3,FALSE)","v":0},{"$f":"VLOOKUP(D128,'Bank and Fund Details'!$B$15:$C$36,2,FALSE)","v":"Unrestricted"},{"$f":"IFERROR(VLOOKUP(C128,Descriptions!$B$6:$D$92,3,FALSE),\"\")","v":""},null,null,null,null,null,null,null,null,null,null,null,null,null,null,"General Fund",{"$f":"IFERROR(VLOOKUP(C128,Descriptions!B:F,5,FALSE),\"N\")","v":"N"},true,"NTRUE",0,null,{"$f":"IFERROR(VLOOKUP(D128,'Bank and Fund Details'!$B$14:$L$35,11,FALSE),\"N\")","v":"Y"},"NY"]
[null,null,null,"General Fund",null,null,null,null,null,{"$f":"VLOOKUP(D129,'Bank and Fund Details'!$B$15:$D$36,3,FALSE)","v":0},{"$f":"VLOOKUP(D129,'Bank and Fund Details'!$B$15:$C$36,2,FALSE)","v":"Unrestricted"},{"$f":"IFERROR(VLOOKUP(C129,Descriptions!$B$6:$D$92,3,FALSE),\"\")","v":""},null,null,null,null,null,null,null,null,null,null,null,null,null,null,"General Fund",{"$f":"IFERROR(VLOOKUP(C129,Descriptions!B:F,5,FALSE),\"N\")","v":"N"},true,"NTRUE",0,null,{"$f":"IFERROR(VLOOKUP(D129,'Bank and Fund Details'!$B$14:$L$35,11,FALSE),\"N\")","v":"Y"},"NY"]
[null,null,null,"General Fund",null,null,null,null,null,{"$f":"VLOOKUP(D130,'Bank and Fund Details'!$B$15:$D$36,3,FALSE)","v":0},{"$f":"VLOOKUP(D130,'Bank and Fund Details'!$B$15:$C$36,2,FALSE)","v":"Unrestricted"},{"$f":"IFERROR(VLOOKUP(C130,Descriptions!$B$6:$D$92,3,FALSE),\"\")","v":""},null,null,null,null,null,null,null,null,null,null,null,null,null,null,"General Fund",{"$f":"IFERROR(VLOOKUP(C130,Descriptions!B:F,5,FALSE),\"N\")","v":"N"},true,"NTRUE",0,null,{"$f":"IFERROR(VLOOKUP(D130,'Bank and Fund Details'!$B$14:$L$35,11,FALSE),\"N\")","v":"Y"},"NY"]
[null,null,null,"General Fund",null,null,null,null,null,{"$f":"VLOOKUP(D131,'Bank and Fund Details'!$B$15:$D$36,3,FALSE)","v":0},{"$f":"VLOOKUP(D131,'Bank and Fund Details'!$B$15:$C$36,2,FALSE)","v":"Unrestricted"},{"$f":"IFERROR(VLOOKUP(C131,Descriptions!$B$6:$D$92,3,FALSE),\"\")","v":""},null,null,null,null,null,null,null,null,null,null,null,null,null,null,"General Fund",{"$f":"IFERROR(VLOOKUP(C131,Descriptions!B:F,5,FALSE),\"N\")","v":"N"},true,"NTRUE",0,null,{"$f":"IFERROR(VLOOKUP(D131,'Bank and Fund Details'!$B$14:$L$35,11,FALSE),\"N\")","v":"Y"},"NY"]
[null,null,null,"General Fund",null,null,null,null,null,{"$f":"VLOOKUP(D132,'Bank and Fund Details'!$B$15:$D$36,3,FALSE)","v":0},{"$f":"VLOOKUP(D132,'Bank and Fund Details'!$B$15:$C$36,2,FALSE)","v":"Unrestricted"},{"$f":"IFERROR(VLOOKUP(C132,Descriptions!$B$6:$D$92,3,FALSE),\"\")","v":""},null,null,null,null,null,null,null,null,null,null,null,null,null,null,"General Fund",{"$f":"IFERROR(VLOOKUP(C132,Descriptions!B:F,5,FALSE),\"N\")","v":"N"},true,"NTRUE",0,null,{"$f":"IFERROR(VLOOKUP(D132,'Bank and Fund Details'!$B$14:$L$35,11,FALSE),\"N\")","v":"Y"},"NY"]
[null,null,null,"General Fund",null,null,null,null,null,{"$f":"VLOOKUP(D133,'Bank and Fund Details'!$B$15:$D$36,3,FALSE)","v":0},{"$f":"VLOOKUP(D133,'Bank and Fund Details'!$B$15:$C$36,2,FALSE)","v":"Unrestricted"},{"$f":"IFERROR(VLOOKUP(C133,Descriptions!$B$6:$D$92,3,FALSE),\"\")","v":""},null,null,null,null,null,null,null,null,null,null,null,null,null,null,{"$f":"CONCATENATE(C133,D133)","v":"General Fund"},{"$f":"IFERROR(VLOOKUP(C133,Descriptions!B:F,5,FALSE),\"N\")","v":"N"},{"$f":"ISBLANK(C133)","v":true},{"$f":"CONCATENATE(AB133,AC133)","v":"NTRUE"},{"$f":"IF(AD133=\"NFALSE\",1,0)","v":0},null,{"$f":"IFERROR(VLOOKUP(D133,'Bank and Fund Details'!$B$14:$L$35,11,FALSE),\"N\")","v":"Y"},"NY"]
[null,null,null,"General Fund",null,null,null,null,null,{"$f":"VLOOKUP(D134,'Bank and Fund Details'!$B$15:$D$36,3,FALSE)","v":0},{"$f":"VLOOKUP(D134,'Bank and Fund Details'!$B$15:$C$36,2,FALSE)","v":"Unrestricted"},{"$f":"IFERROR(VLOOKUP(C134,Descriptions!$B$6:$D$92,3,FALSE),\"\")","v":""},null,null,null,null,null,null,null,null,null,null,null,null,null,null,"General Fund",{"$f":"IFERROR(VLOOKUP(C134,Descriptions!B:F,5,FALSE),\"N\")","v":"N"},true,"NTRUE",0,null,{"$f":"IFERROR(VLOOKUP(D134,'Bank and Fund Details'!$B$14:$L$35,11,FALSE),\"N\")","v":"Y"},{"$f":"CONCATENATE(AB134,AG134)","v":"NY"}]
[null,null,null,"General Fund",null,null,null,null,null,{"$f":"VLOOKUP(D135,'Bank and Fund Details'!$B$15:$D$36,3,FALSE)","v":0},{"$f":"VLOOKUP(D135,'Bank and Fund Details'!$B$15:$C$36,2,FALSE)","v":"Unrestricted"},{"$f":"IFERROR(VLOOKUP(C135,Descriptions!$B$6:$D$92,3,FALSE),\"\")","v":""},null,null,null,null,null,null,null,null,null,null,null,null,null,null,"General Fund",{"$f":"IFERROR(VLOOKUP(C135,Descriptions!B:F,5,FALSE),\"N\")","v":"N"},true,"NTRUE",0,null,{"$f":"IFERROR(VLOOKUP(D135,'Bank and Fund Details'!$B$14:$L$35,11,FALSE),\"N\")","v":"Y"},"NY"]
[null,null,null,"General Fund",null,null,null,null,null,{"$f":"VLOOKUP(D136,'Bank and Fund Details'!$B$15:$D$36,3,FALSE)","v":0},{"$f":"VLOOKUP(D136,'Bank and Fund Details'!$B$15:$C$36,2,FALSE)","v":"Unrestricted"},{"$f":"IFERROR(VLOOKUP(C136,Descriptions!$B$6:$D$92,3,FALSE),\"\")","v":""},null,null,null,null,null,null,null,null,null,null,null,null,null,null,"General Fund",{"$f":"IFERROR(VLOOKUP(C136,Descriptions!B:F,5,FALSE),\"N\")","v":"N"},true,"NTRUE",0,null,{"$f":"IFERROR(VLOOKUP(D136,'Bank and Fund Details'!$B$14:$L$35,11,FALSE),\"N\")","v":"Y"},"NY"]
[null,null,null,"General Fund",null,null,null,null,null,{"$f":"VLOOKUP(D137,'Bank and Fund Details'!$B$15:$D$36,3,FALSE)","v":0},{"$f":"VLOOKUP(D137,'Bank and Fund Details'!$B$15:$C$36,2,FALSE)","v":"Unrestricted"},{"$f":"IFERROR(VLOOKUP(C137,Descriptions!$B$6:$D$92,3,FALSE),\"\")","v":""},null,null,null,null,null,null,null,null,null,null,null,null,null,null,"General Fund",{"$f":"IFERROR(VLOOKUP(C137,Descriptions!B:F,5,FALSE),\"N\")","v":"N"},true,"NTRUE",0,null,{"$f":"IFERROR(VLOOKUP(D137,'Bank and Fund Details'!$B$14:$L$35,11,FALSE),\"N\")","v":"Y"},"NY"]
[null,null,null,"General Fund",null,null,null,null,null,{"$f":"VLOOKUP(D138,'Bank and Fund Details'!$B$15:$D$36,3,FALSE)","v":0},{"$f":"VLOOKUP(D138,'Bank and Fund Details'!$B$15:$C$36,2,FALSE)","v":"Unrestricted"},{"$f":"IFERROR(VLOOKUP(C138,Descriptions!$B$6:$D$92,3,FALSE),\"\")","v":""},null,null,null,null,null,null,null,null,null,null,null,null,null,null,"General Fund",{"$f":"IFERROR(VLOOKUP(C138,Descriptions!B:F,5,FALSE),\"N\")","v":"N"},true,"NTRUE",0,null,{"$f":"IFERROR(VLOOKUP(D138,'Bank and Fund Details'!$B$14:$L$35,11,FALSE),\"N\")","v":"Y"},"NY"]
[null,null,null,"General Fund",null,null,null,null,null,{"$f":"VLOOKUP(D139,'Bank and Fund Details'!$B$15:$D$36,3,FALSE)","v":0},{"$f":"VLOOKUP(D139,'Bank and Fund Details'!$B$15:$C$36,2,FALSE)","v":"Unrestricted"},{"$f":"IFERROR(VLOOKUP(C139,Descriptions!$B$6:$D$92,3,FALSE),\"\")","v":""},null,null,null,null,null,null,null,null,null,null,null,null,null,null,"General Fund",{"$f":"IFERROR(VLOOKUP(C139,Descriptions!B:F,5,FALSE),\"N\")","v":"N"},true,"NTRUE",0,null,{"$f":"IFERROR(VLOOKUP(D139,'Bank and Fund Details'!$B$14:$L$35,11,FALSE),\"N\")","v":"Y"},"NY"]
[null,null,null,"General Fund",null,null,null,null,null,{"$f":"VLOOKUP(D140,'Bank and Fund Details'!$B$15:$D$36,3,FALSE)","v":0},{"$f":"VLOOKUP(D140,'Bank and Fund Details'!$B$15:$C$36,2,FALSE)","v":"Unrestricted"},{"$f":"IFERROR(VLOOKUP(C140,Descriptions!$B$6:$D$92,3,FALSE),\"\")","v":""},null,null,null,null,null,null,null,null,null,null,null,null,null,null,"General Fund",{"$f":"IFERROR(VLOOKUP(C140,Descriptions!B:F,5,FALSE),\"N\")","v":"N"},true,"NTRUE",0,null,{"$f":"IFERROR(VLOOKUP(D140,'Bank and Fund Details'!$B$14:$L$35,11,FALSE),\"N\")","v":"Y"},"NY"]
[null,null,null,"General Fund",null,null,null,null,null,{"$f":"VLOOKUP(D141,'Bank and Fund Details'!$B$15:$D$36,3,FALSE)","v":0},{"$f":"VLOOKUP(D141,'Bank and Fund Details'!$B$15:$C$36,2,FALSE)","v":"Unrestricted"},{"$f":"IFERROR(VLOOKUP(C141,Descriptions!$B$6:$D$92,3,FALSE),\"\")","v":""},null,null,null,null,null,null,null,null,null,null,null,null,null,null,"General Fund",{"$f":"IFERROR(VLOOKUP(C141,Descriptions!B:F,5,FALSE),\"N\")","v":"N"},true,"NTRUE",0,null,{"$f":"IFERROR(VLOOKUP(D141,'Bank and Fund Details'!$B$14:$L$35,11,FALSE),\"N\")","v":"Y"},"NY"]
[null,null,null,"General Fund",null,null,null,null,null,{"$f":"VLOOKUP(D142,'Bank and Fund Details'!$B$15:$D$36,3,FALSE)","v":0},{"$f":"VLOOKUP(D142,'Bank and Fund Details'!$B$15:$C$36,2,FALSE)","v":"Unrestricted"},{"$f":"IFERROR(VLOOKUP(C142,Descriptions!$B$6:$D$92,3,FALSE),\"\")","v":""},null,null,null,null,null,null,null,null,null,null,null,null,null,null,"General Fund",{"$f":"IFERROR(VLOOKUP(C142,Descriptions!B:F,5,FALSE),\"N\")","v":"N"},true,"NTRUE",0,null,{"$f":"IFERROR(VLOOKUP(D142,'Bank and Fund Details'!$B$14:$L$35,11,FALSE),\"N\")","v":"Y"},"NY"]
[null,null,null,"General Fund",null,null,null,null,null,{"$f":"VLOOKUP(D143,'Bank and Fund Details'!$B$15:$D$36,3,FALSE)","v":0},{"$f":"VLOOKUP(D143,'Bank and Fund Details'!$B$15:$C$36,2,FALSE)","v":"Unrestricted"},{"$f":"IFERROR(VLOOKUP(C143,Descriptions!$B$6:$D$92,3,FALSE),\"\")","v":""},null,null,null,null,null,null,null,null,null,null,null,null,null,null,"General Fund",{"$f":"IFERROR(VLOOKUP(C143,Descriptions!B:F,5,FALSE),\"N\")","v":"N"},true,"NTRUE",0,null,{"$f":"IFERROR(VLOOKUP(D143,'Bank and Fund Details'!$B$14:$L$35,11,FALSE),\"N\")","v":"Y"},"NY"]
[null,null,null,"General Fund",null,null,null,null,null,{"$f":"VLOOKUP(D144,'Bank and Fund Details'!$B$15:$D$36,3,FALSE)","v":0},{"$f":"VLOOKUP(D144,'Bank and Fund Details'!$B$15:$C$36,2,FALSE)","v":"Unrestricted"},{"$f":"IFERROR(VLOOKUP(C144,Descriptions!$B$6:$D$92,3,FALSE),\"\")","v":""},null,null,null,null,null,null,null,null,null,null,null,null,null,null,"General Fund",{"$f":"IFERROR(VLOOKUP(C144,Descriptions!B:F,5,FALSE),\"N\")","v":"N"},true,"NTRUE",0,null,{"$f":"IFERROR(VLOOKUP(D144,'Bank and Fund Details'!$B$14:$L$35,11,FALSE),\"N\")","v":"Y"},"NY"]
[null,null,null,"General Fund",null,null,null,null,null,{"$f":"VLOOKUP(D145,'Bank and Fund Details'!$B$15:$D$36,3,FALSE)","v":0},{"$f":"VLOOKUP(D145,'Bank and Fund Details'!$B$15:$C$36,2,FALSE)","v":"Unrestricted"},{"$f":"IFERROR(VLOOKUP(C145,Descriptions!$B$6:$D$92,3,FALSE),\"\")","v":""},null,null,null,null,null,null,null,null,null,null,null,null,null,null,"General Fund",{"$f":"IFERROR(VLOOKUP(C145,Descriptions!B:F,5,FALSE),\"N\")","v":"N"},true,"NTRUE",0,null,{"$f":"IFERROR(VLOOKUP(D145,'Bank and Fund Details'!$B$14:$L$35,11,FALSE),\"N\")","v":"Y"},"NY"]
[null,null,null,"General Fund",null,null,null,null,null,{"$f":"VLOOKUP(D146,'Bank and Fund Details'!$B$15:$D$36,3,FALSE)","v":0},{"$f":"VLOOKUP(D146,'Bank and Fund Details'!$B$15:$C$36,2,FALSE)","v":"Unrestricted"},{"$f":"IFERROR(VLOOKUP(C146,Descriptions!$B$6:$D$92,3,FALSE),\"\")","v":""},null,null,null,null,null,null,null,null,null,null,null,null,null,null,"General Fund",{"$f":"IFERROR(VLOOKUP(C146,Descriptions!B:F,5,FALSE),\"N\")","v":"N"},true,"NTRUE",0,null,{"$f":"IFERROR(VLOOKUP(D146,'Bank and Fund Details'!$B$14:$L$35,11,FALSE),\"N\")","v":"Y"},"NY"]
[null,null,null,"General Fund",null,null,null,null,null,{"$f":"VLOOKUP(D147,'Bank and Fund Details'!$B$15:$D$36,3,FALSE)","v":0},{"$f":"VLOOKUP(D147,'Bank and Fund Details'!$B$15:$C$36,2,FALSE)","v":"Unrestricted"},{"$f":"IFERROR(VLOOKUP(C147,Descriptions!$B$6:$D$92,3,FALSE),\"\")","v":""},null,null,null,null,null,null,null,null,null,null,null,null,null,null,"General Fund",{"$f":"IFERROR(VLOOKUP(C147,Descriptions!B:F,5,FALSE),\"N\")","v":"N"},true,"NTRUE",0,null,{"$f":"IFERROR(VLOOKUP(D147,'Bank and Fund Details'!$B$14:$L$35,11,FALSE),\"N\")","v":"Y"},"NY"]
[null,null,null,"General Fund",null,null,null,null,null,{"$f":"VLOOKUP(D148,'Bank and Fund Details'!$B$15:$D$36,3,FALSE)","v":0},{"$f":"VLOOKUP(D148,'Bank and Fund Details'!$B$15:$C$36,2,FALSE)","v":"Unrestricted"},{"$f":"IFERROR(VLOOKUP(C148,Descriptions!$B$6:$D$92,3,FALSE),\"\")","v":""},null,null,null,null,null,null,null,null,null,null,null,null,null,null,"General Fund",{"$f":"IFERROR(VLOOKUP(C148,Descriptions!B:F,5,FALSE),\"N\")","v":"N"},true,"NTRUE",0,null,{"$f":"IFERROR(VLOOKUP(D148,'Bank and Fund Details'!$B$14:$L$35,11,FALSE),\"N\")","v":"Y"},"NY"]
[null,null,null,"General Fund",null,null,null,null,null,{"$f":"VLOOKUP(D149,'Bank and Fund Details'!$B$15:$D$36,3,FALSE)","v":0},{"$f":"VLOOKUP(D149,'Bank and Fund Details'!$B$15:$C$36,2,FALSE)","v":"Unrestricted"},{"$f":"IFERROR(VLOOKUP(C149,Descriptions!$B$6:$D$92,3,FALSE),\"\")","v":""},null,null,null,null,null,null,null,null,null,null,null,null,null,null,"General Fund",{"$f":"IFERROR(VLOOKUP(C149,Descriptions!B:F,5,FALSE),\"N\")","v":"N"},true,"NTRUE",0,null,{"$f":"IFERROR(VLOOKUP(D149,'Bank and Fund Details'!$B$14:$L$35,11,FALSE),\"N\")","v":"Y"},"NY"]
[null,null,null,"General Fund",null,null,null,null,null,{"$f":"VLOOKUP(D150,'Bank and Fund Details'!$B$15:$D$36,3,FALSE)","v":0},{"$f":"VLOOKUP(D150,'Bank and Fund Details'!$B$15:$C$36,2,FALSE)","v":"Unrestricted"},{"$f":"IFERROR(VLOOKUP(C150,Descriptions!$B$6:$D$92,3,FALSE),\"\")","v":""},null,null,null,null,null,null,null,null,null,null,null,null,null,null,"General Fund",{"$f":"IFERROR(VLOOKUP(C150,Descriptions!B:F,5,FALSE),\"N\")","v":"N"},true,"NTRUE",0,null,{"$f":"IFERROR(VLOOKUP(D150,'Bank and Fund Details'!$B$14:$L$35,11,FALSE),\"N\")","v":"Y"},"NY"]
[null,null,null,"General Fund",null,null,null,null,null,{"$f":"VLOOKUP(D151,'Bank and Fund Details'!$B$15:$D$36,3,FALSE)","v":0},{"$f":"VLOOKUP(D151,'Bank and Fund Details'!$B$15:$C$36,2,FALSE)","v":"Unrestricted"},{"$f":"IFERROR(VLOOKUP(C151,Descriptions!$B$6:$D$92,3,FALSE),\"\")","v":""},null,null,null,null,null,null,null,null,null,null,null,null,null,null,"General Fund",{"$f":"IFERROR(VLOOKUP(C151,Descriptions!B:F,5,FALSE),\"N\")","v":"N"},true,"NTRUE",0,null,{"$f":"IFERROR(VLOOKUP(D151,'Bank and Fund Details'!$B$14:$L$35,11,FALSE),\"N\")","v":"Y"},"NY"]
[null,null,null,"General Fund",null,null,null,null,null,{"$f":"VLOOKUP(D152,'Bank and Fund Details'!$B$15:$D$36,3,FALSE)","v":0},{"$f":"VLOOKUP(D152,'Bank and Fund Details'!$B$15:$C$36,2,FALSE)","v":"Unrestricted"},{"$f":"IFERROR(VLOOKUP(C152,Descriptions!$B$6:$D$92,3,FALSE),\"\")","v":""},null,null,null,null,null,null,null,null,null,null,null,null,null,null,"General Fund",{"$f":"IFERROR(VLOOKUP(C152,Descriptions!B:F,5,FALSE),\"N\")","v":"N"},true,"NTRUE",0,null,{"$f":"IFERROR(VLOOKUP(D152,'Bank and Fund Details'!$B$14:$L$35,11,FALSE),\"N\")","v":"Y"},"NY"]
[null,null,null,"General Fund",null,null,null,null,null,{"$f":"VLOOKUP(D153,'Bank and Fund Details'!$B$15:$D$36,3,FALSE)","v":0},{"$f":"VLOOKUP(D153,'Bank and Fund Details'!$B$15:$C$36,2,FALSE)","v":"Unrestricted"},{"$f":"IFERROR(VLOOKUP(C153,Descriptions!$B$6:$D$92,3,FALSE),\"\")","v":""},null,null,null,null,null,null,null,null,null,null,null,null,null,null,"General Fund",{"$f":"IFERROR(VLOOKUP(C153,Descriptions!B:F,5,FALSE),\"N\")","v":"N"},true,"NTRUE",0,null,{"$f":"IFERROR(VLOOKUP(D153,'Bank and Fund Details'!$B$14:$L$35,11,FALSE),\"N\")","v":"Y"},"NY"]
[null,null,null,"General Fund",null,null,null,null,null,{"$f":"VLOOKUP(D154,'Bank and Fund Details'!$B$15:$D$36,3,FALSE)","v":0},{"$f":"VLOOKUP(D154,'Bank and Fund Details'!$B$15:$C$36,2,FALSE)","v":"Unrestricted"},{"$f":"IFERROR(VLOOKUP(C154,Descriptions!$B$6:$D$92,3,FALSE),\"\")","v":""},null,null,null,null,null,null,null,null,null,null,null,null,null,null,"General Fund",{"$f":"IFERROR(VLOOKUP(C154,Descriptions!B:F,5,FALSE),\"N\")","v":"N"},true,"NTRUE",0,null,{"$f":"IFERROR(VLOOKUP(D154,'Bank and Fund Details'!$B$14:$L$35,11,FALSE),\"N\")","v":"Y"},"NY"]
[null,null,null,"General Fund",null,null,null,null,null,{"$f":"VLOOKUP(D155,'Bank and Fund Details'!$B$15:$D$36,3,FALSE)","v":0},{"$f":"VLOOKUP(D155,'Bank and Fund Details'!$B$15:$C$36,2,FALSE)","v":"Unrestricted"},{"$f":"IFERROR(VLOOKUP(C155,Descriptions!$B$6:$D$92,3,FALSE),\"\")","v":""},null,null,null,null,null,null,null,null,null,null,null,null,null,null,"General Fund",{"$f":"IFERROR(VLOOKUP(C155,Descriptions!B:F,5,FALSE),\"N\")","v":"N"},true,"NTRUE",0,null,{"$f":"IFERROR(VLOOKUP(D155,'Bank and Fund Details'!$B$14:$L$35,11,FALSE),\"N\")","v":"Y"},"NY"]
[null,null,null,"General Fund",null,null,null,null,null,{"$f":"VLOOKUP(D156,'Bank and Fund Details'!$B$15:$D$36,3,FALSE)","v":0},{"$f":"VLOOKUP(D156,'Bank and Fund Details'!$B$15:$C$36,2,FALSE)","v":"Unrestricted"},{"$f":"IFERROR(VLOOKUP(C156,Descriptions!$B$6:$D$92,3,FALSE),\"\")","v":""},null,null,null,null,null,null,null,null,null,null,null,null,null,null,"General Fund",{"$f":"IFERROR(VLOOKUP(C156,Descriptions!B:F,5,FALSE),\"N\")","v":"N"},true,"NTRUE",0,null,{"$f":"IFERROR(VLOOKUP(D156,'Bank and Fund Details'!$B$14:$L$35,11,FALSE),\"N\")","v":"Y"},"NY"]
[null,null,null,"General Fund",null,null,null,null,null,{"$f":"VLOOKUP(D157,'Bank and Fund Details'!$B$15:$D$36,3,FALSE)","v":0},{"$f":"VLOOKUP(D157,'Bank and Fund Details'!$B$15:$C$36,2,FALSE)","v":"Unrestricted"},{"$f":"IFERROR(VLOOKUP(C157,Descriptions!$B$6:$D$92,3,FALSE),\"\")","v":""},null,null,null,null,null,null,null,null,null,null,null,null,null,null,"General Fund",{"$f":"IFERROR(VLOOKUP(C157,Descriptions!B:F,5,FALSE),\"N\")","v":"N"},true,"NTRUE",0,null,{"$f":"IFERROR(VLOOKUP(D157,'Bank and Fund Details'!$B$14:$L$35,11,FALSE),\"N\")","v":"Y"},"NY"]
[null,null,null,"General Fund",null,null,null,null,null,{"$f":"VLOOKUP(D158,'Bank and Fund Details'!$B$15:$D$36,3,FALSE)","v":0},{"$f":"VLOOKUP(D158,'Bank and Fund Details'!$B$15:$C$36,2,FALSE)","v":"Unrestricted"},{"$f":"IFERROR(VLOOKUP(C158,Descriptions!$B$6:$D$92,3,FALSE),\"\")","v":""},null,null,null,null,null,null,null,null,null,null,null,null,null,null,"General Fund",{"$f":"IFERROR(VLOOKUP(C158,Descriptions!B:F,5,FALSE),\"N\")","v":"N"},true,"NTRUE",0,null,{"$f":"IFERROR(VLOOKUP(D158,'Bank and Fund Details'!$B$14:$L$35,11,FALSE),\"N\")","v":"Y"},"NY"]
[null,null,null,"General Fund",null,null,null,null,null,{"$f":"VLOOKUP(D159,'Bank and Fund Details'!$B$15:$D$36,3,FALSE)","v":0},{"$f":"VLOOKUP(D159,'Bank and Fund Details'!$B$15:$C$36,2,FALSE)","v":"Unrestricted"},{"$f":"IFERROR(VLOOKUP(C159,Descriptions!$B$6:$D$92,3,FALSE),\"\")","v":""},null,null,null,null,null,null,null,null,null,null,null,null,null,null,"General Fund",{"$f":"IFERROR(VLOOKUP(C159,Descriptions!B:F,5,FALSE),\"N\")","v":"N"},true,"NTRUE",0,null,{"$f":"IFERROR(VLOOKUP(D159,'Bank and Fund Details'!$B$14:$L$35,11,FALSE),\"N\")","v":"Y"},"NY"]
[null,null,null,"General Fund",null,null,null,null,null,{"$f":"VLOOKUP(D160,'Bank and Fund Details'!$B$15:$D$36,3,FALSE)","v":0},{"$f":"VLOOKUP(D160,'Bank and Fund Details'!$B$15:$C$36,2,FALSE)","v":"Unrestricted"},{"$f":"IFERROR(VLOOKUP(C160,Descriptions!$B$6:$D$92,3,FALSE),\"\")","v":""},null,null,null,null,null,null,null,null,null,null,null,null,null,null,"General Fund",{"$f":"IFERROR(VLOOKUP(C160,Descriptions!B:F,5,FALSE),\"N\")","v":"N"},true,"NTRUE",0,null,{"$f":"IFERROR(VLOOKUP(D160,'Bank and Fund Details'!$B$14:$L$35,11,FALSE),\"N\")","v":"Y"},"NY"]
[null,null,null,"General Fund",null,null,null,null,null,{"$f":"VLOOKUP(D161,'Bank and Fund Details'!$B$15:$D$36,3,FALSE)","v":0},{"$f":"VLOOKUP(D161,'Bank and Fund Details'!$B$15:$C$36,2,FALSE)","v":"Unrestricted"},{"$f":"IFERROR(VLOOKUP(C161,Descriptions!$B$6:$D$92,3,FALSE),\"\")","v":""},null,null,null,null,null,null,null,null,null,null,null,null,null,null,"General Fund",{"$f":"IFERROR(VLOOKUP(C161,Descriptions!B:F,5,FALSE),\"N\")","v":"N"},true,"NTRUE",0,null,{"$f":"IFERROR(VLOOKUP(D161,'Bank and Fund Details'!$B$14:$L$35,11,FALSE),\"N\")","v":"Y"},"NY"]
[null,null,null,"General Fund",null,null,null,null,null,{"$f":"VLOOKUP(D162,'Bank and Fund Details'!$B$15:$D$36,3,FALSE)","v":0},{"$f":"VLOOKUP(D162,'Bank and Fund Details'!$B$15:$C$36,2,FALSE)","v":"Unrestricted"},{"$f":"IFERROR(VLOOKUP(C162,Descriptions!$B$6:$D$92,3,FALSE),\"\")","v":""},null,null,null,null,null,null,null,null,null,null,null,null,null,null,"General Fund",{"$f":"IFERROR(VLOOKUP(C162,Descriptions!B:F,5,FALSE),\"N\")","v":"N"},true,"NTRUE",0,null,{"$f":"IFERROR(VLOOKUP(D162,'Bank and Fund Details'!$B$14:$L$35,11,FALSE),\"N\")","v":"Y"},"NY"]
[null,null,null,"General Fund",null,null,null,null,null,{"$f":"VLOOKUP(D163,'Bank and Fund Details'!$B$15:$D$36,3,FALSE)","v":0},{"$f":"VLOOKUP(D163,'Bank and Fund Details'!$B$15:$C$36,2,FALSE)","v":"Unrestricted"},{"$f":"IFERROR(VLOOKUP(C163,Descriptions!$B$6:$D$92,3,FALSE),\"\")","v":""},null,null,null,null,null,null,null,null,null,null,null,null,null,null,"General Fund",{"$f":"IFERROR(VLOOKUP(C163,Descriptions!B:F,5,FALSE),\"N\")","v":"N"},true,"NTRUE",0,null,{"$f":"IFERROR(VLOOKUP(D163,'Bank and Fund Details'!$B$14:$L$35,11,FALSE),\"N\")","v":"Y"},"NY"]
[null,null,null,"General Fund",null,null,null,null,null,{"$f":"VLOOKUP(D164,'Bank and Fund Details'!$B$15:$D$36,3,FALSE)","v":0},{"$f":"VLOOKUP(D164,'Bank and Fund Details'!$B$15:$C$36,2,FALSE)","v":"Unrestricted"},{"$f":"IFERROR(VLOOKUP(C164,Descriptions!$B$6:$D$92,3,FALSE),\"\")","v":""},null,null,null,null,null,null,null,null,null,null,null,null,null,null,"General Fund",{"$f":"IFERROR(VLOOKUP(C164,Descriptions!B:F,5,FALSE),\"N\")","v":"N"},true,"NTRUE",0,null,{"$f":"IFERROR(VLOOKUP(D164,'Bank and Fund Details'!$B$14:$L$35,11,FALSE),\"N\")","v":"Y"},"NY"]
[null,null,null,"General Fund",null,null,null,null,null,{"$f":"VLOOKUP(D165,'Bank and Fund Details'!$B$15:$D$36,3,FALSE)","v":0},{"$f":"VLOOKUP(D165,'Bank and Fund Details'!$B$15:$C$36,2,FALSE)","v":"Unrestricted"},{"$f":"IFERROR(VLOOKUP(C165,Descriptions!$B$6:$D$92,3,FALSE),\"\")","v":""},null,null,null,null,null,null,null,null,null,null,null,null,null,null,"General Fund",{"$f":"IFERROR(VLOOKUP(C165,Descriptions!B:F,5,FALSE),\"N\")","v":"N"},true,"NTRUE",0,null,{"$f":"IFERROR(VLOOKUP(D165,'Bank and Fund Details'!$B$14:$L$35,11,FALSE),\"N\")","v":"Y"},"NY"]
[null,null,null,"General Fund",null,null,null,null,null,{"$f":"VLOOKUP(D166,'Bank and Fund Details'!$B$15:$D$36,3,FALSE)","v":0},{"$f":"VLOOKUP(D166,'Bank and Fund Details'!$B$15:$C$36,2,FALSE)","v":"Unrestricted"},{"$f":"IFERROR(VLOOKUP(C166,Descriptions!$B$6:$D$92,3,FALSE),\"\")","v":""},null,null,null,null,null,null,null,null,null,null,null,null,null,null,"General Fund",{"$f":"IFERROR(VLOOKUP(C166,Descriptions!B:F,5,FALSE),\"N\")","v":"N"},true,"NTRUE",0,null,{"$f":"IFERROR(VLOOKUP(D166,'Bank and Fund Details'!$B$14:$L$35,11,FALSE),\"N\")","v":"Y"},"NY"]
[null,null,null,"General Fund",null,null,null,null,null,{"$f":"VLOOKUP(D167,'Bank and Fund Details'!$B$15:$D$36,3,FALSE)","v":0},{"$f":"VLOOKUP(D167,'Bank and Fund Details'!$B$15:$C$36,2,FALSE)","v":"Unrestricted"},{"$f":"IFERROR(VLOOKUP(C167,Descriptions!$B$6:$D$92,3,FALSE),\"\")","v":""},null,null,null,null,null,null,null,null,null,null,null,null,null,null,"General Fund",{"$f":"IFERROR(VLOOKUP(C167,Descriptions!B:F,5,FALSE),\"N\")","v":"N"},true,"NTRUE",0,null,{"$f":"IFERROR(VLOOKUP(D167,'Bank and Fund Details'!$B$14:$L$35,11,FALSE),\"N\")","v":"Y"},"NY"]
[null,null,null,"General Fund",null,null,null,null,null,{"$f":"VLOOKUP(D168,'Bank and Fund Details'!$B$15:$D$36,3,FALSE)","v":0},{"$f":"VLOOKUP(D168,'Bank and Fund Details'!$B$15:$C$36,2,FALSE)","v":"Unrestricted"},{"$f":"IFERROR(VLOOKUP(C168,Descriptions!$B$6:$D$92,3,FALSE),\"\")","v":""},null,null,null,null,null,null,null,null,null,null,null,null,null,null,"General Fund",{"$f":"IFERROR(VLOOKUP(C168,Descriptions!B:F,5,FALSE),\"N\")","v":"N"},true,"NTRUE",0,null,{"$f":"IFERROR(VLOOKUP(D168,'Bank and Fund Details'!$B$14:$L$35,11,FALSE),\"N\")","v":"Y"},"NY"]
[null,null,null,"General Fund",null,null,null,null,null,{"$f":"VLOOKUP(D169,'Bank and Fund Details'!$B$15:$D$36,3,FALSE)","v":0},{"$f":"VLOOKUP(D169,'Bank and Fund Details'!$B$15:$C$36,2,FALSE)","v":"Unrestricted"},{"$f":"IFERROR(VLOOKUP(C169,Descriptions!$B$6:$D$92,3,FALSE),\"\")","v":""},null,null,null,null,null,null,null,null,null,null,null,null,null,null,"General Fund",{"$f":"IFERROR(VLOOKUP(C169,Descriptions!B:F,5,FALSE),\"N\")","v":"N"},true,"NTRUE",0,null,{"$f":"IFERROR(VLOOKUP(D169,'Bank and Fund Details'!$B$14:$L$35,11,FALSE),\"N\")","v":"Y"},"NY"]
[null,null,null,"General Fund",null,null,null,null,null,{"$f":"VLOOKUP(D170,'Bank and Fund Details'!$B$15:$D$36,3,FALSE)","v":0},{"$f":"VLOOKUP(D170,'Bank and Fund Details'!$B$15:$C$36,2,FALSE)","v":"Unrestricted"},{"$f":"IFERROR(VLOOKUP(C170,Descriptions!$B$6:$D$92,3,FALSE),\"\")","v":""},null,null,null,null,null,null,null,null,null,null,null,null,null,null,"General Fund",{"$f":"IFERROR(VLOOKUP(C170,Descriptions!B:F,5,FALSE),\"N\")","v":"N"},true,"NTRUE",0,null,{"$f":"IFERROR(VLOOKUP(D170,'Bank and Fund Details'!$B$14:$L$35,11,FALSE),\"N\")","v":"Y"},"NY"]
[null,null,null,"General Fund",null,null,null,null,null,{"$f":"VLOOKUP(D171,'Bank and Fund Details'!$B$15:$D$36,3,FALSE)","v":0},{"$f":"VLOOKUP(D171,'Bank and Fund Details'!$B$15:$C$36,2,FALSE)","v":"Unrestricted"},{"$f":"IFERROR(VLOOKUP(C171,Descriptions!$B$6:$D$92,3,FALSE),\"\")","v":""},null,null,null,null,null,null,null,null,null,null,null,null,null,null,"General Fund",{"$f":"IFERROR(VLOOKUP(C171,Descriptions!B:F,5,FALSE),\"N\")","v":"N"},true,"NTRUE",0,null,{"$f":"IFERROR(VLOOKUP(D171,'Bank and Fund Details'!$B$14:$L$35,11,FALSE),\"N\")","v":"Y"},"NY"]
[null,null,null,"General Fund",null,null,null,null,null,{"$f":"VLOOKUP(D172,'Bank and Fund Details'!$B$15:$D$36,3,FALSE)","v":0},{"$f":"VLOOKUP(D172,'Bank and Fund Details'!$B$15:$C$36,2,FALSE)","v":"Unrestricted"},{"$f":"IFERROR(VLOOKUP(C172,Descriptions!$B$6:$D$92,3,FALSE),\"\")","v":""},null,null,null,null,null,null,null,null,null,null,null,null,null,null,"General Fund",{"$f":"IFERROR(VLOOKUP(C172,Descriptions!B:F,5,FALSE),\"N\")","v":"N"},true,"NTRUE",0,null,{"$f":"IFERROR(VLOOKUP(D172,'Bank and Fund Details'!$B$14:$L$35,11,FALSE),\"N\")","v":"Y"},"NY"]
[null,null,null,"General Fund",null,null,null,null,null,{"$f":"VLOOKUP(D173,'Bank and Fund Details'!$B$15:$D$36,3,FALSE)","v":0},{"$f":"VLOOKUP(D173,'Bank and Fund Details'!$B$15:$C$36,2,FALSE)","v":"Unrestricted"},{"$f":"IFERROR(VLOOKUP(C173,Descriptions!$B$6:$D$92,3,FALSE),\"\")","v":""},null,null,null,null,null,null,null,null,null,null,null,null,null,null,"General Fund",{"$f":"IFERROR(VLOOKUP(C173,Descriptions!B:F,5,FALSE),\"N\")","v":"N"},true,"NTRUE",0,null,{"$f":"IFERROR(VLOOKUP(D173,'Bank and Fund Details'!$B$14:$L$35,11,FALSE),\"N\")","v":"Y"},"NY"]
[null,null,null,"General Fund",null,null,null,null,null,{"$f":"VLOOKUP(D174,'Bank and Fund Details'!$B$15:$D$36,3,FALSE)","v":0},{"$f":"VLOOKUP(D174,'Bank and Fund Details'!$B$15:$C$36,2,FALSE)","v":"Unrestricted"},{"$f":"IFERROR(VLOOKUP(C174,Descriptions!$B$6:$D$92,3,FALSE),\"\")","v":""},null,null,null,null,null,null,null,null,null,null,null,null,null,null,"General Fund",{"$f":"IFERROR(VLOOKUP(C174,Descriptions!B:F,5,FALSE),\"N\")","v":"N"},true,"NTRUE",0,null,{"$f":"IFERROR(VLOOKUP(D174,'Bank and Fund Details'!$B$14:$L$35,11,FALSE),\"N\")","v":"Y"},"NY"]
[null,null,null,"General Fund",null,null,null,null,null,{"$f":"VLOOKUP(D175,'Bank and Fund Details'!$B$15:$D$36,3,FALSE)","v":0},{"$f":"VLOOKUP(D175,'Bank and Fund Details'!$B$15:$C$36,2,FALSE)","v":"Unrestricted"},{"$f":"IFERROR(VLOOKUP(C175,Descriptions!$B$6:$D$92,3,FALSE),\"\")","v":""},null,null,null,null,null,null,null,null,null,null,null,null,null,null,"General Fund",{"$f":"IFERROR(VLOOKUP(C175,Descriptions!B:F,5,FALSE),\"N\")","v":"N"},true,"NTRUE",0,null,{"$f":"IFERROR(VLOOKUP(D175,'Bank and Fund Details'!$B$14:$L$35,11,FALSE),\"N\")","v":"Y"},"NY"]
[null,null,null,"General Fund",null,null,null,null,null,{"$f":"VLOOKUP(D176,'Bank and Fund Details'!$B$15:$D$36,3,FALSE)","v":0},{"$f":"VLOOKUP(D176,'Bank and Fund Details'!$B$15:$C$36,2,FALSE)","v":"Unrestricted"},{"$f":"IFERROR(VLOOKUP(C176,Descriptions!$B$6:$D$92,3,FALSE),\"\")","v":""},null,null,null,null,null,null,null,null,null,null,null,null,null,null,"General Fund",{"$f":"IFERROR(VLOOKUP(C176,Descriptions!B:F,5,FALSE),\"N\")","v":"N"},true,"NTRUE",0,null,{"$f":"IFERROR(VLOOKUP(D176,'Bank and Fund Details'!$B$14:$L$35,11,FALSE),\"N\")","v":"Y"},"NY"]
[null,null,null,"General Fund",null,null,null,null,null,{"$f":"VLOOKUP(D177,'Bank and Fund Details'!$B$15:$D$36,3,FALSE)","v":0},{"$f":"VLOOKUP(D177,'Bank and Fund Details'!$B$15:$C$36,2,FALSE)","v":"Unrestricted"},{"$f":"IFERROR(VLOOKUP(C177,Descriptions!$B$6:$D$92,3,FALSE),\"\")","v":""},null,null,null,null,null,null,null,null,null,null,null,null,null,null,"General Fund",{"$f":"IFERROR(VLOOKUP(C177,Descriptions!B:F,5,FALSE),\"N\")","v":"N"},true,"NTRUE",0,null,{"$f":"IFERROR(VLOOKUP(D177,'Bank and Fund Details'!$B$14:$L$35,11,FALSE),\"N\")","v":"Y"},"NY"]
[null,null,null,"General Fund",null,null,null,null,null,{"$f":"VLOOKUP(D178,'Bank and Fund Details'!$B$15:$D$36,3,FALSE)","v":0},{"$f":"VLOOKUP(D178,'Bank and Fund Details'!$B$15:$C$36,2,FALSE)","v":"Unrestricted"},{"$f":"IFERROR(VLOOKUP(C178,Descriptions!$B$6:$D$92,3,FALSE),\"\")","v":""},null,null,null,null,null,null,null,null,null,null,null,null,null,null,"General Fund",{"$f":"IFERROR(VLOOKUP(C178,Descriptions!B:F,5,FALSE),\"N\")","v":"N"},true,"NTRUE",0,null,{"$f":"IFERROR(VLOOKUP(D178,'Bank and Fund Details'!$B$14:$L$35,11,FALSE),\"N\")","v":"Y"},"NY"]
[null,null,null,"General Fund",null,null,null,null,null,{"$f":"VLOOKUP(D179,'Bank and Fund Details'!$B$15:$D$36,3,FALSE)","v":0},{"$f":"VLOOKUP(D179,'Bank and Fund Details'!$B$15:$C$36,2,FALSE)","v":"Unrestricted"},{"$f":"IFERROR(VLOOKUP(C179,Descriptions!$B$6:$D$92,3,FALSE),\"\")","v":""},null,null,null,null,null,null,null,null,null,null,null,null,null,null,"General Fund",{"$f":"IFERROR(VLOOKUP(C179,Descriptions!B:F,5,FALSE),\"N\")","v":"N"},true,"NTRUE",0,null,{"$f":"IFERROR(VLOOKUP(D179,'Bank and Fund Details'!$B$14:$L$35,11,FALSE),\"N\")","v":"Y"},"NY"]
[null,null,null,"General Fund",null,null,null,null,null,{"$f":"VLOOKUP(D180,'Bank and Fund Details'!$B$15:$D$36,3,FALSE)","v":0},{"$f":"VLOOKUP(D180,'Bank and Fund Details'!$B$15:$C$36,2,FALSE)","v":"Unrestricted"},{"$f":"IFERROR(VLOOKUP(C180,Descriptions!$B$6:$D$92,3,FALSE),\"\")","v":""},null,null,null,null,null,null,null,null,null,null,null,null,null,null,"General Fund",{"$f":"IFERROR(VLOOKUP(C180,Descriptions!B:F,5,FALSE),\"N\")","v":"N"},true,"NTRUE",0,null,{"$f":"IFERROR(VLOOKUP(D180,'Bank and Fund Details'!$B$14:$L$35,11,FALSE),\"N\")","v":"Y"},"NY"]
[null,null,null,"General Fund",null,null,null,null,null,{"$f":"VLOOKUP(D181,'Bank and Fund Details'!$B$15:$D$36,3,FALSE)","v":0},{"$f":"VLOOKUP(D181,'Bank and Fund Details'!$B$15:$C$36,2,FALSE)","v":"Unrestricted"},{"$f":"IFERROR(VLOOKUP(C181,Descriptions!$B$6:$D$92,3,FALSE),\"\")","v":""},null,null,null,null,null,null,null,null,null,null,null,null,null,null,"General Fund",{"$f":"IFERROR(VLOOKUP(C181,Descriptions!B:F,5,FALSE),\"N\")","v":"N"},true,"NTRUE",0,null,{"$f":"IFERROR(VLOOKUP(D181,'Bank and Fund Details'!$B$14:$L$35,11,FALSE),\"N\")","v":"Y"},"NY"]
[null,null,null,"General Fund",null,null,null,null,null,{"$f":"VLOOKUP(D182,'Bank and Fund Details'!$B$15:$D$36,3,FALSE)","v":0},{"$f":"VLOOKUP(D182,'Bank and Fund Details'!$B$15:$C$36,2,FALSE)","v":"Unrestricted"},{"$f":"IFERROR(VLOOKUP(C182,Descriptions!$B$6:$D$92,3,FALSE),\"\")","v":""},null,null,null,null,null,null,null,null,null,null,null,null,null,null,"General Fund",{"$f":"IFERROR(VLOOKUP(C182,Descriptions!B:F,5,FALSE),\"N\")","v":"N"},true,"NTRUE",0,null,{"$f":"IFERROR(VLOOKUP(D182,'Bank and Fund Details'!$B$14:$L$35,11,FALSE),\"N\")","v":"Y"},"NY"]
[null,null,null,"General Fund",null,null,null,null,null,{"$f":"VLOOKUP(D183,'Bank and Fund Details'!$B$15:$D$36,3,FALSE)","v":0},{"$f":"VLOOKUP(D183,'Bank and Fund Details'!$B$15:$C$36,2,FALSE)","v":"Unrestricted"},{"$f":"IFERROR(VLOOKUP(C183,Descriptions!$B$6:$D$92,3,FALSE),\"\")","v":""},null,null,null,null,null,null,null,null,null,null,null,null,null,null,"General Fund",{"$f":"IFERROR(VLOOKUP(C183,Descriptions!B:F,5,FALSE),\"N\")","v":"N"},true,"NTRUE",0,null,{"$f":"IFERROR(VLOOKUP(D183,'Bank and Fund Details'!$B$14:$L$35,11,FALSE),\"N\")","v":"Y"},"NY"]
[null,null,null,"General Fund",null,null,null,null,null,{"$f":"VLOOKUP(D184,'Bank and Fund Details'!$B$15:$D$36,3,FALSE)","v":0},{"$f":"VLOOKUP(D184,'Bank and Fund Details'!$B$15:$C$36,2,FALSE)","v":"Unrestricted"},{"$f":"IFERROR(VLOOKUP(C184,Descriptions!$B$6:$D$92,3,FALSE),\"\")","v":""},null,null,null,null,null,null,null,null,null,null,null,null,null,null,"General Fund",{"$f":"IFERROR(VLOOKUP(C184,Descriptions!B:F,5,FALSE),\"N\")","v":"N"},true,"NTRUE",0,null,{"$f":"IFERROR(VLOOKUP(D184,'Bank and Fund Details'!$B$14:$L$35,11,FALSE),\"N\")","v":"Y"},"NY"]
[null,null,null,"General Fund",null,null,null,null,null,{"$f":"VLOOKUP(D185,'Bank and Fund Details'!$B$15:$D$36,3,FALSE)","v":0},{"$f":"VLOOKUP(D185,'Bank and Fund Details'!$B$15:$C$36,2,FALSE)","v":"Unrestricted"},{"$f":"IFERROR(VLOOKUP(C185,Descriptions!$B$6:$D$92,3,FALSE),\"\")","v":""},null,null,null,null,null,null,null,null,null,null,null,null,null,null,"General Fund",{"$f":"IFERROR(VLOOKUP(C185,Descriptions!B:F,5,FALSE),\"N\")","v":"N"},true,"NTRUE",0,null,{"$f":"IFERROR(VLOOKUP(D185,'Bank and Fund Details'!$B$14:$L$35,11,FALSE),\"N\")","v":"Y"},"NY"]
[null,null,null,"General Fund",null,null,null,null,null,{"$f":"VLOOKUP(D186,'Bank and Fund Details'!$B$15:$D$36,3,FALSE)","v":0},{"$f":"VLOOKUP(D186,'Bank and Fund Details'!$B$15:$C$36,2,FALSE)","v":"Unrestricted"},{"$f":"IFERROR(VLOOKUP(C186,Descriptions!$B$6:$D$92,3,FALSE),\"\")","v":""},null,null,null,null,null,null,null,null,null,null,null,null,null,null,"General Fund",{"$f":"IFERROR(VLOOKUP(C186,Descriptions!B:F,5,FALSE),\"N\")","v":"N"},true,"NTRUE",0,null,{"$f":"IFERROR(VLOOKUP(D186,'Bank and Fund Details'!$B$14:$L$35,11,FALSE),\"N\")","v":"Y"},"NY"]
[null,null,null,"General Fund",null,null,null,null,null,{"$f":"VLOOKUP(D187,'Bank and Fund Details'!$B$15:$D$36,3,FALSE)","v":0},{"$f":"VLOOKUP(D187,'Bank and Fund Details'!$B$15:$C$36,2,FALSE)","v":"Unrestricted"},{"$f":"IFERROR(VLOOKUP(C187,Descriptions!$B$6:$D$92,3,FALSE),\"\")","v":""},null,null,null,null,null,null,null,null,null,null,null,null,null,null,"General Fund",{"$f":"IFERROR(VLOOKUP(C187,Descriptions!B:F,5,FALSE),\"N\")","v":"N"},true,"NTRUE",0,null,{"$f":"IFERROR(VLOOKUP(D187,'Bank and Fund Details'!$B$14:$L$35,11,FALSE),\"N\")","v":"Y"},"NY"]
[null,null,null,"General Fund",null,null,null,null,null,{"$f":"VLOOKUP(D188,'Bank and Fund Details'!$B$15:$D$36,3,FALSE)","v":0},{"$f":"VLOOKUP(D188,'Bank and Fund Details'!$B$15:$C$36,2,FALSE)","v":"Unrestricted"},{"$f":"IFERROR(VLOOKUP(C188,Descriptions!$B$6:$D$92,3,FALSE),\"\")","v":""},null,null,null,null,null,null,null,null,null,null,null,null,null,null,"General Fund",{"$f":"IFERROR(VLOOKUP(C188,Descriptions!B:F,5,FALSE),\"N\")","v":"N"},true,"NTRUE",0,null,{"$f":"IFERROR(VLOOKUP(D188,'Bank and Fund Details'!$B$14:$L$35,11,FALSE),\"N\")","v":"Y"},"NY"]
[null,null,null,"General Fund",null,null,null,null,null,{"$f":"VLOOKUP(D189,'Bank and Fund Details'!$B$15:$D$36,3,FALSE)","v":0},{"$f":"VLOOKUP(D189,'Bank and Fund Details'!$B$15:$C$36,2,FALSE)","v":"Unrestricted"},{"$f":"IFERROR(VLOOKUP(C189,Descriptions!$B$6:$D$92,3,FALSE),\"\")","v":""},null,null,null,null,null,null,null,null,null,null,null,null,null,null,"General Fund",{"$f":"IFERROR(VLOOKUP(C189,Descriptions!B:F,5,FALSE),\"N\")","v":"N"},true,"NTRUE",0,null,{"$f":"IFERROR(VLOOKUP(D189,'Bank and Fund Details'!$B$14:$L$35,11,FALSE),\"N\")","v":"Y"},"NY"]
[null,null,null,"General Fund",null,null,null,null,null,{"$f":"VLOOKUP(D190,'Bank and Fund Details'!$B$15:$D$36,3,FALSE)","v":0},{"$f":"VLOOKUP(D190,'Bank and Fund Details'!$B$15:$C$36,2,FALSE)","v":"Unrestricted"},{"$f":"IFERROR(VLOOKUP(C190,Descriptions!$B$6:$D$92,3,FALSE),\"\")","v":""},null,null,null,null,null,null,null,null,null,null,null,null,null,null,"General Fund",{"$f":"IFERROR(VLOOKUP(C190,Descriptions!B:F,5,FALSE),\"N\")","v":"N"},true,"NTRUE",0,null,{"$f":"IFERROR(VLOOKUP(D190,'Bank and Fund Details'!$B$14:$L$35,11,FALSE),\"N\")","v":"Y"},"NY"]
[null,null,null,"General Fund",null,null,null,null,null,{"$f":"VLOOKUP(D191,'Bank and Fund Details'!$B$15:$D$36,3,FALSE)","v":0},{"$f":"VLOOKUP(D191,'Bank and Fund Details'!$B$15:$C$36,2,FALSE)","v":"Unrestricted"},{"$f":"IFERROR(VLOOKUP(C191,Descriptions!$B$6:$D$92,3,FALSE),\"\")","v":""},null,null,null,null,null,null,null,null,null,null,null,null,null,null,"General Fund",{"$f":"IFERROR(VLOOKUP(C191,Descriptions!B:F,5,FALSE),\"N\")","v":"N"},true,"NTRUE",0,null,{"$f":"IFERROR(VLOOKUP(D191,'Bank and Fund Details'!$B$14:$L$35,11,FALSE),\"N\")","v":"Y"},"NY"]
[null,null,null,"General Fund",null,null,null,null,null,{"$f":"VLOOKUP(D192,'Bank and Fund Details'!$B$15:$D$36,3,FALSE)","v":0},{"$f":"VLOOKUP(D192,'Bank and Fund Details'!$B$15:$C$36,2,FALSE)","v":"Unrestricted"},{"$f":"IFERROR(VLOOKUP(C192,Descriptions!$B$6:$D$92,3,FALSE),\"\")","v":""},null,null,null,null,null,null,null,null,null,null,null,null,null,null,"General Fund",{"$f":"IFERROR(VLOOKUP(C192,Descriptions!B:F,5,FALSE),\"N\")","v":"N"},true,"NTRUE",0,null,{"$f":"IFERROR(VLOOKUP(D192,'Bank and Fund Details'!$B$14:$L$35,11,FALSE),\"N\")","v":"Y"},"NY"]
[null,null,null,"General Fund",null,null,null,null,null,{"$f":"VLOOKUP(D193,'Bank and Fund Details'!$B$15:$D$36,3,FALSE)","v":0},{"$f":"VLOOKUP(D193,'Bank and Fund Details'!$B$15:$C$36,2,FALSE)","v":"Unrestricted"},{"$f":"IFERROR(VLOOKUP(C193,Descriptions!$B$6:$D$92,3,FALSE),\"\")","v":""},null,null,null,null,null,null,null,null,null,null,null,null,null,null,"General Fund",{"$f":"IFERROR(VLOOKUP(C193,Descriptions!B:F,5,FALSE),\"N\")","v":"N"},true,"NTRUE",0,null,{"$f":"IFERROR(VLOOKUP(D193,'Bank and Fund Details'!$B$14:$L$35,11,FALSE),\"N\")","v":"Y"},"NY"]
[null,null,null,"General Fund",null,null,null,null,null,{"$f":"VLOOKUP(D194,'Bank and Fund Details'!$B$15:$D$36,3,FALSE)","v":0},{"$f":"VLOOKUP(D194,'Bank and Fund Details'!$B$15:$C$36,2,FALSE)","v":"Unrestricted"},{"$f":"IFERROR(VLOOKUP(C194,Descriptions!$B$6:$D$92,3,FALSE),\"\")","v":""},null,null,null,null,null,null,null,null,null,null,null,null,null,null,"General Fund",{"$f":"IFERROR(VLOOKUP(C194,Descriptions!B:F,5,FALSE),\"N\")","v":"N"},true,"NTRUE",0,null,{"$f":"IFERROR(VLOOKUP(D194,'Bank and Fund Details'!$B$14:$L$35,11,FALSE),\"N\")","v":"Y"},"NY"]
[null,null,null,"General Fund",null,null,null,null,null,{"$f":"VLOOKUP(D195,'Bank and Fund Details'!$B$15:$D$36,3,FALSE)","v":0},{"$f":"VLOOKUP(D195,'Bank and Fund Details'!$B$15:$C$36,2,FALSE)","v":"Unrestricted"},{"$f":"IFERROR(VLOOKUP(C195,Descriptions!$B$6:$D$92,3,FALSE),\"\")","v":""},null,null,null,null,null,null,null,null,null,null,null,null,null,null,"General Fund",{"$f":"IFERROR(VLOOKUP(C195,Descriptions!B:F,5,FALSE),\"N\")","v":"N"},true,"NTRUE",0,null,{"$f":"IFERROR(VLOOKUP(D195,'Bank and Fund Details'!$B$14:$L$35,11,FALSE),\"N\")","v":"Y"},"NY"]
[null,null,null,"General Fund",null,null,null,null,null,{"$f":"VLOOKUP(D196,'Bank and Fund Details'!$B$15:$D$36,3,FALSE)","v":0},{"$f":"VLOOKUP(D196,'Bank and Fund Details'!$B$15:$C$36,2,FALSE)","v":"Unrestricted"},{"$f":"IFERROR(VLOOKUP(C196,Descriptions!$B$6:$D$92,3,FALSE),\"\")","v":""},null,null,null,null,null,null,null,null,null,null,null,null,null,null,"General Fund",{"$f":"IFERROR(VLOOKUP(C196,Descriptions!B:F,5,FALSE),\"N\")","v":"N"},true,"NTRUE",0,null,{"$f":"IFERROR(VLOOKUP(D196,'Bank and Fund Details'!$B$14:$L$35,11,FALSE),\"N\")","v":"Y"},"NY"]
[null,null,null,"General Fund",null,null,null,null,null,{"$f":"VLOOKUP(D197,'Bank and Fund Details'!$B$15:$D$36,3,FALSE)","v":0},{"$f":"VLOOKUP(D197,'Bank and Fund Details'!$B$15:$C$36,2,FALSE)","v":"Unrestricted"},{"$f":"IFERROR(VLOOKUP(C197,Descriptions!$B$6:$D$92,3,FALSE),\"\")","v":""},null,null,null,null,null,null,null,null,null,null,null,null,null,null,{"$f":"CONCATENATE(C197,D197)","v":"General Fund"},{"$f":"IFERROR(VLOOKUP(C197,Descriptions!B:F,5,FALSE),\"N\")","v":"N"},{"$f":"ISBLANK(C197)","v":true},{"$f":"CONCATENATE(AB197,AC197)","v":"NTRUE"},{"$f":"IF(AD197=\"NFALSE\",1,0)","v":0},null,{"$f":"IFERROR(VLOOKUP(D197,'Bank and Fund Details'!$B$14:$L$35,11,FALSE),\"N\")","v":"Y"},"NY"]
[null,null,null,"General Fund",null,null,null,null,null,{"$f":"VLOOKUP(D198,'Bank and Fund Details'!$B$15:$D$36,3,FALSE)","v":0},{"$f":"VLOOKUP(D198,'Bank and Fund Details'!$B$15:$C$36,2,FALSE)","v":"Unrestricted"},{"$f":"IFERROR(VLOOKUP(C198,Descriptions!$B$6:$D$92,3,FALSE),\"\")","v":""},null,null,null,null,null,null,null,null,null,null,null,null,null,null,"General Fund",{"$f":"IFERROR(VLOOKUP(C198,Descriptions!B:F,5,FALSE),\"N\")","v":"N"},true,"NTRUE",0,null,{"$f":"IFERROR(VLOOKUP(D198,'Bank and Fund Details'!$B$14:$L$35,11,FALSE),\"N\")","v":"Y"},{"$f":"CONCATENATE(AB198,AG198)","v":"NY"}]
[null,null,null,"General Fund",null,null,null,null,null,{"$f":"VLOOKUP(D199,'Bank and Fund Details'!$B$15:$D$36,3,FALSE)","v":0},{"$f":"VLOOKUP(D199,'Bank and Fund Details'!$B$15:$C$36,2,FALSE)","v":"Unrestricted"},{"$f":"IFERROR(VLOOKUP(C199,Descriptions!$B$6:$D$92,3,FALSE),\"\")","v":""},null,null,null,null,null,null,null,null,null,null,null,null,null,null,"General Fund",{"$f":"IFERROR(VLOOKUP(C199,Descriptions!B:F,5,FALSE),\"N\")","v":"N"},true,"NTRUE",0,null,{"$f":"IFERROR(VLOOKUP(D199,'Bank and Fund Details'!$B$14:$L$35,11,FALSE),\"N\")","v":"Y"},"NY"]
[null,null,null,"General Fund",null,null,null,null,null,{"$f":"VLOOKUP(D200,'Bank and Fund Details'!$B$15:$D$36,3,FALSE)","v":0},{"$f":"VLOOKUP(D200,'Bank and Fund Details'!$B$15:$C$36,2,FALSE)","v":"Unrestricted"},{"$f":"IFERROR(VLOOKUP(C200,Descriptions!$B$6:$D$92,3,FALSE),\"\")","v":""},null,null,null,null,null,null,null,null,null,null,null,null,null,null,"General Fund",{"$f":"IFERROR(VLOOKUP(C200,Descriptions!B:F,5,FALSE),\"N\")","v":"N"},true,"NTRUE",0,null,{"$f":"IFERROR(VLOOKUP(D200,'Bank and Fund Details'!$B$14:$L$35,11,FALSE),\"N\")","v":"Y"},"NY"]
[null,null,null,"General Fund",null,null,null,null,null,{"$f":"VLOOKUP(D201,'Bank and Fund Details'!$B$15:$D$36,3,FALSE)","v":0},{"$f":"VLOOKUP(D201,'Bank and Fund Details'!$B$15:$C$36,2,FALSE)","v":"Unrestricted"},{"$f":"IFERROR(VLOOKUP(C201,Descriptions!$B$6:$D$92,3,FALSE),\"\")","v":""},null,null,null,null,null,null,null,null,null,null,null,null,null,null,"General Fund",{"$f":"IFERROR(VLOOKUP(C201,Descriptions!B:F,5,FALSE),\"N\")","v":"N"},true,"NTRUE",0,null,{"$f":"IFERROR(VLOOKUP(D201,'Bank and Fund Details'!$B$14:$L$35,11,FALSE),\"N\")","v":"Y"},"NY"]
[null,null,null,"General Fund",null,null,null,null,null,{"$f":"VLOOKUP(D202,'Bank and Fund Details'!$B$15:$D$36,3,FALSE)","v":0},{"$f":"VLOOKUP(D202,'Bank and Fund Details'!$B$15:$C$36,2,FALSE)","v":"Unrestricted"},{"$f":"IFERROR(VLOOKUP(C202,Descriptions!$B$6:$D$92,3,FALSE),\"\")","v":""},null,null,null,null,null,null,null,null,null,null,null,null,null,null,"General Fund",{"$f":"IFERROR(VLOOKUP(C202,Descriptions!B:F,5,FALSE),\"N\")","v":"N"},true,"NTRUE",0,null,{"$f":"IFERROR(VLOOKUP(D202,'Bank and Fund Details'!$B$14:$L$35,11,FALSE),\"N\")","v":"Y"},"NY"]
[null,null,null,"General Fund",null,null,null,null,null,{"$f":"VLOOKUP(D203,'Bank and Fund Details'!$B$15:$D$36,3,FALSE)","v":0},{"$f":"VLOOKUP(D203,'Bank and Fund Details'!$B$15:$C$36,2,FALSE)","v":"Unrestricted"},{"$f":"IFERROR(VLOOKUP(C203,Descriptions!$B$6:$D$92,3,FALSE),\"\")","v":""},null,null,null,null,null,null,null,null,null,null,null,null,null,null,"General Fund",{"$f":"IFERROR(VLOOKUP(C203,Descriptions!B:F,5,FALSE),\"N\")","v":"N"},true,"NTRUE",0,null,{"$f":"IFERROR(VLOOKUP(D203,'Bank and Fund Details'!$B$14:$L$35,11,FALSE),\"N\")","v":"Y"},"NY"]
[null,null,null,"General Fund",null,null,null,null,null,{"$f":"VLOOKUP(D204,'Bank and Fund Details'!$B$15:$D$36,3,FALSE)","v":0},{"$f":"VLOOKUP(D204,'Bank and Fund Details'!$B$15:$C$36,2,FALSE)","v":"Unrestricted"},{"$f":"IFERROR(VLOOKUP(C204,Descriptions!$B$6:$D$92,3,FALSE),\"\")","v":""},null,null,null,null,null,null,null,null,null,null,null,null,null,null,"General Fund",{"$f":"IFERROR(VLOOKUP(C204,Descriptions!B:F,5,FALSE),\"N\")","v":"N"},true,"NTRUE",0,null,{"$f":"IFERROR(VLOOKUP(D204,'Bank and Fund Details'!$B$14:$L$35,11,FALSE),\"N\")","v":"Y"},"NY"]
[null,null,null,"General Fund",null,null,null,null,null,{"$f":"VLOOKUP(D205,'Bank and Fund Details'!$B$15:$D$36,3,FALSE)","v":0},{"$f":"VLOOKUP(D205,'Bank and Fund Details'!$B$15:$C$36,2,FALSE)","v":"Unrestricted"},{"$f":"IFERROR(VLOOKUP(C205,Descriptions!$B$6:$D$92,3,FALSE),\"\")","v":""},null,null,null,null,null,null,null,null,null,null,null,null,null,null,"General Fund",{"$f":"IFERROR(VLOOKUP(C205,Descriptions!B:F,5,FALSE),\"N\")","v":"N"},true,"NTRUE",0,null,{"$f":"IFERROR(VLOOKUP(D205,'Bank and Fund Details'!$B$14:$L$35,11,FALSE),\"N\")","v":"Y"},"NY"]
[null,null,null,"General Fund",null,null,null,null,null,{"$f":"VLOOKUP(D206,'Bank and Fund Details'!$B$15:$D$36,3,FALSE)","v":0},{"$f":"VLOOKUP(D206,'Bank and Fund Details'!$B$15:$C$36,2,FALSE)","v":"Unrestricted"},{"$f":"IFERROR(VLOOKUP(C206,Descriptions!$B$6:$D$92,3,FALSE),\"\")","v":""},null,null,null,null,null,null,null,null,null,null,null,null,null,null,"General Fund",{"$f":"IFERROR(VLOOKUP(C206,Descriptions!B:F,5,FALSE),\"N\")","v":"N"},true,"NTRUE",0,null,{"$f":"IFERROR(VLOOKUP(D206,'Bank and Fund Details'!$B$14:$L$35,11,FALSE),\"N\")","v":"Y"},"NY"]
[null,null,null,"General Fund",null,null,null,null,null,{"$f":"VLOOKUP(D207,'Bank and Fund Details'!$B$15:$D$36,3,FALSE)","v":0},{"$f":"VLOOKUP(D207,'Bank and Fund Details'!$B$15:$C$36,2,FALSE)","v":"Unrestricted"},{"$f":"IFERROR(VLOOKUP(C207,Descriptions!$B$6:$D$92,3,FALSE),\"\")","v":""},null,null,null,null,null,null,null,null,null,null,null,null,null,null,"General Fund",{"$f":"IFERROR(VLOOKUP(C207,Descriptions!B:F,5,FALSE),\"N\")","v":"N"},true,"NTRUE",0,null,{"$f":"IFERROR(VLOOKUP(D207,'Bank and Fund Details'!$B$14:$L$35,11,FALSE),\"N\")","v":"Y"},"NY"]
[null,null,null,"General Fund",null,null,null,null,null,{"$f":"VLOOKUP(D208,'Bank and Fund Details'!$B$15:$D$36,3,FALSE)","v":0},{"$f":"VLOOKUP(D208,'Bank and Fund Details'!$B$15:$C$36,2,FALSE)","v":"Unrestricted"},{"$f":"IFERROR(VLOOKUP(C208,Descriptions!$B$6:$D$92,3,FALSE),\"\")","v":""},null,null,null,null,null,null,null,null,null,null,null,null,null,null,"General Fund",{"$f":"IFERROR(VLOOKUP(C208,Descriptions!B:F,5,FALSE),\"N\")","v":"N"},true,"NTRUE",0,null,{"$f":"IFERROR(VLOOKUP(D208,'Bank and Fund Details'!$B$14:$L$35,11,FALSE),\"N\")","v":"Y"},"NY"]
[null,null,null,"General Fund",null,null,null,null,null,{"$f":"VLOOKUP(D209,'Bank and Fund Details'!$B$15:$D$36,3,FALSE)","v":0},{"$f":"VLOOKUP(D209,'Bank and Fund Details'!$B$15:$C$36,2,FALSE)","v":"Unrestricted"},{"$f":"IFERROR(VLOOKUP(C209,Descriptions!$B$6:$D$92,3,FALSE),\"\")","v":""},null,null,null,null,null,null,null,null,null,null,null,null,null,null,"General Fund",{"$f":"IFERROR(VLOOKUP(C209,Descriptions!B:F,5,FALSE),\"N\")","v":"N"},true,"NTRUE",0,null,{"$f":"IFERROR(VLOOKUP(D209,'Bank and Fund Details'!$B$14:$L$35,11,FALSE),\"N\")","v":"Y"},"NY"]
[null,null,null,"General Fund",null,null,null,null,null,{"$f":"VLOOKUP(D210,'Bank and Fund Details'!$B$15:$D$36,3,FALSE)","v":0},{"$f":"VLOOKUP(D210,'Bank and Fund Details'!$B$15:$C$36,2,FALSE)","v":"Unrestricted"},{"$f":"IFERROR(VLOOKUP(C210,Descriptions!$B$6:$D$92,3,FALSE),\"\")","v":""},null,null,null,null,null,null,null,null,null,null,null,null,null,null,"General Fund",{"$f":"IFERROR(VLOOKUP(C210,Descriptions!B:F,5,FALSE),\"N\")","v":"N"},true,"NTRUE",0,null,{"$f":"IFERROR(VLOOKUP(D210,'Bank and Fund Details'!$B$14:$L$35,11,FALSE),\"N\")","v":"Y"},"NY"]
[null,null,null,"General Fund",null,null,null,null,null,{"$f":"VLOOKUP(D211,'Bank and Fund Details'!$B$15:$D$36,3,FALSE)","v":0},{"$f":"VLOOKUP(D211,'Bank and Fund Details'!$B$15:$C$36,2,FALSE)","v":"Unrestricted"},{"$f":"IFERROR(VLOOKUP(C211,Descriptions!$B$6:$D$92,3,FALSE),\"\")","v":""},null,null,null,null,null,null,null,null,null,null,null,null,null,null,"General Fund",{"$f":"IFERROR(VLOOKUP(C211,Descriptions!B:F,5,FALSE),\"N\")","v":"N"},true,"NTRUE",0,null,{"$f":"IFERROR(VLOOKUP(D211,'Bank and Fund Details'!$B$14:$L$35,11,FALSE),\"N\")","v":"Y"},"NY"]
[null,null,null,"General Fund",null,null,null,null,null,{"$f":"VLOOKUP(D212,'Bank and Fund Details'!$B$15:$D$36,3,FALSE)","v":0},{"$f":"VLOOKUP(D212,'Bank and Fund Details'!$B$15:$C$36,2,FALSE)","v":"Unrestricted"},{"$f":"IFERROR(VLOOKUP(C212,Descriptions!$B$6:$D$92,3,FALSE),\"\")","v":""},null,null,null,null,null,null,null,null,null,null,null,null,null,null,"General Fund",{"$f":"IFERROR(VLOOKUP(C212,Descriptions!B:F,5,FALSE),\"N\")","v":"N"},true,"NTRUE",0,null,{"$f":"IFERROR(VLOOKUP(D212,'Bank and Fund Details'!$B$14:$L$35,11,FALSE),\"N\")","v":"Y"},"NY"]
[null,null,null,"General Fund",null,null,null,null,null,{"$f":"VLOOKUP(D213,'Bank and Fund Details'!$B$15:$D$36,3,FALSE)","v":0},{"$f":"VLOOKUP(D213,'Bank and Fund Details'!$B$15:$C$36,2,FALSE)","v":"Unrestricted"},{"$f":"IFERROR(VLOOKUP(C213,Descriptions!$B$6:$D$92,3,FALSE),\"\")","v":""},null,null,null,null,null,null,null,null,null,null,null,null,null,null,"General Fund",{"$f":"IFERROR(VLOOKUP(C213,Descriptions!B:F,5,FALSE),\"N\")","v":"N"},true,"NTRUE",0,null,{"$f":"IFERROR(VLOOKUP(D213,'Bank and Fund Details'!$B$14:$L$35,11,FALSE),\"N\")","v":"Y"},"NY"]
[null,null,null,"General Fund",null,null,null,null,null,{"$f":"VLOOKUP(D214,'Bank and Fund Details'!$B$15:$D$36,3,FALSE)","v":0},{"$f":"VLOOKUP(D214,'Bank and Fund Details'!$B$15:$C$36,2,FALSE)","v":"Unrestricted"},{"$f":"IFERROR(VLOOKUP(C214,Descriptions!$B$6:$D$92,3,FALSE),\"\")","v":""},null,null,null,null,null,null,null,null,null,null,null,null,null,null,"General Fund",{"$f":"IFERROR(VLOOKUP(C214,Descriptions!B:F,5,FALSE),\"N\")","v":"N"},true,"NTRUE",0,null,{"$f":"IFERROR(VLOOKUP(D214,'Bank and Fund Details'!$B$14:$L$35,11,FALSE),\"N\")","v":"Y"},"NY"]
[null,null,null,"General Fund",null,null,null,null,null,{"$f":"VLOOKUP(D215,'Bank and Fund Details'!$B$15:$D$36,3,FALSE)","v":0},{"$f":"VLOOKUP(D215,'Bank and Fund Details'!$B$15:$C$36,2,FALSE)","v":"Unrestricted"},{"$f":"IFERROR(VLOOKUP(C215,Descriptions!$B$6:$D$92,3,FALSE),\"\")","v":""},null,null,null,null,null,null,null,null,null,null,null,null,null,null,"General Fund",{"$f":"IFERROR(VLOOKUP(C215,Descriptions!B:F,5,FALSE),\"N\")","v":"N"},true,"NTRUE",0,null,{"$f":"IFERROR(VLOOKUP(D215,'Bank and Fund Details'!$B$14:$L$35,11,FALSE),\"N\")","v":"Y"},"NY"]
[null,null,null,"General Fund",null,null,null,null,null,{"$f":"VLOOKUP(D216,'Bank and Fund Details'!$B$15:$D$36,3,FALSE)","v":0},{"$f":"VLOOKUP(D216,'Bank and Fund Details'!$B$15:$C$36,2,FALSE)","v":"Unrestricted"},{"$f":"IFERROR(VLOOKUP(C216,Descriptions!$B$6:$D$92,3,FALSE),\"\")","v":""},null,null,null,null,null,null,null,null,null,null,null,null,null,null,"General Fund",{"$f":"IFERROR(VLOOKUP(C216,Descriptions!B:F,5,FALSE),\"N\")","v":"N"},true,"NTRUE",0,null,{"$f":"IFERROR(VLOOKUP(D216,'Bank and Fund Details'!$B$14:$L$35,11,FALSE),\"N\")","v":"Y"},"NY"]
[null,null,null,"General Fund",null,null,null,null,null,{"$f":"VLOOKUP(D217,'Bank and Fund Details'!$B$15:$D$36,3,FALSE)","v":0},{"$f":"VLOOKUP(D217,'Bank and Fund Details'!$B$15:$C$36,2,FALSE)","v":"Unrestricted"},{"$f":"IFERROR(VLOOKUP(C217,Descriptions!$B$6:$D$92,3,FALSE),\"\")","v":""},null,null,null,null,null,null,null,null,null,null,null,null,null,null,"General Fund",{"$f":"IFERROR(VLOOKUP(C217,Descriptions!B:F,5,FALSE),\"N\")","v":"N"},true,"NTRUE",0,null,{"$f":"IFERROR(VLOOKUP(D217,'Bank and Fund Details'!$B$14:$L$35,11,FALSE),\"N\")","v":"Y"},"NY"]
[null,null,null,"General Fund",null,null,null,null,null,{"$f":"VLOOKUP(D218,'Bank and Fund Details'!$B$15:$D$36,3,FALSE)","v":0},{"$f":"VLOOKUP(D218,'Bank and Fund Details'!$B$15:$C$36,2,FALSE)","v":"Unrestricted"},{"$f":"IFERROR(VLOOKUP(C218,Descriptions!$B$6:$D$92,3,FALSE),\"\")","v":""},null,null,null,null,null,null,null,null,null,null,null,null,null,null,"General Fund",{"$f":"IFERROR(VLOOKUP(C218,Descriptions!B:F,5,FALSE),\"N\")","v":"N"},true,"NTRUE",0,null,{"$f":"IFERROR(VLOOKUP(D218,'Bank and Fund Details'!$B$14:$L$35,11,FALSE),\"N\")","v":"Y"},"NY"]
[null,null,null,"General Fund",null,null,null,null,null,{"$f":"VLOOKUP(D219,'Bank and Fund Details'!$B$15:$D$36,3,FALSE)","v":0},{"$f":"VLOOKUP(D219,'Bank and Fund Details'!$B$15:$C$36,2,FALSE)","v":"Unrestricted"},{"$f":"IFERROR(VLOOKUP(C219,Descriptions!$B$6:$D$92,3,FALSE),\"\")","v":""},null,null,null,null,null,null,null,null,null,null,null,null,null,null,"General Fund",{"$f":"IFERROR(VLOOKUP(C219,Descriptions!B:F,5,FALSE),\"N\")","v":"N"},true,"NTRUE",0,null,{"$f":"IFERROR(VLOOKUP(D219,'Bank and Fund Details'!$B$14:$L$35,11,FALSE),\"N\")","v":"Y"},"NY"]
[null,null,null,"General Fund",null,null,null,null,null,{"$f":"VLOOKUP(D220,'Bank and Fund Details'!$B$15:$D$36,3,FALSE)","v":0},{"$f":"VLOOKUP(D220,'Bank and Fund Details'!$B$15:$C$36,2,FALSE)","v":"Unrestricted"},{"$f":"IFERROR(VLOOKUP(C220,Descriptions!$B$6:$D$92,3,FALSE),\"\")","v":""},null,null,null,null,null,null,null,null,null,null,null,null,null,null,"General Fund",{"$f":"IFERROR(VLOOKUP(C220,Descriptions!B:F,5,FALSE),\"N\")","v":"N"},true,"NTRUE",0,null,{"$f":"IFERROR(VLOOKUP(D220,'Bank and Fund Details'!$B$14:$L$35,11,FALSE),\"N\")","v":"Y"},"NY"]
[null,null,null,"General Fund",null,null,null,null,null,{"$f":"VLOOKUP(D221,'Bank and Fund Details'!$B$15:$D$36,3,FALSE)","v":0},{"$f":"VLOOKUP(D221,'Bank and Fund Details'!$B$15:$C$36,2,FALSE)","v":"Unrestricted"},{"$f":"IFERROR(VLOOKUP(C221,Descriptions!$B$6:$D$92,3,FALSE),\"\")","v":""},null,null,null,null,null,null,null,null,null,null,null,null,null,null,"General Fund",{"$f":"IFERROR(VLOOKUP(C221,Descriptions!B:F,5,FALSE),\"N\")","v":"N"},true,"NTRUE",0,null,{"$f":"IFERROR(VLOOKUP(D221,'Bank and Fund Details'!$B$14:$L$35,11,FALSE),\"N\")","v":"Y"},"NY"]
[null,null,null,"General Fund",null,null,null,null,null,{"$f":"VLOOKUP(D222,'Bank and Fund Details'!$B$15:$D$36,3,FALSE)","v":0},{"$f":"VLOOKUP(D222,'Bank and Fund Details'!$B$15:$C$36,2,FALSE)","v":"Unrestricted"},{"$f":"IFERROR(VLOOKUP(C222,Descriptions!$B$6:$D$92,3,FALSE),\"\")","v":""},null,null,null,null,null,null,null,null,null,null,null,null,null,null,"General Fund",{"$f":"IFERROR(VLOOKUP(C222,Descriptions!B:F,5,FALSE),\"N\")","v":"N"},true,"NTRUE",0,null,{"$f":"IFERROR(VLOOKUP(D222,'Bank and Fund Details'!$B$14:$L$35,11,FALSE),\"N\")","v":"Y"},"NY"]
[null,null,null,"General Fund",null,null,null,null,null,{"$f":"VLOOKUP(D223,'Bank and Fund Details'!$B$15:$D$36,3,FALSE)","v":0},{"$f":"VLOOKUP(D223,'Bank and Fund Details'!$B$15:$C$36,2,FALSE)","v":"Unrestricted"},{"$f":"IFERROR(VLOOKUP(C223,Descriptions!$B$6:$D$92,3,FALSE),\"\")","v":""},null,null,null,null,null,null,null,null,null,null,null,null,null,null,"General Fund",{"$f":"IFERROR(VLOOKUP(C223,Descriptions!B:F,5,FALSE),\"N\")","v":"N"},true,"NTRUE",0,null,{"$f":"IFERROR(VLOOKUP(D223,'Bank and Fund Details'!$B$14:$L$35,11,FALSE),\"N\")","v":"Y"},"NY"]
[null,null,null,"General Fund",null,null,null,null,null,{"$f":"VLOOKUP(D224,'Bank and Fund Details'!$B$15:$D$36,3,FALSE)","v":0},{"$f":"VLOOKUP(D224,'Bank and Fund Details'!$B$15:$C$36,2,FALSE)","v":"Unrestricted"},{"$f":"IFERROR(VLOOKUP(C224,Descriptions!$B$6:$D$92,3,FALSE),\"\")","v":""},null,null,null,null,null,null,null,null,null,null,null,null,null,null,"General Fund",{"$f":"IFERROR(VLOOKUP(C224,Descriptions!B:F,5,FALSE),\"N\")","v":"N"},true,"NTRUE",0,null,{"$f":"IFERROR(VLOOKUP(D224,'Bank and Fund Details'!$B$14:$L$35,11,FALSE),\"N\")","v":"Y"},"NY"]
[null,null,null,"General Fund",null,null,null,null,null,{"$f":"VLOOKUP(D225,'Bank and Fund Details'!$B$15:$D$36,3,FALSE)","v":0},{"$f":"VLOOKUP(D225,'Bank and Fund Details'!$B$15:$C$36,2,FALSE)","v":"Unrestricted"},{"$f":"IFERROR(VLOOKUP(C225,Descriptions!$B$6:$D$92,3,FALSE),\"\")","v":""},null,null,null,null,null,null,null,null,null,null,null,null,null,null,"General Fund",{"$f":"IFERROR(VLOOKUP(C225,Descriptions!B:F,5,FALSE),\"N\")","v":"N"},true,"NTRUE",0,null,{"$f":"IFERROR(VLOOKUP(D225,'Bank and Fund Details'!$B$14:$L$35,11,FALSE),\"N\")","v":"Y"},"NY"]
[null,null,null,"General Fund",null,null,null,null,null,{"$f":"VLOOKUP(D226,'Bank and Fund Details'!$B$15:$D$36,3,FALSE)","v":0},{"$f":"VLOOKUP(D226,'Bank and Fund Details'!$B$15:$C$36,2,FALSE)","v":"Unrestricted"},{"$f":"IFERROR(VLOOKUP(C226,Descriptions!$B$6:$D$92,3,FALSE),\"\")","v":""},null,null,null,null,null,null,null,null,null,null,null,null,null,null,"General Fund",{"$f":"IFERROR(VLOOKUP(C226,Descriptions!B:F,5,FALSE),\"N\")","v":"N"},true,"NTRUE",0,null,{"$f":"IFERROR(VLOOKUP(D226,'Bank and Fund Details'!$B$14:$L$35,11,FALSE),\"N\")","v":"Y"},"NY"]
[null,null,null,"General Fund",null,null,null,null,null,{"$f":"VLOOKUP(D227,'Bank and Fund Details'!$B$15:$D$36,3,FALSE)","v":0},{"$f":"VLOOKUP(D227,'Bank and Fund Details'!$B$15:$C$36,2,FALSE)","v":"Unrestricted"},{"$f":"IFERROR(VLOOKUP(C227,Descriptions!$B$6:$D$92,3,FALSE),\"\")","v":""},null,null,null,null,null,null,null,null,null,null,null,null,null,null,"General Fund",{"$f":"IFERROR(VLOOKUP(C227,Descriptions!B:F,5,FALSE),\"N\")","v":"N"},true,"NTRUE",0,null,{"$f":"IFERROR(VLOOKUP(D227,'Bank and Fund Details'!$B$14:$L$35,11,FALSE),\"N\")","v":"Y"},"NY"]
[null,null,null,"General Fund",null,null,null,null,null,{"$f":"VLOOKUP(D228,'Bank and Fund Details'!$B$15:$D$36,3,FALSE)","v":0},{"$f":"VLOOKUP(D228,'Bank and Fund Details'!$B$15:$C$36,2,FALSE)","v":"Unrestricted"},{"$f":"IFERROR(VLOOKUP(C228,Descriptions!$B$6:$D$92,3,FALSE),\"\")","v":""},null,null,null,null,null,null,null,null,null,null,null,null,null,null,"General Fund",{"$f":"IFERROR(VLOOKUP(C228,Descriptions!B:F,5,FALSE),\"N\")","v":"N"},true,"NTRUE",0,null,{"$f":"IFERROR(VLOOKUP(D228,'Bank and Fund Details'!$B$14:$L$35,11,FALSE),\"N\")","v":"Y"},"NY"]
[null,null,null,"General Fund",null,null,null,null,null,{"$f":"VLOOKUP(D229,'Bank and Fund Details'!$B$15:$D$36,3,FALSE)","v":0},{"$f":"VLOOKUP(D229,'Bank and Fund Details'!$B$15:$C$36,2,FALSE)","v":"Unrestricted"},{"$f":"IFERROR(VLOOKUP(C229,Descriptions!$B$6:$D$92,3,FALSE),\"\")","v":""},null,null,null,null,null,null,null,null,null,null,null,null,null,null,"General Fund",{"$f":"IFERROR(VLOOKUP(C229,Descriptions!B:F,5,FALSE),\"N\")","v":"N"},true,"NTRUE",0,null,{"$f":"IFERROR(VLOOKUP(D229,'Bank and Fund Details'!$B$14:$L$35,11,FALSE),\"N\")","v":"Y"},"NY"]
[null,null,null,"General Fund",null,null,null,null,null,{"$f":"VLOOKUP(D230,'Bank and Fund Details'!$B$15:$D$36,3,FALSE)","v":0},{"$f":"VLOOKUP(D230,'Bank and Fund Details'!$B$15:$C$36,2,FALSE)","v":"Unrestricted"},{"$f":"IFERROR(VLOOKUP(C230,Descriptions!$B$6:$D$92,3,FALSE),\"\")","v":""},null,null,null,null,null,null,null,null,null,null,null,null,null,null,"General Fund",{"$f":"IFERROR(VLOOKUP(C230,Descriptions!B:F,5,FALSE),\"N\")","v":"N"},true,"NTRUE",0,null,{"$f":"IFERROR(VLOOKUP(D230,'Bank and Fund Details'!$B$14:$L$35,11,FALSE),\"N\")","v":"Y"},"NY"]
[null,null,null,"General Fund",null,null,null,null,null,{"$f":"VLOOKUP(D231,'Bank and Fund Details'!$B$15:$D$36,3,FALSE)","v":0},{"$f":"VLOOKUP(D231,'Bank and Fund Details'!$B$15:$C$36,2,FALSE)","v":"Unrestricted"},{"$f":"IFERROR(VLOOKUP(C231,Descriptions!$B$6:$D$92,3,FALSE),\"\")","v":""},null,null,null,null,null,null,null,null,null,null,null,null,null,null,"General Fund",{"$f":"IFERROR(VLOOKUP(C231,Descriptions!B:F,5,FALSE),\"N\")","v":"N"},true,"NTRUE",0,null,{"$f":"IFERROR(VLOOKUP(D231,'Bank and Fund Details'!$B$14:$L$35,11,FALSE),\"N\")","v":"Y"},"NY"]
[null,null,null,"General Fund",null,null,null,null,null,{"$f":"VLOOKUP(D232,'Bank and Fund Details'!$B$15:$D$36,3,FALSE)","v":0},{"$f":"VLOOKUP(D232,'Bank and Fund Details'!$B$15:$C$36,2,FALSE)","v":"Unrestricted"},{"$f":"IFERROR(VLOOKUP(C232,Descriptions!$B$6:$D$92,3,FALSE),\"\")","v":""},null,null,null,null,null,null,null,null,null,null,null,null,null,null,"General Fund",{"$f":"IFERROR(VLOOKUP(C232,Descriptions!B:F,5,FALSE),\"N\")","v":"N"},true,"NTRUE",0,null,{"$f":"IFERROR(VLOOKUP(D232,'Bank and Fund Details'!$B$14:$L$35,11,FALSE),\"N\")","v":"Y"},"NY"]
[null,null,null,"General Fund",null,null,null,null,null,{"$f":"VLOOKUP(D233,'Bank and Fund Details'!$B$15:$D$36,3,FALSE)","v":0},{"$f":"VLOOKUP(D233,'Bank and Fund Details'!$B$15:$C$36,2,FALSE)","v":"Unrestricted"},{"$f":"IFERROR(VLOOKUP(C233,Descriptions!$B$6:$D$92,3,FALSE),\"\")","v":""},null,null,null,null,null,null,null,null,null,null,null,null,null,null,"General Fund",{"$f":"IFERROR(VLOOKUP(C233,Descriptions!B:F,5,FALSE),\"N\")","v":"N"},true,"NTRUE",0,null,{"$f":"IFERROR(VLOOKUP(D233,'Bank and Fund Details'!$B$14:$L$35,11,FALSE),\"N\")","v":"Y"},"NY"]
[null,null,null,"General Fund",null,null,null,null,null,{"$f":"VLOOKUP(D234,'Bank and Fund Details'!$B$15:$D$36,3,FALSE)","v":0},{"$f":"VLOOKUP(D234,'Bank and Fund Details'!$B$15:$C$36,2,FALSE)","v":"Unrestricted"},{"$f":"IFERROR(VLOOKUP(C234,Descriptions!$B$6:$D$92,3,FALSE),\"\")","v":""},null,null,null,null,null,null,null,null,null,null,null,null,null,null,"General Fund",{"$f":"IFERROR(VLOOKUP(C234,Descriptions!B:F,5,FALSE),\"N\")","v":"N"},true,"NTRUE",0,null,{"$f":"IFERROR(VLOOKUP(D234,'Bank and Fund Details'!$B$14:$L$35,11,FALSE),\"N\")","v":"Y"},"NY"]
[null,null,null,"General Fund",null,null,null,null,null,{"$f":"VLOOKUP(D235,'Bank and Fund Details'!$B$15:$D$36,3,FALSE)","v":0},{"$f":"VLOOKUP(D235,'Bank and Fund Details'!$B$15:$C$36,2,FALSE)","v":"Unrestricted"},{"$f":"IFERROR(VLOOKUP(C235,Descriptions!$B$6:$D$92,3,FALSE),\"\")","v":""},null,null,null,null,null,null,null,null,null,null,null,null,null,null,"General Fund",{"$f":"IFERROR(VLOOKUP(C235,Descriptions!B:F,5,FALSE),\"N\")","v":"N"},true,"NTRUE",0,null,{"$f":"IFERROR(VLOOKUP(D235,'Bank and Fund Details'!$B$14:$L$35,11,FALSE),\"N\")","v":"Y"},"NY"]
[null,null,null,"General Fund",null,null,null,null,null,{"$f":"VLOOKUP(D236,'Bank and Fund Details'!$B$15:$D$36,3,FALSE)","v":0},{"$f":"VLOOKUP(D236,'Bank and Fund Details'!$B$15:$C$36,2,FALSE)","v":"Unrestricted"},{"$f":"IFERROR(VLOOKUP(C236,Descriptions!$B$6:$D$92,3,FALSE),\"\")","v":""},null,null,null,null,null,null,null,null,null,null,null,null,null,null,"General Fund",{"$f":"IFERROR(VLOOKUP(C236,Descriptions!B:F,5,FALSE),\"N\")","v":"N"},true,"NTRUE",0,null,{"$f":"IFERROR(VLOOKUP(D236,'Bank and Fund Details'!$B$14:$L$35,11,FALSE),\"N\")","v":"Y"},"NY"]
[null,null,null,"General Fund",null,null,null,null,null,{"$f":"VLOOKUP(D237,'Bank and Fund Details'!$B$15:$D$36,3,FALSE)","v":0},{"$f":"VLOOKUP(D237,'Bank and Fund Details'!$B$15:$C$36,2,FALSE)","v":"Unrestricted"},{"$f":"IFERROR(VLOOKUP(C237,Descriptions!$B$6:$D$92,3,FALSE),\"\")","v":""},null,null,null,null,null,null,null,null,null,null,null,null,null,null,"General Fund",{"$f":"IFERROR(VLOOKUP(C237,Descriptions!B:F,5,FALSE),\"N\")","v":"N"},true,"NTRUE",0,null,{"$f":"IFERROR(VLOOKUP(D237,'Bank and Fund Details'!$B$14:$L$35,11,FALSE),\"N\")","v":"Y"},"NY"]
[null,null,null,"General Fund",null,null,null,null,null,{"$f":"VLOOKUP(D238,'Bank and Fund Details'!$B$15:$D$36,3,FALSE)","v":0},{"$f":"VLOOKUP(D238,'Bank and Fund Details'!$B$15:$C$36,2,FALSE)","v":"Unrestricted"},{"$f":"IFERROR(VLOOKUP(C238,Descriptions!$B$6:$D$92,3,FALSE),\"\")","v":""},null,null,null,null,null,null,null,null,null,null,null,null,null,null,"General Fund",{"$f":"IFERROR(VLOOKUP(C238,Descriptions!B:F,5,FALSE),\"N\")","v":"N"},true,"NTRUE",0,null,{"$f":"IFERROR(VLOOKUP(D238,'Bank and Fund Details'!$B$14:$L$35,11,FALSE),\"N\")","v":"Y"},"NY"]
[null,null,null,"General Fund",null,null,null,null,null,{"$f":"VLOOKUP(D239,'Bank and Fund Details'!$B$15:$D$36,3,FALSE)","v":0},{"$f":"VLOOKUP(D239,'Bank and Fund Details'!$B$15:$C$36,2,FALSE)","v":"Unrestricted"},{"$f":"IFERROR(VLOOKUP(C239,Descriptions!$B$6:$D$92,3,FALSE),\"\")","v":""},null,null,null,null,null,null,null,null,null,null,null,null,null,null,"General Fund",{"$f":"IFERROR(VLOOKUP(C239,Descriptions!B:F,5,FALSE),\"N\")","v":"N"},true,"NTRUE",0,null,{"$f":"IFERROR(VLOOKUP(D239,'Bank and Fund Details'!$B$14:$L$35,11,FALSE),\"N\")","v":"Y"},"NY"]
[null,null,null,"General Fund",null,null,null,null,null,{"$f":"VLOOKUP(D240,'Bank and Fund Details'!$B$15:$D$36,3,FALSE)","v":0},{"$f":"VLOOKUP(D240,'Bank and Fund Details'!$B$15:$C$36,2,FALSE)","v":"Unrestricted"},{"$f":"IFERROR(VLOOKUP(C240,Descriptions!$B$6:$D$92,3,FALSE),\"\")","v":""},null,null,null,null,null,null,null,null,null,null,null,null,null,null,"General Fund",{"$f":"IFERROR(VLOOKUP(C240,Descriptions!B:F,5,FALSE),\"N\")","v":"N"},true,"NTRUE",0,null,{"$f":"IFERROR(VLOOKUP(D240,'Bank and Fund Details'!$B$14:$L$35,11,FALSE),\"N\")","v":"Y"},"NY"]
[null,null,null,"General Fund",null,null,null,null,null,{"$f":"VLOOKUP(D241,'Bank and Fund Details'!$B$15:$D$36,3,FALSE)","v":0},{"$f":"VLOOKUP(D241,'Bank and Fund Details'!$B$15:$C$36,2,FALSE)","v":"Unrestricted"},{"$f":"IFERROR(VLOOKUP(C241,Descriptions!$B$6:$D$92,3,FALSE),\"\")","v":""},null,null,null,null,null,null,null,null,null,null,null,null,null,null,"General Fund",{"$f":"IFERROR(VLOOKUP(C241,Descriptions!B:F,5,FALSE),\"N\")","v":"N"},true,"NTRUE",0,null,{"$f":"IFERROR(VLOOKUP(D241,'Bank and Fund Details'!$B$14:$L$35,11,FALSE),\"N\")","v":"Y"},"NY"]
[null,null,null,"General Fund",null,null,null,null,null,{"$f":"VLOOKUP(D242,'Bank and Fund Details'!$B$15:$D$36,3,FALSE)","v":0},{"$f":"VLOOKUP(D242,'Bank and Fund Details'!$B$15:$C$36,2,FALSE)","v":"Unrestricted"},{"$f":"IFERROR(VLOOKUP(C242,Descriptions!$B$6:$D$92,3,FALSE),\"\")","v":""},null,null,null,null,null,null,null,null,null,null,null,null,null,null,"General Fund",{"$f":"IFERROR(VLOOKUP(C242,Descriptions!B:F,5,FALSE),\"N\")","v":"N"},true,"NTRUE",0,null,{"$f":"IFERROR(VLOOKUP(D242,'Bank and Fund Details'!$B$14:$L$35,11,FALSE),\"N\")","v":"Y"},"NY"]
[null,null,null,"General Fund",null,null,null,null,null,{"$f":"VLOOKUP(D243,'Bank and Fund Details'!$B$15:$D$36,3,FALSE)","v":0},{"$f":"VLOOKUP(D243,'Bank and Fund Details'!$B$15:$C$36,2,FALSE)","v":"Unrestricted"},{"$f":"IFERROR(VLOOKUP(C243,Descriptions!$B$6:$D$92,3,FALSE),\"\")","v":""},null,null,null,null,null,null,null,null,null,null,null,null,null,null,"General Fund",{"$f":"IFERROR(VLOOKUP(C243,Descriptions!B:F,5,FALSE),\"N\")","v":"N"},true,"NTRUE",0,null,{"$f":"IFERROR(VLOOKUP(D243,'Bank and Fund Details'!$B$14:$L$35,11,FALSE),\"N\")","v":"Y"},"NY"]
[null,null,null,"General Fund",null,null,null,null,null,{"$f":"VLOOKUP(D244,'Bank and Fund Details'!$B$15:$D$36,3,FALSE)","v":0},{"$f":"VLOOKUP(D244,'Bank and Fund Details'!$B$15:$C$36,2,FALSE)","v":"Unrestricted"},{"$f":"IFERROR(VLOOKUP(C244,Descriptions!$B$6:$D$92,3,FALSE),\"\")","v":""},null,null,null,null,null,null,null,null,null,null,null,null,null,null,"General Fund",{"$f":"IFERROR(VLOOKUP(C244,Descriptions!B:F,5,FALSE),\"N\")","v":"N"},true,"NTRUE",0,null,{"$f":"IFERROR(VLOOKUP(D244,'Bank and Fund Details'!$B$14:$L$35,11,FALSE),\"N\")","v":"Y"},"NY"]
[null,null,null,"General Fund",null,null,null,null,null,{"$f":"VLOOKUP(D245,'Bank and Fund Details'!$B$15:$D$36,3,FALSE)","v":0},{"$f":"VLOOKUP(D245,'Bank and Fund Details'!$B$15:$C$36,2,FALSE)","v":"Unrestricted"},{"$f":"IFERROR(VLOOKUP(C245,Descriptions!$B$6:$D$92,3,FALSE),\"\")","v":""},null,null,null,null,null,null,null,null,null,null,null,null,null,null,"General Fund",{"$f":"IFERROR(VLOOKUP(C245,Descriptions!B:F,5,FALSE),\"N\")","v":"N"},true,"NTRUE",0,null,{"$f":"IFERROR(VLOOKUP(D245,'Bank and Fund Details'!$B$14:$L$35,11,FALSE),\"N\")","v":"Y"},"NY"]
[null,null,null,"General Fund",null,null,null,null,null,{"$f":"VLOOKUP(D246,'Bank and Fund Details'!$B$15:$D$36,3,FALSE)","v":0},{"$f":"VLOOKUP(D246,'Bank and Fund Details'!$B$15:$C$36,2,FALSE)","v":"Unrestricted"},{"$f":"IFERROR(VLOOKUP(C246,Descriptions!$B$6:$D$92,3,FALSE),\"\")","v":""},null,null,null,null,null,null,null,null,null,null,null,null,null,null,"General Fund",{"$f":"IFERROR(VLOOKUP(C246,Descriptions!B:F,5,FALSE),\"N\")","v":"N"},true,"NTRUE",0,null,{"$f":"IFERROR(VLOOKUP(D246,'Bank and Fund Details'!$B$14:$L$35,11,FALSE),\"N\")","v":"Y"},"NY"]
[null,null,null,"General Fund",null,null,null,null,null,{"$f":"VLOOKUP(D247,'Bank and Fund Details'!$B$15:$D$36,3,FALSE)","v":0},{"$f":"VLOOKUP(D247,'Bank and Fund Details'!$B$15:$C$36,2,FALSE)","v":"Unrestricted"},{"$f":"IFERROR(VLOOKUP(C247,Descriptions!$B$6:$D$92,3,FALSE),\"\")","v":""},null,null,null,null,null,null,null,null,null,null,null,null,null,null,"General Fund",{"$f":"IFERROR(VLOOKUP(C247,Descriptions!B:F,5,FALSE),\"N\")","v":"N"},true,"NTRUE",0,null,{"$f":"IFERROR(VLOOKUP(D247,'Bank and Fund Details'!$B$14:$L$35,11,FALSE),\"N\")","v":"Y"},"NY"]
[null,null,null,"General Fund",null,null,null,null,null,{"$f":"VLOOKUP(D248,'Bank and Fund Details'!$B$15:$D$36,3,FALSE)","v":0},{"$f":"VLOOKUP(D248,'Bank and Fund Details'!$B$15:$C$36,2,FALSE)","v":"Unrestricted"},{"$f":"IFERROR(VLOOKUP(C248,Descriptions!$B$6:$D$92,3,FALSE),\"\")","v":""},null,null,null,null,null,null,null,null,null,null,null,null,null,null,"General Fund",{"$f":"IFERROR(VLOOKUP(C248,Descriptions!B:F,5,FALSE),\"N\")","v":"N"},true,"NTRUE",0,null,{"$f":"IFERROR(VLOOKUP(D248,'Bank and Fund Details'!$B$14:$L$35,11,FALSE),\"N\")","v":"Y"},"NY"]
[null,null,null,"General Fund",null,null,null,null,null,{"$f":"VLOOKUP(D249,'Bank and Fund Details'!$B$15:$D$36,3,FALSE)","v":0},{"$f":"VLOOKUP(D249,'Bank and Fund Details'!$B$15:$C$36,2,FALSE)","v":"Unrestricted"},{"$f":"IFERROR(VLOOKUP(C249,Descriptions!$B$6:$D$92,3,FALSE),\"\")","v":""},null,null,null,null,null,null,null,null,null,null,null,null,null,null,"General Fund",{"$f":"IFERROR(VLOOKUP(C249,Descriptions!B:F,5,FALSE),\"N\")","v":"N"},true,"NTRUE",0,null,{"$f":"IFERROR(VLOOKUP(D249,'Bank and Fund Details'!$B$14:$L$35,11,FALSE),\"N\")","v":"Y"},"NY"]
[null,null,null,"General Fund",null,null,null,null,null,{"$f":"VLOOKUP(D250,'Bank and Fund Details'!$B$15:$D$36,3,FALSE)","v":0},{"$f":"VLOOKUP(D250,'Bank and Fund Details'!$B$15:$C$36,2,FALSE)","v":"Unrestricted"},{"$f":"IFERROR(VLOOKUP(C250,Descriptions!$B$6:$D$92,3,FALSE),\"\")","v":""},null,null,null,null,null,null,null,null,null,null,null,null,null,null,"General Fund",{"$f":"IFERROR(VLOOKUP(C250,Descriptions!B:F,5,FALSE),\"N\")","v":"N"},true,"NTRUE",0,null,{"$f":"IFERROR(VLOOKUP(D250,'Bank and Fund Details'!$B$14:$L$35,11,FALSE),\"N\")","v":"Y"},"NY"]
[null,null,null,"General Fund",null,null,null,null,null,{"$f":"VLOOKUP(D251,'Bank and Fund Details'!$B$15:$D$36,3,FALSE)","v":0},{"$f":"VLOOKUP(D251,'Bank and Fund Details'!$B$15:$C$36,2,FALSE)","v":"Unrestricted"},{"$f":"IFERROR(VLOOKUP(C251,Descriptions!$B$6:$D$92,3,FALSE),\"\")","v":""},null,null,null,null,null,null,null,null,null,null,null,null,null,null,"General Fund",{"$f":"IFERROR(VLOOKUP(C251,Descriptions!B:F,5,FALSE),\"N\")","v":"N"},true,"NTRUE",0,null,{"$f":"IFERROR(VLOOKUP(D251,'Bank and Fund Details'!$B$14:$L$35,11,FALSE),\"N\")","v":"Y"},"NY"]
[null,null,null,"General Fund",null,null,null,null,null,{"$f":"VLOOKUP(D252,'Bank and Fund Details'!$B$15:$D$36,3,FALSE)","v":0},{"$f":"VLOOKUP(D252,'Bank and Fund Details'!$B$15:$C$36,2,FALSE)","v":"Unrestricted"},{"$f":"IFERROR(VLOOKUP(C252,Descriptions!$B$6:$D$92,3,FALSE),\"\")","v":""},null,null,null,null,null,null,null,null,null,null,null,null,null,null,"General Fund",{"$f":"IFERROR(VLOOKUP(C252,Descriptions!B:F,5,FALSE),\"N\")","v":"N"},true,"NTRUE",0,null,{"$f":"IFERROR(VLOOKUP(D252,'Bank and Fund Details'!$B$14:$L$35,11,FALSE),\"N\")","v":"Y"},"NY"]
[null,null,null,"General Fund",null,null,null,null,null,{"$f":"VLOOKUP(D253,'Bank and Fund Details'!$B$15:$D$36,3,FALSE)","v":0},{"$f":"VLOOKUP(D253,'Bank and Fund Details'!$B$15:$C$36,2,FALSE)","v":"Unrestricted"},{"$f":"IFERROR(VLOOKUP(C253,Descriptions!$B$6:$D$92,3,FALSE),\"\")","v":""},null,null,null,null,null,null,null,null,null,null,null,null,null,null,"General Fund",{"$f":"IFERROR(VLOOKUP(C253,Descriptions!B:F,5,FALSE),\"N\")","v":"N"},true,"NTRUE",0,null,{"$f":"IFERROR(VLOOKUP(D253,'Bank and Fund Details'!$B$14:$L$35,11,FALSE),\"N\")","v":"Y"},"NY"]
[null,null,null,"General Fund",null,null,null,null,null,{"$f":"VLOOKUP(D254,'Bank and Fund Details'!$B$15:$D$36,3,FALSE)","v":0},{"$f":"VLOOKUP(D254,'Bank and Fund Details'!$B$15:$C$36,2,FALSE)","v":"Unrestricted"},{"$f":"IFERROR(VLOOKUP(C254,Descriptions!$B$6:$D$92,3,FALSE),\"\")","v":""},null,null,null,null,null,null,null,null,null,null,null,null,null,null,"General Fund",{"$f":"IFERROR(VLOOKUP(C254,Descriptions!B:F,5,FALSE),\"N\")","v":"N"},true,"NTRUE",0,null,{"$f":"IFERROR(VLOOKUP(D254,'Bank and Fund Details'!$B$14:$L$35,11,FALSE),\"N\")","v":"Y"},"NY"]
[null,null,null,"General Fund",null,null,null,null,null,{"$f":"VLOOKUP(D255,'Bank and Fund Details'!$B$15:$D$36,3,FALSE)","v":0},{"$f":"VLOOKUP(D255,'Bank and Fund Details'!$B$15:$C$36,2,FALSE)","v":"Unrestricted"},{"$f":"IFERROR(VLOOKUP(C255,Descriptions!$B$6:$D$92,3,FALSE),\"\")","v":""},null,null,null,null,null,null,null,null,null,null,null,null,null,null,"General Fund",{"$f":"IFERROR(VLOOKUP(C255,Descriptions!B:F,5,FALSE),\"N\")","v":"N"},true,"NTRUE",0,null,{"$f":"IFERROR(VLOOKUP(D255,'Bank and Fund Details'!$B$14:$L$35,11,FALSE),\"N\")","v":"Y"},"NY"]
[null,null,null,"General Fund",null,null,null,null,null,{"$f":"VLOOKUP(D256,'Bank and Fund Details'!$B$15:$D$36,3,FALSE)","v":0},{"$f":"VLOOKUP(D256,'Bank and Fund Details'!$B$15:$C$36,2,FALSE)","v":"Unrestricted"},{"$f":"IFERROR(VLOOKUP(C256,Descriptions!$B$6:$D$92,3,FALSE),\"\")","v":""},null,null,null,null,null,null,null,null,null,null,null,null,null,null,"General Fund",{"$f":"IFERROR(VLOOKUP(C256,Descriptions!B:F,5,FALSE),\"N\")","v":"N"},true,"NTRUE",0,null,{"$f":"IFERROR(VLOOKUP(D256,'Bank and Fund Details'!$B$14:$L$35,11,FALSE),\"N\")","v":"Y"},"NY"]
[null,null,null,"General Fund",null,null,null,null,null,{"$f":"VLOOKUP(D257,'Bank and Fund Details'!$B$15:$D$36,3,FALSE)","v":0},{"$f":"VLOOKUP(D257,'Bank and Fund Details'!$B$15:$C$36,2,FALSE)","v":"Unrestricted"},{"$f":"IFERROR(VLOOKUP(C257,Descriptions!$B$6:$D$92,3,FALSE),\"\")","v":""},null,null,null,null,null,null,null,null,null,null,null,null,null,null,"General Fund",{"$f":"IFERROR(VLOOKUP(C257,Descriptions!B:F,5,FALSE),\"N\")","v":"N"},true,"NTRUE",0,null,{"$f":"IFERROR(VLOOKUP(D257,'Bank and Fund Details'!$B$14:$L$35,11,FALSE),\"N\")","v":"Y"},"NY"]
[null,null,null,"General Fund",null,null,null,null,null,{"$f":"VLOOKUP(D258,'Bank and Fund Details'!$B$15:$D$36,3,FALSE)","v":0},{"$f":"VLOOKUP(D258,'Bank and Fund Details'!$B$15:$C$36,2,FALSE)","v":"Unrestricted"},{"$f":"IFERROR(VLOOKUP(C258,Descriptions!$B$6:$D$92,3,FALSE),\"\")","v":""},null,null,null,null,null,null,null,null,null,null,null,null,null,null,"General Fund",{"$f":"IFERROR(VLOOKUP(C258,Descriptions!B:F,5,FALSE),\"N\")","v":"N"},true,"NTRUE",0,null,{"$f":"IFERROR(VLOOKUP(D258,'Bank and Fund Details'!$B$14:$L$35,11,FALSE),\"N\")","v":"Y"},"NY"]
[null,null,null,"General Fund",null,null,null,null,null,{"$f":"VLOOKUP(D259,'Bank and Fund Details'!$B$15:$D$36,3,FALSE)","v":0},{"$f":"VLOOKUP(D259,'Bank and Fund Details'!$B$15:$C$36,2,FALSE)","v":"Unrestricted"},{"$f":"IFERROR(VLOOKUP(C259,Descriptions!$B$6:$D$92,3,FALSE),\"\")","v":""},null,null,null,null,null,null,null,null,null,null,null,null,null,null,"General Fund",{"$f":"IFERROR(VLOOKUP(C259,Descriptions!B:F,5,FALSE),\"N\")","v":"N"},true,"NTRUE",0,null,{"$f":"IFERROR(VLOOKUP(D259,'Bank and Fund Details'!$B$14:$L$35,11,FALSE),\"N\")","v":"Y"},"NY"]
[null,null,null,"General Fund",null,null,null,null,null,{"$f":"VLOOKUP(D260,'Bank and Fund Details'!$B$15:$D$36,3,FALSE)","v":0},{"$f":"VLOOKUP(D260,'Bank and Fund Details'!$B$15:$C$36,2,FALSE)","v":"Unrestricted"},{"$f":"IFERROR(VLOOKUP(C260,Descriptions!$B$6:$D$92,3,FALSE),\"\")","v":""},null,null,null,null,null,null,null,null,null,null,null,null,null,null,"General Fund",{"$f":"IFERROR(VLOOKUP(C260,Descriptions!B:F,5,FALSE),\"N\")","v":"N"},true,"NTRUE",0,null,{"$f":"IFERROR(VLOOKUP(D260,'Bank and Fund Details'!$B$14:$L$35,11,FALSE),\"N\")","v":"Y"},"NY"]
[null,null,null,"General Fund",null,null,null,null,null,{"$f":"VLOOKUP(D261,'Bank and Fund Details'!$B$15:$D$36,3,FALSE)","v":0},{"$f":"VLOOKUP(D261,'Bank and Fund Details'!$B$15:$C$36,2,FALSE)","v":"Unrestricted"},{"$f":"IFERROR(VLOOKUP(C261,Descriptions!$B$6:$D$92,3,FALSE),\"\")","v":""},null,null,null,null,null,null,null,null,null,null,null,null,null,null,{"$f":"CONCATENATE(C261,D261)","v":"General Fund"},{"$f":"IFERROR(VLOOKUP(C261,Descriptions!B:F,5,FALSE),\"N\")","v":"N"},{"$f":"ISBLANK(C261)","v":true},{"$f":"CONCATENATE(AB261,AC261)","v":"NTRUE"},{"$f":"IF(AD261=\"NFALSE\",1,0)","v":0},null,{"$f":"IFERROR(VLOOKUP(D261,'Bank and Fund Details'!$B$14:$L$35,11,FALSE),\"N\")","v":"Y"},"NY"]
[null,null,null,"General Fund",null,null,null,null,null,{"$f":"VLOOKUP(D262,'Bank and Fund Details'!$B$15:$D$36,3,FALSE)","v":0},{"$f":"VLOOKUP(D262,'Bank and Fund Details'!$B$15:$C$36,2,FALSE)","v":"Unrestricted"},{"$f":"IFERROR(VLOOKUP(C262,Descriptions!$B$6:$D$92,3,FALSE),\"\")","v":""},null,null,null,null,null,null,null,null,null,null,null,null,null,null,"General Fund",{"$f":"IFERROR(VLOOKUP(C262,Descriptions!B:F,5,FALSE),\"N\")","v":"N"},true,"NTRUE",0,null,{"$f":"IFERROR(VLOOKUP(D262,'Bank and Fund Details'!$B$14:$L$35,11,FALSE),\"N\")","v":"Y"},{"$f":"CONCATENATE(AB262,AG262)","v":"NY"}]
[null,null,null,"General Fund",null,null,null,null,null,{"$f":"VLOOKUP(D263,'Bank and Fund Details'!$B$15:$D$36,3,FALSE)","v":0},{"$f":"VLOOKUP(D263,'Bank and Fund Details'!$B$15:$C$36,2,FALSE)","v":"Unrestricted"},{"$f":"IFERROR(VLOOKUP(C263,Descriptions!$B$6:$D$92,3,FALSE),\"\")","v":""},null,null,null,null,null,null,null,null,null,null,null,null,null,null,"General Fund",{"$f":"IFERROR(VLOOKUP(C263,Descriptions!B:F,5,FALSE),\"N\")","v":"N"},true,"NTRUE",0,null,{"$f":"IFERROR(VLOOKUP(D263,'Bank and Fund Details'!$B$14:$L$35,11,FALSE),\"N\")","v":"Y"},"NY"]
[null,null,null,"General Fund",null,null,null,null,null,{"$f":"VLOOKUP(D264,'Bank and Fund Details'!$B$15:$D$36,3,FALSE)","v":0},{"$f":"VLOOKUP(D264,'Bank and Fund Details'!$B$15:$C$36,2,FALSE)","v":"Unrestricted"},{"$f":"IFERROR(VLOOKUP(C264,Descriptions!$B$6:$D$92,3,FALSE),\"\")","v":""},null,null,null,null,null,null,null,null,null,null,null,null,null,null,"General Fund",{"$f":"IFERROR(VLOOKUP(C264,Descriptions!B:F,5,FALSE),\"N\")","v":"N"},true,"NTRUE",0,null,{"$f":"IFERROR(VLOOKUP(D264,'Bank and Fund Details'!$B$14:$L$35,11,FALSE),\"N\")","v":"Y"},"NY"]
[null,null,null,"General Fund",null,null,null,null,null,{"$f":"VLOOKUP(D265,'Bank and Fund Details'!$B$15:$D$36,3,FALSE)","v":0},{"$f":"VLOOKUP(D265,'Bank and Fund Details'!$B$15:$C$36,2,FALSE)","v":"Unrestricted"},{"$f":"IFERROR(VLOOKUP(C265,Descriptions!$B$6:$D$92,3,FALSE),\"\")","v":""},null,null,null,null,null,null,null,null,null,null,null,null,null,null,"General Fund",{"$f":"IFERROR(VLOOKUP(C265,Descriptions!B:F,5,FALSE),\"N\")","v":"N"},true,"NTRUE",0,null,{"$f":"IFERROR(VLOOKUP(D265,'Bank and Fund Details'!$B$14:$L$35,11,FALSE),\"N\")","v":"Y"},"NY"]
[null,null,null,"General Fund",null,null,null,null,null,{"$f":"VLOOKUP(D266,'Bank and Fund Details'!$B$15:$D$36,3,FALSE)","v":0},{"$f":"VLOOKUP(D266,'Bank and Fund Details'!$B$15:$C$36,2,FALSE)","v":"Unrestricted"},{"$f":"IFERROR(VLOOKUP(C266,Descriptions!$B$6:$D$92,3,FALSE),\"\")","v":""},null,null,null,null,null,null,null,null,null,null,null,null,null,null,"General Fund",{"$f":"IFERROR(VLOOKUP(C266,Descriptions!B:F,5,FALSE),\"N\")","v":"N"},true,"NTRUE",0,null,{"$f":"IFERROR(VLOOKUP(D266,'Bank and Fund Details'!$B$14:$L$35,11,FALSE),\"N\")","v":"Y"},"NY"]
[null,null,null,"General Fund",null,null,null,null,null,{"$f":"VLOOKUP(D267,'Bank and Fund Details'!$B$15:$D$36,3,FALSE)","v":0},{"$f":"VLOOKUP(D267,'Bank and Fund Details'!$B$15:$C$36,2,FALSE)","v":"Unrestricted"},{"$f":"IFERROR(VLOOKUP(C267,Descriptions!$B$6:$D$92,3,FALSE),\"\")","v":""},null,null,null,null,null,null,null,null,null,null,null,null,null,null,"General Fund",{"$f":"IFERROR(VLOOKUP(C267,Descriptions!B:F,5,FALSE),\"N\")","v":"N"},true,"NTRUE",0,null,{"$f":"IFERROR(VLOOKUP(D267,'Bank and Fund Details'!$B$14:$L$35,11,FALSE),\"N\")","v":"Y"},"NY"]
[null,null,null,"General Fund",null,null,null,null,null,{"$f":"VLOOKUP(D268,'Bank and Fund Details'!$B$15:$D$36,3,FALSE)","v":0},{"$f":"VLOOKUP(D268,'Bank and Fund Details'!$B$15:$C$36,2,FALSE)","v":"Unrestricted"},{"$f":"IFERROR(VLOOKUP(C268,Descriptions!$B$6:$D$92,3,FALSE),\"\")","v":""},null,null,null,null,null,null,null,null,null,null,null,null,null,null,"General Fund",{"$f":"IFERROR(VLOOKUP(C268,Descriptions!B:F,5,FALSE),\"N\")","v":"N"},true,"NTRUE",0,null,{"$f":"IFERROR(VLOOKUP(D268,'Bank and Fund Details'!$B$14:$L$35,11,FALSE),\"N\")","v":"Y"},"NY"]
[null,null,null,"General Fund",null,null,null,null,null,{"$f":"VLOOKUP(D269,'Bank and Fund Details'!$B$15:$D$36,3,FALSE)","v":0},{"$f":"VLOOKUP(D269,'Bank and Fund Details'!$B$15:$C$36,2,FALSE)","v":"Unrestricted"},{"$f":"IFERROR(VLOOKUP(C269,Descriptions!$B$6:$D$92,3,FALSE),\"\")","v":""},null,null,null,null,null,null,null,null,null,null,null,null,null,null,"General Fund",{"$f":"IFERROR(VLOOKUP(C269,Descriptions!B:F,5,FALSE),\"N\")","v":"N"},true,"NTRUE",0,null,{"$f":"IFERROR(VLOOKUP(D269,'Bank and Fund Details'!$B$14:$L$35,11,FALSE),\"N\")","v":"Y"},"NY"]
[null,null,null,"General Fund",null,null,null,null,null,{"$f":"VLOOKUP(D270,'Bank and Fund Details'!$B$15:$D$36,3,FALSE)","v":0},{"$f":"VLOOKUP(D270,'Bank and Fund Details'!$B$15:$C$36,2,FALSE)","v":"Unrestricted"},{"$f":"IFERROR(VLOOKUP(C270,Descriptions!$B$6:$D$92,3,FALSE),\"\")","v":""},null,null,null,null,null,null,null,null,null,null,null,null,null,null,"General Fund",{"$f":"IFERROR(VLOOKUP(C270,Descriptions!B:F,5,FALSE),\"N\")","v":"N"},true,"NTRUE",0,null,{"$f":"IFERROR(VLOOKUP(D270,'Bank and Fund Details'!$B$14:$L$35,11,FALSE),\"N\")","v":"Y"},"NY"]
[null,null,null,"General Fund",null,null,null,null,null,{"$f":"VLOOKUP(D271,'Bank and Fund Details'!$B$15:$D$36,3,FALSE)","v":0},{"$f":"VLOOKUP(D271,'Bank and Fund Details'!$B$15:$C$36,2,FALSE)","v":"Unrestricted"},{"$f":"IFERROR(VLOOKUP(C271,Descriptions!$B$6:$D$92,3,FALSE),\"\")","v":""},null,null,null,null,null,null,null,null,null,null,null,null,null,null,"General Fund",{"$f":"IFERROR(VLOOKUP(C271,Descriptions!B:F,5,FALSE),\"N\")","v":"N"},true,"NTRUE",0,null,{"$f":"IFERROR(VLOOKUP(D271,'Bank and Fund Details'!$B$14:$L$35,11,FALSE),\"N\")","v":"Y"},"NY"]
[null,null,null,"General Fund",null,null,null,null,null,{"$f":"VLOOKUP(D272,'Bank and Fund Details'!$B$15:$D$36,3,FALSE)","v":0},{"$f":"VLOOKUP(D272,'Bank and Fund Details'!$B$15:$C$36,2,FALSE)","v":"Unrestricted"},{"$f":"IFERROR(VLOOKUP(C272,Descriptions!$B$6:$D$92,3,FALSE),\"\")","v":""},null,null,null,null,null,null,null,null,null,null,null,null,null,null,"General Fund",{"$f":"IFERROR(VLOOKUP(C272,Descriptions!B:F,5,FALSE),\"N\")","v":"N"},true,"NTRUE",0,null,{"$f":"IFERROR(VLOOKUP(D272,'Bank and Fund Details'!$B$14:$L$35,11,FALSE),\"N\")","v":"Y"},"NY"]
[null,null,null,"General Fund",null,null,null,null,null,{"$f":"VLOOKUP(D273,'Bank and Fund Details'!$B$15:$D$36,3,FALSE)","v":0},{"$f":"VLOOKUP(D273,'Bank and Fund Details'!$B$15:$C$36,2,FALSE)","v":"Unrestricted"},{"$f":"IFERROR(VLOOKUP(C273,Descriptions!$B$6:$D$92,3,FALSE),\"\")","v":""},null,null,null,null,null,null,null,null,null,null,null,null,null,null,"General Fund",{"$f":"IFERROR(VLOOKUP(C273,Descriptions!B:F,5,FALSE),\"N\")","v":"N"},true,"NTRUE",0,null,{"$f":"IFERROR(VLOOKUP(D273,'Bank and Fund Details'!$B$14:$L$35,11,FALSE),\"N\")","v":"Y"},"NY"]
[null,null,null,"General Fund",null,null,null,null,null,{"$f":"VLOOKUP(D274,'Bank and Fund Details'!$B$15:$D$36,3,FALSE)","v":0},{"$f":"VLOOKUP(D274,'Bank and Fund Details'!$B$15:$C$36,2,FALSE)","v":"Unrestricted"},{"$f":"IFERROR(VLOOKUP(C274,Descriptions!$B$6:$D$92,3,FALSE),\"\")","v":""},null,null,null,null,null,null,null,null,null,null,null,null,null,null,"General Fund",{"$f":"IFERROR(VLOOKUP(C274,Descriptions!B:F,5,FALSE),\"N\")","v":"N"},true,"NTRUE",0,null,{"$f":"IFERROR(VLOOKUP(D274,'Bank and Fund Details'!$B$14:$L$35,11,FALSE),\"N\")","v":"Y"},"NY"]
[null,null,null,"General Fund",null,null,null,null,null,{"$f":"VLOOKUP(D275,'Bank and Fund Details'!$B$15:$D$36,3,FALSE)","v":0},{"$f":"VLOOKUP(D275,'Bank and Fund Details'!$B$15:$C$36,2,FALSE)","v":"Unrestricted"},{"$f":"IFERROR(VLOOKUP(C275,Descriptions!$B$6:$D$92,3,FALSE),\"\")","v":""},null,null,null,null,null,null,null,null,null,null,null,null,null,null,"General Fund",{"$f":"IFERROR(VLOOKUP(C275,Descriptions!B:F,5,FALSE),\"N\")","v":"N"},true,"NTRUE",0,null,{"$f":"IFERROR(VLOOKUP(D275,'Bank and Fund Details'!$B$14:$L$35,11,FALSE),\"N\")","v":"Y"},"NY"]
[null,null,null,"General Fund",null,null,null,null,null,{"$f":"VLOOKUP(D276,'Bank and Fund Details'!$B$15:$D$36,3,FALSE)","v":0},{"$f":"VLOOKUP(D276,'Bank and Fund Details'!$B$15:$C$36,2,FALSE)","v":"Unrestricted"},{"$f":"IFERROR(VLOOKUP(C276,Descriptions!$B$6:$D$92,3,FALSE),\"\")","v":""},null,null,null,null,null,null,null,null,null,null,null,null,null,null,"General Fund",{"$f":"IFERROR(VLOOKUP(C276,Descriptions!B:F,5,FALSE),\"N\")","v":"N"},true,"NTRUE",0,null,{"$f":"IFERROR(VLOOKUP(D276,'Bank and Fund Details'!$B$14:$L$35,11,FALSE),\"N\")","v":"Y"},"NY"]
[null,null,null,"General Fund",null,null,null,null,null,{"$f":"VLOOKUP(D277,'Bank and Fund Details'!$B$15:$D$36,3,FALSE)","v":0},{"$f":"VLOOKUP(D277,'Bank and Fund Details'!$B$15:$C$36,2,FALSE)","v":"Unrestricted"},{"$f":"IFERROR(VLOOKUP(C277,Descriptions!$B$6:$D$92,3,FALSE),\"\")","v":""},null,null,null,null,null,null,null,null,null,null,null,null,null,null,"General Fund",{"$f":"IFERROR(VLOOKUP(C277,Descriptions!B:F,5,FALSE),\"N\")","v":"N"},true,"NTRUE",0,null,{"$f":"IFERROR(VLOOKUP(D277,'Bank and Fund Details'!$B$14:$L$35,11,FALSE),\"N\")","v":"Y"},"NY"]
[null,null,null,"General Fund",null,null,null,null,null,{"$f":"VLOOKUP(D278,'Bank and Fund Details'!$B$15:$D$36,3,FALSE)","v":0},{"$f":"VLOOKUP(D278,'Bank and Fund Details'!$B$15:$C$36,2,FALSE)","v":"Unrestricted"},{"$f":"IFERROR(VLOOKUP(C278,Descriptions!$B$6:$D$92,3,FALSE),\"\")","v":""},null,null,null,null,null,null,null,null,null,null,null,null,null,null,"General Fund",{"$f":"IFERROR(VLOOKUP(C278,Descriptions!B:F,5,FALSE),\"N\")","v":"N"},true,"NTRUE",0,null,{"$f":"IFERROR(VLOOKUP(D278,'Bank and Fund Details'!$B$14:$L$35,11,FALSE),\"N\")","v":"Y"},"NY"]
[null,null,null,"General Fund",null,null,null,null,null,{"$f":"VLOOKUP(D279,'Bank and Fund Details'!$B$15:$D$36,3,FALSE)","v":0},{"$f":"VLOOKUP(D279,'Bank and Fund Details'!$B$15:$C$36,2,FALSE)","v":"Unrestricted"},{"$f":"IFERROR(VLOOKUP(C279,Descriptions!$B$6:$D$92,3,FALSE),\"\")","v":""},null,null,null,null,null,null,null,null,null,null,null,null,null,null,"General Fund",{"$f":"IFERROR(VLOOKUP(C279,Descriptions!B:F,5,FALSE),\"N\")","v":"N"},true,"NTRUE",0,null,{"$f":"IFERROR(VLOOKUP(D279,'Bank and Fund Details'!$B$14:$L$35,11,FALSE),\"N\")","v":"Y"},"NY"]
[null,null,null,"General Fund",null,null,null,null,null,{"$f":"VLOOKUP(D280,'Bank and Fund Details'!$B$15:$D$36,3,FALSE)","v":0},{"$f":"VLOOKUP(D280,'Bank and Fund Details'!$B$15:$C$36,2,FALSE)","v":"Unrestricted"},{"$f":"IFERROR(VLOOKUP(C280,Descriptions!$B$6:$D$92,3,FALSE),\"\")","v":""},null,null,null,null,null,null,null,null,null,null,null,null,null,null,"General Fund",{"$f":"IFERROR(VLOOKUP(C280,Descriptions!B:F,5,FALSE),\"N\")","v":"N"},true,"NTRUE",0,null,{"$f":"IFERROR(VLOOKUP(D280,'Bank and Fund Details'!$B$14:$L$35,11,FALSE),\"N\")","v":"Y"},"NY"]
[null,null,null,"General Fund",null,null,null,null,null,{"$f":"VLOOKUP(D281,'Bank and Fund Details'!$B$15:$D$36,3,FALSE)","v":0},{"$f":"VLOOKUP(D281,'Bank and Fund Details'!$B$15:$C$36,2,FALSE)","v":"Unrestricted"},{"$f":"IFERROR(VLOOKUP(C281,Descriptions!$B$6:$D$92,3,FALSE),\"\")","v":""},null,null,null,null,null,null,null,null,null,null,null,null,null,null,"General Fund",{"$f":"IFERROR(VLOOKUP(C281,Descriptions!B:F,5,FALSE),\"N\")","v":"N"},true,"NTRUE",0,null,{"$f":"IFERROR(VLOOKUP(D281,'Bank and Fund Details'!$B$14:$L$35,11,FALSE),\"N\")","v":"Y"},"NY"]
[null,null,null,"General Fund",null,null,null,null,null,{"$f":"VLOOKUP(D282,'Bank and Fund Details'!$B$15:$D$36,3,FALSE)","v":0},{"$f":"VLOOKUP(D282,'Bank and Fund Details'!$B$15:$C$36,2,FALSE)","v":"Unrestricted"},{"$f":"IFERROR(VLOOKUP(C282,Descriptions!$B$6:$D$92,3,FALSE),\"\")","v":""},null,null,null,null,null,null,null,null,null,null,null,null,null,null,"General Fund",{"$f":"IFERROR(VLOOKUP(C282,Descriptions!B:F,5,FALSE),\"N\")","v":"N"},true,"NTRUE",0,null,{"$f":"IFERROR(VLOOKUP(D282,'Bank and Fund Details'!$B$14:$L$35,11,FALSE),\"N\")","v":"Y"},"NY"]
[null,null,null,"General Fund",null,null,null,null,null,{"$f":"VLOOKUP(D283,'Bank and Fund Details'!$B$15:$D$36,3,FALSE)","v":0},{"$f":"VLOOKUP(D283,'Bank and Fund Details'!$B$15:$C$36,2,FALSE)","v":"Unrestricted"},{"$f":"IFERROR(VLOOKUP(C283,Descriptions!$B$6:$D$92,3,FALSE),\"\")","v":""},null,null,null,null,null,null,null,null,null,null,null,null,null,null,"General Fund",{"$f":"IFERROR(VLOOKUP(C283,Descriptions!B:F,5,FALSE),\"N\")","v":"N"},true,"NTRUE",0,null,{"$f":"IFERROR(VLOOKUP(D283,'Bank and Fund Details'!$B$14:$L$35,11,FALSE),\"N\")","v":"Y"},"NY"]
[null,null,null,"General Fund",null,null,null,null,null,{"$f":"VLOOKUP(D284,'Bank and Fund Details'!$B$15:$D$36,3,FALSE)","v":0},{"$f":"VLOOKUP(D284,'Bank and Fund Details'!$B$15:$C$36,2,FALSE)","v":"Unrestricted"},{"$f":"IFERROR(VLOOKUP(C284,Descriptions!$B$6:$D$92,3,FALSE),\"\")","v":""},null,null,null,null,null,null,null,null,null,null,null,null,null,null,"General Fund",{"$f":"IFERROR(VLOOKUP(C284,Descriptions!B:F,5,FALSE),\"N\")","v":"N"},true,"NTRUE",0,null,{"$f":"IFERROR(VLOOKUP(D284,'Bank and Fund Details'!$B$14:$L$35,11,FALSE),\"N\")","v":"Y"},"NY"]
[null,null,null,"General Fund",null,null,null,null,null,{"$f":"VLOOKUP(D285,'Bank and Fund Details'!$B$15:$D$36,3,FALSE)","v":0},{"$f":"VLOOKUP(D285,'Bank and Fund Details'!$B$15:$C$36,2,FALSE)","v":"Unrestricted"},{"$f":"IFERROR(VLOOKUP(C285,Descriptions!$B$6:$D$92,3,FALSE),\"\")","v":""},null,null,null,null,null,null,null,null,null,null,null,null,null,null,"General Fund",{"$f":"IFERROR(VLOOKUP(C285,Descriptions!B:F,5,FALSE),\"N\")","v":"N"},true,"NTRUE",0,null,{"$f":"IFERROR(VLOOKUP(D285,'Bank and Fund Details'!$B$14:$L$35,11,FALSE),\"N\")","v":"Y"},"NY"]
[null,null,null,"General Fund",null,null,null,null,null,{"$f":"VLOOKUP(D286,'Bank and Fund Details'!$B$15:$D$36,3,FALSE)","v":0},{"$f":"VLOOKUP(D286,'Bank and Fund Details'!$B$15:$C$36,2,FALSE)","v":"Unrestricted"},{"$f":"IFERROR(VLOOKUP(C286,Descriptions!$B$6:$D$92,3,FALSE),\"\")","v":""},null,null,null,null,null,null,null,null,null,null,null,null,null,null,"General Fund",{"$f":"IFERROR(VLOOKUP(C286,Descriptions!B:F,5,FALSE),\"N\")","v":"N"},true,"NTRUE",0,null,{"$f":"IFERROR(VLOOKUP(D286,'Bank and Fund Details'!$B$14:$L$35,11,FALSE),\"N\")","v":"Y"},"NY"]
[null,null,null,"General Fund",null,null,null,null,null,{"$f":"VLOOKUP(D287,'Bank and Fund Details'!$B$15:$D$36,3,FALSE)","v":0},{"$f":"VLOOKUP(D287,'Bank and Fund Details'!$B$15:$C$36,2,FALSE)","v":"Unrestricted"},{"$f":"IFERROR(VLOOKUP(C287,Descriptions!$B$6:$D$92,3,FALSE),\"\")","v":""},null,null,null,null,null,null,null,null,null,null,null,null,null,null,"General Fund",{"$f":"IFERROR(VLOOKUP(C287,Descriptions!B:F,5,FALSE),\"N\")","v":"N"},true,"NTRUE",0,null,{"$f":"IFERROR(VLOOKUP(D287,'Bank and Fund Details'!$B$14:$L$35,11,FALSE),\"N\")","v":"Y"},"NY"]
[null,null,null,"General Fund",null,null,null,null,null,{"$f":"VLOOKUP(D288,'Bank and Fund Details'!$B$15:$D$36,3,FALSE)","v":0},{"$f":"VLOOKUP(D288,'Bank and Fund Details'!$B$15:$C$36,2,FALSE)","v":"Unrestricted"},{"$f":"IFERROR(VLOOKUP(C288,Descriptions!$B$6:$D$92,3,FALSE),\"\")","v":""},null,null,null,null,null,null,null,null,null,null,null,null,null,null,"General Fund",{"$f":"IFERROR(VLOOKUP(C288,Descriptions!B:F,5,FALSE),\"N\")","v":"N"},true,"NTRUE",0,null,{"$f":"IFERROR(VLOOKUP(D288,'Bank and Fund Details'!$B$14:$L$35,11,FALSE),\"N\")","v":"Y"},"NY"]
[null,null,null,"General Fund",null,null,null,null,null,{"$f":"VLOOKUP(D289,'Bank and Fund Details'!$B$15:$D$36,3,FALSE)","v":0},{"$f":"VLOOKUP(D289,'Bank and Fund Details'!$B$15:$C$36,2,FALSE)","v":"Unrestricted"},{"$f":"IFERROR(VLOOKUP(C289,Descriptions!$B$6:$D$92,3,FALSE),\"\")","v":""},null,null,null,null,null,null,null,null,null,null,null,null,null,null,"General Fund",{"$f":"IFERROR(VLOOKUP(C289,Descriptions!B:F,5,FALSE),\"N\")","v":"N"},true,"NTRUE",0,null,{"$f":"IFERROR(VLOOKUP(D289,'Bank and Fund Details'!$B$14:$L$35,11,FALSE),\"N\")","v":"Y"},"NY"]
[null,null,null,"General Fund",null,null,null,null,null,{"$f":"VLOOKUP(D290,'Bank and Fund Details'!$B$15:$D$36,3,FALSE)","v":0},{"$f":"VLOOKUP(D290,'Bank and Fund Details'!$B$15:$C$36,2,FALSE)","v":"Unrestricted"},{"$f":"IFERROR(VLOOKUP(C290,Descriptions!$B$6:$D$92,3,FALSE),\"\")","v":""},null,null,null,null,null,null,null,null,null,null,null,null,null,null,"General Fund",{"$f":"IFERROR(VLOOKUP(C290,Descriptions!B:F,5,FALSE),\"N\")","v":"N"},true,"NTRUE",0,null,{"$f":"IFERROR(VLOOKUP(D290,'Bank and Fund Details'!$B$14:$L$35,11,FALSE),\"N\")","v":"Y"},"NY"]
[null,null,null,"General Fund",null,null,null,null,null,{"$f":"VLOOKUP(D291,'Bank and Fund Details'!$B$15:$D$36,3,FALSE)","v":0},{"$f":"VLOOKUP(D291,'Bank and Fund Details'!$B$15:$C$36,2,FALSE)","v":"Unrestricted"},{"$f":"IFERROR(VLOOKUP(C291,Descriptions!$B$6:$D$92,3,FALSE),\"\")","v":""},null,null,null,null,null,null,null,null,null,null,null,null,null,null,"General Fund",{"$f":"IFERROR(VLOOKUP(C291,Descriptions!B:F,5,FALSE),\"N\")","v":"N"},true,"NTRUE",0,null,{"$f":"IFERROR(VLOOKUP(D291,'Bank and Fund Details'!$B$14:$L$35,11,FALSE),\"N\")","v":"Y"},"NY"]
[null,null,null,"General Fund",null,null,null,null,null,{"$f":"VLOOKUP(D292,'Bank and Fund Details'!$B$15:$D$36,3,FALSE)","v":0},{"$f":"VLOOKUP(D292,'Bank and Fund Details'!$B$15:$C$36,2,FALSE)","v":"Unrestricted"},{"$f":"IFERROR(VLOOKUP(C292,Descriptions!$B$6:$D$92,3,FALSE),\"\")","v":""},null,null,null,null,null,null,null,null,null,null,null,null,null,null,"General Fund",{"$f":"IFERROR(VLOOKUP(C292,Descriptions!B:F,5,FALSE),\"N\")","v":"N"},true,"NTRUE",0,null,{"$f":"IFERROR(VLOOKUP(D292,'Bank and Fund Details'!$B$14:$L$35,11,FALSE),\"N\")","v":"Y"},"NY"]
[null,null,null,"General Fund",null,null,null,null,null,{"$f":"VLOOKUP(D293,'Bank and Fund Details'!$B$15:$D$36,3,FALSE)","v":0},{"$f":"VLOOKUP(D293,'Bank and Fund Details'!$B$15:$C$36,2,FALSE)","v":"Unrestricted"},{"$f":"IFERROR(VLOOKUP(C293,Descriptions!$B$6:$D$92,3,FALSE),\"\")","v":""},null,null,null,null,null,null,null,null,null,null,null,null,null,null,"General Fund",{"$f":"IFERROR(VLOOKUP(C293,Descriptions!B:F,5,FALSE),\"N\")","v":"N"},true,"NTRUE",0,null,{"$f":"IFERROR(VLOOKUP(D293,'Bank and Fund Details'!$B$14:$L$35,11,FALSE),\"N\")","v":"Y"},"NY"]
[null,null,null,"General Fund",null,null,null,null,null,{"$f":"VLOOKUP(D294,'Bank and Fund Details'!$B$15:$D$36,3,FALSE)","v":0},{"$f":"VLOOKUP(D294,'Bank and Fund Details'!$B$15:$C$36,2,FALSE)","v":"Unrestricted"},{"$f":"IFERROR(VLOOKUP(C294,Descriptions!$B$6:$D$92,3,FALSE),\"\")","v":""},null,null,null,null,null,null,null,null,null,null,null,null,null,null,"General Fund",{"$f":"IFERROR(VLOOKUP(C294,Descriptions!B:F,5,FALSE),\"N\")","v":"N"},true,"NTRUE",0,null,{"$f":"IFERROR(VLOOKUP(D294,'Bank and Fund Details'!$B$14:$L$35,11,FALSE),\"N\")","v":"Y"},"NY"]
[null,null,null,"General Fund",null,null,null,null,null,{"$f":"VLOOKUP(D295,'Bank and Fund Details'!$B$15:$D$36,3,FALSE)","v":0},{"$f":"VLOOKUP(D295,'Bank and Fund Details'!$B$15:$C$36,2,FALSE)","v":"Unrestricted"},{"$f":"IFERROR(VLOOKUP(C295,Descriptions!$B$6:$D$92,3,FALSE),\"\")","v":""},null,null,null,null,null,null,null,null,null,null,null,null,null,null,"General Fund",{"$f":"IFERROR(VLOOKUP(C295,Descriptions!B:F,5,FALSE),\"N\")","v":"N"},true,"NTRUE",0,null,{"$f":"IFERROR(VLOOKUP(D295,'Bank and Fund Details'!$B$14:$L$35,11,FALSE),\"N\")","v":"Y"},"NY"]
[null,null,null,"General Fund",null,null,null,null,null,{"$f":"VLOOKUP(D296,'Bank and Fund Details'!$B$15:$D$36,3,FALSE)","v":0},{"$f":"VLOOKUP(D296,'Bank and Fund Details'!$B$15:$C$36,2,FALSE)","v":"Unrestricted"},{"$f":"IFERROR(VLOOKUP(C296,Descriptions!$B$6:$D$92,3,FALSE),\"\")","v":""},null,null,null,null,null,null,null,null,null,null,null,null,null,null,"General Fund",{"$f":"IFERROR(VLOOKUP(C296,Descriptions!B:F,5,FALSE),\"N\")","v":"N"},true,"NTRUE",0,null,{"$f":"IFERROR(VLOOKUP(D296,'Bank and Fund Details'!$B$14:$L$35,11,FALSE),\"N\")","v":"Y"},"NY"]
[null,null,null,"General Fund",null,null,null,null,null,{"$f":"VLOOKUP(D297,'Bank and Fund Details'!$B$15:$D$36,3,FALSE)","v":0},{"$f":"VLOOKUP(D297,'Bank and Fund Details'!$B$15:$C$36,2,FALSE)","v":"Unrestricted"},{"$f":"IFERROR(VLOOKUP(C297,Descriptions!$B$6:$D$92,3,FALSE),\"\")","v":""},null,null,null,null,null,null,null,null,null,null,null,null,null,null,"General Fund",{"$f":"IFERROR(VLOOKUP(C297,Descriptions!B:F,5,FALSE),\"N\")","v":"N"},true,"NTRUE",0,null,{"$f":"IFERROR(VLOOKUP(D297,'Bank and Fund Details'!$B$14:$L$35,11,FALSE),\"N\")","v":"Y"},"NY"]
[null,null,null,"General Fund",null,null,null,null,null,{"$f":"VLOOKUP(D298,'Bank and Fund Details'!$B$15:$D$36,3,FALSE)","v":0},{"$f":"VLOOKUP(D298,'Bank and Fund Details'!$B$15:$C$36,2,FALSE)","v":"Unrestricted"},{"$f":"IFERROR(VLOOKUP(C298,Descriptions!$B$6:$D$92,3,FALSE),\"\")","v":""},null,null,null,null,null,null,null,null,null,null,null,null,null,null,"General Fund",{"$f":"IFERROR(VLOOKUP(C298,Descriptions!B:F,5,FALSE),\"N\")","v":"N"},true,"NTRUE",0,null,{"$f":"IFERROR(VLOOKUP(D298,'Bank and Fund Details'!$B$14:$L$35,11,FALSE),\"N\")","v":"Y"},"NY"]
[null,null,null,"General Fund",null,null,null,null,null,{"$f":"VLOOKUP(D299,'Bank and Fund Details'!$B$15:$D$36,3,FALSE)","v":0},{"$f":"VLOOKUP(D299,'Bank and Fund Details'!$B$15:$C$36,2,FALSE)","v":"Unrestricted"},{"$f":"IFERROR(VLOOKUP(C299,Descriptions!$B$6:$D$92,3,FALSE),\"\")","v":""},null,null,null,null,null,null,null,null,null,null,null,null,null,null,"General Fund",{"$f":"IFERROR(VLOOKUP(C299,Descriptions!B:F,5,FALSE),\"N\")","v":"N"},true,"NTRUE",0,null,{"$f":"IFERROR(VLOOKUP(D299,'Bank and Fund Details'!$B$14:$L$35,11,FALSE),\"N\")","v":"Y"},"NY"]
[null,null,null,"General Fund",null,null,null,null,null,{"$f":"VLOOKUP(D300,'Bank and Fund Details'!$B$15:$D$36,3,FALSE)","v":0},{"$f":"VLOOKUP(D300,'Bank and Fund Details'!$B$15:$C$36,2,FALSE)","v":"Unrestricted"},{"$f":"IFERROR(VLOOKUP(C300,Descriptions!$B$6:$D$92,3,FALSE),\"\")","v":""},null,null,null,null,null,null,null,null,null,null,null,null,null,null,"General Fund",{"$f":"IFERROR(VLOOKUP(C300,Descriptions!B:F,5,FALSE),\"N\")","v":"N"},true,"NTRUE",0,null,{"$f":"IFERROR(VLOOKUP(D300,'Bank and Fund Details'!$B$14:$L$35,11,FALSE),\"N\")","v":"Y"},"NY"]
[null,null,null,"General Fund",null,null,null,null,null,{"$f":"VLOOKUP(D301,'Bank and Fund Details'!$B$15:$D$36,3,FALSE)","v":0},{"$f":"VLOOKUP(D301,'Bank and Fund Details'!$B$15:$C$36,2,FALSE)","v":"Unrestricted"},{"$f":"IFERROR(VLOOKUP(C301,Descriptions!$B$6:$D$92,3,FALSE),\"\")","v":""},null,null,null,null,null,null,null,null,null,null,null,null,null,null,"General Fund",{"$f":"IFERROR(VLOOKUP(C301,Descriptions!B:F,5,FALSE),\"N\")","v":"N"},true,"NTRUE",0,null,{"$f":"IFERROR(VLOOKUP(D301,'Bank and Fund Details'!$B$14:$L$35,11,FALSE),\"N\")","v":"Y"},"NY"]
[null,null,null,"General Fund",null,null,null,null,null,{"$f":"VLOOKUP(D302,'Bank and Fund Details'!$B$15:$D$36,3,FALSE)","v":0},{"$f":"VLOOKUP(D302,'Bank and Fund Details'!$B$15:$C$36,2,FALSE)","v":"Unrestricted"},{"$f":"IFERROR(VLOOKUP(C302,Descriptions!$B$6:$D$92,3,FALSE),\"\")","v":""},null,null,null,null,null,null,null,null,null,null,null,null,null,null,"General Fund",{"$f":"IFERROR(VLOOKUP(C302,Descriptions!B:F,5,FALSE),\"N\")","v":"N"},true,"NTRUE",0,null,{"$f":"IFERROR(VLOOKUP(D302,'Bank and Fund Details'!$B$14:$L$35,11,FALSE),\"N\")","v":"Y"},"NY"]
[null,null,null,"General Fund",null,null,null,null,null,{"$f":"VLOOKUP(D303,'Bank and Fund Details'!$B$15:$D$36,3,FALSE)","v":0},{"$f":"VLOOKUP(D303,'Bank and Fund Details'!$B$15:$C$36,2,FALSE)","v":"Unrestricted"},{"$f":"IFERROR(VLOOKUP(C303,Descriptions!$B$6:$D$92,3,FALSE),\"\")","v":""},null,null,null,null,null,null,null,null,null,null,null,null,null,null,"General Fund",{"$f":"IFERROR(VLOOKUP(C303,Descriptions!B:F,5,FALSE),\"N\")","v":"N"},true,"NTRUE",0,null,{"$f":"IFERROR(VLOOKUP(D303,'Bank and Fund Details'!$B$14:$L$35,11,FALSE),\"N\")","v":"Y"},"NY"]
[null,null,null,"General Fund",null,null,null,null,null,{"$f":"VLOOKUP(D304,'Bank and Fund Details'!$B$15:$D$36,3,FALSE)","v":0},{"$f":"VLOOKUP(D304,'Bank and Fund Details'!$B$15:$C$36,2,FALSE)","v":"Unrestricted"},{"$f":"IFERROR(VLOOKUP(C304,Descriptions!$B$6:$D$92,3,FALSE),\"\")","v":""},null,null,null,null,null,null,null,null,null,null,null,null,null,null,"General Fund",{"$f":"IFERROR(VLOOKUP(C304,Descriptions!B:F,5,FALSE),\"N\")","v":"N"},true,"NTRUE",0,null,{"$f":"IFERROR(VLOOKUP(D304,'Bank and Fund Details'!$B$14:$L$35,11,FALSE),\"N\")","v":"Y"},"NY"]
[null,null,null,"General Fund",null,null,null,null,null,{"$f":"VLOOKUP(D305,'Bank and Fund Details'!$B$15:$D$36,3,FALSE)","v":0},{"$f":"VLOOKUP(D305,'Bank and Fund Details'!$B$15:$C$36,2,FALSE)","v":"Unrestricted"},{"$f":"IFERROR(VLOOKUP(C305,Descriptions!$B$6:$D$92,3,FALSE),\"\")","v":""},null,null,null,null,null,null,null,null,null,null,null,null,null,null,"General Fund",{"$f":"IFERROR(VLOOKUP(C305,Descriptions!B:F,5,FALSE),\"N\")","v":"N"},true,"NTRUE",0,null,{"$f":"IFERROR(VLOOKUP(D305,'Bank and Fund Details'!$B$14:$L$35,11,FALSE),\"N\")","v":"Y"},"NY"]
[null,null,null,"General Fund",null,null,null,null,null,{"$f":"VLOOKUP(D306,'Bank and Fund Details'!$B$15:$D$36,3,FALSE)","v":0},{"$f":"VLOOKUP(D306,'Bank and Fund Details'!$B$15:$C$36,2,FALSE)","v":"Unrestricted"},{"$f":"IFERROR(VLOOKUP(C306,Descriptions!$B$6:$D$92,3,FALSE),\"\")","v":""},null,null,null,null,null,null,null,null,null,null,null,null,null,null,"General Fund",{"$f":"IFERROR(VLOOKUP(C306,Descriptions!B:F,5,FALSE),\"N\")","v":"N"},true,"NTRUE",0,null,{"$f":"IFERROR(VLOOKUP(D306,'Bank and Fund Details'!$B$14:$L$35,11,FALSE),\"N\")","v":"Y"},"NY"]
[null,null,null,"General Fund",null,null,null,null,null,{"$f":"VLOOKUP(D307,'Bank and Fund Details'!$B$15:$D$36,3,FALSE)","v":0},{"$f":"VLOOKUP(D307,'Bank and Fund Details'!$B$15:$C$36,2,FALSE)","v":"Unrestricted"},{"$f":"IFERROR(VLOOKUP(C307,Descriptions!$B$6:$D$92,3,FALSE),\"\")","v":""},null,null,null,null,null,null,null,null,null,null,null,null,null,null,"General Fund",{"$f":"IFERROR(VLOOKUP(C307,Descriptions!B:F,5,FALSE),\"N\")","v":"N"},true,"NTRUE",0,null,{"$f":"IFERROR(VLOOKUP(D307,'Bank and Fund Details'!$B$14:$L$35,11,FALSE),\"N\")","v":"Y"},"NY"]
[null,null,null,"General Fund",null,null,null,null,null,{"$f":"VLOOKUP(D308,'Bank and Fund Details'!$B$15:$D$36,3,FALSE)","v":0},{"$f":"VLOOKUP(D308,'Bank and Fund Details'!$B$15:$C$36,2,FALSE)","v":"Unrestricted"},{"$f":"IFERROR(VLOOKUP(C308,Descriptions!$B$6:$D$92,3,FALSE),\"\")","v":""},null,null,null,null,null,null,null,null,null,null,null,null,null,null,"General Fund",{"$f":"IFERROR(VLOOKUP(C308,Descriptions!B:F,5,FALSE),\"N\")","v":"N"},true,"NTRUE",0,null,{"$f":"IFERROR(VLOOKUP(D308,'Bank and Fund Details'!$B$14:$L$35,11,FALSE),\"N\")","v":"Y"},"NY"]
[null,null,null,"General Fund",null,null,null,null,null,{"$f":"VLOOKUP(D309,'Bank and Fund Details'!$B$15:$D$36,3,FALSE)","v":0},{"$f":"VLOOKUP(D309,'Bank and Fund Details'!$B$15:$C$36,2,FALSE)","v":"Unrestricted"},{"$f":"IFERROR(VLOOKUP(C309,Descriptions!$B$6:$D$92,3,FALSE),\"\")","v":""},null,null,null,null,null,null,null,null,null,null,null,null,null,null,"General Fund",{"$f":"IFERROR(VLOOKUP(C309,Descriptions!B:F,5,FALSE),\"N\")","v":"N"},true,"NTRUE",0,null,{"$f":"IFERROR(VLOOKUP(D309,'Bank and Fund Details'!$B$14:$L$35,11,FALSE),\"N\")","v":"Y"},"NY"]
[null,null,null,"General Fund",null,null,null,null,null,{"$f":"VLOOKUP(D310,'Bank and Fund Details'!$B$15:$D$36,3,FALSE)","v":0},{"$f":"VLOOKUP(D310,'Bank and Fund Details'!$B$15:$C$36,2,FALSE)","v":"Unrestricted"},{"$f":"IFERROR(VLOOKUP(C310,Descriptions!$B$6:$D$92,3,FALSE),\"\")","v":""},null,null,null,null,null,null,null,null,null,null,null,null,null,null,"General Fund",{"$f":"IFERROR(VLOOKUP(C310,Descriptions!B:F,5,FALSE),\"N\")","v":"N"},true,"NTRUE",0,null,{"$f":"IFERROR(VLOOKUP(D310,'Bank and Fund Details'!$B$14:$L$35,11,FALSE),\"N\")","v":"Y"},"NY"]
[null,null,null,"General Fund",null,null,null,null,null,{"$f":"VLOOKUP(D311,'Bank and Fund Details'!$B$15:$D$36,3,FALSE)","v":0},{"$f":"VLOOKUP(D311,'Bank and Fund Details'!$B$15:$C$36,2,FALSE)","v":"Unrestricted"},{"$f":"IFERROR(VLOOKUP(C311,Descriptions!$B$6:$D$92,3,FALSE),\"\")","v":""},null,null,null,null,null,null,null,null,null,null,null,null,null,null,"General Fund",{"$f":"IFERROR(VLOOKUP(C311,Descriptions!B:F,5,FALSE),\"N\")","v":"N"},true,"NTRUE",0,null,{"$f":"IFERROR(VLOOKUP(D311,'Bank and Fund Details'!$B$14:$L$35,11,FALSE),\"N\")","v":"Y"},"NY"]
[null,null,null,"General Fund",null,null,null,null,null,{"$f":"VLOOKUP(D312,'Bank and Fund Details'!$B$15:$D$36,3,FALSE)","v":0},{"$f":"VLOOKUP(D312,'Bank and Fund Details'!$B$15:$C$36,2,FALSE)","v":"Unrestricted"},{"$f":"IFERROR(VLOOKUP(C312,Descriptions!$B$6:$D$92,3,FALSE),\"\")","v":""},null,null,null,null,null,null,null,null,null,null,null,null,null,null,"General Fund",{"$f":"IFERROR(VLOOKUP(C312,Descriptions!B:F,5,FALSE),\"N\")","v":"N"},true,"NTRUE",0,null,{"$f":"IFERROR(VLOOKUP(D312,'Bank and Fund Details'!$B$14:$L$35,11,FALSE),\"N\")","v":"Y"},"NY"]
[null,null,null,"General Fund",null,null,null,null,null,{"$f":"VLOOKUP(D313,'Bank and Fund Details'!$B$15:$D$36,3,FALSE)","v":0},{"$f":"VLOOKUP(D313,'Bank and Fund Details'!$B$15:$C$36,2,FALSE)","v":"Unrestricted"},{"$f":"IFERROR(VLOOKUP(C313,Descriptions!$B$6:$D$92,3,FALSE),\"\")","v":""},null,null,null,null,null,null,null,null,null,null,null,null,null,null,"General Fund",{"$f":"IFERROR(VLOOKUP(C313,Descriptions!B:F,5,FALSE),\"N\")","v":"N"},true,"NTRUE",0,null,{"$f":"IFERROR(VLOOKUP(D313,'Bank and Fund Details'!$B$14:$L$35,11,FALSE),\"N\")","v":"Y"},"NY"]
[null,null,null,"General Fund",null,null,null,null,null,{"$f":"VLOOKUP(D314,'Bank and Fund Details'!$B$15:$D$36,3,FALSE)","v":0},{"$f":"VLOOKUP(D314,'Bank and Fund Details'!$B$15:$C$36,2,FALSE)","v":"Unrestricted"},{"$f":"IFERROR(VLOOKUP(C314,Descriptions!$B$6:$D$92,3,FALSE),\"\")","v":""},null,null,null,null,null,null,null,null,null,null,null,null,null,null,"General Fund",{"$f":"IFERROR(VLOOKUP(C314,Descriptions!B:F,5,FALSE),\"N\")","v":"N"},true,"NTRUE",0,null,{"$f":"IFERROR(VLOOKUP(D314,'Bank and Fund Details'!$B$14:$L$35,11,FALSE),\"N\")","v":"Y"},"NY"]
[null,null,null,"General Fund",null,null,null,null,null,{"$f":"VLOOKUP(D315,'Bank and Fund Details'!$B$15:$D$36,3,FALSE)","v":0},{"$f":"VLOOKUP(D315,'Bank and Fund Details'!$B$15:$C$36,2,FALSE)","v":"Unrestricted"},{"$f":"IFERROR(VLOOKUP(C315,Descriptions!$B$6:$D$92,3,FALSE),\"\")","v":""},null,null,null,null,null,null,null,null,null,null,null,null,null,null,"General Fund",{"$f":"IFERROR(VLOOKUP(C315,Descriptions!B:F,5,FALSE),\"N\")","v":"N"},true,"NTRUE",0,null,{"$f":"IFERROR(VLOOKUP(D315,'Bank and Fund Details'!$B$14:$L$35,11,FALSE),\"N\")","v":"Y"},"NY"]
[null,null,null,"General Fund",null,null,null,null,null,{"$f":"VLOOKUP(D316,'Bank and Fund Details'!$B$15:$D$36,3,FALSE)","v":0},{"$f":"VLOOKUP(D316,'Bank and Fund Details'!$B$15:$C$36,2,FALSE)","v":"Unrestricted"},{"$f":"IFERROR(VLOOKUP(C316,Descriptions!$B$6:$D$92,3,FALSE),\"\")","v":""},null,null,null,null,null,null,null,null,null,null,null,null,null,null,"General Fund",{"$f":"IFERROR(VLOOKUP(C316,Descriptions!B:F,5,FALSE),\"N\")","v":"N"},true,"NTRUE",0,null,{"$f":"IFERROR(VLOOKUP(D316,'Bank and Fund Details'!$B$14:$L$35,11,FALSE),\"N\")","v":"Y"},"NY"]
[null,null,null,"General Fund",null,null,null,null,null,{"$f":"VLOOKUP(D317,'Bank and Fund Details'!$B$15:$D$36,3,FALSE)","v":0},{"$f":"VLOOKUP(D317,'Bank and Fund Details'!$B$15:$C$36,2,FALSE)","v":"Unrestricted"},{"$f":"IFERROR(VLOOKUP(C317,Descriptions!$B$6:$D$92,3,FALSE),\"\")","v":""},null,null,null,null,null,null,null,null,null,null,null,null,null,null,"General Fund",{"$f":"IFERROR(VLOOKUP(C317,Descriptions!B:F,5,FALSE),\"N\")","v":"N"},true,"NTRUE",0,null,{"$f":"IFERROR(VLOOKUP(D317,'Bank and Fund Details'!$B$14:$L$35,11,FALSE),\"N\")","v":"Y"},"NY"]
[null,null,null,"General Fund",null,null,null,null,null,{"$f":"VLOOKUP(D318,'Bank and Fund Details'!$B$15:$D$36,3,FALSE)","v":0},{"$f":"VLOOKUP(D318,'Bank and Fund Details'!$B$15:$C$36,2,FALSE)","v":"Unrestricted"},{"$f":"IFERROR(VLOOKUP(C318,Descriptions!$B$6:$D$92,3,FALSE),\"\")","v":""},null,null,null,null,null,null,null,null,null,null,null,null,null,null,"General Fund",{"$f":"IFERROR(VLOOKUP(C318,Descriptions!B:F,5,FALSE),\"N\")","v":"N"},true,"NTRUE",0,null,{"$f":"IFERROR(VLOOKUP(D318,'Bank and Fund Details'!$B$14:$L$35,11,FALSE),\"N\")","v":"Y"},"NY"]
[null,null,null,"General Fund",null,null,null,null,null,{"$f":"VLOOKUP(D319,'Bank and Fund Details'!$B$15:$D$36,3,FALSE)","v":0},{"$f":"VLOOKUP(D319,'Bank and Fund Details'!$B$15:$C$36,2,FALSE)","v":"Unrestricted"},{"$f":"IFERROR(VLOOKUP(C319,Descriptions!$B$6:$D$92,3,FALSE),\"\")","v":""},null,null,null,null,null,null,null,null,null,null,null,null,null,null,"General Fund",{"$f":"IFERROR(VLOOKUP(C319,Descriptions!B:F,5,FALSE),\"N\")","v":"N"},true,"NTRUE",0,null,{"$f":"IFERROR(VLOOKUP(D319,'Bank and Fund Details'!$B$14:$L$35,11,FALSE),\"N\")","v":"Y"},"NY"]
[null,null,null,"General Fund",null,null,null,null,null,{"$f":"VLOOKUP(D320,'Bank and Fund Details'!$B$15:$D$36,3,FALSE)","v":0},{"$f":"VLOOKUP(D320,'Bank and Fund Details'!$B$15:$C$36,2,FALSE)","v":"Unrestricted"},{"$f":"IFERROR(VLOOKUP(C320,Descriptions!$B$6:$D$92,3,FALSE),\"\")","v":""},null,null,null,null,null,null,null,null,null,null,null,null,null,null,"General Fund",{"$f":"IFERROR(VLOOKUP(C320,Descriptions!B:F,5,FALSE),\"N\")","v":"N"},true,"NTRUE",0,null,{"$f":"IFERROR(VLOOKUP(D320,'Bank and Fund Details'!$B$14:$L$35,11,FALSE),\"N\")","v":"Y"},"NY"]
[null,null,null,"General Fund",null,null,null,null,null,{"$f":"VLOOKUP(D321,'Bank and Fund Details'!$B$15:$D$36,3,FALSE)","v":0},{"$f":"VLOOKUP(D321,'Bank and Fund Details'!$B$15:$C$36,2,FALSE)","v":"Unrestricted"},{"$f":"IFERROR(VLOOKUP(C321,Descriptions!$B$6:$D$92,3,FALSE),\"\")","v":""},null,null,null,null,null,null,null,null,null,null,null,null,null,null,"General Fund",{"$f":"IFERROR(VLOOKUP(C321,Descriptions!B:F,5,FALSE),\"N\")","v":"N"},true,"NTRUE",0,null,{"$f":"IFERROR(VLOOKUP(D321,'Bank and Fund Details'!$B$14:$L$35,11,FALSE),\"N\")","v":"Y"},"NY"]
[null,null,null,"General Fund",null,null,null,null,null,{"$f":"VLOOKUP(D322,'Bank and Fund Details'!$B$15:$D$36,3,FALSE)","v":0},{"$f":"VLOOKUP(D322,'Bank and Fund Details'!$B$15:$C$36,2,FALSE)","v":"Unrestricted"},{"$f":"IFERROR(VLOOKUP(C322,Descriptions!$B$6:$D$92,3,FALSE),\"\")","v":""},null,null,null,null,null,null,null,null,null,null,null,null,null,null,"General Fund",{"$f":"IFERROR(VLOOKUP(C322,Descriptions!B:F,5,FALSE),\"N\")","v":"N"},true,"NTRUE",0,null,{"$f":"IFERROR(VLOOKUP(D322,'Bank and Fund Details'!$B$14:$L$35,11,FALSE),\"N\")","v":"Y"},"NY"]
[null,null,null,"General Fund",null,null,null,null,null,{"$f":"VLOOKUP(D323,'Bank and Fund Details'!$B$15:$D$36,3,FALSE)","v":0},{"$f":"VLOOKUP(D323,'Bank and Fund Details'!$B$15:$C$36,2,FALSE)","v":"Unrestricted"},{"$f":"IFERROR(VLOOKUP(C323,Descriptions!$B$6:$D$92,3,FALSE),\"\")","v":""},null,null,null,null,null,null,null,null,null,null,null,null,null,null,"General Fund",{"$f":"IFERROR(VLOOKUP(C323,Descriptions!B:F,5,FALSE),\"N\")","v":"N"},true,"NTRUE",0,null,{"$f":"IFERROR(VLOOKUP(D323,'Bank and Fund Details'!$B$14:$L$35,11,FALSE),\"N\")","v":"Y"},"NY"]
[null,null,null,"General Fund",null,null,null,null,null,{"$f":"VLOOKUP(D324,'Bank and Fund Details'!$B$15:$D$36,3,FALSE)","v":0},{"$f":"VLOOKUP(D324,'Bank and Fund Details'!$B$15:$C$36,2,FALSE)","v":"Unrestricted"},{"$f":"IFERROR(VLOOKUP(C324,Descriptions!$B$6:$D$92,3,FALSE),\"\")","v":""},null,null,null,null,null,null,null,null,null,null,null,null,null,null,"General Fund",{"$f":"IFERROR(VLOOKUP(C324,Descriptions!B:F,5,FALSE),\"N\")","v":"N"},true,"NTRUE",0,null,{"$f":"IFERROR(VLOOKUP(D324,'Bank and Fund Details'!$B$14:$L$35,11,FALSE),\"N\")","v":"Y"},"NY"]
[null,null,null,"General Fund",null,null,null,null,null,{"$f":"VLOOKUP(D325,'Bank and Fund Details'!$B$15:$D$36,3,FALSE)","v":0},{"$f":"VLOOKUP(D325,'Bank and Fund Details'!$B$15:$C$36,2,FALSE)","v":"Unrestricted"},{"$f":"IFERROR(VLOOKUP(C325,Descriptions!$B$6:$D$92,3,FALSE),\"\")","v":""},null,null,null,null,null,null,null,null,null,null,null,null,null,null,{"$f":"CONCATENATE(C325,D325)","v":"General Fund"},{"$f":"IFERROR(VLOOKUP(C325,Descriptions!B:F,5,FALSE),\"N\")","v":"N"},{"$f":"ISBLANK(C325)","v":true},{"$f":"CONCATENATE(AB325,AC325)","v":"NTRUE"},{"$f":"IF(AD325=\"NFALSE\",1,0)","v":0},null,{"$f":"IFERROR(VLOOKUP(D325,'Bank and Fund Details'!$B$14:$L$35,11,FALSE),\"N\")","v":"Y"},"NY"]
[null,null,null,"General Fund",null,null,null,null,null,{"$f":"VLOOKUP(D326,'Bank and Fund Details'!$B$15:$D$36,3,FALSE)","v":0},{"$f":"VLOOKUP(D326,'Bank and Fund Details'!$B$15:$C$36,2,FALSE)","v":"Unrestricted"},{"$f":"IFERROR(VLOOKUP(C326,Descriptions!$B$6:$D$92,3,FALSE),\"\")","v":""},null,null,null,null,null,null,null,null,null,null,null,null,null,null,"General Fund",{"$f":"IFERROR(VLOOKUP(C326,Descriptions!B:F,5,FALSE),\"N\")","v":"N"},true,"NTRUE",0,null,{"$f":"IFERROR(VLOOKUP(D326,'Bank and Fund Details'!$B$14:$L$35,11,FALSE),\"N\")","v":"Y"},{"$f":"CONCATENATE(AB326,AG326)","v":"NY"}]
[null,null,null,"General Fund",null,null,null,null,null,{"$f":"VLOOKUP(D327,'Bank and Fund Details'!$B$15:$D$36,3,FALSE)","v":0},{"$f":"VLOOKUP(D327,'Bank and Fund Details'!$B$15:$C$36,2,FALSE)","v":"Unrestricted"},{"$f":"IFERROR(VLOOKUP(C327,Descriptions!$B$6:$D$92,3,FALSE),\"\")","v":""},null,null,null,null,null,null,null,null,null,null,null,null,null,null,"General Fund",{"$f":"IFERROR(VLOOKUP(C327,Descriptions!B:F,5,FALSE),\"N\")","v":"N"},true,"NTRUE",0,null,{"$f":"IFERROR(VLOOKUP(D327,'Bank and Fund Details'!$B$14:$L$35,11,FALSE),\"N\")","v":"Y"},"NY"]
[null,null,null,"General Fund",null,null,null,null,null,{"$f":"VLOOKUP(D328,'Bank and Fund Details'!$B$15:$D$36,3,FALSE)","v":0},{"$f":"VLOOKUP(D328,'Bank and Fund Details'!$B$15:$C$36,2,FALSE)","v":"Unrestricted"},{"$f":"IFERROR(VLOOKUP(C328,Descriptions!$B$6:$D$92,3,FALSE),\"\")","v":""},null,null,null,null,null,null,null,null,null,null,null,null,null,null,"General Fund",{"$f":"IFERROR(VLOOKUP(C328,Descriptions!B:F,5,FALSE),\"N\")","v":"N"},true,"NTRUE",0,null,{"$f":"IFERROR(VLOOKUP(D328,'Bank and Fund Details'!$B$14:$L$35,11,FALSE),\"N\")","v":"Y"},"NY"]
[null,null,null,"General Fund",null,null,null,null,null,{"$f":"VLOOKUP(D329,'Bank and Fund Details'!$B$15:$D$36,3,FALSE)","v":0},{"$f":"VLOOKUP(D329,'Bank and Fund Details'!$B$15:$C$36,2,FALSE)","v":"Unrestricted"},{"$f":"IFERROR(VLOOKUP(C329,Descriptions!$B$6:$D$92,3,FALSE),\"\")","v":""},null,null,null,null,null,null,null,null,null,null,null,null,null,null,"General Fund",{"$f":"IFERROR(VLOOKUP(C329,Descriptions!B:F,5,FALSE),\"N\")","v":"N"},true,"NTRUE",0,null,{"$f":"IFERROR(VLOOKUP(D329,'Bank and Fund Details'!$B$14:$L$35,11,FALSE),\"N\")","v":"Y"},"NY"]
[null,null,null,"General Fund",null,null,null,null,null,{"$f":"VLOOKUP(D330,'Bank and Fund Details'!$B$15:$D$36,3,FALSE)","v":0},{"$f":"VLOOKUP(D330,'Bank and Fund Details'!$B$15:$C$36,2,FALSE)","v":"Unrestricted"},{"$f":"IFERROR(VLOOKUP(C330,Descriptions!$B$6:$D$92,3,FALSE),\"\")","v":""},null,null,null,null,null,null,null,null,null,null,null,null,null,null,"General Fund",{"$f":"IFERROR(VLOOKUP(C330,Descriptions!B:F,5,FALSE),\"N\")","v":"N"},true,"NTRUE",0,null,{"$f":"IFERROR(VLOOKUP(D330,'Bank and Fund Details'!$B$14:$L$35,11,FALSE),\"N\")","v":"Y"},"NY"]
[null,null,null,"General Fund",null,null,null,null,null,{"$f":"VLOOKUP(D331,'Bank and Fund Details'!$B$15:$D$36,3,FALSE)","v":0},{"$f":"VLOOKUP(D331,'Bank and Fund Details'!$B$15:$C$36,2,FALSE)","v":"Unrestricted"},{"$f":"IFERROR(VLOOKUP(C331,Descriptions!$B$6:$D$92,3,FALSE),\"\")","v":""},null,null,null,null,null,null,null,null,null,null,null,null,null,null,"General Fund",{"$f":"IFERROR(VLOOKUP(C331,Descriptions!B:F,5,FALSE),\"N\")","v":"N"},true,"NTRUE",0,null,{"$f":"IFERROR(VLOOKUP(D331,'Bank and Fund Details'!$B$14:$L$35,11,FALSE),\"N\")","v":"Y"},"NY"]
[null,null,null,"General Fund",null,null,null,null,null,{"$f":"VLOOKUP(D332,'Bank and Fund Details'!$B$15:$D$36,3,FALSE)","v":0},{"$f":"VLOOKUP(D332,'Bank and Fund Details'!$B$15:$C$36,2,FALSE)","v":"Unrestricted"},{"$f":"IFERROR(VLOOKUP(C332,Descriptions!$B$6:$D$92,3,FALSE),\"\")","v":""},null,null,null,null,null,null,null,null,null,null,null,null,null,null,"General Fund",{"$f":"IFERROR(VLOOKUP(C332,Descriptions!B:F,5,FALSE),\"N\")","v":"N"},true,"NTRUE",0,null,{"$f":"IFERROR(VLOOKUP(D332,'Bank and Fund Details'!$B$14:$L$35,11,FALSE),\"N\")","v":"Y"},"NY"]
[null,null,null,"General Fund",null,null,null,null,null,{"$f":"VLOOKUP(D333,'Bank and Fund Details'!$B$15:$D$36,3,FALSE)","v":0},{"$f":"VLOOKUP(D333,'Bank and Fund Details'!$B$15:$C$36,2,FALSE)","v":"Unrestricted"},{"$f":"IFERROR(VLOOKUP(C333,Descriptions!$B$6:$D$92,3,FALSE),\"\")","v":""},null,null,null,null,null,null,null,null,null,null,null,null,null,null,"General Fund",{"$f":"IFERROR(VLOOKUP(C333,Descriptions!B:F,5,FALSE),\"N\")","v":"N"},true,"NTRUE",0,null,{"$f":"IFERROR(VLOOKUP(D333,'Bank and Fund Details'!$B$14:$L$35,11,FALSE),\"N\")","v":"Y"},"NY"]
[null,null,null,"General Fund",null,null,null,null,null,{"$f":"VLOOKUP(D334,'Bank and Fund Details'!$B$15:$D$36,3,FALSE)","v":0},{"$f":"VLOOKUP(D334,'Bank and Fund Details'!$B$15:$C$36,2,FALSE)","v":"Unrestricted"},{"$f":"IFERROR(VLOOKUP(C334,Descriptions!$B$6:$D$92,3,FALSE),\"\")","v":""},null,null,null,null,null,null,null,null,null,null,null,null,null,null,"General Fund",{"$f":"IFERROR(VLOOKUP(C334,Descriptions!B:F,5,FALSE),\"N\")","v":"N"},true,"NTRUE",0,null,{"$f":"IFERROR(VLOOKUP(D334,'Bank and Fund Details'!$B$14:$L$35,11,FALSE),\"N\")","v":"Y"},"NY"]
[null,null,null,"General Fund",null,null,null,null,null,{"$f":"VLOOKUP(D335,'Bank and Fund Details'!$B$15:$D$36,3,FALSE)","v":0},{"$f":"VLOOKUP(D335,'Bank and Fund Details'!$B$15:$C$36,2,FALSE)","v":"Unrestricted"},{"$f":"IFERROR(VLOOKUP(C335,Descriptions!$B$6:$D$92,3,FALSE),\"\")","v":""},null,null,null,null,null,null,null,null,null,null,null,null,null,null,"General Fund",{"$f":"IFERROR(VLOOKUP(C335,Descriptions!B:F,5,FALSE),\"N\")","v":"N"},true,"NTRUE",0,null,{"$f":"IFERROR(VLOOKUP(D335,'Bank and Fund Details'!$B$14:$L$35,11,FALSE),\"N\")","v":"Y"},"NY"]
[null,null,null,"General Fund",null,null,null,null,null,{"$f":"VLOOKUP(D336,'Bank and Fund Details'!$B$15:$D$36,3,FALSE)","v":0},{"$f":"VLOOKUP(D336,'Bank and Fund Details'!$B$15:$C$36,2,FALSE)","v":"Unrestricted"},{"$f":"IFERROR(VLOOKUP(C336,Descriptions!$B$6:$D$92,3,FALSE),\"\")","v":""},null,null,null,null,null,null,null,null,null,null,null,null,null,null,"General Fund",{"$f":"IFERROR(VLOOKUP(C336,Descriptions!B:F,5,FALSE),\"N\")","v":"N"},true,"NTRUE",0,null,{"$f":"IFERROR(VLOOKUP(D336,'Bank and Fund Details'!$B$14:$L$35,11,FALSE),\"N\")","v":"Y"},"NY"]
[null,null,null,"General Fund",null,null,null,null,null,{"$f":"VLOOKUP(D337,'Bank and Fund Details'!$B$15:$D$36,3,FALSE)","v":0},{"$f":"VLOOKUP(D337,'Bank and Fund Details'!$B$15:$C$36,2,FALSE)","v":"Unrestricted"},{"$f":"IFERROR(VLOOKUP(C337,Descriptions!$B$6:$D$92,3,FALSE),\"\")","v":""},null,null,null,null,null,null,null,null,null,null,null,null,null,null,"General Fund",{"$f":"IFERROR(VLOOKUP(C337,Descriptions!B:F,5,FALSE),\"N\")","v":"N"},true,"NTRUE",0,null,{"$f":"IFERROR(VLOOKUP(D337,'Bank and Fund Details'!$B$14:$L$35,11,FALSE),\"N\")","v":"Y"},"NY"]
[null,null,null,"General Fund",null,null,null,null,null,{"$f":"VLOOKUP(D338,'Bank and Fund Details'!$B$15:$D$36,3,FALSE)","v":0},{"$f":"VLOOKUP(D338,'Bank and Fund Details'!$B$15:$C$36,2,FALSE)","v":"Unrestricted"},{"$f":"IFERROR(VLOOKUP(C338,Descriptions!$B$6:$D$92,3,FALSE),\"\")","v":""},null,null,null,null,null,null,null,null,null,null,null,null,null,null,"General Fund",{"$f":"IFERROR(VLOOKUP(C338,Descriptions!B:F,5,FALSE),\"N\")","v":"N"},true,"NTRUE",0,null,{"$f":"IFERROR(VLOOKUP(D338,'Bank and Fund Details'!$B$14:$L$35,11,FALSE),\"N\")","v":"Y"},"NY"]
[null,null,null,"General Fund",null,null,null,null,null,{"$f":"VLOOKUP(D339,'Bank and Fund Details'!$B$15:$D$36,3,FALSE)","v":0},{"$f":"VLOOKUP(D339,'Bank and Fund Details'!$B$15:$C$36,2,FALSE)","v":"Unrestricted"},{"$f":"IFERROR(VLOOKUP(C339,Descriptions!$B$6:$D$92,3,FALSE),\"\")","v":""},null,null,null,null,null,null,null,null,null,null,null,null,null,null,"General Fund",{"$f":"IFERROR(VLOOKUP(C339,Descriptions!B:F,5,FALSE),\"N\")","v":"N"},true,"NTRUE",0,null,{"$f":"IFERROR(VLOOKUP(D339,'Bank and Fund Details'!$B$14:$L$35,11,FALSE),\"N\")","v":"Y"},"NY"]
[null,null,null,"General Fund",null,null,null,null,null,{"$f":"VLOOKUP(D340,'Bank and Fund Details'!$B$15:$D$36,3,FALSE)","v":0},{"$f":"VLOOKUP(D340,'Bank and Fund Details'!$B$15:$C$36,2,FALSE)","v":"Unrestricted"},{"$f":"IFERROR(VLOOKUP(C340,Descriptions!$B$6:$D$92,3,FALSE),\"\")","v":""},null,null,null,null,null,null,null,null,null,null,null,null,null,null,"General Fund",{"$f":"IFERROR(VLOOKUP(C340,Descriptions!B:F,5,FALSE),\"N\")","v":"N"},true,"NTRUE",0,null,{"$f":"IFERROR(VLOOKUP(D340,'Bank and Fund Details'!$B$14:$L$35,11,FALSE),\"N\")","v":"Y"},"NY"]
[null,null,null,"General Fund",null,null,null,null,null,{"$f":"VLOOKUP(D341,'Bank and Fund Details'!$B$15:$D$36,3,FALSE)","v":0},{"$f":"VLOOKUP(D341,'Bank and Fund Details'!$B$15:$C$36,2,FALSE)","v":"Unrestricted"},{"$f":"IFERROR(VLOOKUP(C341,Descriptions!$B$6:$D$92,3,FALSE),\"\")","v":""},null,null,null,null,null,null,null,null,null,null,null,null,null,null,"General Fund",{"$f":"IFERROR(VLOOKUP(C341,Descriptions!B:F,5,FALSE),\"N\")","v":"N"},true,"NTRUE",0,null,{"$f":"IFERROR(VLOOKUP(D341,'Bank and Fund Details'!$B$14:$L$35,11,FALSE),\"N\")","v":"Y"},"NY"]
[null,null,null,"General Fund",null,null,null,null,null,{"$f":"VLOOKUP(D342,'Bank and Fund Details'!$B$15:$D$36,3,FALSE)","v":0},{"$f":"VLOOKUP(D342,'Bank and Fund Details'!$B$15:$C$36,2,FALSE)","v":"Unrestricted"},{"$f":"IFERROR(VLOOKUP(C342,Descriptions!$B$6:$D$92,3,FALSE),\"\")","v":""},null,null,null,null,null,null,null,null,null,null,null,null,null,null,"General Fund",{"$f":"IFERROR(VLOOKUP(C342,Descriptions!B:F,5,FALSE),\"N\")","v":"N"},true,"NTRUE",0,null,{"$f":"IFERROR(VLOOKUP(D342,'Bank and Fund Details'!$B$14:$L$35,11,FALSE),\"N\")","v":"Y"},"NY"]
[null,null,null,"General Fund",null,null,null,null,null,{"$f":"VLOOKUP(D343,'Bank and Fund Details'!$B$15:$D$36,3,FALSE)","v":0},{"$f":"VLOOKUP(D343,'Bank and Fund Details'!$B$15:$C$36,2,FALSE)","v":"Unrestricted"},{"$f":"IFERROR(VLOOKUP(C343,Descriptions!$B$6:$D$92,3,FALSE),\"\")","v":""},null,null,null,null,null,null,null,null,null,null,null,null,null,null,"General Fund",{"$f":"IFERROR(VLOOKUP(C343,Descriptions!B:F,5,FALSE),\"N\")","v":"N"},true,"NTRUE",0,null,{"$f":"IFERROR(VLOOKUP(D343,'Bank and Fund Details'!$B$14:$L$35,11,FALSE),\"N\")","v":"Y"},"NY"]
[null,null,null,"General Fund",null,null,null,null,null,{"$f":"VLOOKUP(D344,'Bank and Fund Details'!$B$15:$D$36,3,FALSE)","v":0},{"$f":"VLOOKUP(D344,'Bank and Fund Details'!$B$15:$C$36,2,FALSE)","v":"Unrestricted"},{"$f":"IFERROR(VLOOKUP(C344,Descriptions!$B$6:$D$92,3,FALSE),\"\")","v":""},null,null,null,null,null,null,null,null,null,null,null,null,null,null,"General Fund",{"$f":"IFERROR(VLOOKUP(C344,Descriptions!B:F,5,FALSE),\"N\")","v":"N"},true,"NTRUE",0,null,{"$f":"IFERROR(VLOOKUP(D344,'Bank and Fund Details'!$B$14:$L$35,11,FALSE),\"N\")","v":"Y"},"NY"]
[null,null,null,"General Fund",null,null,null,null,null,{"$f":"VLOOKUP(D345,'Bank and Fund Details'!$B$15:$D$36,3,FALSE)","v":0},{"$f":"VLOOKUP(D345,'Bank and Fund Details'!$B$15:$C$36,2,FALSE)","v":"Unrestricted"},{"$f":"IFERROR(VLOOKUP(C345,Descriptions!$B$6:$D$92,3,FALSE),\"\")","v":""},null,null,null,null,null,null,null,null,null,null,null,null,null,null,"General Fund",{"$f":"IFERROR(VLOOKUP(C345,Descriptions!B:F,5,FALSE),\"N\")","v":"N"},true,"NTRUE",0,null,{"$f":"IFERROR(VLOOKUP(D345,'Bank and Fund Details'!$B$14:$L$35,11,FALSE),\"N\")","v":"Y"},"NY"]
[null,null,null,"General Fund",null,null,null,null,null,{"$f":"VLOOKUP(D346,'Bank and Fund Details'!$B$15:$D$36,3,FALSE)","v":0},{"$f":"VLOOKUP(D346,'Bank and Fund Details'!$B$15:$C$36,2,FALSE)","v":"Unrestricted"},{"$f":"IFERROR(VLOOKUP(C346,Descriptions!$B$6:$D$92,3,FALSE),\"\")","v":""},null,null,null,null,null,null,null,null,null,null,null,null,null,null,"General Fund",{"$f":"IFERROR(VLOOKUP(C346,Descriptions!B:F,5,FALSE),\"N\")","v":"N"},true,"NTRUE",0,null,{"$f":"IFERROR(VLOOKUP(D346,'Bank and Fund Details'!$B$14:$L$35,11,FALSE),\"N\")","v":"Y"},"NY"]
[null,null,null,"General Fund",null,null,null,null,null,{"$f":"VLOOKUP(D347,'Bank and Fund Details'!$B$15:$D$36,3,FALSE)","v":0},{"$f":"VLOOKUP(D347,'Bank and Fund Details'!$B$15:$C$36,2,FALSE)","v":"Unrestricted"},{"$f":"IFERROR(VLOOKUP(C347,Descriptions!$B$6:$D$92,3,FALSE),\"\")","v":""},null,null,null,null,null,null,null,null,null,null,null,null,null,null,"General Fund",{"$f":"IFERROR(VLOOKUP(C347,Descriptions!B:F,5,FALSE),\"N\")","v":"N"},true,"NTRUE",0,null,{"$f":"IFERROR(VLOOKUP(D347,'Bank and Fund Details'!$B$14:$L$35,11,FALSE),\"N\")","v":"Y"},"NY"]
[null,null,null,"General Fund",null,null,null,null,null,{"$f":"VLOOKUP(D348,'Bank and Fund Details'!$B$15:$D$36,3,FALSE)","v":0},{"$f":"VLOOKUP(D348,'Bank and Fund Details'!$B$15:$C$36,2,FALSE)","v":"Unrestricted"},{"$f":"IFERROR(VLOOKUP(C348,Descriptions!$B$6:$D$92,3,FALSE),\"\")","v":""},null,null,null,null,null,null,null,null,null,null,null,null,null,null,"General Fund",{"$f":"IFERROR(VLOOKUP(C348,Descriptions!B:F,5,FALSE),\"N\")","v":"N"},true,"NTRUE",0,null,{"$f":"IFERROR(VLOOKUP(D348,'Bank and Fund Details'!$B$14:$L$35,11,FALSE),\"N\")","v":"Y"},"NY"]
[null,null,null,"General Fund",null,null,null,null,null,{"$f":"VLOOKUP(D349,'Bank and Fund Details'!$B$15:$D$36,3,FALSE)","v":0},{"$f":"VLOOKUP(D349,'Bank and Fund Details'!$B$15:$C$36,2,FALSE)","v":"Unrestricted"},{"$f":"IFERROR(VLOOKUP(C349,Descriptions!$B$6:$D$92,3,FALSE),\"\")","v":""},null,null,null,null,null,null,null,null,null,null,null,null,null,null,"General Fund",{"$f":"IFERROR(VLOOKUP(C349,Descriptions!B:F,5,FALSE),\"N\")","v":"N"},true,"NTRUE",0,null,{"$f":"IFERROR(VLOOKUP(D349,'Bank and Fund Details'!$B$14:$L$35,11,FALSE),\"N\")","v":"Y"},"NY"]
[null,null,null,"General Fund",null,null,null,null,null,{"$f":"VLOOKUP(D350,'Bank and Fund Details'!$B$15:$D$36,3,FALSE)","v":0},{"$f":"VLOOKUP(D350,'Bank and Fund Details'!$B$15:$C$36,2,FALSE)","v":"Unrestricted"},{"$f":"IFERROR(VLOOKUP(C350,Descriptions!$B$6:$D$92,3,FALSE),\"\")","v":""},null,null,null,null,null,null,null,null,null,null,null,null,null,null,"General Fund",{"$f":"IFERROR(VLOOKUP(C350,Descriptions!B:F,5,FALSE),\"N\")","v":"N"},true,"NTRUE",0,null,{"$f":"IFERROR(VLOOKUP(D350,'Bank and Fund Details'!$B$14:$L$35,11,FALSE),\"N\")","v":"Y"},"NY"]
[null,null,null,"General Fund",null,null,null,null,null,{"$f":"VLOOKUP(D351,'Bank and Fund Details'!$B$15:$D$36,3,FALSE)","v":0},{"$f":"VLOOKUP(D351,'Bank and Fund Details'!$B$15:$C$36,2,FALSE)","v":"Unrestricted"},{"$f":"IFERROR(VLOOKUP(C351,Descriptions!$B$6:$D$92,3,FALSE),\"\")","v":""},null,null,null,null,null,null,null,null,null,null,null,null,null,null,"General Fund",{"$f":"IFERROR(VLOOKUP(C351,Descriptions!B:F,5,FALSE),\"N\")","v":"N"},true,"NTRUE",0,null,{"$f":"IFERROR(VLOOKUP(D351,'Bank and Fund Details'!$B$14:$L$35,11,FALSE),\"N\")","v":"Y"},"NY"]
[null,null,null,"General Fund",null,null,null,null,null,{"$f":"VLOOKUP(D352,'Bank and Fund Details'!$B$15:$D$36,3,FALSE)","v":0},{"$f":"VLOOKUP(D352,'Bank and Fund Details'!$B$15:$C$36,2,FALSE)","v":"Unrestricted"},{"$f":"IFERROR(VLOOKUP(C352,Descriptions!$B$6:$D$92,3,FALSE),\"\")","v":""},null,null,null,null,null,null,null,null,null,null,null,null,null,null,"General Fund",{"$f":"IFERROR(VLOOKUP(C352,Descriptions!B:F,5,FALSE),\"N\")","v":"N"},true,"NTRUE",0,null,{"$f":"IFERROR(VLOOKUP(D352,'Bank and Fund Details'!$B$14:$L$35,11,FALSE),\"N\")","v":"Y"},"NY"]
[null,null,null,"General Fund",null,null,null,null,null,{"$f":"VLOOKUP(D353,'Bank and Fund Details'!$B$15:$D$36,3,FALSE)","v":0},{"$f":"VLOOKUP(D353,'Bank and Fund Details'!$B$15:$C$36,2,FALSE)","v":"Unrestricted"},{"$f":"IFERROR(VLOOKUP(C353,Descriptions!$B$6:$D$92,3,FALSE),\"\")","v":""},null,null,null,null,null,null,null,null,null,null,null,null,null,null,"General Fund",{"$f":"IFERROR(VLOOKUP(C353,Descriptions!B:F,5,FALSE),\"N\")","v":"N"},true,"NTRUE",0,null,{"$f":"IFERROR(VLOOKUP(D353,'Bank and Fund Details'!$B$14:$L$35,11,FALSE),\"N\")","v":"Y"},"NY"]
[null,null,null,"General Fund",null,null,null,null,null,{"$f":"VLOOKUP(D354,'Bank and Fund Details'!$B$15:$D$36,3,FALSE)","v":0},{"$f":"VLOOKUP(D354,'Bank and Fund Details'!$B$15:$C$36,2,FALSE)","v":"Unrestricted"},{"$f":"IFERROR(VLOOKUP(C354,Descriptions!$B$6:$D$92,3,FALSE),\"\")","v":""},null,null,null,null,null,null,null,null,null,null,null,null,null,null,"General Fund",{"$f":"IFERROR(VLOOKUP(C354,Descriptions!B:F,5,FALSE),\"N\")","v":"N"},true,"NTRUE",0,null,{"$f":"IFERROR(VLOOKUP(D354,'Bank and Fund Details'!$B$14:$L$35,11,FALSE),\"N\")","v":"Y"},"NY"]
[null,null,null,"General Fund",null,null,null,null,null,{"$f":"VLOOKUP(D355,'Bank and Fund Details'!$B$15:$D$36,3,FALSE)","v":0},{"$f":"VLOOKUP(D355,'Bank and Fund Details'!$B$15:$C$36,2,FALSE)","v":"Unrestricted"},{"$f":"IFERROR(VLOOKUP(C355,Descriptions!$B$6:$D$92,3,FALSE),\"\")","v":""},null,null,null,null,null,null,null,null,null,null,null,null,null,null,"General Fund",{"$f":"IFERROR(VLOOKUP(C355,Descriptions!B:F,5,FALSE),\"N\")","v":"N"},true,"NTRUE",0,null,{"$f":"IFERROR(VLOOKUP(D355,'Bank and Fund Details'!$B$14:$L$35,11,FALSE),\"N\")","v":"Y"},"NY"]
[null,null,null,"General Fund",null,null,null,null,null,{"$f":"VLOOKUP(D356,'Bank and Fund Details'!$B$15:$D$36,3,FALSE)","v":0},{"$f":"VLOOKUP(D356,'Bank and Fund Details'!$B$15:$C$36,2,FALSE)","v":"Unrestricted"},{"$f":"IFERROR(VLOOKUP(C356,Descriptions!$B$6:$D$92,3,FALSE),\"\")","v":""},null,null,null,null,null,null,null,null,null,null,null,null,null,null,"General Fund",{"$f":"IFERROR(VLOOKUP(C356,Descriptions!B:F,5,FALSE),\"N\")","v":"N"},true,"NTRUE",0,null,{"$f":"IFERROR(VLOOKUP(D356,'Bank and Fund Details'!$B$14:$L$35,11,FALSE),\"N\")","v":"Y"},"NY"]
[null,null,null,"General Fund",null,null,null,null,null,{"$f":"VLOOKUP(D357,'Bank and Fund Details'!$B$15:$D$36,3,FALSE)","v":0},{"$f":"VLOOKUP(D357,'Bank and Fund Details'!$B$15:$C$36,2,FALSE)","v":"Unrestricted"},{"$f":"IFERROR(VLOOKUP(C357,Descriptions!$B$6:$D$92,3,FALSE),\"\")","v":""},null,null,null,null,null,null,null,null,null,null,null,null,null,null,"General Fund",{"$f":"IFERROR(VLOOKUP(C357,Descriptions!B:F,5,FALSE),\"N\")","v":"N"},true,"NTRUE",0,null,{"$f":"IFERROR(VLOOKUP(D357,'Bank and Fund Details'!$B$14:$L$35,11,FALSE),\"N\")","v":"Y"},"NY"]
[null,null,null,"General Fund",null,null,null,null,null,{"$f":"VLOOKUP(D358,'Bank and Fund Details'!$B$15:$D$36,3,FALSE)","v":0},{"$f":"VLOOKUP(D358,'Bank and Fund Details'!$B$15:$C$36,2,FALSE)","v":"Unrestricted"},{"$f":"IFERROR(VLOOKUP(C358,Descriptions!$B$6:$D$92,3,FALSE),\"\")","v":""},null,null,null,null,null,null,null,null,null,null,null,null,null,null,"General Fund",{"$f":"IFERROR(VLOOKUP(C358,Descriptions!B:F,5,FALSE),\"N\")","v":"N"},true,"NTRUE",0,null,{"$f":"IFERROR(VLOOKUP(D358,'Bank and Fund Details'!$B$14:$L$35,11,FALSE),\"N\")","v":"Y"},"NY"]
[null,null,null,"General Fund",null,null,null,null,null,{"$f":"VLOOKUP(D359,'Bank and Fund Details'!$B$15:$D$36,3,FALSE)","v":0},{"$f":"VLOOKUP(D359,'Bank and Fund Details'!$B$15:$C$36,2,FALSE)","v":"Unrestricted"},{"$f":"IFERROR(VLOOKUP(C359,Descriptions!$B$6:$D$92,3,FALSE),\"\")","v":""},null,null,null,null,null,null,null,null,null,null,null,null,null,null,"General Fund",{"$f":"IFERROR(VLOOKUP(C359,Descriptions!B:F,5,FALSE),\"N\")","v":"N"},true,"NTRUE",0,null,{"$f":"IFERROR(VLOOKUP(D359,'Bank and Fund Details'!$B$14:$L$35,11,FALSE),\"N\")","v":"Y"},"NY"]
[null,null,null,"General Fund",null,null,null,null,null,{"$f":"VLOOKUP(D360,'Bank and Fund Details'!$B$15:$D$36,3,FALSE)","v":0},{"$f":"VLOOKUP(D360,'Bank and Fund Details'!$B$15:$C$36,2,FALSE)","v":"Unrestricted"},{"$f":"IFERROR(VLOOKUP(C360,Descriptions!$B$6:$D$92,3,FALSE),\"\")","v":""},null,null,null,null,null,null,null,null,null,null,null,null,null,null,"General Fund",{"$f":"IFERROR(VLOOKUP(C360,Descriptions!B:F,5,FALSE),\"N\")","v":"N"},true,"NTRUE",0,null,{"$f":"IFERROR(VLOOKUP(D360,'Bank and Fund Details'!$B$14:$L$35,11,FALSE),\"N\")","v":"Y"},"NY"]
[null,null,null,"General Fund",null,null,null,null,null,{"$f":"VLOOKUP(D361,'Bank and Fund Details'!$B$15:$D$36,3,FALSE)","v":0},{"$f":"VLOOKUP(D361,'Bank and Fund Details'!$B$15:$C$36,2,FALSE)","v":"Unrestricted"},{"$f":"IFERROR(VLOOKUP(C361,Descriptions!$B$6:$D$92,3,FALSE),\"\")","v":""},null,null,null,null,null,null,null,null,null,null,null,null,null,null,"General Fund",{"$f":"IFERROR(VLOOKUP(C361,Descriptions!B:F,5,FALSE),\"N\")","v":"N"},true,"NTRUE",0,null,{"$f":"IFERROR(VLOOKUP(D361,'Bank and Fund Details'!$B$14:$L$35,11,FALSE),\"N\")","v":"Y"},"NY"]
[null,null,null,"General Fund",null,null,null,null,null,{"$f":"VLOOKUP(D362,'Bank and Fund Details'!$B$15:$D$36,3,FALSE)","v":0},{"$f":"VLOOKUP(D362,'Bank and Fund Details'!$B$15:$C$36,2,FALSE)","v":"Unrestricted"},{"$f":"IFERROR(VLOOKUP(C362,Descriptions!$B$6:$D$92,3,FALSE),\"\")","v":""},null,null,null,null,null,null,null,null,null,null,null,null,null,null,"General Fund",{"$f":"IFERROR(VLOOKUP(C362,Descriptions!B:F,5,FALSE),\"N\")","v":"N"},true,"NTRUE",0,null,{"$f":"IFERROR(VLOOKUP(D362,'Bank and Fund Details'!$B$14:$L$35,11,FALSE),\"N\")","v":"Y"},"NY"]
[null,null,null,"General Fund",null,null,null,null,null,{"$f":"VLOOKUP(D363,'Bank and Fund Details'!$B$15:$D$36,3,FALSE)","v":0},{"$f":"VLOOKUP(D363,'Bank and Fund Details'!$B$15:$C$36,2,FALSE)","v":"Unrestricted"},{"$f":"IFERROR(VLOOKUP(C363,Descriptions!$B$6:$D$92,3,FALSE),\"\")","v":""},null,null,null,null,null,null,null,null,null,null,null,null,null,null,"General Fund",{"$f":"IFERROR(VLOOKUP(C363,Descriptions!B:F,5,FALSE),\"N\")","v":"N"},true,"NTRUE",0,null,{"$f":"IFERROR(VLOOKUP(D363,'Bank and Fund Details'!$B$14:$L$35,11,FALSE),\"N\")","v":"Y"},"NY"]
[null,null,null,"General Fund",null,null,null,null,null,{"$f":"VLOOKUP(D364,'Bank and Fund Details'!$B$15:$D$36,3,FALSE)","v":0},{"$f":"VLOOKUP(D364,'Bank and Fund Details'!$B$15:$C$36,2,FALSE)","v":"Unrestricted"},{"$f":"IFERROR(VLOOKUP(C364,Descriptions!$B$6:$D$92,3,FALSE),\"\")","v":""},null,null,null,null,null,null,null,null,null,null,null,null,null,null,"General Fund",{"$f":"IFERROR(VLOOKUP(C364,Descriptions!B:F,5,FALSE),\"N\")","v":"N"},true,"NTRUE",0,null,{"$f":"IFERROR(VLOOKUP(D364,'Bank and Fund Details'!$B$14:$L$35,11,FALSE),\"N\")","v":"Y"},"NY"]
[null,null,null,"General Fund",null,null,null,null,null,{"$f":"VLOOKUP(D365,'Bank and Fund Details'!$B$15:$D$36,3,FALSE)","v":0},{"$f":"VLOOKUP(D365,'Bank and Fund Details'!$B$15:$C$36,2,FALSE)","v":"Unrestricted"},{"$f":"IFERROR(VLOOKUP(C365,Descriptions!$B$6:$D$92,3,FALSE),\"\")","v":""},null,null,null,null,null,null,null,null,null,null,null,null,null,null,"General Fund",{"$f":"IFERROR(VLOOKUP(C365,Descriptions!B:F,5,FALSE),\"N\")","v":"N"},true,"NTRUE",0,null,{"$f":"IFERROR(VLOOKUP(D365,'Bank and Fund Details'!$B$14:$L$35,11,FALSE),\"N\")","v":"Y"},"NY"]
[null,null,null,"General Fund",null,null,null,null,null,{"$f":"VLOOKUP(D366,'Bank and Fund Details'!$B$15:$D$36,3,FALSE)","v":0},{"$f":"VLOOKUP(D366,'Bank and Fund Details'!$B$15:$C$36,2,FALSE)","v":"Unrestricted"},{"$f":"IFERROR(VLOOKUP(C366,Descriptions!$B$6:$D$92,3,FALSE),\"\")","v":""},null,null,null,null,null,null,null,null,null,null,null,null,null,null,"General Fund",{"$f":"IFERROR(VLOOKUP(C366,Descriptions!B:F,5,FALSE),\"N\")","v":"N"},true,"NTRUE",0,null,{"$f":"IFERROR(VLOOKUP(D366,'Bank and Fund Details'!$B$14:$L$35,11,FALSE),\"N\")","v":"Y"},"NY"]
[null,null,null,"General Fund",null,null,null,null,null,{"$f":"VLOOKUP(D367,'Bank and Fund Details'!$B$15:$D$36,3,FALSE)","v":0},{"$f":"VLOOKUP(D367,'Bank and Fund Details'!$B$15:$C$36,2,FALSE)","v":"Unrestricted"},{"$f":"IFERROR(VLOOKUP(C367,Descriptions!$B$6:$D$92,3,FALSE),\"\")","v":""},null,null,null,null,null,null,null,null,null,null,null,null,null,null,"General Fund",{"$f":"IFERROR(VLOOKUP(C367,Descriptions!B:F,5,FALSE),\"N\")","v":"N"},true,"NTRUE",0,null,{"$f":"IFERROR(VLOOKUP(D367,'Bank and Fund Details'!$B$14:$L$35,11,FALSE),\"N\")","v":"Y"},"NY"]
[null,null,null,"General Fund",null,null,null,null,null,{"$f":"VLOOKUP(D368,'Bank and Fund Details'!$B$15:$D$36,3,FALSE)","v":0},{"$f":"VLOOKUP(D368,'Bank and Fund Details'!$B$15:$C$36,2,FALSE)","v":"Unrestricted"},{"$f":"IFERROR(VLOOKUP(C368,Descriptions!$B$6:$D$92,3,FALSE),\"\")","v":""},null,null,null,null,null,null,null,null,null,null,null,null,null,null,"General Fund",{"$f":"IFERROR(VLOOKUP(C368,Descriptions!B:F,5,FALSE),\"N\")","v":"N"},true,"NTRUE",0,null,{"$f":"IFERROR(VLOOKUP(D368,'Bank and Fund Details'!$B$14:$L$35,11,FALSE),\"N\")","v":"Y"},"NY"]
[null,null,null,"General Fund",null,null,null,null,null,{"$f":"VLOOKUP(D369,'Bank and Fund Details'!$B$15:$D$36,3,FALSE)","v":0},{"$f":"VLOOKUP(D369,'Bank and Fund Details'!$B$15:$C$36,2,FALSE)","v":"Unrestricted"},{"$f":"IFERROR(VLOOKUP(C369,Descriptions!$B$6:$D$92,3,FALSE),\"\")","v":""},null,null,null,null,null,null,null,null,null,null,null,null,null,null,"General Fund",{"$f":"IFERROR(VLOOKUP(C369,Descriptions!B:F,5,FALSE),\"N\")","v":"N"},true,"NTRUE",0,null,{"$f":"IFERROR(VLOOKUP(D369,'Bank and Fund Details'!$B$14:$L$35,11,FALSE),\"N\")","v":"Y"},"NY"]
[null,null,null,"General Fund",null,null,null,null,null,{"$f":"VLOOKUP(D370,'Bank and Fund Details'!$B$15:$D$36,3,FALSE)","v":0},{"$f":"VLOOKUP(D370,'Bank and Fund Details'!$B$15:$C$36,2,FALSE)","v":"Unrestricted"},{"$f":"IFERROR(VLOOKUP(C370,Descriptions!$B$6:$D$92,3,FALSE),\"\")","v":""},null,null,null,null,null,null,null,null,null,null,null,null,null,null,"General Fund",{"$f":"IFERROR(VLOOKUP(C370,Descriptions!B:F,5,FALSE),\"N\")","v":"N"},true,"NTRUE",0,null,{"$f":"IFERROR(VLOOKUP(D370,'Bank and Fund Details'!$B$14:$L$35,11,FALSE),\"N\")","v":"Y"},"NY"]
[null,null,null,"General Fund",null,null,null,null,null,{"$f":"VLOOKUP(D371,'Bank and Fund Details'!$B$15:$D$36,3,FALSE)","v":0},{"$f":"VLOOKUP(D371,'Bank and Fund Details'!$B$15:$C$36,2,FALSE)","v":"Unrestricted"},{"$f":"IFERROR(VLOOKUP(C371,Descriptions!$B$6:$D$92,3,FALSE),\"\")","v":""},null,null,null,null,null,null,null,null,null,null,null,null,null,null,"General Fund",{"$f":"IFERROR(VLOOKUP(C371,Descriptions!B:F,5,FALSE),\"N\")","v":"N"},true,"NTRUE",0,null,{"$f":"IFERROR(VLOOKUP(D371,'Bank and Fund Details'!$B$14:$L$35,11,FALSE),\"N\")","v":"Y"},"NY"]
[null,null,null,"General Fund",null,null,null,null,null,{"$f":"VLOOKUP(D372,'Bank and Fund Details'!$B$15:$D$36,3,FALSE)","v":0},{"$f":"VLOOKUP(D372,'Bank and Fund Details'!$B$15:$C$36,2,FALSE)","v":"Unrestricted"},{"$f":"IFERROR(VLOOKUP(C372,Descriptions!$B$6:$D$92,3,FALSE),\"\")","v":""},null,null,null,null,null,null,null,null,null,null,null,null,null,null,"General Fund",{"$f":"IFERROR(VLOOKUP(C372,Descriptions!B:F,5,FALSE),\"N\")","v":"N"},true,"NTRUE",0,null,{"$f":"IFERROR(VLOOKUP(D372,'Bank and Fund Details'!$B$14:$L$35,11,FALSE),\"N\")","v":"Y"},"NY"]
[null,null,null,"General Fund",null,null,null,null,null,{"$f":"VLOOKUP(D373,'Bank and Fund Details'!$B$15:$D$36,3,FALSE)","v":0},{"$f":"VLOOKUP(D373,'Bank and Fund Details'!$B$15:$C$36,2,FALSE)","v":"Unrestricted"},{"$f":"IFERROR(VLOOKUP(C373,Descriptions!$B$6:$D$92,3,FALSE),\"\")","v":""},null,null,null,null,null,null,null,null,null,null,null,null,null,null,"General Fund",{"$f":"IFERROR(VLOOKUP(C373,Descriptions!B:F,5,FALSE),\"N\")","v":"N"},true,"NTRUE",0,null,{"$f":"IFERROR(VLOOKUP(D373,'Bank and Fund Details'!$B$14:$L$35,11,FALSE),\"N\")","v":"Y"},"NY"]
[null,null,null,"General Fund",null,null,null,null,null,{"$f":"VLOOKUP(D374,'Bank and Fund Details'!$B$15:$D$36,3,FALSE)","v":0},{"$f":"VLOOKUP(D374,'Bank and Fund Details'!$B$15:$C$36,2,FALSE)","v":"Unrestricted"},{"$f":"IFERROR(VLOOKUP(C374,Descriptions!$B$6:$D$92,3,FALSE),\"\")","v":""},null,null,null,null,null,null,null,null,null,null,null,null,null,null,"General Fund",{"$f":"IFERROR(VLOOKUP(C374,Descriptions!B:F,5,FALSE),\"N\")","v":"N"},true,"NTRUE",0,null,{"$f":"IFERROR(VLOOKUP(D374,'Bank and Fund Details'!$B$14:$L$35,11,FALSE),\"N\")","v":"Y"},"NY"]
[null,null,null,"General Fund",null,null,null,null,null,{"$f":"VLOOKUP(D375,'Bank and Fund Details'!$B$15:$D$36,3,FALSE)","v":0},{"$f":"VLOOKUP(D375,'Bank and Fund Details'!$B$15:$C$36,2,FALSE)","v":"Unrestricted"},{"$f":"IFERROR(VLOOKUP(C375,Descriptions!$B$6:$D$92,3,FALSE),\"\")","v":""},null,null,null,null,null,null,null,null,null,null,null,null,null,null,"General Fund",{"$f":"IFERROR(VLOOKUP(C375,Descriptions!B:F,5,FALSE),\"N\")","v":"N"},true,"NTRUE",0,null,{"$f":"IFERROR(VLOOKUP(D375,'Bank and Fund Details'!$B$14:$L$35,11,FALSE),\"N\")","v":"Y"},"NY"]
[null,null,null,"General Fund",null,null,null,null,null,{"$f":"VLOOKUP(D376,'Bank and Fund Details'!$B$15:$D$36,3,FALSE)","v":0},{"$f":"VLOOKUP(D376,'Bank and Fund Details'!$B$15:$C$36,2,FALSE)","v":"Unrestricted"},{"$f":"IFERROR(VLOOKUP(C376,Descriptions!$B$6:$D$92,3,FALSE),\"\")","v":""},null,null,null,null,null,null,null,null,null,null,null,null,null,null,"General Fund",{"$f":"IFERROR(VLOOKUP(C376,Descriptions!B:F,5,FALSE),\"N\")","v":"N"},true,"NTRUE",0,null,{"$f":"IFERROR(VLOOKUP(D376,'Bank and Fund Details'!$B$14:$L$35,11,FALSE),\"N\")","v":"Y"},"NY"]
[null,null,null,"General Fund",null,null,null,null,null,{"$f":"VLOOKUP(D377,'Bank and Fund Details'!$B$15:$D$36,3,FALSE)","v":0},{"$f":"VLOOKUP(D377,'Bank and Fund Details'!$B$15:$C$36,2,FALSE)","v":"Unrestricted"},{"$f":"IFERROR(VLOOKUP(C377,Descriptions!$B$6:$D$92,3,FALSE),\"\")","v":""},null,null,null,null,null,null,null,null,null,null,null,null,null,null,"General Fund",{"$f":"IFERROR(VLOOKUP(C377,Descriptions!B:F,5,FALSE),\"N\")","v":"N"},true,"NTRUE",0,null,{"$f":"IFERROR(VLOOKUP(D377,'Bank and Fund Details'!$B$14:$L$35,11,FALSE),\"N\")","v":"Y"},"NY"]
[null,null,null,"General Fund",null,null,null,null,null,{"$f":"VLOOKUP(D378,'Bank and Fund Details'!$B$15:$D$36,3,FALSE)","v":0},{"$f":"VLOOKUP(D378,'Bank and Fund Details'!$B$15:$C$36,2,FALSE)","v":"Unrestricted"},{"$f":"IFERROR(VLOOKUP(C378,Descriptions!$B$6:$D$92,3,FALSE),\"\")","v":""},null,null,null,null,null,null,null,null,null,null,null,null,null,null,"General Fund",{"$f":"IFERROR(VLOOKUP(C378,Descriptions!B:F,5,FALSE),\"N\")","v":"N"},true,"NTRUE",0,null,{"$f":"IFERROR(VLOOKUP(D378,'Bank and Fund Details'!$B$14:$L$35,11,FALSE),\"N\")","v":"Y"},"NY"]
[null,null,null,"General Fund",null,null,null,null,null,{"$f":"VLOOKUP(D379,'Bank and Fund Details'!$B$15:$D$36,3,FALSE)","v":0},{"$f":"VLOOKUP(D379,'Bank and Fund Details'!$B$15:$C$36,2,FALSE)","v":"Unrestricted"},{"$f":"IFERROR(VLOOKUP(C379,Descriptions!$B$6:$D$92,3,FALSE),\"\")","v":""},null,null,null,null,null,null,null,null,null,null,null,null,null,null,"General Fund",{"$f":"IFERROR(VLOOKUP(C379,Descriptions!B:F,5,FALSE),\"N\")","v":"N"},true,"NTRUE",0,null,{"$f":"IFERROR(VLOOKUP(D379,'Bank and Fund Details'!$B$14:$L$35,11,FALSE),\"N\")","v":"Y"},"NY"]
[null,null,null,"General Fund",null,null,null,null,null,{"$f":"VLOOKUP(D380,'Bank and Fund Details'!$B$15:$D$36,3,FALSE)","v":0},{"$f":"VLOOKUP(D380,'Bank and Fund Details'!$B$15:$C$36,2,FALSE)","v":"Unrestricted"},{"$f":"IFERROR(VLOOKUP(C380,Descriptions!$B$6:$D$92,3,FALSE),\"\")","v":""},null,null,null,null,null,null,null,null,null,null,null,null,null,null,"General Fund",{"$f":"IFERROR(VLOOKUP(C380,Descriptions!B:F,5,FALSE),\"N\")","v":"N"},true,"NTRUE",0,null,{"$f":"IFERROR(VLOOKUP(D380,'Bank and Fund Details'!$B$14:$L$35,11,FALSE),\"N\")","v":"Y"},"NY"]
[null,null,null,"General Fund",null,null,null,null,null,{"$f":"VLOOKUP(D381,'Bank and Fund Details'!$B$15:$D$36,3,FALSE)","v":0},{"$f":"VLOOKUP(D381,'Bank and Fund Details'!$B$15:$C$36,2,FALSE)","v":"Unrestricted"},{"$f":"IFERROR(VLOOKUP(C381,Descriptions!$B$6:$D$92,3,FALSE),\"\")","v":""},null,null,null,null,null,null,null,null,null,null,null,null,null,null,"General Fund",{"$f":"IFERROR(VLOOKUP(C381,Descriptions!B:F,5,FALSE),\"N\")","v":"N"},true,"NTRUE",0,null,{"$f":"IFERROR(VLOOKUP(D381,'Bank and Fund Details'!$B$14:$L$35,11,FALSE),\"N\")","v":"Y"},"NY"]
[null,null,null,"General Fund",null,null,null,null,null,{"$f":"VLOOKUP(D382,'Bank and Fund Details'!$B$15:$D$36,3,FALSE)","v":0},{"$f":"VLOOKUP(D382,'Bank and Fund Details'!$B$15:$C$36,2,FALSE)","v":"Unrestricted"},{"$f":"IFERROR(VLOOKUP(C382,Descriptions!$B$6:$D$92,3,FALSE),\"\")","v":""},null,null,null,null,null,null,null,null,null,null,null,null,null,null,"General Fund",{"$f":"IFERROR(VLOOKUP(C382,Descriptions!B:F,5,FALSE),\"N\")","v":"N"},true,"NTRUE",0,null,{"$f":"IFERROR(VLOOKUP(D382,'Bank and Fund Details'!$B$14:$L$35,11,FALSE),\"N\")","v":"Y"},"NY"]
[null,null,null,"General Fund",null,null,null,null,null,{"$f":"VLOOKUP(D383,'Bank and Fund Details'!$B$15:$D$36,3,FALSE)","v":0},{"$f":"VLOOKUP(D383,'Bank and Fund Details'!$B$15:$C$36,2,FALSE)","v":"Unrestricted"},{"$f":"IFERROR(VLOOKUP(C383,Descriptions!$B$6:$D$92,3,FALSE),\"\")","v":""},null,null,null,null,null,null,null,null,null,null,null,null,null,null,"General Fund",{"$f":"IFERROR(VLOOKUP(C383,Descriptions!B:F,5,FALSE),\"N\")","v":"N"},true,"NTRUE",0,null,{"$f":"IFERROR(VLOOKUP(D383,'Bank and Fund Details'!$B$14:$L$35,11,FALSE),\"N\")","v":"Y"},"NY"]
[null,null,null,"General Fund",null,null,null,null,null,{"$f":"VLOOKUP(D384,'Bank and Fund Details'!$B$15:$D$36,3,FALSE)","v":0},{"$f":"VLOOKUP(D384,'Bank and Fund Details'!$B$15:$C$36,2,FALSE)","v":"Unrestricted"},{"$f":"IFERROR(VLOOKUP(C384,Descriptions!$B$6:$D$92,3,FALSE),\"\")","v":""},null,null,null,null,null,null,null,null,null,null,null,null,null,null,"General Fund",{"$f":"IFERROR(VLOOKUP(C384,Descriptions!B:F,5,FALSE),\"N\")","v":"N"},true,"NTRUE",0,null,{"$f":"IFERROR(VLOOKUP(D384,'Bank and Fund Details'!$B$14:$L$35,11,FALSE),\"N\")","v":"Y"},"NY"]
[null,null,null,"General Fund",null,null,null,null,null,{"$f":"VLOOKUP(D385,'Bank and Fund Details'!$B$15:$D$36,3,FALSE)","v":0},{"$f":"VLOOKUP(D385,'Bank and Fund Details'!$B$15:$C$36,2,FALSE)","v":"Unrestricted"},{"$f":"IFERROR(VLOOKUP(C385,Descriptions!$B$6:$D$92,3,FALSE),\"\")","v":""},null,null,null,null,null,null,null,null,null,null,null,null,null,null,"General Fund",{"$f":"IFERROR(VLOOKUP(C385,Descriptions!B:F,5,FALSE),\"N\")","v":"N"},true,"NTRUE",0,null,{"$f":"IFERROR(VLOOKUP(D385,'Bank and Fund Details'!$B$14:$L$35,11,FALSE),\"N\")","v":"Y"},"NY"]
[null,null,null,"General Fund",null,null,null,null,null,{"$f":"VLOOKUP(D386,'Bank and Fund Details'!$B$15:$D$36,3,FALSE)","v":0},{"$f":"VLOOKUP(D386,'Bank and Fund Details'!$B$15:$C$36,2,FALSE)","v":"Unrestricted"},{"$f":"IFERROR(VLOOKUP(C386,Descriptions!$B$6:$D$92,3,FALSE),\"\")","v":""},null,null,null,null,null,null,null,null,null,null,null,null,null,null,"General Fund",{"$f":"IFERROR(VLOOKUP(C386,Descriptions!B:F,5,FALSE),\"N\")","v":"N"},true,"NTRUE",0,null,{"$f":"IFERROR(VLOOKUP(D386,'Bank and Fund Details'!$B$14:$L$35,11,FALSE),\"N\")","v":"Y"},"NY"]
[null,null,null,"General Fund",null,null,null,null,null,{"$f":"VLOOKUP(D387,'Bank and Fund Details'!$B$15:$D$36,3,FALSE)","v":0},{"$f":"VLOOKUP(D387,'Bank and Fund Details'!$B$15:$C$36,2,FALSE)","v":"Unrestricted"},{"$f":"IFERROR(VLOOKUP(C387,Descriptions!$B$6:$D$92,3,FALSE),\"\")","v":""},null,null,null,null,null,null,null,null,null,null,null,null,null,null,"General Fund",{"$f":"IFERROR(VLOOKUP(C387,Descriptions!B:F,5,FALSE),\"N\")","v":"N"},true,"NTRUE",0,null,{"$f":"IFERROR(VLOOKUP(D387,'Bank and Fund Details'!$B$14:$L$35,11,FALSE),\"N\")","v":"Y"},"NY"]
[null,null,null,"General Fund",null,null,null,null,null,{"$f":"VLOOKUP(D388,'Bank and Fund Details'!$B$15:$D$36,3,FALSE)","v":0},{"$f":"VLOOKUP(D388,'Bank and Fund Details'!$B$15:$C$36,2,FALSE)","v":"Unrestricted"},{"$f":"IFERROR(VLOOKUP(C388,Descriptions!$B$6:$D$92,3,FALSE),\"\")","v":""},null,null,null,null,null,null,null,null,null,null,null,null,null,null,"General Fund",{"$f":"IFERROR(VLOOKUP(C388,Descriptions!B:F,5,FALSE),\"N\")","v":"N"},true,"NTRUE",0,null,{"$f":"IFERROR(VLOOKUP(D388,'Bank and Fund Details'!$B$14:$L$35,11,FALSE),\"N\")","v":"Y"},"NY"]
[null,null,null,"General Fund",null,null,null,null,null,{"$f":"VLOOKUP(D389,'Bank and Fund Details'!$B$15:$D$36,3,FALSE)","v":0},{"$f":"VLOOKUP(D389,'Bank and Fund Details'!$B$15:$C$36,2,FALSE)","v":"Unrestricted"},{"$f":"IFERROR(VLOOKUP(C389,Descriptions!$B$6:$D$92,3,FALSE),\"\")","v":""},null,null,null,null,null,null,null,null,null,null,null,null,null,null,{"$f":"CONCATENATE(C389,D389)","v":"General Fund"},{"$f":"IFERROR(VLOOKUP(C389,Descriptions!B:F,5,FALSE),\"N\")","v":"N"},{"$f":"ISBLANK(C389)","v":true},{"$f":"CONCATENATE(AB389,AC389)","v":"NTRUE"},{"$f":"IF(AD389=\"NFALSE\",1,0)","v":0},null,{"$f":"IFERROR(VLOOKUP(D389,'Bank and Fund Details'!$B$14:$L$35,11,FALSE),\"N\")","v":"Y"},"NY"]
[null,null,null,"General Fund",null,null,null,null,null,{"$f":"VLOOKUP(D390,'Bank and Fund Details'!$B$15:$D$36,3,FALSE)","v":0},{"$f":"VLOOKUP(D390,'Bank and Fund Details'!$B$15:$C$36,2,FALSE)","v":"Unrestricted"},{"$f":"IFERROR(VLOOKUP(C390,Descriptions!$B$6:$D$92,3,FALSE),\"\")","v":""},null,null,null,null,null,null,null,null,null,null,null,null,null,null,"General Fund",{"$f":"IFERROR(VLOOKUP(C390,Descriptions!B:F,5,FALSE),\"N\")","v":"N"},true,"NTRUE",0,null,{"$f":"IFERROR(VLOOKUP(D390,'Bank and Fund Details'!$B$14:$L$35,11,FALSE),\"N\")","v":"Y"},{"$f":"CONCATENATE(AB390,AG390)","v":"NY"}]
[null,null,null,"General Fund",null,null,null,null,null,{"$f":"VLOOKUP(D391,'Bank and Fund Details'!$B$15:$D$36,3,FALSE)","v":0},{"$f":"VLOOKUP(D391,'Bank and Fund Details'!$B$15:$C$36,2,FALSE)","v":"Unrestricted"},{"$f":"IFERROR(VLOOKUP(C391,Descriptions!$B$6:$D$92,3,FALSE),\"\")","v":""},null,null,null,null,null,null,null,null,null,null,null,null,null,null,"General Fund",{"$f":"IFERROR(VLOOKUP(C391,Descriptions!B:F,5,FALSE),\"N\")","v":"N"},true,"NTRUE",0,null,{"$f":"IFERROR(VLOOKUP(D391,'Bank and Fund Details'!$B$14:$L$35,11,FALSE),\"N\")","v":"Y"},"NY"]
[null,null,null,"General Fund",null,null,null,null,null,{"$f":"VLOOKUP(D392,'Bank and Fund Details'!$B$15:$D$36,3,FALSE)","v":0},{"$f":"VLOOKUP(D392,'Bank and Fund Details'!$B$15:$C$36,2,FALSE)","v":"Unrestricted"},{"$f":"IFERROR(VLOOKUP(C392,Descriptions!$B$6:$D$92,3,FALSE),\"\")","v":""},null,null,null,null,null,null,null,null,null,null,null,null,null,null,"General Fund",{"$f":"IFERROR(VLOOKUP(C392,Descriptions!B:F,5,FALSE),\"N\")","v":"N"},true,"NTRUE",0,null,{"$f":"IFERROR(VLOOKUP(D392,'Bank and Fund Details'!$B$14:$L$35,11,FALSE),\"N\")","v":"Y"},"NY"]
[null,null,null,"General Fund",null,null,null,null,null,{"$f":"VLOOKUP(D393,'Bank and Fund Details'!$B$15:$D$36,3,FALSE)","v":0},{"$f":"VLOOKUP(D393,'Bank and Fund Details'!$B$15:$C$36,2,FALSE)","v":"Unrestricted"},{"$f":"IFERROR(VLOOKUP(C393,Descriptions!$B$6:$D$92,3,FALSE),\"\")","v":""},null,null,null,null,null,null,null,null,null,null,null,null,null,null,"General Fund",{"$f":"IFERROR(VLOOKUP(C393,Descriptions!B:F,5,FALSE),\"N\")","v":"N"},true,"NTRUE",0,null,{"$f":"IFERROR(VLOOKUP(D393,'Bank and Fund Details'!$B$14:$L$35,11,FALSE),\"N\")","v":"Y"},"NY"]
[null,null,null,"General Fund",null,null,null,null,null,{"$f":"VLOOKUP(D394,'Bank and Fund Details'!$B$15:$D$36,3,FALSE)","v":0},{"$f":"VLOOKUP(D394,'Bank and Fund Details'!$B$15:$C$36,2,FALSE)","v":"Unrestricted"},{"$f":"IFERROR(VLOOKUP(C394,Descriptions!$B$6:$D$92,3,FALSE),\"\")","v":""},null,null,null,null,null,null,null,null,null,null,null,null,null,null,"General Fund",{"$f":"IFERROR(VLOOKUP(C394,Descriptions!B:F,5,FALSE),\"N\")","v":"N"},true,"NTRUE",0,null,{"$f":"IFERROR(VLOOKUP(D394,'Bank and Fund Details'!$B$14:$L$35,11,FALSE),\"N\")","v":"Y"},"NY"]
[null,null,null,"General Fund",null,null,null,null,null,{"$f":"VLOOKUP(D395,'Bank and Fund Details'!$B$15:$D$36,3,FALSE)","v":0},{"$f":"VLOOKUP(D395,'Bank and Fund Details'!$B$15:$C$36,2,FALSE)","v":"Unrestricted"},{"$f":"IFERROR(VLOOKUP(C395,Descriptions!$B$6:$D$92,3,FALSE),\"\")","v":""},null,null,null,null,null,null,null,null,null,null,null,null,null,null,"General Fund",{"$f":"IFERROR(VLOOKUP(C395,Descriptions!B:F,5,FALSE),\"N\")","v":"N"},true,"NTRUE",0,null,{"$f":"IFERROR(VLOOKUP(D395,'Bank and Fund Details'!$B$14:$L$35,11,FALSE),\"N\")","v":"Y"},"NY"]
[null,null,null,"General Fund",null,null,null,null,null,{"$f":"VLOOKUP(D396,'Bank and Fund Details'!$B$15:$D$36,3,FALSE)","v":0},{"$f":"VLOOKUP(D396,'Bank and Fund Details'!$B$15:$C$36,2,FALSE)","v":"Unrestricted"},{"$f":"IFERROR(VLOOKUP(C396,Descriptions!$B$6:$D$92,3,FALSE),\"\")","v":""},null,null,null,null,null,null,null,null,null,null,null,null,null,null,"General Fund",{"$f":"IFERROR(VLOOKUP(C396,Descriptions!B:F,5,FALSE),\"N\")","v":"N"},true,"NTRUE",0,null,{"$f":"IFERROR(VLOOKUP(D396,'Bank and Fund Details'!$B$14:$L$35,11,FALSE),\"N\")","v":"Y"},"NY"]
[null,null,null,"General Fund",null,null,null,null,null,{"$f":"VLOOKUP(D397,'Bank and Fund Details'!$B$15:$D$36,3,FALSE)","v":0},{"$f":"VLOOKUP(D397,'Bank and Fund Details'!$B$15:$C$36,2,FALSE)","v":"Unrestricted"},{"$f":"IFERROR(VLOOKUP(C397,Descriptions!$B$6:$D$92,3,FALSE),\"\")","v":""},null,null,null,null,null,null,null,null,null,null,null,null,null,null,"General Fund",{"$f":"IFERROR(VLOOKUP(C397,Descriptions!B:F,5,FALSE),\"N\")","v":"N"},true,"NTRUE",0,null,{"$f":"IFERROR(VLOOKUP(D397,'Bank and Fund Details'!$B$14:$L$35,11,FALSE),\"N\")","v":"Y"},"NY"]
[null,null,null,"General Fund",null,null,null,null,null,{"$f":"VLOOKUP(D398,'Bank and Fund Details'!$B$15:$D$36,3,FALSE)","v":0},{"$f":"VLOOKUP(D398,'Bank and Fund Details'!$B$15:$C$36,2,FALSE)","v":"Unrestricted"},{"$f":"IFERROR(VLOOKUP(C398,Descriptions!$B$6:$D$92,3,FALSE),\"\")","v":""},null,null,null,null,null,null,null,null,null,null,null,null,null,null,"General Fund",{"$f":"IFERROR(VLOOKUP(C398,Descriptions!B:F,5,FALSE),\"N\")","v":"N"},true,"NTRUE",0,null,{"$f":"IFERROR(VLOOKUP(D398,'Bank and Fund Details'!$B$14:$L$35,11,FALSE),\"N\")","v":"Y"},"NY"]
[null,null,null,"General Fund",null,null,null,null,null,{"$f":"VLOOKUP(D399,'Bank and Fund Details'!$B$15:$D$36,3,FALSE)","v":0},{"$f":"VLOOKUP(D399,'Bank and Fund Details'!$B$15:$C$36,2,FALSE)","v":"Unrestricted"},{"$f":"IFERROR(VLOOKUP(C399,Descriptions!$B$6:$D$92,3,FALSE),\"\")","v":""},null,null,null,null,null,null,null,null,null,null,null,null,null,null,"General Fund",{"$f":"IFERROR(VLOOKUP(C399,Descriptions!B:F,5,FALSE),\"N\")","v":"N"},true,"NTRUE",0,null,{"$f":"IFERROR(VLOOKUP(D399,'Bank and Fund Details'!$B$14:$L$35,11,FALSE),\"N\")","v":"Y"},"NY"]
[null,null,null,"General Fund",null,null,null,null,null,{"$f":"VLOOKUP(D400,'Bank and Fund Details'!$B$15:$D$36,3,FALSE)","v":0},{"$f":"VLOOKUP(D400,'Bank and Fund Details'!$B$15:$C$36,2,FALSE)","v":"Unrestricted"},{"$f":"IFERROR(VLOOKUP(C400,Descriptions!$B$6:$D$92,3,FALSE),\"\")","v":""},null,null,null,null,null,null,null,null,null,null,null,null,null,null,"General Fund",{"$f":"IFERROR(VLOOKUP(C400,Descriptions!B:F,5,FALSE),\"N\")","v":"N"},true,"NTRUE",0,null,{"$f":"IFERROR(VLOOKUP(D400,'Bank and Fund Details'!$B$14:$L$35,11,FALSE),\"N\")","v":"Y"},"NY"]
[null,null,null,"General Fund",null,null,null,null,null,{"$f":"VLOOKUP(D401,'Bank and Fund Details'!$B$15:$D$36,3,FALSE)","v":0},{"$f":"VLOOKUP(D401,'Bank and Fund Details'!$B$15:$C$36,2,FALSE)","v":"Unrestricted"},{"$f":"IFERROR(VLOOKUP(C401,Descriptions!$B$6:$D$92,3,FALSE),\"\")","v":""},null,null,null,null,null,null,null,null,null,null,null,null,null,null,"General Fund",{"$f":"IFERROR(VLOOKUP(C401,Descriptions!B:F,5,FALSE),\"N\")","v":"N"},true,"NTRUE",0,null,{"$f":"IFERROR(VLOOKUP(D401,'Bank and Fund Details'!$B$14:$L$35,11,FALSE),\"N\")","v":"Y"},"NY"]
[null,null,null,"General Fund",null,null,null,null,null,{"$f":"VLOOKUP(D402,'Bank and Fund Details'!$B$15:$D$36,3,FALSE)","v":0},{"$f":"VLOOKUP(D402,'Bank and Fund Details'!$B$15:$C$36,2,FALSE)","v":"Unrestricted"},{"$f":"IFERROR(VLOOKUP(C402,Descriptions!$B$6:$D$92,3,FALSE),\"\")","v":""},null,null,null,null,null,null,null,null,null,null,null,null,null,null,"General Fund",{"$f":"IFERROR(VLOOKUP(C402,Descriptions!B:F,5,FALSE),\"N\")","v":"N"},true,"NTRUE",0,null,{"$f":"IFERROR(VLOOKUP(D402,'Bank and Fund Details'!$B$14:$L$35,11,FALSE),\"N\")","v":"Y"},"NY"]
[null,null,null,"General Fund",null,null,null,null,null,{"$f":"VLOOKUP(D403,'Bank and Fund Details'!$B$15:$D$36,3,FALSE)","v":0},{"$f":"VLOOKUP(D403,'Bank and Fund Details'!$B$15:$C$36,2,FALSE)","v":"Unrestricted"},{"$f":"IFERROR(VLOOKUP(C403,Descriptions!$B$6:$D$92,3,FALSE),\"\")","v":""},null,null,null,null,null,null,null,null,null,null,null,null,null,null,"General Fund",{"$f":"IFERROR(VLOOKUP(C403,Descriptions!B:F,5,FALSE),\"N\")","v":"N"},true,"NTRUE",0,null,{"$f":"IFERROR(VLOOKUP(D403,'Bank and Fund Details'!$B$14:$L$35,11,FALSE),\"N\")","v":"Y"},"NY"]
[null,null,null,"General Fund",null,null,null,null,null,{"$f":"VLOOKUP(D404,'Bank and Fund Details'!$B$15:$D$36,3,FALSE)","v":0},{"$f":"VLOOKUP(D404,'Bank and Fund Details'!$B$15:$C$36,2,FALSE)","v":"Unrestricted"},{"$f":"IFERROR(VLOOKUP(C404,Descriptions!$B$6:$D$92,3,FALSE),\"\")","v":""},null,null,null,null,null,null,null,null,null,null,null,null,null,null,"General Fund",{"$f":"IFERROR(VLOOKUP(C404,Descriptions!B:F,5,FALSE),\"N\")","v":"N"},true,"NTRUE",0,null,{"$f":"IFERROR(VLOOKUP(D404,'Bank and Fund Details'!$B$14:$L$35,11,FALSE),\"N\")","v":"Y"},"NY"]
[null,null,null,"General Fund",null,null,null,null,null,{"$f":"VLOOKUP(D405,'Bank and Fund Details'!$B$15:$D$36,3,FALSE)","v":0},{"$f":"VLOOKUP(D405,'Bank and Fund Details'!$B$15:$C$36,2,FALSE)","v":"Unrestricted"},{"$f":"IFERROR(VLOOKUP(C405,Descriptions!$B$6:$D$92,3,FALSE),\"\")","v":""},null,null,null,null,null,null,null,null,null,null,null,null,null,null,"General Fund",{"$f":"IFERROR(VLOOKUP(C405,Descriptions!B:F,5,FALSE),\"N\")","v":"N"},true,"NTRUE",0,null,{"$f":"IFERROR(VLOOKUP(D405,'Bank and Fund Details'!$B$14:$L$35,11,FALSE),\"N\")","v":"Y"},"NY"]
[null,null,null,"General Fund",null,null,null,null,null,{"$f":"VLOOKUP(D406,'Bank and Fund Details'!$B$15:$D$36,3,FALSE)","v":0},{"$f":"VLOOKUP(D406,'Bank and Fund Details'!$B$15:$C$36,2,FALSE)","v":"Unrestricted"},{"$f":"IFERROR(VLOOKUP(C406,Descriptions!$B$6:$D$92,3,FALSE),\"\")","v":""},null,null,null,null,null,null,null,null,null,null,null,null,null,null,"General Fund",{"$f":"IFERROR(VLOOKUP(C406,Descriptions!B:F,5,FALSE),\"N\")","v":"N"},true,"NTRUE",0,null,{"$f":"IFERROR(VLOOKUP(D406,'Bank and Fund Details'!$B$14:$L$35,11,FALSE),\"N\")","v":"Y"},"NY"]
[null,null,null,"General Fund",null,null,null,null,null,{"$f":"VLOOKUP(D407,'Bank and Fund Details'!$B$15:$D$36,3,FALSE)","v":0},{"$f":"VLOOKUP(D407,'Bank and Fund Details'!$B$15:$C$36,2,FALSE)","v":"Unrestricted"},{"$f":"IFERROR(VLOOKUP(C407,Descriptions!$B$6:$D$92,3,FALSE),\"\")","v":""},null,null,null,null,null,null,null,null,null,null,null,null,null,null,"General Fund",{"$f":"IFERROR(VLOOKUP(C407,Descriptions!B:F,5,FALSE),\"N\")","v":"N"},true,"NTRUE",0,null,{"$f":"IFERROR(VLOOKUP(D407,'Bank and Fund Details'!$B$14:$L$35,11,FALSE),\"N\")","v":"Y"},"NY"]
[null,null,null,"General Fund",null,null,null,null,null,{"$f":"VLOOKUP(D408,'Bank and Fund Details'!$B$15:$D$36,3,FALSE)","v":0},{"$f":"VLOOKUP(D408,'Bank and Fund Details'!$B$15:$C$36,2,FALSE)","v":"Unrestricted"},{"$f":"IFERROR(VLOOKUP(C408,Descriptions!$B$6:$D$92,3,FALSE),\"\")","v":""},null,null,null,null,null,null,null,null,null,null,null,null,null,null,"General Fund",{"$f":"IFERROR(VLOOKUP(C408,Descriptions!B:F,5,FALSE),\"N\")","v":"N"},true,"NTRUE",0,null,{"$f":"IFERROR(VLOOKUP(D408,'Bank and Fund Details'!$B$14:$L$35,11,FALSE),\"N\")","v":"Y"},"NY"]
[null,null,null,"General Fund",null,null,null,null,null,{"$f":"VLOOKUP(D409,'Bank and Fund Details'!$B$15:$D$36,3,FALSE)","v":0},{"$f":"VLOOKUP(D409,'Bank and Fund Details'!$B$15:$C$36,2,FALSE)","v":"Unrestricted"},{"$f":"IFERROR(VLOOKUP(C409,Descriptions!$B$6:$D$92,3,FALSE),\"\")","v":""},null,null,null,null,null,null,null,null,null,null,null,null,null,null,"General Fund",{"$f":"IFERROR(VLOOKUP(C409,Descriptions!B:F,5,FALSE),\"N\")","v":"N"},true,"NTRUE",0,null,{"$f":"IFERROR(VLOOKUP(D409,'Bank and Fund Details'!$B$14:$L$35,11,FALSE),\"N\")","v":"Y"},"NY"]
[null,null,null,"General Fund",null,null,null,null,null,{"$f":"VLOOKUP(D410,'Bank and Fund Details'!$B$15:$D$36,3,FALSE)","v":0},{"$f":"VLOOKUP(D410,'Bank and Fund Details'!$B$15:$C$36,2,FALSE)","v":"Unrestricted"},{"$f":"IFERROR(VLOOKUP(C410,Descriptions!$B$6:$D$92,3,FALSE),\"\")","v":""},null,null,null,null,null,null,null,null,null,null,null,null,null,null,"General Fund",{"$f":"IFERROR(VLOOKUP(C410,Descriptions!B:F,5,FALSE),\"N\")","v":"N"},true,"NTRUE",0,null,{"$f":"IFERROR(VLOOKUP(D410,'Bank and Fund Details'!$B$14:$L$35,11,FALSE),\"N\")","v":"Y"},"NY"]
[null,null,null,"General Fund",null,null,null,null,null,{"$f":"VLOOKUP(D411,'Bank and Fund Details'!$B$15:$D$36,3,FALSE)","v":0},{"$f":"VLOOKUP(D411,'Bank and Fund Details'!$B$15:$C$36,2,FALSE)","v":"Unrestricted"},{"$f":"IFERROR(VLOOKUP(C411,Descriptions!$B$6:$D$92,3,FALSE),\"\")","v":""},null,null,null,null,null,null,null,null,null,null,null,null,null,null,"General Fund",{"$f":"IFERROR(VLOOKUP(C411,Descriptions!B:F,5,FALSE),\"N\")","v":"N"},true,"NTRUE",0,null,{"$f":"IFERROR(VLOOKUP(D411,'Bank and Fund Details'!$B$14:$L$35,11,FALSE),\"N\")","v":"Y"},"NY"]
[null,null,null,"General Fund",null,null,null,null,null,{"$f":"VLOOKUP(D412,'Bank and Fund Details'!$B$15:$D$36,3,FALSE)","v":0},{"$f":"VLOOKUP(D412,'Bank and Fund Details'!$B$15:$C$36,2,FALSE)","v":"Unrestricted"},{"$f":"IFERROR(VLOOKUP(C412,Descriptions!$B$6:$D$92,3,FALSE),\"\")","v":""},null,null,null,null,null,null,null,null,null,null,null,null,null,null,"General Fund",{"$f":"IFERROR(VLOOKUP(C412,Descriptions!B:F,5,FALSE),\"N\")","v":"N"},true,"NTRUE",0,null,{"$f":"IFERROR(VLOOKUP(D412,'Bank and Fund Details'!$B$14:$L$35,11,FALSE),\"N\")","v":"Y"},"NY"]
[null,null,null,"General Fund",null,null,null,null,null,{"$f":"VLOOKUP(D413,'Bank and Fund Details'!$B$15:$D$36,3,FALSE)","v":0},{"$f":"VLOOKUP(D413,'Bank and Fund Details'!$B$15:$C$36,2,FALSE)","v":"Unrestricted"},{"$f":"IFERROR(VLOOKUP(C413,Descriptions!$B$6:$D$92,3,FALSE),\"\")","v":""},null,null,null,null,null,null,null,null,null,null,null,null,null,null,"General Fund",{"$f":"IFERROR(VLOOKUP(C413,Descriptions!B:F,5,FALSE),\"N\")","v":"N"},true,"NTRUE",0,null,{"$f":"IFERROR(VLOOKUP(D413,'Bank and Fund Details'!$B$14:$L$35,11,FALSE),\"N\")","v":"Y"},"NY"]
[null,null,null,"General Fund",null,null,null,null,null,{"$f":"VLOOKUP(D414,'Bank and Fund Details'!$B$15:$D$36,3,FALSE)","v":0},{"$f":"VLOOKUP(D414,'Bank and Fund Details'!$B$15:$C$36,2,FALSE)","v":"Unrestricted"},{"$f":"IFERROR(VLOOKUP(C414,Descriptions!$B$6:$D$92,3,FALSE),\"\")","v":""},null,null,null,null,null,null,null,null,null,null,null,null,null,null,"General Fund",{"$f":"IFERROR(VLOOKUP(C414,Descriptions!B:F,5,FALSE),\"N\")","v":"N"},true,"NTRUE",0,null,{"$f":"IFERROR(VLOOKUP(D414,'Bank and Fund Details'!$B$14:$L$35,11,FALSE),\"N\")","v":"Y"},"NY"]
[null,null,null,"General Fund",null,null,null,null,null,{"$f":"VLOOKUP(D415,'Bank and Fund Details'!$B$15:$D$36,3,FALSE)","v":0},{"$f":"VLOOKUP(D415,'Bank and Fund Details'!$B$15:$C$36,2,FALSE)","v":"Unrestricted"},{"$f":"IFERROR(VLOOKUP(C415,Descriptions!$B$6:$D$92,3,FALSE),\"\")","v":""},null,null,null,null,null,null,null,null,null,null,null,null,null,null,"General Fund",{"$f":"IFERROR(VLOOKUP(C415,Descriptions!B:F,5,FALSE),\"N\")","v":"N"},true,"NTRUE",0,null,{"$f":"IFERROR(VLOOKUP(D415,'Bank and Fund Details'!$B$14:$L$35,11,FALSE),\"N\")","v":"Y"},"NY"]
[null,null,null,"General Fund",null,null,null,null,null,{"$f":"VLOOKUP(D416,'Bank and Fund Details'!$B$15:$D$36,3,FALSE)","v":0},{"$f":"VLOOKUP(D416,'Bank and Fund Details'!$B$15:$C$36,2,FALSE)","v":"Unrestricted"},{"$f":"IFERROR(VLOOKUP(C416,Descriptions!$B$6:$D$92,3,FALSE),\"\")","v":""},null,null,null,null,null,null,null,null,null,null,null,null,null,null,"General Fund",{"$f":"IFERROR(VLOOKUP(C416,Descriptions!B:F,5,FALSE),\"N\")","v":"N"},true,"NTRUE",0,null,{"$f":"IFERROR(VLOOKUP(D416,'Bank and Fund Details'!$B$14:$L$35,11,FALSE),\"N\")","v":"Y"},"NY"]
[null,null,null,"General Fund",null,null,null,null,null,{"$f":"VLOOKUP(D417,'Bank and Fund Details'!$B$15:$D$36,3,FALSE)","v":0},{"$f":"VLOOKUP(D417,'Bank and Fund Details'!$B$15:$C$36,2,FALSE)","v":"Unrestricted"},{"$f":"IFERROR(VLOOKUP(C417,Descriptions!$B$6:$D$92,3,FALSE),\"\")","v":""},null,null,null,null,null,null,null,null,null,null,null,null,null,null,"General Fund",{"$f":"IFERROR(VLOOKUP(C417,Descriptions!B:F,5,FALSE),\"N\")","v":"N"},true,"NTRUE",0,null,{"$f":"IFERROR(VLOOKUP(D417,'Bank and Fund Details'!$B$14:$L$35,11,FALSE),\"N\")","v":"Y"},"NY"]
[null,null,null,"General Fund",null,null,null,null,null,{"$f":"VLOOKUP(D418,'Bank and Fund Details'!$B$15:$D$36,3,FALSE)","v":0},{"$f":"VLOOKUP(D418,'Bank and Fund Details'!$B$15:$C$36,2,FALSE)","v":"Unrestricted"},{"$f":"IFERROR(VLOOKUP(C418,Descriptions!$B$6:$D$92,3,FALSE),\"\")","v":""},null,null,null,null,null,null,null,null,null,null,null,null,null,null,"General Fund",{"$f":"IFERROR(VLOOKUP(C418,Descriptions!B:F,5,FALSE),\"N\")","v":"N"},true,"NTRUE",0,null,{"$f":"IFERROR(VLOOKUP(D418,'Bank and Fund Details'!$B$14:$L$35,11,FALSE),\"N\")","v":"Y"},"NY"]
[null,null,null,"General Fund",null,null,null,null,null,{"$f":"VLOOKUP(D419,'Bank and Fund Details'!$B$15:$D$36,3,FALSE)","v":0},{"$f":"VLOOKUP(D419,'Bank and Fund Details'!$B$15:$C$36,2,FALSE)","v":"Unrestricted"},{"$f":"IFERROR(VLOOKUP(C419,Descriptions!$B$6:$D$92,3,FALSE),\"\")","v":""},null,null,null,null,null,null,null,null,null,null,null,null,null,null,"General Fund",{"$f":"IFERROR(VLOOKUP(C419,Descriptions!B:F,5,FALSE),\"N\")","v":"N"},true,"NTRUE",0,null,{"$f":"IFERROR(VLOOKUP(D419,'Bank and Fund Details'!$B$14:$L$35,11,FALSE),\"N\")","v":"Y"},"NY"]
[null,null,null,"General Fund",null,null,null,null,null,{"$f":"VLOOKUP(D420,'Bank and Fund Details'!$B$15:$D$36,3,FALSE)","v":0},{"$f":"VLOOKUP(D420,'Bank and Fund Details'!$B$15:$C$36,2,FALSE)","v":"Unrestricted"},{"$f":"IFERROR(VLOOKUP(C420,Descriptions!$B$6:$D$92,3,FALSE),\"\")","v":""},null,null,null,null,null,null,null,null,null,null,null,null,null,null,"General Fund",{"$f":"IFERROR(VLOOKUP(C420,Descriptions!B:F,5,FALSE),\"N\")","v":"N"},true,"NTRUE",0,null,{"$f":"IFERROR(VLOOKUP(D420,'Bank and Fund Details'!$B$14:$L$35,11,FALSE),\"N\")","v":"Y"},"NY"]
[null,null,null,"General Fund",null,null,null,null,null,{"$f":"VLOOKUP(D421,'Bank and Fund Details'!$B$15:$D$36,3,FALSE)","v":0},{"$f":"VLOOKUP(D421,'Bank and Fund Details'!$B$15:$C$36,2,FALSE)","v":"Unrestricted"},{"$f":"IFERROR(VLOOKUP(C421,Descriptions!$B$6:$D$92,3,FALSE),\"\")","v":""},null,null,null,null,null,null,null,null,null,null,null,null,null,null,"General Fund",{"$f":"IFERROR(VLOOKUP(C421,Descriptions!B:F,5,FALSE),\"N\")","v":"N"},true,"NTRUE",0,null,{"$f":"IFERROR(VLOOKUP(D421,'Bank and Fund Details'!$B$14:$L$35,11,FALSE),\"N\")","v":"Y"},"NY"]
[null,null,null,"General Fund",null,null,null,null,null,{"$f":"VLOOKUP(D422,'Bank and Fund Details'!$B$15:$D$36,3,FALSE)","v":0},{"$f":"VLOOKUP(D422,'Bank and Fund Details'!$B$15:$C$36,2,FALSE)","v":"Unrestricted"},{"$f":"IFERROR(VLOOKUP(C422,Descriptions!$B$6:$D$92,3,FALSE),\"\")","v":""},null,null,null,null,null,null,null,null,null,null,null,null,null,null,"General Fund",{"$f":"IFERROR(VLOOKUP(C422,Descriptions!B:F,5,FALSE),\"N\")","v":"N"},true,"NTRUE",0,null,{"$f":"IFERROR(VLOOKUP(D422,'Bank and Fund Details'!$B$14:$L$35,11,FALSE),\"N\")","v":"Y"},"NY"]
[null,null,null,"General Fund",null,null,null,null,null,{"$f":"VLOOKUP(D423,'Bank and Fund Details'!$B$15:$D$36,3,FALSE)","v":0},{"$f":"VLOOKUP(D423,'Bank and Fund Details'!$B$15:$C$36,2,FALSE)","v":"Unrestricted"},{"$f":"IFERROR(VLOOKUP(C423,Descriptions!$B$6:$D$92,3,FALSE),\"\")","v":""},null,null,null,null,null,null,null,null,null,null,null,null,null,null,"General Fund",{"$f":"IFERROR(VLOOKUP(C423,Descriptions!B:F,5,FALSE),\"N\")","v":"N"},true,"NTRUE",0,null,{"$f":"IFERROR(VLOOKUP(D423,'Bank and Fund Details'!$B$14:$L$35,11,FALSE),\"N\")","v":"Y"},"NY"]
[null,null,null,"General Fund",null,null,null,null,null,{"$f":"VLOOKUP(D424,'Bank and Fund Details'!$B$15:$D$36,3,FALSE)","v":0},{"$f":"VLOOKUP(D424,'Bank and Fund Details'!$B$15:$C$36,2,FALSE)","v":"Unrestricted"},{"$f":"IFERROR(VLOOKUP(C424,Descriptions!$B$6:$D$92,3,FALSE),\"\")","v":""},null,null,null,null,null,null,null,null,null,null,null,null,null,null,"General Fund",{"$f":"IFERROR(VLOOKUP(C424,Descriptions!B:F,5,FALSE),\"N\")","v":"N"},true,"NTRUE",0,null,{"$f":"IFERROR(VLOOKUP(D424,'Bank and Fund Details'!$B$14:$L$35,11,FALSE),\"N\")","v":"Y"},"NY"]
[null,null,null,"General Fund",null,null,null,null,null,{"$f":"VLOOKUP(D425,'Bank and Fund Details'!$B$15:$D$36,3,FALSE)","v":0},{"$f":"VLOOKUP(D425,'Bank and Fund Details'!$B$15:$C$36,2,FALSE)","v":"Unrestricted"},{"$f":"IFERROR(VLOOKUP(C425,Descriptions!$B$6:$D$92,3,FALSE),\"\")","v":""},null,null,null,null,null,null,null,null,null,null,null,null,null,null,"General Fund",{"$f":"IFERROR(VLOOKUP(C425,Descriptions!B:F,5,FALSE),\"N\")","v":"N"},true,"NTRUE",0,null,{"$f":"IFERROR(VLOOKUP(D425,'Bank and Fund Details'!$B$14:$L$35,11,FALSE),\"N\")","v":"Y"},"NY"]
[null,null,null,"General Fund",null,null,null,null,null,{"$f":"VLOOKUP(D426,'Bank and Fund Details'!$B$15:$D$36,3,FALSE)","v":0},{"$f":"VLOOKUP(D426,'Bank and Fund Details'!$B$15:$C$36,2,FALSE)","v":"Unrestricted"},{"$f":"IFERROR(VLOOKUP(C426,Descriptions!$B$6:$D$92,3,FALSE),\"\")","v":""},null,null,null,null,null,null,null,null,null,null,null,null,null,null,"General Fund",{"$f":"IFERROR(VLOOKUP(C426,Descriptions!B:F,5,FALSE),\"N\")","v":"N"},true,"NTRUE",0,null,{"$f":"IFERROR(VLOOKUP(D426,'Bank and Fund Details'!$B$14:$L$35,11,FALSE),\"N\")","v":"Y"},"NY"]
[null,null,null,"General Fund",null,null,null,null,null,{"$f":"VLOOKUP(D427,'Bank and Fund Details'!$B$15:$D$36,3,FALSE)","v":0},{"$f":"VLOOKUP(D427,'Bank and Fund Details'!$B$15:$C$36,2,FALSE)","v":"Unrestricted"},{"$f":"IFERROR(VLOOKUP(C427,Descriptions!$B$6:$D$92,3,FALSE),\"\")","v":""},null,null,null,null,null,null,null,null,null,null,null,null,null,null,"General Fund",{"$f":"IFERROR(VLOOKUP(C427,Descriptions!B:F,5,FALSE),\"N\")","v":"N"},true,"NTRUE",0,null,{"$f":"IFERROR(VLOOKUP(D427,'Bank and Fund Details'!$B$14:$L$35,11,FALSE),\"N\")","v":"Y"},"NY"]
[null,null,null,"General Fund",null,null,null,null,null,{"$f":"VLOOKUP(D428,'Bank and Fund Details'!$B$15:$D$36,3,FALSE)","v":0},{"$f":"VLOOKUP(D428,'Bank and Fund Details'!$B$15:$C$36,2,FALSE)","v":"Unrestricted"},{"$f":"IFERROR(VLOOKUP(C428,Descriptions!$B$6:$D$92,3,FALSE),\"\")","v":""},null,null,null,null,null,null,null,null,null,null,null,null,null,null,"General Fund",{"$f":"IFERROR(VLOOKUP(C428,Descriptions!B:F,5,FALSE),\"N\")","v":"N"},true,"NTRUE",0,null,{"$f":"IFERROR(VLOOKUP(D428,'Bank and Fund Details'!$B$14:$L$35,11,FALSE),\"N\")","v":"Y"},"NY"]
[null,null,null,"General Fund",null,null,null,null,null,{"$f":"VLOOKUP(D429,'Bank and Fund Details'!$B$15:$D$36,3,FALSE)","v":0},{"$f":"VLOOKUP(D429,'Bank and Fund Details'!$B$15:$C$36,2,FALSE)","v":"Unrestricted"},{"$f":"IFERROR(VLOOKUP(C429,Descriptions!$B$6:$D$92,3,FALSE),\"\")","v":""},null,null,null,null,null,null,null,null,null,null,null,null,null,null,"General Fund",{"$f":"IFERROR(VLOOKUP(C429,Descriptions!B:F,5,FALSE),\"N\")","v":"N"},true,"NTRUE",0,null,{"$f":"IFERROR(VLOOKUP(D429,'Bank and Fund Details'!$B$14:$L$35,11,FALSE),\"N\")","v":"Y"},"NY"]
[null,null,null,"General Fund",null,null,null,null,null,{"$f":"VLOOKUP(D430,'Bank and Fund Details'!$B$15:$D$36,3,FALSE)","v":0},{"$f":"VLOOKUP(D430,'Bank and Fund Details'!$B$15:$C$36,2,FALSE)","v":"Unrestricted"},{"$f":"IFERROR(VLOOKUP(C430,Descriptions!$B$6:$D$92,3,FALSE),\"\")","v":""},null,null,null,null,null,null,null,null,null,null,null,null,null,null,"General Fund",{"$f":"IFERROR(VLOOKUP(C430,Descriptions!B:F,5,FALSE),\"N\")","v":"N"},true,"NTRUE",0,null,{"$f":"IFERROR(VLOOKUP(D430,'Bank and Fund Details'!$B$14:$L$35,11,FALSE),\"N\")","v":"Y"},"NY"]
[null,null,null,"General Fund",null,null,null,null,null,{"$f":"VLOOKUP(D431,'Bank and Fund Details'!$B$15:$D$36,3,FALSE)","v":0},{"$f":"VLOOKUP(D431,'Bank and Fund Details'!$B$15:$C$36,2,FALSE)","v":"Unrestricted"},{"$f":"IFERROR(VLOOKUP(C431,Descriptions!$B$6:$D$92,3,FALSE),\"\")","v":""},null,null,null,null,null,null,null,null,null,null,null,null,null,null,"General Fund",{"$f":"IFERROR(VLOOKUP(C431,Descriptions!B:F,5,FALSE),\"N\")","v":"N"},true,"NTRUE",0,null,{"$f":"IFERROR(VLOOKUP(D431,'Bank and Fund Details'!$B$14:$L$35,11,FALSE),\"N\")","v":"Y"},"NY"]
[null,null,null,"General Fund",null,null,null,null,null,{"$f":"VLOOKUP(D432,'Bank and Fund Details'!$B$15:$D$36,3,FALSE)","v":0},{"$f":"VLOOKUP(D432,'Bank and Fund Details'!$B$15:$C$36,2,FALSE)","v":"Unrestricted"},{"$f":"IFERROR(VLOOKUP(C432,Descriptions!$B$6:$D$92,3,FALSE),\"\")","v":""},null,null,null,null,null,null,null,null,null,null,null,null,null,null,"General Fund",{"$f":"IFERROR(VLOOKUP(C432,Descriptions!B:F,5,FALSE),\"N\")","v":"N"},true,"NTRUE",0,null,{"$f":"IFERROR(VLOOKUP(D432,'Bank and Fund Details'!$B$14:$L$35,11,FALSE),\"N\")","v":"Y"},"NY"]
[null,null,null,"General Fund",null,null,null,null,null,{"$f":"VLOOKUP(D433,'Bank and Fund Details'!$B$15:$D$36,3,FALSE)","v":0},{"$f":"VLOOKUP(D433,'Bank and Fund Details'!$B$15:$C$36,2,FALSE)","v":"Unrestricted"},{"$f":"IFERROR(VLOOKUP(C433,Descriptions!$B$6:$D$92,3,FALSE),\"\")","v":""},null,null,null,null,null,null,null,null,null,null,null,null,null,null,"General Fund",{"$f":"IFERROR(VLOOKUP(C433,Descriptions!B:F,5,FALSE),\"N\")","v":"N"},true,"NTRUE",0,null,{"$f":"IFERROR(VLOOKUP(D433,'Bank and Fund Details'!$B$14:$L$35,11,FALSE),\"N\")","v":"Y"},"NY"]
[null,null,null,"General Fund",null,null,null,null,null,{"$f":"VLOOKUP(D434,'Bank and Fund Details'!$B$15:$D$36,3,FALSE)","v":0},{"$f":"VLOOKUP(D434,'Bank and Fund Details'!$B$15:$C$36,2,FALSE)","v":"Unrestricted"},{"$f":"IFERROR(VLOOKUP(C434,Descriptions!$B$6:$D$92,3,FALSE),\"\")","v":""},null,null,null,null,null,null,null,null,null,null,null,null,null,null,"General Fund",{"$f":"IFERROR(VLOOKUP(C434,Descriptions!B:F,5,FALSE),\"N\")","v":"N"},true,"NTRUE",0,null,{"$f":"IFERROR(VLOOKUP(D434,'Bank and Fund Details'!$B$14:$L$35,11,FALSE),\"N\")","v":"Y"},"NY"]
[null,null,null,"General Fund",null,null,null,null,null,{"$f":"VLOOKUP(D435,'Bank and Fund Details'!$B$15:$D$36,3,FALSE)","v":0},{"$f":"VLOOKUP(D435,'Bank and Fund Details'!$B$15:$C$36,2,FALSE)","v":"Unrestricted"},{"$f":"IFERROR(VLOOKUP(C435,Descriptions!$B$6:$D$92,3,FALSE),\"\")","v":""},null,null,null,null,null,null,null,null,null,null,null,null,null,null,"General Fund",{"$f":"IFERROR(VLOOKUP(C435,Descriptions!B:F,5,FALSE),\"N\")","v":"N"},true,"NTRUE",0,null,{"$f":"IFERROR(VLOOKUP(D435,'Bank and Fund Details'!$B$14:$L$35,11,FALSE),\"N\")","v":"Y"},"NY"]
[null,null,null,"General Fund",null,null,null,null,null,{"$f":"VLOOKUP(D436,'Bank and Fund Details'!$B$15:$D$36,3,FALSE)","v":0},{"$f":"VLOOKUP(D436,'Bank and Fund Details'!$B$15:$C$36,2,FALSE)","v":"Unrestricted"},{"$f":"IFERROR(VLOOKUP(C436,Descriptions!$B$6:$D$92,3,FALSE),\"\")","v":""},null,null,null,null,null,null,null,null,null,null,null,null,null,null,"General Fund",{"$f":"IFERROR(VLOOKUP(C436,Descriptions!B:F,5,FALSE),\"N\")","v":"N"},true,"NTRUE",0,null,{"$f":"IFERROR(VLOOKUP(D436,'Bank and Fund Details'!$B$14:$L$35,11,FALSE),\"N\")","v":"Y"},"NY"]
[null,null,null,"General Fund",null,null,null,null,null,{"$f":"VLOOKUP(D437,'Bank and Fund Details'!$B$15:$D$36,3,FALSE)","v":0},{"$f":"VLOOKUP(D437,'Bank and Fund Details'!$B$15:$C$36,2,FALSE)","v":"Unrestricted"},{"$f":"IFERROR(VLOOKUP(C437,Descriptions!$B$6:$D$92,3,FALSE),\"\")","v":""},null,null,null,null,null,null,null,null,null,null,null,null,null,null,"General Fund",{"$f":"IFERROR(VLOOKUP(C437,Descriptions!B:F,5,FALSE),\"N\")","v":"N"},true,"NTRUE",0,null,{"$f":"IFERROR(VLOOKUP(D437,'Bank and Fund Details'!$B$14:$L$35,11,FALSE),\"N\")","v":"Y"},"NY"]
[null,null,null,"General Fund",null,null,null,null,null,{"$f":"VLOOKUP(D438,'Bank and Fund Details'!$B$15:$D$36,3,FALSE)","v":0},{"$f":"VLOOKUP(D438,'Bank and Fund Details'!$B$15:$C$36,2,FALSE)","v":"Unrestricted"},{"$f":"IFERROR(VLOOKUP(C438,Descriptions!$B$6:$D$92,3,FALSE),\"\")","v":""},null,null,null,null,null,null,null,null,null,null,null,null,null,null,"General Fund",{"$f":"IFERROR(VLOOKUP(C438,Descriptions!B:F,5,FALSE),\"N\")","v":"N"},true,"NTRUE",0,null,{"$f":"IFERROR(VLOOKUP(D438,'Bank and Fund Details'!$B$14:$L$35,11,FALSE),\"N\")","v":"Y"},"NY"]
[null,null,null,"General Fund",null,null,null,null,null,{"$f":"VLOOKUP(D439,'Bank and Fund Details'!$B$15:$D$36,3,FALSE)","v":0},{"$f":"VLOOKUP(D439,'Bank and Fund Details'!$B$15:$C$36,2,FALSE)","v":"Unrestricted"},{"$f":"IFERROR(VLOOKUP(C439,Descriptions!$B$6:$D$92,3,FALSE),\"\")","v":""},null,null,null,null,null,null,null,null,null,null,null,null,null,null,"General Fund",{"$f":"IFERROR(VLOOKUP(C439,Descriptions!B:F,5,FALSE),\"N\")","v":"N"},true,"NTRUE",0,null,{"$f":"IFERROR(VLOOKUP(D439,'Bank and Fund Details'!$B$14:$L$35,11,FALSE),\"N\")","v":"Y"},"NY"]
[null,null,null,"General Fund",null,null,null,null,null,{"$f":"VLOOKUP(D440,'Bank and Fund Details'!$B$15:$D$36,3,FALSE)","v":0},{"$f":"VLOOKUP(D440,'Bank and Fund Details'!$B$15:$C$36,2,FALSE)","v":"Unrestricted"},{"$f":"IFERROR(VLOOKUP(C440,Descriptions!$B$6:$D$92,3,FALSE),\"\")","v":""},null,null,null,null,null,null,null,null,null,null,null,null,null,null,"General Fund",{"$f":"IFERROR(VLOOKUP(C440,Descriptions!B:F,5,FALSE),\"N\")","v":"N"},true,"NTRUE",0,null,{"$f":"IFERROR(VLOOKUP(D440,'Bank and Fund Details'!$B$14:$L$35,11,FALSE),\"N\")","v":"Y"},"NY"]
[null,null,null,"General Fund",null,null,null,null,null,{"$f":"VLOOKUP(D441,'Bank and Fund Details'!$B$15:$D$36,3,FALSE)","v":0},{"$f":"VLOOKUP(D441,'Bank and Fund Details'!$B$15:$C$36,2,FALSE)","v":"Unrestricted"},{"$f":"IFERROR(VLOOKUP(C441,Descriptions!$B$6:$D$92,3,FALSE),\"\")","v":""},null,null,null,null,null,null,null,null,null,null,null,null,null,null,"General Fund",{"$f":"IFERROR(VLOOKUP(C441,Descriptions!B:F,5,FALSE),\"N\")","v":"N"},true,"NTRUE",0,null,{"$f":"IFERROR(VLOOKUP(D441,'Bank and Fund Details'!$B$14:$L$35,11,FALSE),\"N\")","v":"Y"},"NY"]
[null,null,null,"General Fund",null,null,null,null,null,{"$f":"VLOOKUP(D442,'Bank and Fund Details'!$B$15:$D$36,3,FALSE)","v":0},{"$f":"VLOOKUP(D442,'Bank and Fund Details'!$B$15:$C$36,2,FALSE)","v":"Unrestricted"},{"$f":"IFERROR(VLOOKUP(C442,Descriptions!$B$6:$D$92,3,FALSE),\"\")","v":""},null,null,null,null,null,null,null,null,null,null,null,null,null,null,"General Fund",{"$f":"IFERROR(VLOOKUP(C442,Descriptions!B:F,5,FALSE),\"N\")","v":"N"},true,"NTRUE",0,null,{"$f":"IFERROR(VLOOKUP(D442,'Bank and Fund Details'!$B$14:$L$35,11,FALSE),\"N\")","v":"Y"},"NY"]
[null,null,null,"General Fund",null,null,null,null,null,{"$f":"VLOOKUP(D443,'Bank and Fund Details'!$B$15:$D$36,3,FALSE)","v":0},{"$f":"VLOOKUP(D443,'Bank and Fund Details'!$B$15:$C$36,2,FALSE)","v":"Unrestricted"},{"$f":"IFERROR(VLOOKUP(C443,Descriptions!$B$6:$D$92,3,FALSE),\"\")","v":""},null,null,null,null,null,null,null,null,null,null,null,null,null,null,"General Fund",{"$f":"IFERROR(VLOOKUP(C443,Descriptions!B:F,5,FALSE),\"N\")","v":"N"},true,"NTRUE",0,null,{"$f":"IFERROR(VLOOKUP(D443,'Bank and Fund Details'!$B$14:$L$35,11,FALSE),\"N\")","v":"Y"},"NY"]
[null,null,null,"General Fund",null,null,null,null,null,{"$f":"VLOOKUP(D444,'Bank and Fund Details'!$B$15:$D$36,3,FALSE)","v":0},{"$f":"VLOOKUP(D444,'Bank and Fund Details'!$B$15:$C$36,2,FALSE)","v":"Unrestricted"},{"$f":"IFERROR(VLOOKUP(C444,Descriptions!$B$6:$D$92,3,FALSE),\"\")","v":""},null,null,null,null,null,null,null,null,null,null,null,null,null,null,"General Fund",{"$f":"IFERROR(VLOOKUP(C444,Descriptions!B:F,5,FALSE),\"N\")","v":"N"},true,"NTRUE",0,null,{"$f":"IFERROR(VLOOKUP(D444,'Bank and Fund Details'!$B$14:$L$35,11,FALSE),\"N\")","v":"Y"},"NY"]
[null,null,null,"General Fund",null,null,null,null,null,{"$f":"VLOOKUP(D445,'Bank and Fund Details'!$B$15:$D$36,3,FALSE)","v":0},{"$f":"VLOOKUP(D445,'Bank and Fund Details'!$B$15:$C$36,2,FALSE)","v":"Unrestricted"},{"$f":"IFERROR(VLOOKUP(C445,Descriptions!$B$6:$D$92,3,FALSE),\"\")","v":""},null,null,null,null,null,null,null,null,null,null,null,null,null,null,"General Fund",{"$f":"IFERROR(VLOOKUP(C445,Descriptions!B:F,5,FALSE),\"N\")","v":"N"},true,"NTRUE",0,null,{"$f":"IFERROR(VLOOKUP(D445,'Bank and Fund Details'!$B$14:$L$35,11,FALSE),\"N\")","v":"Y"},"NY"]
[null,null,null,"General Fund",null,null,null,null,null,{"$f":"VLOOKUP(D446,'Bank and Fund Details'!$B$15:$D$36,3,FALSE)","v":0},{"$f":"VLOOKUP(D446,'Bank and Fund Details'!$B$15:$C$36,2,FALSE)","v":"Unrestricted"},{"$f":"IFERROR(VLOOKUP(C446,Descriptions!$B$6:$D$92,3,FALSE),\"\")","v":""},null,null,null,null,null,null,null,null,null,null,null,null,null,null,"General Fund",{"$f":"IFERROR(VLOOKUP(C446,Descriptions!B:F,5,FALSE),\"N\")","v":"N"},true,"NTRUE",0,null,{"$f":"IFERROR(VLOOKUP(D446,'Bank and Fund Details'!$B$14:$L$35,11,FALSE),\"N\")","v":"Y"},"NY"]
[null,null,null,"General Fund",null,null,null,null,null,{"$f":"VLOOKUP(D447,'Bank and Fund Details'!$B$15:$D$36,3,FALSE)","v":0},{"$f":"VLOOKUP(D447,'Bank and Fund Details'!$B$15:$C$36,2,FALSE)","v":"Unrestricted"},{"$f":"IFERROR(VLOOKUP(C447,Descriptions!$B$6:$D$92,3,FALSE),\"\")","v":""},null,null,null,null,null,null,null,null,null,null,null,null,null,null,"General Fund",{"$f":"IFERROR(VLOOKUP(C447,Descriptions!B:F,5,FALSE),\"N\")","v":"N"},true,"NTRUE",0,null,{"$f":"IFERROR(VLOOKUP(D447,'Bank and Fund Details'!$B$14:$L$35,11,FALSE),\"N\")","v":"Y"},"NY"]
[null,null,null,"General Fund",null,null,null,null,null,{"$f":"VLOOKUP(D448,'Bank and Fund Details'!$B$15:$D$36,3,FALSE)","v":0},{"$f":"VLOOKUP(D448,'Bank and Fund Details'!$B$15:$C$36,2,FALSE)","v":"Unrestricted"},{"$f":"IFERROR(VLOOKUP(C448,Descriptions!$B$6:$D$92,3,FALSE),\"\")","v":""},null,null,null,null,null,null,null,null,null,null,null,null,null,null,"General Fund",{"$f":"IFERROR(VLOOKUP(C448,Descriptions!B:F,5,FALSE),\"N\")","v":"N"},true,"NTRUE",0,null,{"$f":"IFERROR(VLOOKUP(D448,'Bank and Fund Details'!$B$14:$L$35,11,FALSE),\"N\")","v":"Y"},"NY"]
[null,null,null,"General Fund",null,null,null,null,null,{"$f":"VLOOKUP(D449,'Bank and Fund Details'!$B$15:$D$36,3,FALSE)","v":0},{"$f":"VLOOKUP(D449,'Bank and Fund Details'!$B$15:$C$36,2,FALSE)","v":"Unrestricted"},{"$f":"IFERROR(VLOOKUP(C449,Descriptions!$B$6:$D$92,3,FALSE),\"\")","v":""},null,null,null,null,null,null,null,null,null,null,null,null,null,null,"General Fund",{"$f":"IFERROR(VLOOKUP(C449,Descriptions!B:F,5,FALSE),\"N\")","v":"N"},true,"NTRUE",0,null,{"$f":"IFERROR(VLOOKUP(D449,'Bank and Fund Details'!$B$14:$L$35,11,FALSE),\"N\")","v":"Y"},"NY"]
[null,null,null,"General Fund",null,null,null,null,null,{"$f":"VLOOKUP(D450,'Bank and Fund Details'!$B$15:$D$36,3,FALSE)","v":0},{"$f":"VLOOKUP(D450,'Bank and Fund Details'!$B$15:$C$36,2,FALSE)","v":"Unrestricted"},{"$f":"IFERROR(VLOOKUP(C450,Descriptions!$B$6:$D$92,3,FALSE),\"\")","v":""},null,null,null,null,null,null,null,null,null,null,null,null,null,null,"General Fund",{"$f":"IFERROR(VLOOKUP(C450,Descriptions!B:F,5,FALSE),\"N\")","v":"N"},true,"NTRUE",0,null,{"$f":"IFERROR(VLOOKUP(D450,'Bank and Fund Details'!$B$14:$L$35,11,FALSE),\"N\")","v":"Y"},"NY"]
[null,null,null,"General Fund",null,null,null,null,null,{"$f":"VLOOKUP(D451,'Bank and Fund Details'!$B$15:$D$36,3,FALSE)","v":0},{"$f":"VLOOKUP(D451,'Bank and Fund Details'!$B$15:$C$36,2,FALSE)","v":"Unrestricted"},{"$f":"IFERROR(VLOOKUP(C451,Descriptions!$B$6:$D$92,3,FALSE),\"\")","v":""},null,null,null,null,null,null,null,null,null,null,null,null,null,null,"General Fund",{"$f":"IFERROR(VLOOKUP(C451,Descriptions!B:F,5,FALSE),\"N\")","v":"N"},true,"NTRUE",0,null,{"$f":"IFERROR(VLOOKUP(D451,'Bank and Fund Details'!$B$14:$L$35,11,FALSE),\"N\")","v":"Y"},"NY"]
[null,null,null,"General Fund",null,null,null,null,null,{"$f":"VLOOKUP(D452,'Bank and Fund Details'!$B$15:$D$36,3,FALSE)","v":0},{"$f":"VLOOKUP(D452,'Bank and Fund Details'!$B$15:$C$36,2,FALSE)","v":"Unrestricted"},{"$f":"IFERROR(VLOOKUP(C452,Descriptions!$B$6:$D$92,3,FALSE),\"\")","v":""},null,null,null,null,null,null,null,null,null,null,null,null,null,null,"General Fund",{"$f":"IFERROR(VLOOKUP(C452,Descriptions!B:F,5,FALSE),\"N\")","v":"N"},true,"NTRUE",0,null,{"$f":"IFERROR(VLOOKUP(D452,'Bank and Fund Details'!$B$14:$L$35,11,FALSE),\"N\")","v":"Y"},"NY"]
[null,null,null,"General Fund",null,null,null,null,null,{"$f":"VLOOKUP(D453,'Bank and Fund Details'!$B$15:$D$36,3,FALSE)","v":0},{"$f":"VLOOKUP(D453,'Bank and Fund Details'!$B$15:$C$36,2,FALSE)","v":"Unrestricted"},{"$f":"IFERROR(VLOOKUP(C453,Descriptions!$B$6:$D$92,3,FALSE),\"\")","v":""},null,null,null,null,null,null,null,null,null,null,null,null,null,null,{"$f":"CONCATENATE(C453,D453)","v":"General Fund"},{"$f":"IFERROR(VLOOKUP(C453,Descriptions!B:F,5,FALSE),\"N\")","v":"N"},{"$f":"ISBLANK(C453)","v":true},{"$f":"CONCATENATE(AB453,AC453)","v":"NTRUE"},{"$f":"IF(AD453=\"NFALSE\",1,0)","v":0},null,{"$f":"IFERROR(VLOOKUP(D453,'Bank and Fund Details'!$B$14:$L$35,11,FALSE),\"N\")","v":"Y"},"NY"]
[null,null,null,"General Fund",null,null,null,null,null,{"$f":"VLOOKUP(D454,'Bank and Fund Details'!$B$15:$D$36,3,FALSE)","v":0},{"$f":"VLOOKUP(D454,'Bank and Fund Details'!$B$15:$C$36,2,FALSE)","v":"Unrestricted"},{"$f":"IFERROR(VLOOKUP(C454,Descriptions!$B$6:$D$92,3,FALSE),\"\")","v":""},null,null,null,null,null,null,null,null,null,null,null,null,null,null,"General Fund",{"$f":"IFERROR(VLOOKUP(C454,Descriptions!B:F,5,FALSE),\"N\")","v":"N"},true,"NTRUE",0,null,{"$f":"IFERROR(VLOOKUP(D454,'Bank and Fund Details'!$B$14:$L$35,11,FALSE),\"N\")","v":"Y"},{"$f":"CONCATENATE(AB454,AG454)","v":"NY"}]
[null,null,null,"General Fund",null,null,null,null,null,{"$f":"VLOOKUP(D455,'Bank and Fund Details'!$B$15:$D$36,3,FALSE)","v":0},{"$f":"VLOOKUP(D455,'Bank and Fund Details'!$B$15:$C$36,2,FALSE)","v":"Unrestricted"},{"$f":"IFERROR(VLOOKUP(C455,Descriptions!$B$6:$D$92,3,FALSE),\"\")","v":""},null,null,null,null,null,null,null,null,null,null,null,null,null,null,"General Fund",{"$f":"IFERROR(VLOOKUP(C455,Descriptions!B:F,5,FALSE),\"N\")","v":"N"},true,"NTRUE",0,null,{"$f":"IFERROR(VLOOKUP(D455,'Bank and Fund Details'!$B$14:$L$35,11,FALSE),\"N\")","v":"Y"},"NY"]
[null,null,null,"General Fund",null,null,null,null,null,{"$f":"VLOOKUP(D456,'Bank and Fund Details'!$B$15:$D$36,3,FALSE)","v":0},{"$f":"VLOOKUP(D456,'Bank and Fund Details'!$B$15:$C$36,2,FALSE)","v":"Unrestricted"},{"$f":"IFERROR(VLOOKUP(C456,Descriptions!$B$6:$D$92,3,FALSE),\"\")","v":""},null,null,null,null,null,null,null,null,null,null,null,null,null,null,"General Fund",{"$f":"IFERROR(VLOOKUP(C456,Descriptions!B:F,5,FALSE),\"N\")","v":"N"},true,"NTRUE",0,null,{"$f":"IFERROR(VLOOKUP(D456,'Bank and Fund Details'!$B$14:$L$35,11,FALSE),\"N\")","v":"Y"},"NY"]
[null,null,null,"General Fund",null,null,null,null,null,{"$f":"VLOOKUP(D457,'Bank and Fund Details'!$B$15:$D$36,3,FALSE)","v":0},{"$f":"VLOOKUP(D457,'Bank and Fund Details'!$B$15:$C$36,2,FALSE)","v":"Unrestricted"},{"$f":"IFERROR(VLOOKUP(C457,Descriptions!$B$6:$D$92,3,FALSE),\"\")","v":""},null,null,null,null,null,null,null,null,null,null,null,null,null,null,"General Fund",{"$f":"IFERROR(VLOOKUP(C457,Descriptions!B:F,5,FALSE),\"N\")","v":"N"},true,"NTRUE",0,null,{"$f":"IFERROR(VLOOKUP(D457,'Bank and Fund Details'!$B$14:$L$35,11,FALSE),\"N\")","v":"Y"},"NY"]
[null,null,null,"General Fund",null,null,null,null,null,{"$f":"VLOOKUP(D458,'Bank and Fund Details'!$B$15:$D$36,3,FALSE)","v":0},{"$f":"VLOOKUP(D458,'Bank and Fund Details'!$B$15:$C$36,2,FALSE)","v":"Unrestricted"},{"$f":"IFERROR(VLOOKUP(C458,Descriptions!$B$6:$D$92,3,FALSE),\"\")","v":""},null,null,null,null,null,null,null,null,null,null,null,null,null,null,"General Fund",{"$f":"IFERROR(VLOOKUP(C458,Descriptions!B:F,5,FALSE),\"N\")","v":"N"},true,"NTRUE",0,null,{"$f":"IFERROR(VLOOKUP(D458,'Bank and Fund Details'!$B$14:$L$35,11,FALSE),\"N\")","v":"Y"},"NY"]
[null,null,null,"General Fund",null,null,null,null,null,{"$f":"VLOOKUP(D459,'Bank and Fund Details'!$B$15:$D$36,3,FALSE)","v":0},{"$f":"VLOOKUP(D459,'Bank and Fund Details'!$B$15:$C$36,2,FALSE)","v":"Unrestricted"},{"$f":"IFERROR(VLOOKUP(C459,Descriptions!$B$6:$D$92,3,FALSE),\"\")","v":""},null,null,null,null,null,null,null,null,null,null,null,null,null,null,"General Fund",{"$f":"IFERROR(VLOOKUP(C459,Descriptions!B:F,5,FALSE),\"N\")","v":"N"},true,"NTRUE",0,null,{"$f":"IFERROR(VLOOKUP(D459,'Bank and Fund Details'!$B$14:$L$35,11,FALSE),\"N\")","v":"Y"},"NY"]
[null,null,null,"General Fund",null,null,null,null,null,{"$f":"VLOOKUP(D460,'Bank and Fund Details'!$B$15:$D$36,3,FALSE)","v":0},{"$f":"VLOOKUP(D460,'Bank and Fund Details'!$B$15:$C$36,2,FALSE)","v":"Unrestricted"},{"$f":"IFERROR(VLOOKUP(C460,Descriptions!$B$6:$D$92,3,FALSE),\"\")","v":""},null,null,null,null,null,null,null,null,null,null,null,null,null,null,"General Fund",{"$f":"IFERROR(VLOOKUP(C460,Descriptions!B:F,5,FALSE),\"N\")","v":"N"},true,"NTRUE",0,null,{"$f":"IFERROR(VLOOKUP(D460,'Bank and Fund Details'!$B$14:$L$35,11,FALSE),\"N\")","v":"Y"},"NY"]
[null,null,null,"General Fund",null,null,null,null,null,{"$f":"VLOOKUP(D461,'Bank and Fund Details'!$B$15:$D$36,3,FALSE)","v":0},{"$f":"VLOOKUP(D461,'Bank and Fund Details'!$B$15:$C$36,2,FALSE)","v":"Unrestricted"},{"$f":"IFERROR(VLOOKUP(C461,Descriptions!$B$6:$D$92,3,FALSE),\"\")","v":""},null,null,null,null,null,null,null,null,null,null,null,null,null,null,"General Fund",{"$f":"IFERROR(VLOOKUP(C461,Descriptions!B:F,5,FALSE),\"N\")","v":"N"},true,"NTRUE",0,null,{"$f":"IFERROR(VLOOKUP(D461,'Bank and Fund Details'!$B$14:$L$35,11,FALSE),\"N\")","v":"Y"},"NY"]
[null,null,null,"General Fund",null,null,null,null,null,{"$f":"VLOOKUP(D462,'Bank and Fund Details'!$B$15:$D$36,3,FALSE)","v":0},{"$f":"VLOOKUP(D462,'Bank and Fund Details'!$B$15:$C$36,2,FALSE)","v":"Unrestricted"},{"$f":"IFERROR(VLOOKUP(C462,Descriptions!$B$6:$D$92,3,FALSE),\"\")","v":""},null,null,null,null,null,null,null,null,null,null,null,null,null,null,"General Fund",{"$f":"IFERROR(VLOOKUP(C462,Descriptions!B:F,5,FALSE),\"N\")","v":"N"},true,"NTRUE",0,null,{"$f":"IFERROR(VLOOKUP(D462,'Bank and Fund Details'!$B$14:$L$35,11,FALSE),\"N\")","v":"Y"},"NY"]
[null,null,null,"General Fund",null,null,null,null,null,{"$f":"VLOOKUP(D463,'Bank and Fund Details'!$B$15:$D$36,3,FALSE)","v":0},{"$f":"VLOOKUP(D463,'Bank and Fund Details'!$B$15:$C$36,2,FALSE)","v":"Unrestricted"},{"$f":"IFERROR(VLOOKUP(C463,Descriptions!$B$6:$D$92,3,FALSE),\"\")","v":""},null,null,null,null,null,null,null,null,null,null,null,null,null,null,"General Fund",{"$f":"IFERROR(VLOOKUP(C463,Descriptions!B:F,5,FALSE),\"N\")","v":"N"},true,"NTRUE",0,null,{"$f":"IFERROR(VLOOKUP(D463,'Bank and Fund Details'!$B$14:$L$35,11,FALSE),\"N\")","v":"Y"},"NY"]
[null,null,null,"General Fund",null,null,null,null,null,{"$f":"VLOOKUP(D464,'Bank and Fund Details'!$B$15:$D$36,3,FALSE)","v":0},{"$f":"VLOOKUP(D464,'Bank and Fund Details'!$B$15:$C$36,2,FALSE)","v":"Unrestricted"},{"$f":"IFERROR(VLOOKUP(C464,Descriptions!$B$6:$D$92,3,FALSE),\"\")","v":""},null,null,null,null,null,null,null,null,null,null,null,null,null,null,"General Fund",{"$f":"IFERROR(VLOOKUP(C464,Descriptions!B:F,5,FALSE),\"N\")","v":"N"},true,"NTRUE",0,null,{"$f":"IFERROR(VLOOKUP(D464,'Bank and Fund Details'!$B$14:$L$35,11,FALSE),\"N\")","v":"Y"},"NY"]
[null,null,null,"General Fund",null,null,null,null,null,{"$f":"VLOOKUP(D465,'Bank and Fund Details'!$B$15:$D$36,3,FALSE)","v":0},{"$f":"VLOOKUP(D465,'Bank and Fund Details'!$B$15:$C$36,2,FALSE)","v":"Unrestricted"},{"$f":"IFERROR(VLOOKUP(C465,Descriptions!$B$6:$D$92,3,FALSE),\"\")","v":""},null,null,null,null,null,null,null,null,null,null,null,null,null,null,"General Fund",{"$f":"IFERROR(VLOOKUP(C465,Descriptions!B:F,5,FALSE),\"N\")","v":"N"},true,"NTRUE",0,null,{"$f":"IFERROR(VLOOKUP(D465,'Bank and Fund Details'!$B$14:$L$35,11,FALSE),\"N\")","v":"Y"},"NY"]
[null,null,null,"General Fund",null,null,null,null,null,{"$f":"VLOOKUP(D466,'Bank and Fund Details'!$B$15:$D$36,3,FALSE)","v":0},{"$f":"VLOOKUP(D466,'Bank and Fund Details'!$B$15:$C$36,2,FALSE)","v":"Unrestricted"},{"$f":"IFERROR(VLOOKUP(C466,Descriptions!$B$6:$D$92,3,FALSE),\"\")","v":""},null,null,null,null,null,null,null,null,null,null,null,null,null,null,"General Fund",{"$f":"IFERROR(VLOOKUP(C466,Descriptions!B:F,5,FALSE),\"N\")","v":"N"},true,"NTRUE",0,null,{"$f":"IFERROR(VLOOKUP(D466,'Bank and Fund Details'!$B$14:$L$35,11,FALSE),\"N\")","v":"Y"},"NY"]
[null,null,null,"General Fund",null,null,null,null,null,{"$f":"VLOOKUP(D467,'Bank and Fund Details'!$B$15:$D$36,3,FALSE)","v":0},{"$f":"VLOOKUP(D467,'Bank and Fund Details'!$B$15:$C$36,2,FALSE)","v":"Unrestricted"},{"$f":"IFERROR(VLOOKUP(C467,Descriptions!$B$6:$D$92,3,FALSE),\"\")","v":""},null,null,null,null,null,null,null,null,null,null,null,null,null,null,"General Fund",{"$f":"IFERROR(VLOOKUP(C467,Descriptions!B:F,5,FALSE),\"N\")","v":"N"},true,"NTRUE",0,null,{"$f":"IFERROR(VLOOKUP(D467,'Bank and Fund Details'!$B$14:$L$35,11,FALSE),\"N\")","v":"Y"},"NY"]
[null,null,null,"General Fund",null,null,null,null,null,{"$f":"VLOOKUP(D468,'Bank and Fund Details'!$B$15:$D$36,3,FALSE)","v":0},{"$f":"VLOOKUP(D468,'Bank and Fund Details'!$B$15:$C$36,2,FALSE)","v":"Unrestricted"},{"$f":"IFERROR(VLOOKUP(C468,Descriptions!$B$6:$D$92,3,FALSE),\"\")","v":""},null,null,null,null,null,null,null,null,null,null,null,null,null,null,"General Fund",{"$f":"IFERROR(VLOOKUP(C468,Descriptions!B:F,5,FALSE),\"N\")","v":"N"},true,"NTRUE",0,null,{"$f":"IFERROR(VLOOKUP(D468,'Bank and Fund Details'!$B$14:$L$35,11,FALSE),\"N\")","v":"Y"},"NY"]
[null,null,null,"General Fund",null,null,null,null,null,{"$f":"VLOOKUP(D469,'Bank and Fund Details'!$B$15:$D$36,3,FALSE)","v":0},{"$f":"VLOOKUP(D469,'Bank and Fund Details'!$B$15:$C$36,2,FALSE)","v":"Unrestricted"},{"$f":"IFERROR(VLOOKUP(C469,Descriptions!$B$6:$D$92,3,FALSE),\"\")","v":""},null,null,null,null,null,null,null,null,null,null,null,null,null,null,"General Fund",{"$f":"IFERROR(VLOOKUP(C469,Descriptions!B:F,5,FALSE),\"N\")","v":"N"},true,"NTRUE",0,null,{"$f":"IFERROR(VLOOKUP(D469,'Bank and Fund Details'!$B$14:$L$35,11,FALSE),\"N\")","v":"Y"},"NY"]
[null,null,null,"General Fund",null,null,null,null,null,{"$f":"VLOOKUP(D470,'Bank and Fund Details'!$B$15:$D$36,3,FALSE)","v":0},{"$f":"VLOOKUP(D470,'Bank and Fund Details'!$B$15:$C$36,2,FALSE)","v":"Unrestricted"},{"$f":"IFERROR(VLOOKUP(C470,Descriptions!$B$6:$D$92,3,FALSE),\"\")","v":""},null,null,null,null,null,null,null,null,null,null,null,null,null,null,"General Fund",{"$f":"IFERROR(VLOOKUP(C470,Descriptions!B:F,5,FALSE),\"N\")","v":"N"},true,"NTRUE",0,null,{"$f":"IFERROR(VLOOKUP(D470,'Bank and Fund Details'!$B$14:$L$35,11,FALSE),\"N\")","v":"Y"},"NY"]
[null,null,null,"General Fund",null,null,null,null,null,{"$f":"VLOOKUP(D471,'Bank and Fund Details'!$B$15:$D$36,3,FALSE)","v":0},{"$f":"VLOOKUP(D471,'Bank and Fund Details'!$B$15:$C$36,2,FALSE)","v":"Unrestricted"},{"$f":"IFERROR(VLOOKUP(C471,Descriptions!$B$6:$D$92,3,FALSE),\"\")","v":""},null,null,null,null,null,null,null,null,null,null,null,null,null,null,"General Fund",{"$f":"IFERROR(VLOOKUP(C471,Descriptions!B:F,5,FALSE),\"N\")","v":"N"},true,"NTRUE",0,null,{"$f":"IFERROR(VLOOKUP(D471,'Bank and Fund Details'!$B$14:$L$35,11,FALSE),\"N\")","v":"Y"},"NY"]
[null,null,null,"General Fund",null,null,null,null,null,{"$f":"VLOOKUP(D472,'Bank and Fund Details'!$B$15:$D$36,3,FALSE)","v":0},{"$f":"VLOOKUP(D472,'Bank and Fund Details'!$B$15:$C$36,2,FALSE)","v":"Unrestricted"},{"$f":"IFERROR(VLOOKUP(C472,Descriptions!$B$6:$D$92,3,FALSE),\"\")","v":""},null,null,null,null,null,null,null,null,null,null,null,null,null,null,"General Fund",{"$f":"IFERROR(VLOOKUP(C472,Descriptions!B:F,5,FALSE),\"N\")","v":"N"},true,"NTRUE",0,null,{"$f":"IFERROR(VLOOKUP(D472,'Bank and Fund Details'!$B$14:$L$35,11,FALSE),\"N\")","v":"Y"},"NY"]
[null,null,null,"General Fund",null,null,null,null,null,{"$f":"VLOOKUP(D473,'Bank and Fund Details'!$B$15:$D$36,3,FALSE)","v":0},{"$f":"VLOOKUP(D473,'Bank and Fund Details'!$B$15:$C$36,2,FALSE)","v":"Unrestricted"},{"$f":"IFERROR(VLOOKUP(C473,Descriptions!$B$6:$D$92,3,FALSE),\"\")","v":""},null,null,null,null,null,null,null,null,null,null,null,null,null,null,"General Fund",{"$f":"IFERROR(VLOOKUP(C473,Descriptions!B:F,5,FALSE),\"N\")","v":"N"},true,"NTRUE",0,null,{"$f":"IFERROR(VLOOKUP(D473,'Bank and Fund Details'!$B$14:$L$35,11,FALSE),\"N\")","v":"Y"},"NY"]
[null,null,null,"General Fund",null,null,null,null,null,{"$f":"VLOOKUP(D474,'Bank and Fund Details'!$B$15:$D$36,3,FALSE)","v":0},{"$f":"VLOOKUP(D474,'Bank and Fund Details'!$B$15:$C$36,2,FALSE)","v":"Unrestricted"},{"$f":"IFERROR(VLOOKUP(C474,Descriptions!$B$6:$D$92,3,FALSE),\"\")","v":""},null,null,null,null,null,null,null,null,null,null,null,null,null,null,"General Fund",{"$f":"IFERROR(VLOOKUP(C474,Descriptions!B:F,5,FALSE),\"N\")","v":"N"},true,"NTRUE",0,null,{"$f":"IFERROR(VLOOKUP(D474,'Bank and Fund Details'!$B$14:$L$35,11,FALSE),\"N\")","v":"Y"},"NY"]
[null,null,null,"General Fund",null,null,null,null,null,{"$f":"VLOOKUP(D475,'Bank and Fund Details'!$B$15:$D$36,3,FALSE)","v":0},{"$f":"VLOOKUP(D475,'Bank and Fund Details'!$B$15:$C$36,2,FALSE)","v":"Unrestricted"},{"$f":"IFERROR(VLOOKUP(C475,Descriptions!$B$6:$D$92,3,FALSE),\"\")","v":""},null,null,null,null,null,null,null,null,null,null,null,null,null,null,"General Fund",{"$f":"IFERROR(VLOOKUP(C475,Descriptions!B:F,5,FALSE),\"N\")","v":"N"},true,"NTRUE",0,null,{"$f":"IFERROR(VLOOKUP(D475,'Bank and Fund Details'!$B$14:$L$35,11,FALSE),\"N\")","v":"Y"},"NY"]
[null,null,null,"General Fund",null,null,null,null,null,{"$f":"VLOOKUP(D476,'Bank and Fund Details'!$B$15:$D$36,3,FALSE)","v":0},{"$f":"VLOOKUP(D476,'Bank and Fund Details'!$B$15:$C$36,2,FALSE)","v":"Unrestricted"},{"$f":"IFERROR(VLOOKUP(C476,Descriptions!$B$6:$D$92,3,FALSE),\"\")","v":""},null,null,null,null,null,null,null,null,null,null,null,null,null,null,"General Fund",{"$f":"IFERROR(VLOOKUP(C476,Descriptions!B:F,5,FALSE),\"N\")","v":"N"},true,"NTRUE",0,null,{"$f":"IFERROR(VLOOKUP(D476,'Bank and Fund Details'!$B$14:$L$35,11,FALSE),\"N\")","v":"Y"},"NY"]
[null,null,null,"General Fund",null,null,null,null,null,{"$f":"VLOOKUP(D477,'Bank and Fund Details'!$B$15:$D$36,3,FALSE)","v":0},{"$f":"VLOOKUP(D477,'Bank and Fund Details'!$B$15:$C$36,2,FALSE)","v":"Unrestricted"},{"$f":"IFERROR(VLOOKUP(C477,Descriptions!$B$6:$D$92,3,FALSE),\"\")","v":""},null,null,null,null,null,null,null,null,null,null,null,null,null,null,"General Fund",{"$f":"IFERROR(VLOOKUP(C477,Descriptions!B:F,5,FALSE),\"N\")","v":"N"},true,"NTRUE",0,null,{"$f":"IFERROR(VLOOKUP(D477,'Bank and Fund Details'!$B$14:$L$35,11,FALSE),\"N\")","v":"Y"},"NY"]
[null,null,null,"General Fund",null,null,null,null,null,{"$f":"VLOOKUP(D478,'Bank and Fund Details'!$B$15:$D$36,3,FALSE)","v":0},{"$f":"VLOOKUP(D478,'Bank and Fund Details'!$B$15:$C$36,2,FALSE)","v":"Unrestricted"},{"$f":"IFERROR(VLOOKUP(C478,Descriptions!$B$6:$D$92,3,FALSE),\"\")","v":""},null,null,null,null,null,null,null,null,null,null,null,null,null,null,"General Fund",{"$f":"IFERROR(VLOOKUP(C478,Descriptions!B:F,5,FALSE),\"N\")","v":"N"},true,"NTRUE",0,null,{"$f":"IFERROR(VLOOKUP(D478,'Bank and Fund Details'!$B$14:$L$35,11,FALSE),\"N\")","v":"Y"},"NY"]
[null,null,null,"General Fund",null,null,null,null,null,{"$f":"VLOOKUP(D479,'Bank and Fund Details'!$B$15:$D$36,3,FALSE)","v":0},{"$f":"VLOOKUP(D479,'Bank and Fund Details'!$B$15:$C$36,2,FALSE)","v":"Unrestricted"},{"$f":"IFERROR(VLOOKUP(C479,Descriptions!$B$6:$D$92,3,FALSE),\"\")","v":""},null,null,null,null,null,null,null,null,null,null,null,null,null,null,"General Fund",{"$f":"IFERROR(VLOOKUP(C479,Descriptions!B:F,5,FALSE),\"N\")","v":"N"},true,"NTRUE",0,null,{"$f":"IFERROR(VLOOKUP(D479,'Bank and Fund Details'!$B$14:$L$35,11,FALSE),\"N\")","v":"Y"},"NY"]
[null,null,null,"General Fund",null,null,null,null,null,{"$f":"VLOOKUP(D480,'Bank and Fund Details'!$B$15:$D$36,3,FALSE)","v":0},{"$f":"VLOOKUP(D480,'Bank and Fund Details'!$B$15:$C$36,2,FALSE)","v":"Unrestricted"},{"$f":"IFERROR(VLOOKUP(C480,Descriptions!$B$6:$D$92,3,FALSE),\"\")","v":""},null,null,null,null,null,null,null,null,null,null,null,null,null,null,"General Fund",{"$f":"IFERROR(VLOOKUP(C480,Descriptions!B:F,5,FALSE),\"N\")","v":"N"},true,"NTRUE",0,null,{"$f":"IFERROR(VLOOKUP(D480,'Bank and Fund Details'!$B$14:$L$35,11,FALSE),\"N\")","v":"Y"},"NY"]
[null,null,null,"General Fund",null,null,null,null,null,{"$f":"VLOOKUP(D481,'Bank and Fund Details'!$B$15:$D$36,3,FALSE)","v":0},{"$f":"VLOOKUP(D481,'Bank and Fund Details'!$B$15:$C$36,2,FALSE)","v":"Unrestricted"},{"$f":"IFERROR(VLOOKUP(C481,Descriptions!$B$6:$D$92,3,FALSE),\"\")","v":""},null,null,null,null,null,null,null,null,null,null,null,null,null,null,"General Fund",{"$f":"IFERROR(VLOOKUP(C481,Descriptions!B:F,5,FALSE),\"N\")","v":"N"},true,"NTRUE",0,null,{"$f":"IFERROR(VLOOKUP(D481,'Bank and Fund Details'!$B$14:$L$35,11,FALSE),\"N\")","v":"Y"},"NY"]
[null,null,null,"General Fund",null,null,null,null,null,{"$f":"VLOOKUP(D482,'Bank and Fund Details'!$B$15:$D$36,3,FALSE)","v":0},{"$f":"VLOOKUP(D482,'Bank and Fund Details'!$B$15:$C$36,2,FALSE)","v":"Unrestricted"},{"$f":"IFERROR(VLOOKUP(C482,Descriptions!$B$6:$D$92,3,FALSE),\"\")","v":""},null,null,null,null,null,null,null,null,null,null,null,null,null,null,"General Fund",{"$f":"IFERROR(VLOOKUP(C482,Descriptions!B:F,5,FALSE),\"N\")","v":"N"},true,"NTRUE",0,null,{"$f":"IFERROR(VLOOKUP(D482,'Bank and Fund Details'!$B$14:$L$35,11,FALSE),\"N\")","v":"Y"},"NY"]
[null,null,null,"General Fund",null,null,null,null,null,{"$f":"VLOOKUP(D483,'Bank and Fund Details'!$B$15:$D$36,3,FALSE)","v":0},{"$f":"VLOOKUP(D483,'Bank and Fund Details'!$B$15:$C$36,2,FALSE)","v":"Unrestricted"},{"$f":"IFERROR(VLOOKUP(C483,Descriptions!$B$6:$D$92,3,FALSE),\"\")","v":""},null,null,null,null,null,null,null,null,null,null,null,null,null,null,"General Fund",{"$f":"IFERROR(VLOOKUP(C483,Descriptions!B:F,5,FALSE),\"N\")","v":"N"},true,"NTRUE",0,null,{"$f":"IFERROR(VLOOKUP(D483,'Bank and Fund Details'!$B$14:$L$35,11,FALSE),\"N\")","v":"Y"},"NY"]
[null,null,null,"General Fund",null,null,null,null,null,{"$f":"VLOOKUP(D484,'Bank and Fund Details'!$B$15:$D$36,3,FALSE)","v":0},{"$f":"VLOOKUP(D484,'Bank and Fund Details'!$B$15:$C$36,2,FALSE)","v":"Unrestricted"},{"$f":"IFERROR(VLOOKUP(C484,Descriptions!$B$6:$D$92,3,FALSE),\"\")","v":""},null,null,null,null,null,null,null,null,null,null,null,null,null,null,"General Fund",{"$f":"IFERROR(VLOOKUP(C484,Descriptions!B:F,5,FALSE),\"N\")","v":"N"},true,"NTRUE",0,null,{"$f":"IFERROR(VLOOKUP(D484,'Bank and Fund Details'!$B$14:$L$35,11,FALSE),\"N\")","v":"Y"},"NY"]
[null,null,null,"General Fund",null,null,null,null,null,{"$f":"VLOOKUP(D485,'Bank and Fund Details'!$B$15:$D$36,3,FALSE)","v":0},{"$f":"VLOOKUP(D485,'Bank and Fund Details'!$B$15:$C$36,2,FALSE)","v":"Unrestricted"},{"$f":"IFERROR(VLOOKUP(C485,Descriptions!$B$6:$D$92,3,FALSE),\"\")","v":""},null,null,null,null,null,null,null,null,null,null,null,null,null,null,"General Fund",{"$f":"IFERROR(VLOOKUP(C485,Descriptions!B:F,5,FALSE),\"N\")","v":"N"},true,"NTRUE",0,null,{"$f":"IFERROR(VLOOKUP(D485,'Bank and Fund Details'!$B$14:$L$35,11,FALSE),\"N\")","v":"Y"},"NY"]
[null,null,null,"General Fund",null,null,null,null,null,{"$f":"VLOOKUP(D486,'Bank and Fund Details'!$B$15:$D$36,3,FALSE)","v":0},{"$f":"VLOOKUP(D486,'Bank and Fund Details'!$B$15:$C$36,2,FALSE)","v":"Unrestricted"},{"$f":"IFERROR(VLOOKUP(C486,Descriptions!$B$6:$D$92,3,FALSE),\"\")","v":""},null,null,null,null,null,null,null,null,null,null,null,null,null,null,"General Fund",{"$f":"IFERROR(VLOOKUP(C486,Descriptions!B:F,5,FALSE),\"N\")","v":"N"},true,"NTRUE",0,null,{"$f":"IFERROR(VLOOKUP(D486,'Bank and Fund Details'!$B$14:$L$35,11,FALSE),\"N\")","v":"Y"},"NY"]
[null,null,null,"General Fund",null,null,null,null,null,{"$f":"VLOOKUP(D487,'Bank and Fund Details'!$B$15:$D$36,3,FALSE)","v":0},{"$f":"VLOOKUP(D487,'Bank and Fund Details'!$B$15:$C$36,2,FALSE)","v":"Unrestricted"},{"$f":"IFERROR(VLOOKUP(C487,Descriptions!$B$6:$D$92,3,FALSE),\"\")","v":""},null,null,null,null,null,null,null,null,null,null,null,null,null,null,"General Fund",{"$f":"IFERROR(VLOOKUP(C487,Descriptions!B:F,5,FALSE),\"N\")","v":"N"},true,"NTRUE",0,null,{"$f":"IFERROR(VLOOKUP(D487,'Bank and Fund Details'!$B$14:$L$35,11,FALSE),\"N\")","v":"Y"},"NY"]
[null,null,null,"General Fund",null,null,null,null,null,{"$f":"VLOOKUP(D488,'Bank and Fund Details'!$B$15:$D$36,3,FALSE)","v":0},{"$f":"VLOOKUP(D488,'Bank and Fund Details'!$B$15:$C$36,2,FALSE)","v":"Unrestricted"},{"$f":"IFERROR(VLOOKUP(C488,Descriptions!$B$6:$D$92,3,FALSE),\"\")","v":""},null,null,null,null,null,null,null,null,null,null,null,null,null,null,"General Fund",{"$f":"IFERROR(VLOOKUP(C488,Descriptions!B:F,5,FALSE),\"N\")","v":"N"},true,"NTRUE",0,null,{"$f":"IFERROR(VLOOKUP(D488,'Bank and Fund Details'!$B$14:$L$35,11,FALSE),\"N\")","v":"Y"},"NY"]
[null,null,null,"General Fund",null,null,null,null,null,{"$f":"VLOOKUP(D489,'Bank and Fund Details'!$B$15:$D$36,3,FALSE)","v":0},{"$f":"VLOOKUP(D489,'Bank and Fund Details'!$B$15:$C$36,2,FALSE)","v":"Unrestricted"},{"$f":"IFERROR(VLOOKUP(C489,Descriptions!$B$6:$D$92,3,FALSE),\"\")","v":""},null,null,null,null,null,null,null,null,null,null,null,null,null,null,"General Fund",{"$f":"IFERROR(VLOOKUP(C489,Descriptions!B:F,5,FALSE),\"N\")","v":"N"},true,"NTRUE",0,null,{"$f":"IFERROR(VLOOKUP(D489,'Bank and Fund Details'!$B$14:$L$35,11,FALSE),\"N\")","v":"Y"},"NY"]
[null,null,null,"General Fund",null,null,null,null,null,{"$f":"VLOOKUP(D490,'Bank and Fund Details'!$B$15:$D$36,3,FALSE)","v":0},{"$f":"VLOOKUP(D490,'Bank and Fund Details'!$B$15:$C$36,2,FALSE)","v":"Unrestricted"},{"$f":"IFERROR(VLOOKUP(C490,Descriptions!$B$6:$D$92,3,FALSE),\"\")","v":""},null,null,null,null,null,null,null,null,null,null,null,null,null,null,"General Fund",{"$f":"IFERROR(VLOOKUP(C490,Descriptions!B:F,5,FALSE),\"N\")","v":"N"},true,"NTRUE",0,null,{"$f":"IFERROR(VLOOKUP(D490,'Bank and Fund Details'!$B$14:$L$35,11,FALSE),\"N\")","v":"Y"},"NY"]
[null,null,null,"General Fund",null,null,null,null,null,{"$f":"VLOOKUP(D491,'Bank and Fund Details'!$B$15:$D$36,3,FALSE)","v":0},{"$f":"VLOOKUP(D491,'Bank and Fund Details'!$B$15:$C$36,2,FALSE)","v":"Unrestricted"},{"$f":"IFERROR(VLOOKUP(C491,Descriptions!$B$6:$D$92,3,FALSE),\"\")","v":""},null,null,null,null,null,null,null,null,null,null,null,null,null,null,"General Fund",{"$f":"IFERROR(VLOOKUP(C491,Descriptions!B:F,5,FALSE),\"N\")","v":"N"},true,"NTRUE",0,null,{"$f":"IFERROR(VLOOKUP(D491,'Bank and Fund Details'!$B$14:$L$35,11,FALSE),\"N\")","v":"Y"},"NY"]
[null,null,null,"General Fund",null,null,null,null,null,{"$f":"VLOOKUP(D492,'Bank and Fund Details'!$B$15:$D$36,3,FALSE)","v":0},{"$f":"VLOOKUP(D492,'Bank and Fund Details'!$B$15:$C$36,2,FALSE)","v":"Unrestricted"},{"$f":"IFERROR(VLOOKUP(C492,Descriptions!$B$6:$D$92,3,FALSE),\"\")","v":""},null,null,null,null,null,null,null,null,null,null,null,null,null,null,"General Fund",{"$f":"IFERROR(VLOOKUP(C492,Descriptions!B:F,5,FALSE),\"N\")","v":"N"},true,"NTRUE",0,null,{"$f":"IFERROR(VLOOKUP(D492,'Bank and Fund Details'!$B$14:$L$35,11,FALSE),\"N\")","v":"Y"},"NY"]
[null,null,null,"General Fund",null,null,null,null,null,{"$f":"VLOOKUP(D493,'Bank and Fund Details'!$B$15:$D$36,3,FALSE)","v":0},{"$f":"VLOOKUP(D493,'Bank and Fund Details'!$B$15:$C$36,2,FALSE)","v":"Unrestricted"},{"$f":"IFERROR(VLOOKUP(C493,Descriptions!$B$6:$D$92,3,FALSE),\"\")","v":""},null,null,null,null,null,null,null,null,null,null,null,null,null,null,"General Fund",{"$f":"IFERROR(VLOOKUP(C493,Descriptions!B:F,5,FALSE),\"N\")","v":"N"},true,"NTRUE",0,null,{"$f":"IFERROR(VLOOKUP(D493,'Bank and Fund Details'!$B$14:$L$35,11,FALSE),\"N\")","v":"Y"},"NY"]
[null,null,null,"General Fund",null,null,null,null,null,{"$f":"VLOOKUP(D494,'Bank and Fund Details'!$B$15:$D$36,3,FALSE)","v":0},{"$f":"VLOOKUP(D494,'Bank and Fund Details'!$B$15:$C$36,2,FALSE)","v":"Unrestricted"},{"$f":"IFERROR(VLOOKUP(C494,Descriptions!$B$6:$D$92,3,FALSE),\"\")","v":""},null,null,null,null,null,null,null,null,null,null,null,null,null,null,"General Fund",{"$f":"IFERROR(VLOOKUP(C494,Descriptions!B:F,5,FALSE),\"N\")","v":"N"},true,"NTRUE",0,null,{"$f":"IFERROR(VLOOKUP(D494,'Bank and Fund Details'!$B$14:$L$35,11,FALSE),\"N\")","v":"Y"},"NY"]
[null,null,null,"General Fund",null,null,null,null,null,{"$f":"VLOOKUP(D495,'Bank and Fund Details'!$B$15:$D$36,3,FALSE)","v":0},{"$f":"VLOOKUP(D495,'Bank and Fund Details'!$B$15:$C$36,2,FALSE)","v":"Unrestricted"},{"$f":"IFERROR(VLOOKUP(C495,Descriptions!$B$6:$D$92,3,FALSE),\"\")","v":""},null,null,null,null,null,null,null,null,null,null,null,null,null,null,"General Fund",{"$f":"IFERROR(VLOOKUP(C495,Descriptions!B:F,5,FALSE),\"N\")","v":"N"},true,"NTRUE",0,null,{"$f":"IFERROR(VLOOKUP(D495,'Bank and Fund Details'!$B$14:$L$35,11,FALSE),\"N\")","v":"Y"},"NY"]
[null,null,null,"General Fund",null,null,null,null,null,{"$f":"VLOOKUP(D496,'Bank and Fund Details'!$B$15:$D$36,3,FALSE)","v":0},{"$f":"VLOOKUP(D496,'Bank and Fund Details'!$B$15:$C$36,2,FALSE)","v":"Unrestricted"},{"$f":"IFERROR(VLOOKUP(C496,Descriptions!$B$6:$D$92,3,FALSE),\"\")","v":""},null,null,null,null,null,null,null,null,null,null,null,null,null,null,"General Fund",{"$f":"IFERROR(VLOOKUP(C496,Descriptions!B:F,5,FALSE),\"N\")","v":"N"},true,"NTRUE",0,null,{"$f":"IFERROR(VLOOKUP(D496,'Bank and Fund Details'!$B$14:$L$35,11,FALSE),\"N\")","v":"Y"},"NY"]
[null,null,null,"General Fund",null,null,null,null,null,{"$f":"VLOOKUP(D497,'Bank and Fund Details'!$B$15:$D$36,3,FALSE)","v":0},{"$f":"VLOOKUP(D497,'Bank and Fund Details'!$B$15:$C$36,2,FALSE)","v":"Unrestricted"},{"$f":"IFERROR(VLOOKUP(C497,Descriptions!$B$6:$D$92,3,FALSE),\"\")","v":""},null,null,null,null,null,null,null,null,null,null,null,null,null,null,"General Fund",{"$f":"IFERROR(VLOOKUP(C497,Descriptions!B:F,5,FALSE),\"N\")","v":"N"},true,"NTRUE",0,null,{"$f":"IFERROR(VLOOKUP(D497,'Bank and Fund Details'!$B$14:$L$35,11,FALSE),\"N\")","v":"Y"},"NY"]
[null,null,null,"General Fund",null,null,null,null,null,{"$f":"VLOOKUP(D498,'Bank and Fund Details'!$B$15:$D$36,3,FALSE)","v":0},{"$f":"VLOOKUP(D498,'Bank and Fund Details'!$B$15:$C$36,2,FALSE)","v":"Unrestricted"},{"$f":"IFERROR(VLOOKUP(C498,Descriptions!$B$6:$D$92,3,FALSE),\"\")","v":""},null,null,null,null,null,null,null,null,null,null,null,null,null,null,"General Fund",{"$f":"IFERROR(VLOOKUP(C498,Descriptions!B:F,5,FALSE),\"N\")","v":"N"},true,"NTRUE",0,null,{"$f":"IFERROR(VLOOKUP(D498,'Bank and Fund Details'!$B$14:$L$35,11,FALSE),\"N\")","v":"Y"},"NY"]
[null,null,null,"General Fund",null,null,null,null,null,{"$f":"VLOOKUP(D499,'Bank and Fund Details'!$B$15:$D$36,3,FALSE)","v":0},{"$f":"VLOOKUP(D499,'Bank and Fund Details'!$B$15:$C$36,2,FALSE)","v":"Unrestricted"},{"$f":"IFERROR(VLOOKUP(C499,Descriptions!$B$6:$D$92,3,FALSE),\"\")","v":""},null,null,null,null,null,null,null,null,null,null,null,null,null,null,"General Fund",{"$f":"IFERROR(VLOOKUP(C499,Descriptions!B:F,5,FALSE),\"N\")","v":"N"},true,"NTRUE",0,null,{"$f":"IFERROR(VLOOKUP(D499,'Bank and Fund Details'!$B$14:$L$35,11,FALSE),\"N\")","v":"Y"},"NY"]
[null,null,null,"General Fund",null,null,null,null,null,{"$f":"VLOOKUP(D500,'Bank and Fund Details'!$B$15:$D$36,3,FALSE)","v":0},{"$f":"VLOOKUP(D500,'Bank and Fund Details'!$B$15:$C$36,2,FALSE)","v":"Unrestricted"},{"$f":"IFERROR(VLOOKUP(C500,Descriptions!$B$6:$D$92,3,FALSE),\"\")","v":""},null,null,null,null,null,null,null,null,null,null,null,null,null,null,"General Fund",{"$f":"IFERROR(VLOOKUP(C500,Descriptions!B:F,5,FALSE),\"N\")","v":"N"},true,"NTRUE",0,null,{"$f":"IFERROR(VLOOKUP(D500,'Bank and Fund Details'!$B$14:$L$35,11,FALSE),\"N\")","v":"Y"},"NY"]
[null,null,null,"General Fund",null,null,null,null,null,{"$f":"VLOOKUP(D501,'Bank and Fund Details'!$B$15:$D$36,3,FALSE)","v":0},{"$f":"VLOOKUP(D501,'Bank and Fund Details'!$B$15:$C$36,2,FALSE)","v":"Unrestricted"},{"$f":"IFERROR(VLOOKUP(C501,Descriptions!$B$6:$D$92,3,FALSE),\"\")","v":""},null,null,null,null,null,null,null,null,null,null,null,null,null,null,"General Fund",{"$f":"IFERROR(VLOOKUP(C501,Descriptions!B:F,5,FALSE),\"N\")","v":"N"},true,"NTRUE",0,null,{"$f":"IFERROR(VLOOKUP(D501,'Bank and Fund Details'!$B$14:$L$35,11,FALSE),\"N\")","v":"Y"},"NY"]
[null,null,null,"General Fund",null,null,null,null,null,{"$f":"VLOOKUP(D502,'Bank and Fund Details'!$B$15:$D$36,3,FALSE)","v":0},{"$f":"VLOOKUP(D502,'Bank and Fund Details'!$B$15:$C$36,2,FALSE)","v":"Unrestricted"},{"$f":"IFERROR(VLOOKUP(C502,Descriptions!$B$6:$D$92,3,FALSE),\"\")","v":""},null,null,null,null,null,null,null,null,null,null,null,null,null,null,"General Fund",{"$f":"IFERROR(VLOOKUP(C502,Descriptions!B:F,5,FALSE),\"N\")","v":"N"},true,"NTRUE",0,null,{"$f":"IFERROR(VLOOKUP(D502,'Bank and Fund Details'!$B$14:$L$35,11,FALSE),\"N\")","v":"Y"},"NY"]
[null,null,null,"General Fund",null,null,null,null,null,{"$f":"VLOOKUP(D503,'Bank and Fund Details'!$B$15:$D$36,3,FALSE)","v":0},{"$f":"VLOOKUP(D503,'Bank and Fund Details'!$B$15:$C$36,2,FALSE)","v":"Unrestricted"},{"$f":"IFERROR(VLOOKUP(C503,Descriptions!$B$6:$D$92,3,FALSE),\"\")","v":""},null,null,null,null,null,null,null,null,null,null,null,null,null,null,"General Fund",{"$f":"IFERROR(VLOOKUP(C503,Descriptions!B:F,5,FALSE),\"N\")","v":"N"},true,"NTRUE",0,null,{"$f":"IFERROR(VLOOKUP(D503,'Bank and Fund Details'!$B$14:$L$35,11,FALSE),\"N\")","v":"Y"},"NY"]
[null,null,null,"General Fund",null,null,null,null,null,{"$f":"VLOOKUP(D504,'Bank and Fund Details'!$B$15:$D$36,3,FALSE)","v":0},{"$f":"VLOOKUP(D504,'Bank and Fund Details'!$B$15:$C$36,2,FALSE)","v":"Unrestricted"},{"$f":"IFERROR(VLOOKUP(C504,Descriptions!$B$6:$D$92,3,FALSE),\"\")","v":""},null,null,null,null,null,null,null,null,null,null,null,null,null,null,"General Fund",{"$f":"IFERROR(VLOOKUP(C504,Descriptions!B:F,5,FALSE),\"N\")","v":"N"},true,"NTRUE",0,null,{"$f":"IFERROR(VLOOKUP(D504,'Bank and Fund Details'!$B$14:$L$35,11,FALSE),\"N\")","v":"Y"},"NY"]
[null,null,null,"General Fund",null,null,null,null,null,{"$f":"VLOOKUP(D505,'Bank and Fund Details'!$B$15:$D$36,3,FALSE)","v":0},{"$f":"VLOOKUP(D505,'Bank and Fund Details'!$B$15:$C$36,2,FALSE)","v":"Unrestricted"},{"$f":"IFERROR(VLOOKUP(C505,Descriptions!$B$6:$D$92,3,FALSE),\"\")","v":""},null,null,null,null,null,null,null,null,null,null,null,null,null,null,"General Fund",{"$f":"IFERROR(VLOOKUP(C505,Descriptions!B:F,5,FALSE),\"N\")","v":"N"},true,"NTRUE",0,null,{"$f":"IFERROR(VLOOKUP(D505,'Bank and Fund Details'!$B$14:$L$35,11,FALSE),\"N\")","v":"Y"},"NY"]
[null,null,null,"General Fund",null,null,null,null,null,{"$f":"VLOOKUP(D506,'Bank and Fund Details'!$B$15:$D$36,3,FALSE)","v":0},{"$f":"VLOOKUP(D506,'Bank and Fund Details'!$B$15:$C$36,2,FALSE)","v":"Unrestricted"},{"$f":"IFERROR(VLOOKUP(C506,Descriptions!$B$6:$D$92,3,FALSE),\"\")","v":""},null,null,null,null,null,null,null,null,null,null,null,null,null,null,"General Fund",{"$f":"IFERROR(VLOOKUP(C506,Descriptions!B:F,5,FALSE),\"N\")","v":"N"},true,"NTRUE",0,null,{"$f":"IFERROR(VLOOKUP(D506,'Bank and Fund Details'!$B$14:$L$35,11,FALSE),\"N\")","v":"Y"},"NY"]
[null,null,null,"General Fund",null,null,null,null,null,{"$f":"VLOOKUP(D507,'Bank and Fund Details'!$B$15:$D$36,3,FALSE)","v":0},{"$f":"VLOOKUP(D507,'Bank and Fund Details'!$B$15:$C$36,2,FALSE)","v":"Unrestricted"},{"$f":"IFERROR(VLOOKUP(C507,Descriptions!$B$6:$D$92,3,FALSE),\"\")","v":""},null,null,null,null,null,null,null,null,null,null,null,null,null,null,"General Fund",{"$f":"IFERROR(VLOOKUP(C507,Descriptions!B:F,5,FALSE),\"N\")","v":"N"},true,"NTRUE",0,null,{"$f":"IFERROR(VLOOKUP(D507,'Bank and Fund Details'!$B$14:$L$35,11,FALSE),\"N\")","v":"Y"},"NY"]
[null,null,null,"General Fund",null,null,null,null,null,{"$f":"VLOOKUP(D508,'Bank and Fund Details'!$B$15:$D$36,3,FALSE)","v":0},{"$f":"VLOOKUP(D508,'Bank and Fund Details'!$B$15:$C$36,2,FALSE)","v":"Unrestricted"},{"$f":"IFERROR(VLOOKUP(C508,Descriptions!$B$6:$D$92,3,FALSE),\"\")","v":""},null,null,null,null,null,null,null,null,null,null,null,null,null,null,"General Fund",{"$f":"IFERROR(VLOOKUP(C508,Descriptions!B:F,5,FALSE),\"N\")","v":"N"},true,"NTRUE",0,null,{"$f":"IFERROR(VLOOKUP(D508,'Bank and Fund Details'!$B$14:$L$35,11,FALSE),\"N\")","v":"Y"},"NY"]
[null,null,null,"General Fund",null,null,null,null,null,{"$f":"VLOOKUP(D509,'Bank and Fund Details'!$B$15:$D$36,3,FALSE)","v":0},{"$f":"VLOOKUP(D509,'Bank and Fund Details'!$B$15:$C$36,2,FALSE)","v":"Unrestricted"},{"$f":"IFERROR(VLOOKUP(C509,Descriptions!$B$6:$D$92,3,FALSE),\"\")","v":""},null,null,null,null,null,null,null,null,null,null,null,null,null,null,"General Fund",{"$f":"IFERROR(VLOOKUP(C509,Descriptions!B:F,5,FALSE),\"N\")","v":"N"},true,"NTRUE",0,null,{"$f":"IFERROR(VLOOKUP(D509,'Bank and Fund Details'!$B$14:$L$35,11,FALSE),\"N\")","v":"Y"},"NY"]
[null,null,null,"General Fund",null,null,null,null,null,{"$f":"VLOOKUP(D510,'Bank and Fund Details'!$B$15:$D$36,3,FALSE)","v":0},{"$f":"VLOOKUP(D510,'Bank and Fund Details'!$B$15:$C$36,2,FALSE)","v":"Unrestricted"},{"$f":"IFERROR(VLOOKUP(C510,Descriptions!$B$6:$D$92,3,FALSE),\"\")","v":""},null,null,null,null,null,null,null,null,null,null,null,null,null,null,"General Fund",{"$f":"IFERROR(VLOOKUP(C510,Descriptions!B:F,5,FALSE),\"N\")","v":"N"},true,"NTRUE",0,null,{"$f":"IFERROR(VLOOKUP(D510,'Bank and Fund Details'!$B$14:$L$35,11,FALSE),\"N\")","v":"Y"},"NY"]
[null,null,null,"General Fund",null,null,null,null,null,{"$f":"VLOOKUP(D511,'Bank and Fund Details'!$B$15:$D$36,3,FALSE)","v":0},{"$f":"VLOOKUP(D511,'Bank and Fund Details'!$B$15:$C$36,2,FALSE)","v":"Unrestricted"},{"$f":"IFERROR(VLOOKUP(C511,Descriptions!$B$6:$D$92,3,FALSE),\"\")","v":""},null,null,null,null,null,null,null,null,null,null,null,null,null,null,"General Fund",{"$f":"IFERROR(VLOOKUP(C511,Descriptions!B:F,5,FALSE),\"N\")","v":"N"},true,"NTRUE",0,null,{"$f":"IFERROR(VLOOKUP(D511,'Bank and Fund Details'!$B$14:$L$35,11,FALSE),\"N\")","v":"Y"},"NY"]
[null,null,null,"General Fund",null,null,null,null,null,{"$f":"VLOOKUP(D512,'Bank and Fund Details'!$B$15:$D$36,3,FALSE)","v":0},{"$f":"VLOOKUP(D512,'Bank and Fund Details'!$B$15:$C$36,2,FALSE)","v":"Unrestricted"},{"$f":"IFERROR(VLOOKUP(C512,Descriptions!$B$6:$D$92,3,FALSE),\"\")","v":""},null,null,null,null,null,null,null,null,null,null,null,null,null,null,"General Fund",{"$f":"IFERROR(VLOOKUP(C512,Descriptions!B:F,5,FALSE),\"N\")","v":"N"},true,"NTRUE",0,null,{"$f":"IFERROR(VLOOKUP(D512,'Bank and Fund Details'!$B$14:$L$35,11,FALSE),\"N\")","v":"Y"},"NY"]
[null,null,null,"General Fund",null,null,null,null,null,{"$f":"VLOOKUP(D513,'Bank and Fund Details'!$B$15:$D$36,3,FALSE)","v":0},{"$f":"VLOOKUP(D513,'Bank and Fund Details'!$B$15:$C$36,2,FALSE)","v":"Unrestricted"},{"$f":"IFERROR(VLOOKUP(C513,Descriptions!$B$6:$D$92,3,FALSE),\"\")","v":""},null,null,null,null,null,null,null,null,null,null,null,null,null,null,"General Fund",{"$f":"IFERROR(VLOOKUP(C513,Descriptions!B:F,5,FALSE),\"N\")","v":"N"},true,"NTRUE",0,null,{"$f":"IFERROR(VLOOKUP(D513,'Bank and Fund Details'!$B$14:$L$35,11,FALSE),\"N\")","v":"Y"},"NY"]
[null,null,null,"General Fund",null,null,null,null,null,{"$f":"VLOOKUP(D514,'Bank and Fund Details'!$B$15:$D$36,3,FALSE)","v":0},{"$f":"VLOOKUP(D514,'Bank and Fund Details'!$B$15:$C$36,2,FALSE)","v":"Unrestricted"},{"$f":"IFERROR(VLOOKUP(C514,Descriptions!$B$6:$D$92,3,FALSE),\"\")","v":""},null,null,null,null,null,null,null,null,null,null,null,null,null,null,"General Fund",{"$f":"IFERROR(VLOOKUP(C514,Descriptions!B:F,5,FALSE),\"N\")","v":"N"},true,"NTRUE",0,null,{"$f":"IFERROR(VLOOKUP(D514,'Bank and Fund Details'!$B$14:$L$35,11,FALSE),\"N\")","v":"Y"},"NY"]
[null,null,null,"General Fund",null,null,null,null,null,{"$f":"VLOOKUP(D515,'Bank and Fund Details'!$B$15:$D$36,3,FALSE)","v":0},{"$f":"VLOOKUP(D515,'Bank and Fund Details'!$B$15:$C$36,2,FALSE)","v":"Unrestricted"},{"$f":"IFERROR(VLOOKUP(C515,Descriptions!$B$6:$D$92,3,FALSE),\"\")","v":""},null,null,null,null,null,null,null,null,null,null,null,null,null,null,"General Fund",{"$f":"IFERROR(VLOOKUP(C515,Descriptions!B:F,5,FALSE),\"N\")","v":"N"},true,"NTRUE",0,null,{"$f":"IFERROR(VLOOKUP(D515,'Bank and Fund Details'!$B$14:$L$35,11,FALSE),\"N\")","v":"Y"},"NY"]
[null,null,null,"General Fund",null,null,null,null,null,{"$f":"VLOOKUP(D516,'Bank and Fund Details'!$B$15:$D$36,3,FALSE)","v":0},{"$f":"VLOOKUP(D516,'Bank and Fund Details'!$B$15:$C$36,2,FALSE)","v":"Unrestricted"},{"$f":"IFERROR(VLOOKUP(C516,Descriptions!$B$6:$D$92,3,FALSE),\"\")","v":""},null,null,null,null,null,null,null,null,null,null,null,null,null,null,"General Fund",{"$f":"IFERROR(VLOOKUP(C516,Descriptions!B:F,5,FALSE),\"N\")","v":"N"},true,"NTRUE",0,null,{"$f":"IFERROR(VLOOKUP(D516,'Bank and Fund Details'!$B$14:$L$35,11,FALSE),\"N\")","v":"Y"},"NY"]
[null,null,null,"General Fund",null,null,null,null,null,{"$f":"VLOOKUP(D517,'Bank and Fund Details'!$B$15:$D$36,3,FALSE)","v":0},{"$f":"VLOOKUP(D517,'Bank and Fund Details'!$B$15:$C$36,2,FALSE)","v":"Unrestricted"},{"$f":"IFERROR(VLOOKUP(C517,Descriptions!$B$6:$D$92,3,FALSE),\"\")","v":""},null,null,null,null,null,null,null,null,null,null,null,null,null,null,{"$f":"CONCATENATE(C517,D517)","v":"General Fund"},{"$f":"IFERROR(VLOOKUP(C517,Descriptions!B:F,5,FALSE),\"N\")","v":"N"},{"$f":"ISBLANK(C517)","v":true},{"$f":"CONCATENATE(AB517,AC517)","v":"NTRUE"},{"$f":"IF(AD517=\"NFALSE\",1,0)","v":0},null,{"$f":"IFERROR(VLOOKUP(D517,'Bank and Fund Details'!$B$14:$L$35,11,FALSE),\"N\")","v":"Y"},"NY"]
[null,null,null,"General Fund",null,null,null,null,null,{"$f":"VLOOKUP(D518,'Bank and Fund Details'!$B$15:$D$36,3,FALSE)","v":0},{"$f":"VLOOKUP(D518,'Bank and Fund Details'!$B$15:$C$36,2,FALSE)","v":"Unrestricted"},{"$f":"IFERROR(VLOOKUP(C518,Descriptions!$B$6:$D$92,3,FALSE),\"\")","v":""},null,null,null,null,null,null,null,null,null,null,null,null,null,null,"General Fund",{"$f":"IFERROR(VLOOKUP(C518,Descriptions!B:F,5,FALSE),\"N\")","v":"N"},true,"NTRUE",0,null,{"$f":"IFERROR(VLOOKUP(D518,'Bank and Fund Details'!$B$14:$L$35,11,FALSE),\"N\")","v":"Y"},{"$f":"CONCATENATE(AB518,AG518)","v":"NY"}]
[null,null,null,"General Fund",null,null,null,null,null,{"$f":"VLOOKUP(D519,'Bank and Fund Details'!$B$15:$D$36,3,FALSE)","v":0},{"$f":"VLOOKUP(D519,'Bank and Fund Details'!$B$15:$C$36,2,FALSE)","v":"Unrestricted"},{"$f":"IFERROR(VLOOKUP(C519,Descriptions!$B$6:$D$92,3,FALSE),\"\")","v":""},null,null,null,null,null,null,null,null,null,null,null,null,null,null,"General Fund",{"$f":"IFERROR(VLOOKUP(C519,Descriptions!B:F,5,FALSE),\"N\")","v":"N"},true,"NTRUE",0,null,{"$f":"IFERROR(VLOOKUP(D519,'Bank and Fund Details'!$B$14:$L$35,11,FALSE),\"N\")","v":"Y"},"NY"]
[null,null,null,"General Fund",null,null,null,null,null,{"$f":"VLOOKUP(D520,'Bank and Fund Details'!$B$15:$D$36,3,FALSE)","v":0},{"$f":"VLOOKUP(D520,'Bank and Fund Details'!$B$15:$C$36,2,FALSE)","v":"Unrestricted"},{"$f":"IFERROR(VLOOKUP(C520,Descriptions!$B$6:$D$92,3,FALSE),\"\")","v":""},null,null,null,null,null,null,null,null,null,null,null,null,null,null,"General Fund",{"$f":"IFERROR(VLOOKUP(C520,Descriptions!B:F,5,FALSE),\"N\")","v":"N"},true,"NTRUE",0,null,{"$f":"IFERROR(VLOOKUP(D520,'Bank and Fund Details'!$B$14:$L$35,11,FALSE),\"N\")","v":"Y"},"NY"]
[null,null,null,"General Fund",null,null,null,null,null,{"$f":"VLOOKUP(D521,'Bank and Fund Details'!$B$15:$D$36,3,FALSE)","v":0},{"$f":"VLOOKUP(D521,'Bank and Fund Details'!$B$15:$C$36,2,FALSE)","v":"Unrestricted"},{"$f":"IFERROR(VLOOKUP(C521,Descriptions!$B$6:$D$92,3,FALSE),\"\")","v":""},null,null,null,null,null,null,null,null,null,null,null,null,null,null,"General Fund",{"$f":"IFERROR(VLOOKUP(C521,Descriptions!B:F,5,FALSE),\"N\")","v":"N"},true,"NTRUE",0,null,{"$f":"IFERROR(VLOOKUP(D521,'Bank and Fund Details'!$B$14:$L$35,11,FALSE),\"N\")","v":"Y"},"NY"]
[null,null,null,"General Fund",null,null,null,null,null,{"$f":"VLOOKUP(D522,'Bank and Fund Details'!$B$15:$D$36,3,FALSE)","v":0},{"$f":"VLOOKUP(D522,'Bank and Fund Details'!$B$15:$C$36,2,FALSE)","v":"Unrestricted"},{"$f":"IFERROR(VLOOKUP(C522,Descriptions!$B$6:$D$92,3,FALSE),\"\")","v":""},null,null,null,null,null,null,null,null,null,null,null,null,null,null,"General Fund",{"$f":"IFERROR(VLOOKUP(C522,Descriptions!B:F,5,FALSE),\"N\")","v":"N"},true,"NTRUE",0,null,{"$f":"IFERROR(VLOOKUP(D522,'Bank and Fund Details'!$B$14:$L$35,11,FALSE),\"N\")","v":"Y"},"NY"]
[null,null,null,"General Fund",null,null,null,null,null,{"$f":"VLOOKUP(D523,'Bank and Fund Details'!$B$15:$D$36,3,FALSE)","v":0},{"$f":"VLOOKUP(D523,'Bank and Fund Details'!$B$15:$C$36,2,FALSE)","v":"Unrestricted"},{"$f":"IFERROR(VLOOKUP(C523,Descriptions!$B$6:$D$92,3,FALSE),\"\")","v":""},null,null,null,null,null,null,null,null,null,null,null,null,null,null,"General Fund",{"$f":"IFERROR(VLOOKUP(C523,Descriptions!B:F,5,FALSE),\"N\")","v":"N"},true,"NTRUE",0,null,{"$f":"IFERROR(VLOOKUP(D523,'Bank and Fund Details'!$B$14:$L$35,11,FALSE),\"N\")","v":"Y"},"NY"]
[null,null,null,"General Fund",null,null,null,null,null,{"$f":"VLOOKUP(D524,'Bank and Fund Details'!$B$15:$D$36,3,FALSE)","v":0},{"$f":"VLOOKUP(D524,'Bank and Fund Details'!$B$15:$C$36,2,FALSE)","v":"Unrestricted"},{"$f":"IFERROR(VLOOKUP(C524,Descriptions!$B$6:$D$92,3,FALSE),\"\")","v":""},null,null,null,null,null,null,null,null,null,null,null,null,null,null,"General Fund",{"$f":"IFERROR(VLOOKUP(C524,Descriptions!B:F,5,FALSE),\"N\")","v":"N"},true,"NTRUE",0,null,{"$f":"IFERROR(VLOOKUP(D524,'Bank and Fund Details'!$B$14:$L$35,11,FALSE),\"N\")","v":"Y"},"NY"]
[null,null,null,"General Fund",null,null,null,null,null,{"$f":"VLOOKUP(D525,'Bank and Fund Details'!$B$15:$D$36,3,FALSE)","v":0},{"$f":"VLOOKUP(D525,'Bank and Fund Details'!$B$15:$C$36,2,FALSE)","v":"Unrestricted"},{"$f":"IFERROR(VLOOKUP(C525,Descriptions!$B$6:$D$92,3,FALSE),\"\")","v":""},null,null,null,null,null,null,null,null,null,null,null,null,null,null,"General Fund",{"$f":"IFERROR(VLOOKUP(C525,Descriptions!B:F,5,FALSE),\"N\")","v":"N"},true,"NTRUE",0,null,{"$f":"IFERROR(VLOOKUP(D525,'Bank and Fund Details'!$B$14:$L$35,11,FALSE),\"N\")","v":"Y"},"NY"]
[null,null,null,"General Fund",null,null,null,null,null,{"$f":"VLOOKUP(D526,'Bank and Fund Details'!$B$15:$D$36,3,FALSE)","v":0},{"$f":"VLOOKUP(D526,'Bank and Fund Details'!$B$15:$C$36,2,FALSE)","v":"Unrestricted"},{"$f":"IFERROR(VLOOKUP(C526,Descriptions!$B$6:$D$92,3,FALSE),\"\")","v":""},null,null,null,null,null,null,null,null,null,null,null,null,null,null,"General Fund",{"$f":"IFERROR(VLOOKUP(C526,Descriptions!B:F,5,FALSE),\"N\")","v":"N"},true,"NTRUE",0,null,{"$f":"IFERROR(VLOOKUP(D526,'Bank and Fund Details'!$B$14:$L$35,11,FALSE),\"N\")","v":"Y"},"NY"]
[null,null,null,"General Fund",null,null,null,null,null,{"$f":"VLOOKUP(D527,'Bank and Fund Details'!$B$15:$D$36,3,FALSE)","v":0},{"$f":"VLOOKUP(D527,'Bank and Fund Details'!$B$15:$C$36,2,FALSE)","v":"Unrestricted"},{"$f":"IFERROR(VLOOKUP(C527,Descriptions!$B$6:$D$92,3,FALSE),\"\")","v":""},null,null,null,null,null,null,null,null,null,null,null,null,null,null,"General Fund",{"$f":"IFERROR(VLOOKUP(C527,Descriptions!B:F,5,FALSE),\"N\")","v":"N"},true,"NTRUE",0,null,{"$f":"IFERROR(VLOOKUP(D527,'Bank and Fund Details'!$B$14:$L$35,11,FALSE),\"N\")","v":"Y"},"NY"]
[null,null,null,"General Fund",null,null,null,null,null,{"$f":"VLOOKUP(D528,'Bank and Fund Details'!$B$15:$D$36,3,FALSE)","v":0},{"$f":"VLOOKUP(D528,'Bank and Fund Details'!$B$15:$C$36,2,FALSE)","v":"Unrestricted"},{"$f":"IFERROR(VLOOKUP(C528,Descriptions!$B$6:$D$92,3,FALSE),\"\")","v":""},null,null,null,null,null,null,null,null,null,null,null,null,null,null,"General Fund",{"$f":"IFERROR(VLOOKUP(C528,Descriptions!B:F,5,FALSE),\"N\")","v":"N"},true,"NTRUE",0,null,{"$f":"IFERROR(VLOOKUP(D528,'Bank and Fund Details'!$B$14:$L$35,11,FALSE),\"N\")","v":"Y"},"NY"]
[null,null,null,"General Fund",null,null,null,null,null,{"$f":"VLOOKUP(D529,'Bank and Fund Details'!$B$15:$D$36,3,FALSE)","v":0},{"$f":"VLOOKUP(D529,'Bank and Fund Details'!$B$15:$C$36,2,FALSE)","v":"Unrestricted"},{"$f":"IFERROR(VLOOKUP(C529,Descriptions!$B$6:$D$92,3,FALSE),\"\")","v":""},null,null,null,null,null,null,null,null,null,null,null,null,null,null,"General Fund",{"$f":"IFERROR(VLOOKUP(C529,Descriptions!B:F,5,FALSE),\"N\")","v":"N"},true,"NTRUE",0,null,{"$f":"IFERROR(VLOOKUP(D529,'Bank and Fund Details'!$B$14:$L$35,11,FALSE),\"N\")","v":"Y"},"NY"]
[null,null,null,"General Fund",null,null,null,null,null,{"$f":"VLOOKUP(D530,'Bank and Fund Details'!$B$15:$D$36,3,FALSE)","v":0},{"$f":"VLOOKUP(D530,'Bank and Fund Details'!$B$15:$C$36,2,FALSE)","v":"Unrestricted"},{"$f":"IFERROR(VLOOKUP(C530,Descriptions!$B$6:$D$92,3,FALSE),\"\")","v":""},null,null,null,null,null,null,null,null,null,null,null,null,null,null,"General Fund",{"$f":"IFERROR(VLOOKUP(C530,Descriptions!B:F,5,FALSE),\"N\")","v":"N"},true,"NTRUE",0,null,{"$f":"IFERROR(VLOOKUP(D530,'Bank and Fund Details'!$B$14:$L$35,11,FALSE),\"N\")","v":"Y"},"NY"]
[null,null,null,"General Fund",null,null,null,null,null,{"$f":"VLOOKUP(D531,'Bank and Fund Details'!$B$15:$D$36,3,FALSE)","v":0},{"$f":"VLOOKUP(D531,'Bank and Fund Details'!$B$15:$C$36,2,FALSE)","v":"Unrestricted"},{"$f":"IFERROR(VLOOKUP(C531,Descriptions!$B$6:$D$92,3,FALSE),\"\")","v":""},null,null,null,null,null,null,null,null,null,null,null,null,null,null,"General Fund",{"$f":"IFERROR(VLOOKUP(C531,Descriptions!B:F,5,FALSE),\"N\")","v":"N"},true,"NTRUE",0,null,{"$f":"IFERROR(VLOOKUP(D531,'Bank and Fund Details'!$B$14:$L$35,11,FALSE),\"N\")","v":"Y"},"NY"]
[null,null,null,"General Fund",null,null,null,null,null,{"$f":"VLOOKUP(D532,'Bank and Fund Details'!$B$15:$D$36,3,FALSE)","v":0},{"$f":"VLOOKUP(D532,'Bank and Fund Details'!$B$15:$C$36,2,FALSE)","v":"Unrestricted"},{"$f":"IFERROR(VLOOKUP(C532,Descriptions!$B$6:$D$92,3,FALSE),\"\")","v":""},null,null,null,null,null,null,null,null,null,null,null,null,null,null,"General Fund",{"$f":"IFERROR(VLOOKUP(C532,Descriptions!B:F,5,FALSE),\"N\")","v":"N"},true,"NTRUE",0,null,{"$f":"IFERROR(VLOOKUP(D532,'Bank and Fund Details'!$B$14:$L$35,11,FALSE),\"N\")","v":"Y"},"NY"]
[null,null,null,"General Fund",null,null,null,null,null,{"$f":"VLOOKUP(D533,'Bank and Fund Details'!$B$15:$D$36,3,FALSE)","v":0},{"$f":"VLOOKUP(D533,'Bank and Fund Details'!$B$15:$C$36,2,FALSE)","v":"Unrestricted"},{"$f":"IFERROR(VLOOKUP(C533,Descriptions!$B$6:$D$92,3,FALSE),\"\")","v":""},null,null,null,null,null,null,null,null,null,null,null,null,null,null,"General Fund",{"$f":"IFERROR(VLOOKUP(C533,Descriptions!B:F,5,FALSE),\"N\")","v":"N"},true,"NTRUE",0,null,{"$f":"IFERROR(VLOOKUP(D533,'Bank and Fund Details'!$B$14:$L$35,11,FALSE),\"N\")","v":"Y"},"NY"]
[null,null,null,"General Fund",null,null,null,null,null,{"$f":"VLOOKUP(D534,'Bank and Fund Details'!$B$15:$D$36,3,FALSE)","v":0},{"$f":"VLOOKUP(D534,'Bank and Fund Details'!$B$15:$C$36,2,FALSE)","v":"Unrestricted"},{"$f":"IFERROR(VLOOKUP(C534,Descriptions!$B$6:$D$92,3,FALSE),\"\")","v":""},null,null,null,null,null,null,null,null,null,null,null,null,null,null,"General Fund",{"$f":"IFERROR(VLOOKUP(C534,Descriptions!B:F,5,FALSE),\"N\")","v":"N"},true,"NTRUE",0,null,{"$f":"IFERROR(VLOOKUP(D534,'Bank and Fund Details'!$B$14:$L$35,11,FALSE),\"N\")","v":"Y"},"NY"]
[null,null,null,"General Fund",null,null,null,null,null,{"$f":"VLOOKUP(D535,'Bank and Fund Details'!$B$15:$D$36,3,FALSE)","v":0},{"$f":"VLOOKUP(D535,'Bank and Fund Details'!$B$15:$C$36,2,FALSE)","v":"Unrestricted"},{"$f":"IFERROR(VLOOKUP(C535,Descriptions!$B$6:$D$92,3,FALSE),\"\")","v":""},null,null,null,null,null,null,null,null,null,null,null,null,null,null,"General Fund",{"$f":"IFERROR(VLOOKUP(C535,Descriptions!B:F,5,FALSE),\"N\")","v":"N"},true,"NTRUE",0,null,{"$f":"IFERROR(VLOOKUP(D535,'Bank and Fund Details'!$B$14:$L$35,11,FALSE),\"N\")","v":"Y"},"NY"]
[null,null,null,"General Fund",null,null,null,null,null,{"$f":"VLOOKUP(D536,'Bank and Fund Details'!$B$15:$D$36,3,FALSE)","v":0},{"$f":"VLOOKUP(D536,'Bank and Fund Details'!$B$15:$C$36,2,FALSE)","v":"Unrestricted"},{"$f":"IFERROR(VLOOKUP(C536,Descriptions!$B$6:$D$92,3,FALSE),\"\")","v":""},null,null,null,null,null,null,null,null,null,null,null,null,null,null,"General Fund",{"$f":"IFERROR(VLOOKUP(C536,Descriptions!B:F,5,FALSE),\"N\")","v":"N"},true,"NTRUE",0,null,{"$f":"IFERROR(VLOOKUP(D536,'Bank and Fund Details'!$B$14:$L$35,11,FALSE),\"N\")","v":"Y"},"NY"]
[null,null,null,"General Fund",null,null,null,null,null,{"$f":"VLOOKUP(D537,'Bank and Fund Details'!$B$15:$D$36,3,FALSE)","v":0},{"$f":"VLOOKUP(D537,'Bank and Fund Details'!$B$15:$C$36,2,FALSE)","v":"Unrestricted"},{"$f":"IFERROR(VLOOKUP(C537,Descriptions!$B$6:$D$92,3,FALSE),\"\")","v":""},null,null,null,null,null,null,null,null,null,null,null,null,null,null,"General Fund",{"$f":"IFERROR(VLOOKUP(C537,Descriptions!B:F,5,FALSE),\"N\")","v":"N"},true,"NTRUE",0,null,{"$f":"IFERROR(VLOOKUP(D537,'Bank and Fund Details'!$B$14:$L$35,11,FALSE),\"N\")","v":"Y"},"NY"]
[null,null,null,"General Fund",null,null,null,null,null,{"$f":"VLOOKUP(D538,'Bank and Fund Details'!$B$15:$D$36,3,FALSE)","v":0},{"$f":"VLOOKUP(D538,'Bank and Fund Details'!$B$15:$C$36,2,FALSE)","v":"Unrestricted"},{"$f":"IFERROR(VLOOKUP(C538,Descriptions!$B$6:$D$92,3,FALSE),\"\")","v":""},null,null,null,null,null,null,null,null,null,null,null,null,null,null,"General Fund",{"$f":"IFERROR(VLOOKUP(C538,Descriptions!B:F,5,FALSE),\"N\")","v":"N"},true,"NTRUE",0,null,{"$f":"IFERROR(VLOOKUP(D538,'Bank and Fund Details'!$B$14:$L$35,11,FALSE),\"N\")","v":"Y"},"NY"]
[null,null,null,"General Fund",null,null,null,null,null,{"$f":"VLOOKUP(D539,'Bank and Fund Details'!$B$15:$D$36,3,FALSE)","v":0},{"$f":"VLOOKUP(D539,'Bank and Fund Details'!$B$15:$C$36,2,FALSE)","v":"Unrestricted"},{"$f":"IFERROR(VLOOKUP(C539,Descriptions!$B$6:$D$92,3,FALSE),\"\")","v":""},null,null,null,null,null,null,null,null,null,null,null,null,null,null,"General Fund",{"$f":"IFERROR(VLOOKUP(C539,Descriptions!B:F,5,FALSE),\"N\")","v":"N"},true,"NTRUE",0,null,{"$f":"IFERROR(VLOOKUP(D539,'Bank and Fund Details'!$B$14:$L$35,11,FALSE),\"N\")","v":"Y"},"NY"]
[null,null,null,"General Fund",null,null,null,null,null,{"$f":"VLOOKUP(D540,'Bank and Fund Details'!$B$15:$D$36,3,FALSE)","v":0},{"$f":"VLOOKUP(D540,'Bank and Fund Details'!$B$15:$C$36,2,FALSE)","v":"Unrestricted"},{"$f":"IFERROR(VLOOKUP(C540,Descriptions!$B$6:$D$92,3,FALSE),\"\")","v":""},null,null,null,null,null,null,null,null,null,null,null,null,null,null,"General Fund",{"$f":"IFERROR(VLOOKUP(C540,Descriptions!B:F,5,FALSE),\"N\")","v":"N"},true,"NTRUE",0,null,{"$f":"IFERROR(VLOOKUP(D540,'Bank and Fund Details'!$B$14:$L$35,11,FALSE),\"N\")","v":"Y"},"NY"]
[null,null,null,"General Fund",null,null,null,null,null,{"$f":"VLOOKUP(D541,'Bank and Fund Details'!$B$15:$D$36,3,FALSE)","v":0},{"$f":"VLOOKUP(D541,'Bank and Fund Details'!$B$15:$C$36,2,FALSE)","v":"Unrestricted"},{"$f":"IFERROR(VLOOKUP(C541,Descriptions!$B$6:$D$92,3,FALSE),\"\")","v":""},null,null,null,null,null,null,null,null,null,null,null,null,null,null,"General Fund",{"$f":"IFERROR(VLOOKUP(C541,Descriptions!B:F,5,FALSE),\"N\")","v":"N"},true,"NTRUE",0,null,{"$f":"IFERROR(VLOOKUP(D541,'Bank and Fund Details'!$B$14:$L$35,11,FALSE),\"N\")","v":"Y"},"NY"]
[null,null,null,"General Fund",null,null,null,null,null,{"$f":"VLOOKUP(D542,'Bank and Fund Details'!$B$15:$D$36,3,FALSE)","v":0},{"$f":"VLOOKUP(D542,'Bank and Fund Details'!$B$15:$C$36,2,FALSE)","v":"Unrestricted"},{"$f":"IFERROR(VLOOKUP(C542,Descriptions!$B$6:$D$92,3,FALSE),\"\")","v":""},null,null,null,null,null,null,null,null,null,null,null,null,null,null,"General Fund",{"$f":"IFERROR(VLOOKUP(C542,Descriptions!B:F,5,FALSE),\"N\")","v":"N"},true,"NTRUE",0,null,{"$f":"IFERROR(VLOOKUP(D542,'Bank and Fund Details'!$B$14:$L$35,11,FALSE),\"N\")","v":"Y"},"NY"]
[null,null,null,"General Fund",null,null,null,null,null,{"$f":"VLOOKUP(D543,'Bank and Fund Details'!$B$15:$D$36,3,FALSE)","v":0},{"$f":"VLOOKUP(D543,'Bank and Fund Details'!$B$15:$C$36,2,FALSE)","v":"Unrestricted"},{"$f":"IFERROR(VLOOKUP(C543,Descriptions!$B$6:$D$92,3,FALSE),\"\")","v":""},null,null,null,null,null,null,null,null,null,null,null,null,null,null,"General Fund",{"$f":"IFERROR(VLOOKUP(C543,Descriptions!B:F,5,FALSE),\"N\")","v":"N"},true,"NTRUE",0,null,{"$f":"IFERROR(VLOOKUP(D543,'Bank and Fund Details'!$B$14:$L$35,11,FALSE),\"N\")","v":"Y"},"NY"]
[null,null,null,"General Fund",null,null,null,null,null,{"$f":"VLOOKUP(D544,'Bank and Fund Details'!$B$15:$D$36,3,FALSE)","v":0},{"$f":"VLOOKUP(D544,'Bank and Fund Details'!$B$15:$C$36,2,FALSE)","v":"Unrestricted"},{"$f":"IFERROR(VLOOKUP(C544,Descriptions!$B$6:$D$92,3,FALSE),\"\")","v":""},null,null,null,null,null,null,null,null,null,null,null,null,null,null,"General Fund",{"$f":"IFERROR(VLOOKUP(C544,Descriptions!B:F,5,FALSE),\"N\")","v":"N"},true,"NTRUE",0,null,{"$f":"IFERROR(VLOOKUP(D544,'Bank and Fund Details'!$B$14:$L$35,11,FALSE),\"N\")","v":"Y"},"NY"]
[null,null,null,"General Fund",null,null,null,null,null,{"$f":"VLOOKUP(D545,'Bank and Fund Details'!$B$15:$D$36,3,FALSE)","v":0},{"$f":"VLOOKUP(D545,'Bank and Fund Details'!$B$15:$C$36,2,FALSE)","v":"Unrestricted"},{"$f":"IFERROR(VLOOKUP(C545,Descriptions!$B$6:$D$92,3,FALSE),\"\")","v":""},null,null,null,null,null,null,null,null,null,null,null,null,null,null,"General Fund",{"$f":"IFERROR(VLOOKUP(C545,Descriptions!B:F,5,FALSE),\"N\")","v":"N"},true,"NTRUE",0,null,{"$f":"IFERROR(VLOOKUP(D545,'Bank and Fund Details'!$B$14:$L$35,11,FALSE),\"N\")","v":"Y"},"NY"]
[null,null,null,"General Fund",null,null,null,null,null,{"$f":"VLOOKUP(D546,'Bank and Fund Details'!$B$15:$D$36,3,FALSE)","v":0},{"$f":"VLOOKUP(D546,'Bank and Fund Details'!$B$15:$C$36,2,FALSE)","v":"Unrestricted"},{"$f":"IFERROR(VLOOKUP(C546,Descriptions!$B$6:$D$92,3,FALSE),\"\")","v":""},null,null,null,null,null,null,null,null,null,null,null,null,null,null,"General Fund",{"$f":"IFERROR(VLOOKUP(C546,Descriptions!B:F,5,FALSE),\"N\")","v":"N"},true,"NTRUE",0,null,{"$f":"IFERROR(VLOOKUP(D546,'Bank and Fund Details'!$B$14:$L$35,11,FALSE),\"N\")","v":"Y"},"NY"]
[null,null,null,"General Fund",null,null,null,null,null,{"$f":"VLOOKUP(D547,'Bank and Fund Details'!$B$15:$D$36,3,FALSE)","v":0},{"$f":"VLOOKUP(D547,'Bank and Fund Details'!$B$15:$C$36,2,FALSE)","v":"Unrestricted"},{"$f":"IFERROR(VLOOKUP(C547,Descriptions!$B$6:$D$92,3,FALSE),\"\")","v":""},null,null,null,null,null,null,null,null,null,null,null,null,null,null,"General Fund",{"$f":"IFERROR(VLOOKUP(C547,Descriptions!B:F,5,FALSE),\"N\")","v":"N"},true,"NTRUE",0,null,{"$f":"IFERROR(VLOOKUP(D547,'Bank and Fund Details'!$B$14:$L$35,11,FALSE),\"N\")","v":"Y"},"NY"]
[null,null,null,"General Fund",null,null,null,null,null,{"$f":"VLOOKUP(D548,'Bank and Fund Details'!$B$15:$D$36,3,FALSE)","v":0},{"$f":"VLOOKUP(D548,'Bank and Fund Details'!$B$15:$C$36,2,FALSE)","v":"Unrestricted"},{"$f":"IFERROR(VLOOKUP(C548,Descriptions!$B$6:$D$92,3,FALSE),\"\")","v":""},null,null,null,null,null,null,null,null,null,null,null,null,null,null,"General Fund",{"$f":"IFERROR(VLOOKUP(C548,Descriptions!B:F,5,FALSE),\"N\")","v":"N"},true,"NTRUE",0,null,{"$f":"IFERROR(VLOOKUP(D548,'Bank and Fund Details'!$B$14:$L$35,11,FALSE),\"N\")","v":"Y"},"NY"]
[null,null,null,"General Fund",null,null,null,null,null,{"$f":"VLOOKUP(D549,'Bank and Fund Details'!$B$15:$D$36,3,FALSE)","v":0},{"$f":"VLOOKUP(D549,'Bank and Fund Details'!$B$15:$C$36,2,FALSE)","v":"Unrestricted"},{"$f":"IFERROR(VLOOKUP(C549,Descriptions!$B$6:$D$92,3,FALSE),\"\")","v":""},null,null,null,null,null,null,null,null,null,null,null,null,null,null,"General Fund",{"$f":"IFERROR(VLOOKUP(C549,Descriptions!B:F,5,FALSE),\"N\")","v":"N"},true,"NTRUE",0,null,{"$f":"IFERROR(VLOOKUP(D549,'Bank and Fund Details'!$B$14:$L$35,11,FALSE),\"N\")","v":"Y"},"NY"]
[null,null,null,"General Fund",null,null,null,null,null,{"$f":"VLOOKUP(D550,'Bank and Fund Details'!$B$15:$D$36,3,FALSE)","v":0},{"$f":"VLOOKUP(D550,'Bank and Fund Details'!$B$15:$C$36,2,FALSE)","v":"Unrestricted"},{"$f":"IFERROR(VLOOKUP(C550,Descriptions!$B$6:$D$92,3,FALSE),\"\")","v":""},null,null,null,null,null,null,null,null,null,null,null,null,null,null,"General Fund",{"$f":"IFERROR(VLOOKUP(C550,Descriptions!B:F,5,FALSE),\"N\")","v":"N"},true,"NTRUE",0,null,{"$f":"IFERROR(VLOOKUP(D550,'Bank and Fund Details'!$B$14:$L$35,11,FALSE),\"N\")","v":"Y"},"NY"]
[null,null,null,"General Fund",null,null,null,null,null,{"$f":"VLOOKUP(D551,'Bank and Fund Details'!$B$15:$D$36,3,FALSE)","v":0},{"$f":"VLOOKUP(D551,'Bank and Fund Details'!$B$15:$C$36,2,FALSE)","v":"Unrestricted"},{"$f":"IFERROR(VLOOKUP(C551,Descriptions!$B$6:$D$92,3,FALSE),\"\")","v":""},null,null,null,null,null,null,null,null,null,null,null,null,null,null,"General Fund",{"$f":"IFERROR(VLOOKUP(C551,Descriptions!B:F,5,FALSE),\"N\")","v":"N"},true,"NTRUE",0,null,{"$f":"IFERROR(VLOOKUP(D551,'Bank and Fund Details'!$B$14:$L$35,11,FALSE),\"N\")","v":"Y"},"NY"]
[null,null,null,"General Fund",null,null,null,null,null,{"$f":"VLOOKUP(D552,'Bank and Fund Details'!$B$15:$D$36,3,FALSE)","v":0},{"$f":"VLOOKUP(D552,'Bank and Fund Details'!$B$15:$C$36,2,FALSE)","v":"Unrestricted"},{"$f":"IFERROR(VLOOKUP(C552,Descriptions!$B$6:$D$92,3,FALSE),\"\")","v":""},null,null,null,null,null,null,null,null,null,null,null,null,null,null,"General Fund",{"$f":"IFERROR(VLOOKUP(C552,Descriptions!B:F,5,FALSE),\"N\")","v":"N"},true,"NTRUE",0,null,{"$f":"IFERROR(VLOOKUP(D552,'Bank and Fund Details'!$B$14:$L$35,11,FALSE),\"N\")","v":"Y"},"NY"]
[null,null,null,"General Fund",null,null,null,null,null,{"$f":"VLOOKUP(D553,'Bank and Fund Details'!$B$15:$D$36,3,FALSE)","v":0},{"$f":"VLOOKUP(D553,'Bank and Fund Details'!$B$15:$C$36,2,FALSE)","v":"Unrestricted"},{"$f":"IFERROR(VLOOKUP(C553,Descriptions!$B$6:$D$92,3,FALSE),\"\")","v":""},null,null,null,null,null,null,null,null,null,null,null,null,null,null,"General Fund",{"$f":"IFERROR(VLOOKUP(C553,Descriptions!B:F,5,FALSE),\"N\")","v":"N"},true,"NTRUE",0,null,{"$f":"IFERROR(VLOOKUP(D553,'Bank and Fund Details'!$B$14:$L$35,11,FALSE),\"N\")","v":"Y"},"NY"]
[null,null,null,"General Fund",null,null,null,null,null,{"$f":"VLOOKUP(D554,'Bank and Fund Details'!$B$15:$D$36,3,FALSE)","v":0},{"$f":"VLOOKUP(D554,'Bank and Fund Details'!$B$15:$C$36,2,FALSE)","v":"Unrestricted"},{"$f":"IFERROR(VLOOKUP(C554,Descriptions!$B$6:$D$92,3,FALSE),\"\")","v":""},null,null,null,null,null,null,null,null,null,null,null,null,null,null,"General Fund",{"$f":"IFERROR(VLOOKUP(C554,Descriptions!B:F,5,FALSE),\"N\")","v":"N"},true,"NTRUE",0,null,{"$f":"IFERROR(VLOOKUP(D554,'Bank and Fund Details'!$B$14:$L$35,11,FALSE),\"N\")","v":"Y"},"NY"]
[null,null,null,"General Fund",null,null,null,null,null,{"$f":"VLOOKUP(D555,'Bank and Fund Details'!$B$15:$D$36,3,FALSE)","v":0},{"$f":"VLOOKUP(D555,'Bank and Fund Details'!$B$15:$C$36,2,FALSE)","v":"Unrestricted"},{"$f":"IFERROR(VLOOKUP(C555,Descriptions!$B$6:$D$92,3,FALSE),\"\")","v":""},null,null,null,null,null,null,null,null,null,null,null,null,null,null,"General Fund",{"$f":"IFERROR(VLOOKUP(C555,Descriptions!B:F,5,FALSE),\"N\")","v":"N"},true,"NTRUE",0,null,{"$f":"IFERROR(VLOOKUP(D555,'Bank and Fund Details'!$B$14:$L$35,11,FALSE),\"N\")","v":"Y"},"NY"]
[null,null,null,"General Fund",null,null,null,null,null,{"$f":"VLOOKUP(D556,'Bank and Fund Details'!$B$15:$D$36,3,FALSE)","v":0},{"$f":"VLOOKUP(D556,'Bank and Fund Details'!$B$15:$C$36,2,FALSE)","v":"Unrestricted"},{"$f":"IFERROR(VLOOKUP(C556,Descriptions!$B$6:$D$92,3,FALSE),\"\")","v":""},null,null,null,null,null,null,null,null,null,null,null,null,null,null,"General Fund",{"$f":"IFERROR(VLOOKUP(C556,Descriptions!B:F,5,FALSE),\"N\")","v":"N"},true,"NTRUE",0,null,{"$f":"IFERROR(VLOOKUP(D556,'Bank and Fund Details'!$B$14:$L$35,11,FALSE),\"N\")","v":"Y"},"NY"]
[null,null,null,"General Fund",null,null,null,null,null,{"$f":"VLOOKUP(D557,'Bank and Fund Details'!$B$15:$D$36,3,FALSE)","v":0},{"$f":"VLOOKUP(D557,'Bank and Fund Details'!$B$15:$C$36,2,FALSE)","v":"Unrestricted"},{"$f":"IFERROR(VLOOKUP(C557,Descriptions!$B$6:$D$92,3,FALSE),\"\")","v":""},null,null,null,null,null,null,null,null,null,null,null,null,null,null,"General Fund",{"$f":"IFERROR(VLOOKUP(C557,Descriptions!B:F,5,FALSE),\"N\")","v":"N"},true,"NTRUE",0,null,{"$f":"IFERROR(VLOOKUP(D557,'Bank and Fund Details'!$B$14:$L$35,11,FALSE),\"N\")","v":"Y"},"NY"]
[null,null,null,"General Fund",null,null,null,null,null,{"$f":"VLOOKUP(D558,'Bank and Fund Details'!$B$15:$D$36,3,FALSE)","v":0},{"$f":"VLOOKUP(D558,'Bank and Fund Details'!$B$15:$C$36,2,FALSE)","v":"Unrestricted"},{"$f":"IFERROR(VLOOKUP(C558,Descriptions!$B$6:$D$92,3,FALSE),\"\")","v":""},null,null,null,null,null,null,null,null,null,null,null,null,null,null,"General Fund",{"$f":"IFERROR(VLOOKUP(C558,Descriptions!B:F,5,FALSE),\"N\")","v":"N"},true,"NTRUE",0,null,{"$f":"IFERROR(VLOOKUP(D558,'Bank and Fund Details'!$B$14:$L$35,11,FALSE),\"N\")","v":"Y"},"NY"]
[null,null,null,"General Fund",null,null,null,null,null,{"$f":"VLOOKUP(D559,'Bank and Fund Details'!$B$15:$D$36,3,FALSE)","v":0},{"$f":"VLOOKUP(D559,'Bank and Fund Details'!$B$15:$C$36,2,FALSE)","v":"Unrestricted"},{"$f":"IFERROR(VLOOKUP(C559,Descriptions!$B$6:$D$92,3,FALSE),\"\")","v":""},null,null,null,null,null,null,null,null,null,null,null,null,null,null,"General Fund",{"$f":"IFERROR(VLOOKUP(C559,Descriptions!B:F,5,FALSE),\"N\")","v":"N"},true,"NTRUE",0,null,{"$f":"IFERROR(VLOOKUP(D559,'Bank and Fund Details'!$B$14:$L$35,11,FALSE),\"N\")","v":"Y"},"NY"]
[null,null,null,"General Fund",null,null,null,null,null,{"$f":"VLOOKUP(D560,'Bank and Fund Details'!$B$15:$D$36,3,FALSE)","v":0},{"$f":"VLOOKUP(D560,'Bank and Fund Details'!$B$15:$C$36,2,FALSE)","v":"Unrestricted"},{"$f":"IFERROR(VLOOKUP(C560,Descriptions!$B$6:$D$92,3,FALSE),\"\")","v":""},null,null,null,null,null,null,null,null,null,null,null,null,null,null,"General Fund",{"$f":"IFERROR(VLOOKUP(C560,Descriptions!B:F,5,FALSE),\"N\")","v":"N"},true,"NTRUE",0,null,{"$f":"IFERROR(VLOOKUP(D560,'Bank and Fund Details'!$B$14:$L$35,11,FALSE),\"N\")","v":"Y"},"NY"]
[null,null,null,"General Fund",null,null,null,null,null,{"$f":"VLOOKUP(D561,'Bank and Fund Details'!$B$15:$D$36,3,FALSE)","v":0},{"$f":"VLOOKUP(D561,'Bank and Fund Details'!$B$15:$C$36,2,FALSE)","v":"Unrestricted"},{"$f":"IFERROR(VLOOKUP(C561,Descriptions!$B$6:$D$92,3,FALSE),\"\")","v":""},null,null,null,null,null,null,null,null,null,null,null,null,null,null,"General Fund",{"$f":"IFERROR(VLOOKUP(C561,Descriptions!B:F,5,FALSE),\"N\")","v":"N"},true,"NTRUE",0,null,{"$f":"IFERROR(VLOOKUP(D561,'Bank and Fund Details'!$B$14:$L$35,11,FALSE),\"N\")","v":"Y"},"NY"]
[null,null,null,"General Fund",null,null,null,null,null,{"$f":"VLOOKUP(D562,'Bank and Fund Details'!$B$15:$D$36,3,FALSE)","v":0},{"$f":"VLOOKUP(D562,'Bank and Fund Details'!$B$15:$C$36,2,FALSE)","v":"Unrestricted"},{"$f":"IFERROR(VLOOKUP(C562,Descriptions!$B$6:$D$92,3,FALSE),\"\")","v":""},null,null,null,null,null,null,null,null,null,null,null,null,null,null,"General Fund",{"$f":"IFERROR(VLOOKUP(C562,Descriptions!B:F,5,FALSE),\"N\")","v":"N"},true,"NTRUE",0,null,{"$f":"IFERROR(VLOOKUP(D562,'Bank and Fund Details'!$B$14:$L$35,11,FALSE),\"N\")","v":"Y"},"NY"]
[null,null,null,"General Fund",null,null,null,null,null,{"$f":"VLOOKUP(D563,'Bank and Fund Details'!$B$15:$D$36,3,FALSE)","v":0},{"$f":"VLOOKUP(D563,'Bank and Fund Details'!$B$15:$C$36,2,FALSE)","v":"Unrestricted"},{"$f":"IFERROR(VLOOKUP(C563,Descriptions!$B$6:$D$92,3,FALSE),\"\")","v":""},null,null,null,null,null,null,null,null,null,null,null,null,null,null,"General Fund",{"$f":"IFERROR(VLOOKUP(C563,Descriptions!B:F,5,FALSE),\"N\")","v":"N"},true,"NTRUE",0,null,{"$f":"IFERROR(VLOOKUP(D563,'Bank and Fund Details'!$B$14:$L$35,11,FALSE),\"N\")","v":"Y"},"NY"]
[null,null,null,"General Fund",null,null,null,null,null,{"$f":"VLOOKUP(D564,'Bank and Fund Details'!$B$15:$D$36,3,FALSE)","v":0},{"$f":"VLOOKUP(D564,'Bank and Fund Details'!$B$15:$C$36,2,FALSE)","v":"Unrestricted"},{"$f":"IFERROR(VLOOKUP(C564,Descriptions!$B$6:$D$92,3,FALSE),\"\")","v":""},null,null,null,null,null,null,null,null,null,null,null,null,null,null,"General Fund",{"$f":"IFERROR(VLOOKUP(C564,Descriptions!B:F,5,FALSE),\"N\")","v":"N"},true,"NTRUE",0,null,{"$f":"IFERROR(VLOOKUP(D564,'Bank and Fund Details'!$B$14:$L$35,11,FALSE),\"N\")","v":"Y"},"NY"]
[null,null,null,"General Fund",null,null,null,null,null,{"$f":"VLOOKUP(D565,'Bank and Fund Details'!$B$15:$D$36,3,FALSE)","v":0},{"$f":"VLOOKUP(D565,'Bank and Fund Details'!$B$15:$C$36,2,FALSE)","v":"Unrestricted"},{"$f":"IFERROR(VLOOKUP(C565,Descriptions!$B$6:$D$92,3,FALSE),\"\")","v":""},null,null,null,null,null,null,null,null,null,null,null,null,null,null,"General Fund",{"$f":"IFERROR(VLOOKUP(C565,Descriptions!B:F,5,FALSE),\"N\")","v":"N"},true,"NTRUE",0,null,{"$f":"IFERROR(VLOOKUP(D565,'Bank and Fund Details'!$B$14:$L$35,11,FALSE),\"N\")","v":"Y"},"NY"]
[null,null,null,"General Fund",null,null,null,null,null,{"$f":"VLOOKUP(D566,'Bank and Fund Details'!$B$15:$D$36,3,FALSE)","v":0},{"$f":"VLOOKUP(D566,'Bank and Fund Details'!$B$15:$C$36,2,FALSE)","v":"Unrestricted"},{"$f":"IFERROR(VLOOKUP(C566,Descriptions!$B$6:$D$92,3,FALSE),\"\")","v":""},null,null,null,null,null,null,null,null,null,null,null,null,null,null,"General Fund",{"$f":"IFERROR(VLOOKUP(C566,Descriptions!B:F,5,FALSE),\"N\")","v":"N"},true,"NTRUE",0,null,{"$f":"IFERROR(VLOOKUP(D566,'Bank and Fund Details'!$B$14:$L$35,11,FALSE),\"N\")","v":"Y"},"NY"]
[null,null,null,"General Fund",null,null,null,null,null,{"$f":"VLOOKUP(D567,'Bank and Fund Details'!$B$15:$D$36,3,FALSE)","v":0},{"$f":"VLOOKUP(D567,'Bank and Fund Details'!$B$15:$C$36,2,FALSE)","v":"Unrestricted"},{"$f":"IFERROR(VLOOKUP(C567,Descriptions!$B$6:$D$92,3,FALSE),\"\")","v":""},null,null,null,null,null,null,null,null,null,null,null,null,null,null,"General Fund",{"$f":"IFERROR(VLOOKUP(C567,Descriptions!B:F,5,FALSE),\"N\")","v":"N"},true,"NTRUE",0,null,{"$f":"IFERROR(VLOOKUP(D567,'Bank and Fund Details'!$B$14:$L$35,11,FALSE),\"N\")","v":"Y"},"NY"]
[null,null,null,"General Fund",null,null,null,null,null,{"$f":"VLOOKUP(D568,'Bank and Fund Details'!$B$15:$D$36,3,FALSE)","v":0},{"$f":"VLOOKUP(D568,'Bank and Fund Details'!$B$15:$C$36,2,FALSE)","v":"Unrestricted"},{"$f":"IFERROR(VLOOKUP(C568,Descriptions!$B$6:$D$92,3,FALSE),\"\")","v":""},null,null,null,null,null,null,null,null,null,null,null,null,null,null,"General Fund",{"$f":"IFERROR(VLOOKUP(C568,Descriptions!B:F,5,FALSE),\"N\")","v":"N"},true,"NTRUE",0,null,{"$f":"IFERROR(VLOOKUP(D568,'Bank and Fund Details'!$B$14:$L$35,11,FALSE),\"N\")","v":"Y"},"NY"]
[null,null,null,"General Fund",null,null,null,null,null,{"$f":"VLOOKUP(D569,'Bank and Fund Details'!$B$15:$D$36,3,FALSE)","v":0},{"$f":"VLOOKUP(D569,'Bank and Fund Details'!$B$15:$C$36,2,FALSE)","v":"Unrestricted"},{"$f":"IFERROR(VLOOKUP(C569,Descriptions!$B$6:$D$92,3,FALSE),\"\")","v":""},null,null,null,null,null,null,null,null,null,null,null,null,null,null,"General Fund",{"$f":"IFERROR(VLOOKUP(C569,Descriptions!B:F,5,FALSE),\"N\")","v":"N"},true,"NTRUE",0,null,{"$f":"IFERROR(VLOOKUP(D569,'Bank and Fund Details'!$B$14:$L$35,11,FALSE),\"N\")","v":"Y"},"NY"]
[null,null,null,"General Fund",null,null,null,null,null,{"$f":"VLOOKUP(D570,'Bank and Fund Details'!$B$15:$D$36,3,FALSE)","v":0},{"$f":"VLOOKUP(D570,'Bank and Fund Details'!$B$15:$C$36,2,FALSE)","v":"Unrestricted"},{"$f":"IFERROR(VLOOKUP(C570,Descriptions!$B$6:$D$92,3,FALSE),\"\")","v":""},null,null,null,null,null,null,null,null,null,null,null,null,null,null,"General Fund",{"$f":"IFERROR(VLOOKUP(C570,Descriptions!B:F,5,FALSE),\"N\")","v":"N"},true,"NTRUE",0,null,{"$f":"IFERROR(VLOOKUP(D570,'Bank and Fund Details'!$B$14:$L$35,11,FALSE),\"N\")","v":"Y"},"NY"]
[null,null,null,"General Fund",null,null,null,null,null,{"$f":"VLOOKUP(D571,'Bank and Fund Details'!$B$15:$D$36,3,FALSE)","v":0},{"$f":"VLOOKUP(D571,'Bank and Fund Details'!$B$15:$C$36,2,FALSE)","v":"Unrestricted"},{"$f":"IFERROR(VLOOKUP(C571,Descriptions!$B$6:$D$92,3,FALSE),\"\")","v":""},null,null,null,null,null,null,null,null,null,null,null,null,null,null,"General Fund",{"$f":"IFERROR(VLOOKUP(C571,Descriptions!B:F,5,FALSE),\"N\")","v":"N"},true,"NTRUE",0,null,{"$f":"IFERROR(VLOOKUP(D571,'Bank and Fund Details'!$B$14:$L$35,11,FALSE),\"N\")","v":"Y"},"NY"]
[null,null,null,"General Fund",null,null,null,null,null,{"$f":"VLOOKUP(D572,'Bank and Fund Details'!$B$15:$D$36,3,FALSE)","v":0},{"$f":"VLOOKUP(D572,'Bank and Fund Details'!$B$15:$C$36,2,FALSE)","v":"Unrestricted"},{"$f":"IFERROR(VLOOKUP(C572,Descriptions!$B$6:$D$92,3,FALSE),\"\")","v":""},null,null,null,null,null,null,null,null,null,null,null,null,null,null,"General Fund",{"$f":"IFERROR(VLOOKUP(C572,Descriptions!B:F,5,FALSE),\"N\")","v":"N"},true,"NTRUE",0,null,{"$f":"IFERROR(VLOOKUP(D572,'Bank and Fund Details'!$B$14:$L$35,11,FALSE),\"N\")","v":"Y"},"NY"]
[null,null,null,"General Fund",null,null,null,null,null,{"$f":"VLOOKUP(D573,'Bank and Fund Details'!$B$15:$D$36,3,FALSE)","v":0},{"$f":"VLOOKUP(D573,'Bank and Fund Details'!$B$15:$C$36,2,FALSE)","v":"Unrestricted"},{"$f":"IFERROR(VLOOKUP(C573,Descriptions!$B$6:$D$92,3,FALSE),\"\")","v":""},null,null,null,null,null,null,null,null,null,null,null,null,null,null,"General Fund",{"$f":"IFERROR(VLOOKUP(C573,Descriptions!B:F,5,FALSE),\"N\")","v":"N"},true,"NTRUE",0,null,{"$f":"IFERROR(VLOOKUP(D573,'Bank and Fund Details'!$B$14:$L$35,11,FALSE),\"N\")","v":"Y"},"NY"]
[null,null,null,"General Fund",null,null,null,null,null,{"$f":"VLOOKUP(D574,'Bank and Fund Details'!$B$15:$D$36,3,FALSE)","v":0},{"$f":"VLOOKUP(D574,'Bank and Fund Details'!$B$15:$C$36,2,FALSE)","v":"Unrestricted"},{"$f":"IFERROR(VLOOKUP(C574,Descriptions!$B$6:$D$92,3,FALSE),\"\")","v":""},null,null,null,null,null,null,null,null,null,null,null,null,null,null,"General Fund",{"$f":"IFERROR(VLOOKUP(C574,Descriptions!B:F,5,FALSE),\"N\")","v":"N"},true,"NTRUE",0,null,{"$f":"IFERROR(VLOOKUP(D574,'Bank and Fund Details'!$B$14:$L$35,11,FALSE),\"N\")","v":"Y"},"NY"]
[null,null,null,"General Fund",null,null,null,null,null,{"$f":"VLOOKUP(D575,'Bank and Fund Details'!$B$15:$D$36,3,FALSE)","v":0},{"$f":"VLOOKUP(D575,'Bank and Fund Details'!$B$15:$C$36,2,FALSE)","v":"Unrestricted"},{"$f":"IFERROR(VLOOKUP(C575,Descriptions!$B$6:$D$92,3,FALSE),\"\")","v":""},null,null,null,null,null,null,null,null,null,null,null,null,null,null,"General Fund",{"$f":"IFERROR(VLOOKUP(C575,Descriptions!B:F,5,FALSE),\"N\")","v":"N"},true,"NTRUE",0,null,{"$f":"IFERROR(VLOOKUP(D575,'Bank and Fund Details'!$B$14:$L$35,11,FALSE),\"N\")","v":"Y"},"NY"]
[null,null,null,"General Fund",null,null,null,null,null,{"$f":"VLOOKUP(D576,'Bank and Fund Details'!$B$15:$D$36,3,FALSE)","v":0},{"$f":"VLOOKUP(D576,'Bank and Fund Details'!$B$15:$C$36,2,FALSE)","v":"Unrestricted"},{"$f":"IFERROR(VLOOKUP(C576,Descriptions!$B$6:$D$92,3,FALSE),\"\")","v":""},null,null,null,null,null,null,null,null,null,null,null,null,null,null,"General Fund",{"$f":"IFERROR(VLOOKUP(C576,Descriptions!B:F,5,FALSE),\"N\")","v":"N"},true,"NTRUE",0,null,{"$f":"IFERROR(VLOOKUP(D576,'Bank and Fund Details'!$B$14:$L$35,11,FALSE),\"N\")","v":"Y"},"NY"]
[null,null,null,"General Fund",null,null,null,null,null,{"$f":"VLOOKUP(D577,'Bank and Fund Details'!$B$15:$D$36,3,FALSE)","v":0},{"$f":"VLOOKUP(D577,'Bank and Fund Details'!$B$15:$C$36,2,FALSE)","v":"Unrestricted"},{"$f":"IFERROR(VLOOKUP(C577,Descriptions!$B$6:$D$92,3,FALSE),\"\")","v":""},null,null,null,null,null,null,null,null,null,null,null,null,null,null,"General Fund",{"$f":"IFERROR(VLOOKUP(C577,Descriptions!B:F,5,FALSE),\"N\")","v":"N"},true,"NTRUE",0,null,{"$f":"IFERROR(VLOOKUP(D577,'Bank and Fund Details'!$B$14:$L$35,11,FALSE),\"N\")","v":"Y"},"NY"]
[null,null,null,"General Fund",null,null,null,null,null,{"$f":"VLOOKUP(D578,'Bank and Fund Details'!$B$15:$D$36,3,FALSE)","v":0},{"$f":"VLOOKUP(D578,'Bank and Fund Details'!$B$15:$C$36,2,FALSE)","v":"Unrestricted"},{"$f":"IFERROR(VLOOKUP(C578,Descriptions!$B$6:$D$92,3,FALSE),\"\")","v":""},null,null,null,null,null,null,null,null,null,null,null,null,null,null,"General Fund",{"$f":"IFERROR(VLOOKUP(C578,Descriptions!B:F,5,FALSE),\"N\")","v":"N"},true,"NTRUE",0,null,{"$f":"IFERROR(VLOOKUP(D578,'Bank and Fund Details'!$B$14:$L$35,11,FALSE),\"N\")","v":"Y"},"NY"]
[null,null,null,"General Fund",null,null,null,null,null,{"$f":"VLOOKUP(D579,'Bank and Fund Details'!$B$15:$D$36,3,FALSE)","v":0},{"$f":"VLOOKUP(D579,'Bank and Fund Details'!$B$15:$C$36,2,FALSE)","v":"Unrestricted"},{"$f":"IFERROR(VLOOKUP(C579,Descriptions!$B$6:$D$92,3,FALSE),\"\")","v":""},null,null,null,null,null,null,null,null,null,null,null,null,null,null,"General Fund",{"$f":"IFERROR(VLOOKUP(C579,Descriptions!B:F,5,FALSE),\"N\")","v":"N"},true,"NTRUE",0,null,{"$f":"IFERROR(VLOOKUP(D579,'Bank and Fund Details'!$B$14:$L$35,11,FALSE),\"N\")","v":"Y"},"NY"]
[null,null,null,"General Fund",null,null,null,null,null,{"$f":"VLOOKUP(D580,'Bank and Fund Details'!$B$15:$D$36,3,FALSE)","v":0},{"$f":"VLOOKUP(D580,'Bank and Fund Details'!$B$15:$C$36,2,FALSE)","v":"Unrestricted"},{"$f":"IFERROR(VLOOKUP(C580,Descriptions!$B$6:$D$92,3,FALSE),\"\")","v":""},null,null,null,null,null,null,null,null,null,null,null,null,null,null,"General Fund",{"$f":"IFERROR(VLOOKUP(C580,Descriptions!B:F,5,FALSE),\"N\")","v":"N"},true,"NTRUE",0,null,{"$f":"IFERROR(VLOOKUP(D580,'Bank and Fund Details'!$B$14:$L$35,11,FALSE),\"N\")","v":"Y"},"NY"]
[null,null,null,"General Fund",null,null,null,null,null,{"$f":"VLOOKUP(D581,'Bank and Fund Details'!$B$15:$D$36,3,FALSE)","v":0},{"$f":"VLOOKUP(D581,'Bank and Fund Details'!$B$15:$C$36,2,FALSE)","v":"Unrestricted"},{"$f":"IFERROR(VLOOKUP(C581,Descriptions!$B$6:$D$92,3,FALSE),\"\")","v":""},null,null,null,null,null,null,null,null,null,null,null,null,null,null,{"$f":"CONCATENATE(C581,D581)","v":"General Fund"},{"$f":"IFERROR(VLOOKUP(C581,Descriptions!B:F,5,FALSE),\"N\")","v":"N"},{"$f":"ISBLANK(C581)","v":true},{"$f":"CONCATENATE(AB581,AC581)","v":"NTRUE"},{"$f":"IF(AD581=\"NFALSE\",1,0)","v":0},null,{"$f":"IFERROR(VLOOKUP(D581,'Bank and Fund Details'!$B$14:$L$35,11,FALSE),\"N\")","v":"Y"},"NY"]
[null,null,null,"General Fund",null,null,null,null,null,{"$f":"VLOOKUP(D582,'Bank and Fund Details'!$B$15:$D$36,3,FALSE)","v":0},{"$f":"VLOOKUP(D582,'Bank and Fund Details'!$B$15:$C$36,2,FALSE)","v":"Unrestricted"},{"$f":"IFERROR(VLOOKUP(C582,Descriptions!$B$6:$D$92,3,FALSE),\"\")","v":""},null,null,null,null,null,null,null,null,null,null,null,null,null,null,"General Fund",{"$f":"IFERROR(VLOOKUP(C582,Descriptions!B:F,5,FALSE),\"N\")","v":"N"},true,"NTRUE",0,null,{"$f":"IFERROR(VLOOKUP(D582,'Bank and Fund Details'!$B$14:$L$35,11,FALSE),\"N\")","v":"Y"},{"$f":"CONCATENATE(AB582,AG582)","v":"NY"}]
[null,null,null,"General Fund",null,null,null,null,null,{"$f":"VLOOKUP(D583,'Bank and Fund Details'!$B$15:$D$36,3,FALSE)","v":0},{"$f":"VLOOKUP(D583,'Bank and Fund Details'!$B$15:$C$36,2,FALSE)","v":"Unrestricted"},{"$f":"IFERROR(VLOOKUP(C583,Descriptions!$B$6:$D$92,3,FALSE),\"\")","v":""},null,null,null,null,null,null,null,null,null,null,null,null,null,null,"General Fund",{"$f":"IFERROR(VLOOKUP(C583,Descriptions!B:F,5,FALSE),\"N\")","v":"N"},true,"NTRUE",0,null,{"$f":"IFERROR(VLOOKUP(D583,'Bank and Fund Details'!$B$14:$L$35,11,FALSE),\"N\")","v":"Y"},"NY"]
[null,null,null,"General Fund",null,null,null,null,null,{"$f":"VLOOKUP(D584,'Bank and Fund Details'!$B$15:$D$36,3,FALSE)","v":0},{"$f":"VLOOKUP(D584,'Bank and Fund Details'!$B$15:$C$36,2,FALSE)","v":"Unrestricted"},{"$f":"IFERROR(VLOOKUP(C584,Descriptions!$B$6:$D$92,3,FALSE),\"\")","v":""},null,null,null,null,null,null,null,null,null,null,null,null,null,null,"General Fund",{"$f":"IFERROR(VLOOKUP(C584,Descriptions!B:F,5,FALSE),\"N\")","v":"N"},true,"NTRUE",0,null,{"$f":"IFERROR(VLOOKUP(D584,'Bank and Fund Details'!$B$14:$L$35,11,FALSE),\"N\")","v":"Y"},"NY"]
[null,null,null,"General Fund",null,null,null,null,null,{"$f":"VLOOKUP(D585,'Bank and Fund Details'!$B$15:$D$36,3,FALSE)","v":0},{"$f":"VLOOKUP(D585,'Bank and Fund Details'!$B$15:$C$36,2,FALSE)","v":"Unrestricted"},{"$f":"IFERROR(VLOOKUP(C585,Descriptions!$B$6:$D$92,3,FALSE),\"\")","v":""},null,null,null,null,null,null,null,null,null,null,null,null,null,null,"General Fund",{"$f":"IFERROR(VLOOKUP(C585,Descriptions!B:F,5,FALSE),\"N\")","v":"N"},true,"NTRUE",0,null,{"$f":"IFERROR(VLOOKUP(D585,'Bank and Fund Details'!$B$14:$L$35,11,FALSE),\"N\")","v":"Y"},"NY"]
[null,null,null,"General Fund",null,null,null,null,null,{"$f":"VLOOKUP(D586,'Bank and Fund Details'!$B$15:$D$36,3,FALSE)","v":0},{"$f":"VLOOKUP(D586,'Bank and Fund Details'!$B$15:$C$36,2,FALSE)","v":"Unrestricted"},{"$f":"IFERROR(VLOOKUP(C586,Descriptions!$B$6:$D$92,3,FALSE),\"\")","v":""},null,null,null,null,null,null,null,null,null,null,null,null,null,null,"General Fund",{"$f":"IFERROR(VLOOKUP(C586,Descriptions!B:F,5,FALSE),\"N\")","v":"N"},true,"NTRUE",0,null,{"$f":"IFERROR(VLOOKUP(D586,'Bank and Fund Details'!$B$14:$L$35,11,FALSE),\"N\")","v":"Y"},"NY"]
[null,null,null,"General Fund",null,null,null,null,null,{"$f":"VLOOKUP(D587,'Bank and Fund Details'!$B$15:$D$36,3,FALSE)","v":0},{"$f":"VLOOKUP(D587,'Bank and Fund Details'!$B$15:$C$36,2,FALSE)","v":"Unrestricted"},{"$f":"IFERROR(VLOOKUP(C587,Descriptions!$B$6:$D$92,3,FALSE),\"\")","v":""},null,null,null,null,null,null,null,null,null,null,null,null,null,null,"General Fund",{"$f":"IFERROR(VLOOKUP(C587,Descriptions!B:F,5,FALSE),\"N\")","v":"N"},true,"NTRUE",0,null,{"$f":"IFERROR(VLOOKUP(D587,'Bank and Fund Details'!$B$14:$L$35,11,FALSE),\"N\")","v":"Y"},"NY"]
[null,null,null,"General Fund",null,null,null,null,null,{"$f":"VLOOKUP(D588,'Bank and Fund Details'!$B$15:$D$36,3,FALSE)","v":0},{"$f":"VLOOKUP(D588,'Bank and Fund Details'!$B$15:$C$36,2,FALSE)","v":"Unrestricted"},{"$f":"IFERROR(VLOOKUP(C588,Descriptions!$B$6:$D$92,3,FALSE),\"\")","v":""},null,null,null,null,null,null,null,null,null,null,null,null,null,null,"General Fund",{"$f":"IFERROR(VLOOKUP(C588,Descriptions!B:F,5,FALSE),\"N\")","v":"N"},true,"NTRUE",0,null,{"$f":"IFERROR(VLOOKUP(D588,'Bank and Fund Details'!$B$14:$L$35,11,FALSE),\"N\")","v":"Y"},"NY"]
[null,null,null,"General Fund",null,null,null,null,null,{"$f":"VLOOKUP(D589,'Bank and Fund Details'!$B$15:$D$36,3,FALSE)","v":0},{"$f":"VLOOKUP(D589,'Bank and Fund Details'!$B$15:$C$36,2,FALSE)","v":"Unrestricted"},{"$f":"IFERROR(VLOOKUP(C589,Descriptions!$B$6:$D$92,3,FALSE),\"\")","v":""},null,null,null,null,null,null,null,null,null,null,null,null,null,null,"General Fund",{"$f":"IFERROR(VLOOKUP(C589,Descriptions!B:F,5,FALSE),\"N\")","v":"N"},true,"NTRUE",0,null,{"$f":"IFERROR(VLOOKUP(D589,'Bank and Fund Details'!$B$14:$L$35,11,FALSE),\"N\")","v":"Y"},"NY"]
[null,null,null,"General Fund",null,null,null,null,null,{"$f":"VLOOKUP(D590,'Bank and Fund Details'!$B$15:$D$36,3,FALSE)","v":0},{"$f":"VLOOKUP(D590,'Bank and Fund Details'!$B$15:$C$36,2,FALSE)","v":"Unrestricted"},{"$f":"IFERROR(VLOOKUP(C590,Descriptions!$B$6:$D$92,3,FALSE),\"\")","v":""},null,null,null,null,null,null,null,null,null,null,null,null,null,null,"General Fund",{"$f":"IFERROR(VLOOKUP(C590,Descriptions!B:F,5,FALSE),\"N\")","v":"N"},true,"NTRUE",0,null,{"$f":"IFERROR(VLOOKUP(D590,'Bank and Fund Details'!$B$14:$L$35,11,FALSE),\"N\")","v":"Y"},"NY"]
[null,null,null,"General Fund",null,null,null,null,null,{"$f":"VLOOKUP(D591,'Bank and Fund Details'!$B$15:$D$36,3,FALSE)","v":0},{"$f":"VLOOKUP(D591,'Bank and Fund Details'!$B$15:$C$36,2,FALSE)","v":"Unrestricted"},{"$f":"IFERROR(VLOOKUP(C591,Descriptions!$B$6:$D$92,3,FALSE),\"\")","v":""},null,null,null,null,null,null,null,null,null,null,null,null,null,null,"General Fund",{"$f":"IFERROR(VLOOKUP(C591,Descriptions!B:F,5,FALSE),\"N\")","v":"N"},true,"NTRUE",0,null,{"$f":"IFERROR(VLOOKUP(D591,'Bank and Fund Details'!$B$14:$L$35,11,FALSE),\"N\")","v":"Y"},"NY"]
[null,null,null,"General Fund",null,null,null,null,null,{"$f":"VLOOKUP(D592,'Bank and Fund Details'!$B$15:$D$36,3,FALSE)","v":0},{"$f":"VLOOKUP(D592,'Bank and Fund Details'!$B$15:$C$36,2,FALSE)","v":"Unrestricted"},{"$f":"IFERROR(VLOOKUP(C592,Descriptions!$B$6:$D$92,3,FALSE),\"\")","v":""},null,null,null,null,null,null,null,null,null,null,null,null,null,null,"General Fund",{"$f":"IFERROR(VLOOKUP(C592,Descriptions!B:F,5,FALSE),\"N\")","v":"N"},true,"NTRUE",0,null,{"$f":"IFERROR(VLOOKUP(D592,'Bank and Fund Details'!$B$14:$L$35,11,FALSE),\"N\")","v":"Y"},"NY"]
[null,null,null,"General Fund",null,null,null,null,null,{"$f":"VLOOKUP(D593,'Bank and Fund Details'!$B$15:$D$36,3,FALSE)","v":0},{"$f":"VLOOKUP(D593,'Bank and Fund Details'!$B$15:$C$36,2,FALSE)","v":"Unrestricted"},{"$f":"IFERROR(VLOOKUP(C593,Descriptions!$B$6:$D$92,3,FALSE),\"\")","v":""},null,null,null,null,null,null,null,null,null,null,null,null,null,null,"General Fund",{"$f":"IFERROR(VLOOKUP(C593,Descriptions!B:F,5,FALSE),\"N\")","v":"N"},true,"NTRUE",0,null,{"$f":"IFERROR(VLOOKUP(D593,'Bank and Fund Details'!$B$14:$L$35,11,FALSE),\"N\")","v":"Y"},"NY"]
[null,null,null,"General Fund",null,null,null,null,null,{"$f":"VLOOKUP(D594,'Bank and Fund Details'!$B$15:$D$36,3,FALSE)","v":0},{"$f":"VLOOKUP(D594,'Bank and Fund Details'!$B$15:$C$36,2,FALSE)","v":"Unrestricted"},{"$f":"IFERROR(VLOOKUP(C594,Descriptions!$B$6:$D$92,3,FALSE),\"\")","v":""},null,null,null,null,null,null,null,null,null,null,null,null,null,null,"General Fund",{"$f":"IFERROR(VLOOKUP(C594,Descriptions!B:F,5,FALSE),\"N\")","v":"N"},true,"NTRUE",0,null,{"$f":"IFERROR(VLOOKUP(D594,'Bank and Fund Details'!$B$14:$L$35,11,FALSE),\"N\")","v":"Y"},"NY"]
[null,null,null,"General Fund",null,null,null,null,null,{"$f":"VLOOKUP(D595,'Bank and Fund Details'!$B$15:$D$36,3,FALSE)","v":0},{"$f":"VLOOKUP(D595,'Bank and Fund Details'!$B$15:$C$36,2,FALSE)","v":"Unrestricted"},{"$f":"IFERROR(VLOOKUP(C595,Descriptions!$B$6:$D$92,3,FALSE),\"\")","v":""},null,null,null,null,null,null,null,null,null,null,null,null,null,null,"General Fund",{"$f":"IFERROR(VLOOKUP(C595,Descriptions!B:F,5,FALSE),\"N\")","v":"N"},true,"NTRUE",0,null,{"$f":"IFERROR(VLOOKUP(D595,'Bank and Fund Details'!$B$14:$L$35,11,FALSE),\"N\")","v":"Y"},"NY"]
[null,null,null,"General Fund",null,null,null,null,null,{"$f":"VLOOKUP(D596,'Bank and Fund Details'!$B$15:$D$36,3,FALSE)","v":0},{"$f":"VLOOKUP(D596,'Bank and Fund Details'!$B$15:$C$36,2,FALSE)","v":"Unrestricted"},{"$f":"IFERROR(VLOOKUP(C596,Descriptions!$B$6:$D$92,3,FALSE),\"\")","v":""},null,null,null,null,null,null,null,null,null,null,null,null,null,null,"General Fund",{"$f":"IFERROR(VLOOKUP(C596,Descriptions!B:F,5,FALSE),\"N\")","v":"N"},true,"NTRUE",0,null,{"$f":"IFERROR(VLOOKUP(D596,'Bank and Fund Details'!$B$14:$L$35,11,FALSE),\"N\")","v":"Y"},"NY"]
[null,null,null,"General Fund",null,null,null,null,null,{"$f":"VLOOKUP(D597,'Bank and Fund Details'!$B$15:$D$36,3,FALSE)","v":0},{"$f":"VLOOKUP(D597,'Bank and Fund Details'!$B$15:$C$36,2,FALSE)","v":"Unrestricted"},{"$f":"IFERROR(VLOOKUP(C597,Descriptions!$B$6:$D$92,3,FALSE),\"\")","v":""},null,null,null,null,null,null,null,null,null,null,null,null,null,null,"General Fund",{"$f":"IFERROR(VLOOKUP(C597,Descriptions!B:F,5,FALSE),\"N\")","v":"N"},true,"NTRUE",0,null,{"$f":"IFERROR(VLOOKUP(D597,'Bank and Fund Details'!$B$14:$L$35,11,FALSE),\"N\")","v":"Y"},"NY"]
[null,null,null,"General Fund",null,null,null,null,null,{"$f":"VLOOKUP(D598,'Bank and Fund Details'!$B$15:$D$36,3,FALSE)","v":0},{"$f":"VLOOKUP(D598,'Bank and Fund Details'!$B$15:$C$36,2,FALSE)","v":"Unrestricted"},{"$f":"IFERROR(VLOOKUP(C598,Descriptions!$B$6:$D$92,3,FALSE),\"\")","v":""},null,null,null,null,null,null,null,null,null,null,null,null,null,null,"General Fund",{"$f":"IFERROR(VLOOKUP(C598,Descriptions!B:F,5,FALSE),\"N\")","v":"N"},true,"NTRUE",0,null,{"$f":"IFERROR(VLOOKUP(D598,'Bank and Fund Details'!$B$14:$L$35,11,FALSE),\"N\")","v":"Y"},"NY"]
[null,null,null,"General Fund",null,null,null,null,null,{"$f":"VLOOKUP(D599,'Bank and Fund Details'!$B$15:$D$36,3,FALSE)","v":0},{"$f":"VLOOKUP(D599,'Bank and Fund Details'!$B$15:$C$36,2,FALSE)","v":"Unrestricted"},{"$f":"IFERROR(VLOOKUP(C599,Descriptions!$B$6:$D$92,3,FALSE),\"\")","v":""},null,null,null,null,null,null,null,null,null,null,null,null,null,null,"General Fund",{"$f":"IFERROR(VLOOKUP(C599,Descriptions!B:F,5,FALSE),\"N\")","v":"N"},true,"NTRUE",0,null,{"$f":"IFERROR(VLOOKUP(D599,'Bank and Fund Details'!$B$14:$L$35,11,FALSE),\"N\")","v":"Y"},"NY"]
[null,null,null,"General Fund",null,null,null,null,null,{"$f":"VLOOKUP(D600,'Bank and Fund Details'!$B$15:$D$36,3,FALSE)","v":0},{"$f":"VLOOKUP(D600,'Bank and Fund Details'!$B$15:$C$36,2,FALSE)","v":"Unrestricted"},{"$f":"IFERROR(VLOOKUP(C600,Descriptions!$B$6:$D$92,3,FALSE),\"\")","v":""},null,null,null,null,null,null,null,null,null,null,null,null,null,null,"General Fund",{"$f":"IFERROR(VLOOKUP(C600,Descriptions!B:F,5,FALSE),\"N\")","v":"N"},true,"NTRUE",0,null,{"$f":"IFERROR(VLOOKUP(D600,'Bank and Fund Details'!$B$14:$L$35,11,FALSE),\"N\")","v":"Y"},"NY"]
[null,null,null,"General Fund",null,null,null,null,null,{"$f":"VLOOKUP(D601,'Bank and Fund Details'!$B$15:$D$36,3,FALSE)","v":0},{"$f":"VLOOKUP(D601,'Bank and Fund Details'!$B$15:$C$36,2,FALSE)","v":"Unrestricted"},{"$f":"IFERROR(VLOOKUP(C601,Descriptions!$B$6:$D$92,3,FALSE),\"\")","v":""},null,null,null,null,null,null,null,null,null,null,null,null,null,null,"General Fund",{"$f":"IFERROR(VLOOKUP(C601,Descriptions!B:F,5,FALSE),\"N\")","v":"N"},true,"NTRUE",0,null,{"$f":"IFERROR(VLOOKUP(D601,'Bank and Fund Details'!$B$14:$L$35,11,FALSE),\"N\")","v":"Y"},"NY"]
[null,null,null,"General Fund",null,null,null,null,null,{"$f":"VLOOKUP(D602,'Bank and Fund Details'!$B$15:$D$36,3,FALSE)","v":0},{"$f":"VLOOKUP(D602,'Bank and Fund Details'!$B$15:$C$36,2,FALSE)","v":"Unrestricted"},{"$f":"IFERROR(VLOOKUP(C602,Descriptions!$B$6:$D$92,3,FALSE),\"\")","v":""},null,null,null,null,null,null,null,null,null,null,null,null,null,null,"General Fund",{"$f":"IFERROR(VLOOKUP(C602,Descriptions!B:F,5,FALSE),\"N\")","v":"N"},true,"NTRUE",0,null,{"$f":"IFERROR(VLOOKUP(D602,'Bank and Fund Details'!$B$14:$L$35,11,FALSE),\"N\")","v":"Y"},"NY"]
[null,null,null,"General Fund",null,null,null,null,null,{"$f":"VLOOKUP(D603,'Bank and Fund Details'!$B$15:$D$36,3,FALSE)","v":0},{"$f":"VLOOKUP(D603,'Bank and Fund Details'!$B$15:$C$36,2,FALSE)","v":"Unrestricted"},{"$f":"IFERROR(VLOOKUP(C603,Descriptions!$B$6:$D$92,3,FALSE),\"\")","v":""},null,null,null,null,null,null,null,null,null,null,null,null,null,null,"General Fund",{"$f":"IFERROR(VLOOKUP(C603,Descriptions!B:F,5,FALSE),\"N\")","v":"N"},true,"NTRUE",0,null,{"$f":"IFERROR(VLOOKUP(D603,'Bank and Fund Details'!$B$14:$L$35,11,FALSE),\"N\")","v":"Y"},"NY"]
[null,null,null,"General Fund",null,null,null,null,null,{"$f":"VLOOKUP(D604,'Bank and Fund Details'!$B$15:$D$36,3,FALSE)","v":0},{"$f":"VLOOKUP(D604,'Bank and Fund Details'!$B$15:$C$36,2,FALSE)","v":"Unrestricted"},{"$f":"IFERROR(VLOOKUP(C604,Descriptions!$B$6:$D$92,3,FALSE),\"\")","v":""},null,null,null,null,null,null,null,null,null,null,null,null,null,null,"General Fund",{"$f":"IFERROR(VLOOKUP(C604,Descriptions!B:F,5,FALSE),\"N\")","v":"N"},true,"NTRUE",0,null,{"$f":"IFERROR(VLOOKUP(D604,'Bank and Fund Details'!$B$14:$L$35,11,FALSE),\"N\")","v":"Y"},"NY"]
[null,null,null,"General Fund",null,null,null,null,null,{"$f":"VLOOKUP(D605,'Bank and Fund Details'!$B$15:$D$36,3,FALSE)","v":0},{"$f":"VLOOKUP(D605,'Bank and Fund Details'!$B$15:$C$36,2,FALSE)","v":"Unrestricted"},{"$f":"IFERROR(VLOOKUP(C605,Descriptions!$B$6:$D$92,3,FALSE),\"\")","v":""},null,null,null,null,null,null,null,null,null,null,null,null,null,null,"General Fund",{"$f":"IFERROR(VLOOKUP(C605,Descriptions!B:F,5,FALSE),\"N\")","v":"N"},true,"NTRUE",0,null,{"$f":"IFERROR(VLOOKUP(D605,'Bank and Fund Details'!$B$14:$L$35,11,FALSE),\"N\")","v":"Y"},"NY"]
[null,null,null,"General Fund",null,null,null,null,null,{"$f":"VLOOKUP(D606,'Bank and Fund Details'!$B$15:$D$36,3,FALSE)","v":0},{"$f":"VLOOKUP(D606,'Bank and Fund Details'!$B$15:$C$36,2,FALSE)","v":"Unrestricted"},{"$f":"IFERROR(VLOOKUP(C606,Descriptions!$B$6:$D$92,3,FALSE),\"\")","v":""},null,null,null,null,null,null,null,null,null,null,null,null,null,null,"General Fund",{"$f":"IFERROR(VLOOKUP(C606,Descriptions!B:F,5,FALSE),\"N\")","v":"N"},true,"NTRUE",0,null,{"$f":"IFERROR(VLOOKUP(D606,'Bank and Fund Details'!$B$14:$L$35,11,FALSE),\"N\")","v":"Y"},"NY"]
[null,null,null,"General Fund",null,null,null,null,null,{"$f":"VLOOKUP(D607,'Bank and Fund Details'!$B$15:$D$36,3,FALSE)","v":0},{"$f":"VLOOKUP(D607,'Bank and Fund Details'!$B$15:$C$36,2,FALSE)","v":"Unrestricted"},{"$f":"IFERROR(VLOOKUP(C607,Descriptions!$B$6:$D$92,3,FALSE),\"\")","v":""},null,null,null,null,null,null,null,null,null,null,null,null,null,null,"General Fund",{"$f":"IFERROR(VLOOKUP(C607,Descriptions!B:F,5,FALSE),\"N\")","v":"N"},true,"NTRUE",0,null,{"$f":"IFERROR(VLOOKUP(D607,'Bank and Fund Details'!$B$14:$L$35,11,FALSE),\"N\")","v":"Y"},"NY"]
[null,null,null,"General Fund",null,null,null,null,null,{"$f":"VLOOKUP(D608,'Bank and Fund Details'!$B$15:$D$36,3,FALSE)","v":0},{"$f":"VLOOKUP(D608,'Bank and Fund Details'!$B$15:$C$36,2,FALSE)","v":"Unrestricted"},{"$f":"IFERROR(VLOOKUP(C608,Descriptions!$B$6:$D$92,3,FALSE),\"\")","v":""},null,null,null,null,null,null,null,null,null,null,null,null,null,null,"General Fund",{"$f":"IFERROR(VLOOKUP(C608,Descriptions!B:F,5,FALSE),\"N\")","v":"N"},true,"NTRUE",0,null,{"$f":"IFERROR(VLOOKUP(D608,'Bank and Fund Details'!$B$14:$L$35,11,FALSE),\"N\")","v":"Y"},"NY"]
[null,null,null,"General Fund",null,null,null,null,null,{"$f":"VLOOKUP(D609,'Bank and Fund Details'!$B$15:$D$36,3,FALSE)","v":0},{"$f":"VLOOKUP(D609,'Bank and Fund Details'!$B$15:$C$36,2,FALSE)","v":"Unrestricted"},{"$f":"IFERROR(VLOOKUP(C609,Descriptions!$B$6:$D$92,3,FALSE),\"\")","v":""},null,null,null,null,null,null,null,null,null,null,null,null,null,null,"General Fund",{"$f":"IFERROR(VLOOKUP(C609,Descriptions!B:F,5,FALSE),\"N\")","v":"N"},true,"NTRUE",0,null,{"$f":"IFERROR(VLOOKUP(D609,'Bank and Fund Details'!$B$14:$L$35,11,FALSE),\"N\")","v":"Y"},"NY"]
[null,null,null,"General Fund",null,null,null,null,null,{"$f":"VLOOKUP(D610,'Bank and Fund Details'!$B$15:$D$36,3,FALSE)","v":0},{"$f":"VLOOKUP(D610,'Bank and Fund Details'!$B$15:$C$36,2,FALSE)","v":"Unrestricted"},{"$f":"IFERROR(VLOOKUP(C610,Descriptions!$B$6:$D$92,3,FALSE),\"\")","v":""},null,null,null,null,null,null,null,null,null,null,null,null,null,null,"General Fund",{"$f":"IFERROR(VLOOKUP(C610,Descriptions!B:F,5,FALSE),\"N\")","v":"N"},true,"NTRUE",0,null,{"$f":"IFERROR(VLOOKUP(D610,'Bank and Fund Details'!$B$14:$L$35,11,FALSE),\"N\")","v":"Y"},"NY"]
[null,null,null,"General Fund",null,null,null,null,null,{"$f":"VLOOKUP(D611,'Bank and Fund Details'!$B$15:$D$36,3,FALSE)","v":0},{"$f":"VLOOKUP(D611,'Bank and Fund Details'!$B$15:$C$36,2,FALSE)","v":"Unrestricted"},{"$f":"IFERROR(VLOOKUP(C611,Descriptions!$B$6:$D$92,3,FALSE),\"\")","v":""},null,null,null,null,null,null,null,null,null,null,null,null,null,null,"General Fund",{"$f":"IFERROR(VLOOKUP(C611,Descriptions!B:F,5,FALSE),\"N\")","v":"N"},true,"NTRUE",0,null,{"$f":"IFERROR(VLOOKUP(D611,'Bank and Fund Details'!$B$14:$L$35,11,FALSE),\"N\")","v":"Y"},"NY"]
[null,null,null,"General Fund",null,null,null,null,null,{"$f":"VLOOKUP(D612,'Bank and Fund Details'!$B$15:$D$36,3,FALSE)","v":0},{"$f":"VLOOKUP(D612,'Bank and Fund Details'!$B$15:$C$36,2,FALSE)","v":"Unrestricted"},{"$f":"IFERROR(VLOOKUP(C612,Descriptions!$B$6:$D$92,3,FALSE),\"\")","v":""},null,null,null,null,null,null,null,null,null,null,null,null,null,null,"General Fund",{"$f":"IFERROR(VLOOKUP(C612,Descriptions!B:F,5,FALSE),\"N\")","v":"N"},true,"NTRUE",0,null,{"$f":"IFERROR(VLOOKUP(D612,'Bank and Fund Details'!$B$14:$L$35,11,FALSE),\"N\")","v":"Y"},"NY"]
[null,null,null,"General Fund",null,null,null,null,null,{"$f":"VLOOKUP(D613,'Bank and Fund Details'!$B$15:$D$36,3,FALSE)","v":0},{"$f":"VLOOKUP(D613,'Bank and Fund Details'!$B$15:$C$36,2,FALSE)","v":"Unrestricted"},{"$f":"IFERROR(VLOOKUP(C613,Descriptions!$B$6:$D$92,3,FALSE),\"\")","v":""},null,null,null,null,null,null,null,null,null,null,null,null,null,null,"General Fund",{"$f":"IFERROR(VLOOKUP(C613,Descriptions!B:F,5,FALSE),\"N\")","v":"N"},true,"NTRUE",0,null,{"$f":"IFERROR(VLOOKUP(D613,'Bank and Fund Details'!$B$14:$L$35,11,FALSE),\"N\")","v":"Y"},"NY"]
[null,null,null,"General Fund",null,null,null,null,null,{"$f":"VLOOKUP(D614,'Bank and Fund Details'!$B$15:$D$36,3,FALSE)","v":0},{"$f":"VLOOKUP(D614,'Bank and Fund Details'!$B$15:$C$36,2,FALSE)","v":"Unrestricted"},{"$f":"IFERROR(VLOOKUP(C614,Descriptions!$B$6:$D$92,3,FALSE),\"\")","v":""},null,null,null,null,null,null,null,null,null,null,null,null,null,null,"General Fund",{"$f":"IFERROR(VLOOKUP(C614,Descriptions!B:F,5,FALSE),\"N\")","v":"N"},true,"NTRUE",0,null,{"$f":"IFERROR(VLOOKUP(D614,'Bank and Fund Details'!$B$14:$L$35,11,FALSE),\"N\")","v":"Y"},"NY"]
[null,null,null,"General Fund",null,null,null,null,null,{"$f":"VLOOKUP(D615,'Bank and Fund Details'!$B$15:$D$36,3,FALSE)","v":0},{"$f":"VLOOKUP(D615,'Bank and Fund Details'!$B$15:$C$36,2,FALSE)","v":"Unrestricted"},{"$f":"IFERROR(VLOOKUP(C615,Descriptions!$B$6:$D$92,3,FALSE),\"\")","v":""},null,null,null,null,null,null,null,null,null,null,null,null,null,null,"General Fund",{"$f":"IFERROR(VLOOKUP(C615,Descriptions!B:F,5,FALSE),\"N\")","v":"N"},true,"NTRUE",0,null,{"$f":"IFERROR(VLOOKUP(D615,'Bank and Fund Details'!$B$14:$L$35,11,FALSE),\"N\")","v":"Y"},"NY"]
[null,null,null,"General Fund",null,null,null,null,null,{"$f":"VLOOKUP(D616,'Bank and Fund Details'!$B$15:$D$36,3,FALSE)","v":0},{"$f":"VLOOKUP(D616,'Bank and Fund Details'!$B$15:$C$36,2,FALSE)","v":"Unrestricted"},{"$f":"IFERROR(VLOOKUP(C616,Descriptions!$B$6:$D$92,3,FALSE),\"\")","v":""},null,null,null,null,null,null,null,null,null,null,null,null,null,null,"General Fund",{"$f":"IFERROR(VLOOKUP(C616,Descriptions!B:F,5,FALSE),\"N\")","v":"N"},true,"NTRUE",0,null,{"$f":"IFERROR(VLOOKUP(D616,'Bank and Fund Details'!$B$14:$L$35,11,FALSE),\"N\")","v":"Y"},"NY"]
[null,null,null,"General Fund",null,null,null,null,null,{"$f":"VLOOKUP(D617,'Bank and Fund Details'!$B$15:$D$36,3,FALSE)","v":0},{"$f":"VLOOKUP(D617,'Bank and Fund Details'!$B$15:$C$36,2,FALSE)","v":"Unrestricted"},{"$f":"IFERROR(VLOOKUP(C617,Descriptions!$B$6:$D$92,3,FALSE),\"\")","v":""},null,null,null,null,null,null,null,null,null,null,null,null,null,null,"General Fund",{"$f":"IFERROR(VLOOKUP(C617,Descriptions!B:F,5,FALSE),\"N\")","v":"N"},true,"NTRUE",0,null,{"$f":"IFERROR(VLOOKUP(D617,'Bank and Fund Details'!$B$14:$L$35,11,FALSE),\"N\")","v":"Y"},"NY"]
[null,null,null,"General Fund",null,null,null,null,null,{"$f":"VLOOKUP(D618,'Bank and Fund Details'!$B$15:$D$36,3,FALSE)","v":0},{"$f":"VLOOKUP(D618,'Bank and Fund Details'!$B$15:$C$36,2,FALSE)","v":"Unrestricted"},{"$f":"IFERROR(VLOOKUP(C618,Descriptions!$B$6:$D$92,3,FALSE),\"\")","v":""},null,null,null,null,null,null,null,null,null,null,null,null,null,null,"General Fund",{"$f":"IFERROR(VLOOKUP(C618,Descriptions!B:F,5,FALSE),\"N\")","v":"N"},true,"NTRUE",0,null,{"$f":"IFERROR(VLOOKUP(D618,'Bank and Fund Details'!$B$14:$L$35,11,FALSE),\"N\")","v":"Y"},"NY"]
[null,null,null,"General Fund",null,null,null,null,null,{"$f":"VLOOKUP(D619,'Bank and Fund Details'!$B$15:$D$36,3,FALSE)","v":0},{"$f":"VLOOKUP(D619,'Bank and Fund Details'!$B$15:$C$36,2,FALSE)","v":"Unrestricted"},{"$f":"IFERROR(VLOOKUP(C619,Descriptions!$B$6:$D$92,3,FALSE),\"\")","v":""},null,null,null,null,null,null,null,null,null,null,null,null,null,null,"General Fund",{"$f":"IFERROR(VLOOKUP(C619,Descriptions!B:F,5,FALSE),\"N\")","v":"N"},true,"NTRUE",0,null,{"$f":"IFERROR(VLOOKUP(D619,'Bank and Fund Details'!$B$14:$L$35,11,FALSE),\"N\")","v":"Y"},"NY"]
[null,null,null,"General Fund",null,null,null,null,null,{"$f":"VLOOKUP(D620,'Bank and Fund Details'!$B$15:$D$36,3,FALSE)","v":0},{"$f":"VLOOKUP(D620,'Bank and Fund Details'!$B$15:$C$36,2,FALSE)","v":"Unrestricted"},{"$f":"IFERROR(VLOOKUP(C620,Descriptions!$B$6:$D$92,3,FALSE),\"\")","v":""},null,null,null,null,null,null,null,null,null,null,null,null,null,null,"General Fund",{"$f":"IFERROR(VLOOKUP(C620,Descriptions!B:F,5,FALSE),\"N\")","v":"N"},true,"NTRUE",0,null,{"$f":"IFERROR(VLOOKUP(D620,'Bank and Fund Details'!$B$14:$L$35,11,FALSE),\"N\")","v":"Y"},"NY"]
[null,null,null,"General Fund",null,null,null,null,null,{"$f":"VLOOKUP(D621,'Bank and Fund Details'!$B$15:$D$36,3,FALSE)","v":0},{"$f":"VLOOKUP(D621,'Bank and Fund Details'!$B$15:$C$36,2,FALSE)","v":"Unrestricted"},{"$f":"IFERROR(VLOOKUP(C621,Descriptions!$B$6:$D$92,3,FALSE),\"\")","v":""},null,null,null,null,null,null,null,null,null,null,null,null,null,null,"General Fund",{"$f":"IFERROR(VLOOKUP(C621,Descriptions!B:F,5,FALSE),\"N\")","v":"N"},true,"NTRUE",0,null,{"$f":"IFERROR(VLOOKUP(D621,'Bank and Fund Details'!$B$14:$L$35,11,FALSE),\"N\")","v":"Y"},"NY"]
[null,null,null,"General Fund",null,null,null,null,null,{"$f":"VLOOKUP(D622,'Bank and Fund Details'!$B$15:$D$36,3,FALSE)","v":0},{"$f":"VLOOKUP(D622,'Bank and Fund Details'!$B$15:$C$36,2,FALSE)","v":"Unrestricted"},{"$f":"IFERROR(VLOOKUP(C622,Descriptions!$B$6:$D$92,3,FALSE),\"\")","v":""},null,null,null,null,null,null,null,null,null,null,null,null,null,null,"General Fund",{"$f":"IFERROR(VLOOKUP(C622,Descriptions!B:F,5,FALSE),\"N\")","v":"N"},true,"NTRUE",0,null,{"$f":"IFERROR(VLOOKUP(D622,'Bank and Fund Details'!$B$14:$L$35,11,FALSE),\"N\")","v":"Y"},"NY"]
[null,null,null,"General Fund",null,null,null,null,null,{"$f":"VLOOKUP(D623,'Bank and Fund Details'!$B$15:$D$36,3,FALSE)","v":0},{"$f":"VLOOKUP(D623,'Bank and Fund Details'!$B$15:$C$36,2,FALSE)","v":"Unrestricted"},{"$f":"IFERROR(VLOOKUP(C623,Descriptions!$B$6:$D$92,3,FALSE),\"\")","v":""},null,null,null,null,null,null,null,null,null,null,null,null,null,null,"General Fund",{"$f":"IFERROR(VLOOKUP(C623,Descriptions!B:F,5,FALSE),\"N\")","v":"N"},true,"NTRUE",0,null,{"$f":"IFERROR(VLOOKUP(D623,'Bank and Fund Details'!$B$14:$L$35,11,FALSE),\"N\")","v":"Y"},"NY"]
[null,null,null,"General Fund",null,null,null,null,null,{"$f":"VLOOKUP(D624,'Bank and Fund Details'!$B$15:$D$36,3,FALSE)","v":0},{"$f":"VLOOKUP(D624,'Bank and Fund Details'!$B$15:$C$36,2,FALSE)","v":"Unrestricted"},{"$f":"IFERROR(VLOOKUP(C624,Descriptions!$B$6:$D$92,3,FALSE),\"\")","v":""},null,null,null,null,null,null,null,null,null,null,null,null,null,null,"General Fund",{"$f":"IFERROR(VLOOKUP(C624,Descriptions!B:F,5,FALSE),\"N\")","v":"N"},true,"NTRUE",0,null,{"$f":"IFERROR(VLOOKUP(D624,'Bank and Fund Details'!$B$14:$L$35,11,FALSE),\"N\")","v":"Y"},"NY"]
[null,null,null,"General Fund",null,null,null,null,null,{"$f":"VLOOKUP(D625,'Bank and Fund Details'!$B$15:$D$36,3,FALSE)","v":0},{"$f":"VLOOKUP(D625,'Bank and Fund Details'!$B$15:$C$36,2,FALSE)","v":"Unrestricted"},{"$f":"IFERROR(VLOOKUP(C625,Descriptions!$B$6:$D$92,3,FALSE),\"\")","v":""},null,null,null,null,null,null,null,null,null,null,null,null,null,null,"General Fund",{"$f":"IFERROR(VLOOKUP(C625,Descriptions!B:F,5,FALSE),\"N\")","v":"N"},true,"NTRUE",0,null,{"$f":"IFERROR(VLOOKUP(D625,'Bank and Fund Details'!$B$14:$L$35,11,FALSE),\"N\")","v":"Y"},"NY"]
[null,null,null,"General Fund",null,null,null,null,null,{"$f":"VLOOKUP(D626,'Bank and Fund Details'!$B$15:$D$36,3,FALSE)","v":0},{"$f":"VLOOKUP(D626,'Bank and Fund Details'!$B$15:$C$36,2,FALSE)","v":"Unrestricted"},{"$f":"IFERROR(VLOOKUP(C626,Descriptions!$B$6:$D$92,3,FALSE),\"\")","v":""},null,null,null,null,null,null,null,null,null,null,null,null,null,null,"General Fund",{"$f":"IFERROR(VLOOKUP(C626,Descriptions!B:F,5,FALSE),\"N\")","v":"N"},true,"NTRUE",0,null,{"$f":"IFERROR(VLOOKUP(D626,'Bank and Fund Details'!$B$14:$L$35,11,FALSE),\"N\")","v":"Y"},"NY"]
[null,null,null,"General Fund",null,null,null,null,null,{"$f":"VLOOKUP(D627,'Bank and Fund Details'!$B$15:$D$36,3,FALSE)","v":0},{"$f":"VLOOKUP(D627,'Bank and Fund Details'!$B$15:$C$36,2,FALSE)","v":"Unrestricted"},{"$f":"IFERROR(VLOOKUP(C627,Descriptions!$B$6:$D$92,3,FALSE),\"\")","v":""},null,null,null,null,null,null,null,null,null,null,null,null,null,null,"General Fund",{"$f":"IFERROR(VLOOKUP(C627,Descriptions!B:F,5,FALSE),\"N\")","v":"N"},true,"NTRUE",0,null,{"$f":"IFERROR(VLOOKUP(D627,'Bank and Fund Details'!$B$14:$L$35,11,FALSE),\"N\")","v":"Y"},"NY"]
[null,null,null,"General Fund",null,null,null,null,null,{"$f":"VLOOKUP(D628,'Bank and Fund Details'!$B$15:$D$36,3,FALSE)","v":0},{"$f":"VLOOKUP(D628,'Bank and Fund Details'!$B$15:$C$36,2,FALSE)","v":"Unrestricted"},{"$f":"IFERROR(VLOOKUP(C628,Descriptions!$B$6:$D$92,3,FALSE),\"\")","v":""},null,null,null,null,null,null,null,null,null,null,null,null,null,null,"General Fund",{"$f":"IFERROR(VLOOKUP(C628,Descriptions!B:F,5,FALSE),\"N\")","v":"N"},true,"NTRUE",0,null,{"$f":"IFERROR(VLOOKUP(D628,'Bank and Fund Details'!$B$14:$L$35,11,FALSE),\"N\")","v":"Y"},"NY"]
[null,null,null,"General Fund",null,null,null,null,null,{"$f":"VLOOKUP(D629,'Bank and Fund Details'!$B$15:$D$36,3,FALSE)","v":0},{"$f":"VLOOKUP(D629,'Bank and Fund Details'!$B$15:$C$36,2,FALSE)","v":"Unrestricted"},{"$f":"IFERROR(VLOOKUP(C629,Descriptions!$B$6:$D$92,3,FALSE),\"\")","v":""},null,null,null,null,null,null,null,null,null,null,null,null,null,null,"General Fund",{"$f":"IFERROR(VLOOKUP(C629,Descriptions!B:F,5,FALSE),\"N\")","v":"N"},true,"NTRUE",0,null,{"$f":"IFERROR(VLOOKUP(D629,'Bank and Fund Details'!$B$14:$L$35,11,FALSE),\"N\")","v":"Y"},"NY"]
[null,null,null,"General Fund",null,null,null,null,null,{"$f":"VLOOKUP(D630,'Bank and Fund Details'!$B$15:$D$36,3,FALSE)","v":0},{"$f":"VLOOKUP(D630,'Bank and Fund Details'!$B$15:$C$36,2,FALSE)","v":"Unrestricted"},{"$f":"IFERROR(VLOOKUP(C630,Descriptions!$B$6:$D$92,3,FALSE),\"\")","v":""},null,null,null,null,null,null,null,null,null,null,null,null,null,null,"General Fund",{"$f":"IFERROR(VLOOKUP(C630,Descriptions!B:F,5,FALSE),\"N\")","v":"N"},true,"NTRUE",0,null,{"$f":"IFERROR(VLOOKUP(D630,'Bank and Fund Details'!$B$14:$L$35,11,FALSE),\"N\")","v":"Y"},"NY"]
[null,null,null,"General Fund",null,null,null,null,null,{"$f":"VLOOKUP(D631,'Bank and Fund Details'!$B$15:$D$36,3,FALSE)","v":0},{"$f":"VLOOKUP(D631,'Bank and Fund Details'!$B$15:$C$36,2,FALSE)","v":"Unrestricted"},{"$f":"IFERROR(VLOOKUP(C631,Descriptions!$B$6:$D$92,3,FALSE),\"\")","v":""},null,null,null,null,null,null,null,null,null,null,null,null,null,null,"General Fund",{"$f":"IFERROR(VLOOKUP(C631,Descriptions!B:F,5,FALSE),\"N\")","v":"N"},true,"NTRUE",0,null,{"$f":"IFERROR(VLOOKUP(D631,'Bank and Fund Details'!$B$14:$L$35,11,FALSE),\"N\")","v":"Y"},"NY"]
[null,null,null,"General Fund",null,null,null,null,null,{"$f":"VLOOKUP(D632,'Bank and Fund Details'!$B$15:$D$36,3,FALSE)","v":0},{"$f":"VLOOKUP(D632,'Bank and Fund Details'!$B$15:$C$36,2,FALSE)","v":"Unrestricted"},{"$f":"IFERROR(VLOOKUP(C632,Descriptions!$B$6:$D$92,3,FALSE),\"\")","v":""},null,null,null,null,null,null,null,null,null,null,null,null,null,null,"General Fund",{"$f":"IFERROR(VLOOKUP(C632,Descriptions!B:F,5,FALSE),\"N\")","v":"N"},true,"NTRUE",0,null,{"$f":"IFERROR(VLOOKUP(D632,'Bank and Fund Details'!$B$14:$L$35,11,FALSE),\"N\")","v":"Y"},"NY"]
[null,null,null,"General Fund",null,null,null,null,null,{"$f":"VLOOKUP(D633,'Bank and Fund Details'!$B$15:$D$36,3,FALSE)","v":0},{"$f":"VLOOKUP(D633,'Bank and Fund Details'!$B$15:$C$36,2,FALSE)","v":"Unrestricted"},{"$f":"IFERROR(VLOOKUP(C633,Descriptions!$B$6:$D$92,3,FALSE),\"\")","v":""},null,null,null,null,null,null,null,null,null,null,null,null,null,null,"General Fund",{"$f":"IFERROR(VLOOKUP(C633,Descriptions!B:F,5,FALSE),\"N\")","v":"N"},true,"NTRUE",0,null,{"$f":"IFERROR(VLOOKUP(D633,'Bank and Fund Details'!$B$14:$L$35,11,FALSE),\"N\")","v":"Y"},"NY"]
[null,null,null,"General Fund",null,null,null,null,null,{"$f":"VLOOKUP(D634,'Bank and Fund Details'!$B$15:$D$36,3,FALSE)","v":0},{"$f":"VLOOKUP(D634,'Bank and Fund Details'!$B$15:$C$36,2,FALSE)","v":"Unrestricted"},{"$f":"IFERROR(VLOOKUP(C634,Descriptions!$B$6:$D$92,3,FALSE),\"\")","v":""},null,null,null,null,null,null,null,null,null,null,null,null,null,null,"General Fund",{"$f":"IFERROR(VLOOKUP(C634,Descriptions!B:F,5,FALSE),\"N\")","v":"N"},true,"NTRUE",0,null,{"$f":"IFERROR(VLOOKUP(D634,'Bank and Fund Details'!$B$14:$L$35,11,FALSE),\"N\")","v":"Y"},"NY"]
[null,null,null,"General Fund",null,null,null,null,null,{"$f":"VLOOKUP(D635,'Bank and Fund Details'!$B$15:$D$36,3,FALSE)","v":0},{"$f":"VLOOKUP(D635,'Bank and Fund Details'!$B$15:$C$36,2,FALSE)","v":"Unrestricted"},{"$f":"IFERROR(VLOOKUP(C635,Descriptions!$B$6:$D$92,3,FALSE),\"\")","v":""},null,null,null,null,null,null,null,null,null,null,null,null,null,null,"General Fund",{"$f":"IFERROR(VLOOKUP(C635,Descriptions!B:F,5,FALSE),\"N\")","v":"N"},true,"NTRUE",0,null,{"$f":"IFERROR(VLOOKUP(D635,'Bank and Fund Details'!$B$14:$L$35,11,FALSE),\"N\")","v":"Y"},"NY"]
[null,null,null,"General Fund",null,null,null,null,null,{"$f":"VLOOKUP(D636,'Bank and Fund Details'!$B$15:$D$36,3,FALSE)","v":0},{"$f":"VLOOKUP(D636,'Bank and Fund Details'!$B$15:$C$36,2,FALSE)","v":"Unrestricted"},{"$f":"IFERROR(VLOOKUP(C636,Descriptions!$B$6:$D$92,3,FALSE),\"\")","v":""},null,null,null,null,null,null,null,null,null,null,null,null,null,null,"General Fund",{"$f":"IFERROR(VLOOKUP(C636,Descriptions!B:F,5,FALSE),\"N\")","v":"N"},true,"NTRUE",0,null,{"$f":"IFERROR(VLOOKUP(D636,'Bank and Fund Details'!$B$14:$L$35,11,FALSE),\"N\")","v":"Y"},"NY"]
[null,null,null,"General Fund",null,null,null,null,null,{"$f":"VLOOKUP(D637,'Bank and Fund Details'!$B$15:$D$36,3,FALSE)","v":0},{"$f":"VLOOKUP(D637,'Bank and Fund Details'!$B$15:$C$36,2,FALSE)","v":"Unrestricted"},{"$f":"IFERROR(VLOOKUP(C637,Descriptions!$B$6:$D$92,3,FALSE),\"\")","v":""},null,null,null,null,null,null,null,null,null,null,null,null,null,null,"General Fund",{"$f":"IFERROR(VLOOKUP(C637,Descriptions!B:F,5,FALSE),\"N\")","v":"N"},true,"NTRUE",0,null,{"$f":"IFERROR(VLOOKUP(D637,'Bank and Fund Details'!$B$14:$L$35,11,FALSE),\"N\")","v":"Y"},"NY"]
[null,null,null,"General Fund",null,null,null,null,null,{"$f":"VLOOKUP(D638,'Bank and Fund Details'!$B$15:$D$36,3,FALSE)","v":0},{"$f":"VLOOKUP(D638,'Bank and Fund Details'!$B$15:$C$36,2,FALSE)","v":"Unrestricted"},{"$f":"IFERROR(VLOOKUP(C638,Descriptions!$B$6:$D$92,3,FALSE),\"\")","v":""},null,null,null,null,null,null,null,null,null,null,null,null,null,null,"General Fund",{"$f":"IFERROR(VLOOKUP(C638,Descriptions!B:F,5,FALSE),\"N\")","v":"N"},true,"NTRUE",0,null,{"$f":"IFERROR(VLOOKUP(D638,'Bank and Fund Details'!$B$14:$L$35,11,FALSE),\"N\")","v":"Y"},"NY"]
[null,null,null,"General Fund",null,null,null,null,null,{"$f":"VLOOKUP(D639,'Bank and Fund Details'!$B$15:$D$36,3,FALSE)","v":0},{"$f":"VLOOKUP(D639,'Bank and Fund Details'!$B$15:$C$36,2,FALSE)","v":"Unrestricted"},{"$f":"IFERROR(VLOOKUP(C639,Descriptions!$B$6:$D$92,3,FALSE),\"\")","v":""},null,null,null,null,null,null,null,null,null,null,null,null,null,null,"General Fund",{"$f":"IFERROR(VLOOKUP(C639,Descriptions!B:F,5,FALSE),\"N\")","v":"N"},true,"NTRUE",0,null,{"$f":"IFERROR(VLOOKUP(D639,'Bank and Fund Details'!$B$14:$L$35,11,FALSE),\"N\")","v":"Y"},"NY"]
[null,null,null,"General Fund",null,null,null,null,null,{"$f":"VLOOKUP(D640,'Bank and Fund Details'!$B$15:$D$36,3,FALSE)","v":0},{"$f":"VLOOKUP(D640,'Bank and Fund Details'!$B$15:$C$36,2,FALSE)","v":"Unrestricted"},{"$f":"IFERROR(VLOOKUP(C640,Descriptions!$B$6:$D$92,3,FALSE),\"\")","v":""},null,null,null,null,null,null,null,null,null,null,null,null,null,null,"General Fund",{"$f":"IFERROR(VLOOKUP(C640,Descriptions!B:F,5,FALSE),\"N\")","v":"N"},true,"NTRUE",0,null,{"$f":"IFERROR(VLOOKUP(D640,'Bank and Fund Details'!$B$14:$L$35,11,FALSE),\"N\")","v":"Y"},"NY"]
[null,null,null,"General Fund",null,null,null,null,null,{"$f":"VLOOKUP(D641,'Bank and Fund Details'!$B$15:$D$36,3,FALSE)","v":0},{"$f":"VLOOKUP(D641,'Bank and Fund Details'!$B$15:$C$36,2,FALSE)","v":"Unrestricted"},{"$f":"IFERROR(VLOOKUP(C641,Descriptions!$B$6:$D$92,3,FALSE),\"\")","v":""},null,null,null,null,null,null,null,null,null,null,null,null,null,null,"General Fund",{"$f":"IFERROR(VLOOKUP(C641,Descriptions!B:F,5,FALSE),\"N\")","v":"N"},true,"NTRUE",0,null,{"$f":"IFERROR(VLOOKUP(D641,'Bank and Fund Details'!$B$14:$L$35,11,FALSE),\"N\")","v":"Y"},"NY"]
[null,null,null,"General Fund",null,null,null,null,null,{"$f":"VLOOKUP(D642,'Bank and Fund Details'!$B$15:$D$36,3,FALSE)","v":0},{"$f":"VLOOKUP(D642,'Bank and Fund Details'!$B$15:$C$36,2,FALSE)","v":"Unrestricted"},{"$f":"IFERROR(VLOOKUP(C642,Descriptions!$B$6:$D$92,3,FALSE),\"\")","v":""},null,null,null,null,null,null,null,null,null,null,null,null,null,null,"General Fund",{"$f":"IFERROR(VLOOKUP(C642,Descriptions!B:F,5,FALSE),\"N\")","v":"N"},true,"NTRUE",0,null,{"$f":"IFERROR(VLOOKUP(D642,'Bank and Fund Details'!$B$14:$L$35,11,FALSE),\"N\")","v":"Y"},"NY"]
[null,null,null,"General Fund",null,null,null,null,null,{"$f":"VLOOKUP(D643,'Bank and Fund Details'!$B$15:$D$36,3,FALSE)","v":0},{"$f":"VLOOKUP(D643,'Bank and Fund Details'!$B$15:$C$36,2,FALSE)","v":"Unrestricted"},{"$f":"IFERROR(VLOOKUP(C643,Descriptions!$B$6:$D$92,3,FALSE),\"\")","v":""},null,null,null,null,null,null,null,null,null,null,null,null,null,null,"General Fund",{"$f":"IFERROR(VLOOKUP(C643,Descriptions!B:F,5,FALSE),\"N\")","v":"N"},true,"NTRUE",0,null,{"$f":"IFERROR(VLOOKUP(D643,'Bank and Fund Details'!$B$14:$L$35,11,FALSE),\"N\")","v":"Y"},"NY"]
[null,null,null,"General Fund",null,null,null,null,null,{"$f":"VLOOKUP(D644,'Bank and Fund Details'!$B$15:$D$36,3,FALSE)","v":0},{"$f":"VLOOKUP(D644,'Bank and Fund Details'!$B$15:$C$36,2,FALSE)","v":"Unrestricted"},{"$f":"IFERROR(VLOOKUP(C644,Descriptions!$B$6:$D$92,3,FALSE),\"\")","v":""},null,null,null,null,null,null,null,null,null,null,null,null,null,null,"General Fund",{"$f":"IFERROR(VLOOKUP(C644,Descriptions!B:F,5,FALSE),\"N\")","v":"N"},true,"NTRUE",0,null,{"$f":"IFERROR(VLOOKUP(D644,'Bank and Fund Details'!$B$14:$L$35,11,FALSE),\"N\")","v":"Y"},"NY"]
[null,null,null,"General Fund",null,null,null,null,null,{"$f":"VLOOKUP(D645,'Bank and Fund Details'!$B$15:$D$36,3,FALSE)","v":0},{"$f":"VLOOKUP(D645,'Bank and Fund Details'!$B$15:$C$36,2,FALSE)","v":"Unrestricted"},{"$f":"IFERROR(VLOOKUP(C645,Descriptions!$B$6:$D$92,3,FALSE),\"\")","v":""},null,null,null,null,null,null,null,null,null,null,null,null,null,null,{"$f":"CONCATENATE(C645,D645)","v":"General Fund"},{"$f":"IFERROR(VLOOKUP(C645,Descriptions!B:F,5,FALSE),\"N\")","v":"N"},{"$f":"ISBLANK(C645)","v":true},{"$f":"CONCATENATE(AB645,AC645)","v":"NTRUE"},{"$f":"IF(AD645=\"NFALSE\",1,0)","v":0},null,{"$f":"IFERROR(VLOOKUP(D645,'Bank and Fund Details'!$B$14:$L$35,11,FALSE),\"N\")","v":"Y"},"NY"]
[null,null,null,"General Fund",null,null,null,null,null,{"$f":"VLOOKUP(D646,'Bank and Fund Details'!$B$15:$D$36,3,FALSE)","v":0},{"$f":"VLOOKUP(D646,'Bank and Fund Details'!$B$15:$C$36,2,FALSE)","v":"Unrestricted"},{"$f":"IFERROR(VLOOKUP(C646,Descriptions!$B$6:$D$92,3,FALSE),\"\")","v":""},null,null,null,null,null,null,null,null,null,null,null,null,null,null,"General Fund",{"$f":"IFERROR(VLOOKUP(C646,Descriptions!B:F,5,FALSE),\"N\")","v":"N"},true,"NTRUE",0,null,{"$f":"IFERROR(VLOOKUP(D646,'Bank and Fund Details'!$B$14:$L$35,11,FALSE),\"N\")","v":"Y"},{"$f":"CONCATENATE(AB646,AG646)","v":"NY"}]
[null,null,null,"General Fund",null,null,null,null,null,{"$f":"VLOOKUP(D647,'Bank and Fund Details'!$B$15:$D$36,3,FALSE)","v":0},{"$f":"VLOOKUP(D647,'Bank and Fund Details'!$B$15:$C$36,2,FALSE)","v":"Unrestricted"},{"$f":"IFERROR(VLOOKUP(C647,Descriptions!$B$6:$D$92,3,FALSE),\"\")","v":""},null,null,null,null,null,null,null,null,null,null,null,null,null,null,"General Fund",{"$f":"IFERROR(VLOOKUP(C647,Descriptions!B:F,5,FALSE),\"N\")","v":"N"},true,"NTRUE",0,null,{"$f":"IFERROR(VLOOKUP(D647,'Bank and Fund Details'!$B$14:$L$35,11,FALSE),\"N\")","v":"Y"},"NY"]
[null,null,null,"General Fund",null,null,null,null,null,{"$f":"VLOOKUP(D648,'Bank and Fund Details'!$B$15:$D$36,3,FALSE)","v":0},{"$f":"VLOOKUP(D648,'Bank and Fund Details'!$B$15:$C$36,2,FALSE)","v":"Unrestricted"},{"$f":"IFERROR(VLOOKUP(C648,Descriptions!$B$6:$D$92,3,FALSE),\"\")","v":""},null,null,null,null,null,null,null,null,null,null,null,null,null,null,"General Fund",{"$f":"IFERROR(VLOOKUP(C648,Descriptions!B:F,5,FALSE),\"N\")","v":"N"},true,"NTRUE",0,null,{"$f":"IFERROR(VLOOKUP(D648,'Bank and Fund Details'!$B$14:$L$35,11,FALSE),\"N\")","v":"Y"},"NY"]
[null,null,null,"General Fund",null,null,null,null,null,{"$f":"VLOOKUP(D649,'Bank and Fund Details'!$B$15:$D$36,3,FALSE)","v":0},{"$f":"VLOOKUP(D649,'Bank and Fund Details'!$B$15:$C$36,2,FALSE)","v":"Unrestricted"},{"$f":"IFERROR(VLOOKUP(C649,Descriptions!$B$6:$D$92,3,FALSE),\"\")","v":""},null,null,null,null,null,null,null,null,null,null,null,null,null,null,"General Fund",{"$f":"IFERROR(VLOOKUP(C649,Descriptions!B:F,5,FALSE),\"N\")","v":"N"},true,"NTRUE",0,null,{"$f":"IFERROR(VLOOKUP(D649,'Bank and Fund Details'!$B$14:$L$35,11,FALSE),\"N\")","v":"Y"},"NY"]
[null,null,null,"General Fund",null,null,null,null,null,{"$f":"VLOOKUP(D650,'Bank and Fund Details'!$B$15:$D$36,3,FALSE)","v":0},{"$f":"VLOOKUP(D650,'Bank and Fund Details'!$B$15:$C$36,2,FALSE)","v":"Unrestricted"},{"$f":"IFERROR(VLOOKUP(C650,Descriptions!$B$6:$D$92,3,FALSE),\"\")","v":""},null,null,null,null,null,null,null,null,null,null,null,null,null,null,"General Fund",{"$f":"IFERROR(VLOOKUP(C650,Descriptions!B:F,5,FALSE),\"N\")","v":"N"},true,"NTRUE",0,null,{"$f":"IFERROR(VLOOKUP(D650,'Bank and Fund Details'!$B$14:$L$35,11,FALSE),\"N\")","v":"Y"},"NY"]
[null,null,null,"General Fund",null,null,null,null,null,{"$f":"VLOOKUP(D651,'Bank and Fund Details'!$B$15:$D$36,3,FALSE)","v":0},{"$f":"VLOOKUP(D651,'Bank and Fund Details'!$B$15:$C$36,2,FALSE)","v":"Unrestricted"},{"$f":"IFERROR(VLOOKUP(C651,Descriptions!$B$6:$D$92,3,FALSE),\"\")","v":""},null,null,null,null,null,null,null,null,null,null,null,null,null,null,"General Fund",{"$f":"IFERROR(VLOOKUP(C651,Descriptions!B:F,5,FALSE),\"N\")","v":"N"},true,"NTRUE",0,null,{"$f":"IFERROR(VLOOKUP(D651,'Bank and Fund Details'!$B$14:$L$35,11,FALSE),\"N\")","v":"Y"},"NY"]
[null,null,null,"General Fund",null,null,null,null,null,{"$f":"VLOOKUP(D652,'Bank and Fund Details'!$B$15:$D$36,3,FALSE)","v":0},{"$f":"VLOOKUP(D652,'Bank and Fund Details'!$B$15:$C$36,2,FALSE)","v":"Unrestricted"},{"$f":"IFERROR(VLOOKUP(C652,Descriptions!$B$6:$D$92,3,FALSE),\"\")","v":""},null,null,null,null,null,null,null,null,null,null,null,null,null,null,"General Fund",{"$f":"IFERROR(VLOOKUP(C652,Descriptions!B:F,5,FALSE),\"N\")","v":"N"},true,"NTRUE",0,null,{"$f":"IFERROR(VLOOKUP(D652,'Bank and Fund Details'!$B$14:$L$35,11,FALSE),\"N\")","v":"Y"},"NY"]
[null,null,null,"General Fund",null,null,null,null,null,{"$f":"VLOOKUP(D653,'Bank and Fund Details'!$B$15:$D$36,3,FALSE)","v":0},{"$f":"VLOOKUP(D653,'Bank and Fund Details'!$B$15:$C$36,2,FALSE)","v":"Unrestricted"},{"$f":"IFERROR(VLOOKUP(C653,Descriptions!$B$6:$D$92,3,FALSE),\"\")","v":""},null,null,null,null,null,null,null,null,null,null,null,null,null,null,"General Fund",{"$f":"IFERROR(VLOOKUP(C653,Descriptions!B:F,5,FALSE),\"N\")","v":"N"},true,"NTRUE",0,null,{"$f":"IFERROR(VLOOKUP(D653,'Bank and Fund Details'!$B$14:$L$35,11,FALSE),\"N\")","v":"Y"},"NY"]
[null,null,null,"General Fund",null,null,null,null,null,{"$f":"VLOOKUP(D654,'Bank and Fund Details'!$B$15:$D$36,3,FALSE)","v":0},{"$f":"VLOOKUP(D654,'Bank and Fund Details'!$B$15:$C$36,2,FALSE)","v":"Unrestricted"},{"$f":"IFERROR(VLOOKUP(C654,Descriptions!$B$6:$D$92,3,FALSE),\"\")","v":""},null,null,null,null,null,null,null,null,null,null,null,null,null,null,"General Fund",{"$f":"IFERROR(VLOOKUP(C654,Descriptions!B:F,5,FALSE),\"N\")","v":"N"},true,"NTRUE",0,null,{"$f":"IFERROR(VLOOKUP(D654,'Bank and Fund Details'!$B$14:$L$35,11,FALSE),\"N\")","v":"Y"},"NY"]
[null,null,null,"General Fund",null,null,null,null,null,{"$f":"VLOOKUP(D655,'Bank and Fund Details'!$B$15:$D$36,3,FALSE)","v":0},{"$f":"VLOOKUP(D655,'Bank and Fund Details'!$B$15:$C$36,2,FALSE)","v":"Unrestricted"},{"$f":"IFERROR(VLOOKUP(C655,Descriptions!$B$6:$D$92,3,FALSE),\"\")","v":""},null,null,null,null,null,null,null,null,null,null,null,null,null,null,"General Fund",{"$f":"IFERROR(VLOOKUP(C655,Descriptions!B:F,5,FALSE),\"N\")","v":"N"},true,"NTRUE",0,null,{"$f":"IFERROR(VLOOKUP(D655,'Bank and Fund Details'!$B$14:$L$35,11,FALSE),\"N\")","v":"Y"},"NY"]
[null,null,null,"General Fund",null,null,null,null,null,{"$f":"VLOOKUP(D656,'Bank and Fund Details'!$B$15:$D$36,3,FALSE)","v":0},{"$f":"VLOOKUP(D656,'Bank and Fund Details'!$B$15:$C$36,2,FALSE)","v":"Unrestricted"},{"$f":"IFERROR(VLOOKUP(C656,Descriptions!$B$6:$D$92,3,FALSE),\"\")","v":""},null,null,null,null,null,null,null,null,null,null,null,null,null,null,"General Fund",{"$f":"IFERROR(VLOOKUP(C656,Descriptions!B:F,5,FALSE),\"N\")","v":"N"},true,"NTRUE",0,null,{"$f":"IFERROR(VLOOKUP(D656,'Bank and Fund Details'!$B$14:$L$35,11,FALSE),\"N\")","v":"Y"},"NY"]
[null,null,null,"General Fund",null,null,null,null,null,{"$f":"VLOOKUP(D657,'Bank and Fund Details'!$B$15:$D$36,3,FALSE)","v":0},{"$f":"VLOOKUP(D657,'Bank and Fund Details'!$B$15:$C$36,2,FALSE)","v":"Unrestricted"},{"$f":"IFERROR(VLOOKUP(C657,Descriptions!$B$6:$D$92,3,FALSE),\"\")","v":""},null,null,null,null,null,null,null,null,null,null,null,null,null,null,"General Fund",{"$f":"IFERROR(VLOOKUP(C657,Descriptions!B:F,5,FALSE),\"N\")","v":"N"},true,"NTRUE",0,null,{"$f":"IFERROR(VLOOKUP(D657,'Bank and Fund Details'!$B$14:$L$35,11,FALSE),\"N\")","v":"Y"},"NY"]
[null,null,null,"General Fund",null,null,null,null,null,{"$f":"VLOOKUP(D658,'Bank and Fund Details'!$B$15:$D$36,3,FALSE)","v":0},{"$f":"VLOOKUP(D658,'Bank and Fund Details'!$B$15:$C$36,2,FALSE)","v":"Unrestricted"},{"$f":"IFERROR(VLOOKUP(C658,Descriptions!$B$6:$D$92,3,FALSE),\"\")","v":""},null,null,null,null,null,null,null,null,null,null,null,null,null,null,"General Fund",{"$f":"IFERROR(VLOOKUP(C658,Descriptions!B:F,5,FALSE),\"N\")","v":"N"},true,"NTRUE",0,null,{"$f":"IFERROR(VLOOKUP(D658,'Bank and Fund Details'!$B$14:$L$35,11,FALSE),\"N\")","v":"Y"},"NY"]
[null,null,null,"General Fund",null,null,null,null,null,{"$f":"VLOOKUP(D659,'Bank and Fund Details'!$B$15:$D$36,3,FALSE)","v":0},{"$f":"VLOOKUP(D659,'Bank and Fund Details'!$B$15:$C$36,2,FALSE)","v":"Unrestricted"},{"$f":"IFERROR(VLOOKUP(C659,Descriptions!$B$6:$D$92,3,FALSE),\"\")","v":""},null,null,null,null,null,null,null,null,null,null,null,null,null,null,"General Fund",{"$f":"IFERROR(VLOOKUP(C659,Descriptions!B:F,5,FALSE),\"N\")","v":"N"},true,"NTRUE",0,null,{"$f":"IFERROR(VLOOKUP(D659,'Bank and Fund Details'!$B$14:$L$35,11,FALSE),\"N\")","v":"Y"},"NY"]
[null,null,null,"General Fund",null,null,null,null,null,{"$f":"VLOOKUP(D660,'Bank and Fund Details'!$B$15:$D$36,3,FALSE)","v":0},{"$f":"VLOOKUP(D660,'Bank and Fund Details'!$B$15:$C$36,2,FALSE)","v":"Unrestricted"},{"$f":"IFERROR(VLOOKUP(C660,Descriptions!$B$6:$D$92,3,FALSE),\"\")","v":""},null,null,null,null,null,null,null,null,null,null,null,null,null,null,"General Fund",{"$f":"IFERROR(VLOOKUP(C660,Descriptions!B:F,5,FALSE),\"N\")","v":"N"},true,"NTRUE",0,null,{"$f":"IFERROR(VLOOKUP(D660,'Bank and Fund Details'!$B$14:$L$35,11,FALSE),\"N\")","v":"Y"},"NY"]
[null,null,null,"General Fund",null,null,null,null,null,{"$f":"VLOOKUP(D661,'Bank and Fund Details'!$B$15:$D$36,3,FALSE)","v":0},{"$f":"VLOOKUP(D661,'Bank and Fund Details'!$B$15:$C$36,2,FALSE)","v":"Unrestricted"},{"$f":"IFERROR(VLOOKUP(C661,Descriptions!$B$6:$D$92,3,FALSE),\"\")","v":""},null,null,null,null,null,null,null,null,null,null,null,null,null,null,"General Fund",{"$f":"IFERROR(VLOOKUP(C661,Descriptions!B:F,5,FALSE),\"N\")","v":"N"},true,"NTRUE",0,null,{"$f":"IFERROR(VLOOKUP(D661,'Bank and Fund Details'!$B$14:$L$35,11,FALSE),\"N\")","v":"Y"},"NY"]
[null,null,null,"General Fund",null,null,null,null,null,{"$f":"VLOOKUP(D662,'Bank and Fund Details'!$B$15:$D$36,3,FALSE)","v":0},{"$f":"VLOOKUP(D662,'Bank and Fund Details'!$B$15:$C$36,2,FALSE)","v":"Unrestricted"},{"$f":"IFERROR(VLOOKUP(C662,Descriptions!$B$6:$D$92,3,FALSE),\"\")","v":""},null,null,null,null,null,null,null,null,null,null,null,null,null,null,"General Fund",{"$f":"IFERROR(VLOOKUP(C662,Descriptions!B:F,5,FALSE),\"N\")","v":"N"},true,"NTRUE",0,null,{"$f":"IFERROR(VLOOKUP(D662,'Bank and Fund Details'!$B$14:$L$35,11,FALSE),\"N\")","v":"Y"},"NY"]
[null,null,null,"General Fund",null,null,null,null,null,{"$f":"VLOOKUP(D663,'Bank and Fund Details'!$B$15:$D$36,3,FALSE)","v":0},{"$f":"VLOOKUP(D663,'Bank and Fund Details'!$B$15:$C$36,2,FALSE)","v":"Unrestricted"},{"$f":"IFERROR(VLOOKUP(C663,Descriptions!$B$6:$D$92,3,FALSE),\"\")","v":""},null,null,null,null,null,null,null,null,null,null,null,null,null,null,"General Fund",{"$f":"IFERROR(VLOOKUP(C663,Descriptions!B:F,5,FALSE),\"N\")","v":"N"},true,"NTRUE",0,null,{"$f":"IFERROR(VLOOKUP(D663,'Bank and Fund Details'!$B$14:$L$35,11,FALSE),\"N\")","v":"Y"},"NY"]
[null,null,null,"General Fund",null,null,null,null,null,{"$f":"VLOOKUP(D664,'Bank and Fund Details'!$B$15:$D$36,3,FALSE)","v":0},{"$f":"VLOOKUP(D664,'Bank and Fund Details'!$B$15:$C$36,2,FALSE)","v":"Unrestricted"},{"$f":"IFERROR(VLOOKUP(C664,Descriptions!$B$6:$D$92,3,FALSE),\"\")","v":""},null,null,null,null,null,null,null,null,null,null,null,null,null,null,"General Fund",{"$f":"IFERROR(VLOOKUP(C664,Descriptions!B:F,5,FALSE),\"N\")","v":"N"},true,"NTRUE",0,null,{"$f":"IFERROR(VLOOKUP(D664,'Bank and Fund Details'!$B$14:$L$35,11,FALSE),\"N\")","v":"Y"},"NY"]
[null,null,null,"General Fund",null,null,null,null,null,{"$f":"VLOOKUP(D665,'Bank and Fund Details'!$B$15:$D$36,3,FALSE)","v":0},{"$f":"VLOOKUP(D665,'Bank and Fund Details'!$B$15:$C$36,2,FALSE)","v":"Unrestricted"},{"$f":"IFERROR(VLOOKUP(C665,Descriptions!$B$6:$D$92,3,FALSE),\"\")","v":""},null,null,null,null,null,null,null,null,null,null,null,null,null,null,"General Fund",{"$f":"IFERROR(VLOOKUP(C665,Descriptions!B:F,5,FALSE),\"N\")","v":"N"},true,"NTRUE",0,null,{"$f":"IFERROR(VLOOKUP(D665,'Bank and Fund Details'!$B$14:$L$35,11,FALSE),\"N\")","v":"Y"},"NY"]
[null,null,null,"General Fund",null,null,null,null,null,{"$f":"VLOOKUP(D666,'Bank and Fund Details'!$B$15:$D$36,3,FALSE)","v":0},{"$f":"VLOOKUP(D666,'Bank and Fund Details'!$B$15:$C$36,2,FALSE)","v":"Unrestricted"},{"$f":"IFERROR(VLOOKUP(C666,Descriptions!$B$6:$D$92,3,FALSE),\"\")","v":""},null,null,null,null,null,null,null,null,null,null,null,null,null,null,"General Fund",{"$f":"IFERROR(VLOOKUP(C666,Descriptions!B:F,5,FALSE),\"N\")","v":"N"},true,"NTRUE",0,null,{"$f":"IFERROR(VLOOKUP(D666,'Bank and Fund Details'!$B$14:$L$35,11,FALSE),\"N\")","v":"Y"},"NY"]
[null,null,null,"General Fund",null,null,null,null,null,{"$f":"VLOOKUP(D667,'Bank and Fund Details'!$B$15:$D$36,3,FALSE)","v":0},{"$f":"VLOOKUP(D667,'Bank and Fund Details'!$B$15:$C$36,2,FALSE)","v":"Unrestricted"},{"$f":"IFERROR(VLOOKUP(C667,Descriptions!$B$6:$D$92,3,FALSE),\"\")","v":""},null,null,null,null,null,null,null,null,null,null,null,null,null,null,"General Fund",{"$f":"IFERROR(VLOOKUP(C667,Descriptions!B:F,5,FALSE),\"N\")","v":"N"},true,"NTRUE",0,null,{"$f":"IFERROR(VLOOKUP(D667,'Bank and Fund Details'!$B$14:$L$35,11,FALSE),\"N\")","v":"Y"},"NY"]
[null,null,null,"General Fund",null,null,null,null,null,{"$f":"VLOOKUP(D668,'Bank and Fund Details'!$B$15:$D$36,3,FALSE)","v":0},{"$f":"VLOOKUP(D668,'Bank and Fund Details'!$B$15:$C$36,2,FALSE)","v":"Unrestricted"},{"$f":"IFERROR(VLOOKUP(C668,Descriptions!$B$6:$D$92,3,FALSE),\"\")","v":""},null,null,null,null,null,null,null,null,null,null,null,null,null,null,"General Fund",{"$f":"IFERROR(VLOOKUP(C668,Descriptions!B:F,5,FALSE),\"N\")","v":"N"},true,"NTRUE",0,null,{"$f":"IFERROR(VLOOKUP(D668,'Bank and Fund Details'!$B$14:$L$35,11,FALSE),\"N\")","v":"Y"},"NY"]
[null,null,null,"General Fund",null,null,null,null,null,{"$f":"VLOOKUP(D669,'Bank and Fund Details'!$B$15:$D$36,3,FALSE)","v":0},{"$f":"VLOOKUP(D669,'Bank and Fund Details'!$B$15:$C$36,2,FALSE)","v":"Unrestricted"},{"$f":"IFERROR(VLOOKUP(C669,Descriptions!$B$6:$D$92,3,FALSE),\"\")","v":""},null,null,null,null,null,null,null,null,null,null,null,null,null,null,"General Fund",{"$f":"IFERROR(VLOOKUP(C669,Descriptions!B:F,5,FALSE),\"N\")","v":"N"},true,"NTRUE",0,null,{"$f":"IFERROR(VLOOKUP(D669,'Bank and Fund Details'!$B$14:$L$35,11,FALSE),\"N\")","v":"Y"},"NY"]
[null,null,null,"General Fund",null,null,null,null,null,{"$f":"VLOOKUP(D670,'Bank and Fund Details'!$B$15:$D$36,3,FALSE)","v":0},{"$f":"VLOOKUP(D670,'Bank and Fund Details'!$B$15:$C$36,2,FALSE)","v":"Unrestricted"},{"$f":"IFERROR(VLOOKUP(C670,Descriptions!$B$6:$D$92,3,FALSE),\"\")","v":""},null,null,null,null,null,null,null,null,null,null,null,null,null,null,"General Fund",{"$f":"IFERROR(VLOOKUP(C670,Descriptions!B:F,5,FALSE),\"N\")","v":"N"},true,"NTRUE",0,null,{"$f":"IFERROR(VLOOKUP(D670,'Bank and Fund Details'!$B$14:$L$35,11,FALSE),\"N\")","v":"Y"},"NY"]
[null,null,null,"General Fund",null,null,null,null,null,{"$f":"VLOOKUP(D671,'Bank and Fund Details'!$B$15:$D$36,3,FALSE)","v":0},{"$f":"VLOOKUP(D671,'Bank and Fund Details'!$B$15:$C$36,2,FALSE)","v":"Unrestricted"},{"$f":"IFERROR(VLOOKUP(C671,Descriptions!$B$6:$D$92,3,FALSE),\"\")","v":""},null,null,null,null,null,null,null,null,null,null,null,null,null,null,"General Fund",{"$f":"IFERROR(VLOOKUP(C671,Descriptions!B:F,5,FALSE),\"N\")","v":"N"},true,"NTRUE",0,null,{"$f":"IFERROR(VLOOKUP(D671,'Bank and Fund Details'!$B$14:$L$35,11,FALSE),\"N\")","v":"Y"},"NY"]
[null,null,null,"General Fund",null,null,null,null,null,{"$f":"VLOOKUP(D672,'Bank and Fund Details'!$B$15:$D$36,3,FALSE)","v":0},{"$f":"VLOOKUP(D672,'Bank and Fund Details'!$B$15:$C$36,2,FALSE)","v":"Unrestricted"},{"$f":"IFERROR(VLOOKUP(C672,Descriptions!$B$6:$D$92,3,FALSE),\"\")","v":""},null,null,null,null,null,null,null,null,null,null,null,null,null,null,"General Fund",{"$f":"IFERROR(VLOOKUP(C672,Descriptions!B:F,5,FALSE),\"N\")","v":"N"},true,"NTRUE",0,null,{"$f":"IFERROR(VLOOKUP(D672,'Bank and Fund Details'!$B$14:$L$35,11,FALSE),\"N\")","v":"Y"},"NY"]
[null,null,null,"General Fund",null,null,null,null,null,{"$f":"VLOOKUP(D673,'Bank and Fund Details'!$B$15:$D$36,3,FALSE)","v":0},{"$f":"VLOOKUP(D673,'Bank and Fund Details'!$B$15:$C$36,2,FALSE)","v":"Unrestricted"},{"$f":"IFERROR(VLOOKUP(C673,Descriptions!$B$6:$D$92,3,FALSE),\"\")","v":""},null,null,null,null,null,null,null,null,null,null,null,null,null,null,"General Fund",{"$f":"IFERROR(VLOOKUP(C673,Descriptions!B:F,5,FALSE),\"N\")","v":"N"},true,"NTRUE",0,null,{"$f":"IFERROR(VLOOKUP(D673,'Bank and Fund Details'!$B$14:$L$35,11,FALSE),\"N\")","v":"Y"},"NY"]
[null,null,null,"General Fund",null,null,null,null,null,{"$f":"VLOOKUP(D674,'Bank and Fund Details'!$B$15:$D$36,3,FALSE)","v":0},{"$f":"VLOOKUP(D674,'Bank and Fund Details'!$B$15:$C$36,2,FALSE)","v":"Unrestricted"},{"$f":"IFERROR(VLOOKUP(C674,Descriptions!$B$6:$D$92,3,FALSE),\"\")","v":""},null,null,null,null,null,null,null,null,null,null,null,null,null,null,"General Fund",{"$f":"IFERROR(VLOOKUP(C674,Descriptions!B:F,5,FALSE),\"N\")","v":"N"},true,"NTRUE",0,null,{"$f":"IFERROR(VLOOKUP(D674,'Bank and Fund Details'!$B$14:$L$35,11,FALSE),\"N\")","v":"Y"},"NY"]
[null,null,null,"General Fund",null,null,null,null,null,{"$f":"VLOOKUP(D675,'Bank and Fund Details'!$B$15:$D$36,3,FALSE)","v":0},{"$f":"VLOOKUP(D675,'Bank and Fund Details'!$B$15:$C$36,2,FALSE)","v":"Unrestricted"},{"$f":"IFERROR(VLOOKUP(C675,Descriptions!$B$6:$D$92,3,FALSE),\"\")","v":""},null,null,null,null,null,null,null,null,null,null,null,null,null,null,"General Fund",{"$f":"IFERROR(VLOOKUP(C675,Descriptions!B:F,5,FALSE),\"N\")","v":"N"},true,"NTRUE",0,null,{"$f":"IFERROR(VLOOKUP(D675,'Bank and Fund Details'!$B$14:$L$35,11,FALSE),\"N\")","v":"Y"},"NY"]
[null,null,null,"General Fund",null,null,null,null,null,{"$f":"VLOOKUP(D676,'Bank and Fund Details'!$B$15:$D$36,3,FALSE)","v":0},{"$f":"VLOOKUP(D676,'Bank and Fund Details'!$B$15:$C$36,2,FALSE)","v":"Unrestricted"},{"$f":"IFERROR(VLOOKUP(C676,Descriptions!$B$6:$D$92,3,FALSE),\"\")","v":""},null,null,null,null,null,null,null,null,null,null,null,null,null,null,"General Fund",{"$f":"IFERROR(VLOOKUP(C676,Descriptions!B:F,5,FALSE),\"N\")","v":"N"},true,"NTRUE",0,null,{"$f":"IFERROR(VLOOKUP(D676,'Bank and Fund Details'!$B$14:$L$35,11,FALSE),\"N\")","v":"Y"},"NY"]
[null,null,null,"General Fund",null,null,null,null,null,{"$f":"VLOOKUP(D677,'Bank and Fund Details'!$B$15:$D$36,3,FALSE)","v":0},{"$f":"VLOOKUP(D677,'Bank and Fund Details'!$B$15:$C$36,2,FALSE)","v":"Unrestricted"},{"$f":"IFERROR(VLOOKUP(C677,Descriptions!$B$6:$D$92,3,FALSE),\"\")","v":""},null,null,null,null,null,null,null,null,null,null,null,null,null,null,"General Fund",{"$f":"IFERROR(VLOOKUP(C677,Descriptions!B:F,5,FALSE),\"N\")","v":"N"},true,"NTRUE",0,null,{"$f":"IFERROR(VLOOKUP(D677,'Bank and Fund Details'!$B$14:$L$35,11,FALSE),\"N\")","v":"Y"},"NY"]
[null,null,null,"General Fund",null,null,null,null,null,{"$f":"VLOOKUP(D678,'Bank and Fund Details'!$B$15:$D$36,3,FALSE)","v":0},{"$f":"VLOOKUP(D678,'Bank and Fund Details'!$B$15:$C$36,2,FALSE)","v":"Unrestricted"},{"$f":"IFERROR(VLOOKUP(C678,Descriptions!$B$6:$D$92,3,FALSE),\"\")","v":""},null,null,null,null,null,null,null,null,null,null,null,null,null,null,"General Fund",{"$f":"IFERROR(VLOOKUP(C678,Descriptions!B:F,5,FALSE),\"N\")","v":"N"},true,"NTRUE",0,null,{"$f":"IFERROR(VLOOKUP(D678,'Bank and Fund Details'!$B$14:$L$35,11,FALSE),\"N\")","v":"Y"},"NY"]
[null,null,null,"General Fund",null,null,null,null,null,{"$f":"VLOOKUP(D679,'Bank and Fund Details'!$B$15:$D$36,3,FALSE)","v":0},{"$f":"VLOOKUP(D679,'Bank and Fund Details'!$B$15:$C$36,2,FALSE)","v":"Unrestricted"},{"$f":"IFERROR(VLOOKUP(C679,Descriptions!$B$6:$D$92,3,FALSE),\"\")","v":""},null,null,null,null,null,null,null,null,null,null,null,null,null,null,"General Fund",{"$f":"IFERROR(VLOOKUP(C679,Descriptions!B:F,5,FALSE),\"N\")","v":"N"},true,"NTRUE",0,null,{"$f":"IFERROR(VLOOKUP(D679,'Bank and Fund Details'!$B$14:$L$35,11,FALSE),\"N\")","v":"Y"},"NY"]
[null,null,null,"General Fund",null,null,null,null,null,{"$f":"VLOOKUP(D680,'Bank and Fund Details'!$B$15:$D$36,3,FALSE)","v":0},{"$f":"VLOOKUP(D680,'Bank and Fund Details'!$B$15:$C$36,2,FALSE)","v":"Unrestricted"},{"$f":"IFERROR(VLOOKUP(C680,Descriptions!$B$6:$D$92,3,FALSE),\"\")","v":""},null,null,null,null,null,null,null,null,null,null,null,null,null,null,"General Fund",{"$f":"IFERROR(VLOOKUP(C680,Descriptions!B:F,5,FALSE),\"N\")","v":"N"},true,"NTRUE",0,null,{"$f":"IFERROR(VLOOKUP(D680,'Bank and Fund Details'!$B$14:$L$35,11,FALSE),\"N\")","v":"Y"},"NY"]
[null,null,null,"General Fund",null,null,null,null,null,{"$f":"VLOOKUP(D681,'Bank and Fund Details'!$B$15:$D$36,3,FALSE)","v":0},{"$f":"VLOOKUP(D681,'Bank and Fund Details'!$B$15:$C$36,2,FALSE)","v":"Unrestricted"},{"$f":"IFERROR(VLOOKUP(C681,Descriptions!$B$6:$D$92,3,FALSE),\"\")","v":""},null,null,null,null,null,null,null,null,null,null,null,null,null,null,"General Fund",{"$f":"IFERROR(VLOOKUP(C681,Descriptions!B:F,5,FALSE),\"N\")","v":"N"},true,"NTRUE",0,null,{"$f":"IFERROR(VLOOKUP(D681,'Bank and Fund Details'!$B$14:$L$35,11,FALSE),\"N\")","v":"Y"},"NY"]
[null,null,null,"General Fund",null,null,null,null,null,{"$f":"VLOOKUP(D682,'Bank and Fund Details'!$B$15:$D$36,3,FALSE)","v":0},{"$f":"VLOOKUP(D682,'Bank and Fund Details'!$B$15:$C$36,2,FALSE)","v":"Unrestricted"},{"$f":"IFERROR(VLOOKUP(C682,Descriptions!$B$6:$D$92,3,FALSE),\"\")","v":""},null,null,null,null,null,null,null,null,null,null,null,null,null,null,"General Fund",{"$f":"IFERROR(VLOOKUP(C682,Descriptions!B:F,5,FALSE),\"N\")","v":"N"},true,"NTRUE",0,null,{"$f":"IFERROR(VLOOKUP(D682,'Bank and Fund Details'!$B$14:$L$35,11,FALSE),\"N\")","v":"Y"},"NY"]
[null,null,null,"General Fund",null,null,null,null,null,{"$f":"VLOOKUP(D683,'Bank and Fund Details'!$B$15:$D$36,3,FALSE)","v":0},{"$f":"VLOOKUP(D683,'Bank and Fund Details'!$B$15:$C$36,2,FALSE)","v":"Unrestricted"},{"$f":"IFERROR(VLOOKUP(C683,Descriptions!$B$6:$D$92,3,FALSE),\"\")","v":""},null,null,null,null,null,null,null,null,null,null,null,null,null,null,"General Fund",{"$f":"IFERROR(VLOOKUP(C683,Descriptions!B:F,5,FALSE),\"N\")","v":"N"},true,"NTRUE",0,null,{"$f":"IFERROR(VLOOKUP(D683,'Bank and Fund Details'!$B$14:$L$35,11,FALSE),\"N\")","v":"Y"},"NY"]
[null,null,null,"General Fund",null,null,null,null,null,{"$f":"VLOOKUP(D684,'Bank and Fund Details'!$B$15:$D$36,3,FALSE)","v":0},{"$f":"VLOOKUP(D684,'Bank and Fund Details'!$B$15:$C$36,2,FALSE)","v":"Unrestricted"},{"$f":"IFERROR(VLOOKUP(C684,Descriptions!$B$6:$D$92,3,FALSE),\"\")","v":""},null,null,null,null,null,null,null,null,null,null,null,null,null,null,"General Fund",{"$f":"IFERROR(VLOOKUP(C684,Descriptions!B:F,5,FALSE),\"N\")","v":"N"},true,"NTRUE",0,null,{"$f":"IFERROR(VLOOKUP(D684,'Bank and Fund Details'!$B$14:$L$35,11,FALSE),\"N\")","v":"Y"},"NY"]
[null,null,null,"General Fund",null,null,null,null,null,{"$f":"VLOOKUP(D685,'Bank and Fund Details'!$B$15:$D$36,3,FALSE)","v":0},{"$f":"VLOOKUP(D685,'Bank and Fund Details'!$B$15:$C$36,2,FALSE)","v":"Unrestricted"},{"$f":"IFERROR(VLOOKUP(C685,Descriptions!$B$6:$D$92,3,FALSE),\"\")","v":""},null,null,null,null,null,null,null,null,null,null,null,null,null,null,"General Fund",{"$f":"IFERROR(VLOOKUP(C685,Descriptions!B:F,5,FALSE),\"N\")","v":"N"},true,"NTRUE",0,null,{"$f":"IFERROR(VLOOKUP(D685,'Bank and Fund Details'!$B$14:$L$35,11,FALSE),\"N\")","v":"Y"},"NY"]
[null,null,null,"General Fund",null,null,null,null,null,{"$f":"VLOOKUP(D686,'Bank and Fund Details'!$B$15:$D$36,3,FALSE)","v":0},{"$f":"VLOOKUP(D686,'Bank and Fund Details'!$B$15:$C$36,2,FALSE)","v":"Unrestricted"},{"$f":"IFERROR(VLOOKUP(C686,Descriptions!$B$6:$D$92,3,FALSE),\"\")","v":""},null,null,null,null,null,null,null,null,null,null,null,null,null,null,"General Fund",{"$f":"IFERROR(VLOOKUP(C686,Descriptions!B:F,5,FALSE),\"N\")","v":"N"},true,"NTRUE",0,null,{"$f":"IFERROR(VLOOKUP(D686,'Bank and Fund Details'!$B$14:$L$35,11,FALSE),\"N\")","v":"Y"},"NY"]
[null,null,null,"General Fund",null,null,null,null,null,{"$f":"VLOOKUP(D687,'Bank and Fund Details'!$B$15:$D$36,3,FALSE)","v":0},{"$f":"VLOOKUP(D687,'Bank and Fund Details'!$B$15:$C$36,2,FALSE)","v":"Unrestricted"},{"$f":"IFERROR(VLOOKUP(C687,Descriptions!$B$6:$D$92,3,FALSE),\"\")","v":""},null,null,null,null,null,null,null,null,null,null,null,null,null,null,"General Fund",{"$f":"IFERROR(VLOOKUP(C687,Descriptions!B:F,5,FALSE),\"N\")","v":"N"},true,"NTRUE",0,null,{"$f":"IFERROR(VLOOKUP(D687,'Bank and Fund Details'!$B$14:$L$35,11,FALSE),\"N\")","v":"Y"},"NY"]
[null,null,null,"General Fund",null,null,null,null,null,{"$f":"VLOOKUP(D688,'Bank and Fund Details'!$B$15:$D$36,3,FALSE)","v":0},{"$f":"VLOOKUP(D688,'Bank and Fund Details'!$B$15:$C$36,2,FALSE)","v":"Unrestricted"},{"$f":"IFERROR(VLOOKUP(C688,Descriptions!$B$6:$D$92,3,FALSE),\"\")","v":""},null,null,null,null,null,null,null,null,null,null,null,null,null,null,"General Fund",{"$f":"IFERROR(VLOOKUP(C688,Descriptions!B:F,5,FALSE),\"N\")","v":"N"},true,"NTRUE",0,null,{"$f":"IFERROR(VLOOKUP(D688,'Bank and Fund Details'!$B$14:$L$35,11,FALSE),\"N\")","v":"Y"},"NY"]
[null,null,null,"General Fund",null,null,null,null,null,{"$f":"VLOOKUP(D689,'Bank and Fund Details'!$B$15:$D$36,3,FALSE)","v":0},{"$f":"VLOOKUP(D689,'Bank and Fund Details'!$B$15:$C$36,2,FALSE)","v":"Unrestricted"},{"$f":"IFERROR(VLOOKUP(C689,Descriptions!$B$6:$D$92,3,FALSE),\"\")","v":""},null,null,null,null,null,null,null,null,null,null,null,null,null,null,"General Fund",{"$f":"IFERROR(VLOOKUP(C689,Descriptions!B:F,5,FALSE),\"N\")","v":"N"},true,"NTRUE",0,null,{"$f":"IFERROR(VLOOKUP(D689,'Bank and Fund Details'!$B$14:$L$35,11,FALSE),\"N\")","v":"Y"},"NY"]
[null,null,null,"General Fund",null,null,null,null,null,{"$f":"VLOOKUP(D690,'Bank and Fund Details'!$B$15:$D$36,3,FALSE)","v":0},{"$f":"VLOOKUP(D690,'Bank and Fund Details'!$B$15:$C$36,2,FALSE)","v":"Unrestricted"},{"$f":"IFERROR(VLOOKUP(C690,Descriptions!$B$6:$D$92,3,FALSE),\"\")","v":""},null,null,null,null,null,null,null,null,null,null,null,null,null,null,"General Fund",{"$f":"IFERROR(VLOOKUP(C690,Descriptions!B:F,5,FALSE),\"N\")","v":"N"},true,"NTRUE",0,null,{"$f":"IFERROR(VLOOKUP(D690,'Bank and Fund Details'!$B$14:$L$35,11,FALSE),\"N\")","v":"Y"},"NY"]
[null,null,null,"General Fund",null,null,null,null,null,{"$f":"VLOOKUP(D691,'Bank and Fund Details'!$B$15:$D$36,3,FALSE)","v":0},{"$f":"VLOOKUP(D691,'Bank and Fund Details'!$B$15:$C$36,2,FALSE)","v":"Unrestricted"},{"$f":"IFERROR(VLOOKUP(C691,Descriptions!$B$6:$D$92,3,FALSE),\"\")","v":""},null,null,null,null,null,null,null,null,null,null,null,null,null,null,"General Fund",{"$f":"IFERROR(VLOOKUP(C691,Descriptions!B:F,5,FALSE),\"N\")","v":"N"},true,"NTRUE",0,null,{"$f":"IFERROR(VLOOKUP(D691,'Bank and Fund Details'!$B$14:$L$35,11,FALSE),\"N\")","v":"Y"},"NY"]
[null,null,null,"General Fund",null,null,null,null,null,{"$f":"VLOOKUP(D692,'Bank and Fund Details'!$B$15:$D$36,3,FALSE)","v":0},{"$f":"VLOOKUP(D692,'Bank and Fund Details'!$B$15:$C$36,2,FALSE)","v":"Unrestricted"},{"$f":"IFERROR(VLOOKUP(C692,Descriptions!$B$6:$D$92,3,FALSE),\"\")","v":""},null,null,null,null,null,null,null,null,null,null,null,null,null,null,"General Fund",{"$f":"IFERROR(VLOOKUP(C692,Descriptions!B:F,5,FALSE),\"N\")","v":"N"},true,"NTRUE",0,null,{"$f":"IFERROR(VLOOKUP(D692,'Bank and Fund Details'!$B$14:$L$35,11,FALSE),\"N\")","v":"Y"},"NY"]
[null,null,null,"General Fund",null,null,null,null,null,{"$f":"VLOOKUP(D693,'Bank and Fund Details'!$B$15:$D$36,3,FALSE)","v":0},{"$f":"VLOOKUP(D693,'Bank and Fund Details'!$B$15:$C$36,2,FALSE)","v":"Unrestricted"},{"$f":"IFERROR(VLOOKUP(C693,Descriptions!$B$6:$D$92,3,FALSE),\"\")","v":""},null,null,null,null,null,null,null,null,null,null,null,null,null,null,"General Fund",{"$f":"IFERROR(VLOOKUP(C693,Descriptions!B:F,5,FALSE),\"N\")","v":"N"},true,"NTRUE",0,null,{"$f":"IFERROR(VLOOKUP(D693,'Bank and Fund Details'!$B$14:$L$35,11,FALSE),\"N\")","v":"Y"},"NY"]
[null,null,null,"General Fund",null,null,null,null,null,{"$f":"VLOOKUP(D694,'Bank and Fund Details'!$B$15:$D$36,3,FALSE)","v":0},{"$f":"VLOOKUP(D694,'Bank and Fund Details'!$B$15:$C$36,2,FALSE)","v":"Unrestricted"},{"$f":"IFERROR(VLOOKUP(C694,Descriptions!$B$6:$D$92,3,FALSE),\"\")","v":""},null,null,null,null,null,null,null,null,null,null,null,null,null,null,"General Fund",{"$f":"IFERROR(VLOOKUP(C694,Descriptions!B:F,5,FALSE),\"N\")","v":"N"},true,"NTRUE",0,null,{"$f":"IFERROR(VLOOKUP(D694,'Bank and Fund Details'!$B$14:$L$35,11,FALSE),\"N\")","v":"Y"},"NY"]
[null,null,null,"General Fund",null,null,null,null,null,{"$f":"VLOOKUP(D695,'Bank and Fund Details'!$B$15:$D$36,3,FALSE)","v":0},{"$f":"VLOOKUP(D695,'Bank and Fund Details'!$B$15:$C$36,2,FALSE)","v":"Unrestricted"},{"$f":"IFERROR(VLOOKUP(C695,Descriptions!$B$6:$D$92,3,FALSE),\"\")","v":""},null,null,null,null,null,null,null,null,null,null,null,null,null,null,"General Fund",{"$f":"IFERROR(VLOOKUP(C695,Descriptions!B:F,5,FALSE),\"N\")","v":"N"},true,"NTRUE",0,null,{"$f":"IFERROR(VLOOKUP(D695,'Bank and Fund Details'!$B$14:$L$35,11,FALSE),\"N\")","v":"Y"},"NY"]
[null,null,null,"General Fund",null,null,null,null,null,{"$f":"VLOOKUP(D696,'Bank and Fund Details'!$B$15:$D$36,3,FALSE)","v":0},{"$f":"VLOOKUP(D696,'Bank and Fund Details'!$B$15:$C$36,2,FALSE)","v":"Unrestricted"},{"$f":"IFERROR(VLOOKUP(C696,Descriptions!$B$6:$D$92,3,FALSE),\"\")","v":""},null,null,null,null,null,null,null,null,null,null,null,null,null,null,"General Fund",{"$f":"IFERROR(VLOOKUP(C696,Descriptions!B:F,5,FALSE),\"N\")","v":"N"},true,"NTRUE",0,null,{"$f":"IFERROR(VLOOKUP(D696,'Bank and Fund Details'!$B$14:$L$35,11,FALSE),\"N\")","v":"Y"},"NY"]
[null,null,null,"General Fund",null,null,null,null,null,{"$f":"VLOOKUP(D697,'Bank and Fund Details'!$B$15:$D$36,3,FALSE)","v":0},{"$f":"VLOOKUP(D697,'Bank and Fund Details'!$B$15:$C$36,2,FALSE)","v":"Unrestricted"},{"$f":"IFERROR(VLOOKUP(C697,Descriptions!$B$6:$D$92,3,FALSE),\"\")","v":""},null,null,null,null,null,null,null,null,null,null,null,null,null,null,"General Fund",{"$f":"IFERROR(VLOOKUP(C697,Descriptions!B:F,5,FALSE),\"N\")","v":"N"},true,"NTRUE",0,null,{"$f":"IFERROR(VLOOKUP(D697,'Bank and Fund Details'!$B$14:$L$35,11,FALSE),\"N\")","v":"Y"},"NY"]
[null,null,null,"General Fund",null,null,null,null,null,{"$f":"VLOOKUP(D698,'Bank and Fund Details'!$B$15:$D$36,3,FALSE)","v":0},{"$f":"VLOOKUP(D698,'Bank and Fund Details'!$B$15:$C$36,2,FALSE)","v":"Unrestricted"},{"$f":"IFERROR(VLOOKUP(C698,Descriptions!$B$6:$D$92,3,FALSE),\"\")","v":""},null,null,null,null,null,null,null,null,null,null,null,null,null,null,"General Fund",{"$f":"IFERROR(VLOOKUP(C698,Descriptions!B:F,5,FALSE),\"N\")","v":"N"},true,"NTRUE",0,null,{"$f":"IFERROR(VLOOKUP(D698,'Bank and Fund Details'!$B$14:$L$35,11,FALSE),\"N\")","v":"Y"},"NY"]
[null,null,null,"General Fund",null,null,null,null,null,{"$f":"VLOOKUP(D699,'Bank and Fund Details'!$B$15:$D$36,3,FALSE)","v":0},{"$f":"VLOOKUP(D699,'Bank and Fund Details'!$B$15:$C$36,2,FALSE)","v":"Unrestricted"},{"$f":"IFERROR(VLOOKUP(C699,Descriptions!$B$6:$D$92,3,FALSE),\"\")","v":""},null,null,null,null,null,null,null,null,null,null,null,null,null,null,"General Fund",{"$f":"IFERROR(VLOOKUP(C699,Descriptions!B:F,5,FALSE),\"N\")","v":"N"},true,"NTRUE",0,null,{"$f":"IFERROR(VLOOKUP(D699,'Bank and Fund Details'!$B$14:$L$35,11,FALSE),\"N\")","v":"Y"},"NY"]
[null,null,null,"General Fund",null,null,null,null,null,{"$f":"VLOOKUP(D700,'Bank and Fund Details'!$B$15:$D$36,3,FALSE)","v":0},{"$f":"VLOOKUP(D700,'Bank and Fund Details'!$B$15:$C$36,2,FALSE)","v":"Unrestricted"},{"$f":"IFERROR(VLOOKUP(C700,Descriptions!$B$6:$D$92,3,FALSE),\"\")","v":""},null,null,null,null,null,null,null,null,null,null,null,null,null,null,"General Fund",{"$f":"IFERROR(VLOOKUP(C700,Descriptions!B:F,5,FALSE),\"N\")","v":"N"},true,"NTRUE",0,null,{"$f":"IFERROR(VLOOKUP(D700,'Bank and Fund Details'!$B$14:$L$35,11,FALSE),\"N\")","v":"Y"},"NY"]
[null,null,null,"General Fund",null,null,null,null,null,{"$f":"VLOOKUP(D701,'Bank and Fund Details'!$B$15:$D$36,3,FALSE)","v":0},{"$f":"VLOOKUP(D701,'Bank and Fund Details'!$B$15:$C$36,2,FALSE)","v":"Unrestricted"},{"$f":"IFERROR(VLOOKUP(C701,Descriptions!$B$6:$D$92,3,FALSE),\"\")","v":""},null,null,null,null,null,null,null,null,null,null,null,null,null,null,"General Fund",{"$f":"IFERROR(VLOOKUP(C701,Descriptions!B:F,5,FALSE),\"N\")","v":"N"},true,"NTRUE",0,null,{"$f":"IFERROR(VLOOKUP(D701,'Bank and Fund Details'!$B$14:$L$35,11,FALSE),\"N\")","v":"Y"},"NY"]
[null,null,null,"General Fund",null,null,null,null,null,{"$f":"VLOOKUP(D702,'Bank and Fund Details'!$B$15:$D$36,3,FALSE)","v":0},{"$f":"VLOOKUP(D702,'Bank and Fund Details'!$B$15:$C$36,2,FALSE)","v":"Unrestricted"},{"$f":"IFERROR(VLOOKUP(C702,Descriptions!$B$6:$D$92,3,FALSE),\"\")","v":""},null,null,null,null,null,null,null,null,null,null,null,null,null,null,"General Fund",{"$f":"IFERROR(VLOOKUP(C702,Descriptions!B:F,5,FALSE),\"N\")","v":"N"},true,"NTRUE",0,null,{"$f":"IFERROR(VLOOKUP(D702,'Bank and Fund Details'!$B$14:$L$35,11,FALSE),\"N\")","v":"Y"},"NY"]
[null,null,null,"General Fund",null,null,null,null,null,{"$f":"VLOOKUP(D703,'Bank and Fund Details'!$B$15:$D$36,3,FALSE)","v":0},{"$f":"VLOOKUP(D703,'Bank and Fund Details'!$B$15:$C$36,2,FALSE)","v":"Unrestricted"},{"$f":"IFERROR(VLOOKUP(C703,Descriptions!$B$6:$D$92,3,FALSE),\"\")","v":""},null,null,null,null,null,null,null,null,null,null,null,null,null,null,"General Fund",{"$f":"IFERROR(VLOOKUP(C703,Descriptions!B:F,5,FALSE),\"N\")","v":"N"},true,"NTRUE",0,null,{"$f":"IFERROR(VLOOKUP(D703,'Bank and Fund Details'!$B$14:$L$35,11,FALSE),\"N\")","v":"Y"},"NY"]
[null,null,null,"General Fund",null,null,null,null,null,{"$f":"VLOOKUP(D704,'Bank and Fund Details'!$B$15:$D$36,3,FALSE)","v":0},{"$f":"VLOOKUP(D704,'Bank and Fund Details'!$B$15:$C$36,2,FALSE)","v":"Unrestricted"},{"$f":"IFERROR(VLOOKUP(C704,Descriptions!$B$6:$D$92,3,FALSE),\"\")","v":""},null,null,null,null,null,null,null,null,null,null,null,null,null,null,"General Fund",{"$f":"IFERROR(VLOOKUP(C704,Descriptions!B:F,5,FALSE),\"N\")","v":"N"},true,"NTRUE",0,null,{"$f":"IFERROR(VLOOKUP(D704,'Bank and Fund Details'!$B$14:$L$35,11,FALSE),\"N\")","v":"Y"},"NY"]
[null,null,null,"General Fund",null,null,null,null,null,{"$f":"VLOOKUP(D705,'Bank and Fund Details'!$B$15:$D$36,3,FALSE)","v":0},{"$f":"VLOOKUP(D705,'Bank and Fund Details'!$B$15:$C$36,2,FALSE)","v":"Unrestricted"},{"$f":"IFERROR(VLOOKUP(C705,Descriptions!$B$6:$D$92,3,FALSE),\"\")","v":""},null,null,null,null,null,null,null,null,null,null,null,null,null,null,"General Fund",{"$f":"IFERROR(VLOOKUP(C705,Descriptions!B:F,5,FALSE),\"N\")","v":"N"},true,"NTRUE",0,null,{"$f":"IFERROR(VLOOKUP(D705,'Bank and Fund Details'!$B$14:$L$35,11,FALSE),\"N\")","v":"Y"},"NY"]
[null,null,null,"General Fund",null,null,null,null,null,{"$f":"VLOOKUP(D706,'Bank and Fund Details'!$B$15:$D$36,3,FALSE)","v":0},{"$f":"VLOOKUP(D706,'Bank and Fund Details'!$B$15:$C$36,2,FALSE)","v":"Unrestricted"},{"$f":"IFERROR(VLOOKUP(C706,Descriptions!$B$6:$D$92,3,FALSE),\"\")","v":""},null,null,null,null,null,null,null,null,null,null,null,null,null,null,"General Fund",{"$f":"IFERROR(VLOOKUP(C706,Descriptions!B:F,5,FALSE),\"N\")","v":"N"},true,"NTRUE",0,null,{"$f":"IFERROR(VLOOKUP(D706,'Bank and Fund Details'!$B$14:$L$35,11,FALSE),\"N\")","v":"Y"},"NY"]
[null,null,null,"General Fund",null,null,null,null,null,{"$f":"VLOOKUP(D707,'Bank and Fund Details'!$B$15:$D$36,3,FALSE)","v":0},{"$f":"VLOOKUP(D707,'Bank and Fund Details'!$B$15:$C$36,2,FALSE)","v":"Unrestricted"},{"$f":"IFERROR(VLOOKUP(C707,Descriptions!$B$6:$D$92,3,FALSE),\"\")","v":""},null,null,null,null,null,null,null,null,null,null,null,null,null,null,"General Fund",{"$f":"IFERROR(VLOOKUP(C707,Descriptions!B:F,5,FALSE),\"N\")","v":"N"},true,"NTRUE",0,null,{"$f":"IFERROR(VLOOKUP(D707,'Bank and Fund Details'!$B$14:$L$35,11,FALSE),\"N\")","v":"Y"},"NY"]
[null,null,null,"General Fund",null,null,null,null,null,{"$f":"VLOOKUP(D708,'Bank and Fund Details'!$B$15:$D$36,3,FALSE)","v":0},{"$f":"VLOOKUP(D708,'Bank and Fund Details'!$B$15:$C$36,2,FALSE)","v":"Unrestricted"},{"$f":"IFERROR(VLOOKUP(C708,Descriptions!$B$6:$D$92,3,FALSE),\"\")","v":""},null,null,null,null,null,null,null,null,null,null,null,null,null,null,"General Fund",{"$f":"IFERROR(VLOOKUP(C708,Descriptions!B:F,5,FALSE),\"N\")","v":"N"},true,"NTRUE",0,null,{"$f":"IFERROR(VLOOKUP(D708,'Bank and Fund Details'!$B$14:$L$35,11,FALSE),\"N\")","v":"Y"},"NY"]
[null,null,null,"General Fund",null,null,null,null,null,{"$f":"VLOOKUP(D709,'Bank and Fund Details'!$B$15:$D$36,3,FALSE)","v":0},{"$f":"VLOOKUP(D709,'Bank and Fund Details'!$B$15:$C$36,2,FALSE)","v":"Unrestricted"},{"$f":"IFERROR(VLOOKUP(C709,Descriptions!$B$6:$D$92,3,FALSE),\"\")","v":""},null,null,null,null,null,null,null,null,null,null,null,null,null,null,{"$f":"CONCATENATE(C709,D709)","v":"General Fund"},{"$f":"IFERROR(VLOOKUP(C709,Descriptions!B:F,5,FALSE),\"N\")","v":"N"},{"$f":"ISBLANK(C709)","v":true},{"$f":"CONCATENATE(AB709,AC709)","v":"NTRUE"},{"$f":"IF(AD709=\"NFALSE\",1,0)","v":0},null,{"$f":"IFERROR(VLOOKUP(D709,'Bank and Fund Details'!$B$14:$L$35,11,FALSE),\"N\")","v":"Y"},"NY"]
[null,null,null,"General Fund",null,null,null,null,null,{"$f":"VLOOKUP(D710,'Bank and Fund Details'!$B$15:$D$36,3,FALSE)","v":0},{"$f":"VLOOKUP(D710,'Bank and Fund Details'!$B$15:$C$36,2,FALSE)","v":"Unrestricted"},{"$f":"IFERROR(VLOOKUP(C710,Descriptions!$B$6:$D$92,3,FALSE),\"\")","v":""},null,null,null,null,null,null,null,null,null,null,null,null,null,null,"General Fund",{"$f":"IFERROR(VLOOKUP(C710,Descriptions!B:F,5,FALSE),\"N\")","v":"N"},true,"NTRUE",0,null,{"$f":"IFERROR(VLOOKUP(D710,'Bank and Fund Details'!$B$14:$L$35,11,FALSE),\"N\")","v":"Y"},{"$f":"CONCATENATE(AB710,AG710)","v":"NY"}]
[null,null,null,"General Fund",null,null,null,null,null,{"$f":"VLOOKUP(D711,'Bank and Fund Details'!$B$15:$D$36,3,FALSE)","v":0},{"$f":"VLOOKUP(D711,'Bank and Fund Details'!$B$15:$C$36,2,FALSE)","v":"Unrestricted"},{"$f":"IFERROR(VLOOKUP(C711,Descriptions!$B$6:$D$92,3,FALSE),\"\")","v":""},null,null,null,null,null,null,null,null,null,null,null,null,null,null,"General Fund",{"$f":"IFERROR(VLOOKUP(C711,Descriptions!B:F,5,FALSE),\"N\")","v":"N"},true,"NTRUE",0,null,{"$f":"IFERROR(VLOOKUP(D711,'Bank and Fund Details'!$B$14:$L$35,11,FALSE),\"N\")","v":"Y"},"NY"]
[null,null,null,"General Fund",null,null,null,null,null,{"$f":"VLOOKUP(D712,'Bank and Fund Details'!$B$15:$D$36,3,FALSE)","v":0},{"$f":"VLOOKUP(D712,'Bank and Fund Details'!$B$15:$C$36,2,FALSE)","v":"Unrestricted"},{"$f":"IFERROR(VLOOKUP(C712,Descriptions!$B$6:$D$92,3,FALSE),\"\")","v":""},null,null,null,null,null,null,null,null,null,null,null,null,null,null,"General Fund",{"$f":"IFERROR(VLOOKUP(C712,Descriptions!B:F,5,FALSE),\"N\")","v":"N"},true,"NTRUE",0,null,{"$f":"IFERROR(VLOOKUP(D712,'Bank and Fund Details'!$B$14:$L$35,11,FALSE),\"N\")","v":"Y"},"NY"]
[null,null,null,"General Fund",null,null,null,null,null,{"$f":"VLOOKUP(D713,'Bank and Fund Details'!$B$15:$D$36,3,FALSE)","v":0},{"$f":"VLOOKUP(D713,'Bank and Fund Details'!$B$15:$C$36,2,FALSE)","v":"Unrestricted"},{"$f":"IFERROR(VLOOKUP(C713,Descriptions!$B$6:$D$92,3,FALSE),\"\")","v":""},null,null,null,null,null,null,null,null,null,null,null,null,null,null,"General Fund",{"$f":"IFERROR(VLOOKUP(C713,Descriptions!B:F,5,FALSE),\"N\")","v":"N"},true,"NTRUE",0,null,{"$f":"IFERROR(VLOOKUP(D713,'Bank and Fund Details'!$B$14:$L$35,11,FALSE),\"N\")","v":"Y"},"NY"]
[null,null,null,"General Fund",null,null,null,null,null,{"$f":"VLOOKUP(D714,'Bank and Fund Details'!$B$15:$D$36,3,FALSE)","v":0},{"$f":"VLOOKUP(D714,'Bank and Fund Details'!$B$15:$C$36,2,FALSE)","v":"Unrestricted"},{"$f":"IFERROR(VLOOKUP(C714,Descriptions!$B$6:$D$92,3,FALSE),\"\")","v":""},null,null,null,null,null,null,null,null,null,null,null,null,null,null,"General Fund",{"$f":"IFERROR(VLOOKUP(C714,Descriptions!B:F,5,FALSE),\"N\")","v":"N"},true,"NTRUE",0,null,{"$f":"IFERROR(VLOOKUP(D714,'Bank and Fund Details'!$B$14:$L$35,11,FALSE),\"N\")","v":"Y"},"NY"]
[null,null,null,"General Fund",null,null,null,null,null,{"$f":"VLOOKUP(D715,'Bank and Fund Details'!$B$15:$D$36,3,FALSE)","v":0},{"$f":"VLOOKUP(D715,'Bank and Fund Details'!$B$15:$C$36,2,FALSE)","v":"Unrestricted"},{"$f":"IFERROR(VLOOKUP(C715,Descriptions!$B$6:$D$92,3,FALSE),\"\")","v":""},null,null,null,null,null,null,null,null,null,null,null,null,null,null,"General Fund",{"$f":"IFERROR(VLOOKUP(C715,Descriptions!B:F,5,FALSE),\"N\")","v":"N"},true,"NTRUE",0,null,{"$f":"IFERROR(VLOOKUP(D715,'Bank and Fund Details'!$B$14:$L$35,11,FALSE),\"N\")","v":"Y"},"NY"]
[null,null,null,"General Fund",null,null,null,null,null,{"$f":"VLOOKUP(D716,'Bank and Fund Details'!$B$15:$D$36,3,FALSE)","v":0},{"$f":"VLOOKUP(D716,'Bank and Fund Details'!$B$15:$C$36,2,FALSE)","v":"Unrestricted"},{"$f":"IFERROR(VLOOKUP(C716,Descriptions!$B$6:$D$92,3,FALSE),\"\")","v":""},null,null,null,null,null,null,null,null,null,null,null,null,null,null,"General Fund",{"$f":"IFERROR(VLOOKUP(C716,Descriptions!B:F,5,FALSE),\"N\")","v":"N"},true,"NTRUE",0,null,{"$f":"IFERROR(VLOOKUP(D716,'Bank and Fund Details'!$B$14:$L$35,11,FALSE),\"N\")","v":"Y"},"NY"]
[null,null,null,"General Fund",null,null,null,null,null,{"$f":"VLOOKUP(D717,'Bank and Fund Details'!$B$15:$D$36,3,FALSE)","v":0},{"$f":"VLOOKUP(D717,'Bank and Fund Details'!$B$15:$C$36,2,FALSE)","v":"Unrestricted"},{"$f":"IFERROR(VLOOKUP(C717,Descriptions!$B$6:$D$92,3,FALSE),\"\")","v":""},null,null,null,null,null,null,null,null,null,null,null,null,null,null,"General Fund",{"$f":"IFERROR(VLOOKUP(C717,Descriptions!B:F,5,FALSE),\"N\")","v":"N"},true,"NTRUE",0,null,{"$f":"IFERROR(VLOOKUP(D717,'Bank and Fund Details'!$B$14:$L$35,11,FALSE),\"N\")","v":"Y"},"NY"]
[null,null,null,"General Fund",null,null,null,null,null,{"$f":"VLOOKUP(D718,'Bank and Fund Details'!$B$15:$D$36,3,FALSE)","v":0},{"$f":"VLOOKUP(D718,'Bank and Fund Details'!$B$15:$C$36,2,FALSE)","v":"Unrestricted"},{"$f":"IFERROR(VLOOKUP(C718,Descriptions!$B$6:$D$92,3,FALSE),\"\")","v":""},null,null,null,null,null,null,null,null,null,null,null,null,null,null,"General Fund",{"$f":"IFERROR(VLOOKUP(C718,Descriptions!B:F,5,FALSE),\"N\")","v":"N"},true,"NTRUE",0,null,{"$f":"IFERROR(VLOOKUP(D718,'Bank and Fund Details'!$B$14:$L$35,11,FALSE),\"N\")","v":"Y"},"NY"]
[null,null,null,"General Fund",null,null,null,null,null,{"$f":"VLOOKUP(D719,'Bank and Fund Details'!$B$15:$D$36,3,FALSE)","v":0},{"$f":"VLOOKUP(D719,'Bank and Fund Details'!$B$15:$C$36,2,FALSE)","v":"Unrestricted"},{"$f":"IFERROR(VLOOKUP(C719,Descriptions!$B$6:$D$92,3,FALSE),\"\")","v":""},null,null,null,null,null,null,null,null,null,null,null,null,null,null,"General Fund",{"$f":"IFERROR(VLOOKUP(C719,Descriptions!B:F,5,FALSE),\"N\")","v":"N"},true,"NTRUE",0,null,{"$f":"IFERROR(VLOOKUP(D719,'Bank and Fund Details'!$B$14:$L$35,11,FALSE),\"N\")","v":"Y"},"NY"]
[null,null,null,"General Fund",null,null,null,null,null,{"$f":"VLOOKUP(D720,'Bank and Fund Details'!$B$15:$D$36,3,FALSE)","v":0},{"$f":"VLOOKUP(D720,'Bank and Fund Details'!$B$15:$C$36,2,FALSE)","v":"Unrestricted"},{"$f":"IFERROR(VLOOKUP(C720,Descriptions!$B$6:$D$92,3,FALSE),\"\")","v":""},null,null,null,null,null,null,null,null,null,null,null,null,null,null,"General Fund",{"$f":"IFERROR(VLOOKUP(C720,Descriptions!B:F,5,FALSE),\"N\")","v":"N"},true,"NTRUE",0,null,{"$f":"IFERROR(VLOOKUP(D720,'Bank and Fund Details'!$B$14:$L$35,11,FALSE),\"N\")","v":"Y"},"NY"]
[null,null,null,"General Fund",null,null,null,null,null,{"$f":"VLOOKUP(D721,'Bank and Fund Details'!$B$15:$D$36,3,FALSE)","v":0},{"$f":"VLOOKUP(D721,'Bank and Fund Details'!$B$15:$C$36,2,FALSE)","v":"Unrestricted"},{"$f":"IFERROR(VLOOKUP(C721,Descriptions!$B$6:$D$92,3,FALSE),\"\")","v":""},null,null,null,null,null,null,null,null,null,null,null,null,null,null,"General Fund",{"$f":"IFERROR(VLOOKUP(C721,Descriptions!B:F,5,FALSE),\"N\")","v":"N"},true,"NTRUE",0,null,{"$f":"IFERROR(VLOOKUP(D721,'Bank and Fund Details'!$B$14:$L$35,11,FALSE),\"N\")","v":"Y"},"NY"]
[null,null,null,"General Fund",null,null,null,null,null,{"$f":"VLOOKUP(D722,'Bank and Fund Details'!$B$15:$D$36,3,FALSE)","v":0},{"$f":"VLOOKUP(D722,'Bank and Fund Details'!$B$15:$C$36,2,FALSE)","v":"Unrestricted"},{"$f":"IFERROR(VLOOKUP(C722,Descriptions!$B$6:$D$92,3,FALSE),\"\")","v":""},null,null,null,null,null,null,null,null,null,null,null,null,null,null,"General Fund",{"$f":"IFERROR(VLOOKUP(C722,Descriptions!B:F,5,FALSE),\"N\")","v":"N"},true,"NTRUE",0,null,{"$f":"IFERROR(VLOOKUP(D722,'Bank and Fund Details'!$B$14:$L$35,11,FALSE),\"N\")","v":"Y"},"NY"]
[null,null,null,"General Fund",null,null,null,null,null,{"$f":"VLOOKUP(D723,'Bank and Fund Details'!$B$15:$D$36,3,FALSE)","v":0},{"$f":"VLOOKUP(D723,'Bank and Fund Details'!$B$15:$C$36,2,FALSE)","v":"Unrestricted"},{"$f":"IFERROR(VLOOKUP(C723,Descriptions!$B$6:$D$92,3,FALSE),\"\")","v":""},null,null,null,null,null,null,null,null,null,null,null,null,null,null,"General Fund",{"$f":"IFERROR(VLOOKUP(C723,Descriptions!B:F,5,FALSE),\"N\")","v":"N"},true,"NTRUE",0,null,{"$f":"IFERROR(VLOOKUP(D723,'Bank and Fund Details'!$B$14:$L$35,11,FALSE),\"N\")","v":"Y"},"NY"]
[null,null,null,"General Fund",null,null,null,null,null,{"$f":"VLOOKUP(D724,'Bank and Fund Details'!$B$15:$D$36,3,FALSE)","v":0},{"$f":"VLOOKUP(D724,'Bank and Fund Details'!$B$15:$C$36,2,FALSE)","v":"Unrestricted"},{"$f":"IFERROR(VLOOKUP(C724,Descriptions!$B$6:$D$92,3,FALSE),\"\")","v":""},null,null,null,null,null,null,null,null,null,null,null,null,null,null,"General Fund",{"$f":"IFERROR(VLOOKUP(C724,Descriptions!B:F,5,FALSE),\"N\")","v":"N"},true,"NTRUE",0,null,{"$f":"IFERROR(VLOOKUP(D724,'Bank and Fund Details'!$B$14:$L$35,11,FALSE),\"N\")","v":"Y"},"NY"]
[null,null,null,"General Fund",null,null,null,null,null,{"$f":"VLOOKUP(D725,'Bank and Fund Details'!$B$15:$D$36,3,FALSE)","v":0},{"$f":"VLOOKUP(D725,'Bank and Fund Details'!$B$15:$C$36,2,FALSE)","v":"Unrestricted"},{"$f":"IFERROR(VLOOKUP(C725,Descriptions!$B$6:$D$92,3,FALSE),\"\")","v":""},null,null,null,null,null,null,null,null,null,null,null,null,null,null,"General Fund",{"$f":"IFERROR(VLOOKUP(C725,Descriptions!B:F,5,FALSE),\"N\")","v":"N"},true,"NTRUE",0,null,{"$f":"IFERROR(VLOOKUP(D725,'Bank and Fund Details'!$B$14:$L$35,11,FALSE),\"N\")","v":"Y"},"NY"]
[null,null,null,"General Fund",null,null,null,null,null,{"$f":"VLOOKUP(D726,'Bank and Fund Details'!$B$15:$D$36,3,FALSE)","v":0},{"$f":"VLOOKUP(D726,'Bank and Fund Details'!$B$15:$C$36,2,FALSE)","v":"Unrestricted"},{"$f":"IFERROR(VLOOKUP(C726,Descriptions!$B$6:$D$92,3,FALSE),\"\")","v":""},null,null,null,null,null,null,null,null,null,null,null,null,null,null,"General Fund",{"$f":"IFERROR(VLOOKUP(C726,Descriptions!B:F,5,FALSE),\"N\")","v":"N"},true,"NTRUE",0,null,{"$f":"IFERROR(VLOOKUP(D726,'Bank and Fund Details'!$B$14:$L$35,11,FALSE),\"N\")","v":"Y"},"NY"]
[null,null,null,"General Fund",null,null,null,null,null,{"$f":"VLOOKUP(D727,'Bank and Fund Details'!$B$15:$D$36,3,FALSE)","v":0},{"$f":"VLOOKUP(D727,'Bank and Fund Details'!$B$15:$C$36,2,FALSE)","v":"Unrestricted"},{"$f":"IFERROR(VLOOKUP(C727,Descriptions!$B$6:$D$92,3,FALSE),\"\")","v":""},null,null,null,null,null,null,null,null,null,null,null,null,null,null,"General Fund",{"$f":"IFERROR(VLOOKUP(C727,Descriptions!B:F,5,FALSE),\"N\")","v":"N"},true,"NTRUE",0,null,{"$f":"IFERROR(VLOOKUP(D727,'Bank and Fund Details'!$B$14:$L$35,11,FALSE),\"N\")","v":"Y"},"NY"]
[null,null,null,"General Fund",null,null,null,null,null,{"$f":"VLOOKUP(D728,'Bank and Fund Details'!$B$15:$D$36,3,FALSE)","v":0},{"$f":"VLOOKUP(D728,'Bank and Fund Details'!$B$15:$C$36,2,FALSE)","v":"Unrestricted"},{"$f":"IFERROR(VLOOKUP(C728,Descriptions!$B$6:$D$92,3,FALSE),\"\")","v":""},null,null,null,null,null,null,null,null,null,null,null,null,null,null,"General Fund",{"$f":"IFERROR(VLOOKUP(C728,Descriptions!B:F,5,FALSE),\"N\")","v":"N"},true,"NTRUE",0,null,{"$f":"IFERROR(VLOOKUP(D728,'Bank and Fund Details'!$B$14:$L$35,11,FALSE),\"N\")","v":"Y"},"NY"]
[null,null,null,"General Fund",null,null,null,null,null,{"$f":"VLOOKUP(D729,'Bank and Fund Details'!$B$15:$D$36,3,FALSE)","v":0},{"$f":"VLOOKUP(D729,'Bank and Fund Details'!$B$15:$C$36,2,FALSE)","v":"Unrestricted"},{"$f":"IFERROR(VLOOKUP(C729,Descriptions!$B$6:$D$92,3,FALSE),\"\")","v":""},null,null,null,null,null,null,null,null,null,null,null,null,null,null,"General Fund",{"$f":"IFERROR(VLOOKUP(C729,Descriptions!B:F,5,FALSE),\"N\")","v":"N"},true,"NTRUE",0,null,{"$f":"IFERROR(VLOOKUP(D729,'Bank and Fund Details'!$B$14:$L$35,11,FALSE),\"N\")","v":"Y"},"NY"]
[null,null,null,"General Fund",null,null,null,null,null,{"$f":"VLOOKUP(D730,'Bank and Fund Details'!$B$15:$D$36,3,FALSE)","v":0},{"$f":"VLOOKUP(D730,'Bank and Fund Details'!$B$15:$C$36,2,FALSE)","v":"Unrestricted"},{"$f":"IFERROR(VLOOKUP(C730,Descriptions!$B$6:$D$92,3,FALSE),\"\")","v":""},null,null,null,null,null,null,null,null,null,null,null,null,null,null,"General Fund",{"$f":"IFERROR(VLOOKUP(C730,Descriptions!B:F,5,FALSE),\"N\")","v":"N"},true,"NTRUE",0,null,{"$f":"IFERROR(VLOOKUP(D730,'Bank and Fund Details'!$B$14:$L$35,11,FALSE),\"N\")","v":"Y"},"NY"]
[null,null,null,"General Fund",null,null,null,null,null,{"$f":"VLOOKUP(D731,'Bank and Fund Details'!$B$15:$D$36,3,FALSE)","v":0},{"$f":"VLOOKUP(D731,'Bank and Fund Details'!$B$15:$C$36,2,FALSE)","v":"Unrestricted"},{"$f":"IFERROR(VLOOKUP(C731,Descriptions!$B$6:$D$92,3,FALSE),\"\")","v":""},null,null,null,null,null,null,null,null,null,null,null,null,null,null,"General Fund",{"$f":"IFERROR(VLOOKUP(C731,Descriptions!B:F,5,FALSE),\"N\")","v":"N"},true,"NTRUE",0,null,{"$f":"IFERROR(VLOOKUP(D731,'Bank and Fund Details'!$B$14:$L$35,11,FALSE),\"N\")","v":"Y"},"NY"]
[null,null,null,"General Fund",null,null,null,null,null,{"$f":"VLOOKUP(D732,'Bank and Fund Details'!$B$15:$D$36,3,FALSE)","v":0},{"$f":"VLOOKUP(D732,'Bank and Fund Details'!$B$15:$C$36,2,FALSE)","v":"Unrestricted"},{"$f":"IFERROR(VLOOKUP(C732,Descriptions!$B$6:$D$92,3,FALSE),\"\")","v":""},null,null,null,null,null,null,null,null,null,null,null,null,null,null,"General Fund",{"$f":"IFERROR(VLOOKUP(C732,Descriptions!B:F,5,FALSE),\"N\")","v":"N"},true,"NTRUE",0,null,{"$f":"IFERROR(VLOOKUP(D732,'Bank and Fund Details'!$B$14:$L$35,11,FALSE),\"N\")","v":"Y"},"NY"]
[null,null,null,"General Fund",null,null,null,null,null,{"$f":"VLOOKUP(D733,'Bank and Fund Details'!$B$15:$D$36,3,FALSE)","v":0},{"$f":"VLOOKUP(D733,'Bank and Fund Details'!$B$15:$C$36,2,FALSE)","v":"Unrestricted"},{"$f":"IFERROR(VLOOKUP(C733,Descriptions!$B$6:$D$92,3,FALSE),\"\")","v":""},null,null,null,null,null,null,null,null,null,null,null,null,null,null,"General Fund",{"$f":"IFERROR(VLOOKUP(C733,Descriptions!B:F,5,FALSE),\"N\")","v":"N"},true,"NTRUE",0,null,{"$f":"IFERROR(VLOOKUP(D733,'Bank and Fund Details'!$B$14:$L$35,11,FALSE),\"N\")","v":"Y"},"NY"]
[null,null,null,"General Fund",null,null,null,null,null,{"$f":"VLOOKUP(D734,'Bank and Fund Details'!$B$15:$D$36,3,FALSE)","v":0},{"$f":"VLOOKUP(D734,'Bank and Fund Details'!$B$15:$C$36,2,FALSE)","v":"Unrestricted"},{"$f":"IFERROR(VLOOKUP(C734,Descriptions!$B$6:$D$92,3,FALSE),\"\")","v":""},null,null,null,null,null,null,null,null,null,null,null,null,null,null,"General Fund",{"$f":"IFERROR(VLOOKUP(C734,Descriptions!B:F,5,FALSE),\"N\")","v":"N"},true,"NTRUE",0,null,{"$f":"IFERROR(VLOOKUP(D734,'Bank and Fund Details'!$B$14:$L$35,11,FALSE),\"N\")","v":"Y"},"NY"]
[null,null,null,"General Fund",null,null,null,null,null,{"$f":"VLOOKUP(D735,'Bank and Fund Details'!$B$15:$D$36,3,FALSE)","v":0},{"$f":"VLOOKUP(D735,'Bank and Fund Details'!$B$15:$C$36,2,FALSE)","v":"Unrestricted"},{"$f":"IFERROR(VLOOKUP(C735,Descriptions!$B$6:$D$92,3,FALSE),\"\")","v":""},null,null,null,null,null,null,null,null,null,null,null,null,null,null,"General Fund",{"$f":"IFERROR(VLOOKUP(C735,Descriptions!B:F,5,FALSE),\"N\")","v":"N"},true,"NTRUE",0,null,{"$f":"IFERROR(VLOOKUP(D735,'Bank and Fund Details'!$B$14:$L$35,11,FALSE),\"N\")","v":"Y"},"NY"]
[null,null,null,"General Fund",null,null,null,null,null,{"$f":"VLOOKUP(D736,'Bank and Fund Details'!$B$15:$D$36,3,FALSE)","v":0},{"$f":"VLOOKUP(D736,'Bank and Fund Details'!$B$15:$C$36,2,FALSE)","v":"Unrestricted"},{"$f":"IFERROR(VLOOKUP(C736,Descriptions!$B$6:$D$92,3,FALSE),\"\")","v":""},null,null,null,null,null,null,null,null,null,null,null,null,null,null,"General Fund",{"$f":"IFERROR(VLOOKUP(C736,Descriptions!B:F,5,FALSE),\"N\")","v":"N"},true,"NTRUE",0,null,{"$f":"IFERROR(VLOOKUP(D736,'Bank and Fund Details'!$B$14:$L$35,11,FALSE),\"N\")","v":"Y"},"NY"]
[null,null,null,"General Fund",null,null,null,null,null,{"$f":"VLOOKUP(D737,'Bank and Fund Details'!$B$15:$D$36,3,FALSE)","v":0},{"$f":"VLOOKUP(D737,'Bank and Fund Details'!$B$15:$C$36,2,FALSE)","v":"Unrestricted"},{"$f":"IFERROR(VLOOKUP(C737,Descriptions!$B$6:$D$92,3,FALSE),\"\")","v":""},null,null,null,null,null,null,null,null,null,null,null,null,null,null,"General Fund",{"$f":"IFERROR(VLOOKUP(C737,Descriptions!B:F,5,FALSE),\"N\")","v":"N"},true,"NTRUE",0,null,{"$f":"IFERROR(VLOOKUP(D737,'Bank and Fund Details'!$B$14:$L$35,11,FALSE),\"N\")","v":"Y"},"NY"]
[null,null,null,"General Fund",null,null,null,null,null,{"$f":"VLOOKUP(D738,'Bank and Fund Details'!$B$15:$D$36,3,FALSE)","v":0},{"$f":"VLOOKUP(D738,'Bank and Fund Details'!$B$15:$C$36,2,FALSE)","v":"Unrestricted"},{"$f":"IFERROR(VLOOKUP(C738,Descriptions!$B$6:$D$92,3,FALSE),\"\")","v":""},null,null,null,null,null,null,null,null,null,null,null,null,null,null,"General Fund",{"$f":"IFERROR(VLOOKUP(C738,Descriptions!B:F,5,FALSE),\"N\")","v":"N"},true,"NTRUE",0,null,{"$f":"IFERROR(VLOOKUP(D738,'Bank and Fund Details'!$B$14:$L$35,11,FALSE),\"N\")","v":"Y"},"NY"]
[null,null,null,"General Fund",null,null,null,null,null,{"$f":"VLOOKUP(D739,'Bank and Fund Details'!$B$15:$D$36,3,FALSE)","v":0},{"$f":"VLOOKUP(D739,'Bank and Fund Details'!$B$15:$C$36,2,FALSE)","v":"Unrestricted"},{"$f":"IFERROR(VLOOKUP(C739,Descriptions!$B$6:$D$92,3,FALSE),\"\")","v":""},null,null,null,null,null,null,null,null,null,null,null,null,null,null,"General Fund",{"$f":"IFERROR(VLOOKUP(C739,Descriptions!B:F,5,FALSE),\"N\")","v":"N"},true,"NTRUE",0,null,{"$f":"IFERROR(VLOOKUP(D739,'Bank and Fund Details'!$B$14:$L$35,11,FALSE),\"N\")","v":"Y"},"NY"]
[null,null,null,"General Fund",null,null,null,null,null,{"$f":"VLOOKUP(D740,'Bank and Fund Details'!$B$15:$D$36,3,FALSE)","v":0},{"$f":"VLOOKUP(D740,'Bank and Fund Details'!$B$15:$C$36,2,FALSE)","v":"Unrestricted"},{"$f":"IFERROR(VLOOKUP(C740,Descriptions!$B$6:$D$92,3,FALSE),\"\")","v":""},null,null,null,null,null,null,null,null,null,null,null,null,null,null,"General Fund",{"$f":"IFERROR(VLOOKUP(C740,Descriptions!B:F,5,FALSE),\"N\")","v":"N"},true,"NTRUE",0,null,{"$f":"IFERROR(VLOOKUP(D740,'Bank and Fund Details'!$B$14:$L$35,11,FALSE),\"N\")","v":"Y"},"NY"]
[null,null,null,"General Fund",null,null,null,null,null,{"$f":"VLOOKUP(D741,'Bank and Fund Details'!$B$15:$D$36,3,FALSE)","v":0},{"$f":"VLOOKUP(D741,'Bank and Fund Details'!$B$15:$C$36,2,FALSE)","v":"Unrestricted"},{"$f":"IFERROR(VLOOKUP(C741,Descriptions!$B$6:$D$92,3,FALSE),\"\")","v":""},null,null,null,null,null,null,null,null,null,null,null,null,null,null,"General Fund",{"$f":"IFERROR(VLOOKUP(C741,Descriptions!B:F,5,FALSE),\"N\")","v":"N"},true,"NTRUE",0,null,{"$f":"IFERROR(VLOOKUP(D741,'Bank and Fund Details'!$B$14:$L$35,11,FALSE),\"N\")","v":"Y"},"NY"]
[null,null,null,"General Fund",null,null,null,null,null,{"$f":"VLOOKUP(D742,'Bank and Fund Details'!$B$15:$D$36,3,FALSE)","v":0},{"$f":"VLOOKUP(D742,'Bank and Fund Details'!$B$15:$C$36,2,FALSE)","v":"Unrestricted"},{"$f":"IFERROR(VLOOKUP(C742,Descriptions!$B$6:$D$92,3,FALSE),\"\")","v":""},null,null,null,null,null,null,null,null,null,null,null,null,null,null,"General Fund",{"$f":"IFERROR(VLOOKUP(C742,Descriptions!B:F,5,FALSE),\"N\")","v":"N"},true,"NTRUE",0,null,{"$f":"IFERROR(VLOOKUP(D742,'Bank and Fund Details'!$B$14:$L$35,11,FALSE),\"N\")","v":"Y"},"NY"]
[null,null,null,"General Fund",null,null,null,null,null,{"$f":"VLOOKUP(D743,'Bank and Fund Details'!$B$15:$D$36,3,FALSE)","v":0},{"$f":"VLOOKUP(D743,'Bank and Fund Details'!$B$15:$C$36,2,FALSE)","v":"Unrestricted"},{"$f":"IFERROR(VLOOKUP(C743,Descriptions!$B$6:$D$92,3,FALSE),\"\")","v":""},null,null,null,null,null,null,null,null,null,null,null,null,null,null,"General Fund",{"$f":"IFERROR(VLOOKUP(C743,Descriptions!B:F,5,FALSE),\"N\")","v":"N"},true,"NTRUE",0,null,{"$f":"IFERROR(VLOOKUP(D743,'Bank and Fund Details'!$B$14:$L$35,11,FALSE),\"N\")","v":"Y"},"NY"]
[null,null,null,"General Fund",null,null,null,null,null,{"$f":"VLOOKUP(D744,'Bank and Fund Details'!$B$15:$D$36,3,FALSE)","v":0},{"$f":"VLOOKUP(D744,'Bank and Fund Details'!$B$15:$C$36,2,FALSE)","v":"Unrestricted"},{"$f":"IFERROR(VLOOKUP(C744,Descriptions!$B$6:$D$92,3,FALSE),\"\")","v":""},null,null,null,null,null,null,null,null,null,null,null,null,null,null,"General Fund",{"$f":"IFERROR(VLOOKUP(C744,Descriptions!B:F,5,FALSE),\"N\")","v":"N"},true,"NTRUE",0,null,{"$f":"IFERROR(VLOOKUP(D744,'Bank and Fund Details'!$B$14:$L$35,11,FALSE),\"N\")","v":"Y"},"NY"]
[null,null,null,"General Fund",null,null,null,null,null,{"$f":"VLOOKUP(D745,'Bank and Fund Details'!$B$15:$D$36,3,FALSE)","v":0},{"$f":"VLOOKUP(D745,'Bank and Fund Details'!$B$15:$C$36,2,FALSE)","v":"Unrestricted"},{"$f":"IFERROR(VLOOKUP(C745,Descriptions!$B$6:$D$92,3,FALSE),\"\")","v":""},null,null,null,null,null,null,null,null,null,null,null,null,null,null,"General Fund",{"$f":"IFERROR(VLOOKUP(C745,Descriptions!B:F,5,FALSE),\"N\")","v":"N"},true,"NTRUE",0,null,{"$f":"IFERROR(VLOOKUP(D745,'Bank and Fund Details'!$B$14:$L$35,11,FALSE),\"N\")","v":"Y"},"NY"]
[null,null,null,"General Fund",null,null,null,null,null,{"$f":"VLOOKUP(D746,'Bank and Fund Details'!$B$15:$D$36,3,FALSE)","v":0},{"$f":"VLOOKUP(D746,'Bank and Fund Details'!$B$15:$C$36,2,FALSE)","v":"Unrestricted"},{"$f":"IFERROR(VLOOKUP(C746,Descriptions!$B$6:$D$92,3,FALSE),\"\")","v":""},null,null,null,null,null,null,null,null,null,null,null,null,null,null,"General Fund",{"$f":"IFERROR(VLOOKUP(C746,Descriptions!B:F,5,FALSE),\"N\")","v":"N"},true,"NTRUE",0,null,{"$f":"IFERROR(VLOOKUP(D746,'Bank and Fund Details'!$B$14:$L$35,11,FALSE),\"N\")","v":"Y"},"NY"]
[null,null,null,"General Fund",null,null,null,null,null,{"$f":"VLOOKUP(D747,'Bank and Fund Details'!$B$15:$D$36,3,FALSE)","v":0},{"$f":"VLOOKUP(D747,'Bank and Fund Details'!$B$15:$C$36,2,FALSE)","v":"Unrestricted"},{"$f":"IFERROR(VLOOKUP(C747,Descriptions!$B$6:$D$92,3,FALSE),\"\")","v":""},null,null,null,null,null,null,null,null,null,null,null,null,null,null,"General Fund",{"$f":"IFERROR(VLOOKUP(C747,Descriptions!B:F,5,FALSE),\"N\")","v":"N"},true,"NTRUE",0,null,{"$f":"IFERROR(VLOOKUP(D747,'Bank and Fund Details'!$B$14:$L$35,11,FALSE),\"N\")","v":"Y"},"NY"]
[null,null,null,"General Fund",null,null,null,null,null,{"$f":"VLOOKUP(D748,'Bank and Fund Details'!$B$15:$D$36,3,FALSE)","v":0},{"$f":"VLOOKUP(D748,'Bank and Fund Details'!$B$15:$C$36,2,FALSE)","v":"Unrestricted"},{"$f":"IFERROR(VLOOKUP(C748,Descriptions!$B$6:$D$92,3,FALSE),\"\")","v":""},null,null,null,null,null,null,null,null,null,null,null,null,null,null,"General Fund",{"$f":"IFERROR(VLOOKUP(C748,Descriptions!B:F,5,FALSE),\"N\")","v":"N"},true,"NTRUE",0,null,{"$f":"IFERROR(VLOOKUP(D748,'Bank and Fund Details'!$B$14:$L$35,11,FALSE),\"N\")","v":"Y"},"NY"]
[null,null,null,"General Fund",null,null,null,null,null,{"$f":"VLOOKUP(D749,'Bank and Fund Details'!$B$15:$D$36,3,FALSE)","v":0},{"$f":"VLOOKUP(D749,'Bank and Fund Details'!$B$15:$C$36,2,FALSE)","v":"Unrestricted"},{"$f":"IFERROR(VLOOKUP(C749,Descriptions!$B$6:$D$92,3,FALSE),\"\")","v":""},null,null,null,null,null,null,null,null,null,null,null,null,null,null,"General Fund",{"$f":"IFERROR(VLOOKUP(C749,Descriptions!B:F,5,FALSE),\"N\")","v":"N"},true,"NTRUE",0,null,{"$f":"IFERROR(VLOOKUP(D749,'Bank and Fund Details'!$B$14:$L$35,11,FALSE),\"N\")","v":"Y"},"NY"]
[null,null,null,"General Fund",null,null,null,null,null,{"$f":"VLOOKUP(D750,'Bank and Fund Details'!$B$15:$D$36,3,FALSE)","v":0},{"$f":"VLOOKUP(D750,'Bank and Fund Details'!$B$15:$C$36,2,FALSE)","v":"Unrestricted"},{"$f":"IFERROR(VLOOKUP(C750,Descriptions!$B$6:$D$92,3,FALSE),\"\")","v":""},null,null,null,null,null,null,null,null,null,null,null,null,null,null,"General Fund",{"$f":"IFERROR(VLOOKUP(C750,Descriptions!B:F,5,FALSE),\"N\")","v":"N"},true,"NTRUE",0,null,{"$f":"IFERROR(VLOOKUP(D750,'Bank and Fund Details'!$B$14:$L$35,11,FALSE),\"N\")","v":"Y"},"NY"]
[null,null,null,"General Fund",null,null,null,null,null,{"$f":"VLOOKUP(D751,'Bank and Fund Details'!$B$15:$D$36,3,FALSE)","v":0},{"$f":"VLOOKUP(D751,'Bank and Fund Details'!$B$15:$C$36,2,FALSE)","v":"Unrestricted"},{"$f":"IFERROR(VLOOKUP(C751,Descriptions!$B$6:$D$92,3,FALSE),\"\")","v":""},null,null,null,null,null,null,null,null,null,null,null,null,null,null,"General Fund",{"$f":"IFERROR(VLOOKUP(C751,Descriptions!B:F,5,FALSE),\"N\")","v":"N"},true,"NTRUE",0,null,{"$f":"IFERROR(VLOOKUP(D751,'Bank and Fund Details'!$B$14:$L$35,11,FALSE),\"N\")","v":"Y"},"NY"]
[null,null,null,"General Fund",null,null,null,null,null,{"$f":"VLOOKUP(D752,'Bank and Fund Details'!$B$15:$D$36,3,FALSE)","v":0},{"$f":"VLOOKUP(D752,'Bank and Fund Details'!$B$15:$C$36,2,FALSE)","v":"Unrestricted"},{"$f":"IFERROR(VLOOKUP(C752,Descriptions!$B$6:$D$92,3,FALSE),\"\")","v":""},null,null,null,null,null,null,null,null,null,null,null,null,null,null,"General Fund",{"$f":"IFERROR(VLOOKUP(C752,Descriptions!B:F,5,FALSE),\"N\")","v":"N"},true,"NTRUE",0,null,{"$f":"IFERROR(VLOOKUP(D752,'Bank and Fund Details'!$B$14:$L$35,11,FALSE),\"N\")","v":"Y"},"NY"]
[null,null,null,"General Fund",null,null,null,null,null,{"$f":"VLOOKUP(D753,'Bank and Fund Details'!$B$15:$D$36,3,FALSE)","v":0},{"$f":"VLOOKUP(D753,'Bank and Fund Details'!$B$15:$C$36,2,FALSE)","v":"Unrestricted"},{"$f":"IFERROR(VLOOKUP(C753,Descriptions!$B$6:$D$92,3,FALSE),\"\")","v":""},null,null,null,null,null,null,null,null,null,null,null,null,null,null,"General Fund",{"$f":"IFERROR(VLOOKUP(C753,Descriptions!B:F,5,FALSE),\"N\")","v":"N"},true,"NTRUE",0,null,{"$f":"IFERROR(VLOOKUP(D753,'Bank and Fund Details'!$B$14:$L$35,11,FALSE),\"N\")","v":"Y"},"NY"]
[null,null,null,"General Fund",null,null,null,null,null,{"$f":"VLOOKUP(D754,'Bank and Fund Details'!$B$15:$D$36,3,FALSE)","v":0},{"$f":"VLOOKUP(D754,'Bank and Fund Details'!$B$15:$C$36,2,FALSE)","v":"Unrestricted"},{"$f":"IFERROR(VLOOKUP(C754,Descriptions!$B$6:$D$92,3,FALSE),\"\")","v":""},null,null,null,null,null,null,null,null,null,null,null,null,null,null,"General Fund",{"$f":"IFERROR(VLOOKUP(C754,Descriptions!B:F,5,FALSE),\"N\")","v":"N"},true,"NTRUE",0,null,{"$f":"IFERROR(VLOOKUP(D754,'Bank and Fund Details'!$B$14:$L$35,11,FALSE),\"N\")","v":"Y"},"NY"]
[null,null,null,"General Fund",null,null,null,null,null,{"$f":"VLOOKUP(D755,'Bank and Fund Details'!$B$15:$D$36,3,FALSE)","v":0},{"$f":"VLOOKUP(D755,'Bank and Fund Details'!$B$15:$C$36,2,FALSE)","v":"Unrestricted"},{"$f":"IFERROR(VLOOKUP(C755,Descriptions!$B$6:$D$92,3,FALSE),\"\")","v":""},null,null,null,null,null,null,null,null,null,null,null,null,null,null,"General Fund",{"$f":"IFERROR(VLOOKUP(C755,Descriptions!B:F,5,FALSE),\"N\")","v":"N"},true,"NTRUE",0,null,{"$f":"IFERROR(VLOOKUP(D755,'Bank and Fund Details'!$B$14:$L$35,11,FALSE),\"N\")","v":"Y"},"NY"]
[null,null,null,"General Fund",null,null,null,null,null,{"$f":"VLOOKUP(D756,'Bank and Fund Details'!$B$15:$D$36,3,FALSE)","v":0},{"$f":"VLOOKUP(D756,'Bank and Fund Details'!$B$15:$C$36,2,FALSE)","v":"Unrestricted"},{"$f":"IFERROR(VLOOKUP(C756,Descriptions!$B$6:$D$92,3,FALSE),\"\")","v":""},null,null,null,null,null,null,null,null,null,null,null,null,null,null,"General Fund",{"$f":"IFERROR(VLOOKUP(C756,Descriptions!B:F,5,FALSE),\"N\")","v":"N"},true,"NTRUE",0,null,{"$f":"IFERROR(VLOOKUP(D756,'Bank and Fund Details'!$B$14:$L$35,11,FALSE),\"N\")","v":"Y"},"NY"]
[null,null,null,"General Fund",null,null,null,null,null,{"$f":"VLOOKUP(D757,'Bank and Fund Details'!$B$15:$D$36,3,FALSE)","v":0},{"$f":"VLOOKUP(D757,'Bank and Fund Details'!$B$15:$C$36,2,FALSE)","v":"Unrestricted"},{"$f":"IFERROR(VLOOKUP(C757,Descriptions!$B$6:$D$92,3,FALSE),\"\")","v":""},null,null,null,null,null,null,null,null,null,null,null,null,null,null,"General Fund",{"$f":"IFERROR(VLOOKUP(C757,Descriptions!B:F,5,FALSE),\"N\")","v":"N"},true,"NTRUE",0,null,{"$f":"IFERROR(VLOOKUP(D757,'Bank and Fund Details'!$B$14:$L$35,11,FALSE),\"N\")","v":"Y"},"NY"]
[null,null,null,"General Fund",null,null,null,null,null,{"$f":"VLOOKUP(D758,'Bank and Fund Details'!$B$15:$D$36,3,FALSE)","v":0},{"$f":"VLOOKUP(D758,'Bank and Fund Details'!$B$15:$C$36,2,FALSE)","v":"Unrestricted"},{"$f":"IFERROR(VLOOKUP(C758,Descriptions!$B$6:$D$92,3,FALSE),\"\")","v":""},null,null,null,null,null,null,null,null,null,null,null,null,null,null,"General Fund",{"$f":"IFERROR(VLOOKUP(C758,Descriptions!B:F,5,FALSE),\"N\")","v":"N"},true,"NTRUE",0,null,{"$f":"IFERROR(VLOOKUP(D758,'Bank and Fund Details'!$B$14:$L$35,11,FALSE),\"N\")","v":"Y"},"NY"]
[null,null,null,"General Fund",null,null,null,null,null,{"$f":"VLOOKUP(D759,'Bank and Fund Details'!$B$15:$D$36,3,FALSE)","v":0},{"$f":"VLOOKUP(D759,'Bank and Fund Details'!$B$15:$C$36,2,FALSE)","v":"Unrestricted"},{"$f":"IFERROR(VLOOKUP(C759,Descriptions!$B$6:$D$92,3,FALSE),\"\")","v":""},null,null,null,null,null,null,null,null,null,null,null,null,null,null,"General Fund",{"$f":"IFERROR(VLOOKUP(C759,Descriptions!B:F,5,FALSE),\"N\")","v":"N"},true,"NTRUE",0,null,{"$f":"IFERROR(VLOOKUP(D759,'Bank and Fund Details'!$B$14:$L$35,11,FALSE),\"N\")","v":"Y"},"NY"]
[null,null,null,"General Fund",null,null,null,null,null,{"$f":"VLOOKUP(D760,'Bank and Fund Details'!$B$15:$D$36,3,FALSE)","v":0},{"$f":"VLOOKUP(D760,'Bank and Fund Details'!$B$15:$C$36,2,FALSE)","v":"Unrestricted"},{"$f":"IFERROR(VLOOKUP(C760,Descriptions!$B$6:$D$92,3,FALSE),\"\")","v":""},null,null,null,null,null,null,null,null,null,null,null,null,null,null,"General Fund",{"$f":"IFERROR(VLOOKUP(C760,Descriptions!B:F,5,FALSE),\"N\")","v":"N"},true,"NTRUE",0,null,{"$f":"IFERROR(VLOOKUP(D760,'Bank and Fund Details'!$B$14:$L$35,11,FALSE),\"N\")","v":"Y"},"NY"]
[null,null,null,"General Fund",null,null,null,null,null,{"$f":"VLOOKUP(D761,'Bank and Fund Details'!$B$15:$D$36,3,FALSE)","v":0},{"$f":"VLOOKUP(D761,'Bank and Fund Details'!$B$15:$C$36,2,FALSE)","v":"Unrestricted"},{"$f":"IFERROR(VLOOKUP(C761,Descriptions!$B$6:$D$92,3,FALSE),\"\")","v":""},null,null,null,null,null,null,null,null,null,null,null,null,null,null,"General Fund",{"$f":"IFERROR(VLOOKUP(C761,Descriptions!B:F,5,FALSE),\"N\")","v":"N"},true,"NTRUE",0,null,{"$f":"IFERROR(VLOOKUP(D761,'Bank and Fund Details'!$B$14:$L$35,11,FALSE),\"N\")","v":"Y"},"NY"]
[null,null,null,"General Fund",null,null,null,null,null,{"$f":"VLOOKUP(D762,'Bank and Fund Details'!$B$15:$D$36,3,FALSE)","v":0},{"$f":"VLOOKUP(D762,'Bank and Fund Details'!$B$15:$C$36,2,FALSE)","v":"Unrestricted"},{"$f":"IFERROR(VLOOKUP(C762,Descriptions!$B$6:$D$92,3,FALSE),\"\")","v":""},null,null,null,null,null,null,null,null,null,null,null,null,null,null,"General Fund",{"$f":"IFERROR(VLOOKUP(C762,Descriptions!B:F,5,FALSE),\"N\")","v":"N"},true,"NTRUE",0,null,{"$f":"IFERROR(VLOOKUP(D762,'Bank and Fund Details'!$B$14:$L$35,11,FALSE),\"N\")","v":"Y"},"NY"]
[null,null,null,"General Fund",null,null,null,null,null,{"$f":"VLOOKUP(D763,'Bank and Fund Details'!$B$15:$D$36,3,FALSE)","v":0},{"$f":"VLOOKUP(D763,'Bank and Fund Details'!$B$15:$C$36,2,FALSE)","v":"Unrestricted"},{"$f":"IFERROR(VLOOKUP(C763,Descriptions!$B$6:$D$92,3,FALSE),\"\")","v":""},null,null,null,null,null,null,null,null,null,null,null,null,null,null,"General Fund",{"$f":"IFERROR(VLOOKUP(C763,Descriptions!B:F,5,FALSE),\"N\")","v":"N"},true,"NTRUE",0,null,{"$f":"IFERROR(VLOOKUP(D763,'Bank and Fund Details'!$B$14:$L$35,11,FALSE),\"N\")","v":"Y"},"NY"]
[null,null,null,"General Fund",null,null,null,null,null,{"$f":"VLOOKUP(D764,'Bank and Fund Details'!$B$15:$D$36,3,FALSE)","v":0},{"$f":"VLOOKUP(D764,'Bank and Fund Details'!$B$15:$C$36,2,FALSE)","v":"Unrestricted"},{"$f":"IFERROR(VLOOKUP(C764,Descriptions!$B$6:$D$92,3,FALSE),\"\")","v":""},null,null,null,null,null,null,null,null,null,null,null,null,null,null,"General Fund",{"$f":"IFERROR(VLOOKUP(C764,Descriptions!B:F,5,FALSE),\"N\")","v":"N"},true,"NTRUE",0,null,{"$f":"IFERROR(VLOOKUP(D764,'Bank and Fund Details'!$B$14:$L$35,11,FALSE),\"N\")","v":"Y"},"NY"]
[null,null,null,"General Fund",null,null,null,null,null,{"$f":"VLOOKUP(D765,'Bank and Fund Details'!$B$15:$D$36,3,FALSE)","v":0},{"$f":"VLOOKUP(D765,'Bank and Fund Details'!$B$15:$C$36,2,FALSE)","v":"Unrestricted"},{"$f":"IFERROR(VLOOKUP(C765,Descriptions!$B$6:$D$92,3,FALSE),\"\")","v":""},null,null,null,null,null,null,null,null,null,null,null,null,null,null,"General Fund",{"$f":"IFERROR(VLOOKUP(C765,Descriptions!B:F,5,FALSE),\"N\")","v":"N"},true,"NTRUE",0,null,{"$f":"IFERROR(VLOOKUP(D765,'Bank and Fund Details'!$B$14:$L$35,11,FALSE),\"N\")","v":"Y"},"NY"]
[null,null,null,"General Fund",null,null,null,null,null,{"$f":"VLOOKUP(D766,'Bank and Fund Details'!$B$15:$D$36,3,FALSE)","v":0},{"$f":"VLOOKUP(D766,'Bank and Fund Details'!$B$15:$C$36,2,FALSE)","v":"Unrestricted"},{"$f":"IFERROR(VLOOKUP(C766,Descriptions!$B$6:$D$92,3,FALSE),\"\")","v":""},null,null,null,null,null,null,null,null,null,null,null,null,null,null,"General Fund",{"$f":"IFERROR(VLOOKUP(C766,Descriptions!B:F,5,FALSE),\"N\")","v":"N"},true,"NTRUE",0,null,{"$f":"IFERROR(VLOOKUP(D766,'Bank and Fund Details'!$B$14:$L$35,11,FALSE),\"N\")","v":"Y"},"NY"]
[null,null,null,"General Fund",null,null,null,null,null,{"$f":"VLOOKUP(D767,'Bank and Fund Details'!$B$15:$D$36,3,FALSE)","v":0},{"$f":"VLOOKUP(D767,'Bank and Fund Details'!$B$15:$C$36,2,FALSE)","v":"Unrestricted"},{"$f":"IFERROR(VLOOKUP(C767,Descriptions!$B$6:$D$92,3,FALSE),\"\")","v":""},null,null,null,null,null,null,null,null,null,null,null,null,null,null,"General Fund",{"$f":"IFERROR(VLOOKUP(C767,Descriptions!B:F,5,FALSE),\"N\")","v":"N"},true,"NTRUE",0,null,{"$f":"IFERROR(VLOOKUP(D767,'Bank and Fund Details'!$B$14:$L$35,11,FALSE),\"N\")","v":"Y"},"NY"]
[null,null,null,"General Fund",null,null,null,null,null,{"$f":"VLOOKUP(D768,'Bank and Fund Details'!$B$15:$D$36,3,FALSE)","v":0},{"$f":"VLOOKUP(D768,'Bank and Fund Details'!$B$15:$C$36,2,FALSE)","v":"Unrestricted"},{"$f":"IFERROR(VLOOKUP(C768,Descriptions!$B$6:$D$92,3,FALSE),\"\")","v":""},null,null,null,null,null,null,null,null,null,null,null,null,null,null,"General Fund",{"$f":"IFERROR(VLOOKUP(C768,Descriptions!B:F,5,FALSE),\"N\")","v":"N"},true,"NTRUE",0,null,{"$f":"IFERROR(VLOOKUP(D768,'Bank and Fund Details'!$B$14:$L$35,11,FALSE),\"N\")","v":"Y"},"NY"]
[null,null,null,"General Fund",null,null,null,null,null,{"$f":"VLOOKUP(D769,'Bank and Fund Details'!$B$15:$D$36,3,FALSE)","v":0},{"$f":"VLOOKUP(D769,'Bank and Fund Details'!$B$15:$C$36,2,FALSE)","v":"Unrestricted"},{"$f":"IFERROR(VLOOKUP(C769,Descriptions!$B$6:$D$92,3,FALSE),\"\")","v":""},null,null,null,null,null,null,null,null,null,null,null,null,null,null,"General Fund",{"$f":"IFERROR(VLOOKUP(C769,Descriptions!B:F,5,FALSE),\"N\")","v":"N"},true,"NTRUE",0,null,{"$f":"IFERROR(VLOOKUP(D769,'Bank and Fund Details'!$B$14:$L$35,11,FALSE),\"N\")","v":"Y"},"NY"]
[null,null,null,"General Fund",null,null,null,null,null,{"$f":"VLOOKUP(D770,'Bank and Fund Details'!$B$15:$D$36,3,FALSE)","v":0},{"$f":"VLOOKUP(D770,'Bank and Fund Details'!$B$15:$C$36,2,FALSE)","v":"Unrestricted"},{"$f":"IFERROR(VLOOKUP(C770,Descriptions!$B$6:$D$92,3,FALSE),\"\")","v":""},null,null,null,null,null,null,null,null,null,null,null,null,null,null,"General Fund",{"$f":"IFERROR(VLOOKUP(C770,Descriptions!B:F,5,FALSE),\"N\")","v":"N"},true,"NTRUE",0,null,{"$f":"IFERROR(VLOOKUP(D770,'Bank and Fund Details'!$B$14:$L$35,11,FALSE),\"N\")","v":"Y"},"NY"]
[null,null,null,"General Fund",null,null,null,null,null,{"$f":"VLOOKUP(D771,'Bank and Fund Details'!$B$15:$D$36,3,FALSE)","v":0},{"$f":"VLOOKUP(D771,'Bank and Fund Details'!$B$15:$C$36,2,FALSE)","v":"Unrestricted"},{"$f":"IFERROR(VLOOKUP(C771,Descriptions!$B$6:$D$92,3,FALSE),\"\")","v":""},null,null,null,null,null,null,null,null,null,null,null,null,null,null,"General Fund",{"$f":"IFERROR(VLOOKUP(C771,Descriptions!B:F,5,FALSE),\"N\")","v":"N"},true,"NTRUE",0,null,{"$f":"IFERROR(VLOOKUP(D771,'Bank and Fund Details'!$B$14:$L$35,11,FALSE),\"N\")","v":"Y"},"NY"]
[null,null,null,"General Fund",null,null,null,null,null,{"$f":"VLOOKUP(D772,'Bank and Fund Details'!$B$15:$D$36,3,FALSE)","v":0},{"$f":"VLOOKUP(D772,'Bank and Fund Details'!$B$15:$C$36,2,FALSE)","v":"Unrestricted"},{"$f":"IFERROR(VLOOKUP(C772,Descriptions!$B$6:$D$92,3,FALSE),\"\")","v":""},null,null,null,null,null,null,null,null,null,null,null,null,null,null,"General Fund",{"$f":"IFERROR(VLOOKUP(C772,Descriptions!B:F,5,FALSE),\"N\")","v":"N"},true,"NTRUE",0,null,{"$f":"IFERROR(VLOOKUP(D772,'Bank and Fund Details'!$B$14:$L$35,11,FALSE),\"N\")","v":"Y"},"NY"]
[null,null,null,"General Fund",null,null,null,null,null,{"$f":"VLOOKUP(D773,'Bank and Fund Details'!$B$15:$D$36,3,FALSE)","v":0},{"$f":"VLOOKUP(D773,'Bank and Fund Details'!$B$15:$C$36,2,FALSE)","v":"Unrestricted"},{"$f":"IFERROR(VLOOKUP(C773,Descriptions!$B$6:$D$92,3,FALSE),\"\")","v":""},null,null,null,null,null,null,null,null,null,null,null,null,null,null,{"$f":"CONCATENATE(C773,D773)","v":"General Fund"},{"$f":"IFERROR(VLOOKUP(C773,Descriptions!B:F,5,FALSE),\"N\")","v":"N"},{"$f":"ISBLANK(C773)","v":true},{"$f":"CONCATENATE(AB773,AC773)","v":"NTRUE"},{"$f":"IF(AD773=\"NFALSE\",1,0)","v":0},null,{"$f":"IFERROR(VLOOKUP(D773,'Bank and Fund Details'!$B$14:$L$35,11,FALSE),\"N\")","v":"Y"},"NY"]
[null,null,null,"General Fund",null,null,null,null,null,{"$f":"VLOOKUP(D774,'Bank and Fund Details'!$B$15:$D$36,3,FALSE)","v":0},{"$f":"VLOOKUP(D774,'Bank and Fund Details'!$B$15:$C$36,2,FALSE)","v":"Unrestricted"},{"$f":"IFERROR(VLOOKUP(C774,Descriptions!$B$6:$D$92,3,FALSE),\"\")","v":""},null,null,null,null,null,null,null,null,null,null,null,null,null,null,"General Fund",{"$f":"IFERROR(VLOOKUP(C774,Descriptions!B:F,5,FALSE),\"N\")","v":"N"},true,"NTRUE",0,null,{"$f":"IFERROR(VLOOKUP(D774,'Bank and Fund Details'!$B$14:$L$35,11,FALSE),\"N\")","v":"Y"},{"$f":"CONCATENATE(AB774,AG774)","v":"NY"}]
[null,null,null,"General Fund",null,null,null,null,null,{"$f":"VLOOKUP(D775,'Bank and Fund Details'!$B$15:$D$36,3,FALSE)","v":0},{"$f":"VLOOKUP(D775,'Bank and Fund Details'!$B$15:$C$36,2,FALSE)","v":"Unrestricted"},{"$f":"IFERROR(VLOOKUP(C775,Descriptions!$B$6:$D$92,3,FALSE),\"\")","v":""},null,null,null,null,null,null,null,null,null,null,null,null,null,null,"General Fund",{"$f":"IFERROR(VLOOKUP(C775,Descriptions!B:F,5,FALSE),\"N\")","v":"N"},true,"NTRUE",0,null,{"$f":"IFERROR(VLOOKUP(D775,'Bank and Fund Details'!$B$14:$L$35,11,FALSE),\"N\")","v":"Y"},"NY"]
[null,null,null,"General Fund",null,null,null,null,null,{"$f":"VLOOKUP(D776,'Bank and Fund Details'!$B$15:$D$36,3,FALSE)","v":0},{"$f":"VLOOKUP(D776,'Bank and Fund Details'!$B$15:$C$36,2,FALSE)","v":"Unrestricted"},{"$f":"IFERROR(VLOOKUP(C776,Descriptions!$B$6:$D$92,3,FALSE),\"\")","v":""},null,null,null,null,null,null,null,null,null,null,null,null,null,null,"General Fund",{"$f":"IFERROR(VLOOKUP(C776,Descriptions!B:F,5,FALSE),\"N\")","v":"N"},true,"NTRUE",0,null,{"$f":"IFERROR(VLOOKUP(D776,'Bank and Fund Details'!$B$14:$L$35,11,FALSE),\"N\")","v":"Y"},"NY"]
[null,null,null,"General Fund",null,null,null,null,null,{"$f":"VLOOKUP(D777,'Bank and Fund Details'!$B$15:$D$36,3,FALSE)","v":0},{"$f":"VLOOKUP(D777,'Bank and Fund Details'!$B$15:$C$36,2,FALSE)","v":"Unrestricted"},{"$f":"IFERROR(VLOOKUP(C777,Descriptions!$B$6:$D$92,3,FALSE),\"\")","v":""},null,null,null,null,null,null,null,null,null,null,null,null,null,null,"General Fund",{"$f":"IFERROR(VLOOKUP(C777,Descriptions!B:F,5,FALSE),\"N\")","v":"N"},true,"NTRUE",0,null,{"$f":"IFERROR(VLOOKUP(D777,'Bank and Fund Details'!$B$14:$L$35,11,FALSE),\"N\")","v":"Y"},"NY"]
[null,null,null,"General Fund",null,null,null,null,null,{"$f":"VLOOKUP(D778,'Bank and Fund Details'!$B$15:$D$36,3,FALSE)","v":0},{"$f":"VLOOKUP(D778,'Bank and Fund Details'!$B$15:$C$36,2,FALSE)","v":"Unrestricted"},{"$f":"IFERROR(VLOOKUP(C778,Descriptions!$B$6:$D$92,3,FALSE),\"\")","v":""},null,null,null,null,null,null,null,null,null,null,null,null,null,null,"General Fund",{"$f":"IFERROR(VLOOKUP(C778,Descriptions!B:F,5,FALSE),\"N\")","v":"N"},true,"NTRUE",0,null,{"$f":"IFERROR(VLOOKUP(D778,'Bank and Fund Details'!$B$14:$L$35,11,FALSE),\"N\")","v":"Y"},"NY"]
[null,null,null,"General Fund",null,null,null,null,null,{"$f":"VLOOKUP(D779,'Bank and Fund Details'!$B$15:$D$36,3,FALSE)","v":0},{"$f":"VLOOKUP(D779,'Bank and Fund Details'!$B$15:$C$36,2,FALSE)","v":"Unrestricted"},{"$f":"IFERROR(VLOOKUP(C779,Descriptions!$B$6:$D$92,3,FALSE),\"\")","v":""},null,null,null,null,null,null,null,null,null,null,null,null,null,null,"General Fund",{"$f":"IFERROR(VLOOKUP(C779,Descriptions!B:F,5,FALSE),\"N\")","v":"N"},true,"NTRUE",0,null,{"$f":"IFERROR(VLOOKUP(D779,'Bank and Fund Details'!$B$14:$L$35,11,FALSE),\"N\")","v":"Y"},"NY"]
[null,null,null,"General Fund",null,null,null,null,null,{"$f":"VLOOKUP(D780,'Bank and Fund Details'!$B$15:$D$36,3,FALSE)","v":0},{"$f":"VLOOKUP(D780,'Bank and Fund Details'!$B$15:$C$36,2,FALSE)","v":"Unrestricted"},{"$f":"IFERROR(VLOOKUP(C780,Descriptions!$B$6:$D$92,3,FALSE),\"\")","v":""},null,null,null,null,null,null,null,null,null,null,null,null,null,null,"General Fund",{"$f":"IFERROR(VLOOKUP(C780,Descriptions!B:F,5,FALSE),\"N\")","v":"N"},true,"NTRUE",0,null,{"$f":"IFERROR(VLOOKUP(D780,'Bank and Fund Details'!$B$14:$L$35,11,FALSE),\"N\")","v":"Y"},"NY"]
[null,null,null,"General Fund",null,null,null,null,null,{"$f":"VLOOKUP(D781,'Bank and Fund Details'!$B$15:$D$36,3,FALSE)","v":0},{"$f":"VLOOKUP(D781,'Bank and Fund Details'!$B$15:$C$36,2,FALSE)","v":"Unrestricted"},{"$f":"IFERROR(VLOOKUP(C781,Descriptions!$B$6:$D$92,3,FALSE),\"\")","v":""},null,null,null,null,null,null,null,null,null,null,null,null,null,null,"General Fund",{"$f":"IFERROR(VLOOKUP(C781,Descriptions!B:F,5,FALSE),\"N\")","v":"N"},true,"NTRUE",0,null,{"$f":"IFERROR(VLOOKUP(D781,'Bank and Fund Details'!$B$14:$L$35,11,FALSE),\"N\")","v":"Y"},"NY"]
[null,null,null,"General Fund",null,null,null,null,null,{"$f":"VLOOKUP(D782,'Bank and Fund Details'!$B$15:$D$36,3,FALSE)","v":0},{"$f":"VLOOKUP(D782,'Bank and Fund Details'!$B$15:$C$36,2,FALSE)","v":"Unrestricted"},{"$f":"IFERROR(VLOOKUP(C782,Descriptions!$B$6:$D$92,3,FALSE),\"\")","v":""},null,null,null,null,null,null,null,null,null,null,null,null,null,null,"General Fund",{"$f":"IFERROR(VLOOKUP(C782,Descriptions!B:F,5,FALSE),\"N\")","v":"N"},true,"NTRUE",0,null,{"$f":"IFERROR(VLOOKUP(D782,'Bank and Fund Details'!$B$14:$L$35,11,FALSE),\"N\")","v":"Y"},"NY"]
[null,null,null,"General Fund",null,null,null,null,null,{"$f":"VLOOKUP(D783,'Bank and Fund Details'!$B$15:$D$36,3,FALSE)","v":0},{"$f":"VLOOKUP(D783,'Bank and Fund Details'!$B$15:$C$36,2,FALSE)","v":"Unrestricted"},{"$f":"IFERROR(VLOOKUP(C783,Descriptions!$B$6:$D$92,3,FALSE),\"\")","v":""},null,null,null,null,null,null,null,null,null,null,null,null,null,null,"General Fund",{"$f":"IFERROR(VLOOKUP(C783,Descriptions!B:F,5,FALSE),\"N\")","v":"N"},true,"NTRUE",0,null,{"$f":"IFERROR(VLOOKUP(D783,'Bank and Fund Details'!$B$14:$L$35,11,FALSE),\"N\")","v":"Y"},"NY"]
[null,null,null,"General Fund",null,null,null,null,null,{"$f":"VLOOKUP(D784,'Bank and Fund Details'!$B$15:$D$36,3,FALSE)","v":0},{"$f":"VLOOKUP(D784,'Bank and Fund Details'!$B$15:$C$36,2,FALSE)","v":"Unrestricted"},{"$f":"IFERROR(VLOOKUP(C784,Descriptions!$B$6:$D$92,3,FALSE),\"\")","v":""},null,null,null,null,null,null,null,null,null,null,null,null,null,null,"General Fund",{"$f":"IFERROR(VLOOKUP(C784,Descriptions!B:F,5,FALSE),\"N\")","v":"N"},true,"NTRUE",0,null,{"$f":"IFERROR(VLOOKUP(D784,'Bank and Fund Details'!$B$14:$L$35,11,FALSE),\"N\")","v":"Y"},"NY"]
[null,null,null,"General Fund",null,null,null,null,null,{"$f":"VLOOKUP(D785,'Bank and Fund Details'!$B$15:$D$36,3,FALSE)","v":0},{"$f":"VLOOKUP(D785,'Bank and Fund Details'!$B$15:$C$36,2,FALSE)","v":"Unrestricted"},{"$f":"IFERROR(VLOOKUP(C785,Descriptions!$B$6:$D$92,3,FALSE),\"\")","v":""},null,null,null,null,null,null,null,null,null,null,null,null,null,null,"General Fund",{"$f":"IFERROR(VLOOKUP(C785,Descriptions!B:F,5,FALSE),\"N\")","v":"N"},true,"NTRUE",0,null,{"$f":"IFERROR(VLOOKUP(D785,'Bank and Fund Details'!$B$14:$L$35,11,FALSE),\"N\")","v":"Y"},"NY"]
[null,null,null,"General Fund",null,null,null,null,null,{"$f":"VLOOKUP(D786,'Bank and Fund Details'!$B$15:$D$36,3,FALSE)","v":0},{"$f":"VLOOKUP(D786,'Bank and Fund Details'!$B$15:$C$36,2,FALSE)","v":"Unrestricted"},{"$f":"IFERROR(VLOOKUP(C786,Descriptions!$B$6:$D$92,3,FALSE),\"\")","v":""},null,null,null,null,null,null,null,null,null,null,null,null,null,null,"General Fund",{"$f":"IFERROR(VLOOKUP(C786,Descriptions!B:F,5,FALSE),\"N\")","v":"N"},true,"NTRUE",0,null,{"$f":"IFERROR(VLOOKUP(D786,'Bank and Fund Details'!$B$14:$L$35,11,FALSE),\"N\")","v":"Y"},"NY"]
[null,null,null,"General Fund",null,null,null,null,null,{"$f":"VLOOKUP(D787,'Bank and Fund Details'!$B$15:$D$36,3,FALSE)","v":0},{"$f":"VLOOKUP(D787,'Bank and Fund Details'!$B$15:$C$36,2,FALSE)","v":"Unrestricted"},{"$f":"IFERROR(VLOOKUP(C787,Descriptions!$B$6:$D$92,3,FALSE),\"\")","v":""},null,null,null,null,null,null,null,null,null,null,null,null,null,null,"General Fund",{"$f":"IFERROR(VLOOKUP(C787,Descriptions!B:F,5,FALSE),\"N\")","v":"N"},true,"NTRUE",0,null,{"$f":"IFERROR(VLOOKUP(D787,'Bank and Fund Details'!$B$14:$L$35,11,FALSE),\"N\")","v":"Y"},"NY"]
[null,null,null,"General Fund",null,null,null,null,null,{"$f":"VLOOKUP(D788,'Bank and Fund Details'!$B$15:$D$36,3,FALSE)","v":0},{"$f":"VLOOKUP(D788,'Bank and Fund Details'!$B$15:$C$36,2,FALSE)","v":"Unrestricted"},{"$f":"IFERROR(VLOOKUP(C788,Descriptions!$B$6:$D$92,3,FALSE),\"\")","v":""},null,null,null,null,null,null,null,null,null,null,null,null,null,null,"General Fund",{"$f":"IFERROR(VLOOKUP(C788,Descriptions!B:F,5,FALSE),\"N\")","v":"N"},true,"NTRUE",0,null,{"$f":"IFERROR(VLOOKUP(D788,'Bank and Fund Details'!$B$14:$L$35,11,FALSE),\"N\")","v":"Y"},"NY"]
[null,null,null,"General Fund",null,null,null,null,null,{"$f":"VLOOKUP(D789,'Bank and Fund Details'!$B$15:$D$36,3,FALSE)","v":0},{"$f":"VLOOKUP(D789,'Bank and Fund Details'!$B$15:$C$36,2,FALSE)","v":"Unrestricted"},{"$f":"IFERROR(VLOOKUP(C789,Descriptions!$B$6:$D$92,3,FALSE),\"\")","v":""},null,null,null,null,null,null,null,null,null,null,null,null,null,null,"General Fund",{"$f":"IFERROR(VLOOKUP(C789,Descriptions!B:F,5,FALSE),\"N\")","v":"N"},true,"NTRUE",0,null,{"$f":"IFERROR(VLOOKUP(D789,'Bank and Fund Details'!$B$14:$L$35,11,FALSE),\"N\")","v":"Y"},"NY"]
[null,null,null,"General Fund",null,null,null,null,null,{"$f":"VLOOKUP(D790,'Bank and Fund Details'!$B$15:$D$36,3,FALSE)","v":0},{"$f":"VLOOKUP(D790,'Bank and Fund Details'!$B$15:$C$36,2,FALSE)","v":"Unrestricted"},{"$f":"IFERROR(VLOOKUP(C790,Descriptions!$B$6:$D$92,3,FALSE),\"\")","v":""},null,null,null,null,null,null,null,null,null,null,null,null,null,null,"General Fund",{"$f":"IFERROR(VLOOKUP(C790,Descriptions!B:F,5,FALSE),\"N\")","v":"N"},true,"NTRUE",0,null,{"$f":"IFERROR(VLOOKUP(D790,'Bank and Fund Details'!$B$14:$L$35,11,FALSE),\"N\")","v":"Y"},"NY"]
[null,null,null,"General Fund",null,null,null,null,null,{"$f":"VLOOKUP(D791,'Bank and Fund Details'!$B$15:$D$36,3,FALSE)","v":0},{"$f":"VLOOKUP(D791,'Bank and Fund Details'!$B$15:$C$36,2,FALSE)","v":"Unrestricted"},{"$f":"IFERROR(VLOOKUP(C791,Descriptions!$B$6:$D$92,3,FALSE),\"\")","v":""},null,null,null,null,null,null,null,null,null,null,null,null,null,null,"General Fund",{"$f":"IFERROR(VLOOKUP(C791,Descriptions!B:F,5,FALSE),\"N\")","v":"N"},true,"NTRUE",0,null,{"$f":"IFERROR(VLOOKUP(D791,'Bank and Fund Details'!$B$14:$L$35,11,FALSE),\"N\")","v":"Y"},"NY"]
[null,null,null,"General Fund",null,null,null,null,null,{"$f":"VLOOKUP(D792,'Bank and Fund Details'!$B$15:$D$36,3,FALSE)","v":0},{"$f":"VLOOKUP(D792,'Bank and Fund Details'!$B$15:$C$36,2,FALSE)","v":"Unrestricted"},{"$f":"IFERROR(VLOOKUP(C792,Descriptions!$B$6:$D$92,3,FALSE),\"\")","v":""},null,null,null,null,null,null,null,null,null,null,null,null,null,null,"General Fund",{"$f":"IFERROR(VLOOKUP(C792,Descriptions!B:F,5,FALSE),\"N\")","v":"N"},true,"NTRUE",0,null,{"$f":"IFERROR(VLOOKUP(D792,'Bank and Fund Details'!$B$14:$L$35,11,FALSE),\"N\")","v":"Y"},"NY"]
[null,null,null,"General Fund",null,null,null,null,null,{"$f":"VLOOKUP(D793,'Bank and Fund Details'!$B$15:$D$36,3,FALSE)","v":0},{"$f":"VLOOKUP(D793,'Bank and Fund Details'!$B$15:$C$36,2,FALSE)","v":"Unrestricted"},{"$f":"IFERROR(VLOOKUP(C793,Descriptions!$B$6:$D$92,3,FALSE),\"\")","v":""},null,null,null,null,null,null,null,null,null,null,null,null,null,null,"General Fund",{"$f":"IFERROR(VLOOKUP(C793,Descriptions!B:F,5,FALSE),\"N\")","v":"N"},true,"NTRUE",0,null,{"$f":"IFERROR(VLOOKUP(D793,'Bank and Fund Details'!$B$14:$L$35,11,FALSE),\"N\")","v":"Y"},"NY"]
[null,null,null,"General Fund",null,null,null,null,null,{"$f":"VLOOKUP(D794,'Bank and Fund Details'!$B$15:$D$36,3,FALSE)","v":0},{"$f":"VLOOKUP(D794,'Bank and Fund Details'!$B$15:$C$36,2,FALSE)","v":"Unrestricted"},{"$f":"IFERROR(VLOOKUP(C794,Descriptions!$B$6:$D$92,3,FALSE),\"\")","v":""},null,null,null,null,null,null,null,null,null,null,null,null,null,null,"General Fund",{"$f":"IFERROR(VLOOKUP(C794,Descriptions!B:F,5,FALSE),\"N\")","v":"N"},true,"NTRUE",0,null,{"$f":"IFERROR(VLOOKUP(D794,'Bank and Fund Details'!$B$14:$L$35,11,FALSE),\"N\")","v":"Y"},"NY"]
[null,null,null,"General Fund",null,null,null,null,null,{"$f":"VLOOKUP(D795,'Bank and Fund Details'!$B$15:$D$36,3,FALSE)","v":0},{"$f":"VLOOKUP(D795,'Bank and Fund Details'!$B$15:$C$36,2,FALSE)","v":"Unrestricted"},{"$f":"IFERROR(VLOOKUP(C795,Descriptions!$B$6:$D$92,3,FALSE),\"\")","v":""},null,null,null,null,null,null,null,null,null,null,null,null,null,null,"General Fund",{"$f":"IFERROR(VLOOKUP(C795,Descriptions!B:F,5,FALSE),\"N\")","v":"N"},true,"NTRUE",0,null,{"$f":"IFERROR(VLOOKUP(D795,'Bank and Fund Details'!$B$14:$L$35,11,FALSE),\"N\")","v":"Y"},"NY"]
[null,null,null,"General Fund",null,null,null,null,null,{"$f":"VLOOKUP(D796,'Bank and Fund Details'!$B$15:$D$36,3,FALSE)","v":0},{"$f":"VLOOKUP(D796,'Bank and Fund Details'!$B$15:$C$36,2,FALSE)","v":"Unrestricted"},{"$f":"IFERROR(VLOOKUP(C796,Descriptions!$B$6:$D$92,3,FALSE),\"\")","v":""},null,null,null,null,null,null,null,null,null,null,null,null,null,null,"General Fund",{"$f":"IFERROR(VLOOKUP(C796,Descriptions!B:F,5,FALSE),\"N\")","v":"N"},true,"NTRUE",0,null,{"$f":"IFERROR(VLOOKUP(D796,'Bank and Fund Details'!$B$14:$L$35,11,FALSE),\"N\")","v":"Y"},"NY"]
[null,null,null,"General Fund",null,null,null,null,null,{"$f":"VLOOKUP(D797,'Bank and Fund Details'!$B$15:$D$36,3,FALSE)","v":0},{"$f":"VLOOKUP(D797,'Bank and Fund Details'!$B$15:$C$36,2,FALSE)","v":"Unrestricted"},{"$f":"IFERROR(VLOOKUP(C797,Descriptions!$B$6:$D$92,3,FALSE),\"\")","v":""},null,null,null,null,null,null,null,null,null,null,null,null,null,null,"General Fund",{"$f":"IFERROR(VLOOKUP(C797,Descriptions!B:F,5,FALSE),\"N\")","v":"N"},true,"NTRUE",0,null,{"$f":"IFERROR(VLOOKUP(D797,'Bank and Fund Details'!$B$14:$L$35,11,FALSE),\"N\")","v":"Y"},"NY"]
[null,null,null,"General Fund",null,null,null,null,null,{"$f":"VLOOKUP(D798,'Bank and Fund Details'!$B$15:$D$36,3,FALSE)","v":0},{"$f":"VLOOKUP(D798,'Bank and Fund Details'!$B$15:$C$36,2,FALSE)","v":"Unrestricted"},{"$f":"IFERROR(VLOOKUP(C798,Descriptions!$B$6:$D$92,3,FALSE),\"\")","v":""},null,null,null,null,null,null,null,null,null,null,null,null,null,null,"General Fund",{"$f":"IFERROR(VLOOKUP(C798,Descriptions!B:F,5,FALSE),\"N\")","v":"N"},true,"NTRUE",0,null,{"$f":"IFERROR(VLOOKUP(D798,'Bank and Fund Details'!$B$14:$L$35,11,FALSE),\"N\")","v":"Y"},"NY"]
[null,null,null,"General Fund",null,null,null,null,null,{"$f":"VLOOKUP(D799,'Bank and Fund Details'!$B$15:$D$36,3,FALSE)","v":0},{"$f":"VLOOKUP(D799,'Bank and Fund Details'!$B$15:$C$36,2,FALSE)","v":"Unrestricted"},{"$f":"IFERROR(VLOOKUP(C799,Descriptions!$B$6:$D$92,3,FALSE),\"\")","v":""},null,null,null,null,null,null,null,null,null,null,null,null,null,null,"General Fund",{"$f":"IFERROR(VLOOKUP(C799,Descriptions!B:F,5,FALSE),\"N\")","v":"N"},true,"NTRUE",0,null,{"$f":"IFERROR(VLOOKUP(D799,'Bank and Fund Details'!$B$14:$L$35,11,FALSE),\"N\")","v":"Y"},"NY"]
[null,null,null,"General Fund",null,null,null,null,null,{"$f":"VLOOKUP(D800,'Bank and Fund Details'!$B$15:$D$36,3,FALSE)","v":0},{"$f":"VLOOKUP(D800,'Bank and Fund Details'!$B$15:$C$36,2,FALSE)","v":"Unrestricted"},{"$f":"IFERROR(VLOOKUP(C800,Descriptions!$B$6:$D$92,3,FALSE),\"\")","v":""},null,null,null,null,null,null,null,null,null,null,null,null,null,null,"General Fund",{"$f":"IFERROR(VLOOKUP(C800,Descriptions!B:F,5,FALSE),\"N\")","v":"N"},true,"NTRUE",0,null,{"$f":"IFERROR(VLOOKUP(D800,'Bank and Fund Details'!$B$14:$L$35,11,FALSE),\"N\")","v":"Y"},"NY"]
[null,null,null,"General Fund",null,null,null,null,null,{"$f":"VLOOKUP(D801,'Bank and Fund Details'!$B$15:$D$36,3,FALSE)","v":0},{"$f":"VLOOKUP(D801,'Bank and Fund Details'!$B$15:$C$36,2,FALSE)","v":"Unrestricted"},{"$f":"IFERROR(VLOOKUP(C801,Descriptions!$B$6:$D$92,3,FALSE),\"\")","v":""},null,null,null,null,null,null,null,null,null,null,null,null,null,null,"General Fund",{"$f":"IFERROR(VLOOKUP(C801,Descriptions!B:F,5,FALSE),\"N\")","v":"N"},true,"NTRUE",0,null,{"$f":"IFERROR(VLOOKUP(D801,'Bank and Fund Details'!$B$14:$L$35,11,FALSE),\"N\")","v":"Y"},"NY"]
[null,null,null,"General Fund",null,null,null,null,null,{"$f":"VLOOKUP(D802,'Bank and Fund Details'!$B$15:$D$36,3,FALSE)","v":0},{"$f":"VLOOKUP(D802,'Bank and Fund Details'!$B$15:$C$36,2,FALSE)","v":"Unrestricted"},{"$f":"IFERROR(VLOOKUP(C802,Descriptions!$B$6:$D$92,3,FALSE),\"\")","v":""},null,null,null,null,null,null,null,null,null,null,null,null,null,null,"General Fund",{"$f":"IFERROR(VLOOKUP(C802,Descriptions!B:F,5,FALSE),\"N\")","v":"N"},true,"NTRUE",0,null,{"$f":"IFERROR(VLOOKUP(D802,'Bank and Fund Details'!$B$14:$L$35,11,FALSE),\"N\")","v":"Y"},"NY"]
[null,null,null,"General Fund",null,null,null,null,null,{"$f":"VLOOKUP(D803,'Bank and Fund Details'!$B$15:$D$36,3,FALSE)","v":0},{"$f":"VLOOKUP(D803,'Bank and Fund Details'!$B$15:$C$36,2,FALSE)","v":"Unrestricted"},{"$f":"IFERROR(VLOOKUP(C803,Descriptions!$B$6:$D$92,3,FALSE),\"\")","v":""},null,null,null,null,null,null,null,null,null,null,null,null,null,null,"General Fund",{"$f":"IFERROR(VLOOKUP(C803,Descriptions!B:F,5,FALSE),\"N\")","v":"N"},true,"NTRUE",0,null,{"$f":"IFERROR(VLOOKUP(D803,'Bank and Fund Details'!$B$14:$L$35,11,FALSE),\"N\")","v":"Y"},"NY"]
[null,null,null,"General Fund",null,null,null,null,null,{"$f":"VLOOKUP(D804,'Bank and Fund Details'!$B$15:$D$36,3,FALSE)","v":0},{"$f":"VLOOKUP(D804,'Bank and Fund Details'!$B$15:$C$36,2,FALSE)","v":"Unrestricted"},{"$f":"IFERROR(VLOOKUP(C804,Descriptions!$B$6:$D$92,3,FALSE),\"\")","v":""},null,null,null,null,null,null,null,null,null,null,null,null,null,null,"General Fund",{"$f":"IFERROR(VLOOKUP(C804,Descriptions!B:F,5,FALSE),\"N\")","v":"N"},true,"NTRUE",0,null,{"$f":"IFERROR(VLOOKUP(D804,'Bank and Fund Details'!$B$14:$L$35,11,FALSE),\"N\")","v":"Y"},"NY"]
[null,null,null,"General Fund",null,null,null,null,null,{"$f":"VLOOKUP(D805,'Bank and Fund Details'!$B$15:$D$36,3,FALSE)","v":0},{"$f":"VLOOKUP(D805,'Bank and Fund Details'!$B$15:$C$36,2,FALSE)","v":"Unrestricted"},{"$f":"IFERROR(VLOOKUP(C805,Descriptions!$B$6:$D$92,3,FALSE),\"\")","v":""},null,null,null,null,null,null,null,null,null,null,null,null,null,null,"General Fund",{"$f":"IFERROR(VLOOKUP(C805,Descriptions!B:F,5,FALSE),\"N\")","v":"N"},true,"NTRUE",0,null,{"$f":"IFERROR(VLOOKUP(D805,'Bank and Fund Details'!$B$14:$L$35,11,FALSE),\"N\")","v":"Y"},"NY"]
[null,null,null,"General Fund",null,null,null,null,null,{"$f":"VLOOKUP(D806,'Bank and Fund Details'!$B$15:$D$36,3,FALSE)","v":0},{"$f":"VLOOKUP(D806,'Bank and Fund Details'!$B$15:$C$36,2,FALSE)","v":"Unrestricted"},{"$f":"IFERROR(VLOOKUP(C806,Descriptions!$B$6:$D$92,3,FALSE),\"\")","v":""},null,null,null,null,null,null,null,null,null,null,null,null,null,null,"General Fund",{"$f":"IFERROR(VLOOKUP(C806,Descriptions!B:F,5,FALSE),\"N\")","v":"N"},true,"NTRUE",0,null,{"$f":"IFERROR(VLOOKUP(D806,'Bank and Fund Details'!$B$14:$L$35,11,FALSE),\"N\")","v":"Y"},"NY"]
[null,null,null,"General Fund",null,null,null,null,null,{"$f":"VLOOKUP(D807,'Bank and Fund Details'!$B$15:$D$36,3,FALSE)","v":0},{"$f":"VLOOKUP(D807,'Bank and Fund Details'!$B$15:$C$36,2,FALSE)","v":"Unrestricted"},{"$f":"IFERROR(VLOOKUP(C807,Descriptions!$B$6:$D$92,3,FALSE),\"\")","v":""},null,null,null,null,null,null,null,null,null,null,null,null,null,null,"General Fund",{"$f":"IFERROR(VLOOKUP(C807,Descriptions!B:F,5,FALSE),\"N\")","v":"N"},true,"NTRUE",0,null,{"$f":"IFERROR(VLOOKUP(D807,'Bank and Fund Details'!$B$14:$L$35,11,FALSE),\"N\")","v":"Y"},"NY"]
[null,null,null,"General Fund",null,null,null,null,null,{"$f":"VLOOKUP(D808,'Bank and Fund Details'!$B$15:$D$36,3,FALSE)","v":0},{"$f":"VLOOKUP(D808,'Bank and Fund Details'!$B$15:$C$36,2,FALSE)","v":"Unrestricted"},{"$f":"IFERROR(VLOOKUP(C808,Descriptions!$B$6:$D$92,3,FALSE),\"\")","v":""},null,null,null,null,null,null,null,null,null,null,null,null,null,null,"General Fund",{"$f":"IFERROR(VLOOKUP(C808,Descriptions!B:F,5,FALSE),\"N\")","v":"N"},true,"NTRUE",0,null,{"$f":"IFERROR(VLOOKUP(D808,'Bank and Fund Details'!$B$14:$L$35,11,FALSE),\"N\")","v":"Y"},"NY"]
[null,null,null,"General Fund",null,null,null,null,null,{"$f":"VLOOKUP(D809,'Bank and Fund Details'!$B$15:$D$36,3,FALSE)","v":0},{"$f":"VLOOKUP(D809,'Bank and Fund Details'!$B$15:$C$36,2,FALSE)","v":"Unrestricted"},{"$f":"IFERROR(VLOOKUP(C809,Descriptions!$B$6:$D$92,3,FALSE),\"\")","v":""},null,null,null,null,null,null,null,null,null,null,null,null,null,null,"General Fund",{"$f":"IFERROR(VLOOKUP(C809,Descriptions!B:F,5,FALSE),\"N\")","v":"N"},true,"NTRUE",0,null,{"$f":"IFERROR(VLOOKUP(D809,'Bank and Fund Details'!$B$14:$L$35,11,FALSE),\"N\")","v":"Y"},"NY"]
[null,null,null,"General Fund",null,null,null,null,null,{"$f":"VLOOKUP(D810,'Bank and Fund Details'!$B$15:$D$36,3,FALSE)","v":0},{"$f":"VLOOKUP(D810,'Bank and Fund Details'!$B$15:$C$36,2,FALSE)","v":"Unrestricted"},{"$f":"IFERROR(VLOOKUP(C810,Descriptions!$B$6:$D$92,3,FALSE),\"\")","v":""},null,null,null,null,null,null,null,null,null,null,null,null,null,null,"General Fund",{"$f":"IFERROR(VLOOKUP(C810,Descriptions!B:F,5,FALSE),\"N\")","v":"N"},true,"NTRUE",0,null,{"$f":"IFERROR(VLOOKUP(D810,'Bank and Fund Details'!$B$14:$L$35,11,FALSE),\"N\")","v":"Y"},"NY"]
[null,null,null,"General Fund",null,null,null,null,null,{"$f":"VLOOKUP(D811,'Bank and Fund Details'!$B$15:$D$36,3,FALSE)","v":0},{"$f":"VLOOKUP(D811,'Bank and Fund Details'!$B$15:$C$36,2,FALSE)","v":"Unrestricted"},{"$f":"IFERROR(VLOOKUP(C811,Descriptions!$B$6:$D$92,3,FALSE),\"\")","v":""},null,null,null,null,null,null,null,null,null,null,null,null,null,null,"General Fund",{"$f":"IFERROR(VLOOKUP(C811,Descriptions!B:F,5,FALSE),\"N\")","v":"N"},true,"NTRUE",0,null,{"$f":"IFERROR(VLOOKUP(D811,'Bank and Fund Details'!$B$14:$L$35,11,FALSE),\"N\")","v":"Y"},"NY"]
[null,null,null,"General Fund",null,null,null,null,null,{"$f":"VLOOKUP(D812,'Bank and Fund Details'!$B$15:$D$36,3,FALSE)","v":0},{"$f":"VLOOKUP(D812,'Bank and Fund Details'!$B$15:$C$36,2,FALSE)","v":"Unrestricted"},{"$f":"IFERROR(VLOOKUP(C812,Descriptions!$B$6:$D$92,3,FALSE),\"\")","v":""},null,null,null,null,null,null,null,null,null,null,null,null,null,null,"General Fund",{"$f":"IFERROR(VLOOKUP(C812,Descriptions!B:F,5,FALSE),\"N\")","v":"N"},true,"NTRUE",0,null,{"$f":"IFERROR(VLOOKUP(D812,'Bank and Fund Details'!$B$14:$L$35,11,FALSE),\"N\")","v":"Y"},"NY"]
[null,null,null,"General Fund",null,null,null,null,null,{"$f":"VLOOKUP(D813,'Bank and Fund Details'!$B$15:$D$36,3,FALSE)","v":0},{"$f":"VLOOKUP(D813,'Bank and Fund Details'!$B$15:$C$36,2,FALSE)","v":"Unrestricted"},{"$f":"IFERROR(VLOOKUP(C813,Descriptions!$B$6:$D$92,3,FALSE),\"\")","v":""},null,null,null,null,null,null,null,null,null,null,null,null,null,null,"General Fund",{"$f":"IFERROR(VLOOKUP(C813,Descriptions!B:F,5,FALSE),\"N\")","v":"N"},true,"NTRUE",0,null,{"$f":"IFERROR(VLOOKUP(D813,'Bank and Fund Details'!$B$14:$L$35,11,FALSE),\"N\")","v":"Y"},"NY"]
[null,null,null,"General Fund",null,null,null,null,null,{"$f":"VLOOKUP(D814,'Bank and Fund Details'!$B$15:$D$36,3,FALSE)","v":0},{"$f":"VLOOKUP(D814,'Bank and Fund Details'!$B$15:$C$36,2,FALSE)","v":"Unrestricted"},{"$f":"IFERROR(VLOOKUP(C814,Descriptions!$B$6:$D$92,3,FALSE),\"\")","v":""},null,null,null,null,null,null,null,null,null,null,null,null,null,null,"General Fund",{"$f":"IFERROR(VLOOKUP(C814,Descriptions!B:F,5,FALSE),\"N\")","v":"N"},true,"NTRUE",0,null,{"$f":"IFERROR(VLOOKUP(D814,'Bank and Fund Details'!$B$14:$L$35,11,FALSE),\"N\")","v":"Y"},"NY"]
[null,null,null,"General Fund",null,null,null,null,null,{"$f":"VLOOKUP(D815,'Bank and Fund Details'!$B$15:$D$36,3,FALSE)","v":0},{"$f":"VLOOKUP(D815,'Bank and Fund Details'!$B$15:$C$36,2,FALSE)","v":"Unrestricted"},{"$f":"IFERROR(VLOOKUP(C815,Descriptions!$B$6:$D$92,3,FALSE),\"\")","v":""},null,null,null,null,null,null,null,null,null,null,null,null,null,null,"General Fund",{"$f":"IFERROR(VLOOKUP(C815,Descriptions!B:F,5,FALSE),\"N\")","v":"N"},true,"NTRUE",0,null,{"$f":"IFERROR(VLOOKUP(D815,'Bank and Fund Details'!$B$14:$L$35,11,FALSE),\"N\")","v":"Y"},"NY"]
[null,null,null,"General Fund",null,null,null,null,null,{"$f":"VLOOKUP(D816,'Bank and Fund Details'!$B$15:$D$36,3,FALSE)","v":0},{"$f":"VLOOKUP(D816,'Bank and Fund Details'!$B$15:$C$36,2,FALSE)","v":"Unrestricted"},{"$f":"IFERROR(VLOOKUP(C816,Descriptions!$B$6:$D$92,3,FALSE),\"\")","v":""},null,null,null,null,null,null,null,null,null,null,null,null,null,null,"General Fund",{"$f":"IFERROR(VLOOKUP(C816,Descriptions!B:F,5,FALSE),\"N\")","v":"N"},true,"NTRUE",0,null,{"$f":"IFERROR(VLOOKUP(D816,'Bank and Fund Details'!$B$14:$L$35,11,FALSE),\"N\")","v":"Y"},"NY"]
[null,null,null,"General Fund",null,null,null,null,null,{"$f":"VLOOKUP(D817,'Bank and Fund Details'!$B$15:$D$36,3,FALSE)","v":0},{"$f":"VLOOKUP(D817,'Bank and Fund Details'!$B$15:$C$36,2,FALSE)","v":"Unrestricted"},{"$f":"IFERROR(VLOOKUP(C817,Descriptions!$B$6:$D$92,3,FALSE),\"\")","v":""},null,null,null,null,null,null,null,null,null,null,null,null,null,null,"General Fund",{"$f":"IFERROR(VLOOKUP(C817,Descriptions!B:F,5,FALSE),\"N\")","v":"N"},true,"NTRUE",0,null,{"$f":"IFERROR(VLOOKUP(D817,'Bank and Fund Details'!$B$14:$L$35,11,FALSE),\"N\")","v":"Y"},"NY"]
[null,null,null,"General Fund",null,null,null,null,null,{"$f":"VLOOKUP(D818,'Bank and Fund Details'!$B$15:$D$36,3,FALSE)","v":0},{"$f":"VLOOKUP(D818,'Bank and Fund Details'!$B$15:$C$36,2,FALSE)","v":"Unrestricted"},{"$f":"IFERROR(VLOOKUP(C818,Descriptions!$B$6:$D$92,3,FALSE),\"\")","v":""},null,null,null,null,null,null,null,null,null,null,null,null,null,null,"General Fund",{"$f":"IFERROR(VLOOKUP(C818,Descriptions!B:F,5,FALSE),\"N\")","v":"N"},true,"NTRUE",0,null,{"$f":"IFERROR(VLOOKUP(D818,'Bank and Fund Details'!$B$14:$L$35,11,FALSE),\"N\")","v":"Y"},"NY"]
[null,null,null,"General Fund",null,null,null,null,null,{"$f":"VLOOKUP(D819,'Bank and Fund Details'!$B$15:$D$36,3,FALSE)","v":0},{"$f":"VLOOKUP(D819,'Bank and Fund Details'!$B$15:$C$36,2,FALSE)","v":"Unrestricted"},{"$f":"IFERROR(VLOOKUP(C819,Descriptions!$B$6:$D$92,3,FALSE),\"\")","v":""},null,null,null,null,null,null,null,null,null,null,null,null,null,null,"General Fund",{"$f":"IFERROR(VLOOKUP(C819,Descriptions!B:F,5,FALSE),\"N\")","v":"N"},true,"NTRUE",0,null,{"$f":"IFERROR(VLOOKUP(D819,'Bank and Fund Details'!$B$14:$L$35,11,FALSE),\"N\")","v":"Y"},"NY"]
[null,null,null,"General Fund",null,null,null,null,null,{"$f":"VLOOKUP(D820,'Bank and Fund Details'!$B$15:$D$36,3,FALSE)","v":0},{"$f":"VLOOKUP(D820,'Bank and Fund Details'!$B$15:$C$36,2,FALSE)","v":"Unrestricted"},{"$f":"IFERROR(VLOOKUP(C820,Descriptions!$B$6:$D$92,3,FALSE),\"\")","v":""},null,null,null,null,null,null,null,null,null,null,null,null,null,null,"General Fund",{"$f":"IFERROR(VLOOKUP(C820,Descriptions!B:F,5,FALSE),\"N\")","v":"N"},true,"NTRUE",0,null,{"$f":"IFERROR(VLOOKUP(D820,'Bank and Fund Details'!$B$14:$L$35,11,FALSE),\"N\")","v":"Y"},"NY"]
[null,null,null,"General Fund",null,null,null,null,null,{"$f":"VLOOKUP(D821,'Bank and Fund Details'!$B$15:$D$36,3,FALSE)","v":0},{"$f":"VLOOKUP(D821,'Bank and Fund Details'!$B$15:$C$36,2,FALSE)","v":"Unrestricted"},{"$f":"IFERROR(VLOOKUP(C821,Descriptions!$B$6:$D$92,3,FALSE),\"\")","v":""},null,null,null,null,null,null,null,null,null,null,null,null,null,null,"General Fund",{"$f":"IFERROR(VLOOKUP(C821,Descriptions!B:F,5,FALSE),\"N\")","v":"N"},true,"NTRUE",0,null,{"$f":"IFERROR(VLOOKUP(D821,'Bank and Fund Details'!$B$14:$L$35,11,FALSE),\"N\")","v":"Y"},"NY"]
[null,null,null,"General Fund",null,null,null,null,null,{"$f":"VLOOKUP(D822,'Bank and Fund Details'!$B$15:$D$36,3,FALSE)","v":0},{"$f":"VLOOKUP(D822,'Bank and Fund Details'!$B$15:$C$36,2,FALSE)","v":"Unrestricted"},{"$f":"IFERROR(VLOOKUP(C822,Descriptions!$B$6:$D$92,3,FALSE),\"\")","v":""},null,null,null,null,null,null,null,null,null,null,null,null,null,null,"General Fund",{"$f":"IFERROR(VLOOKUP(C822,Descriptions!B:F,5,FALSE),\"N\")","v":"N"},true,"NTRUE",0,null,{"$f":"IFERROR(VLOOKUP(D822,'Bank and Fund Details'!$B$14:$L$35,11,FALSE),\"N\")","v":"Y"},"NY"]
[null,null,null,"General Fund",null,null,null,null,null,{"$f":"VLOOKUP(D823,'Bank and Fund Details'!$B$15:$D$36,3,FALSE)","v":0},{"$f":"VLOOKUP(D823,'Bank and Fund Details'!$B$15:$C$36,2,FALSE)","v":"Unrestricted"},{"$f":"IFERROR(VLOOKUP(C823,Descriptions!$B$6:$D$92,3,FALSE),\"\")","v":""},null,null,null,null,null,null,null,null,null,null,null,null,null,null,"General Fund",{"$f":"IFERROR(VLOOKUP(C823,Descriptions!B:F,5,FALSE),\"N\")","v":"N"},true,"NTRUE",0,null,{"$f":"IFERROR(VLOOKUP(D823,'Bank and Fund Details'!$B$14:$L$35,11,FALSE),\"N\")","v":"Y"},"NY"]
[null,null,null,"General Fund",null,null,null,null,null,{"$f":"VLOOKUP(D824,'Bank and Fund Details'!$B$15:$D$36,3,FALSE)","v":0},{"$f":"VLOOKUP(D824,'Bank and Fund Details'!$B$15:$C$36,2,FALSE)","v":"Unrestricted"},{"$f":"IFERROR(VLOOKUP(C824,Descriptions!$B$6:$D$92,3,FALSE),\"\")","v":""},null,null,null,null,null,null,null,null,null,null,null,null,null,null,"General Fund",{"$f":"IFERROR(VLOOKUP(C824,Descriptions!B:F,5,FALSE),\"N\")","v":"N"},true,"NTRUE",0,null,{"$f":"IFERROR(VLOOKUP(D824,'Bank and Fund Details'!$B$14:$L$35,11,FALSE),\"N\")","v":"Y"},"NY"]
[null,null,null,"General Fund",null,null,null,null,null,{"$f":"VLOOKUP(D825,'Bank and Fund Details'!$B$15:$D$36,3,FALSE)","v":0},{"$f":"VLOOKUP(D825,'Bank and Fund Details'!$B$15:$C$36,2,FALSE)","v":"Unrestricted"},{"$f":"IFERROR(VLOOKUP(C825,Descriptions!$B$6:$D$92,3,FALSE),\"\")","v":""},null,null,null,null,null,null,null,null,null,null,null,null,null,null,"General Fund",{"$f":"IFERROR(VLOOKUP(C825,Descriptions!B:F,5,FALSE),\"N\")","v":"N"},true,"NTRUE",0,null,{"$f":"IFERROR(VLOOKUP(D825,'Bank and Fund Details'!$B$14:$L$35,11,FALSE),\"N\")","v":"Y"},"NY"]
[null,null,null,"General Fund",null,null,null,null,null,{"$f":"VLOOKUP(D826,'Bank and Fund Details'!$B$15:$D$36,3,FALSE)","v":0},{"$f":"VLOOKUP(D826,'Bank and Fund Details'!$B$15:$C$36,2,FALSE)","v":"Unrestricted"},{"$f":"IFERROR(VLOOKUP(C826,Descriptions!$B$6:$D$92,3,FALSE),\"\")","v":""},null,null,null,null,null,null,null,null,null,null,null,null,null,null,"General Fund",{"$f":"IFERROR(VLOOKUP(C826,Descriptions!B:F,5,FALSE),\"N\")","v":"N"},true,"NTRUE",0,null,{"$f":"IFERROR(VLOOKUP(D826,'Bank and Fund Details'!$B$14:$L$35,11,FALSE),\"N\")","v":"Y"},"NY"]
[null,null,null,"General Fund",null,null,null,null,null,{"$f":"VLOOKUP(D827,'Bank and Fund Details'!$B$15:$D$36,3,FALSE)","v":0},{"$f":"VLOOKUP(D827,'Bank and Fund Details'!$B$15:$C$36,2,FALSE)","v":"Unrestricted"},{"$f":"IFERROR(VLOOKUP(C827,Descriptions!$B$6:$D$92,3,FALSE),\"\")","v":""},null,null,null,null,null,null,null,null,null,null,null,null,null,null,"General Fund",{"$f":"IFERROR(VLOOKUP(C827,Descriptions!B:F,5,FALSE),\"N\")","v":"N"},true,"NTRUE",0,null,{"$f":"IFERROR(VLOOKUP(D827,'Bank and Fund Details'!$B$14:$L$35,11,FALSE),\"N\")","v":"Y"},"NY"]
[null,null,null,"General Fund",null,null,null,null,null,{"$f":"VLOOKUP(D828,'Bank and Fund Details'!$B$15:$D$36,3,FALSE)","v":0},{"$f":"VLOOKUP(D828,'Bank and Fund Details'!$B$15:$C$36,2,FALSE)","v":"Unrestricted"},{"$f":"IFERROR(VLOOKUP(C828,Descriptions!$B$6:$D$92,3,FALSE),\"\")","v":""},null,null,null,null,null,null,null,null,null,null,null,null,null,null,"General Fund",{"$f":"IFERROR(VLOOKUP(C828,Descriptions!B:F,5,FALSE),\"N\")","v":"N"},true,"NTRUE",0,null,{"$f":"IFERROR(VLOOKUP(D828,'Bank and Fund Details'!$B$14:$L$35,11,FALSE),\"N\")","v":"Y"},"NY"]
[null,null,null,"General Fund",null,null,null,null,null,{"$f":"VLOOKUP(D829,'Bank and Fund Details'!$B$15:$D$36,3,FALSE)","v":0},{"$f":"VLOOKUP(D829,'Bank and Fund Details'!$B$15:$C$36,2,FALSE)","v":"Unrestricted"},{"$f":"IFERROR(VLOOKUP(C829,Descriptions!$B$6:$D$92,3,FALSE),\"\")","v":""},null,null,null,null,null,null,null,null,null,null,null,null,null,null,"General Fund",{"$f":"IFERROR(VLOOKUP(C829,Descriptions!B:F,5,FALSE),\"N\")","v":"N"},true,"NTRUE",0,null,{"$f":"IFERROR(VLOOKUP(D829,'Bank and Fund Details'!$B$14:$L$35,11,FALSE),\"N\")","v":"Y"},"NY"]
[null,null,null,"General Fund",null,null,null,null,null,{"$f":"VLOOKUP(D830,'Bank and Fund Details'!$B$15:$D$36,3,FALSE)","v":0},{"$f":"VLOOKUP(D830,'Bank and Fund Details'!$B$15:$C$36,2,FALSE)","v":"Unrestricted"},{"$f":"IFERROR(VLOOKUP(C830,Descriptions!$B$6:$D$92,3,FALSE),\"\")","v":""},null,null,null,null,null,null,null,null,null,null,null,null,null,null,"General Fund",{"$f":"IFERROR(VLOOKUP(C830,Descriptions!B:F,5,FALSE),\"N\")","v":"N"},true,"NTRUE",0,null,{"$f":"IFERROR(VLOOKUP(D830,'Bank and Fund Details'!$B$14:$L$35,11,FALSE),\"N\")","v":"Y"},"NY"]
[null,null,null,"General Fund",null,null,null,null,null,{"$f":"VLOOKUP(D831,'Bank and Fund Details'!$B$15:$D$36,3,FALSE)","v":0},{"$f":"VLOOKUP(D831,'Bank and Fund Details'!$B$15:$C$36,2,FALSE)","v":"Unrestricted"},{"$f":"IFERROR(VLOOKUP(C831,Descriptions!$B$6:$D$92,3,FALSE),\"\")","v":""},null,null,null,null,null,null,null,null,null,null,null,null,null,null,"General Fund",{"$f":"IFERROR(VLOOKUP(C831,Descriptions!B:F,5,FALSE),\"N\")","v":"N"},true,"NTRUE",0,null,{"$f":"IFERROR(VLOOKUP(D831,'Bank and Fund Details'!$B$14:$L$35,11,FALSE),\"N\")","v":"Y"},"NY"]
[null,null,null,"General Fund",null,null,null,null,null,{"$f":"VLOOKUP(D832,'Bank and Fund Details'!$B$15:$D$36,3,FALSE)","v":0},{"$f":"VLOOKUP(D832,'Bank and Fund Details'!$B$15:$C$36,2,FALSE)","v":"Unrestricted"},{"$f":"IFERROR(VLOOKUP(C832,Descriptions!$B$6:$D$92,3,FALSE),\"\")","v":""},null,null,null,null,null,null,null,null,null,null,null,null,null,null,"General Fund",{"$f":"IFERROR(VLOOKUP(C832,Descriptions!B:F,5,FALSE),\"N\")","v":"N"},true,"NTRUE",0,null,{"$f":"IFERROR(VLOOKUP(D832,'Bank and Fund Details'!$B$14:$L$35,11,FALSE),\"N\")","v":"Y"},"NY"]
[null,null,null,"General Fund",null,null,null,null,null,{"$f":"VLOOKUP(D833,'Bank and Fund Details'!$B$15:$D$36,3,FALSE)","v":0},{"$f":"VLOOKUP(D833,'Bank and Fund Details'!$B$15:$C$36,2,FALSE)","v":"Unrestricted"},{"$f":"IFERROR(VLOOKUP(C833,Descriptions!$B$6:$D$92,3,FALSE),\"\")","v":""},null,null,null,null,null,null,null,null,null,null,null,null,null,null,"General Fund",{"$f":"IFERROR(VLOOKUP(C833,Descriptions!B:F,5,FALSE),\"N\")","v":"N"},true,"NTRUE",0,null,{"$f":"IFERROR(VLOOKUP(D833,'Bank and Fund Details'!$B$14:$L$35,11,FALSE),\"N\")","v":"Y"},"NY"]
[null,null,null,"General Fund",null,null,null,null,null,{"$f":"VLOOKUP(D834,'Bank and Fund Details'!$B$15:$D$36,3,FALSE)","v":0},{"$f":"VLOOKUP(D834,'Bank and Fund Details'!$B$15:$C$36,2,FALSE)","v":"Unrestricted"},{"$f":"IFERROR(VLOOKUP(C834,Descriptions!$B$6:$D$92,3,FALSE),\"\")","v":""},null,null,null,null,null,null,null,null,null,null,null,null,null,null,"General Fund",{"$f":"IFERROR(VLOOKUP(C834,Descriptions!B:F,5,FALSE),\"N\")","v":"N"},true,"NTRUE",0,null,{"$f":"IFERROR(VLOOKUP(D834,'Bank and Fund Details'!$B$14:$L$35,11,FALSE),\"N\")","v":"Y"},"NY"]
[null,null,null,"General Fund",null,null,null,null,null,{"$f":"VLOOKUP(D835,'Bank and Fund Details'!$B$15:$D$36,3,FALSE)","v":0},{"$f":"VLOOKUP(D835,'Bank and Fund Details'!$B$15:$C$36,2,FALSE)","v":"Unrestricted"},{"$f":"IFERROR(VLOOKUP(C835,Descriptions!$B$6:$D$92,3,FALSE),\"\")","v":""},null,null,null,null,null,null,null,null,null,null,null,null,null,null,"General Fund",{"$f":"IFERROR(VLOOKUP(C835,Descriptions!B:F,5,FALSE),\"N\")","v":"N"},true,"NTRUE",0,null,{"$f":"IFERROR(VLOOKUP(D835,'Bank and Fund Details'!$B$14:$L$35,11,FALSE),\"N\")","v":"Y"},"NY"]
[null,null,null,"General Fund",null,null,null,null,null,{"$f":"VLOOKUP(D836,'Bank and Fund Details'!$B$15:$D$36,3,FALSE)","v":0},{"$f":"VLOOKUP(D836,'Bank and Fund Details'!$B$15:$C$36,2,FALSE)","v":"Unrestricted"},{"$f":"IFERROR(VLOOKUP(C836,Descriptions!$B$6:$D$92,3,FALSE),\"\")","v":""},null,null,null,null,null,null,null,null,null,null,null,null,null,null,"General Fund",{"$f":"IFERROR(VLOOKUP(C836,Descriptions!B:F,5,FALSE),\"N\")","v":"N"},true,"NTRUE",0,null,{"$f":"IFERROR(VLOOKUP(D836,'Bank and Fund Details'!$B$14:$L$35,11,FALSE),\"N\")","v":"Y"},"NY"]
[null,null,null,"General Fund",null,null,null,null,null,{"$f":"VLOOKUP(D837,'Bank and Fund Details'!$B$15:$D$36,3,FALSE)","v":0},{"$f":"VLOOKUP(D837,'Bank and Fund Details'!$B$15:$C$36,2,FALSE)","v":"Unrestricted"},{"$f":"IFERROR(VLOOKUP(C837,Descriptions!$B$6:$D$92,3,FALSE),\"\")","v":""},null,null,null,null,null,null,null,null,null,null,null,null,null,null,{"$f":"CONCATENATE(C837,D837)","v":"General Fund"},{"$f":"IFERROR(VLOOKUP(C837,Descriptions!B:F,5,FALSE),\"N\")","v":"N"},{"$f":"ISBLANK(C837)","v":true},{"$f":"CONCATENATE(AB837,AC837)","v":"NTRUE"},{"$f":"IF(AD837=\"NFALSE\",1,0)","v":0},null,{"$f":"IFERROR(VLOOKUP(D837,'Bank and Fund Details'!$B$14:$L$35,11,FALSE),\"N\")","v":"Y"},"NY"]
[null,null,null,"General Fund",null,null,null,null,null,{"$f":"VLOOKUP(D838,'Bank and Fund Details'!$B$15:$D$36,3,FALSE)","v":0},{"$f":"VLOOKUP(D838,'Bank and Fund Details'!$B$15:$C$36,2,FALSE)","v":"Unrestricted"},{"$f":"IFERROR(VLOOKUP(C838,Descriptions!$B$6:$D$92,3,FALSE),\"\")","v":""},null,null,null,null,null,null,null,null,null,null,null,null,null,null,"General Fund",{"$f":"IFERROR(VLOOKUP(C838,Descriptions!B:F,5,FALSE),\"N\")","v":"N"},true,"NTRUE",0,null,{"$f":"IFERROR(VLOOKUP(D838,'Bank and Fund Details'!$B$14:$L$35,11,FALSE),\"N\")","v":"Y"},{"$f":"CONCATENATE(AB838,AG838)","v":"NY"}]
[null,null,null,"General Fund",null,null,null,null,null,{"$f":"VLOOKUP(D839,'Bank and Fund Details'!$B$15:$D$36,3,FALSE)","v":0},{"$f":"VLOOKUP(D839,'Bank and Fund Details'!$B$15:$C$36,2,FALSE)","v":"Unrestricted"},{"$f":"IFERROR(VLOOKUP(C839,Descriptions!$B$6:$D$92,3,FALSE),\"\")","v":""},null,null,null,null,null,null,null,null,null,null,null,null,null,null,"General Fund",{"$f":"IFERROR(VLOOKUP(C839,Descriptions!B:F,5,FALSE),\"N\")","v":"N"},true,"NTRUE",0,null,{"$f":"IFERROR(VLOOKUP(D839,'Bank and Fund Details'!$B$14:$L$35,11,FALSE),\"N\")","v":"Y"},"NY"]
[null,null,null,"General Fund",null,null,null,null,null,{"$f":"VLOOKUP(D840,'Bank and Fund Details'!$B$15:$D$36,3,FALSE)","v":0},{"$f":"VLOOKUP(D840,'Bank and Fund Details'!$B$15:$C$36,2,FALSE)","v":"Unrestricted"},{"$f":"IFERROR(VLOOKUP(C840,Descriptions!$B$6:$D$92,3,FALSE),\"\")","v":""},null,null,null,null,null,null,null,null,null,null,null,null,null,null,"General Fund",{"$f":"IFERROR(VLOOKUP(C840,Descriptions!B:F,5,FALSE),\"N\")","v":"N"},true,"NTRUE",0,null,{"$f":"IFERROR(VLOOKUP(D840,'Bank and Fund Details'!$B$14:$L$35,11,FALSE),\"N\")","v":"Y"},"NY"]
[null,null,null,"General Fund",null,null,null,null,null,{"$f":"VLOOKUP(D841,'Bank and Fund Details'!$B$15:$D$36,3,FALSE)","v":0},{"$f":"VLOOKUP(D841,'Bank and Fund Details'!$B$15:$C$36,2,FALSE)","v":"Unrestricted"},{"$f":"IFERROR(VLOOKUP(C841,Descriptions!$B$6:$D$92,3,FALSE),\"\")","v":""},null,null,null,null,null,null,null,null,null,null,null,null,null,null,"General Fund",{"$f":"IFERROR(VLOOKUP(C841,Descriptions!B:F,5,FALSE),\"N\")","v":"N"},true,"NTRUE",0,null,{"$f":"IFERROR(VLOOKUP(D841,'Bank and Fund Details'!$B$14:$L$35,11,FALSE),\"N\")","v":"Y"},"NY"]
[null,null,null,"General Fund",null,null,null,null,null,{"$f":"VLOOKUP(D842,'Bank and Fund Details'!$B$15:$D$36,3,FALSE)","v":0},{"$f":"VLOOKUP(D842,'Bank and Fund Details'!$B$15:$C$36,2,FALSE)","v":"Unrestricted"},{"$f":"IFERROR(VLOOKUP(C842,Descriptions!$B$6:$D$92,3,FALSE),\"\")","v":""},null,null,null,null,null,null,null,null,null,null,null,null,null,null,"General Fund",{"$f":"IFERROR(VLOOKUP(C842,Descriptions!B:F,5,FALSE),\"N\")","v":"N"},true,"NTRUE",0,null,{"$f":"IFERROR(VLOOKUP(D842,'Bank and Fund Details'!$B$14:$L$35,11,FALSE),\"N\")","v":"Y"},"NY"]
[null,null,null,"General Fund",null,null,null,null,null,{"$f":"VLOOKUP(D843,'Bank and Fund Details'!$B$15:$D$36,3,FALSE)","v":0},{"$f":"VLOOKUP(D843,'Bank and Fund Details'!$B$15:$C$36,2,FALSE)","v":"Unrestricted"},{"$f":"IFERROR(VLOOKUP(C843,Descriptions!$B$6:$D$92,3,FALSE),\"\")","v":""},null,null,null,null,null,null,null,null,null,null,null,null,null,null,"General Fund",{"$f":"IFERROR(VLOOKUP(C843,Descriptions!B:F,5,FALSE),\"N\")","v":"N"},true,"NTRUE",0,null,{"$f":"IFERROR(VLOOKUP(D843,'Bank and Fund Details'!$B$14:$L$35,11,FALSE),\"N\")","v":"Y"},"NY"]
[null,null,null,"General Fund",null,null,null,null,null,{"$f":"VLOOKUP(D844,'Bank and Fund Details'!$B$15:$D$36,3,FALSE)","v":0},{"$f":"VLOOKUP(D844,'Bank and Fund Details'!$B$15:$C$36,2,FALSE)","v":"Unrestricted"},{"$f":"IFERROR(VLOOKUP(C844,Descriptions!$B$6:$D$92,3,FALSE),\"\")","v":""},null,null,null,null,null,null,null,null,null,null,null,null,null,null,"General Fund",{"$f":"IFERROR(VLOOKUP(C844,Descriptions!B:F,5,FALSE),\"N\")","v":"N"},true,"NTRUE",0,null,{"$f":"IFERROR(VLOOKUP(D844,'Bank and Fund Details'!$B$14:$L$35,11,FALSE),\"N\")","v":"Y"},"NY"]
[null,null,null,"General Fund",null,null,null,null,null,{"$f":"VLOOKUP(D845,'Bank and Fund Details'!$B$15:$D$36,3,FALSE)","v":0},{"$f":"VLOOKUP(D845,'Bank and Fund Details'!$B$15:$C$36,2,FALSE)","v":"Unrestricted"},{"$f":"IFERROR(VLOOKUP(C845,Descriptions!$B$6:$D$92,3,FALSE),\"\")","v":""},null,null,null,null,null,null,null,null,null,null,null,null,null,null,"General Fund",{"$f":"IFERROR(VLOOKUP(C845,Descriptions!B:F,5,FALSE),\"N\")","v":"N"},true,"NTRUE",0,null,{"$f":"IFERROR(VLOOKUP(D845,'Bank and Fund Details'!$B$14:$L$35,11,FALSE),\"N\")","v":"Y"},"NY"]
[null,null,null,"General Fund",null,null,null,null,null,{"$f":"VLOOKUP(D846,'Bank and Fund Details'!$B$15:$D$36,3,FALSE)","v":0},{"$f":"VLOOKUP(D846,'Bank and Fund Details'!$B$15:$C$36,2,FALSE)","v":"Unrestricted"},{"$f":"IFERROR(VLOOKUP(C846,Descriptions!$B$6:$D$92,3,FALSE),\"\")","v":""},null,null,null,null,null,null,null,null,null,null,null,null,null,null,"General Fund",{"$f":"IFERROR(VLOOKUP(C846,Descriptions!B:F,5,FALSE),\"N\")","v":"N"},true,"NTRUE",0,null,{"$f":"IFERROR(VLOOKUP(D846,'Bank and Fund Details'!$B$14:$L$35,11,FALSE),\"N\")","v":"Y"},"NY"]
[null,null,null,"General Fund",null,null,null,null,null,{"$f":"VLOOKUP(D847,'Bank and Fund Details'!$B$15:$D$36,3,FALSE)","v":0},{"$f":"VLOOKUP(D847,'Bank and Fund Details'!$B$15:$C$36,2,FALSE)","v":"Unrestricted"},{"$f":"IFERROR(VLOOKUP(C847,Descriptions!$B$6:$D$92,3,FALSE),\"\")","v":""},null,null,null,null,null,null,null,null,null,null,null,null,null,null,"General Fund",{"$f":"IFERROR(VLOOKUP(C847,Descriptions!B:F,5,FALSE),\"N\")","v":"N"},true,"NTRUE",0,null,{"$f":"IFERROR(VLOOKUP(D847,'Bank and Fund Details'!$B$14:$L$35,11,FALSE),\"N\")","v":"Y"},"NY"]
[null,null,null,"General Fund",null,null,null,null,null,{"$f":"VLOOKUP(D848,'Bank and Fund Details'!$B$15:$D$36,3,FALSE)","v":0},{"$f":"VLOOKUP(D848,'Bank and Fund Details'!$B$15:$C$36,2,FALSE)","v":"Unrestricted"},{"$f":"IFERROR(VLOOKUP(C848,Descriptions!$B$6:$D$92,3,FALSE),\"\")","v":""},null,null,null,null,null,null,null,null,null,null,null,null,null,null,"General Fund",{"$f":"IFERROR(VLOOKUP(C848,Descriptions!B:F,5,FALSE),\"N\")","v":"N"},true,"NTRUE",0,null,{"$f":"IFERROR(VLOOKUP(D848,'Bank and Fund Details'!$B$14:$L$35,11,FALSE),\"N\")","v":"Y"},"NY"]
[null,null,null,"General Fund",null,null,null,null,null,{"$f":"VLOOKUP(D849,'Bank and Fund Details'!$B$15:$D$36,3,FALSE)","v":0},{"$f":"VLOOKUP(D849,'Bank and Fund Details'!$B$15:$C$36,2,FALSE)","v":"Unrestricted"},{"$f":"IFERROR(VLOOKUP(C849,Descriptions!$B$6:$D$92,3,FALSE),\"\")","v":""},null,null,null,null,null,null,null,null,null,null,null,null,null,null,"General Fund",{"$f":"IFERROR(VLOOKUP(C849,Descriptions!B:F,5,FALSE),\"N\")","v":"N"},true,"NTRUE",0,null,{"$f":"IFERROR(VLOOKUP(D849,'Bank and Fund Details'!$B$14:$L$35,11,FALSE),\"N\")","v":"Y"},"NY"]
[null,null,null,"General Fund",null,null,null,null,null,{"$f":"VLOOKUP(D850,'Bank and Fund Details'!$B$15:$D$36,3,FALSE)","v":0},{"$f":"VLOOKUP(D850,'Bank and Fund Details'!$B$15:$C$36,2,FALSE)","v":"Unrestricted"},{"$f":"IFERROR(VLOOKUP(C850,Descriptions!$B$6:$D$92,3,FALSE),\"\")","v":""},null,null,null,null,null,null,null,null,null,null,null,null,null,null,"General Fund",{"$f":"IFERROR(VLOOKUP(C850,Descriptions!B:F,5,FALSE),\"N\")","v":"N"},true,"NTRUE",0,null,{"$f":"IFERROR(VLOOKUP(D850,'Bank and Fund Details'!$B$14:$L$35,11,FALSE),\"N\")","v":"Y"},"NY"]
[null,null,null,"General Fund",null,null,null,null,null,{"$f":"VLOOKUP(D851,'Bank and Fund Details'!$B$15:$D$36,3,FALSE)","v":0},{"$f":"VLOOKUP(D851,'Bank and Fund Details'!$B$15:$C$36,2,FALSE)","v":"Unrestricted"},{"$f":"IFERROR(VLOOKUP(C851,Descriptions!$B$6:$D$92,3,FALSE),\"\")","v":""},null,null,null,null,null,null,null,null,null,null,null,null,null,null,"General Fund",{"$f":"IFERROR(VLOOKUP(C851,Descriptions!B:F,5,FALSE),\"N\")","v":"N"},true,"NTRUE",0,null,{"$f":"IFERROR(VLOOKUP(D851,'Bank and Fund Details'!$B$14:$L$35,11,FALSE),\"N\")","v":"Y"},"NY"]
[null,null,null,"General Fund",null,null,null,null,null,{"$f":"VLOOKUP(D852,'Bank and Fund Details'!$B$15:$D$36,3,FALSE)","v":0},{"$f":"VLOOKUP(D852,'Bank and Fund Details'!$B$15:$C$36,2,FALSE)","v":"Unrestricted"},{"$f":"IFERROR(VLOOKUP(C852,Descriptions!$B$6:$D$92,3,FALSE),\"\")","v":""},null,null,null,null,null,null,null,null,null,null,null,null,null,null,"General Fund",{"$f":"IFERROR(VLOOKUP(C852,Descriptions!B:F,5,FALSE),\"N\")","v":"N"},true,"NTRUE",0,null,{"$f":"IFERROR(VLOOKUP(D852,'Bank and Fund Details'!$B$14:$L$35,11,FALSE),\"N\")","v":"Y"},"NY"]
[null,null,null,"General Fund",null,null,null,null,null,{"$f":"VLOOKUP(D853,'Bank and Fund Details'!$B$15:$D$36,3,FALSE)","v":0},{"$f":"VLOOKUP(D853,'Bank and Fund Details'!$B$15:$C$36,2,FALSE)","v":"Unrestricted"},{"$f":"IFERROR(VLOOKUP(C853,Descriptions!$B$6:$D$92,3,FALSE),\"\")","v":""},null,null,null,null,null,null,null,null,null,null,null,null,null,null,"General Fund",{"$f":"IFERROR(VLOOKUP(C853,Descriptions!B:F,5,FALSE),\"N\")","v":"N"},true,"NTRUE",0,null,{"$f":"IFERROR(VLOOKUP(D853,'Bank and Fund Details'!$B$14:$L$35,11,FALSE),\"N\")","v":"Y"},"NY"]
[null,null,null,"General Fund",null,null,null,null,null,{"$f":"VLOOKUP(D854,'Bank and Fund Details'!$B$15:$D$36,3,FALSE)","v":0},{"$f":"VLOOKUP(D854,'Bank and Fund Details'!$B$15:$C$36,2,FALSE)","v":"Unrestricted"},{"$f":"IFERROR(VLOOKUP(C854,Descriptions!$B$6:$D$92,3,FALSE),\"\")","v":""},null,null,null,null,null,null,null,null,null,null,null,null,null,null,"General Fund",{"$f":"IFERROR(VLOOKUP(C854,Descriptions!B:F,5,FALSE),\"N\")","v":"N"},true,"NTRUE",0,null,{"$f":"IFERROR(VLOOKUP(D854,'Bank and Fund Details'!$B$14:$L$35,11,FALSE),\"N\")","v":"Y"},"NY"]
[null,null,null,"General Fund",null,null,null,null,null,{"$f":"VLOOKUP(D855,'Bank and Fund Details'!$B$15:$D$36,3,FALSE)","v":0},{"$f":"VLOOKUP(D855,'Bank and Fund Details'!$B$15:$C$36,2,FALSE)","v":"Unrestricted"},{"$f":"IFERROR(VLOOKUP(C855,Descriptions!$B$6:$D$92,3,FALSE),\"\")","v":""},null,null,null,null,null,null,null,null,null,null,null,null,null,null,"General Fund",{"$f":"IFERROR(VLOOKUP(C855,Descriptions!B:F,5,FALSE),\"N\")","v":"N"},true,"NTRUE",0,null,{"$f":"IFERROR(VLOOKUP(D855,'Bank and Fund Details'!$B$14:$L$35,11,FALSE),\"N\")","v":"Y"},"NY"]
[null,null,null,"General Fund",null,null,null,null,null,{"$f":"VLOOKUP(D856,'Bank and Fund Details'!$B$15:$D$36,3,FALSE)","v":0},{"$f":"VLOOKUP(D856,'Bank and Fund Details'!$B$15:$C$36,2,FALSE)","v":"Unrestricted"},{"$f":"IFERROR(VLOOKUP(C856,Descriptions!$B$6:$D$92,3,FALSE),\"\")","v":""},null,null,null,null,null,null,null,null,null,null,null,null,null,null,"General Fund",{"$f":"IFERROR(VLOOKUP(C856,Descriptions!B:F,5,FALSE),\"N\")","v":"N"},true,"NTRUE",0,null,{"$f":"IFERROR(VLOOKUP(D856,'Bank and Fund Details'!$B$14:$L$35,11,FALSE),\"N\")","v":"Y"},"NY"]
[null,null,null,"General Fund",null,null,null,null,null,{"$f":"VLOOKUP(D857,'Bank and Fund Details'!$B$15:$D$36,3,FALSE)","v":0},{"$f":"VLOOKUP(D857,'Bank and Fund Details'!$B$15:$C$36,2,FALSE)","v":"Unrestricted"},{"$f":"IFERROR(VLOOKUP(C857,Descriptions!$B$6:$D$92,3,FALSE),\"\")","v":""},null,null,null,null,null,null,null,null,null,null,null,null,null,null,"General Fund",{"$f":"IFERROR(VLOOKUP(C857,Descriptions!B:F,5,FALSE),\"N\")","v":"N"},true,"NTRUE",0,null,{"$f":"IFERROR(VLOOKUP(D857,'Bank and Fund Details'!$B$14:$L$35,11,FALSE),\"N\")","v":"Y"},"NY"]
[null,null,null,"General Fund",null,null,null,null,null,{"$f":"VLOOKUP(D858,'Bank and Fund Details'!$B$15:$D$36,3,FALSE)","v":0},{"$f":"VLOOKUP(D858,'Bank and Fund Details'!$B$15:$C$36,2,FALSE)","v":"Unrestricted"},{"$f":"IFERROR(VLOOKUP(C858,Descriptions!$B$6:$D$92,3,FALSE),\"\")","v":""},null,null,null,null,null,null,null,null,null,null,null,null,null,null,"General Fund",{"$f":"IFERROR(VLOOKUP(C858,Descriptions!B:F,5,FALSE),\"N\")","v":"N"},true,"NTRUE",0,null,{"$f":"IFERROR(VLOOKUP(D858,'Bank and Fund Details'!$B$14:$L$35,11,FALSE),\"N\")","v":"Y"},"NY"]
[null,null,null,"General Fund",null,null,null,null,null,{"$f":"VLOOKUP(D859,'Bank and Fund Details'!$B$15:$D$36,3,FALSE)","v":0},{"$f":"VLOOKUP(D859,'Bank and Fund Details'!$B$15:$C$36,2,FALSE)","v":"Unrestricted"},{"$f":"IFERROR(VLOOKUP(C859,Descriptions!$B$6:$D$92,3,FALSE),\"\")","v":""},null,null,null,null,null,null,null,null,null,null,null,null,null,null,"General Fund",{"$f":"IFERROR(VLOOKUP(C859,Descriptions!B:F,5,FALSE),\"N\")","v":"N"},true,"NTRUE",0,null,{"$f":"IFERROR(VLOOKUP(D859,'Bank and Fund Details'!$B$14:$L$35,11,FALSE),\"N\")","v":"Y"},"NY"]
[null,null,null,"General Fund",null,null,null,null,null,{"$f":"VLOOKUP(D860,'Bank and Fund Details'!$B$15:$D$36,3,FALSE)","v":0},{"$f":"VLOOKUP(D860,'Bank and Fund Details'!$B$15:$C$36,2,FALSE)","v":"Unrestricted"},{"$f":"IFERROR(VLOOKUP(C860,Descriptions!$B$6:$D$92,3,FALSE),\"\")","v":""},null,null,null,null,null,null,null,null,null,null,null,null,null,null,"General Fund",{"$f":"IFERROR(VLOOKUP(C860,Descriptions!B:F,5,FALSE),\"N\")","v":"N"},true,"NTRUE",0,null,{"$f":"IFERROR(VLOOKUP(D860,'Bank and Fund Details'!$B$14:$L$35,11,FALSE),\"N\")","v":"Y"},"NY"]
[null,null,null,"General Fund",null,null,null,null,null,{"$f":"VLOOKUP(D861,'Bank and Fund Details'!$B$15:$D$36,3,FALSE)","v":0},{"$f":"VLOOKUP(D861,'Bank and Fund Details'!$B$15:$C$36,2,FALSE)","v":"Unrestricted"},{"$f":"IFERROR(VLOOKUP(C861,Descriptions!$B$6:$D$92,3,FALSE),\"\")","v":""},null,null,null,null,null,null,null,null,null,null,null,null,null,null,"General Fund",{"$f":"IFERROR(VLOOKUP(C861,Descriptions!B:F,5,FALSE),\"N\")","v":"N"},true,"NTRUE",0,null,{"$f":"IFERROR(VLOOKUP(D861,'Bank and Fund Details'!$B$14:$L$35,11,FALSE),\"N\")","v":"Y"},"NY"]
[null,null,null,"General Fund",null,null,null,null,null,{"$f":"VLOOKUP(D862,'Bank and Fund Details'!$B$15:$D$36,3,FALSE)","v":0},{"$f":"VLOOKUP(D862,'Bank and Fund Details'!$B$15:$C$36,2,FALSE)","v":"Unrestricted"},{"$f":"IFERROR(VLOOKUP(C862,Descriptions!$B$6:$D$92,3,FALSE),\"\")","v":""},null,null,null,null,null,null,null,null,null,null,null,null,null,null,"General Fund",{"$f":"IFERROR(VLOOKUP(C862,Descriptions!B:F,5,FALSE),\"N\")","v":"N"},true,"NTRUE",0,null,{"$f":"IFERROR(VLOOKUP(D862,'Bank and Fund Details'!$B$14:$L$35,11,FALSE),\"N\")","v":"Y"},"NY"]
[null,null,null,"General Fund",null,null,null,null,null,{"$f":"VLOOKUP(D863,'Bank and Fund Details'!$B$15:$D$36,3,FALSE)","v":0},{"$f":"VLOOKUP(D863,'Bank and Fund Details'!$B$15:$C$36,2,FALSE)","v":"Unrestricted"},{"$f":"IFERROR(VLOOKUP(C863,Descriptions!$B$6:$D$92,3,FALSE),\"\")","v":""},null,null,null,null,null,null,null,null,null,null,null,null,null,null,"General Fund",{"$f":"IFERROR(VLOOKUP(C863,Descriptions!B:F,5,FALSE),\"N\")","v":"N"},true,"NTRUE",0,null,{"$f":"IFERROR(VLOOKUP(D863,'Bank and Fund Details'!$B$14:$L$35,11,FALSE),\"N\")","v":"Y"},"NY"]
[null,null,null,"General Fund",null,null,null,null,null,{"$f":"VLOOKUP(D864,'Bank and Fund Details'!$B$15:$D$36,3,FALSE)","v":0},{"$f":"VLOOKUP(D864,'Bank and Fund Details'!$B$15:$C$36,2,FALSE)","v":"Unrestricted"},{"$f":"IFERROR(VLOOKUP(C864,Descriptions!$B$6:$D$92,3,FALSE),\"\")","v":""},null,null,null,null,null,null,null,null,null,null,null,null,null,null,"General Fund",{"$f":"IFERROR(VLOOKUP(C864,Descriptions!B:F,5,FALSE),\"N\")","v":"N"},true,"NTRUE",0,null,{"$f":"IFERROR(VLOOKUP(D864,'Bank and Fund Details'!$B$14:$L$35,11,FALSE),\"N\")","v":"Y"},"NY"]
[null,null,null,"General Fund",null,null,null,null,null,{"$f":"VLOOKUP(D865,'Bank and Fund Details'!$B$15:$D$36,3,FALSE)","v":0},{"$f":"VLOOKUP(D865,'Bank and Fund Details'!$B$15:$C$36,2,FALSE)","v":"Unrestricted"},{"$f":"IFERROR(VLOOKUP(C865,Descriptions!$B$6:$D$92,3,FALSE),\"\")","v":""},null,null,null,null,null,null,null,null,null,null,null,null,null,null,"General Fund",{"$f":"IFERROR(VLOOKUP(C865,Descriptions!B:F,5,FALSE),\"N\")","v":"N"},true,"NTRUE",0,null,{"$f":"IFERROR(VLOOKUP(D865,'Bank and Fund Details'!$B$14:$L$35,11,FALSE),\"N\")","v":"Y"},"NY"]
[null,null,null,"General Fund",null,null,null,null,null,{"$f":"VLOOKUP(D866,'Bank and Fund Details'!$B$15:$D$36,3,FALSE)","v":0},{"$f":"VLOOKUP(D866,'Bank and Fund Details'!$B$15:$C$36,2,FALSE)","v":"Unrestricted"},{"$f":"IFERROR(VLOOKUP(C866,Descriptions!$B$6:$D$92,3,FALSE),\"\")","v":""},null,null,null,null,null,null,null,null,null,null,null,null,null,null,"General Fund",{"$f":"IFERROR(VLOOKUP(C866,Descriptions!B:F,5,FALSE),\"N\")","v":"N"},true,"NTRUE",0,null,{"$f":"IFERROR(VLOOKUP(D866,'Bank and Fund Details'!$B$14:$L$35,11,FALSE),\"N\")","v":"Y"},"NY"]
[null,null,null,"General Fund",null,null,null,null,null,{"$f":"VLOOKUP(D867,'Bank and Fund Details'!$B$15:$D$36,3,FALSE)","v":0},{"$f":"VLOOKUP(D867,'Bank and Fund Details'!$B$15:$C$36,2,FALSE)","v":"Unrestricted"},{"$f":"IFERROR(VLOOKUP(C867,Descriptions!$B$6:$D$92,3,FALSE),\"\")","v":""},null,null,null,null,null,null,null,null,null,null,null,null,null,null,"General Fund",{"$f":"IFERROR(VLOOKUP(C867,Descriptions!B:F,5,FALSE),\"N\")","v":"N"},true,"NTRUE",0,null,{"$f":"IFERROR(VLOOKUP(D867,'Bank and Fund Details'!$B$14:$L$35,11,FALSE),\"N\")","v":"Y"},"NY"]
[null,null,null,"General Fund",null,null,null,null,null,{"$f":"VLOOKUP(D868,'Bank and Fund Details'!$B$15:$D$36,3,FALSE)","v":0},{"$f":"VLOOKUP(D868,'Bank and Fund Details'!$B$15:$C$36,2,FALSE)","v":"Unrestricted"},{"$f":"IFERROR(VLOOKUP(C868,Descriptions!$B$6:$D$92,3,FALSE),\"\")","v":""},null,null,null,null,null,null,null,null,null,null,null,null,null,null,"General Fund",{"$f":"IFERROR(VLOOKUP(C868,Descriptions!B:F,5,FALSE),\"N\")","v":"N"},true,"NTRUE",0,null,{"$f":"IFERROR(VLOOKUP(D868,'Bank and Fund Details'!$B$14:$L$35,11,FALSE),\"N\")","v":"Y"},"NY"]
[null,null,null,"General Fund",null,null,null,null,null,{"$f":"VLOOKUP(D869,'Bank and Fund Details'!$B$15:$D$36,3,FALSE)","v":0},{"$f":"VLOOKUP(D869,'Bank and Fund Details'!$B$15:$C$36,2,FALSE)","v":"Unrestricted"},{"$f":"IFERROR(VLOOKUP(C869,Descriptions!$B$6:$D$92,3,FALSE),\"\")","v":""},null,null,null,null,null,null,null,null,null,null,null,null,null,null,"General Fund",{"$f":"IFERROR(VLOOKUP(C869,Descriptions!B:F,5,FALSE),\"N\")","v":"N"},true,"NTRUE",0,null,{"$f":"IFERROR(VLOOKUP(D869,'Bank and Fund Details'!$B$14:$L$35,11,FALSE),\"N\")","v":"Y"},"NY"]
[null,null,null,"General Fund",null,null,null,null,null,{"$f":"VLOOKUP(D870,'Bank and Fund Details'!$B$15:$D$36,3,FALSE)","v":0},{"$f":"VLOOKUP(D870,'Bank and Fund Details'!$B$15:$C$36,2,FALSE)","v":"Unrestricted"},{"$f":"IFERROR(VLOOKUP(C870,Descriptions!$B$6:$D$92,3,FALSE),\"\")","v":""},null,null,null,null,null,null,null,null,null,null,null,null,null,null,"General Fund",{"$f":"IFERROR(VLOOKUP(C870,Descriptions!B:F,5,FALSE),\"N\")","v":"N"},true,"NTRUE",0,null,{"$f":"IFERROR(VLOOKUP(D870,'Bank and Fund Details'!$B$14:$L$35,11,FALSE),\"N\")","v":"Y"},"NY"]
[null,null,null,"General Fund",null,null,null,null,null,{"$f":"VLOOKUP(D871,'Bank and Fund Details'!$B$15:$D$36,3,FALSE)","v":0},{"$f":"VLOOKUP(D871,'Bank and Fund Details'!$B$15:$C$36,2,FALSE)","v":"Unrestricted"},{"$f":"IFERROR(VLOOKUP(C871,Descriptions!$B$6:$D$92,3,FALSE),\"\")","v":""},null,null,null,null,null,null,null,null,null,null,null,null,null,null,"General Fund",{"$f":"IFERROR(VLOOKUP(C871,Descriptions!B:F,5,FALSE),\"N\")","v":"N"},true,"NTRUE",0,null,{"$f":"IFERROR(VLOOKUP(D871,'Bank and Fund Details'!$B$14:$L$35,11,FALSE),\"N\")","v":"Y"},"NY"]
[null,null,null,"General Fund",null,null,null,null,null,{"$f":"VLOOKUP(D872,'Bank and Fund Details'!$B$15:$D$36,3,FALSE)","v":0},{"$f":"VLOOKUP(D872,'Bank and Fund Details'!$B$15:$C$36,2,FALSE)","v":"Unrestricted"},{"$f":"IFERROR(VLOOKUP(C872,Descriptions!$B$6:$D$92,3,FALSE),\"\")","v":""},null,null,null,null,null,null,null,null,null,null,null,null,null,null,"General Fund",{"$f":"IFERROR(VLOOKUP(C872,Descriptions!B:F,5,FALSE),\"N\")","v":"N"},true,"NTRUE",0,null,{"$f":"IFERROR(VLOOKUP(D872,'Bank and Fund Details'!$B$14:$L$35,11,FALSE),\"N\")","v":"Y"},"NY"]
[null,null,null,"General Fund",null,null,null,null,null,{"$f":"VLOOKUP(D873,'Bank and Fund Details'!$B$15:$D$36,3,FALSE)","v":0},{"$f":"VLOOKUP(D873,'Bank and Fund Details'!$B$15:$C$36,2,FALSE)","v":"Unrestricted"},{"$f":"IFERROR(VLOOKUP(C873,Descriptions!$B$6:$D$92,3,FALSE),\"\")","v":""},null,null,null,null,null,null,null,null,null,null,null,null,null,null,"General Fund",{"$f":"IFERROR(VLOOKUP(C873,Descriptions!B:F,5,FALSE),\"N\")","v":"N"},true,"NTRUE",0,null,{"$f":"IFERROR(VLOOKUP(D873,'Bank and Fund Details'!$B$14:$L$35,11,FALSE),\"N\")","v":"Y"},"NY"]
[null,null,null,"General Fund",null,null,null,null,null,{"$f":"VLOOKUP(D874,'Bank and Fund Details'!$B$15:$D$36,3,FALSE)","v":0},{"$f":"VLOOKUP(D874,'Bank and Fund Details'!$B$15:$C$36,2,FALSE)","v":"Unrestricted"},{"$f":"IFERROR(VLOOKUP(C874,Descriptions!$B$6:$D$92,3,FALSE),\"\")","v":""},null,null,null,null,null,null,null,null,null,null,null,null,null,null,"General Fund",{"$f":"IFERROR(VLOOKUP(C874,Descriptions!B:F,5,FALSE),\"N\")","v":"N"},true,"NTRUE",0,null,{"$f":"IFERROR(VLOOKUP(D874,'Bank and Fund Details'!$B$14:$L$35,11,FALSE),\"N\")","v":"Y"},"NY"]
[null,null,null,"General Fund",null,null,null,null,null,{"$f":"VLOOKUP(D875,'Bank and Fund Details'!$B$15:$D$36,3,FALSE)","v":0},{"$f":"VLOOKUP(D875,'Bank and Fund Details'!$B$15:$C$36,2,FALSE)","v":"Unrestricted"},{"$f":"IFERROR(VLOOKUP(C875,Descriptions!$B$6:$D$92,3,FALSE),\"\")","v":""},null,null,null,null,null,null,null,null,null,null,null,null,null,null,"General Fund",{"$f":"IFERROR(VLOOKUP(C875,Descriptions!B:F,5,FALSE),\"N\")","v":"N"},true,"NTRUE",0,null,{"$f":"IFERROR(VLOOKUP(D875,'Bank and Fund Details'!$B$14:$L$35,11,FALSE),\"N\")","v":"Y"},"NY"]
[null,null,null,"General Fund",null,null,null,null,null,{"$f":"VLOOKUP(D876,'Bank and Fund Details'!$B$15:$D$36,3,FALSE)","v":0},{"$f":"VLOOKUP(D876,'Bank and Fund Details'!$B$15:$C$36,2,FALSE)","v":"Unrestricted"},{"$f":"IFERROR(VLOOKUP(C876,Descriptions!$B$6:$D$92,3,FALSE),\"\")","v":""},null,null,null,null,null,null,null,null,null,null,null,null,null,null,"General Fund",{"$f":"IFERROR(VLOOKUP(C876,Descriptions!B:F,5,FALSE),\"N\")","v":"N"},true,"NTRUE",0,null,{"$f":"IFERROR(VLOOKUP(D876,'Bank and Fund Details'!$B$14:$L$35,11,FALSE),\"N\")","v":"Y"},"NY"]
[null,null,null,"General Fund",null,null,null,null,null,{"$f":"VLOOKUP(D877,'Bank and Fund Details'!$B$15:$D$36,3,FALSE)","v":0},{"$f":"VLOOKUP(D877,'Bank and Fund Details'!$B$15:$C$36,2,FALSE)","v":"Unrestricted"},{"$f":"IFERROR(VLOOKUP(C877,Descriptions!$B$6:$D$92,3,FALSE),\"\")","v":""},null,null,null,null,null,null,null,null,null,null,null,null,null,null,"General Fund",{"$f":"IFERROR(VLOOKUP(C877,Descriptions!B:F,5,FALSE),\"N\")","v":"N"},true,"NTRUE",0,null,{"$f":"IFERROR(VLOOKUP(D877,'Bank and Fund Details'!$B$14:$L$35,11,FALSE),\"N\")","v":"Y"},"NY"]
[null,null,null,"General Fund",null,null,null,null,null,{"$f":"VLOOKUP(D878,'Bank and Fund Details'!$B$15:$D$36,3,FALSE)","v":0},{"$f":"VLOOKUP(D878,'Bank and Fund Details'!$B$15:$C$36,2,FALSE)","v":"Unrestricted"},{"$f":"IFERROR(VLOOKUP(C878,Descriptions!$B$6:$D$92,3,FALSE),\"\")","v":""},null,null,null,null,null,null,null,null,null,null,null,null,null,null,"General Fund",{"$f":"IFERROR(VLOOKUP(C878,Descriptions!B:F,5,FALSE),\"N\")","v":"N"},true,"NTRUE",0,null,{"$f":"IFERROR(VLOOKUP(D878,'Bank and Fund Details'!$B$14:$L$35,11,FALSE),\"N\")","v":"Y"},"NY"]
[null,null,null,"General Fund",null,null,null,null,null,{"$f":"VLOOKUP(D879,'Bank and Fund Details'!$B$15:$D$36,3,FALSE)","v":0},{"$f":"VLOOKUP(D879,'Bank and Fund Details'!$B$15:$C$36,2,FALSE)","v":"Unrestricted"},{"$f":"IFERROR(VLOOKUP(C879,Descriptions!$B$6:$D$92,3,FALSE),\"\")","v":""},null,null,null,null,null,null,null,null,null,null,null,null,null,null,"General Fund",{"$f":"IFERROR(VLOOKUP(C879,Descriptions!B:F,5,FALSE),\"N\")","v":"N"},true,"NTRUE",0,null,{"$f":"IFERROR(VLOOKUP(D879,'Bank and Fund Details'!$B$14:$L$35,11,FALSE),\"N\")","v":"Y"},"NY"]
[null,null,null,"General Fund",null,null,null,null,null,{"$f":"VLOOKUP(D880,'Bank and Fund Details'!$B$15:$D$36,3,FALSE)","v":0},{"$f":"VLOOKUP(D880,'Bank and Fund Details'!$B$15:$C$36,2,FALSE)","v":"Unrestricted"},{"$f":"IFERROR(VLOOKUP(C880,Descriptions!$B$6:$D$92,3,FALSE),\"\")","v":""},null,null,null,null,null,null,null,null,null,null,null,null,null,null,"General Fund",{"$f":"IFERROR(VLOOKUP(C880,Descriptions!B:F,5,FALSE),\"N\")","v":"N"},true,"NTRUE",0,null,{"$f":"IFERROR(VLOOKUP(D880,'Bank and Fund Details'!$B$14:$L$35,11,FALSE),\"N\")","v":"Y"},"NY"]
[null,null,null,"General Fund",null,null,null,null,null,{"$f":"VLOOKUP(D881,'Bank and Fund Details'!$B$15:$D$36,3,FALSE)","v":0},{"$f":"VLOOKUP(D881,'Bank and Fund Details'!$B$15:$C$36,2,FALSE)","v":"Unrestricted"},{"$f":"IFERROR(VLOOKUP(C881,Descriptions!$B$6:$D$92,3,FALSE),\"\")","v":""},null,null,null,null,null,null,null,null,null,null,null,null,null,null,"General Fund",{"$f":"IFERROR(VLOOKUP(C881,Descriptions!B:F,5,FALSE),\"N\")","v":"N"},true,"NTRUE",0,null,{"$f":"IFERROR(VLOOKUP(D881,'Bank and Fund Details'!$B$14:$L$35,11,FALSE),\"N\")","v":"Y"},"NY"]
[null,null,null,"General Fund",null,null,null,null,null,{"$f":"VLOOKUP(D882,'Bank and Fund Details'!$B$15:$D$36,3,FALSE)","v":0},{"$f":"VLOOKUP(D882,'Bank and Fund Details'!$B$15:$C$36,2,FALSE)","v":"Unrestricted"},{"$f":"IFERROR(VLOOKUP(C882,Descriptions!$B$6:$D$92,3,FALSE),\"\")","v":""},null,null,null,null,null,null,null,null,null,null,null,null,null,null,"General Fund",{"$f":"IFERROR(VLOOKUP(C882,Descriptions!B:F,5,FALSE),\"N\")","v":"N"},true,"NTRUE",0,null,{"$f":"IFERROR(VLOOKUP(D882,'Bank and Fund Details'!$B$14:$L$35,11,FALSE),\"N\")","v":"Y"},"NY"]
[null,null,null,"General Fund",null,null,null,null,null,{"$f":"VLOOKUP(D883,'Bank and Fund Details'!$B$15:$D$36,3,FALSE)","v":0},{"$f":"VLOOKUP(D883,'Bank and Fund Details'!$B$15:$C$36,2,FALSE)","v":"Unrestricted"},{"$f":"IFERROR(VLOOKUP(C883,Descriptions!$B$6:$D$92,3,FALSE),\"\")","v":""},null,null,null,null,null,null,null,null,null,null,null,null,null,null,"General Fund",{"$f":"IFERROR(VLOOKUP(C883,Descriptions!B:F,5,FALSE),\"N\")","v":"N"},true,"NTRUE",0,null,{"$f":"IFERROR(VLOOKUP(D883,'Bank and Fund Details'!$B$14:$L$35,11,FALSE),\"N\")","v":"Y"},"NY"]
[null,null,null,"General Fund",null,null,null,null,null,{"$f":"VLOOKUP(D884,'Bank and Fund Details'!$B$15:$D$36,3,FALSE)","v":0},{"$f":"VLOOKUP(D884,'Bank and Fund Details'!$B$15:$C$36,2,FALSE)","v":"Unrestricted"},{"$f":"IFERROR(VLOOKUP(C884,Descriptions!$B$6:$D$92,3,FALSE),\"\")","v":""},null,null,null,null,null,null,null,null,null,null,null,null,null,null,"General Fund",{"$f":"IFERROR(VLOOKUP(C884,Descriptions!B:F,5,FALSE),\"N\")","v":"N"},true,"NTRUE",0,null,{"$f":"IFERROR(VLOOKUP(D884,'Bank and Fund Details'!$B$14:$L$35,11,FALSE),\"N\")","v":"Y"},"NY"]
[null,null,null,"General Fund",null,null,null,null,null,{"$f":"VLOOKUP(D885,'Bank and Fund Details'!$B$15:$D$36,3,FALSE)","v":0},{"$f":"VLOOKUP(D885,'Bank and Fund Details'!$B$15:$C$36,2,FALSE)","v":"Unrestricted"},{"$f":"IFERROR(VLOOKUP(C885,Descriptions!$B$6:$D$92,3,FALSE),\"\")","v":""},null,null,null,null,null,null,null,null,null,null,null,null,null,null,"General Fund",{"$f":"IFERROR(VLOOKUP(C885,Descriptions!B:F,5,FALSE),\"N\")","v":"N"},true,"NTRUE",0,null,{"$f":"IFERROR(VLOOKUP(D885,'Bank and Fund Details'!$B$14:$L$35,11,FALSE),\"N\")","v":"Y"},"NY"]
[null,null,null,"General Fund",null,null,null,null,null,{"$f":"VLOOKUP(D886,'Bank and Fund Details'!$B$15:$D$36,3,FALSE)","v":0},{"$f":"VLOOKUP(D886,'Bank and Fund Details'!$B$15:$C$36,2,FALSE)","v":"Unrestricted"},{"$f":"IFERROR(VLOOKUP(C886,Descriptions!$B$6:$D$92,3,FALSE),\"\")","v":""},null,null,null,null,null,null,null,null,null,null,null,null,null,null,"General Fund",{"$f":"IFERROR(VLOOKUP(C886,Descriptions!B:F,5,FALSE),\"N\")","v":"N"},true,"NTRUE",0,null,{"$f":"IFERROR(VLOOKUP(D886,'Bank and Fund Details'!$B$14:$L$35,11,FALSE),\"N\")","v":"Y"},"NY"]
[null,null,null,"General Fund",null,null,null,null,null,{"$f":"VLOOKUP(D887,'Bank and Fund Details'!$B$15:$D$36,3,FALSE)","v":0},{"$f":"VLOOKUP(D887,'Bank and Fund Details'!$B$15:$C$36,2,FALSE)","v":"Unrestricted"},{"$f":"IFERROR(VLOOKUP(C887,Descriptions!$B$6:$D$92,3,FALSE),\"\")","v":""},null,null,null,null,null,null,null,null,null,null,null,null,null,null,"General Fund",{"$f":"IFERROR(VLOOKUP(C887,Descriptions!B:F,5,FALSE),\"N\")","v":"N"},true,"NTRUE",0,null,{"$f":"IFERROR(VLOOKUP(D887,'Bank and Fund Details'!$B$14:$L$35,11,FALSE),\"N\")","v":"Y"},"NY"]
[null,null,null,"General Fund",null,null,null,null,null,{"$f":"VLOOKUP(D888,'Bank and Fund Details'!$B$15:$D$36,3,FALSE)","v":0},{"$f":"VLOOKUP(D888,'Bank and Fund Details'!$B$15:$C$36,2,FALSE)","v":"Unrestricted"},{"$f":"IFERROR(VLOOKUP(C888,Descriptions!$B$6:$D$92,3,FALSE),\"\")","v":""},null,null,null,null,null,null,null,null,null,null,null,null,null,null,"General Fund",{"$f":"IFERROR(VLOOKUP(C888,Descriptions!B:F,5,FALSE),\"N\")","v":"N"},true,"NTRUE",0,null,{"$f":"IFERROR(VLOOKUP(D888,'Bank and Fund Details'!$B$14:$L$35,11,FALSE),\"N\")","v":"Y"},"NY"]
[null,null,null,"General Fund",null,null,null,null,null,{"$f":"VLOOKUP(D889,'Bank and Fund Details'!$B$15:$D$36,3,FALSE)","v":0},{"$f":"VLOOKUP(D889,'Bank and Fund Details'!$B$15:$C$36,2,FALSE)","v":"Unrestricted"},{"$f":"IFERROR(VLOOKUP(C889,Descriptions!$B$6:$D$92,3,FALSE),\"\")","v":""},null,null,null,null,null,null,null,null,null,null,null,null,null,null,"General Fund",{"$f":"IFERROR(VLOOKUP(C889,Descriptions!B:F,5,FALSE),\"N\")","v":"N"},true,"NTRUE",0,null,{"$f":"IFERROR(VLOOKUP(D889,'Bank and Fund Details'!$B$14:$L$35,11,FALSE),\"N\")","v":"Y"},"NY"]
[null,null,null,"General Fund",null,null,null,null,null,{"$f":"VLOOKUP(D890,'Bank and Fund Details'!$B$15:$D$36,3,FALSE)","v":0},{"$f":"VLOOKUP(D890,'Bank and Fund Details'!$B$15:$C$36,2,FALSE)","v":"Unrestricted"},{"$f":"IFERROR(VLOOKUP(C890,Descriptions!$B$6:$D$92,3,FALSE),\"\")","v":""},null,null,null,null,null,null,null,null,null,null,null,null,null,null,"General Fund",{"$f":"IFERROR(VLOOKUP(C890,Descriptions!B:F,5,FALSE),\"N\")","v":"N"},true,"NTRUE",0,null,{"$f":"IFERROR(VLOOKUP(D890,'Bank and Fund Details'!$B$14:$L$35,11,FALSE),\"N\")","v":"Y"},"NY"]
[null,null,null,"General Fund",null,null,null,null,null,{"$f":"VLOOKUP(D891,'Bank and Fund Details'!$B$15:$D$36,3,FALSE)","v":0},{"$f":"VLOOKUP(D891,'Bank and Fund Details'!$B$15:$C$36,2,FALSE)","v":"Unrestricted"},{"$f":"IFERROR(VLOOKUP(C891,Descriptions!$B$6:$D$92,3,FALSE),\"\")","v":""},null,null,null,null,null,null,null,null,null,null,null,null,null,null,"General Fund",{"$f":"IFERROR(VLOOKUP(C891,Descriptions!B:F,5,FALSE),\"N\")","v":"N"},true,"NTRUE",0,null,{"$f":"IFERROR(VLOOKUP(D891,'Bank and Fund Details'!$B$14:$L$35,11,FALSE),\"N\")","v":"Y"},"NY"]
[null,null,null,"General Fund",null,null,null,null,null,{"$f":"VLOOKUP(D892,'Bank and Fund Details'!$B$15:$D$36,3,FALSE)","v":0},{"$f":"VLOOKUP(D892,'Bank and Fund Details'!$B$15:$C$36,2,FALSE)","v":"Unrestricted"},{"$f":"IFERROR(VLOOKUP(C892,Descriptions!$B$6:$D$92,3,FALSE),\"\")","v":""},null,null,null,null,null,null,null,null,null,null,null,null,null,null,"General Fund",{"$f":"IFERROR(VLOOKUP(C892,Descriptions!B:F,5,FALSE),\"N\")","v":"N"},true,"NTRUE",0,null,{"$f":"IFERROR(VLOOKUP(D892,'Bank and Fund Details'!$B$14:$L$35,11,FALSE),\"N\")","v":"Y"},"NY"]
[null,null,null,"General Fund",null,null,null,null,null,{"$f":"VLOOKUP(D893,'Bank and Fund Details'!$B$15:$D$36,3,FALSE)","v":0},{"$f":"VLOOKUP(D893,'Bank and Fund Details'!$B$15:$C$36,2,FALSE)","v":"Unrestricted"},{"$f":"IFERROR(VLOOKUP(C893,Descriptions!$B$6:$D$92,3,FALSE),\"\")","v":""},null,null,null,null,null,null,null,null,null,null,null,null,null,null,"General Fund",{"$f":"IFERROR(VLOOKUP(C893,Descriptions!B:F,5,FALSE),\"N\")","v":"N"},true,"NTRUE",0,null,{"$f":"IFERROR(VLOOKUP(D893,'Bank and Fund Details'!$B$14:$L$35,11,FALSE),\"N\")","v":"Y"},"NY"]
[null,null,null,"General Fund",null,null,null,null,null,{"$f":"VLOOKUP(D894,'Bank and Fund Details'!$B$15:$D$36,3,FALSE)","v":0},{"$f":"VLOOKUP(D894,'Bank and Fund Details'!$B$15:$C$36,2,FALSE)","v":"Unrestricted"},{"$f":"IFERROR(VLOOKUP(C894,Descriptions!$B$6:$D$92,3,FALSE),\"\")","v":""},null,null,null,null,null,null,null,null,null,null,null,null,null,null,"General Fund",{"$f":"IFERROR(VLOOKUP(C894,Descriptions!B:F,5,FALSE),\"N\")","v":"N"},true,"NTRUE",0,null,{"$f":"IFERROR(VLOOKUP(D894,'Bank and Fund Details'!$B$14:$L$35,11,FALSE),\"N\")","v":"Y"},"NY"]
[null,null,null,"General Fund",null,null,null,null,null,{"$f":"VLOOKUP(D895,'Bank and Fund Details'!$B$15:$D$36,3,FALSE)","v":0},{"$f":"VLOOKUP(D895,'Bank and Fund Details'!$B$15:$C$36,2,FALSE)","v":"Unrestricted"},{"$f":"IFERROR(VLOOKUP(C895,Descriptions!$B$6:$D$92,3,FALSE),\"\")","v":""},null,null,null,null,null,null,null,null,null,null,null,null,null,null,"General Fund",{"$f":"IFERROR(VLOOKUP(C895,Descriptions!B:F,5,FALSE),\"N\")","v":"N"},true,"NTRUE",0,null,{"$f":"IFERROR(VLOOKUP(D895,'Bank and Fund Details'!$B$14:$L$35,11,FALSE),\"N\")","v":"Y"},"NY"]
[null,null,null,"General Fund",null,null,null,null,null,{"$f":"VLOOKUP(D896,'Bank and Fund Details'!$B$15:$D$36,3,FALSE)","v":0},{"$f":"VLOOKUP(D896,'Bank and Fund Details'!$B$15:$C$36,2,FALSE)","v":"Unrestricted"},{"$f":"IFERROR(VLOOKUP(C896,Descriptions!$B$6:$D$92,3,FALSE),\"\")","v":""},null,null,null,null,null,null,null,null,null,null,null,null,null,null,"General Fund",{"$f":"IFERROR(VLOOKUP(C896,Descriptions!B:F,5,FALSE),\"N\")","v":"N"},true,"NTRUE",0,null,{"$f":"IFERROR(VLOOKUP(D896,'Bank and Fund Details'!$B$14:$L$35,11,FALSE),\"N\")","v":"Y"},"NY"]
[null,null,null,"General Fund",null,null,null,null,null,{"$f":"VLOOKUP(D897,'Bank and Fund Details'!$B$15:$D$36,3,FALSE)","v":0},{"$f":"VLOOKUP(D897,'Bank and Fund Details'!$B$15:$C$36,2,FALSE)","v":"Unrestricted"},{"$f":"IFERROR(VLOOKUP(C897,Descriptions!$B$6:$D$92,3,FALSE),\"\")","v":""},null,null,null,null,null,null,null,null,null,null,null,null,null,null,"General Fund",{"$f":"IFERROR(VLOOKUP(C897,Descriptions!B:F,5,FALSE),\"N\")","v":"N"},true,"NTRUE",0,null,{"$f":"IFERROR(VLOOKUP(D897,'Bank and Fund Details'!$B$14:$L$35,11,FALSE),\"N\")","v":"Y"},"NY"]
[null,null,null,"General Fund",null,null,null,null,null,{"$f":"VLOOKUP(D898,'Bank and Fund Details'!$B$15:$D$36,3,FALSE)","v":0},{"$f":"VLOOKUP(D898,'Bank and Fund Details'!$B$15:$C$36,2,FALSE)","v":"Unrestricted"},{"$f":"IFERROR(VLOOKUP(C898,Descriptions!$B$6:$D$92,3,FALSE),\"\")","v":""},null,null,null,null,null,null,null,null,null,null,null,null,null,null,"General Fund",{"$f":"IFERROR(VLOOKUP(C898,Descriptions!B:F,5,FALSE),\"N\")","v":"N"},true,"NTRUE",0,null,{"$f":"IFERROR(VLOOKUP(D898,'Bank and Fund Details'!$B$14:$L$35,11,FALSE),\"N\")","v":"Y"},"NY"]
[null,null,null,"General Fund",null,null,null,null,null,{"$f":"VLOOKUP(D899,'Bank and Fund Details'!$B$15:$D$36,3,FALSE)","v":0},{"$f":"VLOOKUP(D899,'Bank and Fund Details'!$B$15:$C$36,2,FALSE)","v":"Unrestricted"},{"$f":"IFERROR(VLOOKUP(C899,Descriptions!$B$6:$D$92,3,FALSE),\"\")","v":""},null,null,null,null,null,null,null,null,null,null,null,null,null,null,"General Fund",{"$f":"IFERROR(VLOOKUP(C899,Descriptions!B:F,5,FALSE),\"N\")","v":"N"},true,"NTRUE",0,null,{"$f":"IFERROR(VLOOKUP(D899,'Bank and Fund Details'!$B$14:$L$35,11,FALSE),\"N\")","v":"Y"},"NY"]
[null,null,null,"General Fund",null,null,null,null,null,{"$f":"VLOOKUP(D900,'Bank and Fund Details'!$B$15:$D$36,3,FALSE)","v":0},{"$f":"VLOOKUP(D900,'Bank and Fund Details'!$B$15:$C$36,2,FALSE)","v":"Unrestricted"},{"$f":"IFERROR(VLOOKUP(C900,Descriptions!$B$6:$D$92,3,FALSE),\"\")","v":""},null,null,null,null,null,null,null,null,null,null,null,null,null,null,"General Fund",{"$f":"IFERROR(VLOOKUP(C900,Descriptions!B:F,5,FALSE),\"N\")","v":"N"},true,"NTRUE",0,null,{"$f":"IFERROR(VLOOKUP(D900,'Bank and Fund Details'!$B$14:$L$35,11,FALSE),\"N\")","v":"Y"},"NY"]
[null,null,null,"General Fund",null,null,null,null,null,{"$f":"VLOOKUP(D901,'Bank and Fund Details'!$B$15:$D$36,3,FALSE)","v":0},{"$f":"VLOOKUP(D901,'Bank and Fund Details'!$B$15:$C$36,2,FALSE)","v":"Unrestricted"},{"$f":"IFERROR(VLOOKUP(C901,Descriptions!$B$6:$D$92,3,FALSE),\"\")","v":""},null,null,null,null,null,null,null,null,null,null,null,null,null,null,{"$f":"CONCATENATE(C901,D901)","v":"General Fund"},{"$f":"IFERROR(VLOOKUP(C901,Descriptions!B:F,5,FALSE),\"N\")","v":"N"},{"$f":"ISBLANK(C901)","v":true},{"$f":"CONCATENATE(AB901,AC901)","v":"NTRUE"},{"$f":"IF(AD901=\"NFALSE\",1,0)","v":0},null,{"$f":"IFERROR(VLOOKUP(D901,'Bank and Fund Details'!$B$14:$L$35,11,FALSE),\"N\")","v":"Y"},"NY"]
[null,null,null,"General Fund",null,null,null,null,null,{"$f":"VLOOKUP(D902,'Bank and Fund Details'!$B$15:$D$36,3,FALSE)","v":0},{"$f":"VLOOKUP(D902,'Bank and Fund Details'!$B$15:$C$36,2,FALSE)","v":"Unrestricted"},{"$f":"IFERROR(VLOOKUP(C902,Descriptions!$B$6:$D$92,3,FALSE),\"\")","v":""},null,null,null,null,null,null,null,null,null,null,null,null,null,null,"General Fund",{"$f":"IFERROR(VLOOKUP(C902,Descriptions!B:F,5,FALSE),\"N\")","v":"N"},true,"NTRUE",0,null,{"$f":"IFERROR(VLOOKUP(D902,'Bank and Fund Details'!$B$14:$L$35,11,FALSE),\"N\")","v":"Y"},{"$f":"CONCATENATE(AB902,AG902)","v":"NY"}]
[null,null,null,"General Fund",null,null,null,null,null,{"$f":"VLOOKUP(D903,'Bank and Fund Details'!$B$15:$D$36,3,FALSE)","v":0},{"$f":"VLOOKUP(D903,'Bank and Fund Details'!$B$15:$C$36,2,FALSE)","v":"Unrestricted"},{"$f":"IFERROR(VLOOKUP(C903,Descriptions!$B$6:$D$92,3,FALSE),\"\")","v":""},null,null,null,null,null,null,null,null,null,null,null,null,null,null,"General Fund",{"$f":"IFERROR(VLOOKUP(C903,Descriptions!B:F,5,FALSE),\"N\")","v":"N"},true,"NTRUE",0,null,{"$f":"IFERROR(VLOOKUP(D903,'Bank and Fund Details'!$B$14:$L$35,11,FALSE),\"N\")","v":"Y"},"NY"]
[null,null,null,"General Fund",null,null,null,null,null,{"$f":"VLOOKUP(D904,'Bank and Fund Details'!$B$15:$D$36,3,FALSE)","v":0},{"$f":"VLOOKUP(D904,'Bank and Fund Details'!$B$15:$C$36,2,FALSE)","v":"Unrestricted"},{"$f":"IFERROR(VLOOKUP(C904,Descriptions!$B$6:$D$92,3,FALSE),\"\")","v":""},null,null,null,null,null,null,null,null,null,null,null,null,null,null,"General Fund",{"$f":"IFERROR(VLOOKUP(C904,Descriptions!B:F,5,FALSE),\"N\")","v":"N"},true,"NTRUE",0,null,{"$f":"IFERROR(VLOOKUP(D904,'Bank and Fund Details'!$B$14:$L$35,11,FALSE),\"N\")","v":"Y"},"NY"]
[null,null,null,"General Fund",null,null,null,null,null,{"$f":"VLOOKUP(D905,'Bank and Fund Details'!$B$15:$D$36,3,FALSE)","v":0},{"$f":"VLOOKUP(D905,'Bank and Fund Details'!$B$15:$C$36,2,FALSE)","v":"Unrestricted"},{"$f":"IFERROR(VLOOKUP(C905,Descriptions!$B$6:$D$92,3,FALSE),\"\")","v":""},null,null,null,null,null,null,null,null,null,null,null,null,null,null,"General Fund",{"$f":"IFERROR(VLOOKUP(C905,Descriptions!B:F,5,FALSE),\"N\")","v":"N"},true,"NTRUE",0,null,{"$f":"IFERROR(VLOOKUP(D905,'Bank and Fund Details'!$B$14:$L$35,11,FALSE),\"N\")","v":"Y"},"NY"]
[null,null,null,"General Fund",null,null,null,null,null,{"$f":"VLOOKUP(D906,'Bank and Fund Details'!$B$15:$D$36,3,FALSE)","v":0},{"$f":"VLOOKUP(D906,'Bank and Fund Details'!$B$15:$C$36,2,FALSE)","v":"Unrestricted"},{"$f":"IFERROR(VLOOKUP(C906,Descriptions!$B$6:$D$92,3,FALSE),\"\")","v":""},null,null,null,null,null,null,null,null,null,null,null,null,null,null,"General Fund",{"$f":"IFERROR(VLOOKUP(C906,Descriptions!B:F,5,FALSE),\"N\")","v":"N"},true,"NTRUE",0,null,{"$f":"IFERROR(VLOOKUP(D906,'Bank and Fund Details'!$B$14:$L$35,11,FALSE),\"N\")","v":"Y"},"NY"]
[null,null,null,"General Fund",null,null,null,null,null,{"$f":"VLOOKUP(D907,'Bank and Fund Details'!$B$15:$D$36,3,FALSE)","v":0},{"$f":"VLOOKUP(D907,'Bank and Fund Details'!$B$15:$C$36,2,FALSE)","v":"Unrestricted"},{"$f":"IFERROR(VLOOKUP(C907,Descriptions!$B$6:$D$92,3,FALSE),\"\")","v":""},null,null,null,null,null,null,null,null,null,null,null,null,null,null,"General Fund",{"$f":"IFERROR(VLOOKUP(C907,Descriptions!B:F,5,FALSE),\"N\")","v":"N"},true,"NTRUE",0,null,{"$f":"IFERROR(VLOOKUP(D907,'Bank and Fund Details'!$B$14:$L$35,11,FALSE),\"N\")","v":"Y"},"NY"]
[null,null,null,"General Fund",null,null,null,null,null,{"$f":"VLOOKUP(D908,'Bank and Fund Details'!$B$15:$D$36,3,FALSE)","v":0},{"$f":"VLOOKUP(D908,'Bank and Fund Details'!$B$15:$C$36,2,FALSE)","v":"Unrestricted"},{"$f":"IFERROR(VLOOKUP(C908,Descriptions!$B$6:$D$92,3,FALSE),\"\")","v":""},null,null,null,null,null,null,null,null,null,null,null,null,null,null,"General Fund",{"$f":"IFERROR(VLOOKUP(C908,Descriptions!B:F,5,FALSE),\"N\")","v":"N"},true,"NTRUE",0,null,{"$f":"IFERROR(VLOOKUP(D908,'Bank and Fund Details'!$B$14:$L$35,11,FALSE),\"N\")","v":"Y"},"NY"]
[null,null,null,"General Fund",null,null,null,null,null,{"$f":"VLOOKUP(D909,'Bank and Fund Details'!$B$15:$D$36,3,FALSE)","v":0},{"$f":"VLOOKUP(D909,'Bank and Fund Details'!$B$15:$C$36,2,FALSE)","v":"Unrestricted"},{"$f":"IFERROR(VLOOKUP(C909,Descriptions!$B$6:$D$92,3,FALSE),\"\")","v":""},null,null,null,null,null,null,null,null,null,null,null,null,null,null,"General Fund",{"$f":"IFERROR(VLOOKUP(C909,Descriptions!B:F,5,FALSE),\"N\")","v":"N"},true,"NTRUE",0,null,{"$f":"IFERROR(VLOOKUP(D909,'Bank and Fund Details'!$B$14:$L$35,11,FALSE),\"N\")","v":"Y"},"NY"]
[null,null,null,"General Fund",null,null,null,null,null,{"$f":"VLOOKUP(D910,'Bank and Fund Details'!$B$15:$D$36,3,FALSE)","v":0},{"$f":"VLOOKUP(D910,'Bank and Fund Details'!$B$15:$C$36,2,FALSE)","v":"Unrestricted"},{"$f":"IFERROR(VLOOKUP(C910,Descriptions!$B$6:$D$92,3,FALSE),\"\")","v":""},null,null,null,null,null,null,null,null,null,null,null,null,null,null,"General Fund",{"$f":"IFERROR(VLOOKUP(C910,Descriptions!B:F,5,FALSE),\"N\")","v":"N"},true,"NTRUE",0,null,{"$f":"IFERROR(VLOOKUP(D910,'Bank and Fund Details'!$B$14:$L$35,11,FALSE),\"N\")","v":"Y"},"NY"]
[null,null,null,"General Fund",null,null,null,null,null,{"$f":"VLOOKUP(D911,'Bank and Fund Details'!$B$15:$D$36,3,FALSE)","v":0},{"$f":"VLOOKUP(D911,'Bank and Fund Details'!$B$15:$C$36,2,FALSE)","v":"Unrestricted"},{"$f":"IFERROR(VLOOKUP(C911,Descriptions!$B$6:$D$92,3,FALSE),\"\")","v":""},null,null,null,null,null,null,null,null,null,null,null,null,null,null,"General Fund",{"$f":"IFERROR(VLOOKUP(C911,Descriptions!B:F,5,FALSE),\"N\")","v":"N"},true,"NTRUE",0,null,{"$f":"IFERROR(VLOOKUP(D911,'Bank and Fund Details'!$B$14:$L$35,11,FALSE),\"N\")","v":"Y"},"NY"]
[null,null,null,"General Fund",null,null,null,null,null,{"$f":"VLOOKUP(D912,'Bank and Fund Details'!$B$15:$D$36,3,FALSE)","v":0},{"$f":"VLOOKUP(D912,'Bank and Fund Details'!$B$15:$C$36,2,FALSE)","v":"Unrestricted"},{"$f":"IFERROR(VLOOKUP(C912,Descriptions!$B$6:$D$92,3,FALSE),\"\")","v":""},null,null,null,null,null,null,null,null,null,null,null,null,null,null,"General Fund",{"$f":"IFERROR(VLOOKUP(C912,Descriptions!B:F,5,FALSE),\"N\")","v":"N"},true,"NTRUE",0,null,{"$f":"IFERROR(VLOOKUP(D912,'Bank and Fund Details'!$B$14:$L$35,11,FALSE),\"N\")","v":"Y"},"NY"]
[null,null,null,"General Fund",null,null,null,null,null,{"$f":"VLOOKUP(D913,'Bank and Fund Details'!$B$15:$D$36,3,FALSE)","v":0},{"$f":"VLOOKUP(D913,'Bank and Fund Details'!$B$15:$C$36,2,FALSE)","v":"Unrestricted"},{"$f":"IFERROR(VLOOKUP(C913,Descriptions!$B$6:$D$92,3,FALSE),\"\")","v":""},null,null,null,null,null,null,null,null,null,null,null,null,null,null,"General Fund",{"$f":"IFERROR(VLOOKUP(C913,Descriptions!B:F,5,FALSE),\"N\")","v":"N"},true,"NTRUE",0,null,{"$f":"IFERROR(VLOOKUP(D913,'Bank and Fund Details'!$B$14:$L$35,11,FALSE),\"N\")","v":"Y"},"NY"]
[null,null,null,"General Fund",null,null,null,null,null,{"$f":"VLOOKUP(D914,'Bank and Fund Details'!$B$15:$D$36,3,FALSE)","v":0},{"$f":"VLOOKUP(D914,'Bank and Fund Details'!$B$15:$C$36,2,FALSE)","v":"Unrestricted"},{"$f":"IFERROR(VLOOKUP(C914,Descriptions!$B$6:$D$92,3,FALSE),\"\")","v":""},null,null,null,null,null,null,null,null,null,null,null,null,null,null,"General Fund",{"$f":"IFERROR(VLOOKUP(C914,Descriptions!B:F,5,FALSE),\"N\")","v":"N"},true,"NTRUE",0,null,{"$f":"IFERROR(VLOOKUP(D914,'Bank and Fund Details'!$B$14:$L$35,11,FALSE),\"N\")","v":"Y"},"NY"]
[null,null,null,"General Fund",null,null,null,null,null,{"$f":"VLOOKUP(D915,'Bank and Fund Details'!$B$15:$D$36,3,FALSE)","v":0},{"$f":"VLOOKUP(D915,'Bank and Fund Details'!$B$15:$C$36,2,FALSE)","v":"Unrestricted"},{"$f":"IFERROR(VLOOKUP(C915,Descriptions!$B$6:$D$92,3,FALSE),\"\")","v":""},null,null,null,null,null,null,null,null,null,null,null,null,null,null,"General Fund",{"$f":"IFERROR(VLOOKUP(C915,Descriptions!B:F,5,FALSE),\"N\")","v":"N"},true,"NTRUE",0,null,{"$f":"IFERROR(VLOOKUP(D915,'Bank and Fund Details'!$B$14:$L$35,11,FALSE),\"N\")","v":"Y"},"NY"]
[null,null,null,"General Fund",null,null,null,null,null,{"$f":"VLOOKUP(D916,'Bank and Fund Details'!$B$15:$D$36,3,FALSE)","v":0},{"$f":"VLOOKUP(D916,'Bank and Fund Details'!$B$15:$C$36,2,FALSE)","v":"Unrestricted"},{"$f":"IFERROR(VLOOKUP(C916,Descriptions!$B$6:$D$92,3,FALSE),\"\")","v":""},null,null,null,null,null,null,null,null,null,null,null,null,null,null,"General Fund",{"$f":"IFERROR(VLOOKUP(C916,Descriptions!B:F,5,FALSE),\"N\")","v":"N"},true,"NTRUE",0,null,{"$f":"IFERROR(VLOOKUP(D916,'Bank and Fund Details'!$B$14:$L$35,11,FALSE),\"N\")","v":"Y"},"NY"]
[null,null,null,"General Fund",null,null,null,null,null,{"$f":"VLOOKUP(D917,'Bank and Fund Details'!$B$15:$D$36,3,FALSE)","v":0},{"$f":"VLOOKUP(D917,'Bank and Fund Details'!$B$15:$C$36,2,FALSE)","v":"Unrestricted"},{"$f":"IFERROR(VLOOKUP(C917,Descriptions!$B$6:$D$92,3,FALSE),\"\")","v":""},null,null,null,null,null,null,null,null,null,null,null,null,null,null,"General Fund",{"$f":"IFERROR(VLOOKUP(C917,Descriptions!B:F,5,FALSE),\"N\")","v":"N"},true,"NTRUE",0,null,{"$f":"IFERROR(VLOOKUP(D917,'Bank and Fund Details'!$B$14:$L$35,11,FALSE),\"N\")","v":"Y"},"NY"]
[null,null,null,"General Fund",null,null,null,null,null,{"$f":"VLOOKUP(D918,'Bank and Fund Details'!$B$15:$D$36,3,FALSE)","v":0},{"$f":"VLOOKUP(D918,'Bank and Fund Details'!$B$15:$C$36,2,FALSE)","v":"Unrestricted"},{"$f":"IFERROR(VLOOKUP(C918,Descriptions!$B$6:$D$92,3,FALSE),\"\")","v":""},null,null,null,null,null,null,null,null,null,null,null,null,null,null,"General Fund",{"$f":"IFERROR(VLOOKUP(C918,Descriptions!B:F,5,FALSE),\"N\")","v":"N"},true,"NTRUE",0,null,{"$f":"IFERROR(VLOOKUP(D918,'Bank and Fund Details'!$B$14:$L$35,11,FALSE),\"N\")","v":"Y"},"NY"]
[null,null,null,"General Fund",null,null,null,null,null,{"$f":"VLOOKUP(D919,'Bank and Fund Details'!$B$15:$D$36,3,FALSE)","v":0},{"$f":"VLOOKUP(D919,'Bank and Fund Details'!$B$15:$C$36,2,FALSE)","v":"Unrestricted"},{"$f":"IFERROR(VLOOKUP(C919,Descriptions!$B$6:$D$92,3,FALSE),\"\")","v":""},null,null,null,null,null,null,null,null,null,null,null,null,null,null,"General Fund",{"$f":"IFERROR(VLOOKUP(C919,Descriptions!B:F,5,FALSE),\"N\")","v":"N"},true,"NTRUE",0,null,{"$f":"IFERROR(VLOOKUP(D919,'Bank and Fund Details'!$B$14:$L$35,11,FALSE),\"N\")","v":"Y"},"NY"]
[null,null,null,"General Fund",null,null,null,null,null,{"$f":"VLOOKUP(D920,'Bank and Fund Details'!$B$15:$D$36,3,FALSE)","v":0},{"$f":"VLOOKUP(D920,'Bank and Fund Details'!$B$15:$C$36,2,FALSE)","v":"Unrestricted"},{"$f":"IFERROR(VLOOKUP(C920,Descriptions!$B$6:$D$92,3,FALSE),\"\")","v":""},null,null,null,null,null,null,null,null,null,null,null,null,null,null,"General Fund",{"$f":"IFERROR(VLOOKUP(C920,Descriptions!B:F,5,FALSE),\"N\")","v":"N"},true,"NTRUE",0,null,{"$f":"IFERROR(VLOOKUP(D920,'Bank and Fund Details'!$B$14:$L$35,11,FALSE),\"N\")","v":"Y"},"NY"]
[null,null,null,"General Fund",null,null,null,null,null,{"$f":"VLOOKUP(D921,'Bank and Fund Details'!$B$15:$D$36,3,FALSE)","v":0},{"$f":"VLOOKUP(D921,'Bank and Fund Details'!$B$15:$C$36,2,FALSE)","v":"Unrestricted"},{"$f":"IFERROR(VLOOKUP(C921,Descriptions!$B$6:$D$92,3,FALSE),\"\")","v":""},null,null,null,null,null,null,null,null,null,null,null,null,null,null,"General Fund",{"$f":"IFERROR(VLOOKUP(C921,Descriptions!B:F,5,FALSE),\"N\")","v":"N"},true,"NTRUE",0,null,{"$f":"IFERROR(VLOOKUP(D921,'Bank and Fund Details'!$B$14:$L$35,11,FALSE),\"N\")","v":"Y"},"NY"]
[null,null,null,"General Fund",null,null,null,null,null,{"$f":"VLOOKUP(D922,'Bank and Fund Details'!$B$15:$D$36,3,FALSE)","v":0},{"$f":"VLOOKUP(D922,'Bank and Fund Details'!$B$15:$C$36,2,FALSE)","v":"Unrestricted"},{"$f":"IFERROR(VLOOKUP(C922,Descriptions!$B$6:$D$92,3,FALSE),\"\")","v":""},null,null,null,null,null,null,null,null,null,null,null,null,null,null,"General Fund",{"$f":"IFERROR(VLOOKUP(C922,Descriptions!B:F,5,FALSE),\"N\")","v":"N"},true,"NTRUE",0,null,{"$f":"IFERROR(VLOOKUP(D922,'Bank and Fund Details'!$B$14:$L$35,11,FALSE),\"N\")","v":"Y"},"NY"]
[null,null,null,"General Fund",null,null,null,null,null,{"$f":"VLOOKUP(D923,'Bank and Fund Details'!$B$15:$D$36,3,FALSE)","v":0},{"$f":"VLOOKUP(D923,'Bank and Fund Details'!$B$15:$C$36,2,FALSE)","v":"Unrestricted"},{"$f":"IFERROR(VLOOKUP(C923,Descriptions!$B$6:$D$92,3,FALSE),\"\")","v":""},null,null,null,null,null,null,null,null,null,null,null,null,null,null,"General Fund",{"$f":"IFERROR(VLOOKUP(C923,Descriptions!B:F,5,FALSE),\"N\")","v":"N"},true,"NTRUE",0,null,{"$f":"IFERROR(VLOOKUP(D923,'Bank and Fund Details'!$B$14:$L$35,11,FALSE),\"N\")","v":"Y"},"NY"]
[null,null,null,"General Fund",null,null,null,null,null,{"$f":"VLOOKUP(D924,'Bank and Fund Details'!$B$15:$D$36,3,FALSE)","v":0},{"$f":"VLOOKUP(D924,'Bank and Fund Details'!$B$15:$C$36,2,FALSE)","v":"Unrestricted"},{"$f":"IFERROR(VLOOKUP(C924,Descriptions!$B$6:$D$92,3,FALSE),\"\")","v":""},null,null,null,null,null,null,null,null,null,null,null,null,null,null,"General Fund",{"$f":"IFERROR(VLOOKUP(C924,Descriptions!B:F,5,FALSE),\"N\")","v":"N"},true,"NTRUE",0,null,{"$f":"IFERROR(VLOOKUP(D924,'Bank and Fund Details'!$B$14:$L$35,11,FALSE),\"N\")","v":"Y"},"NY"]
[null,null,null,"General Fund",null,null,null,null,null,{"$f":"VLOOKUP(D925,'Bank and Fund Details'!$B$15:$D$36,3,FALSE)","v":0},{"$f":"VLOOKUP(D925,'Bank and Fund Details'!$B$15:$C$36,2,FALSE)","v":"Unrestricted"},{"$f":"IFERROR(VLOOKUP(C925,Descriptions!$B$6:$D$92,3,FALSE),\"\")","v":""},null,null,null,null,null,null,null,null,null,null,null,null,null,null,"General Fund",{"$f":"IFERROR(VLOOKUP(C925,Descriptions!B:F,5,FALSE),\"N\")","v":"N"},true,"NTRUE",0,null,{"$f":"IFERROR(VLOOKUP(D925,'Bank and Fund Details'!$B$14:$L$35,11,FALSE),\"N\")","v":"Y"},"NY"]
[null,null,null,"General Fund",null,null,null,null,null,{"$f":"VLOOKUP(D926,'Bank and Fund Details'!$B$15:$D$36,3,FALSE)","v":0},{"$f":"VLOOKUP(D926,'Bank and Fund Details'!$B$15:$C$36,2,FALSE)","v":"Unrestricted"},{"$f":"IFERROR(VLOOKUP(C926,Descriptions!$B$6:$D$92,3,FALSE),\"\")","v":""},null,null,null,null,null,null,null,null,null,null,null,null,null,null,"General Fund",{"$f":"IFERROR(VLOOKUP(C926,Descriptions!B:F,5,FALSE),\"N\")","v":"N"},true,"NTRUE",0,null,{"$f":"IFERROR(VLOOKUP(D926,'Bank and Fund Details'!$B$14:$L$35,11,FALSE),\"N\")","v":"Y"},"NY"]
[null,null,null,"General Fund",null,null,null,null,null,{"$f":"VLOOKUP(D927,'Bank and Fund Details'!$B$15:$D$36,3,FALSE)","v":0},{"$f":"VLOOKUP(D927,'Bank and Fund Details'!$B$15:$C$36,2,FALSE)","v":"Unrestricted"},{"$f":"IFERROR(VLOOKUP(C927,Descriptions!$B$6:$D$92,3,FALSE),\"\")","v":""},null,null,null,null,null,null,null,null,null,null,null,null,null,null,"General Fund",{"$f":"IFERROR(VLOOKUP(C927,Descriptions!B:F,5,FALSE),\"N\")","v":"N"},true,"NTRUE",0,null,{"$f":"IFERROR(VLOOKUP(D927,'Bank and Fund Details'!$B$14:$L$35,11,FALSE),\"N\")","v":"Y"},"NY"]
[null,null,null,"General Fund",null,null,null,null,null,{"$f":"VLOOKUP(D928,'Bank and Fund Details'!$B$15:$D$36,3,FALSE)","v":0},{"$f":"VLOOKUP(D928,'Bank and Fund Details'!$B$15:$C$36,2,FALSE)","v":"Unrestricted"},{"$f":"IFERROR(VLOOKUP(C928,Descriptions!$B$6:$D$92,3,FALSE),\"\")","v":""},null,null,null,null,null,null,null,null,null,null,null,null,null,null,"General Fund",{"$f":"IFERROR(VLOOKUP(C928,Descriptions!B:F,5,FALSE),\"N\")","v":"N"},true,"NTRUE",0,null,{"$f":"IFERROR(VLOOKUP(D928,'Bank and Fund Details'!$B$14:$L$35,11,FALSE),\"N\")","v":"Y"},"NY"]
[null,null,null,"General Fund",null,null,null,null,null,{"$f":"VLOOKUP(D929,'Bank and Fund Details'!$B$15:$D$36,3,FALSE)","v":0},{"$f":"VLOOKUP(D929,'Bank and Fund Details'!$B$15:$C$36,2,FALSE)","v":"Unrestricted"},{"$f":"IFERROR(VLOOKUP(C929,Descriptions!$B$6:$D$92,3,FALSE),\"\")","v":""},null,null,null,null,null,null,null,null,null,null,null,null,null,null,"General Fund",{"$f":"IFERROR(VLOOKUP(C929,Descriptions!B:F,5,FALSE),\"N\")","v":"N"},true,"NTRUE",0,null,{"$f":"IFERROR(VLOOKUP(D929,'Bank and Fund Details'!$B$14:$L$35,11,FALSE),\"N\")","v":"Y"},"NY"]
[null,null,null,"General Fund",null,null,null,null,null,{"$f":"VLOOKUP(D930,'Bank and Fund Details'!$B$15:$D$36,3,FALSE)","v":0},{"$f":"VLOOKUP(D930,'Bank and Fund Details'!$B$15:$C$36,2,FALSE)","v":"Unrestricted"},{"$f":"IFERROR(VLOOKUP(C930,Descriptions!$B$6:$D$92,3,FALSE),\"\")","v":""},null,null,null,null,null,null,null,null,null,null,null,null,null,null,"General Fund",{"$f":"IFERROR(VLOOKUP(C930,Descriptions!B:F,5,FALSE),\"N\")","v":"N"},true,"NTRUE",0,null,{"$f":"IFERROR(VLOOKUP(D930,'Bank and Fund Details'!$B$14:$L$35,11,FALSE),\"N\")","v":"Y"},"NY"]
[null,null,null,"General Fund",null,null,null,null,null,{"$f":"VLOOKUP(D931,'Bank and Fund Details'!$B$15:$D$36,3,FALSE)","v":0},{"$f":"VLOOKUP(D931,'Bank and Fund Details'!$B$15:$C$36,2,FALSE)","v":"Unrestricted"},{"$f":"IFERROR(VLOOKUP(C931,Descriptions!$B$6:$D$92,3,FALSE),\"\")","v":""},null,null,null,null,null,null,null,null,null,null,null,null,null,null,"General Fund",{"$f":"IFERROR(VLOOKUP(C931,Descriptions!B:F,5,FALSE),\"N\")","v":"N"},true,"NTRUE",0,null,{"$f":"IFERROR(VLOOKUP(D931,'Bank and Fund Details'!$B$14:$L$35,11,FALSE),\"N\")","v":"Y"},"NY"]
[null,null,null,"General Fund",null,null,null,null,null,{"$f":"VLOOKUP(D932,'Bank and Fund Details'!$B$15:$D$36,3,FALSE)","v":0},{"$f":"VLOOKUP(D932,'Bank and Fund Details'!$B$15:$C$36,2,FALSE)","v":"Unrestricted"},{"$f":"IFERROR(VLOOKUP(C932,Descriptions!$B$6:$D$92,3,FALSE),\"\")","v":""},null,null,null,null,null,null,null,null,null,null,null,null,null,null,"General Fund",{"$f":"IFERROR(VLOOKUP(C932,Descriptions!B:F,5,FALSE),\"N\")","v":"N"},true,"NTRUE",0,null,{"$f":"IFERROR(VLOOKUP(D932,'Bank and Fund Details'!$B$14:$L$35,11,FALSE),\"N\")","v":"Y"},"NY"]
[null,null,null,"General Fund",null,null,null,null,null,{"$f":"VLOOKUP(D933,'Bank and Fund Details'!$B$15:$D$36,3,FALSE)","v":0},{"$f":"VLOOKUP(D933,'Bank and Fund Details'!$B$15:$C$36,2,FALSE)","v":"Unrestricted"},{"$f":"IFERROR(VLOOKUP(C933,Descriptions!$B$6:$D$92,3,FALSE),\"\")","v":""},null,null,null,null,null,null,null,null,null,null,null,null,null,null,"General Fund",{"$f":"IFERROR(VLOOKUP(C933,Descriptions!B:F,5,FALSE),\"N\")","v":"N"},true,"NTRUE",0,null,{"$f":"IFERROR(VLOOKUP(D933,'Bank and Fund Details'!$B$14:$L$35,11,FALSE),\"N\")","v":"Y"},"NY"]
[null,null,null,"General Fund",null,null,null,null,null,{"$f":"VLOOKUP(D934,'Bank and Fund Details'!$B$15:$D$36,3,FALSE)","v":0},{"$f":"VLOOKUP(D934,'Bank and Fund Details'!$B$15:$C$36,2,FALSE)","v":"Unrestricted"},{"$f":"IFERROR(VLOOKUP(C934,Descriptions!$B$6:$D$92,3,FALSE),\"\")","v":""},null,null,null,null,null,null,null,null,null,null,null,null,null,null,"General Fund",{"$f":"IFERROR(VLOOKUP(C934,Descriptions!B:F,5,FALSE),\"N\")","v":"N"},true,"NTRUE",0,null,{"$f":"IFERROR(VLOOKUP(D934,'Bank and Fund Details'!$B$14:$L$35,11,FALSE),\"N\")","v":"Y"},"NY"]
[null,null,null,"General Fund",null,null,null,null,null,{"$f":"VLOOKUP(D935,'Bank and Fund Details'!$B$15:$D$36,3,FALSE)","v":0},{"$f":"VLOOKUP(D935,'Bank and Fund Details'!$B$15:$C$36,2,FALSE)","v":"Unrestricted"},{"$f":"IFERROR(VLOOKUP(C935,Descriptions!$B$6:$D$92,3,FALSE),\"\")","v":""},null,null,null,null,null,null,null,null,null,null,null,null,null,null,"General Fund",{"$f":"IFERROR(VLOOKUP(C935,Descriptions!B:F,5,FALSE),\"N\")","v":"N"},true,"NTRUE",0,null,{"$f":"IFERROR(VLOOKUP(D935,'Bank and Fund Details'!$B$14:$L$35,11,FALSE),\"N\")","v":"Y"},"NY"]
[null,null,null,"General Fund",null,null,null,null,null,{"$f":"VLOOKUP(D936,'Bank and Fund Details'!$B$15:$D$36,3,FALSE)","v":0},{"$f":"VLOOKUP(D936,'Bank and Fund Details'!$B$15:$C$36,2,FALSE)","v":"Unrestricted"},{"$f":"IFERROR(VLOOKUP(C936,Descriptions!$B$6:$D$92,3,FALSE),\"\")","v":""},null,null,null,null,null,null,null,null,null,null,null,null,null,null,"General Fund",{"$f":"IFERROR(VLOOKUP(C936,Descriptions!B:F,5,FALSE),\"N\")","v":"N"},true,"NTRUE",0,null,{"$f":"IFERROR(VLOOKUP(D936,'Bank and Fund Details'!$B$14:$L$35,11,FALSE),\"N\")","v":"Y"},"NY"]
[null,null,null,"General Fund",null,null,null,null,null,{"$f":"VLOOKUP(D937,'Bank and Fund Details'!$B$15:$D$36,3,FALSE)","v":0},{"$f":"VLOOKUP(D937,'Bank and Fund Details'!$B$15:$C$36,2,FALSE)","v":"Unrestricted"},{"$f":"IFERROR(VLOOKUP(C937,Descriptions!$B$6:$D$92,3,FALSE),\"\")","v":""},null,null,null,null,null,null,null,null,null,null,null,null,null,null,"General Fund",{"$f":"IFERROR(VLOOKUP(C937,Descriptions!B:F,5,FALSE),\"N\")","v":"N"},true,"NTRUE",0,null,{"$f":"IFERROR(VLOOKUP(D937,'Bank and Fund Details'!$B$14:$L$35,11,FALSE),\"N\")","v":"Y"},"NY"]
[null,null,null,"General Fund",null,null,null,null,null,{"$f":"VLOOKUP(D938,'Bank and Fund Details'!$B$15:$D$36,3,FALSE)","v":0},{"$f":"VLOOKUP(D938,'Bank and Fund Details'!$B$15:$C$36,2,FALSE)","v":"Unrestricted"},{"$f":"IFERROR(VLOOKUP(C938,Descriptions!$B$6:$D$92,3,FALSE),\"\")","v":""},null,null,null,null,null,null,null,null,null,null,null,null,null,null,"General Fund",{"$f":"IFERROR(VLOOKUP(C938,Descriptions!B:F,5,FALSE),\"N\")","v":"N"},true,"NTRUE",0,null,{"$f":"IFERROR(VLOOKUP(D938,'Bank and Fund Details'!$B$14:$L$35,11,FALSE),\"N\")","v":"Y"},"NY"]
[null,null,null,"General Fund",null,null,null,null,null,{"$f":"VLOOKUP(D939,'Bank and Fund Details'!$B$15:$D$36,3,FALSE)","v":0},{"$f":"VLOOKUP(D939,'Bank and Fund Details'!$B$15:$C$36,2,FALSE)","v":"Unrestricted"},{"$f":"IFERROR(VLOOKUP(C939,Descriptions!$B$6:$D$92,3,FALSE),\"\")","v":""},null,null,null,null,null,null,null,null,null,null,null,null,null,null,"General Fund",{"$f":"IFERROR(VLOOKUP(C939,Descriptions!B:F,5,FALSE),\"N\")","v":"N"},true,"NTRUE",0,null,{"$f":"IFERROR(VLOOKUP(D939,'Bank and Fund Details'!$B$14:$L$35,11,FALSE),\"N\")","v":"Y"},"NY"]
[null,null,null,"General Fund",null,null,null,null,null,{"$f":"VLOOKUP(D940,'Bank and Fund Details'!$B$15:$D$36,3,FALSE)","v":0},{"$f":"VLOOKUP(D940,'Bank and Fund Details'!$B$15:$C$36,2,FALSE)","v":"Unrestricted"},{"$f":"IFERROR(VLOOKUP(C940,Descriptions!$B$6:$D$92,3,FALSE),\"\")","v":""},null,null,null,null,null,null,null,null,null,null,null,null,null,null,"General Fund",{"$f":"IFERROR(VLOOKUP(C940,Descriptions!B:F,5,FALSE),\"N\")","v":"N"},true,"NTRUE",0,null,{"$f":"IFERROR(VLOOKUP(D940,'Bank and Fund Details'!$B$14:$L$35,11,FALSE),\"N\")","v":"Y"},"NY"]
[null,null,null,"General Fund",null,null,null,null,null,{"$f":"VLOOKUP(D941,'Bank and Fund Details'!$B$15:$D$36,3,FALSE)","v":0},{"$f":"VLOOKUP(D941,'Bank and Fund Details'!$B$15:$C$36,2,FALSE)","v":"Unrestricted"},{"$f":"IFERROR(VLOOKUP(C941,Descriptions!$B$6:$D$92,3,FALSE),\"\")","v":""},null,null,null,null,null,null,null,null,null,null,null,null,null,null,"General Fund",{"$f":"IFERROR(VLOOKUP(C941,Descriptions!B:F,5,FALSE),\"N\")","v":"N"},true,"NTRUE",0,null,{"$f":"IFERROR(VLOOKUP(D941,'Bank and Fund Details'!$B$14:$L$35,11,FALSE),\"N\")","v":"Y"},"NY"]
[null,null,null,"General Fund",null,null,null,null,null,{"$f":"VLOOKUP(D942,'Bank and Fund Details'!$B$15:$D$36,3,FALSE)","v":0},{"$f":"VLOOKUP(D942,'Bank and Fund Details'!$B$15:$C$36,2,FALSE)","v":"Unrestricted"},{"$f":"IFERROR(VLOOKUP(C942,Descriptions!$B$6:$D$92,3,FALSE),\"\")","v":""},null,null,null,null,null,null,null,null,null,null,null,null,null,null,"General Fund",{"$f":"IFERROR(VLOOKUP(C942,Descriptions!B:F,5,FALSE),\"N\")","v":"N"},true,"NTRUE",0,null,{"$f":"IFERROR(VLOOKUP(D942,'Bank and Fund Details'!$B$14:$L$35,11,FALSE),\"N\")","v":"Y"},"NY"]
[null,null,null,"General Fund",null,null,null,null,null,{"$f":"VLOOKUP(D943,'Bank and Fund Details'!$B$15:$D$36,3,FALSE)","v":0},{"$f":"VLOOKUP(D943,'Bank and Fund Details'!$B$15:$C$36,2,FALSE)","v":"Unrestricted"},{"$f":"IFERROR(VLOOKUP(C943,Descriptions!$B$6:$D$92,3,FALSE),\"\")","v":""},null,null,null,null,null,null,null,null,null,null,null,null,null,null,"General Fund",{"$f":"IFERROR(VLOOKUP(C943,Descriptions!B:F,5,FALSE),\"N\")","v":"N"},true,"NTRUE",0,null,{"$f":"IFERROR(VLOOKUP(D943,'Bank and Fund Details'!$B$14:$L$35,11,FALSE),\"N\")","v":"Y"},"NY"]
[null,null,null,"General Fund",null,null,null,null,null,{"$f":"VLOOKUP(D944,'Bank and Fund Details'!$B$15:$D$36,3,FALSE)","v":0},{"$f":"VLOOKUP(D944,'Bank and Fund Details'!$B$15:$C$36,2,FALSE)","v":"Unrestricted"},{"$f":"IFERROR(VLOOKUP(C944,Descriptions!$B$6:$D$92,3,FALSE),\"\")","v":""},null,null,null,null,null,null,null,null,null,null,null,null,null,null,"General Fund",{"$f":"IFERROR(VLOOKUP(C944,Descriptions!B:F,5,FALSE),\"N\")","v":"N"},true,"NTRUE",0,null,{"$f":"IFERROR(VLOOKUP(D944,'Bank and Fund Details'!$B$14:$L$35,11,FALSE),\"N\")","v":"Y"},"NY"]
[null,null,null,"General Fund",null,null,null,null,null,{"$f":"VLOOKUP(D945,'Bank and Fund Details'!$B$15:$D$36,3,FALSE)","v":0},{"$f":"VLOOKUP(D945,'Bank and Fund Details'!$B$15:$C$36,2,FALSE)","v":"Unrestricted"},{"$f":"IFERROR(VLOOKUP(C945,Descriptions!$B$6:$D$92,3,FALSE),\"\")","v":""},null,null,null,null,null,null,null,null,null,null,null,null,null,null,"General Fund",{"$f":"IFERROR(VLOOKUP(C945,Descriptions!B:F,5,FALSE),\"N\")","v":"N"},true,"NTRUE",0,null,{"$f":"IFERROR(VLOOKUP(D945,'Bank and Fund Details'!$B$14:$L$35,11,FALSE),\"N\")","v":"Y"},"NY"]
[null,null,null,"General Fund",null,null,null,null,null,{"$f":"VLOOKUP(D946,'Bank and Fund Details'!$B$15:$D$36,3,FALSE)","v":0},{"$f":"VLOOKUP(D946,'Bank and Fund Details'!$B$15:$C$36,2,FALSE)","v":"Unrestricted"},{"$f":"IFERROR(VLOOKUP(C946,Descriptions!$B$6:$D$92,3,FALSE),\"\")","v":""},null,null,null,null,null,null,null,null,null,null,null,null,null,null,"General Fund",{"$f":"IFERROR(VLOOKUP(C946,Descriptions!B:F,5,FALSE),\"N\")","v":"N"},true,"NTRUE",0,null,{"$f":"IFERROR(VLOOKUP(D946,'Bank and Fund Details'!$B$14:$L$35,11,FALSE),\"N\")","v":"Y"},"NY"]
[null,null,null,"General Fund",null,null,null,null,null,{"$f":"VLOOKUP(D947,'Bank and Fund Details'!$B$15:$D$36,3,FALSE)","v":0},{"$f":"VLOOKUP(D947,'Bank and Fund Details'!$B$15:$C$36,2,FALSE)","v":"Unrestricted"},{"$f":"IFERROR(VLOOKUP(C947,Descriptions!$B$6:$D$92,3,FALSE),\"\")","v":""},null,null,null,null,null,null,null,null,null,null,null,null,null,null,"General Fund",{"$f":"IFERROR(VLOOKUP(C947,Descriptions!B:F,5,FALSE),\"N\")","v":"N"},true,"NTRUE",0,null,{"$f":"IFERROR(VLOOKUP(D947,'Bank and Fund Details'!$B$14:$L$35,11,FALSE),\"N\")","v":"Y"},"NY"]
[null,null,null,"General Fund",null,null,null,null,null,{"$f":"VLOOKUP(D948,'Bank and Fund Details'!$B$15:$D$36,3,FALSE)","v":0},{"$f":"VLOOKUP(D948,'Bank and Fund Details'!$B$15:$C$36,2,FALSE)","v":"Unrestricted"},{"$f":"IFERROR(VLOOKUP(C948,Descriptions!$B$6:$D$92,3,FALSE),\"\")","v":""},null,null,null,null,null,null,null,null,null,null,null,null,null,null,"General Fund",{"$f":"IFERROR(VLOOKUP(C948,Descriptions!B:F,5,FALSE),\"N\")","v":"N"},true,"NTRUE",0,null,{"$f":"IFERROR(VLOOKUP(D948,'Bank and Fund Details'!$B$14:$L$35,11,FALSE),\"N\")","v":"Y"},"NY"]
[null,null,null,"General Fund",null,null,null,null,null,{"$f":"VLOOKUP(D949,'Bank and Fund Details'!$B$15:$D$36,3,FALSE)","v":0},{"$f":"VLOOKUP(D949,'Bank and Fund Details'!$B$15:$C$36,2,FALSE)","v":"Unrestricted"},{"$f":"IFERROR(VLOOKUP(C949,Descriptions!$B$6:$D$92,3,FALSE),\"\")","v":""},null,null,null,null,null,null,null,null,null,null,null,null,null,null,"General Fund",{"$f":"IFERROR(VLOOKUP(C949,Descriptions!B:F,5,FALSE),\"N\")","v":"N"},true,"NTRUE",0,null,{"$f":"IFERROR(VLOOKUP(D949,'Bank and Fund Details'!$B$14:$L$35,11,FALSE),\"N\")","v":"Y"},"NY"]
[null,null,null,"General Fund",null,null,null,null,null,{"$f":"VLOOKUP(D950,'Bank and Fund Details'!$B$15:$D$36,3,FALSE)","v":0},{"$f":"VLOOKUP(D950,'Bank and Fund Details'!$B$15:$C$36,2,FALSE)","v":"Unrestricted"},{"$f":"IFERROR(VLOOKUP(C950,Descriptions!$B$6:$D$92,3,FALSE),\"\")","v":""},null,null,null,null,null,null,null,null,null,null,null,null,null,null,"General Fund",{"$f":"IFERROR(VLOOKUP(C950,Descriptions!B:F,5,FALSE),\"N\")","v":"N"},true,"NTRUE",0,null,{"$f":"IFERROR(VLOOKUP(D950,'Bank and Fund Details'!$B$14:$L$35,11,FALSE),\"N\")","v":"Y"},"NY"]
[null,null,null,"General Fund",null,null,null,null,null,{"$f":"VLOOKUP(D951,'Bank and Fund Details'!$B$15:$D$36,3,FALSE)","v":0},{"$f":"VLOOKUP(D951,'Bank and Fund Details'!$B$15:$C$36,2,FALSE)","v":"Unrestricted"},{"$f":"IFERROR(VLOOKUP(C951,Descriptions!$B$6:$D$92,3,FALSE),\"\")","v":""},null,null,null,null,null,null,null,null,null,null,null,null,null,null,"General Fund",{"$f":"IFERROR(VLOOKUP(C951,Descriptions!B:F,5,FALSE),\"N\")","v":"N"},true,"NTRUE",0,null,{"$f":"IFERROR(VLOOKUP(D951,'Bank and Fund Details'!$B$14:$L$35,11,FALSE),\"N\")","v":"Y"},"NY"]
[null,null,null,"General Fund",null,null,null,null,null,{"$f":"VLOOKUP(D952,'Bank and Fund Details'!$B$15:$D$36,3,FALSE)","v":0},{"$f":"VLOOKUP(D952,'Bank and Fund Details'!$B$15:$C$36,2,FALSE)","v":"Unrestricted"},{"$f":"IFERROR(VLOOKUP(C952,Descriptions!$B$6:$D$92,3,FALSE),\"\")","v":""},null,null,null,null,null,null,null,null,null,null,null,null,null,null,"General Fund",{"$f":"IFERROR(VLOOKUP(C952,Descriptions!B:F,5,FALSE),\"N\")","v":"N"},true,"NTRUE",0,null,{"$f":"IFERROR(VLOOKUP(D952,'Bank and Fund Details'!$B$14:$L$35,11,FALSE),\"N\")","v":"Y"},"NY"]
[null,null,null,"General Fund",null,null,null,null,null,{"$f":"VLOOKUP(D953,'Bank and Fund Details'!$B$15:$D$36,3,FALSE)","v":0},{"$f":"VLOOKUP(D953,'Bank and Fund Details'!$B$15:$C$36,2,FALSE)","v":"Unrestricted"},{"$f":"IFERROR(VLOOKUP(C953,Descriptions!$B$6:$D$92,3,FALSE),\"\")","v":""},null,null,null,null,null,null,null,null,null,null,null,null,null,null,"General Fund",{"$f":"IFERROR(VLOOKUP(C953,Descriptions!B:F,5,FALSE),\"N\")","v":"N"},true,"NTRUE",0,null,{"$f":"IFERROR(VLOOKUP(D953,'Bank and Fund Details'!$B$14:$L$35,11,FALSE),\"N\")","v":"Y"},"NY"]
[null,null,null,"General Fund",null,null,null,null,null,{"$f":"VLOOKUP(D954,'Bank and Fund Details'!$B$15:$D$36,3,FALSE)","v":0},{"$f":"VLOOKUP(D954,'Bank and Fund Details'!$B$15:$C$36,2,FALSE)","v":"Unrestricted"},{"$f":"IFERROR(VLOOKUP(C954,Descriptions!$B$6:$D$92,3,FALSE),\"\")","v":""},null,null,null,null,null,null,null,null,null,null,null,null,null,null,"General Fund",{"$f":"IFERROR(VLOOKUP(C954,Descriptions!B:F,5,FALSE),\"N\")","v":"N"},true,"NTRUE",0,null,{"$f":"IFERROR(VLOOKUP(D954,'Bank and Fund Details'!$B$14:$L$35,11,FALSE),\"N\")","v":"Y"},"NY"]
[null,null,null,"General Fund",null,null,null,null,null,{"$f":"VLOOKUP(D955,'Bank and Fund Details'!$B$15:$D$36,3,FALSE)","v":0},{"$f":"VLOOKUP(D955,'Bank and Fund Details'!$B$15:$C$36,2,FALSE)","v":"Unrestricted"},{"$f":"IFERROR(VLOOKUP(C955,Descriptions!$B$6:$D$92,3,FALSE),\"\")","v":""},null,null,null,null,null,null,null,null,null,null,null,null,null,null,"General Fund",{"$f":"IFERROR(VLOOKUP(C955,Descriptions!B:F,5,FALSE),\"N\")","v":"N"},true,"NTRUE",0,null,{"$f":"IFERROR(VLOOKUP(D955,'Bank and Fund Details'!$B$14:$L$35,11,FALSE),\"N\")","v":"Y"},"NY"]
[null,null,null,"General Fund",null,null,null,null,null,{"$f":"VLOOKUP(D956,'Bank and Fund Details'!$B$15:$D$36,3,FALSE)","v":0},{"$f":"VLOOKUP(D956,'Bank and Fund Details'!$B$15:$C$36,2,FALSE)","v":"Unrestricted"},{"$f":"IFERROR(VLOOKUP(C956,Descriptions!$B$6:$D$92,3,FALSE),\"\")","v":""},null,null,null,null,null,null,null,null,null,null,null,null,null,null,"General Fund",{"$f":"IFERROR(VLOOKUP(C956,Descriptions!B:F,5,FALSE),\"N\")","v":"N"},true,"NTRUE",0,null,{"$f":"IFERROR(VLOOKUP(D956,'Bank and Fund Details'!$B$14:$L$35,11,FALSE),\"N\")","v":"Y"},"NY"]
[null,null,null,"General Fund",null,null,null,null,null,{"$f":"VLOOKUP(D957,'Bank and Fund Details'!$B$15:$D$36,3,FALSE)","v":0},{"$f":"VLOOKUP(D957,'Bank and Fund Details'!$B$15:$C$36,2,FALSE)","v":"Unrestricted"},{"$f":"IFERROR(VLOOKUP(C957,Descriptions!$B$6:$D$92,3,FALSE),\"\")","v":""},null,null,null,null,null,null,null,null,null,null,null,null,null,null,"General Fund",{"$f":"IFERROR(VLOOKUP(C957,Descriptions!B:F,5,FALSE),\"N\")","v":"N"},true,"NTRUE",0,null,{"$f":"IFERROR(VLOOKUP(D957,'Bank and Fund Details'!$B$14:$L$35,11,FALSE),\"N\")","v":"Y"},"NY"]
[null,null,null,"General Fund",null,null,null,null,null,{"$f":"VLOOKUP(D958,'Bank and Fund Details'!$B$15:$D$36,3,FALSE)","v":0},{"$f":"VLOOKUP(D958,'Bank and Fund Details'!$B$15:$C$36,2,FALSE)","v":"Unrestricted"},{"$f":"IFERROR(VLOOKUP(C958,Descriptions!$B$6:$D$92,3,FALSE),\"\")","v":""},null,null,null,null,null,null,null,null,null,null,null,null,null,null,"General Fund",{"$f":"IFERROR(VLOOKUP(C958,Descriptions!B:F,5,FALSE),\"N\")","v":"N"},true,"NTRUE",0,null,{"$f":"IFERROR(VLOOKUP(D958,'Bank and Fund Details'!$B$14:$L$35,11,FALSE),\"N\")","v":"Y"},"NY"]
[null,null,null,"General Fund",null,null,null,null,null,{"$f":"VLOOKUP(D959,'Bank and Fund Details'!$B$15:$D$36,3,FALSE)","v":0},{"$f":"VLOOKUP(D959,'Bank and Fund Details'!$B$15:$C$36,2,FALSE)","v":"Unrestricted"},{"$f":"IFERROR(VLOOKUP(C959,Descriptions!$B$6:$D$92,3,FALSE),\"\")","v":""},null,null,null,null,null,null,null,null,null,null,null,null,null,null,"General Fund",{"$f":"IFERROR(VLOOKUP(C959,Descriptions!B:F,5,FALSE),\"N\")","v":"N"},true,"NTRUE",0,null,{"$f":"IFERROR(VLOOKUP(D959,'Bank and Fund Details'!$B$14:$L$35,11,FALSE),\"N\")","v":"Y"},"NY"]
[null,null,null,"General Fund",null,null,null,null,null,{"$f":"VLOOKUP(D960,'Bank and Fund Details'!$B$15:$D$36,3,FALSE)","v":0},{"$f":"VLOOKUP(D960,'Bank and Fund Details'!$B$15:$C$36,2,FALSE)","v":"Unrestricted"},{"$f":"IFERROR(VLOOKUP(C960,Descriptions!$B$6:$D$92,3,FALSE),\"\")","v":""},null,null,null,null,null,null,null,null,null,null,null,null,null,null,"General Fund",{"$f":"IFERROR(VLOOKUP(C960,Descriptions!B:F,5,FALSE),\"N\")","v":"N"},true,"NTRUE",0,null,{"$f":"IFERROR(VLOOKUP(D960,'Bank and Fund Details'!$B$14:$L$35,11,FALSE),\"N\")","v":"Y"},"NY"]
[null,null,null,"General Fund",null,null,null,null,null,{"$f":"VLOOKUP(D961,'Bank and Fund Details'!$B$15:$D$36,3,FALSE)","v":0},{"$f":"VLOOKUP(D961,'Bank and Fund Details'!$B$15:$C$36,2,FALSE)","v":"Unrestricted"},{"$f":"IFERROR(VLOOKUP(C961,Descriptions!$B$6:$D$92,3,FALSE),\"\")","v":""},null,null,null,null,null,null,null,null,null,null,null,null,null,null,"General Fund",{"$f":"IFERROR(VLOOKUP(C961,Descriptions!B:F,5,FALSE),\"N\")","v":"N"},true,"NTRUE",0,null,{"$f":"IFERROR(VLOOKUP(D961,'Bank and Fund Details'!$B$14:$L$35,11,FALSE),\"N\")","v":"Y"},"NY"]
[null,null,null,"General Fund",null,null,null,null,null,{"$f":"VLOOKUP(D962,'Bank and Fund Details'!$B$15:$D$36,3,FALSE)","v":0},{"$f":"VLOOKUP(D962,'Bank and Fund Details'!$B$15:$C$36,2,FALSE)","v":"Unrestricted"},{"$f":"IFERROR(VLOOKUP(C962,Descriptions!$B$6:$D$92,3,FALSE),\"\")","v":""},null,null,null,null,null,null,null,null,null,null,null,null,null,null,"General Fund",{"$f":"IFERROR(VLOOKUP(C962,Descriptions!B:F,5,FALSE),\"N\")","v":"N"},true,"NTRUE",0,null,{"$f":"IFERROR(VLOOKUP(D962,'Bank and Fund Details'!$B$14:$L$35,11,FALSE),\"N\")","v":"Y"},"NY"]
[null,null,null,"General Fund",null,null,null,null,null,{"$f":"VLOOKUP(D963,'Bank and Fund Details'!$B$15:$D$36,3,FALSE)","v":0},{"$f":"VLOOKUP(D963,'Bank and Fund Details'!$B$15:$C$36,2,FALSE)","v":"Unrestricted"},{"$f":"IFERROR(VLOOKUP(C963,Descriptions!$B$6:$D$92,3,FALSE),\"\")","v":""},null,null,null,null,null,null,null,null,null,null,null,null,null,null,"General Fund",{"$f":"IFERROR(VLOOKUP(C963,Descriptions!B:F,5,FALSE),\"N\")","v":"N"},true,"NTRUE",0,null,{"$f":"IFERROR(VLOOKUP(D963,'Bank and Fund Details'!$B$14:$L$35,11,FALSE),\"N\")","v":"Y"},"NY"]
[null,null,null,"General Fund",null,null,null,null,null,{"$f":"VLOOKUP(D964,'Bank and Fund Details'!$B$15:$D$36,3,FALSE)","v":0},{"$f":"VLOOKUP(D964,'Bank and Fund Details'!$B$15:$C$36,2,FALSE)","v":"Unrestricted"},{"$f":"IFERROR(VLOOKUP(C964,Descriptions!$B$6:$D$92,3,FALSE),\"\")","v":""},null,null,null,null,null,null,null,null,null,null,null,null,null,null,"General Fund",{"$f":"IFERROR(VLOOKUP(C964,Descriptions!B:F,5,FALSE),\"N\")","v":"N"},true,"NTRUE",0,null,{"$f":"IFERROR(VLOOKUP(D964,'Bank and Fund Details'!$B$14:$L$35,11,FALSE),\"N\")","v":"Y"},"NY"]
[null,null,null,"General Fund",null,null,null,null,null,{"$f":"VLOOKUP(D965,'Bank and Fund Details'!$B$15:$D$36,3,FALSE)","v":0},{"$f":"VLOOKUP(D965,'Bank and Fund Details'!$B$15:$C$36,2,FALSE)","v":"Unrestricted"},{"$f":"IFERROR(VLOOKUP(C965,Descriptions!$B$6:$D$92,3,FALSE),\"\")","v":""},null,null,null,null,null,null,null,null,null,null,null,null,null,null,{"$f":"CONCATENATE(C965,D965)","v":"General Fund"},{"$f":"IFERROR(VLOOKUP(C965,Descriptions!B:F,5,FALSE),\"N\")","v":"N"},{"$f":"ISBLANK(C965)","v":true},{"$f":"CONCATENATE(AB965,AC965)","v":"NTRUE"},{"$f":"IF(AD965=\"NFALSE\",1,0)","v":0},null,{"$f":"IFERROR(VLOOKUP(D965,'Bank and Fund Details'!$B$14:$L$35,11,FALSE),\"N\")","v":"Y"},"NY"]
[null,null,null,"General Fund",null,null,null,null,null,{"$f":"VLOOKUP(D966,'Bank and Fund Details'!$B$15:$D$36,3,FALSE)","v":0},{"$f":"VLOOKUP(D966,'Bank and Fund Details'!$B$15:$C$36,2,FALSE)","v":"Unrestricted"},{"$f":"IFERROR(VLOOKUP(C966,Descriptions!$B$6:$D$92,3,FALSE),\"\")","v":""},null,null,null,null,null,null,null,null,null,null,null,null,null,null,"General Fund",{"$f":"IFERROR(VLOOKUP(C966,Descriptions!B:F,5,FALSE),\"N\")","v":"N"},true,"NTRUE",0,null,{"$f":"IFERROR(VLOOKUP(D966,'Bank and Fund Details'!$B$14:$L$35,11,FALSE),\"N\")","v":"Y"},{"$f":"CONCATENATE(AB966,AG966)","v":"NY"}]
[null,null,null,"General Fund",null,null,null,null,null,{"$f":"VLOOKUP(D967,'Bank and Fund Details'!$B$15:$D$36,3,FALSE)","v":0},{"$f":"VLOOKUP(D967,'Bank and Fund Details'!$B$15:$C$36,2,FALSE)","v":"Unrestricted"},{"$f":"IFERROR(VLOOKUP(C967,Descriptions!$B$6:$D$92,3,FALSE),\"\")","v":""},null,null,null,null,null,null,null,null,null,null,null,null,null,null,"General Fund",{"$f":"IFERROR(VLOOKUP(C967,Descriptions!B:F,5,FALSE),\"N\")","v":"N"},true,"NTRUE",0,null,{"$f":"IFERROR(VLOOKUP(D967,'Bank and Fund Details'!$B$14:$L$35,11,FALSE),\"N\")","v":"Y"},"NY"]
[null,null,null,"General Fund",null,null,null,null,null,{"$f":"VLOOKUP(D968,'Bank and Fund Details'!$B$15:$D$36,3,FALSE)","v":0},{"$f":"VLOOKUP(D968,'Bank and Fund Details'!$B$15:$C$36,2,FALSE)","v":"Unrestricted"},{"$f":"IFERROR(VLOOKUP(C968,Descriptions!$B$6:$D$92,3,FALSE),\"\")","v":""},null,null,null,null,null,null,null,null,null,null,null,null,null,null,"General Fund",{"$f":"IFERROR(VLOOKUP(C968,Descriptions!B:F,5,FALSE),\"N\")","v":"N"},true,"NTRUE",0,null,{"$f":"IFERROR(VLOOKUP(D968,'Bank and Fund Details'!$B$14:$L$35,11,FALSE),\"N\")","v":"Y"},"NY"]
[null,null,null,"General Fund",null,null,null,null,null,{"$f":"VLOOKUP(D969,'Bank and Fund Details'!$B$15:$D$36,3,FALSE)","v":0},{"$f":"VLOOKUP(D969,'Bank and Fund Details'!$B$15:$C$36,2,FALSE)","v":"Unrestricted"},{"$f":"IFERROR(VLOOKUP(C969,Descriptions!$B$6:$D$92,3,FALSE),\"\")","v":""},null,null,null,null,null,null,null,null,null,null,null,null,null,null,"General Fund",{"$f":"IFERROR(VLOOKUP(C969,Descriptions!B:F,5,FALSE),\"N\")","v":"N"},true,"NTRUE",0,null,{"$f":"IFERROR(VLOOKUP(D969,'Bank and Fund Details'!$B$14:$L$35,11,FALSE),\"N\")","v":"Y"},"NY"]
[null,null,null,"General Fund",null,null,null,null,null,{"$f":"VLOOKUP(D970,'Bank and Fund Details'!$B$15:$D$36,3,FALSE)","v":0},{"$f":"VLOOKUP(D970,'Bank and Fund Details'!$B$15:$C$36,2,FALSE)","v":"Unrestricted"},{"$f":"IFERROR(VLOOKUP(C970,Descriptions!$B$6:$D$92,3,FALSE),\"\")","v":""},null,null,null,null,null,null,null,null,null,null,null,null,null,null,"General Fund",{"$f":"IFERROR(VLOOKUP(C970,Descriptions!B:F,5,FALSE),\"N\")","v":"N"},true,"NTRUE",0,null,{"$f":"IFERROR(VLOOKUP(D970,'Bank and Fund Details'!$B$14:$L$35,11,FALSE),\"N\")","v":"Y"},"NY"]
[null,null,null,"General Fund",null,null,null,null,null,{"$f":"VLOOKUP(D971,'Bank and Fund Details'!$B$15:$D$36,3,FALSE)","v":0},{"$f":"VLOOKUP(D971,'Bank and Fund Details'!$B$15:$C$36,2,FALSE)","v":"Unrestricted"},{"$f":"IFERROR(VLOOKUP(C971,Descriptions!$B$6:$D$92,3,FALSE),\"\")","v":""},null,null,null,null,null,null,null,null,null,null,null,null,null,null,"General Fund",{"$f":"IFERROR(VLOOKUP(C971,Descriptions!B:F,5,FALSE),\"N\")","v":"N"},true,"NTRUE",0,null,{"$f":"IFERROR(VLOOKUP(D971,'Bank and Fund Details'!$B$14:$L$35,11,FALSE),\"N\")","v":"Y"},"NY"]
[null,null,null,"General Fund",null,null,null,null,null,{"$f":"VLOOKUP(D972,'Bank and Fund Details'!$B$15:$D$36,3,FALSE)","v":0},{"$f":"VLOOKUP(D972,'Bank and Fund Details'!$B$15:$C$36,2,FALSE)","v":"Unrestricted"},{"$f":"IFERROR(VLOOKUP(C972,Descriptions!$B$6:$D$92,3,FALSE),\"\")","v":""},null,null,null,null,null,null,null,null,null,null,null,null,null,null,"General Fund",{"$f":"IFERROR(VLOOKUP(C972,Descriptions!B:F,5,FALSE),\"N\")","v":"N"},true,"NTRUE",0,null,{"$f":"IFERROR(VLOOKUP(D972,'Bank and Fund Details'!$B$14:$L$35,11,FALSE),\"N\")","v":"Y"},"NY"]
[null,null,null,"General Fund",null,null,null,null,null,{"$f":"VLOOKUP(D973,'Bank and Fund Details'!$B$15:$D$36,3,FALSE)","v":0},{"$f":"VLOOKUP(D973,'Bank and Fund Details'!$B$15:$C$36,2,FALSE)","v":"Unrestricted"},{"$f":"IFERROR(VLOOKUP(C973,Descriptions!$B$6:$D$92,3,FALSE),\"\")","v":""},null,null,null,null,null,null,null,null,null,null,null,null,null,null,"General Fund",{"$f":"IFERROR(VLOOKUP(C973,Descriptions!B:F,5,FALSE),\"N\")","v":"N"},true,"NTRUE",0,null,{"$f":"IFERROR(VLOOKUP(D973,'Bank and Fund Details'!$B$14:$L$35,11,FALSE),\"N\")","v":"Y"},"NY"]
[null,null,null,"General Fund",null,null,null,null,null,{"$f":"VLOOKUP(D974,'Bank and Fund Details'!$B$15:$D$36,3,FALSE)","v":0},{"$f":"VLOOKUP(D974,'Bank and Fund Details'!$B$15:$C$36,2,FALSE)","v":"Unrestricted"},{"$f":"IFERROR(VLOOKUP(C974,Descriptions!$B$6:$D$92,3,FALSE),\"\")","v":""},null,null,null,null,null,null,null,null,null,null,null,null,null,null,"General Fund",{"$f":"IFERROR(VLOOKUP(C974,Descriptions!B:F,5,FALSE),\"N\")","v":"N"},true,"NTRUE",0,null,{"$f":"IFERROR(VLOOKUP(D974,'Bank and Fund Details'!$B$14:$L$35,11,FALSE),\"N\")","v":"Y"},"NY"]
[null,null,null,"General Fund",null,null,null,null,null,{"$f":"VLOOKUP(D975,'Bank and Fund Details'!$B$15:$D$36,3,FALSE)","v":0},{"$f":"VLOOKUP(D975,'Bank and Fund Details'!$B$15:$C$36,2,FALSE)","v":"Unrestricted"},{"$f":"IFERROR(VLOOKUP(C975,Descriptions!$B$6:$D$92,3,FALSE),\"\")","v":""},null,null,null,null,null,null,null,null,null,null,null,null,null,null,"General Fund",{"$f":"IFERROR(VLOOKUP(C975,Descriptions!B:F,5,FALSE),\"N\")","v":"N"},true,"NTRUE",0,null,{"$f":"IFERROR(VLOOKUP(D975,'Bank and Fund Details'!$B$14:$L$35,11,FALSE),\"N\")","v":"Y"},"NY"]
[null,null,null,"General Fund",null,null,null,null,null,{"$f":"VLOOKUP(D976,'Bank and Fund Details'!$B$15:$D$36,3,FALSE)","v":0},{"$f":"VLOOKUP(D976,'Bank and Fund Details'!$B$15:$C$36,2,FALSE)","v":"Unrestricted"},{"$f":"IFERROR(VLOOKUP(C976,Descriptions!$B$6:$D$92,3,FALSE),\"\")","v":""},null,null,null,null,null,null,null,null,null,null,null,null,null,null,"General Fund",{"$f":"IFERROR(VLOOKUP(C976,Descriptions!B:F,5,FALSE),\"N\")","v":"N"},true,"NTRUE",0,null,{"$f":"IFERROR(VLOOKUP(D976,'Bank and Fund Details'!$B$14:$L$35,11,FALSE),\"N\")","v":"Y"},"NY"]
[null,null,null,"General Fund",null,null,null,null,null,{"$f":"VLOOKUP(D977,'Bank and Fund Details'!$B$15:$D$36,3,FALSE)","v":0},{"$f":"VLOOKUP(D977,'Bank and Fund Details'!$B$15:$C$36,2,FALSE)","v":"Unrestricted"},{"$f":"IFERROR(VLOOKUP(C977,Descriptions!$B$6:$D$92,3,FALSE),\"\")","v":""},null,null,null,null,null,null,null,null,null,null,null,null,null,null,"General Fund",{"$f":"IFERROR(VLOOKUP(C977,Descriptions!B:F,5,FALSE),\"N\")","v":"N"},true,"NTRUE",0,null,{"$f":"IFERROR(VLOOKUP(D977,'Bank and Fund Details'!$B$14:$L$35,11,FALSE),\"N\")","v":"Y"},"NY"]
[null,null,null,"General Fund",null,null,null,null,null,{"$f":"VLOOKUP(D978,'Bank and Fund Details'!$B$15:$D$36,3,FALSE)","v":0},{"$f":"VLOOKUP(D978,'Bank and Fund Details'!$B$15:$C$36,2,FALSE)","v":"Unrestricted"},{"$f":"IFERROR(VLOOKUP(C978,Descriptions!$B$6:$D$92,3,FALSE),\"\")","v":""},null,null,null,null,null,null,null,null,null,null,null,null,null,null,"General Fund",{"$f":"IFERROR(VLOOKUP(C978,Descriptions!B:F,5,FALSE),\"N\")","v":"N"},true,"NTRUE",0,null,{"$f":"IFERROR(VLOOKUP(D978,'Bank and Fund Details'!$B$14:$L$35,11,FALSE),\"N\")","v":"Y"},"NY"]
[null,null,null,"General Fund",null,null,null,null,null,{"$f":"VLOOKUP(D979,'Bank and Fund Details'!$B$15:$D$36,3,FALSE)","v":0},{"$f":"VLOOKUP(D979,'Bank and Fund Details'!$B$15:$C$36,2,FALSE)","v":"Unrestricted"},{"$f":"IFERROR(VLOOKUP(C979,Descriptions!$B$6:$D$92,3,FALSE),\"\")","v":""},null,null,null,null,null,null,null,null,null,null,null,null,null,null,"General Fund",{"$f":"IFERROR(VLOOKUP(C979,Descriptions!B:F,5,FALSE),\"N\")","v":"N"},true,"NTRUE",0,null,{"$f":"IFERROR(VLOOKUP(D979,'Bank and Fund Details'!$B$14:$L$35,11,FALSE),\"N\")","v":"Y"},"NY"]
[null,null,null,"General Fund",null,null,null,null,null,{"$f":"VLOOKUP(D980,'Bank and Fund Details'!$B$15:$D$36,3,FALSE)","v":0},{"$f":"VLOOKUP(D980,'Bank and Fund Details'!$B$15:$C$36,2,FALSE)","v":"Unrestricted"},{"$f":"IFERROR(VLOOKUP(C980,Descriptions!$B$6:$D$92,3,FALSE),\"\")","v":""},null,null,null,null,null,null,null,null,null,null,null,null,null,null,"General Fund",{"$f":"IFERROR(VLOOKUP(C980,Descriptions!B:F,5,FALSE),\"N\")","v":"N"},true,"NTRUE",0,null,{"$f":"IFERROR(VLOOKUP(D980,'Bank and Fund Details'!$B$14:$L$35,11,FALSE),\"N\")","v":"Y"},"NY"]
[null,null,null,"General Fund",null,null,null,null,null,{"$f":"VLOOKUP(D981,'Bank and Fund Details'!$B$15:$D$36,3,FALSE)","v":0},{"$f":"VLOOKUP(D981,'Bank and Fund Details'!$B$15:$C$36,2,FALSE)","v":"Unrestricted"},{"$f":"IFERROR(VLOOKUP(C981,Descriptions!$B$6:$D$92,3,FALSE),\"\")","v":""},null,null,null,null,null,null,null,null,null,null,null,null,null,null,"General Fund",{"$f":"IFERROR(VLOOKUP(C981,Descriptions!B:F,5,FALSE),\"N\")","v":"N"},true,"NTRUE",0,null,{"$f":"IFERROR(VLOOKUP(D981,'Bank and Fund Details'!$B$14:$L$35,11,FALSE),\"N\")","v":"Y"},"NY"]
[null,null,null,"General Fund",null,null,null,null,null,{"$f":"VLOOKUP(D982,'Bank and Fund Details'!$B$15:$D$36,3,FALSE)","v":0},{"$f":"VLOOKUP(D982,'Bank and Fund Details'!$B$15:$C$36,2,FALSE)","v":"Unrestricted"},{"$f":"IFERROR(VLOOKUP(C982,Descriptions!$B$6:$D$92,3,FALSE),\"\")","v":""},null,null,null,null,null,null,null,null,null,null,null,null,null,null,"General Fund",{"$f":"IFERROR(VLOOKUP(C982,Descriptions!B:F,5,FALSE),\"N\")","v":"N"},true,"NTRUE",0,null,{"$f":"IFERROR(VLOOKUP(D982,'Bank and Fund Details'!$B$14:$L$35,11,FALSE),\"N\")","v":"Y"},"NY"]
[null,null,null,"General Fund",null,null,null,null,null,{"$f":"VLOOKUP(D983,'Bank and Fund Details'!$B$15:$D$36,3,FALSE)","v":0},{"$f":"VLOOKUP(D983,'Bank and Fund Details'!$B$15:$C$36,2,FALSE)","v":"Unrestricted"},{"$f":"IFERROR(VLOOKUP(C983,Descriptions!$B$6:$D$92,3,FALSE),\"\")","v":""},null,null,null,null,null,null,null,null,null,null,null,null,null,null,"General Fund",{"$f":"IFERROR(VLOOKUP(C983,Descriptions!B:F,5,FALSE),\"N\")","v":"N"},true,"NTRUE",0,null,{"$f":"IFERROR(VLOOKUP(D983,'Bank and Fund Details'!$B$14:$L$35,11,FALSE),\"N\")","v":"Y"},"NY"]
[null,null,null,"General Fund",null,null,null,null,null,{"$f":"VLOOKUP(D984,'Bank and Fund Details'!$B$15:$D$36,3,FALSE)","v":0},{"$f":"VLOOKUP(D984,'Bank and Fund Details'!$B$15:$C$36,2,FALSE)","v":"Unrestricted"},{"$f":"IFERROR(VLOOKUP(C984,Descriptions!$B$6:$D$92,3,FALSE),\"\")","v":""},null,null,null,null,null,null,null,null,null,null,null,null,null,null,"General Fund",{"$f":"IFERROR(VLOOKUP(C984,Descriptions!B:F,5,FALSE),\"N\")","v":"N"},true,"NTRUE",0,null,{"$f":"IFERROR(VLOOKUP(D984,'Bank and Fund Details'!$B$14:$L$35,11,FALSE),\"N\")","v":"Y"},"NY"]
[null,null,null,"General Fund",null,null,null,null,null,{"$f":"VLOOKUP(D985,'Bank and Fund Details'!$B$15:$D$36,3,FALSE)","v":0},{"$f":"VLOOKUP(D985,'Bank and Fund Details'!$B$15:$C$36,2,FALSE)","v":"Unrestricted"},{"$f":"IFERROR(VLOOKUP(C985,Descriptions!$B$6:$D$92,3,FALSE),\"\")","v":""},null,null,null,null,null,null,null,null,null,null,null,null,null,null,"General Fund",{"$f":"IFERROR(VLOOKUP(C985,Descriptions!B:F,5,FALSE),\"N\")","v":"N"},true,"NTRUE",0,null,{"$f":"IFERROR(VLOOKUP(D985,'Bank and Fund Details'!$B$14:$L$35,11,FALSE),\"N\")","v":"Y"},"NY"]
[null,null,null,"General Fund",null,null,null,null,null,{"$f":"VLOOKUP(D986,'Bank and Fund Details'!$B$15:$D$36,3,FALSE)","v":0},{"$f":"VLOOKUP(D986,'Bank and Fund Details'!$B$15:$C$36,2,FALSE)","v":"Unrestricted"},{"$f":"IFERROR(VLOOKUP(C986,Descriptions!$B$6:$D$92,3,FALSE),\"\")","v":""},null,null,null,null,null,null,null,null,null,null,null,null,null,null,"General Fund",{"$f":"IFERROR(VLOOKUP(C986,Descriptions!B:F,5,FALSE),\"N\")","v":"N"},true,"NTRUE",0,null,{"$f":"IFERROR(VLOOKUP(D986,'Bank and Fund Details'!$B$14:$L$35,11,FALSE),\"N\")","v":"Y"},"NY"]
[null,null,null,"General Fund",null,null,null,null,null,{"$f":"VLOOKUP(D987,'Bank and Fund Details'!$B$15:$D$36,3,FALSE)","v":0},{"$f":"VLOOKUP(D987,'Bank and Fund Details'!$B$15:$C$36,2,FALSE)","v":"Unrestricted"},{"$f":"IFERROR(VLOOKUP(C987,Descriptions!$B$6:$D$92,3,FALSE),\"\")","v":""},null,null,null,null,null,null,null,null,null,null,null,null,null,null,"General Fund",{"$f":"IFERROR(VLOOKUP(C987,Descriptions!B:F,5,FALSE),\"N\")","v":"N"},true,"NTRUE",0,null,{"$f":"IFERROR(VLOOKUP(D987,'Bank and Fund Details'!$B$14:$L$35,11,FALSE),\"N\")","v":"Y"},"NY"]
[null,null,null,"General Fund",null,null,null,null,null,{"$f":"VLOOKUP(D988,'Bank and Fund Details'!$B$15:$D$36,3,FALSE)","v":0},{"$f":"VLOOKUP(D988,'Bank and Fund Details'!$B$15:$C$36,2,FALSE)","v":"Unrestricted"},{"$f":"IFERROR(VLOOKUP(C988,Descriptions!$B$6:$D$92,3,FALSE),\"\")","v":""},null,null,null,null,null,null,null,null,null,null,null,null,null,null,"General Fund",{"$f":"IFERROR(VLOOKUP(C988,Descriptions!B:F,5,FALSE),\"N\")","v":"N"},true,"NTRUE",0,null,{"$f":"IFERROR(VLOOKUP(D988,'Bank and Fund Details'!$B$14:$L$35,11,FALSE),\"N\")","v":"Y"},"NY"]
[null,null,null,"General Fund",null,null,null,null,null,{"$f":"VLOOKUP(D989,'Bank and Fund Details'!$B$15:$D$36,3,FALSE)","v":0},{"$f":"VLOOKUP(D989,'Bank and Fund Details'!$B$15:$C$36,2,FALSE)","v":"Unrestricted"},{"$f":"IFERROR(VLOOKUP(C989,Descriptions!$B$6:$D$92,3,FALSE),\"\")","v":""},null,null,null,null,null,null,null,null,null,null,null,null,null,null,"General Fund",{"$f":"IFERROR(VLOOKUP(C989,Descriptions!B:F,5,FALSE),\"N\")","v":"N"},true,"NTRUE",0,null,{"$f":"IFERROR(VLOOKUP(D989,'Bank and Fund Details'!$B$14:$L$35,11,FALSE),\"N\")","v":"Y"},"NY"]
[null,null,null,"General Fund",null,null,null,null,null,{"$f":"VLOOKUP(D990,'Bank and Fund Details'!$B$15:$D$36,3,FALSE)","v":0},{"$f":"VLOOKUP(D990,'Bank and Fund Details'!$B$15:$C$36,2,FALSE)","v":"Unrestricted"},{"$f":"IFERROR(VLOOKUP(C990,Descriptions!$B$6:$D$92,3,FALSE),\"\")","v":""},null,null,null,null,null,null,null,null,null,null,null,null,null,null,"General Fund",{"$f":"IFERROR(VLOOKUP(C990,Descriptions!B:F,5,FALSE),\"N\")","v":"N"},true,"NTRUE",0,null,{"$f":"IFERROR(VLOOKUP(D990,'Bank and Fund Details'!$B$14:$L$35,11,FALSE),\"N\")","v":"Y"},"NY"]
[null,null,null,"General Fund",null,null,null,null,null,{"$f":"VLOOKUP(D991,'Bank and Fund Details'!$B$15:$D$36,3,FALSE)","v":0},{"$f":"VLOOKUP(D991,'Bank and Fund Details'!$B$15:$C$36,2,FALSE)","v":"Unrestricted"},{"$f":"IFERROR(VLOOKUP(C991,Descriptions!$B$6:$D$92,3,FALSE),\"\")","v":""},null,null,null,null,null,null,null,null,null,null,null,null,null,null,"General Fund",{"$f":"IFERROR(VLOOKUP(C991,Descriptions!B:F,5,FALSE),\"N\")","v":"N"},true,"NTRUE",0,null,{"$f":"IFERROR(VLOOKUP(D991,'Bank and Fund Details'!$B$14:$L$35,11,FALSE),\"N\")","v":"Y"},"NY"]
[null,null,null,"General Fund",null,null,null,null,null,{"$f":"VLOOKUP(D992,'Bank and Fund Details'!$B$15:$D$36,3,FALSE)","v":0},{"$f":"VLOOKUP(D992,'Bank and Fund Details'!$B$15:$C$36,2,FALSE)","v":"Unrestricted"},{"$f":"IFERROR(VLOOKUP(C992,Descriptions!$B$6:$D$92,3,FALSE),\"\")","v":""},null,null,null,null,null,null,null,null,null,null,null,null,null,null,"General Fund",{"$f":"IFERROR(VLOOKUP(C992,Descriptions!B:F,5,FALSE),\"N\")","v":"N"},true,"NTRUE",0,null,{"$f":"IFERROR(VLOOKUP(D992,'Bank and Fund Details'!$B$14:$L$35,11,FALSE),\"N\")","v":"Y"},"NY"]
[null,null,null,"General Fund",null,null,null,null,null,{"$f":"VLOOKUP(D993,'Bank and Fund Details'!$B$15:$D$36,3,FALSE)","v":0},{"$f":"VLOOKUP(D993,'Bank and Fund Details'!$B$15:$C$36,2,FALSE)","v":"Unrestricted"},{"$f":"IFERROR(VLOOKUP(C993,Descriptions!$B$6:$D$92,3,FALSE),\"\")","v":""},null,null,null,null,null,null,null,null,null,null,null,null,null,null,"General Fund",{"$f":"IFERROR(VLOOKUP(C993,Descriptions!B:F,5,FALSE),\"N\")","v":"N"},true,"NTRUE",0,null,{"$f":"IFERROR(VLOOKUP(D993,'Bank and Fund Details'!$B$14:$L$35,11,FALSE),\"N\")","v":"Y"},"NY"]
[null,null,null,"General Fund",null,null,null,null,null,{"$f":"VLOOKUP(D994,'Bank and Fund Details'!$B$15:$D$36,3,FALSE)","v":0},{"$f":"VLOOKUP(D994,'Bank and Fund Details'!$B$15:$C$36,2,FALSE)","v":"Unrestricted"},{"$f":"IFERROR(VLOOKUP(C994,Descriptions!$B$6:$D$92,3,FALSE),\"\")","v":""},null,null,null,null,null,null,null,null,null,null,null,null,null,null,"General Fund",{"$f":"IFERROR(VLOOKUP(C994,Descriptions!B:F,5,FALSE),\"N\")","v":"N"},true,"NTRUE",0,null,{"$f":"IFERROR(VLOOKUP(D994,'Bank and Fund Details'!$B$14:$L$35,11,FALSE),\"N\")","v":"Y"},"NY"]
[null,null,null,"General Fund",null,null,null,null,null,{"$f":"VLOOKUP(D995,'Bank and Fund Details'!$B$15:$D$36,3,FALSE)","v":0},{"$f":"VLOOKUP(D995,'Bank and Fund Details'!$B$15:$C$36,2,FALSE)","v":"Unrestricted"},{"$f":"IFERROR(VLOOKUP(C995,Descriptions!$B$6:$D$92,3,FALSE),\"\")","v":""},null,null,null,null,null,null,null,null,null,null,null,null,null,null,"General Fund",{"$f":"IFERROR(VLOOKUP(C995,Descriptions!B:F,5,FALSE),\"N\")","v":"N"},true,"NTRUE",0,null,{"$f":"IFERROR(VLOOKUP(D995,'Bank and Fund Details'!$B$14:$L$35,11,FALSE),\"N\")","v":"Y"},"NY"]
[null,null,null,"General Fund",null,null,null,null,null,{"$f":"VLOOKUP(D996,'Bank and Fund Details'!$B$15:$D$36,3,FALSE)","v":0},{"$f":"VLOOKUP(D996,'Bank and Fund Details'!$B$15:$C$36,2,FALSE)","v":"Unrestricted"},{"$f":"IFERROR(VLOOKUP(C996,Descriptions!$B$6:$D$92,3,FALSE),\"\")","v":""},null,null,null,null,null,null,null,null,null,null,null,null,null,null,"General Fund",{"$f":"IFERROR(VLOOKUP(C996,Descriptions!B:F,5,FALSE),\"N\")","v":"N"},true,"NTRUE",0,null,{"$f":"IFERROR(VLOOKUP(D996,'Bank and Fund Details'!$B$14:$L$35,11,FALSE),\"N\")","v":"Y"},"NY"]
[null,null,null,"General Fund",null,null,null,null,null,{"$f":"VLOOKUP(D997,'Bank and Fund Details'!$B$15:$D$36,3,FALSE)","v":0},{"$f":"VLOOKUP(D997,'Bank and Fund Details'!$B$15:$C$36,2,FALSE)","v":"Unrestricted"},{"$f":"IFERROR(VLOOKUP(C997,Descriptions!$B$6:$D$92,3,FALSE),\"\")","v":""},null,null,null,null,null,null,null,null,null,null,null,null,null,null,"General Fund",{"$f":"IFERROR(VLOOKUP(C997,Descriptions!B:F,5,FALSE),\"N\")","v":"N"},true,"NTRUE",0,null,{"$f":"IFERROR(VLOOKUP(D997,'Bank and Fund Details'!$B$14:$L$35,11,FALSE),\"N\")","v":"Y"},"NY"]
[null,null,null,"General Fund",null,null,null,null,null,{"$f":"VLOOKUP(D998,'Bank and Fund Details'!$B$15:$D$36,3,FALSE)","v":0},{"$f":"VLOOKUP(D998,'Bank and Fund Details'!$B$15:$C$36,2,FALSE)","v":"Unrestricted"},{"$f":"IFERROR(VLOOKUP(C998,Descriptions!$B$6:$D$92,3,FALSE),\"\")","v":""},null,null,null,null,null,null,null,null,null,null,null,null,null,null,"General Fund",{"$f":"IFERROR(VLOOKUP(C998,Descriptions!B:F,5,FALSE),\"N\")","v":"N"},true,"NTRUE",0,null,{"$f":"IFERROR(VLOOKUP(D998,'Bank and Fund Details'!$B$14:$L$35,11,FALSE),\"N\")","v":"Y"},"NY"]
[null,null,null,"General Fund",null,null,null,null,null,{"$f":"VLOOKUP(D999,'Bank and Fund Details'!$B$15:$D$36,3,FALSE)","v":0},{"$f":"VLOOKUP(D999,'Bank and Fund Details'!$B$15:$C$36,2,FALSE)","v":"Unrestricted"},{"$f":"IFERROR(VLOOKUP(C999,Descriptions!$B$6:$D$92,3,FALSE),\"\")","v":""},null,null,null,null,null,null,null,null,null,null,null,null,null,null,"General Fund",{"$f":"IFERROR(VLOOKUP(C999,Descriptions!B:F,5,FALSE),\"N\")","v":"N"},true,"NTRUE",0,null,{"$f":"IFERROR(VLOOKUP(D999,'Bank and Fund Details'!$B$14:$L$35,11,FALSE),\"N\")","v":"Y"},"NY"]
[null,null,null,"General Fund",null,null,null,null,null,{"$f":"VLOOKUP(D1000,'Bank and Fund Details'!$B$15:$D$36,3,FALSE)","v":0},{"$f":"VLOOKUP(D1000,'Bank and Fund Details'!$B$15:$C$36,2,FALSE)","v":"Unrestricted"},{"$f":"IFERROR(VLOOKUP(C1000,Descriptions!$B$6:$D$92,3,FALSE),\"\")","v":""},null,null,null,null,null,null,null,null,null,null,null,null,null,null,"General Fund",{"$f":"IFERROR(VLOOKUP(C1000,Descriptions!B:F,5,FALSE),\"N\")","v":"N"},true,"NTRUE",0,null,{"$f":"IFERROR(VLOOKUP(D1000,'Bank and Fund Details'!$B$14:$L$35,11,FALSE),\"N\")","v":"Y"},"NY"]
[null,null,null,"General Fund",null,null,null,null,null,{"$f":"VLOOKUP(D1001,'Bank and Fund Details'!$B$15:$D$36,3,FALSE)","v":0},{"$f":"VLOOKUP(D1001,'Bank and Fund Details'!$B$15:$C$36,2,FALSE)","v":"Unrestricted"},{"$f":"IFERROR(VLOOKUP(C1001,Descriptions!$B$6:$D$92,3,FALSE),\"\")","v":""},null,null,null,null,null,null,null,null,null,null,null,null,null,null,"General Fund",{"$f":"IFERROR(VLOOKUP(C1001,Descriptions!B:F,5,FALSE),\"N\")","v":"N"},true,"NTRUE",0,null,{"$f":"IFERROR(VLOOKUP(D1001,'Bank and Fund Details'!$B$14:$L$35,11,FALSE),\"N\")","v":"Y"},"NY"]
[null,null,null,"General Fund",null,null,null,null,null,{"$f":"VLOOKUP(D1002,'Bank and Fund Details'!$B$15:$D$36,3,FALSE)","v":0},{"$f":"VLOOKUP(D1002,'Bank and Fund Details'!$B$15:$C$36,2,FALSE)","v":"Unrestricted"},{"$f":"IFERROR(VLOOKUP(C1002,Descriptions!$B$6:$D$92,3,FALSE),\"\")","v":""},null,null,null,null,null,null,null,null,null,null,null,null,null,null,"General Fund",{"$f":"IFERROR(VLOOKUP(C1002,Descriptions!B:F,5,FALSE),\"N\")","v":"N"},true,"NTRUE",0,null,{"$f":"IFERROR(VLOOKUP(D1002,'Bank and Fund Details'!$B$14:$L$35,11,FALSE),\"N\")","v":"Y"},"NY"]
[null,null,null,"General Fund",null,null,null,null,null,{"$f":"VLOOKUP(D1003,'Bank and Fund Details'!$B$15:$D$36,3,FALSE)","v":0},{"$f":"VLOOKUP(D1003,'Bank and Fund Details'!$B$15:$C$36,2,FALSE)","v":"Unrestricted"},{"$f":"IFERROR(VLOOKUP(C1003,Descriptions!$B$6:$D$92,3,FALSE),\"\")","v":""},null,null,null,null,null,null,null,null,null,null,null,null,null,null,"General Fund",{"$f":"IFERROR(VLOOKUP(C1003,Descriptions!B:F,5,FALSE),\"N\")","v":"N"},true,"NTRUE",0,null,{"$f":"IFERROR(VLOOKUP(D1003,'Bank and Fund Details'!$B$14:$L$35,11,FALSE),\"N\")","v":"Y"},"NY"]
[null,null,null,"General Fund",null,null,null,null,null,{"$f":"VLOOKUP(D1004,'Bank and Fund Details'!$B$15:$D$36,3,FALSE)","v":0},{"$f":"VLOOKUP(D1004,'Bank and Fund Details'!$B$15:$C$36,2,FALSE)","v":"Unrestricted"},{"$f":"IFERROR(VLOOKUP(C1004,Descriptions!$B$6:$D$92,3,FALSE),\"\")","v":""},null,null,null,null,null,null,null,null,null,null,null,null,null,null,"General Fund",{"$f":"IFERROR(VLOOKUP(C1004,Descriptions!B:F,5,FALSE),\"N\")","v":"N"},true,"NTRUE",0,null,{"$f":"IFERROR(VLOOKUP(D1004,'Bank and Fund Details'!$B$14:$L$35,11,FALSE),\"N\")","v":"Y"},"NY"]
[null,null,null,"General Fund",null,null,null,null,null,{"$f":"VLOOKUP(D1005,'Bank and Fund Details'!$B$15:$D$36,3,FALSE)","v":0},{"$f":"VLOOKUP(D1005,'Bank and Fund Details'!$B$15:$C$36,2,FALSE)","v":"Unrestricted"},{"$f":"IFERROR(VLOOKUP(C1005,Descriptions!$B$6:$D$92,3,FALSE),\"\")","v":""},null,null,null,null,null,null,null,null,null,null,null,null,null,null,"General Fund",{"$f":"IFERROR(VLOOKUP(C1005,Descriptions!B:F,5,FALSE),\"N\")","v":"N"},true,"NTRUE",0,null,{"$f":"IFERROR(VLOOKUP(D1005,'Bank and Fund Details'!$B$14:$L$35,11,FALSE),\"N\")","v":"Y"},"NY"]
[null,null,null,"General Fund",null,null,null,null,null,{"$f":"VLOOKUP(D1006,'Bank and Fund Details'!$B$15:$D$36,3,FALSE)","v":0},{"$f":"VLOOKUP(D1006,'Bank and Fund Details'!$B$15:$C$36,2,FALSE)","v":"Unrestricted"},{"$f":"IFERROR(VLOOKUP(C1006,Descriptions!$B$6:$D$92,3,FALSE),\"\")","v":""},null,null,null,null,null,null,null,null,null,null,null,null,null,null,"General Fund",{"$f":"IFERROR(VLOOKUP(C1006,Descriptions!B:F,5,FALSE),\"N\")","v":"N"},true,"NTRUE",0,null,{"$f":"IFERROR(VLOOKUP(D1006,'Bank and Fund Details'!$B$14:$L$35,11,FALSE),\"N\")","v":"Y"},"NY"]
[null,null,null,"General Fund",null,null,null,null,null,{"$f":"VLOOKUP(D1007,'Bank and Fund Details'!$B$15:$D$36,3,FALSE)","v":0},{"$f":"VLOOKUP(D1007,'Bank and Fund Details'!$B$15:$C$36,2,FALSE)","v":"Unrestricted"},{"$f":"IFERROR(VLOOKUP(C1007,Descriptions!$B$6:$D$92,3,FALSE),\"\")","v":""},null,null,null,null,null,null,null,null,null,null,null,null,null,null,"General Fund",{"$f":"IFERROR(VLOOKUP(C1007,Descriptions!B:F,5,FALSE),\"N\")","v":"N"},true,"NTRUE",0,null,{"$f":"IFERROR(VLOOKUP(D1007,'Bank and Fund Details'!$B$14:$L$35,11,FALSE),\"N\")","v":"Y"},"NY"]
[null,null,null,"General Fund",null,null,null,null,null,{"$f":"VLOOKUP(D1008,'Bank and Fund Details'!$B$15:$D$36,3,FALSE)","v":0},{"$f":"VLOOKUP(D1008,'Bank and Fund Details'!$B$15:$C$36,2,FALSE)","v":"Unrestricted"},{"$f":"IFERROR(VLOOKUP(C1008,Descriptions!$B$6:$D$92,3,FALSE),\"\")","v":""},null,null,null,null,null,null,null,null,null,null,null,null,null,null,"General Fund",{"$f":"IFERROR(VLOOKUP(C1008,Descriptions!B:F,5,FALSE),\"N\")","v":"N"},true,"NTRUE",0,null,{"$f":"IFERROR(VLOOKUP(D1008,'Bank and Fund Details'!$B$14:$L$35,11,FALSE),\"N\")","v":"Y"},"NY"]
[null,null,null,"General Fund",null,null,null,null,null,{"$f":"VLOOKUP(D1009,'Bank and Fund Details'!$B$15:$D$36,3,FALSE)","v":0},{"$f":"VLOOKUP(D1009,'Bank and Fund Details'!$B$15:$C$36,2,FALSE)","v":"Unrestricted"},{"$f":"IFERROR(VLOOKUP(C1009,Descriptions!$B$6:$D$92,3,FALSE),\"\")","v":""},null,null,null,null,null,null,null,null,null,null,null,null,null,null,"General Fund",{"$f":"IFERROR(VLOOKUP(C1009,Descriptions!B:F,5,FALSE),\"N\")","v":"N"},true,"NTRUE",0,null,{"$f":"IFERROR(VLOOKUP(D1009,'Bank and Fund Details'!$B$14:$L$35,11,FALSE),\"N\")","v":"Y"},"NY"]
[null,null,null,"General Fund",null,null,null,null,null,{"$f":"VLOOKUP(D1010,'Bank and Fund Details'!$B$15:$D$36,3,FALSE)","v":0},{"$f":"VLOOKUP(D1010,'Bank and Fund Details'!$B$15:$C$36,2,FALSE)","v":"Unrestricted"},{"$f":"IFERROR(VLOOKUP(C1010,Descriptions!$B$6:$D$92,3,FALSE),\"\")","v":""},null,null,null,null,null,null,null,null,null,null,null,null,null,null,"General Fund",{"$f":"IFERROR(VLOOKUP(C1010,Descriptions!B:F,5,FALSE),\"N\")","v":"N"},true,"NTRUE",0,null,{"$f":"IFERROR(VLOOKUP(D1010,'Bank and Fund Details'!$B$14:$L$35,11,FALSE),\"N\")","v":"Y"},"NY"]
[null,null,null,"General Fund",null,null,null,null,null,{"$f":"VLOOKUP(D1011,'Bank and Fund Details'!$B$15:$D$36,3,FALSE)","v":0},{"$f":"VLOOKUP(D1011,'Bank and Fund Details'!$B$15:$C$36,2,FALSE)","v":"Unrestricted"},{"$f":"IFERROR(VLOOKUP(C1011,Descriptions!$B$6:$D$92,3,FALSE),\"\")","v":""},null,null,null,null,null,null,null,null,null,null,null,null,null,null,"General Fund",{"$f":"IFERROR(VLOOKUP(C1011,Descriptions!B:F,5,FALSE),\"N\")","v":"N"},true,"NTRUE",0,null,{"$f":"IFERROR(VLOOKUP(D1011,'Bank and Fund Details'!$B$14:$L$35,11,FALSE),\"N\")","v":"Y"},"NY"]
[null,null,null,"General Fund",null,null,null,null,null,{"$f":"VLOOKUP(D1012,'Bank and Fund Details'!$B$15:$D$36,3,FALSE)","v":0},{"$f":"VLOOKUP(D1012,'Bank and Fund Details'!$B$15:$C$36,2,FALSE)","v":"Unrestricted"},{"$f":"IFERROR(VLOOKUP(C1012,Descriptions!$B$6:$D$92,3,FALSE),\"\")","v":""},null,null,null,null,null,null,null,null,null,null,null,null,null,null,"General Fund",{"$f":"IFERROR(VLOOKUP(C1012,Descriptions!B:F,5,FALSE),\"N\")","v":"N"},true,"NTRUE",0,null,{"$f":"IFERROR(VLOOKUP(D1012,'Bank and Fund Details'!$B$14:$L$35,11,FALSE),\"N\")","v":"Y"},"NY"]
[null,null,null,"General Fund",null,null,null,null,null,{"$f":"VLOOKUP(D1013,'Bank and Fund Details'!$B$15:$D$36,3,FALSE)","v":0},{"$f":"VLOOKUP(D1013,'Bank and Fund Details'!$B$15:$C$36,2,FALSE)","v":"Unrestricted"},{"$f":"IFERROR(VLOOKUP(C1013,Descriptions!$B$6:$D$92,3,FALSE),\"\")","v":""},null,null,null,null,null,null,null,null,null,null,null,null,null,null,"General Fund",{"$f":"IFERROR(VLOOKUP(C1013,Descriptions!B:F,5,FALSE),\"N\")","v":"N"},true,"NTRUE",0,null,{"$f":"IFERROR(VLOOKUP(D1013,'Bank and Fund Details'!$B$14:$L$35,11,FALSE),\"N\")","v":"Y"},"NY"]
[null,null,null,"General Fund",null,null,null,null,null,{"$f":"VLOOKUP(D1014,'Bank and Fund Details'!$B$15:$D$36,3,FALSE)","v":0},{"$f":"VLOOKUP(D1014,'Bank and Fund Details'!$B$15:$C$36,2,FALSE)","v":"Unrestricted"},{"$f":"IFERROR(VLOOKUP(C1014,Descriptions!$B$6:$D$92,3,FALSE),\"\")","v":""},null,null,null,null,null,null,null,null,null,null,null,null,null,null,"General Fund",{"$f":"IFERROR(VLOOKUP(C1014,Descriptions!B:F,5,FALSE),\"N\")","v":"N"},true,"NTRUE",0,null,{"$f":"IFERROR(VLOOKUP(D1014,'Bank and Fund Details'!$B$14:$L$35,11,FALSE),\"N\")","v":"Y"},"NY"]
[null,null,null,"General Fund",null,null,null,null,null,{"$f":"VLOOKUP(D1015,'Bank and Fund Details'!$B$15:$D$36,3,FALSE)","v":0},{"$f":"VLOOKUP(D1015,'Bank and Fund Details'!$B$15:$C$36,2,FALSE)","v":"Unrestricted"},{"$f":"IFERROR(VLOOKUP(C1015,Descriptions!$B$6:$D$92,3,FALSE),\"\")","v":""},null,null,null,null,null,null,null,null,null,null,null,null,null,null,"General Fund",{"$f":"IFERROR(VLOOKUP(C1015,Descriptions!B:F,5,FALSE),\"N\")","v":"N"},true,"NTRUE",0,null,{"$f":"IFERROR(VLOOKUP(D1015,'Bank and Fund Details'!$B$14:$L$35,11,FALSE),\"N\")","v":"Y"},"NY"]
[null,null,null,"General Fund",null,null,null,null,null,{"$f":"VLOOKUP(D1016,'Bank and Fund Details'!$B$15:$D$36,3,FALSE)","v":0},{"$f":"VLOOKUP(D1016,'Bank and Fund Details'!$B$15:$C$36,2,FALSE)","v":"Unrestricted"},{"$f":"IFERROR(VLOOKUP(C1016,Descriptions!$B$6:$D$92,3,FALSE),\"\")","v":""},null,null,null,null,null,null,null,null,null,null,null,null,null,null,"General Fund",{"$f":"IFERROR(VLOOKUP(C1016,Descriptions!B:F,5,FALSE),\"N\")","v":"N"},true,"NTRUE",0,null,{"$f":"IFERROR(VLOOKUP(D1016,'Bank and Fund Details'!$B$14:$L$35,11,FALSE),\"N\")","v":"Y"},"NY"]
[null,null,null,"General Fund",null,null,null,null,null,{"$f":"VLOOKUP(D1017,'Bank and Fund Details'!$B$15:$D$36,3,FALSE)","v":0},{"$f":"VLOOKUP(D1017,'Bank and Fund Details'!$B$15:$C$36,2,FALSE)","v":"Unrestricted"},{"$f":"IFERROR(VLOOKUP(C1017,Descriptions!$B$6:$D$92,3,FALSE),\"\")","v":""},null,null,null,null,null,null,null,null,null,null,null,null,null,null,"General Fund",{"$f":"IFERROR(VLOOKUP(C1017,Descriptions!B:F,5,FALSE),\"N\")","v":"N"},true,"NTRUE",0,null,{"$f":"IFERROR(VLOOKUP(D1017,'Bank and Fund Details'!$B$14:$L$35,11,FALSE),\"N\")","v":"Y"},"NY"]
[null,null,null,"General Fund",null,null,null,null,null,{"$f":"VLOOKUP(D1018,'Bank and Fund Details'!$B$15:$D$36,3,FALSE)","v":0},{"$f":"VLOOKUP(D1018,'Bank and Fund Details'!$B$15:$C$36,2,FALSE)","v":"Unrestricted"},{"$f":"IFERROR(VLOOKUP(C1018,Descriptions!$B$6:$D$92,3,FALSE),\"\")","v":""},null,null,null,null,null,null,null,null,null,null,null,null,null,null,"General Fund",{"$f":"IFERROR(VLOOKUP(C1018,Descriptions!B:F,5,FALSE),\"N\")","v":"N"},true,"NTRUE",0,null,{"$f":"IFERROR(VLOOKUP(D1018,'Bank and Fund Details'!$B$14:$L$35,11,FALSE),\"N\")","v":"Y"},"NY"]
[null,null,null,"General Fund",null,null,null,null,null,{"$f":"VLOOKUP(D1019,'Bank and Fund Details'!$B$15:$D$36,3,FALSE)","v":0},{"$f":"VLOOKUP(D1019,'Bank and Fund Details'!$B$15:$C$36,2,FALSE)","v":"Unrestricted"},{"$f":"IFERROR(VLOOKUP(C1019,Descriptions!$B$6:$D$92,3,FALSE),\"\")","v":""},null,null,null,null,null,null,null,null,null,null,null,null,null,null,"General Fund",{"$f":"IFERROR(VLOOKUP(C1019,Descriptions!B:F,5,FALSE),\"N\")","v":"N"},true,"NTRUE",0,null,{"$f":"IFERROR(VLOOKUP(D1019,'Bank and Fund Details'!$B$14:$L$35,11,FALSE),\"N\")","v":"Y"},"NY"]
[null,null,null,"General Fund",null,null,null,null,null,{"$f":"VLOOKUP(D1020,'Bank and Fund Details'!$B$15:$D$36,3,FALSE)","v":0},{"$f":"VLOOKUP(D1020,'Bank and Fund Details'!$B$15:$C$36,2,FALSE)","v":"Unrestricted"},{"$f":"IFERROR(VLOOKUP(C1020,Descriptions!$B$6:$D$92,3,FALSE),\"\")","v":""},null,null,null,null,null,null,null,null,null,null,null,null,null,null,"General Fund",{"$f":"IFERROR(VLOOKUP(C1020,Descriptions!B:F,5,FALSE),\"N\")","v":"N"},true,"NTRUE",0,null,{"$f":"IFERROR(VLOOKUP(D1020,'Bank and Fund Details'!$B$14:$L$35,11,FALSE),\"N\")","v":"Y"},"NY"]
[null,null,null,"General Fund",null,null,null,null,null,{"$f":"VLOOKUP(D1021,'Bank and Fund Details'!$B$15:$D$36,3,FALSE)","v":0},{"$f":"VLOOKUP(D1021,'Bank and Fund Details'!$B$15:$C$36,2,FALSE)","v":"Unrestricted"},{"$f":"IFERROR(VLOOKUP(C1021,Descriptions!$B$6:$D$92,3,FALSE),\"\")","v":""},null,null,null,null,null,null,null,null,null,null,null,null,null,null,"General Fund",{"$f":"IFERROR(VLOOKUP(C1021,Descriptions!B:F,5,FALSE),\"N\")","v":"N"},true,"NTRUE",0,null,{"$f":"IFERROR(VLOOKUP(D1021,'Bank and Fund Details'!$B$14:$L$35,11,FALSE),\"N\")","v":"Y"},"NY"]
[null,null,null,"General Fund",null,null,null,null,null,{"$f":"VLOOKUP(D1022,'Bank and Fund Details'!$B$15:$D$36,3,FALSE)","v":0},{"$f":"VLOOKUP(D1022,'Bank and Fund Details'!$B$15:$C$36,2,FALSE)","v":"Unrestricted"},{"$f":"IFERROR(VLOOKUP(C1022,Descriptions!$B$6:$D$92,3,FALSE),\"\")","v":""},null,null,null,null,null,null,null,null,null,null,null,null,null,null,"General Fund",{"$f":"IFERROR(VLOOKUP(C1022,Descriptions!B:F,5,FALSE),\"N\")","v":"N"},true,"NTRUE",0,null,{"$f":"IFERROR(VLOOKUP(D1022,'Bank and Fund Details'!$B$14:$L$35,11,FALSE),\"N\")","v":"Y"},"NY"]
[null,null,null,"General Fund",null,null,null,null,null,{"$f":"VLOOKUP(D1023,'Bank and Fund Details'!$B$15:$D$36,3,FALSE)","v":0},{"$f":"VLOOKUP(D1023,'Bank and Fund Details'!$B$15:$C$36,2,FALSE)","v":"Unrestricted"},{"$f":"IFERROR(VLOOKUP(C1023,Descriptions!$B$6:$D$92,3,FALSE),\"\")","v":""},null,null,null,null,null,null,null,null,null,null,null,null,null,null,"General Fund",{"$f":"IFERROR(VLOOKUP(C1023,Descriptions!B:F,5,FALSE),\"N\")","v":"N"},true,"NTRUE",0,null,{"$f":"IFERROR(VLOOKUP(D1023,'Bank and Fund Details'!$B$14:$L$35,11,FALSE),\"N\")","v":"Y"},"NY"]
[null,null,null,"General Fund",null,null,null,null,null,{"$f":"VLOOKUP(D1024,'Bank and Fund Details'!$B$15:$D$36,3,FALSE)","v":0},{"$f":"VLOOKUP(D1024,'Bank and Fund Details'!$B$15:$C$36,2,FALSE)","v":"Unrestricted"},{"$f":"IFERROR(VLOOKUP(C1024,Descriptions!$B$6:$D$92,3,FALSE),\"\")","v":""},null,null,null,null,null,null,null,null,null,null,null,null,null,null,"General Fund",{"$f":"IFERROR(VLOOKUP(C1024,Descriptions!B:F,5,FALSE),\"N\")","v":"N"},true,"NTRUE",0,null,{"$f":"IFERROR(VLOOKUP(D1024,'Bank and Fund Details'!$B$14:$L$35,11,FALSE),\"N\")","v":"Y"},"NY"]
[null,null,null,"General Fund",null,null,null,null,null,{"$f":"VLOOKUP(D1025,'Bank and Fund Details'!$B$15:$D$36,3,FALSE)","v":0},{"$f":"VLOOKUP(D1025,'Bank and Fund Details'!$B$15:$C$36,2,FALSE)","v":"Unrestricted"},{"$f":"IFERROR(VLOOKUP(C1025,Descriptions!$B$6:$D$92,3,FALSE),\"\")","v":""},null,null,null,null,null,null,null,null,null,null,null,null,null,null,"General Fund",{"$f":"IFERROR(VLOOKUP(C1025,Descriptions!B:F,5,FALSE),\"N\")","v":"N"},true,"NTRUE",0,null,{"$f":"IFERROR(VLOOKUP(D1025,'Bank and Fund Details'!$B$14:$L$35,11,FALSE),\"N\")","v":"Y"},"NY"]
[null,null,null,"General Fund",null,null,null,null,null,{"$f":"VLOOKUP(D1026,'Bank and Fund Details'!$B$15:$D$36,3,FALSE)","v":0},{"$f":"VLOOKUP(D1026,'Bank and Fund Details'!$B$15:$C$36,2,FALSE)","v":"Unrestricted"},{"$f":"IFERROR(VLOOKUP(C1026,Descriptions!$B$6:$D$92,3,FALSE),\"\")","v":""},null,null,null,null,null,null,null,null,null,null,null,null,null,null,"General Fund",{"$f":"IFERROR(VLOOKUP(C1026,Descriptions!B:F,5,FALSE),\"N\")","v":"N"},true,"NTRUE",0,null,{"$f":"IFERROR(VLOOKUP(D1026,'Bank and Fund Details'!$B$14:$L$35,11,FALSE),\"N\")","v":"Y"},"NY"]
[null,null,null,"General Fund",null,null,null,null,null,{"$f":"VLOOKUP(D1027,'Bank and Fund Details'!$B$15:$D$36,3,FALSE)","v":0},{"$f":"VLOOKUP(D1027,'Bank and Fund Details'!$B$15:$C$36,2,FALSE)","v":"Unrestricted"},{"$f":"IFERROR(VLOOKUP(C1027,Descriptions!$B$6:$D$92,3,FALSE),\"\")","v":""},null,null,null,null,null,null,null,null,null,null,null,null,null,null,"General Fund",{"$f":"IFERROR(VLOOKUP(C1027,Descriptions!B:F,5,FALSE),\"N\")","v":"N"},true,"NTRUE",0,null,{"$f":"IFERROR(VLOOKUP(D1027,'Bank and Fund Details'!$B$14:$L$35,11,FALSE),\"N\")","v":"Y"},"NY"]
[null,null,null,"General Fund",null,null,null,null,null,{"$f":"VLOOKUP(D1028,'Bank and Fund Details'!$B$15:$D$36,3,FALSE)","v":0},{"$f":"VLOOKUP(D1028,'Bank and Fund Details'!$B$15:$C$36,2,FALSE)","v":"Unrestricted"},{"$f":"IFERROR(VLOOKUP(C1028,Descriptions!$B$6:$D$92,3,FALSE),\"\")","v":""},null,null,null,null,null,null,null,null,null,null,null,null,null,null,"General Fund",{"$f":"IFERROR(VLOOKUP(C1028,Descriptions!B:F,5,FALSE),\"N\")","v":"N"},true,"NTRUE",0,null,{"$f":"IFERROR(VLOOKUP(D1028,'Bank and Fund Details'!$B$14:$L$35,11,FALSE),\"N\")","v":"Y"},"NY"]
[null,null,null,"General Fund",null,null,null,null,null,{"$f":"VLOOKUP(D1029,'Bank and Fund Details'!$B$15:$D$36,3,FALSE)","v":0},{"$f":"VLOOKUP(D1029,'Bank and Fund Details'!$B$15:$C$36,2,FALSE)","v":"Unrestricted"},{"$f":"IFERROR(VLOOKUP(C1029,Descriptions!$B$6:$D$92,3,FALSE),\"\")","v":""},null,null,null,null,null,null,null,null,null,null,null,null,null,null,{"$f":"CONCATENATE(C1029,D1029)","v":"General Fund"},{"$f":"IFERROR(VLOOKUP(C1029,Descriptions!B:F,5,FALSE),\"N\")","v":"N"},{"$f":"ISBLANK(C1029)","v":true},{"$f":"CONCATENATE(AB1029,AC1029)","v":"NTRUE"},{"$f":"IF(AD1029=\"NFALSE\",1,0)","v":0},null,{"$f":"IFERROR(VLOOKUP(D1029,'Bank and Fund Details'!$B$14:$L$35,11,FALSE),\"N\")","v":"Y"},"NY"]
[null,null,null,"General Fund",null,null,null,null,null,{"$f":"VLOOKUP(D1030,'Bank and Fund Details'!$B$15:$D$36,3,FALSE)","v":0},{"$f":"VLOOKUP(D1030,'Bank and Fund Details'!$B$15:$C$36,2,FALSE)","v":"Unrestricted"},{"$f":"IFERROR(VLOOKUP(C1030,Descriptions!$B$6:$D$92,3,FALSE),\"\")","v":""},null,null,null,null,null,null,null,null,null,null,null,null,null,null,"General Fund",{"$f":"IFERROR(VLOOKUP(C1030,Descriptions!B:F,5,FALSE),\"N\")","v":"N"},true,"NTRUE",0,null,{"$f":"IFERROR(VLOOKUP(D1030,'Bank and Fund Details'!$B$14:$L$35,11,FALSE),\"N\")","v":"Y"},{"$f":"CONCATENATE(AB1030,AG1030)","v":"NY"}]
[null,null,null,"General Fund",null,null,null,null,null,{"$f":"VLOOKUP(D1031,'Bank and Fund Details'!$B$15:$D$36,3,FALSE)","v":0},{"$f":"VLOOKUP(D1031,'Bank and Fund Details'!$B$15:$C$36,2,FALSE)","v":"Unrestricted"},{"$f":"IFERROR(VLOOKUP(C1031,Descriptions!$B$6:$D$92,3,FALSE),\"\")","v":""},null,null,null,null,null,null,null,null,null,null,null,null,null,null,"General Fund",{"$f":"IFERROR(VLOOKUP(C1031,Descriptions!B:F,5,FALSE),\"N\")","v":"N"},true,"NTRUE",0,null,{"$f":"IFERROR(VLOOKUP(D1031,'Bank and Fund Details'!$B$14:$L$35,11,FALSE),\"N\")","v":"Y"},"NY"]
[null,null,null,"General Fund",null,null,null,null,null,{"$f":"VLOOKUP(D1032,'Bank and Fund Details'!$B$15:$D$36,3,FALSE)","v":0},{"$f":"VLOOKUP(D1032,'Bank and Fund Details'!$B$15:$C$36,2,FALSE)","v":"Unrestricted"},{"$f":"IFERROR(VLOOKUP(C1032,Descriptions!$B$6:$D$92,3,FALSE),\"\")","v":""},null,null,null,null,null,null,null,null,null,null,null,null,null,null,"General Fund",{"$f":"IFERROR(VLOOKUP(C1032,Descriptions!B:F,5,FALSE),\"N\")","v":"N"},true,"NTRUE",0,null,{"$f":"IFERROR(VLOOKUP(D1032,'Bank and Fund Details'!$B$14:$L$35,11,FALSE),\"N\")","v":"Y"},"NY"]
[null,null,null,"General Fund",null,null,null,null,null,{"$f":"VLOOKUP(D1033,'Bank and Fund Details'!$B$15:$D$36,3,FALSE)","v":0},{"$f":"VLOOKUP(D1033,'Bank and Fund Details'!$B$15:$C$36,2,FALSE)","v":"Unrestricted"},{"$f":"IFERROR(VLOOKUP(C1033,Descriptions!$B$6:$D$92,3,FALSE),\"\")","v":""},null,null,null,null,null,null,null,null,null,null,null,null,null,null,"General Fund",{"$f":"IFERROR(VLOOKUP(C1033,Descriptions!B:F,5,FALSE),\"N\")","v":"N"},true,"NTRUE",0,null,{"$f":"IFERROR(VLOOKUP(D1033,'Bank and Fund Details'!$B$14:$L$35,11,FALSE),\"N\")","v":"Y"},"NY"]
[null,null,null,"General Fund",null,null,null,null,null,{"$f":"VLOOKUP(D1034,'Bank and Fund Details'!$B$15:$D$36,3,FALSE)","v":0},{"$f":"VLOOKUP(D1034,'Bank and Fund Details'!$B$15:$C$36,2,FALSE)","v":"Unrestricted"},{"$f":"IFERROR(VLOOKUP(C1034,Descriptions!$B$6:$D$92,3,FALSE),\"\")","v":""},null,null,null,null,null,null,null,null,null,null,null,null,null,null,"General Fund",{"$f":"IFERROR(VLOOKUP(C1034,Descriptions!B:F,5,FALSE),\"N\")","v":"N"},true,"NTRUE",0,null,{"$f":"IFERROR(VLOOKUP(D1034,'Bank and Fund Details'!$B$14:$L$35,11,FALSE),\"N\")","v":"Y"},"NY"]
[null,null,null,"General Fund",null,null,null,null,null,{"$f":"VLOOKUP(D1035,'Bank and Fund Details'!$B$15:$D$36,3,FALSE)","v":0},{"$f":"VLOOKUP(D1035,'Bank and Fund Details'!$B$15:$C$36,2,FALSE)","v":"Unrestricted"},{"$f":"IFERROR(VLOOKUP(C1035,Descriptions!$B$6:$D$92,3,FALSE),\"\")","v":""},null,null,null,null,null,null,null,null,null,null,null,null,null,null,"General Fund",{"$f":"IFERROR(VLOOKUP(C1035,Descriptions!B:F,5,FALSE),\"N\")","v":"N"},true,"NTRUE",0,null,{"$f":"IFERROR(VLOOKUP(D1035,'Bank and Fund Details'!$B$14:$L$35,11,FALSE),\"N\")","v":"Y"},"NY"]
[null,null,null,"General Fund",null,null,null,null,null,{"$f":"VLOOKUP(D1036,'Bank and Fund Details'!$B$15:$D$36,3,FALSE)","v":0},{"$f":"VLOOKUP(D1036,'Bank and Fund Details'!$B$15:$C$36,2,FALSE)","v":"Unrestricted"},{"$f":"IFERROR(VLOOKUP(C1036,Descriptions!$B$6:$D$92,3,FALSE),\"\")","v":""},null,null,null,null,null,null,null,null,null,null,null,null,null,null,"General Fund",{"$f":"IFERROR(VLOOKUP(C1036,Descriptions!B:F,5,FALSE),\"N\")","v":"N"},true,"NTRUE",0,null,{"$f":"IFERROR(VLOOKUP(D1036,'Bank and Fund Details'!$B$14:$L$35,11,FALSE),\"N\")","v":"Y"},"NY"]
[null,null,null,"General Fund",null,null,null,null,null,{"$f":"VLOOKUP(D1037,'Bank and Fund Details'!$B$15:$D$36,3,FALSE)","v":0},{"$f":"VLOOKUP(D1037,'Bank and Fund Details'!$B$15:$C$36,2,FALSE)","v":"Unrestricted"},{"$f":"IFERROR(VLOOKUP(C1037,Descriptions!$B$6:$D$92,3,FALSE),\"\")","v":""},null,null,null,null,null,null,null,null,null,null,null,null,null,null,"General Fund",{"$f":"IFERROR(VLOOKUP(C1037,Descriptions!B:F,5,FALSE),\"N\")","v":"N"},true,"NTRUE",0,null,{"$f":"IFERROR(VLOOKUP(D1037,'Bank and Fund Details'!$B$14:$L$35,11,FALSE),\"N\")","v":"Y"},"NY"]
[null,null,null,"General Fund",null,null,null,null,null,{"$f":"VLOOKUP(D1038,'Bank and Fund Details'!$B$15:$D$36,3,FALSE)","v":0},{"$f":"VLOOKUP(D1038,'Bank and Fund Details'!$B$15:$C$36,2,FALSE)","v":"Unrestricted"},{"$f":"IFERROR(VLOOKUP(C1038,Descriptions!$B$6:$D$92,3,FALSE),\"\")","v":""},null,null,null,null,null,null,null,null,null,null,null,null,null,null,"General Fund",{"$f":"IFERROR(VLOOKUP(C1038,Descriptions!B:F,5,FALSE),\"N\")","v":"N"},true,"NTRUE",0,null,{"$f":"IFERROR(VLOOKUP(D1038,'Bank and Fund Details'!$B$14:$L$35,11,FALSE),\"N\")","v":"Y"},"NY"]
[null,null,null,"General Fund",null,null,null,null,null,{"$f":"VLOOKUP(D1039,'Bank and Fund Details'!$B$15:$D$36,3,FALSE)","v":0},{"$f":"VLOOKUP(D1039,'Bank and Fund Details'!$B$15:$C$36,2,FALSE)","v":"Unrestricted"},{"$f":"IFERROR(VLOOKUP(C1039,Descriptions!$B$6:$D$92,3,FALSE),\"\")","v":""},null,null,null,null,null,null,null,null,null,null,null,null,null,null,"General Fund",{"$f":"IFERROR(VLOOKUP(C1039,Descriptions!B:F,5,FALSE),\"N\")","v":"N"},true,"NTRUE",0,null,{"$f":"IFERROR(VLOOKUP(D1039,'Bank and Fund Details'!$B$14:$L$35,11,FALSE),\"N\")","v":"Y"},"NY"]
[null,null,null,"General Fund",null,null,null,null,null,{"$f":"VLOOKUP(D1040,'Bank and Fund Details'!$B$15:$D$36,3,FALSE)","v":0},{"$f":"VLOOKUP(D1040,'Bank and Fund Details'!$B$15:$C$36,2,FALSE)","v":"Unrestricted"},{"$f":"IFERROR(VLOOKUP(C1040,Descriptions!$B$6:$D$92,3,FALSE),\"\")","v":""},null,null,null,null,null,null,null,null,null,null,null,null,null,null,"General Fund",{"$f":"IFERROR(VLOOKUP(C1040,Descriptions!B:F,5,FALSE),\"N\")","v":"N"},true,"NTRUE",0,null,{"$f":"IFERROR(VLOOKUP(D1040,'Bank and Fund Details'!$B$14:$L$35,11,FALSE),\"N\")","v":"Y"},"NY"]
[null,null,null,"General Fund",null,null,null,null,null,{"$f":"VLOOKUP(D1041,'Bank and Fund Details'!$B$15:$D$36,3,FALSE)","v":0},{"$f":"VLOOKUP(D1041,'Bank and Fund Details'!$B$15:$C$36,2,FALSE)","v":"Unrestricted"},{"$f":"IFERROR(VLOOKUP(C1041,Descriptions!$B$6:$D$92,3,FALSE),\"\")","v":""},null,null,null,null,null,null,null,null,null,null,null,null,null,null,"General Fund",{"$f":"IFERROR(VLOOKUP(C1041,Descriptions!B:F,5,FALSE),\"N\")","v":"N"},true,"NTRUE",0,null,{"$f":"IFERROR(VLOOKUP(D1041,'Bank and Fund Details'!$B$14:$L$35,11,FALSE),\"N\")","v":"Y"},"NY"]
[null,null,null,"General Fund",null,null,null,null,null,{"$f":"VLOOKUP(D1042,'Bank and Fund Details'!$B$15:$D$36,3,FALSE)","v":0},{"$f":"VLOOKUP(D1042,'Bank and Fund Details'!$B$15:$C$36,2,FALSE)","v":"Unrestricted"},{"$f":"IFERROR(VLOOKUP(C1042,Descriptions!$B$6:$D$92,3,FALSE),\"\")","v":""},null,null,null,null,null,null,null,null,null,null,null,null,null,null,"General Fund",{"$f":"IFERROR(VLOOKUP(C1042,Descriptions!B:F,5,FALSE),\"N\")","v":"N"},true,"NTRUE",0,null,{"$f":"IFERROR(VLOOKUP(D1042,'Bank and Fund Details'!$B$14:$L$35,11,FALSE),\"N\")","v":"Y"},"NY"]
[null,null,null,"General Fund",null,null,null,null,null,{"$f":"VLOOKUP(D1043,'Bank and Fund Details'!$B$15:$D$36,3,FALSE)","v":0},{"$f":"VLOOKUP(D1043,'Bank and Fund Details'!$B$15:$C$36,2,FALSE)","v":"Unrestricted"},{"$f":"IFERROR(VLOOKUP(C1043,Descriptions!$B$6:$D$92,3,FALSE),\"\")","v":""},null,null,null,null,null,null,null,null,null,null,null,null,null,null,"General Fund",{"$f":"IFERROR(VLOOKUP(C1043,Descriptions!B:F,5,FALSE),\"N\")","v":"N"},true,"NTRUE",0,null,{"$f":"IFERROR(VLOOKUP(D1043,'Bank and Fund Details'!$B$14:$L$35,11,FALSE),\"N\")","v":"Y"},"NY"]
[null,null,null,"General Fund",null,null,null,null,null,{"$f":"VLOOKUP(D1044,'Bank and Fund Details'!$B$15:$D$36,3,FALSE)","v":0},{"$f":"VLOOKUP(D1044,'Bank and Fund Details'!$B$15:$C$36,2,FALSE)","v":"Unrestricted"},{"$f":"IFERROR(VLOOKUP(C1044,Descriptions!$B$6:$D$92,3,FALSE),\"\")","v":""},null,null,null,null,null,null,null,null,null,null,null,null,null,null,"General Fund",{"$f":"IFERROR(VLOOKUP(C1044,Descriptions!B:F,5,FALSE),\"N\")","v":"N"},true,"NTRUE",0,null,{"$f":"IFERROR(VLOOKUP(D1044,'Bank and Fund Details'!$B$14:$L$35,11,FALSE),\"N\")","v":"Y"},"NY"]
[null,null,null,"General Fund",null,null,null,null,null,{"$f":"VLOOKUP(D1045,'Bank and Fund Details'!$B$15:$D$36,3,FALSE)","v":0},{"$f":"VLOOKUP(D1045,'Bank and Fund Details'!$B$15:$C$36,2,FALSE)","v":"Unrestricted"},{"$f":"IFERROR(VLOOKUP(C1045,Descriptions!$B$6:$D$92,3,FALSE),\"\")","v":""},null,null,null,null,null,null,null,null,null,null,null,null,null,null,"General Fund",{"$f":"IFERROR(VLOOKUP(C1045,Descriptions!B:F,5,FALSE),\"N\")","v":"N"},true,"NTRUE",0,null,{"$f":"IFERROR(VLOOKUP(D1045,'Bank and Fund Details'!$B$14:$L$35,11,FALSE),\"N\")","v":"Y"},"NY"]
[null,null,null,"General Fund",null,null,null,null,null,{"$f":"VLOOKUP(D1046,'Bank and Fund Details'!$B$15:$D$36,3,FALSE)","v":0},{"$f":"VLOOKUP(D1046,'Bank and Fund Details'!$B$15:$C$36,2,FALSE)","v":"Unrestricted"},{"$f":"IFERROR(VLOOKUP(C1046,Descriptions!$B$6:$D$92,3,FALSE),\"\")","v":""},null,null,null,null,null,null,null,null,null,null,null,null,null,null,"General Fund",{"$f":"IFERROR(VLOOKUP(C1046,Descriptions!B:F,5,FALSE),\"N\")","v":"N"},true,"NTRUE",0,null,{"$f":"IFERROR(VLOOKUP(D1046,'Bank and Fund Details'!$B$14:$L$35,11,FALSE),\"N\")","v":"Y"},"NY"]
[null,null,null,"General Fund",null,null,null,null,null,{"$f":"VLOOKUP(D1047,'Bank and Fund Details'!$B$15:$D$36,3,FALSE)","v":0},{"$f":"VLOOKUP(D1047,'Bank and Fund Details'!$B$15:$C$36,2,FALSE)","v":"Unrestricted"},{"$f":"IFERROR(VLOOKUP(C1047,Descriptions!$B$6:$D$92,3,FALSE),\"\")","v":""},null,null,null,null,null,null,null,null,null,null,null,null,null,null,"General Fund",{"$f":"IFERROR(VLOOKUP(C1047,Descriptions!B:F,5,FALSE),\"N\")","v":"N"},true,"NTRUE",0,null,{"$f":"IFERROR(VLOOKUP(D1047,'Bank and Fund Details'!$B$14:$L$35,11,FALSE),\"N\")","v":"Y"},"NY"]
[null,null,null,"General Fund",null,null,null,null,null,{"$f":"VLOOKUP(D1048,'Bank and Fund Details'!$B$15:$D$36,3,FALSE)","v":0},{"$f":"VLOOKUP(D1048,'Bank and Fund Details'!$B$15:$C$36,2,FALSE)","v":"Unrestricted"},{"$f":"IFERROR(VLOOKUP(C1048,Descriptions!$B$6:$D$92,3,FALSE),\"\")","v":""},null,null,null,null,null,null,null,null,null,null,null,null,null,null,"General Fund",{"$f":"IFERROR(VLOOKUP(C1048,Descriptions!B:F,5,FALSE),\"N\")","v":"N"},true,"NTRUE",0,null,{"$f":"IFERROR(VLOOKUP(D1048,'Bank and Fund Details'!$B$14:$L$35,11,FALSE),\"N\")","v":"Y"},"NY"]
[null,null,null,"General Fund",null,null,null,null,null,{"$f":"VLOOKUP(D1049,'Bank and Fund Details'!$B$15:$D$36,3,FALSE)","v":0},{"$f":"VLOOKUP(D1049,'Bank and Fund Details'!$B$15:$C$36,2,FALSE)","v":"Unrestricted"},{"$f":"IFERROR(VLOOKUP(C1049,Descriptions!$B$6:$D$92,3,FALSE),\"\")","v":""},null,null,null,null,null,null,null,null,null,null,null,null,null,null,"General Fund",{"$f":"IFERROR(VLOOKUP(C1049,Descriptions!B:F,5,FALSE),\"N\")","v":"N"},true,"NTRUE",0,null,{"$f":"IFERROR(VLOOKUP(D1049,'Bank and Fund Details'!$B$14:$L$35,11,FALSE),\"N\")","v":"Y"},"NY"]
[null,null,null,"General Fund",null,null,null,null,null,{"$f":"VLOOKUP(D1050,'Bank and Fund Details'!$B$15:$D$36,3,FALSE)","v":0},{"$f":"VLOOKUP(D1050,'Bank and Fund Details'!$B$15:$C$36,2,FALSE)","v":"Unrestricted"},{"$f":"IFERROR(VLOOKUP(C1050,Descriptions!$B$6:$D$92,3,FALSE),\"\")","v":""},null,null,null,null,null,null,null,null,null,null,null,null,null,null,"General Fund",{"$f":"IFERROR(VLOOKUP(C1050,Descriptions!B:F,5,FALSE),\"N\")","v":"N"},true,"NTRUE",0,null,{"$f":"IFERROR(VLOOKUP(D1050,'Bank and Fund Details'!$B$14:$L$35,11,FALSE),\"N\")","v":"Y"},"NY"]
[null,null,null,"General Fund",null,null,null,null,null,{"$f":"VLOOKUP(D1051,'Bank and Fund Details'!$B$15:$D$36,3,FALSE)","v":0},{"$f":"VLOOKUP(D1051,'Bank and Fund Details'!$B$15:$C$36,2,FALSE)","v":"Unrestricted"},{"$f":"IFERROR(VLOOKUP(C1051,Descriptions!$B$6:$D$92,3,FALSE),\"\")","v":""},null,null,null,null,null,null,null,null,null,null,null,null,null,null,"General Fund",{"$f":"IFERROR(VLOOKUP(C1051,Descriptions!B:F,5,FALSE),\"N\")","v":"N"},true,"NTRUE",0,null,{"$f":"IFERROR(VLOOKUP(D1051,'Bank and Fund Details'!$B$14:$L$35,11,FALSE),\"N\")","v":"Y"},"NY"]
[null,null,null,"General Fund",null,null,null,null,null,{"$f":"VLOOKUP(D1052,'Bank and Fund Details'!$B$15:$D$36,3,FALSE)","v":0},{"$f":"VLOOKUP(D1052,'Bank and Fund Details'!$B$15:$C$36,2,FALSE)","v":"Unrestricted"},{"$f":"IFERROR(VLOOKUP(C1052,Descriptions!$B$6:$D$92,3,FALSE),\"\")","v":""},null,null,null,null,null,null,null,null,null,null,null,null,null,null,"General Fund",{"$f":"IFERROR(VLOOKUP(C1052,Descriptions!B:F,5,FALSE),\"N\")","v":"N"},true,"NTRUE",0,null,{"$f":"IFERROR(VLOOKUP(D1052,'Bank and Fund Details'!$B$14:$L$35,11,FALSE),\"N\")","v":"Y"},"NY"]
[null,null,null,"General Fund",null,null,null,null,null,{"$f":"VLOOKUP(D1053,'Bank and Fund Details'!$B$15:$D$36,3,FALSE)","v":0},{"$f":"VLOOKUP(D1053,'Bank and Fund Details'!$B$15:$C$36,2,FALSE)","v":"Unrestricted"},{"$f":"IFERROR(VLOOKUP(C1053,Descriptions!$B$6:$D$92,3,FALSE),\"\")","v":""},null,null,null,null,null,null,null,null,null,null,null,null,null,null,"General Fund",{"$f":"IFERROR(VLOOKUP(C1053,Descriptions!B:F,5,FALSE),\"N\")","v":"N"},true,"NTRUE",0,null,{"$f":"IFERROR(VLOOKUP(D1053,'Bank and Fund Details'!$B$14:$L$35,11,FALSE),\"N\")","v":"Y"},"NY"]
[null,null,null,"General Fund",null,null,null,null,null,{"$f":"VLOOKUP(D1054,'Bank and Fund Details'!$B$15:$D$36,3,FALSE)","v":0},{"$f":"VLOOKUP(D1054,'Bank and Fund Details'!$B$15:$C$36,2,FALSE)","v":"Unrestricted"},{"$f":"IFERROR(VLOOKUP(C1054,Descriptions!$B$6:$D$92,3,FALSE),\"\")","v":""},null,null,null,null,null,null,null,null,null,null,null,null,null,null,"General Fund",{"$f":"IFERROR(VLOOKUP(C1054,Descriptions!B:F,5,FALSE),\"N\")","v":"N"},true,"NTRUE",0,null,{"$f":"IFERROR(VLOOKUP(D1054,'Bank and Fund Details'!$B$14:$L$35,11,FALSE),\"N\")","v":"Y"},"NY"]
[null,null,null,"General Fund",null,null,null,null,null,{"$f":"VLOOKUP(D1055,'Bank and Fund Details'!$B$15:$D$36,3,FALSE)","v":0},{"$f":"VLOOKUP(D1055,'Bank and Fund Details'!$B$15:$C$36,2,FALSE)","v":"Unrestricted"},{"$f":"IFERROR(VLOOKUP(C1055,Descriptions!$B$6:$D$92,3,FALSE),\"\")","v":""},null,null,null,null,null,null,null,null,null,null,null,null,null,null,"General Fund",{"$f":"IFERROR(VLOOKUP(C1055,Descriptions!B:F,5,FALSE),\"N\")","v":"N"},true,"NTRUE",0,null,{"$f":"IFERROR(VLOOKUP(D1055,'Bank and Fund Details'!$B$14:$L$35,11,FALSE),\"N\")","v":"Y"},"NY"]
[null,null,null,"General Fund",null,null,null,null,null,{"$f":"VLOOKUP(D1056,'Bank and Fund Details'!$B$15:$D$36,3,FALSE)","v":0},{"$f":"VLOOKUP(D1056,'Bank and Fund Details'!$B$15:$C$36,2,FALSE)","v":"Unrestricted"},{"$f":"IFERROR(VLOOKUP(C1056,Descriptions!$B$6:$D$92,3,FALSE),\"\")","v":""},null,null,null,null,null,null,null,null,null,null,null,null,null,null,"General Fund",{"$f":"IFERROR(VLOOKUP(C1056,Descriptions!B:F,5,FALSE),\"N\")","v":"N"},true,"NTRUE",0,null,{"$f":"IFERROR(VLOOKUP(D1056,'Bank and Fund Details'!$B$14:$L$35,11,FALSE),\"N\")","v":"Y"},"NY"]
[null,null,null,"General Fund",null,null,null,null,null,{"$f":"VLOOKUP(D1057,'Bank and Fund Details'!$B$15:$D$36,3,FALSE)","v":0},{"$f":"VLOOKUP(D1057,'Bank and Fund Details'!$B$15:$C$36,2,FALSE)","v":"Unrestricted"},{"$f":"IFERROR(VLOOKUP(C1057,Descriptions!$B$6:$D$92,3,FALSE),\"\")","v":""},null,null,null,null,null,null,null,null,null,null,null,null,null,null,"General Fund",{"$f":"IFERROR(VLOOKUP(C1057,Descriptions!B:F,5,FALSE),\"N\")","v":"N"},true,"NTRUE",0,null,{"$f":"IFERROR(VLOOKUP(D1057,'Bank and Fund Details'!$B$14:$L$35,11,FALSE),\"N\")","v":"Y"},"NY"]
[null,null,null,"General Fund",null,null,null,null,null,{"$f":"VLOOKUP(D1058,'Bank and Fund Details'!$B$15:$D$36,3,FALSE)","v":0},{"$f":"VLOOKUP(D1058,'Bank and Fund Details'!$B$15:$C$36,2,FALSE)","v":"Unrestricted"},{"$f":"IFERROR(VLOOKUP(C1058,Descriptions!$B$6:$D$92,3,FALSE),\"\")","v":""},null,null,null,null,null,null,null,null,null,null,null,null,null,null,"General Fund",{"$f":"IFERROR(VLOOKUP(C1058,Descriptions!B:F,5,FALSE),\"N\")","v":"N"},true,"NTRUE",0,null,{"$f":"IFERROR(VLOOKUP(D1058,'Bank and Fund Details'!$B$14:$L$35,11,FALSE),\"N\")","v":"Y"},"NY"]
[null,null,null,"General Fund",null,null,null,null,null,{"$f":"VLOOKUP(D1059,'Bank and Fund Details'!$B$15:$D$36,3,FALSE)","v":0},{"$f":"VLOOKUP(D1059,'Bank and Fund Details'!$B$15:$C$36,2,FALSE)","v":"Unrestricted"},{"$f":"IFERROR(VLOOKUP(C1059,Descriptions!$B$6:$D$92,3,FALSE),\"\")","v":""},null,null,null,null,null,null,null,null,null,null,null,null,null,null,"General Fund",{"$f":"IFERROR(VLOOKUP(C1059,Descriptions!B:F,5,FALSE),\"N\")","v":"N"},true,"NTRUE",0,null,{"$f":"IFERROR(VLOOKUP(D1059,'Bank and Fund Details'!$B$14:$L$35,11,FALSE),\"N\")","v":"Y"},"NY"]
[null,null,null,"General Fund",null,null,null,null,null,{"$f":"VLOOKUP(D1060,'Bank and Fund Details'!$B$15:$D$36,3,FALSE)","v":0},{"$f":"VLOOKUP(D1060,'Bank and Fund Details'!$B$15:$C$36,2,FALSE)","v":"Unrestricted"},{"$f":"IFERROR(VLOOKUP(C1060,Descriptions!$B$6:$D$92,3,FALSE),\"\")","v":""},null,null,null,null,null,null,null,null,null,null,null,null,null,null,"General Fund",{"$f":"IFERROR(VLOOKUP(C1060,Descriptions!B:F,5,FALSE),\"N\")","v":"N"},true,"NTRUE",0,null,{"$f":"IFERROR(VLOOKUP(D1060,'Bank and Fund Details'!$B$14:$L$35,11,FALSE),\"N\")","v":"Y"},"NY"]
[null,null,null,"General Fund",null,null,null,null,null,{"$f":"VLOOKUP(D1061,'Bank and Fund Details'!$B$15:$D$36,3,FALSE)","v":0},{"$f":"VLOOKUP(D1061,'Bank and Fund Details'!$B$15:$C$36,2,FALSE)","v":"Unrestricted"},{"$f":"IFERROR(VLOOKUP(C1061,Descriptions!$B$6:$D$92,3,FALSE),\"\")","v":""},null,null,null,null,null,null,null,null,null,null,null,null,null,null,"General Fund",{"$f":"IFERROR(VLOOKUP(C1061,Descriptions!B:F,5,FALSE),\"N\")","v":"N"},true,"NTRUE",0,null,{"$f":"IFERROR(VLOOKUP(D1061,'Bank and Fund Details'!$B$14:$L$35,11,FALSE),\"N\")","v":"Y"},"NY"]
[null,null,null,"General Fund",null,null,null,null,null,{"$f":"VLOOKUP(D1062,'Bank and Fund Details'!$B$15:$D$36,3,FALSE)","v":0},{"$f":"VLOOKUP(D1062,'Bank and Fund Details'!$B$15:$C$36,2,FALSE)","v":"Unrestricted"},{"$f":"IFERROR(VLOOKUP(C1062,Descriptions!$B$6:$D$92,3,FALSE),\"\")","v":""},null,null,null,null,null,null,null,null,null,null,null,null,null,null,"General Fund",{"$f":"IFERROR(VLOOKUP(C1062,Descriptions!B:F,5,FALSE),\"N\")","v":"N"},true,"NTRUE",0,null,{"$f":"IFERROR(VLOOKUP(D1062,'Bank and Fund Details'!$B$14:$L$35,11,FALSE),\"N\")","v":"Y"},"NY"]
[null,null,null,"General Fund",null,null,null,null,null,{"$f":"VLOOKUP(D1063,'Bank and Fund Details'!$B$15:$D$36,3,FALSE)","v":0},{"$f":"VLOOKUP(D1063,'Bank and Fund Details'!$B$15:$C$36,2,FALSE)","v":"Unrestricted"},{"$f":"IFERROR(VLOOKUP(C1063,Descriptions!$B$6:$D$92,3,FALSE),\"\")","v":""},null,null,null,null,null,null,null,null,null,null,null,null,null,null,"General Fund",{"$f":"IFERROR(VLOOKUP(C1063,Descriptions!B:F,5,FALSE),\"N\")","v":"N"},true,"NTRUE",0,null,{"$f":"IFERROR(VLOOKUP(D1063,'Bank and Fund Details'!$B$14:$L$35,11,FALSE),\"N\")","v":"Y"},"NY"]
[null,null,null,"General Fund",null,null,null,null,null,{"$f":"VLOOKUP(D1064,'Bank and Fund Details'!$B$15:$D$36,3,FALSE)","v":0},{"$f":"VLOOKUP(D1064,'Bank and Fund Details'!$B$15:$C$36,2,FALSE)","v":"Unrestricted"},{"$f":"IFERROR(VLOOKUP(C1064,Descriptions!$B$6:$D$92,3,FALSE),\"\")","v":""},null,null,null,null,null,null,null,null,null,null,null,null,null,null,"General Fund",{"$f":"IFERROR(VLOOKUP(C1064,Descriptions!B:F,5,FALSE),\"N\")","v":"N"},true,"NTRUE",0,null,{"$f":"IFERROR(VLOOKUP(D1064,'Bank and Fund Details'!$B$14:$L$35,11,FALSE),\"N\")","v":"Y"},"NY"]
[null,null,null,"General Fund",null,null,null,null,null,{"$f":"VLOOKUP(D1065,'Bank and Fund Details'!$B$15:$D$36,3,FALSE)","v":0},{"$f":"VLOOKUP(D1065,'Bank and Fund Details'!$B$15:$C$36,2,FALSE)","v":"Unrestricted"},{"$f":"IFERROR(VLOOKUP(C1065,Descriptions!$B$6:$D$92,3,FALSE),\"\")","v":""},null,null,null,null,null,null,null,null,null,null,null,null,null,null,"General Fund",{"$f":"IFERROR(VLOOKUP(C1065,Descriptions!B:F,5,FALSE),\"N\")","v":"N"},true,"NTRUE",0,null,{"$f":"IFERROR(VLOOKUP(D1065,'Bank and Fund Details'!$B$14:$L$35,11,FALSE),\"N\")","v":"Y"},"NY"]
[null,null,null,"General Fund",null,null,null,null,null,{"$f":"VLOOKUP(D1066,'Bank and Fund Details'!$B$15:$D$36,3,FALSE)","v":0},{"$f":"VLOOKUP(D1066,'Bank and Fund Details'!$B$15:$C$36,2,FALSE)","v":"Unrestricted"},{"$f":"IFERROR(VLOOKUP(C1066,Descriptions!$B$6:$D$92,3,FALSE),\"\")","v":""},null,null,null,null,null,null,null,null,null,null,null,null,null,null,"General Fund",{"$f":"IFERROR(VLOOKUP(C1066,Descriptions!B:F,5,FALSE),\"N\")","v":"N"},true,"NTRUE",0,null,{"$f":"IFERROR(VLOOKUP(D1066,'Bank and Fund Details'!$B$14:$L$35,11,FALSE),\"N\")","v":"Y"},"NY"]
[null,null,null,"General Fund",null,null,null,null,null,{"$f":"VLOOKUP(D1067,'Bank and Fund Details'!$B$15:$D$36,3,FALSE)","v":0},{"$f":"VLOOKUP(D1067,'Bank and Fund Details'!$B$15:$C$36,2,FALSE)","v":"Unrestricted"},{"$f":"IFERROR(VLOOKUP(C1067,Descriptions!$B$6:$D$92,3,FALSE),\"\")","v":""},null,null,null,null,null,null,null,null,null,null,null,null,null,null,"General Fund",{"$f":"IFERROR(VLOOKUP(C1067,Descriptions!B:F,5,FALSE),\"N\")","v":"N"},true,"NTRUE",0,null,{"$f":"IFERROR(VLOOKUP(D1067,'Bank and Fund Details'!$B$14:$L$35,11,FALSE),\"N\")","v":"Y"},"NY"]
[null,null,null,"General Fund",null,null,null,null,null,{"$f":"VLOOKUP(D1068,'Bank and Fund Details'!$B$15:$D$36,3,FALSE)","v":0},{"$f":"VLOOKUP(D1068,'Bank and Fund Details'!$B$15:$C$36,2,FALSE)","v":"Unrestricted"},{"$f":"IFERROR(VLOOKUP(C1068,Descriptions!$B$6:$D$92,3,FALSE),\"\")","v":""},null,null,null,null,null,null,null,null,null,null,null,null,null,null,"General Fund",{"$f":"IFERROR(VLOOKUP(C1068,Descriptions!B:F,5,FALSE),\"N\")","v":"N"},true,"NTRUE",0,null,{"$f":"IFERROR(VLOOKUP(D1068,'Bank and Fund Details'!$B$14:$L$35,11,FALSE),\"N\")","v":"Y"},"NY"]
[null,null,null,"General Fund",null,null,null,null,null,{"$f":"VLOOKUP(D1069,'Bank and Fund Details'!$B$15:$D$36,3,FALSE)","v":0},{"$f":"VLOOKUP(D1069,'Bank and Fund Details'!$B$15:$C$36,2,FALSE)","v":"Unrestricted"},{"$f":"IFERROR(VLOOKUP(C1069,Descriptions!$B$6:$D$92,3,FALSE),\"\")","v":""},null,null,null,null,null,null,null,null,null,null,null,null,null,null,"General Fund",{"$f":"IFERROR(VLOOKUP(C1069,Descriptions!B:F,5,FALSE),\"N\")","v":"N"},true,"NTRUE",0,null,{"$f":"IFERROR(VLOOKUP(D1069,'Bank and Fund Details'!$B$14:$L$35,11,FALSE),\"N\")","v":"Y"},"NY"]
[null,null,null,"General Fund",null,null,null,null,null,{"$f":"VLOOKUP(D1070,'Bank and Fund Details'!$B$15:$D$36,3,FALSE)","v":0},{"$f":"VLOOKUP(D1070,'Bank and Fund Details'!$B$15:$C$36,2,FALSE)","v":"Unrestricted"},{"$f":"IFERROR(VLOOKUP(C1070,Descriptions!$B$6:$D$92,3,FALSE),\"\")","v":""},null,null,null,null,null,null,null,null,null,null,null,null,null,null,"General Fund",{"$f":"IFERROR(VLOOKUP(C1070,Descriptions!B:F,5,FALSE),\"N\")","v":"N"},true,"NTRUE",0,null,{"$f":"IFERROR(VLOOKUP(D1070,'Bank and Fund Details'!$B$14:$L$35,11,FALSE),\"N\")","v":"Y"},"NY"]
[null,null,null,"General Fund",null,null,null,null,null,{"$f":"VLOOKUP(D1071,'Bank and Fund Details'!$B$15:$D$36,3,FALSE)","v":0},{"$f":"VLOOKUP(D1071,'Bank and Fund Details'!$B$15:$C$36,2,FALSE)","v":"Unrestricted"},{"$f":"IFERROR(VLOOKUP(C1071,Descriptions!$B$6:$D$92,3,FALSE),\"\")","v":""},null,null,null,null,null,null,null,null,null,null,null,null,null,null,"General Fund",{"$f":"IFERROR(VLOOKUP(C1071,Descriptions!B:F,5,FALSE),\"N\")","v":"N"},true,"NTRUE",0,null,{"$f":"IFERROR(VLOOKUP(D1071,'Bank and Fund Details'!$B$14:$L$35,11,FALSE),\"N\")","v":"Y"},"NY"]
[null,null,null,"General Fund",null,null,null,null,null,{"$f":"VLOOKUP(D1072,'Bank and Fund Details'!$B$15:$D$36,3,FALSE)","v":0},{"$f":"VLOOKUP(D1072,'Bank and Fund Details'!$B$15:$C$36,2,FALSE)","v":"Unrestricted"},{"$f":"IFERROR(VLOOKUP(C1072,Descriptions!$B$6:$D$92,3,FALSE),\"\")","v":""},null,null,null,null,null,null,null,null,null,null,null,null,null,null,"General Fund",{"$f":"IFERROR(VLOOKUP(C1072,Descriptions!B:F,5,FALSE),\"N\")","v":"N"},true,"NTRUE",0,null,{"$f":"IFERROR(VLOOKUP(D1072,'Bank and Fund Details'!$B$14:$L$35,11,FALSE),\"N\")","v":"Y"},"NY"]
[null,null,null,"General Fund",null,null,null,null,null,{"$f":"VLOOKUP(D1073,'Bank and Fund Details'!$B$15:$D$36,3,FALSE)","v":0},{"$f":"VLOOKUP(D1073,'Bank and Fund Details'!$B$15:$C$36,2,FALSE)","v":"Unrestricted"},{"$f":"IFERROR(VLOOKUP(C1073,Descriptions!$B$6:$D$92,3,FALSE),\"\")","v":""},null,null,null,null,null,null,null,null,null,null,null,null,null,null,"General Fund",{"$f":"IFERROR(VLOOKUP(C1073,Descriptions!B:F,5,FALSE),\"N\")","v":"N"},true,"NTRUE",0,null,{"$f":"IFERROR(VLOOKUP(D1073,'Bank and Fund Details'!$B$14:$L$35,11,FALSE),\"N\")","v":"Y"},"NY"]
[null,null,null,"General Fund",null,null,null,null,null,{"$f":"VLOOKUP(D1074,'Bank and Fund Details'!$B$15:$D$36,3,FALSE)","v":0},{"$f":"VLOOKUP(D1074,'Bank and Fund Details'!$B$15:$C$36,2,FALSE)","v":"Unrestricted"},{"$f":"IFERROR(VLOOKUP(C1074,Descriptions!$B$6:$D$92,3,FALSE),\"\")","v":""},null,null,null,null,null,null,null,null,null,null,null,null,null,null,"General Fund",{"$f":"IFERROR(VLOOKUP(C1074,Descriptions!B:F,5,FALSE),\"N\")","v":"N"},true,"NTRUE",0,null,{"$f":"IFERROR(VLOOKUP(D1074,'Bank and Fund Details'!$B$14:$L$35,11,FALSE),\"N\")","v":"Y"},"NY"]
[null,null,null,"General Fund",null,null,null,null,null,{"$f":"VLOOKUP(D1075,'Bank and Fund Details'!$B$15:$D$36,3,FALSE)","v":0},{"$f":"VLOOKUP(D1075,'Bank and Fund Details'!$B$15:$C$36,2,FALSE)","v":"Unrestricted"},{"$f":"IFERROR(VLOOKUP(C1075,Descriptions!$B$6:$D$92,3,FALSE),\"\")","v":""},null,null,null,null,null,null,null,null,null,null,null,null,null,null,"General Fund",{"$f":"IFERROR(VLOOKUP(C1075,Descriptions!B:F,5,FALSE),\"N\")","v":"N"},true,"NTRUE",0,null,{"$f":"IFERROR(VLOOKUP(D1075,'Bank and Fund Details'!$B$14:$L$35,11,FALSE),\"N\")","v":"Y"},"NY"]
[null,null,null,"General Fund",null,null,null,null,null,{"$f":"VLOOKUP(D1076,'Bank and Fund Details'!$B$15:$D$36,3,FALSE)","v":0},{"$f":"VLOOKUP(D1076,'Bank and Fund Details'!$B$15:$C$36,2,FALSE)","v":"Unrestricted"},{"$f":"IFERROR(VLOOKUP(C1076,Descriptions!$B$6:$D$92,3,FALSE),\"\")","v":""},null,null,null,null,null,null,null,null,null,null,null,null,null,null,"General Fund",{"$f":"IFERROR(VLOOKUP(C1076,Descriptions!B:F,5,FALSE),\"N\")","v":"N"},true,"NTRUE",0,null,{"$f":"IFERROR(VLOOKUP(D1076,'Bank and Fund Details'!$B$14:$L$35,11,FALSE),\"N\")","v":"Y"},"NY"]
[null,null,null,"General Fund",null,null,null,null,null,{"$f":"VLOOKUP(D1077,'Bank and Fund Details'!$B$15:$D$36,3,FALSE)","v":0},{"$f":"VLOOKUP(D1077,'Bank and Fund Details'!$B$15:$C$36,2,FALSE)","v":"Unrestricted"},{"$f":"IFERROR(VLOOKUP(C1077,Descriptions!$B$6:$D$92,3,FALSE),\"\")","v":""},null,null,null,null,null,null,null,null,null,null,null,null,null,null,"General Fund",{"$f":"IFERROR(VLOOKUP(C1077,Descriptions!B:F,5,FALSE),\"N\")","v":"N"},true,"NTRUE",0,null,{"$f":"IFERROR(VLOOKUP(D1077,'Bank and Fund Details'!$B$14:$L$35,11,FALSE),\"N\")","v":"Y"},"NY"]
[null,null,null,"General Fund",null,null,null,null,null,{"$f":"VLOOKUP(D1078,'Bank and Fund Details'!$B$15:$D$36,3,FALSE)","v":0},{"$f":"VLOOKUP(D1078,'Bank and Fund Details'!$B$15:$C$36,2,FALSE)","v":"Unrestricted"},{"$f":"IFERROR(VLOOKUP(C1078,Descriptions!$B$6:$D$92,3,FALSE),\"\")","v":""},null,null,null,null,null,null,null,null,null,null,null,null,null,null,"General Fund",{"$f":"IFERROR(VLOOKUP(C1078,Descriptions!B:F,5,FALSE),\"N\")","v":"N"},true,"NTRUE",0,null,{"$f":"IFERROR(VLOOKUP(D1078,'Bank and Fund Details'!$B$14:$L$35,11,FALSE),\"N\")","v":"Y"},"NY"]
[null,null,null,"General Fund",null,null,null,null,null,{"$f":"VLOOKUP(D1079,'Bank and Fund Details'!$B$15:$D$36,3,FALSE)","v":0},{"$f":"VLOOKUP(D1079,'Bank and Fund Details'!$B$15:$C$36,2,FALSE)","v":"Unrestricted"},{"$f":"IFERROR(VLOOKUP(C1079,Descriptions!$B$6:$D$92,3,FALSE),\"\")","v":""},null,null,null,null,null,null,null,null,null,null,null,null,null,null,"General Fund",{"$f":"IFERROR(VLOOKUP(C1079,Descriptions!B:F,5,FALSE),\"N\")","v":"N"},true,"NTRUE",0,null,{"$f":"IFERROR(VLOOKUP(D1079,'Bank and Fund Details'!$B$14:$L$35,11,FALSE),\"N\")","v":"Y"},"NY"]
[null,null,null,"General Fund",null,null,null,null,null,{"$f":"VLOOKUP(D1080,'Bank and Fund Details'!$B$15:$D$36,3,FALSE)","v":0},{"$f":"VLOOKUP(D1080,'Bank and Fund Details'!$B$15:$C$36,2,FALSE)","v":"Unrestricted"},{"$f":"IFERROR(VLOOKUP(C1080,Descriptions!$B$6:$D$92,3,FALSE),\"\")","v":""},null,null,null,null,null,null,null,null,null,null,null,null,null,null,"General Fund",{"$f":"IFERROR(VLOOKUP(C1080,Descriptions!B:F,5,FALSE),\"N\")","v":"N"},true,"NTRUE",0,null,{"$f":"IFERROR(VLOOKUP(D1080,'Bank and Fund Details'!$B$14:$L$35,11,FALSE),\"N\")","v":"Y"},"NY"]
[null,null,null,"General Fund",null,null,null,null,null,{"$f":"VLOOKUP(D1081,'Bank and Fund Details'!$B$15:$D$36,3,FALSE)","v":0},{"$f":"VLOOKUP(D1081,'Bank and Fund Details'!$B$15:$C$36,2,FALSE)","v":"Unrestricted"},{"$f":"IFERROR(VLOOKUP(C1081,Descriptions!$B$6:$D$92,3,FALSE),\"\")","v":""},null,null,null,null,null,null,null,null,null,null,null,null,null,null,"General Fund",{"$f":"IFERROR(VLOOKUP(C1081,Descriptions!B:F,5,FALSE),\"N\")","v":"N"},true,"NTRUE",0,null,{"$f":"IFERROR(VLOOKUP(D1081,'Bank and Fund Details'!$B$14:$L$35,11,FALSE),\"N\")","v":"Y"},"NY"]
[null,null,null,"General Fund",null,null,null,null,null,{"$f":"VLOOKUP(D1082,'Bank and Fund Details'!$B$15:$D$36,3,FALSE)","v":0},{"$f":"VLOOKUP(D1082,'Bank and Fund Details'!$B$15:$C$36,2,FALSE)","v":"Unrestricted"},{"$f":"IFERROR(VLOOKUP(C1082,Descriptions!$B$6:$D$92,3,FALSE),\"\")","v":""},null,null,null,null,null,null,null,null,null,null,null,null,null,null,"General Fund",{"$f":"IFERROR(VLOOKUP(C1082,Descriptions!B:F,5,FALSE),\"N\")","v":"N"},true,"NTRUE",0,null,{"$f":"IFERROR(VLOOKUP(D1082,'Bank and Fund Details'!$B$14:$L$35,11,FALSE),\"N\")","v":"Y"},"NY"]
[null,null,null,"General Fund",null,null,null,null,null,{"$f":"VLOOKUP(D1083,'Bank and Fund Details'!$B$15:$D$36,3,FALSE)","v":0},{"$f":"VLOOKUP(D1083,'Bank and Fund Details'!$B$15:$C$36,2,FALSE)","v":"Unrestricted"},{"$f":"IFERROR(VLOOKUP(C1083,Descriptions!$B$6:$D$92,3,FALSE),\"\")","v":""},null,null,null,null,null,null,null,null,null,null,null,null,null,null,"General Fund",{"$f":"IFERROR(VLOOKUP(C1083,Descriptions!B:F,5,FALSE),\"N\")","v":"N"},true,"NTRUE",0,null,{"$f":"IFERROR(VLOOKUP(D1083,'Bank and Fund Details'!$B$14:$L$35,11,FALSE),\"N\")","v":"Y"},"NY"]
[null,null,null,"General Fund",null,null,null,null,null,{"$f":"VLOOKUP(D1084,'Bank and Fund Details'!$B$15:$D$36,3,FALSE)","v":0},{"$f":"VLOOKUP(D1084,'Bank and Fund Details'!$B$15:$C$36,2,FALSE)","v":"Unrestricted"},{"$f":"IFERROR(VLOOKUP(C1084,Descriptions!$B$6:$D$92,3,FALSE),\"\")","v":""},null,null,null,null,null,null,null,null,null,null,null,null,null,null,"General Fund",{"$f":"IFERROR(VLOOKUP(C1084,Descriptions!B:F,5,FALSE),\"N\")","v":"N"},true,"NTRUE",0,null,{"$f":"IFERROR(VLOOKUP(D1084,'Bank and Fund Details'!$B$14:$L$35,11,FALSE),\"N\")","v":"Y"},"NY"]
[null,null,null,"General Fund",null,null,null,null,null,{"$f":"VLOOKUP(D1085,'Bank and Fund Details'!$B$15:$D$36,3,FALSE)","v":0},{"$f":"VLOOKUP(D1085,'Bank and Fund Details'!$B$15:$C$36,2,FALSE)","v":"Unrestricted"},{"$f":"IFERROR(VLOOKUP(C1085,Descriptions!$B$6:$D$92,3,FALSE),\"\")","v":""},null,null,null,null,null,null,null,null,null,null,null,null,null,null,"General Fund",{"$f":"IFERROR(VLOOKUP(C1085,Descriptions!B:F,5,FALSE),\"N\")","v":"N"},true,"NTRUE",0,null,{"$f":"IFERROR(VLOOKUP(D1085,'Bank and Fund Details'!$B$14:$L$35,11,FALSE),\"N\")","v":"Y"},"NY"]
[null,null,null,"General Fund",null,null,null,null,null,{"$f":"VLOOKUP(D1086,'Bank and Fund Details'!$B$15:$D$36,3,FALSE)","v":0},{"$f":"VLOOKUP(D1086,'Bank and Fund Details'!$B$15:$C$36,2,FALSE)","v":"Unrestricted"},{"$f":"IFERROR(VLOOKUP(C1086,Descriptions!$B$6:$D$92,3,FALSE),\"\")","v":""},null,null,null,null,null,null,null,null,null,null,null,null,null,null,"General Fund",{"$f":"IFERROR(VLOOKUP(C1086,Descriptions!B:F,5,FALSE),\"N\")","v":"N"},true,"NTRUE",0,null,{"$f":"IFERROR(VLOOKUP(D1086,'Bank and Fund Details'!$B$14:$L$35,11,FALSE),\"N\")","v":"Y"},"NY"]
[null,null,null,"General Fund",null,null,null,null,null,{"$f":"VLOOKUP(D1087,'Bank and Fund Details'!$B$15:$D$36,3,FALSE)","v":0},{"$f":"VLOOKUP(D1087,'Bank and Fund Details'!$B$15:$C$36,2,FALSE)","v":"Unrestricted"},{"$f":"IFERROR(VLOOKUP(C1087,Descriptions!$B$6:$D$92,3,FALSE),\"\")","v":""},null,null,null,null,null,null,null,null,null,null,null,null,null,null,"General Fund",{"$f":"IFERROR(VLOOKUP(C1087,Descriptions!B:F,5,FALSE),\"N\")","v":"N"},true,"NTRUE",0,null,{"$f":"IFERROR(VLOOKUP(D1087,'Bank and Fund Details'!$B$14:$L$35,11,FALSE),\"N\")","v":"Y"},"NY"]
[null,null,null,"General Fund",null,null,null,null,null,{"$f":"VLOOKUP(D1088,'Bank and Fund Details'!$B$15:$D$36,3,FALSE)","v":0},{"$f":"VLOOKUP(D1088,'Bank and Fund Details'!$B$15:$C$36,2,FALSE)","v":"Unrestricted"},{"$f":"IFERROR(VLOOKUP(C1088,Descriptions!$B$6:$D$92,3,FALSE),\"\")","v":""},null,null,null,null,null,null,null,null,null,null,null,null,null,null,"General Fund",{"$f":"IFERROR(VLOOKUP(C1088,Descriptions!B:F,5,FALSE),\"N\")","v":"N"},true,"NTRUE",0,null,{"$f":"IFERROR(VLOOKUP(D1088,'Bank and Fund Details'!$B$14:$L$35,11,FALSE),\"N\")","v":"Y"},"NY"]
[null,null,null,"General Fund",null,null,null,null,null,{"$f":"VLOOKUP(D1089,'Bank and Fund Details'!$B$15:$D$36,3,FALSE)","v":0},{"$f":"VLOOKUP(D1089,'Bank and Fund Details'!$B$15:$C$36,2,FALSE)","v":"Unrestricted"},{"$f":"IFERROR(VLOOKUP(C1089,Descriptions!$B$6:$D$92,3,FALSE),\"\")","v":""},null,null,null,null,null,null,null,null,null,null,null,null,null,null,"General Fund",{"$f":"IFERROR(VLOOKUP(C1089,Descriptions!B:F,5,FALSE),\"N\")","v":"N"},true,"NTRUE",0,null,{"$f":"IFERROR(VLOOKUP(D1089,'Bank and Fund Details'!$B$14:$L$35,11,FALSE),\"N\")","v":"Y"},"NY"]
[null,null,null,"General Fund",null,null,null,null,null,{"$f":"VLOOKUP(D1090,'Bank and Fund Details'!$B$15:$D$36,3,FALSE)","v":0},{"$f":"VLOOKUP(D1090,'Bank and Fund Details'!$B$15:$C$36,2,FALSE)","v":"Unrestricted"},{"$f":"IFERROR(VLOOKUP(C1090,Descriptions!$B$6:$D$92,3,FALSE),\"\")","v":""},null,null,null,null,null,null,null,null,null,null,null,null,null,null,"General Fund",{"$f":"IFERROR(VLOOKUP(C1090,Descriptions!B:F,5,FALSE),\"N\")","v":"N"},true,"NTRUE",0,null,{"$f":"IFERROR(VLOOKUP(D1090,'Bank and Fund Details'!$B$14:$L$35,11,FALSE),\"N\")","v":"Y"},"NY"]
[null,null,null,"General Fund",null,null,null,null,null,{"$f":"VLOOKUP(D1091,'Bank and Fund Details'!$B$15:$D$36,3,FALSE)","v":0},{"$f":"VLOOKUP(D1091,'Bank and Fund Details'!$B$15:$C$36,2,FALSE)","v":"Unrestricted"},{"$f":"IFERROR(VLOOKUP(C1091,Descriptions!$B$6:$D$92,3,FALSE),\"\")","v":""},null,null,null,null,null,null,null,null,null,null,null,null,null,null,"General Fund",{"$f":"IFERROR(VLOOKUP(C1091,Descriptions!B:F,5,FALSE),\"N\")","v":"N"},true,"NTRUE",0,null,{"$f":"IFERROR(VLOOKUP(D1091,'Bank and Fund Details'!$B$14:$L$35,11,FALSE),\"N\")","v":"Y"},"NY"]
[null,null,null,"General Fund",null,null,null,null,null,{"$f":"VLOOKUP(D1092,'Bank and Fund Details'!$B$15:$D$36,3,FALSE)","v":0},{"$f":"VLOOKUP(D1092,'Bank and Fund Details'!$B$15:$C$36,2,FALSE)","v":"Unrestricted"},{"$f":"IFERROR(VLOOKUP(C1092,Descriptions!$B$6:$D$92,3,FALSE),\"\")","v":""},null,null,null,null,null,null,null,null,null,null,null,null,null,null,"General Fund",{"$f":"IFERROR(VLOOKUP(C1092,Descriptions!B:F,5,FALSE),\"N\")","v":"N"},true,"NTRUE",0,null,{"$f":"IFERROR(VLOOKUP(D1092,'Bank and Fund Details'!$B$14:$L$35,11,FALSE),\"N\")","v":"Y"},"NY"]
[null,null,null,"General Fund",null,null,null,null,null,{"$f":"VLOOKUP(D1093,'Bank and Fund Details'!$B$15:$D$36,3,FALSE)","v":0},{"$f":"VLOOKUP(D1093,'Bank and Fund Details'!$B$15:$C$36,2,FALSE)","v":"Unrestricted"},{"$f":"IFERROR(VLOOKUP(C1093,Descriptions!$B$6:$D$92,3,FALSE),\"\")","v":""},null,null,null,null,null,null,null,null,null,null,null,null,null,null,{"$f":"CONCATENATE(C1093,D1093)","v":"General Fund"},{"$f":"IFERROR(VLOOKUP(C1093,Descriptions!B:F,5,FALSE),\"N\")","v":"N"},{"$f":"ISBLANK(C1093)","v":true},{"$f":"CONCATENATE(AB1093,AC1093)","v":"NTRUE"},{"$f":"IF(AD1093=\"NFALSE\",1,0)","v":0},null,{"$f":"IFERROR(VLOOKUP(D1093,'Bank and Fund Details'!$B$14:$L$35,11,FALSE),\"N\")","v":"Y"},"NY"]
[null,null,null,"General Fund",null,null,null,null,null,{"$f":"VLOOKUP(D1094,'Bank and Fund Details'!$B$15:$D$36,3,FALSE)","v":0},{"$f":"VLOOKUP(D1094,'Bank and Fund Details'!$B$15:$C$36,2,FALSE)","v":"Unrestricted"},{"$f":"IFERROR(VLOOKUP(C1094,Descriptions!$B$6:$D$92,3,FALSE),\"\")","v":""},null,null,null,null,null,null,null,null,null,null,null,null,null,null,"General Fund",{"$f":"IFERROR(VLOOKUP(C1094,Descriptions!B:F,5,FALSE),\"N\")","v":"N"},true,"NTRUE",0,null,{"$f":"IFERROR(VLOOKUP(D1094,'Bank and Fund Details'!$B$14:$L$35,11,FALSE),\"N\")","v":"Y"},{"$f":"CONCATENATE(AB1094,AG1094)","v":"NY"}]
[null,null,null,"General Fund",null,null,null,null,null,{"$f":"VLOOKUP(D1095,'Bank and Fund Details'!$B$15:$D$36,3,FALSE)","v":0},{"$f":"VLOOKUP(D1095,'Bank and Fund Details'!$B$15:$C$36,2,FALSE)","v":"Unrestricted"},{"$f":"IFERROR(VLOOKUP(C1095,Descriptions!$B$6:$D$92,3,FALSE),\"\")","v":""},null,null,null,null,null,null,null,null,null,null,null,null,null,null,"General Fund",{"$f":"IFERROR(VLOOKUP(C1095,Descriptions!B:F,5,FALSE),\"N\")","v":"N"},true,"NTRUE",0,null,{"$f":"IFERROR(VLOOKUP(D1095,'Bank and Fund Details'!$B$14:$L$35,11,FALSE),\"N\")","v":"Y"},"NY"]
[null,null,null,"General Fund",null,null,null,null,null,{"$f":"VLOOKUP(D1096,'Bank and Fund Details'!$B$15:$D$36,3,FALSE)","v":0},{"$f":"VLOOKUP(D1096,'Bank and Fund Details'!$B$15:$C$36,2,FALSE)","v":"Unrestricted"},{"$f":"IFERROR(VLOOKUP(C1096,Descriptions!$B$6:$D$92,3,FALSE),\"\")","v":""},null,null,null,null,null,null,null,null,null,null,null,null,null,null,"General Fund",{"$f":"IFERROR(VLOOKUP(C1096,Descriptions!B:F,5,FALSE),\"N\")","v":"N"},true,"NTRUE",0,null,{"$f":"IFERROR(VLOOKUP(D1096,'Bank and Fund Details'!$B$14:$L$35,11,FALSE),\"N\")","v":"Y"},"NY"]
[null,null,null,"General Fund",null,null,null,null,null,{"$f":"VLOOKUP(D1097,'Bank and Fund Details'!$B$15:$D$36,3,FALSE)","v":0},{"$f":"VLOOKUP(D1097,'Bank and Fund Details'!$B$15:$C$36,2,FALSE)","v":"Unrestricted"},{"$f":"IFERROR(VLOOKUP(C1097,Descriptions!$B$6:$D$92,3,FALSE),\"\")","v":""},null,null,null,null,null,null,null,null,null,null,null,null,null,null,"General Fund",{"$f":"IFERROR(VLOOKUP(C1097,Descriptions!B:F,5,FALSE),\"N\")","v":"N"},true,"NTRUE",0,null,{"$f":"IFERROR(VLOOKUP(D1097,'Bank and Fund Details'!$B$14:$L$35,11,FALSE),\"N\")","v":"Y"},"NY"]
[null,null,null,"General Fund",null,null,null,null,null,{"$f":"VLOOKUP(D1098,'Bank and Fund Details'!$B$15:$D$36,3,FALSE)","v":0},{"$f":"VLOOKUP(D1098,'Bank and Fund Details'!$B$15:$C$36,2,FALSE)","v":"Unrestricted"},{"$f":"IFERROR(VLOOKUP(C1098,Descriptions!$B$6:$D$92,3,FALSE),\"\")","v":""},null,null,null,null,null,null,null,null,null,null,null,null,null,null,"General Fund",{"$f":"IFERROR(VLOOKUP(C1098,Descriptions!B:F,5,FALSE),\"N\")","v":"N"},true,"NTRUE",0,null,{"$f":"IFERROR(VLOOKUP(D1098,'Bank and Fund Details'!$B$14:$L$35,11,FALSE),\"N\")","v":"Y"},"NY"]
[null,null,null,"General Fund",null,null,null,null,null,{"$f":"VLOOKUP(D1099,'Bank and Fund Details'!$B$15:$D$36,3,FALSE)","v":0},{"$f":"VLOOKUP(D1099,'Bank and Fund Details'!$B$15:$C$36,2,FALSE)","v":"Unrestricted"},{"$f":"IFERROR(VLOOKUP(C1099,Descriptions!$B$6:$D$92,3,FALSE),\"\")","v":""},null,null,null,null,null,null,null,null,null,null,null,null,null,null,"General Fund",{"$f":"IFERROR(VLOOKUP(C1099,Descriptions!B:F,5,FALSE),\"N\")","v":"N"},true,"NTRUE",0,null,{"$f":"IFERROR(VLOOKUP(D1099,'Bank and Fund Details'!$B$14:$L$35,11,FALSE),\"N\")","v":"Y"},"NY"]
[null,null,null,"General Fund",null,null,null,null,null,{"$f":"VLOOKUP(D1100,'Bank and Fund Details'!$B$15:$D$36,3,FALSE)","v":0},{"$f":"VLOOKUP(D1100,'Bank and Fund Details'!$B$15:$C$36,2,FALSE)","v":"Unrestricted"},{"$f":"IFERROR(VLOOKUP(C1100,Descriptions!$B$6:$D$92,3,FALSE),\"\")","v":""},null,null,null,null,null,null,null,null,null,null,null,null,null,null,"General Fund",{"$f":"IFERROR(VLOOKUP(C1100,Descriptions!B:F,5,FALSE),\"N\")","v":"N"},true,"NTRUE",0,null,{"$f":"IFERROR(VLOOKUP(D1100,'Bank and Fund Details'!$B$14:$L$35,11,FALSE),\"N\")","v":"Y"},"NY"]
[null,null,null,"General Fund",null,null,null,null,null,{"$f":"VLOOKUP(D1101,'Bank and Fund Details'!$B$15:$D$36,3,FALSE)","v":0},{"$f":"VLOOKUP(D1101,'Bank and Fund Details'!$B$15:$C$36,2,FALSE)","v":"Unrestricted"},{"$f":"IFERROR(VLOOKUP(C1101,Descriptions!$B$6:$D$92,3,FALSE),\"\")","v":""},null,null,null,null,null,null,null,null,null,null,null,null,null,null,"General Fund",{"$f":"IFERROR(VLOOKUP(C1101,Descriptions!B:F,5,FALSE),\"N\")","v":"N"},true,"NTRUE",0,null,{"$f":"IFERROR(VLOOKUP(D1101,'Bank and Fund Details'!$B$14:$L$35,11,FALSE),\"N\")","v":"Y"},"NY"]
[null,null,null,"General Fund",null,null,null,null,null,{"$f":"VLOOKUP(D1102,'Bank and Fund Details'!$B$15:$D$36,3,FALSE)","v":0},{"$f":"VLOOKUP(D1102,'Bank and Fund Details'!$B$15:$C$36,2,FALSE)","v":"Unrestricted"},{"$f":"IFERROR(VLOOKUP(C1102,Descriptions!$B$6:$D$92,3,FALSE),\"\")","v":""},null,null,null,null,null,null,null,null,null,null,null,null,null,null,"General Fund",{"$f":"IFERROR(VLOOKUP(C1102,Descriptions!B:F,5,FALSE),\"N\")","v":"N"},true,"NTRUE",0,null,{"$f":"IFERROR(VLOOKUP(D1102,'Bank and Fund Details'!$B$14:$L$35,11,FALSE),\"N\")","v":"Y"},"NY"]
[null,null,null,"General Fund",null,null,null,null,null,{"$f":"VLOOKUP(D1103,'Bank and Fund Details'!$B$15:$D$36,3,FALSE)","v":0},{"$f":"VLOOKUP(D1103,'Bank and Fund Details'!$B$15:$C$36,2,FALSE)","v":"Unrestricted"},{"$f":"IFERROR(VLOOKUP(C1103,Descriptions!$B$6:$D$92,3,FALSE),\"\")","v":""},null,null,null,null,null,null,null,null,null,null,null,null,null,null,"General Fund",{"$f":"IFERROR(VLOOKUP(C1103,Descriptions!B:F,5,FALSE),\"N\")","v":"N"},true,"NTRUE",0,null,{"$f":"IFERROR(VLOOKUP(D1103,'Bank and Fund Details'!$B$14:$L$35,11,FALSE),\"N\")","v":"Y"},"NY"]
[null,null,null,"General Fund",null,null,null,null,null,{"$f":"VLOOKUP(D1104,'Bank and Fund Details'!$B$15:$D$36,3,FALSE)","v":0},{"$f":"VLOOKUP(D1104,'Bank and Fund Details'!$B$15:$C$36,2,FALSE)","v":"Unrestricted"},{"$f":"IFERROR(VLOOKUP(C1104,Descriptions!$B$6:$D$92,3,FALSE),\"\")","v":""},null,null,null,null,null,null,null,null,null,null,null,null,null,null,"General Fund",{"$f":"IFERROR(VLOOKUP(C1104,Descriptions!B:F,5,FALSE),\"N\")","v":"N"},true,"NTRUE",0,null,{"$f":"IFERROR(VLOOKUP(D1104,'Bank and Fund Details'!$B$14:$L$35,11,FALSE),\"N\")","v":"Y"},"NY"]
[null,null,null,"General Fund",null,null,null,null,null,{"$f":"VLOOKUP(D1105,'Bank and Fund Details'!$B$15:$D$36,3,FALSE)","v":0},{"$f":"VLOOKUP(D1105,'Bank and Fund Details'!$B$15:$C$36,2,FALSE)","v":"Unrestricted"},{"$f":"IFERROR(VLOOKUP(C1105,Descriptions!$B$6:$D$92,3,FALSE),\"\")","v":""},null,null,null,null,null,null,null,null,null,null,null,null,null,null,"General Fund",{"$f":"IFERROR(VLOOKUP(C1105,Descriptions!B:F,5,FALSE),\"N\")","v":"N"},true,"NTRUE",0,null,{"$f":"IFERROR(VLOOKUP(D1105,'Bank and Fund Details'!$B$14:$L$35,11,FALSE),\"N\")","v":"Y"},"NY"]
[null,null,null,"General Fund",null,null,null,null,null,{"$f":"VLOOKUP(D1106,'Bank and Fund Details'!$B$15:$D$36,3,FALSE)","v":0},{"$f":"VLOOKUP(D1106,'Bank and Fund Details'!$B$15:$C$36,2,FALSE)","v":"Unrestricted"},{"$f":"IFERROR(VLOOKUP(C1106,Descriptions!$B$6:$D$92,3,FALSE),\"\")","v":""},null,null,null,null,null,null,null,null,null,null,null,null,null,null,"General Fund",{"$f":"IFERROR(VLOOKUP(C1106,Descriptions!B:F,5,FALSE),\"N\")","v":"N"},true,"NTRUE",0,null,{"$f":"IFERROR(VLOOKUP(D1106,'Bank and Fund Details'!$B$14:$L$35,11,FALSE),\"N\")","v":"Y"},"NY"]
[null,null,null,"General Fund",null,null,null,null,null,{"$f":"VLOOKUP(D1107,'Bank and Fund Details'!$B$15:$D$36,3,FALSE)","v":0},{"$f":"VLOOKUP(D1107,'Bank and Fund Details'!$B$15:$C$36,2,FALSE)","v":"Unrestricted"},{"$f":"IFERROR(VLOOKUP(C1107,Descriptions!$B$6:$D$92,3,FALSE),\"\")","v":""},null,null,null,null,null,null,null,null,null,null,null,null,null,null,"General Fund",{"$f":"IFERROR(VLOOKUP(C1107,Descriptions!B:F,5,FALSE),\"N\")","v":"N"},true,"NTRUE",0,null,{"$f":"IFERROR(VLOOKUP(D1107,'Bank and Fund Details'!$B$14:$L$35,11,FALSE),\"N\")","v":"Y"},"NY"]
[null,null,null,"General Fund",null,null,null,null,null,{"$f":"VLOOKUP(D1108,'Bank and Fund Details'!$B$15:$D$36,3,FALSE)","v":0},{"$f":"VLOOKUP(D1108,'Bank and Fund Details'!$B$15:$C$36,2,FALSE)","v":"Unrestricted"},{"$f":"IFERROR(VLOOKUP(C1108,Descriptions!$B$6:$D$92,3,FALSE),\"\")","v":""},null,null,null,null,null,null,null,null,null,null,null,null,null,null,"General Fund",{"$f":"IFERROR(VLOOKUP(C1108,Descriptions!B:F,5,FALSE),\"N\")","v":"N"},true,"NTRUE",0,null,{"$f":"IFERROR(VLOOKUP(D1108,'Bank and Fund Details'!$B$14:$L$35,11,FALSE),\"N\")","v":"Y"},"NY"]
[null,null,null,"General Fund",null,null,null,null,null,{"$f":"VLOOKUP(D1109,'Bank and Fund Details'!$B$15:$D$36,3,FALSE)","v":0},{"$f":"VLOOKUP(D1109,'Bank and Fund Details'!$B$15:$C$36,2,FALSE)","v":"Unrestricted"},{"$f":"IFERROR(VLOOKUP(C1109,Descriptions!$B$6:$D$92,3,FALSE),\"\")","v":""},null,null,null,null,null,null,null,null,null,null,null,null,null,null,"General Fund",{"$f":"IFERROR(VLOOKUP(C1109,Descriptions!B:F,5,FALSE),\"N\")","v":"N"},true,"NTRUE",0,null,{"$f":"IFERROR(VLOOKUP(D1109,'Bank and Fund Details'!$B$14:$L$35,11,FALSE),\"N\")","v":"Y"},"NY"]
[null,null,null,"General Fund",null,null,null,null,null,{"$f":"VLOOKUP(D1110,'Bank and Fund Details'!$B$15:$D$36,3,FALSE)","v":0},{"$f":"VLOOKUP(D1110,'Bank and Fund Details'!$B$15:$C$36,2,FALSE)","v":"Unrestricted"},{"$f":"IFERROR(VLOOKUP(C1110,Descriptions!$B$6:$D$92,3,FALSE),\"\")","v":""},null,null,null,null,null,null,null,null,null,null,null,null,null,null,"General Fund",{"$f":"IFERROR(VLOOKUP(C1110,Descriptions!B:F,5,FALSE),\"N\")","v":"N"},true,"NTRUE",0,null,{"$f":"IFERROR(VLOOKUP(D1110,'Bank and Fund Details'!$B$14:$L$35,11,FALSE),\"N\")","v":"Y"},"NY"]
[null,null,null,"General Fund",null,null,null,null,null,{"$f":"VLOOKUP(D1111,'Bank and Fund Details'!$B$15:$D$36,3,FALSE)","v":0},{"$f":"VLOOKUP(D1111,'Bank and Fund Details'!$B$15:$C$36,2,FALSE)","v":"Unrestricted"},{"$f":"IFERROR(VLOOKUP(C1111,Descriptions!$B$6:$D$92,3,FALSE),\"\")","v":""},null,null,null,null,null,null,null,null,null,null,null,null,null,null,"General Fund",{"$f":"IFERROR(VLOOKUP(C1111,Descriptions!B:F,5,FALSE),\"N\")","v":"N"},true,"NTRUE",0,null,{"$f":"IFERROR(VLOOKUP(D1111,'Bank and Fund Details'!$B$14:$L$35,11,FALSE),\"N\")","v":"Y"},"NY"]
[null,null,null,"General Fund",null,null,null,null,null,{"$f":"VLOOKUP(D1112,'Bank and Fund Details'!$B$15:$D$36,3,FALSE)","v":0},{"$f":"VLOOKUP(D1112,'Bank and Fund Details'!$B$15:$C$36,2,FALSE)","v":"Unrestricted"},{"$f":"IFERROR(VLOOKUP(C1112,Descriptions!$B$6:$D$92,3,FALSE),\"\")","v":""},null,null,null,null,null,null,null,null,null,null,null,null,null,null,"General Fund",{"$f":"IFERROR(VLOOKUP(C1112,Descriptions!B:F,5,FALSE),\"N\")","v":"N"},true,"NTRUE",0,null,{"$f":"IFERROR(VLOOKUP(D1112,'Bank and Fund Details'!$B$14:$L$35,11,FALSE),\"N\")","v":"Y"},"NY"]
[null,null,null,"General Fund",null,null,null,null,null,{"$f":"VLOOKUP(D1113,'Bank and Fund Details'!$B$15:$D$36,3,FALSE)","v":0},{"$f":"VLOOKUP(D1113,'Bank and Fund Details'!$B$15:$C$36,2,FALSE)","v":"Unrestricted"},{"$f":"IFERROR(VLOOKUP(C1113,Descriptions!$B$6:$D$92,3,FALSE),\"\")","v":""},null,null,null,null,null,null,null,null,null,null,null,null,null,null,"General Fund",{"$f":"IFERROR(VLOOKUP(C1113,Descriptions!B:F,5,FALSE),\"N\")","v":"N"},true,"NTRUE",0,null,{"$f":"IFERROR(VLOOKUP(D1113,'Bank and Fund Details'!$B$14:$L$35,11,FALSE),\"N\")","v":"Y"},"NY"]
[null,null,null,"General Fund",null,null,null,null,null,{"$f":"VLOOKUP(D1114,'Bank and Fund Details'!$B$15:$D$36,3,FALSE)","v":0},{"$f":"VLOOKUP(D1114,'Bank and Fund Details'!$B$15:$C$36,2,FALSE)","v":"Unrestricted"},{"$f":"IFERROR(VLOOKUP(C1114,Descriptions!$B$6:$D$92,3,FALSE),\"\")","v":""},null,null,null,null,null,null,null,null,null,null,null,null,null,null,"General Fund",{"$f":"IFERROR(VLOOKUP(C1114,Descriptions!B:F,5,FALSE),\"N\")","v":"N"},true,"NTRUE",0,null,{"$f":"IFERROR(VLOOKUP(D1114,'Bank and Fund Details'!$B$14:$L$35,11,FALSE),\"N\")","v":"Y"},"NY"]
[null,null,null,"General Fund",null,null,null,null,null,{"$f":"VLOOKUP(D1115,'Bank and Fund Details'!$B$15:$D$36,3,FALSE)","v":0},{"$f":"VLOOKUP(D1115,'Bank and Fund Details'!$B$15:$C$36,2,FALSE)","v":"Unrestricted"},{"$f":"IFERROR(VLOOKUP(C1115,Descriptions!$B$6:$D$92,3,FALSE),\"\")","v":""},null,null,null,null,null,null,null,null,null,null,null,null,null,null,"General Fund",{"$f":"IFERROR(VLOOKUP(C1115,Descriptions!B:F,5,FALSE),\"N\")","v":"N"},true,"NTRUE",0,null,{"$f":"IFERROR(VLOOKUP(D1115,'Bank and Fund Details'!$B$14:$L$35,11,FALSE),\"N\")","v":"Y"},"NY"]
[null,null,null,"General Fund",null,null,null,null,null,{"$f":"VLOOKUP(D1116,'Bank and Fund Details'!$B$15:$D$36,3,FALSE)","v":0},{"$f":"VLOOKUP(D1116,'Bank and Fund Details'!$B$15:$C$36,2,FALSE)","v":"Unrestricted"},{"$f":"IFERROR(VLOOKUP(C1116,Descriptions!$B$6:$D$92,3,FALSE),\"\")","v":""},null,null,null,null,null,null,null,null,null,null,null,null,null,null,"General Fund",{"$f":"IFERROR(VLOOKUP(C1116,Descriptions!B:F,5,FALSE),\"N\")","v":"N"},true,"NTRUE",0,null,{"$f":"IFERROR(VLOOKUP(D1116,'Bank and Fund Details'!$B$14:$L$35,11,FALSE),\"N\")","v":"Y"},"NY"]
[null,null,null,"General Fund",null,null,null,null,null,{"$f":"VLOOKUP(D1117,'Bank and Fund Details'!$B$15:$D$36,3,FALSE)","v":0},{"$f":"VLOOKUP(D1117,'Bank and Fund Details'!$B$15:$C$36,2,FALSE)","v":"Unrestricted"},{"$f":"IFERROR(VLOOKUP(C1117,Descriptions!$B$6:$D$92,3,FALSE),\"\")","v":""},null,null,null,null,null,null,null,null,null,null,null,null,null,null,"General Fund",{"$f":"IFERROR(VLOOKUP(C1117,Descriptions!B:F,5,FALSE),\"N\")","v":"N"},true,"NTRUE",0,null,{"$f":"IFERROR(VLOOKUP(D1117,'Bank and Fund Details'!$B$14:$L$35,11,FALSE),\"N\")","v":"Y"},"NY"]
[null,null,null,"General Fund",null,null,null,null,null,{"$f":"VLOOKUP(D1118,'Bank and Fund Details'!$B$15:$D$36,3,FALSE)","v":0},{"$f":"VLOOKUP(D1118,'Bank and Fund Details'!$B$15:$C$36,2,FALSE)","v":"Unrestricted"},{"$f":"IFERROR(VLOOKUP(C1118,Descriptions!$B$6:$D$92,3,FALSE),\"\")","v":""},null,null,null,null,null,null,null,null,null,null,null,null,null,null,"General Fund",{"$f":"IFERROR(VLOOKUP(C1118,Descriptions!B:F,5,FALSE),\"N\")","v":"N"},true,"NTRUE",0,null,{"$f":"IFERROR(VLOOKUP(D1118,'Bank and Fund Details'!$B$14:$L$35,11,FALSE),\"N\")","v":"Y"},"NY"]
[null,null,null,"General Fund",null,null,null,null,null,{"$f":"VLOOKUP(D1119,'Bank and Fund Details'!$B$15:$D$36,3,FALSE)","v":0},{"$f":"VLOOKUP(D1119,'Bank and Fund Details'!$B$15:$C$36,2,FALSE)","v":"Unrestricted"},{"$f":"IFERROR(VLOOKUP(C1119,Descriptions!$B$6:$D$92,3,FALSE),\"\")","v":""},null,null,null,null,null,null,null,null,null,null,null,null,null,null,"General Fund",{"$f":"IFERROR(VLOOKUP(C1119,Descriptions!B:F,5,FALSE),\"N\")","v":"N"},true,"NTRUE",0,null,{"$f":"IFERROR(VLOOKUP(D1119,'Bank and Fund Details'!$B$14:$L$35,11,FALSE),\"N\")","v":"Y"},"NY"]
[null,null,null,"General Fund",null,null,null,null,null,{"$f":"VLOOKUP(D1120,'Bank and Fund Details'!$B$15:$D$36,3,FALSE)","v":0},{"$f":"VLOOKUP(D1120,'Bank and Fund Details'!$B$15:$C$36,2,FALSE)","v":"Unrestricted"},{"$f":"IFERROR(VLOOKUP(C1120,Descriptions!$B$6:$D$92,3,FALSE),\"\")","v":""},null,null,null,null,null,null,null,null,null,null,null,null,null,null,"General Fund",{"$f":"IFERROR(VLOOKUP(C1120,Descriptions!B:F,5,FALSE),\"N\")","v":"N"},true,"NTRUE",0,null,{"$f":"IFERROR(VLOOKUP(D1120,'Bank and Fund Details'!$B$14:$L$35,11,FALSE),\"N\")","v":"Y"},"NY"]
[null,null,null,"General Fund",null,null,null,null,null,{"$f":"VLOOKUP(D1121,'Bank and Fund Details'!$B$15:$D$36,3,FALSE)","v":0},{"$f":"VLOOKUP(D1121,'Bank and Fund Details'!$B$15:$C$36,2,FALSE)","v":"Unrestricted"},{"$f":"IFERROR(VLOOKUP(C1121,Descriptions!$B$6:$D$92,3,FALSE),\"\")","v":""},null,null,null,null,null,null,null,null,null,null,null,null,null,null,"General Fund",{"$f":"IFERROR(VLOOKUP(C1121,Descriptions!B:F,5,FALSE),\"N\")","v":"N"},true,"NTRUE",0,null,{"$f":"IFERROR(VLOOKUP(D1121,'Bank and Fund Details'!$B$14:$L$35,11,FALSE),\"N\")","v":"Y"},"NY"]
[null,null,null,"General Fund",null,null,null,null,null,{"$f":"VLOOKUP(D1122,'Bank and Fund Details'!$B$15:$D$36,3,FALSE)","v":0},{"$f":"VLOOKUP(D1122,'Bank and Fund Details'!$B$15:$C$36,2,FALSE)","v":"Unrestricted"},{"$f":"IFERROR(VLOOKUP(C1122,Descriptions!$B$6:$D$92,3,FALSE),\"\")","v":""},null,null,null,null,null,null,null,null,null,null,null,null,null,null,"General Fund",{"$f":"IFERROR(VLOOKUP(C1122,Descriptions!B:F,5,FALSE),\"N\")","v":"N"},true,"NTRUE",0,null,{"$f":"IFERROR(VLOOKUP(D1122,'Bank and Fund Details'!$B$14:$L$35,11,FALSE),\"N\")","v":"Y"},"NY"]
[null,null,null,"General Fund",null,null,null,null,null,{"$f":"VLOOKUP(D1123,'Bank and Fund Details'!$B$15:$D$36,3,FALSE)","v":0},{"$f":"VLOOKUP(D1123,'Bank and Fund Details'!$B$15:$C$36,2,FALSE)","v":"Unrestricted"},{"$f":"IFERROR(VLOOKUP(C1123,Descriptions!$B$6:$D$92,3,FALSE),\"\")","v":""},null,null,null,null,null,null,null,null,null,null,null,null,null,null,"General Fund",{"$f":"IFERROR(VLOOKUP(C1123,Descriptions!B:F,5,FALSE),\"N\")","v":"N"},true,"NTRUE",0,null,{"$f":"IFERROR(VLOOKUP(D1123,'Bank and Fund Details'!$B$14:$L$35,11,FALSE),\"N\")","v":"Y"},"NY"]
[null,null,null,"General Fund",null,null,null,null,null,{"$f":"VLOOKUP(D1124,'Bank and Fund Details'!$B$15:$D$36,3,FALSE)","v":0},{"$f":"VLOOKUP(D1124,'Bank and Fund Details'!$B$15:$C$36,2,FALSE)","v":"Unrestricted"},{"$f":"IFERROR(VLOOKUP(C1124,Descriptions!$B$6:$D$92,3,FALSE),\"\")","v":""},null,null,null,null,null,null,null,null,null,null,null,null,null,null,"General Fund",{"$f":"IFERROR(VLOOKUP(C1124,Descriptions!B:F,5,FALSE),\"N\")","v":"N"},true,"NTRUE",0,null,{"$f":"IFERROR(VLOOKUP(D1124,'Bank and Fund Details'!$B$14:$L$35,11,FALSE),\"N\")","v":"Y"},"NY"]
[null,null,null,"General Fund",null,null,null,null,null,{"$f":"VLOOKUP(D1125,'Bank and Fund Details'!$B$15:$D$36,3,FALSE)","v":0},{"$f":"VLOOKUP(D1125,'Bank and Fund Details'!$B$15:$C$36,2,FALSE)","v":"Unrestricted"},{"$f":"IFERROR(VLOOKUP(C1125,Descriptions!$B$6:$D$92,3,FALSE),\"\")","v":""},null,null,null,null,null,null,null,null,null,null,null,null,null,null,"General Fund",{"$f":"IFERROR(VLOOKUP(C1125,Descriptions!B:F,5,FALSE),\"N\")","v":"N"},true,"NTRUE",0,null,{"$f":"IFERROR(VLOOKUP(D1125,'Bank and Fund Details'!$B$14:$L$35,11,FALSE),\"N\")","v":"Y"},"NY"]
[null,null,null,"General Fund",null,null,null,null,null,{"$f":"VLOOKUP(D1126,'Bank and Fund Details'!$B$15:$D$36,3,FALSE)","v":0},{"$f":"VLOOKUP(D1126,'Bank and Fund Details'!$B$15:$C$36,2,FALSE)","v":"Unrestricted"},{"$f":"IFERROR(VLOOKUP(C1126,Descriptions!$B$6:$D$92,3,FALSE),\"\")","v":""},null,null,null,null,null,null,null,null,null,null,null,null,null,null,"General Fund",{"$f":"IFERROR(VLOOKUP(C1126,Descriptions!B:F,5,FALSE),\"N\")","v":"N"},true,"NTRUE",0,null,{"$f":"IFERROR(VLOOKUP(D1126,'Bank and Fund Details'!$B$14:$L$35,11,FALSE),\"N\")","v":"Y"},"NY"]
[null,null,null,"General Fund",null,null,null,null,null,{"$f":"VLOOKUP(D1127,'Bank and Fund Details'!$B$15:$D$36,3,FALSE)","v":0},{"$f":"VLOOKUP(D1127,'Bank and Fund Details'!$B$15:$C$36,2,FALSE)","v":"Unrestricted"},{"$f":"IFERROR(VLOOKUP(C1127,Descriptions!$B$6:$D$92,3,FALSE),\"\")","v":""},null,null,null,null,null,null,null,null,null,null,null,null,null,null,"General Fund",{"$f":"IFERROR(VLOOKUP(C1127,Descriptions!B:F,5,FALSE),\"N\")","v":"N"},true,"NTRUE",0,null,{"$f":"IFERROR(VLOOKUP(D1127,'Bank and Fund Details'!$B$14:$L$35,11,FALSE),\"N\")","v":"Y"},"NY"]
[null,null,null,"General Fund",null,null,null,null,null,{"$f":"VLOOKUP(D1128,'Bank and Fund Details'!$B$15:$D$36,3,FALSE)","v":0},{"$f":"VLOOKUP(D1128,'Bank and Fund Details'!$B$15:$C$36,2,FALSE)","v":"Unrestricted"},{"$f":"IFERROR(VLOOKUP(C1128,Descriptions!$B$6:$D$92,3,FALSE),\"\")","v":""},null,null,null,null,null,null,null,null,null,null,null,null,null,null,"General Fund",{"$f":"IFERROR(VLOOKUP(C1128,Descriptions!B:F,5,FALSE),\"N\")","v":"N"},true,"NTRUE",0,null,{"$f":"IFERROR(VLOOKUP(D1128,'Bank and Fund Details'!$B$14:$L$35,11,FALSE),\"N\")","v":"Y"},"NY"]
[null,null,null,"General Fund",null,null,null,null,null,{"$f":"VLOOKUP(D1129,'Bank and Fund Details'!$B$15:$D$36,3,FALSE)","v":0},{"$f":"VLOOKUP(D1129,'Bank and Fund Details'!$B$15:$C$36,2,FALSE)","v":"Unrestricted"},{"$f":"IFERROR(VLOOKUP(C1129,Descriptions!$B$6:$D$92,3,FALSE),\"\")","v":""},null,null,null,null,null,null,null,null,null,null,null,null,null,null,"General Fund",{"$f":"IFERROR(VLOOKUP(C1129,Descriptions!B:F,5,FALSE),\"N\")","v":"N"},true,"NTRUE",0,null,{"$f":"IFERROR(VLOOKUP(D1129,'Bank and Fund Details'!$B$14:$L$35,11,FALSE),\"N\")","v":"Y"},"NY"]
[null,null,null,"General Fund",null,null,null,null,null,{"$f":"VLOOKUP(D1130,'Bank and Fund Details'!$B$15:$D$36,3,FALSE)","v":0},{"$f":"VLOOKUP(D1130,'Bank and Fund Details'!$B$15:$C$36,2,FALSE)","v":"Unrestricted"},{"$f":"IFERROR(VLOOKUP(C1130,Descriptions!$B$6:$D$92,3,FALSE),\"\")","v":""},null,null,null,null,null,null,null,null,null,null,null,null,null,null,"General Fund",{"$f":"IFERROR(VLOOKUP(C1130,Descriptions!B:F,5,FALSE),\"N\")","v":"N"},true,"NTRUE",0,null,{"$f":"IFERROR(VLOOKUP(D1130,'Bank and Fund Details'!$B$14:$L$35,11,FALSE),\"N\")","v":"Y"},"NY"]
[null,null,null,"General Fund",null,null,null,null,null,{"$f":"VLOOKUP(D1131,'Bank and Fund Details'!$B$15:$D$36,3,FALSE)","v":0},{"$f":"VLOOKUP(D1131,'Bank and Fund Details'!$B$15:$C$36,2,FALSE)","v":"Unrestricted"},{"$f":"IFERROR(VLOOKUP(C1131,Descriptions!$B$6:$D$92,3,FALSE),\"\")","v":""},null,null,null,null,null,null,null,null,null,null,null,null,null,null,"General Fund",{"$f":"IFERROR(VLOOKUP(C1131,Descriptions!B:F,5,FALSE),\"N\")","v":"N"},true,"NTRUE",0,null,{"$f":"IFERROR(VLOOKUP(D1131,'Bank and Fund Details'!$B$14:$L$35,11,FALSE),\"N\")","v":"Y"},"NY"]
[null,null,null,"General Fund",null,null,null,null,null,{"$f":"VLOOKUP(D1132,'Bank and Fund Details'!$B$15:$D$36,3,FALSE)","v":0},{"$f":"VLOOKUP(D1132,'Bank and Fund Details'!$B$15:$C$36,2,FALSE)","v":"Unrestricted"},{"$f":"IFERROR(VLOOKUP(C1132,Descriptions!$B$6:$D$92,3,FALSE),\"\")","v":""},null,null,null,null,null,null,null,null,null,null,null,null,null,null,"General Fund",{"$f":"IFERROR(VLOOKUP(C1132,Descriptions!B:F,5,FALSE),\"N\")","v":"N"},true,"NTRUE",0,null,{"$f":"IFERROR(VLOOKUP(D1132,'Bank and Fund Details'!$B$14:$L$35,11,FALSE),\"N\")","v":"Y"},"NY"]
[null,null,null,"General Fund",null,null,null,null,null,{"$f":"VLOOKUP(D1133,'Bank and Fund Details'!$B$15:$D$36,3,FALSE)","v":0},{"$f":"VLOOKUP(D1133,'Bank and Fund Details'!$B$15:$C$36,2,FALSE)","v":"Unrestricted"},{"$f":"IFERROR(VLOOKUP(C1133,Descriptions!$B$6:$D$92,3,FALSE),\"\")","v":""},null,null,null,null,null,null,null,null,null,null,null,null,null,null,"General Fund",{"$f":"IFERROR(VLOOKUP(C1133,Descriptions!B:F,5,FALSE),\"N\")","v":"N"},true,"NTRUE",0,null,{"$f":"IFERROR(VLOOKUP(D1133,'Bank and Fund Details'!$B$14:$L$35,11,FALSE),\"N\")","v":"Y"},"NY"]
[null,null,null,"General Fund",null,null,null,null,null,{"$f":"VLOOKUP(D1134,'Bank and Fund Details'!$B$15:$D$36,3,FALSE)","v":0},{"$f":"VLOOKUP(D1134,'Bank and Fund Details'!$B$15:$C$36,2,FALSE)","v":"Unrestricted"},{"$f":"IFERROR(VLOOKUP(C1134,Descriptions!$B$6:$D$92,3,FALSE),\"\")","v":""},null,null,null,null,null,null,null,null,null,null,null,null,null,null,"General Fund",{"$f":"IFERROR(VLOOKUP(C1134,Descriptions!B:F,5,FALSE),\"N\")","v":"N"},true,"NTRUE",0,null,{"$f":"IFERROR(VLOOKUP(D1134,'Bank and Fund Details'!$B$14:$L$35,11,FALSE),\"N\")","v":"Y"},"NY"]
[null,null,null,"General Fund",null,null,null,null,null,{"$f":"VLOOKUP(D1135,'Bank and Fund Details'!$B$15:$D$36,3,FALSE)","v":0},{"$f":"VLOOKUP(D1135,'Bank and Fund Details'!$B$15:$C$36,2,FALSE)","v":"Unrestricted"},{"$f":"IFERROR(VLOOKUP(C1135,Descriptions!$B$6:$D$92,3,FALSE),\"\")","v":""},null,null,null,null,null,null,null,null,null,null,null,null,null,null,"General Fund",{"$f":"IFERROR(VLOOKUP(C1135,Descriptions!B:F,5,FALSE),\"N\")","v":"N"},true,"NTRUE",0,null,{"$f":"IFERROR(VLOOKUP(D1135,'Bank and Fund Details'!$B$14:$L$35,11,FALSE),\"N\")","v":"Y"},"NY"]
[null,null,null,"General Fund",null,null,null,null,null,{"$f":"VLOOKUP(D1136,'Bank and Fund Details'!$B$15:$D$36,3,FALSE)","v":0},{"$f":"VLOOKUP(D1136,'Bank and Fund Details'!$B$15:$C$36,2,FALSE)","v":"Unrestricted"},{"$f":"IFERROR(VLOOKUP(C1136,Descriptions!$B$6:$D$92,3,FALSE),\"\")","v":""},null,null,null,null,null,null,null,null,null,null,null,null,null,null,"General Fund",{"$f":"IFERROR(VLOOKUP(C1136,Descriptions!B:F,5,FALSE),\"N\")","v":"N"},true,"NTRUE",0,null,{"$f":"IFERROR(VLOOKUP(D1136,'Bank and Fund Details'!$B$14:$L$35,11,FALSE),\"N\")","v":"Y"},"NY"]
[null,null,null,"General Fund",null,null,null,null,null,{"$f":"VLOOKUP(D1137,'Bank and Fund Details'!$B$15:$D$36,3,FALSE)","v":0},{"$f":"VLOOKUP(D1137,'Bank and Fund Details'!$B$15:$C$36,2,FALSE)","v":"Unrestricted"},{"$f":"IFERROR(VLOOKUP(C1137,Descriptions!$B$6:$D$92,3,FALSE),\"\")","v":""},null,null,null,null,null,null,null,null,null,null,null,null,null,null,"General Fund",{"$f":"IFERROR(VLOOKUP(C1137,Descriptions!B:F,5,FALSE),\"N\")","v":"N"},true,"NTRUE",0,null,{"$f":"IFERROR(VLOOKUP(D1137,'Bank and Fund Details'!$B$14:$L$35,11,FALSE),\"N\")","v":"Y"},"NY"]
[null,null,null,"General Fund",null,null,null,null,null,{"$f":"VLOOKUP(D1138,'Bank and Fund Details'!$B$15:$D$36,3,FALSE)","v":0},{"$f":"VLOOKUP(D1138,'Bank and Fund Details'!$B$15:$C$36,2,FALSE)","v":"Unrestricted"},{"$f":"IFERROR(VLOOKUP(C1138,Descriptions!$B$6:$D$92,3,FALSE),\"\")","v":""},null,null,null,null,null,null,null,null,null,null,null,null,null,null,"General Fund",{"$f":"IFERROR(VLOOKUP(C1138,Descriptions!B:F,5,FALSE),\"N\")","v":"N"},true,"NTRUE",0,null,{"$f":"IFERROR(VLOOKUP(D1138,'Bank and Fund Details'!$B$14:$L$35,11,FALSE),\"N\")","v":"Y"},"NY"]
[null,null,null,"General Fund",null,null,null,null,null,{"$f":"VLOOKUP(D1139,'Bank and Fund Details'!$B$15:$D$36,3,FALSE)","v":0},{"$f":"VLOOKUP(D1139,'Bank and Fund Details'!$B$15:$C$36,2,FALSE)","v":"Unrestricted"},{"$f":"IFERROR(VLOOKUP(C1139,Descriptions!$B$6:$D$92,3,FALSE),\"\")","v":""},null,null,null,null,null,null,null,null,null,null,null,null,null,null,"General Fund",{"$f":"IFERROR(VLOOKUP(C1139,Descriptions!B:F,5,FALSE),\"N\")","v":"N"},true,"NTRUE",0,null,{"$f":"IFERROR(VLOOKUP(D1139,'Bank and Fund Details'!$B$14:$L$35,11,FALSE),\"N\")","v":"Y"},"NY"]
[null,null,null,"General Fund",null,null,null,null,null,{"$f":"VLOOKUP(D1140,'Bank and Fund Details'!$B$15:$D$36,3,FALSE)","v":0},{"$f":"VLOOKUP(D1140,'Bank and Fund Details'!$B$15:$C$36,2,FALSE)","v":"Unrestricted"},{"$f":"IFERROR(VLOOKUP(C1140,Descriptions!$B$6:$D$92,3,FALSE),\"\")","v":""},null,null,null,null,null,null,null,null,null,null,null,null,null,null,"General Fund",{"$f":"IFERROR(VLOOKUP(C1140,Descriptions!B:F,5,FALSE),\"N\")","v":"N"},true,"NTRUE",0,null,{"$f":"IFERROR(VLOOKUP(D1140,'Bank and Fund Details'!$B$14:$L$35,11,FALSE),\"N\")","v":"Y"},"NY"]
[null,null,null,"General Fund",null,null,null,null,null,{"$f":"VLOOKUP(D1141,'Bank and Fund Details'!$B$15:$D$36,3,FALSE)","v":0},{"$f":"VLOOKUP(D1141,'Bank and Fund Details'!$B$15:$C$36,2,FALSE)","v":"Unrestricted"},{"$f":"IFERROR(VLOOKUP(C1141,Descriptions!$B$6:$D$92,3,FALSE),\"\")","v":""},null,null,null,null,null,null,null,null,null,null,null,null,null,null,"General Fund",{"$f":"IFERROR(VLOOKUP(C1141,Descriptions!B:F,5,FALSE),\"N\")","v":"N"},true,"NTRUE",0,null,{"$f":"IFERROR(VLOOKUP(D1141,'Bank and Fund Details'!$B$14:$L$35,11,FALSE),\"N\")","v":"Y"},"NY"]
[null,null,null,"General Fund",null,null,null,null,null,{"$f":"VLOOKUP(D1142,'Bank and Fund Details'!$B$15:$D$36,3,FALSE)","v":0},{"$f":"VLOOKUP(D1142,'Bank and Fund Details'!$B$15:$C$36,2,FALSE)","v":"Unrestricted"},{"$f":"IFERROR(VLOOKUP(C1142,Descriptions!$B$6:$D$92,3,FALSE),\"\")","v":""},null,null,null,null,null,null,null,null,null,null,null,null,null,null,"General Fund",{"$f":"IFERROR(VLOOKUP(C1142,Descriptions!B:F,5,FALSE),\"N\")","v":"N"},true,"NTRUE",0,null,{"$f":"IFERROR(VLOOKUP(D1142,'Bank and Fund Details'!$B$14:$L$35,11,FALSE),\"N\")","v":"Y"},"NY"]
[null,null,null,"General Fund",null,null,null,null,null,{"$f":"VLOOKUP(D1143,'Bank and Fund Details'!$B$15:$D$36,3,FALSE)","v":0},{"$f":"VLOOKUP(D1143,'Bank and Fund Details'!$B$15:$C$36,2,FALSE)","v":"Unrestricted"},{"$f":"IFERROR(VLOOKUP(C1143,Descriptions!$B$6:$D$92,3,FALSE),\"\")","v":""},null,null,null,null,null,null,null,null,null,null,null,null,null,null,"General Fund",{"$f":"IFERROR(VLOOKUP(C1143,Descriptions!B:F,5,FALSE),\"N\")","v":"N"},true,"NTRUE",0,null,{"$f":"IFERROR(VLOOKUP(D1143,'Bank and Fund Details'!$B$14:$L$35,11,FALSE),\"N\")","v":"Y"},"NY"]
[null,null,null,"General Fund",null,null,null,null,null,{"$f":"VLOOKUP(D1144,'Bank and Fund Details'!$B$15:$D$36,3,FALSE)","v":0},{"$f":"VLOOKUP(D1144,'Bank and Fund Details'!$B$15:$C$36,2,FALSE)","v":"Unrestricted"},{"$f":"IFERROR(VLOOKUP(C1144,Descriptions!$B$6:$D$92,3,FALSE),\"\")","v":""},null,null,null,null,null,null,null,null,null,null,null,null,null,null,"General Fund",{"$f":"IFERROR(VLOOKUP(C1144,Descriptions!B:F,5,FALSE),\"N\")","v":"N"},true,"NTRUE",0,null,{"$f":"IFERROR(VLOOKUP(D1144,'Bank and Fund Details'!$B$14:$L$35,11,FALSE),\"N\")","v":"Y"},"NY"]
[null,null,null,"General Fund",null,null,null,null,null,{"$f":"VLOOKUP(D1145,'Bank and Fund Details'!$B$15:$D$36,3,FALSE)","v":0},{"$f":"VLOOKUP(D1145,'Bank and Fund Details'!$B$15:$C$36,2,FALSE)","v":"Unrestricted"},{"$f":"IFERROR(VLOOKUP(C1145,Descriptions!$B$6:$D$92,3,FALSE),\"\")","v":""},null,null,null,null,null,null,null,null,null,null,null,null,null,null,"General Fund",{"$f":"IFERROR(VLOOKUP(C1145,Descriptions!B:F,5,FALSE),\"N\")","v":"N"},true,"NTRUE",0,null,{"$f":"IFERROR(VLOOKUP(D1145,'Bank and Fund Details'!$B$14:$L$35,11,FALSE),\"N\")","v":"Y"},"NY"]
[null,null,null,"General Fund",null,null,null,null,null,{"$f":"VLOOKUP(D1146,'Bank and Fund Details'!$B$15:$D$36,3,FALSE)","v":0},{"$f":"VLOOKUP(D1146,'Bank and Fund Details'!$B$15:$C$36,2,FALSE)","v":"Unrestricted"},{"$f":"IFERROR(VLOOKUP(C1146,Descriptions!$B$6:$D$92,3,FALSE),\"\")","v":""},null,null,null,null,null,null,null,null,null,null,null,null,null,null,"General Fund",{"$f":"IFERROR(VLOOKUP(C1146,Descriptions!B:F,5,FALSE),\"N\")","v":"N"},true,"NTRUE",0,null,{"$f":"IFERROR(VLOOKUP(D1146,'Bank and Fund Details'!$B$14:$L$35,11,FALSE),\"N\")","v":"Y"},"NY"]
[null,null,null,"General Fund",null,null,null,null,null,{"$f":"VLOOKUP(D1147,'Bank and Fund Details'!$B$15:$D$36,3,FALSE)","v":0},{"$f":"VLOOKUP(D1147,'Bank and Fund Details'!$B$15:$C$36,2,FALSE)","v":"Unrestricted"},{"$f":"IFERROR(VLOOKUP(C1147,Descriptions!$B$6:$D$92,3,FALSE),\"\")","v":""},null,null,null,null,null,null,null,null,null,null,null,null,null,null,"General Fund",{"$f":"IFERROR(VLOOKUP(C1147,Descriptions!B:F,5,FALSE),\"N\")","v":"N"},true,"NTRUE",0,null,{"$f":"IFERROR(VLOOKUP(D1147,'Bank and Fund Details'!$B$14:$L$35,11,FALSE),\"N\")","v":"Y"},"NY"]
[null,null,null,"General Fund",null,null,null,null,null,{"$f":"VLOOKUP(D1148,'Bank and Fund Details'!$B$15:$D$36,3,FALSE)","v":0},{"$f":"VLOOKUP(D1148,'Bank and Fund Details'!$B$15:$C$36,2,FALSE)","v":"Unrestricted"},{"$f":"IFERROR(VLOOKUP(C1148,Descriptions!$B$6:$D$92,3,FALSE),\"\")","v":""},null,null,null,null,null,null,null,null,null,null,null,null,null,null,"General Fund",{"$f":"IFERROR(VLOOKUP(C1148,Descriptions!B:F,5,FALSE),\"N\")","v":"N"},true,"NTRUE",0,null,{"$f":"IFERROR(VLOOKUP(D1148,'Bank and Fund Details'!$B$14:$L$35,11,FALSE),\"N\")","v":"Y"},"NY"]
[null,null,null,"General Fund",null,null,null,null,null,{"$f":"VLOOKUP(D1149,'Bank and Fund Details'!$B$15:$D$36,3,FALSE)","v":0},{"$f":"VLOOKUP(D1149,'Bank and Fund Details'!$B$15:$C$36,2,FALSE)","v":"Unrestricted"},{"$f":"IFERROR(VLOOKUP(C1149,Descriptions!$B$6:$D$92,3,FALSE),\"\")","v":""},null,null,null,null,null,null,null,null,null,null,null,null,null,null,"General Fund",{"$f":"IFERROR(VLOOKUP(C1149,Descriptions!B:F,5,FALSE),\"N\")","v":"N"},true,"NTRUE",0,null,{"$f":"IFERROR(VLOOKUP(D1149,'Bank and Fund Details'!$B$14:$L$35,11,FALSE),\"N\")","v":"Y"},"NY"]
[null,null,null,"General Fund",null,null,null,null,null,{"$f":"VLOOKUP(D1150,'Bank and Fund Details'!$B$15:$D$36,3,FALSE)","v":0},{"$f":"VLOOKUP(D1150,'Bank and Fund Details'!$B$15:$C$36,2,FALSE)","v":"Unrestricted"},{"$f":"IFERROR(VLOOKUP(C1150,Descriptions!$B$6:$D$92,3,FALSE),\"\")","v":""},null,null,null,null,null,null,null,null,null,null,null,null,null,null,"General Fund",{"$f":"IFERROR(VLOOKUP(C1150,Descriptions!B:F,5,FALSE),\"N\")","v":"N"},true,"NTRUE",0,null,{"$f":"IFERROR(VLOOKUP(D1150,'Bank and Fund Details'!$B$14:$L$35,11,FALSE),\"N\")","v":"Y"},"NY"]
[null,null,null,"General Fund",null,null,null,null,null,{"$f":"VLOOKUP(D1151,'Bank and Fund Details'!$B$15:$D$36,3,FALSE)","v":0},{"$f":"VLOOKUP(D1151,'Bank and Fund Details'!$B$15:$C$36,2,FALSE)","v":"Unrestricted"},{"$f":"IFERROR(VLOOKUP(C1151,Descriptions!$B$6:$D$92,3,FALSE),\"\")","v":""},null,null,null,null,null,null,null,null,null,null,null,null,null,null,"General Fund",{"$f":"IFERROR(VLOOKUP(C1151,Descriptions!B:F,5,FALSE),\"N\")","v":"N"},true,"NTRUE",0,null,{"$f":"IFERROR(VLOOKUP(D1151,'Bank and Fund Details'!$B$14:$L$35,11,FALSE),\"N\")","v":"Y"},"NY"]
[null,null,null,"General Fund",null,null,null,null,null,{"$f":"VLOOKUP(D1152,'Bank and Fund Details'!$B$15:$D$36,3,FALSE)","v":0},{"$f":"VLOOKUP(D1152,'Bank and Fund Details'!$B$15:$C$36,2,FALSE)","v":"Unrestricted"},{"$f":"IFERROR(VLOOKUP(C1152,Descriptions!$B$6:$D$92,3,FALSE),\"\")","v":""},null,null,null,null,null,null,null,null,null,null,null,null,null,null,"General Fund",{"$f":"IFERROR(VLOOKUP(C1152,Descriptions!B:F,5,FALSE),\"N\")","v":"N"},true,"NTRUE",0,null,{"$f":"IFERROR(VLOOKUP(D1152,'Bank and Fund Details'!$B$14:$L$35,11,FALSE),\"N\")","v":"Y"},"NY"]
[null,null,null,"General Fund",null,null,null,null,null,{"$f":"VLOOKUP(D1153,'Bank and Fund Details'!$B$15:$D$36,3,FALSE)","v":0},{"$f":"VLOOKUP(D1153,'Bank and Fund Details'!$B$15:$C$36,2,FALSE)","v":"Unrestricted"},{"$f":"IFERROR(VLOOKUP(C1153,Descriptions!$B$6:$D$92,3,FALSE),\"\")","v":""},null,null,null,null,null,null,null,null,null,null,null,null,null,null,"General Fund",{"$f":"IFERROR(VLOOKUP(C1153,Descriptions!B:F,5,FALSE),\"N\")","v":"N"},true,"NTRUE",0,null,{"$f":"IFERROR(VLOOKUP(D1153,'Bank and Fund Details'!$B$14:$L$35,11,FALSE),\"N\")","v":"Y"},"NY"]
[null,null,null,"General Fund",null,null,null,null,null,{"$f":"VLOOKUP(D1154,'Bank and Fund Details'!$B$15:$D$36,3,FALSE)","v":0},{"$f":"VLOOKUP(D1154,'Bank and Fund Details'!$B$15:$C$36,2,FALSE)","v":"Unrestricted"},{"$f":"IFERROR(VLOOKUP(C1154,Descriptions!$B$6:$D$92,3,FALSE),\"\")","v":""},null,null,null,null,null,null,null,null,null,null,null,null,null,null,"General Fund",{"$f":"IFERROR(VLOOKUP(C1154,Descriptions!B:F,5,FALSE),\"N\")","v":"N"},true,"NTRUE",0,null,{"$f":"IFERROR(VLOOKUP(D1154,'Bank and Fund Details'!$B$14:$L$35,11,FALSE),\"N\")","v":"Y"},"NY"]
[null,null,null,"General Fund",null,null,null,null,null,{"$f":"VLOOKUP(D1155,'Bank and Fund Details'!$B$15:$D$36,3,FALSE)","v":0},{"$f":"VLOOKUP(D1155,'Bank and Fund Details'!$B$15:$C$36,2,FALSE)","v":"Unrestricted"},{"$f":"IFERROR(VLOOKUP(C1155,Descriptions!$B$6:$D$92,3,FALSE),\"\")","v":""},null,null,null,null,null,null,null,null,null,null,null,null,null,null,"General Fund",{"$f":"IFERROR(VLOOKUP(C1155,Descriptions!B:F,5,FALSE),\"N\")","v":"N"},true,"NTRUE",0,null,{"$f":"IFERROR(VLOOKUP(D1155,'Bank and Fund Details'!$B$14:$L$35,11,FALSE),\"N\")","v":"Y"},"NY"]
[null,null,null,"General Fund",null,null,null,null,null,{"$f":"VLOOKUP(D1156,'Bank and Fund Details'!$B$15:$D$36,3,FALSE)","v":0},{"$f":"VLOOKUP(D1156,'Bank and Fund Details'!$B$15:$C$36,2,FALSE)","v":"Unrestricted"},{"$f":"IFERROR(VLOOKUP(C1156,Descriptions!$B$6:$D$92,3,FALSE),\"\")","v":""},null,null,null,null,null,null,null,null,null,null,null,null,null,null,"General Fund",{"$f":"IFERROR(VLOOKUP(C1156,Descriptions!B:F,5,FALSE),\"N\")","v":"N"},true,"NTRUE",0,null,{"$f":"IFERROR(VLOOKUP(D1156,'Bank and Fund Details'!$B$14:$L$35,11,FALSE),\"N\")","v":"Y"},"NY"]
[null,null,null,"General Fund",null,null,null,null,null,{"$f":"VLOOKUP(D1157,'Bank and Fund Details'!$B$15:$D$36,3,FALSE)","v":0},{"$f":"VLOOKUP(D1157,'Bank and Fund Details'!$B$15:$C$36,2,FALSE)","v":"Unrestricted"},{"$f":"IFERROR(VLOOKUP(C1157,Descriptions!$B$6:$D$92,3,FALSE),\"\")","v":""},null,null,null,null,null,null,null,null,null,null,null,null,null,null,{"$f":"CONCATENATE(C1157,D1157)","v":"General Fund"},{"$f":"IFERROR(VLOOKUP(C1157,Descriptions!B:F,5,FALSE),\"N\")","v":"N"},{"$f":"ISBLANK(C1157)","v":true},{"$f":"CONCATENATE(AB1157,AC1157)","v":"NTRUE"},{"$f":"IF(AD1157=\"NFALSE\",1,0)","v":0},null,{"$f":"IFERROR(VLOOKUP(D1157,'Bank and Fund Details'!$B$14:$L$35,11,FALSE),\"N\")","v":"Y"},"NY"]
[null,null,null,"General Fund",null,null,null,null,null,{"$f":"VLOOKUP(D1158,'Bank and Fund Details'!$B$15:$D$36,3,FALSE)","v":0},{"$f":"VLOOKUP(D1158,'Bank and Fund Details'!$B$15:$C$36,2,FALSE)","v":"Unrestricted"},{"$f":"IFERROR(VLOOKUP(C1158,Descriptions!$B$6:$D$92,3,FALSE),\"\")","v":""},null,null,null,null,null,null,null,null,null,null,null,null,null,null,"General Fund",{"$f":"IFERROR(VLOOKUP(C1158,Descriptions!B:F,5,FALSE),\"N\")","v":"N"},true,"NTRUE",0,null,{"$f":"IFERROR(VLOOKUP(D1158,'Bank and Fund Details'!$B$14:$L$35,11,FALSE),\"N\")","v":"Y"},{"$f":"CONCATENATE(AB1158,AG1158)","v":"NY"}]
[null,null,null,"General Fund",null,null,null,null,null,{"$f":"VLOOKUP(D1159,'Bank and Fund Details'!$B$15:$D$36,3,FALSE)","v":0},{"$f":"VLOOKUP(D1159,'Bank and Fund Details'!$B$15:$C$36,2,FALSE)","v":"Unrestricted"},{"$f":"IFERROR(VLOOKUP(C1159,Descriptions!$B$6:$D$92,3,FALSE),\"\")","v":""},null,null,null,null,null,null,null,null,null,null,null,null,null,null,"General Fund",{"$f":"IFERROR(VLOOKUP(C1159,Descriptions!B:F,5,FALSE),\"N\")","v":"N"},true,"NTRUE",0,null,{"$f":"IFERROR(VLOOKUP(D1159,'Bank and Fund Details'!$B$14:$L$35,11,FALSE),\"N\")","v":"Y"},"NY"]
[null,null,null,"General Fund",null,null,null,null,null,{"$f":"VLOOKUP(D1160,'Bank and Fund Details'!$B$15:$D$36,3,FALSE)","v":0},{"$f":"VLOOKUP(D1160,'Bank and Fund Details'!$B$15:$C$36,2,FALSE)","v":"Unrestricted"},{"$f":"IFERROR(VLOOKUP(C1160,Descriptions!$B$6:$D$92,3,FALSE),\"\")","v":""},null,null,null,null,null,null,null,null,null,null,null,null,null,null,"General Fund",{"$f":"IFERROR(VLOOKUP(C1160,Descriptions!B:F,5,FALSE),\"N\")","v":"N"},true,"NTRUE",0,null,{"$f":"IFERROR(VLOOKUP(D1160,'Bank and Fund Details'!$B$14:$L$35,11,FALSE),\"N\")","v":"Y"},"NY"]
[null,null,null,"General Fund",null,null,null,null,null,{"$f":"VLOOKUP(D1161,'Bank and Fund Details'!$B$15:$D$36,3,FALSE)","v":0},{"$f":"VLOOKUP(D1161,'Bank and Fund Details'!$B$15:$C$36,2,FALSE)","v":"Unrestricted"},{"$f":"IFERROR(VLOOKUP(C1161,Descriptions!$B$6:$D$92,3,FALSE),\"\")","v":""},null,null,null,null,null,null,null,null,null,null,null,null,null,null,"General Fund",{"$f":"IFERROR(VLOOKUP(C1161,Descriptions!B:F,5,FALSE),\"N\")","v":"N"},true,"NTRUE",0,null,{"$f":"IFERROR(VLOOKUP(D1161,'Bank and Fund Details'!$B$14:$L$35,11,FALSE),\"N\")","v":"Y"},"NY"]
[null,null,null,"General Fund",null,null,null,null,null,{"$f":"VLOOKUP(D1162,'Bank and Fund Details'!$B$15:$D$36,3,FALSE)","v":0},{"$f":"VLOOKUP(D1162,'Bank and Fund Details'!$B$15:$C$36,2,FALSE)","v":"Unrestricted"},{"$f":"IFERROR(VLOOKUP(C1162,Descriptions!$B$6:$D$92,3,FALSE),\"\")","v":""},null,null,null,null,null,null,null,null,null,null,null,null,null,null,"General Fund",{"$f":"IFERROR(VLOOKUP(C1162,Descriptions!B:F,5,FALSE),\"N\")","v":"N"},true,"NTRUE",0,null,{"$f":"IFERROR(VLOOKUP(D1162,'Bank and Fund Details'!$B$14:$L$35,11,FALSE),\"N\")","v":"Y"},"NY"]
[null,null,null,"General Fund",null,null,null,null,null,{"$f":"VLOOKUP(D1163,'Bank and Fund Details'!$B$15:$D$36,3,FALSE)","v":0},{"$f":"VLOOKUP(D1163,'Bank and Fund Details'!$B$15:$C$36,2,FALSE)","v":"Unrestricted"},{"$f":"IFERROR(VLOOKUP(C1163,Descriptions!$B$6:$D$92,3,FALSE),\"\")","v":""},null,null,null,null,null,null,null,null,null,null,null,null,null,null,"General Fund",{"$f":"IFERROR(VLOOKUP(C1163,Descriptions!B:F,5,FALSE),\"N\")","v":"N"},true,"NTRUE",0,null,{"$f":"IFERROR(VLOOKUP(D1163,'Bank and Fund Details'!$B$14:$L$35,11,FALSE),\"N\")","v":"Y"},"NY"]
[null,null,null,"General Fund",null,null,null,null,null,{"$f":"VLOOKUP(D1164,'Bank and Fund Details'!$B$15:$D$36,3,FALSE)","v":0},{"$f":"VLOOKUP(D1164,'Bank and Fund Details'!$B$15:$C$36,2,FALSE)","v":"Unrestricted"},{"$f":"IFERROR(VLOOKUP(C1164,Descriptions!$B$6:$D$92,3,FALSE),\"\")","v":""},null,null,null,null,null,null,null,null,null,null,null,null,null,null,"General Fund",{"$f":"IFERROR(VLOOKUP(C1164,Descriptions!B:F,5,FALSE),\"N\")","v":"N"},true,"NTRUE",0,null,{"$f":"IFERROR(VLOOKUP(D1164,'Bank and Fund Details'!$B$14:$L$35,11,FALSE),\"N\")","v":"Y"},"NY"]
[null,null,null,"General Fund",null,null,null,null,null,{"$f":"VLOOKUP(D1165,'Bank and Fund Details'!$B$15:$D$36,3,FALSE)","v":0},{"$f":"VLOOKUP(D1165,'Bank and Fund Details'!$B$15:$C$36,2,FALSE)","v":"Unrestricted"},{"$f":"IFERROR(VLOOKUP(C1165,Descriptions!$B$6:$D$92,3,FALSE),\"\")","v":""},null,null,null,null,null,null,null,null,null,null,null,null,null,null,"General Fund",{"$f":"IFERROR(VLOOKUP(C1165,Descriptions!B:F,5,FALSE),\"N\")","v":"N"},true,"NTRUE",0,null,{"$f":"IFERROR(VLOOKUP(D1165,'Bank and Fund Details'!$B$14:$L$35,11,FALSE),\"N\")","v":"Y"},"NY"]
[null,null,null,"General Fund",null,null,null,null,null,{"$f":"VLOOKUP(D1166,'Bank and Fund Details'!$B$15:$D$36,3,FALSE)","v":0},{"$f":"VLOOKUP(D1166,'Bank and Fund Details'!$B$15:$C$36,2,FALSE)","v":"Unrestricted"},{"$f":"IFERROR(VLOOKUP(C1166,Descriptions!$B$6:$D$92,3,FALSE),\"\")","v":""},null,null,null,null,null,null,null,null,null,null,null,null,null,null,"General Fund",{"$f":"IFERROR(VLOOKUP(C1166,Descriptions!B:F,5,FALSE),\"N\")","v":"N"},true,"NTRUE",0,null,{"$f":"IFERROR(VLOOKUP(D1166,'Bank and Fund Details'!$B$14:$L$35,11,FALSE),\"N\")","v":"Y"},"NY"]
[null,null,null,"General Fund",null,null,null,null,null,{"$f":"VLOOKUP(D1167,'Bank and Fund Details'!$B$15:$D$36,3,FALSE)","v":0},{"$f":"VLOOKUP(D1167,'Bank and Fund Details'!$B$15:$C$36,2,FALSE)","v":"Unrestricted"},{"$f":"IFERROR(VLOOKUP(C1167,Descriptions!$B$6:$D$92,3,FALSE),\"\")","v":""},null,null,null,null,null,null,null,null,null,null,null,null,null,null,"General Fund",{"$f":"IFERROR(VLOOKUP(C1167,Descriptions!B:F,5,FALSE),\"N\")","v":"N"},true,"NTRUE",0,null,{"$f":"IFERROR(VLOOKUP(D1167,'Bank and Fund Details'!$B$14:$L$35,11,FALSE),\"N\")","v":"Y"},"NY"]
[null,null,null,"General Fund",null,null,null,null,null,{"$f":"VLOOKUP(D1168,'Bank and Fund Details'!$B$15:$D$36,3,FALSE)","v":0},{"$f":"VLOOKUP(D1168,'Bank and Fund Details'!$B$15:$C$36,2,FALSE)","v":"Unrestricted"},{"$f":"IFERROR(VLOOKUP(C1168,Descriptions!$B$6:$D$92,3,FALSE),\"\")","v":""},null,null,null,null,null,null,null,null,null,null,null,null,null,null,"General Fund",{"$f":"IFERROR(VLOOKUP(C1168,Descriptions!B:F,5,FALSE),\"N\")","v":"N"},true,"NTRUE",0,null,{"$f":"IFERROR(VLOOKUP(D1168,'Bank and Fund Details'!$B$14:$L$35,11,FALSE),\"N\")","v":"Y"},"NY"]
[null,null,null,"General Fund",null,null,null,null,null,{"$f":"VLOOKUP(D1169,'Bank and Fund Details'!$B$15:$D$36,3,FALSE)","v":0},{"$f":"VLOOKUP(D1169,'Bank and Fund Details'!$B$15:$C$36,2,FALSE)","v":"Unrestricted"},{"$f":"IFERROR(VLOOKUP(C1169,Descriptions!$B$6:$D$92,3,FALSE),\"\")","v":""},null,null,null,null,null,null,null,null,null,null,null,null,null,null,"General Fund",{"$f":"IFERROR(VLOOKUP(C1169,Descriptions!B:F,5,FALSE),\"N\")","v":"N"},true,"NTRUE",0,null,{"$f":"IFERROR(VLOOKUP(D1169,'Bank and Fund Details'!$B$14:$L$35,11,FALSE),\"N\")","v":"Y"},"NY"]
[null,null,null,"General Fund",null,null,null,null,null,{"$f":"VLOOKUP(D1170,'Bank and Fund Details'!$B$15:$D$36,3,FALSE)","v":0},{"$f":"VLOOKUP(D1170,'Bank and Fund Details'!$B$15:$C$36,2,FALSE)","v":"Unrestricted"},{"$f":"IFERROR(VLOOKUP(C1170,Descriptions!$B$6:$D$92,3,FALSE),\"\")","v":""},null,null,null,null,null,null,null,null,null,null,null,null,null,null,"General Fund",{"$f":"IFERROR(VLOOKUP(C1170,Descriptions!B:F,5,FALSE),\"N\")","v":"N"},true,"NTRUE",0,null,{"$f":"IFERROR(VLOOKUP(D1170,'Bank and Fund Details'!$B$14:$L$35,11,FALSE),\"N\")","v":"Y"},"NY"]
[null,null,null,"General Fund",null,null,null,null,null,{"$f":"VLOOKUP(D1171,'Bank and Fund Details'!$B$15:$D$36,3,FALSE)","v":0},{"$f":"VLOOKUP(D1171,'Bank and Fund Details'!$B$15:$C$36,2,FALSE)","v":"Unrestricted"},{"$f":"IFERROR(VLOOKUP(C1171,Descriptions!$B$6:$D$92,3,FALSE),\"\")","v":""},null,null,null,null,null,null,null,null,null,null,null,null,null,null,"General Fund",{"$f":"IFERROR(VLOOKUP(C1171,Descriptions!B:F,5,FALSE),\"N\")","v":"N"},true,"NTRUE",0,null,{"$f":"IFERROR(VLOOKUP(D1171,'Bank and Fund Details'!$B$14:$L$35,11,FALSE),\"N\")","v":"Y"},"NY"]
[null,null,null,"General Fund",null,null,null,null,null,{"$f":"VLOOKUP(D1172,'Bank and Fund Details'!$B$15:$D$36,3,FALSE)","v":0},{"$f":"VLOOKUP(D1172,'Bank and Fund Details'!$B$15:$C$36,2,FALSE)","v":"Unrestricted"},{"$f":"IFERROR(VLOOKUP(C1172,Descriptions!$B$6:$D$92,3,FALSE),\"\")","v":""},null,null,null,null,null,null,null,null,null,null,null,null,null,null,"General Fund",{"$f":"IFERROR(VLOOKUP(C1172,Descriptions!B:F,5,FALSE),\"N\")","v":"N"},true,"NTRUE",0,null,{"$f":"IFERROR(VLOOKUP(D1172,'Bank and Fund Details'!$B$14:$L$35,11,FALSE),\"N\")","v":"Y"},"NY"]
[null,null,null,"General Fund",null,null,null,null,null,{"$f":"VLOOKUP(D1173,'Bank and Fund Details'!$B$15:$D$36,3,FALSE)","v":0},{"$f":"VLOOKUP(D1173,'Bank and Fund Details'!$B$15:$C$36,2,FALSE)","v":"Unrestricted"},{"$f":"IFERROR(VLOOKUP(C1173,Descriptions!$B$6:$D$92,3,FALSE),\"\")","v":""},null,null,null,null,null,null,null,null,null,null,null,null,null,null,"General Fund",{"$f":"IFERROR(VLOOKUP(C1173,Descriptions!B:F,5,FALSE),\"N\")","v":"N"},true,"NTRUE",0,null,{"$f":"IFERROR(VLOOKUP(D1173,'Bank and Fund Details'!$B$14:$L$35,11,FALSE),\"N\")","v":"Y"},"NY"]
[null,null,null,"General Fund",null,null,null,null,null,{"$f":"VLOOKUP(D1174,'Bank and Fund Details'!$B$15:$D$36,3,FALSE)","v":0},{"$f":"VLOOKUP(D1174,'Bank and Fund Details'!$B$15:$C$36,2,FALSE)","v":"Unrestricted"},{"$f":"IFERROR(VLOOKUP(C1174,Descriptions!$B$6:$D$92,3,FALSE),\"\")","v":""},null,null,null,null,null,null,null,null,null,null,null,null,null,null,"General Fund",{"$f":"IFERROR(VLOOKUP(C1174,Descriptions!B:F,5,FALSE),\"N\")","v":"N"},true,"NTRUE",0,null,{"$f":"IFERROR(VLOOKUP(D1174,'Bank and Fund Details'!$B$14:$L$35,11,FALSE),\"N\")","v":"Y"},"NY"]
[null,null,null,"General Fund",null,null,null,null,null,{"$f":"VLOOKUP(D1175,'Bank and Fund Details'!$B$15:$D$36,3,FALSE)","v":0},{"$f":"VLOOKUP(D1175,'Bank and Fund Details'!$B$15:$C$36,2,FALSE)","v":"Unrestricted"},{"$f":"IFERROR(VLOOKUP(C1175,Descriptions!$B$6:$D$92,3,FALSE),\"\")","v":""},null,null,null,null,null,null,null,null,null,null,null,null,null,null,"General Fund",{"$f":"IFERROR(VLOOKUP(C1175,Descriptions!B:F,5,FALSE),\"N\")","v":"N"},true,"NTRUE",0,null,{"$f":"IFERROR(VLOOKUP(D1175,'Bank and Fund Details'!$B$14:$L$35,11,FALSE),\"N\")","v":"Y"},"NY"]
[null,null,null,"General Fund",null,null,null,null,null,{"$f":"VLOOKUP(D1176,'Bank and Fund Details'!$B$15:$D$36,3,FALSE)","v":0},{"$f":"VLOOKUP(D1176,'Bank and Fund Details'!$B$15:$C$36,2,FALSE)","v":"Unrestricted"},{"$f":"IFERROR(VLOOKUP(C1176,Descriptions!$B$6:$D$92,3,FALSE),\"\")","v":""},null,null,null,null,null,null,null,null,null,null,null,null,null,null,"General Fund",{"$f":"IFERROR(VLOOKUP(C1176,Descriptions!B:F,5,FALSE),\"N\")","v":"N"},true,"NTRUE",0,null,{"$f":"IFERROR(VLOOKUP(D1176,'Bank and Fund Details'!$B$14:$L$35,11,FALSE),\"N\")","v":"Y"},"NY"]
[null,null,null,"General Fund",null,null,null,null,null,{"$f":"VLOOKUP(D1177,'Bank and Fund Details'!$B$15:$D$36,3,FALSE)","v":0},{"$f":"VLOOKUP(D1177,'Bank and Fund Details'!$B$15:$C$36,2,FALSE)","v":"Unrestricted"},{"$f":"IFERROR(VLOOKUP(C1177,Descriptions!$B$6:$D$92,3,FALSE),\"\")","v":""},null,null,null,null,null,null,null,null,null,null,null,null,null,null,"General Fund",{"$f":"IFERROR(VLOOKUP(C1177,Descriptions!B:F,5,FALSE),\"N\")","v":"N"},true,"NTRUE",0,null,{"$f":"IFERROR(VLOOKUP(D1177,'Bank and Fund Details'!$B$14:$L$35,11,FALSE),\"N\")","v":"Y"},"NY"]
[null,null,null,"General Fund",null,null,null,null,null,{"$f":"VLOOKUP(D1178,'Bank and Fund Details'!$B$15:$D$36,3,FALSE)","v":0},{"$f":"VLOOKUP(D1178,'Bank and Fund Details'!$B$15:$C$36,2,FALSE)","v":"Unrestricted"},{"$f":"IFERROR(VLOOKUP(C1178,Descriptions!$B$6:$D$92,3,FALSE),\"\")","v":""},null,null,null,null,null,null,null,null,null,null,null,null,null,null,"General Fund",{"$f":"IFERROR(VLOOKUP(C1178,Descriptions!B:F,5,FALSE),\"N\")","v":"N"},true,"NTRUE",0,null,{"$f":"IFERROR(VLOOKUP(D1178,'Bank and Fund Details'!$B$14:$L$35,11,FALSE),\"N\")","v":"Y"},"NY"]
[null,null,null,"General Fund",null,null,null,null,null,{"$f":"VLOOKUP(D1179,'Bank and Fund Details'!$B$15:$D$36,3,FALSE)","v":0},{"$f":"VLOOKUP(D1179,'Bank and Fund Details'!$B$15:$C$36,2,FALSE)","v":"Unrestricted"},{"$f":"IFERROR(VLOOKUP(C1179,Descriptions!$B$6:$D$92,3,FALSE),\"\")","v":""},null,null,null,null,null,null,null,null,null,null,null,null,null,null,"General Fund",{"$f":"IFERROR(VLOOKUP(C1179,Descriptions!B:F,5,FALSE),\"N\")","v":"N"},true,"NTRUE",0,null,{"$f":"IFERROR(VLOOKUP(D1179,'Bank and Fund Details'!$B$14:$L$35,11,FALSE),\"N\")","v":"Y"},"NY"]
[null,null,null,"General Fund",null,null,null,null,null,{"$f":"VLOOKUP(D1180,'Bank and Fund Details'!$B$15:$D$36,3,FALSE)","v":0},{"$f":"VLOOKUP(D1180,'Bank and Fund Details'!$B$15:$C$36,2,FALSE)","v":"Unrestricted"},{"$f":"IFERROR(VLOOKUP(C1180,Descriptions!$B$6:$D$92,3,FALSE),\"\")","v":""},null,null,null,null,null,null,null,null,null,null,null,null,null,null,"General Fund",{"$f":"IFERROR(VLOOKUP(C1180,Descriptions!B:F,5,FALSE),\"N\")","v":"N"},true,"NTRUE",0,null,{"$f":"IFERROR(VLOOKUP(D1180,'Bank and Fund Details'!$B$14:$L$35,11,FALSE),\"N\")","v":"Y"},"NY"]
[null,null,null,"General Fund",null,null,null,null,null,{"$f":"VLOOKUP(D1181,'Bank and Fund Details'!$B$15:$D$36,3,FALSE)","v":0},{"$f":"VLOOKUP(D1181,'Bank and Fund Details'!$B$15:$C$36,2,FALSE)","v":"Unrestricted"},{"$f":"IFERROR(VLOOKUP(C1181,Descriptions!$B$6:$D$92,3,FALSE),\"\")","v":""},null,null,null,null,null,null,null,null,null,null,null,null,null,null,"General Fund",{"$f":"IFERROR(VLOOKUP(C1181,Descriptions!B:F,5,FALSE),\"N\")","v":"N"},true,"NTRUE",0,null,{"$f":"IFERROR(VLOOKUP(D1181,'Bank and Fund Details'!$B$14:$L$35,11,FALSE),\"N\")","v":"Y"},"NY"]
[null,null,null,"General Fund",null,null,null,null,null,{"$f":"VLOOKUP(D1182,'Bank and Fund Details'!$B$15:$D$36,3,FALSE)","v":0},{"$f":"VLOOKUP(D1182,'Bank and Fund Details'!$B$15:$C$36,2,FALSE)","v":"Unrestricted"},{"$f":"IFERROR(VLOOKUP(C1182,Descriptions!$B$6:$D$92,3,FALSE),\"\")","v":""},null,null,null,null,null,null,null,null,null,null,null,null,null,null,"General Fund",{"$f":"IFERROR(VLOOKUP(C1182,Descriptions!B:F,5,FALSE),\"N\")","v":"N"},true,"NTRUE",0,null,{"$f":"IFERROR(VLOOKUP(D1182,'Bank and Fund Details'!$B$14:$L$35,11,FALSE),\"N\")","v":"Y"},"NY"]
[null,null,null,"General Fund",null,null,null,null,null,{"$f":"VLOOKUP(D1183,'Bank and Fund Details'!$B$15:$D$36,3,FALSE)","v":0},{"$f":"VLOOKUP(D1183,'Bank and Fund Details'!$B$15:$C$36,2,FALSE)","v":"Unrestricted"},{"$f":"IFERROR(VLOOKUP(C1183,Descriptions!$B$6:$D$92,3,FALSE),\"\")","v":""},null,null,null,null,null,null,null,null,null,null,null,null,null,null,"General Fund",{"$f":"IFERROR(VLOOKUP(C1183,Descriptions!B:F,5,FALSE),\"N\")","v":"N"},true,"NTRUE",0,null,{"$f":"IFERROR(VLOOKUP(D1183,'Bank and Fund Details'!$B$14:$L$35,11,FALSE),\"N\")","v":"Y"},"NY"]
[null,null,null,"General Fund",null,null,null,null,null,{"$f":"VLOOKUP(D1184,'Bank and Fund Details'!$B$15:$D$36,3,FALSE)","v":0},{"$f":"VLOOKUP(D1184,'Bank and Fund Details'!$B$15:$C$36,2,FALSE)","v":"Unrestricted"},{"$f":"IFERROR(VLOOKUP(C1184,Descriptions!$B$6:$D$92,3,FALSE),\"\")","v":""},null,null,null,null,null,null,null,null,null,null,null,null,null,null,"General Fund",{"$f":"IFERROR(VLOOKUP(C1184,Descriptions!B:F,5,FALSE),\"N\")","v":"N"},true,"NTRUE",0,null,{"$f":"IFERROR(VLOOKUP(D1184,'Bank and Fund Details'!$B$14:$L$35,11,FALSE),\"N\")","v":"Y"},"NY"]
[null,null,null,"General Fund",null,null,null,null,null,{"$f":"VLOOKUP(D1185,'Bank and Fund Details'!$B$15:$D$36,3,FALSE)","v":0},{"$f":"VLOOKUP(D1185,'Bank and Fund Details'!$B$15:$C$36,2,FALSE)","v":"Unrestricted"},{"$f":"IFERROR(VLOOKUP(C1185,Descriptions!$B$6:$D$92,3,FALSE),\"\")","v":""},null,null,null,null,null,null,null,null,null,null,null,null,null,null,"General Fund",{"$f":"IFERROR(VLOOKUP(C1185,Descriptions!B:F,5,FALSE),\"N\")","v":"N"},true,"NTRUE",0,null,{"$f":"IFERROR(VLOOKUP(D1185,'Bank and Fund Details'!$B$14:$L$35,11,FALSE),\"N\")","v":"Y"},"NY"]
[null,null,null,"General Fund",null,null,null,null,null,{"$f":"VLOOKUP(D1186,'Bank and Fund Details'!$B$15:$D$36,3,FALSE)","v":0},{"$f":"VLOOKUP(D1186,'Bank and Fund Details'!$B$15:$C$36,2,FALSE)","v":"Unrestricted"},{"$f":"IFERROR(VLOOKUP(C1186,Descriptions!$B$6:$D$92,3,FALSE),\"\")","v":""},null,null,null,null,null,null,null,null,null,null,null,null,null,null,"General Fund",{"$f":"IFERROR(VLOOKUP(C1186,Descriptions!B:F,5,FALSE),\"N\")","v":"N"},true,"NTRUE",0,null,{"$f":"IFERROR(VLOOKUP(D1186,'Bank and Fund Details'!$B$14:$L$35,11,FALSE),\"N\")","v":"Y"},"NY"]
[null,null,null,"General Fund",null,null,null,null,null,{"$f":"VLOOKUP(D1187,'Bank and Fund Details'!$B$15:$D$36,3,FALSE)","v":0},{"$f":"VLOOKUP(D1187,'Bank and Fund Details'!$B$15:$C$36,2,FALSE)","v":"Unrestricted"},{"$f":"IFERROR(VLOOKUP(C1187,Descriptions!$B$6:$D$92,3,FALSE),\"\")","v":""},null,null,null,null,null,null,null,null,null,null,null,null,null,null,"General Fund",{"$f":"IFERROR(VLOOKUP(C1187,Descriptions!B:F,5,FALSE),\"N\")","v":"N"},true,"NTRUE",0,null,{"$f":"IFERROR(VLOOKUP(D1187,'Bank and Fund Details'!$B$14:$L$35,11,FALSE),\"N\")","v":"Y"},"NY"]
[null,null,null,"General Fund",null,null,null,null,null,{"$f":"VLOOKUP(D1188,'Bank and Fund Details'!$B$15:$D$36,3,FALSE)","v":0},{"$f":"VLOOKUP(D1188,'Bank and Fund Details'!$B$15:$C$36,2,FALSE)","v":"Unrestricted"},{"$f":"IFERROR(VLOOKUP(C1188,Descriptions!$B$6:$D$92,3,FALSE),\"\")","v":""},null,null,null,null,null,null,null,null,null,null,null,null,null,null,"General Fund",{"$f":"IFERROR(VLOOKUP(C1188,Descriptions!B:F,5,FALSE),\"N\")","v":"N"},true,"NTRUE",0,null,{"$f":"IFERROR(VLOOKUP(D1188,'Bank and Fund Details'!$B$14:$L$35,11,FALSE),\"N\")","v":"Y"},"NY"]
[null,null,null,"General Fund",null,null,null,null,null,{"$f":"VLOOKUP(D1189,'Bank and Fund Details'!$B$15:$D$36,3,FALSE)","v":0},{"$f":"VLOOKUP(D1189,'Bank and Fund Details'!$B$15:$C$36,2,FALSE)","v":"Unrestricted"},{"$f":"IFERROR(VLOOKUP(C1189,Descriptions!$B$6:$D$92,3,FALSE),\"\")","v":""},null,null,null,null,null,null,null,null,null,null,null,null,null,null,"General Fund",{"$f":"IFERROR(VLOOKUP(C1189,Descriptions!B:F,5,FALSE),\"N\")","v":"N"},true,"NTRUE",0,null,{"$f":"IFERROR(VLOOKUP(D1189,'Bank and Fund Details'!$B$14:$L$35,11,FALSE),\"N\")","v":"Y"},"NY"]
[null,null,null,"General Fund",null,null,null,null,null,{"$f":"VLOOKUP(D1190,'Bank and Fund Details'!$B$15:$D$36,3,FALSE)","v":0},{"$f":"VLOOKUP(D1190,'Bank and Fund Details'!$B$15:$C$36,2,FALSE)","v":"Unrestricted"},{"$f":"IFERROR(VLOOKUP(C1190,Descriptions!$B$6:$D$92,3,FALSE),\"\")","v":""},null,null,null,null,null,null,null,null,null,null,null,null,null,null,"General Fund",{"$f":"IFERROR(VLOOKUP(C1190,Descriptions!B:F,5,FALSE),\"N\")","v":"N"},true,"NTRUE",0,null,{"$f":"IFERROR(VLOOKUP(D1190,'Bank and Fund Details'!$B$14:$L$35,11,FALSE),\"N\")","v":"Y"},"NY"]
[null,null,null,"General Fund",null,null,null,null,null,{"$f":"VLOOKUP(D1191,'Bank and Fund Details'!$B$15:$D$36,3,FALSE)","v":0},{"$f":"VLOOKUP(D1191,'Bank and Fund Details'!$B$15:$C$36,2,FALSE)","v":"Unrestricted"},{"$f":"IFERROR(VLOOKUP(C1191,Descriptions!$B$6:$D$92,3,FALSE),\"\")","v":""},null,null,null,null,null,null,null,null,null,null,null,null,null,null,"General Fund",{"$f":"IFERROR(VLOOKUP(C1191,Descriptions!B:F,5,FALSE),\"N\")","v":"N"},true,"NTRUE",0,null,{"$f":"IFERROR(VLOOKUP(D1191,'Bank and Fund Details'!$B$14:$L$35,11,FALSE),\"N\")","v":"Y"},"NY"]
[null,null,null,"General Fund",null,null,null,null,null,{"$f":"VLOOKUP(D1192,'Bank and Fund Details'!$B$15:$D$36,3,FALSE)","v":0},{"$f":"VLOOKUP(D1192,'Bank and Fund Details'!$B$15:$C$36,2,FALSE)","v":"Unrestricted"},{"$f":"IFERROR(VLOOKUP(C1192,Descriptions!$B$6:$D$92,3,FALSE),\"\")","v":""},null,null,null,null,null,null,null,null,null,null,null,null,null,null,"General Fund",{"$f":"IFERROR(VLOOKUP(C1192,Descriptions!B:F,5,FALSE),\"N\")","v":"N"},true,"NTRUE",0,null,{"$f":"IFERROR(VLOOKUP(D1192,'Bank and Fund Details'!$B$14:$L$35,11,FALSE),\"N\")","v":"Y"},"NY"]
[null,null,null,"General Fund",null,null,null,null,null,{"$f":"VLOOKUP(D1193,'Bank and Fund Details'!$B$15:$D$36,3,FALSE)","v":0},{"$f":"VLOOKUP(D1193,'Bank and Fund Details'!$B$15:$C$36,2,FALSE)","v":"Unrestricted"},{"$f":"IFERROR(VLOOKUP(C1193,Descriptions!$B$6:$D$92,3,FALSE),\"\")","v":""},null,null,null,null,null,null,null,null,null,null,null,null,null,null,"General Fund",{"$f":"IFERROR(VLOOKUP(C1193,Descriptions!B:F,5,FALSE),\"N\")","v":"N"},true,"NTRUE",0,null,{"$f":"IFERROR(VLOOKUP(D1193,'Bank and Fund Details'!$B$14:$L$35,11,FALSE),\"N\")","v":"Y"},"NY"]
[null,null,null,"General Fund",null,null,null,null,null,{"$f":"VLOOKUP(D1194,'Bank and Fund Details'!$B$15:$D$36,3,FALSE)","v":0},{"$f":"VLOOKUP(D1194,'Bank and Fund Details'!$B$15:$C$36,2,FALSE)","v":"Unrestricted"},{"$f":"IFERROR(VLOOKUP(C1194,Descriptions!$B$6:$D$92,3,FALSE),\"\")","v":""},null,null,null,null,null,null,null,null,null,null,null,null,null,null,"General Fund",{"$f":"IFERROR(VLOOKUP(C1194,Descriptions!B:F,5,FALSE),\"N\")","v":"N"},true,"NTRUE",0,null,{"$f":"IFERROR(VLOOKUP(D1194,'Bank and Fund Details'!$B$14:$L$35,11,FALSE),\"N\")","v":"Y"},"NY"]
[null,null,null,"General Fund",null,null,null,null,null,{"$f":"VLOOKUP(D1195,'Bank and Fund Details'!$B$15:$D$36,3,FALSE)","v":0},{"$f":"VLOOKUP(D1195,'Bank and Fund Details'!$B$15:$C$36,2,FALSE)","v":"Unrestricted"},{"$f":"IFERROR(VLOOKUP(C1195,Descriptions!$B$6:$D$92,3,FALSE),\"\")","v":""},null,null,null,null,null,null,null,null,null,null,null,null,null,null,"General Fund",{"$f":"IFERROR(VLOOKUP(C1195,Descriptions!B:F,5,FALSE),\"N\")","v":"N"},true,"NTRUE",0,null,{"$f":"IFERROR(VLOOKUP(D1195,'Bank and Fund Details'!$B$14:$L$35,11,FALSE),\"N\")","v":"Y"},"NY"]
[null,null,null,"General Fund",null,null,null,null,null,{"$f":"VLOOKUP(D1196,'Bank and Fund Details'!$B$15:$D$36,3,FALSE)","v":0},{"$f":"VLOOKUP(D1196,'Bank and Fund Details'!$B$15:$C$36,2,FALSE)","v":"Unrestricted"},{"$f":"IFERROR(VLOOKUP(C1196,Descriptions!$B$6:$D$92,3,FALSE),\"\")","v":""},null,null,null,null,null,null,null,null,null,null,null,null,null,null,"General Fund",{"$f":"IFERROR(VLOOKUP(C1196,Descriptions!B:F,5,FALSE),\"N\")","v":"N"},true,"NTRUE",0,null,{"$f":"IFERROR(VLOOKUP(D1196,'Bank and Fund Details'!$B$14:$L$35,11,FALSE),\"N\")","v":"Y"},"NY"]
[null,null,null,"General Fund",null,null,null,null,null,{"$f":"VLOOKUP(D1197,'Bank and Fund Details'!$B$15:$D$36,3,FALSE)","v":0},{"$f":"VLOOKUP(D1197,'Bank and Fund Details'!$B$15:$C$36,2,FALSE)","v":"Unrestricted"},{"$f":"IFERROR(VLOOKUP(C1197,Descriptions!$B$6:$D$92,3,FALSE),\"\")","v":""},null,null,null,null,null,null,null,null,null,null,null,null,null,null,"General Fund",{"$f":"IFERROR(VLOOKUP(C1197,Descriptions!B:F,5,FALSE),\"N\")","v":"N"},true,"NTRUE",0,null,{"$f":"IFERROR(VLOOKUP(D1197,'Bank and Fund Details'!$B$14:$L$35,11,FALSE),\"N\")","v":"Y"},"NY"]
[null,null,null,"General Fund",null,null,null,null,null,{"$f":"VLOOKUP(D1198,'Bank and Fund Details'!$B$15:$D$36,3,FALSE)","v":0},{"$f":"VLOOKUP(D1198,'Bank and Fund Details'!$B$15:$C$36,2,FALSE)","v":"Unrestricted"},{"$f":"IFERROR(VLOOKUP(C1198,Descriptions!$B$6:$D$92,3,FALSE),\"\")","v":""},null,null,null,null,null,null,null,null,null,null,null,null,null,null,"General Fund",{"$f":"IFERROR(VLOOKUP(C1198,Descriptions!B:F,5,FALSE),\"N\")","v":"N"},true,"NTRUE",0,null,{"$f":"IFERROR(VLOOKUP(D1198,'Bank and Fund Details'!$B$14:$L$35,11,FALSE),\"N\")","v":"Y"},"NY"]
[null,null,null,"General Fund",null,null,null,null,null,{"$f":"VLOOKUP(D1199,'Bank and Fund Details'!$B$15:$D$36,3,FALSE)","v":0},{"$f":"VLOOKUP(D1199,'Bank and Fund Details'!$B$15:$C$36,2,FALSE)","v":"Unrestricted"},{"$f":"IFERROR(VLOOKUP(C1199,Descriptions!$B$6:$D$92,3,FALSE),\"\")","v":""},null,null,null,null,null,null,null,null,null,null,null,null,null,null,"General Fund",{"$f":"IFERROR(VLOOKUP(C1199,Descriptions!B:F,5,FALSE),\"N\")","v":"N"},true,"NTRUE",0,null,{"$f":"IFERROR(VLOOKUP(D1199,'Bank and Fund Details'!$B$14:$L$35,11,FALSE),\"N\")","v":"Y"},"NY"]
[null,null,null,"General Fund",null,null,null,null,null,{"$f":"VLOOKUP(D1200,'Bank and Fund Details'!$B$15:$D$36,3,FALSE)","v":0},{"$f":"VLOOKUP(D1200,'Bank and Fund Details'!$B$15:$C$36,2,FALSE)","v":"Unrestricted"},{"$f":"IFERROR(VLOOKUP(C1200,Descriptions!$B$6:$D$92,3,FALSE),\"\")","v":""},null,null,null,null,null,null,null,null,null,null,null,null,null,null,"General Fund",{"$f":"IFERROR(VLOOKUP(C1200,Descriptions!B:F,5,FALSE),\"N\")","v":"N"},true,"NTRUE",0,null,{"$f":"IFERROR(VLOOKUP(D1200,'Bank and Fund Details'!$B$14:$L$35,11,FALSE),\"N\")","v":"Y"},"NY"]
[null,null,null,"General Fund",null,null,null,null,null,{"$f":"VLOOKUP(D1201,'Bank and Fund Details'!$B$15:$D$36,3,FALSE)","v":0},{"$f":"VLOOKUP(D1201,'Bank and Fund Details'!$B$15:$C$36,2,FALSE)","v":"Unrestricted"},{"$f":"IFERROR(VLOOKUP(C1201,Descriptions!$B$6:$D$92,3,FALSE),\"\")","v":""},null,null,null,null,null,null,null,null,null,null,null,null,null,null,"General Fund",{"$f":"IFERROR(VLOOKUP(C1201,Descriptions!B:F,5,FALSE),\"N\")","v":"N"},true,"NTRUE",0,null,{"$f":"IFERROR(VLOOKUP(D1201,'Bank and Fund Details'!$B$14:$L$35,11,FALSE),\"N\")","v":"Y"},"NY"]
[null,null,null,"General Fund",null,null,null,null,null,{"$f":"VLOOKUP(D1202,'Bank and Fund Details'!$B$15:$D$36,3,FALSE)","v":0},{"$f":"VLOOKUP(D1202,'Bank and Fund Details'!$B$15:$C$36,2,FALSE)","v":"Unrestricted"},{"$f":"IFERROR(VLOOKUP(C1202,Descriptions!$B$6:$D$92,3,FALSE),\"\")","v":""},null,null,null,null,null,null,null,null,null,null,null,null,null,null,"General Fund",{"$f":"IFERROR(VLOOKUP(C1202,Descriptions!B:F,5,FALSE),\"N\")","v":"N"},true,"NTRUE",0,null,{"$f":"IFERROR(VLOOKUP(D1202,'Bank and Fund Details'!$B$14:$L$35,11,FALSE),\"N\")","v":"Y"},"NY"]
[null,null,null,"General Fund",null,null,null,null,null,{"$f":"VLOOKUP(D1203,'Bank and Fund Details'!$B$15:$D$36,3,FALSE)","v":0},{"$f":"VLOOKUP(D1203,'Bank and Fund Details'!$B$15:$C$36,2,FALSE)","v":"Unrestricted"},{"$f":"IFERROR(VLOOKUP(C1203,Descriptions!$B$6:$D$92,3,FALSE),\"\")","v":""},null,null,null,null,null,null,null,null,null,null,null,null,null,null,"General Fund",{"$f":"IFERROR(VLOOKUP(C1203,Descriptions!B:F,5,FALSE),\"N\")","v":"N"},true,"NTRUE",0,null,{"$f":"IFERROR(VLOOKUP(D1203,'Bank and Fund Details'!$B$14:$L$35,11,FALSE),\"N\")","v":"Y"},"NY"]
[null,null,null,"General Fund",null,null,null,null,null,{"$f":"VLOOKUP(D1204,'Bank and Fund Details'!$B$15:$D$36,3,FALSE)","v":0},{"$f":"VLOOKUP(D1204,'Bank and Fund Details'!$B$15:$C$36,2,FALSE)","v":"Unrestricted"},{"$f":"IFERROR(VLOOKUP(C1204,Descriptions!$B$6:$D$92,3,FALSE),\"\")","v":""},null,null,null,null,null,null,null,null,null,null,null,null,null,null,"General Fund",{"$f":"IFERROR(VLOOKUP(C1204,Descriptions!B:F,5,FALSE),\"N\")","v":"N"},true,"NTRUE",0,null,{"$f":"IFERROR(VLOOKUP(D1204,'Bank and Fund Details'!$B$14:$L$35,11,FALSE),\"N\")","v":"Y"},"NY"]
[null,null,null,"General Fund",null,null,null,null,null,{"$f":"VLOOKUP(D1205,'Bank and Fund Details'!$B$15:$D$36,3,FALSE)","v":0},{"$f":"VLOOKUP(D1205,'Bank and Fund Details'!$B$15:$C$36,2,FALSE)","v":"Unrestricted"},{"$f":"IFERROR(VLOOKUP(C1205,Descriptions!$B$6:$D$92,3,FALSE),\"\")","v":""},null,null,null,null,null,null,null,null,null,null,null,null,null,null,"General Fund",{"$f":"IFERROR(VLOOKUP(C1205,Descriptions!B:F,5,FALSE),\"N\")","v":"N"},true,"NTRUE",0,null,{"$f":"IFERROR(VLOOKUP(D1205,'Bank and Fund Details'!$B$14:$L$35,11,FALSE),\"N\")","v":"Y"},"NY"]
[null,null,null,"General Fund",null,null,null,null,null,{"$f":"VLOOKUP(D1206,'Bank and Fund Details'!$B$15:$D$36,3,FALSE)","v":0},{"$f":"VLOOKUP(D1206,'Bank and Fund Details'!$B$15:$C$36,2,FALSE)","v":"Unrestricted"},{"$f":"IFERROR(VLOOKUP(C1206,Descriptions!$B$6:$D$92,3,FALSE),\"\")","v":""},null,null,null,null,null,null,null,null,null,null,null,null,null,null,"General Fund",{"$f":"IFERROR(VLOOKUP(C1206,Descriptions!B:F,5,FALSE),\"N\")","v":"N"},true,"NTRUE",0,null,{"$f":"IFERROR(VLOOKUP(D1206,'Bank and Fund Details'!$B$14:$L$35,11,FALSE),\"N\")","v":"Y"},"NY"]
[null,null,null,"General Fund",null,null,null,null,null,{"$f":"VLOOKUP(D1207,'Bank and Fund Details'!$B$15:$D$36,3,FALSE)","v":0},{"$f":"VLOOKUP(D1207,'Bank and Fund Details'!$B$15:$C$36,2,FALSE)","v":"Unrestricted"},{"$f":"IFERROR(VLOOKUP(C1207,Descriptions!$B$6:$D$92,3,FALSE),\"\")","v":""},null,null,null,null,null,null,null,null,null,null,null,null,null,null,"General Fund",{"$f":"IFERROR(VLOOKUP(C1207,Descriptions!B:F,5,FALSE),\"N\")","v":"N"},true,"NTRUE",0,null,{"$f":"IFERROR(VLOOKUP(D1207,'Bank and Fund Details'!$B$14:$L$35,11,FALSE),\"N\")","v":"Y"},"NY"]
[null,null,null,"General Fund",null,null,null,null,null,{"$f":"VLOOKUP(D1208,'Bank and Fund Details'!$B$15:$D$36,3,FALSE)","v":0},{"$f":"VLOOKUP(D1208,'Bank and Fund Details'!$B$15:$C$36,2,FALSE)","v":"Unrestricted"},{"$f":"IFERROR(VLOOKUP(C1208,Descriptions!$B$6:$D$92,3,FALSE),\"\")","v":""},null,null,null,null,null,null,null,null,null,null,null,null,null,null,"General Fund",{"$f":"IFERROR(VLOOKUP(C1208,Descriptions!B:F,5,FALSE),\"N\")","v":"N"},true,"NTRUE",0,null,{"$f":"IFERROR(VLOOKUP(D1208,'Bank and Fund Details'!$B$14:$L$35,11,FALSE),\"N\")","v":"Y"},"NY"]
[null,null,null,"General Fund",null,null,null,null,null,{"$f":"VLOOKUP(D1209,'Bank and Fund Details'!$B$15:$D$36,3,FALSE)","v":0},{"$f":"VLOOKUP(D1209,'Bank and Fund Details'!$B$15:$C$36,2,FALSE)","v":"Unrestricted"},{"$f":"IFERROR(VLOOKUP(C1209,Descriptions!$B$6:$D$92,3,FALSE),\"\")","v":""},null,null,null,null,null,null,null,null,null,null,null,null,null,null,"General Fund",{"$f":"IFERROR(VLOOKUP(C1209,Descriptions!B:F,5,FALSE),\"N\")","v":"N"},true,"NTRUE",0,null,{"$f":"IFERROR(VLOOKUP(D1209,'Bank and Fund Details'!$B$14:$L$35,11,FALSE),\"N\")","v":"Y"},"NY"]
[null,null,null,"General Fund",null,null,null,null,null,{"$f":"VLOOKUP(D1210,'Bank and Fund Details'!$B$15:$D$36,3,FALSE)","v":0},{"$f":"VLOOKUP(D1210,'Bank and Fund Details'!$B$15:$C$36,2,FALSE)","v":"Unrestricted"},{"$f":"IFERROR(VLOOKUP(C1210,Descriptions!$B$6:$D$92,3,FALSE),\"\")","v":""},null,null,null,null,null,null,null,null,null,null,null,null,null,null,"General Fund",{"$f":"IFERROR(VLOOKUP(C1210,Descriptions!B:F,5,FALSE),\"N\")","v":"N"},true,"NTRUE",0,null,{"$f":"IFERROR(VLOOKUP(D1210,'Bank and Fund Details'!$B$14:$L$35,11,FALSE),\"N\")","v":"Y"},"NY"]
[null,null,null,"General Fund",null,null,null,null,null,{"$f":"VLOOKUP(D1211,'Bank and Fund Details'!$B$15:$D$36,3,FALSE)","v":0},{"$f":"VLOOKUP(D1211,'Bank and Fund Details'!$B$15:$C$36,2,FALSE)","v":"Unrestricted"},{"$f":"IFERROR(VLOOKUP(C1211,Descriptions!$B$6:$D$92,3,FALSE),\"\")","v":""},null,null,null,null,null,null,null,null,null,null,null,null,null,null,"General Fund",{"$f":"IFERROR(VLOOKUP(C1211,Descriptions!B:F,5,FALSE),\"N\")","v":"N"},true,"NTRUE",0,null,{"$f":"IFERROR(VLOOKUP(D1211,'Bank and Fund Details'!$B$14:$L$35,11,FALSE),\"N\")","v":"Y"},"NY"]
[null,null,null,"General Fund",null,null,null,null,null,{"$f":"VLOOKUP(D1212,'Bank and Fund Details'!$B$15:$D$36,3,FALSE)","v":0},{"$f":"VLOOKUP(D1212,'Bank and Fund Details'!$B$15:$C$36,2,FALSE)","v":"Unrestricted"},{"$f":"IFERROR(VLOOKUP(C1212,Descriptions!$B$6:$D$92,3,FALSE),\"\")","v":""},null,null,null,null,null,null,null,null,null,null,null,null,null,null,"General Fund",{"$f":"IFERROR(VLOOKUP(C1212,Descriptions!B:F,5,FALSE),\"N\")","v":"N"},true,"NTRUE",0,null,{"$f":"IFERROR(VLOOKUP(D1212,'Bank and Fund Details'!$B$14:$L$35,11,FALSE),\"N\")","v":"Y"},"NY"]
[null,null,null,"General Fund",null,null,null,null,null,{"$f":"VLOOKUP(D1213,'Bank and Fund Details'!$B$15:$D$36,3,FALSE)","v":0},{"$f":"VLOOKUP(D1213,'Bank and Fund Details'!$B$15:$C$36,2,FALSE)","v":"Unrestricted"},{"$f":"IFERROR(VLOOKUP(C1213,Descriptions!$B$6:$D$92,3,FALSE),\"\")","v":""},null,null,null,null,null,null,null,null,null,null,null,null,null,null,"General Fund",{"$f":"IFERROR(VLOOKUP(C1213,Descriptions!B:F,5,FALSE),\"N\")","v":"N"},true,"NTRUE",0,null,{"$f":"IFERROR(VLOOKUP(D1213,'Bank and Fund Details'!$B$14:$L$35,11,FALSE),\"N\")","v":"Y"},"NY"]
[null,null,null,"General Fund",null,null,null,null,null,{"$f":"VLOOKUP(D1214,'Bank and Fund Details'!$B$15:$D$36,3,FALSE)","v":0},{"$f":"VLOOKUP(D1214,'Bank and Fund Details'!$B$15:$C$36,2,FALSE)","v":"Unrestricted"},{"$f":"IFERROR(VLOOKUP(C1214,Descriptions!$B$6:$D$92,3,FALSE),\"\")","v":""},null,null,null,null,null,null,null,null,null,null,null,null,null,null,"General Fund",{"$f":"IFERROR(VLOOKUP(C1214,Descriptions!B:F,5,FALSE),\"N\")","v":"N"},true,"NTRUE",0,null,{"$f":"IFERROR(VLOOKUP(D1214,'Bank and Fund Details'!$B$14:$L$35,11,FALSE),\"N\")","v":"Y"},"NY"]
[null,null,null,"General Fund",null,null,null,null,null,{"$f":"VLOOKUP(D1215,'Bank and Fund Details'!$B$15:$D$36,3,FALSE)","v":0},{"$f":"VLOOKUP(D1215,'Bank and Fund Details'!$B$15:$C$36,2,FALSE)","v":"Unrestricted"},{"$f":"IFERROR(VLOOKUP(C1215,Descriptions!$B$6:$D$92,3,FALSE),\"\")","v":""},null,null,null,null,null,null,null,null,null,null,null,null,null,null,"General Fund",{"$f":"IFERROR(VLOOKUP(C1215,Descriptions!B:F,5,FALSE),\"N\")","v":"N"},true,"NTRUE",0,null,{"$f":"IFERROR(VLOOKUP(D1215,'Bank and Fund Details'!$B$14:$L$35,11,FALSE),\"N\")","v":"Y"},"NY"]
[null,null,null,"General Fund",null,null,null,null,null,{"$f":"VLOOKUP(D1216,'Bank and Fund Details'!$B$15:$D$36,3,FALSE)","v":0},{"$f":"VLOOKUP(D1216,'Bank and Fund Details'!$B$15:$C$36,2,FALSE)","v":"Unrestricted"},{"$f":"IFERROR(VLOOKUP(C1216,Descriptions!$B$6:$D$92,3,FALSE),\"\")","v":""},null,null,null,null,null,null,null,null,null,null,null,null,null,null,"General Fund",{"$f":"IFERROR(VLOOKUP(C1216,Descriptions!B:F,5,FALSE),\"N\")","v":"N"},true,"NTRUE",0,null,{"$f":"IFERROR(VLOOKUP(D1216,'Bank and Fund Details'!$B$14:$L$35,11,FALSE),\"N\")","v":"Y"},"NY"]
[null,null,null,"General Fund",null,null,null,null,null,{"$f":"VLOOKUP(D1217,'Bank and Fund Details'!$B$15:$D$36,3,FALSE)","v":0},{"$f":"VLOOKUP(D1217,'Bank and Fund Details'!$B$15:$C$36,2,FALSE)","v":"Unrestricted"},{"$f":"IFERROR(VLOOKUP(C1217,Descriptions!$B$6:$D$92,3,FALSE),\"\")","v":""},null,null,null,null,null,null,null,null,null,null,null,null,null,null,"General Fund",{"$f":"IFERROR(VLOOKUP(C1217,Descriptions!B:F,5,FALSE),\"N\")","v":"N"},true,"NTRUE",0,null,{"$f":"IFERROR(VLOOKUP(D1217,'Bank and Fund Details'!$B$14:$L$35,11,FALSE),\"N\")","v":"Y"},"NY"]
[null,null,null,"General Fund",null,null,null,null,null,{"$f":"VLOOKUP(D1218,'Bank and Fund Details'!$B$15:$D$36,3,FALSE)","v":0},{"$f":"VLOOKUP(D1218,'Bank and Fund Details'!$B$15:$C$36,2,FALSE)","v":"Unrestricted"},{"$f":"IFERROR(VLOOKUP(C1218,Descriptions!$B$6:$D$92,3,FALSE),\"\")","v":""},null,null,null,null,null,null,null,null,null,null,null,null,null,null,"General Fund",{"$f":"IFERROR(VLOOKUP(C1218,Descriptions!B:F,5,FALSE),\"N\")","v":"N"},true,"NTRUE",0,null,{"$f":"IFERROR(VLOOKUP(D1218,'Bank and Fund Details'!$B$14:$L$35,11,FALSE),\"N\")","v":"Y"},"NY"]
[null,null,null,"General Fund",null,null,null,null,null,{"$f":"VLOOKUP(D1219,'Bank and Fund Details'!$B$15:$D$36,3,FALSE)","v":0},{"$f":"VLOOKUP(D1219,'Bank and Fund Details'!$B$15:$C$36,2,FALSE)","v":"Unrestricted"},{"$f":"IFERROR(VLOOKUP(C1219,Descriptions!$B$6:$D$92,3,FALSE),\"\")","v":""},null,null,null,null,null,null,null,null,null,null,null,null,null,null,"General Fund",{"$f":"IFERROR(VLOOKUP(C1219,Descriptions!B:F,5,FALSE),\"N\")","v":"N"},true,"NTRUE",0,null,{"$f":"IFERROR(VLOOKUP(D1219,'Bank and Fund Details'!$B$14:$L$35,11,FALSE),\"N\")","v":"Y"},"NY"]
[null,null,null,"General Fund",null,null,null,null,null,{"$f":"VLOOKUP(D1220,'Bank and Fund Details'!$B$15:$D$36,3,FALSE)","v":0},{"$f":"VLOOKUP(D1220,'Bank and Fund Details'!$B$15:$C$36,2,FALSE)","v":"Unrestricted"},{"$f":"IFERROR(VLOOKUP(C1220,Descriptions!$B$6:$D$92,3,FALSE),\"\")","v":""},null,null,null,null,null,null,null,null,null,null,null,null,null,null,"General Fund",{"$f":"IFERROR(VLOOKUP(C1220,Descriptions!B:F,5,FALSE),\"N\")","v":"N"},true,"NTRUE",0,null,{"$f":"IFERROR(VLOOKUP(D1220,'Bank and Fund Details'!$B$14:$L$35,11,FALSE),\"N\")","v":"Y"},"NY"]
[null,null,null,"General Fund",null,null,null,null,null,{"$f":"VLOOKUP(D1221,'Bank and Fund Details'!$B$15:$D$36,3,FALSE)","v":0},{"$f":"VLOOKUP(D1221,'Bank and Fund Details'!$B$15:$C$36,2,FALSE)","v":"Unrestricted"},{"$f":"IFERROR(VLOOKUP(C1221,Descriptions!$B$6:$D$92,3,FALSE),\"\")","v":""},null,null,null,null,null,null,null,null,null,null,null,null,null,null,{"$f":"CONCATENATE(C1221,D1221)","v":"General Fund"},{"$f":"IFERROR(VLOOKUP(C1221,Descriptions!B:F,5,FALSE),\"N\")","v":"N"},{"$f":"ISBLANK(C1221)","v":true},{"$f":"CONCATENATE(AB1221,AC1221)","v":"NTRUE"},{"$f":"IF(AD1221=\"NFALSE\",1,0)","v":0},null,{"$f":"IFERROR(VLOOKUP(D1221,'Bank and Fund Details'!$B$14:$L$35,11,FALSE),\"N\")","v":"Y"},"NY"]
[null,null,null,"General Fund",null,null,null,null,null,{"$f":"VLOOKUP(D1222,'Bank and Fund Details'!$B$15:$D$36,3,FALSE)","v":0},{"$f":"VLOOKUP(D1222,'Bank and Fund Details'!$B$15:$C$36,2,FALSE)","v":"Unrestricted"},{"$f":"IFERROR(VLOOKUP(C1222,Descriptions!$B$6:$D$92,3,FALSE),\"\")","v":""},null,null,null,null,null,null,null,null,null,null,null,null,null,null,"General Fund",{"$f":"IFERROR(VLOOKUP(C1222,Descriptions!B:F,5,FALSE),\"N\")","v":"N"},true,"NTRUE",0,null,{"$f":"IFERROR(VLOOKUP(D1222,'Bank and Fund Details'!$B$14:$L$35,11,FALSE),\"N\")","v":"Y"},{"$f":"CONCATENATE(AB1222,AG1222)","v":"NY"}]
[null,null,null,"General Fund",null,null,null,null,null,{"$f":"VLOOKUP(D1223,'Bank and Fund Details'!$B$15:$D$36,3,FALSE)","v":0},{"$f":"VLOOKUP(D1223,'Bank and Fund Details'!$B$15:$C$36,2,FALSE)","v":"Unrestricted"},{"$f":"IFERROR(VLOOKUP(C1223,Descriptions!$B$6:$D$92,3,FALSE),\"\")","v":""},null,null,null,null,null,null,null,null,null,null,null,null,null,null,"General Fund",{"$f":"IFERROR(VLOOKUP(C1223,Descriptions!B:F,5,FALSE),\"N\")","v":"N"},true,"NTRUE",0,null,{"$f":"IFERROR(VLOOKUP(D1223,'Bank and Fund Details'!$B$14:$L$35,11,FALSE),\"N\")","v":"Y"},"NY"]
[null,null,null,"General Fund",null,null,null,null,null,{"$f":"VLOOKUP(D1224,'Bank and Fund Details'!$B$15:$D$36,3,FALSE)","v":0},{"$f":"VLOOKUP(D1224,'Bank and Fund Details'!$B$15:$C$36,2,FALSE)","v":"Unrestricted"},{"$f":"IFERROR(VLOOKUP(C1224,Descriptions!$B$6:$D$92,3,FALSE),\"\")","v":""},null,null,null,null,null,null,null,null,null,null,null,null,null,null,"General Fund",{"$f":"IFERROR(VLOOKUP(C1224,Descriptions!B:F,5,FALSE),\"N\")","v":"N"},true,"NTRUE",0,null,{"$f":"IFERROR(VLOOKUP(D1224,'Bank and Fund Details'!$B$14:$L$35,11,FALSE),\"N\")","v":"Y"},"NY"]
[null,null,null,"General Fund",null,null,null,null,null,{"$f":"VLOOKUP(D1225,'Bank and Fund Details'!$B$15:$D$36,3,FALSE)","v":0},{"$f":"VLOOKUP(D1225,'Bank and Fund Details'!$B$15:$C$36,2,FALSE)","v":"Unrestricted"},{"$f":"IFERROR(VLOOKUP(C1225,Descriptions!$B$6:$D$92,3,FALSE),\"\")","v":""},null,null,null,null,null,null,null,null,null,null,null,null,null,null,"General Fund",{"$f":"IFERROR(VLOOKUP(C1225,Descriptions!B:F,5,FALSE),\"N\")","v":"N"},true,"NTRUE",0,null,{"$f":"IFERROR(VLOOKUP(D1225,'Bank and Fund Details'!$B$14:$L$35,11,FALSE),\"N\")","v":"Y"},"NY"]
[null,null,null,"General Fund",null,null,null,null,null,{"$f":"VLOOKUP(D1226,'Bank and Fund Details'!$B$15:$D$36,3,FALSE)","v":0},{"$f":"VLOOKUP(D1226,'Bank and Fund Details'!$B$15:$C$36,2,FALSE)","v":"Unrestricted"},{"$f":"IFERROR(VLOOKUP(C1226,Descriptions!$B$6:$D$92,3,FALSE),\"\")","v":""},null,null,null,null,null,null,null,null,null,null,null,null,null,null,"General Fund",{"$f":"IFERROR(VLOOKUP(C1226,Descriptions!B:F,5,FALSE),\"N\")","v":"N"},true,"NTRUE",0,null,{"$f":"IFERROR(VLOOKUP(D1226,'Bank and Fund Details'!$B$14:$L$35,11,FALSE),\"N\")","v":"Y"},"NY"]
[null,null,null,"General Fund",null,null,null,null,null,{"$f":"VLOOKUP(D1227,'Bank and Fund Details'!$B$15:$D$36,3,FALSE)","v":0},{"$f":"VLOOKUP(D1227,'Bank and Fund Details'!$B$15:$C$36,2,FALSE)","v":"Unrestricted"},{"$f":"IFERROR(VLOOKUP(C1227,Descriptions!$B$6:$D$92,3,FALSE),\"\")","v":""},null,null,null,null,null,null,null,null,null,null,null,null,null,null,"General Fund",{"$f":"IFERROR(VLOOKUP(C1227,Descriptions!B:F,5,FALSE),\"N\")","v":"N"},true,"NTRUE",0,null,{"$f":"IFERROR(VLOOKUP(D1227,'Bank and Fund Details'!$B$14:$L$35,11,FALSE),\"N\")","v":"Y"},"NY"]
[null,null,null,"General Fund",null,null,null,null,null,{"$f":"VLOOKUP(D1228,'Bank and Fund Details'!$B$15:$D$36,3,FALSE)","v":0},{"$f":"VLOOKUP(D1228,'Bank and Fund Details'!$B$15:$C$36,2,FALSE)","v":"Unrestricted"},{"$f":"IFERROR(VLOOKUP(C1228,Descriptions!$B$6:$D$92,3,FALSE),\"\")","v":""},null,null,null,null,null,null,null,null,null,null,null,null,null,null,"General Fund",{"$f":"IFERROR(VLOOKUP(C1228,Descriptions!B:F,5,FALSE),\"N\")","v":"N"},true,"NTRUE",0,null,{"$f":"IFERROR(VLOOKUP(D1228,'Bank and Fund Details'!$B$14:$L$35,11,FALSE),\"N\")","v":"Y"},"NY"]
[null,null,null,"General Fund",null,null,null,null,null,{"$f":"VLOOKUP(D1229,'Bank and Fund Details'!$B$15:$D$36,3,FALSE)","v":0},{"$f":"VLOOKUP(D1229,'Bank and Fund Details'!$B$15:$C$36,2,FALSE)","v":"Unrestricted"},{"$f":"IFERROR(VLOOKUP(C1229,Descriptions!$B$6:$D$92,3,FALSE),\"\")","v":""},null,null,null,null,null,null,null,null,null,null,null,null,null,null,"General Fund",{"$f":"IFERROR(VLOOKUP(C1229,Descriptions!B:F,5,FALSE),\"N\")","v":"N"},true,"NTRUE",0,null,{"$f":"IFERROR(VLOOKUP(D1229,'Bank and Fund Details'!$B$14:$L$35,11,FALSE),\"N\")","v":"Y"},"NY"]
[null,null,null,"General Fund",null,null,null,null,null,{"$f":"VLOOKUP(D1230,'Bank and Fund Details'!$B$15:$D$36,3,FALSE)","v":0},{"$f":"VLOOKUP(D1230,'Bank and Fund Details'!$B$15:$C$36,2,FALSE)","v":"Unrestricted"},{"$f":"IFERROR(VLOOKUP(C1230,Descriptions!$B$6:$D$92,3,FALSE),\"\")","v":""},null,null,null,null,null,null,null,null,null,null,null,null,null,null,"General Fund",{"$f":"IFERROR(VLOOKUP(C1230,Descriptions!B:F,5,FALSE),\"N\")","v":"N"},true,"NTRUE",0,null,{"$f":"IFERROR(VLOOKUP(D1230,'Bank and Fund Details'!$B$14:$L$35,11,FALSE),\"N\")","v":"Y"},"NY"]
[null,null,null,"General Fund",null,null,null,null,null,{"$f":"VLOOKUP(D1231,'Bank and Fund Details'!$B$15:$D$36,3,FALSE)","v":0},{"$f":"VLOOKUP(D1231,'Bank and Fund Details'!$B$15:$C$36,2,FALSE)","v":"Unrestricted"},{"$f":"IFERROR(VLOOKUP(C1231,Descriptions!$B$6:$D$92,3,FALSE),\"\")","v":""},null,null,null,null,null,null,null,null,null,null,null,null,null,null,"General Fund",{"$f":"IFERROR(VLOOKUP(C1231,Descriptions!B:F,5,FALSE),\"N\")","v":"N"},true,"NTRUE",0,null,{"$f":"IFERROR(VLOOKUP(D1231,'Bank and Fund Details'!$B$14:$L$35,11,FALSE),\"N\")","v":"Y"},"NY"]
[null,null,null,"General Fund",null,null,null,null,null,{"$f":"VLOOKUP(D1232,'Bank and Fund Details'!$B$15:$D$36,3,FALSE)","v":0},{"$f":"VLOOKUP(D1232,'Bank and Fund Details'!$B$15:$C$36,2,FALSE)","v":"Unrestricted"},{"$f":"IFERROR(VLOOKUP(C1232,Descriptions!$B$6:$D$92,3,FALSE),\"\")","v":""},null,null,null,null,null,null,null,null,null,null,null,null,null,null,"General Fund",{"$f":"IFERROR(VLOOKUP(C1232,Descriptions!B:F,5,FALSE),\"N\")","v":"N"},true,"NTRUE",0,null,{"$f":"IFERROR(VLOOKUP(D1232,'Bank and Fund Details'!$B$14:$L$35,11,FALSE),\"N\")","v":"Y"},"NY"]
[null,null,null,"General Fund",null,null,null,null,null,{"$f":"VLOOKUP(D1233,'Bank and Fund Details'!$B$15:$D$36,3,FALSE)","v":0},{"$f":"VLOOKUP(D1233,'Bank and Fund Details'!$B$15:$C$36,2,FALSE)","v":"Unrestricted"},{"$f":"IFERROR(VLOOKUP(C1233,Descriptions!$B$6:$D$92,3,FALSE),\"\")","v":""},null,null,null,null,null,null,null,null,null,null,null,null,null,null,"General Fund",{"$f":"IFERROR(VLOOKUP(C1233,Descriptions!B:F,5,FALSE),\"N\")","v":"N"},true,"NTRUE",0,null,{"$f":"IFERROR(VLOOKUP(D1233,'Bank and Fund Details'!$B$14:$L$35,11,FALSE),\"N\")","v":"Y"},"NY"]
[null,null,null,"General Fund",null,null,null,null,null,{"$f":"VLOOKUP(D1234,'Bank and Fund Details'!$B$15:$D$36,3,FALSE)","v":0},{"$f":"VLOOKUP(D1234,'Bank and Fund Details'!$B$15:$C$36,2,FALSE)","v":"Unrestricted"},{"$f":"IFERROR(VLOOKUP(C1234,Descriptions!$B$6:$D$92,3,FALSE),\"\")","v":""},null,null,null,null,null,null,null,null,null,null,null,null,null,null,"General Fund",{"$f":"IFERROR(VLOOKUP(C1234,Descriptions!B:F,5,FALSE),\"N\")","v":"N"},true,"NTRUE",0,null,{"$f":"IFERROR(VLOOKUP(D1234,'Bank and Fund Details'!$B$14:$L$35,11,FALSE),\"N\")","v":"Y"},"NY"]
[null,null,null,"General Fund",null,null,null,null,null,{"$f":"VLOOKUP(D1235,'Bank and Fund Details'!$B$15:$D$36,3,FALSE)","v":0},{"$f":"VLOOKUP(D1235,'Bank and Fund Details'!$B$15:$C$36,2,FALSE)","v":"Unrestricted"},{"$f":"IFERROR(VLOOKUP(C1235,Descriptions!$B$6:$D$92,3,FALSE),\"\")","v":""},null,null,null,null,null,null,null,null,null,null,null,null,null,null,"General Fund",{"$f":"IFERROR(VLOOKUP(C1235,Descriptions!B:F,5,FALSE),\"N\")","v":"N"},true,"NTRUE",0,null,{"$f":"IFERROR(VLOOKUP(D1235,'Bank and Fund Details'!$B$14:$L$35,11,FALSE),\"N\")","v":"Y"},"NY"]
[null,null,null,"General Fund",null,null,null,null,null,{"$f":"VLOOKUP(D1236,'Bank and Fund Details'!$B$15:$D$36,3,FALSE)","v":0},{"$f":"VLOOKUP(D1236,'Bank and Fund Details'!$B$15:$C$36,2,FALSE)","v":"Unrestricted"},{"$f":"IFERROR(VLOOKUP(C1236,Descriptions!$B$6:$D$92,3,FALSE),\"\")","v":""},null,null,null,null,null,null,null,null,null,null,null,null,null,null,"General Fund",{"$f":"IFERROR(VLOOKUP(C1236,Descriptions!B:F,5,FALSE),\"N\")","v":"N"},true,"NTRUE",0,null,{"$f":"IFERROR(VLOOKUP(D1236,'Bank and Fund Details'!$B$14:$L$35,11,FALSE),\"N\")","v":"Y"},"NY"]
[null,null,null,"General Fund",null,null,null,null,null,{"$f":"VLOOKUP(D1237,'Bank and Fund Details'!$B$15:$D$36,3,FALSE)","v":0},{"$f":"VLOOKUP(D1237,'Bank and Fund Details'!$B$15:$C$36,2,FALSE)","v":"Unrestricted"},{"$f":"IFERROR(VLOOKUP(C1237,Descriptions!$B$6:$D$92,3,FALSE),\"\")","v":""},null,null,null,null,null,null,null,null,null,null,null,null,null,null,"General Fund",{"$f":"IFERROR(VLOOKUP(C1237,Descriptions!B:F,5,FALSE),\"N\")","v":"N"},true,"NTRUE",0,null,{"$f":"IFERROR(VLOOKUP(D1237,'Bank and Fund Details'!$B$14:$L$35,11,FALSE),\"N\")","v":"Y"},"NY"]
[null,null,null,"General Fund",null,null,null,null,null,{"$f":"VLOOKUP(D1238,'Bank and Fund Details'!$B$15:$D$36,3,FALSE)","v":0},{"$f":"VLOOKUP(D1238,'Bank and Fund Details'!$B$15:$C$36,2,FALSE)","v":"Unrestricted"},{"$f":"IFERROR(VLOOKUP(C1238,Descriptions!$B$6:$D$92,3,FALSE),\"\")","v":""},null,null,null,null,null,null,null,null,null,null,null,null,null,null,"General Fund",{"$f":"IFERROR(VLOOKUP(C1238,Descriptions!B:F,5,FALSE),\"N\")","v":"N"},true,"NTRUE",0,null,{"$f":"IFERROR(VLOOKUP(D1238,'Bank and Fund Details'!$B$14:$L$35,11,FALSE),\"N\")","v":"Y"},"NY"]
[null,null,null,"General Fund",null,null,null,null,null,{"$f":"VLOOKUP(D1239,'Bank and Fund Details'!$B$15:$D$36,3,FALSE)","v":0},{"$f":"VLOOKUP(D1239,'Bank and Fund Details'!$B$15:$C$36,2,FALSE)","v":"Unrestricted"},{"$f":"IFERROR(VLOOKUP(C1239,Descriptions!$B$6:$D$92,3,FALSE),\"\")","v":""},null,null,null,null,null,null,null,null,null,null,null,null,null,null,"General Fund",{"$f":"IFERROR(VLOOKUP(C1239,Descriptions!B:F,5,FALSE),\"N\")","v":"N"},true,"NTRUE",0,null,{"$f":"IFERROR(VLOOKUP(D1239,'Bank and Fund Details'!$B$14:$L$35,11,FALSE),\"N\")","v":"Y"},"NY"]
[null,null,null,"General Fund",null,null,null,null,null,{"$f":"VLOOKUP(D1240,'Bank and Fund Details'!$B$15:$D$36,3,FALSE)","v":0},{"$f":"VLOOKUP(D1240,'Bank and Fund Details'!$B$15:$C$36,2,FALSE)","v":"Unrestricted"},{"$f":"IFERROR(VLOOKUP(C1240,Descriptions!$B$6:$D$92,3,FALSE),\"\")","v":""},null,null,null,null,null,null,null,null,null,null,null,null,null,null,"General Fund",{"$f":"IFERROR(VLOOKUP(C1240,Descriptions!B:F,5,FALSE),\"N\")","v":"N"},true,"NTRUE",0,null,{"$f":"IFERROR(VLOOKUP(D1240,'Bank and Fund Details'!$B$14:$L$35,11,FALSE),\"N\")","v":"Y"},"NY"]
[null,null,null,"General Fund",null,null,null,null,null,{"$f":"VLOOKUP(D1241,'Bank and Fund Details'!$B$15:$D$36,3,FALSE)","v":0},{"$f":"VLOOKUP(D1241,'Bank and Fund Details'!$B$15:$C$36,2,FALSE)","v":"Unrestricted"},{"$f":"IFERROR(VLOOKUP(C1241,Descriptions!$B$6:$D$92,3,FALSE),\"\")","v":""},null,null,null,null,null,null,null,null,null,null,null,null,null,null,"General Fund",{"$f":"IFERROR(VLOOKUP(C1241,Descriptions!B:F,5,FALSE),\"N\")","v":"N"},true,"NTRUE",0,null,{"$f":"IFERROR(VLOOKUP(D1241,'Bank and Fund Details'!$B$14:$L$35,11,FALSE),\"N\")","v":"Y"},"NY"]
[null,null,null,"General Fund",null,null,null,null,null,{"$f":"VLOOKUP(D1242,'Bank and Fund Details'!$B$15:$D$36,3,FALSE)","v":0},{"$f":"VLOOKUP(D1242,'Bank and Fund Details'!$B$15:$C$36,2,FALSE)","v":"Unrestricted"},{"$f":"IFERROR(VLOOKUP(C1242,Descriptions!$B$6:$D$92,3,FALSE),\"\")","v":""},null,null,null,null,null,null,null,null,null,null,null,null,null,null,"General Fund",{"$f":"IFERROR(VLOOKUP(C1242,Descriptions!B:F,5,FALSE),\"N\")","v":"N"},true,"NTRUE",0,null,{"$f":"IFERROR(VLOOKUP(D1242,'Bank and Fund Details'!$B$14:$L$35,11,FALSE),\"N\")","v":"Y"},"NY"]
[null,null,null,"General Fund",null,null,null,null,null,{"$f":"VLOOKUP(D1243,'Bank and Fund Details'!$B$15:$D$36,3,FALSE)","v":0},{"$f":"VLOOKUP(D1243,'Bank and Fund Details'!$B$15:$C$36,2,FALSE)","v":"Unrestricted"},{"$f":"IFERROR(VLOOKUP(C1243,Descriptions!$B$6:$D$92,3,FALSE),\"\")","v":""},null,null,null,null,null,null,null,null,null,null,null,null,null,null,"General Fund",{"$f":"IFERROR(VLOOKUP(C1243,Descriptions!B:F,5,FALSE),\"N\")","v":"N"},true,"NTRUE",0,null,{"$f":"IFERROR(VLOOKUP(D1243,'Bank and Fund Details'!$B$14:$L$35,11,FALSE),\"N\")","v":"Y"},"NY"]
[null,null,null,"General Fund",null,null,null,null,null,{"$f":"VLOOKUP(D1244,'Bank and Fund Details'!$B$15:$D$36,3,FALSE)","v":0},{"$f":"VLOOKUP(D1244,'Bank and Fund Details'!$B$15:$C$36,2,FALSE)","v":"Unrestricted"},{"$f":"IFERROR(VLOOKUP(C1244,Descriptions!$B$6:$D$92,3,FALSE),\"\")","v":""},null,null,null,null,null,null,null,null,null,null,null,null,null,null,"General Fund",{"$f":"IFERROR(VLOOKUP(C1244,Descriptions!B:F,5,FALSE),\"N\")","v":"N"},true,"NTRUE",0,null,{"$f":"IFERROR(VLOOKUP(D1244,'Bank and Fund Details'!$B$14:$L$35,11,FALSE),\"N\")","v":"Y"},"NY"]
[null,null,null,"General Fund",null,null,null,null,null,{"$f":"VLOOKUP(D1245,'Bank and Fund Details'!$B$15:$D$36,3,FALSE)","v":0},{"$f":"VLOOKUP(D1245,'Bank and Fund Details'!$B$15:$C$36,2,FALSE)","v":"Unrestricted"},{"$f":"IFERROR(VLOOKUP(C1245,Descriptions!$B$6:$D$92,3,FALSE),\"\")","v":""},null,null,null,null,null,null,null,null,null,null,null,null,null,null,"General Fund",{"$f":"IFERROR(VLOOKUP(C1245,Descriptions!B:F,5,FALSE),\"N\")","v":"N"},true,"NTRUE",0,null,{"$f":"IFERROR(VLOOKUP(D1245,'Bank and Fund Details'!$B$14:$L$35,11,FALSE),\"N\")","v":"Y"},"NY"]
[null,null,null,"General Fund",null,null,null,null,null,{"$f":"VLOOKUP(D1246,'Bank and Fund Details'!$B$15:$D$36,3,FALSE)","v":0},{"$f":"VLOOKUP(D1246,'Bank and Fund Details'!$B$15:$C$36,2,FALSE)","v":"Unrestricted"},{"$f":"IFERROR(VLOOKUP(C1246,Descriptions!$B$6:$D$92,3,FALSE),\"\")","v":""},null,null,null,null,null,null,null,null,null,null,null,null,null,null,"General Fund",{"$f":"IFERROR(VLOOKUP(C1246,Descriptions!B:F,5,FALSE),\"N\")","v":"N"},true,"NTRUE",0,null,{"$f":"IFERROR(VLOOKUP(D1246,'Bank and Fund Details'!$B$14:$L$35,11,FALSE),\"N\")","v":"Y"},"NY"]
[null,null,null,"General Fund",null,null,null,null,null,{"$f":"VLOOKUP(D1247,'Bank and Fund Details'!$B$15:$D$36,3,FALSE)","v":0},{"$f":"VLOOKUP(D1247,'Bank and Fund Details'!$B$15:$C$36,2,FALSE)","v":"Unrestricted"},{"$f":"IFERROR(VLOOKUP(C1247,Descriptions!$B$6:$D$92,3,FALSE),\"\")","v":""},null,null,null,null,null,null,null,null,null,null,null,null,null,null,"General Fund",{"$f":"IFERROR(VLOOKUP(C1247,Descriptions!B:F,5,FALSE),\"N\")","v":"N"},true,"NTRUE",0,null,{"$f":"IFERROR(VLOOKUP(D1247,'Bank and Fund Details'!$B$14:$L$35,11,FALSE),\"N\")","v":"Y"},"NY"]
[null,null,null,"General Fund",null,null,null,null,null,{"$f":"VLOOKUP(D1248,'Bank and Fund Details'!$B$15:$D$36,3,FALSE)","v":0},{"$f":"VLOOKUP(D1248,'Bank and Fund Details'!$B$15:$C$36,2,FALSE)","v":"Unrestricted"},{"$f":"IFERROR(VLOOKUP(C1248,Descriptions!$B$6:$D$92,3,FALSE),\"\")","v":""},null,null,null,null,null,null,null,null,null,null,null,null,null,null,"General Fund",{"$f":"IFERROR(VLOOKUP(C1248,Descriptions!B:F,5,FALSE),\"N\")","v":"N"},true,"NTRUE",0,null,{"$f":"IFERROR(VLOOKUP(D1248,'Bank and Fund Details'!$B$14:$L$35,11,FALSE),\"N\")","v":"Y"},"NY"]
[null,null,null,"General Fund",null,null,null,null,null,{"$f":"VLOOKUP(D1249,'Bank and Fund Details'!$B$15:$D$36,3,FALSE)","v":0},{"$f":"VLOOKUP(D1249,'Bank and Fund Details'!$B$15:$C$36,2,FALSE)","v":"Unrestricted"},{"$f":"IFERROR(VLOOKUP(C1249,Descriptions!$B$6:$D$92,3,FALSE),\"\")","v":""},null,null,null,null,null,null,null,null,null,null,null,null,null,null,"General Fund",{"$f":"IFERROR(VLOOKUP(C1249,Descriptions!B:F,5,FALSE),\"N\")","v":"N"},true,"NTRUE",0,null,{"$f":"IFERROR(VLOOKUP(D1249,'Bank and Fund Details'!$B$14:$L$35,11,FALSE),\"N\")","v":"Y"},"NY"]
[null,null,null,"General Fund",null,null,null,null,null,{"$f":"VLOOKUP(D1250,'Bank and Fund Details'!$B$15:$D$36,3,FALSE)","v":0},{"$f":"VLOOKUP(D1250,'Bank and Fund Details'!$B$15:$C$36,2,FALSE)","v":"Unrestricted"},{"$f":"IFERROR(VLOOKUP(C1250,Descriptions!$B$6:$D$92,3,FALSE),\"\")","v":""},null,null,null,null,null,null,null,null,null,null,null,null,null,null,"General Fund",{"$f":"IFERROR(VLOOKUP(C1250,Descriptions!B:F,5,FALSE),\"N\")","v":"N"},true,"NTRUE",0,null,{"$f":"IFERROR(VLOOKUP(D1250,'Bank and Fund Details'!$B$14:$L$35,11,FALSE),\"N\")","v":"Y"},"NY"]
[null,null,null,"General Fund",null,null,null,null,null,{"$f":"VLOOKUP(D1251,'Bank and Fund Details'!$B$15:$D$36,3,FALSE)","v":0},{"$f":"VLOOKUP(D1251,'Bank and Fund Details'!$B$15:$C$36,2,FALSE)","v":"Unrestricted"},{"$f":"IFERROR(VLOOKUP(C1251,Descriptions!$B$6:$D$92,3,FALSE),\"\")","v":""},null,null,null,null,null,null,null,null,null,null,null,null,null,null,"General Fund",{"$f":"IFERROR(VLOOKUP(C1251,Descriptions!B:F,5,FALSE),\"N\")","v":"N"},true,"NTRUE",0,null,{"$f":"IFERROR(VLOOKUP(D1251,'Bank and Fund Details'!$B$14:$L$35,11,FALSE),\"N\")","v":"Y"},"NY"]
[null,null,null,"General Fund",null,null,null,null,null,{"$f":"VLOOKUP(D1252,'Bank and Fund Details'!$B$15:$D$36,3,FALSE)","v":0},{"$f":"VLOOKUP(D1252,'Bank and Fund Details'!$B$15:$C$36,2,FALSE)","v":"Unrestricted"},{"$f":"IFERROR(VLOOKUP(C1252,Descriptions!$B$6:$D$92,3,FALSE),\"\")","v":""},null,null,null,null,null,null,null,null,null,null,null,null,null,null,"General Fund",{"$f":"IFERROR(VLOOKUP(C1252,Descriptions!B:F,5,FALSE),\"N\")","v":"N"},true,"NTRUE",0,null,{"$f":"IFERROR(VLOOKUP(D1252,'Bank and Fund Details'!$B$14:$L$35,11,FALSE),\"N\")","v":"Y"},"NY"]
[null,null,null,"General Fund",null,null,null,null,null,{"$f":"VLOOKUP(D1253,'Bank and Fund Details'!$B$15:$D$36,3,FALSE)","v":0},{"$f":"VLOOKUP(D1253,'Bank and Fund Details'!$B$15:$C$36,2,FALSE)","v":"Unrestricted"},{"$f":"IFERROR(VLOOKUP(C1253,Descriptions!$B$6:$D$92,3,FALSE),\"\")","v":""},null,null,null,null,null,null,null,null,null,null,null,null,null,null,"General Fund",{"$f":"IFERROR(VLOOKUP(C1253,Descriptions!B:F,5,FALSE),\"N\")","v":"N"},true,"NTRUE",0,null,{"$f":"IFERROR(VLOOKUP(D1253,'Bank and Fund Details'!$B$14:$L$35,11,FALSE),\"N\")","v":"Y"},"NY"]
[null,null,null,"General Fund",null,null,null,null,null,{"$f":"VLOOKUP(D1254,'Bank and Fund Details'!$B$15:$D$36,3,FALSE)","v":0},{"$f":"VLOOKUP(D1254,'Bank and Fund Details'!$B$15:$C$36,2,FALSE)","v":"Unrestricted"},{"$f":"IFERROR(VLOOKUP(C1254,Descriptions!$B$6:$D$92,3,FALSE),\"\")","v":""},null,null,null,null,null,null,null,null,null,null,null,null,null,null,"General Fund",{"$f":"IFERROR(VLOOKUP(C1254,Descriptions!B:F,5,FALSE),\"N\")","v":"N"},true,"NTRUE",0,null,{"$f":"IFERROR(VLOOKUP(D1254,'Bank and Fund Details'!$B$14:$L$35,11,FALSE),\"N\")","v":"Y"},"NY"]
[null,null,null,"General Fund",null,null,null,null,null,{"$f":"VLOOKUP(D1255,'Bank and Fund Details'!$B$15:$D$36,3,FALSE)","v":0},{"$f":"VLOOKUP(D1255,'Bank and Fund Details'!$B$15:$C$36,2,FALSE)","v":"Unrestricted"},{"$f":"IFERROR(VLOOKUP(C1255,Descriptions!$B$6:$D$92,3,FALSE),\"\")","v":""},null,null,null,null,null,null,null,null,null,null,null,null,null,null,"General Fund",{"$f":"IFERROR(VLOOKUP(C1255,Descriptions!B:F,5,FALSE),\"N\")","v":"N"},true,"NTRUE",0,null,{"$f":"IFERROR(VLOOKUP(D1255,'Bank and Fund Details'!$B$14:$L$35,11,FALSE),\"N\")","v":"Y"},"NY"]
[null,null,null,"General Fund",null,null,null,null,null,{"$f":"VLOOKUP(D1256,'Bank and Fund Details'!$B$15:$D$36,3,FALSE)","v":0},{"$f":"VLOOKUP(D1256,'Bank and Fund Details'!$B$15:$C$36,2,FALSE)","v":"Unrestricted"},{"$f":"IFERROR(VLOOKUP(C1256,Descriptions!$B$6:$D$92,3,FALSE),\"\")","v":""},null,null,null,null,null,null,null,null,null,null,null,null,null,null,"General Fund",{"$f":"IFERROR(VLOOKUP(C1256,Descriptions!B:F,5,FALSE),\"N\")","v":"N"},true,"NTRUE",0,null,{"$f":"IFERROR(VLOOKUP(D1256,'Bank and Fund Details'!$B$14:$L$35,11,FALSE),\"N\")","v":"Y"},"NY"]
[null,null,null,"General Fund",null,null,null,null,null,{"$f":"VLOOKUP(D1257,'Bank and Fund Details'!$B$15:$D$36,3,FALSE)","v":0},{"$f":"VLOOKUP(D1257,'Bank and Fund Details'!$B$15:$C$36,2,FALSE)","v":"Unrestricted"},{"$f":"IFERROR(VLOOKUP(C1257,Descriptions!$B$6:$D$92,3,FALSE),\"\")","v":""},null,null,null,null,null,null,null,null,null,null,null,null,null,null,"General Fund",{"$f":"IFERROR(VLOOKUP(C1257,Descriptions!B:F,5,FALSE),\"N\")","v":"N"},true,"NTRUE",0,null,{"$f":"IFERROR(VLOOKUP(D1257,'Bank and Fund Details'!$B$14:$L$35,11,FALSE),\"N\")","v":"Y"},"NY"]
[null,null,null,"General Fund",null,null,null,null,null,{"$f":"VLOOKUP(D1258,'Bank and Fund Details'!$B$15:$D$36,3,FALSE)","v":0},{"$f":"VLOOKUP(D1258,'Bank and Fund Details'!$B$15:$C$36,2,FALSE)","v":"Unrestricted"},{"$f":"IFERROR(VLOOKUP(C1258,Descriptions!$B$6:$D$92,3,FALSE),\"\")","v":""},null,null,null,null,null,null,null,null,null,null,null,null,null,null,"General Fund",{"$f":"IFERROR(VLOOKUP(C1258,Descriptions!B:F,5,FALSE),\"N\")","v":"N"},true,"NTRUE",0,null,{"$f":"IFERROR(VLOOKUP(D1258,'Bank and Fund Details'!$B$14:$L$35,11,FALSE),\"N\")","v":"Y"},"NY"]
[null,null,null,"General Fund",null,null,null,null,null,{"$f":"VLOOKUP(D1259,'Bank and Fund Details'!$B$15:$D$36,3,FALSE)","v":0},{"$f":"VLOOKUP(D1259,'Bank and Fund Details'!$B$15:$C$36,2,FALSE)","v":"Unrestricted"},{"$f":"IFERROR(VLOOKUP(C1259,Descriptions!$B$6:$D$92,3,FALSE),\"\")","v":""},null,null,null,null,null,null,null,null,null,null,null,null,null,null,"General Fund",{"$f":"IFERROR(VLOOKUP(C1259,Descriptions!B:F,5,FALSE),\"N\")","v":"N"},true,"NTRUE",0,null,{"$f":"IFERROR(VLOOKUP(D1259,'Bank and Fund Details'!$B$14:$L$35,11,FALSE),\"N\")","v":"Y"},"NY"]
[null,null,null,"General Fund",null,null,null,null,null,{"$f":"VLOOKUP(D1260,'Bank and Fund Details'!$B$15:$D$36,3,FALSE)","v":0},{"$f":"VLOOKUP(D1260,'Bank and Fund Details'!$B$15:$C$36,2,FALSE)","v":"Unrestricted"},{"$f":"IFERROR(VLOOKUP(C1260,Descriptions!$B$6:$D$92,3,FALSE),\"\")","v":""},null,null,null,null,null,null,null,null,null,null,null,null,null,null,"General Fund",{"$f":"IFERROR(VLOOKUP(C1260,Descriptions!B:F,5,FALSE),\"N\")","v":"N"},true,"NTRUE",0,null,{"$f":"IFERROR(VLOOKUP(D1260,'Bank and Fund Details'!$B$14:$L$35,11,FALSE),\"N\")","v":"Y"},"NY"]
[null,null,null,"General Fund",null,null,null,null,null,{"$f":"VLOOKUP(D1261,'Bank and Fund Details'!$B$15:$D$36,3,FALSE)","v":0},{"$f":"VLOOKUP(D1261,'Bank and Fund Details'!$B$15:$C$36,2,FALSE)","v":"Unrestricted"},{"$f":"IFERROR(VLOOKUP(C1261,Descriptions!$B$6:$D$92,3,FALSE),\"\")","v":""},null,null,null,null,null,null,null,null,null,null,null,null,null,null,"General Fund",{"$f":"IFERROR(VLOOKUP(C1261,Descriptions!B:F,5,FALSE),\"N\")","v":"N"},true,"NTRUE",0,null,{"$f":"IFERROR(VLOOKUP(D1261,'Bank and Fund Details'!$B$14:$L$35,11,FALSE),\"N\")","v":"Y"},"NY"]
[null,null,null,"General Fund",null,null,null,null,null,{"$f":"VLOOKUP(D1262,'Bank and Fund Details'!$B$15:$D$36,3,FALSE)","v":0},{"$f":"VLOOKUP(D1262,'Bank and Fund Details'!$B$15:$C$36,2,FALSE)","v":"Unrestricted"},{"$f":"IFERROR(VLOOKUP(C1262,Descriptions!$B$6:$D$92,3,FALSE),\"\")","v":""},null,null,null,null,null,null,null,null,null,null,null,null,null,null,"General Fund",{"$f":"IFERROR(VLOOKUP(C1262,Descriptions!B:F,5,FALSE),\"N\")","v":"N"},true,"NTRUE",0,null,{"$f":"IFERROR(VLOOKUP(D1262,'Bank and Fund Details'!$B$14:$L$35,11,FALSE),\"N\")","v":"Y"},"NY"]
[null,null,null,"General Fund",null,null,null,null,null,{"$f":"VLOOKUP(D1263,'Bank and Fund Details'!$B$15:$D$36,3,FALSE)","v":0},{"$f":"VLOOKUP(D1263,'Bank and Fund Details'!$B$15:$C$36,2,FALSE)","v":"Unrestricted"},{"$f":"IFERROR(VLOOKUP(C1263,Descriptions!$B$6:$D$92,3,FALSE),\"\")","v":""},null,null,null,null,null,null,null,null,null,null,null,null,null,null,"General Fund",{"$f":"IFERROR(VLOOKUP(C1263,Descriptions!B:F,5,FALSE),\"N\")","v":"N"},true,"NTRUE",0,null,{"$f":"IFERROR(VLOOKUP(D1263,'Bank and Fund Details'!$B$14:$L$35,11,FALSE),\"N\")","v":"Y"},"NY"]
[null,null,null,"General Fund",null,null,null,null,null,{"$f":"VLOOKUP(D1264,'Bank and Fund Details'!$B$15:$D$36,3,FALSE)","v":0},{"$f":"VLOOKUP(D1264,'Bank and Fund Details'!$B$15:$C$36,2,FALSE)","v":"Unrestricted"},{"$f":"IFERROR(VLOOKUP(C1264,Descriptions!$B$6:$D$92,3,FALSE),\"\")","v":""},null,null,null,null,null,null,null,null,null,null,null,null,null,null,"General Fund",{"$f":"IFERROR(VLOOKUP(C1264,Descriptions!B:F,5,FALSE),\"N\")","v":"N"},true,"NTRUE",0,null,{"$f":"IFERROR(VLOOKUP(D1264,'Bank and Fund Details'!$B$14:$L$35,11,FALSE),\"N\")","v":"Y"},"NY"]
[null,null,null,"General Fund",null,null,null,null,null,{"$f":"VLOOKUP(D1265,'Bank and Fund Details'!$B$15:$D$36,3,FALSE)","v":0},{"$f":"VLOOKUP(D1265,'Bank and Fund Details'!$B$15:$C$36,2,FALSE)","v":"Unrestricted"},{"$f":"IFERROR(VLOOKUP(C1265,Descriptions!$B$6:$D$92,3,FALSE),\"\")","v":""},null,null,null,null,null,null,null,null,null,null,null,null,null,null,"General Fund",{"$f":"IFERROR(VLOOKUP(C1265,Descriptions!B:F,5,FALSE),\"N\")","v":"N"},true,"NTRUE",0,null,{"$f":"IFERROR(VLOOKUP(D1265,'Bank and Fund Details'!$B$14:$L$35,11,FALSE),\"N\")","v":"Y"},"NY"]
[null,null,null,"General Fund",null,null,null,null,null,{"$f":"VLOOKUP(D1266,'Bank and Fund Details'!$B$15:$D$36,3,FALSE)","v":0},{"$f":"VLOOKUP(D1266,'Bank and Fund Details'!$B$15:$C$36,2,FALSE)","v":"Unrestricted"},{"$f":"IFERROR(VLOOKUP(C1266,Descriptions!$B$6:$D$92,3,FALSE),\"\")","v":""},null,null,null,null,null,null,null,null,null,null,null,null,null,null,"General Fund",{"$f":"IFERROR(VLOOKUP(C1266,Descriptions!B:F,5,FALSE),\"N\")","v":"N"},true,"NTRUE",0,null,{"$f":"IFERROR(VLOOKUP(D1266,'Bank and Fund Details'!$B$14:$L$35,11,FALSE),\"N\")","v":"Y"},"NY"]
[null,null,null,"General Fund",null,null,null,null,null,{"$f":"VLOOKUP(D1267,'Bank and Fund Details'!$B$15:$D$36,3,FALSE)","v":0},{"$f":"VLOOKUP(D1267,'Bank and Fund Details'!$B$15:$C$36,2,FALSE)","v":"Unrestricted"},{"$f":"IFERROR(VLOOKUP(C1267,Descriptions!$B$6:$D$92,3,FALSE),\"\")","v":""},null,null,null,null,null,null,null,null,null,null,null,null,null,null,"General Fund",{"$f":"IFERROR(VLOOKUP(C1267,Descriptions!B:F,5,FALSE),\"N\")","v":"N"},true,"NTRUE",0,null,{"$f":"IFERROR(VLOOKUP(D1267,'Bank and Fund Details'!$B$14:$L$35,11,FALSE),\"N\")","v":"Y"},"NY"]
[null,null,null,"General Fund",null,null,null,null,null,{"$f":"VLOOKUP(D1268,'Bank and Fund Details'!$B$15:$D$36,3,FALSE)","v":0},{"$f":"VLOOKUP(D1268,'Bank and Fund Details'!$B$15:$C$36,2,FALSE)","v":"Unrestricted"},{"$f":"IFERROR(VLOOKUP(C1268,Descriptions!$B$6:$D$92,3,FALSE),\"\")","v":""},null,null,null,null,null,null,null,null,null,null,null,null,null,null,"General Fund",{"$f":"IFERROR(VLOOKUP(C1268,Descriptions!B:F,5,FALSE),\"N\")","v":"N"},true,"NTRUE",0,null,{"$f":"IFERROR(VLOOKUP(D1268,'Bank and Fund Details'!$B$14:$L$35,11,FALSE),\"N\")","v":"Y"},"NY"]
[null,null,null,"General Fund",null,null,null,null,null,{"$f":"VLOOKUP(D1269,'Bank and Fund Details'!$B$15:$D$36,3,FALSE)","v":0},{"$f":"VLOOKUP(D1269,'Bank and Fund Details'!$B$15:$C$36,2,FALSE)","v":"Unrestricted"},{"$f":"IFERROR(VLOOKUP(C1269,Descriptions!$B$6:$D$92,3,FALSE),\"\")","v":""},null,null,null,null,null,null,null,null,null,null,null,null,null,null,"General Fund",{"$f":"IFERROR(VLOOKUP(C1269,Descriptions!B:F,5,FALSE),\"N\")","v":"N"},true,"NTRUE",0,null,{"$f":"IFERROR(VLOOKUP(D1269,'Bank and Fund Details'!$B$14:$L$35,11,FALSE),\"N\")","v":"Y"},"NY"]
[null,null,null,"General Fund",null,null,null,null,null,{"$f":"VLOOKUP(D1270,'Bank and Fund Details'!$B$15:$D$36,3,FALSE)","v":0},{"$f":"VLOOKUP(D1270,'Bank and Fund Details'!$B$15:$C$36,2,FALSE)","v":"Unrestricted"},{"$f":"IFERROR(VLOOKUP(C1270,Descriptions!$B$6:$D$92,3,FALSE),\"\")","v":""},null,null,null,null,null,null,null,null,null,null,null,null,null,null,"General Fund",{"$f":"IFERROR(VLOOKUP(C1270,Descriptions!B:F,5,FALSE),\"N\")","v":"N"},true,"NTRUE",0,null,{"$f":"IFERROR(VLOOKUP(D1270,'Bank and Fund Details'!$B$14:$L$35,11,FALSE),\"N\")","v":"Y"},"NY"]
[null,null,null,"General Fund",null,null,null,null,null,{"$f":"VLOOKUP(D1271,'Bank and Fund Details'!$B$15:$D$36,3,FALSE)","v":0},{"$f":"VLOOKUP(D1271,'Bank and Fund Details'!$B$15:$C$36,2,FALSE)","v":"Unrestricted"},{"$f":"IFERROR(VLOOKUP(C1271,Descriptions!$B$6:$D$92,3,FALSE),\"\")","v":""},null,null,null,null,null,null,null,null,null,null,null,null,null,null,"General Fund",{"$f":"IFERROR(VLOOKUP(C1271,Descriptions!B:F,5,FALSE),\"N\")","v":"N"},true,"NTRUE",0,null,{"$f":"IFERROR(VLOOKUP(D1271,'Bank and Fund Details'!$B$14:$L$35,11,FALSE),\"N\")","v":"Y"},"NY"]
[null,null,null,"General Fund",null,null,null,null,null,{"$f":"VLOOKUP(D1272,'Bank and Fund Details'!$B$15:$D$36,3,FALSE)","v":0},{"$f":"VLOOKUP(D1272,'Bank and Fund Details'!$B$15:$C$36,2,FALSE)","v":"Unrestricted"},{"$f":"IFERROR(VLOOKUP(C1272,Descriptions!$B$6:$D$92,3,FALSE),\"\")","v":""},null,null,null,null,null,null,null,null,null,null,null,null,null,null,"General Fund",{"$f":"IFERROR(VLOOKUP(C1272,Descriptions!B:F,5,FALSE),\"N\")","v":"N"},true,"NTRUE",0,null,{"$f":"IFERROR(VLOOKUP(D1272,'Bank and Fund Details'!$B$14:$L$35,11,FALSE),\"N\")","v":"Y"},"NY"]
[null,null,null,"General Fund",null,null,null,null,null,{"$f":"VLOOKUP(D1273,'Bank and Fund Details'!$B$15:$D$36,3,FALSE)","v":0},{"$f":"VLOOKUP(D1273,'Bank and Fund Details'!$B$15:$C$36,2,FALSE)","v":"Unrestricted"},{"$f":"IFERROR(VLOOKUP(C1273,Descriptions!$B$6:$D$92,3,FALSE),\"\")","v":""},null,null,null,null,null,null,null,null,null,null,null,null,null,null,"General Fund",{"$f":"IFERROR(VLOOKUP(C1273,Descriptions!B:F,5,FALSE),\"N\")","v":"N"},true,"NTRUE",0,null,{"$f":"IFERROR(VLOOKUP(D1273,'Bank and Fund Details'!$B$14:$L$35,11,FALSE),\"N\")","v":"Y"},"NY"]
[null,null,null,"General Fund",null,null,null,null,null,{"$f":"VLOOKUP(D1274,'Bank and Fund Details'!$B$15:$D$36,3,FALSE)","v":0},{"$f":"VLOOKUP(D1274,'Bank and Fund Details'!$B$15:$C$36,2,FALSE)","v":"Unrestricted"},{"$f":"IFERROR(VLOOKUP(C1274,Descriptions!$B$6:$D$92,3,FALSE),\"\")","v":""},null,null,null,null,null,null,null,null,null,null,null,null,null,null,"General Fund",{"$f":"IFERROR(VLOOKUP(C1274,Descriptions!B:F,5,FALSE),\"N\")","v":"N"},true,"NTRUE",0,null,{"$f":"IFERROR(VLOOKUP(D1274,'Bank and Fund Details'!$B$14:$L$35,11,FALSE),\"N\")","v":"Y"},"NY"]
[null,null,null,"General Fund",null,null,null,null,null,{"$f":"VLOOKUP(D1275,'Bank and Fund Details'!$B$15:$D$36,3,FALSE)","v":0},{"$f":"VLOOKUP(D1275,'Bank and Fund Details'!$B$15:$C$36,2,FALSE)","v":"Unrestricted"},{"$f":"IFERROR(VLOOKUP(C1275,Descriptions!$B$6:$D$92,3,FALSE),\"\")","v":""},null,null,null,null,null,null,null,null,null,null,null,null,null,null,"General Fund",{"$f":"IFERROR(VLOOKUP(C1275,Descriptions!B:F,5,FALSE),\"N\")","v":"N"},true,"NTRUE",0,null,{"$f":"IFERROR(VLOOKUP(D1275,'Bank and Fund Details'!$B$14:$L$35,11,FALSE),\"N\")","v":"Y"},"NY"]
[null,null,null,"General Fund",null,null,null,null,null,{"$f":"VLOOKUP(D1276,'Bank and Fund Details'!$B$15:$D$36,3,FALSE)","v":0},{"$f":"VLOOKUP(D1276,'Bank and Fund Details'!$B$15:$C$36,2,FALSE)","v":"Unrestricted"},{"$f":"IFERROR(VLOOKUP(C1276,Descriptions!$B$6:$D$92,3,FALSE),\"\")","v":""},null,null,null,null,null,null,null,null,null,null,null,null,null,null,"General Fund",{"$f":"IFERROR(VLOOKUP(C1276,Descriptions!B:F,5,FALSE),\"N\")","v":"N"},true,"NTRUE",0,null,{"$f":"IFERROR(VLOOKUP(D1276,'Bank and Fund Details'!$B$14:$L$35,11,FALSE),\"N\")","v":"Y"},"NY"]
[null,null,null,"General Fund",null,null,null,null,null,{"$f":"VLOOKUP(D1277,'Bank and Fund Details'!$B$15:$D$36,3,FALSE)","v":0},{"$f":"VLOOKUP(D1277,'Bank and Fund Details'!$B$15:$C$36,2,FALSE)","v":"Unrestricted"},{"$f":"IFERROR(VLOOKUP(C1277,Descriptions!$B$6:$D$92,3,FALSE),\"\")","v":""},null,null,null,null,null,null,null,null,null,null,null,null,null,null,"General Fund",{"$f":"IFERROR(VLOOKUP(C1277,Descriptions!B:F,5,FALSE),\"N\")","v":"N"},true,"NTRUE",0,null,{"$f":"IFERROR(VLOOKUP(D1277,'Bank and Fund Details'!$B$14:$L$35,11,FALSE),\"N\")","v":"Y"},"NY"]
[null,null,null,"General Fund",null,null,null,null,null,{"$f":"VLOOKUP(D1278,'Bank and Fund Details'!$B$15:$D$36,3,FALSE)","v":0},{"$f":"VLOOKUP(D1278,'Bank and Fund Details'!$B$15:$C$36,2,FALSE)","v":"Unrestricted"},{"$f":"IFERROR(VLOOKUP(C1278,Descriptions!$B$6:$D$92,3,FALSE),\"\")","v":""},null,null,null,null,null,null,null,null,null,null,null,null,null,null,"General Fund",{"$f":"IFERROR(VLOOKUP(C1278,Descriptions!B:F,5,FALSE),\"N\")","v":"N"},true,"NTRUE",0,null,{"$f":"IFERROR(VLOOKUP(D1278,'Bank and Fund Details'!$B$14:$L$35,11,FALSE),\"N\")","v":"Y"},"NY"]
[null,null,null,"General Fund",null,null,null,null,null,{"$f":"VLOOKUP(D1279,'Bank and Fund Details'!$B$15:$D$36,3,FALSE)","v":0},{"$f":"VLOOKUP(D1279,'Bank and Fund Details'!$B$15:$C$36,2,FALSE)","v":"Unrestricted"},{"$f":"IFERROR(VLOOKUP(C1279,Descriptions!$B$6:$D$92,3,FALSE),\"\")","v":""},null,null,null,null,null,null,null,null,null,null,null,null,null,null,"General Fund",{"$f":"IFERROR(VLOOKUP(C1279,Descriptions!B:F,5,FALSE),\"N\")","v":"N"},true,"NTRUE",0,null,{"$f":"IFERROR(VLOOKUP(D1279,'Bank and Fund Details'!$B$14:$L$35,11,FALSE),\"N\")","v":"Y"},"NY"]
[null,null,null,"General Fund",null,null,null,null,null,{"$f":"VLOOKUP(D1280,'Bank and Fund Details'!$B$15:$D$36,3,FALSE)","v":0},{"$f":"VLOOKUP(D1280,'Bank and Fund Details'!$B$15:$C$36,2,FALSE)","v":"Unrestricted"},{"$f":"IFERROR(VLOOKUP(C1280,Descriptions!$B$6:$D$92,3,FALSE),\"\")","v":""},null,null,null,null,null,null,null,null,null,null,null,null,null,null,"General Fund",{"$f":"IFERROR(VLOOKUP(C1280,Descriptions!B:F,5,FALSE),\"N\")","v":"N"},true,"NTRUE",0,null,{"$f":"IFERROR(VLOOKUP(D1280,'Bank and Fund Details'!$B$14:$L$35,11,FALSE),\"N\")","v":"Y"},"NY"]
[null,null,null,"General Fund",null,null,null,null,null,{"$f":"VLOOKUP(D1281,'Bank and Fund Details'!$B$15:$D$36,3,FALSE)","v":0},{"$f":"VLOOKUP(D1281,'Bank and Fund Details'!$B$15:$C$36,2,FALSE)","v":"Unrestricted"},{"$f":"IFERROR(VLOOKUP(C1281,Descriptions!$B$6:$D$92,3,FALSE),\"\")","v":""},null,null,null,null,null,null,null,null,null,null,null,null,null,null,"General Fund",{"$f":"IFERROR(VLOOKUP(C1281,Descriptions!B:F,5,FALSE),\"N\")","v":"N"},true,"NTRUE",0,null,{"$f":"IFERROR(VLOOKUP(D1281,'Bank and Fund Details'!$B$14:$L$35,11,FALSE),\"N\")","v":"Y"},"NY"]
[null,null,null,"General Fund",null,null,null,null,null,{"$f":"VLOOKUP(D1282,'Bank and Fund Details'!$B$15:$D$36,3,FALSE)","v":0},{"$f":"VLOOKUP(D1282,'Bank and Fund Details'!$B$15:$C$36,2,FALSE)","v":"Unrestricted"},{"$f":"IFERROR(VLOOKUP(C1282,Descriptions!$B$6:$D$92,3,FALSE),\"\")","v":""},null,null,null,null,null,null,null,null,null,null,null,null,null,null,"General Fund",{"$f":"IFERROR(VLOOKUP(C1282,Descriptions!B:F,5,FALSE),\"N\")","v":"N"},true,"NTRUE",0,null,{"$f":"IFERROR(VLOOKUP(D1282,'Bank and Fund Details'!$B$14:$L$35,11,FALSE),\"N\")","v":"Y"},"NY"]
[null,null,null,"General Fund",null,null,null,null,null,{"$f":"VLOOKUP(D1283,'Bank and Fund Details'!$B$15:$D$36,3,FALSE)","v":0},{"$f":"VLOOKUP(D1283,'Bank and Fund Details'!$B$15:$C$36,2,FALSE)","v":"Unrestricted"},{"$f":"IFERROR(VLOOKUP(C1283,Descriptions!$B$6:$D$92,3,FALSE),\"\")","v":""},null,null,null,null,null,null,null,null,null,null,null,null,null,null,"General Fund",{"$f":"IFERROR(VLOOKUP(C1283,Descriptions!B:F,5,FALSE),\"N\")","v":"N"},true,"NTRUE",0,null,{"$f":"IFERROR(VLOOKUP(D1283,'Bank and Fund Details'!$B$14:$L$35,11,FALSE),\"N\")","v":"Y"},"NY"]
[null,null,null,"General Fund",null,null,null,null,null,{"$f":"VLOOKUP(D1284,'Bank and Fund Details'!$B$15:$D$36,3,FALSE)","v":0},{"$f":"VLOOKUP(D1284,'Bank and Fund Details'!$B$15:$C$36,2,FALSE)","v":"Unrestricted"},{"$f":"IFERROR(VLOOKUP(C1284,Descriptions!$B$6:$D$92,3,FALSE),\"\")","v":""},null,null,null,null,null,null,null,null,null,null,null,null,null,null,"General Fund",{"$f":"IFERROR(VLOOKUP(C1284,Descriptions!B:F,5,FALSE),\"N\")","v":"N"},true,"NTRUE",0,null,{"$f":"IFERROR(VLOOKUP(D1284,'Bank and Fund Details'!$B$14:$L$35,11,FALSE),\"N\")","v":"Y"},"NY"]
[null,null,null,"General Fund",null,null,null,null,null,{"$f":"VLOOKUP(D1285,'Bank and Fund Details'!$B$15:$D$36,3,FALSE)","v":0},{"$f":"VLOOKUP(D1285,'Bank and Fund Details'!$B$15:$C$36,2,FALSE)","v":"Unrestricted"},{"$f":"IFERROR(VLOOKUP(C1285,Descriptions!$B$6:$D$92,3,FALSE),\"\")","v":""},null,null,null,null,null,null,null,null,null,null,null,null,null,null,{"$f":"CONCATENATE(C1285,D1285)","v":"General Fund"},{"$f":"IFERROR(VLOOKUP(C1285,Descriptions!B:F,5,FALSE),\"N\")","v":"N"},{"$f":"ISBLANK(C1285)","v":true},{"$f":"CONCATENATE(AB1285,AC1285)","v":"NTRUE"},{"$f":"IF(AD1285=\"NFALSE\",1,0)","v":0},null,{"$f":"IFERROR(VLOOKUP(D1285,'Bank and Fund Details'!$B$14:$L$35,11,FALSE),\"N\")","v":"Y"},"NY"]
[null,null,null,"General Fund",null,null,null,null,null,{"$f":"VLOOKUP(D1286,'Bank and Fund Details'!$B$15:$D$36,3,FALSE)","v":0},{"$f":"VLOOKUP(D1286,'Bank and Fund Details'!$B$15:$C$36,2,FALSE)","v":"Unrestricted"},{"$f":"IFERROR(VLOOKUP(C1286,Descriptions!$B$6:$D$92,3,FALSE),\"\")","v":""},null,null,null,null,null,null,null,null,null,null,null,null,null,null,"General Fund",{"$f":"IFERROR(VLOOKUP(C1286,Descriptions!B:F,5,FALSE),\"N\")","v":"N"},true,"NTRUE",0,null,{"$f":"IFERROR(VLOOKUP(D1286,'Bank and Fund Details'!$B$14:$L$35,11,FALSE),\"N\")","v":"Y"},{"$f":"CONCATENATE(AB1286,AG1286)","v":"NY"}]
[null,null,null,"General Fund",null,null,null,null,null,{"$f":"VLOOKUP(D1287,'Bank and Fund Details'!$B$15:$D$36,3,FALSE)","v":0},{"$f":"VLOOKUP(D1287,'Bank and Fund Details'!$B$15:$C$36,2,FALSE)","v":"Unrestricted"},{"$f":"IFERROR(VLOOKUP(C1287,Descriptions!$B$6:$D$92,3,FALSE),\"\")","v":""},null,null,null,null,null,null,null,null,null,null,null,null,null,null,"General Fund",{"$f":"IFERROR(VLOOKUP(C1287,Descriptions!B:F,5,FALSE),\"N\")","v":"N"},true,"NTRUE",0,null,{"$f":"IFERROR(VLOOKUP(D1287,'Bank and Fund Details'!$B$14:$L$35,11,FALSE),\"N\")","v":"Y"},"NY"]
[null,null,null,"General Fund",null,null,null,null,null,{"$f":"VLOOKUP(D1288,'Bank and Fund Details'!$B$15:$D$36,3,FALSE)","v":0},{"$f":"VLOOKUP(D1288,'Bank and Fund Details'!$B$15:$C$36,2,FALSE)","v":"Unrestricted"},{"$f":"IFERROR(VLOOKUP(C1288,Descriptions!$B$6:$D$92,3,FALSE),\"\")","v":""},null,null,null,null,null,null,null,null,null,null,null,null,null,null,"General Fund",{"$f":"IFERROR(VLOOKUP(C1288,Descriptions!B:F,5,FALSE),\"N\")","v":"N"},true,"NTRUE",0,null,{"$f":"IFERROR(VLOOKUP(D1288,'Bank and Fund Details'!$B$14:$L$35,11,FALSE),\"N\")","v":"Y"},"NY"]
[null,null,null,"General Fund",null,null,null,null,null,{"$f":"VLOOKUP(D1289,'Bank and Fund Details'!$B$15:$D$36,3,FALSE)","v":0},{"$f":"VLOOKUP(D1289,'Bank and Fund Details'!$B$15:$C$36,2,FALSE)","v":"Unrestricted"},{"$f":"IFERROR(VLOOKUP(C1289,Descriptions!$B$6:$D$92,3,FALSE),\"\")","v":""},null,null,null,null,null,null,null,null,null,null,null,null,null,null,"General Fund",{"$f":"IFERROR(VLOOKUP(C1289,Descriptions!B:F,5,FALSE),\"N\")","v":"N"},true,"NTRUE",0,null,{"$f":"IFERROR(VLOOKUP(D1289,'Bank and Fund Details'!$B$14:$L$35,11,FALSE),\"N\")","v":"Y"},"NY"]
[null,null,null,"General Fund",null,null,null,null,null,{"$f":"VLOOKUP(D1290,'Bank and Fund Details'!$B$15:$D$36,3,FALSE)","v":0},{"$f":"VLOOKUP(D1290,'Bank and Fund Details'!$B$15:$C$36,2,FALSE)","v":"Unrestricted"},{"$f":"IFERROR(VLOOKUP(C1290,Descriptions!$B$6:$D$92,3,FALSE),\"\")","v":""},null,null,null,null,null,null,null,null,null,null,null,null,null,null,"General Fund",{"$f":"IFERROR(VLOOKUP(C1290,Descriptions!B:F,5,FALSE),\"N\")","v":"N"},true,"NTRUE",0,null,{"$f":"IFERROR(VLOOKUP(D1290,'Bank and Fund Details'!$B$14:$L$35,11,FALSE),\"N\")","v":"Y"},"NY"]
[null,null,null,"General Fund",null,null,null,null,null,{"$f":"VLOOKUP(D1291,'Bank and Fund Details'!$B$15:$D$36,3,FALSE)","v":0},{"$f":"VLOOKUP(D1291,'Bank and Fund Details'!$B$15:$C$36,2,FALSE)","v":"Unrestricted"},{"$f":"IFERROR(VLOOKUP(C1291,Descriptions!$B$6:$D$92,3,FALSE),\"\")","v":""},null,null,null,null,null,null,null,null,null,null,null,null,null,null,"General Fund",{"$f":"IFERROR(VLOOKUP(C1291,Descriptions!B:F,5,FALSE),\"N\")","v":"N"},true,"NTRUE",0,null,{"$f":"IFERROR(VLOOKUP(D1291,'Bank and Fund Details'!$B$14:$L$35,11,FALSE),\"N\")","v":"Y"},"NY"]
[null,null,null,"General Fund",null,null,null,null,null,{"$f":"VLOOKUP(D1292,'Bank and Fund Details'!$B$15:$D$36,3,FALSE)","v":0},{"$f":"VLOOKUP(D1292,'Bank and Fund Details'!$B$15:$C$36,2,FALSE)","v":"Unrestricted"},{"$f":"IFERROR(VLOOKUP(C1292,Descriptions!$B$6:$D$92,3,FALSE),\"\")","v":""},null,null,null,null,null,null,null,null,null,null,null,null,null,null,"General Fund",{"$f":"IFERROR(VLOOKUP(C1292,Descriptions!B:F,5,FALSE),\"N\")","v":"N"},true,"NTRUE",0,null,{"$f":"IFERROR(VLOOKUP(D1292,'Bank and Fund Details'!$B$14:$L$35,11,FALSE),\"N\")","v":"Y"},"NY"]
[null,null,null,"General Fund",null,null,null,null,null,{"$f":"VLOOKUP(D1293,'Bank and Fund Details'!$B$15:$D$36,3,FALSE)","v":0},{"$f":"VLOOKUP(D1293,'Bank and Fund Details'!$B$15:$C$36,2,FALSE)","v":"Unrestricted"},{"$f":"IFERROR(VLOOKUP(C1293,Descriptions!$B$6:$D$92,3,FALSE),\"\")","v":""},null,null,null,null,null,null,null,null,null,null,null,null,null,null,"General Fund",{"$f":"IFERROR(VLOOKUP(C1293,Descriptions!B:F,5,FALSE),\"N\")","v":"N"},true,"NTRUE",0,null,{"$f":"IFERROR(VLOOKUP(D1293,'Bank and Fund Details'!$B$14:$L$35,11,FALSE),\"N\")","v":"Y"},"NY"]
[null,null,null,"General Fund",null,null,null,null,null,{"$f":"VLOOKUP(D1294,'Bank and Fund Details'!$B$15:$D$36,3,FALSE)","v":0},{"$f":"VLOOKUP(D1294,'Bank and Fund Details'!$B$15:$C$36,2,FALSE)","v":"Unrestricted"},{"$f":"IFERROR(VLOOKUP(C1294,Descriptions!$B$6:$D$92,3,FALSE),\"\")","v":""},null,null,null,null,null,null,null,null,null,null,null,null,null,null,"General Fund",{"$f":"IFERROR(VLOOKUP(C1294,Descriptions!B:F,5,FALSE),\"N\")","v":"N"},true,"NTRUE",0,null,{"$f":"IFERROR(VLOOKUP(D1294,'Bank and Fund Details'!$B$14:$L$35,11,FALSE),\"N\")","v":"Y"},"NY"]
[null,null,null,"General Fund",null,null,null,null,null,{"$f":"VLOOKUP(D1295,'Bank and Fund Details'!$B$15:$D$36,3,FALSE)","v":0},{"$f":"VLOOKUP(D1295,'Bank and Fund Details'!$B$15:$C$36,2,FALSE)","v":"Unrestricted"},{"$f":"IFERROR(VLOOKUP(C1295,Descriptions!$B$6:$D$92,3,FALSE),\"\")","v":""},null,null,null,null,null,null,null,null,null,null,null,null,null,null,"General Fund",{"$f":"IFERROR(VLOOKUP(C1295,Descriptions!B:F,5,FALSE),\"N\")","v":"N"},true,"NTRUE",0,null,{"$f":"IFERROR(VLOOKUP(D1295,'Bank and Fund Details'!$B$14:$L$35,11,FALSE),\"N\")","v":"Y"},"NY"]
[null,null,null,"General Fund",null,null,null,null,null,{"$f":"VLOOKUP(D1296,'Bank and Fund Details'!$B$15:$D$36,3,FALSE)","v":0},{"$f":"VLOOKUP(D1296,'Bank and Fund Details'!$B$15:$C$36,2,FALSE)","v":"Unrestricted"},{"$f":"IFERROR(VLOOKUP(C1296,Descriptions!$B$6:$D$92,3,FALSE),\"\")","v":""},null,null,null,null,null,null,null,null,null,null,null,null,null,null,"General Fund",{"$f":"IFERROR(VLOOKUP(C1296,Descriptions!B:F,5,FALSE),\"N\")","v":"N"},true,"NTRUE",0,null,{"$f":"IFERROR(VLOOKUP(D1296,'Bank and Fund Details'!$B$14:$L$35,11,FALSE),\"N\")","v":"Y"},"NY"]
[null,null,null,"General Fund",null,null,null,null,null,{"$f":"VLOOKUP(D1297,'Bank and Fund Details'!$B$15:$D$36,3,FALSE)","v":0},{"$f":"VLOOKUP(D1297,'Bank and Fund Details'!$B$15:$C$36,2,FALSE)","v":"Unrestricted"},{"$f":"IFERROR(VLOOKUP(C1297,Descriptions!$B$6:$D$92,3,FALSE),\"\")","v":""},null,null,null,null,null,null,null,null,null,null,null,null,null,null,"General Fund",{"$f":"IFERROR(VLOOKUP(C1297,Descriptions!B:F,5,FALSE),\"N\")","v":"N"},true,"NTRUE",0,null,{"$f":"IFERROR(VLOOKUP(D1297,'Bank and Fund Details'!$B$14:$L$35,11,FALSE),\"N\")","v":"Y"},"NY"]
[null,null,null,"General Fund",null,null,null,null,null,{"$f":"VLOOKUP(D1298,'Bank and Fund Details'!$B$15:$D$36,3,FALSE)","v":0},{"$f":"VLOOKUP(D1298,'Bank and Fund Details'!$B$15:$C$36,2,FALSE)","v":"Unrestricted"},{"$f":"IFERROR(VLOOKUP(C1298,Descriptions!$B$6:$D$92,3,FALSE),\"\")","v":""},null,null,null,null,null,null,null,null,null,null,null,null,null,null,"General Fund",{"$f":"IFERROR(VLOOKUP(C1298,Descriptions!B:F,5,FALSE),\"N\")","v":"N"},true,"NTRUE",0,null,{"$f":"IFERROR(VLOOKUP(D1298,'Bank and Fund Details'!$B$14:$L$35,11,FALSE),\"N\")","v":"Y"},"NY"]
[null,null,null,"General Fund",null,null,null,null,null,{"$f":"VLOOKUP(D1299,'Bank and Fund Details'!$B$15:$D$36,3,FALSE)","v":0},{"$f":"VLOOKUP(D1299,'Bank and Fund Details'!$B$15:$C$36,2,FALSE)","v":"Unrestricted"},{"$f":"IFERROR(VLOOKUP(C1299,Descriptions!$B$6:$D$92,3,FALSE),\"\")","v":""},null,null,null,null,null,null,null,null,null,null,null,null,null,null,"General Fund",{"$f":"IFERROR(VLOOKUP(C1299,Descriptions!B:F,5,FALSE),\"N\")","v":"N"},true,"NTRUE",0,null,{"$f":"IFERROR(VLOOKUP(D1299,'Bank and Fund Details'!$B$14:$L$35,11,FALSE),\"N\")","v":"Y"},"NY"]
[null,null,null,"General Fund",null,null,null,null,null,{"$f":"VLOOKUP(D1300,'Bank and Fund Details'!$B$15:$D$36,3,FALSE)","v":0},{"$f":"VLOOKUP(D1300,'Bank and Fund Details'!$B$15:$C$36,2,FALSE)","v":"Unrestricted"},{"$f":"IFERROR(VLOOKUP(C1300,Descriptions!$B$6:$D$92,3,FALSE),\"\")","v":""},null,null,null,null,null,null,null,null,null,null,null,null,null,null,"General Fund",{"$f":"IFERROR(VLOOKUP(C1300,Descriptions!B:F,5,FALSE),\"N\")","v":"N"},true,"NTRUE",0,null,{"$f":"IFERROR(VLOOKUP(D1300,'Bank and Fund Details'!$B$14:$L$35,11,FALSE),\"N\")","v":"Y"},"NY"]
[null,null,null,"General Fund",null,null,null,null,null,{"$f":"VLOOKUP(D1301,'Bank and Fund Details'!$B$15:$D$36,3,FALSE)","v":0},{"$f":"VLOOKUP(D1301,'Bank and Fund Details'!$B$15:$C$36,2,FALSE)","v":"Unrestricted"},{"$f":"IFERROR(VLOOKUP(C1301,Descriptions!$B$6:$D$92,3,FALSE),\"\")","v":""},null,null,null,null,null,null,null,null,null,null,null,null,null,null,"General Fund",{"$f":"IFERROR(VLOOKUP(C1301,Descriptions!B:F,5,FALSE),\"N\")","v":"N"},true,"NTRUE",0,null,{"$f":"IFERROR(VLOOKUP(D1301,'Bank and Fund Details'!$B$14:$L$35,11,FALSE),\"N\")","v":"Y"},"NY"]
[null,null,null,"General Fund",null,null,null,null,null,{"$f":"VLOOKUP(D1302,'Bank and Fund Details'!$B$15:$D$36,3,FALSE)","v":0},{"$f":"VLOOKUP(D1302,'Bank and Fund Details'!$B$15:$C$36,2,FALSE)","v":"Unrestricted"},{"$f":"IFERROR(VLOOKUP(C1302,Descriptions!$B$6:$D$92,3,FALSE),\"\")","v":""},null,null,null,null,null,null,null,null,null,null,null,null,null,null,"General Fund",{"$f":"IFERROR(VLOOKUP(C1302,Descriptions!B:F,5,FALSE),\"N\")","v":"N"},true,"NTRUE",0,null,{"$f":"IFERROR(VLOOKUP(D1302,'Bank and Fund Details'!$B$14:$L$35,11,FALSE),\"N\")","v":"Y"},"NY"]
[null,null,null,"General Fund",null,null,null,null,null,{"$f":"VLOOKUP(D1303,'Bank and Fund Details'!$B$15:$D$36,3,FALSE)","v":0},{"$f":"VLOOKUP(D1303,'Bank and Fund Details'!$B$15:$C$36,2,FALSE)","v":"Unrestricted"},{"$f":"IFERROR(VLOOKUP(C1303,Descriptions!$B$6:$D$92,3,FALSE),\"\")","v":""},null,null,null,null,null,null,null,null,null,null,null,null,null,null,"General Fund",{"$f":"IFERROR(VLOOKUP(C1303,Descriptions!B:F,5,FALSE),\"N\")","v":"N"},true,"NTRUE",0,null,{"$f":"IFERROR(VLOOKUP(D1303,'Bank and Fund Details'!$B$14:$L$35,11,FALSE),\"N\")","v":"Y"},"NY"]
[null,null,null,"General Fund",null,null,null,null,null,{"$f":"VLOOKUP(D1304,'Bank and Fund Details'!$B$15:$D$36,3,FALSE)","v":0},{"$f":"VLOOKUP(D1304,'Bank and Fund Details'!$B$15:$C$36,2,FALSE)","v":"Unrestricted"},{"$f":"IFERROR(VLOOKUP(C1304,Descriptions!$B$6:$D$92,3,FALSE),\"\")","v":""},null,null,null,null,null,null,null,null,null,null,null,null,null,null,"General Fund",{"$f":"IFERROR(VLOOKUP(C1304,Descriptions!B:F,5,FALSE),\"N\")","v":"N"},true,"NTRUE",0,null,{"$f":"IFERROR(VLOOKUP(D1304,'Bank and Fund Details'!$B$14:$L$35,11,FALSE),\"N\")","v":"Y"},"NY"]
[null,null,null,"General Fund",null,null,null,null,null,{"$f":"VLOOKUP(D1305,'Bank and Fund Details'!$B$15:$D$36,3,FALSE)","v":0},{"$f":"VLOOKUP(D1305,'Bank and Fund Details'!$B$15:$C$36,2,FALSE)","v":"Unrestricted"},{"$f":"IFERROR(VLOOKUP(C1305,Descriptions!$B$6:$D$92,3,FALSE),\"\")","v":""},null,null,null,null,null,null,null,null,null,null,null,null,null,null,"General Fund",{"$f":"IFERROR(VLOOKUP(C1305,Descriptions!B:F,5,FALSE),\"N\")","v":"N"},true,"NTRUE",0,null,{"$f":"IFERROR(VLOOKUP(D1305,'Bank and Fund Details'!$B$14:$L$35,11,FALSE),\"N\")","v":"Y"},"NY"]
[null,null,null,"General Fund",null,null,null,null,null,{"$f":"VLOOKUP(D1306,'Bank and Fund Details'!$B$15:$D$36,3,FALSE)","v":0},{"$f":"VLOOKUP(D1306,'Bank and Fund Details'!$B$15:$C$36,2,FALSE)","v":"Unrestricted"},{"$f":"IFERROR(VLOOKUP(C1306,Descriptions!$B$6:$D$92,3,FALSE),\"\")","v":""},null,null,null,null,null,null,null,null,null,null,null,null,null,null,"General Fund",{"$f":"IFERROR(VLOOKUP(C1306,Descriptions!B:F,5,FALSE),\"N\")","v":"N"},true,"NTRUE",0,null,{"$f":"IFERROR(VLOOKUP(D1306,'Bank and Fund Details'!$B$14:$L$35,11,FALSE),\"N\")","v":"Y"},"NY"]
[null,null,null,"General Fund",null,null,null,null,null,{"$f":"VLOOKUP(D1307,'Bank and Fund Details'!$B$15:$D$36,3,FALSE)","v":0},{"$f":"VLOOKUP(D1307,'Bank and Fund Details'!$B$15:$C$36,2,FALSE)","v":"Unrestricted"},{"$f":"IFERROR(VLOOKUP(C1307,Descriptions!$B$6:$D$92,3,FALSE),\"\")","v":""},null,null,null,null,null,null,null,null,null,null,null,null,null,null,"General Fund",{"$f":"IFERROR(VLOOKUP(C1307,Descriptions!B:F,5,FALSE),\"N\")","v":"N"},true,"NTRUE",0,null,{"$f":"IFERROR(VLOOKUP(D1307,'Bank and Fund Details'!$B$14:$L$35,11,FALSE),\"N\")","v":"Y"},"NY"]
[null,null,null,"General Fund",null,null,null,null,null,{"$f":"VLOOKUP(D1308,'Bank and Fund Details'!$B$15:$D$36,3,FALSE)","v":0},{"$f":"VLOOKUP(D1308,'Bank and Fund Details'!$B$15:$C$36,2,FALSE)","v":"Unrestricted"},{"$f":"IFERROR(VLOOKUP(C1308,Descriptions!$B$6:$D$92,3,FALSE),\"\")","v":""},null,null,null,null,null,null,null,null,null,null,null,null,null,null,"General Fund",{"$f":"IFERROR(VLOOKUP(C1308,Descriptions!B:F,5,FALSE),\"N\")","v":"N"},true,"NTRUE",0,null,{"$f":"IFERROR(VLOOKUP(D1308,'Bank and Fund Details'!$B$14:$L$35,11,FALSE),\"N\")","v":"Y"},"NY"]
[null,null,null,"General Fund",null,null,null,null,null,{"$f":"VLOOKUP(D1309,'Bank and Fund Details'!$B$15:$D$36,3,FALSE)","v":0},{"$f":"VLOOKUP(D1309,'Bank and Fund Details'!$B$15:$C$36,2,FALSE)","v":"Unrestricted"},{"$f":"IFERROR(VLOOKUP(C1309,Descriptions!$B$6:$D$92,3,FALSE),\"\")","v":""},null,null,null,null,null,null,null,null,null,null,null,null,null,null,"General Fund",{"$f":"IFERROR(VLOOKUP(C1309,Descriptions!B:F,5,FALSE),\"N\")","v":"N"},true,"NTRUE",0,null,{"$f":"IFERROR(VLOOKUP(D1309,'Bank and Fund Details'!$B$14:$L$35,11,FALSE),\"N\")","v":"Y"},"NY"]
[null,null,null,"General Fund",null,null,null,null,null,{"$f":"VLOOKUP(D1310,'Bank and Fund Details'!$B$15:$D$36,3,FALSE)","v":0},{"$f":"VLOOKUP(D1310,'Bank and Fund Details'!$B$15:$C$36,2,FALSE)","v":"Unrestricted"},{"$f":"IFERROR(VLOOKUP(C1310,Descriptions!$B$6:$D$92,3,FALSE),\"\")","v":""},null,null,null,null,null,null,null,null,null,null,null,null,null,null,"General Fund",{"$f":"IFERROR(VLOOKUP(C1310,Descriptions!B:F,5,FALSE),\"N\")","v":"N"},true,"NTRUE",0,null,{"$f":"IFERROR(VLOOKUP(D1310,'Bank and Fund Details'!$B$14:$L$35,11,FALSE),\"N\")","v":"Y"},"NY"]
[null,null,null,"General Fund",null,null,null,null,null,{"$f":"VLOOKUP(D1311,'Bank and Fund Details'!$B$15:$D$36,3,FALSE)","v":0},{"$f":"VLOOKUP(D1311,'Bank and Fund Details'!$B$15:$C$36,2,FALSE)","v":"Unrestricted"},{"$f":"IFERROR(VLOOKUP(C1311,Descriptions!$B$6:$D$92,3,FALSE),\"\")","v":""},null,null,null,null,null,null,null,null,null,null,null,null,null,null,"General Fund",{"$f":"IFERROR(VLOOKUP(C1311,Descriptions!B:F,5,FALSE),\"N\")","v":"N"},true,"NTRUE",0,null,{"$f":"IFERROR(VLOOKUP(D1311,'Bank and Fund Details'!$B$14:$L$35,11,FALSE),\"N\")","v":"Y"},"NY"]
[null,null,null,"General Fund",null,null,null,null,null,{"$f":"VLOOKUP(D1312,'Bank and Fund Details'!$B$15:$D$36,3,FALSE)","v":0},{"$f":"VLOOKUP(D1312,'Bank and Fund Details'!$B$15:$C$36,2,FALSE)","v":"Unrestricted"},{"$f":"IFERROR(VLOOKUP(C1312,Descriptions!$B$6:$D$92,3,FALSE),\"\")","v":""},null,null,null,null,null,null,null,null,null,null,null,null,null,null,"General Fund",{"$f":"IFERROR(VLOOKUP(C1312,Descriptions!B:F,5,FALSE),\"N\")","v":"N"},true,"NTRUE",0,null,{"$f":"IFERROR(VLOOKUP(D1312,'Bank and Fund Details'!$B$14:$L$35,11,FALSE),\"N\")","v":"Y"},"NY"]
[null,null,null,"General Fund",null,null,null,null,null,{"$f":"VLOOKUP(D1313,'Bank and Fund Details'!$B$15:$D$36,3,FALSE)","v":0},{"$f":"VLOOKUP(D1313,'Bank and Fund Details'!$B$15:$C$36,2,FALSE)","v":"Unrestricted"},{"$f":"IFERROR(VLOOKUP(C1313,Descriptions!$B$6:$D$92,3,FALSE),\"\")","v":""},null,null,null,null,null,null,null,null,null,null,null,null,null,null,"General Fund",{"$f":"IFERROR(VLOOKUP(C1313,Descriptions!B:F,5,FALSE),\"N\")","v":"N"},true,"NTRUE",0,null,{"$f":"IFERROR(VLOOKUP(D1313,'Bank and Fund Details'!$B$14:$L$35,11,FALSE),\"N\")","v":"Y"},"NY"]
[null,null,null,"General Fund",null,null,null,null,null,{"$f":"VLOOKUP(D1314,'Bank and Fund Details'!$B$15:$D$36,3,FALSE)","v":0},{"$f":"VLOOKUP(D1314,'Bank and Fund Details'!$B$15:$C$36,2,FALSE)","v":"Unrestricted"},{"$f":"IFERROR(VLOOKUP(C1314,Descriptions!$B$6:$D$92,3,FALSE),\"\")","v":""},null,null,null,null,null,null,null,null,null,null,null,null,null,null,"General Fund",{"$f":"IFERROR(VLOOKUP(C1314,Descriptions!B:F,5,FALSE),\"N\")","v":"N"},true,"NTRUE",0,null,{"$f":"IFERROR(VLOOKUP(D1314,'Bank and Fund Details'!$B$14:$L$35,11,FALSE),\"N\")","v":"Y"},"NY"]
[null,null,null,"General Fund",null,null,null,null,null,{"$f":"VLOOKUP(D1315,'Bank and Fund Details'!$B$15:$D$36,3,FALSE)","v":0},{"$f":"VLOOKUP(D1315,'Bank and Fund Details'!$B$15:$C$36,2,FALSE)","v":"Unrestricted"},{"$f":"IFERROR(VLOOKUP(C1315,Descriptions!$B$6:$D$92,3,FALSE),\"\")","v":""},null,null,null,null,null,null,null,null,null,null,null,null,null,null,"General Fund",{"$f":"IFERROR(VLOOKUP(C1315,Descriptions!B:F,5,FALSE),\"N\")","v":"N"},true,"NTRUE",0,null,{"$f":"IFERROR(VLOOKUP(D1315,'Bank and Fund Details'!$B$14:$L$35,11,FALSE),\"N\")","v":"Y"},"NY"]
[null,null,null,"General Fund",null,null,null,null,null,{"$f":"VLOOKUP(D1316,'Bank and Fund Details'!$B$15:$D$36,3,FALSE)","v":0},{"$f":"VLOOKUP(D1316,'Bank and Fund Details'!$B$15:$C$36,2,FALSE)","v":"Unrestricted"},{"$f":"IFERROR(VLOOKUP(C1316,Descriptions!$B$6:$D$92,3,FALSE),\"\")","v":""},null,null,null,null,null,null,null,null,null,null,null,null,null,null,"General Fund",{"$f":"IFERROR(VLOOKUP(C1316,Descriptions!B:F,5,FALSE),\"N\")","v":"N"},true,"NTRUE",0,null,{"$f":"IFERROR(VLOOKUP(D1316,'Bank and Fund Details'!$B$14:$L$35,11,FALSE),\"N\")","v":"Y"},"NY"]
[null,null,null,"General Fund",null,null,null,null,null,{"$f":"VLOOKUP(D1317,'Bank and Fund Details'!$B$15:$D$36,3,FALSE)","v":0},{"$f":"VLOOKUP(D1317,'Bank and Fund Details'!$B$15:$C$36,2,FALSE)","v":"Unrestricted"},{"$f":"IFERROR(VLOOKUP(C1317,Descriptions!$B$6:$D$92,3,FALSE),\"\")","v":""},null,null,null,null,null,null,null,null,null,null,null,null,null,null,"General Fund",{"$f":"IFERROR(VLOOKUP(C1317,Descriptions!B:F,5,FALSE),\"N\")","v":"N"},true,"NTRUE",0,null,{"$f":"IFERROR(VLOOKUP(D1317,'Bank and Fund Details'!$B$14:$L$35,11,FALSE),\"N\")","v":"Y"},"NY"]
[null,null,null,"General Fund",null,null,null,null,null,{"$f":"VLOOKUP(D1318,'Bank and Fund Details'!$B$15:$D$36,3,FALSE)","v":0},{"$f":"VLOOKUP(D1318,'Bank and Fund Details'!$B$15:$C$36,2,FALSE)","v":"Unrestricted"},{"$f":"IFERROR(VLOOKUP(C1318,Descriptions!$B$6:$D$92,3,FALSE),\"\")","v":""},null,null,null,null,null,null,null,null,null,null,null,null,null,null,"General Fund",{"$f":"IFERROR(VLOOKUP(C1318,Descriptions!B:F,5,FALSE),\"N\")","v":"N"},true,"NTRUE",0,null,{"$f":"IFERROR(VLOOKUP(D1318,'Bank and Fund Details'!$B$14:$L$35,11,FALSE),\"N\")","v":"Y"},"NY"]
[null,null,null,"General Fund",null,null,null,null,null,{"$f":"VLOOKUP(D1319,'Bank and Fund Details'!$B$15:$D$36,3,FALSE)","v":0},{"$f":"VLOOKUP(D1319,'Bank and Fund Details'!$B$15:$C$36,2,FALSE)","v":"Unrestricted"},{"$f":"IFERROR(VLOOKUP(C1319,Descriptions!$B$6:$D$92,3,FALSE),\"\")","v":""},null,null,null,null,null,null,null,null,null,null,null,null,null,null,"General Fund",{"$f":"IFERROR(VLOOKUP(C1319,Descriptions!B:F,5,FALSE),\"N\")","v":"N"},true,"NTRUE",0,null,{"$f":"IFERROR(VLOOKUP(D1319,'Bank and Fund Details'!$B$14:$L$35,11,FALSE),\"N\")","v":"Y"},"NY"]
[null,null,null,"General Fund",null,null,null,null,null,{"$f":"VLOOKUP(D1320,'Bank and Fund Details'!$B$15:$D$36,3,FALSE)","v":0},{"$f":"VLOOKUP(D1320,'Bank and Fund Details'!$B$15:$C$36,2,FALSE)","v":"Unrestricted"},{"$f":"IFERROR(VLOOKUP(C1320,Descriptions!$B$6:$D$92,3,FALSE),\"\")","v":""},null,null,null,null,null,null,null,null,null,null,null,null,null,null,"General Fund",{"$f":"IFERROR(VLOOKUP(C1320,Descriptions!B:F,5,FALSE),\"N\")","v":"N"},true,"NTRUE",0,null,{"$f":"IFERROR(VLOOKUP(D1320,'Bank and Fund Details'!$B$14:$L$35,11,FALSE),\"N\")","v":"Y"},"NY"]
[null,null,null,"General Fund",null,null,null,null,null,{"$f":"VLOOKUP(D1321,'Bank and Fund Details'!$B$15:$D$36,3,FALSE)","v":0},{"$f":"VLOOKUP(D1321,'Bank and Fund Details'!$B$15:$C$36,2,FALSE)","v":"Unrestricted"},{"$f":"IFERROR(VLOOKUP(C1321,Descriptions!$B$6:$D$92,3,FALSE),\"\")","v":""},null,null,null,null,null,null,null,null,null,null,null,null,null,null,"General Fund",{"$f":"IFERROR(VLOOKUP(C1321,Descriptions!B:F,5,FALSE),\"N\")","v":"N"},true,"NTRUE",0,null,{"$f":"IFERROR(VLOOKUP(D1321,'Bank and Fund Details'!$B$14:$L$35,11,FALSE),\"N\")","v":"Y"},"NY"]
[null,null,null,"General Fund",null,null,null,null,null,{"$f":"VLOOKUP(D1322,'Bank and Fund Details'!$B$15:$D$36,3,FALSE)","v":0},{"$f":"VLOOKUP(D1322,'Bank and Fund Details'!$B$15:$C$36,2,FALSE)","v":"Unrestricted"},{"$f":"IFERROR(VLOOKUP(C1322,Descriptions!$B$6:$D$92,3,FALSE),\"\")","v":""},null,null,null,null,null,null,null,null,null,null,null,null,null,null,"General Fund",{"$f":"IFERROR(VLOOKUP(C1322,Descriptions!B:F,5,FALSE),\"N\")","v":"N"},true,"NTRUE",0,null,{"$f":"IFERROR(VLOOKUP(D1322,'Bank and Fund Details'!$B$14:$L$35,11,FALSE),\"N\")","v":"Y"},"NY"]
[null,null,null,"General Fund",null,null,null,null,null,{"$f":"VLOOKUP(D1323,'Bank and Fund Details'!$B$15:$D$36,3,FALSE)","v":0},{"$f":"VLOOKUP(D1323,'Bank and Fund Details'!$B$15:$C$36,2,FALSE)","v":"Unrestricted"},{"$f":"IFERROR(VLOOKUP(C1323,Descriptions!$B$6:$D$92,3,FALSE),\"\")","v":""},null,null,null,null,null,null,null,null,null,null,null,null,null,null,"General Fund",{"$f":"IFERROR(VLOOKUP(C1323,Descriptions!B:F,5,FALSE),\"N\")","v":"N"},true,"NTRUE",0,null,{"$f":"IFERROR(VLOOKUP(D1323,'Bank and Fund Details'!$B$14:$L$35,11,FALSE),\"N\")","v":"Y"},"NY"]
[null,null,null,"General Fund",null,null,null,null,null,{"$f":"VLOOKUP(D1324,'Bank and Fund Details'!$B$15:$D$36,3,FALSE)","v":0},{"$f":"VLOOKUP(D1324,'Bank and Fund Details'!$B$15:$C$36,2,FALSE)","v":"Unrestricted"},{"$f":"IFERROR(VLOOKUP(C1324,Descriptions!$B$6:$D$92,3,FALSE),\"\")","v":""},null,null,null,null,null,null,null,null,null,null,null,null,null,null,"General Fund",{"$f":"IFERROR(VLOOKUP(C1324,Descriptions!B:F,5,FALSE),\"N\")","v":"N"},true,"NTRUE",0,null,{"$f":"IFERROR(VLOOKUP(D1324,'Bank and Fund Details'!$B$14:$L$35,11,FALSE),\"N\")","v":"Y"},"NY"]
[null,null,null,"General Fund",null,null,null,null,null,{"$f":"VLOOKUP(D1325,'Bank and Fund Details'!$B$15:$D$36,3,FALSE)","v":0},{"$f":"VLOOKUP(D1325,'Bank and Fund Details'!$B$15:$C$36,2,FALSE)","v":"Unrestricted"},{"$f":"IFERROR(VLOOKUP(C1325,Descriptions!$B$6:$D$92,3,FALSE),\"\")","v":""},null,null,null,null,null,null,null,null,null,null,null,null,null,null,"General Fund",{"$f":"IFERROR(VLOOKUP(C1325,Descriptions!B:F,5,FALSE),\"N\")","v":"N"},true,"NTRUE",0,null,{"$f":"IFERROR(VLOOKUP(D1325,'Bank and Fund Details'!$B$14:$L$35,11,FALSE),\"N\")","v":"Y"},"NY"]
[null,null,null,"General Fund",null,null,null,null,null,{"$f":"VLOOKUP(D1326,'Bank and Fund Details'!$B$15:$D$36,3,FALSE)","v":0},{"$f":"VLOOKUP(D1326,'Bank and Fund Details'!$B$15:$C$36,2,FALSE)","v":"Unrestricted"},{"$f":"IFERROR(VLOOKUP(C1326,Descriptions!$B$6:$D$92,3,FALSE),\"\")","v":""},null,null,null,null,null,null,null,null,null,null,null,null,null,null,"General Fund",{"$f":"IFERROR(VLOOKUP(C1326,Descriptions!B:F,5,FALSE),\"N\")","v":"N"},true,"NTRUE",0,null,{"$f":"IFERROR(VLOOKUP(D1326,'Bank and Fund Details'!$B$14:$L$35,11,FALSE),\"N\")","v":"Y"},"NY"]
[null,null,null,"General Fund",null,null,null,null,null,{"$f":"VLOOKUP(D1327,'Bank and Fund Details'!$B$15:$D$36,3,FALSE)","v":0},{"$f":"VLOOKUP(D1327,'Bank and Fund Details'!$B$15:$C$36,2,FALSE)","v":"Unrestricted"},{"$f":"IFERROR(VLOOKUP(C1327,Descriptions!$B$6:$D$92,3,FALSE),\"\")","v":""},null,null,null,null,null,null,null,null,null,null,null,null,null,null,"General Fund",{"$f":"IFERROR(VLOOKUP(C1327,Descriptions!B:F,5,FALSE),\"N\")","v":"N"},true,"NTRUE",0,null,{"$f":"IFERROR(VLOOKUP(D1327,'Bank and Fund Details'!$B$14:$L$35,11,FALSE),\"N\")","v":"Y"},"NY"]
[null,null,null,"General Fund",null,null,null,null,null,{"$f":"VLOOKUP(D1328,'Bank and Fund Details'!$B$15:$D$36,3,FALSE)","v":0},{"$f":"VLOOKUP(D1328,'Bank and Fund Details'!$B$15:$C$36,2,FALSE)","v":"Unrestricted"},{"$f":"IFERROR(VLOOKUP(C1328,Descriptions!$B$6:$D$92,3,FALSE),\"\")","v":""},null,null,null,null,null,null,null,null,null,null,null,null,null,null,"General Fund",{"$f":"IFERROR(VLOOKUP(C1328,Descriptions!B:F,5,FALSE),\"N\")","v":"N"},true,"NTRUE",0,null,{"$f":"IFERROR(VLOOKUP(D1328,'Bank and Fund Details'!$B$14:$L$35,11,FALSE),\"N\")","v":"Y"},"NY"]
[null,null,null,"General Fund",null,null,null,null,null,{"$f":"VLOOKUP(D1329,'Bank and Fund Details'!$B$15:$D$36,3,FALSE)","v":0},{"$f":"VLOOKUP(D1329,'Bank and Fund Details'!$B$15:$C$36,2,FALSE)","v":"Unrestricted"},{"$f":"IFERROR(VLOOKUP(C1329,Descriptions!$B$6:$D$92,3,FALSE),\"\")","v":""},null,null,null,null,null,null,null,null,null,null,null,null,null,null,"General Fund",{"$f":"IFERROR(VLOOKUP(C1329,Descriptions!B:F,5,FALSE),\"N\")","v":"N"},true,"NTRUE",0,null,{"$f":"IFERROR(VLOOKUP(D1329,'Bank and Fund Details'!$B$14:$L$35,11,FALSE),\"N\")","v":"Y"},"NY"]
[null,null,null,"General Fund",null,null,null,null,null,{"$f":"VLOOKUP(D1330,'Bank and Fund Details'!$B$15:$D$36,3,FALSE)","v":0},{"$f":"VLOOKUP(D1330,'Bank and Fund Details'!$B$15:$C$36,2,FALSE)","v":"Unrestricted"},{"$f":"IFERROR(VLOOKUP(C1330,Descriptions!$B$6:$D$92,3,FALSE),\"\")","v":""},null,null,null,null,null,null,null,null,null,null,null,null,null,null,"General Fund",{"$f":"IFERROR(VLOOKUP(C1330,Descriptions!B:F,5,FALSE),\"N\")","v":"N"},true,"NTRUE",0,null,{"$f":"IFERROR(VLOOKUP(D1330,'Bank and Fund Details'!$B$14:$L$35,11,FALSE),\"N\")","v":"Y"},"NY"]
[null,null,null,"General Fund",null,null,null,null,null,{"$f":"VLOOKUP(D1331,'Bank and Fund Details'!$B$15:$D$36,3,FALSE)","v":0},{"$f":"VLOOKUP(D1331,'Bank and Fund Details'!$B$15:$C$36,2,FALSE)","v":"Unrestricted"},{"$f":"IFERROR(VLOOKUP(C1331,Descriptions!$B$6:$D$92,3,FALSE),\"\")","v":""},null,null,null,null,null,null,null,null,null,null,null,null,null,null,"General Fund",{"$f":"IFERROR(VLOOKUP(C1331,Descriptions!B:F,5,FALSE),\"N\")","v":"N"},true,"NTRUE",0,null,{"$f":"IFERROR(VLOOKUP(D1331,'Bank and Fund Details'!$B$14:$L$35,11,FALSE),\"N\")","v":"Y"},"NY"]
[null,null,null,"General Fund",null,null,null,null,null,{"$f":"VLOOKUP(D1332,'Bank and Fund Details'!$B$15:$D$36,3,FALSE)","v":0},{"$f":"VLOOKUP(D1332,'Bank and Fund Details'!$B$15:$C$36,2,FALSE)","v":"Unrestricted"},{"$f":"IFERROR(VLOOKUP(C1332,Descriptions!$B$6:$D$92,3,FALSE),\"\")","v":""},null,null,null,null,null,null,null,null,null,null,null,null,null,null,"General Fund",{"$f":"IFERROR(VLOOKUP(C1332,Descriptions!B:F,5,FALSE),\"N\")","v":"N"},true,"NTRUE",0,null,{"$f":"IFERROR(VLOOKUP(D1332,'Bank and Fund Details'!$B$14:$L$35,11,FALSE),\"N\")","v":"Y"},"NY"]
[null,null,null,"General Fund",null,null,null,null,null,{"$f":"VLOOKUP(D1333,'Bank and Fund Details'!$B$15:$D$36,3,FALSE)","v":0},{"$f":"VLOOKUP(D1333,'Bank and Fund Details'!$B$15:$C$36,2,FALSE)","v":"Unrestricted"},{"$f":"IFERROR(VLOOKUP(C1333,Descriptions!$B$6:$D$92,3,FALSE),\"\")","v":""},null,null,null,null,null,null,null,null,null,null,null,null,null,null,"General Fund",{"$f":"IFERROR(VLOOKUP(C1333,Descriptions!B:F,5,FALSE),\"N\")","v":"N"},true,"NTRUE",0,null,{"$f":"IFERROR(VLOOKUP(D1333,'Bank and Fund Details'!$B$14:$L$35,11,FALSE),\"N\")","v":"Y"},"NY"]
[null,null,null,"General Fund",null,null,null,null,null,{"$f":"VLOOKUP(D1334,'Bank and Fund Details'!$B$15:$D$36,3,FALSE)","v":0},{"$f":"VLOOKUP(D1334,'Bank and Fund Details'!$B$15:$C$36,2,FALSE)","v":"Unrestricted"},{"$f":"IFERROR(VLOOKUP(C1334,Descriptions!$B$6:$D$92,3,FALSE),\"\")","v":""},null,null,null,null,null,null,null,null,null,null,null,null,null,null,"General Fund",{"$f":"IFERROR(VLOOKUP(C1334,Descriptions!B:F,5,FALSE),\"N\")","v":"N"},true,"NTRUE",0,null,{"$f":"IFERROR(VLOOKUP(D1334,'Bank and Fund Details'!$B$14:$L$35,11,FALSE),\"N\")","v":"Y"},"NY"]
[null,null,null,"General Fund",null,null,null,null,null,{"$f":"VLOOKUP(D1335,'Bank and Fund Details'!$B$15:$D$36,3,FALSE)","v":0},{"$f":"VLOOKUP(D1335,'Bank and Fund Details'!$B$15:$C$36,2,FALSE)","v":"Unrestricted"},{"$f":"IFERROR(VLOOKUP(C1335,Descriptions!$B$6:$D$92,3,FALSE),\"\")","v":""},null,null,null,null,null,null,null,null,null,null,null,null,null,null,"General Fund",{"$f":"IFERROR(VLOOKUP(C1335,Descriptions!B:F,5,FALSE),\"N\")","v":"N"},true,"NTRUE",0,null,{"$f":"IFERROR(VLOOKUP(D1335,'Bank and Fund Details'!$B$14:$L$35,11,FALSE),\"N\")","v":"Y"},"NY"]
[null,null,null,"General Fund",null,null,null,null,null,{"$f":"VLOOKUP(D1336,'Bank and Fund Details'!$B$15:$D$36,3,FALSE)","v":0},{"$f":"VLOOKUP(D1336,'Bank and Fund Details'!$B$15:$C$36,2,FALSE)","v":"Unrestricted"},{"$f":"IFERROR(VLOOKUP(C1336,Descriptions!$B$6:$D$92,3,FALSE),\"\")","v":""},null,null,null,null,null,null,null,null,null,null,null,null,null,null,"General Fund",{"$f":"IFERROR(VLOOKUP(C1336,Descriptions!B:F,5,FALSE),\"N\")","v":"N"},true,"NTRUE",0,null,{"$f":"IFERROR(VLOOKUP(D1336,'Bank and Fund Details'!$B$14:$L$35,11,FALSE),\"N\")","v":"Y"},"NY"]
[null,null,null,"General Fund",null,null,null,null,null,{"$f":"VLOOKUP(D1337,'Bank and Fund Details'!$B$15:$D$36,3,FALSE)","v":0},{"$f":"VLOOKUP(D1337,'Bank and Fund Details'!$B$15:$C$36,2,FALSE)","v":"Unrestricted"},{"$f":"IFERROR(VLOOKUP(C1337,Descriptions!$B$6:$D$92,3,FALSE),\"\")","v":""},null,null,null,null,null,null,null,null,null,null,null,null,null,null,"General Fund",{"$f":"IFERROR(VLOOKUP(C1337,Descriptions!B:F,5,FALSE),\"N\")","v":"N"},true,"NTRUE",0,null,{"$f":"IFERROR(VLOOKUP(D1337,'Bank and Fund Details'!$B$14:$L$35,11,FALSE),\"N\")","v":"Y"},"NY"]
[null,null,null,"General Fund",null,null,null,null,null,{"$f":"VLOOKUP(D1338,'Bank and Fund Details'!$B$15:$D$36,3,FALSE)","v":0},{"$f":"VLOOKUP(D1338,'Bank and Fund Details'!$B$15:$C$36,2,FALSE)","v":"Unrestricted"},{"$f":"IFERROR(VLOOKUP(C1338,Descriptions!$B$6:$D$92,3,FALSE),\"\")","v":""},null,null,null,null,null,null,null,null,null,null,null,null,null,null,"General Fund",{"$f":"IFERROR(VLOOKUP(C1338,Descriptions!B:F,5,FALSE),\"N\")","v":"N"},true,"NTRUE",0,null,{"$f":"IFERROR(VLOOKUP(D1338,'Bank and Fund Details'!$B$14:$L$35,11,FALSE),\"N\")","v":"Y"},"NY"]
[null,null,null,"General Fund",null,null,null,null,null,{"$f":"VLOOKUP(D1339,'Bank and Fund Details'!$B$15:$D$36,3,FALSE)","v":0},{"$f":"VLOOKUP(D1339,'Bank and Fund Details'!$B$15:$C$36,2,FALSE)","v":"Unrestricted"},{"$f":"IFERROR(VLOOKUP(C1339,Descriptions!$B$6:$D$92,3,FALSE),\"\")","v":""},null,null,null,null,null,null,null,null,null,null,null,null,null,null,"General Fund",{"$f":"IFERROR(VLOOKUP(C1339,Descriptions!B:F,5,FALSE),\"N\")","v":"N"},true,"NTRUE",0,null,{"$f":"IFERROR(VLOOKUP(D1339,'Bank and Fund Details'!$B$14:$L$35,11,FALSE),\"N\")","v":"Y"},"NY"]
[null,null,null,"General Fund",null,null,null,null,null,{"$f":"VLOOKUP(D1340,'Bank and Fund Details'!$B$15:$D$36,3,FALSE)","v":0},{"$f":"VLOOKUP(D1340,'Bank and Fund Details'!$B$15:$C$36,2,FALSE)","v":"Unrestricted"},{"$f":"IFERROR(VLOOKUP(C1340,Descriptions!$B$6:$D$92,3,FALSE),\"\")","v":""},null,null,null,null,null,null,null,null,null,null,null,null,null,null,"General Fund",{"$f":"IFERROR(VLOOKUP(C1340,Descriptions!B:F,5,FALSE),\"N\")","v":"N"},true,"NTRUE",0,null,{"$f":"IFERROR(VLOOKUP(D1340,'Bank and Fund Details'!$B$14:$L$35,11,FALSE),\"N\")","v":"Y"},"NY"]
[null,null,null,"General Fund",null,null,null,null,null,{"$f":"VLOOKUP(D1341,'Bank and Fund Details'!$B$15:$D$36,3,FALSE)","v":0},{"$f":"VLOOKUP(D1341,'Bank and Fund Details'!$B$15:$C$36,2,FALSE)","v":"Unrestricted"},{"$f":"IFERROR(VLOOKUP(C1341,Descriptions!$B$6:$D$92,3,FALSE),\"\")","v":""},null,null,null,null,null,null,null,null,null,null,null,null,null,null,"General Fund",{"$f":"IFERROR(VLOOKUP(C1341,Descriptions!B:F,5,FALSE),\"N\")","v":"N"},true,"NTRUE",0,null,{"$f":"IFERROR(VLOOKUP(D1341,'Bank and Fund Details'!$B$14:$L$35,11,FALSE),\"N\")","v":"Y"},"NY"]
[null,null,null,"General Fund",null,null,null,null,null,{"$f":"VLOOKUP(D1342,'Bank and Fund Details'!$B$15:$D$36,3,FALSE)","v":0},{"$f":"VLOOKUP(D1342,'Bank and Fund Details'!$B$15:$C$36,2,FALSE)","v":"Unrestricted"},{"$f":"IFERROR(VLOOKUP(C1342,Descriptions!$B$6:$D$92,3,FALSE),\"\")","v":""},null,null,null,null,null,null,null,null,null,null,null,null,null,null,"General Fund",{"$f":"IFERROR(VLOOKUP(C1342,Descriptions!B:F,5,FALSE),\"N\")","v":"N"},true,"NTRUE",0,null,{"$f":"IFERROR(VLOOKUP(D1342,'Bank and Fund Details'!$B$14:$L$35,11,FALSE),\"N\")","v":"Y"},"NY"]
[null,null,null,"General Fund",null,null,null,null,null,{"$f":"VLOOKUP(D1343,'Bank and Fund Details'!$B$15:$D$36,3,FALSE)","v":0},{"$f":"VLOOKUP(D1343,'Bank and Fund Details'!$B$15:$C$36,2,FALSE)","v":"Unrestricted"},{"$f":"IFERROR(VLOOKUP(C1343,Descriptions!$B$6:$D$92,3,FALSE),\"\")","v":""},null,null,null,null,null,null,null,null,null,null,null,null,null,null,"General Fund",{"$f":"IFERROR(VLOOKUP(C1343,Descriptions!B:F,5,FALSE),\"N\")","v":"N"},true,"NTRUE",0,null,{"$f":"IFERROR(VLOOKUP(D1343,'Bank and Fund Details'!$B$14:$L$35,11,FALSE),\"N\")","v":"Y"},"NY"]
[null,null,null,"General Fund",null,null,null,null,null,{"$f":"VLOOKUP(D1344,'Bank and Fund Details'!$B$15:$D$36,3,FALSE)","v":0},{"$f":"VLOOKUP(D1344,'Bank and Fund Details'!$B$15:$C$36,2,FALSE)","v":"Unrestricted"},{"$f":"IFERROR(VLOOKUP(C1344,Descriptions!$B$6:$D$92,3,FALSE),\"\")","v":""},null,null,null,null,null,null,null,null,null,null,null,null,null,null,"General Fund",{"$f":"IFERROR(VLOOKUP(C1344,Descriptions!B:F,5,FALSE),\"N\")","v":"N"},true,"NTRUE",0,null,{"$f":"IFERROR(VLOOKUP(D1344,'Bank and Fund Details'!$B$14:$L$35,11,FALSE),\"N\")","v":"Y"},"NY"]
[null,null,null,"General Fund",null,null,null,null,null,{"$f":"VLOOKUP(D1345,'Bank and Fund Details'!$B$15:$D$36,3,FALSE)","v":0},{"$f":"VLOOKUP(D1345,'Bank and Fund Details'!$B$15:$C$36,2,FALSE)","v":"Unrestricted"},{"$f":"IFERROR(VLOOKUP(C1345,Descriptions!$B$6:$D$92,3,FALSE),\"\")","v":""},null,null,null,null,null,null,null,null,null,null,null,null,null,null,"General Fund",{"$f":"IFERROR(VLOOKUP(C1345,Descriptions!B:F,5,FALSE),\"N\")","v":"N"},true,"NTRUE",0,null,{"$f":"IFERROR(VLOOKUP(D1345,'Bank and Fund Details'!$B$14:$L$35,11,FALSE),\"N\")","v":"Y"},"NY"]
[null,null,null,"General Fund",null,null,null,null,null,{"$f":"VLOOKUP(D1346,'Bank and Fund Details'!$B$15:$D$36,3,FALSE)","v":0},{"$f":"VLOOKUP(D1346,'Bank and Fund Details'!$B$15:$C$36,2,FALSE)","v":"Unrestricted"},{"$f":"IFERROR(VLOOKUP(C1346,Descriptions!$B$6:$D$92,3,FALSE),\"\")","v":""},null,null,null,null,null,null,null,null,null,null,null,null,null,null,"General Fund",{"$f":"IFERROR(VLOOKUP(C1346,Descriptions!B:F,5,FALSE),\"N\")","v":"N"},true,"NTRUE",0,null,{"$f":"IFERROR(VLOOKUP(D1346,'Bank and Fund Details'!$B$14:$L$35,11,FALSE),\"N\")","v":"Y"},"NY"]
[null,null,null,"General Fund",null,null,null,null,null,{"$f":"VLOOKUP(D1347,'Bank and Fund Details'!$B$15:$D$36,3,FALSE)","v":0},{"$f":"VLOOKUP(D1347,'Bank and Fund Details'!$B$15:$C$36,2,FALSE)","v":"Unrestricted"},{"$f":"IFERROR(VLOOKUP(C1347,Descriptions!$B$6:$D$92,3,FALSE),\"\")","v":""},null,null,null,null,null,null,null,null,null,null,null,null,null,null,"General Fund",{"$f":"IFERROR(VLOOKUP(C1347,Descriptions!B:F,5,FALSE),\"N\")","v":"N"},true,"NTRUE",0,null,{"$f":"IFERROR(VLOOKUP(D1347,'Bank and Fund Details'!$B$14:$L$35,11,FALSE),\"N\")","v":"Y"},"NY"]
[null,null,null,"General Fund",null,null,null,null,null,{"$f":"VLOOKUP(D1348,'Bank and Fund Details'!$B$15:$D$36,3,FALSE)","v":0},{"$f":"VLOOKUP(D1348,'Bank and Fund Details'!$B$15:$C$36,2,FALSE)","v":"Unrestricted"},{"$f":"IFERROR(VLOOKUP(C1348,Descriptions!$B$6:$D$92,3,FALSE),\"\")","v":""},null,null,null,null,null,null,null,null,null,null,null,null,null,null,"General Fund",{"$f":"IFERROR(VLOOKUP(C1348,Descriptions!B:F,5,FALSE),\"N\")","v":"N"},true,"NTRUE",0,null,{"$f":"IFERROR(VLOOKUP(D1348,'Bank and Fund Details'!$B$14:$L$35,11,FALSE),\"N\")","v":"Y"},"NY"]
[null,null,null,"General Fund",null,null,null,null,null,{"$f":"VLOOKUP(D1349,'Bank and Fund Details'!$B$15:$D$36,3,FALSE)","v":0},{"$f":"VLOOKUP(D1349,'Bank and Fund Details'!$B$15:$C$36,2,FALSE)","v":"Unrestricted"},{"$f":"IFERROR(VLOOKUP(C1349,Descriptions!$B$6:$D$92,3,FALSE),\"\")","v":""},null,null,null,null,null,null,null,null,null,null,null,null,null,null,{"$f":"CONCATENATE(C1349,D1349)","v":"General Fund"},{"$f":"IFERROR(VLOOKUP(C1349,Descriptions!B:F,5,FALSE),\"N\")","v":"N"},{"$f":"ISBLANK(C1349)","v":true},{"$f":"CONCATENATE(AB1349,AC1349)","v":"NTRUE"},{"$f":"IF(AD1349=\"NFALSE\",1,0)","v":0},null,{"$f":"IFERROR(VLOOKUP(D1349,'Bank and Fund Details'!$B$14:$L$35,11,FALSE),\"N\")","v":"Y"},"NY"]
[null,null,null,"General Fund",null,null,null,null,null,{"$f":"VLOOKUP(D1350,'Bank and Fund Details'!$B$15:$D$36,3,FALSE)","v":0},{"$f":"VLOOKUP(D1350,'Bank and Fund Details'!$B$15:$C$36,2,FALSE)","v":"Unrestricted"},{"$f":"IFERROR(VLOOKUP(C1350,Descriptions!$B$6:$D$92,3,FALSE),\"\")","v":""},null,null,null,null,null,null,null,null,null,null,null,null,null,null,"General Fund",{"$f":"IFERROR(VLOOKUP(C1350,Descriptions!B:F,5,FALSE),\"N\")","v":"N"},true,"NTRUE",0,null,{"$f":"IFERROR(VLOOKUP(D1350,'Bank and Fund Details'!$B$14:$L$35,11,FALSE),\"N\")","v":"Y"},{"$f":"CONCATENATE(AB1350,AG1350)","v":"NY"}]
[null,null,null,"General Fund",null,null,null,null,null,{"$f":"VLOOKUP(D1351,'Bank and Fund Details'!$B$15:$D$36,3,FALSE)","v":0},{"$f":"VLOOKUP(D1351,'Bank and Fund Details'!$B$15:$C$36,2,FALSE)","v":"Unrestricted"},{"$f":"IFERROR(VLOOKUP(C1351,Descriptions!$B$6:$D$92,3,FALSE),\"\")","v":""},null,null,null,null,null,null,null,null,null,null,null,null,null,null,"General Fund",{"$f":"IFERROR(VLOOKUP(C1351,Descriptions!B:F,5,FALSE),\"N\")","v":"N"},true,"NTRUE",0,null,{"$f":"IFERROR(VLOOKUP(D1351,'Bank and Fund Details'!$B$14:$L$35,11,FALSE),\"N\")","v":"Y"},"NY"]
[null,null,null,"General Fund",null,null,null,null,null,{"$f":"VLOOKUP(D1352,'Bank and Fund Details'!$B$15:$D$36,3,FALSE)","v":0},{"$f":"VLOOKUP(D1352,'Bank and Fund Details'!$B$15:$C$36,2,FALSE)","v":"Unrestricted"},{"$f":"IFERROR(VLOOKUP(C1352,Descriptions!$B$6:$D$92,3,FALSE),\"\")","v":""},null,null,null,null,null,null,null,null,null,null,null,null,null,null,"General Fund",{"$f":"IFERROR(VLOOKUP(C1352,Descriptions!B:F,5,FALSE),\"N\")","v":"N"},true,"NTRUE",0,null,{"$f":"IFERROR(VLOOKUP(D1352,'Bank and Fund Details'!$B$14:$L$35,11,FALSE),\"N\")","v":"Y"},"NY"]
[null,null,null,"General Fund",null,null,null,null,null,{"$f":"VLOOKUP(D1353,'Bank and Fund Details'!$B$15:$D$36,3,FALSE)","v":0},{"$f":"VLOOKUP(D1353,'Bank and Fund Details'!$B$15:$C$36,2,FALSE)","v":"Unrestricted"},{"$f":"IFERROR(VLOOKUP(C1353,Descriptions!$B$6:$D$92,3,FALSE),\"\")","v":""},null,null,null,null,null,null,null,null,null,null,null,null,null,null,"General Fund",{"$f":"IFERROR(VLOOKUP(C1353,Descriptions!B:F,5,FALSE),\"N\")","v":"N"},true,"NTRUE",0,null,{"$f":"IFERROR(VLOOKUP(D1353,'Bank and Fund Details'!$B$14:$L$35,11,FALSE),\"N\")","v":"Y"},"NY"]
[null,null,null,"General Fund",null,null,null,null,null,{"$f":"VLOOKUP(D1354,'Bank and Fund Details'!$B$15:$D$36,3,FALSE)","v":0},{"$f":"VLOOKUP(D1354,'Bank and Fund Details'!$B$15:$C$36,2,FALSE)","v":"Unrestricted"},{"$f":"IFERROR(VLOOKUP(C1354,Descriptions!$B$6:$D$92,3,FALSE),\"\")","v":""},null,null,null,null,null,null,null,null,null,null,null,null,null,null,"General Fund",{"$f":"IFERROR(VLOOKUP(C1354,Descriptions!B:F,5,FALSE),\"N\")","v":"N"},true,"NTRUE",0,null,{"$f":"IFERROR(VLOOKUP(D1354,'Bank and Fund Details'!$B$14:$L$35,11,FALSE),\"N\")","v":"Y"},"NY"]
[null,null,null,"General Fund",null,null,null,null,null,{"$f":"VLOOKUP(D1355,'Bank and Fund Details'!$B$15:$D$36,3,FALSE)","v":0},{"$f":"VLOOKUP(D1355,'Bank and Fund Details'!$B$15:$C$36,2,FALSE)","v":"Unrestricted"},{"$f":"IFERROR(VLOOKUP(C1355,Descriptions!$B$6:$D$92,3,FALSE),\"\")","v":""},null,null,null,null,null,null,null,null,null,null,null,null,null,null,"General Fund",{"$f":"IFERROR(VLOOKUP(C1355,Descriptions!B:F,5,FALSE),\"N\")","v":"N"},true,"NTRUE",0,null,{"$f":"IFERROR(VLOOKUP(D1355,'Bank and Fund Details'!$B$14:$L$35,11,FALSE),\"N\")","v":"Y"},"NY"]
[null,"Total Parish Income",null,null,{"$f":"SUM($E$5:$E$1355)","v":0}]
[null,"Subtotal",null,null,{"$f":"SUBTOTAL(9,E5:E1355)","v":0},null,null,null,null,null,null,null,null,null,null,null,null,null,null,null,null,null,null,null,null,null,{"$f":"CONCATENATE(C1357,D1357)","v":""},{"$f":"IFERROR(VLOOKUP(C1357,Descriptions!B:F,5,FALSE),\"N\")","v":"N"},{"$f":"ISBLANK(C1357)","v":true},{"$f":"CONCATENATE(AB1357,AC1357)","v":"NTRUE"},{"$f":"IF(AD1357=\"NFALSE\",1,0)","v":0}]
[]
[null,null,null,null,null,null,null,null,null,null,null,null,null,null,null,null,null,null,null,null,null,null,null,null,null,null,null,null,null,null,{"$f":"SUM(AE5:AE1356)","v":0}]

{"sheet":"Payments","index":11,"n_rows":1357,"n_cols":34,"rows_kept":1357,"cut":false,"hidden":false,"merged":[[1356,1,1356,3],[1,1,1,6],[2,1,2,6],[1355,1,1355,3]]}
[]
[null,{"$f":"VLOOKUP('Name and Parish'!D13,Index!B:C,1,FALSE)","v":{"$error":"#N/A"}}]
[null,"Payments"]
["Bank Rec Check","Date","Description","Fund","Amount","Payment Reference","Additional Details","Description or Account Incorrect/Correct"]
[null,null,null,"General Fund",null,null,null,null,null,{"$f":"VLOOKUP(D5,'Bank and Fund Details'!$B$15:$D$36,3,FALSE)","v":0},{"$f":"VLOOKUP(D5,'Bank and Fund Details'!$B$15:$C$36,2,FALSE)","v":"Unrestricted"},{"$f":"IFERROR(VLOOKUP(C5,Descriptions!$I$6:$K$92,3,FALSE),\"\")","v":""},null,null,null,null,null,null,null,null,null,null,null,null,null,null,{"$f":"CONCATENATE(C5,D5)","v":"General Fund"},null,{"$f":"IFERROR(VLOOKUP(C5,Descriptions!I:M,5,FALSE),\"N\")","v":"N"},{"$f":"ISBLANK(C5)","v":true},{"$f":"CONCATENATE(AC5,AD5)","v":"NTRUE"},{"$f":"IF(AE5=\"NFALSE\",1,0)","v":0},{"$f":"IFERROR(VLOOKUP(D5,'Bank and Fund Details'!$B$14:$L$35,11,FALSE),\"N\")","v":"Y"},{"$f":"CONCATENATE(AC5,AG5)","v":"NY"}]
[null,null,null,"General Fund",null,null,null,null,null,{"$f":"VLOOKUP(D6,'Bank and Fund Details'!$B$15:$D$36,3,FALSE)","v":0},{"$f":"VLOOKUP(D6,'Bank and Fund Details'!$B$15:$C$36,2,FALSE)","v":"Unrestricted"},{"$f":"IFERROR(VLOOKUP(C6,Descriptions!$I$6:$K$92,3,FALSE),\"\")","v":""},null,null,null,null,null,null,null,null,null,null,null,null,null,null,{"$f":"CONCATENATE(C6,D6)","v":"General Fund"},null,{"$f":"IFERROR(VLOOKUP(C6,Descriptions!I:M,5,FALSE),\"N\")","v":"N"},{"$f":"ISBLANK(C6)","v":true},{"$f":"CONCATENATE(AC6,AD6)","v":"NTRUE"},{"$f":"IF(AE6=\"NFALSE\",1,0)","v":0},{"$f":"IFERROR(VLOOKUP(D6,'Bank and Fund Details'!$B$14:$L$35,11,FALSE),\"N\")","v":"Y"},{"$f":"CONCATENATE(AC6,AG6)","v":"NY"}]
[null,null,null,"General Fund",null,null,null,null,null,{"$f":"VLOOKUP(D7,'Bank and Fund Details'!$B$15:$D$36,3,FALSE)","v":0},{"$f":"VLOOKUP(D7,'Bank and Fund Details'!$B$15:$C$36,2,FALSE)","v":"Unrestricted"},{"$f":"IFERROR(VLOOKUP(C7,Descriptions!$I$6:$K$92,3,FALSE),\"\")","v":""},null,null,null,null,null,null,null,null,null,null,null,null,null,null,"General Fund",null,{"$f":"IFERROR(VLOOKUP(C7,Descriptions!I:M,5,FALSE),\"N\")","v":"N"},true,"NTRUE",0,{"$f":"IFERROR(VLOOKUP(D7,'Bank and Fund Details'!$B$14:$L$35,11,FALSE),\"N\")","v":"Y"},"NY"]
[null,null,null,"General Fund",null,null,null,null,null,{"$f":"VLOOKUP(D8,'Bank and Fund Details'!$B$15:$D$36,3,FALSE)","v":0},{"$f":"VLOOKUP(D8,'Bank and Fund Details'!$B$15:$C$36,2,FALSE)","v":"Unrestricted"},{"$f":"IFERROR(VLOOKUP(C8,Descriptions!$I$6:$K$92,3,FALSE),\"\")","v":""},null,null,null,null,null,null,null,null,null,null,null,null,null,null,"General Fund",null,{"$f":"IFERROR(VLOOKUP(C8,Descriptions!I:M,5,FALSE),\"N\")","v":"N"},true,"NTRUE",0,{"$f":"IFERROR(VLOOKUP(D8,'Bank and Fund Details'!$B$14:$L$35,11,FALSE),\"N\")","v":"Y"},"NY"]
[null,null,null,"General Fund",null,null,null,null,null,{"$f":"VLOOKUP(D9,'Bank and Fund Details'!$B$15:$D$36,3,FALSE)","v":0},{"$f":"VLOOKUP(D9,'Bank and Fund Details'!$B$15:$C$36,2,FALSE)","v":"Unrestricted"},{"$f":"IFERROR(VLOOKUP(C9,Descriptions!$I$6:$K$92,3,FALSE),\"\")","v":""},null,null,null,null,null,null,null,null,null,null,null,null,null,null,"General Fund",null,{"$f":"IFERROR(VLOOKUP(C9,Descriptions!I:M,5,FALSE),\"N\")","v":"N"},true,"NTRUE",0,{"$f":"IFERROR(VLOOKUP(D9,'Bank and Fund Details'!$B$14:$L$35,11,FALSE),\"N\")","v":"Y"},"NY"]
[null,null,null,"General Fund",null,null,null,null,null,{"$f":"VLOOKUP(D10,'Bank and Fund Details'!$B$15:$D$36,3,FALSE)","v":0},{"$f":"VLOOKUP(D10,'Bank and Fund Details'!$B$15:$C$36,2,FALSE)","v":"Unrestricted"},{"$f":"IFERROR(VLOOKUP(C10,Descriptions!$I$6:$K$92,3,FALSE),\"\")","v":""},null,null,null,null,null,null,null,null,null,null,null,null,null,null,"General Fund",null,{"$f":"IFERROR(VLOOKUP(C10,Descriptions!I:M,5,FALSE),\"N\")","v":"N"},true,"NTRUE",0,{"$f":"IFERROR(VLOOKUP(D10,'Bank and Fund Details'!$B$14:$L$35,11,FALSE),\"N\")","v":"Y"},"NY"]
[null,null,null,"General Fund",null,null,null,null,null,{"$f":"VLOOKUP(D11,'Bank and Fund Details'!$B$15:$D$36,3,FALSE)","v":0},{"$f":"VLOOKUP(D11,'Bank and Fund Details'!$B$15:$C$36,2,FALSE)","v":"Unrestricted"},{"$f":"IFERROR(VLOOKUP(C11,Descriptions!$I$6:$K$92,3,FALSE),\"\")","v":""},null,null,null,null,null,null,null,null,null,null,null,null,null,null,"General Fund",null,{"$f":"IFERROR(VLOOKUP(C11,Descriptions!I:M,5,FALSE),\"N\")","v":"N"},true,"NTRUE",0,{"$f":"IFERROR(VLOOKUP(D11,'Bank and Fund Details'!$B$14:$L$35,11,FALSE),\"N\")","v":"Y"},"NY"]
[null,null,null,"General Fund",null,null,null,null,null,{"$f":"VLOOKUP(D12,'Bank and Fund Details'!$B$15:$D$36,3,FALSE)","v":0},{"$f":"VLOOKUP(D12,'Bank and Fund Details'!$B$15:$C$36,2,FALSE)","v":"Unrestricted"},{"$f":"IFERROR(VLOOKUP(C12,Descriptions!$I$6:$K$92,3,FALSE),\"\")","v":""},null,null,null,null,null,null,null,null,null,null,null,null,null,null,"General Fund",null,{"$f":"IFERROR(VLOOKUP(C12,Descriptions!I:M,5,FALSE),\"N\")","v":"N"},true,"NTRUE",0,{"$f":"IFERROR(VLOOKUP(D12,'Bank and Fund Details'!$B$14:$L$35,11,FALSE),\"N\")","v":"Y"},"NY"]
[null,null,null,"General Fund",null,null,null,null,null,{"$f":"VLOOKUP(D13,'Bank and Fund Details'!$B$15:$D$36,3,FALSE)","v":0},{"$f":"VLOOKUP(D13,'Bank and Fund Details'!$B$15:$C$36,2,FALSE)","v":"Unrestricted"},{"$f":"IFERROR(VLOOKUP(C13,Descriptions!$I$6:$K$92,3,FALSE),\"\")","v":""},null,null,null,null,null,null,null,null,null,null,null,null,null,null,"General Fund",null,{"$f":"IFERROR(VLOOKUP(C13,Descriptions!I:M,5,FALSE),\"N\")","v":"N"},true,"NTRUE",0,{"$f":"IFERROR(VLOOKUP(D13,'Bank and Fund Details'!$B$14:$L$35,11,FALSE),\"N\")","v":"Y"},"NY"]
[null,null,null,"General Fund",null,null,null,null,null,{"$f":"VLOOKUP(D14,'Bank and Fund Details'!$B$15:$D$36,3,FALSE)","v":0},{"$f":"VLOOKUP(D14,'Bank and Fund Details'!$B$15:$C$36,2,FALSE)","v":"Unrestricted"},{"$f":"IFERROR(VLOOKUP(C14,Descriptions!$I$6:$K$92,3,FALSE),\"\")","v":""},null,null,null,null,null,null,null,null,null,null,null,null,null,null,"General Fund",null,{"$f":"IFERROR(VLOOKUP(C14,Descriptions!I:M,5,FALSE),\"N\")","v":"N"},true,"NTRUE",0,{"$f":"IFERROR(VLOOKUP(D14,'Bank and Fund Details'!$B$14:$L$35,11,FALSE),\"N\")","v":"Y"},"NY"]
[null,null,null,"General Fund",null,null,null,null,null,{"$f":"VLOOKUP(D15,'Bank and Fund Details'!$B$15:$D$36,3,FALSE)","v":0},{"$f":"VLOOKUP(D15,'Bank and Fund Details'!$B$15:$C$36,2,FALSE)","v":"Unrestricted"},{"$f":"IFERROR(VLOOKUP(C15,Descriptions!$I$6:$K$92,3,FALSE),\"\")","v":""},null,null,null,null,null,null,null,null,null,null,null,null,null,null,"General Fund",null,{"$f":"IFERROR(VLOOKUP(C15,Descriptions!I:M,5,FALSE),\"N\")","v":"N"},true,"NTRUE",0,{"$f":"IFERROR(VLOOKUP(D15,'Bank and Fund Details'!$B$14:$L$35,11,FALSE),\"N\")","v":"Y"},"NY"]
[null,null,null,"General Fund",null,null,null,null,null,{"$f":"VLOOKUP(D16,'Bank and Fund Details'!$B$15:$D$36,3,FALSE)","v":0},{"$f":"VLOOKUP(D16,'Bank and Fund Details'!$B$15:$C$36,2,FALSE)","v":"Unrestricted"},{"$f":"IFERROR(VLOOKUP(C16,Descriptions!$I$6:$K$92,3,FALSE),\"\")","v":""},null,null,null,null,null,null,null,null,null,null,null,null,null,null,"General Fund",null,{"$f":"IFERROR(VLOOKUP(C16,Descriptions!I:M,5,FALSE),\"N\")","v":"N"},true,"NTRUE",0,{"$f":"IFERROR(VLOOKUP(D16,'Bank and Fund Details'!$B$14:$L$35,11,FALSE),\"N\")","v":"Y"},"NY"]
[null,null,null,"General Fund",null,null,null,null,null,{"$f":"VLOOKUP(D17,'Bank and Fund Details'!$B$15:$D$36,3,FALSE)","v":0},{"$f":"VLOOKUP(D17,'Bank and Fund Details'!$B$15:$C$36,2,FALSE)","v":"Unrestricted"},{"$f":"IFERROR(VLOOKUP(C17,Descriptions!$I$6:$K$92,3,FALSE),\"\")","v":""},null,null,null,null,null,null,null,null,null,null,null,null,null,null,"General Fund",null,{"$f":"IFERROR(VLOOKUP(C17,Descriptions!I:M,5,FALSE),\"N\")","v":"N"},true,"NTRUE",0,{"$f":"IFERROR(VLOOKUP(D17,'Bank and Fund Details'!$B$14:$L$35,11,FALSE),\"N\")","v":"Y"},"NY"]
[null,null,null,"General Fund",null,null,null,null,null,{"$f":"VLOOKUP(D18,'Bank and Fund Details'!$B$15:$D$36,3,FALSE)","v":0},{"$f":"VLOOKUP(D18,'Bank and Fund Details'!$B$15:$C$36,2,FALSE)","v":"Unrestricted"},{"$f":"IFERROR(VLOOKUP(C18,Descriptions!$I$6:$K$92,3,FALSE),\"\")","v":""},null,null,null,null,null,null,null,null,null,null,null,null,null,null,"General Fund",null,{"$f":"IFERROR(VLOOKUP(C18,Descriptions!I:M,5,FALSE),\"N\")","v":"N"},true,"NTRUE",0,{"$f":"IFERROR(VLOOKUP(D18,'Bank and Fund Details'!$B$14:$L$35,11,FALSE),\"N\")","v":"Y"},"NY"]
[null,null,null,"General Fund",null,null,null,null,null,{"$f":"VLOOKUP(D19,'Bank and Fund Details'!$B$15:$D$36,3,FALSE)","v":0},{"$f":"VLOOKUP(D19,'Bank and Fund Details'!$B$15:$C$36,2,FALSE)","v":"Unrestricted"},{"$f":"IFERROR(VLOOKUP(C19,Descriptions!$I$6:$K$92,3,FALSE),\"\")","v":""},null,null,null,null,null,null,null,null,null,null,null,null,null,null,"General Fund",null,{"$f":"IFERROR(VLOOKUP(C19,Descriptions!I:M,5,FALSE),\"N\")","v":"N"},true,"NTRUE",0,{"$f":"IFERROR(VLOOKUP(D19,'Bank and Fund Details'!$B$14:$L$35,11,FALSE),\"N\")","v":"Y"},"NY"]
[null,null,null,"General Fund",null,null,null,null,null,{"$f":"VLOOKUP(D20,'Bank and Fund Details'!$B$15:$D$36,3,FALSE)","v":0},{"$f":"VLOOKUP(D20,'Bank and Fund Details'!$B$15:$C$36,2,FALSE)","v":"Unrestricted"},{"$f":"IFERROR(VLOOKUP(C20,Descriptions!$I$6:$K$92,3,FALSE),\"\")","v":""},null,null,null,null,null,null,null,null,null,null,null,null,null,null,"General Fund",null,{"$f":"IFERROR(VLOOKUP(C20,Descriptions!I:M,5,FALSE),\"N\")","v":"N"},true,"NTRUE",0,{"$f":"IFERROR(VLOOKUP(D20,'Bank and Fund Details'!$B$14:$L$35,11,FALSE),\"N\")","v":"Y"},"NY"]
[null,null,null,"General Fund",null,null,null,null,null,{"$f":"VLOOKUP(D21,'Bank and Fund Details'!$B$15:$D$36,3,FALSE)","v":0},{"$f":"VLOOKUP(D21,'Bank and Fund Details'!$B$15:$C$36,2,FALSE)","v":"Unrestricted"},{"$f":"IFERROR(VLOOKUP(C21,Descriptions!$I$6:$K$92,3,FALSE),\"\")","v":""},null,null,null,null,null,null,null,null,null,null,null,null,null,null,"General Fund",null,{"$f":"IFERROR(VLOOKUP(C21,Descriptions!I:M,5,FALSE),\"N\")","v":"N"},true,"NTRUE",0,{"$f":"IFERROR(VLOOKUP(D21,'Bank and Fund Details'!$B$14:$L$35,11,FALSE),\"N\")","v":"Y"},"NY"]
[null,null,null,"General Fund",null,null,null,null,null,{"$f":"VLOOKUP(D22,'Bank and Fund Details'!$B$15:$D$36,3,FALSE)","v":0},{"$f":"VLOOKUP(D22,'Bank and Fund Details'!$B$15:$C$36,2,FALSE)","v":"Unrestricted"},{"$f":"IFERROR(VLOOKUP(C22,Descriptions!$I$6:$K$92,3,FALSE),\"\")","v":""},null,null,null,null,null,null,null,null,null,null,null,null,null,null,"General Fund",null,{"$f":"IFERROR(VLOOKUP(C22,Descriptions!I:M,5,FALSE),\"N\")","v":"N"},true,"NTRUE",0,{"$f":"IFERROR(VLOOKUP(D22,'Bank and Fund Details'!$B$14:$L$35,11,FALSE),\"N\")","v":"Y"},"NY"]
[null,null,null,"General Fund",null,null,null,null,null,{"$f":"VLOOKUP(D23,'Bank and Fund Details'!$B$15:$D$36,3,FALSE)","v":0},{"$f":"VLOOKUP(D23,'Bank and Fund Details'!$B$15:$C$36,2,FALSE)","v":"Unrestricted"},{"$f":"IFERROR(VLOOKUP(C23,Descriptions!$I$6:$K$92,3,FALSE),\"\")","v":""},null,null,null,null,null,null,null,null,null,null,null,null,null,null,"General Fund",null,{"$f":"IFERROR(VLOOKUP(C23,Descriptions!I:M,5,FALSE),\"N\")","v":"N"},true,"NTRUE",0,{"$f":"IFERROR(VLOOKUP(D23,'Bank and Fund Details'!$B$14:$L$35,11,FALSE),\"N\")","v":"Y"},"NY"]
[null,null,null,"General Fund",null,null,null,null,null,{"$f":"VLOOKUP(D24,'Bank and Fund Details'!$B$15:$D$36,3,FALSE)","v":0},{"$f":"VLOOKUP(D24,'Bank and Fund Details'!$B$15:$C$36,2,FALSE)","v":"Unrestricted"},{"$f":"IFERROR(VLOOKUP(C24,Descriptions!$I$6:$K$92,3,FALSE),\"\")","v":""},null,null,null,null,null,null,null,null,null,null,null,null,null,null,"General Fund",null,{"$f":"IFERROR(VLOOKUP(C24,Descriptions!I:M,5,FALSE),\"N\")","v":"N"},true,"NTRUE",0,{"$f":"IFERROR(VLOOKUP(D24,'Bank and Fund Details'!$B$14:$L$35,11,FALSE),\"N\")","v":"Y"},"NY"]
[null,null,null,"General Fund",null,null,null,null,null,{"$f":"VLOOKUP(D25,'Bank and Fund Details'!$B$15:$D$36,3,FALSE)","v":0},{"$f":"VLOOKUP(D25,'Bank and Fund Details'!$B$15:$C$36,2,FALSE)","v":"Unrestricted"},{"$f":"IFERROR(VLOOKUP(C25,Descriptions!$I$6:$K$92,3,FALSE),\"\")","v":""},null,null,null,null,null,null,null,null,null,null,null,null,null,null,"General Fund",null,{"$f":"IFERROR(VLOOKUP(C25,Descriptions!I:M,5,FALSE),\"N\")","v":"N"},true,"NTRUE",0,{"$f":"IFERROR(VLOOKUP(D25,'Bank and Fund Details'!$B$14:$L$35,11,FALSE),\"N\")","v":"Y"},"NY"]
[null,null,null,"General Fund",null,null,null,null,null,{"$f":"VLOOKUP(D26,'Bank and Fund Details'!$B$15:$D$36,3,FALSE)","v":0},{"$f":"VLOOKUP(D26,'Bank and Fund Details'!$B$15:$C$36,2,FALSE)","v":"Unrestricted"},{"$f":"IFERROR(VLOOKUP(C26,Descriptions!$I$6:$K$92,3,FALSE),\"\")","v":""},null,null,null,null,null,null,null,null,null,null,null,null,null,null,"General Fund",null,{"$f":"IFERROR(VLOOKUP(C26,Descriptions!I:M,5,FALSE),\"N\")","v":"N"},true,"NTRUE",0,{"$f":"IFERROR(VLOOKUP(D26,'Bank and Fund Details'!$B$14:$L$35,11,FALSE),\"N\")","v":"Y"},"NY"]
[null,null,null,"General Fund",null,null,null,null,null,{"$f":"VLOOKUP(D27,'Bank and Fund Details'!$B$15:$D$36,3,FALSE)","v":0},{"$f":"VLOOKUP(D27,'Bank and Fund Details'!$B$15:$C$36,2,FALSE)","v":"Unrestricted"},{"$f":"IFERROR(VLOOKUP(C27,Descriptions!$I$6:$K$92,3,FALSE),\"\")","v":""},null,null,null,null,null,null,null,null,null,null,null,null,null,null,"General Fund",null,{"$f":"IFERROR(VLOOKUP(C27,Descriptions!I:M,5,FALSE),\"N\")","v":"N"},true,"NTRUE",0,{"$f":"IFERROR(VLOOKUP(D27,'Bank and Fund Details'!$B$14:$L$35,11,FALSE),\"N\")","v":"Y"},"NY"]
[null,null,null,"General Fund",null,null,null,null,null,{"$f":"VLOOKUP(D28,'Bank and Fund Details'!$B$15:$D$36,3,FALSE)","v":0},{"$f":"VLOOKUP(D28,'Bank and Fund Details'!$B$15:$C$36,2,FALSE)","v":"Unrestricted"},{"$f":"IFERROR(VLOOKUP(C28,Descriptions!$I$6:$K$92,3,FALSE),\"\")","v":""},null,null,null,null,null,null,null,null,null,null,null,null,null,null,"General Fund",null,{"$f":"IFERROR(VLOOKUP(C28,Descriptions!I:M,5,FALSE),\"N\")","v":"N"},true,"NTRUE",0,{"$f":"IFERROR(VLOOKUP(D28,'Bank and Fund Details'!$B$14:$L$35,11,FALSE),\"N\")","v":"Y"},"NY"]
[null,null,null,"General Fund",null,null,null,null,null,{"$f":"VLOOKUP(D29,'Bank and Fund Details'!$B$15:$D$36,3,FALSE)","v":0},{"$f":"VLOOKUP(D29,'Bank and Fund Details'!$B$15:$C$36,2,FALSE)","v":"Unrestricted"},{"$f":"IFERROR(VLOOKUP(C29,Descriptions!$I$6:$K$92,3,FALSE),\"\")","v":""},null,null,null,null,null,null,null,null,null,null,null,null,null,null,"General Fund",null,{"$f":"IFERROR(VLOOKUP(C29,Descriptions!I:M,5,FALSE),\"N\")","v":"N"},true,"NTRUE",0,{"$f":"IFERROR(VLOOKUP(D29,'Bank and Fund Details'!$B$14:$L$35,11,FALSE),\"N\")","v":"Y"},"NY"]
[null,null,null,"General Fund",null,null,null,null,null,{"$f":"VLOOKUP(D30,'Bank and Fund Details'!$B$15:$D$36,3,FALSE)","v":0},{"$f":"VLOOKUP(D30,'Bank and Fund Details'!$B$15:$C$36,2,FALSE)","v":"Unrestricted"},{"$f":"IFERROR(VLOOKUP(C30,Descriptions!$I$6:$K$92,3,FALSE),\"\")","v":""},null,null,null,null,null,null,null,null,null,null,null,null,null,null,"General Fund",null,{"$f":"IFERROR(VLOOKUP(C30,Descriptions!I:M,5,FALSE),\"N\")","v":"N"},true,"NTRUE",0,{"$f":"IFERROR(VLOOKUP(D30,'Bank and Fund Details'!$B$14:$L$35,11,FALSE),\"N\")","v":"Y"},"NY"]
[null,null,null,"General Fund",null,null,null,null,null,{"$f":"VLOOKUP(D31,'Bank and Fund Details'!$B$15:$D$36,3,FALSE)","v":0},{"$f":"VLOOKUP(D31,'Bank and Fund Details'!$B$15:$C$36,2,FALSE)","v":"Unrestricted"},{"$f":"IFERROR(VLOOKUP(C31,Descriptions!$I$6:$K$92,3,FALSE),\"\")","v":""},null,null,null,null,null,null,null,null,null,null,null,null,null,null,"General Fund",null,{"$f":"IFERROR(VLOOKUP(C31,Descriptions!I:M,5,FALSE),\"N\")","v":"N"},true,"NTRUE",0,{"$f":"IFERROR(VLOOKUP(D31,'Bank and Fund Details'!$B$14:$L$35,11,FALSE),\"N\")","v":"Y"},"NY"]
[null,null,null,"General Fund",null,null,null,null,null,{"$f":"VLOOKUP(D32,'Bank and Fund Details'!$B$15:$D$36,3,FALSE)","v":0},{"$f":"VLOOKUP(D32,'Bank and Fund Details'!$B$15:$C$36,2,FALSE)","v":"Unrestricted"},{"$f":"IFERROR(VLOOKUP(C32,Descriptions!$I$6:$K$92,3,FALSE),\"\")","v":""},null,null,null,null,null,null,null,null,null,null,null,null,null,null,"General Fund",null,{"$f":"IFERROR(VLOOKUP(C32,Descriptions!I:M,5,FALSE),\"N\")","v":"N"},true,"NTRUE",0,{"$f":"IFERROR(VLOOKUP(D32,'Bank and Fund Details'!$B$14:$L$35,11,FALSE),\"N\")","v":"Y"},"NY"]
[null,null,null,"General Fund",null,null,null,null,null,{"$f":"VLOOKUP(D33,'Bank and Fund Details'!$B$15:$D$36,3,FALSE)","v":0},{"$f":"VLOOKUP(D33,'Bank and Fund Details'!$B$15:$C$36,2,FALSE)","v":"Unrestricted"},{"$f":"IFERROR(VLOOKUP(C33,Descriptions!$I$6:$K$92,3,FALSE),\"\")","v":""},null,null,null,null,null,null,null,null,null,null,null,null,null,null,"General Fund",null,{"$f":"IFERROR(VLOOKUP(C33,Descriptions!I:M,5,FALSE),\"N\")","v":"N"},true,"NTRUE",0,{"$f":"IFERROR(VLOOKUP(D33,'Bank and Fund Details'!$B$14:$L$35,11,FALSE),\"N\")","v":"Y"},"NY"]
[null,null,null,"General Fund",null,null,null,null,null,{"$f":"VLOOKUP(D34,'Bank and Fund Details'!$B$15:$D$36,3,FALSE)","v":0},{"$f":"VLOOKUP(D34,'Bank and Fund Details'!$B$15:$C$36,2,FALSE)","v":"Unrestricted"},{"$f":"IFERROR(VLOOKUP(C34,Descriptions!$I$6:$K$92,3,FALSE),\"\")","v":""},null,null,null,null,null,null,null,null,null,null,null,null,null,null,"General Fund",null,{"$f":"IFERROR(VLOOKUP(C34,Descriptions!I:M,5,FALSE),\"N\")","v":"N"},true,"NTRUE",0,{"$f":"IFERROR(VLOOKUP(D34,'Bank and Fund Details'!$B$14:$L$35,11,FALSE),\"N\")","v":"Y"},"NY"]
[null,null,null,"General Fund",null,null,null,null,null,{"$f":"VLOOKUP(D35,'Bank and Fund Details'!$B$15:$D$36,3,FALSE)","v":0},{"$f":"VLOOKUP(D35,'Bank and Fund Details'!$B$15:$C$36,2,FALSE)","v":"Unrestricted"},{"$f":"IFERROR(VLOOKUP(C35,Descriptions!$I$6:$K$92,3,FALSE),\"\")","v":""},null,null,null,null,null,null,null,null,null,null,null,null,null,null,"General Fund",null,{"$f":"IFERROR(VLOOKUP(C35,Descriptions!I:M,5,FALSE),\"N\")","v":"N"},true,"NTRUE",0,{"$f":"IFERROR(VLOOKUP(D35,'Bank and Fund Details'!$B$14:$L$35,11,FALSE),\"N\")","v":"Y"},"NY"]
[null,null,null,"General Fund",null,null,null,null,null,{"$f":"VLOOKUP(D36,'Bank and Fund Details'!$B$15:$D$36,3,FALSE)","v":0},{"$f":"VLOOKUP(D36,'Bank and Fund Details'!$B$15:$C$36,2,FALSE)","v":"Unrestricted"},{"$f":"IFERROR(VLOOKUP(C36,Descriptions!$I$6:$K$92,3,FALSE),\"\")","v":""},null,null,null,null,null,null,null,null,null,null,null,null,null,null,"General Fund",null,{"$f":"IFERROR(VLOOKUP(C36,Descriptions!I:M,5,FALSE),\"N\")","v":"N"},true,"NTRUE",0,{"$f":"IFERROR(VLOOKUP(D36,'Bank and Fund Details'!$B$14:$L$35,11,FALSE),\"N\")","v":"Y"},"NY"]
[null,null,null,"General Fund",null,null,null,null,null,{"$f":"VLOOKUP(D37,'Bank and Fund Details'!$B$15:$D$36,3,FALSE)","v":0},{"$f":"VLOOKUP(D37,'Bank and Fund Details'!$B$15:$C$36,2,FALSE)","v":"Unrestricted"},{"$f":"IFERROR(VLOOKUP(C37,Descriptions!$I$6:$K$92,3,FALSE),\"\")","v":""},null,null,null,null,null,null,null,null,null,null,null,null,null,null,"General Fund",null,{"$f":"IFERROR(VLOOKUP(C37,Descriptions!I:M,5,FALSE),\"N\")","v":"N"},true,"NTRUE",0,{"$f":"IFERROR(VLOOKUP(D37,'Bank and Fund Details'!$B$14:$L$35,11,FALSE),\"N\")","v":"Y"},"NY"]
[null,null,null,"General Fund",null,null,null,null,null,{"$f":"VLOOKUP(D38,'Bank and Fund Details'!$B$15:$D$36,3,FALSE)","v":0},{"$f":"VLOOKUP(D38,'Bank and Fund Details'!$B$15:$C$36,2,FALSE)","v":"Unrestricted"},{"$f":"IFERROR(VLOOKUP(C38,Descriptions!$I$6:$K$92,3,FALSE),\"\")","v":""},null,null,null,null,null,null,null,null,null,null,null,null,null,null,"General Fund",null,{"$f":"IFERROR(VLOOKUP(C38,Descriptions!I:M,5,FALSE),\"N\")","v":"N"},true,"NTRUE",0,{"$f":"IFERROR(VLOOKUP(D38,'Bank and Fund Details'!$B$14:$L$35,11,FALSE),\"N\")","v":"Y"},"NY"]
[null,null,null,"General Fund",null,null,null,null,null,{"$f":"VLOOKUP(D39,'Bank and Fund Details'!$B$15:$D$36,3,FALSE)","v":0},{"$f":"VLOOKUP(D39,'Bank and Fund Details'!$B$15:$C$36,2,FALSE)","v":"Unrestricted"},{"$f":"IFERROR(VLOOKUP(C39,Descriptions!$I$6:$K$92,3,FALSE),\"\")","v":""},null,null,null,null,null,null,null,null,null,null,null,null,null,null,"General Fund",null,{"$f":"IFERROR(VLOOKUP(C39,Descriptions!I:M,5,FALSE),\"N\")","v":"N"},true,"NTRUE",0,{"$f":"IFERROR(VLOOKUP(D39,'Bank and Fund Details'!$B$14:$L$35,11,FALSE),\"N\")","v":"Y"},"NY"]
[null,null,null,"General Fund",null,null,null,null,null,{"$f":"VLOOKUP(D40,'Bank and Fund Details'!$B$15:$D$36,3,FALSE)","v":0},{"$f":"VLOOKUP(D40,'Bank and Fund Details'!$B$15:$C$36,2,FALSE)","v":"Unrestricted"},{"$f":"IFERROR(VLOOKUP(C40,Descriptions!$I$6:$K$92,3,FALSE),\"\")","v":""},null,null,null,null,null,null,null,null,null,null,null,null,null,null,"General Fund",null,{"$f":"IFERROR(VLOOKUP(C40,Descriptions!I:M,5,FALSE),\"N\")","v":"N"},true,"NTRUE",0,{"$f":"IFERROR(VLOOKUP(D40,'Bank and Fund Details'!$B$14:$L$35,11,FALSE),\"N\")","v":"Y"},"NY"]
[null,null,null,"General Fund",null,null,null,null,null,{"$f":"VLOOKUP(D41,'Bank and Fund Details'!$B$15:$D$36,3,FALSE)","v":0},{"$f":"VLOOKUP(D41,'Bank and Fund Details'!$B$15:$C$36,2,FALSE)","v":"Unrestricted"},{"$f":"IFERROR(VLOOKUP(C41,Descriptions!$I$6:$K$92,3,FALSE),\"\")","v":""},null,null,null,null,null,null,null,null,null,null,null,null,null,null,"General Fund",null,{"$f":"IFERROR(VLOOKUP(C41,Descriptions!I:M,5,FALSE),\"N\")","v":"N"},true,"NTRUE",0,{"$f":"IFERROR(VLOOKUP(D41,'Bank and Fund Details'!$B$14:$L$35,11,FALSE),\"N\")","v":"Y"},"NY"]
[null,null,null,"General Fund",null,null,null,null,null,{"$f":"VLOOKUP(D42,'Bank and Fund Details'!$B$15:$D$36,3,FALSE)","v":0},{"$f":"VLOOKUP(D42,'Bank and Fund Details'!$B$15:$C$36,2,FALSE)","v":"Unrestricted"},{"$f":"IFERROR(VLOOKUP(C42,Descriptions!$I$6:$K$92,3,FALSE),\"\")","v":""},null,null,null,null,null,null,null,null,null,null,null,null,null,null,"General Fund",null,{"$f":"IFERROR(VLOOKUP(C42,Descriptions!I:M,5,FALSE),\"N\")","v":"N"},true,"NTRUE",0,{"$f":"IFERROR(VLOOKUP(D42,'Bank and Fund Details'!$B$14:$L$35,11,FALSE),\"N\")","v":"Y"},"NY"]
[null,null,null,"General Fund",null,null,null,null,null,{"$f":"VLOOKUP(D43,'Bank and Fund Details'!$B$15:$D$36,3,FALSE)","v":0},{"$f":"VLOOKUP(D43,'Bank and Fund Details'!$B$15:$C$36,2,FALSE)","v":"Unrestricted"},{"$f":"IFERROR(VLOOKUP(C43,Descriptions!$I$6:$K$92,3,FALSE),\"\")","v":""},null,null,null,null,null,null,null,null,null,null,null,null,null,null,"General Fund",null,{"$f":"IFERROR(VLOOKUP(C43,Descriptions!I:M,5,FALSE),\"N\")","v":"N"},true,"NTRUE",0,{"$f":"IFERROR(VLOOKUP(D43,'Bank and Fund Details'!$B$14:$L$35,11,FALSE),\"N\")","v":"Y"},"NY"]
[null,null,null,"General Fund",null,null,null,null,null,{"$f":"VLOOKUP(D44,'Bank and Fund Details'!$B$15:$D$36,3,FALSE)","v":0},{"$f":"VLOOKUP(D44,'Bank and Fund Details'!$B$15:$C$36,2,FALSE)","v":"Unrestricted"},{"$f":"IFERROR(VLOOKUP(C44,Descriptions!$I$6:$K$92,3,FALSE),\"\")","v":""},null,null,null,null,null,null,null,null,null,null,null,null,null,null,"General Fund",null,{"$f":"IFERROR(VLOOKUP(C44,Descriptions!I:M,5,FALSE),\"N\")","v":"N"},true,"NTRUE",0,{"$f":"IFERROR(VLOOKUP(D44,'Bank and Fund Details'!$B$14:$L$35,11,FALSE),\"N\")","v":"Y"},"NY"]
[null,null,null,"General Fund",null,null,null,null,null,{"$f":"VLOOKUP(D45,'Bank and Fund Details'!$B$15:$D$36,3,FALSE)","v":0},{"$f":"VLOOKUP(D45,'Bank and Fund Details'!$B$15:$C$36,2,FALSE)","v":"Unrestricted"},{"$f":"IFERROR(VLOOKUP(C45,Descriptions!$I$6:$K$92,3,FALSE),\"\")","v":""},null,null,null,null,null,null,null,null,null,null,null,null,null,null,"General Fund",null,{"$f":"IFERROR(VLOOKUP(C45,Descriptions!I:M,5,FALSE),\"N\")","v":"N"},true,"NTRUE",0,{"$f":"IFERROR(VLOOKUP(D45,'Bank and Fund Details'!$B$14:$L$35,11,FALSE),\"N\")","v":"Y"},"NY"]
[null,null,null,"General Fund",null,null,null,null,null,{"$f":"VLOOKUP(D46,'Bank and Fund Details'!$B$15:$D$36,3,FALSE)","v":0},{"$f":"VLOOKUP(D46,'Bank and Fund Details'!$B$15:$C$36,2,FALSE)","v":"Unrestricted"},{"$f":"IFERROR(VLOOKUP(C46,Descriptions!$I$6:$K$92,3,FALSE),\"\")","v":""},null,null,null,null,null,null,null,null,null,null,null,null,null,null,"General Fund",null,{"$f":"IFERROR(VLOOKUP(C46,Descriptions!I:M,5,FALSE),\"N\")","v":"N"},true,"NTRUE",0,{"$f":"IFERROR(VLOOKUP(D46,'Bank and Fund Details'!$B$14:$L$35,11,FALSE),\"N\")","v":"Y"},"NY"]
[null,null,null,"General Fund",null,null,null,null,null,{"$f":"VLOOKUP(D47,'Bank and Fund Details'!$B$15:$D$36,3,FALSE)","v":0},{"$f":"VLOOKUP(D47,'Bank and Fund Details'!$B$15:$C$36,2,FALSE)","v":"Unrestricted"},{"$f":"IFERROR(VLOOKUP(C47,Descriptions!$I$6:$K$92,3,FALSE),\"\")","v":""},null,null,null,null,null,null,null,null,null,null,null,null,null,null,"General Fund",null,{"$f":"IFERROR(VLOOKUP(C47,Descriptions!I:M,5,FALSE),\"N\")","v":"N"},true,"NTRUE",0,{"$f":"IFERROR(VLOOKUP(D47,'Bank and Fund Details'!$B$14:$L$35,11,FALSE),\"N\")","v":"Y"},"NY"]
[null,null,null,"General Fund",null,null,null,null,null,{"$f":"VLOOKUP(D48,'Bank and Fund Details'!$B$15:$D$36,3,FALSE)","v":0},{"$f":"VLOOKUP(D48,'Bank and Fund Details'!$B$15:$C$36,2,FALSE)","v":"Unrestricted"},{"$f":"IFERROR(VLOOKUP(C48,Descriptions!$I$6:$K$92,3,FALSE),\"\")","v":""},null,null,null,null,null,null,null,null,null,null,null,null,null,null,"General Fund",null,{"$f":"IFERROR(VLOOKUP(C48,Descriptions!I:M,5,FALSE),\"N\")","v":"N"},true,"NTRUE",0,{"$f":"IFERROR(VLOOKUP(D48,'Bank and Fund Details'!$B$14:$L$35,11,FALSE),\"N\")","v":"Y"},"NY"]
[null,null,null,"General Fund",null,null,null,null,null,{"$f":"VLOOKUP(D49,'Bank and Fund Details'!$B$15:$D$36,3,FALSE)","v":0},{"$f":"VLOOKUP(D49,'Bank and Fund Details'!$B$15:$C$36,2,FALSE)","v":"Unrestricted"},{"$f":"IFERROR(VLOOKUP(C49,Descriptions!$I$6:$K$92,3,FALSE),\"\")","v":""},null,null,null,null,null,null,null,null,null,null,null,null,null,null,"General Fund",null,{"$f":"IFERROR(VLOOKUP(C49,Descriptions!I:M,5,FALSE),\"N\")","v":"N"},true,"NTRUE",0,{"$f":"IFERROR(VLOOKUP(D49,'Bank and Fund Details'!$B$14:$L$35,11,FALSE),\"N\")","v":"Y"},"NY"]
[null,null,null,"General Fund",null,null,null,null,null,{"$f":"VLOOKUP(D50,'Bank and Fund Details'!$B$15:$D$36,3,FALSE)","v":0},{"$f":"VLOOKUP(D50,'Bank and Fund Details'!$B$15:$C$36,2,FALSE)","v":"Unrestricted"},{"$f":"IFERROR(VLOOKUP(C50,Descriptions!$I$6:$K$92,3,FALSE),\"\")","v":""},null,null,null,null,null,null,null,null,null,null,null,null,null,null,"General Fund",null,{"$f":"IFERROR(VLOOKUP(C50,Descriptions!I:M,5,FALSE),\"N\")","v":"N"},true,"NTRUE",0,{"$f":"IFERROR(VLOOKUP(D50,'Bank and Fund Details'!$B$14:$L$35,11,FALSE),\"N\")","v":"Y"},"NY"]
[null,null,null,"General Fund",null,null,null,null,null,{"$f":"VLOOKUP(D51,'Bank and Fund Details'!$B$15:$D$36,3,FALSE)","v":0},{"$f":"VLOOKUP(D51,'Bank and Fund Details'!$B$15:$C$36,2,FALSE)","v":"Unrestricted"},{"$f":"IFERROR(VLOOKUP(C51,Descriptions!$I$6:$K$92,3,FALSE),\"\")","v":""},null,null,null,null,null,null,null,null,null,null,null,null,null,null,"General Fund",null,{"$f":"IFERROR(VLOOKUP(C51,Descriptions!I:M,5,FALSE),\"N\")","v":"N"},true,"NTRUE",0,{"$f":"IFERROR(VLOOKUP(D51,'Bank and Fund Details'!$B$14:$L$35,11,FALSE),\"N\")","v":"Y"},"NY"]
[null,null,null,"General Fund",null,null,null,null,null,{"$f":"VLOOKUP(D52,'Bank and Fund Details'!$B$15:$D$36,3,FALSE)","v":0},{"$f":"VLOOKUP(D52,'Bank and Fund Details'!$B$15:$C$36,2,FALSE)","v":"Unrestricted"},{"$f":"IFERROR(VLOOKUP(C52,Descriptions!$I$6:$K$92,3,FALSE),\"\")","v":""},null,null,null,null,null,null,null,null,null,null,null,null,null,null,"General Fund",null,{"$f":"IFERROR(VLOOKUP(C52,Descriptions!I:M,5,FALSE),\"N\")","v":"N"},true,"NTRUE",0,{"$f":"IFERROR(VLOOKUP(D52,'Bank and Fund Details'!$B$14:$L$35,11,FALSE),\"N\")","v":"Y"},"NY"]
[null,null,null,"General Fund",null,null,null,null,null,{"$f":"VLOOKUP(D53,'Bank and Fund Details'!$B$15:$D$36,3,FALSE)","v":0},{"$f":"VLOOKUP(D53,'Bank and Fund Details'!$B$15:$C$36,2,FALSE)","v":"Unrestricted"},{"$f":"IFERROR(VLOOKUP(C53,Descriptions!$I$6:$K$92,3,FALSE),\"\")","v":""},null,null,null,null,null,null,null,null,null,null,null,null,null,null,"General Fund",null,{"$f":"IFERROR(VLOOKUP(C53,Descriptions!I:M,5,FALSE),\"N\")","v":"N"},true,"NTRUE",0,{"$f":"IFERROR(VLOOKUP(D53,'Bank and Fund Details'!$B$14:$L$35,11,FALSE),\"N\")","v":"Y"},"NY"]
[null,null,null,"General Fund",null,null,null,null,null,{"$f":"VLOOKUP(D54,'Bank and Fund Details'!$B$15:$D$36,3,FALSE)","v":0},{"$f":"VLOOKUP(D54,'Bank and Fund Details'!$B$15:$C$36,2,FALSE)","v":"Unrestricted"},{"$f":"IFERROR(VLOOKUP(C54,Descriptions!$I$6:$K$92,3,FALSE),\"\")","v":""},null,null,null,null,null,null,null,null,null,null,null,null,null,null,"General Fund",null,{"$f":"IFERROR(VLOOKUP(C54,Descriptions!I:M,5,FALSE),\"N\")","v":"N"},true,"NTRUE",0,{"$f":"IFERROR(VLOOKUP(D54,'Bank and Fund Details'!$B$14:$L$35,11,FALSE),\"N\")","v":"Y"},"NY"]
[null,null,null,"General Fund",null,null,null,null,null,{"$f":"VLOOKUP(D55,'Bank and Fund Details'!$B$15:$D$36,3,FALSE)","v":0},{"$f":"VLOOKUP(D55,'Bank and Fund Details'!$B$15:$C$36,2,FALSE)","v":"Unrestricted"},{"$f":"IFERROR(VLOOKUP(C55,Descriptions!$I$6:$K$92,3,FALSE),\"\")","v":""},null,null,null,null,null,null,null,null,null,null,null,null,null,null,"General Fund",null,{"$f":"IFERROR(VLOOKUP(C55,Descriptions!I:M,5,FALSE),\"N\")","v":"N"},true,"NTRUE",0,{"$f":"IFERROR(VLOOKUP(D55,'Bank and Fund Details'!$B$14:$L$35,11,FALSE),\"N\")","v":"Y"},"NY"]
[null,null,null,"General Fund",null,null,null,null,null,{"$f":"VLOOKUP(D56,'Bank and Fund Details'!$B$15:$D$36,3,FALSE)","v":0},{"$f":"VLOOKUP(D56,'Bank and Fund Details'!$B$15:$C$36,2,FALSE)","v":"Unrestricted"},{"$f":"IFERROR(VLOOKUP(C56,Descriptions!$I$6:$K$92,3,FALSE),\"\")","v":""},null,null,null,null,null,null,null,null,null,null,null,null,null,null,"General Fund",null,{"$f":"IFERROR(VLOOKUP(C56,Descriptions!I:M,5,FALSE),\"N\")","v":"N"},true,"NTRUE",0,{"$f":"IFERROR(VLOOKUP(D56,'Bank and Fund Details'!$B$14:$L$35,11,FALSE),\"N\")","v":"Y"},"NY"]
[null,null,null,"General Fund",null,null,null,null,null,{"$f":"VLOOKUP(D57,'Bank and Fund Details'!$B$15:$D$36,3,FALSE)","v":0},{"$f":"VLOOKUP(D57,'Bank and Fund Details'!$B$15:$C$36,2,FALSE)","v":"Unrestricted"},{"$f":"IFERROR(VLOOKUP(C57,Descriptions!$I$6:$K$92,3,FALSE),\"\")","v":""},null,null,null,null,null,null,null,null,null,null,null,null,null,null,"General Fund",null,{"$f":"IFERROR(VLOOKUP(C57,Descriptions!I:M,5,FALSE),\"N\")","v":"N"},true,"NTRUE",0,{"$f":"IFERROR(VLOOKUP(D57,'Bank and Fund Details'!$B$14:$L$35,11,FALSE),\"N\")","v":"Y"},"NY"]
[null,null,null,"General Fund",null,null,null,null,null,{"$f":"VLOOKUP(D58,'Bank and Fund Details'!$B$15:$D$36,3,FALSE)","v":0},{"$f":"VLOOKUP(D58,'Bank and Fund Details'!$B$15:$C$36,2,FALSE)","v":"Unrestricted"},{"$f":"IFERROR(VLOOKUP(C58,Descriptions!$I$6:$K$92,3,FALSE),\"\")","v":""},null,null,null,null,null,null,null,null,null,null,null,null,null,null,"General Fund",null,{"$f":"IFERROR(VLOOKUP(C58,Descriptions!I:M,5,FALSE),\"N\")","v":"N"},true,"NTRUE",0,{"$f":"IFERROR(VLOOKUP(D58,'Bank and Fund Details'!$B$14:$L$35,11,FALSE),\"N\")","v":"Y"},"NY"]
[null,null,null,"General Fund",null,null,null,null,null,{"$f":"VLOOKUP(D59,'Bank and Fund Details'!$B$15:$D$36,3,FALSE)","v":0},{"$f":"VLOOKUP(D59,'Bank and Fund Details'!$B$15:$C$36,2,FALSE)","v":"Unrestricted"},{"$f":"IFERROR(VLOOKUP(C59,Descriptions!$I$6:$K$92,3,FALSE),\"\")","v":""},null,null,null,null,null,null,null,null,null,null,null,null,null,null,"General Fund",null,{"$f":"IFERROR(VLOOKUP(C59,Descriptions!I:M,5,FALSE),\"N\")","v":"N"},true,"NTRUE",0,{"$f":"IFERROR(VLOOKUP(D59,'Bank and Fund Details'!$B$14:$L$35,11,FALSE),\"N\")","v":"Y"},"NY"]
[null,null,null,"General Fund",null,null,null,null,null,{"$f":"VLOOKUP(D60,'Bank and Fund Details'!$B$15:$D$36,3,FALSE)","v":0},{"$f":"VLOOKUP(D60,'Bank and Fund Details'!$B$15:$C$36,2,FALSE)","v":"Unrestricted"},{"$f":"IFERROR(VLOOKUP(C60,Descriptions!$I$6:$K$92,3,FALSE),\"\")","v":""},null,null,null,null,null,null,null,null,null,null,null,null,null,null,"General Fund",null,{"$f":"IFERROR(VLOOKUP(C60,Descriptions!I:M,5,FALSE),\"N\")","v":"N"},true,"NTRUE",0,{"$f":"IFERROR(VLOOKUP(D60,'Bank and Fund Details'!$B$14:$L$35,11,FALSE),\"N\")","v":"Y"},"NY"]
[null,null,null,"General Fund",null,null,null,null,null,{"$f":"VLOOKUP(D61,'Bank and Fund Details'!$B$15:$D$36,3,FALSE)","v":0},{"$f":"VLOOKUP(D61,'Bank and Fund Details'!$B$15:$C$36,2,FALSE)","v":"Unrestricted"},{"$f":"IFERROR(VLOOKUP(C61,Descriptions!$I$6:$K$92,3,FALSE),\"\")","v":""},null,null,null,null,null,null,null,null,null,null,null,null,null,null,"General Fund",null,{"$f":"IFERROR(VLOOKUP(C61,Descriptions!I:M,5,FALSE),\"N\")","v":"N"},true,"NTRUE",0,{"$f":"IFERROR(VLOOKUP(D61,'Bank and Fund Details'!$B$14:$L$35,11,FALSE),\"N\")","v":"Y"},"NY"]
[null,null,null,"General Fund",null,null,null,null,null,{"$f":"VLOOKUP(D62,'Bank and Fund Details'!$B$15:$D$36,3,FALSE)","v":0},{"$f":"VLOOKUP(D62,'Bank and Fund Details'!$B$15:$C$36,2,FALSE)","v":"Unrestricted"},{"$f":"IFERROR(VLOOKUP(C62,Descriptions!$I$6:$K$92,3,FALSE),\"\")","v":""},null,null,null,null,null,null,null,null,null,null,null,null,null,null,"General Fund",null,{"$f":"IFERROR(VLOOKUP(C62,Descriptions!I:M,5,FALSE),\"N\")","v":"N"},true,"NTRUE",0,{"$f":"IFERROR(VLOOKUP(D62,'Bank and Fund Details'!$B$14:$L$35,11,FALSE),\"N\")","v":"Y"},"NY"]
[null,null,null,"General Fund",null,null,null,null,null,{"$f":"VLOOKUP(D63,'Bank and Fund Details'!$B$15:$D$36,3,FALSE)","v":0},{"$f":"VLOOKUP(D63,'Bank and Fund Details'!$B$15:$C$36,2,FALSE)","v":"Unrestricted"},{"$f":"IFERROR(VLOOKUP(C63,Descriptions!$I$6:$K$92,3,FALSE),\"\")","v":""},null,null,null,null,null,null,null,null,null,null,null,null,null,null,"General Fund",null,{"$f":"IFERROR(VLOOKUP(C63,Descriptions!I:M,5,FALSE),\"N\")","v":"N"},true,"NTRUE",0,{"$f":"IFERROR(VLOOKUP(D63,'Bank and Fund Details'!$B$14:$L$35,11,FALSE),\"N\")","v":"Y"},"NY"]
[null,null,null,"General Fund",null,null,null,null,null,{"$f":"VLOOKUP(D64,'Bank and Fund Details'!$B$15:$D$36,3,FALSE)","v":0},{"$f":"VLOOKUP(D64,'Bank and Fund Details'!$B$15:$C$36,2,FALSE)","v":"Unrestricted"},{"$f":"IFERROR(VLOOKUP(C64,Descriptions!$I$6:$K$92,3,FALSE),\"\")","v":""},null,null,null,null,null,null,null,null,null,null,null,null,null,null,"General Fund",null,{"$f":"IFERROR(VLOOKUP(C64,Descriptions!I:M,5,FALSE),\"N\")","v":"N"},true,"NTRUE",0,{"$f":"IFERROR(VLOOKUP(D64,'Bank and Fund Details'!$B$14:$L$35,11,FALSE),\"N\")","v":"Y"},"NY"]
[null,null,null,"General Fund",null,null,null,null,null,{"$f":"VLOOKUP(D65,'Bank and Fund Details'!$B$15:$D$36,3,FALSE)","v":0},{"$f":"VLOOKUP(D65,'Bank and Fund Details'!$B$15:$C$36,2,FALSE)","v":"Unrestricted"},{"$f":"IFERROR(VLOOKUP(C65,Descriptions!$I$6:$K$92,3,FALSE),\"\")","v":""},null,null,null,null,null,null,null,null,null,null,null,null,null,null,"General Fund",null,{"$f":"IFERROR(VLOOKUP(C65,Descriptions!I:M,5,FALSE),\"N\")","v":"N"},true,"NTRUE",0,{"$f":"IFERROR(VLOOKUP(D65,'Bank and Fund Details'!$B$14:$L$35,11,FALSE),\"N\")","v":"Y"},"NY"]
[null,null,null,"General Fund",null,null,null,null,null,{"$f":"VLOOKUP(D66,'Bank and Fund Details'!$B$15:$D$36,3,FALSE)","v":0},{"$f":"VLOOKUP(D66,'Bank and Fund Details'!$B$15:$C$36,2,FALSE)","v":"Unrestricted"},{"$f":"IFERROR(VLOOKUP(C66,Descriptions!$I$6:$K$92,3,FALSE),\"\")","v":""},null,null,null,null,null,null,null,null,null,null,null,null,null,null,"General Fund",null,{"$f":"IFERROR(VLOOKUP(C66,Descriptions!I:M,5,FALSE),\"N\")","v":"N"},true,"NTRUE",0,{"$f":"IFERROR(VLOOKUP(D66,'Bank and Fund Details'!$B$14:$L$35,11,FALSE),\"N\")","v":"Y"},"NY"]
[null,null,null,"General Fund",null,null,null,null,null,{"$f":"VLOOKUP(D67,'Bank and Fund Details'!$B$15:$D$36,3,FALSE)","v":0},{"$f":"VLOOKUP(D67,'Bank and Fund Details'!$B$15:$C$36,2,FALSE)","v":"Unrestricted"},{"$f":"IFERROR(VLOOKUP(C67,Descriptions!$I$6:$K$92,3,FALSE),\"\")","v":""},null,null,null,null,null,null,null,null,null,null,null,null,null,null,"General Fund",null,{"$f":"IFERROR(VLOOKUP(C67,Descriptions!I:M,5,FALSE),\"N\")","v":"N"},true,"NTRUE",0,{"$f":"IFERROR(VLOOKUP(D67,'Bank and Fund Details'!$B$14:$L$35,11,FALSE),\"N\")","v":"Y"},"NY"]
[null,null,null,"General Fund",null,null,null,null,null,{"$f":"VLOOKUP(D68,'Bank and Fund Details'!$B$15:$D$36,3,FALSE)","v":0},{"$f":"VLOOKUP(D68,'Bank and Fund Details'!$B$15:$C$36,2,FALSE)","v":"Unrestricted"},{"$f":"IFERROR(VLOOKUP(C68,Descriptions!$I$6:$K$92,3,FALSE),\"\")","v":""},null,null,null,null,null,null,null,null,null,null,null,null,null,null,"General Fund",null,{"$f":"IFERROR(VLOOKUP(C68,Descriptions!I:M,5,FALSE),\"N\")","v":"N"},true,"NTRUE",0,{"$f":"IFERROR(VLOOKUP(D68,'Bank and Fund Details'!$B$14:$L$35,11,FALSE),\"N\")","v":"Y"},"NY"]
[null,null,null,"General Fund",null,null,null,null,null,{"$f":"VLOOKUP(D69,'Bank and Fund Details'!$B$15:$D$36,3,FALSE)","v":0},{"$f":"VLOOKUP(D69,'Bank and Fund Details'!$B$15:$C$36,2,FALSE)","v":"Unrestricted"},{"$f":"IFERROR(VLOOKUP(C69,Descriptions!$I$6:$K$92,3,FALSE),\"\")","v":""},null,null,null,null,null,null,null,null,null,null,null,null,null,null,"General Fund",null,{"$f":"IFERROR(VLOOKUP(C69,Descriptions!I:M,5,FALSE),\"N\")","v":"N"},true,"NTRUE",0,{"$f":"IFERROR(VLOOKUP(D69,'Bank and Fund Details'!$B$14:$L$35,11,FALSE),\"N\")","v":"Y"},"NY"]
[null,null,null,"General Fund",null,null,null,null,null,{"$f":"VLOOKUP(D70,'Bank and Fund Details'!$B$15:$D$36,3,FALSE)","v":0},{"$f":"VLOOKUP(D70,'Bank and Fund Details'!$B$15:$C$36,2,FALSE)","v":"Unrestricted"},{"$f":"IFERROR(VLOOKUP(C70,Descriptions!$I$6:$K$92,3,FALSE),\"\")","v":""},null,null,null,null,null,null,null,null,null,null,null,null,null,null,{"$f":"CONCATENATE(C70,D70)","v":"General Fund"},null,{"$f":"IFERROR(VLOOKUP(C70,Descriptions!I:M,5,FALSE),\"N\")","v":"N"},{"$f":"ISBLANK(C70)","v":true},{"$f":"CONCATENATE(AC70,AD70)","v":"NTRUE"},{"$f":"IF(AE70=\"NFALSE\",1,0)","v":0},{"$f":"IFERROR(VLOOKUP(D70,'Bank and Fund Details'!$B$14:$L$35,11,FALSE),\"N\")","v":"Y"},{"$f":"CONCATENATE(AC70,AG70)","v":"NY"}]
[null,null,null,"General Fund",null,null,null,null,null,{"$f":"VLOOKUP(D71,'Bank and Fund Details'!$B$15:$D$36,3,FALSE)","v":0},{"$f":"VLOOKUP(D71,'Bank and Fund Details'!$B$15:$C$36,2,FALSE)","v":"Unrestricted"},{"$f":"IFERROR(VLOOKUP(C71,Descriptions!$I$6:$K$92,3,FALSE),\"\")","v":""},null,null,null,null,null,null,null,null,null,null,null,null,null,null,"General Fund",null,{"$f":"IFERROR(VLOOKUP(C71,Descriptions!I:M,5,FALSE),\"N\")","v":"N"},true,"NTRUE",0,{"$f":"IFERROR(VLOOKUP(D71,'Bank and Fund Details'!$B$14:$L$35,11,FALSE),\"N\")","v":"Y"},"NY"]
[null,null,null,"General Fund",null,null,null,null,null,{"$f":"VLOOKUP(D72,'Bank and Fund Details'!$B$15:$D$36,3,FALSE)","v":0},{"$f":"VLOOKUP(D72,'Bank and Fund Details'!$B$15:$C$36,2,FALSE)","v":"Unrestricted"},{"$f":"IFERROR(VLOOKUP(C72,Descriptions!$I$6:$K$92,3,FALSE),\"\")","v":""},null,null,null,null,null,null,null,null,null,null,null,null,null,null,"General Fund",null,{"$f":"IFERROR(VLOOKUP(C72,Descriptions!I:M,5,FALSE),\"N\")","v":"N"},true,"NTRUE",0,{"$f":"IFERROR(VLOOKUP(D72,'Bank and Fund Details'!$B$14:$L$35,11,FALSE),\"N\")","v":"Y"},"NY"]
[null,null,null,"General Fund",null,null,null,null,null,{"$f":"VLOOKUP(D73,'Bank and Fund Details'!$B$15:$D$36,3,FALSE)","v":0},{"$f":"VLOOKUP(D73,'Bank and Fund Details'!$B$15:$C$36,2,FALSE)","v":"Unrestricted"},{"$f":"IFERROR(VLOOKUP(C73,Descriptions!$I$6:$K$92,3,FALSE),\"\")","v":""},null,null,null,null,null,null,null,null,null,null,null,null,null,null,"General Fund",null,{"$f":"IFERROR(VLOOKUP(C73,Descriptions!I:M,5,FALSE),\"N\")","v":"N"},true,"NTRUE",0,{"$f":"IFERROR(VLOOKUP(D73,'Bank and Fund Details'!$B$14:$L$35,11,FALSE),\"N\")","v":"Y"},"NY"]
[null,null,null,"General Fund",null,null,null,null,null,{"$f":"VLOOKUP(D74,'Bank and Fund Details'!$B$15:$D$36,3,FALSE)","v":0},{"$f":"VLOOKUP(D74,'Bank and Fund Details'!$B$15:$C$36,2,FALSE)","v":"Unrestricted"},{"$f":"IFERROR(VLOOKUP(C74,Descriptions!$I$6:$K$92,3,FALSE),\"\")","v":""},null,null,null,null,null,null,null,null,null,null,null,null,null,null,"General Fund",null,{"$f":"IFERROR(VLOOKUP(C74,Descriptions!I:M,5,FALSE),\"N\")","v":"N"},true,"NTRUE",0,{"$f":"IFERROR(VLOOKUP(D74,'Bank and Fund Details'!$B$14:$L$35,11,FALSE),\"N\")","v":"Y"},"NY"]
[null,null,null,"General Fund",null,null,null,null,null,{"$f":"VLOOKUP(D75,'Bank and Fund Details'!$B$15:$D$36,3,FALSE)","v":0},{"$f":"VLOOKUP(D75,'Bank and Fund Details'!$B$15:$C$36,2,FALSE)","v":"Unrestricted"},{"$f":"IFERROR(VLOOKUP(C75,Descriptions!$I$6:$K$92,3,FALSE),\"\")","v":""},null,null,null,null,null,null,null,null,null,null,null,null,null,null,"General Fund",null,{"$f":"IFERROR(VLOOKUP(C75,Descriptions!I:M,5,FALSE),\"N\")","v":"N"},true,"NTRUE",0,{"$f":"IFERROR(VLOOKUP(D75,'Bank and Fund Details'!$B$14:$L$35,11,FALSE),\"N\")","v":"Y"},"NY"]
[null,null,null,"General Fund",null,null,null,null,null,{"$f":"VLOOKUP(D76,'Bank and Fund Details'!$B$15:$D$36,3,FALSE)","v":0},{"$f":"VLOOKUP(D76,'Bank and Fund Details'!$B$15:$C$36,2,FALSE)","v":"Unrestricted"},{"$f":"IFERROR(VLOOKUP(C76,Descriptions!$I$6:$K$92,3,FALSE),\"\")","v":""},null,null,null,null,null,null,null,null,null,null,null,null,null,null,"General Fund",null,{"$f":"IFERROR(VLOOKUP(C76,Descriptions!I:M,5,FALSE),\"N\")","v":"N"},true,"NTRUE",0,{"$f":"IFERROR(VLOOKUP(D76,'Bank and Fund Details'!$B$14:$L$35,11,FALSE),\"N\")","v":"Y"},"NY"]
[null,null,null,"General Fund",null,null,null,null,null,{"$f":"VLOOKUP(D77,'Bank and Fund Details'!$B$15:$D$36,3,FALSE)","v":0},{"$f":"VLOOKUP(D77,'Bank and Fund Details'!$B$15:$C$36,2,FALSE)","v":"Unrestricted"},{"$f":"IFERROR(VLOOKUP(C77,Descriptions!$I$6:$K$92,3,FALSE),\"\")","v":""},null,null,null,null,null,null,null,null,null,null,null,null,null,null,"General Fund",null,{"$f":"IFERROR(VLOOKUP(C77,Descriptions!I:M,5,FALSE),\"N\")","v":"N"},true,"NTRUE",0,{"$f":"IFERROR(VLOOKUP(D77,'Bank and Fund Details'!$B$14:$L$35,11,FALSE),\"N\")","v":"Y"},"NY"]
[null,null,null,"General Fund",null,null,null,null,null,{"$f":"VLOOKUP(D78,'Bank and Fund Details'!$B$15:$D$36,3,FALSE)","v":0},{"$f":"VLOOKUP(D78,'Bank and Fund Details'!$B$15:$C$36,2,FALSE)","v":"Unrestricted"},{"$f":"IFERROR(VLOOKUP(C78,Descriptions!$I$6:$K$92,3,FALSE),\"\")","v":""},null,null,null,null,null,null,null,null,null,null,null,null,null,null,"General Fund",null,{"$f":"IFERROR(VLOOKUP(C78,Descriptions!I:M,5,FALSE),\"N\")","v":"N"},true,"NTRUE",0,{"$f":"IFERROR(VLOOKUP(D78,'Bank and Fund Details'!$B$14:$L$35,11,FALSE),\"N\")","v":"Y"},"NY"]
[null,null,null,"General Fund",null,null,null,null,null,{"$f":"VLOOKUP(D79,'Bank and Fund Details'!$B$15:$D$36,3,FALSE)","v":0},{"$f":"VLOOKUP(D79,'Bank and Fund Details'!$B$15:$C$36,2,FALSE)","v":"Unrestricted"},{"$f":"IFERROR(VLOOKUP(C79,Descriptions!$I$6:$K$92,3,FALSE),\"\")","v":""},null,null,null,null,null,null,null,null,null,null,null,null,null,null,"General Fund",null,{"$f":"IFERROR(VLOOKUP(C79,Descriptions!I:M,5,FALSE),\"N\")","v":"N"},true,"NTRUE",0,{"$f":"IFERROR(VLOOKUP(D79,'Bank and Fund Details'!$B$14:$L$35,11,FALSE),\"N\")","v":"Y"},"NY"]
[null,null,null,"General Fund",null,null,null,null,null,{"$f":"VLOOKUP(D80,'Bank and Fund Details'!$B$15:$D$36,3,FALSE)","v":0},{"$f":"VLOOKUP(D80,'Bank and Fund Details'!$B$15:$C$36,2,FALSE)","v":"Unrestricted"},{"$f":"IFERROR(VLOOKUP(C80,Descriptions!$I$6:$K$92,3,FALSE),\"\")","v":""},null,null,null,null,null,null,null,null,null,null,null,null,null,null,"General Fund",null,{"$f":"IFERROR(VLOOKUP(C80,Descriptions!I:M,5,FALSE),\"N\")","v":"N"},true,"NTRUE",0,{"$f":"IFERROR(VLOOKUP(D80,'Bank and Fund Details'!$B$14:$L$35,11,FALSE),\"N\")","v":"Y"},"NY"]
[null,null,null,"General Fund",null,null,null,null,null,{"$f":"VLOOKUP(D81,'Bank and Fund Details'!$B$15:$D$36,3,FALSE)","v":0},{"$f":"VLOOKUP(D81,'Bank and Fund Details'!$B$15:$C$36,2,FALSE)","v":"Unrestricted"},{"$f":"IFERROR(VLOOKUP(C81,Descriptions!$I$6:$K$92,3,FALSE),\"\")","v":""},null,null,null,null,null,null,null,null,null,null,null,null,null,null,"General Fund",null,{"$f":"IFERROR(VLOOKUP(C81,Descriptions!I:M,5,FALSE),\"N\")","v":"N"},true,"NTRUE",0,{"$f":"IFERROR(VLOOKUP(D81,'Bank and Fund Details'!$B$14:$L$35,11,FALSE),\"N\")","v":"Y"},"NY"]
[null,null,null,"General Fund",null,null,null,null,null,{"$f":"VLOOKUP(D82,'Bank and Fund Details'!$B$15:$D$36,3,FALSE)","v":0},{"$f":"VLOOKUP(D82,'Bank and Fund Details'!$B$15:$C$36,2,FALSE)","v":"Unrestricted"},{"$f":"IFERROR(VLOOKUP(C82,Descriptions!$I$6:$K$92,3,FALSE),\"\")","v":""},null,null,null,null,null,null,null,null,null,null,null,null,null,null,"General Fund",null,{"$f":"IFERROR(VLOOKUP(C82,Descriptions!I:M,5,FALSE),\"N\")","v":"N"},true,"NTRUE",0,{"$f":"IFERROR(VLOOKUP(D82,'Bank and Fund Details'!$B$14:$L$35,11,FALSE),\"N\")","v":"Y"},"NY"]
[null,null,null,"General Fund",null,null,null,null,null,{"$f":"VLOOKUP(D83,'Bank and Fund Details'!$B$15:$D$36,3,FALSE)","v":0},{"$f":"VLOOKUP(D83,'Bank and Fund Details'!$B$15:$C$36,2,FALSE)","v":"Unrestricted"},{"$f":"IFERROR(VLOOKUP(C83,Descriptions!$I$6:$K$92,3,FALSE),\"\")","v":""},null,null,null,null,null,null,null,null,null,null,null,null,null,null,"General Fund",null,{"$f":"IFERROR(VLOOKUP(C83,Descriptions!I:M,5,FALSE),\"N\")","v":"N"},true,"NTRUE",0,{"$f":"IFERROR(VLOOKUP(D83,'Bank and Fund Details'!$B$14:$L$35,11,FALSE),\"N\")","v":"Y"},"NY"]
[null,null,null,"General Fund",null,null,null,null,null,{"$f":"VLOOKUP(D84,'Bank and Fund Details'!$B$15:$D$36,3,FALSE)","v":0},{"$f":"VLOOKUP(D84,'Bank and Fund Details'!$B$15:$C$36,2,FALSE)","v":"Unrestricted"},{"$f":"IFERROR(VLOOKUP(C84,Descriptions!$I$6:$K$92,3,FALSE),\"\")","v":""},null,null,null,null,null,null,null,null,null,null,null,null,null,null,"General Fund",null,{"$f":"IFERROR(VLOOKUP(C84,Descriptions!I:M,5,FALSE),\"N\")","v":"N"},true,"NTRUE",0,{"$f":"IFERROR(VLOOKUP(D84,'Bank and Fund Details'!$B$14:$L$35,11,FALSE),\"N\")","v":"Y"},"NY"]
[null,null,null,"General Fund",null,null,null,null,null,{"$f":"VLOOKUP(D85,'Bank and Fund Details'!$B$15:$D$36,3,FALSE)","v":0},{"$f":"VLOOKUP(D85,'Bank and Fund Details'!$B$15:$C$36,2,FALSE)","v":"Unrestricted"},{"$f":"IFERROR(VLOOKUP(C85,Descriptions!$I$6:$K$92,3,FALSE),\"\")","v":""},null,null,null,null,null,null,null,null,null,null,null,null,null,null,"General Fund",null,{"$f":"IFERROR(VLOOKUP(C85,Descriptions!I:M,5,FALSE),\"N\")","v":"N"},true,"NTRUE",0,{"$f":"IFERROR(VLOOKUP(D85,'Bank and Fund Details'!$B$14:$L$35,11,FALSE),\"N\")","v":"Y"},"NY"]
[null,null,null,"General Fund",null,null,null,null,null,{"$f":"VLOOKUP(D86,'Bank and Fund Details'!$B$15:$D$36,3,FALSE)","v":0},{"$f":"VLOOKUP(D86,'Bank and Fund Details'!$B$15:$C$36,2,FALSE)","v":"Unrestricted"},{"$f":"IFERROR(VLOOKUP(C86,Descriptions!$I$6:$K$92,3,FALSE),\"\")","v":""},null,null,null,null,null,null,null,null,null,null,null,null,null,null,"General Fund",null,{"$f":"IFERROR(VLOOKUP(C86,Descriptions!I:M,5,FALSE),\"N\")","v":"N"},true,"NTRUE",0,{"$f":"IFERROR(VLOOKUP(D86,'Bank and Fund Details'!$B$14:$L$35,11,FALSE),\"N\")","v":"Y"},"NY"]
[null,null,null,"General Fund",null,null,null,null,null,{"$f":"VLOOKUP(D87,'Bank and Fund Details'!$B$15:$D$36,3,FALSE)","v":0},{"$f":"VLOOKUP(D87,'Bank and Fund Details'!$B$15:$C$36,2,FALSE)","v":"Unrestricted"},{"$f":"IFERROR(VLOOKUP(C87,Descriptions!$I$6:$K$92,3,FALSE),\"\")","v":""},null,null,null,null,null,null,null,null,null,null,null,null,null,null,"General Fund",null,{"$f":"IFERROR(VLOOKUP(C87,Descriptions!I:M,5,FALSE),\"N\")","v":"N"},true,"NTRUE",0,{"$f":"IFERROR(VLOOKUP(D87,'Bank and Fund Details'!$B$14:$L$35,11,FALSE),\"N\")","v":"Y"},"NY"]
[null,null,null,"General Fund",null,null,null,null,null,{"$f":"VLOOKUP(D88,'Bank and Fund Details'!$B$15:$D$36,3,FALSE)","v":0},{"$f":"VLOOKUP(D88,'Bank and Fund Details'!$B$15:$C$36,2,FALSE)","v":"Unrestricted"},{"$f":"IFERROR(VLOOKUP(C88,Descriptions!$I$6:$K$92,3,FALSE),\"\")","v":""},null,null,null,null,null,null,null,null,null,null,null,null,null,null,"General Fund",null,{"$f":"IFERROR(VLOOKUP(C88,Descriptions!I:M,5,FALSE),\"N\")","v":"N"},true,"NTRUE",0,{"$f":"IFERROR(VLOOKUP(D88,'Bank and Fund Details'!$B$14:$L$35,11,FALSE),\"N\")","v":"Y"},"NY"]
[null,null,null,"General Fund",null,null,null,null,null,{"$f":"VLOOKUP(D89,'Bank and Fund Details'!$B$15:$D$36,3,FALSE)","v":0},{"$f":"VLOOKUP(D89,'Bank and Fund Details'!$B$15:$C$36,2,FALSE)","v":"Unrestricted"},{"$f":"IFERROR(VLOOKUP(C89,Descriptions!$I$6:$K$92,3,FALSE),\"\")","v":""},null,null,null,null,null,null,null,null,null,null,null,null,null,null,"General Fund",null,{"$f":"IFERROR(VLOOKUP(C89,Descriptions!I:M,5,FALSE),\"N\")","v":"N"},true,"NTRUE",0,{"$f":"IFERROR(VLOOKUP(D89,'Bank and Fund Details'!$B$14:$L$35,11,FALSE),\"N\")","v":"Y"},"NY"]
[null,null,null,"General Fund",null,null,null,null,null,{"$f":"VLOOKUP(D90,'Bank and Fund Details'!$B$15:$D$36,3,FALSE)","v":0},{"$f":"VLOOKUP(D90,'Bank and Fund Details'!$B$15:$C$36,2,FALSE)","v":"Unrestricted"},{"$f":"IFERROR(VLOOKUP(C90,Descriptions!$I$6:$K$92,3,FALSE),\"\")","v":""},null,null,null,null,null,null,null,null,null,null,null,null,null,null,"General Fund",null,{"$f":"IFERROR(VLOOKUP(C90,Descriptions!I:M,5,FALSE),\"N\")","v":"N"},true,"NTRUE",0,{"$f":"IFERROR(VLOOKUP(D90,'Bank and Fund Details'!$B$14:$L$35,11,FALSE),\"N\")","v":"Y"},"NY"]
[null,null,null,"General Fund",null,null,null,null,null,{"$f":"VLOOKUP(D91,'Bank and Fund Details'!$B$15:$D$36,3,FALSE)","v":0},{"$f":"VLOOKUP(D91,'Bank and Fund Details'!$B$15:$C$36,2,FALSE)","v":"Unrestricted"},{"$f":"IFERROR(VLOOKUP(C91,Descriptions!$I$6:$K$92,3,FALSE),\"\")","v":""},null,null,null,null,null,null,null,null,null,null,null,null,null,null,"General Fund",null,{"$f":"IFERROR(VLOOKUP(C91,Descriptions!I:M,5,FALSE),\"N\")","v":"N"},true,"NTRUE",0,{"$f":"IFERROR(VLOOKUP(D91,'Bank and Fund Details'!$B$14:$L$35,11,FALSE),\"N\")","v":"Y"},"NY"]
[null,null,null,"General Fund",null,null,null,null,null,{"$f":"VLOOKUP(D92,'Bank and Fund Details'!$B$15:$D$36,3,FALSE)","v":0},{"$f":"VLOOKUP(D92,'Bank and Fund Details'!$B$15:$C$36,2,FALSE)","v":"Unrestricted"},{"$f":"IFERROR(VLOOKUP(C92,Descriptions!$I$6:$K$92,3,FALSE),\"\")","v":""},null,null,null,null,null,null,null,null,null,null,null,null,null,null,"General Fund",null,{"$f":"IFERROR(VLOOKUP(C92,Descriptions!I:M,5,FALSE),\"N\")","v":"N"},true,"NTRUE",0,{"$f":"IFERROR(VLOOKUP(D92,'Bank and Fund Details'!$B$14:$L$35,11,FALSE),\"N\")","v":"Y"},"NY"]
[null,null,null,"General Fund",null,null,null,null,null,{"$f":"VLOOKUP(D93,'Bank and Fund Details'!$B$15:$D$36,3,FALSE)","v":0},{"$f":"VLOOKUP(D93,'Bank and Fund Details'!$B$15:$C$36,2,FALSE)","v":"Unrestricted"},{"$f":"IFERROR(VLOOKUP(C93,Descriptions!$I$6:$K$92,3,FALSE),\"\")","v":""},null,null,null,null,null,null,null,null,null,null,null,null,null,null,"General Fund",null,{"$f":"IFERROR(VLOOKUP(C93,Descriptions!I:M,5,FALSE),\"N\")","v":"N"},true,"NTRUE",0,{"$f":"IFERROR(VLOOKUP(D93,'Bank and Fund Details'!$B$14:$L$35,11,FALSE),\"N\")","v":"Y"},"NY"]
[null,null,null,"General Fund",null,null,null,null,null,{"$f":"VLOOKUP(D94,'Bank and Fund Details'!$B$15:$D$36,3,FALSE)","v":0},{"$f":"VLOOKUP(D94,'Bank and Fund Details'!$B$15:$C$36,2,FALSE)","v":"Unrestricted"},{"$f":"IFERROR(VLOOKUP(C94,Descriptions!$I$6:$K$92,3,FALSE),\"\")","v":""},null,null,null,null,null,null,null,null,null,null,null,null,null,null,"General Fund",null,{"$f":"IFERROR(VLOOKUP(C94,Descriptions!I:M,5,FALSE),\"N\")","v":"N"},true,"NTRUE",0,{"$f":"IFERROR(VLOOKUP(D94,'Bank and Fund Details'!$B$14:$L$35,11,FALSE),\"N\")","v":"Y"},"NY"]
[null,null,null,"General Fund",null,null,null,null,null,{"$f":"VLOOKUP(D95,'Bank and Fund Details'!$B$15:$D$36,3,FALSE)","v":0},{"$f":"VLOOKUP(D95,'Bank and Fund Details'!$B$15:$C$36,2,FALSE)","v":"Unrestricted"},{"$f":"IFERROR(VLOOKUP(C95,Descriptions!$I$6:$K$92,3,FALSE),\"\")","v":""},null,null,null,null,null,null,null,null,null,null,null,null,null,null,"General Fund",null,{"$f":"IFERROR(VLOOKUP(C95,Descriptions!I:M,5,FALSE),\"N\")","v":"N"},true,"NTRUE",0,{"$f":"IFERROR(VLOOKUP(D95,'Bank and Fund Details'!$B$14:$L$35,11,FALSE),\"N\")","v":"Y"},"NY"]
[null,null,null,"General Fund",null,null,null,null,null,{"$f":"VLOOKUP(D96,'Bank and Fund Details'!$B$15:$D$36,3,FALSE)","v":0},{"$f":"VLOOKUP(D96,'Bank and Fund Details'!$B$15:$C$36,2,FALSE)","v":"Unrestricted"},{"$f":"IFERROR(VLOOKUP(C96,Descriptions!$I$6:$K$92,3,FALSE),\"\")","v":""},null,null,null,null,null,null,null,null,null,null,null,null,null,null,"General Fund",null,{"$f":"IFERROR(VLOOKUP(C96,Descriptions!I:M,5,FALSE),\"N\")","v":"N"},true,"NTRUE",0,{"$f":"IFERROR(VLOOKUP(D96,'Bank and Fund Details'!$B$14:$L$35,11,FALSE),\"N\")","v":"Y"},"NY"]
[null,null,null,"General Fund",null,null,null,null,null,{"$f":"VLOOKUP(D97,'Bank and Fund Details'!$B$15:$D$36,3,FALSE)","v":0},{"$f":"VLOOKUP(D97,'Bank and Fund Details'!$B$15:$C$36,2,FALSE)","v":"Unrestricted"},{"$f":"IFERROR(VLOOKUP(C97,Descriptions!$I$6:$K$92,3,FALSE),\"\")","v":""},null,null,null,null,null,null,null,null,null,null,null,null,null,null,"General Fund",null,{"$f":"IFERROR(VLOOKUP(C97,Descriptions!I:M,5,FALSE),\"N\")","v":"N"},true,"NTRUE",0,{"$f":"IFERROR(VLOOKUP(D97,'Bank and Fund Details'!$B$14:$L$35,11,FALSE),\"N\")","v":"Y"},"NY"]
[null,null,null,"General Fund",null,null,null,null,null,{"$f":"VLOOKUP(D98,'Bank and Fund Details'!$B$15:$D$36,3,FALSE)","v":0},{"$f":"VLOOKUP(D98,'Bank and Fund Details'!$B$15:$C$36,2,FALSE)","v":"Unrestricted"},{"$f":"IFERROR(VLOOKUP(C98,Descriptions!$I$6:$K$92,3,FALSE),\"\")","v":""},null,null,null,null,null,null,null,null,null,null,null,null,null,null,"General Fund",null,{"$f":"IFERROR(VLOOKUP(C98,Descriptions!I:M,5,FALSE),\"N\")","v":"N"},true,"NTRUE",0,{"$f":"IFERROR(VLOOKUP(D98,'Bank and Fund Details'!$B$14:$L$35,11,FALSE),\"N\")","v":"Y"},"NY"]
[null,null,null,"General Fund",null,null,null,null,null,{"$f":"VLOOKUP(D99,'Bank and Fund Details'!$B$15:$D$36,3,FALSE)","v":0},{"$f":"VLOOKUP(D99,'Bank and Fund Details'!$B$15:$C$36,2,FALSE)","v":"Unrestricted"},{"$f":"IFERROR(VLOOKUP(C99,Descriptions!$I$6:$K$92,3,FALSE),\"\")","v":""},null,null,null,null,null,null,null,null,null,null,null,null,null,null,"General Fund",null,{"$f":"IFERROR(VLOOKUP(C99,Descriptions!I:M,5,FALSE),\"N\")","v":"N"},true,"NTRUE",0,{"$f":"IFERROR(VLOOKUP(D99,'Bank and Fund Details'!$B$14:$L$35,11,FALSE),\"N\")","v":"Y"},"NY"]
[null,null,null,"General Fund",null,null,null,null,null,{"$f":"VLOOKUP(D100,'Bank and Fund Details'!$B$15:$D$36,3,FALSE)","v":0},{"$f":"VLOOKUP(D100,'Bank and Fund Details'!$B$15:$C$36,2,FALSE)","v":"Unrestricted"},{"$f":"IFERROR(VLOOKUP(C100,Descriptions!$I$6:$K$92,3,FALSE),\"\")","v":""},null,null,null,null,null,null,null,null,null,null,null,null,null,null,"General Fund",null,{"$f":"IFERROR(VLOOKUP(C100,Descriptions!I:M,5,FALSE),\"N\")","v":"N"},true,"NTRUE",0,{"$f":"IFERROR(VLOOKUP(D100,'Bank and Fund Details'!$B$14:$L$35,11,FALSE),\"N\")","v":"Y"},"NY"]
[null,null,null,"General Fund",null,null,null,null,null,{"$f":"VLOOKUP(D101,'Bank and Fund Details'!$B$15:$D$36,3,FALSE)","v":0},{"$f":"VLOOKUP(D101,'Bank and Fund Details'!$B$15:$C$36,2,FALSE)","v":"Unrestricted"},{"$f":"IFERROR(VLOOKUP(C101,Descriptions!$I$6:$K$92,3,FALSE),\"\")","v":""},null,null,null,null,null,null,null,null,null,null,null,null,null,null,"General Fund",null,{"$f":"IFERROR(VLOOKUP(C101,Descriptions!I:M,5,FALSE),\"N\")","v":"N"},true,"NTRUE",0,{"$f":"IFERROR(VLOOKUP(D101,'Bank and Fund Details'!$B$14:$L$35,11,FALSE),\"N\")","v":"Y"},"NY"]
[null,null,null,"General Fund",null,null,null,null,null,{"$f":"VLOOKUP(D102,'Bank and Fund Details'!$B$15:$D$36,3,FALSE)","v":0},{"$f":"VLOOKUP(D102,'Bank and Fund Details'!$B$15:$C$36,2,FALSE)","v":"Unrestricted"},{"$f":"IFERROR(VLOOKUP(C102,Descriptions!$I$6:$K$92,3,FALSE),\"\")","v":""},null,null,null,null,null,null,null,null,null,null,null,null,null,null,"General Fund",null,{"$f":"IFERROR(VLOOKUP(C102,Descriptions!I:M,5,FALSE),\"N\")","v":"N"},true,"NTRUE",0,{"$f":"IFERROR(VLOOKUP(D102,'Bank and Fund Details'!$B$14:$L$35,11,FALSE),\"N\")","v":"Y"},"NY"]
[null,null,null,"General Fund",null,null,null,null,null,{"$f":"VLOOKUP(D103,'Bank and Fund Details'!$B$15:$D$36,3,FALSE)","v":0},{"$f":"VLOOKUP(D103,'Bank and Fund Details'!$B$15:$C$36,2,FALSE)","v":"Unrestricted"},{"$f":"IFERROR(VLOOKUP(C103,Descriptions!$I$6:$K$92,3,FALSE),\"\")","v":""},null,null,null,null,null,null,null,null,null,null,null,null,null,null,"General Fund",null,{"$f":"IFERROR(VLOOKUP(C103,Descriptions!I:M,5,FALSE),\"N\")","v":"N"},true,"NTRUE",0,{"$f":"IFERROR(VLOOKUP(D103,'Bank and Fund Details'!$B$14:$L$35,11,FALSE),\"N\")","v":"Y"},"NY"]
[null,null,null,"General Fund",null,null,null,null,null,{"$f":"VLOOKUP(D104,'Bank and Fund Details'!$B$15:$D$36,3,FALSE)","v":0},{"$f":"VLOOKUP(D104,'Bank and Fund Details'!$B$15:$C$36,2,FALSE)","v":"Unrestricted"},{"$f":"IFERROR(VLOOKUP(C104,Descriptions!$I$6:$K$92,3,FALSE),\"\")","v":""},null,null,null,null,null,null,null,null,null,null,null,null,null,null,"General Fund",null,{"$f":"IFERROR(VLOOKUP(C104,Descriptions!I:M,5,FALSE),\"N\")","v":"N"},true,"NTRUE",0,{"$f":"IFERROR(VLOOKUP(D104,'Bank and Fund Details'!$B$14:$L$35,11,FALSE),\"N\")","v":"Y"},"NY"]
[null,null,null,"General Fund",null,null,null,null,null,{"$f":"VLOOKUP(D105,'Bank and Fund Details'!$B$15:$D$36,3,FALSE)","v":0},{"$f":"VLOOKUP(D105,'Bank and Fund Details'!$B$15:$C$36,2,FALSE)","v":"Unrestricted"},{"$f":"IFERROR(VLOOKUP(C105,Descriptions!$I$6:$K$92,3,FALSE),\"\")","v":""},null,null,null,null,null,null,null,null,null,null,null,null,null,null,"General Fund",null,{"$f":"IFERROR(VLOOKUP(C105,Descriptions!I:M,5,FALSE),\"N\")","v":"N"},true,"NTRUE",0,{"$f":"IFERROR(VLOOKUP(D105,'Bank and Fund Details'!$B$14:$L$35,11,FALSE),\"N\")","v":"Y"},"NY"]
[null,null,null,"General Fund",null,null,null,null,null,{"$f":"VLOOKUP(D106,'Bank and Fund Details'!$B$15:$D$36,3,FALSE)","v":0},{"$f":"VLOOKUP(D106,'Bank and Fund Details'!$B$15:$C$36,2,FALSE)","v":"Unrestricted"},{"$f":"IFERROR(VLOOKUP(C106,Descriptions!$I$6:$K$92,3,FALSE),\"\")","v":""},null,null,null,null,null,null,null,null,null,null,null,null,null,null,"General Fund",null,{"$f":"IFERROR(VLOOKUP(C106,Descriptions!I:M,5,FALSE),\"N\")","v":"N"},true,"NTRUE",0,{"$f":"IFERROR(VLOOKUP(D106,'Bank and Fund Details'!$B$14:$L$35,11,FALSE),\"N\")","v":"Y"},"NY"]
[null,null,null,"General Fund",null,null,null,null,null,{"$f":"VLOOKUP(D107,'Bank and Fund Details'!$B$15:$D$36,3,FALSE)","v":0},{"$f":"VLOOKUP(D107,'Bank and Fund Details'!$B$15:$C$36,2,FALSE)","v":"Unrestricted"},{"$f":"IFERROR(VLOOKUP(C107,Descriptions!$I$6:$K$92,3,FALSE),\"\")","v":""},null,null,null,null,null,null,null,null,null,null,null,null,null,null,"General Fund",null,{"$f":"IFERROR(VLOOKUP(C107,Descriptions!I:M,5,FALSE),\"N\")","v":"N"},true,"NTRUE",0,{"$f":"IFERROR(VLOOKUP(D107,'Bank and Fund Details'!$B$14:$L$35,11,FALSE),\"N\")","v":"Y"},"NY"]
[null,null,null,"General Fund",null,null,null,null,null,{"$f":"VLOOKUP(D108,'Bank and Fund Details'!$B$15:$D$36,3,FALSE)","v":0},{"$f":"VLOOKUP(D108,'Bank and Fund Details'!$B$15:$C$36,2,FALSE)","v":"Unrestricted"},{"$f":"IFERROR(VLOOKUP(C108,Descriptions!$I$6:$K$92,3,FALSE),\"\")","v":""},null,null,null,null,null,null,null,null,null,null,null,null,null,null,"General Fund",null,{"$f":"IFERROR(VLOOKUP(C108,Descriptions!I:M,5,FALSE),\"N\")","v":"N"},true,"NTRUE",0,{"$f":"IFERROR(VLOOKUP(D108,'Bank and Fund Details'!$B$14:$L$35,11,FALSE),\"N\")","v":"Y"},"NY"]
[null,null,null,"General Fund",null,null,null,null,null,{"$f":"VLOOKUP(D109,'Bank and Fund Details'!$B$15:$D$36,3,FALSE)","v":0},{"$f":"VLOOKUP(D109,'Bank and Fund Details'!$B$15:$C$36,2,FALSE)","v":"Unrestricted"},{"$f":"IFERROR(VLOOKUP(C109,Descriptions!$I$6:$K$92,3,FALSE),\"\")","v":""},null,null,null,null,null,null,null,null,null,null,null,null,null,null,"General Fund",null,{"$f":"IFERROR(VLOOKUP(C109,Descriptions!I:M,5,FALSE),\"N\")","v":"N"},true,"NTRUE",0,{"$f":"IFERROR(VLOOKUP(D109,'Bank and Fund Details'!$B$14:$L$35,11,FALSE),\"N\")","v":"Y"},"NY"]
[null,null,null,"General Fund",null,null,null,null,null,{"$f":"VLOOKUP(D110,'Bank and Fund Details'!$B$15:$D$36,3,FALSE)","v":0},{"$f":"VLOOKUP(D110,'Bank and Fund Details'!$B$15:$C$36,2,FALSE)","v":"Unrestricted"},{"$f":"IFERROR(VLOOKUP(C110,Descriptions!$I$6:$K$92,3,FALSE),\"\")","v":""},null,null,null,null,null,null,null,null,null,null,null,null,null,null,"General Fund",null,{"$f":"IFERROR(VLOOKUP(C110,Descriptions!I:M,5,FALSE),\"N\")","v":"N"},true,"NTRUE",0,{"$f":"IFERROR(VLOOKUP(D110,'Bank and Fund Details'!$B$14:$L$35,11,FALSE),\"N\")","v":"Y"},"NY"]
[null,null,null,"General Fund",null,null,null,null,null,{"$f":"VLOOKUP(D111,'Bank and Fund Details'!$B$15:$D$36,3,FALSE)","v":0},{"$f":"VLOOKUP(D111,'Bank and Fund Details'!$B$15:$C$36,2,FALSE)","v":"Unrestricted"},{"$f":"IFERROR(VLOOKUP(C111,Descriptions!$I$6:$K$92,3,FALSE),\"\")","v":""},null,null,null,null,null,null,null,null,null,null,null,null,null,null,"General Fund",null,{"$f":"IFERROR(VLOOKUP(C111,Descriptions!I:M,5,FALSE),\"N\")","v":"N"},true,"NTRUE",0,{"$f":"IFERROR(VLOOKUP(D111,'Bank and Fund Details'!$B$14:$L$35,11,FALSE),\"N\")","v":"Y"},"NY"]
[null,null,null,"General Fund",null,null,null,null,null,{"$f":"VLOOKUP(D112,'Bank and Fund Details'!$B$15:$D$36,3,FALSE)","v":0},{"$f":"VLOOKUP(D112,'Bank and Fund Details'!$B$15:$C$36,2,FALSE)","v":"Unrestricted"},{"$f":"IFERROR(VLOOKUP(C112,Descriptions!$I$6:$K$92,3,FALSE),\"\")","v":""},null,null,null,null,null,null,null,null,null,null,null,null,null,null,"General Fund",null,{"$f":"IFERROR(VLOOKUP(C112,Descriptions!I:M,5,FALSE),\"N\")","v":"N"},true,"NTRUE",0,{"$f":"IFERROR(VLOOKUP(D112,'Bank and Fund Details'!$B$14:$L$35,11,FALSE),\"N\")","v":"Y"},"NY"]
[null,null,null,"General Fund",null,null,null,null,null,{"$f":"VLOOKUP(D113,'Bank and Fund Details'!$B$15:$D$36,3,FALSE)","v":0},{"$f":"VLOOKUP(D113,'Bank and Fund Details'!$B$15:$C$36,2,FALSE)","v":"Unrestricted"},{"$f":"IFERROR(VLOOKUP(C113,Descriptions!$I$6:$K$92,3,FALSE),\"\")","v":""},null,null,null,null,null,null,null,null,null,null,null,null,null,null,"General Fund",null,{"$f":"IFERROR(VLOOKUP(C113,Descriptions!I:M,5,FALSE),\"N\")","v":"N"},true,"NTRUE",0,{"$f":"IFERROR(VLOOKUP(D113,'Bank and Fund Details'!$B$14:$L$35,11,FALSE),\"N\")","v":"Y"},"NY"]
[null,null,null,"General Fund",null,null,null,null,null,{"$f":"VLOOKUP(D114,'Bank and Fund Details'!$B$15:$D$36,3,FALSE)","v":0},{"$f":"VLOOKUP(D114,'Bank and Fund Details'!$B$15:$C$36,2,FALSE)","v":"Unrestricted"},{"$f":"IFERROR(VLOOKUP(C114,Descriptions!$I$6:$K$92,3,FALSE),\"\")","v":""},null,null,null,null,null,null,null,null,null,null,null,null,null,null,"General Fund",null,{"$f":"IFERROR(VLOOKUP(C114,Descriptions!I:M,5,FALSE),\"N\")","v":"N"},true,"NTRUE",0,{"$f":"IFERROR(VLOOKUP(D114,'Bank and Fund Details'!$B$14:$L$35,11,FALSE),\"N\")","v":"Y"},"NY"]
[null,null,null,"General Fund",null,null,null,null,null,{"$f":"VLOOKUP(D115,'Bank and Fund Details'!$B$15:$D$36,3,FALSE)","v":0},{"$f":"VLOOKUP(D115,'Bank and Fund Details'!$B$15:$C$36,2,FALSE)","v":"Unrestricted"},{"$f":"IFERROR(VLOOKUP(C115,Descriptions!$I$6:$K$92,3,FALSE),\"\")","v":""},null,null,null,null,null,null,null,null,null,null,null,null,null,null,"General Fund",null,{"$f":"IFERROR(VLOOKUP(C115,Descriptions!I:M,5,FALSE),\"N\")","v":"N"},true,"NTRUE",0,{"$f":"IFERROR(VLOOKUP(D115,'Bank and Fund Details'!$B$14:$L$35,11,FALSE),\"N\")","v":"Y"},"NY"]
[null,null,null,"General Fund",null,null,null,null,null,{"$f":"VLOOKUP(D116,'Bank and Fund Details'!$B$15:$D$36,3,FALSE)","v":0},{"$f":"VLOOKUP(D116,'Bank and Fund Details'!$B$15:$C$36,2,FALSE)","v":"Unrestricted"},{"$f":"IFERROR(VLOOKUP(C116,Descriptions!$I$6:$K$92,3,FALSE),\"\")","v":""},null,null,null,null,null,null,null,null,null,null,null,null,null,null,"General Fund",null,{"$f":"IFERROR(VLOOKUP(C116,Descriptions!I:M,5,FALSE),\"N\")","v":"N"},true,"NTRUE",0,{"$f":"IFERROR(VLOOKUP(D116,'Bank and Fund Details'!$B$14:$L$35,11,FALSE),\"N\")","v":"Y"},"NY"]
[null,null,null,"General Fund",null,null,null,null,null,{"$f":"VLOOKUP(D117,'Bank and Fund Details'!$B$15:$D$36,3,FALSE)","v":0},{"$f":"VLOOKUP(D117,'Bank and Fund Details'!$B$15:$C$36,2,FALSE)","v":"Unrestricted"},{"$f":"IFERROR(VLOOKUP(C117,Descriptions!$I$6:$K$92,3,FALSE),\"\")","v":""},null,null,null,null,null,null,null,null,null,null,null,null,null,null,"General Fund",null,{"$f":"IFERROR(VLOOKUP(C117,Descriptions!I:M,5,FALSE),\"N\")","v":"N"},true,"NTRUE",0,{"$f":"IFERROR(VLOOKUP(D117,'Bank and Fund Details'!$B$14:$L$35,11,FALSE),\"N\")","v":"Y"},"NY"]
[null,null,null,"General Fund",null,null,null,null,null,{"$f":"VLOOKUP(D118,'Bank and Fund Details'!$B$15:$D$36,3,FALSE)","v":0},{"$f":"VLOOKUP(D118,'Bank and Fund Details'!$B$15:$C$36,2,FALSE)","v":"Unrestricted"},{"$f":"IFERROR(VLOOKUP(C118,Descriptions!$I$6:$K$92,3,FALSE),\"\")","v":""},null,null,null,null,null,null,null,null,null,null,null,null,null,null,"General Fund",null,{"$f":"IFERROR(VLOOKUP(C118,Descriptions!I:M,5,FALSE),\"N\")","v":"N"},true,"NTRUE",0,{"$f":"IFERROR(VLOOKUP(D118,'Bank and Fund Details'!$B$14:$L$35,11,FALSE),\"N\")","v":"Y"},"NY"]
[null,null,null,"General Fund",null,null,null,null,null,{"$f":"VLOOKUP(D119,'Bank and Fund Details'!$B$15:$D$36,3,FALSE)","v":0},{"$f":"VLOOKUP(D119,'Bank and Fund Details'!$B$15:$C$36,2,FALSE)","v":"Unrestricted"},{"$f":"IFERROR(VLOOKUP(C119,Descriptions!$I$6:$K$92,3,FALSE),\"\")","v":""},null,null,null,null,null,null,null,null,null,null,null,null,null,null,"General Fund",null,{"$f":"IFERROR(VLOOKUP(C119,Descriptions!I:M,5,FALSE),\"N\")","v":"N"},true,"NTRUE",0,{"$f":"IFERROR(VLOOKUP(D119,'Bank and Fund Details'!$B$14:$L$35,11,FALSE),\"N\")","v":"Y"},"NY"]
[null,null,null,"General Fund",null,null,null,null,null,{"$f":"VLOOKUP(D120,'Bank and Fund Details'!$B$15:$D$36,3,FALSE)","v":0},{"$f":"VLOOKUP(D120,'Bank and Fund Details'!$B$15:$C$36,2,FALSE)","v":"Unrestricted"},{"$f":"IFERROR(VLOOKUP(C120,Descriptions!$I$6:$K$92,3,FALSE),\"\")","v":""},null,null,null,null,null,null,null,null,null,null,null,null,null,null,"General Fund",null,{"$f":"IFERROR(VLOOKUP(C120,Descriptions!I:M,5,FALSE),\"N\")","v":"N"},true,"NTRUE",0,{"$f":"IFERROR(VLOOKUP(D120,'Bank and Fund Details'!$B$14:$L$35,11,FALSE),\"N\")","v":"Y"},"NY"]
[null,null,null,"General Fund",null,null,null,null,null,{"$f":"VLOOKUP(D121,'Bank and Fund Details'!$B$15:$D$36,3,FALSE)","v":0},{"$f":"VLOOKUP(D121,'Bank and Fund Details'!$B$15:$C$36,2,FALSE)","v":"Unrestricted"},{"$f":"IFERROR(VLOOKUP(C121,Descriptions!$I$6:$K$92,3,FALSE),\"\")","v":""},null,null,null,null,null,null,null,null,null,null,null,null,null,null,"General Fund",null,{"$f":"IFERROR(VLOOKUP(C121,Descriptions!I:M,5,FALSE),\"N\")","v":"N"},true,"NTRUE",0,{"$f":"IFERROR(VLOOKUP(D121,'Bank and Fund Details'!$B$14:$L$35,11,FALSE),\"N\")","v":"Y"},"NY"]
[null,null,null,"General Fund",null,null,null,null,null,{"$f":"VLOOKUP(D122,'Bank and Fund Details'!$B$15:$D$36,3,FALSE)","v":0},{"$f":"VLOOKUP(D122,'Bank and Fund Details'!$B$15:$C$36,2,FALSE)","v":"Unrestricted"},{"$f":"IFERROR(VLOOKUP(C122,Descriptions!$I$6:$K$92,3,FALSE),\"\")","v":""},null,null,null,null,null,null,null,null,null,null,null,null,null,null,"General Fund",null,{"$f":"IFERROR(VLOOKUP(C122,Descriptions!I:M,5,FALSE),\"N\")","v":"N"},true,"NTRUE",0,{"$f":"IFERROR(VLOOKUP(D122,'Bank and Fund Details'!$B$14:$L$35,11,FALSE),\"N\")","v":"Y"},"NY"]
[null,null,null,"General Fund",null,null,null,null,null,{"$f":"VLOOKUP(D123,'Bank and Fund Details'!$B$15:$D$36,3,FALSE)","v":0},{"$f":"VLOOKUP(D123,'Bank and Fund Details'!$B$15:$C$36,2,FALSE)","v":"Unrestricted"},{"$f":"IFERROR(VLOOKUP(C123,Descriptions!$I$6:$K$92,3,FALSE),\"\")","v":""},null,null,null,null,null,null,null,null,null,null,null,null,null,null,"General Fund",null,{"$f":"IFERROR(VLOOKUP(C123,Descriptions!I:M,5,FALSE),\"N\")","v":"N"},true,"NTRUE",0,{"$f":"IFERROR(VLOOKUP(D123,'Bank and Fund Details'!$B$14:$L$35,11,FALSE),\"N\")","v":"Y"},"NY"]
[null,null,null,"General Fund",null,null,null,null,null,{"$f":"VLOOKUP(D124,'Bank and Fund Details'!$B$15:$D$36,3,FALSE)","v":0},{"$f":"VLOOKUP(D124,'Bank and Fund Details'!$B$15:$C$36,2,FALSE)","v":"Unrestricted"},{"$f":"IFERROR(VLOOKUP(C124,Descriptions!$I$6:$K$92,3,FALSE),\"\")","v":""},null,null,null,null,null,null,null,null,null,null,null,null,null,null,"General Fund",null,{"$f":"IFERROR(VLOOKUP(C124,Descriptions!I:M,5,FALSE),\"N\")","v":"N"},true,"NTRUE",0,{"$f":"IFERROR(VLOOKUP(D124,'Bank and Fund Details'!$B$14:$L$35,11,FALSE),\"N\")","v":"Y"},"NY"]
[null,null,null,"General Fund",null,null,null,null,null,{"$f":"VLOOKUP(D125,'Bank and Fund Details'!$B$15:$D$36,3,FALSE)","v":0},{"$f":"VLOOKUP(D125,'Bank and Fund Details'!$B$15:$C$36,2,FALSE)","v":"Unrestricted"},{"$f":"IFERROR(VLOOKUP(C125,Descriptions!$I$6:$K$92,3,FALSE),\"\")","v":""},null,null,null,null,null,null,null,null,null,null,null,null,null,null,"General Fund",null,{"$f":"IFERROR(VLOOKUP(C125,Descriptions!I:M,5,FALSE),\"N\")","v":"N"},true,"NTRUE",0,{"$f":"IFERROR(VLOOKUP(D125,'Bank and Fund Details'!$B$14:$L$35,11,FALSE),\"N\")","v":"Y"},"NY"]
[null,null,null,"General Fund",null,null,null,null,null,{"$f":"VLOOKUP(D126,'Bank and Fund Details'!$B$15:$D$36,3,FALSE)","v":0},{"$f":"VLOOKUP(D126,'Bank and Fund Details'!$B$15:$C$36,2,FALSE)","v":"Unrestricted"},{"$f":"IFERROR(VLOOKUP(C126,Descriptions!$I$6:$K$92,3,FALSE),\"\")","v":""},null,null,null,null,null,null,null,null,null,null,null,null,null,null,"General Fund",null,{"$f":"IFERROR(VLOOKUP(C126,Descriptions!I:M,5,FALSE),\"N\")","v":"N"},true,"NTRUE",0,{"$f":"IFERROR(VLOOKUP(D126,'Bank and Fund Details'!$B$14:$L$35,11,FALSE),\"N\")","v":"Y"},"NY"]
[null,null,null,"General Fund",null,null,null,null,null,{"$f":"VLOOKUP(D127,'Bank and Fund Details'!$B$15:$D$36,3,FALSE)","v":0},{"$f":"VLOOKUP(D127,'Bank and Fund Details'!$B$15:$C$36,2,FALSE)","v":"Unrestricted"},{"$f":"IFERROR(VLOOKUP(C127,Descriptions!$I$6:$K$92,3,FALSE),\"\")","v":""},null,null,null,null,null,null,null,null,null,null,null,null,null,null,"General Fund",null,{"$f":"IFERROR(VLOOKUP(C127,Descriptions!I:M,5,FALSE),\"N\")","v":"N"},true,"NTRUE",0,{"$f":"IFERROR(VLOOKUP(D127,'Bank and Fund Details'!$B$14:$L$35,11,FALSE),\"N\")","v":"Y"},"NY"]
[null,null,null,"General Fund",null,null,null,null,null,{"$f":"VLOOKUP(D128,'Bank and Fund Details'!$B$15:$D$36,3,FALSE)","v":0},{"$f":"VLOOKUP(D128,'Bank and Fund Details'!$B$15:$C$36,2,FALSE)","v":"Unrestricted"},{"$f":"IFERROR(VLOOKUP(C128,Descriptions!$I$6:$K$92,3,FALSE),\"\")","v":""},null,null,null,null,null,null,null,null,null,null,null,null,null,null,"General Fund",null,{"$f":"IFERROR(VLOOKUP(C128,Descriptions!I:M,5,FALSE),\"N\")","v":"N"},true,"NTRUE",0,{"$f":"IFERROR(VLOOKUP(D128,'Bank and Fund Details'!$B$14:$L$35,11,FALSE),\"N\")","v":"Y"},"NY"]
[null,null,null,"General Fund",null,null,null,null,null,{"$f":"VLOOKUP(D129,'Bank and Fund Details'!$B$15:$D$36,3,FALSE)","v":0},{"$f":"VLOOKUP(D129,'Bank and Fund Details'!$B$15:$C$36,2,FALSE)","v":"Unrestricted"},{"$f":"IFERROR(VLOOKUP(C129,Descriptions!$I$6:$K$92,3,FALSE),\"\")","v":""},null,null,null,null,null,null,null,null,null,null,null,null,null,null,"General Fund",null,{"$f":"IFERROR(VLOOKUP(C129,Descriptions!I:M,5,FALSE),\"N\")","v":"N"},true,"NTRUE",0,{"$f":"IFERROR(VLOOKUP(D129,'Bank and Fund Details'!$B$14:$L$35,11,FALSE),\"N\")","v":"Y"},"NY"]
[null,null,null,"General Fund",null,null,null,null,null,{"$f":"VLOOKUP(D130,'Bank and Fund Details'!$B$15:$D$36,3,FALSE)","v":0},{"$f":"VLOOKUP(D130,'Bank and Fund Details'!$B$15:$C$36,2,FALSE)","v":"Unrestricted"},{"$f":"IFERROR(VLOOKUP(C130,Descriptions!$I$6:$K$92,3,FALSE),\"\")","v":""},null,null,null,null,null,null,null,null,null,null,null,null,null,null,"General Fund",null,{"$f":"IFERROR(VLOOKUP(C130,Descriptions!I:M,5,FALSE),\"N\")","v":"N"},true,"NTRUE",0,{"$f":"IFERROR(VLOOKUP(D130,'Bank and Fund Details'!$B$14:$L$35,11,FALSE),\"N\")","v":"Y"},"NY"]
[null,null,null,"General Fund",null,null,null,null,null,{"$f":"VLOOKUP(D131,'Bank and Fund Details'!$B$15:$D$36,3,FALSE)","v":0},{"$f":"VLOOKUP(D131,'Bank and Fund Details'!$B$15:$C$36,2,FALSE)","v":"Unrestricted"},{"$f":"IFERROR(VLOOKUP(C131,Descriptions!$I$6:$K$92,3,FALSE),\"\")","v":""},null,null,null,null,null,null,null,null,null,null,null,null,null,null,"General Fund",null,{"$f":"IFERROR(VLOOKUP(C131,Descriptions!I:M,5,FALSE),\"N\")","v":"N"},true,"NTRUE",0,{"$f":"IFERROR(VLOOKUP(D131,'Bank and Fund Details'!$B$14:$L$35,11,FALSE),\"N\")","v":"Y"},"NY"]
[null,null,null,"General Fund",null,null,null,null,null,{"$f":"VLOOKUP(D132,'Bank and Fund Details'!$B$15:$D$36,3,FALSE)","v":0},{"$f":"VLOOKUP(D132,'Bank and Fund Details'!$B$15:$C$36,2,FALSE)","v":"Unrestricted"},{"$f":"IFERROR(VLOOKUP(C132,Descriptions!$I$6:$K$92,3,FALSE),\"\")","v":""},null,null,null,null,null,null,null,null,null,null,null,null,null,null,"General Fund",null,{"$f":"IFERROR(VLOOKUP(C132,Descriptions!I:M,5,FALSE),\"N\")","v":"N"},true,"NTRUE",0,{"$f":"IFERROR(VLOOKUP(D132,'Bank and Fund Details'!$B$14:$L$35,11,FALSE),\"N\")","v":"Y"},"NY"]
[null,null,null,"General Fund",null,null,null,null,null,{"$f":"VLOOKUP(D133,'Bank and Fund Details'!$B$15:$D$36,3,FALSE)","v":0},{"$f":"VLOOKUP(D133,'Bank and Fund Details'!$B$15:$C$36,2,FALSE)","v":"Unrestricted"},{"$f":"IFERROR(VLOOKUP(C133,Descriptions!$I$6:$K$92,3,FALSE),\"\")","v":""},null,null,null,null,null,null,null,null,null,null,null,null,null,null,"General Fund",null,{"$f":"IFERROR(VLOOKUP(C133,Descriptions!I:M,5,FALSE),\"N\")","v":"N"},true,"NTRUE",0,{"$f":"IFERROR(VLOOKUP(D133,'Bank and Fund Details'!$B$14:$L$35,11,FALSE),\"N\")","v":"Y"},"NY"]
[null,null,null,"General Fund",null,null,null,null,null,{"$f":"VLOOKUP(D134,'Bank and Fund Details'!$B$15:$D$36,3,FALSE)","v":0},{"$f":"VLOOKUP(D134,'Bank and Fund Details'!$B$15:$C$36,2,FALSE)","v":"Unrestricted"},{"$f":"IFERROR(VLOOKUP(C134,Descriptions!$I$6:$K$92,3,FALSE),\"\")","v":""},null,null,null,null,null,null,null,null,null,null,null,null,null,null,{"$f":"CONCATENATE(C134,D134)","v":"General Fund"},null,{"$f":"IFERROR(VLOOKUP(C134,Descriptions!I:M,5,FALSE),\"N\")","v":"N"},{"$f":"ISBLANK(C134)","v":true},{"$f":"CONCATENATE(AC134,AD134)","v":"NTRUE"},{"$f":"IF(AE134=\"NFALSE\",1,0)","v":0},{"$f":"IFERROR(VLOOKUP(D134,'Bank and Fund Details'!$B$14:$L$35,11,FALSE),\"N\")","v":"Y"},{"$f":"CONCATENATE(AC134,AG134)","v":"NY"}]
[null,null,null,"General Fund",null,null,null,null,null,{"$f":"VLOOKUP(D135,'Bank and Fund Details'!$B$15:$D$36,3,FALSE)","v":0},{"$f":"VLOOKUP(D135,'Bank and Fund Details'!$B$15:$C$36,2,FALSE)","v":"Unrestricted"},{"$f":"IFERROR(VLOOKUP(C135,Descriptions!$I$6:$K$92,3,FALSE),\"\")","v":""},null,null,null,null,null,null,null,null,null,null,null,null,null,null,"General Fund",null,{"$f":"IFERROR(VLOOKUP(C135,Descriptions!I:M,5,FALSE),\"N\")","v":"N"},true,"NTRUE",0,{"$f":"IFERROR(VLOOKUP(D135,'Bank and Fund Details'!$B$14:$L$35,11,FALSE),\"N\")","v":"Y"},"NY"]
[null,null,null,"General Fund",null,null,null,null,null,{"$f":"VLOOKUP(D136,'Bank and Fund Details'!$B$15:$D$36,3,FALSE)","v":0},{"$f":"VLOOKUP(D136,'Bank and Fund Details'!$B$15:$C$36,2,FALSE)","v":"Unrestricted"},{"$f":"IFERROR(VLOOKUP(C136,Descriptions!$I$6:$K$92,3,FALSE),\"\")","v":""},null,null,null,null,null,null,null,null,null,null,null,null,null,null,"General Fund",null,{"$f":"IFERROR(VLOOKUP(C136,Descriptions!I:M,5,FALSE),\"N\")","v":"N"},true,"NTRUE",0,{"$f":"IFERROR(VLOOKUP(D136,'Bank and Fund Details'!$B$14:$L$35,11,FALSE),\"N\")","v":"Y"},"NY"]
[null,null,null,"General Fund",null,null,null,null,null,{"$f":"VLOOKUP(D137,'Bank and Fund Details'!$B$15:$D$36,3,FALSE)","v":0},{"$f":"VLOOKUP(D137,'Bank and Fund Details'!$B$15:$C$36,2,FALSE)","v":"Unrestricted"},{"$f":"IFERROR(VLOOKUP(C137,Descriptions!$I$6:$K$92,3,FALSE),\"\")","v":""},null,null,null,null,null,null,null,null,null,null,null,null,null,null,"General Fund",null,{"$f":"IFERROR(VLOOKUP(C137,Descriptions!I:M,5,FALSE),\"N\")","v":"N"},true,"NTRUE",0,{"$f":"IFERROR(VLOOKUP(D137,'Bank and Fund Details'!$B$14:$L$35,11,FALSE),\"N\")","v":"Y"},"NY"]
[null,null,null,"General Fund",null,null,null,null,null,{"$f":"VLOOKUP(D138,'Bank and Fund Details'!$B$15:$D$36,3,FALSE)","v":0},{"$f":"VLOOKUP(D138,'Bank and Fund Details'!$B$15:$C$36,2,FALSE)","v":"Unrestricted"},{"$f":"IFERROR(VLOOKUP(C138,Descriptions!$I$6:$K$92,3,FALSE),\"\")","v":""},null,null,null,null,null,null,null,null,null,null,null,null,null,null,"General Fund",null,{"$f":"IFERROR(VLOOKUP(C138,Descriptions!I:M,5,FALSE),\"N\")","v":"N"},true,"NTRUE",0,{"$f":"IFERROR(VLOOKUP(D138,'Bank and Fund Details'!$B$14:$L$35,11,FALSE),\"N\")","v":"Y"},"NY"]
[null,null,null,"General Fund",null,null,null,null,null,{"$f":"VLOOKUP(D139,'Bank and Fund Details'!$B$15:$D$36,3,FALSE)","v":0},{"$f":"VLOOKUP(D139,'Bank and Fund Details'!$B$15:$C$36,2,FALSE)","v":"Unrestricted"},{"$f":"IFERROR(VLOOKUP(C139,Descriptions!$I$6:$K$92,3,FALSE),\"\")","v":""},null,null,null,null,null,null,null,null,null,null,null,null,null,null,"General Fund",null,{"$f":"IFERROR(VLOOKUP(C139,Descriptions!I:M,5,FALSE),\"N\")","v":"N"},true,"NTRUE",0,{"$f":"IFERROR(VLOOKUP(D139,'Bank and Fund Details'!$B$14:$L$35,11,FALSE),\"N\")","v":"Y"},"NY"]
[null,null,null,"General Fund",null,null,null,null,null,{"$f":"VLOOKUP(D140,'Bank and Fund Details'!$B$15:$D$36,3,FALSE)","v":0},{"$f":"VLOOKUP(D140,'Bank and Fund Details'!$B$15:$C$36,2,FALSE)","v":"Unrestricted"},{"$f":"IFERROR(VLOOKUP(C140,Descriptions!$I$6:$K$92,3,FALSE),\"\")","v":""},null,null,null,null,null,null,null,null,null,null,null,null,null,null,"General Fund",null,{"$f":"IFERROR(VLOOKUP(C140,Descriptions!I:M,5,FALSE),\"N\")","v":"N"},true,"NTRUE",0,{"$f":"IFERROR(VLOOKUP(D140,'Bank and Fund Details'!$B$14:$L$35,11,FALSE),\"N\")","v":"Y"},"NY"]
[null,null,null,"General Fund",null,null,null,null,null,{"$f":"VLOOKUP(D141,'Bank and Fund Details'!$B$15:$D$36,3,FALSE)","v":0},{"$f":"VLOOKUP(D141,'Bank and Fund Details'!$B$15:$C$36,2,FALSE)","v":"Unrestricted"},{"$f":"IFERROR(VLOOKUP(C141,Descriptions!$I$6:$K$92,3,FALSE),\"\")","v":""},null,null,null,null,null,null,null,null,null,null,null,null,null,null,"General Fund",null,{"$f":"IFERROR(VLOOKUP(C141,Descriptions!I:M,5,FALSE),\"N\")","v":"N"},true,"NTRUE",0,{"$f":"IFERROR(VLOOKUP(D141,'Bank and Fund Details'!$B$14:$L$35,11,FALSE),\"N\")","v":"Y"},"NY"]
[null,null,null,"General Fund",null,null,null,null,null,{"$f":"VLOOKUP(D142,'Bank and Fund Details'!$B$15:$D$36,3,FALSE)","v":0},{"$f":"VLOOKUP(D142,'Bank and Fund Details'!$B$15:$C$36,2,FALSE)","v":"Unrestricted"},{"$f":"IFERROR(VLOOKUP(C142,Descriptions!$I$6:$K$92,3,FALSE),\"\")","v":""},null,null,null,null,null,null,null,null,null,null,null,null,null,null,"General Fund",null,{"$f":"IFERROR(VLOOKUP(C142,Descriptions!I:M,5,FALSE),\"N\")","v":"N"},true,"NTRUE",0,{"$f":"IFERROR(VLOOKUP(D142,'Bank and Fund Details'!$B$14:$L$35,11,FALSE),\"N\")","v":"Y"},"NY"]
[null,null,null,"General Fund",null,null,null,null,null,{"$f":"VLOOKUP(D143,'Bank and Fund Details'!$B$15:$D$36,3,FALSE)","v":0},{"$f":"VLOOKUP(D143,'Bank and Fund Details'!$B$15:$C$36,2,FALSE)","v":"Unrestricted"},{"$f":"IFERROR(VLOOKUP(C143,Descriptions!$I$6:$K$92,3,FALSE),\"\")","v":""},null,null,null,null,null,null,null,null,null,null,null,null,null,null,"General Fund",null,{"$f":"IFERROR(VLOOKUP(C143,Descriptions!I:M,5,FALSE),\"N\")","v":"N"},true,"NTRUE",0,{"$f":"IFERROR(VLOOKUP(D143,'Bank and Fund Details'!$B$14:$L$35,11,FALSE),\"N\")","v":"Y"},"NY"]
[null,null,null,"General Fund",null,null,null,null,null,{"$f":"VLOOKUP(D144,'Bank and Fund Details'!$B$15:$D$36,3,FALSE)","v":0},{"$f":"VLOOKUP(D144,'Bank and Fund Details'!$B$15:$C$36,2,FALSE)","v":"Unrestricted"},{"$f":"IFERROR(VLOOKUP(C144,Descriptions!$I$6:$K$92,3,FALSE),\"\")","v":""},null,null,null,null,null,null,null,null,null,null,null,null,null,null,"General Fund",null,{"$f":"IFERROR(VLOOKUP(C144,Descriptions!I:M,5,FALSE),\"N\")","v":"N"},true,"NTRUE",0,{"$f":"IFERROR(VLOOKUP(D144,'Bank and Fund Details'!$B$14:$L$35,11,FALSE),\"N\")","v":"Y"},"NY"]
[null,null,null,"General Fund",null,null,null,null,null,{"$f":"VLOOKUP(D145,'Bank and Fund Details'!$B$15:$D$36,3,FALSE)","v":0},{"$f":"VLOOKUP(D145,'Bank and Fund Details'!$B$15:$C$36,2,FALSE)","v":"Unrestricted"},{"$f":"IFERROR(VLOOKUP(C145,Descriptions!$I$6:$K$92,3,FALSE),\"\")","v":""},null,null,null,null,null,null,null,null,null,null,null,null,null,null,"General Fund",null,{"$f":"IFERROR(VLOOKUP(C145,Descriptions!I:M,5,FALSE),\"N\")","v":"N"},true,"NTRUE",0,{"$f":"IFERROR(VLOOKUP(D145,'Bank and Fund Details'!$B$14:$L$35,11,FALSE),\"N\")","v":"Y"},"NY"]
[null,null,null,"General Fund",null,null,null,null,null,{"$f":"VLOOKUP(D146,'Bank and Fund Details'!$B$15:$D$36,3,FALSE)","v":0},{"$f":"VLOOKUP(D146,'Bank and Fund Details'!$B$15:$C$36,2,FALSE)","v":"Unrestricted"},{"$f":"IFERROR(VLOOKUP(C146,Descriptions!$I$6:$K$92,3,FALSE),\"\")","v":""},null,null,null,null,null,null,null,null,null,null,null,null,null,null,"General Fund",null,{"$f":"IFERROR(VLOOKUP(C146,Descriptions!I:M,5,FALSE),\"N\")","v":"N"},true,"NTRUE",0,{"$f":"IFERROR(VLOOKUP(D146,'Bank and Fund Details'!$B$14:$L$35,11,FALSE),\"N\")","v":"Y"},"NY"]
[null,null,null,"General Fund",null,null,null,null,null,{"$f":"VLOOKUP(D147,'Bank and Fund Details'!$B$15:$D$36,3,FALSE)","v":0},{"$f":"VLOOKUP(D147,'Bank and Fund Details'!$B$15:$C$36,2,FALSE)","v":"Unrestricted"},{"$f":"IFERROR(VLOOKUP(C147,Descriptions!$I$6:$K$92,3,FALSE),\"\")","v":""},null,null,null,null,null,null,null,null,null,null,null,null,null,null,"General Fund",null,{"$f":"IFERROR(VLOOKUP(C147,Descriptions!I:M,5,FALSE),\"N\")","v":"N"},true,"NTRUE",0,{"$f":"IFERROR(VLOOKUP(D147,'Bank and Fund Details'!$B$14:$L$35,11,FALSE),\"N\")","v":"Y"},"NY"]
[null,null,null,"General Fund",null,null,null,null,null,{"$f":"VLOOKUP(D148,'Bank and Fund Details'!$B$15:$D$36,3,FALSE)","v":0},{"$f":"VLOOKUP(D148,'Bank and Fund Details'!$B$15:$C$36,2,FALSE)","v":"Unrestricted"},{"$f":"IFERROR(VLOOKUP(C148,Descriptions!$I$6:$K$92,3,FALSE),\"\")","v":""},null,null,null,null,null,null,null,null,null,null,null,null,null,null,"General Fund",null,{"$f":"IFERROR(VLOOKUP(C148,Descriptions!I:M,5,FALSE),\"N\")","v":"N"},true,"NTRUE",0,{"$f":"IFERROR(VLOOKUP(D148,'Bank and Fund Details'!$B$14:$L$35,11,FALSE),\"N\")","v":"Y"},"NY"]
[null,null,null,"General Fund",null,null,null,null,null,{"$f":"VLOOKUP(D149,'Bank and Fund Details'!$B$15:$D$36,3,FALSE)","v":0},{"$f":"VLOOKUP(D149,'Bank and Fund Details'!$B$15:$C$36,2,FALSE)","v":"Unrestricted"},{"$f":"IFERROR(VLOOKUP(C149,Descriptions!$I$6:$K$92,3,FALSE),\"\")","v":""},null,null,null,null,null,null,null,null,null,null,null,null,null,null,"General Fund",null,{"$f":"IFERROR(VLOOKUP(C149,Descriptions!I:M,5,FALSE),\"N\")","v":"N"},true,"NTRUE",0,{"$f":"IFERROR(VLOOKUP(D149,'Bank and Fund Details'!$B$14:$L$35,11,FALSE),\"N\")","v":"Y"},"NY"]
[null,null,null,"General Fund",null,null,null,null,null,{"$f":"VLOOKUP(D150,'Bank and Fund Details'!$B$15:$D$36,3,FALSE)","v":0},{"$f":"VLOOKUP(D150,'Bank and Fund Details'!$B$15:$C$36,2,FALSE)","v":"Unrestricted"},{"$f":"IFERROR(VLOOKUP(C150,Descriptions!$I$6:$K$92,3,FALSE),\"\")","v":""},null,null,null,null,null,null,null,null,null,null,null,null,null,null,"General Fund",null,{"$f":"IFERROR(VLOOKUP(C150,Descriptions!I:M,5,FALSE),\"N\")","v":"N"},true,"NTRUE",0,{"$f":"IFERROR(VLOOKUP(D150,'Bank and Fund Details'!$B$14:$L$35,11,FALSE),\"N\")","v":"Y"},"NY"]
[null,null,null,"General Fund",null,null,null,null,null,{"$f":"VLOOKUP(D151,'Bank and Fund Details'!$B$15:$D$36,3,FALSE)","v":0},{"$f":"VLOOKUP(D151,'Bank and Fund Details'!$B$15:$C$36,2,FALSE)","v":"Unrestricted"},{"$f":"IFERROR(VLOOKUP(C151,Descriptions!$I$6:$K$92,3,FALSE),\"\")","v":""},null,null,null,null,null,null,null,null,null,null,null,null,null,null,"General Fund",null,{"$f":"IFERROR(VLOOKUP(C151,Descriptions!I:M,5,FALSE),\"N\")","v":"N"},true,"NTRUE",0,{"$f":"IFERROR(VLOOKUP(D151,'Bank and Fund Details'!$B$14:$L$35,11,FALSE),\"N\")","v":"Y"},"NY"]
[null,null,null,"General Fund",null,null,null,null,null,{"$f":"VLOOKUP(D152,'Bank and Fund Details'!$B$15:$D$36,3,FALSE)","v":0},{"$f":"VLOOKUP(D152,'Bank and Fund Details'!$B$15:$C$36,2,FALSE)","v":"Unrestricted"},{"$f":"IFERROR(VLOOKUP(C152,Descriptions!$I$6:$K$92,3,FALSE),\"\")","v":""},null,null,null,null,null,null,null,null,null,null,null,null,null,null,"General Fund",null,{"$f":"IFERROR(VLOOKUP(C152,Descriptions!I:M,5,FALSE),\"N\")","v":"N"},true,"NTRUE",0,{"$f":"IFERROR(VLOOKUP(D152,'Bank and Fund Details'!$B$14:$L$35,11,FALSE),\"N\")","v":"Y"},"NY"]
[null,null,null,"General Fund",null,null,null,null,null,{"$f":"VLOOKUP(D153,'Bank and Fund Details'!$B$15:$D$36,3,FALSE)","v":0},{"$f":"VLOOKUP(D153,'Bank and Fund Details'!$B$15:$C$36,2,FALSE)","v":"Unrestricted"},{"$f":"IFERROR(VLOOKUP(C153,Descriptions!$I$6:$K$92,3,FALSE),\"\")","v":""},null,null,null,null,null,null,null,null,null,null,null,null,null,null,"General Fund",null,{"$f":"IFERROR(VLOOKUP(C153,Descriptions!I:M,5,FALSE),\"N\")","v":"N"},true,"NTRUE",0,{"$f":"IFERROR(VLOOKUP(D153,'Bank and Fund Details'!$B$14:$L$35,11,FALSE),\"N\")","v":"Y"},"NY"]
[null,null,null,"General Fund",null,null,null,null,null,{"$f":"VLOOKUP(D154,'Bank and Fund Details'!$B$15:$D$36,3,FALSE)","v":0},{"$f":"VLOOKUP(D154,'Bank and Fund Details'!$B$15:$C$36,2,FALSE)","v":"Unrestricted"},{"$f":"IFERROR(VLOOKUP(C154,Descriptions!$I$6:$K$92,3,FALSE),\"\")","v":""},null,null,null,null,null,null,null,null,null,null,null,null,null,null,"General Fund",null,{"$f":"IFERROR(VLOOKUP(C154,Descriptions!I:M,5,FALSE),\"N\")","v":"N"},true,"NTRUE",0,{"$f":"IFERROR(VLOOKUP(D154,'Bank and Fund Details'!$B$14:$L$35,11,FALSE),\"N\")","v":"Y"},"NY"]
[null,null,null,"General Fund",null,null,null,null,null,{"$f":"VLOOKUP(D155,'Bank and Fund Details'!$B$15:$D$36,3,FALSE)","v":0},{"$f":"VLOOKUP(D155,'Bank and Fund Details'!$B$15:$C$36,2,FALSE)","v":"Unrestricted"},{"$f":"IFERROR(VLOOKUP(C155,Descriptions!$I$6:$K$92,3,FALSE),\"\")","v":""},null,null,null,null,null,null,null,null,null,null,null,null,null,null,"General Fund",null,{"$f":"IFERROR(VLOOKUP(C155,Descriptions!I:M,5,FALSE),\"N\")","v":"N"},true,"NTRUE",0,{"$f":"IFERROR(VLOOKUP(D155,'Bank and Fund Details'!$B$14:$L$35,11,FALSE),\"N\")","v":"Y"},"NY"]
[null,null,null,"General Fund",null,null,null,null,null,{"$f":"VLOOKUP(D156,'Bank and Fund Details'!$B$15:$D$36,3,FALSE)","v":0},{"$f":"VLOOKUP(D156,'Bank and Fund Details'!$B$15:$C$36,2,FALSE)","v":"Unrestricted"},{"$f":"IFERROR(VLOOKUP(C156,Descriptions!$I$6:$K$92,3,FALSE),\"\")","v":""},null,null,null,null,null,null,null,null,null,null,null,null,null,null,"General Fund",null,{"$f":"IFERROR(VLOOKUP(C156,Descriptions!I:M,5,FALSE),\"N\")","v":"N"},true,"NTRUE",0,{"$f":"IFERROR(VLOOKUP(D156,'Bank and Fund Details'!$B$14:$L$35,11,FALSE),\"N\")","v":"Y"},"NY"]
[null,null,null,"General Fund",null,null,null,null,null,{"$f":"VLOOKUP(D157,'Bank and Fund Details'!$B$15:$D$36,3,FALSE)","v":0},{"$f":"VLOOKUP(D157,'Bank and Fund Details'!$B$15:$C$36,2,FALSE)","v":"Unrestricted"},{"$f":"IFERROR(VLOOKUP(C157,Descriptions!$I$6:$K$92,3,FALSE),\"\")","v":""},null,null,null,null,null,null,null,null,null,null,null,null,null,null,"General Fund",null,{"$f":"IFERROR(VLOOKUP(C157,Descriptions!I:M,5,FALSE),\"N\")","v":"N"},true,"NTRUE",0,{"$f":"IFERROR(VLOOKUP(D157,'Bank and Fund Details'!$B$14:$L$35,11,FALSE),\"N\")","v":"Y"},"NY"]
[null,null,null,"General Fund",null,null,null,null,null,{"$f":"VLOOKUP(D158,'Bank and Fund Details'!$B$15:$D$36,3,FALSE)","v":0},{"$f":"VLOOKUP(D158,'Bank and Fund Details'!$B$15:$C$36,2,FALSE)","v":"Unrestricted"},{"$f":"IFERROR(VLOOKUP(C158,Descriptions!$I$6:$K$92,3,FALSE),\"\")","v":""},null,null,null,null,null,null,null,null,null,null,null,null,null,null,"General Fund",null,{"$f":"IFERROR(VLOOKUP(C158,Descriptions!I:M,5,FALSE),\"N\")","v":"N"},true,"NTRUE",0,{"$f":"IFERROR(VLOOKUP(D158,'Bank and Fund Details'!$B$14:$L$35,11,FALSE),\"N\")","v":"Y"},"NY"]
[null,null,null,"General Fund",null,null,null,null,null,{"$f":"VLOOKUP(D159,'Bank and Fund Details'!$B$15:$D$36,3,FALSE)","v":0},{"$f":"VLOOKUP(D159,'Bank and Fund Details'!$B$15:$C$36,2,FALSE)","v":"Unrestricted"},{"$f":"IFERROR(VLOOKUP(C159,Descriptions!$I$6:$K$92,3,FALSE),\"\")","v":""},null,null,null,null,null,null,null,null,null,null,null,null,null,null,"General Fund",null,{"$f":"IFERROR(VLOOKUP(C159,Descriptions!I:M,5,FALSE),\"N\")","v":"N"},true,"NTRUE",0,{"$f":"IFERROR(VLOOKUP(D159,'Bank and Fund Details'!$B$14:$L$35,11,FALSE),\"N\")","v":"Y"},"NY"]
[null,null,null,"General Fund",null,null,null,null,null,{"$f":"VLOOKUP(D160,'Bank and Fund Details'!$B$15:$D$36,3,FALSE)","v":0},{"$f":"VLOOKUP(D160,'Bank and Fund Details'!$B$15:$C$36,2,FALSE)","v":"Unrestricted"},{"$f":"IFERROR(VLOOKUP(C160,Descriptions!$I$6:$K$92,3,FALSE),\"\")","v":""},null,null,null,null,null,null,null,null,null,null,null,null,null,null,"General Fund",null,{"$f":"IFERROR(VLOOKUP(C160,Descriptions!I:M,5,FALSE),\"N\")","v":"N"},true,"NTRUE",0,{"$f":"IFERROR(VLOOKUP(D160,'Bank and Fund Details'!$B$14:$L$35,11,FALSE),\"N\")","v":"Y"},"NY"]
[null,null,null,"General Fund",null,null,null,null,null,{"$f":"VLOOKUP(D161,'Bank and Fund Details'!$B$15:$D$36,3,FALSE)","v":0},{"$f":"VLOOKUP(D161,'Bank and Fund Details'!$B$15:$C$36,2,FALSE)","v":"Unrestricted"},{"$f":"IFERROR(VLOOKUP(C161,Descriptions!$I$6:$K$92,3,FALSE),\"\")","v":""},null,null,null,null,null,null,null,null,null,null,null,null,null,null,"General Fund",null,{"$f":"IFERROR(VLOOKUP(C161,Descriptions!I:M,5,FALSE),\"N\")","v":"N"},true,"NTRUE",0,{"$f":"IFERROR(VLOOKUP(D161,'Bank and Fund Details'!$B$14:$L$35,11,FALSE),\"N\")","v":"Y"},"NY"]
[null,null,null,"General Fund",null,null,null,null,null,{"$f":"VLOOKUP(D162,'Bank and Fund Details'!$B$15:$D$36,3,FALSE)","v":0},{"$f":"VLOOKUP(D162,'Bank and Fund Details'!$B$15:$C$36,2,FALSE)","v":"Unrestricted"},{"$f":"IFERROR(VLOOKUP(C162,Descriptions!$I$6:$K$92,3,FALSE),\"\")","v":""},null,null,null,null,null,null,null,null,null,null,null,null,null,null,"General Fund",null,{"$f":"IFERROR(VLOOKUP(C162,Descriptions!I:M,5,FALSE),\"N\")","v":"N"},true,"NTRUE",0,{"$f":"IFERROR(VLOOKUP(D162,'Bank and Fund Details'!$B$14:$L$35,11,FALSE),\"N\")","v":"Y"},"NY"]
[null,null,null,"General Fund",null,null,null,null,null,{"$f":"VLOOKUP(D163,'Bank and Fund Details'!$B$15:$D$36,3,FALSE)","v":0},{"$f":"VLOOKUP(D163,'Bank and Fund Details'!$B$15:$C$36,2,FALSE)","v":"Unrestricted"},{"$f":"IFERROR(VLOOKUP(C163,Descriptions!$I$6:$K$92,3,FALSE),\"\")","v":""},null,null,null,null,null,null,null,null,null,null,null,null,null,null,"General Fund",null,{"$f":"IFERROR(VLOOKUP(C163,Descriptions!I:M,5,FALSE),\"N\")","v":"N"},true,"NTRUE",0,{"$f":"IFERROR(VLOOKUP(D163,'Bank and Fund Details'!$B$14:$L$35,11,FALSE),\"N\")","v":"Y"},"NY"]
[null,null,null,"General Fund",null,null,null,null,null,{"$f":"VLOOKUP(D164,'Bank and Fund Details'!$B$15:$D$36,3,FALSE)","v":0},{"$f":"VLOOKUP(D164,'Bank and Fund Details'!$B$15:$C$36,2,FALSE)","v":"Unrestricted"},{"$f":"IFERROR(VLOOKUP(C164,Descriptions!$I$6:$K$92,3,FALSE),\"\")","v":""},null,null,null,null,null,null,null,null,null,null,null,null,null,null,"General Fund",null,{"$f":"IFERROR(VLOOKUP(C164,Descriptions!I:M,5,FALSE),\"N\")","v":"N"},true,"NTRUE",0,{"$f":"IFERROR(VLOOKUP(D164,'Bank and Fund Details'!$B$14:$L$35,11,FALSE),\"N\")","v":"Y"},"NY"]
[null,null,null,"General Fund",null,null,null,null,null,{"$f":"VLOOKUP(D165,'Bank and Fund Details'!$B$15:$D$36,3,FALSE)","v":0},{"$f":"VLOOKUP(D165,'Bank and Fund Details'!$B$15:$C$36,2,FALSE)","v":"Unrestricted"},{"$f":"IFERROR(VLOOKUP(C165,Descriptions!$I$6:$K$92,3,FALSE),\"\")","v":""},null,null,null,null,null,null,null,null,null,null,null,null,null,null,"General Fund",null,{"$f":"IFERROR(VLOOKUP(C165,Descriptions!I:M,5,FALSE),\"N\")","v":"N"},true,"NTRUE",0,{"$f":"IFERROR(VLOOKUP(D165,'Bank and Fund Details'!$B$14:$L$35,11,FALSE),\"N\")","v":"Y"},"NY"]
[null,null,null,"General Fund",null,null,null,null,null,{"$f":"VLOOKUP(D166,'Bank and Fund Details'!$B$15:$D$36,3,FALSE)","v":0},{"$f":"VLOOKUP(D166,'Bank and Fund Details'!$B$15:$C$36,2,FALSE)","v":"Unrestricted"},{"$f":"IFERROR(VLOOKUP(C166,Descriptions!$I$6:$K$92,3,FALSE),\"\")","v":""},null,null,null,null,null,null,null,null,null,null,null,null,null,null,"General Fund",null,{"$f":"IFERROR(VLOOKUP(C166,Descriptions!I:M,5,FALSE),\"N\")","v":"N"},true,"NTRUE",0,{"$f":"IFERROR(VLOOKUP(D166,'Bank and Fund Details'!$B$14:$L$35,11,FALSE),\"N\")","v":"Y"},"NY"]
[null,null,null,"General Fund",null,null,null,null,null,{"$f":"VLOOKUP(D167,'Bank and Fund Details'!$B$15:$D$36,3,FALSE)","v":0},{"$f":"VLOOKUP(D167,'Bank and Fund Details'!$B$15:$C$36,2,FALSE)","v":"Unrestricted"},{"$f":"IFERROR(VLOOKUP(C167,Descriptions!$I$6:$K$92,3,FALSE),\"\")","v":""},null,null,null,null,null,null,null,null,null,null,null,null,null,null,"General Fund",null,{"$f":"IFERROR(VLOOKUP(C167,Descriptions!I:M,5,FALSE),\"N\")","v":"N"},true,"NTRUE",0,{"$f":"IFERROR(VLOOKUP(D167,'Bank and Fund Details'!$B$14:$L$35,11,FALSE),\"N\")","v":"Y"},"NY"]
[null,null,null,"General Fund",null,null,null,null,null,{"$f":"VLOOKUP(D168,'Bank and Fund Details'!$B$15:$D$36,3,FALSE)","v":0},{"$f":"VLOOKUP(D168,'Bank and Fund Details'!$B$15:$C$36,2,FALSE)","v":"Unrestricted"},{"$f":"IFERROR(VLOOKUP(C168,Descriptions!$I$6:$K$92,3,FALSE),\"\")","v":""},null,null,null,null,null,null,null,null,null,null,null,null,null,null,"General Fund",null,{"$f":"IFERROR(VLOOKUP(C168,Descriptions!I:M,5,FALSE),\"N\")","v":"N"},true,"NTRUE",0,{"$f":"IFERROR(VLOOKUP(D168,'Bank and Fund Details'!$B$14:$L$35,11,FALSE),\"N\")","v":"Y"},"NY"]
[null,null,null,"General Fund",null,null,null,null,null,{"$f":"VLOOKUP(D169,'Bank and Fund Details'!$B$15:$D$36,3,FALSE)","v":0},{"$f":"VLOOKUP(D169,'Bank and Fund Details'!$B$15:$C$36,2,FALSE)","v":"Unrestricted"},{"$f":"IFERROR(VLOOKUP(C169,Descriptions!$I$6:$K$92,3,FALSE),\"\")","v":""},null,null,null,null,null,null,null,null,null,null,null,null,null,null,"General Fund",null,{"$f":"IFERROR(VLOOKUP(C169,Descriptions!I:M,5,FALSE),\"N\")","v":"N"},true,"NTRUE",0,{"$f":"IFERROR(VLOOKUP(D169,'Bank and Fund Details'!$B$14:$L$35,11,FALSE),\"N\")","v":"Y"},"NY"]
[null,null,null,"General Fund",null,null,null,null,null,{"$f":"VLOOKUP(D170,'Bank and Fund Details'!$B$15:$D$36,3,FALSE)","v":0},{"$f":"VLOOKUP(D170,'Bank and Fund Details'!$B$15:$C$36,2,FALSE)","v":"Unrestricted"},{"$f":"IFERROR(VLOOKUP(C170,Descriptions!$I$6:$K$92,3,FALSE),\"\")","v":""},null,null,null,null,null,null,null,null,null,null,null,null,null,null,"General Fund",null,{"$f":"IFERROR(VLOOKUP(C170,Descriptions!I:M,5,FALSE),\"N\")","v":"N"},true,"NTRUE",0,{"$f":"IFERROR(VLOOKUP(D170,'Bank and Fund Details'!$B$14:$L$35,11,FALSE),\"N\")","v":"Y"},"NY"]
[null,null,null,"General Fund",null,null,null,null,null,{"$f":"VLOOKUP(D171,'Bank and Fund Details'!$B$15:$D$36,3,FALSE)","v":0},{"$f":"VLOOKUP(D171,'Bank and Fund Details'!$B$15:$C$36,2,FALSE)","v":"Unrestricted"},{"$f":"IFERROR(VLOOKUP(C171,Descriptions!$I$6:$K$92,3,FALSE),\"\")","v":""},null,null,null,null,null,null,null,null,null,null,null,null,null,null,"General Fund",null,{"$f":"IFERROR(VLOOKUP(C171,Descriptions!I:M,5,FALSE),\"N\")","v":"N"},true,"NTRUE",0,{"$f":"IFERROR(VLOOKUP(D171,'Bank and Fund Details'!$B$14:$L$35,11,FALSE),\"N\")","v":"Y"},"NY"]
[null,null,null,"General Fund",null,null,null,null,null,{"$f":"VLOOKUP(D172,'Bank and Fund Details'!$B$15:$D$36,3,FALSE)","v":0},{"$f":"VLOOKUP(D172,'Bank and Fund Details'!$B$15:$C$36,2,FALSE)","v":"Unrestricted"},{"$f":"IFERROR(VLOOKUP(C172,Descriptions!$I$6:$K$92,3,FALSE),\"\")","v":""},null,null,null,null,null,null,null,null,null,null,null,null,null,null,"General Fund",null,{"$f":"IFERROR(VLOOKUP(C172,Descriptions!I:M,5,FALSE),\"N\")","v":"N"},true,"NTRUE",0,{"$f":"IFERROR(VLOOKUP(D172,'Bank and Fund Details'!$B$14:$L$35,11,FALSE),\"N\")","v":"Y"},"NY"]
[null,null,null,"General Fund",null,null,null,null,null,{"$f":"VLOOKUP(D173,'Bank and Fund Details'!$B$15:$D$36,3,FALSE)","v":0},{"$f":"VLOOKUP(D173,'Bank and Fund Details'!$B$15:$C$36,2,FALSE)","v":"Unrestricted"},{"$f":"IFERROR(VLOOKUP(C173,Descriptions!$I$6:$K$92,3,FALSE),\"\")","v":""},null,null,null,null,null,null,null,null,null,null,null,null,null,null,"General Fund",null,{"$f":"IFERROR(VLOOKUP(C173,Descriptions!I:M,5,FALSE),\"N\")","v":"N"},true,"NTRUE",0,{"$f":"IFERROR(VLOOKUP(D173,'Bank and Fund Details'!$B$14:$L$35,11,FALSE),\"N\")","v":"Y"},"NY"]
[null,null,null,"General Fund",null,null,null,null,null,{"$f":"VLOOKUP(D174,'Bank and Fund Details'!$B$15:$D$36,3,FALSE)","v":0},{"$f":"VLOOKUP(D174,'Bank and Fund Details'!$B$15:$C$36,2,FALSE)","v":"Unrestricted"},{"$f":"IFERROR(VLOOKUP(C174,Descriptions!$I$6:$K$92,3,FALSE),\"\")","v":""},null,null,null,null,null,null,null,null,null,null,null,null,null,null,"General Fund",null,{"$f":"IFERROR(VLOOKUP(C174,Descriptions!I:M,5,FALSE),\"N\")","v":"N"},true,"NTRUE",0,{"$f":"IFERROR(VLOOKUP(D174,'Bank and Fund Details'!$B$14:$L$35,11,FALSE),\"N\")","v":"Y"},"NY"]
[null,null,null,"General Fund",null,null,null,null,null,{"$f":"VLOOKUP(D175,'Bank and Fund Details'!$B$15:$D$36,3,FALSE)","v":0},{"$f":"VLOOKUP(D175,'Bank and Fund Details'!$B$15:$C$36,2,FALSE)","v":"Unrestricted"},{"$f":"IFERROR(VLOOKUP(C175,Descriptions!$I$6:$K$92,3,FALSE),\"\")","v":""},null,null,null,null,null,null,null,null,null,null,null,null,null,null,"General Fund",null,{"$f":"IFERROR(VLOOKUP(C175,Descriptions!I:M,5,FALSE),\"N\")","v":"N"},true,"NTRUE",0,{"$f":"IFERROR(VLOOKUP(D175,'Bank and Fund Details'!$B$14:$L$35,11,FALSE),\"N\")","v":"Y"},"NY"]
[null,null,null,"General Fund",null,null,null,null,null,{"$f":"VLOOKUP(D176,'Bank and Fund Details'!$B$15:$D$36,3,FALSE)","v":0},{"$f":"VLOOKUP(D176,'Bank and Fund Details'!$B$15:$C$36,2,FALSE)","v":"Unrestricted"},{"$f":"IFERROR(VLOOKUP(C176,Descriptions!$I$6:$K$92,3,FALSE),\"\")","v":""},null,null,null,null,null,null,null,null,null,null,null,null,null,null,"General Fund",null,{"$f":"IFERROR(VLOOKUP(C176,Descriptions!I:M,5,FALSE),\"N\")","v":"N"},true,"NTRUE",0,{"$f":"IFERROR(VLOOKUP(D176,'Bank and Fund Details'!$B$14:$L$35,11,FALSE),\"N\")","v":"Y"},"NY"]
[null,null,null,"General Fund",null,null,null,null,null,{"$f":"VLOOKUP(D177,'Bank and Fund Details'!$B$15:$D$36,3,FALSE)","v":0},{"$f":"VLOOKUP(D177,'Bank and Fund Details'!$B$15:$C$36,2,FALSE)","v":"Unrestricted"},{"$f":"IFERROR(VLOOKUP(C177,Descriptions!$I$6:$K$92,3,FALSE),\"\")","v":""},null,null,null,null,null,null,null,null,null,null,null,null,null,null,"General Fund",null,{"$f":"IFERROR(VLOOKUP(C177,Descriptions!I:M,5,FALSE),\"N\")","v":"N"},true,"NTRUE",0,{"$f":"IFERROR(VLOOKUP(D177,'Bank and Fund Details'!$B$14:$L$35,11,FALSE),\"N\")","v":"Y"},"NY"]
[null,null,null,"General Fund",null,null,null,null,null,{"$f":"VLOOKUP(D178,'Bank and Fund Details'!$B$15:$D$36,3,FALSE)","v":0},{"$f":"VLOOKUP(D178,'Bank and Fund Details'!$B$15:$C$36,2,FALSE)","v":"Unrestricted"},{"$f":"IFERROR(VLOOKUP(C178,Descriptions!$I$6:$K$92,3,FALSE),\"\")","v":""},null,null,null,null,null,null,null,null,null,null,null,null,null,null,"General Fund",null,{"$f":"IFERROR(VLOOKUP(C178,Descriptions!I:M,5,FALSE),\"N\")","v":"N"},true,"NTRUE",0,{"$f":"IFERROR(VLOOKUP(D178,'Bank and Fund Details'!$B$14:$L$35,11,FALSE),\"N\")","v":"Y"},"NY"]
[null,null,null,"General Fund",null,null,null,null,null,{"$f":"VLOOKUP(D179,'Bank and Fund Details'!$B$15:$D$36,3,FALSE)","v":0},{"$f":"VLOOKUP(D179,'Bank and Fund Details'!$B$15:$C$36,2,FALSE)","v":"Unrestricted"},{"$f":"IFERROR(VLOOKUP(C179,Descriptions!$I$6:$K$92,3,FALSE),\"\")","v":""},null,null,null,null,null,null,null,null,null,null,null,null,null,null,"General Fund",null,{"$f":"IFERROR(VLOOKUP(C179,Descriptions!I:M,5,FALSE),\"N\")","v":"N"},true,"NTRUE",0,{"$f":"IFERROR(VLOOKUP(D179,'Bank and Fund Details'!$B$14:$L$35,11,FALSE),\"N\")","v":"Y"},"NY"]
[null,null,null,"General Fund",null,null,null,null,null,{"$f":"VLOOKUP(D180,'Bank and Fund Details'!$B$15:$D$36,3,FALSE)","v":0},{"$f":"VLOOKUP(D180,'Bank and Fund Details'!$B$15:$C$36,2,FALSE)","v":"Unrestricted"},{"$f":"IFERROR(VLOOKUP(C180,Descriptions!$I$6:$K$92,3,FALSE),\"\")","v":""},null,null,null,null,null,null,null,null,null,null,null,null,null,null,"General Fund",null,{"$f":"IFERROR(VLOOKUP(C180,Descriptions!I:M,5,FALSE),\"N\")","v":"N"},true,"NTRUE",0,{"$f":"IFERROR(VLOOKUP(D180,'Bank and Fund Details'!$B$14:$L$35,11,FALSE),\"N\")","v":"Y"},"NY"]
[null,null,null,"General Fund",null,null,null,null,null,{"$f":"VLOOKUP(D181,'Bank and Fund Details'!$B$15:$D$36,3,FALSE)","v":0},{"$f":"VLOOKUP(D181,'Bank and Fund Details'!$B$15:$C$36,2,FALSE)","v":"Unrestricted"},{"$f":"IFERROR(VLOOKUP(C181,Descriptions!$I$6:$K$92,3,FALSE),\"\")","v":""},null,null,null,null,null,null,null,null,null,null,null,null,null,null,"General Fund",null,{"$f":"IFERROR(VLOOKUP(C181,Descriptions!I:M,5,FALSE),\"N\")","v":"N"},true,"NTRUE",0,{"$f":"IFERROR(VLOOKUP(D181,'Bank and Fund Details'!$B$14:$L$35,11,FALSE),\"N\")","v":"Y"},"NY"]
[null,null,null,"General Fund",null,null,null,null,null,{"$f":"VLOOKUP(D182,'Bank and Fund Details'!$B$15:$D$36,3,FALSE)","v":0},{"$f":"VLOOKUP(D182,'Bank and Fund Details'!$B$15:$C$36,2,FALSE)","v":"Unrestricted"},{"$f":"IFERROR(VLOOKUP(C182,Descriptions!$I$6:$K$92,3,FALSE),\"\")","v":""},null,null,null,null,null,null,null,null,null,null,null,null,null,null,"General Fund",null,{"$f":"IFERROR(VLOOKUP(C182,Descriptions!I:M,5,FALSE),\"N\")","v":"N"},true,"NTRUE",0,{"$f":"IFERROR(VLOOKUP(D182,'Bank and Fund Details'!$B$14:$L$35,11,FALSE),\"N\")","v":"Y"},"NY"]
[null,null,null,"General Fund",null,null,null,null,null,{"$f":"VLOOKUP(D183,'Bank and Fund Details'!$B$15:$D$36,3,FALSE)","v":0},{"$f":"VLOOKUP(D183,'Bank and Fund Details'!$B$15:$C$36,2,FALSE)","v":"Unrestricted"},{"$f":"IFERROR(VLOOKUP(C183,Descriptions!$I$6:$K$92,3,FALSE),\"\")","v":""},null,null,null,null,null,null,null,null,null,null,null,null,null,null,"General Fund",null,{"$f":"IFERROR(VLOOKUP(C183,Descriptions!I:M,5,FALSE),\"N\")","v":"N"},true,"NTRUE",0,{"$f":"IFERROR(VLOOKUP(D183,'Bank and Fund Details'!$B$14:$L$35,11,FALSE),\"N\")","v":"Y"},"NY"]
[null,null,null,"General Fund",null,null,null,null,null,{"$f":"VLOOKUP(D184,'Bank and Fund Details'!$B$15:$D$36,3,FALSE)","v":0},{"$f":"VLOOKUP(D184,'Bank and Fund Details'!$B$15:$C$36,2,FALSE)","v":"Unrestricted"},{"$f":"IFERROR(VLOOKUP(C184,Descriptions!$I$6:$K$92,3,FALSE),\"\")","v":""},null,null,null,null,null,null,null,null,null,null,null,null,null,null,"General Fund",null,{"$f":"IFERROR(VLOOKUP(C184,Descriptions!I:M,5,FALSE),\"N\")","v":"N"},true,"NTRUE",0,{"$f":"IFERROR(VLOOKUP(D184,'Bank and Fund Details'!$B$14:$L$35,11,FALSE),\"N\")","v":"Y"},"NY"]
[null,null,null,"General Fund",null,null,null,null,null,{"$f":"VLOOKUP(D185,'Bank and Fund Details'!$B$15:$D$36,3,FALSE)","v":0},{"$f":"VLOOKUP(D185,'Bank and Fund Details'!$B$15:$C$36,2,FALSE)","v":"Unrestricted"},{"$f":"IFERROR(VLOOKUP(C185,Descriptions!$I$6:$K$92,3,FALSE),\"\")","v":""},null,null,null,null,null,null,null,null,null,null,null,null,null,null,"General Fund",null,{"$f":"IFERROR(VLOOKUP(C185,Descriptions!I:M,5,FALSE),\"N\")","v":"N"},true,"NTRUE",0,{"$f":"IFERROR(VLOOKUP(D185,'Bank and Fund Details'!$B$14:$L$35,11,FALSE),\"N\")","v":"Y"},"NY"]
[null,null,null,"General Fund",null,null,null,null,null,{"$f":"VLOOKUP(D186,'Bank and Fund Details'!$B$15:$D$36,3,FALSE)","v":0},{"$f":"VLOOKUP(D186,'Bank and Fund Details'!$B$15:$C$36,2,FALSE)","v":"Unrestricted"},{"$f":"IFERROR(VLOOKUP(C186,Descriptions!$I$6:$K$92,3,FALSE),\"\")","v":""},null,null,null,null,null,null,null,null,null,null,null,null,null,null,"General Fund",null,{"$f":"IFERROR(VLOOKUP(C186,Descriptions!I:M,5,FALSE),\"N\")","v":"N"},true,"NTRUE",0,{"$f":"IFERROR(VLOOKUP(D186,'Bank and Fund Details'!$B$14:$L$35,11,FALSE),\"N\")","v":"Y"},"NY"]
[null,null,null,"General Fund",null,null,null,null,null,{"$f":"VLOOKUP(D187,'Bank and Fund Details'!$B$15:$D$36,3,FALSE)","v":0},{"$f":"VLOOKUP(D187,'Bank and Fund Details'!$B$15:$C$36,2,FALSE)","v":"Unrestricted"},{"$f":"IFERROR(VLOOKUP(C187,Descriptions!$I$6:$K$92,3,FALSE),\"\")","v":""},null,null,null,null,null,null,null,null,null,null,null,null,null,null,"General Fund",null,{"$f":"IFERROR(VLOOKUP(C187,Descriptions!I:M,5,FALSE),\"N\")","v":"N"},true,"NTRUE",0,{"$f":"IFERROR(VLOOKUP(D187,'Bank and Fund Details'!$B$14:$L$35,11,FALSE),\"N\")","v":"Y"},"NY"]
[null,null,null,"General Fund",null,null,null,null,null,{"$f":"VLOOKUP(D188,'Bank and Fund Details'!$B$15:$D$36,3,FALSE)","v":0},{"$f":"VLOOKUP(D188,'Bank and Fund Details'!$B$15:$C$36,2,FALSE)","v":"Unrestricted"},{"$f":"IFERROR(VLOOKUP(C188,Descriptions!$I$6:$K$92,3,FALSE),\"\")","v":""},null,null,null,null,null,null,null,null,null,null,null,null,null,null,"General Fund",null,{"$f":"IFERROR(VLOOKUP(C188,Descriptions!I:M,5,FALSE),\"N\")","v":"N"},true,"NTRUE",0,{"$f":"IFERROR(VLOOKUP(D188,'Bank and Fund Details'!$B$14:$L$35,11,FALSE),\"N\")","v":"Y"},"NY"]
[null,null,null,"General Fund",null,null,null,null,null,{"$f":"VLOOKUP(D189,'Bank and Fund Details'!$B$15:$D$36,3,FALSE)","v":0},{"$f":"VLOOKUP(D189,'Bank and Fund Details'!$B$15:$C$36,2,FALSE)","v":"Unrestricted"},{"$f":"IFERROR(VLOOKUP(C189,Descriptions!$I$6:$K$92,3,FALSE),\"\")","v":""},null,null,null,null,null,null,null,null,null,null,null,null,null,null,"General Fund",null,{"$f":"IFERROR(VLOOKUP(C189,Descriptions!I:M,5,FALSE),\"N\")","v":"N"},true,"NTRUE",0,{"$f":"IFERROR(VLOOKUP(D189,'Bank and Fund Details'!$B$14:$L$35,11,FALSE),\"N\")","v":"Y"},"NY"]
[null,null,null,"General Fund",null,null,null,null,null,{"$f":"VLOOKUP(D190,'Bank and Fund Details'!$B$15:$D$36,3,FALSE)","v":0},{"$f":"VLOOKUP(D190,'Bank and Fund Details'!$B$15:$C$36,2,FALSE)","v":"Unrestricted"},{"$f":"IFERROR(VLOOKUP(C190,Descriptions!$I$6:$K$92,3,FALSE),\"\")","v":""},null,null,null,null,null,null,null,null,null,null,null,null,null,null,"General Fund",null,{"$f":"IFERROR(VLOOKUP(C190,Descriptions!I:M,5,FALSE),\"N\")","v":"N"},true,"NTRUE",0,{"$f":"IFERROR(VLOOKUP(D190,'Bank and Fund Details'!$B$14:$L$35,11,FALSE),\"N\")","v":"Y"},"NY"]
[null,null,null,"General Fund",null,null,null,null,null,{"$f":"VLOOKUP(D191,'Bank and Fund Details'!$B$15:$D$36,3,FALSE)","v":0},{"$f":"VLOOKUP(D191,'Bank and Fund Details'!$B$15:$C$36,2,FALSE)","v":"Unrestricted"},{"$f":"IFERROR(VLOOKUP(C191,Descriptions!$I$6:$K$92,3,FALSE),\"\")","v":""},null,null,null,null,null,null,null,null,null,null,null,null,null,null,"General Fund",null,{"$f":"IFERROR(VLOOKUP(C191,Descriptions!I:M,5,FALSE),\"N\")","v":"N"},true,"NTRUE",0,{"$f":"IFERROR(VLOOKUP(D191,'Bank and Fund Details'!$B$14:$L$35,11,FALSE),\"N\")","v":"Y"},"NY"]
[null,null,null,"General Fund",null,null,null,null,null,{"$f":"VLOOKUP(D192,'Bank and Fund Details'!$B$15:$D$36,3,FALSE)","v":0},{"$f":"VLOOKUP(D192,'Bank and Fund Details'!$B$15:$C$36,2,FALSE)","v":"Unrestricted"},{"$f":"IFERROR(VLOOKUP(C192,Descriptions!$I$6:$K$92,3,FALSE),\"\")","v":""},null,null,null,null,null,null,null,null,null,null,null,null,null,null,"General Fund",null,{"$f":"IFERROR(VLOOKUP(C192,Descriptions!I:M,5,FALSE),\"N\")","v":"N"},true,"NTRUE",0,{"$f":"IFERROR(VLOOKUP(D192,'Bank and Fund Details'!$B$14:$L$35,11,FALSE),\"N\")","v":"Y"},"NY"]
[null,null,null,"General Fund",null,null,null,null,null,{"$f":"VLOOKUP(D193,'Bank and Fund Details'!$B$15:$D$36,3,FALSE)","v":0},{"$f":"VLOOKUP(D193,'Bank and Fund Details'!$B$15:$C$36,2,FALSE)","v":"Unrestricted"},{"$f":"IFERROR(VLOOKUP(C193,Descriptions!$I$6:$K$92,3,FALSE),\"\")","v":""},null,null,null,null,null,null,null,null,null,null,null,null,null,null,"General Fund",null,{"$f":"IFERROR(VLOOKUP(C193,Descriptions!I:M,5,FALSE),\"N\")","v":"N"},true,"NTRUE",0,{"$f":"IFERROR(VLOOKUP(D193,'Bank and Fund Details'!$B$14:$L$35,11,FALSE),\"N\")","v":"Y"},"NY"]
[null,null,null,"General Fund",null,null,null,null,null,{"$f":"VLOOKUP(D194,'Bank and Fund Details'!$B$15:$D$36,3,FALSE)","v":0},{"$f":"VLOOKUP(D194,'Bank and Fund Details'!$B$15:$C$36,2,FALSE)","v":"Unrestricted"},{"$f":"IFERROR(VLOOKUP(C194,Descriptions!$I$6:$K$92,3,FALSE),\"\")","v":""},null,null,null,null,null,null,null,null,null,null,null,null,null,null,"General Fund",null,{"$f":"IFERROR(VLOOKUP(C194,Descriptions!I:M,5,FALSE),\"N\")","v":"N"},true,"NTRUE",0,{"$f":"IFERROR(VLOOKUP(D194,'Bank and Fund Details'!$B$14:$L$35,11,FALSE),\"N\")","v":"Y"},"NY"]
[null,null,null,"General Fund",null,null,null,null,null,{"$f":"VLOOKUP(D195,'Bank and Fund Details'!$B$15:$D$36,3,FALSE)","v":0},{"$f":"VLOOKUP(D195,'Bank and Fund Details'!$B$15:$C$36,2,FALSE)","v":"Unrestricted"},{"$f":"IFERROR(VLOOKUP(C195,Descriptions!$I$6:$K$92,3,FALSE),\"\")","v":""},null,null,null,null,null,null,null,null,null,null,null,null,null,null,"General Fund",null,{"$f":"IFERROR(VLOOKUP(C195,Descriptions!I:M,5,FALSE),\"N\")","v":"N"},true,"NTRUE",0,{"$f":"IFERROR(VLOOKUP(D195,'Bank and Fund Details'!$B$14:$L$35,11,FALSE),\"N\")","v":"Y"},"NY"]
[null,null,null,"General Fund",null,null,null,null,null,{"$f":"VLOOKUP(D196,'Bank and Fund Details'!$B$15:$D$36,3,FALSE)","v":0},{"$f":"VLOOKUP(D196,'Bank and Fund Details'!$B$15:$C$36,2,FALSE)","v":"Unrestricted"},{"$f":"IFERROR(VLOOKUP(C196,Descriptions!$I$6:$K$92,3,FALSE),\"\")","v":""},null,null,null,null,null,null,null,null,null,null,null,null,null,null,"General Fund",null,{"$f":"IFERROR(VLOOKUP(C196,Descriptions!I:M,5,FALSE),\"N\")","v":"N"},true,"NTRUE",0,{"$f":"IFERROR(VLOOKUP(D196,'Bank and Fund Details'!$B$14:$L$35,11,FALSE),\"N\")","v":"Y"},"NY"]
[null,null,null,"General Fund",null,null,null,null,null,{"$f":"VLOOKUP(D197,'Bank and Fund Details'!$B$15:$D$36,3,FALSE)","v":0},{"$f":"VLOOKUP(D197,'Bank and Fund Details'!$B$15:$C$36,2,FALSE)","v":"Unrestricted"},{"$f":"IFERROR(VLOOKUP(C197,Descriptions!$I$6:$K$92,3,FALSE),\"\")","v":""},null,null,null,null,null,null,null,null,null,null,null,null,null,null,"General Fund",null,{"$f":"IFERROR(VLOOKUP(C197,Descriptions!I:M,5,FALSE),\"N\")","v":"N"},true,"NTRUE",0,{"$f":"IFERROR(VLOOKUP(D197,'Bank and Fund Details'!$B$14:$L$35,11,FALSE),\"N\")","v":"Y"},"NY"]
[null,null,null,"General Fund",null,null,null,null,null,{"$f":"VLOOKUP(D198,'Bank and Fund Details'!$B$15:$D$36,3,FALSE)","v":0},{"$f":"VLOOKUP(D198,'Bank and Fund Details'!$B$15:$C$36,2,FALSE)","v":"Unrestricted"},{"$f":"IFERROR(VLOOKUP(C198,Descriptions!$I$6:$K$92,3,FALSE),\"\")","v":""},null,null,null,null,null,null,null,null,null,null,null,null,null,null,{"$f":"CONCATENATE(C198,D198)","v":"General Fund"},null,{"$f":"IFERROR(VLOOKUP(C198,Descriptions!I:M,5,FALSE),\"N\")","v":"N"},{"$f":"ISBLANK(C198)","v":true},{"$f":"CONCATENATE(AC198,AD198)","v":"NTRUE"},{"$f":"IF(AE198=\"NFALSE\",1,0)","v":0},{"$f":"IFERROR(VLOOKUP(D198,'Bank and Fund Details'!$B$14:$L$35,11,FALSE),\"N\")","v":"Y"},{"$f":"CONCATENATE(AC198,AG198)","v":"NY"}]
[null,null,null,"General Fund",null,null,null,null,null,{"$f":"VLOOKUP(D199,'Bank and Fund Details'!$B$15:$D$36,3,FALSE)","v":0},{"$f":"VLOOKUP(D199,'Bank and Fund Details'!$B$15:$C$36,2,FALSE)","v":"Unrestricted"},{"$f":"IFERROR(VLOOKUP(C199,Descriptions!$I$6:$K$92,3,FALSE),\"\")","v":""},null,null,null,null,null,null,null,null,null,null,null,null,null,null,"General Fund",null,{"$f":"IFERROR(VLOOKUP(C199,Descriptions!I:M,5,FALSE),\"N\")","v":"N"},true,"NTRUE",0,{"$f":"IFERROR(VLOOKUP(D199,'Bank and Fund Details'!$B$14:$L$35,11,FALSE),\"N\")","v":"Y"},"NY"]
[null,null,null,"General Fund",null,null,null,null,null,{"$f":"VLOOKUP(D200,'Bank and Fund Details'!$B$15:$D$36,3,FALSE)","v":0},{"$f":"VLOOKUP(D200,'Bank and Fund Details'!$B$15:$C$36,2,FALSE)","v":"Unrestricted"},{"$f":"IFERROR(VLOOKUP(C200,Descriptions!$I$6:$K$92,3,FALSE),\"\")","v":""},null,null,null,null,null,null,null,null,null,null,null,null,null,null,"General Fund",null,{"$f":"IFERROR(VLOOKUP(C200,Descriptions!I:M,5,FALSE),\"N\")","v":"N"},true,"NTRUE",0,{"$f":"IFERROR(VLOOKUP(D200,'Bank and Fund Details'!$B$14:$L$35,11,FALSE),\"N\")","v":"Y"},"NY"]
[null,null,null,"General Fund",null,null,null,null,null,{"$f":"VLOOKUP(D201,'Bank and Fund Details'!$B$15:$D$36,3,FALSE)","v":0},{"$f":"VLOOKUP(D201,'Bank and Fund Details'!$B$15:$C$36,2,FALSE)","v":"Unrestricted"},{"$f":"IFERROR(VLOOKUP(C201,Descriptions!$I$6:$K$92,3,FALSE),\"\")","v":""},null,null,null,null,null,null,null,null,null,null,null,null,null,null,"General Fund",null,{"$f":"IFERROR(VLOOKUP(C201,Descriptions!I:M,5,FALSE),\"N\")","v":"N"},true,"NTRUE",0,{"$f":"IFERROR(VLOOKUP(D201,'Bank and Fund Details'!$B$14:$L$35,11,FALSE),\"N\")","v":"Y"},"NY"]
[null,null,null,"General Fund",null,null,null,null,null,{"$f":"VLOOKUP(D202,'Bank and Fund Details'!$B$15:$D$36,3,FALSE)","v":0},{"$f":"VLOOKUP(D202,'Bank and Fund Details'!$B$15:$C$36,2,FALSE)","v":"Unrestricted"},{"$f":"IFERROR(VLOOKUP(C202,Descriptions!$I$6:$K$92,3,FALSE),\"\")","v":""},null,null,null,null,null,null,null,null,null,null,null,null,null,null,"General Fund",null,{"$f":"IFERROR(VLOOKUP(C202,Descriptions!I:M,5,FALSE),\"N\")","v":"N"},true,"NTRUE",0,{"$f":"IFERROR(VLOOKUP(D202,'Bank and Fund Details'!$B$14:$L$35,11,FALSE),\"N\")","v":"Y"},"NY"]
[null,null,null,"General Fund",null,null,null,null,null,{"$f":"VLOOKUP(D203,'Bank and Fund Details'!$B$15:$D$36,3,FALSE)","v":0},{"$f":"VLOOKUP(D203,'Bank and Fund Details'!$B$15:$C$36,2,FALSE)","v":"Unrestricted"},{"$f":"IFERROR(VLOOKUP(C203,Descriptions!$I$6:$K$92,3,FALSE),\"\")","v":""},null,null,null,null,null,null,null,null,null,null,null,null,null,null,"General Fund",null,{"$f":"IFERROR(VLOOKUP(C203,Descriptions!I:M,5,FALSE),\"N\")","v":"N"},true,"NTRUE",0,{"$f":"IFERROR(VLOOKUP(D203,'Bank and Fund Details'!$B$14:$L$35,11,FALSE),\"N\")","v":"Y"},"NY"]
[null,null,null,"General Fund",null,null,null,null,null,{"$f":"VLOOKUP(D204,'Bank and Fund Details'!$B$15:$D$36,3,FALSE)","v":0},{"$f":"VLOOKUP(D204,'Bank and Fund Details'!$B$15:$C$36,2,FALSE)","v":"Unrestricted"},{"$f":"IFERROR(VLOOKUP(C204,Descriptions!$I$6:$K$92,3,FALSE),\"\")","v":""},null,null,null,null,null,null,null,null,null,null,null,null,null,null,"General Fund",null,{"$f":"IFERROR(VLOOKUP(C204,Descriptions!I:M,5,FALSE),\"N\")","v":"N"},true,"NTRUE",0,{"$f":"IFERROR(VLOOKUP(D204,'Bank and Fund Details'!$B$14:$L$35,11,FALSE),\"N\")","v":"Y"},"NY"]
[null,null,null,"General Fund",null,null,null,null,null,{"$f":"VLOOKUP(D205,'Bank and Fund Details'!$B$15:$D$36,3,FALSE)","v":0},{"$f":"VLOOKUP(D205,'Bank and Fund Details'!$B$15:$C$36,2,FALSE)","v":"Unrestricted"},{"$f":"IFERROR(VLOOKUP(C205,Descriptions!$I$6:$K$92,3,FALSE),\"\")","v":""},null,null,null,null,null,null,null,null,null,null,null,null,null,null,"General Fund",null,{"$f":"IFERROR(VLOOKUP(C205,Descriptions!I:M,5,FALSE),\"N\")","v":"N"},true,"NTRUE",0,{"$f":"IFERROR(VLOOKUP(D205,'Bank and Fund Details'!$B$14:$L$35,11,FALSE),\"N\")","v":"Y"},"NY"]
[null,null,null,"General Fund",null,null,null,null,null,{"$f":"VLOOKUP(D206,'Bank and Fund Details'!$B$15:$D$36,3,FALSE)","v":0},{"$f":"VLOOKUP(D206,'Bank and Fund Details'!$B$15:$C$36,2,FALSE)","v":"Unrestricted"},{"$f":"IFERROR(VLOOKUP(C206,Descriptions!$I$6:$K$92,3,FALSE),\"\")","v":""},null,null,null,null,null,null,null,null,null,null,null,null,null,null,"General Fund",null,{"$f":"IFERROR(VLOOKUP(C206,Descriptions!I:M,5,FALSE),\"N\")","v":"N"},true,"NTRUE",0,{"$f":"IFERROR(VLOOKUP(D206,'Bank and Fund Details'!$B$14:$L$35,11,FALSE),\"N\")","v":"Y"},"NY"]
[null,null,null,"General Fund",null,null,null,null,null,{"$f":"VLOOKUP(D207,'Bank and Fund Details'!$B$15:$D$36,3,FALSE)","v":0},{"$f":"VLOOKUP(D207,'Bank and Fund Details'!$B$15:$C$36,2,FALSE)","v":"Unrestricted"},{"$f":"IFERROR(VLOOKUP(C207,Descriptions!$I$6:$K$92,3,FALSE),\"\")","v":""},null,null,null,null,null,null,null,null,null,null,null,null,null,null,"General Fund",null,{"$f":"IFERROR(VLOOKUP(C207,Descriptions!I:M,5,FALSE),\"N\")","v":"N"},true,"NTRUE",0,{"$f":"IFERROR(VLOOKUP(D207,'Bank and Fund Details'!$B$14:$L$35,11,FALSE),\"N\")","v":"Y"},"NY"]
[null,null,null,"General Fund",null,null,null,null,null,{"$f":"VLOOKUP(D208,'Bank and Fund Details'!$B$15:$D$36,3,FALSE)","v":0},{"$f":"VLOOKUP(D208,'Bank and Fund Details'!$B$15:$C$36,2,FALSE)","v":"Unrestricted"},{"$f":"IFERROR(VLOOKUP(C208,Descriptions!$I$6:$K$92,3,FALSE),\"\")","v":""},null,null,null,null,null,null,null,null,null,null,null,null,null,null,"General Fund",null,{"$f":"IFERROR(VLOOKUP(C208,Descriptions!I:M,5,FALSE),\"N\")","v":"N"},true,"NTRUE",0,{"$f":"IFERROR(VLOOKUP(D208,'Bank and Fund Details'!$B$14:$L$35,11,FALSE),\"N\")","v":"Y"},"NY"]
[null,null,null,"General Fund",null,null,null,null,null,{"$f":"VLOOKUP(D209,'Bank and Fund Details'!$B$15:$D$36,3,FALSE)","v":0},{"$f":"VLOOKUP(D209,'Bank and Fund Details'!$B$15:$C$36,2,FALSE)","v":"Unrestricted"},{"$f":"IFERROR(VLOOKUP(C209,Descriptions!$I$6:$K$92,3,FALSE),\"\")","v":""},null,null,null,null,null,null,null,null,null,null,null,null,null,null,"General Fund",null,{"$f":"IFERROR(VLOOKUP(C209,Descriptions!I:M,5,FALSE),\"N\")","v":"N"},true,"NTRUE",0,{"$f":"IFERROR(VLOOKUP(D209,'Bank and Fund Details'!$B$14:$L$35,11,FALSE),\"N\")","v":"Y"},"NY"]
[null,null,null,"General Fund",null,null,null,null,null,{"$f":"VLOOKUP(D210,'Bank and Fund Details'!$B$15:$D$36,3,FALSE)","v":0},{"$f":"VLOOKUP(D210,'Bank and Fund Details'!$B$15:$C$36,2,FALSE)","v":"Unrestricted"},{"$f":"IFERROR(VLOOKUP(C210,Descriptions!$I$6:$K$92,3,FALSE),\"\")","v":""},null,null,null,null,null,null,null,null,null,null,null,null,null,null,"General Fund",null,{"$f":"IFERROR(VLOOKUP(C210,Descriptions!I:M,5,FALSE),\"N\")","v":"N"},true,"NTRUE",0,{"$f":"IFERROR(VLOOKUP(D210,'Bank and Fund Details'!$B$14:$L$35,11,FALSE),\"N\")","v":"Y"},"NY"]
[null,null,null,"General Fund",null,null,null,null,null,{"$f":"VLOOKUP(D211,'Bank and Fund Details'!$B$15:$D$36,3,FALSE)","v":0},{"$f":"VLOOKUP(D211,'Bank and Fund Details'!$B$15:$C$36,2,FALSE)","v":"Unrestricted"},{"$f":"IFERROR(VLOOKUP(C211,Descriptions!$I$6:$K$92,3,FALSE),\"\")","v":""},null,null,null,null,null,null,null,null,null,null,null,null,null,null,"General Fund",null,{"$f":"IFERROR(VLOOKUP(C211,Descriptions!I:M,5,FALSE),\"N\")","v":"N"},true,"NTRUE",0,{"$f":"IFERROR(VLOOKUP(D211,'Bank and Fund Details'!$B$14:$L$35,11,FALSE),\"N\")","v":"Y"},"NY"]
[null,null,null,"General Fund",null,null,null,null,null,{"$f":"VLOOKUP(D212,'Bank and Fund Details'!$B$15:$D$36,3,FALSE)","v":0},{"$f":"VLOOKUP(D212,'Bank and Fund Details'!$B$15:$C$36,2,FALSE)","v":"Unrestricted"},{"$f":"IFERROR(VLOOKUP(C212,Descriptions!$I$6:$K$92,3,FALSE),\"\")","v":""},null,null,null,null,null,null,null,null,null,null,null,null,null,null,"General Fund",null,{"$f":"IFERROR(VLOOKUP(C212,Descriptions!I:M,5,FALSE),\"N\")","v":"N"},true,"NTRUE",0,{"$f":"IFERROR(VLOOKUP(D212,'Bank and Fund Details'!$B$14:$L$35,11,FALSE),\"N\")","v":"Y"},"NY"]
[null,null,null,"General Fund",null,null,null,null,null,{"$f":"VLOOKUP(D213,'Bank and Fund Details'!$B$15:$D$36,3,FALSE)","v":0},{"$f":"VLOOKUP(D213,'Bank and Fund Details'!$B$15:$C$36,2,FALSE)","v":"Unrestricted"},{"$f":"IFERROR(VLOOKUP(C213,Descriptions!$I$6:$K$92,3,FALSE),\"\")","v":""},null,null,null,null,null,null,null,null,null,null,null,null,null,null,"General Fund",null,{"$f":"IFERROR(VLOOKUP(C213,Descriptions!I:M,5,FALSE),\"N\")","v":"N"},true,"NTRUE",0,{"$f":"IFERROR(VLOOKUP(D213,'Bank and Fund Details'!$B$14:$L$35,11,FALSE),\"N\")","v":"Y"},"NY"]
[null,null,null,"General Fund",null,null,null,null,null,{"$f":"VLOOKUP(D214,'Bank and Fund Details'!$B$15:$D$36,3,FALSE)","v":0},{"$f":"VLOOKUP(D214,'Bank and Fund Details'!$B$15:$C$36,2,FALSE)","v":"Unrestricted"},{"$f":"IFERROR(VLOOKUP(C214,Descriptions!$I$6:$K$92,3,FALSE),\"\")","v":""},null,null,null,null,null,null,null,null,null,null,null,null,null,null,"General Fund",null,{"$f":"IFERROR(VLOOKUP(C214,Descriptions!I:M,5,FALSE),\"N\")","v":"N"},true,"NTRUE",0,{"$f":"IFERROR(VLOOKUP(D214,'Bank and Fund Details'!$B$14:$L$35,11,FALSE),\"N\")","v":"Y"},"NY"]
[null,null,null,"General Fund",null,null,null,null,null,{"$f":"VLOOKUP(D215,'Bank and Fund Details'!$B$15:$D$36,3,FALSE)","v":0},{"$f":"VLOOKUP(D215,'Bank and Fund Details'!$B$15:$C$36,2,FALSE)","v":"Unrestricted"},{"$f":"IFERROR(VLOOKUP(C215,Descriptions!$I$6:$K$92,3,FALSE),\"\")","v":""},null,null,null,null,null,null,null,null,null,null,null,null,null,null,"General Fund",null,{"$f":"IFERROR(VLOOKUP(C215,Descriptions!I:M,5,FALSE),\"N\")","v":"N"},true,"NTRUE",0,{"$f":"IFERROR(VLOOKUP(D215,'Bank and Fund Details'!$B$14:$L$35,11,FALSE),\"N\")","v":"Y"},"NY"]
[null,null,null,"General Fund",null,null,null,null,null,{"$f":"VLOOKUP(D216,'Bank and Fund Details'!$B$15:$D$36,3,FALSE)","v":0},{"$f":"VLOOKUP(D216,'Bank and Fund Details'!$B$15:$C$36,2,FALSE)","v":"Unrestricted"},{"$f":"IFERROR(VLOOKUP(C216,Descriptions!$I$6:$K$92,3,FALSE),\"\")","v":""},null,null,null,null,null,null,null,null,null,null,null,null,null,null,"General Fund",null,{"$f":"IFERROR(VLOOKUP(C216,Descriptions!I:M,5,FALSE),\"N\")","v":"N"},true,"NTRUE",0,{"$f":"IFERROR(VLOOKUP(D216,'Bank and Fund Details'!$B$14:$L$35,11,FALSE),\"N\")","v":"Y"},"NY"]
[null,null,null,"General Fund",null,null,null,null,null,{"$f":"VLOOKUP(D217,'Bank and Fund Details'!$B$15:$D$36,3,FALSE)","v":0},{"$f":"VLOOKUP(D217,'Bank and Fund Details'!$B$15:$C$36,2,FALSE)","v":"Unrestricted"},{"$f":"IFERROR(VLOOKUP(C217,Descriptions!$I$6:$K$92,3,FALSE),\"\")","v":""},null,null,null,null,null,null,null,null,null,null,null,null,null,null,"General Fund",null,{"$f":"IFERROR(VLOOKUP(C217,Descriptions!I:M,5,FALSE),\"N\")","v":"N"},true,"NTRUE",0,{"$f":"IFERROR(VLOOKUP(D217,'Bank and Fund Details'!$B$14:$L$35,11,FALSE),\"N\")","v":"Y"},"NY"]
[null,null,null,"General Fund",null,null,null,null,null,{"$f":"VLOOKUP(D218,'Bank and Fund Details'!$B$15:$D$36,3,FALSE)","v":0},{"$f":"VLOOKUP(D218,'Bank and Fund Details'!$B$15:$C$36,2,FALSE)","v":"Unrestricted"},{"$f":"IFERROR(VLOOKUP(C218,Descriptions!$I$6:$K$92,3,FALSE),\"\")","v":""},null,null,null,null,null,null,null,null,null,null,null,null,null,null,"General Fund",null,{"$f":"IFERROR(VLOOKUP(C218,Descriptions!I:M,5,FALSE),\"N\")","v":"N"},true,"NTRUE",0,{"$f":"IFERROR(VLOOKUP(D218,'Bank and Fund Details'!$B$14:$L$35,11,FALSE),\"N\")","v":"Y"},"NY"]
[null,null,null,"General Fund",null,null,null,null,null,{"$f":"VLOOKUP(D219,'Bank and Fund Details'!$B$15:$D$36,3,FALSE)","v":0},{"$f":"VLOOKUP(D219,'Bank and Fund Details'!$B$15:$C$36,2,FALSE)","v":"Unrestricted"},{"$f":"IFERROR(VLOOKUP(C219,Descriptions!$I$6:$K$92,3,FALSE),\"\")","v":""},null,null,null,null,null,null,null,null,null,null,null,null,null,null,"General Fund",null,{"$f":"IFERROR(VLOOKUP(C219,Descriptions!I:M,5,FALSE),\"N\")","v":"N"},true,"NTRUE",0,{"$f":"IFERROR(VLOOKUP(D219,'Bank and Fund Details'!$B$14:$L$35,11,FALSE),\"N\")","v":"Y"},"NY"]
[null,null,null,"General Fund",null,null,null,null,null,{"$f":"VLOOKUP(D220,'Bank and Fund Details'!$B$15:$D$36,3,FALSE)","v":0},{"$f":"VLOOKUP(D220,'Bank and Fund Details'!$B$15:$C$36,2,FALSE)","v":"Unrestricted"},{"$f":"IFERROR(VLOOKUP(C220,Descriptions!$I$6:$K$92,3,FALSE),\"\")","v":""},null,null,null,null,null,null,null,null,null,null,null,null,null,null,"General Fund",null,{"$f":"IFERROR(VLOOKUP(C220,Descriptions!I:M,5,FALSE),\"N\")","v":"N"},true,"NTRUE",0,{"$f":"IFERROR(VLOOKUP(D220,'Bank and Fund Details'!$B$14:$L$35,11,FALSE),\"N\")","v":"Y"},"NY"]
[null,null,null,"General Fund",null,null,null,null,null,{"$f":"VLOOKUP(D221,'Bank and Fund Details'!$B$15:$D$36,3,FALSE)","v":0},{"$f":"VLOOKUP(D221,'Bank and Fund Details'!$B$15:$C$36,2,FALSE)","v":"Unrestricted"},{"$f":"IFERROR(VLOOKUP(C221,Descriptions!$I$6:$K$92,3,FALSE),\"\")","v":""},null,null,null,null,null,null,null,null,null,null,null,null,null,null,"General Fund",null,{"$f":"IFERROR(VLOOKUP(C221,Descriptions!I:M,5,FALSE),\"N\")","v":"N"},true,"NTRUE",0,{"$f":"IFERROR(VLOOKUP(D221,'Bank and Fund Details'!$B$14:$L$35,11,FALSE),\"N\")","v":"Y"},"NY"]
[null,null,null,"General Fund",null,null,null,null,null,{"$f":"VLOOKUP(D222,'Bank and Fund Details'!$B$15:$D$36,3,FALSE)","v":0},{"$f":"VLOOKUP(D222,'Bank and Fund Details'!$B$15:$C$36,2,FALSE)","v":"Unrestricted"},{"$f":"IFERROR(VLOOKUP(C222,Descriptions!$I$6:$K$92,3,FALSE),\"\")","v":""},null,null,null,null,null,null,null,null,null,null,null,null,null,null,"General Fund",null,{"$f":"IFERROR(VLOOKUP(C222,Descriptions!I:M,5,FALSE),\"N\")","v":"N"},true,"NTRUE",0,{"$f":"IFERROR(VLOOKUP(D222,'Bank and Fund Details'!$B$14:$L$35,11,FALSE),\"N\")","v":"Y"},"NY"]
[null,null,null,"General Fund",null,null,null,null,null,{"$f":"VLOOKUP(D223,'Bank and Fund Details'!$B$15:$D$36,3,FALSE)","v":0},{"$f":"VLOOKUP(D223,'Bank and Fund Details'!$B$15:$C$36,2,FALSE)","v":"Unrestricted"},{"$f":"IFERROR(VLOOKUP(C223,Descriptions!$I$6:$K$92,3,FALSE),\"\")","v":""},null,null,null,null,null,null,null,null,null,null,null,null,null,null,"General Fund",null,{"$f":"IFERROR(VLOOKUP(C223,Descriptions!I:M,5,FALSE),\"N\")","v":"N"},true,"NTRUE",0,{"$f":"IFERROR(VLOOKUP(D223,'Bank and Fund Details'!$B$14:$L$35,11,FALSE),\"N\")","v":"Y"},"NY"]
[null,null,null,"General Fund",null,null,null,null,null,{"$f":"VLOOKUP(D224,'Bank and Fund Details'!$B$15:$D$36,3,FALSE)","v":0},{"$f":"VLOOKUP(D224,'Bank and Fund Details'!$B$15:$C$36,2,FALSE)","v":"Unrestricted"},{"$f":"IFERROR(VLOOKUP(C224,Descriptions!$I$6:$K$92,3,FALSE),\"\")","v":""},null,null,null,null,null,null,null,null,null,null,null,null,null,null,"General Fund",null,{"$f":"IFERROR(VLOOKUP(C224,Descriptions!I:M,5,FALSE),\"N\")","v":"N"},true,"NTRUE",0,{"$f":"IFERROR(VLOOKUP(D224,'Bank and Fund Details'!$B$14:$L$35,11,FALSE),\"N\")","v":"Y"},"NY"]
[null,null,null,"General Fund",null,null,null,null,null,{"$f":"VLOOKUP(D225,'Bank and Fund Details'!$B$15:$D$36,3,FALSE)","v":0},{"$f":"VLOOKUP(D225,'Bank and Fund Details'!$B$15:$C$36,2,FALSE)","v":"Unrestricted"},{"$f":"IFERROR(VLOOKUP(C225,Descriptions!$I$6:$K$92,3,FALSE),\"\")","v":""},null,null,null,null,null,null,null,null,null,null,null,null,null,null,"General Fund",null,{"$f":"IFERROR(VLOOKUP(C225,Descriptions!I:M,5,FALSE),\"N\")","v":"N"},true,"NTRUE",0,{"$f":"IFERROR(VLOOKUP(D225,'Bank and Fund Details'!$B$14:$L$35,11,FALSE),\"N\")","v":"Y"},"NY"]
[null,null,null,"General Fund",null,null,null,null,null,{"$f":"VLOOKUP(D226,'Bank and Fund Details'!$B$15:$D$36,3,FALSE)","v":0},{"$f":"VLOOKUP(D226,'Bank and Fund Details'!$B$15:$C$36,2,FALSE)","v":"Unrestricted"},{"$f":"IFERROR(VLOOKUP(C226,Descriptions!$I$6:$K$92,3,FALSE),\"\")","v":""},null,null,null,null,null,null,null,null,null,null,null,null,null,null,"General Fund",null,{"$f":"IFERROR(VLOOKUP(C226,Descriptions!I:M,5,FALSE),\"N\")","v":"N"},true,"NTRUE",0,{"$f":"IFERROR(VLOOKUP(D226,'Bank and Fund Details'!$B$14:$L$35,11,FALSE),\"N\")","v":"Y"},"NY"]
[null,null,null,"General Fund",null,null,null,null,null,{"$f":"VLOOKUP(D227,'Bank and Fund Details'!$B$15:$D$36,3,FALSE)","v":0},{"$f":"VLOOKUP(D227,'Bank and Fund Details'!$B$15:$C$36,2,FALSE)","v":"Unrestricted"},{"$f":"IFERROR(VLOOKUP(C227,Descriptions!$I$6:$K$92,3,FALSE),\"\")","v":""},null,null,null,null,null,null,null,null,null,null,null,null,null,null,"General Fund",null,{"$f":"IFERROR(VLOOKUP(C227,Descriptions!I:M,5,FALSE),\"N\")","v":"N"},true,"NTRUE",0,{"$f":"IFERROR(VLOOKUP(D227,'Bank and Fund Details'!$B$14:$L$35,11,FALSE),\"N\")","v":"Y"},"NY"]
[null,null,null,"General Fund",null,null,null,null,null,{"$f":"VLOOKUP(D228,'Bank and Fund Details'!$B$15:$D$36,3,FALSE)","v":0},{"$f":"VLOOKUP(D228,'Bank and Fund Details'!$B$15:$C$36,2,FALSE)","v":"Unrestricted"},{"$f":"IFERROR(VLOOKUP(C228,Descriptions!$I$6:$K$92,3,FALSE),\"\")","v":""},null,null,null,null,null,null,null,null,null,null,null,null,null,null,"General Fund",null,{"$f":"IFERROR(VLOOKUP(C228,Descriptions!I:M,5,FALSE),\"N\")","v":"N"},true,"NTRUE",0,{"$f":"IFERROR(VLOOKUP(D228,'Bank and Fund Details'!$B$14:$L$35,11,FALSE),\"N\")","v":"Y"},"NY"]
[null,null,null,"General Fund",null,null,null,null,null,{"$f":"VLOOKUP(D229,'Bank and Fund Details'!$B$15:$D$36,3,FALSE)","v":0},{"$f":"VLOOKUP(D229,'Bank and Fund Details'!$B$15:$C$36,2,FALSE)","v":"Unrestricted"},{"$f":"IFERROR(VLOOKUP(C229,Descriptions!$I$6:$K$92,3,FALSE),\"\")","v":""},null,null,null,null,null,null,null,null,null,null,null,null,null,null,"General Fund",null,{"$f":"IFERROR(VLOOKUP(C229,Descriptions!I:M,5,FALSE),\"N\")","v":"N"},true,"NTRUE",0,{"$f":"IFERROR(VLOOKUP(D229,'Bank and Fund Details'!$B$14:$L$35,11,FALSE),\"N\")","v":"Y"},"NY"]
[null,null,null,"General Fund",null,null,null,null,null,{"$f":"VLOOKUP(D230,'Bank and Fund Details'!$B$15:$D$36,3,FALSE)","v":0},{"$f":"VLOOKUP(D230,'Bank and Fund Details'!$B$15:$C$36,2,FALSE)","v":"Unrestricted"},{"$f":"IFERROR(VLOOKUP(C230,Descriptions!$I$6:$K$92,3,FALSE),\"\")","v":""},null,null,null,null,null,null,null,null,null,null,null,null,null,null,"General Fund",null,{"$f":"IFERROR(VLOOKUP(C230,Descriptions!I:M,5,FALSE),\"N\")","v":"N"},true,"NTRUE",0,{"$f":"IFERROR(VLOOKUP(D230,'Bank and Fund Details'!$B$14:$L$35,11,FALSE),\"N\")","v":"Y"},"NY"]
[null,null,null,"General Fund",null,null,null,null,null,{"$f":"VLOOKUP(D231,'Bank and Fund Details'!$B$15:$D$36,3,FALSE)","v":0},{"$f":"VLOOKUP(D231,'Bank and Fund Details'!$B$15:$C$36,2,FALSE)","v":"Unrestricted"},{"$f":"IFERROR(VLOOKUP(C231,Descriptions!$I$6:$K$92,3,FALSE),\"\")","v":""},null,null,null,null,null,null,null,null,null,null,null,null,null,null,"General Fund",null,{"$f":"IFERROR(VLOOKUP(C231,Descriptions!I:M,5,FALSE),\"N\")","v":"N"},true,"NTRUE",0,{"$f":"IFERROR(VLOOKUP(D231,'Bank and Fund Details'!$B$14:$L$35,11,FALSE),\"N\")","v":"Y"},"NY"]
[null,null,null,"General Fund",null,null,null,null,null,{"$f":"VLOOKUP(D232,'Bank and Fund Details'!$B$15:$D$36,3,FALSE)","v":0},{"$f":"VLOOKUP(D232,'Bank and Fund Details'!$B$15:$C$36,2,FALSE)","v":"Unrestricted"},{"$f":"IFERROR(VLOOKUP(C232,Descriptions!$I$6:$K$92,3,FALSE),\"\")","v":""},null,null,null,null,null,null,null,null,null,null,null,null,null,null,"General Fund",null,{"$f":"IFERROR(VLOOKUP(C232,Descriptions!I:M,5,FALSE),\"N\")","v":"N"},true,"NTRUE",0,{"$f":"IFERROR(VLOOKUP(D232,'Bank and Fund Details'!$B$14:$L$35,11,FALSE),\"N\")","v":"Y"},"NY"]
[null,null,null,"General Fund",null,null,null,null,null,{"$f":"VLOOKUP(D233,'Bank and Fund Details'!$B$15:$D$36,3,FALSE)","v":0},{"$f":"VLOOKUP(D233,'Bank and Fund Details'!$B$15:$C$36,2,FALSE)","v":"Unrestricted"},{"$f":"IFERROR(VLOOKUP(C233,Descriptions!$I$6:$K$92,3,FALSE),\"\")","v":""},null,null,null,null,null,null,null,null,null,null,null,null,null,null,"General Fund",null,{"$f":"IFERROR(VLOOKUP(C233,Descriptions!I:M,5,FALSE),\"N\")","v":"N"},true,"NTRUE",0,{"$f":"IFERROR(VLOOKUP(D233,'Bank and Fund Details'!$B$14:$L$35,11,FALSE),\"N\")","v":"Y"},"NY"]
[null,null,null,"General Fund",null,null,null,null,null,{"$f":"VLOOKUP(D234,'Bank and Fund Details'!$B$15:$D$36,3,FALSE)","v":0},{"$f":"VLOOKUP(D234,'Bank and Fund Details'!$B$15:$C$36,2,FALSE)","v":"Unrestricted"},{"$f":"IFERROR(VLOOKUP(C234,Descriptions!$I$6:$K$92,3,FALSE),\"\")","v":""},null,null,null,null,null,null,null,null,null,null,null,null,null,null,"General Fund",null,{"$f":"IFERROR(VLOOKUP(C234,Descriptions!I:M,5,FALSE),\"N\")","v":"N"},true,"NTRUE",0,{"$f":"IFERROR(VLOOKUP(D234,'Bank and Fund Details'!$B$14:$L$35,11,FALSE),\"N\")","v":"Y"},"NY"]
[null,null,null,"General Fund",null,null,null,null,null,{"$f":"VLOOKUP(D235,'Bank and Fund Details'!$B$15:$D$36,3,FALSE)","v":0},{"$f":"VLOOKUP(D235,'Bank and Fund Details'!$B$15:$C$36,2,FALSE)","v":"Unrestricted"},{"$f":"IFERROR(VLOOKUP(C235,Descriptions!$I$6:$K$92,3,FALSE),\"\")","v":""},null,null,null,null,null,null,null,null,null,null,null,null,null,null,"General Fund",null,{"$f":"IFERROR(VLOOKUP(C235,Descriptions!I:M,5,FALSE),\"N\")","v":"N"},true,"NTRUE",0,{"$f":"IFERROR(VLOOKUP(D235,'Bank and Fund Details'!$B$14:$L$35,11,FALSE),\"N\")","v":"Y"},"NY"]
[null,null,null,"General Fund",null,null,null,null,null,{"$f":"VLOOKUP(D236,'Bank and Fund Details'!$B$15:$D$36,3,FALSE)","v":0},{"$f":"VLOOKUP(D236,'Bank and Fund Details'!$B$15:$C$36,2,FALSE)","v":"Unrestricted"},{"$f":"IFERROR(VLOOKUP(C236,Descriptions!$I$6:$K$92,3,FALSE),\"\")","v":""},null,null,null,null,null,null,null,null,null,null,null,null,null,null,"General Fund",null,{"$f":"IFERROR(VLOOKUP(C236,Descriptions!I:M,5,FALSE),\"N\")","v":"N"},true,"NTRUE",0,{"$f":"IFERROR(VLOOKUP(D236,'Bank and Fund Details'!$B$14:$L$35,11,FALSE),\"N\")","v":"Y"},"NY"]
[null,null,null,"General Fund",null,null,null,null,null,{"$f":"VLOOKUP(D237,'Bank and Fund Details'!$B$15:$D$36,3,FALSE)","v":0},{"$f":"VLOOKUP(D237,'Bank and Fund Details'!$B$15:$C$36,2,FALSE)","v":"Unrestricted"},{"$f":"IFERROR(VLOOKUP(C237,Descriptions!$I$6:$K$92,3,FALSE),\"\")","v":""},null,null,null,null,null,null,null,null,null,null,null,null,null,null,"General Fund",null,{"$f":"IFERROR(VLOOKUP(C237,Descriptions!I:M,5,FALSE),\"N\")","v":"N"},true,"NTRUE",0,{"$f":"IFERROR(VLOOKUP(D237,'Bank and Fund Details'!$B$14:$L$35,11,FALSE),\"N\")","v":"Y"},"NY"]
[null,null,null,"General Fund",null,null,null,null,null,{"$f":"VLOOKUP(D238,'Bank and Fund Details'!$B$15:$D$36,3,FALSE)","v":0},{"$f":"VLOOKUP(D238,'Bank and Fund Details'!$B$15:$C$36,2,FALSE)","v":"Unrestricted"},{"$f":"IFERROR(VLOOKUP(C238,Descriptions!$I$6:$K$92,3,FALSE),\"\")","v":""},null,null,null,null,null,null,null,null,null,null,null,null,null,null,"General Fund",null,{"$f":"IFERROR(VLOOKUP(C238,Descriptions!I:M,5,FALSE),\"N\")","v":"N"},true,"NTRUE",0,{"$f":"IFERROR(VLOOKUP(D238,'Bank and Fund Details'!$B$14:$L$35,11,FALSE),\"N\")","v":"Y"},"NY"]
[null,null,null,"General Fund",null,null,null,null,null,{"$f":"VLOOKUP(D239,'Bank and Fund Details'!$B$15:$D$36,3,FALSE)","v":0},{"$f":"VLOOKUP(D239,'Bank and Fund Details'!$B$15:$C$36,2,FALSE)","v":"Unrestricted"},{"$f":"IFERROR(VLOOKUP(C239,Descriptions!$I$6:$K$92,3,FALSE),\"\")","v":""},null,null,null,null,null,null,null,null,null,null,null,null,null,null,"General Fund",null,{"$f":"IFERROR(VLOOKUP(C239,Descriptions!I:M,5,FALSE),\"N\")","v":"N"},true,"NTRUE",0,{"$f":"IFERROR(VLOOKUP(D239,'Bank and Fund Details'!$B$14:$L$35,11,FALSE),\"N\")","v":"Y"},"NY"]
[null,null,null,"General Fund",null,null,null,null,null,{"$f":"VLOOKUP(D240,'Bank and Fund Details'!$B$15:$D$36,3,FALSE)","v":0},{"$f":"VLOOKUP(D240,'Bank and Fund Details'!$B$15:$C$36,2,FALSE)","v":"Unrestricted"},{"$f":"IFERROR(VLOOKUP(C240,Descriptions!$I$6:$K$92,3,FALSE),\"\")","v":""},null,null,null,null,null,null,null,null,null,null,null,null,null,null,"General Fund",null,{"$f":"IFERROR(VLOOKUP(C240,Descriptions!I:M,5,FALSE),\"N\")","v":"N"},true,"NTRUE",0,{"$f":"IFERROR(VLOOKUP(D240,'Bank and Fund Details'!$B$14:$L$35,11,FALSE),\"N\")","v":"Y"},"NY"]
[null,null,null,"General Fund",null,null,null,null,null,{"$f":"VLOOKUP(D241,'Bank and Fund Details'!$B$15:$D$36,3,FALSE)","v":0},{"$f":"VLOOKUP(D241,'Bank and Fund Details'!$B$15:$C$36,2,FALSE)","v":"Unrestricted"},{"$f":"IFERROR(VLOOKUP(C241,Descriptions!$I$6:$K$92,3,FALSE),\"\")","v":""},null,null,null,null,null,null,null,null,null,null,null,null,null,null,"General Fund",null,{"$f":"IFERROR(VLOOKUP(C241,Descriptions!I:M,5,FALSE),\"N\")","v":"N"},true,"NTRUE",0,{"$f":"IFERROR(VLOOKUP(D241,'Bank and Fund Details'!$B$14:$L$35,11,FALSE),\"N\")","v":"Y"},"NY"]
[null,null,null,"General Fund",null,null,null,null,null,{"$f":"VLOOKUP(D242,'Bank and Fund Details'!$B$15:$D$36,3,FALSE)","v":0},{"$f":"VLOOKUP(D242,'Bank and Fund Details'!$B$15:$C$36,2,FALSE)","v":"Unrestricted"},{"$f":"IFERROR(VLOOKUP(C242,Descriptions!$I$6:$K$92,3,FALSE),\"\")","v":""},null,null,null,null,null,null,null,null,null,null,null,null,null,null,"General Fund",null,{"$f":"IFERROR(VLOOKUP(C242,Descriptions!I:M,5,FALSE),\"N\")","v":"N"},true,"NTRUE",0,{"$f":"IFERROR(VLOOKUP(D242,'Bank and Fund Details'!$B$14:$L$35,11,FALSE),\"N\")","v":"Y"},"NY"]
[null,null,null,"General Fund",null,null,null,null,null,{"$f":"VLOOKUP(D243,'Bank and Fund Details'!$B$15:$D$36,3,FALSE)","v":0},{"$f":"VLOOKUP(D243,'Bank and Fund Details'!$B$15:$C$36,2,FALSE)","v":"Unrestricted"},{"$f":"IFERROR(VLOOKUP(C243,Descriptions!$I$6:$K$92,3,FALSE),\"\")","v":""},null,null,null,null,null,null,null,null,null,null,null,null,null,null,"General Fund",null,{"$f":"IFERROR(VLOOKUP(C243,Descriptions!I:M,5,FALSE),\"N\")","v":"N"},true,"NTRUE",0,{"$f":"IFERROR(VLOOKUP(D243,'Bank and Fund Details'!$B$14:$L$35,11,FALSE),\"N\")","v":"Y"},"NY"]
[null,null,null,"General Fund",null,null,null,null,null,{"$f":"VLOOKUP(D244,'Bank and Fund Details'!$B$15:$D$36,3,FALSE)","v":0},{"$f":"VLOOKUP(D244,'Bank and Fund Details'!$B$15:$C$36,2,FALSE)","v":"Unrestricted"},{"$f":"IFERROR(VLOOKUP(C244,Descriptions!$I$6:$K$92,3,FALSE),\"\")","v":""},null,null,null,null,null,null,null,null,null,null,null,null,null,null,"General Fund",null,{"$f":"IFERROR(VLOOKUP(C244,Descriptions!I:M,5,FALSE),\"N\")","v":"N"},true,"NTRUE",0,{"$f":"IFERROR(VLOOKUP(D244,'Bank and Fund Details'!$B$14:$L$35,11,FALSE),\"N\")","v":"Y"},"NY"]
[null,null,null,"General Fund",null,null,null,null,null,{"$f":"VLOOKUP(D245,'Bank and Fund Details'!$B$15:$D$36,3,FALSE)","v":0},{"$f":"VLOOKUP(D245,'Bank and Fund Details'!$B$15:$C$36,2,FALSE)","v":"Unrestricted"},{"$f":"IFERROR(VLOOKUP(C245,Descriptions!$I$6:$K$92,3,FALSE),\"\")","v":""},null,null,null,null,null,null,null,null,null,null,null,null,null,null,"General Fund",null,{"$f":"IFERROR(VLOOKUP(C245,Descriptions!I:M,5,FALSE),\"N\")","v":"N"},true,"NTRUE",0,{"$f":"IFERROR(VLOOKUP(D245,'Bank and Fund Details'!$B$14:$L$35,11,FALSE),\"N\")","v":"Y"},"NY"]
[null,null,null,"General Fund",null,null,null,null,null,{"$f":"VLOOKUP(D246,'Bank and Fund Details'!$B$15:$D$36,3,FALSE)","v":0},{"$f":"VLOOKUP(D246,'Bank and Fund Details'!$B$15:$C$36,2,FALSE)","v":"Unrestricted"},{"$f":"IFERROR(VLOOKUP(C246,Descriptions!$I$6:$K$92,3,FALSE),\"\")","v":""},null,null,null,null,null,null,null,null,null,null,null,null,null,null,"General Fund",null,{"$f":"IFERROR(VLOOKUP(C246,Descriptions!I:M,5,FALSE),\"N\")","v":"N"},true,"NTRUE",0,{"$f":"IFERROR(VLOOKUP(D246,'Bank and Fund Details'!$B$14:$L$35,11,FALSE),\"N\")","v":"Y"},"NY"]
[null,null,null,"General Fund",null,null,null,null,null,{"$f":"VLOOKUP(D247,'Bank and Fund Details'!$B$15:$D$36,3,FALSE)","v":0},{"$f":"VLOOKUP(D247,'Bank and Fund Details'!$B$15:$C$36,2,FALSE)","v":"Unrestricted"},{"$f":"IFERROR(VLOOKUP(C247,Descriptions!$I$6:$K$92,3,FALSE),\"\")","v":""},null,null,null,null,null,null,null,null,null,null,null,null,null,null,"General Fund",null,{"$f":"IFERROR(VLOOKUP(C247,Descriptions!I:M,5,FALSE),\"N\")","v":"N"},true,"NTRUE",0,{"$f":"IFERROR(VLOOKUP(D247,'Bank and Fund Details'!$B$14:$L$35,11,FALSE),\"N\")","v":"Y"},"NY"]
[null,null,null,"General Fund",null,null,null,null,null,{"$f":"VLOOKUP(D248,'Bank and Fund Details'!$B$15:$D$36,3,FALSE)","v":0},{"$f":"VLOOKUP(D248,'Bank and Fund Details'!$B$15:$C$36,2,FALSE)","v":"Unrestricted"},{"$f":"IFERROR(VLOOKUP(C248,Descriptions!$I$6:$K$92,3,FALSE),\"\")","v":""},null,null,null,null,null,null,null,null,null,null,null,null,null,null,"General Fund",null,{"$f":"IFERROR(VLOOKUP(C248,Descriptions!I:M,5,FALSE),\"N\")","v":"N"},true,"NTRUE",0,{"$f":"IFERROR(VLOOKUP(D248,'Bank and Fund Details'!$B$14:$L$35,11,FALSE),\"N\")","v":"Y"},"NY"]
[null,null,null,"General Fund",null,null,null,null,null,{"$f":"VLOOKUP(D249,'Bank and Fund Details'!$B$15:$D$36,3,FALSE)","v":0},{"$f":"VLOOKUP(D249,'Bank and Fund Details'!$B$15:$C$36,2,FALSE)","v":"Unrestricted"},{"$f":"IFERROR(VLOOKUP(C249,Descriptions!$I$6:$K$92,3,FALSE),\"\")","v":""},null,null,null,null,null,null,null,null,null,null,null,null,null,null,"General Fund",null,{"$f":"IFERROR(VLOOKUP(C249,Descriptions!I:M,5,FALSE),\"N\")","v":"N"},true,"NTRUE",0,{"$f":"IFERROR(VLOOKUP(D249,'Bank and Fund Details'!$B$14:$L$35,11,FALSE),\"N\")","v":"Y"},"NY"]
[null,null,null,"General Fund",null,null,null,null,null,{"$f":"VLOOKUP(D250,'Bank and Fund Details'!$B$15:$D$36,3,FALSE)","v":0},{"$f":"VLOOKUP(D250,'Bank and Fund Details'!$B$15:$C$36,2,FALSE)","v":"Unrestricted"},{"$f":"IFERROR(VLOOKUP(C250,Descriptions!$I$6:$K$92,3,FALSE),\"\")","v":""},null,null,null,null,null,null,null,null,null,null,null,null,null,null,"General Fund",null,{"$f":"IFERROR(VLOOKUP(C250,Descriptions!I:M,5,FALSE),\"N\")","v":"N"},true,"NTRUE",0,{"$f":"IFERROR(VLOOKUP(D250,'Bank and Fund Details'!$B$14:$L$35,11,FALSE),\"N\")","v":"Y"},"NY"]
[null,null,null,"General Fund",null,null,null,null,null,{"$f":"VLOOKUP(D251,'Bank and Fund Details'!$B$15:$D$36,3,FALSE)","v":0},{"$f":"VLOOKUP(D251,'Bank and Fund Details'!$B$15:$C$36,2,FALSE)","v":"Unrestricted"},{"$f":"IFERROR(VLOOKUP(C251,Descriptions!$I$6:$K$92,3,FALSE),\"\")","v":""},null,null,null,null,null,null,null,null,null,null,null,null,null,null,"General Fund",null,{"$f":"IFERROR(VLOOKUP(C251,Descriptions!I:M,5,FALSE),\"N\")","v":"N"},true,"NTRUE",0,{"$f":"IFERROR(VLOOKUP(D251,'Bank and Fund Details'!$B$14:$L$35,11,FALSE),\"N\")","v":"Y"},"NY"]
[null,null,null,"General Fund",null,null,null,null,null,{"$f":"VLOOKUP(D252,'Bank and Fund Details'!$B$15:$D$36,3,FALSE)","v":0},{"$f":"VLOOKUP(D252,'Bank and Fund Details'!$B$15:$C$36,2,FALSE)","v":"Unrestricted"},{"$f":"IFERROR(VLOOKUP(C252,Descriptions!$I$6:$K$92,3,FALSE),\"\")","v":""},null,null,null,null,null,null,null,null,null,null,null,null,null,null,"General Fund",null,{"$f":"IFERROR(VLOOKUP(C252,Descriptions!I:M,5,FALSE),\"N\")","v":"N"},true,"NTRUE",0,{"$f":"IFERROR(VLOOKUP(D252,'Bank and Fund Details'!$B$14:$L$35,11,FALSE),\"N\")","v":"Y"},"NY"]
[null,null,null,"General Fund",null,null,null,null,null,{"$f":"VLOOKUP(D253,'Bank and Fund Details'!$B$15:$D$36,3,FALSE)","v":0},{"$f":"VLOOKUP(D253,'Bank and Fund Details'!$B$15:$C$36,2,FALSE)","v":"Unrestricted"},{"$f":"IFERROR(VLOOKUP(C253,Descriptions!$I$6:$K$92,3,FALSE),\"\")","v":""},null,null,null,null,null,null,null,null,null,null,null,null,null,null,"General Fund",null,{"$f":"IFERROR(VLOOKUP(C253,Descriptions!I:M,5,FALSE),\"N\")","v":"N"},true,"NTRUE",0,{"$f":"IFERROR(VLOOKUP(D253,'Bank and Fund Details'!$B$14:$L$35,11,FALSE),\"N\")","v":"Y"},"NY"]
[null,null,null,"General Fund",null,null,null,null,null,{"$f":"VLOOKUP(D254,'Bank and Fund Details'!$B$15:$D$36,3,FALSE)","v":0},{"$f":"VLOOKUP(D254,'Bank and Fund Details'!$B$15:$C$36,2,FALSE)","v":"Unrestricted"},{"$f":"IFERROR(VLOOKUP(C254,Descriptions!$I$6:$K$92,3,FALSE),\"\")","v":""},null,null,null,null,null,null,null,null,null,null,null,null,null,null,"General Fund",null,{"$f":"IFERROR(VLOOKUP(C254,Descriptions!I:M,5,FALSE),\"N\")","v":"N"},true,"NTRUE",0,{"$f":"IFERROR(VLOOKUP(D254,'Bank and Fund Details'!$B$14:$L$35,11,FALSE),\"N\")","v":"Y"},"NY"]
[null,null,null,"General Fund",null,null,null,null,null,{"$f":"VLOOKUP(D255,'Bank and Fund Details'!$B$15:$D$36,3,FALSE)","v":0},{"$f":"VLOOKUP(D255,'Bank and Fund Details'!$B$15:$C$36,2,FALSE)","v":"Unrestricted"},{"$f":"IFERROR(VLOOKUP(C255,Descriptions!$I$6:$K$92,3,FALSE),\"\")","v":""},null,null,null,null,null,null,null,null,null,null,null,null,null,null,"General Fund",null,{"$f":"IFERROR(VLOOKUP(C255,Descriptions!I:M,5,FALSE),\"N\")","v":"N"},true,"NTRUE",0,{"$f":"IFERROR(VLOOKUP(D255,'Bank and Fund Details'!$B$14:$L$35,11,FALSE),\"N\")","v":"Y"},"NY"]
[null,null,null,"General Fund",null,null,null,null,null,{"$f":"VLOOKUP(D256,'Bank and Fund Details'!$B$15:$D$36,3,FALSE)","v":0},{"$f":"VLOOKUP(D256,'Bank and Fund Details'!$B$15:$C$36,2,FALSE)","v":"Unrestricted"},{"$f":"IFERROR(VLOOKUP(C256,Descriptions!$I$6:$K$92,3,FALSE),\"\")","v":""},null,null,null,null,null,null,null,null,null,null,null,null,null,null,"General Fund",null,{"$f":"IFERROR(VLOOKUP(C256,Descriptions!I:M,5,FALSE),\"N\")","v":"N"},true,"NTRUE",0,{"$f":"IFERROR(VLOOKUP(D256,'Bank and Fund Details'!$B$14:$L$35,11,FALSE),\"N\")","v":"Y"},"NY"]
[null,null,null,"General Fund",null,null,null,null,null,{"$f":"VLOOKUP(D257,'Bank and Fund Details'!$B$15:$D$36,3,FALSE)","v":0},{"$f":"VLOOKUP(D257,'Bank and Fund Details'!$B$15:$C$36,2,FALSE)","v":"Unrestricted"},{"$f":"IFERROR(VLOOKUP(C257,Descriptions!$I$6:$K$92,3,FALSE),\"\")","v":""},null,null,null,null,null,null,null,null,null,null,null,null,null,null,"General Fund",null,{"$f":"IFERROR(VLOOKUP(C257,Descriptions!I:M,5,FALSE),\"N\")","v":"N"},true,"NTRUE",0,{"$f":"IFERROR(VLOOKUP(D257,'Bank and Fund Details'!$B$14:$L$35,11,FALSE),\"N\")","v":"Y"},"NY"]
[null,null,null,"General Fund",null,null,null,null,null,{"$f":"VLOOKUP(D258,'Bank and Fund Details'!$B$15:$D$36,3,FALSE)","v":0},{"$f":"VLOOKUP(D258,'Bank and Fund Details'!$B$15:$C$36,2,FALSE)","v":"Unrestricted"},{"$f":"IFERROR(VLOOKUP(C258,Descriptions!$I$6:$K$92,3,FALSE),\"\")","v":""},null,null,null,null,null,null,null,null,null,null,null,null,null,null,"General Fund",null,{"$f":"IFERROR(VLOOKUP(C258,Descriptions!I:M,5,FALSE),\"N\")","v":"N"},true,"NTRUE",0,{"$f":"IFERROR(VLOOKUP(D258,'Bank and Fund Details'!$B$14:$L$35,11,FALSE),\"N\")","v":"Y"},"NY"]
[null,null,null,"General Fund",null,null,null,null,null,{"$f":"VLOOKUP(D259,'Bank and Fund Details'!$B$15:$D$36,3,FALSE)","v":0},{"$f":"VLOOKUP(D259,'Bank and Fund Details'!$B$15:$C$36,2,FALSE)","v":"Unrestricted"},{"$f":"IFERROR(VLOOKUP(C259,Descriptions!$I$6:$K$92,3,FALSE),\"\")","v":""},null,null,null,null,null,null,null,null,null,null,null,null,null,null,"General Fund",null,{"$f":"IFERROR(VLOOKUP(C259,Descriptions!I:M,5,FALSE),\"N\")","v":"N"},true,"NTRUE",0,{"$f":"IFERROR(VLOOKUP(D259,'Bank and Fund Details'!$B$14:$L$35,11,FALSE),\"N\")","v":"Y"},"NY"]
[null,null,null,"General Fund",null,null,null,null,null,{"$f":"VLOOKUP(D260,'Bank and Fund Details'!$B$15:$D$36,3,FALSE)","v":0},{"$f":"VLOOKUP(D260,'Bank and Fund Details'!$B$15:$C$36,2,FALSE)","v":"Unrestricted"},{"$f":"IFERROR(VLOOKUP(C260,Descriptions!$I$6:$K$92,3,FALSE),\"\")","v":""},null,null,null,null,null,null,null,null,null,null,null,null,null,null,"General Fund",null,{"$f":"IFERROR(VLOOKUP(C260,Descriptions!I:M,5,FALSE),\"N\")","v":"N"},true,"NTRUE",0,{"$f":"IFERROR(VLOOKUP(D260,'Bank and Fund Details'!$B$14:$L$35,11,FALSE),\"N\")","v":"Y"},"NY"]
[null,null,null,"General Fund",null,null,null,null,null,{"$f":"VLOOKUP(D261,'Bank and Fund Details'!$B$15:$D$36,3,FALSE)","v":0},{"$f":"VLOOKUP(D261,'Bank and Fund Details'!$B$15:$C$36,2,FALSE)","v":"Unrestricted"},{"$f":"IFERROR(VLOOKUP(C261,Descriptions!$I$6:$K$92,3,FALSE),\"\")","v":""},null,null,null,null,null,null,null,null,null,null,null,null,null,null,"General Fund",null,{"$f":"IFERROR(VLOOKUP(C261,Descriptions!I:M,5,FALSE),\"N\")","v":"N"},true,"NTRUE",0,{"$f":"IFERROR(VLOOKUP(D261,'Bank and Fund Details'!$B$14:$L$35,11,FALSE),\"N\")","v":"Y"},"NY"]
[null,null,null,"General Fund",null,null,null,null,null,{"$f":"VLOOKUP(D262,'Bank and Fund Details'!$B$15:$D$36,3,FALSE)","v":0},{"$f":"VLOOKUP(D262,'Bank and Fund Details'!$B$15:$C$36,2,FALSE)","v":"Unrestricted"},{"$f":"IFERROR(VLOOKUP(C262,Descriptions!$I$6:$K$92,3,FALSE),\"\")","v":""},null,null,null,null,null,null,null,null,null,null,null,null,null,null,{"$f":"CONCATENATE(C262,D262)","v":"General Fund"},null,{"$f":"IFERROR(VLOOKUP(C262,Descriptions!I:M,5,FALSE),\"N\")","v":"N"},{"$f":"ISBLANK(C262)","v":true},{"$f":"CONCATENATE(AC262,AD262)","v":"NTRUE"},{"$f":"IF(AE262=\"NFALSE\",1,0)","v":0},{"$f":"IFERROR(VLOOKUP(D262,'Bank and Fund Details'!$B$14:$L$35,11,FALSE),\"N\")","v":"Y"},{"$f":"CONCATENATE(AC262,AG262)","v":"NY"}]
[null,null,null,"General Fund",null,null,null,null,null,{"$f":"VLOOKUP(D263,'Bank and Fund Details'!$B$15:$D$36,3,FALSE)","v":0},{"$f":"VLOOKUP(D263,'Bank and Fund Details'!$B$15:$C$36,2,FALSE)","v":"Unrestricted"},{"$f":"IFERROR(VLOOKUP(C263,Descriptions!$I$6:$K$92,3,FALSE),\"\")","v":""},null,null,null,null,null,null,null,null,null,null,null,null,null,null,"General Fund",null,{"$f":"IFERROR(VLOOKUP(C263,Descriptions!I:M,5,FALSE),\"N\")","v":"N"},true,"NTRUE",0,{"$f":"IFERROR(VLOOKUP(D263,'Bank and Fund Details'!$B$14:$L$35,11,FALSE),\"N\")","v":"Y"},"NY"]
[null,null,null,"General Fund",null,null,null,null,null,{"$f":"VLOOKUP(D264,'Bank and Fund Details'!$B$15:$D$36,3,FALSE)","v":0},{"$f":"VLOOKUP(D264,'Bank and Fund Details'!$B$15:$C$36,2,FALSE)","v":"Unrestricted"},{"$f":"IFERROR(VLOOKUP(C264,Descriptions!$I$6:$K$92,3,FALSE),\"\")","v":""},null,null,null,null,null,null,null,null,null,null,null,null,null,null,"General Fund",null,{"$f":"IFERROR(VLOOKUP(C264,Descriptions!I:M,5,FALSE),\"N\")","v":"N"},true,"NTRUE",0,{"$f":"IFERROR(VLOOKUP(D264,'Bank and Fund Details'!$B$14:$L$35,11,FALSE),\"N\")","v":"Y"},"NY"]
[null,null,null,"General Fund",null,null,null,null,null,{"$f":"VLOOKUP(D265,'Bank and Fund Details'!$B$15:$D$36,3,FALSE)","v":0},{"$f":"VLOOKUP(D265,'Bank and Fund Details'!$B$15:$C$36,2,FALSE)","v":"Unrestricted"},{"$f":"IFERROR(VLOOKUP(C265,Descriptions!$I$6:$K$92,3,FALSE),\"\")","v":""},null,null,null,null,null,null,null,null,null,null,null,null,null,null,"General Fund",null,{"$f":"IFERROR(VLOOKUP(C265,Descriptions!I:M,5,FALSE),\"N\")","v":"N"},true,"NTRUE",0,{"$f":"IFERROR(VLOOKUP(D265,'Bank and Fund Details'!$B$14:$L$35,11,FALSE),\"N\")","v":"Y"},"NY"]
[null,null,null,"General Fund",null,null,null,null,null,{"$f":"VLOOKUP(D266,'Bank and Fund Details'!$B$15:$D$36,3,FALSE)","v":0},{"$f":"VLOOKUP(D266,'Bank and Fund Details'!$B$15:$C$36,2,FALSE)","v":"Unrestricted"},{"$f":"IFERROR(VLOOKUP(C266,Descriptions!$I$6:$K$92,3,FALSE),\"\")","v":""},null,null,null,null,null,null,null,null,null,null,null,null,null,null,"General Fund",null,{"$f":"IFERROR(VLOOKUP(C266,Descriptions!I:M,5,FALSE),\"N\")","v":"N"},true,"NTRUE",0,{"$f":"IFERROR(VLOOKUP(D266,'Bank and Fund Details'!$B$14:$L$35,11,FALSE),\"N\")","v":"Y"},"NY"]
[null,null,null,"General Fund",null,null,null,null,null,{"$f":"VLOOKUP(D267,'Bank and Fund Details'!$B$15:$D$36,3,FALSE)","v":0},{"$f":"VLOOKUP(D267,'Bank and Fund Details'!$B$15:$C$36,2,FALSE)","v":"Unrestricted"},{"$f":"IFERROR(VLOOKUP(C267,Descriptions!$I$6:$K$92,3,FALSE),\"\")","v":""},null,null,null,null,null,null,null,null,null,null,null,null,null,null,"General Fund",null,{"$f":"IFERROR(VLOOKUP(C267,Descriptions!I:M,5,FALSE),\"N\")","v":"N"},true,"NTRUE",0,{"$f":"IFERROR(VLOOKUP(D267,'Bank and Fund Details'!$B$14:$L$35,11,FALSE),\"N\")","v":"Y"},"NY"]
[null,null,null,"General Fund",null,null,null,null,null,{"$f":"VLOOKUP(D268,'Bank and Fund Details'!$B$15:$D$36,3,FALSE)","v":0},{"$f":"VLOOKUP(D268,'Bank and Fund Details'!$B$15:$C$36,2,FALSE)","v":"Unrestricted"},{"$f":"IFERROR(VLOOKUP(C268,Descriptions!$I$6:$K$92,3,FALSE),\"\")","v":""},null,null,null,null,null,null,null,null,null,null,null,null,null,null,"General Fund",null,{"$f":"IFERROR(VLOOKUP(C268,Descriptions!I:M,5,FALSE),\"N\")","v":"N"},true,"NTRUE",0,{"$f":"IFERROR(VLOOKUP(D268,'Bank and Fund Details'!$B$14:$L$35,11,FALSE),\"N\")","v":"Y"},"NY"]
[null,null,null,"General Fund",null,null,null,null,null,{"$f":"VLOOKUP(D269,'Bank and Fund Details'!$B$15:$D$36,3,FALSE)","v":0},{"$f":"VLOOKUP(D269,'Bank and Fund Details'!$B$15:$C$36,2,FALSE)","v":"Unrestricted"},{"$f":"IFERROR(VLOOKUP(C269,Descriptions!$I$6:$K$92,3,FALSE),\"\")","v":""},null,null,null,null,null,null,null,null,null,null,null,null,null,null,"General Fund",null,{"$f":"IFERROR(VLOOKUP(C269,Descriptions!I:M,5,FALSE),\"N\")","v":"N"},true,"NTRUE",0,{"$f":"IFERROR(VLOOKUP(D269,'Bank and Fund Details'!$B$14:$L$35,11,FALSE),\"N\")","v":"Y"},"NY"]
[null,null,null,"General Fund",null,null,null,null,null,{"$f":"VLOOKUP(D270,'Bank and Fund Details'!$B$15:$D$36,3,FALSE)","v":0},{"$f":"VLOOKUP(D270,'Bank and Fund Details'!$B$15:$C$36,2,FALSE)","v":"Unrestricted"},{"$f":"IFERROR(VLOOKUP(C270,Descriptions!$I$6:$K$92,3,FALSE),\"\")","v":""},null,null,null,null,null,null,null,null,null,null,null,null,null,null,"General Fund",null,{"$f":"IFERROR(VLOOKUP(C270,Descriptions!I:M,5,FALSE),\"N\")","v":"N"},true,"NTRUE",0,{"$f":"IFERROR(VLOOKUP(D270,'Bank and Fund Details'!$B$14:$L$35,11,FALSE),\"N\")","v":"Y"},"NY"]
[null,null,null,"General Fund",null,null,null,null,null,{"$f":"VLOOKUP(D271,'Bank and Fund Details'!$B$15:$D$36,3,FALSE)","v":0},{"$f":"VLOOKUP(D271,'Bank and Fund Details'!$B$15:$C$36,2,FALSE)","v":"Unrestricted"},{"$f":"IFERROR(VLOOKUP(C271,Descriptions!$I$6:$K$92,3,FALSE),\"\")","v":""},null,null,null,null,null,null,null,null,null,null,null,null,null,null,"General Fund",null,{"$f":"IFERROR(VLOOKUP(C271,Descriptions!I:M,5,FALSE),\"N\")","v":"N"},true,"NTRUE",0,{"$f":"IFERROR(VLOOKUP(D271,'Bank and Fund Details'!$B$14:$L$35,11,FALSE),\"N\")","v":"Y"},"NY"]
[null,null,null,"General Fund",null,null,null,null,null,{"$f":"VLOOKUP(D272,'Bank and Fund Details'!$B$15:$D$36,3,FALSE)","v":0},{"$f":"VLOOKUP(D272,'Bank and Fund Details'!$B$15:$C$36,2,FALSE)","v":"Unrestricted"},{"$f":"IFERROR(VLOOKUP(C272,Descriptions!$I$6:$K$92,3,FALSE),\"\")","v":""},null,null,null,null,null,null,null,null,null,null,null,null,null,null,"General Fund",null,{"$f":"IFERROR(VLOOKUP(C272,Descriptions!I:M,5,FALSE),\"N\")","v":"N"},true,"NTRUE",0,{"$f":"IFERROR(VLOOKUP(D272,'Bank and Fund Details'!$B$14:$L$35,11,FALSE),\"N\")","v":"Y"},"NY"]
[null,null,null,"General Fund",null,null,null,null,null,{"$f":"VLOOKUP(D273,'Bank and Fund Details'!$B$15:$D$36,3,FALSE)","v":0},{"$f":"VLOOKUP(D273,'Bank and Fund Details'!$B$15:$C$36,2,FALSE)","v":"Unrestricted"},{"$f":"IFERROR(VLOOKUP(C273,Descriptions!$I$6:$K$92,3,FALSE),\"\")","v":""},null,null,null,null,null,null,null,null,null,null,null,null,null,null,"General Fund",null,{"$f":"IFERROR(VLOOKUP(C273,Descriptions!I:M,5,FALSE),\"N\")","v":"N"},true,"NTRUE",0,{"$f":"IFERROR(VLOOKUP(D273,'Bank and Fund Details'!$B$14:$L$35,11,FALSE),\"N\")","v":"Y"},"NY"]
[null,null,null,"General Fund",null,null,null,null,null,{"$f":"VLOOKUP(D274,'Bank and Fund Details'!$B$15:$D$36,3,FALSE)","v":0},{"$f":"VLOOKUP(D274,'Bank and Fund Details'!$B$15:$C$36,2,FALSE)","v":"Unrestricted"},{"$f":"IFERROR(VLOOKUP(C274,Descriptions!$I$6:$K$92,3,FALSE),\"\")","v":""},null,null,null,null,null,null,null,null,null,null,null,null,null,null,"General Fund",null,{"$f":"IFERROR(VLOOKUP(C274,Descriptions!I:M,5,FALSE),\"N\")","v":"N"},true,"NTRUE",0,{"$f":"IFERROR(VLOOKUP(D274,'Bank and Fund Details'!$B$14:$L$35,11,FALSE),\"N\")","v":"Y"},"NY"]
[null,null,null,"General Fund",null,null,null,null,null,{"$f":"VLOOKUP(D275,'Bank and Fund Details'!$B$15:$D$36,3,FALSE)","v":0},{"$f":"VLOOKUP(D275,'Bank and Fund Details'!$B$15:$C$36,2,FALSE)","v":"Unrestricted"},{"$f":"IFERROR(VLOOKUP(C275,Descriptions!$I$6:$K$92,3,FALSE),\"\")","v":""},null,null,null,null,null,null,null,null,null,null,null,null,null,null,"General Fund",null,{"$f":"IFERROR(VLOOKUP(C275,Descriptions!I:M,5,FALSE),\"N\")","v":"N"},true,"NTRUE",0,{"$f":"IFERROR(VLOOKUP(D275,'Bank and Fund Details'!$B$14:$L$35,11,FALSE),\"N\")","v":"Y"},"NY"]
[null,null,null,"General Fund",null,null,null,null,null,{"$f":"VLOOKUP(D276,'Bank and Fund Details'!$B$15:$D$36,3,FALSE)","v":0},{"$f":"VLOOKUP(D276,'Bank and Fund Details'!$B$15:$C$36,2,FALSE)","v":"Unrestricted"},{"$f":"IFERROR(VLOOKUP(C276,Descriptions!$I$6:$K$92,3,FALSE),\"\")","v":""},null,null,null,null,null,null,null,null,null,null,null,null,null,null,"General Fund",null,{"$f":"IFERROR(VLOOKUP(C276,Descriptions!I:M,5,FALSE),\"N\")","v":"N"},true,"NTRUE",0,{"$f":"IFERROR(VLOOKUP(D276,'Bank and Fund Details'!$B$14:$L$35,11,FALSE),\"N\")","v":"Y"},"NY"]
[null,null,null,"General Fund",null,null,null,null,null,{"$f":"VLOOKUP(D277,'Bank and Fund Details'!$B$15:$D$36,3,FALSE)","v":0},{"$f":"VLOOKUP(D277,'Bank and Fund Details'!$B$15:$C$36,2,FALSE)","v":"Unrestricted"},{"$f":"IFERROR(VLOOKUP(C277,Descriptions!$I$6:$K$92,3,FALSE),\"\")","v":""},null,null,null,null,null,null,null,null,null,null,null,null,null,null,"General Fund",null,{"$f":"IFERROR(VLOOKUP(C277,Descriptions!I:M,5,FALSE),\"N\")","v":"N"},true,"NTRUE",0,{"$f":"IFERROR(VLOOKUP(D277,'Bank and Fund Details'!$B$14:$L$35,11,FALSE),\"N\")","v":"Y"},"NY"]
[null,null,null,"General Fund",null,null,null,null,null,{"$f":"VLOOKUP(D278,'Bank and Fund Details'!$B$15:$D$36,3,FALSE)","v":0},{"$f":"VLOOKUP(D278,'Bank and Fund Details'!$B$15:$C$36,2,FALSE)","v":"Unrestricted"},{"$f":"IFERROR(VLOOKUP(C278,Descriptions!$I$6:$K$92,3,FALSE),\"\")","v":""},null,null,null,null,null,null,null,null,null,null,null,null,null,null,"General Fund",null,{"$f":"IFERROR(VLOOKUP(C278,Descriptions!I:M,5,FALSE),\"N\")","v":"N"},true,"NTRUE",0,{"$f":"IFERROR(VLOOKUP(D278,'Bank and Fund Details'!$B$14:$L$35,11,FALSE),\"N\")","v":"Y"},"NY"]
[null,null,null,"General Fund",null,null,null,null,null,{"$f":"VLOOKUP(D279,'Bank and Fund Details'!$B$15:$D$36,3,FALSE)","v":0},{"$f":"VLOOKUP(D279,'Bank and Fund Details'!$B$15:$C$36,2,FALSE)","v":"Unrestricted"},{"$f":"IFERROR(VLOOKUP(C279,Descriptions!$I$6:$K$92,3,FALSE),\"\")","v":""},null,null,null,null,null,null,null,null,null,null,null,null,null,null,"General Fund",null,{"$f":"IFERROR(VLOOKUP(C279,Descriptions!I:M,5,FALSE),\"N\")","v":"N"},true,"NTRUE",0,{"$f":"IFERROR(VLOOKUP(D279,'Bank and Fund Details'!$B$14:$L$35,11,FALSE),\"N\")","v":"Y"},"NY"]
[null,null,null,"General Fund",null,null,null,null,null,{"$f":"VLOOKUP(D280,'Bank and Fund Details'!$B$15:$D$36,3,FALSE)","v":0},{"$f":"VLOOKUP(D280,'Bank and Fund Details'!$B$15:$C$36,2,FALSE)","v":"Unrestricted"},{"$f":"IFERROR(VLOOKUP(C280,Descriptions!$I$6:$K$92,3,FALSE),\"\")","v":""},null,null,null,null,null,null,null,null,null,null,null,null,null,null,"General Fund",null,{"$f":"IFERROR(VLOOKUP(C280,Descriptions!I:M,5,FALSE),\"N\")","v":"N"},true,"NTRUE",0,{"$f":"IFERROR(VLOOKUP(D280,'Bank and Fund Details'!$B$14:$L$35,11,FALSE),\"N\")","v":"Y"},"NY"]
[null,null,null,"General Fund",null,null,null,null,null,{"$f":"VLOOKUP(D281,'Bank and Fund Details'!$B$15:$D$36,3,FALSE)","v":0},{"$f":"VLOOKUP(D281,'Bank and Fund Details'!$B$15:$C$36,2,FALSE)","v":"Unrestricted"},{"$f":"IFERROR(VLOOKUP(C281,Descriptions!$I$6:$K$92,3,FALSE),\"\")","v":""},null,null,null,null,null,null,null,null,null,null,null,null,null,null,"General Fund",null,{"$f":"IFERROR(VLOOKUP(C281,Descriptions!I:M,5,FALSE),\"N\")","v":"N"},true,"NTRUE",0,{"$f":"IFERROR(VLOOKUP(D281,'Bank and Fund Details'!$B$14:$L$35,11,FALSE),\"N\")","v":"Y"},"NY"]
[null,null,null,"General Fund",null,null,null,null,null,{"$f":"VLOOKUP(D282,'Bank and Fund Details'!$B$15:$D$36,3,FALSE)","v":0},{"$f":"VLOOKUP(D282,'Bank and Fund Details'!$B$15:$C$36,2,FALSE)","v":"Unrestricted"},{"$f":"IFERROR(VLOOKUP(C282,Descriptions!$I$6:$K$92,3,FALSE),\"\")","v":""},null,null,null,null,null,null,null,null,null,null,null,null,null,null,"General Fund",null,{"$f":"IFERROR(VLOOKUP(C282,Descriptions!I:M,5,FALSE),\"N\")","v":"N"},true,"NTRUE",0,{"$f":"IFERROR(VLOOKUP(D282,'Bank and Fund Details'!$B$14:$L$35,11,FALSE),\"N\")","v":"Y"},"NY"]
[null,null,null,"General Fund",null,null,null,null,null,{"$f":"VLOOKUP(D283,'Bank and Fund Details'!$B$15:$D$36,3,FALSE)","v":0},{"$f":"VLOOKUP(D283,'Bank and Fund Details'!$B$15:$C$36,2,FALSE)","v":"Unrestricted"},{"$f":"IFERROR(VLOOKUP(C283,Descriptions!$I$6:$K$92,3,FALSE),\"\")","v":""},null,null,null,null,null,null,null,null,null,null,null,null,null,null,"General Fund",null,{"$f":"IFERROR(VLOOKUP(C283,Descriptions!I:M,5,FALSE),\"N\")","v":"N"},true,"NTRUE",0,{"$f":"IFERROR(VLOOKUP(D283,'Bank and Fund Details'!$B$14:$L$35,11,FALSE),\"N\")","v":"Y"},"NY"]
[null,null,null,"General Fund",null,null,null,null,null,{"$f":"VLOOKUP(D284,'Bank and Fund Details'!$B$15:$D$36,3,FALSE)","v":0},{"$f":"VLOOKUP(D284,'Bank and Fund Details'!$B$15:$C$36,2,FALSE)","v":"Unrestricted"},{"$f":"IFERROR(VLOOKUP(C284,Descriptions!$I$6:$K$92,3,FALSE),\"\")","v":""},null,null,null,null,null,null,null,null,null,null,null,null,null,null,"General Fund",null,{"$f":"IFERROR(VLOOKUP(C284,Descriptions!I:M,5,FALSE),\"N\")","v":"N"},true,"NTRUE",0,{"$f":"IFERROR(VLOOKUP(D284,'Bank and Fund Details'!$B$14:$L$35,11,FALSE),\"N\")","v":"Y"},"NY"]
[null,null,null,"General Fund",null,null,null,null,null,{"$f":"VLOOKUP(D285,'Bank and Fund Details'!$B$15:$D$36,3,FALSE)","v":0},{"$f":"VLOOKUP(D285,'Bank and Fund Details'!$B$15:$C$36,2,FALSE)","v":"Unrestricted"},{"$f":"IFERROR(VLOOKUP(C285,Descriptions!$I$6:$K$92,3,FALSE),\"\")","v":""},null,null,null,null,null,null,null,null,null,null,null,null,null,null,"General Fund",null,{"$f":"IFERROR(VLOOKUP(C285,Descriptions!I:M,5,FALSE),\"N\")","v":"N"},true,"NTRUE",0,{"$f":"IFERROR(VLOOKUP(D285,'Bank and Fund Details'!$B$14:$L$35,11,FALSE),\"N\")","v":"Y"},"NY"]
[null,null,null,"General Fund",null,null,null,null,null,{"$f":"VLOOKUP(D286,'Bank and Fund Details'!$B$15:$D$36,3,FALSE)","v":0},{"$f":"VLOOKUP(D286,'Bank and Fund Details'!$B$15:$C$36,2,FALSE)","v":"Unrestricted"},{"$f":"IFERROR(VLOOKUP(C286,Descriptions!$I$6:$K$92,3,FALSE),\"\")","v":""},null,null,null,null,null,null,null,null,null,null,null,null,null,null,"General Fund",null,{"$f":"IFERROR(VLOOKUP(C286,Descriptions!I:M,5,FALSE),\"N\")","v":"N"},true,"NTRUE",0,{"$f":"IFERROR(VLOOKUP(D286,'Bank and Fund Details'!$B$14:$L$35,11,FALSE),\"N\")","v":"Y"},"NY"]
[null,null,null,"General Fund",null,null,null,null,null,{"$f":"VLOOKUP(D287,'Bank and Fund Details'!$B$15:$D$36,3,FALSE)","v":0},{"$f":"VLOOKUP(D287,'Bank and Fund Details'!$B$15:$C$36,2,FALSE)","v":"Unrestricted"},{"$f":"IFERROR(VLOOKUP(C287,Descriptions!$I$6:$K$92,3,FALSE),\"\")","v":""},null,null,null,null,null,null,null,null,null,null,null,null,null,null,"General Fund",null,{"$f":"IFERROR(VLOOKUP(C287,Descriptions!I:M,5,FALSE),\"N\")","v":"N"},true,"NTRUE",0,{"$f":"IFERROR(VLOOKUP(D287,'Bank and Fund Details'!$B$14:$L$35,11,FALSE),\"N\")","v":"Y"},"NY"]
[null,null,null,"General Fund",null,null,null,null,null,{"$f":"VLOOKUP(D288,'Bank and Fund Details'!$B$15:$D$36,3,FALSE)","v":0},{"$f":"VLOOKUP(D288,'Bank and Fund Details'!$B$15:$C$36,2,FALSE)","v":"Unrestricted"},{"$f":"IFERROR(VLOOKUP(C288,Descriptions!$I$6:$K$92,3,FALSE),\"\")","v":""},null,null,null,null,null,null,null,null,null,null,null,null,null,null,"General Fund",null,{"$f":"IFERROR(VLOOKUP(C288,Descriptions!I:M,5,FALSE),\"N\")","v":"N"},true,"NTRUE",0,{"$f":"IFERROR(VLOOKUP(D288,'Bank and Fund Details'!$B$14:$L$35,11,FALSE),\"N\")","v":"Y"},"NY"]
[null,null,null,"General Fund",null,null,null,null,null,{"$f":"VLOOKUP(D289,'Bank and Fund Details'!$B$15:$D$36,3,FALSE)","v":0},{"$f":"VLOOKUP(D289,'Bank and Fund Details'!$B$15:$C$36,2,FALSE)","v":"Unrestricted"},{"$f":"IFERROR(VLOOKUP(C289,Descriptions!$I$6:$K$92,3,FALSE),\"\")","v":""},null,null,null,null,null,null,null,null,null,null,null,null,null,null,"General Fund",null,{"$f":"IFERROR(VLOOKUP(C289,Descriptions!I:M,5,FALSE),\"N\")","v":"N"},true,"NTRUE",0,{"$f":"IFERROR(VLOOKUP(D289,'Bank and Fund Details'!$B$14:$L$35,11,FALSE),\"N\")","v":"Y"},"NY"]
[null,null,null,"General Fund",null,null,null,null,null,{"$f":"VLOOKUP(D290,'Bank and Fund Details'!$B$15:$D$36,3,FALSE)","v":0},{"$f":"VLOOKUP(D290,'Bank and Fund Details'!$B$15:$C$36,2,FALSE)","v":"Unrestricted"},{"$f":"IFERROR(VLOOKUP(C290,Descriptions!$I$6:$K$92,3,FALSE),\"\")","v":""},null,null,null,null,null,null,null,null,null,null,null,null,null,null,"General Fund",null,{"$f":"IFERROR(VLOOKUP(C290,Descriptions!I:M,5,FALSE),\"N\")","v":"N"},true,"NTRUE",0,{"$f":"IFERROR(VLOOKUP(D290,'Bank and Fund Details'!$B$14:$L$35,11,FALSE),\"N\")","v":"Y"},"NY"]
[null,null,null,"General Fund",null,null,null,null,null,{"$f":"VLOOKUP(D291,'Bank and Fund Details'!$B$15:$D$36,3,FALSE)","v":0},{"$f":"VLOOKUP(D291,'Bank and Fund Details'!$B$15:$C$36,2,FALSE)","v":"Unrestricted"},{"$f":"IFERROR(VLOOKUP(C291,Descriptions!$I$6:$K$92,3,FALSE),\"\")","v":""},null,null,null,null,null,null,null,null,null,null,null,null,null,null,"General Fund",null,{"$f":"IFERROR(VLOOKUP(C291,Descriptions!I:M,5,FALSE),\"N\")","v":"N"},true,"NTRUE",0,{"$f":"IFERROR(VLOOKUP(D291,'Bank and Fund Details'!$B$14:$L$35,11,FALSE),\"N\")","v":"Y"},"NY"]
[null,null,null,"General Fund",null,null,null,null,null,{"$f":"VLOOKUP(D292,'Bank and Fund Details'!$B$15:$D$36,3,FALSE)","v":0},{"$f":"VLOOKUP(D292,'Bank and Fund Details'!$B$15:$C$36,2,FALSE)","v":"Unrestricted"},{"$f":"IFERROR(VLOOKUP(C292,Descriptions!$I$6:$K$92,3,FALSE),\"\")","v":""},null,null,null,null,null,null,null,null,null,null,null,null,null,null,"General Fund",null,{"$f":"IFERROR(VLOOKUP(C292,Descriptions!I:M,5,FALSE),\"N\")","v":"N"},true,"NTRUE",0,{"$f":"IFERROR(VLOOKUP(D292,'Bank and Fund Details'!$B$14:$L$35,11,FALSE),\"N\")","v":"Y"},"NY"]
[null,null,null,"General Fund",null,null,null,null,null,{"$f":"VLOOKUP(D293,'Bank and Fund Details'!$B$15:$D$36,3,FALSE)","v":0},{"$f":"VLOOKUP(D293,'Bank and Fund Details'!$B$15:$C$36,2,FALSE)","v":"Unrestricted"},{"$f":"IFERROR(VLOOKUP(C293,Descriptions!$I$6:$K$92,3,FALSE),\"\")","v":""},null,null,null,null,null,null,null,null,null,null,null,null,null,null,"General Fund",null,{"$f":"IFERROR(VLOOKUP(C293,Descriptions!I:M,5,FALSE),\"N\")","v":"N"},true,"NTRUE",0,{"$f":"IFERROR(VLOOKUP(D293,'Bank and Fund Details'!$B$14:$L$35,11,FALSE),\"N\")","v":"Y"},"NY"]
[null,null,null,"General Fund",null,null,null,null,null,{"$f":"VLOOKUP(D294,'Bank and Fund Details'!$B$15:$D$36,3,FALSE)","v":0},{"$f":"VLOOKUP(D294,'Bank and Fund Details'!$B$15:$C$36,2,FALSE)","v":"Unrestricted"},{"$f":"IFERROR(VLOOKUP(C294,Descriptions!$I$6:$K$92,3,FALSE),\"\")","v":""},null,null,null,null,null,null,null,null,null,null,null,null,null,null,"General Fund",null,{"$f":"IFERROR(VLOOKUP(C294,Descriptions!I:M,5,FALSE),\"N\")","v":"N"},true,"NTRUE",0,{"$f":"IFERROR(VLOOKUP(D294,'Bank and Fund Details'!$B$14:$L$35,11,FALSE),\"N\")","v":"Y"},"NY"]
[null,null,null,"General Fund",null,null,null,null,null,{"$f":"VLOOKUP(D295,'Bank and Fund Details'!$B$15:$D$36,3,FALSE)","v":0},{"$f":"VLOOKUP(D295,'Bank and Fund Details'!$B$15:$C$36,2,FALSE)","v":"Unrestricted"},{"$f":"IFERROR(VLOOKUP(C295,Descriptions!$I$6:$K$92,3,FALSE),\"\")","v":""},null,null,null,null,null,null,null,null,null,null,null,null,null,null,"General Fund",null,{"$f":"IFERROR(VLOOKUP(C295,Descriptions!I:M,5,FALSE),\"N\")","v":"N"},true,"NTRUE",0,{"$f":"IFERROR(VLOOKUP(D295,'Bank and Fund Details'!$B$14:$L$35,11,FALSE),\"N\")","v":"Y"},"NY"]
[null,null,null,"General Fund",null,null,null,null,null,{"$f":"VLOOKUP(D296,'Bank and Fund Details'!$B$15:$D$36,3,FALSE)","v":0},{"$f":"VLOOKUP(D296,'Bank and Fund Details'!$B$15:$C$36,2,FALSE)","v":"Unrestricted"},{"$f":"IFERROR(VLOOKUP(C296,Descriptions!$I$6:$K$92,3,FALSE),\"\")","v":""},null,null,null,null,null,null,null,null,null,null,null,null,null,null,"General Fund",null,{"$f":"IFERROR(VLOOKUP(C296,Descriptions!I:M,5,FALSE),\"N\")","v":"N"},true,"NTRUE",0,{"$f":"IFERROR(VLOOKUP(D296,'Bank and Fund Details'!$B$14:$L$35,11,FALSE),\"N\")","v":"Y"},"NY"]
[null,null,null,"General Fund",null,null,null,null,null,{"$f":"VLOOKUP(D297,'Bank and Fund Details'!$B$15:$D$36,3,FALSE)","v":0},{"$f":"VLOOKUP(D297,'Bank and Fund Details'!$B$15:$C$36,2,FALSE)","v":"Unrestricted"},{"$f":"IFERROR(VLOOKUP(C297,Descriptions!$I$6:$K$92,3,FALSE),\"\")","v":""},null,null,null,null,null,null,null,null,null,null,null,null,null,null,"General Fund",null,{"$f":"IFERROR(VLOOKUP(C297,Descriptions!I:M,5,FALSE),\"N\")","v":"N"},true,"NTRUE",0,{"$f":"IFERROR(VLOOKUP(D297,'Bank and Fund Details'!$B$14:$L$35,11,FALSE),\"N\")","v":"Y"},"NY"]
[null,null,null,"General Fund",null,null,null,null,null,{"$f":"VLOOKUP(D298,'Bank and Fund Details'!$B$15:$D$36,3,FALSE)","v":0},{"$f":"VLOOKUP(D298,'Bank and Fund Details'!$B$15:$C$36,2,FALSE)","v":"Unrestricted"},{"$f":"IFERROR(VLOOKUP(C298,Descriptions!$I$6:$K$92,3,FALSE),\"\")","v":""},null,null,null,null,null,null,null,null,null,null,null,null,null,null,"General Fund",null,{"$f":"IFERROR(VLOOKUP(C298,Descriptions!I:M,5,FALSE),\"N\")","v":"N"},true,"NTRUE",0,{"$f":"IFERROR(VLOOKUP(D298,'Bank and Fund Details'!$B$14:$L$35,11,FALSE),\"N\")","v":"Y"},"NY"]
[null,null,null,"General Fund",null,null,null,null,null,{"$f":"VLOOKUP(D299,'Bank and Fund Details'!$B$15:$D$36,3,FALSE)","v":0},{"$f":"VLOOKUP(D299,'Bank and Fund Details'!$B$15:$C$36,2,FALSE)","v":"Unrestricted"},{"$f":"IFERROR(VLOOKUP(C299,Descriptions!$I$6:$K$92,3,FALSE),\"\")","v":""},null,null,null,null,null,null,null,null,null,null,null,null,null,null,"General Fund",null,{"$f":"IFERROR(VLOOKUP(C299,Descriptions!I:M,5,FALSE),\"N\")","v":"N"},true,"NTRUE",0,{"$f":"IFERROR(VLOOKUP(D299,'Bank and Fund Details'!$B$14:$L$35,11,FALSE),\"N\")","v":"Y"},"NY"]
[null,null,null,"General Fund",null,null,null,null,null,{"$f":"VLOOKUP(D300,'Bank and Fund Details'!$B$15:$D$36,3,FALSE)","v":0},{"$f":"VLOOKUP(D300,'Bank and Fund Details'!$B$15:$C$36,2,FALSE)","v":"Unrestricted"},{"$f":"IFERROR(VLOOKUP(C300,Descriptions!$I$6:$K$92,3,FALSE),\"\")","v":""},null,null,null,null,null,null,null,null,null,null,null,null,null,null,"General Fund",null,{"$f":"IFERROR(VLOOKUP(C300,Descriptions!I:M,5,FALSE),\"N\")","v":"N"},true,"NTRUE",0,{"$f":"IFERROR(VLOOKUP(D300,'Bank and Fund Details'!$B$14:$L$35,11,FALSE),\"N\")","v":"Y"},"NY"]
[null,null,null,"General Fund",null,null,null,null,null,{"$f":"VLOOKUP(D301,'Bank and Fund Details'!$B$15:$D$36,3,FALSE)","v":0},{"$f":"VLOOKUP(D301,'Bank and Fund Details'!$B$15:$C$36,2,FALSE)","v":"Unrestricted"},{"$f":"IFERROR(VLOOKUP(C301,Descriptions!$I$6:$K$92,3,FALSE),\"\")","v":""},null,null,null,null,null,null,null,null,null,null,null,null,null,null,"General Fund",null,{"$f":"IFERROR(VLOOKUP(C301,Descriptions!I:M,5,FALSE),\"N\")","v":"N"},true,"NTRUE",0,{"$f":"IFERROR(VLOOKUP(D301,'Bank and Fund Details'!$B$14:$L$35,11,FALSE),\"N\")","v":"Y"},"NY"]
[null,null,null,"General Fund",null,null,null,null,null,{"$f":"VLOOKUP(D302,'Bank and Fund Details'!$B$15:$D$36,3,FALSE)","v":0},{"$f":"VLOOKUP(D302,'Bank and Fund Details'!$B$15:$C$36,2,FALSE)","v":"Unrestricted"},{"$f":"IFERROR(VLOOKUP(C302,Descriptions!$I$6:$K$92,3,FALSE),\"\")","v":""},null,null,null,null,null,null,null,null,null,null,null,null,null,null,"General Fund",null,{"$f":"IFERROR(VLOOKUP(C302,Descriptions!I:M,5,FALSE),\"N\")","v":"N"},true,"NTRUE",0,{"$f":"IFERROR(VLOOKUP(D302,'Bank and Fund Details'!$B$14:$L$35,11,FALSE),\"N\")","v":"Y"},"NY"]
[null,null,null,"General Fund",null,null,null,null,null,{"$f":"VLOOKUP(D303,'Bank and Fund Details'!$B$15:$D$36,3,FALSE)","v":0},{"$f":"VLOOKUP(D303,'Bank and Fund Details'!$B$15:$C$36,2,FALSE)","v":"Unrestricted"},{"$f":"IFERROR(VLOOKUP(C303,Descriptions!$I$6:$K$92,3,FALSE),\"\")","v":""},null,null,null,null,null,null,null,null,null,null,null,null,null,null,"General Fund",null,{"$f":"IFERROR(VLOOKUP(C303,Descriptions!I:M,5,FALSE),\"N\")","v":"N"},true,"NTRUE",0,{"$f":"IFERROR(VLOOKUP(D303,'Bank and Fund Details'!$B$14:$L$35,11,FALSE),\"N\")","v":"Y"},"NY"]
[null,null,null,"General Fund",null,null,null,null,null,{"$f":"VLOOKUP(D304,'Bank and Fund Details'!$B$15:$D$36,3,FALSE)","v":0},{"$f":"VLOOKUP(D304,'Bank and Fund Details'!$B$15:$C$36,2,FALSE)","v":"Unrestricted"},{"$f":"IFERROR(VLOOKUP(C304,Descriptions!$I$6:$K$92,3,FALSE),\"\")","v":""},null,null,null,null,null,null,null,null,null,null,null,null,null,null,"General Fund",null,{"$f":"IFERROR(VLOOKUP(C304,Descriptions!I:M,5,FALSE),\"N\")","v":"N"},true,"NTRUE",0,{"$f":"IFERROR(VLOOKUP(D304,'Bank and Fund Details'!$B$14:$L$35,11,FALSE),\"N\")","v":"Y"},"NY"]
[null,null,null,"General Fund",null,null,null,null,null,{"$f":"VLOOKUP(D305,'Bank and Fund Details'!$B$15:$D$36,3,FALSE)","v":0},{"$f":"VLOOKUP(D305,'Bank and Fund Details'!$B$15:$C$36,2,FALSE)","v":"Unrestricted"},{"$f":"IFERROR(VLOOKUP(C305,Descriptions!$I$6:$K$92,3,FALSE),\"\")","v":""},null,null,null,null,null,null,null,null,null,null,null,null,null,null,"General Fund",null,{"$f":"IFERROR(VLOOKUP(C305,Descriptions!I:M,5,FALSE),\"N\")","v":"N"},true,"NTRUE",0,{"$f":"IFERROR(VLOOKUP(D305,'Bank and Fund Details'!$B$14:$L$35,11,FALSE),\"N\")","v":"Y"},"NY"]
[null,null,null,"General Fund",null,null,null,null,null,{"$f":"VLOOKUP(D306,'Bank and Fund Details'!$B$15:$D$36,3,FALSE)","v":0},{"$f":"VLOOKUP(D306,'Bank and Fund Details'!$B$15:$C$36,2,FALSE)","v":"Unrestricted"},{"$f":"IFERROR(VLOOKUP(C306,Descriptions!$I$6:$K$92,3,FALSE),\"\")","v":""},null,null,null,null,null,null,null,null,null,null,null,null,null,null,"General Fund",null,{"$f":"IFERROR(VLOOKUP(C306,Descriptions!I:M,5,FALSE),\"N\")","v":"N"},true,"NTRUE",0,{"$f":"IFERROR(VLOOKUP(D306,'Bank and Fund Details'!$B$14:$L$35,11,FALSE),\"N\")","v":"Y"},"NY"]
[null,null,null,"General Fund",null,null,null,null,null,{"$f":"VLOOKUP(D307,'Bank and Fund Details'!$B$15:$D$36,3,FALSE)","v":0},{"$f":"VLOOKUP(D307,'Bank and Fund Details'!$B$15:$C$36,2,FALSE)","v":"Unrestricted"},{"$f":"IFERROR(VLOOKUP(C307,Descriptions!$I$6:$K$92,3,FALSE),\"\")","v":""},null,null,null,null,null,null,null,null,null,null,null,null,null,null,"General Fund",null,{"$f":"IFERROR(VLOOKUP(C307,Descriptions!I:M,5,FALSE),\"N\")","v":"N"},true,"NTRUE",0,{"$f":"IFERROR(VLOOKUP(D307,'Bank and Fund Details'!$B$14:$L$35,11,FALSE),\"N\")","v":"Y"},"NY"]
[null,null,null,"General Fund",null,null,null,null,null,{"$f":"VLOOKUP(D308,'Bank and Fund Details'!$B$15:$D$36,3,FALSE)","v":0},{"$f":"VLOOKUP(D308,'Bank and Fund Details'!$B$15:$C$36,2,FALSE)","v":"Unrestricted"},{"$f":"IFERROR(VLOOKUP(C308,Descriptions!$I$6:$K$92,3,FALSE),\"\")","v":""},null,null,null,null,null,null,null,null,null,null,null,null,null,null,"General Fund",null,{"$f":"IFERROR(VLOOKUP(C308,Descriptions!I:M,5,FALSE),\"N\")","v":"N"},true,"NTRUE",0,{"$f":"IFERROR(VLOOKUP(D308,'Bank and Fund Details'!$B$14:$L$35,11,FALSE),\"N\")","v":"Y"},"NY"]
[null,null,null,"General Fund",null,null,null,null,null,{"$f":"VLOOKUP(D309,'Bank and Fund Details'!$B$15:$D$36,3,FALSE)","v":0},{"$f":"VLOOKUP(D309,'Bank and Fund Details'!$B$15:$C$36,2,FALSE)","v":"Unrestricted"},{"$f":"IFERROR(VLOOKUP(C309,Descriptions!$I$6:$K$92,3,FALSE),\"\")","v":""},null,null,null,null,null,null,null,null,null,null,null,null,null,null,"General Fund",null,{"$f":"IFERROR(VLOOKUP(C309,Descriptions!I:M,5,FALSE),\"N\")","v":"N"},true,"NTRUE",0,{"$f":"IFERROR(VLOOKUP(D309,'Bank and Fund Details'!$B$14:$L$35,11,FALSE),\"N\")","v":"Y"},"NY"]
[null,null,null,"General Fund",null,null,null,null,null,{"$f":"VLOOKUP(D310,'Bank and Fund Details'!$B$15:$D$36,3,FALSE)","v":0},{"$f":"VLOOKUP(D310,'Bank and Fund Details'!$B$15:$C$36,2,FALSE)","v":"Unrestricted"},{"$f":"IFERROR(VLOOKUP(C310,Descriptions!$I$6:$K$92,3,FALSE),\"\")","v":""},null,null,null,null,null,null,null,null,null,null,null,null,null,null,"General Fund",null,{"$f":"IFERROR(VLOOKUP(C310,Descriptions!I:M,5,FALSE),\"N\")","v":"N"},true,"NTRUE",0,{"$f":"IFERROR(VLOOKUP(D310,'Bank and Fund Details'!$B$14:$L$35,11,FALSE),\"N\")","v":"Y"},"NY"]
[null,null,null,"General Fund",null,null,null,null,null,{"$f":"VLOOKUP(D311,'Bank and Fund Details'!$B$15:$D$36,3,FALSE)","v":0},{"$f":"VLOOKUP(D311,'Bank and Fund Details'!$B$15:$C$36,2,FALSE)","v":"Unrestricted"},{"$f":"IFERROR(VLOOKUP(C311,Descriptions!$I$6:$K$92,3,FALSE),\"\")","v":""},null,null,null,null,null,null,null,null,null,null,null,null,null,null,"General Fund",null,{"$f":"IFERROR(VLOOKUP(C311,Descriptions!I:M,5,FALSE),\"N\")","v":"N"},true,"NTRUE",0,{"$f":"IFERROR(VLOOKUP(D311,'Bank and Fund Details'!$B$14:$L$35,11,FALSE),\"N\")","v":"Y"},"NY"]
[null,null,null,"General Fund",null,null,null,null,null,{"$f":"VLOOKUP(D312,'Bank and Fund Details'!$B$15:$D$36,3,FALSE)","v":0},{"$f":"VLOOKUP(D312,'Bank and Fund Details'!$B$15:$C$36,2,FALSE)","v":"Unrestricted"},{"$f":"IFERROR(VLOOKUP(C312,Descriptions!$I$6:$K$92,3,FALSE),\"\")","v":""},null,null,null,null,null,null,null,null,null,null,null,null,null,null,"General Fund",null,{"$f":"IFERROR(VLOOKUP(C312,Descriptions!I:M,5,FALSE),\"N\")","v":"N"},true,"NTRUE",0,{"$f":"IFERROR(VLOOKUP(D312,'Bank and Fund Details'!$B$14:$L$35,11,FALSE),\"N\")","v":"Y"},"NY"]
[null,null,null,"General Fund",null,null,null,null,null,{"$f":"VLOOKUP(D313,'Bank and Fund Details'!$B$15:$D$36,3,FALSE)","v":0},{"$f":"VLOOKUP(D313,'Bank and Fund Details'!$B$15:$C$36,2,FALSE)","v":"Unrestricted"},{"$f":"IFERROR(VLOOKUP(C313,Descriptions!$I$6:$K$92,3,FALSE),\"\")","v":""},null,null,null,null,null,null,null,null,null,null,null,null,null,null,"General Fund",null,{"$f":"IFERROR(VLOOKUP(C313,Descriptions!I:M,5,FALSE),\"N\")","v":"N"},true,"NTRUE",0,{"$f":"IFERROR(VLOOKUP(D313,'Bank and Fund Details'!$B$14:$L$35,11,FALSE),\"N\")","v":"Y"},"NY"]
[null,null,null,"General Fund",null,null,null,null,null,{"$f":"VLOOKUP(D314,'Bank and Fund Details'!$B$15:$D$36,3,FALSE)","v":0},{"$f":"VLOOKUP(D314,'Bank and Fund Details'!$B$15:$C$36,2,FALSE)","v":"Unrestricted"},{"$f":"IFERROR(VLOOKUP(C314,Descriptions!$I$6:$K$92,3,FALSE),\"\")","v":""},null,null,null,null,null,null,null,null,null,null,null,null,null,null,"General Fund",null,{"$f":"IFERROR(VLOOKUP(C314,Descriptions!I:M,5,FALSE),\"N\")","v":"N"},true,"NTRUE",0,{"$f":"IFERROR(VLOOKUP(D314,'Bank and Fund Details'!$B$14:$L$35,11,FALSE),\"N\")","v":"Y"},"NY"]
[null,null,null,"General Fund",null,null,null,null,null,{"$f":"VLOOKUP(D315,'Bank and Fund Details'!$B$15:$D$36,3,FALSE)","v":0},{"$f":"VLOOKUP(D315,'Bank and Fund Details'!$B$15:$C$36,2,FALSE)","v":"Unrestricted"},{"$f":"IFERROR(VLOOKUP(C315,Descriptions!$I$6:$K$92,3,FALSE),\"\")","v":""},null,null,null,null,null,null,null,null,null,null,null,null,null,null,"General Fund",null,{"$f":"IFERROR(VLOOKUP(C315,Descriptions!I:M,5,FALSE),\"N\")","v":"N"},true,"NTRUE",0,{"$f":"IFERROR(VLOOKUP(D315,'Bank and Fund Details'!$B$14:$L$35,11,FALSE),\"N\")","v":"Y"},"NY"]
[null,null,null,"General Fund",null,null,null,null,null,{"$f":"VLOOKUP(D316,'Bank and Fund Details'!$B$15:$D$36,3,FALSE)","v":0},{"$f":"VLOOKUP(D316,'Bank and Fund Details'!$B$15:$C$36,2,FALSE)","v":"Unrestricted"},{"$f":"IFERROR(VLOOKUP(C316,Descriptions!$I$6:$K$92,3,FALSE),\"\")","v":""},null,null,null,null,null,null,null,null,null,null,null,null,null,null,"General Fund",null,{"$f":"IFERROR(VLOOKUP(C316,Descriptions!I:M,5,FALSE),\"N\")","v":"N"},true,"NTRUE",0,{"$f":"IFERROR(VLOOKUP(D316,'Bank and Fund Details'!$B$14:$L$35,11,FALSE),\"N\")","v":"Y"},"NY"]
[null,null,null,"General Fund",null,null,null,null,null,{"$f":"VLOOKUP(D317,'Bank and Fund Details'!$B$15:$D$36,3,FALSE)","v":0},{"$f":"VLOOKUP(D317,'Bank and Fund Details'!$B$15:$C$36,2,FALSE)","v":"Unrestricted"},{"$f":"IFERROR(VLOOKUP(C317,Descriptions!$I$6:$K$92,3,FALSE),\"\")","v":""},null,null,null,null,null,null,null,null,null,null,null,null,null,null,"General Fund",null,{"$f":"IFERROR(VLOOKUP(C317,Descriptions!I:M,5,FALSE),\"N\")","v":"N"},true,"NTRUE",0,{"$f":"IFERROR(VLOOKUP(D317,'Bank and Fund Details'!$B$14:$L$35,11,FALSE),\"N\")","v":"Y"},"NY"]
[null,null,null,"General Fund",null,null,null,null,null,{"$f":"VLOOKUP(D318,'Bank and Fund Details'!$B$15:$D$36,3,FALSE)","v":0},{"$f":"VLOOKUP(D318,'Bank and Fund Details'!$B$15:$C$36,2,FALSE)","v":"Unrestricted"},{"$f":"IFERROR(VLOOKUP(C318,Descriptions!$I$6:$K$92,3,FALSE),\"\")","v":""},null,null,null,null,null,null,null,null,null,null,null,null,null,null,"General Fund",null,{"$f":"IFERROR(VLOOKUP(C318,Descriptions!I:M,5,FALSE),\"N\")","v":"N"},true,"NTRUE",0,{"$f":"IFERROR(VLOOKUP(D318,'Bank and Fund Details'!$B$14:$L$35,11,FALSE),\"N\")","v":"Y"},"NY"]
[null,null,null,"General Fund",null,null,null,null,null,{"$f":"VLOOKUP(D319,'Bank and Fund Details'!$B$15:$D$36,3,FALSE)","v":0},{"$f":"VLOOKUP(D319,'Bank and Fund Details'!$B$15:$C$36,2,FALSE)","v":"Unrestricted"},{"$f":"IFERROR(VLOOKUP(C319,Descriptions!$I$6:$K$92,3,FALSE),\"\")","v":""},null,null,null,null,null,null,null,null,null,null,null,null,null,null,"General Fund",null,{"$f":"IFERROR(VLOOKUP(C319,Descriptions!I:M,5,FALSE),\"N\")","v":"N"},true,"NTRUE",0,{"$f":"IFERROR(VLOOKUP(D319,'Bank and Fund Details'!$B$14:$L$35,11,FALSE),\"N\")","v":"Y"},"NY"]
[null,null,null,"General Fund",null,null,null,null,null,{"$f":"VLOOKUP(D320,'Bank and Fund Details'!$B$15:$D$36,3,FALSE)","v":0},{"$f":"VLOOKUP(D320,'Bank and Fund Details'!$B$15:$C$36,2,FALSE)","v":"Unrestricted"},{"$f":"IFERROR(VLOOKUP(C320,Descriptions!$I$6:$K$92,3,FALSE),\"\")","v":""},null,null,null,null,null,null,null,null,null,null,null,null,null,null,"General Fund",null,{"$f":"IFERROR(VLOOKUP(C320,Descriptions!I:M,5,FALSE),\"N\")","v":"N"},true,"NTRUE",0,{"$f":"IFERROR(VLOOKUP(D320,'Bank and Fund Details'!$B$14:$L$35,11,FALSE),\"N\")","v":"Y"},"NY"]
[null,null,null,"General Fund",null,null,null,null,null,{"$f":"VLOOKUP(D321,'Bank and Fund Details'!$B$15:$D$36,3,FALSE)","v":0},{"$f":"VLOOKUP(D321,'Bank and Fund Details'!$B$15:$C$36,2,FALSE)","v":"Unrestricted"},{"$f":"IFERROR(VLOOKUP(C321,Descriptions!$I$6:$K$92,3,FALSE),\"\")","v":""},null,null,null,null,null,null,null,null,null,null,null,null,null,null,"General Fund",null,{"$f":"IFERROR(VLOOKUP(C321,Descriptions!I:M,5,FALSE),\"N\")","v":"N"},true,"NTRUE",0,{"$f":"IFERROR(VLOOKUP(D321,'Bank and Fund Details'!$B$14:$L$35,11,FALSE),\"N\")","v":"Y"},"NY"]
[null,null,null,"General Fund",null,null,null,null,null,{"$f":"VLOOKUP(D322,'Bank and Fund Details'!$B$15:$D$36,3,FALSE)","v":0},{"$f":"VLOOKUP(D322,'Bank and Fund Details'!$B$15:$C$36,2,FALSE)","v":"Unrestricted"},{"$f":"IFERROR(VLOOKUP(C322,Descriptions!$I$6:$K$92,3,FALSE),\"\")","v":""},null,null,null,null,null,null,null,null,null,null,null,null,null,null,"General Fund",null,{"$f":"IFERROR(VLOOKUP(C322,Descriptions!I:M,5,FALSE),\"N\")","v":"N"},true,"NTRUE",0,{"$f":"IFERROR(VLOOKUP(D322,'Bank and Fund Details'!$B$14:$L$35,11,FALSE),\"N\")","v":"Y"},"NY"]
[null,null,null,"General Fund",null,null,null,null,null,{"$f":"VLOOKUP(D323,'Bank and Fund Details'!$B$15:$D$36,3,FALSE)","v":0},{"$f":"VLOOKUP(D323,'Bank and Fund Details'!$B$15:$C$36,2,FALSE)","v":"Unrestricted"},{"$f":"IFERROR(VLOOKUP(C323,Descriptions!$I$6:$K$92,3,FALSE),\"\")","v":""},null,null,null,null,null,null,null,null,null,null,null,null,null,null,"General Fund",null,{"$f":"IFERROR(VLOOKUP(C323,Descriptions!I:M,5,FALSE),\"N\")","v":"N"},true,"NTRUE",0,{"$f":"IFERROR(VLOOKUP(D323,'Bank and Fund Details'!$B$14:$L$35,11,FALSE),\"N\")","v":"Y"},"NY"]
[null,null,null,"General Fund",null,null,null,null,null,{"$f":"VLOOKUP(D324,'Bank and Fund Details'!$B$15:$D$36,3,FALSE)","v":0},{"$f":"VLOOKUP(D324,'Bank and Fund Details'!$B$15:$C$36,2,FALSE)","v":"Unrestricted"},{"$f":"IFERROR(VLOOKUP(C324,Descriptions!$I$6:$K$92,3,FALSE),\"\")","v":""},null,null,null,null,null,null,null,null,null,null,null,null,null,null,"General Fund",null,{"$f":"IFERROR(VLOOKUP(C324,Descriptions!I:M,5,FALSE),\"N\")","v":"N"},true,"NTRUE",0,{"$f":"IFERROR(VLOOKUP(D324,'Bank and Fund Details'!$B$14:$L$35,11,FALSE),\"N\")","v":"Y"},"NY"]
[null,null,null,"General Fund",null,null,null,null,null,{"$f":"VLOOKUP(D325,'Bank and Fund Details'!$B$15:$D$36,3,FALSE)","v":0},{"$f":"VLOOKUP(D325,'Bank and Fund Details'!$B$15:$C$36,2,FALSE)","v":"Unrestricted"},{"$f":"IFERROR(VLOOKUP(C325,Descriptions!$I$6:$K$92,3,FALSE),\"\")","v":""},null,null,null,null,null,null,null,null,null,null,null,null,null,null,"General Fund",null,{"$f":"IFERROR(VLOOKUP(C325,Descriptions!I:M,5,FALSE),\"N\")","v":"N"},true,"NTRUE",0,{"$f":"IFERROR(VLOOKUP(D325,'Bank and Fund Details'!$B$14:$L$35,11,FALSE),\"N\")","v":"Y"},"NY"]
[null,null,null,"General Fund",null,null,null,null,null,{"$f":"VLOOKUP(D326,'Bank and Fund Details'!$B$15:$D$36,3,FALSE)","v":0},{"$f":"VLOOKUP(D326,'Bank and Fund Details'!$B$15:$C$36,2,FALSE)","v":"Unrestricted"},{"$f":"IFERROR(VLOOKUP(C326,Descriptions!$I$6:$K$92,3,FALSE),\"\")","v":""},null,null,null,null,null,null,null,null,null,null,null,null,null,null,{"$f":"CONCATENATE(C326,D326)","v":"General Fund"},null,{"$f":"IFERROR(VLOOKUP(C326,Descriptions!I:M,5,FALSE),\"N\")","v":"N"},{"$f":"ISBLANK(C326)","v":true},{"$f":"CONCATENATE(AC326,AD326)","v":"NTRUE"},{"$f":"IF(AE326=\"NFALSE\",1,0)","v":0},{"$f":"IFERROR(VLOOKUP(D326,'Bank and Fund Details'!$B$14:$L$35,11,FALSE),\"N\")","v":"Y"},{"$f":"CONCATENATE(AC326,AG326)","v":"NY"}]
[null,null,null,"General Fund",null,null,null,null,null,{"$f":"VLOOKUP(D327,'Bank and Fund Details'!$B$15:$D$36,3,FALSE)","v":0},{"$f":"VLOOKUP(D327,'Bank and Fund Details'!$B$15:$C$36,2,FALSE)","v":"Unrestricted"},{"$f":"IFERROR(VLOOKUP(C327,Descriptions!$I$6:$K$92,3,FALSE),\"\")","v":""},null,null,null,null,null,null,null,null,null,null,null,null,null,null,"General Fund",null,{"$f":"IFERROR(VLOOKUP(C327,Descriptions!I:M,5,FALSE),\"N\")","v":"N"},true,"NTRUE",0,{"$f":"IFERROR(VLOOKUP(D327,'Bank and Fund Details'!$B$14:$L$35,11,FALSE),\"N\")","v":"Y"},"NY"]
[null,null,null,"General Fund",null,null,null,null,null,{"$f":"VLOOKUP(D328,'Bank and Fund Details'!$B$15:$D$36,3,FALSE)","v":0},{"$f":"VLOOKUP(D328,'Bank and Fund Details'!$B$15:$C$36,2,FALSE)","v":"Unrestricted"},{"$f":"IFERROR(VLOOKUP(C328,Descriptions!$I$6:$K$92,3,FALSE),\"\")","v":""},null,null,null,null,null,null,null,null,null,null,null,null,null,null,"General Fund",null,{"$f":"IFERROR(VLOOKUP(C328,Descriptions!I:M,5,FALSE),\"N\")","v":"N"},true,"NTRUE",0,{"$f":"IFERROR(VLOOKUP(D328,'Bank and Fund Details'!$B$14:$L$35,11,FALSE),\"N\")","v":"Y"},"NY"]
[null,null,null,"General Fund",null,null,null,null,null,{"$f":"VLOOKUP(D329,'Bank and Fund Details'!$B$15:$D$36,3,FALSE)","v":0},{"$f":"VLOOKUP(D329,'Bank and Fund Details'!$B$15:$C$36,2,FALSE)","v":"Unrestricted"},{"$f":"IFERROR(VLOOKUP(C329,Descriptions!$I$6:$K$92,3,FALSE),\"\")","v":""},null,null,null,null,null,null,null,null,null,null,null,null,null,null,"General Fund",null,{"$f":"IFERROR(VLOOKUP(C329,Descriptions!I:M,5,FALSE),\"N\")","v":"N"},true,"NTRUE",0,{"$f":"IFERROR(VLOOKUP(D329,'Bank and Fund Details'!$B$14:$L$35,11,FALSE),\"N\")","v":"Y"},"NY"]
[null,null,null,"General Fund",null,null,null,null,null,{"$f":"VLOOKUP(D330,'Bank and Fund Details'!$B$15:$D$36,3,FALSE)","v":0},{"$f":"VLOOKUP(D330,'Bank and Fund Details'!$B$15:$C$36,2,FALSE)","v":"Unrestricted"},{"$f":"IFERROR(VLOOKUP(C330,Descriptions!$I$6:$K$92,3,FALSE),\"\")","v":""},null,null,null,null,null,null,null,null,null,null,null,null,null,null,"General Fund",null,{"$f":"IFERROR(VLOOKUP(C330,Descriptions!I:M,5,FALSE),\"N\")","v":"N"},true,"NTRUE",0,{"$f":"IFERROR(VLOOKUP(D330,'Bank and Fund Details'!$B$14:$L$35,11,FALSE),\"N\")","v":"Y"},"NY"]
[null,null,null,"General Fund",null,null,null,null,null,{"$f":"VLOOKUP(D331,'Bank and Fund Details'!$B$15:$D$36,3,FALSE)","v":0},{"$f":"VLOOKUP(D331,'Bank and Fund Details'!$B$15:$C$36,2,FALSE)","v":"Unrestricted"},{"$f":"IFERROR(VLOOKUP(C331,Descriptions!$I$6:$K$92,3,FALSE),\"\")","v":""},null,null,null,null,null,null,null,null,null,null,null,null,null,null,"General Fund",null,{"$f":"IFERROR(VLOOKUP(C331,Descriptions!I:M,5,FALSE),\"N\")","v":"N"},true,"NTRUE",0,{"$f":"IFERROR(VLOOKUP(D331,'Bank and Fund Details'!$B$14:$L$35,11,FALSE),\"N\")","v":"Y"},"NY"]
[null,null,null,"General Fund",null,null,null,null,null,{"$f":"VLOOKUP(D332,'Bank and Fund Details'!$B$15:$D$36,3,FALSE)","v":0},{"$f":"VLOOKUP(D332,'Bank and Fund Details'!$B$15:$C$36,2,FALSE)","v":"Unrestricted"},{"$f":"IFERROR(VLOOKUP(C332,Descriptions!$I$6:$K$92,3,FALSE),\"\")","v":""},null,null,null,null,null,null,null,null,null,null,null,null,null,null,"General Fund",null,{"$f":"IFERROR(VLOOKUP(C332,Descriptions!I:M,5,FALSE),\"N\")","v":"N"},true,"NTRUE",0,{"$f":"IFERROR(VLOOKUP(D332,'Bank and Fund Details'!$B$14:$L$35,11,FALSE),\"N\")","v":"Y"},"NY"]
[null,null,null,"General Fund",null,null,null,null,null,{"$f":"VLOOKUP(D333,'Bank and Fund Details'!$B$15:$D$36,3,FALSE)","v":0},{"$f":"VLOOKUP(D333,'Bank and Fund Details'!$B$15:$C$36,2,FALSE)","v":"Unrestricted"},{"$f":"IFERROR(VLOOKUP(C333,Descriptions!$I$6:$K$92,3,FALSE),\"\")","v":""},null,null,null,null,null,null,null,null,null,null,null,null,null,null,"General Fund",null,{"$f":"IFERROR(VLOOKUP(C333,Descriptions!I:M,5,FALSE),\"N\")","v":"N"},true,"NTRUE",0,{"$f":"IFERROR(VLOOKUP(D333,'Bank and Fund Details'!$B$14:$L$35,11,FALSE),\"N\")","v":"Y"},"NY"]
[null,null,null,"General Fund",null,null,null,null,null,{"$f":"VLOOKUP(D334,'Bank and Fund Details'!$B$15:$D$36,3,FALSE)","v":0},{"$f":"VLOOKUP(D334,'Bank and Fund Details'!$B$15:$C$36,2,FALSE)","v":"Unrestricted"},{"$f":"IFERROR(VLOOKUP(C334,Descriptions!$I$6:$K$92,3,FALSE),\"\")","v":""},null,null,null,null,null,null,null,null,null,null,null,null,null,null,"General Fund",null,{"$f":"IFERROR(VLOOKUP(C334,Descriptions!I:M,5,FALSE),\"N\")","v":"N"},true,"NTRUE",0,{"$f":"IFERROR(VLOOKUP(D334,'Bank and Fund Details'!$B$14:$L$35,11,FALSE),\"N\")","v":"Y"},"NY"]
[null,null,null,"General Fund",null,null,null,null,null,{"$f":"VLOOKUP(D335,'Bank and Fund Details'!$B$15:$D$36,3,FALSE)","v":0},{"$f":"VLOOKUP(D335,'Bank and Fund Details'!$B$15:$C$36,2,FALSE)","v":"Unrestricted"},{"$f":"IFERROR(VLOOKUP(C335,Descriptions!$I$6:$K$92,3,FALSE),\"\")","v":""},null,null,null,null,null,null,null,null,null,null,null,null,null,null,"General Fund",null,{"$f":"IFERROR(VLOOKUP(C335,Descriptions!I:M,5,FALSE),\"N\")","v":"N"},true,"NTRUE",0,{"$f":"IFERROR(VLOOKUP(D335,'Bank and Fund Details'!$B$14:$L$35,11,FALSE),\"N\")","v":"Y"},"NY"]
[null,null,null,"General Fund",null,null,null,null,null,{"$f":"VLOOKUP(D336,'Bank and Fund Details'!$B$15:$D$36,3,FALSE)","v":0},{"$f":"VLOOKUP(D336,'Bank and Fund Details'!$B$15:$C$36,2,FALSE)","v":"Unrestricted"},{"$f":"IFERROR(VLOOKUP(C336,Descriptions!$I$6:$K$92,3,FALSE),\"\")","v":""},null,null,null,null,null,null,null,null,null,null,null,null,null,null,"General Fund",null,{"$f":"IFERROR(VLOOKUP(C336,Descriptions!I:M,5,FALSE),\"N\")","v":"N"},true,"NTRUE",0,{"$f":"IFERROR(VLOOKUP(D336,'Bank and Fund Details'!$B$14:$L$35,11,FALSE),\"N\")","v":"Y"},"NY"]
[null,null,null,"General Fund",null,null,null,null,null,{"$f":"VLOOKUP(D337,'Bank and Fund Details'!$B$15:$D$36,3,FALSE)","v":0},{"$f":"VLOOKUP(D337,'Bank and Fund Details'!$B$15:$C$36,2,FALSE)","v":"Unrestricted"},{"$f":"IFERROR(VLOOKUP(C337,Descriptions!$I$6:$K$92,3,FALSE),\"\")","v":""},null,null,null,null,null,null,null,null,null,null,null,null,null,null,"General Fund",null,{"$f":"IFERROR(VLOOKUP(C337,Descriptions!I:M,5,FALSE),\"N\")","v":"N"},true,"NTRUE",0,{"$f":"IFERROR(VLOOKUP(D337,'Bank and Fund Details'!$B$14:$L$35,11,FALSE),\"N\")","v":"Y"},"NY"]
[null,null,null,"General Fund",null,null,null,null,null,{"$f":"VLOOKUP(D338,'Bank and Fund Details'!$B$15:$D$36,3,FALSE)","v":0},{"$f":"VLOOKUP(D338,'Bank and Fund Details'!$B$15:$C$36,2,FALSE)","v":"Unrestricted"},{"$f":"IFERROR(VLOOKUP(C338,Descriptions!$I$6:$K$92,3,FALSE),\"\")","v":""},null,null,null,null,null,null,null,null,null,null,null,null,null,null,"General Fund",null,{"$f":"IFERROR(VLOOKUP(C338,Descriptions!I:M,5,FALSE),\"N\")","v":"N"},true,"NTRUE",0,{"$f":"IFERROR(VLOOKUP(D338,'Bank and Fund Details'!$B$14:$L$35,11,FALSE),\"N\")","v":"Y"},"NY"]
[null,null,null,"General Fund",null,null,null,null,null,{"$f":"VLOOKUP(D339,'Bank and Fund Details'!$B$15:$D$36,3,FALSE)","v":0},{"$f":"VLOOKUP(D339,'Bank and Fund Details'!$B$15:$C$36,2,FALSE)","v":"Unrestricted"},{"$f":"IFERROR(VLOOKUP(C339,Descriptions!$I$6:$K$92,3,FALSE),\"\")","v":""},null,null,null,null,null,null,null,null,null,null,null,null,null,null,"General Fund",null,{"$f":"IFERROR(VLOOKUP(C339,Descriptions!I:M,5,FALSE),\"N\")","v":"N"},true,"NTRUE",0,{"$f":"IFERROR(VLOOKUP(D339,'Bank and Fund Details'!$B$14:$L$35,11,FALSE),\"N\")","v":"Y"},"NY"]
[null,null,null,"General Fund",null,null,null,null,null,{"$f":"VLOOKUP(D340,'Bank and Fund Details'!$B$15:$D$36,3,FALSE)","v":0},{"$f":"VLOOKUP(D340,'Bank and Fund Details'!$B$15:$C$36,2,FALSE)","v":"Unrestricted"},{"$f":"IFERROR(VLOOKUP(C340,Descriptions!$I$6:$K$92,3,FALSE),\"\")","v":""},null,null,null,null,null,null,null,null,null,null,null,null,null,null,"General Fund",null,{"$f":"IFERROR(VLOOKUP(C340,Descriptions!I:M,5,FALSE),\"N\")","v":"N"},true,"NTRUE",0,{"$f":"IFERROR(VLOOKUP(D340,'Bank and Fund Details'!$B$14:$L$35,11,FALSE),\"N\")","v":"Y"},"NY"]
[null,null,null,"General Fund",null,null,null,null,null,{"$f":"VLOOKUP(D341,'Bank and Fund Details'!$B$15:$D$36,3,FALSE)","v":0},{"$f":"VLOOKUP(D341,'Bank and Fund Details'!$B$15:$C$36,2,FALSE)","v":"Unrestricted"},{"$f":"IFERROR(VLOOKUP(C341,Descriptions!$I$6:$K$92,3,FALSE),\"\")","v":""},null,null,null,null,null,null,null,null,null,null,null,null,null,null,"General Fund",null,{"$f":"IFERROR(VLOOKUP(C341,Descriptions!I:M,5,FALSE),\"N\")","v":"N"},true,"NTRUE",0,{"$f":"IFERROR(VLOOKUP(D341,'Bank and Fund Details'!$B$14:$L$35,11,FALSE),\"N\")","v":"Y"},"NY"]
[null,null,null,"General Fund",null,null,null,null,null,{"$f":"VLOOKUP(D342,'Bank and Fund Details'!$B$15:$D$36,3,FALSE)","v":0},{"$f":"VLOOKUP(D342,'Bank and Fund Details'!$B$15:$C$36,2,FALSE)","v":"Unrestricted"},{"$f":"IFERROR(VLOOKUP(C342,Descriptions!$I$6:$K$92,3,FALSE),\"\")","v":""},null,null,null,null,null,null,null,null,null,null,null,null,null,null,"General Fund",null,{"$f":"IFERROR(VLOOKUP(C342,Descriptions!I:M,5,FALSE),\"N\")","v":"N"},true,"NTRUE",0,{"$f":"IFERROR(VLOOKUP(D342,'Bank and Fund Details'!$B$14:$L$35,11,FALSE),\"N\")","v":"Y"},"NY"]
[null,null,null,"General Fund",null,null,null,null,null,{"$f":"VLOOKUP(D343,'Bank and Fund Details'!$B$15:$D$36,3,FALSE)","v":0},{"$f":"VLOOKUP(D343,'Bank and Fund Details'!$B$15:$C$36,2,FALSE)","v":"Unrestricted"},{"$f":"IFERROR(VLOOKUP(C343,Descriptions!$I$6:$K$92,3,FALSE),\"\")","v":""},null,null,null,null,null,null,null,null,null,null,null,null,null,null,"General Fund",null,{"$f":"IFERROR(VLOOKUP(C343,Descriptions!I:M,5,FALSE),\"N\")","v":"N"},true,"NTRUE",0,{"$f":"IFERROR(VLOOKUP(D343,'Bank and Fund Details'!$B$14:$L$35,11,FALSE),\"N\")","v":"Y"},"NY"]
[null,null,null,"General Fund",null,null,null,null,null,{"$f":"VLOOKUP(D344,'Bank and Fund Details'!$B$15:$D$36,3,FALSE)","v":0},{"$f":"VLOOKUP(D344,'Bank and Fund Details'!$B$15:$C$36,2,FALSE)","v":"Unrestricted"},{"$f":"IFERROR(VLOOKUP(C344,Descriptions!$I$6:$K$92,3,FALSE),\"\")","v":""},null,null,null,null,null,null,null,null,null,null,null,null,null,null,"General Fund",null,{"$f":"IFERROR(VLOOKUP(C344,Descriptions!I:M,5,FALSE),\"N\")","v":"N"},true,"NTRUE",0,{"$f":"IFERROR(VLOOKUP(D344,'Bank and Fund Details'!$B$14:$L$35,11,FALSE),\"N\")","v":"Y"},"NY"]
[null,null,null,"General Fund",null,null,null,null,null,{"$f":"VLOOKUP(D345,'Bank and Fund Details'!$B$15:$D$36,3,FALSE)","v":0},{"$f":"VLOOKUP(D345,'Bank and Fund Details'!$B$15:$C$36,2,FALSE)","v":"Unrestricted"},{"$f":"IFERROR(VLOOKUP(C345,Descriptions!$I$6:$K$92,3,FALSE),\"\")","v":""},null,null,null,null,null,null,null,null,null,null,null,null,null,null,"General Fund",null,{"$f":"IFERROR(VLOOKUP(C345,Descriptions!I:M,5,FALSE),\"N\")","v":"N"},true,"NTRUE",0,{"$f":"IFERROR(VLOOKUP(D345,'Bank and Fund Details'!$B$14:$L$35,11,FALSE),\"N\")","v":"Y"},"NY"]
[null,null,null,"General Fund",null,null,null,null,null,{"$f":"VLOOKUP(D346,'Bank and Fund Details'!$B$15:$D$36,3,FALSE)","v":0},{"$f":"VLOOKUP(D346,'Bank and Fund Details'!$B$15:$C$36,2,FALSE)","v":"Unrestricted"},{"$f":"IFERROR(VLOOKUP(C346,Descriptions!$I$6:$K$92,3,FALSE),\"\")","v":""},null,null,null,null,null,null,null,null,null,null,null,null,null,null,"General Fund",null,{"$f":"IFERROR(VLOOKUP(C346,Descriptions!I:M,5,FALSE),\"N\")","v":"N"},true,"NTRUE",0,{"$f":"IFERROR(VLOOKUP(D346,'Bank and Fund Details'!$B$14:$L$35,11,FALSE),\"N\")","v":"Y"},"NY"]
[null,null,null,"General Fund",null,null,null,null,null,{"$f":"VLOOKUP(D347,'Bank and Fund Details'!$B$15:$D$36,3,FALSE)","v":0},{"$f":"VLOOKUP(D347,'Bank and Fund Details'!$B$15:$C$36,2,FALSE)","v":"Unrestricted"},{"$f":"IFERROR(VLOOKUP(C347,Descriptions!$I$6:$K$92,3,FALSE),\"\")","v":""},null,null,null,null,null,null,null,null,null,null,null,null,null,null,"General Fund",null,{"$f":"IFERROR(VLOOKUP(C347,Descriptions!I:M,5,FALSE),\"N\")","v":"N"},true,"NTRUE",0,{"$f":"IFERROR(VLOOKUP(D347,'Bank and Fund Details'!$B$14:$L$35,11,FALSE),\"N\")","v":"Y"},"NY"]
[null,null,null,"General Fund",null,null,null,null,null,{"$f":"VLOOKUP(D348,'Bank and Fund Details'!$B$15:$D$36,3,FALSE)","v":0},{"$f":"VLOOKUP(D348,'Bank and Fund Details'!$B$15:$C$36,2,FALSE)","v":"Unrestricted"},{"$f":"IFERROR(VLOOKUP(C348,Descriptions!$I$6:$K$92,3,FALSE),\"\")","v":""},null,null,null,null,null,null,null,null,null,null,null,null,null,null,"General Fund",null,{"$f":"IFERROR(VLOOKUP(C348,Descriptions!I:M,5,FALSE),\"N\")","v":"N"},true,"NTRUE",0,{"$f":"IFERROR(VLOOKUP(D348,'Bank and Fund Details'!$B$14:$L$35,11,FALSE),\"N\")","v":"Y"},"NY"]
[null,null,null,"General Fund",null,null,null,null,null,{"$f":"VLOOKUP(D349,'Bank and Fund Details'!$B$15:$D$36,3,FALSE)","v":0},{"$f":"VLOOKUP(D349,'Bank and Fund Details'!$B$15:$C$36,2,FALSE)","v":"Unrestricted"},{"$f":"IFERROR(VLOOKUP(C349,Descriptions!$I$6:$K$92,3,FALSE),\"\")","v":""},null,null,null,null,null,null,null,null,null,null,null,null,null,null,"General Fund",null,{"$f":"IFERROR(VLOOKUP(C349,Descriptions!I:M,5,FALSE),\"N\")","v":"N"},true,"NTRUE",0,{"$f":"IFERROR(VLOOKUP(D349,'Bank and Fund Details'!$B$14:$L$35,11,FALSE),\"N\")","v":"Y"},"NY"]
[null,null,null,"General Fund",null,null,null,null,null,{"$f":"VLOOKUP(D350,'Bank and Fund Details'!$B$15:$D$36,3,FALSE)","v":0},{"$f":"VLOOKUP(D350,'Bank and Fund Details'!$B$15:$C$36,2,FALSE)","v":"Unrestricted"},{"$f":"IFERROR(VLOOKUP(C350,Descriptions!$I$6:$K$92,3,FALSE),\"\")","v":""},null,null,null,null,null,null,null,null,null,null,null,null,null,null,"General Fund",null,{"$f":"IFERROR(VLOOKUP(C350,Descriptions!I:M,5,FALSE),\"N\")","v":"N"},true,"NTRUE",0,{"$f":"IFERROR(VLOOKUP(D350,'Bank and Fund Details'!$B$14:$L$35,11,FALSE),\"N\")","v":"Y"},"NY"]
[null,null,null,"General Fund",null,null,null,null,null,{"$f":"VLOOKUP(D351,'Bank and Fund Details'!$B$15:$D$36,3,FALSE)","v":0},{"$f":"VLOOKUP(D351,'Bank and Fund Details'!$B$15:$C$36,2,FALSE)","v":"Unrestricted"},{"$f":"IFERROR(VLOOKUP(C351,Descriptions!$I$6:$K$92,3,FALSE),\"\")","v":""},null,null,null,null,null,null,null,null,null,null,null,null,null,null,"General Fund",null,{"$f":"IFERROR(VLOOKUP(C351,Descriptions!I:M,5,FALSE),\"N\")","v":"N"},true,"NTRUE",0,{"$f":"IFERROR(VLOOKUP(D351,'Bank and Fund Details'!$B$14:$L$35,11,FALSE),\"N\")","v":"Y"},"NY"]
[null,null,null,"General Fund",null,null,null,null,null,{"$f":"VLOOKUP(D352,'Bank and Fund Details'!$B$15:$D$36,3,FALSE)","v":0},{"$f":"VLOOKUP(D352,'Bank and Fund Details'!$B$15:$C$36,2,FALSE)","v":"Unrestricted"},{"$f":"IFERROR(VLOOKUP(C352,Descriptions!$I$6:$K$92,3,FALSE),\"\")","v":""},null,null,null,null,null,null,null,null,null,null,null,null,null,null,"General Fund",null,{"$f":"IFERROR(VLOOKUP(C352,Descriptions!I:M,5,FALSE),\"N\")","v":"N"},true,"NTRUE",0,{"$f":"IFERROR(VLOOKUP(D352,'Bank and Fund Details'!$B$14:$L$35,11,FALSE),\"N\")","v":"Y"},"NY"]
[null,null,null,"General Fund",null,null,null,null,null,{"$f":"VLOOKUP(D353,'Bank and Fund Details'!$B$15:$D$36,3,FALSE)","v":0},{"$f":"VLOOKUP(D353,'Bank and Fund Details'!$B$15:$C$36,2,FALSE)","v":"Unrestricted"},{"$f":"IFERROR(VLOOKUP(C353,Descriptions!$I$6:$K$92,3,FALSE),\"\")","v":""},null,null,null,null,null,null,null,null,null,null,null,null,null,null,"General Fund",null,{"$f":"IFERROR(VLOOKUP(C353,Descriptions!I:M,5,FALSE),\"N\")","v":"N"},true,"NTRUE",0,{"$f":"IFERROR(VLOOKUP(D353,'Bank and Fund Details'!$B$14:$L$35,11,FALSE),\"N\")","v":"Y"},"NY"]
[null,null,null,"General Fund",null,null,null,null,null,{"$f":"VLOOKUP(D354,'Bank and Fund Details'!$B$15:$D$36,3,FALSE)","v":0},{"$f":"VLOOKUP(D354,'Bank and Fund Details'!$B$15:$C$36,2,FALSE)","v":"Unrestricted"},{"$f":"IFERROR(VLOOKUP(C354,Descriptions!$I$6:$K$92,3,FALSE),\"\")","v":""},null,null,null,null,null,null,null,null,null,null,null,null,null,null,"General Fund",null,{"$f":"IFERROR(VLOOKUP(C354,Descriptions!I:M,5,FALSE),\"N\")","v":"N"},true,"NTRUE",0,{"$f":"IFERROR(VLOOKUP(D354,'Bank and Fund Details'!$B$14:$L$35,11,FALSE),\"N\")","v":"Y"},"NY"]
[null,null,null,"General Fund",null,null,null,null,null,{"$f":"VLOOKUP(D355,'Bank and Fund Details'!$B$15:$D$36,3,FALSE)","v":0},{"$f":"VLOOKUP(D355,'Bank and Fund Details'!$B$15:$C$36,2,FALSE)","v":"Unrestricted"},{"$f":"IFERROR(VLOOKUP(C355,Descriptions!$I$6:$K$92,3,FALSE),\"\")","v":""},null,null,null,null,null,null,null,null,null,null,null,null,null,null,"General Fund",null,{"$f":"IFERROR(VLOOKUP(C355,Descriptions!I:M,5,FALSE),\"N\")","v":"N"},true,"NTRUE",0,{"$f":"IFERROR(VLOOKUP(D355,'Bank and Fund Details'!$B$14:$L$35,11,FALSE),\"N\")","v":"Y"},"NY"]
[null,null,null,"General Fund",null,null,null,null,null,{"$f":"VLOOKUP(D356,'Bank and Fund Details'!$B$15:$D$36,3,FALSE)","v":0},{"$f":"VLOOKUP(D356,'Bank and Fund Details'!$B$15:$C$36,2,FALSE)","v":"Unrestricted"},{"$f":"IFERROR(VLOOKUP(C356,Descriptions!$I$6:$K$92,3,FALSE),\"\")","v":""},null,null,null,null,null,null,null,null,null,null,null,null,null,null,"General Fund",null,{"$f":"IFERROR(VLOOKUP(C356,Descriptions!I:M,5,FALSE),\"N\")","v":"N"},true,"NTRUE",0,{"$f":"IFERROR(VLOOKUP(D356,'Bank and Fund Details'!$B$14:$L$35,11,FALSE),\"N\")","v":"Y"},"NY"]
[null,null,null,"General Fund",null,null,null,null,null,{"$f":"VLOOKUP(D357,'Bank and Fund Details'!$B$15:$D$36,3,FALSE)","v":0},{"$f":"VLOOKUP(D357,'Bank and Fund Details'!$B$15:$C$36,2,FALSE)","v":"Unrestricted"},{"$f":"IFERROR(VLOOKUP(C357,Descriptions!$I$6:$K$92,3,FALSE),\"\")","v":""},null,null,null,null,null,null,null,null,null,null,null,null,null,null,"General Fund",null,{"$f":"IFERROR(VLOOKUP(C357,Descriptions!I:M,5,FALSE),\"N\")","v":"N"},true,"NTRUE",0,{"$f":"IFERROR(VLOOKUP(D357,'Bank and Fund Details'!$B$14:$L$35,11,FALSE),\"N\")","v":"Y"},"NY"]
[null,null,null,"General Fund",null,null,null,null,null,{"$f":"VLOOKUP(D358,'Bank and Fund Details'!$B$15:$D$36,3,FALSE)","v":0},{"$f":"VLOOKUP(D358,'Bank and Fund Details'!$B$15:$C$36,2,FALSE)","v":"Unrestricted"},{"$f":"IFERROR(VLOOKUP(C358,Descriptions!$I$6:$K$92,3,FALSE),\"\")","v":""},null,null,null,null,null,null,null,null,null,null,null,null,null,null,"General Fund",null,{"$f":"IFERROR(VLOOKUP(C358,Descriptions!I:M,5,FALSE),\"N\")","v":"N"},true,"NTRUE",0,{"$f":"IFERROR(VLOOKUP(D358,'Bank and Fund Details'!$B$14:$L$35,11,FALSE),\"N\")","v":"Y"},"NY"]
[null,null,null,"General Fund",null,null,null,null,null,{"$f":"VLOOKUP(D359,'Bank and Fund Details'!$B$15:$D$36,3,FALSE)","v":0},{"$f":"VLOOKUP(D359,'Bank and Fund Details'!$B$15:$C$36,2,FALSE)","v":"Unrestricted"},{"$f":"IFERROR(VLOOKUP(C359,Descriptions!$I$6:$K$92,3,FALSE),\"\")","v":""},null,null,null,null,null,null,null,null,null,null,null,null,null,null,"General Fund",null,{"$f":"IFERROR(VLOOKUP(C359,Descriptions!I:M,5,FALSE),\"N\")","v":"N"},true,"NTRUE",0,{"$f":"IFERROR(VLOOKUP(D359,'Bank and Fund Details'!$B$14:$L$35,11,FALSE),\"N\")","v":"Y"},"NY"]
[null,null,null,"General Fund",null,null,null,null,null,{"$f":"VLOOKUP(D360,'Bank and Fund Details'!$B$15:$D$36,3,FALSE)","v":0},{"$f":"VLOOKUP(D360,'Bank and Fund Details'!$B$15:$C$36,2,FALSE)","v":"Unrestricted"},{"$f":"IFERROR(VLOOKUP(C360,Descriptions!$I$6:$K$92,3,FALSE),\"\")","v":""},null,null,null,null,null,null,null,null,null,null,null,null,null,null,"General Fund",null,{"$f":"IFERROR(VLOOKUP(C360,Descriptions!I:M,5,FALSE),\"N\")","v":"N"},true,"NTRUE",0,{"$f":"IFERROR(VLOOKUP(D360,'Bank and Fund Details'!$B$14:$L$35,11,FALSE),\"N\")","v":"Y"},"NY"]
[null,null,null,"General Fund",null,null,null,null,null,{"$f":"VLOOKUP(D361,'Bank and Fund Details'!$B$15:$D$36,3,FALSE)","v":0},{"$f":"VLOOKUP(D361,'Bank and Fund Details'!$B$15:$C$36,2,FALSE)","v":"Unrestricted"},{"$f":"IFERROR(VLOOKUP(C361,Descriptions!$I$6:$K$92,3,FALSE),\"\")","v":""},null,null,null,null,null,null,null,null,null,null,null,null,null,null,"General Fund",null,{"$f":"IFERROR(VLOOKUP(C361,Descriptions!I:M,5,FALSE),\"N\")","v":"N"},true,"NTRUE",0,{"$f":"IFERROR(VLOOKUP(D361,'Bank and Fund Details'!$B$14:$L$35,11,FALSE),\"N\")","v":"Y"},"NY"]
[null,null,null,"General Fund",null,null,null,null,null,{"$f":"VLOOKUP(D362,'Bank and Fund Details'!$B$15:$D$36,3,FALSE)","v":0},{"$f":"VLOOKUP(D362,'Bank and Fund Details'!$B$15:$C$36,2,FALSE)","v":"Unrestricted"},{"$f":"IFERROR(VLOOKUP(C362,Descriptions!$I$6:$K$92,3,FALSE),\"\")","v":""},null,null,null,null,null,null,null,null,null,null,null,null,null,null,"General Fund",null,{"$f":"IFERROR(VLOOKUP(C362,Descriptions!I:M,5,FALSE),\"N\")","v":"N"},true,"NTRUE",0,{"$f":"IFERROR(VLOOKUP(D362,'Bank and Fund Details'!$B$14:$L$35,11,FALSE),\"N\")","v":"Y"},"NY"]
[null,null,null,"General Fund",null,null,null,null,null,{"$f":"VLOOKUP(D363,'Bank and Fund Details'!$B$15:$D$36,3,FALSE)","v":0},{"$f":"VLOOKUP(D363,'Bank and Fund Details'!$B$15:$C$36,2,FALSE)","v":"Unrestricted"},{"$f":"IFERROR(VLOOKUP(C363,Descriptions!$I$6:$K$92,3,FALSE),\"\")","v":""},null,null,null,null,null,null,null,null,null,null,null,null,null,null,"General Fund",null,{"$f":"IFERROR(VLOOKUP(C363,Descriptions!I:M,5,FALSE),\"N\")","v":"N"},true,"NTRUE",0,{"$f":"IFERROR(VLOOKUP(D363,'Bank and Fund Details'!$B$14:$L$35,11,FALSE),\"N\")","v":"Y"},"NY"]
[null,null,null,"General Fund",null,null,null,null,null,{"$f":"VLOOKUP(D364,'Bank and Fund Details'!$B$15:$D$36,3,FALSE)","v":0},{"$f":"VLOOKUP(D364,'Bank and Fund Details'!$B$15:$C$36,2,FALSE)","v":"Unrestricted"},{"$f":"IFERROR(VLOOKUP(C364,Descriptions!$I$6:$K$92,3,FALSE),\"\")","v":""},null,null,null,null,null,null,null,null,null,null,null,null,null,null,"General Fund",null,{"$f":"IFERROR(VLOOKUP(C364,Descriptions!I:M,5,FALSE),\"N\")","v":"N"},true,"NTRUE",0,{"$f":"IFERROR(VLOOKUP(D364,'Bank and Fund Details'!$B$14:$L$35,11,FALSE),\"N\")","v":"Y"},"NY"]
[null,null,null,"General Fund",null,null,null,null,null,{"$f":"VLOOKUP(D365,'Bank and Fund Details'!$B$15:$D$36,3,FALSE)","v":0},{"$f":"VLOOKUP(D365,'Bank and Fund Details'!$B$15:$C$36,2,FALSE)","v":"Unrestricted"},{"$f":"IFERROR(VLOOKUP(C365,Descriptions!$I$6:$K$92,3,FALSE),\"\")","v":""},null,null,null,null,null,null,null,null,null,null,null,null,null,null,"General Fund",null,{"$f":"IFERROR(VLOOKUP(C365,Descriptions!I:M,5,FALSE),\"N\")","v":"N"},true,"NTRUE",0,{"$f":"IFERROR(VLOOKUP(D365,'Bank and Fund Details'!$B$14:$L$35,11,FALSE),\"N\")","v":"Y"},"NY"]
[null,null,null,"General Fund",null,null,null,null,null,{"$f":"VLOOKUP(D366,'Bank and Fund Details'!$B$15:$D$36,3,FALSE)","v":0},{"$f":"VLOOKUP(D366,'Bank and Fund Details'!$B$15:$C$36,2,FALSE)","v":"Unrestricted"},{"$f":"IFERROR(VLOOKUP(C366,Descriptions!$I$6:$K$92,3,FALSE),\"\")","v":""},null,null,null,null,null,null,null,null,null,null,null,null,null,null,"General Fund",null,{"$f":"IFERROR(VLOOKUP(C366,Descriptions!I:M,5,FALSE),\"N\")","v":"N"},true,"NTRUE",0,{"$f":"IFERROR(VLOOKUP(D366,'Bank and Fund Details'!$B$14:$L$35,11,FALSE),\"N\")","v":"Y"},"NY"]
[null,null,null,"General Fund",null,null,null,null,null,{"$f":"VLOOKUP(D367,'Bank and Fund Details'!$B$15:$D$36,3,FALSE)","v":0},{"$f":"VLOOKUP(D367,'Bank and Fund Details'!$B$15:$C$36,2,FALSE)","v":"Unrestricted"},{"$f":"IFERROR(VLOOKUP(C367,Descriptions!$I$6:$K$92,3,FALSE),\"\")","v":""},null,null,null,null,null,null,null,null,null,null,null,null,null,null,"General Fund",null,{"$f":"IFERROR(VLOOKUP(C367,Descriptions!I:M,5,FALSE),\"N\")","v":"N"},true,"NTRUE",0,{"$f":"IFERROR(VLOOKUP(D367,'Bank and Fund Details'!$B$14:$L$35,11,FALSE),\"N\")","v":"Y"},"NY"]
[null,null,null,"General Fund",null,null,null,null,null,{"$f":"VLOOKUP(D368,'Bank and Fund Details'!$B$15:$D$36,3,FALSE)","v":0},{"$f":"VLOOKUP(D368,'Bank and Fund Details'!$B$15:$C$36,2,FALSE)","v":"Unrestricted"},{"$f":"IFERROR(VLOOKUP(C368,Descriptions!$I$6:$K$92,3,FALSE),\"\")","v":""},null,null,null,null,null,null,null,null,null,null,null,null,null,null,"General Fund",null,{"$f":"IFERROR(VLOOKUP(C368,Descriptions!I:M,5,FALSE),\"N\")","v":"N"},true,"NTRUE",0,{"$f":"IFERROR(VLOOKUP(D368,'Bank and Fund Details'!$B$14:$L$35,11,FALSE),\"N\")","v":"Y"},"NY"]
[null,null,null,"General Fund",null,null,null,null,null,{"$f":"VLOOKUP(D369,'Bank and Fund Details'!$B$15:$D$36,3,FALSE)","v":0},{"$f":"VLOOKUP(D369,'Bank and Fund Details'!$B$15:$C$36,2,FALSE)","v":"Unrestricted"},{"$f":"IFERROR(VLOOKUP(C369,Descriptions!$I$6:$K$92,3,FALSE),\"\")","v":""},null,null,null,null,null,null,null,null,null,null,null,null,null,null,"General Fund",null,{"$f":"IFERROR(VLOOKUP(C369,Descriptions!I:M,5,FALSE),\"N\")","v":"N"},true,"NTRUE",0,{"$f":"IFERROR(VLOOKUP(D369,'Bank and Fund Details'!$B$14:$L$35,11,FALSE),\"N\")","v":"Y"},"NY"]
[null,null,null,"General Fund",null,null,null,null,null,{"$f":"VLOOKUP(D370,'Bank and Fund Details'!$B$15:$D$36,3,FALSE)","v":0},{"$f":"VLOOKUP(D370,'Bank and Fund Details'!$B$15:$C$36,2,FALSE)","v":"Unrestricted"},{"$f":"IFERROR(VLOOKUP(C370,Descriptions!$I$6:$K$92,3,FALSE),\"\")","v":""},null,null,null,null,null,null,null,null,null,null,null,null,null,null,"General Fund",null,{"$f":"IFERROR(VLOOKUP(C370,Descriptions!I:M,5,FALSE),\"N\")","v":"N"},true,"NTRUE",0,{"$f":"IFERROR(VLOOKUP(D370,'Bank and Fund Details'!$B$14:$L$35,11,FALSE),\"N\")","v":"Y"},"NY"]
[null,null,null,"General Fund",null,null,null,null,null,{"$f":"VLOOKUP(D371,'Bank and Fund Details'!$B$15:$D$36,3,FALSE)","v":0},{"$f":"VLOOKUP(D371,'Bank and Fund Details'!$B$15:$C$36,2,FALSE)","v":"Unrestricted"},{"$f":"IFERROR(VLOOKUP(C371,Descriptions!$I$6:$K$92,3,FALSE),\"\")","v":""},null,null,null,null,null,null,null,null,null,null,null,null,null,null,"General Fund",null,{"$f":"IFERROR(VLOOKUP(C371,Descriptions!I:M,5,FALSE),\"N\")","v":"N"},true,"NTRUE",0,{"$f":"IFERROR(VLOOKUP(D371,'Bank and Fund Details'!$B$14:$L$35,11,FALSE),\"N\")","v":"Y"},"NY"]
[null,null,null,"General Fund",null,null,null,null,null,{"$f":"VLOOKUP(D372,'Bank and Fund Details'!$B$15:$D$36,3,FALSE)","v":0},{"$f":"VLOOKUP(D372,'Bank and Fund Details'!$B$15:$C$36,2,FALSE)","v":"Unrestricted"},{"$f":"IFERROR(VLOOKUP(C372,Descriptions!$I$6:$K$92,3,FALSE),\"\")","v":""},null,null,null,null,null,null,null,null,null,null,null,null,null,null,"General Fund",null,{"$f":"IFERROR(VLOOKUP(C372,Descriptions!I:M,5,FALSE),\"N\")","v":"N"},true,"NTRUE",0,{"$f":"IFERROR(VLOOKUP(D372,'Bank and Fund Details'!$B$14:$L$35,11,FALSE),\"N\")","v":"Y"},"NY"]
[null,null,null,"General Fund",null,null,null,null,null,{"$f":"VLOOKUP(D373,'Bank and Fund Details'!$B$15:$D$36,3,FALSE)","v":0},{"$f":"VLOOKUP(D373,'Bank and Fund Details'!$B$15:$C$36,2,FALSE)","v":"Unrestricted"},{"$f":"IFERROR(VLOOKUP(C373,Descriptions!$I$6:$K$92,3,FALSE),\"\")","v":""},null,null,null,null,null,null,null,null,null,null,null,null,null,null,"General Fund",null,{"$f":"IFERROR(VLOOKUP(C373,Descriptions!I:M,5,FALSE),\"N\")","v":"N"},true,"NTRUE",0,{"$f":"IFERROR(VLOOKUP(D373,'Bank and Fund Details'!$B$14:$L$35,11,FALSE),\"N\")","v":"Y"},"NY"]
[null,null,null,"General Fund",null,null,null,null,null,{"$f":"VLOOKUP(D374,'Bank and Fund Details'!$B$15:$D$36,3,FALSE)","v":0},{"$f":"VLOOKUP(D374,'Bank and Fund Details'!$B$15:$C$36,2,FALSE)","v":"Unrestricted"},{"$f":"IFERROR(VLOOKUP(C374,Descriptions!$I$6:$K$92,3,FALSE),\"\")","v":""},null,null,null,null,null,null,null,null,null,null,null,null,null,null,"General Fund",null,{"$f":"IFERROR(VLOOKUP(C374,Descriptions!I:M,5,FALSE),\"N\")","v":"N"},true,"NTRUE",0,{"$f":"IFERROR(VLOOKUP(D374,'Bank and Fund Details'!$B$14:$L$35,11,FALSE),\"N\")","v":"Y"},"NY"]
[null,null,null,"General Fund",null,null,null,null,null,{"$f":"VLOOKUP(D375,'Bank and Fund Details'!$B$15:$D$36,3,FALSE)","v":0},{"$f":"VLOOKUP(D375,'Bank and Fund Details'!$B$15:$C$36,2,FALSE)","v":"Unrestricted"},{"$f":"IFERROR(VLOOKUP(C375,Descriptions!$I$6:$K$92,3,FALSE),\"\")","v":""},null,null,null,null,null,null,null,null,null,null,null,null,null,null,"General Fund",null,{"$f":"IFERROR(VLOOKUP(C375,Descriptions!I:M,5,FALSE),\"N\")","v":"N"},true,"NTRUE",0,{"$f":"IFERROR(VLOOKUP(D375,'Bank and Fund Details'!$B$14:$L$35,11,FALSE),\"N\")","v":"Y"},"NY"]
[null,null,null,"General Fund",null,null,null,null,null,{"$f":"VLOOKUP(D376,'Bank and Fund Details'!$B$15:$D$36,3,FALSE)","v":0},{"$f":"VLOOKUP(D376,'Bank and Fund Details'!$B$15:$C$36,2,FALSE)","v":"Unrestricted"},{"$f":"IFERROR(VLOOKUP(C376,Descriptions!$I$6:$K$92,3,FALSE),\"\")","v":""},null,null,null,null,null,null,null,null,null,null,null,null,null,null,"General Fund",null,{"$f":"IFERROR(VLOOKUP(C376,Descriptions!I:M,5,FALSE),\"N\")","v":"N"},true,"NTRUE",0,{"$f":"IFERROR(VLOOKUP(D376,'Bank and Fund Details'!$B$14:$L$35,11,FALSE),\"N\")","v":"Y"},"NY"]
[null,null,null,"General Fund",null,null,null,null,null,{"$f":"VLOOKUP(D377,'Bank and Fund Details'!$B$15:$D$36,3,FALSE)","v":0},{"$f":"VLOOKUP(D377,'Bank and Fund Details'!$B$15:$C$36,2,FALSE)","v":"Unrestricted"},{"$f":"IFERROR(VLOOKUP(C377,Descriptions!$I$6:$K$92,3,FALSE),\"\")","v":""},null,null,null,null,null,null,null,null,null,null,null,null,null,null,"General Fund",null,{"$f":"IFERROR(VLOOKUP(C377,Descriptions!I:M,5,FALSE),\"N\")","v":"N"},true,"NTRUE",0,{"$f":"IFERROR(VLOOKUP(D377,'Bank and Fund Details'!$B$14:$L$35,11,FALSE),\"N\")","v":"Y"},"NY"]
[null,null,null,"General Fund",null,null,null,null,null,{"$f":"VLOOKUP(D378,'Bank and Fund Details'!$B$15:$D$36,3,FALSE)","v":0},{"$f":"VLOOKUP(D378,'Bank and Fund Details'!$B$15:$C$36,2,FALSE)","v":"Unrestricted"},{"$f":"IFERROR(VLOOKUP(C378,Descriptions!$I$6:$K$92,3,FALSE),\"\")","v":""},null,null,null,null,null,null,null,null,null,null,null,null,null,null,"General Fund",null,{"$f":"IFERROR(VLOOKUP(C378,Descriptions!I:M,5,FALSE),\"N\")","v":"N"},true,"NTRUE",0,{"$f":"IFERROR(VLOOKUP(D378,'Bank and Fund Details'!$B$14:$L$35,11,FALSE),\"N\")","v":"Y"},"NY"]
[null,null,null,"General Fund",null,null,null,null,null,{"$f":"VLOOKUP(D379,'Bank and Fund Details'!$B$15:$D$36,3,FALSE)","v":0},{"$f":"VLOOKUP(D379,'Bank and Fund Details'!$B$15:$C$36,2,FALSE)","v":"Unrestricted"},{"$f":"IFERROR(VLOOKUP(C379,Descriptions!$I$6:$K$92,3,FALSE),\"\")","v":""},null,null,null,null,null,null,null,null,null,null,null,null,null,null,"General Fund",null,{"$f":"IFERROR(VLOOKUP(C379,Descriptions!I:M,5,FALSE),\"N\")","v":"N"},true,"NTRUE",0,{"$f":"IFERROR(VLOOKUP(D379,'Bank and Fund Details'!$B$14:$L$35,11,FALSE),\"N\")","v":"Y"},"NY"]
[null,null,null,"General Fund",null,null,null,null,null,{"$f":"VLOOKUP(D380,'Bank and Fund Details'!$B$15:$D$36,3,FALSE)","v":0},{"$f":"VLOOKUP(D380,'Bank and Fund Details'!$B$15:$C$36,2,FALSE)","v":"Unrestricted"},{"$f":"IFERROR(VLOOKUP(C380,Descriptions!$I$6:$K$92,3,FALSE),\"\")","v":""},null,null,null,null,null,null,null,null,null,null,null,null,null,null,"General Fund",null,{"$f":"IFERROR(VLOOKUP(C380,Descriptions!I:M,5,FALSE),\"N\")","v":"N"},true,"NTRUE",0,{"$f":"IFERROR(VLOOKUP(D380,'Bank and Fund Details'!$B$14:$L$35,11,FALSE),\"N\")","v":"Y"},"NY"]
[null,null,null,"General Fund",null,null,null,null,null,{"$f":"VLOOKUP(D381,'Bank and Fund Details'!$B$15:$D$36,3,FALSE)","v":0},{"$f":"VLOOKUP(D381,'Bank and Fund Details'!$B$15:$C$36,2,FALSE)","v":"Unrestricted"},{"$f":"IFERROR(VLOOKUP(C381,Descriptions!$I$6:$K$92,3,FALSE),\"\")","v":""},null,null,null,null,null,null,null,null,null,null,null,null,null,null,"General Fund",null,{"$f":"IFERROR(VLOOKUP(C381,Descriptions!I:M,5,FALSE),\"N\")","v":"N"},true,"NTRUE",0,{"$f":"IFERROR(VLOOKUP(D381,'Bank and Fund Details'!$B$14:$L$35,11,FALSE),\"N\")","v":"Y"},"NY"]
[null,null,null,"General Fund",null,null,null,null,null,{"$f":"VLOOKUP(D382,'Bank and Fund Details'!$B$15:$D$36,3,FALSE)","v":0},{"$f":"VLOOKUP(D382,'Bank and Fund Details'!$B$15:$C$36,2,FALSE)","v":"Unrestricted"},{"$f":"IFERROR(VLOOKUP(C382,Descriptions!$I$6:$K$92,3,FALSE),\"\")","v":""},null,null,null,null,null,null,null,null,null,null,null,null,null,null,"General Fund",null,{"$f":"IFERROR(VLOOKUP(C382,Descriptions!I:M,5,FALSE),\"N\")","v":"N"},true,"NTRUE",0,{"$f":"IFERROR(VLOOKUP(D382,'Bank and Fund Details'!$B$14:$L$35,11,FALSE),\"N\")","v":"Y"},"NY"]
[null,null,null,"General Fund",null,null,null,null,null,{"$f":"VLOOKUP(D383,'Bank and Fund Details'!$B$15:$D$36,3,FALSE)","v":0},{"$f":"VLOOKUP(D383,'Bank and Fund Details'!$B$15:$C$36,2,FALSE)","v":"Unrestricted"},{"$f":"IFERROR(VLOOKUP(C383,Descriptions!$I$6:$K$92,3,FALSE),\"\")","v":""},null,null,null,null,null,null,null,null,null,null,null,null,null,null,"General Fund",null,{"$f":"IFERROR(VLOOKUP(C383,Descriptions!I:M,5,FALSE),\"N\")","v":"N"},true,"NTRUE",0,{"$f":"IFERROR(VLOOKUP(D383,'Bank and Fund Details'!$B$14:$L$35,11,FALSE),\"N\")","v":"Y"},"NY"]
[null,null,null,"General Fund",null,null,null,null,null,{"$f":"VLOOKUP(D384,'Bank and Fund Details'!$B$15:$D$36,3,FALSE)","v":0},{"$f":"VLOOKUP(D384,'Bank and Fund Details'!$B$15:$C$36,2,FALSE)","v":"Unrestricted"},{"$f":"IFERROR(VLOOKUP(C384,Descriptions!$I$6:$K$92,3,FALSE),\"\")","v":""},null,null,null,null,null,null,null,null,null,null,null,null,null,null,"General Fund",null,{"$f":"IFERROR(VLOOKUP(C384,Descriptions!I:M,5,FALSE),\"N\")","v":"N"},true,"NTRUE",0,{"$f":"IFERROR(VLOOKUP(D384,'Bank and Fund Details'!$B$14:$L$35,11,FALSE),\"N\")","v":"Y"},"NY"]
[null,null,null,"General Fund",null,null,null,null,null,{"$f":"VLOOKUP(D385,'Bank and Fund Details'!$B$15:$D$36,3,FALSE)","v":0},{"$f":"VLOOKUP(D385,'Bank and Fund Details'!$B$15:$C$36,2,FALSE)","v":"Unrestricted"},{"$f":"IFERROR(VLOOKUP(C385,Descriptions!$I$6:$K$92,3,FALSE),\"\")","v":""},null,null,null,null,null,null,null,null,null,null,null,null,null,null,"General Fund",null,{"$f":"IFERROR(VLOOKUP(C385,Descriptions!I:M,5,FALSE),\"N\")","v":"N"},true,"NTRUE",0,{"$f":"IFERROR(VLOOKUP(D385,'Bank and Fund Details'!$B$14:$L$35,11,FALSE),\"N\")","v":"Y"},"NY"]
[null,null,null,"General Fund",null,null,null,null,null,{"$f":"VLOOKUP(D386,'Bank and Fund Details'!$B$15:$D$36,3,FALSE)","v":0},{"$f":"VLOOKUP(D386,'Bank and Fund Details'!$B$15:$C$36,2,FALSE)","v":"Unrestricted"},{"$f":"IFERROR(VLOOKUP(C386,Descriptions!$I$6:$K$92,3,FALSE),\"\")","v":""},null,null,null,null,null,null,null,null,null,null,null,null,null,null,"General Fund",null,{"$f":"IFERROR(VLOOKUP(C386,Descriptions!I:M,5,FALSE),\"N\")","v":"N"},true,"NTRUE",0,{"$f":"IFERROR(VLOOKUP(D386,'Bank and Fund Details'!$B$14:$L$35,11,FALSE),\"N\")","v":"Y"},"NY"]
[null,null,null,"General Fund",null,null,null,null,null,{"$f":"VLOOKUP(D387,'Bank and Fund Details'!$B$15:$D$36,3,FALSE)","v":0},{"$f":"VLOOKUP(D387,'Bank and Fund Details'!$B$15:$C$36,2,FALSE)","v":"Unrestricted"},{"$f":"IFERROR(VLOOKUP(C387,Descriptions!$I$6:$K$92,3,FALSE),\"\")","v":""},null,null,null,null,null,null,null,null,null,null,null,null,null,null,"General Fund",null,{"$f":"IFERROR(VLOOKUP(C387,Descriptions!I:M,5,FALSE),\"N\")","v":"N"},true,"NTRUE",0,{"$f":"IFERROR(VLOOKUP(D387,'Bank and Fund Details'!$B$14:$L$35,11,FALSE),\"N\")","v":"Y"},"NY"]
[null,null,null,"General Fund",null,null,null,null,null,{"$f":"VLOOKUP(D388,'Bank and Fund Details'!$B$15:$D$36,3,FALSE)","v":0},{"$f":"VLOOKUP(D388,'Bank and Fund Details'!$B$15:$C$36,2,FALSE)","v":"Unrestricted"},{"$f":"IFERROR(VLOOKUP(C388,Descriptions!$I$6:$K$92,3,FALSE),\"\")","v":""},null,null,null,null,null,null,null,null,null,null,null,null,null,null,"General Fund",null,{"$f":"IFERROR(VLOOKUP(C388,Descriptions!I:M,5,FALSE),\"N\")","v":"N"},true,"NTRUE",0,{"$f":"IFERROR(VLOOKUP(D388,'Bank and Fund Details'!$B$14:$L$35,11,FALSE),\"N\")","v":"Y"},"NY"]
[null,null,null,"General Fund",null,null,null,null,null,{"$f":"VLOOKUP(D389,'Bank and Fund Details'!$B$15:$D$36,3,FALSE)","v":0},{"$f":"VLOOKUP(D389,'Bank and Fund Details'!$B$15:$C$36,2,FALSE)","v":"Unrestricted"},{"$f":"IFERROR(VLOOKUP(C389,Descriptions!$I$6:$K$92,3,FALSE),\"\")","v":""},null,null,null,null,null,null,null,null,null,null,null,null,null,null,"General Fund",null,{"$f":"IFERROR(VLOOKUP(C389,Descriptions!I:M,5,FALSE),\"N\")","v":"N"},true,"NTRUE",0,{"$f":"IFERROR(VLOOKUP(D389,'Bank and Fund Details'!$B$14:$L$35,11,FALSE),\"N\")","v":"Y"},"NY"]
[null,null,null,"General Fund",null,null,null,null,null,{"$f":"VLOOKUP(D390,'Bank and Fund Details'!$B$15:$D$36,3,FALSE)","v":0},{"$f":"VLOOKUP(D390,'Bank and Fund Details'!$B$15:$C$36,2,FALSE)","v":"Unrestricted"},{"$f":"IFERROR(VLOOKUP(C390,Descriptions!$I$6:$K$92,3,FALSE),\"\")","v":""},null,null,null,null,null,null,null,null,null,null,null,null,null,null,{"$f":"CONCATENATE(C390,D390)","v":"General Fund"},null,{"$f":"IFERROR(VLOOKUP(C390,Descriptions!I:M,5,FALSE),\"N\")","v":"N"},{"$f":"ISBLANK(C390)","v":true},{"$f":"CONCATENATE(AC390,AD390)","v":"NTRUE"},{"$f":"IF(AE390=\"NFALSE\",1,0)","v":0},{"$f":"IFERROR(VLOOKUP(D390,'Bank and Fund Details'!$B$14:$L$35,11,FALSE),\"N\")","v":"Y"},{"$f":"CONCATENATE(AC390,AG390)","v":"NY"}]
[null,null,null,"General Fund",null,null,null,null,null,{"$f":"VLOOKUP(D391,'Bank and Fund Details'!$B$15:$D$36,3,FALSE)","v":0},{"$f":"VLOOKUP(D391,'Bank and Fund Details'!$B$15:$C$36,2,FALSE)","v":"Unrestricted"},{"$f":"IFERROR(VLOOKUP(C391,Descriptions!$I$6:$K$92,3,FALSE),\"\")","v":""},null,null,null,null,null,null,null,null,null,null,null,null,null,null,"General Fund",null,{"$f":"IFERROR(VLOOKUP(C391,Descriptions!I:M,5,FALSE),\"N\")","v":"N"},true,"NTRUE",0,{"$f":"IFERROR(VLOOKUP(D391,'Bank and Fund Details'!$B$14:$L$35,11,FALSE),\"N\")","v":"Y"},"NY"]
[null,null,null,"General Fund",null,null,null,null,null,{"$f":"VLOOKUP(D392,'Bank and Fund Details'!$B$15:$D$36,3,FALSE)","v":0},{"$f":"VLOOKUP(D392,'Bank and Fund Details'!$B$15:$C$36,2,FALSE)","v":"Unrestricted"},{"$f":"IFERROR(VLOOKUP(C392,Descriptions!$I$6:$K$92,3,FALSE),\"\")","v":""},null,null,null,null,null,null,null,null,null,null,null,null,null,null,"General Fund",null,{"$f":"IFERROR(VLOOKUP(C392,Descriptions!I:M,5,FALSE),\"N\")","v":"N"},true,"NTRUE",0,{"$f":"IFERROR(VLOOKUP(D392,'Bank and Fund Details'!$B$14:$L$35,11,FALSE),\"N\")","v":"Y"},"NY"]
[null,null,null,"General Fund",null,null,null,null,null,{"$f":"VLOOKUP(D393,'Bank and Fund Details'!$B$15:$D$36,3,FALSE)","v":0},{"$f":"VLOOKUP(D393,'Bank and Fund Details'!$B$15:$C$36,2,FALSE)","v":"Unrestricted"},{"$f":"IFERROR(VLOOKUP(C393,Descriptions!$I$6:$K$92,3,FALSE),\"\")","v":""},null,null,null,null,null,null,null,null,null,null,null,null,null,null,"General Fund",null,{"$f":"IFERROR(VLOOKUP(C393,Descriptions!I:M,5,FALSE),\"N\")","v":"N"},true,"NTRUE",0,{"$f":"IFERROR(VLOOKUP(D393,'Bank and Fund Details'!$B$14:$L$35,11,FALSE),\"N\")","v":"Y"},"NY"]
[null,null,null,"General Fund",null,null,null,null,null,{"$f":"VLOOKUP(D394,'Bank and Fund Details'!$B$15:$D$36,3,FALSE)","v":0},{"$f":"VLOOKUP(D394,'Bank and Fund Details'!$B$15:$C$36,2,FALSE)","v":"Unrestricted"},{"$f":"IFERROR(VLOOKUP(C394,Descriptions!$I$6:$K$92,3,FALSE),\"\")","v":""},null,null,null,null,null,null,null,null,null,null,null,null,null,null,"General Fund",null,{"$f":"IFERROR(VLOOKUP(C394,Descriptions!I:M,5,FALSE),\"N\")","v":"N"},true,"NTRUE",0,{"$f":"IFERROR(VLOOKUP(D394,'Bank and Fund Details'!$B$14:$L$35,11,FALSE),\"N\")","v":"Y"},"NY"]
[null,null,null,"General Fund",null,null,null,null,null,{"$f":"VLOOKUP(D395,'Bank and Fund Details'!$B$15:$D$36,3,FALSE)","v":0},{"$f":"VLOOKUP(D395,'Bank and Fund Details'!$B$15:$C$36,2,FALSE)","v":"Unrestricted"},{"$f":"IFERROR(VLOOKUP(C395,Descriptions!$I$6:$K$92,3,FALSE),\"\")","v":""},null,null,null,null,null,null,null,null,null,null,null,null,null,null,"General Fund",null,{"$f":"IFERROR(VLOOKUP(C395,Descriptions!I:M,5,FALSE),\"N\")","v":"N"},true,"NTRUE",0,{"$f":"IFERROR(VLOOKUP(D395,'Bank and Fund Details'!$B$14:$L$35,11,FALSE),\"N\")","v":"Y"},"NY"]
[null,null,null,"General Fund",null,null,null,null,null,{"$f":"VLOOKUP(D396,'Bank and Fund Details'!$B$15:$D$36,3,FALSE)","v":0},{"$f":"VLOOKUP(D396,'Bank and Fund Details'!$B$15:$C$36,2,FALSE)","v":"Unrestricted"},{"$f":"IFERROR(VLOOKUP(C396,Descriptions!$I$6:$K$92,3,FALSE),\"\")","v":""},null,null,null,null,null,null,null,null,null,null,null,null,null,null,"General Fund",null,{"$f":"IFERROR(VLOOKUP(C396,Descriptions!I:M,5,FALSE),\"N\")","v":"N"},true,"NTRUE",0,{"$f":"IFERROR(VLOOKUP(D396,'Bank and Fund Details'!$B$14:$L$35,11,FALSE),\"N\")","v":"Y"},"NY"]
[null,null,null,"General Fund",null,null,null,null,null,{"$f":"VLOOKUP(D397,'Bank and Fund Details'!$B$15:$D$36,3,FALSE)","v":0},{"$f":"VLOOKUP(D397,'Bank and Fund Details'!$B$15:$C$36,2,FALSE)","v":"Unrestricted"},{"$f":"IFERROR(VLOOKUP(C397,Descriptions!$I$6:$K$92,3,FALSE),\"\")","v":""},null,null,null,null,null,null,null,null,null,null,null,null,null,null,"General Fund",null,{"$f":"IFERROR(VLOOKUP(C397,Descriptions!I:M,5,FALSE),\"N\")","v":"N"},true,"NTRUE",0,{"$f":"IFERROR(VLOOKUP(D397,'Bank and Fund Details'!$B$14:$L$35,11,FALSE),\"N\")","v":"Y"},"NY"]
[null,null,null,"General Fund",null,null,null,null,null,{"$f":"VLOOKUP(D398,'Bank and Fund Details'!$B$15:$D$36,3,FALSE)","v":0},{"$f":"VLOOKUP(D398,'Bank and Fund Details'!$B$15:$C$36,2,FALSE)","v":"Unrestricted"},{"$f":"IFERROR(VLOOKUP(C398,Descriptions!$I$6:$K$92,3,FALSE),\"\")","v":""},null,null,null,null,null,null,null,null,null,null,null,null,null,null,"General Fund",null,{"$f":"IFERROR(VLOOKUP(C398,Descriptions!I:M,5,FALSE),\"N\")","v":"N"},true,"NTRUE",0,{"$f":"IFERROR(VLOOKUP(D398,'Bank and Fund Details'!$B$14:$L$35,11,FALSE),\"N\")","v":"Y"},"NY"]
[null,null,null,"General Fund",null,null,null,null,null,{"$f":"VLOOKUP(D399,'Bank and Fund Details'!$B$15:$D$36,3,FALSE)","v":0},{"$f":"VLOOKUP(D399,'Bank and Fund Details'!$B$15:$C$36,2,FALSE)","v":"Unrestricted"},{"$f":"IFERROR(VLOOKUP(C399,Descriptions!$I$6:$K$92,3,FALSE),\"\")","v":""},null,null,null,null,null,null,null,null,null,null,null,null,null,null,"General Fund",null,{"$f":"IFERROR(VLOOKUP(C399,Descriptions!I:M,5,FALSE),\"N\")","v":"N"},true,"NTRUE",0,{"$f":"IFERROR(VLOOKUP(D399,'Bank and Fund Details'!$B$14:$L$35,11,FALSE),\"N\")","v":"Y"},"NY"]
[null,null,null,"General Fund",null,null,null,null,null,{"$f":"VLOOKUP(D400,'Bank and Fund Details'!$B$15:$D$36,3,FALSE)","v":0},{"$f":"VLOOKUP(D400,'Bank and Fund Details'!$B$15:$C$36,2,FALSE)","v":"Unrestricted"},{"$f":"IFERROR(VLOOKUP(C400,Descriptions!$I$6:$K$92,3,FALSE),\"\")","v":""},null,null,null,null,null,null,null,null,null,null,null,null,null,null,"General Fund",null,{"$f":"IFERROR(VLOOKUP(C400,Descriptions!I:M,5,FALSE),\"N\")","v":"N"},true,"NTRUE",0,{"$f":"IFERROR(VLOOKUP(D400,'Bank and Fund Details'!$B$14:$L$35,11,FALSE),\"N\")","v":"Y"},"NY"]
[null,null,null,"General Fund",null,null,null,null,null,{"$f":"VLOOKUP(D401,'Bank and Fund Details'!$B$15:$D$36,3,FALSE)","v":0},{"$f":"VLOOKUP(D401,'Bank and Fund Details'!$B$15:$C$36,2,FALSE)","v":"Unrestricted"},{"$f":"IFERROR(VLOOKUP(C401,Descriptions!$I$6:$K$92,3,FALSE),\"\")","v":""},null,null,null,null,null,null,null,null,null,null,null,null,null,null,"General Fund",null,{"$f":"IFERROR(VLOOKUP(C401,Descriptions!I:M,5,FALSE),\"N\")","v":"N"},true,"NTRUE",0,{"$f":"IFERROR(VLOOKUP(D401,'Bank and Fund Details'!$B$14:$L$35,11,FALSE),\"N\")","v":"Y"},"NY"]
[null,null,null,"General Fund",null,null,null,null,null,{"$f":"VLOOKUP(D402,'Bank and Fund Details'!$B$15:$D$36,3,FALSE)","v":0},{"$f":"VLOOKUP(D402,'Bank and Fund Details'!$B$15:$C$36,2,FALSE)","v":"Unrestricted"},{"$f":"IFERROR(VLOOKUP(C402,Descriptions!$I$6:$K$92,3,FALSE),\"\")","v":""},null,null,null,null,null,null,null,null,null,null,null,null,null,null,"General Fund",null,{"$f":"IFERROR(VLOOKUP(C402,Descriptions!I:M,5,FALSE),\"N\")","v":"N"},true,"NTRUE",0,{"$f":"IFERROR(VLOOKUP(D402,'Bank and Fund Details'!$B$14:$L$35,11,FALSE),\"N\")","v":"Y"},"NY"]
[null,null,null,"General Fund",null,null,null,null,null,{"$f":"VLOOKUP(D403,'Bank and Fund Details'!$B$15:$D$36,3,FALSE)","v":0},{"$f":"VLOOKUP(D403,'Bank and Fund Details'!$B$15:$C$36,2,FALSE)","v":"Unrestricted"},{"$f":"IFERROR(VLOOKUP(C403,Descriptions!$I$6:$K$92,3,FALSE),\"\")","v":""},null,null,null,null,null,null,null,null,null,null,null,null,null,null,"General Fund",null,{"$f":"IFERROR(VLOOKUP(C403,Descriptions!I:M,5,FALSE),\"N\")","v":"N"},true,"NTRUE",0,{"$f":"IFERROR(VLOOKUP(D403,'Bank and Fund Details'!$B$14:$L$35,11,FALSE),\"N\")","v":"Y"},"NY"]
[null,null,null,"General Fund",null,null,null,null,null,{"$f":"VLOOKUP(D404,'Bank and Fund Details'!$B$15:$D$36,3,FALSE)","v":0},{"$f":"VLOOKUP(D404,'Bank and Fund Details'!$B$15:$C$36,2,FALSE)","v":"Unrestricted"},{"$f":"IFERROR(VLOOKUP(C404,Descriptions!$I$6:$K$92,3,FALSE),\"\")","v":""},null,null,null,null,null,null,null,null,null,null,null,null,null,null,"General Fund",null,{"$f":"IFERROR(VLOOKUP(C404,Descriptions!I:M,5,FALSE),\"N\")","v":"N"},true,"NTRUE",0,{"$f":"IFERROR(VLOOKUP(D404,'Bank and Fund Details'!$B$14:$L$35,11,FALSE),\"N\")","v":"Y"},"NY"]
[null,null,null,"General Fund",null,null,null,null,null,{"$f":"VLOOKUP(D405,'Bank and Fund Details'!$B$15:$D$36,3,FALSE)","v":0},{"$f":"VLOOKUP(D405,'Bank and Fund Details'!$B$15:$C$36,2,FALSE)","v":"Unrestricted"},{"$f":"IFERROR(VLOOKUP(C405,Descriptions!$I$6:$K$92,3,FALSE),\"\")","v":""},null,null,null,null,null,null,null,null,null,null,null,null,null,null,"General Fund",null,{"$f":"IFERROR(VLOOKUP(C405,Descriptions!I:M,5,FALSE),\"N\")","v":"N"},true,"NTRUE",0,{"$f":"IFERROR(VLOOKUP(D405,'Bank and Fund Details'!$B$14:$L$35,11,FALSE),\"N\")","v":"Y"},"NY"]
[null,null,null,"General Fund",null,null,null,null,null,{"$f":"VLOOKUP(D406,'Bank and Fund Details'!$B$15:$D$36,3,FALSE)","v":0},{"$f":"VLOOKUP(D406,'Bank and Fund Details'!$B$15:$C$36,2,FALSE)","v":"Unrestricted"},{"$f":"IFERROR(VLOOKUP(C406,Descriptions!$I$6:$K$92,3,FALSE),\"\")","v":""},null,null,null,null,null,null,null,null,null,null,null,null,null,null,"General Fund",null,{"$f":"IFERROR(VLOOKUP(C406,Descriptions!I:M,5,FALSE),\"N\")","v":"N"},true,"NTRUE",0,{"$f":"IFERROR(VLOOKUP(D406,'Bank and Fund Details'!$B$14:$L$35,11,FALSE),\"N\")","v":"Y"},"NY"]
[null,null,null,"General Fund",null,null,null,null,null,{"$f":"VLOOKUP(D407,'Bank and Fund Details'!$B$15:$D$36,3,FALSE)","v":0},{"$f":"VLOOKUP(D407,'Bank and Fund Details'!$B$15:$C$36,2,FALSE)","v":"Unrestricted"},{"$f":"IFERROR(VLOOKUP(C407,Descriptions!$I$6:$K$92,3,FALSE),\"\")","v":""},null,null,null,null,null,null,null,null,null,null,null,null,null,null,"General Fund",null,{"$f":"IFERROR(VLOOKUP(C407,Descriptions!I:M,5,FALSE),\"N\")","v":"N"},true,"NTRUE",0,{"$f":"IFERROR(VLOOKUP(D407,'Bank and Fund Details'!$B$14:$L$35,11,FALSE),\"N\")","v":"Y"},"NY"]
[null,null,null,"General Fund",null,null,null,null,null,{"$f":"VLOOKUP(D408,'Bank and Fund Details'!$B$15:$D$36,3,FALSE)","v":0},{"$f":"VLOOKUP(D408,'Bank and Fund Details'!$B$15:$C$36,2,FALSE)","v":"Unrestricted"},{"$f":"IFERROR(VLOOKUP(C408,Descriptions!$I$6:$K$92,3,FALSE),\"\")","v":""},null,null,null,null,null,null,null,null,null,null,null,null,null,null,"General Fund",null,{"$f":"IFERROR(VLOOKUP(C408,Descriptions!I:M,5,FALSE),\"N\")","v":"N"},true,"NTRUE",0,{"$f":"IFERROR(VLOOKUP(D408,'Bank and Fund Details'!$B$14:$L$35,11,FALSE),\"N\")","v":"Y"},"NY"]
[null,null,null,"General Fund",null,null,null,null,null,{"$f":"VLOOKUP(D409,'Bank and Fund Details'!$B$15:$D$36,3,FALSE)","v":0},{"$f":"VLOOKUP(D409,'Bank and Fund Details'!$B$15:$C$36,2,FALSE)","v":"Unrestricted"},{"$f":"IFERROR(VLOOKUP(C409,Descriptions!$I$6:$K$92,3,FALSE),\"\")","v":""},null,null,null,null,null,null,null,null,null,null,null,null,null,null,"General Fund",null,{"$f":"IFERROR(VLOOKUP(C409,Descriptions!I:M,5,FALSE),\"N\")","v":"N"},true,"NTRUE",0,{"$f":"IFERROR(VLOOKUP(D409,'Bank and Fund Details'!$B$14:$L$35,11,FALSE),\"N\")","v":"Y"},"NY"]
[null,null,null,"General Fund",null,null,null,null,null,{"$f":"VLOOKUP(D410,'Bank and Fund Details'!$B$15:$D$36,3,FALSE)","v":0},{"$f":"VLOOKUP(D410,'Bank and Fund Details'!$B$15:$C$36,2,FALSE)","v":"Unrestricted"},{"$f":"IFERROR(VLOOKUP(C410,Descriptions!$I$6:$K$92,3,FALSE),\"\")","v":""},null,null,null,null,null,null,null,null,null,null,null,null,null,null,"General Fund",null,{"$f":"IFERROR(VLOOKUP(C410,Descriptions!I:M,5,FALSE),\"N\")","v":"N"},true,"NTRUE",0,{"$f":"IFERROR(VLOOKUP(D410,'Bank and Fund Details'!$B$14:$L$35,11,FALSE),\"N\")","v":"Y"},"NY"]
[null,null,null,"General Fund",null,null,null,null,null,{"$f":"VLOOKUP(D411,'Bank and Fund Details'!$B$15:$D$36,3,FALSE)","v":0},{"$f":"VLOOKUP(D411,'Bank and Fund Details'!$B$15:$C$36,2,FALSE)","v":"Unrestricted"},{"$f":"IFERROR(VLOOKUP(C411,Descriptions!$I$6:$K$92,3,FALSE),\"\")","v":""},null,null,null,null,null,null,null,null,null,null,null,null,null,null,"General Fund",null,{"$f":"IFERROR(VLOOKUP(C411,Descriptions!I:M,5,FALSE),\"N\")","v":"N"},true,"NTRUE",0,{"$f":"IFERROR(VLOOKUP(D411,'Bank and Fund Details'!$B$14:$L$35,11,FALSE),\"N\")","v":"Y"},"NY"]
[null,null,null,"General Fund",null,null,null,null,null,{"$f":"VLOOKUP(D412,'Bank and Fund Details'!$B$15:$D$36,3,FALSE)","v":0},{"$f":"VLOOKUP(D412,'Bank and Fund Details'!$B$15:$C$36,2,FALSE)","v":"Unrestricted"},{"$f":"IFERROR(VLOOKUP(C412,Descriptions!$I$6:$K$92,3,FALSE),\"\")","v":""},null,null,null,null,null,null,null,null,null,null,null,null,null,null,"General Fund",null,{"$f":"IFERROR(VLOOKUP(C412,Descriptions!I:M,5,FALSE),\"N\")","v":"N"},true,"NTRUE",0,{"$f":"IFERROR(VLOOKUP(D412,'Bank and Fund Details'!$B$14:$L$35,11,FALSE),\"N\")","v":"Y"},"NY"]
[null,null,null,"General Fund",null,null,null,null,null,{"$f":"VLOOKUP(D413,'Bank and Fund Details'!$B$15:$D$36,3,FALSE)","v":0},{"$f":"VLOOKUP(D413,'Bank and Fund Details'!$B$15:$C$36,2,FALSE)","v":"Unrestricted"},{"$f":"IFERROR(VLOOKUP(C413,Descriptions!$I$6:$K$92,3,FALSE),\"\")","v":""},null,null,null,null,null,null,null,null,null,null,null,null,null,null,"General Fund",null,{"$f":"IFERROR(VLOOKUP(C413,Descriptions!I:M,5,FALSE),\"N\")","v":"N"},true,"NTRUE",0,{"$f":"IFERROR(VLOOKUP(D413,'Bank and Fund Details'!$B$14:$L$35,11,FALSE),\"N\")","v":"Y"},"NY"]
[null,null,null,"General Fund",null,null,null,null,null,{"$f":"VLOOKUP(D414,'Bank and Fund Details'!$B$15:$D$36,3,FALSE)","v":0},{"$f":"VLOOKUP(D414,'Bank and Fund Details'!$B$15:$C$36,2,FALSE)","v":"Unrestricted"},{"$f":"IFERROR(VLOOKUP(C414,Descriptions!$I$6:$K$92,3,FALSE),\"\")","v":""},null,null,null,null,null,null,null,null,null,null,null,null,null,null,"General Fund",null,{"$f":"IFERROR(VLOOKUP(C414,Descriptions!I:M,5,FALSE),\"N\")","v":"N"},true,"NTRUE",0,{"$f":"IFERROR(VLOOKUP(D414,'Bank and Fund Details'!$B$14:$L$35,11,FALSE),\"N\")","v":"Y"},"NY"]
[null,null,null,"General Fund",null,null,null,null,null,{"$f":"VLOOKUP(D415,'Bank and Fund Details'!$B$15:$D$36,3,FALSE)","v":0},{"$f":"VLOOKUP(D415,'Bank and Fund Details'!$B$15:$C$36,2,FALSE)","v":"Unrestricted"},{"$f":"IFERROR(VLOOKUP(C415,Descriptions!$I$6:$K$92,3,FALSE),\"\")","v":""},null,null,null,null,null,null,null,null,null,null,null,null,null,null,"General Fund",null,{"$f":"IFERROR(VLOOKUP(C415,Descriptions!I:M,5,FALSE),\"N\")","v":"N"},true,"NTRUE",0,{"$f":"IFERROR(VLOOKUP(D415,'Bank and Fund Details'!$B$14:$L$35,11,FALSE),\"N\")","v":"Y"},"NY"]
[null,null,null,"General Fund",null,null,null,null,null,{"$f":"VLOOKUP(D416,'Bank and Fund Details'!$B$15:$D$36,3,FALSE)","v":0},{"$f":"VLOOKUP(D416,'Bank and Fund Details'!$B$15:$C$36,2,FALSE)","v":"Unrestricted"},{"$f":"IFERROR(VLOOKUP(C416,Descriptions!$I$6:$K$92,3,FALSE),\"\")","v":""},null,null,null,null,null,null,null,null,null,null,null,null,null,null,"General Fund",null,{"$f":"IFERROR(VLOOKUP(C416,Descriptions!I:M,5,FALSE),\"N\")","v":"N"},true,"NTRUE",0,{"$f":"IFERROR(VLOOKUP(D416,'Bank and Fund Details'!$B$14:$L$35,11,FALSE),\"N\")","v":"Y"},"NY"]
[null,null,null,"General Fund",null,null,null,null,null,{"$f":"VLOOKUP(D417,'Bank and Fund Details'!$B$15:$D$36,3,FALSE)","v":0},{"$f":"VLOOKUP(D417,'Bank and Fund Details'!$B$15:$C$36,2,FALSE)","v":"Unrestricted"},{"$f":"IFERROR(VLOOKUP(C417,Descriptions!$I$6:$K$92,3,FALSE),\"\")","v":""},null,null,null,null,null,null,null,null,null,null,null,null,null,null,"General Fund",null,{"$f":"IFERROR(VLOOKUP(C417,Descriptions!I:M,5,FALSE),\"N\")","v":"N"},true,"NTRUE",0,{"$f":"IFERROR(VLOOKUP(D417,'Bank and Fund Details'!$B$14:$L$35,11,FALSE),\"N\")","v":"Y"},"NY"]
[null,null,null,"General Fund",null,null,null,null,null,{"$f":"VLOOKUP(D418,'Bank and Fund Details'!$B$15:$D$36,3,FALSE)","v":0},{"$f":"VLOOKUP(D418,'Bank and Fund Details'!$B$15:$C$36,2,FALSE)","v":"Unrestricted"},{"$f":"IFERROR(VLOOKUP(C418,Descriptions!$I$6:$K$92,3,FALSE),\"\")","v":""},null,null,null,null,null,null,null,null,null,null,null,null,null,null,"General Fund",null,{"$f":"IFERROR(VLOOKUP(C418,Descriptions!I:M,5,FALSE),\"N\")","v":"N"},true,"NTRUE",0,{"$f":"IFERROR(VLOOKUP(D418,'Bank and Fund Details'!$B$14:$L$35,11,FALSE),\"N\")","v":"Y"},"NY"]
[null,null,null,"General Fund",null,null,null,null,null,{"$f":"VLOOKUP(D419,'Bank and Fund Details'!$B$15:$D$36,3,FALSE)","v":0},{"$f":"VLOOKUP(D419,'Bank and Fund Details'!$B$15:$C$36,2,FALSE)","v":"Unrestricted"},{"$f":"IFERROR(VLOOKUP(C419,Descriptions!$I$6:$K$92,3,FALSE),\"\")","v":""},null,null,null,null,null,null,null,null,null,null,null,null,null,null,"General Fund",null,{"$f":"IFERROR(VLOOKUP(C419,Descriptions!I:M,5,FALSE),\"N\")","v":"N"},true,"NTRUE",0,{"$f":"IFERROR(VLOOKUP(D419,'Bank and Fund Details'!$B$14:$L$35,11,FALSE),\"N\")","v":"Y"},"NY"]
[null,null,null,"General Fund",null,null,null,null,null,{"$f":"VLOOKUP(D420,'Bank and Fund Details'!$B$15:$D$36,3,FALSE)","v":0},{"$f":"VLOOKUP(D420,'Bank and Fund Details'!$B$15:$C$36,2,FALSE)","v":"Unrestricted"},{"$f":"IFERROR(VLOOKUP(C420,Descriptions!$I$6:$K$92,3,FALSE),\"\")","v":""},null,null,null,null,null,null,null,null,null,null,null,null,null,null,"General Fund",null,{"$f":"IFERROR(VLOOKUP(C420,Descriptions!I:M,5,FALSE),\"N\")","v":"N"},true,"NTRUE",0,{"$f":"IFERROR(VLOOKUP(D420,'Bank and Fund Details'!$B$14:$L$35,11,FALSE),\"N\")","v":"Y"},"NY"]
[null,null,null,"General Fund",null,null,null,null,null,{"$f":"VLOOKUP(D421,'Bank and Fund Details'!$B$15:$D$36,3,FALSE)","v":0},{"$f":"VLOOKUP(D421,'Bank and Fund Details'!$B$15:$C$36,2,FALSE)","v":"Unrestricted"},{"$f":"IFERROR(VLOOKUP(C421,Descriptions!$I$6:$K$92,3,FALSE),\"\")","v":""},null,null,null,null,null,null,null,null,null,null,null,null,null,null,"General Fund",null,{"$f":"IFERROR(VLOOKUP(C421,Descriptions!I:M,5,FALSE),\"N\")","v":"N"},true,"NTRUE",0,{"$f":"IFERROR(VLOOKUP(D421,'Bank and Fund Details'!$B$14:$L$35,11,FALSE),\"N\")","v":"Y"},"NY"]
[null,null,null,"General Fund",null,null,null,null,null,{"$f":"VLOOKUP(D422,'Bank and Fund Details'!$B$15:$D$36,3,FALSE)","v":0},{"$f":"VLOOKUP(D422,'Bank and Fund Details'!$B$15:$C$36,2,FALSE)","v":"Unrestricted"},{"$f":"IFERROR(VLOOKUP(C422,Descriptions!$I$6:$K$92,3,FALSE),\"\")","v":""},null,null,null,null,null,null,null,null,null,null,null,null,null,null,"General Fund",null,{"$f":"IFERROR(VLOOKUP(C422,Descriptions!I:M,5,FALSE),\"N\")","v":"N"},true,"NTRUE",0,{"$f":"IFERROR(VLOOKUP(D422,'Bank and Fund Details'!$B$14:$L$35,11,FALSE),\"N\")","v":"Y"},"NY"]
[null,null,null,"General Fund",null,null,null,null,null,{"$f":"VLOOKUP(D423,'Bank and Fund Details'!$B$15:$D$36,3,FALSE)","v":0},{"$f":"VLOOKUP(D423,'Bank and Fund Details'!$B$15:$C$36,2,FALSE)","v":"Unrestricted"},{"$f":"IFERROR(VLOOKUP(C423,Descriptions!$I$6:$K$92,3,FALSE),\"\")","v":""},null,null,null,null,null,null,null,null,null,null,null,null,null,null,"General Fund",null,{"$f":"IFERROR(VLOOKUP(C423,Descriptions!I:M,5,FALSE),\"N\")","v":"N"},true,"NTRUE",0,{"$f":"IFERROR(VLOOKUP(D423,'Bank and Fund Details'!$B$14:$L$35,11,FALSE),\"N\")","v":"Y"},"NY"]
[null,null,null,"General Fund",null,null,null,null,null,{"$f":"VLOOKUP(D424,'Bank and Fund Details'!$B$15:$D$36,3,FALSE)","v":0},{"$f":"VLOOKUP(D424,'Bank and Fund Details'!$B$15:$C$36,2,FALSE)","v":"Unrestricted"},{"$f":"IFERROR(VLOOKUP(C424,Descriptions!$I$6:$K$92,3,FALSE),\"\")","v":""},null,null,null,null,null,null,null,null,null,null,null,null,null,null,"General Fund",null,{"$f":"IFERROR(VLOOKUP(C424,Descriptions!I:M,5,FALSE),\"N\")","v":"N"},true,"NTRUE",0,{"$f":"IFERROR(VLOOKUP(D424,'Bank and Fund Details'!$B$14:$L$35,11,FALSE),\"N\")","v":"Y"},"NY"]
[null,null,null,"General Fund",null,null,null,null,null,{"$f":"VLOOKUP(D425,'Bank and Fund Details'!$B$15:$D$36,3,FALSE)","v":0},{"$f":"VLOOKUP(D425,'Bank and Fund Details'!$B$15:$C$36,2,FALSE)","v":"Unrestricted"},{"$f":"IFERROR(VLOOKUP(C425,Descriptions!$I$6:$K$92,3,FALSE),\"\")","v":""},null,null,null,null,null,null,null,null,null,null,null,null,null,null,"General Fund",null,{"$f":"IFERROR(VLOOKUP(C425,Descriptions!I:M,5,FALSE),\"N\")","v":"N"},true,"NTRUE",0,{"$f":"IFERROR(VLOOKUP(D425,'Bank and Fund Details'!$B$14:$L$35,11,FALSE),\"N\")","v":"Y"},"NY"]
[null,null,null,"General Fund",null,null,null,null,null,{"$f":"VLOOKUP(D426,'Bank and Fund Details'!$B$15:$D$36,3,FALSE)","v":0},{"$f":"VLOOKUP(D426,'Bank and Fund Details'!$B$15:$C$36,2,FALSE)","v":"Unrestricted"},{"$f":"IFERROR(VLOOKUP(C426,Descriptions!$I$6:$K$92,3,FALSE),\"\")","v":""},null,null,null,null,null,null,null,null,null,null,null,null,null,null,"General Fund",null,{"$f":"IFERROR(VLOOKUP(C426,Descriptions!I:M,5,FALSE),\"N\")","v":"N"},true,"NTRUE",0,{"$f":"IFERROR(VLOOKUP(D426,'Bank and Fund Details'!$B$14:$L$35,11,FALSE),\"N\")","v":"Y"},"NY"]
[null,null,null,"General Fund",null,null,null,null,null,{"$f":"VLOOKUP(D427,'Bank and Fund Details'!$B$15:$D$36,3,FALSE)","v":0},{"$f":"VLOOKUP(D427,'Bank and Fund Details'!$B$15:$C$36,2,FALSE)","v":"Unrestricted"},{"$f":"IFERROR(VLOOKUP(C427,Descriptions!$I$6:$K$92,3,FALSE),\"\")","v":""},null,null,null,null,null,null,null,null,null,null,null,null,null,null,"General Fund",null,{"$f":"IFERROR(VLOOKUP(C427,Descriptions!I:M,5,FALSE),\"N\")","v":"N"},true,"NTRUE",0,{"$f":"IFERROR(VLOOKUP(D427,'Bank and Fund Details'!$B$14:$L$35,11,FALSE),\"N\")","v":"Y"},"NY"]
[null,null,null,"General Fund",null,null,null,null,null,{"$f":"VLOOKUP(D428,'Bank and Fund Details'!$B$15:$D$36,3,FALSE)","v":0},{"$f":"VLOOKUP(D428,'Bank and Fund Details'!$B$15:$C$36,2,FALSE)","v":"Unrestricted"},{"$f":"IFERROR(VLOOKUP(C428,Descriptions!$I$6:$K$92,3,FALSE),\"\")","v":""},null,null,null,null,null,null,null,null,null,null,null,null,null,null,"General Fund",null,{"$f":"IFERROR(VLOOKUP(C428,Descriptions!I:M,5,FALSE),\"N\")","v":"N"},true,"NTRUE",0,{"$f":"IFERROR(VLOOKUP(D428,'Bank and Fund Details'!$B$14:$L$35,11,FALSE),\"N\")","v":"Y"},"NY"]
[null,null,null,"General Fund",null,null,null,null,null,{"$f":"VLOOKUP(D429,'Bank and Fund Details'!$B$15:$D$36,3,FALSE)","v":0},{"$f":"VLOOKUP(D429,'Bank and Fund Details'!$B$15:$C$36,2,FALSE)","v":"Unrestricted"},{"$f":"IFERROR(VLOOKUP(C429,Descriptions!$I$6:$K$92,3,FALSE),\"\")","v":""},null,null,null,null,null,null,null,null,null,null,null,null,null,null,"General Fund",null,{"$f":"IFERROR(VLOOKUP(C429,Descriptions!I:M,5,FALSE),\"N\")","v":"N"},true,"NTRUE",0,{"$f":"IFERROR(VLOOKUP(D429,'Bank and Fund Details'!$B$14:$L$35,11,FALSE),\"N\")","v":"Y"},"NY"]
[null,null,null,"General Fund",null,null,null,null,null,{"$f":"VLOOKUP(D430,'Bank and Fund Details'!$B$15:$D$36,3,FALSE)","v":0},{"$f":"VLOOKUP(D430,'Bank and Fund Details'!$B$15:$C$36,2,FALSE)","v":"Unrestricted"},{"$f":"IFERROR(VLOOKUP(C430,Descriptions!$I$6:$K$92,3,FALSE),\"\")","v":""},null,null,null,null,null,null,null,null,null,null,null,null,null,null,"General Fund",null,{"$f":"IFERROR(VLOOKUP(C430,Descriptions!I:M,5,FALSE),\"N\")","v":"N"},true,"NTRUE",0,{"$f":"IFERROR(VLOOKUP(D430,'Bank and Fund Details'!$B$14:$L$35,11,FALSE),\"N\")","v":"Y"},"NY"]
[null,null,null,"General Fund",null,null,null,null,null,{"$f":"VLOOKUP(D431,'Bank and Fund Details'!$B$15:$D$36,3,FALSE)","v":0},{"$f":"VLOOKUP(D431,'Bank and Fund Details'!$B$15:$C$36,2,FALSE)","v":"Unrestricted"},{"$f":"IFERROR(VLOOKUP(C431,Descriptions!$I$6:$K$92,3,FALSE),\"\")","v":""},null,null,null,null,null,null,null,null,null,null,null,null,null,null,"General Fund",null,{"$f":"IFERROR(VLOOKUP(C431,Descriptions!I:M,5,FALSE),\"N\")","v":"N"},true,"NTRUE",0,{"$f":"IFERROR(VLOOKUP(D431,'Bank and Fund Details'!$B$14:$L$35,11,FALSE),\"N\")","v":"Y"},"NY"]
[null,null,null,"General Fund",null,null,null,null,null,{"$f":"VLOOKUP(D432,'Bank and Fund Details'!$B$15:$D$36,3,FALSE)","v":0},{"$f":"VLOOKUP(D432,'Bank and Fund Details'!$B$15:$C$36,2,FALSE)","v":"Unrestricted"},{"$f":"IFERROR(VLOOKUP(C432,Descriptions!$I$6:$K$92,3,FALSE),\"\")","v":""},null,null,null,null,null,null,null,null,null,null,null,null,null,null,"General Fund",null,{"$f":"IFERROR(VLOOKUP(C432,Descriptions!I:M,5,FALSE),\"N\")","v":"N"},true,"NTRUE",0,{"$f":"IFERROR(VLOOKUP(D432,'Bank and Fund Details'!$B$14:$L$35,11,FALSE),\"N\")","v":"Y"},"NY"]
[null,null,null,"General Fund",null,null,null,null,null,{"$f":"VLOOKUP(D433,'Bank and Fund Details'!$B$15:$D$36,3,FALSE)","v":0},{"$f":"VLOOKUP(D433,'Bank and Fund Details'!$B$15:$C$36,2,FALSE)","v":"Unrestricted"},{"$f":"IFERROR(VLOOKUP(C433,Descriptions!$I$6:$K$92,3,FALSE),\"\")","v":""},null,null,null,null,null,null,null,null,null,null,null,null,null,null,"General Fund",null,{"$f":"IFERROR(VLOOKUP(C433,Descriptions!I:M,5,FALSE),\"N\")","v":"N"},true,"NTRUE",0,{"$f":"IFERROR(VLOOKUP(D433,'Bank and Fund Details'!$B$14:$L$35,11,FALSE),\"N\")","v":"Y"},"NY"]
[null,null,null,"General Fund",null,null,null,null,null,{"$f":"VLOOKUP(D434,'Bank and Fund Details'!$B$15:$D$36,3,FALSE)","v":0},{"$f":"VLOOKUP(D434,'Bank and Fund Details'!$B$15:$C$36,2,FALSE)","v":"Unrestricted"},{"$f":"IFERROR(VLOOKUP(C434,Descriptions!$I$6:$K$92,3,FALSE),\"\")","v":""},null,null,null,null,null,null,null,null,null,null,null,null,null,null,"General Fund",null,{"$f":"IFERROR(VLOOKUP(C434,Descriptions!I:M,5,FALSE),\"N\")","v":"N"},true,"NTRUE",0,{"$f":"IFERROR(VLOOKUP(D434,'Bank and Fund Details'!$B$14:$L$35,11,FALSE),\"N\")","v":"Y"},"NY"]
[null,null,null,"General Fund",null,null,null,null,null,{"$f":"VLOOKUP(D435,'Bank and Fund Details'!$B$15:$D$36,3,FALSE)","v":0},{"$f":"VLOOKUP(D435,'Bank and Fund Details'!$B$15:$C$36,2,FALSE)","v":"Unrestricted"},{"$f":"IFERROR(VLOOKUP(C435,Descriptions!$I$6:$K$92,3,FALSE),\"\")","v":""},null,null,null,null,null,null,null,null,null,null,null,null,null,null,"General Fund",null,{"$f":"IFERROR(VLOOKUP(C435,Descriptions!I:M,5,FALSE),\"N\")","v":"N"},true,"NTRUE",0,{"$f":"IFERROR(VLOOKUP(D435,'Bank and Fund Details'!$B$14:$L$35,11,FALSE),\"N\")","v":"Y"},"NY"]
[null,null,null,"General Fund",null,null,null,null,null,{"$f":"VLOOKUP(D436,'Bank and Fund Details'!$B$15:$D$36,3,FALSE)","v":0},{"$f":"VLOOKUP(D436,'Bank and Fund Details'!$B$15:$C$36,2,FALSE)","v":"Unrestricted"},{"$f":"IFERROR(VLOOKUP(C436,Descriptions!$I$6:$K$92,3,FALSE),\"\")","v":""},null,null,null,null,null,null,null,null,null,null,null,null,null,null,"General Fund",null,{"$f":"IFERROR(VLOOKUP(C436,Descriptions!I:M,5,FALSE),\"N\")","v":"N"},true,"NTRUE",0,{"$f":"IFERROR(VLOOKUP(D436,'Bank and Fund Details'!$B$14:$L$35,11,FALSE),\"N\")","v":"Y"},"NY"]
[null,null,null,"General Fund",null,null,null,null,null,{"$f":"VLOOKUP(D437,'Bank and Fund Details'!$B$15:$D$36,3,FALSE)","v":0},{"$f":"VLOOKUP(D437,'Bank and Fund Details'!$B$15:$C$36,2,FALSE)","v":"Unrestricted"},{"$f":"IFERROR(VLOOKUP(C437,Descriptions!$I$6:$K$92,3,FALSE),\"\")","v":""},null,null,null,null,null,null,null,null,null,null,null,null,null,null,"General Fund",null,{"$f":"IFERROR(VLOOKUP(C437,Descriptions!I:M,5,FALSE),\"N\")","v":"N"},true,"NTRUE",0,{"$f":"IFERROR(VLOOKUP(D437,'Bank and Fund Details'!$B$14:$L$35,11,FALSE),\"N\")","v":"Y"},"NY"]
[null,null,null,"General Fund",null,null,null,null,null,{"$f":"VLOOKUP(D438,'Bank and Fund Details'!$B$15:$D$36,3,FALSE)","v":0},{"$f":"VLOOKUP(D438,'Bank and Fund Details'!$B$15:$C$36,2,FALSE)","v":"Unrestricted"},{"$f":"IFERROR(VLOOKUP(C438,Descriptions!$I$6:$K$92,3,FALSE),\"\")","v":""},null,null,null,null,null,null,null,null,null,null,null,null,null,null,"General Fund",null,{"$f":"IFERROR(VLOOKUP(C438,Descriptions!I:M,5,FALSE),\"N\")","v":"N"},true,"NTRUE",0,{"$f":"IFERROR(VLOOKUP(D438,'Bank and Fund Details'!$B$14:$L$35,11,FALSE),\"N\")","v":"Y"},"NY"]
[null,null,null,"General Fund",null,null,null,null,null,{"$f":"VLOOKUP(D439,'Bank and Fund Details'!$B$15:$D$36,3,FALSE)","v":0},{"$f":"VLOOKUP(D439,'Bank and Fund Details'!$B$15:$C$36,2,FALSE)","v":"Unrestricted"},{"$f":"IFERROR(VLOOKUP(C439,Descriptions!$I$6:$K$92,3,FALSE),\"\")","v":""},null,null,null,null,null,null,null,null,null,null,null,null,null,null,"General Fund",null,{"$f":"IFERROR(VLOOKUP(C439,Descriptions!I:M,5,FALSE),\"N\")","v":"N"},true,"NTRUE",0,{"$f":"IFERROR(VLOOKUP(D439,'Bank and Fund Details'!$B$14:$L$35,11,FALSE),\"N\")","v":"Y"},"NY"]
[null,null,null,"General Fund",null,null,null,null,null,{"$f":"VLOOKUP(D440,'Bank and Fund Details'!$B$15:$D$36,3,FALSE)","v":0},{"$f":"VLOOKUP(D440,'Bank and Fund Details'!$B$15:$C$36,2,FALSE)","v":"Unrestricted"},{"$f":"IFERROR(VLOOKUP(C440,Descriptions!$I$6:$K$92,3,FALSE),\"\")","v":""},null,null,null,null,null,null,null,null,null,null,null,null,null,null,"General Fund",null,{"$f":"IFERROR(VLOOKUP(C440,Descriptions!I:M,5,FALSE),\"N\")","v":"N"},true,"NTRUE",0,{"$f":"IFERROR(VLOOKUP(D440,'Bank and Fund Details'!$B$14:$L$35,11,FALSE),\"N\")","v":"Y"},"NY"]
[null,null,null,"General Fund",null,null,null,null,null,{"$f":"VLOOKUP(D441,'Bank and Fund Details'!$B$15:$D$36,3,FALSE)","v":0},{"$f":"VLOOKUP(D441,'Bank and Fund Details'!$B$15:$C$36,2,FALSE)","v":"Unrestricted"},{"$f":"IFERROR(VLOOKUP(C441,Descriptions!$I$6:$K$92,3,FALSE),\"\")","v":""},null,null,null,null,null,null,null,null,null,null,null,null,null,null,"General Fund",null,{"$f":"IFERROR(VLOOKUP(C441,Descriptions!I:M,5,FALSE),\"N\")","v":"N"},true,"NTRUE",0,{"$f":"IFERROR(VLOOKUP(D441,'Bank and Fund Details'!$B$14:$L$35,11,FALSE),\"N\")","v":"Y"},"NY"]
[null,null,null,"General Fund",null,null,null,null,null,{"$f":"VLOOKUP(D442,'Bank and Fund Details'!$B$15:$D$36,3,FALSE)","v":0},{"$f":"VLOOKUP(D442,'Bank and Fund Details'!$B$15:$C$36,2,FALSE)","v":"Unrestricted"},{"$f":"IFERROR(VLOOKUP(C442,Descriptions!$I$6:$K$92,3,FALSE),\"\")","v":""},null,null,null,null,null,null,null,null,null,null,null,null,null,null,"General Fund",null,{"$f":"IFERROR(VLOOKUP(C442,Descriptions!I:M,5,FALSE),\"N\")","v":"N"},true,"NTRUE",0,{"$f":"IFERROR(VLOOKUP(D442,'Bank and Fund Details'!$B$14:$L$35,11,FALSE),\"N\")","v":"Y"},"NY"]
[null,null,null,"General Fund",null,null,null,null,null,{"$f":"VLOOKUP(D443,'Bank and Fund Details'!$B$15:$D$36,3,FALSE)","v":0},{"$f":"VLOOKUP(D443,'Bank and Fund Details'!$B$15:$C$36,2,FALSE)","v":"Unrestricted"},{"$f":"IFERROR(VLOOKUP(C443,Descriptions!$I$6:$K$92,3,FALSE),\"\")","v":""},null,null,null,null,null,null,null,null,null,null,null,null,null,null,"General Fund",null,{"$f":"IFERROR(VLOOKUP(C443,Descriptions!I:M,5,FALSE),\"N\")","v":"N"},true,"NTRUE",0,{"$f":"IFERROR(VLOOKUP(D443,'Bank and Fund Details'!$B$14:$L$35,11,FALSE),\"N\")","v":"Y"},"NY"]
[null,null,null,"General Fund",null,null,null,null,null,{"$f":"VLOOKUP(D444,'Bank and Fund Details'!$B$15:$D$36,3,FALSE)","v":0},{"$f":"VLOOKUP(D444,'Bank and Fund Details'!$B$15:$C$36,2,FALSE)","v":"Unrestricted"},{"$f":"IFERROR(VLOOKUP(C444,Descriptions!$I$6:$K$92,3,FALSE),\"\")","v":""},null,null,null,null,null,null,null,null,null,null,null,null,null,null,"General Fund",null,{"$f":"IFERROR(VLOOKUP(C444,Descriptions!I:M,5,FALSE),\"N\")","v":"N"},true,"NTRUE",0,{"$f":"IFERROR(VLOOKUP(D444,'Bank and Fund Details'!$B$14:$L$35,11,FALSE),\"N\")","v":"Y"},"NY"]
[null,null,null,"General Fund",null,null,null,null,null,{"$f":"VLOOKUP(D445,'Bank and Fund Details'!$B$15:$D$36,3,FALSE)","v":0},{"$f":"VLOOKUP(D445,'Bank and Fund Details'!$B$15:$C$36,2,FALSE)","v":"Unrestricted"},{"$f":"IFERROR(VLOOKUP(C445,Descriptions!$I$6:$K$92,3,FALSE),\"\")","v":""},null,null,null,null,null,null,null,null,null,null,null,null,null,null,"General Fund",null,{"$f":"IFERROR(VLOOKUP(C445,Descriptions!I:M,5,FALSE),\"N\")","v":"N"},true,"NTRUE",0,{"$f":"IFERROR(VLOOKUP(D445,'Bank and Fund Details'!$B$14:$L$35,11,FALSE),\"N\")","v":"Y"},"NY"]
[null,null,null,"General Fund",null,null,null,null,null,{"$f":"VLOOKUP(D446,'Bank and Fund Details'!$B$15:$D$36,3,FALSE)","v":0},{"$f":"VLOOKUP(D446,'Bank and Fund Details'!$B$15:$C$36,2,FALSE)","v":"Unrestricted"},{"$f":"IFERROR(VLOOKUP(C446,Descriptions!$I$6:$K$92,3,FALSE),\"\")","v":""},null,null,null,null,null,null,null,null,null,null,null,null,null,null,"General Fund",null,{"$f":"IFERROR(VLOOKUP(C446,Descriptions!I:M,5,FALSE),\"N\")","v":"N"},true,"NTRUE",0,{"$f":"IFERROR(VLOOKUP(D446,'Bank and Fund Details'!$B$14:$L$35,11,FALSE),\"N\")","v":"Y"},"NY"]
[null,null,null,"General Fund",null,null,null,null,null,{"$f":"VLOOKUP(D447,'Bank and Fund Details'!$B$15:$D$36,3,FALSE)","v":0},{"$f":"VLOOKUP(D447,'Bank and Fund Details'!$B$15:$C$36,2,FALSE)","v":"Unrestricted"},{"$f":"IFERROR(VLOOKUP(C447,Descriptions!$I$6:$K$92,3,FALSE),\"\")","v":""},null,null,null,null,null,null,null,null,null,null,null,null,null,null,"General Fund",null,{"$f":"IFERROR(VLOOKUP(C447,Descriptions!I:M,5,FALSE),\"N\")","v":"N"},true,"NTRUE",0,{"$f":"IFERROR(VLOOKUP(D447,'Bank and Fund Details'!$B$14:$L$35,11,FALSE),\"N\")","v":"Y"},"NY"]
[null,null,null,"General Fund",null,null,null,null,null,{"$f":"VLOOKUP(D448,'Bank and Fund Details'!$B$15:$D$36,3,FALSE)","v":0},{"$f":"VLOOKUP(D448,'Bank and Fund Details'!$B$15:$C$36,2,FALSE)","v":"Unrestricted"},{"$f":"IFERROR(VLOOKUP(C448,Descriptions!$I$6:$K$92,3,FALSE),\"\")","v":""},null,null,null,null,null,null,null,null,null,null,null,null,null,null,"General Fund",null,{"$f":"IFERROR(VLOOKUP(C448,Descriptions!I:M,5,FALSE),\"N\")","v":"N"},true,"NTRUE",0,{"$f":"IFERROR(VLOOKUP(D448,'Bank and Fund Details'!$B$14:$L$35,11,FALSE),\"N\")","v":"Y"},"NY"]
[null,null,null,"General Fund",null,null,null,null,null,{"$f":"VLOOKUP(D449,'Bank and Fund Details'!$B$15:$D$36,3,FALSE)","v":0},{"$f":"VLOOKUP(D449,'Bank and Fund Details'!$B$15:$C$36,2,FALSE)","v":"Unrestricted"},{"$f":"IFERROR(VLOOKUP(C449,Descriptions!$I$6:$K$92,3,FALSE),\"\")","v":""},null,null,null,null,null,null,null,null,null,null,null,null,null,null,"General Fund",null,{"$f":"IFERROR(VLOOKUP(C449,Descriptions!I:M,5,FALSE),\"N\")","v":"N"},true,"NTRUE",0,{"$f":"IFERROR(VLOOKUP(D449,'Bank and Fund Details'!$B$14:$L$35,11,FALSE),\"N\")","v":"Y"},"NY"]
[null,null,null,"General Fund",null,null,null,null,null,{"$f":"VLOOKUP(D450,'Bank and Fund Details'!$B$15:$D$36,3,FALSE)","v":0},{"$f":"VLOOKUP(D450,'Bank and Fund Details'!$B$15:$C$36,2,FALSE)","v":"Unrestricted"},{"$f":"IFERROR(VLOOKUP(C450,Descriptions!$I$6:$K$92,3,FALSE),\"\")","v":""},null,null,null,null,null,null,null,null,null,null,null,null,null,null,"General Fund",null,{"$f":"IFERROR(VLOOKUP(C450,Descriptions!I:M,5,FALSE),\"N\")","v":"N"},true,"NTRUE",0,{"$f":"IFERROR(VLOOKUP(D450,'Bank and Fund Details'!$B$14:$L$35,11,FALSE),\"N\")","v":"Y"},"NY"]
[null,null,null,"General Fund",null,null,null,null,null,{"$f":"VLOOKUP(D451,'Bank and Fund Details'!$B$15:$D$36,3,FALSE)","v":0},{"$f":"VLOOKUP(D451,'Bank and Fund Details'!$B$15:$C$36,2,FALSE)","v":"Unrestricted"},{"$f":"IFERROR(VLOOKUP(C451,Descriptions!$I$6:$K$92,3,FALSE),\"\")","v":""},null,null,null,null,null,null,null,null,null,null,null,null,null,null,"General Fund",null,{"$f":"IFERROR(VLOOKUP(C451,Descriptions!I:M,5,FALSE),\"N\")","v":"N"},true,"NTRUE",0,{"$f":"IFERROR(VLOOKUP(D451,'Bank and Fund Details'!$B$14:$L$35,11,FALSE),\"N\")","v":"Y"},"NY"]
[null,null,null,"General Fund",null,null,null,null,null,{"$f":"VLOOKUP(D452,'Bank and Fund Details'!$B$15:$D$36,3,FALSE)","v":0},{"$f":"VLOOKUP(D452,'Bank and Fund Details'!$B$15:$C$36,2,FALSE)","v":"Unrestricted"},{"$f":"IFERROR(VLOOKUP(C452,Descriptions!$I$6:$K$92,3,FALSE),\"\")","v":""},null,null,null,null,null,null,null,null,null,null,null,null,null,null,"General Fund",null,{"$f":"IFERROR(VLOOKUP(C452,Descriptions!I:M,5,FALSE),\"N\")","v":"N"},true,"NTRUE",0,{"$f":"IFERROR(VLOOKUP(D452,'Bank and Fund Details'!$B$14:$L$35,11,FALSE),\"N\")","v":"Y"},"NY"]
[null,null,null,"General Fund",null,null,null,null,null,{"$f":"VLOOKUP(D453,'Bank and Fund Details'!$B$15:$D$36,3,FALSE)","v":0},{"$f":"VLOOKUP(D453,'Bank and Fund Details'!$B$15:$C$36,2,FALSE)","v":"Unrestricted"},{"$f":"IFERROR(VLOOKUP(C453,Descriptions!$I$6:$K$92,3,FALSE),\"\")","v":""},null,null,null,null,null,null,null,null,null,null,null,null,null,null,"General Fund",null,{"$f":"IFERROR(VLOOKUP(C453,Descriptions!I:M,5,FALSE),\"N\")","v":"N"},true,"NTRUE",0,{"$f":"IFERROR(VLOOKUP(D453,'Bank and Fund Details'!$B$14:$L$35,11,FALSE),\"N\")","v":"Y"},"NY"]
[null,null,null,"General Fund",null,null,null,null,null,{"$f":"VLOOKUP(D454,'Bank and Fund Details'!$B$15:$D$36,3,FALSE)","v":0},{"$f":"VLOOKUP(D454,'Bank and Fund Details'!$B$15:$C$36,2,FALSE)","v":"Unrestricted"},{"$f":"IFERROR(VLOOKUP(C454,Descriptions!$I$6:$K$92,3,FALSE),\"\")","v":""},null,null,null,null,null,null,null,null,null,null,null,null,null,null,{"$f":"CONCATENATE(C454,D454)","v":"General Fund"},null,{"$f":"IFERROR(VLOOKUP(C454,Descriptions!I:M,5,FALSE),\"N\")","v":"N"},{"$f":"ISBLANK(C454)","v":true},{"$f":"CONCATENATE(AC454,AD454)","v":"NTRUE"},{"$f":"IF(AE454=\"NFALSE\",1,0)","v":0},{"$f":"IFERROR(VLOOKUP(D454,'Bank and Fund Details'!$B$14:$L$35,11,FALSE),\"N\")","v":"Y"},{"$f":"CONCATENATE(AC454,AG454)","v":"NY"}]
[null,null,null,"General Fund",null,null,null,null,null,{"$f":"VLOOKUP(D455,'Bank and Fund Details'!$B$15:$D$36,3,FALSE)","v":0},{"$f":"VLOOKUP(D455,'Bank and Fund Details'!$B$15:$C$36,2,FALSE)","v":"Unrestricted"},{"$f":"IFERROR(VLOOKUP(C455,Descriptions!$I$6:$K$92,3,FALSE),\"\")","v":""},null,null,null,null,null,null,null,null,null,null,null,null,null,null,"General Fund",null,{"$f":"IFERROR(VLOOKUP(C455,Descriptions!I:M,5,FALSE),\"N\")","v":"N"},true,"NTRUE",0,{"$f":"IFERROR(VLOOKUP(D455,'Bank and Fund Details'!$B$14:$L$35,11,FALSE),\"N\")","v":"Y"},"NY"]
[null,null,null,"General Fund",null,null,null,null,null,{"$f":"VLOOKUP(D456,'Bank and Fund Details'!$B$15:$D$36,3,FALSE)","v":0},{"$f":"VLOOKUP(D456,'Bank and Fund Details'!$B$15:$C$36,2,FALSE)","v":"Unrestricted"},{"$f":"IFERROR(VLOOKUP(C456,Descriptions!$I$6:$K$92,3,FALSE),\"\")","v":""},null,null,null,null,null,null,null,null,null,null,null,null,null,null,"General Fund",null,{"$f":"IFERROR(VLOOKUP(C456,Descriptions!I:M,5,FALSE),\"N\")","v":"N"},true,"NTRUE",0,{"$f":"IFERROR(VLOOKUP(D456,'Bank and Fund Details'!$B$14:$L$35,11,FALSE),\"N\")","v":"Y"},"NY"]
[null,null,null,"General Fund",null,null,null,null,null,{"$f":"VLOOKUP(D457,'Bank and Fund Details'!$B$15:$D$36,3,FALSE)","v":0},{"$f":"VLOOKUP(D457,'Bank and Fund Details'!$B$15:$C$36,2,FALSE)","v":"Unrestricted"},{"$f":"IFERROR(VLOOKUP(C457,Descriptions!$I$6:$K$92,3,FALSE),\"\")","v":""},null,null,null,null,null,null,null,null,null,null,null,null,null,null,"General Fund",null,{"$f":"IFERROR(VLOOKUP(C457,Descriptions!I:M,5,FALSE),\"N\")","v":"N"},true,"NTRUE",0,{"$f":"IFERROR(VLOOKUP(D457,'Bank and Fund Details'!$B$14:$L$35,11,FALSE),\"N\")","v":"Y"},"NY"]
[null,null,null,"General Fund",null,null,null,null,null,{"$f":"VLOOKUP(D458,'Bank and Fund Details'!$B$15:$D$36,3,FALSE)","v":0},{"$f":"VLOOKUP(D458,'Bank and Fund Details'!$B$15:$C$36,2,FALSE)","v":"Unrestricted"},{"$f":"IFERROR(VLOOKUP(C458,Descriptions!$I$6:$K$92,3,FALSE),\"\")","v":""},null,null,null,null,null,null,null,null,null,null,null,null,null,null,"General Fund",null,{"$f":"IFERROR(VLOOKUP(C458,Descriptions!I:M,5,FALSE),\"N\")","v":"N"},true,"NTRUE",0,{"$f":"IFERROR(VLOOKUP(D458,'Bank and Fund Details'!$B$14:$L$35,11,FALSE),\"N\")","v":"Y"},"NY"]
[null,null,null,"General Fund",null,null,null,null,null,{"$f":"VLOOKUP(D459,'Bank and Fund Details'!$B$15:$D$36,3,FALSE)","v":0},{"$f":"VLOOKUP(D459,'Bank and Fund Details'!$B$15:$C$36,2,FALSE)","v":"Unrestricted"},{"$f":"IFERROR(VLOOKUP(C459,Descriptions!$I$6:$K$92,3,FALSE),\"\")","v":""},null,null,null,null,null,null,null,null,null,null,null,null,null,null,"General Fund",null,{"$f":"IFERROR(VLOOKUP(C459,Descriptions!I:M,5,FALSE),\"N\")","v":"N"},true,"NTRUE",0,{"$f":"IFERROR(VLOOKUP(D459,'Bank and Fund Details'!$B$14:$L$35,11,FALSE),\"N\")","v":"Y"},"NY"]
[null,null,null,"General Fund",null,null,null,null,null,{"$f":"VLOOKUP(D460,'Bank and Fund Details'!$B$15:$D$36,3,FALSE)","v":0},{"$f":"VLOOKUP(D460,'Bank and Fund Details'!$B$15:$C$36,2,FALSE)","v":"Unrestricted"},{"$f":"IFERROR(VLOOKUP(C460,Descriptions!$I$6:$K$92,3,FALSE),\"\")","v":""},null,null,null,null,null,null,null,null,null,null,null,null,null,null,"General Fund",null,{"$f":"IFERROR(VLOOKUP(C460,Descriptions!I:M,5,FALSE),\"N\")","v":"N"},true,"NTRUE",0,{"$f":"IFERROR(VLOOKUP(D460,'Bank and Fund Details'!$B$14:$L$35,11,FALSE),\"N\")","v":"Y"},"NY"]
[null,null,null,"General Fund",null,null,null,null,null,{"$f":"VLOOKUP(D461,'Bank and Fund Details'!$B$15:$D$36,3,FALSE)","v":0},{"$f":"VLOOKUP(D461,'Bank and Fund Details'!$B$15:$C$36,2,FALSE)","v":"Unrestricted"},{"$f":"IFERROR(VLOOKUP(C461,Descriptions!$I$6:$K$92,3,FALSE),\"\")","v":""},null,null,null,null,null,null,null,null,null,null,null,null,null,null,"General Fund",null,{"$f":"IFERROR(VLOOKUP(C461,Descriptions!I:M,5,FALSE),\"N\")","v":"N"},true,"NTRUE",0,{"$f":"IFERROR(VLOOKUP(D461,'Bank and Fund Details'!$B$14:$L$35,11,FALSE),\"N\")","v":"Y"},"NY"]
[null,null,null,"General Fund",null,null,null,null,null,{"$f":"VLOOKUP(D462,'Bank and Fund Details'!$B$15:$D$36,3,FALSE)","v":0},{"$f":"VLOOKUP(D462,'Bank and Fund Details'!$B$15:$C$36,2,FALSE)","v":"Unrestricted"},{"$f":"IFERROR(VLOOKUP(C462,Descriptions!$I$6:$K$92,3,FALSE),\"\")","v":""},null,null,null,null,null,null,null,null,null,null,null,null,null,null,"General Fund",null,{"$f":"IFERROR(VLOOKUP(C462,Descriptions!I:M,5,FALSE),\"N\")","v":"N"},true,"NTRUE",0,{"$f":"IFERROR(VLOOKUP(D462,'Bank and Fund Details'!$B$14:$L$35,11,FALSE),\"N\")","v":"Y"},"NY"]
[null,null,null,"General Fund",null,null,null,null,null,{"$f":"VLOOKUP(D463,'Bank and Fund Details'!$B$15:$D$36,3,FALSE)","v":0},{"$f":"VLOOKUP(D463,'Bank and Fund Details'!$B$15:$C$36,2,FALSE)","v":"Unrestricted"},{"$f":"IFERROR(VLOOKUP(C463,Descriptions!$I$6:$K$92,3,FALSE),\"\")","v":""},null,null,null,null,null,null,null,null,null,null,null,null,null,null,"General Fund",null,{"$f":"IFERROR(VLOOKUP(C463,Descriptions!I:M,5,FALSE),\"N\")","v":"N"},true,"NTRUE",0,{"$f":"IFERROR(VLOOKUP(D463,'Bank and Fund Details'!$B$14:$L$35,11,FALSE),\"N\")","v":"Y"},"NY"]
[null,null,null,"General Fund",null,null,null,null,null,{"$f":"VLOOKUP(D464,'Bank and Fund Details'!$B$15:$D$36,3,FALSE)","v":0},{"$f":"VLOOKUP(D464,'Bank and Fund Details'!$B$15:$C$36,2,FALSE)","v":"Unrestricted"},{"$f":"IFERROR(VLOOKUP(C464,Descriptions!$I$6:$K$92,3,FALSE),\"\")","v":""},null,null,null,null,null,null,null,null,null,null,null,null,null,null,"General Fund",null,{"$f":"IFERROR(VLOOKUP(C464,Descriptions!I:M,5,FALSE),\"N\")","v":"N"},true,"NTRUE",0,{"$f":"IFERROR(VLOOKUP(D464,'Bank and Fund Details'!$B$14:$L$35,11,FALSE),\"N\")","v":"Y"},"NY"]
[null,null,null,"General Fund",null,null,null,null,null,{"$f":"VLOOKUP(D465,'Bank and Fund Details'!$B$15:$D$36,3,FALSE)","v":0},{"$f":"VLOOKUP(D465,'Bank and Fund Details'!$B$15:$C$36,2,FALSE)","v":"Unrestricted"},{"$f":"IFERROR(VLOOKUP(C465,Descriptions!$I$6:$K$92,3,FALSE),\"\")","v":""},null,null,null,null,null,null,null,null,null,null,null,null,null,null,"General Fund",null,{"$f":"IFERROR(VLOOKUP(C465,Descriptions!I:M,5,FALSE),\"N\")","v":"N"},true,"NTRUE",0,{"$f":"IFERROR(VLOOKUP(D465,'Bank and Fund Details'!$B$14:$L$35,11,FALSE),\"N\")","v":"Y"},"NY"]
[null,null,null,"General Fund",null,null,null,null,null,{"$f":"VLOOKUP(D466,'Bank and Fund Details'!$B$15:$D$36,3,FALSE)","v":0},{"$f":"VLOOKUP(D466,'Bank and Fund Details'!$B$15:$C$36,2,FALSE)","v":"Unrestricted"},{"$f":"IFERROR(VLOOKUP(C466,Descriptions!$I$6:$K$92,3,FALSE),\"\")","v":""},null,null,null,null,null,null,null,null,null,null,null,null,null,null,"General Fund",null,{"$f":"IFERROR(VLOOKUP(C466,Descriptions!I:M,5,FALSE),\"N\")","v":"N"},true,"NTRUE",0,{"$f":"IFERROR(VLOOKUP(D466,'Bank and Fund Details'!$B$14:$L$35,11,FALSE),\"N\")","v":"Y"},"NY"]
[null,null,null,"General Fund",null,null,null,null,null,{"$f":"VLOOKUP(D467,'Bank and Fund Details'!$B$15:$D$36,3,FALSE)","v":0},{"$f":"VLOOKUP(D467,'Bank and Fund Details'!$B$15:$C$36,2,FALSE)","v":"Unrestricted"},{"$f":"IFERROR(VLOOKUP(C467,Descriptions!$I$6:$K$92,3,FALSE),\"\")","v":""},null,null,null,null,null,null,null,null,null,null,null,null,null,null,"General Fund",null,{"$f":"IFERROR(VLOOKUP(C467,Descriptions!I:M,5,FALSE),\"N\")","v":"N"},true,"NTRUE",0,{"$f":"IFERROR(VLOOKUP(D467,'Bank and Fund Details'!$B$14:$L$35,11,FALSE),\"N\")","v":"Y"},"NY"]
[null,null,null,"General Fund",null,null,null,null,null,{"$f":"VLOOKUP(D468,'Bank and Fund Details'!$B$15:$D$36,3,FALSE)","v":0},{"$f":"VLOOKUP(D468,'Bank and Fund Details'!$B$15:$C$36,2,FALSE)","v":"Unrestricted"},{"$f":"IFERROR(VLOOKUP(C468,Descriptions!$I$6:$K$92,3,FALSE),\"\")","v":""},null,null,null,null,null,null,null,null,null,null,null,null,null,null,"General Fund",null,{"$f":"IFERROR(VLOOKUP(C468,Descriptions!I:M,5,FALSE),\"N\")","v":"N"},true,"NTRUE",0,{"$f":"IFERROR(VLOOKUP(D468,'Bank and Fund Details'!$B$14:$L$35,11,FALSE),\"N\")","v":"Y"},"NY"]
[null,null,null,"General Fund",null,null,null,null,null,{"$f":"VLOOKUP(D469,'Bank and Fund Details'!$B$15:$D$36,3,FALSE)","v":0},{"$f":"VLOOKUP(D469,'Bank and Fund Details'!$B$15:$C$36,2,FALSE)","v":"Unrestricted"},{"$f":"IFERROR(VLOOKUP(C469,Descriptions!$I$6:$K$92,3,FALSE),\"\")","v":""},null,null,null,null,null,null,null,null,null,null,null,null,null,null,"General Fund",null,{"$f":"IFERROR(VLOOKUP(C469,Descriptions!I:M,5,FALSE),\"N\")","v":"N"},true,"NTRUE",0,{"$f":"IFERROR(VLOOKUP(D469,'Bank and Fund Details'!$B$14:$L$35,11,FALSE),\"N\")","v":"Y"},"NY"]
[null,null,null,"General Fund",null,null,null,null,null,{"$f":"VLOOKUP(D470,'Bank and Fund Details'!$B$15:$D$36,3,FALSE)","v":0},{"$f":"VLOOKUP(D470,'Bank and Fund Details'!$B$15:$C$36,2,FALSE)","v":"Unrestricted"},{"$f":"IFERROR(VLOOKUP(C470,Descriptions!$I$6:$K$92,3,FALSE),\"\")","v":""},null,null,null,null,null,null,null,null,null,null,null,null,null,null,"General Fund",null,{"$f":"IFERROR(VLOOKUP(C470,Descriptions!I:M,5,FALSE),\"N\")","v":"N"},true,"NTRUE",0,{"$f":"IFERROR(VLOOKUP(D470,'Bank and Fund Details'!$B$14:$L$35,11,FALSE),\"N\")","v":"Y"},"NY"]
[null,null,null,"General Fund",null,null,null,null,null,{"$f":"VLOOKUP(D471,'Bank and Fund Details'!$B$15:$D$36,3,FALSE)","v":0},{"$f":"VLOOKUP(D471,'Bank and Fund Details'!$B$15:$C$36,2,FALSE)","v":"Unrestricted"},{"$f":"IFERROR(VLOOKUP(C471,Descriptions!$I$6:$K$92,3,FALSE),\"\")","v":""},null,null,null,null,null,null,null,null,null,null,null,null,null,null,"General Fund",null,{"$f":"IFERROR(VLOOKUP(C471,Descriptions!I:M,5,FALSE),\"N\")","v":"N"},true,"NTRUE",0,{"$f":"IFERROR(VLOOKUP(D471,'Bank and Fund Details'!$B$14:$L$35,11,FALSE),\"N\")","v":"Y"},"NY"]
[null,null,null,"General Fund",null,null,null,null,null,{"$f":"VLOOKUP(D472,'Bank and Fund Details'!$B$15:$D$36,3,FALSE)","v":0},{"$f":"VLOOKUP(D472,'Bank and Fund Details'!$B$15:$C$36,2,FALSE)","v":"Unrestricted"},{"$f":"IFERROR(VLOOKUP(C472,Descriptions!$I$6:$K$92,3,FALSE),\"\")","v":""},null,null,null,null,null,null,null,null,null,null,null,null,null,null,"General Fund",null,{"$f":"IFERROR(VLOOKUP(C472,Descriptions!I:M,5,FALSE),\"N\")","v":"N"},true,"NTRUE",0,{"$f":"IFERROR(VLOOKUP(D472,'Bank and Fund Details'!$B$14:$L$35,11,FALSE),\"N\")","v":"Y"},"NY"]
[null,null,null,"General Fund",null,null,null,null,null,{"$f":"VLOOKUP(D473,'Bank and Fund Details'!$B$15:$D$36,3,FALSE)","v":0},{"$f":"VLOOKUP(D473,'Bank and Fund Details'!$B$15:$C$36,2,FALSE)","v":"Unrestricted"},{"$f":"IFERROR(VLOOKUP(C473,Descriptions!$I$6:$K$92,3,FALSE),\"\")","v":""},null,null,null,null,null,null,null,null,null,null,null,null,null,null,"General Fund",null,{"$f":"IFERROR(VLOOKUP(C473,Descriptions!I:M,5,FALSE),\"N\")","v":"N"},true,"NTRUE",0,{"$f":"IFERROR(VLOOKUP(D473,'Bank and Fund Details'!$B$14:$L$35,11,FALSE),\"N\")","v":"Y"},"NY"]
[null,null,null,"General Fund",null,null,null,null,null,{"$f":"VLOOKUP(D474,'Bank and Fund Details'!$B$15:$D$36,3,FALSE)","v":0},{"$f":"VLOOKUP(D474,'Bank and Fund Details'!$B$15:$C$36,2,FALSE)","v":"Unrestricted"},{"$f":"IFERROR(VLOOKUP(C474,Descriptions!$I$6:$K$92,3,FALSE),\"\")","v":""},null,null,null,null,null,null,null,null,null,null,null,null,null,null,"General Fund",null,{"$f":"IFERROR(VLOOKUP(C474,Descriptions!I:M,5,FALSE),\"N\")","v":"N"},true,"NTRUE",0,{"$f":"IFERROR(VLOOKUP(D474,'Bank and Fund Details'!$B$14:$L$35,11,FALSE),\"N\")","v":"Y"},"NY"]
[null,null,null,"General Fund",null,null,null,null,null,{"$f":"VLOOKUP(D475,'Bank and Fund Details'!$B$15:$D$36,3,FALSE)","v":0},{"$f":"VLOOKUP(D475,'Bank and Fund Details'!$B$15:$C$36,2,FALSE)","v":"Unrestricted"},{"$f":"IFERROR(VLOOKUP(C475,Descriptions!$I$6:$K$92,3,FALSE),\"\")","v":""},null,null,null,null,null,null,null,null,null,null,null,null,null,null,"General Fund",null,{"$f":"IFERROR(VLOOKUP(C475,Descriptions!I:M,5,FALSE),\"N\")","v":"N"},true,"NTRUE",0,{"$f":"IFERROR(VLOOKUP(D475,'Bank and Fund Details'!$B$14:$L$35,11,FALSE),\"N\")","v":"Y"},"NY"]
[null,null,null,"General Fund",null,null,null,null,null,{"$f":"VLOOKUP(D476,'Bank and Fund Details'!$B$15:$D$36,3,FALSE)","v":0},{"$f":"VLOOKUP(D476,'Bank and Fund Details'!$B$15:$C$36,2,FALSE)","v":"Unrestricted"},{"$f":"IFERROR(VLOOKUP(C476,Descriptions!$I$6:$K$92,3,FALSE),\"\")","v":""},null,null,null,null,null,null,null,null,null,null,null,null,null,null,"General Fund",null,{"$f":"IFERROR(VLOOKUP(C476,Descriptions!I:M,5,FALSE),\"N\")","v":"N"},true,"NTRUE",0,{"$f":"IFERROR(VLOOKUP(D476,'Bank and Fund Details'!$B$14:$L$35,11,FALSE),\"N\")","v":"Y"},"NY"]
[null,null,null,"General Fund",null,null,null,null,null,{"$f":"VLOOKUP(D477,'Bank and Fund Details'!$B$15:$D$36,3,FALSE)","v":0},{"$f":"VLOOKUP(D477,'Bank and Fund Details'!$B$15:$C$36,2,FALSE)","v":"Unrestricted"},{"$f":"IFERROR(VLOOKUP(C477,Descriptions!$I$6:$K$92,3,FALSE),\"\")","v":""},null,null,null,null,null,null,null,null,null,null,null,null,null,null,"General Fund",null,{"$f":"IFERROR(VLOOKUP(C477,Descriptions!I:M,5,FALSE),\"N\")","v":"N"},true,"NTRUE",0,{"$f":"IFERROR(VLOOKUP(D477,'Bank and Fund Details'!$B$14:$L$35,11,FALSE),\"N\")","v":"Y"},"NY"]
[null,null,null,"General Fund",null,null,null,null,null,{"$f":"VLOOKUP(D478,'Bank and Fund Details'!$B$15:$D$36,3,FALSE)","v":0},{"$f":"VLOOKUP(D478,'Bank and Fund Details'!$B$15:$C$36,2,FALSE)","v":"Unrestricted"},{"$f":"IFERROR(VLOOKUP(C478,Descriptions!$I$6:$K$92,3,FALSE),\"\")","v":""},null,null,null,null,null,null,null,null,null,null,null,null,null,null,"General Fund",null,{"$f":"IFERROR(VLOOKUP(C478,Descriptions!I:M,5,FALSE),\"N\")","v":"N"},true,"NTRUE",0,{"$f":"IFERROR(VLOOKUP(D478,'Bank and Fund Details'!$B$14:$L$35,11,FALSE),\"N\")","v":"Y"},"NY"]
[null,null,null,"General Fund",null,null,null,null,null,{"$f":"VLOOKUP(D479,'Bank and Fund Details'!$B$15:$D$36,3,FALSE)","v":0},{"$f":"VLOOKUP(D479,'Bank and Fund Details'!$B$15:$C$36,2,FALSE)","v":"Unrestricted"},{"$f":"IFERROR(VLOOKUP(C479,Descriptions!$I$6:$K$92,3,FALSE),\"\")","v":""},null,null,null,null,null,null,null,null,null,null,null,null,null,null,"General Fund",null,{"$f":"IFERROR(VLOOKUP(C479,Descriptions!I:M,5,FALSE),\"N\")","v":"N"},true,"NTRUE",0,{"$f":"IFERROR(VLOOKUP(D479,'Bank and Fund Details'!$B$14:$L$35,11,FALSE),\"N\")","v":"Y"},"NY"]
[null,null,null,"General Fund",null,null,null,null,null,{"$f":"VLOOKUP(D480,'Bank and Fund Details'!$B$15:$D$36,3,FALSE)","v":0},{"$f":"VLOOKUP(D480,'Bank and Fund Details'!$B$15:$C$36,2,FALSE)","v":"Unrestricted"},{"$f":"IFERROR(VLOOKUP(C480,Descriptions!$I$6:$K$92,3,FALSE),\"\")","v":""},null,null,null,null,null,null,null,null,null,null,null,null,null,null,"General Fund",null,{"$f":"IFERROR(VLOOKUP(C480,Descriptions!I:M,5,FALSE),\"N\")","v":"N"},true,"NTRUE",0,{"$f":"IFERROR(VLOOKUP(D480,'Bank and Fund Details'!$B$14:$L$35,11,FALSE),\"N\")","v":"Y"},"NY"]
[null,null,null,"General Fund",null,null,null,null,null,{"$f":"VLOOKUP(D481,'Bank and Fund Details'!$B$15:$D$36,3,FALSE)","v":0},{"$f":"VLOOKUP(D481,'Bank and Fund Details'!$B$15:$C$36,2,FALSE)","v":"Unrestricted"},{"$f":"IFERROR(VLOOKUP(C481,Descriptions!$I$6:$K$92,3,FALSE),\"\")","v":""},null,null,null,null,null,null,null,null,null,null,null,null,null,null,"General Fund",null,{"$f":"IFERROR(VLOOKUP(C481,Descriptions!I:M,5,FALSE),\"N\")","v":"N"},true,"NTRUE",0,{"$f":"IFERROR(VLOOKUP(D481,'Bank and Fund Details'!$B$14:$L$35,11,FALSE),\"N\")","v":"Y"},"NY"]
[null,null,null,"General Fund",null,null,null,null,null,{"$f":"VLOOKUP(D482,'Bank and Fund Details'!$B$15:$D$36,3,FALSE)","v":0},{"$f":"VLOOKUP(D482,'Bank and Fund Details'!$B$15:$C$36,2,FALSE)","v":"Unrestricted"},{"$f":"IFERROR(VLOOKUP(C482,Descriptions!$I$6:$K$92,3,FALSE),\"\")","v":""},null,null,null,null,null,null,null,null,null,null,null,null,null,null,"General Fund",null,{"$f":"IFERROR(VLOOKUP(C482,Descriptions!I:M,5,FALSE),\"N\")","v":"N"},true,"NTRUE",0,{"$f":"IFERROR(VLOOKUP(D482,'Bank and Fund Details'!$B$14:$L$35,11,FALSE),\"N\")","v":"Y"},"NY"]
[null,null,null,"General Fund",null,null,null,null,null,{"$f":"VLOOKUP(D483,'Bank and Fund Details'!$B$15:$D$36,3,FALSE)","v":0},{"$f":"VLOOKUP(D483,'Bank and Fund Details'!$B$15:$C$36,2,FALSE)","v":"Unrestricted"},{"$f":"IFERROR(VLOOKUP(C483,Descriptions!$I$6:$K$92,3,FALSE),\"\")","v":""},null,null,null,null,null,null,null,null,null,null,null,null,null,null,"General Fund",null,{"$f":"IFERROR(VLOOKUP(C483,Descriptions!I:M,5,FALSE),\"N\")","v":"N"},true,"NTRUE",0,{"$f":"IFERROR(VLOOKUP(D483,'Bank and Fund Details'!$B$14:$L$35,11,FALSE),\"N\")","v":"Y"},"NY"]
[null,null,null,"General Fund",null,null,null,null,null,{"$f":"VLOOKUP(D484,'Bank and Fund Details'!$B$15:$D$36,3,FALSE)","v":0},{"$f":"VLOOKUP(D484,'Bank and Fund Details'!$B$15:$C$36,2,FALSE)","v":"Unrestricted"},{"$f":"IFERROR(VLOOKUP(C484,Descriptions!$I$6:$K$92,3,FALSE),\"\")","v":""},null,null,null,null,null,null,null,null,null,null,null,null,null,null,"General Fund",null,{"$f":"IFERROR(VLOOKUP(C484,Descriptions!I:M,5,FALSE),\"N\")","v":"N"},true,"NTRUE",0,{"$f":"IFERROR(VLOOKUP(D484,'Bank and Fund Details'!$B$14:$L$35,11,FALSE),\"N\")","v":"Y"},"NY"]
[null,null,null,"General Fund",null,null,null,null,null,{"$f":"VLOOKUP(D485,'Bank and Fund Details'!$B$15:$D$36,3,FALSE)","v":0},{"$f":"VLOOKUP(D485,'Bank and Fund Details'!$B$15:$C$36,2,FALSE)","v":"Unrestricted"},{"$f":"IFERROR(VLOOKUP(C485,Descriptions!$I$6:$K$92,3,FALSE),\"\")","v":""},null,null,null,null,null,null,null,null,null,null,null,null,null,null,"General Fund",null,{"$f":"IFERROR(VLOOKUP(C485,Descriptions!I:M,5,FALSE),\"N\")","v":"N"},true,"NTRUE",0,{"$f":"IFERROR(VLOOKUP(D485,'Bank and Fund Details'!$B$14:$L$35,11,FALSE),\"N\")","v":"Y"},"NY"]
[null,null,null,"General Fund",null,null,null,null,null,{"$f":"VLOOKUP(D486,'Bank and Fund Details'!$B$15:$D$36,3,FALSE)","v":0},{"$f":"VLOOKUP(D486,'Bank and Fund Details'!$B$15:$C$36,2,FALSE)","v":"Unrestricted"},{"$f":"IFERROR(VLOOKUP(C486,Descriptions!$I$6:$K$92,3,FALSE),\"\")","v":""},null,null,null,null,null,null,null,null,null,null,null,null,null,null,"General Fund",null,{"$f":"IFERROR(VLOOKUP(C486,Descriptions!I:M,5,FALSE),\"N\")","v":"N"},true,"NTRUE",0,{"$f":"IFERROR(VLOOKUP(D486,'Bank and Fund Details'!$B$14:$L$35,11,FALSE),\"N\")","v":"Y"},"NY"]
[null,null,null,"General Fund",null,null,null,null,null,{"$f":"VLOOKUP(D487,'Bank and Fund Details'!$B$15:$D$36,3,FALSE)","v":0},{"$f":"VLOOKUP(D487,'Bank and Fund Details'!$B$15:$C$36,2,FALSE)","v":"Unrestricted"},{"$f":"IFERROR(VLOOKUP(C487,Descriptions!$I$6:$K$92,3,FALSE),\"\")","v":""},null,null,null,null,null,null,null,null,null,null,null,null,null,null,"General Fund",null,{"$f":"IFERROR(VLOOKUP(C487,Descriptions!I:M,5,FALSE),\"N\")","v":"N"},true,"NTRUE",0,{"$f":"IFERROR(VLOOKUP(D487,'Bank and Fund Details'!$B$14:$L$35,11,FALSE),\"N\")","v":"Y"},"NY"]
[null,null,null,"General Fund",null,null,null,null,null,{"$f":"VLOOKUP(D488,'Bank and Fund Details'!$B$15:$D$36,3,FALSE)","v":0},{"$f":"VLOOKUP(D488,'Bank and Fund Details'!$B$15:$C$36,2,FALSE)","v":"Unrestricted"},{"$f":"IFERROR(VLOOKUP(C488,Descriptions!$I$6:$K$92,3,FALSE),\"\")","v":""},null,null,null,null,null,null,null,null,null,null,null,null,null,null,"General Fund",null,{"$f":"IFERROR(VLOOKUP(C488,Descriptions!I:M,5,FALSE),\"N\")","v":"N"},true,"NTRUE",0,{"$f":"IFERROR(VLOOKUP(D488,'Bank and Fund Details'!$B$14:$L$35,11,FALSE),\"N\")","v":"Y"},"NY"]
[null,null,null,"General Fund",null,null,null,null,null,{"$f":"VLOOKUP(D489,'Bank and Fund Details'!$B$15:$D$36,3,FALSE)","v":0},{"$f":"VLOOKUP(D489,'Bank and Fund Details'!$B$15:$C$36,2,FALSE)","v":"Unrestricted"},{"$f":"IFERROR(VLOOKUP(C489,Descriptions!$I$6:$K$92,3,FALSE),\"\")","v":""},null,null,null,null,null,null,null,null,null,null,null,null,null,null,"General Fund",null,{"$f":"IFERROR(VLOOKUP(C489,Descriptions!I:M,5,FALSE),\"N\")","v":"N"},true,"NTRUE",0,{"$f":"IFERROR(VLOOKUP(D489,'Bank and Fund Details'!$B$14:$L$35,11,FALSE),\"N\")","v":"Y"},"NY"]
[null,null,null,"General Fund",null,null,null,null,null,{"$f":"VLOOKUP(D490,'Bank and Fund Details'!$B$15:$D$36,3,FALSE)","v":0},{"$f":"VLOOKUP(D490,'Bank and Fund Details'!$B$15:$C$36,2,FALSE)","v":"Unrestricted"},{"$f":"IFERROR(VLOOKUP(C490,Descriptions!$I$6:$K$92,3,FALSE),\"\")","v":""},null,null,null,null,null,null,null,null,null,null,null,null,null,null,"General Fund",null,{"$f":"IFERROR(VLOOKUP(C490,Descriptions!I:M,5,FALSE),\"N\")","v":"N"},true,"NTRUE",0,{"$f":"IFERROR(VLOOKUP(D490,'Bank and Fund Details'!$B$14:$L$35,11,FALSE),\"N\")","v":"Y"},"NY"]
[null,null,null,"General Fund",null,null,null,null,null,{"$f":"VLOOKUP(D491,'Bank and Fund Details'!$B$15:$D$36,3,FALSE)","v":0},{"$f":"VLOOKUP(D491,'Bank and Fund Details'!$B$15:$C$36,2,FALSE)","v":"Unrestricted"},{"$f":"IFERROR(VLOOKUP(C491,Descriptions!$I$6:$K$92,3,FALSE),\"\")","v":""},null,null,null,null,null,null,null,null,null,null,null,null,null,null,"General Fund",null,{"$f":"IFERROR(VLOOKUP(C491,Descriptions!I:M,5,FALSE),\"N\")","v":"N"},true,"NTRUE",0,{"$f":"IFERROR(VLOOKUP(D491,'Bank and Fund Details'!$B$14:$L$35,11,FALSE),\"N\")","v":"Y"},"NY"]
[null,null,null,"General Fund",null,null,null,null,null,{"$f":"VLOOKUP(D492,'Bank and Fund Details'!$B$15:$D$36,3,FALSE)","v":0},{"$f":"VLOOKUP(D492,'Bank and Fund Details'!$B$15:$C$36,2,FALSE)","v":"Unrestricted"},{"$f":"IFERROR(VLOOKUP(C492,Descriptions!$I$6:$K$92,3,FALSE),\"\")","v":""},null,null,null,null,null,null,null,null,null,null,null,null,null,null,"General Fund",null,{"$f":"IFERROR(VLOOKUP(C492,Descriptions!I:M,5,FALSE),\"N\")","v":"N"},true,"NTRUE",0,{"$f":"IFERROR(VLOOKUP(D492,'Bank and Fund Details'!$B$14:$L$35,11,FALSE),\"N\")","v":"Y"},"NY"]
[null,null,null,"General Fund",null,null,null,null,null,{"$f":"VLOOKUP(D493,'Bank and Fund Details'!$B$15:$D$36,3,FALSE)","v":0},{"$f":"VLOOKUP(D493,'Bank and Fund Details'!$B$15:$C$36,2,FALSE)","v":"Unrestricted"},{"$f":"IFERROR(VLOOKUP(C493,Descriptions!$I$6:$K$92,3,FALSE),\"\")","v":""},null,null,null,null,null,null,null,null,null,null,null,null,null,null,"General Fund",null,{"$f":"IFERROR(VLOOKUP(C493,Descriptions!I:M,5,FALSE),\"N\")","v":"N"},true,"NTRUE",0,{"$f":"IFERROR(VLOOKUP(D493,'Bank and Fund Details'!$B$14:$L$35,11,FALSE),\"N\")","v":"Y"},"NY"]
[null,null,null,"General Fund",null,null,null,null,null,{"$f":"VLOOKUP(D494,'Bank and Fund Details'!$B$15:$D$36,3,FALSE)","v":0},{"$f":"VLOOKUP(D494,'Bank and Fund Details'!$B$15:$C$36,2,FALSE)","v":"Unrestricted"},{"$f":"IFERROR(VLOOKUP(C494,Descriptions!$I$6:$K$92,3,FALSE),\"\")","v":""},null,null,null,null,null,null,null,null,null,null,null,null,null,null,"General Fund",null,{"$f":"IFERROR(VLOOKUP(C494,Descriptions!I:M,5,FALSE),\"N\")","v":"N"},true,"NTRUE",0,{"$f":"IFERROR(VLOOKUP(D494,'Bank and Fund Details'!$B$14:$L$35,11,FALSE),\"N\")","v":"Y"},"NY"]
[null,null,null,"General Fund",null,null,null,null,null,{"$f":"VLOOKUP(D495,'Bank and Fund Details'!$B$15:$D$36,3,FALSE)","v":0},{"$f":"VLOOKUP(D495,'Bank and Fund Details'!$B$15:$C$36,2,FALSE)","v":"Unrestricted"},{"$f":"IFERROR(VLOOKUP(C495,Descriptions!$I$6:$K$92,3,FALSE),\"\")","v":""},null,null,null,null,null,null,null,null,null,null,null,null,null,null,"General Fund",null,{"$f":"IFERROR(VLOOKUP(C495,Descriptions!I:M,5,FALSE),\"N\")","v":"N"},true,"NTRUE",0,{"$f":"IFERROR(VLOOKUP(D495,'Bank and Fund Details'!$B$14:$L$35,11,FALSE),\"N\")","v":"Y"},"NY"]
[null,null,null,"General Fund",null,null,null,null,null,{"$f":"VLOOKUP(D496,'Bank and Fund Details'!$B$15:$D$36,3,FALSE)","v":0},{"$f":"VLOOKUP(D496,'Bank and Fund Details'!$B$15:$C$36,2,FALSE)","v":"Unrestricted"},{"$f":"IFERROR(VLOOKUP(C496,Descriptions!$I$6:$K$92,3,FALSE),\"\")","v":""},null,null,null,null,null,null,null,null,null,null,null,null,null,null,"General Fund",null,{"$f":"IFERROR(VLOOKUP(C496,Descriptions!I:M,5,FALSE),\"N\")","v":"N"},true,"NTRUE",0,{"$f":"IFERROR(VLOOKUP(D496,'Bank and Fund Details'!$B$14:$L$35,11,FALSE),\"N\")","v":"Y"},"NY"]
[null,null,null,"General Fund",null,null,null,null,null,{"$f":"VLOOKUP(D497,'Bank and Fund Details'!$B$15:$D$36,3,FALSE)","v":0},{"$f":"VLOOKUP(D497,'Bank and Fund Details'!$B$15:$C$36,2,FALSE)","v":"Unrestricted"},{"$f":"IFERROR(VLOOKUP(C497,Descriptions!$I$6:$K$92,3,FALSE),\"\")","v":""},null,null,null,null,null,null,null,null,null,null,null,null,null,null,"General Fund",null,{"$f":"IFERROR(VLOOKUP(C497,Descriptions!I:M,5,FALSE),\"N\")","v":"N"},true,"NTRUE",0,{"$f":"IFERROR(VLOOKUP(D497,'Bank and Fund Details'!$B$14:$L$35,11,FALSE),\"N\")","v":"Y"},"NY"]
[null,null,null,"General Fund",null,null,null,null,null,{"$f":"VLOOKUP(D498,'Bank and Fund Details'!$B$15:$D$36,3,FALSE)","v":0},{"$f":"VLOOKUP(D498,'Bank and Fund Details'!$B$15:$C$36,2,FALSE)","v":"Unrestricted"},{"$f":"IFERROR(VLOOKUP(C498,Descriptions!$I$6:$K$92,3,FALSE),\"\")","v":""},null,null,null,null,null,null,null,null,null,null,null,null,null,null,"General Fund",null,{"$f":"IFERROR(VLOOKUP(C498,Descriptions!I:M,5,FALSE),\"N\")","v":"N"},true,"NTRUE",0,{"$f":"IFERROR(VLOOKUP(D498,'Bank and Fund Details'!$B$14:$L$35,11,FALSE),\"N\")","v":"Y"},"NY"]
[null,null,null,"General Fund",null,null,null,null,null,{"$f":"VLOOKUP(D499,'Bank and Fund Details'!$B$15:$D$36,3,FALSE)","v":0},{"$f":"VLOOKUP(D499,'Bank and Fund Details'!$B$15:$C$36,2,FALSE)","v":"Unrestricted"},{"$f":"IFERROR(VLOOKUP(C499,Descriptions!$I$6:$K$92,3,FALSE),\"\")","v":""},null,null,null,null,null,null,null,null,null,null,null,null,null,null,"General Fund",null,{"$f":"IFERROR(VLOOKUP(C499,Descriptions!I:M,5,FALSE),\"N\")","v":"N"},true,"NTRUE",0,{"$f":"IFERROR(VLOOKUP(D499,'Bank and Fund Details'!$B$14:$L$35,11,FALSE),\"N\")","v":"Y"},"NY"]
[null,null,null,"General Fund",null,null,null,null,null,{"$f":"VLOOKUP(D500,'Bank and Fund Details'!$B$15:$D$36,3,FALSE)","v":0},{"$f":"VLOOKUP(D500,'Bank and Fund Details'!$B$15:$C$36,2,FALSE)","v":"Unrestricted"},{"$f":"IFERROR(VLOOKUP(C500,Descriptions!$I$6:$K$92,3,FALSE),\"\")","v":""},null,null,null,null,null,null,null,null,null,null,null,null,null,null,"General Fund",null,{"$f":"IFERROR(VLOOKUP(C500,Descriptions!I:M,5,FALSE),\"N\")","v":"N"},true,"NTRUE",0,{"$f":"IFERROR(VLOOKUP(D500,'Bank and Fund Details'!$B$14:$L$35,11,FALSE),\"N\")","v":"Y"},"NY"]
[null,null,null,"General Fund",null,null,null,null,null,{"$f":"VLOOKUP(D501,'Bank and Fund Details'!$B$15:$D$36,3,FALSE)","v":0},{"$f":"VLOOKUP(D501,'Bank and Fund Details'!$B$15:$C$36,2,FALSE)","v":"Unrestricted"},{"$f":"IFERROR(VLOOKUP(C501,Descriptions!$I$6:$K$92,3,FALSE),\"\")","v":""},null,null,null,null,null,null,null,null,null,null,null,null,null,null,"General Fund",null,{"$f":"IFERROR(VLOOKUP(C501,Descriptions!I:M,5,FALSE),\"N\")","v":"N"},true,"NTRUE",0,{"$f":"IFERROR(VLOOKUP(D501,'Bank and Fund Details'!$B$14:$L$35,11,FALSE),\"N\")","v":"Y"},"NY"]
[null,null,null,"General Fund",null,null,null,null,null,{"$f":"VLOOKUP(D502,'Bank and Fund Details'!$B$15:$D$36,3,FALSE)","v":0},{"$f":"VLOOKUP(D502,'Bank and Fund Details'!$B$15:$C$36,2,FALSE)","v":"Unrestricted"},{"$f":"IFERROR(VLOOKUP(C502,Descriptions!$I$6:$K$92,3,FALSE),\"\")","v":""},null,null,null,null,null,null,null,null,null,null,null,null,null,null,"General Fund",null,{"$f":"IFERROR(VLOOKUP(C502,Descriptions!I:M,5,FALSE),\"N\")","v":"N"},true,"NTRUE",0,{"$f":"IFERROR(VLOOKUP(D502,'Bank and Fund Details'!$B$14:$L$35,11,FALSE),\"N\")","v":"Y"},"NY"]
[null,null,null,"General Fund",null,null,null,null,null,{"$f":"VLOOKUP(D503,'Bank and Fund Details'!$B$15:$D$36,3,FALSE)","v":0},{"$f":"VLOOKUP(D503,'Bank and Fund Details'!$B$15:$C$36,2,FALSE)","v":"Unrestricted"},{"$f":"IFERROR(VLOOKUP(C503,Descriptions!$I$6:$K$92,3,FALSE),\"\")","v":""},null,null,null,null,null,null,null,null,null,null,null,null,null,null,"General Fund",null,{"$f":"IFERROR(VLOOKUP(C503,Descriptions!I:M,5,FALSE),\"N\")","v":"N"},true,"NTRUE",0,{"$f":"IFERROR(VLOOKUP(D503,'Bank and Fund Details'!$B$14:$L$35,11,FALSE),\"N\")","v":"Y"},"NY"]
[null,null,null,"General Fund",null,null,null,null,null,{"$f":"VLOOKUP(D504,'Bank and Fund Details'!$B$15:$D$36,3,FALSE)","v":0},{"$f":"VLOOKUP(D504,'Bank and Fund Details'!$B$15:$C$36,2,FALSE)","v":"Unrestricted"},{"$f":"IFERROR(VLOOKUP(C504,Descriptions!$I$6:$K$92,3,FALSE),\"\")","v":""},null,null,null,null,null,null,null,null,null,null,null,null,null,null,"General Fund",null,{"$f":"IFERROR(VLOOKUP(C504,Descriptions!I:M,5,FALSE),\"N\")","v":"N"},true,"NTRUE",0,{"$f":"IFERROR(VLOOKUP(D504,'Bank and Fund Details'!$B$14:$L$35,11,FALSE),\"N\")","v":"Y"},"NY"]
[null,null,null,"General Fund",null,null,null,null,null,{"$f":"VLOOKUP(D505,'Bank and Fund Details'!$B$15:$D$36,3,FALSE)","v":0},{"$f":"VLOOKUP(D505,'Bank and Fund Details'!$B$15:$C$36,2,FALSE)","v":"Unrestricted"},{"$f":"IFERROR(VLOOKUP(C505,Descriptions!$I$6:$K$92,3,FALSE),\"\")","v":""},null,null,null,null,null,null,null,null,null,null,null,null,null,null,"General Fund",null,{"$f":"IFERROR(VLOOKUP(C505,Descriptions!I:M,5,FALSE),\"N\")","v":"N"},true,"NTRUE",0,{"$f":"IFERROR(VLOOKUP(D505,'Bank and Fund Details'!$B$14:$L$35,11,FALSE),\"N\")","v":"Y"},"NY"]
[null,null,null,"General Fund",null,null,null,null,null,{"$f":"VLOOKUP(D506,'Bank and Fund Details'!$B$15:$D$36,3,FALSE)","v":0},{"$f":"VLOOKUP(D506,'Bank and Fund Details'!$B$15:$C$36,2,FALSE)","v":"Unrestricted"},{"$f":"IFERROR(VLOOKUP(C506,Descriptions!$I$6:$K$92,3,FALSE),\"\")","v":""},null,null,null,null,null,null,null,null,null,null,null,null,null,null,"General Fund",null,{"$f":"IFERROR(VLOOKUP(C506,Descriptions!I:M,5,FALSE),\"N\")","v":"N"},true,"NTRUE",0,{"$f":"IFERROR(VLOOKUP(D506,'Bank and Fund Details'!$B$14:$L$35,11,FALSE),\"N\")","v":"Y"},"NY"]
[null,null,null,"General Fund",null,null,null,null,null,{"$f":"VLOOKUP(D507,'Bank and Fund Details'!$B$15:$D$36,3,FALSE)","v":0},{"$f":"VLOOKUP(D507,'Bank and Fund Details'!$B$15:$C$36,2,FALSE)","v":"Unrestricted"},{"$f":"IFERROR(VLOOKUP(C507,Descriptions!$I$6:$K$92,3,FALSE),\"\")","v":""},null,null,null,null,null,null,null,null,null,null,null,null,null,null,"General Fund",null,{"$f":"IFERROR(VLOOKUP(C507,Descriptions!I:M,5,FALSE),\"N\")","v":"N"},true,"NTRUE",0,{"$f":"IFERROR(VLOOKUP(D507,'Bank and Fund Details'!$B$14:$L$35,11,FALSE),\"N\")","v":"Y"},"NY"]
[null,null,null,"General Fund",null,null,null,null,null,{"$f":"VLOOKUP(D508,'Bank and Fund Details'!$B$15:$D$36,3,FALSE)","v":0},{"$f":"VLOOKUP(D508,'Bank and Fund Details'!$B$15:$C$36,2,FALSE)","v":"Unrestricted"},{"$f":"IFERROR(VLOOKUP(C508,Descriptions!$I$6:$K$92,3,FALSE),\"\")","v":""},null,null,null,null,null,null,null,null,null,null,null,null,null,null,"General Fund",null,{"$f":"IFERROR(VLOOKUP(C508,Descriptions!I:M,5,FALSE),\"N\")","v":"N"},true,"NTRUE",0,{"$f":"IFERROR(VLOOKUP(D508,'Bank and Fund Details'!$B$14:$L$35,11,FALSE),\"N\")","v":"Y"},"NY"]
[null,null,null,"General Fund",null,null,null,null,null,{"$f":"VLOOKUP(D509,'Bank and Fund Details'!$B$15:$D$36,3,FALSE)","v":0},{"$f":"VLOOKUP(D509,'Bank and Fund Details'!$B$15:$C$36,2,FALSE)","v":"Unrestricted"},{"$f":"IFERROR(VLOOKUP(C509,Descriptions!$I$6:$K$92,3,FALSE),\"\")","v":""},null,null,null,null,null,null,null,null,null,null,null,null,null,null,"General Fund",null,{"$f":"IFERROR(VLOOKUP(C509,Descriptions!I:M,5,FALSE),\"N\")","v":"N"},true,"NTRUE",0,{"$f":"IFERROR(VLOOKUP(D509,'Bank and Fund Details'!$B$14:$L$35,11,FALSE),\"N\")","v":"Y"},"NY"]
[null,null,null,"General Fund",null,null,null,null,null,{"$f":"VLOOKUP(D510,'Bank and Fund Details'!$B$15:$D$36,3,FALSE)","v":0},{"$f":"VLOOKUP(D510,'Bank and Fund Details'!$B$15:$C$36,2,FALSE)","v":"Unrestricted"},{"$f":"IFERROR(VLOOKUP(C510,Descriptions!$I$6:$K$92,3,FALSE),\"\")","v":""},null,null,null,null,null,null,null,null,null,null,null,null,null,null,"General Fund",null,{"$f":"IFERROR(VLOOKUP(C510,Descriptions!I:M,5,FALSE),\"N\")","v":"N"},true,"NTRUE",0,{"$f":"IFERROR(VLOOKUP(D510,'Bank and Fund Details'!$B$14:$L$35,11,FALSE),\"N\")","v":"Y"},"NY"]
[null,null,null,"General Fund",null,null,null,null,null,{"$f":"VLOOKUP(D511,'Bank and Fund Details'!$B$15:$D$36,3,FALSE)","v":0},{"$f":"VLOOKUP(D511,'Bank and Fund Details'!$B$15:$C$36,2,FALSE)","v":"Unrestricted"},{"$f":"IFERROR(VLOOKUP(C511,Descriptions!$I$6:$K$92,3,FALSE),\"\")","v":""},null,null,null,null,null,null,null,null,null,null,null,null,null,null,"General Fund",null,{"$f":"IFERROR(VLOOKUP(C511,Descriptions!I:M,5,FALSE),\"N\")","v":"N"},true,"NTRUE",0,{"$f":"IFERROR(VLOOKUP(D511,'Bank and Fund Details'!$B$14:$L$35,11,FALSE),\"N\")","v":"Y"},"NY"]
[null,null,null,"General Fund",null,null,null,null,null,{"$f":"VLOOKUP(D512,'Bank and Fund Details'!$B$15:$D$36,3,FALSE)","v":0},{"$f":"VLOOKUP(D512,'Bank and Fund Details'!$B$15:$C$36,2,FALSE)","v":"Unrestricted"},{"$f":"IFERROR(VLOOKUP(C512,Descriptions!$I$6:$K$92,3,FALSE),\"\")","v":""},null,null,null,null,null,null,null,null,null,null,null,null,null,null,"General Fund",null,{"$f":"IFERROR(VLOOKUP(C512,Descriptions!I:M,5,FALSE),\"N\")","v":"N"},true,"NTRUE",0,{"$f":"IFERROR(VLOOKUP(D512,'Bank and Fund Details'!$B$14:$L$35,11,FALSE),\"N\")","v":"Y"},"NY"]
[null,null,null,"General Fund",null,null,null,null,null,{"$f":"VLOOKUP(D513,'Bank and Fund Details'!$B$15:$D$36,3,FALSE)","v":0},{"$f":"VLOOKUP(D513,'Bank and Fund Details'!$B$15:$C$36,2,FALSE)","v":"Unrestricted"},{"$f":"IFERROR(VLOOKUP(C513,Descriptions!$I$6:$K$92,3,FALSE),\"\")","v":""},null,null,null,null,null,null,null,null,null,null,null,null,null,null,"General Fund",null,{"$f":"IFERROR(VLOOKUP(C513,Descriptions!I:M,5,FALSE),\"N\")","v":"N"},true,"NTRUE",0,{"$f":"IFERROR(VLOOKUP(D513,'Bank and Fund Details'!$B$14:$L$35,11,FALSE),\"N\")","v":"Y"},"NY"]
[null,null,null,"General Fund",null,null,null,null,null,{"$f":"VLOOKUP(D514,'Bank and Fund Details'!$B$15:$D$36,3,FALSE)","v":0},{"$f":"VLOOKUP(D514,'Bank and Fund Details'!$B$15:$C$36,2,FALSE)","v":"Unrestricted"},{"$f":"IFERROR(VLOOKUP(C514,Descriptions!$I$6:$K$92,3,FALSE),\"\")","v":""},null,null,null,null,null,null,null,null,null,null,null,null,null,null,"General Fund",null,{"$f":"IFERROR(VLOOKUP(C514,Descriptions!I:M,5,FALSE),\"N\")","v":"N"},true,"NTRUE",0,{"$f":"IFERROR(VLOOKUP(D514,'Bank and Fund Details'!$B$14:$L$35,11,FALSE),\"N\")","v":"Y"},"NY"]
[null,null,null,"General Fund",null,null,null,null,null,{"$f":"VLOOKUP(D515,'Bank and Fund Details'!$B$15:$D$36,3,FALSE)","v":0},{"$f":"VLOOKUP(D515,'Bank and Fund Details'!$B$15:$C$36,2,FALSE)","v":"Unrestricted"},{"$f":"IFERROR(VLOOKUP(C515,Descriptions!$I$6:$K$92,3,FALSE),\"\")","v":""},null,null,null,null,null,null,null,null,null,null,null,null,null,null,"General Fund",null,{"$f":"IFERROR(VLOOKUP(C515,Descriptions!I:M,5,FALSE),\"N\")","v":"N"},true,"NTRUE",0,{"$f":"IFERROR(VLOOKUP(D515,'Bank and Fund Details'!$B$14:$L$35,11,FALSE),\"N\")","v":"Y"},"NY"]
[null,null,null,"General Fund",null,null,null,null,null,{"$f":"VLOOKUP(D516,'Bank and Fund Details'!$B$15:$D$36,3,FALSE)","v":0},{"$f":"VLOOKUP(D516,'Bank and Fund Details'!$B$15:$C$36,2,FALSE)","v":"Unrestricted"},{"$f":"IFERROR(VLOOKUP(C516,Descriptions!$I$6:$K$92,3,FALSE),\"\")","v":""},null,null,null,null,null,null,null,null,null,null,null,null,null,null,"General Fund",null,{"$f":"IFERROR(VLOOKUP(C516,Descriptions!I:M,5,FALSE),\"N\")","v":"N"},true,"NTRUE",0,{"$f":"IFERROR(VLOOKUP(D516,'Bank and Fund Details'!$B$14:$L$35,11,FALSE),\"N\")","v":"Y"},"NY"]
[null,null,null,"General Fund",null,null,null,null,null,{"$f":"VLOOKUP(D517,'Bank and Fund Details'!$B$15:$D$36,3,FALSE)","v":0},{"$f":"VLOOKUP(D517,'Bank and Fund Details'!$B$15:$C$36,2,FALSE)","v":"Unrestricted"},{"$f":"IFERROR(VLOOKUP(C517,Descriptions!$I$6:$K$92,3,FALSE),\"\")","v":""},null,null,null,null,null,null,null,null,null,null,null,null,null,null,"General Fund",null,{"$f":"IFERROR(VLOOKUP(C517,Descriptions!I:M,5,FALSE),\"N\")","v":"N"},true,"NTRUE",0,{"$f":"IFERROR(VLOOKUP(D517,'Bank and Fund Details'!$B$14:$L$35,11,FALSE),\"N\")","v":"Y"},"NY"]
[null,null,null,"General Fund",null,null,null,null,null,{"$f":"VLOOKUP(D518,'Bank and Fund Details'!$B$15:$D$36,3,FALSE)","v":0},{"$f":"VLOOKUP(D518,'Bank and Fund Details'!$B$15:$C$36,2,FALSE)","v":"Unrestricted"},{"$f":"IFERROR(VLOOKUP(C518,Descriptions!$I$6:$K$92,3,FALSE),\"\")","v":""},null,null,null,null,null,null,null,null,null,null,null,null,null,null,{"$f":"CONCATENATE(C518,D518)","v":"General Fund"},null,{"$f":"IFERROR(VLOOKUP(C518,Descriptions!I:M,5,FALSE),\"N\")","v":"N"},{"$f":"ISBLANK(C518)","v":true},{"$f":"CONCATENATE(AC518,AD518)","v":"NTRUE"},{"$f":"IF(AE518=\"NFALSE\",1,0)","v":0},{"$f":"IFERROR(VLOOKUP(D518,'Bank and Fund Details'!$B$14:$L$35,11,FALSE),\"N\")","v":"Y"},{"$f":"CONCATENATE(AC518,AG518)","v":"NY"}]
[null,null,null,"General Fund",null,null,null,null,null,{"$f":"VLOOKUP(D519,'Bank and Fund Details'!$B$15:$D$36,3,FALSE)","v":0},{"$f":"VLOOKUP(D519,'Bank and Fund Details'!$B$15:$C$36,2,FALSE)","v":"Unrestricted"},{"$f":"IFERROR(VLOOKUP(C519,Descriptions!$I$6:$K$92,3,FALSE),\"\")","v":""},null,null,null,null,null,null,null,null,null,null,null,null,null,null,"General Fund",null,{"$f":"IFERROR(VLOOKUP(C519,Descriptions!I:M,5,FALSE),\"N\")","v":"N"},true,"NTRUE",0,{"$f":"IFERROR(VLOOKUP(D519,'Bank and Fund Details'!$B$14:$L$35,11,FALSE),\"N\")","v":"Y"},"NY"]
[null,null,null,"General Fund",null,null,null,null,null,{"$f":"VLOOKUP(D520,'Bank and Fund Details'!$B$15:$D$36,3,FALSE)","v":0},{"$f":"VLOOKUP(D520,'Bank and Fund Details'!$B$15:$C$36,2,FALSE)","v":"Unrestricted"},{"$f":"IFERROR(VLOOKUP(C520,Descriptions!$I$6:$K$92,3,FALSE),\"\")","v":""},null,null,null,null,null,null,null,null,null,null,null,null,null,null,"General Fund",null,{"$f":"IFERROR(VLOOKUP(C520,Descriptions!I:M,5,FALSE),\"N\")","v":"N"},true,"NTRUE",0,{"$f":"IFERROR(VLOOKUP(D520,'Bank and Fund Details'!$B$14:$L$35,11,FALSE),\"N\")","v":"Y"},"NY"]
[null,null,null,"General Fund",null,null,null,null,null,{"$f":"VLOOKUP(D521,'Bank and Fund Details'!$B$15:$D$36,3,FALSE)","v":0},{"$f":"VLOOKUP(D521,'Bank and Fund Details'!$B$15:$C$36,2,FALSE)","v":"Unrestricted"},{"$f":"IFERROR(VLOOKUP(C521,Descriptions!$I$6:$K$92,3,FALSE),\"\")","v":""},null,null,null,null,null,null,null,null,null,null,null,null,null,null,"General Fund",null,{"$f":"IFERROR(VLOOKUP(C521,Descriptions!I:M,5,FALSE),\"N\")","v":"N"},true,"NTRUE",0,{"$f":"IFERROR(VLOOKUP(D521,'Bank and Fund Details'!$B$14:$L$35,11,FALSE),\"N\")","v":"Y"},"NY"]
[null,null,null,"General Fund",null,null,null,null,null,{"$f":"VLOOKUP(D522,'Bank and Fund Details'!$B$15:$D$36,3,FALSE)","v":0},{"$f":"VLOOKUP(D522,'Bank and Fund Details'!$B$15:$C$36,2,FALSE)","v":"Unrestricted"},{"$f":"IFERROR(VLOOKUP(C522,Descriptions!$I$6:$K$92,3,FALSE),\"\")","v":""},null,null,null,null,null,null,null,null,null,null,null,null,null,null,"General Fund",null,{"$f":"IFERROR(VLOOKUP(C522,Descriptions!I:M,5,FALSE),\"N\")","v":"N"},true,"NTRUE",0,{"$f":"IFERROR(VLOOKUP(D522,'Bank and Fund Details'!$B$14:$L$35,11,FALSE),\"N\")","v":"Y"},"NY"]
[null,null,null,"General Fund",null,null,null,null,null,{"$f":"VLOOKUP(D523,'Bank and Fund Details'!$B$15:$D$36,3,FALSE)","v":0},{"$f":"VLOOKUP(D523,'Bank and Fund Details'!$B$15:$C$36,2,FALSE)","v":"Unrestricted"},{"$f":"IFERROR(VLOOKUP(C523,Descriptions!$I$6:$K$92,3,FALSE),\"\")","v":""},null,null,null,null,null,null,null,null,null,null,null,null,null,null,"General Fund",null,{"$f":"IFERROR(VLOOKUP(C523,Descriptions!I:M,5,FALSE),\"N\")","v":"N"},true,"NTRUE",0,{"$f":"IFERROR(VLOOKUP(D523,'Bank and Fund Details'!$B$14:$L$35,11,FALSE),\"N\")","v":"Y"},"NY"]
[null,null,null,"General Fund",null,null,null,null,null,{"$f":"VLOOKUP(D524,'Bank and Fund Details'!$B$15:$D$36,3,FALSE)","v":0},{"$f":"VLOOKUP(D524,'Bank and Fund Details'!$B$15:$C$36,2,FALSE)","v":"Unrestricted"},{"$f":"IFERROR(VLOOKUP(C524,Descriptions!$I$6:$K$92,3,FALSE),\"\")","v":""},null,null,null,null,null,null,null,null,null,null,null,null,null,null,"General Fund",null,{"$f":"IFERROR(VLOOKUP(C524,Descriptions!I:M,5,FALSE),\"N\")","v":"N"},true,"NTRUE",0,{"$f":"IFERROR(VLOOKUP(D524,'Bank and Fund Details'!$B$14:$L$35,11,FALSE),\"N\")","v":"Y"},"NY"]
[null,null,null,"General Fund",null,null,null,null,null,{"$f":"VLOOKUP(D525,'Bank and Fund Details'!$B$15:$D$36,3,FALSE)","v":0},{"$f":"VLOOKUP(D525,'Bank and Fund Details'!$B$15:$C$36,2,FALSE)","v":"Unrestricted"},{"$f":"IFERROR(VLOOKUP(C525,Descriptions!$I$6:$K$92,3,FALSE),\"\")","v":""},null,null,null,null,null,null,null,null,null,null,null,null,null,null,"General Fund",null,{"$f":"IFERROR(VLOOKUP(C525,Descriptions!I:M,5,FALSE),\"N\")","v":"N"},true,"NTRUE",0,{"$f":"IFERROR(VLOOKUP(D525,'Bank and Fund Details'!$B$14:$L$35,11,FALSE),\"N\")","v":"Y"},"NY"]
[null,null,null,"General Fund",null,null,null,null,null,{"$f":"VLOOKUP(D526,'Bank and Fund Details'!$B$15:$D$36,3,FALSE)","v":0},{"$f":"VLOOKUP(D526,'Bank and Fund Details'!$B$15:$C$36,2,FALSE)","v":"Unrestricted"},{"$f":"IFERROR(VLOOKUP(C526,Descriptions!$I$6:$K$92,3,FALSE),\"\")","v":""},null,null,null,null,null,null,null,null,null,null,null,null,null,null,"General Fund",null,{"$f":"IFERROR(VLOOKUP(C526,Descriptions!I:M,5,FALSE),\"N\")","v":"N"},true,"NTRUE",0,{"$f":"IFERROR(VLOOKUP(D526,'Bank and Fund Details'!$B$14:$L$35,11,FALSE),\"N\")","v":"Y"},"NY"]
[null,null,null,"General Fund",null,null,null,null,null,{"$f":"VLOOKUP(D527,'Bank and Fund Details'!$B$15:$D$36,3,FALSE)","v":0},{"$f":"VLOOKUP(D527,'Bank and Fund Details'!$B$15:$C$36,2,FALSE)","v":"Unrestricted"},{"$f":"IFERROR(VLOOKUP(C527,Descriptions!$I$6:$K$92,3,FALSE),\"\")","v":""},null,null,null,null,null,null,null,null,null,null,null,null,null,null,"General Fund",null,{"$f":"IFERROR(VLOOKUP(C527,Descriptions!I:M,5,FALSE),\"N\")","v":"N"},true,"NTRUE",0,{"$f":"IFERROR(VLOOKUP(D527,'Bank and Fund Details'!$B$14:$L$35,11,FALSE),\"N\")","v":"Y"},"NY"]
[null,null,null,"General Fund",null,null,null,null,null,{"$f":"VLOOKUP(D528,'Bank and Fund Details'!$B$15:$D$36,3,FALSE)","v":0},{"$f":"VLOOKUP(D528,'Bank and Fund Details'!$B$15:$C$36,2,FALSE)","v":"Unrestricted"},{"$f":"IFERROR(VLOOKUP(C528,Descriptions!$I$6:$K$92,3,FALSE),\"\")","v":""},null,null,null,null,null,null,null,null,null,null,null,null,null,null,"General Fund",null,{"$f":"IFERROR(VLOOKUP(C528,Descriptions!I:M,5,FALSE),\"N\")","v":"N"},true,"NTRUE",0,{"$f":"IFERROR(VLOOKUP(D528,'Bank and Fund Details'!$B$14:$L$35,11,FALSE),\"N\")","v":"Y"},"NY"]
[null,null,null,"General Fund",null,null,null,null,null,{"$f":"VLOOKUP(D529,'Bank and Fund Details'!$B$15:$D$36,3,FALSE)","v":0},{"$f":"VLOOKUP(D529,'Bank and Fund Details'!$B$15:$C$36,2,FALSE)","v":"Unrestricted"},{"$f":"IFERROR(VLOOKUP(C529,Descriptions!$I$6:$K$92,3,FALSE),\"\")","v":""},null,null,null,null,null,null,null,null,null,null,null,null,null,null,"General Fund",null,{"$f":"IFERROR(VLOOKUP(C529,Descriptions!I:M,5,FALSE),\"N\")","v":"N"},true,"NTRUE",0,{"$f":"IFERROR(VLOOKUP(D529,'Bank and Fund Details'!$B$14:$L$35,11,FALSE),\"N\")","v":"Y"},"NY"]
[null,null,null,"General Fund",null,null,null,null,null,{"$f":"VLOOKUP(D530,'Bank and Fund Details'!$B$15:$D$36,3,FALSE)","v":0},{"$f":"VLOOKUP(D530,'Bank and Fund Details'!$B$15:$C$36,2,FALSE)","v":"Unrestricted"},{"$f":"IFERROR(VLOOKUP(C530,Descriptions!$I$6:$K$92,3,FALSE),\"\")","v":""},null,null,null,null,null,null,null,null,null,null,null,null,null,null,"General Fund",null,{"$f":"IFERROR(VLOOKUP(C530,Descriptions!I:M,5,FALSE),\"N\")","v":"N"},true,"NTRUE",0,{"$f":"IFERROR(VLOOKUP(D530,'Bank and Fund Details'!$B$14:$L$35,11,FALSE),\"N\")","v":"Y"},"NY"]
[null,null,null,"General Fund",null,null,null,null,null,{"$f":"VLOOKUP(D531,'Bank and Fund Details'!$B$15:$D$36,3,FALSE)","v":0},{"$f":"VLOOKUP(D531,'Bank and Fund Details'!$B$15:$C$36,2,FALSE)","v":"Unrestricted"},{"$f":"IFERROR(VLOOKUP(C531,Descriptions!$I$6:$K$92,3,FALSE),\"\")","v":""},null,null,null,null,null,null,null,null,null,null,null,null,null,null,"General Fund",null,{"$f":"IFERROR(VLOOKUP(C531,Descriptions!I:M,5,FALSE),\"N\")","v":"N"},true,"NTRUE",0,{"$f":"IFERROR(VLOOKUP(D531,'Bank and Fund Details'!$B$14:$L$35,11,FALSE),\"N\")","v":"Y"},"NY"]
[null,null,null,"General Fund",null,null,null,null,null,{"$f":"VLOOKUP(D532,'Bank and Fund Details'!$B$15:$D$36,3,FALSE)","v":0},{"$f":"VLOOKUP(D532,'Bank and Fund Details'!$B$15:$C$36,2,FALSE)","v":"Unrestricted"},{"$f":"IFERROR(VLOOKUP(C532,Descriptions!$I$6:$K$92,3,FALSE),\"\")","v":""},null,null,null,null,null,null,null,null,null,null,null,null,null,null,"General Fund",null,{"$f":"IFERROR(VLOOKUP(C532,Descriptions!I:M,5,FALSE),\"N\")","v":"N"},true,"NTRUE",0,{"$f":"IFERROR(VLOOKUP(D532,'Bank and Fund Details'!$B$14:$L$35,11,FALSE),\"N\")","v":"Y"},"NY"]
[null,null,null,"General Fund",null,null,null,null,null,{"$f":"VLOOKUP(D533,'Bank and Fund Details'!$B$15:$D$36,3,FALSE)","v":0},{"$f":"VLOOKUP(D533,'Bank and Fund Details'!$B$15:$C$36,2,FALSE)","v":"Unrestricted"},{"$f":"IFERROR(VLOOKUP(C533,Descriptions!$I$6:$K$92,3,FALSE),\"\")","v":""},null,null,null,null,null,null,null,null,null,null,null,null,null,null,"General Fund",null,{"$f":"IFERROR(VLOOKUP(C533,Descriptions!I:M,5,FALSE),\"N\")","v":"N"},true,"NTRUE",0,{"$f":"IFERROR(VLOOKUP(D533,'Bank and Fund Details'!$B$14:$L$35,11,FALSE),\"N\")","v":"Y"},"NY"]
[null,null,null,"General Fund",null,null,null,null,null,{"$f":"VLOOKUP(D534,'Bank and Fund Details'!$B$15:$D$36,3,FALSE)","v":0},{"$f":"VLOOKUP(D534,'Bank and Fund Details'!$B$15:$C$36,2,FALSE)","v":"Unrestricted"},{"$f":"IFERROR(VLOOKUP(C534,Descriptions!$I$6:$K$92,3,FALSE),\"\")","v":""},null,null,null,null,null,null,null,null,null,null,null,null,null,null,"General Fund",null,{"$f":"IFERROR(VLOOKUP(C534,Descriptions!I:M,5,FALSE),\"N\")","v":"N"},true,"NTRUE",0,{"$f":"IFERROR(VLOOKUP(D534,'Bank and Fund Details'!$B$14:$L$35,11,FALSE),\"N\")","v":"Y"},"NY"]
[null,null,null,"General Fund",null,null,null,null,null,{"$f":"VLOOKUP(D535,'Bank and Fund Details'!$B$15:$D$36,3,FALSE)","v":0},{"$f":"VLOOKUP(D535,'Bank and Fund Details'!$B$15:$C$36,2,FALSE)","v":"Unrestricted"},{"$f":"IFERROR(VLOOKUP(C535,Descriptions!$I$6:$K$92,3,FALSE),\"\")","v":""},null,null,null,null,null,null,null,null,null,null,null,null,null,null,"General Fund",null,{"$f":"IFERROR(VLOOKUP(C535,Descriptions!I:M,5,FALSE),\"N\")","v":"N"},true,"NTRUE",0,{"$f":"IFERROR(VLOOKUP(D535,'Bank and Fund Details'!$B$14:$L$35,11,FALSE),\"N\")","v":"Y"},"NY"]
[null,null,null,"General Fund",null,null,null,null,null,{"$f":"VLOOKUP(D536,'Bank and Fund Details'!$B$15:$D$36,3,FALSE)","v":0},{"$f":"VLOOKUP(D536,'Bank and Fund Details'!$B$15:$C$36,2,FALSE)","v":"Unrestricted"},{"$f":"IFERROR(VLOOKUP(C536,Descriptions!$I$6:$K$92,3,FALSE),\"\")","v":""},null,null,null,null,null,null,null,null,null,null,null,null,null,null,"General Fund",null,{"$f":"IFERROR(VLOOKUP(C536,Descriptions!I:M,5,FALSE),\"N\")","v":"N"},true,"NTRUE",0,{"$f":"IFERROR(VLOOKUP(D536,'Bank and Fund Details'!$B$14:$L$35,11,FALSE),\"N\")","v":"Y"},"NY"]
[null,null,null,"General Fund",null,null,null,null,null,{"$f":"VLOOKUP(D537,'Bank and Fund Details'!$B$15:$D$36,3,FALSE)","v":0},{"$f":"VLOOKUP(D537,'Bank and Fund Details'!$B$15:$C$36,2,FALSE)","v":"Unrestricted"},{"$f":"IFERROR(VLOOKUP(C537,Descriptions!$I$6:$K$92,3,FALSE),\"\")","v":""},null,null,null,null,null,null,null,null,null,null,null,null,null,null,"General Fund",null,{"$f":"IFERROR(VLOOKUP(C537,Descriptions!I:M,5,FALSE),\"N\")","v":"N"},true,"NTRUE",0,{"$f":"IFERROR(VLOOKUP(D537,'Bank and Fund Details'!$B$14:$L$35,11,FALSE),\"N\")","v":"Y"},"NY"]
[null,null,null,"General Fund",null,null,null,null,null,{"$f":"VLOOKUP(D538,'Bank and Fund Details'!$B$15:$D$36,3,FALSE)","v":0},{"$f":"VLOOKUP(D538,'Bank and Fund Details'!$B$15:$C$36,2,FALSE)","v":"Unrestricted"},{"$f":"IFERROR(VLOOKUP(C538,Descriptions!$I$6:$K$92,3,FALSE),\"\")","v":""},null,null,null,null,null,null,null,null,null,null,null,null,null,null,"General Fund",null,{"$f":"IFERROR(VLOOKUP(C538,Descriptions!I:M,5,FALSE),\"N\")","v":"N"},true,"NTRUE",0,{"$f":"IFERROR(VLOOKUP(D538,'Bank and Fund Details'!$B$14:$L$35,11,FALSE),\"N\")","v":"Y"},"NY"]
[null,null,null,"General Fund",null,null,null,null,null,{"$f":"VLOOKUP(D539,'Bank and Fund Details'!$B$15:$D$36,3,FALSE)","v":0},{"$f":"VLOOKUP(D539,'Bank and Fund Details'!$B$15:$C$36,2,FALSE)","v":"Unrestricted"},{"$f":"IFERROR(VLOOKUP(C539,Descriptions!$I$6:$K$92,3,FALSE),\"\")","v":""},null,null,null,null,null,null,null,null,null,null,null,null,null,null,"General Fund",null,{"$f":"IFERROR(VLOOKUP(C539,Descriptions!I:M,5,FALSE),\"N\")","v":"N"},true,"NTRUE",0,{"$f":"IFERROR(VLOOKUP(D539,'Bank and Fund Details'!$B$14:$L$35,11,FALSE),\"N\")","v":"Y"},"NY"]
[null,null,null,"General Fund",null,null,null,null,null,{"$f":"VLOOKUP(D540,'Bank and Fund Details'!$B$15:$D$36,3,FALSE)","v":0},{"$f":"VLOOKUP(D540,'Bank and Fund Details'!$B$15:$C$36,2,FALSE)","v":"Unrestricted"},{"$f":"IFERROR(VLOOKUP(C540,Descriptions!$I$6:$K$92,3,FALSE),\"\")","v":""},null,null,null,null,null,null,null,null,null,null,null,null,null,null,"General Fund",null,{"$f":"IFERROR(VLOOKUP(C540,Descriptions!I:M,5,FALSE),\"N\")","v":"N"},true,"NTRUE",0,{"$f":"IFERROR(VLOOKUP(D540,'Bank and Fund Details'!$B$14:$L$35,11,FALSE),\"N\")","v":"Y"},"NY"]
[null,null,null,"General Fund",null,null,null,null,null,{"$f":"VLOOKUP(D541,'Bank and Fund Details'!$B$15:$D$36,3,FALSE)","v":0},{"$f":"VLOOKUP(D541,'Bank and Fund Details'!$B$15:$C$36,2,FALSE)","v":"Unrestricted"},{"$f":"IFERROR(VLOOKUP(C541,Descriptions!$I$6:$K$92,3,FALSE),\"\")","v":""},null,null,null,null,null,null,null,null,null,null,null,null,null,null,"General Fund",null,{"$f":"IFERROR(VLOOKUP(C541,Descriptions!I:M,5,FALSE),\"N\")","v":"N"},true,"NTRUE",0,{"$f":"IFERROR(VLOOKUP(D541,'Bank and Fund Details'!$B$14:$L$35,11,FALSE),\"N\")","v":"Y"},"NY"]
[null,null,null,"General Fund",null,null,null,null,null,{"$f":"VLOOKUP(D542,'Bank and Fund Details'!$B$15:$D$36,3,FALSE)","v":0},{"$f":"VLOOKUP(D542,'Bank and Fund Details'!$B$15:$C$36,2,FALSE)","v":"Unrestricted"},{"$f":"IFERROR(VLOOKUP(C542,Descriptions!$I$6:$K$92,3,FALSE),\"\")","v":""},null,null,null,null,null,null,null,null,null,null,null,null,null,null,"General Fund",null,{"$f":"IFERROR(VLOOKUP(C542,Descriptions!I:M,5,FALSE),\"N\")","v":"N"},true,"NTRUE",0,{"$f":"IFERROR(VLOOKUP(D542,'Bank and Fund Details'!$B$14:$L$35,11,FALSE),\"N\")","v":"Y"},"NY"]
[null,null,null,"General Fund",null,null,null,null,null,{"$f":"VLOOKUP(D543,'Bank and Fund Details'!$B$15:$D$36,3,FALSE)","v":0},{"$f":"VLOOKUP(D543,'Bank and Fund Details'!$B$15:$C$36,2,FALSE)","v":"Unrestricted"},{"$f":"IFERROR(VLOOKUP(C543,Descriptions!$I$6:$K$92,3,FALSE),\"\")","v":""},null,null,null,null,null,null,null,null,null,null,null,null,null,null,"General Fund",null,{"$f":"IFERROR(VLOOKUP(C543,Descriptions!I:M,5,FALSE),\"N\")","v":"N"},true,"NTRUE",0,{"$f":"IFERROR(VLOOKUP(D543,'Bank and Fund Details'!$B$14:$L$35,11,FALSE),\"N\")","v":"Y"},"NY"]
[null,null,null,"General Fund",null,null,null,null,null,{"$f":"VLOOKUP(D544,'Bank and Fund Details'!$B$15:$D$36,3,FALSE)","v":0},{"$f":"VLOOKUP(D544,'Bank and Fund Details'!$B$15:$C$36,2,FALSE)","v":"Unrestricted"},{"$f":"IFERROR(VLOOKUP(C544,Descriptions!$I$6:$K$92,3,FALSE),\"\")","v":""},null,null,null,null,null,null,null,null,null,null,null,null,null,null,"General Fund",null,{"$f":"IFERROR(VLOOKUP(C544,Descriptions!I:M,5,FALSE),\"N\")","v":"N"},true,"NTRUE",0,{"$f":"IFERROR(VLOOKUP(D544,'Bank and Fund Details'!$B$14:$L$35,11,FALSE),\"N\")","v":"Y"},"NY"]
[null,null,null,"General Fund",null,null,null,null,null,{"$f":"VLOOKUP(D545,'Bank and Fund Details'!$B$15:$D$36,3,FALSE)","v":0},{"$f":"VLOOKUP(D545,'Bank and Fund Details'!$B$15:$C$36,2,FALSE)","v":"Unrestricted"},{"$f":"IFERROR(VLOOKUP(C545,Descriptions!$I$6:$K$92,3,FALSE),\"\")","v":""},null,null,null,null,null,null,null,null,null,null,null,null,null,null,"General Fund",null,{"$f":"IFERROR(VLOOKUP(C545,Descriptions!I:M,5,FALSE),\"N\")","v":"N"},true,"NTRUE",0,{"$f":"IFERROR(VLOOKUP(D545,'Bank and Fund Details'!$B$14:$L$35,11,FALSE),\"N\")","v":"Y"},"NY"]
[null,null,null,"General Fund",null,null,null,null,null,{"$f":"VLOOKUP(D546,'Bank and Fund Details'!$B$15:$D$36,3,FALSE)","v":0},{"$f":"VLOOKUP(D546,'Bank and Fund Details'!$B$15:$C$36,2,FALSE)","v":"Unrestricted"},{"$f":"IFERROR(VLOOKUP(C546,Descriptions!$I$6:$K$92,3,FALSE),\"\")","v":""},null,null,null,null,null,null,null,null,null,null,null,null,null,null,"General Fund",null,{"$f":"IFERROR(VLOOKUP(C546,Descriptions!I:M,5,FALSE),\"N\")","v":"N"},true,"NTRUE",0,{"$f":"IFERROR(VLOOKUP(D546,'Bank and Fund Details'!$B$14:$L$35,11,FALSE),\"N\")","v":"Y"},"NY"]
[null,null,null,"General Fund",null,null,null,null,null,{"$f":"VLOOKUP(D547,'Bank and Fund Details'!$B$15:$D$36,3,FALSE)","v":0},{"$f":"VLOOKUP(D547,'Bank and Fund Details'!$B$15:$C$36,2,FALSE)","v":"Unrestricted"},{"$f":"IFERROR(VLOOKUP(C547,Descriptions!$I$6:$K$92,3,FALSE),\"\")","v":""},null,null,null,null,null,null,null,null,null,null,null,null,null,null,"General Fund",null,{"$f":"IFERROR(VLOOKUP(C547,Descriptions!I:M,5,FALSE),\"N\")","v":"N"},true,"NTRUE",0,{"$f":"IFERROR(VLOOKUP(D547,'Bank and Fund Details'!$B$14:$L$35,11,FALSE),\"N\")","v":"Y"},"NY"]
[null,null,null,"General Fund",null,null,null,null,null,{"$f":"VLOOKUP(D548,'Bank and Fund Details'!$B$15:$D$36,3,FALSE)","v":0},{"$f":"VLOOKUP(D548,'Bank and Fund Details'!$B$15:$C$36,2,FALSE)","v":"Unrestricted"},{"$f":"IFERROR(VLOOKUP(C548,Descriptions!$I$6:$K$92,3,FALSE),\"\")","v":""},null,null,null,null,null,null,null,null,null,null,null,null,null,null,"General Fund",null,{"$f":"IFERROR(VLOOKUP(C548,Descriptions!I:M,5,FALSE),\"N\")","v":"N"},true,"NTRUE",0,{"$f":"IFERROR(VLOOKUP(D548,'Bank and Fund Details'!$B$14:$L$35,11,FALSE),\"N\")","v":"Y"},"NY"]
[null,null,null,"General Fund",null,null,null,null,null,{"$f":"VLOOKUP(D549,'Bank and Fund Details'!$B$15:$D$36,3,FALSE)","v":0},{"$f":"VLOOKUP(D549,'Bank and Fund Details'!$B$15:$C$36,2,FALSE)","v":"Unrestricted"},{"$f":"IFERROR(VLOOKUP(C549,Descriptions!$I$6:$K$92,3,FALSE),\"\")","v":""},null,null,null,null,null,null,null,null,null,null,null,null,null,null,"General Fund",null,{"$f":"IFERROR(VLOOKUP(C549,Descriptions!I:M,5,FALSE),\"N\")","v":"N"},true,"NTRUE",0,{"$f":"IFERROR(VLOOKUP(D549,'Bank and Fund Details'!$B$14:$L$35,11,FALSE),\"N\")","v":"Y"},"NY"]
[null,null,null,"General Fund",null,null,null,null,null,{"$f":"VLOOKUP(D550,'Bank and Fund Details'!$B$15:$D$36,3,FALSE)","v":0},{"$f":"VLOOKUP(D550,'Bank and Fund Details'!$B$15:$C$36,2,FALSE)","v":"Unrestricted"},{"$f":"IFERROR(VLOOKUP(C550,Descriptions!$I$6:$K$92,3,FALSE),\"\")","v":""},null,null,null,null,null,null,null,null,null,null,null,null,null,null,"General Fund",null,{"$f":"IFERROR(VLOOKUP(C550,Descriptions!I:M,5,FALSE),\"N\")","v":"N"},true,"NTRUE",0,{"$f":"IFERROR(VLOOKUP(D550,'Bank and Fund Details'!$B$14:$L$35,11,FALSE),\"N\")","v":"Y"},"NY"]
[null,null,null,"General Fund",null,null,null,null,null,{"$f":"VLOOKUP(D551,'Bank and Fund Details'!$B$15:$D$36,3,FALSE)","v":0},{"$f":"VLOOKUP(D551,'Bank and Fund Details'!$B$15:$C$36,2,FALSE)","v":"Unrestricted"},{"$f":"IFERROR(VLOOKUP(C551,Descriptions!$I$6:$K$92,3,FALSE),\"\")","v":""},null,null,null,null,null,null,null,null,null,null,null,null,null,null,"General Fund",null,{"$f":"IFERROR(VLOOKUP(C551,Descriptions!I:M,5,FALSE),\"N\")","v":"N"},true,"NTRUE",0,{"$f":"IFERROR(VLOOKUP(D551,'Bank and Fund Details'!$B$14:$L$35,11,FALSE),\"N\")","v":"Y"},"NY"]
[null,null,null,"General Fund",null,null,null,null,null,{"$f":"VLOOKUP(D552,'Bank and Fund Details'!$B$15:$D$36,3,FALSE)","v":0},{"$f":"VLOOKUP(D552,'Bank and Fund Details'!$B$15:$C$36,2,FALSE)","v":"Unrestricted"},{"$f":"IFERROR(VLOOKUP(C552,Descriptions!$I$6:$K$92,3,FALSE),\"\")","v":""},null,null,null,null,null,null,null,null,null,null,null,null,null,null,"General Fund",null,{"$f":"IFERROR(VLOOKUP(C552,Descriptions!I:M,5,FALSE),\"N\")","v":"N"},true,"NTRUE",0,{"$f":"IFERROR(VLOOKUP(D552,'Bank and Fund Details'!$B$14:$L$35,11,FALSE),\"N\")","v":"Y"},"NY"]
[null,null,null,"General Fund",null,null,null,null,null,{"$f":"VLOOKUP(D553,'Bank and Fund Details'!$B$15:$D$36,3,FALSE)","v":0},{"$f":"VLOOKUP(D553,'Bank and Fund Details'!$B$15:$C$36,2,FALSE)","v":"Unrestricted"},{"$f":"IFERROR(VLOOKUP(C553,Descriptions!$I$6:$K$92,3,FALSE),\"\")","v":""},null,null,null,null,null,null,null,null,null,null,null,null,null,null,"General Fund",null,{"$f":"IFERROR(VLOOKUP(C553,Descriptions!I:M,5,FALSE),\"N\")","v":"N"},true,"NTRUE",0,{"$f":"IFERROR(VLOOKUP(D553,'Bank and Fund Details'!$B$14:$L$35,11,FALSE),\"N\")","v":"Y"},"NY"]
[null,null,null,"General Fund",null,null,null,null,null,{"$f":"VLOOKUP(D554,'Bank and Fund Details'!$B$15:$D$36,3,FALSE)","v":0},{"$f":"VLOOKUP(D554,'Bank and Fund Details'!$B$15:$C$36,2,FALSE)","v":"Unrestricted"},{"$f":"IFERROR(VLOOKUP(C554,Descriptions!$I$6:$K$92,3,FALSE),\"\")","v":""},null,null,null,null,null,null,null,null,null,null,null,null,null,null,"General Fund",null,{"$f":"IFERROR(VLOOKUP(C554,Descriptions!I:M,5,FALSE),\"N\")","v":"N"},true,"NTRUE",0,{"$f":"IFERROR(VLOOKUP(D554,'Bank and Fund Details'!$B$14:$L$35,11,FALSE),\"N\")","v":"Y"},"NY"]
[null,null,null,"General Fund",null,null,null,null,null,{"$f":"VLOOKUP(D555,'Bank and Fund Details'!$B$15:$D$36,3,FALSE)","v":0},{"$f":"VLOOKUP(D555,'Bank and Fund Details'!$B$15:$C$36,2,FALSE)","v":"Unrestricted"},{"$f":"IFERROR(VLOOKUP(C555,Descriptions!$I$6:$K$92,3,FALSE),\"\")","v":""},null,null,null,null,null,null,null,null,null,null,null,null,null,null,"General Fund",null,{"$f":"IFERROR(VLOOKUP(C555,Descriptions!I:M,5,FALSE),\"N\")","v":"N"},true,"NTRUE",0,{"$f":"IFERROR(VLOOKUP(D555,'Bank and Fund Details'!$B$14:$L$35,11,FALSE),\"N\")","v":"Y"},"NY"]
[null,null,null,"General Fund",null,null,null,null,null,{"$f":"VLOOKUP(D556,'Bank and Fund Details'!$B$15:$D$36,3,FALSE)","v":0},{"$f":"VLOOKUP(D556,'Bank and Fund Details'!$B$15:$C$36,2,FALSE)","v":"Unrestricted"},{"$f":"IFERROR(VLOOKUP(C556,Descriptions!$I$6:$K$92,3,FALSE),\"\")","v":""},null,null,null,null,null,null,null,null,null,null,null,null,null,null,"General Fund",null,{"$f":"IFERROR(VLOOKUP(C556,Descriptions!I:M,5,FALSE),\"N\")","v":"N"},true,"NTRUE",0,{"$f":"IFERROR(VLOOKUP(D556,'Bank and Fund Details'!$B$14:$L$35,11,FALSE),\"N\")","v":"Y"},"NY"]
[null,null,null,"General Fund",null,null,null,null,null,{"$f":"VLOOKUP(D557,'Bank and Fund Details'!$B$15:$D$36,3,FALSE)","v":0},{"$f":"VLOOKUP(D557,'Bank and Fund Details'!$B$15:$C$36,2,FALSE)","v":"Unrestricted"},{"$f":"IFERROR(VLOOKUP(C557,Descriptions!$I$6:$K$92,3,FALSE),\"\")","v":""},null,null,null,null,null,null,null,null,null,null,null,null,null,null,"General Fund",null,{"$f":"IFERROR(VLOOKUP(C557,Descriptions!I:M,5,FALSE),\"N\")","v":"N"},true,"NTRUE",0,{"$f":"IFERROR(VLOOKUP(D557,'Bank and Fund Details'!$B$14:$L$35,11,FALSE),\"N\")","v":"Y"},"NY"]
[null,null,null,"General Fund",null,null,null,null,null,{"$f":"VLOOKUP(D558,'Bank and Fund Details'!$B$15:$D$36,3,FALSE)","v":0},{"$f":"VLOOKUP(D558,'Bank and Fund Details'!$B$15:$C$36,2,FALSE)","v":"Unrestricted"},{"$f":"IFERROR(VLOOKUP(C558,Descriptions!$I$6:$K$92,3,FALSE),\"\")","v":""},null,null,null,null,null,null,null,null,null,null,null,null,null,null,"General Fund",null,{"$f":"IFERROR(VLOOKUP(C558,Descriptions!I:M,5,FALSE),\"N\")","v":"N"},true,"NTRUE",0,{"$f":"IFERROR(VLOOKUP(D558,'Bank and Fund Details'!$B$14:$L$35,11,FALSE),\"N\")","v":"Y"},"NY"]
[null,null,null,"General Fund",null,null,null,null,null,{"$f":"VLOOKUP(D559,'Bank and Fund Details'!$B$15:$D$36,3,FALSE)","v":0},{"$f":"VLOOKUP(D559,'Bank and Fund Details'!$B$15:$C$36,2,FALSE)","v":"Unrestricted"},{"$f":"IFERROR(VLOOKUP(C559,Descriptions!$I$6:$K$92,3,FALSE),\"\")","v":""},null,null,null,null,null,null,null,null,null,null,null,null,null,null,"General Fund",null,{"$f":"IFERROR(VLOOKUP(C559,Descriptions!I:M,5,FALSE),\"N\")","v":"N"},true,"NTRUE",0,{"$f":"IFERROR(VLOOKUP(D559,'Bank and Fund Details'!$B$14:$L$35,11,FALSE),\"N\")","v":"Y"},"NY"]
[null,null,null,"General Fund",null,null,null,null,null,{"$f":"VLOOKUP(D560,'Bank and Fund Details'!$B$15:$D$36,3,FALSE)","v":0},{"$f":"VLOOKUP(D560,'Bank and Fund Details'!$B$15:$C$36,2,FALSE)","v":"Unrestricted"},{"$f":"IFERROR(VLOOKUP(C560,Descriptions!$I$6:$K$92,3,FALSE),\"\")","v":""},null,null,null,null,null,null,null,null,null,null,null,null,null,null,"General Fund",null,{"$f":"IFERROR(VLOOKUP(C560,Descriptions!I:M,5,FALSE),\"N\")","v":"N"},true,"NTRUE",0,{"$f":"IFERROR(VLOOKUP(D560,'Bank and Fund Details'!$B$14:$L$35,11,FALSE),\"N\")","v":"Y"},"NY"]
[null,null,null,"General Fund",null,null,null,null,null,{"$f":"VLOOKUP(D561,'Bank and Fund Details'!$B$15:$D$36,3,FALSE)","v":0},{"$f":"VLOOKUP(D561,'Bank and Fund Details'!$B$15:$C$36,2,FALSE)","v":"Unrestricted"},{"$f":"IFERROR(VLOOKUP(C561,Descriptions!$I$6:$K$92,3,FALSE),\"\")","v":""},null,null,null,null,null,null,null,null,null,null,null,null,null,null,"General Fund",null,{"$f":"IFERROR(VLOOKUP(C561,Descriptions!I:M,5,FALSE),\"N\")","v":"N"},true,"NTRUE",0,{"$f":"IFERROR(VLOOKUP(D561,'Bank and Fund Details'!$B$14:$L$35,11,FALSE),\"N\")","v":"Y"},"NY"]
[null,null,null,"General Fund",null,null,null,null,null,{"$f":"VLOOKUP(D562,'Bank and Fund Details'!$B$15:$D$36,3,FALSE)","v":0},{"$f":"VLOOKUP(D562,'Bank and Fund Details'!$B$15:$C$36,2,FALSE)","v":"Unrestricted"},{"$f":"IFERROR(VLOOKUP(C562,Descriptions!$I$6:$K$92,3,FALSE),\"\")","v":""},null,null,null,null,null,null,null,null,null,null,null,null,null,null,"General Fund",null,{"$f":"IFERROR(VLOOKUP(C562,Descriptions!I:M,5,FALSE),\"N\")","v":"N"},true,"NTRUE",0,{"$f":"IFERROR(VLOOKUP(D562,'Bank and Fund Details'!$B$14:$L$35,11,FALSE),\"N\")","v":"Y"},"NY"]
[null,null,null,"General Fund",null,null,null,null,null,{"$f":"VLOOKUP(D563,'Bank and Fund Details'!$B$15:$D$36,3,FALSE)","v":0},{"$f":"VLOOKUP(D563,'Bank and Fund Details'!$B$15:$C$36,2,FALSE)","v":"Unrestricted"},{"$f":"IFERROR(VLOOKUP(C563,Descriptions!$I$6:$K$92,3,FALSE),\"\")","v":""},null,null,null,null,null,null,null,null,null,null,null,null,null,null,"General Fund",null,{"$f":"IFERROR(VLOOKUP(C563,Descriptions!I:M,5,FALSE),\"N\")","v":"N"},true,"NTRUE",0,{"$f":"IFERROR(VLOOKUP(D563,'Bank and Fund Details'!$B$14:$L$35,11,FALSE),\"N\")","v":"Y"},"NY"]
[null,null,null,"General Fund",null,null,null,null,null,{"$f":"VLOOKUP(D564,'Bank and Fund Details'!$B$15:$D$36,3,FALSE)","v":0},{"$f":"VLOOKUP(D564,'Bank and Fund Details'!$B$15:$C$36,2,FALSE)","v":"Unrestricted"},{"$f":"IFERROR(VLOOKUP(C564,Descriptions!$I$6:$K$92,3,FALSE),\"\")","v":""},null,null,null,null,null,null,null,null,null,null,null,null,null,null,"General Fund",null,{"$f":"IFERROR(VLOOKUP(C564,Descriptions!I:M,5,FALSE),\"N\")","v":"N"},true,"NTRUE",0,{"$f":"IFERROR(VLOOKUP(D564,'Bank and Fund Details'!$B$14:$L$35,11,FALSE),\"N\")","v":"Y"},"NY"]
[null,null,null,"General Fund",null,null,null,null,null,{"$f":"VLOOKUP(D565,'Bank and Fund Details'!$B$15:$D$36,3,FALSE)","v":0},{"$f":"VLOOKUP(D565,'Bank and Fund Details'!$B$15:$C$36,2,FALSE)","v":"Unrestricted"},{"$f":"IFERROR(VLOOKUP(C565,Descriptions!$I$6:$K$92,3,FALSE),\"\")","v":""},null,null,null,null,null,null,null,null,null,null,null,null,null,null,"General Fund",null,{"$f":"IFERROR(VLOOKUP(C565,Descriptions!I:M,5,FALSE),\"N\")","v":"N"},true,"NTRUE",0,{"$f":"IFERROR(VLOOKUP(D565,'Bank and Fund Details'!$B$14:$L$35,11,FALSE),\"N\")","v":"Y"},"NY"]
[null,null,null,"General Fund",null,null,null,null,null,{"$f":"VLOOKUP(D566,'Bank and Fund Details'!$B$15:$D$36,3,FALSE)","v":0},{"$f":"VLOOKUP(D566,'Bank and Fund Details'!$B$15:$C$36,2,FALSE)","v":"Unrestricted"},{"$f":"IFERROR(VLOOKUP(C566,Descriptions!$I$6:$K$92,3,FALSE),\"\")","v":""},null,null,null,null,null,null,null,null,null,null,null,null,null,null,"General Fund",null,{"$f":"IFERROR(VLOOKUP(C566,Descriptions!I:M,5,FALSE),\"N\")","v":"N"},true,"NTRUE",0,{"$f":"IFERROR(VLOOKUP(D566,'Bank and Fund Details'!$B$14:$L$35,11,FALSE),\"N\")","v":"Y"},"NY"]
[null,null,null,"General Fund",null,null,null,null,null,{"$f":"VLOOKUP(D567,'Bank and Fund Details'!$B$15:$D$36,3,FALSE)","v":0},{"$f":"VLOOKUP(D567,'Bank and Fund Details'!$B$15:$C$36,2,FALSE)","v":"Unrestricted"},{"$f":"IFERROR(VLOOKUP(C567,Descriptions!$I$6:$K$92,3,FALSE),\"\")","v":""},null,null,null,null,null,null,null,null,null,null,null,null,null,null,"General Fund",null,{"$f":"IFERROR(VLOOKUP(C567,Descriptions!I:M,5,FALSE),\"N\")","v":"N"},true,"NTRUE",0,{"$f":"IFERROR(VLOOKUP(D567,'Bank and Fund Details'!$B$14:$L$35,11,FALSE),\"N\")","v":"Y"},"NY"]
[null,null,null,"General Fund",null,null,null,null,null,{"$f":"VLOOKUP(D568,'Bank and Fund Details'!$B$15:$D$36,3,FALSE)","v":0},{"$f":"VLOOKUP(D568,'Bank and Fund Details'!$B$15:$C$36,2,FALSE)","v":"Unrestricted"},{"$f":"IFERROR(VLOOKUP(C568,Descriptions!$I$6:$K$92,3,FALSE),\"\")","v":""},null,null,null,null,null,null,null,null,null,null,null,null,null,null,"General Fund",null,{"$f":"IFERROR(VLOOKUP(C568,Descriptions!I:M,5,FALSE),\"N\")","v":"N"},true,"NTRUE",0,{"$f":"IFERROR(VLOOKUP(D568,'Bank and Fund Details'!$B$14:$L$35,11,FALSE),\"N\")","v":"Y"},"NY"]
[null,null,null,"General Fund",null,null,null,null,null,{"$f":"VLOOKUP(D569,'Bank and Fund Details'!$B$15:$D$36,3,FALSE)","v":0},{"$f":"VLOOKUP(D569,'Bank and Fund Details'!$B$15:$C$36,2,FALSE)","v":"Unrestricted"},{"$f":"IFERROR(VLOOKUP(C569,Descriptions!$I$6:$K$92,3,FALSE),\"\")","v":""},null,null,null,null,null,null,null,null,null,null,null,null,null,null,"General Fund",null,{"$f":"IFERROR(VLOOKUP(C569,Descriptions!I:M,5,FALSE),\"N\")","v":"N"},true,"NTRUE",0,{"$f":"IFERROR(VLOOKUP(D569,'Bank and Fund Details'!$B$14:$L$35,11,FALSE),\"N\")","v":"Y"},"NY"]
[null,null,null,"General Fund",null,null,null,null,null,{"$f":"VLOOKUP(D570,'Bank and Fund Details'!$B$15:$D$36,3,FALSE)","v":0},{"$f":"VLOOKUP(D570,'Bank and Fund Details'!$B$15:$C$36,2,FALSE)","v":"Unrestricted"},{"$f":"IFERROR(VLOOKUP(C570,Descriptions!$I$6:$K$92,3,FALSE),\"\")","v":""},null,null,null,null,null,null,null,null,null,null,null,null,null,null,"General Fund",null,{"$f":"IFERROR(VLOOKUP(C570,Descriptions!I:M,5,FALSE),\"N\")","v":"N"},true,"NTRUE",0,{"$f":"IFERROR(VLOOKUP(D570,'Bank and Fund Details'!$B$14:$L$35,11,FALSE),\"N\")","v":"Y"},"NY"]
[null,null,null,"General Fund",null,null,null,null,null,{"$f":"VLOOKUP(D571,'Bank and Fund Details'!$B$15:$D$36,3,FALSE)","v":0},{"$f":"VLOOKUP(D571,'Bank and Fund Details'!$B$15:$C$36,2,FALSE)","v":"Unrestricted"},{"$f":"IFERROR(VLOOKUP(C571,Descriptions!$I$6:$K$92,3,FALSE),\"\")","v":""},null,null,null,null,null,null,null,null,null,null,null,null,null,null,"General Fund",null,{"$f":"IFERROR(VLOOKUP(C571,Descriptions!I:M,5,FALSE),\"N\")","v":"N"},true,"NTRUE",0,{"$f":"IFERROR(VLOOKUP(D571,'Bank and Fund Details'!$B$14:$L$35,11,FALSE),\"N\")","v":"Y"},"NY"]
[null,null,null,"General Fund",null,null,null,null,null,{"$f":"VLOOKUP(D572,'Bank and Fund Details'!$B$15:$D$36,3,FALSE)","v":0},{"$f":"VLOOKUP(D572,'Bank and Fund Details'!$B$15:$C$36,2,FALSE)","v":"Unrestricted"},{"$f":"IFERROR(VLOOKUP(C572,Descriptions!$I$6:$K$92,3,FALSE),\"\")","v":""},null,null,null,null,null,null,null,null,null,null,null,null,null,null,"General Fund",null,{"$f":"IFERROR(VLOOKUP(C572,Descriptions!I:M,5,FALSE),\"N\")","v":"N"},true,"NTRUE",0,{"$f":"IFERROR(VLOOKUP(D572,'Bank and Fund Details'!$B$14:$L$35,11,FALSE),\"N\")","v":"Y"},"NY"]
[null,null,null,"General Fund",null,null,null,null,null,{"$f":"VLOOKUP(D573,'Bank and Fund Details'!$B$15:$D$36,3,FALSE)","v":0},{"$f":"VLOOKUP(D573,'Bank and Fund Details'!$B$15:$C$36,2,FALSE)","v":"Unrestricted"},{"$f":"IFERROR(VLOOKUP(C573,Descriptions!$I$6:$K$92,3,FALSE),\"\")","v":""},null,null,null,null,null,null,null,null,null,null,null,null,null,null,"General Fund",null,{"$f":"IFERROR(VLOOKUP(C573,Descriptions!I:M,5,FALSE),\"N\")","v":"N"},true,"NTRUE",0,{"$f":"IFERROR(VLOOKUP(D573,'Bank and Fund Details'!$B$14:$L$35,11,FALSE),\"N\")","v":"Y"},"NY"]
[null,null,null,"General Fund",null,null,null,null,null,{"$f":"VLOOKUP(D574,'Bank and Fund Details'!$B$15:$D$36,3,FALSE)","v":0},{"$f":"VLOOKUP(D574,'Bank and Fund Details'!$B$15:$C$36,2,FALSE)","v":"Unrestricted"},{"$f":"IFERROR(VLOOKUP(C574,Descriptions!$I$6:$K$92,3,FALSE),\"\")","v":""},null,null,null,null,null,null,null,null,null,null,null,null,null,null,"General Fund",null,{"$f":"IFERROR(VLOOKUP(C574,Descriptions!I:M,5,FALSE),\"N\")","v":"N"},true,"NTRUE",0,{"$f":"IFERROR(VLOOKUP(D574,'Bank and Fund Details'!$B$14:$L$35,11,FALSE),\"N\")","v":"Y"},"NY"]
[null,null,null,"General Fund",null,null,null,null,null,{"$f":"VLOOKUP(D575,'Bank and Fund Details'!$B$15:$D$36,3,FALSE)","v":0},{"$f":"VLOOKUP(D575,'Bank and Fund Details'!$B$15:$C$36,2,FALSE)","v":"Unrestricted"},{"$f":"IFERROR(VLOOKUP(C575,Descriptions!$I$6:$K$92,3,FALSE),\"\")","v":""},null,null,null,null,null,null,null,null,null,null,null,null,null,null,"General Fund",null,{"$f":"IFERROR(VLOOKUP(C575,Descriptions!I:M,5,FALSE),\"N\")","v":"N"},true,"NTRUE",0,{"$f":"IFERROR(VLOOKUP(D575,'Bank and Fund Details'!$B$14:$L$35,11,FALSE),\"N\")","v":"Y"},"NY"]
[null,null,null,"General Fund",null,null,null,null,null,{"$f":"VLOOKUP(D576,'Bank and Fund Details'!$B$15:$D$36,3,FALSE)","v":0},{"$f":"VLOOKUP(D576,'Bank and Fund Details'!$B$15:$C$36,2,FALSE)","v":"Unrestricted"},{"$f":"IFERROR(VLOOKUP(C576,Descriptions!$I$6:$K$92,3,FALSE),\"\")","v":""},null,null,null,null,null,null,null,null,null,null,null,null,null,null,"General Fund",null,{"$f":"IFERROR(VLOOKUP(C576,Descriptions!I:M,5,FALSE),\"N\")","v":"N"},true,"NTRUE",0,{"$f":"IFERROR(VLOOKUP(D576,'Bank and Fund Details'!$B$14:$L$35,11,FALSE),\"N\")","v":"Y"},"NY"]
[null,null,null,"General Fund",null,null,null,null,null,{"$f":"VLOOKUP(D577,'Bank and Fund Details'!$B$15:$D$36,3,FALSE)","v":0},{"$f":"VLOOKUP(D577,'Bank and Fund Details'!$B$15:$C$36,2,FALSE)","v":"Unrestricted"},{"$f":"IFERROR(VLOOKUP(C577,Descriptions!$I$6:$K$92,3,FALSE),\"\")","v":""},null,null,null,null,null,null,null,null,null,null,null,null,null,null,"General Fund",null,{"$f":"IFERROR(VLOOKUP(C577,Descriptions!I:M,5,FALSE),\"N\")","v":"N"},true,"NTRUE",0,{"$f":"IFERROR(VLOOKUP(D577,'Bank and Fund Details'!$B$14:$L$35,11,FALSE),\"N\")","v":"Y"},"NY"]
[null,null,null,"General Fund",null,null,null,null,null,{"$f":"VLOOKUP(D578,'Bank and Fund Details'!$B$15:$D$36,3,FALSE)","v":0},{"$f":"VLOOKUP(D578,'Bank and Fund Details'!$B$15:$C$36,2,FALSE)","v":"Unrestricted"},{"$f":"IFERROR(VLOOKUP(C578,Descriptions!$I$6:$K$92,3,FALSE),\"\")","v":""},null,null,null,null,null,null,null,null,null,null,null,null,null,null,"General Fund",null,{"$f":"IFERROR(VLOOKUP(C578,Descriptions!I:M,5,FALSE),\"N\")","v":"N"},true,"NTRUE",0,{"$f":"IFERROR(VLOOKUP(D578,'Bank and Fund Details'!$B$14:$L$35,11,FALSE),\"N\")","v":"Y"},"NY"]
[null,null,null,"General Fund",null,null,null,null,null,{"$f":"VLOOKUP(D579,'Bank and Fund Details'!$B$15:$D$36,3,FALSE)","v":0},{"$f":"VLOOKUP(D579,'Bank and Fund Details'!$B$15:$C$36,2,FALSE)","v":"Unrestricted"},{"$f":"IFERROR(VLOOKUP(C579,Descriptions!$I$6:$K$92,3,FALSE),\"\")","v":""},null,null,null,null,null,null,null,null,null,null,null,null,null,null,"General Fund",null,{"$f":"IFERROR(VLOOKUP(C579,Descriptions!I:M,5,FALSE),\"N\")","v":"N"},true,"NTRUE",0,{"$f":"IFERROR(VLOOKUP(D579,'Bank and Fund Details'!$B$14:$L$35,11,FALSE),\"N\")","v":"Y"},"NY"]
[null,null,null,"General Fund",null,null,null,null,null,{"$f":"VLOOKUP(D580,'Bank and Fund Details'!$B$15:$D$36,3,FALSE)","v":0},{"$f":"VLOOKUP(D580,'Bank and Fund Details'!$B$15:$C$36,2,FALSE)","v":"Unrestricted"},{"$f":"IFERROR(VLOOKUP(C580,Descriptions!$I$6:$K$92,3,FALSE),\"\")","v":""},null,null,null,null,null,null,null,null,null,null,null,null,null,null,"General Fund",null,{"$f":"IFERROR(VLOOKUP(C580,Descriptions!I:M,5,FALSE),\"N\")","v":"N"},true,"NTRUE",0,{"$f":"IFERROR(VLOOKUP(D580,'Bank and Fund Details'!$B$14:$L$35,11,FALSE),\"N\")","v":"Y"},"NY"]
[null,null,null,"General Fund",null,null,null,null,null,{"$f":"VLOOKUP(D581,'Bank and Fund Details'!$B$15:$D$36,3,FALSE)","v":0},{"$f":"VLOOKUP(D581,'Bank and Fund Details'!$B$15:$C$36,2,FALSE)","v":"Unrestricted"},{"$f":"IFERROR(VLOOKUP(C581,Descriptions!$I$6:$K$92,3,FALSE),\"\")","v":""},null,null,null,null,null,null,null,null,null,null,null,null,null,null,"General Fund",null,{"$f":"IFERROR(VLOOKUP(C581,Descriptions!I:M,5,FALSE),\"N\")","v":"N"},true,"NTRUE",0,{"$f":"IFERROR(VLOOKUP(D581,'Bank and Fund Details'!$B$14:$L$35,11,FALSE),\"N\")","v":"Y"},"NY"]
[null,null,null,"General Fund",null,null,null,null,null,{"$f":"VLOOKUP(D582,'Bank and Fund Details'!$B$15:$D$36,3,FALSE)","v":0},{"$f":"VLOOKUP(D582,'Bank and Fund Details'!$B$15:$C$36,2,FALSE)","v":"Unrestricted"},{"$f":"IFERROR(VLOOKUP(C582,Descriptions!$I$6:$K$92,3,FALSE),\"\")","v":""},null,null,null,null,null,null,null,null,null,null,null,null,null,null,{"$f":"CONCATENATE(C582,D582)","v":"General Fund"},null,{"$f":"IFERROR(VLOOKUP(C582,Descriptions!I:M,5,FALSE),\"N\")","v":"N"},{"$f":"ISBLANK(C582)","v":true},{"$f":"CONCATENATE(AC582,AD582)","v":"NTRUE"},{"$f":"IF(AE582=\"NFALSE\",1,0)","v":0},{"$f":"IFERROR(VLOOKUP(D582,'Bank and Fund Details'!$B$14:$L$35,11,FALSE),\"N\")","v":"Y"},{"$f":"CONCATENATE(AC582,AG582)","v":"NY"}]
[null,null,null,"General Fund",null,null,null,null,null,{"$f":"VLOOKUP(D583,'Bank and Fund Details'!$B$15:$D$36,3,FALSE)","v":0},{"$f":"VLOOKUP(D583,'Bank and Fund Details'!$B$15:$C$36,2,FALSE)","v":"Unrestricted"},{"$f":"IFERROR(VLOOKUP(C583,Descriptions!$I$6:$K$92,3,FALSE),\"\")","v":""},null,null,null,null,null,null,null,null,null,null,null,null,null,null,"General Fund",null,{"$f":"IFERROR(VLOOKUP(C583,Descriptions!I:M,5,FALSE),\"N\")","v":"N"},true,"NTRUE",0,{"$f":"IFERROR(VLOOKUP(D583,'Bank and Fund Details'!$B$14:$L$35,11,FALSE),\"N\")","v":"Y"},"NY"]
[null,null,null,"General Fund",null,null,null,null,null,{"$f":"VLOOKUP(D584,'Bank and Fund Details'!$B$15:$D$36,3,FALSE)","v":0},{"$f":"VLOOKUP(D584,'Bank and Fund Details'!$B$15:$C$36,2,FALSE)","v":"Unrestricted"},{"$f":"IFERROR(VLOOKUP(C584,Descriptions!$I$6:$K$92,3,FALSE),\"\")","v":""},null,null,null,null,null,null,null,null,null,null,null,null,null,null,"General Fund",null,{"$f":"IFERROR(VLOOKUP(C584,Descriptions!I:M,5,FALSE),\"N\")","v":"N"},true,"NTRUE",0,{"$f":"IFERROR(VLOOKUP(D584,'Bank and Fund Details'!$B$14:$L$35,11,FALSE),\"N\")","v":"Y"},"NY"]
[null,null,null,"General Fund",null,null,null,null,null,{"$f":"VLOOKUP(D585,'Bank and Fund Details'!$B$15:$D$36,3,FALSE)","v":0},{"$f":"VLOOKUP(D585,'Bank and Fund Details'!$B$15:$C$36,2,FALSE)","v":"Unrestricted"},{"$f":"IFERROR(VLOOKUP(C585,Descriptions!$I$6:$K$92,3,FALSE),\"\")","v":""},null,null,null,null,null,null,null,null,null,null,null,null,null,null,"General Fund",null,{"$f":"IFERROR(VLOOKUP(C585,Descriptions!I:M,5,FALSE),\"N\")","v":"N"},true,"NTRUE",0,{"$f":"IFERROR(VLOOKUP(D585,'Bank and Fund Details'!$B$14:$L$35,11,FALSE),\"N\")","v":"Y"},"NY"]
[null,null,null,"General Fund",null,null,null,null,null,{"$f":"VLOOKUP(D586,'Bank and Fund Details'!$B$15:$D$36,3,FALSE)","v":0},{"$f":"VLOOKUP(D586,'Bank and Fund Details'!$B$15:$C$36,2,FALSE)","v":"Unrestricted"},{"$f":"IFERROR(VLOOKUP(C586,Descriptions!$I$6:$K$92,3,FALSE),\"\")","v":""},null,null,null,null,null,null,null,null,null,null,null,null,null,null,"General Fund",null,{"$f":"IFERROR(VLOOKUP(C586,Descriptions!I:M,5,FALSE),\"N\")","v":"N"},true,"NTRUE",0,{"$f":"IFERROR(VLOOKUP(D586,'Bank and Fund Details'!$B$14:$L$35,11,FALSE),\"N\")","v":"Y"},"NY"]
[null,null,null,"General Fund",null,null,null,null,null,{"$f":"VLOOKUP(D587,'Bank and Fund Details'!$B$15:$D$36,3,FALSE)","v":0},{"$f":"VLOOKUP(D587,'Bank and Fund Details'!$B$15:$C$36,2,FALSE)","v":"Unrestricted"},{"$f":"IFERROR(VLOOKUP(C587,Descriptions!$I$6:$K$92,3,FALSE),\"\")","v":""},null,null,null,null,null,null,null,null,null,null,null,null,null,null,"General Fund",null,{"$f":"IFERROR(VLOOKUP(C587,Descriptions!I:M,5,FALSE),\"N\")","v":"N"},true,"NTRUE",0,{"$f":"IFERROR(VLOOKUP(D587,'Bank and Fund Details'!$B$14:$L$35,11,FALSE),\"N\")","v":"Y"},"NY"]
[null,null,null,"General Fund",null,null,null,null,null,{"$f":"VLOOKUP(D588,'Bank and Fund Details'!$B$15:$D$36,3,FALSE)","v":0},{"$f":"VLOOKUP(D588,'Bank and Fund Details'!$B$15:$C$36,2,FALSE)","v":"Unrestricted"},{"$f":"IFERROR(VLOOKUP(C588,Descriptions!$I$6:$K$92,3,FALSE),\"\")","v":""},null,null,null,null,null,null,null,null,null,null,null,null,null,null,"General Fund",null,{"$f":"IFERROR(VLOOKUP(C588,Descriptions!I:M,5,FALSE),\"N\")","v":"N"},true,"NTRUE",0,{"$f":"IFERROR(VLOOKUP(D588,'Bank and Fund Details'!$B$14:$L$35,11,FALSE),\"N\")","v":"Y"},"NY"]
[null,null,null,"General Fund",null,null,null,null,null,{"$f":"VLOOKUP(D589,'Bank and Fund Details'!$B$15:$D$36,3,FALSE)","v":0},{"$f":"VLOOKUP(D589,'Bank and Fund Details'!$B$15:$C$36,2,FALSE)","v":"Unrestricted"},{"$f":"IFERROR(VLOOKUP(C589,Descriptions!$I$6:$K$92,3,FALSE),\"\")","v":""},null,null,null,null,null,null,null,null,null,null,null,null,null,null,"General Fund",null,{"$f":"IFERROR(VLOOKUP(C589,Descriptions!I:M,5,FALSE),\"N\")","v":"N"},true,"NTRUE",0,{"$f":"IFERROR(VLOOKUP(D589,'Bank and Fund Details'!$B$14:$L$35,11,FALSE),\"N\")","v":"Y"},"NY"]
[null,null,null,"General Fund",null,null,null,null,null,{"$f":"VLOOKUP(D590,'Bank and Fund Details'!$B$15:$D$36,3,FALSE)","v":0},{"$f":"VLOOKUP(D590,'Bank and Fund Details'!$B$15:$C$36,2,FALSE)","v":"Unrestricted"},{"$f":"IFERROR(VLOOKUP(C590,Descriptions!$I$6:$K$92,3,FALSE),\"\")","v":""},null,null,null,null,null,null,null,null,null,null,null,null,null,null,"General Fund",null,{"$f":"IFERROR(VLOOKUP(C590,Descriptions!I:M,5,FALSE),\"N\")","v":"N"},true,"NTRUE",0,{"$f":"IFERROR(VLOOKUP(D590,'Bank and Fund Details'!$B$14:$L$35,11,FALSE),\"N\")","v":"Y"},"NY"]
[null,null,null,"General Fund",null,null,null,null,null,{"$f":"VLOOKUP(D591,'Bank and Fund Details'!$B$15:$D$36,3,FALSE)","v":0},{"$f":"VLOOKUP(D591,'Bank and Fund Details'!$B$15:$C$36,2,FALSE)","v":"Unrestricted"},{"$f":"IFERROR(VLOOKUP(C591,Descriptions!$I$6:$K$92,3,FALSE),\"\")","v":""},null,null,null,null,null,null,null,null,null,null,null,null,null,null,"General Fund",null,{"$f":"IFERROR(VLOOKUP(C591,Descriptions!I:M,5,FALSE),\"N\")","v":"N"},true,"NTRUE",0,{"$f":"IFERROR(VLOOKUP(D591,'Bank and Fund Details'!$B$14:$L$35,11,FALSE),\"N\")","v":"Y"},"NY"]
[null,null,null,"General Fund",null,null,null,null,null,{"$f":"VLOOKUP(D592,'Bank and Fund Details'!$B$15:$D$36,3,FALSE)","v":0},{"$f":"VLOOKUP(D592,'Bank and Fund Details'!$B$15:$C$36,2,FALSE)","v":"Unrestricted"},{"$f":"IFERROR(VLOOKUP(C592,Descriptions!$I$6:$K$92,3,FALSE),\"\")","v":""},null,null,null,null,null,null,null,null,null,null,null,null,null,null,"General Fund",null,{"$f":"IFERROR(VLOOKUP(C592,Descriptions!I:M,5,FALSE),\"N\")","v":"N"},true,"NTRUE",0,{"$f":"IFERROR(VLOOKUP(D592,'Bank and Fund Details'!$B$14:$L$35,11,FALSE),\"N\")","v":"Y"},"NY"]
[null,null,null,"General Fund",null,null,null,null,null,{"$f":"VLOOKUP(D593,'Bank and Fund Details'!$B$15:$D$36,3,FALSE)","v":0},{"$f":"VLOOKUP(D593,'Bank and Fund Details'!$B$15:$C$36,2,FALSE)","v":"Unrestricted"},{"$f":"IFERROR(VLOOKUP(C593,Descriptions!$I$6:$K$92,3,FALSE),\"\")","v":""},null,null,null,null,null,null,null,null,null,null,null,null,null,null,"General Fund",null,{"$f":"IFERROR(VLOOKUP(C593,Descriptions!I:M,5,FALSE),\"N\")","v":"N"},true,"NTRUE",0,{"$f":"IFERROR(VLOOKUP(D593,'Bank and Fund Details'!$B$14:$L$35,11,FALSE),\"N\")","v":"Y"},"NY"]
[null,null,null,"General Fund",null,null,null,null,null,{"$f":"VLOOKUP(D594,'Bank and Fund Details'!$B$15:$D$36,3,FALSE)","v":0},{"$f":"VLOOKUP(D594,'Bank and Fund Details'!$B$15:$C$36,2,FALSE)","v":"Unrestricted"},{"$f":"IFERROR(VLOOKUP(C594,Descriptions!$I$6:$K$92,3,FALSE),\"\")","v":""},null,null,null,null,null,null,null,null,null,null,null,null,null,null,"General Fund",null,{"$f":"IFERROR(VLOOKUP(C594,Descriptions!I:M,5,FALSE),\"N\")","v":"N"},true,"NTRUE",0,{"$f":"IFERROR(VLOOKUP(D594,'Bank and Fund Details'!$B$14:$L$35,11,FALSE),\"N\")","v":"Y"},"NY"]
[null,null,null,"General Fund",null,null,null,null,null,{"$f":"VLOOKUP(D595,'Bank and Fund Details'!$B$15:$D$36,3,FALSE)","v":0},{"$f":"VLOOKUP(D595,'Bank and Fund Details'!$B$15:$C$36,2,FALSE)","v":"Unrestricted"},{"$f":"IFERROR(VLOOKUP(C595,Descriptions!$I$6:$K$92,3,FALSE),\"\")","v":""},null,null,null,null,null,null,null,null,null,null,null,null,null,null,"General Fund",null,{"$f":"IFERROR(VLOOKUP(C595,Descriptions!I:M,5,FALSE),\"N\")","v":"N"},true,"NTRUE",0,{"$f":"IFERROR(VLOOKUP(D595,'Bank and Fund Details'!$B$14:$L$35,11,FALSE),\"N\")","v":"Y"},"NY"]
[null,null,null,"General Fund",null,null,null,null,null,{"$f":"VLOOKUP(D596,'Bank and Fund Details'!$B$15:$D$36,3,FALSE)","v":0},{"$f":"VLOOKUP(D596,'Bank and Fund Details'!$B$15:$C$36,2,FALSE)","v":"Unrestricted"},{"$f":"IFERROR(VLOOKUP(C596,Descriptions!$I$6:$K$92,3,FALSE),\"\")","v":""},null,null,null,null,null,null,null,null,null,null,null,null,null,null,"General Fund",null,{"$f":"IFERROR(VLOOKUP(C596,Descriptions!I:M,5,FALSE),\"N\")","v":"N"},true,"NTRUE",0,{"$f":"IFERROR(VLOOKUP(D596,'Bank and Fund Details'!$B$14:$L$35,11,FALSE),\"N\")","v":"Y"},"NY"]
[null,null,null,"General Fund",null,null,null,null,null,{"$f":"VLOOKUP(D597,'Bank and Fund Details'!$B$15:$D$36,3,FALSE)","v":0},{"$f":"VLOOKUP(D597,'Bank and Fund Details'!$B$15:$C$36,2,FALSE)","v":"Unrestricted"},{"$f":"IFERROR(VLOOKUP(C597,Descriptions!$I$6:$K$92,3,FALSE),\"\")","v":""},null,null,null,null,null,null,null,null,null,null,null,null,null,null,"General Fund",null,{"$f":"IFERROR(VLOOKUP(C597,Descriptions!I:M,5,FALSE),\"N\")","v":"N"},true,"NTRUE",0,{"$f":"IFERROR(VLOOKUP(D597,'Bank and Fund Details'!$B$14:$L$35,11,FALSE),\"N\")","v":"Y"},"NY"]
[null,null,null,"General Fund",null,null,null,null,null,{"$f":"VLOOKUP(D598,'Bank and Fund Details'!$B$15:$D$36,3,FALSE)","v":0},{"$f":"VLOOKUP(D598,'Bank and Fund Details'!$B$15:$C$36,2,FALSE)","v":"Unrestricted"},{"$f":"IFERROR(VLOOKUP(C598,Descriptions!$I$6:$K$92,3,FALSE),\"\")","v":""},null,null,null,null,null,null,null,null,null,null,null,null,null,null,"General Fund",null,{"$f":"IFERROR(VLOOKUP(C598,Descriptions!I:M,5,FALSE),\"N\")","v":"N"},true,"NTRUE",0,{"$f":"IFERROR(VLOOKUP(D598,'Bank and Fund Details'!$B$14:$L$35,11,FALSE),\"N\")","v":"Y"},"NY"]
[null,null,null,"General Fund",null,null,null,null,null,{"$f":"VLOOKUP(D599,'Bank and Fund Details'!$B$15:$D$36,3,FALSE)","v":0},{"$f":"VLOOKUP(D599,'Bank and Fund Details'!$B$15:$C$36,2,FALSE)","v":"Unrestricted"},{"$f":"IFERROR(VLOOKUP(C599,Descriptions!$I$6:$K$92,3,FALSE),\"\")","v":""},null,null,null,null,null,null,null,null,null,null,null,null,null,null,"General Fund",null,{"$f":"IFERROR(VLOOKUP(C599,Descriptions!I:M,5,FALSE),\"N\")","v":"N"},true,"NTRUE",0,{"$f":"IFERROR(VLOOKUP(D599,'Bank and Fund Details'!$B$14:$L$35,11,FALSE),\"N\")","v":"Y"},"NY"]
[null,null,null,"General Fund",null,null,null,null,null,{"$f":"VLOOKUP(D600,'Bank and Fund Details'!$B$15:$D$36,3,FALSE)","v":0},{"$f":"VLOOKUP(D600,'Bank and Fund Details'!$B$15:$C$36,2,FALSE)","v":"Unrestricted"},{"$f":"IFERROR(VLOOKUP(C600,Descriptions!$I$6:$K$92,3,FALSE),\"\")","v":""},null,null,null,null,null,null,null,null,null,null,null,null,null,null,"General Fund",null,{"$f":"IFERROR(VLOOKUP(C600,Descriptions!I:M,5,FALSE),\"N\")","v":"N"},true,"NTRUE",0,{"$f":"IFERROR(VLOOKUP(D600,'Bank and Fund Details'!$B$14:$L$35,11,FALSE),\"N\")","v":"Y"},"NY"]
[null,null,null,"General Fund",null,null,null,null,null,{"$f":"VLOOKUP(D601,'Bank and Fund Details'!$B$15:$D$36,3,FALSE)","v":0},{"$f":"VLOOKUP(D601,'Bank and Fund Details'!$B$15:$C$36,2,FALSE)","v":"Unrestricted"},{"$f":"IFERROR(VLOOKUP(C601,Descriptions!$I$6:$K$92,3,FALSE),\"\")","v":""},null,null,null,null,null,null,null,null,null,null,null,null,null,null,"General Fund",null,{"$f":"IFERROR(VLOOKUP(C601,Descriptions!I:M,5,FALSE),\"N\")","v":"N"},true,"NTRUE",0,{"$f":"IFERROR(VLOOKUP(D601,'Bank and Fund Details'!$B$14:$L$35,11,FALSE),\"N\")","v":"Y"},"NY"]
[null,null,null,"General Fund",null,null,null,null,null,{"$f":"VLOOKUP(D602,'Bank and Fund Details'!$B$15:$D$36,3,FALSE)","v":0},{"$f":"VLOOKUP(D602,'Bank and Fund Details'!$B$15:$C$36,2,FALSE)","v":"Unrestricted"},{"$f":"IFERROR(VLOOKUP(C602,Descriptions!$I$6:$K$92,3,FALSE),\"\")","v":""},null,null,null,null,null,null,null,null,null,null,null,null,null,null,"General Fund",null,{"$f":"IFERROR(VLOOKUP(C602,Descriptions!I:M,5,FALSE),\"N\")","v":"N"},true,"NTRUE",0,{"$f":"IFERROR(VLOOKUP(D602,'Bank and Fund Details'!$B$14:$L$35,11,FALSE),\"N\")","v":"Y"},"NY"]
[null,null,null,"General Fund",null,null,null,null,null,{"$f":"VLOOKUP(D603,'Bank and Fund Details'!$B$15:$D$36,3,FALSE)","v":0},{"$f":"VLOOKUP(D603,'Bank and Fund Details'!$B$15:$C$36,2,FALSE)","v":"Unrestricted"},{"$f":"IFERROR(VLOOKUP(C603,Descriptions!$I$6:$K$92,3,FALSE),\"\")","v":""},null,null,null,null,null,null,null,null,null,null,null,null,null,null,"General Fund",null,{"$f":"IFERROR(VLOOKUP(C603,Descriptions!I:M,5,FALSE),\"N\")","v":"N"},true,"NTRUE",0,{"$f":"IFERROR(VLOOKUP(D603,'Bank and Fund Details'!$B$14:$L$35,11,FALSE),\"N\")","v":"Y"},"NY"]
[null,null,null,"General Fund",null,null,null,null,null,{"$f":"VLOOKUP(D604,'Bank and Fund Details'!$B$15:$D$36,3,FALSE)","v":0},{"$f":"VLOOKUP(D604,'Bank and Fund Details'!$B$15:$C$36,2,FALSE)","v":"Unrestricted"},{"$f":"IFERROR(VLOOKUP(C604,Descriptions!$I$6:$K$92,3,FALSE),\"\")","v":""},null,null,null,null,null,null,null,null,null,null,null,null,null,null,"General Fund",null,{"$f":"IFERROR(VLOOKUP(C604,Descriptions!I:M,5,FALSE),\"N\")","v":"N"},true,"NTRUE",0,{"$f":"IFERROR(VLOOKUP(D604,'Bank and Fund Details'!$B$14:$L$35,11,FALSE),\"N\")","v":"Y"},"NY"]
[null,null,null,"General Fund",null,null,null,null,null,{"$f":"VLOOKUP(D605,'Bank and Fund Details'!$B$15:$D$36,3,FALSE)","v":0},{"$f":"VLOOKUP(D605,'Bank and Fund Details'!$B$15:$C$36,2,FALSE)","v":"Unrestricted"},{"$f":"IFERROR(VLOOKUP(C605,Descriptions!$I$6:$K$92,3,FALSE),\"\")","v":""},null,null,null,null,null,null,null,null,null,null,null,null,null,null,"General Fund",null,{"$f":"IFERROR(VLOOKUP(C605,Descriptions!I:M,5,FALSE),\"N\")","v":"N"},true,"NTRUE",0,{"$f":"IFERROR(VLOOKUP(D605,'Bank and Fund Details'!$B$14:$L$35,11,FALSE),\"N\")","v":"Y"},"NY"]
[null,null,null,"General Fund",null,null,null,null,null,{"$f":"VLOOKUP(D606,'Bank and Fund Details'!$B$15:$D$36,3,FALSE)","v":0},{"$f":"VLOOKUP(D606,'Bank and Fund Details'!$B$15:$C$36,2,FALSE)","v":"Unrestricted"},{"$f":"IFERROR(VLOOKUP(C606,Descriptions!$I$6:$K$92,3,FALSE),\"\")","v":""},null,null,null,null,null,null,null,null,null,null,null,null,null,null,"General Fund",null,{"$f":"IFERROR(VLOOKUP(C606,Descriptions!I:M,5,FALSE),\"N\")","v":"N"},true,"NTRUE",0,{"$f":"IFERROR(VLOOKUP(D606,'Bank and Fund Details'!$B$14:$L$35,11,FALSE),\"N\")","v":"Y"},"NY"]
[null,null,null,"General Fund",null,null,null,null,null,{"$f":"VLOOKUP(D607,'Bank and Fund Details'!$B$15:$D$36,3,FALSE)","v":0},{"$f":"VLOOKUP(D607,'Bank and Fund Details'!$B$15:$C$36,2,FALSE)","v":"Unrestricted"},{"$f":"IFERROR(VLOOKUP(C607,Descriptions!$I$6:$K$92,3,FALSE),\"\")","v":""},null,null,null,null,null,null,null,null,null,null,null,null,null,null,"General Fund",null,{"$f":"IFERROR(VLOOKUP(C607,Descriptions!I:M,5,FALSE),\"N\")","v":"N"},true,"NTRUE",0,{"$f":"IFERROR(VLOOKUP(D607,'Bank and Fund Details'!$B$14:$L$35,11,FALSE),\"N\")","v":"Y"},"NY"]
[null,null,null,"General Fund",null,null,null,null,null,{"$f":"VLOOKUP(D608,'Bank and Fund Details'!$B$15:$D$36,3,FALSE)","v":0},{"$f":"VLOOKUP(D608,'Bank and Fund Details'!$B$15:$C$36,2,FALSE)","v":"Unrestricted"},{"$f":"IFERROR(VLOOKUP(C608,Descriptions!$I$6:$K$92,3,FALSE),\"\")","v":""},null,null,null,null,null,null,null,null,null,null,null,null,null,null,"General Fund",null,{"$f":"IFERROR(VLOOKUP(C608,Descriptions!I:M,5,FALSE),\"N\")","v":"N"},true,"NTRUE",0,{"$f":"IFERROR(VLOOKUP(D608,'Bank and Fund Details'!$B$14:$L$35,11,FALSE),\"N\")","v":"Y"},"NY"]
[null,null,null,"General Fund",null,null,null,null,null,{"$f":"VLOOKUP(D609,'Bank and Fund Details'!$B$15:$D$36,3,FALSE)","v":0},{"$f":"VLOOKUP(D609,'Bank and Fund Details'!$B$15:$C$36,2,FALSE)","v":"Unrestricted"},{"$f":"IFERROR(VLOOKUP(C609,Descriptions!$I$6:$K$92,3,FALSE),\"\")","v":""},null,null,null,null,null,null,null,null,null,null,null,null,null,null,"General Fund",null,{"$f":"IFERROR(VLOOKUP(C609,Descriptions!I:M,5,FALSE),\"N\")","v":"N"},true,"NTRUE",0,{"$f":"IFERROR(VLOOKUP(D609,'Bank and Fund Details'!$B$14:$L$35,11,FALSE),\"N\")","v":"Y"},"NY"]
[null,null,null,"General Fund",null,null,null,null,null,{"$f":"VLOOKUP(D610,'Bank and Fund Details'!$B$15:$D$36,3,FALSE)","v":0},{"$f":"VLOOKUP(D610,'Bank and Fund Details'!$B$15:$C$36,2,FALSE)","v":"Unrestricted"},{"$f":"IFERROR(VLOOKUP(C610,Descriptions!$I$6:$K$92,3,FALSE),\"\")","v":""},null,null,null,null,null,null,null,null,null,null,null,null,null,null,"General Fund",null,{"$f":"IFERROR(VLOOKUP(C610,Descriptions!I:M,5,FALSE),\"N\")","v":"N"},true,"NTRUE",0,{"$f":"IFERROR(VLOOKUP(D610,'Bank and Fund Details'!$B$14:$L$35,11,FALSE),\"N\")","v":"Y"},"NY"]
[null,null,null,"General Fund",null,null,null,null,null,{"$f":"VLOOKUP(D611,'Bank and Fund Details'!$B$15:$D$36,3,FALSE)","v":0},{"$f":"VLOOKUP(D611,'Bank and Fund Details'!$B$15:$C$36,2,FALSE)","v":"Unrestricted"},{"$f":"IFERROR(VLOOKUP(C611,Descriptions!$I$6:$K$92,3,FALSE),\"\")","v":""},null,null,null,null,null,null,null,null,null,null,null,null,null,null,"General Fund",null,{"$f":"IFERROR(VLOOKUP(C611,Descriptions!I:M,5,FALSE),\"N\")","v":"N"},true,"NTRUE",0,{"$f":"IFERROR(VLOOKUP(D611,'Bank and Fund Details'!$B$14:$L$35,11,FALSE),\"N\")","v":"Y"},"NY"]
[null,null,null,"General Fund",null,null,null,null,null,{"$f":"VLOOKUP(D612,'Bank and Fund Details'!$B$15:$D$36,3,FALSE)","v":0},{"$f":"VLOOKUP(D612,'Bank and Fund Details'!$B$15:$C$36,2,FALSE)","v":"Unrestricted"},{"$f":"IFERROR(VLOOKUP(C612,Descriptions!$I$6:$K$92,3,FALSE),\"\")","v":""},null,null,null,null,null,null,null,null,null,null,null,null,null,null,"General Fund",null,{"$f":"IFERROR(VLOOKUP(C612,Descriptions!I:M,5,FALSE),\"N\")","v":"N"},true,"NTRUE",0,{"$f":"IFERROR(VLOOKUP(D612,'Bank and Fund Details'!$B$14:$L$35,11,FALSE),\"N\")","v":"Y"},"NY"]
[null,null,null,"General Fund",null,null,null,null,null,{"$f":"VLOOKUP(D613,'Bank and Fund Details'!$B$15:$D$36,3,FALSE)","v":0},{"$f":"VLOOKUP(D613,'Bank and Fund Details'!$B$15:$C$36,2,FALSE)","v":"Unrestricted"},{"$f":"IFERROR(VLOOKUP(C613,Descriptions!$I$6:$K$92,3,FALSE),\"\")","v":""},null,null,null,null,null,null,null,null,null,null,null,null,null,null,"General Fund",null,{"$f":"IFERROR(VLOOKUP(C613,Descriptions!I:M,5,FALSE),\"N\")","v":"N"},true,"NTRUE",0,{"$f":"IFERROR(VLOOKUP(D613,'Bank and Fund Details'!$B$14:$L$35,11,FALSE),\"N\")","v":"Y"},"NY"]
[null,null,null,"General Fund",null,null,null,null,null,{"$f":"VLOOKUP(D614,'Bank and Fund Details'!$B$15:$D$36,3,FALSE)","v":0},{"$f":"VLOOKUP(D614,'Bank and Fund Details'!$B$15:$C$36,2,FALSE)","v":"Unrestricted"},{"$f":"IFERROR(VLOOKUP(C614,Descriptions!$I$6:$K$92,3,FALSE),\"\")","v":""},null,null,null,null,null,null,null,null,null,null,null,null,null,null,"General Fund",null,{"$f":"IFERROR(VLOOKUP(C614,Descriptions!I:M,5,FALSE),\"N\")","v":"N"},true,"NTRUE",0,{"$f":"IFERROR(VLOOKUP(D614,'Bank and Fund Details'!$B$14:$L$35,11,FALSE),\"N\")","v":"Y"},"NY"]
[null,null,null,"General Fund",null,null,null,null,null,{"$f":"VLOOKUP(D615,'Bank and Fund Details'!$B$15:$D$36,3,FALSE)","v":0},{"$f":"VLOOKUP(D615,'Bank and Fund Details'!$B$15:$C$36,2,FALSE)","v":"Unrestricted"},{"$f":"IFERROR(VLOOKUP(C615,Descriptions!$I$6:$K$92,3,FALSE),\"\")","v":""},null,null,null,null,null,null,null,null,null,null,null,null,null,null,"General Fund",null,{"$f":"IFERROR(VLOOKUP(C615,Descriptions!I:M,5,FALSE),\"N\")","v":"N"},true,"NTRUE",0,{"$f":"IFERROR(VLOOKUP(D615,'Bank and Fund Details'!$B$14:$L$35,11,FALSE),\"N\")","v":"Y"},"NY"]
[null,null,null,"General Fund",null,null,null,null,null,{"$f":"VLOOKUP(D616,'Bank and Fund Details'!$B$15:$D$36,3,FALSE)","v":0},{"$f":"VLOOKUP(D616,'Bank and Fund Details'!$B$15:$C$36,2,FALSE)","v":"Unrestricted"},{"$f":"IFERROR(VLOOKUP(C616,Descriptions!$I$6:$K$92,3,FALSE),\"\")","v":""},null,null,null,null,null,null,null,null,null,null,null,null,null,null,"General Fund",null,{"$f":"IFERROR(VLOOKUP(C616,Descriptions!I:M,5,FALSE),\"N\")","v":"N"},true,"NTRUE",0,{"$f":"IFERROR(VLOOKUP(D616,'Bank and Fund Details'!$B$14:$L$35,11,FALSE),\"N\")","v":"Y"},"NY"]
[null,null,null,"General Fund",null,null,null,null,null,{"$f":"VLOOKUP(D617,'Bank and Fund Details'!$B$15:$D$36,3,FALSE)","v":0},{"$f":"VLOOKUP(D617,'Bank and Fund Details'!$B$15:$C$36,2,FALSE)","v":"Unrestricted"},{"$f":"IFERROR(VLOOKUP(C617,Descriptions!$I$6:$K$92,3,FALSE),\"\")","v":""},null,null,null,null,null,null,null,null,null,null,null,null,null,null,"General Fund",null,{"$f":"IFERROR(VLOOKUP(C617,Descriptions!I:M,5,FALSE),\"N\")","v":"N"},true,"NTRUE",0,{"$f":"IFERROR(VLOOKUP(D617,'Bank and Fund Details'!$B$14:$L$35,11,FALSE),\"N\")","v":"Y"},"NY"]
[null,null,null,"General Fund",null,null,null,null,null,{"$f":"VLOOKUP(D618,'Bank and Fund Details'!$B$15:$D$36,3,FALSE)","v":0},{"$f":"VLOOKUP(D618,'Bank and Fund Details'!$B$15:$C$36,2,FALSE)","v":"Unrestricted"},{"$f":"IFERROR(VLOOKUP(C618,Descriptions!$I$6:$K$92,3,FALSE),\"\")","v":""},null,null,null,null,null,null,null,null,null,null,null,null,null,null,"General Fund",null,{"$f":"IFERROR(VLOOKUP(C618,Descriptions!I:M,5,FALSE),\"N\")","v":"N"},true,"NTRUE",0,{"$f":"IFERROR(VLOOKUP(D618,'Bank and Fund Details'!$B$14:$L$35,11,FALSE),\"N\")","v":"Y"},"NY"]
[null,null,null,"General Fund",null,null,null,null,null,{"$f":"VLOOKUP(D619,'Bank and Fund Details'!$B$15:$D$36,3,FALSE)","v":0},{"$f":"VLOOKUP(D619,'Bank and Fund Details'!$B$15:$C$36,2,FALSE)","v":"Unrestricted"},{"$f":"IFERROR(VLOOKUP(C619,Descriptions!$I$6:$K$92,3,FALSE),\"\")","v":""},null,null,null,null,null,null,null,null,null,null,null,null,null,null,"General Fund",null,{"$f":"IFERROR(VLOOKUP(C619,Descriptions!I:M,5,FALSE),\"N\")","v":"N"},true,"NTRUE",0,{"$f":"IFERROR(VLOOKUP(D619,'Bank and Fund Details'!$B$14:$L$35,11,FALSE),\"N\")","v":"Y"},"NY"]
[null,null,null,"General Fund",null,null,null,null,null,{"$f":"VLOOKUP(D620,'Bank and Fund Details'!$B$15:$D$36,3,FALSE)","v":0},{"$f":"VLOOKUP(D620,'Bank and Fund Details'!$B$15:$C$36,2,FALSE)","v":"Unrestricted"},{"$f":"IFERROR(VLOOKUP(C620,Descriptions!$I$6:$K$92,3,FALSE),\"\")","v":""},null,null,null,null,null,null,null,null,null,null,null,null,null,null,"General Fund",null,{"$f":"IFERROR(VLOOKUP(C620,Descriptions!I:M,5,FALSE),\"N\")","v":"N"},true,"NTRUE",0,{"$f":"IFERROR(VLOOKUP(D620,'Bank and Fund Details'!$B$14:$L$35,11,FALSE),\"N\")","v":"Y"},"NY"]
[null,null,null,"General Fund",null,null,null,null,null,{"$f":"VLOOKUP(D621,'Bank and Fund Details'!$B$15:$D$36,3,FALSE)","v":0},{"$f":"VLOOKUP(D621,'Bank and Fund Details'!$B$15:$C$36,2,FALSE)","v":"Unrestricted"},{"$f":"IFERROR(VLOOKUP(C621,Descriptions!$I$6:$K$92,3,FALSE),\"\")","v":""},null,null,null,null,null,null,null,null,null,null,null,null,null,null,"General Fund",null,{"$f":"IFERROR(VLOOKUP(C621,Descriptions!I:M,5,FALSE),\"N\")","v":"N"},true,"NTRUE",0,{"$f":"IFERROR(VLOOKUP(D621,'Bank and Fund Details'!$B$14:$L$35,11,FALSE),\"N\")","v":"Y"},"NY"]
[null,null,null,"General Fund",null,null,null,null,null,{"$f":"VLOOKUP(D622,'Bank and Fund Details'!$B$15:$D$36,3,FALSE)","v":0},{"$f":"VLOOKUP(D622,'Bank and Fund Details'!$B$15:$C$36,2,FALSE)","v":"Unrestricted"},{"$f":"IFERROR(VLOOKUP(C622,Descriptions!$I$6:$K$92,3,FALSE),\"\")","v":""},null,null,null,null,null,null,null,null,null,null,null,null,null,null,"General Fund",null,{"$f":"IFERROR(VLOOKUP(C622,Descriptions!I:M,5,FALSE),\"N\")","v":"N"},true,"NTRUE",0,{"$f":"IFERROR(VLOOKUP(D622,'Bank and Fund Details'!$B$14:$L$35,11,FALSE),\"N\")","v":"Y"},"NY"]
[null,null,null,"General Fund",null,null,null,null,null,{"$f":"VLOOKUP(D623,'Bank and Fund Details'!$B$15:$D$36,3,FALSE)","v":0},{"$f":"VLOOKUP(D623,'Bank and Fund Details'!$B$15:$C$36,2,FALSE)","v":"Unrestricted"},{"$f":"IFERROR(VLOOKUP(C623,Descriptions!$I$6:$K$92,3,FALSE),\"\")","v":""},null,null,null,null,null,null,null,null,null,null,null,null,null,null,"General Fund",null,{"$f":"IFERROR(VLOOKUP(C623,Descriptions!I:M,5,FALSE),\"N\")","v":"N"},true,"NTRUE",0,{"$f":"IFERROR(VLOOKUP(D623,'Bank and Fund Details'!$B$14:$L$35,11,FALSE),\"N\")","v":"Y"},"NY"]
[null,null,null,"General Fund",null,null,null,null,null,{"$f":"VLOOKUP(D624,'Bank and Fund Details'!$B$15:$D$36,3,FALSE)","v":0},{"$f":"VLOOKUP(D624,'Bank and Fund Details'!$B$15:$C$36,2,FALSE)","v":"Unrestricted"},{"$f":"IFERROR(VLOOKUP(C624,Descriptions!$I$6:$K$92,3,FALSE),\"\")","v":""},null,null,null,null,null,null,null,null,null,null,null,null,null,null,"General Fund",null,{"$f":"IFERROR(VLOOKUP(C624,Descriptions!I:M,5,FALSE),\"N\")","v":"N"},true,"NTRUE",0,{"$f":"IFERROR(VLOOKUP(D624,'Bank and Fund Details'!$B$14:$L$35,11,FALSE),\"N\")","v":"Y"},"NY"]
[null,null,null,"General Fund",null,null,null,null,null,{"$f":"VLOOKUP(D625,'Bank and Fund Details'!$B$15:$D$36,3,FALSE)","v":0},{"$f":"VLOOKUP(D625,'Bank and Fund Details'!$B$15:$C$36,2,FALSE)","v":"Unrestricted"},{"$f":"IFERROR(VLOOKUP(C625,Descriptions!$I$6:$K$92,3,FALSE),\"\")","v":""},null,null,null,null,null,null,null,null,null,null,null,null,null,null,"General Fund",null,{"$f":"IFERROR(VLOOKUP(C625,Descriptions!I:M,5,FALSE),\"N\")","v":"N"},true,"NTRUE",0,{"$f":"IFERROR(VLOOKUP(D625,'Bank and Fund Details'!$B$14:$L$35,11,FALSE),\"N\")","v":"Y"},"NY"]
[null,null,null,"General Fund",null,null,null,null,null,{"$f":"VLOOKUP(D626,'Bank and Fund Details'!$B$15:$D$36,3,FALSE)","v":0},{"$f":"VLOOKUP(D626,'Bank and Fund Details'!$B$15:$C$36,2,FALSE)","v":"Unrestricted"},{"$f":"IFERROR(VLOOKUP(C626,Descriptions!$I$6:$K$92,3,FALSE),\"\")","v":""},null,null,null,null,null,null,null,null,null,null,null,null,null,null,"General Fund",null,{"$f":"IFERROR(VLOOKUP(C626,Descriptions!I:M,5,FALSE),\"N\")","v":"N"},true,"NTRUE",0,{"$f":"IFERROR(VLOOKUP(D626,'Bank and Fund Details'!$B$14:$L$35,11,FALSE),\"N\")","v":"Y"},"NY"]
[null,null,null,"General Fund",null,null,null,null,null,{"$f":"VLOOKUP(D627,'Bank and Fund Details'!$B$15:$D$36,3,FALSE)","v":0},{"$f":"VLOOKUP(D627,'Bank and Fund Details'!$B$15:$C$36,2,FALSE)","v":"Unrestricted"},{"$f":"IFERROR(VLOOKUP(C627,Descriptions!$I$6:$K$92,3,FALSE),\"\")","v":""},null,null,null,null,null,null,null,null,null,null,null,null,null,null,"General Fund",null,{"$f":"IFERROR(VLOOKUP(C627,Descriptions!I:M,5,FALSE),\"N\")","v":"N"},true,"NTRUE",0,{"$f":"IFERROR(VLOOKUP(D627,'Bank and Fund Details'!$B$14:$L$35,11,FALSE),\"N\")","v":"Y"},"NY"]
[null,null,null,"General Fund",null,null,null,null,null,{"$f":"VLOOKUP(D628,'Bank and Fund Details'!$B$15:$D$36,3,FALSE)","v":0},{"$f":"VLOOKUP(D628,'Bank and Fund Details'!$B$15:$C$36,2,FALSE)","v":"Unrestricted"},{"$f":"IFERROR(VLOOKUP(C628,Descriptions!$I$6:$K$92,3,FALSE),\"\")","v":""},null,null,null,null,null,null,null,null,null,null,null,null,null,null,"General Fund",null,{"$f":"IFERROR(VLOOKUP(C628,Descriptions!I:M,5,FALSE),\"N\")","v":"N"},true,"NTRUE",0,{"$f":"IFERROR(VLOOKUP(D628,'Bank and Fund Details'!$B$14:$L$35,11,FALSE),\"N\")","v":"Y"},"NY"]
[null,null,null,"General Fund",null,null,null,null,null,{"$f":"VLOOKUP(D629,'Bank and Fund Details'!$B$15:$D$36,3,FALSE)","v":0},{"$f":"VLOOKUP(D629,'Bank and Fund Details'!$B$15:$C$36,2,FALSE)","v":"Unrestricted"},{"$f":"IFERROR(VLOOKUP(C629,Descriptions!$I$6:$K$92,3,FALSE),\"\")","v":""},null,null,null,null,null,null,null,null,null,null,null,null,null,null,"General Fund",null,{"$f":"IFERROR(VLOOKUP(C629,Descriptions!I:M,5,FALSE),\"N\")","v":"N"},true,"NTRUE",0,{"$f":"IFERROR(VLOOKUP(D629,'Bank and Fund Details'!$B$14:$L$35,11,FALSE),\"N\")","v":"Y"},"NY"]
[null,null,null,"General Fund",null,null,null,null,null,{"$f":"VLOOKUP(D630,'Bank and Fund Details'!$B$15:$D$36,3,FALSE)","v":0},{"$f":"VLOOKUP(D630,'Bank and Fund Details'!$B$15:$C$36,2,FALSE)","v":"Unrestricted"},{"$f":"IFERROR(VLOOKUP(C630,Descriptions!$I$6:$K$92,3,FALSE),\"\")","v":""},null,null,null,null,null,null,null,null,null,null,null,null,null,null,"General Fund",null,{"$f":"IFERROR(VLOOKUP(C630,Descriptions!I:M,5,FALSE),\"N\")","v":"N"},true,"NTRUE",0,{"$f":"IFERROR(VLOOKUP(D630,'Bank and Fund Details'!$B$14:$L$35,11,FALSE),\"N\")","v":"Y"},"NY"]
[null,null,null,"General Fund",null,null,null,null,null,{"$f":"VLOOKUP(D631,'Bank and Fund Details'!$B$15:$D$36,3,FALSE)","v":0},{"$f":"VLOOKUP(D631,'Bank and Fund Details'!$B$15:$C$36,2,FALSE)","v":"Unrestricted"},{"$f":"IFERROR(VLOOKUP(C631,Descriptions!$I$6:$K$92,3,FALSE),\"\")","v":""},null,null,null,null,null,null,null,null,null,null,null,null,null,null,"General Fund",null,{"$f":"IFERROR(VLOOKUP(C631,Descriptions!I:M,5,FALSE),\"N\")","v":"N"},true,"NTRUE",0,{"$f":"IFERROR(VLOOKUP(D631,'Bank and Fund Details'!$B$14:$L$35,11,FALSE),\"N\")","v":"Y"},"NY"]
[null,null,null,"General Fund",null,null,null,null,null,{"$f":"VLOOKUP(D632,'Bank and Fund Details'!$B$15:$D$36,3,FALSE)","v":0},{"$f":"VLOOKUP(D632,'Bank and Fund Details'!$B$15:$C$36,2,FALSE)","v":"Unrestricted"},{"$f":"IFERROR(VLOOKUP(C632,Descriptions!$I$6:$K$92,3,FALSE),\"\")","v":""},null,null,null,null,null,null,null,null,null,null,null,null,null,null,"General Fund",null,{"$f":"IFERROR(VLOOKUP(C632,Descriptions!I:M,5,FALSE),\"N\")","v":"N"},true,"NTRUE",0,{"$f":"IFERROR(VLOOKUP(D632,'Bank and Fund Details'!$B$14:$L$35,11,FALSE),\"N\")","v":"Y"},"NY"]
[null,null,null,"General Fund",null,null,null,null,null,{"$f":"VLOOKUP(D633,'Bank and Fund Details'!$B$15:$D$36,3,FALSE)","v":0},{"$f":"VLOOKUP(D633,'Bank and Fund Details'!$B$15:$C$36,2,FALSE)","v":"Unrestricted"},{"$f":"IFERROR(VLOOKUP(C633,Descriptions!$I$6:$K$92,3,FALSE),\"\")","v":""},null,null,null,null,null,null,null,null,null,null,null,null,null,null,"General Fund",null,{"$f":"IFERROR(VLOOKUP(C633,Descriptions!I:M,5,FALSE),\"N\")","v":"N"},true,"NTRUE",0,{"$f":"IFERROR(VLOOKUP(D633,'Bank and Fund Details'!$B$14:$L$35,11,FALSE),\"N\")","v":"Y"},"NY"]
[null,null,null,"General Fund",null,null,null,null,null,{"$f":"VLOOKUP(D634,'Bank and Fund Details'!$B$15:$D$36,3,FALSE)","v":0},{"$f":"VLOOKUP(D634,'Bank and Fund Details'!$B$15:$C$36,2,FALSE)","v":"Unrestricted"},{"$f":"IFERROR(VLOOKUP(C634,Descriptions!$I$6:$K$92,3,FALSE),\"\")","v":""},null,null,null,null,null,null,null,null,null,null,null,null,null,null,"General Fund",null,{"$f":"IFERROR(VLOOKUP(C634,Descriptions!I:M,5,FALSE),\"N\")","v":"N"},true,"NTRUE",0,{"$f":"IFERROR(VLOOKUP(D634,'Bank and Fund Details'!$B$14:$L$35,11,FALSE),\"N\")","v":"Y"},"NY"]
[null,null,null,"General Fund",null,null,null,null,null,{"$f":"VLOOKUP(D635,'Bank and Fund Details'!$B$15:$D$36,3,FALSE)","v":0},{"$f":"VLOOKUP(D635,'Bank and Fund Details'!$B$15:$C$36,2,FALSE)","v":"Unrestricted"},{"$f":"IFERROR(VLOOKUP(C635,Descriptions!$I$6:$K$92,3,FALSE),\"\")","v":""},null,null,null,null,null,null,null,null,null,null,null,null,null,null,"General Fund",null,{"$f":"IFERROR(VLOOKUP(C635,Descriptions!I:M,5,FALSE),\"N\")","v":"N"},true,"NTRUE",0,{"$f":"IFERROR(VLOOKUP(D635,'Bank and Fund Details'!$B$14:$L$35,11,FALSE),\"N\")","v":"Y"},"NY"]
[null,null,null,"General Fund",null,null,null,null,null,{"$f":"VLOOKUP(D636,'Bank and Fund Details'!$B$15:$D$36,3,FALSE)","v":0},{"$f":"VLOOKUP(D636,'Bank and Fund Details'!$B$15:$C$36,2,FALSE)","v":"Unrestricted"},{"$f":"IFERROR(VLOOKUP(C636,Descriptions!$I$6:$K$92,3,FALSE),\"\")","v":""},null,null,null,null,null,null,null,null,null,null,null,null,null,null,"General Fund",null,{"$f":"IFERROR(VLOOKUP(C636,Descriptions!I:M,5,FALSE),\"N\")","v":"N"},true,"NTRUE",0,{"$f":"IFERROR(VLOOKUP(D636,'Bank and Fund Details'!$B$14:$L$35,11,FALSE),\"N\")","v":"Y"},"NY"]
[null,null,null,"General Fund",null,null,null,null,null,{"$f":"VLOOKUP(D637,'Bank and Fund Details'!$B$15:$D$36,3,FALSE)","v":0},{"$f":"VLOOKUP(D637,'Bank and Fund Details'!$B$15:$C$36,2,FALSE)","v":"Unrestricted"},{"$f":"IFERROR(VLOOKUP(C637,Descriptions!$I$6:$K$92,3,FALSE),\"\")","v":""},null,null,null,null,null,null,null,null,null,null,null,null,null,null,"General Fund",null,{"$f":"IFERROR(VLOOKUP(C637,Descriptions!I:M,5,FALSE),\"N\")","v":"N"},true,"NTRUE",0,{"$f":"IFERROR(VLOOKUP(D637,'Bank and Fund Details'!$B$14:$L$35,11,FALSE),\"N\")","v":"Y"},"NY"]
[null,null,null,"General Fund",null,null,null,null,null,{"$f":"VLOOKUP(D638,'Bank and Fund Details'!$B$15:$D$36,3,FALSE)","v":0},{"$f":"VLOOKUP(D638,'Bank and Fund Details'!$B$15:$C$36,2,FALSE)","v":"Unrestricted"},{"$f":"IFERROR(VLOOKUP(C638,Descriptions!$I$6:$K$92,3,FALSE),\"\")","v":""},null,null,null,null,null,null,null,null,null,null,null,null,null,null,"General Fund",null,{"$f":"IFERROR(VLOOKUP(C638,Descriptions!I:M,5,FALSE),\"N\")","v":"N"},true,"NTRUE",0,{"$f":"IFERROR(VLOOKUP(D638,'Bank and Fund Details'!$B$14:$L$35,11,FALSE),\"N\")","v":"Y"},"NY"]
[null,null,null,"General Fund",null,null,null,null,null,{"$f":"VLOOKUP(D639,'Bank and Fund Details'!$B$15:$D$36,3,FALSE)","v":0},{"$f":"VLOOKUP(D639,'Bank and Fund Details'!$B$15:$C$36,2,FALSE)","v":"Unrestricted"},{"$f":"IFERROR(VLOOKUP(C639,Descriptions!$I$6:$K$92,3,FALSE),\"\")","v":""},null,null,null,null,null,null,null,null,null,null,null,null,null,null,"General Fund",null,{"$f":"IFERROR(VLOOKUP(C639,Descriptions!I:M,5,FALSE),\"N\")","v":"N"},true,"NTRUE",0,{"$f":"IFERROR(VLOOKUP(D639,'Bank and Fund Details'!$B$14:$L$35,11,FALSE),\"N\")","v":"Y"},"NY"]
[null,null,null,"General Fund",null,null,null,null,null,{"$f":"VLOOKUP(D640,'Bank and Fund Details'!$B$15:$D$36,3,FALSE)","v":0},{"$f":"VLOOKUP(D640,'Bank and Fund Details'!$B$15:$C$36,2,FALSE)","v":"Unrestricted"},{"$f":"IFERROR(VLOOKUP(C640,Descriptions!$I$6:$K$92,3,FALSE),\"\")","v":""},null,null,null,null,null,null,null,null,null,null,null,null,null,null,"General Fund",null,{"$f":"IFERROR(VLOOKUP(C640,Descriptions!I:M,5,FALSE),\"N\")","v":"N"},true,"NTRUE",0,{"$f":"IFERROR(VLOOKUP(D640,'Bank and Fund Details'!$B$14:$L$35,11,FALSE),\"N\")","v":"Y"},"NY"]
[null,null,null,"General Fund",null,null,null,null,null,{"$f":"VLOOKUP(D641,'Bank and Fund Details'!$B$15:$D$36,3,FALSE)","v":0},{"$f":"VLOOKUP(D641,'Bank and Fund Details'!$B$15:$C$36,2,FALSE)","v":"Unrestricted"},{"$f":"IFERROR(VLOOKUP(C641,Descriptions!$I$6:$K$92,3,FALSE),\"\")","v":""},null,null,null,null,null,null,null,null,null,null,null,null,null,null,"General Fund",null,{"$f":"IFERROR(VLOOKUP(C641,Descriptions!I:M,5,FALSE),\"N\")","v":"N"},true,"NTRUE",0,{"$f":"IFERROR(VLOOKUP(D641,'Bank and Fund Details'!$B$14:$L$35,11,FALSE),\"N\")","v":"Y"},"NY"]
[null,null,null,"General Fund",null,null,null,null,null,{"$f":"VLOOKUP(D642,'Bank and Fund Details'!$B$15:$D$36,3,FALSE)","v":0},{"$f":"VLOOKUP(D642,'Bank and Fund Details'!$B$15:$C$36,2,FALSE)","v":"Unrestricted"},{"$f":"IFERROR(VLOOKUP(C642,Descriptions!$I$6:$K$92,3,FALSE),\"\")","v":""},null,null,null,null,null,null,null,null,null,null,null,null,null,null,"General Fund",null,{"$f":"IFERROR(VLOOKUP(C642,Descriptions!I:M,5,FALSE),\"N\")","v":"N"},true,"NTRUE",0,{"$f":"IFERROR(VLOOKUP(D642,'Bank and Fund Details'!$B$14:$L$35,11,FALSE),\"N\")","v":"Y"},"NY"]
[null,null,null,"General Fund",null,null,null,null,null,{"$f":"VLOOKUP(D643,'Bank and Fund Details'!$B$15:$D$36,3,FALSE)","v":0},{"$f":"VLOOKUP(D643,'Bank and Fund Details'!$B$15:$C$36,2,FALSE)","v":"Unrestricted"},{"$f":"IFERROR(VLOOKUP(C643,Descriptions!$I$6:$K$92,3,FALSE),\"\")","v":""},null,null,null,null,null,null,null,null,null,null,null,null,null,null,"General Fund",null,{"$f":"IFERROR(VLOOKUP(C643,Descriptions!I:M,5,FALSE),\"N\")","v":"N"},true,"NTRUE",0,{"$f":"IFERROR(VLOOKUP(D643,'Bank and Fund Details'!$B$14:$L$35,11,FALSE),\"N\")","v":"Y"},"NY"]
[null,null,null,"General Fund",null,null,null,null,null,{"$f":"VLOOKUP(D644,'Bank and Fund Details'!$B$15:$D$36,3,FALSE)","v":0},{"$f":"VLOOKUP(D644,'Bank and Fund Details'!$B$15:$C$36,2,FALSE)","v":"Unrestricted"},{"$f":"IFERROR(VLOOKUP(C644,Descriptions!$I$6:$K$92,3,FALSE),\"\")","v":""},null,null,null,null,null,null,null,null,null,null,null,null,null,null,"General Fund",null,{"$f":"IFERROR(VLOOKUP(C644,Descriptions!I:M,5,FALSE),\"N\")","v":"N"},true,"NTRUE",0,{"$f":"IFERROR(VLOOKUP(D644,'Bank and Fund Details'!$B$14:$L$35,11,FALSE),\"N\")","v":"Y"},"NY"]
[null,null,null,"General Fund",null,null,null,null,null,{"$f":"VLOOKUP(D645,'Bank and Fund Details'!$B$15:$D$36,3,FALSE)","v":0},{"$f":"VLOOKUP(D645,'Bank and Fund Details'!$B$15:$C$36,2,FALSE)","v":"Unrestricted"},{"$f":"IFERROR(VLOOKUP(C645,Descriptions!$I$6:$K$92,3,FALSE),\"\")","v":""},null,null,null,null,null,null,null,null,null,null,null,null,null,null,"General Fund",null,{"$f":"IFERROR(VLOOKUP(C645,Descriptions!I:M,5,FALSE),\"N\")","v":"N"},true,"NTRUE",0,{"$f":"IFERROR(VLOOKUP(D645,'Bank and Fund Details'!$B$14:$L$35,11,FALSE),\"N\")","v":"Y"},"NY"]
[null,null,null,"General Fund",null,null,null,null,null,{"$f":"VLOOKUP(D646,'Bank and Fund Details'!$B$15:$D$36,3,FALSE)","v":0},{"$f":"VLOOKUP(D646,'Bank and Fund Details'!$B$15:$C$36,2,FALSE)","v":"Unrestricted"},{"$f":"IFERROR(VLOOKUP(C646,Descriptions!$I$6:$K$92,3,FALSE),\"\")","v":""},null,null,null,null,null,null,null,null,null,null,null,null,null,null,{"$f":"CONCATENATE(C646,D646)","v":"General Fund"},null,{"$f":"IFERROR(VLOOKUP(C646,Descriptions!I:M,5,FALSE),\"N\")","v":"N"},{"$f":"ISBLANK(C646)","v":true},{"$f":"CONCATENATE(AC646,AD646)","v":"NTRUE"},{"$f":"IF(AE646=\"NFALSE\",1,0)","v":0},{"$f":"IFERROR(VLOOKUP(D646,'Bank and Fund Details'!$B$14:$L$35,11,FALSE),\"N\")","v":"Y"},{"$f":"CONCATENATE(AC646,AG646)","v":"NY"}]
[null,null,null,"General Fund",null,null,null,null,null,{"$f":"VLOOKUP(D647,'Bank and Fund Details'!$B$15:$D$36,3,FALSE)","v":0},{"$f":"VLOOKUP(D647,'Bank and Fund Details'!$B$15:$C$36,2,FALSE)","v":"Unrestricted"},{"$f":"IFERROR(VLOOKUP(C647,Descriptions!$I$6:$K$92,3,FALSE),\"\")","v":""},null,null,null,null,null,null,null,null,null,null,null,null,null,null,"General Fund",null,{"$f":"IFERROR(VLOOKUP(C647,Descriptions!I:M,5,FALSE),\"N\")","v":"N"},true,"NTRUE",0,{"$f":"IFERROR(VLOOKUP(D647,'Bank and Fund Details'!$B$14:$L$35,11,FALSE),\"N\")","v":"Y"},"NY"]
[null,null,null,"General Fund",null,null,null,null,null,{"$f":"VLOOKUP(D648,'Bank and Fund Details'!$B$15:$D$36,3,FALSE)","v":0},{"$f":"VLOOKUP(D648,'Bank and Fund Details'!$B$15:$C$36,2,FALSE)","v":"Unrestricted"},{"$f":"IFERROR(VLOOKUP(C648,Descriptions!$I$6:$K$92,3,FALSE),\"\")","v":""},null,null,null,null,null,null,null,null,null,null,null,null,null,null,"General Fund",null,{"$f":"IFERROR(VLOOKUP(C648,Descriptions!I:M,5,FALSE),\"N\")","v":"N"},true,"NTRUE",0,{"$f":"IFERROR(VLOOKUP(D648,'Bank and Fund Details'!$B$14:$L$35,11,FALSE),\"N\")","v":"Y"},"NY"]
[null,null,null,"General Fund",null,null,null,null,null,{"$f":"VLOOKUP(D649,'Bank and Fund Details'!$B$15:$D$36,3,FALSE)","v":0},{"$f":"VLOOKUP(D649,'Bank and Fund Details'!$B$15:$C$36,2,FALSE)","v":"Unrestricted"},{"$f":"IFERROR(VLOOKUP(C649,Descriptions!$I$6:$K$92,3,FALSE),\"\")","v":""},null,null,null,null,null,null,null,null,null,null,null,null,null,null,"General Fund",null,{"$f":"IFERROR(VLOOKUP(C649,Descriptions!I:M,5,FALSE),\"N\")","v":"N"},true,"NTRUE",0,{"$f":"IFERROR(VLOOKUP(D649,'Bank and Fund Details'!$B$14:$L$35,11,FALSE),\"N\")","v":"Y"},"NY"]
[null,null,null,"General Fund",null,null,null,null,null,{"$f":"VLOOKUP(D650,'Bank and Fund Details'!$B$15:$D$36,3,FALSE)","v":0},{"$f":"VLOOKUP(D650,'Bank and Fund Details'!$B$15:$C$36,2,FALSE)","v":"Unrestricted"},{"$f":"IFERROR(VLOOKUP(C650,Descriptions!$I$6:$K$92,3,FALSE),\"\")","v":""},null,null,null,null,null,null,null,null,null,null,null,null,null,null,"General Fund",null,{"$f":"IFERROR(VLOOKUP(C650,Descriptions!I:M,5,FALSE),\"N\")","v":"N"},true,"NTRUE",0,{"$f":"IFERROR(VLOOKUP(D650,'Bank and Fund Details'!$B$14:$L$35,11,FALSE),\"N\")","v":"Y"},"NY"]
[null,null,null,"General Fund",null,null,null,null,null,{"$f":"VLOOKUP(D651,'Bank and Fund Details'!$B$15:$D$36,3,FALSE)","v":0},{"$f":"VLOOKUP(D651,'Bank and Fund Details'!$B$15:$C$36,2,FALSE)","v":"Unrestricted"},{"$f":"IFERROR(VLOOKUP(C651,Descriptions!$I$6:$K$92,3,FALSE),\"\")","v":""},null,null,null,null,null,null,null,null,null,null,null,null,null,null,"General Fund",null,{"$f":"IFERROR(VLOOKUP(C651,Descriptions!I:M,5,FALSE),\"N\")","v":"N"},true,"NTRUE",0,{"$f":"IFERROR(VLOOKUP(D651,'Bank and Fund Details'!$B$14:$L$35,11,FALSE),\"N\")","v":"Y"},"NY"]
[null,null,null,"General Fund",null,null,null,null,null,{"$f":"VLOOKUP(D652,'Bank and Fund Details'!$B$15:$D$36,3,FALSE)","v":0},{"$f":"VLOOKUP(D652,'Bank and Fund Details'!$B$15:$C$36,2,FALSE)","v":"Unrestricted"},{"$f":"IFERROR(VLOOKUP(C652,Descriptions!$I$6:$K$92,3,FALSE),\"\")","v":""},null,null,null,null,null,null,null,null,null,null,null,null,null,null,"General Fund",null,{"$f":"IFERROR(VLOOKUP(C652,Descriptions!I:M,5,FALSE),\"N\")","v":"N"},true,"NTRUE",0,{"$f":"IFERROR(VLOOKUP(D652,'Bank and Fund Details'!$B$14:$L$35,11,FALSE),\"N\")","v":"Y"},"NY"]
[null,null,null,"General Fund",null,null,null,null,null,{"$f":"VLOOKUP(D653,'Bank and Fund Details'!$B$15:$D$36,3,FALSE)","v":0},{"$f":"VLOOKUP(D653,'Bank and Fund Details'!$B$15:$C$36,2,FALSE)","v":"Unrestricted"},{"$f":"IFERROR(VLOOKUP(C653,Descriptions!$I$6:$K$92,3,FALSE),\"\")","v":""},null,null,null,null,null,null,null,null,null,null,null,null,null,null,"General Fund",null,{"$f":"IFERROR(VLOOKUP(C653,Descriptions!I:M,5,FALSE),\"N\")","v":"N"},true,"NTRUE",0,{"$f":"IFERROR(VLOOKUP(D653,'Bank and Fund Details'!$B$14:$L$35,11,FALSE),\"N\")","v":"Y"},"NY"]
[null,null,null,"General Fund",null,null,null,null,null,{"$f":"VLOOKUP(D654,'Bank and Fund Details'!$B$15:$D$36,3,FALSE)","v":0},{"$f":"VLOOKUP(D654,'Bank and Fund Details'!$B$15:$C$36,2,FALSE)","v":"Unrestricted"},{"$f":"IFERROR(VLOOKUP(C654,Descriptions!$I$6:$K$92,3,FALSE),\"\")","v":""},null,null,null,null,null,null,null,null,null,null,null,null,null,null,"General Fund",null,{"$f":"IFERROR(VLOOKUP(C654,Descriptions!I:M,5,FALSE),\"N\")","v":"N"},true,"NTRUE",0,{"$f":"IFERROR(VLOOKUP(D654,'Bank and Fund Details'!$B$14:$L$35,11,FALSE),\"N\")","v":"Y"},"NY"]
[null,null,null,"General Fund",null,null,null,null,null,{"$f":"VLOOKUP(D655,'Bank and Fund Details'!$B$15:$D$36,3,FALSE)","v":0},{"$f":"VLOOKUP(D655,'Bank and Fund Details'!$B$15:$C$36,2,FALSE)","v":"Unrestricted"},{"$f":"IFERROR(VLOOKUP(C655,Descriptions!$I$6:$K$92,3,FALSE),\"\")","v":""},null,null,null,null,null,null,null,null,null,null,null,null,null,null,"General Fund",null,{"$f":"IFERROR(VLOOKUP(C655,Descriptions!I:M,5,FALSE),\"N\")","v":"N"},true,"NTRUE",0,{"$f":"IFERROR(VLOOKUP(D655,'Bank and Fund Details'!$B$14:$L$35,11,FALSE),\"N\")","v":"Y"},"NY"]
[null,null,null,"General Fund",null,null,null,null,null,{"$f":"VLOOKUP(D656,'Bank and Fund Details'!$B$15:$D$36,3,FALSE)","v":0},{"$f":"VLOOKUP(D656,'Bank and Fund Details'!$B$15:$C$36,2,FALSE)","v":"Unrestricted"},{"$f":"IFERROR(VLOOKUP(C656,Descriptions!$I$6:$K$92,3,FALSE),\"\")","v":""},null,null,null,null,null,null,null,null,null,null,null,null,null,null,"General Fund",null,{"$f":"IFERROR(VLOOKUP(C656,Descriptions!I:M,5,FALSE),\"N\")","v":"N"},true,"NTRUE",0,{"$f":"IFERROR(VLOOKUP(D656,'Bank and Fund Details'!$B$14:$L$35,11,FALSE),\"N\")","v":"Y"},"NY"]
[null,null,null,"General Fund",null,null,null,null,null,{"$f":"VLOOKUP(D657,'Bank and Fund Details'!$B$15:$D$36,3,FALSE)","v":0},{"$f":"VLOOKUP(D657,'Bank and Fund Details'!$B$15:$C$36,2,FALSE)","v":"Unrestricted"},{"$f":"IFERROR(VLOOKUP(C657,Descriptions!$I$6:$K$92,3,FALSE),\"\")","v":""},null,null,null,null,null,null,null,null,null,null,null,null,null,null,"General Fund",null,{"$f":"IFERROR(VLOOKUP(C657,Descriptions!I:M,5,FALSE),\"N\")","v":"N"},true,"NTRUE",0,{"$f":"IFERROR(VLOOKUP(D657,'Bank and Fund Details'!$B$14:$L$35,11,FALSE),\"N\")","v":"Y"},"NY"]
[null,null,null,"General Fund",null,null,null,null,null,{"$f":"VLOOKUP(D658,'Bank and Fund Details'!$B$15:$D$36,3,FALSE)","v":0},{"$f":"VLOOKUP(D658,'Bank and Fund Details'!$B$15:$C$36,2,FALSE)","v":"Unrestricted"},{"$f":"IFERROR(VLOOKUP(C658,Descriptions!$I$6:$K$92,3,FALSE),\"\")","v":""},null,null,null,null,null,null,null,null,null,null,null,null,null,null,"General Fund",null,{"$f":"IFERROR(VLOOKUP(C658,Descriptions!I:M,5,FALSE),\"N\")","v":"N"},true,"NTRUE",0,{"$f":"IFERROR(VLOOKUP(D658,'Bank and Fund Details'!$B$14:$L$35,11,FALSE),\"N\")","v":"Y"},"NY"]
[null,null,null,"General Fund",null,null,null,null,null,{"$f":"VLOOKUP(D659,'Bank and Fund Details'!$B$15:$D$36,3,FALSE)","v":0},{"$f":"VLOOKUP(D659,'Bank and Fund Details'!$B$15:$C$36,2,FALSE)","v":"Unrestricted"},{"$f":"IFERROR(VLOOKUP(C659,Descriptions!$I$6:$K$92,3,FALSE),\"\")","v":""},null,null,null,null,null,null,null,null,null,null,null,null,null,null,"General Fund",null,{"$f":"IFERROR(VLOOKUP(C659,Descriptions!I:M,5,FALSE),\"N\")","v":"N"},true,"NTRUE",0,{"$f":"IFERROR(VLOOKUP(D659,'Bank and Fund Details'!$B$14:$L$35,11,FALSE),\"N\")","v":"Y"},"NY"]
[null,null,null,"General Fund",null,null,null,null,null,{"$f":"VLOOKUP(D660,'Bank and Fund Details'!$B$15:$D$36,3,FALSE)","v":0},{"$f":"VLOOKUP(D660,'Bank and Fund Details'!$B$15:$C$36,2,FALSE)","v":"Unrestricted"},{"$f":"IFERROR(VLOOKUP(C660,Descriptions!$I$6:$K$92,3,FALSE),\"\")","v":""},null,null,null,null,null,null,null,null,null,null,null,null,null,null,"General Fund",null,{"$f":"IFERROR(VLOOKUP(C660,Descriptions!I:M,5,FALSE),\"N\")","v":"N"},true,"NTRUE",0,{"$f":"IFERROR(VLOOKUP(D660,'Bank and Fund Details'!$B$14:$L$35,11,FALSE),\"N\")","v":"Y"},"NY"]
[null,null,null,"General Fund",null,null,null,null,null,{"$f":"VLOOKUP(D661,'Bank and Fund Details'!$B$15:$D$36,3,FALSE)","v":0},{"$f":"VLOOKUP(D661,'Bank and Fund Details'!$B$15:$C$36,2,FALSE)","v":"Unrestricted"},{"$f":"IFERROR(VLOOKUP(C661,Descriptions!$I$6:$K$92,3,FALSE),\"\")","v":""},null,null,null,null,null,null,null,null,null,null,null,null,null,null,"General Fund",null,{"$f":"IFERROR(VLOOKUP(C661,Descriptions!I:M,5,FALSE),\"N\")","v":"N"},true,"NTRUE",0,{"$f":"IFERROR(VLOOKUP(D661,'Bank and Fund Details'!$B$14:$L$35,11,FALSE),\"N\")","v":"Y"},"NY"]
[null,null,null,"General Fund",null,null,null,null,null,{"$f":"VLOOKUP(D662,'Bank and Fund Details'!$B$15:$D$36,3,FALSE)","v":0},{"$f":"VLOOKUP(D662,'Bank and Fund Details'!$B$15:$C$36,2,FALSE)","v":"Unrestricted"},{"$f":"IFERROR(VLOOKUP(C662,Descriptions!$I$6:$K$92,3,FALSE),\"\")","v":""},null,null,null,null,null,null,null,null,null,null,null,null,null,null,"General Fund",null,{"$f":"IFERROR(VLOOKUP(C662,Descriptions!I:M,5,FALSE),\"N\")","v":"N"},true,"NTRUE",0,{"$f":"IFERROR(VLOOKUP(D662,'Bank and Fund Details'!$B$14:$L$35,11,FALSE),\"N\")","v":"Y"},"NY"]
[null,null,null,"General Fund",null,null,null,null,null,{"$f":"VLOOKUP(D663,'Bank and Fund Details'!$B$15:$D$36,3,FALSE)","v":0},{"$f":"VLOOKUP(D663,'Bank and Fund Details'!$B$15:$C$36,2,FALSE)","v":"Unrestricted"},{"$f":"IFERROR(VLOOKUP(C663,Descriptions!$I$6:$K$92,3,FALSE),\"\")","v":""},null,null,null,null,null,null,null,null,null,null,null,null,null,null,"General Fund",null,{"$f":"IFERROR(VLOOKUP(C663,Descriptions!I:M,5,FALSE),\"N\")","v":"N"},true,"NTRUE",0,{"$f":"IFERROR(VLOOKUP(D663,'Bank and Fund Details'!$B$14:$L$35,11,FALSE),\"N\")","v":"Y"},"NY"]
[null,null,null,"General Fund",null,null,null,null,null,{"$f":"VLOOKUP(D664,'Bank and Fund Details'!$B$15:$D$36,3,FALSE)","v":0},{"$f":"VLOOKUP(D664,'Bank and Fund Details'!$B$15:$C$36,2,FALSE)","v":"Unrestricted"},{"$f":"IFERROR(VLOOKUP(C664,Descriptions!$I$6:$K$92,3,FALSE),\"\")","v":""},null,null,null,null,null,null,null,null,null,null,null,null,null,null,"General Fund",null,{"$f":"IFERROR(VLOOKUP(C664,Descriptions!I:M,5,FALSE),\"N\")","v":"N"},true,"NTRUE",0,{"$f":"IFERROR(VLOOKUP(D664,'Bank and Fund Details'!$B$14:$L$35,11,FALSE),\"N\")","v":"Y"},"NY"]
[null,null,null,"General Fund",null,null,null,null,null,{"$f":"VLOOKUP(D665,'Bank and Fund Details'!$B$15:$D$36,3,FALSE)","v":0},{"$f":"VLOOKUP(D665,'Bank and Fund Details'!$B$15:$C$36,2,FALSE)","v":"Unrestricted"},{"$f":"IFERROR(VLOOKUP(C665,Descriptions!$I$6:$K$92,3,FALSE),\"\")","v":""},null,null,null,null,null,null,null,null,null,null,null,null,null,null,"General Fund",null,{"$f":"IFERROR(VLOOKUP(C665,Descriptions!I:M,5,FALSE),\"N\")","v":"N"},true,"NTRUE",0,{"$f":"IFERROR(VLOOKUP(D665,'Bank and Fund Details'!$B$14:$L$35,11,FALSE),\"N\")","v":"Y"},"NY"]
[null,null,null,"General Fund",null,null,null,null,null,{"$f":"VLOOKUP(D666,'Bank and Fund Details'!$B$15:$D$36,3,FALSE)","v":0},{"$f":"VLOOKUP(D666,'Bank and Fund Details'!$B$15:$C$36,2,FALSE)","v":"Unrestricted"},{"$f":"IFERROR(VLOOKUP(C666,Descriptions!$I$6:$K$92,3,FALSE),\"\")","v":""},null,null,null,null,null,null,null,null,null,null,null,null,null,null,"General Fund",null,{"$f":"IFERROR(VLOOKUP(C666,Descriptions!I:M,5,FALSE),\"N\")","v":"N"},true,"NTRUE",0,{"$f":"IFERROR(VLOOKUP(D666,'Bank and Fund Details'!$B$14:$L$35,11,FALSE),\"N\")","v":"Y"},"NY"]
[null,null,null,"General Fund",null,null,null,null,null,{"$f":"VLOOKUP(D667,'Bank and Fund Details'!$B$15:$D$36,3,FALSE)","v":0},{"$f":"VLOOKUP(D667,'Bank and Fund Details'!$B$15:$C$36,2,FALSE)","v":"Unrestricted"},{"$f":"IFERROR(VLOOKUP(C667,Descriptions!$I$6:$K$92,3,FALSE),\"\")","v":""},null,null,null,null,null,null,null,null,null,null,null,null,null,null,"General Fund",null,{"$f":"IFERROR(VLOOKUP(C667,Descriptions!I:M,5,FALSE),\"N\")","v":"N"},true,"NTRUE",0,{"$f":"IFERROR(VLOOKUP(D667,'Bank and Fund Details'!$B$14:$L$35,11,FALSE),\"N\")","v":"Y"},"NY"]
[null,null,null,"General Fund",null,null,null,null,null,{"$f":"VLOOKUP(D668,'Bank and Fund Details'!$B$15:$D$36,3,FALSE)","v":0},{"$f":"VLOOKUP(D668,'Bank and Fund Details'!$B$15:$C$36,2,FALSE)","v":"Unrestricted"},{"$f":"IFERROR(VLOOKUP(C668,Descriptions!$I$6:$K$92,3,FALSE),\"\")","v":""},null,null,null,null,null,null,null,null,null,null,null,null,null,null,"General Fund",null,{"$f":"IFERROR(VLOOKUP(C668,Descriptions!I:M,5,FALSE),\"N\")","v":"N"},true,"NTRUE",0,{"$f":"IFERROR(VLOOKUP(D668,'Bank and Fund Details'!$B$14:$L$35,11,FALSE),\"N\")","v":"Y"},"NY"]
[null,null,null,"General Fund",null,null,null,null,null,{"$f":"VLOOKUP(D669,'Bank and Fund Details'!$B$15:$D$36,3,FALSE)","v":0},{"$f":"VLOOKUP(D669,'Bank and Fund Details'!$B$15:$C$36,2,FALSE)","v":"Unrestricted"},{"$f":"IFERROR(VLOOKUP(C669,Descriptions!$I$6:$K$92,3,FALSE),\"\")","v":""},null,null,null,null,null,null,null,null,null,null,null,null,null,null,"General Fund",null,{"$f":"IFERROR(VLOOKUP(C669,Descriptions!I:M,5,FALSE),\"N\")","v":"N"},true,"NTRUE",0,{"$f":"IFERROR(VLOOKUP(D669,'Bank and Fund Details'!$B$14:$L$35,11,FALSE),\"N\")","v":"Y"},"NY"]
[null,null,null,"General Fund",null,null,null,null,null,{"$f":"VLOOKUP(D670,'Bank and Fund Details'!$B$15:$D$36,3,FALSE)","v":0},{"$f":"VLOOKUP(D670,'Bank and Fund Details'!$B$15:$C$36,2,FALSE)","v":"Unrestricted"},{"$f":"IFERROR(VLOOKUP(C670,Descriptions!$I$6:$K$92,3,FALSE),\"\")","v":""},null,null,null,null,null,null,null,null,null,null,null,null,null,null,"General Fund",null,{"$f":"IFERROR(VLOOKUP(C670,Descriptions!I:M,5,FALSE),\"N\")","v":"N"},true,"NTRUE",0,{"$f":"IFERROR(VLOOKUP(D670,'Bank and Fund Details'!$B$14:$L$35,11,FALSE),\"N\")","v":"Y"},"NY"]
[null,null,null,"General Fund",null,null,null,null,null,{"$f":"VLOOKUP(D671,'Bank and Fund Details'!$B$15:$D$36,3,FALSE)","v":0},{"$f":"VLOOKUP(D671,'Bank and Fund Details'!$B$15:$C$36,2,FALSE)","v":"Unrestricted"},{"$f":"IFERROR(VLOOKUP(C671,Descriptions!$I$6:$K$92,3,FALSE),\"\")","v":""},null,null,null,null,null,null,null,null,null,null,null,null,null,null,"General Fund",null,{"$f":"IFERROR(VLOOKUP(C671,Descriptions!I:M,5,FALSE),\"N\")","v":"N"},true,"NTRUE",0,{"$f":"IFERROR(VLOOKUP(D671,'Bank and Fund Details'!$B$14:$L$35,11,FALSE),\"N\")","v":"Y"},"NY"]
[null,null,null,"General Fund",null,null,null,null,null,{"$f":"VLOOKUP(D672,'Bank and Fund Details'!$B$15:$D$36,3,FALSE)","v":0},{"$f":"VLOOKUP(D672,'Bank and Fund Details'!$B$15:$C$36,2,FALSE)","v":"Unrestricted"},{"$f":"IFERROR(VLOOKUP(C672,Descriptions!$I$6:$K$92,3,FALSE),\"\")","v":""},null,null,null,null,null,null,null,null,null,null,null,null,null,null,"General Fund",null,{"$f":"IFERROR(VLOOKUP(C672,Descriptions!I:M,5,FALSE),\"N\")","v":"N"},true,"NTRUE",0,{"$f":"IFERROR(VLOOKUP(D672,'Bank and Fund Details'!$B$14:$L$35,11,FALSE),\"N\")","v":"Y"},"NY"]
[null,null,null,"General Fund",null,null,null,null,null,{"$f":"VLOOKUP(D673,'Bank and Fund Details'!$B$15:$D$36,3,FALSE)","v":0},{"$f":"VLOOKUP(D673,'Bank and Fund Details'!$B$15:$C$36,2,FALSE)","v":"Unrestricted"},{"$f":"IFERROR(VLOOKUP(C673,Descriptions!$I$6:$K$92,3,FALSE),\"\")","v":""},null,null,null,null,null,null,null,null,null,null,null,null,null,null,"General Fund",null,{"$f":"IFERROR(VLOOKUP(C673,Descriptions!I:M,5,FALSE),\"N\")","v":"N"},true,"NTRUE",0,{"$f":"IFERROR(VLOOKUP(D673,'Bank and Fund Details'!$B$14:$L$35,11,FALSE),\"N\")","v":"Y"},"NY"]
[null,null,null,"General Fund",null,null,null,null,null,{"$f":"VLOOKUP(D674,'Bank and Fund Details'!$B$15:$D$36,3,FALSE)","v":0},{"$f":"VLOOKUP(D674,'Bank and Fund Details'!$B$15:$C$36,2,FALSE)","v":"Unrestricted"},{"$f":"IFERROR(VLOOKUP(C674,Descriptions!$I$6:$K$92,3,FALSE),\"\")","v":""},null,null,null,null,null,null,null,null,null,null,null,null,null,null,"General Fund",null,{"$f":"IFERROR(VLOOKUP(C674,Descriptions!I:M,5,FALSE),\"N\")","v":"N"},true,"NTRUE",0,{"$f":"IFERROR(VLOOKUP(D674,'Bank and Fund Details'!$B$14:$L$35,11,FALSE),\"N\")","v":"Y"},"NY"]
[null,null,null,"General Fund",null,null,null,null,null,{"$f":"VLOOKUP(D675,'Bank and Fund Details'!$B$15:$D$36,3,FALSE)","v":0},{"$f":"VLOOKUP(D675,'Bank and Fund Details'!$B$15:$C$36,2,FALSE)","v":"Unrestricted"},{"$f":"IFERROR(VLOOKUP(C675,Descriptions!$I$6:$K$92,3,FALSE),\"\")","v":""},null,null,null,null,null,null,null,null,null,null,null,null,null,null,"General Fund",null,{"$f":"IFERROR(VLOOKUP(C675,Descriptions!I:M,5,FALSE),\"N\")","v":"N"},true,"NTRUE",0,{"$f":"IFERROR(VLOOKUP(D675,'Bank and Fund Details'!$B$14:$L$35,11,FALSE),\"N\")","v":"Y"},"NY"]
[null,null,null,"General Fund",null,null,null,null,null,{"$f":"VLOOKUP(D676,'Bank and Fund Details'!$B$15:$D$36,3,FALSE)","v":0},{"$f":"VLOOKUP(D676,'Bank and Fund Details'!$B$15:$C$36,2,FALSE)","v":"Unrestricted"},{"$f":"IFERROR(VLOOKUP(C676,Descriptions!$I$6:$K$92,3,FALSE),\"\")","v":""},null,null,null,null,null,null,null,null,null,null,null,null,null,null,"General Fund",null,{"$f":"IFERROR(VLOOKUP(C676,Descriptions!I:M,5,FALSE),\"N\")","v":"N"},true,"NTRUE",0,{"$f":"IFERROR(VLOOKUP(D676,'Bank and Fund Details'!$B$14:$L$35,11,FALSE),\"N\")","v":"Y"},"NY"]
[null,null,null,"General Fund",null,null,null,null,null,{"$f":"VLOOKUP(D677,'Bank and Fund Details'!$B$15:$D$36,3,FALSE)","v":0},{"$f":"VLOOKUP(D677,'Bank and Fund Details'!$B$15:$C$36,2,FALSE)","v":"Unrestricted"},{"$f":"IFERROR(VLOOKUP(C677,Descriptions!$I$6:$K$92,3,FALSE),\"\")","v":""},null,null,null,null,null,null,null,null,null,null,null,null,null,null,"General Fund",null,{"$f":"IFERROR(VLOOKUP(C677,Descriptions!I:M,5,FALSE),\"N\")","v":"N"},true,"NTRUE",0,{"$f":"IFERROR(VLOOKUP(D677,'Bank and Fund Details'!$B$14:$L$35,11,FALSE),\"N\")","v":"Y"},"NY"]
[null,null,null,"General Fund",null,null,null,null,null,{"$f":"VLOOKUP(D678,'Bank and Fund Details'!$B$15:$D$36,3,FALSE)","v":0},{"$f":"VLOOKUP(D678,'Bank and Fund Details'!$B$15:$C$36,2,FALSE)","v":"Unrestricted"},{"$f":"IFERROR(VLOOKUP(C678,Descriptions!$I$6:$K$92,3,FALSE),\"\")","v":""},null,null,null,null,null,null,null,null,null,null,null,null,null,null,"General Fund",null,{"$f":"IFERROR(VLOOKUP(C678,Descriptions!I:M,5,FALSE),\"N\")","v":"N"},true,"NTRUE",0,{"$f":"IFERROR(VLOOKUP(D678,'Bank and Fund Details'!$B$14:$L$35,11,FALSE),\"N\")","v":"Y"},"NY"]
[null,null,null,"General Fund",null,null,null,null,null,{"$f":"VLOOKUP(D679,'Bank and Fund Details'!$B$15:$D$36,3,FALSE)","v":0},{"$f":"VLOOKUP(D679,'Bank and Fund Details'!$B$15:$C$36,2,FALSE)","v":"Unrestricted"},{"$f":"IFERROR(VLOOKUP(C679,Descriptions!$I$6:$K$92,3,FALSE),\"\")","v":""},null,null,null,null,null,null,null,null,null,null,null,null,null,null,"General Fund",null,{"$f":"IFERROR(VLOOKUP(C679,Descriptions!I:M,5,FALSE),\"N\")","v":"N"},true,"NTRUE",0,{"$f":"IFERROR(VLOOKUP(D679,'Bank and Fund Details'!$B$14:$L$35,11,FALSE),\"N\")","v":"Y"},"NY"]
[null,null,null,"General Fund",null,null,null,null,null,{"$f":"VLOOKUP(D680,'Bank and Fund Details'!$B$15:$D$36,3,FALSE)","v":0},{"$f":"VLOOKUP(D680,'Bank and Fund Details'!$B$15:$C$36,2,FALSE)","v":"Unrestricted"},{"$f":"IFERROR(VLOOKUP(C680,Descriptions!$I$6:$K$92,3,FALSE),\"\")","v":""},null,null,null,null,null,null,null,null,null,null,null,null,null,null,"General Fund",null,{"$f":"IFERROR(VLOOKUP(C680,Descriptions!I:M,5,FALSE),\"N\")","v":"N"},true,"NTRUE",0,{"$f":"IFERROR(VLOOKUP(D680,'Bank and Fund Details'!$B$14:$L$35,11,FALSE),\"N\")","v":"Y"},"NY"]
[null,null,null,"General Fund",null,null,null,null,null,{"$f":"VLOOKUP(D681,'Bank and Fund Details'!$B$15:$D$36,3,FALSE)","v":0},{"$f":"VLOOKUP(D681,'Bank and Fund Details'!$B$15:$C$36,2,FALSE)","v":"Unrestricted"},{"$f":"IFERROR(VLOOKUP(C681,Descriptions!$I$6:$K$92,3,FALSE),\"\")","v":""},null,null,null,null,null,null,null,null,null,null,null,null,null,null,"General Fund",null,{"$f":"IFERROR(VLOOKUP(C681,Descriptions!I:M,5,FALSE),\"N\")","v":"N"},true,"NTRUE",0,{"$f":"IFERROR(VLOOKUP(D681,'Bank and Fund Details'!$B$14:$L$35,11,FALSE),\"N\")","v":"Y"},"NY"]
[null,null,null,"General Fund",null,null,null,null,null,{"$f":"VLOOKUP(D682,'Bank and Fund Details'!$B$15:$D$36,3,FALSE)","v":0},{"$f":"VLOOKUP(D682,'Bank and Fund Details'!$B$15:$C$36,2,FALSE)","v":"Unrestricted"},{"$f":"IFERROR(VLOOKUP(C682,Descriptions!$I$6:$K$92,3,FALSE),\"\")","v":""},null,null,null,null,null,null,null,null,null,null,null,null,null,null,"General Fund",null,{"$f":"IFERROR(VLOOKUP(C682,Descriptions!I:M,5,FALSE),\"N\")","v":"N"},true,"NTRUE",0,{"$f":"IFERROR(VLOOKUP(D682,'Bank and Fund Details'!$B$14:$L$35,11,FALSE),\"N\")","v":"Y"},"NY"]
[null,null,null,"General Fund",null,null,null,null,null,{"$f":"VLOOKUP(D683,'Bank and Fund Details'!$B$15:$D$36,3,FALSE)","v":0},{"$f":"VLOOKUP(D683,'Bank and Fund Details'!$B$15:$C$36,2,FALSE)","v":"Unrestricted"},{"$f":"IFERROR(VLOOKUP(C683,Descriptions!$I$6:$K$92,3,FALSE),\"\")","v":""},null,null,null,null,null,null,null,null,null,null,null,null,null,null,"General Fund",null,{"$f":"IFERROR(VLOOKUP(C683,Descriptions!I:M,5,FALSE),\"N\")","v":"N"},true,"NTRUE",0,{"$f":"IFERROR(VLOOKUP(D683,'Bank and Fund Details'!$B$14:$L$35,11,FALSE),\"N\")","v":"Y"},"NY"]
[null,null,null,"General Fund",null,null,null,null,null,{"$f":"VLOOKUP(D684,'Bank and Fund Details'!$B$15:$D$36,3,FALSE)","v":0},{"$f":"VLOOKUP(D684,'Bank and Fund Details'!$B$15:$C$36,2,FALSE)","v":"Unrestricted"},{"$f":"IFERROR(VLOOKUP(C684,Descriptions!$I$6:$K$92,3,FALSE),\"\")","v":""},null,null,null,null,null,null,null,null,null,null,null,null,null,null,"General Fund",null,{"$f":"IFERROR(VLOOKUP(C684,Descriptions!I:M,5,FALSE),\"N\")","v":"N"},true,"NTRUE",0,{"$f":"IFERROR(VLOOKUP(D684,'Bank and Fund Details'!$B$14:$L$35,11,FALSE),\"N\")","v":"Y"},"NY"]
[null,null,null,"General Fund",null,null,null,null,null,{"$f":"VLOOKUP(D685,'Bank and Fund Details'!$B$15:$D$36,3,FALSE)","v":0},{"$f":"VLOOKUP(D685,'Bank and Fund Details'!$B$15:$C$36,2,FALSE)","v":"Unrestricted"},{"$f":"IFERROR(VLOOKUP(C685,Descriptions!$I$6:$K$92,3,FALSE),\"\")","v":""},null,null,null,null,null,null,null,null,null,null,null,null,null,null,"General Fund",null,{"$f":"IFERROR(VLOOKUP(C685,Descriptions!I:M,5,FALSE),\"N\")","v":"N"},true,"NTRUE",0,{"$f":"IFERROR(VLOOKUP(D685,'Bank and Fund Details'!$B$14:$L$35,11,FALSE),\"N\")","v":"Y"},"NY"]
[null,null,null,"General Fund",null,null,null,null,null,{"$f":"VLOOKUP(D686,'Bank and Fund Details'!$B$15:$D$36,3,FALSE)","v":0},{"$f":"VLOOKUP(D686,'Bank and Fund Details'!$B$15:$C$36,2,FALSE)","v":"Unrestricted"},{"$f":"IFERROR(VLOOKUP(C686,Descriptions!$I$6:$K$92,3,FALSE),\"\")","v":""},null,null,null,null,null,null,null,null,null,null,null,null,null,null,"General Fund",null,{"$f":"IFERROR(VLOOKUP(C686,Descriptions!I:M,5,FALSE),\"N\")","v":"N"},true,"NTRUE",0,{"$f":"IFERROR(VLOOKUP(D686,'Bank and Fund Details'!$B$14:$L$35,11,FALSE),\"N\")","v":"Y"},"NY"]
[null,null,null,"General Fund",null,null,null,null,null,{"$f":"VLOOKUP(D687,'Bank and Fund Details'!$B$15:$D$36,3,FALSE)","v":0},{"$f":"VLOOKUP(D687,'Bank and Fund Details'!$B$15:$C$36,2,FALSE)","v":"Unrestricted"},{"$f":"IFERROR(VLOOKUP(C687,Descriptions!$I$6:$K$92,3,FALSE),\"\")","v":""},null,null,null,null,null,null,null,null,null,null,null,null,null,null,"General Fund",null,{"$f":"IFERROR(VLOOKUP(C687,Descriptions!I:M,5,FALSE),\"N\")","v":"N"},true,"NTRUE",0,{"$f":"IFERROR(VLOOKUP(D687,'Bank and Fund Details'!$B$14:$L$35,11,FALSE),\"N\")","v":"Y"},"NY"]
[null,null,null,"General Fund",null,null,null,null,null,{"$f":"VLOOKUP(D688,'Bank and Fund Details'!$B$15:$D$36,3,FALSE)","v":0},{"$f":"VLOOKUP(D688,'Bank and Fund Details'!$B$15:$C$36,2,FALSE)","v":"Unrestricted"},{"$f":"IFERROR(VLOOKUP(C688,Descriptions!$I$6:$K$92,3,FALSE),\"\")","v":""},null,null,null,null,null,null,null,null,null,null,null,null,null,null,"General Fund",null,{"$f":"IFERROR(VLOOKUP(C688,Descriptions!I:M,5,FALSE),\"N\")","v":"N"},true,"NTRUE",0,{"$f":"IFERROR(VLOOKUP(D688,'Bank and Fund Details'!$B$14:$L$35,11,FALSE),\"N\")","v":"Y"},"NY"]
[null,null,null,"General Fund",null,null,null,null,null,{"$f":"VLOOKUP(D689,'Bank and Fund Details'!$B$15:$D$36,3,FALSE)","v":0},{"$f":"VLOOKUP(D689,'Bank and Fund Details'!$B$15:$C$36,2,FALSE)","v":"Unrestricted"},{"$f":"IFERROR(VLOOKUP(C689,Descriptions!$I$6:$K$92,3,FALSE),\"\")","v":""},null,null,null,null,null,null,null,null,null,null,null,null,null,null,"General Fund",null,{"$f":"IFERROR(VLOOKUP(C689,Descriptions!I:M,5,FALSE),\"N\")","v":"N"},true,"NTRUE",0,{"$f":"IFERROR(VLOOKUP(D689,'Bank and Fund Details'!$B$14:$L$35,11,FALSE),\"N\")","v":"Y"},"NY"]
[null,null,null,"General Fund",null,null,null,null,null,{"$f":"VLOOKUP(D690,'Bank and Fund Details'!$B$15:$D$36,3,FALSE)","v":0},{"$f":"VLOOKUP(D690,'Bank and Fund Details'!$B$15:$C$36,2,FALSE)","v":"Unrestricted"},{"$f":"IFERROR(VLOOKUP(C690,Descriptions!$I$6:$K$92,3,FALSE),\"\")","v":""},null,null,null,null,null,null,null,null,null,null,null,null,null,null,"General Fund",null,{"$f":"IFERROR(VLOOKUP(C690,Descriptions!I:M,5,FALSE),\"N\")","v":"N"},true,"NTRUE",0,{"$f":"IFERROR(VLOOKUP(D690,'Bank and Fund Details'!$B$14:$L$35,11,FALSE),\"N\")","v":"Y"},"NY"]
[null,null,null,"General Fund",null,null,null,null,null,{"$f":"VLOOKUP(D691,'Bank and Fund Details'!$B$15:$D$36,3,FALSE)","v":0},{"$f":"VLOOKUP(D691,'Bank and Fund Details'!$B$15:$C$36,2,FALSE)","v":"Unrestricted"},{"$f":"IFERROR(VLOOKUP(C691,Descriptions!$I$6:$K$92,3,FALSE),\"\")","v":""},null,null,null,null,null,null,null,null,null,null,null,null,null,null,"General Fund",null,{"$f":"IFERROR(VLOOKUP(C691,Descriptions!I:M,5,FALSE),\"N\")","v":"N"},true,"NTRUE",0,{"$f":"IFERROR(VLOOKUP(D691,'Bank and Fund Details'!$B$14:$L$35,11,FALSE),\"N\")","v":"Y"},"NY"]
[null,null,null,"General Fund",null,null,null,null,null,{"$f":"VLOOKUP(D692,'Bank and Fund Details'!$B$15:$D$36,3,FALSE)","v":0},{"$f":"VLOOKUP(D692,'Bank and Fund Details'!$B$15:$C$36,2,FALSE)","v":"Unrestricted"},{"$f":"IFERROR(VLOOKUP(C692,Descriptions!$I$6:$K$92,3,FALSE),\"\")","v":""},null,null,null,null,null,null,null,null,null,null,null,null,null,null,"General Fund",null,{"$f":"IFERROR(VLOOKUP(C692,Descriptions!I:M,5,FALSE),\"N\")","v":"N"},true,"NTRUE",0,{"$f":"IFERROR(VLOOKUP(D692,'Bank and Fund Details'!$B$14:$L$35,11,FALSE),\"N\")","v":"Y"},"NY"]
[null,null,null,"General Fund",null,null,null,null,null,{"$f":"VLOOKUP(D693,'Bank and Fund Details'!$B$15:$D$36,3,FALSE)","v":0},{"$f":"VLOOKUP(D693,'Bank and Fund Details'!$B$15:$C$36,2,FALSE)","v":"Unrestricted"},{"$f":"IFERROR(VLOOKUP(C693,Descriptions!$I$6:$K$92,3,FALSE),\"\")","v":""},null,null,null,null,null,null,null,null,null,null,null,null,null,null,"General Fund",null,{"$f":"IFERROR(VLOOKUP(C693,Descriptions!I:M,5,FALSE),\"N\")","v":"N"},true,"NTRUE",0,{"$f":"IFERROR(VLOOKUP(D693,'Bank and Fund Details'!$B$14:$L$35,11,FALSE),\"N\")","v":"Y"},"NY"]
[null,null,null,"General Fund",null,null,null,null,null,{"$f":"VLOOKUP(D694,'Bank and Fund Details'!$B$15:$D$36,3,FALSE)","v":0},{"$f":"VLOOKUP(D694,'Bank and Fund Details'!$B$15:$C$36,2,FALSE)","v":"Unrestricted"},{"$f":"IFERROR(VLOOKUP(C694,Descriptions!$I$6:$K$92,3,FALSE),\"\")","v":""},null,null,null,null,null,null,null,null,null,null,null,null,null,null,"General Fund",null,{"$f":"IFERROR(VLOOKUP(C694,Descriptions!I:M,5,FALSE),\"N\")","v":"N"},true,"NTRUE",0,{"$f":"IFERROR(VLOOKUP(D694,'Bank and Fund Details'!$B$14:$L$35,11,FALSE),\"N\")","v":"Y"},"NY"]
[null,null,null,"General Fund",null,null,null,null,null,{"$f":"VLOOKUP(D695,'Bank and Fund Details'!$B$15:$D$36,3,FALSE)","v":0},{"$f":"VLOOKUP(D695,'Bank and Fund Details'!$B$15:$C$36,2,FALSE)","v":"Unrestricted"},{"$f":"IFERROR(VLOOKUP(C695,Descriptions!$I$6:$K$92,3,FALSE),\"\")","v":""},null,null,null,null,null,null,null,null,null,null,null,null,null,null,"General Fund",null,{"$f":"IFERROR(VLOOKUP(C695,Descriptions!I:M,5,FALSE),\"N\")","v":"N"},true,"NTRUE",0,{"$f":"IFERROR(VLOOKUP(D695,'Bank and Fund Details'!$B$14:$L$35,11,FALSE),\"N\")","v":"Y"},"NY"]
[null,null,null,"General Fund",null,null,null,null,null,{"$f":"VLOOKUP(D696,'Bank and Fund Details'!$B$15:$D$36,3,FALSE)","v":0},{"$f":"VLOOKUP(D696,'Bank and Fund Details'!$B$15:$C$36,2,FALSE)","v":"Unrestricted"},{"$f":"IFERROR(VLOOKUP(C696,Descriptions!$I$6:$K$92,3,FALSE),\"\")","v":""},null,null,null,null,null,null,null,null,null,null,null,null,null,null,"General Fund",null,{"$f":"IFERROR(VLOOKUP(C696,Descriptions!I:M,5,FALSE),\"N\")","v":"N"},true,"NTRUE",0,{"$f":"IFERROR(VLOOKUP(D696,'Bank and Fund Details'!$B$14:$L$35,11,FALSE),\"N\")","v":"Y"},"NY"]
[null,null,null,"General Fund",null,null,null,null,null,{"$f":"VLOOKUP(D697,'Bank and Fund Details'!$B$15:$D$36,3,FALSE)","v":0},{"$f":"VLOOKUP(D697,'Bank and Fund Details'!$B$15:$C$36,2,FALSE)","v":"Unrestricted"},{"$f":"IFERROR(VLOOKUP(C697,Descriptions!$I$6:$K$92,3,FALSE),\"\")","v":""},null,null,null,null,null,null,null,null,null,null,null,null,null,null,"General Fund",null,{"$f":"IFERROR(VLOOKUP(C697,Descriptions!I:M,5,FALSE),\"N\")","v":"N"},true,"NTRUE",0,{"$f":"IFERROR(VLOOKUP(D697,'Bank and Fund Details'!$B$14:$L$35,11,FALSE),\"N\")","v":"Y"},"NY"]
[null,null,null,"General Fund",null,null,null,null,null,{"$f":"VLOOKUP(D698,'Bank and Fund Details'!$B$15:$D$36,3,FALSE)","v":0},{"$f":"VLOOKUP(D698,'Bank and Fund Details'!$B$15:$C$36,2,FALSE)","v":"Unrestricted"},{"$f":"IFERROR(VLOOKUP(C698,Descriptions!$I$6:$K$92,3,FALSE),\"\")","v":""},null,null,null,null,null,null,null,null,null,null,null,null,null,null,"General Fund",null,{"$f":"IFERROR(VLOOKUP(C698,Descriptions!I:M,5,FALSE),\"N\")","v":"N"},true,"NTRUE",0,{"$f":"IFERROR(VLOOKUP(D698,'Bank and Fund Details'!$B$14:$L$35,11,FALSE),\"N\")","v":"Y"},"NY"]
[null,null,null,"General Fund",null,null,null,null,null,{"$f":"VLOOKUP(D699,'Bank and Fund Details'!$B$15:$D$36,3,FALSE)","v":0},{"$f":"VLOOKUP(D699,'Bank and Fund Details'!$B$15:$C$36,2,FALSE)","v":"Unrestricted"},{"$f":"IFERROR(VLOOKUP(C699,Descriptions!$I$6:$K$92,3,FALSE),\"\")","v":""},null,null,null,null,null,null,null,null,null,null,null,null,null,null,"General Fund",null,{"$f":"IFERROR(VLOOKUP(C699,Descriptions!I:M,5,FALSE),\"N\")","v":"N"},true,"NTRUE",0,{"$f":"IFERROR(VLOOKUP(D699,'Bank and Fund Details'!$B$14:$L$35,11,FALSE),\"N\")","v":"Y"},"NY"]
[null,null,null,"General Fund",null,null,null,null,null,{"$f":"VLOOKUP(D700,'Bank and Fund Details'!$B$15:$D$36,3,FALSE)","v":0},{"$f":"VLOOKUP(D700,'Bank and Fund Details'!$B$15:$C$36,2,FALSE)","v":"Unrestricted"},{"$f":"IFERROR(VLOOKUP(C700,Descriptions!$I$6:$K$92,3,FALSE),\"\")","v":""},null,null,null,null,null,null,null,null,null,null,null,null,null,null,"General Fund",null,{"$f":"IFERROR(VLOOKUP(C700,Descriptions!I:M,5,FALSE),\"N\")","v":"N"},true,"NTRUE",0,{"$f":"IFERROR(VLOOKUP(D700,'Bank and Fund Details'!$B$14:$L$35,11,FALSE),\"N\")","v":"Y"},"NY"]
[null,null,null,"General Fund",null,null,null,null,null,{"$f":"VLOOKUP(D701,'Bank and Fund Details'!$B$15:$D$36,3,FALSE)","v":0},{"$f":"VLOOKUP(D701,'Bank and Fund Details'!$B$15:$C$36,2,FALSE)","v":"Unrestricted"},{"$f":"IFERROR(VLOOKUP(C701,Descriptions!$I$6:$K$92,3,FALSE),\"\")","v":""},null,null,null,null,null,null,null,null,null,null,null,null,null,null,"General Fund",null,{"$f":"IFERROR(VLOOKUP(C701,Descriptions!I:M,5,FALSE),\"N\")","v":"N"},true,"NTRUE",0,{"$f":"IFERROR(VLOOKUP(D701,'Bank and Fund Details'!$B$14:$L$35,11,FALSE),\"N\")","v":"Y"},"NY"]
[null,null,null,"General Fund",null,null,null,null,null,{"$f":"VLOOKUP(D702,'Bank and Fund Details'!$B$15:$D$36,3,FALSE)","v":0},{"$f":"VLOOKUP(D702,'Bank and Fund Details'!$B$15:$C$36,2,FALSE)","v":"Unrestricted"},{"$f":"IFERROR(VLOOKUP(C702,Descriptions!$I$6:$K$92,3,FALSE),\"\")","v":""},null,null,null,null,null,null,null,null,null,null,null,null,null,null,"General Fund",null,{"$f":"IFERROR(VLOOKUP(C702,Descriptions!I:M,5,FALSE),\"N\")","v":"N"},true,"NTRUE",0,{"$f":"IFERROR(VLOOKUP(D702,'Bank and Fund Details'!$B$14:$L$35,11,FALSE),\"N\")","v":"Y"},"NY"]
[null,null,null,"General Fund",null,null,null,null,null,{"$f":"VLOOKUP(D703,'Bank and Fund Details'!$B$15:$D$36,3,FALSE)","v":0},{"$f":"VLOOKUP(D703,'Bank and Fund Details'!$B$15:$C$36,2,FALSE)","v":"Unrestricted"},{"$f":"IFERROR(VLOOKUP(C703,Descriptions!$I$6:$K$92,3,FALSE),\"\")","v":""},null,null,null,null,null,null,null,null,null,null,null,null,null,null,"General Fund",null,{"$f":"IFERROR(VLOOKUP(C703,Descriptions!I:M,5,FALSE),\"N\")","v":"N"},true,"NTRUE",0,{"$f":"IFERROR(VLOOKUP(D703,'Bank and Fund Details'!$B$14:$L$35,11,FALSE),\"N\")","v":"Y"},"NY"]
[null,null,null,"General Fund",null,null,null,null,null,{"$f":"VLOOKUP(D704,'Bank and Fund Details'!$B$15:$D$36,3,FALSE)","v":0},{"$f":"VLOOKUP(D704,'Bank and Fund Details'!$B$15:$C$36,2,FALSE)","v":"Unrestricted"},{"$f":"IFERROR(VLOOKUP(C704,Descriptions!$I$6:$K$92,3,FALSE),\"\")","v":""},null,null,null,null,null,null,null,null,null,null,null,null,null,null,"General Fund",null,{"$f":"IFERROR(VLOOKUP(C704,Descriptions!I:M,5,FALSE),\"N\")","v":"N"},true,"NTRUE",0,{"$f":"IFERROR(VLOOKUP(D704,'Bank and Fund Details'!$B$14:$L$35,11,FALSE),\"N\")","v":"Y"},"NY"]
[null,null,null,"General Fund",null,null,null,null,null,{"$f":"VLOOKUP(D705,'Bank and Fund Details'!$B$15:$D$36,3,FALSE)","v":0},{"$f":"VLOOKUP(D705,'Bank and Fund Details'!$B$15:$C$36,2,FALSE)","v":"Unrestricted"},{"$f":"IFERROR(VLOOKUP(C705,Descriptions!$I$6:$K$92,3,FALSE),\"\")","v":""},null,null,null,null,null,null,null,null,null,null,null,null,null,null,"General Fund",null,{"$f":"IFERROR(VLOOKUP(C705,Descriptions!I:M,5,FALSE),\"N\")","v":"N"},true,"NTRUE",0,{"$f":"IFERROR(VLOOKUP(D705,'Bank and Fund Details'!$B$14:$L$35,11,FALSE),\"N\")","v":"Y"},"NY"]
[null,null,null,"General Fund",null,null,null,null,null,{"$f":"VLOOKUP(D706,'Bank and Fund Details'!$B$15:$D$36,3,FALSE)","v":0},{"$f":"VLOOKUP(D706,'Bank and Fund Details'!$B$15:$C$36,2,FALSE)","v":"Unrestricted"},{"$f":"IFERROR(VLOOKUP(C706,Descriptions!$I$6:$K$92,3,FALSE),\"\")","v":""},null,null,null,null,null,null,null,null,null,null,null,null,null,null,"General Fund",null,{"$f":"IFERROR(VLOOKUP(C706,Descriptions!I:M,5,FALSE),\"N\")","v":"N"},true,"NTRUE",0,{"$f":"IFERROR(VLOOKUP(D706,'Bank and Fund Details'!$B$14:$L$35,11,FALSE),\"N\")","v":"Y"},"NY"]
[null,null,null,"General Fund",null,null,null,null,null,{"$f":"VLOOKUP(D707,'Bank and Fund Details'!$B$15:$D$36,3,FALSE)","v":0},{"$f":"VLOOKUP(D707,'Bank and Fund Details'!$B$15:$C$36,2,FALSE)","v":"Unrestricted"},{"$f":"IFERROR(VLOOKUP(C707,Descriptions!$I$6:$K$92,3,FALSE),\"\")","v":""},null,null,null,null,null,null,null,null,null,null,null,null,null,null,"General Fund",null,{"$f":"IFERROR(VLOOKUP(C707,Descriptions!I:M,5,FALSE),\"N\")","v":"N"},true,"NTRUE",0,{"$f":"IFERROR(VLOOKUP(D707,'Bank and Fund Details'!$B$14:$L$35,11,FALSE),\"N\")","v":"Y"},"NY"]
[null,null,null,"General Fund",null,null,null,null,null,{"$f":"VLOOKUP(D708,'Bank and Fund Details'!$B$15:$D$36,3,FALSE)","v":0},{"$f":"VLOOKUP(D708,'Bank and Fund Details'!$B$15:$C$36,2,FALSE)","v":"Unrestricted"},{"$f":"IFERROR(VLOOKUP(C708,Descriptions!$I$6:$K$92,3,FALSE),\"\")","v":""},null,null,null,null,null,null,null,null,null,null,null,null,null,null,"General Fund",null,{"$f":"IFERROR(VLOOKUP(C708,Descriptions!I:M,5,FALSE),\"N\")","v":"N"},true,"NTRUE",0,{"$f":"IFERROR(VLOOKUP(D708,'Bank and Fund Details'!$B$14:$L$35,11,FALSE),\"N\")","v":"Y"},"NY"]
[null,null,null,"General Fund",null,null,null,null,null,{"$f":"VLOOKUP(D709,'Bank and Fund Details'!$B$15:$D$36,3,FALSE)","v":0},{"$f":"VLOOKUP(D709,'Bank and Fund Details'!$B$15:$C$36,2,FALSE)","v":"Unrestricted"},{"$f":"IFERROR(VLOOKUP(C709,Descriptions!$I$6:$K$92,3,FALSE),\"\")","v":""},null,null,null,null,null,null,null,null,null,null,null,null,null,null,"General Fund",null,{"$f":"IFERROR(VLOOKUP(C709,Descriptions!I:M,5,FALSE),\"N\")","v":"N"},true,"NTRUE",0,{"$f":"IFERROR(VLOOKUP(D709,'Bank and Fund Details'!$B$14:$L$35,11,FALSE),\"N\")","v":"Y"},"NY"]
[null,null,null,"General Fund",null,null,null,null,null,{"$f":"VLOOKUP(D710,'Bank and Fund Details'!$B$15:$D$36,3,FALSE)","v":0},{"$f":"VLOOKUP(D710,'Bank and Fund Details'!$B$15:$C$36,2,FALSE)","v":"Unrestricted"},{"$f":"IFERROR(VLOOKUP(C710,Descriptions!$I$6:$K$92,3,FALSE),\"\")","v":""},null,null,null,null,null,null,null,null,null,null,null,null,null,null,{"$f":"CONCATENATE(C710,D710)","v":"General Fund"},null,{"$f":"IFERROR(VLOOKUP(C710,Descriptions!I:M,5,FALSE),\"N\")","v":"N"},{"$f":"ISBLANK(C710)","v":true},{"$f":"CONCATENATE(AC710,AD710)","v":"NTRUE"},{"$f":"IF(AE710=\"NFALSE\",1,0)","v":0},{"$f":"IFERROR(VLOOKUP(D710,'Bank and Fund Details'!$B$14:$L$35,11,FALSE),\"N\")","v":"Y"},{"$f":"CONCATENATE(AC710,AG710)","v":"NY"}]
[null,null,null,"General Fund",null,null,null,null,null,{"$f":"VLOOKUP(D711,'Bank and Fund Details'!$B$15:$D$36,3,FALSE)","v":0},{"$f":"VLOOKUP(D711,'Bank and Fund Details'!$B$15:$C$36,2,FALSE)","v":"Unrestricted"},{"$f":"IFERROR(VLOOKUP(C711,Descriptions!$I$6:$K$92,3,FALSE),\"\")","v":""},null,null,null,null,null,null,null,null,null,null,null,null,null,null,"General Fund",null,{"$f":"IFERROR(VLOOKUP(C711,Descriptions!I:M,5,FALSE),\"N\")","v":"N"},true,"NTRUE",0,{"$f":"IFERROR(VLOOKUP(D711,'Bank and Fund Details'!$B$14:$L$35,11,FALSE),\"N\")","v":"Y"},"NY"]
[null,null,null,"General Fund",null,null,null,null,null,{"$f":"VLOOKUP(D712,'Bank and Fund Details'!$B$15:$D$36,3,FALSE)","v":0},{"$f":"VLOOKUP(D712,'Bank and Fund Details'!$B$15:$C$36,2,FALSE)","v":"Unrestricted"},{"$f":"IFERROR(VLOOKUP(C712,Descriptions!$I$6:$K$92,3,FALSE),\"\")","v":""},null,null,null,null,null,null,null,null,null,null,null,null,null,null,"General Fund",null,{"$f":"IFERROR(VLOOKUP(C712,Descriptions!I:M,5,FALSE),\"N\")","v":"N"},true,"NTRUE",0,{"$f":"IFERROR(VLOOKUP(D712,'Bank and Fund Details'!$B$14:$L$35,11,FALSE),\"N\")","v":"Y"},"NY"]
[null,null,null,"General Fund",null,null,null,null,null,{"$f":"VLOOKUP(D713,'Bank and Fund Details'!$B$15:$D$36,3,FALSE)","v":0},{"$f":"VLOOKUP(D713,'Bank and Fund Details'!$B$15:$C$36,2,FALSE)","v":"Unrestricted"},{"$f":"IFERROR(VLOOKUP(C713,Descriptions!$I$6:$K$92,3,FALSE),\"\")","v":""},null,null,null,null,null,null,null,null,null,null,null,null,null,null,"General Fund",null,{"$f":"IFERROR(VLOOKUP(C713,Descriptions!I:M,5,FALSE),\"N\")","v":"N"},true,"NTRUE",0,{"$f":"IFERROR(VLOOKUP(D713,'Bank and Fund Details'!$B$14:$L$35,11,FALSE),\"N\")","v":"Y"},"NY"]
[null,null,null,"General Fund",null,null,null,null,null,{"$f":"VLOOKUP(D714,'Bank and Fund Details'!$B$15:$D$36,3,FALSE)","v":0},{"$f":"VLOOKUP(D714,'Bank and Fund Details'!$B$15:$C$36,2,FALSE)","v":"Unrestricted"},{"$f":"IFERROR(VLOOKUP(C714,Descriptions!$I$6:$K$92,3,FALSE),\"\")","v":""},null,null,null,null,null,null,null,null,null,null,null,null,null,null,"General Fund",null,{"$f":"IFERROR(VLOOKUP(C714,Descriptions!I:M,5,FALSE),\"N\")","v":"N"},true,"NTRUE",0,{"$f":"IFERROR(VLOOKUP(D714,'Bank and Fund Details'!$B$14:$L$35,11,FALSE),\"N\")","v":"Y"},"NY"]
[null,null,null,"General Fund",null,null,null,null,null,{"$f":"VLOOKUP(D715,'Bank and Fund Details'!$B$15:$D$36,3,FALSE)","v":0},{"$f":"VLOOKUP(D715,'Bank and Fund Details'!$B$15:$C$36,2,FALSE)","v":"Unrestricted"},{"$f":"IFERROR(VLOOKUP(C715,Descriptions!$I$6:$K$92,3,FALSE),\"\")","v":""},null,null,null,null,null,null,null,null,null,null,null,null,null,null,"General Fund",null,{"$f":"IFERROR(VLOOKUP(C715,Descriptions!I:M,5,FALSE),\"N\")","v":"N"},true,"NTRUE",0,{"$f":"IFERROR(VLOOKUP(D715,'Bank and Fund Details'!$B$14:$L$35,11,FALSE),\"N\")","v":"Y"},"NY"]
[null,null,null,"General Fund",null,null,null,null,null,{"$f":"VLOOKUP(D716,'Bank and Fund Details'!$B$15:$D$36,3,FALSE)","v":0},{"$f":"VLOOKUP(D716,'Bank and Fund Details'!$B$15:$C$36,2,FALSE)","v":"Unrestricted"},{"$f":"IFERROR(VLOOKUP(C716,Descriptions!$I$6:$K$92,3,FALSE),\"\")","v":""},null,null,null,null,null,null,null,null,null,null,null,null,null,null,"General Fund",null,{"$f":"IFERROR(VLOOKUP(C716,Descriptions!I:M,5,FALSE),\"N\")","v":"N"},true,"NTRUE",0,{"$f":"IFERROR(VLOOKUP(D716,'Bank and Fund Details'!$B$14:$L$35,11,FALSE),\"N\")","v":"Y"},"NY"]
[null,null,null,"General Fund",null,null,null,null,null,{"$f":"VLOOKUP(D717,'Bank and Fund Details'!$B$15:$D$36,3,FALSE)","v":0},{"$f":"VLOOKUP(D717,'Bank and Fund Details'!$B$15:$C$36,2,FALSE)","v":"Unrestricted"},{"$f":"IFERROR(VLOOKUP(C717,Descriptions!$I$6:$K$92,3,FALSE),\"\")","v":""},null,null,null,null,null,null,null,null,null,null,null,null,null,null,"General Fund",null,{"$f":"IFERROR(VLOOKUP(C717,Descriptions!I:M,5,FALSE),\"N\")","v":"N"},true,"NTRUE",0,{"$f":"IFERROR(VLOOKUP(D717,'Bank and Fund Details'!$B$14:$L$35,11,FALSE),\"N\")","v":"Y"},"NY"]
[null,null,null,"General Fund",null,null,null,null,null,{"$f":"VLOOKUP(D718,'Bank and Fund Details'!$B$15:$D$36,3,FALSE)","v":0},{"$f":"VLOOKUP(D718,'Bank and Fund Details'!$B$15:$C$36,2,FALSE)","v":"Unrestricted"},{"$f":"IFERROR(VLOOKUP(C718,Descriptions!$I$6:$K$92,3,FALSE),\"\")","v":""},null,null,null,null,null,null,null,null,null,null,null,null,null,null,"General Fund",null,{"$f":"IFERROR(VLOOKUP(C718,Descriptions!I:M,5,FALSE),\"N\")","v":"N"},true,"NTRUE",0,{"$f":"IFERROR(VLOOKUP(D718,'Bank and Fund Details'!$B$14:$L$35,11,FALSE),\"N\")","v":"Y"},"NY"]
[null,null,null,"General Fund",null,null,null,null,null,{"$f":"VLOOKUP(D719,'Bank and Fund Details'!$B$15:$D$36,3,FALSE)","v":0},{"$f":"VLOOKUP(D719,'Bank and Fund Details'!$B$15:$C$36,2,FALSE)","v":"Unrestricted"},{"$f":"IFERROR(VLOOKUP(C719,Descriptions!$I$6:$K$92,3,FALSE),\"\")","v":""},null,null,null,null,null,null,null,null,null,null,null,null,null,null,"General Fund",null,{"$f":"IFERROR(VLOOKUP(C719,Descriptions!I:M,5,FALSE),\"N\")","v":"N"},true,"NTRUE",0,{"$f":"IFERROR(VLOOKUP(D719,'Bank and Fund Details'!$B$14:$L$35,11,FALSE),\"N\")","v":"Y"},"NY"]
[null,null,null,"General Fund",null,null,null,null,null,{"$f":"VLOOKUP(D720,'Bank and Fund Details'!$B$15:$D$36,3,FALSE)","v":0},{"$f":"VLOOKUP(D720,'Bank and Fund Details'!$B$15:$C$36,2,FALSE)","v":"Unrestricted"},{"$f":"IFERROR(VLOOKUP(C720,Descriptions!$I$6:$K$92,3,FALSE),\"\")","v":""},null,null,null,null,null,null,null,null,null,null,null,null,null,null,"General Fund",null,{"$f":"IFERROR(VLOOKUP(C720,Descriptions!I:M,5,FALSE),\"N\")","v":"N"},true,"NTRUE",0,{"$f":"IFERROR(VLOOKUP(D720,'Bank and Fund Details'!$B$14:$L$35,11,FALSE),\"N\")","v":"Y"},"NY"]
[null,null,null,"General Fund",null,null,null,null,null,{"$f":"VLOOKUP(D721,'Bank and Fund Details'!$B$15:$D$36,3,FALSE)","v":0},{"$f":"VLOOKUP(D721,'Bank and Fund Details'!$B$15:$C$36,2,FALSE)","v":"Unrestricted"},{"$f":"IFERROR(VLOOKUP(C721,Descriptions!$I$6:$K$92,3,FALSE),\"\")","v":""},null,null,null,null,null,null,null,null,null,null,null,null,null,null,"General Fund",null,{"$f":"IFERROR(VLOOKUP(C721,Descriptions!I:M,5,FALSE),\"N\")","v":"N"},true,"NTRUE",0,{"$f":"IFERROR(VLOOKUP(D721,'Bank and Fund Details'!$B$14:$L$35,11,FALSE),\"N\")","v":"Y"},"NY"]
[null,null,null,"General Fund",null,null,null,null,null,{"$f":"VLOOKUP(D722,'Bank and Fund Details'!$B$15:$D$36,3,FALSE)","v":0},{"$f":"VLOOKUP(D722,'Bank and Fund Details'!$B$15:$C$36,2,FALSE)","v":"Unrestricted"},{"$f":"IFERROR(VLOOKUP(C722,Descriptions!$I$6:$K$92,3,FALSE),\"\")","v":""},null,null,null,null,null,null,null,null,null,null,null,null,null,null,"General Fund",null,{"$f":"IFERROR(VLOOKUP(C722,Descriptions!I:M,5,FALSE),\"N\")","v":"N"},true,"NTRUE",0,{"$f":"IFERROR(VLOOKUP(D722,'Bank and Fund Details'!$B$14:$L$35,11,FALSE),\"N\")","v":"Y"},"NY"]
[null,null,null,"General Fund",null,null,null,null,null,{"$f":"VLOOKUP(D723,'Bank and Fund Details'!$B$15:$D$36,3,FALSE)","v":0},{"$f":"VLOOKUP(D723,'Bank and Fund Details'!$B$15:$C$36,2,FALSE)","v":"Unrestricted"},{"$f":"IFERROR(VLOOKUP(C723,Descriptions!$I$6:$K$92,3,FALSE),\"\")","v":""},null,null,null,null,null,null,null,null,null,null,null,null,null,null,"General Fund",null,{"$f":"IFERROR(VLOOKUP(C723,Descriptions!I:M,5,FALSE),\"N\")","v":"N"},true,"NTRUE",0,{"$f":"IFERROR(VLOOKUP(D723,'Bank and Fund Details'!$B$14:$L$35,11,FALSE),\"N\")","v":"Y"},"NY"]
[null,null,null,"General Fund",null,null,null,null,null,{"$f":"VLOOKUP(D724,'Bank and Fund Details'!$B$15:$D$36,3,FALSE)","v":0},{"$f":"VLOOKUP(D724,'Bank and Fund Details'!$B$15:$C$36,2,FALSE)","v":"Unrestricted"},{"$f":"IFERROR(VLOOKUP(C724,Descriptions!$I$6:$K$92,3,FALSE),\"\")","v":""},null,null,null,null,null,null,null,null,null,null,null,null,null,null,"General Fund",null,{"$f":"IFERROR(VLOOKUP(C724,Descriptions!I:M,5,FALSE),\"N\")","v":"N"},true,"NTRUE",0,{"$f":"IFERROR(VLOOKUP(D724,'Bank and Fund Details'!$B$14:$L$35,11,FALSE),\"N\")","v":"Y"},"NY"]
[null,null,null,"General Fund",null,null,null,null,null,{"$f":"VLOOKUP(D725,'Bank and Fund Details'!$B$15:$D$36,3,FALSE)","v":0},{"$f":"VLOOKUP(D725,'Bank and Fund Details'!$B$15:$C$36,2,FALSE)","v":"Unrestricted"},{"$f":"IFERROR(VLOOKUP(C725,Descriptions!$I$6:$K$92,3,FALSE),\"\")","v":""},null,null,null,null,null,null,null,null,null,null,null,null,null,null,"General Fund",null,{"$f":"IFERROR(VLOOKUP(C725,Descriptions!I:M,5,FALSE),\"N\")","v":"N"},true,"NTRUE",0,{"$f":"IFERROR(VLOOKUP(D725,'Bank and Fund Details'!$B$14:$L$35,11,FALSE),\"N\")","v":"Y"},"NY"]
[null,null,null,"General Fund",null,null,null,null,null,{"$f":"VLOOKUP(D726,'Bank and Fund Details'!$B$15:$D$36,3,FALSE)","v":0},{"$f":"VLOOKUP(D726,'Bank and Fund Details'!$B$15:$C$36,2,FALSE)","v":"Unrestricted"},{"$f":"IFERROR(VLOOKUP(C726,Descriptions!$I$6:$K$92,3,FALSE),\"\")","v":""},null,null,null,null,null,null,null,null,null,null,null,null,null,null,"General Fund",null,{"$f":"IFERROR(VLOOKUP(C726,Descriptions!I:M,5,FALSE),\"N\")","v":"N"},true,"NTRUE",0,{"$f":"IFERROR(VLOOKUP(D726,'Bank and Fund Details'!$B$14:$L$35,11,FALSE),\"N\")","v":"Y"},"NY"]
[null,null,null,"General Fund",null,null,null,null,null,{"$f":"VLOOKUP(D727,'Bank and Fund Details'!$B$15:$D$36,3,FALSE)","v":0},{"$f":"VLOOKUP(D727,'Bank and Fund Details'!$B$15:$C$36,2,FALSE)","v":"Unrestricted"},{"$f":"IFERROR(VLOOKUP(C727,Descriptions!$I$6:$K$92,3,FALSE),\"\")","v":""},null,null,null,null,null,null,null,null,null,null,null,null,null,null,"General Fund",null,{"$f":"IFERROR(VLOOKUP(C727,Descriptions!I:M,5,FALSE),\"N\")","v":"N"},true,"NTRUE",0,{"$f":"IFERROR(VLOOKUP(D727,'Bank and Fund Details'!$B$14:$L$35,11,FALSE),\"N\")","v":"Y"},"NY"]
[null,null,null,"General Fund",null,null,null,null,null,{"$f":"VLOOKUP(D728,'Bank and Fund Details'!$B$15:$D$36,3,FALSE)","v":0},{"$f":"VLOOKUP(D728,'Bank and Fund Details'!$B$15:$C$36,2,FALSE)","v":"Unrestricted"},{"$f":"IFERROR(VLOOKUP(C728,Descriptions!$I$6:$K$92,3,FALSE),\"\")","v":""},null,null,null,null,null,null,null,null,null,null,null,null,null,null,"General Fund",null,{"$f":"IFERROR(VLOOKUP(C728,Descriptions!I:M,5,FALSE),\"N\")","v":"N"},true,"NTRUE",0,{"$f":"IFERROR(VLOOKUP(D728,'Bank and Fund Details'!$B$14:$L$35,11,FALSE),\"N\")","v":"Y"},"NY"]
[null,null,null,"General Fund",null,null,null,null,null,{"$f":"VLOOKUP(D729,'Bank and Fund Details'!$B$15:$D$36,3,FALSE)","v":0},{"$f":"VLOOKUP(D729,'Bank and Fund Details'!$B$15:$C$36,2,FALSE)","v":"Unrestricted"},{"$f":"IFERROR(VLOOKUP(C729,Descriptions!$I$6:$K$92,3,FALSE),\"\")","v":""},null,null,null,null,null,null,null,null,null,null,null,null,null,null,"General Fund",null,{"$f":"IFERROR(VLOOKUP(C729,Descriptions!I:M,5,FALSE),\"N\")","v":"N"},true,"NTRUE",0,{"$f":"IFERROR(VLOOKUP(D729,'Bank and Fund Details'!$B$14:$L$35,11,FALSE),\"N\")","v":"Y"},"NY"]
[null,null,null,"General Fund",null,null,null,null,null,{"$f":"VLOOKUP(D730,'Bank and Fund Details'!$B$15:$D$36,3,FALSE)","v":0},{"$f":"VLOOKUP(D730,'Bank and Fund Details'!$B$15:$C$36,2,FALSE)","v":"Unrestricted"},{"$f":"IFERROR(VLOOKUP(C730,Descriptions!$I$6:$K$92,3,FALSE),\"\")","v":""},null,null,null,null,null,null,null,null,null,null,null,null,null,null,"General Fund",null,{"$f":"IFERROR(VLOOKUP(C730,Descriptions!I:M,5,FALSE),\"N\")","v":"N"},true,"NTRUE",0,{"$f":"IFERROR(VLOOKUP(D730,'Bank and Fund Details'!$B$14:$L$35,11,FALSE),\"N\")","v":"Y"},"NY"]
[null,null,null,"General Fund",null,null,null,null,null,{"$f":"VLOOKUP(D731,'Bank and Fund Details'!$B$15:$D$36,3,FALSE)","v":0},{"$f":"VLOOKUP(D731,'Bank and Fund Details'!$B$15:$C$36,2,FALSE)","v":"Unrestricted"},{"$f":"IFERROR(VLOOKUP(C731,Descriptions!$I$6:$K$92,3,FALSE),\"\")","v":""},null,null,null,null,null,null,null,null,null,null,null,null,null,null,"General Fund",null,{"$f":"IFERROR(VLOOKUP(C731,Descriptions!I:M,5,FALSE),\"N\")","v":"N"},true,"NTRUE",0,{"$f":"IFERROR(VLOOKUP(D731,'Bank and Fund Details'!$B$14:$L$35,11,FALSE),\"N\")","v":"Y"},"NY"]
[null,null,null,"General Fund",null,null,null,null,null,{"$f":"VLOOKUP(D732,'Bank and Fund Details'!$B$15:$D$36,3,FALSE)","v":0},{"$f":"VLOOKUP(D732,'Bank and Fund Details'!$B$15:$C$36,2,FALSE)","v":"Unrestricted"},{"$f":"IFERROR(VLOOKUP(C732,Descriptions!$I$6:$K$92,3,FALSE),\"\")","v":""},null,null,null,null,null,null,null,null,null,null,null,null,null,null,"General Fund",null,{"$f":"IFERROR(VLOOKUP(C732,Descriptions!I:M,5,FALSE),\"N\")","v":"N"},true,"NTRUE",0,{"$f":"IFERROR(VLOOKUP(D732,'Bank and Fund Details'!$B$14:$L$35,11,FALSE),\"N\")","v":"Y"},"NY"]
[null,null,null,"General Fund",null,null,null,null,null,{"$f":"VLOOKUP(D733,'Bank and Fund Details'!$B$15:$D$36,3,FALSE)","v":0},{"$f":"VLOOKUP(D733,'Bank and Fund Details'!$B$15:$C$36,2,FALSE)","v":"Unrestricted"},{"$f":"IFERROR(VLOOKUP(C733,Descriptions!$I$6:$K$92,3,FALSE),\"\")","v":""},null,null,null,null,null,null,null,null,null,null,null,null,null,null,"General Fund",null,{"$f":"IFERROR(VLOOKUP(C733,Descriptions!I:M,5,FALSE),\"N\")","v":"N"},true,"NTRUE",0,{"$f":"IFERROR(VLOOKUP(D733,'Bank and Fund Details'!$B$14:$L$35,11,FALSE),\"N\")","v":"Y"},"NY"]
[null,null,null,"General Fund",null,null,null,null,null,{"$f":"VLOOKUP(D734,'Bank and Fund Details'!$B$15:$D$36,3,FALSE)","v":0},{"$f":"VLOOKUP(D734,'Bank and Fund Details'!$B$15:$C$36,2,FALSE)","v":"Unrestricted"},{"$f":"IFERROR(VLOOKUP(C734,Descriptions!$I$6:$K$92,3,FALSE),\"\")","v":""},null,null,null,null,null,null,null,null,null,null,null,null,null,null,"General Fund",null,{"$f":"IFERROR(VLOOKUP(C734,Descriptions!I:M,5,FALSE),\"N\")","v":"N"},true,"NTRUE",0,{"$f":"IFERROR(VLOOKUP(D734,'Bank and Fund Details'!$B$14:$L$35,11,FALSE),\"N\")","v":"Y"},"NY"]
[null,null,null,"General Fund",null,null,null,null,null,{"$f":"VLOOKUP(D735,'Bank and Fund Details'!$B$15:$D$36,3,FALSE)","v":0},{"$f":"VLOOKUP(D735,'Bank and Fund Details'!$B$15:$C$36,2,FALSE)","v":"Unrestricted"},{"$f":"IFERROR(VLOOKUP(C735,Descriptions!$I$6:$K$92,3,FALSE),\"\")","v":""},null,null,null,null,null,null,null,null,null,null,null,null,null,null,"General Fund",null,{"$f":"IFERROR(VLOOKUP(C735,Descriptions!I:M,5,FALSE),\"N\")","v":"N"},true,"NTRUE",0,{"$f":"IFERROR(VLOOKUP(D735,'Bank and Fund Details'!$B$14:$L$35,11,FALSE),\"N\")","v":"Y"},"NY"]
[null,null,null,"General Fund",null,null,null,null,null,{"$f":"VLOOKUP(D736,'Bank and Fund Details'!$B$15:$D$36,3,FALSE)","v":0},{"$f":"VLOOKUP(D736,'Bank and Fund Details'!$B$15:$C$36,2,FALSE)","v":"Unrestricted"},{"$f":"IFERROR(VLOOKUP(C736,Descriptions!$I$6:$K$92,3,FALSE),\"\")","v":""},null,null,null,null,null,null,null,null,null,null,null,null,null,null,"General Fund",null,{"$f":"IFERROR(VLOOKUP(C736,Descriptions!I:M,5,FALSE),\"N\")","v":"N"},true,"NTRUE",0,{"$f":"IFERROR(VLOOKUP(D736,'Bank and Fund Details'!$B$14:$L$35,11,FALSE),\"N\")","v":"Y"},"NY"]
[null,null,null,"General Fund",null,null,null,null,null,{"$f":"VLOOKUP(D737,'Bank and Fund Details'!$B$15:$D$36,3,FALSE)","v":0},{"$f":"VLOOKUP(D737,'Bank and Fund Details'!$B$15:$C$36,2,FALSE)","v":"Unrestricted"},{"$f":"IFERROR(VLOOKUP(C737,Descriptions!$I$6:$K$92,3,FALSE),\"\")","v":""},null,null,null,null,null,null,null,null,null,null,null,null,null,null,"General Fund",null,{"$f":"IFERROR(VLOOKUP(C737,Descriptions!I:M,5,FALSE),\"N\")","v":"N"},true,"NTRUE",0,{"$f":"IFERROR(VLOOKUP(D737,'Bank and Fund Details'!$B$14:$L$35,11,FALSE),\"N\")","v":"Y"},"NY"]
[null,null,null,"General Fund",null,null,null,null,null,{"$f":"VLOOKUP(D738,'Bank and Fund Details'!$B$15:$D$36,3,FALSE)","v":0},{"$f":"VLOOKUP(D738,'Bank and Fund Details'!$B$15:$C$36,2,FALSE)","v":"Unrestricted"},{"$f":"IFERROR(VLOOKUP(C738,Descriptions!$I$6:$K$92,3,FALSE),\"\")","v":""},null,null,null,null,null,null,null,null,null,null,null,null,null,null,"General Fund",null,{"$f":"IFERROR(VLOOKUP(C738,Descriptions!I:M,5,FALSE),\"N\")","v":"N"},true,"NTRUE",0,{"$f":"IFERROR(VLOOKUP(D738,'Bank and Fund Details'!$B$14:$L$35,11,FALSE),\"N\")","v":"Y"},"NY"]
[null,null,null,"General Fund",null,null,null,null,null,{"$f":"VLOOKUP(D739,'Bank and Fund Details'!$B$15:$D$36,3,FALSE)","v":0},{"$f":"VLOOKUP(D739,'Bank and Fund Details'!$B$15:$C$36,2,FALSE)","v":"Unrestricted"},{"$f":"IFERROR(VLOOKUP(C739,Descriptions!$I$6:$K$92,3,FALSE),\"\")","v":""},null,null,null,null,null,null,null,null,null,null,null,null,null,null,"General Fund",null,{"$f":"IFERROR(VLOOKUP(C739,Descriptions!I:M,5,FALSE),\"N\")","v":"N"},true,"NTRUE",0,{"$f":"IFERROR(VLOOKUP(D739,'Bank and Fund Details'!$B$14:$L$35,11,FALSE),\"N\")","v":"Y"},"NY"]
[null,null,null,"General Fund",null,null,null,null,null,{"$f":"VLOOKUP(D740,'Bank and Fund Details'!$B$15:$D$36,3,FALSE)","v":0},{"$f":"VLOOKUP(D740,'Bank and Fund Details'!$B$15:$C$36,2,FALSE)","v":"Unrestricted"},{"$f":"IFERROR(VLOOKUP(C740,Descriptions!$I$6:$K$92,3,FALSE),\"\")","v":""},null,null,null,null,null,null,null,null,null,null,null,null,null,null,"General Fund",null,{"$f":"IFERROR(VLOOKUP(C740,Descriptions!I:M,5,FALSE),\"N\")","v":"N"},true,"NTRUE",0,{"$f":"IFERROR(VLOOKUP(D740,'Bank and Fund Details'!$B$14:$L$35,11,FALSE),\"N\")","v":"Y"},"NY"]
[null,null,null,"General Fund",null,null,null,null,null,{"$f":"VLOOKUP(D741,'Bank and Fund Details'!$B$15:$D$36,3,FALSE)","v":0},{"$f":"VLOOKUP(D741,'Bank and Fund Details'!$B$15:$C$36,2,FALSE)","v":"Unrestricted"},{"$f":"IFERROR(VLOOKUP(C741,Descriptions!$I$6:$K$92,3,FALSE),\"\")","v":""},null,null,null,null,null,null,null,null,null,null,null,null,null,null,"General Fund",null,{"$f":"IFERROR(VLOOKUP(C741,Descriptions!I:M,5,FALSE),\"N\")","v":"N"},true,"NTRUE",0,{"$f":"IFERROR(VLOOKUP(D741,'Bank and Fund Details'!$B$14:$L$35,11,FALSE),\"N\")","v":"Y"},"NY"]
[null,null,null,"General Fund",null,null,null,null,null,{"$f":"VLOOKUP(D742,'Bank and Fund Details'!$B$15:$D$36,3,FALSE)","v":0},{"$f":"VLOOKUP(D742,'Bank and Fund Details'!$B$15:$C$36,2,FALSE)","v":"Unrestricted"},{"$f":"IFERROR(VLOOKUP(C742,Descriptions!$I$6:$K$92,3,FALSE),\"\")","v":""},null,null,null,null,null,null,null,null,null,null,null,null,null,null,"General Fund",null,{"$f":"IFERROR(VLOOKUP(C742,Descriptions!I:M,5,FALSE),\"N\")","v":"N"},true,"NTRUE",0,{"$f":"IFERROR(VLOOKUP(D742,'Bank and Fund Details'!$B$14:$L$35,11,FALSE),\"N\")","v":"Y"},"NY"]
[null,null,null,"General Fund",null,null,null,null,null,{"$f":"VLOOKUP(D743,'Bank and Fund Details'!$B$15:$D$36,3,FALSE)","v":0},{"$f":"VLOOKUP(D743,'Bank and Fund Details'!$B$15:$C$36,2,FALSE)","v":"Unrestricted"},{"$f":"IFERROR(VLOOKUP(C743,Descriptions!$I$6:$K$92,3,FALSE),\"\")","v":""},null,null,null,null,null,null,null,null,null,null,null,null,null,null,"General Fund",null,{"$f":"IFERROR(VLOOKUP(C743,Descriptions!I:M,5,FALSE),\"N\")","v":"N"},true,"NTRUE",0,{"$f":"IFERROR(VLOOKUP(D743,'Bank and Fund Details'!$B$14:$L$35,11,FALSE),\"N\")","v":"Y"},"NY"]
[null,null,null,"General Fund",null,null,null,null,null,{"$f":"VLOOKUP(D744,'Bank and Fund Details'!$B$15:$D$36,3,FALSE)","v":0},{"$f":"VLOOKUP(D744,'Bank and Fund Details'!$B$15:$C$36,2,FALSE)","v":"Unrestricted"},{"$f":"IFERROR(VLOOKUP(C744,Descriptions!$I$6:$K$92,3,FALSE),\"\")","v":""},null,null,null,null,null,null,null,null,null,null,null,null,null,null,"General Fund",null,{"$f":"IFERROR(VLOOKUP(C744,Descriptions!I:M,5,FALSE),\"N\")","v":"N"},true,"NTRUE",0,{"$f":"IFERROR(VLOOKUP(D744,'Bank and Fund Details'!$B$14:$L$35,11,FALSE),\"N\")","v":"Y"},"NY"]
[null,null,null,"General Fund",null,null,null,null,null,{"$f":"VLOOKUP(D745,'Bank and Fund Details'!$B$15:$D$36,3,FALSE)","v":0},{"$f":"VLOOKUP(D745,'Bank and Fund Details'!$B$15:$C$36,2,FALSE)","v":"Unrestricted"},{"$f":"IFERROR(VLOOKUP(C745,Descriptions!$I$6:$K$92,3,FALSE),\"\")","v":""},null,null,null,null,null,null,null,null,null,null,null,null,null,null,"General Fund",null,{"$f":"IFERROR(VLOOKUP(C745,Descriptions!I:M,5,FALSE),\"N\")","v":"N"},true,"NTRUE",0,{"$f":"IFERROR(VLOOKUP(D745,'Bank and Fund Details'!$B$14:$L$35,11,FALSE),\"N\")","v":"Y"},"NY"]
[null,null,null,"General Fund",null,null,null,null,null,{"$f":"VLOOKUP(D746,'Bank and Fund Details'!$B$15:$D$36,3,FALSE)","v":0},{"$f":"VLOOKUP(D746,'Bank and Fund Details'!$B$15:$C$36,2,FALSE)","v":"Unrestricted"},{"$f":"IFERROR(VLOOKUP(C746,Descriptions!$I$6:$K$92,3,FALSE),\"\")","v":""},null,null,null,null,null,null,null,null,null,null,null,null,null,null,"General Fund",null,{"$f":"IFERROR(VLOOKUP(C746,Descriptions!I:M,5,FALSE),\"N\")","v":"N"},true,"NTRUE",0,{"$f":"IFERROR(VLOOKUP(D746,'Bank and Fund Details'!$B$14:$L$35,11,FALSE),\"N\")","v":"Y"},"NY"]
[null,null,null,"General Fund",null,null,null,null,null,{"$f":"VLOOKUP(D747,'Bank and Fund Details'!$B$15:$D$36,3,FALSE)","v":0},{"$f":"VLOOKUP(D747,'Bank and Fund Details'!$B$15:$C$36,2,FALSE)","v":"Unrestricted"},{"$f":"IFERROR(VLOOKUP(C747,Descriptions!$I$6:$K$92,3,FALSE),\"\")","v":""},null,null,null,null,null,null,null,null,null,null,null,null,null,null,"General Fund",null,{"$f":"IFERROR(VLOOKUP(C747,Descriptions!I:M,5,FALSE),\"N\")","v":"N"},true,"NTRUE",0,{"$f":"IFERROR(VLOOKUP(D747,'Bank and Fund Details'!$B$14:$L$35,11,FALSE),\"N\")","v":"Y"},"NY"]
[null,null,null,"General Fund",null,null,null,null,null,{"$f":"VLOOKUP(D748,'Bank and Fund Details'!$B$15:$D$36,3,FALSE)","v":0},{"$f":"VLOOKUP(D748,'Bank and Fund Details'!$B$15:$C$36,2,FALSE)","v":"Unrestricted"},{"$f":"IFERROR(VLOOKUP(C748,Descriptions!$I$6:$K$92,3,FALSE),\"\")","v":""},null,null,null,null,null,null,null,null,null,null,null,null,null,null,"General Fund",null,{"$f":"IFERROR(VLOOKUP(C748,Descriptions!I:M,5,FALSE),\"N\")","v":"N"},true,"NTRUE",0,{"$f":"IFERROR(VLOOKUP(D748,'Bank and Fund Details'!$B$14:$L$35,11,FALSE),\"N\")","v":"Y"},"NY"]
[null,null,null,"General Fund",null,null,null,null,null,{"$f":"VLOOKUP(D749,'Bank and Fund Details'!$B$15:$D$36,3,FALSE)","v":0},{"$f":"VLOOKUP(D749,'Bank and Fund Details'!$B$15:$C$36,2,FALSE)","v":"Unrestricted"},{"$f":"IFERROR(VLOOKUP(C749,Descriptions!$I$6:$K$92,3,FALSE),\"\")","v":""},null,null,null,null,null,null,null,null,null,null,null,null,null,null,"General Fund",null,{"$f":"IFERROR(VLOOKUP(C749,Descriptions!I:M,5,FALSE),\"N\")","v":"N"},true,"NTRUE",0,{"$f":"IFERROR(VLOOKUP(D749,'Bank and Fund Details'!$B$14:$L$35,11,FALSE),\"N\")","v":"Y"},"NY"]
[null,null,null,"General Fund",null,null,null,null,null,{"$f":"VLOOKUP(D750,'Bank and Fund Details'!$B$15:$D$36,3,FALSE)","v":0},{"$f":"VLOOKUP(D750,'Bank and Fund Details'!$B$15:$C$36,2,FALSE)","v":"Unrestricted"},{"$f":"IFERROR(VLOOKUP(C750,Descriptions!$I$6:$K$92,3,FALSE),\"\")","v":""},null,null,null,null,null,null,null,null,null,null,null,null,null,null,"General Fund",null,{"$f":"IFERROR(VLOOKUP(C750,Descriptions!I:M,5,FALSE),\"N\")","v":"N"},true,"NTRUE",0,{"$f":"IFERROR(VLOOKUP(D750,'Bank and Fund Details'!$B$14:$L$35,11,FALSE),\"N\")","v":"Y"},"NY"]
[null,null,null,"General Fund",null,null,null,null,null,{"$f":"VLOOKUP(D751,'Bank and Fund Details'!$B$15:$D$36,3,FALSE)","v":0},{"$f":"VLOOKUP(D751,'Bank and Fund Details'!$B$15:$C$36,2,FALSE)","v":"Unrestricted"},{"$f":"IFERROR(VLOOKUP(C751,Descriptions!$I$6:$K$92,3,FALSE),\"\")","v":""},null,null,null,null,null,null,null,null,null,null,null,null,null,null,"General Fund",null,{"$f":"IFERROR(VLOOKUP(C751,Descriptions!I:M,5,FALSE),\"N\")","v":"N"},true,"NTRUE",0,{"$f":"IFERROR(VLOOKUP(D751,'Bank and Fund Details'!$B$14:$L$35,11,FALSE),\"N\")","v":"Y"},"NY"]
[null,null,null,"General Fund",null,null,null,null,null,{"$f":"VLOOKUP(D752,'Bank and Fund Details'!$B$15:$D$36,3,FALSE)","v":0},{"$f":"VLOOKUP(D752,'Bank and Fund Details'!$B$15:$C$36,2,FALSE)","v":"Unrestricted"},{"$f":"IFERROR(VLOOKUP(C752,Descriptions!$I$6:$K$92,3,FALSE),\"\")","v":""},null,null,null,null,null,null,null,null,null,null,null,null,null,null,"General Fund",null,{"$f":"IFERROR(VLOOKUP(C752,Descriptions!I:M,5,FALSE),\"N\")","v":"N"},true,"NTRUE",0,{"$f":"IFERROR(VLOOKUP(D752,'Bank and Fund Details'!$B$14:$L$35,11,FALSE),\"N\")","v":"Y"},"NY"]
[null,null,null,"General Fund",null,null,null,null,null,{"$f":"VLOOKUP(D753,'Bank and Fund Details'!$B$15:$D$36,3,FALSE)","v":0},{"$f":"VLOOKUP(D753,'Bank and Fund Details'!$B$15:$C$36,2,FALSE)","v":"Unrestricted"},{"$f":"IFERROR(VLOOKUP(C753,Descriptions!$I$6:$K$92,3,FALSE),\"\")","v":""},null,null,null,null,null,null,null,null,null,null,null,null,null,null,"General Fund",null,{"$f":"IFERROR(VLOOKUP(C753,Descriptions!I:M,5,FALSE),\"N\")","v":"N"},true,"NTRUE",0,{"$f":"IFERROR(VLOOKUP(D753,'Bank and Fund Details'!$B$14:$L$35,11,FALSE),\"N\")","v":"Y"},"NY"]
[null,null,null,"General Fund",null,null,null,null,null,{"$f":"VLOOKUP(D754,'Bank and Fund Details'!$B$15:$D$36,3,FALSE)","v":0},{"$f":"VLOOKUP(D754,'Bank and Fund Details'!$B$15:$C$36,2,FALSE)","v":"Unrestricted"},{"$f":"IFERROR(VLOOKUP(C754,Descriptions!$I$6:$K$92,3,FALSE),\"\")","v":""},null,null,null,null,null,null,null,null,null,null,null,null,null,null,"General Fund",null,{"$f":"IFERROR(VLOOKUP(C754,Descriptions!I:M,5,FALSE),\"N\")","v":"N"},true,"NTRUE",0,{"$f":"IFERROR(VLOOKUP(D754,'Bank and Fund Details'!$B$14:$L$35,11,FALSE),\"N\")","v":"Y"},"NY"]
[null,null,null,"General Fund",null,null,null,null,null,{"$f":"VLOOKUP(D755,'Bank and Fund Details'!$B$15:$D$36,3,FALSE)","v":0},{"$f":"VLOOKUP(D755,'Bank and Fund Details'!$B$15:$C$36,2,FALSE)","v":"Unrestricted"},{"$f":"IFERROR(VLOOKUP(C755,Descriptions!$I$6:$K$92,3,FALSE),\"\")","v":""},null,null,null,null,null,null,null,null,null,null,null,null,null,null,"General Fund",null,{"$f":"IFERROR(VLOOKUP(C755,Descriptions!I:M,5,FALSE),\"N\")","v":"N"},true,"NTRUE",0,{"$f":"IFERROR(VLOOKUP(D755,'Bank and Fund Details'!$B$14:$L$35,11,FALSE),\"N\")","v":"Y"},"NY"]
[null,null,null,"General Fund",null,null,null,null,null,{"$f":"VLOOKUP(D756,'Bank and Fund Details'!$B$15:$D$36,3,FALSE)","v":0},{"$f":"VLOOKUP(D756,'Bank and Fund Details'!$B$15:$C$36,2,FALSE)","v":"Unrestricted"},{"$f":"IFERROR(VLOOKUP(C756,Descriptions!$I$6:$K$92,3,FALSE),\"\")","v":""},null,null,null,null,null,null,null,null,null,null,null,null,null,null,"General Fund",null,{"$f":"IFERROR(VLOOKUP(C756,Descriptions!I:M,5,FALSE),\"N\")","v":"N"},true,"NTRUE",0,{"$f":"IFERROR(VLOOKUP(D756,'Bank and Fund Details'!$B$14:$L$35,11,FALSE),\"N\")","v":"Y"},"NY"]
[null,null,null,"General Fund",null,null,null,null,null,{"$f":"VLOOKUP(D757,'Bank and Fund Details'!$B$15:$D$36,3,FALSE)","v":0},{"$f":"VLOOKUP(D757,'Bank and Fund Details'!$B$15:$C$36,2,FALSE)","v":"Unrestricted"},{"$f":"IFERROR(VLOOKUP(C757,Descriptions!$I$6:$K$92,3,FALSE),\"\")","v":""},null,null,null,null,null,null,null,null,null,null,null,null,null,null,"General Fund",null,{"$f":"IFERROR(VLOOKUP(C757,Descriptions!I:M,5,FALSE),\"N\")","v":"N"},true,"NTRUE",0,{"$f":"IFERROR(VLOOKUP(D757,'Bank and Fund Details'!$B$14:$L$35,11,FALSE),\"N\")","v":"Y"},"NY"]
[null,null,null,"General Fund",null,null,null,null,null,{"$f":"VLOOKUP(D758,'Bank and Fund Details'!$B$15:$D$36,3,FALSE)","v":0},{"$f":"VLOOKUP(D758,'Bank and Fund Details'!$B$15:$C$36,2,FALSE)","v":"Unrestricted"},{"$f":"IFERROR(VLOOKUP(C758,Descriptions!$I$6:$K$92,3,FALSE),\"\")","v":""},null,null,null,null,null,null,null,null,null,null,null,null,null,null,"General Fund",null,{"$f":"IFERROR(VLOOKUP(C758,Descriptions!I:M,5,FALSE),\"N\")","v":"N"},true,"NTRUE",0,{"$f":"IFERROR(VLOOKUP(D758,'Bank and Fund Details'!$B$14:$L$35,11,FALSE),\"N\")","v":"Y"},"NY"]
[null,null,null,"General Fund",null,null,null,null,null,{"$f":"VLOOKUP(D759,'Bank and Fund Details'!$B$15:$D$36,3,FALSE)","v":0},{"$f":"VLOOKUP(D759,'Bank and Fund Details'!$B$15:$C$36,2,FALSE)","v":"Unrestricted"},{"$f":"IFERROR(VLOOKUP(C759,Descriptions!$I$6:$K$92,3,FALSE),\"\")","v":""},null,null,null,null,null,null,null,null,null,null,null,null,null,null,"General Fund",null,{"$f":"IFERROR(VLOOKUP(C759,Descriptions!I:M,5,FALSE),\"N\")","v":"N"},true,"NTRUE",0,{"$f":"IFERROR(VLOOKUP(D759,'Bank and Fund Details'!$B$14:$L$35,11,FALSE),\"N\")","v":"Y"},"NY"]
[null,null,null,"General Fund",null,null,null,null,null,{"$f":"VLOOKUP(D760,'Bank and Fund Details'!$B$15:$D$36,3,FALSE)","v":0},{"$f":"VLOOKUP(D760,'Bank and Fund Details'!$B$15:$C$36,2,FALSE)","v":"Unrestricted"},{"$f":"IFERROR(VLOOKUP(C760,Descriptions!$I$6:$K$92,3,FALSE),\"\")","v":""},null,null,null,null,null,null,null,null,null,null,null,null,null,null,"General Fund",null,{"$f":"IFERROR(VLOOKUP(C760,Descriptions!I:M,5,FALSE),\"N\")","v":"N"},true,"NTRUE",0,{"$f":"IFERROR(VLOOKUP(D760,'Bank and Fund Details'!$B$14:$L$35,11,FALSE),\"N\")","v":"Y"},"NY"]
[null,null,null,"General Fund",null,null,null,null,null,{"$f":"VLOOKUP(D761,'Bank and Fund Details'!$B$15:$D$36,3,FALSE)","v":0},{"$f":"VLOOKUP(D761,'Bank and Fund Details'!$B$15:$C$36,2,FALSE)","v":"Unrestricted"},{"$f":"IFERROR(VLOOKUP(C761,Descriptions!$I$6:$K$92,3,FALSE),\"\")","v":""},null,null,null,null,null,null,null,null,null,null,null,null,null,null,"General Fund",null,{"$f":"IFERROR(VLOOKUP(C761,Descriptions!I:M,5,FALSE),\"N\")","v":"N"},true,"NTRUE",0,{"$f":"IFERROR(VLOOKUP(D761,'Bank and Fund Details'!$B$14:$L$35,11,FALSE),\"N\")","v":"Y"},"NY"]
[null,null,null,"General Fund",null,null,null,null,null,{"$f":"VLOOKUP(D762,'Bank and Fund Details'!$B$15:$D$36,3,FALSE)","v":0},{"$f":"VLOOKUP(D762,'Bank and Fund Details'!$B$15:$C$36,2,FALSE)","v":"Unrestricted"},{"$f":"IFERROR(VLOOKUP(C762,Descriptions!$I$6:$K$92,3,FALSE),\"\")","v":""},null,null,null,null,null,null,null,null,null,null,null,null,null,null,"General Fund",null,{"$f":"IFERROR(VLOOKUP(C762,Descriptions!I:M,5,FALSE),\"N\")","v":"N"},true,"NTRUE",0,{"$f":"IFERROR(VLOOKUP(D762,'Bank and Fund Details'!$B$14:$L$35,11,FALSE),\"N\")","v":"Y"},"NY"]
[null,null,null,"General Fund",null,null,null,null,null,{"$f":"VLOOKUP(D763,'Bank and Fund Details'!$B$15:$D$36,3,FALSE)","v":0},{"$f":"VLOOKUP(D763,'Bank and Fund Details'!$B$15:$C$36,2,FALSE)","v":"Unrestricted"},{"$f":"IFERROR(VLOOKUP(C763,Descriptions!$I$6:$K$92,3,FALSE),\"\")","v":""},null,null,null,null,null,null,null,null,null,null,null,null,null,null,"General Fund",null,{"$f":"IFERROR(VLOOKUP(C763,Descriptions!I:M,5,FALSE),\"N\")","v":"N"},true,"NTRUE",0,{"$f":"IFERROR(VLOOKUP(D763,'Bank and Fund Details'!$B$14:$L$35,11,FALSE),\"N\")","v":"Y"},"NY"]
[null,null,null,"General Fund",null,null,null,null,null,{"$f":"VLOOKUP(D764,'Bank and Fund Details'!$B$15:$D$36,3,FALSE)","v":0},{"$f":"VLOOKUP(D764,'Bank and Fund Details'!$B$15:$C$36,2,FALSE)","v":"Unrestricted"},{"$f":"IFERROR(VLOOKUP(C764,Descriptions!$I$6:$K$92,3,FALSE),\"\")","v":""},null,null,null,null,null,null,null,null,null,null,null,null,null,null,"General Fund",null,{"$f":"IFERROR(VLOOKUP(C764,Descriptions!I:M,5,FALSE),\"N\")","v":"N"},true,"NTRUE",0,{"$f":"IFERROR(VLOOKUP(D764,'Bank and Fund Details'!$B$14:$L$35,11,FALSE),\"N\")","v":"Y"},"NY"]
[null,null,null,"General Fund",null,null,null,null,null,{"$f":"VLOOKUP(D765,'Bank and Fund Details'!$B$15:$D$36,3,FALSE)","v":0},{"$f":"VLOOKUP(D765,'Bank and Fund Details'!$B$15:$C$36,2,FALSE)","v":"Unrestricted"},{"$f":"IFERROR(VLOOKUP(C765,Descriptions!$I$6:$K$92,3,FALSE),\"\")","v":""},null,null,null,null,null,null,null,null,null,null,null,null,null,null,"General Fund",null,{"$f":"IFERROR(VLOOKUP(C765,Descriptions!I:M,5,FALSE),\"N\")","v":"N"},true,"NTRUE",0,{"$f":"IFERROR(VLOOKUP(D765,'Bank and Fund Details'!$B$14:$L$35,11,FALSE),\"N\")","v":"Y"},"NY"]
[null,null,null,"General Fund",null,null,null,null,null,{"$f":"VLOOKUP(D766,'Bank and Fund Details'!$B$15:$D$36,3,FALSE)","v":0},{"$f":"VLOOKUP(D766,'Bank and Fund Details'!$B$15:$C$36,2,FALSE)","v":"Unrestricted"},{"$f":"IFERROR(VLOOKUP(C766,Descriptions!$I$6:$K$92,3,FALSE),\"\")","v":""},null,null,null,null,null,null,null,null,null,null,null,null,null,null,"General Fund",null,{"$f":"IFERROR(VLOOKUP(C766,Descriptions!I:M,5,FALSE),\"N\")","v":"N"},true,"NTRUE",0,{"$f":"IFERROR(VLOOKUP(D766,'Bank and Fund Details'!$B$14:$L$35,11,FALSE),\"N\")","v":"Y"},"NY"]
[null,null,null,"General Fund",null,null,null,null,null,{"$f":"VLOOKUP(D767,'Bank and Fund Details'!$B$15:$D$36,3,FALSE)","v":0},{"$f":"VLOOKUP(D767,'Bank and Fund Details'!$B$15:$C$36,2,FALSE)","v":"Unrestricted"},{"$f":"IFERROR(VLOOKUP(C767,Descriptions!$I$6:$K$92,3,FALSE),\"\")","v":""},null,null,null,null,null,null,null,null,null,null,null,null,null,null,"General Fund",null,{"$f":"IFERROR(VLOOKUP(C767,Descriptions!I:M,5,FALSE),\"N\")","v":"N"},true,"NTRUE",0,{"$f":"IFERROR(VLOOKUP(D767,'Bank and Fund Details'!$B$14:$L$35,11,FALSE),\"N\")","v":"Y"},"NY"]
[null,null,null,"General Fund",null,null,null,null,null,{"$f":"VLOOKUP(D768,'Bank and Fund Details'!$B$15:$D$36,3,FALSE)","v":0},{"$f":"VLOOKUP(D768,'Bank and Fund Details'!$B$15:$C$36,2,FALSE)","v":"Unrestricted"},{"$f":"IFERROR(VLOOKUP(C768,Descriptions!$I$6:$K$92,3,FALSE),\"\")","v":""},null,null,null,null,null,null,null,null,null,null,null,null,null,null,"General Fund",null,{"$f":"IFERROR(VLOOKUP(C768,Descriptions!I:M,5,FALSE),\"N\")","v":"N"},true,"NTRUE",0,{"$f":"IFERROR(VLOOKUP(D768,'Bank and Fund Details'!$B$14:$L$35,11,FALSE),\"N\")","v":"Y"},"NY"]
[null,null,null,"General Fund",null,null,null,null,null,{"$f":"VLOOKUP(D769,'Bank and Fund Details'!$B$15:$D$36,3,FALSE)","v":0},{"$f":"VLOOKUP(D769,'Bank and Fund Details'!$B$15:$C$36,2,FALSE)","v":"Unrestricted"},{"$f":"IFERROR(VLOOKUP(C769,Descriptions!$I$6:$K$92,3,FALSE),\"\")","v":""},null,null,null,null,null,null,null,null,null,null,null,null,null,null,"General Fund",null,{"$f":"IFERROR(VLOOKUP(C769,Descriptions!I:M,5,FALSE),\"N\")","v":"N"},true,"NTRUE",0,{"$f":"IFERROR(VLOOKUP(D769,'Bank and Fund Details'!$B$14:$L$35,11,FALSE),\"N\")","v":"Y"},"NY"]
[null,null,null,"General Fund",null,null,null,null,null,{"$f":"VLOOKUP(D770,'Bank and Fund Details'!$B$15:$D$36,3,FALSE)","v":0},{"$f":"VLOOKUP(D770,'Bank and Fund Details'!$B$15:$C$36,2,FALSE)","v":"Unrestricted"},{"$f":"IFERROR(VLOOKUP(C770,Descriptions!$I$6:$K$92,3,FALSE),\"\")","v":""},null,null,null,null,null,null,null,null,null,null,null,null,null,null,"General Fund",null,{"$f":"IFERROR(VLOOKUP(C770,Descriptions!I:M,5,FALSE),\"N\")","v":"N"},true,"NTRUE",0,{"$f":"IFERROR(VLOOKUP(D770,'Bank and Fund Details'!$B$14:$L$35,11,FALSE),\"N\")","v":"Y"},"NY"]
[null,null,null,"General Fund",null,null,null,null,null,{"$f":"VLOOKUP(D771,'Bank and Fund Details'!$B$15:$D$36,3,FALSE)","v":0},{"$f":"VLOOKUP(D771,'Bank and Fund Details'!$B$15:$C$36,2,FALSE)","v":"Unrestricted"},{"$f":"IFERROR(VLOOKUP(C771,Descriptions!$I$6:$K$92,3,FALSE),\"\")","v":""},null,null,null,null,null,null,null,null,null,null,null,null,null,null,"General Fund",null,{"$f":"IFERROR(VLOOKUP(C771,Descriptions!I:M,5,FALSE),\"N\")","v":"N"},true,"NTRUE",0,{"$f":"IFERROR(VLOOKUP(D771,'Bank and Fund Details'!$B$14:$L$35,11,FALSE),\"N\")","v":"Y"},"NY"]
[null,null,null,"General Fund",null,null,null,null,null,{"$f":"VLOOKUP(D772,'Bank and Fund Details'!$B$15:$D$36,3,FALSE)","v":0},{"$f":"VLOOKUP(D772,'Bank and Fund Details'!$B$15:$C$36,2,FALSE)","v":"Unrestricted"},{"$f":"IFERROR(VLOOKUP(C772,Descriptions!$I$6:$K$92,3,FALSE),\"\")","v":""},null,null,null,null,null,null,null,null,null,null,null,null,null,null,"General Fund",null,{"$f":"IFERROR(VLOOKUP(C772,Descriptions!I:M,5,FALSE),\"N\")","v":"N"},true,"NTRUE",0,{"$f":"IFERROR(VLOOKUP(D772,'Bank and Fund Details'!$B$14:$L$35,11,FALSE),\"N\")","v":"Y"},"NY"]
[null,null,null,"General Fund",null,null,null,null,null,{"$f":"VLOOKUP(D773,'Bank and Fund Details'!$B$15:$D$36,3,FALSE)","v":0},{"$f":"VLOOKUP(D773,'Bank and Fund Details'!$B$15:$C$36,2,FALSE)","v":"Unrestricted"},{"$f":"IFERROR(VLOOKUP(C773,Descriptions!$I$6:$K$92,3,FALSE),\"\")","v":""},null,null,null,null,null,null,null,null,null,null,null,null,null,null,"General Fund",null,{"$f":"IFERROR(VLOOKUP(C773,Descriptions!I:M,5,FALSE),\"N\")","v":"N"},true,"NTRUE",0,{"$f":"IFERROR(VLOOKUP(D773,'Bank and Fund Details'!$B$14:$L$35,11,FALSE),\"N\")","v":"Y"},"NY"]
[null,null,null,"General Fund",null,null,null,null,null,{"$f":"VLOOKUP(D774,'Bank and Fund Details'!$B$15:$D$36,3,FALSE)","v":0},{"$f":"VLOOKUP(D774,'Bank and Fund Details'!$B$15:$C$36,2,FALSE)","v":"Unrestricted"},{"$f":"IFERROR(VLOOKUP(C774,Descriptions!$I$6:$K$92,3,FALSE),\"\")","v":""},null,null,null,null,null,null,null,null,null,null,null,null,null,null,{"$f":"CONCATENATE(C774,D774)","v":"General Fund"},null,{"$f":"IFERROR(VLOOKUP(C774,Descriptions!I:M,5,FALSE),\"N\")","v":"N"},{"$f":"ISBLANK(C774)","v":true},{"$f":"CONCATENATE(AC774,AD774)","v":"NTRUE"},{"$f":"IF(AE774=\"NFALSE\",1,0)","v":0},{"$f":"IFERROR(VLOOKUP(D774,'Bank and Fund Details'!$B$14:$L$35,11,FALSE),\"N\")","v":"Y"},{"$f":"CONCATENATE(AC774,AG774)","v":"NY"}]
[null,null,null,"General Fund",null,null,null,null,null,{"$f":"VLOOKUP(D775,'Bank and Fund Details'!$B$15:$D$36,3,FALSE)","v":0},{"$f":"VLOOKUP(D775,'Bank and Fund Details'!$B$15:$C$36,2,FALSE)","v":"Unrestricted"},{"$f":"IFERROR(VLOOKUP(C775,Descriptions!$I$6:$K$92,3,FALSE),\"\")","v":""},null,null,null,null,null,null,null,null,null,null,null,null,null,null,"General Fund",null,{"$f":"IFERROR(VLOOKUP(C775,Descriptions!I:M,5,FALSE),\"N\")","v":"N"},true,"NTRUE",0,{"$f":"IFERROR(VLOOKUP(D775,'Bank and Fund Details'!$B$14:$L$35,11,FALSE),\"N\")","v":"Y"},"NY"]
[null,null,null,"General Fund",null,null,null,null,null,{"$f":"VLOOKUP(D776,'Bank and Fund Details'!$B$15:$D$36,3,FALSE)","v":0},{"$f":"VLOOKUP(D776,'Bank and Fund Details'!$B$15:$C$36,2,FALSE)","v":"Unrestricted"},{"$f":"IFERROR(VLOOKUP(C776,Descriptions!$I$6:$K$92,3,FALSE),\"\")","v":""},null,null,null,null,null,null,null,null,null,null,null,null,null,null,"General Fund",null,{"$f":"IFERROR(VLOOKUP(C776,Descriptions!I:M,5,FALSE),\"N\")","v":"N"},true,"NTRUE",0,{"$f":"IFERROR(VLOOKUP(D776,'Bank and Fund Details'!$B$14:$L$35,11,FALSE),\"N\")","v":"Y"},"NY"]
[null,null,null,"General Fund",null,null,null,null,null,{"$f":"VLOOKUP(D777,'Bank and Fund Details'!$B$15:$D$36,3,FALSE)","v":0},{"$f":"VLOOKUP(D777,'Bank and Fund Details'!$B$15:$C$36,2,FALSE)","v":"Unrestricted"},{"$f":"IFERROR(VLOOKUP(C777,Descriptions!$I$6:$K$92,3,FALSE),\"\")","v":""},null,null,null,null,null,null,null,null,null,null,null,null,null,null,"General Fund",null,{"$f":"IFERROR(VLOOKUP(C777,Descriptions!I:M,5,FALSE),\"N\")","v":"N"},true,"NTRUE",0,{"$f":"IFERROR(VLOOKUP(D777,'Bank and Fund Details'!$B$14:$L$35,11,FALSE),\"N\")","v":"Y"},"NY"]
[null,null,null,"General Fund",null,null,null,null,null,{"$f":"VLOOKUP(D778,'Bank and Fund Details'!$B$15:$D$36,3,FALSE)","v":0},{"$f":"VLOOKUP(D778,'Bank and Fund Details'!$B$15:$C$36,2,FALSE)","v":"Unrestricted"},{"$f":"IFERROR(VLOOKUP(C778,Descriptions!$I$6:$K$92,3,FALSE),\"\")","v":""},null,null,null,null,null,null,null,null,null,null,null,null,null,null,"General Fund",null,{"$f":"IFERROR(VLOOKUP(C778,Descriptions!I:M,5,FALSE),\"N\")","v":"N"},true,"NTRUE",0,{"$f":"IFERROR(VLOOKUP(D778,'Bank and Fund Details'!$B$14:$L$35,11,FALSE),\"N\")","v":"Y"},"NY"]
[null,null,null,"General Fund",null,null,null,null,null,{"$f":"VLOOKUP(D779,'Bank and Fund Details'!$B$15:$D$36,3,FALSE)","v":0},{"$f":"VLOOKUP(D779,'Bank and Fund Details'!$B$15:$C$36,2,FALSE)","v":"Unrestricted"},{"$f":"IFERROR(VLOOKUP(C779,Descriptions!$I$6:$K$92,3,FALSE),\"\")","v":""},null,null,null,null,null,null,null,null,null,null,null,null,null,null,"General Fund",null,{"$f":"IFERROR(VLOOKUP(C779,Descriptions!I:M,5,FALSE),\"N\")","v":"N"},true,"NTRUE",0,{"$f":"IFERROR(VLOOKUP(D779,'Bank and Fund Details'!$B$14:$L$35,11,FALSE),\"N\")","v":"Y"},"NY"]
[null,null,null,"General Fund",null,null,null,null,null,{"$f":"VLOOKUP(D780,'Bank and Fund Details'!$B$15:$D$36,3,FALSE)","v":0},{"$f":"VLOOKUP(D780,'Bank and Fund Details'!$B$15:$C$36,2,FALSE)","v":"Unrestricted"},{"$f":"IFERROR(VLOOKUP(C780,Descriptions!$I$6:$K$92,3,FALSE),\"\")","v":""},null,null,null,null,null,null,null,null,null,null,null,null,null,null,"General Fund",null,{"$f":"IFERROR(VLOOKUP(C780,Descriptions!I:M,5,FALSE),\"N\")","v":"N"},true,"NTRUE",0,{"$f":"IFERROR(VLOOKUP(D780,'Bank and Fund Details'!$B$14:$L$35,11,FALSE),\"N\")","v":"Y"},"NY"]
[null,null,null,"General Fund",null,null,null,null,null,{"$f":"VLOOKUP(D781,'Bank and Fund Details'!$B$15:$D$36,3,FALSE)","v":0},{"$f":"VLOOKUP(D781,'Bank and Fund Details'!$B$15:$C$36,2,FALSE)","v":"Unrestricted"},{"$f":"IFERROR(VLOOKUP(C781,Descriptions!$I$6:$K$92,3,FALSE),\"\")","v":""},null,null,null,null,null,null,null,null,null,null,null,null,null,null,"General Fund",null,{"$f":"IFERROR(VLOOKUP(C781,Descriptions!I:M,5,FALSE),\"N\")","v":"N"},true,"NTRUE",0,{"$f":"IFERROR(VLOOKUP(D781,'Bank and Fund Details'!$B$14:$L$35,11,FALSE),\"N\")","v":"Y"},"NY"]
[null,null,null,"General Fund",null,null,null,null,null,{"$f":"VLOOKUP(D782,'Bank and Fund Details'!$B$15:$D$36,3,FALSE)","v":0},{"$f":"VLOOKUP(D782,'Bank and Fund Details'!$B$15:$C$36,2,FALSE)","v":"Unrestricted"},{"$f":"IFERROR(VLOOKUP(C782,Descriptions!$I$6:$K$92,3,FALSE),\"\")","v":""},null,null,null,null,null,null,null,null,null,null,null,null,null,null,"General Fund",null,{"$f":"IFERROR(VLOOKUP(C782,Descriptions!I:M,5,FALSE),\"N\")","v":"N"},true,"NTRUE",0,{"$f":"IFERROR(VLOOKUP(D782,'Bank and Fund Details'!$B$14:$L$35,11,FALSE),\"N\")","v":"Y"},"NY"]
[null,null,null,"General Fund",null,null,null,null,null,{"$f":"VLOOKUP(D783,'Bank and Fund Details'!$B$15:$D$36,3,FALSE)","v":0},{"$f":"VLOOKUP(D783,'Bank and Fund Details'!$B$15:$C$36,2,FALSE)","v":"Unrestricted"},{"$f":"IFERROR(VLOOKUP(C783,Descriptions!$I$6:$K$92,3,FALSE),\"\")","v":""},null,null,null,null,null,null,null,null,null,null,null,null,null,null,"General Fund",null,{"$f":"IFERROR(VLOOKUP(C783,Descriptions!I:M,5,FALSE),\"N\")","v":"N"},true,"NTRUE",0,{"$f":"IFERROR(VLOOKUP(D783,'Bank and Fund Details'!$B$14:$L$35,11,FALSE),\"N\")","v":"Y"},"NY"]
[null,null,null,"General Fund",null,null,null,null,null,{"$f":"VLOOKUP(D784,'Bank and Fund Details'!$B$15:$D$36,3,FALSE)","v":0},{"$f":"VLOOKUP(D784,'Bank and Fund Details'!$B$15:$C$36,2,FALSE)","v":"Unrestricted"},{"$f":"IFERROR(VLOOKUP(C784,Descriptions!$I$6:$K$92,3,FALSE),\"\")","v":""},null,null,null,null,null,null,null,null,null,null,null,null,null,null,"General Fund",null,{"$f":"IFERROR(VLOOKUP(C784,Descriptions!I:M,5,FALSE),\"N\")","v":"N"},true,"NTRUE",0,{"$f":"IFERROR(VLOOKUP(D784,'Bank and Fund Details'!$B$14:$L$35,11,FALSE),\"N\")","v":"Y"},"NY"]
[null,null,null,"General Fund",null,null,null,null,null,{"$f":"VLOOKUP(D785,'Bank and Fund Details'!$B$15:$D$36,3,FALSE)","v":0},{"$f":"VLOOKUP(D785,'Bank and Fund Details'!$B$15:$C$36,2,FALSE)","v":"Unrestricted"},{"$f":"IFERROR(VLOOKUP(C785,Descriptions!$I$6:$K$92,3,FALSE),\"\")","v":""},null,null,null,null,null,null,null,null,null,null,null,null,null,null,"General Fund",null,{"$f":"IFERROR(VLOOKUP(C785,Descriptions!I:M,5,FALSE),\"N\")","v":"N"},true,"NTRUE",0,{"$f":"IFERROR(VLOOKUP(D785,'Bank and Fund Details'!$B$14:$L$35,11,FALSE),\"N\")","v":"Y"},"NY"]
[null,null,null,"General Fund",null,null,null,null,null,{"$f":"VLOOKUP(D786,'Bank and Fund Details'!$B$15:$D$36,3,FALSE)","v":0},{"$f":"VLOOKUP(D786,'Bank and Fund Details'!$B$15:$C$36,2,FALSE)","v":"Unrestricted"},{"$f":"IFERROR(VLOOKUP(C786,Descriptions!$I$6:$K$92,3,FALSE),\"\")","v":""},null,null,null,null,null,null,null,null,null,null,null,null,null,null,"General Fund",null,{"$f":"IFERROR(VLOOKUP(C786,Descriptions!I:M,5,FALSE),\"N\")","v":"N"},true,"NTRUE",0,{"$f":"IFERROR(VLOOKUP(D786,'Bank and Fund Details'!$B$14:$L$35,11,FALSE),\"N\")","v":"Y"},"NY"]
[null,null,null,"General Fund",null,null,null,null,null,{"$f":"VLOOKUP(D787,'Bank and Fund Details'!$B$15:$D$36,3,FALSE)","v":0},{"$f":"VLOOKUP(D787,'Bank and Fund Details'!$B$15:$C$36,2,FALSE)","v":"Unrestricted"},{"$f":"IFERROR(VLOOKUP(C787,Descriptions!$I$6:$K$92,3,FALSE),\"\")","v":""},null,null,null,null,null,null,null,null,null,null,null,null,null,null,"General Fund",null,{"$f":"IFERROR(VLOOKUP(C787,Descriptions!I:M,5,FALSE),\"N\")","v":"N"},true,"NTRUE",0,{"$f":"IFERROR(VLOOKUP(D787,'Bank and Fund Details'!$B$14:$L$35,11,FALSE),\"N\")","v":"Y"},"NY"]
[null,null,null,"General Fund",null,null,null,null,null,{"$f":"VLOOKUP(D788,'Bank and Fund Details'!$B$15:$D$36,3,FALSE)","v":0},{"$f":"VLOOKUP(D788,'Bank and Fund Details'!$B$15:$C$36,2,FALSE)","v":"Unrestricted"},{"$f":"IFERROR(VLOOKUP(C788,Descriptions!$I$6:$K$92,3,FALSE),\"\")","v":""},null,null,null,null,null,null,null,null,null,null,null,null,null,null,"General Fund",null,{"$f":"IFERROR(VLOOKUP(C788,Descriptions!I:M,5,FALSE),\"N\")","v":"N"},true,"NTRUE",0,{"$f":"IFERROR(VLOOKUP(D788,'Bank and Fund Details'!$B$14:$L$35,11,FALSE),\"N\")","v":"Y"},"NY"]
[null,null,null,"General Fund",null,null,null,null,null,{"$f":"VLOOKUP(D789,'Bank and Fund Details'!$B$15:$D$36,3,FALSE)","v":0},{"$f":"VLOOKUP(D789,'Bank and Fund Details'!$B$15:$C$36,2,FALSE)","v":"Unrestricted"},{"$f":"IFERROR(VLOOKUP(C789,Descriptions!$I$6:$K$92,3,FALSE),\"\")","v":""},null,null,null,null,null,null,null,null,null,null,null,null,null,null,"General Fund",null,{"$f":"IFERROR(VLOOKUP(C789,Descriptions!I:M,5,FALSE),\"N\")","v":"N"},true,"NTRUE",0,{"$f":"IFERROR(VLOOKUP(D789,'Bank and Fund Details'!$B$14:$L$35,11,FALSE),\"N\")","v":"Y"},"NY"]
[null,null,null,"General Fund",null,null,null,null,null,{"$f":"VLOOKUP(D790,'Bank and Fund Details'!$B$15:$D$36,3,FALSE)","v":0},{"$f":"VLOOKUP(D790,'Bank and Fund Details'!$B$15:$C$36,2,FALSE)","v":"Unrestricted"},{"$f":"IFERROR(VLOOKUP(C790,Descriptions!$I$6:$K$92,3,FALSE),\"\")","v":""},null,null,null,null,null,null,null,null,null,null,null,null,null,null,"General Fund",null,{"$f":"IFERROR(VLOOKUP(C790,Descriptions!I:M,5,FALSE),\"N\")","v":"N"},true,"NTRUE",0,{"$f":"IFERROR(VLOOKUP(D790,'Bank and Fund Details'!$B$14:$L$35,11,FALSE),\"N\")","v":"Y"},"NY"]
[null,null,null,"General Fund",null,null,null,null,null,{"$f":"VLOOKUP(D791,'Bank and Fund Details'!$B$15:$D$36,3,FALSE)","v":0},{"$f":"VLOOKUP(D791,'Bank and Fund Details'!$B$15:$C$36,2,FALSE)","v":"Unrestricted"},{"$f":"IFERROR(VLOOKUP(C791,Descriptions!$I$6:$K$92,3,FALSE),\"\")","v":""},null,null,null,null,null,null,null,null,null,null,null,null,null,null,"General Fund",null,{"$f":"IFERROR(VLOOKUP(C791,Descriptions!I:M,5,FALSE),\"N\")","v":"N"},true,"NTRUE",0,{"$f":"IFERROR(VLOOKUP(D791,'Bank and Fund Details'!$B$14:$L$35,11,FALSE),\"N\")","v":"Y"},"NY"]
[null,null,null,"General Fund",null,null,null,null,null,{"$f":"VLOOKUP(D792,'Bank and Fund Details'!$B$15:$D$36,3,FALSE)","v":0},{"$f":"VLOOKUP(D792,'Bank and Fund Details'!$B$15:$C$36,2,FALSE)","v":"Unrestricted"},{"$f":"IFERROR(VLOOKUP(C792,Descriptions!$I$6:$K$92,3,FALSE),\"\")","v":""},null,null,null,null,null,null,null,null,null,null,null,null,null,null,"General Fund",null,{"$f":"IFERROR(VLOOKUP(C792,Descriptions!I:M,5,FALSE),\"N\")","v":"N"},true,"NTRUE",0,{"$f":"IFERROR(VLOOKUP(D792,'Bank and Fund Details'!$B$14:$L$35,11,FALSE),\"N\")","v":"Y"},"NY"]
[null,null,null,"General Fund",null,null,null,null,null,{"$f":"VLOOKUP(D793,'Bank and Fund Details'!$B$15:$D$36,3,FALSE)","v":0},{"$f":"VLOOKUP(D793,'Bank and Fund Details'!$B$15:$C$36,2,FALSE)","v":"Unrestricted"},{"$f":"IFERROR(VLOOKUP(C793,Descriptions!$I$6:$K$92,3,FALSE),\"\")","v":""},null,null,null,null,null,null,null,null,null,null,null,null,null,null,"General Fund",null,{"$f":"IFERROR(VLOOKUP(C793,Descriptions!I:M,5,FALSE),\"N\")","v":"N"},true,"NTRUE",0,{"$f":"IFERROR(VLOOKUP(D793,'Bank and Fund Details'!$B$14:$L$35,11,FALSE),\"N\")","v":"Y"},"NY"]
[null,null,null,"General Fund",null,null,null,null,null,{"$f":"VLOOKUP(D794,'Bank and Fund Details'!$B$15:$D$36,3,FALSE)","v":0},{"$f":"VLOOKUP(D794,'Bank and Fund Details'!$B$15:$C$36,2,FALSE)","v":"Unrestricted"},{"$f":"IFERROR(VLOOKUP(C794,Descriptions!$I$6:$K$92,3,FALSE),\"\")","v":""},null,null,null,null,null,null,null,null,null,null,null,null,null,null,"General Fund",null,{"$f":"IFERROR(VLOOKUP(C794,Descriptions!I:M,5,FALSE),\"N\")","v":"N"},true,"NTRUE",0,{"$f":"IFERROR(VLOOKUP(D794,'Bank and Fund Details'!$B$14:$L$35,11,FALSE),\"N\")","v":"Y"},"NY"]
[null,null,null,"General Fund",null,null,null,null,null,{"$f":"VLOOKUP(D795,'Bank and Fund Details'!$B$15:$D$36,3,FALSE)","v":0},{"$f":"VLOOKUP(D795,'Bank and Fund Details'!$B$15:$C$36,2,FALSE)","v":"Unrestricted"},{"$f":"IFERROR(VLOOKUP(C795,Descriptions!$I$6:$K$92,3,FALSE),\"\")","v":""},null,null,null,null,null,null,null,null,null,null,null,null,null,null,"General Fund",null,{"$f":"IFERROR(VLOOKUP(C795,Descriptions!I:M,5,FALSE),\"N\")","v":"N"},true,"NTRUE",0,{"$f":"IFERROR(VLOOKUP(D795,'Bank and Fund Details'!$B$14:$L$35,11,FALSE),\"N\")","v":"Y"},"NY"]
[null,null,null,"General Fund",null,null,null,null,null,{"$f":"VLOOKUP(D796,'Bank and Fund Details'!$B$15:$D$36,3,FALSE)","v":0},{"$f":"VLOOKUP(D796,'Bank and Fund Details'!$B$15:$C$36,2,FALSE)","v":"Unrestricted"},{"$f":"IFERROR(VLOOKUP(C796,Descriptions!$I$6:$K$92,3,FALSE),\"\")","v":""},null,null,null,null,null,null,null,null,null,null,null,null,null,null,"General Fund",null,{"$f":"IFERROR(VLOOKUP(C796,Descriptions!I:M,5,FALSE),\"N\")","v":"N"},true,"NTRUE",0,{"$f":"IFERROR(VLOOKUP(D796,'Bank and Fund Details'!$B$14:$L$35,11,FALSE),\"N\")","v":"Y"},"NY"]
[null,null,null,"General Fund",null,null,null,null,null,{"$f":"VLOOKUP(D797,'Bank and Fund Details'!$B$15:$D$36,3,FALSE)","v":0},{"$f":"VLOOKUP(D797,'Bank and Fund Details'!$B$15:$C$36,2,FALSE)","v":"Unrestricted"},{"$f":"IFERROR(VLOOKUP(C797,Descriptions!$I$6:$K$92,3,FALSE),\"\")","v":""},null,null,null,null,null,null,null,null,null,null,null,null,null,null,"General Fund",null,{"$f":"IFERROR(VLOOKUP(C797,Descriptions!I:M,5,FALSE),\"N\")","v":"N"},true,"NTRUE",0,{"$f":"IFERROR(VLOOKUP(D797,'Bank and Fund Details'!$B$14:$L$35,11,FALSE),\"N\")","v":"Y"},"NY"]
[null,null,null,"General Fund",null,null,null,null,null,{"$f":"VLOOKUP(D798,'Bank and Fund Details'!$B$15:$D$36,3,FALSE)","v":0},{"$f":"VLOOKUP(D798,'Bank and Fund Details'!$B$15:$C$36,2,FALSE)","v":"Unrestricted"},{"$f":"IFERROR(VLOOKUP(C798,Descriptions!$I$6:$K$92,3,FALSE),\"\")","v":""},null,null,null,null,null,null,null,null,null,null,null,null,null,null,"General Fund",null,{"$f":"IFERROR(VLOOKUP(C798,Descriptions!I:M,5,FALSE),\"N\")","v":"N"},true,"NTRUE",0,{"$f":"IFERROR(VLOOKUP(D798,'Bank and Fund Details'!$B$14:$L$35,11,FALSE),\"N\")","v":"Y"},"NY"]
[null,null,null,"General Fund",null,null,null,null,null,{"$f":"VLOOKUP(D799,'Bank and Fund Details'!$B$15:$D$36,3,FALSE)","v":0},{"$f":"VLOOKUP(D799,'Bank and Fund Details'!$B$15:$C$36,2,FALSE)","v":"Unrestricted"},{"$f":"IFERROR(VLOOKUP(C799,Descriptions!$I$6:$K$92,3,FALSE),\"\")","v":""},null,null,null,null,null,null,null,null,null,null,null,null,null,null,"General Fund",null,{"$f":"IFERROR(VLOOKUP(C799,Descriptions!I:M,5,FALSE),\"N\")","v":"N"},true,"NTRUE",0,{"$f":"IFERROR(VLOOKUP(D799,'Bank and Fund Details'!$B$14:$L$35,11,FALSE),\"N\")","v":"Y"},"NY"]
[null,null,null,"General Fund",null,null,null,null,null,{"$f":"VLOOKUP(D800,'Bank and Fund Details'!$B$15:$D$36,3,FALSE)","v":0},{"$f":"VLOOKUP(D800,'Bank and Fund Details'!$B$15:$C$36,2,FALSE)","v":"Unrestricted"},{"$f":"IFERROR(VLOOKUP(C800,Descriptions!$I$6:$K$92,3,FALSE),\"\")","v":""},null,null,null,null,null,null,null,null,null,null,null,null,null,null,"General Fund",null,{"$f":"IFERROR(VLOOKUP(C800,Descriptions!I:M,5,FALSE),\"N\")","v":"N"},true,"NTRUE",0,{"$f":"IFERROR(VLOOKUP(D800,'Bank and Fund Details'!$B$14:$L$35,11,FALSE),\"N\")","v":"Y"},"NY"]
[null,null,null,"General Fund",null,null,null,null,null,{"$f":"VLOOKUP(D801,'Bank and Fund Details'!$B$15:$D$36,3,FALSE)","v":0},{"$f":"VLOOKUP(D801,'Bank and Fund Details'!$B$15:$C$36,2,FALSE)","v":"Unrestricted"},{"$f":"IFERROR(VLOOKUP(C801,Descriptions!$I$6:$K$92,3,FALSE),\"\")","v":""},null,null,null,null,null,null,null,null,null,null,null,null,null,null,"General Fund",null,{"$f":"IFERROR(VLOOKUP(C801,Descriptions!I:M,5,FALSE),\"N\")","v":"N"},true,"NTRUE",0,{"$f":"IFERROR(VLOOKUP(D801,'Bank and Fund Details'!$B$14:$L$35,11,FALSE),\"N\")","v":"Y"},"NY"]
[null,null,null,"General Fund",null,null,null,null,null,{"$f":"VLOOKUP(D802,'Bank and Fund Details'!$B$15:$D$36,3,FALSE)","v":0},{"$f":"VLOOKUP(D802,'Bank and Fund Details'!$B$15:$C$36,2,FALSE)","v":"Unrestricted"},{"$f":"IFERROR(VLOOKUP(C802,Descriptions!$I$6:$K$92,3,FALSE),\"\")","v":""},null,null,null,null,null,null,null,null,null,null,null,null,null,null,"General Fund",null,{"$f":"IFERROR(VLOOKUP(C802,Descriptions!I:M,5,FALSE),\"N\")","v":"N"},true,"NTRUE",0,{"$f":"IFERROR(VLOOKUP(D802,'Bank and Fund Details'!$B$14:$L$35,11,FALSE),\"N\")","v":"Y"},"NY"]
[null,null,null,"General Fund",null,null,null,null,null,{"$f":"VLOOKUP(D803,'Bank and Fund Details'!$B$15:$D$36,3,FALSE)","v":0},{"$f":"VLOOKUP(D803,'Bank and Fund Details'!$B$15:$C$36,2,FALSE)","v":"Unrestricted"},{"$f":"IFERROR(VLOOKUP(C803,Descriptions!$I$6:$K$92,3,FALSE),\"\")","v":""},null,null,null,null,null,null,null,null,null,null,null,null,null,null,"General Fund",null,{"$f":"IFERROR(VLOOKUP(C803,Descriptions!I:M,5,FALSE),\"N\")","v":"N"},true,"NTRUE",0,{"$f":"IFERROR(VLOOKUP(D803,'Bank and Fund Details'!$B$14:$L$35,11,FALSE),\"N\")","v":"Y"},"NY"]
[null,null,null,"General Fund",null,null,null,null,null,{"$f":"VLOOKUP(D804,'Bank and Fund Details'!$B$15:$D$36,3,FALSE)","v":0},{"$f":"VLOOKUP(D804,'Bank and Fund Details'!$B$15:$C$36,2,FALSE)","v":"Unrestricted"},{"$f":"IFERROR(VLOOKUP(C804,Descriptions!$I$6:$K$92,3,FALSE),\"\")","v":""},null,null,null,null,null,null,null,null,null,null,null,null,null,null,"General Fund",null,{"$f":"IFERROR(VLOOKUP(C804,Descriptions!I:M,5,FALSE),\"N\")","v":"N"},true,"NTRUE",0,{"$f":"IFERROR(VLOOKUP(D804,'Bank and Fund Details'!$B$14:$L$35,11,FALSE),\"N\")","v":"Y"},"NY"]
[null,null,null,"General Fund",null,null,null,null,null,{"$f":"VLOOKUP(D805,'Bank and Fund Details'!$B$15:$D$36,3,FALSE)","v":0},{"$f":"VLOOKUP(D805,'Bank and Fund Details'!$B$15:$C$36,2,FALSE)","v":"Unrestricted"},{"$f":"IFERROR(VLOOKUP(C805,Descriptions!$I$6:$K$92,3,FALSE),\"\")","v":""},null,null,null,null,null,null,null,null,null,null,null,null,null,null,"General Fund",null,{"$f":"IFERROR(VLOOKUP(C805,Descriptions!I:M,5,FALSE),\"N\")","v":"N"},true,"NTRUE",0,{"$f":"IFERROR(VLOOKUP(D805,'Bank and Fund Details'!$B$14:$L$35,11,FALSE),\"N\")","v":"Y"},"NY"]
[null,null,null,"General Fund",null,null,null,null,null,{"$f":"VLOOKUP(D806,'Bank and Fund Details'!$B$15:$D$36,3,FALSE)","v":0},{"$f":"VLOOKUP(D806,'Bank and Fund Details'!$B$15:$C$36,2,FALSE)","v":"Unrestricted"},{"$f":"IFERROR(VLOOKUP(C806,Descriptions!$I$6:$K$92,3,FALSE),\"\")","v":""},null,null,null,null,null,null,null,null,null,null,null,null,null,null,"General Fund",null,{"$f":"IFERROR(VLOOKUP(C806,Descriptions!I:M,5,FALSE),\"N\")","v":"N"},true,"NTRUE",0,{"$f":"IFERROR(VLOOKUP(D806,'Bank and Fund Details'!$B$14:$L$35,11,FALSE),\"N\")","v":"Y"},"NY"]
[null,null,null,"General Fund",null,null,null,null,null,{"$f":"VLOOKUP(D807,'Bank and Fund Details'!$B$15:$D$36,3,FALSE)","v":0},{"$f":"VLOOKUP(D807,'Bank and Fund Details'!$B$15:$C$36,2,FALSE)","v":"Unrestricted"},{"$f":"IFERROR(VLOOKUP(C807,Descriptions!$I$6:$K$92,3,FALSE),\"\")","v":""},null,null,null,null,null,null,null,null,null,null,null,null,null,null,"General Fund",null,{"$f":"IFERROR(VLOOKUP(C807,Descriptions!I:M,5,FALSE),\"N\")","v":"N"},true,"NTRUE",0,{"$f":"IFERROR(VLOOKUP(D807,'Bank and Fund Details'!$B$14:$L$35,11,FALSE),\"N\")","v":"Y"},"NY"]
[null,null,null,"General Fund",null,null,null,null,null,{"$f":"VLOOKUP(D808,'Bank and Fund Details'!$B$15:$D$36,3,FALSE)","v":0},{"$f":"VLOOKUP(D808,'Bank and Fund Details'!$B$15:$C$36,2,FALSE)","v":"Unrestricted"},{"$f":"IFERROR(VLOOKUP(C808,Descriptions!$I$6:$K$92,3,FALSE),\"\")","v":""},null,null,null,null,null,null,null,null,null,null,null,null,null,null,"General Fund",null,{"$f":"IFERROR(VLOOKUP(C808,Descriptions!I:M,5,FALSE),\"N\")","v":"N"},true,"NTRUE",0,{"$f":"IFERROR(VLOOKUP(D808,'Bank and Fund Details'!$B$14:$L$35,11,FALSE),\"N\")","v":"Y"},"NY"]
[null,null,null,"General Fund",null,null,null,null,null,{"$f":"VLOOKUP(D809,'Bank and Fund Details'!$B$15:$D$36,3,FALSE)","v":0},{"$f":"VLOOKUP(D809,'Bank and Fund Details'!$B$15:$C$36,2,FALSE)","v":"Unrestricted"},{"$f":"IFERROR(VLOOKUP(C809,Descriptions!$I$6:$K$92,3,FALSE),\"\")","v":""},null,null,null,null,null,null,null,null,null,null,null,null,null,null,"General Fund",null,{"$f":"IFERROR(VLOOKUP(C809,Descriptions!I:M,5,FALSE),\"N\")","v":"N"},true,"NTRUE",0,{"$f":"IFERROR(VLOOKUP(D809,'Bank and Fund Details'!$B$14:$L$35,11,FALSE),\"N\")","v":"Y"},"NY"]
[null,null,null,"General Fund",null,null,null,null,null,{"$f":"VLOOKUP(D810,'Bank and Fund Details'!$B$15:$D$36,3,FALSE)","v":0},{"$f":"VLOOKUP(D810,'Bank and Fund Details'!$B$15:$C$36,2,FALSE)","v":"Unrestricted"},{"$f":"IFERROR(VLOOKUP(C810,Descriptions!$I$6:$K$92,3,FALSE),\"\")","v":""},null,null,null,null,null,null,null,null,null,null,null,null,null,null,"General Fund",null,{"$f":"IFERROR(VLOOKUP(C810,Descriptions!I:M,5,FALSE),\"N\")","v":"N"},true,"NTRUE",0,{"$f":"IFERROR(VLOOKUP(D810,'Bank and Fund Details'!$B$14:$L$35,11,FALSE),\"N\")","v":"Y"},"NY"]
[null,null,null,"General Fund",null,null,null,null,null,{"$f":"VLOOKUP(D811,'Bank and Fund Details'!$B$15:$D$36,3,FALSE)","v":0},{"$f":"VLOOKUP(D811,'Bank and Fund Details'!$B$15:$C$36,2,FALSE)","v":"Unrestricted"},{"$f":"IFERROR(VLOOKUP(C811,Descriptions!$I$6:$K$92,3,FALSE),\"\")","v":""},null,null,null,null,null,null,null,null,null,null,null,null,null,null,"General Fund",null,{"$f":"IFERROR(VLOOKUP(C811,Descriptions!I:M,5,FALSE),\"N\")","v":"N"},true,"NTRUE",0,{"$f":"IFERROR(VLOOKUP(D811,'Bank and Fund Details'!$B$14:$L$35,11,FALSE),\"N\")","v":"Y"},"NY"]
[null,null,null,"General Fund",null,null,null,null,null,{"$f":"VLOOKUP(D812,'Bank and Fund Details'!$B$15:$D$36,3,FALSE)","v":0},{"$f":"VLOOKUP(D812,'Bank and Fund Details'!$B$15:$C$36,2,FALSE)","v":"Unrestricted"},{"$f":"IFERROR(VLOOKUP(C812,Descriptions!$I$6:$K$92,3,FALSE),\"\")","v":""},null,null,null,null,null,null,null,null,null,null,null,null,null,null,"General Fund",null,{"$f":"IFERROR(VLOOKUP(C812,Descriptions!I:M,5,FALSE),\"N\")","v":"N"},true,"NTRUE",0,{"$f":"IFERROR(VLOOKUP(D812,'Bank and Fund Details'!$B$14:$L$35,11,FALSE),\"N\")","v":"Y"},"NY"]
[null,null,null,"General Fund",null,null,null,null,null,{"$f":"VLOOKUP(D813,'Bank and Fund Details'!$B$15:$D$36,3,FALSE)","v":0},{"$f":"VLOOKUP(D813,'Bank and Fund Details'!$B$15:$C$36,2,FALSE)","v":"Unrestricted"},{"$f":"IFERROR(VLOOKUP(C813,Descriptions!$I$6:$K$92,3,FALSE),\"\")","v":""},null,null,null,null,null,null,null,null,null,null,null,null,null,null,"General Fund",null,{"$f":"IFERROR(VLOOKUP(C813,Descriptions!I:M,5,FALSE),\"N\")","v":"N"},true,"NTRUE",0,{"$f":"IFERROR(VLOOKUP(D813,'Bank and Fund Details'!$B$14:$L$35,11,FALSE),\"N\")","v":"Y"},"NY"]
[null,null,null,"General Fund",null,null,null,null,null,{"$f":"VLOOKUP(D814,'Bank and Fund Details'!$B$15:$D$36,3,FALSE)","v":0},{"$f":"VLOOKUP(D814,'Bank and Fund Details'!$B$15:$C$36,2,FALSE)","v":"Unrestricted"},{"$f":"IFERROR(VLOOKUP(C814,Descriptions!$I$6:$K$92,3,FALSE),\"\")","v":""},null,null,null,null,null,null,null,null,null,null,null,null,null,null,"General Fund",null,{"$f":"IFERROR(VLOOKUP(C814,Descriptions!I:M,5,FALSE),\"N\")","v":"N"},true,"NTRUE",0,{"$f":"IFERROR(VLOOKUP(D814,'Bank and Fund Details'!$B$14:$L$35,11,FALSE),\"N\")","v":"Y"},"NY"]
[null,null,null,"General Fund",null,null,null,null,null,{"$f":"VLOOKUP(D815,'Bank and Fund Details'!$B$15:$D$36,3,FALSE)","v":0},{"$f":"VLOOKUP(D815,'Bank and Fund Details'!$B$15:$C$36,2,FALSE)","v":"Unrestricted"},{"$f":"IFERROR(VLOOKUP(C815,Descriptions!$I$6:$K$92,3,FALSE),\"\")","v":""},null,null,null,null,null,null,null,null,null,null,null,null,null,null,"General Fund",null,{"$f":"IFERROR(VLOOKUP(C815,Descriptions!I:M,5,FALSE),\"N\")","v":"N"},true,"NTRUE",0,{"$f":"IFERROR(VLOOKUP(D815,'Bank and Fund Details'!$B$14:$L$35,11,FALSE),\"N\")","v":"Y"},"NY"]
[null,null,null,"General Fund",null,null,null,null,null,{"$f":"VLOOKUP(D816,'Bank and Fund Details'!$B$15:$D$36,3,FALSE)","v":0},{"$f":"VLOOKUP(D816,'Bank and Fund Details'!$B$15:$C$36,2,FALSE)","v":"Unrestricted"},{"$f":"IFERROR(VLOOKUP(C816,Descriptions!$I$6:$K$92,3,FALSE),\"\")","v":""},null,null,null,null,null,null,null,null,null,null,null,null,null,null,"General Fund",null,{"$f":"IFERROR(VLOOKUP(C816,Descriptions!I:M,5,FALSE),\"N\")","v":"N"},true,"NTRUE",0,{"$f":"IFERROR(VLOOKUP(D816,'Bank and Fund Details'!$B$14:$L$35,11,FALSE),\"N\")","v":"Y"},"NY"]
[null,null,null,"General Fund",null,null,null,null,null,{"$f":"VLOOKUP(D817,'Bank and Fund Details'!$B$15:$D$36,3,FALSE)","v":0},{"$f":"VLOOKUP(D817,'Bank and Fund Details'!$B$15:$C$36,2,FALSE)","v":"Unrestricted"},{"$f":"IFERROR(VLOOKUP(C817,Descriptions!$I$6:$K$92,3,FALSE),\"\")","v":""},null,null,null,null,null,null,null,null,null,null,null,null,null,null,"General Fund",null,{"$f":"IFERROR(VLOOKUP(C817,Descriptions!I:M,5,FALSE),\"N\")","v":"N"},true,"NTRUE",0,{"$f":"IFERROR(VLOOKUP(D817,'Bank and Fund Details'!$B$14:$L$35,11,FALSE),\"N\")","v":"Y"},"NY"]
[null,null,null,"General Fund",null,null,null,null,null,{"$f":"VLOOKUP(D818,'Bank and Fund Details'!$B$15:$D$36,3,FALSE)","v":0},{"$f":"VLOOKUP(D818,'Bank and Fund Details'!$B$15:$C$36,2,FALSE)","v":"Unrestricted"},{"$f":"IFERROR(VLOOKUP(C818,Descriptions!$I$6:$K$92,3,FALSE),\"\")","v":""},null,null,null,null,null,null,null,null,null,null,null,null,null,null,"General Fund",null,{"$f":"IFERROR(VLOOKUP(C818,Descriptions!I:M,5,FALSE),\"N\")","v":"N"},true,"NTRUE",0,{"$f":"IFERROR(VLOOKUP(D818,'Bank and Fund Details'!$B$14:$L$35,11,FALSE),\"N\")","v":"Y"},"NY"]
[null,null,null,"General Fund",null,null,null,null,null,{"$f":"VLOOKUP(D819,'Bank and Fund Details'!$B$15:$D$36,3,FALSE)","v":0},{"$f":"VLOOKUP(D819,'Bank and Fund Details'!$B$15:$C$36,2,FALSE)","v":"Unrestricted"},{"$f":"IFERROR(VLOOKUP(C819,Descriptions!$I$6:$K$92,3,FALSE),\"\")","v":""},null,null,null,null,null,null,null,null,null,null,null,null,null,null,"General Fund",null,{"$f":"IFERROR(VLOOKUP(C819,Descriptions!I:M,5,FALSE),\"N\")","v":"N"},true,"NTRUE",0,{"$f":"IFERROR(VLOOKUP(D819,'Bank and Fund Details'!$B$14:$L$35,11,FALSE),\"N\")","v":"Y"},"NY"]
[null,null,null,"General Fund",null,null,null,null,null,{"$f":"VLOOKUP(D820,'Bank and Fund Details'!$B$15:$D$36,3,FALSE)","v":0},{"$f":"VLOOKUP(D820,'Bank and Fund Details'!$B$15:$C$36,2,FALSE)","v":"Unrestricted"},{"$f":"IFERROR(VLOOKUP(C820,Descriptions!$I$6:$K$92,3,FALSE),\"\")","v":""},null,null,null,null,null,null,null,null,null,null,null,null,null,null,"General Fund",null,{"$f":"IFERROR(VLOOKUP(C820,Descriptions!I:M,5,FALSE),\"N\")","v":"N"},true,"NTRUE",0,{"$f":"IFERROR(VLOOKUP(D820,'Bank and Fund Details'!$B$14:$L$35,11,FALSE),\"N\")","v":"Y"},"NY"]
[null,null,null,"General Fund",null,null,null,null,null,{"$f":"VLOOKUP(D821,'Bank and Fund Details'!$B$15:$D$36,3,FALSE)","v":0},{"$f":"VLOOKUP(D821,'Bank and Fund Details'!$B$15:$C$36,2,FALSE)","v":"Unrestricted"},{"$f":"IFERROR(VLOOKUP(C821,Descriptions!$I$6:$K$92,3,FALSE),\"\")","v":""},null,null,null,null,null,null,null,null,null,null,null,null,null,null,"General Fund",null,{"$f":"IFERROR(VLOOKUP(C821,Descriptions!I:M,5,FALSE),\"N\")","v":"N"},true,"NTRUE",0,{"$f":"IFERROR(VLOOKUP(D821,'Bank and Fund Details'!$B$14:$L$35,11,FALSE),\"N\")","v":"Y"},"NY"]
[null,null,null,"General Fund",null,null,null,null,null,{"$f":"VLOOKUP(D822,'Bank and Fund Details'!$B$15:$D$36,3,FALSE)","v":0},{"$f":"VLOOKUP(D822,'Bank and Fund Details'!$B$15:$C$36,2,FALSE)","v":"Unrestricted"},{"$f":"IFERROR(VLOOKUP(C822,Descriptions!$I$6:$K$92,3,FALSE),\"\")","v":""},null,null,null,null,null,null,null,null,null,null,null,null,null,null,"General Fund",null,{"$f":"IFERROR(VLOOKUP(C822,Descriptions!I:M,5,FALSE),\"N\")","v":"N"},true,"NTRUE",0,{"$f":"IFERROR(VLOOKUP(D822,'Bank and Fund Details'!$B$14:$L$35,11,FALSE),\"N\")","v":"Y"},"NY"]
[null,null,null,"General Fund",null,null,null,null,null,{"$f":"VLOOKUP(D823,'Bank and Fund Details'!$B$15:$D$36,3,FALSE)","v":0},{"$f":"VLOOKUP(D823,'Bank and Fund Details'!$B$15:$C$36,2,FALSE)","v":"Unrestricted"},{"$f":"IFERROR(VLOOKUP(C823,Descriptions!$I$6:$K$92,3,FALSE),\"\")","v":""},null,null,null,null,null,null,null,null,null,null,null,null,null,null,"General Fund",null,{"$f":"IFERROR(VLOOKUP(C823,Descriptions!I:M,5,FALSE),\"N\")","v":"N"},true,"NTRUE",0,{"$f":"IFERROR(VLOOKUP(D823,'Bank and Fund Details'!$B$14:$L$35,11,FALSE),\"N\")","v":"Y"},"NY"]
[null,null,null,"General Fund",null,null,null,null,null,{"$f":"VLOOKUP(D824,'Bank and Fund Details'!$B$15:$D$36,3,FALSE)","v":0},{"$f":"VLOOKUP(D824,'Bank and Fund Details'!$B$15:$C$36,2,FALSE)","v":"Unrestricted"},{"$f":"IFERROR(VLOOKUP(C824,Descriptions!$I$6:$K$92,3,FALSE),\"\")","v":""},null,null,null,null,null,null,null,null,null,null,null,null,null,null,"General Fund",null,{"$f":"IFERROR(VLOOKUP(C824,Descriptions!I:M,5,FALSE),\"N\")","v":"N"},true,"NTRUE",0,{"$f":"IFERROR(VLOOKUP(D824,'Bank and Fund Details'!$B$14:$L$35,11,FALSE),\"N\")","v":"Y"},"NY"]
[null,null,null,"General Fund",null,null,null,null,null,{"$f":"VLOOKUP(D825,'Bank and Fund Details'!$B$15:$D$36,3,FALSE)","v":0},{"$f":"VLOOKUP(D825,'Bank and Fund Details'!$B$15:$C$36,2,FALSE)","v":"Unrestricted"},{"$f":"IFERROR(VLOOKUP(C825,Descriptions!$I$6:$K$92,3,FALSE),\"\")","v":""},null,null,null,null,null,null,null,null,null,null,null,null,null,null,"General Fund",null,{"$f":"IFERROR(VLOOKUP(C825,Descriptions!I:M,5,FALSE),\"N\")","v":"N"},true,"NTRUE",0,{"$f":"IFERROR(VLOOKUP(D825,'Bank and Fund Details'!$B$14:$L$35,11,FALSE),\"N\")","v":"Y"},"NY"]
[null,null,null,"General Fund",null,null,null,null,null,{"$f":"VLOOKUP(D826,'Bank and Fund Details'!$B$15:$D$36,3,FALSE)","v":0},{"$f":"VLOOKUP(D826,'Bank and Fund Details'!$B$15:$C$36,2,FALSE)","v":"Unrestricted"},{"$f":"IFERROR(VLOOKUP(C826,Descriptions!$I$6:$K$92,3,FALSE),\"\")","v":""},null,null,null,null,null,null,null,null,null,null,null,null,null,null,"General Fund",null,{"$f":"IFERROR(VLOOKUP(C826,Descriptions!I:M,5,FALSE),\"N\")","v":"N"},true,"NTRUE",0,{"$f":"IFERROR(VLOOKUP(D826,'Bank and Fund Details'!$B$14:$L$35,11,FALSE),\"N\")","v":"Y"},"NY"]
[null,null,null,"General Fund",null,null,null,null,null,{"$f":"VLOOKUP(D827,'Bank and Fund Details'!$B$15:$D$36,3,FALSE)","v":0},{"$f":"VLOOKUP(D827,'Bank and Fund Details'!$B$15:$C$36,2,FALSE)","v":"Unrestricted"},{"$f":"IFERROR(VLOOKUP(C827,Descriptions!$I$6:$K$92,3,FALSE),\"\")","v":""},null,null,null,null,null,null,null,null,null,null,null,null,null,null,"General Fund",null,{"$f":"IFERROR(VLOOKUP(C827,Descriptions!I:M,5,FALSE),\"N\")","v":"N"},true,"NTRUE",0,{"$f":"IFERROR(VLOOKUP(D827,'Bank and Fund Details'!$B$14:$L$35,11,FALSE),\"N\")","v":"Y"},"NY"]
[null,null,null,"General Fund",null,null,null,null,null,{"$f":"VLOOKUP(D828,'Bank and Fund Details'!$B$15:$D$36,3,FALSE)","v":0},{"$f":"VLOOKUP(D828,'Bank and Fund Details'!$B$15:$C$36,2,FALSE)","v":"Unrestricted"},{"$f":"IFERROR(VLOOKUP(C828,Descriptions!$I$6:$K$92,3,FALSE),\"\")","v":""},null,null,null,null,null,null,null,null,null,null,null,null,null,null,"General Fund",null,{"$f":"IFERROR(VLOOKUP(C828,Descriptions!I:M,5,FALSE),\"N\")","v":"N"},true,"NTRUE",0,{"$f":"IFERROR(VLOOKUP(D828,'Bank and Fund Details'!$B$14:$L$35,11,FALSE),\"N\")","v":"Y"},"NY"]
[null,null,null,"General Fund",null,null,null,null,null,{"$f":"VLOOKUP(D829,'Bank and Fund Details'!$B$15:$D$36,3,FALSE)","v":0},{"$f":"VLOOKUP(D829,'Bank and Fund Details'!$B$15:$C$36,2,FALSE)","v":"Unrestricted"},{"$f":"IFERROR(VLOOKUP(C829,Descriptions!$I$6:$K$92,3,FALSE),\"\")","v":""},null,null,null,null,null,null,null,null,null,null,null,null,null,null,"General Fund",null,{"$f":"IFERROR(VLOOKUP(C829,Descriptions!I:M,5,FALSE),\"N\")","v":"N"},true,"NTRUE",0,{"$f":"IFERROR(VLOOKUP(D829,'Bank and Fund Details'!$B$14:$L$35,11,FALSE),\"N\")","v":"Y"},"NY"]
[null,null,null,"General Fund",null,null,null,null,null,{"$f":"VLOOKUP(D830,'Bank and Fund Details'!$B$15:$D$36,3,FALSE)","v":0},{"$f":"VLOOKUP(D830,'Bank and Fund Details'!$B$15:$C$36,2,FALSE)","v":"Unrestricted"},{"$f":"IFERROR(VLOOKUP(C830,Descriptions!$I$6:$K$92,3,FALSE),\"\")","v":""},null,null,null,null,null,null,null,null,null,null,null,null,null,null,"General Fund",null,{"$f":"IFERROR(VLOOKUP(C830,Descriptions!I:M,5,FALSE),\"N\")","v":"N"},true,"NTRUE",0,{"$f":"IFERROR(VLOOKUP(D830,'Bank and Fund Details'!$B$14:$L$35,11,FALSE),\"N\")","v":"Y"},"NY"]
[null,null,null,"General Fund",null,null,null,null,null,{"$f":"VLOOKUP(D831,'Bank and Fund Details'!$B$15:$D$36,3,FALSE)","v":0},{"$f":"VLOOKUP(D831,'Bank and Fund Details'!$B$15:$C$36,2,FALSE)","v":"Unrestricted"},{"$f":"IFERROR(VLOOKUP(C831,Descriptions!$I$6:$K$92,3,FALSE),\"\")","v":""},null,null,null,null,null,null,null,null,null,null,null,null,null,null,"General Fund",null,{"$f":"IFERROR(VLOOKUP(C831,Descriptions!I:M,5,FALSE),\"N\")","v":"N"},true,"NTRUE",0,{"$f":"IFERROR(VLOOKUP(D831,'Bank and Fund Details'!$B$14:$L$35,11,FALSE),\"N\")","v":"Y"},"NY"]
[null,null,null,"General Fund",null,null,null,null,null,{"$f":"VLOOKUP(D832,'Bank and Fund Details'!$B$15:$D$36,3,FALSE)","v":0},{"$f":"VLOOKUP(D832,'Bank and Fund Details'!$B$15:$C$36,2,FALSE)","v":"Unrestricted"},{"$f":"IFERROR(VLOOKUP(C832,Descriptions!$I$6:$K$92,3,FALSE),\"\")","v":""},null,null,null,null,null,null,null,null,null,null,null,null,null,null,"General Fund",null,{"$f":"IFERROR(VLOOKUP(C832,Descriptions!I:M,5,FALSE),\"N\")","v":"N"},true,"NTRUE",0,{"$f":"IFERROR(VLOOKUP(D832,'Bank and Fund Details'!$B$14:$L$35,11,FALSE),\"N\")","v":"Y"},"NY"]
[null,null,null,"General Fund",null,null,null,null,null,{"$f":"VLOOKUP(D833,'Bank and Fund Details'!$B$15:$D$36,3,FALSE)","v":0},{"$f":"VLOOKUP(D833,'Bank and Fund Details'!$B$15:$C$36,2,FALSE)","v":"Unrestricted"},{"$f":"IFERROR(VLOOKUP(C833,Descriptions!$I$6:$K$92,3,FALSE),\"\")","v":""},null,null,null,null,null,null,null,null,null,null,null,null,null,null,"General Fund",null,{"$f":"IFERROR(VLOOKUP(C833,Descriptions!I:M,5,FALSE),\"N\")","v":"N"},true,"NTRUE",0,{"$f":"IFERROR(VLOOKUP(D833,'Bank and Fund Details'!$B$14:$L$35,11,FALSE),\"N\")","v":"Y"},"NY"]
[null,null,null,"General Fund",null,null,null,null,null,{"$f":"VLOOKUP(D834,'Bank and Fund Details'!$B$15:$D$36,3,FALSE)","v":0},{"$f":"VLOOKUP(D834,'Bank and Fund Details'!$B$15:$C$36,2,FALSE)","v":"Unrestricted"},{"$f":"IFERROR(VLOOKUP(C834,Descriptions!$I$6:$K$92,3,FALSE),\"\")","v":""},null,null,null,null,null,null,null,null,null,null,null,null,null,null,"General Fund",null,{"$f":"IFERROR(VLOOKUP(C834,Descriptions!I:M,5,FALSE),\"N\")","v":"N"},true,"NTRUE",0,{"$f":"IFERROR(VLOOKUP(D834,'Bank and Fund Details'!$B$14:$L$35,11,FALSE),\"N\")","v":"Y"},"NY"]
[null,null,null,"General Fund",null,null,null,null,null,{"$f":"VLOOKUP(D835,'Bank and Fund Details'!$B$15:$D$36,3,FALSE)","v":0},{"$f":"VLOOKUP(D835,'Bank and Fund Details'!$B$15:$C$36,2,FALSE)","v":"Unrestricted"},{"$f":"IFERROR(VLOOKUP(C835,Descriptions!$I$6:$K$92,3,FALSE),\"\")","v":""},null,null,null,null,null,null,null,null,null,null,null,null,null,null,"General Fund",null,{"$f":"IFERROR(VLOOKUP(C835,Descriptions!I:M,5,FALSE),\"N\")","v":"N"},true,"NTRUE",0,{"$f":"IFERROR(VLOOKUP(D835,'Bank and Fund Details'!$B$14:$L$35,11,FALSE),\"N\")","v":"Y"},"NY"]
[null,null,null,"General Fund",null,null,null,null,null,{"$f":"VLOOKUP(D836,'Bank and Fund Details'!$B$15:$D$36,3,FALSE)","v":0},{"$f":"VLOOKUP(D836,'Bank and Fund Details'!$B$15:$C$36,2,FALSE)","v":"Unrestricted"},{"$f":"IFERROR(VLOOKUP(C836,Descriptions!$I$6:$K$92,3,FALSE),\"\")","v":""},null,null,null,null,null,null,null,null,null,null,null,null,null,null,"General Fund",null,{"$f":"IFERROR(VLOOKUP(C836,Descriptions!I:M,5,FALSE),\"N\")","v":"N"},true,"NTRUE",0,{"$f":"IFERROR(VLOOKUP(D836,'Bank and Fund Details'!$B$14:$L$35,11,FALSE),\"N\")","v":"Y"},"NY"]
[null,null,null,"General Fund",null,null,null,null,null,{"$f":"VLOOKUP(D837,'Bank and Fund Details'!$B$15:$D$36,3,FALSE)","v":0},{"$f":"VLOOKUP(D837,'Bank and Fund Details'!$B$15:$C$36,2,FALSE)","v":"Unrestricted"},{"$f":"IFERROR(VLOOKUP(C837,Descriptions!$I$6:$K$92,3,FALSE),\"\")","v":""},null,null,null,null,null,null,null,null,null,null,null,null,null,null,"General Fund",null,{"$f":"IFERROR(VLOOKUP(C837,Descriptions!I:M,5,FALSE),\"N\")","v":"N"},true,"NTRUE",0,{"$f":"IFERROR(VLOOKUP(D837,'Bank and Fund Details'!$B$14:$L$35,11,FALSE),\"N\")","v":"Y"},"NY"]
[null,null,null,"General Fund",null,null,null,null,null,{"$f":"VLOOKUP(D838,'Bank and Fund Details'!$B$15:$D$36,3,FALSE)","v":0},{"$f":"VLOOKUP(D838,'Bank and Fund Details'!$B$15:$C$36,2,FALSE)","v":"Unrestricted"},{"$f":"IFERROR(VLOOKUP(C838,Descriptions!$I$6:$K$92,3,FALSE),\"\")","v":""},null,null,null,null,null,null,null,null,null,null,null,null,null,null,{"$f":"CONCATENATE(C838,D838)","v":"General Fund"},null,{"$f":"IFERROR(VLOOKUP(C838,Descriptions!I:M,5,FALSE),\"N\")","v":"N"},{"$f":"ISBLANK(C838)","v":true},{"$f":"CONCATENATE(AC838,AD838)","v":"NTRUE"},{"$f":"IF(AE838=\"NFALSE\",1,0)","v":0},{"$f":"IFERROR(VLOOKUP(D838,'Bank and Fund Details'!$B$14:$L$35,11,FALSE),\"N\")","v":"Y"},{"$f":"CONCATENATE(AC838,AG838)","v":"NY"}]
[null,null,null,"General Fund",null,null,null,null,null,{"$f":"VLOOKUP(D839,'Bank and Fund Details'!$B$15:$D$36,3,FALSE)","v":0},{"$f":"VLOOKUP(D839,'Bank and Fund Details'!$B$15:$C$36,2,FALSE)","v":"Unrestricted"},{"$f":"IFERROR(VLOOKUP(C839,Descriptions!$I$6:$K$92,3,FALSE),\"\")","v":""},null,null,null,null,null,null,null,null,null,null,null,null,null,null,"General Fund",null,{"$f":"IFERROR(VLOOKUP(C839,Descriptions!I:M,5,FALSE),\"N\")","v":"N"},true,"NTRUE",0,{"$f":"IFERROR(VLOOKUP(D839,'Bank and Fund Details'!$B$14:$L$35,11,FALSE),\"N\")","v":"Y"},"NY"]
[null,null,null,"General Fund",null,null,null,null,null,{"$f":"VLOOKUP(D840,'Bank and Fund Details'!$B$15:$D$36,3,FALSE)","v":0},{"$f":"VLOOKUP(D840,'Bank and Fund Details'!$B$15:$C$36,2,FALSE)","v":"Unrestricted"},{"$f":"IFERROR(VLOOKUP(C840,Descriptions!$I$6:$K$92,3,FALSE),\"\")","v":""},null,null,null,null,null,null,null,null,null,null,null,null,null,null,"General Fund",null,{"$f":"IFERROR(VLOOKUP(C840,Descriptions!I:M,5,FALSE),\"N\")","v":"N"},true,"NTRUE",0,{"$f":"IFERROR(VLOOKUP(D840,'Bank and Fund Details'!$B$14:$L$35,11,FALSE),\"N\")","v":"Y"},"NY"]
[null,null,null,"General Fund",null,null,null,null,null,{"$f":"VLOOKUP(D841,'Bank and Fund Details'!$B$15:$D$36,3,FALSE)","v":0},{"$f":"VLOOKUP(D841,'Bank and Fund Details'!$B$15:$C$36,2,FALSE)","v":"Unrestricted"},{"$f":"IFERROR(VLOOKUP(C841,Descriptions!$I$6:$K$92,3,FALSE),\"\")","v":""},null,null,null,null,null,null,null,null,null,null,null,null,null,null,"General Fund",null,{"$f":"IFERROR(VLOOKUP(C841,Descriptions!I:M,5,FALSE),\"N\")","v":"N"},true,"NTRUE",0,{"$f":"IFERROR(VLOOKUP(D841,'Bank and Fund Details'!$B$14:$L$35,11,FALSE),\"N\")","v":"Y"},"NY"]
[null,null,null,"General Fund",null,null,null,null,null,{"$f":"VLOOKUP(D842,'Bank and Fund Details'!$B$15:$D$36,3,FALSE)","v":0},{"$f":"VLOOKUP(D842,'Bank and Fund Details'!$B$15:$C$36,2,FALSE)","v":"Unrestricted"},{"$f":"IFERROR(VLOOKUP(C842,Descriptions!$I$6:$K$92,3,FALSE),\"\")","v":""},null,null,null,null,null,null,null,null,null,null,null,null,null,null,"General Fund",null,{"$f":"IFERROR(VLOOKUP(C842,Descriptions!I:M,5,FALSE),\"N\")","v":"N"},true,"NTRUE",0,{"$f":"IFERROR(VLOOKUP(D842,'Bank and Fund Details'!$B$14:$L$35,11,FALSE),\"N\")","v":"Y"},"NY"]
[null,null,null,"General Fund",null,null,null,null,null,{"$f":"VLOOKUP(D843,'Bank and Fund Details'!$B$15:$D$36,3,FALSE)","v":0},{"$f":"VLOOKUP(D843,'Bank and Fund Details'!$B$15:$C$36,2,FALSE)","v":"Unrestricted"},{"$f":"IFERROR(VLOOKUP(C843,Descriptions!$I$6:$K$92,3,FALSE),\"\")","v":""},null,null,null,null,null,null,null,null,null,null,null,null,null,null,"General Fund",null,{"$f":"IFERROR(VLOOKUP(C843,Descriptions!I:M,5,FALSE),\"N\")","v":"N"},true,"NTRUE",0,{"$f":"IFERROR(VLOOKUP(D843,'Bank and Fund Details'!$B$14:$L$35,11,FALSE),\"N\")","v":"Y"},"NY"]
[null,null,null,"General Fund",null,null,null,null,null,{"$f":"VLOOKUP(D844,'Bank and Fund Details'!$B$15:$D$36,3,FALSE)","v":0},{"$f":"VLOOKUP(D844,'Bank and Fund Details'!$B$15:$C$36,2,FALSE)","v":"Unrestricted"},{"$f":"IFERROR(VLOOKUP(C844,Descriptions!$I$6:$K$92,3,FALSE),\"\")","v":""},null,null,null,null,null,null,null,null,null,null,null,null,null,null,"General Fund",null,{"$f":"IFERROR(VLOOKUP(C844,Descriptions!I:M,5,FALSE),\"N\")","v":"N"},true,"NTRUE",0,{"$f":"IFERROR(VLOOKUP(D844,'Bank and Fund Details'!$B$14:$L$35,11,FALSE),\"N\")","v":"Y"},"NY"]
[null,null,null,"General Fund",null,null,null,null,null,{"$f":"VLOOKUP(D845,'Bank and Fund Details'!$B$15:$D$36,3,FALSE)","v":0},{"$f":"VLOOKUP(D845,'Bank and Fund Details'!$B$15:$C$36,2,FALSE)","v":"Unrestricted"},{"$f":"IFERROR(VLOOKUP(C845,Descriptions!$I$6:$K$92,3,FALSE),\"\")","v":""},null,null,null,null,null,null,null,null,null,null,null,null,null,null,"General Fund",null,{"$f":"IFERROR(VLOOKUP(C845,Descriptions!I:M,5,FALSE),\"N\")","v":"N"},true,"NTRUE",0,{"$f":"IFERROR(VLOOKUP(D845,'Bank and Fund Details'!$B$14:$L$35,11,FALSE),\"N\")","v":"Y"},"NY"]
[null,null,null,"General Fund",null,null,null,null,null,{"$f":"VLOOKUP(D846,'Bank and Fund Details'!$B$15:$D$36,3,FALSE)","v":0},{"$f":"VLOOKUP(D846,'Bank and Fund Details'!$B$15:$C$36,2,FALSE)","v":"Unrestricted"},{"$f":"IFERROR(VLOOKUP(C846,Descriptions!$I$6:$K$92,3,FALSE),\"\")","v":""},null,null,null,null,null,null,null,null,null,null,null,null,null,null,"General Fund",null,{"$f":"IFERROR(VLOOKUP(C846,Descriptions!I:M,5,FALSE),\"N\")","v":"N"},true,"NTRUE",0,{"$f":"IFERROR(VLOOKUP(D846,'Bank and Fund Details'!$B$14:$L$35,11,FALSE),\"N\")","v":"Y"},"NY"]
[null,null,null,"General Fund",null,null,null,null,null,{"$f":"VLOOKUP(D847,'Bank and Fund Details'!$B$15:$D$36,3,FALSE)","v":0},{"$f":"VLOOKUP(D847,'Bank and Fund Details'!$B$15:$C$36,2,FALSE)","v":"Unrestricted"},{"$f":"IFERROR(VLOOKUP(C847,Descriptions!$I$6:$K$92,3,FALSE),\"\")","v":""},null,null,null,null,null,null,null,null,null,null,null,null,null,null,"General Fund",null,{"$f":"IFERROR(VLOOKUP(C847,Descriptions!I:M,5,FALSE),\"N\")","v":"N"},true,"NTRUE",0,{"$f":"IFERROR(VLOOKUP(D847,'Bank and Fund Details'!$B$14:$L$35,11,FALSE),\"N\")","v":"Y"},"NY"]
[null,null,null,"General Fund",null,null,null,null,null,{"$f":"VLOOKUP(D848,'Bank and Fund Details'!$B$15:$D$36,3,FALSE)","v":0},{"$f":"VLOOKUP(D848,'Bank and Fund Details'!$B$15:$C$36,2,FALSE)","v":"Unrestricted"},{"$f":"IFERROR(VLOOKUP(C848,Descriptions!$I$6:$K$92,3,FALSE),\"\")","v":""},null,null,null,null,null,null,null,null,null,null,null,null,null,null,"General Fund",null,{"$f":"IFERROR(VLOOKUP(C848,Descriptions!I:M,5,FALSE),\"N\")","v":"N"},true,"NTRUE",0,{"$f":"IFERROR(VLOOKUP(D848,'Bank and Fund Details'!$B$14:$L$35,11,FALSE),\"N\")","v":"Y"},"NY"]
[null,null,null,"General Fund",null,null,null,null,null,{"$f":"VLOOKUP(D849,'Bank and Fund Details'!$B$15:$D$36,3,FALSE)","v":0},{"$f":"VLOOKUP(D849,'Bank and Fund Details'!$B$15:$C$36,2,FALSE)","v":"Unrestricted"},{"$f":"IFERROR(VLOOKUP(C849,Descriptions!$I$6:$K$92,3,FALSE),\"\")","v":""},null,null,null,null,null,null,null,null,null,null,null,null,null,null,"General Fund",null,{"$f":"IFERROR(VLOOKUP(C849,Descriptions!I:M,5,FALSE),\"N\")","v":"N"},true,"NTRUE",0,{"$f":"IFERROR(VLOOKUP(D849,'Bank and Fund Details'!$B$14:$L$35,11,FALSE),\"N\")","v":"Y"},"NY"]
[null,null,null,"General Fund",null,null,null,null,null,{"$f":"VLOOKUP(D850,'Bank and Fund Details'!$B$15:$D$36,3,FALSE)","v":0},{"$f":"VLOOKUP(D850,'Bank and Fund Details'!$B$15:$C$36,2,FALSE)","v":"Unrestricted"},{"$f":"IFERROR(VLOOKUP(C850,Descriptions!$I$6:$K$92,3,FALSE),\"\")","v":""},null,null,null,null,null,null,null,null,null,null,null,null,null,null,"General Fund",null,{"$f":"IFERROR(VLOOKUP(C850,Descriptions!I:M,5,FALSE),\"N\")","v":"N"},true,"NTRUE",0,{"$f":"IFERROR(VLOOKUP(D850,'Bank and Fund Details'!$B$14:$L$35,11,FALSE),\"N\")","v":"Y"},"NY"]
[null,null,null,"General Fund",null,null,null,null,null,{"$f":"VLOOKUP(D851,'Bank and Fund Details'!$B$15:$D$36,3,FALSE)","v":0},{"$f":"VLOOKUP(D851,'Bank and Fund Details'!$B$15:$C$36,2,FALSE)","v":"Unrestricted"},{"$f":"IFERROR(VLOOKUP(C851,Descriptions!$I$6:$K$92,3,FALSE),\"\")","v":""},null,null,null,null,null,null,null,null,null,null,null,null,null,null,"General Fund",null,{"$f":"IFERROR(VLOOKUP(C851,Descriptions!I:M,5,FALSE),\"N\")","v":"N"},true,"NTRUE",0,{"$f":"IFERROR(VLOOKUP(D851,'Bank and Fund Details'!$B$14:$L$35,11,FALSE),\"N\")","v":"Y"},"NY"]
[null,null,null,"General Fund",null,null,null,null,null,{"$f":"VLOOKUP(D852,'Bank and Fund Details'!$B$15:$D$36,3,FALSE)","v":0},{"$f":"VLOOKUP(D852,'Bank and Fund Details'!$B$15:$C$36,2,FALSE)","v":"Unrestricted"},{"$f":"IFERROR(VLOOKUP(C852,Descriptions!$I$6:$K$92,3,FALSE),\"\")","v":""},null,null,null,null,null,null,null,null,null,null,null,null,null,null,"General Fund",null,{"$f":"IFERROR(VLOOKUP(C852,Descriptions!I:M,5,FALSE),\"N\")","v":"N"},true,"NTRUE",0,{"$f":"IFERROR(VLOOKUP(D852,'Bank and Fund Details'!$B$14:$L$35,11,FALSE),\"N\")","v":"Y"},"NY"]
[null,null,null,"General Fund",null,null,null,null,null,{"$f":"VLOOKUP(D853,'Bank and Fund Details'!$B$15:$D$36,3,FALSE)","v":0},{"$f":"VLOOKUP(D853,'Bank and Fund Details'!$B$15:$C$36,2,FALSE)","v":"Unrestricted"},{"$f":"IFERROR(VLOOKUP(C853,Descriptions!$I$6:$K$92,3,FALSE),\"\")","v":""},null,null,null,null,null,null,null,null,null,null,null,null,null,null,"General Fund",null,{"$f":"IFERROR(VLOOKUP(C853,Descriptions!I:M,5,FALSE),\"N\")","v":"N"},true,"NTRUE",0,{"$f":"IFERROR(VLOOKUP(D853,'Bank and Fund Details'!$B$14:$L$35,11,FALSE),\"N\")","v":"Y"},"NY"]
[null,null,null,"General Fund",null,null,null,null,null,{"$f":"VLOOKUP(D854,'Bank and Fund Details'!$B$15:$D$36,3,FALSE)","v":0},{"$f":"VLOOKUP(D854,'Bank and Fund Details'!$B$15:$C$36,2,FALSE)","v":"Unrestricted"},{"$f":"IFERROR(VLOOKUP(C854,Descriptions!$I$6:$K$92,3,FALSE),\"\")","v":""},null,null,null,null,null,null,null,null,null,null,null,null,null,null,"General Fund",null,{"$f":"IFERROR(VLOOKUP(C854,Descriptions!I:M,5,FALSE),\"N\")","v":"N"},true,"NTRUE",0,{"$f":"IFERROR(VLOOKUP(D854,'Bank and Fund Details'!$B$14:$L$35,11,FALSE),\"N\")","v":"Y"},"NY"]
[null,null,null,"General Fund",null,null,null,null,null,{"$f":"VLOOKUP(D855,'Bank and Fund Details'!$B$15:$D$36,3,FALSE)","v":0},{"$f":"VLOOKUP(D855,'Bank and Fund Details'!$B$15:$C$36,2,FALSE)","v":"Unrestricted"},{"$f":"IFERROR(VLOOKUP(C855,Descriptions!$I$6:$K$92,3,FALSE),\"\")","v":""},null,null,null,null,null,null,null,null,null,null,null,null,null,null,"General Fund",null,{"$f":"IFERROR(VLOOKUP(C855,Descriptions!I:M,5,FALSE),\"N\")","v":"N"},true,"NTRUE",0,{"$f":"IFERROR(VLOOKUP(D855,'Bank and Fund Details'!$B$14:$L$35,11,FALSE),\"N\")","v":"Y"},"NY"]
[null,null,null,"General Fund",null,null,null,null,null,{"$f":"VLOOKUP(D856,'Bank and Fund Details'!$B$15:$D$36,3,FALSE)","v":0},{"$f":"VLOOKUP(D856,'Bank and Fund Details'!$B$15:$C$36,2,FALSE)","v":"Unrestricted"},{"$f":"IFERROR(VLOOKUP(C856,Descriptions!$I$6:$K$92,3,FALSE),\"\")","v":""},null,null,null,null,null,null,null,null,null,null,null,null,null,null,"General Fund",null,{"$f":"IFERROR(VLOOKUP(C856,Descriptions!I:M,5,FALSE),\"N\")","v":"N"},true,"NTRUE",0,{"$f":"IFERROR(VLOOKUP(D856,'Bank and Fund Details'!$B$14:$L$35,11,FALSE),\"N\")","v":"Y"},"NY"]
[null,null,null,"General Fund",null,null,null,null,null,{"$f":"VLOOKUP(D857,'Bank and Fund Details'!$B$15:$D$36,3,FALSE)","v":0},{"$f":"VLOOKUP(D857,'Bank and Fund Details'!$B$15:$C$36,2,FALSE)","v":"Unrestricted"},{"$f":"IFERROR(VLOOKUP(C857,Descriptions!$I$6:$K$92,3,FALSE),\"\")","v":""},null,null,null,null,null,null,null,null,null,null,null,null,null,null,"General Fund",null,{"$f":"IFERROR(VLOOKUP(C857,Descriptions!I:M,5,FALSE),\"N\")","v":"N"},true,"NTRUE",0,{"$f":"IFERROR(VLOOKUP(D857,'Bank and Fund Details'!$B$14:$L$35,11,FALSE),\"N\")","v":"Y"},"NY"]
[null,null,null,"General Fund",null,null,null,null,null,{"$f":"VLOOKUP(D858,'Bank and Fund Details'!$B$15:$D$36,3,FALSE)","v":0},{"$f":"VLOOKUP(D858,'Bank and Fund Details'!$B$15:$C$36,2,FALSE)","v":"Unrestricted"},{"$f":"IFERROR(VLOOKUP(C858,Descriptions!$I$6:$K$92,3,FALSE),\"\")","v":""},null,null,null,null,null,null,null,null,null,null,null,null,null,null,"General Fund",null,{"$f":"IFERROR(VLOOKUP(C858,Descriptions!I:M,5,FALSE),\"N\")","v":"N"},true,"NTRUE",0,{"$f":"IFERROR(VLOOKUP(D858,'Bank and Fund Details'!$B$14:$L$35,11,FALSE),\"N\")","v":"Y"},"NY"]
[null,null,null,"General Fund",null,null,null,null,null,{"$f":"VLOOKUP(D859,'Bank and Fund Details'!$B$15:$D$36,3,FALSE)","v":0},{"$f":"VLOOKUP(D859,'Bank and Fund Details'!$B$15:$C$36,2,FALSE)","v":"Unrestricted"},{"$f":"IFERROR(VLOOKUP(C859,Descriptions!$I$6:$K$92,3,FALSE),\"\")","v":""},null,null,null,null,null,null,null,null,null,null,null,null,null,null,"General Fund",null,{"$f":"IFERROR(VLOOKUP(C859,Descriptions!I:M,5,FALSE),\"N\")","v":"N"},true,"NTRUE",0,{"$f":"IFERROR(VLOOKUP(D859,'Bank and Fund Details'!$B$14:$L$35,11,FALSE),\"N\")","v":"Y"},"NY"]
[null,null,null,"General Fund",null,null,null,null,null,{"$f":"VLOOKUP(D860,'Bank and Fund Details'!$B$15:$D$36,3,FALSE)","v":0},{"$f":"VLOOKUP(D860,'Bank and Fund Details'!$B$15:$C$36,2,FALSE)","v":"Unrestricted"},{"$f":"IFERROR(VLOOKUP(C860,Descriptions!$I$6:$K$92,3,FALSE),\"\")","v":""},null,null,null,null,null,null,null,null,null,null,null,null,null,null,"General Fund",null,{"$f":"IFERROR(VLOOKUP(C860,Descriptions!I:M,5,FALSE),\"N\")","v":"N"},true,"NTRUE",0,{"$f":"IFERROR(VLOOKUP(D860,'Bank and Fund Details'!$B$14:$L$35,11,FALSE),\"N\")","v":"Y"},"NY"]
[null,null,null,"General Fund",null,null,null,null,null,{"$f":"VLOOKUP(D861,'Bank and Fund Details'!$B$15:$D$36,3,FALSE)","v":0},{"$f":"VLOOKUP(D861,'Bank and Fund Details'!$B$15:$C$36,2,FALSE)","v":"Unrestricted"},{"$f":"IFERROR(VLOOKUP(C861,Descriptions!$I$6:$K$92,3,FALSE),\"\")","v":""},null,null,null,null,null,null,null,null,null,null,null,null,null,null,"General Fund",null,{"$f":"IFERROR(VLOOKUP(C861,Descriptions!I:M,5,FALSE),\"N\")","v":"N"},true,"NTRUE",0,{"$f":"IFERROR(VLOOKUP(D861,'Bank and Fund Details'!$B$14:$L$35,11,FALSE),\"N\")","v":"Y"},"NY"]
[null,null,null,"General Fund",null,null,null,null,null,{"$f":"VLOOKUP(D862,'Bank and Fund Details'!$B$15:$D$36,3,FALSE)","v":0},{"$f":"VLOOKUP(D862,'Bank and Fund Details'!$B$15:$C$36,2,FALSE)","v":"Unrestricted"},{"$f":"IFERROR(VLOOKUP(C862,Descriptions!$I$6:$K$92,3,FALSE),\"\")","v":""},null,null,null,null,null,null,null,null,null,null,null,null,null,null,"General Fund",null,{"$f":"IFERROR(VLOOKUP(C862,Descriptions!I:M,5,FALSE),\"N\")","v":"N"},true,"NTRUE",0,{"$f":"IFERROR(VLOOKUP(D862,'Bank and Fund Details'!$B$14:$L$35,11,FALSE),\"N\")","v":"Y"},"NY"]
[null,null,null,"General Fund",null,null,null,null,null,{"$f":"VLOOKUP(D863,'Bank and Fund Details'!$B$15:$D$36,3,FALSE)","v":0},{"$f":"VLOOKUP(D863,'Bank and Fund Details'!$B$15:$C$36,2,FALSE)","v":"Unrestricted"},{"$f":"IFERROR(VLOOKUP(C863,Descriptions!$I$6:$K$92,3,FALSE),\"\")","v":""},null,null,null,null,null,null,null,null,null,null,null,null,null,null,"General Fund",null,{"$f":"IFERROR(VLOOKUP(C863,Descriptions!I:M,5,FALSE),\"N\")","v":"N"},true,"NTRUE",0,{"$f":"IFERROR(VLOOKUP(D863,'Bank and Fund Details'!$B$14:$L$35,11,FALSE),\"N\")","v":"Y"},"NY"]
[null,null,null,"General Fund",null,null,null,null,null,{"$f":"VLOOKUP(D864,'Bank and Fund Details'!$B$15:$D$36,3,FALSE)","v":0},{"$f":"VLOOKUP(D864,'Bank and Fund Details'!$B$15:$C$36,2,FALSE)","v":"Unrestricted"},{"$f":"IFERROR(VLOOKUP(C864,Descriptions!$I$6:$K$92,3,FALSE),\"\")","v":""},null,null,null,null,null,null,null,null,null,null,null,null,null,null,"General Fund",null,{"$f":"IFERROR(VLOOKUP(C864,Descriptions!I:M,5,FALSE),\"N\")","v":"N"},true,"NTRUE",0,{"$f":"IFERROR(VLOOKUP(D864,'Bank and Fund Details'!$B$14:$L$35,11,FALSE),\"N\")","v":"Y"},"NY"]
[null,null,null,"General Fund",null,null,null,null,null,{"$f":"VLOOKUP(D865,'Bank and Fund Details'!$B$15:$D$36,3,FALSE)","v":0},{"$f":"VLOOKUP(D865,'Bank and Fund Details'!$B$15:$C$36,2,FALSE)","v":"Unrestricted"},{"$f":"IFERROR(VLOOKUP(C865,Descriptions!$I$6:$K$92,3,FALSE),\"\")","v":""},null,null,null,null,null,null,null,null,null,null,null,null,null,null,"General Fund",null,{"$f":"IFERROR(VLOOKUP(C865,Descriptions!I:M,5,FALSE),\"N\")","v":"N"},true,"NTRUE",0,{"$f":"IFERROR(VLOOKUP(D865,'Bank and Fund Details'!$B$14:$L$35,11,FALSE),\"N\")","v":"Y"},"NY"]
[null,null,null,"General Fund",null,null,null,null,null,{"$f":"VLOOKUP(D866,'Bank and Fund Details'!$B$15:$D$36,3,FALSE)","v":0},{"$f":"VLOOKUP(D866,'Bank and Fund Details'!$B$15:$C$36,2,FALSE)","v":"Unrestricted"},{"$f":"IFERROR(VLOOKUP(C866,Descriptions!$I$6:$K$92,3,FALSE),\"\")","v":""},null,null,null,null,null,null,null,null,null,null,null,null,null,null,"General Fund",null,{"$f":"IFERROR(VLOOKUP(C866,Descriptions!I:M,5,FALSE),\"N\")","v":"N"},true,"NTRUE",0,{"$f":"IFERROR(VLOOKUP(D866,'Bank and Fund Details'!$B$14:$L$35,11,FALSE),\"N\")","v":"Y"},"NY"]
[null,null,null,"General Fund",null,null,null,null,null,{"$f":"VLOOKUP(D867,'Bank and Fund Details'!$B$15:$D$36,3,FALSE)","v":0},{"$f":"VLOOKUP(D867,'Bank and Fund Details'!$B$15:$C$36,2,FALSE)","v":"Unrestricted"},{"$f":"IFERROR(VLOOKUP(C867,Descriptions!$I$6:$K$92,3,FALSE),\"\")","v":""},null,null,null,null,null,null,null,null,null,null,null,null,null,null,"General Fund",null,{"$f":"IFERROR(VLOOKUP(C867,Descriptions!I:M,5,FALSE),\"N\")","v":"N"},true,"NTRUE",0,{"$f":"IFERROR(VLOOKUP(D867,'Bank and Fund Details'!$B$14:$L$35,11,FALSE),\"N\")","v":"Y"},"NY"]
[null,null,null,"General Fund",null,null,null,null,null,{"$f":"VLOOKUP(D868,'Bank and Fund Details'!$B$15:$D$36,3,FALSE)","v":0},{"$f":"VLOOKUP(D868,'Bank and Fund Details'!$B$15:$C$36,2,FALSE)","v":"Unrestricted"},{"$f":"IFERROR(VLOOKUP(C868,Descriptions!$I$6:$K$92,3,FALSE),\"\")","v":""},null,null,null,null,null,null,null,null,null,null,null,null,null,null,"General Fund",null,{"$f":"IFERROR(VLOOKUP(C868,Descriptions!I:M,5,FALSE),\"N\")","v":"N"},true,"NTRUE",0,{"$f":"IFERROR(VLOOKUP(D868,'Bank and Fund Details'!$B$14:$L$35,11,FALSE),\"N\")","v":"Y"},"NY"]
[null,null,null,"General Fund",null,null,null,null,null,{"$f":"VLOOKUP(D869,'Bank and Fund Details'!$B$15:$D$36,3,FALSE)","v":0},{"$f":"VLOOKUP(D869,'Bank and Fund Details'!$B$15:$C$36,2,FALSE)","v":"Unrestricted"},{"$f":"IFERROR(VLOOKUP(C869,Descriptions!$I$6:$K$92,3,FALSE),\"\")","v":""},null,null,null,null,null,null,null,null,null,null,null,null,null,null,"General Fund",null,{"$f":"IFERROR(VLOOKUP(C869,Descriptions!I:M,5,FALSE),\"N\")","v":"N"},true,"NTRUE",0,{"$f":"IFERROR(VLOOKUP(D869,'Bank and Fund Details'!$B$14:$L$35,11,FALSE),\"N\")","v":"Y"},"NY"]
[null,null,null,"General Fund",null,null,null,null,null,{"$f":"VLOOKUP(D870,'Bank and Fund Details'!$B$15:$D$36,3,FALSE)","v":0},{"$f":"VLOOKUP(D870,'Bank and Fund Details'!$B$15:$C$36,2,FALSE)","v":"Unrestricted"},{"$f":"IFERROR(VLOOKUP(C870,Descriptions!$I$6:$K$92,3,FALSE),\"\")","v":""},null,null,null,null,null,null,null,null,null,null,null,null,null,null,"General Fund",null,{"$f":"IFERROR(VLOOKUP(C870,Descriptions!I:M,5,FALSE),\"N\")","v":"N"},true,"NTRUE",0,{"$f":"IFERROR(VLOOKUP(D870,'Bank and Fund Details'!$B$14:$L$35,11,FALSE),\"N\")","v":"Y"},"NY"]
[null,null,null,"General Fund",null,null,null,null,null,{"$f":"VLOOKUP(D871,'Bank and Fund Details'!$B$15:$D$36,3,FALSE)","v":0},{"$f":"VLOOKUP(D871,'Bank and Fund Details'!$B$15:$C$36,2,FALSE)","v":"Unrestricted"},{"$f":"IFERROR(VLOOKUP(C871,Descriptions!$I$6:$K$92,3,FALSE),\"\")","v":""},null,null,null,null,null,null,null,null,null,null,null,null,null,null,"General Fund",null,{"$f":"IFERROR(VLOOKUP(C871,Descriptions!I:M,5,FALSE),\"N\")","v":"N"},true,"NTRUE",0,{"$f":"IFERROR(VLOOKUP(D871,'Bank and Fund Details'!$B$14:$L$35,11,FALSE),\"N\")","v":"Y"},"NY"]
[null,null,null,"General Fund",null,null,null,null,null,{"$f":"VLOOKUP(D872,'Bank and Fund Details'!$B$15:$D$36,3,FALSE)","v":0},{"$f":"VLOOKUP(D872,'Bank and Fund Details'!$B$15:$C$36,2,FALSE)","v":"Unrestricted"},{"$f":"IFERROR(VLOOKUP(C872,Descriptions!$I$6:$K$92,3,FALSE),\"\")","v":""},null,null,null,null,null,null,null,null,null,null,null,null,null,null,"General Fund",null,{"$f":"IFERROR(VLOOKUP(C872,Descriptions!I:M,5,FALSE),\"N\")","v":"N"},true,"NTRUE",0,{"$f":"IFERROR(VLOOKUP(D872,'Bank and Fund Details'!$B$14:$L$35,11,FALSE),\"N\")","v":"Y"},"NY"]
[null,null,null,"General Fund",null,null,null,null,null,{"$f":"VLOOKUP(D873,'Bank and Fund Details'!$B$15:$D$36,3,FALSE)","v":0},{"$f":"VLOOKUP(D873,'Bank and Fund Details'!$B$15:$C$36,2,FALSE)","v":"Unrestricted"},{"$f":"IFERROR(VLOOKUP(C873,Descriptions!$I$6:$K$92,3,FALSE),\"\")","v":""},null,null,null,null,null,null,null,null,null,null,null,null,null,null,"General Fund",null,{"$f":"IFERROR(VLOOKUP(C873,Descriptions!I:M,5,FALSE),\"N\")","v":"N"},true,"NTRUE",0,{"$f":"IFERROR(VLOOKUP(D873,'Bank and Fund Details'!$B$14:$L$35,11,FALSE),\"N\")","v":"Y"},"NY"]
[null,null,null,"General Fund",null,null,null,null,null,{"$f":"VLOOKUP(D874,'Bank and Fund Details'!$B$15:$D$36,3,FALSE)","v":0},{"$f":"VLOOKUP(D874,'Bank and Fund Details'!$B$15:$C$36,2,FALSE)","v":"Unrestricted"},{"$f":"IFERROR(VLOOKUP(C874,Descriptions!$I$6:$K$92,3,FALSE),\"\")","v":""},null,null,null,null,null,null,null,null,null,null,null,null,null,null,"General Fund",null,{"$f":"IFERROR(VLOOKUP(C874,Descriptions!I:M,5,FALSE),\"N\")","v":"N"},true,"NTRUE",0,{"$f":"IFERROR(VLOOKUP(D874,'Bank and Fund Details'!$B$14:$L$35,11,FALSE),\"N\")","v":"Y"},"NY"]
[null,null,null,"General Fund",null,null,null,null,null,{"$f":"VLOOKUP(D875,'Bank and Fund Details'!$B$15:$D$36,3,FALSE)","v":0},{"$f":"VLOOKUP(D875,'Bank and Fund Details'!$B$15:$C$36,2,FALSE)","v":"Unrestricted"},{"$f":"IFERROR(VLOOKUP(C875,Descriptions!$I$6:$K$92,3,FALSE),\"\")","v":""},null,null,null,null,null,null,null,null,null,null,null,null,null,null,"General Fund",null,{"$f":"IFERROR(VLOOKUP(C875,Descriptions!I:M,5,FALSE),\"N\")","v":"N"},true,"NTRUE",0,{"$f":"IFERROR(VLOOKUP(D875,'Bank and Fund Details'!$B$14:$L$35,11,FALSE),\"N\")","v":"Y"},"NY"]
[null,null,null,"General Fund",null,null,null,null,null,{"$f":"VLOOKUP(D876,'Bank and Fund Details'!$B$15:$D$36,3,FALSE)","v":0},{"$f":"VLOOKUP(D876,'Bank and Fund Details'!$B$15:$C$36,2,FALSE)","v":"Unrestricted"},{"$f":"IFERROR(VLOOKUP(C876,Descriptions!$I$6:$K$92,3,FALSE),\"\")","v":""},null,null,null,null,null,null,null,null,null,null,null,null,null,null,"General Fund",null,{"$f":"IFERROR(VLOOKUP(C876,Descriptions!I:M,5,FALSE),\"N\")","v":"N"},true,"NTRUE",0,{"$f":"IFERROR(VLOOKUP(D876,'Bank and Fund Details'!$B$14:$L$35,11,FALSE),\"N\")","v":"Y"},"NY"]
[null,null,null,"General Fund",null,null,null,null,null,{"$f":"VLOOKUP(D877,'Bank and Fund Details'!$B$15:$D$36,3,FALSE)","v":0},{"$f":"VLOOKUP(D877,'Bank and Fund Details'!$B$15:$C$36,2,FALSE)","v":"Unrestricted"},{"$f":"IFERROR(VLOOKUP(C877,Descriptions!$I$6:$K$92,3,FALSE),\"\")","v":""},null,null,null,null,null,null,null,null,null,null,null,null,null,null,"General Fund",null,{"$f":"IFERROR(VLOOKUP(C877,Descriptions!I:M,5,FALSE),\"N\")","v":"N"},true,"NTRUE",0,{"$f":"IFERROR(VLOOKUP(D877,'Bank and Fund Details'!$B$14:$L$35,11,FALSE),\"N\")","v":"Y"},"NY"]
[null,null,null,"General Fund",null,null,null,null,null,{"$f":"VLOOKUP(D878,'Bank and Fund Details'!$B$15:$D$36,3,FALSE)","v":0},{"$f":"VLOOKUP(D878,'Bank and Fund Details'!$B$15:$C$36,2,FALSE)","v":"Unrestricted"},{"$f":"IFERROR(VLOOKUP(C878,Descriptions!$I$6:$K$92,3,FALSE),\"\")","v":""},null,null,null,null,null,null,null,null,null,null,null,null,null,null,"General Fund",null,{"$f":"IFERROR(VLOOKUP(C878,Descriptions!I:M,5,FALSE),\"N\")","v":"N"},true,"NTRUE",0,{"$f":"IFERROR(VLOOKUP(D878,'Bank and Fund Details'!$B$14:$L$35,11,FALSE),\"N\")","v":"Y"},"NY"]
[null,null,null,"General Fund",null,null,null,null,null,{"$f":"VLOOKUP(D879,'Bank and Fund Details'!$B$15:$D$36,3,FALSE)","v":0},{"$f":"VLOOKUP(D879,'Bank and Fund Details'!$B$15:$C$36,2,FALSE)","v":"Unrestricted"},{"$f":"IFERROR(VLOOKUP(C879,Descriptions!$I$6:$K$92,3,FALSE),\"\")","v":""},null,null,null,null,null,null,null,null,null,null,null,null,null,null,"General Fund",null,{"$f":"IFERROR(VLOOKUP(C879,Descriptions!I:M,5,FALSE),\"N\")","v":"N"},true,"NTRUE",0,{"$f":"IFERROR(VLOOKUP(D879,'Bank and Fund Details'!$B$14:$L$35,11,FALSE),\"N\")","v":"Y"},"NY"]
[null,null,null,"General Fund",null,null,null,null,null,{"$f":"VLOOKUP(D880,'Bank and Fund Details'!$B$15:$D$36,3,FALSE)","v":0},{"$f":"VLOOKUP(D880,'Bank and Fund Details'!$B$15:$C$36,2,FALSE)","v":"Unrestricted"},{"$f":"IFERROR(VLOOKUP(C880,Descriptions!$I$6:$K$92,3,FALSE),\"\")","v":""},null,null,null,null,null,null,null,null,null,null,null,null,null,null,"General Fund",null,{"$f":"IFERROR(VLOOKUP(C880,Descriptions!I:M,5,FALSE),\"N\")","v":"N"},true,"NTRUE",0,{"$f":"IFERROR(VLOOKUP(D880,'Bank and Fund Details'!$B$14:$L$35,11,FALSE),\"N\")","v":"Y"},"NY"]
[null,null,null,"General Fund",null,null,null,null,null,{"$f":"VLOOKUP(D881,'Bank and Fund Details'!$B$15:$D$36,3,FALSE)","v":0},{"$f":"VLOOKUP(D881,'Bank and Fund Details'!$B$15:$C$36,2,FALSE)","v":"Unrestricted"},{"$f":"IFERROR(VLOOKUP(C881,Descriptions!$I$6:$K$92,3,FALSE),\"\")","v":""},null,null,null,null,null,null,null,null,null,null,null,null,null,null,"General Fund",null,{"$f":"IFERROR(VLOOKUP(C881,Descriptions!I:M,5,FALSE),\"N\")","v":"N"},true,"NTRUE",0,{"$f":"IFERROR(VLOOKUP(D881,'Bank and Fund Details'!$B$14:$L$35,11,FALSE),\"N\")","v":"Y"},"NY"]
[null,null,null,"General Fund",null,null,null,null,null,{"$f":"VLOOKUP(D882,'Bank and Fund Details'!$B$15:$D$36,3,FALSE)","v":0},{"$f":"VLOOKUP(D882,'Bank and Fund Details'!$B$15:$C$36,2,FALSE)","v":"Unrestricted"},{"$f":"IFERROR(VLOOKUP(C882,Descriptions!$I$6:$K$92,3,FALSE),\"\")","v":""},null,null,null,null,null,null,null,null,null,null,null,null,null,null,"General Fund",null,{"$f":"IFERROR(VLOOKUP(C882,Descriptions!I:M,5,FALSE),\"N\")","v":"N"},true,"NTRUE",0,{"$f":"IFERROR(VLOOKUP(D882,'Bank and Fund Details'!$B$14:$L$35,11,FALSE),\"N\")","v":"Y"},"NY"]
[null,null,null,"General Fund",null,null,null,null,null,{"$f":"VLOOKUP(D883,'Bank and Fund Details'!$B$15:$D$36,3,FALSE)","v":0},{"$f":"VLOOKUP(D883,'Bank and Fund Details'!$B$15:$C$36,2,FALSE)","v":"Unrestricted"},{"$f":"IFERROR(VLOOKUP(C883,Descriptions!$I$6:$K$92,3,FALSE),\"\")","v":""},null,null,null,null,null,null,null,null,null,null,null,null,null,null,"General Fund",null,{"$f":"IFERROR(VLOOKUP(C883,Descriptions!I:M,5,FALSE),\"N\")","v":"N"},true,"NTRUE",0,{"$f":"IFERROR(VLOOKUP(D883,'Bank and Fund Details'!$B$14:$L$35,11,FALSE),\"N\")","v":"Y"},"NY"]
[null,null,null,"General Fund",null,null,null,null,null,{"$f":"VLOOKUP(D884,'Bank and Fund Details'!$B$15:$D$36,3,FALSE)","v":0},{"$f":"VLOOKUP(D884,'Bank and Fund Details'!$B$15:$C$36,2,FALSE)","v":"Unrestricted"},{"$f":"IFERROR(VLOOKUP(C884,Descriptions!$I$6:$K$92,3,FALSE),\"\")","v":""},null,null,null,null,null,null,null,null,null,null,null,null,null,null,"General Fund",null,{"$f":"IFERROR(VLOOKUP(C884,Descriptions!I:M,5,FALSE),\"N\")","v":"N"},true,"NTRUE",0,{"$f":"IFERROR(VLOOKUP(D884,'Bank and Fund Details'!$B$14:$L$35,11,FALSE),\"N\")","v":"Y"},"NY"]
[null,null,null,"General Fund",null,null,null,null,null,{"$f":"VLOOKUP(D885,'Bank and Fund Details'!$B$15:$D$36,3,FALSE)","v":0},{"$f":"VLOOKUP(D885,'Bank and Fund Details'!$B$15:$C$36,2,FALSE)","v":"Unrestricted"},{"$f":"IFERROR(VLOOKUP(C885,Descriptions!$I$6:$K$92,3,FALSE),\"\")","v":""},null,null,null,null,null,null,null,null,null,null,null,null,null,null,"General Fund",null,{"$f":"IFERROR(VLOOKUP(C885,Descriptions!I:M,5,FALSE),\"N\")","v":"N"},true,"NTRUE",0,{"$f":"IFERROR(VLOOKUP(D885,'Bank and Fund Details'!$B$14:$L$35,11,FALSE),\"N\")","v":"Y"},"NY"]
[null,null,null,"General Fund",null,null,null,null,null,{"$f":"VLOOKUP(D886,'Bank and Fund Details'!$B$15:$D$36,3,FALSE)","v":0},{"$f":"VLOOKUP(D886,'Bank and Fund Details'!$B$15:$C$36,2,FALSE)","v":"Unrestricted"},{"$f":"IFERROR(VLOOKUP(C886,Descriptions!$I$6:$K$92,3,FALSE),\"\")","v":""},null,null,null,null,null,null,null,null,null,null,null,null,null,null,"General Fund",null,{"$f":"IFERROR(VLOOKUP(C886,Descriptions!I:M,5,FALSE),\"N\")","v":"N"},true,"NTRUE",0,{"$f":"IFERROR(VLOOKUP(D886,'Bank and Fund Details'!$B$14:$L$35,11,FALSE),\"N\")","v":"Y"},"NY"]
[null,null,null,"General Fund",null,null,null,null,null,{"$f":"VLOOKUP(D887,'Bank and Fund Details'!$B$15:$D$36,3,FALSE)","v":0},{"$f":"VLOOKUP(D887,'Bank and Fund Details'!$B$15:$C$36,2,FALSE)","v":"Unrestricted"},{"$f":"IFERROR(VLOOKUP(C887,Descriptions!$I$6:$K$92,3,FALSE),\"\")","v":""},null,null,null,null,null,null,null,null,null,null,null,null,null,null,"General Fund",null,{"$f":"IFERROR(VLOOKUP(C887,Descriptions!I:M,5,FALSE),\"N\")","v":"N"},true,"NTRUE",0,{"$f":"IFERROR(VLOOKUP(D887,'Bank and Fund Details'!$B$14:$L$35,11,FALSE),\"N\")","v":"Y"},"NY"]
[null,null,null,"General Fund",null,null,null,null,null,{"$f":"VLOOKUP(D888,'Bank and Fund Details'!$B$15:$D$36,3,FALSE)","v":0},{"$f":"VLOOKUP(D888,'Bank and Fund Details'!$B$15:$C$36,2,FALSE)","v":"Unrestricted"},{"$f":"IFERROR(VLOOKUP(C888,Descriptions!$I$6:$K$92,3,FALSE),\"\")","v":""},null,null,null,null,null,null,null,null,null,null,null,null,null,null,"General Fund",null,{"$f":"IFERROR(VLOOKUP(C888,Descriptions!I:M,5,FALSE),\"N\")","v":"N"},true,"NTRUE",0,{"$f":"IFERROR(VLOOKUP(D888,'Bank and Fund Details'!$B$14:$L$35,11,FALSE),\"N\")","v":"Y"},"NY"]
[null,null,null,"General Fund",null,null,null,null,null,{"$f":"VLOOKUP(D889,'Bank and Fund Details'!$B$15:$D$36,3,FALSE)","v":0},{"$f":"VLOOKUP(D889,'Bank and Fund Details'!$B$15:$C$36,2,FALSE)","v":"Unrestricted"},{"$f":"IFERROR(VLOOKUP(C889,Descriptions!$I$6:$K$92,3,FALSE),\"\")","v":""},null,null,null,null,null,null,null,null,null,null,null,null,null,null,"General Fund",null,{"$f":"IFERROR(VLOOKUP(C889,Descriptions!I:M,5,FALSE),\"N\")","v":"N"},true,"NTRUE",0,{"$f":"IFERROR(VLOOKUP(D889,'Bank and Fund Details'!$B$14:$L$35,11,FALSE),\"N\")","v":"Y"},"NY"]
[null,null,null,"General Fund",null,null,null,null,null,{"$f":"VLOOKUP(D890,'Bank and Fund Details'!$B$15:$D$36,3,FALSE)","v":0},{"$f":"VLOOKUP(D890,'Bank and Fund Details'!$B$15:$C$36,2,FALSE)","v":"Unrestricted"},{"$f":"IFERROR(VLOOKUP(C890,Descriptions!$I$6:$K$92,3,FALSE),\"\")","v":""},null,null,null,null,null,null,null,null,null,null,null,null,null,null,"General Fund",null,{"$f":"IFERROR(VLOOKUP(C890,Descriptions!I:M,5,FALSE),\"N\")","v":"N"},true,"NTRUE",0,{"$f":"IFERROR(VLOOKUP(D890,'Bank and Fund Details'!$B$14:$L$35,11,FALSE),\"N\")","v":"Y"},"NY"]
[null,null,null,"General Fund",null,null,null,null,null,{"$f":"VLOOKUP(D891,'Bank and Fund Details'!$B$15:$D$36,3,FALSE)","v":0},{"$f":"VLOOKUP(D891,'Bank and Fund Details'!$B$15:$C$36,2,FALSE)","v":"Unrestricted"},{"$f":"IFERROR(VLOOKUP(C891,Descriptions!$I$6:$K$92,3,FALSE),\"\")","v":""},null,null,null,null,null,null,null,null,null,null,null,null,null,null,"General Fund",null,{"$f":"IFERROR(VLOOKUP(C891,Descriptions!I:M,5,FALSE),\"N\")","v":"N"},true,"NTRUE",0,{"$f":"IFERROR(VLOOKUP(D891,'Bank and Fund Details'!$B$14:$L$35,11,FALSE),\"N\")","v":"Y"},"NY"]
[null,null,null,"General Fund",null,null,null,null,null,{"$f":"VLOOKUP(D892,'Bank and Fund Details'!$B$15:$D$36,3,FALSE)","v":0},{"$f":"VLOOKUP(D892,'Bank and Fund Details'!$B$15:$C$36,2,FALSE)","v":"Unrestricted"},{"$f":"IFERROR(VLOOKUP(C892,Descriptions!$I$6:$K$92,3,FALSE),\"\")","v":""},null,null,null,null,null,null,null,null,null,null,null,null,null,null,"General Fund",null,{"$f":"IFERROR(VLOOKUP(C892,Descriptions!I:M,5,FALSE),\"N\")","v":"N"},true,"NTRUE",0,{"$f":"IFERROR(VLOOKUP(D892,'Bank and Fund Details'!$B$14:$L$35,11,FALSE),\"N\")","v":"Y"},"NY"]
[null,null,null,"General Fund",null,null,null,null,null,{"$f":"VLOOKUP(D893,'Bank and Fund Details'!$B$15:$D$36,3,FALSE)","v":0},{"$f":"VLOOKUP(D893,'Bank and Fund Details'!$B$15:$C$36,2,FALSE)","v":"Unrestricted"},{"$f":"IFERROR(VLOOKUP(C893,Descriptions!$I$6:$K$92,3,FALSE),\"\")","v":""},null,null,null,null,null,null,null,null,null,null,null,null,null,null,"General Fund",null,{"$f":"IFERROR(VLOOKUP(C893,Descriptions!I:M,5,FALSE),\"N\")","v":"N"},true,"NTRUE",0,{"$f":"IFERROR(VLOOKUP(D893,'Bank and Fund Details'!$B$14:$L$35,11,FALSE),\"N\")","v":"Y"},"NY"]
[null,null,null,"General Fund",null,null,null,null,null,{"$f":"VLOOKUP(D894,'Bank and Fund Details'!$B$15:$D$36,3,FALSE)","v":0},{"$f":"VLOOKUP(D894,'Bank and Fund Details'!$B$15:$C$36,2,FALSE)","v":"Unrestricted"},{"$f":"IFERROR(VLOOKUP(C894,Descriptions!$I$6:$K$92,3,FALSE),\"\")","v":""},null,null,null,null,null,null,null,null,null,null,null,null,null,null,"General Fund",null,{"$f":"IFERROR(VLOOKUP(C894,Descriptions!I:M,5,FALSE),\"N\")","v":"N"},true,"NTRUE",0,{"$f":"IFERROR(VLOOKUP(D894,'Bank and Fund Details'!$B$14:$L$35,11,FALSE),\"N\")","v":"Y"},"NY"]
[null,null,null,"General Fund",null,null,null,null,null,{"$f":"VLOOKUP(D895,'Bank and Fund Details'!$B$15:$D$36,3,FALSE)","v":0},{"$f":"VLOOKUP(D895,'Bank and Fund Details'!$B$15:$C$36,2,FALSE)","v":"Unrestricted"},{"$f":"IFERROR(VLOOKUP(C895,Descriptions!$I$6:$K$92,3,FALSE),\"\")","v":""},null,null,null,null,null,null,null,null,null,null,null,null,null,null,"General Fund",null,{"$f":"IFERROR(VLOOKUP(C895,Descriptions!I:M,5,FALSE),\"N\")","v":"N"},true,"NTRUE",0,{"$f":"IFERROR(VLOOKUP(D895,'Bank and Fund Details'!$B$14:$L$35,11,FALSE),\"N\")","v":"Y"},"NY"]
[null,null,null,"General Fund",null,null,null,null,null,{"$f":"VLOOKUP(D896,'Bank and Fund Details'!$B$15:$D$36,3,FALSE)","v":0},{"$f":"VLOOKUP(D896,'Bank and Fund Details'!$B$15:$C$36,2,FALSE)","v":"Unrestricted"},{"$f":"IFERROR(VLOOKUP(C896,Descriptions!$I$6:$K$92,3,FALSE),\"\")","v":""},null,null,null,null,null,null,null,null,null,null,null,null,null,null,"General Fund",null,{"$f":"IFERROR(VLOOKUP(C896,Descriptions!I:M,5,FALSE),\"N\")","v":"N"},true,"NTRUE",0,{"$f":"IFERROR(VLOOKUP(D896,'Bank and Fund Details'!$B$14:$L$35,11,FALSE),\"N\")","v":"Y"},"NY"]
[null,null,null,"General Fund",null,null,null,null,null,{"$f":"VLOOKUP(D897,'Bank and Fund Details'!$B$15:$D$36,3,FALSE)","v":0},{"$f":"VLOOKUP(D897,'Bank and Fund Details'!$B$15:$C$36,2,FALSE)","v":"Unrestricted"},{"$f":"IFERROR(VLOOKUP(C897,Descriptions!$I$6:$K$92,3,FALSE),\"\")","v":""},null,null,null,null,null,null,null,null,null,null,null,null,null,null,"General Fund",null,{"$f":"IFERROR(VLOOKUP(C897,Descriptions!I:M,5,FALSE),\"N\")","v":"N"},true,"NTRUE",0,{"$f":"IFERROR(VLOOKUP(D897,'Bank and Fund Details'!$B$14:$L$35,11,FALSE),\"N\")","v":"Y"},"NY"]
[null,null,null,"General Fund",null,null,null,null,null,{"$f":"VLOOKUP(D898,'Bank and Fund Details'!$B$15:$D$36,3,FALSE)","v":0},{"$f":"VLOOKUP(D898,'Bank and Fund Details'!$B$15:$C$36,2,FALSE)","v":"Unrestricted"},{"$f":"IFERROR(VLOOKUP(C898,Descriptions!$I$6:$K$92,3,FALSE),\"\")","v":""},null,null,null,null,null,null,null,null,null,null,null,null,null,null,"General Fund",null,{"$f":"IFERROR(VLOOKUP(C898,Descriptions!I:M,5,FALSE),\"N\")","v":"N"},true,"NTRUE",0,{"$f":"IFERROR(VLOOKUP(D898,'Bank and Fund Details'!$B$14:$L$35,11,FALSE),\"N\")","v":"Y"},"NY"]
[null,null,null,"General Fund",null,null,null,null,null,{"$f":"VLOOKUP(D899,'Bank and Fund Details'!$B$15:$D$36,3,FALSE)","v":0},{"$f":"VLOOKUP(D899,'Bank and Fund Details'!$B$15:$C$36,2,FALSE)","v":"Unrestricted"},{"$f":"IFERROR(VLOOKUP(C899,Descriptions!$I$6:$K$92,3,FALSE),\"\")","v":""},null,null,null,null,null,null,null,null,null,null,null,null,null,null,"General Fund",null,{"$f":"IFERROR(VLOOKUP(C899,Descriptions!I:M,5,FALSE),\"N\")","v":"N"},true,"NTRUE",0,{"$f":"IFERROR(VLOOKUP(D899,'Bank and Fund Details'!$B$14:$L$35,11,FALSE),\"N\")","v":"Y"},"NY"]
[null,null,null,"General Fund",null,null,null,null,null,{"$f":"VLOOKUP(D900,'Bank and Fund Details'!$B$15:$D$36,3,FALSE)","v":0},{"$f":"VLOOKUP(D900,'Bank and Fund Details'!$B$15:$C$36,2,FALSE)","v":"Unrestricted"},{"$f":"IFERROR(VLOOKUP(C900,Descriptions!$I$6:$K$92,3,FALSE),\"\")","v":""},null,null,null,null,null,null,null,null,null,null,null,null,null,null,"General Fund",null,{"$f":"IFERROR(VLOOKUP(C900,Descriptions!I:M,5,FALSE),\"N\")","v":"N"},true,"NTRUE",0,{"$f":"IFERROR(VLOOKUP(D900,'Bank and Fund Details'!$B$14:$L$35,11,FALSE),\"N\")","v":"Y"},"NY"]
[null,null,null,"General Fund",null,null,null,null,null,{"$f":"VLOOKUP(D901,'Bank and Fund Details'!$B$15:$D$36,3,FALSE)","v":0},{"$f":"VLOOKUP(D901,'Bank and Fund Details'!$B$15:$C$36,2,FALSE)","v":"Unrestricted"},{"$f":"IFERROR(VLOOKUP(C901,Descriptions!$I$6:$K$92,3,FALSE),\"\")","v":""},null,null,null,null,null,null,null,null,null,null,null,null,null,null,"General Fund",null,{"$f":"IFERROR(VLOOKUP(C901,Descriptions!I:M,5,FALSE),\"N\")","v":"N"},true,"NTRUE",0,{"$f":"IFERROR(VLOOKUP(D901,'Bank and Fund Details'!$B$14:$L$35,11,FALSE),\"N\")","v":"Y"},"NY"]
[null,null,null,"General Fund",null,null,null,null,null,{"$f":"VLOOKUP(D902,'Bank and Fund Details'!$B$15:$D$36,3,FALSE)","v":0},{"$f":"VLOOKUP(D902,'Bank and Fund Details'!$B$15:$C$36,2,FALSE)","v":"Unrestricted"},{"$f":"IFERROR(VLOOKUP(C902,Descriptions!$I$6:$K$92,3,FALSE),\"\")","v":""},null,null,null,null,null,null,null,null,null,null,null,null,null,null,{"$f":"CONCATENATE(C902,D902)","v":"General Fund"},null,{"$f":"IFERROR(VLOOKUP(C902,Descriptions!I:M,5,FALSE),\"N\")","v":"N"},{"$f":"ISBLANK(C902)","v":true},{"$f":"CONCATENATE(AC902,AD902)","v":"NTRUE"},{"$f":"IF(AE902=\"NFALSE\",1,0)","v":0},{"$f":"IFERROR(VLOOKUP(D902,'Bank and Fund Details'!$B$14:$L$35,11,FALSE),\"N\")","v":"Y"},{"$f":"CONCATENATE(AC902,AG902)","v":"NY"}]
[null,null,null,"General Fund",null,null,null,null,null,{"$f":"VLOOKUP(D903,'Bank and Fund Details'!$B$15:$D$36,3,FALSE)","v":0},{"$f":"VLOOKUP(D903,'Bank and Fund Details'!$B$15:$C$36,2,FALSE)","v":"Unrestricted"},{"$f":"IFERROR(VLOOKUP(C903,Descriptions!$I$6:$K$92,3,FALSE),\"\")","v":""},null,null,null,null,null,null,null,null,null,null,null,null,null,null,"General Fund",null,{"$f":"IFERROR(VLOOKUP(C903,Descriptions!I:M,5,FALSE),\"N\")","v":"N"},true,"NTRUE",0,{"$f":"IFERROR(VLOOKUP(D903,'Bank and Fund Details'!$B$14:$L$35,11,FALSE),\"N\")","v":"Y"},"NY"]
[null,null,null,"General Fund",null,null,null,null,null,{"$f":"VLOOKUP(D904,'Bank and Fund Details'!$B$15:$D$36,3,FALSE)","v":0},{"$f":"VLOOKUP(D904,'Bank and Fund Details'!$B$15:$C$36,2,FALSE)","v":"Unrestricted"},{"$f":"IFERROR(VLOOKUP(C904,Descriptions!$I$6:$K$92,3,FALSE),\"\")","v":""},null,null,null,null,null,null,null,null,null,null,null,null,null,null,"General Fund",null,{"$f":"IFERROR(VLOOKUP(C904,Descriptions!I:M,5,FALSE),\"N\")","v":"N"},true,"NTRUE",0,{"$f":"IFERROR(VLOOKUP(D904,'Bank and Fund Details'!$B$14:$L$35,11,FALSE),\"N\")","v":"Y"},"NY"]
[null,null,null,"General Fund",null,null,null,null,null,{"$f":"VLOOKUP(D905,'Bank and Fund Details'!$B$15:$D$36,3,FALSE)","v":0},{"$f":"VLOOKUP(D905,'Bank and Fund Details'!$B$15:$C$36,2,FALSE)","v":"Unrestricted"},{"$f":"IFERROR(VLOOKUP(C905,Descriptions!$I$6:$K$92,3,FALSE),\"\")","v":""},null,null,null,null,null,null,null,null,null,null,null,null,null,null,"General Fund",null,{"$f":"IFERROR(VLOOKUP(C905,Descriptions!I:M,5,FALSE),\"N\")","v":"N"},true,"NTRUE",0,{"$f":"IFERROR(VLOOKUP(D905,'Bank and Fund Details'!$B$14:$L$35,11,FALSE),\"N\")","v":"Y"},"NY"]
[null,null,null,"General Fund",null,null,null,null,null,{"$f":"VLOOKUP(D906,'Bank and Fund Details'!$B$15:$D$36,3,FALSE)","v":0},{"$f":"VLOOKUP(D906,'Bank and Fund Details'!$B$15:$C$36,2,FALSE)","v":"Unrestricted"},{"$f":"IFERROR(VLOOKUP(C906,Descriptions!$I$6:$K$92,3,FALSE),\"\")","v":""},null,null,null,null,null,null,null,null,null,null,null,null,null,null,"General Fund",null,{"$f":"IFERROR(VLOOKUP(C906,Descriptions!I:M,5,FALSE),\"N\")","v":"N"},true,"NTRUE",0,{"$f":"IFERROR(VLOOKUP(D906,'Bank and Fund Details'!$B$14:$L$35,11,FALSE),\"N\")","v":"Y"},"NY"]
[null,null,null,"General Fund",null,null,null,null,null,{"$f":"VLOOKUP(D907,'Bank and Fund Details'!$B$15:$D$36,3,FALSE)","v":0},{"$f":"VLOOKUP(D907,'Bank and Fund Details'!$B$15:$C$36,2,FALSE)","v":"Unrestricted"},{"$f":"IFERROR(VLOOKUP(C907,Descriptions!$I$6:$K$92,3,FALSE),\"\")","v":""},null,null,null,null,null,null,null,null,null,null,null,null,null,null,"General Fund",null,{"$f":"IFERROR(VLOOKUP(C907,Descriptions!I:M,5,FALSE),\"N\")","v":"N"},true,"NTRUE",0,{"$f":"IFERROR(VLOOKUP(D907,'Bank and Fund Details'!$B$14:$L$35,11,FALSE),\"N\")","v":"Y"},"NY"]
[null,null,null,"General Fund",null,null,null,null,null,{"$f":"VLOOKUP(D908,'Bank and Fund Details'!$B$15:$D$36,3,FALSE)","v":0},{"$f":"VLOOKUP(D908,'Bank and Fund Details'!$B$15:$C$36,2,FALSE)","v":"Unrestricted"},{"$f":"IFERROR(VLOOKUP(C908,Descriptions!$I$6:$K$92,3,FALSE),\"\")","v":""},null,null,null,null,null,null,null,null,null,null,null,null,null,null,"General Fund",null,{"$f":"IFERROR(VLOOKUP(C908,Descriptions!I:M,5,FALSE),\"N\")","v":"N"},true,"NTRUE",0,{"$f":"IFERROR(VLOOKUP(D908,'Bank and Fund Details'!$B$14:$L$35,11,FALSE),\"N\")","v":"Y"},"NY"]
[null,null,null,"General Fund",null,null,null,null,null,{"$f":"VLOOKUP(D909,'Bank and Fund Details'!$B$15:$D$36,3,FALSE)","v":0},{"$f":"VLOOKUP(D909,'Bank and Fund Details'!$B$15:$C$36,2,FALSE)","v":"Unrestricted"},{"$f":"IFERROR(VLOOKUP(C909,Descriptions!$I$6:$K$92,3,FALSE),\"\")","v":""},null,null,null,null,null,null,null,null,null,null,null,null,null,null,"General Fund",null,{"$f":"IFERROR(VLOOKUP(C909,Descriptions!I:M,5,FALSE),\"N\")","v":"N"},true,"NTRUE",0,{"$f":"IFERROR(VLOOKUP(D909,'Bank and Fund Details'!$B$14:$L$35,11,FALSE),\"N\")","v":"Y"},"NY"]
[null,null,null,"General Fund",null,null,null,null,null,{"$f":"VLOOKUP(D910,'Bank and Fund Details'!$B$15:$D$36,3,FALSE)","v":0},{"$f":"VLOOKUP(D910,'Bank and Fund Details'!$B$15:$C$36,2,FALSE)","v":"Unrestricted"},{"$f":"IFERROR(VLOOKUP(C910,Descriptions!$I$6:$K$92,3,FALSE),\"\")","v":""},null,null,null,null,null,null,null,null,null,null,null,null,null,null,"General Fund",null,{"$f":"IFERROR(VLOOKUP(C910,Descriptions!I:M,5,FALSE),\"N\")","v":"N"},true,"NTRUE",0,{"$f":"IFERROR(VLOOKUP(D910,'Bank and Fund Details'!$B$14:$L$35,11,FALSE),\"N\")","v":"Y"},"NY"]
[null,null,null,"General Fund",null,null,null,null,null,{"$f":"VLOOKUP(D911,'Bank and Fund Details'!$B$15:$D$36,3,FALSE)","v":0},{"$f":"VLOOKUP(D911,'Bank and Fund Details'!$B$15:$C$36,2,FALSE)","v":"Unrestricted"},{"$f":"IFERROR(VLOOKUP(C911,Descriptions!$I$6:$K$92,3,FALSE),\"\")","v":""},null,null,null,null,null,null,null,null,null,null,null,null,null,null,"General Fund",null,{"$f":"IFERROR(VLOOKUP(C911,Descriptions!I:M,5,FALSE),\"N\")","v":"N"},true,"NTRUE",0,{"$f":"IFERROR(VLOOKUP(D911,'Bank and Fund Details'!$B$14:$L$35,11,FALSE),\"N\")","v":"Y"},"NY"]
[null,null,null,"General Fund",null,null,null,null,null,{"$f":"VLOOKUP(D912,'Bank and Fund Details'!$B$15:$D$36,3,FALSE)","v":0},{"$f":"VLOOKUP(D912,'Bank and Fund Details'!$B$15:$C$36,2,FALSE)","v":"Unrestricted"},{"$f":"IFERROR(VLOOKUP(C912,Descriptions!$I$6:$K$92,3,FALSE),\"\")","v":""},null,null,null,null,null,null,null,null,null,null,null,null,null,null,"General Fund",null,{"$f":"IFERROR(VLOOKUP(C912,Descriptions!I:M,5,FALSE),\"N\")","v":"N"},true,"NTRUE",0,{"$f":"IFERROR(VLOOKUP(D912,'Bank and Fund Details'!$B$14:$L$35,11,FALSE),\"N\")","v":"Y"},"NY"]
[null,null,null,"General Fund",null,null,null,null,null,{"$f":"VLOOKUP(D913,'Bank and Fund Details'!$B$15:$D$36,3,FALSE)","v":0},{"$f":"VLOOKUP(D913,'Bank and Fund Details'!$B$15:$C$36,2,FALSE)","v":"Unrestricted"},{"$f":"IFERROR(VLOOKUP(C913,Descriptions!$I$6:$K$92,3,FALSE),\"\")","v":""},null,null,null,null,null,null,null,null,null,null,null,null,null,null,"General Fund",null,{"$f":"IFERROR(VLOOKUP(C913,Descriptions!I:M,5,FALSE),\"N\")","v":"N"},true,"NTRUE",0,{"$f":"IFERROR(VLOOKUP(D913,'Bank and Fund Details'!$B$14:$L$35,11,FALSE),\"N\")","v":"Y"},"NY"]
[null,null,null,"General Fund",null,null,null,null,null,{"$f":"VLOOKUP(D914,'Bank and Fund Details'!$B$15:$D$36,3,FALSE)","v":0},{"$f":"VLOOKUP(D914,'Bank and Fund Details'!$B$15:$C$36,2,FALSE)","v":"Unrestricted"},{"$f":"IFERROR(VLOOKUP(C914,Descriptions!$I$6:$K$92,3,FALSE),\"\")","v":""},null,null,null,null,null,null,null,null,null,null,null,null,null,null,"General Fund",null,{"$f":"IFERROR(VLOOKUP(C914,Descriptions!I:M,5,FALSE),\"N\")","v":"N"},true,"NTRUE",0,{"$f":"IFERROR(VLOOKUP(D914,'Bank and Fund Details'!$B$14:$L$35,11,FALSE),\"N\")","v":"Y"},"NY"]
[null,null,null,"General Fund",null,null,null,null,null,{"$f":"VLOOKUP(D915,'Bank and Fund Details'!$B$15:$D$36,3,FALSE)","v":0},{"$f":"VLOOKUP(D915,'Bank and Fund Details'!$B$15:$C$36,2,FALSE)","v":"Unrestricted"},{"$f":"IFERROR(VLOOKUP(C915,Descriptions!$I$6:$K$92,3,FALSE),\"\")","v":""},null,null,null,null,null,null,null,null,null,null,null,null,null,null,"General Fund",null,{"$f":"IFERROR(VLOOKUP(C915,Descriptions!I:M,5,FALSE),\"N\")","v":"N"},true,"NTRUE",0,{"$f":"IFERROR(VLOOKUP(D915,'Bank and Fund Details'!$B$14:$L$35,11,FALSE),\"N\")","v":"Y"},"NY"]
[null,null,null,"General Fund",null,null,null,null,null,{"$f":"VLOOKUP(D916,'Bank and Fund Details'!$B$15:$D$36,3,FALSE)","v":0},{"$f":"VLOOKUP(D916,'Bank and Fund Details'!$B$15:$C$36,2,FALSE)","v":"Unrestricted"},{"$f":"IFERROR(VLOOKUP(C916,Descriptions!$I$6:$K$92,3,FALSE),\"\")","v":""},null,null,null,null,null,null,null,null,null,null,null,null,null,null,"General Fund",null,{"$f":"IFERROR(VLOOKUP(C916,Descriptions!I:M,5,FALSE),\"N\")","v":"N"},true,"NTRUE",0,{"$f":"IFERROR(VLOOKUP(D916,'Bank and Fund Details'!$B$14:$L$35,11,FALSE),\"N\")","v":"Y"},"NY"]
[null,null,null,"General Fund",null,null,null,null,null,{"$f":"VLOOKUP(D917,'Bank and Fund Details'!$B$15:$D$36,3,FALSE)","v":0},{"$f":"VLOOKUP(D917,'Bank and Fund Details'!$B$15:$C$36,2,FALSE)","v":"Unrestricted"},{"$f":"IFERROR(VLOOKUP(C917,Descriptions!$I$6:$K$92,3,FALSE),\"\")","v":""},null,null,null,null,null,null,null,null,null,null,null,null,null,null,"General Fund",null,{"$f":"IFERROR(VLOOKUP(C917,Descriptions!I:M,5,FALSE),\"N\")","v":"N"},true,"NTRUE",0,{"$f":"IFERROR(VLOOKUP(D917,'Bank and Fund Details'!$B$14:$L$35,11,FALSE),\"N\")","v":"Y"},"NY"]
[null,null,null,"General Fund",null,null,null,null,null,{"$f":"VLOOKUP(D918,'Bank and Fund Details'!$B$15:$D$36,3,FALSE)","v":0},{"$f":"VLOOKUP(D918,'Bank and Fund Details'!$B$15:$C$36,2,FALSE)","v":"Unrestricted"},{"$f":"IFERROR(VLOOKUP(C918,Descriptions!$I$6:$K$92,3,FALSE),\"\")","v":""},null,null,null,null,null,null,null,null,null,null,null,null,null,null,"General Fund",null,{"$f":"IFERROR(VLOOKUP(C918,Descriptions!I:M,5,FALSE),\"N\")","v":"N"},true,"NTRUE",0,{"$f":"IFERROR(VLOOKUP(D918,'Bank and Fund Details'!$B$14:$L$35,11,FALSE),\"N\")","v":"Y"},"NY"]
[null,null,null,"General Fund",null,null,null,null,null,{"$f":"VLOOKUP(D919,'Bank and Fund Details'!$B$15:$D$36,3,FALSE)","v":0},{"$f":"VLOOKUP(D919,'Bank and Fund Details'!$B$15:$C$36,2,FALSE)","v":"Unrestricted"},{"$f":"IFERROR(VLOOKUP(C919,Descriptions!$I$6:$K$92,3,FALSE),\"\")","v":""},null,null,null,null,null,null,null,null,null,null,null,null,null,null,"General Fund",null,{"$f":"IFERROR(VLOOKUP(C919,Descriptions!I:M,5,FALSE),\"N\")","v":"N"},true,"NTRUE",0,{"$f":"IFERROR(VLOOKUP(D919,'Bank and Fund Details'!$B$14:$L$35,11,FALSE),\"N\")","v":"Y"},"NY"]
[null,null,null,"General Fund",null,null,null,null,null,{"$f":"VLOOKUP(D920,'Bank and Fund Details'!$B$15:$D$36,3,FALSE)","v":0},{"$f":"VLOOKUP(D920,'Bank and Fund Details'!$B$15:$C$36,2,FALSE)","v":"Unrestricted"},{"$f":"IFERROR(VLOOKUP(C920,Descriptions!$I$6:$K$92,3,FALSE),\"\")","v":""},null,null,null,null,null,null,null,null,null,null,null,null,null,null,"General Fund",null,{"$f":"IFERROR(VLOOKUP(C920,Descriptions!I:M,5,FALSE),\"N\")","v":"N"},true,"NTRUE",0,{"$f":"IFERROR(VLOOKUP(D920,'Bank and Fund Details'!$B$14:$L$35,11,FALSE),\"N\")","v":"Y"},"NY"]
[null,null,null,"General Fund",null,null,null,null,null,{"$f":"VLOOKUP(D921,'Bank and Fund Details'!$B$15:$D$36,3,FALSE)","v":0},{"$f":"VLOOKUP(D921,'Bank and Fund Details'!$B$15:$C$36,2,FALSE)","v":"Unrestricted"},{"$f":"IFERROR(VLOOKUP(C921,Descriptions!$I$6:$K$92,3,FALSE),\"\")","v":""},null,null,null,null,null,null,null,null,null,null,null,null,null,null,"General Fund",null,{"$f":"IFERROR(VLOOKUP(C921,Descriptions!I:M,5,FALSE),\"N\")","v":"N"},true,"NTRUE",0,{"$f":"IFERROR(VLOOKUP(D921,'Bank and Fund Details'!$B$14:$L$35,11,FALSE),\"N\")","v":"Y"},"NY"]
[null,null,null,"General Fund",null,null,null,null,null,{"$f":"VLOOKUP(D922,'Bank and Fund Details'!$B$15:$D$36,3,FALSE)","v":0},{"$f":"VLOOKUP(D922,'Bank and Fund Details'!$B$15:$C$36,2,FALSE)","v":"Unrestricted"},{"$f":"IFERROR(VLOOKUP(C922,Descriptions!$I$6:$K$92,3,FALSE),\"\")","v":""},null,null,null,null,null,null,null,null,null,null,null,null,null,null,"General Fund",null,{"$f":"IFERROR(VLOOKUP(C922,Descriptions!I:M,5,FALSE),\"N\")","v":"N"},true,"NTRUE",0,{"$f":"IFERROR(VLOOKUP(D922,'Bank and Fund Details'!$B$14:$L$35,11,FALSE),\"N\")","v":"Y"},"NY"]
[null,null,null,"General Fund",null,null,null,null,null,{"$f":"VLOOKUP(D923,'Bank and Fund Details'!$B$15:$D$36,3,FALSE)","v":0},{"$f":"VLOOKUP(D923,'Bank and Fund Details'!$B$15:$C$36,2,FALSE)","v":"Unrestricted"},{"$f":"IFERROR(VLOOKUP(C923,Descriptions!$I$6:$K$92,3,FALSE),\"\")","v":""},null,null,null,null,null,null,null,null,null,null,null,null,null,null,"General Fund",null,{"$f":"IFERROR(VLOOKUP(C923,Descriptions!I:M,5,FALSE),\"N\")","v":"N"},true,"NTRUE",0,{"$f":"IFERROR(VLOOKUP(D923,'Bank and Fund Details'!$B$14:$L$35,11,FALSE),\"N\")","v":"Y"},"NY"]
[null,null,null,"General Fund",null,null,null,null,null,{"$f":"VLOOKUP(D924,'Bank and Fund Details'!$B$15:$D$36,3,FALSE)","v":0},{"$f":"VLOOKUP(D924,'Bank and Fund Details'!$B$15:$C$36,2,FALSE)","v":"Unrestricted"},{"$f":"IFERROR(VLOOKUP(C924,Descriptions!$I$6:$K$92,3,FALSE),\"\")","v":""},null,null,null,null,null,null,null,null,null,null,null,null,null,null,"General Fund",null,{"$f":"IFERROR(VLOOKUP(C924,Descriptions!I:M,5,FALSE),\"N\")","v":"N"},true,"NTRUE",0,{"$f":"IFERROR(VLOOKUP(D924,'Bank and Fund Details'!$B$14:$L$35,11,FALSE),\"N\")","v":"Y"},"NY"]
[null,null,null,"General Fund",null,null,null,null,null,{"$f":"VLOOKUP(D925,'Bank and Fund Details'!$B$15:$D$36,3,FALSE)","v":0},{"$f":"VLOOKUP(D925,'Bank and Fund Details'!$B$15:$C$36,2,FALSE)","v":"Unrestricted"},{"$f":"IFERROR(VLOOKUP(C925,Descriptions!$I$6:$K$92,3,FALSE),\"\")","v":""},null,null,null,null,null,null,null,null,null,null,null,null,null,null,"General Fund",null,{"$f":"IFERROR(VLOOKUP(C925,Descriptions!I:M,5,FALSE),\"N\")","v":"N"},true,"NTRUE",0,{"$f":"IFERROR(VLOOKUP(D925,'Bank and Fund Details'!$B$14:$L$35,11,FALSE),\"N\")","v":"Y"},"NY"]
[null,null,null,"General Fund",null,null,null,null,null,{"$f":"VLOOKUP(D926,'Bank and Fund Details'!$B$15:$D$36,3,FALSE)","v":0},{"$f":"VLOOKUP(D926,'Bank and Fund Details'!$B$15:$C$36,2,FALSE)","v":"Unrestricted"},{"$f":"IFERROR(VLOOKUP(C926,Descriptions!$I$6:$K$92,3,FALSE),\"\")","v":""},null,null,null,null,null,null,null,null,null,null,null,null,null,null,"General Fund",null,{"$f":"IFERROR(VLOOKUP(C926,Descriptions!I:M,5,FALSE),\"N\")","v":"N"},true,"NTRUE",0,{"$f":"IFERROR(VLOOKUP(D926,'Bank and Fund Details'!$B$14:$L$35,11,FALSE),\"N\")","v":"Y"},"NY"]
[null,null,null,"General Fund",null,null,null,null,null,{"$f":"VLOOKUP(D927,'Bank and Fund Details'!$B$15:$D$36,3,FALSE)","v":0},{"$f":"VLOOKUP(D927,'Bank and Fund Details'!$B$15:$C$36,2,FALSE)","v":"Unrestricted"},{"$f":"IFERROR(VLOOKUP(C927,Descriptions!$I$6:$K$92,3,FALSE),\"\")","v":""},null,null,null,null,null,null,null,null,null,null,null,null,null,null,"General Fund",null,{"$f":"IFERROR(VLOOKUP(C927,Descriptions!I:M,5,FALSE),\"N\")","v":"N"},true,"NTRUE",0,{"$f":"IFERROR(VLOOKUP(D927,'Bank and Fund Details'!$B$14:$L$35,11,FALSE),\"N\")","v":"Y"},"NY"]
[null,null,null,"General Fund",null,null,null,null,null,{"$f":"VLOOKUP(D928,'Bank and Fund Details'!$B$15:$D$36,3,FALSE)","v":0},{"$f":"VLOOKUP(D928,'Bank and Fund Details'!$B$15:$C$36,2,FALSE)","v":"Unrestricted"},{"$f":"IFERROR(VLOOKUP(C928,Descriptions!$I$6:$K$92,3,FALSE),\"\")","v":""},null,null,null,null,null,null,null,null,null,null,null,null,null,null,"General Fund",null,{"$f":"IFERROR(VLOOKUP(C928,Descriptions!I:M,5,FALSE),\"N\")","v":"N"},true,"NTRUE",0,{"$f":"IFERROR(VLOOKUP(D928,'Bank and Fund Details'!$B$14:$L$35,11,FALSE),\"N\")","v":"Y"},"NY"]
[null,null,null,"General Fund",null,null,null,null,null,{"$f":"VLOOKUP(D929,'Bank and Fund Details'!$B$15:$D$36,3,FALSE)","v":0},{"$f":"VLOOKUP(D929,'Bank and Fund Details'!$B$15:$C$36,2,FALSE)","v":"Unrestricted"},{"$f":"IFERROR(VLOOKUP(C929,Descriptions!$I$6:$K$92,3,FALSE),\"\")","v":""},null,null,null,null,null,null,null,null,null,null,null,null,null,null,"General Fund",null,{"$f":"IFERROR(VLOOKUP(C929,Descriptions!I:M,5,FALSE),\"N\")","v":"N"},true,"NTRUE",0,{"$f":"IFERROR(VLOOKUP(D929,'Bank and Fund Details'!$B$14:$L$35,11,FALSE),\"N\")","v":"Y"},"NY"]
[null,null,null,"General Fund",null,null,null,null,null,{"$f":"VLOOKUP(D930,'Bank and Fund Details'!$B$15:$D$36,3,FALSE)","v":0},{"$f":"VLOOKUP(D930,'Bank and Fund Details'!$B$15:$C$36,2,FALSE)","v":"Unrestricted"},{"$f":"IFERROR(VLOOKUP(C930,Descriptions!$I$6:$K$92,3,FALSE),\"\")","v":""},null,null,null,null,null,null,null,null,null,null,null,null,null,null,"General Fund",null,{"$f":"IFERROR(VLOOKUP(C930,Descriptions!I:M,5,FALSE),\"N\")","v":"N"},true,"NTRUE",0,{"$f":"IFERROR(VLOOKUP(D930,'Bank and Fund Details'!$B$14:$L$35,11,FALSE),\"N\")","v":"Y"},"NY"]
[null,null,null,"General Fund",null,null,null,null,null,{"$f":"VLOOKUP(D931,'Bank and Fund Details'!$B$15:$D$36,3,FALSE)","v":0},{"$f":"VLOOKUP(D931,'Bank and Fund Details'!$B$15:$C$36,2,FALSE)","v":"Unrestricted"},{"$f":"IFERROR(VLOOKUP(C931,Descriptions!$I$6:$K$92,3,FALSE),\"\")","v":""},null,null,null,null,null,null,null,null,null,null,null,null,null,null,"General Fund",null,{"$f":"IFERROR(VLOOKUP(C931,Descriptions!I:M,5,FALSE),\"N\")","v":"N"},true,"NTRUE",0,{"$f":"IFERROR(VLOOKUP(D931,'Bank and Fund Details'!$B$14:$L$35,11,FALSE),\"N\")","v":"Y"},"NY"]
[null,null,null,"General Fund",null,null,null,null,null,{"$f":"VLOOKUP(D932,'Bank and Fund Details'!$B$15:$D$36,3,FALSE)","v":0},{"$f":"VLOOKUP(D932,'Bank and Fund Details'!$B$15:$C$36,2,FALSE)","v":"Unrestricted"},{"$f":"IFERROR(VLOOKUP(C932,Descriptions!$I$6:$K$92,3,FALSE),\"\")","v":""},null,null,null,null,null,null,null,null,null,null,null,null,null,null,"General Fund",null,{"$f":"IFERROR(VLOOKUP(C932,Descriptions!I:M,5,FALSE),\"N\")","v":"N"},true,"NTRUE",0,{"$f":"IFERROR(VLOOKUP(D932,'Bank and Fund Details'!$B$14:$L$35,11,FALSE),\"N\")","v":"Y"},"NY"]
[null,null,null,"General Fund",null,null,null,null,null,{"$f":"VLOOKUP(D933,'Bank and Fund Details'!$B$15:$D$36,3,FALSE)","v":0},{"$f":"VLOOKUP(D933,'Bank and Fund Details'!$B$15:$C$36,2,FALSE)","v":"Unrestricted"},{"$f":"IFERROR(VLOOKUP(C933,Descriptions!$I$6:$K$92,3,FALSE),\"\")","v":""},null,null,null,null,null,null,null,null,null,null,null,null,null,null,"General Fund",null,{"$f":"IFERROR(VLOOKUP(C933,Descriptions!I:M,5,FALSE),\"N\")","v":"N"},true,"NTRUE",0,{"$f":"IFERROR(VLOOKUP(D933,'Bank and Fund Details'!$B$14:$L$35,11,FALSE),\"N\")","v":"Y"},"NY"]
[null,null,null,"General Fund",null,null,null,null,null,{"$f":"VLOOKUP(D934,'Bank and Fund Details'!$B$15:$D$36,3,FALSE)","v":0},{"$f":"VLOOKUP(D934,'Bank and Fund Details'!$B$15:$C$36,2,FALSE)","v":"Unrestricted"},{"$f":"IFERROR(VLOOKUP(C934,Descriptions!$I$6:$K$92,3,FALSE),\"\")","v":""},null,null,null,null,null,null,null,null,null,null,null,null,null,null,"General Fund",null,{"$f":"IFERROR(VLOOKUP(C934,Descriptions!I:M,5,FALSE),\"N\")","v":"N"},true,"NTRUE",0,{"$f":"IFERROR(VLOOKUP(D934,'Bank and Fund Details'!$B$14:$L$35,11,FALSE),\"N\")","v":"Y"},"NY"]
[null,null,null,"General Fund",null,null,null,null,null,{"$f":"VLOOKUP(D935,'Bank and Fund Details'!$B$15:$D$36,3,FALSE)","v":0},{"$f":"VLOOKUP(D935,'Bank and Fund Details'!$B$15:$C$36,2,FALSE)","v":"Unrestricted"},{"$f":"IFERROR(VLOOKUP(C935,Descriptions!$I$6:$K$92,3,FALSE),\"\")","v":""},null,null,null,null,null,null,null,null,null,null,null,null,null,null,"General Fund",null,{"$f":"IFERROR(VLOOKUP(C935,Descriptions!I:M,5,FALSE),\"N\")","v":"N"},true,"NTRUE",0,{"$f":"IFERROR(VLOOKUP(D935,'Bank and Fund Details'!$B$14:$L$35,11,FALSE),\"N\")","v":"Y"},"NY"]
[null,null,null,"General Fund",null,null,null,null,null,{"$f":"VLOOKUP(D936,'Bank and Fund Details'!$B$15:$D$36,3,FALSE)","v":0},{"$f":"VLOOKUP(D936,'Bank and Fund Details'!$B$15:$C$36,2,FALSE)","v":"Unrestricted"},{"$f":"IFERROR(VLOOKUP(C936,Descriptions!$I$6:$K$92,3,FALSE),\"\")","v":""},null,null,null,null,null,null,null,null,null,null,null,null,null,null,"General Fund",null,{"$f":"IFERROR(VLOOKUP(C936,Descriptions!I:M,5,FALSE),\"N\")","v":"N"},true,"NTRUE",0,{"$f":"IFERROR(VLOOKUP(D936,'Bank and Fund Details'!$B$14:$L$35,11,FALSE),\"N\")","v":"Y"},"NY"]
[null,null,null,"General Fund",null,null,null,null,null,{"$f":"VLOOKUP(D937,'Bank and Fund Details'!$B$15:$D$36,3,FALSE)","v":0},{"$f":"VLOOKUP(D937,'Bank and Fund Details'!$B$15:$C$36,2,FALSE)","v":"Unrestricted"},{"$f":"IFERROR(VLOOKUP(C937,Descriptions!$I$6:$K$92,3,FALSE),\"\")","v":""},null,null,null,null,null,null,null,null,null,null,null,null,null,null,"General Fund",null,{"$f":"IFERROR(VLOOKUP(C937,Descriptions!I:M,5,FALSE),\"N\")","v":"N"},true,"NTRUE",0,{"$f":"IFERROR(VLOOKUP(D937,'Bank and Fund Details'!$B$14:$L$35,11,FALSE),\"N\")","v":"Y"},"NY"]
[null,null,null,"General Fund",null,null,null,null,null,{"$f":"VLOOKUP(D938,'Bank and Fund Details'!$B$15:$D$36,3,FALSE)","v":0},{"$f":"VLOOKUP(D938,'Bank and Fund Details'!$B$15:$C$36,2,FALSE)","v":"Unrestricted"},{"$f":"IFERROR(VLOOKUP(C938,Descriptions!$I$6:$K$92,3,FALSE),\"\")","v":""},null,null,null,null,null,null,null,null,null,null,null,null,null,null,"General Fund",null,{"$f":"IFERROR(VLOOKUP(C938,Descriptions!I:M,5,FALSE),\"N\")","v":"N"},true,"NTRUE",0,{"$f":"IFERROR(VLOOKUP(D938,'Bank and Fund Details'!$B$14:$L$35,11,FALSE),\"N\")","v":"Y"},"NY"]
[null,null,null,"General Fund",null,null,null,null,null,{"$f":"VLOOKUP(D939,'Bank and Fund Details'!$B$15:$D$36,3,FALSE)","v":0},{"$f":"VLOOKUP(D939,'Bank and Fund Details'!$B$15:$C$36,2,FALSE)","v":"Unrestricted"},{"$f":"IFERROR(VLOOKUP(C939,Descriptions!$I$6:$K$92,3,FALSE),\"\")","v":""},null,null,null,null,null,null,null,null,null,null,null,null,null,null,"General Fund",null,{"$f":"IFERROR(VLOOKUP(C939,Descriptions!I:M,5,FALSE),\"N\")","v":"N"},true,"NTRUE",0,{"$f":"IFERROR(VLOOKUP(D939,'Bank and Fund Details'!$B$14:$L$35,11,FALSE),\"N\")","v":"Y"},"NY"]
[null,null,null,"General Fund",null,null,null,null,null,{"$f":"VLOOKUP(D940,'Bank and Fund Details'!$B$15:$D$36,3,FALSE)","v":0},{"$f":"VLOOKUP(D940,'Bank and Fund Details'!$B$15:$C$36,2,FALSE)","v":"Unrestricted"},{"$f":"IFERROR(VLOOKUP(C940,Descriptions!$I$6:$K$92,3,FALSE),\"\")","v":""},null,null,null,null,null,null,null,null,null,null,null,null,null,null,"General Fund",null,{"$f":"IFERROR(VLOOKUP(C940,Descriptions!I:M,5,FALSE),\"N\")","v":"N"},true,"NTRUE",0,{"$f":"IFERROR(VLOOKUP(D940,'Bank and Fund Details'!$B$14:$L$35,11,FALSE),\"N\")","v":"Y"},"NY"]
[null,null,null,"General Fund",null,null,null,null,null,{"$f":"VLOOKUP(D941,'Bank and Fund Details'!$B$15:$D$36,3,FALSE)","v":0},{"$f":"VLOOKUP(D941,'Bank and Fund Details'!$B$15:$C$36,2,FALSE)","v":"Unrestricted"},{"$f":"IFERROR(VLOOKUP(C941,Descriptions!$I$6:$K$92,3,FALSE),\"\")","v":""},null,null,null,null,null,null,null,null,null,null,null,null,null,null,"General Fund",null,{"$f":"IFERROR(VLOOKUP(C941,Descriptions!I:M,5,FALSE),\"N\")","v":"N"},true,"NTRUE",0,{"$f":"IFERROR(VLOOKUP(D941,'Bank and Fund Details'!$B$14:$L$35,11,FALSE),\"N\")","v":"Y"},"NY"]
[null,null,null,"General Fund",null,null,null,null,null,{"$f":"VLOOKUP(D942,'Bank and Fund Details'!$B$15:$D$36,3,FALSE)","v":0},{"$f":"VLOOKUP(D942,'Bank and Fund Details'!$B$15:$C$36,2,FALSE)","v":"Unrestricted"},{"$f":"IFERROR(VLOOKUP(C942,Descriptions!$I$6:$K$92,3,FALSE),\"\")","v":""},null,null,null,null,null,null,null,null,null,null,null,null,null,null,"General Fund",null,{"$f":"IFERROR(VLOOKUP(C942,Descriptions!I:M,5,FALSE),\"N\")","v":"N"},true,"NTRUE",0,{"$f":"IFERROR(VLOOKUP(D942,'Bank and Fund Details'!$B$14:$L$35,11,FALSE),\"N\")","v":"Y"},"NY"]
[null,null,null,"General Fund",null,null,null,null,null,{"$f":"VLOOKUP(D943,'Bank and Fund Details'!$B$15:$D$36,3,FALSE)","v":0},{"$f":"VLOOKUP(D943,'Bank and Fund Details'!$B$15:$C$36,2,FALSE)","v":"Unrestricted"},{"$f":"IFERROR(VLOOKUP(C943,Descriptions!$I$6:$K$92,3,FALSE),\"\")","v":""},null,null,null,null,null,null,null,null,null,null,null,null,null,null,"General Fund",null,{"$f":"IFERROR(VLOOKUP(C943,Descriptions!I:M,5,FALSE),\"N\")","v":"N"},true,"NTRUE",0,{"$f":"IFERROR(VLOOKUP(D943,'Bank and Fund Details'!$B$14:$L$35,11,FALSE),\"N\")","v":"Y"},"NY"]
[null,null,null,"General Fund",null,null,null,null,null,{"$f":"VLOOKUP(D944,'Bank and Fund Details'!$B$15:$D$36,3,FALSE)","v":0},{"$f":"VLOOKUP(D944,'Bank and Fund Details'!$B$15:$C$36,2,FALSE)","v":"Unrestricted"},{"$f":"IFERROR(VLOOKUP(C944,Descriptions!$I$6:$K$92,3,FALSE),\"\")","v":""},null,null,null,null,null,null,null,null,null,null,null,null,null,null,"General Fund",null,{"$f":"IFERROR(VLOOKUP(C944,Descriptions!I:M,5,FALSE),\"N\")","v":"N"},true,"NTRUE",0,{"$f":"IFERROR(VLOOKUP(D944,'Bank and Fund Details'!$B$14:$L$35,11,FALSE),\"N\")","v":"Y"},"NY"]
[null,null,null,"General Fund",null,null,null,null,null,{"$f":"VLOOKUP(D945,'Bank and Fund Details'!$B$15:$D$36,3,FALSE)","v":0},{"$f":"VLOOKUP(D945,'Bank and Fund Details'!$B$15:$C$36,2,FALSE)","v":"Unrestricted"},{"$f":"IFERROR(VLOOKUP(C945,Descriptions!$I$6:$K$92,3,FALSE),\"\")","v":""},null,null,null,null,null,null,null,null,null,null,null,null,null,null,"General Fund",null,{"$f":"IFERROR(VLOOKUP(C945,Descriptions!I:M,5,FALSE),\"N\")","v":"N"},true,"NTRUE",0,{"$f":"IFERROR(VLOOKUP(D945,'Bank and Fund Details'!$B$14:$L$35,11,FALSE),\"N\")","v":"Y"},"NY"]
[null,null,null,"General Fund",null,null,null,null,null,{"$f":"VLOOKUP(D946,'Bank and Fund Details'!$B$15:$D$36,3,FALSE)","v":0},{"$f":"VLOOKUP(D946,'Bank and Fund Details'!$B$15:$C$36,2,FALSE)","v":"Unrestricted"},{"$f":"IFERROR(VLOOKUP(C946,Descriptions!$I$6:$K$92,3,FALSE),\"\")","v":""},null,null,null,null,null,null,null,null,null,null,null,null,null,null,"General Fund",null,{"$f":"IFERROR(VLOOKUP(C946,Descriptions!I:M,5,FALSE),\"N\")","v":"N"},true,"NTRUE",0,{"$f":"IFERROR(VLOOKUP(D946,'Bank and Fund Details'!$B$14:$L$35,11,FALSE),\"N\")","v":"Y"},"NY"]
[null,null,null,"General Fund",null,null,null,null,null,{"$f":"VLOOKUP(D947,'Bank and Fund Details'!$B$15:$D$36,3,FALSE)","v":0},{"$f":"VLOOKUP(D947,'Bank and Fund Details'!$B$15:$C$36,2,FALSE)","v":"Unrestricted"},{"$f":"IFERROR(VLOOKUP(C947,Descriptions!$I$6:$K$92,3,FALSE),\"\")","v":""},null,null,null,null,null,null,null,null,null,null,null,null,null,null,"General Fund",null,{"$f":"IFERROR(VLOOKUP(C947,Descriptions!I:M,5,FALSE),\"N\")","v":"N"},true,"NTRUE",0,{"$f":"IFERROR(VLOOKUP(D947,'Bank and Fund Details'!$B$14:$L$35,11,FALSE),\"N\")","v":"Y"},"NY"]
[null,null,null,"General Fund",null,null,null,null,null,{"$f":"VLOOKUP(D948,'Bank and Fund Details'!$B$15:$D$36,3,FALSE)","v":0},{"$f":"VLOOKUP(D948,'Bank and Fund Details'!$B$15:$C$36,2,FALSE)","v":"Unrestricted"},{"$f":"IFERROR(VLOOKUP(C948,Descriptions!$I$6:$K$92,3,FALSE),\"\")","v":""},null,null,null,null,null,null,null,null,null,null,null,null,null,null,"General Fund",null,{"$f":"IFERROR(VLOOKUP(C948,Descriptions!I:M,5,FALSE),\"N\")","v":"N"},true,"NTRUE",0,{"$f":"IFERROR(VLOOKUP(D948,'Bank and Fund Details'!$B$14:$L$35,11,FALSE),\"N\")","v":"Y"},"NY"]
[null,null,null,"General Fund",null,null,null,null,null,{"$f":"VLOOKUP(D949,'Bank and Fund Details'!$B$15:$D$36,3,FALSE)","v":0},{"$f":"VLOOKUP(D949,'Bank and Fund Details'!$B$15:$C$36,2,FALSE)","v":"Unrestricted"},{"$f":"IFERROR(VLOOKUP(C949,Descriptions!$I$6:$K$92,3,FALSE),\"\")","v":""},null,null,null,null,null,null,null,null,null,null,null,null,null,null,"General Fund",null,{"$f":"IFERROR(VLOOKUP(C949,Descriptions!I:M,5,FALSE),\"N\")","v":"N"},true,"NTRUE",0,{"$f":"IFERROR(VLOOKUP(D949,'Bank and Fund Details'!$B$14:$L$35,11,FALSE),\"N\")","v":"Y"},"NY"]
[null,null,null,"General Fund",null,null,null,null,null,{"$f":"VLOOKUP(D950,'Bank and Fund Details'!$B$15:$D$36,3,FALSE)","v":0},{"$f":"VLOOKUP(D950,'Bank and Fund Details'!$B$15:$C$36,2,FALSE)","v":"Unrestricted"},{"$f":"IFERROR(VLOOKUP(C950,Descriptions!$I$6:$K$92,3,FALSE),\"\")","v":""},null,null,null,null,null,null,null,null,null,null,null,null,null,null,"General Fund",null,{"$f":"IFERROR(VLOOKUP(C950,Descriptions!I:M,5,FALSE),\"N\")","v":"N"},true,"NTRUE",0,{"$f":"IFERROR(VLOOKUP(D950,'Bank and Fund Details'!$B$14:$L$35,11,FALSE),\"N\")","v":"Y"},"NY"]
[null,null,null,"General Fund",null,null,null,null,null,{"$f":"VLOOKUP(D951,'Bank and Fund Details'!$B$15:$D$36,3,FALSE)","v":0},{"$f":"VLOOKUP(D951,'Bank and Fund Details'!$B$15:$C$36,2,FALSE)","v":"Unrestricted"},{"$f":"IFERROR(VLOOKUP(C951,Descriptions!$I$6:$K$92,3,FALSE),\"\")","v":""},null,null,null,null,null,null,null,null,null,null,null,null,null,null,"General Fund",null,{"$f":"IFERROR(VLOOKUP(C951,Descriptions!I:M,5,FALSE),\"N\")","v":"N"},true,"NTRUE",0,{"$f":"IFERROR(VLOOKUP(D951,'Bank and Fund Details'!$B$14:$L$35,11,FALSE),\"N\")","v":"Y"},"NY"]
[null,null,null,"General Fund",null,null,null,null,null,{"$f":"VLOOKUP(D952,'Bank and Fund Details'!$B$15:$D$36,3,FALSE)","v":0},{"$f":"VLOOKUP(D952,'Bank and Fund Details'!$B$15:$C$36,2,FALSE)","v":"Unrestricted"},{"$f":"IFERROR(VLOOKUP(C952,Descriptions!$I$6:$K$92,3,FALSE),\"\")","v":""},null,null,null,null,null,null,null,null,null,null,null,null,null,null,"General Fund",null,{"$f":"IFERROR(VLOOKUP(C952,Descriptions!I:M,5,FALSE),\"N\")","v":"N"},true,"NTRUE",0,{"$f":"IFERROR(VLOOKUP(D952,'Bank and Fund Details'!$B$14:$L$35,11,FALSE),\"N\")","v":"Y"},"NY"]
[null,null,null,"General Fund",null,null,null,null,null,{"$f":"VLOOKUP(D953,'Bank and Fund Details'!$B$15:$D$36,3,FALSE)","v":0},{"$f":"VLOOKUP(D953,'Bank and Fund Details'!$B$15:$C$36,2,FALSE)","v":"Unrestricted"},{"$f":"IFERROR(VLOOKUP(C953,Descriptions!$I$6:$K$92,3,FALSE),\"\")","v":""},null,null,null,null,null,null,null,null,null,null,null,null,null,null,"General Fund",null,{"$f":"IFERROR(VLOOKUP(C953,Descriptions!I:M,5,FALSE),\"N\")","v":"N"},true,"NTRUE",0,{"$f":"IFERROR(VLOOKUP(D953,'Bank and Fund Details'!$B$14:$L$35,11,FALSE),\"N\")","v":"Y"},"NY"]
[null,null,null,"General Fund",null,null,null,null,null,{"$f":"VLOOKUP(D954,'Bank and Fund Details'!$B$15:$D$36,3,FALSE)","v":0},{"$f":"VLOOKUP(D954,'Bank and Fund Details'!$B$15:$C$36,2,FALSE)","v":"Unrestricted"},{"$f":"IFERROR(VLOOKUP(C954,Descriptions!$I$6:$K$92,3,FALSE),\"\")","v":""},null,null,null,null,null,null,null,null,null,null,null,null,null,null,"General Fund",null,{"$f":"IFERROR(VLOOKUP(C954,Descriptions!I:M,5,FALSE),\"N\")","v":"N"},true,"NTRUE",0,{"$f":"IFERROR(VLOOKUP(D954,'Bank and Fund Details'!$B$14:$L$35,11,FALSE),\"N\")","v":"Y"},"NY"]
[null,null,null,"General Fund",null,null,null,null,null,{"$f":"VLOOKUP(D955,'Bank and Fund Details'!$B$15:$D$36,3,FALSE)","v":0},{"$f":"VLOOKUP(D955,'Bank and Fund Details'!$B$15:$C$36,2,FALSE)","v":"Unrestricted"},{"$f":"IFERROR(VLOOKUP(C955,Descriptions!$I$6:$K$92,3,FALSE),\"\")","v":""},null,null,null,null,null,null,null,null,null,null,null,null,null,null,"General Fund",null,{"$f":"IFERROR(VLOOKUP(C955,Descriptions!I:M,5,FALSE),\"N\")","v":"N"},true,"NTRUE",0,{"$f":"IFERROR(VLOOKUP(D955,'Bank and Fund Details'!$B$14:$L$35,11,FALSE),\"N\")","v":"Y"},"NY"]
[null,null,null,"General Fund",null,null,null,null,null,{"$f":"VLOOKUP(D956,'Bank and Fund Details'!$B$15:$D$36,3,FALSE)","v":0},{"$f":"VLOOKUP(D956,'Bank and Fund Details'!$B$15:$C$36,2,FALSE)","v":"Unrestricted"},{"$f":"IFERROR(VLOOKUP(C956,Descriptions!$I$6:$K$92,3,FALSE),\"\")","v":""},null,null,null,null,null,null,null,null,null,null,null,null,null,null,"General Fund",null,{"$f":"IFERROR(VLOOKUP(C956,Descriptions!I:M,5,FALSE),\"N\")","v":"N"},true,"NTRUE",0,{"$f":"IFERROR(VLOOKUP(D956,'Bank and Fund Details'!$B$14:$L$35,11,FALSE),\"N\")","v":"Y"},"NY"]
[null,null,null,"General Fund",null,null,null,null,null,{"$f":"VLOOKUP(D957,'Bank and Fund Details'!$B$15:$D$36,3,FALSE)","v":0},{"$f":"VLOOKUP(D957,'Bank and Fund Details'!$B$15:$C$36,2,FALSE)","v":"Unrestricted"},{"$f":"IFERROR(VLOOKUP(C957,Descriptions!$I$6:$K$92,3,FALSE),\"\")","v":""},null,null,null,null,null,null,null,null,null,null,null,null,null,null,"General Fund",null,{"$f":"IFERROR(VLOOKUP(C957,Descriptions!I:M,5,FALSE),\"N\")","v":"N"},true,"NTRUE",0,{"$f":"IFERROR(VLOOKUP(D957,'Bank and Fund Details'!$B$14:$L$35,11,FALSE),\"N\")","v":"Y"},"NY"]
[null,null,null,"General Fund",null,null,null,null,null,{"$f":"VLOOKUP(D958,'Bank and Fund Details'!$B$15:$D$36,3,FALSE)","v":0},{"$f":"VLOOKUP(D958,'Bank and Fund Details'!$B$15:$C$36,2,FALSE)","v":"Unrestricted"},{"$f":"IFERROR(VLOOKUP(C958,Descriptions!$I$6:$K$92,3,FALSE),\"\")","v":""},null,null,null,null,null,null,null,null,null,null,null,null,null,null,"General Fund",null,{"$f":"IFERROR(VLOOKUP(C958,Descriptions!I:M,5,FALSE),\"N\")","v":"N"},true,"NTRUE",0,{"$f":"IFERROR(VLOOKUP(D958,'Bank and Fund Details'!$B$14:$L$35,11,FALSE),\"N\")","v":"Y"},"NY"]
[null,null,null,"General Fund",null,null,null,null,null,{"$f":"VLOOKUP(D959,'Bank and Fund Details'!$B$15:$D$36,3,FALSE)","v":0},{"$f":"VLOOKUP(D959,'Bank and Fund Details'!$B$15:$C$36,2,FALSE)","v":"Unrestricted"},{"$f":"IFERROR(VLOOKUP(C959,Descriptions!$I$6:$K$92,3,FALSE),\"\")","v":""},null,null,null,null,null,null,null,null,null,null,null,null,null,null,"General Fund",null,{"$f":"IFERROR(VLOOKUP(C959,Descriptions!I:M,5,FALSE),\"N\")","v":"N"},true,"NTRUE",0,{"$f":"IFERROR(VLOOKUP(D959,'Bank and Fund Details'!$B$14:$L$35,11,FALSE),\"N\")","v":"Y"},"NY"]
[null,null,null,"General Fund",null,null,null,null,null,{"$f":"VLOOKUP(D960,'Bank and Fund Details'!$B$15:$D$36,3,FALSE)","v":0},{"$f":"VLOOKUP(D960,'Bank and Fund Details'!$B$15:$C$36,2,FALSE)","v":"Unrestricted"},{"$f":"IFERROR(VLOOKUP(C960,Descriptions!$I$6:$K$92,3,FALSE),\"\")","v":""},null,null,null,null,null,null,null,null,null,null,null,null,null,null,"General Fund",null,{"$f":"IFERROR(VLOOKUP(C960,Descriptions!I:M,5,FALSE),\"N\")","v":"N"},true,"NTRUE",0,{"$f":"IFERROR(VLOOKUP(D960,'Bank and Fund Details'!$B$14:$L$35,11,FALSE),\"N\")","v":"Y"},"NY"]
[null,null,null,"General Fund",null,null,null,null,null,{"$f":"VLOOKUP(D961,'Bank and Fund Details'!$B$15:$D$36,3,FALSE)","v":0},{"$f":"VLOOKUP(D961,'Bank and Fund Details'!$B$15:$C$36,2,FALSE)","v":"Unrestricted"},{"$f":"IFERROR(VLOOKUP(C961,Descriptions!$I$6:$K$92,3,FALSE),\"\")","v":""},null,null,null,null,null,null,null,null,null,null,null,null,null,null,"General Fund",null,{"$f":"IFERROR(VLOOKUP(C961,Descriptions!I:M,5,FALSE),\"N\")","v":"N"},true,"NTRUE",0,{"$f":"IFERROR(VLOOKUP(D961,'Bank and Fund Details'!$B$14:$L$35,11,FALSE),\"N\")","v":"Y"},"NY"]
[null,null,null,"General Fund",null,null,null,null,null,{"$f":"VLOOKUP(D962,'Bank and Fund Details'!$B$15:$D$36,3,FALSE)","v":0},{"$f":"VLOOKUP(D962,'Bank and Fund Details'!$B$15:$C$36,2,FALSE)","v":"Unrestricted"},{"$f":"IFERROR(VLOOKUP(C962,Descriptions!$I$6:$K$92,3,FALSE),\"\")","v":""},null,null,null,null,null,null,null,null,null,null,null,null,null,null,"General Fund",null,{"$f":"IFERROR(VLOOKUP(C962,Descriptions!I:M,5,FALSE),\"N\")","v":"N"},true,"NTRUE",0,{"$f":"IFERROR(VLOOKUP(D962,'Bank and Fund Details'!$B$14:$L$35,11,FALSE),\"N\")","v":"Y"},"NY"]
[null,null,null,"General Fund",null,null,null,null,null,{"$f":"VLOOKUP(D963,'Bank and Fund Details'!$B$15:$D$36,3,FALSE)","v":0},{"$f":"VLOOKUP(D963,'Bank and Fund Details'!$B$15:$C$36,2,FALSE)","v":"Unrestricted"},{"$f":"IFERROR(VLOOKUP(C963,Descriptions!$I$6:$K$92,3,FALSE),\"\")","v":""},null,null,null,null,null,null,null,null,null,null,null,null,null,null,"General Fund",null,{"$f":"IFERROR(VLOOKUP(C963,Descriptions!I:M,5,FALSE),\"N\")","v":"N"},true,"NTRUE",0,{"$f":"IFERROR(VLOOKUP(D963,'Bank and Fund Details'!$B$14:$L$35,11,FALSE),\"N\")","v":"Y"},"NY"]
[null,null,null,"General Fund",null,null,null,null,null,{"$f":"VLOOKUP(D964,'Bank and Fund Details'!$B$15:$D$36,3,FALSE)","v":0},{"$f":"VLOOKUP(D964,'Bank and Fund Details'!$B$15:$C$36,2,FALSE)","v":"Unrestricted"},{"$f":"IFERROR(VLOOKUP(C964,Descriptions!$I$6:$K$92,3,FALSE),\"\")","v":""},null,null,null,null,null,null,null,null,null,null,null,null,null,null,"General Fund",null,{"$f":"IFERROR(VLOOKUP(C964,Descriptions!I:M,5,FALSE),\"N\")","v":"N"},true,"NTRUE",0,{"$f":"IFERROR(VLOOKUP(D964,'Bank and Fund Details'!$B$14:$L$35,11,FALSE),\"N\")","v":"Y"},"NY"]
[null,null,null,"General Fund",null,null,null,null,null,{"$f":"VLOOKUP(D965,'Bank and Fund Details'!$B$15:$D$36,3,FALSE)","v":0},{"$f":"VLOOKUP(D965,'Bank and Fund Details'!$B$15:$C$36,2,FALSE)","v":"Unrestricted"},{"$f":"IFERROR(VLOOKUP(C965,Descriptions!$I$6:$K$92,3,FALSE),\"\")","v":""},null,null,null,null,null,null,null,null,null,null,null,null,null,null,"General Fund",null,{"$f":"IFERROR(VLOOKUP(C965,Descriptions!I:M,5,FALSE),\"N\")","v":"N"},true,"NTRUE",0,{"$f":"IFERROR(VLOOKUP(D965,'Bank and Fund Details'!$B$14:$L$35,11,FALSE),\"N\")","v":"Y"},"NY"]
[null,null,null,"General Fund",null,null,null,null,null,{"$f":"VLOOKUP(D966,'Bank and Fund Details'!$B$15:$D$36,3,FALSE)","v":0},{"$f":"VLOOKUP(D966,'Bank and Fund Details'!$B$15:$C$36,2,FALSE)","v":"Unrestricted"},{"$f":"IFERROR(VLOOKUP(C966,Descriptions!$I$6:$K$92,3,FALSE),\"\")","v":""},null,null,null,null,null,null,null,null,null,null,null,null,null,null,{"$f":"CONCATENATE(C966,D966)","v":"General Fund"},null,{"$f":"IFERROR(VLOOKUP(C966,Descriptions!I:M,5,FALSE),\"N\")","v":"N"},{"$f":"ISBLANK(C966)","v":true},{"$f":"CONCATENATE(AC966,AD966)","v":"NTRUE"},{"$f":"IF(AE966=\"NFALSE\",1,0)","v":0},{"$f":"IFERROR(VLOOKUP(D966,'Bank and Fund Details'!$B$14:$L$35,11,FALSE),\"N\")","v":"Y"},{"$f":"CONCATENATE(AC966,AG966)","v":"NY"}]
[null,null,null,"General Fund",null,null,null,null,null,{"$f":"VLOOKUP(D967,'Bank and Fund Details'!$B$15:$D$36,3,FALSE)","v":0},{"$f":"VLOOKUP(D967,'Bank and Fund Details'!$B$15:$C$36,2,FALSE)","v":"Unrestricted"},{"$f":"IFERROR(VLOOKUP(C967,Descriptions!$I$6:$K$92,3,FALSE),\"\")","v":""},null,null,null,null,null,null,null,null,null,null,null,null,null,null,"General Fund",null,{"$f":"IFERROR(VLOOKUP(C967,Descriptions!I:M,5,FALSE),\"N\")","v":"N"},true,"NTRUE",0,{"$f":"IFERROR(VLOOKUP(D967,'Bank and Fund Details'!$B$14:$L$35,11,FALSE),\"N\")","v":"Y"},"NY"]
[null,null,null,"General Fund",null,null,null,null,null,{"$f":"VLOOKUP(D968,'Bank and Fund Details'!$B$15:$D$36,3,FALSE)","v":0},{"$f":"VLOOKUP(D968,'Bank and Fund Details'!$B$15:$C$36,2,FALSE)","v":"Unrestricted"},{"$f":"IFERROR(VLOOKUP(C968,Descriptions!$I$6:$K$92,3,FALSE),\"\")","v":""},null,null,null,null,null,null,null,null,null,null,null,null,null,null,"General Fund",null,{"$f":"IFERROR(VLOOKUP(C968,Descriptions!I:M,5,FALSE),\"N\")","v":"N"},true,"NTRUE",0,{"$f":"IFERROR(VLOOKUP(D968,'Bank and Fund Details'!$B$14:$L$35,11,FALSE),\"N\")","v":"Y"},"NY"]
[null,null,null,"General Fund",null,null,null,null,null,{"$f":"VLOOKUP(D969,'Bank and Fund Details'!$B$15:$D$36,3,FALSE)","v":0},{"$f":"VLOOKUP(D969,'Bank and Fund Details'!$B$15:$C$36,2,FALSE)","v":"Unrestricted"},{"$f":"IFERROR(VLOOKUP(C969,Descriptions!$I$6:$K$92,3,FALSE),\"\")","v":""},null,null,null,null,null,null,null,null,null,null,null,null,null,null,"General Fund",null,{"$f":"IFERROR(VLOOKUP(C969,Descriptions!I:M,5,FALSE),\"N\")","v":"N"},true,"NTRUE",0,{"$f":"IFERROR(VLOOKUP(D969,'Bank and Fund Details'!$B$14:$L$35,11,FALSE),\"N\")","v":"Y"},"NY"]
[null,null,null,"General Fund",null,null,null,null,null,{"$f":"VLOOKUP(D970,'Bank and Fund Details'!$B$15:$D$36,3,FALSE)","v":0},{"$f":"VLOOKUP(D970,'Bank and Fund Details'!$B$15:$C$36,2,FALSE)","v":"Unrestricted"},{"$f":"IFERROR(VLOOKUP(C970,Descriptions!$I$6:$K$92,3,FALSE),\"\")","v":""},null,null,null,null,null,null,null,null,null,null,null,null,null,null,"General Fund",null,{"$f":"IFERROR(VLOOKUP(C970,Descriptions!I:M,5,FALSE),\"N\")","v":"N"},true,"NTRUE",0,{"$f":"IFERROR(VLOOKUP(D970,'Bank and Fund Details'!$B$14:$L$35,11,FALSE),\"N\")","v":"Y"},"NY"]
[null,null,null,"General Fund",null,null,null,null,null,{"$f":"VLOOKUP(D971,'Bank and Fund Details'!$B$15:$D$36,3,FALSE)","v":0},{"$f":"VLOOKUP(D971,'Bank and Fund Details'!$B$15:$C$36,2,FALSE)","v":"Unrestricted"},{"$f":"IFERROR(VLOOKUP(C971,Descriptions!$I$6:$K$92,3,FALSE),\"\")","v":""},null,null,null,null,null,null,null,null,null,null,null,null,null,null,"General Fund",null,{"$f":"IFERROR(VLOOKUP(C971,Descriptions!I:M,5,FALSE),\"N\")","v":"N"},true,"NTRUE",0,{"$f":"IFERROR(VLOOKUP(D971,'Bank and Fund Details'!$B$14:$L$35,11,FALSE),\"N\")","v":"Y"},"NY"]
[null,null,null,"General Fund",null,null,null,null,null,{"$f":"VLOOKUP(D972,'Bank and Fund Details'!$B$15:$D$36,3,FALSE)","v":0},{"$f":"VLOOKUP(D972,'Bank and Fund Details'!$B$15:$C$36,2,FALSE)","v":"Unrestricted"},{"$f":"IFERROR(VLOOKUP(C972,Descriptions!$I$6:$K$92,3,FALSE),\"\")","v":""},null,null,null,null,null,null,null,null,null,null,null,null,null,null,"General Fund",null,{"$f":"IFERROR(VLOOKUP(C972,Descriptions!I:M,5,FALSE),\"N\")","v":"N"},true,"NTRUE",0,{"$f":"IFERROR(VLOOKUP(D972,'Bank and Fund Details'!$B$14:$L$35,11,FALSE),\"N\")","v":"Y"},"NY"]
[null,null,null,"General Fund",null,null,null,null,null,{"$f":"VLOOKUP(D973,'Bank and Fund Details'!$B$15:$D$36,3,FALSE)","v":0},{"$f":"VLOOKUP(D973,'Bank and Fund Details'!$B$15:$C$36,2,FALSE)","v":"Unrestricted"},{"$f":"IFERROR(VLOOKUP(C973,Descriptions!$I$6:$K$92,3,FALSE),\"\")","v":""},null,null,null,null,null,null,null,null,null,null,null,null,null,null,"General Fund",null,{"$f":"IFERROR(VLOOKUP(C973,Descriptions!I:M,5,FALSE),\"N\")","v":"N"},true,"NTRUE",0,{"$f":"IFERROR(VLOOKUP(D973,'Bank and Fund Details'!$B$14:$L$35,11,FALSE),\"N\")","v":"Y"},"NY"]
[null,null,null,"General Fund",null,null,null,null,null,{"$f":"VLOOKUP(D974,'Bank and Fund Details'!$B$15:$D$36,3,FALSE)","v":0},{"$f":"VLOOKUP(D974,'Bank and Fund Details'!$B$15:$C$36,2,FALSE)","v":"Unrestricted"},{"$f":"IFERROR(VLOOKUP(C974,Descriptions!$I$6:$K$92,3,FALSE),\"\")","v":""},null,null,null,null,null,null,null,null,null,null,null,null,null,null,"General Fund",null,{"$f":"IFERROR(VLOOKUP(C974,Descriptions!I:M,5,FALSE),\"N\")","v":"N"},true,"NTRUE",0,{"$f":"IFERROR(VLOOKUP(D974,'Bank and Fund Details'!$B$14:$L$35,11,FALSE),\"N\")","v":"Y"},"NY"]
[null,null,null,"General Fund",null,null,null,null,null,{"$f":"VLOOKUP(D975,'Bank and Fund Details'!$B$15:$D$36,3,FALSE)","v":0},{"$f":"VLOOKUP(D975,'Bank and Fund Details'!$B$15:$C$36,2,FALSE)","v":"Unrestricted"},{"$f":"IFERROR(VLOOKUP(C975,Descriptions!$I$6:$K$92,3,FALSE),\"\")","v":""},null,null,null,null,null,null,null,null,null,null,null,null,null,null,"General Fund",null,{"$f":"IFERROR(VLOOKUP(C975,Descriptions!I:M,5,FALSE),\"N\")","v":"N"},true,"NTRUE",0,{"$f":"IFERROR(VLOOKUP(D975,'Bank and Fund Details'!$B$14:$L$35,11,FALSE),\"N\")","v":"Y"},"NY"]
[null,null,null,"General Fund",null,null,null,null,null,{"$f":"VLOOKUP(D976,'Bank and Fund Details'!$B$15:$D$36,3,FALSE)","v":0},{"$f":"VLOOKUP(D976,'Bank and Fund Details'!$B$15:$C$36,2,FALSE)","v":"Unrestricted"},{"$f":"IFERROR(VLOOKUP(C976,Descriptions!$I$6:$K$92,3,FALSE),\"\")","v":""},null,null,null,null,null,null,null,null,null,null,null,null,null,null,"General Fund",null,{"$f":"IFERROR(VLOOKUP(C976,Descriptions!I:M,5,FALSE),\"N\")","v":"N"},true,"NTRUE",0,{"$f":"IFERROR(VLOOKUP(D976,'Bank and Fund Details'!$B$14:$L$35,11,FALSE),\"N\")","v":"Y"},"NY"]
[null,null,null,"General Fund",null,null,null,null,null,{"$f":"VLOOKUP(D977,'Bank and Fund Details'!$B$15:$D$36,3,FALSE)","v":0},{"$f":"VLOOKUP(D977,'Bank and Fund Details'!$B$15:$C$36,2,FALSE)","v":"Unrestricted"},{"$f":"IFERROR(VLOOKUP(C977,Descriptions!$I$6:$K$92,3,FALSE),\"\")","v":""},null,null,null,null,null,null,null,null,null,null,null,null,null,null,"General Fund",null,{"$f":"IFERROR(VLOOKUP(C977,Descriptions!I:M,5,FALSE),\"N\")","v":"N"},true,"NTRUE",0,{"$f":"IFERROR(VLOOKUP(D977,'Bank and Fund Details'!$B$14:$L$35,11,FALSE),\"N\")","v":"Y"},"NY"]
[null,null,null,"General Fund",null,null,null,null,null,{"$f":"VLOOKUP(D978,'Bank and Fund Details'!$B$15:$D$36,3,FALSE)","v":0},{"$f":"VLOOKUP(D978,'Bank and Fund Details'!$B$15:$C$36,2,FALSE)","v":"Unrestricted"},{"$f":"IFERROR(VLOOKUP(C978,Descriptions!$I$6:$K$92,3,FALSE),\"\")","v":""},null,null,null,null,null,null,null,null,null,null,null,null,null,null,"General Fund",null,{"$f":"IFERROR(VLOOKUP(C978,Descriptions!I:M,5,FALSE),\"N\")","v":"N"},true,"NTRUE",0,{"$f":"IFERROR(VLOOKUP(D978,'Bank and Fund Details'!$B$14:$L$35,11,FALSE),\"N\")","v":"Y"},"NY"]
[null,null,null,"General Fund",null,null,null,null,null,{"$f":"VLOOKUP(D979,'Bank and Fund Details'!$B$15:$D$36,3,FALSE)","v":0},{"$f":"VLOOKUP(D979,'Bank and Fund Details'!$B$15:$C$36,2,FALSE)","v":"Unrestricted"},{"$f":"IFERROR(VLOOKUP(C979,Descriptions!$I$6:$K$92,3,FALSE),\"\")","v":""},null,null,null,null,null,null,null,null,null,null,null,null,null,null,"General Fund",null,{"$f":"IFERROR(VLOOKUP(C979,Descriptions!I:M,5,FALSE),\"N\")","v":"N"},true,"NTRUE",0,{"$f":"IFERROR(VLOOKUP(D979,'Bank and Fund Details'!$B$14:$L$35,11,FALSE),\"N\")","v":"Y"},"NY"]
[null,null,null,"General Fund",null,null,null,null,null,{"$f":"VLOOKUP(D980,'Bank and Fund Details'!$B$15:$D$36,3,FALSE)","v":0},{"$f":"VLOOKUP(D980,'Bank and Fund Details'!$B$15:$C$36,2,FALSE)","v":"Unrestricted"},{"$f":"IFERROR(VLOOKUP(C980,Descriptions!$I$6:$K$92,3,FALSE),\"\")","v":""},null,null,null,null,null,null,null,null,null,null,null,null,null,null,"General Fund",null,{"$f":"IFERROR(VLOOKUP(C980,Descriptions!I:M,5,FALSE),\"N\")","v":"N"},true,"NTRUE",0,{"$f":"IFERROR(VLOOKUP(D980,'Bank and Fund Details'!$B$14:$L$35,11,FALSE),\"N\")","v":"Y"},"NY"]
[null,null,null,"General Fund",null,null,null,null,null,{"$f":"VLOOKUP(D981,'Bank and Fund Details'!$B$15:$D$36,3,FALSE)","v":0},{"$f":"VLOOKUP(D981,'Bank and Fund Details'!$B$15:$C$36,2,FALSE)","v":"Unrestricted"},{"$f":"IFERROR(VLOOKUP(C981,Descriptions!$I$6:$K$92,3,FALSE),\"\")","v":""},null,null,null,null,null,null,null,null,null,null,null,null,null,null,"General Fund",null,{"$f":"IFERROR(VLOOKUP(C981,Descriptions!I:M,5,FALSE),\"N\")","v":"N"},true,"NTRUE",0,{"$f":"IFERROR(VLOOKUP(D981,'Bank and Fund Details'!$B$14:$L$35,11,FALSE),\"N\")","v":"Y"},"NY"]
[null,null,null,"General Fund",null,null,null,null,null,{"$f":"VLOOKUP(D982,'Bank and Fund Details'!$B$15:$D$36,3,FALSE)","v":0},{"$f":"VLOOKUP(D982,'Bank and Fund Details'!$B$15:$C$36,2,FALSE)","v":"Unrestricted"},{"$f":"IFERROR(VLOOKUP(C982,Descriptions!$I$6:$K$92,3,FALSE),\"\")","v":""},null,null,null,null,null,null,null,null,null,null,null,null,null,null,"General Fund",null,{"$f":"IFERROR(VLOOKUP(C982,Descriptions!I:M,5,FALSE),\"N\")","v":"N"},true,"NTRUE",0,{"$f":"IFERROR(VLOOKUP(D982,'Bank and Fund Details'!$B$14:$L$35,11,FALSE),\"N\")","v":"Y"},"NY"]
[null,null,null,"General Fund",null,null,null,null,null,{"$f":"VLOOKUP(D983,'Bank and Fund Details'!$B$15:$D$36,3,FALSE)","v":0},{"$f":"VLOOKUP(D983,'Bank and Fund Details'!$B$15:$C$36,2,FALSE)","v":"Unrestricted"},{"$f":"IFERROR(VLOOKUP(C983,Descriptions!$I$6:$K$92,3,FALSE),\"\")","v":""},null,null,null,null,null,null,null,null,null,null,null,null,null,null,"General Fund",null,{"$f":"IFERROR(VLOOKUP(C983,Descriptions!I:M,5,FALSE),\"N\")","v":"N"},true,"NTRUE",0,{"$f":"IFERROR(VLOOKUP(D983,'Bank and Fund Details'!$B$14:$L$35,11,FALSE),\"N\")","v":"Y"},"NY"]
[null,null,null,"General Fund",null,null,null,null,null,{"$f":"VLOOKUP(D984,'Bank and Fund Details'!$B$15:$D$36,3,FALSE)","v":0},{"$f":"VLOOKUP(D984,'Bank and Fund Details'!$B$15:$C$36,2,FALSE)","v":"Unrestricted"},{"$f":"IFERROR(VLOOKUP(C984,Descriptions!$I$6:$K$92,3,FALSE),\"\")","v":""},null,null,null,null,null,null,null,null,null,null,null,null,null,null,"General Fund",null,{"$f":"IFERROR(VLOOKUP(C984,Descriptions!I:M,5,FALSE),\"N\")","v":"N"},true,"NTRUE",0,{"$f":"IFERROR(VLOOKUP(D984,'Bank and Fund Details'!$B$14:$L$35,11,FALSE),\"N\")","v":"Y"},"NY"]
[null,null,null,"General Fund",null,null,null,null,null,{"$f":"VLOOKUP(D985,'Bank and Fund Details'!$B$15:$D$36,3,FALSE)","v":0},{"$f":"VLOOKUP(D985,'Bank and Fund Details'!$B$15:$C$36,2,FALSE)","v":"Unrestricted"},{"$f":"IFERROR(VLOOKUP(C985,Descriptions!$I$6:$K$92,3,FALSE),\"\")","v":""},null,null,null,null,null,null,null,null,null,null,null,null,null,null,"General Fund",null,{"$f":"IFERROR(VLOOKUP(C985,Descriptions!I:M,5,FALSE),\"N\")","v":"N"},true,"NTRUE",0,{"$f":"IFERROR(VLOOKUP(D985,'Bank and Fund Details'!$B$14:$L$35,11,FALSE),\"N\")","v":"Y"},"NY"]
[null,null,null,"General Fund",null,null,null,null,null,{"$f":"VLOOKUP(D986,'Bank and Fund Details'!$B$15:$D$36,3,FALSE)","v":0},{"$f":"VLOOKUP(D986,'Bank and Fund Details'!$B$15:$C$36,2,FALSE)","v":"Unrestricted"},{"$f":"IFERROR(VLOOKUP(C986,Descriptions!$I$6:$K$92,3,FALSE),\"\")","v":""},null,null,null,null,null,null,null,null,null,null,null,null,null,null,"General Fund",null,{"$f":"IFERROR(VLOOKUP(C986,Descriptions!I:M,5,FALSE),\"N\")","v":"N"},true,"NTRUE",0,{"$f":"IFERROR(VLOOKUP(D986,'Bank and Fund Details'!$B$14:$L$35,11,FALSE),\"N\")","v":"Y"},"NY"]
[null,null,null,"General Fund",null,null,null,null,null,{"$f":"VLOOKUP(D987,'Bank and Fund Details'!$B$15:$D$36,3,FALSE)","v":0},{"$f":"VLOOKUP(D987,'Bank and Fund Details'!$B$15:$C$36,2,FALSE)","v":"Unrestricted"},{"$f":"IFERROR(VLOOKUP(C987,Descriptions!$I$6:$K$92,3,FALSE),\"\")","v":""},null,null,null,null,null,null,null,null,null,null,null,null,null,null,"General Fund",null,{"$f":"IFERROR(VLOOKUP(C987,Descriptions!I:M,5,FALSE),\"N\")","v":"N"},true,"NTRUE",0,{"$f":"IFERROR(VLOOKUP(D987,'Bank and Fund Details'!$B$14:$L$35,11,FALSE),\"N\")","v":"Y"},"NY"]
[null,null,null,"General Fund",null,null,null,null,null,{"$f":"VLOOKUP(D988,'Bank and Fund Details'!$B$15:$D$36,3,FALSE)","v":0},{"$f":"VLOOKUP(D988,'Bank and Fund Details'!$B$15:$C$36,2,FALSE)","v":"Unrestricted"},{"$f":"IFERROR(VLOOKUP(C988,Descriptions!$I$6:$K$92,3,FALSE),\"\")","v":""},null,null,null,null,null,null,null,null,null,null,null,null,null,null,"General Fund",null,{"$f":"IFERROR(VLOOKUP(C988,Descriptions!I:M,5,FALSE),\"N\")","v":"N"},true,"NTRUE",0,{"$f":"IFERROR(VLOOKUP(D988,'Bank and Fund Details'!$B$14:$L$35,11,FALSE),\"N\")","v":"Y"},"NY"]
[null,null,null,"General Fund",null,null,null,null,null,{"$f":"VLOOKUP(D989,'Bank and Fund Details'!$B$15:$D$36,3,FALSE)","v":0},{"$f":"VLOOKUP(D989,'Bank and Fund Details'!$B$15:$C$36,2,FALSE)","v":"Unrestricted"},{"$f":"IFERROR(VLOOKUP(C989,Descriptions!$I$6:$K$92,3,FALSE),\"\")","v":""},null,null,null,null,null,null,null,null,null,null,null,null,null,null,"General Fund",null,{"$f":"IFERROR(VLOOKUP(C989,Descriptions!I:M,5,FALSE),\"N\")","v":"N"},true,"NTRUE",0,{"$f":"IFERROR(VLOOKUP(D989,'Bank and Fund Details'!$B$14:$L$35,11,FALSE),\"N\")","v":"Y"},"NY"]
[null,null,null,"General Fund",null,null,null,null,null,{"$f":"VLOOKUP(D990,'Bank and Fund Details'!$B$15:$D$36,3,FALSE)","v":0},{"$f":"VLOOKUP(D990,'Bank and Fund Details'!$B$15:$C$36,2,FALSE)","v":"Unrestricted"},{"$f":"IFERROR(VLOOKUP(C990,Descriptions!$I$6:$K$92,3,FALSE),\"\")","v":""},null,null,null,null,null,null,null,null,null,null,null,null,null,null,"General Fund",null,{"$f":"IFERROR(VLOOKUP(C990,Descriptions!I:M,5,FALSE),\"N\")","v":"N"},true,"NTRUE",0,{"$f":"IFERROR(VLOOKUP(D990,'Bank and Fund Details'!$B$14:$L$35,11,FALSE),\"N\")","v":"Y"},"NY"]
[null,null,null,"General Fund",null,null,null,null,null,{"$f":"VLOOKUP(D991,'Bank and Fund Details'!$B$15:$D$36,3,FALSE)","v":0},{"$f":"VLOOKUP(D991,'Bank and Fund Details'!$B$15:$C$36,2,FALSE)","v":"Unrestricted"},{"$f":"IFERROR(VLOOKUP(C991,Descriptions!$I$6:$K$92,3,FALSE),\"\")","v":""},null,null,null,null,null,null,null,null,null,null,null,null,null,null,"General Fund",null,{"$f":"IFERROR(VLOOKUP(C991,Descriptions!I:M,5,FALSE),\"N\")","v":"N"},true,"NTRUE",0,{"$f":"IFERROR(VLOOKUP(D991,'Bank and Fund Details'!$B$14:$L$35,11,FALSE),\"N\")","v":"Y"},"NY"]
[null,null,null,"General Fund",null,null,null,null,null,{"$f":"VLOOKUP(D992,'Bank and Fund Details'!$B$15:$D$36,3,FALSE)","v":0},{"$f":"VLOOKUP(D992,'Bank and Fund Details'!$B$15:$C$36,2,FALSE)","v":"Unrestricted"},{"$f":"IFERROR(VLOOKUP(C992,Descriptions!$I$6:$K$92,3,FALSE),\"\")","v":""},null,null,null,null,null,null,null,null,null,null,null,null,null,null,"General Fund",null,{"$f":"IFERROR(VLOOKUP(C992,Descriptions!I:M,5,FALSE),\"N\")","v":"N"},true,"NTRUE",0,{"$f":"IFERROR(VLOOKUP(D992,'Bank and Fund Details'!$B$14:$L$35,11,FALSE),\"N\")","v":"Y"},"NY"]
[null,null,null,"General Fund",null,null,null,null,null,{"$f":"VLOOKUP(D993,'Bank and Fund Details'!$B$15:$D$36,3,FALSE)","v":0},{"$f":"VLOOKUP(D993,'Bank and Fund Details'!$B$15:$C$36,2,FALSE)","v":"Unrestricted"},{"$f":"IFERROR(VLOOKUP(C993,Descriptions!$I$6:$K$92,3,FALSE),\"\")","v":""},null,null,null,null,null,null,null,null,null,null,null,null,null,null,"General Fund",null,{"$f":"IFERROR(VLOOKUP(C993,Descriptions!I:M,5,FALSE),\"N\")","v":"N"},true,"NTRUE",0,{"$f":"IFERROR(VLOOKUP(D993,'Bank and Fund Details'!$B$14:$L$35,11,FALSE),\"N\")","v":"Y"},"NY"]
[null,null,null,"General Fund",null,null,null,null,null,{"$f":"VLOOKUP(D994,'Bank and Fund Details'!$B$15:$D$36,3,FALSE)","v":0},{"$f":"VLOOKUP(D994,'Bank and Fund Details'!$B$15:$C$36,2,FALSE)","v":"Unrestricted"},{"$f":"IFERROR(VLOOKUP(C994,Descriptions!$I$6:$K$92,3,FALSE),\"\")","v":""},null,null,null,null,null,null,null,null,null,null,null,null,null,null,"General Fund",null,{"$f":"IFERROR(VLOOKUP(C994,Descriptions!I:M,5,FALSE),\"N\")","v":"N"},true,"NTRUE",0,{"$f":"IFERROR(VLOOKUP(D994,'Bank and Fund Details'!$B$14:$L$35,11,FALSE),\"N\")","v":"Y"},"NY"]
[null,null,null,"General Fund",null,null,null,null,null,{"$f":"VLOOKUP(D995,'Bank and Fund Details'!$B$15:$D$36,3,FALSE)","v":0},{"$f":"VLOOKUP(D995,'Bank and Fund Details'!$B$15:$C$36,2,FALSE)","v":"Unrestricted"},{"$f":"IFERROR(VLOOKUP(C995,Descriptions!$I$6:$K$92,3,FALSE),\"\")","v":""},null,null,null,null,null,null,null,null,null,null,null,null,null,null,"General Fund",null,{"$f":"IFERROR(VLOOKUP(C995,Descriptions!I:M,5,FALSE),\"N\")","v":"N"},true,"NTRUE",0,{"$f":"IFERROR(VLOOKUP(D995,'Bank and Fund Details'!$B$14:$L$35,11,FALSE),\"N\")","v":"Y"},"NY"]
[null,null,null,"General Fund",null,null,null,null,null,{"$f":"VLOOKUP(D996,'Bank and Fund Details'!$B$15:$D$36,3,FALSE)","v":0},{"$f":"VLOOKUP(D996,'Bank and Fund Details'!$B$15:$C$36,2,FALSE)","v":"Unrestricted"},{"$f":"IFERROR(VLOOKUP(C996,Descriptions!$I$6:$K$92,3,FALSE),\"\")","v":""},null,null,null,null,null,null,null,null,null,null,null,null,null,null,"General Fund",null,{"$f":"IFERROR(VLOOKUP(C996,Descriptions!I:M,5,FALSE),\"N\")","v":"N"},true,"NTRUE",0,{"$f":"IFERROR(VLOOKUP(D996,'Bank and Fund Details'!$B$14:$L$35,11,FALSE),\"N\")","v":"Y"},"NY"]
[null,null,null,"General Fund",null,null,null,null,null,{"$f":"VLOOKUP(D997,'Bank and Fund Details'!$B$15:$D$36,3,FALSE)","v":0},{"$f":"VLOOKUP(D997,'Bank and Fund Details'!$B$15:$C$36,2,FALSE)","v":"Unrestricted"},{"$f":"IFERROR(VLOOKUP(C997,Descriptions!$I$6:$K$92,3,FALSE),\"\")","v":""},null,null,null,null,null,null,null,null,null,null,null,null,null,null,"General Fund",null,{"$f":"IFERROR(VLOOKUP(C997,Descriptions!I:M,5,FALSE),\"N\")","v":"N"},true,"NTRUE",0,{"$f":"IFERROR(VLOOKUP(D997,'Bank and Fund Details'!$B$14:$L$35,11,FALSE),\"N\")","v":"Y"},"NY"]
[null,null,null,"General Fund",null,null,null,null,null,{"$f":"VLOOKUP(D998,'Bank and Fund Details'!$B$15:$D$36,3,FALSE)","v":0},{"$f":"VLOOKUP(D998,'Bank and Fund Details'!$B$15:$C$36,2,FALSE)","v":"Unrestricted"},{"$f":"IFERROR(VLOOKUP(C998,Descriptions!$I$6:$K$92,3,FALSE),\"\")","v":""},null,null,null,null,null,null,null,null,null,null,null,null,null,null,"General Fund",null,{"$f":"IFERROR(VLOOKUP(C998,Descriptions!I:M,5,FALSE),\"N\")","v":"N"},true,"NTRUE",0,{"$f":"IFERROR(VLOOKUP(D998,'Bank and Fund Details'!$B$14:$L$35,11,FALSE),\"N\")","v":"Y"},"NY"]
[null,null,null,"General Fund",null,null,null,null,null,{"$f":"VLOOKUP(D999,'Bank and Fund Details'!$B$15:$D$36,3,FALSE)","v":0},{"$f":"VLOOKUP(D999,'Bank and Fund Details'!$B$15:$C$36,2,FALSE)","v":"Unrestricted"},{"$f":"IFERROR(VLOOKUP(C999,Descriptions!$I$6:$K$92,3,FALSE),\"\")","v":""},null,null,null,null,null,null,null,null,null,null,null,null,null,null,"General Fund",null,{"$f":"IFERROR(VLOOKUP(C999,Descriptions!I:M,5,FALSE),\"N\")","v":"N"},true,"NTRUE",0,{"$f":"IFERROR(VLOOKUP(D999,'Bank and Fund Details'!$B$14:$L$35,11,FALSE),\"N\")","v":"Y"},"NY"]
[null,null,null,"General Fund",null,null,null,null,null,{"$f":"VLOOKUP(D1000,'Bank and Fund Details'!$B$15:$D$36,3,FALSE)","v":0},{"$f":"VLOOKUP(D1000,'Bank and Fund Details'!$B$15:$C$36,2,FALSE)","v":"Unrestricted"},{"$f":"IFERROR(VLOOKUP(C1000,Descriptions!$I$6:$K$92,3,FALSE),\"\")","v":""},null,null,null,null,null,null,null,null,null,null,null,null,null,null,"General Fund",null,{"$f":"IFERROR(VLOOKUP(C1000,Descriptions!I:M,5,FALSE),\"N\")","v":"N"},true,"NTRUE",0,{"$f":"IFERROR(VLOOKUP(D1000,'Bank and Fund Details'!$B$14:$L$35,11,FALSE),\"N\")","v":"Y"},"NY"]
[null,null,null,"General Fund",null,null,null,null,null,{"$f":"VLOOKUP(D1001,'Bank and Fund Details'!$B$15:$D$36,3,FALSE)","v":0},{"$f":"VLOOKUP(D1001,'Bank and Fund Details'!$B$15:$C$36,2,FALSE)","v":"Unrestricted"},{"$f":"IFERROR(VLOOKUP(C1001,Descriptions!$I$6:$K$92,3,FALSE),\"\")","v":""},null,null,null,null,null,null,null,null,null,null,null,null,null,null,"General Fund",null,{"$f":"IFERROR(VLOOKUP(C1001,Descriptions!I:M,5,FALSE),\"N\")","v":"N"},true,"NTRUE",0,{"$f":"IFERROR(VLOOKUP(D1001,'Bank and Fund Details'!$B$14:$L$35,11,FALSE),\"N\")","v":"Y"},"NY"]
[null,null,null,"General Fund",null,null,null,null,null,{"$f":"VLOOKUP(D1002,'Bank and Fund Details'!$B$15:$D$36,3,FALSE)","v":0},{"$f":"VLOOKUP(D1002,'Bank and Fund Details'!$B$15:$C$36,2,FALSE)","v":"Unrestricted"},{"$f":"IFERROR(VLOOKUP(C1002,Descriptions!$I$6:$K$92,3,FALSE),\"\")","v":""},null,null,null,null,null,null,null,null,null,null,null,null,null,null,"General Fund",null,{"$f":"IFERROR(VLOOKUP(C1002,Descriptions!I:M,5,FALSE),\"N\")","v":"N"},true,"NTRUE",0,{"$f":"IFERROR(VLOOKUP(D1002,'Bank and Fund Details'!$B$14:$L$35,11,FALSE),\"N\")","v":"Y"},"NY"]
[null,null,null,"General Fund",null,null,null,null,null,{"$f":"VLOOKUP(D1003,'Bank and Fund Details'!$B$15:$D$36,3,FALSE)","v":0},{"$f":"VLOOKUP(D1003,'Bank and Fund Details'!$B$15:$C$36,2,FALSE)","v":"Unrestricted"},{"$f":"IFERROR(VLOOKUP(C1003,Descriptions!$I$6:$K$92,3,FALSE),\"\")","v":""},null,null,null,null,null,null,null,null,null,null,null,null,null,null,"General Fund",null,{"$f":"IFERROR(VLOOKUP(C1003,Descriptions!I:M,5,FALSE),\"N\")","v":"N"},true,"NTRUE",0,{"$f":"IFERROR(VLOOKUP(D1003,'Bank and Fund Details'!$B$14:$L$35,11,FALSE),\"N\")","v":"Y"},"NY"]
[null,null,null,"General Fund",null,null,null,null,null,{"$f":"VLOOKUP(D1004,'Bank and Fund Details'!$B$15:$D$36,3,FALSE)","v":0},{"$f":"VLOOKUP(D1004,'Bank and Fund Details'!$B$15:$C$36,2,FALSE)","v":"Unrestricted"},{"$f":"IFERROR(VLOOKUP(C1004,Descriptions!$I$6:$K$92,3,FALSE),\"\")","v":""},null,null,null,null,null,null,null,null,null,null,null,null,null,null,"General Fund",null,{"$f":"IFERROR(VLOOKUP(C1004,Descriptions!I:M,5,FALSE),\"N\")","v":"N"},true,"NTRUE",0,{"$f":"IFERROR(VLOOKUP(D1004,'Bank and Fund Details'!$B$14:$L$35,11,FALSE),\"N\")","v":"Y"},"NY"]
[null,null,null,"General Fund",null,null,null,null,null,{"$f":"VLOOKUP(D1005,'Bank and Fund Details'!$B$15:$D$36,3,FALSE)","v":0},{"$f":"VLOOKUP(D1005,'Bank and Fund Details'!$B$15:$C$36,2,FALSE)","v":"Unrestricted"},{"$f":"IFERROR(VLOOKUP(C1005,Descriptions!$I$6:$K$92,3,FALSE),\"\")","v":""},null,null,null,null,null,null,null,null,null,null,null,null,null,null,"General Fund",null,{"$f":"IFERROR(VLOOKUP(C1005,Descriptions!I:M,5,FALSE),\"N\")","v":"N"},true,"NTRUE",0,{"$f":"IFERROR(VLOOKUP(D1005,'Bank and Fund Details'!$B$14:$L$35,11,FALSE),\"N\")","v":"Y"},"NY"]
[null,null,null,"General Fund",null,null,null,null,null,{"$f":"VLOOKUP(D1006,'Bank and Fund Details'!$B$15:$D$36,3,FALSE)","v":0},{"$f":"VLOOKUP(D1006,'Bank and Fund Details'!$B$15:$C$36,2,FALSE)","v":"Unrestricted"},{"$f":"IFERROR(VLOOKUP(C1006,Descriptions!$I$6:$K$92,3,FALSE),\"\")","v":""},null,null,null,null,null,null,null,null,null,null,null,null,null,null,"General Fund",null,{"$f":"IFERROR(VLOOKUP(C1006,Descriptions!I:M,5,FALSE),\"N\")","v":"N"},true,"NTRUE",0,{"$f":"IFERROR(VLOOKUP(D1006,'Bank and Fund Details'!$B$14:$L$35,11,FALSE),\"N\")","v":"Y"},"NY"]
[null,null,null,"General Fund",null,null,null,null,null,{"$f":"VLOOKUP(D1007,'Bank and Fund Details'!$B$15:$D$36,3,FALSE)","v":0},{"$f":"VLOOKUP(D1007,'Bank and Fund Details'!$B$15:$C$36,2,FALSE)","v":"Unrestricted"},{"$f":"IFERROR(VLOOKUP(C1007,Descriptions!$I$6:$K$92,3,FALSE),\"\")","v":""},null,null,null,null,null,null,null,null,null,null,null,null,null,null,"General Fund",null,{"$f":"IFERROR(VLOOKUP(C1007,Descriptions!I:M,5,FALSE),\"N\")","v":"N"},true,"NTRUE",0,{"$f":"IFERROR(VLOOKUP(D1007,'Bank and Fund Details'!$B$14:$L$35,11,FALSE),\"N\")","v":"Y"},"NY"]
[null,null,null,"General Fund",null,null,null,null,null,{"$f":"VLOOKUP(D1008,'Bank and Fund Details'!$B$15:$D$36,3,FALSE)","v":0},{"$f":"VLOOKUP(D1008,'Bank and Fund Details'!$B$15:$C$36,2,FALSE)","v":"Unrestricted"},{"$f":"IFERROR(VLOOKUP(C1008,Descriptions!$I$6:$K$92,3,FALSE),\"\")","v":""},null,null,null,null,null,null,null,null,null,null,null,null,null,null,"General Fund",null,{"$f":"IFERROR(VLOOKUP(C1008,Descriptions!I:M,5,FALSE),\"N\")","v":"N"},true,"NTRUE",0,{"$f":"IFERROR(VLOOKUP(D1008,'Bank and Fund Details'!$B$14:$L$35,11,FALSE),\"N\")","v":"Y"},"NY"]
[null,null,null,"General Fund",null,null,null,null,null,{"$f":"VLOOKUP(D1009,'Bank and Fund Details'!$B$15:$D$36,3,FALSE)","v":0},{"$f":"VLOOKUP(D1009,'Bank and Fund Details'!$B$15:$C$36,2,FALSE)","v":"Unrestricted"},{"$f":"IFERROR(VLOOKUP(C1009,Descriptions!$I$6:$K$92,3,FALSE),\"\")","v":""},null,null,null,null,null,null,null,null,null,null,null,null,null,null,"General Fund",null,{"$f":"IFERROR(VLOOKUP(C1009,Descriptions!I:M,5,FALSE),\"N\")","v":"N"},true,"NTRUE",0,{"$f":"IFERROR(VLOOKUP(D1009,'Bank and Fund Details'!$B$14:$L$35,11,FALSE),\"N\")","v":"Y"},"NY"]
[null,null,null,"General Fund",null,null,null,null,null,{"$f":"VLOOKUP(D1010,'Bank and Fund Details'!$B$15:$D$36,3,FALSE)","v":0},{"$f":"VLOOKUP(D1010,'Bank and Fund Details'!$B$15:$C$36,2,FALSE)","v":"Unrestricted"},{"$f":"IFERROR(VLOOKUP(C1010,Descriptions!$I$6:$K$92,3,FALSE),\"\")","v":""},null,null,null,null,null,null,null,null,null,null,null,null,null,null,"General Fund",null,{"$f":"IFERROR(VLOOKUP(C1010,Descriptions!I:M,5,FALSE),\"N\")","v":"N"},true,"NTRUE",0,{"$f":"IFERROR(VLOOKUP(D1010,'Bank and Fund Details'!$B$14:$L$35,11,FALSE),\"N\")","v":"Y"},"NY"]
[null,null,null,"General Fund",null,null,null,null,null,{"$f":"VLOOKUP(D1011,'Bank and Fund Details'!$B$15:$D$36,3,FALSE)","v":0},{"$f":"VLOOKUP(D1011,'Bank and Fund Details'!$B$15:$C$36,2,FALSE)","v":"Unrestricted"},{"$f":"IFERROR(VLOOKUP(C1011,Descriptions!$I$6:$K$92,3,FALSE),\"\")","v":""},null,null,null,null,null,null,null,null,null,null,null,null,null,null,"General Fund",null,{"$f":"IFERROR(VLOOKUP(C1011,Descriptions!I:M,5,FALSE),\"N\")","v":"N"},true,"NTRUE",0,{"$f":"IFERROR(VLOOKUP(D1011,'Bank and Fund Details'!$B$14:$L$35,11,FALSE),\"N\")","v":"Y"},"NY"]
[null,null,null,"General Fund",null,null,null,null,null,{"$f":"VLOOKUP(D1012,'Bank and Fund Details'!$B$15:$D$36,3,FALSE)","v":0},{"$f":"VLOOKUP(D1012,'Bank and Fund Details'!$B$15:$C$36,2,FALSE)","v":"Unrestricted"},{"$f":"IFERROR(VLOOKUP(C1012,Descriptions!$I$6:$K$92,3,FALSE),\"\")","v":""},null,null,null,null,null,null,null,null,null,null,null,null,null,null,"General Fund",null,{"$f":"IFERROR(VLOOKUP(C1012,Descriptions!I:M,5,FALSE),\"N\")","v":"N"},true,"NTRUE",0,{"$f":"IFERROR(VLOOKUP(D1012,'Bank and Fund Details'!$B$14:$L$35,11,FALSE),\"N\")","v":"Y"},"NY"]
[null,null,null,"General Fund",null,null,null,null,null,{"$f":"VLOOKUP(D1013,'Bank and Fund Details'!$B$15:$D$36,3,FALSE)","v":0},{"$f":"VLOOKUP(D1013,'Bank and Fund Details'!$B$15:$C$36,2,FALSE)","v":"Unrestricted"},{"$f":"IFERROR(VLOOKUP(C1013,Descriptions!$I$6:$K$92,3,FALSE),\"\")","v":""},null,null,null,null,null,null,null,null,null,null,null,null,null,null,"General Fund",null,{"$f":"IFERROR(VLOOKUP(C1013,Descriptions!I:M,5,FALSE),\"N\")","v":"N"},true,"NTRUE",0,{"$f":"IFERROR(VLOOKUP(D1013,'Bank and Fund Details'!$B$14:$L$35,11,FALSE),\"N\")","v":"Y"},"NY"]
[null,null,null,"General Fund",null,null,null,null,null,{"$f":"VLOOKUP(D1014,'Bank and Fund Details'!$B$15:$D$36,3,FALSE)","v":0},{"$f":"VLOOKUP(D1014,'Bank and Fund Details'!$B$15:$C$36,2,FALSE)","v":"Unrestricted"},{"$f":"IFERROR(VLOOKUP(C1014,Descriptions!$I$6:$K$92,3,FALSE),\"\")","v":""},null,null,null,null,null,null,null,null,null,null,null,null,null,null,"General Fund",null,{"$f":"IFERROR(VLOOKUP(C1014,Descriptions!I:M,5,FALSE),\"N\")","v":"N"},true,"NTRUE",0,{"$f":"IFERROR(VLOOKUP(D1014,'Bank and Fund Details'!$B$14:$L$35,11,FALSE),\"N\")","v":"Y"},"NY"]
[null,null,null,"General Fund",null,null,null,null,null,{"$f":"VLOOKUP(D1015,'Bank and Fund Details'!$B$15:$D$36,3,FALSE)","v":0},{"$f":"VLOOKUP(D1015,'Bank and Fund Details'!$B$15:$C$36,2,FALSE)","v":"Unrestricted"},{"$f":"IFERROR(VLOOKUP(C1015,Descriptions!$I$6:$K$92,3,FALSE),\"\")","v":""},null,null,null,null,null,null,null,null,null,null,null,null,null,null,"General Fund",null,{"$f":"IFERROR(VLOOKUP(C1015,Descriptions!I:M,5,FALSE),\"N\")","v":"N"},true,"NTRUE",0,{"$f":"IFERROR(VLOOKUP(D1015,'Bank and Fund Details'!$B$14:$L$35,11,FALSE),\"N\")","v":"Y"},"NY"]
[null,null,null,"General Fund",null,null,null,null,null,{"$f":"VLOOKUP(D1016,'Bank and Fund Details'!$B$15:$D$36,3,FALSE)","v":0},{"$f":"VLOOKUP(D1016,'Bank and Fund Details'!$B$15:$C$36,2,FALSE)","v":"Unrestricted"},{"$f":"IFERROR(VLOOKUP(C1016,Descriptions!$I$6:$K$92,3,FALSE),\"\")","v":""},null,null,null,null,null,null,null,null,null,null,null,null,null,null,"General Fund",null,{"$f":"IFERROR(VLOOKUP(C1016,Descriptions!I:M,5,FALSE),\"N\")","v":"N"},true,"NTRUE",0,{"$f":"IFERROR(VLOOKUP(D1016,'Bank and Fund Details'!$B$14:$L$35,11,FALSE),\"N\")","v":"Y"},"NY"]
[null,null,null,"General Fund",null,null,null,null,null,{"$f":"VLOOKUP(D1017,'Bank and Fund Details'!$B$15:$D$36,3,FALSE)","v":0},{"$f":"VLOOKUP(D1017,'Bank and Fund Details'!$B$15:$C$36,2,FALSE)","v":"Unrestricted"},{"$f":"IFERROR(VLOOKUP(C1017,Descriptions!$I$6:$K$92,3,FALSE),\"\")","v":""},null,null,null,null,null,null,null,null,null,null,null,null,null,null,"General Fund",null,{"$f":"IFERROR(VLOOKUP(C1017,Descriptions!I:M,5,FALSE),\"N\")","v":"N"},true,"NTRUE",0,{"$f":"IFERROR(VLOOKUP(D1017,'Bank and Fund Details'!$B$14:$L$35,11,FALSE),\"N\")","v":"Y"},"NY"]
[null,null,null,"General Fund",null,null,null,null,null,{"$f":"VLOOKUP(D1018,'Bank and Fund Details'!$B$15:$D$36,3,FALSE)","v":0},{"$f":"VLOOKUP(D1018,'Bank and Fund Details'!$B$15:$C$36,2,FALSE)","v":"Unrestricted"},{"$f":"IFERROR(VLOOKUP(C1018,Descriptions!$I$6:$K$92,3,FALSE),\"\")","v":""},null,null,null,null,null,null,null,null,null,null,null,null,null,null,"General Fund",null,{"$f":"IFERROR(VLOOKUP(C1018,Descriptions!I:M,5,FALSE),\"N\")","v":"N"},true,"NTRUE",0,{"$f":"IFERROR(VLOOKUP(D1018,'Bank and Fund Details'!$B$14:$L$35,11,FALSE),\"N\")","v":"Y"},"NY"]
[null,null,null,"General Fund",null,null,null,null,null,{"$f":"VLOOKUP(D1019,'Bank and Fund Details'!$B$15:$D$36,3,FALSE)","v":0},{"$f":"VLOOKUP(D1019,'Bank and Fund Details'!$B$15:$C$36,2,FALSE)","v":"Unrestricted"},{"$f":"IFERROR(VLOOKUP(C1019,Descriptions!$I$6:$K$92,3,FALSE),\"\")","v":""},null,null,null,null,null,null,null,null,null,null,null,null,null,null,"General Fund",null,{"$f":"IFERROR(VLOOKUP(C1019,Descriptions!I:M,5,FALSE),\"N\")","v":"N"},true,"NTRUE",0,{"$f":"IFERROR(VLOOKUP(D1019,'Bank and Fund Details'!$B$14:$L$35,11,FALSE),\"N\")","v":"Y"},"NY"]
[null,null,null,"General Fund",null,null,null,null,null,{"$f":"VLOOKUP(D1020,'Bank and Fund Details'!$B$15:$D$36,3,FALSE)","v":0},{"$f":"VLOOKUP(D1020,'Bank and Fund Details'!$B$15:$C$36,2,FALSE)","v":"Unrestricted"},{"$f":"IFERROR(VLOOKUP(C1020,Descriptions!$I$6:$K$92,3,FALSE),\"\")","v":""},null,null,null,null,null,null,null,null,null,null,null,null,null,null,"General Fund",null,{"$f":"IFERROR(VLOOKUP(C1020,Descriptions!I:M,5,FALSE),\"N\")","v":"N"},true,"NTRUE",0,{"$f":"IFERROR(VLOOKUP(D1020,'Bank and Fund Details'!$B$14:$L$35,11,FALSE),\"N\")","v":"Y"},"NY"]
[null,null,null,"General Fund",null,null,null,null,null,{"$f":"VLOOKUP(D1021,'Bank and Fund Details'!$B$15:$D$36,3,FALSE)","v":0},{"$f":"VLOOKUP(D1021,'Bank and Fund Details'!$B$15:$C$36,2,FALSE)","v":"Unrestricted"},{"$f":"IFERROR(VLOOKUP(C1021,Descriptions!$I$6:$K$92,3,FALSE),\"\")","v":""},null,null,null,null,null,null,null,null,null,null,null,null,null,null,"General Fund",null,{"$f":"IFERROR(VLOOKUP(C1021,Descriptions!I:M,5,FALSE),\"N\")","v":"N"},true,"NTRUE",0,{"$f":"IFERROR(VLOOKUP(D1021,'Bank and Fund Details'!$B$14:$L$35,11,FALSE),\"N\")","v":"Y"},"NY"]
[null,null,null,"General Fund",null,null,null,null,null,{"$f":"VLOOKUP(D1022,'Bank and Fund Details'!$B$15:$D$36,3,FALSE)","v":0},{"$f":"VLOOKUP(D1022,'Bank and Fund Details'!$B$15:$C$36,2,FALSE)","v":"Unrestricted"},{"$f":"IFERROR(VLOOKUP(C1022,Descriptions!$I$6:$K$92,3,FALSE),\"\")","v":""},null,null,null,null,null,null,null,null,null,null,null,null,null,null,"General Fund",null,{"$f":"IFERROR(VLOOKUP(C1022,Descriptions!I:M,5,FALSE),\"N\")","v":"N"},true,"NTRUE",0,{"$f":"IFERROR(VLOOKUP(D1022,'Bank and Fund Details'!$B$14:$L$35,11,FALSE),\"N\")","v":"Y"},"NY"]
[null,null,null,"General Fund",null,null,null,null,null,{"$f":"VLOOKUP(D1023,'Bank and Fund Details'!$B$15:$D$36,3,FALSE)","v":0},{"$f":"VLOOKUP(D1023,'Bank and Fund Details'!$B$15:$C$36,2,FALSE)","v":"Unrestricted"},{"$f":"IFERROR(VLOOKUP(C1023,Descriptions!$I$6:$K$92,3,FALSE),\"\")","v":""},null,null,null,null,null,null,null,null,null,null,null,null,null,null,"General Fund",null,{"$f":"IFERROR(VLOOKUP(C1023,Descriptions!I:M,5,FALSE),\"N\")","v":"N"},true,"NTRUE",0,{"$f":"IFERROR(VLOOKUP(D1023,'Bank and Fund Details'!$B$14:$L$35,11,FALSE),\"N\")","v":"Y"},"NY"]
[null,null,null,"General Fund",null,null,null,null,null,{"$f":"VLOOKUP(D1024,'Bank and Fund Details'!$B$15:$D$36,3,FALSE)","v":0},{"$f":"VLOOKUP(D1024,'Bank and Fund Details'!$B$15:$C$36,2,FALSE)","v":"Unrestricted"},{"$f":"IFERROR(VLOOKUP(C1024,Descriptions!$I$6:$K$92,3,FALSE),\"\")","v":""},null,null,null,null,null,null,null,null,null,null,null,null,null,null,"General Fund",null,{"$f":"IFERROR(VLOOKUP(C1024,Descriptions!I:M,5,FALSE),\"N\")","v":"N"},true,"NTRUE",0,{"$f":"IFERROR(VLOOKUP(D1024,'Bank and Fund Details'!$B$14:$L$35,11,FALSE),\"N\")","v":"Y"},"NY"]
[null,null,null,"General Fund",null,null,null,null,null,{"$f":"VLOOKUP(D1025,'Bank and Fund Details'!$B$15:$D$36,3,FALSE)","v":0},{"$f":"VLOOKUP(D1025,'Bank and Fund Details'!$B$15:$C$36,2,FALSE)","v":"Unrestricted"},{"$f":"IFERROR(VLOOKUP(C1025,Descriptions!$I$6:$K$92,3,FALSE),\"\")","v":""},null,null,null,null,null,null,null,null,null,null,null,null,null,null,"General Fund",null,{"$f":"IFERROR(VLOOKUP(C1025,Descriptions!I:M,5,FALSE),\"N\")","v":"N"},true,"NTRUE",0,{"$f":"IFERROR(VLOOKUP(D1025,'Bank and Fund Details'!$B$14:$L$35,11,FALSE),\"N\")","v":"Y"},"NY"]
[null,null,null,"General Fund",null,null,null,null,null,{"$f":"VLOOKUP(D1026,'Bank and Fund Details'!$B$15:$D$36,3,FALSE)","v":0},{"$f":"VLOOKUP(D1026,'Bank and Fund Details'!$B$15:$C$36,2,FALSE)","v":"Unrestricted"},{"$f":"IFERROR(VLOOKUP(C1026,Descriptions!$I$6:$K$92,3,FALSE),\"\")","v":""},null,null,null,null,null,null,null,null,null,null,null,null,null,null,"General Fund",null,{"$f":"IFERROR(VLOOKUP(C1026,Descriptions!I:M,5,FALSE),\"N\")","v":"N"},true,"NTRUE",0,{"$f":"IFERROR(VLOOKUP(D1026,'Bank and Fund Details'!$B$14:$L$35,11,FALSE),\"N\")","v":"Y"},"NY"]
[null,null,null,"General Fund",null,null,null,null,null,{"$f":"VLOOKUP(D1027,'Bank and Fund Details'!$B$15:$D$36,3,FALSE)","v":0},{"$f":"VLOOKUP(D1027,'Bank and Fund Details'!$B$15:$C$36,2,FALSE)","v":"Unrestricted"},{"$f":"IFERROR(VLOOKUP(C1027,Descriptions!$I$6:$K$92,3,FALSE),\"\")","v":""},null,null,null,null,null,null,null,null,null,null,null,null,null,null,"General Fund",null,{"$f":"IFERROR(VLOOKUP(C1027,Descriptions!I:M,5,FALSE),\"N\")","v":"N"},true,"NTRUE",0,{"$f":"IFERROR(VLOOKUP(D1027,'Bank and Fund Details'!$B$14:$L$35,11,FALSE),\"N\")","v":"Y"},"NY"]
[null,null,null,"General Fund",null,null,null,null,null,{"$f":"VLOOKUP(D1028,'Bank and Fund Details'!$B$15:$D$36,3,FALSE)","v":0},{"$f":"VLOOKUP(D1028,'Bank and Fund Details'!$B$15:$C$36,2,FALSE)","v":"Unrestricted"},{"$f":"IFERROR(VLOOKUP(C1028,Descriptions!$I$6:$K$92,3,FALSE),\"\")","v":""},null,null,null,null,null,null,null,null,null,null,null,null,null,null,"General Fund",null,{"$f":"IFERROR(VLOOKUP(C1028,Descriptions!I:M,5,FALSE),\"N\")","v":"N"},true,"NTRUE",0,{"$f":"IFERROR(VLOOKUP(D1028,'Bank and Fund Details'!$B$14:$L$35,11,FALSE),\"N\")","v":"Y"},"NY"]
[null,null,null,"General Fund",null,null,null,null,null,{"$f":"VLOOKUP(D1029,'Bank and Fund Details'!$B$15:$D$36,3,FALSE)","v":0},{"$f":"VLOOKUP(D1029,'Bank and Fund Details'!$B$15:$C$36,2,FALSE)","v":"Unrestricted"},{"$f":"IFERROR(VLOOKUP(C1029,Descriptions!$I$6:$K$92,3,FALSE),\"\")","v":""},null,null,null,null,null,null,null,null,null,null,null,null,null,null,"General Fund",null,{"$f":"IFERROR(VLOOKUP(C1029,Descriptions!I:M,5,FALSE),\"N\")","v":"N"},true,"NTRUE",0,{"$f":"IFERROR(VLOOKUP(D1029,'Bank and Fund Details'!$B$14:$L$35,11,FALSE),\"N\")","v":"Y"},"NY"]
[null,null,null,"General Fund",null,null,null,null,null,{"$f":"VLOOKUP(D1030,'Bank and Fund Details'!$B$15:$D$36,3,FALSE)","v":0},{"$f":"VLOOKUP(D1030,'Bank and Fund Details'!$B$15:$C$36,2,FALSE)","v":"Unrestricted"},{"$f":"IFERROR(VLOOKUP(C1030,Descriptions!$I$6:$K$92,3,FALSE),\"\")","v":""},null,null,null,null,null,null,null,null,null,null,null,null,null,null,{"$f":"CONCATENATE(C1030,D1030)","v":"General Fund"},null,{"$f":"IFERROR(VLOOKUP(C1030,Descriptions!I:M,5,FALSE),\"N\")","v":"N"},{"$f":"ISBLANK(C1030)","v":true},{"$f":"CONCATENATE(AC1030,AD1030)","v":"NTRUE"},{"$f":"IF(AE1030=\"NFALSE\",1,0)","v":0},{"$f":"IFERROR(VLOOKUP(D1030,'Bank and Fund Details'!$B$14:$L$35,11,FALSE),\"N\")","v":"Y"},{"$f":"CONCATENATE(AC1030,AG1030)","v":"NY"}]
[null,null,null,"General Fund",null,null,null,null,null,{"$f":"VLOOKUP(D1031,'Bank and Fund Details'!$B$15:$D$36,3,FALSE)","v":0},{"$f":"VLOOKUP(D1031,'Bank and Fund Details'!$B$15:$C$36,2,FALSE)","v":"Unrestricted"},{"$f":"IFERROR(VLOOKUP(C1031,Descriptions!$I$6:$K$92,3,FALSE),\"\")","v":""},null,null,null,null,null,null,null,null,null,null,null,null,null,null,"General Fund",null,{"$f":"IFERROR(VLOOKUP(C1031,Descriptions!I:M,5,FALSE),\"N\")","v":"N"},true,"NTRUE",0,{"$f":"IFERROR(VLOOKUP(D1031,'Bank and Fund Details'!$B$14:$L$35,11,FALSE),\"N\")","v":"Y"},"NY"]
[null,null,null,"General Fund",null,null,null,null,null,{"$f":"VLOOKUP(D1032,'Bank and Fund Details'!$B$15:$D$36,3,FALSE)","v":0},{"$f":"VLOOKUP(D1032,'Bank and Fund Details'!$B$15:$C$36,2,FALSE)","v":"Unrestricted"},{"$f":"IFERROR(VLOOKUP(C1032,Descriptions!$I$6:$K$92,3,FALSE),\"\")","v":""},null,null,null,null,null,null,null,null,null,null,null,null,null,null,"General Fund",null,{"$f":"IFERROR(VLOOKUP(C1032,Descriptions!I:M,5,FALSE),\"N\")","v":"N"},true,"NTRUE",0,{"$f":"IFERROR(VLOOKUP(D1032,'Bank and Fund Details'!$B$14:$L$35,11,FALSE),\"N\")","v":"Y"},"NY"]
[null,null,null,"General Fund",null,null,null,null,null,{"$f":"VLOOKUP(D1033,'Bank and Fund Details'!$B$15:$D$36,3,FALSE)","v":0},{"$f":"VLOOKUP(D1033,'Bank and Fund Details'!$B$15:$C$36,2,FALSE)","v":"Unrestricted"},{"$f":"IFERROR(VLOOKUP(C1033,Descriptions!$I$6:$K$92,3,FALSE),\"\")","v":""},null,null,null,null,null,null,null,null,null,null,null,null,null,null,"General Fund",null,{"$f":"IFERROR(VLOOKUP(C1033,Descriptions!I:M,5,FALSE),\"N\")","v":"N"},true,"NTRUE",0,{"$f":"IFERROR(VLOOKUP(D1033,'Bank and Fund Details'!$B$14:$L$35,11,FALSE),\"N\")","v":"Y"},"NY"]
[null,null,null,"General Fund",null,null,null,null,null,{"$f":"VLOOKUP(D1034,'Bank and Fund Details'!$B$15:$D$36,3,FALSE)","v":0},{"$f":"VLOOKUP(D1034,'Bank and Fund Details'!$B$15:$C$36,2,FALSE)","v":"Unrestricted"},{"$f":"IFERROR(VLOOKUP(C1034,Descriptions!$I$6:$K$92,3,FALSE),\"\")","v":""},null,null,null,null,null,null,null,null,null,null,null,null,null,null,"General Fund",null,{"$f":"IFERROR(VLOOKUP(C1034,Descriptions!I:M,5,FALSE),\"N\")","v":"N"},true,"NTRUE",0,{"$f":"IFERROR(VLOOKUP(D1034,'Bank and Fund Details'!$B$14:$L$35,11,FALSE),\"N\")","v":"Y"},"NY"]
[null,null,null,"General Fund",null,null,null,null,null,{"$f":"VLOOKUP(D1035,'Bank and Fund Details'!$B$15:$D$36,3,FALSE)","v":0},{"$f":"VLOOKUP(D1035,'Bank and Fund Details'!$B$15:$C$36,2,FALSE)","v":"Unrestricted"},{"$f":"IFERROR(VLOOKUP(C1035,Descriptions!$I$6:$K$92,3,FALSE),\"\")","v":""},null,null,null,null,null,null,null,null,null,null,null,null,null,null,"General Fund",null,{"$f":"IFERROR(VLOOKUP(C1035,Descriptions!I:M,5,FALSE),\"N\")","v":"N"},true,"NTRUE",0,{"$f":"IFERROR(VLOOKUP(D1035,'Bank and Fund Details'!$B$14:$L$35,11,FALSE),\"N\")","v":"Y"},"NY"]
[null,null,null,"General Fund",null,null,null,null,null,{"$f":"VLOOKUP(D1036,'Bank and Fund Details'!$B$15:$D$36,3,FALSE)","v":0},{"$f":"VLOOKUP(D1036,'Bank and Fund Details'!$B$15:$C$36,2,FALSE)","v":"Unrestricted"},{"$f":"IFERROR(VLOOKUP(C1036,Descriptions!$I$6:$K$92,3,FALSE),\"\")","v":""},null,null,null,null,null,null,null,null,null,null,null,null,null,null,"General Fund",null,{"$f":"IFERROR(VLOOKUP(C1036,Descriptions!I:M,5,FALSE),\"N\")","v":"N"},true,"NTRUE",0,{"$f":"IFERROR(VLOOKUP(D1036,'Bank and Fund Details'!$B$14:$L$35,11,FALSE),\"N\")","v":"Y"},"NY"]
[null,null,null,"General Fund",null,null,null,null,null,{"$f":"VLOOKUP(D1037,'Bank and Fund Details'!$B$15:$D$36,3,FALSE)","v":0},{"$f":"VLOOKUP(D1037,'Bank and Fund Details'!$B$15:$C$36,2,FALSE)","v":"Unrestricted"},{"$f":"IFERROR(VLOOKUP(C1037,Descriptions!$I$6:$K$92,3,FALSE),\"\")","v":""},null,null,null,null,null,null,null,null,null,null,null,null,null,null,"General Fund",null,{"$f":"IFERROR(VLOOKUP(C1037,Descriptions!I:M,5,FALSE),\"N\")","v":"N"},true,"NTRUE",0,{"$f":"IFERROR(VLOOKUP(D1037,'Bank and Fund Details'!$B$14:$L$35,11,FALSE),\"N\")","v":"Y"},"NY"]
[null,null,null,"General Fund",null,null,null,null,null,{"$f":"VLOOKUP(D1038,'Bank and Fund Details'!$B$15:$D$36,3,FALSE)","v":0},{"$f":"VLOOKUP(D1038,'Bank and Fund Details'!$B$15:$C$36,2,FALSE)","v":"Unrestricted"},{"$f":"IFERROR(VLOOKUP(C1038,Descriptions!$I$6:$K$92,3,FALSE),\"\")","v":""},null,null,null,null,null,null,null,null,null,null,null,null,null,null,"General Fund",null,{"$f":"IFERROR(VLOOKUP(C1038,Descriptions!I:M,5,FALSE),\"N\")","v":"N"},true,"NTRUE",0,{"$f":"IFERROR(VLOOKUP(D1038,'Bank and Fund Details'!$B$14:$L$35,11,FALSE),\"N\")","v":"Y"},"NY"]
[null,null,null,"General Fund",null,null,null,null,null,{"$f":"VLOOKUP(D1039,'Bank and Fund Details'!$B$15:$D$36,3,FALSE)","v":0},{"$f":"VLOOKUP(D1039,'Bank and Fund Details'!$B$15:$C$36,2,FALSE)","v":"Unrestricted"},{"$f":"IFERROR(VLOOKUP(C1039,Descriptions!$I$6:$K$92,3,FALSE),\"\")","v":""},null,null,null,null,null,null,null,null,null,null,null,null,null,null,"General Fund",null,{"$f":"IFERROR(VLOOKUP(C1039,Descriptions!I:M,5,FALSE),\"N\")","v":"N"},true,"NTRUE",0,{"$f":"IFERROR(VLOOKUP(D1039,'Bank and Fund Details'!$B$14:$L$35,11,FALSE),\"N\")","v":"Y"},"NY"]
[null,null,null,"General Fund",null,null,null,null,null,{"$f":"VLOOKUP(D1040,'Bank and Fund Details'!$B$15:$D$36,3,FALSE)","v":0},{"$f":"VLOOKUP(D1040,'Bank and Fund Details'!$B$15:$C$36,2,FALSE)","v":"Unrestricted"},{"$f":"IFERROR(VLOOKUP(C1040,Descriptions!$I$6:$K$92,3,FALSE),\"\")","v":""},null,null,null,null,null,null,null,null,null,null,null,null,null,null,"General Fund",null,{"$f":"IFERROR(VLOOKUP(C1040,Descriptions!I:M,5,FALSE),\"N\")","v":"N"},true,"NTRUE",0,{"$f":"IFERROR(VLOOKUP(D1040,'Bank and Fund Details'!$B$14:$L$35,11,FALSE),\"N\")","v":"Y"},"NY"]
[null,null,null,"General Fund",null,null,null,null,null,{"$f":"VLOOKUP(D1041,'Bank and Fund Details'!$B$15:$D$36,3,FALSE)","v":0},{"$f":"VLOOKUP(D1041,'Bank and Fund Details'!$B$15:$C$36,2,FALSE)","v":"Unrestricted"},{"$f":"IFERROR(VLOOKUP(C1041,Descriptions!$I$6:$K$92,3,FALSE),\"\")","v":""},null,null,null,null,null,null,null,null,null,null,null,null,null,null,"General Fund",null,{"$f":"IFERROR(VLOOKUP(C1041,Descriptions!I:M,5,FALSE),\"N\")","v":"N"},true,"NTRUE",0,{"$f":"IFERROR(VLOOKUP(D1041,'Bank and Fund Details'!$B$14:$L$35,11,FALSE),\"N\")","v":"Y"},"NY"]
[null,null,null,"General Fund",null,null,null,null,null,{"$f":"VLOOKUP(D1042,'Bank and Fund Details'!$B$15:$D$36,3,FALSE)","v":0},{"$f":"VLOOKUP(D1042,'Bank and Fund Details'!$B$15:$C$36,2,FALSE)","v":"Unrestricted"},{"$f":"IFERROR(VLOOKUP(C1042,Descriptions!$I$6:$K$92,3,FALSE),\"\")","v":""},null,null,null,null,null,null,null,null,null,null,null,null,null,null,"General Fund",null,{"$f":"IFERROR(VLOOKUP(C1042,Descriptions!I:M,5,FALSE),\"N\")","v":"N"},true,"NTRUE",0,{"$f":"IFERROR(VLOOKUP(D1042,'Bank and Fund Details'!$B$14:$L$35,11,FALSE),\"N\")","v":"Y"},"NY"]
[null,null,null,"General Fund",null,null,null,null,null,{"$f":"VLOOKUP(D1043,'Bank and Fund Details'!$B$15:$D$36,3,FALSE)","v":0},{"$f":"VLOOKUP(D1043,'Bank and Fund Details'!$B$15:$C$36,2,FALSE)","v":"Unrestricted"},{"$f":"IFERROR(VLOOKUP(C1043,Descriptions!$I$6:$K$92,3,FALSE),\"\")","v":""},null,null,null,null,null,null,null,null,null,null,null,null,null,null,"General Fund",null,{"$f":"IFERROR(VLOOKUP(C1043,Descriptions!I:M,5,FALSE),\"N\")","v":"N"},true,"NTRUE",0,{"$f":"IFERROR(VLOOKUP(D1043,'Bank and Fund Details'!$B$14:$L$35,11,FALSE),\"N\")","v":"Y"},"NY"]
[null,null,null,"General Fund",null,null,null,null,null,{"$f":"VLOOKUP(D1044,'Bank and Fund Details'!$B$15:$D$36,3,FALSE)","v":0},{"$f":"VLOOKUP(D1044,'Bank and Fund Details'!$B$15:$C$36,2,FALSE)","v":"Unrestricted"},{"$f":"IFERROR(VLOOKUP(C1044,Descriptions!$I$6:$K$92,3,FALSE),\"\")","v":""},null,null,null,null,null,null,null,null,null,null,null,null,null,null,"General Fund",null,{"$f":"IFERROR(VLOOKUP(C1044,Descriptions!I:M,5,FALSE),\"N\")","v":"N"},true,"NTRUE",0,{"$f":"IFERROR(VLOOKUP(D1044,'Bank and Fund Details'!$B$14:$L$35,11,FALSE),\"N\")","v":"Y"},"NY"]
[null,null,null,"General Fund",null,null,null,null,null,{"$f":"VLOOKUP(D1045,'Bank and Fund Details'!$B$15:$D$36,3,FALSE)","v":0},{"$f":"VLOOKUP(D1045,'Bank and Fund Details'!$B$15:$C$36,2,FALSE)","v":"Unrestricted"},{"$f":"IFERROR(VLOOKUP(C1045,Descriptions!$I$6:$K$92,3,FALSE),\"\")","v":""},null,null,null,null,null,null,null,null,null,null,null,null,null,null,"General Fund",null,{"$f":"IFERROR(VLOOKUP(C1045,Descriptions!I:M,5,FALSE),\"N\")","v":"N"},true,"NTRUE",0,{"$f":"IFERROR(VLOOKUP(D1045,'Bank and Fund Details'!$B$14:$L$35,11,FALSE),\"N\")","v":"Y"},"NY"]
[null,null,null,"General Fund",null,null,null,null,null,{"$f":"VLOOKUP(D1046,'Bank and Fund Details'!$B$15:$D$36,3,FALSE)","v":0},{"$f":"VLOOKUP(D1046,'Bank and Fund Details'!$B$15:$C$36,2,FALSE)","v":"Unrestricted"},{"$f":"IFERROR(VLOOKUP(C1046,Descriptions!$I$6:$K$92,3,FALSE),\"\")","v":""},null,null,null,null,null,null,null,null,null,null,null,null,null,null,"General Fund",null,{"$f":"IFERROR(VLOOKUP(C1046,Descriptions!I:M,5,FALSE),\"N\")","v":"N"},true,"NTRUE",0,{"$f":"IFERROR(VLOOKUP(D1046,'Bank and Fund Details'!$B$14:$L$35,11,FALSE),\"N\")","v":"Y"},"NY"]
[null,null,null,"General Fund",null,null,null,null,null,{"$f":"VLOOKUP(D1047,'Bank and Fund Details'!$B$15:$D$36,3,FALSE)","v":0},{"$f":"VLOOKUP(D1047,'Bank and Fund Details'!$B$15:$C$36,2,FALSE)","v":"Unrestricted"},{"$f":"IFERROR(VLOOKUP(C1047,Descriptions!$I$6:$K$92,3,FALSE),\"\")","v":""},null,null,null,null,null,null,null,null,null,null,null,null,null,null,"General Fund",null,{"$f":"IFERROR(VLOOKUP(C1047,Descriptions!I:M,5,FALSE),\"N\")","v":"N"},true,"NTRUE",0,{"$f":"IFERROR(VLOOKUP(D1047,'Bank and Fund Details'!$B$14:$L$35,11,FALSE),\"N\")","v":"Y"},"NY"]
[null,null,null,"General Fund",null,null,null,null,null,{"$f":"VLOOKUP(D1048,'Bank and Fund Details'!$B$15:$D$36,3,FALSE)","v":0},{"$f":"VLOOKUP(D1048,'Bank and Fund Details'!$B$15:$C$36,2,FALSE)","v":"Unrestricted"},{"$f":"IFERROR(VLOOKUP(C1048,Descriptions!$I$6:$K$92,3,FALSE),\"\")","v":""},null,null,null,null,null,null,null,null,null,null,null,null,null,null,"General Fund",null,{"$f":"IFERROR(VLOOKUP(C1048,Descriptions!I:M,5,FALSE),\"N\")","v":"N"},true,"NTRUE",0,{"$f":"IFERROR(VLOOKUP(D1048,'Bank and Fund Details'!$B$14:$L$35,11,FALSE),\"N\")","v":"Y"},"NY"]
[null,null,null,"General Fund",null,null,null,null,null,{"$f":"VLOOKUP(D1049,'Bank and Fund Details'!$B$15:$D$36,3,FALSE)","v":0},{"$f":"VLOOKUP(D1049,'Bank and Fund Details'!$B$15:$C$36,2,FALSE)","v":"Unrestricted"},{"$f":"IFERROR(VLOOKUP(C1049,Descriptions!$I$6:$K$92,3,FALSE),\"\")","v":""},null,null,null,null,null,null,null,null,null,null,null,null,null,null,"General Fund",null,{"$f":"IFERROR(VLOOKUP(C1049,Descriptions!I:M,5,FALSE),\"N\")","v":"N"},true,"NTRUE",0,{"$f":"IFERROR(VLOOKUP(D1049,'Bank and Fund Details'!$B$14:$L$35,11,FALSE),\"N\")","v":"Y"},"NY"]
[null,null,null,"General Fund",null,null,null,null,null,{"$f":"VLOOKUP(D1050,'Bank and Fund Details'!$B$15:$D$36,3,FALSE)","v":0},{"$f":"VLOOKUP(D1050,'Bank and Fund Details'!$B$15:$C$36,2,FALSE)","v":"Unrestricted"},{"$f":"IFERROR(VLOOKUP(C1050,Descriptions!$I$6:$K$92,3,FALSE),\"\")","v":""},null,null,null,null,null,null,null,null,null,null,null,null,null,null,"General Fund",null,{"$f":"IFERROR(VLOOKUP(C1050,Descriptions!I:M,5,FALSE),\"N\")","v":"N"},true,"NTRUE",0,{"$f":"IFERROR(VLOOKUP(D1050,'Bank and Fund Details'!$B$14:$L$35,11,FALSE),\"N\")","v":"Y"},"NY"]
[null,null,null,"General Fund",null,null,null,null,null,{"$f":"VLOOKUP(D1051,'Bank and Fund Details'!$B$15:$D$36,3,FALSE)","v":0},{"$f":"VLOOKUP(D1051,'Bank and Fund Details'!$B$15:$C$36,2,FALSE)","v":"Unrestricted"},{"$f":"IFERROR(VLOOKUP(C1051,Descriptions!$I$6:$K$92,3,FALSE),\"\")","v":""},null,null,null,null,null,null,null,null,null,null,null,null,null,null,"General Fund",null,{"$f":"IFERROR(VLOOKUP(C1051,Descriptions!I:M,5,FALSE),\"N\")","v":"N"},true,"NTRUE",0,{"$f":"IFERROR(VLOOKUP(D1051,'Bank and Fund Details'!$B$14:$L$35,11,FALSE),\"N\")","v":"Y"},"NY"]
[null,null,null,"General Fund",null,null,null,null,null,{"$f":"VLOOKUP(D1052,'Bank and Fund Details'!$B$15:$D$36,3,FALSE)","v":0},{"$f":"VLOOKUP(D1052,'Bank and Fund Details'!$B$15:$C$36,2,FALSE)","v":"Unrestricted"},{"$f":"IFERROR(VLOOKUP(C1052,Descriptions!$I$6:$K$92,3,FALSE),\"\")","v":""},null,null,null,null,null,null,null,null,null,null,null,null,null,null,"General Fund",null,{"$f":"IFERROR(VLOOKUP(C1052,Descriptions!I:M,5,FALSE),\"N\")","v":"N"},true,"NTRUE",0,{"$f":"IFERROR(VLOOKUP(D1052,'Bank and Fund Details'!$B$14:$L$35,11,FALSE),\"N\")","v":"Y"},"NY"]
[null,null,null,"General Fund",null,null,null,null,null,{"$f":"VLOOKUP(D1053,'Bank and Fund Details'!$B$15:$D$36,3,FALSE)","v":0},{"$f":"VLOOKUP(D1053,'Bank and Fund Details'!$B$15:$C$36,2,FALSE)","v":"Unrestricted"},{"$f":"IFERROR(VLOOKUP(C1053,Descriptions!$I$6:$K$92,3,FALSE),\"\")","v":""},null,null,null,null,null,null,null,null,null,null,null,null,null,null,"General Fund",null,{"$f":"IFERROR(VLOOKUP(C1053,Descriptions!I:M,5,FALSE),\"N\")","v":"N"},true,"NTRUE",0,{"$f":"IFERROR(VLOOKUP(D1053,'Bank and Fund Details'!$B$14:$L$35,11,FALSE),\"N\")","v":"Y"},"NY"]
[null,null,null,"General Fund",null,null,null,null,null,{"$f":"VLOOKUP(D1054,'Bank and Fund Details'!$B$15:$D$36,3,FALSE)","v":0},{"$f":"VLOOKUP(D1054,'Bank and Fund Details'!$B$15:$C$36,2,FALSE)","v":"Unrestricted"},{"$f":"IFERROR(VLOOKUP(C1054,Descriptions!$I$6:$K$92,3,FALSE),\"\")","v":""},null,null,null,null,null,null,null,null,null,null,null,null,null,null,"General Fund",null,{"$f":"IFERROR(VLOOKUP(C1054,Descriptions!I:M,5,FALSE),\"N\")","v":"N"},true,"NTRUE",0,{"$f":"IFERROR(VLOOKUP(D1054,'Bank and Fund Details'!$B$14:$L$35,11,FALSE),\"N\")","v":"Y"},"NY"]
[null,null,null,"General Fund",null,null,null,null,null,{"$f":"VLOOKUP(D1055,'Bank and Fund Details'!$B$15:$D$36,3,FALSE)","v":0},{"$f":"VLOOKUP(D1055,'Bank and Fund Details'!$B$15:$C$36,2,FALSE)","v":"Unrestricted"},{"$f":"IFERROR(VLOOKUP(C1055,Descriptions!$I$6:$K$92,3,FALSE),\"\")","v":""},null,null,null,null,null,null,null,null,null,null,null,null,null,null,"General Fund",null,{"$f":"IFERROR(VLOOKUP(C1055,Descriptions!I:M,5,FALSE),\"N\")","v":"N"},true,"NTRUE",0,{"$f":"IFERROR(VLOOKUP(D1055,'Bank and Fund Details'!$B$14:$L$35,11,FALSE),\"N\")","v":"Y"},"NY"]
[null,null,null,"General Fund",null,null,null,null,null,{"$f":"VLOOKUP(D1056,'Bank and Fund Details'!$B$15:$D$36,3,FALSE)","v":0},{"$f":"VLOOKUP(D1056,'Bank and Fund Details'!$B$15:$C$36,2,FALSE)","v":"Unrestricted"},{"$f":"IFERROR(VLOOKUP(C1056,Descriptions!$I$6:$K$92,3,FALSE),\"\")","v":""},null,null,null,null,null,null,null,null,null,null,null,null,null,null,"General Fund",null,{"$f":"IFERROR(VLOOKUP(C1056,Descriptions!I:M,5,FALSE),\"N\")","v":"N"},true,"NTRUE",0,{"$f":"IFERROR(VLOOKUP(D1056,'Bank and Fund Details'!$B$14:$L$35,11,FALSE),\"N\")","v":"Y"},"NY"]
[null,null,null,"General Fund",null,null,null,null,null,{"$f":"VLOOKUP(D1057,'Bank and Fund Details'!$B$15:$D$36,3,FALSE)","v":0},{"$f":"VLOOKUP(D1057,'Bank and Fund Details'!$B$15:$C$36,2,FALSE)","v":"Unrestricted"},{"$f":"IFERROR(VLOOKUP(C1057,Descriptions!$I$6:$K$92,3,FALSE),\"\")","v":""},null,null,null,null,null,null,null,null,null,null,null,null,null,null,"General Fund",null,{"$f":"IFERROR(VLOOKUP(C1057,Descriptions!I:M,5,FALSE),\"N\")","v":"N"},true,"NTRUE",0,{"$f":"IFERROR(VLOOKUP(D1057,'Bank and Fund Details'!$B$14:$L$35,11,FALSE),\"N\")","v":"Y"},"NY"]
[null,null,null,"General Fund",null,null,null,null,null,{"$f":"VLOOKUP(D1058,'Bank and Fund Details'!$B$15:$D$36,3,FALSE)","v":0},{"$f":"VLOOKUP(D1058,'Bank and Fund Details'!$B$15:$C$36,2,FALSE)","v":"Unrestricted"},{"$f":"IFERROR(VLOOKUP(C1058,Descriptions!$I$6:$K$92,3,FALSE),\"\")","v":""},null,null,null,null,null,null,null,null,null,null,null,null,null,null,"General Fund",null,{"$f":"IFERROR(VLOOKUP(C1058,Descriptions!I:M,5,FALSE),\"N\")","v":"N"},true,"NTRUE",0,{"$f":"IFERROR(VLOOKUP(D1058,'Bank and Fund Details'!$B$14:$L$35,11,FALSE),\"N\")","v":"Y"},"NY"]
[null,null,null,"General Fund",null,null,null,null,null,{"$f":"VLOOKUP(D1059,'Bank and Fund Details'!$B$15:$D$36,3,FALSE)","v":0},{"$f":"VLOOKUP(D1059,'Bank and Fund Details'!$B$15:$C$36,2,FALSE)","v":"Unrestricted"},{"$f":"IFERROR(VLOOKUP(C1059,Descriptions!$I$6:$K$92,3,FALSE),\"\")","v":""},null,null,null,null,null,null,null,null,null,null,null,null,null,null,"General Fund",null,{"$f":"IFERROR(VLOOKUP(C1059,Descriptions!I:M,5,FALSE),\"N\")","v":"N"},true,"NTRUE",0,{"$f":"IFERROR(VLOOKUP(D1059,'Bank and Fund Details'!$B$14:$L$35,11,FALSE),\"N\")","v":"Y"},"NY"]
[null,null,null,"General Fund",null,null,null,null,null,{"$f":"VLOOKUP(D1060,'Bank and Fund Details'!$B$15:$D$36,3,FALSE)","v":0},{"$f":"VLOOKUP(D1060,'Bank and Fund Details'!$B$15:$C$36,2,FALSE)","v":"Unrestricted"},{"$f":"IFERROR(VLOOKUP(C1060,Descriptions!$I$6:$K$92,3,FALSE),\"\")","v":""},null,null,null,null,null,null,null,null,null,null,null,null,null,null,"General Fund",null,{"$f":"IFERROR(VLOOKUP(C1060,Descriptions!I:M,5,FALSE),\"N\")","v":"N"},true,"NTRUE",0,{"$f":"IFERROR(VLOOKUP(D1060,'Bank and Fund Details'!$B$14:$L$35,11,FALSE),\"N\")","v":"Y"},"NY"]
[null,null,null,"General Fund",null,null,null,null,null,{"$f":"VLOOKUP(D1061,'Bank and Fund Details'!$B$15:$D$36,3,FALSE)","v":0},{"$f":"VLOOKUP(D1061,'Bank and Fund Details'!$B$15:$C$36,2,FALSE)","v":"Unrestricted"},{"$f":"IFERROR(VLOOKUP(C1061,Descriptions!$I$6:$K$92,3,FALSE),\"\")","v":""},null,null,null,null,null,null,null,null,null,null,null,null,null,null,"General Fund",null,{"$f":"IFERROR(VLOOKUP(C1061,Descriptions!I:M,5,FALSE),\"N\")","v":"N"},true,"NTRUE",0,{"$f":"IFERROR(VLOOKUP(D1061,'Bank and Fund Details'!$B$14:$L$35,11,FALSE),\"N\")","v":"Y"},"NY"]
[null,null,null,"General Fund",null,null,null,null,null,{"$f":"VLOOKUP(D1062,'Bank and Fund Details'!$B$15:$D$36,3,FALSE)","v":0},{"$f":"VLOOKUP(D1062,'Bank and Fund Details'!$B$15:$C$36,2,FALSE)","v":"Unrestricted"},{"$f":"IFERROR(VLOOKUP(C1062,Descriptions!$I$6:$K$92,3,FALSE),\"\")","v":""},null,null,null,null,null,null,null,null,null,null,null,null,null,null,"General Fund",null,{"$f":"IFERROR(VLOOKUP(C1062,Descriptions!I:M,5,FALSE),\"N\")","v":"N"},true,"NTRUE",0,{"$f":"IFERROR(VLOOKUP(D1062,'Bank and Fund Details'!$B$14:$L$35,11,FALSE),\"N\")","v":"Y"},"NY"]
[null,null,null,"General Fund",null,null,null,null,null,{"$f":"VLOOKUP(D1063,'Bank and Fund Details'!$B$15:$D$36,3,FALSE)","v":0},{"$f":"VLOOKUP(D1063,'Bank and Fund Details'!$B$15:$C$36,2,FALSE)","v":"Unrestricted"},{"$f":"IFERROR(VLOOKUP(C1063,Descriptions!$I$6:$K$92,3,FALSE),\"\")","v":""},null,null,null,null,null,null,null,null,null,null,null,null,null,null,"General Fund",null,{"$f":"IFERROR(VLOOKUP(C1063,Descriptions!I:M,5,FALSE),\"N\")","v":"N"},true,"NTRUE",0,{"$f":"IFERROR(VLOOKUP(D1063,'Bank and Fund Details'!$B$14:$L$35,11,FALSE),\"N\")","v":"Y"},"NY"]
[null,null,null,"General Fund",null,null,null,null,null,{"$f":"VLOOKUP(D1064,'Bank and Fund Details'!$B$15:$D$36,3,FALSE)","v":0},{"$f":"VLOOKUP(D1064,'Bank and Fund Details'!$B$15:$C$36,2,FALSE)","v":"Unrestricted"},{"$f":"IFERROR(VLOOKUP(C1064,Descriptions!$I$6:$K$92,3,FALSE),\"\")","v":""},null,null,null,null,null,null,null,null,null,null,null,null,null,null,"General Fund",null,{"$f":"IFERROR(VLOOKUP(C1064,Descriptions!I:M,5,FALSE),\"N\")","v":"N"},true,"NTRUE",0,{"$f":"IFERROR(VLOOKUP(D1064,'Bank and Fund Details'!$B$14:$L$35,11,FALSE),\"N\")","v":"Y"},"NY"]
[null,null,null,"General Fund",null,null,null,null,null,{"$f":"VLOOKUP(D1065,'Bank and Fund Details'!$B$15:$D$36,3,FALSE)","v":0},{"$f":"VLOOKUP(D1065,'Bank and Fund Details'!$B$15:$C$36,2,FALSE)","v":"Unrestricted"},{"$f":"IFERROR(VLOOKUP(C1065,Descriptions!$I$6:$K$92,3,FALSE),\"\")","v":""},null,null,null,null,null,null,null,null,null,null,null,null,null,null,"General Fund",null,{"$f":"IFERROR(VLOOKUP(C1065,Descriptions!I:M,5,FALSE),\"N\")","v":"N"},true,"NTRUE",0,{"$f":"IFERROR(VLOOKUP(D1065,'Bank and Fund Details'!$B$14:$L$35,11,FALSE),\"N\")","v":"Y"},"NY"]
[null,null,null,"General Fund",null,null,null,null,null,{"$f":"VLOOKUP(D1066,'Bank and Fund Details'!$B$15:$D$36,3,FALSE)","v":0},{"$f":"VLOOKUP(D1066,'Bank and Fund Details'!$B$15:$C$36,2,FALSE)","v":"Unrestricted"},{"$f":"IFERROR(VLOOKUP(C1066,Descriptions!$I$6:$K$92,3,FALSE),\"\")","v":""},null,null,null,null,null,null,null,null,null,null,null,null,null,null,"General Fund",null,{"$f":"IFERROR(VLOOKUP(C1066,Descriptions!I:M,5,FALSE),\"N\")","v":"N"},true,"NTRUE",0,{"$f":"IFERROR(VLOOKUP(D1066,'Bank and Fund Details'!$B$14:$L$35,11,FALSE),\"N\")","v":"Y"},"NY"]
[null,null,null,"General Fund",null,null,null,null,null,{"$f":"VLOOKUP(D1067,'Bank and Fund Details'!$B$15:$D$36,3,FALSE)","v":0},{"$f":"VLOOKUP(D1067,'Bank and Fund Details'!$B$15:$C$36,2,FALSE)","v":"Unrestricted"},{"$f":"IFERROR(VLOOKUP(C1067,Descriptions!$I$6:$K$92,3,FALSE),\"\")","v":""},null,null,null,null,null,null,null,null,null,null,null,null,null,null,"General Fund",null,{"$f":"IFERROR(VLOOKUP(C1067,Descriptions!I:M,5,FALSE),\"N\")","v":"N"},true,"NTRUE",0,{"$f":"IFERROR(VLOOKUP(D1067,'Bank and Fund Details'!$B$14:$L$35,11,FALSE),\"N\")","v":"Y"},"NY"]
[null,null,null,"General Fund",null,null,null,null,null,{"$f":"VLOOKUP(D1068,'Bank and Fund Details'!$B$15:$D$36,3,FALSE)","v":0},{"$f":"VLOOKUP(D1068,'Bank and Fund Details'!$B$15:$C$36,2,FALSE)","v":"Unrestricted"},{"$f":"IFERROR(VLOOKUP(C1068,Descriptions!$I$6:$K$92,3,FALSE),\"\")","v":""},null,null,null,null,null,null,null,null,null,null,null,null,null,null,"General Fund",null,{"$f":"IFERROR(VLOOKUP(C1068,Descriptions!I:M,5,FALSE),\"N\")","v":"N"},true,"NTRUE",0,{"$f":"IFERROR(VLOOKUP(D1068,'Bank and Fund Details'!$B$14:$L$35,11,FALSE),\"N\")","v":"Y"},"NY"]
[null,null,null,"General Fund",null,null,null,null,null,{"$f":"VLOOKUP(D1069,'Bank and Fund Details'!$B$15:$D$36,3,FALSE)","v":0},{"$f":"VLOOKUP(D1069,'Bank and Fund Details'!$B$15:$C$36,2,FALSE)","v":"Unrestricted"},{"$f":"IFERROR(VLOOKUP(C1069,Descriptions!$I$6:$K$92,3,FALSE),\"\")","v":""},null,null,null,null,null,null,null,null,null,null,null,null,null,null,"General Fund",null,{"$f":"IFERROR(VLOOKUP(C1069,Descriptions!I:M,5,FALSE),\"N\")","v":"N"},true,"NTRUE",0,{"$f":"IFERROR(VLOOKUP(D1069,'Bank and Fund Details'!$B$14:$L$35,11,FALSE),\"N\")","v":"Y"},"NY"]
[null,null,null,"General Fund",null,null,null,null,null,{"$f":"VLOOKUP(D1070,'Bank and Fund Details'!$B$15:$D$36,3,FALSE)","v":0},{"$f":"VLOOKUP(D1070,'Bank and Fund Details'!$B$15:$C$36,2,FALSE)","v":"Unrestricted"},{"$f":"IFERROR(VLOOKUP(C1070,Descriptions!$I$6:$K$92,3,FALSE),\"\")","v":""},null,null,null,null,null,null,null,null,null,null,null,null,null,null,"General Fund",null,{"$f":"IFERROR(VLOOKUP(C1070,Descriptions!I:M,5,FALSE),\"N\")","v":"N"},true,"NTRUE",0,{"$f":"IFERROR(VLOOKUP(D1070,'Bank and Fund Details'!$B$14:$L$35,11,FALSE),\"N\")","v":"Y"},"NY"]
[null,null,null,"General Fund",null,null,null,null,null,{"$f":"VLOOKUP(D1071,'Bank and Fund Details'!$B$15:$D$36,3,FALSE)","v":0},{"$f":"VLOOKUP(D1071,'Bank and Fund Details'!$B$15:$C$36,2,FALSE)","v":"Unrestricted"},{"$f":"IFERROR(VLOOKUP(C1071,Descriptions!$I$6:$K$92,3,FALSE),\"\")","v":""},null,null,null,null,null,null,null,null,null,null,null,null,null,null,"General Fund",null,{"$f":"IFERROR(VLOOKUP(C1071,Descriptions!I:M,5,FALSE),\"N\")","v":"N"},true,"NTRUE",0,{"$f":"IFERROR(VLOOKUP(D1071,'Bank and Fund Details'!$B$14:$L$35,11,FALSE),\"N\")","v":"Y"},"NY"]
[null,null,null,"General Fund",null,null,null,null,null,{"$f":"VLOOKUP(D1072,'Bank and Fund Details'!$B$15:$D$36,3,FALSE)","v":0},{"$f":"VLOOKUP(D1072,'Bank and Fund Details'!$B$15:$C$36,2,FALSE)","v":"Unrestricted"},{"$f":"IFERROR(VLOOKUP(C1072,Descriptions!$I$6:$K$92,3,FALSE),\"\")","v":""},null,null,null,null,null,null,null,null,null,null,null,null,null,null,"General Fund",null,{"$f":"IFERROR(VLOOKUP(C1072,Descriptions!I:M,5,FALSE),\"N\")","v":"N"},true,"NTRUE",0,{"$f":"IFERROR(VLOOKUP(D1072,'Bank and Fund Details'!$B$14:$L$35,11,FALSE),\"N\")","v":"Y"},"NY"]
[null,null,null,"General Fund",null,null,null,null,null,{"$f":"VLOOKUP(D1073,'Bank and Fund Details'!$B$15:$D$36,3,FALSE)","v":0},{"$f":"VLOOKUP(D1073,'Bank and Fund Details'!$B$15:$C$36,2,FALSE)","v":"Unrestricted"},{"$f":"IFERROR(VLOOKUP(C1073,Descriptions!$I$6:$K$92,3,FALSE),\"\")","v":""},null,null,null,null,null,null,null,null,null,null,null,null,null,null,"General Fund",null,{"$f":"IFERROR(VLOOKUP(C1073,Descriptions!I:M,5,FALSE),\"N\")","v":"N"},true,"NTRUE",0,{"$f":"IFERROR(VLOOKUP(D1073,'Bank and Fund Details'!$B$14:$L$35,11,FALSE),\"N\")","v":"Y"},"NY"]
[null,null,null,"General Fund",null,null,null,null,null,{"$f":"VLOOKUP(D1074,'Bank and Fund Details'!$B$15:$D$36,3,FALSE)","v":0},{"$f":"VLOOKUP(D1074,'Bank and Fund Details'!$B$15:$C$36,2,FALSE)","v":"Unrestricted"},{"$f":"IFERROR(VLOOKUP(C1074,Descriptions!$I$6:$K$92,3,FALSE),\"\")","v":""},null,null,null,null,null,null,null,null,null,null,null,null,null,null,"General Fund",null,{"$f":"IFERROR(VLOOKUP(C1074,Descriptions!I:M,5,FALSE),\"N\")","v":"N"},true,"NTRUE",0,{"$f":"IFERROR(VLOOKUP(D1074,'Bank and Fund Details'!$B$14:$L$35,11,FALSE),\"N\")","v":"Y"},"NY"]
[null,null,null,"General Fund",null,null,null,null,null,{"$f":"VLOOKUP(D1075,'Bank and Fund Details'!$B$15:$D$36,3,FALSE)","v":0},{"$f":"VLOOKUP(D1075,'Bank and Fund Details'!$B$15:$C$36,2,FALSE)","v":"Unrestricted"},{"$f":"IFERROR(VLOOKUP(C1075,Descriptions!$I$6:$K$92,3,FALSE),\"\")","v":""},null,null,null,null,null,null,null,null,null,null,null,null,null,null,"General Fund",null,{"$f":"IFERROR(VLOOKUP(C1075,Descriptions!I:M,5,FALSE),\"N\")","v":"N"},true,"NTRUE",0,{"$f":"IFERROR(VLOOKUP(D1075,'Bank and Fund Details'!$B$14:$L$35,11,FALSE),\"N\")","v":"Y"},"NY"]
[null,null,null,"General Fund",null,null,null,null,null,{"$f":"VLOOKUP(D1076,'Bank and Fund Details'!$B$15:$D$36,3,FALSE)","v":0},{"$f":"VLOOKUP(D1076,'Bank and Fund Details'!$B$15:$C$36,2,FALSE)","v":"Unrestricted"},{"$f":"IFERROR(VLOOKUP(C1076,Descriptions!$I$6:$K$92,3,FALSE),\"\")","v":""},null,null,null,null,null,null,null,null,null,null,null,null,null,null,"General Fund",null,{"$f":"IFERROR(VLOOKUP(C1076,Descriptions!I:M,5,FALSE),\"N\")","v":"N"},true,"NTRUE",0,{"$f":"IFERROR(VLOOKUP(D1076,'Bank and Fund Details'!$B$14:$L$35,11,FALSE),\"N\")","v":"Y"},"NY"]
[null,null,null,"General Fund",null,null,null,null,null,{"$f":"VLOOKUP(D1077,'Bank and Fund Details'!$B$15:$D$36,3,FALSE)","v":0},{"$f":"VLOOKUP(D1077,'Bank and Fund Details'!$B$15:$C$36,2,FALSE)","v":"Unrestricted"},{"$f":"IFERROR(VLOOKUP(C1077,Descriptions!$I$6:$K$92,3,FALSE),\"\")","v":""},null,null,null,null,null,null,null,null,null,null,null,null,null,null,"General Fund",null,{"$f":"IFERROR(VLOOKUP(C1077,Descriptions!I:M,5,FALSE),\"N\")","v":"N"},true,"NTRUE",0,{"$f":"IFERROR(VLOOKUP(D1077,'Bank and Fund Details'!$B$14:$L$35,11,FALSE),\"N\")","v":"Y"},"NY"]
[null,null,null,"General Fund",null,null,null,null,null,{"$f":"VLOOKUP(D1078,'Bank and Fund Details'!$B$15:$D$36,3,FALSE)","v":0},{"$f":"VLOOKUP(D1078,'Bank and Fund Details'!$B$15:$C$36,2,FALSE)","v":"Unrestricted"},{"$f":"IFERROR(VLOOKUP(C1078,Descriptions!$I$6:$K$92,3,FALSE),\"\")","v":""},null,null,null,null,null,null,null,null,null,null,null,null,null,null,"General Fund",null,{"$f":"IFERROR(VLOOKUP(C1078,Descriptions!I:M,5,FALSE),\"N\")","v":"N"},true,"NTRUE",0,{"$f":"IFERROR(VLOOKUP(D1078,'Bank and Fund Details'!$B$14:$L$35,11,FALSE),\"N\")","v":"Y"},"NY"]
[null,null,null,"General Fund",null,null,null,null,null,{"$f":"VLOOKUP(D1079,'Bank and Fund Details'!$B$15:$D$36,3,FALSE)","v":0},{"$f":"VLOOKUP(D1079,'Bank and Fund Details'!$B$15:$C$36,2,FALSE)","v":"Unrestricted"},{"$f":"IFERROR(VLOOKUP(C1079,Descriptions!$I$6:$K$92,3,FALSE),\"\")","v":""},null,null,null,null,null,null,null,null,null,null,null,null,null,null,"General Fund",null,{"$f":"IFERROR(VLOOKUP(C1079,Descriptions!I:M,5,FALSE),\"N\")","v":"N"},true,"NTRUE",0,{"$f":"IFERROR(VLOOKUP(D1079,'Bank and Fund Details'!$B$14:$L$35,11,FALSE),\"N\")","v":"Y"},"NY"]
[null,null,null,"General Fund",null,null,null,null,null,{"$f":"VLOOKUP(D1080,'Bank and Fund Details'!$B$15:$D$36,3,FALSE)","v":0},{"$f":"VLOOKUP(D1080,'Bank and Fund Details'!$B$15:$C$36,2,FALSE)","v":"Unrestricted"},{"$f":"IFERROR(VLOOKUP(C1080,Descriptions!$I$6:$K$92,3,FALSE),\"\")","v":""},null,null,null,null,null,null,null,null,null,null,null,null,null,null,"General Fund",null,{"$f":"IFERROR(VLOOKUP(C1080,Descriptions!I:M,5,FALSE),\"N\")","v":"N"},true,"NTRUE",0,{"$f":"IFERROR(VLOOKUP(D1080,'Bank and Fund Details'!$B$14:$L$35,11,FALSE),\"N\")","v":"Y"},"NY"]
[null,null,null,"General Fund",null,null,null,null,null,{"$f":"VLOOKUP(D1081,'Bank and Fund Details'!$B$15:$D$36,3,FALSE)","v":0},{"$f":"VLOOKUP(D1081,'Bank and Fund Details'!$B$15:$C$36,2,FALSE)","v":"Unrestricted"},{"$f":"IFERROR(VLOOKUP(C1081,Descriptions!$I$6:$K$92,3,FALSE),\"\")","v":""},null,null,null,null,null,null,null,null,null,null,null,null,null,null,"General Fund",null,{"$f":"IFERROR(VLOOKUP(C1081,Descriptions!I:M,5,FALSE),\"N\")","v":"N"},true,"NTRUE",0,{"$f":"IFERROR(VLOOKUP(D1081,'Bank and Fund Details'!$B$14:$L$35,11,FALSE),\"N\")","v":"Y"},"NY"]
[null,null,null,"General Fund",null,null,null,null,null,{"$f":"VLOOKUP(D1082,'Bank and Fund Details'!$B$15:$D$36,3,FALSE)","v":0},{"$f":"VLOOKUP(D1082,'Bank and Fund Details'!$B$15:$C$36,2,FALSE)","v":"Unrestricted"},{"$f":"IFERROR(VLOOKUP(C1082,Descriptions!$I$6:$K$92,3,FALSE),\"\")","v":""},null,null,null,null,null,null,null,null,null,null,null,null,null,null,"General Fund",null,{"$f":"IFERROR(VLOOKUP(C1082,Descriptions!I:M,5,FALSE),\"N\")","v":"N"},true,"NTRUE",0,{"$f":"IFERROR(VLOOKUP(D1082,'Bank and Fund Details'!$B$14:$L$35,11,FALSE),\"N\")","v":"Y"},"NY"]
[null,null,null,"General Fund",null,null,null,null,null,{"$f":"VLOOKUP(D1083,'Bank and Fund Details'!$B$15:$D$36,3,FALSE)","v":0},{"$f":"VLOOKUP(D1083,'Bank and Fund Details'!$B$15:$C$36,2,FALSE)","v":"Unrestricted"},{"$f":"IFERROR(VLOOKUP(C1083,Descriptions!$I$6:$K$92,3,FALSE),\"\")","v":""},null,null,null,null,null,null,null,null,null,null,null,null,null,null,"General Fund",null,{"$f":"IFERROR(VLOOKUP(C1083,Descriptions!I:M,5,FALSE),\"N\")","v":"N"},true,"NTRUE",0,{"$f":"IFERROR(VLOOKUP(D1083,'Bank and Fund Details'!$B$14:$L$35,11,FALSE),\"N\")","v":"Y"},"NY"]
[null,null,null,"General Fund",null,null,null,null,null,{"$f":"VLOOKUP(D1084,'Bank and Fund Details'!$B$15:$D$36,3,FALSE)","v":0},{"$f":"VLOOKUP(D1084,'Bank and Fund Details'!$B$15:$C$36,2,FALSE)","v":"Unrestricted"},{"$f":"IFERROR(VLOOKUP(C1084,Descriptions!$I$6:$K$92,3,FALSE),\"\")","v":""},null,null,null,null,null,null,null,null,null,null,null,null,null,null,"General Fund",null,{"$f":"IFERROR(VLOOKUP(C1084,Descriptions!I:M,5,FALSE),\"N\")","v":"N"},true,"NTRUE",0,{"$f":"IFERROR(VLOOKUP(D1084,'Bank and Fund Details'!$B$14:$L$35,11,FALSE),\"N\")","v":"Y"},"NY"]
[null,null,null,"General Fund",null,null,null,null,null,{"$f":"VLOOKUP(D1085,'Bank and Fund Details'!$B$15:$D$36,3,FALSE)","v":0},{"$f":"VLOOKUP(D1085,'Bank and Fund Details'!$B$15:$C$36,2,FALSE)","v":"Unrestricted"},{"$f":"IFERROR(VLOOKUP(C1085,Descriptions!$I$6:$K$92,3,FALSE),\"\")","v":""},null,null,null,null,null,null,null,null,null,null,null,null,null,null,"General Fund",null,{"$f":"IFERROR(VLOOKUP(C1085,Descriptions!I:M,5,FALSE),\"N\")","v":"N"},true,"NTRUE",0,{"$f":"IFERROR(VLOOKUP(D1085,'Bank and Fund Details'!$B$14:$L$35,11,FALSE),\"N\")","v":"Y"},"NY"]
[null,null,null,"General Fund",null,null,null,null,null,{"$f":"VLOOKUP(D1086,'Bank and Fund Details'!$B$15:$D$36,3,FALSE)","v":0},{"$f":"VLOOKUP(D1086,'Bank and Fund Details'!$B$15:$C$36,2,FALSE)","v":"Unrestricted"},{"$f":"IFERROR(VLOOKUP(C1086,Descriptions!$I$6:$K$92,3,FALSE),\"\")","v":""},null,null,null,null,null,null,null,null,null,null,null,null,null,null,"General Fund",null,{"$f":"IFERROR(VLOOKUP(C1086,Descriptions!I:M,5,FALSE),\"N\")","v":"N"},true,"NTRUE",0,{"$f":"IFERROR(VLOOKUP(D1086,'Bank and Fund Details'!$B$14:$L$35,11,FALSE),\"N\")","v":"Y"},"NY"]
[null,null,null,"General Fund",null,null,null,null,null,{"$f":"VLOOKUP(D1087,'Bank and Fund Details'!$B$15:$D$36,3,FALSE)","v":0},{"$f":"VLOOKUP(D1087,'Bank and Fund Details'!$B$15:$C$36,2,FALSE)","v":"Unrestricted"},{"$f":"IFERROR(VLOOKUP(C1087,Descriptions!$I$6:$K$92,3,FALSE),\"\")","v":""},null,null,null,null,null,null,null,null,null,null,null,null,null,null,"General Fund",null,{"$f":"IFERROR(VLOOKUP(C1087,Descriptions!I:M,5,FALSE),\"N\")","v":"N"},true,"NTRUE",0,{"$f":"IFERROR(VLOOKUP(D1087,'Bank and Fund Details'!$B$14:$L$35,11,FALSE),\"N\")","v":"Y"},"NY"]
[null,null,null,"General Fund",null,null,null,null,null,{"$f":"VLOOKUP(D1088,'Bank and Fund Details'!$B$15:$D$36,3,FALSE)","v":0},{"$f":"VLOOKUP(D1088,'Bank and Fund Details'!$B$15:$C$36,2,FALSE)","v":"Unrestricted"},{"$f":"IFERROR(VLOOKUP(C1088,Descriptions!$I$6:$K$92,3,FALSE),\"\")","v":""},null,null,null,null,null,null,null,null,null,null,null,null,null,null,"General Fund",null,{"$f":"IFERROR(VLOOKUP(C1088,Descriptions!I:M,5,FALSE),\"N\")","v":"N"},true,"NTRUE",0,{"$f":"IFERROR(VLOOKUP(D1088,'Bank and Fund Details'!$B$14:$L$35,11,FALSE),\"N\")","v":"Y"},"NY"]
[null,null,null,"General Fund",null,null,null,null,null,{"$f":"VLOOKUP(D1089,'Bank and Fund Details'!$B$15:$D$36,3,FALSE)","v":0},{"$f":"VLOOKUP(D1089,'Bank and Fund Details'!$B$15:$C$36,2,FALSE)","v":"Unrestricted"},{"$f":"IFERROR(VLOOKUP(C1089,Descriptions!$I$6:$K$92,3,FALSE),\"\")","v":""},null,null,null,null,null,null,null,null,null,null,null,null,null,null,"General Fund",null,{"$f":"IFERROR(VLOOKUP(C1089,Descriptions!I:M,5,FALSE),\"N\")","v":"N"},true,"NTRUE",0,{"$f":"IFERROR(VLOOKUP(D1089,'Bank and Fund Details'!$B$14:$L$35,11,FALSE),\"N\")","v":"Y"},"NY"]
[null,null,null,"General Fund",null,null,null,null,null,{"$f":"VLOOKUP(D1090,'Bank and Fund Details'!$B$15:$D$36,3,FALSE)","v":0},{"$f":"VLOOKUP(D1090,'Bank and Fund Details'!$B$15:$C$36,2,FALSE)","v":"Unrestricted"},{"$f":"IFERROR(VLOOKUP(C1090,Descriptions!$I$6:$K$92,3,FALSE),\"\")","v":""},null,null,null,null,null,null,null,null,null,null,null,null,null,null,"General Fund",null,{"$f":"IFERROR(VLOOKUP(C1090,Descriptions!I:M,5,FALSE),\"N\")","v":"N"},true,"NTRUE",0,{"$f":"IFERROR(VLOOKUP(D1090,'Bank and Fund Details'!$B$14:$L$35,11,FALSE),\"N\")","v":"Y"},"NY"]
[null,null,null,"General Fund",null,null,null,null,null,{"$f":"VLOOKUP(D1091,'Bank and Fund Details'!$B$15:$D$36,3,FALSE)","v":0},{"$f":"VLOOKUP(D1091,'Bank and Fund Details'!$B$15:$C$36,2,FALSE)","v":"Unrestricted"},{"$f":"IFERROR(VLOOKUP(C1091,Descriptions!$I$6:$K$92,3,FALSE),\"\")","v":""},null,null,null,null,null,null,null,null,null,null,null,null,null,null,"General Fund",null,{"$f":"IFERROR(VLOOKUP(C1091,Descriptions!I:M,5,FALSE),\"N\")","v":"N"},true,"NTRUE",0,{"$f":"IFERROR(VLOOKUP(D1091,'Bank and Fund Details'!$B$14:$L$35,11,FALSE),\"N\")","v":"Y"},"NY"]
[null,null,null,"General Fund",null,null,null,null,null,{"$f":"VLOOKUP(D1092,'Bank and Fund Details'!$B$15:$D$36,3,FALSE)","v":0},{"$f":"VLOOKUP(D1092,'Bank and Fund Details'!$B$15:$C$36,2,FALSE)","v":"Unrestricted"},{"$f":"IFERROR(VLOOKUP(C1092,Descriptions!$I$6:$K$92,3,FALSE),\"\")","v":""},null,null,null,null,null,null,null,null,null,null,null,null,null,null,"General Fund",null,{"$f":"IFERROR(VLOOKUP(C1092,Descriptions!I:M,5,FALSE),\"N\")","v":"N"},true,"NTRUE",0,{"$f":"IFERROR(VLOOKUP(D1092,'Bank and Fund Details'!$B$14:$L$35,11,FALSE),\"N\")","v":"Y"},"NY"]
[null,null,null,"General Fund",null,null,null,null,null,{"$f":"VLOOKUP(D1093,'Bank and Fund Details'!$B$15:$D$36,3,FALSE)","v":0},{"$f":"VLOOKUP(D1093,'Bank and Fund Details'!$B$15:$C$36,2,FALSE)","v":"Unrestricted"},{"$f":"IFERROR(VLOOKUP(C1093,Descriptions!$I$6:$K$92,3,FALSE),\"\")","v":""},null,null,null,null,null,null,null,null,null,null,null,null,null,null,"General Fund",null,{"$f":"IFERROR(VLOOKUP(C1093,Descriptions!I:M,5,FALSE),\"N\")","v":"N"},true,"NTRUE",0,{"$f":"IFERROR(VLOOKUP(D1093,'Bank and Fund Details'!$B$14:$L$35,11,FALSE),\"N\")","v":"Y"},"NY"]
[null,null,null,"General Fund",null,null,null,null,null,{"$f":"VLOOKUP(D1094,'Bank and Fund Details'!$B$15:$D$36,3,FALSE)","v":0},{"$f":"VLOOKUP(D1094,'Bank and Fund Details'!$B$15:$C$36,2,FALSE)","v":"Unrestricted"},{"$f":"IFERROR(VLOOKUP(C1094,Descriptions!$I$6:$K$92,3,FALSE),\"\")","v":""},null,null,null,null,null,null,null,null,null,null,null,null,null,null,{"$f":"CONCATENATE(C1094,D1094)","v":"General Fund"},null,{"$f":"IFERROR(VLOOKUP(C1094,Descriptions!I:M,5,FALSE),\"N\")","v":"N"},{"$f":"ISBLANK(C1094)","v":true},{"$f":"CONCATENATE(AC1094,AD1094)","v":"NTRUE"},{"$f":"IF(AE1094=\"NFALSE\",1,0)","v":0},{"$f":"IFERROR(VLOOKUP(D1094,'Bank and Fund Details'!$B$14:$L$35,11,FALSE),\"N\")","v":"Y"},{"$f":"CONCATENATE(AC1094,AG1094)","v":"NY"}]
[null,null,null,"General Fund",null,null,null,null,null,{"$f":"VLOOKUP(D1095,'Bank and Fund Details'!$B$15:$D$36,3,FALSE)","v":0},{"$f":"VLOOKUP(D1095,'Bank and Fund Details'!$B$15:$C$36,2,FALSE)","v":"Unrestricted"},{"$f":"IFERROR(VLOOKUP(C1095,Descriptions!$I$6:$K$92,3,FALSE),\"\")","v":""},null,null,null,null,null,null,null,null,null,null,null,null,null,null,"General Fund",null,{"$f":"IFERROR(VLOOKUP(C1095,Descriptions!I:M,5,FALSE),\"N\")","v":"N"},true,"NTRUE",0,{"$f":"IFERROR(VLOOKUP(D1095,'Bank and Fund Details'!$B$14:$L$35,11,FALSE),\"N\")","v":"Y"},"NY"]
[null,null,null,"General Fund",null,null,null,null,null,{"$f":"VLOOKUP(D1096,'Bank and Fund Details'!$B$15:$D$36,3,FALSE)","v":0},{"$f":"VLOOKUP(D1096,'Bank and Fund Details'!$B$15:$C$36,2,FALSE)","v":"Unrestricted"},{"$f":"IFERROR(VLOOKUP(C1096,Descriptions!$I$6:$K$92,3,FALSE),\"\")","v":""},null,null,null,null,null,null,null,null,null,null,null,null,null,null,"General Fund",null,{"$f":"IFERROR(VLOOKUP(C1096,Descriptions!I:M,5,FALSE),\"N\")","v":"N"},true,"NTRUE",0,{"$f":"IFERROR(VLOOKUP(D1096,'Bank and Fund Details'!$B$14:$L$35,11,FALSE),\"N\")","v":"Y"},"NY"]
[null,null,null,"General Fund",null,null,null,null,null,{"$f":"VLOOKUP(D1097,'Bank and Fund Details'!$B$15:$D$36,3,FALSE)","v":0},{"$f":"VLOOKUP(D1097,'Bank and Fund Details'!$B$15:$C$36,2,FALSE)","v":"Unrestricted"},{"$f":"IFERROR(VLOOKUP(C1097,Descriptions!$I$6:$K$92,3,FALSE),\"\")","v":""},null,null,null,null,null,null,null,null,null,null,null,null,null,null,"General Fund",null,{"$f":"IFERROR(VLOOKUP(C1097,Descriptions!I:M,5,FALSE),\"N\")","v":"N"},true,"NTRUE",0,{"$f":"IFERROR(VLOOKUP(D1097,'Bank and Fund Details'!$B$14:$L$35,11,FALSE),\"N\")","v":"Y"},"NY"]
[null,null,null,"General Fund",null,null,null,null,null,{"$f":"VLOOKUP(D1098,'Bank and Fund Details'!$B$15:$D$36,3,FALSE)","v":0},{"$f":"VLOOKUP(D1098,'Bank and Fund Details'!$B$15:$C$36,2,FALSE)","v":"Unrestricted"},{"$f":"IFERROR(VLOOKUP(C1098,Descriptions!$I$6:$K$92,3,FALSE),\"\")","v":""},null,null,null,null,null,null,null,null,null,null,null,null,null,null,"General Fund",null,{"$f":"IFERROR(VLOOKUP(C1098,Descriptions!I:M,5,FALSE),\"N\")","v":"N"},true,"NTRUE",0,{"$f":"IFERROR(VLOOKUP(D1098,'Bank and Fund Details'!$B$14:$L$35,11,FALSE),\"N\")","v":"Y"},"NY"]
[null,null,null,"General Fund",null,null,null,null,null,{"$f":"VLOOKUP(D1099,'Bank and Fund Details'!$B$15:$D$36,3,FALSE)","v":0},{"$f":"VLOOKUP(D1099,'Bank and Fund Details'!$B$15:$C$36,2,FALSE)","v":"Unrestricted"},{"$f":"IFERROR(VLOOKUP(C1099,Descriptions!$I$6:$K$92,3,FALSE),\"\")","v":""},null,null,null,null,null,null,null,null,null,null,null,null,null,null,"General Fund",null,{"$f":"IFERROR(VLOOKUP(C1099,Descriptions!I:M,5,FALSE),\"N\")","v":"N"},true,"NTRUE",0,{"$f":"IFERROR(VLOOKUP(D1099,'Bank and Fund Details'!$B$14:$L$35,11,FALSE),\"N\")","v":"Y"},"NY"]
[null,null,null,"General Fund",null,null,null,null,null,{"$f":"VLOOKUP(D1100,'Bank and Fund Details'!$B$15:$D$36,3,FALSE)","v":0},{"$f":"VLOOKUP(D1100,'Bank and Fund Details'!$B$15:$C$36,2,FALSE)","v":"Unrestricted"},{"$f":"IFERROR(VLOOKUP(C1100,Descriptions!$I$6:$K$92,3,FALSE),\"\")","v":""},null,null,null,null,null,null,null,null,null,null,null,null,null,null,"General Fund",null,{"$f":"IFERROR(VLOOKUP(C1100,Descriptions!I:M,5,FALSE),\"N\")","v":"N"},true,"NTRUE",0,{"$f":"IFERROR(VLOOKUP(D1100,'Bank and Fund Details'!$B$14:$L$35,11,FALSE),\"N\")","v":"Y"},"NY"]
[null,null,null,"General Fund",null,null,null,null,null,{"$f":"VLOOKUP(D1101,'Bank and Fund Details'!$B$15:$D$36,3,FALSE)","v":0},{"$f":"VLOOKUP(D1101,'Bank and Fund Details'!$B$15:$C$36,2,FALSE)","v":"Unrestricted"},{"$f":"IFERROR(VLOOKUP(C1101,Descriptions!$I$6:$K$92,3,FALSE),\"\")","v":""},null,null,null,null,null,null,null,null,null,null,null,null,null,null,"General Fund",null,{"$f":"IFERROR(VLOOKUP(C1101,Descriptions!I:M,5,FALSE),\"N\")","v":"N"},true,"NTRUE",0,{"$f":"IFERROR(VLOOKUP(D1101,'Bank and Fund Details'!$B$14:$L$35,11,FALSE),\"N\")","v":"Y"},"NY"]
[null,null,null,"General Fund",null,null,null,null,null,{"$f":"VLOOKUP(D1102,'Bank and Fund Details'!$B$15:$D$36,3,FALSE)","v":0},{"$f":"VLOOKUP(D1102,'Bank and Fund Details'!$B$15:$C$36,2,FALSE)","v":"Unrestricted"},{"$f":"IFERROR(VLOOKUP(C1102,Descriptions!$I$6:$K$92,3,FALSE),\"\")","v":""},null,null,null,null,null,null,null,null,null,null,null,null,null,null,"General Fund",null,{"$f":"IFERROR(VLOOKUP(C1102,Descriptions!I:M,5,FALSE),\"N\")","v":"N"},true,"NTRUE",0,{"$f":"IFERROR(VLOOKUP(D1102,'Bank and Fund Details'!$B$14:$L$35,11,FALSE),\"N\")","v":"Y"},"NY"]
[null,null,null,"General Fund",null,null,null,null,null,{"$f":"VLOOKUP(D1103,'Bank and Fund Details'!$B$15:$D$36,3,FALSE)","v":0},{"$f":"VLOOKUP(D1103,'Bank and Fund Details'!$B$15:$C$36,2,FALSE)","v":"Unrestricted"},{"$f":"IFERROR(VLOOKUP(C1103,Descriptions!$I$6:$K$92,3,FALSE),\"\")","v":""},null,null,null,null,null,null,null,null,null,null,null,null,null,null,"General Fund",null,{"$f":"IFERROR(VLOOKUP(C1103,Descriptions!I:M,5,FALSE),\"N\")","v":"N"},true,"NTRUE",0,{"$f":"IFERROR(VLOOKUP(D1103,'Bank and Fund Details'!$B$14:$L$35,11,FALSE),\"N\")","v":"Y"},"NY"]
[null,null,null,"General Fund",null,null,null,null,null,{"$f":"VLOOKUP(D1104,'Bank and Fund Details'!$B$15:$D$36,3,FALSE)","v":0},{"$f":"VLOOKUP(D1104,'Bank and Fund Details'!$B$15:$C$36,2,FALSE)","v":"Unrestricted"},{"$f":"IFERROR(VLOOKUP(C1104,Descriptions!$I$6:$K$92,3,FALSE),\"\")","v":""},null,null,null,null,null,null,null,null,null,null,null,null,null,null,"General Fund",null,{"$f":"IFERROR(VLOOKUP(C1104,Descriptions!I:M,5,FALSE),\"N\")","v":"N"},true,"NTRUE",0,{"$f":"IFERROR(VLOOKUP(D1104,'Bank and Fund Details'!$B$14:$L$35,11,FALSE),\"N\")","v":"Y"},"NY"]
[null,null,null,"General Fund",null,null,null,null,null,{"$f":"VLOOKUP(D1105,'Bank and Fund Details'!$B$15:$D$36,3,FALSE)","v":0},{"$f":"VLOOKUP(D1105,'Bank and Fund Details'!$B$15:$C$36,2,FALSE)","v":"Unrestricted"},{"$f":"IFERROR(VLOOKUP(C1105,Descriptions!$I$6:$K$92,3,FALSE),\"\")","v":""},null,null,null,null,null,null,null,null,null,null,null,null,null,null,"General Fund",null,{"$f":"IFERROR(VLOOKUP(C1105,Descriptions!I:M,5,FALSE),\"N\")","v":"N"},true,"NTRUE",0,{"$f":"IFERROR(VLOOKUP(D1105,'Bank and Fund Details'!$B$14:$L$35,11,FALSE),\"N\")","v":"Y"},"NY"]
[null,null,null,"General Fund",null,null,null,null,null,{"$f":"VLOOKUP(D1106,'Bank and Fund Details'!$B$15:$D$36,3,FALSE)","v":0},{"$f":"VLOOKUP(D1106,'Bank and Fund Details'!$B$15:$C$36,2,FALSE)","v":"Unrestricted"},{"$f":"IFERROR(VLOOKUP(C1106,Descriptions!$I$6:$K$92,3,FALSE),\"\")","v":""},null,null,null,null,null,null,null,null,null,null,null,null,null,null,"General Fund",null,{"$f":"IFERROR(VLOOKUP(C1106,Descriptions!I:M,5,FALSE),\"N\")","v":"N"},true,"NTRUE",0,{"$f":"IFERROR(VLOOKUP(D1106,'Bank and Fund Details'!$B$14:$L$35,11,FALSE),\"N\")","v":"Y"},"NY"]
[null,null,null,"General Fund",null,null,null,null,null,{"$f":"VLOOKUP(D1107,'Bank and Fund Details'!$B$15:$D$36,3,FALSE)","v":0},{"$f":"VLOOKUP(D1107,'Bank and Fund Details'!$B$15:$C$36,2,FALSE)","v":"Unrestricted"},{"$f":"IFERROR(VLOOKUP(C1107,Descriptions!$I$6:$K$92,3,FALSE),\"\")","v":""},null,null,null,null,null,null,null,null,null,null,null,null,null,null,"General Fund",null,{"$f":"IFERROR(VLOOKUP(C1107,Descriptions!I:M,5,FALSE),\"N\")","v":"N"},true,"NTRUE",0,{"$f":"IFERROR(VLOOKUP(D1107,'Bank and Fund Details'!$B$14:$L$35,11,FALSE),\"N\")","v":"Y"},"NY"]
[null,null,null,"General Fund",null,null,null,null,null,{"$f":"VLOOKUP(D1108,'Bank and Fund Details'!$B$15:$D$36,3,FALSE)","v":0},{"$f":"VLOOKUP(D1108,'Bank and Fund Details'!$B$15:$C$36,2,FALSE)","v":"Unrestricted"},{"$f":"IFERROR(VLOOKUP(C1108,Descriptions!$I$6:$K$92,3,FALSE),\"\")","v":""},null,null,null,null,null,null,null,null,null,null,null,null,null,null,"General Fund",null,{"$f":"IFERROR(VLOOKUP(C1108,Descriptions!I:M,5,FALSE),\"N\")","v":"N"},true,"NTRUE",0,{"$f":"IFERROR(VLOOKUP(D1108,'Bank and Fund Details'!$B$14:$L$35,11,FALSE),\"N\")","v":"Y"},"NY"]
[null,null,null,"General Fund",null,null,null,null,null,{"$f":"VLOOKUP(D1109,'Bank and Fund Details'!$B$15:$D$36,3,FALSE)","v":0},{"$f":"VLOOKUP(D1109,'Bank and Fund Details'!$B$15:$C$36,2,FALSE)","v":"Unrestricted"},{"$f":"IFERROR(VLOOKUP(C1109,Descriptions!$I$6:$K$92,3,FALSE),\"\")","v":""},null,null,null,null,null,null,null,null,null,null,null,null,null,null,"General Fund",null,{"$f":"IFERROR(VLOOKUP(C1109,Descriptions!I:M,5,FALSE),\"N\")","v":"N"},true,"NTRUE",0,{"$f":"IFERROR(VLOOKUP(D1109,'Bank and Fund Details'!$B$14:$L$35,11,FALSE),\"N\")","v":"Y"},"NY"]
[null,null,null,"General Fund",null,null,null,null,null,{"$f":"VLOOKUP(D1110,'Bank and Fund Details'!$B$15:$D$36,3,FALSE)","v":0},{"$f":"VLOOKUP(D1110,'Bank and Fund Details'!$B$15:$C$36,2,FALSE)","v":"Unrestricted"},{"$f":"IFERROR(VLOOKUP(C1110,Descriptions!$I$6:$K$92,3,FALSE),\"\")","v":""},null,null,null,null,null,null,null,null,null,null,null,null,null,null,"General Fund",null,{"$f":"IFERROR(VLOOKUP(C1110,Descriptions!I:M,5,FALSE),\"N\")","v":"N"},true,"NTRUE",0,{"$f":"IFERROR(VLOOKUP(D1110,'Bank and Fund Details'!$B$14:$L$35,11,FALSE),\"N\")","v":"Y"},"NY"]
[null,null,null,"General Fund",null,null,null,null,null,{"$f":"VLOOKUP(D1111,'Bank and Fund Details'!$B$15:$D$36,3,FALSE)","v":0},{"$f":"VLOOKUP(D1111,'Bank and Fund Details'!$B$15:$C$36,2,FALSE)","v":"Unrestricted"},{"$f":"IFERROR(VLOOKUP(C1111,Descriptions!$I$6:$K$92,3,FALSE),\"\")","v":""},null,null,null,null,null,null,null,null,null,null,null,null,null,null,"General Fund",null,{"$f":"IFERROR(VLOOKUP(C1111,Descriptions!I:M,5,FALSE),\"N\")","v":"N"},true,"NTRUE",0,{"$f":"IFERROR(VLOOKUP(D1111,'Bank and Fund Details'!$B$14:$L$35,11,FALSE),\"N\")","v":"Y"},"NY"]
[null,null,null,"General Fund",null,null,null,null,null,{"$f":"VLOOKUP(D1112,'Bank and Fund Details'!$B$15:$D$36,3,FALSE)","v":0},{"$f":"VLOOKUP(D1112,'Bank and Fund Details'!$B$15:$C$36,2,FALSE)","v":"Unrestricted"},{"$f":"IFERROR(VLOOKUP(C1112,Descriptions!$I$6:$K$92,3,FALSE),\"\")","v":""},null,null,null,null,null,null,null,null,null,null,null,null,null,null,"General Fund",null,{"$f":"IFERROR(VLOOKUP(C1112,Descriptions!I:M,5,FALSE),\"N\")","v":"N"},true,"NTRUE",0,{"$f":"IFERROR(VLOOKUP(D1112,'Bank and Fund Details'!$B$14:$L$35,11,FALSE),\"N\")","v":"Y"},"NY"]
[null,null,null,"General Fund",null,null,null,null,null,{"$f":"VLOOKUP(D1113,'Bank and Fund Details'!$B$15:$D$36,3,FALSE)","v":0},{"$f":"VLOOKUP(D1113,'Bank and Fund Details'!$B$15:$C$36,2,FALSE)","v":"Unrestricted"},{"$f":"IFERROR(VLOOKUP(C1113,Descriptions!$I$6:$K$92,3,FALSE),\"\")","v":""},null,null,null,null,null,null,null,null,null,null,null,null,null,null,"General Fund",null,{"$f":"IFERROR(VLOOKUP(C1113,Descriptions!I:M,5,FALSE),\"N\")","v":"N"},true,"NTRUE",0,{"$f":"IFERROR(VLOOKUP(D1113,'Bank and Fund Details'!$B$14:$L$35,11,FALSE),\"N\")","v":"Y"},"NY"]
[null,null,null,"General Fund",null,null,null,null,null,{"$f":"VLOOKUP(D1114,'Bank and Fund Details'!$B$15:$D$36,3,FALSE)","v":0},{"$f":"VLOOKUP(D1114,'Bank and Fund Details'!$B$15:$C$36,2,FALSE)","v":"Unrestricted"},{"$f":"IFERROR(VLOOKUP(C1114,Descriptions!$I$6:$K$92,3,FALSE),\"\")","v":""},null,null,null,null,null,null,null,null,null,null,null,null,null,null,"General Fund",null,{"$f":"IFERROR(VLOOKUP(C1114,Descriptions!I:M,5,FALSE),\"N\")","v":"N"},true,"NTRUE",0,{"$f":"IFERROR(VLOOKUP(D1114,'Bank and Fund Details'!$B$14:$L$35,11,FALSE),\"N\")","v":"Y"},"NY"]
[null,null,null,"General Fund",null,null,null,null,null,{"$f":"VLOOKUP(D1115,'Bank and Fund Details'!$B$15:$D$36,3,FALSE)","v":0},{"$f":"VLOOKUP(D1115,'Bank and Fund Details'!$B$15:$C$36,2,FALSE)","v":"Unrestricted"},{"$f":"IFERROR(VLOOKUP(C1115,Descriptions!$I$6:$K$92,3,FALSE),\"\")","v":""},null,null,null,null,null,null,null,null,null,null,null,null,null,null,"General Fund",null,{"$f":"IFERROR(VLOOKUP(C1115,Descriptions!I:M,5,FALSE),\"N\")","v":"N"},true,"NTRUE",0,{"$f":"IFERROR(VLOOKUP(D1115,'Bank and Fund Details'!$B$14:$L$35,11,FALSE),\"N\")","v":"Y"},"NY"]
[null,null,null,"General Fund",null,null,null,null,null,{"$f":"VLOOKUP(D1116,'Bank and Fund Details'!$B$15:$D$36,3,FALSE)","v":0},{"$f":"VLOOKUP(D1116,'Bank and Fund Details'!$B$15:$C$36,2,FALSE)","v":"Unrestricted"},{"$f":"IFERROR(VLOOKUP(C1116,Descriptions!$I$6:$K$92,3,FALSE),\"\")","v":""},null,null,null,null,null,null,null,null,null,null,null,null,null,null,"General Fund",null,{"$f":"IFERROR(VLOOKUP(C1116,Descriptions!I:M,5,FALSE),\"N\")","v":"N"},true,"NTRUE",0,{"$f":"IFERROR(VLOOKUP(D1116,'Bank and Fund Details'!$B$14:$L$35,11,FALSE),\"N\")","v":"Y"},"NY"]
[null,null,null,"General Fund",null,null,null,null,null,{"$f":"VLOOKUP(D1117,'Bank and Fund Details'!$B$15:$D$36,3,FALSE)","v":0},{"$f":"VLOOKUP(D1117,'Bank and Fund Details'!$B$15:$C$36,2,FALSE)","v":"Unrestricted"},{"$f":"IFERROR(VLOOKUP(C1117,Descriptions!$I$6:$K$92,3,FALSE),\"\")","v":""},null,null,null,null,null,null,null,null,null,null,null,null,null,null,"General Fund",null,{"$f":"IFERROR(VLOOKUP(C1117,Descriptions!I:M,5,FALSE),\"N\")","v":"N"},true,"NTRUE",0,{"$f":"IFERROR(VLOOKUP(D1117,'Bank and Fund Details'!$B$14:$L$35,11,FALSE),\"N\")","v":"Y"},"NY"]
[null,null,null,"General Fund",null,null,null,null,null,{"$f":"VLOOKUP(D1118,'Bank and Fund Details'!$B$15:$D$36,3,FALSE)","v":0},{"$f":"VLOOKUP(D1118,'Bank and Fund Details'!$B$15:$C$36,2,FALSE)","v":"Unrestricted"},{"$f":"IFERROR(VLOOKUP(C1118,Descriptions!$I$6:$K$92,3,FALSE),\"\")","v":""},null,null,null,null,null,null,null,null,null,null,null,null,null,null,"General Fund",null,{"$f":"IFERROR(VLOOKUP(C1118,Descriptions!I:M,5,FALSE),\"N\")","v":"N"},true,"NTRUE",0,{"$f":"IFERROR(VLOOKUP(D1118,'Bank and Fund Details'!$B$14:$L$35,11,FALSE),\"N\")","v":"Y"},"NY"]
[null,null,null,"General Fund",null,null,null,null,null,{"$f":"VLOOKUP(D1119,'Bank and Fund Details'!$B$15:$D$36,3,FALSE)","v":0},{"$f":"VLOOKUP(D1119,'Bank and Fund Details'!$B$15:$C$36,2,FALSE)","v":"Unrestricted"},{"$f":"IFERROR(VLOOKUP(C1119,Descriptions!$I$6:$K$92,3,FALSE),\"\")","v":""},null,null,null,null,null,null,null,null,null,null,null,null,null,null,"General Fund",null,{"$f":"IFERROR(VLOOKUP(C1119,Descriptions!I:M,5,FALSE),\"N\")","v":"N"},true,"NTRUE",0,{"$f":"IFERROR(VLOOKUP(D1119,'Bank and Fund Details'!$B$14:$L$35,11,FALSE),\"N\")","v":"Y"},"NY"]
[null,null,null,"General Fund",null,null,null,null,null,{"$f":"VLOOKUP(D1120,'Bank and Fund Details'!$B$15:$D$36,3,FALSE)","v":0},{"$f":"VLOOKUP(D1120,'Bank and Fund Details'!$B$15:$C$36,2,FALSE)","v":"Unrestricted"},{"$f":"IFERROR(VLOOKUP(C1120,Descriptions!$I$6:$K$92,3,FALSE),\"\")","v":""},null,null,null,null,null,null,null,null,null,null,null,null,null,null,"General Fund",null,{"$f":"IFERROR(VLOOKUP(C1120,Descriptions!I:M,5,FALSE),\"N\")","v":"N"},true,"NTRUE",0,{"$f":"IFERROR(VLOOKUP(D1120,'Bank and Fund Details'!$B$14:$L$35,11,FALSE),\"N\")","v":"Y"},"NY"]
[null,null,null,"General Fund",null,null,null,null,null,{"$f":"VLOOKUP(D1121,'Bank and Fund Details'!$B$15:$D$36,3,FALSE)","v":0},{"$f":"VLOOKUP(D1121,'Bank and Fund Details'!$B$15:$C$36,2,FALSE)","v":"Unrestricted"},{"$f":"IFERROR(VLOOKUP(C1121,Descriptions!$I$6:$K$92,3,FALSE),\"\")","v":""},null,null,null,null,null,null,null,null,null,null,null,null,null,null,"General Fund",null,{"$f":"IFERROR(VLOOKUP(C1121,Descriptions!I:M,5,FALSE),\"N\")","v":"N"},true,"NTRUE",0,{"$f":"IFERROR(VLOOKUP(D1121,'Bank and Fund Details'!$B$14:$L$35,11,FALSE),\"N\")","v":"Y"},"NY"]
[null,null,null,"General Fund",null,null,null,null,null,{"$f":"VLOOKUP(D1122,'Bank and Fund Details'!$B$15:$D$36,3,FALSE)","v":0},{"$f":"VLOOKUP(D1122,'Bank and Fund Details'!$B$15:$C$36,2,FALSE)","v":"Unrestricted"},{"$f":"IFERROR(VLOOKUP(C1122,Descriptions!$I$6:$K$92,3,FALSE),\"\")","v":""},null,null,null,null,null,null,null,null,null,null,null,null,null,null,"General Fund",null,{"$f":"IFERROR(VLOOKUP(C1122,Descriptions!I:M,5,FALSE),\"N\")","v":"N"},true,"NTRUE",0,{"$f":"IFERROR(VLOOKUP(D1122,'Bank and Fund Details'!$B$14:$L$35,11,FALSE),\"N\")","v":"Y"},"NY"]
[null,null,null,"General Fund",null,null,null,null,null,{"$f":"VLOOKUP(D1123,'Bank and Fund Details'!$B$15:$D$36,3,FALSE)","v":0},{"$f":"VLOOKUP(D1123,'Bank and Fund Details'!$B$15:$C$36,2,FALSE)","v":"Unrestricted"},{"$f":"IFERROR(VLOOKUP(C1123,Descriptions!$I$6:$K$92,3,FALSE),\"\")","v":""},null,null,null,null,null,null,null,null,null,null,null,null,null,null,"General Fund",null,{"$f":"IFERROR(VLOOKUP(C1123,Descriptions!I:M,5,FALSE),\"N\")","v":"N"},true,"NTRUE",0,{"$f":"IFERROR(VLOOKUP(D1123,'Bank and Fund Details'!$B$14:$L$35,11,FALSE),\"N\")","v":"Y"},"NY"]
[null,null,null,"General Fund",null,null,null,null,null,{"$f":"VLOOKUP(D1124,'Bank and Fund Details'!$B$15:$D$36,3,FALSE)","v":0},{"$f":"VLOOKUP(D1124,'Bank and Fund Details'!$B$15:$C$36,2,FALSE)","v":"Unrestricted"},{"$f":"IFERROR(VLOOKUP(C1124,Descriptions!$I$6:$K$92,3,FALSE),\"\")","v":""},null,null,null,null,null,null,null,null,null,null,null,null,null,null,"General Fund",null,{"$f":"IFERROR(VLOOKUP(C1124,Descriptions!I:M,5,FALSE),\"N\")","v":"N"},true,"NTRUE",0,{"$f":"IFERROR(VLOOKUP(D1124,'Bank and Fund Details'!$B$14:$L$35,11,FALSE),\"N\")","v":"Y"},"NY"]
[null,null,null,"General Fund",null,null,null,null,null,{"$f":"VLOOKUP(D1125,'Bank and Fund Details'!$B$15:$D$36,3,FALSE)","v":0},{"$f":"VLOOKUP(D1125,'Bank and Fund Details'!$B$15:$C$36,2,FALSE)","v":"Unrestricted"},{"$f":"IFERROR(VLOOKUP(C1125,Descriptions!$I$6:$K$92,3,FALSE),\"\")","v":""},null,null,null,null,null,null,null,null,null,null,null,null,null,null,"General Fund",null,{"$f":"IFERROR(VLOOKUP(C1125,Descriptions!I:M,5,FALSE),\"N\")","v":"N"},true,"NTRUE",0,{"$f":"IFERROR(VLOOKUP(D1125,'Bank and Fund Details'!$B$14:$L$35,11,FALSE),\"N\")","v":"Y"},"NY"]
[null,null,null,"General Fund",null,null,null,null,null,{"$f":"VLOOKUP(D1126,'Bank and Fund Details'!$B$15:$D$36,3,FALSE)","v":0},{"$f":"VLOOKUP(D1126,'Bank and Fund Details'!$B$15:$C$36,2,FALSE)","v":"Unrestricted"},{"$f":"IFERROR(VLOOKUP(C1126,Descriptions!$I$6:$K$92,3,FALSE),\"\")","v":""},null,null,null,null,null,null,null,null,null,null,null,null,null,null,"General Fund",null,{"$f":"IFERROR(VLOOKUP(C1126,Descriptions!I:M,5,FALSE),\"N\")","v":"N"},true,"NTRUE",0,{"$f":"IFERROR(VLOOKUP(D1126,'Bank and Fund Details'!$B$14:$L$35,11,FALSE),\"N\")","v":"Y"},"NY"]
[null,null,null,"General Fund",null,null,null,null,null,{"$f":"VLOOKUP(D1127,'Bank and Fund Details'!$B$15:$D$36,3,FALSE)","v":0},{"$f":"VLOOKUP(D1127,'Bank and Fund Details'!$B$15:$C$36,2,FALSE)","v":"Unrestricted"},{"$f":"IFERROR(VLOOKUP(C1127,Descriptions!$I$6:$K$92,3,FALSE),\"\")","v":""},null,null,null,null,null,null,null,null,null,null,null,null,null,null,"General Fund",null,{"$f":"IFERROR(VLOOKUP(C1127,Descriptions!I:M,5,FALSE),\"N\")","v":"N"},true,"NTRUE",0,{"$f":"IFERROR(VLOOKUP(D1127,'Bank and Fund Details'!$B$14:$L$35,11,FALSE),\"N\")","v":"Y"},"NY"]
[null,null,null,"General Fund",null,null,null,null,null,{"$f":"VLOOKUP(D1128,'Bank and Fund Details'!$B$15:$D$36,3,FALSE)","v":0},{"$f":"VLOOKUP(D1128,'Bank and Fund Details'!$B$15:$C$36,2,FALSE)","v":"Unrestricted"},{"$f":"IFERROR(VLOOKUP(C1128,Descriptions!$I$6:$K$92,3,FALSE),\"\")","v":""},null,null,null,null,null,null,null,null,null,null,null,null,null,null,"General Fund",null,{"$f":"IFERROR(VLOOKUP(C1128,Descriptions!I:M,5,FALSE),\"N\")","v":"N"},true,"NTRUE",0,{"$f":"IFERROR(VLOOKUP(D1128,'Bank and Fund Details'!$B$14:$L$35,11,FALSE),\"N\")","v":"Y"},"NY"]
[null,null,null,"General Fund",null,null,null,null,null,{"$f":"VLOOKUP(D1129,'Bank and Fund Details'!$B$15:$D$36,3,FALSE)","v":0},{"$f":"VLOOKUP(D1129,'Bank and Fund Details'!$B$15:$C$36,2,FALSE)","v":"Unrestricted"},{"$f":"IFERROR(VLOOKUP(C1129,Descriptions!$I$6:$K$92,3,FALSE),\"\")","v":""},null,null,null,null,null,null,null,null,null,null,null,null,null,null,"General Fund",null,{"$f":"IFERROR(VLOOKUP(C1129,Descriptions!I:M,5,FALSE),\"N\")","v":"N"},true,"NTRUE",0,{"$f":"IFERROR(VLOOKUP(D1129,'Bank and Fund Details'!$B$14:$L$35,11,FALSE),\"N\")","v":"Y"},"NY"]
[null,null,null,"General Fund",null,null,null,null,null,{"$f":"VLOOKUP(D1130,'Bank and Fund Details'!$B$15:$D$36,3,FALSE)","v":0},{"$f":"VLOOKUP(D1130,'Bank and Fund Details'!$B$15:$C$36,2,FALSE)","v":"Unrestricted"},{"$f":"IFERROR(VLOOKUP(C1130,Descriptions!$I$6:$K$92,3,FALSE),\"\")","v":""},null,null,null,null,null,null,null,null,null,null,null,null,null,null,"General Fund",null,{"$f":"IFERROR(VLOOKUP(C1130,Descriptions!I:M,5,FALSE),\"N\")","v":"N"},true,"NTRUE",0,{"$f":"IFERROR(VLOOKUP(D1130,'Bank and Fund Details'!$B$14:$L$35,11,FALSE),\"N\")","v":"Y"},"NY"]
[null,null,null,"General Fund",null,null,null,null,null,{"$f":"VLOOKUP(D1131,'Bank and Fund Details'!$B$15:$D$36,3,FALSE)","v":0},{"$f":"VLOOKUP(D1131,'Bank and Fund Details'!$B$15:$C$36,2,FALSE)","v":"Unrestricted"},{"$f":"IFERROR(VLOOKUP(C1131,Descriptions!$I$6:$K$92,3,FALSE),\"\")","v":""},null,null,null,null,null,null,null,null,null,null,null,null,null,null,"General Fund",null,{"$f":"IFERROR(VLOOKUP(C1131,Descriptions!I:M,5,FALSE),\"N\")","v":"N"},true,"NTRUE",0,{"$f":"IFERROR(VLOOKUP(D1131,'Bank and Fund Details'!$B$14:$L$35,11,FALSE),\"N\")","v":"Y"},"NY"]
[null,null,null,"General Fund",null,null,null,null,null,{"$f":"VLOOKUP(D1132,'Bank and Fund Details'!$B$15:$D$36,3,FALSE)","v":0},{"$f":"VLOOKUP(D1132,'Bank and Fund Details'!$B$15:$C$36,2,FALSE)","v":"Unrestricted"},{"$f":"IFERROR(VLOOKUP(C1132,Descriptions!$I$6:$K$92,3,FALSE),\"\")","v":""},null,null,null,null,null,null,null,null,null,null,null,null,null,null,"General Fund",null,{"$f":"IFERROR(VLOOKUP(C1132,Descriptions!I:M,5,FALSE),\"N\")","v":"N"},true,"NTRUE",0,{"$f":"IFERROR(VLOOKUP(D1132,'Bank and Fund Details'!$B$14:$L$35,11,FALSE),\"N\")","v":"Y"},"NY"]
[null,null,null,"General Fund",null,null,null,null,null,{"$f":"VLOOKUP(D1133,'Bank and Fund Details'!$B$15:$D$36,3,FALSE)","v":0},{"$f":"VLOOKUP(D1133,'Bank and Fund Details'!$B$15:$C$36,2,FALSE)","v":"Unrestricted"},{"$f":"IFERROR(VLOOKUP(C1133,Descriptions!$I$6:$K$92,3,FALSE),\"\")","v":""},null,null,null,null,null,null,null,null,null,null,null,null,null,null,"General Fund",null,{"$f":"IFERROR(VLOOKUP(C1133,Descriptions!I:M,5,FALSE),\"N\")","v":"N"},true,"NTRUE",0,{"$f":"IFERROR(VLOOKUP(D1133,'Bank and Fund Details'!$B$14:$L$35,11,FALSE),\"N\")","v":"Y"},"NY"]
[null,null,null,"General Fund",null,null,null,null,null,{"$f":"VLOOKUP(D1134,'Bank and Fund Details'!$B$15:$D$36,3,FALSE)","v":0},{"$f":"VLOOKUP(D1134,'Bank and Fund Details'!$B$15:$C$36,2,FALSE)","v":"Unrestricted"},{"$f":"IFERROR(VLOOKUP(C1134,Descriptions!$I$6:$K$92,3,FALSE),\"\")","v":""},null,null,null,null,null,null,null,null,null,null,null,null,null,null,"General Fund",null,{"$f":"IFERROR(VLOOKUP(C1134,Descriptions!I:M,5,FALSE),\"N\")","v":"N"},true,"NTRUE",0,{"$f":"IFERROR(VLOOKUP(D1134,'Bank and Fund Details'!$B$14:$L$35,11,FALSE),\"N\")","v":"Y"},"NY"]
[null,null,null,"General Fund",null,null,null,null,null,{"$f":"VLOOKUP(D1135,'Bank and Fund Details'!$B$15:$D$36,3,FALSE)","v":0},{"$f":"VLOOKUP(D1135,'Bank and Fund Details'!$B$15:$C$36,2,FALSE)","v":"Unrestricted"},{"$f":"IFERROR(VLOOKUP(C1135,Descriptions!$I$6:$K$92,3,FALSE),\"\")","v":""},null,null,null,null,null,null,null,null,null,null,null,null,null,null,"General Fund",null,{"$f":"IFERROR(VLOOKUP(C1135,Descriptions!I:M,5,FALSE),\"N\")","v":"N"},true,"NTRUE",0,{"$f":"IFERROR(VLOOKUP(D1135,'Bank and Fund Details'!$B$14:$L$35,11,FALSE),\"N\")","v":"Y"},"NY"]
[null,null,null,"General Fund",null,null,null,null,null,{"$f":"VLOOKUP(D1136,'Bank and Fund Details'!$B$15:$D$36,3,FALSE)","v":0},{"$f":"VLOOKUP(D1136,'Bank and Fund Details'!$B$15:$C$36,2,FALSE)","v":"Unrestricted"},{"$f":"IFERROR(VLOOKUP(C1136,Descriptions!$I$6:$K$92,3,FALSE),\"\")","v":""},null,null,null,null,null,null,null,null,null,null,null,null,null,null,"General Fund",null,{"$f":"IFERROR(VLOOKUP(C1136,Descriptions!I:M,5,FALSE),\"N\")","v":"N"},true,"NTRUE",0,{"$f":"IFERROR(VLOOKUP(D1136,'Bank and Fund Details'!$B$14:$L$35,11,FALSE),\"N\")","v":"Y"},"NY"]
[null,null,null,"General Fund",null,null,null,null,null,{"$f":"VLOOKUP(D1137,'Bank and Fund Details'!$B$15:$D$36,3,FALSE)","v":0},{"$f":"VLOOKUP(D1137,'Bank and Fund Details'!$B$15:$C$36,2,FALSE)","v":"Unrestricted"},{"$f":"IFERROR(VLOOKUP(C1137,Descriptions!$I$6:$K$92,3,FALSE),\"\")","v":""},null,null,null,null,null,null,null,null,null,null,null,null,null,null,"General Fund",null,{"$f":"IFERROR(VLOOKUP(C1137,Descriptions!I:M,5,FALSE),\"N\")","v":"N"},true,"NTRUE",0,{"$f":"IFERROR(VLOOKUP(D1137,'Bank and Fund Details'!$B$14:$L$35,11,FALSE),\"N\")","v":"Y"},"NY"]
[null,null,null,"General Fund",null,null,null,null,null,{"$f":"VLOOKUP(D1138,'Bank and Fund Details'!$B$15:$D$36,3,FALSE)","v":0},{"$f":"VLOOKUP(D1138,'Bank and Fund Details'!$B$15:$C$36,2,FALSE)","v":"Unrestricted"},{"$f":"IFERROR(VLOOKUP(C1138,Descriptions!$I$6:$K$92,3,FALSE),\"\")","v":""},null,null,null,null,null,null,null,null,null,null,null,null,null,null,"General Fund",null,{"$f":"IFERROR(VLOOKUP(C1138,Descriptions!I:M,5,FALSE),\"N\")","v":"N"},true,"NTRUE",0,{"$f":"IFERROR(VLOOKUP(D1138,'Bank and Fund Details'!$B$14:$L$35,11,FALSE),\"N\")","v":"Y"},"NY"]
[null,null,null,"General Fund",null,null,null,null,null,{"$f":"VLOOKUP(D1139,'Bank and Fund Details'!$B$15:$D$36,3,FALSE)","v":0},{"$f":"VLOOKUP(D1139,'Bank and Fund Details'!$B$15:$C$36,2,FALSE)","v":"Unrestricted"},{"$f":"IFERROR(VLOOKUP(C1139,Descriptions!$I$6:$K$92,3,FALSE),\"\")","v":""},null,null,null,null,null,null,null,null,null,null,null,null,null,null,"General Fund",null,{"$f":"IFERROR(VLOOKUP(C1139,Descriptions!I:M,5,FALSE),\"N\")","v":"N"},true,"NTRUE",0,{"$f":"IFERROR(VLOOKUP(D1139,'Bank and Fund Details'!$B$14:$L$35,11,FALSE),\"N\")","v":"Y"},"NY"]
[null,null,null,"General Fund",null,null,null,null,null,{"$f":"VLOOKUP(D1140,'Bank and Fund Details'!$B$15:$D$36,3,FALSE)","v":0},{"$f":"VLOOKUP(D1140,'Bank and Fund Details'!$B$15:$C$36,2,FALSE)","v":"Unrestricted"},{"$f":"IFERROR(VLOOKUP(C1140,Descriptions!$I$6:$K$92,3,FALSE),\"\")","v":""},null,null,null,null,null,null,null,null,null,null,null,null,null,null,"General Fund",null,{"$f":"IFERROR(VLOOKUP(C1140,Descriptions!I:M,5,FALSE),\"N\")","v":"N"},true,"NTRUE",0,{"$f":"IFERROR(VLOOKUP(D1140,'Bank and Fund Details'!$B$14:$L$35,11,FALSE),\"N\")","v":"Y"},"NY"]
[null,null,null,"General Fund",null,null,null,null,null,{"$f":"VLOOKUP(D1141,'Bank and Fund Details'!$B$15:$D$36,3,FALSE)","v":0},{"$f":"VLOOKUP(D1141,'Bank and Fund Details'!$B$15:$C$36,2,FALSE)","v":"Unrestricted"},{"$f":"IFERROR(VLOOKUP(C1141,Descriptions!$I$6:$K$92,3,FALSE),\"\")","v":""},null,null,null,null,null,null,null,null,null,null,null,null,null,null,"General Fund",null,{"$f":"IFERROR(VLOOKUP(C1141,Descriptions!I:M,5,FALSE),\"N\")","v":"N"},true,"NTRUE",0,{"$f":"IFERROR(VLOOKUP(D1141,'Bank and Fund Details'!$B$14:$L$35,11,FALSE),\"N\")","v":"Y"},"NY"]
[null,null,null,"General Fund",null,null,null,null,null,{"$f":"VLOOKUP(D1142,'Bank and Fund Details'!$B$15:$D$36,3,FALSE)","v":0},{"$f":"VLOOKUP(D1142,'Bank and Fund Details'!$B$15:$C$36,2,FALSE)","v":"Unrestricted"},{"$f":"IFERROR(VLOOKUP(C1142,Descriptions!$I$6:$K$92,3,FALSE),\"\")","v":""},null,null,null,null,null,null,null,null,null,null,null,null,null,null,"General Fund",null,{"$f":"IFERROR(VLOOKUP(C1142,Descriptions!I:M,5,FALSE),\"N\")","v":"N"},true,"NTRUE",0,{"$f":"IFERROR(VLOOKUP(D1142,'Bank and Fund Details'!$B$14:$L$35,11,FALSE),\"N\")","v":"Y"},"NY"]
[null,null,null,"General Fund",null,null,null,null,null,{"$f":"VLOOKUP(D1143,'Bank and Fund Details'!$B$15:$D$36,3,FALSE)","v":0},{"$f":"VLOOKUP(D1143,'Bank and Fund Details'!$B$15:$C$36,2,FALSE)","v":"Unrestricted"},{"$f":"IFERROR(VLOOKUP(C1143,Descriptions!$I$6:$K$92,3,FALSE),\"\")","v":""},null,null,null,null,null,null,null,null,null,null,null,null,null,null,"General Fund",null,{"$f":"IFERROR(VLOOKUP(C1143,Descriptions!I:M,5,FALSE),\"N\")","v":"N"},true,"NTRUE",0,{"$f":"IFERROR(VLOOKUP(D1143,'Bank and Fund Details'!$B$14:$L$35,11,FALSE),\"N\")","v":"Y"},"NY"]
[null,null,null,"General Fund",null,null,null,null,null,{"$f":"VLOOKUP(D1144,'Bank and Fund Details'!$B$15:$D$36,3,FALSE)","v":0},{"$f":"VLOOKUP(D1144,'Bank and Fund Details'!$B$15:$C$36,2,FALSE)","v":"Unrestricted"},{"$f":"IFERROR(VLOOKUP(C1144,Descriptions!$I$6:$K$92,3,FALSE),\"\")","v":""},null,null,null,null,null,null,null,null,null,null,null,null,null,null,"General Fund",null,{"$f":"IFERROR(VLOOKUP(C1144,Descriptions!I:M,5,FALSE),\"N\")","v":"N"},true,"NTRUE",0,{"$f":"IFERROR(VLOOKUP(D1144,'Bank and Fund Details'!$B$14:$L$35,11,FALSE),\"N\")","v":"Y"},"NY"]
[null,null,null,"General Fund",null,null,null,null,null,{"$f":"VLOOKUP(D1145,'Bank and Fund Details'!$B$15:$D$36,3,FALSE)","v":0},{"$f":"VLOOKUP(D1145,'Bank and Fund Details'!$B$15:$C$36,2,FALSE)","v":"Unrestricted"},{"$f":"IFERROR(VLOOKUP(C1145,Descriptions!$I$6:$K$92,3,FALSE),\"\")","v":""},null,null,null,null,null,null,null,null,null,null,null,null,null,null,"General Fund",null,{"$f":"IFERROR(VLOOKUP(C1145,Descriptions!I:M,5,FALSE),\"N\")","v":"N"},true,"NTRUE",0,{"$f":"IFERROR(VLOOKUP(D1145,'Bank and Fund Details'!$B$14:$L$35,11,FALSE),\"N\")","v":"Y"},"NY"]
[null,null,null,"General Fund",null,null,null,null,null,{"$f":"VLOOKUP(D1146,'Bank and Fund Details'!$B$15:$D$36,3,FALSE)","v":0},{"$f":"VLOOKUP(D1146,'Bank and Fund Details'!$B$15:$C$36,2,FALSE)","v":"Unrestricted"},{"$f":"IFERROR(VLOOKUP(C1146,Descriptions!$I$6:$K$92,3,FALSE),\"\")","v":""},null,null,null,null,null,null,null,null,null,null,null,null,null,null,"General Fund",null,{"$f":"IFERROR(VLOOKUP(C1146,Descriptions!I:M,5,FALSE),\"N\")","v":"N"},true,"NTRUE",0,{"$f":"IFERROR(VLOOKUP(D1146,'Bank and Fund Details'!$B$14:$L$35,11,FALSE),\"N\")","v":"Y"},"NY"]
[null,null,null,"General Fund",null,null,null,null,null,{"$f":"VLOOKUP(D1147,'Bank and Fund Details'!$B$15:$D$36,3,FALSE)","v":0},{"$f":"VLOOKUP(D1147,'Bank and Fund Details'!$B$15:$C$36,2,FALSE)","v":"Unrestricted"},{"$f":"IFERROR(VLOOKUP(C1147,Descriptions!$I$6:$K$92,3,FALSE),\"\")","v":""},null,null,null,null,null,null,null,null,null,null,null,null,null,null,"General Fund",null,{"$f":"IFERROR(VLOOKUP(C1147,Descriptions!I:M,5,FALSE),\"N\")","v":"N"},true,"NTRUE",0,{"$f":"IFERROR(VLOOKUP(D1147,'Bank and Fund Details'!$B$14:$L$35,11,FALSE),\"N\")","v":"Y"},"NY"]
[null,null,null,"General Fund",null,null,null,null,null,{"$f":"VLOOKUP(D1148,'Bank and Fund Details'!$B$15:$D$36,3,FALSE)","v":0},{"$f":"VLOOKUP(D1148,'Bank and Fund Details'!$B$15:$C$36,2,FALSE)","v":"Unrestricted"},{"$f":"IFERROR(VLOOKUP(C1148,Descriptions!$I$6:$K$92,3,FALSE),\"\")","v":""},null,null,null,null,null,null,null,null,null,null,null,null,null,null,"General Fund",null,{"$f":"IFERROR(VLOOKUP(C1148,Descriptions!I:M,5,FALSE),\"N\")","v":"N"},true,"NTRUE",0,{"$f":"IFERROR(VLOOKUP(D1148,'Bank and Fund Details'!$B$14:$L$35,11,FALSE),\"N\")","v":"Y"},"NY"]
[null,null,null,"General Fund",null,null,null,null,null,{"$f":"VLOOKUP(D1149,'Bank and Fund Details'!$B$15:$D$36,3,FALSE)","v":0},{"$f":"VLOOKUP(D1149,'Bank and Fund Details'!$B$15:$C$36,2,FALSE)","v":"Unrestricted"},{"$f":"IFERROR(VLOOKUP(C1149,Descriptions!$I$6:$K$92,3,FALSE),\"\")","v":""},null,null,null,null,null,null,null,null,null,null,null,null,null,null,"General Fund",null,{"$f":"IFERROR(VLOOKUP(C1149,Descriptions!I:M,5,FALSE),\"N\")","v":"N"},true,"NTRUE",0,{"$f":"IFERROR(VLOOKUP(D1149,'Bank and Fund Details'!$B$14:$L$35,11,FALSE),\"N\")","v":"Y"},"NY"]
[null,null,null,"General Fund",null,null,null,null,null,{"$f":"VLOOKUP(D1150,'Bank and Fund Details'!$B$15:$D$36,3,FALSE)","v":0},{"$f":"VLOOKUP(D1150,'Bank and Fund Details'!$B$15:$C$36,2,FALSE)","v":"Unrestricted"},{"$f":"IFERROR(VLOOKUP(C1150,Descriptions!$I$6:$K$92,3,FALSE),\"\")","v":""},null,null,null,null,null,null,null,null,null,null,null,null,null,null,"General Fund",null,{"$f":"IFERROR(VLOOKUP(C1150,Descriptions!I:M,5,FALSE),\"N\")","v":"N"},true,"NTRUE",0,{"$f":"IFERROR(VLOOKUP(D1150,'Bank and Fund Details'!$B$14:$L$35,11,FALSE),\"N\")","v":"Y"},"NY"]
[null,null,null,"General Fund",null,null,null,null,null,{"$f":"VLOOKUP(D1151,'Bank and Fund Details'!$B$15:$D$36,3,FALSE)","v":0},{"$f":"VLOOKUP(D1151,'Bank and Fund Details'!$B$15:$C$36,2,FALSE)","v":"Unrestricted"},{"$f":"IFERROR(VLOOKUP(C1151,Descriptions!$I$6:$K$92,3,FALSE),\"\")","v":""},null,null,null,null,null,null,null,null,null,null,null,null,null,null,"General Fund",null,{"$f":"IFERROR(VLOOKUP(C1151,Descriptions!I:M,5,FALSE),\"N\")","v":"N"},true,"NTRUE",0,{"$f":"IFERROR(VLOOKUP(D1151,'Bank and Fund Details'!$B$14:$L$35,11,FALSE),\"N\")","v":"Y"},"NY"]
[null,null,null,"General Fund",null,null,null,null,null,{"$f":"VLOOKUP(D1152,'Bank and Fund Details'!$B$15:$D$36,3,FALSE)","v":0},{"$f":"VLOOKUP(D1152,'Bank and Fund Details'!$B$15:$C$36,2,FALSE)","v":"Unrestricted"},{"$f":"IFERROR(VLOOKUP(C1152,Descriptions!$I$6:$K$92,3,FALSE),\"\")","v":""},null,null,null,null,null,null,null,null,null,null,null,null,null,null,"General Fund",null,{"$f":"IFERROR(VLOOKUP(C1152,Descriptions!I:M,5,FALSE),\"N\")","v":"N"},true,"NTRUE",0,{"$f":"IFERROR(VLOOKUP(D1152,'Bank and Fund Details'!$B$14:$L$35,11,FALSE),\"N\")","v":"Y"},"NY"]
[null,null,null,"General Fund",null,null,null,null,null,{"$f":"VLOOKUP(D1153,'Bank and Fund Details'!$B$15:$D$36,3,FALSE)","v":0},{"$f":"VLOOKUP(D1153,'Bank and Fund Details'!$B$15:$C$36,2,FALSE)","v":"Unrestricted"},{"$f":"IFERROR(VLOOKUP(C1153,Descriptions!$I$6:$K$92,3,FALSE),\"\")","v":""},null,null,null,null,null,null,null,null,null,null,null,null,null,null,"General Fund",null,{"$f":"IFERROR(VLOOKUP(C1153,Descriptions!I:M,5,FALSE),\"N\")","v":"N"},true,"NTRUE",0,{"$f":"IFERROR(VLOOKUP(D1153,'Bank and Fund Details'!$B$14:$L$35,11,FALSE),\"N\")","v":"Y"},"NY"]
[null,null,null,"General Fund",null,null,null,null,null,{"$f":"VLOOKUP(D1154,'Bank and Fund Details'!$B$15:$D$36,3,FALSE)","v":0},{"$f":"VLOOKUP(D1154,'Bank and Fund Details'!$B$15:$C$36,2,FALSE)","v":"Unrestricted"},{"$f":"IFERROR(VLOOKUP(C1154,Descriptions!$I$6:$K$92,3,FALSE),\"\")","v":""},null,null,null,null,null,null,null,null,null,null,null,null,null,null,"General Fund",null,{"$f":"IFERROR(VLOOKUP(C1154,Descriptions!I:M,5,FALSE),\"N\")","v":"N"},true,"NTRUE",0,{"$f":"IFERROR(VLOOKUP(D1154,'Bank and Fund Details'!$B$14:$L$35,11,FALSE),\"N\")","v":"Y"},"NY"]
[null,null,null,"General Fund",null,null,null,null,null,{"$f":"VLOOKUP(D1155,'Bank and Fund Details'!$B$15:$D$36,3,FALSE)","v":0},{"$f":"VLOOKUP(D1155,'Bank and Fund Details'!$B$15:$C$36,2,FALSE)","v":"Unrestricted"},{"$f":"IFERROR(VLOOKUP(C1155,Descriptions!$I$6:$K$92,3,FALSE),\"\")","v":""},null,null,null,null,null,null,null,null,null,null,null,null,null,null,"General Fund",null,{"$f":"IFERROR(VLOOKUP(C1155,Descriptions!I:M,5,FALSE),\"N\")","v":"N"},true,"NTRUE",0,{"$f":"IFERROR(VLOOKUP(D1155,'Bank and Fund Details'!$B$14:$L$35,11,FALSE),\"N\")","v":"Y"},"NY"]
[null,null,null,"General Fund",null,null,null,null,null,{"$f":"VLOOKUP(D1156,'Bank and Fund Details'!$B$15:$D$36,3,FALSE)","v":0},{"$f":"VLOOKUP(D1156,'Bank and Fund Details'!$B$15:$C$36,2,FALSE)","v":"Unrestricted"},{"$f":"IFERROR(VLOOKUP(C1156,Descriptions!$I$6:$K$92,3,FALSE),\"\")","v":""},null,null,null,null,null,null,null,null,null,null,null,null,null,null,"General Fund",null,{"$f":"IFERROR(VLOOKUP(C1156,Descriptions!I:M,5,FALSE),\"N\")","v":"N"},true,"NTRUE",0,{"$f":"IFERROR(VLOOKUP(D1156,'Bank and Fund Details'!$B$14:$L$35,11,FALSE),\"N\")","v":"Y"},"NY"]
[null,null,null,"General Fund",null,null,null,null,null,{"$f":"VLOOKUP(D1157,'Bank and Fund Details'!$B$15:$D$36,3,FALSE)","v":0},{"$f":"VLOOKUP(D1157,'Bank and Fund Details'!$B$15:$C$36,2,FALSE)","v":"Unrestricted"},{"$f":"IFERROR(VLOOKUP(C1157,Descriptions!$I$6:$K$92,3,FALSE),\"\")","v":""},null,null,null,null,null,null,null,null,null,null,null,null,null,null,"General Fund",null,{"$f":"IFERROR(VLOOKUP(C1157,Descriptions!I:M,5,FALSE),\"N\")","v":"N"},true,"NTRUE",0,{"$f":"IFERROR(VLOOKUP(D1157,'Bank and Fund Details'!$B$14:$L$35,11,FALSE),\"N\")","v":"Y"},"NY"]
[null,null,null,"General Fund",null,null,null,null,null,{"$f":"VLOOKUP(D1158,'Bank and Fund Details'!$B$15:$D$36,3,FALSE)","v":0},{"$f":"VLOOKUP(D1158,'Bank and Fund Details'!$B$15:$C$36,2,FALSE)","v":"Unrestricted"},{"$f":"IFERROR(VLOOKUP(C1158,Descriptions!$I$6:$K$92,3,FALSE),\"\")","v":""},null,null,null,null,null,null,null,null,null,null,null,null,null,null,{"$f":"CONCATENATE(C1158,D1158)","v":"General Fund"},null,{"$f":"IFERROR(VLOOKUP(C1158,Descriptions!I:M,5,FALSE),\"N\")","v":"N"},{"$f":"ISBLANK(C1158)","v":true},{"$f":"CONCATENATE(AC1158,AD1158)","v":"NTRUE"},{"$f":"IF(AE1158=\"NFALSE\",1,0)","v":0},{"$f":"IFERROR(VLOOKUP(D1158,'Bank and Fund Details'!$B$14:$L$35,11,FALSE),\"N\")","v":"Y"},{"$f":"CONCATENATE(AC1158,AG1158)","v":"NY"}]
[null,null,null,"General Fund",null,null,null,null,null,{"$f":"VLOOKUP(D1159,'Bank and Fund Details'!$B$15:$D$36,3,FALSE)","v":0},{"$f":"VLOOKUP(D1159,'Bank and Fund Details'!$B$15:$C$36,2,FALSE)","v":"Unrestricted"},{"$f":"IFERROR(VLOOKUP(C1159,Descriptions!$I$6:$K$92,3,FALSE),\"\")","v":""},null,null,null,null,null,null,null,null,null,null,null,null,null,null,"General Fund",null,{"$f":"IFERROR(VLOOKUP(C1159,Descriptions!I:M,5,FALSE),\"N\")","v":"N"},true,"NTRUE",0,{"$f":"IFERROR(VLOOKUP(D1159,'Bank and Fund Details'!$B$14:$L$35,11,FALSE),\"N\")","v":"Y"},"NY"]
[null,null,null,"General Fund",null,null,null,null,null,{"$f":"VLOOKUP(D1160,'Bank and Fund Details'!$B$15:$D$36,3,FALSE)","v":0},{"$f":"VLOOKUP(D1160,'Bank and Fund Details'!$B$15:$C$36,2,FALSE)","v":"Unrestricted"},{"$f":"IFERROR(VLOOKUP(C1160,Descriptions!$I$6:$K$92,3,FALSE),\"\")","v":""},null,null,null,null,null,null,null,null,null,null,null,null,null,null,"General Fund",null,{"$f":"IFERROR(VLOOKUP(C1160,Descriptions!I:M,5,FALSE),\"N\")","v":"N"},true,"NTRUE",0,{"$f":"IFERROR(VLOOKUP(D1160,'Bank and Fund Details'!$B$14:$L$35,11,FALSE),\"N\")","v":"Y"},"NY"]
[null,null,null,"General Fund",null,null,null,null,null,{"$f":"VLOOKUP(D1161,'Bank and Fund Details'!$B$15:$D$36,3,FALSE)","v":0},{"$f":"VLOOKUP(D1161,'Bank and Fund Details'!$B$15:$C$36,2,FALSE)","v":"Unrestricted"},{"$f":"IFERROR(VLOOKUP(C1161,Descriptions!$I$6:$K$92,3,FALSE),\"\")","v":""},null,null,null,null,null,null,null,null,null,null,null,null,null,null,"General Fund",null,{"$f":"IFERROR(VLOOKUP(C1161,Descriptions!I:M,5,FALSE),\"N\")","v":"N"},true,"NTRUE",0,{"$f":"IFERROR(VLOOKUP(D1161,'Bank and Fund Details'!$B$14:$L$35,11,FALSE),\"N\")","v":"Y"},"NY"]
[null,null,null,"General Fund",null,null,null,null,null,{"$f":"VLOOKUP(D1162,'Bank and Fund Details'!$B$15:$D$36,3,FALSE)","v":0},{"$f":"VLOOKUP(D1162,'Bank and Fund Details'!$B$15:$C$36,2,FALSE)","v":"Unrestricted"},{"$f":"IFERROR(VLOOKUP(C1162,Descriptions!$I$6:$K$92,3,FALSE),\"\")","v":""},null,null,null,null,null,null,null,null,null,null,null,null,null,null,"General Fund",null,{"$f":"IFERROR(VLOOKUP(C1162,Descriptions!I:M,5,FALSE),\"N\")","v":"N"},true,"NTRUE",0,{"$f":"IFERROR(VLOOKUP(D1162,'Bank and Fund Details'!$B$14:$L$35,11,FALSE),\"N\")","v":"Y"},"NY"]
[null,null,null,"General Fund",null,null,null,null,null,{"$f":"VLOOKUP(D1163,'Bank and Fund Details'!$B$15:$D$36,3,FALSE)","v":0},{"$f":"VLOOKUP(D1163,'Bank and Fund Details'!$B$15:$C$36,2,FALSE)","v":"Unrestricted"},{"$f":"IFERROR(VLOOKUP(C1163,Descriptions!$I$6:$K$92,3,FALSE),\"\")","v":""},null,null,null,null,null,null,null,null,null,null,null,null,null,null,"General Fund",null,{"$f":"IFERROR(VLOOKUP(C1163,Descriptions!I:M,5,FALSE),\"N\")","v":"N"},true,"NTRUE",0,{"$f":"IFERROR(VLOOKUP(D1163,'Bank and Fund Details'!$B$14:$L$35,11,FALSE),\"N\")","v":"Y"},"NY"]
[null,null,null,"General Fund",null,null,null,null,null,{"$f":"VLOOKUP(D1164,'Bank and Fund Details'!$B$15:$D$36,3,FALSE)","v":0},{"$f":"VLOOKUP(D1164,'Bank and Fund Details'!$B$15:$C$36,2,FALSE)","v":"Unrestricted"},{"$f":"IFERROR(VLOOKUP(C1164,Descriptions!$I$6:$K$92,3,FALSE),\"\")","v":""},null,null,null,null,null,null,null,null,null,null,null,null,null,null,"General Fund",null,{"$f":"IFERROR(VLOOKUP(C1164,Descriptions!I:M,5,FALSE),\"N\")","v":"N"},true,"NTRUE",0,{"$f":"IFERROR(VLOOKUP(D1164,'Bank and Fund Details'!$B$14:$L$35,11,FALSE),\"N\")","v":"Y"},"NY"]
[null,null,null,"General Fund",null,null,null,null,null,{"$f":"VLOOKUP(D1165,'Bank and Fund Details'!$B$15:$D$36,3,FALSE)","v":0},{"$f":"VLOOKUP(D1165,'Bank and Fund Details'!$B$15:$C$36,2,FALSE)","v":"Unrestricted"},{"$f":"IFERROR(VLOOKUP(C1165,Descriptions!$I$6:$K$92,3,FALSE),\"\")","v":""},null,null,null,null,null,null,null,null,null,null,null,null,null,null,"General Fund",null,{"$f":"IFERROR(VLOOKUP(C1165,Descriptions!I:M,5,FALSE),\"N\")","v":"N"},true,"NTRUE",0,{"$f":"IFERROR(VLOOKUP(D1165,'Bank and Fund Details'!$B$14:$L$35,11,FALSE),\"N\")","v":"Y"},"NY"]
[null,null,null,"General Fund",null,null,null,null,null,{"$f":"VLOOKUP(D1166,'Bank and Fund Details'!$B$15:$D$36,3,FALSE)","v":0},{"$f":"VLOOKUP(D1166,'Bank and Fund Details'!$B$15:$C$36,2,FALSE)","v":"Unrestricted"},{"$f":"IFERROR(VLOOKUP(C1166,Descriptions!$I$6:$K$92,3,FALSE),\"\")","v":""},null,null,null,null,null,null,null,null,null,null,null,null,null,null,"General Fund",null,{"$f":"IFERROR(VLOOKUP(C1166,Descriptions!I:M,5,FALSE),\"N\")","v":"N"},true,"NTRUE",0,{"$f":"IFERROR(VLOOKUP(D1166,'Bank and Fund Details'!$B$14:$L$35,11,FALSE),\"N\")","v":"Y"},"NY"]
[null,null,null,"General Fund",null,null,null,null,null,{"$f":"VLOOKUP(D1167,'Bank and Fund Details'!$B$15:$D$36,3,FALSE)","v":0},{"$f":"VLOOKUP(D1167,'Bank and Fund Details'!$B$15:$C$36,2,FALSE)","v":"Unrestricted"},{"$f":"IFERROR(VLOOKUP(C1167,Descriptions!$I$6:$K$92,3,FALSE),\"\")","v":""},null,null,null,null,null,null,null,null,null,null,null,null,null,null,"General Fund",null,{"$f":"IFERROR(VLOOKUP(C1167,Descriptions!I:M,5,FALSE),\"N\")","v":"N"},true,"NTRUE",0,{"$f":"IFERROR(VLOOKUP(D1167,'Bank and Fund Details'!$B$14:$L$35,11,FALSE),\"N\")","v":"Y"},"NY"]
[null,null,null,"General Fund",null,null,null,null,null,{"$f":"VLOOKUP(D1168,'Bank and Fund Details'!$B$15:$D$36,3,FALSE)","v":0},{"$f":"VLOOKUP(D1168,'Bank and Fund Details'!$B$15:$C$36,2,FALSE)","v":"Unrestricted"},{"$f":"IFERROR(VLOOKUP(C1168,Descriptions!$I$6:$K$92,3,FALSE),\"\")","v":""},null,null,null,null,null,null,null,null,null,null,null,null,null,null,"General Fund",null,{"$f":"IFERROR(VLOOKUP(C1168,Descriptions!I:M,5,FALSE),\"N\")","v":"N"},true,"NTRUE",0,{"$f":"IFERROR(VLOOKUP(D1168,'Bank and Fund Details'!$B$14:$L$35,11,FALSE),\"N\")","v":"Y"},"NY"]
[null,null,null,"General Fund",null,null,null,null,null,{"$f":"VLOOKUP(D1169,'Bank and Fund Details'!$B$15:$D$36,3,FALSE)","v":0},{"$f":"VLOOKUP(D1169,'Bank and Fund Details'!$B$15:$C$36,2,FALSE)","v":"Unrestricted"},{"$f":"IFERROR(VLOOKUP(C1169,Descriptions!$I$6:$K$92,3,FALSE),\"\")","v":""},null,null,null,null,null,null,null,null,null,null,null,null,null,null,"General Fund",null,{"$f":"IFERROR(VLOOKUP(C1169,Descriptions!I:M,5,FALSE),\"N\")","v":"N"},true,"NTRUE",0,{"$f":"IFERROR(VLOOKUP(D1169,'Bank and Fund Details'!$B$14:$L$35,11,FALSE),\"N\")","v":"Y"},"NY"]
[null,null,null,"General Fund",null,null,null,null,null,{"$f":"VLOOKUP(D1170,'Bank and Fund Details'!$B$15:$D$36,3,FALSE)","v":0},{"$f":"VLOOKUP(D1170,'Bank and Fund Details'!$B$15:$C$36,2,FALSE)","v":"Unrestricted"},{"$f":"IFERROR(VLOOKUP(C1170,Descriptions!$I$6:$K$92,3,FALSE),\"\")","v":""},null,null,null,null,null,null,null,null,null,null,null,null,null,null,"General Fund",null,{"$f":"IFERROR(VLOOKUP(C1170,Descriptions!I:M,5,FALSE),\"N\")","v":"N"},true,"NTRUE",0,{"$f":"IFERROR(VLOOKUP(D1170,'Bank and Fund Details'!$B$14:$L$35,11,FALSE),\"N\")","v":"Y"},"NY"]
[null,null,null,"General Fund",null,null,null,null,null,{"$f":"VLOOKUP(D1171,'Bank and Fund Details'!$B$15:$D$36,3,FALSE)","v":0},{"$f":"VLOOKUP(D1171,'Bank and Fund Details'!$B$15:$C$36,2,FALSE)","v":"Unrestricted"},{"$f":"IFERROR(VLOOKUP(C1171,Descriptions!$I$6:$K$92,3,FALSE),\"\")","v":""},null,null,null,null,null,null,null,null,null,null,null,null,null,null,"General Fund",null,{"$f":"IFERROR(VLOOKUP(C1171,Descriptions!I:M,5,FALSE),\"N\")","v":"N"},true,"NTRUE",0,{"$f":"IFERROR(VLOOKUP(D1171,'Bank and Fund Details'!$B$14:$L$35,11,FALSE),\"N\")","v":"Y"},"NY"]
[null,null,null,"General Fund",null,null,null,null,null,{"$f":"VLOOKUP(D1172,'Bank and Fund Details'!$B$15:$D$36,3,FALSE)","v":0},{"$f":"VLOOKUP(D1172,'Bank and Fund Details'!$B$15:$C$36,2,FALSE)","v":"Unrestricted"},{"$f":"IFERROR(VLOOKUP(C1172,Descriptions!$I$6:$K$92,3,FALSE),\"\")","v":""},null,null,null,null,null,null,null,null,null,null,null,null,null,null,"General Fund",null,{"$f":"IFERROR(VLOOKUP(C1172,Descriptions!I:M,5,FALSE),\"N\")","v":"N"},true,"NTRUE",0,{"$f":"IFERROR(VLOOKUP(D1172,'Bank and Fund Details'!$B$14:$L$35,11,FALSE),\"N\")","v":"Y"},"NY"]
[null,null,null,"General Fund",null,null,null,null,null,{"$f":"VLOOKUP(D1173,'Bank and Fund Details'!$B$15:$D$36,3,FALSE)","v":0},{"$f":"VLOOKUP(D1173,'Bank and Fund Details'!$B$15:$C$36,2,FALSE)","v":"Unrestricted"},{"$f":"IFERROR(VLOOKUP(C1173,Descriptions!$I$6:$K$92,3,FALSE),\"\")","v":""},null,null,null,null,null,null,null,null,null,null,null,null,null,null,"General Fund",null,{"$f":"IFERROR(VLOOKUP(C1173,Descriptions!I:M,5,FALSE),\"N\")","v":"N"},true,"NTRUE",0,{"$f":"IFERROR(VLOOKUP(D1173,'Bank and Fund Details'!$B$14:$L$35,11,FALSE),\"N\")","v":"Y"},"NY"]
[null,null,null,"General Fund",null,null,null,null,null,{"$f":"VLOOKUP(D1174,'Bank and Fund Details'!$B$15:$D$36,3,FALSE)","v":0},{"$f":"VLOOKUP(D1174,'Bank and Fund Details'!$B$15:$C$36,2,FALSE)","v":"Unrestricted"},{"$f":"IFERROR(VLOOKUP(C1174,Descriptions!$I$6:$K$92,3,FALSE),\"\")","v":""},null,null,null,null,null,null,null,null,null,null,null,null,null,null,"General Fund",null,{"$f":"IFERROR(VLOOKUP(C1174,Descriptions!I:M,5,FALSE),\"N\")","v":"N"},true,"NTRUE",0,{"$f":"IFERROR(VLOOKUP(D1174,'Bank and Fund Details'!$B$14:$L$35,11,FALSE),\"N\")","v":"Y"},"NY"]
[null,null,null,"General Fund",null,null,null,null,null,{"$f":"VLOOKUP(D1175,'Bank and Fund Details'!$B$15:$D$36,3,FALSE)","v":0},{"$f":"VLOOKUP(D1175,'Bank and Fund Details'!$B$15:$C$36,2,FALSE)","v":"Unrestricted"},{"$f":"IFERROR(VLOOKUP(C1175,Descriptions!$I$6:$K$92,3,FALSE),\"\")","v":""},null,null,null,null,null,null,null,null,null,null,null,null,null,null,"General Fund",null,{"$f":"IFERROR(VLOOKUP(C1175,Descriptions!I:M,5,FALSE),\"N\")","v":"N"},true,"NTRUE",0,{"$f":"IFERROR(VLOOKUP(D1175,'Bank and Fund Details'!$B$14:$L$35,11,FALSE),\"N\")","v":"Y"},"NY"]
[null,null,null,"General Fund",null,null,null,null,null,{"$f":"VLOOKUP(D1176,'Bank and Fund Details'!$B$15:$D$36,3,FALSE)","v":0},{"$f":"VLOOKUP(D1176,'Bank and Fund Details'!$B$15:$C$36,2,FALSE)","v":"Unrestricted"},{"$f":"IFERROR(VLOOKUP(C1176,Descriptions!$I$6:$K$92,3,FALSE),\"\")","v":""},null,null,null,null,null,null,null,null,null,null,null,null,null,null,"General Fund",null,{"$f":"IFERROR(VLOOKUP(C1176,Descriptions!I:M,5,FALSE),\"N\")","v":"N"},true,"NTRUE",0,{"$f":"IFERROR(VLOOKUP(D1176,'Bank and Fund Details'!$B$14:$L$35,11,FALSE),\"N\")","v":"Y"},"NY"]
[null,null,null,"General Fund",null,null,null,null,null,{"$f":"VLOOKUP(D1177,'Bank and Fund Details'!$B$15:$D$36,3,FALSE)","v":0},{"$f":"VLOOKUP(D1177,'Bank and Fund Details'!$B$15:$C$36,2,FALSE)","v":"Unrestricted"},{"$f":"IFERROR(VLOOKUP(C1177,Descriptions!$I$6:$K$92,3,FALSE),\"\")","v":""},null,null,null,null,null,null,null,null,null,null,null,null,null,null,"General Fund",null,{"$f":"IFERROR(VLOOKUP(C1177,Descriptions!I:M,5,FALSE),\"N\")","v":"N"},true,"NTRUE",0,{"$f":"IFERROR(VLOOKUP(D1177,'Bank and Fund Details'!$B$14:$L$35,11,FALSE),\"N\")","v":"Y"},"NY"]
[null,null,null,"General Fund",null,null,null,null,null,{"$f":"VLOOKUP(D1178,'Bank and Fund Details'!$B$15:$D$36,3,FALSE)","v":0},{"$f":"VLOOKUP(D1178,'Bank and Fund Details'!$B$15:$C$36,2,FALSE)","v":"Unrestricted"},{"$f":"IFERROR(VLOOKUP(C1178,Descriptions!$I$6:$K$92,3,FALSE),\"\")","v":""},null,null,null,null,null,null,null,null,null,null,null,null,null,null,"General Fund",null,{"$f":"IFERROR(VLOOKUP(C1178,Descriptions!I:M,5,FALSE),\"N\")","v":"N"},true,"NTRUE",0,{"$f":"IFERROR(VLOOKUP(D1178,'Bank and Fund Details'!$B$14:$L$35,11,FALSE),\"N\")","v":"Y"},"NY"]
[null,null,null,"General Fund",null,null,null,null,null,{"$f":"VLOOKUP(D1179,'Bank and Fund Details'!$B$15:$D$36,3,FALSE)","v":0},{"$f":"VLOOKUP(D1179,'Bank and Fund Details'!$B$15:$C$36,2,FALSE)","v":"Unrestricted"},{"$f":"IFERROR(VLOOKUP(C1179,Descriptions!$I$6:$K$92,3,FALSE),\"\")","v":""},null,null,null,null,null,null,null,null,null,null,null,null,null,null,"General Fund",null,{"$f":"IFERROR(VLOOKUP(C1179,Descriptions!I:M,5,FALSE),\"N\")","v":"N"},true,"NTRUE",0,{"$f":"IFERROR(VLOOKUP(D1179,'Bank and Fund Details'!$B$14:$L$35,11,FALSE),\"N\")","v":"Y"},"NY"]
[null,null,null,"General Fund",null,null,null,null,null,{"$f":"VLOOKUP(D1180,'Bank and Fund Details'!$B$15:$D$36,3,FALSE)","v":0},{"$f":"VLOOKUP(D1180,'Bank and Fund Details'!$B$15:$C$36,2,FALSE)","v":"Unrestricted"},{"$f":"IFERROR(VLOOKUP(C1180,Descriptions!$I$6:$K$92,3,FALSE),\"\")","v":""},null,null,null,null,null,null,null,null,null,null,null,null,null,null,"General Fund",null,{"$f":"IFERROR(VLOOKUP(C1180,Descriptions!I:M,5,FALSE),\"N\")","v":"N"},true,"NTRUE",0,{"$f":"IFERROR(VLOOKUP(D1180,'Bank and Fund Details'!$B$14:$L$35,11,FALSE),\"N\")","v":"Y"},"NY"]
[null,null,null,"General Fund",null,null,null,null,null,{"$f":"VLOOKUP(D1181,'Bank and Fund Details'!$B$15:$D$36,3,FALSE)","v":0},{"$f":"VLOOKUP(D1181,'Bank and Fund Details'!$B$15:$C$36,2,FALSE)","v":"Unrestricted"},{"$f":"IFERROR(VLOOKUP(C1181,Descriptions!$I$6:$K$92,3,FALSE),\"\")","v":""},null,null,null,null,null,null,null,null,null,null,null,null,null,null,"General Fund",null,{"$f":"IFERROR(VLOOKUP(C1181,Descriptions!I:M,5,FALSE),\"N\")","v":"N"},true,"NTRUE",0,{"$f":"IFERROR(VLOOKUP(D1181,'Bank and Fund Details'!$B$14:$L$35,11,FALSE),\"N\")","v":"Y"},"NY"]
[null,null,null,"General Fund",null,null,null,null,null,{"$f":"VLOOKUP(D1182,'Bank and Fund Details'!$B$15:$D$36,3,FALSE)","v":0},{"$f":"VLOOKUP(D1182,'Bank and Fund Details'!$B$15:$C$36,2,FALSE)","v":"Unrestricted"},{"$f":"IFERROR(VLOOKUP(C1182,Descriptions!$I$6:$K$92,3,FALSE),\"\")","v":""},null,null,null,null,null,null,null,null,null,null,null,null,null,null,"General Fund",null,{"$f":"IFERROR(VLOOKUP(C1182,Descriptions!I:M,5,FALSE),\"N\")","v":"N"},true,"NTRUE",0,{"$f":"IFERROR(VLOOKUP(D1182,'Bank and Fund Details'!$B$14:$L$35,11,FALSE),\"N\")","v":"Y"},"NY"]
[null,null,null,"General Fund",null,null,null,null,null,{"$f":"VLOOKUP(D1183,'Bank and Fund Details'!$B$15:$D$36,3,FALSE)","v":0},{"$f":"VLOOKUP(D1183,'Bank and Fund Details'!$B$15:$C$36,2,FALSE)","v":"Unrestricted"},{"$f":"IFERROR(VLOOKUP(C1183,Descriptions!$I$6:$K$92,3,FALSE),\"\")","v":""},null,null,null,null,null,null,null,null,null,null,null,null,null,null,"General Fund",null,{"$f":"IFERROR(VLOOKUP(C1183,Descriptions!I:M,5,FALSE),\"N\")","v":"N"},true,"NTRUE",0,{"$f":"IFERROR(VLOOKUP(D1183,'Bank and Fund Details'!$B$14:$L$35,11,FALSE),\"N\")","v":"Y"},"NY"]
[null,null,null,"General Fund",null,null,null,null,null,{"$f":"VLOOKUP(D1184,'Bank and Fund Details'!$B$15:$D$36,3,FALSE)","v":0},{"$f":"VLOOKUP(D1184,'Bank and Fund Details'!$B$15:$C$36,2,FALSE)","v":"Unrestricted"},{"$f":"IFERROR(VLOOKUP(C1184,Descriptions!$I$6:$K$92,3,FALSE),\"\")","v":""},null,null,null,null,null,null,null,null,null,null,null,null,null,null,"General Fund",null,{"$f":"IFERROR(VLOOKUP(C1184,Descriptions!I:M,5,FALSE),\"N\")","v":"N"},true,"NTRUE",0,{"$f":"IFERROR(VLOOKUP(D1184,'Bank and Fund Details'!$B$14:$L$35,11,FALSE),\"N\")","v":"Y"},"NY"]
[null,null,null,"General Fund",null,null,null,null,null,{"$f":"VLOOKUP(D1185,'Bank and Fund Details'!$B$15:$D$36,3,FALSE)","v":0},{"$f":"VLOOKUP(D1185,'Bank and Fund Details'!$B$15:$C$36,2,FALSE)","v":"Unrestricted"},{"$f":"IFERROR(VLOOKUP(C1185,Descriptions!$I$6:$K$92,3,FALSE),\"\")","v":""},null,null,null,null,null,null,null,null,null,null,null,null,null,null,"General Fund",null,{"$f":"IFERROR(VLOOKUP(C1185,Descriptions!I:M,5,FALSE),\"N\")","v":"N"},true,"NTRUE",0,{"$f":"IFERROR(VLOOKUP(D1185,'Bank and Fund Details'!$B$14:$L$35,11,FALSE),\"N\")","v":"Y"},"NY"]
[null,null,null,"General Fund",null,null,null,null,null,{"$f":"VLOOKUP(D1186,'Bank and Fund Details'!$B$15:$D$36,3,FALSE)","v":0},{"$f":"VLOOKUP(D1186,'Bank and Fund Details'!$B$15:$C$36,2,FALSE)","v":"Unrestricted"},{"$f":"IFERROR(VLOOKUP(C1186,Descriptions!$I$6:$K$92,3,FALSE),\"\")","v":""},null,null,null,null,null,null,null,null,null,null,null,null,null,null,"General Fund",null,{"$f":"IFERROR(VLOOKUP(C1186,Descriptions!I:M,5,FALSE),\"N\")","v":"N"},true,"NTRUE",0,{"$f":"IFERROR(VLOOKUP(D1186,'Bank and Fund Details'!$B$14:$L$35,11,FALSE),\"N\")","v":"Y"},"NY"]
[null,null,null,"General Fund",null,null,null,null,null,{"$f":"VLOOKUP(D1187,'Bank and Fund Details'!$B$15:$D$36,3,FALSE)","v":0},{"$f":"VLOOKUP(D1187,'Bank and Fund Details'!$B$15:$C$36,2,FALSE)","v":"Unrestricted"},{"$f":"IFERROR(VLOOKUP(C1187,Descriptions!$I$6:$K$92,3,FALSE),\"\")","v":""},null,null,null,null,null,null,null,null,null,null,null,null,null,null,"General Fund",null,{"$f":"IFERROR(VLOOKUP(C1187,Descriptions!I:M,5,FALSE),\"N\")","v":"N"},true,"NTRUE",0,{"$f":"IFERROR(VLOOKUP(D1187,'Bank and Fund Details'!$B$14:$L$35,11,FALSE),\"N\")","v":"Y"},"NY"]
[null,null,null,"General Fund",null,null,null,null,null,{"$f":"VLOOKUP(D1188,'Bank and Fund Details'!$B$15:$D$36,3,FALSE)","v":0},{"$f":"VLOOKUP(D1188,'Bank and Fund Details'!$B$15:$C$36,2,FALSE)","v":"Unrestricted"},{"$f":"IFERROR(VLOOKUP(C1188,Descriptions!$I$6:$K$92,3,FALSE),\"\")","v":""},null,null,null,null,null,null,null,null,null,null,null,null,null,null,"General Fund",null,{"$f":"IFERROR(VLOOKUP(C1188,Descriptions!I:M,5,FALSE),\"N\")","v":"N"},true,"NTRUE",0,{"$f":"IFERROR(VLOOKUP(D1188,'Bank and Fund Details'!$B$14:$L$35,11,FALSE),\"N\")","v":"Y"},"NY"]
[null,null,null,"General Fund",null,null,null,null,null,{"$f":"VLOOKUP(D1189,'Bank and Fund Details'!$B$15:$D$36,3,FALSE)","v":0},{"$f":"VLOOKUP(D1189,'Bank and Fund Details'!$B$15:$C$36,2,FALSE)","v":"Unrestricted"},{"$f":"IFERROR(VLOOKUP(C1189,Descriptions!$I$6:$K$92,3,FALSE),\"\")","v":""},null,null,null,null,null,null,null,null,null,null,null,null,null,null,"General Fund",null,{"$f":"IFERROR(VLOOKUP(C1189,Descriptions!I:M,5,FALSE),\"N\")","v":"N"},true,"NTRUE",0,{"$f":"IFERROR(VLOOKUP(D1189,'Bank and Fund Details'!$B$14:$L$35,11,FALSE),\"N\")","v":"Y"},"NY"]
[null,null,null,"General Fund",null,null,null,null,null,{"$f":"VLOOKUP(D1190,'Bank and Fund Details'!$B$15:$D$36,3,FALSE)","v":0},{"$f":"VLOOKUP(D1190,'Bank and Fund Details'!$B$15:$C$36,2,FALSE)","v":"Unrestricted"},{"$f":"IFERROR(VLOOKUP(C1190,Descriptions!$I$6:$K$92,3,FALSE),\"\")","v":""},null,null,null,null,null,null,null,null,null,null,null,null,null,null,"General Fund",null,{"$f":"IFERROR(VLOOKUP(C1190,Descriptions!I:M,5,FALSE),\"N\")","v":"N"},true,"NTRUE",0,{"$f":"IFERROR(VLOOKUP(D1190,'Bank and Fund Details'!$B$14:$L$35,11,FALSE),\"N\")","v":"Y"},"NY"]
[null,null,null,"General Fund",null,null,null,null,null,{"$f":"VLOOKUP(D1191,'Bank and Fund Details'!$B$15:$D$36,3,FALSE)","v":0},{"$f":"VLOOKUP(D1191,'Bank and Fund Details'!$B$15:$C$36,2,FALSE)","v":"Unrestricted"},{"$f":"IFERROR(VLOOKUP(C1191,Descriptions!$I$6:$K$92,3,FALSE),\"\")","v":""},null,null,null,null,null,null,null,null,null,null,null,null,null,null,"General Fund",null,{"$f":"IFERROR(VLOOKUP(C1191,Descriptions!I:M,5,FALSE),\"N\")","v":"N"},true,"NTRUE",0,{"$f":"IFERROR(VLOOKUP(D1191,'Bank and Fund Details'!$B$14:$L$35,11,FALSE),\"N\")","v":"Y"},"NY"]
[null,null,null,"General Fund",null,null,null,null,null,{"$f":"VLOOKUP(D1192,'Bank and Fund Details'!$B$15:$D$36,3,FALSE)","v":0},{"$f":"VLOOKUP(D1192,'Bank and Fund Details'!$B$15:$C$36,2,FALSE)","v":"Unrestricted"},{"$f":"IFERROR(VLOOKUP(C1192,Descriptions!$I$6:$K$92,3,FALSE),\"\")","v":""},null,null,null,null,null,null,null,null,null,null,null,null,null,null,"General Fund",null,{"$f":"IFERROR(VLOOKUP(C1192,Descriptions!I:M,5,FALSE),\"N\")","v":"N"},true,"NTRUE",0,{"$f":"IFERROR(VLOOKUP(D1192,'Bank and Fund Details'!$B$14:$L$35,11,FALSE),\"N\")","v":"Y"},"NY"]
[null,null,null,"General Fund",null,null,null,null,null,{"$f":"VLOOKUP(D1193,'Bank and Fund Details'!$B$15:$D$36,3,FALSE)","v":0},{"$f":"VLOOKUP(D1193,'Bank and Fund Details'!$B$15:$C$36,2,FALSE)","v":"Unrestricted"},{"$f":"IFERROR(VLOOKUP(C1193,Descriptions!$I$6:$K$92,3,FALSE),\"\")","v":""},null,null,null,null,null,null,null,null,null,null,null,null,null,null,"General Fund",null,{"$f":"IFERROR(VLOOKUP(C1193,Descriptions!I:M,5,FALSE),\"N\")","v":"N"},true,"NTRUE",0,{"$f":"IFERROR(VLOOKUP(D1193,'Bank and Fund Details'!$B$14:$L$35,11,FALSE),\"N\")","v":"Y"},"NY"]
[null,null,null,"General Fund",null,null,null,null,null,{"$f":"VLOOKUP(D1194,'Bank and Fund Details'!$B$15:$D$36,3,FALSE)","v":0},{"$f":"VLOOKUP(D1194,'Bank and Fund Details'!$B$15:$C$36,2,FALSE)","v":"Unrestricted"},{"$f":"IFERROR(VLOOKUP(C1194,Descriptions!$I$6:$K$92,3,FALSE),\"\")","v":""},null,null,null,null,null,null,null,null,null,null,null,null,null,null,"General Fund",null,{"$f":"IFERROR(VLOOKUP(C1194,Descriptions!I:M,5,FALSE),\"N\")","v":"N"},true,"NTRUE",0,{"$f":"IFERROR(VLOOKUP(D1194,'Bank and Fund Details'!$B$14:$L$35,11,FALSE),\"N\")","v":"Y"},"NY"]
[null,null,null,"General Fund",null,null,null,null,null,{"$f":"VLOOKUP(D1195,'Bank and Fund Details'!$B$15:$D$36,3,FALSE)","v":0},{"$f":"VLOOKUP(D1195,'Bank and Fund Details'!$B$15:$C$36,2,FALSE)","v":"Unrestricted"},{"$f":"IFERROR(VLOOKUP(C1195,Descriptions!$I$6:$K$92,3,FALSE),\"\")","v":""},null,null,null,null,null,null,null,null,null,null,null,null,null,null,"General Fund",null,{"$f":"IFERROR(VLOOKUP(C1195,Descriptions!I:M,5,FALSE),\"N\")","v":"N"},true,"NTRUE",0,{"$f":"IFERROR(VLOOKUP(D1195,'Bank and Fund Details'!$B$14:$L$35,11,FALSE),\"N\")","v":"Y"},"NY"]
[null,null,null,"General Fund",null,null,null,null,null,{"$f":"VLOOKUP(D1196,'Bank and Fund Details'!$B$15:$D$36,3,FALSE)","v":0},{"$f":"VLOOKUP(D1196,'Bank and Fund Details'!$B$15:$C$36,2,FALSE)","v":"Unrestricted"},{"$f":"IFERROR(VLOOKUP(C1196,Descriptions!$I$6:$K$92,3,FALSE),\"\")","v":""},null,null,null,null,null,null,null,null,null,null,null,null,null,null,"General Fund",null,{"$f":"IFERROR(VLOOKUP(C1196,Descriptions!I:M,5,FALSE),\"N\")","v":"N"},true,"NTRUE",0,{"$f":"IFERROR(VLOOKUP(D1196,'Bank and Fund Details'!$B$14:$L$35,11,FALSE),\"N\")","v":"Y"},"NY"]
[null,null,null,"General Fund",null,null,null,null,null,{"$f":"VLOOKUP(D1197,'Bank and Fund Details'!$B$15:$D$36,3,FALSE)","v":0},{"$f":"VLOOKUP(D1197,'Bank and Fund Details'!$B$15:$C$36,2,FALSE)","v":"Unrestricted"},{"$f":"IFERROR(VLOOKUP(C1197,Descriptions!$I$6:$K$92,3,FALSE),\"\")","v":""},null,null,null,null,null,null,null,null,null,null,null,null,null,null,"General Fund",null,{"$f":"IFERROR(VLOOKUP(C1197,Descriptions!I:M,5,FALSE),\"N\")","v":"N"},true,"NTRUE",0,{"$f":"IFERROR(VLOOKUP(D1197,'Bank and Fund Details'!$B$14:$L$35,11,FALSE),\"N\")","v":"Y"},"NY"]
[null,null,null,"General Fund",null,null,null,null,null,{"$f":"VLOOKUP(D1198,'Bank and Fund Details'!$B$15:$D$36,3,FALSE)","v":0},{"$f":"VLOOKUP(D1198,'Bank and Fund Details'!$B$15:$C$36,2,FALSE)","v":"Unrestricted"},{"$f":"IFERROR(VLOOKUP(C1198,Descriptions!$I$6:$K$92,3,FALSE),\"\")","v":""},null,null,null,null,null,null,null,null,null,null,null,null,null,null,"General Fund",null,{"$f":"IFERROR(VLOOKUP(C1198,Descriptions!I:M,5,FALSE),\"N\")","v":"N"},true,"NTRUE",0,{"$f":"IFERROR(VLOOKUP(D1198,'Bank and Fund Details'!$B$14:$L$35,11,FALSE),\"N\")","v":"Y"},"NY"]
[null,null,null,"General Fund",null,null,null,null,null,{"$f":"VLOOKUP(D1199,'Bank and Fund Details'!$B$15:$D$36,3,FALSE)","v":0},{"$f":"VLOOKUP(D1199,'Bank and Fund Details'!$B$15:$C$36,2,FALSE)","v":"Unrestricted"},{"$f":"IFERROR(VLOOKUP(C1199,Descriptions!$I$6:$K$92,3,FALSE),\"\")","v":""},null,null,null,null,null,null,null,null,null,null,null,null,null,null,"General Fund",null,{"$f":"IFERROR(VLOOKUP(C1199,Descriptions!I:M,5,FALSE),\"N\")","v":"N"},true,"NTRUE",0,{"$f":"IFERROR(VLOOKUP(D1199,'Bank and Fund Details'!$B$14:$L$35,11,FALSE),\"N\")","v":"Y"},"NY"]
[null,null,null,"General Fund",null,null,null,null,null,{"$f":"VLOOKUP(D1200,'Bank and Fund Details'!$B$15:$D$36,3,FALSE)","v":0},{"$f":"VLOOKUP(D1200,'Bank and Fund Details'!$B$15:$C$36,2,FALSE)","v":"Unrestricted"},{"$f":"IFERROR(VLOOKUP(C1200,Descriptions!$I$6:$K$92,3,FALSE),\"\")","v":""},null,null,null,null,null,null,null,null,null,null,null,null,null,null,"General Fund",null,{"$f":"IFERROR(VLOOKUP(C1200,Descriptions!I:M,5,FALSE),\"N\")","v":"N"},true,"NTRUE",0,{"$f":"IFERROR(VLOOKUP(D1200,'Bank and Fund Details'!$B$14:$L$35,11,FALSE),\"N\")","v":"Y"},"NY"]
[null,null,null,"General Fund",null,null,null,null,null,{"$f":"VLOOKUP(D1201,'Bank and Fund Details'!$B$15:$D$36,3,FALSE)","v":0},{"$f":"VLOOKUP(D1201,'Bank and Fund Details'!$B$15:$C$36,2,FALSE)","v":"Unrestricted"},{"$f":"IFERROR(VLOOKUP(C1201,Descriptions!$I$6:$K$92,3,FALSE),\"\")","v":""},null,null,null,null,null,null,null,null,null,null,null,null,null,null,"General Fund",null,{"$f":"IFERROR(VLOOKUP(C1201,Descriptions!I:M,5,FALSE),\"N\")","v":"N"},true,"NTRUE",0,{"$f":"IFERROR(VLOOKUP(D1201,'Bank and Fund Details'!$B$14:$L$35,11,FALSE),\"N\")","v":"Y"},"NY"]
[null,null,null,"General Fund",null,null,null,null,null,{"$f":"VLOOKUP(D1202,'Bank and Fund Details'!$B$15:$D$36,3,FALSE)","v":0},{"$f":"VLOOKUP(D1202,'Bank and Fund Details'!$B$15:$C$36,2,FALSE)","v":"Unrestricted"},{"$f":"IFERROR(VLOOKUP(C1202,Descriptions!$I$6:$K$92,3,FALSE),\"\")","v":""},null,null,null,null,null,null,null,null,null,null,null,null,null,null,"General Fund",null,{"$f":"IFERROR(VLOOKUP(C1202,Descriptions!I:M,5,FALSE),\"N\")","v":"N"},true,"NTRUE",0,{"$f":"IFERROR(VLOOKUP(D1202,'Bank and Fund Details'!$B$14:$L$35,11,FALSE),\"N\")","v":"Y"},"NY"]
[null,null,null,"General Fund",null,null,null,null,null,{"$f":"VLOOKUP(D1203,'Bank and Fund Details'!$B$15:$D$36,3,FALSE)","v":0},{"$f":"VLOOKUP(D1203,'Bank and Fund Details'!$B$15:$C$36,2,FALSE)","v":"Unrestricted"},{"$f":"IFERROR(VLOOKUP(C1203,Descriptions!$I$6:$K$92,3,FALSE),\"\")","v":""},null,null,null,null,null,null,null,null,null,null,null,null,null,null,"General Fund",null,{"$f":"IFERROR(VLOOKUP(C1203,Descriptions!I:M,5,FALSE),\"N\")","v":"N"},true,"NTRUE",0,{"$f":"IFERROR(VLOOKUP(D1203,'Bank and Fund Details'!$B$14:$L$35,11,FALSE),\"N\")","v":"Y"},"NY"]
[null,null,null,"General Fund",null,null,null,null,null,{"$f":"VLOOKUP(D1204,'Bank and Fund Details'!$B$15:$D$36,3,FALSE)","v":0},{"$f":"VLOOKUP(D1204,'Bank and Fund Details'!$B$15:$C$36,2,FALSE)","v":"Unrestricted"},{"$f":"IFERROR(VLOOKUP(C1204,Descriptions!$I$6:$K$92,3,FALSE),\"\")","v":""},null,null,null,null,null,null,null,null,null,null,null,null,null,null,"General Fund",null,{"$f":"IFERROR(VLOOKUP(C1204,Descriptions!I:M,5,FALSE),\"N\")","v":"N"},true,"NTRUE",0,{"$f":"IFERROR(VLOOKUP(D1204,'Bank and Fund Details'!$B$14:$L$35,11,FALSE),\"N\")","v":"Y"},"NY"]
[null,null,null,"General Fund",null,null,null,null,null,{"$f":"VLOOKUP(D1205,'Bank and Fund Details'!$B$15:$D$36,3,FALSE)","v":0},{"$f":"VLOOKUP(D1205,'Bank and Fund Details'!$B$15:$C$36,2,FALSE)","v":"Unrestricted"},{"$f":"IFERROR(VLOOKUP(C1205,Descriptions!$I$6:$K$92,3,FALSE),\"\")","v":""},null,null,null,null,null,null,null,null,null,null,null,null,null,null,"General Fund",null,{"$f":"IFERROR(VLOOKUP(C1205,Descriptions!I:M,5,FALSE),\"N\")","v":"N"},true,"NTRUE",0,{"$f":"IFERROR(VLOOKUP(D1205,'Bank and Fund Details'!$B$14:$L$35,11,FALSE),\"N\")","v":"Y"},"NY"]
[null,null,null,"General Fund",null,null,null,null,null,{"$f":"VLOOKUP(D1206,'Bank and Fund Details'!$B$15:$D$36,3,FALSE)","v":0},{"$f":"VLOOKUP(D1206,'Bank and Fund Details'!$B$15:$C$36,2,FALSE)","v":"Unrestricted"},{"$f":"IFERROR(VLOOKUP(C1206,Descriptions!$I$6:$K$92,3,FALSE),\"\")","v":""},null,null,null,null,null,null,null,null,null,null,null,null,null,null,"General Fund",null,{"$f":"IFERROR(VLOOKUP(C1206,Descriptions!I:M,5,FALSE),\"N\")","v":"N"},true,"NTRUE",0,{"$f":"IFERROR(VLOOKUP(D1206,'Bank and Fund Details'!$B$14:$L$35,11,FALSE),\"N\")","v":"Y"},"NY"]
[null,null,null,"General Fund",null,null,null,null,null,{"$f":"VLOOKUP(D1207,'Bank and Fund Details'!$B$15:$D$36,3,FALSE)","v":0},{"$f":"VLOOKUP(D1207,'Bank and Fund Details'!$B$15:$C$36,2,FALSE)","v":"Unrestricted"},{"$f":"IFERROR(VLOOKUP(C1207,Descriptions!$I$6:$K$92,3,FALSE),\"\")","v":""},null,null,null,null,null,null,null,null,null,null,null,null,null,null,"General Fund",null,{"$f":"IFERROR(VLOOKUP(C1207,Descriptions!I:M,5,FALSE),\"N\")","v":"N"},true,"NTRUE",0,{"$f":"IFERROR(VLOOKUP(D1207,'Bank and Fund Details'!$B$14:$L$35,11,FALSE),\"N\")","v":"Y"},"NY"]
[null,null,null,"General Fund",null,null,null,null,null,{"$f":"VLOOKUP(D1208,'Bank and Fund Details'!$B$15:$D$36,3,FALSE)","v":0},{"$f":"VLOOKUP(D1208,'Bank and Fund Details'!$B$15:$C$36,2,FALSE)","v":"Unrestricted"},{"$f":"IFERROR(VLOOKUP(C1208,Descriptions!$I$6:$K$92,3,FALSE),\"\")","v":""},null,null,null,null,null,null,null,null,null,null,null,null,null,null,"General Fund",null,{"$f":"IFERROR(VLOOKUP(C1208,Descriptions!I:M,5,FALSE),\"N\")","v":"N"},true,"NTRUE",0,{"$f":"IFERROR(VLOOKUP(D1208,'Bank and Fund Details'!$B$14:$L$35,11,FALSE),\"N\")","v":"Y"},"NY"]
[null,null,null,"General Fund",null,null,null,null,null,{"$f":"VLOOKUP(D1209,'Bank and Fund Details'!$B$15:$D$36,3,FALSE)","v":0},{"$f":"VLOOKUP(D1209,'Bank and Fund Details'!$B$15:$C$36,2,FALSE)","v":"Unrestricted"},{"$f":"IFERROR(VLOOKUP(C1209,Descriptions!$I$6:$K$92,3,FALSE),\"\")","v":""},null,null,null,null,null,null,null,null,null,null,null,null,null,null,"General Fund",null,{"$f":"IFERROR(VLOOKUP(C1209,Descriptions!I:M,5,FALSE),\"N\")","v":"N"},true,"NTRUE",0,{"$f":"IFERROR(VLOOKUP(D1209,'Bank and Fund Details'!$B$14:$L$35,11,FALSE),\"N\")","v":"Y"},"NY"]
[null,null,null,"General Fund",null,null,null,null,null,{"$f":"VLOOKUP(D1210,'Bank and Fund Details'!$B$15:$D$36,3,FALSE)","v":0},{"$f":"VLOOKUP(D1210,'Bank and Fund Details'!$B$15:$C$36,2,FALSE)","v":"Unrestricted"},{"$f":"IFERROR(VLOOKUP(C1210,Descriptions!$I$6:$K$92,3,FALSE),\"\")","v":""},null,null,null,null,null,null,null,null,null,null,null,null,null,null,"General Fund",null,{"$f":"IFERROR(VLOOKUP(C1210,Descriptions!I:M,5,FALSE),\"N\")","v":"N"},true,"NTRUE",0,{"$f":"IFERROR(VLOOKUP(D1210,'Bank and Fund Details'!$B$14:$L$35,11,FALSE),\"N\")","v":"Y"},"NY"]
[null,null,null,"General Fund",null,null,null,null,null,{"$f":"VLOOKUP(D1211,'Bank and Fund Details'!$B$15:$D$36,3,FALSE)","v":0},{"$f":"VLOOKUP(D1211,'Bank and Fund Details'!$B$15:$C$36,2,FALSE)","v":"Unrestricted"},{"$f":"IFERROR(VLOOKUP(C1211,Descriptions!$I$6:$K$92,3,FALSE),\"\")","v":""},null,null,null,null,null,null,null,null,null,null,null,null,null,null,"General Fund",null,{"$f":"IFERROR(VLOOKUP(C1211,Descriptions!I:M,5,FALSE),\"N\")","v":"N"},true,"NTRUE",0,{"$f":"IFERROR(VLOOKUP(D1211,'Bank and Fund Details'!$B$14:$L$35,11,FALSE),\"N\")","v":"Y"},"NY"]
[null,null,null,"General Fund",null,null,null,null,null,{"$f":"VLOOKUP(D1212,'Bank and Fund Details'!$B$15:$D$36,3,FALSE)","v":0},{"$f":"VLOOKUP(D1212,'Bank and Fund Details'!$B$15:$C$36,2,FALSE)","v":"Unrestricted"},{"$f":"IFERROR(VLOOKUP(C1212,Descriptions!$I$6:$K$92,3,FALSE),\"\")","v":""},null,null,null,null,null,null,null,null,null,null,null,null,null,null,"General Fund",null,{"$f":"IFERROR(VLOOKUP(C1212,Descriptions!I:M,5,FALSE),\"N\")","v":"N"},true,"NTRUE",0,{"$f":"IFERROR(VLOOKUP(D1212,'Bank and Fund Details'!$B$14:$L$35,11,FALSE),\"N\")","v":"Y"},"NY"]
[null,null,null,"General Fund",null,null,null,null,null,{"$f":"VLOOKUP(D1213,'Bank and Fund Details'!$B$15:$D$36,3,FALSE)","v":0},{"$f":"VLOOKUP(D1213,'Bank and Fund Details'!$B$15:$C$36,2,FALSE)","v":"Unrestricted"},{"$f":"IFERROR(VLOOKUP(C1213,Descriptions!$I$6:$K$92,3,FALSE),\"\")","v":""},null,null,null,null,null,null,null,null,null,null,null,null,null,null,"General Fund",null,{"$f":"IFERROR(VLOOKUP(C1213,Descriptions!I:M,5,FALSE),\"N\")","v":"N"},true,"NTRUE",0,{"$f":"IFERROR(VLOOKUP(D1213,'Bank and Fund Details'!$B$14:$L$35,11,FALSE),\"N\")","v":"Y"},"NY"]
[null,null,null,"General Fund",null,null,null,null,null,{"$f":"VLOOKUP(D1214,'Bank and Fund Details'!$B$15:$D$36,3,FALSE)","v":0},{"$f":"VLOOKUP(D1214,'Bank and Fund Details'!$B$15:$C$36,2,FALSE)","v":"Unrestricted"},{"$f":"IFERROR(VLOOKUP(C1214,Descriptions!$I$6:$K$92,3,FALSE),\"\")","v":""},null,null,null,null,null,null,null,null,null,null,null,null,null,null,"General Fund",null,{"$f":"IFERROR(VLOOKUP(C1214,Descriptions!I:M,5,FALSE),\"N\")","v":"N"},true,"NTRUE",0,{"$f":"IFERROR(VLOOKUP(D1214,'Bank and Fund Details'!$B$14:$L$35,11,FALSE),\"N\")","v":"Y"},"NY"]
[null,null,null,"General Fund",null,null,null,null,null,{"$f":"VLOOKUP(D1215,'Bank and Fund Details'!$B$15:$D$36,3,FALSE)","v":0},{"$f":"VLOOKUP(D1215,'Bank and Fund Details'!$B$15:$C$36,2,FALSE)","v":"Unrestricted"},{"$f":"IFERROR(VLOOKUP(C1215,Descriptions!$I$6:$K$92,3,FALSE),\"\")","v":""},null,null,null,null,null,null,null,null,null,null,null,null,null,null,"General Fund",null,{"$f":"IFERROR(VLOOKUP(C1215,Descriptions!I:M,5,FALSE),\"N\")","v":"N"},true,"NTRUE",0,{"$f":"IFERROR(VLOOKUP(D1215,'Bank and Fund Details'!$B$14:$L$35,11,FALSE),\"N\")","v":"Y"},"NY"]
[null,null,null,"General Fund",null,null,null,null,null,{"$f":"VLOOKUP(D1216,'Bank and Fund Details'!$B$15:$D$36,3,FALSE)","v":0},{"$f":"VLOOKUP(D1216,'Bank and Fund Details'!$B$15:$C$36,2,FALSE)","v":"Unrestricted"},{"$f":"IFERROR(VLOOKUP(C1216,Descriptions!$I$6:$K$92,3,FALSE),\"\")","v":""},null,null,null,null,null,null,null,null,null,null,null,null,null,null,"General Fund",null,{"$f":"IFERROR(VLOOKUP(C1216,Descriptions!I:M,5,FALSE),\"N\")","v":"N"},true,"NTRUE",0,{"$f":"IFERROR(VLOOKUP(D1216,'Bank and Fund Details'!$B$14:$L$35,11,FALSE),\"N\")","v":"Y"},"NY"]
[null,null,null,"General Fund",null,null,null,null,null,{"$f":"VLOOKUP(D1217,'Bank and Fund Details'!$B$15:$D$36,3,FALSE)","v":0},{"$f":"VLOOKUP(D1217,'Bank and Fund Details'!$B$15:$C$36,2,FALSE)","v":"Unrestricted"},{"$f":"IFERROR(VLOOKUP(C1217,Descriptions!$I$6:$K$92,3,FALSE),\"\")","v":""},null,null,null,null,null,null,null,null,null,null,null,null,null,null,"General Fund",null,{"$f":"IFERROR(VLOOKUP(C1217,Descriptions!I:M,5,FALSE),\"N\")","v":"N"},true,"NTRUE",0,{"$f":"IFERROR(VLOOKUP(D1217,'Bank and Fund Details'!$B$14:$L$35,11,FALSE),\"N\")","v":"Y"},"NY"]
[null,null,null,"General Fund",null,null,null,null,null,{"$f":"VLOOKUP(D1218,'Bank and Fund Details'!$B$15:$D$36,3,FALSE)","v":0},{"$f":"VLOOKUP(D1218,'Bank and Fund Details'!$B$15:$C$36,2,FALSE)","v":"Unrestricted"},{"$f":"IFERROR(VLOOKUP(C1218,Descriptions!$I$6:$K$92,3,FALSE),\"\")","v":""},null,null,null,null,null,null,null,null,null,null,null,null,null,null,"General Fund",null,{"$f":"IFERROR(VLOOKUP(C1218,Descriptions!I:M,5,FALSE),\"N\")","v":"N"},true,"NTRUE",0,{"$f":"IFERROR(VLOOKUP(D1218,'Bank and Fund Details'!$B$14:$L$35,11,FALSE),\"N\")","v":"Y"},"NY"]
[null,null,null,"General Fund",null,null,null,null,null,{"$f":"VLOOKUP(D1219,'Bank and Fund Details'!$B$15:$D$36,3,FALSE)","v":0},{"$f":"VLOOKUP(D1219,'Bank and Fund Details'!$B$15:$C$36,2,FALSE)","v":"Unrestricted"},{"$f":"IFERROR(VLOOKUP(C1219,Descriptions!$I$6:$K$92,3,FALSE),\"\")","v":""},null,null,null,null,null,null,null,null,null,null,null,null,null,null,"General Fund",null,{"$f":"IFERROR(VLOOKUP(C1219,Descriptions!I:M,5,FALSE),\"N\")","v":"N"},true,"NTRUE",0,{"$f":"IFERROR(VLOOKUP(D1219,'Bank and Fund Details'!$B$14:$L$35,11,FALSE),\"N\")","v":"Y"},"NY"]
[null,null,null,"General Fund",null,null,null,null,null,{"$f":"VLOOKUP(D1220,'Bank and Fund Details'!$B$15:$D$36,3,FALSE)","v":0},{"$f":"VLOOKUP(D1220,'Bank and Fund Details'!$B$15:$C$36,2,FALSE)","v":"Unrestricted"},{"$f":"IFERROR(VLOOKUP(C1220,Descriptions!$I$6:$K$92,3,FALSE),\"\")","v":""},null,null,null,null,null,null,null,null,null,null,null,null,null,null,"General Fund",null,{"$f":"IFERROR(VLOOKUP(C1220,Descriptions!I:M,5,FALSE),\"N\")","v":"N"},true,"NTRUE",0,{"$f":"IFERROR(VLOOKUP(D1220,'Bank and Fund Details'!$B$14:$L$35,11,FALSE),\"N\")","v":"Y"},"NY"]
[null,null,null,"General Fund",null,null,null,null,null,{"$f":"VLOOKUP(D1221,'Bank and Fund Details'!$B$15:$D$36,3,FALSE)","v":0},{"$f":"VLOOKUP(D1221,'Bank and Fund Details'!$B$15:$C$36,2,FALSE)","v":"Unrestricted"},{"$f":"IFERROR(VLOOKUP(C1221,Descriptions!$I$6:$K$92,3,FALSE),\"\")","v":""},null,null,null,null,null,null,null,null,null,null,null,null,null,null,"General Fund",null,{"$f":"IFERROR(VLOOKUP(C1221,Descriptions!I:M,5,FALSE),\"N\")","v":"N"},true,"NTRUE",0,{"$f":"IFERROR(VLOOKUP(D1221,'Bank and Fund Details'!$B$14:$L$35,11,FALSE),\"N\")","v":"Y"},"NY"]
[null,null,null,"General Fund",null,null,null,null,null,{"$f":"VLOOKUP(D1222,'Bank and Fund Details'!$B$15:$D$36,3,FALSE)","v":0},{"$f":"VLOOKUP(D1222,'Bank and Fund Details'!$B$15:$C$36,2,FALSE)","v":"Unrestricted"},{"$f":"IFERROR(VLOOKUP(C1222,Descriptions!$I$6:$K$92,3,FALSE),\"\")","v":""},null,null,null,null,null,null,null,null,null,null,null,null,null,null,{"$f":"CONCATENATE(C1222,D1222)","v":"General Fund"},null,{"$f":"IFERROR(VLOOKUP(C1222,Descriptions!I:M,5,FALSE),\"N\")","v":"N"},{"$f":"ISBLANK(C1222)","v":true},{"$f":"CONCATENATE(AC1222,AD1222)","v":"NTRUE"},{"$f":"IF(AE1222=\"NFALSE\",1,0)","v":0},{"$f":"IFERROR(VLOOKUP(D1222,'Bank and Fund Details'!$B$14:$L$35,11,FALSE),\"N\")","v":"Y"},{"$f":"CONCATENATE(AC1222,AG1222)","v":"NY"}]
[null,null,null,"General Fund",null,null,null,null,null,{"$f":"VLOOKUP(D1223,'Bank and Fund Details'!$B$15:$D$36,3,FALSE)","v":0},{"$f":"VLOOKUP(D1223,'Bank and Fund Details'!$B$15:$C$36,2,FALSE)","v":"Unrestricted"},{"$f":"IFERROR(VLOOKUP(C1223,Descriptions!$I$6:$K$92,3,FALSE),\"\")","v":""},null,null,null,null,null,null,null,null,null,null,null,null,null,null,"General Fund",null,{"$f":"IFERROR(VLOOKUP(C1223,Descriptions!I:M,5,FALSE),\"N\")","v":"N"},true,"NTRUE",0,{"$f":"IFERROR(VLOOKUP(D1223,'Bank and Fund Details'!$B$14:$L$35,11,FALSE),\"N\")","v":"Y"},"NY"]
[null,null,null,"General Fund",null,null,null,null,null,{"$f":"VLOOKUP(D1224,'Bank and Fund Details'!$B$15:$D$36,3,FALSE)","v":0},{"$f":"VLOOKUP(D1224,'Bank and Fund Details'!$B$15:$C$36,2,FALSE)","v":"Unrestricted"},{"$f":"IFERROR(VLOOKUP(C1224,Descriptions!$I$6:$K$92,3,FALSE),\"\")","v":""},null,null,null,null,null,null,null,null,null,null,null,null,null,null,"General Fund",null,{"$f":"IFERROR(VLOOKUP(C1224,Descriptions!I:M,5,FALSE),\"N\")","v":"N"},true,"NTRUE",0,{"$f":"IFERROR(VLOOKUP(D1224,'Bank and Fund Details'!$B$14:$L$35,11,FALSE),\"N\")","v":"Y"},"NY"]
[null,null,null,"General Fund",null,null,null,null,null,{"$f":"VLOOKUP(D1225,'Bank and Fund Details'!$B$15:$D$36,3,FALSE)","v":0},{"$f":"VLOOKUP(D1225,'Bank and Fund Details'!$B$15:$C$36,2,FALSE)","v":"Unrestricted"},{"$f":"IFERROR(VLOOKUP(C1225,Descriptions!$I$6:$K$92,3,FALSE),\"\")","v":""},null,null,null,null,null,null,null,null,null,null,null,null,null,null,"General Fund",null,{"$f":"IFERROR(VLOOKUP(C1225,Descriptions!I:M,5,FALSE),\"N\")","v":"N"},true,"NTRUE",0,{"$f":"IFERROR(VLOOKUP(D1225,'Bank and Fund Details'!$B$14:$L$35,11,FALSE),\"N\")","v":"Y"},"NY"]
[null,null,null,"General Fund",null,null,null,null,null,{"$f":"VLOOKUP(D1226,'Bank and Fund Details'!$B$15:$D$36,3,FALSE)","v":0},{"$f":"VLOOKUP(D1226,'Bank and Fund Details'!$B$15:$C$36,2,FALSE)","v":"Unrestricted"},{"$f":"IFERROR(VLOOKUP(C1226,Descriptions!$I$6:$K$92,3,FALSE),\"\")","v":""},null,null,null,null,null,null,null,null,null,null,null,null,null,null,"General Fund",null,{"$f":"IFERROR(VLOOKUP(C1226,Descriptions!I:M,5,FALSE),\"N\")","v":"N"},true,"NTRUE",0,{"$f":"IFERROR(VLOOKUP(D1226,'Bank and Fund Details'!$B$14:$L$35,11,FALSE),\"N\")","v":"Y"},"NY"]
[null,null,null,"General Fund",null,null,null,null,null,{"$f":"VLOOKUP(D1227,'Bank and Fund Details'!$B$15:$D$36,3,FALSE)","v":0},{"$f":"VLOOKUP(D1227,'Bank and Fund Details'!$B$15:$C$36,2,FALSE)","v":"Unrestricted"},{"$f":"IFERROR(VLOOKUP(C1227,Descriptions!$I$6:$K$92,3,FALSE),\"\")","v":""},null,null,null,null,null,null,null,null,null,null,null,null,null,null,"General Fund",null,{"$f":"IFERROR(VLOOKUP(C1227,Descriptions!I:M,5,FALSE),\"N\")","v":"N"},true,"NTRUE",0,{"$f":"IFERROR(VLOOKUP(D1227,'Bank and Fund Details'!$B$14:$L$35,11,FALSE),\"N\")","v":"Y"},"NY"]
[null,null,null,"General Fund",null,null,null,null,null,{"$f":"VLOOKUP(D1228,'Bank and Fund Details'!$B$15:$D$36,3,FALSE)","v":0},{"$f":"VLOOKUP(D1228,'Bank and Fund Details'!$B$15:$C$36,2,FALSE)","v":"Unrestricted"},{"$f":"IFERROR(VLOOKUP(C1228,Descriptions!$I$6:$K$92,3,FALSE),\"\")","v":""},null,null,null,null,null,null,null,null,null,null,null,null,null,null,"General Fund",null,{"$f":"IFERROR(VLOOKUP(C1228,Descriptions!I:M,5,FALSE),\"N\")","v":"N"},true,"NTRUE",0,{"$f":"IFERROR(VLOOKUP(D1228,'Bank and Fund Details'!$B$14:$L$35,11,FALSE),\"N\")","v":"Y"},"NY"]
[null,null,null,"General Fund",null,null,null,null,null,{"$f":"VLOOKUP(D1229,'Bank and Fund Details'!$B$15:$D$36,3,FALSE)","v":0},{"$f":"VLOOKUP(D1229,'Bank and Fund Details'!$B$15:$C$36,2,FALSE)","v":"Unrestricted"},{"$f":"IFERROR(VLOOKUP(C1229,Descriptions!$I$6:$K$92,3,FALSE),\"\")","v":""},null,null,null,null,null,null,null,null,null,null,null,null,null,null,"General Fund",null,{"$f":"IFERROR(VLOOKUP(C1229,Descriptions!I:M,5,FALSE),\"N\")","v":"N"},true,"NTRUE",0,{"$f":"IFERROR(VLOOKUP(D1229,'Bank and Fund Details'!$B$14:$L$35,11,FALSE),\"N\")","v":"Y"},"NY"]
[null,null,null,"General Fund",null,null,null,null,null,{"$f":"VLOOKUP(D1230,'Bank and Fund Details'!$B$15:$D$36,3,FALSE)","v":0},{"$f":"VLOOKUP(D1230,'Bank and Fund Details'!$B$15:$C$36,2,FALSE)","v":"Unrestricted"},{"$f":"IFERROR(VLOOKUP(C1230,Descriptions!$I$6:$K$92,3,FALSE),\"\")","v":""},null,null,null,null,null,null,null,null,null,null,null,null,null,null,"General Fund",null,{"$f":"IFERROR(VLOOKUP(C1230,Descriptions!I:M,5,FALSE),\"N\")","v":"N"},true,"NTRUE",0,{"$f":"IFERROR(VLOOKUP(D1230,'Bank and Fund Details'!$B$14:$L$35,11,FALSE),\"N\")","v":"Y"},"NY"]
[null,null,null,"General Fund",null,null,null,null,null,{"$f":"VLOOKUP(D1231,'Bank and Fund Details'!$B$15:$D$36,3,FALSE)","v":0},{"$f":"VLOOKUP(D1231,'Bank and Fund Details'!$B$15:$C$36,2,FALSE)","v":"Unrestricted"},{"$f":"IFERROR(VLOOKUP(C1231,Descriptions!$I$6:$K$92,3,FALSE),\"\")","v":""},null,null,null,null,null,null,null,null,null,null,null,null,null,null,"General Fund",null,{"$f":"IFERROR(VLOOKUP(C1231,Descriptions!I:M,5,FALSE),\"N\")","v":"N"},true,"NTRUE",0,{"$f":"IFERROR(VLOOKUP(D1231,'Bank and Fund Details'!$B$14:$L$35,11,FALSE),\"N\")","v":"Y"},"NY"]
[null,null,null,"General Fund",null,null,null,null,null,{"$f":"VLOOKUP(D1232,'Bank and Fund Details'!$B$15:$D$36,3,FALSE)","v":0},{"$f":"VLOOKUP(D1232,'Bank and Fund Details'!$B$15:$C$36,2,FALSE)","v":"Unrestricted"},{"$f":"IFERROR(VLOOKUP(C1232,Descriptions!$I$6:$K$92,3,FALSE),\"\")","v":""},null,null,null,null,null,null,null,null,null,null,null,null,null,null,"General Fund",null,{"$f":"IFERROR(VLOOKUP(C1232,Descriptions!I:M,5,FALSE),\"N\")","v":"N"},true,"NTRUE",0,{"$f":"IFERROR(VLOOKUP(D1232,'Bank and Fund Details'!$B$14:$L$35,11,FALSE),\"N\")","v":"Y"},"NY"]
[null,null,null,"General Fund",null,null,null,null,null,{"$f":"VLOOKUP(D1233,'Bank and Fund Details'!$B$15:$D$36,3,FALSE)","v":0},{"$f":"VLOOKUP(D1233,'Bank and Fund Details'!$B$15:$C$36,2,FALSE)","v":"Unrestricted"},{"$f":"IFERROR(VLOOKUP(C1233,Descriptions!$I$6:$K$92,3,FALSE),\"\")","v":""},null,null,null,null,null,null,null,null,null,null,null,null,null,null,"General Fund",null,{"$f":"IFERROR(VLOOKUP(C1233,Descriptions!I:M,5,FALSE),\"N\")","v":"N"},true,"NTRUE",0,{"$f":"IFERROR(VLOOKUP(D1233,'Bank and Fund Details'!$B$14:$L$35,11,FALSE),\"N\")","v":"Y"},"NY"]
[null,null,null,"General Fund",null,null,null,null,null,{"$f":"VLOOKUP(D1234,'Bank and Fund Details'!$B$15:$D$36,3,FALSE)","v":0},{"$f":"VLOOKUP(D1234,'Bank and Fund Details'!$B$15:$C$36,2,FALSE)","v":"Unrestricted"},{"$f":"IFERROR(VLOOKUP(C1234,Descriptions!$I$6:$K$92,3,FALSE),\"\")","v":""},null,null,null,null,null,null,null,null,null,null,null,null,null,null,"General Fund",null,{"$f":"IFERROR(VLOOKUP(C1234,Descriptions!I:M,5,FALSE),\"N\")","v":"N"},true,"NTRUE",0,{"$f":"IFERROR(VLOOKUP(D1234,'Bank and Fund Details'!$B$14:$L$35,11,FALSE),\"N\")","v":"Y"},"NY"]
[null,null,null,"General Fund",null,null,null,null,null,{"$f":"VLOOKUP(D1235,'Bank and Fund Details'!$B$15:$D$36,3,FALSE)","v":0},{"$f":"VLOOKUP(D1235,'Bank and Fund Details'!$B$15:$C$36,2,FALSE)","v":"Unrestricted"},{"$f":"IFERROR(VLOOKUP(C1235,Descriptions!$I$6:$K$92,3,FALSE),\"\")","v":""},null,null,null,null,null,null,null,null,null,null,null,null,null,null,"General Fund",null,{"$f":"IFERROR(VLOOKUP(C1235,Descriptions!I:M,5,FALSE),\"N\")","v":"N"},true,"NTRUE",0,{"$f":"IFERROR(VLOOKUP(D1235,'Bank and Fund Details'!$B$14:$L$35,11,FALSE),\"N\")","v":"Y"},"NY"]
[null,null,null,"General Fund",null,null,null,null,null,{"$f":"VLOOKUP(D1236,'Bank and Fund Details'!$B$15:$D$36,3,FALSE)","v":0},{"$f":"VLOOKUP(D1236,'Bank and Fund Details'!$B$15:$C$36,2,FALSE)","v":"Unrestricted"},{"$f":"IFERROR(VLOOKUP(C1236,Descriptions!$I$6:$K$92,3,FALSE),\"\")","v":""},null,null,null,null,null,null,null,null,null,null,null,null,null,null,"General Fund",null,{"$f":"IFERROR(VLOOKUP(C1236,Descriptions!I:M,5,FALSE),\"N\")","v":"N"},true,"NTRUE",0,{"$f":"IFERROR(VLOOKUP(D1236,'Bank and Fund Details'!$B$14:$L$35,11,FALSE),\"N\")","v":"Y"},"NY"]
[null,null,null,"General Fund",null,null,null,null,null,{"$f":"VLOOKUP(D1237,'Bank and Fund Details'!$B$15:$D$36,3,FALSE)","v":0},{"$f":"VLOOKUP(D1237,'Bank and Fund Details'!$B$15:$C$36,2,FALSE)","v":"Unrestricted"},{"$f":"IFERROR(VLOOKUP(C1237,Descriptions!$I$6:$K$92,3,FALSE),\"\")","v":""},null,null,null,null,null,null,null,null,null,null,null,null,null,null,"General Fund",null,{"$f":"IFERROR(VLOOKUP(C1237,Descriptions!I:M,5,FALSE),\"N\")","v":"N"},true,"NTRUE",0,{"$f":"IFERROR(VLOOKUP(D1237,'Bank and Fund Details'!$B$14:$L$35,11,FALSE),\"N\")","v":"Y"},"NY"]
[null,null,null,"General Fund",null,null,null,null,null,{"$f":"VLOOKUP(D1238,'Bank and Fund Details'!$B$15:$D$36,3,FALSE)","v":0},{"$f":"VLOOKUP(D1238,'Bank and Fund Details'!$B$15:$C$36,2,FALSE)","v":"Unrestricted"},{"$f":"IFERROR(VLOOKUP(C1238,Descriptions!$I$6:$K$92,3,FALSE),\"\")","v":""},null,null,null,null,null,null,null,null,null,null,null,null,null,null,"General Fund",null,{"$f":"IFERROR(VLOOKUP(C1238,Descriptions!I:M,5,FALSE),\"N\")","v":"N"},true,"NTRUE",0,{"$f":"IFERROR(VLOOKUP(D1238,'Bank and Fund Details'!$B$14:$L$35,11,FALSE),\"N\")","v":"Y"},"NY"]
[null,null,null,"General Fund",null,null,null,null,null,{"$f":"VLOOKUP(D1239,'Bank and Fund Details'!$B$15:$D$36,3,FALSE)","v":0},{"$f":"VLOOKUP(D1239,'Bank and Fund Details'!$B$15:$C$36,2,FALSE)","v":"Unrestricted"},{"$f":"IFERROR(VLOOKUP(C1239,Descriptions!$I$6:$K$92,3,FALSE),\"\")","v":""},null,null,null,null,null,null,null,null,null,null,null,null,null,null,"General Fund",null,{"$f":"IFERROR(VLOOKUP(C1239,Descriptions!I:M,5,FALSE),\"N\")","v":"N"},true,"NTRUE",0,{"$f":"IFERROR(VLOOKUP(D1239,'Bank and Fund Details'!$B$14:$L$35,11,FALSE),\"N\")","v":"Y"},"NY"]
[null,null,null,"General Fund",null,null,null,null,null,{"$f":"VLOOKUP(D1240,'Bank and Fund Details'!$B$15:$D$36,3,FALSE)","v":0},{"$f":"VLOOKUP(D1240,'Bank and Fund Details'!$B$15:$C$36,2,FALSE)","v":"Unrestricted"},{"$f":"IFERROR(VLOOKUP(C1240,Descriptions!$I$6:$K$92,3,FALSE),\"\")","v":""},null,null,null,null,null,null,null,null,null,null,null,null,null,null,"General Fund",null,{"$f":"IFERROR(VLOOKUP(C1240,Descriptions!I:M,5,FALSE),\"N\")","v":"N"},true,"NTRUE",0,{"$f":"IFERROR(VLOOKUP(D1240,'Bank and Fund Details'!$B$14:$L$35,11,FALSE),\"N\")","v":"Y"},"NY"]
[null,null,null,"General Fund",null,null,null,null,null,{"$f":"VLOOKUP(D1241,'Bank and Fund Details'!$B$15:$D$36,3,FALSE)","v":0},{"$f":"VLOOKUP(D1241,'Bank and Fund Details'!$B$15:$C$36,2,FALSE)","v":"Unrestricted"},{"$f":"IFERROR(VLOOKUP(C1241,Descriptions!$I$6:$K$92,3,FALSE),\"\")","v":""},null,null,null,null,null,null,null,null,null,null,null,null,null,null,"General Fund",null,{"$f":"IFERROR(VLOOKUP(C1241,Descriptions!I:M,5,FALSE),\"N\")","v":"N"},true,"NTRUE",0,{"$f":"IFERROR(VLOOKUP(D1241,'Bank and Fund Details'!$B$14:$L$35,11,FALSE),\"N\")","v":"Y"},"NY"]
[null,null,null,"General Fund",null,null,null,null,null,{"$f":"VLOOKUP(D1242,'Bank and Fund Details'!$B$15:$D$36,3,FALSE)","v":0},{"$f":"VLOOKUP(D1242,'Bank and Fund Details'!$B$15:$C$36,2,FALSE)","v":"Unrestricted"},{"$f":"IFERROR(VLOOKUP(C1242,Descriptions!$I$6:$K$92,3,FALSE),\"\")","v":""},null,null,null,null,null,null,null,null,null,null,null,null,null,null,"General Fund",null,{"$f":"IFERROR(VLOOKUP(C1242,Descriptions!I:M,5,FALSE),\"N\")","v":"N"},true,"NTRUE",0,{"$f":"IFERROR(VLOOKUP(D1242,'Bank and Fund Details'!$B$14:$L$35,11,FALSE),\"N\")","v":"Y"},"NY"]
[null,null,null,"General Fund",null,null,null,null,null,{"$f":"VLOOKUP(D1243,'Bank and Fund Details'!$B$15:$D$36,3,FALSE)","v":0},{"$f":"VLOOKUP(D1243,'Bank and Fund Details'!$B$15:$C$36,2,FALSE)","v":"Unrestricted"},{"$f":"IFERROR(VLOOKUP(C1243,Descriptions!$I$6:$K$92,3,FALSE),\"\")","v":""},null,null,null,null,null,null,null,null,null,null,null,null,null,null,"General Fund",null,{"$f":"IFERROR(VLOOKUP(C1243,Descriptions!I:M,5,FALSE),\"N\")","v":"N"},true,"NTRUE",0,{"$f":"IFERROR(VLOOKUP(D1243,'Bank and Fund Details'!$B$14:$L$35,11,FALSE),\"N\")","v":"Y"},"NY"]
[null,null,null,"General Fund",null,null,null,null,null,{"$f":"VLOOKUP(D1244,'Bank and Fund Details'!$B$15:$D$36,3,FALSE)","v":0},{"$f":"VLOOKUP(D1244,'Bank and Fund Details'!$B$15:$C$36,2,FALSE)","v":"Unrestricted"},{"$f":"IFERROR(VLOOKUP(C1244,Descriptions!$I$6:$K$92,3,FALSE),\"\")","v":""},null,null,null,null,null,null,null,null,null,null,null,null,null,null,"General Fund",null,{"$f":"IFERROR(VLOOKUP(C1244,Descriptions!I:M,5,FALSE),\"N\")","v":"N"},true,"NTRUE",0,{"$f":"IFERROR(VLOOKUP(D1244,'Bank and Fund Details'!$B$14:$L$35,11,FALSE),\"N\")","v":"Y"},"NY"]
[null,null,null,"General Fund",null,null,null,null,null,{"$f":"VLOOKUP(D1245,'Bank and Fund Details'!$B$15:$D$36,3,FALSE)","v":0},{"$f":"VLOOKUP(D1245,'Bank and Fund Details'!$B$15:$C$36,2,FALSE)","v":"Unrestricted"},{"$f":"IFERROR(VLOOKUP(C1245,Descriptions!$I$6:$K$92,3,FALSE),\"\")","v":""},null,null,null,null,null,null,null,null,null,null,null,null,null,null,"General Fund",null,{"$f":"IFERROR(VLOOKUP(C1245,Descriptions!I:M,5,FALSE),\"N\")","v":"N"},true,"NTRUE",0,{"$f":"IFERROR(VLOOKUP(D1245,'Bank and Fund Details'!$B$14:$L$35,11,FALSE),\"N\")","v":"Y"},"NY"]
[null,null,null,"General Fund",null,null,null,null,null,{"$f":"VLOOKUP(D1246,'Bank and Fund Details'!$B$15:$D$36,3,FALSE)","v":0},{"$f":"VLOOKUP(D1246,'Bank and Fund Details'!$B$15:$C$36,2,FALSE)","v":"Unrestricted"},{"$f":"IFERROR(VLOOKUP(C1246,Descriptions!$I$6:$K$92,3,FALSE),\"\")","v":""},null,null,null,null,null,null,null,null,null,null,null,null,null,null,"General Fund",null,{"$f":"IFERROR(VLOOKUP(C1246,Descriptions!I:M,5,FALSE),\"N\")","v":"N"},true,"NTRUE",0,{"$f":"IFERROR(VLOOKUP(D1246,'Bank and Fund Details'!$B$14:$L$35,11,FALSE),\"N\")","v":"Y"},"NY"]
[null,null,null,"General Fund",null,null,null,null,null,{"$f":"VLOOKUP(D1247,'Bank and Fund Details'!$B$15:$D$36,3,FALSE)","v":0},{"$f":"VLOOKUP(D1247,'Bank and Fund Details'!$B$15:$C$36,2,FALSE)","v":"Unrestricted"},{"$f":"IFERROR(VLOOKUP(C1247,Descriptions!$I$6:$K$92,3,FALSE),\"\")","v":""},null,null,null,null,null,null,null,null,null,null,null,null,null,null,"General Fund",null,{"$f":"IFERROR(VLOOKUP(C1247,Descriptions!I:M,5,FALSE),\"N\")","v":"N"},true,"NTRUE",0,{"$f":"IFERROR(VLOOKUP(D1247,'Bank and Fund Details'!$B$14:$L$35,11,FALSE),\"N\")","v":"Y"},"NY"]
[null,null,null,"General Fund",null,null,null,null,null,{"$f":"VLOOKUP(D1248,'Bank and Fund Details'!$B$15:$D$36,3,FALSE)","v":0},{"$f":"VLOOKUP(D1248,'Bank and Fund Details'!$B$15:$C$36,2,FALSE)","v":"Unrestricted"},{"$f":"IFERROR(VLOOKUP(C1248,Descriptions!$I$6:$K$92,3,FALSE),\"\")","v":""},null,null,null,null,null,null,null,null,null,null,null,null,null,null,"General Fund",null,{"$f":"IFERROR(VLOOKUP(C1248,Descriptions!I:M,5,FALSE),\"N\")","v":"N"},true,"NTRUE",0,{"$f":"IFERROR(VLOOKUP(D1248,'Bank and Fund Details'!$B$14:$L$35,11,FALSE),\"N\")","v":"Y"},"NY"]
[null,null,null,"General Fund",null,null,null,null,null,{"$f":"VLOOKUP(D1249,'Bank and Fund Details'!$B$15:$D$36,3,FALSE)","v":0},{"$f":"VLOOKUP(D1249,'Bank and Fund Details'!$B$15:$C$36,2,FALSE)","v":"Unrestricted"},{"$f":"IFERROR(VLOOKUP(C1249,Descriptions!$I$6:$K$92,3,FALSE),\"\")","v":""},null,null,null,null,null,null,null,null,null,null,null,null,null,null,"General Fund",null,{"$f":"IFERROR(VLOOKUP(C1249,Descriptions!I:M,5,FALSE),\"N\")","v":"N"},true,"NTRUE",0,{"$f":"IFERROR(VLOOKUP(D1249,'Bank and Fund Details'!$B$14:$L$35,11,FALSE),\"N\")","v":"Y"},"NY"]
[null,null,null,"General Fund",null,null,null,null,null,{"$f":"VLOOKUP(D1250,'Bank and Fund Details'!$B$15:$D$36,3,FALSE)","v":0},{"$f":"VLOOKUP(D1250,'Bank and Fund Details'!$B$15:$C$36,2,FALSE)","v":"Unrestricted"},{"$f":"IFERROR(VLOOKUP(C1250,Descriptions!$I$6:$K$92,3,FALSE),\"\")","v":""},null,null,null,null,null,null,null,null,null,null,null,null,null,null,"General Fund",null,{"$f":"IFERROR(VLOOKUP(C1250,Descriptions!I:M,5,FALSE),\"N\")","v":"N"},true,"NTRUE",0,{"$f":"IFERROR(VLOOKUP(D1250,'Bank and Fund Details'!$B$14:$L$35,11,FALSE),\"N\")","v":"Y"},"NY"]
[null,null,null,"General Fund",null,null,null,null,null,{"$f":"VLOOKUP(D1251,'Bank and Fund Details'!$B$15:$D$36,3,FALSE)","v":0},{"$f":"VLOOKUP(D1251,'Bank and Fund Details'!$B$15:$C$36,2,FALSE)","v":"Unrestricted"},{"$f":"IFERROR(VLOOKUP(C1251,Descriptions!$I$6:$K$92,3,FALSE),\"\")","v":""},null,null,null,null,null,null,null,null,null,null,null,null,null,null,"General Fund",null,{"$f":"IFERROR(VLOOKUP(C1251,Descriptions!I:M,5,FALSE),\"N\")","v":"N"},true,"NTRUE",0,{"$f":"IFERROR(VLOOKUP(D1251,'Bank and Fund Details'!$B$14:$L$35,11,FALSE),\"N\")","v":"Y"},"NY"]
[null,null,null,"General Fund",null,null,null,null,null,{"$f":"VLOOKUP(D1252,'Bank and Fund Details'!$B$15:$D$36,3,FALSE)","v":0},{"$f":"VLOOKUP(D1252,'Bank and Fund Details'!$B$15:$C$36,2,FALSE)","v":"Unrestricted"},{"$f":"IFERROR(VLOOKUP(C1252,Descriptions!$I$6:$K$92,3,FALSE),\"\")","v":""},null,null,null,null,null,null,null,null,null,null,null,null,null,null,"General Fund",null,{"$f":"IFERROR(VLOOKUP(C1252,Descriptions!I:M,5,FALSE),\"N\")","v":"N"},true,"NTRUE",0,{"$f":"IFERROR(VLOOKUP(D1252,'Bank and Fund Details'!$B$14:$L$35,11,FALSE),\"N\")","v":"Y"},"NY"]
[null,null,null,"General Fund",null,null,null,null,null,{"$f":"VLOOKUP(D1253,'Bank and Fund Details'!$B$15:$D$36,3,FALSE)","v":0},{"$f":"VLOOKUP(D1253,'Bank and Fund Details'!$B$15:$C$36,2,FALSE)","v":"Unrestricted"},{"$f":"IFERROR(VLOOKUP(C1253,Descriptions!$I$6:$K$92,3,FALSE),\"\")","v":""},null,null,null,null,null,null,null,null,null,null,null,null,null,null,"General Fund",null,{"$f":"IFERROR(VLOOKUP(C1253,Descriptions!I:M,5,FALSE),\"N\")","v":"N"},true,"NTRUE",0,{"$f":"IFERROR(VLOOKUP(D1253,'Bank and Fund Details'!$B$14:$L$35,11,FALSE),\"N\")","v":"Y"},"NY"]
[null,null,null,"General Fund",null,null,null,null,null,{"$f":"VLOOKUP(D1254,'Bank and Fund Details'!$B$15:$D$36,3,FALSE)","v":0},{"$f":"VLOOKUP(D1254,'Bank and Fund Details'!$B$15:$C$36,2,FALSE)","v":"Unrestricted"},{"$f":"IFERROR(VLOOKUP(C1254,Descriptions!$I$6:$K$92,3,FALSE),\"\")","v":""},null,null,null,null,null,null,null,null,null,null,null,null,null,null,"General Fund",null,{"$f":"IFERROR(VLOOKUP(C1254,Descriptions!I:M,5,FALSE),\"N\")","v":"N"},true,"NTRUE",0,{"$f":"IFERROR(VLOOKUP(D1254,'Bank and Fund Details'!$B$14:$L$35,11,FALSE),\"N\")","v":"Y"},"NY"]
[null,null,null,"General Fund",null,null,null,null,null,{"$f":"VLOOKUP(D1255,'Bank and Fund Details'!$B$15:$D$36,3,FALSE)","v":0},{"$f":"VLOOKUP(D1255,'Bank and Fund Details'!$B$15:$C$36,2,FALSE)","v":"Unrestricted"},{"$f":"IFERROR(VLOOKUP(C1255,Descriptions!$I$6:$K$92,3,FALSE),\"\")","v":""},null,null,null,null,null,null,null,null,null,null,null,null,null,null,"General Fund",null,{"$f":"IFERROR(VLOOKUP(C1255,Descriptions!I:M,5,FALSE),\"N\")","v":"N"},true,"NTRUE",0,{"$f":"IFERROR(VLOOKUP(D1255,'Bank and Fund Details'!$B$14:$L$35,11,FALSE),\"N\")","v":"Y"},"NY"]
[null,null,null,"General Fund",null,null,null,null,null,{"$f":"VLOOKUP(D1256,'Bank and Fund Details'!$B$15:$D$36,3,FALSE)","v":0},{"$f":"VLOOKUP(D1256,'Bank and Fund Details'!$B$15:$C$36,2,FALSE)","v":"Unrestricted"},{"$f":"IFERROR(VLOOKUP(C1256,Descriptions!$I$6:$K$92,3,FALSE),\"\")","v":""},null,null,null,null,null,null,null,null,null,null,null,null,null,null,"General Fund",null,{"$f":"IFERROR(VLOOKUP(C1256,Descriptions!I:M,5,FALSE),\"N\")","v":"N"},true,"NTRUE",0,{"$f":"IFERROR(VLOOKUP(D1256,'Bank and Fund Details'!$B$14:$L$35,11,FALSE),\"N\")","v":"Y"},"NY"]
[null,null,null,"General Fund",null,null,null,null,null,{"$f":"VLOOKUP(D1257,'Bank and Fund Details'!$B$15:$D$36,3,FALSE)","v":0},{"$f":"VLOOKUP(D1257,'Bank and Fund Details'!$B$15:$C$36,2,FALSE)","v":"Unrestricted"},{"$f":"IFERROR(VLOOKUP(C1257,Descriptions!$I$6:$K$92,3,FALSE),\"\")","v":""},null,null,null,null,null,null,null,null,null,null,null,null,null,null,"General Fund",null,{"$f":"IFERROR(VLOOKUP(C1257,Descriptions!I:M,5,FALSE),\"N\")","v":"N"},true,"NTRUE",0,{"$f":"IFERROR(VLOOKUP(D1257,'Bank and Fund Details'!$B$14:$L$35,11,FALSE),\"N\")","v":"Y"},"NY"]
[null,null,null,"General Fund",null,null,null,null,null,{"$f":"VLOOKUP(D1258,'Bank and Fund Details'!$B$15:$D$36,3,FALSE)","v":0},{"$f":"VLOOKUP(D1258,'Bank and Fund Details'!$B$15:$C$36,2,FALSE)","v":"Unrestricted"},{"$f":"IFERROR(VLOOKUP(C1258,Descriptions!$I$6:$K$92,3,FALSE),\"\")","v":""},null,null,null,null,null,null,null,null,null,null,null,null,null,null,"General Fund",null,{"$f":"IFERROR(VLOOKUP(C1258,Descriptions!I:M,5,FALSE),\"N\")","v":"N"},true,"NTRUE",0,{"$f":"IFERROR(VLOOKUP(D1258,'Bank and Fund Details'!$B$14:$L$35,11,FALSE),\"N\")","v":"Y"},"NY"]
[null,null,null,"General Fund",null,null,null,null,null,{"$f":"VLOOKUP(D1259,'Bank and Fund Details'!$B$15:$D$36,3,FALSE)","v":0},{"$f":"VLOOKUP(D1259,'Bank and Fund Details'!$B$15:$C$36,2,FALSE)","v":"Unrestricted"},{"$f":"IFERROR(VLOOKUP(C1259,Descriptions!$I$6:$K$92,3,FALSE),\"\")","v":""},null,null,null,null,null,null,null,null,null,null,null,null,null,null,"General Fund",null,{"$f":"IFERROR(VLOOKUP(C1259,Descriptions!I:M,5,FALSE),\"N\")","v":"N"},true,"NTRUE",0,{"$f":"IFERROR(VLOOKUP(D1259,'Bank and Fund Details'!$B$14:$L$35,11,FALSE),\"N\")","v":"Y"},"NY"]
[null,null,null,"General Fund",null,null,null,null,null,{"$f":"VLOOKUP(D1260,'Bank and Fund Details'!$B$15:$D$36,3,FALSE)","v":0},{"$f":"VLOOKUP(D1260,'Bank and Fund Details'!$B$15:$C$36,2,FALSE)","v":"Unrestricted"},{"$f":"IFERROR(VLOOKUP(C1260,Descriptions!$I$6:$K$92,3,FALSE),\"\")","v":""},null,null,null,null,null,null,null,null,null,null,null,null,null,null,"General Fund",null,{"$f":"IFERROR(VLOOKUP(C1260,Descriptions!I:M,5,FALSE),\"N\")","v":"N"},true,"NTRUE",0,{"$f":"IFERROR(VLOOKUP(D1260,'Bank and Fund Details'!$B$14:$L$35,11,FALSE),\"N\")","v":"Y"},"NY"]
[null,null,null,"General Fund",null,null,null,null,null,{"$f":"VLOOKUP(D1261,'Bank and Fund Details'!$B$15:$D$36,3,FALSE)","v":0},{"$f":"VLOOKUP(D1261,'Bank and Fund Details'!$B$15:$C$36,2,FALSE)","v":"Unrestricted"},{"$f":"IFERROR(VLOOKUP(C1261,Descriptions!$I$6:$K$92,3,FALSE),\"\")","v":""},null,null,null,null,null,null,null,null,null,null,null,null,null,null,"General Fund",null,{"$f":"IFERROR(VLOOKUP(C1261,Descriptions!I:M,5,FALSE),\"N\")","v":"N"},true,"NTRUE",0,{"$f":"IFERROR(VLOOKUP(D1261,'Bank and Fund Details'!$B$14:$L$35,11,FALSE),\"N\")","v":"Y"},"NY"]
[null,null,null,"General Fund",null,null,null,null,null,{"$f":"VLOOKUP(D1262,'Bank and Fund Details'!$B$15:$D$36,3,FALSE)","v":0},{"$f":"VLOOKUP(D1262,'Bank and Fund Details'!$B$15:$C$36,2,FALSE)","v":"Unrestricted"},{"$f":"IFERROR(VLOOKUP(C1262,Descriptions!$I$6:$K$92,3,FALSE),\"\")","v":""},null,null,null,null,null,null,null,null,null,null,null,null,null,null,"General Fund",null,{"$f":"IFERROR(VLOOKUP(C1262,Descriptions!I:M,5,FALSE),\"N\")","v":"N"},true,"NTRUE",0,{"$f":"IFERROR(VLOOKUP(D1262,'Bank and Fund Details'!$B$14:$L$35,11,FALSE),\"N\")","v":"Y"},"NY"]
[null,null,null,"General Fund",null,null,null,null,null,{"$f":"VLOOKUP(D1263,'Bank and Fund Details'!$B$15:$D$36,3,FALSE)","v":0},{"$f":"VLOOKUP(D1263,'Bank and Fund Details'!$B$15:$C$36,2,FALSE)","v":"Unrestricted"},{"$f":"IFERROR(VLOOKUP(C1263,Descriptions!$I$6:$K$92,3,FALSE),\"\")","v":""},null,null,null,null,null,null,null,null,null,null,null,null,null,null,"General Fund",null,{"$f":"IFERROR(VLOOKUP(C1263,Descriptions!I:M,5,FALSE),\"N\")","v":"N"},true,"NTRUE",0,{"$f":"IFERROR(VLOOKUP(D1263,'Bank and Fund Details'!$B$14:$L$35,11,FALSE),\"N\")","v":"Y"},"NY"]
[null,null,null,"General Fund",null,null,null,null,null,{"$f":"VLOOKUP(D1264,'Bank and Fund Details'!$B$15:$D$36,3,FALSE)","v":0},{"$f":"VLOOKUP(D1264,'Bank and Fund Details'!$B$15:$C$36,2,FALSE)","v":"Unrestricted"},{"$f":"IFERROR(VLOOKUP(C1264,Descriptions!$I$6:$K$92,3,FALSE),\"\")","v":""},null,null,null,null,null,null,null,null,null,null,null,null,null,null,"General Fund",null,{"$f":"IFERROR(VLOOKUP(C1264,Descriptions!I:M,5,FALSE),\"N\")","v":"N"},true,"NTRUE",0,{"$f":"IFERROR(VLOOKUP(D1264,'Bank and Fund Details'!$B$14:$L$35,11,FALSE),\"N\")","v":"Y"},"NY"]
[null,null,null,"General Fund",null,null,null,null,null,{"$f":"VLOOKUP(D1265,'Bank and Fund Details'!$B$15:$D$36,3,FALSE)","v":0},{"$f":"VLOOKUP(D1265,'Bank and Fund Details'!$B$15:$C$36,2,FALSE)","v":"Unrestricted"},{"$f":"IFERROR(VLOOKUP(C1265,Descriptions!$I$6:$K$92,3,FALSE),\"\")","v":""},null,null,null,null,null,null,null,null,null,null,null,null,null,null,"General Fund",null,{"$f":"IFERROR(VLOOKUP(C1265,Descriptions!I:M,5,FALSE),\"N\")","v":"N"},true,"NTRUE",0,{"$f":"IFERROR(VLOOKUP(D1265,'Bank and Fund Details'!$B$14:$L$35,11,FALSE),\"N\")","v":"Y"},"NY"]
[null,null,null,"General Fund",null,null,null,null,null,{"$f":"VLOOKUP(D1266,'Bank and Fund Details'!$B$15:$D$36,3,FALSE)","v":0},{"$f":"VLOOKUP(D1266,'Bank and Fund Details'!$B$15:$C$36,2,FALSE)","v":"Unrestricted"},{"$f":"IFERROR(VLOOKUP(C1266,Descriptions!$I$6:$K$92,3,FALSE),\"\")","v":""},null,null,null,null,null,null,null,null,null,null,null,null,null,null,"General Fund",null,{"$f":"IFERROR(VLOOKUP(C1266,Descriptions!I:M,5,FALSE),\"N\")","v":"N"},true,"NTRUE",0,{"$f":"IFERROR(VLOOKUP(D1266,'Bank and Fund Details'!$B$14:$L$35,11,FALSE),\"N\")","v":"Y"},"NY"]
[null,null,null,"General Fund",null,null,null,null,null,{"$f":"VLOOKUP(D1267,'Bank and Fund Details'!$B$15:$D$36,3,FALSE)","v":0},{"$f":"VLOOKUP(D1267,'Bank and Fund Details'!$B$15:$C$36,2,FALSE)","v":"Unrestricted"},{"$f":"IFERROR(VLOOKUP(C1267,Descriptions!$I$6:$K$92,3,FALSE),\"\")","v":""},null,null,null,null,null,null,null,null,null,null,null,null,null,null,"General Fund",null,{"$f":"IFERROR(VLOOKUP(C1267,Descriptions!I:M,5,FALSE),\"N\")","v":"N"},true,"NTRUE",0,{"$f":"IFERROR(VLOOKUP(D1267,'Bank and Fund Details'!$B$14:$L$35,11,FALSE),\"N\")","v":"Y"},"NY"]
[null,null,null,"General Fund",null,null,null,null,null,{"$f":"VLOOKUP(D1268,'Bank and Fund Details'!$B$15:$D$36,3,FALSE)","v":0},{"$f":"VLOOKUP(D1268,'Bank and Fund Details'!$B$15:$C$36,2,FALSE)","v":"Unrestricted"},{"$f":"IFERROR(VLOOKUP(C1268,Descriptions!$I$6:$K$92,3,FALSE),\"\")","v":""},null,null,null,null,null,null,null,null,null,null,null,null,null,null,"General Fund",null,{"$f":"IFERROR(VLOOKUP(C1268,Descriptions!I:M,5,FALSE),\"N\")","v":"N"},true,"NTRUE",0,{"$f":"IFERROR(VLOOKUP(D1268,'Bank and Fund Details'!$B$14:$L$35,11,FALSE),\"N\")","v":"Y"},"NY"]
[null,null,null,"General Fund",null,null,null,null,null,{"$f":"VLOOKUP(D1269,'Bank and Fund Details'!$B$15:$D$36,3,FALSE)","v":0},{"$f":"VLOOKUP(D1269,'Bank and Fund Details'!$B$15:$C$36,2,FALSE)","v":"Unrestricted"},{"$f":"IFERROR(VLOOKUP(C1269,Descriptions!$I$6:$K$92,3,FALSE),\"\")","v":""},null,null,null,null,null,null,null,null,null,null,null,null,null,null,"General Fund",null,{"$f":"IFERROR(VLOOKUP(C1269,Descriptions!I:M,5,FALSE),\"N\")","v":"N"},true,"NTRUE",0,{"$f":"IFERROR(VLOOKUP(D1269,'Bank and Fund Details'!$B$14:$L$35,11,FALSE),\"N\")","v":"Y"},"NY"]
[null,null,null,"General Fund",null,null,null,null,null,{"$f":"VLOOKUP(D1270,'Bank and Fund Details'!$B$15:$D$36,3,FALSE)","v":0},{"$f":"VLOOKUP(D1270,'Bank and Fund Details'!$B$15:$C$36,2,FALSE)","v":"Unrestricted"},{"$f":"IFERROR(VLOOKUP(C1270,Descriptions!$I$6:$K$92,3,FALSE),\"\")","v":""},null,null,null,null,null,null,null,null,null,null,null,null,null,null,"General Fund",null,{"$f":"IFERROR(VLOOKUP(C1270,Descriptions!I:M,5,FALSE),\"N\")","v":"N"},true,"NTRUE",0,{"$f":"IFERROR(VLOOKUP(D1270,'Bank and Fund Details'!$B$14:$L$35,11,FALSE),\"N\")","v":"Y"},"NY"]
[null,null,null,"General Fund",null,null,null,null,null,{"$f":"VLOOKUP(D1271,'Bank and Fund Details'!$B$15:$D$36,3,FALSE)","v":0},{"$f":"VLOOKUP(D1271,'Bank and Fund Details'!$B$15:$C$36,2,FALSE)","v":"Unrestricted"},{"$f":"IFERROR(VLOOKUP(C1271,Descriptions!$I$6:$K$92,3,FALSE),\"\")","v":""},null,null,null,null,null,null,null,null,null,null,null,null,null,null,"General Fund",null,{"$f":"IFERROR(VLOOKUP(C1271,Descriptions!I:M,5,FALSE),\"N\")","v":"N"},true,"NTRUE",0,{"$f":"IFERROR(VLOOKUP(D1271,'Bank and Fund Details'!$B$14:$L$35,11,FALSE),\"N\")","v":"Y"},"NY"]
[null,null,null,"General Fund",null,null,null,null,null,{"$f":"VLOOKUP(D1272,'Bank and Fund Details'!$B$15:$D$36,3,FALSE)","v":0},{"$f":"VLOOKUP(D1272,'Bank and Fund Details'!$B$15:$C$36,2,FALSE)","v":"Unrestricted"},{"$f":"IFERROR(VLOOKUP(C1272,Descriptions!$I$6:$K$92,3,FALSE),\"\")","v":""},null,null,null,null,null,null,null,null,null,null,null,null,null,null,"General Fund",null,{"$f":"IFERROR(VLOOKUP(C1272,Descriptions!I:M,5,FALSE),\"N\")","v":"N"},true,"NTRUE",0,{"$f":"IFERROR(VLOOKUP(D1272,'Bank and Fund Details'!$B$14:$L$35,11,FALSE),\"N\")","v":"Y"},"NY"]
[null,null,null,"General Fund",null,null,null,null,null,{"$f":"VLOOKUP(D1273,'Bank and Fund Details'!$B$15:$D$36,3,FALSE)","v":0},{"$f":"VLOOKUP(D1273,'Bank and Fund Details'!$B$15:$C$36,2,FALSE)","v":"Unrestricted"},{"$f":"IFERROR(VLOOKUP(C1273,Descriptions!$I$6:$K$92,3,FALSE),\"\")","v":""},null,null,null,null,null,null,null,null,null,null,null,null,null,null,"General Fund",null,{"$f":"IFERROR(VLOOKUP(C1273,Descriptions!I:M,5,FALSE),\"N\")","v":"N"},true,"NTRUE",0,{"$f":"IFERROR(VLOOKUP(D1273,'Bank and Fund Details'!$B$14:$L$35,11,FALSE),\"N\")","v":"Y"},"NY"]
[null,null,null,"General Fund",null,null,null,null,null,{"$f":"VLOOKUP(D1274,'Bank and Fund Details'!$B$15:$D$36,3,FALSE)","v":0},{"$f":"VLOOKUP(D1274,'Bank and Fund Details'!$B$15:$C$36,2,FALSE)","v":"Unrestricted"},{"$f":"IFERROR(VLOOKUP(C1274,Descriptions!$I$6:$K$92,3,FALSE),\"\")","v":""},null,null,null,null,null,null,null,null,null,null,null,null,null,null,"General Fund",null,{"$f":"IFERROR(VLOOKUP(C1274,Descriptions!I:M,5,FALSE),\"N\")","v":"N"},true,"NTRUE",0,{"$f":"IFERROR(VLOOKUP(D1274,'Bank and Fund Details'!$B$14:$L$35,11,FALSE),\"N\")","v":"Y"},"NY"]
[null,null,null,"General Fund",null,null,null,null,null,{"$f":"VLOOKUP(D1275,'Bank and Fund Details'!$B$15:$D$36,3,FALSE)","v":0},{"$f":"VLOOKUP(D1275,'Bank and Fund Details'!$B$15:$C$36,2,FALSE)","v":"Unrestricted"},{"$f":"IFERROR(VLOOKUP(C1275,Descriptions!$I$6:$K$92,3,FALSE),\"\")","v":""},null,null,null,null,null,null,null,null,null,null,null,null,null,null,"General Fund",null,{"$f":"IFERROR(VLOOKUP(C1275,Descriptions!I:M,5,FALSE),\"N\")","v":"N"},true,"NTRUE",0,{"$f":"IFERROR(VLOOKUP(D1275,'Bank and Fund Details'!$B$14:$L$35,11,FALSE),\"N\")","v":"Y"},"NY"]
[null,null,null,"General Fund",null,null,null,null,null,{"$f":"VLOOKUP(D1276,'Bank and Fund Details'!$B$15:$D$36,3,FALSE)","v":0},{"$f":"VLOOKUP(D1276,'Bank and Fund Details'!$B$15:$C$36,2,FALSE)","v":"Unrestricted"},{"$f":"IFERROR(VLOOKUP(C1276,Descriptions!$I$6:$K$92,3,FALSE),\"\")","v":""},null,null,null,null,null,null,null,null,null,null,null,null,null,null,"General Fund",null,{"$f":"IFERROR(VLOOKUP(C1276,Descriptions!I:M,5,FALSE),\"N\")","v":"N"},true,"NTRUE",0,{"$f":"IFERROR(VLOOKUP(D1276,'Bank and Fund Details'!$B$14:$L$35,11,FALSE),\"N\")","v":"Y"},"NY"]
[null,null,null,"General Fund",null,null,null,null,null,{"$f":"VLOOKUP(D1277,'Bank and Fund Details'!$B$15:$D$36,3,FALSE)","v":0},{"$f":"VLOOKUP(D1277,'Bank and Fund Details'!$B$15:$C$36,2,FALSE)","v":"Unrestricted"},{"$f":"IFERROR(VLOOKUP(C1277,Descriptions!$I$6:$K$92,3,FALSE),\"\")","v":""},null,null,null,null,null,null,null,null,null,null,null,null,null,null,"General Fund",null,{"$f":"IFERROR(VLOOKUP(C1277,Descriptions!I:M,5,FALSE),\"N\")","v":"N"},true,"NTRUE",0,{"$f":"IFERROR(VLOOKUP(D1277,'Bank and Fund Details'!$B$14:$L$35,11,FALSE),\"N\")","v":"Y"},"NY"]
[null,null,null,"General Fund",null,null,null,null,null,{"$f":"VLOOKUP(D1278,'Bank and Fund Details'!$B$15:$D$36,3,FALSE)","v":0},{"$f":"VLOOKUP(D1278,'Bank and Fund Details'!$B$15:$C$36,2,FALSE)","v":"Unrestricted"},{"$f":"IFERROR(VLOOKUP(C1278,Descriptions!$I$6:$K$92,3,FALSE),\"\")","v":""},null,null,null,null,null,null,null,null,null,null,null,null,null,null,"General Fund",null,{"$f":"IFERROR(VLOOKUP(C1278,Descriptions!I:M,5,FALSE),\"N\")","v":"N"},true,"NTRUE",0,{"$f":"IFERROR(VLOOKUP(D1278,'Bank and Fund Details'!$B$14:$L$35,11,FALSE),\"N\")","v":"Y"},"NY"]
[null,null,null,"General Fund",null,null,null,null,null,{"$f":"VLOOKUP(D1279,'Bank and Fund Details'!$B$15:$D$36,3,FALSE)","v":0},{"$f":"VLOOKUP(D1279,'Bank and Fund Details'!$B$15:$C$36,2,FALSE)","v":"Unrestricted"},{"$f":"IFERROR(VLOOKUP(C1279,Descriptions!$I$6:$K$92,3,FALSE),\"\")","v":""},null,null,null,null,null,null,null,null,null,null,null,null,null,null,"General Fund",null,{"$f":"IFERROR(VLOOKUP(C1279,Descriptions!I:M,5,FALSE),\"N\")","v":"N"},true,"NTRUE",0,{"$f":"IFERROR(VLOOKUP(D1279,'Bank and Fund Details'!$B$14:$L$35,11,FALSE),\"N\")","v":"Y"},"NY"]
[null,null,null,"General Fund",null,null,null,null,null,{"$f":"VLOOKUP(D1280,'Bank and Fund Details'!$B$15:$D$36,3,FALSE)","v":0},{"$f":"VLOOKUP(D1280,'Bank and Fund Details'!$B$15:$C$36,2,FALSE)","v":"Unrestricted"},{"$f":"IFERROR(VLOOKUP(C1280,Descriptions!$I$6:$K$92,3,FALSE),\"\")","v":""},null,null,null,null,null,null,null,null,null,null,null,null,null,null,"General Fund",null,{"$f":"IFERROR(VLOOKUP(C1280,Descriptions!I:M,5,FALSE),\"N\")","v":"N"},true,"NTRUE",0,{"$f":"IFERROR(VLOOKUP(D1280,'Bank and Fund Details'!$B$14:$L$35,11,FALSE),\"N\")","v":"Y"},"NY"]
[null,null,null,"General Fund",null,null,null,null,null,{"$f":"VLOOKUP(D1281,'Bank and Fund Details'!$B$15:$D$36,3,FALSE)","v":0},{"$f":"VLOOKUP(D1281,'Bank and Fund Details'!$B$15:$C$36,2,FALSE)","v":"Unrestricted"},{"$f":"IFERROR(VLOOKUP(C1281,Descriptions!$I$6:$K$92,3,FALSE),\"\")","v":""},null,null,null,null,null,null,null,null,null,null,null,null,null,null,"General Fund",null,{"$f":"IFERROR(VLOOKUP(C1281,Descriptions!I:M,5,FALSE),\"N\")","v":"N"},true,"NTRUE",0,{"$f":"IFERROR(VLOOKUP(D1281,'Bank and Fund Details'!$B$14:$L$35,11,FALSE),\"N\")","v":"Y"},"NY"]
[null,null,null,"General Fund",null,null,null,null,null,{"$f":"VLOOKUP(D1282,'Bank and Fund Details'!$B$15:$D$36,3,FALSE)","v":0},{"$f":"VLOOKUP(D1282,'Bank and Fund Details'!$B$15:$C$36,2,FALSE)","v":"Unrestricted"},{"$f":"IFERROR(VLOOKUP(C1282,Descriptions!$I$6:$K$92,3,FALSE),\"\")","v":""},null,null,null,null,null,null,null,null,null,null,null,null,null,null,"General Fund",null,{"$f":"IFERROR(VLOOKUP(C1282,Descriptions!I:M,5,FALSE),\"N\")","v":"N"},true,"NTRUE",0,{"$f":"IFERROR(VLOOKUP(D1282,'Bank and Fund Details'!$B$14:$L$35,11,FALSE),\"N\")","v":"Y"},"NY"]
[null,null,null,"General Fund",null,null,null,null,null,{"$f":"VLOOKUP(D1283,'Bank and Fund Details'!$B$15:$D$36,3,FALSE)","v":0},{"$f":"VLOOKUP(D1283,'Bank and Fund Details'!$B$15:$C$36,2,FALSE)","v":"Unrestricted"},{"$f":"IFERROR(VLOOKUP(C1283,Descriptions!$I$6:$K$92,3,FALSE),\"\")","v":""},null,null,null,null,null,null,null,null,null,null,null,null,null,null,"General Fund",null,{"$f":"IFERROR(VLOOKUP(C1283,Descriptions!I:M,5,FALSE),\"N\")","v":"N"},true,"NTRUE",0,{"$f":"IFERROR(VLOOKUP(D1283,'Bank and Fund Details'!$B$14:$L$35,11,FALSE),\"N\")","v":"Y"},"NY"]
[null,null,null,"General Fund",null,null,null,null,null,{"$f":"VLOOKUP(D1284,'Bank and Fund Details'!$B$15:$D$36,3,FALSE)","v":0},{"$f":"VLOOKUP(D1284,'Bank and Fund Details'!$B$15:$C$36,2,FALSE)","v":"Unrestricted"},{"$f":"IFERROR(VLOOKUP(C1284,Descriptions!$I$6:$K$92,3,FALSE),\"\")","v":""},null,null,null,null,null,null,null,null,null,null,null,null,null,null,"General Fund",null,{"$f":"IFERROR(VLOOKUP(C1284,Descriptions!I:M,5,FALSE),\"N\")","v":"N"},true,"NTRUE",0,{"$f":"IFERROR(VLOOKUP(D1284,'Bank and Fund Details'!$B$14:$L$35,11,FALSE),\"N\")","v":"Y"},"NY"]
[null,null,null,"General Fund",null,null,null,null,null,{"$f":"VLOOKUP(D1285,'Bank and Fund Details'!$B$15:$D$36,3,FALSE)","v":0},{"$f":"VLOOKUP(D1285,'Bank and Fund Details'!$B$15:$C$36,2,FALSE)","v":"Unrestricted"},{"$f":"IFERROR(VLOOKUP(C1285,Descriptions!$I$6:$K$92,3,FALSE),\"\")","v":""},null,null,null,null,null,null,null,null,null,null,null,null,null,null,"General Fund",null,{"$f":"IFERROR(VLOOKUP(C1285,Descriptions!I:M,5,FALSE),\"N\")","v":"N"},true,"NTRUE",0,{"$f":"IFERROR(VLOOKUP(D1285,'Bank and Fund Details'!$B$14:$L$35,11,FALSE),\"N\")","v":"Y"},"NY"]
[null,null,null,"General Fund",null,null,null,null,null,{"$f":"VLOOKUP(D1286,'Bank and Fund Details'!$B$15:$D$36,3,FALSE)","v":0},{"$f":"VLOOKUP(D1286,'Bank and Fund Details'!$B$15:$C$36,2,FALSE)","v":"Unrestricted"},{"$f":"IFERROR(VLOOKUP(C1286,Descriptions!$I$6:$K$92,3,FALSE),\"\")","v":""},null,null,null,null,null,null,null,null,null,null,null,null,null,null,{"$f":"CONCATENATE(C1286,D1286)","v":"General Fund"},null,{"$f":"IFERROR(VLOOKUP(C1286,Descriptions!I:M,5,FALSE),\"N\")","v":"N"},{"$f":"ISBLANK(C1286)","v":true},{"$f":"CONCATENATE(AC1286,AD1286)","v":"NTRUE"},{"$f":"IF(AE1286=\"NFALSE\",1,0)","v":0},{"$f":"IFERROR(VLOOKUP(D1286,'Bank and Fund Details'!$B$14:$L$35,11,FALSE),\"N\")","v":"Y"},{"$f":"CONCATENATE(AC1286,AG1286)","v":"NY"}]
[null,null,null,"General Fund",null,null,null,null,null,{"$f":"VLOOKUP(D1287,'Bank and Fund Details'!$B$15:$D$36,3,FALSE)","v":0},{"$f":"VLOOKUP(D1287,'Bank and Fund Details'!$B$15:$C$36,2,FALSE)","v":"Unrestricted"},{"$f":"IFERROR(VLOOKUP(C1287,Descriptions!$I$6:$K$92,3,FALSE),\"\")","v":""},null,null,null,null,null,null,null,null,null,null,null,null,null,null,"General Fund",null,{"$f":"IFERROR(VLOOKUP(C1287,Descriptions!I:M,5,FALSE),\"N\")","v":"N"},true,"NTRUE",0,{"$f":"IFERROR(VLOOKUP(D1287,'Bank and Fund Details'!$B$14:$L$35,11,FALSE),\"N\")","v":"Y"},"NY"]
[null,null,null,"General Fund",null,null,null,null,null,{"$f":"VLOOKUP(D1288,'Bank and Fund Details'!$B$15:$D$36,3,FALSE)","v":0},{"$f":"VLOOKUP(D1288,'Bank and Fund Details'!$B$15:$C$36,2,FALSE)","v":"Unrestricted"},{"$f":"IFERROR(VLOOKUP(C1288,Descriptions!$I$6:$K$92,3,FALSE),\"\")","v":""},null,null,null,null,null,null,null,null,null,null,null,null,null,null,"General Fund",null,{"$f":"IFERROR(VLOOKUP(C1288,Descriptions!I:M,5,FALSE),\"N\")","v":"N"},true,"NTRUE",0,{"$f":"IFERROR(VLOOKUP(D1288,'Bank and Fund Details'!$B$14:$L$35,11,FALSE),\"N\")","v":"Y"},"NY"]
[null,null,null,"General Fund",null,null,null,null,null,{"$f":"VLOOKUP(D1289,'Bank and Fund Details'!$B$15:$D$36,3,FALSE)","v":0},{"$f":"VLOOKUP(D1289,'Bank and Fund Details'!$B$15:$C$36,2,FALSE)","v":"Unrestricted"},{"$f":"IFERROR(VLOOKUP(C1289,Descriptions!$I$6:$K$92,3,FALSE),\"\")","v":""},null,null,null,null,null,null,null,null,null,null,null,null,null,null,"General Fund",null,{"$f":"IFERROR(VLOOKUP(C1289,Descriptions!I:M,5,FALSE),\"N\")","v":"N"},true,"NTRUE",0,{"$f":"IFERROR(VLOOKUP(D1289,'Bank and Fund Details'!$B$14:$L$35,11,FALSE),\"N\")","v":"Y"},"NY"]
[null,null,null,"General Fund",null,null,null,null,null,{"$f":"VLOOKUP(D1290,'Bank and Fund Details'!$B$15:$D$36,3,FALSE)","v":0},{"$f":"VLOOKUP(D1290,'Bank and Fund Details'!$B$15:$C$36,2,FALSE)","v":"Unrestricted"},{"$f":"IFERROR(VLOOKUP(C1290,Descriptions!$I$6:$K$92,3,FALSE),\"\")","v":""},null,null,null,null,null,null,null,null,null,null,null,null,null,null,"General Fund",null,{"$f":"IFERROR(VLOOKUP(C1290,Descriptions!I:M,5,FALSE),\"N\")","v":"N"},true,"NTRUE",0,{"$f":"IFERROR(VLOOKUP(D1290,'Bank and Fund Details'!$B$14:$L$35,11,FALSE),\"N\")","v":"Y"},"NY"]
[null,null,null,"General Fund",null,null,null,null,null,{"$f":"VLOOKUP(D1291,'Bank and Fund Details'!$B$15:$D$36,3,FALSE)","v":0},{"$f":"VLOOKUP(D1291,'Bank and Fund Details'!$B$15:$C$36,2,FALSE)","v":"Unrestricted"},{"$f":"IFERROR(VLOOKUP(C1291,Descriptions!$I$6:$K$92,3,FALSE),\"\")","v":""},null,null,null,null,null,null,null,null,null,null,null,null,null,null,"General Fund",null,{"$f":"IFERROR(VLOOKUP(C1291,Descriptions!I:M,5,FALSE),\"N\")","v":"N"},true,"NTRUE",0,{"$f":"IFERROR(VLOOKUP(D1291,'Bank and Fund Details'!$B$14:$L$35,11,FALSE),\"N\")","v":"Y"},"NY"]
[null,null,null,"General Fund",null,null,null,null,null,{"$f":"VLOOKUP(D1292,'Bank and Fund Details'!$B$15:$D$36,3,FALSE)","v":0},{"$f":"VLOOKUP(D1292,'Bank and Fund Details'!$B$15:$C$36,2,FALSE)","v":"Unrestricted"},{"$f":"IFERROR(VLOOKUP(C1292,Descriptions!$I$6:$K$92,3,FALSE),\"\")","v":""},null,null,null,null,null,null,null,null,null,null,null,null,null,null,"General Fund",null,{"$f":"IFERROR(VLOOKUP(C1292,Descriptions!I:M,5,FALSE),\"N\")","v":"N"},true,"NTRUE",0,{"$f":"IFERROR(VLOOKUP(D1292,'Bank and Fund Details'!$B$14:$L$35,11,FALSE),\"N\")","v":"Y"},"NY"]
[null,null,null,"General Fund",null,null,null,null,null,{"$f":"VLOOKUP(D1293,'Bank and Fund Details'!$B$15:$D$36,3,FALSE)","v":0},{"$f":"VLOOKUP(D1293,'Bank and Fund Details'!$B$15:$C$36,2,FALSE)","v":"Unrestricted"},{"$f":"IFERROR(VLOOKUP(C1293,Descriptions!$I$6:$K$92,3,FALSE),\"\")","v":""},null,null,null,null,null,null,null,null,null,null,null,null,null,null,"General Fund",null,{"$f":"IFERROR(VLOOKUP(C1293,Descriptions!I:M,5,FALSE),\"N\")","v":"N"},true,"NTRUE",0,{"$f":"IFERROR(VLOOKUP(D1293,'Bank and Fund Details'!$B$14:$L$35,11,FALSE),\"N\")","v":"Y"},"NY"]
[null,null,null,"General Fund",null,null,null,null,null,{"$f":"VLOOKUP(D1294,'Bank and Fund Details'!$B$15:$D$36,3,FALSE)","v":0},{"$f":"VLOOKUP(D1294,'Bank and Fund Details'!$B$15:$C$36,2,FALSE)","v":"Unrestricted"},{"$f":"IFERROR(VLOOKUP(C1294,Descriptions!$I$6:$K$92,3,FALSE),\"\")","v":""},null,null,null,null,null,null,null,null,null,null,null,null,null,null,"General Fund",null,{"$f":"IFERROR(VLOOKUP(C1294,Descriptions!I:M,5,FALSE),\"N\")","v":"N"},true,"NTRUE",0,{"$f":"IFERROR(VLOOKUP(D1294,'Bank and Fund Details'!$B$14:$L$35,11,FALSE),\"N\")","v":"Y"},"NY"]
[null,null,null,"General Fund",null,null,null,null,null,{"$f":"VLOOKUP(D1295,'Bank and Fund Details'!$B$15:$D$36,3,FALSE)","v":0},{"$f":"VLOOKUP(D1295,'Bank and Fund Details'!$B$15:$C$36,2,FALSE)","v":"Unrestricted"},{"$f":"IFERROR(VLOOKUP(C1295,Descriptions!$I$6:$K$92,3,FALSE),\"\")","v":""},null,null,null,null,null,null,null,null,null,null,null,null,null,null,"General Fund",null,{"$f":"IFERROR(VLOOKUP(C1295,Descriptions!I:M,5,FALSE),\"N\")","v":"N"},true,"NTRUE",0,{"$f":"IFERROR(VLOOKUP(D1295,'Bank and Fund Details'!$B$14:$L$35,11,FALSE),\"N\")","v":"Y"},"NY"]
[null,null,null,"General Fund",null,null,null,null,null,{"$f":"VLOOKUP(D1296,'Bank and Fund Details'!$B$15:$D$36,3,FALSE)","v":0},{"$f":"VLOOKUP(D1296,'Bank and Fund Details'!$B$15:$C$36,2,FALSE)","v":"Unrestricted"},{"$f":"IFERROR(VLOOKUP(C1296,Descriptions!$I$6:$K$92,3,FALSE),\"\")","v":""},null,null,null,null,null,null,null,null,null,null,null,null,null,null,"General Fund",null,{"$f":"IFERROR(VLOOKUP(C1296,Descriptions!I:M,5,FALSE),\"N\")","v":"N"},true,"NTRUE",0,{"$f":"IFERROR(VLOOKUP(D1296,'Bank and Fund Details'!$B$14:$L$35,11,FALSE),\"N\")","v":"Y"},"NY"]
[null,null,null,"General Fund",null,null,null,null,null,{"$f":"VLOOKUP(D1297,'Bank and Fund Details'!$B$15:$D$36,3,FALSE)","v":0},{"$f":"VLOOKUP(D1297,'Bank and Fund Details'!$B$15:$C$36,2,FALSE)","v":"Unrestricted"},{"$f":"IFERROR(VLOOKUP(C1297,Descriptions!$I$6:$K$92,3,FALSE),\"\")","v":""},null,null,null,null,null,null,null,null,null,null,null,null,null,null,"General Fund",null,{"$f":"IFERROR(VLOOKUP(C1297,Descriptions!I:M,5,FALSE),\"N\")","v":"N"},true,"NTRUE",0,{"$f":"IFERROR(VLOOKUP(D1297,'Bank and Fund Details'!$B$14:$L$35,11,FALSE),\"N\")","v":"Y"},"NY"]
[null,null,null,"General Fund",null,null,null,null,null,{"$f":"VLOOKUP(D1298,'Bank and Fund Details'!$B$15:$D$36,3,FALSE)","v":0},{"$f":"VLOOKUP(D1298,'Bank and Fund Details'!$B$15:$C$36,2,FALSE)","v":"Unrestricted"},{"$f":"IFERROR(VLOOKUP(C1298,Descriptions!$I$6:$K$92,3,FALSE),\"\")","v":""},null,null,null,null,null,null,null,null,null,null,null,null,null,null,"General Fund",null,{"$f":"IFERROR(VLOOKUP(C1298,Descriptions!I:M,5,FALSE),\"N\")","v":"N"},true,"NTRUE",0,{"$f":"IFERROR(VLOOKUP(D1298,'Bank and Fund Details'!$B$14:$L$35,11,FALSE),\"N\")","v":"Y"},"NY"]
[null,null,null,"General Fund",null,null,null,null,null,{"$f":"VLOOKUP(D1299,'Bank and Fund Details'!$B$15:$D$36,3,FALSE)","v":0},{"$f":"VLOOKUP(D1299,'Bank and Fund Details'!$B$15:$C$36,2,FALSE)","v":"Unrestricted"},{"$f":"IFERROR(VLOOKUP(C1299,Descriptions!$I$6:$K$92,3,FALSE),\"\")","v":""},null,null,null,null,null,null,null,null,null,null,null,null,null,null,"General Fund",null,{"$f":"IFERROR(VLOOKUP(C1299,Descriptions!I:M,5,FALSE),\"N\")","v":"N"},true,"NTRUE",0,{"$f":"IFERROR(VLOOKUP(D1299,'Bank and Fund Details'!$B$14:$L$35,11,FALSE),\"N\")","v":"Y"},"NY"]
[null,null,null,"General Fund",null,null,null,null,null,{"$f":"VLOOKUP(D1300,'Bank and Fund Details'!$B$15:$D$36,3,FALSE)","v":0},{"$f":"VLOOKUP(D1300,'Bank and Fund Details'!$B$15:$C$36,2,FALSE)","v":"Unrestricted"},{"$f":"IFERROR(VLOOKUP(C1300,Descriptions!$I$6:$K$92,3,FALSE),\"\")","v":""},null,null,null,null,null,null,null,null,null,null,null,null,null,null,"General Fund",null,{"$f":"IFERROR(VLOOKUP(C1300,Descriptions!I:M,5,FALSE),\"N\")","v":"N"},true,"NTRUE",0,{"$f":"IFERROR(VLOOKUP(D1300,'Bank and Fund Details'!$B$14:$L$35,11,FALSE),\"N\")","v":"Y"},"NY"]
[null,null,null,"General Fund",null,null,null,null,null,{"$f":"VLOOKUP(D1301,'Bank and Fund Details'!$B$15:$D$36,3,FALSE)","v":0},{"$f":"VLOOKUP(D1301,'Bank and Fund Details'!$B$15:$C$36,2,FALSE)","v":"Unrestricted"},{"$f":"IFERROR(VLOOKUP(C1301,Descriptions!$I$6:$K$92,3,FALSE),\"\")","v":""},null,null,null,null,null,null,null,null,null,null,null,null,null,null,"General Fund",null,{"$f":"IFERROR(VLOOKUP(C1301,Descriptions!I:M,5,FALSE),\"N\")","v":"N"},true,"NTRUE",0,{"$f":"IFERROR(VLOOKUP(D1301,'Bank and Fund Details'!$B$14:$L$35,11,FALSE),\"N\")","v":"Y"},"NY"]
[null,null,null,"General Fund",null,null,null,null,null,{"$f":"VLOOKUP(D1302,'Bank and Fund Details'!$B$15:$D$36,3,FALSE)","v":0},{"$f":"VLOOKUP(D1302,'Bank and Fund Details'!$B$15:$C$36,2,FALSE)","v":"Unrestricted"},{"$f":"IFERROR(VLOOKUP(C1302,Descriptions!$I$6:$K$92,3,FALSE),\"\")","v":""},null,null,null,null,null,null,null,null,null,null,null,null,null,null,"General Fund",null,{"$f":"IFERROR(VLOOKUP(C1302,Descriptions!I:M,5,FALSE),\"N\")","v":"N"},true,"NTRUE",0,{"$f":"IFERROR(VLOOKUP(D1302,'Bank and Fund Details'!$B$14:$L$35,11,FALSE),\"N\")","v":"Y"},"NY"]
[null,null,null,"General Fund",null,null,null,null,null,{"$f":"VLOOKUP(D1303,'Bank and Fund Details'!$B$15:$D$36,3,FALSE)","v":0},{"$f":"VLOOKUP(D1303,'Bank and Fund Details'!$B$15:$C$36,2,FALSE)","v":"Unrestricted"},{"$f":"IFERROR(VLOOKUP(C1303,Descriptions!$I$6:$K$92,3,FALSE),\"\")","v":""},null,null,null,null,null,null,null,null,null,null,null,null,null,null,"General Fund",null,{"$f":"IFERROR(VLOOKUP(C1303,Descriptions!I:M,5,FALSE),\"N\")","v":"N"},true,"NTRUE",0,{"$f":"IFERROR(VLOOKUP(D1303,'Bank and Fund Details'!$B$14:$L$35,11,FALSE),\"N\")","v":"Y"},"NY"]
[null,null,null,"General Fund",null,null,null,null,null,{"$f":"VLOOKUP(D1304,'Bank and Fund Details'!$B$15:$D$36,3,FALSE)","v":0},{"$f":"VLOOKUP(D1304,'Bank and Fund Details'!$B$15:$C$36,2,FALSE)","v":"Unrestricted"},{"$f":"IFERROR(VLOOKUP(C1304,Descriptions!$I$6:$K$92,3,FALSE),\"\")","v":""},null,null,null,null,null,null,null,null,null,null,null,null,null,null,"General Fund",null,{"$f":"IFERROR(VLOOKUP(C1304,Descriptions!I:M,5,FALSE),\"N\")","v":"N"},true,"NTRUE",0,{"$f":"IFERROR(VLOOKUP(D1304,'Bank and Fund Details'!$B$14:$L$35,11,FALSE),\"N\")","v":"Y"},"NY"]
[null,null,null,"General Fund",null,null,null,null,null,{"$f":"VLOOKUP(D1305,'Bank and Fund Details'!$B$15:$D$36,3,FALSE)","v":0},{"$f":"VLOOKUP(D1305,'Bank and Fund Details'!$B$15:$C$36,2,FALSE)","v":"Unrestricted"},{"$f":"IFERROR(VLOOKUP(C1305,Descriptions!$I$6:$K$92,3,FALSE),\"\")","v":""},null,null,null,null,null,null,null,null,null,null,null,null,null,null,"General Fund",null,{"$f":"IFERROR(VLOOKUP(C1305,Descriptions!I:M,5,FALSE),\"N\")","v":"N"},true,"NTRUE",0,{"$f":"IFERROR(VLOOKUP(D1305,'Bank and Fund Details'!$B$14:$L$35,11,FALSE),\"N\")","v":"Y"},"NY"]
[null,null,null,"General Fund",null,null,null,null,null,{"$f":"VLOOKUP(D1306,'Bank and Fund Details'!$B$15:$D$36,3,FALSE)","v":0},{"$f":"VLOOKUP(D1306,'Bank and Fund Details'!$B$15:$C$36,2,FALSE)","v":"Unrestricted"},{"$f":"IFERROR(VLOOKUP(C1306,Descriptions!$I$6:$K$92,3,FALSE),\"\")","v":""},null,null,null,null,null,null,null,null,null,null,null,null,null,null,"General Fund",null,{"$f":"IFERROR(VLOOKUP(C1306,Descriptions!I:M,5,FALSE),\"N\")","v":"N"},true,"NTRUE",0,{"$f":"IFERROR(VLOOKUP(D1306,'Bank and Fund Details'!$B$14:$L$35,11,FALSE),\"N\")","v":"Y"},"NY"]
[null,null,null,"General Fund",null,null,null,null,null,{"$f":"VLOOKUP(D1307,'Bank and Fund Details'!$B$15:$D$36,3,FALSE)","v":0},{"$f":"VLOOKUP(D1307,'Bank and Fund Details'!$B$15:$C$36,2,FALSE)","v":"Unrestricted"},{"$f":"IFERROR(VLOOKUP(C1307,Descriptions!$I$6:$K$92,3,FALSE),\"\")","v":""},null,null,null,null,null,null,null,null,null,null,null,null,null,null,"General Fund",null,{"$f":"IFERROR(VLOOKUP(C1307,Descriptions!I:M,5,FALSE),\"N\")","v":"N"},true,"NTRUE",0,{"$f":"IFERROR(VLOOKUP(D1307,'Bank and Fund Details'!$B$14:$L$35,11,FALSE),\"N\")","v":"Y"},"NY"]
[null,null,null,"General Fund",null,null,null,null,null,{"$f":"VLOOKUP(D1308,'Bank and Fund Details'!$B$15:$D$36,3,FALSE)","v":0},{"$f":"VLOOKUP(D1308,'Bank and Fund Details'!$B$15:$C$36,2,FALSE)","v":"Unrestricted"},{"$f":"IFERROR(VLOOKUP(C1308,Descriptions!$I$6:$K$92,3,FALSE),\"\")","v":""},null,null,null,null,null,null,null,null,null,null,null,null,null,null,"General Fund",null,{"$f":"IFERROR(VLOOKUP(C1308,Descriptions!I:M,5,FALSE),\"N\")","v":"N"},true,"NTRUE",0,{"$f":"IFERROR(VLOOKUP(D1308,'Bank and Fund Details'!$B$14:$L$35,11,FALSE),\"N\")","v":"Y"},"NY"]
[null,null,null,"General Fund",null,null,null,null,null,{"$f":"VLOOKUP(D1309,'Bank and Fund Details'!$B$15:$D$36,3,FALSE)","v":0},{"$f":"VLOOKUP(D1309,'Bank and Fund Details'!$B$15:$C$36,2,FALSE)","v":"Unrestricted"},{"$f":"IFERROR(VLOOKUP(C1309,Descriptions!$I$6:$K$92,3,FALSE),\"\")","v":""},null,null,null,null,null,null,null,null,null,null,null,null,null,null,"General Fund",null,{"$f":"IFERROR(VLOOKUP(C1309,Descriptions!I:M,5,FALSE),\"N\")","v":"N"},true,"NTRUE",0,{"$f":"IFERROR(VLOOKUP(D1309,'Bank and Fund Details'!$B$14:$L$35,11,FALSE),\"N\")","v":"Y"},"NY"]
[null,null,null,"General Fund",null,null,null,null,null,{"$f":"VLOOKUP(D1310,'Bank and Fund Details'!$B$15:$D$36,3,FALSE)","v":0},{"$f":"VLOOKUP(D1310,'Bank and Fund Details'!$B$15:$C$36,2,FALSE)","v":"Unrestricted"},{"$f":"IFERROR(VLOOKUP(C1310,Descriptions!$I$6:$K$92,3,FALSE),\"\")","v":""},null,null,null,null,null,null,null,null,null,null,null,null,null,null,"General Fund",null,{"$f":"IFERROR(VLOOKUP(C1310,Descriptions!I:M,5,FALSE),\"N\")","v":"N"},true,"NTRUE",0,{"$f":"IFERROR(VLOOKUP(D1310,'Bank and Fund Details'!$B$14:$L$35,11,FALSE),\"N\")","v":"Y"},"NY"]
[null,null,null,"General Fund",null,null,null,null,null,{"$f":"VLOOKUP(D1311,'Bank and Fund Details'!$B$15:$D$36,3,FALSE)","v":0},{"$f":"VLOOKUP(D1311,'Bank and Fund Details'!$B$15:$C$36,2,FALSE)","v":"Unrestricted"},{"$f":"IFERROR(VLOOKUP(C1311,Descriptions!$I$6:$K$92,3,FALSE),\"\")","v":""},null,null,null,null,null,null,null,null,null,null,null,null,null,null,"General Fund",null,{"$f":"IFERROR(VLOOKUP(C1311,Descriptions!I:M,5,FALSE),\"N\")","v":"N"},true,"NTRUE",0,{"$f":"IFERROR(VLOOKUP(D1311,'Bank and Fund Details'!$B$14:$L$35,11,FALSE),\"N\")","v":"Y"},"NY"]
[null,null,null,"General Fund",null,null,null,null,null,{"$f":"VLOOKUP(D1312,'Bank and Fund Details'!$B$15:$D$36,3,FALSE)","v":0},{"$f":"VLOOKUP(D1312,'Bank and Fund Details'!$B$15:$C$36,2,FALSE)","v":"Unrestricted"},{"$f":"IFERROR(VLOOKUP(C1312,Descriptions!$I$6:$K$92,3,FALSE),\"\")","v":""},null,null,null,null,null,null,null,null,null,null,null,null,null,null,"General Fund",null,{"$f":"IFERROR(VLOOKUP(C1312,Descriptions!I:M,5,FALSE),\"N\")","v":"N"},true,"NTRUE",0,{"$f":"IFERROR(VLOOKUP(D1312,'Bank and Fund Details'!$B$14:$L$35,11,FALSE),\"N\")","v":"Y"},"NY"]
[null,null,null,"General Fund",null,null,null,null,null,{"$f":"VLOOKUP(D1313,'Bank and Fund Details'!$B$15:$D$36,3,FALSE)","v":0},{"$f":"VLOOKUP(D1313,'Bank and Fund Details'!$B$15:$C$36,2,FALSE)","v":"Unrestricted"},{"$f":"IFERROR(VLOOKUP(C1313,Descriptions!$I$6:$K$92,3,FALSE),\"\")","v":""},null,null,null,null,null,null,null,null,null,null,null,null,null,null,"General Fund",null,{"$f":"IFERROR(VLOOKUP(C1313,Descriptions!I:M,5,FALSE),\"N\")","v":"N"},true,"NTRUE",0,{"$f":"IFERROR(VLOOKUP(D1313,'Bank and Fund Details'!$B$14:$L$35,11,FALSE),\"N\")","v":"Y"},"NY"]
[null,null,null,"General Fund",null,null,null,null,null,{"$f":"VLOOKUP(D1314,'Bank and Fund Details'!$B$15:$D$36,3,FALSE)","v":0},{"$f":"VLOOKUP(D1314,'Bank and Fund Details'!$B$15:$C$36,2,FALSE)","v":"Unrestricted"},{"$f":"IFERROR(VLOOKUP(C1314,Descriptions!$I$6:$K$92,3,FALSE),\"\")","v":""},null,null,null,null,null,null,null,null,null,null,null,null,null,null,"General Fund",null,{"$f":"IFERROR(VLOOKUP(C1314,Descriptions!I:M,5,FALSE),\"N\")","v":"N"},true,"NTRUE",0,{"$f":"IFERROR(VLOOKUP(D1314,'Bank and Fund Details'!$B$14:$L$35,11,FALSE),\"N\")","v":"Y"},"NY"]
[null,null,null,"General Fund",null,null,null,null,null,{"$f":"VLOOKUP(D1315,'Bank and Fund Details'!$B$15:$D$36,3,FALSE)","v":0},{"$f":"VLOOKUP(D1315,'Bank and Fund Details'!$B$15:$C$36,2,FALSE)","v":"Unrestricted"},{"$f":"IFERROR(VLOOKUP(C1315,Descriptions!$I$6:$K$92,3,FALSE),\"\")","v":""},null,null,null,null,null,null,null,null,null,null,null,null,null,null,"General Fund",null,{"$f":"IFERROR(VLOOKUP(C1315,Descriptions!I:M,5,FALSE),\"N\")","v":"N"},true,"NTRUE",0,{"$f":"IFERROR(VLOOKUP(D1315,'Bank and Fund Details'!$B$14:$L$35,11,FALSE),\"N\")","v":"Y"},"NY"]
[null,null,null,"General Fund",null,null,null,null,null,{"$f":"VLOOKUP(D1316,'Bank and Fund Details'!$B$15:$D$36,3,FALSE)","v":0},{"$f":"VLOOKUP(D1316,'Bank and Fund Details'!$B$15:$C$36,2,FALSE)","v":"Unrestricted"},{"$f":"IFERROR(VLOOKUP(C1316,Descriptions!$I$6:$K$92,3,FALSE),\"\")","v":""},null,null,null,null,null,null,null,null,null,null,null,null,null,null,"General Fund",null,{"$f":"IFERROR(VLOOKUP(C1316,Descriptions!I:M,5,FALSE),\"N\")","v":"N"},true,"NTRUE",0,{"$f":"IFERROR(VLOOKUP(D1316,'Bank and Fund Details'!$B$14:$L$35,11,FALSE),\"N\")","v":"Y"},"NY"]
[null,null,null,"General Fund",null,null,null,null,null,{"$f":"VLOOKUP(D1317,'Bank and Fund Details'!$B$15:$D$36,3,FALSE)","v":0},{"$f":"VLOOKUP(D1317,'Bank and Fund Details'!$B$15:$C$36,2,FALSE)","v":"Unrestricted"},{"$f":"IFERROR(VLOOKUP(C1317,Descriptions!$I$6:$K$92,3,FALSE),\"\")","v":""},null,null,null,null,null,null,null,null,null,null,null,null,null,null,"General Fund",null,{"$f":"IFERROR(VLOOKUP(C1317,Descriptions!I:M,5,FALSE),\"N\")","v":"N"},true,"NTRUE",0,{"$f":"IFERROR(VLOOKUP(D1317,'Bank and Fund Details'!$B$14:$L$35,11,FALSE),\"N\")","v":"Y"},"NY"]
[null,null,null,"General Fund",null,null,null,null,null,{"$f":"VLOOKUP(D1318,'Bank and Fund Details'!$B$15:$D$36,3,FALSE)","v":0},{"$f":"VLOOKUP(D1318,'Bank and Fund Details'!$B$15:$C$36,2,FALSE)","v":"Unrestricted"},{"$f":"IFERROR(VLOOKUP(C1318,Descriptions!$I$6:$K$92,3,FALSE),\"\")","v":""},null,null,null,null,null,null,null,null,null,null,null,null,null,null,"General Fund",null,{"$f":"IFERROR(VLOOKUP(C1318,Descriptions!I:M,5,FALSE),\"N\")","v":"N"},true,"NTRUE",0,{"$f":"IFERROR(VLOOKUP(D1318,'Bank and Fund Details'!$B$14:$L$35,11,FALSE),\"N\")","v":"Y"},"NY"]
[null,null,null,"General Fund",null,null,null,null,null,{"$f":"VLOOKUP(D1319,'Bank and Fund Details'!$B$15:$D$36,3,FALSE)","v":0},{"$f":"VLOOKUP(D1319,'Bank and Fund Details'!$B$15:$C$36,2,FALSE)","v":"Unrestricted"},{"$f":"IFERROR(VLOOKUP(C1319,Descriptions!$I$6:$K$92,3,FALSE),\"\")","v":""},null,null,null,null,null,null,null,null,null,null,null,null,null,null,"General Fund",null,{"$f":"IFERROR(VLOOKUP(C1319,Descriptions!I:M,5,FALSE),\"N\")","v":"N"},true,"NTRUE",0,{"$f":"IFERROR(VLOOKUP(D1319,'Bank and Fund Details'!$B$14:$L$35,11,FALSE),\"N\")","v":"Y"},"NY"]
[null,null,null,"General Fund",null,null,null,null,null,{"$f":"VLOOKUP(D1320,'Bank and Fund Details'!$B$15:$D$36,3,FALSE)","v":0},{"$f":"VLOOKUP(D1320,'Bank and Fund Details'!$B$15:$C$36,2,FALSE)","v":"Unrestricted"},{"$f":"IFERROR(VLOOKUP(C1320,Descriptions!$I$6:$K$92,3,FALSE),\"\")","v":""},null,null,null,null,null,null,null,null,null,null,null,null,null,null,"General Fund",null,{"$f":"IFERROR(VLOOKUP(C1320,Descriptions!I:M,5,FALSE),\"N\")","v":"N"},true,"NTRUE",0,{"$f":"IFERROR(VLOOKUP(D1320,'Bank and Fund Details'!$B$14:$L$35,11,FALSE),\"N\")","v":"Y"},"NY"]
[null,null,null,"General Fund",null,null,null,null,null,{"$f":"VLOOKUP(D1321,'Bank and Fund Details'!$B$15:$D$36,3,FALSE)","v":0},{"$f":"VLOOKUP(D1321,'Bank and Fund Details'!$B$15:$C$36,2,FALSE)","v":"Unrestricted"},{"$f":"IFERROR(VLOOKUP(C1321,Descriptions!$I$6:$K$92,3,FALSE),\"\")","v":""},null,null,null,null,null,null,null,null,null,null,null,null,null,null,"General Fund",null,{"$f":"IFERROR(VLOOKUP(C1321,Descriptions!I:M,5,FALSE),\"N\")","v":"N"},true,"NTRUE",0,{"$f":"IFERROR(VLOOKUP(D1321,'Bank and Fund Details'!$B$14:$L$35,11,FALSE),\"N\")","v":"Y"},"NY"]
[null,null,null,"General Fund",null,null,null,null,null,{"$f":"VLOOKUP(D1322,'Bank and Fund Details'!$B$15:$D$36,3,FALSE)","v":0},{"$f":"VLOOKUP(D1322,'Bank and Fund Details'!$B$15:$C$36,2,FALSE)","v":"Unrestricted"},{"$f":"IFERROR(VLOOKUP(C1322,Descriptions!$I$6:$K$92,3,FALSE),\"\")","v":""},null,null,null,null,null,null,null,null,null,null,null,null,null,null,"General Fund",null,{"$f":"IFERROR(VLOOKUP(C1322,Descriptions!I:M,5,FALSE),\"N\")","v":"N"},true,"NTRUE",0,{"$f":"IFERROR(VLOOKUP(D1322,'Bank and Fund Details'!$B$14:$L$35,11,FALSE),\"N\")","v":"Y"},"NY"]
[null,null,null,"General Fund",null,null,null,null,null,{"$f":"VLOOKUP(D1323,'Bank and Fund Details'!$B$15:$D$36,3,FALSE)","v":0},{"$f":"VLOOKUP(D1323,'Bank and Fund Details'!$B$15:$C$36,2,FALSE)","v":"Unrestricted"},{"$f":"IFERROR(VLOOKUP(C1323,Descriptions!$I$6:$K$92,3,FALSE),\"\")","v":""},null,null,null,null,null,null,null,null,null,null,null,null,null,null,"General Fund",null,{"$f":"IFERROR(VLOOKUP(C1323,Descriptions!I:M,5,FALSE),\"N\")","v":"N"},true,"NTRUE",0,{"$f":"IFERROR(VLOOKUP(D1323,'Bank and Fund Details'!$B$14:$L$35,11,FALSE),\"N\")","v":"Y"},"NY"]
[null,null,null,"General Fund",null,null,null,null,null,{"$f":"VLOOKUP(D1324,'Bank and Fund Details'!$B$15:$D$36,3,FALSE)","v":0},{"$f":"VLOOKUP(D1324,'Bank and Fund Details'!$B$15:$C$36,2,FALSE)","v":"Unrestricted"},{"$f":"IFERROR(VLOOKUP(C1324,Descriptions!$I$6:$K$92,3,FALSE),\"\")","v":""},null,null,null,null,null,null,null,null,null,null,null,null,null,null,"General Fund",null,{"$f":"IFERROR(VLOOKUP(C1324,Descriptions!I:M,5,FALSE),\"N\")","v":"N"},true,"NTRUE",0,{"$f":"IFERROR(VLOOKUP(D1324,'Bank and Fund Details'!$B$14:$L$35,11,FALSE),\"N\")","v":"Y"},"NY"]
[null,null,null,"General Fund",null,null,null,null,null,{"$f":"VLOOKUP(D1325,'Bank and Fund Details'!$B$15:$D$36,3,FALSE)","v":0},{"$f":"VLOOKUP(D1325,'Bank and Fund Details'!$B$15:$C$36,2,FALSE)","v":"Unrestricted"},{"$f":"IFERROR(VLOOKUP(C1325,Descriptions!$I$6:$K$92,3,FALSE),\"\")","v":""},null,null,null,null,null,null,null,null,null,null,null,null,null,null,"General Fund",null,{"$f":"IFERROR(VLOOKUP(C1325,Descriptions!I:M,5,FALSE),\"N\")","v":"N"},true,"NTRUE",0,{"$f":"IFERROR(VLOOKUP(D1325,'Bank and Fund Details'!$B$14:$L$35,11,FALSE),\"N\")","v":"Y"},"NY"]
[null,null,null,"General Fund",null,null,null,null,null,{"$f":"VLOOKUP(D1326,'Bank and Fund Details'!$B$15:$D$36,3,FALSE)","v":0},{"$f":"VLOOKUP(D1326,'Bank and Fund Details'!$B$15:$C$36,2,FALSE)","v":"Unrestricted"},{"$f":"IFERROR(VLOOKUP(C1326,Descriptions!$I$6:$K$92,3,FALSE),\"\")","v":""},null,null,null,null,null,null,null,null,null,null,null,null,null,null,"General Fund",null,{"$f":"IFERROR(VLOOKUP(C1326,Descriptions!I:M,5,FALSE),\"N\")","v":"N"},true,"NTRUE",0,{"$f":"IFERROR(VLOOKUP(D1326,'Bank and Fund Details'!$B$14:$L$35,11,FALSE),\"N\")","v":"Y"},"NY"]
[null,null,null,"General Fund",null,null,null,null,null,{"$f":"VLOOKUP(D1327,'Bank and Fund Details'!$B$15:$D$36,3,FALSE)","v":0},{"$f":"VLOOKUP(D1327,'Bank and Fund Details'!$B$15:$C$36,2,FALSE)","v":"Unrestricted"},{"$f":"IFERROR(VLOOKUP(C1327,Descriptions!$I$6:$K$92,3,FALSE),\"\")","v":""},null,null,null,null,null,null,null,null,null,null,null,null,null,null,"General Fund",null,{"$f":"IFERROR(VLOOKUP(C1327,Descriptions!I:M,5,FALSE),\"N\")","v":"N"},true,"NTRUE",0,{"$f":"IFERROR(VLOOKUP(D1327,'Bank and Fund Details'!$B$14:$L$35,11,FALSE),\"N\")","v":"Y"},"NY"]
[null,null,null,"General Fund",null,null,null,null,null,{"$f":"VLOOKUP(D1328,'Bank and Fund Details'!$B$15:$D$36,3,FALSE)","v":0},{"$f":"VLOOKUP(D1328,'Bank and Fund Details'!$B$15:$C$36,2,FALSE)","v":"Unrestricted"},{"$f":"IFERROR(VLOOKUP(C1328,Descriptions!$I$6:$K$92,3,FALSE),\"\")","v":""},null,null,null,null,null,null,null,null,null,null,null,null,null,null,"General Fund",null,{"$f":"IFERROR(VLOOKUP(C1328,Descriptions!I:M,5,FALSE),\"N\")","v":"N"},true,"NTRUE",0,{"$f":"IFERROR(VLOOKUP(D1328,'Bank and Fund Details'!$B$14:$L$35,11,FALSE),\"N\")","v":"Y"},"NY"]
[null,null,null,"General Fund",null,null,null,null,null,{"$f":"VLOOKUP(D1329,'Bank and Fund Details'!$B$15:$D$36,3,FALSE)","v":0},{"$f":"VLOOKUP(D1329,'Bank and Fund Details'!$B$15:$C$36,2,FALSE)","v":"Unrestricted"},{"$f":"IFERROR(VLOOKUP(C1329,Descriptions!$I$6:$K$92,3,FALSE),\"\")","v":""},null,null,null,null,null,null,null,null,null,null,null,null,null,null,"General Fund",null,{"$f":"IFERROR(VLOOKUP(C1329,Descriptions!I:M,5,FALSE),\"N\")","v":"N"},true,"NTRUE",0,{"$f":"IFERROR(VLOOKUP(D1329,'Bank and Fund Details'!$B$14:$L$35,11,FALSE),\"N\")","v":"Y"},"NY"]
[null,null,null,"General Fund",null,null,null,null,null,{"$f":"VLOOKUP(D1330,'Bank and Fund Details'!$B$15:$D$36,3,FALSE)","v":0},{"$f":"VLOOKUP(D1330,'Bank and Fund Details'!$B$15:$C$36,2,FALSE)","v":"Unrestricted"},{"$f":"IFERROR(VLOOKUP(C1330,Descriptions!$I$6:$K$92,3,FALSE),\"\")","v":""},null,null,null,null,null,null,null,null,null,null,null,null,null,null,"General Fund",null,{"$f":"IFERROR(VLOOKUP(C1330,Descriptions!I:M,5,FALSE),\"N\")","v":"N"},true,"NTRUE",0,{"$f":"IFERROR(VLOOKUP(D1330,'Bank and Fund Details'!$B$14:$L$35,11,FALSE),\"N\")","v":"Y"},"NY"]
[null,null,null,"General Fund",null,null,null,null,null,{"$f":"VLOOKUP(D1331,'Bank and Fund Details'!$B$15:$D$36,3,FALSE)","v":0},{"$f":"VLOOKUP(D1331,'Bank and Fund Details'!$B$15:$C$36,2,FALSE)","v":"Unrestricted"},{"$f":"IFERROR(VLOOKUP(C1331,Descriptions!$I$6:$K$92,3,FALSE),\"\")","v":""},null,null,null,null,null,null,null,null,null,null,null,null,null,null,"General Fund",null,{"$f":"IFERROR(VLOOKUP(C1331,Descriptions!I:M,5,FALSE),\"N\")","v":"N"},true,"NTRUE",0,{"$f":"IFERROR(VLOOKUP(D1331,'Bank and Fund Details'!$B$14:$L$35,11,FALSE),\"N\")","v":"Y"},"NY"]
[null,null,null,"General Fund",null,null,null,null,null,{"$f":"VLOOKUP(D1332,'Bank and Fund Details'!$B$15:$D$36,3,FALSE)","v":0},{"$f":"VLOOKUP(D1332,'Bank and Fund Details'!$B$15:$C$36,2,FALSE)","v":"Unrestricted"},{"$f":"IFERROR(VLOOKUP(C1332,Descriptions!$I$6:$K$92,3,FALSE),\"\")","v":""},null,null,null,null,null,null,null,null,null,null,null,null,null,null,"General Fund",null,{"$f":"IFERROR(VLOOKUP(C1332,Descriptions!I:M,5,FALSE),\"N\")","v":"N"},true,"NTRUE",0,{"$f":"IFERROR(VLOOKUP(D1332,'Bank and Fund Details'!$B$14:$L$35,11,FALSE),\"N\")","v":"Y"},"NY"]
[null,null,null,"General Fund",null,null,null,null,null,{"$f":"VLOOKUP(D1333,'Bank and Fund Details'!$B$15:$D$36,3,FALSE)","v":0},{"$f":"VLOOKUP(D1333,'Bank and Fund Details'!$B$15:$C$36,2,FALSE)","v":"Unrestricted"},{"$f":"IFERROR(VLOOKUP(C1333,Descriptions!$I$6:$K$92,3,FALSE),\"\")","v":""},null,null,null,null,null,null,null,null,null,null,null,null,null,null,"General Fund",null,{"$f":"IFERROR(VLOOKUP(C1333,Descriptions!I:M,5,FALSE),\"N\")","v":"N"},true,"NTRUE",0,{"$f":"IFERROR(VLOOKUP(D1333,'Bank and Fund Details'!$B$14:$L$35,11,FALSE),\"N\")","v":"Y"},"NY"]
[null,null,null,"General Fund",null,null,null,null,null,{"$f":"VLOOKUP(D1334,'Bank and Fund Details'!$B$15:$D$36,3,FALSE)","v":0},{"$f":"VLOOKUP(D1334,'Bank and Fund Details'!$B$15:$C$36,2,FALSE)","v":"Unrestricted"},{"$f":"IFERROR(VLOOKUP(C1334,Descriptions!$I$6:$K$92,3,FALSE),\"\")","v":""},null,null,null,null,null,null,null,null,null,null,null,null,null,null,"General Fund",null,{"$f":"IFERROR(VLOOKUP(C1334,Descriptions!I:M,5,FALSE),\"N\")","v":"N"},true,"NTRUE",0,{"$f":"IFERROR(VLOOKUP(D1334,'Bank and Fund Details'!$B$14:$L$35,11,FALSE),\"N\")","v":"Y"},"NY"]
[null,null,null,"General Fund",null,null,null,null,null,{"$f":"VLOOKUP(D1335,'Bank and Fund Details'!$B$15:$D$36,3,FALSE)","v":0},{"$f":"VLOOKUP(D1335,'Bank and Fund Details'!$B$15:$C$36,2,FALSE)","v":"Unrestricted"},{"$f":"IFERROR(VLOOKUP(C1335,Descriptions!$I$6:$K$92,3,FALSE),\"\")","v":""},null,null,null,null,null,null,null,null,null,null,null,null,null,null,"General Fund",null,{"$f":"IFERROR(VLOOKUP(C1335,Descriptions!I:M,5,FALSE),\"N\")","v":"N"},true,"NTRUE",0,{"$f":"IFERROR(VLOOKUP(D1335,'Bank and Fund Details'!$B$14:$L$35,11,FALSE),\"N\")","v":"Y"},"NY"]
[null,null,null,"General Fund",null,null,null,null,null,{"$f":"VLOOKUP(D1336,'Bank and Fund Details'!$B$15:$D$36,3,FALSE)","v":0},{"$f":"VLOOKUP(D1336,'Bank and Fund Details'!$B$15:$C$36,2,FALSE)","v":"Unrestricted"},{"$f":"IFERROR(VLOOKUP(C1336,Descriptions!$I$6:$K$92,3,FALSE),\"\")","v":""},null,null,null,null,null,null,null,null,null,null,null,null,null,null,"General Fund",null,{"$f":"IFERROR(VLOOKUP(C1336,Descriptions!I:M,5,FALSE),\"N\")","v":"N"},true,"NTRUE",0,{"$f":"IFERROR(VLOOKUP(D1336,'Bank and Fund Details'!$B$14:$L$35,11,FALSE),\"N\")","v":"Y"},"NY"]
[null,null,null,"General Fund",null,null,null,null,null,{"$f":"VLOOKUP(D1337,'Bank and Fund Details'!$B$15:$D$36,3,FALSE)","v":0},{"$f":"VLOOKUP(D1337,'Bank and Fund Details'!$B$15:$C$36,2,FALSE)","v":"Unrestricted"},{"$f":"IFERROR(VLOOKUP(C1337,Descriptions!$I$6:$K$92,3,FALSE),\"\")","v":""},null,null,null,null,null,null,null,null,null,null,null,null,null,null,"General Fund",null,{"$f":"IFERROR(VLOOKUP(C1337,Descriptions!I:M,5,FALSE),\"N\")","v":"N"},true,"NTRUE",0,{"$f":"IFERROR(VLOOKUP(D1337,'Bank and Fund Details'!$B$14:$L$35,11,FALSE),\"N\")","v":"Y"},"NY"]
[null,null,null,"General Fund",null,null,null,null,null,{"$f":"VLOOKUP(D1338,'Bank and Fund Details'!$B$15:$D$36,3,FALSE)","v":0},{"$f":"VLOOKUP(D1338,'Bank and Fund Details'!$B$15:$C$36,2,FALSE)","v":"Unrestricted"},{"$f":"IFERROR(VLOOKUP(C1338,Descriptions!$I$6:$K$92,3,FALSE),\"\")","v":""},null,null,null,null,null,null,null,null,null,null,null,null,null,null,"General Fund",null,{"$f":"IFERROR(VLOOKUP(C1338,Descriptions!I:M,5,FALSE),\"N\")","v":"N"},true,"NTRUE",0,{"$f":"IFERROR(VLOOKUP(D1338,'Bank and Fund Details'!$B$14:$L$35,11,FALSE),\"N\")","v":"Y"},"NY"]
[null,null,null,"General Fund",null,null,null,null,null,{"$f":"VLOOKUP(D1339,'Bank and Fund Details'!$B$15:$D$36,3,FALSE)","v":0},{"$f":"VLOOKUP(D1339,'Bank and Fund Details'!$B$15:$C$36,2,FALSE)","v":"Unrestricted"},{"$f":"IFERROR(VLOOKUP(C1339,Descriptions!$I$6:$K$92,3,FALSE),\"\")","v":""},null,null,null,null,null,null,null,null,null,null,null,null,null,null,"General Fund",null,{"$f":"IFERROR(VLOOKUP(C1339,Descriptions!I:M,5,FALSE),\"N\")","v":"N"},true,"NTRUE",0,{"$f":"IFERROR(VLOOKUP(D1339,'Bank and Fund Details'!$B$14:$L$35,11,FALSE),\"N\")","v":"Y"},"NY"]
[null,null,null,"General Fund",null,null,null,null,null,{"$f":"VLOOKUP(D1340,'Bank and Fund Details'!$B$15:$D$36,3,FALSE)","v":0},{"$f":"VLOOKUP(D1340,'Bank and Fund Details'!$B$15:$C$36,2,FALSE)","v":"Unrestricted"},{"$f":"IFERROR(VLOOKUP(C1340,Descriptions!$I$6:$K$92,3,FALSE),\"\")","v":""},null,null,null,null,null,null,null,null,null,null,null,null,null,null,"General Fund",null,{"$f":"IFERROR(VLOOKUP(C1340,Descriptions!I:M,5,FALSE),\"N\")","v":"N"},true,"NTRUE",0,{"$f":"IFERROR(VLOOKUP(D1340,'Bank and Fund Details'!$B$14:$L$35,11,FALSE),\"N\")","v":"Y"},"NY"]
[null,null,null,"General Fund",null,null,null,null,null,{"$f":"VLOOKUP(D1341,'Bank and Fund Details'!$B$15:$D$36,3,FALSE)","v":0},{"$f":"VLOOKUP(D1341,'Bank and Fund Details'!$B$15:$C$36,2,FALSE)","v":"Unrestricted"},{"$f":"IFERROR(VLOOKUP(C1341,Descriptions!$I$6:$K$92,3,FALSE),\"\")","v":""},null,null,null,null,null,null,null,null,null,null,null,null,null,null,"General Fund",null,{"$f":"IFERROR(VLOOKUP(C1341,Descriptions!I:M,5,FALSE),\"N\")","v":"N"},true,"NTRUE",0,{"$f":"IFERROR(VLOOKUP(D1341,'Bank and Fund Details'!$B$14:$L$35,11,FALSE),\"N\")","v":"Y"},"NY"]
[null,null,null,"General Fund",null,null,null,null,null,{"$f":"VLOOKUP(D1342,'Bank and Fund Details'!$B$15:$D$36,3,FALSE)","v":0},{"$f":"VLOOKUP(D1342,'Bank and Fund Details'!$B$15:$C$36,2,FALSE)","v":"Unrestricted"},{"$f":"IFERROR(VLOOKUP(C1342,Descriptions!$I$6:$K$92,3,FALSE),\"\")","v":""},null,null,null,null,null,null,null,null,null,null,null,null,null,null,"General Fund",null,{"$f":"IFERROR(VLOOKUP(C1342,Descriptions!I:M,5,FALSE),\"N\")","v":"N"},true,"NTRUE",0,{"$f":"IFERROR(VLOOKUP(D1342,'Bank and Fund Details'!$B$14:$L$35,11,FALSE),\"N\")","v":"Y"},"NY"]
[null,null,null,"General Fund",null,null,null,null,null,{"$f":"VLOOKUP(D1343,'Bank and Fund Details'!$B$15:$D$36,3,FALSE)","v":0},{"$f":"VLOOKUP(D1343,'Bank and Fund Details'!$B$15:$C$36,2,FALSE)","v":"Unrestricted"},{"$f":"IFERROR(VLOOKUP(C1343,Descriptions!$I$6:$K$92,3,FALSE),\"\")","v":""},null,null,null,null,null,null,null,null,null,null,null,null,null,null,"General Fund",null,{"$f":"IFERROR(VLOOKUP(C1343,Descriptions!I:M,5,FALSE),\"N\")","v":"N"},true,"NTRUE",0,{"$f":"IFERROR(VLOOKUP(D1343,'Bank and Fund Details'!$B$14:$L$35,11,FALSE),\"N\")","v":"Y"},"NY"]
[null,null,null,"General Fund",null,null,null,null,null,{"$f":"VLOOKUP(D1344,'Bank and Fund Details'!$B$15:$D$36,3,FALSE)","v":0},{"$f":"VLOOKUP(D1344,'Bank and Fund Details'!$B$15:$C$36,2,FALSE)","v":"Unrestricted"},{"$f":"IFERROR(VLOOKUP(C1344,Descriptions!$I$6:$K$92,3,FALSE),\"\")","v":""},null,null,null,null,null,null,null,null,null,null,null,null,null,null,"General Fund",null,{"$f":"IFERROR(VLOOKUP(C1344,Descriptions!I:M,5,FALSE),\"N\")","v":"N"},true,"NTRUE",0,{"$f":"IFERROR(VLOOKUP(D1344,'Bank and Fund Details'!$B$14:$L$35,11,FALSE),\"N\")","v":"Y"},"NY"]
[null,null,null,"General Fund",null,null,null,null,null,{"$f":"VLOOKUP(D1345,'Bank and Fund Details'!$B$15:$D$36,3,FALSE)","v":0},{"$f":"VLOOKUP(D1345,'Bank and Fund Details'!$B$15:$C$36,2,FALSE)","v":"Unrestricted"},{"$f":"IFERROR(VLOOKUP(C1345,Descriptions!$I$6:$K$92,3,FALSE),\"\")","v":""},null,null,null,null,null,null,null,null,null,null,null,null,null,null,"General Fund",null,{"$f":"IFERROR(VLOOKUP(C1345,Descriptions!I:M,5,FALSE),\"N\")","v":"N"},true,"NTRUE",0,{"$f":"IFERROR(VLOOKUP(D1345,'Bank and Fund Details'!$B$14:$L$35,11,FALSE),\"N\")","v":"Y"},"NY"]
[null,null,null,"General Fund",null,null,null,null,null,{"$f":"VLOOKUP(D1346,'Bank and Fund Details'!$B$15:$D$36,3,FALSE)","v":0},{"$f":"VLOOKUP(D1346,'Bank and Fund Details'!$B$15:$C$36,2,FALSE)","v":"Unrestricted"},{"$f":"IFERROR(VLOOKUP(C1346,Descriptions!$I$6:$K$92,3,FALSE),\"\")","v":""},null,null,null,null,null,null,null,null,null,null,null,null,null,null,"General Fund",null,{"$f":"IFERROR(VLOOKUP(C1346,Descriptions!I:M,5,FALSE),\"N\")","v":"N"},true,"NTRUE",0,{"$f":"IFERROR(VLOOKUP(D1346,'Bank and Fund Details'!$B$14:$L$35,11,FALSE),\"N\")","v":"Y"},"NY"]
[null,null,null,"General Fund",null,null,null,null,null,{"$f":"VLOOKUP(D1347,'Bank and Fund Details'!$B$15:$D$36,3,FALSE)","v":0},{"$f":"VLOOKUP(D1347,'Bank and Fund Details'!$B$15:$C$36,2,FALSE)","v":"Unrestricted"},{"$f":"IFERROR(VLOOKUP(C1347,Descriptions!$I$6:$K$92,3,FALSE),\"\")","v":""},null,null,null,null,null,null,null,null,null,null,null,null,null,null,"General Fund",null,{"$f":"IFERROR(VLOOKUP(C1347,Descriptions!I:M,5,FALSE),\"N\")","v":"N"},true,"NTRUE",0,{"$f":"IFERROR(VLOOKUP(D1347,'Bank and Fund Details'!$B$14:$L$35,11,FALSE),\"N\")","v":"Y"},"NY"]
[null,null,null,"General Fund",null,null,null,null,null,{"$f":"VLOOKUP(D1348,'Bank and Fund Details'!$B$15:$D$36,3,FALSE)","v":0},{"$f":"VLOOKUP(D1348,'Bank and Fund Details'!$B$15:$C$36,2,FALSE)","v":"Unrestricted"},{"$f":"IFERROR(VLOOKUP(C1348,Descriptions!$I$6:$K$92,3,FALSE),\"\")","v":""},null,null,null,null,null,null,null,null,null,null,null,null,null,null,"General Fund",null,{"$f":"IFERROR(VLOOKUP(C1348,Descriptions!I:M,5,FALSE),\"N\")","v":"N"},true,"NTRUE",0,{"$f":"IFERROR(VLOOKUP(D1348,'Bank and Fund Details'!$B$14:$L$35,11,FALSE),\"N\")","v":"Y"},"NY"]
[null,null,null,"General Fund",null,null,null,null,null,{"$f":"VLOOKUP(D1349,'Bank and Fund Details'!$B$15:$D$36,3,FALSE)","v":0},{"$f":"VLOOKUP(D1349,'Bank and Fund Details'!$B$15:$C$36,2,FALSE)","v":"Unrestricted"},{"$f":"IFERROR(VLOOKUP(C1349,Descriptions!$I$6:$K$92,3,FALSE),\"\")","v":""},null,null,null,null,null,null,null,null,null,null,null,null,null,null,"General Fund",null,{"$f":"IFERROR(VLOOKUP(C1349,Descriptions!I:M,5,FALSE),\"N\")","v":"N"},true,"NTRUE",0,{"$f":"IFERROR(VLOOKUP(D1349,'Bank and Fund Details'!$B$14:$L$35,11,FALSE),\"N\")","v":"Y"},"NY"]
[null,null,null,"General Fund",null,null,null,null,null,{"$f":"VLOOKUP(D1350,'Bank and Fund Details'!$B$15:$D$36,3,FALSE)","v":0},{"$f":"VLOOKUP(D1350,'Bank and Fund Details'!$B$15:$C$36,2,FALSE)","v":"Unrestricted"},{"$f":"IFERROR(VLOOKUP(C1350,Descriptions!$I$6:$K$92,3,FALSE),\"\")","v":""},null,null,null,null,null,null,null,null,null,null,null,null,null,null,{"$f":"CONCATENATE(C1350,D1350)","v":"General Fund"},null,{"$f":"IFERROR(VLOOKUP(C1350,Descriptions!I:M,5,FALSE),\"N\")","v":"N"},{"$f":"ISBLANK(C1350)","v":true},{"$f":"CONCATENATE(AC1350,AD1350)","v":"NTRUE"},{"$f":"IF(AE1350=\"NFALSE\",1,0)","v":0},{"$f":"IFERROR(VLOOKUP(D1350,'Bank and Fund Details'!$B$14:$L$35,11,FALSE),\"N\")","v":"Y"},{"$f":"CONCATENATE(AC1350,AG1350)","v":"NY"}]
[null,null,null,"General Fund",null,null,null,null,null,{"$f":"VLOOKUP(D1351,'Bank and Fund Details'!$B$15:$D$36,3,FALSE)","v":0},{"$f":"VLOOKUP(D1351,'Bank and Fund Details'!$B$15:$C$36,2,FALSE)","v":"Unrestricted"},{"$f":"IFERROR(VLOOKUP(C1351,Descriptions!$I$6:$K$92,3,FALSE),\"\")","v":""},null,null,null,null,null,null,null,null,null,null,null,null,null,null,"General Fund",null,{"$f":"IFERROR(VLOOKUP(C1351,Descriptions!I:M,5,FALSE),\"N\")","v":"N"},true,"NTRUE",0,{"$f":"IFERROR(VLOOKUP(D1351,'Bank and Fund Details'!$B$14:$L$35,11,FALSE),\"N\")","v":"Y"},"NY"]
[null,null,null,"General Fund",null,null,null,null,null,{"$f":"VLOOKUP(D1352,'Bank and Fund Details'!$B$15:$D$36,3,FALSE)","v":0},{"$f":"VLOOKUP(D1352,'Bank and Fund Details'!$B$15:$C$36,2,FALSE)","v":"Unrestricted"},{"$f":"IFERROR(VLOOKUP(C1352,Descriptions!$I$6:$K$92,3,FALSE),\"\")","v":""},null,null,null,null,null,null,null,null,null,null,null,null,null,null,"General Fund",null,{"$f":"IFERROR(VLOOKUP(C1352,Descriptions!I:M,5,FALSE),\"N\")","v":"N"},true,"NTRUE",0,{"$f":"IFERROR(VLOOKUP(D1352,'Bank and Fund Details'!$B$14:$L$35,11,FALSE),\"N\")","v":"Y"},"NY"]
[null,null,null,"General Fund",null,null,null,null,null,{"$f":"VLOOKUP(D1353,'Bank and Fund Details'!$B$15:$D$36,3,FALSE)","v":0},{"$f":"VLOOKUP(D1353,'Bank and Fund Details'!$B$15:$C$36,2,FALSE)","v":"Unrestricted"},{"$f":"IFERROR(VLOOKUP(C1353,Descriptions!$I$6:$K$92,3,FALSE),\"\")","v":""},null,null,null,null,null,null,null,null,null,null,null,null,null,null,"General Fund",null,{"$f":"IFERROR(VLOOKUP(C1353,Descriptions!I:M,5,FALSE),\"N\")","v":"N"},true,"NTRUE",0,{"$f":"IFERROR(VLOOKUP(D1353,'Bank and Fund Details'!$B$14:$L$35,11,FALSE),\"N\")","v":"Y"},"NY"]
[null,null,null,"General Fund",null,null,null,null,null,{"$f":"VLOOKUP(D1354,'Bank and Fund Details'!$B$15:$D$36,3,FALSE)","v":0},{"$f":"VLOOKUP(D1354,'Bank and Fund Details'!$B$15:$C$36,2,FALSE)","v":"Unrestricted"},{"$f":"IFERROR(VLOOKUP(C1354,Descriptions!$I$6:$K$92,3,FALSE),\"\")","v":""},null,null,null,null,null,null,null,null,null,null,null,null,null,null,"General Fund",null,{"$f":"IFERROR(VLOOKUP(C1354,Descriptions!I:M,5,FALSE),\"N\")","v":"N"},true,"NTRUE",0,{"$f":"IFERROR(VLOOKUP(D1354,'Bank and Fund Details'!$B$14:$L$35,11,FALSE),\"N\")","v":"Y"},"NY"]
[null,null,null,"General Fund",null,null,null,null,null,{"$f":"VLOOKUP(D1355,'Bank and Fund Details'!$B$15:$D$36,3,FALSE)","v":0},{"$f":"VLOOKUP(D1355,'Bank and Fund Details'!$B$15:$C$36,2,FALSE)","v":"Unrestricted"},{"$f":"IFERROR(VLOOKUP(C1355,Descriptions!$I$6:$K$92,3,FALSE),\"\")","v":""},null,null,null,null,null,null,null,null,null,null,null,null,null,null,"General Fund",null,{"$f":"IFERROR(VLOOKUP(C1355,Descriptions!I:M,5,FALSE),\"N\")","v":"N"},true,"NTRUE",0,{"$f":"IFERROR(VLOOKUP(D1355,'Bank and Fund Details'!$B$14:$L$35,11,FALSE),\"N\")","v":"Y"},"NY"]
[null,"Total Parish Expenditure",null,null,{"$f":"SUM(E5:E1355)","v":0}]
[null,"Subtotal",null,null,{"$f":"SUBTOTAL(9,E5:E1355)","v":0}]

{"sheet":"Transfers","index":12,"n_rows":110,"n_cols":46,"rows_kept":110,"cut":false,"hidden":false,"merged":[[0,33,1,33],[0,34,1,34],[0,35,1,35],[0,36,1,36],[4,0,4,1],[3,2,3,7],[2,2,2,7],[2,31,2,34],[2,35,2,38]]}
[null,null,null,null,null,null,null,null,null,null,null,null,null,null,null,null,null,null,null,null,null,null,null,null,null,null,null,null,null,null,null,null,null,"Unrestricted Fund","Unrestricted Designated Fund","Restricted Fund","Endowment Fund"]
[]
[null,null,"Transfers Between Accounts",null,null,null,null,null,null,null,null,null,null,null,null,null,null,null,null,null,null,null,null,null,null,null,null,null,null,null,null,"In",null,null,null,"Out"]
[null,null,"This function should not be used where monies are paid into the main account and immediately transferred across, where this occurs, please enter the destination account in receipts so that it is recognised correctly."]
["Bank Rec Check",null,null,null,null,null,null,null,null,null,null,null,null,null,null,null,null,null,null,null,null,null,null,null,null,null,null,null,null,null,null,null,null,null,null,"In","Out","Unrestricted","Designated","Restricted","Endowment","Unrestricted","Designated","Restricted","Endowment"]
["From","To","Date","From","To","Amount","Reference","Additional Details",null,null,null,null,null,null,null,null,null,null,null,null,null,null,null,null,null,null,null,null,null,null,null,null,null,null,{"$f":"'Bank and Fund Details'!B15","v":"General Fund"},{"$f":"SUMPRODUCT(($E$7:$E$107=AI6)*$F$7:$F$107)","v":0},{"$f":"SUMPRODUCT(($D$7:$D$107=AI6)*$F$7:$F$107)","v":0},{"$f":"IF(AT6=$AL$5,AJ6,0)","v":0},{"$f":"IF(AT6=$AM$5,AJ6,0)","v":0},{"$f":"IF(AT6=$AN$5,AJ6,0)","v":0},{"$f":"IF(AT6=$AO$5,AJ6,0)","v":0},{"$f":"IF(AT6=$AP$5,AK6,0)","v":0},{"$f":"IF(AT6=$AQ$5,AK6,0)","v":0},{"$f":"IF(AT6=$AR$5,AK6,0)","v":0},{"$f":"IF(AT6=$AS$5,AK6,0)","v":0},{"$f":"VLOOKUP(AI6,'Bank and Fund Details'!$B$15:$C$36,2,FALSE)","v":"Unrestricted"}]
[null,null,null,null,null,null,null,null,null,{"$f":"IFERROR(VLOOKUP(D7,#REF!,3,FALSE),\"\")","v":""},{"$f":"IFERROR(VLOOKUP(E7,#REF!,3,FALSE),\"\")","v":""},{"$f":"IFERROR(VLOOKUP(D7,'Bank and Fund Details'!$B$15:$D$36,3,FALSE),\"\")","v":""},{"$f":"IFERROR(VLOOKUP(E7,'Bank and Fund Details'!$B$15:$D$36,3,FALSE),\"\")","v":""},null,null,null,null,null,null,null,null,null,null,null,null,null,null,null,{"$f":"IF(D7=\"\",\"\",VLOOKUP(D7,$AI$6:$AT$22,12,FALSE))","v":""},{"$f":"IF(E7=\"\",\"\",VLOOKUP(E7,$AI$6:$AT$22,12,FALSE))","v":""},{"$f":"CONCATENATE(AC7,AD7)","v":""},{"$f":"IF(AE7=\"UNRE\",1,0)","v":0},null,null,{"$f":"'Bank and Fund Details'!B16","v":"Petty Cash"},0,0,0,{"$f":"IF(AT7=$AM$5,AJ7,0)","v":0},{"$f":"IF(AT7=$AN$5,AJ7,0)","v":0},{"$f":"IF(AT7=$AO$5,AJ7,0)","v":0},{"$f":"IF(AT7=$AP$5,AK7,0)","v":0},0,0,0,{"$f":"VLOOKUP(AI7,'Bank and Fund Details'!$B$15:$C$36,2,FALSE)","v":"Unrestricted"}]
[null,null,null,null,null,null,null,null,null,{"$f":"IFERROR(VLOOKUP(D8,#REF!,3,FALSE),\"\")","v":""},{"$f":"IFERROR(VLOOKUP(E8,#REF!,3,FALSE),\"\")","v":""},{"$f":"IFERROR(VLOOKUP(D8,'Bank and Fund Details'!$B$15:$D$36,3,FALSE),\"\")","v":""},{"$f":"IFERROR(VLOOKUP(E8,'Bank and Fund Details'!$B$15:$D$36,3,FALSE),\"\")","v":""},null,null,null,null,null,null,null,null,null,null,null,null,null,null,null,"","",{"$f":"CONCATENATE(AC8,AD8)","v":""},{"$f":"IF(AE8=\"UNRE\",1,0)","v":0},null,null,{"$f":"'Bank and Fund Details'!B17","v":"Fund A"},0,0,0,0,0,0,0,0,0,0,{"$f":"VLOOKUP(AI8,'Bank and Fund Details'!$B$15:$C$36,2,FALSE)","v":"Unrestricted"}]
[null,null,null,null,null,null,null,null,null,{"$f":"IFERROR(VLOOKUP(D9,#REF!,3,FALSE),\"\")","v":""},{"$f":"IFERROR(VLOOKUP(E9,#REF!,3,FALSE),\"\")","v":""},{"$f":"IFERROR(VLOOKUP(D9,'Bank and Fund Details'!$B$15:$D$36,3,FALSE),\"\")","v":""},{"$f":"IFERROR(VLOOKUP(E9,'Bank and Fund Details'!$B$15:$D$36,3,FALSE),\"\")","v":""},null,null,null,null,null,null,null,null,null,null,null,null,null,null,null,"","","",0,null,null,{"$f":"'Bank and Fund Details'!B18","v":"Fund B"},0,0,0,0,0,0,0,0,0,0,{"$f":"VLOOKUP(AI9,'Bank and Fund Details'!$B$15:$C$36,2,FALSE)","v":"Unrestricted"}]
[null,null,null,null,null,null,null,null,null,{"$f":"IFERROR(VLOOKUP(D10,#REF!,3,FALSE),\"\")","v":""},{"$f":"IFERROR(VLOOKUP(E10,#REF!,3,FALSE),\"\")","v":""},{"$f":"IFERROR(VLOOKUP(D10,'Bank and Fund Details'!$B$15:$D$36,3,FALSE),\"\")","v":""},{"$f":"IFERROR(VLOOKUP(E10,'Bank and Fund Details'!$B$15:$D$36,3,FALSE),\"\")","v":""},null,null,null,null,null,null,null,null,null,null,null,null,null,null,null,"","","",0,null,null,{"$f":"'Bank and Fund Details'!B19","v":"Fund C"},0,0,0,0,0,0,0,0,0,0,{"$f":"VLOOKUP(AI10,'Bank and Fund Details'!$B$15:$C$36,2,FALSE)","v":"Unrestricted"}]
[null,null,null,null,null,null,null,null,null,{"$f":"IFERROR(VLOOKUP(D11,#REF!,3,FALSE),\"\")","v":""},{"$f":"IFERROR(VLOOKUP(E11,#REF!,3,FALSE),\"\")","v":""},{"$f":"IFERROR(VLOOKUP(D11,'Bank and Fund Details'!$B$15:$D$36,3,FALSE),\"\")","v":""},{"$f":"IFERROR(VLOOKUP(E11,'Bank and Fund Details'!$B$15:$D$36,3,FALSE),\"\")","v":""},null,null,null,null,null,null,null,null,null,null,null,null,null,null,null,"","","",0,null,null,{"$f":"'Bank and Fund Details'!B20","v":"Fund D"},0,0,0,0,0,0,0,0,0,0,{"$f":"VLOOKUP(AI11,'Bank and Fund Details'!$B$15:$C$36,2,FALSE)","v":"Unrestricted"}]
[null,null,null,null,null,null,null,null,null,{"$f":"IFERROR(VLOOKUP(D12,#REF!,3,FALSE),\"\")","v":""},{"$f":"IFERROR(VLOOKUP(E12,#REF!,3,FALSE),\"\")","v":""},{"$f":"IFERROR(VLOOKUP(D12,'Bank and Fund Details'!$B$15:$D$36,3,FALSE),\"\")","v":""},{"$f":"IFERROR(VLOOKUP(E12,'Bank and Fund Details'!$B$15:$D$36,3,FALSE),\"\")","v":""},null,null,null,null,null,null,null,null,null,null,null,null,null,null,null,"","","",0,null,null,{"$f":"'Bank and Fund Details'!B21","v":"Fund E"},0,0,0,0,0,0,0,0,0,0,{"$f":"VLOOKUP(AI12,'Bank and Fund Details'!$B$15:$C$36,2,FALSE)","v":"Unrestricted"}]
[null,null,null,null,null,null,null,null,null,{"$f":"IFERROR(VLOOKUP(D13,#REF!,3,FALSE),\"\")","v":""},{"$f":"IFERROR(VLOOKUP(E13,#REF!,3,FALSE),\"\")","v":""},{"$f":"IFERROR(VLOOKUP(D13,'Bank and Fund Details'!$B$15:$D$36,3,FALSE),\"\")","v":""},{"$f":"IFERROR(VLOOKUP(E13,'Bank and Fund Details'!$B$15:$D$36,3,FALSE),\"\")","v":""},null,null,null,null,null,null,null,null,null,null,null,null,null,null,null,"","","",0,null,null,{"$f":"'Bank and Fund Details'!B22","v":"Fund F"},0,0,0,0,0,0,0,0,0,0,{"$f":"VLOOKUP(AI13,'Bank and Fund Details'!$B$15:$C$36,2,FALSE)","v":"Unrestricted"}]
[null,null,null,null,null,null,null,null,null,{"$f":"IFERROR(VLOOKUP(D14,#REF!,3,FALSE),\"\")","v":""},{"$f":"IFERROR(VLOOKUP(E14,#REF!,3,FALSE),\"\")","v":""},{"$f":"IFERROR(VLOOKUP(D14,'Bank and Fund Details'!$B$15:$D$36,3,FALSE),\"\")","v":""},{"$f":"IFERROR(VLOOKUP(E14,'Bank and Fund Details'!$B$15:$D$36,3,FALSE),\"\")","v":""},null,null,null,null,null,null,null,null,null,null,null,null,null,null,null,"","","",0,null,null,{"$f":"'Bank and Fund Details'!B23","v":"Fund G"},{"$f":"SUMPRODUCT(($E$7:$E$107=AI14)*$F$7:$F$107)","v":0},0,0,0,0,0,0,0,0,0,{"$f":"VLOOKUP(AI14,'Bank and Fund Details'!$B$15:$C$36,2,FALSE)","v":"Unrestricted"}]
[null,null,null,null,null,null,null,null,null,{"$f":"IFERROR(VLOOKUP(D15,#REF!,3,FALSE),\"\")","v":""},{"$f":"IFERROR(VLOOKUP(E15,#REF!,3,FALSE),\"\")","v":""},{"$f":"IFERROR(VLOOKUP(D15,'Bank and Fund Details'!$B$15:$D$36,3,FALSE),\"\")","v":""},{"$f":"IFERROR(VLOOKUP(E15,'Bank and Fund Details'!$B$15:$D$36,3,FALSE),\"\")","v":""},null,null,null,null,null,null,null,null,null,null,null,null,null,null,null,"","","",0,null,null,{"$f":"'Bank and Fund Details'!B24","v":"Fund H"},0,0,0,0,0,0,0,0,0,0,{"$f":"VLOOKUP(AI15,'Bank and Fund Details'!$B$15:$C$36,2,FALSE)","v":"Unrestricted"}]
[null,null,null,null,null,null,null,null,null,{"$f":"IFERROR(VLOOKUP(D16,#REF!,3,FALSE),\"\")","v":""},{"$f":"IFERROR(VLOOKUP(E16,#REF!,3,FALSE),\"\")","v":""},{"$f":"IFERROR(VLOOKUP(D16,'Bank and Fund Details'!$B$15:$D$36,3,FALSE),\"\")","v":""},{"$f":"IFERROR(VLOOKUP(E16,'Bank and Fund Details'!$B$15:$D$36,3,FALSE),\"\")","v":""},null,null,null,null,null,null,null,null,null,null,null,null,null,null,null,"","","",0,null,null,{"$f":"'Bank and Fund Details'!B25","v":"Fund I"},0,0,0,0,0,0,0,0,0,0,{"$f":"VLOOKUP(AI16,'Bank and Fund Details'!$B$15:$C$36,2,FALSE)","v":"Unrestricted"}]
[null,null,null,null,null,null,null,null,null,{"$f":"IFERROR(VLOOKUP(D17,#REF!,3,FALSE),\"\")","v":""},{"$f":"IFERROR(VLOOKUP(E17,#REF!,3,FALSE),\"\")","v":""},{"$f":"IFERROR(VLOOKUP(D17,'Bank and Fund Details'!$B$15:$D$36,3,FALSE),\"\")","v":""},{"$f":"IFERROR(VLOOKUP(E17,'Bank and Fund Details'!$B$15:$D$36,3,FALSE),\"\")","v":""},null,null,null,null,null,null,null,null,null,null,null,null,null,null,null,"","","",0,null,null,{"$f":"'Bank and Fund Details'!B26","v":"Fund J"},{"$f":"SUMPRODUCT(($E$7:$E$107=AI17)*$F$7:$F$107)","v":0},{"$f":"SUMPRODUCT(($D$7:$D$107=AI17)*$F$7:$F$107)","v":0},{"$f":"IF(AT17=$AL$5,AJ17,0)","v":0},{"$f":"IF(AT17=$AM$5,AJ17,0)","v":0},{"$f":"IF(AT17=$AN$5,AJ17,0)","v":0},{"$f":"IF(AT17=$AO$5,AJ17,0)","v":0},{"$f":"IF(AT17=$AP$5,AK17,0)","v":0},{"$f":"IF(AT17=$AQ$5,AK17,0)","v":0},{"$f":"IF(AT17=$AR$5,AK17,0)","v":0},{"$f":"IF(AT17=$AS$5,AK17,0)","v":0},{"$f":"VLOOKUP(AI17,'Bank and Fund Details'!$B$15:$C$36,2,FALSE)","v":"Unrestricted"}]
[null,null,null,null,null,null,null,null,null,{"$f":"IFERROR(VLOOKUP(D18,#REF!,3,FALSE),\"\")","v":""},{"$f":"IFERROR(VLOOKUP(E18,#REF!,3,FALSE),\"\")","v":""},{"$f":"IFERROR(VLOOKUP(D18,'Bank and Fund Details'!$B$15:$D$36,3,FALSE),\"\")","v":""},{"$f":"IFERROR(VLOOKUP(E18,'Bank and Fund Details'!$B$15:$D$36,3,FALSE),\"\")","v":""},null,null,null,null,null,null,null,null,null,null,null,null,null,null,null,"","","",0,null,null,{"$f":"'Bank and Fund Details'!B27","v":"Fund K"},0,0,0,0,0,0,0,0,0,0,{"$f":"VLOOKUP(AI18,'Bank and Fund Details'!$B$15:$C$36,2,FALSE)","v":"Unrestricted"}]
[null,null,null,null,null,null,null,null,null,{"$f":"IFERROR(VLOOKUP(D19,#REF!,3,FALSE),\"\")","v":""},{"$f":"IFERROR(VLOOKUP(E19,#REF!,3,FALSE),\"\")","v":""},{"$f":"IFERROR(VLOOKUP(D19,'Bank and Fund Details'!$B$15:$D$36,3,FALSE),\"\")","v":""},{"$f":"IFERROR(VLOOKUP(E19,'Bank and Fund Details'!$B$15:$D$36,3,FALSE),\"\")","v":""},null,null,null,null,null,null,null,null,null,null,null,null,null,null,null,"","","",0,null,null,{"$f":"'Bank and Fund Details'!B28","v":"Fund L"},0,0,0,0,0,0,0,0,0,0,{"$f":"VLOOKUP(AI19,'Bank and Fund Details'!$B$15:$C$36,2,FALSE)","v":"Unrestricted"}]
[null,null,null,null,null,null,null,null,null,{"$f":"IFERROR(VLOOKUP(D20,#REF!,3,FALSE),\"\")","v":""},{"$f":"IFERROR(VLOOKUP(E20,#REF!,3,FALSE),\"\")","v":""},{"$f":"IFERROR(VLOOKUP(D20,'Bank and Fund Details'!$B$15:$D$36,3,FALSE),\"\")","v":""},{"$f":"IFERROR(VLOOKUP(E20,'Bank and Fund Details'!$B$15:$D$36,3,FALSE),\"\")","v":""},null,null,null,null,null,null,null,null,null,null,null,null,null,null,null,"","","",0,null,null,{"$f":"'Bank and Fund Details'!B29","v":"Fund M"},0,0,0,0,0,0,0,0,0,0,{"$f":"VLOOKUP(AI20,'Bank and Fund Details'!$B$15:$C$36,2,FALSE)","v":"Unrestricted"}]
[null,null,null,null,null,null,null,null,null,{"$f":"IFERROR(VLOOKUP(D21,#REF!,3,FALSE),\"\")","v":""},{"$f":"IFERROR(VLOOKUP(E21,#REF!,3,FALSE),\"\")","v":""},{"$f":"IFERROR(VLOOKUP(D21,'Bank and Fund Details'!$B$15:$D$36,3,FALSE),\"\")","v":""},{"$f":"IFERROR(VLOOKUP(E21,'Bank and Fund Details'!$B$15:$D$36,3,FALSE),\"\")","v":""},null,null,null,null,null,null,null,null,null,null,null,null,null,null,null,"","","",0,null,null,{"$f":"'Bank and Fund Details'!B30","v":"Fund N"},0,0,0,0,0,0,0,0,0,0,{"$f":"VLOOKUP(AI21,'Bank and Fund Details'!$B$15:$C$36,2,FALSE)","v":"Unrestricted"}]
[null,null,null,null,null,null,null,null,null,{"$f":"IFERROR(VLOOKUP(D22,#REF!,3,FALSE),\"\")","v":""},{"$f":"IFERROR(VLOOKUP(E22,#REF!,3,FALSE),\"\")","v":""},{"$f":"IFERROR(VLOOKUP(D22,'Bank and Fund Details'!$B$15:$D$36,3,FALSE),\"\")","v":""},{"$f":"IFERROR(VLOOKUP(E22,'Bank and Fund Details'!$B$15:$D$36,3,FALSE),\"\")","v":""},null,null,null,null,null,null,null,null,null,null,null,null,null,null,null,"","","",0,null,null,{"$f":"'Bank and Fund Details'!B31","v":"Fund O"},0,0,0,0,0,0,0,0,0,0,{"$f":"VLOOKUP(AI22,'Bank and Fund Details'!$B$15:$C$36,2,FALSE)","v":"Unrestricted"}]
[null,null,null,null,null,null,null,null,null,{"$f":"IFERROR(VLOOKUP(D23,#REF!,3,FALSE),\"\")","v":""},{"$f":"IFERROR(VLOOKUP(E23,#REF!,3,FALSE),\"\")","v":""},{"$f":"IFERROR(VLOOKUP(D23,'Bank and Fund Details'!$B$15:$D$36,3,FALSE),\"\")","v":""},{"$f":"IFERROR(VLOOKUP(E23,'Bank and Fund Details'!$B$15:$D$36,3,FALSE),\"\")","v":""},null,null,null,null,null,null,null,null,null,null,null,null,null,null,null,"","","",0,null,null,{"$f":"'Bank and Fund Details'!B32","v":"Fund P"},0,0,0,0,0,0,0,0,0,0,{"$f":"VLOOKUP(AI23,'Bank and Fund Details'!$B$15:$C$36,2,FALSE)","v":"Unrestricted"}]
[null,null,null,null,null,null,null,null,null,{"$f":"IFERROR(VLOOKUP(D24,#REF!,3,FALSE),\"\")","v":""},{"$f":"IFERROR(VLOOKUP(E24,#REF!,3,FALSE),\"\")","v":""},{"$f":"IFERROR(VLOOKUP(D24,'Bank and Fund Details'!$B$15:$D$36,3,FALSE),\"\")","v":""},{"$f":"IFERROR(VLOOKUP(E24,'Bank and Fund Details'!$B$15:$D$36,3,FALSE),\"\")","v":""},null,null,null,null,null,null,null,null,null,null,null,null,null,null,null,"","","",0,null,null,{"$f":"'Bank and Fund Details'!B33","v":"Fund Q"},0,0,0,0,0,0,0,0,0,0,{"$f":"VLOOKUP(AI24,'Bank and Fund Details'!$B$15:$C$36,2,FALSE)","v":"Unrestricted"}]
[null,null,null,null,null,null,null,null,null,{"$f":"IFERROR(VLOOKUP(D25,#REF!,3,FALSE),\"\")","v":""},{"$f":"IFERROR(VLOOKUP(E25,#REF!,3,FALSE),\"\")","v":""},{"$f":"IFERROR(VLOOKUP(D25,'Bank and Fund Details'!$B$15:$D$36,3,FALSE),\"\")","v":""},{"$f":"IFERROR(VLOOKUP(E25,'Bank and Fund Details'!$B$15:$D$36,3,FALSE),\"\")","v":""},null,null,null,null,null,null,null,null,null,null,null,null,null,null,null,"","","",0,null,null,{"$f":"'Bank and Fund Details'!B34","v":"Fund R"},0,0,0,0,0,0,0,0,0,0,{"$f":"VLOOKUP(AI25,'Bank and Fund Details'!$B$15:$C$36,2,FALSE)","v":"Unrestricted"}]
[null,null,null,null,null,null,null,null,null,{"$f":"IFERROR(VLOOKUP(D26,#REF!,3,FALSE),\"\")","v":""},{"$f":"IFERROR(VLOOKUP(E26,#REF!,3,FALSE),\"\")","v":""},{"$f":"IFERROR(VLOOKUP(D26,'Bank and Fund Details'!$B$15:$D$36,3,FALSE),\"\")","v":""},{"$f":"IFERROR(VLOOKUP(E26,'Bank and Fund Details'!$B$15:$D$36,3,FALSE),\"\")","v":""},null,null,null,null,null,null,null,null,null,null,null,null,null,null,null,"","","",0,null,null,{"$f":"'Bank and Fund Details'!B35","v":"Fund S"},0,0,0,0,0,0,0,0,0,0,{"$f":"VLOOKUP(AI26,'Bank and Fund Details'!$B$15:$C$36,2,FALSE)","v":"Unrestricted"}]
[null,null,null,null,null,null,null,null,null,{"$f":"IFERROR(VLOOKUP(D27,#REF!,3,FALSE),\"\")","v":""},{"$f":"IFERROR(VLOOKUP(E27,#REF!,3,FALSE),\"\")","v":""},{"$f":"IFERROR(VLOOKUP(D27,'Bank and Fund Details'!$B$15:$D$36,3,FALSE),\"\")","v":""},{"$f":"IFERROR(VLOOKUP(E27,'Bank and Fund Details'!$B$15:$D$36,3,FALSE),\"\")","v":""},null,null,null,null,null,null,null,null,null,null,null,null,null,null,null,"","","",0,null,null,{"$f":"'Bank and Fund Details'!B36","v":"Fund T"},0,{"$f":"SUMPRODUCT(($D$7:$D$107=AI27)*$F$7:$F$107)","v":0},{"$f":"IF(AT17=$AL$5,AJ27,0)","v":0},{"$f":"IF(AT17=$AM$5,AJ27,0)","v":0},{"$f":"IF(AT17=$AN$5,AJ27,0)","v":0},{"$f":"IF(AT17=$AO$5,AJ27,0)","v":0},{"$f":"IF(AT17=$AP$5,AK27,0)","v":0},{"$f":"IF(AT17=$AQ$5,AK27,0)","v":0},{"$f":"IF(AT17=$AR$5,AK27,0)","v":0},{"$f":"IF(AT17=$AS$5,AK27,0)","v":0},{"$f":"VLOOKUP(AI27,'Bank and Fund Details'!$B$15:$C$36,2,FALSE)","v":"Unrestricted"}]
[null,null,null,null,null,null,null,null,null,{"$f":"IFERROR(VLOOKUP(D28,#REF!,3,FALSE),\"\")","v":""},{"$f":"IFERROR(VLOOKUP(E28,#REF!,3,FALSE),\"\")","v":""},{"$f":"IFERROR(VLOOKUP(D28,'Bank and Fund Details'!$B$15:$D$36,3,FALSE),\"\")","v":""},{"$f":"IFERROR(VLOOKUP(E28,'Bank and Fund Details'!$B$15:$D$36,3,FALSE),\"\")","v":""},null,null,null,null,null,null,null,null,null,null,null,null,null,null,null,"","","",0,null,null,null,0,0,0,0,0,0,0,0,0,0]
[null,null,null,null,null,null,null,null,null,{"$f":"IFERROR(VLOOKUP(D29,#REF!,3,FALSE),\"\")","v":""},{"$f":"IFERROR(VLOOKUP(E29,#REF!,3,FALSE),\"\")","v":""},{"$f":"IFERROR(VLOOKUP(D29,'Bank and Fund Details'!$B$15:$D$36,3,FALSE),\"\")","v":""},{"$f":"IFERROR(VLOOKUP(E29,'Bank and Fund Details'!$B$15:$D$36,3,FALSE),\"\")","v":""},null,null,null,null,null,null,null,null,null,null,null,null,null,null,null,"","","",0,null,null,{"$f":"'Bank and Fund Details'!B39","v":"Investment A"},0,0,0,0,0,0,0,0,0,0]
[null,null,null,null,null,null,null,null,null,{"$f":"IFERROR(VLOOKUP(D30,#REF!,3,FALSE),\"\")","v":""},{"$f":"IFERROR(VLOOKUP(E30,#REF!,3,FALSE),\"\")","v":""},{"$f":"IFERROR(VLOOKUP(D30,'Bank and Fund Details'!$B$15:$D$36,3,FALSE),\"\")","v":""},{"$f":"IFERROR(VLOOKUP(E30,'Bank and Fund Details'!$B$15:$D$36,3,FALSE),\"\")","v":""},null,null,null,null,null,null,null,null,null,null,null,null,null,null,null,"","","",0,null,null,{"$f":"'Bank and Fund Details'!B40","v":"Investment B"},0,0,0,0,0,0,0,0,0,0]
[null,null,null,null,null,null,null,null,null,{"$f":"IFERROR(VLOOKUP(D31,#REF!,3,FALSE),\"\")","v":""},{"$f":"IFERROR(VLOOKUP(E31,#REF!,3,FALSE),\"\")","v":""},{"$f":"IFERROR(VLOOKUP(D31,'Bank and Fund Details'!$B$15:$D$36,3,FALSE),\"\")","v":""},{"$f":"IFERROR(VLOOKUP(E31,'Bank and Fund Details'!$B$15:$D$36,3,FALSE),\"\")","v":""},null,null,null,null,null,null,null,null,null,null,null,null,null,null,null,"","","",0,null,null,{"$f":"'Bank and Fund Details'!B41","v":"Investment C"},0,0,0,0,0,0,0,0,0,0]
[null,null,null,null,null,null,null,null,null,{"$f":"IFERROR(VLOOKUP(D32,#REF!,3,FALSE),\"\")","v":""},{"$f":"IFERROR(VLOOKUP(E32,#REF!,3,FALSE),\"\")","v":""},{"$f":"IFERROR(VLOOKUP(D32,'Bank and Fund Details'!$B$15:$D$36,3,FALSE),\"\")","v":""},{"$f":"IFERROR(VLOOKUP(E32,'Bank and Fund Details'!$B$15:$D$36,3,FALSE),\"\")","v":""},null,null,null,null,null,null,null,null,null,null,null,null,null,null,null,"","","",0,null,null,{"$f":"'Bank and Fund Details'!B42","v":"Investment D"},0,0,0,0,0,0,0,0,0,0]
[null,null,null,null,null,null,null,null,null,{"$f":"IFERROR(VLOOKUP(D33,#REF!,3,FALSE),\"\")","v":""},{"$f":"IFERROR(VLOOKUP(E33,#REF!,3,FALSE),\"\")","v":""},{"$f":"IFERROR(VLOOKUP(D33,'Bank and Fund Details'!$B$15:$D$36,3,FALSE),\"\")","v":""},{"$f":"IFERROR(VLOOKUP(E33,'Bank and Fund Details'!$B$15:$D$36,3,FALSE),\"\")","v":""},null,null,null,null,null,null,null,null,null,null,null,null,null,null,null,"","","",0,null,null,{"$f":"'Bank and Fund Details'!B43","v":"Investment E"}]
[null,null,null,null,null,null,null,null,null,{"$f":"IFERROR(VLOOKUP(D34,#REF!,3,FALSE),\"\")","v":""},{"$f":"IFERROR(VLOOKUP(E34,#REF!,3,FALSE),\"\")","v":""},{"$f":"IFERROR(VLOOKUP(D34,'Bank and Fund Details'!$B$15:$D$36,3,FALSE),\"\")","v":""},{"$f":"IFERROR(VLOOKUP(E34,'Bank and Fund Details'!$B$15:$D$36,3,FALSE),\"\")","v":""},null,null,null,null,null,null,null,null,null,null,null,null,null,null,null,"","","",0,null,null,null,null,null,{"$f":"SUM(AL6:AL32)","v":0},0,0,0,0,0,0,0]
[null,null,null,null,null,null,null,null,null,{"$f":"IFERROR(VLOOKUP(D35,#REF!,3,FALSE),\"\")","v":""},{"$f":"IFERROR(VLOOKUP(E35,#REF!,3,FALSE),\"\")","v":""},{"$f":"IFERROR(VLOOKUP(D35,'Bank and Fund Details'!$B$15:$D$36,3,FALSE),\"\")","v":""},{"$f":"IFERROR(VLOOKUP(E35,'Bank and Fund Details'!$B$15:$D$36,3,FALSE),\"\")","v":""},null,null,null,null,null,null,null,null,null,null,null,null,null,null,null,"","","",0]
[null,null,null,null,null,null,null,null,null,{"$f":"IFERROR(VLOOKUP(D36,#REF!,3,FALSE),\"\")","v":""},{"$f":"IFERROR(VLOOKUP(E36,#REF!,3,FALSE),\"\")","v":""},{"$f":"IFERROR(VLOOKUP(D36,'Bank and Fund Details'!$B$15:$D$36,3,FALSE),\"\")","v":""},{"$f":"IFERROR(VLOOKUP(E36,'Bank and Fund Details'!$B$15:$D$36,3,FALSE),\"\")","v":""},null,null,null,null,null,null,null,null,null,null,null,null,null,null,null,"","","",0,null,null,null,null,"Unrestricted",{"$f":"SUM(AL34-AP34)","v":0}]
[null,null,null,null,null,null,null,null,null,{"$f":"IFERROR(VLOOKUP(D37,#REF!,3,FALSE),\"\")","v":""},{"$f":"IFERROR(VLOOKUP(E37,#REF!,3,FALSE),\"\")","v":""},{"$f":"IFERROR(VLOOKUP(D37,'Bank and Fund Details'!$B$15:$D$36,3,FALSE),\"\")","v":""},{"$f":"IFERROR(VLOOKUP(E37,'Bank and Fund Details'!$B$15:$D$36,3,FALSE),\"\")","v":""},null,null,null,null,null,null,null,null,null,null,null,null,null,null,null,"","","",0,null,null,null,null,"Designated",{"$f":"SUM(AM34-AQ34)","v":0}]
[null,null,null,null,null,null,null,null,null,{"$f":"IFERROR(VLOOKUP(D38,#REF!,3,FALSE),\"\")","v":""},{"$f":"IFERROR(VLOOKUP(E38,#REF!,3,FALSE),\"\")","v":""},{"$f":"IFERROR(VLOOKUP(D38,'Bank and Fund Details'!$B$15:$D$36,3,FALSE),\"\")","v":""},{"$f":"IFERROR(VLOOKUP(E38,'Bank and Fund Details'!$B$15:$D$36,3,FALSE),\"\")","v":""},null,null,null,null,null,null,null,null,null,null,null,null,null,null,null,"","","",0,null,null,null,null,"Restricted",{"$f":"SUM(AN34-AR34)","v":0}]
[null,null,null,null,null,null,null,null,null,{"$f":"IFERROR(VLOOKUP(D39,#REF!,3,FALSE),\"\")","v":""},{"$f":"IFERROR(VLOOKUP(E39,#REF!,3,FALSE),\"\")","v":""},{"$f":"IFERROR(VLOOKUP(D39,'Bank and Fund Details'!$B$15:$D$36,3,FALSE),\"\")","v":""},{"$f":"IFERROR(VLOOKUP(E39,'Bank and Fund Details'!$B$15:$D$36,3,FALSE),\"\")","v":""},null,null,null,null,null,null,null,null,null,null,null,null,null,null,null,{"$f":"IF(D39=\"\",\"\",VLOOKUP(D39,$AI$6:$AT$22,12,FALSE))","v":""},{"$f":"IF(E39=\"\",\"\",VLOOKUP(E39,$AI$6:$AT$22,12,FALSE))","v":""},"",0,null,null,null,null,"Endowment",{"$f":"SUM(AO34-AS34)","v":0}]
[null,null,null,null,null,null,null,null,null,{"$f":"IFERROR(VLOOKUP(D40,#REF!,3,FALSE),\"\")","v":""},{"$f":"IFERROR(VLOOKUP(E40,#REF!,3,FALSE),\"\")","v":""},{"$f":"IFERROR(VLOOKUP(D40,'Bank and Fund Details'!$B$15:$D$36,3,FALSE),\"\")","v":""},{"$f":"IFERROR(VLOOKUP(E40,'Bank and Fund Details'!$B$15:$D$36,3,FALSE),\"\")","v":""},null,null,null,null,null,null,null,null,null,null,null,null,null,null,null,"","","",0]
[null,null,null,null,null,null,null,null,null,{"$f":"IFERROR(VLOOKUP(D41,#REF!,3,FALSE),\"\")","v":""},{"$f":"IFERROR(VLOOKUP(E41,#REF!,3,FALSE),\"\")","v":""},{"$f":"IFERROR(VLOOKUP(D41,'Bank and Fund Details'!$B$15:$D$36,3,FALSE),\"\")","v":""},{"$f":"IFERROR(VLOOKUP(E41,'Bank and Fund Details'!$B$15:$D$36,3,FALSE),\"\")","v":""},null,null,null,null,null,null,null,null,null,null,null,null,null,null,null,"","","",0]
[null,null,null,null,null,null,null,null,null,{"$f":"IFERROR(VLOOKUP(D42,#REF!,3,FALSE),\"\")","v":""},{"$f":"IFERROR(VLOOKUP(E42,#REF!,3,FALSE),\"\")","v":""},{"$f":"IFERROR(VLOOKUP(D42,'Bank and Fund Details'!$B$15:$D$36,3,FALSE),\"\")","v":""},{"$f":"IFERROR(VLOOKUP(E42,'Bank and Fund Details'!$B$15:$D$36,3,FALSE),\"\")","v":""},null,null,null,null,null,null,null,null,null,null,null,null,null,null,null,"","","",0]
[null,null,null,null,null,null,null,null,null,{"$f":"IFERROR(VLOOKUP(D43,#REF!,3,FALSE),\"\")","v":""},{"$f":"IFERROR(VLOOKUP(E43,#REF!,3,FALSE),\"\")","v":""},{"$f":"IFERROR(VLOOKUP(D43,'Bank and Fund Details'!$B$15:$D$36,3,FALSE),\"\")","v":""},{"$f":"IFERROR(VLOOKUP(E43,'Bank and Fund Details'!$B$15:$D$36,3,FALSE),\"\")","v":""},null,null,null,null,null,null,null,null,null,null,null,null,null,null,null,"","","",0]
[null,null,null,null,null,null,null,null,null,{"$f":"IFERROR(VLOOKUP(D44,#REF!,3,FALSE),\"\")","v":""},{"$f":"IFERROR(VLOOKUP(E44,#REF!,3,FALSE),\"\")","v":""},{"$f":"IFERROR(VLOOKUP(D44,'Bank and Fund Details'!$B$15:$D$36,3,FALSE),\"\")","v":""},{"$f":"IFERROR(VLOOKUP(E44,'Bank and Fund Details'!$B$15:$D$36,3,FALSE),\"\")","v":""},null,null,null,null,null,null,null,null,null,null,null,null,null,null,null,"","","",0]
[null,null,null,null,null,null,null,null,null,{"$f":"IFERROR(VLOOKUP(D45,#REF!,3,FALSE),\"\")","v":""},{"$f":"IFERROR(VLOOKUP(E45,#REF!,3,FALSE),\"\")","v":""},{"$f":"IFERROR(VLOOKUP(D45,'Bank and Fund Details'!$B$15:$D$36,3,FALSE),\"\")","v":""},{"$f":"IFERROR(VLOOKUP(E45,'Bank and Fund Details'!$B$15:$D$36,3,FALSE),\"\")","v":""},null,null,null,null,null,null,null,null,null,null,null,null,null,null,null,"","","",0]
[null,null,null,null,null,null,null,null,null,{"$f":"IFERROR(VLOOKUP(D46,#REF!,3,FALSE),\"\")","v":""},{"$f":"IFERROR(VLOOKUP(E46,#REF!,3,FALSE),\"\")","v":""},{"$f":"IFERROR(VLOOKUP(D46,'Bank and Fund Details'!$B$15:$D$36,3,FALSE),\"\")","v":""},{"$f":"IFERROR(VLOOKUP(E46,'Bank and Fund Details'!$B$15:$D$36,3,FALSE),\"\")","v":""},null,null,null,null,null,null,null,null,null,null,null,null,null,null,null,"","","",0]
[null,null,null,null,null,null,null,null,null,{"$f":"IFERROR(VLOOKUP(D47,#REF!,3,FALSE),\"\")","v":""},{"$f":"IFERROR(VLOOKUP(E47,#REF!,3,FALSE),\"\")","v":""},{"$f":"IFERROR(VLOOKUP(D47,'Bank and Fund Details'!$B$15:$D$36,3,FALSE),\"\")","v":""},{"$f":"IFERROR(VLOOKUP(E47,'Bank and Fund Details'!$B$15:$D$36,3,FALSE),\"\")","v":""},null,null,null,null,null,null,null,null,null,null,null,null,null,null,null,"","","",0]
[null,null,null,null,null,null,null,null,null,{"$f":"IFERROR(VLOOKUP(D48,#REF!,3,FALSE),\"\")","v":""},{"$f":"IFERROR(VLOOKUP(E48,#REF!,3,FALSE),\"\")","v":""},{"$f":"IFERROR(VLOOKUP(D48,'Bank and Fund Details'!$B$15:$D$36,3,FALSE),\"\")","v":""},{"$f":"IFERROR(VLOOKUP(E48,'Bank and Fund Details'!$B$15:$D$36,3,FALSE),\"\")","v":""},null,null,null,null,null,null,null,null,null,null,null,null,null,null,null,"","","",0]
[null,null,null,null,null,null,null,null,null,{"$f":"IFERROR(VLOOKUP(D49,#REF!,3,FALSE),\"\")","v":""},{"$f":"IFERROR(VLOOKUP(E49,#REF!,3,FALSE),\"\")","v":""},{"$f":"IFERROR(VLOOKUP(D49,'Bank and Fund Details'!$B$15:$D$36,3,FALSE),\"\")","v":""},{"$f":"IFERROR(VLOOKUP(E49,'Bank and Fund Details'!$B$15:$D$36,3,FALSE),\"\")","v":""},null,null,null,null,null,null,null,null,null,null,null,null,null,null,null,"","","",0]
[null,null,null,null,null,null,null,null,null,{"$f":"IFERROR(VLOOKUP(D50,#REF!,3,FALSE),\"\")","v":""},{"$f":"IFERROR(VLOOKUP(E50,#REF!,3,FALSE),\"\")","v":""},{"$f":"IFERROR(VLOOKUP(D50,'Bank and Fund Details'!$B$15:$D$36,3,FALSE),\"\")","v":""},{"$f":"IFERROR(VLOOKUP(E50,'Bank and Fund Details'!$B$15:$D$36,3,FALSE),\"\")","v":""},null,null,null,null,null,null,null,null,null,null,null,null,null,null,null,"","","",0]
[null,null,null,null,null,null,null,null,null,{"$f":"IFERROR(VLOOKUP(D51,#REF!,3,FALSE),\"\")","v":""},{"$f":"IFERROR(VLOOKUP(E51,#REF!,3,FALSE),\"\")","v":""},{"$f":"IFERROR(VLOOKUP(D51,'Bank and Fund Details'!$B$15:$D$36,3,FALSE),\"\")","v":""},{"$f":"IFERROR(VLOOKUP(E51,'Bank and Fund Details'!$B$15:$D$36,3,FALSE),\"\")","v":""},null,null,null,null,null,null,null,null,null,null,null,null,null,null,null,"","","",0]
[null,null,null,null,null,null,null,null,null,{"$f":"IFERROR(VLOOKUP(D52,#REF!,3,FALSE),\"\")","v":""},{"$f":"IFERROR(VLOOKUP(E52,#REF!,3,FALSE),\"\")","v":""},{"$f":"IFERROR(VLOOKUP(D52,'Bank and Fund Details'!$B$15:$D$36,3,FALSE),\"\")","v":""},{"$f":"IFERROR(VLOOKUP(E52,'Bank and Fund Details'!$B$15:$D$36,3,FALSE),\"\")","v":""},null,null,null,null,null,null,null,null,null,null,null,null,null,null,null,"","","",0]
[null,null,null,null,null,null,null,null,null,{"$f":"IFERROR(VLOOKUP(D53,#REF!,3,FALSE),\"\")","v":""},{"$f":"IFERROR(VLOOKUP(E53,#REF!,3,FALSE),\"\")","v":""},{"$f":"IFERROR(VLOOKUP(D53,'Bank and Fund Details'!$B$15:$D$36,3,FALSE),\"\")","v":""},{"$f":"IFERROR(VLOOKUP(E53,'Bank and Fund Details'!$B$15:$D$36,3,FALSE),\"\")","v":""},null,null,null,null,null,null,null,null,null,null,null,null,null,null,null,"","","",0]
[null,null,null,null,null,null,null,null,null,{"$f":"IFERROR(VLOOKUP(D54,#REF!,3,FALSE),\"\")","v":""},{"$f":"IFERROR(VLOOKUP(E54,#REF!,3,FALSE),\"\")","v":""},{"$f":"IFERROR(VLOOKUP(D54,'Bank and Fund Details'!$B$15:$D$36,3,FALSE),\"\")","v":""},{"$f":"IFERROR(VLOOKUP(E54,'Bank and Fund Details'!$B$15:$D$36,3,FALSE),\"\")","v":""},null,null,null,null,null,null,null,null,null,null,null,null,null,null,null,"","","",0]
[null,null,null,null,null,null,null,null,null,{"$f":"IFERROR(VLOOKUP(D55,#REF!,3,FALSE),\"\")","v":""},{"$f":"IFERROR(VLOOKUP(E55,#REF!,3,FALSE),\"\")","v":""},{"$f":"IFERROR(VLOOKUP(D55,'Bank and Fund Details'!$B$15:$D$36,3,FALSE),\"\")","v":""},{"$f":"IFERROR(VLOOKUP(E55,'Bank and Fund Details'!$B$15:$D$36,3,FALSE),\"\")","v":""},null,null,null,null,null,null,null,null,null,null,null,null,null,null,null,"","","",0]
[null,null,null,null,null,null,null,null,null,{"$f":"IFERROR(VLOOKUP(D56,#REF!,3,FALSE),\"\")","v":""},{"$f":"IFERROR(VLOOKUP(E56,#REF!,3,FALSE),\"\")","v":""},{"$f":"IFERROR(VLOOKUP(D56,'Bank and Fund Details'!$B$15:$D$36,3,FALSE),\"\")","v":""},{"$f":"IFERROR(VLOOKUP(E56,'Bank and Fund Details'!$B$15:$D$36,3,FALSE),\"\")","v":""},null,null,null,null,null,null,null,null,null,null,null,null,null,null,null,"","","",0]
[null,null,null,null,null,null,null,null,null,{"$f":"IFERROR(VLOOKUP(D57,#REF!,3,FALSE),\"\")","v":""},{"$f":"IFERROR(VLOOKUP(E57,#REF!,3,FALSE),\"\")","v":""},{"$f":"IFERROR(VLOOKUP(D57,'Bank and Fund Details'!$B$15:$D$36,3,FALSE),\"\")","v":""},{"$f":"IFERROR(VLOOKUP(E57,'Bank and Fund Details'!$B$15:$D$36,3,FALSE),\"\")","v":""},null,null,null,null,null,null,null,null,null,null,null,null,null,null,null,"","","",0]
[null,null,null,null,null,null,null,null,null,{"$f":"IFERROR(VLOOKUP(D58,#REF!,3,FALSE),\"\")","v":""},{"$f":"IFERROR(VLOOKUP(E58,#REF!,3,FALSE),\"\")","v":""},{"$f":"IFERROR(VLOOKUP(D58,'Bank and Fund Details'!$B$15:$D$36,3,FALSE),\"\")","v":""},{"$f":"IFERROR(VLOOKUP(E58,'Bank and Fund Details'!$B$15:$D$36,3,FALSE),\"\")","v":""},null,null,null,null,null,null,null,null,null,null,null,null,null,null,null,"","","",0]
[null,null,null,null,null,null,null,null,null,{"$f":"IFERROR(VLOOKUP(D59,#REF!,3,FALSE),\"\")","v":""},{"$f":"IFERROR(VLOOKUP(E59,#REF!,3,FALSE),\"\")","v":""},{"$f":"IFERROR(VLOOKUP(D59,'Bank and Fund Details'!$B$15:$D$36,3,FALSE),\"\")","v":""},{"$f":"IFERROR(VLOOKUP(E59,'Bank and Fund Details'!$B$15:$D$36,3,FALSE),\"\")","v":""},null,null,null,null,null,null,null,null,null,null,null,null,null,null,null,"","","",0]
[null,null,null,null,null,null,null,null,null,{"$f":"IFERROR(VLOOKUP(D60,#REF!,3,FALSE),\"\")","v":""},{"$f":"IFERROR(VLOOKUP(E60,#REF!,3,FALSE),\"\")","v":""},{"$f":"IFERROR(VLOOKUP(D60,'Bank and Fund Details'!$B$15:$D$36,3,FALSE),\"\")","v":""},{"$f":"IFERROR(VLOOKUP(E60,'Bank and Fund Details'!$B$15:$D$36,3,FALSE),\"\")","v":""},null,null,null,null,null,null,null,null,null,null,null,null,null,null,null,"","","",0]
[null,null,null,null,null,null,null,null,null,{"$f":"IFERROR(VLOOKUP(D61,#REF!,3,FALSE),\"\")","v":""},{"$f":"IFERROR(VLOOKUP(E61,#REF!,3,FALSE),\"\")","v":""},{"$f":"IFERROR(VLOOKUP(D61,'Bank and Fund Details'!$B$15:$D$36,3,FALSE),\"\")","v":""},{"$f":"IFERROR(VLOOKUP(E61,'Bank and Fund Details'!$B$15:$D$36,3,FALSE),\"\")","v":""},null,null,null,null,null,null,null,null,null,null,null,null,null,null,null,"","","",0]
[null,null,null,null,null,null,null,null,null,{"$f":"IFERROR(VLOOKUP(D62,#REF!,3,FALSE),\"\")","v":""},{"$f":"IFERROR(VLOOKUP(E62,#REF!,3,FALSE),\"\")","v":""},{"$f":"IFERROR(VLOOKUP(D62,'Bank and Fund Details'!$B$15:$D$36,3,FALSE),\"\")","v":""},{"$f":"IFERROR(VLOOKUP(E62,'Bank and Fund Details'!$B$15:$D$36,3,FALSE),\"\")","v":""},null,null,null,null,null,null,null,null,null,null,null,null,null,null,null,"","","",0]
[null,null,null,null,null,null,null,null,null,{"$f":"IFERROR(VLOOKUP(D63,#REF!,3,FALSE),\"\")","v":""},{"$f":"IFERROR(VLOOKUP(E63,#REF!,3,FALSE),\"\")","v":""},{"$f":"IFERROR(VLOOKUP(D63,'Bank and Fund Details'!$B$15:$D$36,3,FALSE),\"\")","v":""},{"$f":"IFERROR(VLOOKUP(E63,'Bank and Fund Details'!$B$15:$D$36,3,FALSE),\"\")","v":""},null,null,null,null,null,null,null,null,null,null,null,null,null,null,null,"","","",0]
[null,null,null,null,null,null,null,null,null,{"$f":"IFERROR(VLOOKUP(D64,#REF!,3,FALSE),\"\")","v":""},{"$f":"IFERROR(VLOOKUP(E64,#REF!,3,FALSE),\"\")","v":""},{"$f":"IFERROR(VLOOKUP(D64,'Bank and Fund Details'!$B$15:$D$36,3,FALSE),\"\")","v":""},{"$f":"IFERROR(VLOOKUP(E64,'Bank and Fund Details'!$B$15:$D$36,3,FALSE),\"\")","v":""},null,null,null,null,null,null,null,null,null,null,null,null,null,null,null,"","","",0]
[null,null,null,null,null,null,null,null,null,{"$f":"IFERROR(VLOOKUP(D65,#REF!,3,FALSE),\"\")","v":""},{"$f":"IFERROR(VLOOKUP(E65,#REF!,3,FALSE),\"\")","v":""},{"$f":"IFERROR(VLOOKUP(D65,'Bank and Fund Details'!$B$15:$D$36,3,FALSE),\"\")","v":""},{"$f":"IFERROR(VLOOKUP(E65,'Bank and Fund Details'!$B$15:$D$36,3,FALSE),\"\")","v":""},null,null,null,null,null,null,null,null,null,null,null,null,null,null,null,"","","",0]
[null,null,null,null,null,null,null,null,null,{"$f":"IFERROR(VLOOKUP(D66,#REF!,3,FALSE),\"\")","v":""},{"$f":"IFERROR(VLOOKUP(E66,#REF!,3,FALSE),\"\")","v":""},{"$f":"IFERROR(VLOOKUP(D66,'Bank and Fund Details'!$B$15:$D$36,3,FALSE),\"\")","v":""},{"$f":"IFERROR(VLOOKUP(E66,'Bank and Fund Details'!$B$15:$D$36,3,FALSE),\"\")","v":""},null,null,null,null,null,null,null,null,null,null,null,null,null,null,null,"","","",0]
[null,null,null,null,null,null,null,null,null,{"$f":"IFERROR(VLOOKUP(D67,#REF!,3,FALSE),\"\")","v":""},{"$f":"IFERROR(VLOOKUP(E67,#REF!,3,FALSE),\"\")","v":""},{"$f":"IFERROR(VLOOKUP(D67,'Bank and Fund Details'!$B$15:$D$36,3,FALSE),\"\")","v":""},{"$f":"IFERROR(VLOOKUP(E67,'Bank and Fund Details'!$B$15:$D$36,3,FALSE),\"\")","v":""},null,null,null,null,null,null,null,null,null,null,null,null,null,null,null,"","","",0]
[null,null,null,null,null,null,null,null,null,{"$f":"IFERROR(VLOOKUP(D68,#REF!,3,FALSE),\"\")","v":""},{"$f":"IFERROR(VLOOKUP(E68,#REF!,3,FALSE),\"\")","v":""},{"$f":"IFERROR(VLOOKUP(D68,'Bank and Fund Details'!$B$15:$D$36,3,FALSE),\"\")","v":""},{"$f":"IFERROR(VLOOKUP(E68,'Bank and Fund Details'!$B$15:$D$36,3,FALSE),\"\")","v":""},null,null,null,null,null,null,null,null,null,null,null,null,null,null,null,"","","",0]
[null,null,null,null,null,null,null,null,null,{"$f":"IFERROR(VLOOKUP(D69,#REF!,3,FALSE),\"\")","v":""},{"$f":"IFERROR(VLOOKUP(E69,#REF!,3,FALSE),\"\")","v":""},{"$f":"IFERROR(VLOOKUP(D69,'Bank and Fund Details'!$B$15:$D$36,3,FALSE),\"\")","v":""},{"$f":"IFERROR(VLOOKUP(E69,'Bank and Fund Details'!$B$15:$D$36,3,FALSE),\"\")","v":""},null,null,null,null,null,null,null,null,null,null,null,null,null,null,null,"","","",0]
[null,null,null,null,null,null,null,null,null,{"$f":"IFERROR(VLOOKUP(D70,#REF!,3,FALSE),\"\")","v":""},{"$f":"IFERROR(VLOOKUP(E70,#REF!,3,FALSE),\"\")","v":""},{"$f":"IFERROR(VLOOKUP(D70,'Bank and Fund Details'!$B$15:$D$36,3,FALSE),\"\")","v":""},{"$f":"IFERROR(VLOOKUP(E70,'Bank and Fund Details'!$B$15:$D$36,3,FALSE),\"\")","v":""},null,null,null,null,null,null,null,null,null,null,null,null,null,null,null,"","","",0]
[null,null,null,null,null,null,null,null,null,{"$f":"IFERROR(VLOOKUP(D71,#REF!,3,FALSE),\"\")","v":""},{"$f":"IFERROR(VLOOKUP(E71,#REF!,3,FALSE),\"\")","v":""},{"$f":"IFERROR(VLOOKUP(D71,'Bank and Fund Details'!$B$15:$D$36,3,FALSE),\"\")","v":""},{"$f":"IFERROR(VLOOKUP(E71,'Bank and Fund Details'!$B$15:$D$36,3,FALSE),\"\")","v":""},null,null,null,null,null,null,null,null,null,null,null,null,null,null,null,{"$f":"IF(D71=\"\",\"\",VLOOKUP(D71,$AI$6:$AT$22,12,FALSE))","v":""},{"$f":"IF(E71=\"\",\"\",VLOOKUP(E71,$AI$6:$AT$22,12,FALSE))","v":""},"",0]
[null,null,null,null,null,null,null,null,null,{"$f":"IFERROR(VLOOKUP(D72,#REF!,3,FALSE),\"\")","v":""},{"$f":"IFERROR(VLOOKUP(E72,#REF!,3,FALSE),\"\")","v":""},{"$f":"IFERROR(VLOOKUP(D72,'Bank and Fund Details'!$B$15:$D$36,3,FALSE),\"\")","v":""},{"$f":"IFERROR(VLOOKUP(E72,'Bank and Fund Details'!$B$15:$D$36,3,FALSE),\"\")","v":""},null,null,null,null,null,null,null,null,null,null,null,null,null,null,null,"","",{"$f":"CONCATENATE(AC72,AD72)","v":""},{"$f":"IF(AE72=\"UNRE\",1,0)","v":0}]
[null,null,null,null,null,null,null,null,null,{"$f":"IFERROR(VLOOKUP(D73,#REF!,3,FALSE),\"\")","v":""},{"$f":"IFERROR(VLOOKUP(E73,#REF!,3,FALSE),\"\")","v":""},{"$f":"IFERROR(VLOOKUP(D73,'Bank and Fund Details'!$B$15:$D$36,3,FALSE),\"\")","v":""},{"$f":"IFERROR(VLOOKUP(E73,'Bank and Fund Details'!$B$15:$D$36,3,FALSE),\"\")","v":""},null,null,null,null,null,null,null,null,null,null,null,null,null,null,null,"","","",0]
[null,null,null,null,null,null,null,null,null,{"$f":"IFERROR(VLOOKUP(D74,#REF!,3,FALSE),\"\")","v":""},{"$f":"IFERROR(VLOOKUP(E74,#REF!,3,FALSE),\"\")","v":""},{"$f":"IFERROR(VLOOKUP(D74,'Bank and Fund Details'!$B$15:$D$36,3,FALSE),\"\")","v":""},{"$f":"IFERROR(VLOOKUP(E74,'Bank and Fund Details'!$B$15:$D$36,3,FALSE),\"\")","v":""},null,null,null,null,null,null,null,null,null,null,null,null,null,null,null,"","","",0]
[null,null,null,null,null,null,null,null,null,{"$f":"IFERROR(VLOOKUP(D75,#REF!,3,FALSE),\"\")","v":""},{"$f":"IFERROR(VLOOKUP(E75,#REF!,3,FALSE),\"\")","v":""},{"$f":"IFERROR(VLOOKUP(D75,'Bank and Fund Details'!$B$15:$D$36,3,FALSE),\"\")","v":""},{"$f":"IFERROR(VLOOKUP(E75,'Bank and Fund Details'!$B$15:$D$36,3,FALSE),\"\")","v":""},null,null,null,null,null,null,null,null,null,null,null,null,null,null,null,"","","",0]
[null,null,null,null,null,null,null,null,null,{"$f":"IFERROR(VLOOKUP(D76,#REF!,3,FALSE),\"\")","v":""},{"$f":"IFERROR(VLOOKUP(E76,#REF!,3,FALSE),\"\")","v":""},{"$f":"IFERROR(VLOOKUP(D76,'Bank and Fund Details'!$B$15:$D$36,3,FALSE),\"\")","v":""},{"$f":"IFERROR(VLOOKUP(E76,'Bank and Fund Details'!$B$15:$D$36,3,FALSE),\"\")","v":""},null,null,null,null,null,null,null,null,null,null,null,null,null,null,null,"","","",0]
[null,null,null,null,null,null,null,null,null,{"$f":"IFERROR(VLOOKUP(D77,#REF!,3,FALSE),\"\")","v":""},{"$f":"IFERROR(VLOOKUP(E77,#REF!,3,FALSE),\"\")","v":""},{"$f":"IFERROR(VLOOKUP(D77,'Bank and Fund Details'!$B$15:$D$36,3,FALSE),\"\")","v":""},{"$f":"IFERROR(VLOOKUP(E77,'Bank and Fund Details'!$B$15:$D$36,3,FALSE),\"\")","v":""},null,null,null,null,null,null,null,null,null,null,null,null,null,null,null,"","","",0]
[null,null,null,null,null,null,null,null,null,{"$f":"IFERROR(VLOOKUP(D78,#REF!,3,FALSE),\"\")","v":""},{"$f":"IFERROR(VLOOKUP(E78,#REF!,3,FALSE),\"\")","v":""},{"$f":"IFERROR(VLOOKUP(D78,'Bank and Fund Details'!$B$15:$D$36,3,FALSE),\"\")","v":""},{"$f":"IFERROR(VLOOKUP(E78,'Bank and Fund Details'!$B$15:$D$36,3,FALSE),\"\")","v":""},null,null,null,null,null,null,null,null,null,null,null,null,null,null,null,"","","",0]
[null,null,null,null,null,null,null,null,null,{"$f":"IFERROR(VLOOKUP(D79,#REF!,3,FALSE),\"\")","v":""},{"$f":"IFERROR(VLOOKUP(E79,#REF!,3,FALSE),\"\")","v":""},{"$f":"IFERROR(VLOOKUP(D79,'Bank and Fund Details'!$B$15:$D$36,3,FALSE),\"\")","v":""},{"$f":"IFERROR(VLOOKUP(E79,'Bank and Fund Details'!$B$15:$D$36,3,FALSE),\"\")","v":""},null,null,null,null,null,null,null,null,null,null,null,null,null,null,null,"","","",0]
[null,null,null,null,null,null,null,null,null,{"$f":"IFERROR(VLOOKUP(D80,#REF!,3,FALSE),\"\")","v":""},{"$f":"IFERROR(VLOOKUP(E80,#REF!,3,FALSE),\"\")","v":""},{"$f":"IFERROR(VLOOKUP(D80,'Bank and Fund Details'!$B$15:$D$36,3,FALSE),\"\")","v":""},{"$f":"IFERROR(VLOOKUP(E80,'Bank and Fund Details'!$B$15:$D$36,3,FALSE),\"\")","v":""},null,null,null,null,null,null,null,null,null,null,null,null,null,null,null,"","","",0]
[null,null,null,null,null,null,null,null,null,{"$f":"IFERROR(VLOOKUP(D81,#REF!,3,FALSE),\"\")","v":""},{"$f":"IFERROR(VLOOKUP(E81,#REF!,3,FALSE),\"\")","v":""},{"$f":"IFERROR(VLOOKUP(D81,'Bank and Fund Details'!$B$15:$D$36,3,FALSE),\"\")","v":""},{"$f":"IFERROR(VLOOKUP(E81,'Bank and Fund Details'!$B$15:$D$36,3,FALSE),\"\")","v":""},null,null,null,null,null,null,null,null,null,null,null,null,null,null,null,"","","",0]
[null,null,null,null,null,null,null,null,null,{"$f":"IFERROR(VLOOKUP(D82,#REF!,3,FALSE),\"\")","v":""},{"$f":"IFERROR(VLOOKUP(E82,#REF!,3,FALSE),\"\")","v":""},{"$f":"IFERROR(VLOOKUP(D82,'Bank and Fund Details'!$B$15:$D$36,3,FALSE),\"\")","v":""},{"$f":"IFERROR(VLOOKUP(E82,'Bank and Fund Details'!$B$15:$D$36,3,FALSE),\"\")","v":""},null,null,null,null,null,null,null,null,null,null,null,null,null,null,null,"","","",0]
[null,null,null,null,null,null,null,null,null,{"$f":"IFERROR(VLOOKUP(D83,#REF!,3,FALSE),\"\")","v":""},{"$f":"IFERROR(VLOOKUP(E83,#REF!,3,FALSE),\"\")","v":""},{"$f":"IFERROR(VLOOKUP(D83,'Bank and Fund Details'!$B$15:$D$36,3,FALSE),\"\")","v":""},{"$f":"IFERROR(VLOOKUP(E83,'Bank and Fund Details'!$B$15:$D$36,3,FALSE),\"\")","v":""},null,null,null,null,null,null,null,null,null,null,null,null,null,null,null,"","","",0]
[null,null,null,null,null,null,null,null,null,{"$f":"IFERROR(VLOOKUP(D84,#REF!,3,FALSE),\"\")","v":""},{"$f":"IFERROR(VLOOKUP(E84,#REF!,3,FALSE),\"\")","v":""},{"$f":"IFERROR(VLOOKUP(D84,'Bank and Fund Details'!$B$15:$D$36,3,FALSE),\"\")","v":""},{"$f":"IFERROR(VLOOKUP(E84,'Bank and Fund Details'!$B$15:$D$36,3,FALSE),\"\")","v":""},null,null,null,null,null,null,null,null,null,null,null,null,null,null,null,"","","",0]
[null,null,null,null,null,null,null,null,null,{"$f":"IFERROR(VLOOKUP(D85,#REF!,3,FALSE),\"\")","v":""},{"$f":"IFERROR(VLOOKUP(E85,#REF!,3,FALSE),\"\")","v":""},{"$f":"IFERROR(VLOOKUP(D85,'Bank and Fund Details'!$B$15:$D$36,3,FALSE),\"\")","v":""},{"$f":"IFERROR(VLOOKUP(E85,'Bank and Fund Details'!$B$15:$D$36,3,FALSE),\"\")","v":""},null,null,null,null,null,null,null,null,null,null,null,null,null,null,null,"","","",0]
[null,null,null,null,null,null,null,null,null,{"$f":"IFERROR(VLOOKUP(D86,#REF!,3,FALSE),\"\")","v":""},{"$f":"IFERROR(VLOOKUP(E86,#REF!,3,FALSE),\"\")","v":""},{"$f":"IFERROR(VLOOKUP(D86,'Bank and Fund Details'!$B$15:$D$36,3,FALSE),\"\")","v":""},{"$f":"IFERROR(VLOOKUP(E86,'Bank and Fund Details'!$B$15:$D$36,3,FALSE),\"\")","v":""},null,null,null,null,null,null,null,null,null,null,null,null,null,null,null,"","","",0]
[null,null,null,null,null,null,null,null,null,{"$f":"IFERROR(VLOOKUP(D87,#REF!,3,FALSE),\"\")","v":""},{"$f":"IFERROR(VLOOKUP(E87,#REF!,3,FALSE),\"\")","v":""},{"$f":"IFERROR(VLOOKUP(D87,'Bank and Fund Details'!$B$15:$D$36,3,FALSE),\"\")","v":""},{"$f":"IFERROR(VLOOKUP(E87,'Bank and Fund Details'!$B$15:$D$36,3,FALSE),\"\")","v":""},null,null,null,null,null,null,null,null,null,null,null,null,null,null,null,"","","",0]
[null,null,null,null,null,null,null,null,null,{"$f":"IFERROR(VLOOKUP(D88,#REF!,3,FALSE),\"\")","v":""},{"$f":"IFERROR(VLOOKUP(E88,#REF!,3,FALSE),\"\")","v":""},{"$f":"IFERROR(VLOOKUP(D88,'Bank and Fund Details'!$B$15:$D$36,3,FALSE),\"\")","v":""},{"$f":"IFERROR(VLOOKUP(E88,'Bank and Fund Details'!$B$15:$D$36,3,FALSE),\"\")","v":""},null,null,null,null,null,null,null,null,null,null,null,null,null,null,null,"","","",0]
[null,null,null,null,null,null,null,null,null,{"$f":"IFERROR(VLOOKUP(D89,#REF!,3,FALSE),\"\")","v":""},{"$f":"IFERROR(VLOOKUP(E89,#REF!,3,FALSE),\"\")","v":""},{"$f":"IFERROR(VLOOKUP(D89,'Bank and Fund Details'!$B$15:$D$36,3,FALSE),\"\")","v":""},{"$f":"IFERROR(VLOOKUP(E89,'Bank and Fund Details'!$B$15:$D$36,3,FALSE),\"\")","v":""},null,null,null,null,null,null,null,null,null,null,null,null,null,null,null,"","","",0]
[null,null,null,null,null,null,null,null,null,{"$f":"IFERROR(VLOOKUP(D90,#REF!,3,FALSE),\"\")","v":""},{"$f":"IFERROR(VLOOKUP(E90,#REF!,3,FALSE),\"\")","v":""},{"$f":"IFERROR(VLOOKUP(D90,'Bank and Fund Details'!$B$15:$D$36,3,FALSE),\"\")","v":""},{"$f":"IFERROR(VLOOKUP(E90,'Bank and Fund Details'!$B$15:$D$36,3,FALSE),\"\")","v":""},null,null,null,null,null,null,null,null,null,null,null,null,null,null,null,"","","",0]
[null,null,null,null,null,null,null,null,null,{"$f":"IFERROR(VLOOKUP(D91,#REF!,3,FALSE),\"\")","v":""},{"$f":"IFERROR(VLOOKUP(E91,#REF!,3,FALSE),\"\")","v":""},{"$f":"IFERROR(VLOOKUP(D91,'Bank and Fund Details'!$B$15:$D$36,3,FALSE),\"\")","v":""},{"$f":"IFERROR(VLOOKUP(E91,'Bank and Fund Details'!$B$15:$D$36,3,FALSE),\"\")","v":""},null,null,null,null,null,null,null,null,null,null,null,null,null,null,null,"","","",0]
[null,null,null,null,null,null,null,null,null,{"$f":"IFERROR(VLOOKUP(D92,#REF!,3,FALSE),\"\")","v":""},{"$f":"IFERROR(VLOOKUP(E92,#REF!,3,FALSE),\"\")","v":""},{"$f":"IFERROR(VLOOKUP(D92,'Bank and Fund Details'!$B$15:$D$36,3,FALSE),\"\")","v":""},{"$f":"IFERROR(VLOOKUP(E92,'Bank and Fund Details'!$B$15:$D$36,3,FALSE),\"\")","v":""},null,null,null,null,null,null,null,null,null,null,null,null,null,null,null,"","","",0]
[null,null,null,null,null,null,null,null,null,{"$f":"IFERROR(VLOOKUP(D93,#REF!,3,FALSE),\"\")","v":""},{"$f":"IFERROR(VLOOKUP(E93,#REF!,3,FALSE),\"\")","v":""},{"$f":"IFERROR(VLOOKUP(D93,'Bank and Fund Details'!$B$15:$D$36,3,FALSE),\"\")","v":""},{"$f":"IFERROR(VLOOKUP(E93,'Bank and Fund Details'!$B$15:$D$36,3,FALSE),\"\")","v":""},null,null,null,null,null,null,null,null,null,null,null,null,null,null,null,"","","",0]
[null,null,null,null,null,null,null,null,null,{"$f":"IFERROR(VLOOKUP(D94,#REF!,3,FALSE),\"\")","v":""},{"$f":"IFERROR(VLOOKUP(E94,#REF!,3,FALSE),\"\")","v":""},{"$f":"IFERROR(VLOOKUP(D94,'Bank and Fund Details'!$B$15:$D$36,3,FALSE),\"\")","v":""},{"$f":"IFERROR(VLOOKUP(E94,'Bank and Fund Details'!$B$15:$D$36,3,FALSE),\"\")","v":""},null,null,null,null,null,null,null,null,null,null,null,null,null,null,null,"","","",0]
[null,null,null,null,null,null,null,null,null,{"$f":"IFERROR(VLOOKUP(D95,#REF!,3,FALSE),\"\")","v":""},{"$f":"IFERROR(VLOOKUP(E95,#REF!,3,FALSE),\"\")","v":""},{"$f":"IFERROR(VLOOKUP(D95,'Bank and Fund Details'!$B$15:$D$36,3,FALSE),\"\")","v":""},{"$f":"IFERROR(VLOOKUP(E95,'Bank and Fund Details'!$B$15:$D$36,3,FALSE),\"\")","v":""},null,null,null,null,null,null,null,null,null,null,null,null,null,null,null,"","","",0]
[null,null,null,null,null,null,null,null,null,{"$f":"IFERROR(VLOOKUP(D96,#REF!,3,FALSE),\"\")","v":""},{"$f":"IFERROR(VLOOKUP(E96,#REF!,3,FALSE),\"\")","v":""},{"$f":"IFERROR(VLOOKUP(D96,'Bank and Fund Details'!$B$15:$D$36,3,FALSE),\"\")","v":""},{"$f":"IFERROR(VLOOKUP(E96,'Bank and Fund Details'!$B$15:$D$36,3,FALSE),\"\")","v":""},null,null,null,null,null,null,null,null,null,null,null,null,null,null,null,"","","",0]
[null,null,null,null,null,null,null,null,null,{"$f":"IFERROR(VLOOKUP(D97,#REF!,3,FALSE),\"\")","v":""},{"$f":"IFERROR(VLOOKUP(E97,#REF!,3,FALSE),\"\")","v":""},{"$f":"IFERROR(VLOOKUP(D97,'Bank and Fund Details'!$B$15:$D$36,3,FALSE),\"\")","v":""},{"$f":"IFERROR(VLOOKUP(E97,'Bank and Fund Details'!$B$15:$D$36,3,FALSE),\"\")","v":""},null,null,null,null,null,null,null,null,null,null,null,null,null,null,null,"","","",0]
[null,null,null,null,null,null,null,null,null,{"$f":"IFERROR(VLOOKUP(D98,#REF!,3,FALSE),\"\")","v":""},{"$f":"IFERROR(VLOOKUP(E98,#REF!,3,FALSE),\"\")","v":""},{"$f":"IFERROR(VLOOKUP(D98,'Bank and Fund Details'!$B$15:$D$36,3,FALSE),\"\")","v":""},{"$f":"IFERROR(VLOOKUP(E98,'Bank and Fund Details'!$B$15:$D$36,3,FALSE),\"\")","v":""},null,null,null,null,null,null,null,null,null,null,null,null,null,null,null,"","","",0]
[null,null,null,null,null,null,null,null,null,{"$f":"IFERROR(VLOOKUP(D99,#REF!,3,FALSE),\"\")","v":""},{"$f":"IFERROR(VLOOKUP(E99,#REF!,3,FALSE),\"\")","v":""},{"$f":"IFERROR(VLOOKUP(D99,'Bank and Fund Details'!$B$15:$D$36,3,FALSE),\"\")","v":""},{"$f":"IFERROR(VLOOKUP(E99,'Bank and Fund Details'!$B$15:$D$36,3,FALSE),\"\")","v":""},null,null,null,null,null,null,null,null,null,null,null,null,null,null,null,"","","",0]
[null,null,null,null,null,null,null,null,null,{"$f":"IFERROR(VLOOKUP(D100,#REF!,3,FALSE),\"\")","v":""},{"$f":"IFERROR(VLOOKUP(E100,#REF!,3,FALSE),\"\")","v":""},{"$f":"IFERROR(VLOOKUP(D100,'Bank and Fund Details'!$B$15:$D$36,3,FALSE),\"\")","v":""},{"$f":"IFERROR(VLOOKUP(E100,'Bank and Fund Details'!$B$15:$D$36,3,FALSE),\"\")","v":""},null,null,null,null,null,null,null,null,null,null,null,null,null,null,null,"","","",0]
[null,null,null,null,null,null,null,null,null,{"$f":"IFERROR(VLOOKUP(D101,#REF!,3,FALSE),\"\")","v":""},{"$f":"IFERROR(VLOOKUP(E101,#REF!,3,FALSE),\"\")","v":""},{"$f":"IFERROR(VLOOKUP(D101,'Bank and Fund Details'!$B$15:$D$36,3,FALSE),\"\")","v":""},{"$f":"IFERROR(VLOOKUP(E101,'Bank and Fund Details'!$B$15:$D$36,3,FALSE),\"\")","v":""},null,null,null,null,null,null,null,null,null,null,null,null,null,null,null,"","","",0]
[null,null,null,null,null,null,null,null,null,{"$f":"IFERROR(VLOOKUP(D102,#REF!,3,FALSE),\"\")","v":""},{"$f":"IFERROR(VLOOKUP(E102,#REF!,3,FALSE),\"\")","v":""},{"$f":"IFERROR(VLOOKUP(D102,'Bank and Fund Details'!$B$15:$D$36,3,FALSE),\"\")","v":""},{"$f":"IFERROR(VLOOKUP(E102,'Bank and Fund Details'!$B$15:$D$36,3,FALSE),\"\")","v":""},null,null,null,null,null,null,null,null,null,null,null,null,null,null,null,"","","",0]
[null,null,null,null,null,null,null,null,null,{"$f":"IFERROR(VLOOKUP(D103,#REF!,3,FALSE),\"\")","v":""},{"$f":"IFERROR(VLOOKUP(E103,#REF!,3,FALSE),\"\")","v":""},{"$f":"IFERROR(VLOOKUP(D103,'Bank and Fund Details'!$B$15:$D$36,3,FALSE),\"\")","v":""},{"$f":"IFERROR(VLOOKUP(E103,'Bank and Fund Details'!$B$15:$D$36,3,FALSE),\"\")","v":""},null,null,null,null,null,null,null,null,null,null,null,null,null,null,null,"","","",0]
[null,null,null,null,null,null,null,null,null,{"$f":"IFERROR(VLOOKUP(D104,#REF!,3,FALSE),\"\")","v":""},{"$f":"IFERROR(VLOOKUP(E104,#REF!,3,FALSE),\"\")","v":""},{"$f":"IFERROR(VLOOKUP(D104,'Bank and Fund Details'!$B$15:$D$36,3,FALSE),\"\")","v":""},{"$f":"IFERROR(VLOOKUP(E104,'Bank and Fund Details'!$B$15:$D$36,3,FALSE),\"\")","v":""},null,null,null,null,null,null,null,null,null,null,null,null,null,null,null,"","","",0]
[null,null,null,null,null,null,null,null,null,{"$f":"IFERROR(VLOOKUP(D105,#REF!,3,FALSE),\"\")","v":""},{"$f":"IFERROR(VLOOKUP(E105,#REF!,3,FALSE),\"\")","v":""},{"$f":"IFERROR(VLOOKUP(D105,'Bank and Fund Details'!$B$15:$D$36,3,FALSE),\"\")","v":""},{"$f":"IFERROR(VLOOKUP(E105,'Bank and Fund Details'!$B$15:$D$36,3,FALSE),\"\")","v":""},null,null,null,null,null,null,null,null,null,null,null,null,null,null,null,"","","",0]
[null,null,null,null,null,null,null,null,null,{"$f":"IFERROR(VLOOKUP(D106,#REF!,3,FALSE),\"\")","v":""},{"$f":"IFERROR(VLOOKUP(E106,#REF!,3,FALSE),\"\")","v":""},{"$f":"IFERROR(VLOOKUP(D106,'Bank and Fund Details'!$B$15:$D$36,3,FALSE),\"\")","v":""},{"$f":"IFERROR(VLOOKUP(E106,'Bank and Fund Details'!$B$15:$D$36,3,FALSE),\"\")","v":""},null,null,null,null,null,null,null,null,null,null,null,null,null,null,null,"","","",0]
[null,null,null,null,null,null,null,null,null,{"$f":"IFERROR(VLOOKUP(D107,#REF!,3,FALSE),\"\")","v":""},{"$f":"IFERROR(VLOOKUP(E107,#REF!,3,FALSE),\"\")","v":""},{"$f":"IFERROR(VLOOKUP(D107,'Bank and Fund Details'!$B$15:$D$36,3,FALSE),\"\")","v":""},{"$f":"IFERROR(VLOOKUP(E107,'Bank and Fund Details'!$B$15:$D$36,3,FALSE),\"\")","v":""},null,null,null,null,null,null,null,null,null,null,null,null,null,null,null,"","","",0]
[]
[null,null,null,null,null,null,null,null,null,null,null,null,null,null,null,null,null,null,null,null,null,null,null,null,null,null,null,null,null,null,null,{"$f":"SUM(AF7:AF107)","v":0}]
[null,null,null,null,null,null,null,null,null,null,null,null,null,null,null,null,null,null,null,null,null,null,null,null,null,null,null,null,null,null,null,"Y"]

{"sheet":"Bank Reconciliation Summary","index":13,"n_rows":2,"n_cols":1,"rows_kept":2,"cut":false,"hidden":false,"merged":[[1,0,1,12]]}
[]
["Select Account to Reconcile"]

{"sheet":"Sunday Envelopes","index":14,"n_rows":120,"n_cols":118,"rows_kept":120,"cut":false,"hidden":false,"merged":[[7,0,7,4],[8,0,8,4]]}
[null,null,null,null,null,null,null,null,null,null,null,null,null,null,null,null,null,null,null,null,null,null,null,null,null,null,null,null,null,null,null,null,null,null,null,null,null,null,null,null,null,null,null,null,null,null,null,null,null,null,null,null,null,null,null,null,null,null,null,null,null,null,null,null,null,null,null,null,"Yes"]
[null,null,null,null,null,null,null,null,null,"Number of Churches In Parish",null,null,null,null,1,null,null,null,null,null,null,null,null,null,null,null,null,null,null,null,null,null,null,null,null,null,null,null,null,null,null,null,null,null,null,null,null,null,null,null,null,null,null,null,null,null,null,null,null,null,null,null,null,null,null,null,null,null,"No"]
["For Year",null,{"$f":"'Name and Parish'!D15","v":2023},null,null,null,null,null,null,{"$f":"IF(O2=1,\"Consider Claiming GASDS under the Top-up Element of the scheme\",\"Consider claiming GASDS under the Community Buildings Element of the scheme\")","v":"Consider Claiming GASDS under the Top-up Element of the scheme"},null,null,null,null,null,null,null,null,null,null,null,null,null,null,null,null,null,null,null,null,null,null,null,null,null,null,null,null,null,null,null,null,null,null,null,null,null,null,null,null,null,null,null,null,null,null,null,null,null,null,null,null,null,null,null,3,5,7,9,11,13,15,17,19,21,23,25,27,29,31,33,35,37,39,41,43,45,47,49,51,53,55,57,59,61,63,65,67,69,71,73,75,77,79,81,83,85,87,89,91,93,95,97,99,101,103,105,107]
[]
[null,null,null,null,null,null,null,"Sunday Number",1,2,3,4,5,6,7,8,9,10,11,12,13,14,15,16,17,18,19,20,21,22,23,24,25,26,27,28,29,30,31,32,33,34,35,36,37,38,39,40,41,42,43,44,45,46,47,48,49,50,51,52,53]
[null,null,null,null,null,null,null,"Sunday Date",{"$f":"VLOOKUP($C$3,Index!$A:$DR,14,FALSE)","v":"2023-01-01"},{"$f":"VLOOKUP($C$3,Index!$A:$DR,16,FALSE)","v":"2023-01-08"},{"$f":"VLOOKUP($C$3,Index!$A:$DR,18,FALSE)","v":"2023-01-15"},{"$f":"VLOOKUP($C$3,Index!$A:$DR,20,FALSE)","v":"2023-01-22"},{"$f":"VLOOKUP($C$3,Index!$A:$DR,22,FALSE)","v":"2023-01-29"},{"$f":"VLOOKUP($C$3,Index!$A:$DR,24,FALSE)","v":"2023-02-05"},{"$f":"VLOOKUP($C$3,Index!$A:$DR,26,FALSE)","v":"2023-02-12"},{"$f":"VLOOKUP($C$3,Index!$A:$DR,28,FALSE)","v":"2023-02-19"},{"$f":"VLOOKUP($C$3,Index!$A:$DR,30,FALSE)","v":"2023-02-26"},{"$f":"VLOOKUP($C$3,Index!$A:$DR,32,FALSE)","v":"2023-03-05"},{"$f":"VLOOKUP($C$3,Index!$A:$DR,34,FALSE)","v":"2023-03-12"},{"$f":"VLOOKUP($C$3,Index!$A:$DR,36,FALSE)","v":"2023-03-19"},{"$f":"VLOOKUP($C$3,Index!$A:$DR,38,FALSE)","v":"2023-03-26"},{"$f":"VLOOKUP($C$3,Index!$A:$DR,40,FALSE)","v":"2023-04-02"},{"$f":"VLOOKUP($C$3,Index!$A:$DR,42,FALSE)","v":"2023-04-09"},{"$f":"VLOOKUP($C$3,Index!$A:$DR,44,FALSE)","v":"2023-04-16"},{"$f":"VLOOKUP($C$3,Index!$A:$DR,46,FALSE)","v":"2023-04-23"},{"$f":"VLOOKUP($C$3,Index!$A:$DR,48,FALSE)","v":"2023-04-30"},{"$f":"VLOOKUP($C$3,Index!$A:$DR,50,FALSE)","v":"2023-05-07"},{"$f":"VLOOKUP($C$3,Index!$A:$DR,52,FALSE)","v":"2023-05-14"},{"$f":"VLOOKUP($C$3,Index!$A:$DR,54,FALSE)","v":"2023-05-21"},{"$f":"VLOOKUP($C$3,Index!$A:$DR,56,FALSE)","v":"2023-05-28"},{"$f":"VLOOKUP($C$3,Index!$A:$DR,58,FALSE)","v":"2023-06-04"},{"$f":"VLOOKUP($C$3,Index!$A:$DR,60,FALSE)","v":"2023-06-11"},{"$f":"VLOOKUP($C$3,Index!$A:$DR,62,FALSE)","v":"2023-06-18"},{"$f":"VLOOKUP($C$3,Index!$A:$DR,64,FALSE)","v":"2023-06-25"},{"$f":"VLOOKUP($C$3,Index!$A:$DR,66,FALSE)","v":"2023-07-02"},{"$f":"VLOOKUP($C$3,Index!$A:$DR,68,FALSE)","v":"2023-07-09"},{"$f":"VLOOKUP($C$3,Index!$A:$DR,70,FALSE)","v":"2023-07-16"},{"$f":"VLOOKUP($C$3,Index!$A:$DR,72,FALSE)","v":"2023-07-23"},{"$f":"VLOOKUP($C$3,Index!$A:$DR,74,FALSE)","v":"2023-07-30"},{"$f":"VLOOKUP($C$3,Index!$A:$DR,76,FALSE)","v":"2023-08-06"},{"$f":"VLOOKUP($C$3,Index!$A:$DR,78,FALSE)","v":"2023-08-13"},{"$f":"VLOOKUP($C$3,Index!$A:$DR,80,FALSE)","v":"2023-08-20"},{"$f":"VLOOKUP($C$3,Index!$A:$DR,82,FALSE)","v":"2023-08-27"},{"$f":"VLOOKUP($C$3,Index!$A:$DR,84,FALSE)","v":"2023-09-03"},{"$f":"VLOOKUP($C$3,Index!$A:$DR,86,FALSE)","v":"2023-09-10"},{"$f":"VLOOKUP($C$3,Index!$A:$DR,88,FALSE)","v":"2023-09-17"},{"$f":"VLOOKUP($C$3,Index!$A:$DR,90,FALSE)","v":"2023-09-24"},{"$f":"VLOOKUP($C$3,Index!$A:$DR,92,FALSE)","v":"2023-10-01"},{"$f":"VLOOKUP($C$3,Index!$A:$DR,94,FALSE)","v":"2023-10-08"},{"$f":"VLOOKUP($C$3,Index!$A:$DR,96,FALSE)","v":"2023-10-15"},{"$f":"VLOOKUP($C$3,Index!$A:$DR,98,FALSE)","v":"2023-10-22"},{"$f":"VLOOKUP($C$3,Index!$A:$DR,100,FALSE)","v":"2023-10-29"},{"$f":"VLOOKUP($C$3,Index!$A:$DR,102,FALSE)","v":"2023-11-05"},{"$f":"VLOOKUP($C$3,Index!$A:$DR,104,FALSE)","v":"2023-11-12"},{"$f":"VLOOKUP($C$3,Index!$A:$DR,106,FALSE)","v":"2023-11-19"},{"$f":"VLOOKUP($C$3,Index!$A:$DR,108,FALSE)","v":"2023-11-26"},{"$f":"VLOOKUP($C$3,Index!$A:$DR,110,FALSE)","v":"2023-12-03"},{"$f":"VLOOKUP($C$3,Index!$A:$DR,112,FALSE)","v":"2023-12-10"},{"$f":"VLOOKUP($C$3,Index!$A:$DR,114,FALSE)","v":"2023-12-17"},{"$f":"VLOOKUP($C$3,Index!$A:$DR,116,FALSE)","v":"2023-12-24"},{"$f":"VLOOKUP($C$3,Index!$A:$DR,118,FALSE)","v":"2023-12-31"}]
["Number","Reference","Christian Name","Surname","Donation Eligible for Gift Aid?","Total Given","Gift Aided","Non-Gift Aided"]
["Loose Cash on Plate",null,null,null,null,{"$f":"SUM(I8:BI8)","v":0}]
["Number of Attendees"]
[null,null,null,null,null,{"$f":"SUM(G10:H10)","v":0},{"$f":"IF(E10=\"Yes\",SUM(I10:BI10),0)","v":0},{"$f":"IF(E10=\"No\",SUM(I10:BI10),0)","v":0}]
[null,null,null,null,null,{"$f":"SUM(G11:H11)","v":0},0,0]
[null,null,null,null,null,0,0,0]
[null,null,null,null,null,0,0,0]
[null,null,null,null,null,0,0,0]
[null,null,null,null,null,0,0,0]
[null,null,null,null,null,0,0,0]
[null,null,null,null,null,0,0,0]
[null,null,null,null,null,0,0,0]
[null,null,null,null,null,0,0,0]
[null,null,null,null,null,0,0,0]
[null,null,null,null,null,0,0,0]
[null,null,null,null,null,0,0,0]
[null,null,null,null,null,0,0,0]
[null,null,null,null,null,0,0,0]
[null,null,null,null,null,0,0,0]
[null,null,null,null,null,0,0,0]
[null,null,null,null,null,0,0,0]
[null,null,null,null,null,0,0,0]
[null,null,null,null,null,0,0,0]
[null,null,null,null,null,0,0,0]
[null,null,null,null,null,0,0,0]
[null,null,null,null,null,0,0,0]
[null,null,null,null,null,0,0,0]
[null,null,null,null,null,0,0,0]
[null,null,null,null,null,0,0,0]
[null,null,null,null,null,0,0,0]
[null,null,null,null,null,0,0,0]
[null,null,null,null,null,0,0,0]
[null,null,null,null,null,0,0,0]
[null,null,null,3,null,0,0,0]
[null,null,null,null,null,0,0,0]
[null,null,null,null,null,0,0,0]
[null,null,null,null,null,0,0,0]
[null,null,null,null,null,0,0,0]
[null,null,null,null,null,0,0,0]
[null,null,null,null,null,0,0,0]
[null,null,null,null,null,0,0,0]
[null,null,null,null,null,0,0,0]
[null,null,null,null,null,0,0,0]
[null,null,null,null,null,0,0,0]
[null,null,null,null,null,0,0,0]
[null,null,null,null,null,0,0,0]
[null,null,null,null,null,0,0,0]
[null,null,null,null,null,0,0,0]
[null,null,null,null,null,0,0,0]
[null,null,null,null,null,0,0,0]
[null,null,null,null,null,0,0,0]
[null,null,null,null,null,0,0,0]
[null,null,null,null,null,0,0,0]
[null,null,null,null,null,0,0,0]
[null,null,null,null,null,0,0,0]
[null,null,null,null,null,0,0,0]
[null,null,null,null,null,0,0,0]
[null,null,null,null,null,0,0,0]
[null,null,null,null,null,0,0,0]
[null,null,null,null,null,0,0,0]
[null,null,null,null,null,0,0,0]
[null,null,null,null,null,0,0,0]
[null,null,null,null,null,0,0,0]
[null,null,null,null,null,0,0,0]
[null,null,null,null,null,0,0,0]
[null,null,null,null,null,0,0,0]
[null,null,null,null,null,0,0,0]
[null,null,null,null,null,0,{"$f":"IF(E74=\"Yes\",SUM(I74:BI74),0)","v":0},{"$f":"IF(E74=\"No\",SUM(I74:BI74),0)","v":0}]
[null,null,null,null,null,{"$f":"SUM(G75:H75)","v":0},0,0]
[null,null,null,null,null,0,0,0]
[null,null,null,null,null,0,0,0]
[null,null,null,null,null,0,0,0]
[null,null,null,null,null,0,0,0]
[null,null,null,null,null,0,0,0]
[null,null,null,null,null,0,0,0]
[null,null,null,null,null,0,0,0]
[null,null,null,null,null,0,0,0]
[null,null,null,null,null,0,0,0]
[null,null,null,null,null,0,0,0]
[null,null,null,null,null,0,0,0]
[null,null,null,null,null,0,0,0]
[null,null,null,null,null,0,0,0]
[null,null,null,null,null,0,0,0]
[null,null,null,null,null,0,0,0]
[null,null,null,null,null,0,0,0]
[null,null,null,null,null,0,0,0]
[null,null,null,null,null,0,0,0]
[null,null,null,null,null,0,0,0]
[null,null,null,null,null,0,0,0]
[null,null,null,null,null,0,0,0]
[null,null,null,null,null,0,0,0]
[null,null,null,null,null,0,0,0]
[null,null,null,null,null,0,0,0]
[null,null,null,null,null,0,0,0]
[null,null,null,null,null,0,0,0]
[null,null,null,null,null,0,0,0]
[null,null,null,null,null,0,0,0]
[null,null,null,null,null,0,0,0]
[null,null,null,null,null,0,0,0]
[null,null,null,null,null,0,0,0]
[null,null,null,null,null,0,0,0]
[null,null,null,null,null,0,0,0]
[null,null,null,null,null,0,0,0]
[]
[null,null,null,null,null,{"$f":"SUM(F8:F109)","v":0},{"$f":"SUM(G8:G109)","v":0},{"$f":"SUM(H8:H109)","v":0}]
[null,null,null,null,"Enter the Following Figures on Receipts Tab"]
[null,null,null,null,"Sunday Giving - Gift Aided",null,null,null,{"$f":"SUMPRODUCT(($E$10:$E$110=\"YES\")*I10:I110)","v":0},{"$f":"SUMPRODUCT(($E$10:$E$110=\"YES\")*J10:J110)","v":0},{"$f":"SUMPRODUCT(($E$10:$E$110=\"YES\")*K10:K110)","v":0},0,0,0,0,0,0,0,0,0,0,0,0,0,0,0,0,0,0,0,0,0,0,0,0,0,0,0,0,0,0,0,0,0,0,0,0,0,0,0,0,0,0,0,0,0,0,0,0,0,0]
[null,null,null,null,"Sunday Giving",null,null,null,{"$f":"SUMPRODUCT(($E$10:$E$110=\"No\")*I10:I110)+I8","v":0},{"$f":"SUMPRODUCT(($E$10:$E$110=\"No\")*J10:J110)+J8","v":0},0,0,0,0,0,0,0,0,0,0,0,0,0,0,0,0,0,0,0,0,0,0,0,0,0,0,0,0,0,0,0,0,0,0,0,0,0,0,0,0,0,0,0,0,0,0,0,0,0,0,0]
[]
[null,null,null,null,"Total Giving",null,null,null,{"$f":"SUM(I113:I114)","v":0},0,0,0,0,0,0,0,0,0,0,0,0,0,0,0,0,0,0,0,0,0,0,0,0,0,0,0,0,0,0,0,{"$f":"SUM(AO113:AO114)","v":0},0,0,0,0,0,0,0,0,0,0,0,0,0,0,0,0,0,0,0,0]
[]
[null,null,null,null,"Potential GASDS",null,null,null,{"$f":"IF($O$2=1,I8, IF(I9>=10,I8,0))","v":0},{"$f":"IF($O$2=1,J8, IF(J9>=10,J8,0))","v":0},0,0,0,0,0,0,0,0,0,0,0,0,0,0,0,0,0,0,0,0,0,0,0,0,0,0,0,0,0,0,0,0,0,0,0,0,0,0,0,0,0,0,0,0,0,0,0,0,0,0,0]
[null,null,null,null,"Bank paying in reference"]
[null,null,null,null,"Claimed",null,null,null,"No","No","No","No","No","No","No","No","No","No","No","No","No","No","No","No","No","No","No","No","No","No","No","No","No","No","No","No","No","No","No","No","No","No","No","No","No","No","No","No","No","No","No","No","No","No","No","No","No","No","No","No","No"]

{"sheet":"Standing Orders","index":15,"n_rows":112,"n_cols":116,"rows_kept":112,"cut":false,"hidden":false,"merged":[]}
[null,null,null,null,null,null,null,null,null,null,null,null,null,null,null,null,null,null,null,null,null,null,null,null,null,null,null,null,null,null,null,null,null,null,null,null,null,null,null,null,null,null,null,null,null,null,null,null,null,null,null,null,null,null,null,null,null,null,null,null,null,null,null,null,null,null,"Yes"]
[null,null,null,null,null,null,null,null,null,null,null,null,null,null,null,null,null,null,null,null,null,null,null,null,null,null,null,null,null,null,null,null,null,null,null,null,null,null,null,null,null,null,null,null,null,null,null,null,null,null,null,null,null,null,null,null,null,null,null,null,null,null,null,null,null,null,"No"]
[{"$f":"'Name and Parish'!D15","v":2023},null,null,null,null,null,null,null,null,null,null,null,null,null,null,null,null,null,null,null,null,null,null,null,null,null,null,null,null,null,null,null,null,null,null,null,null,null,null,null,null,null,null,null,null,null,null,null,null,null,null,null,null,null,null,null,null,null,null,null,null,null,null,3,5,7,9,11,13,15,17,19,21,23,25,27,29,31,33,35,37,39,41,43,45,47,49,51,53,55,57,59,61,63,65,67,69,71,73,75,77,79,81,83,85,87,89,91,93,95,97,99,101,103,105,107]
[]
[null,null,null,null,null,"Week Beginning",{"$f":"VLOOKUP($A$3,Index!$A:$DN,14,FALSE)","v":"2023-01-01"},{"$f":"VLOOKUP($A$3,Index!$A:$DN,16,FALSE)","v":"2023-01-08"},{"$f":"VLOOKUP($A$3,Index!$A:$DN,18,FALSE)","v":"2023-01-15"},{"$f":"VLOOKUP($A$3,Index!$A:$DN,20,FALSE)","v":"2023-01-22"},{"$f":"VLOOKUP($A$3,Index!$A:$DN,22,FALSE)","v":"2023-01-29"},{"$f":"VLOOKUP($A$3,Index!$A:$DN,24,FALSE)","v":"2023-02-05"},{"$f":"VLOOKUP($A$3,Index!$A:$DN,26,FALSE)","v":"2023-02-12"},{"$f":"VLOOKUP($A$3,Index!$A:$DN,28,FALSE)","v":"2023-02-19"},{"$f":"VLOOKUP($A$3,Index!$A:$DN,30,FALSE)","v":"2023-02-26"},{"$f":"VLOOKUP($A$3,Index!$A:$DN,32,FALSE)","v":"2023-03-05"},{"$f":"VLOOKUP($A$3,Index!$A:$DN,34,FALSE)","v":"2023-03-12"},{"$f":"VLOOKUP($A$3,Index!$A:$DN,36,FALSE)","v":"2023-03-19"},{"$f":"VLOOKUP($A$3,Index!$A:$DN,38,FALSE)","v":"2023-03-26"},{"$f":"VLOOKUP($A$3,Index!$A:$DN,40,FALSE)","v":"2023-04-02"},{"$f":"VLOOKUP($A$3,Index!$A:$DN,42,FALSE)","v":"2023-04-09"},{"$f":"VLOOKUP($A$3,Index!$A:$DN,44,FALSE)","v":"2023-04-16"},{"$f":"VLOOKUP($A$3,Index!$A:$DN,46,FALSE)","v":"2023-04-23"},{"$f":"VLOOKUP($A$3,Index!$A:$DN,48,FALSE)","v":"2023-04-30"},{"$f":"VLOOKUP($A$3,Index!$A:$DN,50,FALSE)","v":"2023-05-07"},{"$f":"VLOOKUP($A$3,Index!$A:$DN,52,FALSE)","v":"2023-05-14"},{"$f":"VLOOKUP($A$3,Index!$A:$DN,54,FALSE)","v":"2023-05-21"},{"$f":"VLOOKUP($A$3,Index!$A:$DN,56,FALSE)","v":"2023-05-28"},{"$f":"VLOOKUP($A$3,Index!$A:$DN,58,FALSE)","v":"2023-06-04"},{"$f":"VLOOKUP($A$3,Index!$A:$DN,60,FALSE)","v":"2023-06-11"},{"$f":"VLOOKUP($A$3,Index!$A:$DN,62,FALSE)","v":"2023-06-18"},{"$f":"VLOOKUP($A$3,Index!$A:$DN,64,FALSE)","v":"2023-06-25"},{"$f":"VLOOKUP($A$3,Index!$A:$DN,66,FALSE)","v":"2023-07-02"},{"$f":"VLOOKUP($A$3,Index!$A:$DN,68,FALSE)","v":"2023-07-09"},{"$f":"VLOOKUP($A$3,Index!$A:$DN,70,FALSE)","v":"2023-07-16"},{"$f":"VLOOKUP($A$3,Index!$A:$DN,72,FALSE)","v":"2023-07-23"},{"$f":"VLOOKUP($A$3,Index!$A:$DN,74,FALSE)","v":"2023-07-30"},{"$f":"VLOOKUP($A$3,Index!$A:$DN,76,FALSE)","v":"2023-08-06"},{"$f":"VLOOKUP($A$3,Index!$A:$DN,78,FALSE)","v":"2023-08-13"},{"$f":"VLOOKUP($A$3,Index!$A:$DN,80,FALSE)","v":"2023-08-20"},{"$f":"VLOOKUP($A$3,Index!$A:$DN,82,FALSE)","v":"2023-08-27"},{"$f":"VLOOKUP($A$3,Index!$A:$DN,84,FALSE)","v":"2023-09-03"},{"$f":"VLOOKUP($A$3,Index!$A:$DN,86,FALSE)","v":"2023-09-10"},{"$f":"VLOOKUP($A$3,Index!$A:$DN,88,FALSE)","v":"2023-09-17"},{"$f":"VLOOKUP($A$3,Index!$A:$DN,90,FALSE)","v":"2023-09-24"},{"$f":"VLOOKUP($A$3,Index!$A:$DN,92,FALSE)","v":"2023-10-01"},{"$f":"VLOOKUP($A$3,Index!$A:$DN,94,FALSE)","v":"2023-10-08"},{"$f":"VLOOKUP($A$3,Index!$A:$DN,96,FALSE)","v":"2023-10-15"},{"$f":"VLOOKUP($A$3,Index!$A:$DN,98,FALSE)","v":"2023-10-22"},{"$f":"VLOOKUP($A$3,Index!$A:$DN,100,FALSE)","v":"2023-10-29"},{"$f":"VLOOKUP($A$3,Index!$A:$DN,102,FALSE)","v":"2023-11-05"},{"$f":"VLOOKUP($A$3,Index!$A:$DN,104,FALSE)","v":"2023-11-12"},{"$f":"VLOOKUP($A$3,Index!$A:$DN,106,FALSE)","v":"2023-11-19"},{"$f":"VLOOKUP($A$3,Index!$A:$DN,108,FALSE)","v":"2023-11-26"},{"$f":"VLOOKUP($A$3,Index!$A:$DN,110,FALSE)","v":"2023-12-03"},{"$f":"VLOOKUP($A$3,Index!$A:$DN,112,FALSE)","v":"2023-12-10"},{"$f":"VLOOKUP($A$3,Index!$A:$DN,114,FALSE)","v":"2023-12-17"},{"$f":"VLOOKUP($A$3,Index!$A:$DN,116,FALSE)","v":"2023-12-24"},{"$f":"VLOOKUP($A$3,Index!$A:$DN,118,FALSE)","v":"2023-12-31"}]
["Christian Name","Surname","Eligible for Gift Aid?","Total Given","Gift Aided","Non-Gift Aided"]
[null,null,null,{"$f":"SUM(E7:F7)","v":0},{"$f":"IF(C7=\"Yes\",SUM(G7:BG7),0)","v":0},{"$f":"IF(C7=\"No\",SUM(G7:BG7),0)","v":0}]
[null,null,null,{"$f":"SUM(E8:F8)","v":0},0,0]
[null,null,null,0,0,0]
[null,null,null,0,0,0]
[null,null,null,0,0,0]
[null,null,null,0,0,0]
[null,null,null,0,0,0]
[null,null,null,0,0,0]
[null,null,null,0,0,0]
[null,null,null,0,0,0]
[null,null,null,0,0,0]
[null,null,null,0,0,0]
[null,null,null,0,0,0]
[null,null,null,0,0,0]
[null,null,null,0,0,0]
[null,null,null,0,0,0]
[null,null,null,0,0,0]
[null,null,null,0,0,0]
[null,null,null,0,0,0]
[null,null,null,0,0,0]
[null,null,null,0,0,0]
[null,null,null,0,0,0]
[null,null,null,0,0,0]
[null,null,null,0,0,0]
[null,null,null,0,0,0]
[null,null,null,0,0,0]
[null,null,null,0,0,0]
[null,null,null,0,0,0]
[null,null,null,0,0,0]
[null,null,null,0,0,0]
[null,null,null,0,0,0]
[null,null,null,0,0,0]
[null,null,null,0,0,0]
[null,null,null,0,0,0]
[null,null,null,0,0,0]
[null,null,null,0,0,0]
[null,null,null,0,0,0]
[null,null,null,0,0,0]
[null,null,null,0,0,0]
[null,null,null,0,0,0]
[null,null,null,0,0,0]
[null,null,null,0,0,0]
[null,null,null,0,0,0]
[null,null,null,0,0,0]
[null,null,null,0,0,0]
[null,null,null,0,0,0]
[null,null,null,0,0,0]
[null,null,null,0,0,0]
[null,null,null,0,0,0]
[null,null,null,0,0,0]
[null,null,null,0,0,0]
[null,null,null,0,0,0]
[null,null,null,0,0,0]
[null,null,null,0,0,0]
[null,null,null,0,0,0]
[null,null,null,0,0,0]
[null,null,null,0,0,0]
[null,null,null,0,0,0]
[null,null,null,0,0,0]
[null,null,null,0,0,0]
[null,null,null,0,0,0]
[null,null,null,0,0,0]
[null,null,null,0,0,0]
[null,null,null,0,0,0]
[null,null,null,0,{"$f":"IF(C71=\"Yes\",SUM(G71:BG71),0)","v":0},{"$f":"IF(C71=\"No\",SUM(G71:BG71),0)","v":0}]
[null,null,null,{"$f":"SUM(E72:F72)","v":0},0,0]
[null,null,null,0,0,0]
[null,null,null,0,0,0]
[null,null,null,0,0,0]
[null,null,null,0,0,0]
[null,null,null,0,0,0]
[null,null,null,0,0,0]
[null,null,null,0,0,0]
[null,null,null,0,0,0]
[null,null,null,0,0,0]
[null,null,null,0,0,0]
[null,null,null,0,0,0]
[null,null,null,0,0,0]
[null,null,null,0,0,0]
[null,null,null,0,0,0]
[null,null,null,0,0,0]
[null,null,null,0,0,0]
[null,null,null,0,0,0]
[null,null,null,0,0,0]
[null,null,null,0,0,0]
[null,null,null,0,0,0]
[null,null,null,0,0,0]
[null,null,null,0,0,0]
[null,null,null,0,0,0]
[null,null,null,0,0,0]
[null,null,null,0,0,0]
[null,null,null,0,0,0]
[null,null,null,0,0,0]
[null,null,null,0,0,0]
[null,null,null,0,0,0]
[null,null,null,0,0,0]
[null,null,null,0,0,0]
[null,null,null,0,0,0]
[null,null,null,0,0,0]
[null,null,null,0,0,0]
[]
[null,null,null,{"$f":"SUM(D7:D106)","v":0},{"$f":"SUM(E7:E106)","v":0},{"$f":"SUM(F7:F106)","v":0}]
[null,null,"Enter the Following Figures on Receipts Tab"]
[null,null,"Standing Order",null,null,null,{"$f":"SUMPRODUCT(($C$7:$C$107=\"no\")*G7:G107)","v":0},{"$f":"SUMPRODUCT(($C$7:$C$107=\"no\")*H7:H107)","v":0},0,0,0,0,0,0,0,0,0,0,0,0,0,0,0,0,0,0,0,0,0,0,0,0,0,0,0,0,0,0,0,0,0,0,0,0,0,0,0,0,0,0,0,0,0,0,0,0,0,0,0]
[null,null,"Standing Order - Gift Aided",null,null,null,{"$f":"SUMPRODUCT(($C$7:$C$107=\"yes\")*G7:G107)","v":0},{"$f":"SUMPRODUCT(($C$7:$C$107=\"yes\")*H7:H107)","v":0},0,0,0,0,0,0,0,0,0,0,0,0,0,0,0,0,0,0,0,0,0,0,0,0,0,0,0,0,0,0,0,0,0,0,0,0,0,0,0,0,0,0,0,0,0,0,0,0,0,0,0]
[null,null,"Claimed",null,null,null,"No","No","No","No","No","No","No","No","No","No","No","No","No","No","No","No","No","No","No","No","No","No","No","No","No","No","No","No","No","No","No","No","No","No","No","No","No","No","No","No","No","No","No","No","No","No","No","No","No","No","No","No","No"]

{"sheet":"Weekday Envelopes","index":16,"n_rows":120,"n_cols":118,"rows_kept":120,"cut":false,"hidden":false,"merged":[[7,0,7,4],[8,0,8,4]]}
[null,null,null,null,null,null,null,null,null,null,null,null,null,null,null,null,null,null,null,null,null,null,null,null,null,null,null,null,null,null,null,null,null,null,null,null,null,null,null,null,null,null,null,null,null,null,null,null,null,null,null,null,null,null,null,null,null,null,null,null,null,null,null,null,null,null,null,null,"Yes"]
[null,null,null,null,null,null,null,null,null,"Number of Churches In Parish",null,null,null,null,1,null,null,null,null,null,null,null,null,null,null,null,null,null,null,null,null,null,null,null,null,null,null,null,null,null,null,null,null,null,null,null,null,null,null,null,null,null,null,null,null,null,null,null,null,null,null,null,null,null,null,null,null,null,"No"]
["For Year",null,{"$f":"'Name and Parish'!D15","v":2023},null,null,null,null,null,null,{"$f":"IF(O2=1,\"Consider Claiming GASDS under the Top-up Element of the scheme\",\"Consider claiming GASDS under the Community Buildings Element of the scheme\")","v":"Consider Claiming GASDS under the Top-up Element of the scheme"},null,null,null,null,null,null,null,null,null,null,null,null,null,null,null,null,null,null,null,null,null,null,null,null,null,null,null,null,null,null,null,null,null,null,null,null,null,null,null,null,null,null,null,null,null,null,null,null,null,null,null,null,null,null,null,3,5,7,9,11,13,15,17,19,21,23,25,27,29,31,33,35,37,39,41,43,45,47,49,51,53,55,57,59,61,63,65,67,69,71,73,75,77,79,81,83,85,87,89,91,93,95,97,99,101,103,105,107]
[]
[null,null,null,null,null,null,null,"Week Number",1,2,3,4,5,6,7,8,9,10,11,12,13,14,15,16,17,18,19,20,21,22,23,24,25,26,27,28,29,30,31,32,33,34,35,36,37,38,39,40,41,42,43,44,45,46,47,48,49,50,51,52,53]
[null,null,null,null,null,null,null,"Week Beginning",{"$f":"VLOOKUP($C$3,Index!$A:$DR,14,FALSE)","v":"2023-01-01"},{"$f":"VLOOKUP($C$3,Index!$A:$DR,16,FALSE)","v":"2023-01-08"},{"$f":"VLOOKUP($C$3,Index!$A:$DR,18,FALSE)","v":"2023-01-15"},{"$f":"VLOOKUP($C$3,Index!$A:$DR,20,FALSE)","v":"2023-01-22"},{"$f":"VLOOKUP($C$3,Index!$A:$DR,22,FALSE)","v":"2023-01-29"},{"$f":"VLOOKUP($C$3,Index!$A:$DR,24,FALSE)","v":"2023-02-05"},{"$f":"VLOOKUP($C$3,Index!$A:$DR,26,FALSE)","v":"2023-02-12"},{"$f":"VLOOKUP($C$3,Index!$A:$DR,28,FALSE)","v":"2023-02-19"},{"$f":"VLOOKUP($C$3,Index!$A:$DR,30,FALSE)","v":"2023-02-26"},{"$f":"VLOOKUP($C$3,Index!$A:$DR,32,FALSE)","v":"2023-03-05"},{"$f":"VLOOKUP($C$3,Index!$A:$DR,34,FALSE)","v":"2023-03-12"},{"$f":"VLOOKUP($C$3,Index!$A:$DR,36,FALSE)","v":"2023-03-19"},{"$f":"VLOOKUP($C$3,Index!$A:$DR,38,FALSE)","v":"2023-03-26"},{"$f":"VLOOKUP($C$3,Index!$A:$DR,40,FALSE)","v":"2023-04-02"},{"$f":"VLOOKUP($C$3,Index!$A:$DR,42,FALSE)","v":"2023-04-09"},{"$f":"VLOOKUP($C$3,Index!$A:$DR,44,FALSE)","v":"2023-04-16"},{"$f":"VLOOKUP($C$3,Index!$A:$DR,46,FALSE)","v":"2023-04-23"},{"$f":"VLOOKUP($C$3,Index!$A:$DR,48,FALSE)","v":"2023-04-30"},{"$f":"VLOOKUP($C$3,Index!$A:$DR,50,FALSE)","v":"2023-05-07"},{"$f":"VLOOKUP($C$3,Index!$A:$DR,52,FALSE)","v":"2023-05-14"},{"$f":"VLOOKUP($C$3,Index!$A:$DR,54,FALSE)","v":"2023-05-21"},{"$f":"VLOOKUP($C$3,Index!$A:$DR,56,FALSE)","v":"2023-05-28"},{"$f":"VLOOKUP($C$3,Index!$A:$DR,58,FALSE)","v":"2023-06-04"},{"$f":"VLOOKUP($C$3,Index!$A:$DR,60,FALSE)","v":"2023-06-11"},{"$f":"VLOOKUP($C$3,Index!$A:$DR,62,FALSE)","v":"2023-06-18"},{"$f":"VLOOKUP($C$3,Index!$A:$DR,64,FALSE)","v":"2023-06-25"},{"$f":"VLOOKUP($C$3,Index!$A:$DR,66,FALSE)","v":"2023-07-02"},{"$f":"VLOOKUP($C$3,Index!$A:$DR,68,FALSE)","v":"2023-07-09"},{"$f":"VLOOKUP($C$3,Index!$A:$DR,70,FALSE)","v":"2023-07-16"},{"$f":"VLOOKUP($C$3,Index!$A:$DR,72,FALSE)","v":"2023-07-23"},{"$f":"VLOOKUP($C$3,Index!$A:$DR,74,FALSE)","v":"2023-07-30"},{"$f":"VLOOKUP($C$3,Index!$A:$DR,76,FALSE)","v":"2023-08-06"},{"$f":"VLOOKUP($C$3,Index!$A:$DR,78,FALSE)","v":"2023-08-13"},{"$f":"VLOOKUP($C$3,Index!$A:$DR,80,FALSE)","v":"2023-08-20"},{"$f":"VLOOKUP($C$3,Index!$A:$DR,82,FALSE)","v":"2023-08-27"},{"$f":"VLOOKUP($C$3,Index!$A:$DR,84,FALSE)","v":"2023-09-03"},{"$f":"VLOOKUP($C$3,Index!$A:$DR,86,FALSE)","v":"2023-09-10"},{"$f":"VLOOKUP($C$3,Index!$A:$DR,88,FALSE)","v":"2023-09-17"},{"$f":"VLOOKUP($C$3,Index!$A:$DR,90,FALSE)","v":"2023-09-24"},{"$f":"VLOOKUP($C$3,Index!$A:$DR,92,FALSE)","v":"2023-10-01"},{"$f":"VLOOKUP($C$3,Index!$A:$DR,94,FALSE)","v":"2023-10-08"},{"$f":"VLOOKUP($C$3,Index!$A:$DR,96,FALSE)","v":"2023-10-15"},{"$f":"VLOOKUP($C$3,Index!$A:$DR,98,FALSE)","v":"2023-10-22"},{"$f":"VLOOKUP($C$3,Index!$A:$DR,100,FALSE)","v":"2023-10-29"},{"$f":"VLOOKUP($C$3,Index!$A:$DR,102,FALSE)","v":"2023-11-05"},{"$f":"VLOOKUP($C$3,Index!$A:$DR,104,FALSE)","v":"2023-11-12"},{"$f":"VLOOKUP($C$3,Index!$A:$DR,106,FALSE)","v":"2023-11-19"},{"$f":"VLOOKUP($C$3,Index!$A:$DR,108,FALSE)","v":"2023-11-26"},{"$f":"VLOOKUP($C$3,Index!$A:$DR,110,FALSE)","v":"2023-12-03"},{"$f":"VLOOKUP($C$3,Index!$A:$DR,112,FALSE)","v":"2023-12-10"},{"$f":"VLOOKUP($C$3,Index!$A:$DR,114,FALSE)","v":"2023-12-17"},{"$f":"VLOOKUP($C$3,Index!$A:$DR,116,FALSE)","v":"2023-12-24"},{"$f":"VLOOKUP($C$3,Index!$A:$DR,118,FALSE)","v":"2023-12-31"}]
["Number","Reference","Christian Name","Surname","Donation Eligible for Gift Aid?","Total Given","Gift Aided","Non-Gift Aided"]
["Loose Cash on Plate",null,null,null,null,{"$f":"SUM(I8:BI8)","v":0}]
["Number of Attendees"]
[null,null,null,null,null,{"$f":"SUM(G10:H10)","v":0},{"$f":"IF(E10=\"Yes\",SUM(I10:BI10),0)","v":0},{"$f":"IF(E10=\"No\",SUM(I10:BI10),0)","v":0}]
[null,null,null,null,null,0,0,0]
[null,null,null,null,null,0,0,0]
[null,null,null,null,null,0,0,0]
[null,null,null,null,null,0,0,0]
[null,null,null,null,null,0,0,0]
[null,null,null,null,null,0,0,0]
[null,null,null,null,null,0,0,0]
[null,null,null,null,null,0,0,0]
[null,null,null,null,null,0,0,0]
[null,null,null,null,null,0,0,0]
[null,null,null,null,null,0,0,0]
[null,null,null,null,null,0,0,0]
[null,null,null,null,null,0,0,0]
[null,null,null,null,null,0,0,0]
[null,null,null,null,null,0,0,0]
[null,null,null,null,null,0,0,0]
[null,null,null,null,null,0,0,0]
[null,null,null,null,null,0,0,0]
[null,null,null,null,null,0,0,0]
[null,null,null,null,null,0,0,0]
[null,null,null,null,null,0,0,0]
[null,null,null,null,null,0,0,0]
[null,null,null,null,null,0,0,0]
[null,null,null,null,null,0,0,0]
[null,null,null,null,null,0,0,0]
[null,null,null,null,null,0,0,0]
[null,null,null,null,null,0,0,0]
[null,null,null,null,null,0,0,0]
[null,null,null,null,null,0,0,0]
[null,null,null,null,null,0,0,0]
[null,null,null,null,null,0,0,0]
[null,null,null,null,null,{"$f":"SUM(G42:H42)","v":0},{"$f":"IF(E42=\"Yes\",SUM(I42:BI42),0)","v":0},{"$f":"IF(E42=\"No\",SUM(I42:BI42),0)","v":0}]
[null,null,null,null,null,0,0,0]
[null,null,null,null,null,0,0,0]
[null,null,null,null,null,0,0,0]
[null,null,null,null,null,0,0,0]
[null,null,null,null,null,0,0,0]
[null,null,null,null,null,0,0,0]
[null,null,null,null,null,0,0,0]
[null,null,null,null,null,0,0,0]
[null,null,null,null,null,0,0,0]
[null,null,null,null,null,0,0,0]
[null,null,null,null,null,0,0,0]
[null,null,null,null,null,0,0,0]
[null,null,null,null,null,0,0,0]
[null,null,null,null,null,0,0,0]
[null,null,null,null,null,0,0,0]
[null,null,null,null,null,0,0,0]
[null,null,null,null,null,0,0,0]
[null,null,null,null,null,0,0,0]
[null,null,null,null,null,0,0,0]
[null,null,null,null,null,0,0,0]
[null,null,null,null,null,0,0,0]
[null,null,null,null,null,0,0,0]
[null,null,null,null,null,0,0,0]
[null,null,null,null,null,0,0,0]
[null,null,null,null,null,0,0,0]
[null,null,null,null,null,0,0,0]
[null,null,null,null,null,0,0,0]
[null,null,null,null,null,0,0,0]
[null,null,null,null,null,0,0,0]
[null,null,null,null,null,0,0,0]
[null,null,null,null,null,0,0,0]
[null,null,null,null,null,{"$f":"SUM(G74:H74)","v":0},{"$f":"IF(E74=\"Yes\",SUM(I74:BI74),0)","v":0},{"$f":"IF(E74=\"No\",SUM(I74:BI74),0)","v":0}]
[null,null,null,null,null,0,0,0]
[null,null,null,null,null,0,0,0]
[null,null,null,null,null,0,0,0]
[null,null,null,null,null,0,0,0]
[null,null,null,null,null,0,0,0]
[null,null,null,null,null,0,0,0]
[null,null,null,null,null,0,0,0]
[null,null,null,null,null,0,0,0]
[null,null,null,null,null,0,0,0]
[null,null,null,null,null,0,0,0]
[null,null,null,null,null,0,0,0]
[null,null,null,null,null,0,0,0]
[null,null,null,null,null,0,0,0]
[null,null,null,null,null,0,0,0]
[null,null,null,null,null,0,0,0]
[null,null,null,null,null,0,0,0]
[null,null,null,null,null,0,0,0]
[null,null,null,null,null,0,0,0]
[null,null,null,null,null,0,0,0]
[null,null,null,null,null,0,0,0]
[null,null,null,null,null,0,0,0]
[null,null,null,null,null,0,0,0]
[null,null,null,null,null,0,0,0]
[null,null,null,null,null,0,0,0]
[null,null,null,null,null,0,0,0]
[null,null,null,null,null,0,0,0]
[null,null,null,null,null,0,0,0]
[null,null,null,null,null,0,0,0]
[null,null,null,null,null,0,0,0]
[null,null,null,null,null,0,0,0]
[null,null,null,null,null,0,0,0]
[null,null,null,null,null,{"$f":"SUM(G106:H106)","v":0},0,{"$f":"IF(E106=\"No\",SUM(I106:BI106),0)","v":0}]
[null,null,null,null,null,{"$f":"SUM(G107:H107)","v":0},0,{"$f":"IF(E107=\"No\",SUM(I107:BI107),0)","v":0}]
[null,null,null,null,null,{"$f":"SUM(G108:H108)","v":0},0,{"$f":"IF(E108=\"No\",SUM(I108:BI108),0)","v":0}]
[null,null,null,null,null,{"$f":"SUM(G109:H109)","v":0},0,{"$f":"IF(E109=\"No\",SUM(I109:BI109),0)","v":0}]
[]
[null,null,null,null,null,{"$f":"SUM(F8:F109)","v":0},{"$f":"SUM(G8:G109)","v":0},{"$f":"SUM(H8:H109)","v":0}]
[null,null,null,null,"Enter the Following Figures on Receipts Tab"]
[null,null,null,null,"Weekday Giving - Gift Aided",null,null,null,{"$f":"SUMPRODUCT(($E$10:$E$110=\"YES\")*I10:I110)","v":0},{"$f":"SUMPRODUCT(($E$10:$E$110=\"YES\")*J10:J110)","v":0},0,0,0,0,0,0,0,0,0,0,0,0,0,0,0,0,0,0,0,0,0,0,0,0,0,0,0,0,0,0,{"$f":"SUMPRODUCT(($E$10:$E$110=\"YES\")*AO10:AO110)","v":0},0,0,0,0,0,0,0,0,0,0,0,0,0,0,0,0,0,0,0,0]
[null,null,null,null,"Weekday Giving",null,null,null,{"$f":"SUMPRODUCT(($E$10:$E$110=\"No\")*I10:I110)+I8","v":0},{"$f":"SUMPRODUCT(($E$10:$E$110=\"No\")*J10:J110)+J8","v":0},0,0,0,0,0,0,0,0,0,0,0,0,0,0,0,0,0,0,0,0,0,0,0,0,0,0,0,0,0,0,0,0,0,0,0,0,0,0,0,0,0,0,0,0,0,0,0,0,0,0,0]
[]
[null,null,null,null,"Total Giving",null,null,null,{"$f":"SUM(I113:I114)","v":0},0,0,0,0,0,0,0,0,0,0,0,0,0,0,0,0,0,0,0,0,0,0,0,0,0,0,0,0,0,0,0,{"$f":"SUM(AO113:AO114)","v":0},0,0,0,0,0,0,0,0,0,0,0,0,0,0,0,0,0,0,0,0]
[]
[null,null,null,null,"Potential GASDS",null,null,null,{"$f":"IF($O$2=1,I8, IF(I9>=10,I8,0))","v":0},{"$f":"IF($O$2=1,J8, IF(J9>=10,J8,0))","v":0},0,0,0,0,0,0,0,0,0,0,0,0,0,0,0,0,0,0,0,0,0,0,0,0,0,0,0,0,0,0,0,0,0,0,0,0,0,0,0,0,0,0,0,0,0,0,0,0,0,0,0]
[null,null,null,null,"Bank paying in reference"]
[null,null,null,null,"Claimed",null,null,null,"No","No","No","No","No","No","No","No","No","No","No","No","No","No","No","No","No","No","No","No","No","No","No","No","No","No","No","No","No","No","No","No","No","No","No","No","No","No","No","No","No","No","No","No","No","No","No","No","No","No","No","No","No"]

{"sheet":"Receipts - Summary","index":17,"n_rows":568,"n_cols":27,"rows_kept":568,"cut":false,"hidden":false,"merged":[[1,0,1,5],[3,0,3,5],[5,0,5,5]]}
[null,null,null,null,null,null,null,null,null,null,null,null,null,null,null,null,null,null,null,null,null,null,null,null,null,null,1]
[{"$f":"VLOOKUP('Name and Parish'!D13,Index!B:C,1,FALSE)","v":{"$error":"#N/A"}},null,null,null,null,null,null,null,null,null,null,null,null,null,null,null,null,null,null,null,null,null,null,null,null,null,1]
[null,null,null,null,null,null,null,null,null,null,null,null,null,null,null,null,null,null,null,null,null,null,null,null,null,null,1]
["General Account",null,null,null,null,null,null,null,null,null,null,null,null,null,null,null,null,null,null,null,null,null,null,null,null,null,1]
[null,null,null,null,null,null,null,null,null,null,null,null,null,null,null,null,null,null,null,null,null,null,null,null,null,null,1]
[{"$f":"VLOOKUP('Name and Parish'!D15,Index!A:H,2,FALSE)","v":"Financial Statement for the Year Ended 31 December 2023"},null,null,null,null,null,null,null,null,null,null,null,null,null,null,null,null,null,null,null,null,null,null,null,null,null,1]
[null,null,null,null,null,null,null,null,null,null,null,null,null,null,null,null,null,null,null,null,null,null,null,null,null,null,1]
["RECEIPTS",null,{"$f":"'Name and Parish'!D15","v":2023},null,null,{"$f":"SUM(C8-1)","v":2022},null,null,null,null,null,null,null,null,null,null,null,null,null,null,null,null,null,null,null,null,1]
[null,"£","£",null,"£","£",null,null,null,null,null,null,null,null,null,null,null,null,null,null,null,null,null,null,null,null,1]
["COLLECTIONS AT SERVICES",null,null,null,null,null,null,null,null,null,null,null,null,null,null,null,null,null,null,null,null,null,null,null,null,null,{"$f":"SUM(AA11:AA68)","v":0}]
["Sunday Collections",{"$f":"SUMPRODUCT((WorkingR!$A$5:$A$93='Receipts - Summary'!A11)*(WorkingR!$D$5:$E$93))","v":0},null,null,{"$f":"'Prior Year Comparative'!B6","v":0},null,null,null,null,null,null,null,null,null,null,null,null,null,null,null,null,null,null,null,null,null,{"$f":"Descriptions!AA34","v":0}]
["Sunday Collections - Gift Aided",{"$f":"SUMPRODUCT((WorkingR!$A$5:$A$93='Receipts - Summary'!A12)*(WorkingR!$D$5:$E$93))","v":0},null,null,{"$f":"'Prior Year Comparative'!B7","v":0},null,null,null,null,null,null,null,null,null,null,null,null,null,null,null,null,null,null,null,null,null,{"$f":"Descriptions!AA35","v":0}]
["Weekday Collections",{"$f":"SUMPRODUCT((WorkingR!$A$5:$A$93='Receipts - Summary'!A13)*(WorkingR!$D$5:$E$93))","v":0},null,null,{"$f":"'Prior Year Comparative'!B8","v":0},null,null,null,null,null,null,null,null,null,null,null,null,null,null,null,null,null,null,null,null,null,{"$f":"Descriptions!AA41","v":0}]
["Weekday Collections - Gift Aided",{"$f":"SUMPRODUCT((WorkingR!$A$5:$A$93='Receipts - Summary'!A14)*(WorkingR!$D$5:$E$93))","v":0},null,null,{"$f":"'Prior Year Comparative'!B9","v":0},null,null,null,null,null,null,null,null,null,null,null,null,null,null,null,null,null,null,null,null,null,{"$f":"Descriptions!AA42","v":0}]
["Wedding and Funeral Collections",{"$f":"SUMPRODUCT((WorkingR!$A$5:$A$93='Receipts - Summary'!A15)*(WorkingR!$D$5:$E$93))","v":0},null,null,{"$f":"'Prior Year Comparative'!B10","v":0},null,null,null,null,null,null,null,null,null,null,null,null,null,null,null,null,null,null,null,null,null,{"$f":"Descriptions!AA39","v":0}]
["Wedding and Funeral Collections - Gift Aided",{"$f":"SUMPRODUCT((WorkingR!$A$5:$A$93='Receipts - Summary'!A16)*(WorkingR!$D$5:$E$93))","v":0},null,null,{"$f":"'Prior Year Comparative'!B11","v":0},null,null,null,null,null,null,null,null,null,null,null,null,null,null,null,null,null,null,null,null,null,{"$f":"Descriptions!AA40","v":0}]
["Junior Church Collections",{"$f":"SUMPRODUCT((WorkingR!$A$5:$A$93='Receipts - Summary'!A17)*(WorkingR!$D$5:$E$93))","v":0},null,null,{"$f":"'Prior Year Comparative'!B12","v":0},null,null,null,null,null,null,null,null,null,null,null,null,null,null,null,null,null,null,null,null,null,{"$f":"Descriptions!AA22","v":0}]
["Junior Church Collections - Gift Aided",{"$f":"SUMPRODUCT((WorkingR!$A$5:$A$93='Receipts - Summary'!A18)*(WorkingR!$D$5:$E$93))","v":0},null,null,{"$f":"'Prior Year Comparative'!B13","v":0},null,null,null,null,null,null,null,null,null,null,null,null,null,null,null,null,null,null,null,null,null,{"$f":"Descriptions!AA23","v":0}]
[{"$f":"IF(Descriptions!D43=\"Collections at services\",Descriptions!B43,0)","v":0},{"$f":"SUMPRODUCT((WorkingR!$A$5:$A$91='Receipts - Summary'!A19)*(WorkingR!$D$5:$E$91))","v":0},null,null,{"$f":"'Prior Year Comparative'!B14","v":0},null,null,null,null,null,null,null,null,null,null,null,null,null,null,null,null,null,null,null,null,null,{"$f":"IF(A19=0,0,1)","v":0}]
[{"$f":"IF(Descriptions!D44=\"Collections at services\",Descriptions!B44,0)","v":0},{"$f":"SUMPRODUCT((WorkingR!$A$5:$A$91='Receipts - Summary'!A20)*(WorkingR!$D$5:$E$91))","v":0},null,null,{"$f":"'Prior Year Comparative'!B15","v":0},null,null,null,null,null,null,null,null,null,null,null,null,null,null,null,null,null,null,null,null,null,{"$f":"IF(A20=0,0,1)","v":0}]
[{"$f":"IF(Descriptions!D45=\"Collections at services\",Descriptions!B45,0)","v":0},{"$f":"SUMPRODUCT((WorkingR!$A$5:$A$91='Receipts - Summary'!A21)*(WorkingR!$D$5:$E$91))","v":0},null,null,{"$f":"'Prior Year Comparative'!B16","v":0},null,null,null,null,null,null,null,null,null,null,null,null,null,null,null,null,null,null,null,null,null,{"$f":"IF(A21=0,0,1)","v":0}]
[{"$f":"IF(Descriptions!D46=\"Collections at services\",Descriptions!B46,0)","v":0},{"$f":"SUMPRODUCT((WorkingR!$A$5:$A$91='Receipts - Summary'!A22)*(WorkingR!$D$5:$E$91))","v":0},null,null,{"$f":"'Prior Year Comparative'!B17","v":0},null,null,null,null,null,null,null,null,null,null,null,null,null,null,null,null,null,null,null,null,null,0]
[{"$f":"IF(Descriptions!D47=\"Collections at services\",Descriptions!B47,0)","v":0},{"$f":"SUMPRODUCT((WorkingR!$A$5:$A$91='Receipts - Summary'!A23)*(WorkingR!$D$5:$E$91))","v":0},null,null,{"$f":"'Prior Year Comparative'!B18","v":0},null,null,null,null,null,null,null,null,null,null,null,null,null,null,null,null,null,null,null,null,null,0]
[{"$f":"IF(Descriptions!D48=\"Collections at services\",Descriptions!B48,0)","v":0},{"$f":"SUMPRODUCT((WorkingR!$A$5:$A$91='Receipts - Summary'!A24)*(WorkingR!$D$5:$E$91))","v":0},null,null,{"$f":"'Prior Year Comparative'!B19","v":0},null,null,null,null,null,null,null,null,null,null,null,null,null,null,null,null,null,null,null,null,null,0]
[{"$f":"IF(Descriptions!D49=\"Collections at services\",Descriptions!B49,0)","v":0},{"$f":"SUMPRODUCT((WorkingR!$A$5:$A$91='Receipts - Summary'!A25)*(WorkingR!$D$5:$E$91))","v":0},null,null,{"$f":"'Prior Year Comparative'!B20","v":0},null,null,null,null,null,null,null,null,null,null,null,null,null,null,null,null,null,null,null,null,null,0]
[{"$f":"IF(Descriptions!D50=\"Collections at services\",Descriptions!B50,0)","v":0},{"$f":"SUMPRODUCT((WorkingR!$A$5:$A$91='Receipts - Summary'!A26)*(WorkingR!$D$5:$E$91))","v":0},null,null,{"$f":"'Prior Year Comparative'!B21","v":0},null,null,null,null,null,null,null,null,null,null,null,null,null,null,null,null,null,null,null,null,null,0]
[{"$f":"IF(Descriptions!D51=\"Collections at services\",Descriptions!B51,0)","v":0},{"$f":"SUMPRODUCT((WorkingR!$A$5:$A$91='Receipts - Summary'!A27)*(WorkingR!$D$5:$E$91))","v":0},null,null,{"$f":"'Prior Year Comparative'!B22","v":0},null,null,null,null,null,null,null,null,null,null,null,null,null,null,null,null,null,null,null,null,null,0]
[{"$f":"IF(Descriptions!D52=\"Collections at services\",Descriptions!B52,0)","v":0},{"$f":"SUMPRODUCT((WorkingR!$A$5:$A$91='Receipts - Summary'!A28)*(WorkingR!$D$5:$E$91))","v":0},null,null,{"$f":"'Prior Year Comparative'!B23","v":0},null,null,null,null,null,null,null,null,null,null,null,null,null,null,null,null,null,null,null,null,null,0]
[{"$f":"IF(Descriptions!D53=\"Collections at services\",Descriptions!B53,0)","v":0},{"$f":"SUMPRODUCT((WorkingR!$A$5:$A$91='Receipts - Summary'!A29)*(WorkingR!$D$5:$E$91))","v":0},null,null,{"$f":"'Prior Year Comparative'!B24","v":0},null,null,null,null,null,null,null,null,null,null,null,null,null,null,null,null,null,null,null,null,null,0]
[{"$f":"IF(Descriptions!D54=\"Collections at services\",Descriptions!B54,0)","v":0},{"$f":"SUMPRODUCT((WorkingR!$A$5:$A$91='Receipts - Summary'!A30)*(WorkingR!$D$5:$E$91))","v":0},null,null,{"$f":"'Prior Year Comparative'!B25","v":0},null,null,null,null,null,null,null,null,null,null,null,null,null,null,null,null,null,null,null,null,null,0]
[{"$f":"IF(Descriptions!D55=\"Collections at services\",Descriptions!B55,0)","v":0},{"$f":"SUMPRODUCT((WorkingR!$A$5:$A$91='Receipts - Summary'!A31)*(WorkingR!$D$5:$E$91))","v":0},null,null,{"$f":"'Prior Year Comparative'!B26","v":0},null,null,null,null,null,null,null,null,null,null,null,null,null,null,null,null,null,null,null,null,null,0]
[{"$f":"IF(Descriptions!D56=\"Collections at services\",Descriptions!B56,0)","v":0},{"$f":"SUMPRODUCT((WorkingR!$A$5:$A$91='Receipts - Summary'!A32)*(WorkingR!$D$5:$E$91))","v":0},null,null,{"$f":"'Prior Year Comparative'!B27","v":0},null,null,null,null,null,null,null,null,null,null,null,null,null,null,null,null,null,null,null,null,null,0]
[{"$f":"IF(Descriptions!D57=\"Collections at services\",Descriptions!B57,0)","v":0},{"$f":"SUMPRODUCT((WorkingR!$A$5:$A$91='Receipts - Summary'!A33)*(WorkingR!$D$5:$E$91))","v":0},null,null,{"$f":"'Prior Year Comparative'!B28","v":0},null,null,null,null,null,null,null,null,null,null,null,null,null,null,null,null,null,null,null,null,null,0]
[{"$f":"IF(Descriptions!D58=\"Collections at services\",Descriptions!B58,0)","v":0},{"$f":"SUMPRODUCT((WorkingR!$A$5:$A$91='Receipts - Summary'!A34)*(WorkingR!$D$5:$E$91))","v":0},null,null,{"$f":"'Prior Year Comparative'!B29","v":0},null,null,null,null,null,null,null,null,null,null,null,null,null,null,null,null,null,null,null,null,null,0]
[{"$f":"IF(Descriptions!D59=\"Collections at services\",Descriptions!B59,0)","v":0},{"$f":"SUMPRODUCT((WorkingR!$A$5:$A$91='Receipts - Summary'!A35)*(WorkingR!$D$5:$E$91))","v":0},null,null,{"$f":"'Prior Year Comparative'!B30","v":0},null,null,null,null,null,null,null,null,null,null,null,null,null,null,null,null,null,null,null,null,null,0]
[{"$f":"IF(Descriptions!D60=\"Collections at services\",Descriptions!B60,0)","v":0},{"$f":"SUMPRODUCT((WorkingR!$A$5:$A$91='Receipts - Summary'!A36)*(WorkingR!$D$5:$E$91))","v":0},null,null,{"$f":"'Prior Year Comparative'!B31","v":0},null,null,null,null,null,null,null,null,null,null,null,null,null,null,null,null,null,null,null,null,null,0]
[{"$f":"IF(Descriptions!D61=\"Collections at services\",Descriptions!B61,0)","v":0},{"$f":"SUMPRODUCT((WorkingR!$A$5:$A$91='Receipts - Summary'!A37)*(WorkingR!$D$5:$E$91))","v":0},null,null,{"$f":"'Prior Year Comparative'!B32","v":0},null,null,null,null,null,null,null,null,null,null,null,null,null,null,null,null,null,null,null,null,null,0]
[{"$f":"IF(Descriptions!D62=\"Collections at services\",Descriptions!B62,0)","v":0},{"$f":"SUMPRODUCT((WorkingR!$A$5:$A$91='Receipts - Summary'!A38)*(WorkingR!$D$5:$E$91))","v":0},null,null,{"$f":"'Prior Year Comparative'!B33","v":0},null,null,null,null,null,null,null,null,null,null,null,null,null,null,null,null,null,null,null,null,null,0]
[{"$f":"IF(Descriptions!D63=\"Collections at services\",Descriptions!B63,0)","v":0},{"$f":"SUMPRODUCT((WorkingR!$A$5:$A$91='Receipts - Summary'!A39)*(WorkingR!$D$5:$E$91))","v":0},null,null,{"$f":"'Prior Year Comparative'!B34","v":0},null,null,null,null,null,null,null,null,null,null,null,null,null,null,null,null,null,null,null,null,null,0]
[{"$f":"IF(Descriptions!D64=\"Collections at services\",Descriptions!B64,0)","v":0},{"$f":"SUMPRODUCT((WorkingR!$A$5:$A$91='Receipts - Summary'!A40)*(WorkingR!$D$5:$E$91))","v":0},null,null,{"$f":"'Prior Year Comparative'!B35","v":0},null,null,null,null,null,null,null,null,null,null,null,null,null,null,null,null,null,null,null,null,null,0]
[{"$f":"IF(Descriptions!D65=\"Collections at services\",Descriptions!B65,0)","v":0},{"$f":"SUMPRODUCT((WorkingR!$A$5:$A$91='Receipts - Summary'!A41)*(WorkingR!$D$5:$E$91))","v":0},null,null,{"$f":"'Prior Year Comparative'!B36","v":0},null,null,null,null,null,null,null,null,null,null,null,null,null,null,null,null,null,null,null,null,null,0]
[{"$f":"IF(Descriptions!D66=\"Collections at services\",Descriptions!B66,0)","v":0},{"$f":"SUMPRODUCT((WorkingR!$A$5:$A$91='Receipts - Summary'!A42)*(WorkingR!$D$5:$E$91))","v":0},null,null,{"$f":"'Prior Year Comparative'!B37","v":0},null,null,null,null,null,null,null,null,null,null,null,null,null,null,null,null,null,null,null,null,null,0]
[{"$f":"IF(Descriptions!D67=\"Collections at services\",Descriptions!B67,0)","v":0},{"$f":"SUMPRODUCT((WorkingR!$A$5:$A$91='Receipts - Summary'!A43)*(WorkingR!$D$5:$E$91))","v":0},null,null,{"$f":"'Prior Year Comparative'!B38","v":0},null,null,null,null,null,null,null,null,null,null,null,null,null,null,null,null,null,null,null,null,null,0]
[{"$f":"IF(Descriptions!D68=\"Collections at services\",Descriptions!B68,0)","v":0},{"$f":"SUMPRODUCT((WorkingR!$A$5:$A$91='Receipts - Summary'!A44)*(WorkingR!$D$5:$E$91))","v":0},null,null,{"$f":"'Prior Year Comparative'!B39","v":0},null,null,null,null,null,null,null,null,null,null,null,null,null,null,null,null,null,null,null,null,null,0]
[{"$f":"IF(Descriptions!D69=\"Collections at services\",Descriptions!B69,0)","v":0},{"$f":"SUMPRODUCT((WorkingR!$A$5:$A$91='Receipts - Summary'!A45)*(WorkingR!$D$5:$E$91))","v":0},null,null,{"$f":"'Prior Year Comparative'!B40","v":0},null,null,null,null,null,null,null,null,null,null,null,null,null,null,null,null,null,null,null,null,null,0]
[{"$f":"IF(Descriptions!D70=\"Collections at services\",Descriptions!B70,0)","v":0},{"$f":"SUMPRODUCT((WorkingR!$A$5:$A$91='Receipts - Summary'!A46)*(WorkingR!$D$5:$E$91))","v":0},null,null,{"$f":"'Prior Year Comparative'!B41","v":0},null,null,null,null,null,null,null,null,null,null,null,null,null,null,null,null,null,null,null,null,null,0]
[{"$f":"IF(Descriptions!D71=\"Collections at services\",Descriptions!B71,0)","v":0},{"$f":"SUMPRODUCT((WorkingR!$A$5:$A$91='Receipts - Summary'!A47)*(WorkingR!$D$5:$E$91))","v":0},null,null,{"$f":"'Prior Year Comparative'!B42","v":0},null,null,null,null,null,null,null,null,null,null,null,null,null,null,null,null,null,null,null,null,null,0]
[{"$f":"IF(Descriptions!D72=\"Collections at services\",Descriptions!B72,0)","v":0},{"$f":"SUMPRODUCT((WorkingR!$A$5:$A$91='Receipts - Summary'!A48)*(WorkingR!$D$5:$E$91))","v":0},null,null,{"$f":"'Prior Year Comparative'!B43","v":0},null,null,null,null,null,null,null,null,null,null,null,null,null,null,null,null,null,null,null,null,null,0]
[{"$f":"IF(Descriptions!D73=\"Collections at services\",Descriptions!B73,0)","v":0},{"$f":"SUMPRODUCT((WorkingR!$A$5:$A$91='Receipts - Summary'!A49)*(WorkingR!$D$5:$E$91))","v":0},null,null,{"$f":"'Prior Year Comparative'!B44","v":0},null,null,null,null,null,null,null,null,null,null,null,null,null,null,null,null,null,null,null,null,null,0]
[{"$f":"IF(Descriptions!D74=\"Collections at services\",Descriptions!B74,0)","v":0},{"$f":"SUMPRODUCT((WorkingR!$A$5:$A$91='Receipts - Summary'!A50)*(WorkingR!$D$5:$E$91))","v":0},null,null,{"$f":"'Prior Year Comparative'!B45","v":0},null,null,null,null,null,null,null,null,null,null,null,null,null,null,null,null,null,null,null,null,null,0]
[{"$f":"IF(Descriptions!D75=\"Collections at services\",Descriptions!B75,0)","v":0},{"$f":"SUMPRODUCT((WorkingR!$A$5:$A$91='Receipts - Summary'!A51)*(WorkingR!$D$5:$E$91))","v":0},null,null,{"$f":"'Prior Year Comparative'!B46","v":0},null,null,null,null,null,null,null,null,null,null,null,null,null,null,null,null,null,null,null,null,null,0]
[{"$f":"IF(Descriptions!D76=\"Collections at services\",Descriptions!B76,0)","v":0},{"$f":"SUMPRODUCT((WorkingR!$A$5:$A$91='Receipts - Summary'!A52)*(WorkingR!$D$5:$E$91))","v":0},null,null,{"$f":"'Prior Year Comparative'!B47","v":0},null,null,null,null,null,null,null,null,null,null,null,null,null,null,null,null,null,null,null,null,null,0]
[{"$f":"IF(Descriptions!D77=\"Collections at services\",Descriptions!B77,0)","v":0},{"$f":"SUMPRODUCT((WorkingR!$A$5:$A$91='Receipts - Summary'!A53)*(WorkingR!$D$5:$E$91))","v":0},null,null,{"$f":"'Prior Year Comparative'!B48","v":0},null,null,null,null,null,null,null,null,null,null,null,null,null,null,null,null,null,null,null,null,null,0]
[{"$f":"IF(Descriptions!D78=\"Collections at services\",Descriptions!B78,0)","v":0},{"$f":"SUMPRODUCT((WorkingR!$A$5:$A$91='Receipts - Summary'!A54)*(WorkingR!$D$5:$E$91))","v":0},null,null,{"$f":"'Prior Year Comparative'!B49","v":0},null,null,null,null,null,null,null,null,null,null,null,null,null,null,null,null,null,null,null,null,null,0]
[{"$f":"IF(Descriptions!D79=\"Collections at services\",Descriptions!B79,0)","v":0},{"$f":"SUMPRODUCT((WorkingR!$A$5:$A$91='Receipts - Summary'!A55)*(WorkingR!$D$5:$E$91))","v":0},null,null,{"$f":"'Prior Year Comparative'!B50","v":0},null,null,null,null,null,null,null,null,null,null,null,null,null,null,null,null,null,null,null,null,null,0]
[{"$f":"IF(Descriptions!D80=\"Collections at services\",Descriptions!B80,0)","v":0},{"$f":"SUMPRODUCT((WorkingR!$A$5:$A$91='Receipts - Summary'!A56)*(WorkingR!$D$5:$E$91))","v":0},null,null,{"$f":"'Prior Year Comparative'!B51","v":0},null,null,null,null,null,null,null,null,null,null,null,null,null,null,null,null,null,null,null,null,null,0]
[{"$f":"IF(Descriptions!D81=\"Collections at services\",Descriptions!B81,0)","v":0},{"$f":"SUMPRODUCT((WorkingR!$A$5:$A$91='Receipts - Summary'!A57)*(WorkingR!$D$5:$E$91))","v":0},null,null,{"$f":"'Prior Year Comparative'!B52","v":0},null,null,null,null,null,null,null,null,null,null,null,null,null,null,null,null,null,null,null,null,null,0]
[{"$f":"IF(Descriptions!D82=\"Collections at services\",Descriptions!B82,0)","v":0},{"$f":"SUMPRODUCT((WorkingR!$A$5:$A$91='Receipts - Summary'!A58)*(WorkingR!$D$5:$E$91))","v":0},null,null,{"$f":"'Prior Year Comparative'!B53","v":0},null,null,null,null,null,null,null,null,null,null,null,null,null,null,null,null,null,null,null,null,null,0]
[{"$f":"IF(Descriptions!D83=\"Collections at services\",Descriptions!B83,0)","v":0},{"$f":"SUMPRODUCT((WorkingR!$A$5:$A$91='Receipts - Summary'!A59)*(WorkingR!$D$5:$E$91))","v":0},null,null,{"$f":"'Prior Year Comparative'!B54","v":0},null,null,null,null,null,null,null,null,null,null,null,null,null,null,null,null,null,null,null,null,null,0]
[{"$f":"IF(Descriptions!D84=\"Collections at services\",Descriptions!B84,0)","v":0},{"$f":"SUMPRODUCT((WorkingR!$A$5:$A$91='Receipts - Summary'!A60)*(WorkingR!$D$5:$E$91))","v":0},null,null,{"$f":"'Prior Year Comparative'!B55","v":0},null,null,null,null,null,null,null,null,null,null,null,null,null,null,null,null,null,null,null,null,null,0]
[{"$f":"IF(Descriptions!D85=\"Collections at services\",Descriptions!B85,0)","v":0},{"$f":"SUMPRODUCT((WorkingR!$A$5:$A$91='Receipts - Summary'!A61)*(WorkingR!$D$5:$E$91))","v":0},null,null,{"$f":"'Prior Year Comparative'!B56","v":0},null,null,null,null,null,null,null,null,null,null,null,null,null,null,null,null,null,null,null,null,null,0]
[{"$f":"IF(Descriptions!D86=\"Collections at services\",Descriptions!B86,0)","v":0},{"$f":"SUMPRODUCT((WorkingR!$A$5:$A$91='Receipts - Summary'!A62)*(WorkingR!$D$5:$E$91))","v":0},null,null,{"$f":"'Prior Year Comparative'!B57","v":0},null,null,null,null,null,null,null,null,null,null,null,null,null,null,null,null,null,null,null,null,null,0]
[{"$f":"IF(Descriptions!D87=\"Collections at services\",Descriptions!B87,0)","v":0},{"$f":"SUMPRODUCT((WorkingR!$A$5:$A$91='Receipts - Summary'!A63)*(WorkingR!$D$5:$E$91))","v":0},null,null,{"$f":"'Prior Year Comparative'!B58","v":0},null,null,null,null,null,null,null,null,null,null,null,null,null,null,null,null,null,null,null,null,null,0]
[{"$f":"IF(Descriptions!D88=\"Collections at services\",Descriptions!B88,0)","v":0},{"$f":"SUMPRODUCT((WorkingR!$A$5:$A$91='Receipts - Summary'!A64)*(WorkingR!$D$5:$E$91))","v":0},null,null,{"$f":"'Prior Year Comparative'!B59","v":0},null,null,null,null,null,null,null,null,null,null,null,null,null,null,null,null,null,null,null,null,null,0]
[{"$f":"IF(Descriptions!D89=\"Collections at services\",Descriptions!B89,0)","v":0},{"$f":"SUMPRODUCT((WorkingR!$A$5:$A$91='Receipts - Summary'!A65)*(WorkingR!$D$5:$E$91))","v":0},null,null,{"$f":"'Prior Year Comparative'!B60","v":0},null,null,null,null,null,null,null,null,null,null,null,null,null,null,null,null,null,null,null,null,null,0]
[{"$f":"IF(Descriptions!D90=\"Collections at services\",Descriptions!B90,0)","v":0},{"$f":"SUMPRODUCT((WorkingR!$A$5:$A$91='Receipts - Summary'!A66)*(WorkingR!$D$5:$E$91))","v":0},null,null,{"$f":"'Prior Year Comparative'!B61","v":0},null,null,null,null,null,null,null,null,null,null,null,null,null,null,null,null,null,null,null,null,null,0]
[{"$f":"IF(Descriptions!D91=\"Collections at services\",Descriptions!B91,0)","v":0},{"$f":"SUMPRODUCT((WorkingR!$A$5:$A$91='Receipts - Summary'!A67)*(WorkingR!$D$5:$E$91))","v":0},null,null,{"$f":"'Prior Year Comparative'!B62","v":0},null,null,null,null,null,null,null,null,null,null,null,null,null,null,null,null,null,null,null,null,null,0]
[{"$f":"IF(Descriptions!D92=\"Collections at services\",Descriptions!B92,0)","v":0},{"$f":"SUMPRODUCT((WorkingR!$A$5:$A$91='Receipts - Summary'!A68)*(WorkingR!$D$5:$E$91))","v":0},null,null,{"$f":"'Prior Year Comparative'!B63","v":0},null,null,null,null,null,null,null,null,null,null,null,null,null,null,null,null,null,null,null,null,null,0]
[null,null,{"$f":"SUM(B11:B68)","v":0},null,null,{"$f":"SUM(E11:E68)","v":0},null,null,null,null,null,null,null,null,null,null,null,null,null,null,null,null,null,null,null,null,{"$f":"AA10","v":0}]
["PLANNED GIVING",null,null,null,null,null,null,null,null,null,null,null,null,null,null,null,null,null,null,null,null,null,null,null,null,null,{"$f":"SUM(AA71:AA122)","v":0}]
["Standing Order",{"$f":"SUMPRODUCT((WorkingR!$A$5:$A$91='Receipts - Summary'!A71)*(WorkingR!$D$5:$E$91))","v":0},null,null,{"$f":"'Prior Year Comparative'!B66","v":0},null,null,null,null,null,null,null,null,null,null,null,null,null,null,null,null,null,null,null,null,null,{"$f":"Descriptions!AA33","v":0}]
["Parish Giving Scheme Income",{"$f":"SUMPRODUCT((WorkingR!$A$5:$A$91='Receipts - Summary'!A72)*(WorkingR!$D$5:$E$91))","v":0},null,null,{"$f":"'Prior Year Comparative'!B67","v":0},null,null,null,null,null,null,null,null,null,null,null,null,null,null,null,null,null,null,null,null,null,{"$f":"Descriptions!AA29","v":0}]
[{"$f":"IF(Descriptions!D43=\"Planned giving\",Descriptions!B43,0)","v":0},{"$f":"SUMPRODUCT((WorkingR!$A$5:$A$91='Receipts - Summary'!A73)*(WorkingR!$D$5:$E$91))","v":0},null,null,{"$f":"'Prior Year Comparative'!B68","v":0},null,null,null,null,null,null,null,null,null,null,null,null,null,null,null,null,null,null,null,null,null,{"$f":"IF(A73=0,0,1)","v":0}]
[{"$f":"IF(Descriptions!D44=\"Planned giving\",Descriptions!B44,0)","v":0},{"$f":"SUMPRODUCT((WorkingR!$A$5:$A$91='Receipts - Summary'!A74)*(WorkingR!$D$5:$E$91))","v":0},null,null,{"$f":"'Prior Year Comparative'!B69","v":0},null,null,null,null,null,null,null,null,null,null,null,null,null,null,null,null,null,null,null,null,null,{"$f":"IF(A74=0,0,1)","v":0}]
[{"$f":"IF(Descriptions!D45=\"Planned giving\",Descriptions!B45,0)","v":0},{"$f":"SUMPRODUCT((WorkingR!$A$5:$A$91='Receipts - Summary'!A75)*(WorkingR!$D$5:$E$91))","v":0},null,null,{"$f":"'Prior Year Comparative'!B70","v":0},null,null,null,null,null,null,null,null,null,null,null,null,null,null,null,null,null,null,null,null,null,0]
[{"$f":"IF(Descriptions!D46=\"Planned giving\",Descriptions!B46,0)","v":0},{"$f":"SUMPRODUCT((WorkingR!$A$5:$A$91='Receipts - Summary'!A76)*(WorkingR!$D$5:$E$91))","v":0},null,null,{"$f":"'Prior Year Comparative'!B71","v":0},null,null,null,null,null,null,null,null,null,null,null,null,null,null,null,null,null,null,null,null,null,0]
[{"$f":"IF(Descriptions!D47=\"Planned giving\",Descriptions!B47,0)","v":0},{"$f":"SUMPRODUCT((WorkingR!$A$5:$A$91='Receipts - Summary'!A77)*(WorkingR!$D$5:$E$91))","v":0},null,null,{"$f":"'Prior Year Comparative'!B72","v":0},null,null,null,null,null,null,null,null,null,null,null,null,null,null,null,null,null,null,null,null,null,0]
[{"$f":"IF(Descriptions!D48=\"Planned giving\",Descriptions!B48,0)","v":0},{"$f":"SUMPRODUCT((WorkingR!$A$5:$A$91='Receipts - Summary'!A78)*(WorkingR!$D$5:$E$91))","v":0},null,null,{"$f":"'Prior Year Comparative'!B73","v":0},null,null,null,null,null,null,null,null,null,null,null,null,null,null,null,null,null,null,null,null,null,0]
[{"$f":"IF(Descriptions!D49=\"Planned giving\",Descriptions!B49,0)","v":0},{"$f":"SUMPRODUCT((WorkingR!$A$5:$A$91='Receipts - Summary'!A79)*(WorkingR!$D$5:$E$91))","v":0},null,null,{"$f":"'Prior Year Comparative'!B74","v":0},null,null,null,null,null,null,null,null,null,null,null,null,null,null,null,null,null,null,null,null,null,0]
[{"$f":"IF(Descriptions!D50=\"Planned giving\",Descriptions!B50,0)","v":0},{"$f":"SUMPRODUCT((WorkingR!$A$5:$A$91='Receipts - Summary'!A80)*(WorkingR!$D$5:$E$91))","v":0},null,null,{"$f":"'Prior Year Comparative'!B75","v":0},null,null,null,null,null,null,null,null,null,null,null,null,null,null,null,null,null,null,null,null,null,0]
[{"$f":"IF(Descriptions!D51=\"Planned giving\",Descriptions!B51,0)","v":0},{"$f":"SUMPRODUCT((WorkingR!$A$5:$A$91='Receipts - Summary'!A81)*(WorkingR!$D$5:$E$91))","v":0},null,null,{"$f":"'Prior Year Comparative'!B76","v":0},null,null,null,null,null,null,null,null,null,null,null,null,null,null,null,null,null,null,null,null,null,0]
[{"$f":"IF(Descriptions!D52=\"Planned giving\",Descriptions!B52,0)","v":0},{"$f":"SUMPRODUCT((WorkingR!$A$5:$A$91='Receipts - Summary'!A82)*(WorkingR!$D$5:$E$91))","v":0},null,null,{"$f":"'Prior Year Comparative'!B77","v":0},null,null,null,null,null,null,null,null,null,null,null,null,null,null,null,null,null,null,null,null,null,0]
[{"$f":"IF(Descriptions!D53=\"Planned giving\",Descriptions!B53,0)","v":0},{"$f":"SUMPRODUCT((WorkingR!$A$5:$A$91='Receipts - Summary'!A83)*(WorkingR!$D$5:$E$91))","v":0},null,null,{"$f":"'Prior Year Comparative'!B78","v":0},null,null,null,null,null,null,null,null,null,null,null,null,null,null,null,null,null,null,null,null,null,0]
[{"$f":"IF(Descriptions!D54=\"Planned giving\",Descriptions!B54,0)","v":0},{"$f":"SUMPRODUCT((WorkingR!$A$5:$A$91='Receipts - Summary'!A84)*(WorkingR!$D$5:$E$91))","v":0},null,null,{"$f":"'Prior Year Comparative'!B79","v":0},null,null,null,null,null,null,null,null,null,null,null,null,null,null,null,null,null,null,null,null,null,0]
[{"$f":"IF(Descriptions!D55=\"Planned giving\",Descriptions!B55,0)","v":0},{"$f":"SUMPRODUCT((WorkingR!$A$5:$A$91='Receipts - Summary'!A85)*(WorkingR!$D$5:$E$91))","v":0},null,null,{"$f":"'Prior Year Comparative'!B80","v":0},null,null,null,null,null,null,null,null,null,null,null,null,null,null,null,null,null,null,null,null,null,0]
[{"$f":"IF(Descriptions!D56=\"Planned giving\",Descriptions!B56,0)","v":0},{"$f":"SUMPRODUCT((WorkingR!$A$5:$A$91='Receipts - Summary'!A86)*(WorkingR!$D$5:$E$91))","v":0},null,null,{"$f":"'Prior Year Comparative'!B81","v":0},null,null,null,null,null,null,null,null,null,null,null,null,null,null,null,null,null,null,null,null,null,0]
[{"$f":"IF(Descriptions!D57=\"Planned giving\",Descriptions!B57,0)","v":0},{"$f":"SUMPRODUCT((WorkingR!$A$5:$A$91='Receipts - Summary'!A87)*(WorkingR!$D$5:$E$91))","v":0},null,null,{"$f":"'Prior Year Comparative'!B82","v":0},null,null,null,null,null,null,null,null,null,null,null,null,null,null,null,null,null,null,null,null,null,0]
[{"$f":"IF(Descriptions!D58=\"Planned giving\",Descriptions!B58,0)","v":0},{"$f":"SUMPRODUCT((WorkingR!$A$5:$A$91='Receipts - Summary'!A88)*(WorkingR!$D$5:$E$91))","v":0},null,null,{"$f":"'Prior Year Comparative'!B83","v":0},null,null,null,null,null,null,null,null,null,null,null,null,null,null,null,null,null,null,null,null,null,0]
[{"$f":"IF(Descriptions!D59=\"Planned giving\",Descriptions!B59,0)","v":0},{"$f":"SUMPRODUCT((WorkingR!$A$5:$A$91='Receipts - Summary'!A89)*(WorkingR!$D$5:$E$91))","v":0},null,null,{"$f":"'Prior Year Comparative'!B84","v":0},null,null,null,null,null,null,null,null,null,null,null,null,null,null,null,null,null,null,null,null,null,0]
[{"$f":"IF(Descriptions!D60=\"Planned giving\",Descriptions!B60,0)","v":0},{"$f":"SUMPRODUCT((WorkingR!$A$5:$A$91='Receipts - Summary'!A90)*(WorkingR!$D$5:$E$91))","v":0},null,null,{"$f":"'Prior Year Comparative'!B85","v":0},null,null,null,null,null,null,null,null,null,null,null,null,null,null,null,null,null,null,null,null,null,0]
[{"$f":"IF(Descriptions!D61=\"Planned giving\",Descriptions!B61,0)","v":0},{"$f":"SUMPRODUCT((WorkingR!$A$5:$A$91='Receipts - Summary'!A91)*(WorkingR!$D$5:$E$91))","v":0},null,null,{"$f":"'Prior Year Comparative'!B86","v":0},null,null,null,null,null,null,null,null,null,null,null,null,null,null,null,null,null,null,null,null,null,0]
[{"$f":"IF(Descriptions!D62=\"Planned giving\",Descriptions!B62,0)","v":0},{"$f":"SUMPRODUCT((WorkingR!$A$5:$A$91='Receipts - Summary'!A92)*(WorkingR!$D$5:$E$91))","v":0},null,null,{"$f":"'Prior Year Comparative'!B87","v":0},null,null,null,null,null,null,null,null,null,null,null,null,null,null,null,null,null,null,null,null,null,0]
[{"$f":"IF(Descriptions!D63=\"Planned giving\",Descriptions!B63,0)","v":0},{"$f":"SUMPRODUCT((WorkingR!$A$5:$A$91='Receipts - Summary'!A93)*(WorkingR!$D$5:$E$91))","v":0},null,null,{"$f":"'Prior Year Comparative'!B88","v":0},null,null,null,null,null,null,null,null,null,null,null,null,null,null,null,null,null,null,null,null,null,0]
[{"$f":"IF(Descriptions!D64=\"Planned giving\",Descriptions!B64,0)","v":0},{"$f":"SUMPRODUCT((WorkingR!$A$5:$A$91='Receipts - Summary'!A94)*(WorkingR!$D$5:$E$91))","v":0},null,null,{"$f":"'Prior Year Comparative'!B89","v":0},null,null,null,null,null,null,null,null,null,null,null,null,null,null,null,null,null,null,null,null,null,0]
[{"$f":"IF(Descriptions!D65=\"Planned giving\",Descriptions!B65,0)","v":0},{"$f":"SUMPRODUCT((WorkingR!$A$5:$A$91='Receipts - Summary'!A95)*(WorkingR!$D$5:$E$91))","v":0},null,null,{"$f":"'Prior Year Comparative'!B90","v":0},null,null,null,null,null,null,null,null,null,null,null,null,null,null,null,null,null,null,null,null,null,0]
[{"$f":"IF(Descriptions!D66=\"Planned giving\",Descriptions!B66,0)","v":0},{"$f":"SUMPRODUCT((WorkingR!$A$5:$A$91='Receipts - Summary'!A96)*(WorkingR!$D$5:$E$91))","v":0},null,null,{"$f":"'Prior Year Comparative'!B91","v":0},null,null,null,null,null,null,null,null,null,null,null,null,null,null,null,null,null,null,null,null,null,0]
[{"$f":"IF(Descriptions!D67=\"Planned giving\",Descriptions!B67,0)","v":0},{"$f":"SUMPRODUCT((WorkingR!$A$5:$A$91='Receipts - Summary'!A97)*(WorkingR!$D$5:$E$91))","v":0},null,null,{"$f":"'Prior Year Comparative'!B92","v":0},null,null,null,null,null,null,null,null,null,null,null,null,null,null,null,null,null,null,null,null,null,0]
[{"$f":"IF(Descriptions!D68=\"Planned giving\",Descriptions!B68,0)","v":0},{"$f":"SUMPRODUCT((WorkingR!$A$5:$A$91='Receipts - Summary'!A98)*(WorkingR!$D$5:$E$91))","v":0},null,null,{"$f":"'Prior Year Comparative'!B93","v":0},null,null,null,null,null,null,null,null,null,null,null,null,null,null,null,null,null,null,null,null,null,0]
[{"$f":"IF(Descriptions!D69=\"Planned giving\",Descriptions!B69,0)","v":0},{"$f":"SUMPRODUCT((WorkingR!$A$5:$A$91='Receipts - Summary'!A99)*(WorkingR!$D$5:$E$91))","v":0},null,null,{"$f":"'Prior Year Comparative'!B94","v":0},null,null,null,null,null,null,null,null,null,null,null,null,null,null,null,null,null,null,null,null,null,0]
[{"$f":"IF(Descriptions!D70=\"Planned giving\",Descriptions!B70,0)","v":0},{"$f":"SUMPRODUCT((WorkingR!$A$5:$A$91='Receipts - Summary'!A100)*(WorkingR!$D$5:$E$91))","v":0},null,null,{"$f":"'Prior Year Comparative'!B95","v":0},null,null,null,null,null,null,null,null,null,null,null,null,null,null,null,null,null,null,null,null,null,0]
[{"$f":"IF(Descriptions!D71=\"Planned giving\",Descriptions!B71,0)","v":0},{"$f":"SUMPRODUCT((WorkingR!$A$5:$A$91='Receipts - Summary'!A101)*(WorkingR!$D$5:$E$91))","v":0},null,null,{"$f":"'Prior Year Comparative'!B96","v":0},null,null,null,null,null,null,null,null,null,null,null,null,null,null,null,null,null,null,null,null,null,0]
[{"$f":"IF(Descriptions!D72=\"Planned giving\",Descriptions!B72,0)","v":0},{"$f":"SUMPRODUCT((WorkingR!$A$5:$A$91='Receipts - Summary'!A102)*(WorkingR!$D$5:$E$91))","v":0},null,null,{"$f":"'Prior Year Comparative'!B97","v":0},null,null,null,null,null,null,null,null,null,null,null,null,null,null,null,null,null,null,null,null,null,0]
[{"$f":"IF(Descriptions!D73=\"Planned giving\",Descriptions!B73,0)","v":0},{"$f":"SUMPRODUCT((WorkingR!$A$5:$A$91='Receipts - Summary'!A103)*(WorkingR!$D$5:$E$91))","v":0},null,null,{"$f":"'Prior Year Comparative'!B98","v":0},null,null,null,null,null,null,null,null,null,null,null,null,null,null,null,null,null,null,null,null,null,0]
[{"$f":"IF(Descriptions!D74=\"Planned giving\",Descriptions!B74,0)","v":0},{"$f":"SUMPRODUCT((WorkingR!$A$5:$A$91='Receipts - Summary'!A104)*(WorkingR!$D$5:$E$91))","v":0},null,null,{"$f":"'Prior Year Comparative'!B99","v":0},null,null,null,null,null,null,null,null,null,null,null,null,null,null,null,null,null,null,null,null,null,0]
[{"$f":"IF(Descriptions!D75=\"Planned giving\",Descriptions!B75,0)","v":0},{"$f":"SUMPRODUCT((WorkingR!$A$5:$A$91='Receipts - Summary'!A105)*(WorkingR!$D$5:$E$91))","v":0},null,null,{"$f":"'Prior Year Comparative'!B100","v":0},null,null,null,null,null,null,null,null,null,null,null,null,null,null,null,null,null,null,null,null,null,0]
[{"$f":"IF(Descriptions!D76=\"Planned giving\",Descriptions!B76,0)","v":0},{"$f":"SUMPRODUCT((WorkingR!$A$5:$A$91='Receipts - Summary'!A106)*(WorkingR!$D$5:$E$91))","v":0},null,null,{"$f":"'Prior Year Comparative'!B101","v":0},null,null,null,null,null,null,null,null,null,null,null,null,null,null,null,null,null,null,null,null,null,0]
[{"$f":"IF(Descriptions!D77=\"Planned giving\",Descriptions!B77,0)","v":0},{"$f":"SUMPRODUCT((WorkingR!$A$5:$A$91='Receipts - Summary'!A107)*(WorkingR!$D$5:$E$91))","v":0},null,null,{"$f":"'Prior Year Comparative'!B102","v":0},null,null,null,null,null,null,null,null,null,null,null,null,null,null,null,null,null,null,null,null,null,0]
[{"$f":"IF(Descriptions!D78=\"Planned giving\",Descriptions!B78,0)","v":0},{"$f":"SUMPRODUCT((WorkingR!$A$5:$A$91='Receipts - Summary'!A108)*(WorkingR!$D$5:$E$91))","v":0},null,null,{"$f":"'Prior Year Comparative'!B103","v":0},null,null,null,null,null,null,null,null,null,null,null,null,null,null,null,null,null,null,null,null,null,0]
[{"$f":"IF(Descriptions!D79=\"Planned giving\",Descriptions!B79,0)","v":0},{"$f":"SUMPRODUCT((WorkingR!$A$5:$A$91='Receipts - Summary'!A109)*(WorkingR!$D$5:$E$91))","v":0},null,null,{"$f":"'Prior Year Comparative'!B104","v":0},null,null,null,null,null,null,null,null,null,null,null,null,null,null,null,null,null,null,null,null,null,0]
[{"$f":"IF(Descriptions!D80=\"Planned giving\",Descriptions!B80,0)","v":0},{"$f":"SUMPRODUCT((WorkingR!$A$5:$A$91='Receipts - Summary'!A110)*(WorkingR!$D$5:$E$91))","v":0},null,null,{"$f":"'Prior Year Comparative'!B105","v":0},null,null,null,null,null,null,null,null,null,null,null,null,null,null,null,null,null,null,null,null,null,0]
[{"$f":"IF(Descriptions!D81=\"Planned giving\",Descriptions!B81,0)","v":0},{"$f":"SUMPRODUCT((WorkingR!$A$5:$A$91='Receipts - Summary'!A111)*(WorkingR!$D$5:$E$91))","v":0},null,null,{"$f":"'Prior Year Comparative'!B106","v":0},null,null,null,null,null,null,null,null,null,null,null,null,null,null,null,null,null,null,null,null,null,0]
[{"$f":"IF(Descriptions!D82=\"Planned giving\",Descriptions!B82,0)","v":0},{"$f":"SUMPRODUCT((WorkingR!$A$5:$A$91='Receipts - Summary'!A112)*(WorkingR!$D$5:$E$91))","v":0},null,null,{"$f":"'Prior Year Comparative'!B107","v":0},null,null,null,null,null,null,null,null,null,null,null,null,null,null,null,null,null,null,null,null,null,0]
[{"$f":"IF(Descriptions!D83=\"Planned giving\",Descriptions!B83,0)","v":0},{"$f":"SUMPRODUCT((WorkingR!$A$5:$A$91='Receipts - Summary'!A113)*(WorkingR!$D$5:$E$91))","v":0},null,null,{"$f":"'Prior Year Comparative'!B108","v":0},null,null,null,null,null,null,null,null,null,null,null,null,null,null,null,null,null,null,null,null,null,0]
[{"$f":"IF(Descriptions!D84=\"Planned giving\",Descriptions!B84,0)","v":0},{"$f":"SUMPRODUCT((WorkingR!$A$5:$A$91='Receipts - Summary'!A114)*(WorkingR!$D$5:$E$91))","v":0},null,null,{"$f":"'Prior Year Comparative'!B109","v":0},null,null,null,null,null,null,null,null,null,null,null,null,null,null,null,null,null,null,null,null,null,0]
[{"$f":"IF(Descriptions!D85=\"Planned giving\",Descriptions!B85,0)","v":0},{"$f":"SUMPRODUCT((WorkingR!$A$5:$A$91='Receipts - Summary'!A115)*(WorkingR!$D$5:$E$91))","v":0},null,null,{"$f":"'Prior Year Comparative'!B110","v":0},null,null,null,null,null,null,null,null,null,null,null,null,null,null,null,null,null,null,null,null,null,0]
[{"$f":"IF(Descriptions!D86=\"Planned giving\",Descriptions!B86,0)","v":0},{"$f":"SUMPRODUCT((WorkingR!$A$5:$A$91='Receipts - Summary'!A116)*(WorkingR!$D$5:$E$91))","v":0},null,null,{"$f":"'Prior Year Comparative'!B111","v":0},null,null,null,null,null,null,null,null,null,null,null,null,null,null,null,null,null,null,null,null,null,0]
[{"$f":"IF(Descriptions!D87=\"Planned giving\",Descriptions!B87,0)","v":0},{"$f":"SUMPRODUCT((WorkingR!$A$5:$A$91='Receipts - Summary'!A117)*(WorkingR!$D$5:$E$91))","v":0},null,null,{"$f":"'Prior Year Comparative'!B112","v":0},null,null,null,null,null,null,null,null,null,null,null,null,null,null,null,null,null,null,null,null,null,0]
[{"$f":"IF(Descriptions!D88=\"Planned giving\",Descriptions!B88,0)","v":0},{"$f":"SUMPRODUCT((WorkingR!$A$5:$A$91='Receipts - Summary'!A118)*(WorkingR!$D$5:$E$91))","v":0},null,null,{"$f":"'Prior Year Comparative'!B113","v":0},null,null,null,null,null,null,null,null,null,null,null,null,null,null,null,null,null,null,null,null,null,0]
[{"$f":"IF(Descriptions!D89=\"Planned giving\",Descriptions!B89,0)","v":0},{"$f":"SUMPRODUCT((WorkingR!$A$5:$A$91='Receipts - Summary'!A119)*(WorkingR!$D$5:$E$91))","v":0},null,null,{"$f":"'Prior Year Comparative'!B114","v":0},null,null,null,null,null,null,null,null,null,null,null,null,null,null,null,null,null,null,null,null,null,0]
[{"$f":"IF(Descriptions!D90=\"Planned giving\",Descriptions!B90,0)","v":0},{"$f":"SUMPRODUCT((WorkingR!$A$5:$A$91='Receipts - Summary'!A120)*(WorkingR!$D$5:$E$91))","v":0},null,null,{"$f":"'Prior Year Comparative'!B115","v":0},null,null,null,null,null,null,null,null,null,null,null,null,null,null,null,null,null,null,null,null,null,0]
[{"$f":"IF(Descriptions!D91=\"Planned giving\",Descriptions!B91,0)","v":0},{"$f":"SUMPRODUCT((WorkingR!$A$5:$A$91='Receipts - Summary'!A121)*(WorkingR!$D$5:$E$91))","v":0},null,null,{"$f":"'Prior Year Comparative'!B116","v":0},null,null,null,null,null,null,null,null,null,null,null,null,null,null,null,null,null,null,null,null,null,0]
[{"$f":"IF(Descriptions!D92=\"Planned giving\",Descriptions!B92,0)","v":0},{"$f":"SUMPRODUCT((WorkingR!$A$5:$A$91='Receipts - Summary'!A122)*(WorkingR!$D$5:$E$91))","v":0},null,null,{"$f":"'Prior Year Comparative'!B117","v":0},null,null,null,null,null,null,null,null,null,null,null,null,null,null,null,null,null,null,null,null,null,0]
[null,null,{"$f":"SUM(B71:B122)","v":0},null,null,{"$f":"SUM(E71:E122)","v":0},null,null,null,null,null,null,null,null,null,null,null,null,null,null,null,null,null,null,null,null,{"$f":"AA70","v":0}]
["GIFT AID RECOVERED",null,null,null,null,null,null,null,null,null,null,null,null,null,null,null,null,null,null,null,null,null,null,null,null,null,{"$f":"SUM(AA125:AA175)","v":0}]
["Gift Aid Reclaim",{"$f":"SUMPRODUCT((WorkingR!$A$5:$A$91='Receipts - Summary'!A125)*(WorkingR!$D$5:$E$91))","v":0},null,null,{"$f":"'Prior Year Comparative'!B120","v":0},null,null,null,null,null,null,null,null,null,null,null,null,null,null,null,null,null,null,null,null,null,{"$f":"Descriptions!AA18","v":0}]
[{"$f":"IF(Descriptions!D43=\"Gift aid recovered\",Descriptions!B43,0)","v":0},{"$f":"SUMPRODUCT((WorkingR!$A$5:$A$91='Receipts - Summary'!A126)*(WorkingR!$D$5:$E$91))","v":0},null,null,{"$f":"'Prior Year Comparative'!B121","v":0},null,null,null,null,null,null,null,null,null,null,null,null,null,null,null,null,null,null,null,null,null,{"$f":"IF(A126=0,0,1)","v":0}]
[{"$f":"IF(Descriptions!D44=\"Gift aid recovered\",Descriptions!B44,0)","v":0},{"$f":"SUMPRODUCT((WorkingR!$A$5:$A$91='Receipts - Summary'!A127)*(WorkingR!$D$5:$E$91))","v":0},null,null,{"$f":"'Prior Year Comparative'!B122","v":0},null,null,null,null,null,null,null,null,null,null,null,null,null,null,null,null,null,null,null,null,null,{"$f":"IF(A127=0,0,1)","v":0}]
[{"$f":"IF(Descriptions!D45=\"Gift aid recovered\",Descriptions!B45,0)","v":0},{"$f":"SUMPRODUCT((WorkingR!$A$5:$A$91='Receipts - Summary'!A128)*(WorkingR!$D$5:$E$91))","v":0},null,null,{"$f":"'Prior Year Comparative'!B123","v":0},null,null,null,null,null,null,null,null,null,null,null,null,null,null,null,null,null,null,null,null,null,0]
[{"$f":"IF(Descriptions!D46=\"Gift aid recovered\",Descriptions!B46,0)","v":0},{"$f":"SUMPRODUCT((WorkingR!$A$5:$A$91='Receipts - Summary'!A129)*(WorkingR!$D$5:$E$91))","v":0},null,null,{"$f":"'Prior Year Comparative'!B124","v":0},null,null,null,null,null,null,null,null,null,null,null,null,null,null,null,null,null,null,null,null,null,0]
[{"$f":"IF(Descriptions!D47=\"Gift aid recovered\",Descriptions!B47,0)","v":0},{"$f":"SUMPRODUCT((WorkingR!$A$5:$A$91='Receipts - Summary'!A130)*(WorkingR!$D$5:$E$91))","v":0},null,null,{"$f":"'Prior Year Comparative'!B125","v":0},null,null,null,null,null,null,null,null,null,null,null,null,null,null,null,null,null,null,null,null,null,0]
[{"$f":"IF(Descriptions!D48=\"Gift aid recovered\",Descriptions!B48,0)","v":0},{"$f":"SUMPRODUCT((WorkingR!$A$5:$A$91='Receipts - Summary'!A131)*(WorkingR!$D$5:$E$91))","v":0},null,null,{"$f":"'Prior Year Comparative'!B126","v":0},null,null,null,null,null,null,null,null,null,null,null,null,null,null,null,null,null,null,null,null,null,0]
[{"$f":"IF(Descriptions!D49=\"Gift aid recovered\",Descriptions!B49,0)","v":0},{"$f":"SUMPRODUCT((WorkingR!$A$5:$A$91='Receipts - Summary'!A132)*(WorkingR!$D$5:$E$91))","v":0},null,null,{"$f":"'Prior Year Comparative'!B127","v":0},null,null,null,null,null,null,null,null,null,null,null,null,null,null,null,null,null,null,null,null,null,0]
[{"$f":"IF(Descriptions!D50=\"Gift aid recovered\",Descriptions!B50,0)","v":0},{"$f":"SUMPRODUCT((WorkingR!$A$5:$A$91='Receipts - Summary'!A133)*(WorkingR!$D$5:$E$91))","v":0},null,null,{"$f":"'Prior Year Comparative'!B128","v":0},null,null,null,null,null,null,null,null,null,null,null,null,null,null,null,null,null,null,null,null,null,0]
[{"$f":"IF(Descriptions!D51=\"Gift aid recovered\",Descriptions!B51,0)","v":0},{"$f":"SUMPRODUCT((WorkingR!$A$5:$A$91='Receipts - Summary'!A134)*(WorkingR!$D$5:$E$91))","v":0},null,null,{"$f":"'Prior Year Comparative'!B129","v":0},null,null,null,null,null,null,null,null,null,null,null,null,null,null,null,null,null,null,null,null,null,0]
[{"$f":"IF(Descriptions!D52=\"Gift aid recovered\",Descriptions!B52,0)","v":0},{"$f":"SUMPRODUCT((WorkingR!$A$5:$A$91='Receipts - Summary'!A135)*(WorkingR!$D$5:$E$91))","v":0},null,null,{"$f":"'Prior Year Comparative'!B130","v":0},null,null,null,null,null,null,null,null,null,null,null,null,null,null,null,null,null,null,null,null,null,0]
[{"$f":"IF(Descriptions!D53=\"Gift aid recovered\",Descriptions!B53,0)","v":0},{"$f":"SUMPRODUCT((WorkingR!$A$5:$A$91='Receipts - Summary'!A136)*(WorkingR!$D$5:$E$91))","v":0},null,null,{"$f":"'Prior Year Comparative'!B131","v":0},null,null,null,null,null,null,null,null,null,null,null,null,null,null,null,null,null,null,null,null,null,0]
[{"$f":"IF(Descriptions!D54=\"Gift aid recovered\",Descriptions!B54,0)","v":0},{"$f":"SUMPRODUCT((WorkingR!$A$5:$A$91='Receipts - Summary'!A137)*(WorkingR!$D$5:$E$91))","v":0},null,null,{"$f":"'Prior Year Comparative'!B132","v":0},null,null,null,null,null,null,null,null,null,null,null,null,null,null,null,null,null,null,null,null,null,0]
[{"$f":"IF(Descriptions!D55=\"Gift aid recovered\",Descriptions!B55,0)","v":0},{"$f":"SUMPRODUCT((WorkingR!$A$5:$A$91='Receipts - Summary'!A138)*(WorkingR!$D$5:$E$91))","v":0},null,null,{"$f":"'Prior Year Comparative'!B133","v":0},null,null,null,null,null,null,null,null,null,null,null,null,null,null,null,null,null,null,null,null,null,0]
[{"$f":"IF(Descriptions!D56=\"Gift aid recovered\",Descriptions!B56,0)","v":0},{"$f":"SUMPRODUCT((WorkingR!$A$5:$A$91='Receipts - Summary'!A139)*(WorkingR!$D$5:$E$91))","v":0},null,null,{"$f":"'Prior Year Comparative'!B134","v":0},null,null,null,null,null,null,null,null,null,null,null,null,null,null,null,null,null,null,null,null,null,0]
[{"$f":"IF(Descriptions!D57=\"Gift aid recovered\",Descriptions!B57,0)","v":0},{"$f":"SUMPRODUCT((WorkingR!$A$5:$A$91='Receipts - Summary'!A140)*(WorkingR!$D$5:$E$91))","v":0},null,null,{"$f":"'Prior Year Comparative'!B135","v":0},null,null,null,null,null,null,null,null,null,null,null,null,null,null,null,null,null,null,null,null,null,0]
[{"$f":"IF(Descriptions!D58=\"Gift aid recovered\",Descriptions!B58,0)","v":0},{"$f":"SUMPRODUCT((WorkingR!$A$5:$A$91='Receipts - Summary'!A141)*(WorkingR!$D$5:$E$91))","v":0},null,null,{"$f":"'Prior Year Comparative'!B136","v":0},null,null,null,null,null,null,null,null,null,null,null,null,null,null,null,null,null,null,null,null,null,0]
[{"$f":"IF(Descriptions!D59=\"Gift aid recovered\",Descriptions!B59,0)","v":0},{"$f":"SUMPRODUCT((WorkingR!$A$5:$A$91='Receipts - Summary'!A142)*(WorkingR!$D$5:$E$91))","v":0},null,null,{"$f":"'Prior Year Comparative'!B137","v":0},null,null,null,null,null,null,null,null,null,null,null,null,null,null,null,null,null,null,null,null,null,0]
[{"$f":"IF(Descriptions!D60=\"Gift aid recovered\",Descriptions!B60,0)","v":0},{"$f":"SUMPRODUCT((WorkingR!$A$5:$A$91='Receipts - Summary'!A143)*(WorkingR!$D$5:$E$91))","v":0},null,null,{"$f":"'Prior Year Comparative'!B138","v":0},null,null,null,null,null,null,null,null,null,null,null,null,null,null,null,null,null,null,null,null,null,0]
[{"$f":"IF(Descriptions!D61=\"Gift aid recovered\",Descriptions!B61,0)","v":0},{"$f":"SUMPRODUCT((WorkingR!$A$5:$A$91='Receipts - Summary'!A144)*(WorkingR!$D$5:$E$91))","v":0},null,null,{"$f":"'Prior Year Comparative'!B139","v":0},null,null,null,null,null,null,null,null,null,null,null,null,null,null,null,null,null,null,null,null,null,0]
[{"$f":"IF(Descriptions!D62=\"Gift aid recovered\",Descriptions!B62,0)","v":0},{"$f":"SUMPRODUCT((WorkingR!$A$5:$A$91='Receipts - Summary'!A145)*(WorkingR!$D$5:$E$91))","v":0},null,null,{"$f":"'Prior Year Comparative'!B140","v":0},null,null,null,null,null,null,null,null,null,null,null,null,null,null,null,null,null,null,null,null,null,0]
[{"$f":"IF(Descriptions!D63=\"Gift aid recovered\",Descriptions!B63,0)","v":0},{"$f":"SUMPRODUCT((WorkingR!$A$5:$A$91='Receipts - Summary'!A146)*(WorkingR!$D$5:$E$91))","v":0},null,null,{"$f":"'Prior Year Comparative'!B141","v":0},null,null,null,null,null,null,null,null,null,null,null,null,null,null,null,null,null,null,null,null,null,0]
[{"$f":"IF(Descriptions!D64=\"Gift aid recovered\",Descriptions!B64,0)","v":0},{"$f":"SUMPRODUCT((WorkingR!$A$5:$A$91='Receipts - Summary'!A147)*(WorkingR!$D$5:$E$91))","v":0},null,null,{"$f":"'Prior Year Comparative'!B142","v":0},null,null,null,null,null,null,null,null,null,null,null,null,null,null,null,null,null,null,null,null,null,0]
[{"$f":"IF(Descriptions!D65=\"Gift aid recovered\",Descriptions!B65,0)","v":0},{"$f":"SUMPRODUCT((WorkingR!$A$5:$A$91='Receipts - Summary'!A148)*(WorkingR!$D$5:$E$91))","v":0},null,null,{"$f":"'Prior Year Comparative'!B143","v":0},null,null,null,null,null,null,null,null,null,null,null,null,null,null,null,null,null,null,null,null,null,0]
[{"$f":"IF(Descriptions!D66=\"Gift aid recovered\",Descriptions!B66,0)","v":0},{"$f":"SUMPRODUCT((WorkingR!$A$5:$A$91='Receipts - Summary'!A149)*(WorkingR!$D$5:$E$91))","v":0},null,null,{"$f":"'Prior Year Comparative'!B144","v":0},null,null,null,null,null,null,null,null,null,null,null,null,null,null,null,null,null,null,null,null,null,0]
[{"$f":"IF(Descriptions!D67=\"Gift aid recovered\",Descriptions!B67,0)","v":0},{"$f":"SUMPRODUCT((WorkingR!$A$5:$A$91='Receipts - Summary'!A150)*(WorkingR!$D$5:$E$91))","v":0},null,null,{"$f":"'Prior Year Comparative'!B145","v":0},null,null,null,null,null,null,null,null,null,null,null,null,null,null,null,null,null,null,null,null,null,0]
[{"$f":"IF(Descriptions!D68=\"Gift aid recovered\",Descriptions!B68,0)","v":0},{"$f":"SUMPRODUCT((WorkingR!$A$5:$A$91='Receipts - Summary'!A151)*(WorkingR!$D$5:$E$91))","v":0},null,null,{"$f":"'Prior Year Comparative'!B146","v":0},null,null,null,null,null,null,null,null,null,null,null,null,null,null,null,null,null,null,null,null,null,0]
[{"$f":"IF(Descriptions!D69=\"Gift aid recovered\",Descriptions!B69,0)","v":0},{"$f":"SUMPRODUCT((WorkingR!$A$5:$A$91='Receipts - Summary'!A152)*(WorkingR!$D$5:$E$91))","v":0},null,null,{"$f":"'Prior Year Comparative'!B147","v":0},null,null,null,null,null,null,null,null,null,null,null,null,null,null,null,null,null,null,null,null,null,0]
[{"$f":"IF(Descriptions!D70=\"Gift aid recovered\",Descriptions!B70,0)","v":0},{"$f":"SUMPRODUCT((WorkingR!$A$5:$A$91='Receipts - Summary'!A153)*(WorkingR!$D$5:$E$91))","v":0},null,null,{"$f":"'Prior Year Comparative'!B148","v":0},null,null,null,null,null,null,null,null,null,null,null,null,null,null,null,null,null,null,null,null,null,0]
[{"$f":"IF(Descriptions!D71=\"Gift aid recovered\",Descriptions!B71,0)","v":0},{"$f":"SUMPRODUCT((WorkingR!$A$5:$A$91='Receipts - Summary'!A154)*(WorkingR!$D$5:$E$91))","v":0},null,null,{"$f":"'Prior Year Comparative'!B149","v":0},null,null,null,null,null,null,null,null,null,null,null,null,null,null,null,null,null,null,null,null,null,0]
[{"$f":"IF(Descriptions!D72=\"Gift aid recovered\",Descriptions!B72,0)","v":0},{"$f":"SUMPRODUCT((WorkingR!$A$5:$A$91='Receipts - Summary'!A155)*(WorkingR!$D$5:$E$91))","v":0},null,null,{"$f":"'Prior Year Comparative'!B150","v":0},null,null,null,null,null,null,null,null,null,null,null,null,null,null,null,null,null,null,null,null,null,0]
[{"$f":"IF(Descriptions!D73=\"Gift aid recovered\",Descriptions!B73,0)","v":0},{"$f":"SUMPRODUCT((WorkingR!$A$5:$A$91='Receipts - Summary'!A156)*(WorkingR!$D$5:$E$91))","v":0},null,null,{"$f":"'Prior Year Comparative'!B151","v":0},null,null,null,null,null,null,null,null,null,null,null,null,null,null,null,null,null,null,null,null,null,0]
[{"$f":"IF(Descriptions!D74=\"Gift aid recovered\",Descriptions!B74,0)","v":0},{"$f":"SUMPRODUCT((WorkingR!$A$5:$A$91='Receipts - Summary'!A157)*(WorkingR!$D$5:$E$91))","v":0},null,null,{"$f":"'Prior Year Comparative'!B152","v":0},null,null,null,null,null,null,null,null,null,null,null,null,null,null,null,null,null,null,null,null,null,0]
[{"$f":"IF(Descriptions!D75=\"Gift aid recovered\",Descriptions!B75,0)","v":0},{"$f":"SUMPRODUCT((WorkingR!$A$5:$A$91='Receipts - Summary'!A158)*(WorkingR!$D$5:$E$91))","v":0},null,null,{"$f":"'Prior Year Comparative'!B153","v":0},null,null,null,null,null,null,null,null,null,null,null,null,null,null,null,null,null,null,null,null,null,0]
[{"$f":"IF(Descriptions!D76=\"Gift aid recovered\",Descriptions!B76,0)","v":0},{"$f":"SUMPRODUCT((WorkingR!$A$5:$A$91='Receipts - Summary'!A159)*(WorkingR!$D$5:$E$91))","v":0},null,null,{"$f":"'Prior Year Comparative'!B154","v":0},null,null,null,null,null,null,null,null,null,null,null,null,null,null,null,null,null,null,null,null,null,0]
[{"$f":"IF(Descriptions!D77=\"Gift aid recovered\",Descriptions!B77,0)","v":0},{"$f":"SUMPRODUCT((WorkingR!$A$5:$A$91='Receipts - Summary'!A160)*(WorkingR!$D$5:$E$91))","v":0},null,null,{"$f":"'Prior Year Comparative'!B155","v":0},null,null,null,null,null,null,null,null,null,null,null,null,null,null,null,null,null,null,null,null,null,0]
[{"$f":"IF(Descriptions!D78=\"Gift aid recovered\",Descriptions!B78,0)","v":0},{"$f":"SUMPRODUCT((WorkingR!$A$5:$A$91='Receipts - Summary'!A161)*(WorkingR!$D$5:$E$91))","v":0},null,null,{"$f":"'Prior Year Comparative'!B156","v":0},null,null,null,null,null,null,null,null,null,null,null,null,null,null,null,null,null,null,null,null,null,0]
[{"$f":"IF(Descriptions!D79=\"Gift aid recovered\",Descriptions!B79,0)","v":0},{"$f":"SUMPRODUCT((WorkingR!$A$5:$A$91='Receipts - Summary'!A162)*(WorkingR!$D$5:$E$91))","v":0},null,null,{"$f":"'Prior Year Comparative'!B157","v":0},null,null,null,null,null,null,null,null,null,null,null,null,null,null,null,null,null,null,null,null,null,0]
[{"$f":"IF(Descriptions!D80=\"Gift aid recovered\",Descriptions!B80,0)","v":0},{"$f":"SUMPRODUCT((WorkingR!$A$5:$A$91='Receipts - Summary'!A163)*(WorkingR!$D$5:$E$91))","v":0},null,null,{"$f":"'Prior Year Comparative'!B158","v":0},null,null,null,null,null,null,null,null,null,null,null,null,null,null,null,null,null,null,null,null,null,0]
[{"$f":"IF(Descriptions!D81=\"Gift aid recovered\",Descriptions!B81,0)","v":0},{"$f":"SUMPRODUCT((WorkingR!$A$5:$A$91='Receipts - Summary'!A164)*(WorkingR!$D$5:$E$91))","v":0},null,null,{"$f":"'Prior Year Comparative'!B159","v":0},null,null,null,null,null,null,null,null,null,null,null,null,null,null,null,null,null,null,null,null,null,0]
[{"$f":"IF(Descriptions!D82=\"Gift aid recovered\",Descriptions!B82,0)","v":0},{"$f":"SUMPRODUCT((WorkingR!$A$5:$A$91='Receipts - Summary'!A165)*(WorkingR!$D$5:$E$91))","v":0},null,null,{"$f":"'Prior Year Comparative'!B160","v":0},null,null,null,null,null,null,null,null,null,null,null,null,null,null,null,null,null,null,null,null,null,0]
[{"$f":"IF(Descriptions!D83=\"Gift aid recovered\",Descriptions!B83,0)","v":0},{"$f":"SUMPRODUCT((WorkingR!$A$5:$A$91='Receipts - Summary'!A166)*(WorkingR!$D$5:$E$91))","v":0},null,null,{"$f":"'Prior Year Comparative'!B161","v":0},null,null,null,null,null,null,null,null,null,null,null,null,null,null,null,null,null,null,null,null,null,0]
[{"$f":"IF(Descriptions!D84=\"Gift aid recovered\",Descriptions!B84,0)","v":0},{"$f":"SUMPRODUCT((WorkingR!$A$5:$A$91='Receipts - Summary'!A167)*(WorkingR!$D$5:$E$91))","v":0},null,null,{"$f":"'Prior Year Comparative'!B162","v":0},null,null,null,null,null,null,null,null,null,null,null,null,null,null,null,null,null,null,null,null,null,0]
[{"$f":"IF(Descriptions!D85=\"Gift aid recovered\",Descriptions!B85,0)","v":0},{"$f":"SUMPRODUCT((WorkingR!$A$5:$A$91='Receipts - Summary'!A168)*(WorkingR!$D$5:$E$91))","v":0},null,null,{"$f":"'Prior Year Comparative'!B163","v":0},null,null,null,null,null,null,null,null,null,null,null,null,null,null,null,null,null,null,null,null,null,0]
[{"$f":"IF(Descriptions!D86=\"Gift aid recovered\",Descriptions!B86,0)","v":0},{"$f":"SUMPRODUCT((WorkingR!$A$5:$A$91='Receipts - Summary'!A169)*(WorkingR!$D$5:$E$91))","v":0},null,null,{"$f":"'Prior Year Comparative'!B164","v":0},null,null,null,null,null,null,null,null,null,null,null,null,null,null,null,null,null,null,null,null,null,0]
[{"$f":"IF(Descriptions!D87=\"Gift aid recovered\",Descriptions!B87,0)","v":0},{"$f":"SUMPRODUCT((WorkingR!$A$5:$A$91='Receipts - Summary'!A170)*(WorkingR!$D$5:$E$91))","v":0},null,null,{"$f":"'Prior Year Comparative'!B165","v":0},null,null,null,null,null,null,null,null,null,null,null,null,null,null,null,null,null,null,null,null,null,0]
[{"$f":"IF(Descriptions!D88=\"Gift aid recovered\",Descriptions!B88,0)","v":0},{"$f":"SUMPRODUCT((WorkingR!$A$5:$A$91='Receipts - Summary'!A171)*(WorkingR!$D$5:$E$91))","v":0},null,null,{"$f":"'Prior Year Comparative'!B166","v":0},null,null,null,null,null,null,null,null,null,null,null,null,null,null,null,null,null,null,null,null,null,0]
[{"$f":"IF(Descriptions!D89=\"Gift aid recovered\",Descriptions!B89,0)","v":0},{"$f":"SUMPRODUCT((WorkingR!$A$5:$A$91='Receipts - Summary'!A172)*(WorkingR!$D$5:$E$91))","v":0},null,null,{"$f":"'Prior Year Comparative'!B167","v":0},null,null,null,null,null,null,null,null,null,null,null,null,null,null,null,null,null,null,null,null,null,0]
[{"$f":"IF(Descriptions!D90=\"Gift aid recovered\",Descriptions!B90,0)","v":0},{"$f":"SUMPRODUCT((WorkingR!$A$5:$A$91='Receipts - Summary'!A173)*(WorkingR!$D$5:$E$91))","v":0},null,null,{"$f":"'Prior Year Comparative'!B168","v":0},null,null,null,null,null,null,null,null,null,null,null,null,null,null,null,null,null,null,null,null,null,0]
[{"$f":"IF(Descriptions!D91=\"Gift aid recovered\",Descriptions!B91,0)","v":0},{"$f":"SUMPRODUCT((WorkingR!$A$5:$A$91='Receipts - Summary'!A174)*(WorkingR!$D$5:$E$91))","v":0},null,null,{"$f":"'Prior Year Comparative'!B169","v":0},null,null,null,null,null,null,null,null,null,null,null,null,null,null,null,null,null,null,null,null,null,0]
[{"$f":"IF(Descriptions!D92=\"Gift aid recovered\",Descriptions!B92,0)","v":0},{"$f":"SUMPRODUCT((WorkingR!$A$5:$A$91='Receipts - Summary'!A175)*(WorkingR!$D$5:$E$91))","v":0},null,null,{"$f":"'Prior Year Comparative'!B170","v":0},null,null,null,null,null,null,null,null,null,null,null,null,null,null,null,null,null,null,null,null,null,0]
[null,null,{"$f":"SUM(B125:B175)","v":0},null,null,{"$f":"SUM(E125:E175)","v":0},null,null,null,null,null,null,null,null,null,null,null,null,null,null,null,null,null,null,null,null,{"$f":"AA124","v":0}]
["ALL OTHER GIVING/VOLUNTARY RECEIPTS",null,null,null,null,null,null,null,null,null,null,null,null,null,null,null,null,null,null,null,null,null,null,null,null,null,{"$f":"SUM(AA178:AA234)","v":0}]
["Appeals",{"$f":"SUMPRODUCT((WorkingR!$A$5:$A$91='Receipts - Summary'!A178)*(WorkingR!$D$5:$E$91))","v":0},null,null,{"$f":"'Prior Year Comparative'!B173","v":0},null,null,null,null,null,null,null,null,null,null,null,null,null,null,null,null,null,null,null,null,null,{"$f":"Descriptions!AA6","v":0}]
["CAF & GAYE giving",{"$f":"SUMPRODUCT((WorkingR!$A$5:$A$91='Receipts - Summary'!A179)*(WorkingR!$D$5:$E$91))","v":0},null,null,{"$f":"'Prior Year Comparative'!B174","v":0},null,null,null,null,null,null,null,null,null,null,null,null,null,null,null,null,null,null,null,null,null,{"$f":"Descriptions!AA8","v":0}]
["Donations",{"$f":"SUMPRODUCT((WorkingR!$A$5:$A$91='Receipts - Summary'!A180)*(WorkingR!$D$5:$E$91))","v":0},null,null,{"$f":"'Prior Year Comparative'!B175","v":0},null,null,null,null,null,null,null,null,null,null,null,null,null,null,null,null,null,null,null,null,null,{"$f":"Descriptions!AA12","v":0}]
["Gift Aid Envelopes",{"$f":"SUMPRODUCT((WorkingR!$A$5:$A$91='Receipts - Summary'!A181)*(WorkingR!$D$5:$E$91))","v":0},null,null,{"$f":"'Prior Year Comparative'!B176","v":0},null,null,null,null,null,null,null,null,null,null,null,null,null,null,null,null,null,null,null,null,null,{"$f":"Descriptions!AA17","v":0}]
["Gift Days",{"$f":"SUMPRODUCT((WorkingR!$A$5:$A$91='Receipts - Summary'!A182)*(WorkingR!$D$5:$E$91))","v":0},null,null,{"$f":"'Prior Year Comparative'!B177","v":0},null,null,null,null,null,null,null,null,null,null,null,null,null,null,null,null,null,null,null,null,null,{"$f":"Descriptions!AA19","v":0}]
["Donations - Gift Aided",{"$f":"SUMPRODUCT((WorkingR!$A$5:$A$91='Receipts - Summary'!A183)*(WorkingR!$D$5:$E$91))","v":0},null,null,{"$f":"'Prior Year Comparative'!B178","v":0},null,null,null,null,null,null,null,null,null,null,null,null,null,null,null,null,null,null,null,null,null,{"$f":"Descriptions!AA13","v":0}]
["Wall Boxes",{"$f":"SUMPRODUCT((WorkingR!$A$5:$A$91='Receipts - Summary'!A184)*(WorkingR!$D$5:$E$91))","v":0},null,null,{"$f":"'Prior Year Comparative'!B179","v":0},null,null,null,null,null,null,null,null,null,null,null,null,null,null,null,null,null,null,null,null,null,{"$f":"Descriptions!AA38","v":0}]
[{"$f":"IF(Descriptions!D43=\"All other giving/voluntary receipts\",Descriptions!B43,0)","v":0},{"$f":"SUMPRODUCT((WorkingR!$A$5:$A$91='Receipts - Summary'!A185)*(WorkingR!$D$5:$E$91))","v":0},null,null,{"$f":"'Prior Year Comparative'!B180","v":0},null,null,null,null,null,null,null,null,null,null,null,null,null,null,null,null,null,null,null,null,null,{"$f":"IF(A185=0,0,1)","v":0}]
[{"$f":"IF(Descriptions!D44=\"All other giving/voluntary receipts\",Descriptions!B44,0)","v":0},{"$f":"SUMPRODUCT((WorkingR!$A$5:$A$91='Receipts - Summary'!A186)*(WorkingR!$D$5:$E$91))","v":0},null,null,{"$f":"'Prior Year Comparative'!B181","v":0},null,null,null,null,null,null,null,null,null,null,null,null,null,null,null,null,null,null,null,null,null,{"$f":"IF(A186=0,0,1)","v":0}]
[{"$f":"IF(Descriptions!D45=\"All other giving/voluntary receipts\",Descriptions!B45,0)","v":0},{"$f":"SUMPRODUCT((WorkingR!$A$5:$A$91='Receipts - Summary'!A187)*(WorkingR!$D$5:$E$91))","v":0},null,null,{"$f":"'Prior Year Comparative'!B182","v":0},null,null,null,null,null,null,null,null,null,null,null,null,null,null,null,null,null,null,null,null,null,0]
[{"$f":"IF(Descriptions!D46=\"All other giving/voluntary receipts\",Descriptions!B46,0)","v":0},{"$f":"SUMPRODUCT((WorkingR!$A$5:$A$91='Receipts - Summary'!A188)*(WorkingR!$D$5:$E$91))","v":0},null,null,{"$f":"'Prior Year Comparative'!B183","v":0},null,null,null,null,null,null,null,null,null,null,null,null,null,null,null,null,null,null,null,null,null,0]
[{"$f":"IF(Descriptions!D47=\"All other giving/voluntary receipts\",Descriptions!B47,0)","v":0},{"$f":"SUMPRODUCT((WorkingR!$A$5:$A$91='Receipts - Summary'!A189)*(WorkingR!$D$5:$E$91))","v":0},null,null,{"$f":"'Prior Year Comparative'!B184","v":0},null,null,null,null,null,null,null,null,null,null,null,null,null,null,null,null,null,null,null,null,null,0]
[{"$f":"IF(Descriptions!D48=\"All other giving/voluntary receipts\",Descriptions!B48,0)","v":0},{"$f":"SUMPRODUCT((WorkingR!$A$5:$A$91='Receipts - Summary'!A190)*(WorkingR!$D$5:$E$91))","v":0},null,null,{"$f":"'Prior Year Comparative'!B185","v":0},null,null,null,null,null,null,null,null,null,null,null,null,null,null,null,null,null,null,null,null,null,0]
[{"$f":"IF(Descriptions!D49=\"All other giving/voluntary receipts\",Descriptions!B49,0)","v":0},{"$f":"SUMPRODUCT((WorkingR!$A$5:$A$91='Receipts - Summary'!A191)*(WorkingR!$D$5:$E$91))","v":0},null,null,{"$f":"'Prior Year Comparative'!B186","v":0},null,null,null,null,null,null,null,null,null,null,null,null,null,null,null,null,null,null,null,null,null,0]
[{"$f":"IF(Descriptions!D50=\"All other giving/voluntary receipts\",Descriptions!B50,0)","v":0},{"$f":"SUMPRODUCT((WorkingR!$A$5:$A$91='Receipts - Summary'!A192)*(WorkingR!$D$5:$E$91))","v":0},null,null,{"$f":"'Prior Year Comparative'!B187","v":0},null,null,null,null,null,null,null,null,null,null,null,null,null,null,null,null,null,null,null,null,null,0]
[{"$f":"IF(Descriptions!D51=\"All other giving/voluntary receipts\",Descriptions!B51,0)","v":0},{"$f":"SUMPRODUCT((WorkingR!$A$5:$A$91='Receipts - Summary'!A193)*(WorkingR!$D$5:$E$91))","v":0},null,null,{"$f":"'Prior Year Comparative'!B188","v":0},null,null,null,null,null,null,null,null,null,null,null,null,null,null,null,null,null,null,null,null,null,0]
[{"$f":"IF(Descriptions!D52=\"All other giving/voluntary receipts\",Descriptions!B52,0)","v":0},{"$f":"SUMPRODUCT((WorkingR!$A$5:$A$91='Receipts - Summary'!A194)*(WorkingR!$D$5:$E$91))","v":0},null,null,{"$f":"'Prior Year Comparative'!B189","v":0},null,null,null,null,null,null,null,null,null,null,null,null,null,null,null,null,null,null,null,null,null,0]
[{"$f":"IF(Descriptions!D53=\"All other giving/voluntary receipts\",Descriptions!B53,0)","v":0},{"$f":"SUMPRODUCT((WorkingR!$A$5:$A$91='Receipts - Summary'!A195)*(WorkingR!$D$5:$E$91))","v":0},null,null,{"$f":"'Prior Year Comparative'!B190","v":0},null,null,null,null,null,null,null,null,null,null,null,null,null,null,null,null,null,null,null,null,null,0]
[{"$f":"IF(Descriptions!D54=\"All other giving/voluntary receipts\",Descriptions!B54,0)","v":0},{"$f":"SUMPRODUCT((WorkingR!$A$5:$A$91='Receipts - Summary'!A196)*(WorkingR!$D$5:$E$91))","v":0},null,null,{"$f":"'Prior Year Comparative'!B191","v":0},null,null,null,null,null,null,null,null,null,null,null,null,null,null,null,null,null,null,null,null,null,0]
[{"$f":"IF(Descriptions!D55=\"All other giving/voluntary receipts\",Descriptions!B55,0)","v":0},{"$f":"SUMPRODUCT((WorkingR!$A$5:$A$91='Receipts - Summary'!A197)*(WorkingR!$D$5:$E$91))","v":0},null,null,{"$f":"'Prior Year Comparative'!B192","v":0},null,null,null,null,null,null,null,null,null,null,null,null,null,null,null,null,null,null,null,null,null,0]
[{"$f":"IF(Descriptions!D56=\"All other giving/voluntary receipts\",Descriptions!B56,0)","v":0},{"$f":"SUMPRODUCT((WorkingR!$A$5:$A$91='Receipts - Summary'!A198)*(WorkingR!$D$5:$E$91))","v":0},null,null,{"$f":"'Prior Year Comparative'!B193","v":0},null,null,null,null,null,null,null,null,null,null,null,null,null,null,null,null,null,null,null,null,null,0]
[{"$f":"IF(Descriptions!D57=\"All other giving/voluntary receipts\",Descriptions!B57,0)","v":0},{"$f":"SUMPRODUCT((WorkingR!$A$5:$A$91='Receipts - Summary'!A199)*(WorkingR!$D$5:$E$91))","v":0},null,null,{"$f":"'Prior Year Comparative'!B194","v":0},null,null,null,null,null,null,null,null,null,null,null,null,null,null,null,null,null,null,null,null,null,0]
[{"$f":"IF(Descriptions!D58=\"All other giving/voluntary receipts\",Descriptions!B58,0)","v":0},{"$f":"SUMPRODUCT((WorkingR!$A$5:$A$91='Receipts - Summary'!A200)*(WorkingR!$D$5:$E$91))","v":0},null,null,{"$f":"'Prior Year Comparative'!B195","v":0},null,null,null,null,null,null,null,null,null,null,null,null,null,null,null,null,null,null,null,null,null,0]
[{"$f":"IF(Descriptions!D59=\"All other giving/voluntary receipts\",Descriptions!B59,0)","v":0},{"$f":"SUMPRODUCT((WorkingR!$A$5:$A$91='Receipts - Summary'!A201)*(WorkingR!$D$5:$E$91))","v":0},null,null,{"$f":"'Prior Year Comparative'!B196","v":0},null,null,null,null,null,null,null,null,null,null,null,null,null,null,null,null,null,null,null,null,null,0]
[{"$f":"IF(Descriptions!D60=\"All other giving/voluntary receipts\",Descriptions!B60,0)","v":0},{"$f":"SUMPRODUCT((WorkingR!$A$5:$A$91='Receipts - Summary'!A202)*(WorkingR!$D$5:$E$91))","v":0},null,null,{"$f":"'Prior Year Comparative'!B197","v":0},null,null,null,null,null,null,null,null,null,null,null,null,null,null,null,null,null,null,null,null,null,0]
[{"$f":"IF(Descriptions!D61=\"All other giving/voluntary receipts\",Descriptions!B61,0)","v":0},{"$f":"SUMPRODUCT((WorkingR!$A$5:$A$91='Receipts - Summary'!A203)*(WorkingR!$D$5:$E$91))","v":0},null,null,{"$f":"'Prior Year Comparative'!B198","v":0},null,null,null,null,null,null,null,null,null,null,null,null,null,null,null,null,null,null,null,null,null,0]
[{"$f":"IF(Descriptions!D62=\"All other giving/voluntary receipts\",Descriptions!B62,0)","v":0},{"$f":"SUMPRODUCT((WorkingR!$A$5:$A$91='Receipts - Summary'!A204)*(WorkingR!$D$5:$E$91))","v":0},null,null,{"$f":"'Prior Year Comparative'!B199","v":0},null,null,null,null,null,null,null,null,null,null,null,null,null,null,null,null,null,null,null,null,null,0]
[{"$f":"IF(Descriptions!D63=\"All other giving/voluntary receipts\",Descriptions!B63,0)","v":0},{"$f":"SUMPRODUCT((WorkingR!$A$5:$A$91='Receipts - Summary'!A205)*(WorkingR!$D$5:$E$91))","v":0},null,null,{"$f":"'Prior Year Comparative'!B200","v":0},null,null,null,null,null,null,null,null,null,null,null,null,null,null,null,null,null,null,null,null,null,0]
[{"$f":"IF(Descriptions!D64=\"All other giving/voluntary receipts\",Descriptions!B64,0)","v":0},{"$f":"SUMPRODUCT((WorkingR!$A$5:$A$91='Receipts - Summary'!A206)*(WorkingR!$D$5:$E$91))","v":0},null,null,{"$f":"'Prior Year Comparative'!B201","v":0},null,null,null,null,null,null,null,null,null,null,null,null,null,null,null,null,null,null,null,null,null,0]
[{"$f":"IF(Descriptions!D65=\"All other giving/voluntary receipts\",Descriptions!B65,0)","v":0},{"$f":"SUMPRODUCT((WorkingR!$A$5:$A$91='Receipts - Summary'!A207)*(WorkingR!$D$5:$E$91))","v":0},null,null,{"$f":"'Prior Year Comparative'!B202","v":0},null,null,null,null,null,null,null,null,null,null,null,null,null,null,null,null,null,null,null,null,null,0]
[{"$f":"IF(Descriptions!D66=\"All other giving/voluntary receipts\",Descriptions!B66,0)","v":0},{"$f":"SUMPRODUCT((WorkingR!$A$5:$A$91='Receipts - Summary'!A208)*(WorkingR!$D$5:$E$91))","v":0},null,null,{"$f":"'Prior Year Comparative'!B203","v":0},null,null,null,null,null,null,null,null,null,null,null,null,null,null,null,null,null,null,null,null,null,0]
[{"$f":"IF(Descriptions!D67=\"All other giving/voluntary receipts\",Descriptions!B67,0)","v":0},{"$f":"SUMPRODUCT((WorkingR!$A$5:$A$91='Receipts - Summary'!A209)*(WorkingR!$D$5:$E$91))","v":0},null,null,{"$f":"'Prior Year Comparative'!B204","v":0},null,null,null,null,null,null,null,null,null,null,null,null,null,null,null,null,null,null,null,null,null,0]
[{"$f":"IF(Descriptions!D68=\"All other giving/voluntary receipts\",Descriptions!B68,0)","v":0},{"$f":"SUMPRODUCT((WorkingR!$A$5:$A$91='Receipts - Summary'!A210)*(WorkingR!$D$5:$E$91))","v":0},null,null,{"$f":"'Prior Year Comparative'!B205","v":0},null,null,null,null,null,null,null,null,null,null,null,null,null,null,null,null,null,null,null,null,null,0]
[{"$f":"IF(Descriptions!D69=\"All other giving/voluntary receipts\",Descriptions!B69,0)","v":0},{"$f":"SUMPRODUCT((WorkingR!$A$5:$A$91='Receipts - Summary'!A211)*(WorkingR!$D$5:$E$91))","v":0},null,null,{"$f":"'Prior Year Comparative'!B206","v":0},null,null,null,null,null,null,null,null,null,null,null,null,null,null,null,null,null,null,null,null,null,0]
[{"$f":"IF(Descriptions!D70=\"All other giving/voluntary receipts\",Descriptions!B70,0)","v":0},{"$f":"SUMPRODUCT((WorkingR!$A$5:$A$91='Receipts - Summary'!A212)*(WorkingR!$D$5:$E$91))","v":0},null,null,{"$f":"'Prior Year Comparative'!B207","v":0},null,null,null,null,null,null,null,null,null,null,null,null,null,null,null,null,null,null,null,null,null,0]
[{"$f":"IF(Descriptions!D71=\"All other giving/voluntary receipts\",Descriptions!B71,0)","v":0},{"$f":"SUMPRODUCT((WorkingR!$A$5:$A$91='Receipts - Summary'!A213)*(WorkingR!$D$5:$E$91))","v":0},null,null,{"$f":"'Prior Year Comparative'!B208","v":0},null,null,null,null,null,null,null,null,null,null,null,null,null,null,null,null,null,null,null,null,null,0]
[{"$f":"IF(Descriptions!D72=\"All other giving/voluntary receipts\",Descriptions!B72,0)","v":0},{"$f":"SUMPRODUCT((WorkingR!$A$5:$A$91='Receipts - Summary'!A214)*(WorkingR!$D$5:$E$91))","v":0},null,null,{"$f":"'Prior Year Comparative'!B209","v":0},null,null,null,null,null,null,null,null,null,null,null,null,null,null,null,null,null,null,null,null,null,0]
[{"$f":"IF(Descriptions!D73=\"All other giving/voluntary receipts\",Descriptions!B73,0)","v":0},{"$f":"SUMPRODUCT((WorkingR!$A$5:$A$91='Receipts - Summary'!A215)*(WorkingR!$D$5:$E$91))","v":0},null,null,{"$f":"'Prior Year Comparative'!B210","v":0},null,null,null,null,null,null,null,null,null,null,null,null,null,null,null,null,null,null,null,null,null,0]
[{"$f":"IF(Descriptions!D74=\"All other giving/voluntary receipts\",Descriptions!B74,0)","v":0},{"$f":"SUMPRODUCT((WorkingR!$A$5:$A$91='Receipts - Summary'!A216)*(WorkingR!$D$5:$E$91))","v":0},null,null,{"$f":"'Prior Year Comparative'!B211","v":0},null,null,null,null,null,null,null,null,null,null,null,null,null,null,null,null,null,null,null,null,null,0]
[{"$f":"IF(Descriptions!D75=\"All other giving/voluntary receipts\",Descriptions!B75,0)","v":0},{"$f":"SUMPRODUCT((WorkingR!$A$5:$A$91='Receipts - Summary'!A217)*(WorkingR!$D$5:$E$91))","v":0},null,null,{"$f":"'Prior Year Comparative'!B212","v":0},null,null,null,null,null,null,null,null,null,null,null,null,null,null,null,null,null,null,null,null,null,0]
[{"$f":"IF(Descriptions!D76=\"All other giving/voluntary receipts\",Descriptions!B76,0)","v":0},{"$f":"SUMPRODUCT((WorkingR!$A$5:$A$91='Receipts - Summary'!A218)*(WorkingR!$D$5:$E$91))","v":0},null,null,{"$f":"'Prior Year Comparative'!B213","v":0},null,null,null,null,null,null,null,null,null,null,null,null,null,null,null,null,null,null,null,null,null,0]
[{"$f":"IF(Descriptions!D77=\"All other giving/voluntary receipts\",Descriptions!B77,0)","v":0},{"$f":"SUMPRODUCT((WorkingR!$A$5:$A$91='Receipts - Summary'!A219)*(WorkingR!$D$5:$E$91))","v":0},null,null,{"$f":"'Prior Year Comparative'!B214","v":0},null,null,null,null,null,null,null,null,null,null,null,null,null,null,null,null,null,null,null,null,null,0]
[{"$f":"IF(Descriptions!D78=\"All other giving/voluntary receipts\",Descriptions!B78,0)","v":0},{"$f":"SUMPRODUCT((WorkingR!$A$5:$A$91='Receipts - Summary'!A220)*(WorkingR!$D$5:$E$91))","v":0},null,null,{"$f":"'Prior Year Comparative'!B215","v":0},null,null,null,null,null,null,null,null,null,null,null,null,null,null,null,null,null,null,null,null,null,0]
[{"$f":"IF(Descriptions!D79=\"All other giving/voluntary receipts\",Descriptions!B79,0)","v":0},{"$f":"SUMPRODUCT((WorkingR!$A$5:$A$91='Receipts - Summary'!A221)*(WorkingR!$D$5:$E$91))","v":0},null,null,{"$f":"'Prior Year Comparative'!B216","v":0},null,null,null,null,null,null,null,null,null,null,null,null,null,null,null,null,null,null,null,null,null,0]
[{"$f":"IF(Descriptions!D80=\"All other giving/voluntary receipts\",Descriptions!B80,0)","v":0},{"$f":"SUMPRODUCT((WorkingR!$A$5:$A$91='Receipts - Summary'!A222)*(WorkingR!$D$5:$E$91))","v":0},null,null,{"$f":"'Prior Year Comparative'!B217","v":0},null,null,null,null,null,null,null,null,null,null,null,null,null,null,null,null,null,null,null,null,null,0]
[{"$f":"IF(Descriptions!D81=\"All other giving/voluntary receipts\",Descriptions!B81,0)","v":0},{"$f":"SUMPRODUCT((WorkingR!$A$5:$A$91='Receipts - Summary'!A223)*(WorkingR!$D$5:$E$91))","v":0},null,null,{"$f":"'Prior Year Comparative'!B218","v":0},null,null,null,null,null,null,null,null,null,null,null,null,null,null,null,null,null,null,null,null,null,0]
[{"$f":"IF(Descriptions!D82=\"All other giving/voluntary receipts\",Descriptions!B82,0)","v":0},{"$f":"SUMPRODUCT((WorkingR!$A$5:$A$91='Receipts - Summary'!A224)*(WorkingR!$D$5:$E$91))","v":0},null,null,{"$f":"'Prior Year Comparative'!B219","v":0},null,null,null,null,null,null,null,null,null,null,null,null,null,null,null,null,null,null,null,null,null,0]
[{"$f":"IF(Descriptions!D83=\"All other giving/voluntary receipts\",Descriptions!B83,0)","v":0},{"$f":"SUMPRODUCT((WorkingR!$A$5:$A$91='Receipts - Summary'!A225)*(WorkingR!$D$5:$E$91))","v":0},null,null,{"$f":"'Prior Year Comparative'!B220","v":0},null,null,null,null,null,null,null,null,null,null,null,null,null,null,null,null,null,null,null,null,null,0]
[{"$f":"IF(Descriptions!D84=\"All other giving/voluntary receipts\",Descriptions!B84,0)","v":0},{"$f":"SUMPRODUCT((WorkingR!$A$5:$A$91='Receipts - Summary'!A226)*(WorkingR!$D$5:$E$91))","v":0},null,null,{"$f":"'Prior Year Comparative'!B221","v":0},null,null,null,null,null,null,null,null,null,null,null,null,null,null,null,null,null,null,null,null,null,0]
[{"$f":"IF(Descriptions!D85=\"All other giving/voluntary receipts\",Descriptions!B85,0)","v":0},{"$f":"SUMPRODUCT((WorkingR!$A$5:$A$91='Receipts - Summary'!A227)*(WorkingR!$D$5:$E$91))","v":0},null,null,{"$f":"'Prior Year Comparative'!B222","v":0},null,null,null,null,null,null,null,null,null,null,null,null,null,null,null,null,null,null,null,null,null,0]
[{"$f":"IF(Descriptions!D86=\"All other giving/voluntary receipts\",Descriptions!B86,0)","v":0},{"$f":"SUMPRODUCT((WorkingR!$A$5:$A$91='Receipts - Summary'!A228)*(WorkingR!$D$5:$E$91))","v":0},null,null,{"$f":"'Prior Year Comparative'!B223","v":0},null,null,null,null,null,null,null,null,null,null,null,null,null,null,null,null,null,null,null,null,null,0]
[{"$f":"IF(Descriptions!D87=\"All other giving/voluntary receipts\",Descriptions!B87,0)","v":0},{"$f":"SUMPRODUCT((WorkingR!$A$5:$A$91='Receipts - Summary'!A229)*(WorkingR!$D$5:$E$91))","v":0},null,null,{"$f":"'Prior Year Comparative'!B224","v":0},null,null,null,null,null,null,null,null,null,null,null,null,null,null,null,null,null,null,null,null,null,0]
[{"$f":"IF(Descriptions!D88=\"All other giving/voluntary receipts\",Descriptions!B88,0)","v":0},{"$f":"SUMPRODUCT((WorkingR!$A$5:$A$91='Receipts - Summary'!A230)*(WorkingR!$D$5:$E$91))","v":0},null,null,{"$f":"'Prior Year Comparative'!B225","v":0},null,null,null,null,null,null,null,null,null,null,null,null,null,null,null,null,null,null,null,null,null,0]
[{"$f":"IF(Descriptions!D89=\"All other giving/voluntary receipts\",Descriptions!B89,0)","v":0},{"$f":"SUMPRODUCT((WorkingR!$A$5:$A$91='Receipts - Summary'!A231)*(WorkingR!$D$5:$E$91))","v":0},null,null,{"$f":"'Prior Year Comparative'!B226","v":0},null,null,null,null,null,null,null,null,null,null,null,null,null,null,null,null,null,null,null,null,null,0]
[{"$f":"IF(Descriptions!D90=\"All other giving/voluntary receipts\",Descriptions!B90,0)","v":0},{"$f":"SUMPRODUCT((WorkingR!$A$5:$A$91='Receipts - Summary'!A232)*(WorkingR!$D$5:$E$91))","v":0},null,null,{"$f":"'Prior Year Comparative'!B227","v":0},null,null,null,null,null,null,null,null,null,null,null,null,null,null,null,null,null,null,null,null,null,{"$f":"IF(A232=0,0,1)","v":0}]
[{"$f":"IF(Descriptions!D91=\"All other giving/voluntary receipts\",Descriptions!B91,0)","v":0},{"$f":"SUMPRODUCT((WorkingR!$A$5:$A$91='Receipts - Summary'!A233)*(WorkingR!$D$5:$E$91))","v":0},null,null,{"$f":"'Prior Year Comparative'!B228","v":0},null,null,null,null,null,null,null,null,null,null,null,null,null,null,null,null,null,null,null,null,null,{"$f":"IF(A233=0,0,1)","v":0}]
[{"$f":"IF(Descriptions!D92=\"All other giving/voluntary receipts\",Descriptions!B92,0)","v":0},{"$f":"SUMPRODUCT((WorkingR!$A$5:$A$91='Receipts - Summary'!A234)*(WorkingR!$D$5:$E$91))","v":0},null,null,{"$f":"'Prior Year Comparative'!B229","v":0},null,null,null,null,null,null,null,null,null,null,null,null,null,null,null,null,null,null,null,null,null,{"$f":"IF(A234=0,0,1)","v":0}]
[null,null,{"$f":"SUM(B178:B234)","v":0},null,null,{"$f":"SUM(E178:E234)","v":0},null,null,null,null,null,null,null,null,null,null,null,null,null,null,null,null,null,null,null,null,{"$f":"AA177","v":0}]
["ACTIVITIES FOR GENERATING FUNDS",null,null,null,null,null,null,null,null,null,null,null,null,null,null,null,null,null,null,null,null,null,null,null,null,null,{"$f":"SUM(AA237:AA292)","v":0}]
["Bookstall",{"$f":"SUMPRODUCT((WorkingR!$A$5:$A$91='Receipts - Summary'!A237)*(WorkingR!$D$5:$E$91))","v":0},null,null,{"$f":"'Prior Year Comparative'!B232","v":0},null,null,null,null,null,null,null,null,null,null,null,null,null,null,null,null,null,null,null,null,null,{"$f":"Descriptions!AA7","v":0}]
["Magazine",{"$f":"SUMPRODUCT((WorkingR!$A$5:$A$91='Receipts - Summary'!A238)*(WorkingR!$D$5:$E$91))","v":0},null,null,{"$f":"'Prior Year Comparative'!B233","v":0},null,null,null,null,null,null,null,null,null,null,null,null,null,null,null,null,null,null,null,null,null,{"$f":"Descriptions!AA25","v":0}]
["Fete",{"$f":"SUMPRODUCT((WorkingR!$A$5:$A$91='Receipts - Summary'!A239)*(WorkingR!$D$5:$E$91))","v":0},null,null,{"$f":"'Prior Year Comparative'!B234","v":0},null,null,null,null,null,null,null,null,null,null,null,null,null,null,null,null,null,null,null,null,null,{"$f":"Descriptions!AA16","v":0}]
["Churches Together Bike Ride",{"$f":"SUMPRODUCT((WorkingR!$A$5:$A$91='Receipts - Summary'!A240)*(WorkingR!$D$5:$E$91))","v":0},null,null,{"$f":"'Prior Year Comparative'!B235","v":0},null,null,null,null,null,null,null,null,null,null,null,null,null,null,null,null,null,null,null,null,null,{"$f":"Descriptions!AA10","v":0}]
["Sales",{"$f":"SUMPRODUCT((WorkingR!$A$5:$A$91='Receipts - Summary'!A241)*(WorkingR!$D$5:$E$91))","v":0},null,null,{"$f":"'Prior Year Comparative'!B236","v":0},null,null,null,null,null,null,null,null,null,null,null,null,null,null,null,null,null,null,null,null,null,{"$f":"Descriptions!AA32","v":0}]
["Other Fundraising Income",{"$f":"SUMPRODUCT((WorkingR!$A$5:$A$91='Receipts - Summary'!A242)*(WorkingR!$D$5:$E$91))","v":0},null,null,{"$f":"'Prior Year Comparative'!B237","v":0},null,null,null,null,null,null,null,null,null,null,null,null,null,null,null,null,null,null,null,null,null,{"$f":"Descriptions!AA27","v":0}]
[{"$f":"IF(Descriptions!D43=\"Activites for generating funds\",Descriptions!B43,0)","v":0},{"$f":"SUMPRODUCT((WorkingR!$A$5:$A$91='Receipts - Summary'!A243)*(WorkingR!$D$5:$E$91))","v":0},null,null,{"$f":"'Prior Year Comparative'!B238","v":0},null,null,null,null,null,null,null,null,null,null,null,null,null,null,null,null,null,null,null,null,null,{"$f":"IF(A243=0,0,1)","v":0}]
[{"$f":"IF(Descriptions!D44=\"Activites for generating funds\",Descriptions!B44,0)","v":0},{"$f":"SUMPRODUCT((WorkingR!$A$5:$A$91='Receipts - Summary'!A244)*(WorkingR!$D$5:$E$91))","v":0},null,null,{"$f":"'Prior Year Comparative'!B239","v":0},null,null,null,null,null,null,null,null,null,null,null,null,null,null,null,null,null,null,null,null,null,{"$f":"IF(A244=0,0,1)","v":0}]
[{"$f":"IF(Descriptions!D45=\"Activites for generating funds\",Descriptions!B45,0)","v":0},{"$f":"SUMPRODUCT((WorkingR!$A$5:$A$91='Receipts - Summary'!A245)*(WorkingR!$D$5:$E$91))","v":0},null,null,{"$f":"'Prior Year Comparative'!B240","v":0},null,null,null,null,null,null,null,null,null,null,null,null,null,null,null,null,null,null,null,null,null,0]
[{"$f":"IF(Descriptions!D46=\"Activites for generating funds\",Descriptions!B46,0)","v":0},{"$f":"SUMPRODUCT((WorkingR!$A$5:$A$91='Receipts - Summary'!A246)*(WorkingR!$D$5:$E$91))","v":0},null,null,{"$f":"'Prior Year Comparative'!B241","v":0},null,null,null,null,null,null,null,null,null,null,null,null,null,null,null,null,null,null,null,null,null,0]
[{"$f":"IF(Descriptions!D47=\"Activites for generating funds\",Descriptions!B47,0)","v":0},{"$f":"SUMPRODUCT((WorkingR!$A$5:$A$91='Receipts - Summary'!A247)*(WorkingR!$D$5:$E$91))","v":0},null,null,{"$f":"'Prior Year Comparative'!B242","v":0},null,null,null,null,null,null,null,null,null,null,null,null,null,null,null,null,null,null,null,null,null,0]
[{"$f":"IF(Descriptions!D48=\"Activites for generating funds\",Descriptions!B48,0)","v":0},{"$f":"SUMPRODUCT((WorkingR!$A$5:$A$91='Receipts - Summary'!A248)*(WorkingR!$D$5:$E$91))","v":0},null,null,{"$f":"'Prior Year Comparative'!B243","v":0},null,null,null,null,null,null,null,null,null,null,null,null,null,null,null,null,null,null,null,null,null,0]
[{"$f":"IF(Descriptions!D49=\"Activites for generating funds\",Descriptions!B49,0)","v":0},{"$f":"SUMPRODUCT((WorkingR!$A$5:$A$91='Receipts - Summary'!A249)*(WorkingR!$D$5:$E$91))","v":0},null,null,{"$f":"'Prior Year Comparative'!B244","v":0},null,null,null,null,null,null,null,null,null,null,null,null,null,null,null,null,null,null,null,null,null,0]
[{"$f":"IF(Descriptions!D50=\"Activites for generating funds\",Descriptions!B50,0)","v":0},{"$f":"SUMPRODUCT((WorkingR!$A$5:$A$91='Receipts - Summary'!A250)*(WorkingR!$D$5:$E$91))","v":0},null,null,{"$f":"'Prior Year Comparative'!B245","v":0},null,null,null,null,null,null,null,null,null,null,null,null,null,null,null,null,null,null,null,null,null,0]
[{"$f":"IF(Descriptions!D51=\"Activites for generating funds\",Descriptions!B51,0)","v":0},{"$f":"SUMPRODUCT((WorkingR!$A$5:$A$91='Receipts - Summary'!A251)*(WorkingR!$D$5:$E$91))","v":0},null,null,{"$f":"'Prior Year Comparative'!B246","v":0},null,null,null,null,null,null,null,null,null,null,null,null,null,null,null,null,null,null,null,null,null,0]
[{"$f":"IF(Descriptions!D52=\"Activites for generating funds\",Descriptions!B52,0)","v":0},{"$f":"SUMPRODUCT((WorkingR!$A$5:$A$91='Receipts - Summary'!A252)*(WorkingR!$D$5:$E$91))","v":0},null,null,{"$f":"'Prior Year Comparative'!B247","v":0},null,null,null,null,null,null,null,null,null,null,null,null,null,null,null,null,null,null,null,null,null,0]
[{"$f":"IF(Descriptions!D53=\"Activites for generating funds\",Descriptions!B53,0)","v":0},{"$f":"SUMPRODUCT((WorkingR!$A$5:$A$91='Receipts - Summary'!A253)*(WorkingR!$D$5:$E$91))","v":0},null,null,{"$f":"'Prior Year Comparative'!B248","v":0},null,null,null,null,null,null,null,null,null,null,null,null,null,null,null,null,null,null,null,null,null,0]
[{"$f":"IF(Descriptions!D54=\"Activites for generating funds\",Descriptions!B54,0)","v":0},{"$f":"SUMPRODUCT((WorkingR!$A$5:$A$91='Receipts - Summary'!A254)*(WorkingR!$D$5:$E$91))","v":0},null,null,{"$f":"'Prior Year Comparative'!B249","v":0},null,null,null,null,null,null,null,null,null,null,null,null,null,null,null,null,null,null,null,null,null,0]
[{"$f":"IF(Descriptions!D55=\"Activites for generating funds\",Descriptions!B55,0)","v":0},{"$f":"SUMPRODUCT((WorkingR!$A$5:$A$91='Receipts - Summary'!A255)*(WorkingR!$D$5:$E$91))","v":0},null,null,{"$f":"'Prior Year Comparative'!B250","v":0},null,null,null,null,null,null,null,null,null,null,null,null,null,null,null,null,null,null,null,null,null,0]
[{"$f":"IF(Descriptions!D56=\"Activites for generating funds\",Descriptions!B56,0)","v":0},{"$f":"SUMPRODUCT((WorkingR!$A$5:$A$91='Receipts - Summary'!A256)*(WorkingR!$D$5:$E$91))","v":0},null,null,{"$f":"'Prior Year Comparative'!B251","v":0},null,null,null,null,null,null,null,null,null,null,null,null,null,null,null,null,null,null,null,null,null,0]
[{"$f":"IF(Descriptions!D57=\"Activites for generating funds\",Descriptions!B57,0)","v":0},{"$f":"SUMPRODUCT((WorkingR!$A$5:$A$91='Receipts - Summary'!A257)*(WorkingR!$D$5:$E$91))","v":0},null,null,{"$f":"'Prior Year Comparative'!B252","v":0},null,null,null,null,null,null,null,null,null,null,null,null,null,null,null,null,null,null,null,null,null,0]
[{"$f":"IF(Descriptions!D58=\"Activites for generating funds\",Descriptions!B58,0)","v":0},{"$f":"SUMPRODUCT((WorkingR!$A$5:$A$91='Receipts - Summary'!A258)*(WorkingR!$D$5:$E$91))","v":0},null,null,{"$f":"'Prior Year Comparative'!B253","v":0},null,null,null,null,null,null,null,null,null,null,null,null,null,null,null,null,null,null,null,null,null,0]
[{"$f":"IF(Descriptions!D59=\"Activites for generating funds\",Descriptions!B59,0)","v":0},{"$f":"SUMPRODUCT((WorkingR!$A$5:$A$91='Receipts - Summary'!A259)*(WorkingR!$D$5:$E$91))","v":0},null,null,{"$f":"'Prior Year Comparative'!B254","v":0},null,null,null,null,null,null,null,null,null,null,null,null,null,null,null,null,null,null,null,null,null,0]
[{"$f":"IF(Descriptions!D60=\"Activites for generating funds\",Descriptions!B60,0)","v":0},{"$f":"SUMPRODUCT((WorkingR!$A$5:$A$91='Receipts - Summary'!A260)*(WorkingR!$D$5:$E$91))","v":0},null,null,{"$f":"'Prior Year Comparative'!B255","v":0},null,null,null,null,null,null,null,null,null,null,null,null,null,null,null,null,null,null,null,null,null,0]
[{"$f":"IF(Descriptions!D61=\"Activites for generating funds\",Descriptions!B61,0)","v":0},{"$f":"SUMPRODUCT((WorkingR!$A$5:$A$91='Receipts - Summary'!A261)*(WorkingR!$D$5:$E$91))","v":0},null,null,{"$f":"'Prior Year Comparative'!B256","v":0},null,null,null,null,null,null,null,null,null,null,null,null,null,null,null,null,null,null,null,null,null,0]
[{"$f":"IF(Descriptions!D62=\"Activites for generating funds\",Descriptions!B62,0)","v":0},{"$f":"SUMPRODUCT((WorkingR!$A$5:$A$91='Receipts - Summary'!A262)*(WorkingR!$D$5:$E$91))","v":0},null,null,{"$f":"'Prior Year Comparative'!B257","v":0},null,null,null,null,null,null,null,null,null,null,null,null,null,null,null,null,null,null,null,null,null,0]
[{"$f":"IF(Descriptions!D63=\"Activites for generating funds\",Descriptions!B63,0)","v":0},{"$f":"SUMPRODUCT((WorkingR!$A$5:$A$91='Receipts - Summary'!A263)*(WorkingR!$D$5:$E$91))","v":0},null,null,{"$f":"'Prior Year Comparative'!B258","v":0},null,null,null,null,null,null,null,null,null,null,null,null,null,null,null,null,null,null,null,null,null,0]
[{"$f":"IF(Descriptions!D64=\"Activites for generating funds\",Descriptions!B64,0)","v":0},{"$f":"SUMPRODUCT((WorkingR!$A$5:$A$91='Receipts - Summary'!A264)*(WorkingR!$D$5:$E$91))","v":0},null,null,{"$f":"'Prior Year Comparative'!B259","v":0},null,null,null,null,null,null,null,null,null,null,null,null,null,null,null,null,null,null,null,null,null,0]
[{"$f":"IF(Descriptions!D65=\"Activites for generating funds\",Descriptions!B65,0)","v":0},{"$f":"SUMPRODUCT((WorkingR!$A$5:$A$91='Receipts - Summary'!A265)*(WorkingR!$D$5:$E$91))","v":0},null,null,{"$f":"'Prior Year Comparative'!B260","v":0},null,null,null,null,null,null,null,null,null,null,null,null,null,null,null,null,null,null,null,null,null,0]
[{"$f":"IF(Descriptions!D66=\"Activites for generating funds\",Descriptions!B66,0)","v":0},{"$f":"SUMPRODUCT((WorkingR!$A$5:$A$91='Receipts - Summary'!A266)*(WorkingR!$D$5:$E$91))","v":0},null,null,{"$f":"'Prior Year Comparative'!B261","v":0},null,null,null,null,null,null,null,null,null,null,null,null,null,null,null,null,null,null,null,null,null,0]
[{"$f":"IF(Descriptions!D67=\"Activites for generating funds\",Descriptions!B67,0)","v":0},{"$f":"SUMPRODUCT((WorkingR!$A$5:$A$91='Receipts - Summary'!A267)*(WorkingR!$D$5:$E$91))","v":0},null,null,{"$f":"'Prior Year Comparative'!B262","v":0},null,null,null,null,null,null,null,null,null,null,null,null,null,null,null,null,null,null,null,null,null,0]
[{"$f":"IF(Descriptions!D68=\"Activites for generating funds\",Descriptions!B68,0)","v":0},{"$f":"SUMPRODUCT((WorkingR!$A$5:$A$91='Receipts - Summary'!A268)*(WorkingR!$D$5:$E$91))","v":0},null,null,{"$f":"'Prior Year Comparative'!B263","v":0},null,null,null,null,null,null,null,null,null,null,null,null,null,null,null,null,null,null,null,null,null,0]
[{"$f":"IF(Descriptions!D69=\"Activites for generating funds\",Descriptions!B69,0)","v":0},{"$f":"SUMPRODUCT((WorkingR!$A$5:$A$91='Receipts - Summary'!A269)*(WorkingR!$D$5:$E$91))","v":0},null,null,{"$f":"'Prior Year Comparative'!B264","v":0},null,null,null,null,null,null,null,null,null,null,null,null,null,null,null,null,null,null,null,null,null,0]
[{"$f":"IF(Descriptions!D70=\"Activites for generating funds\",Descriptions!B70,0)","v":0},{"$f":"SUMPRODUCT((WorkingR!$A$5:$A$91='Receipts - Summary'!A270)*(WorkingR!$D$5:$E$91))","v":0},null,null,{"$f":"'Prior Year Comparative'!B265","v":0},null,null,null,null,null,null,null,null,null,null,null,null,null,null,null,null,null,null,null,null,null,0]
[{"$f":"IF(Descriptions!D71=\"Activites for generating funds\",Descriptions!B71,0)","v":0},{"$f":"SUMPRODUCT((WorkingR!$A$5:$A$91='Receipts - Summary'!A271)*(WorkingR!$D$5:$E$91))","v":0},null,null,{"$f":"'Prior Year Comparative'!B266","v":0},null,null,null,null,null,null,null,null,null,null,null,null,null,null,null,null,null,null,null,null,null,0]
[{"$f":"IF(Descriptions!D72=\"Activites for generating funds\",Descriptions!B72,0)","v":0},{"$f":"SUMPRODUCT((WorkingR!$A$5:$A$91='Receipts - Summary'!A272)*(WorkingR!$D$5:$E$91))","v":0},null,null,{"$f":"'Prior Year Comparative'!B267","v":0},null,null,null,null,null,null,null,null,null,null,null,null,null,null,null,null,null,null,null,null,null,0]
[{"$f":"IF(Descriptions!D73=\"Activites for generating funds\",Descriptions!B73,0)","v":0},{"$f":"SUMPRODUCT((WorkingR!$A$5:$A$91='Receipts - Summary'!A273)*(WorkingR!$D$5:$E$91))","v":0},null,null,{"$f":"'Prior Year Comparative'!B268","v":0},null,null,null,null,null,null,null,null,null,null,null,null,null,null,null,null,null,null,null,null,null,0]
[{"$f":"IF(Descriptions!D74=\"Activites for generating funds\",Descriptions!B74,0)","v":0},{"$f":"SUMPRODUCT((WorkingR!$A$5:$A$91='Receipts - Summary'!A274)*(WorkingR!$D$5:$E$91))","v":0},null,null,{"$f":"'Prior Year Comparative'!B269","v":0},null,null,null,null,null,null,null,null,null,null,null,null,null,null,null,null,null,null,null,null,null,0]
[{"$f":"IF(Descriptions!D75=\"Activites for generating funds\",Descriptions!B75,0)","v":0},{"$f":"SUMPRODUCT((WorkingR!$A$5:$A$91='Receipts - Summary'!A275)*(WorkingR!$D$5:$E$91))","v":0},null,null,{"$f":"'Prior Year Comparative'!B270","v":0},null,null,null,null,null,null,null,null,null,null,null,null,null,null,null,null,null,null,null,null,null,0]
[{"$f":"IF(Descriptions!D76=\"Activites for generating funds\",Descriptions!B76,0)","v":0},{"$f":"SUMPRODUCT((WorkingR!$A$5:$A$91='Receipts - Summary'!A276)*(WorkingR!$D$5:$E$91))","v":0},null,null,{"$f":"'Prior Year Comparative'!B271","v":0},null,null,null,null,null,null,null,null,null,null,null,null,null,null,null,null,null,null,null,null,null,0]
[{"$f":"IF(Descriptions!D77=\"Activites for generating funds\",Descriptions!B77,0)","v":0},{"$f":"SUMPRODUCT((WorkingR!$A$5:$A$91='Receipts - Summary'!A277)*(WorkingR!$D$5:$E$91))","v":0},null,null,{"$f":"'Prior Year Comparative'!B272","v":0},null,null,null,null,null,null,null,null,null,null,null,null,null,null,null,null,null,null,null,null,null,0]
[{"$f":"IF(Descriptions!D78=\"Activites for generating funds\",Descriptions!B78,0)","v":0},{"$f":"SUMPRODUCT((WorkingR!$A$5:$A$91='Receipts - Summary'!A278)*(WorkingR!$D$5:$E$91))","v":0},null,null,{"$f":"'Prior Year Comparative'!B273","v":0},null,null,null,null,null,null,null,null,null,null,null,null,null,null,null,null,null,null,null,null,null,0]
[{"$f":"IF(Descriptions!D79=\"Activites for generating funds\",Descriptions!B79,0)","v":0},{"$f":"SUMPRODUCT((WorkingR!$A$5:$A$91='Receipts - Summary'!A279)*(WorkingR!$D$5:$E$91))","v":0},null,null,{"$f":"'Prior Year Comparative'!B274","v":0},null,null,null,null,null,null,null,null,null,null,null,null,null,null,null,null,null,null,null,null,null,0]
[{"$f":"IF(Descriptions!D80=\"Activites for generating funds\",Descriptions!B80,0)","v":0},{"$f":"SUMPRODUCT((WorkingR!$A$5:$A$91='Receipts - Summary'!A280)*(WorkingR!$D$5:$E$91))","v":0},null,null,{"$f":"'Prior Year Comparative'!B275","v":0},null,null,null,null,null,null,null,null,null,null,null,null,null,null,null,null,null,null,null,null,null,0]
[{"$f":"IF(Descriptions!D81=\"Activites for generating funds\",Descriptions!B81,0)","v":0},{"$f":"SUMPRODUCT((WorkingR!$A$5:$A$91='Receipts - Summary'!A281)*(WorkingR!$D$5:$E$91))","v":0},null,null,{"$f":"'Prior Year Comparative'!B276","v":0},null,null,null,null,null,null,null,null,null,null,null,null,null,null,null,null,null,null,null,null,null,0]
[{"$f":"IF(Descriptions!D82=\"Activites for generating funds\",Descriptions!B82,0)","v":0},{"$f":"SUMPRODUCT((WorkingR!$A$5:$A$91='Receipts - Summary'!A282)*(WorkingR!$D$5:$E$91))","v":0},null,null,{"$f":"'Prior Year Comparative'!B277","v":0},null,null,null,null,null,null,null,null,null,null,null,null,null,null,null,null,null,null,null,null,null,0]
[{"$f":"IF(Descriptions!D83=\"Activites for generating funds\",Descriptions!B83,0)","v":0},{"$f":"SUMPRODUCT((WorkingR!$A$5:$A$91='Receipts - Summary'!A283)*(WorkingR!$D$5:$E$91))","v":0},null,null,{"$f":"'Prior Year Comparative'!B278","v":0},null,null,null,null,null,null,null,null,null,null,null,null,null,null,null,null,null,null,null,null,null,0]
[{"$f":"IF(Descriptions!D84=\"Activites for generating funds\",Descriptions!B84,0)","v":0},{"$f":"SUMPRODUCT((WorkingR!$A$5:$A$91='Receipts - Summary'!A284)*(WorkingR!$D$5:$E$91))","v":0},null,null,{"$f":"'Prior Year Comparative'!B279","v":0},null,null,null,null,null,null,null,null,null,null,null,null,null,null,null,null,null,null,null,null,null,0]
[{"$f":"IF(Descriptions!D85=\"Activites for generating funds\",Descriptions!B85,0)","v":0},{"$f":"SUMPRODUCT((WorkingR!$A$5:$A$91='Receipts - Summary'!A285)*(WorkingR!$D$5:$E$91))","v":0},null,null,{"$f":"'Prior Year Comparative'!B280","v":0},null,null,null,null,null,null,null,null,null,null,null,null,null,null,null,null,null,null,null,null,null,0]
[{"$f":"IF(Descriptions!D86=\"Activites for generating funds\",Descriptions!B86,0)","v":0},{"$f":"SUMPRODUCT((WorkingR!$A$5:$A$91='Receipts - Summary'!A286)*(WorkingR!$D$5:$E$91))","v":0},null,null,{"$f":"'Prior Year Comparative'!B281","v":0},null,null,null,null,null,null,null,null,null,null,null,null,null,null,null,null,null,null,null,null,null,0]
[{"$f":"IF(Descriptions!D87=\"Activites for generating funds\",Descriptions!B87,0)","v":0},{"$f":"SUMPRODUCT((WorkingR!$A$5:$A$91='Receipts - Summary'!A287)*(WorkingR!$D$5:$E$91))","v":0},null,null,{"$f":"'Prior Year Comparative'!B282","v":0},null,null,null,null,null,null,null,null,null,null,null,null,null,null,null,null,null,null,null,null,null,0]
[{"$f":"IF(Descriptions!D88=\"Activites for generating funds\",Descriptions!B88,0)","v":0},{"$f":"SUMPRODUCT((WorkingR!$A$5:$A$91='Receipts - Summary'!A288)*(WorkingR!$D$5:$E$91))","v":0},null,null,{"$f":"'Prior Year Comparative'!B283","v":0},null,null,null,null,null,null,null,null,null,null,null,null,null,null,null,null,null,null,null,null,null,0]
[{"$f":"IF(Descriptions!D89=\"Activites for generating funds\",Descriptions!B89,0)","v":0},{"$f":"SUMPRODUCT((WorkingR!$A$5:$A$91='Receipts - Summary'!A289)*(WorkingR!$D$5:$E$91))","v":0},null,null,{"$f":"'Prior Year Comparative'!B284","v":0},null,null,null,null,null,null,null,null,null,null,null,null,null,null,null,null,null,null,null,null,null,0]
[{"$f":"IF(Descriptions!D90=\"Activites for generating funds\",Descriptions!B90,0)","v":0},{"$f":"SUMPRODUCT((WorkingR!$A$5:$A$91='Receipts - Summary'!A290)*(WorkingR!$D$5:$E$91))","v":0},null,null,{"$f":"'Prior Year Comparative'!B285","v":0},null,null,null,null,null,null,null,null,null,null,null,null,null,null,null,null,null,null,null,null,null,0]
[{"$f":"IF(Descriptions!D91=\"Activites for generating funds\",Descriptions!B91,0)","v":0},{"$f":"SUMPRODUCT((WorkingR!$A$5:$A$91='Receipts - Summary'!A291)*(WorkingR!$D$5:$E$91))","v":0},null,null,{"$f":"'Prior Year Comparative'!B286","v":0},null,null,null,null,null,null,null,null,null,null,null,null,null,null,null,null,null,null,null,null,null,0]
[{"$f":"IF(Descriptions!D92=\"Activites for generating funds\",Descriptions!B92,0)","v":0},{"$f":"SUMPRODUCT((WorkingR!$A$5:$A$91='Receipts - Summary'!A292)*(WorkingR!$D$5:$E$91))","v":0},null,null,{"$f":"'Prior Year Comparative'!B287","v":0},null,null,null,null,null,null,null,null,null,null,null,null,null,null,null,null,null,null,null,null,null,0]
[null,null,{"$f":"SUM(B237:B292)","v":0},null,null,{"$f":"SUM(E237:E292)","v":0},null,null,null,null,null,null,null,null,null,null,null,null,null,null,null,null,null,null,null,null,{"$f":"AA236","v":0}]
["CHURCH ACTIVITIES",null,null,null,null,null,null,null,null,null,null,null,null,null,null,null,null,null,null,null,null,null,null,null,null,null,{"$f":"SUM(AA295:AA351)","v":0}]
["Use of Church buildings",{"$f":"SUMPRODUCT((WorkingR!$A$5:$A$91='Receipts - Summary'!A295)*(WorkingR!$D$5:$E$91))","v":0},null,null,{"$f":"'Prior Year Comparative'!B290","v":0},null,null,null,null,null,null,null,null,null,null,null,null,null,null,null,null,null,null,null,null,null,{"$f":"Descriptions!AA36","v":0}]
["Non-charitable trading",{"$f":"SUMPRODUCT((WorkingR!$A$5:$A$91='Receipts - Summary'!A296)*(WorkingR!$D$5:$E$91))","v":0},null,null,{"$f":"'Prior Year Comparative'!B291","v":0},null,null,null,null,null,null,null,null,null,null,null,null,null,null,null,null,null,null,null,null,null,{"$f":"Descriptions!AA26","v":0}]
["Fees - Statutory",{"$f":"SUMPRODUCT((WorkingR!$A$5:$A$91='Receipts - Summary'!A297)*(WorkingR!$D$5:$E$91))","v":0},null,null,{"$f":"'Prior Year Comparative'!B292","v":0},null,null,null,null,null,null,null,null,null,null,null,null,null,null,null,null,null,null,null,null,null,{"$f":"Descriptions!AA15","v":0}]
["Fees - Additional",{"$f":"SUMPRODUCT((WorkingR!$A$5:$A$91='Receipts - Summary'!A298)*(WorkingR!$D$5:$E$91))","v":0},null,null,{"$f":"'Prior Year Comparative'!B293","v":0},null,null,null,null,null,null,null,null,null,null,null,null,null,null,null,null,null,null,null,null,null,{"$f":"Descriptions!AA14","v":0}]
["Church Building Appeal",{"$f":"SUMPRODUCT((WorkingR!$A$5:$A$91='Receipts - Summary'!A299)*(WorkingR!$D$5:$E$91))","v":0},null,null,{"$f":"'Prior Year Comparative'!B294","v":0},null,null,null,null,null,null,null,null,null,null,null,null,null,null,null,null,null,null,null,null,null,{"$f":"Descriptions!AA9","v":0}]
["VAT Reclaim",{"$f":"SUMPRODUCT((WorkingR!$A$5:$A$91='Receipts - Summary'!A300)*(WorkingR!$D$5:$E$91))","v":0},null,null,{"$f":"'Prior Year Comparative'!B295","v":0},null,null,null,null,null,null,null,null,null,null,null,null,null,null,null,null,null,null,null,null,null,{"$f":"Descriptions!AA37","v":0}]
["Rental Income",{"$f":"SUMPRODUCT((WorkingR!$A$5:$A$91='Receipts - Summary'!A301)*(WorkingR!$D$5:$E$91))","v":0},null,null,{"$f":"'Prior Year Comparative'!B296","v":0},null,null,null,null,null,null,null,null,null,null,null,null,null,null,null,null,null,null,null,null,null,{"$f":"Descriptions!AA30","v":0}]
[{"$f":"IF(Descriptions!D43=\"Church activities\",Descriptions!B43,0)","v":0},{"$f":"SUMPRODUCT((WorkingR!$A$5:$A$91='Receipts - Summary'!A302)*(WorkingR!$D$5:$E$91))","v":0},null,null,{"$f":"'Prior Year Comparative'!B297","v":0},null,null,null,null,null,null,null,null,null,null,null,null,null,null,null,null,null,null,null,null,null,{"$f":"IF(A302=0,0,1)","v":0}]
[{"$f":"IF(Descriptions!D44=\"Church activities\",Descriptions!B44,0)","v":0},{"$f":"SUMPRODUCT((WorkingR!$A$5:$A$91='Receipts - Summary'!A303)*(WorkingR!$D$5:$E$91))","v":0},null,null,{"$f":"'Prior Year Comparative'!B298","v":0},null,null,null,null,null,null,null,null,null,null,null,null,null,null,null,null,null,null,null,null,null,{"$f":"IF(A303=0,0,1)","v":0}]
[{"$f":"IF(Descriptions!D45=\"Church activities\",Descriptions!B45,0)","v":0},{"$f":"SUMPRODUCT((WorkingR!$A$5:$A$91='Receipts - Summary'!A304)*(WorkingR!$D$5:$E$91))","v":0},null,null,{"$f":"'Prior Year Comparative'!B299","v":0},null,null,null,null,null,null,null,null,null,null,null,null,null,null,null,null,null,null,null,null,null,0]
[{"$f":"IF(Descriptions!D46=\"Church activities\",Descriptions!B46,0)","v":0},{"$f":"SUMPRODUCT((WorkingR!$A$5:$A$91='Receipts - Summary'!A305)*(WorkingR!$D$5:$E$91))","v":0},null,null,{"$f":"'Prior Year Comparative'!B300","v":0},null,null,null,null,null,null,null,null,null,null,null,null,null,null,null,null,null,null,null,null,null,0]
[{"$f":"IF(Descriptions!D47=\"Church activities\",Descriptions!B47,0)","v":0},{"$f":"SUMPRODUCT((WorkingR!$A$5:$A$91='Receipts - Summary'!A306)*(WorkingR!$D$5:$E$91))","v":0},null,null,{"$f":"'Prior Year Comparative'!B301","v":0},null,null,null,null,null,null,null,null,null,null,null,null,null,null,null,null,null,null,null,null,null,0]
[{"$f":"IF(Descriptions!D48=\"Church activities\",Descriptions!B48,0)","v":0},{"$f":"SUMPRODUCT((WorkingR!$A$5:$A$91='Receipts - Summary'!A307)*(WorkingR!$D$5:$E$91))","v":0},null,null,{"$f":"'Prior Year Comparative'!B302","v":0},null,null,null,null,null,null,null,null,null,null,null,null,null,null,null,null,null,null,null,null,null,0]
[{"$f":"IF(Descriptions!D49=\"Church activities\",Descriptions!B49,0)","v":0},{"$f":"SUMPRODUCT((WorkingR!$A$5:$A$91='Receipts - Summary'!A308)*(WorkingR!$D$5:$E$91))","v":0},null,null,{"$f":"'Prior Year Comparative'!B303","v":0},null,null,null,null,null,null,null,null,null,null,null,null,null,null,null,null,null,null,null,null,null,0]
[{"$f":"IF(Descriptions!D50=\"Church activities\",Descriptions!B50,0)","v":0},{"$f":"SUMPRODUCT((WorkingR!$A$5:$A$91='Receipts - Summary'!A309)*(WorkingR!$D$5:$E$91))","v":0},null,null,{"$f":"'Prior Year Comparative'!B304","v":0},null,null,null,null,null,null,null,null,null,null,null,null,null,null,null,null,null,null,null,null,null,0]
[{"$f":"IF(Descriptions!D51=\"Church activities\",Descriptions!B51,0)","v":0},{"$f":"SUMPRODUCT((WorkingR!$A$5:$A$91='Receipts - Summary'!A310)*(WorkingR!$D$5:$E$91))","v":0},null,null,{"$f":"'Prior Year Comparative'!B305","v":0},null,null,null,null,null,null,null,null,null,null,null,null,null,null,null,null,null,null,null,null,null,0]
[{"$f":"IF(Descriptions!D52=\"Church activities\",Descriptions!B52,0)","v":0},{"$f":"SUMPRODUCT((WorkingR!$A$5:$A$91='Receipts - Summary'!A311)*(WorkingR!$D$5:$E$91))","v":0},null,null,{"$f":"'Prior Year Comparative'!B306","v":0},null,null,null,null,null,null,null,null,null,null,null,null,null,null,null,null,null,null,null,null,null,0]
[{"$f":"IF(Descriptions!D53=\"Church activities\",Descriptions!B53,0)","v":0},{"$f":"SUMPRODUCT((WorkingR!$A$5:$A$91='Receipts - Summary'!A312)*(WorkingR!$D$5:$E$91))","v":0},null,null,{"$f":"'Prior Year Comparative'!B307","v":0},null,null,null,null,null,null,null,null,null,null,null,null,null,null,null,null,null,null,null,null,null,0]
[{"$f":"IF(Descriptions!D54=\"Church activities\",Descriptions!B54,0)","v":0},{"$f":"SUMPRODUCT((WorkingR!$A$5:$A$91='Receipts - Summary'!A313)*(WorkingR!$D$5:$E$91))","v":0},null,null,{"$f":"'Prior Year Comparative'!B308","v":0},null,null,null,null,null,null,null,null,null,null,null,null,null,null,null,null,null,null,null,null,null,0]
[{"$f":"IF(Descriptions!D55=\"Church activities\",Descriptions!B55,0)","v":0},{"$f":"SUMPRODUCT((WorkingR!$A$5:$A$91='Receipts - Summary'!A314)*(WorkingR!$D$5:$E$91))","v":0},null,null,{"$f":"'Prior Year Comparative'!B309","v":0},null,null,null,null,null,null,null,null,null,null,null,null,null,null,null,null,null,null,null,null,null,0]
[{"$f":"IF(Descriptions!D56=\"Church activities\",Descriptions!B56,0)","v":0},{"$f":"SUMPRODUCT((WorkingR!$A$5:$A$91='Receipts - Summary'!A315)*(WorkingR!$D$5:$E$91))","v":0},null,null,{"$f":"'Prior Year Comparative'!B310","v":0},null,null,null,null,null,null,null,null,null,null,null,null,null,null,null,null,null,null,null,null,null,0]
[{"$f":"IF(Descriptions!D57=\"Church activities\",Descriptions!B57,0)","v":0},{"$f":"SUMPRODUCT((WorkingR!$A$5:$A$91='Receipts - Summary'!A316)*(WorkingR!$D$5:$E$91))","v":0},null,null,{"$f":"'Prior Year Comparative'!B311","v":0},null,null,null,null,null,null,null,null,null,null,null,null,null,null,null,null,null,null,null,null,null,0]
[{"$f":"IF(Descriptions!D58=\"Church activities\",Descriptions!B58,0)","v":0},{"$f":"SUMPRODUCT((WorkingR!$A$5:$A$91='Receipts - Summary'!A317)*(WorkingR!$D$5:$E$91))","v":0},null,null,{"$f":"'Prior Year Comparative'!B312","v":0},null,null,null,null,null,null,null,null,null,null,null,null,null,null,null,null,null,null,null,null,null,0]
[{"$f":"IF(Descriptions!D59=\"Church activities\",Descriptions!B59,0)","v":0},{"$f":"SUMPRODUCT((WorkingR!$A$5:$A$91='Receipts - Summary'!A318)*(WorkingR!$D$5:$E$91))","v":0},null,null,{"$f":"'Prior Year Comparative'!B313","v":0},null,null,null,null,null,null,null,null,null,null,null,null,null,null,null,null,null,null,null,null,null,0]
[{"$f":"IF(Descriptions!D60=\"Church activities\",Descriptions!B60,0)","v":0},{"$f":"SUMPRODUCT((WorkingR!$A$5:$A$91='Receipts - Summary'!A319)*(WorkingR!$D$5:$E$91))","v":0},null,null,{"$f":"'Prior Year Comparative'!B314","v":0},null,null,null,null,null,null,null,null,null,null,null,null,null,null,null,null,null,null,null,null,null,0]
[{"$f":"IF(Descriptions!D61=\"Church activities\",Descriptions!B61,0)","v":0},{"$f":"SUMPRODUCT((WorkingR!$A$5:$A$91='Receipts - Summary'!A320)*(WorkingR!$D$5:$E$91))","v":0},null,null,{"$f":"'Prior Year Comparative'!B315","v":0},null,null,null,null,null,null,null,null,null,null,null,null,null,null,null,null,null,null,null,null,null,0]
[{"$f":"IF(Descriptions!D62=\"Church activities\",Descriptions!B62,0)","v":0},{"$f":"SUMPRODUCT((WorkingR!$A$5:$A$91='Receipts - Summary'!A321)*(WorkingR!$D$5:$E$91))","v":0},null,null,{"$f":"'Prior Year Comparative'!B316","v":0},null,null,null,null,null,null,null,null,null,null,null,null,null,null,null,null,null,null,null,null,null,0]
[{"$f":"IF(Descriptions!D63=\"Church activities\",Descriptions!B63,0)","v":0},{"$f":"SUMPRODUCT((WorkingR!$A$5:$A$91='Receipts - Summary'!A322)*(WorkingR!$D$5:$E$91))","v":0},null,null,{"$f":"'Prior Year Comparative'!B317","v":0},null,null,null,null,null,null,null,null,null,null,null,null,null,null,null,null,null,null,null,null,null,0]
[{"$f":"IF(Descriptions!D64=\"Church activities\",Descriptions!B64,0)","v":0},{"$f":"SUMPRODUCT((WorkingR!$A$5:$A$91='Receipts - Summary'!A323)*(WorkingR!$D$5:$E$91))","v":0},null,null,{"$f":"'Prior Year Comparative'!B318","v":0},null,null,null,null,null,null,null,null,null,null,null,null,null,null,null,null,null,null,null,null,null,0]
[{"$f":"IF(Descriptions!D65=\"Church activities\",Descriptions!B65,0)","v":0},{"$f":"SUMPRODUCT((WorkingR!$A$5:$A$91='Receipts - Summary'!A324)*(WorkingR!$D$5:$E$91))","v":0},null,null,{"$f":"'Prior Year Comparative'!B319","v":0},null,null,null,null,null,null,null,null,null,null,null,null,null,null,null,null,null,null,null,null,null,0]
[{"$f":"IF(Descriptions!D66=\"Church activities\",Descriptions!B66,0)","v":0},{"$f":"SUMPRODUCT((WorkingR!$A$5:$A$91='Receipts - Summary'!A325)*(WorkingR!$D$5:$E$91))","v":0},null,null,{"$f":"'Prior Year Comparative'!B320","v":0},null,null,null,null,null,null,null,null,null,null,null,null,null,null,null,null,null,null,null,null,null,0]
[{"$f":"IF(Descriptions!D67=\"Church activities\",Descriptions!B67,0)","v":0},{"$f":"SUMPRODUCT((WorkingR!$A$5:$A$91='Receipts - Summary'!A326)*(WorkingR!$D$5:$E$91))","v":0},null,null,{"$f":"'Prior Year Comparative'!B321","v":0},null,null,null,null,null,null,null,null,null,null,null,null,null,null,null,null,null,null,null,null,null,0]
[{"$f":"IF(Descriptions!D68=\"Church activities\",Descriptions!B68,0)","v":0},{"$f":"SUMPRODUCT((WorkingR!$A$5:$A$91='Receipts - Summary'!A327)*(WorkingR!$D$5:$E$91))","v":0},null,null,{"$f":"'Prior Year Comparative'!B322","v":0},null,null,null,null,null,null,null,null,null,null,null,null,null,null,null,null,null,null,null,null,null,0]
[{"$f":"IF(Descriptions!D69=\"Church activities\",Descriptions!B69,0)","v":0},{"$f":"SUMPRODUCT((WorkingR!$A$5:$A$91='Receipts - Summary'!A328)*(WorkingR!$D$5:$E$91))","v":0},null,null,{"$f":"'Prior Year Comparative'!B323","v":0},null,null,null,null,null,null,null,null,null,null,null,null,null,null,null,null,null,null,null,null,null,0]
[{"$f":"IF(Descriptions!D70=\"Church activities\",Descriptions!B70,0)","v":0},{"$f":"SUMPRODUCT((WorkingR!$A$5:$A$91='Receipts - Summary'!A329)*(WorkingR!$D$5:$E$91))","v":0},null,null,{"$f":"'Prior Year Comparative'!B324","v":0},null,null,null,null,null,null,null,null,null,null,null,null,null,null,null,null,null,null,null,null,null,0]
[{"$f":"IF(Descriptions!D71=\"Church activities\",Descriptions!B71,0)","v":0},{"$f":"SUMPRODUCT((WorkingR!$A$5:$A$91='Receipts - Summary'!A330)*(WorkingR!$D$5:$E$91))","v":0},null,null,{"$f":"'Prior Year Comparative'!B325","v":0},null,null,null,null,null,null,null,null,null,null,null,null,null,null,null,null,null,null,null,null,null,0]
[{"$f":"IF(Descriptions!D72=\"Church activities\",Descriptions!B72,0)","v":0},{"$f":"SUMPRODUCT((WorkingR!$A$5:$A$91='Receipts - Summary'!A331)*(WorkingR!$D$5:$E$91))","v":0},null,null,{"$f":"'Prior Year Comparative'!B326","v":0},null,null,null,null,null,null,null,null,null,null,null,null,null,null,null,null,null,null,null,null,null,0]
[{"$f":"IF(Descriptions!D73=\"Church activities\",Descriptions!B73,0)","v":0},{"$f":"SUMPRODUCT((WorkingR!$A$5:$A$91='Receipts - Summary'!A332)*(WorkingR!$D$5:$E$91))","v":0},null,null,{"$f":"'Prior Year Comparative'!B327","v":0},null,null,null,null,null,null,null,null,null,null,null,null,null,null,null,null,null,null,null,null,null,0]
[{"$f":"IF(Descriptions!D74=\"Church activities\",Descriptions!B74,0)","v":0},{"$f":"SUMPRODUCT((WorkingR!$A$5:$A$91='Receipts - Summary'!A333)*(WorkingR!$D$5:$E$91))","v":0},null,null,{"$f":"'Prior Year Comparative'!B328","v":0},null,null,null,null,null,null,null,null,null,null,null,null,null,null,null,null,null,null,null,null,null,0]
[{"$f":"IF(Descriptions!D75=\"Church activities\",Descriptions!B75,0)","v":0},{"$f":"SUMPRODUCT((WorkingR!$A$5:$A$91='Receipts - Summary'!A334)*(WorkingR!$D$5:$E$91))","v":0},null,null,{"$f":"'Prior Year Comparative'!B329","v":0},null,null,null,null,null,null,null,null,null,null,null,null,null,null,null,null,null,null,null,null,null,0]
[{"$f":"IF(Descriptions!D76=\"Church activities\",Descriptions!B76,0)","v":0},{"$f":"SUMPRODUCT((WorkingR!$A$5:$A$91='Receipts - Summary'!A335)*(WorkingR!$D$5:$E$91))","v":0},null,null,{"$f":"'Prior Year Comparative'!B330","v":0},null,null,null,null,null,null,null,null,null,null,null,null,null,null,null,null,null,null,null,null,null,0]
[{"$f":"IF(Descriptions!D77=\"Church activities\",Descriptions!B77,0)","v":0},{"$f":"SUMPRODUCT((WorkingR!$A$5:$A$91='Receipts - Summary'!A336)*(WorkingR!$D$5:$E$91))","v":0},null,null,{"$f":"'Prior Year Comparative'!B331","v":0},null,null,null,null,null,null,null,null,null,null,null,null,null,null,null,null,null,null,null,null,null,0]
[{"$f":"IF(Descriptions!D78=\"Church activities\",Descriptions!B78,0)","v":0},{"$f":"SUMPRODUCT((WorkingR!$A$5:$A$91='Receipts - Summary'!A337)*(WorkingR!$D$5:$E$91))","v":0},null,null,{"$f":"'Prior Year Comparative'!B332","v":0},null,null,null,null,null,null,null,null,null,null,null,null,null,null,null,null,null,null,null,null,null,0]
[{"$f":"IF(Descriptions!D79=\"Church activities\",Descriptions!B79,0)","v":0},{"$f":"SUMPRODUCT((WorkingR!$A$5:$A$91='Receipts - Summary'!A338)*(WorkingR!$D$5:$E$91))","v":0},null,null,{"$f":"'Prior Year Comparative'!B333","v":0},null,null,null,null,null,null,null,null,null,null,null,null,null,null,null,null,null,null,null,null,null,0]
[{"$f":"IF(Descriptions!D80=\"Church activities\",Descriptions!B80,0)","v":0},{"$f":"SUMPRODUCT((WorkingR!$A$5:$A$91='Receipts - Summary'!A339)*(WorkingR!$D$5:$E$91))","v":0},null,null,{"$f":"'Prior Year Comparative'!B334","v":0},null,null,null,null,null,null,null,null,null,null,null,null,null,null,null,null,null,null,null,null,null,0]
[{"$f":"IF(Descriptions!D81=\"Church activities\",Descriptions!B81,0)","v":0},{"$f":"SUMPRODUCT((WorkingR!$A$5:$A$91='Receipts - Summary'!A340)*(WorkingR!$D$5:$E$91))","v":0},null,null,{"$f":"'Prior Year Comparative'!B335","v":0},null,null,null,null,null,null,null,null,null,null,null,null,null,null,null,null,null,null,null,null,null,0]
[{"$f":"IF(Descriptions!D82=\"Church activities\",Descriptions!B82,0)","v":0},{"$f":"SUMPRODUCT((WorkingR!$A$5:$A$91='Receipts - Summary'!A341)*(WorkingR!$D$5:$E$91))","v":0},null,null,{"$f":"'Prior Year Comparative'!B336","v":0},null,null,null,null,null,null,null,null,null,null,null,null,null,null,null,null,null,null,null,null,null,0]
[{"$f":"IF(Descriptions!D83=\"Church activities\",Descriptions!B83,0)","v":0},{"$f":"SUMPRODUCT((WorkingR!$A$5:$A$91='Receipts - Summary'!A342)*(WorkingR!$D$5:$E$91))","v":0},null,null,{"$f":"'Prior Year Comparative'!B337","v":0},null,null,null,null,null,null,null,null,null,null,null,null,null,null,null,null,null,null,null,null,null,0]
[{"$f":"IF(Descriptions!D84=\"Church activities\",Descriptions!B84,0)","v":0},{"$f":"SUMPRODUCT((WorkingR!$A$5:$A$91='Receipts - Summary'!A343)*(WorkingR!$D$5:$E$91))","v":0},null,null,{"$f":"'Prior Year Comparative'!B338","v":0},null,null,null,null,null,null,null,null,null,null,null,null,null,null,null,null,null,null,null,null,null,0]
[{"$f":"IF(Descriptions!D85=\"Church activities\",Descriptions!B85,0)","v":0},{"$f":"SUMPRODUCT((WorkingR!$A$5:$A$91='Receipts - Summary'!A344)*(WorkingR!$D$5:$E$91))","v":0},null,null,{"$f":"'Prior Year Comparative'!B339","v":0},null,null,null,null,null,null,null,null,null,null,null,null,null,null,null,null,null,null,null,null,null,0]
[{"$f":"IF(Descriptions!D86=\"Church activities\",Descriptions!B86,0)","v":0},{"$f":"SUMPRODUCT((WorkingR!$A$5:$A$91='Receipts - Summary'!A345)*(WorkingR!$D$5:$E$91))","v":0},null,null,{"$f":"'Prior Year Comparative'!B340","v":0},null,null,null,null,null,null,null,null,null,null,null,null,null,null,null,null,null,null,null,null,null,0]
[{"$f":"IF(Descriptions!D87=\"Church activities\",Descriptions!B87,0)","v":0},{"$f":"SUMPRODUCT((WorkingR!$A$5:$A$91='Receipts - Summary'!A346)*(WorkingR!$D$5:$E$91))","v":0},null,null,{"$f":"'Prior Year Comparative'!B341","v":0},null,null,null,null,null,null,null,null,null,null,null,null,null,null,null,null,null,null,null,null,null,0]
[{"$f":"IF(Descriptions!D88=\"Church activities\",Descriptions!B88,0)","v":0},{"$f":"SUMPRODUCT((WorkingR!$A$5:$A$91='Receipts - Summary'!A347)*(WorkingR!$D$5:$E$91))","v":0},null,null,{"$f":"'Prior Year Comparative'!B342","v":0},null,null,null,null,null,null,null,null,null,null,null,null,null,null,null,null,null,null,null,null,null,0]
[{"$f":"IF(Descriptions!D89=\"Church activities\",Descriptions!B89,0)","v":0},{"$f":"SUMPRODUCT((WorkingR!$A$5:$A$91='Receipts - Summary'!A348)*(WorkingR!$D$5:$E$91))","v":0},null,null,{"$f":"'Prior Year Comparative'!B343","v":0},null,null,null,null,null,null,null,null,null,null,null,null,null,null,null,null,null,null,null,null,null,0]
[{"$f":"IF(Descriptions!D90=\"Church activities\",Descriptions!B90,0)","v":0},{"$f":"SUMPRODUCT((WorkingR!$A$5:$A$91='Receipts - Summary'!A349)*(WorkingR!$D$5:$E$91))","v":0},null,null,{"$f":"'Prior Year Comparative'!B344","v":0},null,null,null,null,null,null,null,null,null,null,null,null,null,null,null,null,null,null,null,null,null,0]
[{"$f":"IF(Descriptions!D91=\"Church activities\",Descriptions!B91,0)","v":0},{"$f":"SUMPRODUCT((WorkingR!$A$5:$A$91='Receipts - Summary'!A350)*(WorkingR!$D$5:$E$91))","v":0},null,null,{"$f":"'Prior Year Comparative'!B345","v":0},null,null,null,null,null,null,null,null,null,null,null,null,null,null,null,null,null,null,null,null,null,0]
[{"$f":"IF(Descriptions!D92=\"Church activities\",Descriptions!B92,0)","v":0},{"$f":"SUMPRODUCT((WorkingR!$A$5:$A$91='Receipts - Summary'!A351)*(WorkingR!$D$5:$E$91))","v":0},null,null,{"$f":"'Prior Year Comparative'!B346","v":0},null,null,null,null,null,null,null,null,null,null,null,null,null,null,null,null,null,null,null,null,null,0]
[null,null,{"$f":"SUM(B295:B351)","v":0},null,null,{"$f":"SUM(E295:E351)","v":0},null,null,null,null,null,null,null,null,null,null,null,null,null,null,null,null,null,null,null,null,{"$f":"AA294","v":0}]
["INVESTMENT INCOME",null,null,null,null,null,null,null,null,null,null,null,null,null,null,null,null,null,null,null,null,null,null,null,null,null,{"$f":"SUM(AA354:AA404)","v":0}]
["Dividends and Interest",{"$f":"SUMPRODUCT((WorkingR!$A$5:$A$91='Receipts - Summary'!A354)*(WorkingR!$D$5:$E$91))","v":0},null,null,{"$f":"'Prior Year Comparative'!B349","v":0},null,null,null,null,null,null,null,null,null,null,null,null,null,null,null,null,null,null,null,null,null,{"$f":"Descriptions!AA11","v":0}]
[{"$f":"IF(Descriptions!D43=\"Investment income\",Descriptions!B43,0)","v":0},{"$f":"SUMPRODUCT((WorkingR!$A$5:$A$91='Receipts - Summary'!A355)*(WorkingR!$D$5:$E$91))","v":0},null,null,{"$f":"'Prior Year Comparative'!B350","v":0},null,null,null,null,null,null,null,null,null,null,null,null,null,null,null,null,null,null,null,null,null,{"$f":"IF(A355=0,0,1)","v":0}]
[{"$f":"IF(Descriptions!D44=\"Investment income\",Descriptions!B44,0)","v":0},{"$f":"SUMPRODUCT((WorkingR!$A$5:$A$91='Receipts - Summary'!A356)*(WorkingR!$D$5:$E$91))","v":0},null,null,{"$f":"'Prior Year Comparative'!B351","v":0},null,null,null,null,null,null,null,null,null,null,null,null,null,null,null,null,null,null,null,null,null,{"$f":"IF(A356=0,0,1)","v":0}]
[{"$f":"IF(Descriptions!D45=\"Investment income\",Descriptions!B45,0)","v":0},{"$f":"SUMPRODUCT((WorkingR!$A$5:$A$91='Receipts - Summary'!A357)*(WorkingR!$D$5:$E$91))","v":0},null,null,{"$f":"'Prior Year Comparative'!B352","v":0},null,null,null,null,null,null,null,null,null,null,null,null,null,null,null,null,null,null,null,null,null,0]
[{"$f":"IF(Descriptions!D46=\"Investment income\",Descriptions!B46,0)","v":0},{"$f":"SUMPRODUCT((WorkingR!$A$5:$A$91='Receipts - Summary'!A358)*(WorkingR!$D$5:$E$91))","v":0},null,null,{"$f":"'Prior Year Comparative'!B353","v":0},null,null,null,null,null,null,null,null,null,null,null,null,null,null,null,null,null,null,null,null,null,0]
[{"$f":"IF(Descriptions!D47=\"Investment income\",Descriptions!B47,0)","v":0},{"$f":"SUMPRODUCT((WorkingR!$A$5:$A$91='Receipts - Summary'!A359)*(WorkingR!$D$5:$E$91))","v":0},null,null,{"$f":"'Prior Year Comparative'!B354","v":0},null,null,null,null,null,null,null,null,null,null,null,null,null,null,null,null,null,null,null,null,null,0]
[{"$f":"IF(Descriptions!D48=\"Investment income\",Descriptions!B48,0)","v":0},{"$f":"SUMPRODUCT((WorkingR!$A$5:$A$91='Receipts - Summary'!A360)*(WorkingR!$D$5:$E$91))","v":0},null,null,{"$f":"'Prior Year Comparative'!B355","v":0},null,null,null,null,null,null,null,null,null,null,null,null,null,null,null,null,null,null,null,null,null,0]
[{"$f":"IF(Descriptions!D49=\"Investment income\",Descriptions!B49,0)","v":0},{"$f":"SUMPRODUCT((WorkingR!$A$5:$A$91='Receipts - Summary'!A361)*(WorkingR!$D$5:$E$91))","v":0},null,null,{"$f":"'Prior Year Comparative'!B356","v":0},null,null,null,null,null,null,null,null,null,null,null,null,null,null,null,null,null,null,null,null,null,0]
[{"$f":"IF(Descriptions!D50=\"Investment income\",Descriptions!B50,0)","v":0},{"$f":"SUMPRODUCT((WorkingR!$A$5:$A$91='Receipts - Summary'!A362)*(WorkingR!$D$5:$E$91))","v":0},null,null,{"$f":"'Prior Year Comparative'!B357","v":0},null,null,null,null,null,null,null,null,null,null,null,null,null,null,null,null,null,null,null,null,null,0]
[{"$f":"IF(Descriptions!D51=\"Investment income\",Descriptions!B51,0)","v":0},{"$f":"SUMPRODUCT((WorkingR!$A$5:$A$91='Receipts - Summary'!A363)*(WorkingR!$D$5:$E$91))","v":0},null,null,{"$f":"'Prior Year Comparative'!B358","v":0},null,null,null,null,null,null,null,null,null,null,null,null,null,null,null,null,null,null,null,null,null,0]
[{"$f":"IF(Descriptions!D52=\"Investment income\",Descriptions!B52,0)","v":0},{"$f":"SUMPRODUCT((WorkingR!$A$5:$A$91='Receipts - Summary'!A364)*(WorkingR!$D$5:$E$91))","v":0},null,null,{"$f":"'Prior Year Comparative'!B359","v":0},null,null,null,null,null,null,null,null,null,null,null,null,null,null,null,null,null,null,null,null,null,0]
[{"$f":"IF(Descriptions!D53=\"Investment income\",Descriptions!B53,0)","v":0},{"$f":"SUMPRODUCT((WorkingR!$A$5:$A$91='Receipts - Summary'!A365)*(WorkingR!$D$5:$E$91))","v":0},null,null,{"$f":"'Prior Year Comparative'!B360","v":0},null,null,null,null,null,null,null,null,null,null,null,null,null,null,null,null,null,null,null,null,null,0]
[{"$f":"IF(Descriptions!D54=\"Investment income\",Descriptions!B54,0)","v":0},{"$f":"SUMPRODUCT((WorkingR!$A$5:$A$91='Receipts - Summary'!A366)*(WorkingR!$D$5:$E$91))","v":0},null,null,{"$f":"'Prior Year Comparative'!B361","v":0},null,null,null,null,null,null,null,null,null,null,null,null,null,null,null,null,null,null,null,null,null,0]
[{"$f":"IF(Descriptions!D55=\"Investment income\",Descriptions!B55,0)","v":0},{"$f":"SUMPRODUCT((WorkingR!$A$5:$A$91='Receipts - Summary'!A367)*(WorkingR!$D$5:$E$91))","v":0},null,null,{"$f":"'Prior Year Comparative'!B362","v":0},null,null,null,null,null,null,null,null,null,null,null,null,null,null,null,null,null,null,null,null,null,0]
[{"$f":"IF(Descriptions!D56=\"Investment income\",Descriptions!B56,0)","v":0},{"$f":"SUMPRODUCT((WorkingR!$A$5:$A$91='Receipts - Summary'!A368)*(WorkingR!$D$5:$E$91))","v":0},null,null,{"$f":"'Prior Year Comparative'!B363","v":0},null,null,null,null,null,null,null,null,null,null,null,null,null,null,null,null,null,null,null,null,null,0]
[{"$f":"IF(Descriptions!D57=\"Investment income\",Descriptions!B57,0)","v":0},{"$f":"SUMPRODUCT((WorkingR!$A$5:$A$91='Receipts - Summary'!A369)*(WorkingR!$D$5:$E$91))","v":0},null,null,{"$f":"'Prior Year Comparative'!B364","v":0},null,null,null,null,null,null,null,null,null,null,null,null,null,null,null,null,null,null,null,null,null,0]
[{"$f":"IF(Descriptions!D58=\"Investment income\",Descriptions!B58,0)","v":0},{"$f":"SUMPRODUCT((WorkingR!$A$5:$A$91='Receipts - Summary'!A370)*(WorkingR!$D$5:$E$91))","v":0},null,null,{"$f":"'Prior Year Comparative'!B365","v":0},null,null,null,null,null,null,null,null,null,null,null,null,null,null,null,null,null,null,null,null,null,0]
[{"$f":"IF(Descriptions!D59=\"Investment income\",Descriptions!B59,0)","v":0},{"$f":"SUMPRODUCT((WorkingR!$A$5:$A$91='Receipts - Summary'!A371)*(WorkingR!$D$5:$E$91))","v":0},null,null,{"$f":"'Prior Year Comparative'!B366","v":0},null,null,null,null,null,null,null,null,null,null,null,null,null,null,null,null,null,null,null,null,null,0]
[{"$f":"IF(Descriptions!D60=\"Investment income\",Descriptions!B60,0)","v":0},{"$f":"SUMPRODUCT((WorkingR!$A$5:$A$91='Receipts - Summary'!A372)*(WorkingR!$D$5:$E$91))","v":0},null,null,{"$f":"'Prior Year Comparative'!B367","v":0},null,null,null,null,null,null,null,null,null,null,null,null,null,null,null,null,null,null,null,null,null,0]
[{"$f":"IF(Descriptions!D61=\"Investment income\",Descriptions!B61,0)","v":0},{"$f":"SUMPRODUCT((WorkingR!$A$5:$A$91='Receipts - Summary'!A373)*(WorkingR!$D$5:$E$91))","v":0},null,null,{"$f":"'Prior Year Comparative'!B368","v":0},null,null,null,null,null,null,null,null,null,null,null,null,null,null,null,null,null,null,null,null,null,0]
[{"$f":"IF(Descriptions!D62=\"Investment income\",Descriptions!B62,0)","v":0},{"$f":"SUMPRODUCT((WorkingR!$A$5:$A$91='Receipts - Summary'!A374)*(WorkingR!$D$5:$E$91))","v":0},null,null,{"$f":"'Prior Year Comparative'!B369","v":0},null,null,null,null,null,null,null,null,null,null,null,null,null,null,null,null,null,null,null,null,null,0]
[{"$f":"IF(Descriptions!D63=\"Investment income\",Descriptions!B63,0)","v":0},{"$f":"SUMPRODUCT((WorkingR!$A$5:$A$91='Receipts - Summary'!A375)*(WorkingR!$D$5:$E$91))","v":0},null,null,{"$f":"'Prior Year Comparative'!B370","v":0},null,null,null,null,null,null,null,null,null,null,null,null,null,null,null,null,null,null,null,null,null,0]
[{"$f":"IF(Descriptions!D64=\"Investment income\",Descriptions!B64,0)","v":0},{"$f":"SUMPRODUCT((WorkingR!$A$5:$A$91='Receipts - Summary'!A376)*(WorkingR!$D$5:$E$91))","v":0},null,null,{"$f":"'Prior Year Comparative'!B371","v":0},null,null,null,null,null,null,null,null,null,null,null,null,null,null,null,null,null,null,null,null,null,0]
[{"$f":"IF(Descriptions!D65=\"Investment income\",Descriptions!B65,0)","v":0},{"$f":"SUMPRODUCT((WorkingR!$A$5:$A$91='Receipts - Summary'!A377)*(WorkingR!$D$5:$E$91))","v":0},null,null,{"$f":"'Prior Year Comparative'!B372","v":0},null,null,null,null,null,null,null,null,null,null,null,null,null,null,null,null,null,null,null,null,null,0]
[{"$f":"IF(Descriptions!D66=\"Investment income\",Descriptions!B66,0)","v":0},{"$f":"SUMPRODUCT((WorkingR!$A$5:$A$91='Receipts - Summary'!A378)*(WorkingR!$D$5:$E$91))","v":0},null,null,{"$f":"'Prior Year Comparative'!B373","v":0},null,null,null,null,null,null,null,null,null,null,null,null,null,null,null,null,null,null,null,null,null,0]
[{"$f":"IF(Descriptions!D67=\"Investment income\",Descriptions!B67,0)","v":0},{"$f":"SUMPRODUCT((WorkingR!$A$5:$A$91='Receipts - Summary'!A379)*(WorkingR!$D$5:$E$91))","v":0},null,null,{"$f":"'Prior Year Comparative'!B374","v":0},null,null,null,null,null,null,null,null,null,null,null,null,null,null,null,null,null,null,null,null,null,0]
[{"$f":"IF(Descriptions!D68=\"Investment income\",Descriptions!B68,0)","v":0},{"$f":"SUMPRODUCT((WorkingR!$A$5:$A$91='Receipts - Summary'!A380)*(WorkingR!$D$5:$E$91))","v":0},null,null,{"$f":"'Prior Year Comparative'!B375","v":0},null,null,null,null,null,null,null,null,null,null,null,null,null,null,null,null,null,null,null,null,null,0]
[{"$f":"IF(Descriptions!D69=\"Investment income\",Descriptions!B69,0)","v":0},{"$f":"SUMPRODUCT((WorkingR!$A$5:$A$91='Receipts - Summary'!A381)*(WorkingR!$D$5:$E$91))","v":0},null,null,{"$f":"'Prior Year Comparative'!B376","v":0},null,null,null,null,null,null,null,null,null,null,null,null,null,null,null,null,null,null,null,null,null,0]
[{"$f":"IF(Descriptions!D70=\"Investment income\",Descriptions!B70,0)","v":0},{"$f":"SUMPRODUCT((WorkingR!$A$5:$A$91='Receipts - Summary'!A382)*(WorkingR!$D$5:$E$91))","v":0},null,null,{"$f":"'Prior Year Comparative'!B377","v":0},null,null,null,null,null,null,null,null,null,null,null,null,null,null,null,null,null,null,null,null,null,{"$f":"IF(A382=0,0,1)","v":0}]
[{"$f":"IF(Descriptions!D71=\"Investment income\",Descriptions!B71,0)","v":0},{"$f":"SUMPRODUCT((WorkingR!$A$5:$A$91='Receipts - Summary'!A383)*(WorkingR!$D$5:$E$91))","v":0},null,null,{"$f":"'Prior Year Comparative'!B378","v":0},null,null,null,null,null,null,null,null,null,null,null,null,null,null,null,null,null,null,null,null,null,0]
[{"$f":"IF(Descriptions!D72=\"Investment income\",Descriptions!B72,0)","v":0},{"$f":"SUMPRODUCT((WorkingR!$A$5:$A$91='Receipts - Summary'!A384)*(WorkingR!$D$5:$E$91))","v":0},null,null,{"$f":"'Prior Year Comparative'!B379","v":0},null,null,null,null,null,null,null,null,null,null,null,null,null,null,null,null,null,null,null,null,null,0]
[{"$f":"IF(Descriptions!D73=\"Investment income\",Descriptions!B73,0)","v":0},{"$f":"SUMPRODUCT((WorkingR!$A$5:$A$91='Receipts - Summary'!A385)*(WorkingR!$D$5:$E$91))","v":0},null,null,{"$f":"'Prior Year Comparative'!B380","v":0},null,null,null,null,null,null,null,null,null,null,null,null,null,null,null,null,null,null,null,null,null,0]
[{"$f":"IF(Descriptions!D74=\"Investment income\",Descriptions!B74,0)","v":0},{"$f":"SUMPRODUCT((WorkingR!$A$5:$A$91='Receipts - Summary'!A386)*(WorkingR!$D$5:$E$91))","v":0},null,null,{"$f":"'Prior Year Comparative'!B381","v":0},null,null,null,null,null,null,null,null,null,null,null,null,null,null,null,null,null,null,null,null,null,0]
[{"$f":"IF(Descriptions!D75=\"Investment income\",Descriptions!B75,0)","v":0},{"$f":"SUMPRODUCT((WorkingR!$A$5:$A$91='Receipts - Summary'!A387)*(WorkingR!$D$5:$E$91))","v":0},null,null,{"$f":"'Prior Year Comparative'!B382","v":0},null,null,null,null,null,null,null,null,null,null,null,null,null,null,null,null,null,null,null,null,null,0]
[{"$f":"IF(Descriptions!D76=\"Investment income\",Descriptions!B76,0)","v":0},{"$f":"SUMPRODUCT((WorkingR!$A$5:$A$91='Receipts - Summary'!A388)*(WorkingR!$D$5:$E$91))","v":0},null,null,{"$f":"'Prior Year Comparative'!B383","v":0},null,null,null,null,null,null,null,null,null,null,null,null,null,null,null,null,null,null,null,null,null,0]
[{"$f":"IF(Descriptions!D77=\"Investment income\",Descriptions!B77,0)","v":0},{"$f":"SUMPRODUCT((WorkingR!$A$5:$A$91='Receipts - Summary'!A389)*(WorkingR!$D$5:$E$91))","v":0},null,null,{"$f":"'Prior Year Comparative'!B384","v":0},null,null,null,null,null,null,null,null,null,null,null,null,null,null,null,null,null,null,null,null,null,0]
[{"$f":"IF(Descriptions!D78=\"Investment income\",Descriptions!B78,0)","v":0},{"$f":"SUMPRODUCT((WorkingR!$A$5:$A$91='Receipts - Summary'!A390)*(WorkingR!$D$5:$E$91))","v":0},null,null,{"$f":"'Prior Year Comparative'!B385","v":0},null,null,null,null,null,null,null,null,null,null,null,null,null,null,null,null,null,null,null,null,null,0]
[{"$f":"IF(Descriptions!D79=\"Investment income\",Descriptions!B79,0)","v":0},{"$f":"SUMPRODUCT((WorkingR!$A$5:$A$91='Receipts - Summary'!A391)*(WorkingR!$D$5:$E$91))","v":0},null,null,{"$f":"'Prior Year Comparative'!B386","v":0},null,null,null,null,null,null,null,null,null,null,null,null,null,null,null,null,null,null,null,null,null,0]
[{"$f":"IF(Descriptions!D80=\"Investment income\",Descriptions!B80,0)","v":0},{"$f":"SUMPRODUCT((WorkingR!$A$5:$A$91='Receipts - Summary'!A392)*(WorkingR!$D$5:$E$91))","v":0},null,null,{"$f":"'Prior Year Comparative'!B387","v":0},null,null,null,null,null,null,null,null,null,null,null,null,null,null,null,null,null,null,null,null,null,0]
[{"$f":"IF(Descriptions!D81=\"Investment income\",Descriptions!B81,0)","v":0},{"$f":"SUMPRODUCT((WorkingR!$A$5:$A$91='Receipts - Summary'!A393)*(WorkingR!$D$5:$E$91))","v":0},null,null,{"$f":"'Prior Year Comparative'!B388","v":0},null,null,null,null,null,null,null,null,null,null,null,null,null,null,null,null,null,null,null,null,null,0]
[{"$f":"IF(Descriptions!D82=\"Investment income\",Descriptions!B82,0)","v":0},{"$f":"SUMPRODUCT((WorkingR!$A$5:$A$91='Receipts - Summary'!A394)*(WorkingR!$D$5:$E$91))","v":0},null,null,{"$f":"'Prior Year Comparative'!B389","v":0},null,null,null,null,null,null,null,null,null,null,null,null,null,null,null,null,null,null,null,null,null,0]
[{"$f":"IF(Descriptions!D83=\"Investment income\",Descriptions!B83,0)","v":0},{"$f":"SUMPRODUCT((WorkingR!$A$5:$A$91='Receipts - Summary'!A395)*(WorkingR!$D$5:$E$91))","v":0},null,null,{"$f":"'Prior Year Comparative'!B390","v":0},null,null,null,null,null,null,null,null,null,null,null,null,null,null,null,null,null,null,null,null,null,0]
[{"$f":"IF(Descriptions!D84=\"Investment income\",Descriptions!B84,0)","v":0},{"$f":"SUMPRODUCT((WorkingR!$A$5:$A$91='Receipts - Summary'!A396)*(WorkingR!$D$5:$E$91))","v":0},null,null,{"$f":"'Prior Year Comparative'!B391","v":0},null,null,null,null,null,null,null,null,null,null,null,null,null,null,null,null,null,null,null,null,null,0]
[{"$f":"IF(Descriptions!D85=\"Investment income\",Descriptions!B85,0)","v":0},{"$f":"SUMPRODUCT((WorkingR!$A$5:$A$91='Receipts - Summary'!A397)*(WorkingR!$D$5:$E$91))","v":0},null,null,{"$f":"'Prior Year Comparative'!B392","v":0},null,null,null,null,null,null,null,null,null,null,null,null,null,null,null,null,null,null,null,null,null,0]
[{"$f":"IF(Descriptions!D86=\"Investment income\",Descriptions!B86,0)","v":0},{"$f":"SUMPRODUCT((WorkingR!$A$5:$A$91='Receipts - Summary'!A398)*(WorkingR!$D$5:$E$91))","v":0},null,null,{"$f":"'Prior Year Comparative'!B393","v":0},null,null,null,null,null,null,null,null,null,null,null,null,null,null,null,null,null,null,null,null,null,0]
[{"$f":"IF(Descriptions!D87=\"Investment income\",Descriptions!B87,0)","v":0},{"$f":"SUMPRODUCT((WorkingR!$A$5:$A$91='Receipts - Summary'!A399)*(WorkingR!$D$5:$E$91))","v":0},null,null,{"$f":"'Prior Year Comparative'!B394","v":0},null,null,null,null,null,null,null,null,null,null,null,null,null,null,null,null,null,null,null,null,null,0]
[{"$f":"IF(Descriptions!D88=\"Investment income\",Descriptions!B88,0)","v":0},{"$f":"SUMPRODUCT((WorkingR!$A$5:$A$91='Receipts - Summary'!A400)*(WorkingR!$D$5:$E$91))","v":0},null,null,{"$f":"'Prior Year Comparative'!B395","v":0},null,null,null,null,null,null,null,null,null,null,null,null,null,null,null,null,null,null,null,null,null,0]
[{"$f":"IF(Descriptions!D89=\"Investment income\",Descriptions!B89,0)","v":0},{"$f":"SUMPRODUCT((WorkingR!$A$5:$A$91='Receipts - Summary'!A401)*(WorkingR!$D$5:$E$91))","v":0},null,null,{"$f":"'Prior Year Comparative'!B396","v":0},null,null,null,null,null,null,null,null,null,null,null,null,null,null,null,null,null,null,null,null,null,0]
[{"$f":"IF(Descriptions!D90=\"Investment income\",Descriptions!B90,0)","v":0},{"$f":"SUMPRODUCT((WorkingR!$A$5:$A$91='Receipts - Summary'!A402)*(WorkingR!$D$5:$E$91))","v":0},null,null,{"$f":"'Prior Year Comparative'!B397","v":0},null,null,null,null,null,null,null,null,null,null,null,null,null,null,null,null,null,null,null,null,null,0]
[{"$f":"IF(Descriptions!D91=\"Investment income\",Descriptions!B91,0)","v":0},{"$f":"SUMPRODUCT((WorkingR!$A$5:$A$91='Receipts - Summary'!A403)*(WorkingR!$D$5:$E$91))","v":0},null,null,{"$f":"'Prior Year Comparative'!B398","v":0},null,null,null,null,null,null,null,null,null,null,null,null,null,null,null,null,null,null,null,null,null,0]
[{"$f":"IF(Descriptions!D92=\"Investment income\",Descriptions!B92,0)","v":0},{"$f":"SUMPRODUCT((WorkingR!$A$5:$A$91='Receipts - Summary'!A404)*(WorkingR!$D$5:$E$91))","v":0},null,null,{"$f":"'Prior Year Comparative'!B399","v":0},null,null,null,null,null,null,null,null,null,null,null,null,null,null,null,null,null,null,null,null,null,0]
[null,null,{"$f":"SUM(B354:B404)","v":0},null,null,{"$f":"SUM(E354:E404)","v":0},null,null,null,null,null,null,null,null,null,null,null,null,null,null,null,null,null,null,null,null,{"$f":"AA353","v":0}]
["LEGACIES RECEIVED",null,null,null,null,null,null,null,null,null,null,null,null,null,null,null,null,null,null,null,null,null,null,null,null,null,{"$f":"SUM(AA407:AA457)","v":0}]
["Legacies",{"$f":"SUMPRODUCT((WorkingR!$A$5:$A$91='Receipts - Summary'!A407)*(WorkingR!$D$5:$E$91))","v":0},null,null,{"$f":"'Prior Year Comparative'!B402","v":0},null,null,null,null,null,null,null,null,null,null,null,null,null,null,null,null,null,null,null,null,null,{"$f":"Descriptions!AA24","v":0}]
[{"$f":"IF(Descriptions!D43=\"Legacies Received\",Descriptions!B43,0)","v":0},{"$f":"SUMPRODUCT((WorkingR!$A$5:$A$91='Receipts - Summary'!A408)*(WorkingR!$D$5:$E$91))","v":0},null,null,{"$f":"'Prior Year Comparative'!B403","v":0},null,null,null,null,null,null,null,null,null,null,null,null,null,null,null,null,null,null,null,null,null,{"$f":"IF(A408=0,0,1)","v":0}]
[{"$f":"IF(Descriptions!D44=\"Legacies Received\",Descriptions!B44,0)","v":0},{"$f":"SUMPRODUCT((WorkingR!$A$5:$A$91='Receipts - Summary'!A409)*(WorkingR!$D$5:$E$91))","v":0},null,null,{"$f":"'Prior Year Comparative'!B404","v":0},null,null,null,null,null,null,null,null,null,null,null,null,null,null,null,null,null,null,null,null,null,{"$f":"IF(A409=0,0,1)","v":0}]
[{"$f":"IF(Descriptions!D45=\"Legacies Received\",Descriptions!B45,0)","v":0},{"$f":"SUMPRODUCT((WorkingR!$A$5:$A$91='Receipts - Summary'!A410)*(WorkingR!$D$5:$E$91))","v":0},null,null,{"$f":"'Prior Year Comparative'!B405","v":0},null,null,null,null,null,null,null,null,null,null,null,null,null,null,null,null,null,null,null,null,null,0]
[{"$f":"IF(Descriptions!D46=\"Legacies Received\",Descriptions!B46,0)","v":0},{"$f":"SUMPRODUCT((WorkingR!$A$5:$A$91='Receipts - Summary'!A411)*(WorkingR!$D$5:$E$91))","v":0},null,null,{"$f":"'Prior Year Comparative'!B406","v":0},null,null,null,null,null,null,null,null,null,null,null,null,null,null,null,null,null,null,null,null,null,0]
[{"$f":"IF(Descriptions!D47=\"Legacies Received\",Descriptions!B47,0)","v":0},{"$f":"SUMPRODUCT((WorkingR!$A$5:$A$91='Receipts - Summary'!A412)*(WorkingR!$D$5:$E$91))","v":0},null,null,{"$f":"'Prior Year Comparative'!B407","v":0},null,null,null,null,null,null,null,null,null,null,null,null,null,null,null,null,null,null,null,null,null,0]
[{"$f":"IF(Descriptions!D48=\"Legacies Received\",Descriptions!B48,0)","v":0},{"$f":"SUMPRODUCT((WorkingR!$A$5:$A$91='Receipts - Summary'!A413)*(WorkingR!$D$5:$E$91))","v":0},null,null,{"$f":"'Prior Year Comparative'!B408","v":0},null,null,null,null,null,null,null,null,null,null,null,null,null,null,null,null,null,null,null,null,null,0]
[{"$f":"IF(Descriptions!D49=\"Legacies Received\",Descriptions!B49,0)","v":0},{"$f":"SUMPRODUCT((WorkingR!$A$5:$A$91='Receipts - Summary'!A414)*(WorkingR!$D$5:$E$91))","v":0},null,null,{"$f":"'Prior Year Comparative'!B409","v":0},null,null,null,null,null,null,null,null,null,null,null,null,null,null,null,null,null,null,null,null,null,0]
[{"$f":"IF(Descriptions!D50=\"Legacies Received\",Descriptions!B50,0)","v":0},{"$f":"SUMPRODUCT((WorkingR!$A$5:$A$91='Receipts - Summary'!A415)*(WorkingR!$D$5:$E$91))","v":0},null,null,{"$f":"'Prior Year Comparative'!B410","v":0},null,null,null,null,null,null,null,null,null,null,null,null,null,null,null,null,null,null,null,null,null,0]
[{"$f":"IF(Descriptions!D51=\"Legacies Received\",Descriptions!B51,0)","v":0},{"$f":"SUMPRODUCT((WorkingR!$A$5:$A$91='Receipts - Summary'!A416)*(WorkingR!$D$5:$E$91))","v":0},null,null,{"$f":"'Prior Year Comparative'!B411","v":0},null,null,null,null,null,null,null,null,null,null,null,null,null,null,null,null,null,null,null,null,null,0]
[{"$f":"IF(Descriptions!D52=\"Legacies Received\",Descriptions!B52,0)","v":0},{"$f":"SUMPRODUCT((WorkingR!$A$5:$A$91='Receipts - Summary'!A417)*(WorkingR!$D$5:$E$91))","v":0},null,null,{"$f":"'Prior Year Comparative'!B412","v":0},null,null,null,null,null,null,null,null,null,null,null,null,null,null,null,null,null,null,null,null,null,0]
[{"$f":"IF(Descriptions!D53=\"Legacies Received\",Descriptions!B53,0)","v":0},{"$f":"SUMPRODUCT((WorkingR!$A$5:$A$91='Receipts - Summary'!A418)*(WorkingR!$D$5:$E$91))","v":0},null,null,{"$f":"'Prior Year Comparative'!B413","v":0},null,null,null,null,null,null,null,null,null,null,null,null,null,null,null,null,null,null,null,null,null,0]
[{"$f":"IF(Descriptions!D54=\"Legacies Received\",Descriptions!B54,0)","v":0},{"$f":"SUMPRODUCT((WorkingR!$A$5:$A$91='Receipts - Summary'!A419)*(WorkingR!$D$5:$E$91))","v":0},null,null,{"$f":"'Prior Year Comparative'!B414","v":0},null,null,null,null,null,null,null,null,null,null,null,null,null,null,null,null,null,null,null,null,null,0]
[{"$f":"IF(Descriptions!D55=\"Legacies Received\",Descriptions!B55,0)","v":0},{"$f":"SUMPRODUCT((WorkingR!$A$5:$A$91='Receipts - Summary'!A420)*(WorkingR!$D$5:$E$91))","v":0},null,null,{"$f":"'Prior Year Comparative'!B415","v":0},null,null,null,null,null,null,null,null,null,null,null,null,null,null,null,null,null,null,null,null,null,0]
[{"$f":"IF(Descriptions!D56=\"Legacies Received\",Descriptions!B56,0)","v":0},{"$f":"SUMPRODUCT((WorkingR!$A$5:$A$91='Receipts - Summary'!A421)*(WorkingR!$D$5:$E$91))","v":0},null,null,{"$f":"'Prior Year Comparative'!B416","v":0},null,null,null,null,null,null,null,null,null,null,null,null,null,null,null,null,null,null,null,null,null,0]
[{"$f":"IF(Descriptions!D57=\"Legacies Received\",Descriptions!B57,0)","v":0},{"$f":"SUMPRODUCT((WorkingR!$A$5:$A$91='Receipts - Summary'!A422)*(WorkingR!$D$5:$E$91))","v":0},null,null,{"$f":"'Prior Year Comparative'!B417","v":0},null,null,null,null,null,null,null,null,null,null,null,null,null,null,null,null,null,null,null,null,null,0]
[{"$f":"IF(Descriptions!D58=\"Legacies Received\",Descriptions!B58,0)","v":0},{"$f":"SUMPRODUCT((WorkingR!$A$5:$A$91='Receipts - Summary'!A423)*(WorkingR!$D$5:$E$91))","v":0},null,null,{"$f":"'Prior Year Comparative'!B418","v":0},null,null,null,null,null,null,null,null,null,null,null,null,null,null,null,null,null,null,null,null,null,0]
[{"$f":"IF(Descriptions!D59=\"Legacies Received\",Descriptions!B59,0)","v":0},{"$f":"SUMPRODUCT((WorkingR!$A$5:$A$91='Receipts - Summary'!A424)*(WorkingR!$D$5:$E$91))","v":0},null,null,{"$f":"'Prior Year Comparative'!B419","v":0},null,null,null,null,null,null,null,null,null,null,null,null,null,null,null,null,null,null,null,null,null,0]
[{"$f":"IF(Descriptions!D60=\"Legacies Received\",Descriptions!B60,0)","v":0},{"$f":"SUMPRODUCT((WorkingR!$A$5:$A$91='Receipts - Summary'!A425)*(WorkingR!$D$5:$E$91))","v":0},null,null,{"$f":"'Prior Year Comparative'!B420","v":0},null,null,null,null,null,null,null,null,null,null,null,null,null,null,null,null,null,null,null,null,null,0]
[{"$f":"IF(Descriptions!D61=\"Legacies Received\",Descriptions!B61,0)","v":0},{"$f":"SUMPRODUCT((WorkingR!$A$5:$A$91='Receipts - Summary'!A426)*(WorkingR!$D$5:$E$91))","v":0},null,null,{"$f":"'Prior Year Comparative'!B421","v":0},null,null,null,null,null,null,null,null,null,null,null,null,null,null,null,null,null,null,null,null,null,0]
[{"$f":"IF(Descriptions!D62=\"Legacies Received\",Descriptions!B62,0)","v":0},{"$f":"SUMPRODUCT((WorkingR!$A$5:$A$91='Receipts - Summary'!A427)*(WorkingR!$D$5:$E$91))","v":0},null,null,{"$f":"'Prior Year Comparative'!B422","v":0},null,null,null,null,null,null,null,null,null,null,null,null,null,null,null,null,null,null,null,null,null,0]
[{"$f":"IF(Descriptions!D63=\"Legacies Received\",Descriptions!B63,0)","v":0},{"$f":"SUMPRODUCT((WorkingR!$A$5:$A$91='Receipts - Summary'!A428)*(WorkingR!$D$5:$E$91))","v":0},null,null,{"$f":"'Prior Year Comparative'!B423","v":0},null,null,null,null,null,null,null,null,null,null,null,null,null,null,null,null,null,null,null,null,null,0]
[{"$f":"IF(Descriptions!D64=\"Legacies Received\",Descriptions!B64,0)","v":0},{"$f":"SUMPRODUCT((WorkingR!$A$5:$A$91='Receipts - Summary'!A429)*(WorkingR!$D$5:$E$91))","v":0},null,null,{"$f":"'Prior Year Comparative'!B424","v":0},null,null,null,null,null,null,null,null,null,null,null,null,null,null,null,null,null,null,null,null,null,0]
[{"$f":"IF(Descriptions!D65=\"Legacies Received\",Descriptions!B65,0)","v":0},{"$f":"SUMPRODUCT((WorkingR!$A$5:$A$91='Receipts - Summary'!A430)*(WorkingR!$D$5:$E$91))","v":0},null,null,{"$f":"'Prior Year Comparative'!B425","v":0},null,null,null,null,null,null,null,null,null,null,null,null,null,null,null,null,null,null,null,null,null,0]
[{"$f":"IF(Descriptions!D66=\"Legacies Received\",Descriptions!B66,0)","v":0},{"$f":"SUMPRODUCT((WorkingR!$A$5:$A$91='Receipts - Summary'!A431)*(WorkingR!$D$5:$E$91))","v":0},null,null,{"$f":"'Prior Year Comparative'!B426","v":0},null,null,null,null,null,null,null,null,null,null,null,null,null,null,null,null,null,null,null,null,null,0]
[{"$f":"IF(Descriptions!D67=\"Legacies Received\",Descriptions!B67,0)","v":0},{"$f":"SUMPRODUCT((WorkingR!$A$5:$A$91='Receipts - Summary'!A432)*(WorkingR!$D$5:$E$91))","v":0},null,null,{"$f":"'Prior Year Comparative'!B427","v":0},null,null,null,null,null,null,null,null,null,null,null,null,null,null,null,null,null,null,null,null,null,0]
[{"$f":"IF(Descriptions!D68=\"Legacies Received\",Descriptions!B68,0)","v":0},{"$f":"SUMPRODUCT((WorkingR!$A$5:$A$91='Receipts - Summary'!A433)*(WorkingR!$D$5:$E$91))","v":0},null,null,{"$f":"'Prior Year Comparative'!B428","v":0},null,null,null,null,null,null,null,null,null,null,null,null,null,null,null,null,null,null,null,null,null,0]
[{"$f":"IF(Descriptions!D69=\"Legacies Received\",Descriptions!B69,0)","v":0},{"$f":"SUMPRODUCT((WorkingR!$A$5:$A$91='Receipts - Summary'!A434)*(WorkingR!$D$5:$E$91))","v":0},null,null,{"$f":"'Prior Year Comparative'!B429","v":0},null,null,null,null,null,null,null,null,null,null,null,null,null,null,null,null,null,null,null,null,null,0]
[{"$f":"IF(Descriptions!D70=\"Legacies Received\",Descriptions!B70,0)","v":0},{"$f":"SUMPRODUCT((WorkingR!$A$5:$A$91='Receipts - Summary'!A435)*(WorkingR!$D$5:$E$91))","v":0},null,null,{"$f":"'Prior Year Comparative'!B430","v":0},null,null,null,null,null,null,null,null,null,null,null,null,null,null,null,null,null,null,null,null,null,0]
[{"$f":"IF(Descriptions!D71=\"Legacies Received\",Descriptions!B71,0)","v":0},{"$f":"SUMPRODUCT((WorkingR!$A$5:$A$91='Receipts - Summary'!A436)*(WorkingR!$D$5:$E$91))","v":0},null,null,{"$f":"'Prior Year Comparative'!B431","v":0},null,null,null,null,null,null,null,null,null,null,null,null,null,null,null,null,null,null,null,null,null,0]
[{"$f":"IF(Descriptions!D72=\"Legacies Received\",Descriptions!B72,0)","v":0},{"$f":"SUMPRODUCT((WorkingR!$A$5:$A$91='Receipts - Summary'!A437)*(WorkingR!$D$5:$E$91))","v":0},null,null,{"$f":"'Prior Year Comparative'!B432","v":0},null,null,null,null,null,null,null,null,null,null,null,null,null,null,null,null,null,null,null,null,null,0]
[{"$f":"IF(Descriptions!D73=\"Legacies Received\",Descriptions!B73,0)","v":0},{"$f":"SUMPRODUCT((WorkingR!$A$5:$A$91='Receipts - Summary'!A438)*(WorkingR!$D$5:$E$91))","v":0},null,null,{"$f":"'Prior Year Comparative'!B433","v":0},null,null,null,null,null,null,null,null,null,null,null,null,null,null,null,null,null,null,null,null,null,0]
[{"$f":"IF(Descriptions!D74=\"Legacies Received\",Descriptions!B74,0)","v":0},{"$f":"SUMPRODUCT((WorkingR!$A$5:$A$91='Receipts - Summary'!A439)*(WorkingR!$D$5:$E$91))","v":0},null,null,{"$f":"'Prior Year Comparative'!B434","v":0},null,null,null,null,null,null,null,null,null,null,null,null,null,null,null,null,null,null,null,null,null,0]
[{"$f":"IF(Descriptions!D75=\"Legacies Received\",Descriptions!B75,0)","v":0},{"$f":"SUMPRODUCT((WorkingR!$A$5:$A$91='Receipts - Summary'!A440)*(WorkingR!$D$5:$E$91))","v":0},null,null,{"$f":"'Prior Year Comparative'!B435","v":0},null,null,null,null,null,null,null,null,null,null,null,null,null,null,null,null,null,null,null,null,null,0]
[{"$f":"IF(Descriptions!D76=\"Legacies Received\",Descriptions!B76,0)","v":0},{"$f":"SUMPRODUCT((WorkingR!$A$5:$A$91='Receipts - Summary'!A441)*(WorkingR!$D$5:$E$91))","v":0},null,null,{"$f":"'Prior Year Comparative'!B436","v":0},null,null,null,null,null,null,null,null,null,null,null,null,null,null,null,null,null,null,null,null,null,0]
[{"$f":"IF(Descriptions!D77=\"Legacies Received\",Descriptions!B77,0)","v":0},{"$f":"SUMPRODUCT((WorkingR!$A$5:$A$91='Receipts - Summary'!A442)*(WorkingR!$D$5:$E$91))","v":0},null,null,{"$f":"'Prior Year Comparative'!B437","v":0},null,null,null,null,null,null,null,null,null,null,null,null,null,null,null,null,null,null,null,null,null,0]
[{"$f":"IF(Descriptions!D78=\"Legacies Received\",Descriptions!B78,0)","v":0},{"$f":"SUMPRODUCT((WorkingR!$A$5:$A$91='Receipts - Summary'!A443)*(WorkingR!$D$5:$E$91))","v":0},null,null,{"$f":"'Prior Year Comparative'!B438","v":0},null,null,null,null,null,null,null,null,null,null,null,null,null,null,null,null,null,null,null,null,null,0]
[{"$f":"IF(Descriptions!D79=\"Legacies Received\",Descriptions!B79,0)","v":0},{"$f":"SUMPRODUCT((WorkingR!$A$5:$A$91='Receipts - Summary'!A444)*(WorkingR!$D$5:$E$91))","v":0},null,null,{"$f":"'Prior Year Comparative'!B439","v":0},null,null,null,null,null,null,null,null,null,null,null,null,null,null,null,null,null,null,null,null,null,0]
[{"$f":"IF(Descriptions!D80=\"Legacies Received\",Descriptions!B80,0)","v":0},{"$f":"SUMPRODUCT((WorkingR!$A$5:$A$91='Receipts - Summary'!A445)*(WorkingR!$D$5:$E$91))","v":0},null,null,{"$f":"'Prior Year Comparative'!B440","v":0},null,null,null,null,null,null,null,null,null,null,null,null,null,null,null,null,null,null,null,null,null,0]
[{"$f":"IF(Descriptions!D81=\"Legacies Received\",Descriptions!B81,0)","v":0},{"$f":"SUMPRODUCT((WorkingR!$A$5:$A$91='Receipts - Summary'!A446)*(WorkingR!$D$5:$E$91))","v":0},null,null,{"$f":"'Prior Year Comparative'!B441","v":0},null,null,null,null,null,null,null,null,null,null,null,null,null,null,null,null,null,null,null,null,null,0]
[{"$f":"IF(Descriptions!D82=\"Legacies Received\",Descriptions!B82,0)","v":0},{"$f":"SUMPRODUCT((WorkingR!$A$5:$A$91='Receipts - Summary'!A447)*(WorkingR!$D$5:$E$91))","v":0},null,null,{"$f":"'Prior Year Comparative'!B442","v":0},null,null,null,null,null,null,null,null,null,null,null,null,null,null,null,null,null,null,null,null,null,0]
[{"$f":"IF(Descriptions!D83=\"Legacies Received\",Descriptions!B83,0)","v":0},{"$f":"SUMPRODUCT((WorkingR!$A$5:$A$91='Receipts - Summary'!A448)*(WorkingR!$D$5:$E$91))","v":0},null,null,{"$f":"'Prior Year Comparative'!B443","v":0},null,null,null,null,null,null,null,null,null,null,null,null,null,null,null,null,null,null,null,null,null,0]
[{"$f":"IF(Descriptions!D84=\"Legacies Received\",Descriptions!B84,0)","v":0},{"$f":"SUMPRODUCT((WorkingR!$A$5:$A$91='Receipts - Summary'!A449)*(WorkingR!$D$5:$E$91))","v":0},null,null,{"$f":"'Prior Year Comparative'!B444","v":0},null,null,null,null,null,null,null,null,null,null,null,null,null,null,null,null,null,null,null,null,null,0]
[{"$f":"IF(Descriptions!D85=\"Legacies Received\",Descriptions!B85,0)","v":0},{"$f":"SUMPRODUCT((WorkingR!$A$5:$A$91='Receipts - Summary'!A450)*(WorkingR!$D$5:$E$91))","v":0},null,null,{"$f":"'Prior Year Comparative'!B445","v":0},null,null,null,null,null,null,null,null,null,null,null,null,null,null,null,null,null,null,null,null,null,0]
[{"$f":"IF(Descriptions!D86=\"Legacies Received\",Descriptions!B86,0)","v":0},{"$f":"SUMPRODUCT((WorkingR!$A$5:$A$91='Receipts - Summary'!A451)*(WorkingR!$D$5:$E$91))","v":0},null,null,{"$f":"'Prior Year Comparative'!B446","v":0},null,null,null,null,null,null,null,null,null,null,null,null,null,null,null,null,null,null,null,null,null,0]
[{"$f":"IF(Descriptions!D87=\"Legacies Received\",Descriptions!B87,0)","v":0},{"$f":"SUMPRODUCT((WorkingR!$A$5:$A$91='Receipts - Summary'!A452)*(WorkingR!$D$5:$E$91))","v":0},null,null,{"$f":"'Prior Year Comparative'!B447","v":0},null,null,null,null,null,null,null,null,null,null,null,null,null,null,null,null,null,null,null,null,null,0]
[{"$f":"IF(Descriptions!D88=\"Legacies Received\",Descriptions!B88,0)","v":0},{"$f":"SUMPRODUCT((WorkingR!$A$5:$A$91='Receipts - Summary'!A453)*(WorkingR!$D$5:$E$91))","v":0},null,null,{"$f":"'Prior Year Comparative'!B448","v":0},null,null,null,null,null,null,null,null,null,null,null,null,null,null,null,null,null,null,null,null,null,0]
[{"$f":"IF(Descriptions!D89=\"Legacies Received\",Descriptions!B89,0)","v":0},{"$f":"SUMPRODUCT((WorkingR!$A$5:$A$91='Receipts - Summary'!A454)*(WorkingR!$D$5:$E$91))","v":0},null,null,{"$f":"'Prior Year Comparative'!B449","v":0},null,null,null,null,null,null,null,null,null,null,null,null,null,null,null,null,null,null,null,null,null,0]
[{"$f":"IF(Descriptions!D90=\"Legacies Received\",Descriptions!B90,0)","v":0},{"$f":"SUMPRODUCT((WorkingR!$A$5:$A$91='Receipts - Summary'!A455)*(WorkingR!$D$5:$E$91))","v":0},null,null,{"$f":"'Prior Year Comparative'!B450","v":0},null,null,null,null,null,null,null,null,null,null,null,null,null,null,null,null,null,null,null,null,null,0]
[{"$f":"IF(Descriptions!D91=\"Legacies Received\",Descriptions!B91,0)","v":0},{"$f":"SUMPRODUCT((WorkingR!$A$5:$A$91='Receipts - Summary'!A456)*(WorkingR!$D$5:$E$91))","v":0},null,null,{"$f":"'Prior Year Comparative'!B451","v":0},null,null,null,null,null,null,null,null,null,null,null,null,null,null,null,null,null,null,null,null,null,0]
[{"$f":"IF(Descriptions!D92=\"Legacies Received\",Descriptions!B92,0)","v":0},{"$f":"SUMPRODUCT((WorkingR!$A$5:$A$91='Receipts - Summary'!A457)*(WorkingR!$D$5:$E$91))","v":0},null,null,{"$f":"'Prior Year Comparative'!B452","v":0},null,null,null,null,null,null,null,null,null,null,null,null,null,null,null,null,null,null,null,null,null,0]
[null,null,{"$f":"SUM(B407:B457)","v":0},null,null,{"$f":"SUM(E407:E457)","v":0},null,null,null,null,null,null,null,null,null,null,null,null,null,null,null,null,null,null,null,null,{"$f":"AA406","v":0}]
["GRANT INCOME",null,null,null,null,null,null,null,null,null,null,null,null,null,null,null,null,null,null,null,null,null,null,null,null,null,{"$f":"SUM(AA460:AA511)","v":0}]
["Grants - Recurring",{"$f":"SUMPRODUCT((WorkingR!$A$5:$A$91='Receipts - Summary'!A460)*(WorkingR!$D$5:$E$91))","v":0},null,null,{"$f":"'Prior Year Comparative'!B455","v":0},null,null,null,null,null,null,null,null,null,null,null,null,null,null,null,null,null,null,null,null,null,{"$f":"Descriptions!AA21","v":0}]
["Grants - One off",{"$f":"SUMPRODUCT((WorkingR!$A$5:$A$91='Receipts - Summary'!A461)*(WorkingR!$D$5:$E$91))","v":0},null,null,{"$f":"'Prior Year Comparative'!B456","v":0},null,null,null,null,null,null,null,null,null,null,null,null,null,null,null,null,null,null,null,null,null,{"$f":"Descriptions!AA20","v":0}]
[{"$f":"IF(Descriptions!D43=\"Grant income\",Descriptions!B43,0)","v":0},{"$f":"SUMPRODUCT((WorkingR!$A$5:$A$91='Receipts - Summary'!A462)*(WorkingR!$D$5:$E$91))","v":0},null,null,{"$f":"'Prior Year Comparative'!B457","v":0},null,null,null,null,null,null,null,null,null,null,null,null,null,null,null,null,null,null,null,null,null,{"$f":"IF(A462=0,0,1)","v":0}]
[{"$f":"IF(Descriptions!D44=\"Grant income\",Descriptions!B44,0)","v":0},{"$f":"SUMPRODUCT((WorkingR!$A$5:$A$91='Receipts - Summary'!A463)*(WorkingR!$D$5:$E$91))","v":0},null,null,{"$f":"'Prior Year Comparative'!B458","v":0},null,null,null,null,null,null,null,null,null,null,null,null,null,null,null,null,null,null,null,null,null,{"$f":"IF(A463=0,0,1)","v":0}]
[{"$f":"IF(Descriptions!D45=\"Grant income\",Descriptions!B45,0)","v":0},{"$f":"SUMPRODUCT((WorkingR!$A$5:$A$91='Receipts - Summary'!A464)*(WorkingR!$D$5:$E$91))","v":0},null,null,{"$f":"'Prior Year Comparative'!B459","v":0},null,null,null,null,null,null,null,null,null,null,null,null,null,null,null,null,null,null,null,null,null,0]
[{"$f":"IF(Descriptions!D46=\"Grant income\",Descriptions!B46,0)","v":0},{"$f":"SUMPRODUCT((WorkingR!$A$5:$A$91='Receipts - Summary'!A465)*(WorkingR!$D$5:$E$91))","v":0},null,null,{"$f":"'Prior Year Comparative'!B460","v":0},null,null,null,null,null,null,null,null,null,null,null,null,null,null,null,null,null,null,null,null,null,0]
[{"$f":"IF(Descriptions!D47=\"Grant income\",Descriptions!B47,0)","v":0},{"$f":"SUMPRODUCT((WorkingR!$A$5:$A$91='Receipts - Summary'!A466)*(WorkingR!$D$5:$E$91))","v":0},null,null,{"$f":"'Prior Year Comparative'!B461","v":0},null,null,null,null,null,null,null,null,null,null,null,null,null,null,null,null,null,null,null,null,null,0]
[{"$f":"IF(Descriptions!D48=\"Grant income\",Descriptions!B48,0)","v":0},{"$f":"SUMPRODUCT((WorkingR!$A$5:$A$91='Receipts - Summary'!A467)*(WorkingR!$D$5:$E$91))","v":0},null,null,{"$f":"'Prior Year Comparative'!B462","v":0},null,null,null,null,null,null,null,null,null,null,null,null,null,null,null,null,null,null,null,null,null,0]
[{"$f":"IF(Descriptions!D49=\"Grant income\",Descriptions!B49,0)","v":0},{"$f":"SUMPRODUCT((WorkingR!$A$5:$A$91='Receipts - Summary'!A468)*(WorkingR!$D$5:$E$91))","v":0},null,null,{"$f":"'Prior Year Comparative'!B463","v":0},null,null,null,null,null,null,null,null,null,null,null,null,null,null,null,null,null,null,null,null,null,0]
[{"$f":"IF(Descriptions!D50=\"Grant income\",Descriptions!B50,0)","v":0},{"$f":"SUMPRODUCT((WorkingR!$A$5:$A$91='Receipts - Summary'!A469)*(WorkingR!$D$5:$E$91))","v":0},null,null,{"$f":"'Prior Year Comparative'!B464","v":0},null,null,null,null,null,null,null,null,null,null,null,null,null,null,null,null,null,null,null,null,null,0]
[{"$f":"IF(Descriptions!D51=\"Grant income\",Descriptions!B51,0)","v":0},{"$f":"SUMPRODUCT((WorkingR!$A$5:$A$91='Receipts - Summary'!A470)*(WorkingR!$D$5:$E$91))","v":0},null,null,{"$f":"'Prior Year Comparative'!B465","v":0},null,null,null,null,null,null,null,null,null,null,null,null,null,null,null,null,null,null,null,null,null,0]
[{"$f":"IF(Descriptions!D52=\"Grant income\",Descriptions!B52,0)","v":0},{"$f":"SUMPRODUCT((WorkingR!$A$5:$A$91='Receipts - Summary'!A471)*(WorkingR!$D$5:$E$91))","v":0},null,null,{"$f":"'Prior Year Comparative'!B466","v":0},null,null,null,null,null,null,null,null,null,null,null,null,null,null,null,null,null,null,null,null,null,0]
[{"$f":"IF(Descriptions!D53=\"Grant income\",Descriptions!B53,0)","v":0},{"$f":"SUMPRODUCT((WorkingR!$A$5:$A$91='Receipts - Summary'!A472)*(WorkingR!$D$5:$E$91))","v":0},null,null,{"$f":"'Prior Year Comparative'!B467","v":0},null,null,null,null,null,null,null,null,null,null,null,null,null,null,null,null,null,null,null,null,null,0]
[{"$f":"IF(Descriptions!D54=\"Grant income\",Descriptions!B54,0)","v":0},{"$f":"SUMPRODUCT((WorkingR!$A$5:$A$91='Receipts - Summary'!A473)*(WorkingR!$D$5:$E$91))","v":0},null,null,{"$f":"'Prior Year Comparative'!B468","v":0},null,null,null,null,null,null,null,null,null,null,null,null,null,null,null,null,null,null,null,null,null,0]
[{"$f":"IF(Descriptions!D55=\"Grant income\",Descriptions!B55,0)","v":0},{"$f":"SUMPRODUCT((WorkingR!$A$5:$A$91='Receipts - Summary'!A474)*(WorkingR!$D$5:$E$91))","v":0},null,null,{"$f":"'Prior Year Comparative'!B469","v":0},null,null,null,null,null,null,null,null,null,null,null,null,null,null,null,null,null,null,null,null,null,0]
[{"$f":"IF(Descriptions!D56=\"Grant income\",Descriptions!B56,0)","v":0},{"$f":"SUMPRODUCT((WorkingR!$A$5:$A$91='Receipts - Summary'!A475)*(WorkingR!$D$5:$E$91))","v":0},null,null,{"$f":"'Prior Year Comparative'!B470","v":0},null,null,null,null,null,null,null,null,null,null,null,null,null,null,null,null,null,null,null,null,null,0]
[{"$f":"IF(Descriptions!D57=\"Grant income\",Descriptions!B57,0)","v":0},{"$f":"SUMPRODUCT((WorkingR!$A$5:$A$91='Receipts - Summary'!A476)*(WorkingR!$D$5:$E$91))","v":0},null,null,{"$f":"'Prior Year Comparative'!B471","v":0},null,null,null,null,null,null,null,null,null,null,null,null,null,null,null,null,null,null,null,null,null,0]
[{"$f":"IF(Descriptions!D58=\"Grant income\",Descriptions!B58,0)","v":0},{"$f":"SUMPRODUCT((WorkingR!$A$5:$A$91='Receipts - Summary'!A477)*(WorkingR!$D$5:$E$91))","v":0},null,null,{"$f":"'Prior Year Comparative'!B472","v":0},null,null,null,null,null,null,null,null,null,null,null,null,null,null,null,null,null,null,null,null,null,0]
[{"$f":"IF(Descriptions!D59=\"Grant income\",Descriptions!B59,0)","v":0},{"$f":"SUMPRODUCT((WorkingR!$A$5:$A$91='Receipts - Summary'!A478)*(WorkingR!$D$5:$E$91))","v":0},null,null,{"$f":"'Prior Year Comparative'!B473","v":0},null,null,null,null,null,null,null,null,null,null,null,null,null,null,null,null,null,null,null,null,null,0]
[{"$f":"IF(Descriptions!D60=\"Grant income\",Descriptions!B60,0)","v":0},{"$f":"SUMPRODUCT((WorkingR!$A$5:$A$91='Receipts - Summary'!A479)*(WorkingR!$D$5:$E$91))","v":0},null,null,{"$f":"'Prior Year Comparative'!B474","v":0},null,null,null,null,null,null,null,null,null,null,null,null,null,null,null,null,null,null,null,null,null,0]
[{"$f":"IF(Descriptions!D61=\"Grant income\",Descriptions!B61,0)","v":0},{"$f":"SUMPRODUCT((WorkingR!$A$5:$A$91='Receipts - Summary'!A480)*(WorkingR!$D$5:$E$91))","v":0},null,null,{"$f":"'Prior Year Comparative'!B475","v":0},null,null,null,null,null,null,null,null,null,null,null,null,null,null,null,null,null,null,null,null,null,0]
[{"$f":"IF(Descriptions!D62=\"Grant income\",Descriptions!B62,0)","v":0},{"$f":"SUMPRODUCT((WorkingR!$A$5:$A$91='Receipts - Summary'!A481)*(WorkingR!$D$5:$E$91))","v":0},null,null,{"$f":"'Prior Year Comparative'!B476","v":0},null,null,null,null,null,null,null,null,null,null,null,null,null,null,null,null,null,null,null,null,null,0]
[{"$f":"IF(Descriptions!D63=\"Grant income\",Descriptions!B63,0)","v":0},{"$f":"SUMPRODUCT((WorkingR!$A$5:$A$91='Receipts - Summary'!A482)*(WorkingR!$D$5:$E$91))","v":0},null,null,{"$f":"'Prior Year Comparative'!B477","v":0},null,null,null,null,null,null,null,null,null,null,null,null,null,null,null,null,null,null,null,null,null,0]
[{"$f":"IF(Descriptions!D64=\"Grant income\",Descriptions!B64,0)","v":0},{"$f":"SUMPRODUCT((WorkingR!$A$5:$A$91='Receipts - Summary'!A483)*(WorkingR!$D$5:$E$91))","v":0},null,null,{"$f":"'Prior Year Comparative'!B478","v":0},null,null,null,null,null,null,null,null,null,null,null,null,null,null,null,null,null,null,null,null,null,0]
[{"$f":"IF(Descriptions!D65=\"Grant income\",Descriptions!B65,0)","v":0},{"$f":"SUMPRODUCT((WorkingR!$A$5:$A$91='Receipts - Summary'!A484)*(WorkingR!$D$5:$E$91))","v":0},null,null,{"$f":"'Prior Year Comparative'!B479","v":0},null,null,null,null,null,null,null,null,null,null,null,null,null,null,null,null,null,null,null,null,null,0]
[{"$f":"IF(Descriptions!D66=\"Grant income\",Descriptions!B66,0)","v":0},{"$f":"SUMPRODUCT((WorkingR!$A$5:$A$91='Receipts - Summary'!A485)*(WorkingR!$D$5:$E$91))","v":0},null,null,{"$f":"'Prior Year Comparative'!B480","v":0},null,null,null,null,null,null,null,null,null,null,null,null,null,null,null,null,null,null,null,null,null,0]
[{"$f":"IF(Descriptions!D67=\"Grant income\",Descriptions!B67,0)","v":0},{"$f":"SUMPRODUCT((WorkingR!$A$5:$A$91='Receipts - Summary'!A486)*(WorkingR!$D$5:$E$91))","v":0},null,null,{"$f":"'Prior Year Comparative'!B481","v":0},null,null,null,null,null,null,null,null,null,null,null,null,null,null,null,null,null,null,null,null,null,0]
[{"$f":"IF(Descriptions!D68=\"Grant income\",Descriptions!B68,0)","v":0},{"$f":"SUMPRODUCT((WorkingR!$A$5:$A$91='Receipts - Summary'!A487)*(WorkingR!$D$5:$E$91))","v":0},null,null,{"$f":"'Prior Year Comparative'!B482","v":0},null,null,null,null,null,null,null,null,null,null,null,null,null,null,null,null,null,null,null,null,null,0]
[{"$f":"IF(Descriptions!D69=\"Grant income\",Descriptions!B69,0)","v":0},{"$f":"SUMPRODUCT((WorkingR!$A$5:$A$91='Receipts - Summary'!A488)*(WorkingR!$D$5:$E$91))","v":0},null,null,{"$f":"'Prior Year Comparative'!B483","v":0},null,null,null,null,null,null,null,null,null,null,null,null,null,null,null,null,null,null,null,null,null,0]
[{"$f":"IF(Descriptions!D70=\"Grant income\",Descriptions!B70,0)","v":0},{"$f":"SUMPRODUCT((WorkingR!$A$5:$A$91='Receipts - Summary'!A489)*(WorkingR!$D$5:$E$91))","v":0},null,null,{"$f":"'Prior Year Comparative'!B484","v":0},null,null,null,null,null,null,null,null,null,null,null,null,null,null,null,null,null,null,null,null,null,0]
[{"$f":"IF(Descriptions!D71=\"Grant income\",Descriptions!B71,0)","v":0},{"$f":"SUMPRODUCT((WorkingR!$A$5:$A$91='Receipts - Summary'!A490)*(WorkingR!$D$5:$E$91))","v":0},null,null,{"$f":"'Prior Year Comparative'!B485","v":0},null,null,null,null,null,null,null,null,null,null,null,null,null,null,null,null,null,null,null,null,null,0]
[{"$f":"IF(Descriptions!D72=\"Grant income\",Descriptions!B72,0)","v":0},{"$f":"SUMPRODUCT((WorkingR!$A$5:$A$91='Receipts - Summary'!A491)*(WorkingR!$D$5:$E$91))","v":0},null,null,{"$f":"'Prior Year Comparative'!B486","v":0},null,null,null,null,null,null,null,null,null,null,null,null,null,null,null,null,null,null,null,null,null,0]
[{"$f":"IF(Descriptions!D73=\"Grant income\",Descriptions!B73,0)","v":0},{"$f":"SUMPRODUCT((WorkingR!$A$5:$A$91='Receipts - Summary'!A492)*(WorkingR!$D$5:$E$91))","v":0},null,null,{"$f":"'Prior Year Comparative'!B487","v":0},null,null,null,null,null,null,null,null,null,null,null,null,null,null,null,null,null,null,null,null,null,0]
[{"$f":"IF(Descriptions!D74=\"Grant income\",Descriptions!B74,0)","v":0},{"$f":"SUMPRODUCT((WorkingR!$A$5:$A$91='Receipts - Summary'!A493)*(WorkingR!$D$5:$E$91))","v":0},null,null,{"$f":"'Prior Year Comparative'!B488","v":0},null,null,null,null,null,null,null,null,null,null,null,null,null,null,null,null,null,null,null,null,null,0]
[{"$f":"IF(Descriptions!D75=\"Grant income\",Descriptions!B75,0)","v":0},{"$f":"SUMPRODUCT((WorkingR!$A$5:$A$91='Receipts - Summary'!A494)*(WorkingR!$D$5:$E$91))","v":0},null,null,{"$f":"'Prior Year Comparative'!B489","v":0},null,null,null,null,null,null,null,null,null,null,null,null,null,null,null,null,null,null,null,null,null,0]
[{"$f":"IF(Descriptions!D76=\"Grant income\",Descriptions!B76,0)","v":0},{"$f":"SUMPRODUCT((WorkingR!$A$5:$A$91='Receipts - Summary'!A495)*(WorkingR!$D$5:$E$91))","v":0},null,null,{"$f":"'Prior Year Comparative'!B490","v":0},null,null,null,null,null,null,null,null,null,null,null,null,null,null,null,null,null,null,null,null,null,0]
[{"$f":"IF(Descriptions!D77=\"Grant income\",Descriptions!B77,0)","v":0},{"$f":"SUMPRODUCT((WorkingR!$A$5:$A$91='Receipts - Summary'!A496)*(WorkingR!$D$5:$E$91))","v":0},null,null,{"$f":"'Prior Year Comparative'!B491","v":0},null,null,null,null,null,null,null,null,null,null,null,null,null,null,null,null,null,null,null,null,null,0]
[{"$f":"IF(Descriptions!D78=\"Grant income\",Descriptions!B78,0)","v":0},{"$f":"SUMPRODUCT((WorkingR!$A$5:$A$91='Receipts - Summary'!A497)*(WorkingR!$D$5:$E$91))","v":0},null,null,{"$f":"'Prior Year Comparative'!B492","v":0},null,null,null,null,null,null,null,null,null,null,null,null,null,null,null,null,null,null,null,null,null,0]
[{"$f":"IF(Descriptions!D79=\"Grant income\",Descriptions!B79,0)","v":0},{"$f":"SUMPRODUCT((WorkingR!$A$5:$A$91='Receipts - Summary'!A498)*(WorkingR!$D$5:$E$91))","v":0},null,null,{"$f":"'Prior Year Comparative'!B493","v":0},null,null,null,null,null,null,null,null,null,null,null,null,null,null,null,null,null,null,null,null,null,0]
[{"$f":"IF(Descriptions!D80=\"Grant income\",Descriptions!B80,0)","v":0},{"$f":"SUMPRODUCT((WorkingR!$A$5:$A$91='Receipts - Summary'!A499)*(WorkingR!$D$5:$E$91))","v":0},null,null,{"$f":"'Prior Year Comparative'!B494","v":0},null,null,null,null,null,null,null,null,null,null,null,null,null,null,null,null,null,null,null,null,null,0]
[{"$f":"IF(Descriptions!D81=\"Grant income\",Descriptions!B81,0)","v":0},{"$f":"SUMPRODUCT((WorkingR!$A$5:$A$91='Receipts - Summary'!A500)*(WorkingR!$D$5:$E$91))","v":0},null,null,{"$f":"'Prior Year Comparative'!B495","v":0},null,null,null,null,null,null,null,null,null,null,null,null,null,null,null,null,null,null,null,null,null,0]
[{"$f":"IF(Descriptions!D82=\"Grant income\",Descriptions!B82,0)","v":0},{"$f":"SUMPRODUCT((WorkingR!$A$5:$A$91='Receipts - Summary'!A501)*(WorkingR!$D$5:$E$91))","v":0},null,null,{"$f":"'Prior Year Comparative'!B496","v":0},null,null,null,null,null,null,null,null,null,null,null,null,null,null,null,null,null,null,null,null,null,0]
[{"$f":"IF(Descriptions!D83=\"Grant income\",Descriptions!B83,0)","v":0},{"$f":"SUMPRODUCT((WorkingR!$A$5:$A$91='Receipts - Summary'!A502)*(WorkingR!$D$5:$E$91))","v":0},null,null,{"$f":"'Prior Year Comparative'!B497","v":0},null,null,null,null,null,null,null,null,null,null,null,null,null,null,null,null,null,null,null,null,null,0]
[{"$f":"IF(Descriptions!D84=\"Grant income\",Descriptions!B84,0)","v":0},{"$f":"SUMPRODUCT((WorkingR!$A$5:$A$91='Receipts - Summary'!A503)*(WorkingR!$D$5:$E$91))","v":0},null,null,{"$f":"'Prior Year Comparative'!B498","v":0},null,null,null,null,null,null,null,null,null,null,null,null,null,null,null,null,null,null,null,null,null,0]
[{"$f":"IF(Descriptions!D85=\"Grant income\",Descriptions!B85,0)","v":0},{"$f":"SUMPRODUCT((WorkingR!$A$5:$A$91='Receipts - Summary'!A504)*(WorkingR!$D$5:$E$91))","v":0},null,null,{"$f":"'Prior Year Comparative'!B499","v":0},null,null,null,null,null,null,null,null,null,null,null,null,null,null,null,null,null,null,null,null,null,0]
[{"$f":"IF(Descriptions!D86=\"Grant income\",Descriptions!B86,0)","v":0},{"$f":"SUMPRODUCT((WorkingR!$A$5:$A$91='Receipts - Summary'!A505)*(WorkingR!$D$5:$E$91))","v":0},null,null,{"$f":"'Prior Year Comparative'!B500","v":0},null,null,null,null,null,null,null,null,null,null,null,null,null,null,null,null,null,null,null,null,null,0]
[{"$f":"IF(Descriptions!D87=\"Grant income\",Descriptions!B87,0)","v":0},{"$f":"SUMPRODUCT((WorkingR!$A$5:$A$91='Receipts - Summary'!A506)*(WorkingR!$D$5:$E$91))","v":0},null,null,{"$f":"'Prior Year Comparative'!B501","v":0},null,null,null,null,null,null,null,null,null,null,null,null,null,null,null,null,null,null,null,null,null,0]
[{"$f":"IF(Descriptions!D88=\"Grant income\",Descriptions!B88,0)","v":0},{"$f":"SUMPRODUCT((WorkingR!$A$5:$A$91='Receipts - Summary'!A507)*(WorkingR!$D$5:$E$91))","v":0},null,null,{"$f":"'Prior Year Comparative'!B502","v":0},null,null,null,null,null,null,null,null,null,null,null,null,null,null,null,null,null,null,null,null,null,0]
[{"$f":"IF(Descriptions!D89=\"Grant income\",Descriptions!B89,0)","v":0},{"$f":"SUMPRODUCT((WorkingR!$A$5:$A$91='Receipts - Summary'!A508)*(WorkingR!$D$5:$E$91))","v":0},null,null,{"$f":"'Prior Year Comparative'!B503","v":0},null,null,null,null,null,null,null,null,null,null,null,null,null,null,null,null,null,null,null,null,null,0]
[{"$f":"IF(Descriptions!D90=\"Grant income\",Descriptions!B90,0)","v":0},{"$f":"SUMPRODUCT((WorkingR!$A$5:$A$91='Receipts - Summary'!A509)*(WorkingR!$D$5:$E$91))","v":0},null,null,{"$f":"'Prior Year Comparative'!B504","v":0},null,null,null,null,null,null,null,null,null,null,null,null,null,null,null,null,null,null,null,null,null,0]
[{"$f":"IF(Descriptions!D91=\"Grant income\",Descriptions!B91,0)","v":0},{"$f":"SUMPRODUCT((WorkingR!$A$5:$A$91='Receipts - Summary'!A510)*(WorkingR!$D$5:$E$91))","v":0},null,null,{"$f":"'Prior Year Comparative'!B505","v":0},null,null,null,null,null,null,null,null,null,null,null,null,null,null,null,null,null,null,null,null,null,0]
[{"$f":"IF(Descriptions!D92=\"Grant income\",Descriptions!B92,0)","v":0},{"$f":"SUMPRODUCT((WorkingR!$A$5:$A$91='Receipts - Summary'!A511)*(WorkingR!$D$5:$E$91))","v":0},null,null,{"$f":"'Prior Year Comparative'!B506","v":0},null,null,null,null,null,null,null,null,null,null,null,null,null,null,null,null,null,null,null,null,null,{"$f":"IF(A511=0,0,1)","v":0}]
[null,null,{"$f":"SUM(B460:B511)","v":0},null,null,{"$f":"SUM(E460:E511)","v":0},null,null,null,null,null,null,null,null,null,null,null,null,null,null,null,null,null,null,null,null,{"$f":"AA459","v":0}]
["OTHER INCOME",null,null,null,null,null,null,null,null,null,null,null,null,null,null,null,null,null,null,null,null,null,null,null,null,null,{"$f":"SUM(AA514:AA565)","v":0}]
["Sale of Assets",{"$f":"SUMPRODUCT((WorkingR!$A$5:$A$91='Receipts - Summary'!A514)*(WorkingR!$D$5:$E$91))","v":0},null,null,{"$f":"'Prior Year Comparative'!B509","v":0},null,null,null,null,null,null,null,null,null,null,null,null,null,null,null,null,null,null,null,null,null,{"$f":"Descriptions!AA31","v":0}]
["Other Recurring Income",{"$f":"SUMPRODUCT((WorkingR!$A$5:$A$91='Receipts - Summary'!A515)*(WorkingR!$D$5:$E$91))","v":0},null,null,{"$f":"'Prior Year Comparative'!B510","v":0},null,null,null,null,null,null,null,null,null,null,null,null,null,null,null,null,null,null,null,null,null,{"$f":"Descriptions!AA28","v":0}]
[{"$f":"IF(Descriptions!D43=\"Other income\",Descriptions!B43,0)","v":0},{"$f":"SUMPRODUCT((WorkingR!$A$5:$A$91='Receipts - Summary'!A516)*(WorkingR!$D$5:$E$91))","v":0},null,null,{"$f":"'Prior Year Comparative'!B511","v":0},null,null,null,null,null,null,null,null,null,null,null,null,null,null,null,null,null,null,null,null,null,{"$f":"IF(A516=0,0,1)","v":0}]
[{"$f":"IF(Descriptions!D44=\"Other income\",Descriptions!B44,0)","v":0},{"$f":"SUMPRODUCT((WorkingR!$A$5:$A$91='Receipts - Summary'!A517)*(WorkingR!$D$5:$E$91))","v":0},null,null,{"$f":"'Prior Year Comparative'!B512","v":0},null,null,null,null,null,null,null,null,null,null,null,null,null,null,null,null,null,null,null,null,null,{"$f":"IF(A517=0,0,1)","v":0}]
[{"$f":"IF(Descriptions!D45=\"Other income\",Descriptions!B45,0)","v":0},{"$f":"SUMPRODUCT((WorkingR!$A$5:$A$91='Receipts - Summary'!A518)*(WorkingR!$D$5:$E$91))","v":0},null,null,{"$f":"'Prior Year Comparative'!B513","v":0},null,null,null,null,null,null,null,null,null,null,null,null,null,null,null,null,null,null,null,null,null,0]
[{"$f":"IF(Descriptions!D46=\"Other income\",Descriptions!B46,0)","v":0},{"$f":"SUMPRODUCT((WorkingR!$A$5:$A$91='Receipts - Summary'!A519)*(WorkingR!$D$5:$E$91))","v":0},null,null,{"$f":"'Prior Year Comparative'!B514","v":0},null,null,null,null,null,null,null,null,null,null,null,null,null,null,null,null,null,null,null,null,null,0]
[{"$f":"IF(Descriptions!D47=\"Other income\",Descriptions!B47,0)","v":0},{"$f":"SUMPRODUCT((WorkingR!$A$5:$A$91='Receipts - Summary'!A520)*(WorkingR!$D$5:$E$91))","v":0},null,null,{"$f":"'Prior Year Comparative'!B515","v":0},null,null,null,null,null,null,null,null,null,null,null,null,null,null,null,null,null,null,null,null,null,0]
[{"$f":"IF(Descriptions!D48=\"Other income\",Descriptions!B48,0)","v":0},{"$f":"SUMPRODUCT((WorkingR!$A$5:$A$91='Receipts - Summary'!A521)*(WorkingR!$D$5:$E$91))","v":0},null,null,{"$f":"'Prior Year Comparative'!B516","v":0},null,null,null,null,null,null,null,null,null,null,null,null,null,null,null,null,null,null,null,null,null,0]
[{"$f":"IF(Descriptions!D49=\"Other income\",Descriptions!B49,0)","v":0},{"$f":"SUMPRODUCT((WorkingR!$A$5:$A$91='Receipts - Summary'!A522)*(WorkingR!$D$5:$E$91))","v":0},null,null,{"$f":"'Prior Year Comparative'!B517","v":0},null,null,null,null,null,null,null,null,null,null,null,null,null,null,null,null,null,null,null,null,null,0]
[{"$f":"IF(Descriptions!D50=\"Other income\",Descriptions!B50,0)","v":0},{"$f":"SUMPRODUCT((WorkingR!$A$5:$A$91='Receipts - Summary'!A523)*(WorkingR!$D$5:$E$91))","v":0},null,null,{"$f":"'Prior Year Comparative'!B518","v":0},null,null,null,null,null,null,null,null,null,null,null,null,null,null,null,null,null,null,null,null,null,0]
[{"$f":"IF(Descriptions!D51=\"Other income\",Descriptions!B51,0)","v":0},{"$f":"SUMPRODUCT((WorkingR!$A$5:$A$91='Receipts - Summary'!A524)*(WorkingR!$D$5:$E$91))","v":0},null,null,{"$f":"'Prior Year Comparative'!B519","v":0},null,null,null,null,null,null,null,null,null,null,null,null,null,null,null,null,null,null,null,null,null,0]
[{"$f":"IF(Descriptions!D52=\"Other income\",Descriptions!B52,0)","v":0},{"$f":"SUMPRODUCT((WorkingR!$A$5:$A$91='Receipts - Summary'!A525)*(WorkingR!$D$5:$E$91))","v":0},null,null,{"$f":"'Prior Year Comparative'!B520","v":0},null,null,null,null,null,null,null,null,null,null,null,null,null,null,null,null,null,null,null,null,null,0]
[{"$f":"IF(Descriptions!D53=\"Other income\",Descriptions!B53,0)","v":0},{"$f":"SUMPRODUCT((WorkingR!$A$5:$A$91='Receipts - Summary'!A526)*(WorkingR!$D$5:$E$91))","v":0},null,null,{"$f":"'Prior Year Comparative'!B521","v":0},null,null,null,null,null,null,null,null,null,null,null,null,null,null,null,null,null,null,null,null,null,0]
[{"$f":"IF(Descriptions!D54=\"Other income\",Descriptions!B54,0)","v":0},{"$f":"SUMPRODUCT((WorkingR!$A$5:$A$91='Receipts - Summary'!A527)*(WorkingR!$D$5:$E$91))","v":0},null,null,{"$f":"'Prior Year Comparative'!B522","v":0},null,null,null,null,null,null,null,null,null,null,null,null,null,null,null,null,null,null,null,null,null,0]
[{"$f":"IF(Descriptions!D55=\"Other income\",Descriptions!B55,0)","v":0},{"$f":"SUMPRODUCT((WorkingR!$A$5:$A$91='Receipts - Summary'!A528)*(WorkingR!$D$5:$E$91))","v":0},null,null,{"$f":"'Prior Year Comparative'!B523","v":0},null,null,null,null,null,null,null,null,null,null,null,null,null,null,null,null,null,null,null,null,null,0]
[{"$f":"IF(Descriptions!D56=\"Other income\",Descriptions!B56,0)","v":0},{"$f":"SUMPRODUCT((WorkingR!$A$5:$A$91='Receipts - Summary'!A529)*(WorkingR!$D$5:$E$91))","v":0},null,null,{"$f":"'Prior Year Comparative'!B524","v":0},null,null,null,null,null,null,null,null,null,null,null,null,null,null,null,null,null,null,null,null,null,0]
[{"$f":"IF(Descriptions!D57=\"Other income\",Descriptions!B57,0)","v":0},{"$f":"SUMPRODUCT((WorkingR!$A$5:$A$91='Receipts - Summary'!A530)*(WorkingR!$D$5:$E$91))","v":0},null,null,{"$f":"'Prior Year Comparative'!B525","v":0},null,null,null,null,null,null,null,null,null,null,null,null,null,null,null,null,null,null,null,null,null,0]
[{"$f":"IF(Descriptions!D58=\"Other income\",Descriptions!B58,0)","v":0},{"$f":"SUMPRODUCT((WorkingR!$A$5:$A$91='Receipts - Summary'!A531)*(WorkingR!$D$5:$E$91))","v":0},null,null,{"$f":"'Prior Year Comparative'!B526","v":0},null,null,null,null,null,null,null,null,null,null,null,null,null,null,null,null,null,null,null,null,null,0]
[{"$f":"IF(Descriptions!D59=\"Other income\",Descriptions!B59,0)","v":0},{"$f":"SUMPRODUCT((WorkingR!$A$5:$A$91='Receipts - Summary'!A532)*(WorkingR!$D$5:$E$91))","v":0},null,null,{"$f":"'Prior Year Comparative'!B527","v":0},null,null,null,null,null,null,null,null,null,null,null,null,null,null,null,null,null,null,null,null,null,0]
[{"$f":"IF(Descriptions!D60=\"Other income\",Descriptions!B60,0)","v":0},{"$f":"SUMPRODUCT((WorkingR!$A$5:$A$91='Receipts - Summary'!A533)*(WorkingR!$D$5:$E$91))","v":0},null,null,{"$f":"'Prior Year Comparative'!B528","v":0},null,null,null,null,null,null,null,null,null,null,null,null,null,null,null,null,null,null,null,null,null,0]
[{"$f":"IF(Descriptions!D61=\"Other income\",Descriptions!B61,0)","v":0},{"$f":"SUMPRODUCT((WorkingR!$A$5:$A$91='Receipts - Summary'!A534)*(WorkingR!$D$5:$E$91))","v":0},null,null,{"$f":"'Prior Year Comparative'!B529","v":0},null,null,null,null,null,null,null,null,null,null,null,null,null,null,null,null,null,null,null,null,null,0]
[{"$f":"IF(Descriptions!D62=\"Other income\",Descriptions!B62,0)","v":0},{"$f":"SUMPRODUCT((WorkingR!$A$5:$A$91='Receipts - Summary'!A535)*(WorkingR!$D$5:$E$91))","v":0},null,null,{"$f":"'Prior Year Comparative'!B530","v":0},null,null,null,null,null,null,null,null,null,null,null,null,null,null,null,null,null,null,null,null,null,0]
[{"$f":"IF(Descriptions!D63=\"Other income\",Descriptions!B63,0)","v":0},{"$f":"SUMPRODUCT((WorkingR!$A$5:$A$91='Receipts - Summary'!A536)*(WorkingR!$D$5:$E$91))","v":0},null,null,{"$f":"'Prior Year Comparative'!B531","v":0},null,null,null,null,null,null,null,null,null,null,null,null,null,null,null,null,null,null,null,null,null,0]
[{"$f":"IF(Descriptions!D64=\"Other income\",Descriptions!B64,0)","v":0},{"$f":"SUMPRODUCT((WorkingR!$A$5:$A$91='Receipts - Summary'!A537)*(WorkingR!$D$5:$E$91))","v":0},null,null,{"$f":"'Prior Year Comparative'!B532","v":0},null,null,null,null,null,null,null,null,null,null,null,null,null,null,null,null,null,null,null,null,null,0]
[{"$f":"IF(Descriptions!D65=\"Other income\",Descriptions!B65,0)","v":0},{"$f":"SUMPRODUCT((WorkingR!$A$5:$A$91='Receipts - Summary'!A538)*(WorkingR!$D$5:$E$91))","v":0},null,null,{"$f":"'Prior Year Comparative'!B533","v":0},null,null,null,null,null,null,null,null,null,null,null,null,null,null,null,null,null,null,null,null,null,0]
[{"$f":"IF(Descriptions!D66=\"Other income\",Descriptions!B66,0)","v":0},{"$f":"SUMPRODUCT((WorkingR!$A$5:$A$91='Receipts - Summary'!A539)*(WorkingR!$D$5:$E$91))","v":0},null,null,{"$f":"'Prior Year Comparative'!B534","v":0},null,null,null,null,null,null,null,null,null,null,null,null,null,null,null,null,null,null,null,null,null,0]
[{"$f":"IF(Descriptions!D67=\"Other income\",Descriptions!B67,0)","v":0},{"$f":"SUMPRODUCT((WorkingR!$A$5:$A$91='Receipts - Summary'!A540)*(WorkingR!$D$5:$E$91))","v":0},null,null,{"$f":"'Prior Year Comparative'!B535","v":0},null,null,null,null,null,null,null,null,null,null,null,null,null,null,null,null,null,null,null,null,null,0]
[{"$f":"IF(Descriptions!D68=\"Other income\",Descriptions!B68,0)","v":0},{"$f":"SUMPRODUCT((WorkingR!$A$5:$A$91='Receipts - Summary'!A541)*(WorkingR!$D$5:$E$91))","v":0},null,null,{"$f":"'Prior Year Comparative'!B536","v":0},null,null,null,null,null,null,null,null,null,null,null,null,null,null,null,null,null,null,null,null,null,0]
[{"$f":"IF(Descriptions!D69=\"Other income\",Descriptions!B69,0)","v":0},{"$f":"SUMPRODUCT((WorkingR!$A$5:$A$91='Receipts - Summary'!A542)*(WorkingR!$D$5:$E$91))","v":0},null,null,{"$f":"'Prior Year Comparative'!B537","v":0},null,null,null,null,null,null,null,null,null,null,null,null,null,null,null,null,null,null,null,null,null,0]
[{"$f":"IF(Descriptions!D70=\"Other income\",Descriptions!B70,0)","v":0},{"$f":"SUMPRODUCT((WorkingR!$A$5:$A$91='Receipts - Summary'!A543)*(WorkingR!$D$5:$E$91))","v":0},null,null,{"$f":"'Prior Year Comparative'!B538","v":0},null,null,null,null,null,null,null,null,null,null,null,null,null,null,null,null,null,null,null,null,null,0]
[{"$f":"IF(Descriptions!D71=\"Other income\",Descriptions!B71,0)","v":0},{"$f":"SUMPRODUCT((WorkingR!$A$5:$A$91='Receipts - Summary'!A544)*(WorkingR!$D$5:$E$91))","v":0},null,null,{"$f":"'Prior Year Comparative'!B539","v":0},null,null,null,null,null,null,null,null,null,null,null,null,null,null,null,null,null,null,null,null,null,0]
[{"$f":"IF(Descriptions!D72=\"Other income\",Descriptions!B72,0)","v":0},{"$f":"SUMPRODUCT((WorkingR!$A$5:$A$91='Receipts - Summary'!A545)*(WorkingR!$D$5:$E$91))","v":0},null,null,{"$f":"'Prior Year Comparative'!B540","v":0},null,null,null,null,null,null,null,null,null,null,null,null,null,null,null,null,null,null,null,null,null,0]
[{"$f":"IF(Descriptions!D73=\"Other income\",Descriptions!B73,0)","v":0},{"$f":"SUMPRODUCT((WorkingR!$A$5:$A$91='Receipts - Summary'!A546)*(WorkingR!$D$5:$E$91))","v":0},null,null,{"$f":"'Prior Year Comparative'!B541","v":0},null,null,null,null,null,null,null,null,null,null,null,null,null,null,null,null,null,null,null,null,null,0]
[{"$f":"IF(Descriptions!D74=\"Other income\",Descriptions!B74,0)","v":0},{"$f":"SUMPRODUCT((WorkingR!$A$5:$A$91='Receipts - Summary'!A547)*(WorkingR!$D$5:$E$91))","v":0},null,null,{"$f":"'Prior Year Comparative'!B542","v":0},null,null,null,null,null,null,null,null,null,null,null,null,null,null,null,null,null,null,null,null,null,0]
[{"$f":"IF(Descriptions!D75=\"Other income\",Descriptions!B75,0)","v":0},{"$f":"SUMPRODUCT((WorkingR!$A$5:$A$91='Receipts - Summary'!A548)*(WorkingR!$D$5:$E$91))","v":0},null,null,{"$f":"'Prior Year Comparative'!B543","v":0},null,null,null,null,null,null,null,null,null,null,null,null,null,null,null,null,null,null,null,null,null,0]
[{"$f":"IF(Descriptions!D76=\"Other income\",Descriptions!B76,0)","v":0},{"$f":"SUMPRODUCT((WorkingR!$A$5:$A$91='Receipts - Summary'!A549)*(WorkingR!$D$5:$E$91))","v":0},null,null,{"$f":"'Prior Year Comparative'!B544","v":0},null,null,null,null,null,null,null,null,null,null,null,null,null,null,null,null,null,null,null,null,null,0]
[{"$f":"IF(Descriptions!D77=\"Other income\",Descriptions!B77,0)","v":0},{"$f":"SUMPRODUCT((WorkingR!$A$5:$A$91='Receipts - Summary'!A550)*(WorkingR!$D$5:$E$91))","v":0},null,null,{"$f":"'Prior Year Comparative'!B545","v":0},null,null,null,null,null,null,null,null,null,null,null,null,null,null,null,null,null,null,null,null,null,0]
[{"$f":"IF(Descriptions!D78=\"Other income\",Descriptions!B78,0)","v":0},{"$f":"SUMPRODUCT((WorkingR!$A$5:$A$91='Receipts - Summary'!A551)*(WorkingR!$D$5:$E$91))","v":0},null,null,{"$f":"'Prior Year Comparative'!B546","v":0},null,null,null,null,null,null,null,null,null,null,null,null,null,null,null,null,null,null,null,null,null,0]
[{"$f":"IF(Descriptions!D79=\"Other income\",Descriptions!B79,0)","v":0},{"$f":"SUMPRODUCT((WorkingR!$A$5:$A$91='Receipts - Summary'!A552)*(WorkingR!$D$5:$E$91))","v":0},null,null,{"$f":"'Prior Year Comparative'!B547","v":0},null,null,null,null,null,null,null,null,null,null,null,null,null,null,null,null,null,null,null,null,null,0]
[{"$f":"IF(Descriptions!D80=\"Other income\",Descriptions!B80,0)","v":0},{"$f":"SUMPRODUCT((WorkingR!$A$5:$A$91='Receipts - Summary'!A553)*(WorkingR!$D$5:$E$91))","v":0},null,null,{"$f":"'Prior Year Comparative'!B548","v":0},null,null,null,null,null,null,null,null,null,null,null,null,null,null,null,null,null,null,null,null,null,0]
[{"$f":"IF(Descriptions!D81=\"Other income\",Descriptions!B81,0)","v":0},{"$f":"SUMPRODUCT((WorkingR!$A$5:$A$91='Receipts - Summary'!A554)*(WorkingR!$D$5:$E$91))","v":0},null,null,{"$f":"'Prior Year Comparative'!B549","v":0},null,null,null,null,null,null,null,null,null,null,null,null,null,null,null,null,null,null,null,null,null,0]
[{"$f":"IF(Descriptions!D82=\"Other income\",Descriptions!B82,0)","v":0},{"$f":"SUMPRODUCT((WorkingR!$A$5:$A$91='Receipts - Summary'!A555)*(WorkingR!$D$5:$E$91))","v":0},null,null,{"$f":"'Prior Year Comparative'!B550","v":0},null,null,null,null,null,null,null,null,null,null,null,null,null,null,null,null,null,null,null,null,null,0]
[{"$f":"IF(Descriptions!D83=\"Other income\",Descriptions!B83,0)","v":0},{"$f":"SUMPRODUCT((WorkingR!$A$5:$A$91='Receipts - Summary'!A556)*(WorkingR!$D$5:$E$91))","v":0},null,null,{"$f":"'Prior Year Comparative'!B551","v":0},null,null,null,null,null,null,null,null,null,null,null,null,null,null,null,null,null,null,null,null,null,0]
[{"$f":"IF(Descriptions!D84=\"Other income\",Descriptions!B84,0)","v":0},{"$f":"SUMPRODUCT((WorkingR!$A$5:$A$91='Receipts - Summary'!A557)*(WorkingR!$D$5:$E$91))","v":0},null,null,{"$f":"'Prior Year Comparative'!B552","v":0},null,null,null,null,null,null,null,null,null,null,null,null,null,null,null,null,null,null,null,null,null,0]
[{"$f":"IF(Descriptions!D85=\"Other income\",Descriptions!B85,0)","v":0},{"$f":"SUMPRODUCT((WorkingR!$A$5:$A$91='Receipts - Summary'!A558)*(WorkingR!$D$5:$E$91))","v":0},null,null,{"$f":"'Prior Year Comparative'!B553","v":0},null,null,null,null,null,null,null,null,null,null,null,null,null,null,null,null,null,null,null,null,null,0]
[{"$f":"IF(Descriptions!D86=\"Other income\",Descriptions!B86,0)","v":0},{"$f":"SUMPRODUCT((WorkingR!$A$5:$A$91='Receipts - Summary'!A559)*(WorkingR!$D$5:$E$91))","v":0},null,null,{"$f":"'Prior Year Comparative'!B554","v":0},null,null,null,null,null,null,null,null,null,null,null,null,null,null,null,null,null,null,null,null,null,0]
[{"$f":"IF(Descriptions!D87=\"Other income\",Descriptions!B87,0)","v":0},{"$f":"SUMPRODUCT((WorkingR!$A$5:$A$91='Receipts - Summary'!A560)*(WorkingR!$D$5:$E$91))","v":0},null,null,{"$f":"'Prior Year Comparative'!B555","v":0},null,null,null,null,null,null,null,null,null,null,null,null,null,null,null,null,null,null,null,null,null,0]
[{"$f":"IF(Descriptions!D88=\"Other income\",Descriptions!B88,0)","v":0},{"$f":"SUMPRODUCT((WorkingR!$A$5:$A$91='Receipts - Summary'!A561)*(WorkingR!$D$5:$E$91))","v":0},null,null,{"$f":"'Prior Year Comparative'!B556","v":0},null,null,null,null,null,null,null,null,null,null,null,null,null,null,null,null,null,null,null,null,null,0]
[{"$f":"IF(Descriptions!D89=\"Other income\",Descriptions!B89,0)","v":0},{"$f":"SUMPRODUCT((WorkingR!$A$5:$A$91='Receipts - Summary'!A562)*(WorkingR!$D$5:$E$91))","v":0},null,null,{"$f":"'Prior Year Comparative'!B557","v":0},null,null,null,null,null,null,null,null,null,null,null,null,null,null,null,null,null,null,null,null,null,0]
[{"$f":"IF(Descriptions!D90=\"Other income\",Descriptions!B90,0)","v":0},{"$f":"SUMPRODUCT((WorkingR!$A$5:$A$91='Receipts - Summary'!A563)*(WorkingR!$D$5:$E$91))","v":0},null,null,{"$f":"'Prior Year Comparative'!B558","v":0},null,null,null,null,null,null,null,null,null,null,null,null,null,null,null,null,null,null,null,null,null,0]
[{"$f":"IF(Descriptions!D91=\"Other income\",Descriptions!B91,0)","v":0},{"$f":"SUMPRODUCT((WorkingR!$A$5:$A$91='Receipts - Summary'!A564)*(WorkingR!$D$5:$E$91))","v":0},null,null,{"$f":"'Prior Year Comparative'!B559","v":0},null,null,null,null,null,null,null,null,null,null,null,null,null,null,null,null,null,null,null,null,null,0]
[{"$f":"IF(Descriptions!D92=\"Other income\",Descriptions!B92,0)","v":0},{"$f":"SUMPRODUCT((WorkingR!$A$5:$A$91='Receipts - Summary'!A565)*(WorkingR!$D$5:$E$91))","v":0},null,null,{"$f":"'Prior Year Comparative'!B560","v":0},null,null,null,null,null,null,null,null,null,null,null,null,null,null,null,null,null,null,null,null,null,0]
[null,null,{"$f":"SUM(B514:B565)","v":0},null,null,{"$f":"SUM(E514:E565)","v":0},null,null,null,null,null,null,null,null,null,null,null,null,null,null,null,null,null,null,null,null,{"$f":"AA513","v":0}]
[null,null,null,null,null,null,null,null,null,null,null,null,null,null,null,null,null,null,null,null,null,null,null,null,null,null,1]
["TOTAL RECEIPTS",null,{"$f":"SUM(C69:C566)","v":0},null,null,{"$f":"SUM(F69:F566)","v":0},null,null,null,null,null,null,null,null,null,null,null,null,null,null,null,null,null,null,null,null,1]

{"sheet":"Payments - Summary","index":18,"n_rows":461,"n_cols":27,"rows_kept":461,"cut":false,"hidden":false,"merged":[[1,0,1,5],[3,0,3,5],[5,0,5,5]]}
[null,null,null,null,null,null,null,null,null,null,null,null,null,null,null,null,null,null,null,null,null,null,null,null,null,null,1]
[{"$f":"VLOOKUP('Name and Parish'!D13,Index!B:C,1,FALSE)","v":{"$error":"#N/A"}},null,null,null,null,null,null,null,null,null,null,null,null,null,null,null,null,null,null,null,null,null,null,null,null,null,1]
[null,null,null,null,null,null,null,null,null,null,null,null,null,null,null,null,null,null,null,null,null,null,null,null,null,null,1]
["General Account",null,null,null,null,null,null,null,null,null,null,null,null,null,null,null,null,null,null,null,null,null,null,null,null,null,1]
[null,null,null,null,null,null,null,null,null,null,null,null,null,null,null,null,null,null,null,null,null,null,null,null,null,null,1]
[{"$f":"VLOOKUP('Name and Parish'!D15,Index!A:H,2,FALSE)","v":"Financial Statement for the Year Ended 31 December 2023"},null,null,null,null,null,null,null,null,null,null,null,null,null,null,null,null,null,null,null,null,null,null,null,null,null,1]
[null,null,null,null,null,null,null,null,null,null,null,null,null,null,null,null,null,null,null,null,null,null,null,null,null,null,1]
["PAYMENTS",null,{"$f":"'Name and Parish'!D15","v":2023},null,null,{"$f":"SUM(C8-1)","v":2022},null,null,null,null,null,null,null,null,null,null,null,null,null,null,null,null,null,null,null,null,1]
[null,"£","£",null,"£","£",null,null,null,null,null,null,null,null,null,null,null,null,null,null,null,null,null,null,null,null,1]
["PARISH SHARE",null,null,null,null,null,null,null,null,null,null,null,null,null,null,null,null,null,null,null,null,null,null,null,null,null,1]
["The agreed Parish Share ask",{"$f":"'Name and Parish'!D17","v":0},null,null,null,null,null,null,null,null,null,null,null,null,null,null,null,null,null,null,null,null,null,null,null,null,1]
["Parish Share Paid",{"$f":"SUMPRODUCT((WorkingP!$A$5:$A$83='Payments - Summary'!A12)*(WorkingP!$D$5:$E$83))","v":0},null,null,{"$f":"'Prior Year Comparative'!B569","v":0},null,null,null,null,null,null,null,null,null,null,null,null,null,null,null,null,null,null,null,null,null,1]
[{"$f":"IF(Descriptions!K35=\"Parish Share\",Descriptions!I35,0)","v":0},{"$f":"SUMPRODUCT((WorkingP!$A$5:$A$83='Payments - Summary'!A13)*(WorkingP!$D$5:$E$83))","v":0},null,null,{"$f":"'Prior Year Comparative'!B570","v":0},null,null,null,null,null,null,null,null,null,null,null,null,null,null,null,null,null,null,null,null,null,{"$f":"IF(A13=0,0,1)","v":0}]
[{"$f":"IF(Descriptions!K36=\"Parish Share\",Descriptions!I36,0)","v":0},{"$f":"SUMPRODUCT((WorkingP!$A$5:$A$83='Payments - Summary'!A14)*(WorkingP!$D$5:$E$83))","v":0},null,null,{"$f":"'Prior Year Comparative'!B571","v":0},null,null,null,null,null,null,null,null,null,null,null,null,null,null,null,null,null,null,null,null,null,{"$f":"IF(A14=0,0,1)","v":0}]
[{"$f":"IF(Descriptions!K37=\"Parish Share\",Descriptions!I37,0)","v":0},{"$f":"SUMPRODUCT((WorkingP!$A$5:$A$83='Payments - Summary'!A15)*(WorkingP!$D$5:$E$83))","v":0},null,null,{"$f":"'Prior Year Comparative'!B572","v":0},null,null,null,null,null,null,null,null,null,null,null,null,null,null,null,null,null,null,null,null,null,0]
[{"$f":"IF(Descriptions!K38=\"Parish Share\",Descriptions!I38,0)","v":0},{"$f":"SUMPRODUCT((WorkingP!$A$5:$A$83='Payments - Summary'!A16)*(WorkingP!$D$5:$E$83))","v":0},null,null,{"$f":"'Prior Year Comparative'!B573","v":0},null,null,null,null,null,null,null,null,null,null,null,null,null,null,null,null,null,null,null,null,null,0]
[{"$f":"IF(Descriptions!K39=\"Parish Share\",Descriptions!I39,0)","v":0},{"$f":"SUMPRODUCT((WorkingP!$A$5:$A$83='Payments - Summary'!A17)*(WorkingP!$D$5:$E$83))","v":0},null,null,{"$f":"'Prior Year Comparative'!B574","v":0},null,null,null,null,null,null,null,null,null,null,null,null,null,null,null,null,null,null,null,null,null,0]
[{"$f":"IF(Descriptions!K40=\"Parish Share\",Descriptions!I40,0)","v":0},{"$f":"SUMPRODUCT((WorkingP!$A$5:$A$83='Payments - Summary'!A18)*(WorkingP!$D$5:$E$83))","v":0},null,null,{"$f":"'Prior Year Comparative'!B575","v":0},null,null,null,null,null,null,null,null,null,null,null,null,null,null,null,null,null,null,null,null,null,0]
[{"$f":"IF(Descriptions!K41=\"Parish Share\",Descriptions!I41,0)","v":0},{"$f":"SUMPRODUCT((WorkingP!$A$5:$A$83='Payments - Summary'!A19)*(WorkingP!$D$5:$E$83))","v":0},null,null,{"$f":"'Prior Year Comparative'!B576","v":0},null,null,null,null,null,null,null,null,null,null,null,null,null,null,null,null,null,null,null,null,null,0]
[{"$f":"IF(Descriptions!K42=\"Parish Share\",Descriptions!I42,0)","v":0},{"$f":"SUMPRODUCT((WorkingP!$A$5:$A$83='Payments - Summary'!A20)*(WorkingP!$D$5:$E$83))","v":0},null,null,{"$f":"'Prior Year Comparative'!B577","v":0},null,null,null,null,null,null,null,null,null,null,null,null,null,null,null,null,null,null,null,null,null,0]
[{"$f":"IF(Descriptions!K43=\"Parish Share\",Descriptions!I43,0)","v":0},{"$f":"SUMPRODUCT((WorkingP!$A$5:$A$83='Payments - Summary'!A21)*(WorkingP!$D$5:$E$83))","v":0},null,null,{"$f":"'Prior Year Comparative'!B578","v":0},null,null,null,null,null,null,null,null,null,null,null,null,null,null,null,null,null,null,null,null,null,0]
[{"$f":"IF(Descriptions!K44=\"Parish Share\",Descriptions!I44,0)","v":0},{"$f":"SUMPRODUCT((WorkingP!$A$5:$A$83='Payments - Summary'!A22)*(WorkingP!$D$5:$E$83))","v":0},null,null,{"$f":"'Prior Year Comparative'!B579","v":0},null,null,null,null,null,null,null,null,null,null,null,null,null,null,null,null,null,null,null,null,null,0]
[{"$f":"IF(Descriptions!K45=\"Parish Share\",Descriptions!I45,0)","v":0},{"$f":"SUMPRODUCT((WorkingP!$A$5:$A$83='Payments - Summary'!A23)*(WorkingP!$D$5:$E$83))","v":0},null,null,{"$f":"'Prior Year Comparative'!B580","v":0},null,null,null,null,null,null,null,null,null,null,null,null,null,null,null,null,null,null,null,null,null,0]
[{"$f":"IF(Descriptions!K46=\"Parish Share\",Descriptions!I46,0)","v":0},{"$f":"SUMPRODUCT((WorkingP!$A$5:$A$83='Payments - Summary'!A24)*(WorkingP!$D$5:$E$83))","v":0},null,null,{"$f":"'Prior Year Comparative'!B581","v":0},null,null,null,null,null,null,null,null,null,null,null,null,null,null,null,null,null,null,null,null,null,0]
[{"$f":"IF(Descriptions!K47=\"Parish Share\",Descriptions!I47,0)","v":0},{"$f":"SUMPRODUCT((WorkingP!$A$5:$A$83='Payments - Summary'!A25)*(WorkingP!$D$5:$E$83))","v":0},null,null,{"$f":"'Prior Year Comparative'!B582","v":0},null,null,null,null,null,null,null,null,null,null,null,null,null,null,null,null,null,null,null,null,null,0]
[{"$f":"IF(Descriptions!K48=\"Parish Share\",Descriptions!I48,0)","v":0},{"$f":"SUMPRODUCT((WorkingP!$A$5:$A$83='Payments - Summary'!A26)*(WorkingP!$D$5:$E$83))","v":0},null,null,{"$f":"'Prior Year Comparative'!B583","v":0},null,null,null,null,null,null,null,null,null,null,null,null,null,null,null,null,null,null,null,null,null,0]
[{"$f":"IF(Descriptions!K49=\"Parish Share\",Descriptions!I49,0)","v":0},{"$f":"SUMPRODUCT((WorkingP!$A$5:$A$83='Payments - Summary'!A27)*(WorkingP!$D$5:$E$83))","v":0},null,null,{"$f":"'Prior Year Comparative'!B584","v":0},null,null,null,null,null,null,null,null,null,null,null,null,null,null,null,null,null,null,null,null,null,0]
[{"$f":"IF(Descriptions!K50=\"Parish Share\",Descriptions!I50,0)","v":0},{"$f":"SUMPRODUCT((WorkingP!$A$5:$A$83='Payments - Summary'!A28)*(WorkingP!$D$5:$E$83))","v":0},null,null,{"$f":"'Prior Year Comparative'!B585","v":0},null,null,null,null,null,null,null,null,null,null,null,null,null,null,null,null,null,null,null,null,null,0]
[{"$f":"IF(Descriptions!K51=\"Parish Share\",Descriptions!I51,0)","v":0},{"$f":"SUMPRODUCT((WorkingP!$A$5:$A$83='Payments - Summary'!A29)*(WorkingP!$D$5:$E$83))","v":0},null,null,{"$f":"'Prior Year Comparative'!B586","v":0},null,null,null,null,null,null,null,null,null,null,null,null,null,null,null,null,null,null,null,null,null,0]
[{"$f":"IF(Descriptions!K52=\"Parish Share\",Descriptions!I52,0)","v":0},{"$f":"SUMPRODUCT((WorkingP!$A$5:$A$83='Payments - Summary'!A30)*(WorkingP!$D$5:$E$83))","v":0},null,null,{"$f":"'Prior Year Comparative'!B587","v":0},null,null,null,null,null,null,null,null,null,null,null,null,null,null,null,null,null,null,null,null,null,0]
[{"$f":"IF(Descriptions!K53=\"Parish Share\",Descriptions!I53,0)","v":0},{"$f":"SUMPRODUCT((WorkingP!$A$5:$A$83='Payments - Summary'!A31)*(WorkingP!$D$5:$E$83))","v":0},null,null,{"$f":"'Prior Year Comparative'!B588","v":0},null,null,null,null,null,null,null,null,null,null,null,null,null,null,null,null,null,null,null,null,null,0]
[{"$f":"IF(Descriptions!K54=\"Parish Share\",Descriptions!I54,0)","v":0},{"$f":"SUMPRODUCT((WorkingP!$A$5:$A$83='Payments - Summary'!A32)*(WorkingP!$D$5:$E$83))","v":0},null,null,{"$f":"'Prior Year Comparative'!B589","v":0},null,null,null,null,null,null,null,null,null,null,null,null,null,null,null,null,null,null,null,null,null,0]
[{"$f":"IF(Descriptions!K55=\"Parish Share\",Descriptions!I55,0)","v":0},{"$f":"SUMPRODUCT((WorkingP!$A$5:$A$83='Payments - Summary'!A33)*(WorkingP!$D$5:$E$83))","v":0},null,null,{"$f":"'Prior Year Comparative'!B590","v":0},null,null,null,null,null,null,null,null,null,null,null,null,null,null,null,null,null,null,null,null,null,0]
[{"$f":"IF(Descriptions!K56=\"Parish Share\",Descriptions!I56,0)","v":0},{"$f":"SUMPRODUCT((WorkingP!$A$5:$A$83='Payments - Summary'!A34)*(WorkingP!$D$5:$E$83))","v":0},null,null,{"$f":"'Prior Year Comparative'!B591","v":0},null,null,null,null,null,null,null,null,null,null,null,null,null,null,null,null,null,null,null,null,null,0]
[{"$f":"IF(Descriptions!K57=\"Parish Share\",Descriptions!I57,0)","v":0},{"$f":"SUMPRODUCT((WorkingP!$A$5:$A$83='Payments - Summary'!A35)*(WorkingP!$D$5:$E$83))","v":0},null,null,{"$f":"'Prior Year Comparative'!B592","v":0},null,null,null,null,null,null,null,null,null,null,null,null,null,null,null,null,null,null,null,null,null,0]
[{"$f":"IF(Descriptions!K58=\"Parish Share\",Descriptions!I58,0)","v":0},{"$f":"SUMPRODUCT((WorkingP!$A$5:$A$83='Payments - Summary'!A36)*(WorkingP!$D$5:$E$83))","v":0},null,null,{"$f":"'Prior Year Comparative'!B593","v":0},null,null,null,null,null,null,null,null,null,null,null,null,null,null,null,null,null,null,null,null,null,0]
[{"$f":"IF(Descriptions!K59=\"Parish Share\",Descriptions!I59,0)","v":0},{"$f":"SUMPRODUCT((WorkingP!$A$5:$A$83='Payments - Summary'!A37)*(WorkingP!$D$5:$E$83))","v":0},null,null,{"$f":"'Prior Year Comparative'!B594","v":0},null,null,null,null,null,null,null,null,null,null,null,null,null,null,null,null,null,null,null,null,null,0]
[{"$f":"IF(Descriptions!K60=\"Parish Share\",Descriptions!I60,0)","v":0},{"$f":"SUMPRODUCT((WorkingP!$A$5:$A$83='Payments - Summary'!A38)*(WorkingP!$D$5:$E$83))","v":0},null,null,{"$f":"'Prior Year Comparative'!B595","v":0},null,null,null,null,null,null,null,null,null,null,null,null,null,null,null,null,null,null,null,null,null,0]
[{"$f":"IF(Descriptions!K61=\"Parish Share\",Descriptions!I61,0)","v":0},{"$f":"SUMPRODUCT((WorkingP!$A$5:$A$83='Payments - Summary'!A39)*(WorkingP!$D$5:$E$83))","v":0},null,null,{"$f":"'Prior Year Comparative'!B596","v":0},null,null,null,null,null,null,null,null,null,null,null,null,null,null,null,null,null,null,null,null,null,0]
[{"$f":"IF(Descriptions!K62=\"Parish Share\",Descriptions!I62,0)","v":0},{"$f":"SUMPRODUCT((WorkingP!$A$5:$A$83='Payments - Summary'!A40)*(WorkingP!$D$5:$E$83))","v":0},null,null,{"$f":"'Prior Year Comparative'!B597","v":0},null,null,null,null,null,null,null,null,null,null,null,null,null,null,null,null,null,null,null,null,null,0]
[{"$f":"IF(Descriptions!K63=\"Parish Share\",Descriptions!I63,0)","v":0},{"$f":"SUMPRODUCT((WorkingP!$A$5:$A$83='Payments - Summary'!A41)*(WorkingP!$D$5:$E$83))","v":0},null,null,{"$f":"'Prior Year Comparative'!B598","v":0},null,null,null,null,null,null,null,null,null,null,null,null,null,null,null,null,null,null,null,null,null,0]
[{"$f":"IF(Descriptions!K64=\"Parish Share\",Descriptions!I64,0)","v":0},{"$f":"SUMPRODUCT((WorkingP!$A$5:$A$83='Payments - Summary'!A42)*(WorkingP!$D$5:$E$83))","v":0},null,null,{"$f":"'Prior Year Comparative'!B599","v":0},null,null,null,null,null,null,null,null,null,null,null,null,null,null,null,null,null,null,null,null,null,0]
[{"$f":"IF(Descriptions!K65=\"Parish Share\",Descriptions!I65,0)","v":0},{"$f":"SUMPRODUCT((WorkingP!$A$5:$A$83='Payments - Summary'!A43)*(WorkingP!$D$5:$E$83))","v":0},null,null,{"$f":"'Prior Year Comparative'!B600","v":0},null,null,null,null,null,null,null,null,null,null,null,null,null,null,null,null,null,null,null,null,null,0]
[{"$f":"IF(Descriptions!K66=\"Parish Share\",Descriptions!I66,0)","v":0},{"$f":"SUMPRODUCT((WorkingP!$A$5:$A$83='Payments - Summary'!A44)*(WorkingP!$D$5:$E$83))","v":0},null,null,{"$f":"'Prior Year Comparative'!B601","v":0},null,null,null,null,null,null,null,null,null,null,null,null,null,null,null,null,null,null,null,null,null,0]
[{"$f":"IF(Descriptions!K67=\"Parish Share\",Descriptions!I67,0)","v":0},{"$f":"SUMPRODUCT((WorkingP!$A$5:$A$83='Payments - Summary'!A45)*(WorkingP!$D$5:$E$83))","v":0},null,null,{"$f":"'Prior Year Comparative'!B602","v":0},null,null,null,null,null,null,null,null,null,null,null,null,null,null,null,null,null,null,null,null,null,0]
[{"$f":"IF(Descriptions!K68=\"Parish Share\",Descriptions!I68,0)","v":0},{"$f":"SUMPRODUCT((WorkingP!$A$5:$A$83='Payments - Summary'!A46)*(WorkingP!$D$5:$E$83))","v":0},null,null,{"$f":"'Prior Year Comparative'!B603","v":0},null,null,null,null,null,null,null,null,null,null,null,null,null,null,null,null,null,null,null,null,null,0]
[{"$f":"IF(Descriptions!K69=\"Parish Share\",Descriptions!I69,0)","v":0},{"$f":"SUMPRODUCT((WorkingP!$A$5:$A$83='Payments - Summary'!A47)*(WorkingP!$D$5:$E$83))","v":0},null,null,{"$f":"'Prior Year Comparative'!B604","v":0},null,null,null,null,null,null,null,null,null,null,null,null,null,null,null,null,null,null,null,null,null,0]
[{"$f":"IF(Descriptions!K70=\"Parish Share\",Descriptions!I70,0)","v":0},{"$f":"SUMPRODUCT((WorkingP!$A$5:$A$83='Payments - Summary'!A48)*(WorkingP!$D$5:$E$83))","v":0},null,null,{"$f":"'Prior Year Comparative'!B605","v":0},null,null,null,null,null,null,null,null,null,null,null,null,null,null,null,null,null,null,null,null,null,0]
[{"$f":"IF(Descriptions!K71=\"Parish Share\",Descriptions!I71,0)","v":0},{"$f":"SUMPRODUCT((WorkingP!$A$5:$A$83='Payments - Summary'!A49)*(WorkingP!$D$5:$E$83))","v":0},null,null,{"$f":"'Prior Year Comparative'!B606","v":0},null,null,null,null,null,null,null,null,null,null,null,null,null,null,null,null,null,null,null,null,null,0]
[{"$f":"IF(Descriptions!K72=\"Parish Share\",Descriptions!I72,0)","v":0},{"$f":"SUMPRODUCT((WorkingP!$A$5:$A$83='Payments - Summary'!A50)*(WorkingP!$D$5:$E$83))","v":0},null,null,{"$f":"'Prior Year Comparative'!B607","v":0},null,null,null,null,null,null,null,null,null,null,null,null,null,null,null,null,null,null,null,null,null,0]
[{"$f":"IF(Descriptions!K73=\"Parish Share\",Descriptions!I73,0)","v":0},{"$f":"SUMPRODUCT((WorkingP!$A$5:$A$83='Payments - Summary'!A51)*(WorkingP!$D$5:$E$83))","v":0},null,null,{"$f":"'Prior Year Comparative'!B608","v":0},null,null,null,null,null,null,null,null,null,null,null,null,null,null,null,null,null,null,null,null,null,0]
[{"$f":"IF(Descriptions!K74=\"Parish Share\",Descriptions!I74,0)","v":0},{"$f":"SUMPRODUCT((WorkingP!$A$5:$A$83='Payments - Summary'!A52)*(WorkingP!$D$5:$E$83))","v":0},null,null,{"$f":"'Prior Year Comparative'!B609","v":0},null,null,null,null,null,null,null,null,null,null,null,null,null,null,null,null,null,null,null,null,null,0]
[{"$f":"IF(Descriptions!K75=\"Parish Share\",Descriptions!I75,0)","v":0},{"$f":"SUMPRODUCT((WorkingP!$A$5:$A$83='Payments - Summary'!A53)*(WorkingP!$D$5:$E$83))","v":0},null,null,{"$f":"'Prior Year Comparative'!B610","v":0},null,null,null,null,null,null,null,null,null,null,null,null,null,null,null,null,null,null,null,null,null,0]
[{"$f":"IF(Descriptions!K76=\"Parish Share\",Descriptions!I76,0)","v":0},{"$f":"SUMPRODUCT((WorkingP!$A$5:$A$83='Payments - Summary'!A54)*(WorkingP!$D$5:$E$83))","v":0},null,null,{"$f":"'Prior Year Comparative'!B611","v":0},null,null,null,null,null,null,null,null,null,null,null,null,null,null,null,null,null,null,null,null,null,0]
[{"$f":"IF(Descriptions!K77=\"Parish Share\",Descriptions!I77,0)","v":0},{"$f":"SUMPRODUCT((WorkingP!$A$5:$A$83='Payments - Summary'!A55)*(WorkingP!$D$5:$E$83))","v":0},null,null,{"$f":"'Prior Year Comparative'!B612","v":0},null,null,null,null,null,null,null,null,null,null,null,null,null,null,null,null,null,null,null,null,null,0]
[{"$f":"IF(Descriptions!K78=\"Parish Share\",Descriptions!I78,0)","v":0},{"$f":"SUMPRODUCT((WorkingP!$A$5:$A$83='Payments - Summary'!A56)*(WorkingP!$D$5:$E$83))","v":0},null,null,{"$f":"'Prior Year Comparative'!B613","v":0},null,null,null,null,null,null,null,null,null,null,null,null,null,null,null,null,null,null,null,null,null,0]
[{"$f":"IF(Descriptions!K79=\"Parish Share\",Descriptions!I79,0)","v":0},{"$f":"SUMPRODUCT((WorkingP!$A$5:$A$83='Payments - Summary'!A57)*(WorkingP!$D$5:$E$83))","v":0},null,null,{"$f":"'Prior Year Comparative'!B614","v":0},null,null,null,null,null,null,null,null,null,null,null,null,null,null,null,null,null,null,null,null,null,0]
[{"$f":"IF(Descriptions!K80=\"Parish Share\",Descriptions!I80,0)","v":0},{"$f":"SUMPRODUCT((WorkingP!$A$5:$A$83='Payments - Summary'!A58)*(WorkingP!$D$5:$E$83))","v":0},null,null,{"$f":"'Prior Year Comparative'!B615","v":0},null,null,null,null,null,null,null,null,null,null,null,null,null,null,null,null,null,null,null,null,null,0]
[{"$f":"IF(Descriptions!K81=\"Parish Share\",Descriptions!I81,0)","v":0},{"$f":"SUMPRODUCT((WorkingP!$A$5:$A$83='Payments - Summary'!A59)*(WorkingP!$D$5:$E$83))","v":0},null,null,{"$f":"'Prior Year Comparative'!B616","v":0},null,null,null,null,null,null,null,null,null,null,null,null,null,null,null,null,null,null,null,null,null,0]
[{"$f":"IF(Descriptions!K82=\"Parish Share\",Descriptions!I82,0)","v":0},{"$f":"SUMPRODUCT((WorkingP!$A$5:$A$83='Payments - Summary'!A60)*(WorkingP!$D$5:$E$83))","v":0},null,null,{"$f":"'Prior Year Comparative'!B617","v":0},null,null,null,null,null,null,null,null,null,null,null,null,null,null,null,null,null,null,null,null,null,0]
[{"$f":"IF(Descriptions!K83=\"Parish Share\",Descriptions!I83,0)","v":0},{"$f":"SUMPRODUCT((WorkingP!$A$5:$A$83='Payments - Summary'!A61)*(WorkingP!$D$5:$E$83))","v":0},null,null,{"$f":"'Prior Year Comparative'!B618","v":0},null,null,null,null,null,null,null,null,null,null,null,null,null,null,null,null,null,null,null,null,null,0]
[{"$f":"IF(Descriptions!K84=\"Parish Share\",Descriptions!I84,0)","v":0},{"$f":"SUMPRODUCT((WorkingP!$A$5:$A$83='Payments - Summary'!A62)*(WorkingP!$D$5:$E$83))","v":0},null,null,{"$f":"'Prior Year Comparative'!B619","v":0},null,null,null,null,null,null,null,null,null,null,null,null,null,null,null,null,null,null,null,null,null,0]
[null,null,{"$f":"SUM(B12:B62)","v":0},null,null,{"$f":"SUM(E12:E62)","v":0},null,null,null,null,null,null,null,null,null,null,null,null,null,null,null,null,null,null,null,null,1]
["CLERGY AND STAFFING COSTS",null,null,null,null,null,null,null,null,null,null,null,null,null,null,null,null,null,null,null,null,null,null,null,null,null,{"$f":"SUM(AA65:AA117)","v":0}]
["Administrator Parish/Benefice",{"$f":"SUMPRODUCT((WorkingP!$A$5:$A$83='Payments - Summary'!A65)*(WorkingP!$D$5:$E$83))","v":0},null,null,{"$f":"'Prior Year Comparative'!B622","v":0},null,null,null,null,null,null,null,null,null,null,null,null,null,null,null,null,null,null,null,null,null,{"$f":"Descriptions!AB6","v":0}]
["Clergy Expenses",{"$f":"SUMPRODUCT((WorkingP!$A$5:$A$83='Payments - Summary'!A66)*(WorkingP!$D$5:$E$83))","v":0},null,null,{"$f":"'Prior Year Comparative'!B623","v":0},null,null,null,null,null,null,null,null,null,null,null,null,null,null,null,null,null,null,null,null,null,{"$f":"Descriptions!AB15","v":0}]
["Salaries",{"$f":"SUMPRODUCT((WorkingP!$A$5:$A$83='Payments - Summary'!A67)*(WorkingP!$D$5:$E$83))","v":0},null,null,{"$f":"'Prior Year Comparative'!B624","v":0},null,null,null,null,null,null,null,null,null,null,null,null,null,null,null,null,null,null,null,null,null,{"$f":"Descriptions!AB26","v":0}]
[{"$f":"IF(Descriptions!K35=\"Clergy and Staffing Costs\",Descriptions!I35,0)","v":0},{"$f":"SUMPRODUCT((WorkingP!$A$5:$A$83='Payments - Summary'!A68)*(WorkingP!$D$5:$E$83))","v":0},null,null,{"$f":"'Prior Year Comparative'!B625","v":0},null,null,null,null,null,null,null,null,null,null,null,null,null,null,null,null,null,null,null,null,null,{"$f":"IF(A68=0,0,1)","v":0}]
[{"$f":"IF(Descriptions!K36=\"Clergy and Staffing Costs\",Descriptions!I36,0)","v":0},{"$f":"SUMPRODUCT((WorkingP!$A$5:$A$83='Payments - Summary'!A69)*(WorkingP!$D$5:$E$83))","v":0},null,null,{"$f":"'Prior Year Comparative'!B626","v":0},null,null,null,null,null,null,null,null,null,null,null,null,null,null,null,null,null,null,null,null,null,0]
[{"$f":"IF(Descriptions!K37=\"Clergy and Staffing Costs\",Descriptions!I37,0)","v":0},{"$f":"SUMPRODUCT((WorkingP!$A$5:$A$83='Payments - Summary'!A70)*(WorkingP!$D$5:$E$83))","v":0},null,null,{"$f":"'Prior Year Comparative'!B627","v":0},null,null,null,null,null,null,null,null,null,null,null,null,null,null,null,null,null,null,null,null,null,0]
[{"$f":"IF(Descriptions!K38=\"Clergy and Staffing Costs\",Descriptions!I38,0)","v":0},{"$f":"SUMPRODUCT((WorkingP!$A$5:$A$83='Payments - Summary'!A71)*(WorkingP!$D$5:$E$83))","v":0},null,null,{"$f":"'Prior Year Comparative'!B628","v":0},null,null,null,null,null,null,null,null,null,null,null,null,null,null,null,null,null,null,null,null,null,0]
[{"$f":"IF(Descriptions!K39=\"Clergy and Staffing Costs\",Descriptions!I39,0)","v":0},{"$f":"SUMPRODUCT((WorkingP!$A$5:$A$83='Payments - Summary'!A72)*(WorkingP!$D$5:$E$83))","v":0},null,null,{"$f":"'Prior Year Comparative'!B629","v":0},null,null,null,null,null,null,null,null,null,null,null,null,null,null,null,null,null,null,null,null,null,0]
[{"$f":"IF(Descriptions!K40=\"Clergy and Staffing Costs\",Descriptions!I40,0)","v":0},{"$f":"SUMPRODUCT((WorkingP!$A$5:$A$83='Payments - Summary'!A73)*(WorkingP!$D$5:$E$83))","v":0},null,null,{"$f":"'Prior Year Comparative'!B630","v":0},null,null,null,null,null,null,null,null,null,null,null,null,null,null,null,null,null,null,null,null,null,0]
[{"$f":"IF(Descriptions!K41=\"Clergy and Staffing Costs\",Descriptions!I41,0)","v":0},{"$f":"SUMPRODUCT((WorkingP!$A$5:$A$83='Payments - Summary'!A74)*(WorkingP!$D$5:$E$83))","v":0},null,null,{"$f":"'Prior Year Comparative'!B631","v":0},null,null,null,null,null,null,null,null,null,null,null,null,null,null,null,null,null,null,null,null,null,0]
[{"$f":"IF(Descriptions!K42=\"Clergy and Staffing Costs\",Descriptions!I42,0)","v":0},{"$f":"SUMPRODUCT((WorkingP!$A$5:$A$83='Payments - Summary'!A75)*(WorkingP!$D$5:$E$83))","v":0},null,null,{"$f":"'Prior Year Comparative'!B632","v":0},null,null,null,null,null,null,null,null,null,null,null,null,null,null,null,null,null,null,null,null,null,0]
[{"$f":"IF(Descriptions!K43=\"Clergy and Staffing Costs\",Descriptions!I43,0)","v":0},{"$f":"SUMPRODUCT((WorkingP!$A$5:$A$83='Payments - Summary'!A76)*(WorkingP!$D$5:$E$83))","v":0},null,null,{"$f":"'Prior Year Comparative'!B633","v":0},null,null,null,null,null,null,null,null,null,null,null,null,null,null,null,null,null,null,null,null,null,0]
[{"$f":"IF(Descriptions!K44=\"Clergy and Staffing Costs\",Descriptions!I44,0)","v":0},{"$f":"SUMPRODUCT((WorkingP!$A$5:$A$83='Payments - Summary'!A77)*(WorkingP!$D$5:$E$83))","v":0},null,null,{"$f":"'Prior Year Comparative'!B634","v":0},null,null,null,null,null,null,null,null,null,null,null,null,null,null,null,null,null,null,null,null,null,0]
[{"$f":"IF(Descriptions!K45=\"Clergy and Staffing Costs\",Descriptions!I45,0)","v":0},{"$f":"SUMPRODUCT((WorkingP!$A$5:$A$83='Payments - Summary'!A78)*(WorkingP!$D$5:$E$83))","v":0},null,null,{"$f":"'Prior Year Comparative'!B635","v":0},null,null,null,null,null,null,null,null,null,null,null,null,null,null,null,null,null,null,null,null,null,0]
[{"$f":"IF(Descriptions!K46=\"Clergy and Staffing Costs\",Descriptions!I46,0)","v":0},{"$f":"SUMPRODUCT((WorkingP!$A$5:$A$83='Payments - Summary'!A79)*(WorkingP!$D$5:$E$83))","v":0},null,null,{"$f":"'Prior Year Comparative'!B636","v":0},null,null,null,null,null,null,null,null,null,null,null,null,null,null,null,null,null,null,null,null,null,0]
[{"$f":"IF(Descriptions!K47=\"Clergy and Staffing Costs\",Descriptions!I47,0)","v":0},{"$f":"SUMPRODUCT((WorkingP!$A$5:$A$83='Payments - Summary'!A80)*(WorkingP!$D$5:$E$83))","v":0},null,null,{"$f":"'Prior Year Comparative'!B637","v":0},null,null,null,null,null,null,null,null,null,null,null,null,null,null,null,null,null,null,null,null,null,0]
[{"$f":"IF(Descriptions!K48=\"Clergy and Staffing Costs\",Descriptions!I48,0)","v":0},{"$f":"SUMPRODUCT((WorkingP!$A$5:$A$83='Payments - Summary'!A81)*(WorkingP!$D$5:$E$83))","v":0},null,null,{"$f":"'Prior Year Comparative'!B638","v":0},null,null,null,null,null,null,null,null,null,null,null,null,null,null,null,null,null,null,null,null,null,0]
[{"$f":"IF(Descriptions!K49=\"Clergy and Staffing Costs\",Descriptions!I49,0)","v":0},{"$f":"SUMPRODUCT((WorkingP!$A$5:$A$83='Payments - Summary'!A82)*(WorkingP!$D$5:$E$83))","v":0},null,null,{"$f":"'Prior Year Comparative'!B639","v":0},null,null,null,null,null,null,null,null,null,null,null,null,null,null,null,null,null,null,null,null,null,0]
[{"$f":"IF(Descriptions!K50=\"Clergy and Staffing Costs\",Descriptions!I50,0)","v":0},{"$f":"SUMPRODUCT((WorkingP!$A$5:$A$83='Payments - Summary'!A83)*(WorkingP!$D$5:$E$83))","v":0},null,null,{"$f":"'Prior Year Comparative'!B640","v":0},null,null,null,null,null,null,null,null,null,null,null,null,null,null,null,null,null,null,null,null,null,0]
[{"$f":"IF(Descriptions!K51=\"Clergy and Staffing Costs\",Descriptions!I51,0)","v":0},{"$f":"SUMPRODUCT((WorkingP!$A$5:$A$83='Payments - Summary'!A84)*(WorkingP!$D$5:$E$83))","v":0},null,null,{"$f":"'Prior Year Comparative'!B641","v":0},null,null,null,null,null,null,null,null,null,null,null,null,null,null,null,null,null,null,null,null,null,0]
[{"$f":"IF(Descriptions!K52=\"Clergy and Staffing Costs\",Descriptions!I52,0)","v":0},{"$f":"SUMPRODUCT((WorkingP!$A$5:$A$83='Payments - Summary'!A85)*(WorkingP!$D$5:$E$83))","v":0},null,null,{"$f":"'Prior Year Comparative'!B642","v":0},null,null,null,null,null,null,null,null,null,null,null,null,null,null,null,null,null,null,null,null,null,0]
[{"$f":"IF(Descriptions!K53=\"Clergy and Staffing Costs\",Descriptions!I53,0)","v":0},{"$f":"SUMPRODUCT((WorkingP!$A$5:$A$83='Payments - Summary'!A86)*(WorkingP!$D$5:$E$83))","v":0},null,null,{"$f":"'Prior Year Comparative'!B643","v":0},null,null,null,null,null,null,null,null,null,null,null,null,null,null,null,null,null,null,null,null,null,0]
[{"$f":"IF(Descriptions!K54=\"Clergy and Staffing Costs\",Descriptions!I54,0)","v":0},{"$f":"SUMPRODUCT((WorkingP!$A$5:$A$83='Payments - Summary'!A87)*(WorkingP!$D$5:$E$83))","v":0},null,null,{"$f":"'Prior Year Comparative'!B644","v":0},null,null,null,null,null,null,null,null,null,null,null,null,null,null,null,null,null,null,null,null,null,0]
[{"$f":"IF(Descriptions!K55=\"Clergy and Staffing Costs\",Descriptions!I55,0)","v":0},{"$f":"SUMPRODUCT((WorkingP!$A$5:$A$83='Payments - Summary'!A88)*(WorkingP!$D$5:$E$83))","v":0},null,null,{"$f":"'Prior Year Comparative'!B645","v":0},null,null,null,null,null,null,null,null,null,null,null,null,null,null,null,null,null,null,null,null,null,0]
[{"$f":"IF(Descriptions!K56=\"Clergy and Staffing Costs\",Descriptions!I56,0)","v":0},{"$f":"SUMPRODUCT((WorkingP!$A$5:$A$83='Payments - Summary'!A89)*(WorkingP!$D$5:$E$83))","v":0},null,null,{"$f":"'Prior Year Comparative'!B646","v":0},null,null,null,null,null,null,null,null,null,null,null,null,null,null,null,null,null,null,null,null,null,0]
[{"$f":"IF(Descriptions!K57=\"Clergy and Staffing Costs\",Descriptions!I57,0)","v":0},{"$f":"SUMPRODUCT((WorkingP!$A$5:$A$83='Payments - Summary'!A90)*(WorkingP!$D$5:$E$83))","v":0},null,null,{"$f":"'Prior Year Comparative'!B647","v":0},null,null,null,null,null,null,null,null,null,null,null,null,null,null,null,null,null,null,null,null,null,0]
[{"$f":"IF(Descriptions!K58=\"Clergy and Staffing Costs\",Descriptions!I58,0)","v":0},{"$f":"SUMPRODUCT((WorkingP!$A$5:$A$83='Payments - Summary'!A91)*(WorkingP!$D$5:$E$83))","v":0},null,null,{"$f":"'Prior Year Comparative'!B648","v":0},null,null,null,null,null,null,null,null,null,null,null,null,null,null,null,null,null,null,null,null,null,0]
[{"$f":"IF(Descriptions!K59=\"Clergy and Staffing Costs\",Descriptions!I59,0)","v":0},{"$f":"SUMPRODUCT((WorkingP!$A$5:$A$83='Payments - Summary'!A92)*(WorkingP!$D$5:$E$83))","v":0},null,null,{"$f":"'Prior Year Comparative'!B649","v":0},null,null,null,null,null,null,null,null,null,null,null,null,null,null,null,null,null,null,null,null,null,0]
[{"$f":"IF(Descriptions!K60=\"Clergy and Staffing Costs\",Descriptions!I60,0)","v":0},{"$f":"SUMPRODUCT((WorkingP!$A$5:$A$83='Payments - Summary'!A93)*(WorkingP!$D$5:$E$83))","v":0},null,null,{"$f":"'Prior Year Comparative'!B650","v":0},null,null,null,null,null,null,null,null,null,null,null,null,null,null,null,null,null,null,null,null,null,0]
[{"$f":"IF(Descriptions!K61=\"Clergy and Staffing Costs\",Descriptions!I61,0)","v":0},{"$f":"SUMPRODUCT((WorkingP!$A$5:$A$83='Payments - Summary'!A94)*(WorkingP!$D$5:$E$83))","v":0},null,null,{"$f":"'Prior Year Comparative'!B651","v":0},null,null,null,null,null,null,null,null,null,null,null,null,null,null,null,null,null,null,null,null,null,0]
[{"$f":"IF(Descriptions!K62=\"Clergy and Staffing Costs\",Descriptions!I62,0)","v":0},{"$f":"SUMPRODUCT((WorkingP!$A$5:$A$83='Payments - Summary'!A95)*(WorkingP!$D$5:$E$83))","v":0},null,null,{"$f":"'Prior Year Comparative'!B652","v":0},null,null,null,null,null,null,null,null,null,null,null,null,null,null,null,null,null,null,null,null,null,0]
[{"$f":"IF(Descriptions!K63=\"Clergy and Staffing Costs\",Descriptions!I63,0)","v":0},{"$f":"SUMPRODUCT((WorkingP!$A$5:$A$83='Payments - Summary'!A96)*(WorkingP!$D$5:$E$83))","v":0},null,null,{"$f":"'Prior Year Comparative'!B653","v":0},null,null,null,null,null,null,null,null,null,null,null,null,null,null,null,null,null,null,null,null,null,0]
[{"$f":"IF(Descriptions!K64=\"Clergy and Staffing Costs\",Descriptions!I64,0)","v":0},{"$f":"SUMPRODUCT((WorkingP!$A$5:$A$83='Payments - Summary'!A97)*(WorkingP!$D$5:$E$83))","v":0},null,null,{"$f":"'Prior Year Comparative'!B654","v":0},null,null,null,null,null,null,null,null,null,null,null,null,null,null,null,null,null,null,null,null,null,0]
[{"$f":"IF(Descriptions!K65=\"Clergy and Staffing Costs\",Descriptions!I65,0)","v":0},{"$f":"SUMPRODUCT((WorkingP!$A$5:$A$83='Payments - Summary'!A98)*(WorkingP!$D$5:$E$83))","v":0},null,null,{"$f":"'Prior Year Comparative'!B655","v":0},null,null,null,null,null,null,null,null,null,null,null,null,null,null,null,null,null,null,null,null,null,0]
[{"$f":"IF(Descriptions!K66=\"Clergy and Staffing Costs\",Descriptions!I66,0)","v":0},{"$f":"SUMPRODUCT((WorkingP!$A$5:$A$83='Payments - Summary'!A99)*(WorkingP!$D$5:$E$83))","v":0},null,null,{"$f":"'Prior Year Comparative'!B656","v":0},null,null,null,null,null,null,null,null,null,null,null,null,null,null,null,null,null,null,null,null,null,0]
[{"$f":"IF(Descriptions!K67=\"Clergy and Staffing Costs\",Descriptions!I67,0)","v":0},{"$f":"SUMPRODUCT((WorkingP!$A$5:$A$83='Payments - Summary'!A100)*(WorkingP!$D$5:$E$83))","v":0},null,null,{"$f":"'Prior Year Comparative'!B657","v":0},null,null,null,null,null,null,null,null,null,null,null,null,null,null,null,null,null,null,null,null,null,0]
[{"$f":"IF(Descriptions!K68=\"Clergy and Staffing Costs\",Descriptions!I68,0)","v":0},{"$f":"SUMPRODUCT((WorkingP!$A$5:$A$83='Payments - Summary'!A101)*(WorkingP!$D$5:$E$83))","v":0},null,null,{"$f":"'Prior Year Comparative'!B658","v":0},null,null,null,null,null,null,null,null,null,null,null,null,null,null,null,null,null,null,null,null,null,0]
[{"$f":"IF(Descriptions!K69=\"Clergy and Staffing Costs\",Descriptions!I69,0)","v":0},{"$f":"SUMPRODUCT((WorkingP!$A$5:$A$83='Payments - Summary'!A102)*(WorkingP!$D$5:$E$83))","v":0},null,null,{"$f":"'Prior Year Comparative'!B659","v":0},null,null,null,null,null,null,null,null,null,null,null,null,null,null,null,null,null,null,null,null,null,0]
[{"$f":"IF(Descriptions!K70=\"Clergy and Staffing Costs\",Descriptions!I70,0)","v":0},{"$f":"SUMPRODUCT((WorkingP!$A$5:$A$83='Payments - Summary'!A103)*(WorkingP!$D$5:$E$83))","v":0},null,null,{"$f":"'Prior Year Comparative'!B660","v":0},null,null,null,null,null,null,null,null,null,null,null,null,null,null,null,null,null,null,null,null,null,0]
[{"$f":"IF(Descriptions!K71=\"Clergy and Staffing Costs\",Descriptions!I71,0)","v":0},{"$f":"SUMPRODUCT((WorkingP!$A$5:$A$83='Payments - Summary'!A104)*(WorkingP!$D$5:$E$83))","v":0},null,null,{"$f":"'Prior Year Comparative'!B661","v":0},null,null,null,null,null,null,null,null,null,null,null,null,null,null,null,null,null,null,null,null,null,0]
[{"$f":"IF(Descriptions!K72=\"Clergy and Staffing Costs\",Descriptions!I72,0)","v":0},{"$f":"SUMPRODUCT((WorkingP!$A$5:$A$83='Payments - Summary'!A105)*(WorkingP!$D$5:$E$83))","v":0},null,null,{"$f":"'Prior Year Comparative'!B662","v":0},null,null,null,null,null,null,null,null,null,null,null,null,null,null,null,null,null,null,null,null,null,0]
[{"$f":"IF(Descriptions!K73=\"Clergy and Staffing Costs\",Descriptions!I73,0)","v":0},{"$f":"SUMPRODUCT((WorkingP!$A$5:$A$83='Payments - Summary'!A106)*(WorkingP!$D$5:$E$83))","v":0},null,null,{"$f":"'Prior Year Comparative'!B663","v":0},null,null,null,null,null,null,null,null,null,null,null,null,null,null,null,null,null,null,null,null,null,0]
[{"$f":"IF(Descriptions!K74=\"Clergy and Staffing Costs\",Descriptions!I74,0)","v":0},{"$f":"SUMPRODUCT((WorkingP!$A$5:$A$83='Payments - Summary'!A107)*(WorkingP!$D$5:$E$83))","v":0},null,null,{"$f":"'Prior Year Comparative'!B664","v":0},null,null,null,null,null,null,null,null,null,null,null,null,null,null,null,null,null,null,null,null,null,0]
[{"$f":"IF(Descriptions!K75=\"Clergy and Staffing Costs\",Descriptions!I75,0)","v":0},{"$f":"SUMPRODUCT((WorkingP!$A$5:$A$83='Payments - Summary'!A108)*(WorkingP!$D$5:$E$83))","v":0},null,null,{"$f":"'Prior Year Comparative'!B665","v":0},null,null,null,null,null,null,null,null,null,null,null,null,null,null,null,null,null,null,null,null,null,0]
[{"$f":"IF(Descriptions!K76=\"Clergy and Staffing Costs\",Descriptions!I76,0)","v":0},{"$f":"SUMPRODUCT((WorkingP!$A$5:$A$83='Payments - Summary'!A109)*(WorkingP!$D$5:$E$83))","v":0},null,null,{"$f":"'Prior Year Comparative'!B666","v":0},null,null,null,null,null,null,null,null,null,null,null,null,null,null,null,null,null,null,null,null,null,0]
[{"$f":"IF(Descriptions!K77=\"Clergy and Staffing Costs\",Descriptions!I77,0)","v":0},{"$f":"SUMPRODUCT((WorkingP!$A$5:$A$83='Payments - Summary'!A110)*(WorkingP!$D$5:$E$83))","v":0},null,null,{"$f":"'Prior Year Comparative'!B667","v":0},null,null,null,null,null,null,null,null,null,null,null,null,null,null,null,null,null,null,null,null,null,0]
[{"$f":"IF(Descriptions!K78=\"Clergy and Staffing Costs\",Descriptions!I78,0)","v":0},{"$f":"SUMPRODUCT((WorkingP!$A$5:$A$83='Payments - Summary'!A111)*(WorkingP!$D$5:$E$83))","v":0},null,null,{"$f":"'Prior Year Comparative'!B668","v":0},null,null,null,null,null,null,null,null,null,null,null,null,null,null,null,null,null,null,null,null,null,0]
[{"$f":"IF(Descriptions!K79=\"Clergy and Staffing Costs\",Descriptions!I79,0)","v":0},{"$f":"SUMPRODUCT((WorkingP!$A$5:$A$83='Payments - Summary'!A112)*(WorkingP!$D$5:$E$83))","v":0},null,null,{"$f":"'Prior Year Comparative'!B669","v":0},null,null,null,null,null,null,null,null,null,null,null,null,null,null,null,null,null,null,null,null,null,0]
[{"$f":"IF(Descriptions!K80=\"Clergy and Staffing Costs\",Descriptions!I80,0)","v":0},{"$f":"SUMPRODUCT((WorkingP!$A$5:$A$83='Payments - Summary'!A113)*(WorkingP!$D$5:$E$83))","v":0},null,null,{"$f":"'Prior Year Comparative'!B670","v":0},null,null,null,null,null,null,null,null,null,null,null,null,null,null,null,null,null,null,null,null,null,0]
[{"$f":"IF(Descriptions!K81=\"Clergy and Staffing Costs\",Descriptions!I81,0)","v":0},{"$f":"SUMPRODUCT((WorkingP!$A$5:$A$83='Payments - Summary'!A114)*(WorkingP!$D$5:$E$83))","v":0},null,null,{"$f":"'Prior Year Comparative'!B671","v":0},null,null,null,null,null,null,null,null,null,null,null,null,null,null,null,null,null,null,null,null,null,0]
[{"$f":"IF(Descriptions!K82=\"Clergy and Staffing Costs\",Descriptions!I82,0)","v":0},{"$f":"SUMPRODUCT((WorkingP!$A$5:$A$83='Payments - Summary'!A115)*(WorkingP!$D$5:$E$83))","v":0},null,null,{"$f":"'Prior Year Comparative'!B672","v":0},null,null,null,null,null,null,null,null,null,null,null,null,null,null,null,null,null,null,null,null,null,0]
[{"$f":"IF(Descriptions!K83=\"Clergy and Staffing Costs\",Descriptions!I83,0)","v":0},{"$f":"SUMPRODUCT((WorkingP!$A$5:$A$83='Payments - Summary'!A116)*(WorkingP!$D$5:$E$83))","v":0},null,null,{"$f":"'Prior Year Comparative'!B673","v":0},null,null,null,null,null,null,null,null,null,null,null,null,null,null,null,null,null,null,null,null,null,0]
[{"$f":"IF(Descriptions!K84=\"Clergy and Staffing Costs\",Descriptions!I84,0)","v":0},{"$f":"SUMPRODUCT((WorkingP!$A$5:$A$83='Payments - Summary'!A117)*(WorkingP!$D$5:$E$83))","v":0},null,null,{"$f":"'Prior Year Comparative'!B674","v":0},null,null,null,null,null,null,null,null,null,null,null,null,null,null,null,null,null,null,null,null,null,0]
[null,null,{"$f":"SUM(B65:B117)","v":0},null,null,{"$f":"SUM(E65:E117)","v":0},null,null,null,null,null,null,null,null,null,null,null,null,null,null,null,null,null,null,null,null,{"$f":"AA64","v":0}]
["CHURCH RUNNING EXPENSES",null,null,null,null,null,null,null,null,null,null,null,null,null,null,null,null,null,null,null,null,null,null,null,null,null,{"$f":"SUM(AA120:AA175)","v":0}]
["Cleaning",{"$f":"SUMPRODUCT((WorkingP!$A$5:$A$83='Payments - Summary'!A120)*(WorkingP!$D$5:$E$83))","v":0},null,null,{"$f":"'Prior Year Comparative'!B677","v":0},null,null,null,null,null,null,null,null,null,null,null,null,null,null,null,null,null,null,null,null,null,{"$f":"Descriptions!AB14","v":0}]
["Gas and Electricity Bill",{"$f":"SUMPRODUCT((WorkingP!$A$5:$A$83='Payments - Summary'!A121)*(WorkingP!$D$5:$E$83))","v":0},null,null,{"$f":"'Prior Year Comparative'!B678","v":0},null,null,null,null,null,null,null,null,null,null,null,null,null,null,null,null,null,null,null,null,null,{"$f":"Descriptions!AB18","v":0}]
["Insurance",{"$f":"SUMPRODUCT((WorkingP!$A$5:$A$83='Payments - Summary'!A122)*(WorkingP!$D$5:$E$83))","v":0},null,null,{"$f":"'Prior Year Comparative'!B679","v":0},null,null,null,null,null,null,null,null,null,null,null,null,null,null,null,null,null,null,null,null,null,{"$f":"Descriptions!AB20","v":0}]
["Service Costs",{"$f":"SUMPRODUCT((WorkingP!$A$5:$A$83='Payments - Summary'!A123)*(WorkingP!$D$5:$E$83))","v":0},null,null,{"$f":"'Prior Year Comparative'!B680","v":0},null,null,null,null,null,null,null,null,null,null,null,null,null,null,null,null,null,null,null,null,null,{"$f":"Descriptions!AB27","v":0}]
["Maintenance",{"$f":"SUMPRODUCT((WorkingP!$A$5:$A$83='Payments - Summary'!A124)*(WorkingP!$D$5:$E$83))","v":0},null,null,{"$f":"'Prior Year Comparative'!B681","v":0},null,null,null,null,null,null,null,null,null,null,null,null,null,null,null,null,null,null,null,null,null,{"$f":"Descriptions!AB21","v":0}]
["Water Bill",{"$f":"SUMPRODUCT((WorkingP!$A$5:$A$83='Payments - Summary'!A125)*(WorkingP!$D$5:$E$83))","v":0},null,null,{"$f":"'Prior Year Comparative'!B682","v":0},null,null,null,null,null,null,null,null,null,null,null,null,null,null,null,null,null,null,null,null,null,{"$f":"Descriptions!AB34","v":0}]
[{"$f":"IF(Descriptions!K35=\"Church Running Expenses\",Descriptions!I35,0)","v":0},{"$f":"SUMPRODUCT((WorkingP!$A$5:$A$83='Payments - Summary'!A126)*(WorkingP!$D$5:$E$83))","v":0},null,null,{"$f":"'Prior Year Comparative'!B683","v":0},null,null,null,null,null,null,null,null,null,null,null,null,null,null,null,null,null,null,null,null,null,{"$f":"IF(A126=0,0,1)","v":0}]
[{"$f":"IF(Descriptions!K36=\"Church Running Expenses\",Descriptions!I36,0)","v":0},{"$f":"SUMPRODUCT((WorkingP!$A$5:$A$83='Payments - Summary'!A127)*(WorkingP!$D$5:$E$83))","v":0},null,null,{"$f":"'Prior Year Comparative'!B684","v":0},null,null,null,null,null,null,null,null,null,null,null,null,null,null,null,null,null,null,null,null,null,{"$f":"IF(A127=0,0,1)","v":0}]
[{"$f":"IF(Descriptions!K37=\"Church Running Expenses\",Descriptions!I37,0)","v":0},{"$f":"SUMPRODUCT((WorkingP!$A$5:$A$83='Payments - Summary'!A128)*(WorkingP!$D$5:$E$83))","v":0},null,null,{"$f":"'Prior Year Comparative'!B685","v":0},null,null,null,null,null,null,null,null,null,null,null,null,null,null,null,null,null,null,null,null,null,{"$f":"IF(A128=0,0,1)","v":0}]
[{"$f":"IF(Descriptions!K38=\"Church Running Expenses\",Descriptions!I38,0)","v":0},{"$f":"SUMPRODUCT((WorkingP!$A$5:$A$83='Payments - Summary'!A129)*(WorkingP!$D$5:$E$83))","v":0},null,null,{"$f":"'Prior Year Comparative'!B686","v":0},null,null,null,null,null,null,null,null,null,null,null,null,null,null,null,null,null,null,null,null,null,{"$f":"IF(A129=0,0,1)","v":0}]
[{"$f":"IF(Descriptions!K39=\"Church Running Expenses\",Descriptions!I39,0)","v":0},{"$f":"SUMPRODUCT((WorkingP!$A$5:$A$83='Payments - Summary'!A130)*(WorkingP!$D$5:$E$83))","v":0},null,null,{"$f":"'Prior Year Comparative'!B687","v":0},null,null,null,null,null,null,null,null,null,null,null,null,null,null,null,null,null,null,null,null,null,0]
[{"$f":"IF(Descriptions!K40=\"Church Running Expenses\",Descriptions!I40,0)","v":0},{"$f":"SUMPRODUCT((WorkingP!$A$5:$A$83='Payments - Summary'!A131)*(WorkingP!$D$5:$E$83))","v":0},null,null,{"$f":"'Prior Year Comparative'!B688","v":0},null,null,null,null,null,null,null,null,null,null,null,null,null,null,null,null,null,null,null,null,null,0]
[{"$f":"IF(Descriptions!K41=\"Church Running Expenses\",Descriptions!I41,0)","v":0},{"$f":"SUMPRODUCT((WorkingP!$A$5:$A$83='Payments - Summary'!A132)*(WorkingP!$D$5:$E$83))","v":0},null,null,{"$f":"'Prior Year Comparative'!B689","v":0},null,null,null,null,null,null,null,null,null,null,null,null,null,null,null,null,null,null,null,null,null,0]
[{"$f":"IF(Descriptions!K42=\"Church Running Expenses\",Descriptions!I42,0)","v":0},{"$f":"SUMPRODUCT((WorkingP!$A$5:$A$83='Payments - Summary'!A133)*(WorkingP!$D$5:$E$83))","v":0},null,null,{"$f":"'Prior Year Comparative'!B690","v":0},null,null,null,null,null,null,null,null,null,null,null,null,null,null,null,null,null,null,null,null,null,0]
[{"$f":"IF(Descriptions!K43=\"Church Running Expenses\",Descriptions!I43,0)","v":0},{"$f":"SUMPRODUCT((WorkingP!$A$5:$A$83='Payments - Summary'!A134)*(WorkingP!$D$5:$E$83))","v":0},null,null,{"$f":"'Prior Year Comparative'!B691","v":0},null,null,null,null,null,null,null,null,null,null,null,null,null,null,null,null,null,null,null,null,null,0]
[{"$f":"IF(Descriptions!K44=\"Church Running Expenses\",Descriptions!I44,0)","v":0},{"$f":"SUMPRODUCT((WorkingP!$A$5:$A$83='Payments - Summary'!A135)*(WorkingP!$D$5:$E$83))","v":0},null,null,{"$f":"'Prior Year Comparative'!B692","v":0},null,null,null,null,null,null,null,null,null,null,null,null,null,null,null,null,null,null,null,null,null,0]
[{"$f":"IF(Descriptions!K45=\"Church Running Expenses\",Descriptions!I45,0)","v":0},{"$f":"SUMPRODUCT((WorkingP!$A$5:$A$83='Payments - Summary'!A136)*(WorkingP!$D$5:$E$83))","v":0},null,null,{"$f":"'Prior Year Comparative'!B693","v":0},null,null,null,null,null,null,null,null,null,null,null,null,null,null,null,null,null,null,null,null,null,0]
[{"$f":"IF(Descriptions!K46=\"Church Running Expenses\",Descriptions!I46,0)","v":0},{"$f":"SUMPRODUCT((WorkingP!$A$5:$A$83='Payments - Summary'!A137)*(WorkingP!$D$5:$E$83))","v":0},null,null,{"$f":"'Prior Year Comparative'!B694","v":0},null,null,null,null,null,null,null,null,null,null,null,null,null,null,null,null,null,null,null,null,null,0]
[{"$f":"IF(Descriptions!K47=\"Church Running Expenses\",Descriptions!I47,0)","v":0},{"$f":"SUMPRODUCT((WorkingP!$A$5:$A$83='Payments - Summary'!A138)*(WorkingP!$D$5:$E$83))","v":0},null,null,{"$f":"'Prior Year Comparative'!B695","v":0},null,null,null,null,null,null,null,null,null,null,null,null,null,null,null,null,null,null,null,null,null,0]
[{"$f":"IF(Descriptions!K48=\"Church Running Expenses\",Descriptions!I48,0)","v":0},{"$f":"SUMPRODUCT((WorkingP!$A$5:$A$83='Payments - Summary'!A139)*(WorkingP!$D$5:$E$83))","v":0},null,null,{"$f":"'Prior Year Comparative'!B696","v":0},null,null,null,null,null,null,null,null,null,null,null,null,null,null,null,null,null,null,null,null,null,0]
[{"$f":"IF(Descriptions!K49=\"Church Running Expenses\",Descriptions!I49,0)","v":0},{"$f":"SUMPRODUCT((WorkingP!$A$5:$A$83='Payments - Summary'!A140)*(WorkingP!$D$5:$E$83))","v":0},null,null,{"$f":"'Prior Year Comparative'!B697","v":0},null,null,null,null,null,null,null,null,null,null,null,null,null,null,null,null,null,null,null,null,null,0]
[{"$f":"IF(Descriptions!K50=\"Church Running Expenses\",Descriptions!I50,0)","v":0},{"$f":"SUMPRODUCT((WorkingP!$A$5:$A$83='Payments - Summary'!A141)*(WorkingP!$D$5:$E$83))","v":0},null,null,{"$f":"'Prior Year Comparative'!B698","v":0},null,null,null,null,null,null,null,null,null,null,null,null,null,null,null,null,null,null,null,null,null,0]
[{"$f":"IF(Descriptions!K51=\"Church Running Expenses\",Descriptions!I51,0)","v":0},{"$f":"SUMPRODUCT((WorkingP!$A$5:$A$83='Payments - Summary'!A142)*(WorkingP!$D$5:$E$83))","v":0},null,null,{"$f":"'Prior Year Comparative'!B699","v":0},null,null,null,null,null,null,null,null,null,null,null,null,null,null,null,null,null,null,null,null,null,0]
[{"$f":"IF(Descriptions!K52=\"Church Running Expenses\",Descriptions!I52,0)","v":0},{"$f":"SUMPRODUCT((WorkingP!$A$5:$A$83='Payments - Summary'!A143)*(WorkingP!$D$5:$E$83))","v":0},null,null,{"$f":"'Prior Year Comparative'!B700","v":0},null,null,null,null,null,null,null,null,null,null,null,null,null,null,null,null,null,null,null,null,null,0]
[{"$f":"IF(Descriptions!K53=\"Church Running Expenses\",Descriptions!I53,0)","v":0},{"$f":"SUMPRODUCT((WorkingP!$A$5:$A$83='Payments - Summary'!A144)*(WorkingP!$D$5:$E$83))","v":0},null,null,{"$f":"'Prior Year Comparative'!B701","v":0},null,null,null,null,null,null,null,null,null,null,null,null,null,null,null,null,null,null,null,null,null,0]
[{"$f":"IF(Descriptions!K54=\"Church Running Expenses\",Descriptions!I54,0)","v":0},{"$f":"SUMPRODUCT((WorkingP!$A$5:$A$83='Payments - Summary'!A145)*(WorkingP!$D$5:$E$83))","v":0},null,null,{"$f":"'Prior Year Comparative'!B702","v":0},null,null,null,null,null,null,null,null,null,null,null,null,null,null,null,null,null,null,null,null,null,0]
[{"$f":"IF(Descriptions!K55=\"Church Running Expenses\",Descriptions!I55,0)","v":0},{"$f":"SUMPRODUCT((WorkingP!$A$5:$A$83='Payments - Summary'!A146)*(WorkingP!$D$5:$E$83))","v":0},null,null,{"$f":"'Prior Year Comparative'!B703","v":0},null,null,null,null,null,null,null,null,null,null,null,null,null,null,null,null,null,null,null,null,null,0]
[{"$f":"IF(Descriptions!K56=\"Church Running Expenses\",Descriptions!I56,0)","v":0},{"$f":"SUMPRODUCT((WorkingP!$A$5:$A$83='Payments - Summary'!A147)*(WorkingP!$D$5:$E$83))","v":0},null,null,{"$f":"'Prior Year Comparative'!B704","v":0},null,null,null,null,null,null,null,null,null,null,null,null,null,null,null,null,null,null,null,null,null,0]
[{"$f":"IF(Descriptions!K57=\"Church Running Expenses\",Descriptions!I57,0)","v":0},{"$f":"SUMPRODUCT((WorkingP!$A$5:$A$83='Payments - Summary'!A148)*(WorkingP!$D$5:$E$83))","v":0},null,null,{"$f":"'Prior Year Comparative'!B705","v":0},null,null,null,null,null,null,null,null,null,null,null,null,null,null,null,null,null,null,null,null,null,0]
[{"$f":"IF(Descriptions!K58=\"Church Running Expenses\",Descriptions!I58,0)","v":0},{"$f":"SUMPRODUCT((WorkingP!$A$5:$A$83='Payments - Summary'!A149)*(WorkingP!$D$5:$E$83))","v":0},null,null,{"$f":"'Prior Year Comparative'!B706","v":0},null,null,null,null,null,null,null,null,null,null,null,null,null,null,null,null,null,null,null,null,null,0]
[{"$f":"IF(Descriptions!K59=\"Church Running Expenses\",Descriptions!I59,0)","v":0},{"$f":"SUMPRODUCT((WorkingP!$A$5:$A$83='Payments - Summary'!A150)*(WorkingP!$D$5:$E$83))","v":0},null,null,{"$f":"'Prior Year Comparative'!B707","v":0},null,null,null,null,null,null,null,null,null,null,null,null,null,null,null,null,null,null,null,null,null,0]
[{"$f":"IF(Descriptions!K60=\"Church Running Expenses\",Descriptions!I60,0)","v":0},{"$f":"SUMPRODUCT((WorkingP!$A$5:$A$83='Payments - Summary'!A151)*(WorkingP!$D$5:$E$83))","v":0},null,null,{"$f":"'Prior Year Comparative'!B708","v":0},null,null,null,null,null,null,null,null,null,null,null,null,null,null,null,null,null,null,null,null,null,0]
[{"$f":"IF(Descriptions!K61=\"Church Running Expenses\",Descriptions!I61,0)","v":0},{"$f":"SUMPRODUCT((WorkingP!$A$5:$A$83='Payments - Summary'!A152)*(WorkingP!$D$5:$E$83))","v":0},null,null,{"$f":"'Prior Year Comparative'!B709","v":0},null,null,null,null,null,null,null,null,null,null,null,null,null,null,null,null,null,null,null,null,null,0]
[{"$f":"IF(Descriptions!K62=\"Church Running Expenses\",Descriptions!I62,0)","v":0},{"$f":"SUMPRODUCT((WorkingP!$A$5:$A$83='Payments - Summary'!A153)*(WorkingP!$D$5:$E$83))","v":0},null,null,{"$f":"'Prior Year Comparative'!B710","v":0},null,null,null,null,null,null,null,null,null,null,null,null,null,null,null,null,null,null,null,null,null,0]
[{"$f":"IF(Descriptions!K63=\"Church Running Expenses\",Descriptions!I63,0)","v":0},{"$f":"SUMPRODUCT((WorkingP!$A$5:$A$83='Payments - Summary'!A154)*(WorkingP!$D$5:$E$83))","v":0},null,null,{"$f":"'Prior Year Comparative'!B711","v":0},null,null,null,null,null,null,null,null,null,null,null,null,null,null,null,null,null,null,null,null,null,0]
[{"$f":"IF(Descriptions!K64=\"Church Running Expenses\",Descriptions!I64,0)","v":0},{"$f":"SUMPRODUCT((WorkingP!$A$5:$A$83='Payments - Summary'!A155)*(WorkingP!$D$5:$E$83))","v":0},null,null,{"$f":"'Prior Year Comparative'!B712","v":0},null,null,null,null,null,null,null,null,null,null,null,null,null,null,null,null,null,null,null,null,null,0]
[{"$f":"IF(Descriptions!K65=\"Church Running Expenses\",Descriptions!I65,0)","v":0},{"$f":"SUMPRODUCT((WorkingP!$A$5:$A$83='Payments - Summary'!A156)*(WorkingP!$D$5:$E$83))","v":0},null,null,{"$f":"'Prior Year Comparative'!B713","v":0},null,null,null,null,null,null,null,null,null,null,null,null,null,null,null,null,null,null,null,null,null,0]
[{"$f":"IF(Descriptions!K66=\"Church Running Expenses\",Descriptions!I66,0)","v":0},{"$f":"SUMPRODUCT((WorkingP!$A$5:$A$83='Payments - Summary'!A157)*(WorkingP!$D$5:$E$83))","v":0},null,null,{"$f":"'Prior Year Comparative'!B714","v":0},null,null,null,null,null,null,null,null,null,null,null,null,null,null,null,null,null,null,null,null,null,0]
[{"$f":"IF(Descriptions!K67=\"Church Running Expenses\",Descriptions!I67,0)","v":0},{"$f":"SUMPRODUCT((WorkingP!$A$5:$A$83='Payments - Summary'!A158)*(WorkingP!$D$5:$E$83))","v":0},null,null,{"$f":"'Prior Year Comparative'!B715","v":0},null,null,null,null,null,null,null,null,null,null,null,null,null,null,null,null,null,null,null,null,null,0]
[{"$f":"IF(Descriptions!K68=\"Church Running Expenses\",Descriptions!I68,0)","v":0},{"$f":"SUMPRODUCT((WorkingP!$A$5:$A$83='Payments - Summary'!A159)*(WorkingP!$D$5:$E$83))","v":0},null,null,{"$f":"'Prior Year Comparative'!B716","v":0},null,null,null,null,null,null,null,null,null,null,null,null,null,null,null,null,null,null,null,null,null,0]
[{"$f":"IF(Descriptions!K69=\"Church Running Expenses\",Descriptions!I69,0)","v":0},{"$f":"SUMPRODUCT((WorkingP!$A$5:$A$83='Payments - Summary'!A160)*(WorkingP!$D$5:$E$83))","v":0},null,null,{"$f":"'Prior Year Comparative'!B717","v":0},null,null,null,null,null,null,null,null,null,null,null,null,null,null,null,null,null,null,null,null,null,0]
[{"$f":"IF(Descriptions!K70=\"Church Running Expenses\",Descriptions!I70,0)","v":0},{"$f":"SUMPRODUCT((WorkingP!$A$5:$A$83='Payments - Summary'!A161)*(WorkingP!$D$5:$E$83))","v":0},null,null,{"$f":"'Prior Year Comparative'!B718","v":0},null,null,null,null,null,null,null,null,null,null,null,null,null,null,null,null,null,null,null,null,null,0]
[{"$f":"IF(Descriptions!K71=\"Church Running Expenses\",Descriptions!I71,0)","v":0},{"$f":"SUMPRODUCT((WorkingP!$A$5:$A$83='Payments - Summary'!A162)*(WorkingP!$D$5:$E$83))","v":0},null,null,{"$f":"'Prior Year Comparative'!B719","v":0},null,null,null,null,null,null,null,null,null,null,null,null,null,null,null,null,null,null,null,null,null,0]
[{"$f":"IF(Descriptions!K72=\"Church Running Expenses\",Descriptions!I72,0)","v":0},{"$f":"SUMPRODUCT((WorkingP!$A$5:$A$83='Payments - Summary'!A163)*(WorkingP!$D$5:$E$83))","v":0},null,null,{"$f":"'Prior Year Comparative'!B720","v":0},null,null,null,null,null,null,null,null,null,null,null,null,null,null,null,null,null,null,null,null,null,0]
[{"$f":"IF(Descriptions!K73=\"Church Running Expenses\",Descriptions!I73,0)","v":0},{"$f":"SUMPRODUCT((WorkingP!$A$5:$A$83='Payments - Summary'!A164)*(WorkingP!$D$5:$E$83))","v":0},null,null,{"$f":"'Prior Year Comparative'!B721","v":0},null,null,null,null,null,null,null,null,null,null,null,null,null,null,null,null,null,null,null,null,null,0]
[{"$f":"IF(Descriptions!K74=\"Church Running Expenses\",Descriptions!I74,0)","v":0},{"$f":"SUMPRODUCT((WorkingP!$A$5:$A$83='Payments - Summary'!A165)*(WorkingP!$D$5:$E$83))","v":0},null,null,{"$f":"'Prior Year Comparative'!B722","v":0},null,null,null,null,null,null,null,null,null,null,null,null,null,null,null,null,null,null,null,null,null,0]
[{"$f":"IF(Descriptions!K75=\"Church Running Expenses\",Descriptions!I75,0)","v":0},{"$f":"SUMPRODUCT((WorkingP!$A$5:$A$83='Payments - Summary'!A166)*(WorkingP!$D$5:$E$83))","v":0},null,null,{"$f":"'Prior Year Comparative'!B723","v":0},null,null,null,null,null,null,null,null,null,null,null,null,null,null,null,null,null,null,null,null,null,0]
[{"$f":"IF(Descriptions!K76=\"Church Running Expenses\",Descriptions!I76,0)","v":0},{"$f":"SUMPRODUCT((WorkingP!$A$5:$A$83='Payments - Summary'!A167)*(WorkingP!$D$5:$E$83))","v":0},null,null,{"$f":"'Prior Year Comparative'!B724","v":0},null,null,null,null,null,null,null,null,null,null,null,null,null,null,null,null,null,null,null,null,null,0]
[{"$f":"IF(Descriptions!K77=\"Church Running Expenses\",Descriptions!I77,0)","v":0},{"$f":"SUMPRODUCT((WorkingP!$A$5:$A$83='Payments - Summary'!A168)*(WorkingP!$D$5:$E$83))","v":0},null,null,{"$f":"'Prior Year Comparative'!B725","v":0},null,null,null,null,null,null,null,null,null,null,null,null,null,null,null,null,null,null,null,null,null,0]
[{"$f":"IF(Descriptions!K78=\"Church Running Expenses\",Descriptions!I78,0)","v":0},{"$f":"SUMPRODUCT((WorkingP!$A$5:$A$83='Payments - Summary'!A169)*(WorkingP!$D$5:$E$83))","v":0},null,null,{"$f":"'Prior Year Comparative'!B726","v":0},null,null,null,null,null,null,null,null,null,null,null,null,null,null,null,null,null,null,null,null,null,0]
[{"$f":"IF(Descriptions!K79=\"Church Running Expenses\",Descriptions!I79,0)","v":0},{"$f":"SUMPRODUCT((WorkingP!$A$5:$A$83='Payments - Summary'!A170)*(WorkingP!$D$5:$E$83))","v":0},null,null,{"$f":"'Prior Year Comparative'!B727","v":0},null,null,null,null,null,null,null,null,null,null,null,null,null,null,null,null,null,null,null,null,null,0]
[{"$f":"IF(Descriptions!K80=\"Church Running Expenses\",Descriptions!I80,0)","v":0},{"$f":"SUMPRODUCT((WorkingP!$A$5:$A$83='Payments - Summary'!A171)*(WorkingP!$D$5:$E$83))","v":0},null,null,{"$f":"'Prior Year Comparative'!B728","v":0},null,null,null,null,null,null,null,null,null,null,null,null,null,null,null,null,null,null,null,null,null,0]
[{"$f":"IF(Descriptions!K81=\"Church Running Expenses\",Descriptions!I81,0)","v":0},{"$f":"SUMPRODUCT((WorkingP!$A$5:$A$83='Payments - Summary'!A172)*(WorkingP!$D$5:$E$83))","v":0},null,null,{"$f":"'Prior Year Comparative'!B729","v":0},null,null,null,null,null,null,null,null,null,null,null,null,null,null,null,null,null,null,null,null,null,0]
[{"$f":"IF(Descriptions!K82=\"Church Running Expenses\",Descriptions!I82,0)","v":0},{"$f":"SUMPRODUCT((WorkingP!$A$5:$A$83='Payments - Summary'!A173)*(WorkingP!$D$5:$E$83))","v":0},null,null,{"$f":"'Prior Year Comparative'!B730","v":0},null,null,null,null,null,null,null,null,null,null,null,null,null,null,null,null,null,null,null,null,null,0]
[{"$f":"IF(Descriptions!K83=\"Church Running Expenses\",Descriptions!I83,0)","v":0},{"$f":"SUMPRODUCT((WorkingP!$A$5:$A$83='Payments - Summary'!A174)*(WorkingP!$D$5:$E$83))","v":0},null,null,{"$f":"'Prior Year Comparative'!B731","v":0},null,null,null,null,null,null,null,null,null,null,null,null,null,null,null,null,null,null,null,null,null,0]
[{"$f":"IF(Descriptions!K84=\"Church Running Expenses\",Descriptions!I84,0)","v":0},{"$f":"SUMPRODUCT((WorkingP!$A$5:$A$83='Payments - Summary'!A175)*(WorkingP!$D$5:$E$83))","v":0},null,null,{"$f":"'Prior Year Comparative'!B732","v":0},null,null,null,null,null,null,null,null,null,null,null,null,null,null,null,null,null,null,null,null,null,0]
[null,null,{"$f":"SUM(B120:B175)","v":0},null,null,{"$f":"SUM(E120:E175)","v":0},null,null,null,null,null,null,null,null,null,null,null,null,null,null,null,null,null,null,null,null,{"$f":"AA119","v":0}]
["MISSION GIVING AND DONATIONS",null,null,null,null,null,null,null,null,null,null,null,null,null,null,null,null,null,null,null,null,null,null,null,null,null,{"$f":"SUM(AA178:AA231)","v":0}]
["Charities - Home (UK)",{"$f":"SUMPRODUCT((WorkingP!$A$5:$A$83='Payments - Summary'!A178)*(WorkingP!$D$5:$E$83))","v":0},null,null,{"$f":"'Prior Year Comparative'!B735","v":0},null,null,null,null,null,null,null,null,null,null,null,null,null,null,null,null,null,null,null,null,null,{"$f":"Descriptions!AB9","v":0}]
["Charities - Overseas",{"$f":"SUMPRODUCT((WorkingP!$A$5:$A$83='Payments - Summary'!A179)*(WorkingP!$D$5:$E$83))","v":0},null,null,{"$f":"'Prior Year Comparative'!B736","v":0},null,null,null,null,null,null,null,null,null,null,null,null,null,null,null,null,null,null,null,null,null,{"$f":"Descriptions!AB10","v":0}]
["Charities - Secular",{"$f":"SUMPRODUCT((WorkingP!$A$5:$A$83='Payments - Summary'!A180)*(WorkingP!$D$5:$E$83))","v":0},null,null,{"$f":"'Prior Year Comparative'!B737","v":0},null,null,null,null,null,null,null,null,null,null,null,null,null,null,null,null,null,null,null,null,null,{"$f":"Descriptions!AB11","v":0}]
["Charities - Christian Relief",{"$f":"SUMPRODUCT((WorkingP!$A$5:$A$83='Payments - Summary'!A181)*(WorkingP!$D$5:$E$83))","v":0},null,null,{"$f":"'Prior Year Comparative'!B738","v":0},null,null,null,null,null,null,null,null,null,null,null,null,null,null,null,null,null,null,null,null,null,{"$f":"Descriptions!AB8","v":0}]
[{"$f":"IF(Descriptions!K35=\"Mission Giving and Donations\",Descriptions!I35,0)","v":0},{"$f":"SUMPRODUCT((WorkingP!$A$5:$A$83='Payments - Summary'!A182)*(WorkingP!$D$5:$E$83))","v":0},null,null,{"$f":"'Prior Year Comparative'!B739","v":0},null,null,null,null,null,null,null,null,null,null,null,null,null,null,null,null,null,null,null,null,null,{"$f":"IF(A182=0,0,1)","v":0}]
[{"$f":"IF(Descriptions!K36=\"Mission Giving and Donations\",Descriptions!I36,0)","v":0},{"$f":"SUMPRODUCT((WorkingP!$A$5:$A$83='Payments - Summary'!A183)*(WorkingP!$D$5:$E$83))","v":0},null,null,{"$f":"'Prior Year Comparative'!B740","v":0},null,null,null,null,null,null,null,null,null,null,null,null,null,null,null,null,null,null,null,null,null,0]
[{"$f":"IF(Descriptions!K37=\"Mission Giving and Donations\",Descriptions!I37,0)","v":0},{"$f":"SUMPRODUCT((WorkingP!$A$5:$A$83='Payments - Summary'!A184)*(WorkingP!$D$5:$E$83))","v":0},null,null,{"$f":"'Prior Year Comparative'!B741","v":0},null,null,null,null,null,null,null,null,null,null,null,null,null,null,null,null,null,null,null,null,null,0]
[{"$f":"IF(Descriptions!K38=\"Mission Giving and Donations\",Descriptions!I38,0)","v":0},{"$f":"SUMPRODUCT((WorkingP!$A$5:$A$83='Payments - Summary'!A185)*(WorkingP!$D$5:$E$83))","v":0},null,null,{"$f":"'Prior Year Comparative'!B742","v":0},null,null,null,null,null,null,null,null,null,null,null,null,null,null,null,null,null,null,null,null,null,0]
[{"$f":"IF(Descriptions!K39=\"Mission Giving and Donations\",Descriptions!I39,0)","v":0},{"$f":"SUMPRODUCT((WorkingP!$A$5:$A$83='Payments - Summary'!A186)*(WorkingP!$D$5:$E$83))","v":0},null,null,{"$f":"'Prior Year Comparative'!B743","v":0},null,null,null,null,null,null,null,null,null,null,null,null,null,null,null,null,null,null,null,null,null,0]
[{"$f":"IF(Descriptions!K40=\"Mission Giving and Donations\",Descriptions!I40,0)","v":0},{"$f":"SUMPRODUCT((WorkingP!$A$5:$A$83='Payments - Summary'!A187)*(WorkingP!$D$5:$E$83))","v":0},null,null,{"$f":"'Prior Year Comparative'!B744","v":0},null,null,null,null,null,null,null,null,null,null,null,null,null,null,null,null,null,null,null,null,null,0]
[{"$f":"IF(Descriptions!K41=\"Mission Giving and Donations\",Descriptions!I41,0)","v":0},{"$f":"SUMPRODUCT((WorkingP!$A$5:$A$83='Payments - Summary'!A188)*(WorkingP!$D$5:$E$83))","v":0},null,null,{"$f":"'Prior Year Comparative'!B745","v":0},null,null,null,null,null,null,null,null,null,null,null,null,null,null,null,null,null,null,null,null,null,0]
[{"$f":"IF(Descriptions!K42=\"Mission Giving and Donations\",Descriptions!I42,0)","v":0},{"$f":"SUMPRODUCT((WorkingP!$A$5:$A$83='Payments - Summary'!A189)*(WorkingP!$D$5:$E$83))","v":0},null,null,{"$f":"'Prior Year Comparative'!B746","v":0},null,null,null,null,null,null,null,null,null,null,null,null,null,null,null,null,null,null,null,null,null,0]
[{"$f":"IF(Descriptions!K43=\"Mission Giving and Donations\",Descriptions!I43,0)","v":0},{"$f":"SUMPRODUCT((WorkingP!$A$5:$A$83='Payments - Summary'!A190)*(WorkingP!$D$5:$E$83))","v":0},null,null,{"$f":"'Prior Year Comparative'!B747","v":0},null,null,null,null,null,null,null,null,null,null,null,null,null,null,null,null,null,null,null,null,null,0]
[{"$f":"IF(Descriptions!K44=\"Mission Giving and Donations\",Descriptions!I44,0)","v":0},{"$f":"SUMPRODUCT((WorkingP!$A$5:$A$83='Payments - Summary'!A191)*(WorkingP!$D$5:$E$83))","v":0},null,null,{"$f":"'Prior Year Comparative'!B748","v":0},null,null,null,null,null,null,null,null,null,null,null,null,null,null,null,null,null,null,null,null,null,0]
[{"$f":"IF(Descriptions!K45=\"Mission Giving and Donations\",Descriptions!I45,0)","v":0},{"$f":"SUMPRODUCT((WorkingP!$A$5:$A$83='Payments - Summary'!A192)*(WorkingP!$D$5:$E$83))","v":0},null,null,{"$f":"'Prior Year Comparative'!B749","v":0},null,null,null,null,null,null,null,null,null,null,null,null,null,null,null,null,null,null,null,null,null,0]
[{"$f":"IF(Descriptions!K46=\"Mission Giving and Donations\",Descriptions!I46,0)","v":0},{"$f":"SUMPRODUCT((WorkingP!$A$5:$A$83='Payments - Summary'!A193)*(WorkingP!$D$5:$E$83))","v":0},null,null,{"$f":"'Prior Year Comparative'!B750","v":0},null,null,null,null,null,null,null,null,null,null,null,null,null,null,null,null,null,null,null,null,null,0]
[{"$f":"IF(Descriptions!K47=\"Mission Giving and Donations\",Descriptions!I47,0)","v":0},{"$f":"SUMPRODUCT((WorkingP!$A$5:$A$83='Payments - Summary'!A194)*(WorkingP!$D$5:$E$83))","v":0},null,null,{"$f":"'Prior Year Comparative'!B751","v":0},null,null,null,null,null,null,null,null,null,null,null,null,null,null,null,null,null,null,null,null,null,0]
[{"$f":"IF(Descriptions!K48=\"Mission Giving and Donations\",Descriptions!I48,0)","v":0},{"$f":"SUMPRODUCT((WorkingP!$A$5:$A$83='Payments - Summary'!A195)*(WorkingP!$D$5:$E$83))","v":0},null,null,{"$f":"'Prior Year Comparative'!B752","v":0},null,null,null,null,null,null,null,null,null,null,null,null,null,null,null,null,null,null,null,null,null,0]
[{"$f":"IF(Descriptions!K49=\"Mission Giving and Donations\",Descriptions!I49,0)","v":0},{"$f":"SUMPRODUCT((WorkingP!$A$5:$A$83='Payments - Summary'!A196)*(WorkingP!$D$5:$E$83))","v":0},null,null,{"$f":"'Prior Year Comparative'!B753","v":0},null,null,null,null,null,null,null,null,null,null,null,null,null,null,null,null,null,null,null,null,null,0]
[{"$f":"IF(Descriptions!K50=\"Mission Giving and Donations\",Descriptions!I50,0)","v":0},{"$f":"SUMPRODUCT((WorkingP!$A$5:$A$83='Payments - Summary'!A197)*(WorkingP!$D$5:$E$83))","v":0},null,null,{"$f":"'Prior Year Comparative'!B754","v":0},null,null,null,null,null,null,null,null,null,null,null,null,null,null,null,null,null,null,null,null,null,0]
[{"$f":"IF(Descriptions!K51=\"Mission Giving and Donations\",Descriptions!I51,0)","v":0},{"$f":"SUMPRODUCT((WorkingP!$A$5:$A$83='Payments - Summary'!A198)*(WorkingP!$D$5:$E$83))","v":0},null,null,{"$f":"'Prior Year Comparative'!B755","v":0},null,null,null,null,null,null,null,null,null,null,null,null,null,null,null,null,null,null,null,null,null,0]
[{"$f":"IF(Descriptions!K52=\"Mission Giving and Donations\",Descriptions!I52,0)","v":0},{"$f":"SUMPRODUCT((WorkingP!$A$5:$A$83='Payments - Summary'!A199)*(WorkingP!$D$5:$E$83))","v":0},null,null,{"$f":"'Prior Year Comparative'!B756","v":0},null,null,null,null,null,null,null,null,null,null,null,null,null,null,null,null,null,null,null,null,null,0]
[{"$f":"IF(Descriptions!K53=\"Mission Giving and Donations\",Descriptions!I53,0)","v":0},{"$f":"SUMPRODUCT((WorkingP!$A$5:$A$83='Payments - Summary'!A200)*(WorkingP!$D$5:$E$83))","v":0},null,null,{"$f":"'Prior Year Comparative'!B757","v":0},null,null,null,null,null,null,null,null,null,null,null,null,null,null,null,null,null,null,null,null,null,0]
[{"$f":"IF(Descriptions!K54=\"Mission Giving and Donations\",Descriptions!I54,0)","v":0},{"$f":"SUMPRODUCT((WorkingP!$A$5:$A$83='Payments - Summary'!A201)*(WorkingP!$D$5:$E$83))","v":0},null,null,{"$f":"'Prior Year Comparative'!B758","v":0},null,null,null,null,null,null,null,null,null,null,null,null,null,null,null,null,null,null,null,null,null,0]
[{"$f":"IF(Descriptions!K55=\"Mission Giving and Donations\",Descriptions!I55,0)","v":0},{"$f":"SUMPRODUCT((WorkingP!$A$5:$A$83='Payments - Summary'!A202)*(WorkingP!$D$5:$E$83))","v":0},null,null,{"$f":"'Prior Year Comparative'!B759","v":0},null,null,null,null,null,null,null,null,null,null,null,null,null,null,null,null,null,null,null,null,null,0]
[{"$f":"IF(Descriptions!K56=\"Mission Giving and Donations\",Descriptions!I56,0)","v":0},{"$f":"SUMPRODUCT((WorkingP!$A$5:$A$83='Payments - Summary'!A203)*(WorkingP!$D$5:$E$83))","v":0},null,null,{"$f":"'Prior Year Comparative'!B760","v":0},null,null,null,null,null,null,null,null,null,null,null,null,null,null,null,null,null,null,null,null,null,0]
[{"$f":"IF(Descriptions!K57=\"Mission Giving and Donations\",Descriptions!I57,0)","v":0},{"$f":"SUMPRODUCT((WorkingP!$A$5:$A$83='Payments - Summary'!A204)*(WorkingP!$D$5:$E$83))","v":0},null,null,{"$f":"'Prior Year Comparative'!B761","v":0},null,null,null,null,null,null,null,null,null,null,null,null,null,null,null,null,null,null,null,null,null,0]
[{"$f":"IF(Descriptions!K58=\"Mission Giving and Donations\",Descriptions!I58,0)","v":0},{"$f":"SUMPRODUCT((WorkingP!$A$5:$A$83='Payments - Summary'!A205)*(WorkingP!$D$5:$E$83))","v":0},null,null,{"$f":"'Prior Year Comparative'!B762","v":0},null,null,null,null,null,null,null,null,null,null,null,null,null,null,null,null,null,null,null,null,null,0]
[{"$f":"IF(Descriptions!K59=\"Mission Giving and Donations\",Descriptions!I59,0)","v":0},{"$f":"SUMPRODUCT((WorkingP!$A$5:$A$83='Payments - Summary'!A206)*(WorkingP!$D$5:$E$83))","v":0},null,null,{"$f":"'Prior Year Comparative'!B763","v":0},null,null,null,null,null,null,null,null,null,null,null,null,null,null,null,null,null,null,null,null,null,0]
[{"$f":"IF(Descriptions!K60=\"Mission Giving and Donations\",Descriptions!I60,0)","v":0},{"$f":"SUMPRODUCT((WorkingP!$A$5:$A$83='Payments - Summary'!A207)*(WorkingP!$D$5:$E$83))","v":0},null,null,{"$f":"'Prior Year Comparative'!B764","v":0},null,null,null,null,null,null,null,null,null,null,null,null,null,null,null,null,null,null,null,null,null,0]
[{"$f":"IF(Descriptions!K61=\"Mission Giving and Donations\",Descriptions!I61,0)","v":0},{"$f":"SUMPRODUCT((WorkingP!$A$5:$A$83='Payments - Summary'!A208)*(WorkingP!$D$5:$E$83))","v":0},null,null,{"$f":"'Prior Year Comparative'!B765","v":0},null,null,null,null,null,null,null,null,null,null,null,null,null,null,null,null,null,null,null,null,null,0]
[{"$f":"IF(Descriptions!K62=\"Mission Giving and Donations\",Descriptions!I62,0)","v":0},{"$f":"SUMPRODUCT((WorkingP!$A$5:$A$83='Payments - Summary'!A209)*(WorkingP!$D$5:$E$83))","v":0},null,null,{"$f":"'Prior Year Comparative'!B766","v":0},null,null,null,null,null,null,null,null,null,null,null,null,null,null,null,null,null,null,null,null,null,0]
[{"$f":"IF(Descriptions!K63=\"Mission Giving and Donations\",Descriptions!I63,0)","v":0},{"$f":"SUMPRODUCT((WorkingP!$A$5:$A$83='Payments - Summary'!A210)*(WorkingP!$D$5:$E$83))","v":0},null,null,{"$f":"'Prior Year Comparative'!B767","v":0},null,null,null,null,null,null,null,null,null,null,null,null,null,null,null,null,null,null,null,null,null,0]
[{"$f":"IF(Descriptions!K64=\"Mission Giving and Donations\",Descriptions!I64,0)","v":0},{"$f":"SUMPRODUCT((WorkingP!$A$5:$A$83='Payments - Summary'!A211)*(WorkingP!$D$5:$E$83))","v":0},null,null,{"$f":"'Prior Year Comparative'!B768","v":0},null,null,null,null,null,null,null,null,null,null,null,null,null,null,null,null,null,null,null,null,null,0]
[{"$f":"IF(Descriptions!K65=\"Mission Giving and Donations\",Descriptions!I65,0)","v":0},{"$f":"SUMPRODUCT((WorkingP!$A$5:$A$83='Payments - Summary'!A212)*(WorkingP!$D$5:$E$83))","v":0},null,null,{"$f":"'Prior Year Comparative'!B769","v":0},null,null,null,null,null,null,null,null,null,null,null,null,null,null,null,null,null,null,null,null,null,0]
[{"$f":"IF(Descriptions!K66=\"Mission Giving and Donations\",Descriptions!I66,0)","v":0},{"$f":"SUMPRODUCT((WorkingP!$A$5:$A$83='Payments - Summary'!A213)*(WorkingP!$D$5:$E$83))","v":0},null,null,{"$f":"'Prior Year Comparative'!B770","v":0},null,null,null,null,null,null,null,null,null,null,null,null,null,null,null,null,null,null,null,null,null,0]
[{"$f":"IF(Descriptions!K67=\"Mission Giving and Donations\",Descriptions!I67,0)","v":0},{"$f":"SUMPRODUCT((WorkingP!$A$5:$A$83='Payments - Summary'!A214)*(WorkingP!$D$5:$E$83))","v":0},null,null,{"$f":"'Prior Year Comparative'!B771","v":0},null,null,null,null,null,null,null,null,null,null,null,null,null,null,null,null,null,null,null,null,null,0]
[{"$f":"IF(Descriptions!K68=\"Mission Giving and Donations\",Descriptions!I68,0)","v":0},{"$f":"SUMPRODUCT((WorkingP!$A$5:$A$83='Payments - Summary'!A215)*(WorkingP!$D$5:$E$83))","v":0},null,null,{"$f":"'Prior Year Comparative'!B772","v":0},null,null,null,null,null,null,null,null,null,null,null,null,null,null,null,null,null,null,null,null,null,0]
[{"$f":"IF(Descriptions!K69=\"Mission Giving and Donations\",Descriptions!I69,0)","v":0},{"$f":"SUMPRODUCT((WorkingP!$A$5:$A$83='Payments - Summary'!A216)*(WorkingP!$D$5:$E$83))","v":0},null,null,{"$f":"'Prior Year Comparative'!B773","v":0},null,null,null,null,null,null,null,null,null,null,null,null,null,null,null,null,null,null,null,null,null,0]
[{"$f":"IF(Descriptions!K70=\"Mission Giving and Donations\",Descriptions!I70,0)","v":0},{"$f":"SUMPRODUCT((WorkingP!$A$5:$A$83='Payments - Summary'!A217)*(WorkingP!$D$5:$E$83))","v":0},null,null,{"$f":"'Prior Year Comparative'!B774","v":0},null,null,null,null,null,null,null,null,null,null,null,null,null,null,null,null,null,null,null,null,null,0]
[{"$f":"IF(Descriptions!K71=\"Mission Giving and Donations\",Descriptions!I71,0)","v":0},{"$f":"SUMPRODUCT((WorkingP!$A$5:$A$83='Payments - Summary'!A218)*(WorkingP!$D$5:$E$83))","v":0},null,null,{"$f":"'Prior Year Comparative'!B775","v":0},null,null,null,null,null,null,null,null,null,null,null,null,null,null,null,null,null,null,null,null,null,0]
[{"$f":"IF(Descriptions!K72=\"Mission Giving and Donations\",Descriptions!I72,0)","v":0},{"$f":"SUMPRODUCT((WorkingP!$A$5:$A$83='Payments - Summary'!A219)*(WorkingP!$D$5:$E$83))","v":0},null,null,{"$f":"'Prior Year Comparative'!B776","v":0},null,null,null,null,null,null,null,null,null,null,null,null,null,null,null,null,null,null,null,null,null,0]
[{"$f":"IF(Descriptions!K73=\"Mission Giving and Donations\",Descriptions!I73,0)","v":0},{"$f":"SUMPRODUCT((WorkingP!$A$5:$A$83='Payments - Summary'!A220)*(WorkingP!$D$5:$E$83))","v":0},null,null,{"$f":"'Prior Year Comparative'!B777","v":0},null,null,null,null,null,null,null,null,null,null,null,null,null,null,null,null,null,null,null,null,null,0]
[{"$f":"IF(Descriptions!K74=\"Mission Giving and Donations\",Descriptions!I74,0)","v":0},{"$f":"SUMPRODUCT((WorkingP!$A$5:$A$83='Payments - Summary'!A221)*(WorkingP!$D$5:$E$83))","v":0},null,null,{"$f":"'Prior Year Comparative'!B778","v":0},null,null,null,null,null,null,null,null,null,null,null,null,null,null,null,null,null,null,null,null,null,0]
[{"$f":"IF(Descriptions!K75=\"Mission Giving and Donations\",Descriptions!I75,0)","v":0},{"$f":"SUMPRODUCT((WorkingP!$A$5:$A$83='Payments - Summary'!A222)*(WorkingP!$D$5:$E$83))","v":0},null,null,{"$f":"'Prior Year Comparative'!B779","v":0},null,null,null,null,null,null,null,null,null,null,null,null,null,null,null,null,null,null,null,null,null,0]
[{"$f":"IF(Descriptions!K76=\"Mission Giving and Donations\",Descriptions!I76,0)","v":0},{"$f":"SUMPRODUCT((WorkingP!$A$5:$A$83='Payments - Summary'!A223)*(WorkingP!$D$5:$E$83))","v":0},null,null,{"$f":"'Prior Year Comparative'!B780","v":0},null,null,null,null,null,null,null,null,null,null,null,null,null,null,null,null,null,null,null,null,null,0]
[{"$f":"IF(Descriptions!K77=\"Mission Giving and Donations\",Descriptions!I77,0)","v":0},{"$f":"SUMPRODUCT((WorkingP!$A$5:$A$83='Payments - Summary'!A224)*(WorkingP!$D$5:$E$83))","v":0},null,null,{"$f":"'Prior Year Comparative'!B781","v":0},null,null,null,null,null,null,null,null,null,null,null,null,null,null,null,null,null,null,null,null,null,0]
[{"$f":"IF(Descriptions!K78=\"Mission Giving and Donations\",Descriptions!I78,0)","v":0},{"$f":"SUMPRODUCT((WorkingP!$A$5:$A$83='Payments - Summary'!A225)*(WorkingP!$D$5:$E$83))","v":0},null,null,{"$f":"'Prior Year Comparative'!B782","v":0},null,null,null,null,null,null,null,null,null,null,null,null,null,null,null,null,null,null,null,null,null,0]
[{"$f":"IF(Descriptions!K79=\"Mission Giving and Donations\",Descriptions!I79,0)","v":0},{"$f":"SUMPRODUCT((WorkingP!$A$5:$A$83='Payments - Summary'!A226)*(WorkingP!$D$5:$E$83))","v":0},null,null,{"$f":"'Prior Year Comparative'!B783","v":0},null,null,null,null,null,null,null,null,null,null,null,null,null,null,null,null,null,null,null,null,null,0]
[{"$f":"IF(Descriptions!K80=\"Mission Giving and Donations\",Descriptions!I80,0)","v":0},{"$f":"SUMPRODUCT((WorkingP!$A$5:$A$83='Payments - Summary'!A227)*(WorkingP!$D$5:$E$83))","v":0},null,null,{"$f":"'Prior Year Comparative'!B784","v":0},null,null,null,null,null,null,null,null,null,null,null,null,null,null,null,null,null,null,null,null,null,0]
[{"$f":"IF(Descriptions!K81=\"Mission Giving and Donations\",Descriptions!I81,0)","v":0},{"$f":"SUMPRODUCT((WorkingP!$A$5:$A$83='Payments - Summary'!A228)*(WorkingP!$D$5:$E$83))","v":0},null,null,{"$f":"'Prior Year Comparative'!B785","v":0},null,null,null,null,null,null,null,null,null,null,null,null,null,null,null,null,null,null,null,null,null,0]
[{"$f":"IF(Descriptions!K82=\"Mission Giving and Donations\",Descriptions!I82,0)","v":0},{"$f":"SUMPRODUCT((WorkingP!$A$5:$A$83='Payments - Summary'!A229)*(WorkingP!$D$5:$E$83))","v":0},null,null,{"$f":"'Prior Year Comparative'!B786","v":0},null,null,null,null,null,null,null,null,null,null,null,null,null,null,null,null,null,null,null,null,null,0]
[{"$f":"IF(Descriptions!K83=\"Mission Giving and Donations\",Descriptions!I83,0)","v":0},{"$f":"SUMPRODUCT((WorkingP!$A$5:$A$83='Payments - Summary'!A230)*(WorkingP!$D$5:$E$83))","v":0},null,null,{"$f":"'Prior Year Comparative'!B787","v":0},null,null,null,null,null,null,null,null,null,null,null,null,null,null,null,null,null,null,null,null,null,0]
[{"$f":"IF(Descriptions!K84=\"Mission Giving and Donations\",Descriptions!I84,0)","v":0},{"$f":"SUMPRODUCT((WorkingP!$A$5:$A$83='Payments - Summary'!A231)*(WorkingP!$D$5:$E$83))","v":0},null,null,{"$f":"'Prior Year Comparative'!B788","v":0},null,null,null,null,null,null,null,null,null,null,null,null,null,null,null,null,null,null,null,null,null,0]
[null,null,{"$f":"SUM(B178:B231)","v":0},null,null,{"$f":"SUM(E178:E231)","v":0},null,null,null,null,null,null,null,null,null,null,null,null,null,null,null,null,null,null,null,null,{"$f":"AA177","v":0}]
["BUILDING WORK AND REPAIRS",null,null,null,null,null,null,null,null,null,null,null,null,null,null,null,null,null,null,null,null,null,null,null,null,null,{"$f":"SUM(AA234:AA286)","v":0}]
["Church - Major repairs and Redecorations",{"$f":"SUMPRODUCT((WorkingP!$A$5:$A$83='Payments - Summary'!A234)*(WorkingP!$D$5:$E$83))","v":0},null,null,{"$f":"'Prior Year Comparative'!B791","v":0},null,null,null,null,null,null,null,null,null,null,null,null,null,null,null,null,null,null,null,null,null,{"$f":"Descriptions!AB12","v":0}]
["Hall/Other Buildings - Major Repairs and Redecorations",{"$f":"SUMPRODUCT((WorkingP!$A$5:$A$83='Payments - Summary'!A235)*(WorkingP!$D$5:$E$83))","v":0},null,null,{"$f":"'Prior Year Comparative'!B792","v":0},null,null,null,null,null,null,null,null,null,null,null,null,null,null,null,null,null,null,null,null,null,{"$f":"Descriptions!AB19","v":0}]
["New Building Work",{"$f":"SUMPRODUCT((WorkingP!$A$5:$A$83='Payments - Summary'!A236)*(WorkingP!$D$5:$E$83))","v":0},null,null,{"$f":"'Prior Year Comparative'!B793","v":0},null,null,null,null,null,null,null,null,null,null,null,null,null,null,null,null,null,null,null,null,null,{"$f":"Descriptions!AB23","v":0}]
[{"$f":"IF(Descriptions!K35=\"Building Work and Repairs\",Descriptions!I35,0)","v":0},{"$f":"SUMPRODUCT((WorkingP!$A$5:$A$83='Payments - Summary'!A237)*(WorkingP!$D$5:$E$83))","v":0},null,null,{"$f":"'Prior Year Comparative'!B794","v":0},null,null,null,null,null,null,null,null,null,null,null,null,null,null,null,null,null,null,null,null,null,{"$f":"IF(A237=0,0,1)","v":0}]
[{"$f":"IF(Descriptions!K36=\"Building Work and Repairs\",Descriptions!I36,0)","v":0},{"$f":"SUMPRODUCT((WorkingP!$A$5:$A$83='Payments - Summary'!A238)*(WorkingP!$D$5:$E$83))","v":0},null,null,{"$f":"'Prior Year Comparative'!B795","v":0},null,null,null,null,null,null,null,null,null,null,null,null,null,null,null,null,null,null,null,null,null,0]
[{"$f":"IF(Descriptions!K37=\"Building Work and Repairs\",Descriptions!I37,0)","v":0},{"$f":"SUMPRODUCT((WorkingP!$A$5:$A$83='Payments - Summary'!A239)*(WorkingP!$D$5:$E$83))","v":0},null,null,{"$f":"'Prior Year Comparative'!B796","v":0},null,null,null,null,null,null,null,null,null,null,null,null,null,null,null,null,null,null,null,null,null,0]
[{"$f":"IF(Descriptions!K38=\"Building Work and Repairs\",Descriptions!I38,0)","v":0},{"$f":"SUMPRODUCT((WorkingP!$A$5:$A$83='Payments - Summary'!A240)*(WorkingP!$D$5:$E$83))","v":0},null,null,{"$f":"'Prior Year Comparative'!B797","v":0},null,null,null,null,null,null,null,null,null,null,null,null,null,null,null,null,null,null,null,null,null,0]
[{"$f":"IF(Descriptions!K39=\"Building Work and Repairs\",Descriptions!I39,0)","v":0},{"$f":"SUMPRODUCT((WorkingP!$A$5:$A$83='Payments - Summary'!A241)*(WorkingP!$D$5:$E$83))","v":0},null,null,{"$f":"'Prior Year Comparative'!B798","v":0},null,null,null,null,null,null,null,null,null,null,null,null,null,null,null,null,null,null,null,null,null,0]
[{"$f":"IF(Descriptions!K40=\"Building Work and Repairs\",Descriptions!I40,0)","v":0},{"$f":"SUMPRODUCT((WorkingP!$A$5:$A$83='Payments - Summary'!A242)*(WorkingP!$D$5:$E$83))","v":0},null,null,{"$f":"'Prior Year Comparative'!B799","v":0},null,null,null,null,null,null,null,null,null,null,null,null,null,null,null,null,null,null,null,null,null,0]
[{"$f":"IF(Descriptions!K41=\"Building Work and Repairs\",Descriptions!I41,0)","v":0},{"$f":"SUMPRODUCT((WorkingP!$A$5:$A$83='Payments - Summary'!A243)*(WorkingP!$D$5:$E$83))","v":0},null,null,{"$f":"'Prior Year Comparative'!B800","v":0},null,null,null,null,null,null,null,null,null,null,null,null,null,null,null,null,null,null,null,null,null,0]
[{"$f":"IF(Descriptions!K42=\"Building Work and Repairs\",Descriptions!I42,0)","v":0},{"$f":"SUMPRODUCT((WorkingP!$A$5:$A$83='Payments - Summary'!A244)*(WorkingP!$D$5:$E$83))","v":0},null,null,{"$f":"'Prior Year Comparative'!B801","v":0},null,null,null,null,null,null,null,null,null,null,null,null,null,null,null,null,null,null,null,null,null,0]
[{"$f":"IF(Descriptions!K43=\"Building Work and Repairs\",Descriptions!I43,0)","v":0},{"$f":"SUMPRODUCT((WorkingP!$A$5:$A$83='Payments - Summary'!A245)*(WorkingP!$D$5:$E$83))","v":0},null,null,{"$f":"'Prior Year Comparative'!B802","v":0},null,null,null,null,null,null,null,null,null,null,null,null,null,null,null,null,null,null,null,null,null,0]
[{"$f":"IF(Descriptions!K44=\"Building Work and Repairs\",Descriptions!I44,0)","v":0},{"$f":"SUMPRODUCT((WorkingP!$A$5:$A$83='Payments - Summary'!A246)*(WorkingP!$D$5:$E$83))","v":0},null,null,{"$f":"'Prior Year Comparative'!B803","v":0},null,null,null,null,null,null,null,null,null,null,null,null,null,null,null,null,null,null,null,null,null,0]
[{"$f":"IF(Descriptions!K45=\"Building Work and Repairs\",Descriptions!I45,0)","v":0},{"$f":"SUMPRODUCT((WorkingP!$A$5:$A$83='Payments - Summary'!A247)*(WorkingP!$D$5:$E$83))","v":0},null,null,{"$f":"'Prior Year Comparative'!B804","v":0},null,null,null,null,null,null,null,null,null,null,null,null,null,null,null,null,null,null,null,null,null,0]
[{"$f":"IF(Descriptions!K46=\"Building Work and Repairs\",Descriptions!I46,0)","v":0},{"$f":"SUMPRODUCT((WorkingP!$A$5:$A$83='Payments - Summary'!A248)*(WorkingP!$D$5:$E$83))","v":0},null,null,{"$f":"'Prior Year Comparative'!B805","v":0},null,null,null,null,null,null,null,null,null,null,null,null,null,null,null,null,null,null,null,null,null,0]
[{"$f":"IF(Descriptions!K47=\"Building Work and Repairs\",Descriptions!I47,0)","v":0},{"$f":"SUMPRODUCT((WorkingP!$A$5:$A$83='Payments - Summary'!A249)*(WorkingP!$D$5:$E$83))","v":0},null,null,{"$f":"'Prior Year Comparative'!B806","v":0},null,null,null,null,null,null,null,null,null,null,null,null,null,null,null,null,null,null,null,null,null,0]
[{"$f":"IF(Descriptions!K48=\"Building Work and Repairs\",Descriptions!I48,0)","v":0},{"$f":"SUMPRODUCT((WorkingP!$A$5:$A$83='Payments - Summary'!A250)*(WorkingP!$D$5:$E$83))","v":0},null,null,{"$f":"'Prior Year Comparative'!B807","v":0},null,null,null,null,null,null,null,null,null,null,null,null,null,null,null,null,null,null,null,null,null,0]
[{"$f":"IF(Descriptions!K49=\"Building Work and Repairs\",Descriptions!I49,0)","v":0},{"$f":"SUMPRODUCT((WorkingP!$A$5:$A$83='Payments - Summary'!A251)*(WorkingP!$D$5:$E$83))","v":0},null,null,{"$f":"'Prior Year Comparative'!B808","v":0},null,null,null,null,null,null,null,null,null,null,null,null,null,null,null,null,null,null,null,null,null,0]
[{"$f":"IF(Descriptions!K50=\"Building Work and Repairs\",Descriptions!I50,0)","v":0},{"$f":"SUMPRODUCT((WorkingP!$A$5:$A$83='Payments - Summary'!A252)*(WorkingP!$D$5:$E$83))","v":0},null,null,{"$f":"'Prior Year Comparative'!B809","v":0},null,null,null,null,null,null,null,null,null,null,null,null,null,null,null,null,null,null,null,null,null,0]
[{"$f":"IF(Descriptions!K51=\"Building Work and Repairs\",Descriptions!I51,0)","v":0},{"$f":"SUMPRODUCT((WorkingP!$A$5:$A$83='Payments - Summary'!A253)*(WorkingP!$D$5:$E$83))","v":0},null,null,{"$f":"'Prior Year Comparative'!B810","v":0},null,null,null,null,null,null,null,null,null,null,null,null,null,null,null,null,null,null,null,null,null,0]
[{"$f":"IF(Descriptions!K52=\"Building Work and Repairs\",Descriptions!I52,0)","v":0},{"$f":"SUMPRODUCT((WorkingP!$A$5:$A$83='Payments - Summary'!A254)*(WorkingP!$D$5:$E$83))","v":0},null,null,{"$f":"'Prior Year Comparative'!B811","v":0},null,null,null,null,null,null,null,null,null,null,null,null,null,null,null,null,null,null,null,null,null,0]
[{"$f":"IF(Descriptions!K53=\"Building Work and Repairs\",Descriptions!I53,0)","v":0},{"$f":"SUMPRODUCT((WorkingP!$A$5:$A$83='Payments - Summary'!A255)*(WorkingP!$D$5:$E$83))","v":0},null,null,{"$f":"'Prior Year Comparative'!B812","v":0},null,null,null,null,null,null,null,null,null,null,null,null,null,null,null,null,null,null,null,null,null,0]
[{"$f":"IF(Descriptions!K54=\"Building Work and Repairs\",Descriptions!I54,0)","v":0},{"$f":"SUMPRODUCT((WorkingP!$A$5:$A$83='Payments - Summary'!A256)*(WorkingP!$D$5:$E$83))","v":0},null,null,{"$f":"'Prior Year Comparative'!B813","v":0},null,null,null,null,null,null,null,null,null,null,null,null,null,null,null,null,null,null,null,null,null,0]
[{"$f":"IF(Descriptions!K55=\"Building Work and Repairs\",Descriptions!I55,0)","v":0},{"$f":"SUMPRODUCT((WorkingP!$A$5:$A$83='Payments - Summary'!A257)*(WorkingP!$D$5:$E$83))","v":0},null,null,{"$f":"'Prior Year Comparative'!B814","v":0},null,null,null,null,null,null,null,null,null,null,null,null,null,null,null,null,null,null,null,null,null,0]
[{"$f":"IF(Descriptions!K56=\"Building Work and Repairs\",Descriptions!I56,0)","v":0},{"$f":"SUMPRODUCT((WorkingP!$A$5:$A$83='Payments - Summary'!A258)*(WorkingP!$D$5:$E$83))","v":0},null,null,{"$f":"'Prior Year Comparative'!B815","v":0},null,null,null,null,null,null,null,null,null,null,null,null,null,null,null,null,null,null,null,null,null,0]
[{"$f":"IF(Descriptions!K57=\"Building Work and Repairs\",Descriptions!I57,0)","v":0},{"$f":"SUMPRODUCT((WorkingP!$A$5:$A$83='Payments - Summary'!A259)*(WorkingP!$D$5:$E$83))","v":0},null,null,{"$f":"'Prior Year Comparative'!B816","v":0},null,null,null,null,null,null,null,null,null,null,null,null,null,null,null,null,null,null,null,null,null,0]
[{"$f":"IF(Descriptions!K58=\"Building Work and Repairs\",Descriptions!I58,0)","v":0},{"$f":"SUMPRODUCT((WorkingP!$A$5:$A$83='Payments - Summary'!A260)*(WorkingP!$D$5:$E$83))","v":0},null,null,{"$f":"'Prior Year Comparative'!B817","v":0},null,null,null,null,null,null,null,null,null,null,null,null,null,null,null,null,null,null,null,null,null,0]
[{"$f":"IF(Descriptions!K59=\"Building Work and Repairs\",Descriptions!I59,0)","v":0},{"$f":"SUMPRODUCT((WorkingP!$A$5:$A$83='Payments - Summary'!A261)*(WorkingP!$D$5:$E$83))","v":0},null,null,{"$f":"'Prior Year Comparative'!B818","v":0},null,null,null,null,null,null,null,null,null,null,null,null,null,null,null,null,null,null,null,null,null,0]
[{"$f":"IF(Descriptions!K60=\"Building Work and Repairs\",Descriptions!I60,0)","v":0},{"$f":"SUMPRODUCT((WorkingP!$A$5:$A$83='Payments - Summary'!A262)*(WorkingP!$D$5:$E$83))","v":0},null,null,{"$f":"'Prior Year Comparative'!B819","v":0},null,null,null,null,null,null,null,null,null,null,null,null,null,null,null,null,null,null,null,null,null,0]
[{"$f":"IF(Descriptions!K61=\"Building Work and Repairs\",Descriptions!I61,0)","v":0},{"$f":"SUMPRODUCT((WorkingP!$A$5:$A$83='Payments - Summary'!A263)*(WorkingP!$D$5:$E$83))","v":0},null,null,{"$f":"'Prior Year Comparative'!B820","v":0},null,null,null,null,null,null,null,null,null,null,null,null,null,null,null,null,null,null,null,null,null,0]
[{"$f":"IF(Descriptions!K62=\"Building Work and Repairs\",Descriptions!I62,0)","v":0},{"$f":"SUMPRODUCT((WorkingP!$A$5:$A$83='Payments - Summary'!A264)*(WorkingP!$D$5:$E$83))","v":0},null,null,{"$f":"'Prior Year Comparative'!B821","v":0},null,null,null,null,null,null,null,null,null,null,null,null,null,null,null,null,null,null,null,null,null,0]
[{"$f":"IF(Descriptions!K63=\"Building Work and Repairs\",Descriptions!I63,0)","v":0},{"$f":"SUMPRODUCT((WorkingP!$A$5:$A$83='Payments - Summary'!A265)*(WorkingP!$D$5:$E$83))","v":0},null,null,{"$f":"'Prior Year Comparative'!B822","v":0},null,null,null,null,null,null,null,null,null,null,null,null,null,null,null,null,null,null,null,null,null,0]
[{"$f":"IF(Descriptions!K64=\"Building Work and Repairs\",Descriptions!I64,0)","v":0},{"$f":"SUMPRODUCT((WorkingP!$A$5:$A$83='Payments - Summary'!A266)*(WorkingP!$D$5:$E$83))","v":0},null,null,{"$f":"'Prior Year Comparative'!B823","v":0},null,null,null,null,null,null,null,null,null,null,null,null,null,null,null,null,null,null,null,null,null,0]
[{"$f":"IF(Descriptions!K65=\"Building Work and Repairs\",Descriptions!I65,0)","v":0},{"$f":"SUMPRODUCT((WorkingP!$A$5:$A$83='Payments - Summary'!A267)*(WorkingP!$D$5:$E$83))","v":0},null,null,{"$f":"'Prior Year Comparative'!B824","v":0},null,null,null,null,null,null,null,null,null,null,null,null,null,null,null,null,null,null,null,null,null,0]
[{"$f":"IF(Descriptions!K66=\"Building Work and Repairs\",Descriptions!I66,0)","v":0},{"$f":"SUMPRODUCT((WorkingP!$A$5:$A$83='Payments - Summary'!A268)*(WorkingP!$D$5:$E$83))","v":0},null,null,{"$f":"'Prior Year Comparative'!B825","v":0},null,null,null,null,null,null,null,null,null,null,null,null,null,null,null,null,null,null,null,null,null,0]
[{"$f":"IF(Descriptions!K67=\"Building Work and Repairs\",Descriptions!I67,0)","v":0},{"$f":"SUMPRODUCT((WorkingP!$A$5:$A$83='Payments - Summary'!A269)*(WorkingP!$D$5:$E$83))","v":0},null,null,{"$f":"'Prior Year Comparative'!B826","v":0},null,null,null,null,null,null,null,null,null,null,null,null,null,null,null,null,null,null,null,null,null,0]
[{"$f":"IF(Descriptions!K68=\"Building Work and Repairs\",Descriptions!I68,0)","v":0},{"$f":"SUMPRODUCT((WorkingP!$A$5:$A$83='Payments - Summary'!A270)*(WorkingP!$D$5:$E$83))","v":0},null,null,{"$f":"'Prior Year Comparative'!B827","v":0},null,null,null,null,null,null,null,null,null,null,null,null,null,null,null,null,null,null,null,null,null,0]
[{"$f":"IF(Descriptions!K69=\"Building Work and Repairs\",Descriptions!I69,0)","v":0},{"$f":"SUMPRODUCT((WorkingP!$A$5:$A$83='Payments - Summary'!A271)*(WorkingP!$D$5:$E$83))","v":0},null,null,{"$f":"'Prior Year Comparative'!B828","v":0},null,null,null,null,null,null,null,null,null,null,null,null,null,null,null,null,null,null,null,null,null,0]
[{"$f":"IF(Descriptions!K70=\"Building Work and Repairs\",Descriptions!I70,0)","v":0},{"$f":"SUMPRODUCT((WorkingP!$A$5:$A$83='Payments - Summary'!A272)*(WorkingP!$D$5:$E$83))","v":0},null,null,{"$f":"'Prior Year Comparative'!B829","v":0},null,null,null,null,null,null,null,null,null,null,null,null,null,null,null,null,null,null,null,null,null,0]
[{"$f":"IF(Descriptions!K71=\"Building Work and Repairs\",Descriptions!I71,0)","v":0},{"$f":"SUMPRODUCT((WorkingP!$A$5:$A$83='Payments - Summary'!A273)*(WorkingP!$D$5:$E$83))","v":0},null,null,{"$f":"'Prior Year Comparative'!B830","v":0},null,null,null,null,null,null,null,null,null,null,null,null,null,null,null,null,null,null,null,null,null,0]
[{"$f":"IF(Descriptions!K72=\"Building Work and Repairs\",Descriptions!I72,0)","v":0},{"$f":"SUMPRODUCT((WorkingP!$A$5:$A$83='Payments - Summary'!A274)*(WorkingP!$D$5:$E$83))","v":0},null,null,{"$f":"'Prior Year Comparative'!B831","v":0},null,null,null,null,null,null,null,null,null,null,null,null,null,null,null,null,null,null,null,null,null,0]
[{"$f":"IF(Descriptions!K73=\"Building Work and Repairs\",Descriptions!I73,0)","v":0},{"$f":"SUMPRODUCT((WorkingP!$A$5:$A$83='Payments - Summary'!A275)*(WorkingP!$D$5:$E$83))","v":0},null,null,{"$f":"'Prior Year Comparative'!B832","v":0},null,null,null,null,null,null,null,null,null,null,null,null,null,null,null,null,null,null,null,null,null,0]
[{"$f":"IF(Descriptions!K74=\"Building Work and Repairs\",Descriptions!I74,0)","v":0},{"$f":"SUMPRODUCT((WorkingP!$A$5:$A$83='Payments - Summary'!A276)*(WorkingP!$D$5:$E$83))","v":0},null,null,{"$f":"'Prior Year Comparative'!B833","v":0},null,null,null,null,null,null,null,null,null,null,null,null,null,null,null,null,null,null,null,null,null,0]
[{"$f":"IF(Descriptions!K75=\"Building Work and Repairs\",Descriptions!I75,0)","v":0},{"$f":"SUMPRODUCT((WorkingP!$A$5:$A$83='Payments - Summary'!A277)*(WorkingP!$D$5:$E$83))","v":0},null,null,{"$f":"'Prior Year Comparative'!B834","v":0},null,null,null,null,null,null,null,null,null,null,null,null,null,null,null,null,null,null,null,null,null,0]
[{"$f":"IF(Descriptions!K76=\"Building Work and Repairs\",Descriptions!I76,0)","v":0},{"$f":"SUMPRODUCT((WorkingP!$A$5:$A$83='Payments - Summary'!A278)*(WorkingP!$D$5:$E$83))","v":0},null,null,{"$f":"'Prior Year Comparative'!B835","v":0},null,null,null,null,null,null,null,null,null,null,null,null,null,null,null,null,null,null,null,null,null,0]
[{"$f":"IF(Descriptions!K77=\"Building Work and Repairs\",Descriptions!I77,0)","v":0},{"$f":"SUMPRODUCT((WorkingP!$A$5:$A$83='Payments - Summary'!A279)*(WorkingP!$D$5:$E$83))","v":0},null,null,{"$f":"'Prior Year Comparative'!B836","v":0},null,null,null,null,null,null,null,null,null,null,null,null,null,null,null,null,null,null,null,null,null,0]
[{"$f":"IF(Descriptions!K78=\"Building Work and Repairs\",Descriptions!I78,0)","v":0},{"$f":"SUMPRODUCT((WorkingP!$A$5:$A$83='Payments - Summary'!A280)*(WorkingP!$D$5:$E$83))","v":0},null,null,{"$f":"'Prior Year Comparative'!B837","v":0},null,null,null,null,null,null,null,null,null,null,null,null,null,null,null,null,null,null,null,null,null,0]
[{"$f":"IF(Descriptions!K79=\"Building Work and Repairs\",Descriptions!I79,0)","v":0},{"$f":"SUMPRODUCT((WorkingP!$A$5:$A$83='Payments - Summary'!A281)*(WorkingP!$D$5:$E$83))","v":0},null,null,{"$f":"'Prior Year Comparative'!B838","v":0},null,null,null,null,null,null,null,null,null,null,null,null,null,null,null,null,null,null,null,null,null,0]
[{"$f":"IF(Descriptions!K80=\"Building Work and Repairs\",Descriptions!I80,0)","v":0},{"$f":"SUMPRODUCT((WorkingP!$A$5:$A$83='Payments - Summary'!A282)*(WorkingP!$D$5:$E$83))","v":0},null,null,{"$f":"'Prior Year Comparative'!B839","v":0},null,null,null,null,null,null,null,null,null,null,null,null,null,null,null,null,null,null,null,null,null,0]
[{"$f":"IF(Descriptions!K81=\"Building Work and Repairs\",Descriptions!I81,0)","v":0},{"$f":"SUMPRODUCT((WorkingP!$A$5:$A$83='Payments - Summary'!A283)*(WorkingP!$D$5:$E$83))","v":0},null,null,{"$f":"'Prior Year Comparative'!B840","v":0},null,null,null,null,null,null,null,null,null,null,null,null,null,null,null,null,null,null,null,null,null,0]
[{"$f":"IF(Descriptions!K82=\"Building Work and Repairs\",Descriptions!I82,0)","v":0},{"$f":"SUMPRODUCT((WorkingP!$A$5:$A$83='Payments - Summary'!A284)*(WorkingP!$D$5:$E$83))","v":0},null,null,{"$f":"'Prior Year Comparative'!B841","v":0},null,null,null,null,null,null,null,null,null,null,null,null,null,null,null,null,null,null,null,null,null,0]
[{"$f":"IF(Descriptions!K83=\"Building Work and Repairs\",Descriptions!I83,0)","v":0},{"$f":"SUMPRODUCT((WorkingP!$A$5:$A$83='Payments - Summary'!A285)*(WorkingP!$D$5:$E$83))","v":0},null,null,{"$f":"'Prior Year Comparative'!B842","v":0},null,null,null,null,null,null,null,null,null,null,null,null,null,null,null,null,null,null,null,null,null,0]
[{"$f":"IF(Descriptions!K84=\"Building Work and Repairs\",Descriptions!I84,0)","v":0},{"$f":"SUMPRODUCT((WorkingP!$A$5:$A$83='Payments - Summary'!A286)*(WorkingP!$D$5:$E$83))","v":0},null,null,{"$f":"'Prior Year Comparative'!B843","v":0},null,null,null,null,null,null,null,null,null,null,null,null,null,null,null,null,null,null,null,null,null,0]
[null,null,{"$f":"SUM(B234:B286)","v":0},null,null,{"$f":"SUM(E234:E286)","v":0},null,null,null,null,null,null,null,null,null,null,null,null,null,null,null,null,null,null,null,null,{"$f":"AA233","v":0}]
["COSTS OF GENERATING FUNDS",null,null,null,null,null,null,null,null,null,null,null,null,null,null,null,null,null,null,null,null,null,null,null,null,null,{"$f":"SUM(AA289:AA342)","v":0}]
["Fund raising",{"$f":"SUMPRODUCT((WorkingP!$A$5:$A$83='Payments - Summary'!A289)*(WorkingP!$D$5:$E$83))","v":0},null,null,{"$f":"'Prior Year Comparative'!B846","v":0},null,null,null,null,null,null,null,null,null,null,null,null,null,null,null,null,null,null,null,null,null,{"$f":"Descriptions!AB17","v":0}]
["Bookstall",{"$f":"SUMPRODUCT((WorkingP!$A$5:$A$83='Payments - Summary'!A290)*(WorkingP!$D$5:$E$83))","v":0},null,null,{"$f":"'Prior Year Comparative'!B847","v":0},null,null,null,null,null,null,null,null,null,null,null,null,null,null,null,null,null,null,null,null,null,{"$f":"Descriptions!AB30","v":0}]
["Magazine",{"$f":"SUMPRODUCT((WorkingP!$A$5:$A$83='Payments - Summary'!A291)*(WorkingP!$D$5:$E$83))","v":0},null,null,{"$f":"'Prior Year Comparative'!B848","v":0},null,null,null,null,null,null,null,null,null,null,null,null,null,null,null,null,null,null,null,null,null,{"$f":"Descriptions!AB32","v":0}]
["Hall Running Costs",{"$f":"SUMPRODUCT((WorkingP!$A$5:$A$83='Payments - Summary'!A292)*(WorkingP!$D$5:$E$83))","v":0},null,null,{"$f":"'Prior Year Comparative'!B849","v":0},null,null,null,null,null,null,null,null,null,null,null,null,null,null,null,null,null,null,null,null,null,{"$f":"Descriptions!AB31","v":0}]
[{"$f":"IF(Descriptions!K35=\"Costs of Generating Funds\",Descriptions!I35,0)","v":0},{"$f":"SUMPRODUCT((WorkingP!$A$5:$A$83='Payments - Summary'!A293)*(WorkingP!$D$5:$E$83))","v":0},null,null,{"$f":"'Prior Year Comparative'!B850","v":0},null,null,null,null,null,null,null,null,null,null,null,null,null,null,null,null,null,null,null,null,null,{"$f":"IF(A293=0,0,1)","v":0}]
[{"$f":"IF(Descriptions!K36=\"Costs of Generating Funds\",Descriptions!I36,0)","v":0},{"$f":"SUMPRODUCT((WorkingP!$A$5:$A$83='Payments - Summary'!A294)*(WorkingP!$D$5:$E$83))","v":0},null,null,{"$f":"'Prior Year Comparative'!B851","v":0},null,null,null,null,null,null,null,null,null,null,null,null,null,null,null,null,null,null,null,null,null,{"$f":"IF(A294=0,0,1)","v":0}]
[{"$f":"IF(Descriptions!K37=\"Costs of Generating Funds\",Descriptions!I37,0)","v":0},{"$f":"SUMPRODUCT((WorkingP!$A$5:$A$83='Payments - Summary'!A295)*(WorkingP!$D$5:$E$83))","v":0},null,null,{"$f":"'Prior Year Comparative'!B852","v":0},null,null,null,null,null,null,null,null,null,null,null,null,null,null,null,null,null,null,null,null,null,{"$f":"IF(A295=0,0,1)","v":0}]
[{"$f":"IF(Descriptions!K38=\"Costs of Generating Funds\",Descriptions!I38,0)","v":0},{"$f":"SUMPRODUCT((WorkingP!$A$5:$A$83='Payments - Summary'!A296)*(WorkingP!$D$5:$E$83))","v":0},null,null,{"$f":"'Prior Year Comparative'!B853","v":0},null,null,null,null,null,null,null,null,null,null,null,null,null,null,null,null,null,null,null,null,null,{"$f":"IF(A296=0,0,1)","v":0}]
[{"$f":"IF(Descriptions!K39=\"Costs of Generating Funds\",Descriptions!I39,0)","v":0},{"$f":"SUMPRODUCT((WorkingP!$A$5:$A$83='Payments - Summary'!A297)*(WorkingP!$D$5:$E$83))","v":0},null,null,{"$f":"'Prior Year Comparative'!B854","v":0},null,null,null,null,null,null,null,null,null,null,null,null,null,null,null,null,null,null,null,null,null,0]
[{"$f":"IF(Descriptions!K40=\"Costs of Generating Funds\",Descriptions!I40,0)","v":0},{"$f":"SUMPRODUCT((WorkingP!$A$5:$A$83='Payments - Summary'!A298)*(WorkingP!$D$5:$E$83))","v":0},null,null,{"$f":"'Prior Year Comparative'!B855","v":0},null,null,null,null,null,null,null,null,null,null,null,null,null,null,null,null,null,null,null,null,null,0]
[{"$f":"IF(Descriptions!K41=\"Costs of Generating Funds\",Descriptions!I41,0)","v":0},{"$f":"SUMPRODUCT((WorkingP!$A$5:$A$83='Payments - Summary'!A299)*(WorkingP!$D$5:$E$83))","v":0},null,null,{"$f":"'Prior Year Comparative'!B856","v":0},null,null,null,null,null,null,null,null,null,null,null,null,null,null,null,null,null,null,null,null,null,0]
[{"$f":"IF(Descriptions!K42=\"Costs of Generating Funds\",Descriptions!I42,0)","v":0},{"$f":"SUMPRODUCT((WorkingP!$A$5:$A$83='Payments - Summary'!A300)*(WorkingP!$D$5:$E$83))","v":0},null,null,{"$f":"'Prior Year Comparative'!B857","v":0},null,null,null,null,null,null,null,null,null,null,null,null,null,null,null,null,null,null,null,null,null,0]
[{"$f":"IF(Descriptions!K43=\"Costs of Generating Funds\",Descriptions!I43,0)","v":0},{"$f":"SUMPRODUCT((WorkingP!$A$5:$A$83='Payments - Summary'!A301)*(WorkingP!$D$5:$E$83))","v":0},null,null,{"$f":"'Prior Year Comparative'!B858","v":0},null,null,null,null,null,null,null,null,null,null,null,null,null,null,null,null,null,null,null,null,null,0]
[{"$f":"IF(Descriptions!K44=\"Costs of Generating Funds\",Descriptions!I44,0)","v":0},{"$f":"SUMPRODUCT((WorkingP!$A$5:$A$83='Payments - Summary'!A302)*(WorkingP!$D$5:$E$83))","v":0},null,null,{"$f":"'Prior Year Comparative'!B859","v":0},null,null,null,null,null,null,null,null,null,null,null,null,null,null,null,null,null,null,null,null,null,0]
[{"$f":"IF(Descriptions!K45=\"Costs of Generating Funds\",Descriptions!I45,0)","v":0},{"$f":"SUMPRODUCT((WorkingP!$A$5:$A$83='Payments - Summary'!A303)*(WorkingP!$D$5:$E$83))","v":0},null,null,{"$f":"'Prior Year Comparative'!B860","v":0},null,null,null,null,null,null,null,null,null,null,null,null,null,null,null,null,null,null,null,null,null,0]
[{"$f":"IF(Descriptions!K46=\"Costs of Generating Funds\",Descriptions!I46,0)","v":0},{"$f":"SUMPRODUCT((WorkingP!$A$5:$A$83='Payments - Summary'!A304)*(WorkingP!$D$5:$E$83))","v":0},null,null,{"$f":"'Prior Year Comparative'!B861","v":0},null,null,null,null,null,null,null,null,null,null,null,null,null,null,null,null,null,null,null,null,null,0]
[{"$f":"IF(Descriptions!K47=\"Costs of Generating Funds\",Descriptions!I47,0)","v":0},{"$f":"SUMPRODUCT((WorkingP!$A$5:$A$83='Payments - Summary'!A305)*(WorkingP!$D$5:$E$83))","v":0},null,null,{"$f":"'Prior Year Comparative'!B862","v":0},null,null,null,null,null,null,null,null,null,null,null,null,null,null,null,null,null,null,null,null,null,0]
[{"$f":"IF(Descriptions!K48=\"Costs of Generating Funds\",Descriptions!I48,0)","v":0},{"$f":"SUMPRODUCT((WorkingP!$A$5:$A$83='Payments - Summary'!A306)*(WorkingP!$D$5:$E$83))","v":0},null,null,{"$f":"'Prior Year Comparative'!B863","v":0},null,null,null,null,null,null,null,null,null,null,null,null,null,null,null,null,null,null,null,null,null,0]
[{"$f":"IF(Descriptions!K49=\"Costs of Generating Funds\",Descriptions!I49,0)","v":0},{"$f":"SUMPRODUCT((WorkingP!$A$5:$A$83='Payments - Summary'!A307)*(WorkingP!$D$5:$E$83))","v":0},null,null,{"$f":"'Prior Year Comparative'!B864","v":0},null,null,null,null,null,null,null,null,null,null,null,null,null,null,null,null,null,null,null,null,null,0]
[{"$f":"IF(Descriptions!K50=\"Costs of Generating Funds\",Descriptions!I50,0)","v":0},{"$f":"SUMPRODUCT((WorkingP!$A$5:$A$83='Payments - Summary'!A308)*(WorkingP!$D$5:$E$83))","v":0},null,null,{"$f":"'Prior Year Comparative'!B865","v":0},null,null,null,null,null,null,null,null,null,null,null,null,null,null,null,null,null,null,null,null,null,0]
[{"$f":"IF(Descriptions!K51=\"Costs of Generating Funds\",Descriptions!I51,0)","v":0},{"$f":"SUMPRODUCT((WorkingP!$A$5:$A$83='Payments - Summary'!A309)*(WorkingP!$D$5:$E$83))","v":0},null,null,{"$f":"'Prior Year Comparative'!B866","v":0},null,null,null,null,null,null,null,null,null,null,null,null,null,null,null,null,null,null,null,null,null,0]
[{"$f":"IF(Descriptions!K52=\"Costs of Generating Funds\",Descriptions!I52,0)","v":0},{"$f":"SUMPRODUCT((WorkingP!$A$5:$A$83='Payments - Summary'!A310)*(WorkingP!$D$5:$E$83))","v":0},null,null,{"$f":"'Prior Year Comparative'!B867","v":0},null,null,null,null,null,null,null,null,null,null,null,null,null,null,null,null,null,null,null,null,null,0]
[{"$f":"IF(Descriptions!K53=\"Costs of Generating Funds\",Descriptions!I53,0)","v":0},{"$f":"SUMPRODUCT((WorkingP!$A$5:$A$83='Payments - Summary'!A311)*(WorkingP!$D$5:$E$83))","v":0},null,null,{"$f":"'Prior Year Comparative'!B868","v":0},null,null,null,null,null,null,null,null,null,null,null,null,null,null,null,null,null,null,null,null,null,0]
[{"$f":"IF(Descriptions!K54=\"Costs of Generating Funds\",Descriptions!I54,0)","v":0},{"$f":"SUMPRODUCT((WorkingP!$A$5:$A$83='Payments - Summary'!A312)*(WorkingP!$D$5:$E$83))","v":0},null,null,{"$f":"'Prior Year Comparative'!B869","v":0},null,null,null,null,null,null,null,null,null,null,null,null,null,null,null,null,null,null,null,null,null,0]
[{"$f":"IF(Descriptions!K55=\"Costs of Generating Funds\",Descriptions!I55,0)","v":0},{"$f":"SUMPRODUCT((WorkingP!$A$5:$A$83='Payments - Summary'!A313)*(WorkingP!$D$5:$E$83))","v":0},null,null,{"$f":"'Prior Year Comparative'!B870","v":0},null,null,null,null,null,null,null,null,null,null,null,null,null,null,null,null,null,null,null,null,null,0]
[{"$f":"IF(Descriptions!K56=\"Costs of Generating Funds\",Descriptions!I56,0)","v":0},{"$f":"SUMPRODUCT((WorkingP!$A$5:$A$83='Payments - Summary'!A314)*(WorkingP!$D$5:$E$83))","v":0},null,null,{"$f":"'Prior Year Comparative'!B871","v":0},null,null,null,null,null,null,null,null,null,null,null,null,null,null,null,null,null,null,null,null,null,0]
[{"$f":"IF(Descriptions!K57=\"Costs of Generating Funds\",Descriptions!I57,0)","v":0},{"$f":"SUMPRODUCT((WorkingP!$A$5:$A$83='Payments - Summary'!A315)*(WorkingP!$D$5:$E$83))","v":0},null,null,{"$f":"'Prior Year Comparative'!B872","v":0},null,null,null,null,null,null,null,null,null,null,null,null,null,null,null,null,null,null,null,null,null,0]
[{"$f":"IF(Descriptions!K58=\"Costs of Generating Funds\",Descriptions!I58,0)","v":0},{"$f":"SUMPRODUCT((WorkingP!$A$5:$A$83='Payments - Summary'!A316)*(WorkingP!$D$5:$E$83))","v":0},null,null,{"$f":"'Prior Year Comparative'!B873","v":0},null,null,null,null,null,null,null,null,null,null,null,null,null,null,null,null,null,null,null,null,null,0]
[{"$f":"IF(Descriptions!K59=\"Costs of Generating Funds\",Descriptions!I59,0)","v":0},{"$f":"SUMPRODUCT((WorkingP!$A$5:$A$83='Payments - Summary'!A317)*(WorkingP!$D$5:$E$83))","v":0},null,null,{"$f":"'Prior Year Comparative'!B874","v":0},null,null,null,null,null,null,null,null,null,null,null,null,null,null,null,null,null,null,null,null,null,0]
[{"$f":"IF(Descriptions!K60=\"Costs of Generating Funds\",Descriptions!I60,0)","v":0},{"$f":"SUMPRODUCT((WorkingP!$A$5:$A$83='Payments - Summary'!A318)*(WorkingP!$D$5:$E$83))","v":0},null,null,{"$f":"'Prior Year Comparative'!B875","v":0},null,null,null,null,null,null,null,null,null,null,null,null,null,null,null,null,null,null,null,null,null,0]
[{"$f":"IF(Descriptions!K61=\"Costs of Generating Funds\",Descriptions!I61,0)","v":0},{"$f":"SUMPRODUCT((WorkingP!$A$5:$A$83='Payments - Summary'!A319)*(WorkingP!$D$5:$E$83))","v":0},null,null,{"$f":"'Prior Year Comparative'!B876","v":0},null,null,null,null,null,null,null,null,null,null,null,null,null,null,null,null,null,null,null,null,null,0]
[{"$f":"IF(Descriptions!K62=\"Costs of Generating Funds\",Descriptions!I62,0)","v":0},{"$f":"SUMPRODUCT((WorkingP!$A$5:$A$83='Payments - Summary'!A320)*(WorkingP!$D$5:$E$83))","v":0},null,null,{"$f":"'Prior Year Comparative'!B877","v":0},null,null,null,null,null,null,null,null,null,null,null,null,null,null,null,null,null,null,null,null,null,0]
[{"$f":"IF(Descriptions!K63=\"Costs of Generating Funds\",Descriptions!I63,0)","v":0},{"$f":"SUMPRODUCT((WorkingP!$A$5:$A$83='Payments - Summary'!A321)*(WorkingP!$D$5:$E$83))","v":0},null,null,{"$f":"'Prior Year Comparative'!B878","v":0},null,null,null,null,null,null,null,null,null,null,null,null,null,null,null,null,null,null,null,null,null,0]
[{"$f":"IF(Descriptions!K64=\"Costs of Generating Funds\",Descriptions!I64,0)","v":0},{"$f":"SUMPRODUCT((WorkingP!$A$5:$A$83='Payments - Summary'!A322)*(WorkingP!$D$5:$E$83))","v":0},null,null,{"$f":"'Prior Year Comparative'!B879","v":0},null,null,null,null,null,null,null,null,null,null,null,null,null,null,null,null,null,null,null,null,null,0]
[{"$f":"IF(Descriptions!K65=\"Costs of Generating Funds\",Descriptions!I65,0)","v":0},{"$f":"SUMPRODUCT((WorkingP!$A$5:$A$83='Payments - Summary'!A323)*(WorkingP!$D$5:$E$83))","v":0},null,null,{"$f":"'Prior Year Comparative'!B880","v":0},null,null,null,null,null,null,null,null,null,null,null,null,null,null,null,null,null,null,null,null,null,0]
[{"$f":"IF(Descriptions!K66=\"Costs of Generating Funds\",Descriptions!I66,0)","v":0},{"$f":"SUMPRODUCT((WorkingP!$A$5:$A$83='Payments - Summary'!A324)*(WorkingP!$D$5:$E$83))","v":0},null,null,{"$f":"'Prior Year Comparative'!B881","v":0},null,null,null,null,null,null,null,null,null,null,null,null,null,null,null,null,null,null,null,null,null,0]
[{"$f":"IF(Descriptions!K67=\"Costs of Generating Funds\",Descriptions!I67,0)","v":0},{"$f":"SUMPRODUCT((WorkingP!$A$5:$A$83='Payments - Summary'!A325)*(WorkingP!$D$5:$E$83))","v":0},null,null,{"$f":"'Prior Year Comparative'!B882","v":0},null,null,null,null,null,null,null,null,null,null,null,null,null,null,null,null,null,null,null,null,null,0]
[{"$f":"IF(Descriptions!K68=\"Costs of Generating Funds\",Descriptions!I68,0)","v":0},{"$f":"SUMPRODUCT((WorkingP!$A$5:$A$83='Payments - Summary'!A326)*(WorkingP!$D$5:$E$83))","v":0},null,null,{"$f":"'Prior Year Comparative'!B883","v":0},null,null,null,null,null,null,null,null,null,null,null,null,null,null,null,null,null,null,null,null,null,0]
[{"$f":"IF(Descriptions!K69=\"Costs of Generating Funds\",Descriptions!I69,0)","v":0},{"$f":"SUMPRODUCT((WorkingP!$A$5:$A$83='Payments - Summary'!A327)*(WorkingP!$D$5:$E$83))","v":0},null,null,{"$f":"'Prior Year Comparative'!B884","v":0},null,null,null,null,null,null,null,null,null,null,null,null,null,null,null,null,null,null,null,null,null,0]
[{"$f":"IF(Descriptions!K70=\"Costs of Generating Funds\",Descriptions!I70,0)","v":0},{"$f":"SUMPRODUCT((WorkingP!$A$5:$A$83='Payments - Summary'!A328)*(WorkingP!$D$5:$E$83))","v":0},null,null,{"$f":"'Prior Year Comparative'!B885","v":0},null,null,null,null,null,null,null,null,null,null,null,null,null,null,null,null,null,null,null,null,null,0]
[{"$f":"IF(Descriptions!K71=\"Costs of Generating Funds\",Descriptions!I71,0)","v":0},{"$f":"SUMPRODUCT((WorkingP!$A$5:$A$83='Payments - Summary'!A329)*(WorkingP!$D$5:$E$83))","v":0},null,null,{"$f":"'Prior Year Comparative'!B886","v":0},null,null,null,null,null,null,null,null,null,null,null,null,null,null,null,null,null,null,null,null,null,0]
[{"$f":"IF(Descriptions!K72=\"Costs of Generating Funds\",Descriptions!I72,0)","v":0},{"$f":"SUMPRODUCT((WorkingP!$A$5:$A$83='Payments - Summary'!A330)*(WorkingP!$D$5:$E$83))","v":0},null,null,{"$f":"'Prior Year Comparative'!B887","v":0},null,null,null,null,null,null,null,null,null,null,null,null,null,null,null,null,null,null,null,null,null,0]
[{"$f":"IF(Descriptions!K73=\"Costs of Generating Funds\",Descriptions!I73,0)","v":0},{"$f":"SUMPRODUCT((WorkingP!$A$5:$A$83='Payments - Summary'!A331)*(WorkingP!$D$5:$E$83))","v":0},null,null,{"$f":"'Prior Year Comparative'!B888","v":0},null,null,null,null,null,null,null,null,null,null,null,null,null,null,null,null,null,null,null,null,null,0]
[{"$f":"IF(Descriptions!K74=\"Costs of Generating Funds\",Descriptions!I74,0)","v":0},{"$f":"SUMPRODUCT((WorkingP!$A$5:$A$83='Payments - Summary'!A332)*(WorkingP!$D$5:$E$83))","v":0},null,null,{"$f":"'Prior Year Comparative'!B889","v":0},null,null,null,null,null,null,null,null,null,null,null,null,null,null,null,null,null,null,null,null,null,0]
[{"$f":"IF(Descriptions!K75=\"Costs of Generating Funds\",Descriptions!I75,0)","v":0},{"$f":"SUMPRODUCT((WorkingP!$A$5:$A$83='Payments - Summary'!A333)*(WorkingP!$D$5:$E$83))","v":0},null,null,{"$f":"'Prior Year Comparative'!B890","v":0},null,null,null,null,null,null,null,null,null,null,null,null,null,null,null,null,null,null,null,null,null,0]
[{"$f":"IF(Descriptions!K76=\"Costs of Generating Funds\",Descriptions!I76,0)","v":0},{"$f":"SUMPRODUCT((WorkingP!$A$5:$A$83='Payments - Summary'!A334)*(WorkingP!$D$5:$E$83))","v":0},null,null,{"$f":"'Prior Year Comparative'!B891","v":0},null,null,null,null,null,null,null,null,null,null,null,null,null,null,null,null,null,null,null,null,null,0]
[{"$f":"IF(Descriptions!K77=\"Costs of Generating Funds\",Descriptions!I77,0)","v":0},{"$f":"SUMPRODUCT((WorkingP!$A$5:$A$83='Payments - Summary'!A335)*(WorkingP!$D$5:$E$83))","v":0},null,null,{"$f":"'Prior Year Comparative'!B892","v":0},null,null,null,null,null,null,null,null,null,null,null,null,null,null,null,null,null,null,null,null,null,0]
[{"$f":"IF(Descriptions!K78=\"Costs of Generating Funds\",Descriptions!I78,0)","v":0},{"$f":"SUMPRODUCT((WorkingP!$A$5:$A$83='Payments - Summary'!A336)*(WorkingP!$D$5:$E$83))","v":0},null,null,{"$f":"'Prior Year Comparative'!B893","v":0},null,null,null,null,null,null,null,null,null,null,null,null,null,null,null,null,null,null,null,null,null,0]
[{"$f":"IF(Descriptions!K79=\"Costs of Generating Funds\",Descriptions!I79,0)","v":0},{"$f":"SUMPRODUCT((WorkingP!$A$5:$A$83='Payments - Summary'!A337)*(WorkingP!$D$5:$E$83))","v":0},null,null,{"$f":"'Prior Year Comparative'!B894","v":0},null,null,null,null,null,null,null,null,null,null,null,null,null,null,null,null,null,null,null,null,null,0]
[{"$f":"IF(Descriptions!K80=\"Costs of Generating Funds\",Descriptions!I80,0)","v":0},{"$f":"SUMPRODUCT((WorkingP!$A$5:$A$83='Payments - Summary'!A338)*(WorkingP!$D$5:$E$83))","v":0},null,null,{"$f":"'Prior Year Comparative'!B895","v":0},null,null,null,null,null,null,null,null,null,null,null,null,null,null,null,null,null,null,null,null,null,0]
[{"$f":"IF(Descriptions!K81=\"Costs of Generating Funds\",Descriptions!I81,0)","v":0},{"$f":"SUMPRODUCT((WorkingP!$A$5:$A$83='Payments - Summary'!A339)*(WorkingP!$D$5:$E$83))","v":0},null,null,{"$f":"'Prior Year Comparative'!B896","v":0},null,null,null,null,null,null,null,null,null,null,null,null,null,null,null,null,null,null,null,null,null,0]
[{"$f":"IF(Descriptions!K82=\"Costs of Generating Funds\",Descriptions!I82,0)","v":0},{"$f":"SUMPRODUCT((WorkingP!$A$5:$A$83='Payments - Summary'!A340)*(WorkingP!$D$5:$E$83))","v":0},null,null,{"$f":"'Prior Year Comparative'!B897","v":0},null,null,null,null,null,null,null,null,null,null,null,null,null,null,null,null,null,null,null,null,null,0]
[{"$f":"IF(Descriptions!K83=\"Costs of Generating Funds\",Descriptions!I83,0)","v":0},{"$f":"SUMPRODUCT((WorkingP!$A$5:$A$83='Payments - Summary'!A341)*(WorkingP!$D$5:$E$83))","v":0},null,null,{"$f":"'Prior Year Comparative'!B898","v":0},null,null,null,null,null,null,null,null,null,null,null,null,null,null,null,null,null,null,null,null,null,0]
[{"$f":"IF(Descriptions!K84=\"Costs of Generating Funds\",Descriptions!I84,0)","v":0},{"$f":"SUMPRODUCT((WorkingP!$A$5:$A$83='Payments - Summary'!A342)*(WorkingP!$D$5:$E$83))","v":0},null,null,{"$f":"'Prior Year Comparative'!B899","v":0},null,null,null,null,null,null,null,null,null,null,null,null,null,null,null,null,null,null,null,null,null,0]
[null,null,{"$f":"SUM(B289:B342)","v":0},null,null,{"$f":"SUM(E289:E342)","v":0},null,null,null,null,null,null,null,null,null,null,null,null,null,null,null,null,null,null,null,null,{"$f":"AA288","v":0}]
["ADMINISTRATION COSTS",null,null,null,null,null,null,null,null,null,null,null,null,null,null,null,null,null,null,null,null,null,null,null,null,null,{"$f":"SUM(AA345:AA399)","v":0}]
["Bank charges",{"$f":"SUMPRODUCT((WorkingP!$A$5:$A$83='Payments - Summary'!A345)*(WorkingP!$D$5:$E$83))","v":0},null,null,{"$f":"'Prior Year Comparative'!B902","v":0},null,null,null,null,null,null,null,null,null,null,null,null,null,null,null,null,null,null,null,null,null,{"$f":"Descriptions!AB7","v":0}]
["Printing",{"$f":"SUMPRODUCT((WorkingP!$A$5:$A$83='Payments - Summary'!A346)*(WorkingP!$D$5:$E$83))","v":0},null,null,{"$f":"'Prior Year Comparative'!B903","v":0},null,null,null,null,null,null,null,null,null,null,null,null,null,null,null,null,null,null,null,null,null,{"$f":"Descriptions!AB25","v":0}]
["Stationery",{"$f":"SUMPRODUCT((WorkingP!$A$5:$A$83='Payments - Summary'!A347)*(WorkingP!$D$5:$E$83))","v":0},null,null,{"$f":"'Prior Year Comparative'!B904","v":0},null,null,null,null,null,null,null,null,null,null,null,null,null,null,null,null,null,null,null,null,null,{"$f":"Descriptions!AB28","v":0}]
["Support Costs",{"$f":"SUMPRODUCT((WorkingP!$A$5:$A$83='Payments - Summary'!A348)*(WorkingP!$D$5:$E$83))","v":0},null,null,{"$f":"'Prior Year Comparative'!B905","v":0},null,null,null,null,null,null,null,null,null,null,null,null,null,null,null,null,null,null,null,null,null,{"$f":"Descriptions!AB29","v":0}]
["Computer",{"$f":"SUMPRODUCT((WorkingP!$A$5:$A$83='Payments - Summary'!A349)*(WorkingP!$D$5:$E$83))","v":0},null,null,{"$f":"'Prior Year Comparative'!B906","v":0},null,null,null,null,null,null,null,null,null,null,null,null,null,null,null,null,null,null,null,null,null,{"$f":"Descriptions!AB16","v":0}]
[{"$f":"IF(Descriptions!K35=\"Administration Costs\",Descriptions!I35,0)","v":0},{"$f":"SUMPRODUCT((WorkingP!$A$5:$A$83='Payments - Summary'!A350)*(WorkingP!$D$5:$E$83))","v":0},null,null,{"$f":"'Prior Year Comparative'!B907","v":0},null,null,null,null,null,null,null,null,null,null,null,null,null,null,null,null,null,null,null,null,null,{"$f":"IF(A350=0,0,1)","v":0}]
[{"$f":"IF(Descriptions!K36=\"Administration Costs\",Descriptions!I36,0)","v":0},{"$f":"SUMPRODUCT((WorkingP!$A$5:$A$83='Payments - Summary'!A351)*(WorkingP!$D$5:$E$83))","v":0},null,null,{"$f":"'Prior Year Comparative'!B908","v":0},null,null,null,null,null,null,null,null,null,null,null,null,null,null,null,null,null,null,null,null,null,0]
[{"$f":"IF(Descriptions!K37=\"Administration Costs\",Descriptions!I37,0)","v":0},{"$f":"SUMPRODUCT((WorkingP!$A$5:$A$83='Payments - Summary'!A352)*(WorkingP!$D$5:$E$83))","v":0},null,null,{"$f":"'Prior Year Comparative'!B909","v":0},null,null,null,null,null,null,null,null,null,null,null,null,null,null,null,null,null,null,null,null,null,0]
[{"$f":"IF(Descriptions!K38=\"Administration Costs\",Descriptions!I38,0)","v":0},{"$f":"SUMPRODUCT((WorkingP!$A$5:$A$83='Payments - Summary'!A353)*(WorkingP!$D$5:$E$83))","v":0},null,null,{"$f":"'Prior Year Comparative'!B910","v":0},null,null,null,null,null,null,null,null,null,null,null,null,null,null,null,null,null,null,null,null,null,0]
[{"$f":"IF(Descriptions!K39=\"Administration Costs\",Descriptions!I39,0)","v":0},{"$f":"SUMPRODUCT((WorkingP!$A$5:$A$83='Payments - Summary'!A354)*(WorkingP!$D$5:$E$83))","v":0},null,null,{"$f":"'Prior Year Comparative'!B911","v":0},null,null,null,null,null,null,null,null,null,null,null,null,null,null,null,null,null,null,null,null,null,0]
[{"$f":"IF(Descriptions!K40=\"Administration Costs\",Descriptions!I40,0)","v":0},{"$f":"SUMPRODUCT((WorkingP!$A$5:$A$83='Payments - Summary'!A355)*(WorkingP!$D$5:$E$83))","v":0},null,null,{"$f":"'Prior Year Comparative'!B912","v":0},null,null,null,null,null,null,null,null,null,null,null,null,null,null,null,null,null,null,null,null,null,0]
[{"$f":"IF(Descriptions!K41=\"Administration Costs\",Descriptions!I41,0)","v":0},{"$f":"SUMPRODUCT((WorkingP!$A$5:$A$83='Payments - Summary'!A356)*(WorkingP!$D$5:$E$83))","v":0},null,null,{"$f":"'Prior Year Comparative'!B913","v":0},null,null,null,null,null,null,null,null,null,null,null,null,null,null,null,null,null,null,null,null,null,0]
[{"$f":"IF(Descriptions!K42=\"Administration Costs\",Descriptions!I42,0)","v":0},{"$f":"SUMPRODUCT((WorkingP!$A$5:$A$83='Payments - Summary'!A357)*(WorkingP!$D$5:$E$83))","v":0},null,null,{"$f":"'Prior Year Comparative'!B914","v":0},null,null,null,null,null,null,null,null,null,null,null,null,null,null,null,null,null,null,null,null,null,0]
[{"$f":"IF(Descriptions!K43=\"Administration Costs\",Descriptions!I43,0)","v":0},{"$f":"SUMPRODUCT((WorkingP!$A$5:$A$83='Payments - Summary'!A358)*(WorkingP!$D$5:$E$83))","v":0},null,null,{"$f":"'Prior Year Comparative'!B915","v":0},null,null,null,null,null,null,null,null,null,null,null,null,null,null,null,null,null,null,null,null,null,0]
[{"$f":"IF(Descriptions!K44=\"Administration Costs\",Descriptions!I44,0)","v":0},{"$f":"SUMPRODUCT((WorkingP!$A$5:$A$83='Payments - Summary'!A359)*(WorkingP!$D$5:$E$83))","v":0},null,null,{"$f":"'Prior Year Comparative'!B916","v":0},null,null,null,null,null,null,null,null,null,null,null,null,null,null,null,null,null,null,null,null,null,0]
[{"$f":"IF(Descriptions!K45=\"Administration Costs\",Descriptions!I45,0)","v":0},{"$f":"SUMPRODUCT((WorkingP!$A$5:$A$83='Payments - Summary'!A360)*(WorkingP!$D$5:$E$83))","v":0},null,null,{"$f":"'Prior Year Comparative'!B917","v":0},null,null,null,null,null,null,null,null,null,null,null,null,null,null,null,null,null,null,null,null,null,0]
[{"$f":"IF(Descriptions!K46=\"Administration Costs\",Descriptions!I46,0)","v":0},{"$f":"SUMPRODUCT((WorkingP!$A$5:$A$83='Payments - Summary'!A361)*(WorkingP!$D$5:$E$83))","v":0},null,null,{"$f":"'Prior Year Comparative'!B918","v":0},null,null,null,null,null,null,null,null,null,null,null,null,null,null,null,null,null,null,null,null,null,0]
[{"$f":"IF(Descriptions!K47=\"Administration Costs\",Descriptions!I47,0)","v":0},{"$f":"SUMPRODUCT((WorkingP!$A$5:$A$83='Payments - Summary'!A362)*(WorkingP!$D$5:$E$83))","v":0},null,null,{"$f":"'Prior Year Comparative'!B919","v":0},null,null,null,null,null,null,null,null,null,null,null,null,null,null,null,null,null,null,null,null,null,0]
[{"$f":"IF(Descriptions!K48=\"Administration Costs\",Descriptions!I48,0)","v":0},{"$f":"SUMPRODUCT((WorkingP!$A$5:$A$83='Payments - Summary'!A363)*(WorkingP!$D$5:$E$83))","v":0},null,null,{"$f":"'Prior Year Comparative'!B920","v":0},null,null,null,null,null,null,null,null,null,null,null,null,null,null,null,null,null,null,null,null,null,0]
[{"$f":"IF(Descriptions!K49=\"Administration Costs\",Descriptions!I49,0)","v":0},{"$f":"SUMPRODUCT((WorkingP!$A$5:$A$83='Payments - Summary'!A364)*(WorkingP!$D$5:$E$83))","v":0},null,null,{"$f":"'Prior Year Comparative'!B921","v":0},null,null,null,null,null,null,null,null,null,null,null,null,null,null,null,null,null,null,null,null,null,0]
[{"$f":"IF(Descriptions!K50=\"Administration Costs\",Descriptions!I50,0)","v":0},{"$f":"SUMPRODUCT((WorkingP!$A$5:$A$83='Payments - Summary'!A365)*(WorkingP!$D$5:$E$83))","v":0},null,null,{"$f":"'Prior Year Comparative'!B922","v":0},null,null,null,null,null,null,null,null,null,null,null,null,null,null,null,null,null,null,null,null,null,0]
[{"$f":"IF(Descriptions!K51=\"Administration Costs\",Descriptions!I51,0)","v":0},{"$f":"SUMPRODUCT((WorkingP!$A$5:$A$83='Payments - Summary'!A366)*(WorkingP!$D$5:$E$83))","v":0},null,null,{"$f":"'Prior Year Comparative'!B923","v":0},null,null,null,null,null,null,null,null,null,null,null,null,null,null,null,null,null,null,null,null,null,0]
[{"$f":"IF(Descriptions!K52=\"Administration Costs\",Descriptions!I52,0)","v":0},{"$f":"SUMPRODUCT((WorkingP!$A$5:$A$83='Payments - Summary'!A367)*(WorkingP!$D$5:$E$83))","v":0},null,null,{"$f":"'Prior Year Comparative'!B924","v":0},null,null,null,null,null,null,null,null,null,null,null,null,null,null,null,null,null,null,null,null,null,0]
[{"$f":"IF(Descriptions!K53=\"Administration Costs\",Descriptions!I53,0)","v":0},{"$f":"SUMPRODUCT((WorkingP!$A$5:$A$83='Payments - Summary'!A368)*(WorkingP!$D$5:$E$83))","v":0},null,null,{"$f":"'Prior Year Comparative'!B925","v":0},null,null,null,null,null,null,null,null,null,null,null,null,null,null,null,null,null,null,null,null,null,0]
[{"$f":"IF(Descriptions!K54=\"Administration Costs\",Descriptions!I54,0)","v":0},{"$f":"SUMPRODUCT((WorkingP!$A$5:$A$83='Payments - Summary'!A369)*(WorkingP!$D$5:$E$83))","v":0},null,null,{"$f":"'Prior Year Comparative'!B926","v":0},null,null,null,null,null,null,null,null,null,null,null,null,null,null,null,null,null,null,null,null,null,0]
[{"$f":"IF(Descriptions!K55=\"Administration Costs\",Descriptions!I55,0)","v":0},{"$f":"SUMPRODUCT((WorkingP!$A$5:$A$83='Payments - Summary'!A370)*(WorkingP!$D$5:$E$83))","v":0},null,null,{"$f":"'Prior Year Comparative'!B927","v":0},null,null,null,null,null,null,null,null,null,null,null,null,null,null,null,null,null,null,null,null,null,0]
[{"$f":"IF(Descriptions!K56=\"Administration Costs\",Descriptions!I56,0)","v":0},{"$f":"SUMPRODUCT((WorkingP!$A$5:$A$83='Payments - Summary'!A371)*(WorkingP!$D$5:$E$83))","v":0},null,null,{"$f":"'Prior Year Comparative'!B928","v":0},null,null,null,null,null,null,null,null,null,null,null,null,null,null,null,null,null,null,null,null,null,0]
[{"$f":"IF(Descriptions!K57=\"Administration Costs\",Descriptions!I57,0)","v":0},{"$f":"SUMPRODUCT((WorkingP!$A$5:$A$83='Payments - Summary'!A372)*(WorkingP!$D$5:$E$83))","v":0},null,null,{"$f":"'Prior Year Comparative'!B929","v":0},null,null,null,null,null,null,null,null,null,null,null,null,null,null,null,null,null,null,null,null,null,0]
[{"$f":"IF(Descriptions!K58=\"Administration Costs\",Descriptions!I58,0)","v":0},{"$f":"SUMPRODUCT((WorkingP!$A$5:$A$83='Payments - Summary'!A373)*(WorkingP!$D$5:$E$83))","v":0},null,null,{"$f":"'Prior Year Comparative'!B930","v":0},null,null,null,null,null,null,null,null,null,null,null,null,null,null,null,null,null,null,null,null,null,0]
[{"$f":"IF(Descriptions!K59=\"Administration Costs\",Descriptions!I59,0)","v":0},{"$f":"SUMPRODUCT((WorkingP!$A$5:$A$83='Payments - Summary'!A374)*(WorkingP!$D$5:$E$83))","v":0},null,null,{"$f":"'Prior Year Comparative'!B931","v":0},null,null,null,null,null,null,null,null,null,null,null,null,null,null,null,null,null,null,null,null,null,0]
[{"$f":"IF(Descriptions!K60=\"Administration Costs\",Descriptions!I60,0)","v":0},{"$f":"SUMPRODUCT((WorkingP!$A$5:$A$83='Payments - Summary'!A375)*(WorkingP!$D$5:$E$83))","v":0},null,null,{"$f":"'Prior Year Comparative'!B932","v":0},null,null,null,null,null,null,null,null,null,null,null,null,null,null,null,null,null,null,null,null,null,0]
[{"$f":"IF(Descriptions!K61=\"Administration Costs\",Descriptions!I61,0)","v":0},{"$f":"SUMPRODUCT((WorkingP!$A$5:$A$83='Payments - Summary'!A376)*(WorkingP!$D$5:$E$83))","v":0},null,null,{"$f":"'Prior Year Comparative'!B933","v":0},null,null,null,null,null,null,null,null,null,null,null,null,null,null,null,null,null,null,null,null,null,0]
[{"$f":"IF(Descriptions!K62=\"Administration Costs\",Descriptions!I62,0)","v":0},{"$f":"SUMPRODUCT((WorkingP!$A$5:$A$83='Payments - Summary'!A377)*(WorkingP!$D$5:$E$83))","v":0},null,null,{"$f":"'Prior Year Comparative'!B934","v":0},null,null,null,null,null,null,null,null,null,null,null,null,null,null,null,null,null,null,null,null,null,0]
[{"$f":"IF(Descriptions!K63=\"Administration Costs\",Descriptions!I63,0)","v":0},{"$f":"SUMPRODUCT((WorkingP!$A$5:$A$83='Payments - Summary'!A378)*(WorkingP!$D$5:$E$83))","v":0},null,null,{"$f":"'Prior Year Comparative'!B935","v":0},null,null,null,null,null,null,null,null,null,null,null,null,null,null,null,null,null,null,null,null,null,0]
[{"$f":"IF(Descriptions!K64=\"Administration Costs\",Descriptions!I64,0)","v":0},{"$f":"SUMPRODUCT((WorkingP!$A$5:$A$83='Payments - Summary'!A379)*(WorkingP!$D$5:$E$83))","v":0},null,null,{"$f":"'Prior Year Comparative'!B936","v":0},null,null,null,null,null,null,null,null,null,null,null,null,null,null,null,null,null,null,null,null,null,0]
[{"$f":"IF(Descriptions!K65=\"Administration Costs\",Descriptions!I65,0)","v":0},{"$f":"SUMPRODUCT((WorkingP!$A$5:$A$83='Payments - Summary'!A380)*(WorkingP!$D$5:$E$83))","v":0},null,null,{"$f":"'Prior Year Comparative'!B937","v":0},null,null,null,null,null,null,null,null,null,null,null,null,null,null,null,null,null,null,null,null,null,0]
[{"$f":"IF(Descriptions!K66=\"Administration Costs\",Descriptions!I66,0)","v":0},{"$f":"SUMPRODUCT((WorkingP!$A$5:$A$83='Payments - Summary'!A381)*(WorkingP!$D$5:$E$83))","v":0},null,null,{"$f":"'Prior Year Comparative'!B938","v":0},null,null,null,null,null,null,null,null,null,null,null,null,null,null,null,null,null,null,null,null,null,0]
[{"$f":"IF(Descriptions!K67=\"Administration Costs\",Descriptions!I67,0)","v":0},{"$f":"SUMPRODUCT((WorkingP!$A$5:$A$83='Payments - Summary'!A382)*(WorkingP!$D$5:$E$83))","v":0},null,null,{"$f":"'Prior Year Comparative'!B939","v":0},null,null,null,null,null,null,null,null,null,null,null,null,null,null,null,null,null,null,null,null,null,0]
[{"$f":"IF(Descriptions!K68=\"Administration Costs\",Descriptions!I68,0)","v":0},{"$f":"SUMPRODUCT((WorkingP!$A$5:$A$83='Payments - Summary'!A383)*(WorkingP!$D$5:$E$83))","v":0},null,null,{"$f":"'Prior Year Comparative'!B940","v":0},null,null,null,null,null,null,null,null,null,null,null,null,null,null,null,null,null,null,null,null,null,0]
[{"$f":"IF(Descriptions!K69=\"Administration Costs\",Descriptions!I69,0)","v":0},{"$f":"SUMPRODUCT((WorkingP!$A$5:$A$83='Payments - Summary'!A384)*(WorkingP!$D$5:$E$83))","v":0},null,null,{"$f":"'Prior Year Comparative'!B941","v":0},null,null,null,null,null,null,null,null,null,null,null,null,null,null,null,null,null,null,null,null,null,0]
[{"$f":"IF(Descriptions!K70=\"Administration Costs\",Descriptions!I70,0)","v":0},{"$f":"SUMPRODUCT((WorkingP!$A$5:$A$83='Payments - Summary'!A385)*(WorkingP!$D$5:$E$83))","v":0},null,null,{"$f":"'Prior Year Comparative'!B942","v":0},null,null,null,null,null,null,null,null,null,null,null,null,null,null,null,null,null,null,null,null,null,0]
[{"$f":"IF(Descriptions!K71=\"Administration Costs\",Descriptions!I71,0)","v":0},{"$f":"SUMPRODUCT((WorkingP!$A$5:$A$83='Payments - Summary'!A386)*(WorkingP!$D$5:$E$83))","v":0},null,null,{"$f":"'Prior Year Comparative'!B943","v":0},null,null,null,null,null,null,null,null,null,null,null,null,null,null,null,null,null,null,null,null,null,0]
[{"$f":"IF(Descriptions!K72=\"Administration Costs\",Descriptions!I72,0)","v":0},{"$f":"SUMPRODUCT((WorkingP!$A$5:$A$83='Payments - Summary'!A387)*(WorkingP!$D$5:$E$83))","v":0},null,null,{"$f":"'Prior Year Comparative'!B944","v":0},null,null,null,null,null,null,null,null,null,null,null,null,null,null,null,null,null,null,null,null,null,0]
[{"$f":"IF(Descriptions!K73=\"Administration Costs\",Descriptions!I73,0)","v":0},{"$f":"SUMPRODUCT((WorkingP!$A$5:$A$83='Payments - Summary'!A388)*(WorkingP!$D$5:$E$83))","v":0},null,null,{"$f":"'Prior Year Comparative'!B945","v":0},null,null,null,null,null,null,null,null,null,null,null,null,null,null,null,null,null,null,null,null,null,0]
[{"$f":"IF(Descriptions!K74=\"Administration Costs\",Descriptions!I74,0)","v":0},{"$f":"SUMPRODUCT((WorkingP!$A$5:$A$83='Payments - Summary'!A389)*(WorkingP!$D$5:$E$83))","v":0},null,null,{"$f":"'Prior Year Comparative'!B946","v":0},null,null,null,null,null,null,null,null,null,null,null,null,null,null,null,null,null,null,null,null,null,0]
[{"$f":"IF(Descriptions!K75=\"Administration Costs\",Descriptions!I75,0)","v":0},{"$f":"SUMPRODUCT((WorkingP!$A$5:$A$83='Payments - Summary'!A390)*(WorkingP!$D$5:$E$83))","v":0},null,null,{"$f":"'Prior Year Comparative'!B947","v":0},null,null,null,null,null,null,null,null,null,null,null,null,null,null,null,null,null,null,null,null,null,0]
[{"$f":"IF(Descriptions!K76=\"Administration Costs\",Descriptions!I76,0)","v":0},{"$f":"SUMPRODUCT((WorkingP!$A$5:$A$83='Payments - Summary'!A391)*(WorkingP!$D$5:$E$83))","v":0},null,null,{"$f":"'Prior Year Comparative'!B948","v":0},null,null,null,null,null,null,null,null,null,null,null,null,null,null,null,null,null,null,null,null,null,0]
[{"$f":"IF(Descriptions!K77=\"Administration Costs\",Descriptions!I77,0)","v":0},{"$f":"SUMPRODUCT((WorkingP!$A$5:$A$83='Payments - Summary'!A392)*(WorkingP!$D$5:$E$83))","v":0},null,null,{"$f":"'Prior Year Comparative'!B949","v":0},null,null,null,null,null,null,null,null,null,null,null,null,null,null,null,null,null,null,null,null,null,0]
[{"$f":"IF(Descriptions!K78=\"Administration Costs\",Descriptions!I78,0)","v":0},{"$f":"SUMPRODUCT((WorkingP!$A$5:$A$83='Payments - Summary'!A393)*(WorkingP!$D$5:$E$83))","v":0},null,null,{"$f":"'Prior Year Comparative'!B950","v":0},null,null,null,null,null,null,null,null,null,null,null,null,null,null,null,null,null,null,null,null,null,0]
[{"$f":"IF(Descriptions!K79=\"Administration Costs\",Descriptions!I79,0)","v":0},{"$f":"SUMPRODUCT((WorkingP!$A$5:$A$83='Payments - Summary'!A394)*(WorkingP!$D$5:$E$83))","v":0},null,null,{"$f":"'Prior Year Comparative'!B951","v":0},null,null,null,null,null,null,null,null,null,null,null,null,null,null,null,null,null,null,null,null,null,0]
[{"$f":"IF(Descriptions!K80=\"Administration Costs\",Descriptions!I80,0)","v":0},{"$f":"SUMPRODUCT((WorkingP!$A$5:$A$83='Payments - Summary'!A395)*(WorkingP!$D$5:$E$83))","v":0},null,null,{"$f":"'Prior Year Comparative'!B952","v":0},null,null,null,null,null,null,null,null,null,null,null,null,null,null,null,null,null,null,null,null,null,0]
[{"$f":"IF(Descriptions!K81=\"Administration Costs\",Descriptions!I81,0)","v":0},{"$f":"SUMPRODUCT((WorkingP!$A$5:$A$83='Payments - Summary'!A396)*(WorkingP!$D$5:$E$83))","v":0},null,null,{"$f":"'Prior Year Comparative'!B953","v":0},null,null,null,null,null,null,null,null,null,null,null,null,null,null,null,null,null,null,null,null,null,0]
[{"$f":"IF(Descriptions!K82=\"Administration Costs\",Descriptions!I82,0)","v":0},{"$f":"SUMPRODUCT((WorkingP!$A$5:$A$83='Payments - Summary'!A397)*(WorkingP!$D$5:$E$83))","v":0},null,null,{"$f":"'Prior Year Comparative'!B954","v":0},null,null,null,null,null,null,null,null,null,null,null,null,null,null,null,null,null,null,null,null,null,0]
[{"$f":"IF(Descriptions!K83=\"Administration Costs\",Descriptions!I83,0)","v":0},{"$f":"SUMPRODUCT((WorkingP!$A$5:$A$83='Payments - Summary'!A398)*(WorkingP!$D$5:$E$83))","v":0},null,null,{"$f":"'Prior Year Comparative'!B955","v":0},null,null,null,null,null,null,null,null,null,null,null,null,null,null,null,null,null,null,null,null,null,0]
[{"$f":"IF(Descriptions!K84=\"Administration Costs\",Descriptions!I84,0)","v":0},{"$f":"SUMPRODUCT((WorkingP!$A$5:$A$83='Payments - Summary'!A399)*(WorkingP!$D$5:$E$83))","v":0},null,null,{"$f":"'Prior Year Comparative'!B956","v":0},null,null,null,null,null,null,null,null,null,null,null,null,null,null,null,null,null,null,null,null,null,0]
[null,null,{"$f":"SUM(B345:B399)","v":0},null,null,{"$f":"SUM(E345:E399)","v":0},null,null,null,null,null,null,null,null,null,null,null,null,null,null,null,null,null,null,null,null,{"$f":"AA344","v":0}]
["OTHER EXPENDITURE",null,null,null,null,null,null,null,null,null,null,null,null,null,null,null,null,null,null,null,null,null,null,null,null,null,{"$f":"SUM(AA402:AA454)","v":0}]
["Mission and Evangelism Costs",{"$f":"SUMPRODUCT((WorkingP!$A$5:$A$83='Payments - Summary'!A402)*(WorkingP!$D$5:$E$83))","v":0},null,null,{"$f":"'Prior Year Comparative'!B959","v":0},null,null,null,null,null,null,null,null,null,null,null,null,null,null,null,null,null,null,null,null,null,{"$f":"Descriptions!AB22","v":0}]
["Churchyard Expenses",{"$f":"SUMPRODUCT((WorkingP!$A$5:$A$83='Payments - Summary'!A403)*(WorkingP!$D$5:$E$83))","v":0},null,null,{"$f":"'Prior Year Comparative'!B960","v":0},null,null,null,null,null,null,null,null,null,null,null,null,null,null,null,null,null,null,null,null,null,{"$f":"Descriptions!AB13","v":0}]
["Trading Costs - Property",{"$f":"SUMPRODUCT((WorkingP!$A$5:$A$83='Payments - Summary'!A404)*(WorkingP!$D$5:$E$83))","v":0},null,null,{"$f":"'Prior Year Comparative'!B961","v":0},null,null,null,null,null,null,null,null,null,null,null,null,null,null,null,null,null,null,null,null,null,{"$f":"Descriptions!AB33","v":0}]
[{"$f":"IF(Descriptions!K35=\"Other Expenditure\",Descriptions!I35,0)","v":0},{"$f":"SUMPRODUCT((WorkingP!$A$5:$A$83='Payments - Summary'!A405)*(WorkingP!$D$5:$E$83))","v":0},null,null,{"$f":"'Prior Year Comparative'!B962","v":0},null,null,null,null,null,null,null,null,null,null,null,null,null,null,null,null,null,null,null,null,null,{"$f":"IF(A405=0,0,1)","v":0}]
[{"$f":"IF(Descriptions!K36=\"Other Expenditure\",Descriptions!I36,0)","v":0},{"$f":"SUMPRODUCT((WorkingP!$A$5:$A$83='Payments - Summary'!A406)*(WorkingP!$D$5:$E$83))","v":0},null,null,{"$f":"'Prior Year Comparative'!B963","v":0},null,null,null,null,null,null,null,null,null,null,null,null,null,null,null,null,null,null,null,null,null,0]
[{"$f":"IF(Descriptions!K37=\"Other Expenditure\",Descriptions!I37,0)","v":0},{"$f":"SUMPRODUCT((WorkingP!$A$5:$A$83='Payments - Summary'!A407)*(WorkingP!$D$5:$E$83))","v":0},null,null,{"$f":"'Prior Year Comparative'!B964","v":0},null,null,null,null,null,null,null,null,null,null,null,null,null,null,null,null,null,null,null,null,null,0]
[{"$f":"IF(Descriptions!K38=\"Other Expenditure\",Descriptions!I38,0)","v":0},{"$f":"SUMPRODUCT((WorkingP!$A$5:$A$83='Payments - Summary'!A408)*(WorkingP!$D$5:$E$83))","v":0},null,null,{"$f":"'Prior Year Comparative'!B965","v":0},null,null,null,null,null,null,null,null,null,null,null,null,null,null,null,null,null,null,null,null,null,0]
[{"$f":"IF(Descriptions!K39=\"Other Expenditure\",Descriptions!I39,0)","v":0},{"$f":"SUMPRODUCT((WorkingP!$A$5:$A$83='Payments - Summary'!A409)*(WorkingP!$D$5:$E$83))","v":0},null,null,{"$f":"'Prior Year Comparative'!B966","v":0},null,null,null,null,null,null,null,null,null,null,null,null,null,null,null,null,null,null,null,null,null,0]
[{"$f":"IF(Descriptions!K40=\"Other Expenditure\",Descriptions!I40,0)","v":0},{"$f":"SUMPRODUCT((WorkingP!$A$5:$A$83='Payments - Summary'!A410)*(WorkingP!$D$5:$E$83))","v":0},null,null,{"$f":"'Prior Year Comparative'!B967","v":0},null,null,null,null,null,null,null,null,null,null,null,null,null,null,null,null,null,null,null,null,null,0]
[{"$f":"IF(Descriptions!K41=\"Other Expenditure\",Descriptions!I41,0)","v":0},{"$f":"SUMPRODUCT((WorkingP!$A$5:$A$83='Payments - Summary'!A411)*(WorkingP!$D$5:$E$83))","v":0},null,null,{"$f":"'Prior Year Comparative'!B968","v":0},null,null,null,null,null,null,null,null,null,null,null,null,null,null,null,null,null,null,null,null,null,0]
[{"$f":"IF(Descriptions!K42=\"Other Expenditure\",Descriptions!I42,0)","v":0},{"$f":"SUMPRODUCT((WorkingP!$A$5:$A$83='Payments - Summary'!A412)*(WorkingP!$D$5:$E$83))","v":0},null,null,{"$f":"'Prior Year Comparative'!B969","v":0},null,null,null,null,null,null,null,null,null,null,null,null,null,null,null,null,null,null,null,null,null,0]
[{"$f":"IF(Descriptions!K43=\"Other Expenditure\",Descriptions!I43,0)","v":0},{"$f":"SUMPRODUCT((WorkingP!$A$5:$A$83='Payments - Summary'!A413)*(WorkingP!$D$5:$E$83))","v":0},null,null,{"$f":"'Prior Year Comparative'!B970","v":0},null,null,null,null,null,null,null,null,null,null,null,null,null,null,null,null,null,null,null,null,null,0]
[{"$f":"IF(Descriptions!K44=\"Other Expenditure\",Descriptions!I44,0)","v":0},{"$f":"SUMPRODUCT((WorkingP!$A$5:$A$83='Payments - Summary'!A414)*(WorkingP!$D$5:$E$83))","v":0},null,null,{"$f":"'Prior Year Comparative'!B971","v":0},null,null,null,null,null,null,null,null,null,null,null,null,null,null,null,null,null,null,null,null,null,0]
[{"$f":"IF(Descriptions!K45=\"Other Expenditure\",Descriptions!I45,0)","v":0},{"$f":"SUMPRODUCT((WorkingP!$A$5:$A$83='Payments - Summary'!A415)*(WorkingP!$D$5:$E$83))","v":0},null,null,{"$f":"'Prior Year Comparative'!B972","v":0},null,null,null,null,null,null,null,null,null,null,null,null,null,null,null,null,null,null,null,null,null,0]
[{"$f":"IF(Descriptions!K46=\"Other Expenditure\",Descriptions!I46,0)","v":0},{"$f":"SUMPRODUCT((WorkingP!$A$5:$A$83='Payments - Summary'!A416)*(WorkingP!$D$5:$E$83))","v":0},null,null,{"$f":"'Prior Year Comparative'!B973","v":0},null,null,null,null,null,null,null,null,null,null,null,null,null,null,null,null,null,null,null,null,null,0]
[{"$f":"IF(Descriptions!K47=\"Other Expenditure\",Descriptions!I47,0)","v":0},{"$f":"SUMPRODUCT((WorkingP!$A$5:$A$83='Payments - Summary'!A417)*(WorkingP!$D$5:$E$83))","v":0},null,null,{"$f":"'Prior Year Comparative'!B974","v":0},null,null,null,null,null,null,null,null,null,null,null,null,null,null,null,null,null,null,null,null,null,0]
[{"$f":"IF(Descriptions!K48=\"Other Expenditure\",Descriptions!I48,0)","v":0},{"$f":"SUMPRODUCT((WorkingP!$A$5:$A$83='Payments - Summary'!A418)*(WorkingP!$D$5:$E$83))","v":0},null,null,{"$f":"'Prior Year Comparative'!B975","v":0},null,null,null,null,null,null,null,null,null,null,null,null,null,null,null,null,null,null,null,null,null,0]
[{"$f":"IF(Descriptions!K49=\"Other Expenditure\",Descriptions!I49,0)","v":0},{"$f":"SUMPRODUCT((WorkingP!$A$5:$A$83='Payments - Summary'!A419)*(WorkingP!$D$5:$E$83))","v":0},null,null,{"$f":"'Prior Year Comparative'!B976","v":0},null,null,null,null,null,null,null,null,null,null,null,null,null,null,null,null,null,null,null,null,null,0]
[{"$f":"IF(Descriptions!K50=\"Other Expenditure\",Descriptions!I50,0)","v":0},{"$f":"SUMPRODUCT((WorkingP!$A$5:$A$83='Payments - Summary'!A420)*(WorkingP!$D$5:$E$83))","v":0},null,null,{"$f":"'Prior Year Comparative'!B977","v":0},null,null,null,null,null,null,null,null,null,null,null,null,null,null,null,null,null,null,null,null,null,0]
[{"$f":"IF(Descriptions!K51=\"Other Expenditure\",Descriptions!I51,0)","v":0},{"$f":"SUMPRODUCT((WorkingP!$A$5:$A$83='Payments - Summary'!A421)*(WorkingP!$D$5:$E$83))","v":0},null,null,{"$f":"'Prior Year Comparative'!B978","v":0},null,null,null,null,null,null,null,null,null,null,null,null,null,null,null,null,null,null,null,null,null,0]
[{"$f":"IF(Descriptions!K52=\"Other Expenditure\",Descriptions!I52,0)","v":0},{"$f":"SUMPRODUCT((WorkingP!$A$5:$A$83='Payments - Summary'!A422)*(WorkingP!$D$5:$E$83))","v":0},null,null,{"$f":"'Prior Year Comparative'!B979","v":0},null,null,null,null,null,null,null,null,null,null,null,null,null,null,null,null,null,null,null,null,null,0]
[{"$f":"IF(Descriptions!K53=\"Other Expenditure\",Descriptions!I53,0)","v":0},{"$f":"SUMPRODUCT((WorkingP!$A$5:$A$83='Payments - Summary'!A423)*(WorkingP!$D$5:$E$83))","v":0},null,null,{"$f":"'Prior Year Comparative'!B980","v":0},null,null,null,null,null,null,null,null,null,null,null,null,null,null,null,null,null,null,null,null,null,0]
[{"$f":"IF(Descriptions!K54=\"Other Expenditure\",Descriptions!I54,0)","v":0},{"$f":"SUMPRODUCT((WorkingP!$A$5:$A$83='Payments - Summary'!A424)*(WorkingP!$D$5:$E$83))","v":0},null,null,{"$f":"'Prior Year Comparative'!B981","v":0},null,null,null,null,null,null,null,null,null,null,null,null,null,null,null,null,null,null,null,null,null,0]
[{"$f":"IF(Descriptions!K55=\"Other Expenditure\",Descriptions!I55,0)","v":0},{"$f":"SUMPRODUCT((WorkingP!$A$5:$A$83='Payments - Summary'!A425)*(WorkingP!$D$5:$E$83))","v":0},null,null,{"$f":"'Prior Year Comparative'!B982","v":0},null,null,null,null,null,null,null,null,null,null,null,null,null,null,null,null,null,null,null,null,null,0]
[{"$f":"IF(Descriptions!K56=\"Other Expenditure\",Descriptions!I56,0)","v":0},{"$f":"SUMPRODUCT((WorkingP!$A$5:$A$83='Payments - Summary'!A426)*(WorkingP!$D$5:$E$83))","v":0},null,null,{"$f":"'Prior Year Comparative'!B983","v":0},null,null,null,null,null,null,null,null,null,null,null,null,null,null,null,null,null,null,null,null,null,0]
[{"$f":"IF(Descriptions!K57=\"Other Expenditure\",Descriptions!I57,0)","v":0},{"$f":"SUMPRODUCT((WorkingP!$A$5:$A$83='Payments - Summary'!A427)*(WorkingP!$D$5:$E$83))","v":0},null,null,{"$f":"'Prior Year Comparative'!B984","v":0},null,null,null,null,null,null,null,null,null,null,null,null,null,null,null,null,null,null,null,null,null,0]
[{"$f":"IF(Descriptions!K58=\"Other Expenditure\",Descriptions!I58,0)","v":0},{"$f":"SUMPRODUCT((WorkingP!$A$5:$A$83='Payments - Summary'!A428)*(WorkingP!$D$5:$E$83))","v":0},null,null,{"$f":"'Prior Year Comparative'!B985","v":0},null,null,null,null,null,null,null,null,null,null,null,null,null,null,null,null,null,null,null,null,null,0]
[{"$f":"IF(Descriptions!K59=\"Other Expenditure\",Descriptions!I59,0)","v":0},{"$f":"SUMPRODUCT((WorkingP!$A$5:$A$83='Payments - Summary'!A429)*(WorkingP!$D$5:$E$83))","v":0},null,null,{"$f":"'Prior Year Comparative'!B986","v":0},null,null,null,null,null,null,null,null,null,null,null,null,null,null,null,null,null,null,null,null,null,0]
[{"$f":"IF(Descriptions!K60=\"Other Expenditure\",Descriptions!I60,0)","v":0},{"$f":"SUMPRODUCT((WorkingP!$A$5:$A$83='Payments - Summary'!A430)*(WorkingP!$D$5:$E$83))","v":0},null,null,{"$f":"'Prior Year Comparative'!B987","v":0},null,null,null,null,null,null,null,null,null,null,null,null,null,null,null,null,null,null,null,null,null,0]
[{"$f":"IF(Descriptions!K61=\"Other Expenditure\",Descriptions!I61,0)","v":0},{"$f":"SUMPRODUCT((WorkingP!$A$5:$A$83='Payments - Summary'!A431)*(WorkingP!$D$5:$E$83))","v":0},null,null,{"$f":"'Prior Year Comparative'!B988","v":0},null,null,null,null,null,null,null,null,null,null,null,null,null,null,null,null,null,null,null,null,null,0]
[{"$f":"IF(Descriptions!K62=\"Other Expenditure\",Descriptions!I62,0)","v":0},{"$f":"SUMPRODUCT((WorkingP!$A$5:$A$83='Payments - Summary'!A432)*(WorkingP!$D$5:$E$83))","v":0},null,null,{"$f":"'Prior Year Comparative'!B989","v":0},null,null,null,null,null,null,null,null,null,null,null,null,null,null,null,null,null,null,null,null,null,0]
[{"$f":"IF(Descriptions!K63=\"Other Expenditure\",Descriptions!I63,0)","v":0},{"$f":"SUMPRODUCT((WorkingP!$A$5:$A$83='Payments - Summary'!A433)*(WorkingP!$D$5:$E$83))","v":0},null,null,{"$f":"'Prior Year Comparative'!B990","v":0},null,null,null,null,null,null,null,null,null,null,null,null,null,null,null,null,null,null,null,null,null,0]
[{"$f":"IF(Descriptions!K64=\"Other Expenditure\",Descriptions!I64,0)","v":0},{"$f":"SUMPRODUCT((WorkingP!$A$5:$A$83='Payments - Summary'!A434)*(WorkingP!$D$5:$E$83))","v":0},null,null,{"$f":"'Prior Year Comparative'!B991","v":0},null,null,null,null,null,null,null,null,null,null,null,null,null,null,null,null,null,null,null,null,null,0]
[{"$f":"IF(Descriptions!K65=\"Other Expenditure\",Descriptions!I65,0)","v":0},{"$f":"SUMPRODUCT((WorkingP!$A$5:$A$83='Payments - Summary'!A435)*(WorkingP!$D$5:$E$83))","v":0},null,null,{"$f":"'Prior Year Comparative'!B992","v":0},null,null,null,null,null,null,null,null,null,null,null,null,null,null,null,null,null,null,null,null,null,0]
[{"$f":"IF(Descriptions!K66=\"Other Expenditure\",Descriptions!I66,0)","v":0},{"$f":"SUMPRODUCT((WorkingP!$A$5:$A$83='Payments - Summary'!A436)*(WorkingP!$D$5:$E$83))","v":0},null,null,{"$f":"'Prior Year Comparative'!B993","v":0},null,null,null,null,null,null,null,null,null,null,null,null,null,null,null,null,null,null,null,null,null,0]
[{"$f":"IF(Descriptions!K67=\"Other Expenditure\",Descriptions!I67,0)","v":0},{"$f":"SUMPRODUCT((WorkingP!$A$5:$A$83='Payments - Summary'!A437)*(WorkingP!$D$5:$E$83))","v":0},null,null,{"$f":"'Prior Year Comparative'!B994","v":0},null,null,null,null,null,null,null,null,null,null,null,null,null,null,null,null,null,null,null,null,null,0]
[{"$f":"IF(Descriptions!K68=\"Other Expenditure\",Descriptions!I68,0)","v":0},{"$f":"SUMPRODUCT((WorkingP!$A$5:$A$83='Payments - Summary'!A438)*(WorkingP!$D$5:$E$83))","v":0},null,null,{"$f":"'Prior Year Comparative'!B995","v":0},null,null,null,null,null,null,null,null,null,null,null,null,null,null,null,null,null,null,null,null,null,0]
[{"$f":"IF(Descriptions!K69=\"Other Expenditure\",Descriptions!I69,0)","v":0},{"$f":"SUMPRODUCT((WorkingP!$A$5:$A$83='Payments - Summary'!A439)*(WorkingP!$D$5:$E$83))","v":0},null,null,{"$f":"'Prior Year Comparative'!B996","v":0},null,null,null,null,null,null,null,null,null,null,null,null,null,null,null,null,null,null,null,null,null,0]
[{"$f":"IF(Descriptions!K70=\"Other Expenditure\",Descriptions!I70,0)","v":0},{"$f":"SUMPRODUCT((WorkingP!$A$5:$A$83='Payments - Summary'!A440)*(WorkingP!$D$5:$E$83))","v":0},null,null,{"$f":"'Prior Year Comparative'!B997","v":0},null,null,null,null,null,null,null,null,null,null,null,null,null,null,null,null,null,null,null,null,null,0]
[{"$f":"IF(Descriptions!K71=\"Other Expenditure\",Descriptions!I71,0)","v":0},{"$f":"SUMPRODUCT((WorkingP!$A$5:$A$83='Payments - Summary'!A441)*(WorkingP!$D$5:$E$83))","v":0},null,null,{"$f":"'Prior Year Comparative'!B998","v":0},null,null,null,null,null,null,null,null,null,null,null,null,null,null,null,null,null,null,null,null,null,0]
[{"$f":"IF(Descriptions!K72=\"Other Expenditure\",Descriptions!I72,0)","v":0},{"$f":"SUMPRODUCT((WorkingP!$A$5:$A$83='Payments - Summary'!A442)*(WorkingP!$D$5:$E$83))","v":0},null,null,{"$f":"'Prior Year Comparative'!B999","v":0},null,null,null,null,null,null,null,null,null,null,null,null,null,null,null,null,null,null,null,null,null,0]
[{"$f":"IF(Descriptions!K73=\"Other Expenditure\",Descriptions!I73,0)","v":0},{"$f":"SUMPRODUCT((WorkingP!$A$5:$A$83='Payments - Summary'!A443)*(WorkingP!$D$5:$E$83))","v":0},null,null,{"$f":"'Prior Year Comparative'!B1000","v":0},null,null,null,null,null,null,null,null,null,null,null,null,null,null,null,null,null,null,null,null,null,0]
[{"$f":"IF(Descriptions!K74=\"Other Expenditure\",Descriptions!I74,0)","v":0},{"$f":"SUMPRODUCT((WorkingP!$A$5:$A$83='Payments - Summary'!A444)*(WorkingP!$D$5:$E$83))","v":0},null,null,{"$f":"'Prior Year Comparative'!B1001","v":0},null,null,null,null,null,null,null,null,null,null,null,null,null,null,null,null,null,null,null,null,null,0]
[{"$f":"IF(Descriptions!K75=\"Other Expenditure\",Descriptions!I75,0)","v":0},{"$f":"SUMPRODUCT((WorkingP!$A$5:$A$83='Payments - Summary'!A445)*(WorkingP!$D$5:$E$83))","v":0},null,null,{"$f":"'Prior Year Comparative'!B1002","v":0},null,null,null,null,null,null,null,null,null,null,null,null,null,null,null,null,null,null,null,null,null,0]
[{"$f":"IF(Descriptions!K76=\"Other Expenditure\",Descriptions!I76,0)","v":0},{"$f":"SUMPRODUCT((WorkingP!$A$5:$A$83='Payments - Summary'!A446)*(WorkingP!$D$5:$E$83))","v":0},null,null,{"$f":"'Prior Year Comparative'!B1003","v":0},null,null,null,null,null,null,null,null,null,null,null,null,null,null,null,null,null,null,null,null,null,0]
[{"$f":"IF(Descriptions!K77=\"Other Expenditure\",Descriptions!I77,0)","v":0},{"$f":"SUMPRODUCT((WorkingP!$A$5:$A$83='Payments - Summary'!A447)*(WorkingP!$D$5:$E$83))","v":0},null,null,{"$f":"'Prior Year Comparative'!B1004","v":0},null,null,null,null,null,null,null,null,null,null,null,null,null,null,null,null,null,null,null,null,null,0]
[{"$f":"IF(Descriptions!K78=\"Other Expenditure\",Descriptions!I78,0)","v":0},{"$f":"SUMPRODUCT((WorkingP!$A$5:$A$83='Payments - Summary'!A448)*(WorkingP!$D$5:$E$83))","v":0},null,null,{"$f":"'Prior Year Comparative'!B1005","v":0},null,null,null,null,null,null,null,null,null,null,null,null,null,null,null,null,null,null,null,null,null,0]
[{"$f":"IF(Descriptions!K79=\"Other Expenditure\",Descriptions!I79,0)","v":0},{"$f":"SUMPRODUCT((WorkingP!$A$5:$A$83='Payments - Summary'!A449)*(WorkingP!$D$5:$E$83))","v":0},null,null,{"$f":"'Prior Year Comparative'!B1006","v":0},null,null,null,null,null,null,null,null,null,null,null,null,null,null,null,null,null,null,null,null,null,0]
[{"$f":"IF(Descriptions!K80=\"Other Expenditure\",Descriptions!I80,0)","v":0},{"$f":"SUMPRODUCT((WorkingP!$A$5:$A$83='Payments - Summary'!A450)*(WorkingP!$D$5:$E$83))","v":0},null,null,{"$f":"'Prior Year Comparative'!B1007","v":0},null,null,null,null,null,null,null,null,null,null,null,null,null,null,null,null,null,null,null,null,null,0]
[{"$f":"IF(Descriptions!K81=\"Other Expenditure\",Descriptions!I81,0)","v":0},{"$f":"SUMPRODUCT((WorkingP!$A$5:$A$83='Payments - Summary'!A451)*(WorkingP!$D$5:$E$83))","v":0},null,null,{"$f":"'Prior Year Comparative'!B1008","v":0},null,null,null,null,null,null,null,null,null,null,null,null,null,null,null,null,null,null,null,null,null,0]
[{"$f":"IF(Descriptions!K82=\"Other Expenditure\",Descriptions!I82,0)","v":0},{"$f":"SUMPRODUCT((WorkingP!$A$5:$A$83='Payments - Summary'!A452)*(WorkingP!$D$5:$E$83))","v":0},null,null,{"$f":"'Prior Year Comparative'!B1009","v":0},null,null,null,null,null,null,null,null,null,null,null,null,null,null,null,null,null,null,null,null,null,0]
[{"$f":"IF(Descriptions!K83=\"Other Expenditure\",Descriptions!I83,0)","v":0},{"$f":"SUMPRODUCT((WorkingP!$A$5:$A$83='Payments - Summary'!A453)*(WorkingP!$D$5:$E$83))","v":0},null,null,{"$f":"'Prior Year Comparative'!B1010","v":0},null,null,null,null,null,null,null,null,null,null,null,null,null,null,null,null,null,null,null,null,null,0]
[{"$f":"IF(Descriptions!K84=\"Other Expenditure\",Descriptions!I84,0)","v":0},{"$f":"SUMPRODUCT((WorkingP!$A$5:$A$83='Payments - Summary'!A454)*(WorkingP!$D$5:$E$83))","v":0},null,null,{"$f":"'Prior Year Comparative'!B1011","v":0},null,null,null,null,null,null,null,null,null,null,null,null,null,null,null,null,null,null,null,null,null,0]
[null,null,{"$f":"SUM(B402:B454)","v":0},null,null,{"$f":"SUM(E402:E454)","v":0},null,null,null,null,null,null,null,null,null,null,null,null,null,null,null,null,null,null,null,null,{"$f":"AA401","v":0}]
[null,null,null,null,null,null,null,null,null,null,null,null,null,null,null,null,null,null,null,null,null,null,null,null,null,null,1]
["TOTAL PAYMENTS",null,{"$f":"SUM(C63:C456)","v":0},null,null,{"$f":"SUM(F63:F455)","v":0},null,null,null,null,null,null,null,null,null,null,null,null,null,null,null,null,null,null,null,null,1]
[null,null,null,null,null,null,null,null,null,null,null,null,null,null,null,null,null,null,null,null,null,null,null,null,null,null,1]
["TOTAL RECEIPTS",null,{"$f":"'Receipts - Summary'!C568","v":0},null,null,{"$f":"'Receipts - Summary'!F568","v":0},null,null,null,null,null,null,null,null,null,null,null,null,null,null,null,null,null,null,null,null,1]
[null,null,null,null,null,null,null,null,null,null,null,null,null,null,null,null,null,null,null,null,null,null,null,null,null,null,1]
["EXCESS OF RECEIPTS OVER PAYMENTS",null,{"$f":"C459-C457","v":0},null,null,{"$f":"F459-F457","v":0},null,null,null,null,null,null,null,null,null,null,null,null,null,null,null,null,null,null,null,null,1]

{"sheet":"Budget Monitoring","index":19,"n_rows":41,"n_cols":17,"rows_kept":41,"cut":false,"hidden":false,"merged":[[8,1,8,4],[8,9,8,12],[8,13,8,16],[8,5,8,8],[3,0,3,17]]}
[]
[]
[]
[{"$f":"'Name and Parish'!D13","v":0}]
["Budget Monitoring"]
[{"$f":"CONCATENATE('Name and Parish'!D15,\" \",'Budget Monitoring'!A5)","v":"2023 Budget Monitoring"},"Date From",null,null,null,null,{"$f":"SUM(C7-C6)","v":0}]
[null,"Date To"]
["Y","Y","Y","Y","Y",{"$f":"IF(F41=0,\"N\",\"Y\")","v":"N"},"N","N","N","N","N","N","N","N","N","N","N"]
[null,"Unrestricted funds",null,null,null,"Designated funds",null,null,null,"Restricted funds",null,null,null,"Total funds"]
[null,"Budget for the year","Budget to date","Actual to date","Variance to date","Budget for the year","Budget to date","Actual to date","Variance to date",{"$f":"B10","v":"Budget for the year"},{"$f":"C10","v":"Budget to date"},{"$f":"D10","v":"Actual to date"},{"$f":"E10","v":"Variance to date"},{"$f":"B10","v":"Budget for the year"},{"$f":"C10","v":"Budget to date"},{"$f":"D10","v":"Actual to date"},{"$f":"E10","v":"Variance to date"}]
[null,"£","£","£","£","£","£","£","£","£","£","£","£","£","£","£","£"]
["RECEIPTS"]
["Voluntary receipts:"]
["Collections at services",{"$f":"SUMPRODUCT(('Budget Setting'!$B$2:$V$2=\"Unrestricted\")*('Budget Setting'!$B$64:$V$64))","v":0},{"$f":"SUM(B14/365*$G$6)","v":0},{"$f":"SUMPRODUCT((Receipts!$B$5:$B$1355>=$C$6)*((Receipts!$B$5:$B$1355<=$C$7))*(((Receipts!$K$5:$K$1355=\"Unrestricted\"))),((((Receipts!$L$5:$L$1355=A14))))*Receipts!$E$5:$E$1355)","v":0},{"$f":"-C14+D14","v":0},{"$f":"SUMPRODUCT(('Budget Setting'!$B$2:$V$2=\"Designated\")*('Budget Setting'!$B$64:$V$64))","v":0},{"$f":"SUM(F14/365*$G$6)","v":0},{"$f":"SUMPRODUCT((Receipts!$B$5:$B$1355>=$C$6)*((Receipts!$B$5:$B$1355<=$C$7))*(((Receipts!$K$5:$K$1355=\"Designated\"))),((((Receipts!$L$5:$L$1355=A14))))*Receipts!$E$5:$E$1355)","v":0},{"$f":"-G14+H14","v":0},{"$f":"SUMPRODUCT(('Budget Setting'!$B$2:$V$2=\"Restricted\")*('Budget Setting'!$B$64:$V$64))","v":0},{"$f":"SUM(J14/365*$G$6)","v":0},{"$f":"SUMPRODUCT((Receipts!$B$5:$B$1355>=$C$6)*((Receipts!$B$5:$B$1355<=$C$7))*(((Receipts!$K$5:$K$1355=\"Restricted\"))),((((Receipts!$L$5:$L$1355=A14))))*Receipts!$E$5:$E$1355)","v":0},{"$f":"-K14+L14","v":0},{"$f":"B14+F14+J14","v":0},0,0,0]
["Planned Giving",{"$f":"SUMPRODUCT(('Budget Setting'!$B$2:$V$2=\"Unrestricted\")*('Budget Setting'!$B$118:$V$118))","v":0},{"$f":"SUM(B15/365*$G$6)","v":0},{"$f":"SUMPRODUCT((Receipts!$B$5:$B$1355>=$C$6)*((Receipts!$B$5:$B$1355<=$C$7))*(((Receipts!$K$5:$K$1355=\"Unrestricted\"))),((((Receipts!$L$5:$L$1355=A15))))*Receipts!$E$5:$E$1355)","v":0},{"$f":"-C15+D15","v":0},{"$f":"SUMPRODUCT(('Budget Setting'!$B$2:$V$2=\"Designated\")*('Budget Setting'!$B$118:$V$118))","v":0},{"$f":"SUM(F15/365*$G$6)","v":0},{"$f":"SUMPRODUCT((Receipts!$B$5:$B$1355>=$C$6)*((Receipts!$B$5:$B$1355<=$C$7))*(((Receipts!$K$5:$K$1355=\"Designated\"))),((((Receipts!$L$5:$L$1355=A15))))*Receipts!$E$5:$E$1355)","v":0},{"$f":"-G15+H15","v":0},{"$f":"SUMPRODUCT(('Budget Setting'!$B$2:$V$2=\"Restricted\")*('Budget Setting'!$B$118:$V$118))","v":0},{"$f":"SUM(J15/365*$G$6)","v":0},{"$f":"SUMPRODUCT((Receipts!$B$5:$B$1355>=$C$6)*((Receipts!$B$5:$B$1355<=$C$7))*(((Receipts!$K$5:$K$1355=\"Restricted\"))),((((Receipts!$L$5:$L$1355=A15))))*Receipts!$E$5:$E$1355)","v":0},{"$f":"-K15+L15","v":0},0,0,0,0]
["Gift Aid recovered",{"$f":"SUMPRODUCT(('Budget Setting'!$B$2:$V$2=\"Unrestricted\")*('Budget Setting'!$B$171:$V$171))","v":0},{"$f":"SUM(B16/365*$G$6)","v":0},{"$f":"SUMPRODUCT((Receipts!$B$5:$B$1355>=$C$6)*((Receipts!$B$5:$B$1355<=$C$7))*(((Receipts!$K$5:$K$1355=\"Unrestricted\"))),((((Receipts!$L$5:$L$1355=A16))))*Receipts!$E$5:$E$1355)","v":0},{"$f":"-C16+D16","v":0},{"$f":"SUMPRODUCT(('Budget Setting'!$B$2:$V$2=\"Designated\")*('Budget Setting'!$B$171:$V$171))","v":0},0,{"$f":"SUMPRODUCT((Receipts!$B$5:$B$1355>=$C$6)*((Receipts!$B$5:$B$1355<=$C$7))*(((Receipts!$K$5:$K$1355=\"Designated\"))),((((Receipts!$L$5:$L$1355=A16))))*Receipts!$E$5:$E$1355)","v":0},0,{"$f":"SUMPRODUCT(('Budget Setting'!$B$2:$V$2=\"Restricted\")*('Budget Setting'!$B$171:$V$171))","v":0},0,{"$f":"SUMPRODUCT((Receipts!$B$5:$B$1355>=$C$6)*((Receipts!$B$5:$B$1355<=$C$7))*(((Receipts!$K$5:$K$1355=\"Restricted\"))),((((Receipts!$L$5:$L$1355=A16))))*Receipts!$E$5:$E$1355)","v":0},{"$f":"-K16+L16","v":0},0,0,0,0]
["All other giving/voluntary receipts",{"$f":"SUMPRODUCT(('Budget Setting'!$B$2:$V$2=\"Unrestricted\")*('Budget Setting'!$B$230:$V$230))","v":0},{"$f":"SUM(B17/365*$G$6)","v":0},{"$f":"SUMPRODUCT((Receipts!$B$5:$B$1355>=$C$6)*((Receipts!$B$5:$B$1355<=$C$7))*(((Receipts!$K$5:$K$1355=\"Unrestricted\"))),((((Receipts!$L$5:$L$1355=A17))))*Receipts!$E$5:$E$1355)","v":0},{"$f":"-C17+D17","v":0},{"$f":"SUMPRODUCT(('Budget Setting'!$B$2:$V$2=\"Designated\")*('Budget Setting'!$B$230:$V$230))","v":0},0,{"$f":"SUMPRODUCT((Receipts!$B$5:$B$1355>=$C$6)*((Receipts!$B$5:$B$1355<=$C$7))*(((Receipts!$K$5:$K$1355=\"Designated\"))),((((Receipts!$L$5:$L$1355=A17))))*Receipts!$E$5:$E$1355)","v":0},0,{"$f":"SUMPRODUCT(('Budget Setting'!$B$2:$V$2=\"Restricted\")*('Budget Setting'!$B$230:$V$230))","v":0},0,{"$f":"SUMPRODUCT((Receipts!$B$5:$B$1355>=$C$6)*((Receipts!$B$5:$B$1355<=$C$7))*(((Receipts!$K$5:$K$1355=\"Restricted\"))),((((Receipts!$L$5:$L$1355=A17))))*Receipts!$E$5:$E$1355)","v":0},{"$f":"-K17+L17","v":0},0,0,0,0]
["Total voluntary receipts",{"$f":"SUM(B14:B17)","v":0},{"$f":"SUM(C14:C17)","v":0},{"$f":"SUM(D14:D17)","v":0},0,{"$f":"SUM(F14:F17)","v":0},{"$f":"SUM(G14:G17)","v":0},{"$f":"SUM(H14:H17)","v":0},{"$f":"SUM(I14:I17)","v":0},{"$f":"SUM(J14:J17)","v":0},0,0,0,0,0,0,0]
["Activities for generating funds",{"$f":"SUMPRODUCT(('Budget Setting'!$B$2:$V$2=\"Unrestricted\")*('Budget Setting'!$B$288:$V$288))","v":0},{"$f":"SUM(B19/365*$G$6)","v":0},{"$f":"SUMPRODUCT((Receipts!$B$5:$B$1355>=$C$6)*((Receipts!$B$5:$B$1355<=$C$7))*(((Receipts!$K$5:$K$1355=\"Unrestricted\"))),((((Receipts!$L$5:$L$1355=A19))))*Receipts!$E$5:$E$1355)","v":0},{"$f":"-C19+D19","v":0},{"$f":"SUMPRODUCT(('Budget Setting'!$B$2:$V$2=\"Designated\")*('Budget Setting'!$B$288:$V$288))","v":0},0,{"$f":"SUMPRODUCT((Receipts!$B$5:$B$1355>=$C$6)*((Receipts!$B$5:$B$1355<=$C$7))*(((Receipts!$K$5:$K$1355=\"Designated\"))),((((Receipts!$L$5:$L$1355=A19))))*Receipts!$E$5:$E$1355)","v":0},{"$f":"-G19+H19","v":0},{"$f":"SUMPRODUCT(('Budget Setting'!$B$2:$V$2=\"Restricted\")*('Budget Setting'!$B$288:$V$288))","v":0},{"$f":"SUM(J19/365*$G$6)","v":0},{"$f":"SUMPRODUCT((Receipts!$B$5:$B$1355>=$C$6)*((Receipts!$B$5:$B$1355<=$C$7))*(((Receipts!$K$5:$K$1355=\"Restricted\"))),((((Receipts!$L$5:$L$1355=A19))))*Receipts!$E$5:$E$1355)","v":0},{"$f":"-K19+L19","v":0},{"$f":"B19+F19+J19","v":0},0,0,0]
["Church activities",{"$f":"SUMPRODUCT(('Budget Setting'!$B$2:$V$2=\"Unrestricted\")*('Budget Setting'!$B$347:$V$347))","v":0},0,{"$f":"SUMPRODUCT((Receipts!$B$5:$B$1355>=$C$6)*((Receipts!$B$5:$B$1355<=$C$7))*(((Receipts!$K$5:$K$1355=\"Unrestricted\"))),((((Receipts!$L$5:$L$1355=A20))))*Receipts!$E$5:$E$1355)","v":0},{"$f":"-C20+D20","v":0},{"$f":"SUMPRODUCT(('Budget Setting'!$B$2:$V$2=\"Designated\")*('Budget Setting'!$B$347:$V$347))","v":0},0,{"$f":"SUMPRODUCT((Receipts!$B$5:$B$1355>=$C$6)*((Receipts!$B$5:$B$1355<=$C$7))*(((Receipts!$K$5:$K$1355=\"Designated\"))),((((Receipts!$L$5:$L$1355=A20))))*Receipts!$E$5:$E$1355)","v":0},0,{"$f":"SUMPRODUCT(('Budget Setting'!$B$2:$V$2=\"Restricted\")*('Budget Setting'!$B$347:$V$347))","v":0},0,{"$f":"SUMPRODUCT((Receipts!$B$5:$B$1355>=$C$6)*((Receipts!$B$5:$B$1355<=$C$7))*(((Receipts!$K$5:$K$1355=\"Restricted\"))),((((Receipts!$L$5:$L$1355=A20))))*Receipts!$E$5:$E$1355)","v":0},{"$f":"-K20+L20","v":0},0,0,0,0]
["Investment income",{"$f":"SUMPRODUCT(('Budget Setting'!$B$2:$V$2=\"Unrestricted\")*('Budget Setting'!$B$400:$V$400))","v":0},0,{"$f":"SUMPRODUCT((Receipts!$B$5:$B$1355>=$C$6)*((Receipts!$B$5:$B$1355<=$C$7))*(((Receipts!$K$5:$K$1355=\"Unrestricted\"))),((((Receipts!$L$5:$L$1355=A21))))*Receipts!$E$5:$E$1355)","v":0},{"$f":"-C21+D21","v":0},{"$f":"SUMPRODUCT(('Budget Setting'!$B$2:$V$2=\"Designated\")*('Budget Setting'!$B$400:$V$400))","v":0},0,{"$f":"SUMPRODUCT((Receipts!$B$5:$B$1355>=$C$6)*((Receipts!$B$5:$B$1355<=$C$7))*(((Receipts!$K$5:$K$1355=\"Designated\"))),((((Receipts!$L$5:$L$1355=A21))))*Receipts!$E$5:$E$1355)","v":0},0,{"$f":"SUMPRODUCT(('Budget Setting'!$B$2:$V$2=\"Restricted\")*('Budget Setting'!$B$400:$V$400))","v":0},0,{"$f":"SUMPRODUCT((Receipts!$B$5:$B$1355>=$C$6)*((Receipts!$B$5:$B$1355<=$C$7))*(((Receipts!$K$5:$K$1355=\"Restricted\"))),((((Receipts!$L$5:$L$1355=A21))))*Receipts!$E$5:$E$1355)","v":0},{"$f":"-K21+L21","v":0},0,0,0,0]
["Grant income",{"$f":"SUMPRODUCT(('Budget Setting'!$B$2:$V$2=\"Unrestricted\")*('Budget Setting'!$B$453:$V$453))","v":0},0,{"$f":"SUMPRODUCT((Receipts!$B$5:$B$1355>=$C$6)*((Receipts!$B$5:$B$1355<=$C$7))*(((Receipts!$K$5:$K$1355=\"Unrestricted\"))),((((Receipts!$L$5:$L$1355=A22))))*Receipts!$E$5:$E$1355)","v":0},0,{"$f":"SUMPRODUCT(('Budget Setting'!$B$2:$V$2=\"Designated\")*('Budget Setting'!$B$453:$V$453))","v":0},0,{"$f":"SUMPRODUCT((Receipts!$B$5:$B$1355>=$C$6)*((Receipts!$B$5:$B$1355<=$C$7))*(((Receipts!$K$5:$K$1355=\"Designated\"))),((((Receipts!$L$5:$L$1355=A22))))*Receipts!$E$5:$E$1355)","v":0},0,{"$f":"SUMPRODUCT(('Budget Setting'!$B$2:$V$2=\"Restricted\")*('Budget Setting'!$B$453:$V$453))","v":0},0,{"$f":"SUMPRODUCT((Receipts!$B$5:$B$1355>=$C$6)*((Receipts!$B$5:$B$1355<=$C$7))*(((Receipts!$K$5:$K$1355=\"Restricted\"))),((((Receipts!$L$5:$L$1355=A22))))*Receipts!$E$5:$E$1355)","v":0},{"$f":"-K22+L22","v":0},0,0,0,0]
["Legacies received",{"$f":"SUMPRODUCT(('Budget Setting'!$B$2:$V$2=\"Unrestricted\")*('Budget Setting'!$B$507:$V$507))","v":0},0,{"$f":"SUMPRODUCT((Receipts!$B$5:$B$1355>=$C$6)*((Receipts!$B$5:$B$1355<=$C$7))*(((Receipts!$K$5:$K$1355=\"Unrestricted\"))),((((Receipts!$L$5:$L$1355=A23))))*Receipts!$E$5:$E$1355)","v":0},0,{"$f":"SUMPRODUCT(('Budget Setting'!$B$2:$V$2=\"Designated\")*('Budget Setting'!$B$507:$V$507))","v":0},0,{"$f":"SUMPRODUCT((Receipts!$B$5:$B$1355>=$C$6)*((Receipts!$B$5:$B$1355<=$C$7))*(((Receipts!$K$5:$K$1355=\"Designated\"))),((((Receipts!$L$5:$L$1355=A23))))*Receipts!$E$5:$E$1355)","v":0},0,{"$f":"SUMPRODUCT(('Budget Setting'!$B$2:$V$2=\"Restricted\")*('Budget Setting'!$B$507:$V$507))","v":0},0,{"$f":"SUMPRODUCT((Receipts!$B$5:$B$1355>=$C$6)*((Receipts!$B$5:$B$1355<=$C$7))*(((Receipts!$K$5:$K$1355=\"Restricted\"))),((((Receipts!$L$5:$L$1355=A23))))*Receipts!$E$5:$E$1355)","v":0},{"$f":"-K23+L23","v":0},0,0,0,0]
["Other income",{"$f":"SUMPRODUCT(('Budget Setting'!$B$2:$V$2=\"Unrestricted\")*('Budget Setting'!$B$561:$V$561))","v":0},0,{"$f":"SUMPRODUCT((Receipts!$B$5:$B$1355>=$C$6)*((Receipts!$B$5:$B$1355<=$C$7))*(((Receipts!$K$5:$K$1355=\"Unrestricted\"))),((((Receipts!$L$5:$L$1355=A24))))*Receipts!$E$5:$E$1355)","v":0},0,{"$f":"SUMPRODUCT(('Budget Setting'!$B$2:$V$2=\"Designated\")*('Budget Setting'!$B$561:$V$561))","v":0},0,{"$f":"SUMPRODUCT((Receipts!$B$5:$B$1355>=$C$6)*((Receipts!$B$5:$B$1355<=$C$7))*(((Receipts!$K$5:$K$1355=\"Designated\"))),((((Receipts!$L$5:$L$1355=A24))))*Receipts!$E$5:$E$1355)","v":0},0,{"$f":"SUMPRODUCT(('Budget Setting'!$B$2:$V$2=\"Restricted\")*('Budget Setting'!$B$561:$V$561))","v":0},0,{"$f":"SUMPRODUCT((Receipts!$B$5:$B$1355>=$C$6)*((Receipts!$B$5:$B$1355<=$C$7))*(((Receipts!$K$5:$K$1355=\"Restricted\"))),((((Receipts!$L$5:$L$1355=A24))))*Receipts!$E$5:$E$1355)","v":0},0,0,0,0,0]
["TOTAL RECEIPTS",{"$f":"SUM(B18:B24)","v":0},{"$f":"SUM(C18:C24)","v":0},0,0,{"$f":"SUM(F18:F24)","v":0},0,{"$f":"SUM(H18:H24)","v":0},{"$f":"SUM(I18:I24)","v":0},{"$f":"SUM(J18:J24)","v":0},0,{"$f":"SUM(L18:L24)","v":0},0,0,0,0,0]
["PAYMENTS"]
["Church activities:"]
["Parish Share",{"$f":"SUMPRODUCT(('Budget Setting'!$B$2:$V$2=\"Unrestricted\")*('Budget Setting'!$B$620:$V$620))","v":0},{"$f":"SUM(B28/365*$G$6)","v":0},{"$f":"SUMPRODUCT((Payments!$B$5:$B$1355>=$C$6)*((Payments!$B$5:$B$1355<=$C$7))*(((Payments!$K$5:$K$1355=\"Unrestricted\"))),((((Payments!$L$5:$L$1355=A28))))*Payments!$E$5:$E$1355)","v":0},{"$f":"C28-D28","v":0},{"$f":"SUMPRODUCT(('Budget Setting'!$B$2:$V$2=\"Designated\")*('Budget Setting'!$B$620:$V$620))","v":0},{"$f":"SUM(F28/365*$G$6)","v":0},{"$f":"SUMPRODUCT((Payments!$B$5:$B$1355>=$C$6)*((Payments!$B$5:$B$1355<=$C$7))*(((Payments!$K$5:$K$1355=\"Designated\"))),((((Payments!$L$5:$L$1355=A28))))*Payments!$E$5:$E$1355)","v":0},{"$f":"-G28+H28","v":0},{"$f":"SUMPRODUCT(('Budget Setting'!$B$2:$V$2=\"Restricted\")*('Budget Setting'!$B$620:$V$620))","v":0},{"$f":"SUM(J28/365*$G$6)","v":0},{"$f":"SUMPRODUCT((Payments!$B$5:$B$1355>=$C$6)*((Payments!$B$5:$B$1355<=$C$7))*(((Payments!$K$5:$K$1355=\"Restricted\"))),((((Payments!$L$5:$L$1355=A28))))*Payments!$E$5:$E$1355)","v":0},{"$f":"K28-L28","v":0},{"$f":"B28+F28+J28","v":0},0,0,0]
["Clergy and staffing costs",{"$f":"SUMPRODUCT(('Budget Setting'!$B$2:$V$2=\"Unrestricted\")*('Budget Setting'!$B$675:$V$675))","v":0},{"$f":"SUM(B29/365*$G$6)","v":0},{"$f":"SUMPRODUCT((Payments!$B$5:$B$1355>=$C$6)*((Payments!$B$5:$B$1355<=$C$7))*(((Payments!$K$5:$K$1355=\"Unrestricted\"))),((((Payments!$L$5:$L$1355=A29))))*Payments!$E$5:$E$1355)","v":0},{"$f":"C29-D29","v":0},{"$f":"SUMPRODUCT(('Budget Setting'!$B$2:$V$2=\"Designated\")*('Budget Setting'!$B$675:$V$675))","v":0},0,{"$f":"SUMPRODUCT((Payments!$B$5:$B$1355>=$C$6)*((Payments!$B$5:$B$1355<=$C$7))*(((Payments!$K$5:$K$1355=\"Designated\"))),((((Payments!$L$5:$L$1355=A29))))*Payments!$E$5:$E$1355)","v":0},{"$f":"-G29+H29","v":0},{"$f":"SUMPRODUCT(('Budget Setting'!$B$2:$V$2=\"Restricted\")*('Budget Setting'!$B$675:$V$675))","v":0},0,{"$f":"SUMPRODUCT((Payments!$B$5:$B$1355>=$C$6)*((Payments!$B$5:$B$1355<=$C$7))*(((Payments!$K$5:$K$1355=\"Restricted\"))),((((Payments!$L$5:$L$1355=A29))))*Payments!$E$5:$E$1355)","v":0},{"$f":"K29-L29","v":0},0,0,0,0]
["Church running expenses",{"$f":"SUMPRODUCT(('Budget Setting'!$B$2:$V$2=\"Unrestricted\")*('Budget Setting'!$B$733:$V$733))","v":0},{"$f":"SUM(B30/365*$G$6)","v":0},{"$f":"SUMPRODUCT((Payments!$B$5:$B$1355>=$C$6)*((Payments!$B$5:$B$1355<=$C$7))*(((Payments!$K$5:$K$1355=\"Unrestricted\"))),((((Payments!$L$5:$L$1355=A30))))*Payments!$E$5:$E$1355)","v":0},{"$f":"C30-D30","v":0},{"$f":"SUMPRODUCT(('Budget Setting'!$B$2:$V$2=\"Designated\")*('Budget Setting'!$B$733:$V$733))","v":0},0,{"$f":"SUMPRODUCT((Payments!$B$5:$B$1355>=$C$6)*((Payments!$B$5:$B$1355<=$C$7))*(((Payments!$K$5:$K$1355=\"Designated\"))),((((Payments!$L$5:$L$1355=A30))))*Payments!$E$5:$E$1355)","v":0},0,{"$f":"SUMPRODUCT(('Budget Setting'!$B$2:$V$2=\"Restricted\")*('Budget Setting'!$B$733:$V$733))","v":0},0,{"$f":"SUMPRODUCT((Payments!$B$5:$B$1355>=$C$6)*((Payments!$B$5:$B$1355<=$C$7))*(((Payments!$K$5:$K$1355=\"Restricted\"))),((((Payments!$L$5:$L$1355=A30))))*Payments!$E$5:$E$1355)","v":0},{"$f":"K30-L30","v":0},0,0,0,0]
["Mission giving and donations",{"$f":"SUMPRODUCT(('Budget Setting'!$B$2:$V$2=\"Unrestricted\")*('Budget Setting'!$B$789:$V$789))","v":0},{"$f":"SUM(B31/365*$G$6)","v":0},{"$f":"SUMPRODUCT((Payments!$B$5:$B$1355>=$C$6)*((Payments!$B$5:$B$1355<=$C$7))*(((Payments!$K$5:$K$1355=\"Unrestricted\"))),((((Payments!$L$5:$L$1355=A31))))*Payments!$E$5:$E$1355)","v":0},{"$f":"C31-D31","v":0},{"$f":"SUMPRODUCT(('Budget Setting'!$B$2:$V$2=\"Designated\")*('Budget Setting'!$B$789:$V$789))","v":0},0,{"$f":"SUMPRODUCT((Payments!$B$5:$B$1355>=$C$6)*((Payments!$B$5:$B$1355<=$C$7))*(((Payments!$K$5:$K$1355=\"Designated\"))),((((Payments!$L$5:$L$1355=A31))))*Payments!$E$5:$E$1355)","v":0},0,{"$f":"SUMPRODUCT(('Budget Setting'!$B$2:$V$2=\"Restricted\")*('Budget Setting'!$B$789:$V$789))","v":0},0,{"$f":"SUMPRODUCT((Payments!$B$5:$B$1355>=$C$6)*((Payments!$B$5:$B$1355<=$C$7))*(((Payments!$K$5:$K$1355=\"Restricted\"))),((((Payments!$L$5:$L$1355=A31))))*Payments!$E$5:$E$1355)","v":0},{"$f":"K31-L31","v":0},0,0,0,0]
["Total church activities",{"$f":"SUM(B28:B31)","v":0},0,0,0,{"$f":"SUM(F28:F31)","v":0},0,0,0,{"$f":"SUM(J28:J31)","v":0},0,0,0,0,0,0,0]
["Building work and repairs",{"$f":"SUMPRODUCT(('Budget Setting'!$B$2:$V$2=\"Unrestricted\")*('Budget Setting'!$B$844:$V$844))","v":0},{"$f":"SUM(B33/365*$G$6)","v":0},{"$f":"SUMPRODUCT((Payments!$B$5:$B$1355>=$C$6)*((Payments!$B$5:$B$1355<=$C$7))*(((Payments!$K$5:$K$1355=\"Unrestricted\"))),((((Payments!$L$5:$L$1355=A33))))*Payments!$E$5:$E$1355)","v":0},{"$f":"C33-D33","v":0},{"$f":"SUMPRODUCT(('Budget Setting'!$B$2:$V$2=\"Designated\")*('Budget Setting'!$B$844:$V$844))","v":0},{"$f":"SUM(F33/365*$G$6)","v":0},{"$f":"SUMPRODUCT((Payments!$B$5:$B$1355>=$C$6)*((Payments!$B$5:$B$1355<=$C$7))*(((Payments!$K$5:$K$1355=\"Designated\"))),((((Payments!$L$5:$L$1355=A33))))*Payments!$E$5:$E$1355)","v":0},{"$f":"-G33+H33","v":0},{"$f":"SUMPRODUCT(('Budget Setting'!$B$2:$V$2=\"Restricted\")*('Budget Setting'!$B$844:$V$844))","v":0},{"$f":"SUM(J33/365*$G$6)","v":0},{"$f":"SUMPRODUCT((Payments!$B$5:$B$1355>=$C$6)*((Payments!$B$5:$B$1355<=$C$7))*(((Payments!$K$5:$K$1355=\"Restricted\"))),((((Payments!$L$5:$L$1355=A33))))*Payments!$E$5:$E$1355)","v":0},{"$f":"K33-L33","v":0},{"$f":"B33+F33+J33","v":0},0,0,0]
["Costs of generating funds",{"$f":"SUMPRODUCT(('Budget Setting'!$B$2:$V$2=\"Unrestricted\")*('Budget Setting'!$B$900:$V$900))","v":0},{"$f":"SUM(B34/365*$G$6)","v":0},{"$f":"SUMPRODUCT((Payments!$B$5:$B$1355>=$C$6)*((Payments!$B$5:$B$1355<=$C$7))*(((Payments!$K$5:$K$1355=\"Unrestricted\"))),((((Payments!$L$5:$L$1355=A34))))*Payments!$E$5:$E$1355)","v":0},{"$f":"C34-D34","v":0},{"$f":"SUMPRODUCT(('Budget Setting'!$B$2:$V$2=\"Designated\")*('Budget Setting'!$B$900:$V$900))","v":0},0,{"$f":"SUMPRODUCT((Payments!$B$5:$B$1355>=$C$6)*((Payments!$B$5:$B$1355<=$C$7))*(((Payments!$K$5:$K$1355=\"Designated\"))),((((Payments!$L$5:$L$1355=A34))))*Payments!$E$5:$E$1355)","v":0},0,{"$f":"SUMPRODUCT(('Budget Setting'!$B$2:$V$2=\"Restricted\")*('Budget Setting'!$B$900:$V$900))","v":0},0,{"$f":"SUMPRODUCT((Payments!$B$5:$B$1355>=$C$6)*((Payments!$B$5:$B$1355<=$C$7))*(((Payments!$K$5:$K$1355=\"Restricted\"))),((((Payments!$L$5:$L$1355=A34))))*Payments!$E$5:$E$1355)","v":0},{"$f":"K34-L34","v":0},0,0,0,0]
["Administration cost",{"$f":"SUMPRODUCT(('Budget Setting'!$B$2:$V$2=\"Unrestricted\")*('Budget Setting'!$B$957:$V$957))","v":0},{"$f":"SUM(B35/365*$G$6)","v":0},{"$f":"SUMPRODUCT((Payments!$B$5:$B$1355>=$C$6)*((Payments!$B$5:$B$1355<=$C$7))*(((Payments!$K$5:$K$1355=\"Unrestricted\"))),((((Payments!$L$5:$L$1355=A35))))*Payments!$E$5:$E$1355)","v":0},{"$f":"C35-D35","v":0},{"$f":"SUMPRODUCT(('Budget Setting'!$B$2:$V$2=\"Designated\")*('Budget Setting'!$B$957:$V$957))","v":0},0,{"$f":"SUMPRODUCT((Payments!$B$5:$B$1355>=$C$6)*((Payments!$B$5:$B$1355<=$C$7))*(((Payments!$K$5:$K$1355=\"Designated\"))),((((Payments!$L$5:$L$1355=A35))))*Payments!$E$5:$E$1355)","v":0},0,{"$f":"SUMPRODUCT(('Budget Setting'!$B$2:$V$2=\"Restricted\")*('Budget Setting'!$B$957:$V$957))","v":0},0,{"$f":"SUMPRODUCT((Payments!$B$5:$B$1355>=$C$6)*((Payments!$B$5:$B$1355<=$C$7))*(((Payments!$K$5:$K$1355=\"Restricted\"))),((((Payments!$L$5:$L$1355=A35))))*Payments!$E$5:$E$1355)","v":0},{"$f":"K35-L35","v":0},0,0,0,0]
["Other expenditure",{"$f":"SUMPRODUCT(('Budget Setting'!$B$2:$V$2=\"Unrestricted\")*('Budget Setting'!$B$1012:$V$1012))","v":0},{"$f":"SUM(B36/365*$G$6)","v":0},{"$f":"SUMPRODUCT((Payments!$B$5:$B$1355>=$C$6)*((Payments!$B$5:$B$1355<=$C$7))*(((Payments!$K$5:$K$1355=\"Unrestricted\"))),((((Payments!$L$5:$L$1355=A36))))*Payments!$E$5:$E$1355)","v":0},{"$f":"C36-D36","v":0},{"$f":"SUMPRODUCT(('Budget Setting'!$B$2:$V$2=\"Designated\")*('Budget Setting'!$B$1012:$V$1012))","v":0},0,{"$f":"SUMPRODUCT((Payments!$B$5:$B$1355>=$C$6)*((Payments!$B$5:$B$1355<=$C$7))*(((Payments!$K$5:$K$1355=\"Designated\"))),((((Payments!$L$5:$L$1355=A36))))*Payments!$E$5:$E$1355)","v":0},0,{"$f":"SUMPRODUCT(('Budget Setting'!$B$2:$V$2=\"Restricted\")*('Budget Setting'!$B$1012:$V$1012))","v":0},0,{"$f":"SUMPRODUCT((Payments!$B$5:$B$1355>=$C$6)*((Payments!$B$5:$B$1355<=$C$7))*(((Payments!$K$5:$K$1355=\"Restricted\"))),((((Payments!$L$5:$L$1355=A36))))*Payments!$E$5:$E$1355)","v":0},{"$f":"K36-L36","v":0},0,0,0,0]
["TOTAL PAYMENTS",{"$f":"SUM(B32:B36)","v":0},0,0,0,0,0,{"$f":"SUM(H32:H36)","v":0},{"$f":"SUM(I32:I36)","v":0},{"$f":"SUM(J32:J36)","v":0},0,0,0,0,0,0,0]
["SURPLUS/-DEFICIT",{"$f":"B25-B37","v":0},{"$f":"C25-C37","v":0},{"$f":"D25-D37","v":0},{"$f":"+E25+E37","v":0},{"$f":"F25-F37","v":0},{"$f":"G25-G37","v":0},{"$f":"H25-H37","v":0},0,{"$f":"J25-J37","v":0},{"$f":"K25-K37","v":0},{"$f":"L25-L37","v":0},{"$f":"+M25+M37","v":0},{"$f":"N25-N37","v":0},{"$f":"O25-O37","v":0},{"$f":"P25-P37","v":0},{"$f":"+Q25+Q37","v":0}]
[]
[null,{"$f":"SUM(B14:B38)","v":0},{"$f":"SUM(C14:C38)","v":0},{"$f":"SUM(D14:D38)","v":0},0,0,0,0,0,0,0,0,0,0,0,0,0]
[null,{"$f":"SUM($B$40:$E$40)","v":0},{"$f":"SUM($B$40:$E$40)","v":0},0,0,{"$f":"SUM($F$40:$I$40)","v":0},{"$f":"SUM($F$40:$I$40)","v":0},0,0,{"$f":"SUM($J$40:$M$40)","v":0},{"$f":"SUM($J$40:$M$40)","v":0},0,0,{"$f":"SUM($N$40:$Q$40)","v":0},{"$f":"SUM($N$40:$Q$40)","v":0},0,0]

{"sheet":"Return of Parish Finance","index":20,"n_rows":41,"n_cols":12,"rows_kept":41,"cut":false,"hidden":false,"merged":[[65,1,65,7],[59,1,59,7],[60,1,60,7],[61,1,61,7],[62,1,62,7],[63,1,63,7],[53,1,53,7],[50,1,50,7],[54,1,54,7],[55,1,55,7],[64,1,64,7],[58,1,58,7],[45,1,45,7],[46,1,46,7],[73,1,73,7],[74,1,74,7],[66,1,66,7],[67,1,67,7],[68,1,68,7],[69,1,69,7],[70,1,70,7],[71,1,71,7],[72,1,72,7],[56,1,56,7],[57,1,57,7],[49,1,49,7],[51,1,51,7],[52,1,52,7],[75,1,75,7],[3,4,3,5],[4,0,5,1],[4,2,5,2],[4,3,5,3],[4,4,5,5],[4,6,5,6],[4,7,5,7],[6,0,6,1],[48,1,48,7],[47,1,47,7],[41,1,41,7],[42,1,42,7],[43,1,43,7],[44,1,44,7],[6,4,6,5],[7,0,7,1],[7,4,7,5],[40,1,40,7],[35,1,38,2],[35,3,35,4],[36,3,36,4],[37,3,37,4],[38,3,38,4],[33,6,33,7]]}
[]
[]
[]
[null,{"$f":"CONCATENATE(K4,\" \",K5)","v":"Return of Parish Finance                                         January to December 2023"},"Parish code                  (6 digits): ",{"$f":"VLOOKUP('Name and Parish'!D13,Index!B24:F594,5,FALSE)","v":{"$error":"#N/A"}},"If the form is NOT completed on behalf of the entire parish, please list below the churches included:",null,"Deanery: ",{"$f":"VLOOKUP('Name and Parish'!D13,Index!B25:D594,3,FALSE)","v":{"$error":"#N/A"}},null,null,"Return of Parish Finance                                         January to December"]
["RECEIPTS AND PAYMENTS",null,"Parish name:",{"$f":"'Name and Parish'!D13","v":0},null,null,"Diocese: ","Norwich",null,null,{"$f":"'Name and Parish'!D15","v":2023}]
[]
["RECEIPTS ",null,"UNRESTRICTED","RESTRICTED","PAYMENTS ",null,"UNRESTRICTED","RESTRICTED"]
[null,null,"(nearest £)","(nearest £)",null,null,"(nearest £)","(nearest £)"]
[null,"Voluntary receipts",null,null,null,"Costs of generating funds",null,null,null,null,"All other giving and voluntary receipts, including Special Appeals (recurring and one-off)","Church expenses: Mission and evangelism costs"]
[1,"Tax efficient planned giving",{"$f":"SUM(WorkingR!AP15+WorkingR!AQ15)","v":0},{"$f":"SUM(WorkingR!AR15+WorkingR!AS15)","v":0},17,"Fundraising activities (costs and payments)",{"$f":"SUM(WorkingP!AO14:AP14)","v":0},{"$f":"SUM(WorkingP!AQ14:AR14)","v":0},null,null,"Collections at services","Church running expenses (including Governance) "]
[2,"Other planned giving",{"$f":"SUM(WorkingR!AP12+WorkingR!AQ12)","v":0},{"$f":"SUM(WorkingR!AR12+WorkingR!AS12)","v":0},null,"Church activities",null,null,null,null,"Dividends, interest, receipts from property etc. ","Church utility bills"]
[3,"Collections at services",{"$f":"SUM(WorkingR!AP5+WorkingR!AQ5)","v":0},{"$f":"SUM(WorkingR!AR5+WorkingR!AS5)","v":0},18,"Mission giving and donations",{"$f":"SUM(WorkingP!AO17:AP17)","v":0},{"$f":"SUM(WorkingP!AQ17:AR17)","v":0},null,null,"Gift Aid recovered","Clergy and staff expenses"]
[4,"All other giving and voluntary receipts, including Special Appeals (recurring and one-off)",{"$f":"SUM(WorkingR!AP4+WorkingR!AQ4)","v":0},{"$f":"SUM(WorkingR!AR4+WorkingR!AS4)","v":0},19,"Diocesan parish share contribution",{"$f":"SUM(WorkingP!AO13:AP13)","v":0},{"$f":"SUM(WorkingP!AQ13:AR13)","v":0},null,null,"Grants (include recurring and one-off)","Cost of trading"]
[6,"Gift Aid recovered",{"$f":"SUM(WorkingR!AP7+WorkingR!AQ7)","v":0},{"$f":"SUM(WorkingR!AR7+WorkingR!AS7)","v":0},20,"Salaries, wages and honoraria",{"$f":"SUM(WorkingP!AO20:AP20)","v":0},{"$f":"SUM(WorkingP!AQ20:AR20)","v":0},null,null,"Gross receipts from fundraising activities","Diocesan parish share contribution"]
[7,"Legacies received (capital value)",{"$f":"SUM(WorkingR!AP11+WorkingR!AQ11)","v":0},{"$f":"SUM(WorkingR!AR11+WorkingR!AS11)","v":0},21,"Clergy and staff expenses",{"$f":"SUM(WorkingP!AO11:AP11)","v":0},{"$f":"SUM(WorkingP!AQ11:AR11)","v":0},null,null,"Gross receipts from trading (e.g. hall lettings, magazine, bookstall) NOT fundraising.","Fundraising activities (costs and payments)"]
[8,"Grants (include recurring and one-off)",{"$f":"SUM(WorkingR!AP8+WorkingR!AQ8)","v":0},{"$f":"SUM(WorkingR!AR8+WorkingR!AS8)","v":0},null,"Church expenses",null,null,null,null,"Legacies received (capital value)","Major repairs to church hall or other PCC property, including redecoration"]
[null,"TOTAL Voluntary receipts:",{"$f":"SUM(C10:C16)","v":0},{"$f":"SUM(D10:D16)","v":0},22,"Church expenses: Mission and evangelism costs",{"$f":"SUM(WorkingP!AO8:AP8)","v":0},{"$f":"SUM(WorkingP!AQ8:AR8)","v":0},null,null,"Other planned giving","Major repairs to the church building"]
[null,"Activities for generating funds",null,null,23,"Church running expenses (including Governance) ",{"$f":"SUM(WorkingP!AO9:AP9)","v":0},{"$f":"SUM(WorkingP!AQ9:AR9)","v":0},null,null,"Other receipts not already listed","Mission giving and donations"]
[9,"Gross receipts from fundraising activities",{"$f":"SUM(WorkingR!AP9+WorkingR!AQ9)","v":0},{"$f":"SUM(WorkingR!AR9+WorkingR!AS9)","v":0},24,"Church utility bills",{"$f":"SUM(WorkingP!AO10:AP10)","v":0},{"$f":"SUM(WorkingP!AQ10:AR10)","v":0},null,null,"Statutory fees retained by the PCC (weddings, funerals etc.)","New building work to the church, church hall, clergy housing or other PCC property"]
[null,"Investment income ",null,null,25,"Cost of trading",{"$f":"SUM(WorkingP!AO12:AP12)","v":0},{"$f":"SUM(WorkingP!AQ12:AR12)","v":0},null,null,"Tax efficient planned giving","Other payments not already listed "]
[10,"Dividends, interest, receipts from property etc. ",{"$f":"SUM(WorkingR!AP6+WorkingR!AQ6)","v":0},{"$f":"SUM(WorkingR!AR6+WorkingR!AS6)","v":0},null,"Major capital expenditure",null,null,null,null,null,"Salaries, wages and honoraria"]
[null,"Church activities",null,null,27,"Major repairs to the church building",{"$f":"SUM(WorkingP!AO16:AP16)","v":0},{"$f":"SUM(WorkingP!AQ16:AR16)","v":0}]
[11,"Statutory fees retained by the PCC (weddings, funerals etc.)",{"$f":"SUM(WorkingR!AP14+WorkingR!AQ14)","v":0},{"$f":"SUM(WorkingR!AR14+WorkingR!AS14)","v":0},28,"Major repairs to church hall or other PCC property, including redecoration",{"$f":"SUM(WorkingP!AO15:AP15)","v":0},{"$f":"SUM(WorkingP!AQ15:AR15)","v":0}]
[12,"Gross receipts from trading (e.g. hall lettings, magazine, bookstall) NOT fundraising.",{"$f":"SUM(WorkingR!AP10+WorkingR!AQ10)","v":0},{"$f":"SUM(WorkingR!AR10+WorkingR!AS10)","v":0},29,"New building work to the church, church hall, clergy housing or other PCC property",{"$f":"SUM(WorkingP!AO18:AP18)","v":0},{"$f":"SUM(WorkingP!AQ18:AR18)","v":0}]
[null,"Other receipts ",null,null,null,"SUB-TOTAL of all expenditure payments above:",{"$f":"SUM(G10+G12+G13+G14+G15+G17+G18+G19+G20+G22+G23+G24)","v":0},{"$f":"SUM(H10+H12+H13+H14+H15+H17+H18+H19+H20+H22+H23+H24)","v":0}]
[13,"Other receipts not already listed",{"$f":"SUM(WorkingR!AP13+WorkingR!AQ13)","v":0},{"$f":"SUM(WorkingR!AR13+WorkingR!AS13)","v":0},99,"Other payments not already listed ",{"$f":"SUM(WorkingP!AO19:AP19)","v":0},{"$f":"SUM(WorkingP!AQ19:AR19)","v":0}]
[null,"TOTAL RECEIPTS (FROM FINANCIAL STATEMENTS)","Unrestricted ","Restricted",null,"TOTAL PAYMENTS (FROM FINANCIAL STATEMENTS)","Unrestricted ","Restricted"]
["A",null,{"$f":"SUM(C17+C19+C21+C23+C24+C26)","v":0},{"$f":"SUM(D17+D19+D21+D23+D24+D26)","v":0},"C",null,{"$f":"SUM(G25+G26)","v":0},{"$f":"SUM(H25:H26)","v":0}]
["B","COMBINED TOTAL ",{"$f":"SUM(C28+D28)","v":0},null,"D","COMBINED TOTAL ",{"$f":"SUM(G28:H28)","v":0}]
[null,"PLANNED GIVERS AND LEGACIES",null,null,null,"Cash and Investment Balances","UNRESTRICTED","RESTRICTED"]
[14,"Number of tax efficient planned givers",{"$f":"'Supplementary Account Details'!C7","v":0},null,31,{"$f":"VLOOKUP('Name and Parish'!D15,Index!A4:K9,11,FALSE)","v":"Cash and deposit balances as at 31/12/23"},{"$f":"SUM('Bank and Fund Details'!AD15:AD16)","v":0},{"$f":"SUM('Bank and Fund Details'!AD18)","v":0}]
[15,"Number of other planned givers",{"$f":"'Supplementary Account Details'!C8","v":0},null,32,{"$f":"VLOOKUP('Name and Parish'!D15,Index!A4:L9,12,FALSE)","v":"Investments as at 31/12/23"},{"$f":"SUM('Bank and Fund Details'!AD21:AD23)","v":0},{"$f":"'Bank and Fund Details'!AD24+'Bank and Fund Details'!AD25","v":0}]
[16,"Number of new legacies received ",{"$f":"'Supplementary Account Details'!C9","v":0},null,null,"Accounts basis: on which basis were your accounts prepared? (indicate ONE) "]
[100,"Weekly average planned giving per planned giver ",{"$f":"SUM(D34/C31/52)","v":{"$error":"#DIV/0!"}},{"$f":"SUM(C10:D10)","v":0},30,"Receipts and payments"]
[]
[null,"Please refer to the notes on the following pages to help clarify what is included in each section. The item numbers refer to RPF notes, consistent with the guidance provided in PCC Accountability, 2017. ",null,"Date",null,{"$f":"'Name and Parish'!D9","v":"00:00:00"}]
[null,null,null,"Name",null,{"$f":"'Name and Parish'!D5","v":0}]
[null,null,null,"Position",null,{"$f":"'Name and Parish'!D7","v":0}]
[null,null,null,"Email",null,{"$f":"'Name and Parish'!D11","v":0}]
[null,{"$f":"CONCATENATE(K40,K5,L40)","v":"Looking back across 2023, were there any exceptional circumstances or significant changes that may have led to unusual figures? Please provide details in the box below. "},null,null,null,null,null,null,null,null,"Looking back across ",", were there any exceptional circumstances or significant changes that may have led to unusual figures? Please provide details in the box below. "]
[null,{"$f":"'Supplementary Account Details'!C11","v":0},null,null,null,null,null,null,null,{"$f":"B41","v":0}]

{"sheet":"Financial Statements","index":21,"n_rows":1171,"n_cols":37,"rows_kept":1171,"cut":false,"hidden":false,"merged":[[1,0,1,7],[54,1,55,1],[54,2,55,2],[54,3,55,3],[54,4,55,4],[3,0,3,7],[6,2,7,2],[6,3,7,3],[84,4,85,4],[174,0,174,6],[54,5,55,5],[6,5,7,5],[63,2,64,2],[63,3,64,3],[63,5,64,5],[103,0,104,7],[6,4,7,4],[6,1,7,1],[172,0,172,6],[173,0,173,6],[106,0,107,7],[98,0,98,7],[175,0,175,6],[176,0,176,6],[63,1,64,1],[170,0,170,6],[74,4,75,4],[74,5,75,5],[169,0,169,6],[171,0,171,6],[63,4,64,4],[101,0,101,7],[96,0,96,7],[84,2,85,2],[84,3,85,3],[74,2,75,2],[84,5,85,5],[74,3,75,3],[1170,0,1170,7],[1168,0,1168,7],[1138,4,1139,4],[1138,2,1139,2],[1167,0,1167,7],[1169,0,1169,7],[1151,4,1152,4],[1138,5,1139,5],[1138,3,1139,3],[1151,2,1152,2],[1151,3,1152,3],[1151,5,1152,5],[1166,0,1166,7],[716,4,717,4],[191,5,192,5],[716,5,717,5],[1125,2,1126,2],[1125,3,1126,3],[1125,4,1126,4],[1125,5,1126,5],[716,3,717,3],[191,2,192,2],[191,3,192,3],[191,4,192,4],[716,2,717,2],[177,0,177,6],[188,0,188,6],[178,0,178,6],[179,0,179,6],[180,0,180,6],[181,0,181,6],[182,0,182,6],[184,0,184,6],[185,0,185,6],[186,0,186,6],[187,0,187,6],[183,0,183,6]]}
[null,null,null,null,null,null,null,null,null,null,null,null,null,null,null,null,null,null,null,null,null,null,null,null,null,null,1,{"$f":"IF(AA1=0,\"0\",\"1\")","v":"1"}]
[{"$f":"VLOOKUP('Name and Parish'!D13,Index!$B:$C,1,FALSE)","v":{"$error":"#N/A"}},null,null,null,null,null,null,null,null,null,null,null,null,null,null,null,null,null,null,null,null,null,null,null,null,null,1,"1"]
[null,null,null,null,null,null,null,null,null,null,null,null,null,null,null,null,null,null,null,null,null,null,null,null,null,null,1,"1"]
[{"$f":"VLOOKUP('Name and Parish'!D15,Index!A:H,2,FALSE)","v":"Financial Statement for the Year Ended 31 December 2023"},null,null,null,null,null,null,null,null,null,null,null,null,null,null,null,null,null,null,null,null,null,null,null,null,null,1,"1"]
["Receipts and Payments Accounts",null,null,null,null,null,null,null,null,null,null,null,null,null,null,null,null,null,null,null,null,null,null,null,null,null,1,"1"]
[null,null,null,null,null,null,null,null,null,null,null,null,null,null,null,null,null,null,null,null,null,null,null,null,null,null,1,"1"]
[null,"Note","Unrestricted Fund","Designated Fund","Restricted Fund","Endowment Fund","Total","Total",null,null,null,null,null,null,null,null,null,null,null,null,null,null,null,null,null,null,1,"1"]
[null,null,null,null,null,null,{"$f":"'Name and Parish'!D15","v":2023},{"$f":"G8-1","v":2022},null,null,null,null,null,null,null,null,null,null,null,null,null,null,null,null,null,null,1,"1"]
[null,null,"£","£","£","£","£","£",null,null,null,null,null,null,null,null,null,null,null,null,null,null,null,null,null,null,1,"1"]
[null,null,null,null,null,null,null,null,null,null,null,null,null,null,null,null,null,null,null,null,null,null,null,null,null,null,1,"1"]
["Receipts",null,null,null,null,null,null,null,null,null,null,null,null,null,null,null,null,null,null,null,null,null,null,null,null,null,1,"1"]
[null,null,null,null,null,null,null,null,null,null,null,null,null,null,null,null,null,null,null,null,null,null,null,null,null,null,1,"1"]
["Voluntary receipts:",null,null,{"$f":"IF(C13=0,\"\",B15)","v":""},null,null,null,null,null,null,null,null,null,null,null,null,null,null,null,null,null,null,null,null,null,null,1,"1"]
[null,null,null,null,null,null,null,null,null,null,null,null,null,null,null,null,null,null,null,null,null,null,null,null,null,null,1,"1"]
["Collections at Services",{"$f":"IF(SUM(C15+D15+E15+F15+G15+H15=0),\"\",$AD$192)","v":""},{"$f":"WorkingR!AP40","v":0},{"$f":"WorkingR!AQ40","v":0},{"$f":"WorkingR!AR40","v":0},{"$f":"WorkingR!AS40","v":0},{"$f":"SUM(C15:F15)","v":0},{"$f":"H255","v":0},null,null,null,null,null,null,null,null,null,null,null,null,null,null,null,null,null,null,1,"1"]
["Planned giving",{"$f":"IF(SUM(C16+D16+E16+F16+G16+H16=0),\"\",$AD$192)","v":""},{"$f":"WorkingR!AP43","v":0},{"$f":"WorkingR!AQ43","v":0},{"$f":"WorkingR!AR43","v":0},{"$f":"WorkingR!AS43","v":0},0,{"$f":"H311","v":0},null,null,null,null,null,null,null,null,null,null,null,null,null,null,null,null,null,null,1,"1"]
["All other giving/voluntary receipts",{"$f":"IF(SUM(C17+D17+E17+F17+G17+H17=0),\"\",$AD$192)","v":""},{"$f":"WorkingR!AP32+WorkingR!AP36","v":0},{"$f":"WorkingR!AQ32+WorkingR!AQ36","v":0},{"$f":"WorkingR!AR32+WorkingR!AR36","v":0},{"$f":"WorkingR!AS32+WorkingR!AS36","v":0},0,{"$f":"H427","v":0},null,null,null,null,null,null,null,null,null,null,null,null,null,null,null,null,null,null,1,"1"]
["Grant Income",{"$f":"IF(SUM(C18+D18+E18+F18+G18+H18=0),\"\",$AD$192)","v":""},{"$f":"WorkingR!AP39","v":0},{"$f":"WorkingR!AQ39","v":0},{"$f":"WorkingR!AR39","v":0},{"$f":"WorkingR!AS39","v":0},0,{"$f":"H659","v":0},null,null,null,null,null,null,null,null,null,null,null,null,null,null,null,null,null,null,1,"1"]
["Legacies Received (Capital Value)",null,{"$f":"WorkingR!AP41","v":0},{"$f":"WorkingR!AQ41","v":0},{"$f":"WorkingR!AR41","v":0},{"$f":"WorkingR!AS41","v":0},0,{"$f":"SUM('Prior Year Comparative'!W402:W452)","v":0},null,null,null,null,null,null,null,null,null,null,null,null,null,null,null,null,null,null,1,"1"]
["Gift Aid recovered",null,{"$f":"WorkingR!AP38","v":0},{"$f":"WorkingR!AQ38","v":0},{"$f":"WorkingR!AR38","v":0},{"$f":"WorkingR!AS38","v":0},0,{"$f":"H366","v":0},null,null,null,null,null,null,null,null,null,null,null,null,null,null,null,null,null,null,1,"1"]
[null,null,{"$f":"SUM(C15:C20)","v":0},0,0,0,0,0,null,null,null,null,null,null,null,null,null,null,null,null,null,null,null,null,null,null,1,"1"]
["Activities for generating funds",{"$f":"IF(SUM(C22+D22+E22+F22+G22+H22=0),\"\",$AD$192)","v":""},{"$f":"WorkingR!AP33","v":0},{"$f":"WorkingR!AQ33","v":0},{"$f":"WorkingR!AR33","v":0},{"$f":"WorkingR!AS33","v":0},{"$f":"SUM(C22:F22)","v":0},{"$f":"H487","v":0},null,null,null,null,null,null,null,null,null,null,null,null,null,null,null,null,null,null,1,"1"]
["Investment income",null,{"$f":"WorkingR!AP35","v":0},{"$f":"WorkingR!AQ35","v":0},{"$f":"WorkingR!AR35","v":0},{"$f":"WorkingR!AS35","v":0},{"$f":"SUM(C23:F23)","v":0},{"$f":"H603","v":0},null,null,null,null,null,null,null,null,null,null,null,null,null,null,null,null,null,null,1,"1"]
["Church activities",{"$f":"IF(SUM(C24+D24+E24+F24+G24+H24=0),\"\",$AD$192)","v":""},{"$f":"WorkingR!AP34","v":0},{"$f":"WorkingR!AQ34","v":0},{"$f":"WorkingR!AR34","v":0},{"$f":"WorkingR!AS34","v":0},{"$f":"SUM(C24:F24)","v":0},{"$f":"H548","v":0},null,null,null,null,null,null,null,null,null,null,null,null,null,null,null,null,null,null,1,"1"]
["Other income",{"$f":"IF(SUM(C25+D25+E25+F25+G25+H25=0),\"\",$AD$192)","v":""},{"$f":"WorkingR!AP42+WorkingR!AP37","v":0},{"$f":"WorkingR!AQ42+WorkingR!AQ37","v":0},{"$f":"WorkingR!AR42+WorkingR!AR37","v":0},{"$f":"WorkingR!AS42+WorkingR!AS37","v":0},{"$f":"SUM(C25:F25)","v":0},{"$f":"H715","v":0},null,null,null,null,null,null,null,null,null,null,null,null,null,null,null,null,null,null,1,"1"]
["Total receipts",null,{"$f":"SUM(C21:C25)","v":0},0,0,0,0,0,null,null,null,null,null,null,null,null,null,null,null,null,null,null,null,null,null,null,1,"1"]
[null,null,null,null,null,null,null,null,null,null,null,null,null,null,null,null,null,null,null,null,null,null,null,null,null,null,1,"1"]
["Payments",null,null,null,null,null,null,null,null,null,null,null,null,null,null,null,null,null,null,null,null,null,null,null,null,null,1,"1"]
[null,null,null,null,null,null,null,null,null,null,null,null,null,null,null,null,null,null,null,null,null,null,null,null,null,null,1,"1"]
["Church activities:",null,null,null,null,null,null,null,null,null,null,null,null,null,null,null,null,null,null,null,null,null,null,null,null,null,1,"1"]
[null,null,null,null,null,null,null,null,null,null,null,null,null,null,null,null,null,null,null,null,null,null,null,null,null,null,1,"1"]
["Parish share",null,{"$f":"WorkingP!AO32","v":0},{"$f":"WorkingP!AP32","v":0},{"$f":"WorkingP!AQ32","v":0},{"$f":"WorkingP!AR32","v":0},{"$f":"SUM(C32:F32)","v":0},{"$f":"SUM('Prior Year Comparative'!W569:W619)","v":0},null,null,null,null,null,null,null,null,null,null,null,null,null,null,null,null,null,null,1,"1"]
["Clergy and Staffing costs",{"$f":"IF(SUM(C33+D33+E33+F33+G33+H33=0),\"\",$AD$717)","v":""},{"$f":"WorkingP!AO27","v":0},{"$f":"WorkingP!AP27","v":0},{"$f":"WorkingP!AQ27","v":0},{"$f":"WorkingP!AR27","v":0},{"$f":"SUM(C33:F33)","v":0},{"$f":"H775","v":0},null,null,null,null,null,null,null,null,null,null,null,null,null,null,null,null,null,null,1,"1"]
["Church running expenses","",{"$f":"WorkingP!AO26","v":0},{"$f":"WorkingP!AP26","v":0},{"$f":"WorkingP!AQ26","v":0},{"$f":"WorkingP!AR26","v":0},0,{"$f":"H835","v":0},null,null,null,null,null,null,null,null,null,null,null,null,null,null,null,null,null,null,1,"1"]
["Mission giving and donations","",{"$f":"WorkingP!AO30","v":0},{"$f":"WorkingP!AP30","v":0},{"$f":"WorkingP!AQ30","v":0},{"$f":"WorkingP!AR30","v":0},0,{"$f":"H893","v":0},null,null,null,null,null,null,null,null,null,null,null,null,null,null,null,null,null,null,1,"1"]
["Building work and repairs","",{"$f":"WorkingP!AO25","v":0},{"$f":"WorkingP!AP25","v":0},{"$f":"WorkingP!AQ25","v":0},{"$f":"WorkingP!AR25","v":0},0,{"$f":"H950","v":0},null,null,null,null,null,null,null,null,null,null,null,null,null,null,null,null,null,null,1,"1"]
["Administration Costs","",{"$f":"WorkingP!AO24","v":0},{"$f":"WorkingP!AP24","v":0},{"$f":"WorkingP!AQ24","v":0},{"$f":"WorkingP!AR24","v":0},{"$f":"SUM(C37:F37)","v":0},{"$f":"H1067","v":0},null,null,null,null,null,null,null,null,null,null,null,null,null,null,null,null,null,null,1,{"$f":"IF(AA37=0,\"0\",\"1\")","v":"1"}]
["Other expenditure","",{"$f":"WorkingP!AO31+WorkingP!AO29","v":0},{"$f":"WorkingP!AP31+WorkingP!AP29","v":0},{"$f":"WorkingP!AQ31+WorkingP!AQ29","v":0},{"$f":"WorkingP!AR31+WorkingP!AR29","v":0},0,{"$f":"H1124","v":0},null,null,null,null,null,null,null,null,null,null,null,null,null,null,null,null,null,null,1,"1"]
[null,null,{"$f":"SUM(C32:C38)","v":0},0,0,0,0,0,null,null,null,null,null,null,null,null,null,null,null,null,null,null,null,null,null,null,1,"1"]
["Cost of generating funds",{"$f":"IF(SUM(C40+D40+E40+F40+G40+H40=0),\"\",$AD$717)","v":""},{"$f":"WorkingP!AO28","v":0},{"$f":"WorkingP!AP28","v":0},{"$f":"WorkingP!AQ28","v":0},{"$f":"WorkingP!AR28","v":0},{"$f":"SUM(C40:F40)","v":0},{"$f":"H1008","v":0},null,null,null,null,null,null,null,null,null,null,null,null,null,null,null,null,null,null,1,"1"]
["Total Payments",null,{"$f":"SUM(C39+C40)","v":0},0,0,0,0,0,null,null,null,null,null,null,null,null,null,null,null,null,null,null,null,null,null,null,1,"1"]
[null,null,null,null,null,null,null,null,null,null,null,null,null,null,null,null,null,null,null,null,null,null,null,null,null,null,1,"1"]
[{"$f":"IF(G43<0,\"Excess of payments over receipts\",\"Excess of receipts over payments\")","v":"Excess of receipts over payments"},null,{"$f":"SUM(C26-C41)","v":0},0,0,0,0,0,null,null,null,null,null,null,null,null,null,null,null,null,null,null,null,null,null,null,1,"1"]
[null,null,null,null,null,null,null,null,null,null,null,null,null,null,null,null,null,null,null,null,null,null,null,null,null,null,1,"1"]
["Transfers between funds",null,{"$f":"Transfers!AL36","v":0},{"$f":"Transfers!AL37","v":0},{"$f":"Transfers!AL38","v":0},{"$f":"Transfers!AL39","v":0},{"$f":"SUM(C45:F45)","v":0},0,null,null,null,null,null,null,null,null,null,null,null,null,null,null,null,null,null,null,1,"1"]
[null,null,null,null,null,null,null,null,null,null,null,null,null,null,null,null,null,null,null,null,null,null,null,null,null,null,1,"1"]
[null,null,{"$f":"SUM(C43+C45)","v":0},0,0,0,0,0,null,null,null,null,null,null,null,null,null,null,null,null,null,null,null,null,null,null,1,"1"]
[null,null,null,null,null,null,null,null,null,null,null,null,null,null,null,null,null,null,null,null,null,null,null,null,null,null,1,"1"]
["Cash at bank and in hand at 1 Jan",null,{"$f":"SUMPRODUCT(('Bank and Fund Details'!$AQ$15:$AQ$36=\"Unrestricted\")*('Bank and Fund Details'!$AR$15:$AR$36))","v":0},{"$f":"SUMPRODUCT(('Bank and Fund Details'!$AQ$15:$AQ$36=\"Designated\")*('Bank and Fund Details'!$AR$15:$AR$36))","v":0},{"$f":"SUMPRODUCT(('Bank and Fund Details'!$AQ$15:$AQ$36=\"Restricted\")*('Bank and Fund Details'!$AR$15:$AR$36))","v":0},{"$f":"SUMPRODUCT(('Bank and Fund Details'!$AQ$15:$AQ$36=\"Endowment\")*('Bank and Fund Details'!$AR$15:$AR$36))","v":0},{"$f":"SUM(C49:F49)","v":0},{"$f":"SUM('Bank and Fund Details'!$K$6:$K$12)","v":0},null,null,null,null,null,null,null,null,null,null,null,null,null,null,null,null,null,null,1,"1"]
[null,null,null,null,null,null,null,null,null,null,null,null,null,null,null,null,null,null,null,null,null,null,null,null,null,null,1,"1"]
["Cash at bank and in hand at 31 Dec",null,{"$f":"SUM(C49+C47)","v":0},{"$f":"SUM(D49+D47)","v":0},{"$f":"SUM(E49+E47)","v":0},{"$f":"SUM(F49+F47)","v":0},{"$f":"SUM(C51:F51)","v":0},{"$f":"G49","v":0},null,null,null,null,null,null,null,null,null,null,null,null,null,null,null,null,null,null,1,"1"]
[null,null,null,null,null,null,null,null,null,null,null,null,null,null,null,null,null,null,null,null,null,null,null,null,null,null,1,"1"]
[null,null,null,null,null,null,null,null,null,null,null,null,null,null,null,null,null,null,null,null,null,null,null,null,null,null,1,"1"]
["Statement of Assets and Liabilities",null,null,null,null,null,null,null,null,null,null,null,null,null,null,null,null,null,null,null,null,null,null,null,null,null,1,"1"]
[null,"Note","Unrestricted Fund","Designated Fund","Restricted Fund","Endowment Fund","Total","Total",null,null,null,null,null,null,null,null,null,null,null,null,null,null,null,null,null,null,1,"1"]
[null,null,null,null,null,null,{"$f":"'Name and Parish'!D15","v":2023},{"$f":"G56-1","v":2022},null,null,null,null,null,null,null,null,null,null,null,null,null,null,null,null,null,null,1,"1"]
[null,null,"£","£","£","£","£","£",null,null,null,null,null,null,null,null,null,null,null,null,null,null,null,null,null,null,1,"1"]
["Cash Funds",null,null,null,null,null,null,null,null,null,null,null,null,null,null,null,null,null,null,null,null,null,null,null,null,null,1,"1"]
["Bank Current Account",{"$f":"IF(SUM(C59+D59+E59+F59+G59+H59=0),\"\",$AD$1127)","v":""},{"$f":"SUMPRODUCT(('Bank and Fund Details'!$AI$6:$AI$12=\"BA\")*'Bank and Fund Details'!$AM$6:$AM$12)","v":0},{"$f":"SUMPRODUCT(('Bank and Fund Details'!$AI$6:$AI$12=\"BA\")*'Bank and Fund Details'!$AO$6:$AO$12)","v":0},{"$f":"SUMPRODUCT(('Bank and Fund Details'!$AI$6:$AI$12=\"BA\")*'Bank and Fund Details'!$AQ$6:$AQ$12)","v":0},{"$f":"SUMPRODUCT(('Bank and Fund Details'!$AI$6:$AI$12=\"BA\")*'Bank and Fund Details'!$AS$6:$AS$12)","v":0},{"$f":"SUM(C59:F59)","v":0},{"$f":"SUMPRODUCT(('Bank and Fund Details'!$D$6:$D$12='Financial Statements'!A59)*('Bank and Fund Details'!$E$6:$E$12))","v":0},null,null,null,null,null,null,null,null,null,null,null,null,null,null,null,null,null,null,1,"1"]
["Bank Savings Account",{"$f":"IF(SUM(C60+D60+E60+F60+G60+H60=0),\"\",$AD$1140)","v":""},{"$f":"SUMPRODUCT(('Bank and Fund Details'!$AI$6:$AI$12=\"BSA\")*'Bank and Fund Details'!$AM$6:$AM$12)","v":0},{"$f":"SUMPRODUCT(('Bank and Fund Details'!$AI$6:$AI$12=\"BSA\")*'Bank and Fund Details'!$AO$6:$AO$12)","v":0},{"$f":"SUMPRODUCT(('Bank and Fund Details'!$AI$6:$AI$12=\"BSA\")*'Bank and Fund Details'!$AQ$6:$AQ$12)","v":0},{"$f":"SUMPRODUCT(('Bank and Fund Details'!$AI$6:$AI$12=\"BSA\")*'Bank and Fund Details'!$AS$6:$AS$12)","v":0},{"$f":"SUM(C60:F60)","v":0},{"$f":"SUMPRODUCT(('Bank and Fund Details'!$D$6:$D$12='Financial Statements'!A60)*('Bank and Fund Details'!$E$6:$E$12))","v":0},null,null,null,null,null,null,null,null,null,null,null,null,null,null,null,null,null,null,1,"1"]
["Deposit Account",{"$f":"IF(SUM(C61+D61+E61+F61+G61+H61=0),\"\",$AD$1153)","v":""},{"$f":"SUMPRODUCT(('Bank and Fund Details'!$AI$6:$AI$12=\"BDA\")*'Bank and Fund Details'!$AM$6:$AM$12)","v":0},{"$f":"SUMPRODUCT(('Bank and Fund Details'!$AI$6:$AI$12=\"BDA\")*'Bank and Fund Details'!$AO$6:$AO$12)","v":0},{"$f":"SUMPRODUCT(('Bank and Fund Details'!$AI$6:$AI$12=\"BDA\")*'Bank and Fund Details'!$AQ$6:$AQ$12)","v":0},{"$f":"SUMPRODUCT(('Bank and Fund Details'!$AI$6:$AI$12=\"BDA\")*'Bank and Fund Details'!$AS$6:$AS$12)","v":0},{"$f":"SUM(C61:F61)","v":0},{"$f":"SUMPRODUCT(('Bank and Fund Details'!$D$6:$D$12='Financial Statements'!A61)*('Bank and Fund Details'!$E$6:$E$12))","v":0},null,null,null,null,null,null,null,null,null,null,null,null,null,null,null,null,null,null,1,"1"]
[null,null,{"$f":"SUM(C59:C61)","v":0},0,0,0,{"$f":"SUM(G59:G61)","v":0},{"$f":"SUM(H59:H61)","v":0},null,null,null,null,null,null,null,null,null,null,null,null,null,null,null,null,null,null,1,"1"]
[null,null,null,null,null,null,null,null,null,null,null,null,null,null,null,null,null,null,null,null,null,null,null,null,null,null,1,"1"]
[null,"Note","Unrestricted Fund","Designated Fund","Restricted Fund","Endowment Fund","Total","Total",null,null,null,null,null,null,null,null,null,null,null,null,null,null,null,null,null,null,{"$f":"SUM($AA$73)","v":0},"0"]
[null,null,null,null,null,null,{"$f":"'Name and Parish'!D15","v":2023},{"$f":"G65-1","v":2022},null,null,null,null,null,null,null,null,null,null,null,null,null,null,null,null,null,null,{"$f":"SUM($AA$73)","v":0},{"$f":"IF(AA65=0,\"0\",\"1\")","v":"0"}]
[null,null,"£","£","£","£","£","£",null,null,null,null,null,null,null,null,null,null,null,null,null,null,null,null,null,null,{"$f":"SUM($AA$73)","v":0},"0"]
["Investment Assets at market value",null,null,null,null,null,null,null,null,null,null,null,null,null,null,null,null,null,null,null,null,null,null,null,null,null,{"$f":"SUM($AA$73)","v":0},"0"]
[{"$f":"'Bank and Fund Details'!B39","v":"Investment A"},{"$f":"$AD$1165","v":5},{"$f":"IF(AC68=\"Un\",'Bank and Fund Details'!J39,0)","v":0},{"$f":"IF(AC68=\"De\",'Bank and Fund Details'!J39,0)","v":0},{"$f":"IF(AC68=\"Re\",'Bank and Fund Details'!J39,0)","v":0},{"$f":"IF(AC68=\"En\",'Bank and Fund Details'!J39,0)","v":0},{"$f":"'Bank and Fund Details'!J39","v":0},{"$f":"'Bank and Fund Details'!D39","v":0},null,null,null,null,null,null,null,null,null,null,null,null,null,null,null,null,null,null,{"$f":"SUM(C68:H68)","v":0},"0",{"$f":"'Bank and Fund Details'!AB39","v":"Un"}]
[{"$f":"'Bank and Fund Details'!B40","v":"Investment B"},{"$f":"$AD$1165","v":5},{"$f":"IF(AC69=\"Un\",'Bank and Fund Details'!J40,0)","v":0},{"$f":"IF(AC69=\"De\",'Bank and Fund Details'!J40,0)","v":0},{"$f":"IF(AC69=\"Re\",'Bank and Fund Details'!J40,0)","v":0},{"$f":"IF(AC69=\"En\",'Bank and Fund Details'!J40,0)","v":0},{"$f":"'Bank and Fund Details'!J40","v":0},{"$f":"'Bank and Fund Details'!D40","v":0},null,null,null,null,null,null,null,null,null,null,null,null,null,null,null,null,null,null,0,"0",{"$f":"'Bank and Fund Details'!AB40","v":"Un"}]
[{"$f":"'Bank and Fund Details'!B41","v":"Investment C"},{"$f":"$AD$1165","v":5},{"$f":"IF(AC70=\"Un\",'Bank and Fund Details'!J41,0)","v":0},{"$f":"IF(AC70=\"De\",'Bank and Fund Details'!J41,0)","v":0},{"$f":"IF(AC70=\"Re\",'Bank and Fund Details'!J41,0)","v":0},{"$f":"IF(AC70=\"En\",'Bank and Fund Details'!J41,0)","v":0},{"$f":"'Bank and Fund Details'!J41","v":0},{"$f":"'Bank and Fund Details'!D41","v":0},null,null,null,null,null,null,null,null,null,null,null,null,null,null,null,null,null,null,0,"0",{"$f":"'Bank and Fund Details'!AB41","v":"Un"}]
[{"$f":"'Bank and Fund Details'!B42","v":"Investment D"},{"$f":"$AD$1165","v":5},{"$f":"IF(AC71=\"Un\",'Bank and Fund Details'!J42,0)","v":0},{"$f":"IF(AC71=\"De\",'Bank and Fund Details'!J42,0)","v":0},{"$f":"IF(AC71=\"Re\",'Bank and Fund Details'!J42,0)","v":0},{"$f":"IF(AC71=\"En\",'Bank and Fund Details'!J42,0)","v":0},{"$f":"'Bank and Fund Details'!J42","v":0},{"$f":"'Bank and Fund Details'!D42","v":0},null,null,null,null,null,null,null,null,null,null,null,null,null,null,null,null,null,null,0,"0",{"$f":"'Bank and Fund Details'!AB42","v":"Un"}]
[{"$f":"'Bank and Fund Details'!B43","v":"Investment E"},{"$f":"$AD$1165","v":5},{"$f":"IF(AC72=\"Un\",'Bank and Fund Details'!J43,0)","v":0},{"$f":"IF(AC72=\"De\",'Bank and Fund Details'!J43,0)","v":0},{"$f":"IF(AC72=\"Re\",'Bank and Fund Details'!J43,0)","v":0},{"$f":"IF(AC72=\"En\",'Bank and Fund Details'!J43,0)","v":0},{"$f":"'Bank and Fund Details'!J43","v":0},{"$f":"'Bank and Fund Details'!D43","v":0},null,null,null,null,null,null,null,null,null,null,null,null,null,null,null,null,null,null,0,"0",{"$f":"'Bank and Fund Details'!AB43","v":"Un"}]
["Total Investments",null,{"$f":"SUM(C68:C72)","v":0},0,0,0,0,0,null,null,null,null,null,null,null,null,null,null,null,null,null,null,null,null,null,null,0,"0"]
[null,null,null,null,null,null,null,null,null,null,null,null,null,null,null,null,null,null,null,null,null,null,null,null,null,null,{"$f":"AA73","v":0},"0"]
[null,null,"Unrestricted Fund","Designated Fund","Restricted Fund","Endowment Fund","Total","Total",null,null,null,null,null,null,null,null,null,null,null,null,null,null,null,null,null,null,{"$f":"$AA$83","v":0},"0"]
["Assets retained for Church use",null,null,null,null,null,{"$f":"'Name and Parish'!D15","v":2023},{"$f":"G76-1","v":2022},null,null,null,null,null,null,null,null,null,null,null,null,null,null,null,null,null,null,{"$f":"$AA$83","v":0},"0"]
[null,null,"£","£","£","£","£","£",null,null,null,null,null,null,null,null,null,null,null,null,null,null,null,null,null,null,{"$f":"$AA$83","v":0},"0"]
[{"$f":"'Supplementary Account Details'!B34","v":"Asset A"},{"$f":"$AD$102","v":2},{"$f":"'Supplementary Account Details'!C34","v":0},{"$f":"'Supplementary Account Details'!D34","v":0},{"$f":"'Supplementary Account Details'!E34","v":0},{"$f":"'Supplementary Account Details'!F34","v":0},{"$f":"'Supplementary Account Details'!G34","v":0},{"$f":"'Supplementary Account Details'!H34","v":0},null,null,null,null,null,null,null,null,null,null,null,null,null,null,null,null,null,null,{"$f":"SUM(C78:H78)","v":0},"0"]
[{"$f":"'Supplementary Account Details'!B35","v":"Asset B"},{"$f":"$AD$102","v":2},{"$f":"'Supplementary Account Details'!C35","v":0},{"$f":"'Supplementary Account Details'!D35","v":0},{"$f":"'Supplementary Account Details'!E35","v":0},{"$f":"'Supplementary Account Details'!F35","v":0},{"$f":"'Supplementary Account Details'!G35","v":0},{"$f":"'Supplementary Account Details'!H35","v":0},null,null,null,null,null,null,null,null,null,null,null,null,null,null,null,null,null,null,0,"0"]
[{"$f":"'Supplementary Account Details'!B36","v":"Asset C"},{"$f":"$AD$102","v":2},{"$f":"'Supplementary Account Details'!C36","v":0},{"$f":"'Supplementary Account Details'!D36","v":0},{"$f":"'Supplementary Account Details'!E36","v":0},{"$f":"'Supplementary Account Details'!F36","v":0},{"$f":"'Supplementary Account Details'!G36","v":0},{"$f":"'Supplementary Account Details'!H36","v":0},null,null,null,null,null,null,null,null,null,null,null,null,null,null,null,null,null,null,0,"0"]
[{"$f":"'Supplementary Account Details'!B37","v":"Asset D"},{"$f":"$AD$102","v":2},{"$f":"'Supplementary Account Details'!C37","v":0},{"$f":"'Supplementary Account Details'!D37","v":0},{"$f":"'Supplementary Account Details'!E37","v":0},{"$f":"'Supplementary Account Details'!F37","v":0},{"$f":"'Supplementary Account Details'!G37","v":0},{"$f":"'Supplementary Account Details'!H37","v":0},null,null,null,null,null,null,null,null,null,null,null,null,null,null,null,null,null,null,0,"0"]
[{"$f":"'Supplementary Account Details'!B38","v":"Asset E"},{"$f":"$AD$102","v":2},{"$f":"'Supplementary Account Details'!C38","v":0},{"$f":"'Supplementary Account Details'!D38","v":0},{"$f":"'Supplementary Account Details'!E38","v":0},{"$f":"'Supplementary Account Details'!F38","v":0},{"$f":"'Supplementary Account Details'!G38","v":0},{"$f":"'Supplementary Account Details'!H38","v":0},null,null,null,null,null,null,null,null,null,null,null,null,null,null,null,null,null,null,0,"0"]
["Total Assets",null,{"$f":"SUM(C78:C82)","v":0},0,0,0,0,0,null,null,null,null,null,null,null,null,null,null,null,null,null,null,null,null,null,null,0,"0"]
[null,null,null,null,null,null,null,null,null,null,null,null,null,null,null,null,null,null,null,null,null,null,null,null,null,null,{"$f":"AA93","v":0},"0"]
[null,null,"Unrestricted Fund","Designated Fund","Restricted Fund","Endowment Fund","Total","Total",null,null,null,null,null,null,null,null,null,null,null,null,null,null,null,null,null,null,{"$f":"SUM($AA$93)","v":0},"0"]
["Liabilities",null,null,null,null,null,{"$f":"'Name and Parish'!D15","v":2023},{"$f":"G86-1","v":2022},null,null,null,null,null,null,null,null,null,null,null,null,null,null,null,null,null,null,{"$f":"SUM($AA$93)","v":0},"0"]
[null,null,"£","£","£","£","£","£",null,null,null,null,null,null,null,null,null,null,null,null,null,null,null,null,null,null,{"$f":"SUM($AA$93)","v":0},"0"]
[{"$f":"'Supplementary Account Details'!B45","v":"Liability A"},{"$f":"$AD$105","v":2},{"$f":"'Supplementary Account Details'!C45","v":0},{"$f":"'Supplementary Account Details'!D45","v":0},{"$f":"'Supplementary Account Details'!E45","v":0},{"$f":"'Supplementary Account Details'!F45","v":0},{"$f":"'Supplementary Account Details'!G45","v":0},{"$f":"'Supplementary Account Details'!H45","v":0},null,null,null,null,null,null,null,null,null,null,null,null,null,null,null,null,null,null,{"$f":"SUM(C88:H88)","v":0},"0"]
[{"$f":"'Supplementary Account Details'!B46","v":"Liability B"},{"$f":"$AD$105","v":2},{"$f":"'Supplementary Account Details'!C46","v":0},{"$f":"'Supplementary Account Details'!D46","v":0},{"$f":"'Supplementary Account Details'!E46","v":0},{"$f":"'Supplementary Account Details'!F46","v":0},{"$f":"'Supplementary Account Details'!G46","v":0},{"$f":"'Supplementary Account Details'!H46","v":0},null,null,null,null,null,null,null,null,null,null,null,null,null,null,null,null,null,null,0,"0"]
[{"$f":"'Supplementary Account Details'!B47","v":"Liability C"},{"$f":"$AD$105","v":2},{"$f":"'Supplementary Account Details'!C47","v":0},{"$f":"'Supplementary Account Details'!D47","v":0},{"$f":"'Supplementary Account Details'!E47","v":0},{"$f":"'Supplementary Account Details'!F47","v":0},{"$f":"'Supplementary Account Details'!G47","v":0},{"$f":"'Supplementary Account Details'!H47","v":0},null,null,null,null,null,null,null,null,null,null,null,null,null,null,null,null,null,null,0,"0"]
[{"$f":"'Supplementary Account Details'!B48","v":"Liability D"},{"$f":"$AD$105","v":2},{"$f":"'Supplementary Account Details'!C48","v":0},{"$f":"'Supplementary Account Details'!D48","v":0},{"$f":"'Supplementary Account Details'!E48","v":0},{"$f":"'Supplementary Account Details'!F48","v":0},{"$f":"'Supplementary Account Details'!G48","v":0},{"$f":"'Supplementary Account Details'!H48","v":0},null,null,null,null,null,null,null,null,null,null,null,null,null,null,null,null,null,null,0,"0"]
[{"$f":"'Supplementary Account Details'!B49","v":"Liability E"},{"$f":"$AD$105","v":2},{"$f":"'Supplementary Account Details'!C49","v":0},{"$f":"'Supplementary Account Details'!D49","v":0},{"$f":"'Supplementary Account Details'!E49","v":0},{"$f":"'Supplementary Account Details'!F49","v":0},{"$f":"'Supplementary Account Details'!G49","v":0},{"$f":"'Supplementary Account Details'!H49","v":0},null,null,null,null,null,null,null,null,null,null,null,null,null,null,null,null,null,null,0,"0"]
["Total Liabilities",null,{"$f":"SUM(C88:C92)","v":0},0,0,0,0,0,null,null,null,null,null,null,null,null,null,null,null,null,null,null,null,null,null,null,0,"0"]
[null,null,null,null,null,null,null,null,null,null,null,null,null,null,null,null,null,null,null,null,null,null,null,null,null,null,1,"1"]
["Notes",null,null,null,null,null,null,null,null,null,null,null,null,null,null,null,null,null,null,null,null,null,null,null,null,null,1,"1"]
[null,null,null,null,null,null,null,null,null,null,null,null,null,null,null,null,null,null,null,null,null,null,null,null,null,null,1,"1"]
["1. The financial statements of the PCC have been prepared in accordance with the Church Accounting Regulations 2006 using the Receipts & Payments basis.",null,null,null,null,null,null,null,null,null,null,null,null,null,null,null,null,null,null,null,null,null,null,null,null,null,1,"1"]
[null,null,null,null,null,null,null,null,null,null,null,null,null,null,null,null,null,null,null,null,null,null,null,null,null,null,{"$f":"IF(AF99=0,0,1)","v":0},"0"]
[{"$f":"CONCATENATE(AD99,\".\",\" \",AG99)","v":"2. 0"},null,null,null,null,null,null,null,null,null,null,null,null,null,null,null,null,null,null,null,null,null,null,null,null,null,{"$f":"IF(AF99=0,0,1)","v":0},{"$f":"IF(AA99=0,\"0\",\"1\")","v":"0"},null,{"$f":"IF(AF99=\"0\",\"0\",AE99)","v":2},2,{"$f":"IF('Supplementary Account Details'!AB24=\"N\",1,0)","v":0},{"$f":"'Supplementary Account Details'!C24","v":0}]
[null,null,null,null,null,null,null,null,null,null,null,null,null,null,null,null,null,null,null,null,null,null,null,null,null,null,{"$f":"AA101","v":0},{"$f":"IF(AA100=0,\"0\",\"1\")","v":"0"}]
[null,null,null,null,null,null,null,null,null,null,null,null,null,null,null,null,null,null,null,null,null,null,null,null,null,null,{"$f":"IF(AF102=0,0,1)","v":0},{"$f":"IF(AA101=0,\"0\",\"1\")","v":"0"}]
[{"$f":"CONCATENATE(AD102,\".\",\" \",AG102)","v":"2. 0"},null,null,null,null,null,null,null,null,null,null,null,null,null,null,null,null,null,null,null,null,null,null,null,null,null,{"$f":"IF(AF102=0,0,1)","v":0},"0",null,{"$f":"IF(AF102=\"0\",\"0\",AE102)","v":2},{"$f":"SUM(AE99+AF99)","v":2},{"$f":"IF('Supplementary Account Details'!AB39=\"Y\",1,0)","v":0},{"$f":"'Supplementary Account Details'!C39","v":0}]
[null,null,null,null,null,null,null,null,null,null,null,null,null,null,null,null,null,null,null,null,null,null,null,null,null,null,{"$f":"AA104","v":0},{"$f":"IF(AA103=0,\"0\",\"1\")","v":"0"}]
[{"$f":"CONCATENATE(AD105,\".\",\" \",AG105)","v":"2. 0"},null,null,null,null,null,null,null,null,null,null,null,null,null,null,null,null,null,null,null,null,null,null,null,null,null,{"$f":"IF(AF105=0,0,1)","v":0},"0"]
[null,null,null,null,null,null,null,null,null,null,null,null,null,null,null,null,null,null,null,null,null,null,null,null,null,null,{"$f":"IF(AF105=0,0,1)","v":0},"0",null,{"$f":"IF(AF105=\"0\",\"0\",AE105)","v":2},{"$f":"SUM(AE102+AF102)","v":2},{"$f":"IF('Supplementary Account Details'!AB50=\"Y\",1,0)","v":0},{"$f":"'Supplementary Account Details'!C50","v":0}]
[null,null,null,null,null,null,null,null,null,null,null,null,null,null,null,null,null,null,null,null,null,null,null,null,null,null,{"$f":"IF(AF107=0,0,1)","v":0},{"$f":"IF(AA106=0,\"0\",\"1\")","v":"0"}]
[{"$f":"CONCATENATE(AD107,\".\",\" \",AG107)","v":"2. "},null,null,null,null,null,null,null,null,null,null,null,null,null,null,null,null,null,null,null,null,null,null,null,null,null,{"$f":"IF(AF107=0,0,1)","v":0},{"$f":"IF(AA107=0,\"0\",\"1\")","v":"0"},null,{"$f":"IF(AF107=\"0\",\"0\",AE107)","v":2},{"$f":"SUM(AE105+AF105)","v":2},{"$f":"IF('Supplementary Account Details'!R18=\"NN\",0,1)","v":0},{"$f":"IF('Supplementary Account Details'!R18=\"YY\",'Supplementary Account Details'!S18,IF('Supplementary Account Details'!R18=\"YN\",'Supplementary Account Details'!S19,IF('Supplementary Account Details'!R18=\"NY\",'Supplementary Account Details'!S20,IF('Supplementary Account Details'!R18=\"NN\",\"\"))))","v":""}]
[null,null,null,null,null,null,null,null,null,null,null,null,null,null,null,null,null,null,null,null,null,null,null,null,null,null,{"$f":"IF(AF107=0,0,1)","v":0},{"$f":"IF(AA108=0,\"0\",\"1\")","v":"0"}]
[null,null,null,null,null,null,null,null,null,null,null,null,null,null,null,null,null,null,null,null,null,null,null,null,null,null,{"$f":"AA110","v":0},{"$f":"IF(AA109=0,\"0\",\"1\")","v":"0"}]
[{"$f":"CONCATENATE(AD110,\". \",AG110)","v":"2. The movement in designated and restricted funds during the year were:"},null,null,null,null,null,null,null,null,null,null,null,null,null,null,null,null,null,null,null,null,null,null,null,null,null,{"$f":"SUM(AA139+AA168)","v":0},"0",null,{"$f":"IF(AF110=\"0\",\"0\",AE110)","v":2},{"$f":"SUM(AE107+AF107)","v":2},{"$f":"IF(AA110>0,1,0)","v":0},"The movement in designated and restricted funds during the year were:"]
[null,null,null,null,null,null,null,null,null,null,null,null,null,null,null,null,null,null,null,null,null,null,null,null,null,null,{"$f":"SUM(AA112:AA139)","v":0},"0"]
["Restricted",null,"Bal b/fwd","Receipts","Payments","Transfers","Bal c/fwd",null,null,null,null,null,null,null,null,null,null,null,null,null,null,null,null,null,null,null,{"$f":"SUM(AA113:AA139)","v":0},"0"]
[{"$f":"'Bank and Fund Details'!B17","v":"Fund A"},null,{"$f":"IF('Bank and Fund Details'!AC76=\"RE\",'Bank and Fund Details'!E17,0)","v":0},{"$f":"IF('Bank and Fund Details'!AC76=\"RE\",'Bank and Fund Details'!F17,0)","v":0},{"$f":"IF('Bank and Fund Details'!AC76=\"RE\",'Bank and Fund Details'!I17,0)","v":0},{"$f":"IF('Bank and Fund Details'!AC76=\"RE\",'Bank and Fund Details'!AF17,0)","v":0},{"$f":"IF('Bank and Fund Details'!AC76=\"RE\",'Bank and Fund Details'!J17,0)","v":0},null,null,null,null,null,null,null,null,null,null,null,null,null,null,null,null,null,null,null,{"$f":"SUM(C113:G113)","v":0},"0"]
[{"$f":"'Bank and Fund Details'!B18","v":"Fund B"},null,{"$f":"IF('Bank and Fund Details'!AC77=\"RE\",'Bank and Fund Details'!E18,0)","v":0},{"$f":"IF('Bank and Fund Details'!AC77=\"RE\",'Bank and Fund Details'!F18,0)","v":0},{"$f":"IF('Bank and Fund Details'!AC77=\"RE\",'Bank and Fund Details'!I18,0)","v":0},{"$f":"IF('Bank and Fund Details'!AC77=\"RE\",'Bank and Fund Details'!AF18,0)","v":0},{"$f":"IF('Bank and Fund Details'!AC77=\"RE\",'Bank and Fund Details'!J18,0)","v":0},null,null,null,null,null,null,null,null,null,null,null,null,null,null,null,null,null,null,null,{"$f":"SUM(C114:G114)","v":0},"0"]
[{"$f":"'Bank and Fund Details'!B19","v":"Fund C"},null,{"$f":"IF('Bank and Fund Details'!AC78=\"RE\",'Bank and Fund Details'!E19,0)","v":0},{"$f":"IF('Bank and Fund Details'!AC78=\"RE\",'Bank and Fund Details'!F19,0)","v":0},{"$f":"IF('Bank and Fund Details'!AC78=\"RE\",'Bank and Fund Details'!I19,0)","v":0},{"$f":"IF('Bank and Fund Details'!AC78=\"RE\",'Bank and Fund Details'!AF19,0)","v":0},{"$f":"IF('Bank and Fund Details'!AC78=\"RE\",'Bank and Fund Details'!J19,0)","v":0},null,null,null,null,null,null,null,null,null,null,null,null,null,null,null,null,null,null,null,0,"0"]
[{"$f":"'Bank and Fund Details'!B20","v":"Fund D"},null,{"$f":"IF('Bank and Fund Details'!AC79=\"RE\",'Bank and Fund Details'!E20,0)","v":0},{"$f":"IF('Bank and Fund Details'!AC79=\"RE\",'Bank and Fund Details'!F20,0)","v":0},{"$f":"IF('Bank and Fund Details'!AC79=\"RE\",'Bank and Fund Details'!I20,0)","v":0},{"$f":"IF('Bank and Fund Details'!AC79=\"RE\",'Bank and Fund Details'!AF20,0)","v":0},{"$f":"IF('Bank and Fund Details'!AC79=\"RE\",'Bank and Fund Details'!J20,0)","v":0},null,null,null,null,null,null,null,null,null,null,null,null,null,null,null,null,null,null,null,0,"0"]
[{"$f":"'Bank and Fund Details'!B21","v":"Fund E"},null,{"$f":"IF('Bank and Fund Details'!AC80=\"RE\",'Bank and Fund Details'!E21,0)","v":0},{"$f":"IF('Bank and Fund Details'!AC80=\"RE\",'Bank and Fund Details'!F21,0)","v":0},{"$f":"IF('Bank and Fund Details'!AC80=\"RE\",'Bank and Fund Details'!I21,0)","v":0},{"$f":"IF('Bank and Fund Details'!AC80=\"RE\",'Bank and Fund Details'!AF21,0)","v":0},{"$f":"IF('Bank and Fund Details'!AC80=\"RE\",'Bank and Fund Details'!J21,0)","v":0},null,null,null,null,null,null,null,null,null,null,null,null,null,null,null,null,null,null,null,0,"0"]
[{"$f":"'Bank and Fund Details'!B22","v":"Fund F"},null,{"$f":"IF('Bank and Fund Details'!AC81=\"RE\",'Bank and Fund Details'!E22,0)","v":0},{"$f":"IF('Bank and Fund Details'!AC81=\"RE\",'Bank and Fund Details'!F22,0)","v":0},{"$f":"IF('Bank and Fund Details'!AC81=\"RE\",'Bank and Fund Details'!I22,0)","v":0},{"$f":"IF('Bank and Fund Details'!AC81=\"RE\",'Bank and Fund Details'!AF22,0)","v":0},{"$f":"IF('Bank and Fund Details'!AC81=\"RE\",'Bank and Fund Details'!J22,0)","v":0},null,null,null,null,null,null,null,null,null,null,null,null,null,null,null,null,null,null,null,0,"0"]
[{"$f":"'Bank and Fund Details'!B23","v":"Fund G"},null,{"$f":"IF('Bank and Fund Details'!AC82=\"RE\",'Bank and Fund Details'!E23,0)","v":0},{"$f":"IF('Bank and Fund Details'!AC82=\"RE\",'Bank and Fund Details'!F23,0)","v":0},{"$f":"IF('Bank and Fund Details'!AC82=\"RE\",'Bank and Fund Details'!I23,0)","v":0},{"$f":"IF('Bank and Fund Details'!AC82=\"RE\",'Bank and Fund Details'!AF23,0)","v":0},{"$f":"IF('Bank and Fund Details'!AC82=\"RE\",'Bank and Fund Details'!J23,0)","v":0},null,null,null,null,null,null,null,null,null,null,null,null,null,null,null,null,null,null,null,0,"0"]
[{"$f":"'Bank and Fund Details'!B24","v":"Fund H"},null,{"$f":"IF('Bank and Fund Details'!AC83=\"RE\",'Bank and Fund Details'!E24,0)","v":0},{"$f":"IF('Bank and Fund Details'!AC83=\"RE\",'Bank and Fund Details'!F24,0)","v":0},{"$f":"IF('Bank and Fund Details'!AC83=\"RE\",'Bank and Fund Details'!I24,0)","v":0},{"$f":"IF('Bank and Fund Details'!AC83=\"RE\",'Bank and Fund Details'!AF24,0)","v":0},{"$f":"IF('Bank and Fund Details'!AC83=\"RE\",'Bank and Fund Details'!J24,0)","v":0},null,null,null,null,null,null,null,null,null,null,null,null,null,null,null,null,null,null,null,0,"0"]
[{"$f":"'Bank and Fund Details'!B25","v":"Fund I"},null,{"$f":"IF('Bank and Fund Details'!AC84=\"RE\",'Bank and Fund Details'!E25,0)","v":0},{"$f":"IF('Bank and Fund Details'!AC84=\"RE\",'Bank and Fund Details'!F25,0)","v":0},{"$f":"IF('Bank and Fund Details'!AC84=\"RE\",'Bank and Fund Details'!I25,0)","v":0},{"$f":"IF('Bank and Fund Details'!AC84=\"RE\",'Bank and Fund Details'!AF25,0)","v":0},{"$f":"IF('Bank and Fund Details'!AC84=\"RE\",'Bank and Fund Details'!J25,0)","v":0},null,null,null,null,null,null,null,null,null,null,null,null,null,null,null,null,null,null,null,{"$f":"SUM(C121:G121)","v":0},{"$f":"IF(AA121=0,\"0\",\"1\")","v":"0"}]
[{"$f":"'Bank and Fund Details'!B26","v":"Fund J"},null,{"$f":"IF('Bank and Fund Details'!AC85=\"RE\",'Bank and Fund Details'!E26,0)","v":0},{"$f":"IF('Bank and Fund Details'!AC85=\"RE\",'Bank and Fund Details'!F26,0)","v":0},{"$f":"IF('Bank and Fund Details'!AC85=\"RE\",'Bank and Fund Details'!I26,0)","v":0},{"$f":"IF('Bank and Fund Details'!AC85=\"RE\",'Bank and Fund Details'!AF26,0)","v":0},{"$f":"IF('Bank and Fund Details'!AC85=\"RE\",'Bank and Fund Details'!J26,0)","v":0},null,null,null,null,null,null,null,null,null,null,null,null,null,null,null,null,null,null,null,0,"0"]
[{"$f":"'Bank and Fund Details'!B27","v":"Fund K"},null,{"$f":"IF('Bank and Fund Details'!AC86=\"RE\",'Bank and Fund Details'!E27,0)","v":0},{"$f":"IF('Bank and Fund Details'!AC86=\"RE\",'Bank and Fund Details'!F27,0)","v":0},{"$f":"IF('Bank and Fund Details'!AC86=\"RE\",'Bank and Fund Details'!I27,0)","v":0},{"$f":"IF('Bank and Fund Details'!AC86=\"RE\",'Bank and Fund Details'!AF27,0)","v":0},{"$f":"IF('Bank and Fund Details'!AC86=\"RE\",'Bank and Fund Details'!J27,0)","v":0},null,null,null,null,null,null,null,null,null,null,null,null,null,null,null,null,null,null,null,0,"0"]
[{"$f":"'Bank and Fund Details'!B28","v":"Fund L"},null,{"$f":"IF('Bank and Fund Details'!AC87=\"RE\",'Bank and Fund Details'!E28,0)","v":0},{"$f":"IF('Bank and Fund Details'!AC87=\"RE\",'Bank and Fund Details'!F28,0)","v":0},{"$f":"IF('Bank and Fund Details'!AC87=\"RE\",'Bank and Fund Details'!I28,0)","v":0},{"$f":"IF('Bank and Fund Details'!AC87=\"RE\",'Bank and Fund Details'!AF28,0)","v":0},{"$f":"IF('Bank and Fund Details'!AC87=\"RE\",'Bank and Fund Details'!J28,0)","v":0},null,null,null,null,null,null,null,null,null,null,null,null,null,null,null,null,null,null,null,0,"0"]
[{"$f":"'Bank and Fund Details'!B29","v":"Fund M"},null,{"$f":"IF('Bank and Fund Details'!AC88=\"RE\",'Bank and Fund Details'!E29,0)","v":0},{"$f":"IF('Bank and Fund Details'!AC88=\"RE\",'Bank and Fund Details'!F29,0)","v":0},{"$f":"IF('Bank and Fund Details'!AC88=\"RE\",'Bank and Fund Details'!I29,0)","v":0},{"$f":"IF('Bank and Fund Details'!AC88=\"RE\",'Bank and Fund Details'!AF29,0)","v":0},{"$f":"IF('Bank and Fund Details'!AC88=\"RE\",'Bank and Fund Details'!J29,0)","v":0},null,null,null,null,null,null,null,null,null,null,null,null,null,null,null,null,null,null,null,0,"0"]
[{"$f":"'Bank and Fund Details'!B30","v":"Fund N"},null,{"$f":"IF('Bank and Fund Details'!AC89=\"RE\",'Bank and Fund Details'!E30,0)","v":0},{"$f":"IF('Bank and Fund Details'!AC89=\"RE\",'Bank and Fund Details'!F30,0)","v":0},{"$f":"IF('Bank and Fund Details'!AC89=\"RE\",'Bank and Fund Details'!I30,0)","v":0},{"$f":"IF('Bank and Fund Details'!AC89=\"RE\",'Bank and Fund Details'!AF30,0)","v":0},{"$f":"IF('Bank and Fund Details'!AC89=\"RE\",'Bank and Fund Details'!J30,0)","v":0},null,null,null,null,null,null,null,null,null,null,null,null,null,null,null,null,null,null,null,0,"0"]
[{"$f":"'Bank and Fund Details'!B31","v":"Fund O"},null,{"$f":"IF('Bank and Fund Details'!AC90=\"RE\",'Bank and Fund Details'!E31,0)","v":0},{"$f":"IF('Bank and Fund Details'!AC90=\"RE\",'Bank and Fund Details'!F31,0)","v":0},{"$f":"IF('Bank and Fund Details'!AC90=\"RE\",'Bank and Fund Details'!I31,0)","v":0},{"$f":"IF('Bank and Fund Details'!AC90=\"RE\",'Bank and Fund Details'!AF31,0)","v":0},{"$f":"IF('Bank and Fund Details'!AC90=\"RE\",'Bank and Fund Details'!J31,0)","v":0},null,null,null,null,null,null,null,null,null,null,null,null,null,null,null,null,null,null,null,0,"0"]
[{"$f":"'Bank and Fund Details'!B32","v":"Fund P"},null,{"$f":"IF('Bank and Fund Details'!AC91=\"RE\",'Bank and Fund Details'!E32,0)","v":0},{"$f":"IF('Bank and Fund Details'!AC91=\"RE\",'Bank and Fund Details'!F32,0)","v":0},{"$f":"IF('Bank and Fund Details'!AC91=\"RE\",'Bank and Fund Details'!I32,0)","v":0},{"$f":"IF('Bank and Fund Details'!AC91=\"RE\",'Bank and Fund Details'!AF32,0)","v":0},{"$f":"IF('Bank and Fund Details'!AC91=\"RE\",'Bank and Fund Details'!J32,0)","v":0},null,null,null,null,null,null,null,null,null,null,null,null,null,null,null,null,null,null,null,0,"0"]
[{"$f":"'Bank and Fund Details'!B33","v":"Fund Q"},null,{"$f":"IF('Bank and Fund Details'!AC92=\"RE\",'Bank and Fund Details'!E33,0)","v":0},{"$f":"IF('Bank and Fund Details'!AC92=\"RE\",'Bank and Fund Details'!F33,0)","v":0},{"$f":"IF('Bank and Fund Details'!AC92=\"RE\",'Bank and Fund Details'!I33,0)","v":0},{"$f":"IF('Bank and Fund Details'!AC92=\"RE\",'Bank and Fund Details'!AF33,0)","v":0},{"$f":"IF('Bank and Fund Details'!AC92=\"RE\",'Bank and Fund Details'!J33,0)","v":0},null,null,null,null,null,null,null,null,null,null,null,null,null,null,null,null,null,null,null,0,"0"]
[{"$f":"'Bank and Fund Details'!B34","v":"Fund R"},null,{"$f":"IF('Bank and Fund Details'!AC93=\"RE\",'Bank and Fund Details'!E34,0)","v":0},{"$f":"IF('Bank and Fund Details'!AC93=\"RE\",'Bank and Fund Details'!F34,0)","v":0},{"$f":"IF('Bank and Fund Details'!AC93=\"RE\",'Bank and Fund Details'!I34,0)","v":0},{"$f":"IF('Bank and Fund Details'!AC93=\"RE\",'Bank and Fund Details'!AF34,0)","v":0},{"$f":"IF('Bank and Fund Details'!AC93=\"RE\",'Bank and Fund Details'!J34,0)","v":0},null,null,null,null,null,null,null,null,null,null,null,null,null,null,null,null,null,null,null,0,"0"]
[{"$f":"'Bank and Fund Details'!B35","v":"Fund S"},null,{"$f":"IF('Bank and Fund Details'!AC94=\"RE\",'Bank and Fund Details'!E35,0)","v":0},{"$f":"IF('Bank and Fund Details'!AC94=\"RE\",'Bank and Fund Details'!F35,0)","v":0},{"$f":"IF('Bank and Fund Details'!AC94=\"RE\",'Bank and Fund Details'!I35,0)","v":0},{"$f":"IF('Bank and Fund Details'!AC94=\"RE\",'Bank and Fund Details'!AF35,0)","v":0},{"$f":"IF('Bank and Fund Details'!AC94=\"RE\",'Bank and Fund Details'!J35,0)","v":0},null,null,null,null,null,null,null,null,null,null,null,null,null,null,null,null,null,null,null,0,"0"]
[{"$f":"'Bank and Fund Details'!B36","v":"Fund T"},null,{"$f":"IF('Bank and Fund Details'!AC95=\"RE\",'Bank and Fund Details'!E36,0)","v":0},{"$f":"IF('Bank and Fund Details'!AC95=\"RE\",'Bank and Fund Details'!F36,0)","v":0},{"$f":"IF('Bank and Fund Details'!AC95=\"RE\",'Bank and Fund Details'!I36,0)","v":0},{"$f":"IF('Bank and Fund Details'!AC95=\"RE\",'Bank and Fund Details'!AF36,0)","v":0},{"$f":"IF('Bank and Fund Details'!AC95=\"RE\",'Bank and Fund Details'!J36,0)","v":0},null,null,null,null,null,null,null,null,null,null,null,null,null,null,null,null,null,null,null,{"$f":"SUM(C132:G132)","v":0},{"$f":"IF(AA132=0,\"0\",\"1\")","v":"0"}]
[{"$f":"'Bank and Fund Details'!B39","v":"Investment A"},null,{"$f":"IF('Bank and Fund Details'!AC96=\"RE\",'Bank and Fund Details'!D39,0)","v":0},{"$f":"IF('Bank and Fund Details'!AC96=\"RE\",'Bank and Fund Details'!E39,0)","v":0},{"$f":"IF('Bank and Fund Details'!AC96=\"RE\",'Bank and Fund Details'!F39,0)","v":0},{"$f":"IF('Bank and Fund Details'!AC99=\"RE\",'Bank and Fund Details'!AF39,0)","v":0},{"$f":"IF('Bank and Fund Details'!AC96=\"RE\",'Bank and Fund Details'!J39,0)","v":0},null,null,null,null,null,null,null,null,null,null,null,null,null,null,null,null,null,null,null,{"$f":"SUM(C133:G133)","v":0},"0"]
[{"$f":"'Bank and Fund Details'!B40","v":"Investment B"},null,{"$f":"IF('Bank and Fund Details'!AC97=\"RE\",'Bank and Fund Details'!D40,0)","v":0},{"$f":"IF('Bank and Fund Details'!AC97=\"RE\",'Bank and Fund Details'!E40,0)","v":0},{"$f":"IF('Bank and Fund Details'!AC97=\"RE\",'Bank and Fund Details'!F40,0)","v":0},{"$f":"IF('Bank and Fund Details'!AC100=\"RE\",'Bank and Fund Details'!AF40,0)","v":0},{"$f":"IF('Bank and Fund Details'!AC97=\"RE\",'Bank and Fund Details'!J40,0)","v":0},null,null,null,null,null,null,null,null,null,null,null,null,null,null,null,null,null,null,null,0,"0"]
[{"$f":"'Bank and Fund Details'!B41","v":"Investment C"},null,{"$f":"IF('Bank and Fund Details'!AC98=\"RE\",'Bank and Fund Details'!D41,0)","v":0},{"$f":"IF('Bank and Fund Details'!AC98=\"RE\",'Bank and Fund Details'!E41,0)","v":0},{"$f":"IF('Bank and Fund Details'!AC98=\"RE\",'Bank and Fund Details'!F41,0)","v":0},{"$f":"IF('Bank and Fund Details'!AC101=\"RE\",'Bank and Fund Details'!AF41,0)","v":0},{"$f":"IF('Bank and Fund Details'!AC98=\"RE\",'Bank and Fund Details'!J41,0)","v":0},null,null,null,null,null,null,null,null,null,null,null,null,null,null,null,null,null,null,null,0,"0"]
[{"$f":"'Bank and Fund Details'!B42","v":"Investment D"},null,{"$f":"IF('Bank and Fund Details'!AC99=\"RE\",'Bank and Fund Details'!D42,0)","v":0},{"$f":"IF('Bank and Fund Details'!AC99=\"RE\",'Bank and Fund Details'!E42,0)","v":0},{"$f":"IF('Bank and Fund Details'!AC99=\"RE\",'Bank and Fund Details'!F42,0)","v":0},{"$f":"IF('Bank and Fund Details'!AC102=\"RE\",'Bank and Fund Details'!AF42,0)","v":0},{"$f":"IF('Bank and Fund Details'!AC99=\"RE\",'Bank and Fund Details'!J42,0)","v":0},null,null,null,null,null,null,null,null,null,null,null,null,null,null,null,null,null,null,null,0,"0"]
[{"$f":"'Bank and Fund Details'!B43","v":"Investment E"},null,{"$f":"IF('Bank and Fund Details'!AC100=\"RE\",'Bank and Fund Details'!D43,0)","v":0},{"$f":"IF('Bank and Fund Details'!AC100=\"RE\",'Bank and Fund Details'!E43,0)","v":0},{"$f":"IF('Bank and Fund Details'!AC100=\"RE\",'Bank and Fund Details'!F43,0)","v":0},{"$f":"IF('Bank and Fund Details'!AC103=\"RE\",'Bank and Fund Details'!AF43,0)","v":0},{"$f":"IF('Bank and Fund Details'!AC100=\"RE\",'Bank and Fund Details'!J43,0)","v":0},null,null,null,null,null,null,null,null,null,null,null,null,null,null,null,null,null,null,null,0,"0"]
[null,null,null,null,null,null,null,null,null,null,null,null,null,null,null,null,null,null,null,null,null,null,null,null,null,null,0,"0"]
[null,null,{"$f":"SUM(C113:C137)","v":0},{"$f":"SUM(D113:D137)","v":0},{"$f":"SUM(E113:E137)","v":0},{"$f":"SUM(F113:F137)","v":0},{"$f":"SUM(G113:G137)","v":0},null,null,null,null,null,null,null,null,null,null,null,null,null,null,null,null,null,null,null,0,"0"]
[null,null,null,null,null,null,null,null,null,null,null,null,null,null,null,null,null,null,null,null,null,null,null,null,null,null,{"$f":"AA139","v":0},"0"]
["Designated",null,"Bal b/fwd","Receipts","Payments","Transfers","Bal c/fwd",null,null,null,null,null,null,null,null,null,null,null,null,null,null,null,null,null,null,null,{"$f":"AA168","v":0},"0"]
[{"$f":"'Bank and Fund Details'!B17","v":"Fund A"},null,{"$f":"IF('Bank and Fund Details'!AC76=\"DE\",'Bank and Fund Details'!E17,0)","v":0},{"$f":"IF('Bank and Fund Details'!AC76=\"DE\",'Bank and Fund Details'!F17,0)","v":0},{"$f":"IF('Bank and Fund Details'!AC76=\"DE\",'Bank and Fund Details'!I17,0)","v":0},{"$f":"IF('Bank and Fund Details'!AC76=\"DE\",'Bank and Fund Details'!AF17,0)","v":0},{"$f":"IF('Bank and Fund Details'!AC76=\"DE\",'Bank and Fund Details'!J17,0)","v":0},null,null,null,null,null,null,null,null,null,null,null,null,null,null,null,null,null,null,null,{"$f":"SUM(C142:G142)","v":0},"0"]
[{"$f":"'Bank and Fund Details'!B18","v":"Fund B"},null,{"$f":"IF('Bank and Fund Details'!AC77=\"DE\",'Bank and Fund Details'!E18,0)","v":0},{"$f":"IF('Bank and Fund Details'!AC77=\"DE\",'Bank and Fund Details'!F18,0)","v":0},{"$f":"IF('Bank and Fund Details'!AC77=\"DE\",'Bank and Fund Details'!I18,0)","v":0},{"$f":"IF('Bank and Fund Details'!AC77=\"DE\",'Bank and Fund Details'!AF18,0)","v":0},{"$f":"IF('Bank and Fund Details'!AC77=\"DE\",'Bank and Fund Details'!J18,0)","v":0},null,null,null,null,null,null,null,null,null,null,null,null,null,null,null,null,null,null,null,{"$f":"SUM(C143:G143)","v":0},"0"]
[{"$f":"'Bank and Fund Details'!B19","v":"Fund C"},null,{"$f":"IF('Bank and Fund Details'!AC78=\"DE\",'Bank and Fund Details'!E19,0)","v":0},{"$f":"IF('Bank and Fund Details'!AC78=\"DE\",'Bank and Fund Details'!F19,0)","v":0},{"$f":"IF('Bank and Fund Details'!AC78=\"DE\",'Bank and Fund Details'!I19,0)","v":0},{"$f":"IF('Bank and Fund Details'!AC78=\"DE\",'Bank and Fund Details'!AF19,0)","v":0},{"$f":"IF('Bank and Fund Details'!AC78=\"DE\",'Bank and Fund Details'!J19,0)","v":0},null,null,null,null,null,null,null,null,null,null,null,null,null,null,null,null,null,null,null,0,"0"]
[{"$f":"'Bank and Fund Details'!B20","v":"Fund D"},null,{"$f":"IF('Bank and Fund Details'!AC79=\"DE\",'Bank and Fund Details'!E20,0)","v":0},{"$f":"IF('Bank and Fund Details'!AC79=\"DE\",'Bank and Fund Details'!F20,0)","v":0},{"$f":"IF('Bank and Fund Details'!AC79=\"DE\",'Bank and Fund Details'!I20,0)","v":0},{"$f":"IF('Bank and Fund Details'!AC79=\"DE\",'Bank and Fund Details'!AF20,0)","v":0},{"$f":"IF('Bank and Fund Details'!AC79=\"DE\",'Bank and Fund Details'!J20,0)","v":0},null,null,null,null,null,null,null,null,null,null,null,null,null,null,null,null,null,null,null,0,"0"]
[{"$f":"'Bank and Fund Details'!B21","v":"Fund E"},null,{"$f":"IF('Bank and Fund Details'!AC80=\"DE\",'Bank and Fund Details'!E21,0)","v":0},{"$f":"IF('Bank and Fund Details'!AC80=\"DE\",'Bank and Fund Details'!F21,0)","v":0},{"$f":"IF('Bank and Fund Details'!AC80=\"DE\",'Bank and Fund Details'!I21,0)","v":0},{"$f":"IF('Bank and Fund Details'!AC80=\"DE\",'Bank and Fund Details'!AF21,0)","v":0},{"$f":"IF('Bank and Fund Details'!AC80=\"DE\",'Bank and Fund Details'!J21,0)","v":0},null,null,null,null,null,null,null,null,null,null,null,null,null,null,null,null,null,null,null,0,"0"]
[{"$f":"'Bank and Fund Details'!B22","v":"Fund F"},null,{"$f":"IF('Bank and Fund Details'!AC81=\"DE\",'Bank and Fund Details'!E22,0)","v":0},{"$f":"IF('Bank and Fund Details'!AC81=\"DE\",'Bank and Fund Details'!F22,0)","v":0},{"$f":"IF('Bank and Fund Details'!AC81=\"DE\",'Bank and Fund Details'!I22,0)","v":0},{"$f":"IF('Bank and Fund Details'!AC81=\"DE\",'Bank and Fund Details'!AF22,0)","v":0},{"$f":"IF('Bank and Fund Details'!AC81=\"DE\",'Bank and Fund Details'!J22,0)","v":0},null,null,null,null,null,null,null,null,null,null,null,null,null,null,null,null,null,null,null,0,"0"]
[{"$f":"'Bank and Fund Details'!B23","v":"Fund G"},null,{"$f":"IF('Bank and Fund Details'!AC82=\"DE\",'Bank and Fund Details'!E23,0)","v":0},{"$f":"IF('Bank and Fund Details'!AC82=\"DE\",'Bank and Fund Details'!F23,0)","v":0},{"$f":"IF('Bank and Fund Details'!AC82=\"DE\",'Bank and Fund Details'!I23,0)","v":0},{"$f":"IF('Bank and Fund Details'!AC82=\"DE\",'Bank and Fund Details'!AF23,0)","v":0},{"$f":"IF('Bank and Fund Details'!AC82=\"DE\",'Bank and Fund Details'!J23,0)","v":0},null,null,null,null,null,null,null,null,null,null,null,null,null,null,null,null,null,null,null,0,"0"]
[{"$f":"'Bank and Fund Details'!B24","v":"Fund H"},null,{"$f":"IF('Bank and Fund Details'!AC83=\"DE\",'Bank and Fund Details'!E24,0)","v":0},{"$f":"IF('Bank and Fund Details'!AC83=\"DE\",'Bank and Fund Details'!F24,0)","v":0},{"$f":"IF('Bank and Fund Details'!AC83=\"DE\",'Bank and Fund Details'!I24,0)","v":0},{"$f":"IF('Bank and Fund Details'!AC83=\"DE\",'Bank and Fund Details'!AF24,0)","v":0},{"$f":"IF('Bank and Fund Details'!AC83=\"DE\",'Bank and Fund Details'!J24,0)","v":0},null,null,null,null,null,null,null,null,null,null,null,null,null,null,null,null,null,null,null,0,"0"]
[{"$f":"'Bank and Fund Details'!B25","v":"Fund I"},null,{"$f":"IF('Bank and Fund Details'!AC84=\"DE\",'Bank and Fund Details'!E25,0)","v":0},{"$f":"IF('Bank and Fund Details'!AC84=\"DE\",'Bank and Fund Details'!F25,0)","v":0},{"$f":"IF('Bank and Fund Details'!AC84=\"DE\",'Bank and Fund Details'!I25,0)","v":0},{"$f":"IF('Bank and Fund Details'!AC84=\"DE\",'Bank and Fund Details'!AF25,0)","v":0},{"$f":"IF('Bank and Fund Details'!AC84=\"DE\",'Bank and Fund Details'!J25,0)","v":0},null,null,null,null,null,null,null,null,null,null,null,null,null,null,null,null,null,null,null,0,{"$f":"IF(AA150=0,\"0\",\"1\")","v":"0"}]
[{"$f":"'Bank and Fund Details'!B26","v":"Fund J"},null,{"$f":"IF('Bank and Fund Details'!AC85=\"DE\",'Bank and Fund Details'!E26,0)","v":0},{"$f":"IF('Bank and Fund Details'!AC85=\"DE\",'Bank and Fund Details'!F26,0)","v":0},{"$f":"IF('Bank and Fund Details'!AC85=\"DE\",'Bank and Fund Details'!I26,0)","v":0},{"$f":"IF('Bank and Fund Details'!AC85=\"DE\",'Bank and Fund Details'!AF26,0)","v":0},{"$f":"IF('Bank and Fund Details'!AC85=\"DE\",'Bank and Fund Details'!J26,0)","v":0},null,null,null,null,null,null,null,null,null,null,null,null,null,null,null,null,null,null,null,{"$f":"SUM(C151:G151)","v":0},{"$f":"IF(AA151=0,\"0\",\"1\")","v":"0"}]
[{"$f":"'Bank and Fund Details'!B27","v":"Fund K"},null,{"$f":"IF('Bank and Fund Details'!AC86=\"DE\",'Bank and Fund Details'!E27,0)","v":0},{"$f":"IF('Bank and Fund Details'!AC86=\"DE\",'Bank and Fund Details'!F27,0)","v":0},{"$f":"IF('Bank and Fund Details'!AC86=\"DE\",'Bank and Fund Details'!I27,0)","v":0},{"$f":"IF('Bank and Fund Details'!AC86=\"DE\",'Bank and Fund Details'!AF27,0)","v":0},{"$f":"IF('Bank and Fund Details'!AC86=\"DE\",'Bank and Fund Details'!J27,0)","v":0},null,null,null,null,null,null,null,null,null,null,null,null,null,null,null,null,null,null,null,0,"0"]
[{"$f":"'Bank and Fund Details'!B28","v":"Fund L"},null,{"$f":"IF('Bank and Fund Details'!AC87=\"DE\",'Bank and Fund Details'!E28,0)","v":0},{"$f":"IF('Bank and Fund Details'!AC87=\"DE\",'Bank and Fund Details'!F28,0)","v":0},{"$f":"IF('Bank and Fund Details'!AC87=\"DE\",'Bank and Fund Details'!I28,0)","v":0},{"$f":"IF('Bank and Fund Details'!AC87=\"DE\",'Bank and Fund Details'!AF28,0)","v":0},{"$f":"IF('Bank and Fund Details'!AC87=\"DE\",'Bank and Fund Details'!J28,0)","v":0},null,null,null,null,null,null,null,null,null,null,null,null,null,null,null,null,null,null,null,0,"0"]
[{"$f":"'Bank and Fund Details'!B29","v":"Fund M"},null,{"$f":"IF('Bank and Fund Details'!AC88=\"DE\",'Bank and Fund Details'!E29,0)","v":0},{"$f":"IF('Bank and Fund Details'!AC88=\"DE\",'Bank and Fund Details'!F29,0)","v":0},{"$f":"IF('Bank and Fund Details'!AC88=\"DE\",'Bank and Fund Details'!I29,0)","v":0},{"$f":"IF('Bank and Fund Details'!AC88=\"DE\",'Bank and Fund Details'!AF29,0)","v":0},{"$f":"IF('Bank and Fund Details'!AC88=\"DE\",'Bank and Fund Details'!J29,0)","v":0},null,null,null,null,null,null,null,null,null,null,null,null,null,null,null,null,null,null,null,0,"0"]
[{"$f":"'Bank and Fund Details'!B30","v":"Fund N"},null,{"$f":"IF('Bank and Fund Details'!AC89=\"DE\",'Bank and Fund Details'!E30,0)","v":0},{"$f":"IF('Bank and Fund Details'!AC89=\"DE\",'Bank and Fund Details'!F30,0)","v":0},{"$f":"IF('Bank and Fund Details'!AC89=\"DE\",'Bank and Fund Details'!I30,0)","v":0},{"$f":"IF('Bank and Fund Details'!AC89=\"DE\",'Bank and Fund Details'!AF30,0)","v":0},{"$f":"IF('Bank and Fund Details'!AC89=\"DE\",'Bank and Fund Details'!J30,0)","v":0},null,null,null,null,null,null,null,null,null,null,null,null,null,null,null,null,null,null,null,0,"0"]
[{"$f":"'Bank and Fund Details'!B31","v":"Fund O"},null,{"$f":"IF('Bank and Fund Details'!AC90=\"DE\",'Bank and Fund Details'!E31,0)","v":0},{"$f":"IF('Bank and Fund Details'!AC90=\"DE\",'Bank and Fund Details'!F31,0)","v":0},{"$f":"IF('Bank and Fund Details'!AC90=\"DE\",'Bank and Fund Details'!I31,0)","v":0},{"$f":"IF('Bank and Fund Details'!AC90=\"DE\",'Bank and Fund Details'!AF31,0)","v":0},{"$f":"IF('Bank and Fund Details'!AC90=\"DE\",'Bank and Fund Details'!J31,0)","v":0},null,null,null,null,null,null,null,null,null,null,null,null,null,null,null,null,null,null,null,0,"0"]
[{"$f":"'Bank and Fund Details'!B32","v":"Fund P"},null,{"$f":"IF('Bank and Fund Details'!AC91=\"DE\",'Bank and Fund Details'!E32,0)","v":0},{"$f":"IF('Bank and Fund Details'!AC91=\"DE\",'Bank and Fund Details'!F32,0)","v":0},{"$f":"IF('Bank and Fund Details'!AC91=\"DE\",'Bank and Fund Details'!I32,0)","v":0},{"$f":"IF('Bank and Fund Details'!AC91=\"DE\",'Bank and Fund Details'!AF32,0)","v":0},{"$f":"IF('Bank and Fund Details'!AC91=\"DE\",'Bank and Fund Details'!J32,0)","v":0},null,null,null,null,null,null,null,null,null,null,null,null,null,null,null,null,null,null,null,0,"0"]
[{"$f":"'Bank and Fund Details'!B33","v":"Fund Q"},null,{"$f":"IF('Bank and Fund Details'!AC92=\"DE\",'Bank and Fund Details'!E33,0)","v":0},{"$f":"IF('Bank and Fund Details'!AC92=\"DE\",'Bank and Fund Details'!F33,0)","v":0},{"$f":"IF('Bank and Fund Details'!AC92=\"DE\",'Bank and Fund Details'!I33,0)","v":0},{"$f":"IF('Bank and Fund Details'!AC92=\"DE\",'Bank and Fund Details'!AF33,0)","v":0},{"$f":"IF('Bank and Fund Details'!AC92=\"DE\",'Bank and Fund Details'!J33,0)","v":0},null,null,null,null,null,null,null,null,null,null,null,null,null,null,null,null,null,null,null,0,"0"]
[{"$f":"'Bank and Fund Details'!B34","v":"Fund R"},null,{"$f":"IF('Bank and Fund Details'!AC93=\"DE\",'Bank and Fund Details'!E34,0)","v":0},{"$f":"IF('Bank and Fund Details'!AC93=\"DE\",'Bank and Fund Details'!F34,0)","v":0},{"$f":"IF('Bank and Fund Details'!AC93=\"DE\",'Bank and Fund Details'!I34,0)","v":0},{"$f":"IF('Bank and Fund Details'!AC93=\"DE\",'Bank and Fund Details'!AF34,0)","v":0},{"$f":"IF('Bank and Fund Details'!AC93=\"DE\",'Bank and Fund Details'!J34,0)","v":0},null,null,null,null,null,null,null,null,null,null,null,null,null,null,null,null,null,null,null,0,"0"]
[{"$f":"'Bank and Fund Details'!B35","v":"Fund S"},null,{"$f":"IF('Bank and Fund Details'!AC94=\"DE\",'Bank and Fund Details'!E35,0)","v":0},{"$f":"IF('Bank and Fund Details'!AC94=\"DE\",'Bank and Fund Details'!F35,0)","v":0},{"$f":"IF('Bank and Fund Details'!AC94=\"DE\",'Bank and Fund Details'!I35,0)","v":0},{"$f":"IF('Bank and Fund Details'!AC94=\"DE\",'Bank and Fund Details'!AF35,0)","v":0},{"$f":"IF('Bank and Fund Details'!AC94=\"DE\",'Bank and Fund Details'!J35,0)","v":0},null,null,null,null,null,null,null,null,null,null,null,null,null,null,null,null,null,null,null,0,"0"]
[{"$f":"'Bank and Fund Details'!B36","v":"Fund T"},null,{"$f":"IF('Bank and Fund Details'!AC95=\"DE\",'Bank and Fund Details'!E36,0)","v":0},{"$f":"IF('Bank and Fund Details'!AC95=\"DE\",'Bank and Fund Details'!F36,0)","v":0},{"$f":"IF('Bank and Fund Details'!AC95=\"DE\",'Bank and Fund Details'!I36,0)","v":0},{"$f":"IF('Bank and Fund Details'!AC95=\"DE\",'Bank and Fund Details'!AF36,0)","v":0},{"$f":"IF('Bank and Fund Details'!AC95=\"DE\",'Bank and Fund Details'!J36,0)","v":0},null,null,null,null,null,null,null,null,null,null,null,null,null,null,null,null,null,null,null,{"$f":"SUM(C161:G161)","v":0},{"$f":"IF(AA161=0,\"0\",\"1\")","v":"0"}]
[{"$f":"'Bank and Fund Details'!B39","v":"Investment A"},null,{"$f":"IF('Bank and Fund Details'!AC96=\"DE\",'Bank and Fund Details'!D39,0)","v":0},{"$f":"IF('Bank and Fund Details'!AC96=\"DE\",'Bank and Fund Details'!E39,0)","v":0},{"$f":"IF('Bank and Fund Details'!AC96=\"DE\",'Bank and Fund Details'!F39,0)","v":0},{"$f":"IF('Bank and Fund Details'!AC96=\"DE\",'Bank and Fund Details'!AF39,0)","v":0},{"$f":"IF('Bank and Fund Details'!AC96=\"DE\",'Bank and Fund Details'!J39,0)","v":0},null,null,null,null,null,null,null,null,null,null,null,null,null,null,null,null,null,null,null,0,"0"]
[{"$f":"'Bank and Fund Details'!B40","v":"Investment B"},null,{"$f":"IF('Bank and Fund Details'!AC97=\"DE\",'Bank and Fund Details'!D40,0)","v":0},{"$f":"IF('Bank and Fund Details'!AC97=\"DE\",'Bank and Fund Details'!E40,0)","v":0},{"$f":"IF('Bank and Fund Details'!AC97=\"DE\",'Bank and Fund Details'!F40,0)","v":0},{"$f":"IF('Bank and Fund Details'!AC97=\"DE\",'Bank and Fund Details'!AF40,0)","v":0},{"$f":"IF('Bank and Fund Details'!AC97=\"DE\",'Bank and Fund Details'!J40,0)","v":0},null,null,null,null,null,null,null,null,null,null,null,null,null,null,null,null,null,null,null,0,"0"]
[{"$f":"'Bank and Fund Details'!B41","v":"Investment C"},null,{"$f":"IF('Bank and Fund Details'!AC98=\"DE\",'Bank and Fund Details'!D41,0)","v":0},{"$f":"IF('Bank and Fund Details'!AC98=\"DE\",'Bank and Fund Details'!E41,0)","v":0},{"$f":"IF('Bank and Fund Details'!AC98=\"DE\",'Bank and Fund Details'!F41,0)","v":0},{"$f":"IF('Bank and Fund Details'!AC98=\"DE\",'Bank and Fund Details'!AF41,0)","v":0},{"$f":"IF('Bank and Fund Details'!AC98=\"DE\",'Bank and Fund Details'!J41,0)","v":0},null,null,null,null,null,null,null,null,null,null,null,null,null,null,null,null,null,null,null,0,"0"]
[{"$f":"'Bank and Fund Details'!B42","v":"Investment D"},null,{"$f":"IF('Bank and Fund Details'!AC99=\"DE\",'Bank and Fund Details'!D42,0)","v":0},{"$f":"IF('Bank and Fund Details'!AC99=\"DE\",'Bank and Fund Details'!E42,0)","v":0},{"$f":"IF('Bank and Fund Details'!AC99=\"DE\",'Bank and Fund Details'!F42,0)","v":0},{"$f":"IF('Bank and Fund Details'!AC99=\"DE\",'Bank and Fund Details'!AF42,0)","v":0},{"$f":"IF('Bank and Fund Details'!AC99=\"DE\",'Bank and Fund Details'!J42,0)","v":0},null,null,null,null,null,null,null,null,null,null,null,null,null,null,null,null,null,null,null,0,"0"]
[{"$f":"'Bank and Fund Details'!B43","v":"Investment E"},null,{"$f":"IF('Bank and Fund Details'!AC100=\"DE\",'Bank and Fund Details'!D43,0)","v":0},{"$f":"IF('Bank and Fund Details'!AC100=\"DE\",'Bank and Fund Details'!E43,0)","v":0},{"$f":"IF('Bank and Fund Details'!AC100=\"DE\",'Bank and Fund Details'!F43,0)","v":0},{"$f":"IF('Bank and Fund Details'!AC100=\"DE\",'Bank and Fund Details'!AF43,0)","v":0},{"$f":"IF('Bank and Fund Details'!AC100=\"DE\",'Bank and Fund Details'!J43,0)","v":0},null,null,null,null,null,null,null,null,null,null,null,null,null,null,null,null,null,null,null,0,{"$f":"IF(AA166=0,\"0\",\"1\")","v":"0"}]
[null,null,null,null,null,null,null,null,null,null,null,null,null,null,null,null,null,null,null,null,null,null,null,null,null,null,0,{"$f":"IF(AA167=0,\"0\",\"1\")","v":"0"}]
[null,null,{"$f":"SUM(C142:C166)","v":0},{"$f":"SUM(D142:D166)","v":0},{"$f":"SUM(E142:E166)","v":0},{"$f":"SUM(F142:F166)","v":0},{"$f":"SUM(G142:G166)","v":0},null,null,null,null,null,null,null,null,null,null,null,null,null,null,null,null,null,null,null,{"$f":"SUM(C168:G168)","v":0},{"$f":"IF(AA168=0,\"0\",\"1\")","v":"0"}]
[null,null,null,null,null,null,null,null,null,null,null,null,null,null,null,null,null,null,null,null,null,null,null,null,null,null,{"$f":"AA168","v":0},{"$f":"IF(AA169=0,\"0\",\"1\")","v":"0"}]
[{"$f":"CONCATENATE(AG170,\" \",AH170,\" \",AI170)","v":"Fund A - 0"},null,null,null,null,null,null,null,null,null,null,null,null,null,null,null,null,null,null,null,null,null,null,null,null,null,{"$f":"AA142+AA113","v":0},{"$f":"IF(AA170=0,\"0\",\"1\")","v":"0"},null,null,null,null,{"$f":"'Bank and Fund Details'!B47","v":"Fund A"},"-",{"$f":"'Bank and Fund Details'!C47","v":0}]
["Fund B - 0",null,null,null,null,null,null,null,null,null,null,null,null,null,null,null,null,null,null,null,null,null,null,null,null,null,0,{"$f":"IF(AA171=0,\"0\",\"1\")","v":"0"},null,null,null,null,{"$f":"'Bank and Fund Details'!B48","v":"Fund B"},"-",{"$f":"'Bank and Fund Details'!C48","v":0}]
["Fund C - 0",null,null,null,null,null,null,null,null,null,null,null,null,null,null,null,null,null,null,null,null,null,null,null,null,null,0,"0",null,null,null,null,{"$f":"'Bank and Fund Details'!B49","v":"Fund C"},"-",{"$f":"'Bank and Fund Details'!C49","v":0}]
["Fund D - 0",null,null,null,null,null,null,null,null,null,null,null,null,null,null,null,null,null,null,null,null,null,null,null,null,null,0,"0",null,null,null,null,{"$f":"'Bank and Fund Details'!B50","v":"Fund D"},"-",{"$f":"'Bank and Fund Details'!C50","v":0}]
["Fund E - 0",null,null,null,null,null,null,null,null,null,null,null,null,null,null,null,null,null,null,null,null,null,null,null,null,null,0,"0",null,null,null,null,{"$f":"'Bank and Fund Details'!B51","v":"Fund E"},"-",{"$f":"'Bank and Fund Details'!C51","v":0}]
["Fund F - 0",null,null,null,null,null,null,null,null,null,null,null,null,null,null,null,null,null,null,null,null,null,null,null,null,null,0,"0",null,null,null,null,{"$f":"'Bank and Fund Details'!B52","v":"Fund F"},"-",{"$f":"'Bank and Fund Details'!C52","v":0}]
["Fund G - 0",null,null,null,null,null,null,null,null,null,null,null,null,null,null,null,null,null,null,null,null,null,null,null,null,null,0,"0",null,null,null,null,{"$f":"'Bank and Fund Details'!B53","v":"Fund G"},"-",{"$f":"'Bank and Fund Details'!C53","v":0}]
["Fund H - 0",null,null,null,null,null,null,null,null,null,null,null,null,null,null,null,null,null,null,null,null,null,null,null,null,null,0,"0",null,null,null,null,{"$f":"'Bank and Fund Details'!B54","v":"Fund H"},"-",{"$f":"'Bank and Fund Details'!C54","v":0}]
["Fund I - 0",null,null,null,null,null,null,null,null,null,null,null,null,null,null,null,null,null,null,null,null,null,null,null,null,null,0,"0",null,null,null,null,{"$f":"'Bank and Fund Details'!B55","v":"Fund I"},"-",{"$f":"'Bank and Fund Details'!C55","v":0}]
["Fund J - 0",null,null,null,null,null,null,null,null,null,null,null,null,null,null,null,null,null,null,null,null,null,null,null,null,null,0,"0",null,null,null,null,{"$f":"'Bank and Fund Details'!B56","v":"Fund J"},"-",{"$f":"'Bank and Fund Details'!C56","v":0}]
["Fund K - 0",null,null,null,null,null,null,null,null,null,null,null,null,null,null,null,null,null,null,null,null,null,null,null,null,null,0,{"$f":"IF(AA180=0,\"0\",\"1\")","v":"0"},null,null,null,null,{"$f":"'Bank and Fund Details'!B57","v":"Fund K"},"-",{"$f":"'Bank and Fund Details'!C57","v":0}]
["Fund L - 0",null,null,null,null,null,null,null,null,null,null,null,null,null,null,null,null,null,null,null,null,null,null,null,null,null,0,"0",null,null,null,null,{"$f":"'Bank and Fund Details'!B58","v":"Fund L"},"-",{"$f":"'Bank and Fund Details'!C58","v":0}]
["Fund M - 0",null,null,null,null,null,null,null,null,null,null,null,null,null,null,null,null,null,null,null,null,null,null,null,null,null,0,"0",null,null,null,null,{"$f":"'Bank and Fund Details'!B59","v":"Fund M"},"-",{"$f":"'Bank and Fund Details'!C59","v":0}]
["Fund N - 0",null,null,null,null,null,null,null,null,null,null,null,null,null,null,null,null,null,null,null,null,null,null,null,null,null,0,"0",null,null,null,null,{"$f":"'Bank and Fund Details'!B60","v":"Fund N"},"-",{"$f":"'Bank and Fund Details'!C60","v":0}]
["Fund O - 0",null,null,null,null,null,null,null,null,null,null,null,null,null,null,null,null,null,null,null,null,null,null,null,null,null,0,"0",null,null,null,null,{"$f":"'Bank and Fund Details'!B61","v":"Fund O"},"-",{"$f":"'Bank and Fund Details'!C61","v":0}]
["Fund P - 0",null,null,null,null,null,null,null,null,null,null,null,null,null,null,null,null,null,null,null,null,null,null,null,null,null,0,"0",null,null,null,null,{"$f":"'Bank and Fund Details'!B62","v":"Fund P"},"-",{"$f":"'Bank and Fund Details'!C62","v":0}]
["Fund Q - 0",null,null,null,null,null,null,null,null,null,null,null,null,null,null,null,null,null,null,null,null,null,null,null,null,null,0,"0",null,null,null,null,{"$f":"'Bank and Fund Details'!B63","v":"Fund Q"},"-",{"$f":"'Bank and Fund Details'!C63","v":0}]
["Fund R - 0",null,null,null,null,null,null,null,null,null,null,null,null,null,null,null,null,null,null,null,null,null,null,null,null,null,0,"0",null,null,null,null,{"$f":"'Bank and Fund Details'!B64","v":"Fund R"},"-",{"$f":"'Bank and Fund Details'!C64","v":0}]
["Fund S - 0",null,null,null,null,null,null,null,null,null,null,null,null,null,null,null,null,null,null,null,null,null,null,null,null,null,0,"0",null,null,null,null,{"$f":"'Bank and Fund Details'!B65","v":"Fund S"},"-",{"$f":"'Bank and Fund Details'!C65","v":0}]
["Fund T - 0",null,null,null,null,null,null,null,null,null,null,null,null,null,null,null,null,null,null,null,null,null,null,null,null,null,{"$f":"AA166+AA137","v":0},"0",null,null,null,null,{"$f":"'Bank and Fund Details'!B66","v":"Fund T"},"-",{"$f":"'Bank and Fund Details'!C66","v":0}]
[null,null,null,null,null,null,null,null,null,null,null,null,null,null,null,null,null,null,null,null,null,null,null,null,null,null,{"$f":"SUM(AA170:AA189)","v":0},{"$f":"IF(AA190=0,\"0\",\"1\")","v":"0"}]
[null,null,null,null,null,null,null,null,null,null,null,null,null,null,null,null,null,null,null,null,null,null,null,null,null,null,1,"1"]
[{"$f":"CONCATENATE(AD192,\".\",\" \",AG192)","v":"2. Receipts"},null,"Unrestricted Fund","Designated Fund","Restricted Fund","Endowment Fund","Total","Total",null,null,null,null,null,null,null,null,null,null,null,null,null,null,null,null,null,null,1,"1",null,{"$f":"IF(AF192=\"0\",\"0\",AE192)","v":2},{"$f":"SUM(AE110+AF110)","v":2},1,"Receipts"]
[null,null,null,null,null,null,{"$f":"'Name and Parish'!D15","v":2023},{"$f":"G193-1","v":2022},null,null,null,null,null,null,null,null,null,null,null,null,null,null,null,null,null,null,1,"1"]
[null,null,"£","£","£","£","£","£",null,null,null,null,null,null,null,null,null,null,null,null,null,null,null,null,null,null,1,"1"]
["COLLECTIONS AT SERVICES",null,null,null,null,null,null,null,null,null,null,null,null,null,null,null,null,null,null,null,null,null,null,null,null,null,{"$f":"SUM(AA196:AA255)","v":0},"0"]
["Sunday Collections",null,{"$f":"WorkingR!AF33","v":0},{"$f":"WorkingR!AG33","v":0},{"$f":"WorkingR!AH33","v":0},{"$f":"WorkingR!AI33","v":0},{"$f":"SUM(C196:F196)","v":0},{"$f":"'Prior Year Comparative'!W6","v":0},null,null,null,null,null,null,null,null,null,null,null,null,null,null,null,null,null,null,{"$f":"SUM(G196:H196)","v":0},"0"]
["Sunday Collections - Gift Aided",null,{"$f":"WorkingR!AF34","v":0},{"$f":"WorkingR!AG34","v":0},{"$f":"WorkingR!AH34","v":0},{"$f":"WorkingR!AI34","v":0},0,{"$f":"'Prior Year Comparative'!W7","v":0},null,null,null,null,null,null,null,null,null,null,null,null,null,null,null,null,null,null,0,"0"]
["Weekday Collections",null,{"$f":"WorkingR!AF40","v":0},{"$f":"WorkingR!AG40","v":0},{"$f":"WorkingR!AH40","v":0},{"$f":"WorkingR!AI40","v":0},0,{"$f":"'Prior Year Comparative'!W8","v":0},null,null,null,null,null,null,null,null,null,null,null,null,null,null,null,null,null,null,0,"0"]
["Weekday Collections - Gift Aided",null,{"$f":"WorkingR!AF41","v":0},{"$f":"WorkingR!AG41","v":0},{"$f":"WorkingR!AH41","v":0},{"$f":"WorkingR!AI41","v":0},0,{"$f":"'Prior Year Comparative'!W9","v":0},null,null,null,null,null,null,null,null,null,null,null,null,null,null,null,null,null,null,0,"0"]
["Wedding and Funeral Collections",null,{"$f":"WorkingR!AF38","v":0},{"$f":"WorkingR!AG38","v":0},{"$f":"WorkingR!AH38","v":0},{"$f":"WorkingR!AI38","v":0},0,{"$f":"'Prior Year Comparative'!W10","v":0},null,null,null,null,null,null,null,null,null,null,null,null,null,null,null,null,null,null,0,"0"]
["Wedding and Funeral Collections - Gift Aided",null,{"$f":"WorkingR!AF39","v":0},{"$f":"WorkingR!AG39","v":0},{"$f":"WorkingR!AH39","v":0},{"$f":"WorkingR!AI39","v":0},0,{"$f":"'Prior Year Comparative'!W11","v":0},null,null,null,null,null,null,null,null,null,null,null,null,null,null,null,null,null,null,0,"0"]
["Junior Church Collections",null,{"$f":"WorkingR!AF21","v":0},{"$f":"WorkingR!AG21","v":0},{"$f":"WorkingR!AH21","v":0},{"$f":"WorkingR!AI21","v":0},0,{"$f":"'Prior Year Comparative'!W12","v":0},null,null,null,null,null,null,null,null,null,null,null,null,null,null,null,null,null,null,0,"0"]
["Junior Church Collections - Gift Aided",null,{"$f":"WorkingR!AF22","v":0},{"$f":"WorkingR!AG22","v":0},{"$f":"WorkingR!AH22","v":0},{"$f":"WorkingR!AI22","v":0},0,{"$f":"'Prior Year Comparative'!W13","v":0},null,null,null,null,null,null,null,null,null,null,null,null,null,null,null,null,null,null,{"$f":"SUM(G203:H203)","v":0},{"$f":"IF(AA203=0,\"0\",\"1\")","v":"0"}]
[{"$f":"IF(Descriptions!D43=\"Collections at services\",Descriptions!B43,0)","v":0},null,{"$f":"IF(Descriptions!D43=\"Collections at services\",WorkingR!AF42,0)","v":0},{"$f":"IF(Descriptions!D43=\"Collections at services\",WorkingR!AG42,0)","v":0},{"$f":"IF(Descriptions!D43=\"Collections at services\",WorkingR!AH42,0)","v":0},{"$f":"IF(Descriptions!D43=\"Collections at services\",WorkingR!AI42,0)","v":0},{"$f":"SUM(C204:F204)","v":0},{"$f":"'Prior Year Comparative'!W14","v":0},null,null,null,null,null,null,null,null,null,null,null,null,null,null,null,null,null,null,0,"0"]
[{"$f":"IF(Descriptions!D44=\"Collections at services\",Descriptions!B44,0)","v":0},null,{"$f":"IF(Descriptions!D44=\"Collections at services\",WorkingR!AF43,0)","v":0},{"$f":"IF(Descriptions!D44=\"Collections at services\",WorkingR!AG43,0)","v":0},{"$f":"IF(Descriptions!D44=\"Collections at services\",WorkingR!AH43,0)","v":0},{"$f":"IF(Descriptions!D44=\"Collections at services\",WorkingR!AI43,0)","v":0},0,{"$f":"'Prior Year Comparative'!W15","v":0},null,null,null,null,null,null,null,null,null,null,null,null,null,null,null,null,null,null,0,"0"]
[{"$f":"IF(Descriptions!D45=\"Collections at services\",Descriptions!B45,0)","v":0},null,{"$f":"IF(Descriptions!D45=\"Collections at services\",WorkingR!AF44,0)","v":0},{"$f":"IF(Descriptions!D45=\"Collections at services\",WorkingR!AG44,0)","v":0},{"$f":"IF(Descriptions!D45=\"Collections at services\",WorkingR!AH44,0)","v":0},{"$f":"IF(Descriptions!D45=\"Collections at services\",WorkingR!AI44,0)","v":0},0,{"$f":"'Prior Year Comparative'!W16","v":0},null,null,null,null,null,null,null,null,null,null,null,null,null,null,null,null,null,null,0,"0"]
[{"$f":"IF(Descriptions!D46=\"Collections at services\",Descriptions!B46,0)","v":0},null,{"$f":"IF(Descriptions!D46=\"Collections at services\",WorkingR!AF45,0)","v":0},{"$f":"IF(Descriptions!D46=\"Collections at services\",WorkingR!AG45,0)","v":0},{"$f":"IF(Descriptions!D46=\"Collections at services\",WorkingR!AH45,0)","v":0},{"$f":"IF(Descriptions!D46=\"Collections at services\",WorkingR!AI45,0)","v":0},0,{"$f":"'Prior Year Comparative'!W17","v":0},null,null,null,null,null,null,null,null,null,null,null,null,null,null,null,null,null,null,0,"0"]
[{"$f":"IF(Descriptions!D47=\"Collections at services\",Descriptions!B47,0)","v":0},null,{"$f":"IF(Descriptions!D47=\"Collections at services\",WorkingR!AF46,0)","v":0},{"$f":"IF(Descriptions!D47=\"Collections at services\",WorkingR!AG46,0)","v":0},{"$f":"IF(Descriptions!D47=\"Collections at services\",WorkingR!AH46,0)","v":0},{"$f":"IF(Descriptions!D47=\"Collections at services\",WorkingR!AI46,0)","v":0},0,{"$f":"'Prior Year Comparative'!W18","v":0},null,null,null,null,null,null,null,null,null,null,null,null,null,null,null,null,null,null,0,"0"]
[{"$f":"IF(Descriptions!D48=\"Collections at services\",Descriptions!B48,0)","v":0},null,{"$f":"IF(Descriptions!D48=\"Collections at services\",WorkingR!AF47,0)","v":0},{"$f":"IF(Descriptions!D48=\"Collections at services\",WorkingR!AG47,0)","v":0},{"$f":"IF(Descriptions!D48=\"Collections at services\",WorkingR!AH47,0)","v":0},{"$f":"IF(Descriptions!D48=\"Collections at services\",WorkingR!AI47,0)","v":0},0,{"$f":"'Prior Year Comparative'!W19","v":0},null,null,null,null,null,null,null,null,null,null,null,null,null,null,null,null,null,null,0,"0"]
[{"$f":"IF(Descriptions!D49=\"Collections at services\",Descriptions!B49,0)","v":0},null,{"$f":"IF(Descriptions!D49=\"Collections at services\",WorkingR!AF48,0)","v":0},{"$f":"IF(Descriptions!D49=\"Collections at services\",WorkingR!AG48,0)","v":0},{"$f":"IF(Descriptions!D49=\"Collections at services\",WorkingR!AH48,0)","v":0},{"$f":"IF(Descriptions!D49=\"Collections at services\",WorkingR!AI48,0)","v":0},0,{"$f":"'Prior Year Comparative'!W20","v":0},null,null,null,null,null,null,null,null,null,null,null,null,null,null,null,null,null,null,0,"0"]
[{"$f":"IF(Descriptions!D50=\"Collections at services\",Descriptions!B50,0)","v":0},null,{"$f":"IF(Descriptions!D50=\"Collections at services\",WorkingR!AF49,0)","v":0},{"$f":"IF(Descriptions!D50=\"Collections at services\",WorkingR!AG49,0)","v":0},{"$f":"IF(Descriptions!D50=\"Collections at services\",WorkingR!AH49,0)","v":0},{"$f":"IF(Descriptions!D50=\"Collections at services\",WorkingR!AI49,0)","v":0},0,{"$f":"'Prior Year Comparative'!W21","v":0},null,null,null,null,null,null,null,null,null,null,null,null,null,null,null,null,null,null,0,"0"]
[{"$f":"IF(Descriptions!D51=\"Collections at services\",Descriptions!B51,0)","v":0},null,{"$f":"IF(Descriptions!D51=\"Collections at services\",WorkingR!AF50,0)","v":0},{"$f":"IF(Descriptions!D51=\"Collections at services\",WorkingR!AG50,0)","v":0},{"$f":"IF(Descriptions!D51=\"Collections at services\",WorkingR!AH50,0)","v":0},{"$f":"IF(Descriptions!D51=\"Collections at services\",WorkingR!AI50,0)","v":0},0,{"$f":"'Prior Year Comparative'!W22","v":0},null,null,null,null,null,null,null,null,null,null,null,null,null,null,null,null,null,null,0,"0"]
[{"$f":"IF(Descriptions!D52=\"Collections at services\",Descriptions!B52,0)","v":0},null,{"$f":"IF(Descriptions!D52=\"Collections at services\",WorkingR!AF51,0)","v":0},{"$f":"IF(Descriptions!D52=\"Collections at services\",WorkingR!AG51,0)","v":0},{"$f":"IF(Descriptions!D52=\"Collections at services\",WorkingR!AH51,0)","v":0},{"$f":"IF(Descriptions!D52=\"Collections at services\",WorkingR!AI51,0)","v":0},0,{"$f":"'Prior Year Comparative'!W23","v":0},null,null,null,null,null,null,null,null,null,null,null,null,null,null,null,null,null,null,0,"0"]
[{"$f":"IF(Descriptions!D53=\"Collections at services\",Descriptions!B53,0)","v":0},null,{"$f":"IF(Descriptions!D53=\"Collections at services\",WorkingR!AF52,0)","v":0},{"$f":"IF(Descriptions!D53=\"Collections at services\",WorkingR!AG52,0)","v":0},{"$f":"IF(Descriptions!D53=\"Collections at services\",WorkingR!AH52,0)","v":0},{"$f":"IF(Descriptions!D53=\"Collections at services\",WorkingR!AI52,0)","v":0},0,{"$f":"'Prior Year Comparative'!W24","v":0},null,null,null,null,null,null,null,null,null,null,null,null,null,null,null,null,null,null,0,"0"]
[{"$f":"IF(Descriptions!D54=\"Collections at services\",Descriptions!B54,0)","v":0},null,{"$f":"IF(Descriptions!D54=\"Collections at services\",WorkingR!AF53,0)","v":0},{"$f":"IF(Descriptions!D54=\"Collections at services\",WorkingR!AG53,0)","v":0},{"$f":"IF(Descriptions!D54=\"Collections at services\",WorkingR!AH53,0)","v":0},{"$f":"IF(Descriptions!D54=\"Collections at services\",WorkingR!AI53,0)","v":0},0,{"$f":"'Prior Year Comparative'!W25","v":0},null,null,null,null,null,null,null,null,null,null,null,null,null,null,null,null,null,null,0,"0"]
[{"$f":"IF(Descriptions!D55=\"Collections at services\",Descriptions!B55,0)","v":0},null,{"$f":"IF(Descriptions!D55=\"Collections at services\",WorkingR!AF54,0)","v":0},{"$f":"IF(Descriptions!D55=\"Collections at services\",WorkingR!AG54,0)","v":0},{"$f":"IF(Descriptions!D55=\"Collections at services\",WorkingR!AH54,0)","v":0},{"$f":"IF(Descriptions!D55=\"Collections at services\",WorkingR!AI54,0)","v":0},0,{"$f":"'Prior Year Comparative'!W26","v":0},null,null,null,null,null,null,null,null,null,null,null,null,null,null,null,null,null,null,0,"0"]
[{"$f":"IF(Descriptions!D56=\"Collections at services\",Descriptions!B56,0)","v":0},null,{"$f":"IF(Descriptions!D56=\"Collections at services\",WorkingR!AF55,0)","v":0},{"$f":"IF(Descriptions!D56=\"Collections at services\",WorkingR!AG55,0)","v":0},{"$f":"IF(Descriptions!D56=\"Collections at services\",WorkingR!AH55,0)","v":0},{"$f":"IF(Descriptions!D56=\"Collections at services\",WorkingR!AI55,0)","v":0},0,{"$f":"'Prior Year Comparative'!W27","v":0},null,null,null,null,null,null,null,null,null,null,null,null,null,null,null,null,null,null,0,"0"]
[{"$f":"IF(Descriptions!D57=\"Collections at services\",Descriptions!B57,0)","v":0},null,{"$f":"IF(Descriptions!D57=\"Collections at services\",WorkingR!AF56,0)","v":0},{"$f":"IF(Descriptions!D57=\"Collections at services\",WorkingR!AG56,0)","v":0},{"$f":"IF(Descriptions!D57=\"Collections at services\",WorkingR!AH56,0)","v":0},{"$f":"IF(Descriptions!D57=\"Collections at services\",WorkingR!AI56,0)","v":0},0,{"$f":"'Prior Year Comparative'!W28","v":0},null,null,null,null,null,null,null,null,null,null,null,null,null,null,null,null,null,null,0,"0"]
[{"$f":"IF(Descriptions!D58=\"Collections at services\",Descriptions!B58,0)","v":0},null,{"$f":"IF(Descriptions!D58=\"Collections at services\",WorkingR!AF57,0)","v":0},{"$f":"IF(Descriptions!D58=\"Collections at services\",WorkingR!AG57,0)","v":0},{"$f":"IF(Descriptions!D58=\"Collections at services\",WorkingR!AH57,0)","v":0},{"$f":"IF(Descriptions!D58=\"Collections at services\",WorkingR!AI57,0)","v":0},0,{"$f":"'Prior Year Comparative'!W29","v":0},null,null,null,null,null,null,null,null,null,null,null,null,null,null,null,null,null,null,0,"0"]
[{"$f":"IF(Descriptions!D59=\"Collections at services\",Descriptions!B59,0)","v":0},null,{"$f":"IF(Descriptions!D59=\"Collections at services\",WorkingR!AF58,0)","v":0},{"$f":"IF(Descriptions!D59=\"Collections at services\",WorkingR!AG58,0)","v":0},{"$f":"IF(Descriptions!D59=\"Collections at services\",WorkingR!AH58,0)","v":0},{"$f":"IF(Descriptions!D59=\"Collections at services\",WorkingR!AI58,0)","v":0},0,{"$f":"'Prior Year Comparative'!W30","v":0},null,null,null,null,null,null,null,null,null,null,null,null,null,null,null,null,null,null,0,"0"]
[{"$f":"IF(Descriptions!D60=\"Collections at services\",Descriptions!B60,0)","v":0},null,{"$f":"IF(Descriptions!D60=\"Collections at services\",WorkingR!AF59,0)","v":0},{"$f":"IF(Descriptions!D60=\"Collections at services\",WorkingR!AG59,0)","v":0},{"$f":"IF(Descriptions!D60=\"Collections at services\",WorkingR!AH59,0)","v":0},{"$f":"IF(Descriptions!D60=\"Collections at services\",WorkingR!AI59,0)","v":0},0,{"$f":"'Prior Year Comparative'!W31","v":0},null,null,null,null,null,null,null,null,null,null,null,null,null,null,null,null,null,null,0,"0"]
[{"$f":"IF(Descriptions!D61=\"Collections at services\",Descriptions!B61,0)","v":0},null,{"$f":"IF(Descriptions!D61=\"Collections at services\",WorkingR!AF60,0)","v":0},{"$f":"IF(Descriptions!D61=\"Collections at services\",WorkingR!AG60,0)","v":0},{"$f":"IF(Descriptions!D61=\"Collections at services\",WorkingR!AH60,0)","v":0},{"$f":"IF(Descriptions!D61=\"Collections at services\",WorkingR!AI60,0)","v":0},0,{"$f":"'Prior Year Comparative'!W32","v":0},null,null,null,null,null,null,null,null,null,null,null,null,null,null,null,null,null,null,0,"0"]
[{"$f":"IF(Descriptions!D62=\"Collections at services\",Descriptions!B62,0)","v":0},null,{"$f":"IF(Descriptions!D62=\"Collections at services\",WorkingR!AF61,0)","v":0},{"$f":"IF(Descriptions!D62=\"Collections at services\",WorkingR!AG61,0)","v":0},{"$f":"IF(Descriptions!D62=\"Collections at services\",WorkingR!AH61,0)","v":0},{"$f":"IF(Descriptions!D62=\"Collections at services\",WorkingR!AI61,0)","v":0},0,{"$f":"'Prior Year Comparative'!W33","v":0},null,null,null,null,null,null,null,null,null,null,null,null,null,null,null,null,null,null,0,"0"]
[{"$f":"IF(Descriptions!D63=\"Collections at services\",Descriptions!B63,0)","v":0},null,{"$f":"IF(Descriptions!D63=\"Collections at services\",WorkingR!AF62,0)","v":0},{"$f":"IF(Descriptions!D63=\"Collections at services\",WorkingR!AG62,0)","v":0},{"$f":"IF(Descriptions!D63=\"Collections at services\",WorkingR!AH62,0)","v":0},{"$f":"IF(Descriptions!D63=\"Collections at services\",WorkingR!AI62,0)","v":0},0,{"$f":"'Prior Year Comparative'!W34","v":0},null,null,null,null,null,null,null,null,null,null,null,null,null,null,null,null,null,null,0,"0"]
[{"$f":"IF(Descriptions!D64=\"Collections at services\",Descriptions!B64,0)","v":0},null,{"$f":"IF(Descriptions!D64=\"Collections at services\",WorkingR!AF63,0)","v":0},{"$f":"IF(Descriptions!D64=\"Collections at services\",WorkingR!AG63,0)","v":0},{"$f":"IF(Descriptions!D64=\"Collections at services\",WorkingR!AH63,0)","v":0},{"$f":"IF(Descriptions!D64=\"Collections at services\",WorkingR!AI63,0)","v":0},0,{"$f":"'Prior Year Comparative'!W35","v":0},null,null,null,null,null,null,null,null,null,null,null,null,null,null,null,null,null,null,0,"0"]
[{"$f":"IF(Descriptions!D65=\"Collections at services\",Descriptions!B65,0)","v":0},null,{"$f":"IF(Descriptions!D65=\"Collections at services\",WorkingR!AF64,0)","v":0},{"$f":"IF(Descriptions!D65=\"Collections at services\",WorkingR!AG64,0)","v":0},{"$f":"IF(Descriptions!D65=\"Collections at services\",WorkingR!AH64,0)","v":0},{"$f":"IF(Descriptions!D65=\"Collections at services\",WorkingR!AI64,0)","v":0},0,{"$f":"'Prior Year Comparative'!W36","v":0},null,null,null,null,null,null,null,null,null,null,null,null,null,null,null,null,null,null,0,"0"]
[{"$f":"IF(Descriptions!D66=\"Collections at services\",Descriptions!B66,0)","v":0},null,{"$f":"IF(Descriptions!D66=\"Collections at services\",WorkingR!AF65,0)","v":0},{"$f":"IF(Descriptions!D66=\"Collections at services\",WorkingR!AG65,0)","v":0},{"$f":"IF(Descriptions!D66=\"Collections at services\",WorkingR!AH65,0)","v":0},{"$f":"IF(Descriptions!D66=\"Collections at services\",WorkingR!AI65,0)","v":0},0,{"$f":"'Prior Year Comparative'!W37","v":0},null,null,null,null,null,null,null,null,null,null,null,null,null,null,null,null,null,null,0,"0"]
[{"$f":"IF(Descriptions!D67=\"Collections at services\",Descriptions!B67,0)","v":0},null,{"$f":"IF(Descriptions!D67=\"Collections at services\",WorkingR!AF66,0)","v":0},{"$f":"IF(Descriptions!D67=\"Collections at services\",WorkingR!AG66,0)","v":0},{"$f":"IF(Descriptions!D67=\"Collections at services\",WorkingR!AH66,0)","v":0},{"$f":"IF(Descriptions!D67=\"Collections at services\",WorkingR!AI66,0)","v":0},0,{"$f":"'Prior Year Comparative'!W38","v":0},null,null,null,null,null,null,null,null,null,null,null,null,null,null,null,null,null,null,0,"0"]
[{"$f":"IF(Descriptions!D68=\"Collections at services\",Descriptions!B68,0)","v":0},null,{"$f":"IF(Descriptions!D68=\"Collections at services\",WorkingR!AF67,0)","v":0},{"$f":"IF(Descriptions!D68=\"Collections at services\",WorkingR!AG67,0)","v":0},{"$f":"IF(Descriptions!D68=\"Collections at services\",WorkingR!AH67,0)","v":0},{"$f":"IF(Descriptions!D68=\"Collections at services\",WorkingR!AI67,0)","v":0},0,{"$f":"'Prior Year Comparative'!W39","v":0},null,null,null,null,null,null,null,null,null,null,null,null,null,null,null,null,null,null,0,"0"]
[{"$f":"IF(Descriptions!D69=\"Collections at services\",Descriptions!B69,0)","v":0},null,{"$f":"IF(Descriptions!D69=\"Collections at services\",WorkingR!AF68,0)","v":0},{"$f":"IF(Descriptions!D69=\"Collections at services\",WorkingR!AG68,0)","v":0},{"$f":"IF(Descriptions!D69=\"Collections at services\",WorkingR!AH68,0)","v":0},{"$f":"IF(Descriptions!D69=\"Collections at services\",WorkingR!AI68,0)","v":0},0,{"$f":"'Prior Year Comparative'!W40","v":0},null,null,null,null,null,null,null,null,null,null,null,null,null,null,null,null,null,null,0,"0"]
[{"$f":"IF(Descriptions!D70=\"Collections at services\",Descriptions!B70,0)","v":0},null,{"$f":"IF(Descriptions!D70=\"Collections at services\",WorkingR!AF69,0)","v":0},{"$f":"IF(Descriptions!D70=\"Collections at services\",WorkingR!AG69,0)","v":0},{"$f":"IF(Descriptions!D70=\"Collections at services\",WorkingR!AH69,0)","v":0},{"$f":"IF(Descriptions!D70=\"Collections at services\",WorkingR!AI69,0)","v":0},0,{"$f":"'Prior Year Comparative'!W41","v":0},null,null,null,null,null,null,null,null,null,null,null,null,null,null,null,null,null,null,0,"0"]
[{"$f":"IF(Descriptions!D71=\"Collections at services\",Descriptions!B71,0)","v":0},null,{"$f":"IF(Descriptions!D71=\"Collections at services\",WorkingR!AF70,0)","v":0},{"$f":"IF(Descriptions!D71=\"Collections at services\",WorkingR!AG70,0)","v":0},{"$f":"IF(Descriptions!D71=\"Collections at services\",WorkingR!AH70,0)","v":0},{"$f":"IF(Descriptions!D71=\"Collections at services\",WorkingR!AI70,0)","v":0},0,{"$f":"'Prior Year Comparative'!W42","v":0},null,null,null,null,null,null,null,null,null,null,null,null,null,null,null,null,null,null,0,"0"]
[{"$f":"IF(Descriptions!D72=\"Collections at services\",Descriptions!B72,0)","v":0},null,{"$f":"IF(Descriptions!D72=\"Collections at services\",WorkingR!AF71,0)","v":0},{"$f":"IF(Descriptions!D72=\"Collections at services\",WorkingR!AG71,0)","v":0},{"$f":"IF(Descriptions!D72=\"Collections at services\",WorkingR!AH71,0)","v":0},{"$f":"IF(Descriptions!D72=\"Collections at services\",WorkingR!AI71,0)","v":0},0,{"$f":"'Prior Year Comparative'!W43","v":0},null,null,null,null,null,null,null,null,null,null,null,null,null,null,null,null,null,null,0,"0"]
[{"$f":"IF(Descriptions!D73=\"Collections at services\",Descriptions!B73,0)","v":0},null,{"$f":"IF(Descriptions!D73=\"Collections at services\",WorkingR!AF72,0)","v":0},{"$f":"IF(Descriptions!D73=\"Collections at services\",WorkingR!AG72,0)","v":0},{"$f":"IF(Descriptions!D73=\"Collections at services\",WorkingR!AH72,0)","v":0},{"$f":"IF(Descriptions!D73=\"Collections at services\",WorkingR!AI72,0)","v":0},0,{"$f":"'Prior Year Comparative'!W44","v":0},null,null,null,null,null,null,null,null,null,null,null,null,null,null,null,null,null,null,0,"0"]
[{"$f":"IF(Descriptions!D74=\"Collections at services\",Descriptions!B74,0)","v":0},null,{"$f":"IF(Descriptions!D74=\"Collections at services\",WorkingR!AF73,0)","v":0},{"$f":"IF(Descriptions!D74=\"Collections at services\",WorkingR!AG73,0)","v":0},{"$f":"IF(Descriptions!D74=\"Collections at services\",WorkingR!AH73,0)","v":0},{"$f":"IF(Descriptions!D74=\"Collections at services\",WorkingR!AI73,0)","v":0},0,{"$f":"'Prior Year Comparative'!W45","v":0},null,null,null,null,null,null,null,null,null,null,null,null,null,null,null,null,null,null,0,"0"]
[{"$f":"IF(Descriptions!D75=\"Collections at services\",Descriptions!B75,0)","v":0},null,{"$f":"IF(Descriptions!D75=\"Collections at services\",WorkingR!AF74,0)","v":0},{"$f":"IF(Descriptions!D75=\"Collections at services\",WorkingR!AG74,0)","v":0},{"$f":"IF(Descriptions!D75=\"Collections at services\",WorkingR!AH74,0)","v":0},{"$f":"IF(Descriptions!D75=\"Collections at services\",WorkingR!AI74,0)","v":0},0,{"$f":"'Prior Year Comparative'!W46","v":0},null,null,null,null,null,null,null,null,null,null,null,null,null,null,null,null,null,null,0,"0"]
[{"$f":"IF(Descriptions!D76=\"Collections at services\",Descriptions!B76,0)","v":0},null,{"$f":"IF(Descriptions!D76=\"Collections at services\",WorkingR!AF75,0)","v":0},{"$f":"IF(Descriptions!D76=\"Collections at services\",WorkingR!AG75,0)","v":0},{"$f":"IF(Descriptions!D76=\"Collections at services\",WorkingR!AH75,0)","v":0},{"$f":"IF(Descriptions!D76=\"Collections at services\",WorkingR!AI75,0)","v":0},0,{"$f":"'Prior Year Comparative'!W47","v":0},null,null,null,null,null,null,null,null,null,null,null,null,null,null,null,null,null,null,0,"0"]
[{"$f":"IF(Descriptions!D77=\"Collections at services\",Descriptions!B77,0)","v":0},null,{"$f":"IF(Descriptions!D77=\"Collections at services\",WorkingR!AF76,0)","v":0},{"$f":"IF(Descriptions!D77=\"Collections at services\",WorkingR!AG76,0)","v":0},{"$f":"IF(Descriptions!D77=\"Collections at services\",WorkingR!AH76,0)","v":0},{"$f":"IF(Descriptions!D77=\"Collections at services\",WorkingR!AI76,0)","v":0},0,{"$f":"'Prior Year Comparative'!W48","v":0},null,null,null,null,null,null,null,null,null,null,null,null,null,null,null,null,null,null,0,"0"]
[{"$f":"IF(Descriptions!D78=\"Collections at services\",Descriptions!B78,0)","v":0},null,{"$f":"IF(Descriptions!D78=\"Collections at services\",WorkingR!AF77,0)","v":0},{"$f":"IF(Descriptions!D78=\"Collections at services\",WorkingR!AG77,0)","v":0},{"$f":"IF(Descriptions!D78=\"Collections at services\",WorkingR!AH77,0)","v":0},{"$f":"IF(Descriptions!D78=\"Collections at services\",WorkingR!AI77,0)","v":0},0,{"$f":"'Prior Year Comparative'!W49","v":0},null,null,null,null,null,null,null,null,null,null,null,null,null,null,null,null,null,null,0,"0"]
[{"$f":"IF(Descriptions!D79=\"Collections at services\",Descriptions!B79,0)","v":0},null,{"$f":"IF(Descriptions!D79=\"Collections at services\",WorkingR!AF78,0)","v":0},{"$f":"IF(Descriptions!D79=\"Collections at services\",WorkingR!AG78,0)","v":0},{"$f":"IF(Descriptions!D79=\"Collections at services\",WorkingR!AH78,0)","v":0},{"$f":"IF(Descriptions!D79=\"Collections at services\",WorkingR!AI78,0)","v":0},0,{"$f":"'Prior Year Comparative'!W50","v":0},null,null,null,null,null,null,null,null,null,null,null,null,null,null,null,null,null,null,0,"0"]
[{"$f":"IF(Descriptions!D80=\"Collections at services\",Descriptions!B80,0)","v":0},null,{"$f":"IF(Descriptions!D80=\"Collections at services\",WorkingR!AF79,0)","v":0},{"$f":"IF(Descriptions!D80=\"Collections at services\",WorkingR!AG79,0)","v":0},{"$f":"IF(Descriptions!D80=\"Collections at services\",WorkingR!AH79,0)","v":0},{"$f":"IF(Descriptions!D80=\"Collections at services\",WorkingR!AI79,0)","v":0},0,{"$f":"'Prior Year Comparative'!W51","v":0},null,null,null,null,null,null,null,null,null,null,null,null,null,null,null,null,null,null,0,"0"]
[{"$f":"IF(Descriptions!D81=\"Collections at services\",Descriptions!B81,0)","v":0},null,{"$f":"IF(Descriptions!D81=\"Collections at services\",WorkingR!AF80,0)","v":0},{"$f":"IF(Descriptions!D81=\"Collections at services\",WorkingR!AG80,0)","v":0},{"$f":"IF(Descriptions!D81=\"Collections at services\",WorkingR!AH80,0)","v":0},{"$f":"IF(Descriptions!D81=\"Collections at services\",WorkingR!AI80,0)","v":0},0,{"$f":"'Prior Year Comparative'!W52","v":0},null,null,null,null,null,null,null,null,null,null,null,null,null,null,null,null,null,null,0,"0"]
[{"$f":"IF(Descriptions!D82=\"Collections at services\",Descriptions!B82,0)","v":0},null,{"$f":"IF(Descriptions!D82=\"Collections at services\",WorkingR!AF81,0)","v":0},{"$f":"IF(Descriptions!D82=\"Collections at services\",WorkingR!AG81,0)","v":0},{"$f":"IF(Descriptions!D82=\"Collections at services\",WorkingR!AH81,0)","v":0},{"$f":"IF(Descriptions!D82=\"Collections at services\",WorkingR!AI81,0)","v":0},0,{"$f":"'Prior Year Comparative'!W53","v":0},null,null,null,null,null,null,null,null,null,null,null,null,null,null,null,null,null,null,0,"0"]
[{"$f":"IF(Descriptions!D83=\"Collections at services\",Descriptions!B83,0)","v":0},null,{"$f":"IF(Descriptions!D83=\"Collections at services\",WorkingR!AF82,0)","v":0},{"$f":"IF(Descriptions!D83=\"Collections at services\",WorkingR!AG82,0)","v":0},{"$f":"IF(Descriptions!D83=\"Collections at services\",WorkingR!AH82,0)","v":0},{"$f":"IF(Descriptions!D83=\"Collections at services\",WorkingR!AI82,0)","v":0},0,{"$f":"'Prior Year Comparative'!W54","v":0},null,null,null,null,null,null,null,null,null,null,null,null,null,null,null,null,null,null,0,"0"]
[{"$f":"IF(Descriptions!D84=\"Collections at services\",Descriptions!B84,0)","v":0},null,{"$f":"IF(Descriptions!D84=\"Collections at services\",WorkingR!AF83,0)","v":0},{"$f":"IF(Descriptions!D84=\"Collections at services\",WorkingR!AG83,0)","v":0},{"$f":"IF(Descriptions!D84=\"Collections at services\",WorkingR!AH83,0)","v":0},{"$f":"IF(Descriptions!D84=\"Collections at services\",WorkingR!AI83,0)","v":0},0,{"$f":"'Prior Year Comparative'!W55","v":0},null,null,null,null,null,null,null,null,null,null,null,null,null,null,null,null,null,null,0,"0"]
[{"$f":"IF(Descriptions!D85=\"Collections at services\",Descriptions!B85,0)","v":0},null,{"$f":"IF(Descriptions!D85=\"Collections at services\",WorkingR!AF84,0)","v":0},{"$f":"IF(Descriptions!D85=\"Collections at services\",WorkingR!AG84,0)","v":0},{"$f":"IF(Descriptions!D85=\"Collections at services\",WorkingR!AH84,0)","v":0},{"$f":"IF(Descriptions!D85=\"Collections at services\",WorkingR!AI84,0)","v":0},0,{"$f":"'Prior Year Comparative'!W56","v":0},null,null,null,null,null,null,null,null,null,null,null,null,null,null,null,null,null,null,0,"0"]
[{"$f":"IF(Descriptions!D86=\"Collections at services\",Descriptions!B86,0)","v":0},null,{"$f":"IF(Descriptions!D86=\"Collections at services\",WorkingR!AF85,0)","v":0},{"$f":"IF(Descriptions!D86=\"Collections at services\",WorkingR!AG85,0)","v":0},{"$f":"IF(Descriptions!D86=\"Collections at services\",WorkingR!AH85,0)","v":0},{"$f":"IF(Descriptions!D86=\"Collections at services\",WorkingR!AI85,0)","v":0},0,{"$f":"'Prior Year Comparative'!W57","v":0},null,null,null,null,null,null,null,null,null,null,null,null,null,null,null,null,null,null,0,"0"]
[{"$f":"IF(Descriptions!D87=\"Collections at services\",Descriptions!B87,0)","v":0},null,{"$f":"IF(Descriptions!D87=\"Collections at services\",WorkingR!AF86,0)","v":0},{"$f":"IF(Descriptions!D87=\"Collections at services\",WorkingR!AG86,0)","v":0},{"$f":"IF(Descriptions!D87=\"Collections at services\",WorkingR!AH86,0)","v":0},{"$f":"IF(Descriptions!D87=\"Collections at services\",WorkingR!AI86,0)","v":0},0,{"$f":"'Prior Year Comparative'!W58","v":0},null,null,null,null,null,null,null,null,null,null,null,null,null,null,null,null,null,null,0,"0"]
[{"$f":"IF(Descriptions!D88=\"Collections at services\",Descriptions!B88,0)","v":0},null,{"$f":"IF(Descriptions!D88=\"Collections at services\",WorkingR!AF87,0)","v":0},{"$f":"IF(Descriptions!D88=\"Collections at services\",WorkingR!AG87,0)","v":0},{"$f":"IF(Descriptions!D88=\"Collections at services\",WorkingR!AH87,0)","v":0},{"$f":"IF(Descriptions!D88=\"Collections at services\",WorkingR!AI87,0)","v":0},0,{"$f":"'Prior Year Comparative'!W59","v":0},null,null,null,null,null,null,null,null,null,null,null,null,null,null,null,null,null,null,0,"0"]
[{"$f":"IF(Descriptions!D89=\"Collections at services\",Descriptions!B89,0)","v":0},null,{"$f":"IF(Descriptions!D89=\"Collections at services\",WorkingR!AF88,0)","v":0},{"$f":"IF(Descriptions!D89=\"Collections at services\",WorkingR!AG88,0)","v":0},{"$f":"IF(Descriptions!D89=\"Collections at services\",WorkingR!AH88,0)","v":0},{"$f":"IF(Descriptions!D89=\"Collections at services\",WorkingR!AI88,0)","v":0},{"$f":"SUM(C250:F250)","v":0},{"$f":"'Prior Year Comparative'!W60","v":0},null,null,null,null,null,null,null,null,null,null,null,null,null,null,null,null,null,null,{"$f":"SUM(G250:H250)","v":0},{"$f":"IF(AA250=0,\"0\",\"1\")","v":"0"}]
[{"$f":"IF(Descriptions!D90=\"Collections at services\",Descriptions!B90,0)","v":0},null,{"$f":"IF(Descriptions!D90=\"Collections at services\",WorkingR!AF89,0)","v":0},{"$f":"IF(Descriptions!D90=\"Collections at services\",WorkingR!AG89,0)","v":0},{"$f":"IF(Descriptions!D90=\"Collections at services\",WorkingR!AH89,0)","v":0},{"$f":"IF(Descriptions!D90=\"Collections at services\",WorkingR!AI89,0)","v":0},{"$f":"SUM(C251:F251)","v":0},{"$f":"'Prior Year Comparative'!W61","v":0},null,null,null,null,null,null,null,null,null,null,null,null,null,null,null,null,null,null,{"$f":"SUM(G251:H251)","v":0},"0"]
[{"$f":"IF(Descriptions!D91=\"Collections at services\",Descriptions!B91,0)","v":0},null,{"$f":"IF(Descriptions!D91=\"Collections at services\",WorkingR!AF90,0)","v":0},{"$f":"IF(Descriptions!D91=\"Collections at services\",WorkingR!AG90,0)","v":0},{"$f":"IF(Descriptions!D91=\"Collections at services\",WorkingR!AH90,0)","v":0},{"$f":"IF(Descriptions!D91=\"Collections at services\",WorkingR!AI90,0)","v":0},{"$f":"SUM(C252:F252)","v":0},{"$f":"'Prior Year Comparative'!W62","v":0},null,null,null,null,null,null,null,null,null,null,null,null,null,null,null,null,null,null,{"$f":"SUM(G252:H252)","v":0},"0"]
[{"$f":"IF(Descriptions!D92=\"Collections at services\",Descriptions!B92,0)","v":0},null,{"$f":"IF(Descriptions!D92=\"Collections at services\",WorkingR!AF91,0)","v":0},{"$f":"IF(Descriptions!D92=\"Collections at services\",WorkingR!AG91,0)","v":0},{"$f":"IF(Descriptions!D92=\"Collections at services\",WorkingR!AH91,0)","v":0},{"$f":"IF(Descriptions!D92=\"Collections at services\",WorkingR!AI91,0)","v":0},{"$f":"SUM(C253:F253)","v":0},{"$f":"'Prior Year Comparative'!W63","v":0},null,null,null,null,null,null,null,null,null,null,null,null,null,null,null,null,null,null,{"$f":"SUM(G253:H253)","v":0},"0"]
[null,null,null,null,null,null,null,null,null,null,null,null,null,null,null,null,null,null,null,null,null,null,null,null,null,null,{"$f":"AA255","v":0},"0"]
[null,null,{"$f":"SUM(C196:C253)","v":0},0,0,0,0,0,null,null,null,null,null,null,null,null,null,null,null,null,null,null,null,null,null,null,{"$f":"SUM(AA196:AA253)","v":0},"0"]
[null,null,null,null,null,null,null,null,null,null,null,null,null,null,null,null,null,null,null,null,null,null,null,null,null,null,{"$f":"SUM(AA258:AA309)","v":0},"0"]
["PLANNED GIVING",null,null,null,null,null,null,null,null,null,null,null,null,null,null,null,null,null,null,null,null,null,null,null,null,null,{"$f":"AA256","v":0},"0"]
["Standing Order",null,{"$f":"WorkingR!AF32","v":0},{"$f":"WorkingR!AG32","v":0},{"$f":"WorkingR!AH32","v":0},{"$f":"WorkingR!AI32","v":0},{"$f":"SUM(C258:F258)","v":0},{"$f":"'Prior Year Comparative'!W66","v":0},null,null,null,null,null,null,null,null,null,null,null,null,null,null,null,null,null,null,{"$f":"SUM(C258:H258)","v":0},"0"]
["Parish Giving Scheme Income",null,{"$f":"WorkingR!AF28","v":0},{"$f":"WorkingR!AG28","v":0},{"$f":"WorkingR!AH28","v":0},{"$f":"WorkingR!AI28","v":0},{"$f":"SUM(C259:F259)","v":0},{"$f":"'Prior Year Comparative'!W67","v":0},null,null,null,null,null,null,null,null,null,null,null,null,null,null,null,null,null,null,{"$f":"SUM(C259:H259)","v":0},{"$f":"IF(AA259=0,\"0\",\"1\")","v":"0"}]
[{"$f":"IF(Descriptions!D43=\"Planned giving\",Descriptions!B43,0)","v":0},null,{"$f":"IF(Descriptions!D43=\"Planned giving\",WorkingR!AF42,0)","v":0},{"$f":"IF(Descriptions!D43=\"Planned giving\",WorkingR!AG42,0)","v":0},{"$f":"IF(Descriptions!D43=\"Planned giving\",WorkingR!AH42,0)","v":0},{"$f":"IF(Descriptions!D43=\"Planned giving\",WorkingR!AI42,0)","v":0},{"$f":"SUM(C260:F260)","v":0},{"$f":"'Prior Year Comparative'!W68","v":0},null,null,null,null,null,null,null,null,null,null,null,null,null,null,null,null,null,null,0,"0"]
[{"$f":"IF(Descriptions!D44=\"Planned giving\",Descriptions!B44,0)","v":0},null,{"$f":"IF(Descriptions!D44=\"Planned giving\",WorkingR!AF43,0)","v":0},{"$f":"IF(Descriptions!D44=\"Planned giving\",WorkingR!AG43,0)","v":0},{"$f":"IF(Descriptions!D44=\"Planned giving\",WorkingR!AH43,0)","v":0},{"$f":"IF(Descriptions!D44=\"Planned giving\",WorkingR!AI43,0)","v":0},{"$f":"SUM(C261:F261)","v":0},{"$f":"'Prior Year Comparative'!W69","v":0},null,null,null,null,null,null,null,null,null,null,null,null,null,null,null,null,null,null,0,"0"]
[{"$f":"IF(Descriptions!D45=\"Planned giving\",Descriptions!B45,0)","v":0},null,{"$f":"IF(Descriptions!D45=\"Planned giving\",WorkingR!AF44,0)","v":0},{"$f":"IF(Descriptions!D45=\"Planned giving\",WorkingR!AG44,0)","v":0},{"$f":"IF(Descriptions!D45=\"Planned giving\",WorkingR!AH44,0)","v":0},{"$f":"IF(Descriptions!D45=\"Planned giving\",WorkingR!AI44,0)","v":0},0,{"$f":"'Prior Year Comparative'!W70","v":0},null,null,null,null,null,null,null,null,null,null,null,null,null,null,null,null,null,null,0,"0"]
[{"$f":"IF(Descriptions!D46=\"Planned giving\",Descriptions!B46,0)","v":0},null,{"$f":"IF(Descriptions!D46=\"Planned giving\",WorkingR!AF45,0)","v":0},{"$f":"IF(Descriptions!D46=\"Planned giving\",WorkingR!AG45,0)","v":0},{"$f":"IF(Descriptions!D46=\"Planned giving\",WorkingR!AH45,0)","v":0},{"$f":"IF(Descriptions!D46=\"Planned giving\",WorkingR!AI45,0)","v":0},0,{"$f":"'Prior Year Comparative'!W71","v":0},null,null,null,null,null,null,null,null,null,null,null,null,null,null,null,null,null,null,0,"0"]
[{"$f":"IF(Descriptions!D47=\"Planned giving\",Descriptions!B47,0)","v":0},null,{"$f":"IF(Descriptions!D47=\"Planned giving\",WorkingR!AF46,0)","v":0},{"$f":"IF(Descriptions!D47=\"Planned giving\",WorkingR!AG46,0)","v":0},{"$f":"IF(Descriptions!D47=\"Planned giving\",WorkingR!AH46,0)","v":0},{"$f":"IF(Descriptions!D47=\"Planned giving\",WorkingR!AI46,0)","v":0},0,{"$f":"'Prior Year Comparative'!W72","v":0},null,null,null,null,null,null,null,null,null,null,null,null,null,null,null,null,null,null,0,"0"]
[{"$f":"IF(Descriptions!D48=\"Planned giving\",Descriptions!B48,0)","v":0},null,{"$f":"IF(Descriptions!D48=\"Planned giving\",WorkingR!AF47,0)","v":0},{"$f":"IF(Descriptions!D48=\"Planned giving\",WorkingR!AG47,0)","v":0},{"$f":"IF(Descriptions!D48=\"Planned giving\",WorkingR!AH47,0)","v":0},{"$f":"IF(Descriptions!D48=\"Planned giving\",WorkingR!AI47,0)","v":0},0,{"$f":"'Prior Year Comparative'!W73","v":0},null,null,null,null,null,null,null,null,null,null,null,null,null,null,null,null,null,null,0,"0"]
[{"$f":"IF(Descriptions!D49=\"Planned giving\",Descriptions!B49,0)","v":0},null,{"$f":"IF(Descriptions!D49=\"Planned giving\",WorkingR!AF48,0)","v":0},{"$f":"IF(Descriptions!D49=\"Planned giving\",WorkingR!AG48,0)","v":0},{"$f":"IF(Descriptions!D49=\"Planned giving\",WorkingR!AH48,0)","v":0},{"$f":"IF(Descriptions!D49=\"Planned giving\",WorkingR!AI48,0)","v":0},0,{"$f":"'Prior Year Comparative'!W74","v":0},null,null,null,null,null,null,null,null,null,null,null,null,null,null,null,null,null,null,0,"0"]
[{"$f":"IF(Descriptions!D50=\"Planned giving\",Descriptions!B50,0)","v":0},null,{"$f":"IF(Descriptions!D50=\"Planned giving\",WorkingR!AF49,0)","v":0},{"$f":"IF(Descriptions!D50=\"Planned giving\",WorkingR!AG49,0)","v":0},{"$f":"IF(Descriptions!D50=\"Planned giving\",WorkingR!AH49,0)","v":0},{"$f":"IF(Descriptions!D50=\"Planned giving\",WorkingR!AI49,0)","v":0},0,{"$f":"'Prior Year Comparative'!W75","v":0},null,null,null,null,null,null,null,null,null,null,null,null,null,null,null,null,null,null,0,"0"]
[{"$f":"IF(Descriptions!D51=\"Planned giving\",Descriptions!B51,0)","v":0},null,{"$f":"IF(Descriptions!D51=\"Planned giving\",WorkingR!AF50,0)","v":0},{"$f":"IF(Descriptions!D51=\"Planned giving\",WorkingR!AG50,0)","v":0},{"$f":"IF(Descriptions!D51=\"Planned giving\",WorkingR!AH50,0)","v":0},{"$f":"IF(Descriptions!D51=\"Planned giving\",WorkingR!AI50,0)","v":0},0,{"$f":"'Prior Year Comparative'!W76","v":0},null,null,null,null,null,null,null,null,null,null,null,null,null,null,null,null,null,null,0,"0"]
[{"$f":"IF(Descriptions!D52=\"Planned giving\",Descriptions!B52,0)","v":0},null,{"$f":"IF(Descriptions!D52=\"Planned giving\",WorkingR!AF51,0)","v":0},{"$f":"IF(Descriptions!D52=\"Planned giving\",WorkingR!AG51,0)","v":0},{"$f":"IF(Descriptions!D52=\"Planned giving\",WorkingR!AH51,0)","v":0},{"$f":"IF(Descriptions!D52=\"Planned giving\",WorkingR!AI51,0)","v":0},0,{"$f":"'Prior Year Comparative'!W77","v":0},null,null,null,null,null,null,null,null,null,null,null,null,null,null,null,null,null,null,0,"0"]
[{"$f":"IF(Descriptions!D53=\"Planned giving\",Descriptions!B53,0)","v":0},null,{"$f":"IF(Descriptions!D53=\"Planned giving\",WorkingR!AF52,0)","v":0},{"$f":"IF(Descriptions!D53=\"Planned giving\",WorkingR!AG52,0)","v":0},{"$f":"IF(Descriptions!D53=\"Planned giving\",WorkingR!AH52,0)","v":0},{"$f":"IF(Descriptions!D53=\"Planned giving\",WorkingR!AI52,0)","v":0},0,{"$f":"'Prior Year Comparative'!W78","v":0},null,null,null,null,null,null,null,null,null,null,null,null,null,null,null,null,null,null,0,"0"]
[{"$f":"IF(Descriptions!D54=\"Planned giving\",Descriptions!B54,0)","v":0},null,{"$f":"IF(Descriptions!D54=\"Planned giving\",WorkingR!AF53,0)","v":0},{"$f":"IF(Descriptions!D54=\"Planned giving\",WorkingR!AG53,0)","v":0},{"$f":"IF(Descriptions!D54=\"Planned giving\",WorkingR!AH53,0)","v":0},{"$f":"IF(Descriptions!D54=\"Planned giving\",WorkingR!AI53,0)","v":0},0,{"$f":"'Prior Year Comparative'!W79","v":0},null,null,null,null,null,null,null,null,null,null,null,null,null,null,null,null,null,null,0,"0"]
[{"$f":"IF(Descriptions!D55=\"Planned giving\",Descriptions!B55,0)","v":0},null,{"$f":"IF(Descriptions!D55=\"Planned giving\",WorkingR!AF54,0)","v":0},{"$f":"IF(Descriptions!D55=\"Planned giving\",WorkingR!AG54,0)","v":0},{"$f":"IF(Descriptions!D55=\"Planned giving\",WorkingR!AH54,0)","v":0},{"$f":"IF(Descriptions!D55=\"Planned giving\",WorkingR!AI54,0)","v":0},0,{"$f":"'Prior Year Comparative'!W80","v":0},null,null,null,null,null,null,null,null,null,null,null,null,null,null,null,null,null,null,0,"0"]
[{"$f":"IF(Descriptions!D56=\"Planned giving\",Descriptions!B56,0)","v":0},null,{"$f":"IF(Descriptions!D56=\"Planned giving\",WorkingR!AF55,0)","v":0},{"$f":"IF(Descriptions!D56=\"Planned giving\",WorkingR!AG55,0)","v":0},{"$f":"IF(Descriptions!D56=\"Planned giving\",WorkingR!AH55,0)","v":0},{"$f":"IF(Descriptions!D56=\"Planned giving\",WorkingR!AI55,0)","v":0},0,{"$f":"'Prior Year Comparative'!W81","v":0},null,null,null,null,null,null,null,null,null,null,null,null,null,null,null,null,null,null,0,"0"]
[{"$f":"IF(Descriptions!D57=\"Planned giving\",Descriptions!B57,0)","v":0},null,{"$f":"IF(Descriptions!D57=\"Planned giving\",WorkingR!AF56,0)","v":0},{"$f":"IF(Descriptions!D57=\"Planned giving\",WorkingR!AG56,0)","v":0},{"$f":"IF(Descriptions!D57=\"Planned giving\",WorkingR!AH56,0)","v":0},{"$f":"IF(Descriptions!D57=\"Planned giving\",WorkingR!AI56,0)","v":0},0,{"$f":"'Prior Year Comparative'!W82","v":0},null,null,null,null,null,null,null,null,null,null,null,null,null,null,null,null,null,null,0,"0"]
[{"$f":"IF(Descriptions!D58=\"Planned giving\",Descriptions!B58,0)","v":0},null,{"$f":"IF(Descriptions!D58=\"Planned giving\",WorkingR!AF57,0)","v":0},{"$f":"IF(Descriptions!D58=\"Planned giving\",WorkingR!AG57,0)","v":0},{"$f":"IF(Descriptions!D58=\"Planned giving\",WorkingR!AH57,0)","v":0},{"$f":"IF(Descriptions!D58=\"Planned giving\",WorkingR!AI57,0)","v":0},0,{"$f":"'Prior Year Comparative'!W83","v":0},null,null,null,null,null,null,null,null,null,null,null,null,null,null,null,null,null,null,0,"0"]
[{"$f":"IF(Descriptions!D59=\"Planned giving\",Descriptions!B59,0)","v":0},null,{"$f":"IF(Descriptions!D59=\"Planned giving\",WorkingR!AF58,0)","v":0},{"$f":"IF(Descriptions!D59=\"Planned giving\",WorkingR!AG58,0)","v":0},{"$f":"IF(Descriptions!D59=\"Planned giving\",WorkingR!AH58,0)","v":0},{"$f":"IF(Descriptions!D59=\"Planned giving\",WorkingR!AI58,0)","v":0},0,{"$f":"'Prior Year Comparative'!W84","v":0},null,null,null,null,null,null,null,null,null,null,null,null,null,null,null,null,null,null,0,"0"]
[{"$f":"IF(Descriptions!D60=\"Planned giving\",Descriptions!B60,0)","v":0},null,{"$f":"IF(Descriptions!D60=\"Planned giving\",WorkingR!AF59,0)","v":0},{"$f":"IF(Descriptions!D60=\"Planned giving\",WorkingR!AG59,0)","v":0},{"$f":"IF(Descriptions!D60=\"Planned giving\",WorkingR!AH59,0)","v":0},{"$f":"IF(Descriptions!D60=\"Planned giving\",WorkingR!AI59,0)","v":0},0,{"$f":"'Prior Year Comparative'!W85","v":0},null,null,null,null,null,null,null,null,null,null,null,null,null,null,null,null,null,null,0,"0"]
[{"$f":"IF(Descriptions!D61=\"Planned giving\",Descriptions!B61,0)","v":0},null,{"$f":"IF(Descriptions!D61=\"Planned giving\",WorkingR!AF60,0)","v":0},{"$f":"IF(Descriptions!D61=\"Planned giving\",WorkingR!AG60,0)","v":0},{"$f":"IF(Descriptions!D61=\"Planned giving\",WorkingR!AH60,0)","v":0},{"$f":"IF(Descriptions!D61=\"Planned giving\",WorkingR!AI60,0)","v":0},0,{"$f":"'Prior Year Comparative'!W86","v":0},null,null,null,null,null,null,null,null,null,null,null,null,null,null,null,null,null,null,0,"0"]
[{"$f":"IF(Descriptions!D62=\"Planned giving\",Descriptions!B62,0)","v":0},null,{"$f":"IF(Descriptions!D62=\"Planned giving\",WorkingR!AF61,0)","v":0},{"$f":"IF(Descriptions!D62=\"Planned giving\",WorkingR!AG61,0)","v":0},{"$f":"IF(Descriptions!D62=\"Planned giving\",WorkingR!AH61,0)","v":0},{"$f":"IF(Descriptions!D62=\"Planned giving\",WorkingR!AI61,0)","v":0},0,{"$f":"'Prior Year Comparative'!W87","v":0},null,null,null,null,null,null,null,null,null,null,null,null,null,null,null,null,null,null,0,"0"]
[{"$f":"IF(Descriptions!D63=\"Planned giving\",Descriptions!B63,0)","v":0},null,{"$f":"IF(Descriptions!D63=\"Planned giving\",WorkingR!AF62,0)","v":0},{"$f":"IF(Descriptions!D63=\"Planned giving\",WorkingR!AG62,0)","v":0},{"$f":"IF(Descriptions!D63=\"Planned giving\",WorkingR!AH62,0)","v":0},{"$f":"IF(Descriptions!D63=\"Planned giving\",WorkingR!AI62,0)","v":0},0,{"$f":"'Prior Year Comparative'!W88","v":0},null,null,null,null,null,null,null,null,null,null,null,null,null,null,null,null,null,null,0,"0"]
[{"$f":"IF(Descriptions!D64=\"Planned giving\",Descriptions!B64,0)","v":0},null,{"$f":"IF(Descriptions!D64=\"Planned giving\",WorkingR!AF63,0)","v":0},{"$f":"IF(Descriptions!D64=\"Planned giving\",WorkingR!AG63,0)","v":0},{"$f":"IF(Descriptions!D64=\"Planned giving\",WorkingR!AH63,0)","v":0},{"$f":"IF(Descriptions!D64=\"Planned giving\",WorkingR!AI63,0)","v":0},0,{"$f":"'Prior Year Comparative'!W89","v":0},null,null,null,null,null,null,null,null,null,null,null,null,null,null,null,null,null,null,0,"0"]
[{"$f":"IF(Descriptions!D65=\"Planned giving\",Descriptions!B65,0)","v":0},null,{"$f":"IF(Descriptions!D65=\"Planned giving\",WorkingR!AF64,0)","v":0},{"$f":"IF(Descriptions!D65=\"Planned giving\",WorkingR!AG64,0)","v":0},{"$f":"IF(Descriptions!D65=\"Planned giving\",WorkingR!AH64,0)","v":0},{"$f":"IF(Descriptions!D65=\"Planned giving\",WorkingR!AI64,0)","v":0},0,{"$f":"'Prior Year Comparative'!W90","v":0},null,null,null,null,null,null,null,null,null,null,null,null,null,null,null,null,null,null,0,"0"]
[{"$f":"IF(Descriptions!D66=\"Planned giving\",Descriptions!B66,0)","v":0},null,{"$f":"IF(Descriptions!D66=\"Planned giving\",WorkingR!AF65,0)","v":0},{"$f":"IF(Descriptions!D66=\"Planned giving\",WorkingR!AG65,0)","v":0},{"$f":"IF(Descriptions!D66=\"Planned giving\",WorkingR!AH65,0)","v":0},{"$f":"IF(Descriptions!D66=\"Planned giving\",WorkingR!AI65,0)","v":0},0,{"$f":"'Prior Year Comparative'!W91","v":0},null,null,null,null,null,null,null,null,null,null,null,null,null,null,null,null,null,null,0,"0"]
[{"$f":"IF(Descriptions!D67=\"Planned giving\",Descriptions!B67,0)","v":0},null,{"$f":"IF(Descriptions!D67=\"Planned giving\",WorkingR!AF66,0)","v":0},{"$f":"IF(Descriptions!D67=\"Planned giving\",WorkingR!AG66,0)","v":0},{"$f":"IF(Descriptions!D67=\"Planned giving\",WorkingR!AH66,0)","v":0},{"$f":"IF(Descriptions!D67=\"Planned giving\",WorkingR!AI66,0)","v":0},0,{"$f":"'Prior Year Comparative'!W92","v":0},null,null,null,null,null,null,null,null,null,null,null,null,null,null,null,null,null,null,0,"0"]
[{"$f":"IF(Descriptions!D68=\"Planned giving\",Descriptions!B68,0)","v":0},null,{"$f":"IF(Descriptions!D68=\"Planned giving\",WorkingR!AF67,0)","v":0},{"$f":"IF(Descriptions!D68=\"Planned giving\",WorkingR!AG67,0)","v":0},{"$f":"IF(Descriptions!D68=\"Planned giving\",WorkingR!AH67,0)","v":0},{"$f":"IF(Descriptions!D68=\"Planned giving\",WorkingR!AI67,0)","v":0},0,{"$f":"'Prior Year Comparative'!W93","v":0},null,null,null,null,null,null,null,null,null,null,null,null,null,null,null,null,null,null,0,"0"]
[{"$f":"IF(Descriptions!D69=\"Planned giving\",Descriptions!B69,0)","v":0},null,{"$f":"IF(Descriptions!D69=\"Planned giving\",WorkingR!AF68,0)","v":0},{"$f":"IF(Descriptions!D69=\"Planned giving\",WorkingR!AG68,0)","v":0},{"$f":"IF(Descriptions!D69=\"Planned giving\",WorkingR!AH68,0)","v":0},{"$f":"IF(Descriptions!D69=\"Planned giving\",WorkingR!AI68,0)","v":0},0,{"$f":"'Prior Year Comparative'!W94","v":0},null,null,null,null,null,null,null,null,null,null,null,null,null,null,null,null,null,null,0,"0"]
[{"$f":"IF(Descriptions!D70=\"Planned giving\",Descriptions!B70,0)","v":0},null,{"$f":"IF(Descriptions!D70=\"Planned giving\",WorkingR!AF69,0)","v":0},{"$f":"IF(Descriptions!D70=\"Planned giving\",WorkingR!AG69,0)","v":0},{"$f":"IF(Descriptions!D70=\"Planned giving\",WorkingR!AH69,0)","v":0},{"$f":"IF(Descriptions!D70=\"Planned giving\",WorkingR!AI69,0)","v":0},0,{"$f":"'Prior Year Comparative'!W95","v":0},null,null,null,null,null,null,null,null,null,null,null,null,null,null,null,null,null,null,0,"0"]
[{"$f":"IF(Descriptions!D71=\"Planned giving\",Descriptions!B71,0)","v":0},null,{"$f":"IF(Descriptions!D71=\"Planned giving\",WorkingR!AF70,0)","v":0},{"$f":"IF(Descriptions!D71=\"Planned giving\",WorkingR!AG70,0)","v":0},{"$f":"IF(Descriptions!D71=\"Planned giving\",WorkingR!AH70,0)","v":0},{"$f":"IF(Descriptions!D71=\"Planned giving\",WorkingR!AI70,0)","v":0},0,{"$f":"'Prior Year Comparative'!W96","v":0},null,null,null,null,null,null,null,null,null,null,null,null,null,null,null,null,null,null,0,"0"]
[{"$f":"IF(Descriptions!D72=\"Planned giving\",Descriptions!B72,0)","v":0},null,{"$f":"IF(Descriptions!D72=\"Planned giving\",WorkingR!AF71,0)","v":0},{"$f":"IF(Descriptions!D72=\"Planned giving\",WorkingR!AG71,0)","v":0},{"$f":"IF(Descriptions!D72=\"Planned giving\",WorkingR!AH71,0)","v":0},{"$f":"IF(Descriptions!D72=\"Planned giving\",WorkingR!AI71,0)","v":0},0,{"$f":"'Prior Year Comparative'!W97","v":0},null,null,null,null,null,null,null,null,null,null,null,null,null,null,null,null,null,null,0,"0"]
[{"$f":"IF(Descriptions!D73=\"Planned giving\",Descriptions!B73,0)","v":0},null,{"$f":"IF(Descriptions!D73=\"Planned giving\",WorkingR!AF72,0)","v":0},{"$f":"IF(Descriptions!D73=\"Planned giving\",WorkingR!AG72,0)","v":0},{"$f":"IF(Descriptions!D73=\"Planned giving\",WorkingR!AH72,0)","v":0},{"$f":"IF(Descriptions!D73=\"Planned giving\",WorkingR!AI72,0)","v":0},0,{"$f":"'Prior Year Comparative'!W98","v":0},null,null,null,null,null,null,null,null,null,null,null,null,null,null,null,null,null,null,0,"0"]
[{"$f":"IF(Descriptions!D74=\"Planned giving\",Descriptions!B74,0)","v":0},null,{"$f":"IF(Descriptions!D74=\"Planned giving\",WorkingR!AF73,0)","v":0},{"$f":"IF(Descriptions!D74=\"Planned giving\",WorkingR!AG73,0)","v":0},{"$f":"IF(Descriptions!D74=\"Planned giving\",WorkingR!AH73,0)","v":0},{"$f":"IF(Descriptions!D74=\"Planned giving\",WorkingR!AI73,0)","v":0},0,{"$f":"'Prior Year Comparative'!W99","v":0},null,null,null,null,null,null,null,null,null,null,null,null,null,null,null,null,null,null,0,"0"]
[{"$f":"IF(Descriptions!D75=\"Planned giving\",Descriptions!B75,0)","v":0},null,{"$f":"IF(Descriptions!D75=\"Planned giving\",WorkingR!AF74,0)","v":0},{"$f":"IF(Descriptions!D75=\"Planned giving\",WorkingR!AG74,0)","v":0},{"$f":"IF(Descriptions!D75=\"Planned giving\",WorkingR!AH74,0)","v":0},{"$f":"IF(Descriptions!D75=\"Planned giving\",WorkingR!AI74,0)","v":0},0,{"$f":"'Prior Year Comparative'!W100","v":0},null,null,null,null,null,null,null,null,null,null,null,null,null,null,null,null,null,null,0,"0"]
[{"$f":"IF(Descriptions!D76=\"Planned giving\",Descriptions!B76,0)","v":0},null,{"$f":"IF(Descriptions!D76=\"Planned giving\",WorkingR!AF75,0)","v":0},{"$f":"IF(Descriptions!D76=\"Planned giving\",WorkingR!AG75,0)","v":0},{"$f":"IF(Descriptions!D76=\"Planned giving\",WorkingR!AH75,0)","v":0},{"$f":"IF(Descriptions!D76=\"Planned giving\",WorkingR!AI75,0)","v":0},0,{"$f":"'Prior Year Comparative'!W101","v":0},null,null,null,null,null,null,null,null,null,null,null,null,null,null,null,null,null,null,0,"0"]
[{"$f":"IF(Descriptions!D77=\"Planned giving\",Descriptions!B77,0)","v":0},null,{"$f":"IF(Descriptions!D77=\"Planned giving\",WorkingR!AF76,0)","v":0},{"$f":"IF(Descriptions!D77=\"Planned giving\",WorkingR!AG76,0)","v":0},{"$f":"IF(Descriptions!D77=\"Planned giving\",WorkingR!AH76,0)","v":0},{"$f":"IF(Descriptions!D77=\"Planned giving\",WorkingR!AI76,0)","v":0},0,{"$f":"'Prior Year Comparative'!W102","v":0},null,null,null,null,null,null,null,null,null,null,null,null,null,null,null,null,null,null,0,"0"]
[{"$f":"IF(Descriptions!D78=\"Planned giving\",Descriptions!B78,0)","v":0},null,{"$f":"IF(Descriptions!D78=\"Planned giving\",WorkingR!AF77,0)","v":0},{"$f":"IF(Descriptions!D78=\"Planned giving\",WorkingR!AG77,0)","v":0},{"$f":"IF(Descriptions!D78=\"Planned giving\",WorkingR!AH77,0)","v":0},{"$f":"IF(Descriptions!D78=\"Planned giving\",WorkingR!AI77,0)","v":0},0,{"$f":"'Prior Year Comparative'!W103","v":0},null,null,null,null,null,null,null,null,null,null,null,null,null,null,null,null,null,null,0,"0"]
[{"$f":"IF(Descriptions!D79=\"Planned giving\",Descriptions!B79,0)","v":0},null,{"$f":"IF(Descriptions!D79=\"Planned giving\",WorkingR!AF78,0)","v":0},{"$f":"IF(Descriptions!D79=\"Planned giving\",WorkingR!AG78,0)","v":0},{"$f":"IF(Descriptions!D79=\"Planned giving\",WorkingR!AH78,0)","v":0},{"$f":"IF(Descriptions!D79=\"Planned giving\",WorkingR!AI78,0)","v":0},0,{"$f":"'Prior Year Comparative'!W104","v":0},null,null,null,null,null,null,null,null,null,null,null,null,null,null,null,null,null,null,0,"0"]
[{"$f":"IF(Descriptions!D80=\"Planned giving\",Descriptions!B80,0)","v":0},null,{"$f":"IF(Descriptions!D80=\"Planned giving\",WorkingR!AF79,0)","v":0},{"$f":"IF(Descriptions!D80=\"Planned giving\",WorkingR!AG79,0)","v":0},{"$f":"IF(Descriptions!D80=\"Planned giving\",WorkingR!AH79,0)","v":0},{"$f":"IF(Descriptions!D80=\"Planned giving\",WorkingR!AI79,0)","v":0},0,{"$f":"'Prior Year Comparative'!W105","v":0},null,null,null,null,null,null,null,null,null,null,null,null,null,null,null,null,null,null,0,"0"]
[{"$f":"IF(Descriptions!D81=\"Planned giving\",Descriptions!B81,0)","v":0},null,{"$f":"IF(Descriptions!D81=\"Planned giving\",WorkingR!AF80,0)","v":0},{"$f":"IF(Descriptions!D81=\"Planned giving\",WorkingR!AG80,0)","v":0},{"$f":"IF(Descriptions!D81=\"Planned giving\",WorkingR!AH80,0)","v":0},{"$f":"IF(Descriptions!D81=\"Planned giving\",WorkingR!AI80,0)","v":0},0,{"$f":"'Prior Year Comparative'!W106","v":0},null,null,null,null,null,null,null,null,null,null,null,null,null,null,null,null,null,null,0,"0"]
[{"$f":"IF(Descriptions!D82=\"Planned giving\",Descriptions!B82,0)","v":0},null,{"$f":"IF(Descriptions!D82=\"Planned giving\",WorkingR!AF81,0)","v":0},{"$f":"IF(Descriptions!D82=\"Planned giving\",WorkingR!AG81,0)","v":0},{"$f":"IF(Descriptions!D82=\"Planned giving\",WorkingR!AH81,0)","v":0},{"$f":"IF(Descriptions!D82=\"Planned giving\",WorkingR!AI81,0)","v":0},0,{"$f":"'Prior Year Comparative'!W107","v":0},null,null,null,null,null,null,null,null,null,null,null,null,null,null,null,null,null,null,0,"0"]
[{"$f":"IF(Descriptions!D83=\"Planned giving\",Descriptions!B83,0)","v":0},null,{"$f":"IF(Descriptions!D83=\"Planned giving\",WorkingR!AF82,0)","v":0},{"$f":"IF(Descriptions!D83=\"Planned giving\",WorkingR!AG82,0)","v":0},{"$f":"IF(Descriptions!D83=\"Planned giving\",WorkingR!AH82,0)","v":0},{"$f":"IF(Descriptions!D83=\"Planned giving\",WorkingR!AI82,0)","v":0},0,{"$f":"'Prior Year Comparative'!W108","v":0},null,null,null,null,null,null,null,null,null,null,null,null,null,null,null,null,null,null,0,"0"]
[{"$f":"IF(Descriptions!D84=\"Planned giving\",Descriptions!B84,0)","v":0},null,{"$f":"IF(Descriptions!D84=\"Planned giving\",WorkingR!AF83,0)","v":0},{"$f":"IF(Descriptions!D84=\"Planned giving\",WorkingR!AG83,0)","v":0},{"$f":"IF(Descriptions!D84=\"Planned giving\",WorkingR!AH83,0)","v":0},{"$f":"IF(Descriptions!D84=\"Planned giving\",WorkingR!AI83,0)","v":0},0,{"$f":"'Prior Year Comparative'!W109","v":0},null,null,null,null,null,null,null,null,null,null,null,null,null,null,null,null,null,null,0,"0"]
[{"$f":"IF(Descriptions!D85=\"Planned giving\",Descriptions!B85,0)","v":0},null,{"$f":"IF(Descriptions!D85=\"Planned giving\",WorkingR!AF84,0)","v":0},{"$f":"IF(Descriptions!D85=\"Planned giving\",WorkingR!AG84,0)","v":0},{"$f":"IF(Descriptions!D85=\"Planned giving\",WorkingR!AH84,0)","v":0},{"$f":"IF(Descriptions!D85=\"Planned giving\",WorkingR!AI84,0)","v":0},0,{"$f":"'Prior Year Comparative'!W110","v":0},null,null,null,null,null,null,null,null,null,null,null,null,null,null,null,null,null,null,0,"0"]
[{"$f":"IF(Descriptions!D86=\"Planned giving\",Descriptions!B86,0)","v":0},null,{"$f":"IF(Descriptions!D86=\"Planned giving\",WorkingR!AF85,0)","v":0},{"$f":"IF(Descriptions!D86=\"Planned giving\",WorkingR!AG85,0)","v":0},{"$f":"IF(Descriptions!D86=\"Planned giving\",WorkingR!AH85,0)","v":0},{"$f":"IF(Descriptions!D86=\"Planned giving\",WorkingR!AI85,0)","v":0},0,{"$f":"'Prior Year Comparative'!W111","v":0},null,null,null,null,null,null,null,null,null,null,null,null,null,null,null,null,null,null,0,"0"]
[{"$f":"IF(Descriptions!D87=\"Planned giving\",Descriptions!B87,0)","v":0},null,{"$f":"IF(Descriptions!D87=\"Planned giving\",WorkingR!AF86,0)","v":0},{"$f":"IF(Descriptions!D87=\"Planned giving\",WorkingR!AG86,0)","v":0},{"$f":"IF(Descriptions!D87=\"Planned giving\",WorkingR!AH86,0)","v":0},{"$f":"IF(Descriptions!D87=\"Planned giving\",WorkingR!AI86,0)","v":0},0,{"$f":"'Prior Year Comparative'!W112","v":0},null,null,null,null,null,null,null,null,null,null,null,null,null,null,null,null,null,null,0,"0"]
[{"$f":"IF(Descriptions!D88=\"Planned giving\",Descriptions!B88,0)","v":0},null,{"$f":"IF(Descriptions!D88=\"Planned giving\",WorkingR!AF87,0)","v":0},{"$f":"IF(Descriptions!D88=\"Planned giving\",WorkingR!AG87,0)","v":0},{"$f":"IF(Descriptions!D88=\"Planned giving\",WorkingR!AH87,0)","v":0},{"$f":"IF(Descriptions!D88=\"Planned giving\",WorkingR!AI87,0)","v":0},0,{"$f":"'Prior Year Comparative'!W113","v":0},null,null,null,null,null,null,null,null,null,null,null,null,null,null,null,null,null,null,0,"0"]
[{"$f":"IF(Descriptions!D89=\"Planned giving\",Descriptions!B89,0)","v":0},null,{"$f":"IF(Descriptions!D89=\"Planned giving\",WorkingR!AF88,0)","v":0},{"$f":"IF(Descriptions!D89=\"Planned giving\",WorkingR!AG88,0)","v":0},{"$f":"IF(Descriptions!D89=\"Planned giving\",WorkingR!AH88,0)","v":0},{"$f":"IF(Descriptions!D89=\"Planned giving\",WorkingR!AI88,0)","v":0},0,{"$f":"'Prior Year Comparative'!W114","v":0},null,null,null,null,null,null,null,null,null,null,null,null,null,null,null,null,null,null,0,"0"]
[{"$f":"IF(Descriptions!D90=\"Planned giving\",Descriptions!B90,0)","v":0},null,{"$f":"IF(Descriptions!D90=\"Planned giving\",WorkingR!AF89,0)","v":0},{"$f":"IF(Descriptions!D90=\"Planned giving\",WorkingR!AG89,0)","v":0},{"$f":"IF(Descriptions!D90=\"Planned giving\",WorkingR!AH89,0)","v":0},{"$f":"IF(Descriptions!D90=\"Planned giving\",WorkingR!AI89,0)","v":0},0,{"$f":"'Prior Year Comparative'!W115","v":0},null,null,null,null,null,null,null,null,null,null,null,null,null,null,null,null,null,null,0,"0"]
[{"$f":"IF(Descriptions!D91=\"Planned giving\",Descriptions!B91,0)","v":0},null,{"$f":"IF(Descriptions!D91=\"Planned giving\",WorkingR!AF90,0)","v":0},{"$f":"IF(Descriptions!D91=\"Planned giving\",WorkingR!AG90,0)","v":0},{"$f":"IF(Descriptions!D91=\"Planned giving\",WorkingR!AH90,0)","v":0},{"$f":"IF(Descriptions!D91=\"Planned giving\",WorkingR!AI90,0)","v":0},0,{"$f":"'Prior Year Comparative'!W116","v":0},null,null,null,null,null,null,null,null,null,null,null,null,null,null,null,null,null,null,{"$f":"SUM(C308:H308)","v":0},{"$f":"IF(AA308=0,\"0\",\"1\")","v":"0"}]
[{"$f":"IF(Descriptions!D92=\"Planned giving\",Descriptions!B92,0)","v":0},null,{"$f":"IF(Descriptions!D92=\"Planned giving\",WorkingR!AF91,0)","v":0},{"$f":"IF(Descriptions!D92=\"Planned giving\",WorkingR!AG91,0)","v":0},{"$f":"IF(Descriptions!D92=\"Planned giving\",WorkingR!AH91,0)","v":0},{"$f":"IF(Descriptions!D92=\"Planned giving\",WorkingR!AI91,0)","v":0},0,{"$f":"'Prior Year Comparative'!W117","v":0},null,null,null,null,null,null,null,null,null,null,null,null,null,null,null,null,null,null,{"$f":"SUM(C309:H309)","v":0},"0"]
[null,null,null,null,null,null,null,null,null,null,null,null,null,null,null,null,null,null,null,null,null,null,null,null,null,null,{"$f":"AA311","v":0},"0"]
[null,null,{"$f":"SUM(C258:C309)","v":0},0,0,0,0,0,null,null,null,null,null,null,null,null,null,null,null,null,null,null,null,null,null,null,{"$f":"AA256","v":0},"0"]
[null,null,null,null,null,null,null,null,null,null,null,null,null,null,null,null,null,null,null,null,null,null,null,null,null,null,{"$f":"SUM(AA314:AA364)","v":0},"0"]
["GIFT AID RECOVERED",null,null,null,null,null,null,null,null,null,null,null,null,null,null,null,null,null,null,null,null,null,null,null,null,null,{"$f":"AA312","v":0},"0"]
["Gift Aid Reclaim",null,{"$f":"WorkingR!AF17","v":0},{"$f":"WorkingR!AG17","v":0},{"$f":"WorkingR!AH17","v":0},{"$f":"WorkingR!AI17","v":0},{"$f":"SUM(C314:F314)","v":0},{"$f":"'Prior Year Comparative'!W120","v":0},null,null,null,null,null,null,null,null,null,null,null,null,null,null,null,null,null,null,{"$f":"SUM(C314:H314)","v":0},"0"]
[{"$f":"IF(Descriptions!D43=\"Gift aid recovered\",Descriptions!B43,0)","v":0},null,{"$f":"IF(Descriptions!D43=\"Gift aid recovered\",WorkingR!AF42,0)","v":0},{"$f":"IF(Descriptions!E43=\"Gift aid recovered\",WorkingR!AG42,0)","v":0},{"$f":"IF(Descriptions!F43=\"Gift aid recovered\",WorkingR!AH42,0)","v":0},{"$f":"IF(Descriptions!G43=\"Gift aid recovered\",WorkingR!AI42,0)","v":0},{"$f":"SUM(C315:F315)","v":0},{"$f":"'Prior Year Comparative'!W121","v":0},null,null,null,null,null,null,null,null,null,null,null,null,null,null,null,null,null,null,{"$f":"SUM(C315:H315)","v":0},{"$f":"IF(AA315=0,\"0\",\"1\")","v":"0"}]
[{"$f":"IF(Descriptions!D44=\"Gift aid recovered\",Descriptions!B44,0)","v":0},null,{"$f":"IF(Descriptions!D44=\"Gift aid recovered\",WorkingR!AF43,0)","v":0},{"$f":"IF(Descriptions!E44=\"Gift aid recovered\",WorkingR!AG43,0)","v":0},{"$f":"IF(Descriptions!F44=\"Gift aid recovered\",WorkingR!AH43,0)","v":0},{"$f":"IF(Descriptions!G44=\"Gift aid recovered\",WorkingR!AI43,0)","v":0},{"$f":"SUM(C316:F316)","v":0},{"$f":"'Prior Year Comparative'!W122","v":0},null,null,null,null,null,null,null,null,null,null,null,null,null,null,null,null,null,null,0,"0"]
[{"$f":"IF(Descriptions!D45=\"Gift aid recovered\",Descriptions!B45,0)","v":0},null,{"$f":"IF(Descriptions!D45=\"Gift aid recovered\",WorkingR!AF44,0)","v":0},{"$f":"IF(Descriptions!E45=\"Gift aid recovered\",WorkingR!AG44,0)","v":0},{"$f":"IF(Descriptions!F45=\"Gift aid recovered\",WorkingR!AH44,0)","v":0},{"$f":"IF(Descriptions!G45=\"Gift aid recovered\",WorkingR!AI44,0)","v":0},0,{"$f":"'Prior Year Comparative'!W123","v":0},null,null,null,null,null,null,null,null,null,null,null,null,null,null,null,null,null,null,0,"0"]
[{"$f":"IF(Descriptions!D46=\"Gift aid recovered\",Descriptions!B46,0)","v":0},null,{"$f":"IF(Descriptions!D46=\"Gift aid recovered\",WorkingR!AF45,0)","v":0},{"$f":"IF(Descriptions!E46=\"Gift aid recovered\",WorkingR!AG45,0)","v":0},{"$f":"IF(Descriptions!F46=\"Gift aid recovered\",WorkingR!AH45,0)","v":0},{"$f":"IF(Descriptions!G46=\"Gift aid recovered\",WorkingR!AI45,0)","v":0},0,{"$f":"'Prior Year Comparative'!W124","v":0},null,null,null,null,null,null,null,null,null,null,null,null,null,null,null,null,null,null,0,"0"]
[{"$f":"IF(Descriptions!D47=\"Gift aid recovered\",Descriptions!B47,0)","v":0},null,{"$f":"IF(Descriptions!D47=\"Gift aid recovered\",WorkingR!AF46,0)","v":0},{"$f":"IF(Descriptions!E47=\"Gift aid recovered\",WorkingR!AG46,0)","v":0},{"$f":"IF(Descriptions!F47=\"Gift aid recovered\",WorkingR!AH46,0)","v":0},{"$f":"IF(Descriptions!G47=\"Gift aid recovered\",WorkingR!AI46,0)","v":0},0,{"$f":"'Prior Year Comparative'!W125","v":0},null,null,null,null,null,null,null,null,null,null,null,null,null,null,null,null,null,null,0,"0"]
[{"$f":"IF(Descriptions!D48=\"Gift aid recovered\",Descriptions!B48,0)","v":0},null,{"$f":"IF(Descriptions!D48=\"Gift aid recovered\",WorkingR!AF47,0)","v":0},{"$f":"IF(Descriptions!E48=\"Gift aid recovered\",WorkingR!AG47,0)","v":0},{"$f":"IF(Descriptions!F48=\"Gift aid recovered\",WorkingR!AH47,0)","v":0},{"$f":"IF(Descriptions!G48=\"Gift aid recovered\",WorkingR!AI47,0)","v":0},0,{"$f":"'Prior Year Comparative'!W126","v":0},null,null,null,null,null,null,null,null,null,null,null,null,null,null,null,null,null,null,0,"0"]
[{"$f":"IF(Descriptions!D49=\"Gift aid recovered\",Descriptions!B49,0)","v":0},null,{"$f":"IF(Descriptions!D49=\"Gift aid recovered\",WorkingR!AF48,0)","v":0},{"$f":"IF(Descriptions!E49=\"Gift aid recovered\",WorkingR!AG48,0)","v":0},{"$f":"IF(Descriptions!F49=\"Gift aid recovered\",WorkingR!AH48,0)","v":0},{"$f":"IF(Descriptions!G49=\"Gift aid recovered\",WorkingR!AI48,0)","v":0},0,{"$f":"'Prior Year Comparative'!W127","v":0},null,null,null,null,null,null,null,null,null,null,null,null,null,null,null,null,null,null,0,"0"]
[{"$f":"IF(Descriptions!D50=\"Gift aid recovered\",Descriptions!B50,0)","v":0},null,{"$f":"IF(Descriptions!D50=\"Gift aid recovered\",WorkingR!AF49,0)","v":0},{"$f":"IF(Descriptions!E50=\"Gift aid recovered\",WorkingR!AG49,0)","v":0},{"$f":"IF(Descriptions!F50=\"Gift aid recovered\",WorkingR!AH49,0)","v":0},{"$f":"IF(Descriptions!G50=\"Gift aid recovered\",WorkingR!AI49,0)","v":0},0,{"$f":"'Prior Year Comparative'!W128","v":0},null,null,null,null,null,null,null,null,null,null,null,null,null,null,null,null,null,null,0,"0"]
[{"$f":"IF(Descriptions!D51=\"Gift aid recovered\",Descriptions!B51,0)","v":0},null,{"$f":"IF(Descriptions!D51=\"Gift aid recovered\",WorkingR!AF50,0)","v":0},{"$f":"IF(Descriptions!E51=\"Gift aid recovered\",WorkingR!AG50,0)","v":0},{"$f":"IF(Descriptions!F51=\"Gift aid recovered\",WorkingR!AH50,0)","v":0},{"$f":"IF(Descriptions!G51=\"Gift aid recovered\",WorkingR!AI50,0)","v":0},0,{"$f":"'Prior Year Comparative'!W129","v":0},null,null,null,null,null,null,null,null,null,null,null,null,null,null,null,null,null,null,0,"0"]
[{"$f":"IF(Descriptions!D52=\"Gift aid recovered\",Descriptions!B52,0)","v":0},null,{"$f":"IF(Descriptions!D52=\"Gift aid recovered\",WorkingR!AF51,0)","v":0},{"$f":"IF(Descriptions!E52=\"Gift aid recovered\",WorkingR!AG51,0)","v":0},{"$f":"IF(Descriptions!F52=\"Gift aid recovered\",WorkingR!AH51,0)","v":0},{"$f":"IF(Descriptions!G52=\"Gift aid recovered\",WorkingR!AI51,0)","v":0},0,{"$f":"'Prior Year Comparative'!W130","v":0},null,null,null,null,null,null,null,null,null,null,null,null,null,null,null,null,null,null,0,"0"]
[{"$f":"IF(Descriptions!D53=\"Gift aid recovered\",Descriptions!B53,0)","v":0},null,{"$f":"IF(Descriptions!D53=\"Gift aid recovered\",WorkingR!AF52,0)","v":0},{"$f":"IF(Descriptions!E53=\"Gift aid recovered\",WorkingR!AG52,0)","v":0},{"$f":"IF(Descriptions!F53=\"Gift aid recovered\",WorkingR!AH52,0)","v":0},{"$f":"IF(Descriptions!G53=\"Gift aid recovered\",WorkingR!AI52,0)","v":0},0,{"$f":"'Prior Year Comparative'!W131","v":0},null,null,null,null,null,null,null,null,null,null,null,null,null,null,null,null,null,null,0,"0"]
[{"$f":"IF(Descriptions!D54=\"Gift aid recovered\",Descriptions!B54,0)","v":0},null,{"$f":"IF(Descriptions!D54=\"Gift aid recovered\",WorkingR!AF53,0)","v":0},{"$f":"IF(Descriptions!E54=\"Gift aid recovered\",WorkingR!AG53,0)","v":0},{"$f":"IF(Descriptions!F54=\"Gift aid recovered\",WorkingR!AH53,0)","v":0},{"$f":"IF(Descriptions!G54=\"Gift aid recovered\",WorkingR!AI53,0)","v":0},0,{"$f":"'Prior Year Comparative'!W132","v":0},null,null,null,null,null,null,null,null,null,null,null,null,null,null,null,null,null,null,0,"0"]
[{"$f":"IF(Descriptions!D55=\"Gift aid recovered\",Descriptions!B55,0)","v":0},null,{"$f":"IF(Descriptions!D55=\"Gift aid recovered\",WorkingR!AF54,0)","v":0},{"$f":"IF(Descriptions!E55=\"Gift aid recovered\",WorkingR!AG54,0)","v":0},{"$f":"IF(Descriptions!F55=\"Gift aid recovered\",WorkingR!AH54,0)","v":0},{"$f":"IF(Descriptions!G55=\"Gift aid recovered\",WorkingR!AI54,0)","v":0},0,{"$f":"'Prior Year Comparative'!W133","v":0},null,null,null,null,null,null,null,null,null,null,null,null,null,null,null,null,null,null,0,"0"]
[{"$f":"IF(Descriptions!D56=\"Gift aid recovered\",Descriptions!B56,0)","v":0},null,{"$f":"IF(Descriptions!D56=\"Gift aid recovered\",WorkingR!AF55,0)","v":0},{"$f":"IF(Descriptions!E56=\"Gift aid recovered\",WorkingR!AG55,0)","v":0},{"$f":"IF(Descriptions!F56=\"Gift aid recovered\",WorkingR!AH55,0)","v":0},{"$f":"IF(Descriptions!G56=\"Gift aid recovered\",WorkingR!AI55,0)","v":0},0,{"$f":"'Prior Year Comparative'!W134","v":0},null,null,null,null,null,null,null,null,null,null,null,null,null,null,null,null,null,null,0,"0"]
[{"$f":"IF(Descriptions!D57=\"Gift aid recovered\",Descriptions!B57,0)","v":0},null,{"$f":"IF(Descriptions!D57=\"Gift aid recovered\",WorkingR!AF56,0)","v":0},{"$f":"IF(Descriptions!E57=\"Gift aid recovered\",WorkingR!AG56,0)","v":0},{"$f":"IF(Descriptions!F57=\"Gift aid recovered\",WorkingR!AH56,0)","v":0},{"$f":"IF(Descriptions!G57=\"Gift aid recovered\",WorkingR!AI56,0)","v":0},0,{"$f":"'Prior Year Comparative'!W135","v":0},null,null,null,null,null,null,null,null,null,null,null,null,null,null,null,null,null,null,0,"0"]
[{"$f":"IF(Descriptions!D58=\"Gift aid recovered\",Descriptions!B58,0)","v":0},null,{"$f":"IF(Descriptions!D58=\"Gift aid recovered\",WorkingR!AF57,0)","v":0},{"$f":"IF(Descriptions!E58=\"Gift aid recovered\",WorkingR!AG57,0)","v":0},{"$f":"IF(Descriptions!F58=\"Gift aid recovered\",WorkingR!AH57,0)","v":0},{"$f":"IF(Descriptions!G58=\"Gift aid recovered\",WorkingR!AI57,0)","v":0},0,{"$f":"'Prior Year Comparative'!W136","v":0},null,null,null,null,null,null,null,null,null,null,null,null,null,null,null,null,null,null,0,"0"]
[{"$f":"IF(Descriptions!D59=\"Gift aid recovered\",Descriptions!B59,0)","v":0},null,{"$f":"IF(Descriptions!D59=\"Gift aid recovered\",WorkingR!AF58,0)","v":0},{"$f":"IF(Descriptions!E59=\"Gift aid recovered\",WorkingR!AG58,0)","v":0},{"$f":"IF(Descriptions!F59=\"Gift aid recovered\",WorkingR!AH58,0)","v":0},{"$f":"IF(Descriptions!G59=\"Gift aid recovered\",WorkingR!AI58,0)","v":0},0,{"$f":"'Prior Year Comparative'!W137","v":0},null,null,null,null,null,null,null,null,null,null,null,null,null,null,null,null,null,null,0,"0"]
[{"$f":"IF(Descriptions!D60=\"Gift aid recovered\",Descriptions!B60,0)","v":0},null,{"$f":"IF(Descriptions!D60=\"Gift aid recovered\",WorkingR!AF59,0)","v":0},{"$f":"IF(Descriptions!E60=\"Gift aid recovered\",WorkingR!AG59,0)","v":0},{"$f":"IF(Descriptions!F60=\"Gift aid recovered\",WorkingR!AH59,0)","v":0},{"$f":"IF(Descriptions!G60=\"Gift aid recovered\",WorkingR!AI59,0)","v":0},0,{"$f":"'Prior Year Comparative'!W138","v":0},null,null,null,null,null,null,null,null,null,null,null,null,null,null,null,null,null,null,0,"0"]
[{"$f":"IF(Descriptions!D61=\"Gift aid recovered\",Descriptions!B61,0)","v":0},null,{"$f":"IF(Descriptions!D61=\"Gift aid recovered\",WorkingR!AF60,0)","v":0},{"$f":"IF(Descriptions!E61=\"Gift aid recovered\",WorkingR!AG60,0)","v":0},{"$f":"IF(Descriptions!F61=\"Gift aid recovered\",WorkingR!AH60,0)","v":0},{"$f":"IF(Descriptions!G61=\"Gift aid recovered\",WorkingR!AI60,0)","v":0},0,{"$f":"'Prior Year Comparative'!W139","v":0},null,null,null,null,null,null,null,null,null,null,null,null,null,null,null,null,null,null,0,"0"]
[{"$f":"IF(Descriptions!D62=\"Gift aid recovered\",Descriptions!B62,0)","v":0},null,{"$f":"IF(Descriptions!D62=\"Gift aid recovered\",WorkingR!AF61,0)","v":0},{"$f":"IF(Descriptions!E62=\"Gift aid recovered\",WorkingR!AG61,0)","v":0},{"$f":"IF(Descriptions!F62=\"Gift aid recovered\",WorkingR!AH61,0)","v":0},{"$f":"IF(Descriptions!G62=\"Gift aid recovered\",WorkingR!AI61,0)","v":0},0,{"$f":"'Prior Year Comparative'!W140","v":0},null,null,null,null,null,null,null,null,null,null,null,null,null,null,null,null,null,null,0,"0"]
[{"$f":"IF(Descriptions!D63=\"Gift aid recovered\",Descriptions!B63,0)","v":0},null,{"$f":"IF(Descriptions!D63=\"Gift aid recovered\",WorkingR!AF62,0)","v":0},{"$f":"IF(Descriptions!E63=\"Gift aid recovered\",WorkingR!AG62,0)","v":0},{"$f":"IF(Descriptions!F63=\"Gift aid recovered\",WorkingR!AH62,0)","v":0},{"$f":"IF(Descriptions!G63=\"Gift aid recovered\",WorkingR!AI62,0)","v":0},0,{"$f":"'Prior Year Comparative'!W141","v":0},null,null,null,null,null,null,null,null,null,null,null,null,null,null,null,null,null,null,0,"0"]
[{"$f":"IF(Descriptions!D64=\"Gift aid recovered\",Descriptions!B64,0)","v":0},null,{"$f":"IF(Descriptions!D64=\"Gift aid recovered\",WorkingR!AF63,0)","v":0},{"$f":"IF(Descriptions!E64=\"Gift aid recovered\",WorkingR!AG63,0)","v":0},{"$f":"IF(Descriptions!F64=\"Gift aid recovered\",WorkingR!AH63,0)","v":0},{"$f":"IF(Descriptions!G64=\"Gift aid recovered\",WorkingR!AI63,0)","v":0},0,{"$f":"'Prior Year Comparative'!W142","v":0},null,null,null,null,null,null,null,null,null,null,null,null,null,null,null,null,null,null,0,"0"]
[{"$f":"IF(Descriptions!D65=\"Gift aid recovered\",Descriptions!B65,0)","v":0},null,{"$f":"IF(Descriptions!D65=\"Gift aid recovered\",WorkingR!AF64,0)","v":0},{"$f":"IF(Descriptions!E65=\"Gift aid recovered\",WorkingR!AG64,0)","v":0},{"$f":"IF(Descriptions!F65=\"Gift aid recovered\",WorkingR!AH64,0)","v":0},{"$f":"IF(Descriptions!G65=\"Gift aid recovered\",WorkingR!AI64,0)","v":0},0,{"$f":"'Prior Year Comparative'!W143","v":0},null,null,null,null,null,null,null,null,null,null,null,null,null,null,null,null,null,null,0,"0"]
[{"$f":"IF(Descriptions!D66=\"Gift aid recovered\",Descriptions!B66,0)","v":0},null,{"$f":"IF(Descriptions!D66=\"Gift aid recovered\",WorkingR!AF65,0)","v":0},{"$f":"IF(Descriptions!E66=\"Gift aid recovered\",WorkingR!AG65,0)","v":0},{"$f":"IF(Descriptions!F66=\"Gift aid recovered\",WorkingR!AH65,0)","v":0},{"$f":"IF(Descriptions!G66=\"Gift aid recovered\",WorkingR!AI65,0)","v":0},0,{"$f":"'Prior Year Comparative'!W144","v":0},null,null,null,null,null,null,null,null,null,null,null,null,null,null,null,null,null,null,0,"0"]
[{"$f":"IF(Descriptions!D67=\"Gift aid recovered\",Descriptions!B67,0)","v":0},null,{"$f":"IF(Descriptions!D67=\"Gift aid recovered\",WorkingR!AF66,0)","v":0},{"$f":"IF(Descriptions!E67=\"Gift aid recovered\",WorkingR!AG66,0)","v":0},{"$f":"IF(Descriptions!F67=\"Gift aid recovered\",WorkingR!AH66,0)","v":0},{"$f":"IF(Descriptions!G67=\"Gift aid recovered\",WorkingR!AI66,0)","v":0},0,{"$f":"'Prior Year Comparative'!W145","v":0},null,null,null,null,null,null,null,null,null,null,null,null,null,null,null,null,null,null,0,"0"]
[{"$f":"IF(Descriptions!D68=\"Gift aid recovered\",Descriptions!B68,0)","v":0},null,{"$f":"IF(Descriptions!D68=\"Gift aid recovered\",WorkingR!AF67,0)","v":0},{"$f":"IF(Descriptions!E68=\"Gift aid recovered\",WorkingR!AG67,0)","v":0},{"$f":"IF(Descriptions!F68=\"Gift aid recovered\",WorkingR!AH67,0)","v":0},{"$f":"IF(Descriptions!G68=\"Gift aid recovered\",WorkingR!AI67,0)","v":0},0,{"$f":"'Prior Year Comparative'!W146","v":0},null,null,null,null,null,null,null,null,null,null,null,null,null,null,null,null,null,null,0,"0"]
[{"$f":"IF(Descriptions!D69=\"Gift aid recovered\",Descriptions!B69,0)","v":0},null,{"$f":"IF(Descriptions!D69=\"Gift aid recovered\",WorkingR!AF68,0)","v":0},{"$f":"IF(Descriptions!E69=\"Gift aid recovered\",WorkingR!AG68,0)","v":0},{"$f":"IF(Descriptions!F69=\"Gift aid recovered\",WorkingR!AH68,0)","v":0},{"$f":"IF(Descriptions!G69=\"Gift aid recovered\",WorkingR!AI68,0)","v":0},0,{"$f":"'Prior Year Comparative'!W147","v":0},null,null,null,null,null,null,null,null,null,null,null,null,null,null,null,null,null,null,0,"0"]
[{"$f":"IF(Descriptions!D70=\"Gift aid recovered\",Descriptions!B70,0)","v":0},null,{"$f":"IF(Descriptions!D70=\"Gift aid recovered\",WorkingR!AF69,0)","v":0},{"$f":"IF(Descriptions!E70=\"Gift aid recovered\",WorkingR!AG69,0)","v":0},{"$f":"IF(Descriptions!F70=\"Gift aid recovered\",WorkingR!AH69,0)","v":0},{"$f":"IF(Descriptions!G70=\"Gift aid recovered\",WorkingR!AI69,0)","v":0},0,{"$f":"'Prior Year Comparative'!W148","v":0},null,null,null,null,null,null,null,null,null,null,null,null,null,null,null,null,null,null,0,"0"]
[{"$f":"IF(Descriptions!D71=\"Gift aid recovered\",Descriptions!B71,0)","v":0},null,{"$f":"IF(Descriptions!D71=\"Gift aid recovered\",WorkingR!AF70,0)","v":0},{"$f":"IF(Descriptions!E71=\"Gift aid recovered\",WorkingR!AG70,0)","v":0},{"$f":"IF(Descriptions!F71=\"Gift aid recovered\",WorkingR!AH70,0)","v":0},{"$f":"IF(Descriptions!G71=\"Gift aid recovered\",WorkingR!AI70,0)","v":0},0,{"$f":"'Prior Year Comparative'!W149","v":0},null,null,null,null,null,null,null,null,null,null,null,null,null,null,null,null,null,null,0,"0"]
[{"$f":"IF(Descriptions!D72=\"Gift aid recovered\",Descriptions!B72,0)","v":0},null,{"$f":"IF(Descriptions!D72=\"Gift aid recovered\",WorkingR!AF71,0)","v":0},{"$f":"IF(Descriptions!E72=\"Gift aid recovered\",WorkingR!AG71,0)","v":0},{"$f":"IF(Descriptions!F72=\"Gift aid recovered\",WorkingR!AH71,0)","v":0},{"$f":"IF(Descriptions!G72=\"Gift aid recovered\",WorkingR!AI71,0)","v":0},0,{"$f":"'Prior Year Comparative'!W150","v":0},null,null,null,null,null,null,null,null,null,null,null,null,null,null,null,null,null,null,0,"0"]
[{"$f":"IF(Descriptions!D73=\"Gift aid recovered\",Descriptions!B73,0)","v":0},null,{"$f":"IF(Descriptions!D73=\"Gift aid recovered\",WorkingR!AF72,0)","v":0},{"$f":"IF(Descriptions!E73=\"Gift aid recovered\",WorkingR!AG72,0)","v":0},{"$f":"IF(Descriptions!F73=\"Gift aid recovered\",WorkingR!AH72,0)","v":0},{"$f":"IF(Descriptions!G73=\"Gift aid recovered\",WorkingR!AI72,0)","v":0},0,{"$f":"'Prior Year Comparative'!W151","v":0},null,null,null,null,null,null,null,null,null,null,null,null,null,null,null,null,null,null,0,"0"]
[{"$f":"IF(Descriptions!D74=\"Gift aid recovered\",Descriptions!B74,0)","v":0},null,{"$f":"IF(Descriptions!D74=\"Gift aid recovered\",WorkingR!AF73,0)","v":0},{"$f":"IF(Descriptions!E74=\"Gift aid recovered\",WorkingR!AG73,0)","v":0},{"$f":"IF(Descriptions!F74=\"Gift aid recovered\",WorkingR!AH73,0)","v":0},{"$f":"IF(Descriptions!G74=\"Gift aid recovered\",WorkingR!AI73,0)","v":0},0,{"$f":"'Prior Year Comparative'!W152","v":0},null,null,null,null,null,null,null,null,null,null,null,null,null,null,null,null,null,null,0,"0"]
[{"$f":"IF(Descriptions!D75=\"Gift aid recovered\",Descriptions!B75,0)","v":0},null,{"$f":"IF(Descriptions!D75=\"Gift aid recovered\",WorkingR!AF74,0)","v":0},{"$f":"IF(Descriptions!E75=\"Gift aid recovered\",WorkingR!AG74,0)","v":0},{"$f":"IF(Descriptions!F75=\"Gift aid recovered\",WorkingR!AH74,0)","v":0},{"$f":"IF(Descriptions!G75=\"Gift aid recovered\",WorkingR!AI74,0)","v":0},0,{"$f":"'Prior Year Comparative'!W153","v":0},null,null,null,null,null,null,null,null,null,null,null,null,null,null,null,null,null,null,0,"0"]
[{"$f":"IF(Descriptions!D76=\"Gift aid recovered\",Descriptions!B76,0)","v":0},null,{"$f":"IF(Descriptions!D76=\"Gift aid recovered\",WorkingR!AF75,0)","v":0},{"$f":"IF(Descriptions!E76=\"Gift aid recovered\",WorkingR!AG75,0)","v":0},{"$f":"IF(Descriptions!F76=\"Gift aid recovered\",WorkingR!AH75,0)","v":0},{"$f":"IF(Descriptions!G76=\"Gift aid recovered\",WorkingR!AI75,0)","v":0},0,{"$f":"'Prior Year Comparative'!W154","v":0},null,null,null,null,null,null,null,null,null,null,null,null,null,null,null,null,null,null,0,"0"]
[{"$f":"IF(Descriptions!D77=\"Gift aid recovered\",Descriptions!B77,0)","v":0},null,{"$f":"IF(Descriptions!D77=\"Gift aid recovered\",WorkingR!AF76,0)","v":0},{"$f":"IF(Descriptions!E77=\"Gift aid recovered\",WorkingR!AG76,0)","v":0},{"$f":"IF(Descriptions!F77=\"Gift aid recovered\",WorkingR!AH76,0)","v":0},{"$f":"IF(Descriptions!G77=\"Gift aid recovered\",WorkingR!AI76,0)","v":0},0,{"$f":"'Prior Year Comparative'!W155","v":0},null,null,null,null,null,null,null,null,null,null,null,null,null,null,null,null,null,null,0,"0"]
[{"$f":"IF(Descriptions!D78=\"Gift aid recovered\",Descriptions!B78,0)","v":0},null,{"$f":"IF(Descriptions!D78=\"Gift aid recovered\",WorkingR!AF77,0)","v":0},{"$f":"IF(Descriptions!E78=\"Gift aid recovered\",WorkingR!AG77,0)","v":0},{"$f":"IF(Descriptions!F78=\"Gift aid recovered\",WorkingR!AH77,0)","v":0},{"$f":"IF(Descriptions!G78=\"Gift aid recovered\",WorkingR!AI77,0)","v":0},0,{"$f":"'Prior Year Comparative'!W156","v":0},null,null,null,null,null,null,null,null,null,null,null,null,null,null,null,null,null,null,0,"0"]
[{"$f":"IF(Descriptions!D79=\"Gift aid recovered\",Descriptions!B79,0)","v":0},null,{"$f":"IF(Descriptions!D79=\"Gift aid recovered\",WorkingR!AF78,0)","v":0},{"$f":"IF(Descriptions!E79=\"Gift aid recovered\",WorkingR!AG78,0)","v":0},{"$f":"IF(Descriptions!F79=\"Gift aid recovered\",WorkingR!AH78,0)","v":0},{"$f":"IF(Descriptions!G79=\"Gift aid recovered\",WorkingR!AI78,0)","v":0},0,{"$f":"'Prior Year Comparative'!W157","v":0},null,null,null,null,null,null,null,null,null,null,null,null,null,null,null,null,null,null,0,"0"]
[{"$f":"IF(Descriptions!D80=\"Gift aid recovered\",Descriptions!B80,0)","v":0},null,{"$f":"IF(Descriptions!D80=\"Gift aid recovered\",WorkingR!AF79,0)","v":0},{"$f":"IF(Descriptions!E80=\"Gift aid recovered\",WorkingR!AG79,0)","v":0},{"$f":"IF(Descriptions!F80=\"Gift aid recovered\",WorkingR!AH79,0)","v":0},{"$f":"IF(Descriptions!G80=\"Gift aid recovered\",WorkingR!AI79,0)","v":0},0,{"$f":"'Prior Year Comparative'!W158","v":0},null,null,null,null,null,null,null,null,null,null,null,null,null,null,null,null,null,null,0,"0"]
[{"$f":"IF(Descriptions!D81=\"Gift aid recovered\",Descriptions!B81,0)","v":0},null,{"$f":"IF(Descriptions!D81=\"Gift aid recovered\",WorkingR!AF80,0)","v":0},{"$f":"IF(Descriptions!E81=\"Gift aid recovered\",WorkingR!AG80,0)","v":0},{"$f":"IF(Descriptions!F81=\"Gift aid recovered\",WorkingR!AH80,0)","v":0},{"$f":"IF(Descriptions!G81=\"Gift aid recovered\",WorkingR!AI80,0)","v":0},0,{"$f":"'Prior Year Comparative'!W159","v":0},null,null,null,null,null,null,null,null,null,null,null,null,null,null,null,null,null,null,0,"0"]
[{"$f":"IF(Descriptions!D82=\"Gift aid recovered\",Descriptions!B82,0)","v":0},null,{"$f":"IF(Descriptions!D82=\"Gift aid recovered\",WorkingR!AF81,0)","v":0},{"$f":"IF(Descriptions!E82=\"Gift aid recovered\",WorkingR!AG81,0)","v":0},{"$f":"IF(Descriptions!F82=\"Gift aid recovered\",WorkingR!AH81,0)","v":0},{"$f":"IF(Descriptions!G82=\"Gift aid recovered\",WorkingR!AI81,0)","v":0},0,{"$f":"'Prior Year Comparative'!W160","v":0},null,null,null,null,null,null,null,null,null,null,null,null,null,null,null,null,null,null,0,"0"]
[{"$f":"IF(Descriptions!D83=\"Gift aid recovered\",Descriptions!B83,0)","v":0},null,{"$f":"IF(Descriptions!D83=\"Gift aid recovered\",WorkingR!AF82,0)","v":0},{"$f":"IF(Descriptions!E83=\"Gift aid recovered\",WorkingR!AG82,0)","v":0},{"$f":"IF(Descriptions!F83=\"Gift aid recovered\",WorkingR!AH82,0)","v":0},{"$f":"IF(Descriptions!G83=\"Gift aid recovered\",WorkingR!AI82,0)","v":0},0,{"$f":"'Prior Year Comparative'!W161","v":0},null,null,null,null,null,null,null,null,null,null,null,null,null,null,null,null,null,null,0,"0"]
[{"$f":"IF(Descriptions!D84=\"Gift aid recovered\",Descriptions!B84,0)","v":0},null,{"$f":"IF(Descriptions!D84=\"Gift aid recovered\",WorkingR!AF83,0)","v":0},{"$f":"IF(Descriptions!E84=\"Gift aid recovered\",WorkingR!AG83,0)","v":0},{"$f":"IF(Descriptions!F84=\"Gift aid recovered\",WorkingR!AH83,0)","v":0},{"$f":"IF(Descriptions!G84=\"Gift aid recovered\",WorkingR!AI83,0)","v":0},0,{"$f":"'Prior Year Comparative'!W162","v":0},null,null,null,null,null,null,null,null,null,null,null,null,null,null,null,null,null,null,0,"0"]
[{"$f":"IF(Descriptions!D85=\"Gift aid recovered\",Descriptions!B85,0)","v":0},null,{"$f":"IF(Descriptions!D85=\"Gift aid recovered\",WorkingR!AF84,0)","v":0},{"$f":"IF(Descriptions!E85=\"Gift aid recovered\",WorkingR!AG84,0)","v":0},{"$f":"IF(Descriptions!F85=\"Gift aid recovered\",WorkingR!AH84,0)","v":0},{"$f":"IF(Descriptions!G85=\"Gift aid recovered\",WorkingR!AI84,0)","v":0},0,{"$f":"'Prior Year Comparative'!W163","v":0},null,null,null,null,null,null,null,null,null,null,null,null,null,null,null,null,null,null,0,"0"]
[{"$f":"IF(Descriptions!D86=\"Gift aid recovered\",Descriptions!B86,0)","v":0},null,{"$f":"IF(Descriptions!D86=\"Gift aid recovered\",WorkingR!AF85,0)","v":0},{"$f":"IF(Descriptions!E86=\"Gift aid recovered\",WorkingR!AG85,0)","v":0},{"$f":"IF(Descriptions!F86=\"Gift aid recovered\",WorkingR!AH85,0)","v":0},{"$f":"IF(Descriptions!G86=\"Gift aid recovered\",WorkingR!AI85,0)","v":0},0,{"$f":"'Prior Year Comparative'!W164","v":0},null,null,null,null,null,null,null,null,null,null,null,null,null,null,null,null,null,null,0,"0"]
[{"$f":"IF(Descriptions!D87=\"Gift aid recovered\",Descriptions!B87,0)","v":0},null,{"$f":"IF(Descriptions!D87=\"Gift aid recovered\",WorkingR!AF86,0)","v":0},{"$f":"IF(Descriptions!E87=\"Gift aid recovered\",WorkingR!AG86,0)","v":0},{"$f":"IF(Descriptions!F87=\"Gift aid recovered\",WorkingR!AH86,0)","v":0},{"$f":"IF(Descriptions!G87=\"Gift aid recovered\",WorkingR!AI86,0)","v":0},0,{"$f":"'Prior Year Comparative'!W165","v":0},null,null,null,null,null,null,null,null,null,null,null,null,null,null,null,null,null,null,0,"0"]
[{"$f":"IF(Descriptions!D88=\"Gift aid recovered\",Descriptions!B88,0)","v":0},null,{"$f":"IF(Descriptions!D88=\"Gift aid recovered\",WorkingR!AF87,0)","v":0},{"$f":"IF(Descriptions!E88=\"Gift aid recovered\",WorkingR!AG87,0)","v":0},{"$f":"IF(Descriptions!F88=\"Gift aid recovered\",WorkingR!AH87,0)","v":0},{"$f":"IF(Descriptions!G88=\"Gift aid recovered\",WorkingR!AI87,0)","v":0},0,{"$f":"'Prior Year Comparative'!W166","v":0},null,null,null,null,null,null,null,null,null,null,null,null,null,null,null,null,null,null,0,"0"]
[{"$f":"IF(Descriptions!D89=\"Gift aid recovered\",Descriptions!B89,0)","v":0},null,{"$f":"IF(Descriptions!D89=\"Gift aid recovered\",WorkingR!AF88,0)","v":0},{"$f":"IF(Descriptions!E89=\"Gift aid recovered\",WorkingR!AG88,0)","v":0},{"$f":"IF(Descriptions!F89=\"Gift aid recovered\",WorkingR!AH88,0)","v":0},{"$f":"IF(Descriptions!G89=\"Gift aid recovered\",WorkingR!AI88,0)","v":0},0,{"$f":"'Prior Year Comparative'!W167","v":0},null,null,null,null,null,null,null,null,null,null,null,null,null,null,null,null,null,null,0,"0"]
[{"$f":"IF(Descriptions!D90=\"Gift aid recovered\",Descriptions!B90,0)","v":0},null,{"$f":"IF(Descriptions!D90=\"Gift aid recovered\",WorkingR!AF89,0)","v":0},{"$f":"IF(Descriptions!E90=\"Gift aid recovered\",WorkingR!AG89,0)","v":0},{"$f":"IF(Descriptions!F90=\"Gift aid recovered\",WorkingR!AH89,0)","v":0},{"$f":"IF(Descriptions!G90=\"Gift aid recovered\",WorkingR!AI89,0)","v":0},0,{"$f":"'Prior Year Comparative'!W168","v":0},null,null,null,null,null,null,null,null,null,null,null,null,null,null,null,null,null,null,0,"0"]
[{"$f":"IF(Descriptions!D91=\"Gift aid recovered\",Descriptions!B91,0)","v":0},null,{"$f":"IF(Descriptions!D91=\"Gift aid recovered\",WorkingR!AF90,0)","v":0},{"$f":"IF(Descriptions!E91=\"Gift aid recovered\",WorkingR!AG90,0)","v":0},{"$f":"IF(Descriptions!F91=\"Gift aid recovered\",WorkingR!AH90,0)","v":0},{"$f":"IF(Descriptions!G91=\"Gift aid recovered\",WorkingR!AI90,0)","v":0},0,{"$f":"'Prior Year Comparative'!W169","v":0},null,null,null,null,null,null,null,null,null,null,null,null,null,null,null,null,null,null,0,"0"]
[{"$f":"IF(Descriptions!D92=\"Gift aid recovered\",Descriptions!B92,0)","v":0},null,{"$f":"IF(Descriptions!D92=\"Gift aid recovered\",WorkingR!AF91,0)","v":0},{"$f":"IF(Descriptions!E92=\"Gift aid recovered\",WorkingR!AG91,0)","v":0},{"$f":"IF(Descriptions!F92=\"Gift aid recovered\",WorkingR!AH91,0)","v":0},{"$f":"IF(Descriptions!G92=\"Gift aid recovered\",WorkingR!AI91,0)","v":0},0,{"$f":"'Prior Year Comparative'!W170","v":0},null,null,null,null,null,null,null,null,null,null,null,null,null,null,null,null,null,null,0,"0"]
[null,null,null,null,null,null,null,null,null,null,null,null,null,null,null,null,null,null,null,null,null,null,null,null,null,null,{"$f":"AA366","v":0},{"$f":"IF(AA365=0,\"0\",\"1\")","v":"0"}]
[null,null,{"$f":"SUM(C314:C364)","v":0},0,0,0,0,0,null,null,null,null,null,null,null,null,null,null,null,null,null,null,null,null,null,null,{"$f":"AA312","v":0},"0"]
[null,null,null,null,null,null,null,null,null,null,null,null,null,null,null,null,null,null,null,null,null,null,null,null,null,null,{"$f":"SUM(AA369:AA425)","v":0},"0"]
["ALL OTHER GIVING/VOLUNTARY RECEIPTS",null,null,null,null,null,null,null,null,null,null,null,null,null,null,null,null,null,null,null,null,null,null,null,null,null,{"$f":"AA367","v":0},"0"]
["Appeals",null,{"$f":"WorkingR!AF5","v":0},{"$f":"WorkingR!AG5","v":0},{"$f":"WorkingR!AH5","v":0},{"$f":"WorkingR!AI5","v":0},{"$f":"SUM(C369:F369)","v":0},{"$f":"'Prior Year Comparative'!W173","v":0},null,null,null,null,null,null,null,null,null,null,null,null,null,null,null,null,null,null,{"$f":"SUM(C369:H369)","v":0},"0"]
["CAF & GAYE giving",null,{"$f":"WorkingR!AF7","v":0},{"$f":"WorkingR!AG7","v":0},{"$f":"WorkingR!AH7","v":0},{"$f":"WorkingR!AI7","v":0},0,{"$f":"'Prior Year Comparative'!W174","v":0},null,null,null,null,null,null,null,null,null,null,null,null,null,null,null,null,null,null,0,"0"]
["Donations",null,{"$f":"WorkingR!AF11","v":0},{"$f":"WorkingR!AG11","v":0},{"$f":"WorkingR!AH11","v":0},{"$f":"WorkingR!AI11","v":0},0,{"$f":"'Prior Year Comparative'!W175","v":0},null,null,null,null,null,null,null,null,null,null,null,null,null,null,null,null,null,null,0,"0"]
["Gift Aid Envelopes",null,{"$f":"WorkingR!AF16","v":0},{"$f":"WorkingR!AG16","v":0},{"$f":"WorkingR!AH16","v":0},{"$f":"WorkingR!AI16","v":0},0,{"$f":"'Prior Year Comparative'!W176","v":0},null,null,null,null,null,null,null,null,null,null,null,null,null,null,null,null,null,null,0,"0"]
["Gift Days",null,{"$f":"WorkingR!AF18","v":0},{"$f":"WorkingR!AG18","v":0},{"$f":"WorkingR!AH18","v":0},{"$f":"WorkingR!AI18","v":0},0,{"$f":"'Prior Year Comparative'!W177","v":0},null,null,null,null,null,null,null,null,null,null,null,null,null,null,null,null,null,null,0,"0"]
["Donations - Gift Aided",null,{"$f":"WorkingR!AF12","v":0},{"$f":"WorkingR!AG12","v":0},{"$f":"WorkingR!AH12","v":0},{"$f":"WorkingR!AI12","v":0},0,{"$f":"'Prior Year Comparative'!W178","v":0},null,null,null,null,null,null,null,null,null,null,null,null,null,null,null,null,null,null,0,"0"]
["Wall Boxes",null,{"$f":"WorkingR!AF37","v":0},{"$f":"WorkingR!AG37","v":0},{"$f":"WorkingR!AH37","v":0},{"$f":"WorkingR!AI37","v":0},0,{"$f":"'Prior Year Comparative'!W179","v":0},null,null,null,null,null,null,null,null,null,null,null,null,null,null,null,null,null,null,0,"0"]
[{"$f":"IF(Descriptions!D43=\"All other giving/voluntary receipts\",Descriptions!B43,0)","v":0},null,{"$f":"IF(Descriptions!D43=\"All other giving/voluntary receipts\",WorkingR!AF42,0)","v":0},{"$f":"IF(Descriptions!D43=\"All other giving/voluntary receipts\",WorkingR!AG42,0)","v":0},{"$f":"IF(Descriptions!D43=\"All other giving/voluntary receipts\",WorkingR!AH42,0)","v":0},{"$f":"IF(Descriptions!D43=\"All other giving/voluntary receipts\",WorkingR!AI42,0)","v":0},{"$f":"SUM(C376:F376)","v":0},{"$f":"'Prior Year Comparative'!W180","v":0},null,null,null,null,null,null,null,null,null,null,null,null,null,null,null,null,null,null,0,"0"]
[{"$f":"IF(Descriptions!D44=\"All other giving/voluntary receipts\",Descriptions!B44,0)","v":0},null,{"$f":"IF(Descriptions!D44=\"All other giving/voluntary receipts\",WorkingR!AF43,0)","v":0},{"$f":"IF(Descriptions!D44=\"All other giving/voluntary receipts\",WorkingR!AG43,0)","v":0},{"$f":"IF(Descriptions!D44=\"All other giving/voluntary receipts\",WorkingR!AH43,0)","v":0},{"$f":"IF(Descriptions!D44=\"All other giving/voluntary receipts\",WorkingR!AI43,0)","v":0},{"$f":"SUM(C377:F377)","v":0},{"$f":"'Prior Year Comparative'!W181","v":0},null,null,null,null,null,null,null,null,null,null,null,null,null,null,null,null,null,null,{"$f":"SUM(C377:H377)","v":0},{"$f":"IF(AA377=0,\"0\",\"1\")","v":"0"}]
[{"$f":"IF(Descriptions!D45=\"All other giving/voluntary receipts\",Descriptions!B45,0)","v":0},null,{"$f":"IF(Descriptions!D45=\"All other giving/voluntary receipts\",WorkingR!AF44,0)","v":0},{"$f":"IF(Descriptions!D45=\"All other giving/voluntary receipts\",WorkingR!AG44,0)","v":0},{"$f":"IF(Descriptions!D45=\"All other giving/voluntary receipts\",WorkingR!AH44,0)","v":0},{"$f":"IF(Descriptions!D45=\"All other giving/voluntary receipts\",WorkingR!AI44,0)","v":0},0,{"$f":"'Prior Year Comparative'!W182","v":0},null,null,null,null,null,null,null,null,null,null,null,null,null,null,null,null,null,null,0,"0"]
[{"$f":"IF(Descriptions!D46=\"All other giving/voluntary receipts\",Descriptions!B46,0)","v":0},null,{"$f":"IF(Descriptions!D46=\"All other giving/voluntary receipts\",WorkingR!AF45,0)","v":0},{"$f":"IF(Descriptions!D46=\"All other giving/voluntary receipts\",WorkingR!AG45,0)","v":0},{"$f":"IF(Descriptions!D46=\"All other giving/voluntary receipts\",WorkingR!AH45,0)","v":0},{"$f":"IF(Descriptions!D46=\"All other giving/voluntary receipts\",WorkingR!AI45,0)","v":0},0,{"$f":"'Prior Year Comparative'!W183","v":0},null,null,null,null,null,null,null,null,null,null,null,null,null,null,null,null,null,null,0,"0"]
[{"$f":"IF(Descriptions!D47=\"All other giving/voluntary receipts\",Descriptions!B47,0)","v":0},null,{"$f":"IF(Descriptions!D47=\"All other giving/voluntary receipts\",WorkingR!AF46,0)","v":0},{"$f":"IF(Descriptions!D47=\"All other giving/voluntary receipts\",WorkingR!AG46,0)","v":0},{"$f":"IF(Descriptions!D47=\"All other giving/voluntary receipts\",WorkingR!AH46,0)","v":0},{"$f":"IF(Descriptions!D47=\"All other giving/voluntary receipts\",WorkingR!AI46,0)","v":0},0,{"$f":"'Prior Year Comparative'!W184","v":0},null,null,null,null,null,null,null,null,null,null,null,null,null,null,null,null,null,null,0,"0"]
[{"$f":"IF(Descriptions!D48=\"All other giving/voluntary receipts\",Descriptions!B48,0)","v":0},null,{"$f":"IF(Descriptions!D48=\"All other giving/voluntary receipts\",WorkingR!AF47,0)","v":0},{"$f":"IF(Descriptions!D48=\"All other giving/voluntary receipts\",WorkingR!AG47,0)","v":0},{"$f":"IF(Descriptions!D48=\"All other giving/voluntary receipts\",WorkingR!AH47,0)","v":0},{"$f":"IF(Descriptions!D48=\"All other giving/voluntary receipts\",WorkingR!AI47,0)","v":0},0,{"$f":"'Prior Year Comparative'!W185","v":0},null,null,null,null,null,null,null,null,null,null,null,null,null,null,null,null,null,null,0,"0"]
[{"$f":"IF(Descriptions!D49=\"All other giving/voluntary receipts\",Descriptions!B49,0)","v":0},null,{"$f":"IF(Descriptions!D49=\"All other giving/voluntary receipts\",WorkingR!AF48,0)","v":0},{"$f":"IF(Descriptions!D49=\"All other giving/voluntary receipts\",WorkingR!AG48,0)","v":0},{"$f":"IF(Descriptions!D49=\"All other giving/voluntary receipts\",WorkingR!AH48,0)","v":0},{"$f":"IF(Descriptions!D49=\"All other giving/voluntary receipts\",WorkingR!AI48,0)","v":0},0,{"$f":"'Prior Year Comparative'!W186","v":0},null,null,null,null,null,null,null,null,null,null,null,null,null,null,null,null,null,null,0,"0"]
[{"$f":"IF(Descriptions!D50=\"All other giving/voluntary receipts\",Descriptions!B50,0)","v":0},null,{"$f":"IF(Descriptions!D50=\"All other giving/voluntary receipts\",WorkingR!AF49,0)","v":0},{"$f":"IF(Descriptions!D50=\"All other giving/voluntary receipts\",WorkingR!AG49,0)","v":0},{"$f":"IF(Descriptions!D50=\"All other giving/voluntary receipts\",WorkingR!AH49,0)","v":0},{"$f":"IF(Descriptions!D50=\"All other giving/voluntary receipts\",WorkingR!AI49,0)","v":0},0,{"$f":"'Prior Year Comparative'!W187","v":0},null,null,null,null,null,null,null,null,null,null,null,null,null,null,null,null,null,null,0,"0"]
[{"$f":"IF(Descriptions!D51=\"All other giving/voluntary receipts\",Descriptions!B51,0)","v":0},null,{"$f":"IF(Descriptions!D51=\"All other giving/voluntary receipts\",WorkingR!AF50,0)","v":0},{"$f":"IF(Descriptions!D51=\"All other giving/voluntary receipts\",WorkingR!AG50,0)","v":0},{"$f":"IF(Descriptions!D51=\"All other giving/voluntary receipts\",WorkingR!AH50,0)","v":0},{"$f":"IF(Descriptions!D51=\"All other giving/voluntary receipts\",WorkingR!AI50,0)","v":0},0,{"$f":"'Prior Year Comparative'!W188","v":0},null,null,null,null,null,null,null,null,null,null,null,null,null,null,null,null,null,null,0,"0"]
[{"$f":"IF(Descriptions!D52=\"All other giving/voluntary receipts\",Descriptions!B52,0)","v":0},null,{"$f":"IF(Descriptions!D52=\"All other giving/voluntary receipts\",WorkingR!AF51,0)","v":0},{"$f":"IF(Descriptions!D52=\"All other giving/voluntary receipts\",WorkingR!AG51,0)","v":0},{"$f":"IF(Descriptions!D52=\"All other giving/voluntary receipts\",WorkingR!AH51,0)","v":0},{"$f":"IF(Descriptions!D52=\"All other giving/voluntary receipts\",WorkingR!AI51,0)","v":0},0,{"$f":"'Prior Year Comparative'!W189","v":0},null,null,null,null,null,null,null,null,null,null,null,null,null,null,null,null,null,null,0,"0"]
[{"$f":"IF(Descriptions!D53=\"All other giving/voluntary receipts\",Descriptions!B53,0)","v":0},null,{"$f":"IF(Descriptions!D53=\"All other giving/voluntary receipts\",WorkingR!AF52,0)","v":0},{"$f":"IF(Descriptions!D53=\"All other giving/voluntary receipts\",WorkingR!AG52,0)","v":0},{"$f":"IF(Descriptions!D53=\"All other giving/voluntary receipts\",WorkingR!AH52,0)","v":0},{"$f":"IF(Descriptions!D53=\"All other giving/voluntary receipts\",WorkingR!AI52,0)","v":0},0,{"$f":"'Prior Year Comparative'!W190","v":0},null,null,null,null,null,null,null,null,null,null,null,null,null,null,null,null,null,null,0,"0"]
[{"$f":"IF(Descriptions!D54=\"All other giving/voluntary receipts\",Descriptions!B54,0)","v":0},null,{"$f":"IF(Descriptions!D54=\"All other giving/voluntary receipts\",WorkingR!AF53,0)","v":0},{"$f":"IF(Descriptions!D54=\"All other giving/voluntary receipts\",WorkingR!AG53,0)","v":0},{"$f":"IF(Descriptions!D54=\"All other giving/voluntary receipts\",WorkingR!AH53,0)","v":0},{"$f":"IF(Descriptions!D54=\"All other giving/voluntary receipts\",WorkingR!AI53,0)","v":0},0,{"$f":"'Prior Year Comparative'!W191","v":0},null,null,null,null,null,null,null,null,null,null,null,null,null,null,null,null,null,null,0,"0"]
[{"$f":"IF(Descriptions!D55=\"All other giving/voluntary receipts\",Descriptions!B55,0)","v":0},null,{"$f":"IF(Descriptions!D55=\"All other giving/voluntary receipts\",WorkingR!AF54,0)","v":0},{"$f":"IF(Descriptions!D55=\"All other giving/voluntary receipts\",WorkingR!AG54,0)","v":0},{"$f":"IF(Descriptions!D55=\"All other giving/voluntary receipts\",WorkingR!AH54,0)","v":0},{"$f":"IF(Descriptions!D55=\"All other giving/voluntary receipts\",WorkingR!AI54,0)","v":0},0,{"$f":"'Prior Year Comparative'!W192","v":0},null,null,null,null,null,null,null,null,null,null,null,null,null,null,null,null,null,null,0,"0"]
[{"$f":"IF(Descriptions!D56=\"All other giving/voluntary receipts\",Descriptions!B56,0)","v":0},null,{"$f":"IF(Descriptions!D56=\"All other giving/voluntary receipts\",WorkingR!AF55,0)","v":0},{"$f":"IF(Descriptions!D56=\"All other giving/voluntary receipts\",WorkingR!AG55,0)","v":0},{"$f":"IF(Descriptions!D56=\"All other giving/voluntary receipts\",WorkingR!AH55,0)","v":0},{"$f":"IF(Descriptions!D56=\"All other giving/voluntary receipts\",WorkingR!AI55,0)","v":0},0,{"$f":"'Prior Year Comparative'!W193","v":0},null,null,null,null,null,null,null,null,null,null,null,null,null,null,null,null,null,null,0,"0"]
[{"$f":"IF(Descriptions!D57=\"All other giving/voluntary receipts\",Descriptions!B57,0)","v":0},null,{"$f":"IF(Descriptions!D57=\"All other giving/voluntary receipts\",WorkingR!AF56,0)","v":0},{"$f":"IF(Descriptions!D57=\"All other giving/voluntary receipts\",WorkingR!AG56,0)","v":0},{"$f":"IF(Descriptions!D57=\"All other giving/voluntary receipts\",WorkingR!AH56,0)","v":0},{"$f":"IF(Descriptions!D57=\"All other giving/voluntary receipts\",WorkingR!AI56,0)","v":0},0,{"$f":"'Prior Year Comparative'!W194","v":0},null,null,null,null,null,null,null,null,null,null,null,null,null,null,null,null,null,null,0,"0"]
[{"$f":"IF(Descriptions!D58=\"All other giving/voluntary receipts\",Descriptions!B58,0)","v":0},null,{"$f":"IF(Descriptions!D58=\"All other giving/voluntary receipts\",WorkingR!AF57,0)","v":0},{"$f":"IF(Descriptions!D58=\"All other giving/voluntary receipts\",WorkingR!AG57,0)","v":0},{"$f":"IF(Descriptions!D58=\"All other giving/voluntary receipts\",WorkingR!AH57,0)","v":0},{"$f":"IF(Descriptions!D58=\"All other giving/voluntary receipts\",WorkingR!AI57,0)","v":0},0,{"$f":"'Prior Year Comparative'!W195","v":0},null,null,null,null,null,null,null,null,null,null,null,null,null,null,null,null,null,null,0,"0"]
[{"$f":"IF(Descriptions!D59=\"All other giving/voluntary receipts\",Descriptions!B59,0)","v":0},null,{"$f":"IF(Descriptions!D59=\"All other giving/voluntary receipts\",WorkingR!AF58,0)","v":0},{"$f":"IF(Descriptions!D59=\"All other giving/voluntary receipts\",WorkingR!AG58,0)","v":0},{"$f":"IF(Descriptions!D59=\"All other giving/voluntary receipts\",WorkingR!AH58,0)","v":0},{"$f":"IF(Descriptions!D59=\"All other giving/voluntary receipts\",WorkingR!AI58,0)","v":0},0,{"$f":"'Prior Year Comparative'!W196","v":0},null,null,null,null,null,null,null,null,null,null,null,null,null,null,null,null,null,null,0,"0"]
[{"$f":"IF(Descriptions!D60=\"All other giving/voluntary receipts\",Descriptions!B60,0)","v":0},null,{"$f":"IF(Descriptions!D60=\"All other giving/voluntary receipts\",WorkingR!AF59,0)","v":0},{"$f":"IF(Descriptions!D60=\"All other giving/voluntary receipts\",WorkingR!AG59,0)","v":0},{"$f":"IF(Descriptions!D60=\"All other giving/voluntary receipts\",WorkingR!AH59,0)","v":0},{"$f":"IF(Descriptions!D60=\"All other giving/voluntary receipts\",WorkingR!AI59,0)","v":0},0,{"$f":"'Prior Year Comparative'!W197","v":0},null,null,null,null,null,null,null,null,null,null,null,null,null,null,null,null,null,null,0,"0"]
[{"$f":"IF(Descriptions!D61=\"All other giving/voluntary receipts\",Descriptions!B61,0)","v":0},null,{"$f":"IF(Descriptions!D61=\"All other giving/voluntary receipts\",WorkingR!AF60,0)","v":0},{"$f":"IF(Descriptions!D61=\"All other giving/voluntary receipts\",WorkingR!AG60,0)","v":0},{"$f":"IF(Descriptions!D61=\"All other giving/voluntary receipts\",WorkingR!AH60,0)","v":0},{"$f":"IF(Descriptions!D61=\"All other giving/voluntary receipts\",WorkingR!AI60,0)","v":0},0,{"$f":"'Prior Year Comparative'!W198","v":0},null,null,null,null,null,null,null,null,null,null,null,null,null,null,null,null,null,null,0,"0"]
[{"$f":"IF(Descriptions!D62=\"All other giving/voluntary receipts\",Descriptions!B62,0)","v":0},null,{"$f":"IF(Descriptions!D62=\"All other giving/voluntary receipts\",WorkingR!AF61,0)","v":0},{"$f":"IF(Descriptions!D62=\"All other giving/voluntary receipts\",WorkingR!AG61,0)","v":0},{"$f":"IF(Descriptions!D62=\"All other giving/voluntary receipts\",WorkingR!AH61,0)","v":0},{"$f":"IF(Descriptions!D62=\"All other giving/voluntary receipts\",WorkingR!AI61,0)","v":0},0,{"$f":"'Prior Year Comparative'!W199","v":0},null,null,null,null,null,null,null,null,null,null,null,null,null,null,null,null,null,null,0,"0"]
[{"$f":"IF(Descriptions!D63=\"All other giving/voluntary receipts\",Descriptions!B63,0)","v":0},null,{"$f":"IF(Descriptions!D63=\"All other giving/voluntary receipts\",WorkingR!AF62,0)","v":0},{"$f":"IF(Descriptions!D63=\"All other giving/voluntary receipts\",WorkingR!AG62,0)","v":0},{"$f":"IF(Descriptions!D63=\"All other giving/voluntary receipts\",WorkingR!AH62,0)","v":0},{"$f":"IF(Descriptions!D63=\"All other giving/voluntary receipts\",WorkingR!AI62,0)","v":0},0,{"$f":"'Prior Year Comparative'!W200","v":0},null,null,null,null,null,null,null,null,null,null,null,null,null,null,null,null,null,null,0,"0"]
[{"$f":"IF(Descriptions!D64=\"All other giving/voluntary receipts\",Descriptions!B64,0)","v":0},null,{"$f":"IF(Descriptions!D64=\"All other giving/voluntary receipts\",WorkingR!AF63,0)","v":0},{"$f":"IF(Descriptions!D64=\"All other giving/voluntary receipts\",WorkingR!AG63,0)","v":0},{"$f":"IF(Descriptions!D64=\"All other giving/voluntary receipts\",WorkingR!AH63,0)","v":0},{"$f":"IF(Descriptions!D64=\"All other giving/voluntary receipts\",WorkingR!AI63,0)","v":0},0,{"$f":"'Prior Year Comparative'!W201","v":0},null,null,null,null,null,null,null,null,null,null,null,null,null,null,null,null,null,null,0,"0"]
[{"$f":"IF(Descriptions!D65=\"All other giving/voluntary receipts\",Descriptions!B65,0)","v":0},null,{"$f":"IF(Descriptions!D65=\"All other giving/voluntary receipts\",WorkingR!AF64,0)","v":0},{"$f":"IF(Descriptions!D65=\"All other giving/voluntary receipts\",WorkingR!AG64,0)","v":0},{"$f":"IF(Descriptions!D65=\"All other giving/voluntary receipts\",WorkingR!AH64,0)","v":0},{"$f":"IF(Descriptions!D65=\"All other giving/voluntary receipts\",WorkingR!AI64,0)","v":0},0,{"$f":"'Prior Year Comparative'!W202","v":0},null,null,null,null,null,null,null,null,null,null,null,null,null,null,null,null,null,null,0,"0"]
[{"$f":"IF(Descriptions!D66=\"All other giving/voluntary receipts\",Descriptions!B66,0)","v":0},null,{"$f":"IF(Descriptions!D66=\"All other giving/voluntary receipts\",WorkingR!AF65,0)","v":0},{"$f":"IF(Descriptions!D66=\"All other giving/voluntary receipts\",WorkingR!AG65,0)","v":0},{"$f":"IF(Descriptions!D66=\"All other giving/voluntary receipts\",WorkingR!AH65,0)","v":0},{"$f":"IF(Descriptions!D66=\"All other giving/voluntary receipts\",WorkingR!AI65,0)","v":0},0,{"$f":"'Prior Year Comparative'!W203","v":0},null,null,null,null,null,null,null,null,null,null,null,null,null,null,null,null,null,null,0,"0"]
[{"$f":"IF(Descriptions!D67=\"All other giving/voluntary receipts\",Descriptions!B67,0)","v":0},null,{"$f":"IF(Descriptions!D67=\"All other giving/voluntary receipts\",WorkingR!AF66,0)","v":0},{"$f":"IF(Descriptions!D67=\"All other giving/voluntary receipts\",WorkingR!AG66,0)","v":0},{"$f":"IF(Descriptions!D67=\"All other giving/voluntary receipts\",WorkingR!AH66,0)","v":0},{"$f":"IF(Descriptions!D67=\"All other giving/voluntary receipts\",WorkingR!AI66,0)","v":0},0,{"$f":"'Prior Year Comparative'!W204","v":0},null,null,null,null,null,null,null,null,null,null,null,null,null,null,null,null,null,null,0,"0"]
[{"$f":"IF(Descriptions!D68=\"All other giving/voluntary receipts\",Descriptions!B68,0)","v":0},null,{"$f":"IF(Descriptions!D68=\"All other giving/voluntary receipts\",WorkingR!AF67,0)","v":0},{"$f":"IF(Descriptions!D68=\"All other giving/voluntary receipts\",WorkingR!AG67,0)","v":0},{"$f":"IF(Descriptions!D68=\"All other giving/voluntary receipts\",WorkingR!AH67,0)","v":0},{"$f":"IF(Descriptions!D68=\"All other giving/voluntary receipts\",WorkingR!AI67,0)","v":0},0,{"$f":"'Prior Year Comparative'!W205","v":0},null,null,null,null,null,null,null,null,null,null,null,null,null,null,null,null,null,null,0,"0"]
[{"$f":"IF(Descriptions!D69=\"All other giving/voluntary receipts\",Descriptions!B69,0)","v":0},null,{"$f":"IF(Descriptions!D69=\"All other giving/voluntary receipts\",WorkingR!AF68,0)","v":0},{"$f":"IF(Descriptions!D69=\"All other giving/voluntary receipts\",WorkingR!AG68,0)","v":0},{"$f":"IF(Descriptions!D69=\"All other giving/voluntary receipts\",WorkingR!AH68,0)","v":0},{"$f":"IF(Descriptions!D69=\"All other giving/voluntary receipts\",WorkingR!AI68,0)","v":0},0,{"$f":"'Prior Year Comparative'!W206","v":0},null,null,null,null,null,null,null,null,null,null,null,null,null,null,null,null,null,null,0,"0"]
[{"$f":"IF(Descriptions!D70=\"All other giving/voluntary receipts\",Descriptions!B70,0)","v":0},null,{"$f":"IF(Descriptions!D70=\"All other giving/voluntary receipts\",WorkingR!AF69,0)","v":0},{"$f":"IF(Descriptions!D70=\"All other giving/voluntary receipts\",WorkingR!AG69,0)","v":0},{"$f":"IF(Descriptions!D70=\"All other giving/voluntary receipts\",WorkingR!AH69,0)","v":0},{"$f":"IF(Descriptions!D70=\"All other giving/voluntary receipts\",WorkingR!AI69,0)","v":0},0,{"$f":"'Prior Year Comparative'!W207","v":0},null,null,null,null,null,null,null,null,null,null,null,null,null,null,null,null,null,null,0,"0"]
[{"$f":"IF(Descriptions!D71=\"All other giving/voluntary receipts\",Descriptions!B71,0)","v":0},null,{"$f":"IF(Descriptions!D71=\"All other giving/voluntary receipts\",WorkingR!AF70,0)","v":0},{"$f":"IF(Descriptions!D71=\"All other giving/voluntary receipts\",WorkingR!AG70,0)","v":0},{"$f":"IF(Descriptions!D71=\"All other giving/voluntary receipts\",WorkingR!AH70,0)","v":0},{"$f":"IF(Descriptions!D71=\"All other giving/voluntary receipts\",WorkingR!AI70,0)","v":0},0,{"$f":"'Prior Year Comparative'!W208","v":0},null,null,null,null,null,null,null,null,null,null,null,null,null,null,null,null,null,null,0,"0"]
[{"$f":"IF(Descriptions!D72=\"All other giving/voluntary receipts\",Descriptions!B72,0)","v":0},null,{"$f":"IF(Descriptions!D72=\"All other giving/voluntary receipts\",WorkingR!AF71,0)","v":0},{"$f":"IF(Descriptions!D72=\"All other giving/voluntary receipts\",WorkingR!AG71,0)","v":0},{"$f":"IF(Descriptions!D72=\"All other giving/voluntary receipts\",WorkingR!AH71,0)","v":0},{"$f":"IF(Descriptions!D72=\"All other giving/voluntary receipts\",WorkingR!AI71,0)","v":0},0,{"$f":"'Prior Year Comparative'!W209","v":0},null,null,null,null,null,null,null,null,null,null,null,null,null,null,null,null,null,null,0,"0"]
[{"$f":"IF(Descriptions!D73=\"All other giving/voluntary receipts\",Descriptions!B73,0)","v":0},null,{"$f":"IF(Descriptions!D73=\"All other giving/voluntary receipts\",WorkingR!AF72,0)","v":0},{"$f":"IF(Descriptions!D73=\"All other giving/voluntary receipts\",WorkingR!AG72,0)","v":0},{"$f":"IF(Descriptions!D73=\"All other giving/voluntary receipts\",WorkingR!AH72,0)","v":0},{"$f":"IF(Descriptions!D73=\"All other giving/voluntary receipts\",WorkingR!AI72,0)","v":0},0,{"$f":"'Prior Year Comparative'!W210","v":0},null,null,null,null,null,null,null,null,null,null,null,null,null,null,null,null,null,null,0,"0"]
[{"$f":"IF(Descriptions!D74=\"All other giving/voluntary receipts\",Descriptions!B74,0)","v":0},null,{"$f":"IF(Descriptions!D74=\"All other giving/voluntary receipts\",WorkingR!AF73,0)","v":0},{"$f":"IF(Descriptions!D74=\"All other giving/voluntary receipts\",WorkingR!AG73,0)","v":0},{"$f":"IF(Descriptions!D74=\"All other giving/voluntary receipts\",WorkingR!AH73,0)","v":0},{"$f":"IF(Descriptions!D74=\"All other giving/voluntary receipts\",WorkingR!AI73,0)","v":0},0,{"$f":"'Prior Year Comparative'!W211","v":0},null,null,null,null,null,null,null,null,null,null,null,null,null,null,null,null,null,null,0,"0"]
[{"$f":"IF(Descriptions!D75=\"All other giving/voluntary receipts\",Descriptions!B75,0)","v":0},null,{"$f":"IF(Descriptions!D75=\"All other giving/voluntary receipts\",WorkingR!AF74,0)","v":0},{"$f":"IF(Descriptions!D75=\"All other giving/voluntary receipts\",WorkingR!AG74,0)","v":0},{"$f":"IF(Descriptions!D75=\"All other giving/voluntary receipts\",WorkingR!AH74,0)","v":0},{"$f":"IF(Descriptions!D75=\"All other giving/voluntary receipts\",WorkingR!AI74,0)","v":0},0,{"$f":"'Prior Year Comparative'!W212","v":0},null,null,null,null,null,null,null,null,null,null,null,null,null,null,null,null,null,null,0,"0"]
[{"$f":"IF(Descriptions!D76=\"All other giving/voluntary receipts\",Descriptions!B76,0)","v":0},null,{"$f":"IF(Descriptions!D76=\"All other giving/voluntary receipts\",WorkingR!AF75,0)","v":0},{"$f":"IF(Descriptions!D76=\"All other giving/voluntary receipts\",WorkingR!AG75,0)","v":0},{"$f":"IF(Descriptions!D76=\"All other giving/voluntary receipts\",WorkingR!AH75,0)","v":0},{"$f":"IF(Descriptions!D76=\"All other giving/voluntary receipts\",WorkingR!AI75,0)","v":0},0,{"$f":"'Prior Year Comparative'!W213","v":0},null,null,null,null,null,null,null,null,null,null,null,null,null,null,null,null,null,null,0,"0"]
[{"$f":"IF(Descriptions!D77=\"All other giving/voluntary receipts\",Descriptions!B77,0)","v":0},null,{"$f":"IF(Descriptions!D77=\"All other giving/voluntary receipts\",WorkingR!AF76,0)","v":0},{"$f":"IF(Descriptions!D77=\"All other giving/voluntary receipts\",WorkingR!AG76,0)","v":0},{"$f":"IF(Descriptions!D77=\"All other giving/voluntary receipts\",WorkingR!AH76,0)","v":0},{"$f":"IF(Descriptions!D77=\"All other giving/voluntary receipts\",WorkingR!AI76,0)","v":0},0,{"$f":"'Prior Year Comparative'!W214","v":0},null,null,null,null,null,null,null,null,null,null,null,null,null,null,null,null,null,null,0,"0"]
[{"$f":"IF(Descriptions!D78=\"All other giving/voluntary receipts\",Descriptions!B78,0)","v":0},null,{"$f":"IF(Descriptions!D78=\"All other giving/voluntary receipts\",WorkingR!AF77,0)","v":0},{"$f":"IF(Descriptions!D78=\"All other giving/voluntary receipts\",WorkingR!AG77,0)","v":0},{"$f":"IF(Descriptions!D78=\"All other giving/voluntary receipts\",WorkingR!AH77,0)","v":0},{"$f":"IF(Descriptions!D78=\"All other giving/voluntary receipts\",WorkingR!AI77,0)","v":0},0,{"$f":"'Prior Year Comparative'!W215","v":0},null,null,null,null,null,null,null,null,null,null,null,null,null,null,null,null,null,null,0,"0"]
[{"$f":"IF(Descriptions!D79=\"All other giving/voluntary receipts\",Descriptions!B79,0)","v":0},null,{"$f":"IF(Descriptions!D79=\"All other giving/voluntary receipts\",WorkingR!AF78,0)","v":0},{"$f":"IF(Descriptions!D79=\"All other giving/voluntary receipts\",WorkingR!AG78,0)","v":0},{"$f":"IF(Descriptions!D79=\"All other giving/voluntary receipts\",WorkingR!AH78,0)","v":0},{"$f":"IF(Descriptions!D79=\"All other giving/voluntary receipts\",WorkingR!AI78,0)","v":0},0,{"$f":"'Prior Year Comparative'!W216","v":0},null,null,null,null,null,null,null,null,null,null,null,null,null,null,null,null,null,null,0,"0"]
[{"$f":"IF(Descriptions!D80=\"All other giving/voluntary receipts\",Descriptions!B80,0)","v":0},null,{"$f":"IF(Descriptions!D80=\"All other giving/voluntary receipts\",WorkingR!AF79,0)","v":0},{"$f":"IF(Descriptions!D80=\"All other giving/voluntary receipts\",WorkingR!AG79,0)","v":0},{"$f":"IF(Descriptions!D80=\"All other giving/voluntary receipts\",WorkingR!AH79,0)","v":0},{"$f":"IF(Descriptions!D80=\"All other giving/voluntary receipts\",WorkingR!AI79,0)","v":0},0,{"$f":"'Prior Year Comparative'!W217","v":0},null,null,null,null,null,null,null,null,null,null,null,null,null,null,null,null,null,null,0,"0"]
[{"$f":"IF(Descriptions!D81=\"All other giving/voluntary receipts\",Descriptions!B81,0)","v":0},null,{"$f":"IF(Descriptions!D81=\"All other giving/voluntary receipts\",WorkingR!AF80,0)","v":0},{"$f":"IF(Descriptions!D81=\"All other giving/voluntary receipts\",WorkingR!AG80,0)","v":0},{"$f":"IF(Descriptions!D81=\"All other giving/voluntary receipts\",WorkingR!AH80,0)","v":0},{"$f":"IF(Descriptions!D81=\"All other giving/voluntary receipts\",WorkingR!AI80,0)","v":0},0,{"$f":"'Prior Year Comparative'!W218","v":0},null,null,null,null,null,null,null,null,null,null,null,null,null,null,null,null,null,null,0,"0"]
[{"$f":"IF(Descriptions!D82=\"All other giving/voluntary receipts\",Descriptions!B82,0)","v":0},null,{"$f":"IF(Descriptions!D82=\"All other giving/voluntary receipts\",WorkingR!AF81,0)","v":0},{"$f":"IF(Descriptions!D82=\"All other giving/voluntary receipts\",WorkingR!AG81,0)","v":0},{"$f":"IF(Descriptions!D82=\"All other giving/voluntary receipts\",WorkingR!AH81,0)","v":0},{"$f":"IF(Descriptions!D82=\"All other giving/voluntary receipts\",WorkingR!AI81,0)","v":0},0,{"$f":"'Prior Year Comparative'!W219","v":0},null,null,null,null,null,null,null,null,null,null,null,null,null,null,null,null,null,null,0,"0"]
[{"$f":"IF(Descriptions!D83=\"All other giving/voluntary receipts\",Descriptions!B83,0)","v":0},null,{"$f":"IF(Descriptions!D83=\"All other giving/voluntary receipts\",WorkingR!AF82,0)","v":0},{"$f":"IF(Descriptions!D83=\"All other giving/voluntary receipts\",WorkingR!AG82,0)","v":0},{"$f":"IF(Descriptions!D83=\"All other giving/voluntary receipts\",WorkingR!AH82,0)","v":0},{"$f":"IF(Descriptions!D83=\"All other giving/voluntary receipts\",WorkingR!AI82,0)","v":0},0,{"$f":"'Prior Year Comparative'!W220","v":0},null,null,null,null,null,null,null,null,null,null,null,null,null,null,null,null,null,null,0,"0"]
[{"$f":"IF(Descriptions!D84=\"All other giving/voluntary receipts\",Descriptions!B84,0)","v":0},null,{"$f":"IF(Descriptions!D84=\"All other giving/voluntary receipts\",WorkingR!AF83,0)","v":0},{"$f":"IF(Descriptions!D84=\"All other giving/voluntary receipts\",WorkingR!AG83,0)","v":0},{"$f":"IF(Descriptions!D84=\"All other giving/voluntary receipts\",WorkingR!AH83,0)","v":0},{"$f":"IF(Descriptions!D84=\"All other giving/voluntary receipts\",WorkingR!AI83,0)","v":0},0,{"$f":"'Prior Year Comparative'!W221","v":0},null,null,null,null,null,null,null,null,null,null,null,null,null,null,null,null,null,null,0,"0"]
[{"$f":"IF(Descriptions!D85=\"All other giving/voluntary receipts\",Descriptions!B85,0)","v":0},null,{"$f":"IF(Descriptions!D85=\"All other giving/voluntary receipts\",WorkingR!AF84,0)","v":0},{"$f":"IF(Descriptions!D85=\"All other giving/voluntary receipts\",WorkingR!AG84,0)","v":0},{"$f":"IF(Descriptions!D85=\"All other giving/voluntary receipts\",WorkingR!AH84,0)","v":0},{"$f":"IF(Descriptions!D85=\"All other giving/voluntary receipts\",WorkingR!AI84,0)","v":0},0,{"$f":"'Prior Year Comparative'!W222","v":0},null,null,null,null,null,null,null,null,null,null,null,null,null,null,null,null,null,null,0,"0"]
[{"$f":"IF(Descriptions!D86=\"All other giving/voluntary receipts\",Descriptions!B86,0)","v":0},null,{"$f":"IF(Descriptions!D86=\"All other giving/voluntary receipts\",WorkingR!AF85,0)","v":0},{"$f":"IF(Descriptions!D86=\"All other giving/voluntary receipts\",WorkingR!AG85,0)","v":0},{"$f":"IF(Descriptions!D86=\"All other giving/voluntary receipts\",WorkingR!AH85,0)","v":0},{"$f":"IF(Descriptions!D86=\"All other giving/voluntary receipts\",WorkingR!AI85,0)","v":0},0,{"$f":"'Prior Year Comparative'!W223","v":0},null,null,null,null,null,null,null,null,null,null,null,null,null,null,null,null,null,null,0,"0"]
[{"$f":"IF(Descriptions!D87=\"All other giving/voluntary receipts\",Descriptions!B87,0)","v":0},null,{"$f":"IF(Descriptions!D87=\"All other giving/voluntary receipts\",WorkingR!AF86,0)","v":0},{"$f":"IF(Descriptions!D87=\"All other giving/voluntary receipts\",WorkingR!AG86,0)","v":0},{"$f":"IF(Descriptions!D87=\"All other giving/voluntary receipts\",WorkingR!AH86,0)","v":0},{"$f":"IF(Descriptions!D87=\"All other giving/voluntary receipts\",WorkingR!AI86,0)","v":0},0,{"$f":"'Prior Year Comparative'!W224","v":0},null,null,null,null,null,null,null,null,null,null,null,null,null,null,null,null,null,null,0,"0"]
[{"$f":"IF(Descriptions!D88=\"All other giving/voluntary receipts\",Descriptions!B88,0)","v":0},null,{"$f":"IF(Descriptions!D88=\"All other giving/voluntary receipts\",WorkingR!AF87,0)","v":0},{"$f":"IF(Descriptions!D88=\"All other giving/voluntary receipts\",WorkingR!AG87,0)","v":0},{"$f":"IF(Descriptions!D88=\"All other giving/voluntary receipts\",WorkingR!AH87,0)","v":0},{"$f":"IF(Descriptions!D88=\"All other giving/voluntary receipts\",WorkingR!AI87,0)","v":0},0,{"$f":"'Prior Year Comparative'!W225","v":0},null,null,null,null,null,null,null,null,null,null,null,null,null,null,null,null,null,null,0,"0"]
[{"$f":"IF(Descriptions!D89=\"All other giving/voluntary receipts\",Descriptions!B89,0)","v":0},null,{"$f":"IF(Descriptions!D89=\"All other giving/voluntary receipts\",WorkingR!AF88,0)","v":0},{"$f":"IF(Descriptions!D89=\"All other giving/voluntary receipts\",WorkingR!AG88,0)","v":0},{"$f":"IF(Descriptions!D89=\"All other giving/voluntary receipts\",WorkingR!AH88,0)","v":0},{"$f":"IF(Descriptions!D89=\"All other giving/voluntary receipts\",WorkingR!AI88,0)","v":0},0,{"$f":"'Prior Year Comparative'!W226","v":0},null,null,null,null,null,null,null,null,null,null,null,null,null,null,null,null,null,null,{"$f":"SUM(C422:H422)","v":0},{"$f":"IF(AA422=0,\"0\",\"1\")","v":"0"}]
[{"$f":"IF(Descriptions!D90=\"All other giving/voluntary receipts\",Descriptions!B90,0)","v":0},null,{"$f":"IF(Descriptions!D90=\"All other giving/voluntary receipts\",WorkingR!AF89,0)","v":0},{"$f":"IF(Descriptions!D90=\"All other giving/voluntary receipts\",WorkingR!AG89,0)","v":0},{"$f":"IF(Descriptions!D90=\"All other giving/voluntary receipts\",WorkingR!AH89,0)","v":0},{"$f":"IF(Descriptions!D90=\"All other giving/voluntary receipts\",WorkingR!AI89,0)","v":0},0,{"$f":"'Prior Year Comparative'!W227","v":0},null,null,null,null,null,null,null,null,null,null,null,null,null,null,null,null,null,null,{"$f":"SUM(C423:H423)","v":0},"0"]
[{"$f":"IF(Descriptions!D91=\"All other giving/voluntary receipts\",Descriptions!B91,0)","v":0},null,{"$f":"IF(Descriptions!D91=\"All other giving/voluntary receipts\",WorkingR!AF90,0)","v":0},{"$f":"IF(Descriptions!D91=\"All other giving/voluntary receipts\",WorkingR!AG90,0)","v":0},{"$f":"IF(Descriptions!D91=\"All other giving/voluntary receipts\",WorkingR!AH90,0)","v":0},{"$f":"IF(Descriptions!D91=\"All other giving/voluntary receipts\",WorkingR!AI90,0)","v":0},0,{"$f":"'Prior Year Comparative'!W228","v":0},null,null,null,null,null,null,null,null,null,null,null,null,null,null,null,null,null,null,{"$f":"SUM(C424:H424)","v":0},"0"]
[{"$f":"IF(Descriptions!D92=\"All other giving/voluntary receipts\",Descriptions!B92,0)","v":0},null,{"$f":"IF(Descriptions!D92=\"All other giving/voluntary receipts\",WorkingR!AF91,0)","v":0},{"$f":"IF(Descriptions!D92=\"All other giving/voluntary receipts\",WorkingR!AG91,0)","v":0},{"$f":"IF(Descriptions!D92=\"All other giving/voluntary receipts\",WorkingR!AH91,0)","v":0},{"$f":"IF(Descriptions!D92=\"All other giving/voluntary receipts\",WorkingR!AI91,0)","v":0},0,{"$f":"'Prior Year Comparative'!W229","v":0},null,null,null,null,null,null,null,null,null,null,null,null,null,null,null,null,null,null,{"$f":"SUM(C425:H425)","v":0},"0"]
[null,null,null,null,null,null,null,null,null,null,null,null,null,null,null,null,null,null,null,null,null,null,null,null,null,null,{"$f":"AA427","v":0},"0"]
[null,null,{"$f":"SUM(C369:C425)","v":0},0,0,0,0,0,null,null,null,null,null,null,null,null,null,null,null,null,null,null,null,null,null,null,{"$f":"SUM(C427:H427)","v":0},"0"]
[null,null,null,null,null,null,null,null,null,null,null,null,null,null,null,null,null,null,null,null,null,null,null,null,null,null,{"$f":"SUM(AA430:AA485)","v":0},"0"]
["ACTIVITIES FOR GENERATING FUNDS",null,null,null,null,null,null,null,null,null,null,null,null,null,null,null,null,null,null,null,null,null,null,null,null,null,{"$f":"AA428","v":0},"0"]
["Bookstall",null,{"$f":"WorkingR!AF6","v":0},{"$f":"WorkingR!AG6","v":0},{"$f":"WorkingR!AH6","v":0},{"$f":"WorkingR!AI6","v":0},{"$f":"SUM(C430:F430)","v":0},{"$f":"'Prior Year Comparative'!W232","v":0},null,null,null,null,null,null,null,null,null,null,null,null,null,null,null,null,null,null,{"$f":"SUM(C430:H430)","v":0},"0"]
["Magazine",null,{"$f":"WorkingR!AF24","v":0},{"$f":"WorkingR!AG24","v":0},{"$f":"WorkingR!AH24","v":0},{"$f":"WorkingR!AI24","v":0},0,{"$f":"'Prior Year Comparative'!W233","v":0},null,null,null,null,null,null,null,null,null,null,null,null,null,null,null,null,null,null,0,"0"]
["Fete",null,{"$f":"WorkingR!AF15","v":0},{"$f":"WorkingR!AG15","v":0},{"$f":"WorkingR!AH15","v":0},{"$f":"WorkingR!AI15","v":0},0,{"$f":"'Prior Year Comparative'!W234","v":0},null,null,null,null,null,null,null,null,null,null,null,null,null,null,null,null,null,null,0,"0"]
["Churches Together Bike Ride",null,{"$f":"WorkingR!AF9","v":0},{"$f":"WorkingR!AG9","v":0},{"$f":"WorkingR!AH9","v":0},{"$f":"WorkingR!AI9","v":0},0,{"$f":"'Prior Year Comparative'!W235","v":0},null,null,null,null,null,null,null,null,null,null,null,null,null,null,null,null,null,null,0,"0"]
["Sales",null,{"$f":"WorkingR!AF31","v":0},{"$f":"WorkingR!AG31","v":0},{"$f":"WorkingR!AH31","v":0},{"$f":"WorkingR!AI31","v":0},0,{"$f":"'Prior Year Comparative'!W236","v":0},null,null,null,null,null,null,null,null,null,null,null,null,null,null,null,null,null,null,0,"0"]
["Other Fundraising",null,{"$f":"WorkingR!AF26","v":0},{"$f":"WorkingR!AG26","v":0},{"$f":"WorkingR!AH26","v":0},{"$f":"WorkingR!AI26","v":0},0,{"$f":"'Prior Year Comparative'!W237","v":0},null,null,null,null,null,null,null,null,null,null,null,null,null,null,null,null,null,null,0,"0"]
[{"$f":"IF(Descriptions!D43=\"Activites for generating funds\",Descriptions!B43,0)","v":0},null,{"$f":"IF(Descriptions!D43=\"Activites for generating funds\",WorkingR!AF42,0)","v":0},{"$f":"IF(Descriptions!D43=\"Activites for generating funds\",WorkingR!AG42,0)","v":0},{"$f":"IF(Descriptions!D43=\"Activites for generating funds\",WorkingR!AH42,0)","v":0},{"$f":"IF(Descriptions!D43=\"Activites for generating funds\",WorkingR!AI42,0)","v":0},0,{"$f":"'Prior Year Comparative'!W238","v":0},null,null,null,null,null,null,null,null,null,null,null,null,null,null,null,null,null,null,{"$f":"SUM(C436:H436)","v":0},{"$f":"IF(AA436=0,\"0\",\"1\")","v":"0"}]
[{"$f":"IF(Descriptions!D44=\"Activites for generating funds\",Descriptions!B44,0)","v":0},null,{"$f":"IF(Descriptions!D44=\"Activites for generating funds\",WorkingR!AF43,0)","v":0},{"$f":"IF(Descriptions!D44=\"Activites for generating funds\",WorkingR!AG43,0)","v":0},{"$f":"IF(Descriptions!D44=\"Activites for generating funds\",WorkingR!AH43,0)","v":0},{"$f":"IF(Descriptions!D44=\"Activites for generating funds\",WorkingR!AI43,0)","v":0},{"$f":"SUM(C437:F437)","v":0},{"$f":"'Prior Year Comparative'!W239","v":0},null,null,null,null,null,null,null,null,null,null,null,null,null,null,null,null,null,null,0,"0"]
[{"$f":"IF(Descriptions!D45=\"Activites for generating funds\",Descriptions!B45,0)","v":0},null,{"$f":"IF(Descriptions!D45=\"Activites for generating funds\",WorkingR!AF44,0)","v":0},{"$f":"IF(Descriptions!D45=\"Activites for generating funds\",WorkingR!AG44,0)","v":0},{"$f":"IF(Descriptions!D45=\"Activites for generating funds\",WorkingR!AH44,0)","v":0},{"$f":"IF(Descriptions!D45=\"Activites for generating funds\",WorkingR!AI44,0)","v":0},0,{"$f":"'Prior Year Comparative'!W240","v":0},null,null,null,null,null,null,null,null,null,null,null,null,null,null,null,null,null,null,0,"0"]
[{"$f":"IF(Descriptions!D46=\"Activites for generating funds\",Descriptions!B46,0)","v":0},null,{"$f":"IF(Descriptions!D46=\"Activites for generating funds\",WorkingR!AF45,0)","v":0},{"$f":"IF(Descriptions!D46=\"Activites for generating funds\",WorkingR!AG45,0)","v":0},{"$f":"IF(Descriptions!D46=\"Activites for generating funds\",WorkingR!AH45,0)","v":0},{"$f":"IF(Descriptions!D46=\"Activites for generating funds\",WorkingR!AI45,0)","v":0},0,{"$f":"'Prior Year Comparative'!W241","v":0},null,null,null,null,null,null,null,null,null,null,null,null,null,null,null,null,null,null,0,"0"]
[{"$f":"IF(Descriptions!D47=\"Activites for generating funds\",Descriptions!B47,0)","v":0},null,{"$f":"IF(Descriptions!D47=\"Activites for generating funds\",WorkingR!AF46,0)","v":0},{"$f":"IF(Descriptions!D47=\"Activites for generating funds\",WorkingR!AG46,0)","v":0},{"$f":"IF(Descriptions!D47=\"Activites for generating funds\",WorkingR!AH46,0)","v":0},{"$f":"IF(Descriptions!D47=\"Activites for generating funds\",WorkingR!AI46,0)","v":0},0,{"$f":"'Prior Year Comparative'!W242","v":0},null,null,null,null,null,null,null,null,null,null,null,null,null,null,null,null,null,null,0,"0"]
[{"$f":"IF(Descriptions!D48=\"Activites for generating funds\",Descriptions!B48,0)","v":0},null,{"$f":"IF(Descriptions!D48=\"Activites for generating funds\",WorkingR!AF47,0)","v":0},{"$f":"IF(Descriptions!D48=\"Activites for generating funds\",WorkingR!AG47,0)","v":0},{"$f":"IF(Descriptions!D48=\"Activites for generating funds\",WorkingR!AH47,0)","v":0},{"$f":"IF(Descriptions!D48=\"Activites for generating funds\",WorkingR!AI47,0)","v":0},0,{"$f":"'Prior Year Comparative'!W243","v":0},null,null,null,null,null,null,null,null,null,null,null,null,null,null,null,null,null,null,0,"0"]
[{"$f":"IF(Descriptions!D49=\"Activites for generating funds\",Descriptions!B49,0)","v":0},null,{"$f":"IF(Descriptions!D49=\"Activites for generating funds\",WorkingR!AF48,0)","v":0},{"$f":"IF(Descriptions!D49=\"Activites for generating funds\",WorkingR!AG48,0)","v":0},{"$f":"IF(Descriptions!D49=\"Activites for generating funds\",WorkingR!AH48,0)","v":0},{"$f":"IF(Descriptions!D49=\"Activites for generating funds\",WorkingR!AI48,0)","v":0},0,{"$f":"'Prior Year Comparative'!W244","v":0},null,null,null,null,null,null,null,null,null,null,null,null,null,null,null,null,null,null,0,"0"]
[{"$f":"IF(Descriptions!D50=\"Activites for generating funds\",Descriptions!B50,0)","v":0},null,{"$f":"IF(Descriptions!D50=\"Activites for generating funds\",WorkingR!AF49,0)","v":0},{"$f":"IF(Descriptions!D50=\"Activites for generating funds\",WorkingR!AG49,0)","v":0},{"$f":"IF(Descriptions!D50=\"Activites for generating funds\",WorkingR!AH49,0)","v":0},{"$f":"IF(Descriptions!D50=\"Activites for generating funds\",WorkingR!AI49,0)","v":0},0,{"$f":"'Prior Year Comparative'!W245","v":0},null,null,null,null,null,null,null,null,null,null,null,null,null,null,null,null,null,null,0,"0"]
[{"$f":"IF(Descriptions!D51=\"Activites for generating funds\",Descriptions!B51,0)","v":0},null,{"$f":"IF(Descriptions!D51=\"Activites for generating funds\",WorkingR!AF50,0)","v":0},{"$f":"IF(Descriptions!D51=\"Activites for generating funds\",WorkingR!AG50,0)","v":0},{"$f":"IF(Descriptions!D51=\"Activites for generating funds\",WorkingR!AH50,0)","v":0},{"$f":"IF(Descriptions!D51=\"Activites for generating funds\",WorkingR!AI50,0)","v":0},0,{"$f":"'Prior Year Comparative'!W246","v":0},null,null,null,null,null,null,null,null,null,null,null,null,null,null,null,null,null,null,0,"0"]
[{"$f":"IF(Descriptions!D52=\"Activites for generating funds\",Descriptions!B52,0)","v":0},null,{"$f":"IF(Descriptions!D52=\"Activites for generating funds\",WorkingR!AF51,0)","v":0},{"$f":"IF(Descriptions!D52=\"Activites for generating funds\",WorkingR!AG51,0)","v":0},{"$f":"IF(Descriptions!D52=\"Activites for generating funds\",WorkingR!AH51,0)","v":0},{"$f":"IF(Descriptions!D52=\"Activites for generating funds\",WorkingR!AI51,0)","v":0},0,{"$f":"'Prior Year Comparative'!W247","v":0},null,null,null,null,null,null,null,null,null,null,null,null,null,null,null,null,null,null,0,"0"]
[{"$f":"IF(Descriptions!D53=\"Activites for generating funds\",Descriptions!B53,0)","v":0},null,{"$f":"IF(Descriptions!D53=\"Activites for generating funds\",WorkingR!AF52,0)","v":0},{"$f":"IF(Descriptions!D53=\"Activites for generating funds\",WorkingR!AG52,0)","v":0},{"$f":"IF(Descriptions!D53=\"Activites for generating funds\",WorkingR!AH52,0)","v":0},{"$f":"IF(Descriptions!D53=\"Activites for generating funds\",WorkingR!AI52,0)","v":0},0,{"$f":"'Prior Year Comparative'!W248","v":0},null,null,null,null,null,null,null,null,null,null,null,null,null,null,null,null,null,null,0,"0"]
[{"$f":"IF(Descriptions!D54=\"Activites for generating funds\",Descriptions!B54,0)","v":0},null,{"$f":"IF(Descriptions!D54=\"Activites for generating funds\",WorkingR!AF53,0)","v":0},{"$f":"IF(Descriptions!D54=\"Activites for generating funds\",WorkingR!AG53,0)","v":0},{"$f":"IF(Descriptions!D54=\"Activites for generating funds\",WorkingR!AH53,0)","v":0},{"$f":"IF(Descriptions!D54=\"Activites for generating funds\",WorkingR!AI53,0)","v":0},0,{"$f":"'Prior Year Comparative'!W249","v":0},null,null,null,null,null,null,null,null,null,null,null,null,null,null,null,null,null,null,0,"0"]
[{"$f":"IF(Descriptions!D55=\"Activites for generating funds\",Descriptions!B55,0)","v":0},null,{"$f":"IF(Descriptions!D55=\"Activites for generating funds\",WorkingR!AF54,0)","v":0},{"$f":"IF(Descriptions!D55=\"Activites for generating funds\",WorkingR!AG54,0)","v":0},{"$f":"IF(Descriptions!D55=\"Activites for generating funds\",WorkingR!AH54,0)","v":0},{"$f":"IF(Descriptions!D55=\"Activites for generating funds\",WorkingR!AI54,0)","v":0},0,{"$f":"'Prior Year Comparative'!W250","v":0},null,null,null,null,null,null,null,null,null,null,null,null,null,null,null,null,null,null,0,"0"]
[{"$f":"IF(Descriptions!D56=\"Activites for generating funds\",Descriptions!B56,0)","v":0},null,{"$f":"IF(Descriptions!D56=\"Activites for generating funds\",WorkingR!AF55,0)","v":0},{"$f":"IF(Descriptions!D56=\"Activites for generating funds\",WorkingR!AG55,0)","v":0},{"$f":"IF(Descriptions!D56=\"Activites for generating funds\",WorkingR!AH55,0)","v":0},{"$f":"IF(Descriptions!D56=\"Activites for generating funds\",WorkingR!AI55,0)","v":0},0,{"$f":"'Prior Year Comparative'!W251","v":0},null,null,null,null,null,null,null,null,null,null,null,null,null,null,null,null,null,null,0,"0"]
[{"$f":"IF(Descriptions!D57=\"Activites for generating funds\",Descriptions!B57,0)","v":0},null,{"$f":"IF(Descriptions!D57=\"Activites for generating funds\",WorkingR!AF56,0)","v":0},{"$f":"IF(Descriptions!D57=\"Activites for generating funds\",WorkingR!AG56,0)","v":0},{"$f":"IF(Descriptions!D57=\"Activites for generating funds\",WorkingR!AH56,0)","v":0},{"$f":"IF(Descriptions!D57=\"Activites for generating funds\",WorkingR!AI56,0)","v":0},0,{"$f":"'Prior Year Comparative'!W252","v":0},null,null,null,null,null,null,null,null,null,null,null,null,null,null,null,null,null,null,0,"0"]
[{"$f":"IF(Descriptions!D58=\"Activites for generating funds\",Descriptions!B58,0)","v":0},null,{"$f":"IF(Descriptions!D58=\"Activites for generating funds\",WorkingR!AF57,0)","v":0},{"$f":"IF(Descriptions!D58=\"Activites for generating funds\",WorkingR!AG57,0)","v":0},{"$f":"IF(Descriptions!D58=\"Activites for generating funds\",WorkingR!AH57,0)","v":0},{"$f":"IF(Descriptions!D58=\"Activites for generating funds\",WorkingR!AI57,0)","v":0},0,{"$f":"'Prior Year Comparative'!W253","v":0},null,null,null,null,null,null,null,null,null,null,null,null,null,null,null,null,null,null,0,"0"]
[{"$f":"IF(Descriptions!D59=\"Activites for generating funds\",Descriptions!B59,0)","v":0},null,{"$f":"IF(Descriptions!D59=\"Activites for generating funds\",WorkingR!AF58,0)","v":0},{"$f":"IF(Descriptions!D59=\"Activites for generating funds\",WorkingR!AG58,0)","v":0},{"$f":"IF(Descriptions!D59=\"Activites for generating funds\",WorkingR!AH58,0)","v":0},{"$f":"IF(Descriptions!D59=\"Activites for generating funds\",WorkingR!AI58,0)","v":0},0,{"$f":"'Prior Year Comparative'!W254","v":0},null,null,null,null,null,null,null,null,null,null,null,null,null,null,null,null,null,null,0,"0"]
[{"$f":"IF(Descriptions!D60=\"Activites for generating funds\",Descriptions!B60,0)","v":0},null,{"$f":"IF(Descriptions!D60=\"Activites for generating funds\",WorkingR!AF59,0)","v":0},{"$f":"IF(Descriptions!D60=\"Activites for generating funds\",WorkingR!AG59,0)","v":0},{"$f":"IF(Descriptions!D60=\"Activites for generating funds\",WorkingR!AH59,0)","v":0},{"$f":"IF(Descriptions!D60=\"Activites for generating funds\",WorkingR!AI59,0)","v":0},0,{"$f":"'Prior Year Comparative'!W255","v":0},null,null,null,null,null,null,null,null,null,null,null,null,null,null,null,null,null,null,0,"0"]
[{"$f":"IF(Descriptions!D61=\"Activites for generating funds\",Descriptions!B61,0)","v":0},null,{"$f":"IF(Descriptions!D61=\"Activites for generating funds\",WorkingR!AF60,0)","v":0},{"$f":"IF(Descriptions!D61=\"Activites for generating funds\",WorkingR!AG60,0)","v":0},{"$f":"IF(Descriptions!D61=\"Activites for generating funds\",WorkingR!AH60,0)","v":0},{"$f":"IF(Descriptions!D61=\"Activites for generating funds\",WorkingR!AI60,0)","v":0},0,{"$f":"'Prior Year Comparative'!W256","v":0},null,null,null,null,null,null,null,null,null,null,null,null,null,null,null,null,null,null,0,"0"]
[{"$f":"IF(Descriptions!D62=\"Activites for generating funds\",Descriptions!B62,0)","v":0},null,{"$f":"IF(Descriptions!D62=\"Activites for generating funds\",WorkingR!AF61,0)","v":0},{"$f":"IF(Descriptions!D62=\"Activites for generating funds\",WorkingR!AG61,0)","v":0},{"$f":"IF(Descriptions!D62=\"Activites for generating funds\",WorkingR!AH61,0)","v":0},{"$f":"IF(Descriptions!D62=\"Activites for generating funds\",WorkingR!AI61,0)","v":0},0,{"$f":"'Prior Year Comparative'!W257","v":0},null,null,null,null,null,null,null,null,null,null,null,null,null,null,null,null,null,null,0,"0"]
[{"$f":"IF(Descriptions!D63=\"Activites for generating funds\",Descriptions!B63,0)","v":0},null,{"$f":"IF(Descriptions!D63=\"Activites for generating funds\",WorkingR!AF62,0)","v":0},{"$f":"IF(Descriptions!D63=\"Activites for generating funds\",WorkingR!AG62,0)","v":0},{"$f":"IF(Descriptions!D63=\"Activites for generating funds\",WorkingR!AH62,0)","v":0},{"$f":"IF(Descriptions!D63=\"Activites for generating funds\",WorkingR!AI62,0)","v":0},0,{"$f":"'Prior Year Comparative'!W258","v":0},null,null,null,null,null,null,null,null,null,null,null,null,null,null,null,null,null,null,0,"0"]
[{"$f":"IF(Descriptions!D64=\"Activites for generating funds\",Descriptions!B64,0)","v":0},null,{"$f":"IF(Descriptions!D64=\"Activites for generating funds\",WorkingR!AF63,0)","v":0},{"$f":"IF(Descriptions!D64=\"Activites for generating funds\",WorkingR!AG63,0)","v":0},{"$f":"IF(Descriptions!D64=\"Activites for generating funds\",WorkingR!AH63,0)","v":0},{"$f":"IF(Descriptions!D64=\"Activites for generating funds\",WorkingR!AI63,0)","v":0},0,{"$f":"'Prior Year Comparative'!W259","v":0},null,null,null,null,null,null,null,null,null,null,null,null,null,null,null,null,null,null,0,"0"]
[{"$f":"IF(Descriptions!D65=\"Activites for generating funds\",Descriptions!B65,0)","v":0},null,{"$f":"IF(Descriptions!D65=\"Activites for generating funds\",WorkingR!AF64,0)","v":0},{"$f":"IF(Descriptions!D65=\"Activites for generating funds\",WorkingR!AG64,0)","v":0},{"$f":"IF(Descriptions!D65=\"Activites for generating funds\",WorkingR!AH64,0)","v":0},{"$f":"IF(Descriptions!D65=\"Activites for generating funds\",WorkingR!AI64,0)","v":0},0,{"$f":"'Prior Year Comparative'!W260","v":0},null,null,null,null,null,null,null,null,null,null,null,null,null,null,null,null,null,null,0,"0"]
[{"$f":"IF(Descriptions!D66=\"Activites for generating funds\",Descriptions!B66,0)","v":0},null,{"$f":"IF(Descriptions!D66=\"Activites for generating funds\",WorkingR!AF65,0)","v":0},{"$f":"IF(Descriptions!D66=\"Activites for generating funds\",WorkingR!AG65,0)","v":0},{"$f":"IF(Descriptions!D66=\"Activites for generating funds\",WorkingR!AH65,0)","v":0},{"$f":"IF(Descriptions!D66=\"Activites for generating funds\",WorkingR!AI65,0)","v":0},0,{"$f":"'Prior Year Comparative'!W261","v":0},null,null,null,null,null,null,null,null,null,null,null,null,null,null,null,null,null,null,0,"0"]
[{"$f":"IF(Descriptions!D67=\"Activites for generating funds\",Descriptions!B67,0)","v":0},null,{"$f":"IF(Descriptions!D67=\"Activites for generating funds\",WorkingR!AF66,0)","v":0},{"$f":"IF(Descriptions!D67=\"Activites for generating funds\",WorkingR!AG66,0)","v":0},{"$f":"IF(Descriptions!D67=\"Activites for generating funds\",WorkingR!AH66,0)","v":0},{"$f":"IF(Descriptions!D67=\"Activites for generating funds\",WorkingR!AI66,0)","v":0},0,{"$f":"'Prior Year Comparative'!W262","v":0},null,null,null,null,null,null,null,null,null,null,null,null,null,null,null,null,null,null,0,"0"]
[{"$f":"IF(Descriptions!D68=\"Activites for generating funds\",Descriptions!B68,0)","v":0},null,{"$f":"IF(Descriptions!D68=\"Activites for generating funds\",WorkingR!AF67,0)","v":0},{"$f":"IF(Descriptions!D68=\"Activites for generating funds\",WorkingR!AG67,0)","v":0},{"$f":"IF(Descriptions!D68=\"Activites for generating funds\",WorkingR!AH67,0)","v":0},{"$f":"IF(Descriptions!D68=\"Activites for generating funds\",WorkingR!AI67,0)","v":0},0,{"$f":"'Prior Year Comparative'!W263","v":0},null,null,null,null,null,null,null,null,null,null,null,null,null,null,null,null,null,null,0,"0"]
[{"$f":"IF(Descriptions!D69=\"Activites for generating funds\",Descriptions!B69,0)","v":0},null,{"$f":"IF(Descriptions!D69=\"Activites for generating funds\",WorkingR!AF68,0)","v":0},{"$f":"IF(Descriptions!D69=\"Activites for generating funds\",WorkingR!AG68,0)","v":0},{"$f":"IF(Descriptions!D69=\"Activites for generating funds\",WorkingR!AH68,0)","v":0},{"$f":"IF(Descriptions!D69=\"Activites for generating funds\",WorkingR!AI68,0)","v":0},0,{"$f":"'Prior Year Comparative'!W264","v":0},null,null,null,null,null,null,null,null,null,null,null,null,null,null,null,null,null,null,0,"0"]
[{"$f":"IF(Descriptions!D70=\"Activites for generating funds\",Descriptions!B70,0)","v":0},null,{"$f":"IF(Descriptions!D70=\"Activites for generating funds\",WorkingR!AF69,0)","v":0},{"$f":"IF(Descriptions!D70=\"Activites for generating funds\",WorkingR!AG69,0)","v":0},{"$f":"IF(Descriptions!D70=\"Activites for generating funds\",WorkingR!AH69,0)","v":0},{"$f":"IF(Descriptions!D70=\"Activites for generating funds\",WorkingR!AI69,0)","v":0},0,{"$f":"'Prior Year Comparative'!W265","v":0},null,null,null,null,null,null,null,null,null,null,null,null,null,null,null,null,null,null,0,"0"]
[{"$f":"IF(Descriptions!D71=\"Activites for generating funds\",Descriptions!B71,0)","v":0},null,{"$f":"IF(Descriptions!D71=\"Activites for generating funds\",WorkingR!AF70,0)","v":0},{"$f":"IF(Descriptions!D71=\"Activites for generating funds\",WorkingR!AG70,0)","v":0},{"$f":"IF(Descriptions!D71=\"Activites for generating funds\",WorkingR!AH70,0)","v":0},{"$f":"IF(Descriptions!D71=\"Activites for generating funds\",WorkingR!AI70,0)","v":0},0,{"$f":"'Prior Year Comparative'!W266","v":0},null,null,null,null,null,null,null,null,null,null,null,null,null,null,null,null,null,null,0,"0"]
[{"$f":"IF(Descriptions!D72=\"Activites for generating funds\",Descriptions!B72,0)","v":0},null,{"$f":"IF(Descriptions!D72=\"Activites for generating funds\",WorkingR!AF71,0)","v":0},{"$f":"IF(Descriptions!D72=\"Activites for generating funds\",WorkingR!AG71,0)","v":0},{"$f":"IF(Descriptions!D72=\"Activites for generating funds\",WorkingR!AH71,0)","v":0},{"$f":"IF(Descriptions!D72=\"Activites for generating funds\",WorkingR!AI71,0)","v":0},0,{"$f":"'Prior Year Comparative'!W267","v":0},null,null,null,null,null,null,null,null,null,null,null,null,null,null,null,null,null,null,0,"0"]
[{"$f":"IF(Descriptions!D73=\"Activites for generating funds\",Descriptions!B73,0)","v":0},null,{"$f":"IF(Descriptions!D73=\"Activites for generating funds\",WorkingR!AF72,0)","v":0},{"$f":"IF(Descriptions!D73=\"Activites for generating funds\",WorkingR!AG72,0)","v":0},{"$f":"IF(Descriptions!D73=\"Activites for generating funds\",WorkingR!AH72,0)","v":0},{"$f":"IF(Descriptions!D73=\"Activites for generating funds\",WorkingR!AI72,0)","v":0},0,{"$f":"'Prior Year Comparative'!W268","v":0},null,null,null,null,null,null,null,null,null,null,null,null,null,null,null,null,null,null,0,"0"]
[{"$f":"IF(Descriptions!D74=\"Activites for generating funds\",Descriptions!B74,0)","v":0},null,{"$f":"IF(Descriptions!D74=\"Activites for generating funds\",WorkingR!AF73,0)","v":0},{"$f":"IF(Descriptions!D74=\"Activites for generating funds\",WorkingR!AG73,0)","v":0},{"$f":"IF(Descriptions!D74=\"Activites for generating funds\",WorkingR!AH73,0)","v":0},{"$f":"IF(Descriptions!D74=\"Activites for generating funds\",WorkingR!AI73,0)","v":0},0,{"$f":"'Prior Year Comparative'!W269","v":0},null,null,null,null,null,null,null,null,null,null,null,null,null,null,null,null,null,null,0,"0"]
[{"$f":"IF(Descriptions!D75=\"Activites for generating funds\",Descriptions!B75,0)","v":0},null,{"$f":"IF(Descriptions!D75=\"Activites for generating funds\",WorkingR!AF74,0)","v":0},{"$f":"IF(Descriptions!D75=\"Activites for generating funds\",WorkingR!AG74,0)","v":0},{"$f":"IF(Descriptions!D75=\"Activites for generating funds\",WorkingR!AH74,0)","v":0},{"$f":"IF(Descriptions!D75=\"Activites for generating funds\",WorkingR!AI74,0)","v":0},0,{"$f":"'Prior Year Comparative'!W270","v":0},null,null,null,null,null,null,null,null,null,null,null,null,null,null,null,null,null,null,0,"0"]
[{"$f":"IF(Descriptions!D76=\"Activites for generating funds\",Descriptions!B76,0)","v":0},null,{"$f":"IF(Descriptions!D76=\"Activites for generating funds\",WorkingR!AF75,0)","v":0},{"$f":"IF(Descriptions!D76=\"Activites for generating funds\",WorkingR!AG75,0)","v":0},{"$f":"IF(Descriptions!D76=\"Activites for generating funds\",WorkingR!AH75,0)","v":0},{"$f":"IF(Descriptions!D76=\"Activites for generating funds\",WorkingR!AI75,0)","v":0},0,{"$f":"'Prior Year Comparative'!W271","v":0},null,null,null,null,null,null,null,null,null,null,null,null,null,null,null,null,null,null,0,"0"]
[{"$f":"IF(Descriptions!D77=\"Activites for generating funds\",Descriptions!B77,0)","v":0},null,{"$f":"IF(Descriptions!D77=\"Activites for generating funds\",WorkingR!AF76,0)","v":0},{"$f":"IF(Descriptions!D77=\"Activites for generating funds\",WorkingR!AG76,0)","v":0},{"$f":"IF(Descriptions!D77=\"Activites for generating funds\",WorkingR!AH76,0)","v":0},{"$f":"IF(Descriptions!D77=\"Activites for generating funds\",WorkingR!AI76,0)","v":0},0,{"$f":"'Prior Year Comparative'!W272","v":0},null,null,null,null,null,null,null,null,null,null,null,null,null,null,null,null,null,null,0,"0"]
[{"$f":"IF(Descriptions!D78=\"Activites for generating funds\",Descriptions!B78,0)","v":0},null,{"$f":"IF(Descriptions!D78=\"Activites for generating funds\",WorkingR!AF77,0)","v":0},{"$f":"IF(Descriptions!D78=\"Activites for generating funds\",WorkingR!AG77,0)","v":0},{"$f":"IF(Descriptions!D78=\"Activites for generating funds\",WorkingR!AH77,0)","v":0},{"$f":"IF(Descriptions!D78=\"Activites for generating funds\",WorkingR!AI77,0)","v":0},0,{"$f":"'Prior Year Comparative'!W273","v":0},null,null,null,null,null,null,null,null,null,null,null,null,null,null,null,null,null,null,0,"0"]
[{"$f":"IF(Descriptions!D79=\"Activites for generating funds\",Descriptions!B79,0)","v":0},null,{"$f":"IF(Descriptions!D79=\"Activites for generating funds\",WorkingR!AF78,0)","v":0},{"$f":"IF(Descriptions!D79=\"Activites for generating funds\",WorkingR!AG78,0)","v":0},{"$f":"IF(Descriptions!D79=\"Activites for generating funds\",WorkingR!AH78,0)","v":0},{"$f":"IF(Descriptions!D79=\"Activites for generating funds\",WorkingR!AI78,0)","v":0},0,{"$f":"'Prior Year Comparative'!W274","v":0},null,null,null,null,null,null,null,null,null,null,null,null,null,null,null,null,null,null,0,"0"]
[{"$f":"IF(Descriptions!D80=\"Activites for generating funds\",Descriptions!B80,0)","v":0},null,{"$f":"IF(Descriptions!D80=\"Activites for generating funds\",WorkingR!AF79,0)","v":0},{"$f":"IF(Descriptions!D80=\"Activites for generating funds\",WorkingR!AG79,0)","v":0},{"$f":"IF(Descriptions!D80=\"Activites for generating funds\",WorkingR!AH79,0)","v":0},{"$f":"IF(Descriptions!D80=\"Activites for generating funds\",WorkingR!AI79,0)","v":0},0,{"$f":"'Prior Year Comparative'!W275","v":0},null,null,null,null,null,null,null,null,null,null,null,null,null,null,null,null,null,null,0,"0"]
[{"$f":"IF(Descriptions!D81=\"Activites for generating funds\",Descriptions!B81,0)","v":0},null,{"$f":"IF(Descriptions!D81=\"Activites for generating funds\",WorkingR!AF80,0)","v":0},{"$f":"IF(Descriptions!D81=\"Activites for generating funds\",WorkingR!AG80,0)","v":0},{"$f":"IF(Descriptions!D81=\"Activites for generating funds\",WorkingR!AH80,0)","v":0},{"$f":"IF(Descriptions!D81=\"Activites for generating funds\",WorkingR!AI80,0)","v":0},0,{"$f":"'Prior Year Comparative'!W276","v":0},null,null,null,null,null,null,null,null,null,null,null,null,null,null,null,null,null,null,0,"0"]
[{"$f":"IF(Descriptions!D82=\"Activites for generating funds\",Descriptions!B82,0)","v":0},null,{"$f":"IF(Descriptions!D82=\"Activites for generating funds\",WorkingR!AF81,0)","v":0},{"$f":"IF(Descriptions!D82=\"Activites for generating funds\",WorkingR!AG81,0)","v":0},{"$f":"IF(Descriptions!D82=\"Activites for generating funds\",WorkingR!AH81,0)","v":0},{"$f":"IF(Descriptions!D82=\"Activites for generating funds\",WorkingR!AI81,0)","v":0},0,{"$f":"'Prior Year Comparative'!W277","v":0},null,null,null,null,null,null,null,null,null,null,null,null,null,null,null,null,null,null,0,"0"]
[{"$f":"IF(Descriptions!D83=\"Activites for generating funds\",Descriptions!B83,0)","v":0},null,{"$f":"IF(Descriptions!D83=\"Activites for generating funds\",WorkingR!AF82,0)","v":0},{"$f":"IF(Descriptions!D83=\"Activites for generating funds\",WorkingR!AG82,0)","v":0},{"$f":"IF(Descriptions!D83=\"Activites for generating funds\",WorkingR!AH82,0)","v":0},{"$f":"IF(Descriptions!D83=\"Activites for generating funds\",WorkingR!AI82,0)","v":0},0,{"$f":"'Prior Year Comparative'!W278","v":0},null,null,null,null,null,null,null,null,null,null,null,null,null,null,null,null,null,null,0,"0"]
[{"$f":"IF(Descriptions!D84=\"Activites for generating funds\",Descriptions!B84,0)","v":0},null,{"$f":"IF(Descriptions!D84=\"Activites for generating funds\",WorkingR!AF83,0)","v":0},{"$f":"IF(Descriptions!D84=\"Activites for generating funds\",WorkingR!AG83,0)","v":0},{"$f":"IF(Descriptions!D84=\"Activites for generating funds\",WorkingR!AH83,0)","v":0},{"$f":"IF(Descriptions!D84=\"Activites for generating funds\",WorkingR!AI83,0)","v":0},0,{"$f":"'Prior Year Comparative'!W279","v":0},null,null,null,null,null,null,null,null,null,null,null,null,null,null,null,null,null,null,0,"0"]
[{"$f":"IF(Descriptions!D85=\"Activites for generating funds\",Descriptions!B85,0)","v":0},null,{"$f":"IF(Descriptions!D85=\"Activites for generating funds\",WorkingR!AF84,0)","v":0},{"$f":"IF(Descriptions!D85=\"Activites for generating funds\",WorkingR!AG84,0)","v":0},{"$f":"IF(Descriptions!D85=\"Activites for generating funds\",WorkingR!AH84,0)","v":0},{"$f":"IF(Descriptions!D85=\"Activites for generating funds\",WorkingR!AI84,0)","v":0},0,{"$f":"'Prior Year Comparative'!W280","v":0},null,null,null,null,null,null,null,null,null,null,null,null,null,null,null,null,null,null,0,"0"]
[{"$f":"IF(Descriptions!D86=\"Activites for generating funds\",Descriptions!B86,0)","v":0},null,{"$f":"IF(Descriptions!D86=\"Activites for generating funds\",WorkingR!AF85,0)","v":0},{"$f":"IF(Descriptions!D86=\"Activites for generating funds\",WorkingR!AG85,0)","v":0},{"$f":"IF(Descriptions!D86=\"Activites for generating funds\",WorkingR!AH85,0)","v":0},{"$f":"IF(Descriptions!D86=\"Activites for generating funds\",WorkingR!AI85,0)","v":0},0,{"$f":"'Prior Year Comparative'!W281","v":0},null,null,null,null,null,null,null,null,null,null,null,null,null,null,null,null,null,null,0,"0"]
[{"$f":"IF(Descriptions!D87=\"Activites for generating funds\",Descriptions!B87,0)","v":0},null,{"$f":"IF(Descriptions!D87=\"Activites for generating funds\",WorkingR!AF86,0)","v":0},{"$f":"IF(Descriptions!D87=\"Activites for generating funds\",WorkingR!AG86,0)","v":0},{"$f":"IF(Descriptions!D87=\"Activites for generating funds\",WorkingR!AH86,0)","v":0},{"$f":"IF(Descriptions!D87=\"Activites for generating funds\",WorkingR!AI86,0)","v":0},0,{"$f":"'Prior Year Comparative'!W282","v":0},null,null,null,null,null,null,null,null,null,null,null,null,null,null,null,null,null,null,0,"0"]
[{"$f":"IF(Descriptions!D88=\"Activites for generating funds\",Descriptions!B88,0)","v":0},null,{"$f":"IF(Descriptions!D88=\"Activites for generating funds\",WorkingR!AF87,0)","v":0},{"$f":"IF(Descriptions!D88=\"Activites for generating funds\",WorkingR!AG87,0)","v":0},{"$f":"IF(Descriptions!D88=\"Activites for generating funds\",WorkingR!AH87,0)","v":0},{"$f":"IF(Descriptions!D88=\"Activites for generating funds\",WorkingR!AI87,0)","v":0},0,{"$f":"'Prior Year Comparative'!W283","v":0},null,null,null,null,null,null,null,null,null,null,null,null,null,null,null,null,null,null,0,"0"]
[{"$f":"IF(Descriptions!D89=\"Activites for generating funds\",Descriptions!B89,0)","v":0},null,{"$f":"IF(Descriptions!D89=\"Activites for generating funds\",WorkingR!AF88,0)","v":0},{"$f":"IF(Descriptions!D89=\"Activites for generating funds\",WorkingR!AG88,0)","v":0},{"$f":"IF(Descriptions!D89=\"Activites for generating funds\",WorkingR!AH88,0)","v":0},{"$f":"IF(Descriptions!D89=\"Activites for generating funds\",WorkingR!AI88,0)","v":0},0,{"$f":"'Prior Year Comparative'!W284","v":0},null,null,null,null,null,null,null,null,null,null,null,null,null,null,null,null,null,null,{"$f":"SUM(C482:H482)","v":0},{"$f":"IF(AA482=0,\"0\",\"1\")","v":"0"}]
[{"$f":"IF(Descriptions!D90=\"Activites for generating funds\",Descriptions!B90,0)","v":0},null,{"$f":"IF(Descriptions!D90=\"Activites for generating funds\",WorkingR!AF89,0)","v":0},{"$f":"IF(Descriptions!D90=\"Activites for generating funds\",WorkingR!AG89,0)","v":0},{"$f":"IF(Descriptions!D90=\"Activites for generating funds\",WorkingR!AH89,0)","v":0},{"$f":"IF(Descriptions!D90=\"Activites for generating funds\",WorkingR!AI89,0)","v":0},0,{"$f":"'Prior Year Comparative'!W285","v":0},null,null,null,null,null,null,null,null,null,null,null,null,null,null,null,null,null,null,{"$f":"SUM(C483:H483)","v":0},"0"]
[{"$f":"IF(Descriptions!D91=\"Activites for generating funds\",Descriptions!B91,0)","v":0},null,{"$f":"IF(Descriptions!D91=\"Activites for generating funds\",WorkingR!AF90,0)","v":0},{"$f":"IF(Descriptions!D91=\"Activites for generating funds\",WorkingR!AG90,0)","v":0},{"$f":"IF(Descriptions!D91=\"Activites for generating funds\",WorkingR!AH90,0)","v":0},{"$f":"IF(Descriptions!D91=\"Activites for generating funds\",WorkingR!AI90,0)","v":0},0,{"$f":"'Prior Year Comparative'!W286","v":0},null,null,null,null,null,null,null,null,null,null,null,null,null,null,null,null,null,null,{"$f":"SUM(C484:H484)","v":0},"0"]
[{"$f":"IF(Descriptions!D92=\"Activites for generating funds\",Descriptions!B92,0)","v":0},null,{"$f":"IF(Descriptions!D92=\"Activites for generating funds\",WorkingR!AF91,0)","v":0},{"$f":"IF(Descriptions!D92=\"Activites for generating funds\",WorkingR!AG91,0)","v":0},{"$f":"IF(Descriptions!D92=\"Activites for generating funds\",WorkingR!AH91,0)","v":0},{"$f":"IF(Descriptions!D92=\"Activites for generating funds\",WorkingR!AI91,0)","v":0},0,{"$f":"'Prior Year Comparative'!W287","v":0},null,null,null,null,null,null,null,null,null,null,null,null,null,null,null,null,null,null,{"$f":"SUM(C485:H485)","v":0},"0"]
[null,null,null,null,null,null,null,null,null,null,null,null,null,null,null,null,null,null,null,null,null,null,null,null,null,null,{"$f":"AA487","v":0},"0"]
[null,null,{"$f":"SUM(C430:C485)","v":0},0,0,0,0,0,null,null,null,null,null,null,null,null,null,null,null,null,null,null,null,null,null,null,{"$f":"SUM(C487:H487)","v":0},"0"]
[null,null,null,null,null,null,null,null,null,null,null,null,null,null,null,null,null,null,null,null,null,null,null,null,null,null,{"$f":"SUM(AA490:AA546)","v":0},"0"]
["CHURCH ACTIVITIES",null,null,null,null,null,null,null,null,null,null,null,null,null,null,null,null,null,null,null,null,null,null,null,null,null,{"$f":"AA488","v":0},"0"]
["Use of Church building",null,{"$f":"WorkingR!AF35","v":0},{"$f":"WorkingR!AG35","v":0},{"$f":"WorkingR!AH35","v":0},{"$f":"WorkingR!AI35","v":0},{"$f":"SUM(C490:F490)","v":0},{"$f":"'Prior Year Comparative'!W290","v":0},null,null,null,null,null,null,null,null,null,null,null,null,null,null,null,null,null,null,{"$f":"SUM(C490:H490)","v":0},"0"]
["Non-charitable trading",null,{"$f":"WorkingR!AF25","v":0},{"$f":"WorkingR!AG25","v":0},{"$f":"WorkingR!AH25","v":0},{"$f":"WorkingR!AI25","v":0},0,{"$f":"'Prior Year Comparative'!W291","v":0},null,null,null,null,null,null,null,null,null,null,null,null,null,null,null,null,null,null,0,"0"]
["Fees - Statutory",null,{"$f":"WorkingR!AF14","v":0},{"$f":"WorkingR!AG14","v":0},{"$f":"WorkingR!AH14","v":0},{"$f":"WorkingR!AI14","v":0},0,{"$f":"'Prior Year Comparative'!W292","v":0},null,null,null,null,null,null,null,null,null,null,null,null,null,null,null,null,null,null,0,"0"]
["Fees - Additional",null,{"$f":"WorkingR!AF13","v":0},{"$f":"WorkingR!AG13","v":0},{"$f":"WorkingR!AH13","v":0},{"$f":"WorkingR!AI13","v":0},0,{"$f":"'Prior Year Comparative'!W293","v":0},null,null,null,null,null,null,null,null,null,null,null,null,null,null,null,null,null,null,0,"0"]
["Church Building Appeal",null,{"$f":"WorkingR!AF8","v":0},{"$f":"WorkingR!AG8","v":0},{"$f":"WorkingR!AH8","v":0},{"$f":"WorkingR!AI8","v":0},0,{"$f":"'Prior Year Comparative'!W294","v":0},null,null,null,null,null,null,null,null,null,null,null,null,null,null,null,null,null,null,0,"0"]
["VAT Reclaim",null,{"$f":"WorkingR!AF36","v":0},{"$f":"WorkingR!AG36","v":0},{"$f":"WorkingR!AH36","v":0},{"$f":"WorkingR!AI36","v":0},0,{"$f":"'Prior Year Comparative'!W295","v":0},null,null,null,null,null,null,null,null,null,null,null,null,null,null,null,null,null,null,0,"0"]
["Rental Income",null,{"$f":"WorkingR!AF29","v":0},{"$f":"WorkingR!AG29","v":0},{"$f":"WorkingR!AH29","v":0},{"$f":"WorkingR!AI29","v":0},0,{"$f":"'Prior Year Comparative'!W296","v":0},null,null,null,null,null,null,null,null,null,null,null,null,null,null,null,null,null,null,0,"0"]
[{"$f":"IF(Descriptions!D43=\"Church activities\",Descriptions!B43,0)","v":0},null,{"$f":"IF(Descriptions!D43=\"Church activities\",WorkingR!AF42,0)","v":0},{"$f":"IF(Descriptions!D43=\"Church activities\",WorkingR!AG42,0)","v":0},{"$f":"IF(Descriptions!D43=\"Church activities\",WorkingR!AH42,0)","v":0},{"$f":"IF(Descriptions!D43=\"Church activities\",WorkingR!AI42,0)","v":0},0,{"$f":"'Prior Year Comparative'!W297","v":0},null,null,null,null,null,null,null,null,null,null,null,null,null,null,null,null,null,null,{"$f":"SUM(C497:H497)","v":0},{"$f":"IF(AA497=0,\"0\",\"1\")","v":"0"}]
[{"$f":"IF(Descriptions!D44=\"Church activities\",Descriptions!B44,0)","v":0},null,{"$f":"IF(Descriptions!D44=\"Church activities\",WorkingR!AF43,0)","v":0},{"$f":"IF(Descriptions!D44=\"Church activities\",WorkingR!AG43,0)","v":0},{"$f":"IF(Descriptions!D44=\"Church activities\",WorkingR!AH43,0)","v":0},{"$f":"IF(Descriptions!D44=\"Church activities\",WorkingR!AI43,0)","v":0},{"$f":"SUM(C498:F498)","v":0},{"$f":"'Prior Year Comparative'!W298","v":0},null,null,null,null,null,null,null,null,null,null,null,null,null,null,null,null,null,null,0,"0"]
[{"$f":"IF(Descriptions!D45=\"Church activities\",Descriptions!B45,0)","v":0},null,{"$f":"IF(Descriptions!D45=\"Church activities\",WorkingR!AF44,0)","v":0},{"$f":"IF(Descriptions!D45=\"Church activities\",WorkingR!AG44,0)","v":0},{"$f":"IF(Descriptions!D45=\"Church activities\",WorkingR!AH44,0)","v":0},{"$f":"IF(Descriptions!D45=\"Church activities\",WorkingR!AI44,0)","v":0},0,{"$f":"'Prior Year Comparative'!W299","v":0},null,null,null,null,null,null,null,null,null,null,null,null,null,null,null,null,null,null,0,"0"]
[{"$f":"IF(Descriptions!D46=\"Church activities\",Descriptions!B46,0)","v":0},null,{"$f":"IF(Descriptions!D46=\"Church activities\",WorkingR!AF45,0)","v":0},{"$f":"IF(Descriptions!D46=\"Church activities\",WorkingR!AG45,0)","v":0},{"$f":"IF(Descriptions!D46=\"Church activities\",WorkingR!AH45,0)","v":0},{"$f":"IF(Descriptions!D46=\"Church activities\",WorkingR!AI45,0)","v":0},0,{"$f":"'Prior Year Comparative'!W300","v":0},null,null,null,null,null,null,null,null,null,null,null,null,null,null,null,null,null,null,0,"0"]
[{"$f":"IF(Descriptions!D47=\"Church activities\",Descriptions!B47,0)","v":0},null,{"$f":"IF(Descriptions!D47=\"Church activities\",WorkingR!AF46,0)","v":0},{"$f":"IF(Descriptions!D47=\"Church activities\",WorkingR!AG46,0)","v":0},{"$f":"IF(Descriptions!D47=\"Church activities\",WorkingR!AH46,0)","v":0},{"$f":"IF(Descriptions!D47=\"Church activities\",WorkingR!AI46,0)","v":0},0,{"$f":"'Prior Year Comparative'!W301","v":0},null,null,null,null,null,null,null,null,null,null,null,null,null,null,null,null,null,null,0,"0"]
[{"$f":"IF(Descriptions!D48=\"Church activities\",Descriptions!B48,0)","v":0},null,{"$f":"IF(Descriptions!D48=\"Church activities\",WorkingR!AF47,0)","v":0},{"$f":"IF(Descriptions!D48=\"Church activities\",WorkingR!AG47,0)","v":0},{"$f":"IF(Descriptions!D48=\"Church activities\",WorkingR!AH47,0)","v":0},{"$f":"IF(Descriptions!D48=\"Church activities\",WorkingR!AI47,0)","v":0},0,{"$f":"'Prior Year Comparative'!W302","v":0},null,null,null,null,null,null,null,null,null,null,null,null,null,null,null,null,null,null,0,"0"]
[{"$f":"IF(Descriptions!D49=\"Church activities\",Descriptions!B49,0)","v":0},null,{"$f":"IF(Descriptions!D49=\"Church activities\",WorkingR!AF48,0)","v":0},{"$f":"IF(Descriptions!D49=\"Church activities\",WorkingR!AG48,0)","v":0},{"$f":"IF(Descriptions!D49=\"Church activities\",WorkingR!AH48,0)","v":0},{"$f":"IF(Descriptions!D49=\"Church activities\",WorkingR!AI48,0)","v":0},0,{"$f":"'Prior Year Comparative'!W303","v":0},null,null,null,null,null,null,null,null,null,null,null,null,null,null,null,null,null,null,0,"0"]
[{"$f":"IF(Descriptions!D50=\"Church activities\",Descriptions!B50,0)","v":0},null,{"$f":"IF(Descriptions!D50=\"Church activities\",WorkingR!AF49,0)","v":0},{"$f":"IF(Descriptions!D50=\"Church activities\",WorkingR!AG49,0)","v":0},{"$f":"IF(Descriptions!D50=\"Church activities\",WorkingR!AH49,0)","v":0},{"$f":"IF(Descriptions!D50=\"Church activities\",WorkingR!AI49,0)","v":0},0,{"$f":"'Prior Year Comparative'!W304","v":0},null,null,null,null,null,null,null,null,null,null,null,null,null,null,null,null,null,null,0,"0"]
[{"$f":"IF(Descriptions!D51=\"Church activities\",Descriptions!B51,0)","v":0},null,{"$f":"IF(Descriptions!D51=\"Church activities\",WorkingR!AF50,0)","v":0},{"$f":"IF(Descriptions!D51=\"Church activities\",WorkingR!AG50,0)","v":0},{"$f":"IF(Descriptions!D51=\"Church activities\",WorkingR!AH50,0)","v":0},{"$f":"IF(Descriptions!D51=\"Church activities\",WorkingR!AI50,0)","v":0},0,{"$f":"'Prior Year Comparative'!W305","v":0},null,null,null,null,null,null,null,null,null,null,null,null,null,null,null,null,null,null,0,"0"]
[{"$f":"IF(Descriptions!D52=\"Church activities\",Descriptions!B52,0)","v":0},null,{"$f":"IF(Descriptions!D52=\"Church activities\",WorkingR!AF51,0)","v":0},{"$f":"IF(Descriptions!D52=\"Church activities\",WorkingR!AG51,0)","v":0},{"$f":"IF(Descriptions!D52=\"Church activities\",WorkingR!AH51,0)","v":0},{"$f":"IF(Descriptions!D52=\"Church activities\",WorkingR!AI51,0)","v":0},0,{"$f":"'Prior Year Comparative'!W306","v":0},null,null,null,null,null,null,null,null,null,null,null,null,null,null,null,null,null,null,0,"0"]
[{"$f":"IF(Descriptions!D53=\"Church activities\",Descriptions!B53,0)","v":0},null,{"$f":"IF(Descriptions!D53=\"Church activities\",WorkingR!AF52,0)","v":0},{"$f":"IF(Descriptions!D53=\"Church activities\",WorkingR!AG52,0)","v":0},{"$f":"IF(Descriptions!D53=\"Church activities\",WorkingR!AH52,0)","v":0},{"$f":"IF(Descriptions!D53=\"Church activities\",WorkingR!AI52,0)","v":0},0,{"$f":"'Prior Year Comparative'!W307","v":0},null,null,null,null,null,null,null,null,null,null,null,null,null,null,null,null,null,null,0,"0"]
[{"$f":"IF(Descriptions!D54=\"Church activities\",Descriptions!B54,0)","v":0},null,{"$f":"IF(Descriptions!D54=\"Church activities\",WorkingR!AF53,0)","v":0},{"$f":"IF(Descriptions!D54=\"Church activities\",WorkingR!AG53,0)","v":0},{"$f":"IF(Descriptions!D54=\"Church activities\",WorkingR!AH53,0)","v":0},{"$f":"IF(Descriptions!D54=\"Church activities\",WorkingR!AI53,0)","v":0},0,{"$f":"'Prior Year Comparative'!W308","v":0},null,null,null,null,null,null,null,null,null,null,null,null,null,null,null,null,null,null,0,"0"]
[{"$f":"IF(Descriptions!D55=\"Church activities\",Descriptions!B55,0)","v":0},null,{"$f":"IF(Descriptions!D55=\"Church activities\",WorkingR!AF54,0)","v":0},{"$f":"IF(Descriptions!D55=\"Church activities\",WorkingR!AG54,0)","v":0},{"$f":"IF(Descriptions!D55=\"Church activities\",WorkingR!AH54,0)","v":0},{"$f":"IF(Descriptions!D55=\"Church activities\",WorkingR!AI54,0)","v":0},0,{"$f":"'Prior Year Comparative'!W309","v":0},null,null,null,null,null,null,null,null,null,null,null,null,null,null,null,null,null,null,0,"0"]
[{"$f":"IF(Descriptions!D56=\"Church activities\",Descriptions!B56,0)","v":0},null,{"$f":"IF(Descriptions!D56=\"Church activities\",WorkingR!AF55,0)","v":0},{"$f":"IF(Descriptions!D56=\"Church activities\",WorkingR!AG55,0)","v":0},{"$f":"IF(Descriptions!D56=\"Church activities\",WorkingR!AH55,0)","v":0},{"$f":"IF(Descriptions!D56=\"Church activities\",WorkingR!AI55,0)","v":0},0,{"$f":"'Prior Year Comparative'!W310","v":0},null,null,null,null,null,null,null,null,null,null,null,null,null,null,null,null,null,null,0,"0"]
[{"$f":"IF(Descriptions!D57=\"Church activities\",Descriptions!B57,0)","v":0},null,{"$f":"IF(Descriptions!D57=\"Church activities\",WorkingR!AF56,0)","v":0},{"$f":"IF(Descriptions!D57=\"Church activities\",WorkingR!AG56,0)","v":0},{"$f":"IF(Descriptions!D57=\"Church activities\",WorkingR!AH56,0)","v":0},{"$f":"IF(Descriptions!D57=\"Church activities\",WorkingR!AI56,0)","v":0},0,{"$f":"'Prior Year Comparative'!W311","v":0},null,null,null,null,null,null,null,null,null,null,null,null,null,null,null,null,null,null,0,"0"]
[{"$f":"IF(Descriptions!D58=\"Church activities\",Descriptions!B58,0)","v":0},null,{"$f":"IF(Descriptions!D58=\"Church activities\",WorkingR!AF57,0)","v":0},{"$f":"IF(Descriptions!D58=\"Church activities\",WorkingR!AG57,0)","v":0},{"$f":"IF(Descriptions!D58=\"Church activities\",WorkingR!AH57,0)","v":0},{"$f":"IF(Descriptions!D58=\"Church activities\",WorkingR!AI57,0)","v":0},0,{"$f":"'Prior Year Comparative'!W312","v":0},null,null,null,null,null,null,null,null,null,null,null,null,null,null,null,null,null,null,0,"0"]
[{"$f":"IF(Descriptions!D59=\"Church activities\",Descriptions!B59,0)","v":0},null,{"$f":"IF(Descriptions!D59=\"Church activities\",WorkingR!AF58,0)","v":0},{"$f":"IF(Descriptions!D59=\"Church activities\",WorkingR!AG58,0)","v":0},{"$f":"IF(Descriptions!D59=\"Church activities\",WorkingR!AH58,0)","v":0},{"$f":"IF(Descriptions!D59=\"Church activities\",WorkingR!AI58,0)","v":0},0,{"$f":"'Prior Year Comparative'!W313","v":0},null,null,null,null,null,null,null,null,null,null,null,null,null,null,null,null,null,null,0,"0"]
[{"$f":"IF(Descriptions!D60=\"Church activities\",Descriptions!B60,0)","v":0},null,{"$f":"IF(Descriptions!D60=\"Church activities\",WorkingR!AF59,0)","v":0},{"$f":"IF(Descriptions!D60=\"Church activities\",WorkingR!AG59,0)","v":0},{"$f":"IF(Descriptions!D60=\"Church activities\",WorkingR!AH59,0)","v":0},{"$f":"IF(Descriptions!D60=\"Church activities\",WorkingR!AI59,0)","v":0},0,{"$f":"'Prior Year Comparative'!W314","v":0},null,null,null,null,null,null,null,null,null,null,null,null,null,null,null,null,null,null,0,"0"]
[{"$f":"IF(Descriptions!D61=\"Church activities\",Descriptions!B61,0)","v":0},null,{"$f":"IF(Descriptions!D61=\"Church activities\",WorkingR!AF60,0)","v":0},{"$f":"IF(Descriptions!D61=\"Church activities\",WorkingR!AG60,0)","v":0},{"$f":"IF(Descriptions!D61=\"Church activities\",WorkingR!AH60,0)","v":0},{"$f":"IF(Descriptions!D61=\"Church activities\",WorkingR!AI60,0)","v":0},0,{"$f":"'Prior Year Comparative'!W315","v":0},null,null,null,null,null,null,null,null,null,null,null,null,null,null,null,null,null,null,0,"0"]
[{"$f":"IF(Descriptions!D62=\"Church activities\",Descriptions!B62,0)","v":0},null,{"$f":"IF(Descriptions!D62=\"Church activities\",WorkingR!AF61,0)","v":0},{"$f":"IF(Descriptions!D62=\"Church activities\",WorkingR!AG61,0)","v":0},{"$f":"IF(Descriptions!D62=\"Church activities\",WorkingR!AH61,0)","v":0},{"$f":"IF(Descriptions!D62=\"Church activities\",WorkingR!AI61,0)","v":0},0,{"$f":"'Prior Year Comparative'!W316","v":0},null,null,null,null,null,null,null,null,null,null,null,null,null,null,null,null,null,null,0,"0"]
[{"$f":"IF(Descriptions!D63=\"Church activities\",Descriptions!B63,0)","v":0},null,{"$f":"IF(Descriptions!D63=\"Church activities\",WorkingR!AF62,0)","v":0},{"$f":"IF(Descriptions!D63=\"Church activities\",WorkingR!AG62,0)","v":0},{"$f":"IF(Descriptions!D63=\"Church activities\",WorkingR!AH62,0)","v":0},{"$f":"IF(Descriptions!D63=\"Church activities\",WorkingR!AI62,0)","v":0},0,{"$f":"'Prior Year Comparative'!W317","v":0},null,null,null,null,null,null,null,null,null,null,null,null,null,null,null,null,null,null,0,"0"]
[{"$f":"IF(Descriptions!D64=\"Church activities\",Descriptions!B64,0)","v":0},null,{"$f":"IF(Descriptions!D64=\"Church activities\",WorkingR!AF63,0)","v":0},{"$f":"IF(Descriptions!D64=\"Church activities\",WorkingR!AG63,0)","v":0},{"$f":"IF(Descriptions!D64=\"Church activities\",WorkingR!AH63,0)","v":0},{"$f":"IF(Descriptions!D64=\"Church activities\",WorkingR!AI63,0)","v":0},0,{"$f":"'Prior Year Comparative'!W318","v":0},null,null,null,null,null,null,null,null,null,null,null,null,null,null,null,null,null,null,0,"0"]
[{"$f":"IF(Descriptions!D65=\"Church activities\",Descriptions!B65,0)","v":0},null,{"$f":"IF(Descriptions!D65=\"Church activities\",WorkingR!AF64,0)","v":0},{"$f":"IF(Descriptions!D65=\"Church activities\",WorkingR!AG64,0)","v":0},{"$f":"IF(Descriptions!D65=\"Church activities\",WorkingR!AH64,0)","v":0},{"$f":"IF(Descriptions!D65=\"Church activities\",WorkingR!AI64,0)","v":0},0,{"$f":"'Prior Year Comparative'!W319","v":0},null,null,null,null,null,null,null,null,null,null,null,null,null,null,null,null,null,null,0,"0"]
[{"$f":"IF(Descriptions!D66=\"Church activities\",Descriptions!B66,0)","v":0},null,{"$f":"IF(Descriptions!D66=\"Church activities\",WorkingR!AF65,0)","v":0},{"$f":"IF(Descriptions!D66=\"Church activities\",WorkingR!AG65,0)","v":0},{"$f":"IF(Descriptions!D66=\"Church activities\",WorkingR!AH65,0)","v":0},{"$f":"IF(Descriptions!D66=\"Church activities\",WorkingR!AI65,0)","v":0},0,{"$f":"'Prior Year Comparative'!W320","v":0},null,null,null,null,null,null,null,null,null,null,null,null,null,null,null,null,null,null,0,"0"]
[{"$f":"IF(Descriptions!D67=\"Church activities\",Descriptions!B67,0)","v":0},null,{"$f":"IF(Descriptions!D67=\"Church activities\",WorkingR!AF66,0)","v":0},{"$f":"IF(Descriptions!D67=\"Church activities\",WorkingR!AG66,0)","v":0},{"$f":"IF(Descriptions!D67=\"Church activities\",WorkingR!AH66,0)","v":0},{"$f":"IF(Descriptions!D67=\"Church activities\",WorkingR!AI66,0)","v":0},0,{"$f":"'Prior Year Comparative'!W321","v":0},null,null,null,null,null,null,null,null,null,null,null,null,null,null,null,null,null,null,0,"0"]
[{"$f":"IF(Descriptions!D68=\"Church activities\",Descriptions!B68,0)","v":0},null,{"$f":"IF(Descriptions!D68=\"Church activities\",WorkingR!AF67,0)","v":0},{"$f":"IF(Descriptions!D68=\"Church activities\",WorkingR!AG67,0)","v":0},{"$f":"IF(Descriptions!D68=\"Church activities\",WorkingR!AH67,0)","v":0},{"$f":"IF(Descriptions!D68=\"Church activities\",WorkingR!AI67,0)","v":0},0,{"$f":"'Prior Year Comparative'!W322","v":0},null,null,null,null,null,null,null,null,null,null,null,null,null,null,null,null,null,null,0,"0"]
[{"$f":"IF(Descriptions!D69=\"Church activities\",Descriptions!B69,0)","v":0},null,{"$f":"IF(Descriptions!D69=\"Church activities\",WorkingR!AF68,0)","v":0},{"$f":"IF(Descriptions!D69=\"Church activities\",WorkingR!AG68,0)","v":0},{"$f":"IF(Descriptions!D69=\"Church activities\",WorkingR!AH68,0)","v":0},{"$f":"IF(Descriptions!D69=\"Church activities\",WorkingR!AI68,0)","v":0},0,{"$f":"'Prior Year Comparative'!W323","v":0},null,null,null,null,null,null,null,null,null,null,null,null,null,null,null,null,null,null,0,"0"]
[{"$f":"IF(Descriptions!D70=\"Church activities\",Descriptions!B70,0)","v":0},null,{"$f":"IF(Descriptions!D70=\"Church activities\",WorkingR!AF69,0)","v":0},{"$f":"IF(Descriptions!D70=\"Church activities\",WorkingR!AG69,0)","v":0},{"$f":"IF(Descriptions!D70=\"Church activities\",WorkingR!AH69,0)","v":0},{"$f":"IF(Descriptions!D70=\"Church activities\",WorkingR!AI69,0)","v":0},0,{"$f":"'Prior Year Comparative'!W324","v":0},null,null,null,null,null,null,null,null,null,null,null,null,null,null,null,null,null,null,0,"0"]
[{"$f":"IF(Descriptions!D71=\"Church activities\",Descriptions!B71,0)","v":0},null,{"$f":"IF(Descriptions!D71=\"Church activities\",WorkingR!AF70,0)","v":0},{"$f":"IF(Descriptions!D71=\"Church activities\",WorkingR!AG70,0)","v":0},{"$f":"IF(Descriptions!D71=\"Church activities\",WorkingR!AH70,0)","v":0},{"$f":"IF(Descriptions!D71=\"Church activities\",WorkingR!AI70,0)","v":0},0,{"$f":"'Prior Year Comparative'!W325","v":0},null,null,null,null,null,null,null,null,null,null,null,null,null,null,null,null,null,null,0,"0"]
[{"$f":"IF(Descriptions!D72=\"Church activities\",Descriptions!B72,0)","v":0},null,{"$f":"IF(Descriptions!D72=\"Church activities\",WorkingR!AF71,0)","v":0},{"$f":"IF(Descriptions!D72=\"Church activities\",WorkingR!AG71,0)","v":0},{"$f":"IF(Descriptions!D72=\"Church activities\",WorkingR!AH71,0)","v":0},{"$f":"IF(Descriptions!D72=\"Church activities\",WorkingR!AI71,0)","v":0},0,{"$f":"'Prior Year Comparative'!W326","v":0},null,null,null,null,null,null,null,null,null,null,null,null,null,null,null,null,null,null,0,"0"]
[{"$f":"IF(Descriptions!D73=\"Church activities\",Descriptions!B73,0)","v":0},null,{"$f":"IF(Descriptions!D73=\"Church activities\",WorkingR!AF72,0)","v":0},{"$f":"IF(Descriptions!D73=\"Church activities\",WorkingR!AG72,0)","v":0},{"$f":"IF(Descriptions!D73=\"Church activities\",WorkingR!AH72,0)","v":0},{"$f":"IF(Descriptions!D73=\"Church activities\",WorkingR!AI72,0)","v":0},0,{"$f":"'Prior Year Comparative'!W327","v":0},null,null,null,null,null,null,null,null,null,null,null,null,null,null,null,null,null,null,0,"0"]
[{"$f":"IF(Descriptions!D74=\"Church activities\",Descriptions!B74,0)","v":0},null,{"$f":"IF(Descriptions!D74=\"Church activities\",WorkingR!AF73,0)","v":0},{"$f":"IF(Descriptions!D74=\"Church activities\",WorkingR!AG73,0)","v":0},{"$f":"IF(Descriptions!D74=\"Church activities\",WorkingR!AH73,0)","v":0},{"$f":"IF(Descriptions!D74=\"Church activities\",WorkingR!AI73,0)","v":0},0,{"$f":"'Prior Year Comparative'!W328","v":0},null,null,null,null,null,null,null,null,null,null,null,null,null,null,null,null,null,null,0,"0"]
[{"$f":"IF(Descriptions!D75=\"Church activities\",Descriptions!B75,0)","v":0},null,{"$f":"IF(Descriptions!D75=\"Church activities\",WorkingR!AF74,0)","v":0},{"$f":"IF(Descriptions!D75=\"Church activities\",WorkingR!AG74,0)","v":0},{"$f":"IF(Descriptions!D75=\"Church activities\",WorkingR!AH74,0)","v":0},{"$f":"IF(Descriptions!D75=\"Church activities\",WorkingR!AI74,0)","v":0},0,{"$f":"'Prior Year Comparative'!W329","v":0},null,null,null,null,null,null,null,null,null,null,null,null,null,null,null,null,null,null,0,"0"]
[{"$f":"IF(Descriptions!D76=\"Church activities\",Descriptions!B76,0)","v":0},null,{"$f":"IF(Descriptions!D76=\"Church activities\",WorkingR!AF75,0)","v":0},{"$f":"IF(Descriptions!D76=\"Church activities\",WorkingR!AG75,0)","v":0},{"$f":"IF(Descriptions!D76=\"Church activities\",WorkingR!AH75,0)","v":0},{"$f":"IF(Descriptions!D76=\"Church activities\",WorkingR!AI75,0)","v":0},0,{"$f":"'Prior Year Comparative'!W330","v":0},null,null,null,null,null,null,null,null,null,null,null,null,null,null,null,null,null,null,0,"0"]
[{"$f":"IF(Descriptions!D77=\"Church activities\",Descriptions!B77,0)","v":0},null,{"$f":"IF(Descriptions!D77=\"Church activities\",WorkingR!AF76,0)","v":0},{"$f":"IF(Descriptions!D77=\"Church activities\",WorkingR!AG76,0)","v":0},{"$f":"IF(Descriptions!D77=\"Church activities\",WorkingR!AH76,0)","v":0},{"$f":"IF(Descriptions!D77=\"Church activities\",WorkingR!AI76,0)","v":0},0,{"$f":"'Prior Year Comparative'!W331","v":0},null,null,null,null,null,null,null,null,null,null,null,null,null,null,null,null,null,null,0,"0"]
[{"$f":"IF(Descriptions!D78=\"Church activities\",Descriptions!B78,0)","v":0},null,{"$f":"IF(Descriptions!D78=\"Church activities\",WorkingR!AF77,0)","v":0},{"$f":"IF(Descriptions!D78=\"Church activities\",WorkingR!AG77,0)","v":0},{"$f":"IF(Descriptions!D78=\"Church activities\",WorkingR!AH77,0)","v":0},{"$f":"IF(Descriptions!D78=\"Church activities\",WorkingR!AI77,0)","v":0},0,{"$f":"'Prior Year Comparative'!W332","v":0},null,null,null,null,null,null,null,null,null,null,null,null,null,null,null,null,null,null,0,"0"]
[{"$f":"IF(Descriptions!D79=\"Church activities\",Descriptions!B79,0)","v":0},null,{"$f":"IF(Descriptions!D79=\"Church activities\",WorkingR!AF78,0)","v":0},{"$f":"IF(Descriptions!D79=\"Church activities\",WorkingR!AG78,0)","v":0},{"$f":"IF(Descriptions!D79=\"Church activities\",WorkingR!AH78,0)","v":0},{"$f":"IF(Descriptions!D79=\"Church activities\",WorkingR!AI78,0)","v":0},0,{"$f":"'Prior Year Comparative'!W333","v":0},null,null,null,null,null,null,null,null,null,null,null,null,null,null,null,null,null,null,0,"0"]
[{"$f":"IF(Descriptions!D80=\"Church activities\",Descriptions!B80,0)","v":0},null,{"$f":"IF(Descriptions!D80=\"Church activities\",WorkingR!AF79,0)","v":0},{"$f":"IF(Descriptions!D80=\"Church activities\",WorkingR!AG79,0)","v":0},{"$f":"IF(Descriptions!D80=\"Church activities\",WorkingR!AH79,0)","v":0},{"$f":"IF(Descriptions!D80=\"Church activities\",WorkingR!AI79,0)","v":0},0,{"$f":"'Prior Year Comparative'!W334","v":0},null,null,null,null,null,null,null,null,null,null,null,null,null,null,null,null,null,null,0,"0"]
[{"$f":"IF(Descriptions!D81=\"Church activities\",Descriptions!B81,0)","v":0},null,{"$f":"IF(Descriptions!D81=\"Church activities\",WorkingR!AF80,0)","v":0},{"$f":"IF(Descriptions!D81=\"Church activities\",WorkingR!AG80,0)","v":0},{"$f":"IF(Descriptions!D81=\"Church activities\",WorkingR!AH80,0)","v":0},{"$f":"IF(Descriptions!D81=\"Church activities\",WorkingR!AI80,0)","v":0},0,{"$f":"'Prior Year Comparative'!W335","v":0},null,null,null,null,null,null,null,null,null,null,null,null,null,null,null,null,null,null,0,"0"]
[{"$f":"IF(Descriptions!D82=\"Church activities\",Descriptions!B82,0)","v":0},null,{"$f":"IF(Descriptions!D82=\"Church activities\",WorkingR!AF81,0)","v":0},{"$f":"IF(Descriptions!D82=\"Church activities\",WorkingR!AG81,0)","v":0},{"$f":"IF(Descriptions!D82=\"Church activities\",WorkingR!AH81,0)","v":0},{"$f":"IF(Descriptions!D82=\"Church activities\",WorkingR!AI81,0)","v":0},0,{"$f":"'Prior Year Comparative'!W336","v":0},null,null,null,null,null,null,null,null,null,null,null,null,null,null,null,null,null,null,0,"0"]
[{"$f":"IF(Descriptions!D83=\"Church activities\",Descriptions!B83,0)","v":0},null,{"$f":"IF(Descriptions!D83=\"Church activities\",WorkingR!AF82,0)","v":0},{"$f":"IF(Descriptions!D83=\"Church activities\",WorkingR!AG82,0)","v":0},{"$f":"IF(Descriptions!D83=\"Church activities\",WorkingR!AH82,0)","v":0},{"$f":"IF(Descriptions!D83=\"Church activities\",WorkingR!AI82,0)","v":0},0,{"$f":"'Prior Year Comparative'!W337","v":0},null,null,null,null,null,null,null,null,null,null,null,null,null,null,null,null,null,null,0,"0"]
[{"$f":"IF(Descriptions!D84=\"Church activities\",Descriptions!B84,0)","v":0},null,{"$f":"IF(Descriptions!D84=\"Church activities\",WorkingR!AF83,0)","v":0},{"$f":"IF(Descriptions!D84=\"Church activities\",WorkingR!AG83,0)","v":0},{"$f":"IF(Descriptions!D84=\"Church activities\",WorkingR!AH83,0)","v":0},{"$f":"IF(Descriptions!D84=\"Church activities\",WorkingR!AI83,0)","v":0},0,{"$f":"'Prior Year Comparative'!W338","v":0},null,null,null,null,null,null,null,null,null,null,null,null,null,null,null,null,null,null,0,"0"]
[{"$f":"IF(Descriptions!D85=\"Church activities\",Descriptions!B85,0)","v":0},null,{"$f":"IF(Descriptions!D85=\"Church activities\",WorkingR!AF84,0)","v":0},{"$f":"IF(Descriptions!D85=\"Church activities\",WorkingR!AG84,0)","v":0},{"$f":"IF(Descriptions!D85=\"Church activities\",WorkingR!AH84,0)","v":0},{"$f":"IF(Descriptions!D85=\"Church activities\",WorkingR!AI84,0)","v":0},0,{"$f":"'Prior Year Comparative'!W339","v":0},null,null,null,null,null,null,null,null,null,null,null,null,null,null,null,null,null,null,0,"0"]
[{"$f":"IF(Descriptions!D86=\"Church activities\",Descriptions!B86,0)","v":0},null,{"$f":"IF(Descriptions!D86=\"Church activities\",WorkingR!AF85,0)","v":0},{"$f":"IF(Descriptions!D86=\"Church activities\",WorkingR!AG85,0)","v":0},{"$f":"IF(Descriptions!D86=\"Church activities\",WorkingR!AH85,0)","v":0},{"$f":"IF(Descriptions!D86=\"Church activities\",WorkingR!AI85,0)","v":0},0,{"$f":"'Prior Year Comparative'!W340","v":0},null,null,null,null,null,null,null,null,null,null,null,null,null,null,null,null,null,null,0,"0"]
[{"$f":"IF(Descriptions!D87=\"Church activities\",Descriptions!B87,0)","v":0},null,{"$f":"IF(Descriptions!D87=\"Church activities\",WorkingR!AF86,0)","v":0},{"$f":"IF(Descriptions!D87=\"Church activities\",WorkingR!AG86,0)","v":0},{"$f":"IF(Descriptions!D87=\"Church activities\",WorkingR!AH86,0)","v":0},{"$f":"IF(Descriptions!D87=\"Church activities\",WorkingR!AI86,0)","v":0},0,{"$f":"'Prior Year Comparative'!W341","v":0},null,null,null,null,null,null,null,null,null,null,null,null,null,null,null,null,null,null,0,"0"]
[{"$f":"IF(Descriptions!D88=\"Church activities\",Descriptions!B88,0)","v":0},null,{"$f":"IF(Descriptions!D88=\"Church activities\",WorkingR!AF87,0)","v":0},{"$f":"IF(Descriptions!D88=\"Church activities\",WorkingR!AG87,0)","v":0},{"$f":"IF(Descriptions!D88=\"Church activities\",WorkingR!AH87,0)","v":0},{"$f":"IF(Descriptions!D88=\"Church activities\",WorkingR!AI87,0)","v":0},0,{"$f":"'Prior Year Comparative'!W342","v":0},null,null,null,null,null,null,null,null,null,null,null,null,null,null,null,null,null,null,0,"0"]
[{"$f":"IF(Descriptions!D89=\"Church activities\",Descriptions!B89,0)","v":0},null,{"$f":"IF(Descriptions!D89=\"Church activities\",WorkingR!AF88,0)","v":0},{"$f":"IF(Descriptions!D89=\"Church activities\",WorkingR!AG88,0)","v":0},{"$f":"IF(Descriptions!D89=\"Church activities\",WorkingR!AH88,0)","v":0},{"$f":"IF(Descriptions!D89=\"Church activities\",WorkingR!AI88,0)","v":0},0,{"$f":"'Prior Year Comparative'!W343","v":0},null,null,null,null,null,null,null,null,null,null,null,null,null,null,null,null,null,null,0,"0"]
[{"$f":"IF(Descriptions!D90=\"Church activities\",Descriptions!B90,0)","v":0},null,{"$f":"IF(Descriptions!D90=\"Church activities\",WorkingR!AF89,0)","v":0},{"$f":"IF(Descriptions!D90=\"Church activities\",WorkingR!AG89,0)","v":0},{"$f":"IF(Descriptions!D90=\"Church activities\",WorkingR!AH89,0)","v":0},{"$f":"IF(Descriptions!D90=\"Church activities\",WorkingR!AI89,0)","v":0},0,{"$f":"'Prior Year Comparative'!W344","v":0},null,null,null,null,null,null,null,null,null,null,null,null,null,null,null,null,null,null,{"$f":"SUM(C544:H544)","v":0},{"$f":"IF(AA544=0,\"0\",\"1\")","v":"0"}]
[{"$f":"IF(Descriptions!D91=\"Church activities\",Descriptions!B91,0)","v":0},null,{"$f":"IF(Descriptions!D91=\"Church activities\",WorkingR!AF90,0)","v":0},{"$f":"IF(Descriptions!D91=\"Church activities\",WorkingR!AG90,0)","v":0},{"$f":"IF(Descriptions!D91=\"Church activities\",WorkingR!AH90,0)","v":0},{"$f":"IF(Descriptions!D91=\"Church activities\",WorkingR!AI90,0)","v":0},0,{"$f":"'Prior Year Comparative'!W345","v":0},null,null,null,null,null,null,null,null,null,null,null,null,null,null,null,null,null,null,{"$f":"SUM(C545:H545)","v":0},"0"]
[{"$f":"IF(Descriptions!D92=\"Church activities\",Descriptions!B92,0)","v":0},null,{"$f":"IF(Descriptions!D92=\"Church activities\",WorkingR!AF91,0)","v":0},{"$f":"IF(Descriptions!D92=\"Church activities\",WorkingR!AG91,0)","v":0},{"$f":"IF(Descriptions!D92=\"Church activities\",WorkingR!AH91,0)","v":0},{"$f":"IF(Descriptions!D92=\"Church activities\",WorkingR!AI91,0)","v":0},0,{"$f":"'Prior Year Comparative'!W346","v":0},null,null,null,null,null,null,null,null,null,null,null,null,null,null,null,null,null,null,{"$f":"SUM(C546:H546)","v":0},"0"]
[null,null,null,null,null,null,null,null,null,null,null,null,null,null,null,null,null,null,null,null,null,null,null,null,null,null,{"$f":"AA548","v":0},"0"]
[null,null,{"$f":"SUM(C490:C546)","v":0},0,0,0,0,0,null,null,null,null,null,null,null,null,null,null,null,null,null,null,null,null,null,null,{"$f":"SUM(AA490:AA546)","v":0},"0"]
[null,null,null,null,null,null,null,null,null,null,null,null,null,null,null,null,null,null,null,null,null,null,null,null,null,null,{"$f":"SUM(AA551:AA601)","v":0},"0"]
["INVESTMENT INCOME",null,null,null,null,null,null,null,null,null,null,null,null,null,null,null,null,null,null,null,null,null,null,null,null,null,{"$f":"AA549","v":0},"0"]
["Dividends and Interest",null,{"$f":"WorkingR!AF10","v":0},{"$f":"WorkingR!AG10","v":0},{"$f":"WorkingR!AH10","v":0},{"$f":"WorkingR!AI10","v":0},{"$f":"SUM(C551:F551)","v":0},{"$f":"'Prior Year Comparative'!W349","v":0},null,null,null,null,null,null,null,null,null,null,null,null,null,null,null,null,null,null,{"$f":"SUM(C551:H551)","v":0},"0"]
[{"$f":"IF(Descriptions!D43=\"Investment income\",Descriptions!B43,0)","v":0},null,{"$f":"IF(Descriptions!D43=\"Investment income\",WorkingR!AF42,0)","v":0},{"$f":"IF(Descriptions!D43=\"Investment income\",WorkingR!AG42,0)","v":0},{"$f":"IF(Descriptions!D43=\"Investment income\",WorkingR!AH42,0)","v":0},{"$f":"IF(Descriptions!D43=\"Investment income\",WorkingR!AI42,0)","v":0},{"$f":"SUM(C552:F552)","v":0},{"$f":"'Prior Year Comparative'!W350","v":0},null,null,null,null,null,null,null,null,null,null,null,null,null,null,null,null,null,null,0,"0"]
[{"$f":"IF(Descriptions!D44=\"Investment income\",Descriptions!B44,0)","v":0},null,{"$f":"IF(Descriptions!D44=\"Investment income\",WorkingR!AF43,0)","v":0},{"$f":"IF(Descriptions!D44=\"Investment income\",WorkingR!AG43,0)","v":0},{"$f":"IF(Descriptions!D44=\"Investment income\",WorkingR!AH43,0)","v":0},{"$f":"IF(Descriptions!D44=\"Investment income\",WorkingR!AI43,0)","v":0},{"$f":"SUM(C553:F553)","v":0},{"$f":"'Prior Year Comparative'!W351","v":0},null,null,null,null,null,null,null,null,null,null,null,null,null,null,null,null,null,null,0,"0"]
[{"$f":"IF(Descriptions!D45=\"Investment income\",Descriptions!B45,0)","v":0},null,{"$f":"IF(Descriptions!D45=\"Investment income\",WorkingR!AF44,0)","v":0},{"$f":"IF(Descriptions!D45=\"Investment income\",WorkingR!AG44,0)","v":0},{"$f":"IF(Descriptions!D45=\"Investment income\",WorkingR!AH44,0)","v":0},{"$f":"IF(Descriptions!D45=\"Investment income\",WorkingR!AI44,0)","v":0},0,{"$f":"'Prior Year Comparative'!W352","v":0},null,null,null,null,null,null,null,null,null,null,null,null,null,null,null,null,null,null,0,"0"]
[{"$f":"IF(Descriptions!D46=\"Investment income\",Descriptions!B46,0)","v":0},null,{"$f":"IF(Descriptions!D46=\"Investment income\",WorkingR!AF45,0)","v":0},{"$f":"IF(Descriptions!D46=\"Investment income\",WorkingR!AG45,0)","v":0},{"$f":"IF(Descriptions!D46=\"Investment income\",WorkingR!AH45,0)","v":0},{"$f":"IF(Descriptions!D46=\"Investment income\",WorkingR!AI45,0)","v":0},0,{"$f":"'Prior Year Comparative'!W353","v":0},null,null,null,null,null,null,null,null,null,null,null,null,null,null,null,null,null,null,0,"0"]
[{"$f":"IF(Descriptions!D47=\"Investment income\",Descriptions!B47,0)","v":0},null,{"$f":"IF(Descriptions!D47=\"Investment income\",WorkingR!AF46,0)","v":0},{"$f":"IF(Descriptions!D47=\"Investment income\",WorkingR!AG46,0)","v":0},{"$f":"IF(Descriptions!D47=\"Investment income\",WorkingR!AH46,0)","v":0},{"$f":"IF(Descriptions!D47=\"Investment income\",WorkingR!AI46,0)","v":0},0,{"$f":"'Prior Year Comparative'!W354","v":0},null,null,null,null,null,null,null,null,null,null,null,null,null,null,null,null,null,null,0,"0"]
[{"$f":"IF(Descriptions!D48=\"Investment income\",Descriptions!B48,0)","v":0},null,{"$f":"IF(Descriptions!D48=\"Investment income\",WorkingR!AF47,0)","v":0},{"$f":"IF(Descriptions!D48=\"Investment income\",WorkingR!AG47,0)","v":0},{"$f":"IF(Descriptions!D48=\"Investment income\",WorkingR!AH47,0)","v":0},{"$f":"IF(Descriptions!D48=\"Investment income\",WorkingR!AI47,0)","v":0},0,{"$f":"'Prior Year Comparative'!W355","v":0},null,null,null,null,null,null,null,null,null,null,null,null,null,null,null,null,null,null,0,"0"]
[{"$f":"IF(Descriptions!D49=\"Investment income\",Descriptions!B49,0)","v":0},null,{"$f":"IF(Descriptions!D49=\"Investment income\",WorkingR!AF48,0)","v":0},{"$f":"IF(Descriptions!D49=\"Investment income\",WorkingR!AG48,0)","v":0},{"$f":"IF(Descriptions!D49=\"Investment income\",WorkingR!AH48,0)","v":0},{"$f":"IF(Descriptions!D49=\"Investment income\",WorkingR!AI48,0)","v":0},0,{"$f":"'Prior Year Comparative'!W356","v":0},null,null,null,null,null,null,null,null,null,null,null,null,null,null,null,null,null,null,0,"0"]
[{"$f":"IF(Descriptions!D50=\"Investment income\",Descriptions!B50,0)","v":0},null,{"$f":"IF(Descriptions!D50=\"Investment income\",WorkingR!AF49,0)","v":0},{"$f":"IF(Descriptions!D50=\"Investment income\",WorkingR!AG49,0)","v":0},{"$f":"IF(Descriptions!D50=\"Investment income\",WorkingR!AH49,0)","v":0},{"$f":"IF(Descriptions!D50=\"Investment income\",WorkingR!AI49,0)","v":0},0,{"$f":"'Prior Year Comparative'!W357","v":0},null,null,null,null,null,null,null,null,null,null,null,null,null,null,null,null,null,null,0,"0"]
[{"$f":"IF(Descriptions!D51=\"Investment income\",Descriptions!B51,0)","v":0},null,{"$f":"IF(Descriptions!D51=\"Investment income\",WorkingR!AF50,0)","v":0},{"$f":"IF(Descriptions!D51=\"Investment income\",WorkingR!AG50,0)","v":0},{"$f":"IF(Descriptions!D51=\"Investment income\",WorkingR!AH50,0)","v":0},{"$f":"IF(Descriptions!D51=\"Investment income\",WorkingR!AI50,0)","v":0},0,{"$f":"'Prior Year Comparative'!W358","v":0},null,null,null,null,null,null,null,null,null,null,null,null,null,null,null,null,null,null,0,"0"]
[{"$f":"IF(Descriptions!D52=\"Investment income\",Descriptions!B52,0)","v":0},null,{"$f":"IF(Descriptions!D52=\"Investment income\",WorkingR!AF51,0)","v":0},{"$f":"IF(Descriptions!D52=\"Investment income\",WorkingR!AG51,0)","v":0},{"$f":"IF(Descriptions!D52=\"Investment income\",WorkingR!AH51,0)","v":0},{"$f":"IF(Descriptions!D52=\"Investment income\",WorkingR!AI51,0)","v":0},0,{"$f":"'Prior Year Comparative'!W359","v":0},null,null,null,null,null,null,null,null,null,null,null,null,null,null,null,null,null,null,0,"0"]
[{"$f":"IF(Descriptions!D53=\"Investment income\",Descriptions!B53,0)","v":0},null,{"$f":"IF(Descriptions!D53=\"Investment income\",WorkingR!AF52,0)","v":0},{"$f":"IF(Descriptions!D53=\"Investment income\",WorkingR!AG52,0)","v":0},{"$f":"IF(Descriptions!D53=\"Investment income\",WorkingR!AH52,0)","v":0},{"$f":"IF(Descriptions!D53=\"Investment income\",WorkingR!AI52,0)","v":0},0,{"$f":"'Prior Year Comparative'!W360","v":0},null,null,null,null,null,null,null,null,null,null,null,null,null,null,null,null,null,null,0,"0"]
[{"$f":"IF(Descriptions!D54=\"Investment income\",Descriptions!B54,0)","v":0},null,{"$f":"IF(Descriptions!D54=\"Investment income\",WorkingR!AF53,0)","v":0},{"$f":"IF(Descriptions!D54=\"Investment income\",WorkingR!AG53,0)","v":0},{"$f":"IF(Descriptions!D54=\"Investment income\",WorkingR!AH53,0)","v":0},{"$f":"IF(Descriptions!D54=\"Investment income\",WorkingR!AI53,0)","v":0},0,{"$f":"'Prior Year Comparative'!W361","v":0},null,null,null,null,null,null,null,null,null,null,null,null,null,null,null,null,null,null,0,"0"]
[{"$f":"IF(Descriptions!D55=\"Investment income\",Descriptions!B55,0)","v":0},null,{"$f":"IF(Descriptions!D55=\"Investment income\",WorkingR!AF54,0)","v":0},{"$f":"IF(Descriptions!D55=\"Investment income\",WorkingR!AG54,0)","v":0},{"$f":"IF(Descriptions!D55=\"Investment income\",WorkingR!AH54,0)","v":0},{"$f":"IF(Descriptions!D55=\"Investment income\",WorkingR!AI54,0)","v":0},0,{"$f":"'Prior Year Comparative'!W362","v":0},null,null,null,null,null,null,null,null,null,null,null,null,null,null,null,null,null,null,0,"0"]
[{"$f":"IF(Descriptions!D56=\"Investment income\",Descriptions!B56,0)","v":0},null,{"$f":"IF(Descriptions!D56=\"Investment income\",WorkingR!AF55,0)","v":0},{"$f":"IF(Descriptions!D56=\"Investment income\",WorkingR!AG55,0)","v":0},{"$f":"IF(Descriptions!D56=\"Investment income\",WorkingR!AH55,0)","v":0},{"$f":"IF(Descriptions!D56=\"Investment income\",WorkingR!AI55,0)","v":0},0,{"$f":"'Prior Year Comparative'!W363","v":0},null,null,null,null,null,null,null,null,null,null,null,null,null,null,null,null,null,null,0,"0"]
[{"$f":"IF(Descriptions!D57=\"Investment income\",Descriptions!B57,0)","v":0},null,{"$f":"IF(Descriptions!D57=\"Investment income\",WorkingR!AF56,0)","v":0},{"$f":"IF(Descriptions!D57=\"Investment income\",WorkingR!AG56,0)","v":0},{"$f":"IF(Descriptions!D57=\"Investment income\",WorkingR!AH56,0)","v":0},{"$f":"IF(Descriptions!D57=\"Investment income\",WorkingR!AI56,0)","v":0},0,{"$f":"'Prior Year Comparative'!W364","v":0},null,null,null,null,null,null,null,null,null,null,null,null,null,null,null,null,null,null,0,"0"]
[{"$f":"IF(Descriptions!D58=\"Investment income\",Descriptions!B58,0)","v":0},null,{"$f":"IF(Descriptions!D58=\"Investment income\",WorkingR!AF57,0)","v":0},{"$f":"IF(Descriptions!D58=\"Investment income\",WorkingR!AG57,0)","v":0},{"$f":"IF(Descriptions!D58=\"Investment income\",WorkingR!AH57,0)","v":0},{"$f":"IF(Descriptions!D58=\"Investment income\",WorkingR!AI57,0)","v":0},0,{"$f":"'Prior Year Comparative'!W365","v":0},null,null,null,null,null,null,null,null,null,null,null,null,null,null,null,null,null,null,0,"0"]
[{"$f":"IF(Descriptions!D59=\"Investment income\",Descriptions!B59,0)","v":0},null,{"$f":"IF(Descriptions!D59=\"Investment income\",WorkingR!AF58,0)","v":0},{"$f":"IF(Descriptions!D59=\"Investment income\",WorkingR!AG58,0)","v":0},{"$f":"IF(Descriptions!D59=\"Investment income\",WorkingR!AH58,0)","v":0},{"$f":"IF(Descriptions!D59=\"Investment income\",WorkingR!AI58,0)","v":0},0,{"$f":"'Prior Year Comparative'!W366","v":0},null,null,null,null,null,null,null,null,null,null,null,null,null,null,null,null,null,null,0,"0"]
[{"$f":"IF(Descriptions!D60=\"Investment income\",Descriptions!B60,0)","v":0},null,{"$f":"IF(Descriptions!D60=\"Investment income\",WorkingR!AF59,0)","v":0},{"$f":"IF(Descriptions!D60=\"Investment income\",WorkingR!AG59,0)","v":0},{"$f":"IF(Descriptions!D60=\"Investment income\",WorkingR!AH59,0)","v":0},{"$f":"IF(Descriptions!D60=\"Investment income\",WorkingR!AI59,0)","v":0},0,{"$f":"'Prior Year Comparative'!W367","v":0},null,null,null,null,null,null,null,null,null,null,null,null,null,null,null,null,null,null,0,"0"]
[{"$f":"IF(Descriptions!D61=\"Investment income\",Descriptions!B61,0)","v":0},null,{"$f":"IF(Descriptions!D61=\"Investment income\",WorkingR!AF60,0)","v":0},{"$f":"IF(Descriptions!D61=\"Investment income\",WorkingR!AG60,0)","v":0},{"$f":"IF(Descriptions!D61=\"Investment income\",WorkingR!AH60,0)","v":0},{"$f":"IF(Descriptions!D61=\"Investment income\",WorkingR!AI60,0)","v":0},0,{"$f":"'Prior Year Comparative'!W368","v":0},null,null,null,null,null,null,null,null,null,null,null,null,null,null,null,null,null,null,0,"0"]
[{"$f":"IF(Descriptions!D62=\"Investment income\",Descriptions!B62,0)","v":0},null,{"$f":"IF(Descriptions!D62=\"Investment income\",WorkingR!AF61,0)","v":0},{"$f":"IF(Descriptions!D62=\"Investment income\",WorkingR!AG61,0)","v":0},{"$f":"IF(Descriptions!D62=\"Investment income\",WorkingR!AH61,0)","v":0},{"$f":"IF(Descriptions!D62=\"Investment income\",WorkingR!AI61,0)","v":0},0,{"$f":"'Prior Year Comparative'!W369","v":0},null,null,null,null,null,null,null,null,null,null,null,null,null,null,null,null,null,null,0,"0"]
[{"$f":"IF(Descriptions!D63=\"Investment income\",Descriptions!B63,0)","v":0},null,{"$f":"IF(Descriptions!D63=\"Investment income\",WorkingR!AF62,0)","v":0},{"$f":"IF(Descriptions!D63=\"Investment income\",WorkingR!AG62,0)","v":0},{"$f":"IF(Descriptions!D63=\"Investment income\",WorkingR!AH62,0)","v":0},{"$f":"IF(Descriptions!D63=\"Investment income\",WorkingR!AI62,0)","v":0},0,{"$f":"'Prior Year Comparative'!W370","v":0},null,null,null,null,null,null,null,null,null,null,null,null,null,null,null,null,null,null,0,"0"]
[{"$f":"IF(Descriptions!D64=\"Investment income\",Descriptions!B64,0)","v":0},null,{"$f":"IF(Descriptions!D64=\"Investment income\",WorkingR!AF63,0)","v":0},{"$f":"IF(Descriptions!D64=\"Investment income\",WorkingR!AG63,0)","v":0},{"$f":"IF(Descriptions!D64=\"Investment income\",WorkingR!AH63,0)","v":0},{"$f":"IF(Descriptions!D64=\"Investment income\",WorkingR!AI63,0)","v":0},0,{"$f":"'Prior Year Comparative'!W371","v":0},null,null,null,null,null,null,null,null,null,null,null,null,null,null,null,null,null,null,0,"0"]
[{"$f":"IF(Descriptions!D65=\"Investment income\",Descriptions!B65,0)","v":0},null,{"$f":"IF(Descriptions!D65=\"Investment income\",WorkingR!AF64,0)","v":0},{"$f":"IF(Descriptions!D65=\"Investment income\",WorkingR!AG64,0)","v":0},{"$f":"IF(Descriptions!D65=\"Investment income\",WorkingR!AH64,0)","v":0},{"$f":"IF(Descriptions!D65=\"Investment income\",WorkingR!AI64,0)","v":0},0,{"$f":"'Prior Year Comparative'!W372","v":0},null,null,null,null,null,null,null,null,null,null,null,null,null,null,null,null,null,null,0,"0"]
[{"$f":"IF(Descriptions!D66=\"Investment income\",Descriptions!B66,0)","v":0},null,{"$f":"IF(Descriptions!D66=\"Investment income\",WorkingR!AF65,0)","v":0},{"$f":"IF(Descriptions!D66=\"Investment income\",WorkingR!AG65,0)","v":0},{"$f":"IF(Descriptions!D66=\"Investment income\",WorkingR!AH65,0)","v":0},{"$f":"IF(Descriptions!D66=\"Investment income\",WorkingR!AI65,0)","v":0},0,{"$f":"'Prior Year Comparative'!W373","v":0},null,null,null,null,null,null,null,null,null,null,null,null,null,null,null,null,null,null,0,"0"]
[{"$f":"IF(Descriptions!D67=\"Investment income\",Descriptions!B67,0)","v":0},null,{"$f":"IF(Descriptions!D67=\"Investment income\",WorkingR!AF66,0)","v":0},{"$f":"IF(Descriptions!D67=\"Investment income\",WorkingR!AG66,0)","v":0},{"$f":"IF(Descriptions!D67=\"Investment income\",WorkingR!AH66,0)","v":0},{"$f":"IF(Descriptions!D67=\"Investment income\",WorkingR!AI66,0)","v":0},0,{"$f":"'Prior Year Comparative'!W374","v":0},null,null,null,null,null,null,null,null,null,null,null,null,null,null,null,null,null,null,0,{"$f":"IF(AA576=0,\"0\",\"1\")","v":"0"}]
[{"$f":"IF(Descriptions!D68=\"Investment income\",Descriptions!B68,0)","v":0},null,{"$f":"IF(Descriptions!D68=\"Investment income\",WorkingR!AF67,0)","v":0},{"$f":"IF(Descriptions!D68=\"Investment income\",WorkingR!AG67,0)","v":0},{"$f":"IF(Descriptions!D68=\"Investment income\",WorkingR!AH67,0)","v":0},{"$f":"IF(Descriptions!D68=\"Investment income\",WorkingR!AI67,0)","v":0},0,{"$f":"'Prior Year Comparative'!W375","v":0},null,null,null,null,null,null,null,null,null,null,null,null,null,null,null,null,null,null,0,"0"]
[{"$f":"IF(Descriptions!D69=\"Investment income\",Descriptions!B69,0)","v":0},null,{"$f":"IF(Descriptions!D69=\"Investment income\",WorkingR!AF68,0)","v":0},{"$f":"IF(Descriptions!D69=\"Investment income\",WorkingR!AG68,0)","v":0},{"$f":"IF(Descriptions!D69=\"Investment income\",WorkingR!AH68,0)","v":0},{"$f":"IF(Descriptions!D69=\"Investment income\",WorkingR!AI68,0)","v":0},0,{"$f":"'Prior Year Comparative'!W376","v":0},null,null,null,null,null,null,null,null,null,null,null,null,null,null,null,null,null,null,0,"0"]
[{"$f":"IF(Descriptions!D70=\"Investment income\",Descriptions!B70,0)","v":0},null,{"$f":"IF(Descriptions!D70=\"Investment income\",WorkingR!AF69,0)","v":0},{"$f":"IF(Descriptions!D70=\"Investment income\",WorkingR!AG69,0)","v":0},{"$f":"IF(Descriptions!D70=\"Investment income\",WorkingR!AH69,0)","v":0},{"$f":"IF(Descriptions!D70=\"Investment income\",WorkingR!AI69,0)","v":0},0,{"$f":"'Prior Year Comparative'!W377","v":0},null,null,null,null,null,null,null,null,null,null,null,null,null,null,null,null,null,null,0,"0"]
[{"$f":"IF(Descriptions!D71=\"Investment income\",Descriptions!B71,0)","v":0},null,{"$f":"IF(Descriptions!D71=\"Investment income\",WorkingR!AF70,0)","v":0},{"$f":"IF(Descriptions!D71=\"Investment income\",WorkingR!AG70,0)","v":0},{"$f":"IF(Descriptions!D71=\"Investment income\",WorkingR!AH70,0)","v":0},{"$f":"IF(Descriptions!D71=\"Investment income\",WorkingR!AI70,0)","v":0},0,{"$f":"'Prior Year Comparative'!W378","v":0},null,null,null,null,null,null,null,null,null,null,null,null,null,null,null,null,null,null,0,"0"]
[{"$f":"IF(Descriptions!D72=\"Investment income\",Descriptions!B72,0)","v":0},null,{"$f":"IF(Descriptions!D72=\"Investment income\",WorkingR!AF71,0)","v":0},{"$f":"IF(Descriptions!D72=\"Investment income\",WorkingR!AG71,0)","v":0},{"$f":"IF(Descriptions!D72=\"Investment income\",WorkingR!AH71,0)","v":0},{"$f":"IF(Descriptions!D72=\"Investment income\",WorkingR!AI71,0)","v":0},0,{"$f":"'Prior Year Comparative'!W379","v":0},null,null,null,null,null,null,null,null,null,null,null,null,null,null,null,null,null,null,0,"0"]
[{"$f":"IF(Descriptions!D73=\"Investment income\",Descriptions!B73,0)","v":0},null,{"$f":"IF(Descriptions!D73=\"Investment income\",WorkingR!AF72,0)","v":0},{"$f":"IF(Descriptions!D73=\"Investment income\",WorkingR!AG72,0)","v":0},{"$f":"IF(Descriptions!D73=\"Investment income\",WorkingR!AH72,0)","v":0},{"$f":"IF(Descriptions!D73=\"Investment income\",WorkingR!AI72,0)","v":0},0,{"$f":"'Prior Year Comparative'!W380","v":0},null,null,null,null,null,null,null,null,null,null,null,null,null,null,null,null,null,null,0,"0"]
[{"$f":"IF(Descriptions!D74=\"Investment income\",Descriptions!B74,0)","v":0},null,{"$f":"IF(Descriptions!D74=\"Investment income\",WorkingR!AF73,0)","v":0},{"$f":"IF(Descriptions!D74=\"Investment income\",WorkingR!AG73,0)","v":0},{"$f":"IF(Descriptions!D74=\"Investment income\",WorkingR!AH73,0)","v":0},{"$f":"IF(Descriptions!D74=\"Investment income\",WorkingR!AI73,0)","v":0},0,{"$f":"'Prior Year Comparative'!W381","v":0},null,null,null,null,null,null,null,null,null,null,null,null,null,null,null,null,null,null,0,"0"]
[{"$f":"IF(Descriptions!D75=\"Investment income\",Descriptions!B75,0)","v":0},null,{"$f":"IF(Descriptions!D75=\"Investment income\",WorkingR!AF74,0)","v":0},{"$f":"IF(Descriptions!D75=\"Investment income\",WorkingR!AG74,0)","v":0},{"$f":"IF(Descriptions!D75=\"Investment income\",WorkingR!AH74,0)","v":0},{"$f":"IF(Descriptions!D75=\"Investment income\",WorkingR!AI74,0)","v":0},0,{"$f":"'Prior Year Comparative'!W382","v":0},null,null,null,null,null,null,null,null,null,null,null,null,null,null,null,null,null,null,0,"0"]
[{"$f":"IF(Descriptions!D76=\"Investment income\",Descriptions!B76,0)","v":0},null,{"$f":"IF(Descriptions!D76=\"Investment income\",WorkingR!AF75,0)","v":0},{"$f":"IF(Descriptions!D76=\"Investment income\",WorkingR!AG75,0)","v":0},{"$f":"IF(Descriptions!D76=\"Investment income\",WorkingR!AH75,0)","v":0},{"$f":"IF(Descriptions!D76=\"Investment income\",WorkingR!AI75,0)","v":0},0,{"$f":"'Prior Year Comparative'!W383","v":0},null,null,null,null,null,null,null,null,null,null,null,null,null,null,null,null,null,null,0,"0"]
[{"$f":"IF(Descriptions!D77=\"Investment income\",Descriptions!B77,0)","v":0},null,{"$f":"IF(Descriptions!D77=\"Investment income\",WorkingR!AF76,0)","v":0},{"$f":"IF(Descriptions!D77=\"Investment income\",WorkingR!AG76,0)","v":0},{"$f":"IF(Descriptions!D77=\"Investment income\",WorkingR!AH76,0)","v":0},{"$f":"IF(Descriptions!D77=\"Investment income\",WorkingR!AI76,0)","v":0},0,{"$f":"'Prior Year Comparative'!W384","v":0},null,null,null,null,null,null,null,null,null,null,null,null,null,null,null,null,null,null,0,"0"]
[{"$f":"IF(Descriptions!D78=\"Investment income\",Descriptions!B78,0)","v":0},null,{"$f":"IF(Descriptions!D78=\"Investment income\",WorkingR!AF77,0)","v":0},{"$f":"IF(Descriptions!D78=\"Investment income\",WorkingR!AG77,0)","v":0},{"$f":"IF(Descriptions!D78=\"Investment income\",WorkingR!AH77,0)","v":0},{"$f":"IF(Descriptions!D78=\"Investment income\",WorkingR!AI77,0)","v":0},0,{"$f":"'Prior Year Comparative'!W385","v":0},null,null,null,null,null,null,null,null,null,null,null,null,null,null,null,null,null,null,0,"0"]
[{"$f":"IF(Descriptions!D79=\"Investment income\",Descriptions!B79,0)","v":0},null,{"$f":"IF(Descriptions!D79=\"Investment income\",WorkingR!AF78,0)","v":0},{"$f":"IF(Descriptions!D79=\"Investment income\",WorkingR!AG78,0)","v":0},{"$f":"IF(Descriptions!D79=\"Investment income\",WorkingR!AH78,0)","v":0},{"$f":"IF(Descriptions!D79=\"Investment income\",WorkingR!AI78,0)","v":0},0,{"$f":"'Prior Year Comparative'!W386","v":0},null,null,null,null,null,null,null,null,null,null,null,null,null,null,null,null,null,null,0,"0"]
[{"$f":"IF(Descriptions!D80=\"Investment income\",Descriptions!B80,0)","v":0},null,{"$f":"IF(Descriptions!D80=\"Investment income\",WorkingR!AF79,0)","v":0},{"$f":"IF(Descriptions!D80=\"Investment income\",WorkingR!AG79,0)","v":0},{"$f":"IF(Descriptions!D80=\"Investment income\",WorkingR!AH79,0)","v":0},{"$f":"IF(Descriptions!D80=\"Investment income\",WorkingR!AI79,0)","v":0},0,{"$f":"'Prior Year Comparative'!W387","v":0},null,null,null,null,null,null,null,null,null,null,null,null,null,null,null,null,null,null,0,"0"]
[{"$f":"IF(Descriptions!D81=\"Investment income\",Descriptions!B81,0)","v":0},null,{"$f":"IF(Descriptions!D81=\"Investment income\",WorkingR!AF80,0)","v":0},{"$f":"IF(Descriptions!D81=\"Investment income\",WorkingR!AG80,0)","v":0},{"$f":"IF(Descriptions!D81=\"Investment income\",WorkingR!AH80,0)","v":0},{"$f":"IF(Descriptions!D81=\"Investment income\",WorkingR!AI80,0)","v":0},0,{"$f":"'Prior Year Comparative'!W388","v":0},null,null,null,null,null,null,null,null,null,null,null,null,null,null,null,null,null,null,0,"0"]
[{"$f":"IF(Descriptions!D82=\"Investment income\",Descriptions!B82,0)","v":0},null,{"$f":"IF(Descriptions!D82=\"Investment income\",WorkingR!AF81,0)","v":0},{"$f":"IF(Descriptions!D82=\"Investment income\",WorkingR!AG81,0)","v":0},{"$f":"IF(Descriptions!D82=\"Investment income\",WorkingR!AH81,0)","v":0},{"$f":"IF(Descriptions!D82=\"Investment income\",WorkingR!AI81,0)","v":0},0,{"$f":"'Prior Year Comparative'!W389","v":0},null,null,null,null,null,null,null,null,null,null,null,null,null,null,null,null,null,null,0,"0"]
[{"$f":"IF(Descriptions!D83=\"Investment income\",Descriptions!B83,0)","v":0},null,{"$f":"IF(Descriptions!D83=\"Investment income\",WorkingR!AF82,0)","v":0},{"$f":"IF(Descriptions!D83=\"Investment income\",WorkingR!AG82,0)","v":0},{"$f":"IF(Descriptions!D83=\"Investment income\",WorkingR!AH82,0)","v":0},{"$f":"IF(Descriptions!D83=\"Investment income\",WorkingR!AI82,0)","v":0},0,{"$f":"'Prior Year Comparative'!W390","v":0},null,null,null,null,null,null,null,null,null,null,null,null,null,null,null,null,null,null,0,"0"]
[{"$f":"IF(Descriptions!D84=\"Investment income\",Descriptions!B84,0)","v":0},null,{"$f":"IF(Descriptions!D84=\"Investment income\",WorkingR!AF83,0)","v":0},{"$f":"IF(Descriptions!D84=\"Investment income\",WorkingR!AG83,0)","v":0},{"$f":"IF(Descriptions!D84=\"Investment income\",WorkingR!AH83,0)","v":0},{"$f":"IF(Descriptions!D84=\"Investment income\",WorkingR!AI83,0)","v":0},0,{"$f":"'Prior Year Comparative'!W391","v":0},null,null,null,null,null,null,null,null,null,null,null,null,null,null,null,null,null,null,0,"0"]
[{"$f":"IF(Descriptions!D85=\"Investment income\",Descriptions!B85,0)","v":0},null,{"$f":"IF(Descriptions!D85=\"Investment income\",WorkingR!AF84,0)","v":0},{"$f":"IF(Descriptions!D85=\"Investment income\",WorkingR!AG84,0)","v":0},{"$f":"IF(Descriptions!D85=\"Investment income\",WorkingR!AH84,0)","v":0},{"$f":"IF(Descriptions!D85=\"Investment income\",WorkingR!AI84,0)","v":0},0,{"$f":"'Prior Year Comparative'!W392","v":0},null,null,null,null,null,null,null,null,null,null,null,null,null,null,null,null,null,null,0,"0"]
[{"$f":"IF(Descriptions!D86=\"Investment income\",Descriptions!B86,0)","v":0},null,{"$f":"IF(Descriptions!D86=\"Investment income\",WorkingR!AF85,0)","v":0},{"$f":"IF(Descriptions!D86=\"Investment income\",WorkingR!AG85,0)","v":0},{"$f":"IF(Descriptions!D86=\"Investment income\",WorkingR!AH85,0)","v":0},{"$f":"IF(Descriptions!D86=\"Investment income\",WorkingR!AI85,0)","v":0},0,{"$f":"'Prior Year Comparative'!W393","v":0},null,null,null,null,null,null,null,null,null,null,null,null,null,null,null,null,null,null,0,"0"]
[{"$f":"IF(Descriptions!D87=\"Investment income\",Descriptions!B87,0)","v":0},null,{"$f":"IF(Descriptions!D87=\"Investment income\",WorkingR!AF86,0)","v":0},{"$f":"IF(Descriptions!D87=\"Investment income\",WorkingR!AG86,0)","v":0},{"$f":"IF(Descriptions!D87=\"Investment income\",WorkingR!AH86,0)","v":0},{"$f":"IF(Descriptions!D87=\"Investment income\",WorkingR!AI86,0)","v":0},0,{"$f":"'Prior Year Comparative'!W394","v":0},null,null,null,null,null,null,null,null,null,null,null,null,null,null,null,null,null,null,0,"0"]
[{"$f":"IF(Descriptions!D88=\"Investment income\",Descriptions!B88,0)","v":0},null,{"$f":"IF(Descriptions!D88=\"Investment income\",WorkingR!AF87,0)","v":0},{"$f":"IF(Descriptions!D88=\"Investment income\",WorkingR!AG87,0)","v":0},{"$f":"IF(Descriptions!D88=\"Investment income\",WorkingR!AH87,0)","v":0},{"$f":"IF(Descriptions!D88=\"Investment income\",WorkingR!AI87,0)","v":0},0,{"$f":"'Prior Year Comparative'!W395","v":0},null,null,null,null,null,null,null,null,null,null,null,null,null,null,null,null,null,null,0,"0"]
[{"$f":"IF(Descriptions!D89=\"Investment income\",Descriptions!B89,0)","v":0},null,{"$f":"IF(Descriptions!D89=\"Investment income\",WorkingR!AF88,0)","v":0},{"$f":"IF(Descriptions!D89=\"Investment income\",WorkingR!AG88,0)","v":0},{"$f":"IF(Descriptions!D89=\"Investment income\",WorkingR!AH88,0)","v":0},{"$f":"IF(Descriptions!D89=\"Investment income\",WorkingR!AI88,0)","v":0},0,{"$f":"'Prior Year Comparative'!W396","v":0},null,null,null,null,null,null,null,null,null,null,null,null,null,null,null,null,null,null,0,"0"]
[{"$f":"IF(Descriptions!D90=\"Investment income\",Descriptions!B90,0)","v":0},null,{"$f":"IF(Descriptions!D90=\"Investment income\",WorkingR!AF89,0)","v":0},{"$f":"IF(Descriptions!D90=\"Investment income\",WorkingR!AG89,0)","v":0},{"$f":"IF(Descriptions!D90=\"Investment income\",WorkingR!AH89,0)","v":0},{"$f":"IF(Descriptions!D90=\"Investment income\",WorkingR!AI89,0)","v":0},0,{"$f":"'Prior Year Comparative'!W397","v":0},null,null,null,null,null,null,null,null,null,null,null,null,null,null,null,null,null,null,0,"0"]
[{"$f":"IF(Descriptions!D91=\"Investment income\",Descriptions!B91,0)","v":0},null,{"$f":"IF(Descriptions!D91=\"Investment income\",WorkingR!AF90,0)","v":0},{"$f":"IF(Descriptions!D91=\"Investment income\",WorkingR!AG90,0)","v":0},{"$f":"IF(Descriptions!D91=\"Investment income\",WorkingR!AH90,0)","v":0},{"$f":"IF(Descriptions!D91=\"Investment income\",WorkingR!AI90,0)","v":0},0,{"$f":"'Prior Year Comparative'!W398","v":0},null,null,null,null,null,null,null,null,null,null,null,null,null,null,null,null,null,null,0,"0"]
[{"$f":"IF(Descriptions!D92=\"Investment income\",Descriptions!B92,0)","v":0},null,{"$f":"IF(Descriptions!D92=\"Investment income\",WorkingR!AF91,0)","v":0},{"$f":"IF(Descriptions!D92=\"Investment income\",WorkingR!AG91,0)","v":0},{"$f":"IF(Descriptions!D92=\"Investment income\",WorkingR!AH91,0)","v":0},{"$f":"IF(Descriptions!D92=\"Investment income\",WorkingR!AI91,0)","v":0},0,{"$f":"'Prior Year Comparative'!W399","v":0},null,null,null,null,null,null,null,null,null,null,null,null,null,null,null,null,null,null,{"$f":"SUM(C601:H601)","v":0},"0"]
[null,null,null,null,null,null,null,null,null,null,null,null,null,null,null,null,null,null,null,null,null,null,null,null,null,null,{"$f":"AA603","v":0},"0"]
[null,null,{"$f":"SUM(C551:C601)","v":0},0,0,0,0,0,null,null,null,null,null,null,null,null,null,null,null,null,null,null,null,null,null,null,{"$f":"SUM(AA551:AA601)","v":0},"0"]
[null,null,null,null,null,null,null,null,null,null,null,null,null,null,null,null,null,null,null,null,null,null,null,null,null,null,{"$f":"SUM(AA606:AA657)","v":0},"0"]
["GRANT INCOME",null,null,null,null,null,null,null,null,null,null,null,null,null,null,null,null,null,null,null,null,null,null,null,null,null,{"$f":"AA604","v":0},"0"]
["Recurring Grants",null,{"$f":"WorkingR!AF20","v":0},{"$f":"WorkingR!AG20","v":0},{"$f":"WorkingR!AH20","v":0},{"$f":"WorkingR!AI20","v":0},{"$f":"SUM(C606:F606)","v":0},{"$f":"'Prior Year Comparative'!W455","v":0},null,null,null,null,null,null,null,null,null,null,null,null,null,null,null,null,null,null,{"$f":"SUM(C606:H606)","v":0},"0"]
["Non-Recurring Grants",null,{"$f":"WorkingR!AF19","v":0},{"$f":"WorkingR!AG19","v":0},{"$f":"WorkingR!AH19","v":0},{"$f":"WorkingR!AI19","v":0},{"$f":"SUM(C607:F607)","v":0},{"$f":"'Prior Year Comparative'!W456","v":0},null,null,null,null,null,null,null,null,null,null,null,null,null,null,null,null,null,null,{"$f":"SUM(C607:H607)","v":0},{"$f":"IF(AA607=0,\"0\",\"1\")","v":"0"}]
[{"$f":"IF(Descriptions!D43=\"Grant income\",Descriptions!B43,0)","v":0},null,{"$f":"IF(Descriptions!D43=\"Grant income\",WorkingR!AF42,0)","v":0},{"$f":"IF(Descriptions!D43=\"Grant income\",WorkingR!AG42,0)","v":0},{"$f":"IF(Descriptions!D43=\"Grant income\",WorkingR!AH42,0)","v":0},{"$f":"IF(Descriptions!D43=\"Grant income\",WorkingR!AI42,0)","v":0},{"$f":"SUM(C608:F608)","v":0},{"$f":"'Prior Year Comparative'!W457","v":0},null,null,null,null,null,null,null,null,null,null,null,null,null,null,null,null,null,null,0,"0"]
[{"$f":"IF(Descriptions!D44=\"Grant income\",Descriptions!B44,0)","v":0},null,{"$f":"IF(Descriptions!D44=\"Grant income\",WorkingR!AF43,0)","v":0},{"$f":"IF(Descriptions!D44=\"Grant income\",WorkingR!AG43,0)","v":0},{"$f":"IF(Descriptions!D44=\"Grant income\",WorkingR!AH43,0)","v":0},{"$f":"IF(Descriptions!D44=\"Grant income\",WorkingR!AI43,0)","v":0},{"$f":"SUM(C609:F609)","v":0},{"$f":"'Prior Year Comparative'!W458","v":0},null,null,null,null,null,null,null,null,null,null,null,null,null,null,null,null,null,null,0,"0"]
[{"$f":"IF(Descriptions!D45=\"Grant income\",Descriptions!B45,0)","v":0},null,{"$f":"IF(Descriptions!D45=\"Grant income\",WorkingR!AF44,0)","v":0},{"$f":"IF(Descriptions!D45=\"Grant income\",WorkingR!AG44,0)","v":0},{"$f":"IF(Descriptions!D45=\"Grant income\",WorkingR!AH44,0)","v":0},{"$f":"IF(Descriptions!D45=\"Grant income\",WorkingR!AI44,0)","v":0},0,{"$f":"'Prior Year Comparative'!W459","v":0},null,null,null,null,null,null,null,null,null,null,null,null,null,null,null,null,null,null,0,"0"]
[{"$f":"IF(Descriptions!D46=\"Grant income\",Descriptions!B46,0)","v":0},null,{"$f":"IF(Descriptions!D46=\"Grant income\",WorkingR!AF45,0)","v":0},{"$f":"IF(Descriptions!D46=\"Grant income\",WorkingR!AG45,0)","v":0},{"$f":"IF(Descriptions!D46=\"Grant income\",WorkingR!AH45,0)","v":0},{"$f":"IF(Descriptions!D46=\"Grant income\",WorkingR!AI45,0)","v":0},0,{"$f":"'Prior Year Comparative'!W460","v":0},null,null,null,null,null,null,null,null,null,null,null,null,null,null,null,null,null,null,0,"0"]
[{"$f":"IF(Descriptions!D47=\"Grant income\",Descriptions!B47,0)","v":0},null,{"$f":"IF(Descriptions!D47=\"Grant income\",WorkingR!AF46,0)","v":0},{"$f":"IF(Descriptions!D47=\"Grant income\",WorkingR!AG46,0)","v":0},{"$f":"IF(Descriptions!D47=\"Grant income\",WorkingR!AH46,0)","v":0},{"$f":"IF(Descriptions!D47=\"Grant income\",WorkingR!AI46,0)","v":0},0,{"$f":"'Prior Year Comparative'!W461","v":0},null,null,null,null,null,null,null,null,null,null,null,null,null,null,null,null,null,null,0,"0"]
[{"$f":"IF(Descriptions!D48=\"Grant income\",Descriptions!B48,0)","v":0},null,{"$f":"IF(Descriptions!D48=\"Grant income\",WorkingR!AF47,0)","v":0},{"$f":"IF(Descriptions!D48=\"Grant income\",WorkingR!AG47,0)","v":0},{"$f":"IF(Descriptions!D48=\"Grant income\",WorkingR!AH47,0)","v":0},{"$f":"IF(Descriptions!D48=\"Grant income\",WorkingR!AI47,0)","v":0},0,{"$f":"'Prior Year Comparative'!W462","v":0},null,null,null,null,null,null,null,null,null,null,null,null,null,null,null,null,null,null,0,"0"]
[{"$f":"IF(Descriptions!D49=\"Grant income\",Descriptions!B49,0)","v":0},null,{"$f":"IF(Descriptions!D49=\"Grant income\",WorkingR!AF48,0)","v":0},{"$f":"IF(Descriptions!D49=\"Grant income\",WorkingR!AG48,0)","v":0},{"$f":"IF(Descriptions!D49=\"Grant income\",WorkingR!AH48,0)","v":0},{"$f":"IF(Descriptions!D49=\"Grant income\",WorkingR!AI48,0)","v":0},0,{"$f":"'Prior Year Comparative'!W463","v":0},null,null,null,null,null,null,null,null,null,null,null,null,null,null,null,null,null,null,0,"0"]
[{"$f":"IF(Descriptions!D50=\"Grant income\",Descriptions!B50,0)","v":0},null,{"$f":"IF(Descriptions!D50=\"Grant income\",WorkingR!AF49,0)","v":0},{"$f":"IF(Descriptions!D50=\"Grant income\",WorkingR!AG49,0)","v":0},{"$f":"IF(Descriptions!D50=\"Grant income\",WorkingR!AH49,0)","v":0},{"$f":"IF(Descriptions!D50=\"Grant income\",WorkingR!AI49,0)","v":0},0,{"$f":"'Prior Year Comparative'!W464","v":0},null,null,null,null,null,null,null,null,null,null,null,null,null,null,null,null,null,null,0,"0"]
[{"$f":"IF(Descriptions!D51=\"Grant income\",Descriptions!B51,0)","v":0},null,{"$f":"IF(Descriptions!D51=\"Grant income\",WorkingR!AF50,0)","v":0},{"$f":"IF(Descriptions!D51=\"Grant income\",WorkingR!AG50,0)","v":0},{"$f":"IF(Descriptions!D51=\"Grant income\",WorkingR!AH50,0)","v":0},{"$f":"IF(Descriptions!D51=\"Grant income\",WorkingR!AI50,0)","v":0},0,{"$f":"'Prior Year Comparative'!W465","v":0},null,null,null,null,null,null,null,null,null,null,null,null,null,null,null,null,null,null,0,"0"]
[{"$f":"IF(Descriptions!D52=\"Grant income\",Descriptions!B52,0)","v":0},null,{"$f":"IF(Descriptions!D52=\"Grant income\",WorkingR!AF51,0)","v":0},{"$f":"IF(Descriptions!D52=\"Grant income\",WorkingR!AG51,0)","v":0},{"$f":"IF(Descriptions!D52=\"Grant income\",WorkingR!AH51,0)","v":0},{"$f":"IF(Descriptions!D52=\"Grant income\",WorkingR!AI51,0)","v":0},0,{"$f":"'Prior Year Comparative'!W466","v":0},null,null,null,null,null,null,null,null,null,null,null,null,null,null,null,null,null,null,0,"0"]
[{"$f":"IF(Descriptions!D53=\"Grant income\",Descriptions!B53,0)","v":0},null,{"$f":"IF(Descriptions!D53=\"Grant income\",WorkingR!AF52,0)","v":0},{"$f":"IF(Descriptions!D53=\"Grant income\",WorkingR!AG52,0)","v":0},{"$f":"IF(Descriptions!D53=\"Grant income\",WorkingR!AH52,0)","v":0},{"$f":"IF(Descriptions!D53=\"Grant income\",WorkingR!AI52,0)","v":0},0,{"$f":"'Prior Year Comparative'!W467","v":0},null,null,null,null,null,null,null,null,null,null,null,null,null,null,null,null,null,null,0,"0"]
[{"$f":"IF(Descriptions!D54=\"Grant income\",Descriptions!B54,0)","v":0},null,{"$f":"IF(Descriptions!D54=\"Grant income\",WorkingR!AF53,0)","v":0},{"$f":"IF(Descriptions!D54=\"Grant income\",WorkingR!AG53,0)","v":0},{"$f":"IF(Descriptions!D54=\"Grant income\",WorkingR!AH53,0)","v":0},{"$f":"IF(Descriptions!D54=\"Grant income\",WorkingR!AI53,0)","v":0},0,{"$f":"'Prior Year Comparative'!W468","v":0},null,null,null,null,null,null,null,null,null,null,null,null,null,null,null,null,null,null,0,"0"]
[{"$f":"IF(Descriptions!D55=\"Grant income\",Descriptions!B55,0)","v":0},null,{"$f":"IF(Descriptions!D55=\"Grant income\",WorkingR!AF54,0)","v":0},{"$f":"IF(Descriptions!D55=\"Grant income\",WorkingR!AG54,0)","v":0},{"$f":"IF(Descriptions!D55=\"Grant income\",WorkingR!AH54,0)","v":0},{"$f":"IF(Descriptions!D55=\"Grant income\",WorkingR!AI54,0)","v":0},0,{"$f":"'Prior Year Comparative'!W469","v":0},null,null,null,null,null,null,null,null,null,null,null,null,null,null,null,null,null,null,0,"0"]
[{"$f":"IF(Descriptions!D56=\"Grant income\",Descriptions!B56,0)","v":0},null,{"$f":"IF(Descriptions!D56=\"Grant income\",WorkingR!AF55,0)","v":0},{"$f":"IF(Descriptions!D56=\"Grant income\",WorkingR!AG55,0)","v":0},{"$f":"IF(Descriptions!D56=\"Grant income\",WorkingR!AH55,0)","v":0},{"$f":"IF(Descriptions!D56=\"Grant income\",WorkingR!AI55,0)","v":0},0,{"$f":"'Prior Year Comparative'!W470","v":0},null,null,null,null,null,null,null,null,null,null,null,null,null,null,null,null,null,null,0,"0"]
[{"$f":"IF(Descriptions!D57=\"Grant income\",Descriptions!B57,0)","v":0},null,{"$f":"IF(Descriptions!D57=\"Grant income\",WorkingR!AF56,0)","v":0},{"$f":"IF(Descriptions!D57=\"Grant income\",WorkingR!AG56,0)","v":0},{"$f":"IF(Descriptions!D57=\"Grant income\",WorkingR!AH56,0)","v":0},{"$f":"IF(Descriptions!D57=\"Grant income\",WorkingR!AI56,0)","v":0},0,{"$f":"'Prior Year Comparative'!W471","v":0},null,null,null,null,null,null,null,null,null,null,null,null,null,null,null,null,null,null,0,"0"]
[{"$f":"IF(Descriptions!D58=\"Grant income\",Descriptions!B58,0)","v":0},null,{"$f":"IF(Descriptions!D58=\"Grant income\",WorkingR!AF57,0)","v":0},{"$f":"IF(Descriptions!D58=\"Grant income\",WorkingR!AG57,0)","v":0},{"$f":"IF(Descriptions!D58=\"Grant income\",WorkingR!AH57,0)","v":0},{"$f":"IF(Descriptions!D58=\"Grant income\",WorkingR!AI57,0)","v":0},0,{"$f":"'Prior Year Comparative'!W472","v":0},null,null,null,null,null,null,null,null,null,null,null,null,null,null,null,null,null,null,0,"0"]
[{"$f":"IF(Descriptions!D59=\"Grant income\",Descriptions!B59,0)","v":0},null,{"$f":"IF(Descriptions!D59=\"Grant income\",WorkingR!AF58,0)","v":0},{"$f":"IF(Descriptions!D59=\"Grant income\",WorkingR!AG58,0)","v":0},{"$f":"IF(Descriptions!D59=\"Grant income\",WorkingR!AH58,0)","v":0},{"$f":"IF(Descriptions!D59=\"Grant income\",WorkingR!AI58,0)","v":0},0,{"$f":"'Prior Year Comparative'!W473","v":0},null,null,null,null,null,null,null,null,null,null,null,null,null,null,null,null,null,null,0,"0"]
[{"$f":"IF(Descriptions!D60=\"Grant income\",Descriptions!B60,0)","v":0},null,{"$f":"IF(Descriptions!D60=\"Grant income\",WorkingR!AF59,0)","v":0},{"$f":"IF(Descriptions!D60=\"Grant income\",WorkingR!AG59,0)","v":0},{"$f":"IF(Descriptions!D60=\"Grant income\",WorkingR!AH59,0)","v":0},{"$f":"IF(Descriptions!D60=\"Grant income\",WorkingR!AI59,0)","v":0},0,{"$f":"'Prior Year Comparative'!W474","v":0},null,null,null,null,null,null,null,null,null,null,null,null,null,null,null,null,null,null,0,"0"]
[{"$f":"IF(Descriptions!D61=\"Grant income\",Descriptions!B61,0)","v":0},null,{"$f":"IF(Descriptions!D61=\"Grant income\",WorkingR!AF60,0)","v":0},{"$f":"IF(Descriptions!D61=\"Grant income\",WorkingR!AG60,0)","v":0},{"$f":"IF(Descriptions!D61=\"Grant income\",WorkingR!AH60,0)","v":0},{"$f":"IF(Descriptions!D61=\"Grant income\",WorkingR!AI60,0)","v":0},0,{"$f":"'Prior Year Comparative'!W475","v":0},null,null,null,null,null,null,null,null,null,null,null,null,null,null,null,null,null,null,0,"0"]
[{"$f":"IF(Descriptions!D62=\"Grant income\",Descriptions!B62,0)","v":0},null,{"$f":"IF(Descriptions!D62=\"Grant income\",WorkingR!AF61,0)","v":0},{"$f":"IF(Descriptions!D62=\"Grant income\",WorkingR!AG61,0)","v":0},{"$f":"IF(Descriptions!D62=\"Grant income\",WorkingR!AH61,0)","v":0},{"$f":"IF(Descriptions!D62=\"Grant income\",WorkingR!AI61,0)","v":0},0,{"$f":"'Prior Year Comparative'!W476","v":0},null,null,null,null,null,null,null,null,null,null,null,null,null,null,null,null,null,null,0,"0"]
[{"$f":"IF(Descriptions!D63=\"Grant income\",Descriptions!B63,0)","v":0},null,{"$f":"IF(Descriptions!D63=\"Grant income\",WorkingR!AF62,0)","v":0},{"$f":"IF(Descriptions!D63=\"Grant income\",WorkingR!AG62,0)","v":0},{"$f":"IF(Descriptions!D63=\"Grant income\",WorkingR!AH62,0)","v":0},{"$f":"IF(Descriptions!D63=\"Grant income\",WorkingR!AI62,0)","v":0},0,{"$f":"'Prior Year Comparative'!W477","v":0},null,null,null,null,null,null,null,null,null,null,null,null,null,null,null,null,null,null,0,"0"]
[{"$f":"IF(Descriptions!D64=\"Grant income\",Descriptions!B64,0)","v":0},null,{"$f":"IF(Descriptions!D64=\"Grant income\",WorkingR!AF63,0)","v":0},{"$f":"IF(Descriptions!D64=\"Grant income\",WorkingR!AG63,0)","v":0},{"$f":"IF(Descriptions!D64=\"Grant income\",WorkingR!AH63,0)","v":0},{"$f":"IF(Descriptions!D64=\"Grant income\",WorkingR!AI63,0)","v":0},0,{"$f":"'Prior Year Comparative'!W478","v":0},null,null,null,null,null,null,null,null,null,null,null,null,null,null,null,null,null,null,0,"0"]
[{"$f":"IF(Descriptions!D65=\"Grant income\",Descriptions!B65,0)","v":0},null,{"$f":"IF(Descriptions!D65=\"Grant income\",WorkingR!AF64,0)","v":0},{"$f":"IF(Descriptions!D65=\"Grant income\",WorkingR!AG64,0)","v":0},{"$f":"IF(Descriptions!D65=\"Grant income\",WorkingR!AH64,0)","v":0},{"$f":"IF(Descriptions!D65=\"Grant income\",WorkingR!AI64,0)","v":0},0,{"$f":"'Prior Year Comparative'!W479","v":0},null,null,null,null,null,null,null,null,null,null,null,null,null,null,null,null,null,null,0,"0"]
[{"$f":"IF(Descriptions!D66=\"Grant income\",Descriptions!B66,0)","v":0},null,{"$f":"IF(Descriptions!D66=\"Grant income\",WorkingR!AF65,0)","v":0},{"$f":"IF(Descriptions!D66=\"Grant income\",WorkingR!AG65,0)","v":0},{"$f":"IF(Descriptions!D66=\"Grant income\",WorkingR!AH65,0)","v":0},{"$f":"IF(Descriptions!D66=\"Grant income\",WorkingR!AI65,0)","v":0},0,{"$f":"'Prior Year Comparative'!W480","v":0},null,null,null,null,null,null,null,null,null,null,null,null,null,null,null,null,null,null,0,"0"]
[{"$f":"IF(Descriptions!D67=\"Grant income\",Descriptions!B67,0)","v":0},null,{"$f":"IF(Descriptions!D67=\"Grant income\",WorkingR!AF66,0)","v":0},{"$f":"IF(Descriptions!D67=\"Grant income\",WorkingR!AG66,0)","v":0},{"$f":"IF(Descriptions!D67=\"Grant income\",WorkingR!AH66,0)","v":0},{"$f":"IF(Descriptions!D67=\"Grant income\",WorkingR!AI66,0)","v":0},0,{"$f":"'Prior Year Comparative'!W481","v":0},null,null,null,null,null,null,null,null,null,null,null,null,null,null,null,null,null,null,0,"0"]
[{"$f":"IF(Descriptions!D68=\"Grant income\",Descriptions!B68,0)","v":0},null,{"$f":"IF(Descriptions!D68=\"Grant income\",WorkingR!AF67,0)","v":0},{"$f":"IF(Descriptions!D68=\"Grant income\",WorkingR!AG67,0)","v":0},{"$f":"IF(Descriptions!D68=\"Grant income\",WorkingR!AH67,0)","v":0},{"$f":"IF(Descriptions!D68=\"Grant income\",WorkingR!AI67,0)","v":0},0,{"$f":"'Prior Year Comparative'!W482","v":0},null,null,null,null,null,null,null,null,null,null,null,null,null,null,null,null,null,null,0,"0"]
[{"$f":"IF(Descriptions!D69=\"Grant income\",Descriptions!B69,0)","v":0},null,{"$f":"IF(Descriptions!D69=\"Grant income\",WorkingR!AF68,0)","v":0},{"$f":"IF(Descriptions!D69=\"Grant income\",WorkingR!AG68,0)","v":0},{"$f":"IF(Descriptions!D69=\"Grant income\",WorkingR!AH68,0)","v":0},{"$f":"IF(Descriptions!D69=\"Grant income\",WorkingR!AI68,0)","v":0},0,{"$f":"'Prior Year Comparative'!W483","v":0},null,null,null,null,null,null,null,null,null,null,null,null,null,null,null,null,null,null,0,"0"]
[{"$f":"IF(Descriptions!D70=\"Grant income\",Descriptions!B70,0)","v":0},null,{"$f":"IF(Descriptions!D70=\"Grant income\",WorkingR!AF69,0)","v":0},{"$f":"IF(Descriptions!D70=\"Grant income\",WorkingR!AG69,0)","v":0},{"$f":"IF(Descriptions!D70=\"Grant income\",WorkingR!AH69,0)","v":0},{"$f":"IF(Descriptions!D70=\"Grant income\",WorkingR!AI69,0)","v":0},0,{"$f":"'Prior Year Comparative'!W484","v":0},null,null,null,null,null,null,null,null,null,null,null,null,null,null,null,null,null,null,0,"0"]
[{"$f":"IF(Descriptions!D71=\"Grant income\",Descriptions!B71,0)","v":0},null,{"$f":"IF(Descriptions!D71=\"Grant income\",WorkingR!AF70,0)","v":0},{"$f":"IF(Descriptions!D71=\"Grant income\",WorkingR!AG70,0)","v":0},{"$f":"IF(Descriptions!D71=\"Grant income\",WorkingR!AH70,0)","v":0},{"$f":"IF(Descriptions!D71=\"Grant income\",WorkingR!AI70,0)","v":0},0,{"$f":"'Prior Year Comparative'!W485","v":0},null,null,null,null,null,null,null,null,null,null,null,null,null,null,null,null,null,null,0,"0"]
[{"$f":"IF(Descriptions!D72=\"Grant income\",Descriptions!B72,0)","v":0},null,{"$f":"IF(Descriptions!D72=\"Grant income\",WorkingR!AF71,0)","v":0},{"$f":"IF(Descriptions!D72=\"Grant income\",WorkingR!AG71,0)","v":0},{"$f":"IF(Descriptions!D72=\"Grant income\",WorkingR!AH71,0)","v":0},{"$f":"IF(Descriptions!D72=\"Grant income\",WorkingR!AI71,0)","v":0},0,{"$f":"'Prior Year Comparative'!W486","v":0},null,null,null,null,null,null,null,null,null,null,null,null,null,null,null,null,null,null,0,"0"]
[{"$f":"IF(Descriptions!D73=\"Grant income\",Descriptions!B73,0)","v":0},null,{"$f":"IF(Descriptions!D73=\"Grant income\",WorkingR!AF72,0)","v":0},{"$f":"IF(Descriptions!D73=\"Grant income\",WorkingR!AG72,0)","v":0},{"$f":"IF(Descriptions!D73=\"Grant income\",WorkingR!AH72,0)","v":0},{"$f":"IF(Descriptions!D73=\"Grant income\",WorkingR!AI72,0)","v":0},0,{"$f":"'Prior Year Comparative'!W487","v":0},null,null,null,null,null,null,null,null,null,null,null,null,null,null,null,null,null,null,0,"0"]
[{"$f":"IF(Descriptions!D74=\"Grant income\",Descriptions!B74,0)","v":0},null,{"$f":"IF(Descriptions!D74=\"Grant income\",WorkingR!AF73,0)","v":0},{"$f":"IF(Descriptions!D74=\"Grant income\",WorkingR!AG73,0)","v":0},{"$f":"IF(Descriptions!D74=\"Grant income\",WorkingR!AH73,0)","v":0},{"$f":"IF(Descriptions!D74=\"Grant income\",WorkingR!AI73,0)","v":0},0,{"$f":"'Prior Year Comparative'!W488","v":0},null,null,null,null,null,null,null,null,null,null,null,null,null,null,null,null,null,null,0,"0"]
[{"$f":"IF(Descriptions!D75=\"Grant income\",Descriptions!B75,0)","v":0},null,{"$f":"IF(Descriptions!D75=\"Grant income\",WorkingR!AF74,0)","v":0},{"$f":"IF(Descriptions!D75=\"Grant income\",WorkingR!AG74,0)","v":0},{"$f":"IF(Descriptions!D75=\"Grant income\",WorkingR!AH74,0)","v":0},{"$f":"IF(Descriptions!D75=\"Grant income\",WorkingR!AI74,0)","v":0},0,{"$f":"'Prior Year Comparative'!W489","v":0},null,null,null,null,null,null,null,null,null,null,null,null,null,null,null,null,null,null,0,"0"]
[{"$f":"IF(Descriptions!D76=\"Grant income\",Descriptions!B76,0)","v":0},null,{"$f":"IF(Descriptions!D76=\"Grant income\",WorkingR!AF75,0)","v":0},{"$f":"IF(Descriptions!D76=\"Grant income\",WorkingR!AG75,0)","v":0},{"$f":"IF(Descriptions!D76=\"Grant income\",WorkingR!AH75,0)","v":0},{"$f":"IF(Descriptions!D76=\"Grant income\",WorkingR!AI75,0)","v":0},0,{"$f":"'Prior Year Comparative'!W490","v":0},null,null,null,null,null,null,null,null,null,null,null,null,null,null,null,null,null,null,0,"0"]
[{"$f":"IF(Descriptions!D77=\"Grant income\",Descriptions!B77,0)","v":0},null,{"$f":"IF(Descriptions!D77=\"Grant income\",WorkingR!AF76,0)","v":0},{"$f":"IF(Descriptions!D77=\"Grant income\",WorkingR!AG76,0)","v":0},{"$f":"IF(Descriptions!D77=\"Grant income\",WorkingR!AH76,0)","v":0},{"$f":"IF(Descriptions!D77=\"Grant income\",WorkingR!AI76,0)","v":0},0,{"$f":"'Prior Year Comparative'!W491","v":0},null,null,null,null,null,null,null,null,null,null,null,null,null,null,null,null,null,null,0,"0"]
[{"$f":"IF(Descriptions!D78=\"Grant income\",Descriptions!B78,0)","v":0},null,{"$f":"IF(Descriptions!D78=\"Grant income\",WorkingR!AF77,0)","v":0},{"$f":"IF(Descriptions!D78=\"Grant income\",WorkingR!AG77,0)","v":0},{"$f":"IF(Descriptions!D78=\"Grant income\",WorkingR!AH77,0)","v":0},{"$f":"IF(Descriptions!D78=\"Grant income\",WorkingR!AI77,0)","v":0},0,{"$f":"'Prior Year Comparative'!W492","v":0},null,null,null,null,null,null,null,null,null,null,null,null,null,null,null,null,null,null,0,"0"]
[{"$f":"IF(Descriptions!D79=\"Grant income\",Descriptions!B79,0)","v":0},null,{"$f":"IF(Descriptions!D79=\"Grant income\",WorkingR!AF78,0)","v":0},{"$f":"IF(Descriptions!D79=\"Grant income\",WorkingR!AG78,0)","v":0},{"$f":"IF(Descriptions!D79=\"Grant income\",WorkingR!AH78,0)","v":0},{"$f":"IF(Descriptions!D79=\"Grant income\",WorkingR!AI78,0)","v":0},0,{"$f":"'Prior Year Comparative'!W493","v":0},null,null,null,null,null,null,null,null,null,null,null,null,null,null,null,null,null,null,0,"0"]
[{"$f":"IF(Descriptions!D80=\"Grant income\",Descriptions!B80,0)","v":0},null,{"$f":"IF(Descriptions!D80=\"Grant income\",WorkingR!AF79,0)","v":0},{"$f":"IF(Descriptions!D80=\"Grant income\",WorkingR!AG79,0)","v":0},{"$f":"IF(Descriptions!D80=\"Grant income\",WorkingR!AH79,0)","v":0},{"$f":"IF(Descriptions!D80=\"Grant income\",WorkingR!AI79,0)","v":0},0,{"$f":"'Prior Year Comparative'!W494","v":0},null,null,null,null,null,null,null,null,null,null,null,null,null,null,null,null,null,null,0,"0"]
[{"$f":"IF(Descriptions!D81=\"Grant income\",Descriptions!B81,0)","v":0},null,{"$f":"IF(Descriptions!D81=\"Grant income\",WorkingR!AF80,0)","v":0},{"$f":"IF(Descriptions!D81=\"Grant income\",WorkingR!AG80,0)","v":0},{"$f":"IF(Descriptions!D81=\"Grant income\",WorkingR!AH80,0)","v":0},{"$f":"IF(Descriptions!D81=\"Grant income\",WorkingR!AI80,0)","v":0},0,{"$f":"'Prior Year Comparative'!W495","v":0},null,null,null,null,null,null,null,null,null,null,null,null,null,null,null,null,null,null,0,"0"]
[{"$f":"IF(Descriptions!D82=\"Grant income\",Descriptions!B82,0)","v":0},null,{"$f":"IF(Descriptions!D82=\"Grant income\",WorkingR!AF81,0)","v":0},{"$f":"IF(Descriptions!D82=\"Grant income\",WorkingR!AG81,0)","v":0},{"$f":"IF(Descriptions!D82=\"Grant income\",WorkingR!AH81,0)","v":0},{"$f":"IF(Descriptions!D82=\"Grant income\",WorkingR!AI81,0)","v":0},0,{"$f":"'Prior Year Comparative'!W496","v":0},null,null,null,null,null,null,null,null,null,null,null,null,null,null,null,null,null,null,0,"0"]
[{"$f":"IF(Descriptions!D83=\"Grant income\",Descriptions!B83,0)","v":0},null,{"$f":"IF(Descriptions!D83=\"Grant income\",WorkingR!AF82,0)","v":0},{"$f":"IF(Descriptions!D83=\"Grant income\",WorkingR!AG82,0)","v":0},{"$f":"IF(Descriptions!D83=\"Grant income\",WorkingR!AH82,0)","v":0},{"$f":"IF(Descriptions!D83=\"Grant income\",WorkingR!AI82,0)","v":0},0,{"$f":"'Prior Year Comparative'!W497","v":0},null,null,null,null,null,null,null,null,null,null,null,null,null,null,null,null,null,null,0,"0"]
[{"$f":"IF(Descriptions!D84=\"Grant income\",Descriptions!B84,0)","v":0},null,{"$f":"IF(Descriptions!D84=\"Grant income\",WorkingR!AF83,0)","v":0},{"$f":"IF(Descriptions!D84=\"Grant income\",WorkingR!AG83,0)","v":0},{"$f":"IF(Descriptions!D84=\"Grant income\",WorkingR!AH83,0)","v":0},{"$f":"IF(Descriptions!D84=\"Grant income\",WorkingR!AI83,0)","v":0},0,{"$f":"'Prior Year Comparative'!W498","v":0},null,null,null,null,null,null,null,null,null,null,null,null,null,null,null,null,null,null,0,"0"]
[{"$f":"IF(Descriptions!D85=\"Grant income\",Descriptions!B85,0)","v":0},null,{"$f":"IF(Descriptions!D85=\"Grant income\",WorkingR!AF84,0)","v":0},{"$f":"IF(Descriptions!D85=\"Grant income\",WorkingR!AG84,0)","v":0},{"$f":"IF(Descriptions!D85=\"Grant income\",WorkingR!AH84,0)","v":0},{"$f":"IF(Descriptions!D85=\"Grant income\",WorkingR!AI84,0)","v":0},0,{"$f":"'Prior Year Comparative'!W499","v":0},null,null,null,null,null,null,null,null,null,null,null,null,null,null,null,null,null,null,0,"0"]
[{"$f":"IF(Descriptions!D86=\"Grant income\",Descriptions!B86,0)","v":0},null,{"$f":"IF(Descriptions!D86=\"Grant income\",WorkingR!AF85,0)","v":0},{"$f":"IF(Descriptions!D86=\"Grant income\",WorkingR!AG85,0)","v":0},{"$f":"IF(Descriptions!D86=\"Grant income\",WorkingR!AH85,0)","v":0},{"$f":"IF(Descriptions!D86=\"Grant income\",WorkingR!AI85,0)","v":0},0,{"$f":"'Prior Year Comparative'!W500","v":0},null,null,null,null,null,null,null,null,null,null,null,null,null,null,null,null,null,null,0,"0"]
[{"$f":"IF(Descriptions!D87=\"Grant income\",Descriptions!B87,0)","v":0},null,{"$f":"IF(Descriptions!D87=\"Grant income\",WorkingR!AF86,0)","v":0},{"$f":"IF(Descriptions!D87=\"Grant income\",WorkingR!AG86,0)","v":0},{"$f":"IF(Descriptions!D87=\"Grant income\",WorkingR!AH86,0)","v":0},{"$f":"IF(Descriptions!D87=\"Grant income\",WorkingR!AI86,0)","v":0},0,{"$f":"'Prior Year Comparative'!W501","v":0},null,null,null,null,null,null,null,null,null,null,null,null,null,null,null,null,null,null,0,"0"]
[{"$f":"IF(Descriptions!D88=\"Grant income\",Descriptions!B88,0)","v":0},null,{"$f":"IF(Descriptions!D88=\"Grant income\",WorkingR!AF87,0)","v":0},{"$f":"IF(Descriptions!D88=\"Grant income\",WorkingR!AG87,0)","v":0},{"$f":"IF(Descriptions!D88=\"Grant income\",WorkingR!AH87,0)","v":0},{"$f":"IF(Descriptions!D88=\"Grant income\",WorkingR!AI87,0)","v":0},0,{"$f":"'Prior Year Comparative'!W502","v":0},null,null,null,null,null,null,null,null,null,null,null,null,null,null,null,null,null,null,0,"0"]
[{"$f":"IF(Descriptions!D89=\"Grant income\",Descriptions!B89,0)","v":0},null,{"$f":"IF(Descriptions!D89=\"Grant income\",WorkingR!AF88,0)","v":0},{"$f":"IF(Descriptions!D89=\"Grant income\",WorkingR!AG88,0)","v":0},{"$f":"IF(Descriptions!D89=\"Grant income\",WorkingR!AH88,0)","v":0},{"$f":"IF(Descriptions!D89=\"Grant income\",WorkingR!AI88,0)","v":0},0,{"$f":"'Prior Year Comparative'!W503","v":0},null,null,null,null,null,null,null,null,null,null,null,null,null,null,null,null,null,null,0,"0"]
[{"$f":"IF(Descriptions!D90=\"Grant income\",Descriptions!B90,0)","v":0},null,{"$f":"IF(Descriptions!D90=\"Grant income\",WorkingR!AF89,0)","v":0},{"$f":"IF(Descriptions!D90=\"Grant income\",WorkingR!AG89,0)","v":0},{"$f":"IF(Descriptions!D90=\"Grant income\",WorkingR!AH89,0)","v":0},{"$f":"IF(Descriptions!D90=\"Grant income\",WorkingR!AI89,0)","v":0},0,{"$f":"'Prior Year Comparative'!W504","v":0},null,null,null,null,null,null,null,null,null,null,null,null,null,null,null,null,null,null,0,"0"]
[{"$f":"IF(Descriptions!D91=\"Grant income\",Descriptions!B91,0)","v":0},null,{"$f":"IF(Descriptions!D91=\"Grant income\",WorkingR!AF90,0)","v":0},{"$f":"IF(Descriptions!D91=\"Grant income\",WorkingR!AG90,0)","v":0},{"$f":"IF(Descriptions!D91=\"Grant income\",WorkingR!AH90,0)","v":0},{"$f":"IF(Descriptions!D91=\"Grant income\",WorkingR!AI90,0)","v":0},0,{"$f":"'Prior Year Comparative'!W505","v":0},null,null,null,null,null,null,null,null,null,null,null,null,null,null,null,null,null,null,{"$f":"SUM(C656:H656)","v":0},{"$f":"IF(AA656=0,\"0\",\"1\")","v":"0"}]
[{"$f":"IF(Descriptions!D92=\"Grant income\",Descriptions!B92,0)","v":0},null,{"$f":"IF(Descriptions!D92=\"Grant income\",WorkingR!AF91,0)","v":0},{"$f":"IF(Descriptions!D92=\"Grant income\",WorkingR!AG91,0)","v":0},{"$f":"IF(Descriptions!D92=\"Grant income\",WorkingR!AH91,0)","v":0},{"$f":"IF(Descriptions!D92=\"Grant income\",WorkingR!AI91,0)","v":0},0,{"$f":"'Prior Year Comparative'!W506","v":0},null,null,null,null,null,null,null,null,null,null,null,null,null,null,null,null,null,null,{"$f":"SUM(C657:H657)","v":0},"0"]
[null,null,null,null,null,null,null,null,null,null,null,null,null,null,null,null,null,null,null,null,null,null,null,null,null,null,{"$f":"AA659","v":0},"0"]
[null,null,{"$f":"SUM(C606:C657)","v":0},0,0,0,0,0,null,null,null,null,null,null,null,null,null,null,null,null,null,null,null,null,null,null,{"$f":"SUM(AA606:AA657)","v":0},"0"]
[null,null,null,null,null,null,null,null,null,null,null,null,null,null,null,null,null,null,null,null,null,null,null,null,null,null,{"$f":"SUM(AA662:AA713)","v":0},"0"]
["OTHER INCOME",null,null,null,null,null,null,null,null,null,null,null,null,null,null,null,null,null,null,null,null,null,null,null,null,null,{"$f":"AA660","v":0},"0"]
["Sale of Assets",null,{"$f":"WorkingR!AF30","v":0},{"$f":"WorkingR!AG30","v":0},{"$f":"WorkingR!AH30","v":0},{"$f":"WorkingR!AI30","v":0},{"$f":"SUM(C662:F662)","v":0},{"$f":"'Prior Year Comparative'!W509","v":0},null,null,null,null,null,null,null,null,null,null,null,null,null,null,null,null,null,null,{"$f":"SUM(C662:H662)","v":0},"0"]
["Other Recurring Income",null,{"$f":"WorkingR!AF27","v":0},{"$f":"WorkingR!AG27","v":0},{"$f":"WorkingR!AH27","v":0},{"$f":"WorkingR!AI27","v":0},{"$f":"SUM(C663:F663)","v":0},{"$f":"'Prior Year Comparative'!W510","v":0},null,null,null,null,null,null,null,null,null,null,null,null,null,null,null,null,null,null,{"$f":"SUM(C663:H663)","v":0},{"$f":"IF(AA663=0,\"0\",\"1\")","v":"0"}]
[{"$f":"IF(Descriptions!D43=\"Other income\",Descriptions!B43,0)","v":0},null,{"$f":"IF(Descriptions!D43=\"Other income\",WorkingR!AF42,0)","v":0},{"$f":"IF(Descriptions!D43=\"Other income\",WorkingR!AG42,0)","v":0},{"$f":"IF(Descriptions!D43=\"Other income\",WorkingR!AH42,0)","v":0},{"$f":"IF(Descriptions!D43=\"Other income\",WorkingR!AI42,0)","v":0},{"$f":"SUM(C664:F664)","v":0},{"$f":"'Prior Year Comparative'!W511","v":0},null,null,null,null,null,null,null,null,null,null,null,null,null,null,null,null,null,null,0,"0"]
[{"$f":"IF(Descriptions!D44=\"Other income\",Descriptions!B44,0)","v":0},null,{"$f":"IF(Descriptions!D44=\"Other income\",WorkingR!AF43,0)","v":0},{"$f":"IF(Descriptions!D44=\"Other income\",WorkingR!AG43,0)","v":0},{"$f":"IF(Descriptions!D44=\"Other income\",WorkingR!AH43,0)","v":0},{"$f":"IF(Descriptions!D44=\"Other income\",WorkingR!AI43,0)","v":0},{"$f":"SUM(C665:F665)","v":0},{"$f":"'Prior Year Comparative'!W512","v":0},null,null,null,null,null,null,null,null,null,null,null,null,null,null,null,null,null,null,0,"0"]
[{"$f":"IF(Descriptions!D45=\"Other income\",Descriptions!B45,0)","v":0},null,{"$f":"IF(Descriptions!D45=\"Other income\",WorkingR!AF44,0)","v":0},{"$f":"IF(Descriptions!D45=\"Other income\",WorkingR!AG44,0)","v":0},{"$f":"IF(Descriptions!D45=\"Other income\",WorkingR!AH44,0)","v":0},{"$f":"IF(Descriptions!D45=\"Other income\",WorkingR!AI44,0)","v":0},0,{"$f":"'Prior Year Comparative'!W513","v":0},null,null,null,null,null,null,null,null,null,null,null,null,null,null,null,null,null,null,0,"0"]
[{"$f":"IF(Descriptions!D46=\"Other income\",Descriptions!B46,0)","v":0},null,{"$f":"IF(Descriptions!D46=\"Other income\",WorkingR!AF45,0)","v":0},{"$f":"IF(Descriptions!D46=\"Other income\",WorkingR!AG45,0)","v":0},{"$f":"IF(Descriptions!D46=\"Other income\",WorkingR!AH45,0)","v":0},{"$f":"IF(Descriptions!D46=\"Other income\",WorkingR!AI45,0)","v":0},0,{"$f":"'Prior Year Comparative'!W514","v":0},null,null,null,null,null,null,null,null,null,null,null,null,null,null,null,null,null,null,0,"0"]
[{"$f":"IF(Descriptions!D47=\"Other income\",Descriptions!B47,0)","v":0},null,{"$f":"IF(Descriptions!D47=\"Other income\",WorkingR!AF46,0)","v":0},{"$f":"IF(Descriptions!D47=\"Other income\",WorkingR!AG46,0)","v":0},{"$f":"IF(Descriptions!D47=\"Other income\",WorkingR!AH46,0)","v":0},{"$f":"IF(Descriptions!D47=\"Other income\",WorkingR!AI46,0)","v":0},0,{"$f":"'Prior Year Comparative'!W515","v":0},null,null,null,null,null,null,null,null,null,null,null,null,null,null,null,null,null,null,0,"0"]
[{"$f":"IF(Descriptions!D48=\"Other income\",Descriptions!B48,0)","v":0},null,{"$f":"IF(Descriptions!D48=\"Other income\",WorkingR!AF47,0)","v":0},{"$f":"IF(Descriptions!D48=\"Other income\",WorkingR!AG47,0)","v":0},{"$f":"IF(Descriptions!D48=\"Other income\",WorkingR!AH47,0)","v":0},{"$f":"IF(Descriptions!D48=\"Other income\",WorkingR!AI47,0)","v":0},0,{"$f":"'Prior Year Comparative'!W516","v":0},null,null,null,null,null,null,null,null,null,null,null,null,null,null,null,null,null,null,0,"0"]
[{"$f":"IF(Descriptions!D49=\"Other income\",Descriptions!B49,0)","v":0},null,{"$f":"IF(Descriptions!D49=\"Other income\",WorkingR!AF48,0)","v":0},{"$f":"IF(Descriptions!D49=\"Other income\",WorkingR!AG48,0)","v":0},{"$f":"IF(Descriptions!D49=\"Other income\",WorkingR!AH48,0)","v":0},{"$f":"IF(Descriptions!D49=\"Other income\",WorkingR!AI48,0)","v":0},0,{"$f":"'Prior Year Comparative'!W517","v":0},null,null,null,null,null,null,null,null,null,null,null,null,null,null,null,null,null,null,0,"0"]
[{"$f":"IF(Descriptions!D50=\"Other income\",Descriptions!B50,0)","v":0},null,{"$f":"IF(Descriptions!D50=\"Other income\",WorkingR!AF49,0)","v":0},{"$f":"IF(Descriptions!D50=\"Other income\",WorkingR!AG49,0)","v":0},{"$f":"IF(Descriptions!D50=\"Other income\",WorkingR!AH49,0)","v":0},{"$f":"IF(Descriptions!D50=\"Other income\",WorkingR!AI49,0)","v":0},0,{"$f":"'Prior Year Comparative'!W518","v":0},null,null,null,null,null,null,null,null,null,null,null,null,null,null,null,null,null,null,0,"0"]
[{"$f":"IF(Descriptions!D51=\"Other income\",Descriptions!B51,0)","v":0},null,{"$f":"IF(Descriptions!D51=\"Other income\",WorkingR!AF50,0)","v":0},{"$f":"IF(Descriptions!D51=\"Other income\",WorkingR!AG50,0)","v":0},{"$f":"IF(Descriptions!D51=\"Other income\",WorkingR!AH50,0)","v":0},{"$f":"IF(Descriptions!D51=\"Other income\",WorkingR!AI50,0)","v":0},0,{"$f":"'Prior Year Comparative'!W519","v":0},null,null,null,null,null,null,null,null,null,null,null,null,null,null,null,null,null,null,0,"0"]
[{"$f":"IF(Descriptions!D52=\"Other income\",Descriptions!B52,0)","v":0},null,{"$f":"IF(Descriptions!D52=\"Other income\",WorkingR!AF51,0)","v":0},{"$f":"IF(Descriptions!D52=\"Other income\",WorkingR!AG51,0)","v":0},{"$f":"IF(Descriptions!D52=\"Other income\",WorkingR!AH51,0)","v":0},{"$f":"IF(Descriptions!D52=\"Other income\",WorkingR!AI51,0)","v":0},0,{"$f":"'Prior Year Comparative'!W520","v":0},null,null,null,null,null,null,null,null,null,null,null,null,null,null,null,null,null,null,0,"0"]
[{"$f":"IF(Descriptions!D53=\"Other income\",Descriptions!B53,0)","v":0},null,{"$f":"IF(Descriptions!D53=\"Other income\",WorkingR!AF52,0)","v":0},{"$f":"IF(Descriptions!D53=\"Other income\",WorkingR!AG52,0)","v":0},{"$f":"IF(Descriptions!D53=\"Other income\",WorkingR!AH52,0)","v":0},{"$f":"IF(Descriptions!D53=\"Other income\",WorkingR!AI52,0)","v":0},0,{"$f":"'Prior Year Comparative'!W521","v":0},null,null,null,null,null,null,null,null,null,null,null,null,null,null,null,null,null,null,0,"0"]
[{"$f":"IF(Descriptions!D54=\"Other income\",Descriptions!B54,0)","v":0},null,{"$f":"IF(Descriptions!D54=\"Other income\",WorkingR!AF53,0)","v":0},{"$f":"IF(Descriptions!D54=\"Other income\",WorkingR!AG53,0)","v":0},{"$f":"IF(Descriptions!D54=\"Other income\",WorkingR!AH53,0)","v":0},{"$f":"IF(Descriptions!D54=\"Other income\",WorkingR!AI53,0)","v":0},0,{"$f":"'Prior Year Comparative'!W522","v":0},null,null,null,null,null,null,null,null,null,null,null,null,null,null,null,null,null,null,0,"0"]
[{"$f":"IF(Descriptions!D55=\"Other income\",Descriptions!B55,0)","v":0},null,{"$f":"IF(Descriptions!D55=\"Other income\",WorkingR!AF54,0)","v":0},{"$f":"IF(Descriptions!D55=\"Other income\",WorkingR!AG54,0)","v":0},{"$f":"IF(Descriptions!D55=\"Other income\",WorkingR!AH54,0)","v":0},{"$f":"IF(Descriptions!D55=\"Other income\",WorkingR!AI54,0)","v":0},0,{"$f":"'Prior Year Comparative'!W523","v":0},null,null,null,null,null,null,null,null,null,null,null,null,null,null,null,null,null,null,0,"0"]
[{"$f":"IF(Descriptions!D56=\"Other income\",Descriptions!B56,0)","v":0},null,{"$f":"IF(Descriptions!D56=\"Other income\",WorkingR!AF55,0)","v":0},{"$f":"IF(Descriptions!D56=\"Other income\",WorkingR!AG55,0)","v":0},{"$f":"IF(Descriptions!D56=\"Other income\",WorkingR!AH55,0)","v":0},{"$f":"IF(Descriptions!D56=\"Other income\",WorkingR!AI55,0)","v":0},0,{"$f":"'Prior Year Comparative'!W524","v":0},null,null,null,null,null,null,null,null,null,null,null,null,null,null,null,null,null,null,0,"0"]
[{"$f":"IF(Descriptions!D57=\"Other income\",Descriptions!B57,0)","v":0},null,{"$f":"IF(Descriptions!D57=\"Other income\",WorkingR!AF56,0)","v":0},{"$f":"IF(Descriptions!D57=\"Other income\",WorkingR!AG56,0)","v":0},{"$f":"IF(Descriptions!D57=\"Other income\",WorkingR!AH56,0)","v":0},{"$f":"IF(Descriptions!D57=\"Other income\",WorkingR!AI56,0)","v":0},0,{"$f":"'Prior Year Comparative'!W525","v":0},null,null,null,null,null,null,null,null,null,null,null,null,null,null,null,null,null,null,0,"0"]
[{"$f":"IF(Descriptions!D58=\"Other income\",Descriptions!B58,0)","v":0},null,{"$f":"IF(Descriptions!D58=\"Other income\",WorkingR!AF57,0)","v":0},{"$f":"IF(Descriptions!D58=\"Other income\",WorkingR!AG57,0)","v":0},{"$f":"IF(Descriptions!D58=\"Other income\",WorkingR!AH57,0)","v":0},{"$f":"IF(Descriptions!D58=\"Other income\",WorkingR!AI57,0)","v":0},0,{"$f":"'Prior Year Comparative'!W526","v":0},null,null,null,null,null,null,null,null,null,null,null,null,null,null,null,null,null,null,0,"0"]
[{"$f":"IF(Descriptions!D59=\"Other income\",Descriptions!B59,0)","v":0},null,{"$f":"IF(Descriptions!D59=\"Other income\",WorkingR!AF58,0)","v":0},{"$f":"IF(Descriptions!D59=\"Other income\",WorkingR!AG58,0)","v":0},{"$f":"IF(Descriptions!D59=\"Other income\",WorkingR!AH58,0)","v":0},{"$f":"IF(Descriptions!D59=\"Other income\",WorkingR!AI58,0)","v":0},0,{"$f":"'Prior Year Comparative'!W527","v":0},null,null,null,null,null,null,null,null,null,null,null,null,null,null,null,null,null,null,0,"0"]
[{"$f":"IF(Descriptions!D60=\"Other income\",Descriptions!B60,0)","v":0},null,{"$f":"IF(Descriptions!D60=\"Other income\",WorkingR!AF59,0)","v":0},{"$f":"IF(Descriptions!D60=\"Other income\",WorkingR!AG59,0)","v":0},{"$f":"IF(Descriptions!D60=\"Other income\",WorkingR!AH59,0)","v":0},{"$f":"IF(Descriptions!D60=\"Other income\",WorkingR!AI59,0)","v":0},0,{"$f":"'Prior Year Comparative'!W528","v":0},null,null,null,null,null,null,null,null,null,null,null,null,null,null,null,null,null,null,0,"0"]
[{"$f":"IF(Descriptions!D61=\"Other income\",Descriptions!B61,0)","v":0},null,{"$f":"IF(Descriptions!D61=\"Other income\",WorkingR!AF60,0)","v":0},{"$f":"IF(Descriptions!D61=\"Other income\",WorkingR!AG60,0)","v":0},{"$f":"IF(Descriptions!D61=\"Other income\",WorkingR!AH60,0)","v":0},{"$f":"IF(Descriptions!D61=\"Other income\",WorkingR!AI60,0)","v":0},0,{"$f":"'Prior Year Comparative'!W529","v":0},null,null,null,null,null,null,null,null,null,null,null,null,null,null,null,null,null,null,0,"0"]
[{"$f":"IF(Descriptions!D62=\"Other income\",Descriptions!B62,0)","v":0},null,{"$f":"IF(Descriptions!D62=\"Other income\",WorkingR!AF61,0)","v":0},{"$f":"IF(Descriptions!D62=\"Other income\",WorkingR!AG61,0)","v":0},{"$f":"IF(Descriptions!D62=\"Other income\",WorkingR!AH61,0)","v":0},{"$f":"IF(Descriptions!D62=\"Other income\",WorkingR!AI61,0)","v":0},0,{"$f":"'Prior Year Comparative'!W530","v":0},null,null,null,null,null,null,null,null,null,null,null,null,null,null,null,null,null,null,0,"0"]
[{"$f":"IF(Descriptions!D63=\"Other income\",Descriptions!B63,0)","v":0},null,{"$f":"IF(Descriptions!D63=\"Other income\",WorkingR!AF62,0)","v":0},{"$f":"IF(Descriptions!D63=\"Other income\",WorkingR!AG62,0)","v":0},{"$f":"IF(Descriptions!D63=\"Other income\",WorkingR!AH62,0)","v":0},{"$f":"IF(Descriptions!D63=\"Other income\",WorkingR!AI62,0)","v":0},0,{"$f":"'Prior Year Comparative'!W531","v":0},null,null,null,null,null,null,null,null,null,null,null,null,null,null,null,null,null,null,0,"0"]
[{"$f":"IF(Descriptions!D64=\"Other income\",Descriptions!B64,0)","v":0},null,{"$f":"IF(Descriptions!D64=\"Other income\",WorkingR!AF63,0)","v":0},{"$f":"IF(Descriptions!D64=\"Other income\",WorkingR!AG63,0)","v":0},{"$f":"IF(Descriptions!D64=\"Other income\",WorkingR!AH63,0)","v":0},{"$f":"IF(Descriptions!D64=\"Other income\",WorkingR!AI63,0)","v":0},0,{"$f":"'Prior Year Comparative'!W532","v":0},null,null,null,null,null,null,null,null,null,null,null,null,null,null,null,null,null,null,0,"0"]
[{"$f":"IF(Descriptions!D65=\"Other income\",Descriptions!B65,0)","v":0},null,{"$f":"IF(Descriptions!D65=\"Other income\",WorkingR!AF64,0)","v":0},{"$f":"IF(Descriptions!D65=\"Other income\",WorkingR!AG64,0)","v":0},{"$f":"IF(Descriptions!D65=\"Other income\",WorkingR!AH64,0)","v":0},{"$f":"IF(Descriptions!D65=\"Other income\",WorkingR!AI64,0)","v":0},0,{"$f":"'Prior Year Comparative'!W533","v":0},null,null,null,null,null,null,null,null,null,null,null,null,null,null,null,null,null,null,0,"0"]
[{"$f":"IF(Descriptions!D66=\"Other income\",Descriptions!B66,0)","v":0},null,{"$f":"IF(Descriptions!D66=\"Other income\",WorkingR!AF65,0)","v":0},{"$f":"IF(Descriptions!D66=\"Other income\",WorkingR!AG65,0)","v":0},{"$f":"IF(Descriptions!D66=\"Other income\",WorkingR!AH65,0)","v":0},{"$f":"IF(Descriptions!D66=\"Other income\",WorkingR!AI65,0)","v":0},0,{"$f":"'Prior Year Comparative'!W534","v":0},null,null,null,null,null,null,null,null,null,null,null,null,null,null,null,null,null,null,0,"0"]
[{"$f":"IF(Descriptions!D67=\"Other income\",Descriptions!B67,0)","v":0},null,{"$f":"IF(Descriptions!D67=\"Other income\",WorkingR!AF66,0)","v":0},{"$f":"IF(Descriptions!D67=\"Other income\",WorkingR!AG66,0)","v":0},{"$f":"IF(Descriptions!D67=\"Other income\",WorkingR!AH66,0)","v":0},{"$f":"IF(Descriptions!D67=\"Other income\",WorkingR!AI66,0)","v":0},0,{"$f":"'Prior Year Comparative'!W535","v":0},null,null,null,null,null,null,null,null,null,null,null,null,null,null,null,null,null,null,0,"0"]
[{"$f":"IF(Descriptions!D68=\"Other income\",Descriptions!B68,0)","v":0},null,{"$f":"IF(Descriptions!D68=\"Other income\",WorkingR!AF67,0)","v":0},{"$f":"IF(Descriptions!D68=\"Other income\",WorkingR!AG67,0)","v":0},{"$f":"IF(Descriptions!D68=\"Other income\",WorkingR!AH67,0)","v":0},{"$f":"IF(Descriptions!D68=\"Other income\",WorkingR!AI67,0)","v":0},0,{"$f":"'Prior Year Comparative'!W536","v":0},null,null,null,null,null,null,null,null,null,null,null,null,null,null,null,null,null,null,0,"0"]
[{"$f":"IF(Descriptions!D69=\"Other income\",Descriptions!B69,0)","v":0},null,{"$f":"IF(Descriptions!D69=\"Other income\",WorkingR!AF68,0)","v":0},{"$f":"IF(Descriptions!D69=\"Other income\",WorkingR!AG68,0)","v":0},{"$f":"IF(Descriptions!D69=\"Other income\",WorkingR!AH68,0)","v":0},{"$f":"IF(Descriptions!D69=\"Other income\",WorkingR!AI68,0)","v":0},0,{"$f":"'Prior Year Comparative'!W537","v":0},null,null,null,null,null,null,null,null,null,null,null,null,null,null,null,null,null,null,0,"0"]
[{"$f":"IF(Descriptions!D70=\"Other income\",Descriptions!B70,0)","v":0},null,{"$f":"IF(Descriptions!D70=\"Other income\",WorkingR!AF69,0)","v":0},{"$f":"IF(Descriptions!D70=\"Other income\",WorkingR!AG69,0)","v":0},{"$f":"IF(Descriptions!D70=\"Other income\",WorkingR!AH69,0)","v":0},{"$f":"IF(Descriptions!D70=\"Other income\",WorkingR!AI69,0)","v":0},0,{"$f":"'Prior Year Comparative'!W538","v":0},null,null,null,null,null,null,null,null,null,null,null,null,null,null,null,null,null,null,0,"0"]
[{"$f":"IF(Descriptions!D71=\"Other income\",Descriptions!B71,0)","v":0},null,{"$f":"IF(Descriptions!D71=\"Other income\",WorkingR!AF70,0)","v":0},{"$f":"IF(Descriptions!D71=\"Other income\",WorkingR!AG70,0)","v":0},{"$f":"IF(Descriptions!D71=\"Other income\",WorkingR!AH70,0)","v":0},{"$f":"IF(Descriptions!D71=\"Other income\",WorkingR!AI70,0)","v":0},0,{"$f":"'Prior Year Comparative'!W539","v":0},null,null,null,null,null,null,null,null,null,null,null,null,null,null,null,null,null,null,0,"0"]
[{"$f":"IF(Descriptions!D72=\"Other income\",Descriptions!B72,0)","v":0},null,{"$f":"IF(Descriptions!D72=\"Other income\",WorkingR!AF71,0)","v":0},{"$f":"IF(Descriptions!D72=\"Other income\",WorkingR!AG71,0)","v":0},{"$f":"IF(Descriptions!D72=\"Other income\",WorkingR!AH71,0)","v":0},{"$f":"IF(Descriptions!D72=\"Other income\",WorkingR!AI71,0)","v":0},0,{"$f":"'Prior Year Comparative'!W540","v":0},null,null,null,null,null,null,null,null,null,null,null,null,null,null,null,null,null,null,0,"0"]
[{"$f":"IF(Descriptions!D73=\"Other income\",Descriptions!B73,0)","v":0},null,{"$f":"IF(Descriptions!D73=\"Other income\",WorkingR!AF72,0)","v":0},{"$f":"IF(Descriptions!D73=\"Other income\",WorkingR!AG72,0)","v":0},{"$f":"IF(Descriptions!D73=\"Other income\",WorkingR!AH72,0)","v":0},{"$f":"IF(Descriptions!D73=\"Other income\",WorkingR!AI72,0)","v":0},0,{"$f":"'Prior Year Comparative'!W541","v":0},null,null,null,null,null,null,null,null,null,null,null,null,null,null,null,null,null,null,0,"0"]
[{"$f":"IF(Descriptions!D74=\"Other income\",Descriptions!B74,0)","v":0},null,{"$f":"IF(Descriptions!D74=\"Other income\",WorkingR!AF73,0)","v":0},{"$f":"IF(Descriptions!D74=\"Other income\",WorkingR!AG73,0)","v":0},{"$f":"IF(Descriptions!D74=\"Other income\",WorkingR!AH73,0)","v":0},{"$f":"IF(Descriptions!D74=\"Other income\",WorkingR!AI73,0)","v":0},0,{"$f":"'Prior Year Comparative'!W542","v":0},null,null,null,null,null,null,null,null,null,null,null,null,null,null,null,null,null,null,0,"0"]
[{"$f":"IF(Descriptions!D75=\"Other income\",Descriptions!B75,0)","v":0},null,{"$f":"IF(Descriptions!D75=\"Other income\",WorkingR!AF74,0)","v":0},{"$f":"IF(Descriptions!D75=\"Other income\",WorkingR!AG74,0)","v":0},{"$f":"IF(Descriptions!D75=\"Other income\",WorkingR!AH74,0)","v":0},{"$f":"IF(Descriptions!D75=\"Other income\",WorkingR!AI74,0)","v":0},0,{"$f":"'Prior Year Comparative'!W543","v":0},null,null,null,null,null,null,null,null,null,null,null,null,null,null,null,null,null,null,0,"0"]
[{"$f":"IF(Descriptions!D76=\"Other income\",Descriptions!B76,0)","v":0},null,{"$f":"IF(Descriptions!D76=\"Other income\",WorkingR!AF75,0)","v":0},{"$f":"IF(Descriptions!D76=\"Other income\",WorkingR!AG75,0)","v":0},{"$f":"IF(Descriptions!D76=\"Other income\",WorkingR!AH75,0)","v":0},{"$f":"IF(Descriptions!D76=\"Other income\",WorkingR!AI75,0)","v":0},0,{"$f":"'Prior Year Comparative'!W544","v":0},null,null,null,null,null,null,null,null,null,null,null,null,null,null,null,null,null,null,0,"0"]
[{"$f":"IF(Descriptions!D77=\"Other income\",Descriptions!B77,0)","v":0},null,{"$f":"IF(Descriptions!D77=\"Other income\",WorkingR!AF76,0)","v":0},{"$f":"IF(Descriptions!D77=\"Other income\",WorkingR!AG76,0)","v":0},{"$f":"IF(Descriptions!D77=\"Other income\",WorkingR!AH76,0)","v":0},{"$f":"IF(Descriptions!D77=\"Other income\",WorkingR!AI76,0)","v":0},0,{"$f":"'Prior Year Comparative'!W545","v":0},null,null,null,null,null,null,null,null,null,null,null,null,null,null,null,null,null,null,0,"0"]
[{"$f":"IF(Descriptions!D78=\"Other income\",Descriptions!B78,0)","v":0},null,{"$f":"IF(Descriptions!D78=\"Other income\",WorkingR!AF77,0)","v":0},{"$f":"IF(Descriptions!D78=\"Other income\",WorkingR!AG77,0)","v":0},{"$f":"IF(Descriptions!D78=\"Other income\",WorkingR!AH77,0)","v":0},{"$f":"IF(Descriptions!D78=\"Other income\",WorkingR!AI77,0)","v":0},0,{"$f":"'Prior Year Comparative'!W546","v":0},null,null,null,null,null,null,null,null,null,null,null,null,null,null,null,null,null,null,0,"0"]
[{"$f":"IF(Descriptions!D79=\"Other income\",Descriptions!B79,0)","v":0},null,{"$f":"IF(Descriptions!D79=\"Other income\",WorkingR!AF78,0)","v":0},{"$f":"IF(Descriptions!D79=\"Other income\",WorkingR!AG78,0)","v":0},{"$f":"IF(Descriptions!D79=\"Other income\",WorkingR!AH78,0)","v":0},{"$f":"IF(Descriptions!D79=\"Other income\",WorkingR!AI78,0)","v":0},0,{"$f":"'Prior Year Comparative'!W547","v":0},null,null,null,null,null,null,null,null,null,null,null,null,null,null,null,null,null,null,0,"0"]
[{"$f":"IF(Descriptions!D80=\"Other income\",Descriptions!B80,0)","v":0},null,{"$f":"IF(Descriptions!D80=\"Other income\",WorkingR!AF79,0)","v":0},{"$f":"IF(Descriptions!D80=\"Other income\",WorkingR!AG79,0)","v":0},{"$f":"IF(Descriptions!D80=\"Other income\",WorkingR!AH79,0)","v":0},{"$f":"IF(Descriptions!D80=\"Other income\",WorkingR!AI79,0)","v":0},0,{"$f":"'Prior Year Comparative'!W548","v":0},null,null,null,null,null,null,null,null,null,null,null,null,null,null,null,null,null,null,0,"0"]
[{"$f":"IF(Descriptions!D81=\"Other income\",Descriptions!B81,0)","v":0},null,{"$f":"IF(Descriptions!D81=\"Other income\",WorkingR!AF80,0)","v":0},{"$f":"IF(Descriptions!D81=\"Other income\",WorkingR!AG80,0)","v":0},{"$f":"IF(Descriptions!D81=\"Other income\",WorkingR!AH80,0)","v":0},{"$f":"IF(Descriptions!D81=\"Other income\",WorkingR!AI80,0)","v":0},0,{"$f":"'Prior Year Comparative'!W549","v":0},null,null,null,null,null,null,null,null,null,null,null,null,null,null,null,null,null,null,0,"0"]
[{"$f":"IF(Descriptions!D82=\"Other income\",Descriptions!B82,0)","v":0},null,{"$f":"IF(Descriptions!D82=\"Other income\",WorkingR!AF81,0)","v":0},{"$f":"IF(Descriptions!D82=\"Other income\",WorkingR!AG81,0)","v":0},{"$f":"IF(Descriptions!D82=\"Other income\",WorkingR!AH81,0)","v":0},{"$f":"IF(Descriptions!D82=\"Other income\",WorkingR!AI81,0)","v":0},0,{"$f":"'Prior Year Comparative'!W550","v":0},null,null,null,null,null,null,null,null,null,null,null,null,null,null,null,null,null,null,0,"0"]
[{"$f":"IF(Descriptions!D83=\"Other income\",Descriptions!B83,0)","v":0},null,{"$f":"IF(Descriptions!D83=\"Other income\",WorkingR!AF82,0)","v":0},{"$f":"IF(Descriptions!D83=\"Other income\",WorkingR!AG82,0)","v":0},{"$f":"IF(Descriptions!D83=\"Other income\",WorkingR!AH82,0)","v":0},{"$f":"IF(Descriptions!D83=\"Other income\",WorkingR!AI82,0)","v":0},0,{"$f":"'Prior Year Comparative'!W551","v":0},null,null,null,null,null,null,null,null,null,null,null,null,null,null,null,null,null,null,{"$f":"SUM(C704:H704)","v":0},{"$f":"IF(AA704=0,\"0\",\"1\")","v":"0"}]
[{"$f":"IF(Descriptions!D84=\"Other income\",Descriptions!B84,0)","v":0},null,{"$f":"IF(Descriptions!D84=\"Other income\",WorkingR!AF83,0)","v":0},{"$f":"IF(Descriptions!D84=\"Other income\",WorkingR!AG83,0)","v":0},{"$f":"IF(Descriptions!D84=\"Other income\",WorkingR!AH83,0)","v":0},{"$f":"IF(Descriptions!D84=\"Other income\",WorkingR!AI83,0)","v":0},0,{"$f":"'Prior Year Comparative'!W552","v":0},null,null,null,null,null,null,null,null,null,null,null,null,null,null,null,null,null,null,0,"0"]
[{"$f":"IF(Descriptions!D85=\"Other income\",Descriptions!B85,0)","v":0},null,{"$f":"IF(Descriptions!D85=\"Other income\",WorkingR!AF84,0)","v":0},{"$f":"IF(Descriptions!D85=\"Other income\",WorkingR!AG84,0)","v":0},{"$f":"IF(Descriptions!D85=\"Other income\",WorkingR!AH84,0)","v":0},{"$f":"IF(Descriptions!D85=\"Other income\",WorkingR!AI84,0)","v":0},0,{"$f":"'Prior Year Comparative'!W553","v":0},null,null,null,null,null,null,null,null,null,null,null,null,null,null,null,null,null,null,0,"0"]
[{"$f":"IF(Descriptions!D86=\"Other income\",Descriptions!B86,0)","v":0},null,{"$f":"IF(Descriptions!D86=\"Other income\",WorkingR!AF85,0)","v":0},{"$f":"IF(Descriptions!D86=\"Other income\",WorkingR!AG85,0)","v":0},{"$f":"IF(Descriptions!D86=\"Other income\",WorkingR!AH85,0)","v":0},{"$f":"IF(Descriptions!D86=\"Other income\",WorkingR!AI85,0)","v":0},0,{"$f":"'Prior Year Comparative'!W554","v":0},null,null,null,null,null,null,null,null,null,null,null,null,null,null,null,null,null,null,0,"0"]
[{"$f":"IF(Descriptions!D87=\"Other income\",Descriptions!B87,0)","v":0},null,{"$f":"IF(Descriptions!D87=\"Other income\",WorkingR!AF86,0)","v":0},{"$f":"IF(Descriptions!D87=\"Other income\",WorkingR!AG86,0)","v":0},{"$f":"IF(Descriptions!D87=\"Other income\",WorkingR!AH86,0)","v":0},{"$f":"IF(Descriptions!D87=\"Other income\",WorkingR!AI86,0)","v":0},0,{"$f":"'Prior Year Comparative'!W555","v":0},null,null,null,null,null,null,null,null,null,null,null,null,null,null,null,null,null,null,0,"0"]
[{"$f":"IF(Descriptions!D88=\"Other income\",Descriptions!B88,0)","v":0},null,{"$f":"IF(Descriptions!D88=\"Other income\",WorkingR!AF87,0)","v":0},{"$f":"IF(Descriptions!D88=\"Other income\",WorkingR!AG87,0)","v":0},{"$f":"IF(Descriptions!D88=\"Other income\",WorkingR!AH87,0)","v":0},{"$f":"IF(Descriptions!D88=\"Other income\",WorkingR!AI87,0)","v":0},0,{"$f":"'Prior Year Comparative'!W556","v":0},null,null,null,null,null,null,null,null,null,null,null,null,null,null,null,null,null,null,0,"0"]
[{"$f":"IF(Descriptions!D89=\"Other income\",Descriptions!B89,0)","v":0},null,{"$f":"IF(Descriptions!D89=\"Other income\",WorkingR!AF88,0)","v":0},{"$f":"IF(Descriptions!D89=\"Other income\",WorkingR!AG88,0)","v":0},{"$f":"IF(Descriptions!D89=\"Other income\",WorkingR!AH88,0)","v":0},{"$f":"IF(Descriptions!D89=\"Other income\",WorkingR!AI88,0)","v":0},0,{"$f":"'Prior Year Comparative'!W557","v":0},null,null,null,null,null,null,null,null,null,null,null,null,null,null,null,null,null,null,0,"0"]
[{"$f":"IF(Descriptions!D90=\"Other income\",Descriptions!B90,0)","v":0},null,{"$f":"IF(Descriptions!D90=\"Other income\",WorkingR!AF89,0)","v":0},{"$f":"IF(Descriptions!D90=\"Other income\",WorkingR!AG89,0)","v":0},{"$f":"IF(Descriptions!D90=\"Other income\",WorkingR!AH89,0)","v":0},{"$f":"IF(Descriptions!D90=\"Other income\",WorkingR!AI89,0)","v":0},0,{"$f":"'Prior Year Comparative'!W558","v":0},null,null,null,null,null,null,null,null,null,null,null,null,null,null,null,null,null,null,0,"0"]
[{"$f":"IF(Descriptions!D91=\"Other income\",Descriptions!B91,0)","v":0},null,{"$f":"IF(Descriptions!D91=\"Other income\",WorkingR!AF90,0)","v":0},{"$f":"IF(Descriptions!D91=\"Other income\",WorkingR!AG90,0)","v":0},{"$f":"IF(Descriptions!D91=\"Other income\",WorkingR!AH90,0)","v":0},{"$f":"IF(Descriptions!D91=\"Other income\",WorkingR!AI90,0)","v":0},0,{"$f":"'Prior Year Comparative'!W559","v":0},null,null,null,null,null,null,null,null,null,null,null,null,null,null,null,null,null,null,0,"0"]
[{"$f":"IF(Descriptions!D92=\"Other income\",Descriptions!B92,0)","v":0},null,{"$f":"IF(Descriptions!D92=\"Other income\",WorkingR!AF91,0)","v":0},{"$f":"IF(Descriptions!D92=\"Other income\",WorkingR!AG91,0)","v":0},{"$f":"IF(Descriptions!D92=\"Other income\",WorkingR!AH91,0)","v":0},{"$f":"IF(Descriptions!D92=\"Other income\",WorkingR!AI91,0)","v":0},0,{"$f":"'Prior Year Comparative'!W560","v":0},null,null,null,null,null,null,null,null,null,null,null,null,null,null,null,null,null,null,0,"0"]
[null,null,null,null,null,null,null,null,null,null,null,null,null,null,null,null,null,null,null,null,null,null,null,null,null,null,{"$f":"AA715","v":0},"0"]
[null,null,{"$f":"SUM(C662:C713)","v":0},0,0,0,0,0,null,null,null,null,null,null,null,null,null,null,null,null,null,null,null,null,null,null,{"$f":"SUM(AA662:AA713)","v":0},"0"]
[null,null,null,null,null,null,null,null,null,null,null,null,null,null,null,null,null,null,null,null,null,null,null,null,null,null,1,"1"]
[{"$f":"CONCATENATE(AE717,\". \",AG717)","v":"3. Payments"},null,"Unrestricted Fund","Designated Fund","Restricted Fund","Endowment Fund","Total","Total",null,null,null,null,null,null,null,null,null,null,null,null,null,null,null,null,null,null,1,"1",null,{"$f":"IF(AF717=\"0\",\"0\",AE717)","v":3},{"$f":"SUM(AE192+AF192)","v":3},1,"Payments"]
[null,null,null,null,null,null,{"$f":"'Name and Parish'!D15","v":2023},{"$f":"G718-1","v":2022},null,null,null,null,null,null,null,null,null,null,null,null,null,null,null,null,null,null,1,"1"]
[null,null,"£","£","£","£","£","£",null,null,null,null,null,null,null,null,null,null,null,null,null,null,null,null,null,null,1,"1"]
["CLERGY AND STAFFING COSTS",null,null,null,null,null,null,null,null,null,null,null,null,null,null,null,null,null,null,null,null,null,null,null,null,null,{"$f":"SUM(AA721:AA773)","v":0},"0"]
["Administrator Parish/Benefice",null,{"$f":"WorkingP!AF5","v":0},{"$f":"WorkingP!AG5","v":0},{"$f":"WorkingP!AH5","v":0},{"$f":"WorkingP!AI5","v":0},{"$f":"SUM(C721:F721)","v":0},{"$f":"'Prior Year Comparative'!W622","v":0},null,null,null,null,null,null,null,null,null,null,null,null,null,null,null,null,null,null,{"$f":"SUM(C721:H721)","v":0},"0"]
["Clergy Expenses",null,{"$f":"WorkingP!AF14","v":0},{"$f":"WorkingP!AG14","v":0},{"$f":"WorkingP!AH14","v":0},{"$f":"WorkingP!AI14","v":0},{"$f":"SUM(C722:F722)","v":0},{"$f":"'Prior Year Comparative'!W623","v":0},null,null,null,null,null,null,null,null,null,null,null,null,null,null,null,null,null,null,{"$f":"SUM(C722:H722)","v":0},"0"]
["Salaries",null,{"$f":"WorkingP!AF25","v":0},{"$f":"WorkingP!AG25","v":0},{"$f":"WorkingP!AH25","v":0},{"$f":"WorkingP!AI25","v":0},{"$f":"SUM(C723:F723)","v":0},{"$f":"'Prior Year Comparative'!W624","v":0},null,null,null,null,null,null,null,null,null,null,null,null,null,null,null,null,null,null,{"$f":"SUM(C723:H723)","v":0},"0"]
[{"$f":"IF(Descriptions!K35=\"Clergy and Staffing Costs\",Descriptions!I35,0)","v":0},null,{"$f":"IF(Descriptions!K35=\"Clergy and Staffing Costs\",WorkingP!AF34,0)","v":0},{"$f":"IF(Descriptions!L35=\"Clergy and Staffing Costs\",WorkingP!AG34,0)","v":0},{"$f":"IF(Descriptions!M35=\"Clergy and Staffing Costs\",WorkingP!AH34,0)","v":0},{"$f":"IF(Descriptions!N35=\"Clergy and Staffing Costs\",WorkingP!AI34,0)","v":0},{"$f":"SUM(C724:F724)","v":0},{"$f":"'Prior Year Comparative'!W625","v":0},null,null,null,null,null,null,null,null,null,null,null,null,null,null,null,null,null,null,{"$f":"SUM(C724:H724)","v":0},{"$f":"IF(AA724=0,\"0\",\"1\")","v":"0"}]
[{"$f":"IF(Descriptions!K36=\"Clergy and Staffing Costs\",Descriptions!I36,0)","v":0},null,{"$f":"IF(Descriptions!K36=\"Clergy and Staffing Costs\",WorkingP!AF35,0)","v":0},{"$f":"IF(Descriptions!L36=\"Clergy and Staffing Costs\",WorkingP!AG35,0)","v":0},{"$f":"IF(Descriptions!M36=\"Clergy and Staffing Costs\",WorkingP!AH35,0)","v":0},{"$f":"IF(Descriptions!N36=\"Clergy and Staffing Costs\",WorkingP!AI35,0)","v":0},{"$f":"SUM(C725:F725)","v":0},{"$f":"'Prior Year Comparative'!W626","v":0},null,null,null,null,null,null,null,null,null,null,null,null,null,null,null,null,null,null,0,"0"]
[{"$f":"IF(Descriptions!K37=\"Clergy and Staffing Costs\",Descriptions!I37,0)","v":0},null,{"$f":"IF(Descriptions!K37=\"Clergy and Staffing Costs\",WorkingP!AF36,0)","v":0},{"$f":"IF(Descriptions!L37=\"Clergy and Staffing Costs\",WorkingP!AG36,0)","v":0},{"$f":"IF(Descriptions!M37=\"Clergy and Staffing Costs\",WorkingP!AH36,0)","v":0},{"$f":"IF(Descriptions!N37=\"Clergy and Staffing Costs\",WorkingP!AI36,0)","v":0},0,{"$f":"'Prior Year Comparative'!W627","v":0},null,null,null,null,null,null,null,null,null,null,null,null,null,null,null,null,null,null,0,"0"]
[{"$f":"IF(Descriptions!K38=\"Clergy and Staffing Costs\",Descriptions!I38,0)","v":0},null,{"$f":"IF(Descriptions!K38=\"Clergy and Staffing Costs\",WorkingP!AF37,0)","v":0},{"$f":"IF(Descriptions!L38=\"Clergy and Staffing Costs\",WorkingP!AG37,0)","v":0},{"$f":"IF(Descriptions!M38=\"Clergy and Staffing Costs\",WorkingP!AH37,0)","v":0},{"$f":"IF(Descriptions!N38=\"Clergy and Staffing Costs\",WorkingP!AI37,0)","v":0},0,{"$f":"'Prior Year Comparative'!W628","v":0},null,null,null,null,null,null,null,null,null,null,null,null,null,null,null,null,null,null,0,"0"]
[{"$f":"IF(Descriptions!K39=\"Clergy and Staffing Costs\",Descriptions!I39,0)","v":0},null,{"$f":"IF(Descriptions!K39=\"Clergy and Staffing Costs\",WorkingP!AF38,0)","v":0},{"$f":"IF(Descriptions!L39=\"Clergy and Staffing Costs\",WorkingP!AG38,0)","v":0},{"$f":"IF(Descriptions!M39=\"Clergy and Staffing Costs\",WorkingP!AH38,0)","v":0},{"$f":"IF(Descriptions!N39=\"Clergy and Staffing Costs\",WorkingP!AI38,0)","v":0},0,{"$f":"'Prior Year Comparative'!W629","v":0},null,null,null,null,null,null,null,null,null,null,null,null,null,null,null,null,null,null,0,"0"]
[{"$f":"IF(Descriptions!K40=\"Clergy and Staffing Costs\",Descriptions!I40,0)","v":0},null,{"$f":"IF(Descriptions!K40=\"Clergy and Staffing Costs\",WorkingP!AF39,0)","v":0},{"$f":"IF(Descriptions!L40=\"Clergy and Staffing Costs\",WorkingP!AG39,0)","v":0},{"$f":"IF(Descriptions!M40=\"Clergy and Staffing Costs\",WorkingP!AH39,0)","v":0},{"$f":"IF(Descriptions!N40=\"Clergy and Staffing Costs\",WorkingP!AI39,0)","v":0},0,{"$f":"'Prior Year Comparative'!W630","v":0},null,null,null,null,null,null,null,null,null,null,null,null,null,null,null,null,null,null,0,"0"]
[{"$f":"IF(Descriptions!K41=\"Clergy and Staffing Costs\",Descriptions!I41,0)","v":0},null,{"$f":"IF(Descriptions!K41=\"Clergy and Staffing Costs\",WorkingP!AF40,0)","v":0},{"$f":"IF(Descriptions!L41=\"Clergy and Staffing Costs\",WorkingP!AG40,0)","v":0},{"$f":"IF(Descriptions!M41=\"Clergy and Staffing Costs\",WorkingP!AH40,0)","v":0},{"$f":"IF(Descriptions!N41=\"Clergy and Staffing Costs\",WorkingP!AI40,0)","v":0},0,{"$f":"'Prior Year Comparative'!W631","v":0},null,null,null,null,null,null,null,null,null,null,null,null,null,null,null,null,null,null,0,"0"]
[{"$f":"IF(Descriptions!K42=\"Clergy and Staffing Costs\",Descriptions!I42,0)","v":0},null,{"$f":"IF(Descriptions!K42=\"Clergy and Staffing Costs\",WorkingP!AF41,0)","v":0},{"$f":"IF(Descriptions!L42=\"Clergy and Staffing Costs\",WorkingP!AG41,0)","v":0},{"$f":"IF(Descriptions!M42=\"Clergy and Staffing Costs\",WorkingP!AH41,0)","v":0},{"$f":"IF(Descriptions!N42=\"Clergy and Staffing Costs\",WorkingP!AI41,0)","v":0},0,{"$f":"'Prior Year Comparative'!W632","v":0},null,null,null,null,null,null,null,null,null,null,null,null,null,null,null,null,null,null,0,"0"]
[{"$f":"IF(Descriptions!K43=\"Clergy and Staffing Costs\",Descriptions!I43,0)","v":0},null,{"$f":"IF(Descriptions!K43=\"Clergy and Staffing Costs\",WorkingP!AF42,0)","v":0},{"$f":"IF(Descriptions!L43=\"Clergy and Staffing Costs\",WorkingP!AG42,0)","v":0},{"$f":"IF(Descriptions!M43=\"Clergy and Staffing Costs\",WorkingP!AH42,0)","v":0},{"$f":"IF(Descriptions!N43=\"Clergy and Staffing Costs\",WorkingP!AI42,0)","v":0},0,{"$f":"'Prior Year Comparative'!W633","v":0},null,null,null,null,null,null,null,null,null,null,null,null,null,null,null,null,null,null,0,"0"]
[{"$f":"IF(Descriptions!K44=\"Clergy and Staffing Costs\",Descriptions!I44,0)","v":0},null,{"$f":"IF(Descriptions!K44=\"Clergy and Staffing Costs\",WorkingP!AF43,0)","v":0},{"$f":"IF(Descriptions!L44=\"Clergy and Staffing Costs\",WorkingP!AG43,0)","v":0},{"$f":"IF(Descriptions!M44=\"Clergy and Staffing Costs\",WorkingP!AH43,0)","v":0},{"$f":"IF(Descriptions!N44=\"Clergy and Staffing Costs\",WorkingP!AI43,0)","v":0},0,{"$f":"'Prior Year Comparative'!W634","v":0},null,null,null,null,null,null,null,null,null,null,null,null,null,null,null,null,null,null,0,"0"]
[{"$f":"IF(Descriptions!K45=\"Clergy and Staffing Costs\",Descriptions!I45,0)","v":0},null,{"$f":"IF(Descriptions!K45=\"Clergy and Staffing Costs\",WorkingP!AF44,0)","v":0},{"$f":"IF(Descriptions!L45=\"Clergy and Staffing Costs\",WorkingP!AG44,0)","v":0},{"$f":"IF(Descriptions!M45=\"Clergy and Staffing Costs\",WorkingP!AH44,0)","v":0},{"$f":"IF(Descriptions!N45=\"Clergy and Staffing Costs\",WorkingP!AI44,0)","v":0},0,{"$f":"'Prior Year Comparative'!W635","v":0},null,null,null,null,null,null,null,null,null,null,null,null,null,null,null,null,null,null,0,"0"]
[{"$f":"IF(Descriptions!K46=\"Clergy and Staffing Costs\",Descriptions!I46,0)","v":0},null,{"$f":"IF(Descriptions!K46=\"Clergy and Staffing Costs\",WorkingP!AF45,0)","v":0},{"$f":"IF(Descriptions!L46=\"Clergy and Staffing Costs\",WorkingP!AG45,0)","v":0},{"$f":"IF(Descriptions!M46=\"Clergy and Staffing Costs\",WorkingP!AH45,0)","v":0},{"$f":"IF(Descriptions!N46=\"Clergy and Staffing Costs\",WorkingP!AI45,0)","v":0},0,{"$f":"'Prior Year Comparative'!W636","v":0},null,null,null,null,null,null,null,null,null,null,null,null,null,null,null,null,null,null,0,"0"]
[{"$f":"IF(Descriptions!K47=\"Clergy and Staffing Costs\",Descriptions!I47,0)","v":0},null,{"$f":"IF(Descriptions!K47=\"Clergy and Staffing Costs\",WorkingP!AF46,0)","v":0},{"$f":"IF(Descriptions!L47=\"Clergy and Staffing Costs\",WorkingP!AG46,0)","v":0},{"$f":"IF(Descriptions!M47=\"Clergy and Staffing Costs\",WorkingP!AH46,0)","v":0},{"$f":"IF(Descriptions!N47=\"Clergy and Staffing Costs\",WorkingP!AI46,0)","v":0},0,{"$f":"'Prior Year Comparative'!W637","v":0},null,null,null,null,null,null,null,null,null,null,null,null,null,null,null,null,null,null,0,"0"]
[{"$f":"IF(Descriptions!K48=\"Clergy and Staffing Costs\",Descriptions!I48,0)","v":0},null,{"$f":"IF(Descriptions!K48=\"Clergy and Staffing Costs\",WorkingP!AF47,0)","v":0},{"$f":"IF(Descriptions!L48=\"Clergy and Staffing Costs\",WorkingP!AG47,0)","v":0},{"$f":"IF(Descriptions!M48=\"Clergy and Staffing Costs\",WorkingP!AH47,0)","v":0},{"$f":"IF(Descriptions!N48=\"Clergy and Staffing Costs\",WorkingP!AI47,0)","v":0},0,{"$f":"'Prior Year Comparative'!W638","v":0},null,null,null,null,null,null,null,null,null,null,null,null,null,null,null,null,null,null,0,"0"]
[{"$f":"IF(Descriptions!K49=\"Clergy and Staffing Costs\",Descriptions!I49,0)","v":0},null,{"$f":"IF(Descriptions!K49=\"Clergy and Staffing Costs\",WorkingP!AF48,0)","v":0},{"$f":"IF(Descriptions!L49=\"Clergy and Staffing Costs\",WorkingP!AG48,0)","v":0},{"$f":"IF(Descriptions!M49=\"Clergy and Staffing Costs\",WorkingP!AH48,0)","v":0},{"$f":"IF(Descriptions!N49=\"Clergy and Staffing Costs\",WorkingP!AI48,0)","v":0},0,{"$f":"'Prior Year Comparative'!W639","v":0},null,null,null,null,null,null,null,null,null,null,null,null,null,null,null,null,null,null,0,"0"]
[{"$f":"IF(Descriptions!K50=\"Clergy and Staffing Costs\",Descriptions!I50,0)","v":0},null,{"$f":"IF(Descriptions!K50=\"Clergy and Staffing Costs\",WorkingP!AF49,0)","v":0},{"$f":"IF(Descriptions!L50=\"Clergy and Staffing Costs\",WorkingP!AG49,0)","v":0},{"$f":"IF(Descriptions!M50=\"Clergy and Staffing Costs\",WorkingP!AH49,0)","v":0},{"$f":"IF(Descriptions!N50=\"Clergy and Staffing Costs\",WorkingP!AI49,0)","v":0},0,{"$f":"'Prior Year Comparative'!W640","v":0},null,null,null,null,null,null,null,null,null,null,null,null,null,null,null,null,null,null,0,"0"]
[{"$f":"IF(Descriptions!K51=\"Clergy and Staffing Costs\",Descriptions!I51,0)","v":0},null,{"$f":"IF(Descriptions!K51=\"Clergy and Staffing Costs\",WorkingP!AF50,0)","v":0},{"$f":"IF(Descriptions!L51=\"Clergy and Staffing Costs\",WorkingP!AG50,0)","v":0},{"$f":"IF(Descriptions!M51=\"Clergy and Staffing Costs\",WorkingP!AH50,0)","v":0},{"$f":"IF(Descriptions!N51=\"Clergy and Staffing Costs\",WorkingP!AI50,0)","v":0},0,{"$f":"'Prior Year Comparative'!W641","v":0},null,null,null,null,null,null,null,null,null,null,null,null,null,null,null,null,null,null,0,"0"]
[{"$f":"IF(Descriptions!K52=\"Clergy and Staffing Costs\",Descriptions!I52,0)","v":0},null,{"$f":"IF(Descriptions!K52=\"Clergy and Staffing Costs\",WorkingP!AF51,0)","v":0},{"$f":"IF(Descriptions!L52=\"Clergy and Staffing Costs\",WorkingP!AG51,0)","v":0},{"$f":"IF(Descriptions!M52=\"Clergy and Staffing Costs\",WorkingP!AH51,0)","v":0},{"$f":"IF(Descriptions!N52=\"Clergy and Staffing Costs\",WorkingP!AI51,0)","v":0},0,{"$f":"'Prior Year Comparative'!W642","v":0},null,null,null,null,null,null,null,null,null,null,null,null,null,null,null,null,null,null,0,"0"]
[{"$f":"IF(Descriptions!K53=\"Clergy and Staffing Costs\",Descriptions!I53,0)","v":0},null,{"$f":"IF(Descriptions!K53=\"Clergy and Staffing Costs\",WorkingP!AF52,0)","v":0},{"$f":"IF(Descriptions!L53=\"Clergy and Staffing Costs\",WorkingP!AG52,0)","v":0},{"$f":"IF(Descriptions!M53=\"Clergy and Staffing Costs\",WorkingP!AH52,0)","v":0},{"$f":"IF(Descriptions!N53=\"Clergy and Staffing Costs\",WorkingP!AI52,0)","v":0},0,{"$f":"'Prior Year Comparative'!W643","v":0},null,null,null,null,null,null,null,null,null,null,null,null,null,null,null,null,null,null,0,"0"]
[{"$f":"IF(Descriptions!K54=\"Clergy and Staffing Costs\",Descriptions!I54,0)","v":0},null,{"$f":"IF(Descriptions!K54=\"Clergy and Staffing Costs\",WorkingP!AF53,0)","v":0},{"$f":"IF(Descriptions!L54=\"Clergy and Staffing Costs\",WorkingP!AG53,0)","v":0},{"$f":"IF(Descriptions!M54=\"Clergy and Staffing Costs\",WorkingP!AH53,0)","v":0},{"$f":"IF(Descriptions!N54=\"Clergy and Staffing Costs\",WorkingP!AI53,0)","v":0},0,{"$f":"'Prior Year Comparative'!W644","v":0},null,null,null,null,null,null,null,null,null,null,null,null,null,null,null,null,null,null,0,"0"]
[{"$f":"IF(Descriptions!K55=\"Clergy and Staffing Costs\",Descriptions!I55,0)","v":0},null,{"$f":"IF(Descriptions!K55=\"Clergy and Staffing Costs\",WorkingP!AF54,0)","v":0},{"$f":"IF(Descriptions!L55=\"Clergy and Staffing Costs\",WorkingP!AG54,0)","v":0},{"$f":"IF(Descriptions!M55=\"Clergy and Staffing Costs\",WorkingP!AH54,0)","v":0},{"$f":"IF(Descriptions!N55=\"Clergy and Staffing Costs\",WorkingP!AI54,0)","v":0},0,{"$f":"'Prior Year Comparative'!W645","v":0},null,null,null,null,null,null,null,null,null,null,null,null,null,null,null,null,null,null,0,"0"]
[{"$f":"IF(Descriptions!K56=\"Clergy and Staffing Costs\",Descriptions!I56,0)","v":0},null,{"$f":"IF(Descriptions!K56=\"Clergy and Staffing Costs\",WorkingP!AF55,0)","v":0},{"$f":"IF(Descriptions!L56=\"Clergy and Staffing Costs\",WorkingP!AG55,0)","v":0},{"$f":"IF(Descriptions!M56=\"Clergy and Staffing Costs\",WorkingP!AH55,0)","v":0},{"$f":"IF(Descriptions!N56=\"Clergy and Staffing Costs\",WorkingP!AI55,0)","v":0},0,{"$f":"'Prior Year Comparative'!W646","v":0},null,null,null,null,null,null,null,null,null,null,null,null,null,null,null,null,null,null,0,"0"]
[{"$f":"IF(Descriptions!K57=\"Clergy and Staffing Costs\",Descriptions!I57,0)","v":0},null,{"$f":"IF(Descriptions!K57=\"Clergy and Staffing Costs\",WorkingP!AF56,0)","v":0},{"$f":"IF(Descriptions!L57=\"Clergy and Staffing Costs\",WorkingP!AG56,0)","v":0},{"$f":"IF(Descriptions!M57=\"Clergy and Staffing Costs\",WorkingP!AH56,0)","v":0},{"$f":"IF(Descriptions!N57=\"Clergy and Staffing Costs\",WorkingP!AI56,0)","v":0},0,{"$f":"'Prior Year Comparative'!W647","v":0},null,null,null,null,null,null,null,null,null,null,null,null,null,null,null,null,null,null,0,"0"]
[{"$f":"IF(Descriptions!K58=\"Clergy and Staffing Costs\",Descriptions!I58,0)","v":0},null,{"$f":"IF(Descriptions!K58=\"Clergy and Staffing Costs\",WorkingP!AF57,0)","v":0},{"$f":"IF(Descriptions!L58=\"Clergy and Staffing Costs\",WorkingP!AG57,0)","v":0},{"$f":"IF(Descriptions!M58=\"Clergy and Staffing Costs\",WorkingP!AH57,0)","v":0},{"$f":"IF(Descriptions!N58=\"Clergy and Staffing Costs\",WorkingP!AI57,0)","v":0},0,{"$f":"'Prior Year Comparative'!W648","v":0},null,null,null,null,null,null,null,null,null,null,null,null,null,null,null,null,null,null,0,"0"]
[{"$f":"IF(Descriptions!K59=\"Clergy and Staffing Costs\",Descriptions!I59,0)","v":0},null,{"$f":"IF(Descriptions!K59=\"Clergy and Staffing Costs\",WorkingP!AF58,0)","v":0},{"$f":"IF(Descriptions!L59=\"Clergy and Staffing Costs\",WorkingP!AG58,0)","v":0},{"$f":"IF(Descriptions!M59=\"Clergy and Staffing Costs\",WorkingP!AH58,0)","v":0},{"$f":"IF(Descriptions!N59=\"Clergy and Staffing Costs\",WorkingP!AI58,0)","v":0},0,{"$f":"'Prior Year Comparative'!W649","v":0},null,null,null,null,null,null,null,null,null,null,null,null,null,null,null,null,null,null,0,"0"]
[{"$f":"IF(Descriptions!K60=\"Clergy and Staffing Costs\",Descriptions!I60,0)","v":0},null,{"$f":"IF(Descriptions!K60=\"Clergy and Staffing Costs\",WorkingP!AF59,0)","v":0},{"$f":"IF(Descriptions!L60=\"Clergy and Staffing Costs\",WorkingP!AG59,0)","v":0},{"$f":"IF(Descriptions!M60=\"Clergy and Staffing Costs\",WorkingP!AH59,0)","v":0},{"$f":"IF(Descriptions!N60=\"Clergy and Staffing Costs\",WorkingP!AI59,0)","v":0},0,{"$f":"'Prior Year Comparative'!W650","v":0},null,null,null,null,null,null,null,null,null,null,null,null,null,null,null,null,null,null,0,"0"]
[{"$f":"IF(Descriptions!K61=\"Clergy and Staffing Costs\",Descriptions!I61,0)","v":0},null,{"$f":"IF(Descriptions!K61=\"Clergy and Staffing Costs\",WorkingP!AF60,0)","v":0},{"$f":"IF(Descriptions!L61=\"Clergy and Staffing Costs\",WorkingP!AG60,0)","v":0},{"$f":"IF(Descriptions!M61=\"Clergy and Staffing Costs\",WorkingP!AH60,0)","v":0},{"$f":"IF(Descriptions!N61=\"Clergy and Staffing Costs\",WorkingP!AI60,0)","v":0},0,{"$f":"'Prior Year Comparative'!W651","v":0},null,null,null,null,null,null,null,null,null,null,null,null,null,null,null,null,null,null,0,"0"]
[{"$f":"IF(Descriptions!K62=\"Clergy and Staffing Costs\",Descriptions!I62,0)","v":0},null,{"$f":"IF(Descriptions!K62=\"Clergy and Staffing Costs\",WorkingP!AF61,0)","v":0},{"$f":"IF(Descriptions!L62=\"Clergy and Staffing Costs\",WorkingP!AG61,0)","v":0},{"$f":"IF(Descriptions!M62=\"Clergy and Staffing Costs\",WorkingP!AH61,0)","v":0},{"$f":"IF(Descriptions!N62=\"Clergy and Staffing Costs\",WorkingP!AI61,0)","v":0},0,{"$f":"'Prior Year Comparative'!W652","v":0},null,null,null,null,null,null,null,null,null,null,null,null,null,null,null,null,null,null,0,"0"]
[{"$f":"IF(Descriptions!K63=\"Clergy and Staffing Costs\",Descriptions!I63,0)","v":0},null,{"$f":"IF(Descriptions!K63=\"Clergy and Staffing Costs\",WorkingP!AF62,0)","v":0},{"$f":"IF(Descriptions!L63=\"Clergy and Staffing Costs\",WorkingP!AG62,0)","v":0},{"$f":"IF(Descriptions!M63=\"Clergy and Staffing Costs\",WorkingP!AH62,0)","v":0},{"$f":"IF(Descriptions!N63=\"Clergy and Staffing Costs\",WorkingP!AI62,0)","v":0},0,{"$f":"'Prior Year Comparative'!W653","v":0},null,null,null,null,null,null,null,null,null,null,null,null,null,null,null,null,null,null,0,"0"]
[{"$f":"IF(Descriptions!K64=\"Clergy and Staffing Costs\",Descriptions!I64,0)","v":0},null,{"$f":"IF(Descriptions!K64=\"Clergy and Staffing Costs\",WorkingP!AF63,0)","v":0},{"$f":"IF(Descriptions!L64=\"Clergy and Staffing Costs\",WorkingP!AG63,0)","v":0},{"$f":"IF(Descriptions!M64=\"Clergy and Staffing Costs\",WorkingP!AH63,0)","v":0},{"$f":"IF(Descriptions!N64=\"Clergy and Staffing Costs\",WorkingP!AI63,0)","v":0},0,{"$f":"'Prior Year Comparative'!W654","v":0},null,null,null,null,null,null,null,null,null,null,null,null,null,null,null,null,null,null,0,"0"]
[{"$f":"IF(Descriptions!K65=\"Clergy and Staffing Costs\",Descriptions!I65,0)","v":0},null,{"$f":"IF(Descriptions!K65=\"Clergy and Staffing Costs\",WorkingP!AF64,0)","v":0},{"$f":"IF(Descriptions!L65=\"Clergy and Staffing Costs\",WorkingP!AG64,0)","v":0},{"$f":"IF(Descriptions!M65=\"Clergy and Staffing Costs\",WorkingP!AH64,0)","v":0},{"$f":"IF(Descriptions!N65=\"Clergy and Staffing Costs\",WorkingP!AI64,0)","v":0},0,{"$f":"'Prior Year Comparative'!W655","v":0},null,null,null,null,null,null,null,null,null,null,null,null,null,null,null,null,null,null,0,"0"]
[{"$f":"IF(Descriptions!K66=\"Clergy and Staffing Costs\",Descriptions!I66,0)","v":0},null,{"$f":"IF(Descriptions!K66=\"Clergy and Staffing Costs\",WorkingP!AF65,0)","v":0},{"$f":"IF(Descriptions!L66=\"Clergy and Staffing Costs\",WorkingP!AG65,0)","v":0},{"$f":"IF(Descriptions!M66=\"Clergy and Staffing Costs\",WorkingP!AH65,0)","v":0},{"$f":"IF(Descriptions!N66=\"Clergy and Staffing Costs\",WorkingP!AI65,0)","v":0},0,{"$f":"'Prior Year Comparative'!W656","v":0},null,null,null,null,null,null,null,null,null,null,null,null,null,null,null,null,null,null,0,"0"]
[{"$f":"IF(Descriptions!K67=\"Clergy and Staffing Costs\",Descriptions!I67,0)","v":0},null,{"$f":"IF(Descriptions!K67=\"Clergy and Staffing Costs\",WorkingP!AF66,0)","v":0},{"$f":"IF(Descriptions!L67=\"Clergy and Staffing Costs\",WorkingP!AG66,0)","v":0},{"$f":"IF(Descriptions!M67=\"Clergy and Staffing Costs\",WorkingP!AH66,0)","v":0},{"$f":"IF(Descriptions!N67=\"Clergy and Staffing Costs\",WorkingP!AI66,0)","v":0},0,{"$f":"'Prior Year Comparative'!W657","v":0},null,null,null,null,null,null,null,null,null,null,null,null,null,null,null,null,null,null,0,"0"]
[{"$f":"IF(Descriptions!K68=\"Clergy and Staffing Costs\",Descriptions!I68,0)","v":0},null,{"$f":"IF(Descriptions!K68=\"Clergy and Staffing Costs\",WorkingP!AF67,0)","v":0},{"$f":"IF(Descriptions!L68=\"Clergy and Staffing Costs\",WorkingP!AG67,0)","v":0},{"$f":"IF(Descriptions!M68=\"Clergy and Staffing Costs\",WorkingP!AH67,0)","v":0},{"$f":"IF(Descriptions!N68=\"Clergy and Staffing Costs\",WorkingP!AI67,0)","v":0},0,{"$f":"'Prior Year Comparative'!W658","v":0},null,null,null,null,null,null,null,null,null,null,null,null,null,null,null,null,null,null,0,"0"]
[{"$f":"IF(Descriptions!K69=\"Clergy and Staffing Costs\",Descriptions!I69,0)","v":0},null,{"$f":"IF(Descriptions!K69=\"Clergy and Staffing Costs\",WorkingP!AF68,0)","v":0},{"$f":"IF(Descriptions!L69=\"Clergy and Staffing Costs\",WorkingP!AG68,0)","v":0},{"$f":"IF(Descriptions!M69=\"Clergy and Staffing Costs\",WorkingP!AH68,0)","v":0},{"$f":"IF(Descriptions!N69=\"Clergy and Staffing Costs\",WorkingP!AI68,0)","v":0},0,{"$f":"'Prior Year Comparative'!W659","v":0},null,null,null,null,null,null,null,null,null,null,null,null,null,null,null,null,null,null,0,"0"]
[{"$f":"IF(Descriptions!K70=\"Clergy and Staffing Costs\",Descriptions!I70,0)","v":0},null,{"$f":"IF(Descriptions!K70=\"Clergy and Staffing Costs\",WorkingP!AF69,0)","v":0},{"$f":"IF(Descriptions!L70=\"Clergy and Staffing Costs\",WorkingP!AG69,0)","v":0},{"$f":"IF(Descriptions!M70=\"Clergy and Staffing Costs\",WorkingP!AH69,0)","v":0},{"$f":"IF(Descriptions!N70=\"Clergy and Staffing Costs\",WorkingP!AI69,0)","v":0},0,{"$f":"'Prior Year Comparative'!W660","v":0},null,null,null,null,null,null,null,null,null,null,null,null,null,null,null,null,null,null,0,"0"]
[{"$f":"IF(Descriptions!K71=\"Clergy and Staffing Costs\",Descriptions!I71,0)","v":0},null,{"$f":"IF(Descriptions!K71=\"Clergy and Staffing Costs\",WorkingP!AF70,0)","v":0},{"$f":"IF(Descriptions!L71=\"Clergy and Staffing Costs\",WorkingP!AG70,0)","v":0},{"$f":"IF(Descriptions!M71=\"Clergy and Staffing Costs\",WorkingP!AH70,0)","v":0},{"$f":"IF(Descriptions!N71=\"Clergy and Staffing Costs\",WorkingP!AI70,0)","v":0},0,{"$f":"'Prior Year Comparative'!W661","v":0},null,null,null,null,null,null,null,null,null,null,null,null,null,null,null,null,null,null,0,"0"]
[{"$f":"IF(Descriptions!K72=\"Clergy and Staffing Costs\",Descriptions!I72,0)","v":0},null,{"$f":"IF(Descriptions!K72=\"Clergy and Staffing Costs\",WorkingP!AF71,0)","v":0},{"$f":"IF(Descriptions!L72=\"Clergy and Staffing Costs\",WorkingP!AG71,0)","v":0},{"$f":"IF(Descriptions!M72=\"Clergy and Staffing Costs\",WorkingP!AH71,0)","v":0},{"$f":"IF(Descriptions!N72=\"Clergy and Staffing Costs\",WorkingP!AI71,0)","v":0},0,{"$f":"'Prior Year Comparative'!W662","v":0},null,null,null,null,null,null,null,null,null,null,null,null,null,null,null,null,null,null,0,"0"]
[{"$f":"IF(Descriptions!K73=\"Clergy and Staffing Costs\",Descriptions!I73,0)","v":0},null,{"$f":"IF(Descriptions!K73=\"Clergy and Staffing Costs\",WorkingP!AF72,0)","v":0},{"$f":"IF(Descriptions!L73=\"Clergy and Staffing Costs\",WorkingP!AG72,0)","v":0},{"$f":"IF(Descriptions!M73=\"Clergy and Staffing Costs\",WorkingP!AH72,0)","v":0},{"$f":"IF(Descriptions!N73=\"Clergy and Staffing Costs\",WorkingP!AI72,0)","v":0},0,{"$f":"'Prior Year Comparative'!W663","v":0},null,null,null,null,null,null,null,null,null,null,null,null,null,null,null,null,null,null,0,"0"]
[{"$f":"IF(Descriptions!K74=\"Clergy and Staffing Costs\",Descriptions!I74,0)","v":0},null,{"$f":"IF(Descriptions!K74=\"Clergy and Staffing Costs\",WorkingP!AF73,0)","v":0},{"$f":"IF(Descriptions!L74=\"Clergy and Staffing Costs\",WorkingP!AG73,0)","v":0},{"$f":"IF(Descriptions!M74=\"Clergy and Staffing Costs\",WorkingP!AH73,0)","v":0},{"$f":"IF(Descriptions!N74=\"Clergy and Staffing Costs\",WorkingP!AI73,0)","v":0},0,{"$f":"'Prior Year Comparative'!W664","v":0},null,null,null,null,null,null,null,null,null,null,null,null,null,null,null,null,null,null,0,"0"]
[{"$f":"IF(Descriptions!K75=\"Clergy and Staffing Costs\",Descriptions!I75,0)","v":0},null,{"$f":"IF(Descriptions!K75=\"Clergy and Staffing Costs\",WorkingP!AF74,0)","v":0},{"$f":"IF(Descriptions!L75=\"Clergy and Staffing Costs\",WorkingP!AG74,0)","v":0},{"$f":"IF(Descriptions!M75=\"Clergy and Staffing Costs\",WorkingP!AH74,0)","v":0},{"$f":"IF(Descriptions!N75=\"Clergy and Staffing Costs\",WorkingP!AI74,0)","v":0},0,{"$f":"'Prior Year Comparative'!W665","v":0},null,null,null,null,null,null,null,null,null,null,null,null,null,null,null,null,null,null,0,"0"]
[{"$f":"IF(Descriptions!K76=\"Clergy and Staffing Costs\",Descriptions!I76,0)","v":0},null,{"$f":"IF(Descriptions!K76=\"Clergy and Staffing Costs\",WorkingP!AF75,0)","v":0},{"$f":"IF(Descriptions!L76=\"Clergy and Staffing Costs\",WorkingP!AG75,0)","v":0},{"$f":"IF(Descriptions!M76=\"Clergy and Staffing Costs\",WorkingP!AH75,0)","v":0},{"$f":"IF(Descriptions!N76=\"Clergy and Staffing Costs\",WorkingP!AI75,0)","v":0},0,{"$f":"'Prior Year Comparative'!W666","v":0},null,null,null,null,null,null,null,null,null,null,null,null,null,null,null,null,null,null,0,"0"]
[{"$f":"IF(Descriptions!K77=\"Clergy and Staffing Costs\",Descriptions!I77,0)","v":0},null,{"$f":"IF(Descriptions!K77=\"Clergy and Staffing Costs\",WorkingP!AF76,0)","v":0},{"$f":"IF(Descriptions!L77=\"Clergy and Staffing Costs\",WorkingP!AG76,0)","v":0},{"$f":"IF(Descriptions!M77=\"Clergy and Staffing Costs\",WorkingP!AH76,0)","v":0},{"$f":"IF(Descriptions!N77=\"Clergy and Staffing Costs\",WorkingP!AI76,0)","v":0},0,{"$f":"'Prior Year Comparative'!W667","v":0},null,null,null,null,null,null,null,null,null,null,null,null,null,null,null,null,null,null,0,"0"]
[{"$f":"IF(Descriptions!K78=\"Clergy and Staffing Costs\",Descriptions!I78,0)","v":0},null,{"$f":"IF(Descriptions!K78=\"Clergy and Staffing Costs\",WorkingP!AF77,0)","v":0},{"$f":"IF(Descriptions!L78=\"Clergy and Staffing Costs\",WorkingP!AG77,0)","v":0},{"$f":"IF(Descriptions!M78=\"Clergy and Staffing Costs\",WorkingP!AH77,0)","v":0},{"$f":"IF(Descriptions!N78=\"Clergy and Staffing Costs\",WorkingP!AI77,0)","v":0},0,{"$f":"'Prior Year Comparative'!W668","v":0},null,null,null,null,null,null,null,null,null,null,null,null,null,null,null,null,null,null,0,"0"]
[{"$f":"IF(Descriptions!K79=\"Clergy and Staffing Costs\",Descriptions!I79,0)","v":0},null,{"$f":"IF(Descriptions!K79=\"Clergy and Staffing Costs\",WorkingP!AF78,0)","v":0},{"$f":"IF(Descriptions!L79=\"Clergy and Staffing Costs\",WorkingP!AG78,0)","v":0},{"$f":"IF(Descriptions!M79=\"Clergy and Staffing Costs\",WorkingP!AH78,0)","v":0},{"$f":"IF(Descriptions!N79=\"Clergy and Staffing Costs\",WorkingP!AI78,0)","v":0},0,{"$f":"'Prior Year Comparative'!W669","v":0},null,null,null,null,null,null,null,null,null,null,null,null,null,null,null,null,null,null,0,"0"]
[{"$f":"IF(Descriptions!K80=\"Clergy and Staffing Costs\",Descriptions!I80,0)","v":0},null,{"$f":"IF(Descriptions!K80=\"Clergy and Staffing Costs\",WorkingP!AF79,0)","v":0},{"$f":"IF(Descriptions!L80=\"Clergy and Staffing Costs\",WorkingP!AG79,0)","v":0},{"$f":"IF(Descriptions!M80=\"Clergy and Staffing Costs\",WorkingP!AH79,0)","v":0},{"$f":"IF(Descriptions!N80=\"Clergy and Staffing Costs\",WorkingP!AI79,0)","v":0},0,{"$f":"'Prior Year Comparative'!W670","v":0},null,null,null,null,null,null,null,null,null,null,null,null,null,null,null,null,null,null,0,"0"]
[{"$f":"IF(Descriptions!K81=\"Clergy and Staffing Costs\",Descriptions!I81,0)","v":0},null,{"$f":"IF(Descriptions!K81=\"Clergy and Staffing Costs\",WorkingP!AF80,0)","v":0},{"$f":"IF(Descriptions!L81=\"Clergy and Staffing Costs\",WorkingP!AG80,0)","v":0},{"$f":"IF(Descriptions!M81=\"Clergy and Staffing Costs\",WorkingP!AH80,0)","v":0},{"$f":"IF(Descriptions!N81=\"Clergy and Staffing Costs\",WorkingP!AI80,0)","v":0},0,{"$f":"'Prior Year Comparative'!W671","v":0},null,null,null,null,null,null,null,null,null,null,null,null,null,null,null,null,null,null,0,"0"]
[{"$f":"IF(Descriptions!K82=\"Clergy and Staffing Costs\",Descriptions!I82,0)","v":0},null,{"$f":"IF(Descriptions!K82=\"Clergy and Staffing Costs\",WorkingP!AF81,0)","v":0},{"$f":"IF(Descriptions!L82=\"Clergy and Staffing Costs\",WorkingP!AG81,0)","v":0},{"$f":"IF(Descriptions!M82=\"Clergy and Staffing Costs\",WorkingP!AH81,0)","v":0},{"$f":"IF(Descriptions!N82=\"Clergy and Staffing Costs\",WorkingP!AI81,0)","v":0},0,{"$f":"'Prior Year Comparative'!W672","v":0},null,null,null,null,null,null,null,null,null,null,null,null,null,null,null,null,null,null,{"$f":"SUM(C771:H771)","v":0},{"$f":"IF(AA771=0,\"0\",\"1\")","v":"0"}]
[{"$f":"IF(Descriptions!K83=\"Clergy and Staffing Costs\",Descriptions!I83,0)","v":0},null,{"$f":"IF(Descriptions!K83=\"Clergy and Staffing Costs\",WorkingP!AF82,0)","v":0},{"$f":"IF(Descriptions!L83=\"Clergy and Staffing Costs\",WorkingP!AG82,0)","v":0},{"$f":"IF(Descriptions!M83=\"Clergy and Staffing Costs\",WorkingP!AH82,0)","v":0},{"$f":"IF(Descriptions!N83=\"Clergy and Staffing Costs\",WorkingP!AI82,0)","v":0},0,{"$f":"'Prior Year Comparative'!W673","v":0},null,null,null,null,null,null,null,null,null,null,null,null,null,null,null,null,null,null,{"$f":"SUM(C772:H772)","v":0},"0"]
[{"$f":"IF(Descriptions!K84=\"Clergy and Staffing Costs\",Descriptions!I84,0)","v":0},null,{"$f":"IF(Descriptions!K84=\"Clergy and Staffing Costs\",WorkingP!AF83,0)","v":0},{"$f":"IF(Descriptions!L84=\"Clergy and Staffing Costs\",WorkingP!AG83,0)","v":0},{"$f":"IF(Descriptions!M84=\"Clergy and Staffing Costs\",WorkingP!AH83,0)","v":0},{"$f":"IF(Descriptions!N84=\"Clergy and Staffing Costs\",WorkingP!AI83,0)","v":0},0,{"$f":"'Prior Year Comparative'!W674","v":0},null,null,null,null,null,null,null,null,null,null,null,null,null,null,null,null,null,null,{"$f":"SUM(C773:H773)","v":0},"0"]
[null,null,null,null,null,null,null,null,null,null,null,null,null,null,null,null,null,null,null,null,null,null,null,null,null,null,{"$f":"AA775","v":0},"0"]
[null,null,{"$f":"SUM(C721:C773)","v":0},0,0,0,0,0,null,null,null,null,null,null,null,null,null,null,null,null,null,null,null,null,null,null,{"$f":"SUM(AA721:AA773)","v":0},"0"]
[null,null,null,null,null,null,null,null,null,null,null,null,null,null,null,null,null,null,null,null,null,null,null,null,null,null,{"$f":"SUM(AA778:AA833)","v":0},"0"]
["CHURCH RUNNING EXPENSES",null,null,null,null,null,null,null,null,null,null,null,null,null,null,null,null,null,null,null,null,null,null,null,null,null,{"$f":"AA776","v":0},"0"]
["Cleaning",null,{"$f":"WorkingP!AF13","v":0},{"$f":"WorkingP!AG13","v":0},{"$f":"WorkingP!AH13","v":0},{"$f":"WorkingP!AI13","v":0},{"$f":"SUM(C778:F778)","v":0},{"$f":"'Prior Year Comparative'!W677","v":0},null,null,null,null,null,null,null,null,null,null,null,null,null,null,null,null,null,null,{"$f":"SUM(C778:H778)","v":0},"0"]
["Gas and Electricity Bill",null,{"$f":"WorkingP!AF17","v":0},{"$f":"WorkingP!AG17","v":0},{"$f":"WorkingP!AH17","v":0},{"$f":"WorkingP!AI17","v":0},{"$f":"SUM(C779:F779)","v":0},{"$f":"'Prior Year Comparative'!W678","v":0},null,null,null,null,null,null,null,null,null,null,null,null,null,null,null,null,null,null,{"$f":"SUM(C779:H779)","v":0},"0"]
["Insurance",null,{"$f":"WorkingP!AF19","v":0},{"$f":"WorkingP!AG19","v":0},{"$f":"WorkingP!AH19","v":0},{"$f":"WorkingP!AI19","v":0},0,{"$f":"'Prior Year Comparative'!W679","v":0},null,null,null,null,null,null,null,null,null,null,null,null,null,null,null,null,null,null,{"$f":"SUM(C780:H780)","v":0},"0"]
["Service Costs",null,{"$f":"WorkingP!AF26","v":0},{"$f":"WorkingP!AG26","v":0},{"$f":"WorkingP!AH26","v":0},{"$f":"WorkingP!AI26","v":0},0,{"$f":"'Prior Year Comparative'!W680","v":0},null,null,null,null,null,null,null,null,null,null,null,null,null,null,null,null,null,null,{"$f":"SUM(C781:H781)","v":0},"0"]
["Maintenance",null,{"$f":"WorkingP!AF20","v":0},{"$f":"WorkingP!AG20","v":0},{"$f":"WorkingP!AH20","v":0},{"$f":"WorkingP!AI20","v":0},0,{"$f":"'Prior Year Comparative'!W681","v":0},null,null,null,null,null,null,null,null,null,null,null,null,null,null,null,null,null,null,{"$f":"SUM(C782:H782)","v":0},"0"]
["Water Bill",null,{"$f":"WorkingP!AF33","v":0},{"$f":"WorkingP!AG33","v":0},{"$f":"WorkingP!AH33","v":0},{"$f":"WorkingP!AI33","v":0},0,{"$f":"'Prior Year Comparative'!W682","v":0},null,null,null,null,null,null,null,null,null,null,null,null,null,null,null,null,null,null,{"$f":"SUM(C783:H783)","v":0},{"$f":"IF(AA783=0,\"0\",\"1\")","v":"0"}]
[{"$f":"IF(Descriptions!K35=\"Church Running Expenses\",Descriptions!I35,0)","v":0},null,{"$f":"IF(Descriptions!K35=\"Church Running Expenses\",WorkingP!AF34,0)","v":0},{"$f":"IF(Descriptions!L35=\"Church Running Expenses\",WorkingP!AG34,0)","v":0},{"$f":"IF(Descriptions!M35=\"Church Running Expenses\",WorkingP!AH34,0)","v":0},{"$f":"IF(Descriptions!N35=\"Church Running Expenses\",WorkingP!AI34,0)","v":0},0,{"$f":"'Prior Year Comparative'!W683","v":0},null,null,null,null,null,null,null,null,null,null,null,null,null,null,null,null,null,null,0,"0"]
[{"$f":"IF(Descriptions!K36=\"Church Running Expenses\",Descriptions!I36,0)","v":0},null,{"$f":"IF(Descriptions!K36=\"Church Running Expenses\",WorkingP!AF35,0)","v":0},{"$f":"IF(Descriptions!L36=\"Church Running Expenses\",WorkingP!AG35,0)","v":0},{"$f":"IF(Descriptions!M36=\"Church Running Expenses\",WorkingP!AH35,0)","v":0},{"$f":"IF(Descriptions!N36=\"Church Running Expenses\",WorkingP!AI35,0)","v":0},{"$f":"SUM(C785:F785)","v":0},{"$f":"'Prior Year Comparative'!W684","v":0},null,null,null,null,null,null,null,null,null,null,null,null,null,null,null,null,null,null,0,"0"]
[{"$f":"IF(Descriptions!K37=\"Church Running Expenses\",Descriptions!I37,0)","v":0},null,{"$f":"IF(Descriptions!K37=\"Church Running Expenses\",WorkingP!AF36,0)","v":0},{"$f":"IF(Descriptions!L37=\"Church Running Expenses\",WorkingP!AG36,0)","v":0},{"$f":"IF(Descriptions!M37=\"Church Running Expenses\",WorkingP!AH36,0)","v":0},{"$f":"IF(Descriptions!N37=\"Church Running Expenses\",WorkingP!AI36,0)","v":0},0,{"$f":"'Prior Year Comparative'!W685","v":0},null,null,null,null,null,null,null,null,null,null,null,null,null,null,null,null,null,null,0,"0"]
[{"$f":"IF(Descriptions!K38=\"Church Running Expenses\",Descriptions!I38,0)","v":0},null,{"$f":"IF(Descriptions!K38=\"Church Running Expenses\",WorkingP!AF37,0)","v":0},{"$f":"IF(Descriptions!L38=\"Church Running Expenses\",WorkingP!AG37,0)","v":0},{"$f":"IF(Descriptions!M38=\"Church Running Expenses\",WorkingP!AH37,0)","v":0},{"$f":"IF(Descriptions!N38=\"Church Running Expenses\",WorkingP!AI37,0)","v":0},0,{"$f":"'Prior Year Comparative'!W686","v":0},null,null,null,null,null,null,null,null,null,null,null,null,null,null,null,null,null,null,0,"0"]
[{"$f":"IF(Descriptions!K39=\"Church Running Expenses\",Descriptions!I39,0)","v":0},null,{"$f":"IF(Descriptions!K39=\"Church Running Expenses\",WorkingP!AF38,0)","v":0},{"$f":"IF(Descriptions!L39=\"Church Running Expenses\",WorkingP!AG38,0)","v":0},{"$f":"IF(Descriptions!M39=\"Church Running Expenses\",WorkingP!AH38,0)","v":0},{"$f":"IF(Descriptions!N39=\"Church Running Expenses\",WorkingP!AI38,0)","v":0},0,{"$f":"'Prior Year Comparative'!W687","v":0},null,null,null,null,null,null,null,null,null,null,null,null,null,null,null,null,null,null,0,"0"]
[{"$f":"IF(Descriptions!K40=\"Church Running Expenses\",Descriptions!I40,0)","v":0},null,{"$f":"IF(Descriptions!K40=\"Church Running Expenses\",WorkingP!AF39,0)","v":0},{"$f":"IF(Descriptions!L40=\"Church Running Expenses\",WorkingP!AG39,0)","v":0},{"$f":"IF(Descriptions!M40=\"Church Running Expenses\",WorkingP!AH39,0)","v":0},{"$f":"IF(Descriptions!N40=\"Church Running Expenses\",WorkingP!AI39,0)","v":0},0,{"$f":"'Prior Year Comparative'!W688","v":0},null,null,null,null,null,null,null,null,null,null,null,null,null,null,null,null,null,null,0,"0"]
[{"$f":"IF(Descriptions!K41=\"Church Running Expenses\",Descriptions!I41,0)","v":0},null,{"$f":"IF(Descriptions!K41=\"Church Running Expenses\",WorkingP!AF40,0)","v":0},{"$f":"IF(Descriptions!L41=\"Church Running Expenses\",WorkingP!AG40,0)","v":0},{"$f":"IF(Descriptions!M41=\"Church Running Expenses\",WorkingP!AH40,0)","v":0},{"$f":"IF(Descriptions!N41=\"Church Running Expenses\",WorkingP!AI40,0)","v":0},0,{"$f":"'Prior Year Comparative'!W689","v":0},null,null,null,null,null,null,null,null,null,null,null,null,null,null,null,null,null,null,0,"0"]
[{"$f":"IF(Descriptions!K42=\"Church Running Expenses\",Descriptions!I42,0)","v":0},null,{"$f":"IF(Descriptions!K42=\"Church Running Expenses\",WorkingP!AF41,0)","v":0},{"$f":"IF(Descriptions!L42=\"Church Running Expenses\",WorkingP!AG41,0)","v":0},{"$f":"IF(Descriptions!M42=\"Church Running Expenses\",WorkingP!AH41,0)","v":0},{"$f":"IF(Descriptions!N42=\"Church Running Expenses\",WorkingP!AI41,0)","v":0},0,{"$f":"'Prior Year Comparative'!W690","v":0},null,null,null,null,null,null,null,null,null,null,null,null,null,null,null,null,null,null,0,"0"]
[{"$f":"IF(Descriptions!K43=\"Church Running Expenses\",Descriptions!I43,0)","v":0},null,{"$f":"IF(Descriptions!K43=\"Church Running Expenses\",WorkingP!AF42,0)","v":0},{"$f":"IF(Descriptions!L43=\"Church Running Expenses\",WorkingP!AG42,0)","v":0},{"$f":"IF(Descriptions!M43=\"Church Running Expenses\",WorkingP!AH42,0)","v":0},{"$f":"IF(Descriptions!N43=\"Church Running Expenses\",WorkingP!AI42,0)","v":0},0,{"$f":"'Prior Year Comparative'!W691","v":0},null,null,null,null,null,null,null,null,null,null,null,null,null,null,null,null,null,null,0,"0"]
[{"$f":"IF(Descriptions!K44=\"Church Running Expenses\",Descriptions!I44,0)","v":0},null,{"$f":"IF(Descriptions!K44=\"Church Running Expenses\",WorkingP!AF43,0)","v":0},{"$f":"IF(Descriptions!L44=\"Church Running Expenses\",WorkingP!AG43,0)","v":0},{"$f":"IF(Descriptions!M44=\"Church Running Expenses\",WorkingP!AH43,0)","v":0},{"$f":"IF(Descriptions!N44=\"Church Running Expenses\",WorkingP!AI43,0)","v":0},0,{"$f":"'Prior Year Comparative'!W692","v":0},null,null,null,null,null,null,null,null,null,null,null,null,null,null,null,null,null,null,0,"0"]
[{"$f":"IF(Descriptions!K45=\"Church Running Expenses\",Descriptions!I45,0)","v":0},null,{"$f":"IF(Descriptions!K45=\"Church Running Expenses\",WorkingP!AF44,0)","v":0},{"$f":"IF(Descriptions!L45=\"Church Running Expenses\",WorkingP!AG44,0)","v":0},{"$f":"IF(Descriptions!M45=\"Church Running Expenses\",WorkingP!AH44,0)","v":0},{"$f":"IF(Descriptions!N45=\"Church Running Expenses\",WorkingP!AI44,0)","v":0},0,{"$f":"'Prior Year Comparative'!W693","v":0},null,null,null,null,null,null,null,null,null,null,null,null,null,null,null,null,null,null,0,"0"]
[{"$f":"IF(Descriptions!K46=\"Church Running Expenses\",Descriptions!I46,0)","v":0},null,{"$f":"IF(Descriptions!K46=\"Church Running Expenses\",WorkingP!AF45,0)","v":0},{"$f":"IF(Descriptions!L46=\"Church Running Expenses\",WorkingP!AG45,0)","v":0},{"$f":"IF(Descriptions!M46=\"Church Running Expenses\",WorkingP!AH45,0)","v":0},{"$f":"IF(Descriptions!N46=\"Church Running Expenses\",WorkingP!AI45,0)","v":0},0,{"$f":"'Prior Year Comparative'!W694","v":0},null,null,null,null,null,null,null,null,null,null,null,null,null,null,null,null,null,null,0,"0"]
[{"$f":"IF(Descriptions!K47=\"Church Running Expenses\",Descriptions!I47,0)","v":0},null,{"$f":"IF(Descriptions!K47=\"Church Running Expenses\",WorkingP!AF46,0)","v":0},{"$f":"IF(Descriptions!L47=\"Church Running Expenses\",WorkingP!AG46,0)","v":0},{"$f":"IF(Descriptions!M47=\"Church Running Expenses\",WorkingP!AH46,0)","v":0},{"$f":"IF(Descriptions!N47=\"Church Running Expenses\",WorkingP!AI46,0)","v":0},0,{"$f":"'Prior Year Comparative'!W695","v":0},null,null,null,null,null,null,null,null,null,null,null,null,null,null,null,null,null,null,0,"0"]
[{"$f":"IF(Descriptions!K48=\"Church Running Expenses\",Descriptions!I48,0)","v":0},null,{"$f":"IF(Descriptions!K48=\"Church Running Expenses\",WorkingP!AF47,0)","v":0},{"$f":"IF(Descriptions!L48=\"Church Running Expenses\",WorkingP!AG47,0)","v":0},{"$f":"IF(Descriptions!M48=\"Church Running Expenses\",WorkingP!AH47,0)","v":0},{"$f":"IF(Descriptions!N48=\"Church Running Expenses\",WorkingP!AI47,0)","v":0},0,{"$f":"'Prior Year Comparative'!W696","v":0},null,null,null,null,null,null,null,null,null,null,null,null,null,null,null,null,null,null,0,"0"]
[{"$f":"IF(Descriptions!K49=\"Church Running Expenses\",Descriptions!I49,0)","v":0},null,{"$f":"IF(Descriptions!K49=\"Church Running Expenses\",WorkingP!AF48,0)","v":0},{"$f":"IF(Descriptions!L49=\"Church Running Expenses\",WorkingP!AG48,0)","v":0},{"$f":"IF(Descriptions!M49=\"Church Running Expenses\",WorkingP!AH48,0)","v":0},{"$f":"IF(Descriptions!N49=\"Church Running Expenses\",WorkingP!AI48,0)","v":0},0,{"$f":"'Prior Year Comparative'!W697","v":0},null,null,null,null,null,null,null,null,null,null,null,null,null,null,null,null,null,null,0,"0"]
[{"$f":"IF(Descriptions!K50=\"Church Running Expenses\",Descriptions!I50,0)","v":0},null,{"$f":"IF(Descriptions!K50=\"Church Running Expenses\",WorkingP!AF49,0)","v":0},{"$f":"IF(Descriptions!L50=\"Church Running Expenses\",WorkingP!AG49,0)","v":0},{"$f":"IF(Descriptions!M50=\"Church Running Expenses\",WorkingP!AH49,0)","v":0},{"$f":"IF(Descriptions!N50=\"Church Running Expenses\",WorkingP!AI49,0)","v":0},0,{"$f":"'Prior Year Comparative'!W698","v":0},null,null,null,null,null,null,null,null,null,null,null,null,null,null,null,null,null,null,0,"0"]
[{"$f":"IF(Descriptions!K51=\"Church Running Expenses\",Descriptions!I51,0)","v":0},null,{"$f":"IF(Descriptions!K51=\"Church Running Expenses\",WorkingP!AF50,0)","v":0},{"$f":"IF(Descriptions!L51=\"Church Running Expenses\",WorkingP!AG50,0)","v":0},{"$f":"IF(Descriptions!M51=\"Church Running Expenses\",WorkingP!AH50,0)","v":0},{"$f":"IF(Descriptions!N51=\"Church Running Expenses\",WorkingP!AI50,0)","v":0},0,{"$f":"'Prior Year Comparative'!W699","v":0},null,null,null,null,null,null,null,null,null,null,null,null,null,null,null,null,null,null,0,"0"]
[{"$f":"IF(Descriptions!K52=\"Church Running Expenses\",Descriptions!I52,0)","v":0},null,{"$f":"IF(Descriptions!K52=\"Church Running Expenses\",WorkingP!AF51,0)","v":0},{"$f":"IF(Descriptions!L52=\"Church Running Expenses\",WorkingP!AG51,0)","v":0},{"$f":"IF(Descriptions!M52=\"Church Running Expenses\",WorkingP!AH51,0)","v":0},{"$f":"IF(Descriptions!N52=\"Church Running Expenses\",WorkingP!AI51,0)","v":0},0,{"$f":"'Prior Year Comparative'!W700","v":0},null,null,null,null,null,null,null,null,null,null,null,null,null,null,null,null,null,null,0,"0"]
[{"$f":"IF(Descriptions!K53=\"Church Running Expenses\",Descriptions!I53,0)","v":0},null,{"$f":"IF(Descriptions!K53=\"Church Running Expenses\",WorkingP!AF52,0)","v":0},{"$f":"IF(Descriptions!L53=\"Church Running Expenses\",WorkingP!AG52,0)","v":0},{"$f":"IF(Descriptions!M53=\"Church Running Expenses\",WorkingP!AH52,0)","v":0},{"$f":"IF(Descriptions!N53=\"Church Running Expenses\",WorkingP!AI52,0)","v":0},0,{"$f":"'Prior Year Comparative'!W701","v":0},null,null,null,null,null,null,null,null,null,null,null,null,null,null,null,null,null,null,0,"0"]
[{"$f":"IF(Descriptions!K54=\"Church Running Expenses\",Descriptions!I54,0)","v":0},null,{"$f":"IF(Descriptions!K54=\"Church Running Expenses\",WorkingP!AF53,0)","v":0},{"$f":"IF(Descriptions!L54=\"Church Running Expenses\",WorkingP!AG53,0)","v":0},{"$f":"IF(Descriptions!M54=\"Church Running Expenses\",WorkingP!AH53,0)","v":0},{"$f":"IF(Descriptions!N54=\"Church Running Expenses\",WorkingP!AI53,0)","v":0},0,{"$f":"'Prior Year Comparative'!W702","v":0},null,null,null,null,null,null,null,null,null,null,null,null,null,null,null,null,null,null,0,"0"]
[{"$f":"IF(Descriptions!K55=\"Church Running Expenses\",Descriptions!I55,0)","v":0},null,{"$f":"IF(Descriptions!K55=\"Church Running Expenses\",WorkingP!AF54,0)","v":0},{"$f":"IF(Descriptions!L55=\"Church Running Expenses\",WorkingP!AG54,0)","v":0},{"$f":"IF(Descriptions!M55=\"Church Running Expenses\",WorkingP!AH54,0)","v":0},{"$f":"IF(Descriptions!N55=\"Church Running Expenses\",WorkingP!AI54,0)","v":0},0,{"$f":"'Prior Year Comparative'!W703","v":0},null,null,null,null,null,null,null,null,null,null,null,null,null,null,null,null,null,null,0,"0"]
[{"$f":"IF(Descriptions!K56=\"Church Running Expenses\",Descriptions!I56,0)","v":0},null,{"$f":"IF(Descriptions!K56=\"Church Running Expenses\",WorkingP!AF55,0)","v":0},{"$f":"IF(Descriptions!L56=\"Church Running Expenses\",WorkingP!AG55,0)","v":0},{"$f":"IF(Descriptions!M56=\"Church Running Expenses\",WorkingP!AH55,0)","v":0},{"$f":"IF(Descriptions!N56=\"Church Running Expenses\",WorkingP!AI55,0)","v":0},0,{"$f":"'Prior Year Comparative'!W704","v":0},null,null,null,null,null,null,null,null,null,null,null,null,null,null,null,null,null,null,0,"0"]
[{"$f":"IF(Descriptions!K57=\"Church Running Expenses\",Descriptions!I57,0)","v":0},null,{"$f":"IF(Descriptions!K57=\"Church Running Expenses\",WorkingP!AF56,0)","v":0},{"$f":"IF(Descriptions!L57=\"Church Running Expenses\",WorkingP!AG56,0)","v":0},{"$f":"IF(Descriptions!M57=\"Church Running Expenses\",WorkingP!AH56,0)","v":0},{"$f":"IF(Descriptions!N57=\"Church Running Expenses\",WorkingP!AI56,0)","v":0},0,{"$f":"'Prior Year Comparative'!W705","v":0},null,null,null,null,null,null,null,null,null,null,null,null,null,null,null,null,null,null,0,"0"]
[{"$f":"IF(Descriptions!K58=\"Church Running Expenses\",Descriptions!I58,0)","v":0},null,{"$f":"IF(Descriptions!K58=\"Church Running Expenses\",WorkingP!AF57,0)","v":0},{"$f":"IF(Descriptions!L58=\"Church Running Expenses\",WorkingP!AG57,0)","v":0},{"$f":"IF(Descriptions!M58=\"Church Running Expenses\",WorkingP!AH57,0)","v":0},{"$f":"IF(Descriptions!N58=\"Church Running Expenses\",WorkingP!AI57,0)","v":0},0,{"$f":"'Prior Year Comparative'!W706","v":0},null,null,null,null,null,null,null,null,null,null,null,null,null,null,null,null,null,null,0,"0"]
[{"$f":"IF(Descriptions!K59=\"Church Running Expenses\",Descriptions!I59,0)","v":0},null,{"$f":"IF(Descriptions!K59=\"Church Running Expenses\",WorkingP!AF58,0)","v":0},{"$f":"IF(Descriptions!L59=\"Church Running Expenses\",WorkingP!AG58,0)","v":0},{"$f":"IF(Descriptions!M59=\"Church Running Expenses\",WorkingP!AH58,0)","v":0},{"$f":"IF(Descriptions!N59=\"Church Running Expenses\",WorkingP!AI58,0)","v":0},0,{"$f":"'Prior Year Comparative'!W707","v":0},null,null,null,null,null,null,null,null,null,null,null,null,null,null,null,null,null,null,0,"0"]
[{"$f":"IF(Descriptions!K60=\"Church Running Expenses\",Descriptions!I60,0)","v":0},null,{"$f":"IF(Descriptions!K60=\"Church Running Expenses\",WorkingP!AF59,0)","v":0},{"$f":"IF(Descriptions!L60=\"Church Running Expenses\",WorkingP!AG59,0)","v":0},{"$f":"IF(Descriptions!M60=\"Church Running Expenses\",WorkingP!AH59,0)","v":0},{"$f":"IF(Descriptions!N60=\"Church Running Expenses\",WorkingP!AI59,0)","v":0},0,{"$f":"'Prior Year Comparative'!W708","v":0},null,null,null,null,null,null,null,null,null,null,null,null,null,null,null,null,null,null,0,"0"]
[{"$f":"IF(Descriptions!K61=\"Church Running Expenses\",Descriptions!I61,0)","v":0},null,{"$f":"IF(Descriptions!K61=\"Church Running Expenses\",WorkingP!AF60,0)","v":0},{"$f":"IF(Descriptions!L61=\"Church Running Expenses\",WorkingP!AG60,0)","v":0},{"$f":"IF(Descriptions!M61=\"Church Running Expenses\",WorkingP!AH60,0)","v":0},{"$f":"IF(Descriptions!N61=\"Church Running Expenses\",WorkingP!AI60,0)","v":0},0,{"$f":"'Prior Year Comparative'!W709","v":0},null,null,null,null,null,null,null,null,null,null,null,null,null,null,null,null,null,null,0,"0"]
[{"$f":"IF(Descriptions!K62=\"Church Running Expenses\",Descriptions!I62,0)","v":0},null,{"$f":"IF(Descriptions!K62=\"Church Running Expenses\",WorkingP!AF61,0)","v":0},{"$f":"IF(Descriptions!L62=\"Church Running Expenses\",WorkingP!AG61,0)","v":0},{"$f":"IF(Descriptions!M62=\"Church Running Expenses\",WorkingP!AH61,0)","v":0},{"$f":"IF(Descriptions!N62=\"Church Running Expenses\",WorkingP!AI61,0)","v":0},0,{"$f":"'Prior Year Comparative'!W710","v":0},null,null,null,null,null,null,null,null,null,null,null,null,null,null,null,null,null,null,0,"0"]
[{"$f":"IF(Descriptions!K63=\"Church Running Expenses\",Descriptions!I63,0)","v":0},null,{"$f":"IF(Descriptions!K63=\"Church Running Expenses\",WorkingP!AF62,0)","v":0},{"$f":"IF(Descriptions!L63=\"Church Running Expenses\",WorkingP!AG62,0)","v":0},{"$f":"IF(Descriptions!M63=\"Church Running Expenses\",WorkingP!AH62,0)","v":0},{"$f":"IF(Descriptions!N63=\"Church Running Expenses\",WorkingP!AI62,0)","v":0},0,{"$f":"'Prior Year Comparative'!W711","v":0},null,null,null,null,null,null,null,null,null,null,null,null,null,null,null,null,null,null,0,"0"]
[{"$f":"IF(Descriptions!K64=\"Church Running Expenses\",Descriptions!I64,0)","v":0},null,{"$f":"IF(Descriptions!K64=\"Church Running Expenses\",WorkingP!AF63,0)","v":0},{"$f":"IF(Descriptions!L64=\"Church Running Expenses\",WorkingP!AG63,0)","v":0},{"$f":"IF(Descriptions!M64=\"Church Running Expenses\",WorkingP!AH63,0)","v":0},{"$f":"IF(Descriptions!N64=\"Church Running Expenses\",WorkingP!AI63,0)","v":0},0,{"$f":"'Prior Year Comparative'!W712","v":0},null,null,null,null,null,null,null,null,null,null,null,null,null,null,null,null,null,null,0,"0"]
[{"$f":"IF(Descriptions!K65=\"Church Running Expenses\",Descriptions!I65,0)","v":0},null,{"$f":"IF(Descriptions!K65=\"Church Running Expenses\",WorkingP!AF64,0)","v":0},{"$f":"IF(Descriptions!L65=\"Church Running Expenses\",WorkingP!AG64,0)","v":0},{"$f":"IF(Descriptions!M65=\"Church Running Expenses\",WorkingP!AH64,0)","v":0},{"$f":"IF(Descriptions!N65=\"Church Running Expenses\",WorkingP!AI64,0)","v":0},0,{"$f":"'Prior Year Comparative'!W713","v":0},null,null,null,null,null,null,null,null,null,null,null,null,null,null,null,null,null,null,0,"0"]
[{"$f":"IF(Descriptions!K66=\"Church Running Expenses\",Descriptions!I66,0)","v":0},null,{"$f":"IF(Descriptions!K66=\"Church Running Expenses\",WorkingP!AF65,0)","v":0},{"$f":"IF(Descriptions!L66=\"Church Running Expenses\",WorkingP!AG65,0)","v":0},{"$f":"IF(Descriptions!M66=\"Church Running Expenses\",WorkingP!AH65,0)","v":0},{"$f":"IF(Descriptions!N66=\"Church Running Expenses\",WorkingP!AI65,0)","v":0},0,{"$f":"'Prior Year Comparative'!W714","v":0},null,null,null,null,null,null,null,null,null,null,null,null,null,null,null,null,null,null,0,"0"]
[{"$f":"IF(Descriptions!K67=\"Church Running Expenses\",Descriptions!I67,0)","v":0},null,{"$f":"IF(Descriptions!K67=\"Church Running Expenses\",WorkingP!AF66,0)","v":0},{"$f":"IF(Descriptions!L67=\"Church Running Expenses\",WorkingP!AG66,0)","v":0},{"$f":"IF(Descriptions!M67=\"Church Running Expenses\",WorkingP!AH66,0)","v":0},{"$f":"IF(Descriptions!N67=\"Church Running Expenses\",WorkingP!AI66,0)","v":0},0,{"$f":"'Prior Year Comparative'!W715","v":0},null,null,null,null,null,null,null,null,null,null,null,null,null,null,null,null,null,null,0,"0"]
[{"$f":"IF(Descriptions!K68=\"Church Running Expenses\",Descriptions!I68,0)","v":0},null,{"$f":"IF(Descriptions!K68=\"Church Running Expenses\",WorkingP!AF67,0)","v":0},{"$f":"IF(Descriptions!L68=\"Church Running Expenses\",WorkingP!AG67,0)","v":0},{"$f":"IF(Descriptions!M68=\"Church Running Expenses\",WorkingP!AH67,0)","v":0},{"$f":"IF(Descriptions!N68=\"Church Running Expenses\",WorkingP!AI67,0)","v":0},0,{"$f":"'Prior Year Comparative'!W716","v":0},null,null,null,null,null,null,null,null,null,null,null,null,null,null,null,null,null,null,0,"0"]
[{"$f":"IF(Descriptions!K69=\"Church Running Expenses\",Descriptions!I69,0)","v":0},null,{"$f":"IF(Descriptions!K69=\"Church Running Expenses\",WorkingP!AF68,0)","v":0},{"$f":"IF(Descriptions!L69=\"Church Running Expenses\",WorkingP!AG68,0)","v":0},{"$f":"IF(Descriptions!M69=\"Church Running Expenses\",WorkingP!AH68,0)","v":0},{"$f":"IF(Descriptions!N69=\"Church Running Expenses\",WorkingP!AI68,0)","v":0},0,{"$f":"'Prior Year Comparative'!W717","v":0},null,null,null,null,null,null,null,null,null,null,null,null,null,null,null,null,null,null,0,"0"]
[{"$f":"IF(Descriptions!K70=\"Church Running Expenses\",Descriptions!I70,0)","v":0},null,{"$f":"IF(Descriptions!K70=\"Church Running Expenses\",WorkingP!AF69,0)","v":0},{"$f":"IF(Descriptions!L70=\"Church Running Expenses\",WorkingP!AG69,0)","v":0},{"$f":"IF(Descriptions!M70=\"Church Running Expenses\",WorkingP!AH69,0)","v":0},{"$f":"IF(Descriptions!N70=\"Church Running Expenses\",WorkingP!AI69,0)","v":0},0,{"$f":"'Prior Year Comparative'!W718","v":0},null,null,null,null,null,null,null,null,null,null,null,null,null,null,null,null,null,null,0,"0"]
[{"$f":"IF(Descriptions!K71=\"Church Running Expenses\",Descriptions!I71,0)","v":0},null,{"$f":"IF(Descriptions!K71=\"Church Running Expenses\",WorkingP!AF70,0)","v":0},{"$f":"IF(Descriptions!L71=\"Church Running Expenses\",WorkingP!AG70,0)","v":0},{"$f":"IF(Descriptions!M71=\"Church Running Expenses\",WorkingP!AH70,0)","v":0},{"$f":"IF(Descriptions!N71=\"Church Running Expenses\",WorkingP!AI70,0)","v":0},0,{"$f":"'Prior Year Comparative'!W719","v":0},null,null,null,null,null,null,null,null,null,null,null,null,null,null,null,null,null,null,0,"0"]
[{"$f":"IF(Descriptions!K72=\"Church Running Expenses\",Descriptions!I72,0)","v":0},null,{"$f":"IF(Descriptions!K72=\"Church Running Expenses\",WorkingP!AF71,0)","v":0},{"$f":"IF(Descriptions!L72=\"Church Running Expenses\",WorkingP!AG71,0)","v":0},{"$f":"IF(Descriptions!M72=\"Church Running Expenses\",WorkingP!AH71,0)","v":0},{"$f":"IF(Descriptions!N72=\"Church Running Expenses\",WorkingP!AI71,0)","v":0},0,{"$f":"'Prior Year Comparative'!W720","v":0},null,null,null,null,null,null,null,null,null,null,null,null,null,null,null,null,null,null,0,"0"]
[{"$f":"IF(Descriptions!K73=\"Church Running Expenses\",Descriptions!I73,0)","v":0},null,{"$f":"IF(Descriptions!K73=\"Church Running Expenses\",WorkingP!AF72,0)","v":0},{"$f":"IF(Descriptions!L73=\"Church Running Expenses\",WorkingP!AG72,0)","v":0},{"$f":"IF(Descriptions!M73=\"Church Running Expenses\",WorkingP!AH72,0)","v":0},{"$f":"IF(Descriptions!N73=\"Church Running Expenses\",WorkingP!AI72,0)","v":0},0,{"$f":"'Prior Year Comparative'!W721","v":0},null,null,null,null,null,null,null,null,null,null,null,null,null,null,null,null,null,null,0,"0"]
[{"$f":"IF(Descriptions!K74=\"Church Running Expenses\",Descriptions!I74,0)","v":0},null,{"$f":"IF(Descriptions!K74=\"Church Running Expenses\",WorkingP!AF73,0)","v":0},{"$f":"IF(Descriptions!L74=\"Church Running Expenses\",WorkingP!AG73,0)","v":0},{"$f":"IF(Descriptions!M74=\"Church Running Expenses\",WorkingP!AH73,0)","v":0},{"$f":"IF(Descriptions!N74=\"Church Running Expenses\",WorkingP!AI73,0)","v":0},0,{"$f":"'Prior Year Comparative'!W722","v":0},null,null,null,null,null,null,null,null,null,null,null,null,null,null,null,null,null,null,0,"0"]
[{"$f":"IF(Descriptions!K75=\"Church Running Expenses\",Descriptions!I75,0)","v":0},null,{"$f":"IF(Descriptions!K75=\"Church Running Expenses\",WorkingP!AF74,0)","v":0},{"$f":"IF(Descriptions!L75=\"Church Running Expenses\",WorkingP!AG74,0)","v":0},{"$f":"IF(Descriptions!M75=\"Church Running Expenses\",WorkingP!AH74,0)","v":0},{"$f":"IF(Descriptions!N75=\"Church Running Expenses\",WorkingP!AI74,0)","v":0},0,{"$f":"'Prior Year Comparative'!W723","v":0},null,null,null,null,null,null,null,null,null,null,null,null,null,null,null,null,null,null,0,"0"]
[{"$f":"IF(Descriptions!K76=\"Church Running Expenses\",Descriptions!I76,0)","v":0},null,{"$f":"IF(Descriptions!K76=\"Church Running Expenses\",WorkingP!AF75,0)","v":0},{"$f":"IF(Descriptions!L76=\"Church Running Expenses\",WorkingP!AG75,0)","v":0},{"$f":"IF(Descriptions!M76=\"Church Running Expenses\",WorkingP!AH75,0)","v":0},{"$f":"IF(Descriptions!N76=\"Church Running Expenses\",WorkingP!AI75,0)","v":0},0,{"$f":"'Prior Year Comparative'!W724","v":0},null,null,null,null,null,null,null,null,null,null,null,null,null,null,null,null,null,null,0,"0"]
[{"$f":"IF(Descriptions!K77=\"Church Running Expenses\",Descriptions!I77,0)","v":0},null,{"$f":"IF(Descriptions!K77=\"Church Running Expenses\",WorkingP!AF76,0)","v":0},{"$f":"IF(Descriptions!L77=\"Church Running Expenses\",WorkingP!AG76,0)","v":0},{"$f":"IF(Descriptions!M77=\"Church Running Expenses\",WorkingP!AH76,0)","v":0},{"$f":"IF(Descriptions!N77=\"Church Running Expenses\",WorkingP!AI76,0)","v":0},0,{"$f":"'Prior Year Comparative'!W725","v":0},null,null,null,null,null,null,null,null,null,null,null,null,null,null,null,null,null,null,0,"0"]
[{"$f":"IF(Descriptions!K78=\"Church Running Expenses\",Descriptions!I78,0)","v":0},null,{"$f":"IF(Descriptions!K78=\"Church Running Expenses\",WorkingP!AF77,0)","v":0},{"$f":"IF(Descriptions!L78=\"Church Running Expenses\",WorkingP!AG77,0)","v":0},{"$f":"IF(Descriptions!M78=\"Church Running Expenses\",WorkingP!AH77,0)","v":0},{"$f":"IF(Descriptions!N78=\"Church Running Expenses\",WorkingP!AI77,0)","v":0},0,{"$f":"'Prior Year Comparative'!W726","v":0},null,null,null,null,null,null,null,null,null,null,null,null,null,null,null,null,null,null,0,"0"]
[{"$f":"IF(Descriptions!K79=\"Church Running Expenses\",Descriptions!I79,0)","v":0},null,{"$f":"IF(Descriptions!K79=\"Church Running Expenses\",WorkingP!AF78,0)","v":0},{"$f":"IF(Descriptions!L79=\"Church Running Expenses\",WorkingP!AG78,0)","v":0},{"$f":"IF(Descriptions!M79=\"Church Running Expenses\",WorkingP!AH78,0)","v":0},{"$f":"IF(Descriptions!N79=\"Church Running Expenses\",WorkingP!AI78,0)","v":0},0,{"$f":"'Prior Year Comparative'!W727","v":0},null,null,null,null,null,null,null,null,null,null,null,null,null,null,null,null,null,null,0,"0"]
[{"$f":"IF(Descriptions!K80=\"Church Running Expenses\",Descriptions!I80,0)","v":0},null,{"$f":"IF(Descriptions!K80=\"Church Running Expenses\",WorkingP!AF79,0)","v":0},{"$f":"IF(Descriptions!L80=\"Church Running Expenses\",WorkingP!AG79,0)","v":0},{"$f":"IF(Descriptions!M80=\"Church Running Expenses\",WorkingP!AH79,0)","v":0},{"$f":"IF(Descriptions!N80=\"Church Running Expenses\",WorkingP!AI79,0)","v":0},0,{"$f":"'Prior Year Comparative'!W728","v":0},null,null,null,null,null,null,null,null,null,null,null,null,null,null,null,null,null,null,0,"0"]
[{"$f":"IF(Descriptions!K81=\"Church Running Expenses\",Descriptions!I81,0)","v":0},null,{"$f":"IF(Descriptions!K81=\"Church Running Expenses\",WorkingP!AF80,0)","v":0},{"$f":"IF(Descriptions!L81=\"Church Running Expenses\",WorkingP!AG80,0)","v":0},{"$f":"IF(Descriptions!M81=\"Church Running Expenses\",WorkingP!AH80,0)","v":0},{"$f":"IF(Descriptions!N81=\"Church Running Expenses\",WorkingP!AI80,0)","v":0},0,{"$f":"'Prior Year Comparative'!W729","v":0},null,null,null,null,null,null,null,null,null,null,null,null,null,null,null,null,null,null,0,"0"]
[{"$f":"IF(Descriptions!K82=\"Church Running Expenses\",Descriptions!I82,0)","v":0},null,{"$f":"IF(Descriptions!K82=\"Church Running Expenses\",WorkingP!AF81,0)","v":0},{"$f":"IF(Descriptions!L82=\"Church Running Expenses\",WorkingP!AG81,0)","v":0},{"$f":"IF(Descriptions!M82=\"Church Running Expenses\",WorkingP!AH81,0)","v":0},{"$f":"IF(Descriptions!N82=\"Church Running Expenses\",WorkingP!AI81,0)","v":0},0,{"$f":"'Prior Year Comparative'!W730","v":0},null,null,null,null,null,null,null,null,null,null,null,null,null,null,null,null,null,null,{"$f":"SUM(C831:H831)","v":0},{"$f":"IF(AA831=0,\"0\",\"1\")","v":"0"}]
[{"$f":"IF(Descriptions!K83=\"Church Running Expenses\",Descriptions!I83,0)","v":0},null,{"$f":"IF(Descriptions!K83=\"Church Running Expenses\",WorkingP!AF82,0)","v":0},{"$f":"IF(Descriptions!L83=\"Church Running Expenses\",WorkingP!AG82,0)","v":0},{"$f":"IF(Descriptions!M83=\"Church Running Expenses\",WorkingP!AH82,0)","v":0},{"$f":"IF(Descriptions!N83=\"Church Running Expenses\",WorkingP!AI82,0)","v":0},0,{"$f":"'Prior Year Comparative'!W731","v":0},null,null,null,null,null,null,null,null,null,null,null,null,null,null,null,null,null,null,{"$f":"SUM(C832:H832)","v":0},"0"]
[{"$f":"IF(Descriptions!K84=\"Church Running Expenses\",Descriptions!I84,0)","v":0},null,{"$f":"IF(Descriptions!K84=\"Church Running Expenses\",WorkingP!AF83,0)","v":0},{"$f":"IF(Descriptions!L84=\"Church Running Expenses\",WorkingP!AG83,0)","v":0},{"$f":"IF(Descriptions!M84=\"Church Running Expenses\",WorkingP!AH83,0)","v":0},{"$f":"IF(Descriptions!N84=\"Church Running Expenses\",WorkingP!AI83,0)","v":0},0,{"$f":"'Prior Year Comparative'!W732","v":0},null,null,null,null,null,null,null,null,null,null,null,null,null,null,null,null,null,null,{"$f":"SUM(C833:H833)","v":0},"0"]
[null,null,null,null,null,null,null,null,null,null,null,null,null,null,null,null,null,null,null,null,null,null,null,null,null,null,{"$f":"AA835","v":0},"0"]
[null,null,{"$f":"SUM(C778:C833)","v":0},0,0,0,0,0,null,null,null,null,null,null,null,null,null,null,null,null,null,null,null,null,null,null,{"$f":"SUM(AA778:AA833)","v":0},"0"]
[null,null,null,null,null,null,null,null,null,null,null,null,null,null,null,null,null,null,null,null,null,null,null,null,null,null,{"$f":"AA837","v":0},"0"]
["MISSION GIVING AND DONATIONS",null,null,null,null,null,null,null,null,null,null,null,null,null,null,null,null,null,null,null,null,null,null,null,null,null,{"$f":"SUM(AA838:AA891)","v":0},"0"]
["Charities - Home (UK)",null,{"$f":"WorkingP!AF8","v":0},{"$f":"WorkingP!AG8","v":0},{"$f":"WorkingP!AH8","v":0},{"$f":"WorkingP!AI8","v":0},{"$f":"SUM(C838:F838)","v":0},{"$f":"'Prior Year Comparative'!W735","v":0},null,null,null,null,null,null,null,null,null,null,null,null,null,null,null,null,null,null,{"$f":"SUM(C838:H838)","v":0},"0"]
["Charities - Overseas",null,{"$f":"WorkingP!AF9","v":0},{"$f":"WorkingP!AG9","v":0},{"$f":"WorkingP!AH9","v":0},{"$f":"WorkingP!AI9","v":0},{"$f":"SUM(C839:F839)","v":0},{"$f":"'Prior Year Comparative'!W736","v":0},null,null,null,null,null,null,null,null,null,null,null,null,null,null,null,null,null,null,{"$f":"SUM(C839:H839)","v":0},"0"]
["Charities - Secular",null,{"$f":"WorkingP!AF10","v":0},{"$f":"WorkingP!AG10","v":0},{"$f":"WorkingP!AH10","v":0},{"$f":"WorkingP!AI10","v":0},{"$f":"SUM(C840:F840)","v":0},{"$f":"'Prior Year Comparative'!W737","v":0},null,null,null,null,null,null,null,null,null,null,null,null,null,null,null,null,null,null,{"$f":"SUM(C840:H840)","v":0},"0"]
["Charities - Christian Relief",null,{"$f":"WorkingP!AF7","v":0},{"$f":"WorkingP!AG7","v":0},{"$f":"WorkingP!AH7","v":0},{"$f":"WorkingP!AI7","v":0},{"$f":"SUM(C841:F841)","v":0},{"$f":"'Prior Year Comparative'!W738","v":0},null,null,null,null,null,null,null,null,null,null,null,null,null,null,null,null,null,null,{"$f":"SUM(C841:H841)","v":0},"0"]
[{"$f":"IF(Descriptions!K35=\"Mission Giving and Donations\",Descriptions!I35,0)","v":0},null,{"$f":"IF(Descriptions!K35=\"Mission Giving and Donations\",WorkingP!AF34,0)","v":0},{"$f":"IF(Descriptions!L35=\"Mission Giving and Donations\",WorkingP!AG34,0)","v":0},{"$f":"IF(Descriptions!M35=\"Mission Giving and Donations\",WorkingP!AH34,0)","v":0},{"$f":"IF(Descriptions!N35=\"Mission Giving and Donations\",WorkingP!AI34,0)","v":0},{"$f":"SUM(C842:F842)","v":0},{"$f":"'Prior Year Comparative'!W739","v":0},null,null,null,null,null,null,null,null,null,null,null,null,null,null,null,null,null,null,{"$f":"SUM(C842:H842)","v":0},{"$f":"IF(AA842=0,\"0\",\"1\")","v":"0"}]
[{"$f":"IF(Descriptions!K36=\"Mission Giving and Donations\",Descriptions!I36,0)","v":0},null,{"$f":"IF(Descriptions!K36=\"Mission Giving and Donations\",WorkingP!AF35,0)","v":0},{"$f":"IF(Descriptions!L36=\"Mission Giving and Donations\",WorkingP!AG35,0)","v":0},{"$f":"IF(Descriptions!M36=\"Mission Giving and Donations\",WorkingP!AH35,0)","v":0},{"$f":"IF(Descriptions!N36=\"Mission Giving and Donations\",WorkingP!AI35,0)","v":0},{"$f":"SUM(C843:F843)","v":0},{"$f":"'Prior Year Comparative'!W740","v":0},null,null,null,null,null,null,null,null,null,null,null,null,null,null,null,null,null,null,0,"0"]
[{"$f":"IF(Descriptions!K37=\"Mission Giving and Donations\",Descriptions!I37,0)","v":0},null,{"$f":"IF(Descriptions!K37=\"Mission Giving and Donations\",WorkingP!AF36,0)","v":0},{"$f":"IF(Descriptions!L37=\"Mission Giving and Donations\",WorkingP!AG36,0)","v":0},{"$f":"IF(Descriptions!M37=\"Mission Giving and Donations\",WorkingP!AH36,0)","v":0},{"$f":"IF(Descriptions!N37=\"Mission Giving and Donations\",WorkingP!AI36,0)","v":0},0,{"$f":"'Prior Year Comparative'!W741","v":0},null,null,null,null,null,null,null,null,null,null,null,null,null,null,null,null,null,null,0,"0"]
[{"$f":"IF(Descriptions!K38=\"Mission Giving and Donations\",Descriptions!I38,0)","v":0},null,{"$f":"IF(Descriptions!K38=\"Mission Giving and Donations\",WorkingP!AF37,0)","v":0},{"$f":"IF(Descriptions!L38=\"Mission Giving and Donations\",WorkingP!AG37,0)","v":0},{"$f":"IF(Descriptions!M38=\"Mission Giving and Donations\",WorkingP!AH37,0)","v":0},{"$f":"IF(Descriptions!N38=\"Mission Giving and Donations\",WorkingP!AI37,0)","v":0},0,{"$f":"'Prior Year Comparative'!W742","v":0},null,null,null,null,null,null,null,null,null,null,null,null,null,null,null,null,null,null,0,"0"]
[{"$f":"IF(Descriptions!K39=\"Mission Giving and Donations\",Descriptions!I39,0)","v":0},null,{"$f":"IF(Descriptions!K39=\"Mission Giving and Donations\",WorkingP!AF38,0)","v":0},{"$f":"IF(Descriptions!L39=\"Mission Giving and Donations\",WorkingP!AG38,0)","v":0},{"$f":"IF(Descriptions!M39=\"Mission Giving and Donations\",WorkingP!AH38,0)","v":0},{"$f":"IF(Descriptions!N39=\"Mission Giving and Donations\",WorkingP!AI38,0)","v":0},0,{"$f":"'Prior Year Comparative'!W743","v":0},null,null,null,null,null,null,null,null,null,null,null,null,null,null,null,null,null,null,0,"0"]
[{"$f":"IF(Descriptions!K40=\"Mission Giving and Donations\",Descriptions!I40,0)","v":0},null,{"$f":"IF(Descriptions!K40=\"Mission Giving and Donations\",WorkingP!AF39,0)","v":0},{"$f":"IF(Descriptions!L40=\"Mission Giving and Donations\",WorkingP!AG39,0)","v":0},{"$f":"IF(Descriptions!M40=\"Mission Giving and Donations\",WorkingP!AH39,0)","v":0},{"$f":"IF(Descriptions!N40=\"Mission Giving and Donations\",WorkingP!AI39,0)","v":0},0,{"$f":"'Prior Year Comparative'!W744","v":0},null,null,null,null,null,null,null,null,null,null,null,null,null,null,null,null,null,null,0,"0"]
[{"$f":"IF(Descriptions!K41=\"Mission Giving and Donations\",Descriptions!I41,0)","v":0},null,{"$f":"IF(Descriptions!K41=\"Mission Giving and Donations\",WorkingP!AF40,0)","v":0},{"$f":"IF(Descriptions!L41=\"Mission Giving and Donations\",WorkingP!AG40,0)","v":0},{"$f":"IF(Descriptions!M41=\"Mission Giving and Donations\",WorkingP!AH40,0)","v":0},{"$f":"IF(Descriptions!N41=\"Mission Giving and Donations\",WorkingP!AI40,0)","v":0},0,{"$f":"'Prior Year Comparative'!W745","v":0},null,null,null,null,null,null,null,null,null,null,null,null,null,null,null,null,null,null,0,"0"]
[{"$f":"IF(Descriptions!K42=\"Mission Giving and Donations\",Descriptions!I42,0)","v":0},null,{"$f":"IF(Descriptions!K42=\"Mission Giving and Donations\",WorkingP!AF41,0)","v":0},{"$f":"IF(Descriptions!L42=\"Mission Giving and Donations\",WorkingP!AG41,0)","v":0},{"$f":"IF(Descriptions!M42=\"Mission Giving and Donations\",WorkingP!AH41,0)","v":0},{"$f":"IF(Descriptions!N42=\"Mission Giving and Donations\",WorkingP!AI41,0)","v":0},0,{"$f":"'Prior Year Comparative'!W746","v":0},null,null,null,null,null,null,null,null,null,null,null,null,null,null,null,null,null,null,0,"0"]
[{"$f":"IF(Descriptions!K43=\"Mission Giving and Donations\",Descriptions!I43,0)","v":0},null,{"$f":"IF(Descriptions!K43=\"Mission Giving and Donations\",WorkingP!AF42,0)","v":0},{"$f":"IF(Descriptions!L43=\"Mission Giving and Donations\",WorkingP!AG42,0)","v":0},{"$f":"IF(Descriptions!M43=\"Mission Giving and Donations\",WorkingP!AH42,0)","v":0},{"$f":"IF(Descriptions!N43=\"Mission Giving and Donations\",WorkingP!AI42,0)","v":0},0,{"$f":"'Prior Year Comparative'!W747","v":0},null,null,null,null,null,null,null,null,null,null,null,null,null,null,null,null,null,null,0,"0"]
[{"$f":"IF(Descriptions!K44=\"Mission Giving and Donations\",Descriptions!I44,0)","v":0},null,{"$f":"IF(Descriptions!K44=\"Mission Giving and Donations\",WorkingP!AF43,0)","v":0},{"$f":"IF(Descriptions!L44=\"Mission Giving and Donations\",WorkingP!AG43,0)","v":0},{"$f":"IF(Descriptions!M44=\"Mission Giving and Donations\",WorkingP!AH43,0)","v":0},{"$f":"IF(Descriptions!N44=\"Mission Giving and Donations\",WorkingP!AI43,0)","v":0},0,{"$f":"'Prior Year Comparative'!W748","v":0},null,null,null,null,null,null,null,null,null,null,null,null,null,null,null,null,null,null,0,"0"]
[{"$f":"IF(Descriptions!K45=\"Mission Giving and Donations\",Descriptions!I45,0)","v":0},null,{"$f":"IF(Descriptions!K45=\"Mission Giving and Donations\",WorkingP!AF44,0)","v":0},{"$f":"IF(Descriptions!L45=\"Mission Giving and Donations\",WorkingP!AG44,0)","v":0},{"$f":"IF(Descriptions!M45=\"Mission Giving and Donations\",WorkingP!AH44,0)","v":0},{"$f":"IF(Descriptions!N45=\"Mission Giving and Donations\",WorkingP!AI44,0)","v":0},0,{"$f":"'Prior Year Comparative'!W749","v":0},null,null,null,null,null,null,null,null,null,null,null,null,null,null,null,null,null,null,0,"0"]
[{"$f":"IF(Descriptions!K46=\"Mission Giving and Donations\",Descriptions!I46,0)","v":0},null,{"$f":"IF(Descriptions!K46=\"Mission Giving and Donations\",WorkingP!AF45,0)","v":0},{"$f":"IF(Descriptions!L46=\"Mission Giving and Donations\",WorkingP!AG45,0)","v":0},{"$f":"IF(Descriptions!M46=\"Mission Giving and Donations\",WorkingP!AH45,0)","v":0},{"$f":"IF(Descriptions!N46=\"Mission Giving and Donations\",WorkingP!AI45,0)","v":0},0,{"$f":"'Prior Year Comparative'!W750","v":0},null,null,null,null,null,null,null,null,null,null,null,null,null,null,null,null,null,null,0,"0"]
[{"$f":"IF(Descriptions!K47=\"Mission Giving and Donations\",Descriptions!I47,0)","v":0},null,{"$f":"IF(Descriptions!K47=\"Mission Giving and Donations\",WorkingP!AF46,0)","v":0},{"$f":"IF(Descriptions!L47=\"Mission Giving and Donations\",WorkingP!AG46,0)","v":0},{"$f":"IF(Descriptions!M47=\"Mission Giving and Donations\",WorkingP!AH46,0)","v":0},{"$f":"IF(Descriptions!N47=\"Mission Giving and Donations\",WorkingP!AI46,0)","v":0},0,{"$f":"'Prior Year Comparative'!W751","v":0},null,null,null,null,null,null,null,null,null,null,null,null,null,null,null,null,null,null,0,"0"]
[{"$f":"IF(Descriptions!K48=\"Mission Giving and Donations\",Descriptions!I48,0)","v":0},null,{"$f":"IF(Descriptions!K48=\"Mission Giving and Donations\",WorkingP!AF47,0)","v":0},{"$f":"IF(Descriptions!L48=\"Mission Giving and Donations\",WorkingP!AG47,0)","v":0},{"$f":"IF(Descriptions!M48=\"Mission Giving and Donations\",WorkingP!AH47,0)","v":0},{"$f":"IF(Descriptions!N48=\"Mission Giving and Donations\",WorkingP!AI47,0)","v":0},0,{"$f":"'Prior Year Comparative'!W752","v":0},null,null,null,null,null,null,null,null,null,null,null,null,null,null,null,null,null,null,0,"0"]
[{"$f":"IF(Descriptions!K49=\"Mission Giving and Donations\",Descriptions!I49,0)","v":0},null,{"$f":"IF(Descriptions!K49=\"Mission Giving and Donations\",WorkingP!AF48,0)","v":0},{"$f":"IF(Descriptions!L49=\"Mission Giving and Donations\",WorkingP!AG48,0)","v":0},{"$f":"IF(Descriptions!M49=\"Mission Giving and Donations\",WorkingP!AH48,0)","v":0},{"$f":"IF(Descriptions!N49=\"Mission Giving and Donations\",WorkingP!AI48,0)","v":0},0,{"$f":"'Prior Year Comparative'!W753","v":0},null,null,null,null,null,null,null,null,null,null,null,null,null,null,null,null,null,null,0,"0"]
[{"$f":"IF(Descriptions!K50=\"Mission Giving and Donations\",Descriptions!I50,0)","v":0},null,{"$f":"IF(Descriptions!K50=\"Mission Giving and Donations\",WorkingP!AF49,0)","v":0},{"$f":"IF(Descriptions!L50=\"Mission Giving and Donations\",WorkingP!AG49,0)","v":0},{"$f":"IF(Descriptions!M50=\"Mission Giving and Donations\",WorkingP!AH49,0)","v":0},{"$f":"IF(Descriptions!N50=\"Mission Giving and Donations\",WorkingP!AI49,0)","v":0},0,{"$f":"'Prior Year Comparative'!W754","v":0},null,null,null,null,null,null,null,null,null,null,null,null,null,null,null,null,null,null,0,"0"]
[{"$f":"IF(Descriptions!K51=\"Mission Giving and Donations\",Descriptions!I51,0)","v":0},null,{"$f":"IF(Descriptions!K51=\"Mission Giving and Donations\",WorkingP!AF50,0)","v":0},{"$f":"IF(Descriptions!L51=\"Mission Giving and Donations\",WorkingP!AG50,0)","v":0},{"$f":"IF(Descriptions!M51=\"Mission Giving and Donations\",WorkingP!AH50,0)","v":0},{"$f":"IF(Descriptions!N51=\"Mission Giving and Donations\",WorkingP!AI50,0)","v":0},0,{"$f":"'Prior Year Comparative'!W755","v":0},null,null,null,null,null,null,null,null,null,null,null,null,null,null,null,null,null,null,0,"0"]
[{"$f":"IF(Descriptions!K52=\"Mission Giving and Donations\",Descriptions!I52,0)","v":0},null,{"$f":"IF(Descriptions!K52=\"Mission Giving and Donations\",WorkingP!AF51,0)","v":0},{"$f":"IF(Descriptions!L52=\"Mission Giving and Donations\",WorkingP!AG51,0)","v":0},{"$f":"IF(Descriptions!M52=\"Mission Giving and Donations\",WorkingP!AH51,0)","v":0},{"$f":"IF(Descriptions!N52=\"Mission Giving and Donations\",WorkingP!AI51,0)","v":0},0,{"$f":"'Prior Year Comparative'!W756","v":0},null,null,null,null,null,null,null,null,null,null,null,null,null,null,null,null,null,null,0,"0"]
[{"$f":"IF(Descriptions!K53=\"Mission Giving and Donations\",Descriptions!I53,0)","v":0},null,{"$f":"IF(Descriptions!K53=\"Mission Giving and Donations\",WorkingP!AF52,0)","v":0},{"$f":"IF(Descriptions!L53=\"Mission Giving and Donations\",WorkingP!AG52,0)","v":0},{"$f":"IF(Descriptions!M53=\"Mission Giving and Donations\",WorkingP!AH52,0)","v":0},{"$f":"IF(Descriptions!N53=\"Mission Giving and Donations\",WorkingP!AI52,0)","v":0},0,{"$f":"'Prior Year Comparative'!W757","v":0},null,null,null,null,null,null,null,null,null,null,null,null,null,null,null,null,null,null,0,"0"]
[{"$f":"IF(Descriptions!K54=\"Mission Giving and Donations\",Descriptions!I54,0)","v":0},null,{"$f":"IF(Descriptions!K54=\"Mission Giving and Donations\",WorkingP!AF53,0)","v":0},{"$f":"IF(Descriptions!L54=\"Mission Giving and Donations\",WorkingP!AG53,0)","v":0},{"$f":"IF(Descriptions!M54=\"Mission Giving and Donations\",WorkingP!AH53,0)","v":0},{"$f":"IF(Descriptions!N54=\"Mission Giving and Donations\",WorkingP!AI53,0)","v":0},0,{"$f":"'Prior Year Comparative'!W758","v":0},null,null,null,null,null,null,null,null,null,null,null,null,null,null,null,null,null,null,0,"0"]
[{"$f":"IF(Descriptions!K55=\"Mission Giving and Donations\",Descriptions!I55,0)","v":0},null,{"$f":"IF(Descriptions!K55=\"Mission Giving and Donations\",WorkingP!AF54,0)","v":0},{"$f":"IF(Descriptions!L55=\"Mission Giving and Donations\",WorkingP!AG54,0)","v":0},{"$f":"IF(Descriptions!M55=\"Mission Giving and Donations\",WorkingP!AH54,0)","v":0},{"$f":"IF(Descriptions!N55=\"Mission Giving and Donations\",WorkingP!AI54,0)","v":0},0,{"$f":"'Prior Year Comparative'!W759","v":0},null,null,null,null,null,null,null,null,null,null,null,null,null,null,null,null,null,null,0,"0"]
[{"$f":"IF(Descriptions!K56=\"Mission Giving and Donations\",Descriptions!I56,0)","v":0},null,{"$f":"IF(Descriptions!K56=\"Mission Giving and Donations\",WorkingP!AF55,0)","v":0},{"$f":"IF(Descriptions!L56=\"Mission Giving and Donations\",WorkingP!AG55,0)","v":0},{"$f":"IF(Descriptions!M56=\"Mission Giving and Donations\",WorkingP!AH55,0)","v":0},{"$f":"IF(Descriptions!N56=\"Mission Giving and Donations\",WorkingP!AI55,0)","v":0},0,{"$f":"'Prior Year Comparative'!W760","v":0},null,null,null,null,null,null,null,null,null,null,null,null,null,null,null,null,null,null,0,"0"]
[{"$f":"IF(Descriptions!K57=\"Mission Giving and Donations\",Descriptions!I57,0)","v":0},null,{"$f":"IF(Descriptions!K57=\"Mission Giving and Donations\",WorkingP!AF56,0)","v":0},{"$f":"IF(Descriptions!L57=\"Mission Giving and Donations\",WorkingP!AG56,0)","v":0},{"$f":"IF(Descriptions!M57=\"Mission Giving and Donations\",WorkingP!AH56,0)","v":0},{"$f":"IF(Descriptions!N57=\"Mission Giving and Donations\",WorkingP!AI56,0)","v":0},0,{"$f":"'Prior Year Comparative'!W761","v":0},null,null,null,null,null,null,null,null,null,null,null,null,null,null,null,null,null,null,0,"0"]
[{"$f":"IF(Descriptions!K58=\"Mission Giving and Donations\",Descriptions!I58,0)","v":0},null,{"$f":"IF(Descriptions!K58=\"Mission Giving and Donations\",WorkingP!AF57,0)","v":0},{"$f":"IF(Descriptions!L58=\"Mission Giving and Donations\",WorkingP!AG57,0)","v":0},{"$f":"IF(Descriptions!M58=\"Mission Giving and Donations\",WorkingP!AH57,0)","v":0},{"$f":"IF(Descriptions!N58=\"Mission Giving and Donations\",WorkingP!AI57,0)","v":0},0,{"$f":"'Prior Year Comparative'!W762","v":0},null,null,null,null,null,null,null,null,null,null,null,null,null,null,null,null,null,null,0,"0"]
[{"$f":"IF(Descriptions!K59=\"Mission Giving and Donations\",Descriptions!I59,0)","v":0},null,{"$f":"IF(Descriptions!K59=\"Mission Giving and Donations\",WorkingP!AF58,0)","v":0},{"$f":"IF(Descriptions!L59=\"Mission Giving and Donations\",WorkingP!AG58,0)","v":0},{"$f":"IF(Descriptions!M59=\"Mission Giving and Donations\",WorkingP!AH58,0)","v":0},{"$f":"IF(Descriptions!N59=\"Mission Giving and Donations\",WorkingP!AI58,0)","v":0},0,{"$f":"'Prior Year Comparative'!W763","v":0},null,null,null,null,null,null,null,null,null,null,null,null,null,null,null,null,null,null,0,"0"]
[{"$f":"IF(Descriptions!K60=\"Mission Giving and Donations\",Descriptions!I60,0)","v":0},null,{"$f":"IF(Descriptions!K60=\"Mission Giving and Donations\",WorkingP!AF59,0)","v":0},{"$f":"IF(Descriptions!L60=\"Mission Giving and Donations\",WorkingP!AG59,0)","v":0},{"$f":"IF(Descriptions!M60=\"Mission Giving and Donations\",WorkingP!AH59,0)","v":0},{"$f":"IF(Descriptions!N60=\"Mission Giving and Donations\",WorkingP!AI59,0)","v":0},0,{"$f":"'Prior Year Comparative'!W764","v":0},null,null,null,null,null,null,null,null,null,null,null,null,null,null,null,null,null,null,0,"0"]
[{"$f":"IF(Descriptions!K61=\"Mission Giving and Donations\",Descriptions!I61,0)","v":0},null,{"$f":"IF(Descriptions!K61=\"Mission Giving and Donations\",WorkingP!AF60,0)","v":0},{"$f":"IF(Descriptions!L61=\"Mission Giving and Donations\",WorkingP!AG60,0)","v":0},{"$f":"IF(Descriptions!M61=\"Mission Giving and Donations\",WorkingP!AH60,0)","v":0},{"$f":"IF(Descriptions!N61=\"Mission Giving and Donations\",WorkingP!AI60,0)","v":0},0,{"$f":"'Prior Year Comparative'!W765","v":0},null,null,null,null,null,null,null,null,null,null,null,null,null,null,null,null,null,null,0,"0"]
[{"$f":"IF(Descriptions!K62=\"Mission Giving and Donations\",Descriptions!I62,0)","v":0},null,{"$f":"IF(Descriptions!K62=\"Mission Giving and Donations\",WorkingP!AF61,0)","v":0},{"$f":"IF(Descriptions!L62=\"Mission Giving and Donations\",WorkingP!AG61,0)","v":0},{"$f":"IF(Descriptions!M62=\"Mission Giving and Donations\",WorkingP!AH61,0)","v":0},{"$f":"IF(Descriptions!N62=\"Mission Giving and Donations\",WorkingP!AI61,0)","v":0},0,{"$f":"'Prior Year Comparative'!W766","v":0},null,null,null,null,null,null,null,null,null,null,null,null,null,null,null,null,null,null,0,"0"]
[{"$f":"IF(Descriptions!K63=\"Mission Giving and Donations\",Descriptions!I63,0)","v":0},null,{"$f":"IF(Descriptions!K63=\"Mission Giving and Donations\",WorkingP!AF62,0)","v":0},{"$f":"IF(Descriptions!L63=\"Mission Giving and Donations\",WorkingP!AG62,0)","v":0},{"$f":"IF(Descriptions!M63=\"Mission Giving and Donations\",WorkingP!AH62,0)","v":0},{"$f":"IF(Descriptions!N63=\"Mission Giving and Donations\",WorkingP!AI62,0)","v":0},0,{"$f":"'Prior Year Comparative'!W767","v":0},null,null,null,null,null,null,null,null,null,null,null,null,null,null,null,null,null,null,0,"0"]
[{"$f":"IF(Descriptions!K64=\"Mission Giving and Donations\",Descriptions!I64,0)","v":0},null,{"$f":"IF(Descriptions!K64=\"Mission Giving and Donations\",WorkingP!AF63,0)","v":0},{"$f":"IF(Descriptions!L64=\"Mission Giving and Donations\",WorkingP!AG63,0)","v":0},{"$f":"IF(Descriptions!M64=\"Mission Giving and Donations\",WorkingP!AH63,0)","v":0},{"$f":"IF(Descriptions!N64=\"Mission Giving and Donations\",WorkingP!AI63,0)","v":0},0,{"$f":"'Prior Year Comparative'!W768","v":0},null,null,null,null,null,null,null,null,null,null,null,null,null,null,null,null,null,null,0,"0"]
[{"$f":"IF(Descriptions!K65=\"Mission Giving and Donations\",Descriptions!I65,0)","v":0},null,{"$f":"IF(Descriptions!K65=\"Mission Giving and Donations\",WorkingP!AF64,0)","v":0},{"$f":"IF(Descriptions!L65=\"Mission Giving and Donations\",WorkingP!AG64,0)","v":0},{"$f":"IF(Descriptions!M65=\"Mission Giving and Donations\",WorkingP!AH64,0)","v":0},{"$f":"IF(Descriptions!N65=\"Mission Giving and Donations\",WorkingP!AI64,0)","v":0},0,{"$f":"'Prior Year Comparative'!W769","v":0},null,null,null,null,null,null,null,null,null,null,null,null,null,null,null,null,null,null,0,"0"]
[{"$f":"IF(Descriptions!K66=\"Mission Giving and Donations\",Descriptions!I66,0)","v":0},null,{"$f":"IF(Descriptions!K66=\"Mission Giving and Donations\",WorkingP!AF65,0)","v":0},{"$f":"IF(Descriptions!L66=\"Mission Giving and Donations\",WorkingP!AG65,0)","v":0},{"$f":"IF(Descriptions!M66=\"Mission Giving and Donations\",WorkingP!AH65,0)","v":0},{"$f":"IF(Descriptions!N66=\"Mission Giving and Donations\",WorkingP!AI65,0)","v":0},0,{"$f":"'Prior Year Comparative'!W770","v":0},null,null,null,null,null,null,null,null,null,null,null,null,null,null,null,null,null,null,0,"0"]
[{"$f":"IF(Descriptions!K67=\"Mission Giving and Donations\",Descriptions!I67,0)","v":0},null,{"$f":"IF(Descriptions!K67=\"Mission Giving and Donations\",WorkingP!AF66,0)","v":0},{"$f":"IF(Descriptions!L67=\"Mission Giving and Donations\",WorkingP!AG66,0)","v":0},{"$f":"IF(Descriptions!M67=\"Mission Giving and Donations\",WorkingP!AH66,0)","v":0},{"$f":"IF(Descriptions!N67=\"Mission Giving and Donations\",WorkingP!AI66,0)","v":0},0,{"$f":"'Prior Year Comparative'!W771","v":0},null,null,null,null,null,null,null,null,null,null,null,null,null,null,null,null,null,null,0,"0"]
[{"$f":"IF(Descriptions!K68=\"Mission Giving and Donations\",Descriptions!I68,0)","v":0},null,{"$f":"IF(Descriptions!K68=\"Mission Giving and Donations\",WorkingP!AF67,0)","v":0},{"$f":"IF(Descriptions!L68=\"Mission Giving and Donations\",WorkingP!AG67,0)","v":0},{"$f":"IF(Descriptions!M68=\"Mission Giving and Donations\",WorkingP!AH67,0)","v":0},{"$f":"IF(Descriptions!N68=\"Mission Giving and Donations\",WorkingP!AI67,0)","v":0},0,{"$f":"'Prior Year Comparative'!W772","v":0},null,null,null,null,null,null,null,null,null,null,null,null,null,null,null,null,null,null,0,"0"]
[{"$f":"IF(Descriptions!K69=\"Mission Giving and Donations\",Descriptions!I69,0)","v":0},null,{"$f":"IF(Descriptions!K69=\"Mission Giving and Donations\",WorkingP!AF68,0)","v":0},{"$f":"IF(Descriptions!L69=\"Mission Giving and Donations\",WorkingP!AG68,0)","v":0},{"$f":"IF(Descriptions!M69=\"Mission Giving and Donations\",WorkingP!AH68,0)","v":0},{"$f":"IF(Descriptions!N69=\"Mission Giving and Donations\",WorkingP!AI68,0)","v":0},0,{"$f":"'Prior Year Comparative'!W773","v":0},null,null,null,null,null,null,null,null,null,null,null,null,null,null,null,null,null,null,0,"0"]
[{"$f":"IF(Descriptions!K70=\"Mission Giving and Donations\",Descriptions!I70,0)","v":0},null,{"$f":"IF(Descriptions!K70=\"Mission Giving and Donations\",WorkingP!AF69,0)","v":0},{"$f":"IF(Descriptions!L70=\"Mission Giving and Donations\",WorkingP!AG69,0)","v":0},{"$f":"IF(Descriptions!M70=\"Mission Giving and Donations\",WorkingP!AH69,0)","v":0},{"$f":"IF(Descriptions!N70=\"Mission Giving and Donations\",WorkingP!AI69,0)","v":0},0,{"$f":"'Prior Year Comparative'!W774","v":0},null,null,null,null,null,null,null,null,null,null,null,null,null,null,null,null,null,null,0,"0"]
[{"$f":"IF(Descriptions!K71=\"Mission Giving and Donations\",Descriptions!I71,0)","v":0},null,{"$f":"IF(Descriptions!K71=\"Mission Giving and Donations\",WorkingP!AF70,0)","v":0},{"$f":"IF(Descriptions!L71=\"Mission Giving and Donations\",WorkingP!AG70,0)","v":0},{"$f":"IF(Descriptions!M71=\"Mission Giving and Donations\",WorkingP!AH70,0)","v":0},{"$f":"IF(Descriptions!N71=\"Mission Giving and Donations\",WorkingP!AI70,0)","v":0},0,{"$f":"'Prior Year Comparative'!W775","v":0},null,null,null,null,null,null,null,null,null,null,null,null,null,null,null,null,null,null,0,"0"]
[{"$f":"IF(Descriptions!K72=\"Mission Giving and Donations\",Descriptions!I72,0)","v":0},null,{"$f":"IF(Descriptions!K72=\"Mission Giving and Donations\",WorkingP!AF71,0)","v":0},{"$f":"IF(Descriptions!L72=\"Mission Giving and Donations\",WorkingP!AG71,0)","v":0},{"$f":"IF(Descriptions!M72=\"Mission Giving and Donations\",WorkingP!AH71,0)","v":0},{"$f":"IF(Descriptions!N72=\"Mission Giving and Donations\",WorkingP!AI71,0)","v":0},0,{"$f":"'Prior Year Comparative'!W776","v":0},null,null,null,null,null,null,null,null,null,null,null,null,null,null,null,null,null,null,0,"0"]
[{"$f":"IF(Descriptions!K73=\"Mission Giving and Donations\",Descriptions!I73,0)","v":0},null,{"$f":"IF(Descriptions!K73=\"Mission Giving and Donations\",WorkingP!AF72,0)","v":0},{"$f":"IF(Descriptions!L73=\"Mission Giving and Donations\",WorkingP!AG72,0)","v":0},{"$f":"IF(Descriptions!M73=\"Mission Giving and Donations\",WorkingP!AH72,0)","v":0},{"$f":"IF(Descriptions!N73=\"Mission Giving and Donations\",WorkingP!AI72,0)","v":0},0,{"$f":"'Prior Year Comparative'!W777","v":0},null,null,null,null,null,null,null,null,null,null,null,null,null,null,null,null,null,null,0,"0"]
[{"$f":"IF(Descriptions!K74=\"Mission Giving and Donations\",Descriptions!I74,0)","v":0},null,{"$f":"IF(Descriptions!K74=\"Mission Giving and Donations\",WorkingP!AF73,0)","v":0},{"$f":"IF(Descriptions!L74=\"Mission Giving and Donations\",WorkingP!AG73,0)","v":0},{"$f":"IF(Descriptions!M74=\"Mission Giving and Donations\",WorkingP!AH73,0)","v":0},{"$f":"IF(Descriptions!N74=\"Mission Giving and Donations\",WorkingP!AI73,0)","v":0},0,{"$f":"'Prior Year Comparative'!W778","v":0},null,null,null,null,null,null,null,null,null,null,null,null,null,null,null,null,null,null,0,"0"]
[{"$f":"IF(Descriptions!K75=\"Mission Giving and Donations\",Descriptions!I75,0)","v":0},null,{"$f":"IF(Descriptions!K75=\"Mission Giving and Donations\",WorkingP!AF74,0)","v":0},{"$f":"IF(Descriptions!L75=\"Mission Giving and Donations\",WorkingP!AG74,0)","v":0},{"$f":"IF(Descriptions!M75=\"Mission Giving and Donations\",WorkingP!AH74,0)","v":0},{"$f":"IF(Descriptions!N75=\"Mission Giving and Donations\",WorkingP!AI74,0)","v":0},0,{"$f":"'Prior Year Comparative'!W779","v":0},null,null,null,null,null,null,null,null,null,null,null,null,null,null,null,null,null,null,0,"0"]
[{"$f":"IF(Descriptions!K76=\"Mission Giving and Donations\",Descriptions!I76,0)","v":0},null,{"$f":"IF(Descriptions!K76=\"Mission Giving and Donations\",WorkingP!AF75,0)","v":0},{"$f":"IF(Descriptions!L76=\"Mission Giving and Donations\",WorkingP!AG75,0)","v":0},{"$f":"IF(Descriptions!M76=\"Mission Giving and Donations\",WorkingP!AH75,0)","v":0},{"$f":"IF(Descriptions!N76=\"Mission Giving and Donations\",WorkingP!AI75,0)","v":0},0,{"$f":"'Prior Year Comparative'!W780","v":0},null,null,null,null,null,null,null,null,null,null,null,null,null,null,null,null,null,null,0,"0"]
[{"$f":"IF(Descriptions!K77=\"Mission Giving and Donations\",Descriptions!I77,0)","v":0},null,{"$f":"IF(Descriptions!K77=\"Mission Giving and Donations\",WorkingP!AF76,0)","v":0},{"$f":"IF(Descriptions!L77=\"Mission Giving and Donations\",WorkingP!AG76,0)","v":0},{"$f":"IF(Descriptions!M77=\"Mission Giving and Donations\",WorkingP!AH76,0)","v":0},{"$f":"IF(Descriptions!N77=\"Mission Giving and Donations\",WorkingP!AI76,0)","v":0},0,{"$f":"'Prior Year Comparative'!W781","v":0},null,null,null,null,null,null,null,null,null,null,null,null,null,null,null,null,null,null,0,"0"]
[{"$f":"IF(Descriptions!K78=\"Mission Giving and Donations\",Descriptions!I78,0)","v":0},null,{"$f":"IF(Descriptions!K78=\"Mission Giving and Donations\",WorkingP!AF77,0)","v":0},{"$f":"IF(Descriptions!L78=\"Mission Giving and Donations\",WorkingP!AG77,0)","v":0},{"$f":"IF(Descriptions!M78=\"Mission Giving and Donations\",WorkingP!AH77,0)","v":0},{"$f":"IF(Descriptions!N78=\"Mission Giving and Donations\",WorkingP!AI77,0)","v":0},0,{"$f":"'Prior Year Comparative'!W782","v":0},null,null,null,null,null,null,null,null,null,null,null,null,null,null,null,null,null,null,0,"0"]
[{"$f":"IF(Descriptions!K79=\"Mission Giving and Donations\",Descriptions!I79,0)","v":0},null,{"$f":"IF(Descriptions!K79=\"Mission Giving and Donations\",WorkingP!AF78,0)","v":0},{"$f":"IF(Descriptions!L79=\"Mission Giving and Donations\",WorkingP!AG78,0)","v":0},{"$f":"IF(Descriptions!M79=\"Mission Giving and Donations\",WorkingP!AH78,0)","v":0},{"$f":"IF(Descriptions!N79=\"Mission Giving and Donations\",WorkingP!AI78,0)","v":0},0,{"$f":"'Prior Year Comparative'!W783","v":0},null,null,null,null,null,null,null,null,null,null,null,null,null,null,null,null,null,null,0,"0"]
[{"$f":"IF(Descriptions!K80=\"Mission Giving and Donations\",Descriptions!I80,0)","v":0},null,{"$f":"IF(Descriptions!K80=\"Mission Giving and Donations\",WorkingP!AF79,0)","v":0},{"$f":"IF(Descriptions!L80=\"Mission Giving and Donations\",WorkingP!AG79,0)","v":0},{"$f":"IF(Descriptions!M80=\"Mission Giving and Donations\",WorkingP!AH79,0)","v":0},{"$f":"IF(Descriptions!N80=\"Mission Giving and Donations\",WorkingP!AI79,0)","v":0},0,{"$f":"'Prior Year Comparative'!W784","v":0},null,null,null,null,null,null,null,null,null,null,null,null,null,null,null,null,null,null,0,"0"]
[{"$f":"IF(Descriptions!K81=\"Mission Giving and Donations\",Descriptions!I81,0)","v":0},null,{"$f":"IF(Descriptions!K81=\"Mission Giving and Donations\",WorkingP!AF80,0)","v":0},{"$f":"IF(Descriptions!L81=\"Mission Giving and Donations\",WorkingP!AG80,0)","v":0},{"$f":"IF(Descriptions!M81=\"Mission Giving and Donations\",WorkingP!AH80,0)","v":0},{"$f":"IF(Descriptions!N81=\"Mission Giving and Donations\",WorkingP!AI80,0)","v":0},0,{"$f":"'Prior Year Comparative'!W785","v":0},null,null,null,null,null,null,null,null,null,null,null,null,null,null,null,null,null,null,0,"0"]
[{"$f":"IF(Descriptions!K82=\"Mission Giving and Donations\",Descriptions!I82,0)","v":0},null,{"$f":"IF(Descriptions!K82=\"Mission Giving and Donations\",WorkingP!AF81,0)","v":0},{"$f":"IF(Descriptions!L82=\"Mission Giving and Donations\",WorkingP!AG81,0)","v":0},{"$f":"IF(Descriptions!M82=\"Mission Giving and Donations\",WorkingP!AH81,0)","v":0},{"$f":"IF(Descriptions!N82=\"Mission Giving and Donations\",WorkingP!AI81,0)","v":0},0,{"$f":"'Prior Year Comparative'!W786","v":0},null,null,null,null,null,null,null,null,null,null,null,null,null,null,null,null,null,null,0,"0"]
[{"$f":"IF(Descriptions!K83=\"Mission Giving and Donations\",Descriptions!I83,0)","v":0},null,{"$f":"IF(Descriptions!K83=\"Mission Giving and Donations\",WorkingP!AF82,0)","v":0},{"$f":"IF(Descriptions!L83=\"Mission Giving and Donations\",WorkingP!AG82,0)","v":0},{"$f":"IF(Descriptions!M83=\"Mission Giving and Donations\",WorkingP!AH82,0)","v":0},{"$f":"IF(Descriptions!N83=\"Mission Giving and Donations\",WorkingP!AI82,0)","v":0},0,{"$f":"'Prior Year Comparative'!W787","v":0},null,null,null,null,null,null,null,null,null,null,null,null,null,null,null,null,null,null,{"$f":"SUM(C890:H890)","v":0},{"$f":"IF(AA890=0,\"0\",\"1\")","v":"0"}]
[{"$f":"IF(Descriptions!K84=\"Mission Giving and Donations\",Descriptions!I84,0)","v":0},null,{"$f":"IF(Descriptions!K84=\"Mission Giving and Donations\",WorkingP!AF83,0)","v":0},{"$f":"IF(Descriptions!L84=\"Mission Giving and Donations\",WorkingP!AG83,0)","v":0},{"$f":"IF(Descriptions!M84=\"Mission Giving and Donations\",WorkingP!AH83,0)","v":0},{"$f":"IF(Descriptions!N84=\"Mission Giving and Donations\",WorkingP!AI83,0)","v":0},0,{"$f":"'Prior Year Comparative'!W788","v":0},null,null,null,null,null,null,null,null,null,null,null,null,null,null,null,null,null,null,{"$f":"SUM(C891:H891)","v":0},"0"]
[null,null,null,null,null,null,null,null,null,null,null,null,null,null,null,null,null,null,null,null,null,null,null,null,null,null,{"$f":"AA893","v":0},"0"]
[null,null,{"$f":"SUM(C838:C891)","v":0},0,0,0,0,0,null,null,null,null,null,null,null,null,null,null,null,null,null,null,null,null,null,null,{"$f":"SUM(AA838:AA891)","v":0},"0"]
[null,null,null,null,null,null,null,null,null,null,null,null,null,null,null,null,null,null,null,null,null,null,null,null,null,null,{"$f":"AA895","v":0},"0"]
["BUILDING WORK AND REPAIRS",null,null,null,null,null,null,null,null,null,null,null,null,null,null,null,null,null,null,null,null,null,null,null,null,null,{"$f":"SUM(AA896:AA948)","v":0},"0"]
["Church - Major repairs and Redecorations",null,{"$f":"WorkingP!AF11","v":0},{"$f":"WorkingP!AG11","v":0},{"$f":"WorkingP!AH11","v":0},{"$f":"WorkingP!AI11","v":0},{"$f":"SUM(C896:F896)","v":0},{"$f":"'Prior Year Comparative'!W791","v":0},null,null,null,null,null,null,null,null,null,null,null,null,null,null,null,null,null,null,{"$f":"SUM(C896:H896)","v":0},"0"]
["Hall/Other Buildings - Major Repairs and Redecorations",null,{"$f":"WorkingP!AF18","v":0},{"$f":"WorkingP!AG18","v":0},{"$f":"WorkingP!AH18","v":0},{"$f":"WorkingP!AI18","v":0},{"$f":"SUM(C897:F897)","v":0},{"$f":"'Prior Year Comparative'!W792","v":0},null,null,null,null,null,null,null,null,null,null,null,null,null,null,null,null,null,null,{"$f":"SUM(C897:H897)","v":0},"0"]
["New Building Work",null,{"$f":"WorkingP!AF22","v":0},{"$f":"WorkingP!AG22","v":0},{"$f":"WorkingP!AH22","v":0},{"$f":"WorkingP!AI22","v":0},{"$f":"SUM(C898:F898)","v":0},{"$f":"'Prior Year Comparative'!W793","v":0},null,null,null,null,null,null,null,null,null,null,null,null,null,null,null,null,null,null,{"$f":"SUM(C898:H898)","v":0},"0"]
[{"$f":"IF(Descriptions!K35=\"Building Work and Repairs\",Descriptions!I35,0)","v":0},null,{"$f":"IF(Descriptions!K35=\"Building Work and Repairs\",WorkingP!AF34,0)","v":0},{"$f":"IF(Descriptions!L35=\"Building Work and Repairs\",WorkingP!AG34,0)","v":0},{"$f":"IF(Descriptions!M35=\"Building Work and Repairs\",WorkingP!AH34,0)","v":0},{"$f":"IF(Descriptions!N35=\"Building Work and Repairs\",WorkingP!AI34,0)","v":0},{"$f":"SUM(C899:F899)","v":0},{"$f":"'Prior Year Comparative'!W794","v":0},null,null,null,null,null,null,null,null,null,null,null,null,null,null,null,null,null,null,{"$f":"SUM(C899:H899)","v":0},{"$f":"IF(AA899=0,\"0\",\"1\")","v":"0"}]
[{"$f":"IF(Descriptions!K36=\"Building Work and Repairs\",Descriptions!I36,0)","v":0},null,{"$f":"IF(Descriptions!K36=\"Building Work and Repairs\",WorkingP!AF35,0)","v":0},{"$f":"IF(Descriptions!L36=\"Building Work and Repairs\",WorkingP!AG35,0)","v":0},{"$f":"IF(Descriptions!M36=\"Building Work and Repairs\",WorkingP!AH35,0)","v":0},{"$f":"IF(Descriptions!N36=\"Building Work and Repairs\",WorkingP!AI35,0)","v":0},{"$f":"SUM(C900:F900)","v":0},{"$f":"'Prior Year Comparative'!W795","v":0},null,null,null,null,null,null,null,null,null,null,null,null,null,null,null,null,null,null,0,"0"]
[{"$f":"IF(Descriptions!K37=\"Building Work and Repairs\",Descriptions!I37,0)","v":0},null,{"$f":"IF(Descriptions!K37=\"Building Work and Repairs\",WorkingP!AF36,0)","v":0},{"$f":"IF(Descriptions!L37=\"Building Work and Repairs\",WorkingP!AG36,0)","v":0},{"$f":"IF(Descriptions!M37=\"Building Work and Repairs\",WorkingP!AH36,0)","v":0},{"$f":"IF(Descriptions!N37=\"Building Work and Repairs\",WorkingP!AI36,0)","v":0},0,{"$f":"'Prior Year Comparative'!W796","v":0},null,null,null,null,null,null,null,null,null,null,null,null,null,null,null,null,null,null,0,"0"]
[{"$f":"IF(Descriptions!K38=\"Building Work and Repairs\",Descriptions!I38,0)","v":0},null,{"$f":"IF(Descriptions!K38=\"Building Work and Repairs\",WorkingP!AF37,0)","v":0},{"$f":"IF(Descriptions!L38=\"Building Work and Repairs\",WorkingP!AG37,0)","v":0},{"$f":"IF(Descriptions!M38=\"Building Work and Repairs\",WorkingP!AH37,0)","v":0},{"$f":"IF(Descriptions!N38=\"Building Work and Repairs\",WorkingP!AI37,0)","v":0},0,{"$f":"'Prior Year Comparative'!W797","v":0},null,null,null,null,null,null,null,null,null,null,null,null,null,null,null,null,null,null,0,"0"]
[{"$f":"IF(Descriptions!K39=\"Building Work and Repairs\",Descriptions!I39,0)","v":0},null,{"$f":"IF(Descriptions!K39=\"Building Work and Repairs\",WorkingP!AF38,0)","v":0},{"$f":"IF(Descriptions!L39=\"Building Work and Repairs\",WorkingP!AG38,0)","v":0},{"$f":"IF(Descriptions!M39=\"Building Work and Repairs\",WorkingP!AH38,0)","v":0},{"$f":"IF(Descriptions!N39=\"Building Work and Repairs\",WorkingP!AI38,0)","v":0},0,{"$f":"'Prior Year Comparative'!W798","v":0},null,null,null,null,null,null,null,null,null,null,null,null,null,null,null,null,null,null,0,"0"]
[{"$f":"IF(Descriptions!K40=\"Building Work and Repairs\",Descriptions!I40,0)","v":0},null,{"$f":"IF(Descriptions!K40=\"Building Work and Repairs\",WorkingP!AF39,0)","v":0},{"$f":"IF(Descriptions!L40=\"Building Work and Repairs\",WorkingP!AG39,0)","v":0},{"$f":"IF(Descriptions!M40=\"Building Work and Repairs\",WorkingP!AH39,0)","v":0},{"$f":"IF(Descriptions!N40=\"Building Work and Repairs\",WorkingP!AI39,0)","v":0},0,{"$f":"'Prior Year Comparative'!W799","v":0},null,null,null,null,null,null,null,null,null,null,null,null,null,null,null,null,null,null,0,"0"]
[{"$f":"IF(Descriptions!K41=\"Building Work and Repairs\",Descriptions!I41,0)","v":0},null,{"$f":"IF(Descriptions!K41=\"Building Work and Repairs\",WorkingP!AF40,0)","v":0},{"$f":"IF(Descriptions!L41=\"Building Work and Repairs\",WorkingP!AG40,0)","v":0},{"$f":"IF(Descriptions!M41=\"Building Work and Repairs\",WorkingP!AH40,0)","v":0},{"$f":"IF(Descriptions!N41=\"Building Work and Repairs\",WorkingP!AI40,0)","v":0},0,{"$f":"'Prior Year Comparative'!W800","v":0},null,null,null,null,null,null,null,null,null,null,null,null,null,null,null,null,null,null,0,"0"]
[{"$f":"IF(Descriptions!K42=\"Building Work and Repairs\",Descriptions!I42,0)","v":0},null,{"$f":"IF(Descriptions!K42=\"Building Work and Repairs\",WorkingP!AF41,0)","v":0},{"$f":"IF(Descriptions!L42=\"Building Work and Repairs\",WorkingP!AG41,0)","v":0},{"$f":"IF(Descriptions!M42=\"Building Work and Repairs\",WorkingP!AH41,0)","v":0},{"$f":"IF(Descriptions!N42=\"Building Work and Repairs\",WorkingP!AI41,0)","v":0},0,{"$f":"'Prior Year Comparative'!W801","v":0},null,null,null,null,null,null,null,null,null,null,null,null,null,null,null,null,null,null,0,"0"]
[{"$f":"IF(Descriptions!K43=\"Building Work and Repairs\",Descriptions!I43,0)","v":0},null,{"$f":"IF(Descriptions!K43=\"Building Work and Repairs\",WorkingP!AF42,0)","v":0},{"$f":"IF(Descriptions!L43=\"Building Work and Repairs\",WorkingP!AG42,0)","v":0},{"$f":"IF(Descriptions!M43=\"Building Work and Repairs\",WorkingP!AH42,0)","v":0},{"$f":"IF(Descriptions!N43=\"Building Work and Repairs\",WorkingP!AI42,0)","v":0},0,{"$f":"'Prior Year Comparative'!W802","v":0},null,null,null,null,null,null,null,null,null,null,null,null,null,null,null,null,null,null,0,"0"]
[{"$f":"IF(Descriptions!K44=\"Building Work and Repairs\",Descriptions!I44,0)","v":0},null,{"$f":"IF(Descriptions!K44=\"Building Work and Repairs\",WorkingP!AF43,0)","v":0},{"$f":"IF(Descriptions!L44=\"Building Work and Repairs\",WorkingP!AG43,0)","v":0},{"$f":"IF(Descriptions!M44=\"Building Work and Repairs\",WorkingP!AH43,0)","v":0},{"$f":"IF(Descriptions!N44=\"Building Work and Repairs\",WorkingP!AI43,0)","v":0},0,{"$f":"'Prior Year Comparative'!W803","v":0},null,null,null,null,null,null,null,null,null,null,null,null,null,null,null,null,null,null,0,"0"]
[{"$f":"IF(Descriptions!K45=\"Building Work and Repairs\",Descriptions!I45,0)","v":0},null,{"$f":"IF(Descriptions!K45=\"Building Work and Repairs\",WorkingP!AF44,0)","v":0},{"$f":"IF(Descriptions!L45=\"Building Work and Repairs\",WorkingP!AG44,0)","v":0},{"$f":"IF(Descriptions!M45=\"Building Work and Repairs\",WorkingP!AH44,0)","v":0},{"$f":"IF(Descriptions!N45=\"Building Work and Repairs\",WorkingP!AI44,0)","v":0},0,{"$f":"'Prior Year Comparative'!W804","v":0},null,null,null,null,null,null,null,null,null,null,null,null,null,null,null,null,null,null,0,"0"]
[{"$f":"IF(Descriptions!K46=\"Building Work and Repairs\",Descriptions!I46,0)","v":0},null,{"$f":"IF(Descriptions!K46=\"Building Work and Repairs\",WorkingP!AF45,0)","v":0},{"$f":"IF(Descriptions!L46=\"Building Work and Repairs\",WorkingP!AG45,0)","v":0},{"$f":"IF(Descriptions!M46=\"Building Work and Repairs\",WorkingP!AH45,0)","v":0},{"$f":"IF(Descriptions!N46=\"Building Work and Repairs\",WorkingP!AI45,0)","v":0},0,{"$f":"'Prior Year Comparative'!W805","v":0},null,null,null,null,null,null,null,null,null,null,null,null,null,null,null,null,null,null,0,"0"]
[{"$f":"IF(Descriptions!K47=\"Building Work and Repairs\",Descriptions!I47,0)","v":0},null,{"$f":"IF(Descriptions!K47=\"Building Work and Repairs\",WorkingP!AF46,0)","v":0},{"$f":"IF(Descriptions!L47=\"Building Work and Repairs\",WorkingP!AG46,0)","v":0},{"$f":"IF(Descriptions!M47=\"Building Work and Repairs\",WorkingP!AH46,0)","v":0},{"$f":"IF(Descriptions!N47=\"Building Work and Repairs\",WorkingP!AI46,0)","v":0},0,{"$f":"'Prior Year Comparative'!W806","v":0},null,null,null,null,null,null,null,null,null,null,null,null,null,null,null,null,null,null,0,"0"]
[{"$f":"IF(Descriptions!K48=\"Building Work and Repairs\",Descriptions!I48,0)","v":0},null,{"$f":"IF(Descriptions!K48=\"Building Work and Repairs\",WorkingP!AF47,0)","v":0},{"$f":"IF(Descriptions!L48=\"Building Work and Repairs\",WorkingP!AG47,0)","v":0},{"$f":"IF(Descriptions!M48=\"Building Work and Repairs\",WorkingP!AH47,0)","v":0},{"$f":"IF(Descriptions!N48=\"Building Work and Repairs\",WorkingP!AI47,0)","v":0},0,{"$f":"'Prior Year Comparative'!W807","v":0},null,null,null,null,null,null,null,null,null,null,null,null,null,null,null,null,null,null,0,"0"]
[{"$f":"IF(Descriptions!K49=\"Building Work and Repairs\",Descriptions!I49,0)","v":0},null,{"$f":"IF(Descriptions!K49=\"Building Work and Repairs\",WorkingP!AF48,0)","v":0},{"$f":"IF(Descriptions!L49=\"Building Work and Repairs\",WorkingP!AG48,0)","v":0},{"$f":"IF(Descriptions!M49=\"Building Work and Repairs\",WorkingP!AH48,0)","v":0},{"$f":"IF(Descriptions!N49=\"Building Work and Repairs\",WorkingP!AI48,0)","v":0},0,{"$f":"'Prior Year Comparative'!W808","v":0},null,null,null,null,null,null,null,null,null,null,null,null,null,null,null,null,null,null,0,"0"]
[{"$f":"IF(Descriptions!K50=\"Building Work and Repairs\",Descriptions!I50,0)","v":0},null,{"$f":"IF(Descriptions!K50=\"Building Work and Repairs\",WorkingP!AF49,0)","v":0},{"$f":"IF(Descriptions!L50=\"Building Work and Repairs\",WorkingP!AG49,0)","v":0},{"$f":"IF(Descriptions!M50=\"Building Work and Repairs\",WorkingP!AH49,0)","v":0},{"$f":"IF(Descriptions!N50=\"Building Work and Repairs\",WorkingP!AI49,0)","v":0},0,{"$f":"'Prior Year Comparative'!W809","v":0},null,null,null,null,null,null,null,null,null,null,null,null,null,null,null,null,null,null,0,"0"]
[{"$f":"IF(Descriptions!K51=\"Building Work and Repairs\",Descriptions!I51,0)","v":0},null,{"$f":"IF(Descriptions!K51=\"Building Work and Repairs\",WorkingP!AF50,0)","v":0},{"$f":"IF(Descriptions!L51=\"Building Work and Repairs\",WorkingP!AG50,0)","v":0},{"$f":"IF(Descriptions!M51=\"Building Work and Repairs\",WorkingP!AH50,0)","v":0},{"$f":"IF(Descriptions!N51=\"Building Work and Repairs\",WorkingP!AI50,0)","v":0},0,{"$f":"'Prior Year Comparative'!W810","v":0},null,null,null,null,null,null,null,null,null,null,null,null,null,null,null,null,null,null,0,"0"]
[{"$f":"IF(Descriptions!K52=\"Building Work and Repairs\",Descriptions!I52,0)","v":0},null,{"$f":"IF(Descriptions!K52=\"Building Work and Repairs\",WorkingP!AF51,0)","v":0},{"$f":"IF(Descriptions!L52=\"Building Work and Repairs\",WorkingP!AG51,0)","v":0},{"$f":"IF(Descriptions!M52=\"Building Work and Repairs\",WorkingP!AH51,0)","v":0},{"$f":"IF(Descriptions!N52=\"Building Work and Repairs\",WorkingP!AI51,0)","v":0},0,{"$f":"'Prior Year Comparative'!W811","v":0},null,null,null,null,null,null,null,null,null,null,null,null,null,null,null,null,null,null,0,"0"]
[{"$f":"IF(Descriptions!K53=\"Building Work and Repairs\",Descriptions!I53,0)","v":0},null,{"$f":"IF(Descriptions!K53=\"Building Work and Repairs\",WorkingP!AF52,0)","v":0},{"$f":"IF(Descriptions!L53=\"Building Work and Repairs\",WorkingP!AG52,0)","v":0},{"$f":"IF(Descriptions!M53=\"Building Work and Repairs\",WorkingP!AH52,0)","v":0},{"$f":"IF(Descriptions!N53=\"Building Work and Repairs\",WorkingP!AI52,0)","v":0},0,{"$f":"'Prior Year Comparative'!W812","v":0},null,null,null,null,null,null,null,null,null,null,null,null,null,null,null,null,null,null,0,"0"]
[{"$f":"IF(Descriptions!K54=\"Building Work and Repairs\",Descriptions!I54,0)","v":0},null,{"$f":"IF(Descriptions!K54=\"Building Work and Repairs\",WorkingP!AF53,0)","v":0},{"$f":"IF(Descriptions!L54=\"Building Work and Repairs\",WorkingP!AG53,0)","v":0},{"$f":"IF(Descriptions!M54=\"Building Work and Repairs\",WorkingP!AH53,0)","v":0},{"$f":"IF(Descriptions!N54=\"Building Work and Repairs\",WorkingP!AI53,0)","v":0},0,{"$f":"'Prior Year Comparative'!W813","v":0},null,null,null,null,null,null,null,null,null,null,null,null,null,null,null,null,null,null,0,"0"]
[{"$f":"IF(Descriptions!K55=\"Building Work and Repairs\",Descriptions!I55,0)","v":0},null,{"$f":"IF(Descriptions!K55=\"Building Work and Repairs\",WorkingP!AF54,0)","v":0},{"$f":"IF(Descriptions!L55=\"Building Work and Repairs\",WorkingP!AG54,0)","v":0},{"$f":"IF(Descriptions!M55=\"Building Work and Repairs\",WorkingP!AH54,0)","v":0},{"$f":"IF(Descriptions!N55=\"Building Work and Repairs\",WorkingP!AI54,0)","v":0},0,{"$f":"'Prior Year Comparative'!W814","v":0},null,null,null,null,null,null,null,null,null,null,null,null,null,null,null,null,null,null,0,"0"]
[{"$f":"IF(Descriptions!K56=\"Building Work and Repairs\",Descriptions!I56,0)","v":0},null,{"$f":"IF(Descriptions!K56=\"Building Work and Repairs\",WorkingP!AF55,0)","v":0},{"$f":"IF(Descriptions!L56=\"Building Work and Repairs\",WorkingP!AG55,0)","v":0},{"$f":"IF(Descriptions!M56=\"Building Work and Repairs\",WorkingP!AH55,0)","v":0},{"$f":"IF(Descriptions!N56=\"Building Work and Repairs\",WorkingP!AI55,0)","v":0},0,{"$f":"'Prior Year Comparative'!W815","v":0},null,null,null,null,null,null,null,null,null,null,null,null,null,null,null,null,null,null,0,"0"]
[{"$f":"IF(Descriptions!K57=\"Building Work and Repairs\",Descriptions!I57,0)","v":0},null,{"$f":"IF(Descriptions!K57=\"Building Work and Repairs\",WorkingP!AF56,0)","v":0},{"$f":"IF(Descriptions!L57=\"Building Work and Repairs\",WorkingP!AG56,0)","v":0},{"$f":"IF(Descriptions!M57=\"Building Work and Repairs\",WorkingP!AH56,0)","v":0},{"$f":"IF(Descriptions!N57=\"Building Work and Repairs\",WorkingP!AI56,0)","v":0},0,{"$f":"'Prior Year Comparative'!W816","v":0},null,null,null,null,null,null,null,null,null,null,null,null,null,null,null,null,null,null,0,"0"]
[{"$f":"IF(Descriptions!K58=\"Building Work and Repairs\",Descriptions!I58,0)","v":0},null,{"$f":"IF(Descriptions!K58=\"Building Work and Repairs\",WorkingP!AF57,0)","v":0},{"$f":"IF(Descriptions!L58=\"Building Work and Repairs\",WorkingP!AG57,0)","v":0},{"$f":"IF(Descriptions!M58=\"Building Work and Repairs\",WorkingP!AH57,0)","v":0},{"$f":"IF(Descriptions!N58=\"Building Work and Repairs\",WorkingP!AI57,0)","v":0},0,{"$f":"'Prior Year Comparative'!W817","v":0},null,null,null,null,null,null,null,null,null,null,null,null,null,null,null,null,null,null,0,"0"]
[{"$f":"IF(Descriptions!K59=\"Building Work and Repairs\",Descriptions!I59,0)","v":0},null,{"$f":"IF(Descriptions!K59=\"Building Work and Repairs\",WorkingP!AF58,0)","v":0},{"$f":"IF(Descriptions!L59=\"Building Work and Repairs\",WorkingP!AG58,0)","v":0},{"$f":"IF(Descriptions!M59=\"Building Work and Repairs\",WorkingP!AH58,0)","v":0},{"$f":"IF(Descriptions!N59=\"Building Work and Repairs\",WorkingP!AI58,0)","v":0},0,{"$f":"'Prior Year Comparative'!W818","v":0},null,null,null,null,null,null,null,null,null,null,null,null,null,null,null,null,null,null,0,"0"]
[{"$f":"IF(Descriptions!K60=\"Building Work and Repairs\",Descriptions!I60,0)","v":0},null,{"$f":"IF(Descriptions!K60=\"Building Work and Repairs\",WorkingP!AF59,0)","v":0},{"$f":"IF(Descriptions!L60=\"Building Work and Repairs\",WorkingP!AG59,0)","v":0},{"$f":"IF(Descriptions!M60=\"Building Work and Repairs\",WorkingP!AH59,0)","v":0},{"$f":"IF(Descriptions!N60=\"Building Work and Repairs\",WorkingP!AI59,0)","v":0},0,{"$f":"'Prior Year Comparative'!W819","v":0},null,null,null,null,null,null,null,null,null,null,null,null,null,null,null,null,null,null,0,"0"]
[{"$f":"IF(Descriptions!K61=\"Building Work and Repairs\",Descriptions!I61,0)","v":0},null,{"$f":"IF(Descriptions!K61=\"Building Work and Repairs\",WorkingP!AF60,0)","v":0},{"$f":"IF(Descriptions!L61=\"Building Work and Repairs\",WorkingP!AG60,0)","v":0},{"$f":"IF(Descriptions!M61=\"Building Work and Repairs\",WorkingP!AH60,0)","v":0},{"$f":"IF(Descriptions!N61=\"Building Work and Repairs\",WorkingP!AI60,0)","v":0},0,{"$f":"'Prior Year Comparative'!W820","v":0},null,null,null,null,null,null,null,null,null,null,null,null,null,null,null,null,null,null,0,"0"]
[{"$f":"IF(Descriptions!K62=\"Building Work and Repairs\",Descriptions!I62,0)","v":0},null,{"$f":"IF(Descriptions!K62=\"Building Work and Repairs\",WorkingP!AF61,0)","v":0},{"$f":"IF(Descriptions!L62=\"Building Work and Repairs\",WorkingP!AG61,0)","v":0},{"$f":"IF(Descriptions!M62=\"Building Work and Repairs\",WorkingP!AH61,0)","v":0},{"$f":"IF(Descriptions!N62=\"Building Work and Repairs\",WorkingP!AI61,0)","v":0},0,{"$f":"'Prior Year Comparative'!W821","v":0},null,null,null,null,null,null,null,null,null,null,null,null,null,null,null,null,null,null,0,"0"]
[{"$f":"IF(Descriptions!K63=\"Building Work and Repairs\",Descriptions!I63,0)","v":0},null,{"$f":"IF(Descriptions!K63=\"Building Work and Repairs\",WorkingP!AF62,0)","v":0},{"$f":"IF(Descriptions!L63=\"Building Work and Repairs\",WorkingP!AG62,0)","v":0},{"$f":"IF(Descriptions!M63=\"Building Work and Repairs\",WorkingP!AH62,0)","v":0},{"$f":"IF(Descriptions!N63=\"Building Work and Repairs\",WorkingP!AI62,0)","v":0},0,{"$f":"'Prior Year Comparative'!W822","v":0},null,null,null,null,null,null,null,null,null,null,null,null,null,null,null,null,null,null,0,"0"]
[{"$f":"IF(Descriptions!K64=\"Building Work and Repairs\",Descriptions!I64,0)","v":0},null,{"$f":"IF(Descriptions!K64=\"Building Work and Repairs\",WorkingP!AF63,0)","v":0},{"$f":"IF(Descriptions!L64=\"Building Work and Repairs\",WorkingP!AG63,0)","v":0},{"$f":"IF(Descriptions!M64=\"Building Work and Repairs\",WorkingP!AH63,0)","v":0},{"$f":"IF(Descriptions!N64=\"Building Work and Repairs\",WorkingP!AI63,0)","v":0},0,{"$f":"'Prior Year Comparative'!W823","v":0},null,null,null,null,null,null,null,null,null,null,null,null,null,null,null,null,null,null,0,"0"]
[{"$f":"IF(Descriptions!K65=\"Building Work and Repairs\",Descriptions!I65,0)","v":0},null,{"$f":"IF(Descriptions!K65=\"Building Work and Repairs\",WorkingP!AF64,0)","v":0},{"$f":"IF(Descriptions!L65=\"Building Work and Repairs\",WorkingP!AG64,0)","v":0},{"$f":"IF(Descriptions!M65=\"Building Work and Repairs\",WorkingP!AH64,0)","v":0},{"$f":"IF(Descriptions!N65=\"Building Work and Repairs\",WorkingP!AI64,0)","v":0},0,{"$f":"'Prior Year Comparative'!W824","v":0},null,null,null,null,null,null,null,null,null,null,null,null,null,null,null,null,null,null,0,"0"]
[{"$f":"IF(Descriptions!K66=\"Building Work and Repairs\",Descriptions!I66,0)","v":0},null,{"$f":"IF(Descriptions!K66=\"Building Work and Repairs\",WorkingP!AF65,0)","v":0},{"$f":"IF(Descriptions!L66=\"Building Work and Repairs\",WorkingP!AG65,0)","v":0},{"$f":"IF(Descriptions!M66=\"Building Work and Repairs\",WorkingP!AH65,0)","v":0},{"$f":"IF(Descriptions!N66=\"Building Work and Repairs\",WorkingP!AI65,0)","v":0},0,{"$f":"'Prior Year Comparative'!W825","v":0},null,null,null,null,null,null,null,null,null,null,null,null,null,null,null,null,null,null,0,"0"]
[{"$f":"IF(Descriptions!K67=\"Building Work and Repairs\",Descriptions!I67,0)","v":0},null,{"$f":"IF(Descriptions!K67=\"Building Work and Repairs\",WorkingP!AF66,0)","v":0},{"$f":"IF(Descriptions!L67=\"Building Work and Repairs\",WorkingP!AG66,0)","v":0},{"$f":"IF(Descriptions!M67=\"Building Work and Repairs\",WorkingP!AH66,0)","v":0},{"$f":"IF(Descriptions!N67=\"Building Work and Repairs\",WorkingP!AI66,0)","v":0},0,{"$f":"'Prior Year Comparative'!W826","v":0},null,null,null,null,null,null,null,null,null,null,null,null,null,null,null,null,null,null,0,"0"]
[{"$f":"IF(Descriptions!K68=\"Building Work and Repairs\",Descriptions!I68,0)","v":0},null,{"$f":"IF(Descriptions!K68=\"Building Work and Repairs\",WorkingP!AF67,0)","v":0},{"$f":"IF(Descriptions!L68=\"Building Work and Repairs\",WorkingP!AG67,0)","v":0},{"$f":"IF(Descriptions!M68=\"Building Work and Repairs\",WorkingP!AH67,0)","v":0},{"$f":"IF(Descriptions!N68=\"Building Work and Repairs\",WorkingP!AI67,0)","v":0},0,{"$f":"'Prior Year Comparative'!W827","v":0},null,null,null,null,null,null,null,null,null,null,null,null,null,null,null,null,null,null,0,"0"]
[{"$f":"IF(Descriptions!K69=\"Building Work and Repairs\",Descriptions!I69,0)","v":0},null,{"$f":"IF(Descriptions!K69=\"Building Work and Repairs\",WorkingP!AF68,0)","v":0},{"$f":"IF(Descriptions!L69=\"Building Work and Repairs\",WorkingP!AG68,0)","v":0},{"$f":"IF(Descriptions!M69=\"Building Work and Repairs\",WorkingP!AH68,0)","v":0},{"$f":"IF(Descriptions!N69=\"Building Work and Repairs\",WorkingP!AI68,0)","v":0},0,{"$f":"'Prior Year Comparative'!W828","v":0},null,null,null,null,null,null,null,null,null,null,null,null,null,null,null,null,null,null,0,"0"]
[{"$f":"IF(Descriptions!K70=\"Building Work and Repairs\",Descriptions!I70,0)","v":0},null,{"$f":"IF(Descriptions!K70=\"Building Work and Repairs\",WorkingP!AF69,0)","v":0},{"$f":"IF(Descriptions!L70=\"Building Work and Repairs\",WorkingP!AG69,0)","v":0},{"$f":"IF(Descriptions!M70=\"Building Work and Repairs\",WorkingP!AH69,0)","v":0},{"$f":"IF(Descriptions!N70=\"Building Work and Repairs\",WorkingP!AI69,0)","v":0},0,{"$f":"'Prior Year Comparative'!W829","v":0},null,null,null,null,null,null,null,null,null,null,null,null,null,null,null,null,null,null,0,"0"]
[{"$f":"IF(Descriptions!K71=\"Building Work and Repairs\",Descriptions!I71,0)","v":0},null,{"$f":"IF(Descriptions!K71=\"Building Work and Repairs\",WorkingP!AF70,0)","v":0},{"$f":"IF(Descriptions!L71=\"Building Work and Repairs\",WorkingP!AG70,0)","v":0},{"$f":"IF(Descriptions!M71=\"Building Work and Repairs\",WorkingP!AH70,0)","v":0},{"$f":"IF(Descriptions!N71=\"Building Work and Repairs\",WorkingP!AI70,0)","v":0},0,{"$f":"'Prior Year Comparative'!W830","v":0},null,null,null,null,null,null,null,null,null,null,null,null,null,null,null,null,null,null,0,"0"]
[{"$f":"IF(Descriptions!K72=\"Building Work and Repairs\",Descriptions!I72,0)","v":0},null,{"$f":"IF(Descriptions!K72=\"Building Work and Repairs\",WorkingP!AF71,0)","v":0},{"$f":"IF(Descriptions!L72=\"Building Work and Repairs\",WorkingP!AG71,0)","v":0},{"$f":"IF(Descriptions!M72=\"Building Work and Repairs\",WorkingP!AH71,0)","v":0},{"$f":"IF(Descriptions!N72=\"Building Work and Repairs\",WorkingP!AI71,0)","v":0},0,{"$f":"'Prior Year Comparative'!W831","v":0},null,null,null,null,null,null,null,null,null,null,null,null,null,null,null,null,null,null,0,"0"]
[{"$f":"IF(Descriptions!K73=\"Building Work and Repairs\",Descriptions!I73,0)","v":0},null,{"$f":"IF(Descriptions!K73=\"Building Work and Repairs\",WorkingP!AF72,0)","v":0},{"$f":"IF(Descriptions!L73=\"Building Work and Repairs\",WorkingP!AG72,0)","v":0},{"$f":"IF(Descriptions!M73=\"Building Work and Repairs\",WorkingP!AH72,0)","v":0},{"$f":"IF(Descriptions!N73=\"Building Work and Repairs\",WorkingP!AI72,0)","v":0},0,{"$f":"'Prior Year Comparative'!W832","v":0},null,null,null,null,null,null,null,null,null,null,null,null,null,null,null,null,null,null,0,"0"]
[{"$f":"IF(Descriptions!K74=\"Building Work and Repairs\",Descriptions!I74,0)","v":0},null,{"$f":"IF(Descriptions!K74=\"Building Work and Repairs\",WorkingP!AF73,0)","v":0},{"$f":"IF(Descriptions!L74=\"Building Work and Repairs\",WorkingP!AG73,0)","v":0},{"$f":"IF(Descriptions!M74=\"Building Work and Repairs\",WorkingP!AH73,0)","v":0},{"$f":"IF(Descriptions!N74=\"Building Work and Repairs\",WorkingP!AI73,0)","v":0},0,{"$f":"'Prior Year Comparative'!W833","v":0},null,null,null,null,null,null,null,null,null,null,null,null,null,null,null,null,null,null,0,"0"]
[{"$f":"IF(Descriptions!K75=\"Building Work and Repairs\",Descriptions!I75,0)","v":0},null,{"$f":"IF(Descriptions!K75=\"Building Work and Repairs\",WorkingP!AF74,0)","v":0},{"$f":"IF(Descriptions!L75=\"Building Work and Repairs\",WorkingP!AG74,0)","v":0},{"$f":"IF(Descriptions!M75=\"Building Work and Repairs\",WorkingP!AH74,0)","v":0},{"$f":"IF(Descriptions!N75=\"Building Work and Repairs\",WorkingP!AI74,0)","v":0},0,{"$f":"'Prior Year Comparative'!W834","v":0},null,null,null,null,null,null,null,null,null,null,null,null,null,null,null,null,null,null,0,"0"]
[{"$f":"IF(Descriptions!K76=\"Building Work and Repairs\",Descriptions!I76,0)","v":0},null,{"$f":"IF(Descriptions!K76=\"Building Work and Repairs\",WorkingP!AF75,0)","v":0},{"$f":"IF(Descriptions!L76=\"Building Work and Repairs\",WorkingP!AG75,0)","v":0},{"$f":"IF(Descriptions!M76=\"Building Work and Repairs\",WorkingP!AH75,0)","v":0},{"$f":"IF(Descriptions!N76=\"Building Work and Repairs\",WorkingP!AI75,0)","v":0},0,{"$f":"'Prior Year Comparative'!W835","v":0},null,null,null,null,null,null,null,null,null,null,null,null,null,null,null,null,null,null,0,"0"]
[{"$f":"IF(Descriptions!K77=\"Building Work and Repairs\",Descriptions!I77,0)","v":0},null,{"$f":"IF(Descriptions!K77=\"Building Work and Repairs\",WorkingP!AF76,0)","v":0},{"$f":"IF(Descriptions!L77=\"Building Work and Repairs\",WorkingP!AG76,0)","v":0},{"$f":"IF(Descriptions!M77=\"Building Work and Repairs\",WorkingP!AH76,0)","v":0},{"$f":"IF(Descriptions!N77=\"Building Work and Repairs\",WorkingP!AI76,0)","v":0},0,{"$f":"'Prior Year Comparative'!W836","v":0},null,null,null,null,null,null,null,null,null,null,null,null,null,null,null,null,null,null,0,"0"]
[{"$f":"IF(Descriptions!K78=\"Building Work and Repairs\",Descriptions!I78,0)","v":0},null,{"$f":"IF(Descriptions!K78=\"Building Work and Repairs\",WorkingP!AF77,0)","v":0},{"$f":"IF(Descriptions!L78=\"Building Work and Repairs\",WorkingP!AG77,0)","v":0},{"$f":"IF(Descriptions!M78=\"Building Work and Repairs\",WorkingP!AH77,0)","v":0},{"$f":"IF(Descriptions!N78=\"Building Work and Repairs\",WorkingP!AI77,0)","v":0},0,{"$f":"'Prior Year Comparative'!W837","v":0},null,null,null,null,null,null,null,null,null,null,null,null,null,null,null,null,null,null,0,"0"]
[{"$f":"IF(Descriptions!K79=\"Building Work and Repairs\",Descriptions!I79,0)","v":0},null,{"$f":"IF(Descriptions!K79=\"Building Work and Repairs\",WorkingP!AF78,0)","v":0},{"$f":"IF(Descriptions!L79=\"Building Work and Repairs\",WorkingP!AG78,0)","v":0},{"$f":"IF(Descriptions!M79=\"Building Work and Repairs\",WorkingP!AH78,0)","v":0},{"$f":"IF(Descriptions!N79=\"Building Work and Repairs\",WorkingP!AI78,0)","v":0},0,{"$f":"'Prior Year Comparative'!W838","v":0},null,null,null,null,null,null,null,null,null,null,null,null,null,null,null,null,null,null,0,"0"]
[{"$f":"IF(Descriptions!K80=\"Building Work and Repairs\",Descriptions!I80,0)","v":0},null,{"$f":"IF(Descriptions!K80=\"Building Work and Repairs\",WorkingP!AF79,0)","v":0},{"$f":"IF(Descriptions!L80=\"Building Work and Repairs\",WorkingP!AG79,0)","v":0},{"$f":"IF(Descriptions!M80=\"Building Work and Repairs\",WorkingP!AH79,0)","v":0},{"$f":"IF(Descriptions!N80=\"Building Work and Repairs\",WorkingP!AI79,0)","v":0},0,{"$f":"'Prior Year Comparative'!W839","v":0},null,null,null,null,null,null,null,null,null,null,null,null,null,null,null,null,null,null,0,"0"]
[{"$f":"IF(Descriptions!K81=\"Building Work and Repairs\",Descriptions!I81,0)","v":0},null,{"$f":"IF(Descriptions!K81=\"Building Work and Repairs\",WorkingP!AF80,0)","v":0},{"$f":"IF(Descriptions!L81=\"Building Work and Repairs\",WorkingP!AG80,0)","v":0},{"$f":"IF(Descriptions!M81=\"Building Work and Repairs\",WorkingP!AH80,0)","v":0},{"$f":"IF(Descriptions!N81=\"Building Work and Repairs\",WorkingP!AI80,0)","v":0},0,{"$f":"'Prior Year Comparative'!W840","v":0},null,null,null,null,null,null,null,null,null,null,null,null,null,null,null,null,null,null,0,"0"]
[{"$f":"IF(Descriptions!K82=\"Building Work and Repairs\",Descriptions!I82,0)","v":0},null,{"$f":"IF(Descriptions!K82=\"Building Work and Repairs\",WorkingP!AF81,0)","v":0},{"$f":"IF(Descriptions!L82=\"Building Work and Repairs\",WorkingP!AG81,0)","v":0},{"$f":"IF(Descriptions!M82=\"Building Work and Repairs\",WorkingP!AH81,0)","v":0},{"$f":"IF(Descriptions!N82=\"Building Work and Repairs\",WorkingP!AI81,0)","v":0},0,{"$f":"'Prior Year Comparative'!W841","v":0},null,null,null,null,null,null,null,null,null,null,null,null,null,null,null,null,null,null,0,"0"]
[{"$f":"IF(Descriptions!K83=\"Building Work and Repairs\",Descriptions!I83,0)","v":0},null,{"$f":"IF(Descriptions!K83=\"Building Work and Repairs\",WorkingP!AF82,0)","v":0},{"$f":"IF(Descriptions!L83=\"Building Work and Repairs\",WorkingP!AG82,0)","v":0},{"$f":"IF(Descriptions!M83=\"Building Work and Repairs\",WorkingP!AH82,0)","v":0},{"$f":"IF(Descriptions!N83=\"Building Work and Repairs\",WorkingP!AI82,0)","v":0},0,{"$f":"'Prior Year Comparative'!W842","v":0},null,null,null,null,null,null,null,null,null,null,null,null,null,null,null,null,null,null,0,"0"]
[{"$f":"IF(Descriptions!K84=\"Building Work and Repairs\",Descriptions!I84,0)","v":0},null,{"$f":"IF(Descriptions!K84=\"Building Work and Repairs\",WorkingP!AF83,0)","v":0},{"$f":"IF(Descriptions!L84=\"Building Work and Repairs\",WorkingP!AG83,0)","v":0},{"$f":"IF(Descriptions!M84=\"Building Work and Repairs\",WorkingP!AH83,0)","v":0},{"$f":"IF(Descriptions!N84=\"Building Work and Repairs\",WorkingP!AI83,0)","v":0},0,{"$f":"'Prior Year Comparative'!W843","v":0},null,null,null,null,null,null,null,null,null,null,null,null,null,null,null,null,null,null,{"$f":"SUM(C948:H948)","v":0},{"$f":"IF(AA948=0,\"0\",\"1\")","v":"0"}]
[null,null,null,null,null,null,null,null,null,null,null,null,null,null,null,null,null,null,null,null,null,null,null,null,null,null,{"$f":"AA950","v":0},"0"]
[null,null,{"$f":"SUM(C896:C948)","v":0},0,0,0,0,0,null,null,null,null,null,null,null,null,null,null,null,null,null,null,null,null,null,null,{"$f":"SUM(AA896:AA948)","v":0},"0"]
[null,null,null,null,null,null,null,null,null,null,null,null,null,null,null,null,null,null,null,null,null,null,null,null,null,null,{"$f":"AA952","v":0},"0"]
["COSTS OF GENERATING FUNDS",null,null,null,null,null,null,null,null,null,null,null,null,null,null,null,null,null,null,null,null,null,null,null,null,null,{"$f":"SUM(AA953:AA1006)","v":0},"0"]
["Fund raising",null,{"$f":"WorkingP!AF16","v":0},{"$f":"WorkingP!AG16","v":0},{"$f":"WorkingP!AH16","v":0},{"$f":"WorkingP!AI16","v":0},{"$f":"SUM(C953:F953)","v":0},{"$f":"'Prior Year Comparative'!W846","v":0},null,null,null,null,null,null,null,null,null,null,null,null,null,null,null,null,null,null,{"$f":"SUM(C953:H953)","v":0},"0"]
["Bookstall",null,{"$f":"WorkingP!AF29","v":0},{"$f":"WorkingP!AG29","v":0},{"$f":"WorkingP!AH29","v":0},{"$f":"WorkingP!AI29","v":0},{"$f":"SUM(C954:F954)","v":0},{"$f":"'Prior Year Comparative'!W847","v":0},null,null,null,null,null,null,null,null,null,null,null,null,null,null,null,null,null,null,{"$f":"SUM(C954:H954)","v":0},"0"]
["Magazine",null,{"$f":"WorkingP!AF31","v":0},{"$f":"WorkingP!AG31","v":0},{"$f":"WorkingP!AH31","v":0},{"$f":"WorkingP!AI31","v":0},{"$f":"SUM(C955:F955)","v":0},{"$f":"'Prior Year Comparative'!W848","v":0},null,null,null,null,null,null,null,null,null,null,null,null,null,null,null,null,null,null,{"$f":"SUM(C955:H955)","v":0},"0"]
["Hall Running Costs",null,{"$f":"WorkingP!AF30","v":0},{"$f":"WorkingP!AG30","v":0},{"$f":"WorkingP!AH30","v":0},{"$f":"WorkingP!AI30","v":0},{"$f":"SUM(C956:F956)","v":0},{"$f":"'Prior Year Comparative'!W849","v":0},null,null,null,null,null,null,null,null,null,null,null,null,null,null,null,null,null,null,{"$f":"SUM(C956:H956)","v":0},"0"]
[{"$f":"IF(Descriptions!K35=\"Costs of Generating Funds\",Descriptions!I35,0)","v":0},null,{"$f":"IF(Descriptions!K35=\"Costs of Generating Funds\",WorkingP!AF34,0)","v":0},{"$f":"IF(Descriptions!L35=\"Costs of Generating Funds\",WorkingP!AG34,0)","v":0},{"$f":"IF(Descriptions!M35=\"Costs of Generating Funds\",WorkingP!AH34,0)","v":0},{"$f":"IF(Descriptions!N35=\"Costs of Generating Funds\",WorkingP!AI34,0)","v":0},{"$f":"SUM(C957:F957)","v":0},{"$f":"'Prior Year Comparative'!W850","v":0},null,null,null,null,null,null,null,null,null,null,null,null,null,null,null,null,null,null,{"$f":"SUM(C957:H957)","v":0},{"$f":"IF(AA957=0,\"0\",\"1\")","v":"0"}]
[{"$f":"IF(Descriptions!K36=\"Costs of Generating Funds\",Descriptions!I36,0)","v":0},null,{"$f":"IF(Descriptions!K36=\"Costs of Generating Funds\",WorkingP!AF35,0)","v":0},{"$f":"IF(Descriptions!L36=\"Costs of Generating Funds\",WorkingP!AG35,0)","v":0},{"$f":"IF(Descriptions!M36=\"Costs of Generating Funds\",WorkingP!AH35,0)","v":0},{"$f":"IF(Descriptions!N36=\"Costs of Generating Funds\",WorkingP!AI35,0)","v":0},{"$f":"SUM(C958:F958)","v":0},{"$f":"'Prior Year Comparative'!W851","v":0},null,null,null,null,null,null,null,null,null,null,null,null,null,null,null,null,null,null,0,"0"]
[{"$f":"IF(Descriptions!K37=\"Costs of Generating Funds\",Descriptions!I37,0)","v":0},null,{"$f":"IF(Descriptions!K37=\"Costs of Generating Funds\",WorkingP!AF36,0)","v":0},{"$f":"IF(Descriptions!L37=\"Costs of Generating Funds\",WorkingP!AG36,0)","v":0},{"$f":"IF(Descriptions!M37=\"Costs of Generating Funds\",WorkingP!AH36,0)","v":0},{"$f":"IF(Descriptions!N37=\"Costs of Generating Funds\",WorkingP!AI36,0)","v":0},0,{"$f":"'Prior Year Comparative'!W852","v":0},null,null,null,null,null,null,null,null,null,null,null,null,null,null,null,null,null,null,0,"0"]
[{"$f":"IF(Descriptions!K38=\"Costs of Generating Funds\",Descriptions!I38,0)","v":0},null,{"$f":"IF(Descriptions!K38=\"Costs of Generating Funds\",WorkingP!AF37,0)","v":0},{"$f":"IF(Descriptions!L38=\"Costs of Generating Funds\",WorkingP!AG37,0)","v":0},{"$f":"IF(Descriptions!M38=\"Costs of Generating Funds\",WorkingP!AH37,0)","v":0},{"$f":"IF(Descriptions!N38=\"Costs of Generating Funds\",WorkingP!AI37,0)","v":0},0,{"$f":"'Prior Year Comparative'!W853","v":0},null,null,null,null,null,null,null,null,null,null,null,null,null,null,null,null,null,null,0,"0"]
[{"$f":"IF(Descriptions!K39=\"Costs of Generating Funds\",Descriptions!I39,0)","v":0},null,{"$f":"IF(Descriptions!K39=\"Costs of Generating Funds\",WorkingP!AF38,0)","v":0},{"$f":"IF(Descriptions!L39=\"Costs of Generating Funds\",WorkingP!AG38,0)","v":0},{"$f":"IF(Descriptions!M39=\"Costs of Generating Funds\",WorkingP!AH38,0)","v":0},{"$f":"IF(Descriptions!N39=\"Costs of Generating Funds\",WorkingP!AI38,0)","v":0},0,{"$f":"'Prior Year Comparative'!W854","v":0},null,null,null,null,null,null,null,null,null,null,null,null,null,null,null,null,null,null,0,"0"]
[{"$f":"IF(Descriptions!K40=\"Costs of Generating Funds\",Descriptions!I40,0)","v":0},null,{"$f":"IF(Descriptions!K40=\"Costs of Generating Funds\",WorkingP!AF39,0)","v":0},{"$f":"IF(Descriptions!L40=\"Costs of Generating Funds\",WorkingP!AG39,0)","v":0},{"$f":"IF(Descriptions!M40=\"Costs of Generating Funds\",WorkingP!AH39,0)","v":0},{"$f":"IF(Descriptions!N40=\"Costs of Generating Funds\",WorkingP!AI39,0)","v":0},0,{"$f":"'Prior Year Comparative'!W855","v":0},null,null,null,null,null,null,null,null,null,null,null,null,null,null,null,null,null,null,0,"0"]
[{"$f":"IF(Descriptions!K41=\"Costs of Generating Funds\",Descriptions!I41,0)","v":0},null,{"$f":"IF(Descriptions!K41=\"Costs of Generating Funds\",WorkingP!AF40,0)","v":0},{"$f":"IF(Descriptions!L41=\"Costs of Generating Funds\",WorkingP!AG40,0)","v":0},{"$f":"IF(Descriptions!M41=\"Costs of Generating Funds\",WorkingP!AH40,0)","v":0},{"$f":"IF(Descriptions!N41=\"Costs of Generating Funds\",WorkingP!AI40,0)","v":0},0,{"$f":"'Prior Year Comparative'!W856","v":0},null,null,null,null,null,null,null,null,null,null,null,null,null,null,null,null,null,null,0,"0"]
[{"$f":"IF(Descriptions!K42=\"Costs of Generating Funds\",Descriptions!I42,0)","v":0},null,{"$f":"IF(Descriptions!K42=\"Costs of Generating Funds\",WorkingP!AF41,0)","v":0},{"$f":"IF(Descriptions!L42=\"Costs of Generating Funds\",WorkingP!AG41,0)","v":0},{"$f":"IF(Descriptions!M42=\"Costs of Generating Funds\",WorkingP!AH41,0)","v":0},{"$f":"IF(Descriptions!N42=\"Costs of Generating Funds\",WorkingP!AI41,0)","v":0},0,{"$f":"'Prior Year Comparative'!W857","v":0},null,null,null,null,null,null,null,null,null,null,null,null,null,null,null,null,null,null,0,"0"]
[{"$f":"IF(Descriptions!K43=\"Costs of Generating Funds\",Descriptions!I43,0)","v":0},null,{"$f":"IF(Descriptions!K43=\"Costs of Generating Funds\",WorkingP!AF42,0)","v":0},{"$f":"IF(Descriptions!L43=\"Costs of Generating Funds\",WorkingP!AG42,0)","v":0},{"$f":"IF(Descriptions!M43=\"Costs of Generating Funds\",WorkingP!AH42,0)","v":0},{"$f":"IF(Descriptions!N43=\"Costs of Generating Funds\",WorkingP!AI42,0)","v":0},0,{"$f":"'Prior Year Comparative'!W858","v":0},null,null,null,null,null,null,null,null,null,null,null,null,null,null,null,null,null,null,0,"0"]
[{"$f":"IF(Descriptions!K44=\"Costs of Generating Funds\",Descriptions!I44,0)","v":0},null,{"$f":"IF(Descriptions!K44=\"Costs of Generating Funds\",WorkingP!AF43,0)","v":0},{"$f":"IF(Descriptions!L44=\"Costs of Generating Funds\",WorkingP!AG43,0)","v":0},{"$f":"IF(Descriptions!M44=\"Costs of Generating Funds\",WorkingP!AH43,0)","v":0},{"$f":"IF(Descriptions!N44=\"Costs of Generating Funds\",WorkingP!AI43,0)","v":0},0,{"$f":"'Prior Year Comparative'!W859","v":0},null,null,null,null,null,null,null,null,null,null,null,null,null,null,null,null,null,null,0,"0"]
[{"$f":"IF(Descriptions!K45=\"Costs of Generating Funds\",Descriptions!I45,0)","v":0},null,{"$f":"IF(Descriptions!K45=\"Costs of Generating Funds\",WorkingP!AF44,0)","v":0},{"$f":"IF(Descriptions!L45=\"Costs of Generating Funds\",WorkingP!AG44,0)","v":0},{"$f":"IF(Descriptions!M45=\"Costs of Generating Funds\",WorkingP!AH44,0)","v":0},{"$f":"IF(Descriptions!N45=\"Costs of Generating Funds\",WorkingP!AI44,0)","v":0},0,{"$f":"'Prior Year Comparative'!W860","v":0},null,null,null,null,null,null,null,null,null,null,null,null,null,null,null,null,null,null,0,"0"]
[{"$f":"IF(Descriptions!K46=\"Costs of Generating Funds\",Descriptions!I46,0)","v":0},null,{"$f":"IF(Descriptions!K46=\"Costs of Generating Funds\",WorkingP!AF45,0)","v":0},{"$f":"IF(Descriptions!L46=\"Costs of Generating Funds\",WorkingP!AG45,0)","v":0},{"$f":"IF(Descriptions!M46=\"Costs of Generating Funds\",WorkingP!AH45,0)","v":0},{"$f":"IF(Descriptions!N46=\"Costs of Generating Funds\",WorkingP!AI45,0)","v":0},0,{"$f":"'Prior Year Comparative'!W861","v":0},null,null,null,null,null,null,null,null,null,null,null,null,null,null,null,null,null,null,0,"0"]
[{"$f":"IF(Descriptions!K47=\"Costs of Generating Funds\",Descriptions!I47,0)","v":0},null,{"$f":"IF(Descriptions!K47=\"Costs of Generating Funds\",WorkingP!AF46,0)","v":0},{"$f":"IF(Descriptions!L47=\"Costs of Generating Funds\",WorkingP!AG46,0)","v":0},{"$f":"IF(Descriptions!M47=\"Costs of Generating Funds\",WorkingP!AH46,0)","v":0},{"$f":"IF(Descriptions!N47=\"Costs of Generating Funds\",WorkingP!AI46,0)","v":0},0,{"$f":"'Prior Year Comparative'!W862","v":0},null,null,null,null,null,null,null,null,null,null,null,null,null,null,null,null,null,null,0,"0"]
[{"$f":"IF(Descriptions!K48=\"Costs of Generating Funds\",Descriptions!I48,0)","v":0},null,{"$f":"IF(Descriptions!K48=\"Costs of Generating Funds\",WorkingP!AF47,0)","v":0},{"$f":"IF(Descriptions!L48=\"Costs of Generating Funds\",WorkingP!AG47,0)","v":0},{"$f":"IF(Descriptions!M48=\"Costs of Generating Funds\",WorkingP!AH47,0)","v":0},{"$f":"IF(Descriptions!N48=\"Costs of Generating Funds\",WorkingP!AI47,0)","v":0},0,{"$f":"'Prior Year Comparative'!W863","v":0},null,null,null,null,null,null,null,null,null,null,null,null,null,null,null,null,null,null,0,"0"]
[{"$f":"IF(Descriptions!K49=\"Costs of Generating Funds\",Descriptions!I49,0)","v":0},null,{"$f":"IF(Descriptions!K49=\"Costs of Generating Funds\",WorkingP!AF48,0)","v":0},{"$f":"IF(Descriptions!L49=\"Costs of Generating Funds\",WorkingP!AG48,0)","v":0},{"$f":"IF(Descriptions!M49=\"Costs of Generating Funds\",WorkingP!AH48,0)","v":0},{"$f":"IF(Descriptions!N49=\"Costs of Generating Funds\",WorkingP!AI48,0)","v":0},0,{"$f":"'Prior Year Comparative'!W864","v":0},null,null,null,null,null,null,null,null,null,null,null,null,null,null,null,null,null,null,0,"0"]
[{"$f":"IF(Descriptions!K50=\"Costs of Generating Funds\",Descriptions!I50,0)","v":0},null,{"$f":"IF(Descriptions!K50=\"Costs of Generating Funds\",WorkingP!AF49,0)","v":0},{"$f":"IF(Descriptions!L50=\"Costs of Generating Funds\",WorkingP!AG49,0)","v":0},{"$f":"IF(Descriptions!M50=\"Costs of Generating Funds\",WorkingP!AH49,0)","v":0},{"$f":"IF(Descriptions!N50=\"Costs of Generating Funds\",WorkingP!AI49,0)","v":0},0,{"$f":"'Prior Year Comparative'!W865","v":0},null,null,null,null,null,null,null,null,null,null,null,null,null,null,null,null,null,null,0,"0"]
[{"$f":"IF(Descriptions!K51=\"Costs of Generating Funds\",Descriptions!I51,0)","v":0},null,{"$f":"IF(Descriptions!K51=\"Costs of Generating Funds\",WorkingP!AF50,0)","v":0},{"$f":"IF(Descriptions!L51=\"Costs of Generating Funds\",WorkingP!AG50,0)","v":0},{"$f":"IF(Descriptions!M51=\"Costs of Generating Funds\",WorkingP!AH50,0)","v":0},{"$f":"IF(Descriptions!N51=\"Costs of Generating Funds\",WorkingP!AI50,0)","v":0},0,{"$f":"'Prior Year Comparative'!W866","v":0},null,null,null,null,null,null,null,null,null,null,null,null,null,null,null,null,null,null,0,"0"]
[{"$f":"IF(Descriptions!K52=\"Costs of Generating Funds\",Descriptions!I52,0)","v":0},null,{"$f":"IF(Descriptions!K52=\"Costs of Generating Funds\",WorkingP!AF51,0)","v":0},{"$f":"IF(Descriptions!L52=\"Costs of Generating Funds\",WorkingP!AG51,0)","v":0},{"$f":"IF(Descriptions!M52=\"Costs of Generating Funds\",WorkingP!AH51,0)","v":0},{"$f":"IF(Descriptions!N52=\"Costs of Generating Funds\",WorkingP!AI51,0)","v":0},0,{"$f":"'Prior Year Comparative'!W867","v":0},null,null,null,null,null,null,null,null,null,null,null,null,null,null,null,null,null,null,0,"0"]
[{"$f":"IF(Descriptions!K53=\"Costs of Generating Funds\",Descriptions!I53,0)","v":0},null,{"$f":"IF(Descriptions!K53=\"Costs of Generating Funds\",WorkingP!AF52,0)","v":0},{"$f":"IF(Descriptions!L53=\"Costs of Generating Funds\",WorkingP!AG52,0)","v":0},{"$f":"IF(Descriptions!M53=\"Costs of Generating Funds\",WorkingP!AH52,0)","v":0},{"$f":"IF(Descriptions!N53=\"Costs of Generating Funds\",WorkingP!AI52,0)","v":0},0,{"$f":"'Prior Year Comparative'!W868","v":0},null,null,null,null,null,null,null,null,null,null,null,null,null,null,null,null,null,null,0,"0"]
[{"$f":"IF(Descriptions!K54=\"Costs of Generating Funds\",Descriptions!I54,0)","v":0},null,{"$f":"IF(Descriptions!K54=\"Costs of Generating Funds\",WorkingP!AF53,0)","v":0},{"$f":"IF(Descriptions!L54=\"Costs of Generating Funds\",WorkingP!AG53,0)","v":0},{"$f":"IF(Descriptions!M54=\"Costs of Generating Funds\",WorkingP!AH53,0)","v":0},{"$f":"IF(Descriptions!N54=\"Costs of Generating Funds\",WorkingP!AI53,0)","v":0},0,{"$f":"'Prior Year Comparative'!W869","v":0},null,null,null,null,null,null,null,null,null,null,null,null,null,null,null,null,null,null,0,"0"]
[{"$f":"IF(Descriptions!K55=\"Costs of Generating Funds\",Descriptions!I55,0)","v":0},null,{"$f":"IF(Descriptions!K55=\"Costs of Generating Funds\",WorkingP!AF54,0)","v":0},{"$f":"IF(Descriptions!L55=\"Costs of Generating Funds\",WorkingP!AG54,0)","v":0},{"$f":"IF(Descriptions!M55=\"Costs of Generating Funds\",WorkingP!AH54,0)","v":0},{"$f":"IF(Descriptions!N55=\"Costs of Generating Funds\",WorkingP!AI54,0)","v":0},0,{"$f":"'Prior Year Comparative'!W870","v":0},null,null,null,null,null,null,null,null,null,null,null,null,null,null,null,null,null,null,0,"0"]
[{"$f":"IF(Descriptions!K56=\"Costs of Generating Funds\",Descriptions!I56,0)","v":0},null,{"$f":"IF(Descriptions!K56=\"Costs of Generating Funds\",WorkingP!AF55,0)","v":0},{"$f":"IF(Descriptions!L56=\"Costs of Generating Funds\",WorkingP!AG55,0)","v":0},{"$f":"IF(Descriptions!M56=\"Costs of Generating Funds\",WorkingP!AH55,0)","v":0},{"$f":"IF(Descriptions!N56=\"Costs of Generating Funds\",WorkingP!AI55,0)","v":0},0,{"$f":"'Prior Year Comparative'!W871","v":0},null,null,null,null,null,null,null,null,null,null,null,null,null,null,null,null,null,null,0,"0"]
[{"$f":"IF(Descriptions!K57=\"Costs of Generating Funds\",Descriptions!I57,0)","v":0},null,{"$f":"IF(Descriptions!K57=\"Costs of Generating Funds\",WorkingP!AF56,0)","v":0},{"$f":"IF(Descriptions!L57=\"Costs of Generating Funds\",WorkingP!AG56,0)","v":0},{"$f":"IF(Descriptions!M57=\"Costs of Generating Funds\",WorkingP!AH56,0)","v":0},{"$f":"IF(Descriptions!N57=\"Costs of Generating Funds\",WorkingP!AI56,0)","v":0},0,{"$f":"'Prior Year Comparative'!W872","v":0},null,null,null,null,null,null,null,null,null,null,null,null,null,null,null,null,null,null,0,"0"]
[{"$f":"IF(Descriptions!K58=\"Costs of Generating Funds\",Descriptions!I58,0)","v":0},null,{"$f":"IF(Descriptions!K58=\"Costs of Generating Funds\",WorkingP!AF57,0)","v":0},{"$f":"IF(Descriptions!L58=\"Costs of Generating Funds\",WorkingP!AG57,0)","v":0},{"$f":"IF(Descriptions!M58=\"Costs of Generating Funds\",WorkingP!AH57,0)","v":0},{"$f":"IF(Descriptions!N58=\"Costs of Generating Funds\",WorkingP!AI57,0)","v":0},0,{"$f":"'Prior Year Comparative'!W873","v":0},null,null,null,null,null,null,null,null,null,null,null,null,null,null,null,null,null,null,0,"0"]
[{"$f":"IF(Descriptions!K59=\"Costs of Generating Funds\",Descriptions!I59,0)","v":0},null,{"$f":"IF(Descriptions!K59=\"Costs of Generating Funds\",WorkingP!AF58,0)","v":0},{"$f":"IF(Descriptions!L59=\"Costs of Generating Funds\",WorkingP!AG58,0)","v":0},{"$f":"IF(Descriptions!M59=\"Costs of Generating Funds\",WorkingP!AH58,0)","v":0},{"$f":"IF(Descriptions!N59=\"Costs of Generating Funds\",WorkingP!AI58,0)","v":0},0,{"$f":"'Prior Year Comparative'!W874","v":0},null,null,null,null,null,null,null,null,null,null,null,null,null,null,null,null,null,null,0,"0"]
[{"$f":"IF(Descriptions!K60=\"Costs of Generating Funds\",Descriptions!I60,0)","v":0},null,{"$f":"IF(Descriptions!K60=\"Costs of Generating Funds\",WorkingP!AF59,0)","v":0},{"$f":"IF(Descriptions!L60=\"Costs of Generating Funds\",WorkingP!AG59,0)","v":0},{"$f":"IF(Descriptions!M60=\"Costs of Generating Funds\",WorkingP!AH59,0)","v":0},{"$f":"IF(Descriptions!N60=\"Costs of Generating Funds\",WorkingP!AI59,0)","v":0},0,{"$f":"'Prior Year Comparative'!W875","v":0},null,null,null,null,null,null,null,null,null,null,null,null,null,null,null,null,null,null,0,"0"]
[{"$f":"IF(Descriptions!K61=\"Costs of Generating Funds\",Descriptions!I61,0)","v":0},null,{"$f":"IF(Descriptions!K61=\"Costs of Generating Funds\",WorkingP!AF60,0)","v":0},{"$f":"IF(Descriptions!L61=\"Costs of Generating Funds\",WorkingP!AG60,0)","v":0},{"$f":"IF(Descriptions!M61=\"Costs of Generating Funds\",WorkingP!AH60,0)","v":0},{"$f":"IF(Descriptions!N61=\"Costs of Generating Funds\",WorkingP!AI60,0)","v":0},0,{"$f":"'Prior Year Comparative'!W876","v":0},null,null,null,null,null,null,null,null,null,null,null,null,null,null,null,null,null,null,0,"0"]
[{"$f":"IF(Descriptions!K62=\"Costs of Generating Funds\",Descriptions!I62,0)","v":0},null,{"$f":"IF(Descriptions!K62=\"Costs of Generating Funds\",WorkingP!AF61,0)","v":0},{"$f":"IF(Descriptions!L62=\"Costs of Generating Funds\",WorkingP!AG61,0)","v":0},{"$f":"IF(Descriptions!M62=\"Costs of Generating Funds\",WorkingP!AH61,0)","v":0},{"$f":"IF(Descriptions!N62=\"Costs of Generating Funds\",WorkingP!AI61,0)","v":0},0,{"$f":"'Prior Year Comparative'!W877","v":0},null,null,null,null,null,null,null,null,null,null,null,null,null,null,null,null,null,null,0,"0"]
[{"$f":"IF(Descriptions!K63=\"Costs of Generating Funds\",Descriptions!I63,0)","v":0},null,{"$f":"IF(Descriptions!K63=\"Costs of Generating Funds\",WorkingP!AF62,0)","v":0},{"$f":"IF(Descriptions!L63=\"Costs of Generating Funds\",WorkingP!AG62,0)","v":0},{"$f":"IF(Descriptions!M63=\"Costs of Generating Funds\",WorkingP!AH62,0)","v":0},{"$f":"IF(Descriptions!N63=\"Costs of Generating Funds\",WorkingP!AI62,0)","v":0},0,{"$f":"'Prior Year Comparative'!W878","v":0},null,null,null,null,null,null,null,null,null,null,null,null,null,null,null,null,null,null,0,"0"]
[{"$f":"IF(Descriptions!K64=\"Costs of Generating Funds\",Descriptions!I64,0)","v":0},null,{"$f":"IF(Descriptions!K64=\"Costs of Generating Funds\",WorkingP!AF63,0)","v":0},{"$f":"IF(Descriptions!L64=\"Costs of Generating Funds\",WorkingP!AG63,0)","v":0},{"$f":"IF(Descriptions!M64=\"Costs of Generating Funds\",WorkingP!AH63,0)","v":0},{"$f":"IF(Descriptions!N64=\"Costs of Generating Funds\",WorkingP!AI63,0)","v":0},0,{"$f":"'Prior Year Comparative'!W879","v":0},null,null,null,null,null,null,null,null,null,null,null,null,null,null,null,null,null,null,0,"0"]
[{"$f":"IF(Descriptions!K65=\"Costs of Generating Funds\",Descriptions!I65,0)","v":0},null,{"$f":"IF(Descriptions!K65=\"Costs of Generating Funds\",WorkingP!AF64,0)","v":0},{"$f":"IF(Descriptions!L65=\"Costs of Generating Funds\",WorkingP!AG64,0)","v":0},{"$f":"IF(Descriptions!M65=\"Costs of Generating Funds\",WorkingP!AH64,0)","v":0},{"$f":"IF(Descriptions!N65=\"Costs of Generating Funds\",WorkingP!AI64,0)","v":0},0,{"$f":"'Prior Year Comparative'!W880","v":0},null,null,null,null,null,null,null,null,null,null,null,null,null,null,null,null,null,null,0,"0"]
[{"$f":"IF(Descriptions!K66=\"Costs of Generating Funds\",Descriptions!I66,0)","v":0},null,{"$f":"IF(Descriptions!K66=\"Costs of Generating Funds\",WorkingP!AF65,0)","v":0},{"$f":"IF(Descriptions!L66=\"Costs of Generating Funds\",WorkingP!AG65,0)","v":0},{"$f":"IF(Descriptions!M66=\"Costs of Generating Funds\",WorkingP!AH65,0)","v":0},{"$f":"IF(Descriptions!N66=\"Costs of Generating Funds\",WorkingP!AI65,0)","v":0},0,{"$f":"'Prior Year Comparative'!W881","v":0},null,null,null,null,null,null,null,null,null,null,null,null,null,null,null,null,null,null,0,"0"]
[{"$f":"IF(Descriptions!K67=\"Costs of Generating Funds\",Descriptions!I67,0)","v":0},null,{"$f":"IF(Descriptions!K67=\"Costs of Generating Funds\",WorkingP!AF66,0)","v":0},{"$f":"IF(Descriptions!L67=\"Costs of Generating Funds\",WorkingP!AG66,0)","v":0},{"$f":"IF(Descriptions!M67=\"Costs of Generating Funds\",WorkingP!AH66,0)","v":0},{"$f":"IF(Descriptions!N67=\"Costs of Generating Funds\",WorkingP!AI66,0)","v":0},0,{"$f":"'Prior Year Comparative'!W882","v":0},null,null,null,null,null,null,null,null,null,null,null,null,null,null,null,null,null,null,0,"0"]
[{"$f":"IF(Descriptions!K68=\"Costs of Generating Funds\",Descriptions!I68,0)","v":0},null,{"$f":"IF(Descriptions!K68=\"Costs of Generating Funds\",WorkingP!AF67,0)","v":0},{"$f":"IF(Descriptions!L68=\"Costs of Generating Funds\",WorkingP!AG67,0)","v":0},{"$f":"IF(Descriptions!M68=\"Costs of Generating Funds\",WorkingP!AH67,0)","v":0},{"$f":"IF(Descriptions!N68=\"Costs of Generating Funds\",WorkingP!AI67,0)","v":0},0,{"$f":"'Prior Year Comparative'!W883","v":0},null,null,null,null,null,null,null,null,null,null,null,null,null,null,null,null,null,null,0,"0"]
[{"$f":"IF(Descriptions!K69=\"Costs of Generating Funds\",Descriptions!I69,0)","v":0},null,{"$f":"IF(Descriptions!K69=\"Costs of Generating Funds\",WorkingP!AF68,0)","v":0},{"$f":"IF(Descriptions!L69=\"Costs of Generating Funds\",WorkingP!AG68,0)","v":0},{"$f":"IF(Descriptions!M69=\"Costs of Generating Funds\",WorkingP!AH68,0)","v":0},{"$f":"IF(Descriptions!N69=\"Costs of Generating Funds\",WorkingP!AI68,0)","v":0},0,{"$f":"'Prior Year Comparative'!W884","v":0},null,null,null,null,null,null,null,null,null,null,null,null,null,null,null,null,null,null,0,"0"]
[{"$f":"IF(Descriptions!K70=\"Costs of Generating Funds\",Descriptions!I70,0)","v":0},null,{"$f":"IF(Descriptions!K70=\"Costs of Generating Funds\",WorkingP!AF69,0)","v":0},{"$f":"IF(Descriptions!L70=\"Costs of Generating Funds\",WorkingP!AG69,0)","v":0},{"$f":"IF(Descriptions!M70=\"Costs of Generating Funds\",WorkingP!AH69,0)","v":0},{"$f":"IF(Descriptions!N70=\"Costs of Generating Funds\",WorkingP!AI69,0)","v":0},0,{"$f":"'Prior Year Comparative'!W885","v":0},null,null,null,null,null,null,null,null,null,null,null,null,null,null,null,null,null,null,0,"0"]
[{"$f":"IF(Descriptions!K71=\"Costs of Generating Funds\",Descriptions!I71,0)","v":0},null,{"$f":"IF(Descriptions!K71=\"Costs of Generating Funds\",WorkingP!AF70,0)","v":0},{"$f":"IF(Descriptions!L71=\"Costs of Generating Funds\",WorkingP!AG70,0)","v":0},{"$f":"IF(Descriptions!M71=\"Costs of Generating Funds\",WorkingP!AH70,0)","v":0},{"$f":"IF(Descriptions!N71=\"Costs of Generating Funds\",WorkingP!AI70,0)","v":0},0,{"$f":"'Prior Year Comparative'!W886","v":0},null,null,null,null,null,null,null,null,null,null,null,null,null,null,null,null,null,null,0,"0"]
[{"$f":"IF(Descriptions!K72=\"Costs of Generating Funds\",Descriptions!I72,0)","v":0},null,{"$f":"IF(Descriptions!K72=\"Costs of Generating Funds\",WorkingP!AF71,0)","v":0},{"$f":"IF(Descriptions!L72=\"Costs of Generating Funds\",WorkingP!AG71,0)","v":0},{"$f":"IF(Descriptions!M72=\"Costs of Generating Funds\",WorkingP!AH71,0)","v":0},{"$f":"IF(Descriptions!N72=\"Costs of Generating Funds\",WorkingP!AI71,0)","v":0},0,{"$f":"'Prior Year Comparative'!W887","v":0},null,null,null,null,null,null,null,null,null,null,null,null,null,null,null,null,null,null,0,"0"]
[{"$f":"IF(Descriptions!K73=\"Costs of Generating Funds\",Descriptions!I73,0)","v":0},null,{"$f":"IF(Descriptions!K73=\"Costs of Generating Funds\",WorkingP!AF72,0)","v":0},{"$f":"IF(Descriptions!L73=\"Costs of Generating Funds\",WorkingP!AG72,0)","v":0},{"$f":"IF(Descriptions!M73=\"Costs of Generating Funds\",WorkingP!AH72,0)","v":0},{"$f":"IF(Descriptions!N73=\"Costs of Generating Funds\",WorkingP!AI72,0)","v":0},0,{"$f":"'Prior Year Comparative'!W888","v":0},null,null,null,null,null,null,null,null,null,null,null,null,null,null,null,null,null,null,0,"0"]
[{"$f":"IF(Descriptions!K74=\"Costs of Generating Funds\",Descriptions!I74,0)","v":0},null,{"$f":"IF(Descriptions!K74=\"Costs of Generating Funds\",WorkingP!AF73,0)","v":0},{"$f":"IF(Descriptions!L74=\"Costs of Generating Funds\",WorkingP!AG73,0)","v":0},{"$f":"IF(Descriptions!M74=\"Costs of Generating Funds\",WorkingP!AH73,0)","v":0},{"$f":"IF(Descriptions!N74=\"Costs of Generating Funds\",WorkingP!AI73,0)","v":0},0,{"$f":"'Prior Year Comparative'!W889","v":0},null,null,null,null,null,null,null,null,null,null,null,null,null,null,null,null,null,null,0,"0"]
[{"$f":"IF(Descriptions!K75=\"Costs of Generating Funds\",Descriptions!I75,0)","v":0},null,{"$f":"IF(Descriptions!K75=\"Costs of Generating Funds\",WorkingP!AF74,0)","v":0},{"$f":"IF(Descriptions!L75=\"Costs of Generating Funds\",WorkingP!AG74,0)","v":0},{"$f":"IF(Descriptions!M75=\"Costs of Generating Funds\",WorkingP!AH74,0)","v":0},{"$f":"IF(Descriptions!N75=\"Costs of Generating Funds\",WorkingP!AI74,0)","v":0},0,{"$f":"'Prior Year Comparative'!W890","v":0},null,null,null,null,null,null,null,null,null,null,null,null,null,null,null,null,null,null,0,"0"]
[{"$f":"IF(Descriptions!K76=\"Costs of Generating Funds\",Descriptions!I76,0)","v":0},null,{"$f":"IF(Descriptions!K76=\"Costs of Generating Funds\",WorkingP!AF75,0)","v":0},{"$f":"IF(Descriptions!L76=\"Costs of Generating Funds\",WorkingP!AG75,0)","v":0},{"$f":"IF(Descriptions!M76=\"Costs of Generating Funds\",WorkingP!AH75,0)","v":0},{"$f":"IF(Descriptions!N76=\"Costs of Generating Funds\",WorkingP!AI75,0)","v":0},0,{"$f":"'Prior Year Comparative'!W891","v":0},null,null,null,null,null,null,null,null,null,null,null,null,null,null,null,null,null,null,0,"0"]
[{"$f":"IF(Descriptions!K77=\"Costs of Generating Funds\",Descriptions!I77,0)","v":0},null,{"$f":"IF(Descriptions!K77=\"Costs of Generating Funds\",WorkingP!AF76,0)","v":0},{"$f":"IF(Descriptions!L77=\"Costs of Generating Funds\",WorkingP!AG76,0)","v":0},{"$f":"IF(Descriptions!M77=\"Costs of Generating Funds\",WorkingP!AH76,0)","v":0},{"$f":"IF(Descriptions!N77=\"Costs of Generating Funds\",WorkingP!AI76,0)","v":0},0,{"$f":"'Prior Year Comparative'!W892","v":0},null,null,null,null,null,null,null,null,null,null,null,null,null,null,null,null,null,null,0,"0"]
[{"$f":"IF(Descriptions!K78=\"Costs of Generating Funds\",Descriptions!I78,0)","v":0},null,{"$f":"IF(Descriptions!K78=\"Costs of Generating Funds\",WorkingP!AF77,0)","v":0},{"$f":"IF(Descriptions!L78=\"Costs of Generating Funds\",WorkingP!AG77,0)","v":0},{"$f":"IF(Descriptions!M78=\"Costs of Generating Funds\",WorkingP!AH77,0)","v":0},{"$f":"IF(Descriptions!N78=\"Costs of Generating Funds\",WorkingP!AI77,0)","v":0},0,{"$f":"'Prior Year Comparative'!W893","v":0},null,null,null,null,null,null,null,null,null,null,null,null,null,null,null,null,null,null,0,"0"]
[{"$f":"IF(Descriptions!K79=\"Costs of Generating Funds\",Descriptions!I79,0)","v":0},null,{"$f":"IF(Descriptions!K79=\"Costs of Generating Funds\",WorkingP!AF78,0)","v":0},{"$f":"IF(Descriptions!L79=\"Costs of Generating Funds\",WorkingP!AG78,0)","v":0},{"$f":"IF(Descriptions!M79=\"Costs of Generating Funds\",WorkingP!AH78,0)","v":0},{"$f":"IF(Descriptions!N79=\"Costs of Generating Funds\",WorkingP!AI78,0)","v":0},0,{"$f":"'Prior Year Comparative'!W894","v":0},null,null,null,null,null,null,null,null,null,null,null,null,null,null,null,null,null,null,0,"0"]
[{"$f":"IF(Descriptions!K80=\"Costs of Generating Funds\",Descriptions!I80,0)","v":0},null,{"$f":"IF(Descriptions!K80=\"Costs of Generating Funds\",WorkingP!AF79,0)","v":0},{"$f":"IF(Descriptions!L80=\"Costs of Generating Funds\",WorkingP!AG79,0)","v":0},{"$f":"IF(Descriptions!M80=\"Costs of Generating Funds\",WorkingP!AH79,0)","v":0},{"$f":"IF(Descriptions!N80=\"Costs of Generating Funds\",WorkingP!AI79,0)","v":0},0,{"$f":"'Prior Year Comparative'!W895","v":0},null,null,null,null,null,null,null,null,null,null,null,null,null,null,null,null,null,null,0,"0"]
[{"$f":"IF(Descriptions!K81=\"Costs of Generating Funds\",Descriptions!I81,0)","v":0},null,{"$f":"IF(Descriptions!K81=\"Costs of Generating Funds\",WorkingP!AF80,0)","v":0},{"$f":"IF(Descriptions!L81=\"Costs of Generating Funds\",WorkingP!AG80,0)","v":0},{"$f":"IF(Descriptions!M81=\"Costs of Generating Funds\",WorkingP!AH80,0)","v":0},{"$f":"IF(Descriptions!N81=\"Costs of Generating Funds\",WorkingP!AI80,0)","v":0},0,{"$f":"'Prior Year Comparative'!W896","v":0},null,null,null,null,null,null,null,null,null,null,null,null,null,null,null,null,null,null,{"$f":"SUM(C1003:H1003)","v":0},{"$f":"IF(AA1003=0,\"0\",\"1\")","v":"0"}]
[{"$f":"IF(Descriptions!K82=\"Costs of Generating Funds\",Descriptions!I82,0)","v":0},null,{"$f":"IF(Descriptions!K82=\"Costs of Generating Funds\",WorkingP!AF81,0)","v":0},{"$f":"IF(Descriptions!L82=\"Costs of Generating Funds\",WorkingP!AG81,0)","v":0},{"$f":"IF(Descriptions!M82=\"Costs of Generating Funds\",WorkingP!AH81,0)","v":0},{"$f":"IF(Descriptions!N82=\"Costs of Generating Funds\",WorkingP!AI81,0)","v":0},0,{"$f":"'Prior Year Comparative'!W897","v":0},null,null,null,null,null,null,null,null,null,null,null,null,null,null,null,null,null,null,{"$f":"SUM(C1004:H1004)","v":0},"0"]
[{"$f":"IF(Descriptions!K83=\"Costs of Generating Funds\",Descriptions!I83,0)","v":0},null,{"$f":"IF(Descriptions!K83=\"Costs of Generating Funds\",WorkingP!AF82,0)","v":0},{"$f":"IF(Descriptions!L83=\"Costs of Generating Funds\",WorkingP!AG82,0)","v":0},{"$f":"IF(Descriptions!M83=\"Costs of Generating Funds\",WorkingP!AH82,0)","v":0},{"$f":"IF(Descriptions!N83=\"Costs of Generating Funds\",WorkingP!AI82,0)","v":0},0,{"$f":"'Prior Year Comparative'!W898","v":0},null,null,null,null,null,null,null,null,null,null,null,null,null,null,null,null,null,null,{"$f":"SUM(C1005:H1005)","v":0},"0"]
[{"$f":"IF(Descriptions!K84=\"Costs of Generating Funds\",Descriptions!I84,0)","v":0},null,{"$f":"IF(Descriptions!K84=\"Costs of Generating Funds\",WorkingP!AF83,0)","v":0},{"$f":"IF(Descriptions!L84=\"Costs of Generating Funds\",WorkingP!AG83,0)","v":0},{"$f":"IF(Descriptions!M84=\"Costs of Generating Funds\",WorkingP!AH83,0)","v":0},{"$f":"IF(Descriptions!N84=\"Costs of Generating Funds\",WorkingP!AI83,0)","v":0},0,{"$f":"'Prior Year Comparative'!W899","v":0},null,null,null,null,null,null,null,null,null,null,null,null,null,null,null,null,null,null,{"$f":"SUM(C1006:H1006)","v":0},"0"]
[null,null,null,null,null,null,null,null,null,null,null,null,null,null,null,null,null,null,null,null,null,null,null,null,null,null,{"$f":"AA1008","v":0},"0"]
[null,null,{"$f":"SUM(C953:C1006)","v":0},0,0,0,0,0,null,null,null,null,null,null,null,null,null,null,null,null,null,null,null,null,null,null,{"$f":"SUM(AA953:AA1006)","v":0},"0"]
[null,null,null,null,null,null,null,null,null,null,null,null,null,null,null,null,null,null,null,null,null,null,null,null,null,null,{"$f":"AA1010","v":0},"0"]
["ADMINISTRATION COSTS",null,null,null,null,null,null,null,null,null,null,null,null,null,null,null,null,null,null,null,null,null,null,null,null,null,{"$f":"SUM(AA1011:AA1065)","v":0},"0"]
["Bank charges",null,{"$f":"WorkingP!AF6","v":0},{"$f":"WorkingP!AG6","v":0},{"$f":"WorkingP!AH6","v":0},{"$f":"WorkingP!AI6","v":0},{"$f":"SUM(C1011:F1011)","v":0},{"$f":"'Prior Year Comparative'!W902","v":0},null,null,null,null,null,null,null,null,null,null,null,null,null,null,null,null,null,null,{"$f":"SUM(C1011:H1011)","v":0},"0"]
["Printing",null,{"$f":"WorkingP!AF24","v":0},{"$f":"WorkingP!AG24","v":0},{"$f":"WorkingP!AH24","v":0},{"$f":"WorkingP!AI24","v":0},0,{"$f":"'Prior Year Comparative'!W903","v":0},null,null,null,null,null,null,null,null,null,null,null,null,null,null,null,null,null,null,{"$f":"SUM(C1012:H1012)","v":0},"0"]
["Stationery",null,{"$f":"WorkingP!AF27","v":0},{"$f":"WorkingP!AG27","v":0},{"$f":"WorkingP!AH27","v":0},{"$f":"WorkingP!AI27","v":0},0,{"$f":"'Prior Year Comparative'!W904","v":0},null,null,null,null,null,null,null,null,null,null,null,null,null,null,null,null,null,null,{"$f":"SUM(C1013:H1013)","v":0},"0"]
["Support Costs",null,{"$f":"WorkingP!AF28","v":0},{"$f":"WorkingP!AG28","v":0},{"$f":"WorkingP!AH28","v":0},{"$f":"WorkingP!AI28","v":0},0,{"$f":"'Prior Year Comparative'!W905","v":0},null,null,null,null,null,null,null,null,null,null,null,null,null,null,null,null,null,null,{"$f":"SUM(C1014:H1014)","v":0},"0"]
["Computer",null,{"$f":"WorkingP!AF15","v":0},{"$f":"WorkingP!AG15","v":0},{"$f":"WorkingP!AH15","v":0},{"$f":"WorkingP!AI15","v":0},0,{"$f":"'Prior Year Comparative'!W906","v":0},null,null,null,null,null,null,null,null,null,null,null,null,null,null,null,null,null,null,{"$f":"SUM(C1015:H1015)","v":0},"0"]
[{"$f":"IF(Descriptions!K35=\"Administration Costs\",Descriptions!I35,0)","v":0},null,{"$f":"IF(Descriptions!K35=\"Administration Costs\",WorkingP!AF34,0)","v":0},{"$f":"IF(Descriptions!L35=\"Administration Costs\",WorkingP!AG34,0)","v":0},{"$f":"IF(Descriptions!M35=\"Administration Costs\",WorkingP!AH34,0)","v":0},{"$f":"IF(Descriptions!N35=\"Administration Costs\",WorkingP!AI34,0)","v":0},0,{"$f":"'Prior Year Comparative'!W907","v":0},null,null,null,null,null,null,null,null,null,null,null,null,null,null,null,null,null,null,{"$f":"SUM(C1016:H1016)","v":0},{"$f":"IF(AA1016=0,\"0\",\"1\")","v":"0"}]
[{"$f":"IF(Descriptions!K36=\"Administration Costs\",Descriptions!I36,0)","v":0},null,{"$f":"IF(Descriptions!K36=\"Administration Costs\",WorkingP!AF35,0)","v":0},{"$f":"IF(Descriptions!L36=\"Administration Costs\",WorkingP!AG35,0)","v":0},{"$f":"IF(Descriptions!M36=\"Administration Costs\",WorkingP!AH35,0)","v":0},{"$f":"IF(Descriptions!N36=\"Administration Costs\",WorkingP!AI35,0)","v":0},{"$f":"SUM(C1017:F1017)","v":0},{"$f":"'Prior Year Comparative'!W908","v":0},null,null,null,null,null,null,null,null,null,null,null,null,null,null,null,null,null,null,0,"0"]
[{"$f":"IF(Descriptions!K37=\"Administration Costs\",Descriptions!I37,0)","v":0},null,{"$f":"IF(Descriptions!K37=\"Administration Costs\",WorkingP!AF36,0)","v":0},{"$f":"IF(Descriptions!L37=\"Administration Costs\",WorkingP!AG36,0)","v":0},{"$f":"IF(Descriptions!M37=\"Administration Costs\",WorkingP!AH36,0)","v":0},{"$f":"IF(Descriptions!N37=\"Administration Costs\",WorkingP!AI36,0)","v":0},0,{"$f":"'Prior Year Comparative'!W909","v":0},null,null,null,null,null,null,null,null,null,null,null,null,null,null,null,null,null,null,0,"0"]
[{"$f":"IF(Descriptions!K38=\"Administration Costs\",Descriptions!I38,0)","v":0},null,{"$f":"IF(Descriptions!K38=\"Administration Costs\",WorkingP!AF37,0)","v":0},{"$f":"IF(Descriptions!L38=\"Administration Costs\",WorkingP!AG37,0)","v":0},{"$f":"IF(Descriptions!M38=\"Administration Costs\",WorkingP!AH37,0)","v":0},{"$f":"IF(Descriptions!N38=\"Administration Costs\",WorkingP!AI37,0)","v":0},0,{"$f":"'Prior Year Comparative'!W910","v":0},null,null,null,null,null,null,null,null,null,null,null,null,null,null,null,null,null,null,0,"0"]
[{"$f":"IF(Descriptions!K39=\"Administration Costs\",Descriptions!I39,0)","v":0},null,{"$f":"IF(Descriptions!K39=\"Administration Costs\",WorkingP!AF38,0)","v":0},{"$f":"IF(Descriptions!L39=\"Administration Costs\",WorkingP!AG38,0)","v":0},{"$f":"IF(Descriptions!M39=\"Administration Costs\",WorkingP!AH38,0)","v":0},{"$f":"IF(Descriptions!N39=\"Administration Costs\",WorkingP!AI38,0)","v":0},0,{"$f":"'Prior Year Comparative'!W911","v":0},null,null,null,null,null,null,null,null,null,null,null,null,null,null,null,null,null,null,0,"0"]
[{"$f":"IF(Descriptions!K40=\"Administration Costs\",Descriptions!I40,0)","v":0},null,{"$f":"IF(Descriptions!K40=\"Administration Costs\",WorkingP!AF39,0)","v":0},{"$f":"IF(Descriptions!L40=\"Administration Costs\",WorkingP!AG39,0)","v":0},{"$f":"IF(Descriptions!M40=\"Administration Costs\",WorkingP!AH39,0)","v":0},{"$f":"IF(Descriptions!N40=\"Administration Costs\",WorkingP!AI39,0)","v":0},0,{"$f":"'Prior Year Comparative'!W912","v":0},null,null,null,null,null,null,null,null,null,null,null,null,null,null,null,null,null,null,0,"0"]
[{"$f":"IF(Descriptions!K41=\"Administration Costs\",Descriptions!I41,0)","v":0},null,{"$f":"IF(Descriptions!K41=\"Administration Costs\",WorkingP!AF40,0)","v":0},{"$f":"IF(Descriptions!L41=\"Administration Costs\",WorkingP!AG40,0)","v":0},{"$f":"IF(Descriptions!M41=\"Administration Costs\",WorkingP!AH40,0)","v":0},{"$f":"IF(Descriptions!N41=\"Administration Costs\",WorkingP!AI40,0)","v":0},0,{"$f":"'Prior Year Comparative'!W913","v":0},null,null,null,null,null,null,null,null,null,null,null,null,null,null,null,null,null,null,0,"0"]
[{"$f":"IF(Descriptions!K42=\"Administration Costs\",Descriptions!I42,0)","v":0},null,{"$f":"IF(Descriptions!K42=\"Administration Costs\",WorkingP!AF41,0)","v":0},{"$f":"IF(Descriptions!L42=\"Administration Costs\",WorkingP!AG41,0)","v":0},{"$f":"IF(Descriptions!M42=\"Administration Costs\",WorkingP!AH41,0)","v":0},{"$f":"IF(Descriptions!N42=\"Administration Costs\",WorkingP!AI41,0)","v":0},0,{"$f":"'Prior Year Comparative'!W914","v":0},null,null,null,null,null,null,null,null,null,null,null,null,null,null,null,null,null,null,0,"0"]
[{"$f":"IF(Descriptions!K43=\"Administration Costs\",Descriptions!I43,0)","v":0},null,{"$f":"IF(Descriptions!K43=\"Administration Costs\",WorkingP!AF42,0)","v":0},{"$f":"IF(Descriptions!L43=\"Administration Costs\",WorkingP!AG42,0)","v":0},{"$f":"IF(Descriptions!M43=\"Administration Costs\",WorkingP!AH42,0)","v":0},{"$f":"IF(Descriptions!N43=\"Administration Costs\",WorkingP!AI42,0)","v":0},0,{"$f":"'Prior Year Comparative'!W915","v":0},null,null,null,null,null,null,null,null,null,null,null,null,null,null,null,null,null,null,0,"0"]
[{"$f":"IF(Descriptions!K44=\"Administration Costs\",Descriptions!I44,0)","v":0},null,{"$f":"IF(Descriptions!K44=\"Administration Costs\",WorkingP!AF43,0)","v":0},{"$f":"IF(Descriptions!L44=\"Administration Costs\",WorkingP!AG43,0)","v":0},{"$f":"IF(Descriptions!M44=\"Administration Costs\",WorkingP!AH43,0)","v":0},{"$f":"IF(Descriptions!N44=\"Administration Costs\",WorkingP!AI43,0)","v":0},0,{"$f":"'Prior Year Comparative'!W916","v":0},null,null,null,null,null,null,null,null,null,null,null,null,null,null,null,null,null,null,0,"0"]
[{"$f":"IF(Descriptions!K45=\"Administration Costs\",Descriptions!I45,0)","v":0},null,{"$f":"IF(Descriptions!K45=\"Administration Costs\",WorkingP!AF44,0)","v":0},{"$f":"IF(Descriptions!L45=\"Administration Costs\",WorkingP!AG44,0)","v":0},{"$f":"IF(Descriptions!M45=\"Administration Costs\",WorkingP!AH44,0)","v":0},{"$f":"IF(Descriptions!N45=\"Administration Costs\",WorkingP!AI44,0)","v":0},0,{"$f":"'Prior Year Comparative'!W917","v":0},null,null,null,null,null,null,null,null,null,null,null,null,null,null,null,null,null,null,0,"0"]
[{"$f":"IF(Descriptions!K46=\"Administration Costs\",Descriptions!I46,0)","v":0},null,{"$f":"IF(Descriptions!K46=\"Administration Costs\",WorkingP!AF45,0)","v":0},{"$f":"IF(Descriptions!L46=\"Administration Costs\",WorkingP!AG45,0)","v":0},{"$f":"IF(Descriptions!M46=\"Administration Costs\",WorkingP!AH45,0)","v":0},{"$f":"IF(Descriptions!N46=\"Administration Costs\",WorkingP!AI45,0)","v":0},0,{"$f":"'Prior Year Comparative'!W918","v":0},null,null,null,null,null,null,null,null,null,null,null,null,null,null,null,null,null,null,0,"0"]
[{"$f":"IF(Descriptions!K47=\"Administration Costs\",Descriptions!I47,0)","v":0},null,{"$f":"IF(Descriptions!K47=\"Administration Costs\",WorkingP!AF46,0)","v":0},{"$f":"IF(Descriptions!L47=\"Administration Costs\",WorkingP!AG46,0)","v":0},{"$f":"IF(Descriptions!M47=\"Administration Costs\",WorkingP!AH46,0)","v":0},{"$f":"IF(Descriptions!N47=\"Administration Costs\",WorkingP!AI46,0)","v":0},0,{"$f":"'Prior Year Comparative'!W919","v":0},null,null,null,null,null,null,null,null,null,null,null,null,null,null,null,null,null,null,0,"0"]
[{"$f":"IF(Descriptions!K48=\"Administration Costs\",Descriptions!I48,0)","v":0},null,{"$f":"IF(Descriptions!K48=\"Administration Costs\",WorkingP!AF47,0)","v":0},{"$f":"IF(Descriptions!L48=\"Administration Costs\",WorkingP!AG47,0)","v":0},{"$f":"IF(Descriptions!M48=\"Administration Costs\",WorkingP!AH47,0)","v":0},{"$f":"IF(Descriptions!N48=\"Administration Costs\",WorkingP!AI47,0)","v":0},0,{"$f":"'Prior Year Comparative'!W920","v":0},null,null,null,null,null,null,null,null,null,null,null,null,null,null,null,null,null,null,0,"0"]
[{"$f":"IF(Descriptions!K49=\"Administration Costs\",Descriptions!I49,0)","v":0},null,{"$f":"IF(Descriptions!K49=\"Administration Costs\",WorkingP!AF48,0)","v":0},{"$f":"IF(Descriptions!L49=\"Administration Costs\",WorkingP!AG48,0)","v":0},{"$f":"IF(Descriptions!M49=\"Administration Costs\",WorkingP!AH48,0)","v":0},{"$f":"IF(Descriptions!N49=\"Administration Costs\",WorkingP!AI48,0)","v":0},0,{"$f":"'Prior Year Comparative'!W921","v":0},null,null,null,null,null,null,null,null,null,null,null,null,null,null,null,null,null,null,0,"0"]
[{"$f":"IF(Descriptions!K50=\"Administration Costs\",Descriptions!I50,0)","v":0},null,{"$f":"IF(Descriptions!K50=\"Administration Costs\",WorkingP!AF49,0)","v":0},{"$f":"IF(Descriptions!L50=\"Administration Costs\",WorkingP!AG49,0)","v":0},{"$f":"IF(Descriptions!M50=\"Administration Costs\",WorkingP!AH49,0)","v":0},{"$f":"IF(Descriptions!N50=\"Administration Costs\",WorkingP!AI49,0)","v":0},0,{"$f":"'Prior Year Comparative'!W922","v":0},null,null,null,null,null,null,null,null,null,null,null,null,null,null,null,null,null,null,0,"0"]
[{"$f":"IF(Descriptions!K51=\"Administration Costs\",Descriptions!I51,0)","v":0},null,{"$f":"IF(Descriptions!K51=\"Administration Costs\",WorkingP!AF50,0)","v":0},{"$f":"IF(Descriptions!L51=\"Administration Costs\",WorkingP!AG50,0)","v":0},{"$f":"IF(Descriptions!M51=\"Administration Costs\",WorkingP!AH50,0)","v":0},{"$f":"IF(Descriptions!N51=\"Administration Costs\",WorkingP!AI50,0)","v":0},0,{"$f":"'Prior Year Comparative'!W923","v":0},null,null,null,null,null,null,null,null,null,null,null,null,null,null,null,null,null,null,0,"0"]
[{"$f":"IF(Descriptions!K52=\"Administration Costs\",Descriptions!I52,0)","v":0},null,{"$f":"IF(Descriptions!K52=\"Administration Costs\",WorkingP!AF51,0)","v":0},{"$f":"IF(Descriptions!L52=\"Administration Costs\",WorkingP!AG51,0)","v":0},{"$f":"IF(Descriptions!M52=\"Administration Costs\",WorkingP!AH51,0)","v":0},{"$f":"IF(Descriptions!N52=\"Administration Costs\",WorkingP!AI51,0)","v":0},0,{"$f":"'Prior Year Comparative'!W924","v":0},null,null,null,null,null,null,null,null,null,null,null,null,null,null,null,null,null,null,0,"0"]
[{"$f":"IF(Descriptions!K53=\"Administration Costs\",Descriptions!I53,0)","v":0},null,{"$f":"IF(Descriptions!K53=\"Administration Costs\",WorkingP!AF52,0)","v":0},{"$f":"IF(Descriptions!L53=\"Administration Costs\",WorkingP!AG52,0)","v":0},{"$f":"IF(Descriptions!M53=\"Administration Costs\",WorkingP!AH52,0)","v":0},{"$f":"IF(Descriptions!N53=\"Administration Costs\",WorkingP!AI52,0)","v":0},0,{"$f":"'Prior Year Comparative'!W925","v":0},null,null,null,null,null,null,null,null,null,null,null,null,null,null,null,null,null,null,0,"0"]
[{"$f":"IF(Descriptions!K54=\"Administration Costs\",Descriptions!I54,0)","v":0},null,{"$f":"IF(Descriptions!K54=\"Administration Costs\",WorkingP!AF53,0)","v":0},{"$f":"IF(Descriptions!L54=\"Administration Costs\",WorkingP!AG53,0)","v":0},{"$f":"IF(Descriptions!M54=\"Administration Costs\",WorkingP!AH53,0)","v":0},{"$f":"IF(Descriptions!N54=\"Administration Costs\",WorkingP!AI53,0)","v":0},0,{"$f":"'Prior Year Comparative'!W926","v":0},null,null,null,null,null,null,null,null,null,null,null,null,null,null,null,null,null,null,0,"0"]
[{"$f":"IF(Descriptions!K55=\"Administration Costs\",Descriptions!I55,0)","v":0},null,{"$f":"IF(Descriptions!K55=\"Administration Costs\",WorkingP!AF54,0)","v":0},{"$f":"IF(Descriptions!L55=\"Administration Costs\",WorkingP!AG54,0)","v":0},{"$f":"IF(Descriptions!M55=\"Administration Costs\",WorkingP!AH54,0)","v":0},{"$f":"IF(Descriptions!N55=\"Administration Costs\",WorkingP!AI54,0)","v":0},0,{"$f":"'Prior Year Comparative'!W927","v":0},null,null,null,null,null,null,null,null,null,null,null,null,null,null,null,null,null,null,0,"0"]
[{"$f":"IF(Descriptions!K56=\"Administration Costs\",Descriptions!I56,0)","v":0},null,{"$f":"IF(Descriptions!K56=\"Administration Costs\",WorkingP!AF55,0)","v":0},{"$f":"IF(Descriptions!L56=\"Administration Costs\",WorkingP!AG55,0)","v":0},{"$f":"IF(Descriptions!M56=\"Administration Costs\",WorkingP!AH55,0)","v":0},{"$f":"IF(Descriptions!N56=\"Administration Costs\",WorkingP!AI55,0)","v":0},0,{"$f":"'Prior Year Comparative'!W928","v":0},null,null,null,null,null,null,null,null,null,null,null,null,null,null,null,null,null,null,0,"0"]
[{"$f":"IF(Descriptions!K57=\"Administration Costs\",Descriptions!I57,0)","v":0},null,{"$f":"IF(Descriptions!K57=\"Administration Costs\",WorkingP!AF56,0)","v":0},{"$f":"IF(Descriptions!L57=\"Administration Costs\",WorkingP!AG56,0)","v":0},{"$f":"IF(Descriptions!M57=\"Administration Costs\",WorkingP!AH56,0)","v":0},{"$f":"IF(Descriptions!N57=\"Administration Costs\",WorkingP!AI56,0)","v":0},0,{"$f":"'Prior Year Comparative'!W929","v":0},null,null,null,null,null,null,null,null,null,null,null,null,null,null,null,null,null,null,0,"0"]
[{"$f":"IF(Descriptions!K58=\"Administration Costs\",Descriptions!I58,0)","v":0},null,{"$f":"IF(Descriptions!K58=\"Administration Costs\",WorkingP!AF57,0)","v":0},{"$f":"IF(Descriptions!L58=\"Administration Costs\",WorkingP!AG57,0)","v":0},{"$f":"IF(Descriptions!M58=\"Administration Costs\",WorkingP!AH57,0)","v":0},{"$f":"IF(Descriptions!N58=\"Administration Costs\",WorkingP!AI57,0)","v":0},0,{"$f":"'Prior Year Comparative'!W930","v":0},null,null,null,null,null,null,null,null,null,null,null,null,null,null,null,null,null,null,0,"0"]
[{"$f":"IF(Descriptions!K59=\"Administration Costs\",Descriptions!I59,0)","v":0},null,{"$f":"IF(Descriptions!K59=\"Administration Costs\",WorkingP!AF58,0)","v":0},{"$f":"IF(Descriptions!L59=\"Administration Costs\",WorkingP!AG58,0)","v":0},{"$f":"IF(Descriptions!M59=\"Administration Costs\",WorkingP!AH58,0)","v":0},{"$f":"IF(Descriptions!N59=\"Administration Costs\",WorkingP!AI58,0)","v":0},0,{"$f":"'Prior Year Comparative'!W931","v":0},null,null,null,null,null,null,null,null,null,null,null,null,null,null,null,null,null,null,0,"0"]
[{"$f":"IF(Descriptions!K60=\"Administration Costs\",Descriptions!I60,0)","v":0},null,{"$f":"IF(Descriptions!K60=\"Administration Costs\",WorkingP!AF59,0)","v":0},{"$f":"IF(Descriptions!L60=\"Administration Costs\",WorkingP!AG59,0)","v":0},{"$f":"IF(Descriptions!M60=\"Administration Costs\",WorkingP!AH59,0)","v":0},{"$f":"IF(Descriptions!N60=\"Administration Costs\",WorkingP!AI59,0)","v":0},0,{"$f":"'Prior Year Comparative'!W932","v":0},null,null,null,null,null,null,null,null,null,null,null,null,null,null,null,null,null,null,0,"0"]
[{"$f":"IF(Descriptions!K61=\"Administration Costs\",Descriptions!I61,0)","v":0},null,{"$f":"IF(Descriptions!K61=\"Administration Costs\",WorkingP!AF60,0)","v":0},{"$f":"IF(Descriptions!L61=\"Administration Costs\",WorkingP!AG60,0)","v":0},{"$f":"IF(Descriptions!M61=\"Administration Costs\",WorkingP!AH60,0)","v":0},{"$f":"IF(Descriptions!N61=\"Administration Costs\",WorkingP!AI60,0)","v":0},0,{"$f":"'Prior Year Comparative'!W933","v":0},null,null,null,null,null,null,null,null,null,null,null,null,null,null,null,null,null,null,0,"0"]
[{"$f":"IF(Descriptions!K62=\"Administration Costs\",Descriptions!I62,0)","v":0},null,{"$f":"IF(Descriptions!K62=\"Administration Costs\",WorkingP!AF61,0)","v":0},{"$f":"IF(Descriptions!L62=\"Administration Costs\",WorkingP!AG61,0)","v":0},{"$f":"IF(Descriptions!M62=\"Administration Costs\",WorkingP!AH61,0)","v":0},{"$f":"IF(Descriptions!N62=\"Administration Costs\",WorkingP!AI61,0)","v":0},0,{"$f":"'Prior Year Comparative'!W934","v":0},null,null,null,null,null,null,null,null,null,null,null,null,null,null,null,null,null,null,0,"0"]
[{"$f":"IF(Descriptions!K63=\"Administration Costs\",Descriptions!I63,0)","v":0},null,{"$f":"IF(Descriptions!K63=\"Administration Costs\",WorkingP!AF62,0)","v":0},{"$f":"IF(Descriptions!L63=\"Administration Costs\",WorkingP!AG62,0)","v":0},{"$f":"IF(Descriptions!M63=\"Administration Costs\",WorkingP!AH62,0)","v":0},{"$f":"IF(Descriptions!N63=\"Administration Costs\",WorkingP!AI62,0)","v":0},0,{"$f":"'Prior Year Comparative'!W935","v":0},null,null,null,null,null,null,null,null,null,null,null,null,null,null,null,null,null,null,0,"0"]
[{"$f":"IF(Descriptions!K64=\"Administration Costs\",Descriptions!I64,0)","v":0},null,{"$f":"IF(Descriptions!K64=\"Administration Costs\",WorkingP!AF63,0)","v":0},{"$f":"IF(Descriptions!L64=\"Administration Costs\",WorkingP!AG63,0)","v":0},{"$f":"IF(Descriptions!M64=\"Administration Costs\",WorkingP!AH63,0)","v":0},{"$f":"IF(Descriptions!N64=\"Administration Costs\",WorkingP!AI63,0)","v":0},0,{"$f":"'Prior Year Comparative'!W936","v":0},null,null,null,null,null,null,null,null,null,null,null,null,null,null,null,null,null,null,0,"0"]
[{"$f":"IF(Descriptions!K65=\"Administration Costs\",Descriptions!I65,0)","v":0},null,{"$f":"IF(Descriptions!K65=\"Administration Costs\",WorkingP!AF64,0)","v":0},{"$f":"IF(Descriptions!L65=\"Administration Costs\",WorkingP!AG64,0)","v":0},{"$f":"IF(Descriptions!M65=\"Administration Costs\",WorkingP!AH64,0)","v":0},{"$f":"IF(Descriptions!N65=\"Administration Costs\",WorkingP!AI64,0)","v":0},0,{"$f":"'Prior Year Comparative'!W937","v":0},null,null,null,null,null,null,null,null,null,null,null,null,null,null,null,null,null,null,0,"0"]
[{"$f":"IF(Descriptions!K66=\"Administration Costs\",Descriptions!I66,0)","v":0},null,{"$f":"IF(Descriptions!K66=\"Administration Costs\",WorkingP!AF65,0)","v":0},{"$f":"IF(Descriptions!L66=\"Administration Costs\",WorkingP!AG65,0)","v":0},{"$f":"IF(Descriptions!M66=\"Administration Costs\",WorkingP!AH65,0)","v":0},{"$f":"IF(Descriptions!N66=\"Administration Costs\",WorkingP!AI65,0)","v":0},0,{"$f":"'Prior Year Comparative'!W938","v":0},null,null,null,null,null,null,null,null,null,null,null,null,null,null,null,null,null,null,0,"0"]
[{"$f":"IF(Descriptions!K67=\"Administration Costs\",Descriptions!I67,0)","v":0},null,{"$f":"IF(Descriptions!K67=\"Administration Costs\",WorkingP!AF66,0)","v":0},{"$f":"IF(Descriptions!L67=\"Administration Costs\",WorkingP!AG66,0)","v":0},{"$f":"IF(Descriptions!M67=\"Administration Costs\",WorkingP!AH66,0)","v":0},{"$f":"IF(Descriptions!N67=\"Administration Costs\",WorkingP!AI66,0)","v":0},0,{"$f":"'Prior Year Comparative'!W939","v":0},null,null,null,null,null,null,null,null,null,null,null,null,null,null,null,null,null,null,0,"0"]
[{"$f":"IF(Descriptions!K68=\"Administration Costs\",Descriptions!I68,0)","v":0},null,{"$f":"IF(Descriptions!K68=\"Administration Costs\",WorkingP!AF67,0)","v":0},{"$f":"IF(Descriptions!L68=\"Administration Costs\",WorkingP!AG67,0)","v":0},{"$f":"IF(Descriptions!M68=\"Administration Costs\",WorkingP!AH67,0)","v":0},{"$f":"IF(Descriptions!N68=\"Administration Costs\",WorkingP!AI67,0)","v":0},0,{"$f":"'Prior Year Comparative'!W940","v":0},null,null,null,null,null,null,null,null,null,null,null,null,null,null,null,null,null,null,0,"0"]
[{"$f":"IF(Descriptions!K69=\"Administration Costs\",Descriptions!I69,0)","v":0},null,{"$f":"IF(Descriptions!K69=\"Administration Costs\",WorkingP!AF68,0)","v":0},{"$f":"IF(Descriptions!L69=\"Administration Costs\",WorkingP!AG68,0)","v":0},{"$f":"IF(Descriptions!M69=\"Administration Costs\",WorkingP!AH68,0)","v":0},{"$f":"IF(Descriptions!N69=\"Administration Costs\",WorkingP!AI68,0)","v":0},0,{"$f":"'Prior Year Comparative'!W941","v":0},null,null,null,null,null,null,null,null,null,null,null,null,null,null,null,null,null,null,0,"0"]
[{"$f":"IF(Descriptions!K70=\"Administration Costs\",Descriptions!I70,0)","v":0},null,{"$f":"IF(Descriptions!K70=\"Administration Costs\",WorkingP!AF69,0)","v":0},{"$f":"IF(Descriptions!L70=\"Administration Costs\",WorkingP!AG69,0)","v":0},{"$f":"IF(Descriptions!M70=\"Administration Costs\",WorkingP!AH69,0)","v":0},{"$f":"IF(Descriptions!N70=\"Administration Costs\",WorkingP!AI69,0)","v":0},0,{"$f":"'Prior Year Comparative'!W942","v":0},null,null,null,null,null,null,null,null,null,null,null,null,null,null,null,null,null,null,0,"0"]
[{"$f":"IF(Descriptions!K71=\"Administration Costs\",Descriptions!I71,0)","v":0},null,{"$f":"IF(Descriptions!K71=\"Administration Costs\",WorkingP!AF70,0)","v":0},{"$f":"IF(Descriptions!L71=\"Administration Costs\",WorkingP!AG70,0)","v":0},{"$f":"IF(Descriptions!M71=\"Administration Costs\",WorkingP!AH70,0)","v":0},{"$f":"IF(Descriptions!N71=\"Administration Costs\",WorkingP!AI70,0)","v":0},0,{"$f":"'Prior Year Comparative'!W943","v":0},null,null,null,null,null,null,null,null,null,null,null,null,null,null,null,null,null,null,0,"0"]
[{"$f":"IF(Descriptions!K72=\"Administration Costs\",Descriptions!I72,0)","v":0},null,{"$f":"IF(Descriptions!K72=\"Administration Costs\",WorkingP!AF71,0)","v":0},{"$f":"IF(Descriptions!L72=\"Administration Costs\",WorkingP!AG71,0)","v":0},{"$f":"IF(Descriptions!M72=\"Administration Costs\",WorkingP!AH71,0)","v":0},{"$f":"IF(Descriptions!N72=\"Administration Costs\",WorkingP!AI71,0)","v":0},0,{"$f":"'Prior Year Comparative'!W944","v":0},null,null,null,null,null,null,null,null,null,null,null,null,null,null,null,null,null,null,0,"0"]
[{"$f":"IF(Descriptions!K73=\"Administration Costs\",Descriptions!I73,0)","v":0},null,{"$f":"IF(Descriptions!K73=\"Administration Costs\",WorkingP!AF72,0)","v":0},{"$f":"IF(Descriptions!L73=\"Administration Costs\",WorkingP!AG72,0)","v":0},{"$f":"IF(Descriptions!M73=\"Administration Costs\",WorkingP!AH72,0)","v":0},{"$f":"IF(Descriptions!N73=\"Administration Costs\",WorkingP!AI72,0)","v":0},0,{"$f":"'Prior Year Comparative'!W945","v":0},null,null,null,null,null,null,null,null,null,null,null,null,null,null,null,null,null,null,0,"0"]
[{"$f":"IF(Descriptions!K74=\"Administration Costs\",Descriptions!I74,0)","v":0},null,{"$f":"IF(Descriptions!K74=\"Administration Costs\",WorkingP!AF73,0)","v":0},{"$f":"IF(Descriptions!L74=\"Administration Costs\",WorkingP!AG73,0)","v":0},{"$f":"IF(Descriptions!M74=\"Administration Costs\",WorkingP!AH73,0)","v":0},{"$f":"IF(Descriptions!N74=\"Administration Costs\",WorkingP!AI73,0)","v":0},0,{"$f":"'Prior Year Comparative'!W946","v":0},null,null,null,null,null,null,null,null,null,null,null,null,null,null,null,null,null,null,0,"0"]
[{"$f":"IF(Descriptions!K75=\"Administration Costs\",Descriptions!I75,0)","v":0},null,{"$f":"IF(Descriptions!K75=\"Administration Costs\",WorkingP!AF74,0)","v":0},{"$f":"IF(Descriptions!L75=\"Administration Costs\",WorkingP!AG74,0)","v":0},{"$f":"IF(Descriptions!M75=\"Administration Costs\",WorkingP!AH74,0)","v":0},{"$f":"IF(Descriptions!N75=\"Administration Costs\",WorkingP!AI74,0)","v":0},0,{"$f":"'Prior Year Comparative'!W947","v":0},null,null,null,null,null,null,null,null,null,null,null,null,null,null,null,null,null,null,0,"0"]
[{"$f":"IF(Descriptions!K76=\"Administration Costs\",Descriptions!I76,0)","v":0},null,{"$f":"IF(Descriptions!K76=\"Administration Costs\",WorkingP!AF75,0)","v":0},{"$f":"IF(Descriptions!L76=\"Administration Costs\",WorkingP!AG75,0)","v":0},{"$f":"IF(Descriptions!M76=\"Administration Costs\",WorkingP!AH75,0)","v":0},{"$f":"IF(Descriptions!N76=\"Administration Costs\",WorkingP!AI75,0)","v":0},0,{"$f":"'Prior Year Comparative'!W948","v":0},null,null,null,null,null,null,null,null,null,null,null,null,null,null,null,null,null,null,0,"0"]
[{"$f":"IF(Descriptions!K77=\"Administration Costs\",Descriptions!I77,0)","v":0},null,{"$f":"IF(Descriptions!K77=\"Administration Costs\",WorkingP!AF76,0)","v":0},{"$f":"IF(Descriptions!L77=\"Administration Costs\",WorkingP!AG76,0)","v":0},{"$f":"IF(Descriptions!M77=\"Administration Costs\",WorkingP!AH76,0)","v":0},{"$f":"IF(Descriptions!N77=\"Administration Costs\",WorkingP!AI76,0)","v":0},0,{"$f":"'Prior Year Comparative'!W949","v":0},null,null,null,null,null,null,null,null,null,null,null,null,null,null,null,null,null,null,0,"0"]
[{"$f":"IF(Descriptions!K78=\"Administration Costs\",Descriptions!I78,0)","v":0},null,{"$f":"IF(Descriptions!K78=\"Administration Costs\",WorkingP!AF77,0)","v":0},{"$f":"IF(Descriptions!L78=\"Administration Costs\",WorkingP!AG77,0)","v":0},{"$f":"IF(Descriptions!M78=\"Administration Costs\",WorkingP!AH77,0)","v":0},{"$f":"IF(Descriptions!N78=\"Administration Costs\",WorkingP!AI77,0)","v":0},0,{"$f":"'Prior Year Comparative'!W950","v":0},null,null,null,null,null,null,null,null,null,null,null,null,null,null,null,null,null,null,0,"0"]
[{"$f":"IF(Descriptions!K79=\"Administration Costs\",Descriptions!I79,0)","v":0},null,{"$f":"IF(Descriptions!K79=\"Administration Costs\",WorkingP!AF78,0)","v":0},{"$f":"IF(Descriptions!L79=\"Administration Costs\",WorkingP!AG78,0)","v":0},{"$f":"IF(Descriptions!M79=\"Administration Costs\",WorkingP!AH78,0)","v":0},{"$f":"IF(Descriptions!N79=\"Administration Costs\",WorkingP!AI78,0)","v":0},0,{"$f":"'Prior Year Comparative'!W951","v":0},null,null,null,null,null,null,null,null,null,null,null,null,null,null,null,null,null,null,0,"0"]
[{"$f":"IF(Descriptions!K80=\"Administration Costs\",Descriptions!I80,0)","v":0},null,{"$f":"IF(Descriptions!K80=\"Administration Costs\",WorkingP!AF79,0)","v":0},{"$f":"IF(Descriptions!L80=\"Administration Costs\",WorkingP!AG79,0)","v":0},{"$f":"IF(Descriptions!M80=\"Administration Costs\",WorkingP!AH79,0)","v":0},{"$f":"IF(Descriptions!N80=\"Administration Costs\",WorkingP!AI79,0)","v":0},0,{"$f":"'Prior Year Comparative'!W952","v":0},null,null,null,null,null,null,null,null,null,null,null,null,null,null,null,null,null,null,0,"0"]
[{"$f":"IF(Descriptions!K81=\"Administration Costs\",Descriptions!I81,0)","v":0},null,{"$f":"IF(Descriptions!K81=\"Administration Costs\",WorkingP!AF80,0)","v":0},{"$f":"IF(Descriptions!L81=\"Administration Costs\",WorkingP!AG80,0)","v":0},{"$f":"IF(Descriptions!M81=\"Administration Costs\",WorkingP!AH80,0)","v":0},{"$f":"IF(Descriptions!N81=\"Administration Costs\",WorkingP!AI80,0)","v":0},0,{"$f":"'Prior Year Comparative'!W953","v":0},null,null,null,null,null,null,null,null,null,null,null,null,null,null,null,null,null,null,0,"0"]
[{"$f":"IF(Descriptions!K82=\"Administration Costs\",Descriptions!I82,0)","v":0},null,{"$f":"IF(Descriptions!K82=\"Administration Costs\",WorkingP!AF81,0)","v":0},{"$f":"IF(Descriptions!L82=\"Administration Costs\",WorkingP!AG81,0)","v":0},{"$f":"IF(Descriptions!M82=\"Administration Costs\",WorkingP!AH81,0)","v":0},{"$f":"IF(Descriptions!N82=\"Administration Costs\",WorkingP!AI81,0)","v":0},0,{"$f":"'Prior Year Comparative'!W954","v":0},null,null,null,null,null,null,null,null,null,null,null,null,null,null,null,null,null,null,{"$f":"SUM(C1063:H1063)","v":0},{"$f":"IF(AA1063=0,\"0\",\"1\")","v":"0"}]
[{"$f":"IF(Descriptions!K83=\"Administration Costs\",Descriptions!I83,0)","v":0},null,{"$f":"IF(Descriptions!K83=\"Administration Costs\",WorkingP!AF82,0)","v":0},{"$f":"IF(Descriptions!L83=\"Administration Costs\",WorkingP!AG82,0)","v":0},{"$f":"IF(Descriptions!M83=\"Administration Costs\",WorkingP!AH82,0)","v":0},{"$f":"IF(Descriptions!N83=\"Administration Costs\",WorkingP!AI82,0)","v":0},0,{"$f":"'Prior Year Comparative'!W955","v":0},null,null,null,null,null,null,null,null,null,null,null,null,null,null,null,null,null,null,{"$f":"SUM(C1064:H1064)","v":0},"0"]
[{"$f":"IF(Descriptions!K84=\"Administration Costs\",Descriptions!I84,0)","v":0},null,{"$f":"IF(Descriptions!K84=\"Administration Costs\",WorkingP!AF83,0)","v":0},{"$f":"IF(Descriptions!L84=\"Administration Costs\",WorkingP!AG83,0)","v":0},{"$f":"IF(Descriptions!M84=\"Administration Costs\",WorkingP!AH83,0)","v":0},{"$f":"IF(Descriptions!N84=\"Administration Costs\",WorkingP!AI83,0)","v":0},0,{"$f":"'Prior Year Comparative'!W956","v":0},null,null,null,null,null,null,null,null,null,null,null,null,null,null,null,null,null,null,{"$f":"SUM(C1065:H1065)","v":0},"0"]
[null,null,null,null,null,null,null,null,null,null,null,null,null,null,null,null,null,null,null,null,null,null,null,null,null,null,{"$f":"AA1067","v":0},"0"]
[null,null,{"$f":"SUM(C1011:C1065)","v":0},0,0,0,0,0,null,null,null,null,null,null,null,null,null,null,null,null,null,null,null,null,null,null,{"$f":"SUM(AA1011:AA1065)","v":0},"0"]
[null,null,null,null,null,null,null,null,null,null,null,null,null,null,null,null,null,null,null,null,null,null,null,null,null,null,{"$f":"AA1069","v":0},"0"]
["OTHER EXPENDITURE",null,null,null,null,null,null,null,null,null,null,null,null,null,null,null,null,null,null,null,null,null,null,null,null,null,{"$f":"SUM(AA1070:AA1122)","v":0},"0"]
["Mission and Evangelism Costs",null,{"$f":"WorkingP!AF21","v":0},{"$f":"WorkingP!AG21","v":0},{"$f":"WorkingP!AH21","v":0},{"$f":"WorkingP!AI21","v":0},{"$f":"SUM(C1070:F1070)","v":0},{"$f":"'Prior Year Comparative'!W959","v":0},null,null,null,null,null,null,null,null,null,null,null,null,null,null,null,null,null,null,{"$f":"SUM(C1070:H1070)","v":0},"0"]
["Churchyard Expenses",null,{"$f":"WorkingP!AF12","v":0},{"$f":"WorkingP!AG12","v":0},{"$f":"WorkingP!AH12","v":0},{"$f":"WorkingP!AI12","v":0},{"$f":"SUM(C1071:F1071)","v":0},{"$f":"'Prior Year Comparative'!W960","v":0},null,null,null,null,null,null,null,null,null,null,null,null,null,null,null,null,null,null,{"$f":"SUM(C1071:H1071)","v":0},"0"]
["Trading Costs - Property",null,{"$f":"WorkingP!AF32","v":0},{"$f":"WorkingP!AG32","v":0},{"$f":"WorkingP!AH32","v":0},{"$f":"WorkingP!AI32","v":0},{"$f":"SUM(C1072:F1072)","v":0},{"$f":"'Prior Year Comparative'!W961","v":0},null,null,null,null,null,null,null,null,null,null,null,null,null,null,null,null,null,null,{"$f":"SUM(C1072:H1072)","v":0},"0"]
[{"$f":"IF(Descriptions!K35=\"Other Expenditure\",Descriptions!I35,0)","v":0},null,{"$f":"IF(Descriptions!K35=\"Other Expenditure\",WorkingP!AF34,0)","v":0},{"$f":"IF(Descriptions!L35=\"Other Expenditure\",WorkingP!AG34,0)","v":0},{"$f":"IF(Descriptions!M35=\"Other Expenditure\",WorkingP!AH34,0)","v":0},{"$f":"IF(Descriptions!N35=\"Other Expenditure\",WorkingP!AI34,0)","v":0},{"$f":"SUM(C1073:F1073)","v":0},{"$f":"'Prior Year Comparative'!W962","v":0},null,null,null,null,null,null,null,null,null,null,null,null,null,null,null,null,null,null,{"$f":"SUM(C1073:H1073)","v":0},{"$f":"IF(AA1073=0,\"0\",\"1\")","v":"0"}]
[{"$f":"IF(Descriptions!K36=\"Other Expenditure\",Descriptions!I36,0)","v":0},null,{"$f":"IF(Descriptions!K36=\"Other Expenditure\",WorkingP!AF35,0)","v":0},{"$f":"IF(Descriptions!L36=\"Other Expenditure\",WorkingP!AG35,0)","v":0},{"$f":"IF(Descriptions!M36=\"Other Expenditure\",WorkingP!AH35,0)","v":0},{"$f":"IF(Descriptions!N36=\"Other Expenditure\",WorkingP!AI35,0)","v":0},{"$f":"SUM(C1074:F1074)","v":0},{"$f":"'Prior Year Comparative'!W963","v":0},null,null,null,null,null,null,null,null,null,null,null,null,null,null,null,null,null,null,0,"0"]
[{"$f":"IF(Descriptions!K37=\"Other Expenditure\",Descriptions!I37,0)","v":0},null,{"$f":"IF(Descriptions!K37=\"Other Expenditure\",WorkingP!AF36,0)","v":0},{"$f":"IF(Descriptions!L37=\"Other Expenditure\",WorkingP!AG36,0)","v":0},{"$f":"IF(Descriptions!M37=\"Other Expenditure\",WorkingP!AH36,0)","v":0},{"$f":"IF(Descriptions!N37=\"Other Expenditure\",WorkingP!AI36,0)","v":0},0,{"$f":"'Prior Year Comparative'!W964","v":0},null,null,null,null,null,null,null,null,null,null,null,null,null,null,null,null,null,null,0,"0"]
[{"$f":"IF(Descriptions!K38=\"Other Expenditure\",Descriptions!I38,0)","v":0},null,{"$f":"IF(Descriptions!K38=\"Other Expenditure\",WorkingP!AF37,0)","v":0},{"$f":"IF(Descriptions!L38=\"Other Expenditure\",WorkingP!AG37,0)","v":0},{"$f":"IF(Descriptions!M38=\"Other Expenditure\",WorkingP!AH37,0)","v":0},{"$f":"IF(Descriptions!N38=\"Other Expenditure\",WorkingP!AI37,0)","v":0},0,{"$f":"'Prior Year Comparative'!W965","v":0},null,null,null,null,null,null,null,null,null,null,null,null,null,null,null,null,null,null,0,"0"]
[{"$f":"IF(Descriptions!K39=\"Other Expenditure\",Descriptions!I39,0)","v":0},null,{"$f":"IF(Descriptions!K39=\"Other Expenditure\",WorkingP!AF38,0)","v":0},{"$f":"IF(Descriptions!L39=\"Other Expenditure\",WorkingP!AG38,0)","v":0},{"$f":"IF(Descriptions!M39=\"Other Expenditure\",WorkingP!AH38,0)","v":0},{"$f":"IF(Descriptions!N39=\"Other Expenditure\",WorkingP!AI38,0)","v":0},0,{"$f":"'Prior Year Comparative'!W966","v":0},null,null,null,null,null,null,null,null,null,null,null,null,null,null,null,null,null,null,0,"0"]
[{"$f":"IF(Descriptions!K40=\"Other Expenditure\",Descriptions!I40,0)","v":0},null,{"$f":"IF(Descriptions!K40=\"Other Expenditure\",WorkingP!AF39,0)","v":0},{"$f":"IF(Descriptions!L40=\"Other Expenditure\",WorkingP!AG39,0)","v":0},{"$f":"IF(Descriptions!M40=\"Other Expenditure\",WorkingP!AH39,0)","v":0},{"$f":"IF(Descriptions!N40=\"Other Expenditure\",WorkingP!AI39,0)","v":0},0,{"$f":"'Prior Year Comparative'!W967","v":0},null,null,null,null,null,null,null,null,null,null,null,null,null,null,null,null,null,null,0,"0"]
[{"$f":"IF(Descriptions!K41=\"Other Expenditure\",Descriptions!I41,0)","v":0},null,{"$f":"IF(Descriptions!K41=\"Other Expenditure\",WorkingP!AF40,0)","v":0},{"$f":"IF(Descriptions!L41=\"Other Expenditure\",WorkingP!AG40,0)","v":0},{"$f":"IF(Descriptions!M41=\"Other Expenditure\",WorkingP!AH40,0)","v":0},{"$f":"IF(Descriptions!N41=\"Other Expenditure\",WorkingP!AI40,0)","v":0},0,{"$f":"'Prior Year Comparative'!W968","v":0},null,null,null,null,null,null,null,null,null,null,null,null,null,null,null,null,null,null,0,"0"]
[{"$f":"IF(Descriptions!K42=\"Other Expenditure\",Descriptions!I42,0)","v":0},null,{"$f":"IF(Descriptions!K42=\"Other Expenditure\",WorkingP!AF41,0)","v":0},{"$f":"IF(Descriptions!L42=\"Other Expenditure\",WorkingP!AG41,0)","v":0},{"$f":"IF(Descriptions!M42=\"Other Expenditure\",WorkingP!AH41,0)","v":0},{"$f":"IF(Descriptions!N42=\"Other Expenditure\",WorkingP!AI41,0)","v":0},0,{"$f":"'Prior Year Comparative'!W969","v":0},null,null,null,null,null,null,null,null,null,null,null,null,null,null,null,null,null,null,0,"0"]
[{"$f":"IF(Descriptions!K43=\"Other Expenditure\",Descriptions!I43,0)","v":0},null,{"$f":"IF(Descriptions!K43=\"Other Expenditure\",WorkingP!AF42,0)","v":0},{"$f":"IF(Descriptions!L43=\"Other Expenditure\",WorkingP!AG42,0)","v":0},{"$f":"IF(Descriptions!M43=\"Other Expenditure\",WorkingP!AH42,0)","v":0},{"$f":"IF(Descriptions!N43=\"Other Expenditure\",WorkingP!AI42,0)","v":0},0,{"$f":"'Prior Year Comparative'!W970","v":0},null,null,null,null,null,null,null,null,null,null,null,null,null,null,null,null,null,null,0,"0"]
[{"$f":"IF(Descriptions!K44=\"Other Expenditure\",Descriptions!I44,0)","v":0},null,{"$f":"IF(Descriptions!K44=\"Other Expenditure\",WorkingP!AF43,0)","v":0},{"$f":"IF(Descriptions!L44=\"Other Expenditure\",WorkingP!AG43,0)","v":0},{"$f":"IF(Descriptions!M44=\"Other Expenditure\",WorkingP!AH43,0)","v":0},{"$f":"IF(Descriptions!N44=\"Other Expenditure\",WorkingP!AI43,0)","v":0},0,{"$f":"'Prior Year Comparative'!W971","v":0},null,null,null,null,null,null,null,null,null,null,null,null,null,null,null,null,null,null,0,"0"]
[{"$f":"IF(Descriptions!K45=\"Other Expenditure\",Descriptions!I45,0)","v":0},null,{"$f":"IF(Descriptions!K45=\"Other Expenditure\",WorkingP!AF44,0)","v":0},{"$f":"IF(Descriptions!L45=\"Other Expenditure\",WorkingP!AG44,0)","v":0},{"$f":"IF(Descriptions!M45=\"Other Expenditure\",WorkingP!AH44,0)","v":0},{"$f":"IF(Descriptions!N45=\"Other Expenditure\",WorkingP!AI44,0)","v":0},0,{"$f":"'Prior Year Comparative'!W972","v":0},null,null,null,null,null,null,null,null,null,null,null,null,null,null,null,null,null,null,0,"0"]
[{"$f":"IF(Descriptions!K46=\"Other Expenditure\",Descriptions!I46,0)","v":0},null,{"$f":"IF(Descriptions!K46=\"Other Expenditure\",WorkingP!AF45,0)","v":0},{"$f":"IF(Descriptions!L46=\"Other Expenditure\",WorkingP!AG45,0)","v":0},{"$f":"IF(Descriptions!M46=\"Other Expenditure\",WorkingP!AH45,0)","v":0},{"$f":"IF(Descriptions!N46=\"Other Expenditure\",WorkingP!AI45,0)","v":0},0,{"$f":"'Prior Year Comparative'!W973","v":0},null,null,null,null,null,null,null,null,null,null,null,null,null,null,null,null,null,null,0,"0"]
[{"$f":"IF(Descriptions!K47=\"Other Expenditure\",Descriptions!I47,0)","v":0},null,{"$f":"IF(Descriptions!K47=\"Other Expenditure\",WorkingP!AF46,0)","v":0},{"$f":"IF(Descriptions!L47=\"Other Expenditure\",WorkingP!AG46,0)","v":0},{"$f":"IF(Descriptions!M47=\"Other Expenditure\",WorkingP!AH46,0)","v":0},{"$f":"IF(Descriptions!N47=\"Other Expenditure\",WorkingP!AI46,0)","v":0},0,{"$f":"'Prior Year Comparative'!W974","v":0},null,null,null,null,null,null,null,null,null,null,null,null,null,null,null,null,null,null,0,"0"]
[{"$f":"IF(Descriptions!K48=\"Other Expenditure\",Descriptions!I48,0)","v":0},null,{"$f":"IF(Descriptions!K48=\"Other Expenditure\",WorkingP!AF47,0)","v":0},{"$f":"IF(Descriptions!L48=\"Other Expenditure\",WorkingP!AG47,0)","v":0},{"$f":"IF(Descriptions!M48=\"Other Expenditure\",WorkingP!AH47,0)","v":0},{"$f":"IF(Descriptions!N48=\"Other Expenditure\",WorkingP!AI47,0)","v":0},0,{"$f":"'Prior Year Comparative'!W975","v":0},null,null,null,null,null,null,null,null,null,null,null,null,null,null,null,null,null,null,0,"0"]
[{"$f":"IF(Descriptions!K49=\"Other Expenditure\",Descriptions!I49,0)","v":0},null,{"$f":"IF(Descriptions!K49=\"Other Expenditure\",WorkingP!AF48,0)","v":0},{"$f":"IF(Descriptions!L49=\"Other Expenditure\",WorkingP!AG48,0)","v":0},{"$f":"IF(Descriptions!M49=\"Other Expenditure\",WorkingP!AH48,0)","v":0},{"$f":"IF(Descriptions!N49=\"Other Expenditure\",WorkingP!AI48,0)","v":0},0,{"$f":"'Prior Year Comparative'!W976","v":0},null,null,null,null,null,null,null,null,null,null,null,null,null,null,null,null,null,null,0,"0"]
[{"$f":"IF(Descriptions!K50=\"Other Expenditure\",Descriptions!I50,0)","v":0},null,{"$f":"IF(Descriptions!K50=\"Other Expenditure\",WorkingP!AF49,0)","v":0},{"$f":"IF(Descriptions!L50=\"Other Expenditure\",WorkingP!AG49,0)","v":0},{"$f":"IF(Descriptions!M50=\"Other Expenditure\",WorkingP!AH49,0)","v":0},{"$f":"IF(Descriptions!N50=\"Other Expenditure\",WorkingP!AI49,0)","v":0},0,{"$f":"'Prior Year Comparative'!W977","v":0},null,null,null,null,null,null,null,null,null,null,null,null,null,null,null,null,null,null,0,"0"]
[{"$f":"IF(Descriptions!K51=\"Other Expenditure\",Descriptions!I51,0)","v":0},null,{"$f":"IF(Descriptions!K51=\"Other Expenditure\",WorkingP!AF50,0)","v":0},{"$f":"IF(Descriptions!L51=\"Other Expenditure\",WorkingP!AG50,0)","v":0},{"$f":"IF(Descriptions!M51=\"Other Expenditure\",WorkingP!AH50,0)","v":0},{"$f":"IF(Descriptions!N51=\"Other Expenditure\",WorkingP!AI50,0)","v":0},0,{"$f":"'Prior Year Comparative'!W978","v":0},null,null,null,null,null,null,null,null,null,null,null,null,null,null,null,null,null,null,0,"0"]
[{"$f":"IF(Descriptions!K52=\"Other Expenditure\",Descriptions!I52,0)","v":0},null,{"$f":"IF(Descriptions!K52=\"Other Expenditure\",WorkingP!AF51,0)","v":0},{"$f":"IF(Descriptions!L52=\"Other Expenditure\",WorkingP!AG51,0)","v":0},{"$f":"IF(Descriptions!M52=\"Other Expenditure\",WorkingP!AH51,0)","v":0},{"$f":"IF(Descriptions!N52=\"Other Expenditure\",WorkingP!AI51,0)","v":0},0,{"$f":"'Prior Year Comparative'!W979","v":0},null,null,null,null,null,null,null,null,null,null,null,null,null,null,null,null,null,null,0,"0"]
[{"$f":"IF(Descriptions!K53=\"Other Expenditure\",Descriptions!I53,0)","v":0},null,{"$f":"IF(Descriptions!K53=\"Other Expenditure\",WorkingP!AF52,0)","v":0},{"$f":"IF(Descriptions!L53=\"Other Expenditure\",WorkingP!AG52,0)","v":0},{"$f":"IF(Descriptions!M53=\"Other Expenditure\",WorkingP!AH52,0)","v":0},{"$f":"IF(Descriptions!N53=\"Other Expenditure\",WorkingP!AI52,0)","v":0},0,{"$f":"'Prior Year Comparative'!W980","v":0},null,null,null,null,null,null,null,null,null,null,null,null,null,null,null,null,null,null,0,"0"]
[{"$f":"IF(Descriptions!K54=\"Other Expenditure\",Descriptions!I54,0)","v":0},null,{"$f":"IF(Descriptions!K54=\"Other Expenditure\",WorkingP!AF53,0)","v":0},{"$f":"IF(Descriptions!L54=\"Other Expenditure\",WorkingP!AG53,0)","v":0},{"$f":"IF(Descriptions!M54=\"Other Expenditure\",WorkingP!AH53,0)","v":0},{"$f":"IF(Descriptions!N54=\"Other Expenditure\",WorkingP!AI53,0)","v":0},0,{"$f":"'Prior Year Comparative'!W981","v":0},null,null,null,null,null,null,null,null,null,null,null,null,null,null,null,null,null,null,0,"0"]
[{"$f":"IF(Descriptions!K55=\"Other Expenditure\",Descriptions!I55,0)","v":0},null,{"$f":"IF(Descriptions!K55=\"Other Expenditure\",WorkingP!AF54,0)","v":0},{"$f":"IF(Descriptions!L55=\"Other Expenditure\",WorkingP!AG54,0)","v":0},{"$f":"IF(Descriptions!M55=\"Other Expenditure\",WorkingP!AH54,0)","v":0},{"$f":"IF(Descriptions!N55=\"Other Expenditure\",WorkingP!AI54,0)","v":0},0,{"$f":"'Prior Year Comparative'!W982","v":0},null,null,null,null,null,null,null,null,null,null,null,null,null,null,null,null,null,null,0,"0"]
[{"$f":"IF(Descriptions!K56=\"Other Expenditure\",Descriptions!I56,0)","v":0},null,{"$f":"IF(Descriptions!K56=\"Other Expenditure\",WorkingP!AF55,0)","v":0},{"$f":"IF(Descriptions!L56=\"Other Expenditure\",WorkingP!AG55,0)","v":0},{"$f":"IF(Descriptions!M56=\"Other Expenditure\",WorkingP!AH55,0)","v":0},{"$f":"IF(Descriptions!N56=\"Other Expenditure\",WorkingP!AI55,0)","v":0},0,{"$f":"'Prior Year Comparative'!W983","v":0},null,null,null,null,null,null,null,null,null,null,null,null,null,null,null,null,null,null,0,"0"]
[{"$f":"IF(Descriptions!K57=\"Other Expenditure\",Descriptions!I57,0)","v":0},null,{"$f":"IF(Descriptions!K57=\"Other Expenditure\",WorkingP!AF56,0)","v":0},{"$f":"IF(Descriptions!L57=\"Other Expenditure\",WorkingP!AG56,0)","v":0},{"$f":"IF(Descriptions!M57=\"Other Expenditure\",WorkingP!AH56,0)","v":0},{"$f":"IF(Descriptions!N57=\"Other Expenditure\",WorkingP!AI56,0)","v":0},0,{"$f":"'Prior Year Comparative'!W984","v":0},null,null,null,null,null,null,null,null,null,null,null,null,null,null,null,null,null,null,0,"0"]
[{"$f":"IF(Descriptions!K58=\"Other Expenditure\",Descriptions!I58,0)","v":0},null,{"$f":"IF(Descriptions!K58=\"Other Expenditure\",WorkingP!AF57,0)","v":0},{"$f":"IF(Descriptions!L58=\"Other Expenditure\",WorkingP!AG57,0)","v":0},{"$f":"IF(Descriptions!M58=\"Other Expenditure\",WorkingP!AH57,0)","v":0},{"$f":"IF(Descriptions!N58=\"Other Expenditure\",WorkingP!AI57,0)","v":0},0,{"$f":"'Prior Year Comparative'!W985","v":0},null,null,null,null,null,null,null,null,null,null,null,null,null,null,null,null,null,null,0,"0"]
[{"$f":"IF(Descriptions!K59=\"Other Expenditure\",Descriptions!I59,0)","v":0},null,{"$f":"IF(Descriptions!K59=\"Other Expenditure\",WorkingP!AF58,0)","v":0},{"$f":"IF(Descriptions!L59=\"Other Expenditure\",WorkingP!AG58,0)","v":0},{"$f":"IF(Descriptions!M59=\"Other Expenditure\",WorkingP!AH58,0)","v":0},{"$f":"IF(Descriptions!N59=\"Other Expenditure\",WorkingP!AI58,0)","v":0},0,{"$f":"'Prior Year Comparative'!W986","v":0},null,null,null,null,null,null,null,null,null,null,null,null,null,null,null,null,null,null,0,"0"]
[{"$f":"IF(Descriptions!K60=\"Other Expenditure\",Descriptions!I60,0)","v":0},null,{"$f":"IF(Descriptions!K60=\"Other Expenditure\",WorkingP!AF59,0)","v":0},{"$f":"IF(Descriptions!L60=\"Other Expenditure\",WorkingP!AG59,0)","v":0},{"$f":"IF(Descriptions!M60=\"Other Expenditure\",WorkingP!AH59,0)","v":0},{"$f":"IF(Descriptions!N60=\"Other Expenditure\",WorkingP!AI59,0)","v":0},0,{"$f":"'Prior Year Comparative'!W987","v":0},null,null,null,null,null,null,null,null,null,null,null,null,null,null,null,null,null,null,0,"0"]
[{"$f":"IF(Descriptions!K61=\"Other Expenditure\",Descriptions!I61,0)","v":0},null,{"$f":"IF(Descriptions!K61=\"Other Expenditure\",WorkingP!AF60,0)","v":0},{"$f":"IF(Descriptions!L61=\"Other Expenditure\",WorkingP!AG60,0)","v":0},{"$f":"IF(Descriptions!M61=\"Other Expenditure\",WorkingP!AH60,0)","v":0},{"$f":"IF(Descriptions!N61=\"Other Expenditure\",WorkingP!AI60,0)","v":0},0,{"$f":"'Prior Year Comparative'!W988","v":0},null,null,null,null,null,null,null,null,null,null,null,null,null,null,null,null,null,null,0,"0"]
[{"$f":"IF(Descriptions!K62=\"Other Expenditure\",Descriptions!I62,0)","v":0},null,{"$f":"IF(Descriptions!K62=\"Other Expenditure\",WorkingP!AF61,0)","v":0},{"$f":"IF(Descriptions!L62=\"Other Expenditure\",WorkingP!AG61,0)","v":0},{"$f":"IF(Descriptions!M62=\"Other Expenditure\",WorkingP!AH61,0)","v":0},{"$f":"IF(Descriptions!N62=\"Other Expenditure\",WorkingP!AI61,0)","v":0},0,{"$f":"'Prior Year Comparative'!W989","v":0},null,null,null,null,null,null,null,null,null,null,null,null,null,null,null,null,null,null,0,"0"]
[{"$f":"IF(Descriptions!K63=\"Other Expenditure\",Descriptions!I63,0)","v":0},null,{"$f":"IF(Descriptions!K63=\"Other Expenditure\",WorkingP!AF62,0)","v":0},{"$f":"IF(Descriptions!L63=\"Other Expenditure\",WorkingP!AG62,0)","v":0},{"$f":"IF(Descriptions!M63=\"Other Expenditure\",WorkingP!AH62,0)","v":0},{"$f":"IF(Descriptions!N63=\"Other Expenditure\",WorkingP!AI62,0)","v":0},0,{"$f":"'Prior Year Comparative'!W990","v":0},null,null,null,null,null,null,null,null,null,null,null,null,null,null,null,null,null,null,0,"0"]
[{"$f":"IF(Descriptions!K64=\"Other Expenditure\",Descriptions!I64,0)","v":0},null,{"$f":"IF(Descriptions!K64=\"Other Expenditure\",WorkingP!AF63,0)","v":0},{"$f":"IF(Descriptions!L64=\"Other Expenditure\",WorkingP!AG63,0)","v":0},{"$f":"IF(Descriptions!M64=\"Other Expenditure\",WorkingP!AH63,0)","v":0},{"$f":"IF(Descriptions!N64=\"Other Expenditure\",WorkingP!AI63,0)","v":0},0,{"$f":"'Prior Year Comparative'!W991","v":0},null,null,null,null,null,null,null,null,null,null,null,null,null,null,null,null,null,null,0,"0"]
[{"$f":"IF(Descriptions!K65=\"Other Expenditure\",Descriptions!I65,0)","v":0},null,{"$f":"IF(Descriptions!K65=\"Other Expenditure\",WorkingP!AF64,0)","v":0},{"$f":"IF(Descriptions!L65=\"Other Expenditure\",WorkingP!AG64,0)","v":0},{"$f":"IF(Descriptions!M65=\"Other Expenditure\",WorkingP!AH64,0)","v":0},{"$f":"IF(Descriptions!N65=\"Other Expenditure\",WorkingP!AI64,0)","v":0},0,{"$f":"'Prior Year Comparative'!W992","v":0},null,null,null,null,null,null,null,null,null,null,null,null,null,null,null,null,null,null,0,"0"]
[{"$f":"IF(Descriptions!K66=\"Other Expenditure\",Descriptions!I66,0)","v":0},null,{"$f":"IF(Descriptions!K66=\"Other Expenditure\",WorkingP!AF65,0)","v":0},{"$f":"IF(Descriptions!L66=\"Other Expenditure\",WorkingP!AG65,0)","v":0},{"$f":"IF(Descriptions!M66=\"Other Expenditure\",WorkingP!AH65,0)","v":0},{"$f":"IF(Descriptions!N66=\"Other Expenditure\",WorkingP!AI65,0)","v":0},0,{"$f":"'Prior Year Comparative'!W993","v":0},null,null,null,null,null,null,null,null,null,null,null,null,null,null,null,null,null,null,0,"0"]
[{"$f":"IF(Descriptions!K67=\"Other Expenditure\",Descriptions!I67,0)","v":0},null,{"$f":"IF(Descriptions!K67=\"Other Expenditure\",WorkingP!AF66,0)","v":0},{"$f":"IF(Descriptions!L67=\"Other Expenditure\",WorkingP!AG66,0)","v":0},{"$f":"IF(Descriptions!M67=\"Other Expenditure\",WorkingP!AH66,0)","v":0},{"$f":"IF(Descriptions!N67=\"Other Expenditure\",WorkingP!AI66,0)","v":0},0,{"$f":"'Prior Year Comparative'!W994","v":0},null,null,null,null,null,null,null,null,null,null,null,null,null,null,null,null,null,null,0,"0"]
[{"$f":"IF(Descriptions!K68=\"Other Expenditure\",Descriptions!I68,0)","v":0},null,{"$f":"IF(Descriptions!K68=\"Other Expenditure\",WorkingP!AF67,0)","v":0},{"$f":"IF(Descriptions!L68=\"Other Expenditure\",WorkingP!AG67,0)","v":0},{"$f":"IF(Descriptions!M68=\"Other Expenditure\",WorkingP!AH67,0)","v":0},{"$f":"IF(Descriptions!N68=\"Other Expenditure\",WorkingP!AI67,0)","v":0},0,{"$f":"'Prior Year Comparative'!W995","v":0},null,null,null,null,null,null,null,null,null,null,null,null,null,null,null,null,null,null,0,"0"]
[{"$f":"IF(Descriptions!K69=\"Other Expenditure\",Descriptions!I69,0)","v":0},null,{"$f":"IF(Descriptions!K69=\"Other Expenditure\",WorkingP!AF68,0)","v":0},{"$f":"IF(Descriptions!L69=\"Other Expenditure\",WorkingP!AG68,0)","v":0},{"$f":"IF(Descriptions!M69=\"Other Expenditure\",WorkingP!AH68,0)","v":0},{"$f":"IF(Descriptions!N69=\"Other Expenditure\",WorkingP!AI68,0)","v":0},0,{"$f":"'Prior Year Comparative'!W996","v":0},null,null,null,null,null,null,null,null,null,null,null,null,null,null,null,null,null,null,0,"0"]
[{"$f":"IF(Descriptions!K70=\"Other Expenditure\",Descriptions!I70,0)","v":0},null,{"$f":"IF(Descriptions!K70=\"Other Expenditure\",WorkingP!AF69,0)","v":0},{"$f":"IF(Descriptions!L70=\"Other Expenditure\",WorkingP!AG69,0)","v":0},{"$f":"IF(Descriptions!M70=\"Other Expenditure\",WorkingP!AH69,0)","v":0},{"$f":"IF(Descriptions!N70=\"Other Expenditure\",WorkingP!AI69,0)","v":0},0,{"$f":"'Prior Year Comparative'!W997","v":0},null,null,null,null,null,null,null,null,null,null,null,null,null,null,null,null,null,null,0,"0"]
[{"$f":"IF(Descriptions!K71=\"Other Expenditure\",Descriptions!I71,0)","v":0},null,{"$f":"IF(Descriptions!K71=\"Other Expenditure\",WorkingP!AF70,0)","v":0},{"$f":"IF(Descriptions!L71=\"Other Expenditure\",WorkingP!AG70,0)","v":0},{"$f":"IF(Descriptions!M71=\"Other Expenditure\",WorkingP!AH70,0)","v":0},{"$f":"IF(Descriptions!N71=\"Other Expenditure\",WorkingP!AI70,0)","v":0},0,{"$f":"'Prior Year Comparative'!W998","v":0},null,null,null,null,null,null,null,null,null,null,null,null,null,null,null,null,null,null,0,"0"]
[{"$f":"IF(Descriptions!K72=\"Other Expenditure\",Descriptions!I72,0)","v":0},null,{"$f":"IF(Descriptions!K72=\"Other Expenditure\",WorkingP!AF71,0)","v":0},{"$f":"IF(Descriptions!L72=\"Other Expenditure\",WorkingP!AG71,0)","v":0},{"$f":"IF(Descriptions!M72=\"Other Expenditure\",WorkingP!AH71,0)","v":0},{"$f":"IF(Descriptions!N72=\"Other Expenditure\",WorkingP!AI71,0)","v":0},0,{"$f":"'Prior Year Comparative'!W999","v":0},null,null,null,null,null,null,null,null,null,null,null,null,null,null,null,null,null,null,0,"0"]
[{"$f":"IF(Descriptions!K73=\"Other Expenditure\",Descriptions!I73,0)","v":0},null,{"$f":"IF(Descriptions!K73=\"Other Expenditure\",WorkingP!AF72,0)","v":0},{"$f":"IF(Descriptions!L73=\"Other Expenditure\",WorkingP!AG72,0)","v":0},{"$f":"IF(Descriptions!M73=\"Other Expenditure\",WorkingP!AH72,0)","v":0},{"$f":"IF(Descriptions!N73=\"Other Expenditure\",WorkingP!AI72,0)","v":0},0,{"$f":"'Prior Year Comparative'!W1000","v":0},null,null,null,null,null,null,null,null,null,null,null,null,null,null,null,null,null,null,0,"0"]
[{"$f":"IF(Descriptions!K74=\"Other Expenditure\",Descriptions!I74,0)","v":0},null,{"$f":"IF(Descriptions!K74=\"Other Expenditure\",WorkingP!AF73,0)","v":0},{"$f":"IF(Descriptions!L74=\"Other Expenditure\",WorkingP!AG73,0)","v":0},{"$f":"IF(Descriptions!M74=\"Other Expenditure\",WorkingP!AH73,0)","v":0},{"$f":"IF(Descriptions!N74=\"Other Expenditure\",WorkingP!AI73,0)","v":0},0,{"$f":"'Prior Year Comparative'!W1001","v":0},null,null,null,null,null,null,null,null,null,null,null,null,null,null,null,null,null,null,0,"0"]
[{"$f":"IF(Descriptions!K75=\"Other Expenditure\",Descriptions!I75,0)","v":0},null,{"$f":"IF(Descriptions!K75=\"Other Expenditure\",WorkingP!AF74,0)","v":0},{"$f":"IF(Descriptions!L75=\"Other Expenditure\",WorkingP!AG74,0)","v":0},{"$f":"IF(Descriptions!M75=\"Other Expenditure\",WorkingP!AH74,0)","v":0},{"$f":"IF(Descriptions!N75=\"Other Expenditure\",WorkingP!AI74,0)","v":0},0,{"$f":"'Prior Year Comparative'!W1002","v":0},null,null,null,null,null,null,null,null,null,null,null,null,null,null,null,null,null,null,0,"0"]
[{"$f":"IF(Descriptions!K76=\"Other Expenditure\",Descriptions!I76,0)","v":0},null,{"$f":"IF(Descriptions!K76=\"Other Expenditure\",WorkingP!AF75,0)","v":0},{"$f":"IF(Descriptions!L76=\"Other Expenditure\",WorkingP!AG75,0)","v":0},{"$f":"IF(Descriptions!M76=\"Other Expenditure\",WorkingP!AH75,0)","v":0},{"$f":"IF(Descriptions!N76=\"Other Expenditure\",WorkingP!AI75,0)","v":0},0,{"$f":"'Prior Year Comparative'!W1003","v":0},null,null,null,null,null,null,null,null,null,null,null,null,null,null,null,null,null,null,0,"0"]
[{"$f":"IF(Descriptions!K77=\"Other Expenditure\",Descriptions!I77,0)","v":0},null,{"$f":"IF(Descriptions!K77=\"Other Expenditure\",WorkingP!AF76,0)","v":0},{"$f":"IF(Descriptions!L77=\"Other Expenditure\",WorkingP!AG76,0)","v":0},{"$f":"IF(Descriptions!M77=\"Other Expenditure\",WorkingP!AH76,0)","v":0},{"$f":"IF(Descriptions!N77=\"Other Expenditure\",WorkingP!AI76,0)","v":0},0,{"$f":"'Prior Year Comparative'!W1004","v":0},null,null,null,null,null,null,null,null,null,null,null,null,null,null,null,null,null,null,0,"0"]
[{"$f":"IF(Descriptions!K78=\"Other Expenditure\",Descriptions!I78,0)","v":0},null,{"$f":"IF(Descriptions!K78=\"Other Expenditure\",WorkingP!AF77,0)","v":0},{"$f":"IF(Descriptions!L78=\"Other Expenditure\",WorkingP!AG77,0)","v":0},{"$f":"IF(Descriptions!M78=\"Other Expenditure\",WorkingP!AH77,0)","v":0},{"$f":"IF(Descriptions!N78=\"Other Expenditure\",WorkingP!AI77,0)","v":0},0,{"$f":"'Prior Year Comparative'!W1005","v":0},null,null,null,null,null,null,null,null,null,null,null,null,null,null,null,null,null,null,{"$f":"SUM(C1116:H1116)","v":0},{"$f":"IF(AA1116=0,\"0\",\"1\")","v":"0"}]
[{"$f":"IF(Descriptions!K79=\"Other Expenditure\",Descriptions!I79,0)","v":0},null,{"$f":"IF(Descriptions!K79=\"Other Expenditure\",WorkingP!AF78,0)","v":0},{"$f":"IF(Descriptions!L79=\"Other Expenditure\",WorkingP!AG78,0)","v":0},{"$f":"IF(Descriptions!M79=\"Other Expenditure\",WorkingP!AH78,0)","v":0},{"$f":"IF(Descriptions!N79=\"Other Expenditure\",WorkingP!AI78,0)","v":0},0,{"$f":"'Prior Year Comparative'!W1006","v":0},null,null,null,null,null,null,null,null,null,null,null,null,null,null,null,null,null,null,0,"0"]
[{"$f":"IF(Descriptions!K80=\"Other Expenditure\",Descriptions!I80,0)","v":0},null,{"$f":"IF(Descriptions!K80=\"Other Expenditure\",WorkingP!AF79,0)","v":0},{"$f":"IF(Descriptions!L80=\"Other Expenditure\",WorkingP!AG79,0)","v":0},{"$f":"IF(Descriptions!M80=\"Other Expenditure\",WorkingP!AH79,0)","v":0},{"$f":"IF(Descriptions!N80=\"Other Expenditure\",WorkingP!AI79,0)","v":0},0,{"$f":"'Prior Year Comparative'!W1007","v":0},null,null,null,null,null,null,null,null,null,null,null,null,null,null,null,null,null,null,0,"0"]
[{"$f":"IF(Descriptions!K81=\"Other Expenditure\",Descriptions!I81,0)","v":0},null,{"$f":"IF(Descriptions!K81=\"Other Expenditure\",WorkingP!AF80,0)","v":0},{"$f":"IF(Descriptions!L81=\"Other Expenditure\",WorkingP!AG80,0)","v":0},{"$f":"IF(Descriptions!M81=\"Other Expenditure\",WorkingP!AH80,0)","v":0},{"$f":"IF(Descriptions!N81=\"Other Expenditure\",WorkingP!AI80,0)","v":0},0,{"$f":"'Prior Year Comparative'!W1008","v":0},null,null,null,null,null,null,null,null,null,null,null,null,null,null,null,null,null,null,0,"0"]
[{"$f":"IF(Descriptions!K82=\"Other Expenditure\",Descriptions!I82,0)","v":0},null,{"$f":"IF(Descriptions!K82=\"Other Expenditure\",WorkingP!AF81,0)","v":0},{"$f":"IF(Descriptions!L82=\"Other Expenditure\",WorkingP!AG81,0)","v":0},{"$f":"IF(Descriptions!M82=\"Other Expenditure\",WorkingP!AH81,0)","v":0},{"$f":"IF(Descriptions!N82=\"Other Expenditure\",WorkingP!AI81,0)","v":0},0,{"$f":"'Prior Year Comparative'!W1009","v":0},null,null,null,null,null,null,null,null,null,null,null,null,null,null,null,null,null,null,0,"0"]
[{"$f":"IF(Descriptions!K83=\"Other Expenditure\",Descriptions!I83,0)","v":0},null,{"$f":"IF(Descriptions!K83=\"Other Expenditure\",WorkingP!AF82,0)","v":0},{"$f":"IF(Descriptions!L83=\"Other Expenditure\",WorkingP!AG82,0)","v":0},{"$f":"IF(Descriptions!M83=\"Other Expenditure\",WorkingP!AH82,0)","v":0},{"$f":"IF(Descriptions!N83=\"Other Expenditure\",WorkingP!AI82,0)","v":0},0,{"$f":"'Prior Year Comparative'!W1010","v":0},null,null,null,null,null,null,null,null,null,null,null,null,null,null,null,null,null,null,0,"0"]
[{"$f":"IF(Descriptions!K84=\"Other Expenditure\",Descriptions!I84,0)","v":0},null,{"$f":"IF(Descriptions!K84=\"Other Expenditure\",WorkingP!AF83,0)","v":0},{"$f":"IF(Descriptions!L84=\"Other Expenditure\",WorkingP!AG83,0)","v":0},{"$f":"IF(Descriptions!M84=\"Other Expenditure\",WorkingP!AH83,0)","v":0},{"$f":"IF(Descriptions!N84=\"Other Expenditure\",WorkingP!AI83,0)","v":0},0,{"$f":"'Prior Year Comparative'!W1011","v":0},null,null,null,null,null,null,null,null,null,null,null,null,null,null,null,null,null,null,0,"0"]
[null,null,null,null,null,null,null,null,null,null,null,null,null,null,null,null,null,null,null,null,null,null,null,null,null,null,{"$f":"AA1124","v":0},"0"]
[null,null,{"$f":"SUM(C1070:C1122)","v":0},0,0,0,0,0,null,null,null,null,null,null,null,null,null,null,null,null,null,null,null,null,null,null,{"$f":"SUM(AA1070:AA1122)","v":0},"0"]
[null,null,null,null,null,null,null,null,null,null,null,null,null,null,null,null,null,null,null,null,null,null,null,null,null,null,{"$f":"AA1126","v":"1"},"1"]
[null,null,"Unrestricted Fund","Designated Fund","Restricted Fund","Endowment Fund","Total","Total",null,null,null,null,null,null,null,null,null,null,null,null,null,null,null,null,null,null,{"$f":"AA1127","v":"1"},"1"]
[{"$f":"CONCATENATE(AD1127,\".\",\" \",AG1127)","v":"4. Bank Current Account"},null,null,null,null,null,{"$f":"'Name and Parish'!D15","v":2023},{"$f":"G1127-1","v":2022},null,null,null,null,null,null,null,null,null,null,null,null,null,null,null,null,null,null,{"$f":"IF(AF1127=\"0\",\"0\",\"1\")","v":"1"},"1",null,{"$f":"IF(AF1127=\"0\",\"0\",AE1127)","v":4},{"$f":"SUM(AE717+AF717)","v":4},1,"Bank Current Account"]
[null,null,"£","£","£","£","£","£",null,null,null,null,null,null,null,null,null,null,null,null,null,null,null,null,null,null,1,"1"]
[{"$f":"'Bank and Fund Details'!B6","v":0},null,{"$f":"IF('Bank and Fund Details'!D6=\"Bank Current Account\",'Bank and Fund Details'!AM6,0)","v":0},{"$f":"IF('Bank and Fund Details'!D6=\"Bank Current Account\",'Bank and Fund Details'!AO6,0)","v":0},{"$f":"IF('Bank and Fund Details'!D6=\"Bank Current Account\",'Bank and Fund Details'!AQ6,0)","v":0},{"$f":"IF('Bank and Fund Details'!D6=\"Bank Current Account\",'Bank and Fund Details'!AS6,0)","v":0},{"$f":"IF('Bank and Fund Details'!D6=\"Bank Current Account\",'Bank and Fund Details'!AU6,0)","v":0},{"$f":"IF('Bank and Fund Details'!D6=\"Bank Current Account\",'Bank and Fund Details'!AV6,0)","v":0},null,null,null,null,null,null,null,null,null,null,null,null,null,null,null,null,null,null,{"$f":"SUM(C1129:H1129)","v":0},"0"]
[{"$f":"'Bank and Fund Details'!B7","v":0},null,{"$f":"IF('Bank and Fund Details'!D7=\"Bank Current Account\",'Bank and Fund Details'!AM7,0)","v":0},{"$f":"IF('Bank and Fund Details'!D7=\"Bank Current Account\",'Bank and Fund Details'!AO7,0)","v":0},{"$f":"IF('Bank and Fund Details'!D7=\"Bank Current Account\",'Bank and Fund Details'!AQ7,0)","v":0},{"$f":"IF('Bank and Fund Details'!D7=\"Bank Current Account\",'Bank and Fund Details'!AS7,0)","v":0},{"$f":"IF('Bank and Fund Details'!D7=\"Bank Current Account\",'Bank and Fund Details'!AU7,0)","v":0},{"$f":"IF('Bank and Fund Details'!D7=\"Bank Current Account\",'Bank and Fund Details'!AV7,0)","v":0},null,null,null,null,null,null,null,null,null,null,null,null,null,null,null,null,null,null,0,"0"]
[{"$f":"'Bank and Fund Details'!B8","v":0},null,{"$f":"IF('Bank and Fund Details'!D8=\"Bank Current Account\",'Bank and Fund Details'!AM8,0)","v":0},{"$f":"IF('Bank and Fund Details'!D8=\"Bank Current Account\",'Bank and Fund Details'!AO8,0)","v":0},{"$f":"IF('Bank and Fund Details'!D8=\"Bank Current Account\",'Bank and Fund Details'!AQ8,0)","v":0},{"$f":"IF('Bank and Fund Details'!D8=\"Bank Current Account\",'Bank and Fund Details'!AS8,0)","v":0},{"$f":"IF('Bank and Fund Details'!D8=\"Bank Current Account\",'Bank and Fund Details'!AU8,0)","v":0},{"$f":"IF('Bank and Fund Details'!D8=\"Bank Current Account\",'Bank and Fund Details'!AV8,0)","v":0},null,null,null,null,null,null,null,null,null,null,null,null,null,null,null,null,null,null,0,"0"]
[{"$f":"'Bank and Fund Details'!B9","v":0},null,{"$f":"IF('Bank and Fund Details'!D9=\"Bank Current Account\",'Bank and Fund Details'!AM9,0)","v":0},{"$f":"IF('Bank and Fund Details'!D9=\"Bank Current Account\",'Bank and Fund Details'!AO9,0)","v":0},{"$f":"IF('Bank and Fund Details'!D9=\"Bank Current Account\",'Bank and Fund Details'!AQ9,0)","v":0},{"$f":"IF('Bank and Fund Details'!D9=\"Bank Current Account\",'Bank and Fund Details'!AS9,0)","v":0},{"$f":"IF('Bank and Fund Details'!D9=\"Bank Current Account\",'Bank and Fund Details'!AU9,0)","v":0},{"$f":"IF('Bank and Fund Details'!D9=\"Bank Current Account\",'Bank and Fund Details'!AV9,0)","v":0},null,null,null,null,null,null,null,null,null,null,null,null,null,null,null,null,null,null,0,"0"]
[{"$f":"'Bank and Fund Details'!B10","v":0},null,{"$f":"IF('Bank and Fund Details'!D10=\"Bank Current Account\",'Bank and Fund Details'!AM10,0)","v":0},{"$f":"IF('Bank and Fund Details'!D10=\"Bank Current Account\",'Bank and Fund Details'!AO10,0)","v":0},{"$f":"IF('Bank and Fund Details'!D10=\"Bank Current Account\",'Bank and Fund Details'!AQ10,0)","v":0},{"$f":"IF('Bank and Fund Details'!D10=\"Bank Current Account\",'Bank and Fund Details'!AS10,0)","v":0},{"$f":"IF('Bank and Fund Details'!D10=\"Bank Current Account\",'Bank and Fund Details'!AU10,0)","v":0},{"$f":"IF('Bank and Fund Details'!D10=\"Bank Current Account\",'Bank and Fund Details'!AV10,0)","v":0},null,null,null,null,null,null,null,null,null,null,null,null,null,null,null,null,null,null,0,"0"]
[{"$f":"'Bank and Fund Details'!B11","v":0},null,{"$f":"IF('Bank and Fund Details'!D11=\"Bank Current Account\",'Bank and Fund Details'!AM11,0)","v":0},{"$f":"IF('Bank and Fund Details'!D11=\"Bank Current Account\",'Bank and Fund Details'!AO11,0)","v":0},{"$f":"IF('Bank and Fund Details'!D11=\"Bank Current Account\",'Bank and Fund Details'!AQ11,0)","v":0},{"$f":"IF('Bank and Fund Details'!D11=\"Bank Current Account\",'Bank and Fund Details'!AS11,0)","v":0},{"$f":"IF('Bank and Fund Details'!D11=\"Bank Current Account\",'Bank and Fund Details'!AU11,0)","v":0},{"$f":"IF('Bank and Fund Details'!D11=\"Bank Current Account\",'Bank and Fund Details'!AV11,0)","v":0},null,null,null,null,null,null,null,null,null,null,null,null,null,null,null,null,null,null,0,"0"]
[{"$f":"'Bank and Fund Details'!B12","v":0},null,{"$f":"IF('Bank and Fund Details'!D12=\"Bank Current Account\",'Bank and Fund Details'!AM12,0)","v":0},{"$f":"IF('Bank and Fund Details'!D12=\"Bank Current Account\",'Bank and Fund Details'!AO12,0)","v":0},{"$f":"IF('Bank and Fund Details'!D12=\"Bank Current Account\",'Bank and Fund Details'!AQ12,0)","v":0},{"$f":"IF('Bank and Fund Details'!D12=\"Bank Current Account\",'Bank and Fund Details'!AS12,0)","v":0},{"$f":"IF('Bank and Fund Details'!D12=\"Bank Current Account\",'Bank and Fund Details'!AU12,0)","v":0},{"$f":"IF('Bank and Fund Details'!D12=\"Bank Current Account\",'Bank and Fund Details'!AV12,0)","v":0},null,null,null,null,null,null,null,null,null,null,null,null,null,null,null,null,null,null,0,"0"]
[null,null,null,null,null,null,null,null,null,null,null,null,null,null,null,null,null,null,null,null,null,null,null,null,null,null,{"$f":"AA1137","v":0},"0"]
[null,null,{"$f":"SUM(C1129:C1135)","v":0},0,0,0,0,0,null,null,null,null,null,null,null,null,null,null,null,null,null,null,null,null,null,null,{"$f":"SUM(C1137:H1137)","v":0},"0"]
[null,null,null,null,null,null,null,null,null,null,null,null,null,null,null,null,null,null,null,null,null,null,null,null,null,null,{"$f":"$AF$1140","v":0},"0"]
[null,null,"Unrestricted Fund","Designated Fund","Restricted Fund","Endowment Fund","Total","Total",null,null,null,null,null,null,null,null,null,null,null,null,null,null,null,null,null,null,{"$f":"$AF$1140","v":0},"0"]
[{"$f":"CONCATENATE(AD1140,\".\",\" \",AG1140)","v":"5. Bank Savings Account"},null,null,null,null,null,{"$f":"'Name and Parish'!D15","v":2023},{"$f":"G1140-1","v":2022},null,null,null,null,null,null,null,null,null,null,null,null,null,null,null,null,null,null,{"$f":"$AF$1140","v":0},"0",null,{"$f":"IF(AF1140=\"0\",\"0\",AE1140)","v":5},{"$f":"SUM(AE1127+AF1127)","v":5},{"$f":"IF('Bank and Fund Details'!AY13>0.01,1,0)","v":0},"Bank Savings Account",null,{"$f":"SUM(G1150:H1150)","v":0}]
[null,null,"£","£","£","£","£","£",null,null,null,null,null,null,null,null,null,null,null,null,null,null,null,null,null,null,{"$f":"$AF$1140","v":0},"0"]
[{"$f":"'Bank and Fund Details'!B6","v":0},null,{"$f":"IF('Bank and Fund Details'!D6=\"Bank Savings Account\",'Bank and Fund Details'!AM6,0)","v":0},{"$f":"IF('Bank and Fund Details'!D6=\"Bank Savings Account\",'Bank and Fund Details'!AO6,0)","v":0},{"$f":"IF('Bank and Fund Details'!D6=\"Bank Savings Account\",'Bank and Fund Details'!AQ6,0)","v":0},{"$f":"IF('Bank and Fund Details'!D6=\"Bank Savings Account\",'Bank and Fund Details'!AS6,0)","v":0},{"$f":"IF('Bank and Fund Details'!D6=\"Bank Savings Account\",'Bank and Fund Details'!AU6,0)","v":0},{"$f":"IF('Bank and Fund Details'!D6=\"Bank Savings Account\",'Bank and Fund Details'!AV6,0)","v":0},null,null,null,null,null,null,null,null,null,null,null,null,null,null,null,null,null,null,{"$f":"SUM(C1142:H1142)","v":0},"0"]
[{"$f":"'Bank and Fund Details'!B7","v":0},null,{"$f":"IF('Bank and Fund Details'!D7=\"Bank Savings Account\",'Bank and Fund Details'!AM7,0)","v":0},{"$f":"IF('Bank and Fund Details'!D7=\"Bank Savings Account\",'Bank and Fund Details'!AO7,0)","v":0},{"$f":"IF('Bank and Fund Details'!D7=\"Bank Savings Account\",'Bank and Fund Details'!AQ7,0)","v":0},{"$f":"IF('Bank and Fund Details'!D7=\"Bank Savings Account\",'Bank and Fund Details'!AS7,0)","v":0},{"$f":"IF('Bank and Fund Details'!D7=\"Bank Savings Account\",'Bank and Fund Details'!AU7,0)","v":0},{"$f":"IF('Bank and Fund Details'!D7=\"Bank Savings Account\",'Bank and Fund Details'!AV7,0)","v":0},null,null,null,null,null,null,null,null,null,null,null,null,null,null,null,null,null,null,{"$f":"SUM(C1143:H1143)","v":0},"0"]
[{"$f":"'Bank and Fund Details'!B8","v":0},null,{"$f":"IF('Bank and Fund Details'!D8=\"Bank Savings Account\",'Bank and Fund Details'!AM8,0)","v":0},{"$f":"IF('Bank and Fund Details'!D8=\"Bank Savings Account\",'Bank and Fund Details'!AO8,0)","v":0},{"$f":"IF('Bank and Fund Details'!D8=\"Bank Savings Account\",'Bank and Fund Details'!AQ8,0)","v":0},{"$f":"IF('Bank and Fund Details'!D8=\"Bank Savings Account\",'Bank and Fund Details'!AS8,0)","v":0},{"$f":"IF('Bank and Fund Details'!D8=\"Bank Savings Account\",'Bank and Fund Details'!AU8,0)","v":0},{"$f":"IF('Bank and Fund Details'!D8=\"Bank Savings Account\",'Bank and Fund Details'!AV8,0)","v":0},null,null,null,null,null,null,null,null,null,null,null,null,null,null,null,null,null,null,0,"0"]
[{"$f":"'Bank and Fund Details'!B9","v":0},null,{"$f":"IF('Bank and Fund Details'!D9=\"Bank Savings Account\",'Bank and Fund Details'!AM9,0)","v":0},{"$f":"IF('Bank and Fund Details'!D9=\"Bank Savings Account\",'Bank and Fund Details'!AO9,0)","v":0},{"$f":"IF('Bank and Fund Details'!D9=\"Bank Savings Account\",'Bank and Fund Details'!AQ9,0)","v":0},{"$f":"IF('Bank and Fund Details'!D9=\"Bank Savings Account\",'Bank and Fund Details'!AS9,0)","v":0},{"$f":"IF('Bank and Fund Details'!D9=\"Bank Savings Account\",'Bank and Fund Details'!AU9,0)","v":0},{"$f":"IF('Bank and Fund Details'!D9=\"Bank Savings Account\",'Bank and Fund Details'!AV9,0)","v":0},null,null,null,null,null,null,null,null,null,null,null,null,null,null,null,null,null,null,0,"0"]
[{"$f":"'Bank and Fund Details'!B10","v":0},null,{"$f":"IF('Bank and Fund Details'!D10=\"Bank Savings Account\",'Bank and Fund Details'!AM10,0)","v":0},{"$f":"IF('Bank and Fund Details'!D10=\"Bank Savings Account\",'Bank and Fund Details'!AO10,0)","v":0},{"$f":"IF('Bank and Fund Details'!D10=\"Bank Savings Account\",'Bank and Fund Details'!AQ10,0)","v":0},{"$f":"IF('Bank and Fund Details'!D10=\"Bank Savings Account\",'Bank and Fund Details'!AS10,0)","v":0},{"$f":"IF('Bank and Fund Details'!D10=\"Bank Savings Account\",'Bank and Fund Details'!AU10,0)","v":0},{"$f":"IF('Bank and Fund Details'!D10=\"Bank Savings Account\",'Bank and Fund Details'!AV10,0)","v":0},null,null,null,null,null,null,null,null,null,null,null,null,null,null,null,null,null,null,0,"0"]
[{"$f":"'Bank and Fund Details'!B11","v":0},null,{"$f":"IF('Bank and Fund Details'!D11=\"Bank Savings Account\",'Bank and Fund Details'!AM11,0)","v":0},{"$f":"IF('Bank and Fund Details'!D11=\"Bank Savings Account\",'Bank and Fund Details'!AO11,0)","v":0},{"$f":"IF('Bank and Fund Details'!D11=\"Bank Savings Account\",'Bank and Fund Details'!AQ11,0)","v":0},{"$f":"IF('Bank and Fund Details'!D11=\"Bank Savings Account\",'Bank and Fund Details'!AS11,0)","v":0},{"$f":"IF('Bank and Fund Details'!D11=\"Bank Savings Account\",'Bank and Fund Details'!AU11,0)","v":0},{"$f":"IF('Bank and Fund Details'!D11=\"Bank Savings Account\",'Bank and Fund Details'!AV11,0)","v":0},null,null,null,null,null,null,null,null,null,null,null,null,null,null,null,null,null,null,0,"0"]
[{"$f":"'Bank and Fund Details'!B12","v":0},null,{"$f":"IF('Bank and Fund Details'!D12=\"Bank Savings Account\",'Bank and Fund Details'!AM12,0)","v":0},{"$f":"IF('Bank and Fund Details'!D12=\"Bank Savings Account\",'Bank and Fund Details'!AO12,0)","v":0},{"$f":"IF('Bank and Fund Details'!D12=\"Bank Savings Account\",'Bank and Fund Details'!AQ12,0)","v":0},{"$f":"IF('Bank and Fund Details'!D12=\"Bank Savings Account\",'Bank and Fund Details'!AS12,0)","v":0},{"$f":"IF('Bank and Fund Details'!D12=\"Bank Savings Account\",'Bank and Fund Details'!AU12,0)","v":0},{"$f":"IF('Bank and Fund Details'!D12=\"Bank Savings Account\",'Bank and Fund Details'!AV12,0)","v":0},null,null,null,null,null,null,null,null,null,null,null,null,null,null,null,null,null,null,0,"0"]
[null,null,null,null,null,null,null,null,null,null,null,null,null,null,null,null,null,null,null,null,null,null,null,null,null,null,{"$f":"AA1150","v":0},{"$f":"IF(AA1149=0,\"0\",\"1\")","v":"0"}]
[null,null,{"$f":"SUM(C1142:C1148)","v":0},0,0,0,0,0,null,null,null,null,null,null,null,null,null,null,null,null,null,null,null,null,null,null,{"$f":"SUM(AA1142:AA1148)","v":0},"0"]
[null,null,null,null,null,null,null,null,null,null,null,null,null,null,null,null,null,null,null,null,null,null,null,null,null,null,{"$f":"$AF$1153","v":0},{"$f":"IF(AA1151=0,\"0\",\"1\")","v":"0"}]
[null,null,"Unrestricted Fund","Designated Fund","Restricted Fund","Endowment Fund","Total","Total",null,null,null,null,null,null,null,null,null,null,null,null,null,null,null,null,null,null,{"$f":"$AF$1153","v":0},{"$f":"IF(AA1152=0,\"0\",\"1\")","v":"0"}]
[{"$f":"CONCATENATE(AD1153,\".\",\" \",AG1153)","v":"5. Deposit Account"},null,null,null,null,null,{"$f":"'Name and Parish'!D15","v":2023},{"$f":"G1153-1","v":2022},null,null,null,null,null,null,null,null,null,null,null,null,null,null,null,null,null,null,{"$f":"$AF$1153","v":0},{"$f":"IF(AA1153=0,\"0\",\"1\")","v":"0"},null,{"$f":"IF(AF1153=\"0\",\"0\",AE1153)","v":5},{"$f":"SUM(AE1140+AF1140)","v":5},{"$f":"IF('Bank and Fund Details'!AZ13>0.01,1,0)","v":0},"Deposit Account",null,{"$f":"SUM(G1163:H1163)","v":0}]
[null,null,"£","£","£","£","£","£",null,null,null,null,null,null,null,null,null,null,null,null,null,null,null,null,null,null,{"$f":"$AF$1153","v":0},{"$f":"IF(AA1154=0,\"0\",\"1\")","v":"0"}]
[{"$f":"'Bank and Fund Details'!B6","v":0},null,{"$f":"IF('Bank and Fund Details'!D6=\"Deposit Account\",'Bank and Fund Details'!AM6,0)","v":0},{"$f":"IF('Bank and Fund Details'!D6=\"Deposit Account\",'Bank and Fund Details'!AO6,0)","v":0},{"$f":"IF('Bank and Fund Details'!D6=\"Deposit Account\",'Bank and Fund Details'!AQ6,0)","v":0},{"$f":"IF('Bank and Fund Details'!D6=\"Deposit Account\",'Bank and Fund Details'!AS6,0)","v":0},{"$f":"IF('Bank and Fund Details'!D6=\"Deposit Account\",'Bank and Fund Details'!AU6,0)","v":0},{"$f":"IF('Bank and Fund Details'!D6=\"Deposit Account\",'Bank and Fund Details'!AV6,0)","v":0},null,null,null,null,null,null,null,null,null,null,null,null,null,null,null,null,null,null,{"$f":"SUM(C1155:H1155)","v":0},"0"]
[{"$f":"'Bank and Fund Details'!B7","v":0},null,{"$f":"IF('Bank and Fund Details'!D7=\"Deposit Account\",'Bank and Fund Details'!AM7,0)","v":0},{"$f":"IF('Bank and Fund Details'!D7=\"Deposit Account\",'Bank and Fund Details'!AO7,0)","v":0},{"$f":"IF('Bank and Fund Details'!D7=\"Deposit Account\",'Bank and Fund Details'!AQ7,0)","v":0},{"$f":"IF('Bank and Fund Details'!D7=\"Deposit Account\",'Bank and Fund Details'!AS7,0)","v":0},{"$f":"IF('Bank and Fund Details'!D7=\"Deposit Account\",'Bank and Fund Details'!AU7,0)","v":0},{"$f":"IF('Bank and Fund Details'!D7=\"Deposit Account\",'Bank and Fund Details'!AV7,0)","v":0},null,null,null,null,null,null,null,null,null,null,null,null,null,null,null,null,null,null,{"$f":"SUM(C1156:H1156)","v":0},"0"]
[{"$f":"'Bank and Fund Details'!B8","v":0},null,{"$f":"IF('Bank and Fund Details'!D8=\"Deposit Account\",'Bank and Fund Details'!AM8,0)","v":0},{"$f":"IF('Bank and Fund Details'!D8=\"Deposit Account\",'Bank and Fund Details'!AO8,0)","v":0},{"$f":"IF('Bank and Fund Details'!D8=\"Deposit Account\",'Bank and Fund Details'!AQ8,0)","v":0},{"$f":"IF('Bank and Fund Details'!D8=\"Deposit Account\",'Bank and Fund Details'!AS8,0)","v":0},{"$f":"IF('Bank and Fund Details'!D8=\"Deposit Account\",'Bank and Fund Details'!AU8,0)","v":0},{"$f":"IF('Bank and Fund Details'!D8=\"Deposit Account\",'Bank and Fund Details'!AV8,0)","v":0},null,null,null,null,null,null,null,null,null,null,null,null,null,null,null,null,null,null,0,"0"]
[{"$f":"'Bank and Fund Details'!B9","v":0},null,{"$f":"IF('Bank and Fund Details'!D9=\"Deposit Account\",'Bank and Fund Details'!AM9,0)","v":0},{"$f":"IF('Bank and Fund Details'!D9=\"Deposit Account\",'Bank and Fund Details'!AO9,0)","v":0},{"$f":"IF('Bank and Fund Details'!D9=\"Deposit Account\",'Bank and Fund Details'!AQ9,0)","v":0},{"$f":"IF('Bank and Fund Details'!D9=\"Deposit Account\",'Bank and Fund Details'!AS9,0)","v":0},{"$f":"IF('Bank and Fund Details'!D9=\"Deposit Account\",'Bank and Fund Details'!AU9,0)","v":0},{"$f":"IF('Bank and Fund Details'!D9=\"Deposit Account\",'Bank and Fund Details'!AV9,0)","v":0},null,null,null,null,null,null,null,null,null,null,null,null,null,null,null,null,null,null,0,"0"]
[{"$f":"'Bank and Fund Details'!B10","v":0},null,{"$f":"IF('Bank and Fund Details'!D10=\"Deposit Account\",'Bank and Fund Details'!AM10,0)","v":0},{"$f":"IF('Bank and Fund Details'!D10=\"Deposit Account\",'Bank and Fund Details'!AO10,0)","v":0},{"$f":"IF('Bank and Fund Details'!D10=\"Deposit Account\",'Bank and Fund Details'!AQ10,0)","v":0},{"$f":"IF('Bank and Fund Details'!D10=\"Deposit Account\",'Bank and Fund Details'!AS10,0)","v":0},{"$f":"IF('Bank and Fund Details'!D10=\"Deposit Account\",'Bank and Fund Details'!AU10,0)","v":0},{"$f":"IF('Bank and Fund Details'!D10=\"Deposit Account\",'Bank and Fund Details'!AV10,0)","v":0},null,null,null,null,null,null,null,null,null,null,null,null,null,null,null,null,null,null,0,"0"]
[{"$f":"'Bank and Fund Details'!B11","v":0},null,{"$f":"IF('Bank and Fund Details'!D11=\"Deposit Account\",'Bank and Fund Details'!AM11,0)","v":0},{"$f":"IF('Bank and Fund Details'!D11=\"Deposit Account\",'Bank and Fund Details'!AO11,0)","v":0},{"$f":"IF('Bank and Fund Details'!D11=\"Deposit Account\",'Bank and Fund Details'!AQ11,0)","v":0},{"$f":"IF('Bank and Fund Details'!D11=\"Deposit Account\",'Bank and Fund Details'!AS11,0)","v":0},{"$f":"IF('Bank and Fund Details'!D11=\"Deposit Account\",'Bank and Fund Details'!AU11,0)","v":0},{"$f":"IF('Bank and Fund Details'!D11=\"Deposit Account\",'Bank and Fund Details'!AV11,0)","v":0},null,null,null,null,null,null,null,null,null,null,null,null,null,null,null,null,null,null,0,"0"]
[{"$f":"'Bank and Fund Details'!B12","v":0},null,{"$f":"IF('Bank and Fund Details'!D12=\"Deposit Account\",'Bank and Fund Details'!AM12,0)","v":0},{"$f":"IF('Bank and Fund Details'!D12=\"Deposit Account\",'Bank and Fund Details'!AO12,0)","v":0},{"$f":"IF('Bank and Fund Details'!D12=\"Deposit Account\",'Bank and Fund Details'!AQ12,0)","v":0},{"$f":"IF('Bank and Fund Details'!D12=\"Deposit Account\",'Bank and Fund Details'!AS12,0)","v":0},{"$f":"IF('Bank and Fund Details'!D12=\"Deposit Account\",'Bank and Fund Details'!AU12,0)","v":0},{"$f":"IF('Bank and Fund Details'!D12=\"Deposit Account\",'Bank and Fund Details'!AV12,0)","v":0},null,null,null,null,null,null,null,null,null,null,null,null,null,null,null,null,null,null,0,"0"]
[null,null,null,null,null,null,null,null,null,null,null,null,null,null,null,null,null,null,null,null,null,null,null,null,null,null,{"$f":"AA1163","v":0},"0"]
[null,null,{"$f":"SUM(C1155:C1161)","v":0},0,0,0,0,0,null,null,null,null,null,null,null,null,null,null,null,null,null,null,null,null,null,null,{"$f":"SUM(AA1155:AA1161)","v":0},"0"]
[null,null,null,null,null,null,null,null,null,null,null,null,null,null,null,null,null,null,null,null,null,null,null,null,null,null,{"$f":"SUM(AA1167:AA1171)","v":0},"0"]
[{"$f":"CONCATENATE(AD1165,\".\",\" \",AG1165)","v":"5. Investments"},null,null,null,null,null,null,null,null,null,null,null,null,null,null,null,null,null,null,null,null,null,null,null,null,null,{"$f":"SUM(AA1167:AA1171)","v":0},"0",null,{"$f":"IF(AF1165=\"0\",\"0\",AE1165)","v":5},{"$f":"SUM(AE1153+AF1153)","v":5},{"$f":"IF(AI1165>0.1,1,\"\")","v":""},"Investments",null,{"$f":"SUM(G1175:H1175)","v":0}]
[null,"Further Details",null,null,null,null,null,null,null,null,null,null,null,null,null,null,null,null,null,null,null,null,null,null,null,null,{"$f":"SUM(AA1167:AA1171)","v":0},"0"]
[{"$f":"CONCATENATE(AG1167,\" (\",AK1167,\")\",AH1167,AI1167)","v":"Investment A (0) - 0"},null,null,null,null,null,null,null,null,null,null,null,null,null,null,null,null,null,null,null,null,null,null,null,null,null,{"$f":"IF(ISERROR(AD1167/AE1167),\"\",AD1167/AE1167)","v":""},{"$f":"IF(ISERROR(AD1167/AE1167),\"\",AD1167/AE1167)","v":""},null,{"$f":"IF(AK1167=\"Unrestricted\",0,1)","v":1},{"$f":"IF(AA68>0,1,0)","v":0},null,{"$f":"'Bank and Fund Details'!B67","v":"Investment A"}," - ",{"$f":"'Bank and Fund Details'!C67","v":0},{"$f":"'Bank and Fund Details'!B67","v":"Investment A"},{"$f":"'Bank and Fund Details'!C67","v":0}]
[{"$f":"CONCATENATE(AG1168,\" (\",AK1168,\")\",AH1168,AI1168)","v":"Investment B (0) - 0"},null,null,null,null,null,null,null,null,null,null,null,null,null,null,null,null,null,null,null,null,null,null,null,null,null,{"$f":"IF(ISERROR(AD1168/AE1168),\"\",AD1168/AE1168)","v":""},{"$f":"IF(AA1168=\"\",\"0\",\"1\")","v":"0"},null,{"$f":"IF(AK1168=\"Unrestricted\",0,1)","v":1},{"$f":"IF(AA69>0,1,0)","v":0},null,{"$f":"'Bank and Fund Details'!B68","v":"Investment B"}," - ",{"$f":"'Bank and Fund Details'!C68","v":0},{"$f":"'Bank and Fund Details'!B68","v":"Investment B"},{"$f":"'Bank and Fund Details'!C68","v":0}]
[{"$f":"CONCATENATE(AG1169,\" (\",AK1169,\")\",AH1169,AI1169)","v":"Investment C (0) - 0"},null,null,null,null,null,null,null,null,null,null,null,null,null,null,null,null,null,null,null,null,null,null,null,null,null,{"$f":"IF(ISERROR(AD1169/AE1169),\"\",AD1169/AE1169)","v":""},{"$f":"IF(AA1169=\"\",\"0\",\"1\")","v":"0"},null,{"$f":"IF(AK1169=\"Unrestricted\",0,1)","v":1},{"$f":"IF(AA70>0,1,0)","v":0},null,{"$f":"'Bank and Fund Details'!B69","v":"Investment C"}," - ",{"$f":"'Bank and Fund Details'!C69","v":0},{"$f":"'Bank and Fund Details'!B69","v":"Investment C"},{"$f":"'Bank and Fund Details'!C69","v":0}]
[{"$f":"CONCATENATE(AG1170,\" (\",AK1170,\")\",AH1170,AI1170)","v":"Investment D (0) - 0"},null,null,null,null,null,null,null,null,null,null,null,null,null,null,null,null,null,null,null,null,null,null,null,null,null,{"$f":"IF(ISERROR(AD1170/AE1170),\"\",AD1170/AE1170)","v":""},{"$f":"IF(AA1170=\"\",\"0\",\"1\")","v":"0"},null,{"$f":"IF(AK1170=\"Unrestricted\",0,1)","v":1},{"$f":"IF(AA71>0,1,0)","v":0},null,{"$f":"'Bank and Fund Details'!B70","v":"Investment D"}," - ",{"$f":"'Bank and Fund Details'!C70","v":0},{"$f":"'Bank and Fund Details'!B70","v":"Investment D"},{"$f":"'Bank and Fund Details'!C70","v":0}]
[{"$f":"CONCATENATE(AG1171,\" (\",AK1171,\")\",AH1171,AI1171)","v":"Investment E (0) - 0"},null,null,null,null,null,null,null,null,null,null,null,null,null,null,null,null,null,null,null,null,null,null,null,null,null,{"$f":"IF(ISERROR(AD1171/AE1171),\"\",AD1171/AE1171)","v":""},{"$f":"IF(AA1171=\"\",\"0\",\"1\")","v":"0"},null,{"$f":"IF(AK1171=\"Unrestricted\",0,1)","v":1},{"$f":"IF(AA72>0,1,0)","v":0},null,{"$f":"'Bank and Fund Details'!B71","v":"Investment E"}," - ",{"$f":"'Bank and Fund Details'!C71","v":0},{"$f":"'Bank and Fund Details'!B71","v":"Investment E"},{"$f":"'Bank and Fund Details'!C71","v":0}]

{"sheet":"Year End","index":22,"n_rows":95,"n_cols":10,"rows_kept":95,"cut":false,"hidden":false,"merged":[[24,1,30,5],[7,1,22,5]]}
[]
[null,"Year End Process"]
[]
[null,"Save folder",null,"C:\\PAW Test"]
[]
[]
[]
[null,"When you have completed your accounts, you can produce the financial statements and return of parish finance form in pdf format using the buttons to the right. Before clicking these, please ensure that the save folder is the filepath to a folder on your computer (see guide if you require any further assistance)."]
[null,null,null,null,null,null,null,{"$f":"CONCATENATE(SaveFolder,\"\\\",H21,\"_\",H22,\"_\",\"Financial_Statements\")","v":{"$error":"#REF!"}},"."]
[]
[]
[]
[]
[]
[]
[]
[]
[]
[]
[null,null,null,null,null,null,null,{"$f":"CONCATENATE(SaveFolder,\"\\\",H21,\"_\",H22,\"_\",\"ROPF\")","v":{"$error":"#REF!"}},null,"."]
[null,null,null,null,null,null,null,{"$f":"#REF!","v":{"$error":"#REF!"}}]
[null,null,null,null,null,null,null,{"$f":"#REF!","v":{"$error":"#REF!"}}]
[]
[]
[null,"Once you have completed your year end. The workbook can automatically update so that you can begin the following year. To do this, use the excel \"Save As\" function to save a new version of this workbook. Save this as a different name (otherwise you could lose all your data) and then click the purple \"Run year end process and carry forward to next year\" button. This will carry forward your year end balances, as well as remove all the entries for the year, ready for entry for the following year."]
[]
[]
[]
[]
[]
[]
[]
[]
[]
[]
[]
[]
[]
[]
[]
[]
[]
[]
[]
[]
[]
[]
[]
[]
[]
[]
[]
[]
[]
[]
[]
[]
[]
[]
[]
[]
[]
[]
[]
[]
[]
[]
[]
[]
[]
[]
[]
[]
[]
[]
[]
[]
[]
[]
[]
[]
[]
[]
[]
[]
[]
[]
[]
[]
[]
[]
[]
[null,"<?xml version=\"1.0\" encoding=\"utf-8\"?><response><code>1</code><text>OK The following fields names are invalid and were ignored: InReFS,InUnFS,InTotFS,OutReFS,OutUnFS,OutTotFS,ReturnDate,ReturnName,ReturnPosition,ReturnContactInfo</text></response>\n",null,null,null,null,null,null,null,{"$f":"LEFT(B93,55)","v":"<?xml version=\"1.0\" encoding=\"utf-8\"?><response><code>1"}]
[null,null,null,null,null,null,null,null,null,{"$f":"RIGHT(J93,1)","v":"1"}]
[null,null,null,null,null,null,null,null,{"$f":"VALUE(J95)","v":0}]

{"sheet":"Index","index":23,"n_rows":594,"n_cols":118,"rows_kept":594,"cut":false,"hidden":true,"merged":[[1,1,1,7],[1,8,1,14]]}
[]
["Year",null,null,null,null,null,null,null,"PLEASE COMPLETE YEAR ON DETAILS TAB"]
["Year"]
[2022,"Financial Statement for the Year Ended 31 December 2022","January to December 2022","2022-01-01","2022-12-31",null,"at 31st December 2022","January to December 2022","31st December 2022","1st January 2022","Cash and deposit balances as at 31/12/22","Investments as at 31/12/22","2022-01-01","2022-01-02",1,{"$f":"SUM(N4+7)","v":"2022-01-09"},2,{"$f":"SUM(P4+7)","v":"2022-01-16"},3,{"$f":"SUM(R4+7)","v":"2022-01-23"},4,{"$f":"SUM(T4+7)","v":"2022-01-30"},5,{"$f":"SUM(V4+7)","v":"2022-02-06"},6,{"$f":"SUM(X4+7)","v":"2022-02-13"},7,{"$f":"SUM(Z4+7)","v":"2022-02-20"},8,{"$f":"SUM(AB4+7)","v":"2022-02-27"},9,{"$f":"SUM(AD4+7)","v":"2022-03-06"},10,{"$f":"SUM(AF4+7)","v":"2022-03-13"},11,{"$f":"SUM(AH4+7)","v":"2022-03-20"},12,{"$f":"SUM(AJ4+7)","v":"2022-03-27"},13,{"$f":"SUM(AL4+7)","v":"2022-04-03"},14,{"$f":"SUM(AN4+7)","v":"2022-04-10"},15,{"$f":"SUM(AP4+7)","v":"2022-04-17"},16,{"$f":"SUM(AR4+7)","v":"2022-04-24"},17,{"$f":"SUM(AT4+7)","v":"2022-05-01"},18,{"$f":"SUM(AV4+7)","v":"2022-05-08"},19,{"$f":"SUM(AX4+7)","v":"2022-05-15"},20,{"$f":"SUM(AZ4+7)","v":"2022-05-22"},21,{"$f":"SUM(BB4+7)","v":"2022-05-29"},22,{"$f":"SUM(BD4+7)","v":"2022-06-05"},23,{"$f":"SUM(BF4+7)","v":"2022-06-12"},24,{"$f":"SUM(BH4+7)","v":"2022-06-19"},25,{"$f":"SUM(BJ4+7)","v":"2022-06-26"},26,{"$f":"SUM(BL4+7)","v":"2022-07-03"},27,{"$f":"SUM(BN4+7)","v":"2022-07-10"},28,{"$f":"SUM(BP4+7)","v":"2022-07-17"},29,{"$f":"SUM(BR4+7)","v":"2022-07-24"},30,{"$f":"SUM(BT4+7)","v":"2022-07-31"},31,{"$f":"SUM(BV4+7)","v":"2022-08-07"},32,{"$f":"SUM(BX4+7)","v":"2022-08-14"},33,{"$f":"SUM(BZ4+7)","v":"2022-08-21"},34,{"$f":"SUM(CB4+7)","v":"2022-08-28"},35,{"$f":"SUM(CD4+7)","v":"2022-09-04"},36,{"$f":"SUM(CF4+7)","v":"2022-09-11"},37,{"$f":"SUM(CH4+7)","v":"2022-09-18"},38,{"$f":"SUM(CJ4+7)","v":"2022-09-25"},39,{"$f":"SUM(CL4+7)","v":"2022-10-02"},40,{"$f":"SUM(CN4+7)","v":"2022-10-09"},41,{"$f":"SUM(CP4+7)","v":"2022-10-16"},42,{"$f":"SUM(CR4+7)","v":"2022-10-23"},43,{"$f":"SUM(CT4+7)","v":"2022-10-30"},44,{"$f":"SUM(CV4+7)","v":"2022-11-06"},45,{"$f":"SUM(CX4+7)","v":"2022-11-13"},46,{"$f":"SUM(CZ4+7)","v":"2022-11-20"},47,{"$f":"SUM(DB4+7)","v":"2022-11-27"},48,{"$f":"SUM(DD4+7)","v":"2022-12-04"},49,{"$f":"SUM(DF4+7)","v":"2022-12-11"},50,{"$f":"SUM(DH4+7)","v":"2022-12-18"},51,{"$f":"SUM(DJ4+7)","v":"2022-12-25"},52,{"$f":"SUM(DL4+7)","v":"2023-01-01"}]
[2023,"Financial Statement for the Year Ended 31 December 2023","January to December 2023","2023-01-01","2023-12-31",null,"at 31st December 2023","January to December 2023","31st December 2023","1st January 2023","Cash and deposit balances as at 31/12/23","Investments as at 31/12/23","2023-01-01","2023-01-01",1,"2023-01-08",2,"2023-01-15",3,"2023-01-22",4,"2023-01-29",5,"2023-02-05",6,"2023-02-12",7,"2023-02-19",8,"2023-02-26",9,"2023-03-05",10,"2023-03-12",11,"2023-03-19",12,"2023-03-26",13,"2023-04-02",14,"2023-04-09",15,"2023-04-16",16,"2023-04-23",17,"2023-04-30",18,"2023-05-07",19,"2023-05-14",20,"2023-05-21",21,"2023-05-28",22,"2023-06-04",23,"2023-06-11",24,"2023-06-18",25,"2023-06-25",26,"2023-07-02",27,"2023-07-09",28,"2023-07-16",29,"2023-07-23",30,"2023-07-30",31,"2023-08-06",32,"2023-08-13",33,"2023-08-20",34,"2023-08-27",35,"2023-09-03",36,"2023-09-10",37,"2023-09-17",38,"2023-09-24",39,"2023-10-01",40,"2023-10-08",41,"2023-10-15",42,"2023-10-22",43,"2023-10-29",44,"2023-11-05",45,"2023-11-12",46,"2023-11-19",47,"2023-11-26",48,"2023-12-03",49,"2023-12-10",50,"2023-12-17",51,"2023-12-24",52,"2023-12-31"]
[2024,"Financial Statement for the Year Ended 31 December 2024","January to December 2024","2024-01-01","2024-12-31",null,"at 31st December 2024","January to December 2024","31st December 2024","1st January 2024","Cash and deposit balances as at 31/12/24","Investments as at 31/12/24","2024-01-01","2024-01-07",1,"2024-01-14",2,"2024-01-21",3,"2024-01-28",4,"2024-02-04",5,"2024-02-11",6,"2024-02-18",7,"2024-02-25",8,"2024-03-03",9,"2024-03-10",10,"2024-03-17",11,"2024-03-24",12,"2024-03-31",13,"2024-04-07",14,"2024-04-14",15,"2024-04-21",16,"2024-04-28",17,"2024-05-05",18,"2024-05-12",19,"2024-05-19",20,"2024-05-26",21,"2024-06-02",22,"2024-06-09",23,"2024-06-16",24,"2024-06-23",25,"2024-06-30",26,"2024-07-07",27,"2024-07-14",28,"2024-07-21",29,"2024-07-28",30,"2024-08-04",31,"2024-08-11",32,"2024-08-18",33,"2024-08-25",34,"2024-09-01",35,"2024-09-08",36,"2024-09-15",37,"2024-09-22",38,"2024-09-29",39,"2024-10-06",40,"2024-10-13",41,"2024-10-20",42,"2024-10-27",43,"2024-11-03",44,"2024-11-10",45,"2024-11-17",46,"2024-11-24",47,"2024-12-01",48,"2024-12-08",49,"2024-12-15",50,"2024-12-22",51,"2024-12-29",52,"2025-01-05"]
[2025,"Financial Statement for the Year Ended 31 December 2025","January to December 2025","2025-01-01","2025-12-31",null,"at 31st December 2025","January to December 2025","31st December 2025","1st January 2025","Cash and deposit balances as at 31/12/25","Investments as at 31/12/25","2025-01-01","2025-01-05",1,"2025-01-12",2,"2025-01-19",3,"2025-01-26",4,"2025-02-02",5,"2025-02-09",6,"2025-02-16",7,"2025-02-23",8,"2025-03-02",9,"2025-03-09",10,"2025-03-16",11,"2025-03-23",12,"2025-03-30",13,"2025-04-06",14,"2025-04-13",15,"2025-04-20",16,"2025-04-27",17,"2025-05-04",18,"2025-05-11",19,"2025-05-18",20,"2025-05-25",21,"2025-06-01",22,"2025-06-08",23,"2025-06-15",24,"2025-06-22",25,"2025-06-29",26,"2025-07-06",27,"2025-07-13",28,"2025-07-20",29,"2025-07-27",30,"2025-08-03",31,"2025-08-10",32,"2025-08-17",33,"2025-08-24",34,"2025-08-31",35,"2025-09-07",36,"2025-09-14",37,"2025-09-21",38,"2025-09-28",39,"2025-10-05",40,"2025-10-12",41,"2025-10-19",42,"2025-10-26",43,"2025-11-02",44,"2025-11-09",45,"2025-11-16",46,"2025-11-23",47,"2025-11-30",48,"2025-12-07",49,"2025-12-14",50,"2025-12-21",51,"2025-12-28",52,"2026-01-04"]
[2026,"Financial Statement for the Year Ended 31 December 2026","January to December 2026","2026-01-01","2026-12-31",null,"at 31st December 2026","January to December 2026","31st December 2026","1st January 2026","Cash and deposit balances as at 31/12/26","Investments as at 31/12/26","2026-01-01","2026-01-04",1,"2026-01-11",2,"2026-01-18",3,"2026-01-25",4,"2026-02-01",5,"2026-02-08",6,"2026-02-15",7,"2026-02-22",8,"2026-03-01",9,"2026-03-08",10,"2026-03-15",11,"2026-03-22",12,"2026-03-29",13,"2026-04-05",14,"2026-04-12",15,"2026-04-19",16,"2026-04-26",17,"2026-05-03",18,"2026-05-10",19,"2026-05-17",20,"2026-05-24",21,"2026-05-31",22,"2026-06-07",23,"2026-06-14",24,"2026-06-21",25,"2026-06-28",26,"2026-07-05",27,"2026-07-12",28,"2026-07-19",29,"2026-07-26",30,"2026-08-02",31,"2026-08-09",32,"2026-08-16",33,"2026-08-23",34,"2026-08-30",35,"2026-09-06",36,"2026-09-13",37,"2026-09-20",38,"2026-09-27",39,"2026-10-04",40,"2026-10-11",41,"2026-10-18",42,"2026-10-25",43,"2026-11-01",44,"2026-11-08",45,"2026-11-15",46,"2026-11-22",47,"2026-11-29",48,"2026-12-06",49,"2026-12-13",50,"2026-12-20",51,"2026-12-27",52,"2027-01-03"]
[2027,"Financial Statement for the Year Ended 31 December 2027","January to December 2027","2027-01-01","2027-12-31",null,"at 31st December 2027","January to December 2027","31st December 2027","1st January 2027","Cash and deposit balances as at 31/12/27","Investments as at 31/12/27","2027-01-01","2027-01-03",1,"2027-01-10",2,"2027-01-17",3,"2027-01-24",4,"2027-01-31",5,"2027-02-07",6,"2027-02-14",7,"2027-02-21",8,"2027-02-28",9,"2027-03-07",10,"2027-03-14",11,"2027-03-21",12,"2027-03-28",13,"2027-04-04",14,"2027-04-11",15,"2027-04-18",16,"2027-04-25",17,"2027-05-02",18,"2027-05-09",19,"2027-05-16",20,"2027-05-23",21,"2027-05-30",22,"2027-06-06",23,"2027-06-13",24,"2027-06-20",25,"2027-06-27",26,"2027-07-04",27,"2027-07-11",28,"2027-07-18",29,"2027-07-25",30,"2027-08-01",31,"2027-08-08",32,"2027-08-15",33,"2027-08-22",34,"2027-08-29",35,"2027-09-05",36,"2027-09-12",37,"2027-09-19",38,"2027-09-26",39,"2027-10-03",40,"2027-10-10",41,"2027-10-17",42,"2027-10-24",43,"2027-10-31",44,"2027-11-07",45,"2027-11-14",46,"2027-11-21",47,"2027-11-28",48,"2027-12-05",49,"2027-12-12",50,"2027-12-19",51,"2027-12-26",52,"2028-01-02"]
[2028,"Financial Statement for the Year Ended 31 December 2028","January to December 2028","2028-01-01","2028-12-31",null,"at 31st December 2028","January to December 2028","31st December 2028","1st January 2028","Cash and deposit balances as at 31/12/28","Investments as at 31/12/28","2028-01-01","2028-01-02",1,"2028-01-09",2,"2028-01-16",3,"2028-01-23",4,{"$f":"SUM(T10+7)","v":"2028-01-30"},5,{"$f":"SUM(V10+7)","v":"2028-02-06"},6,{"$f":"SUM(X10+7)","v":"2028-02-13"},7,{"$f":"SUM(Z10+7)","v":"2028-02-20"},8,{"$f":"SUM(AB10+7)","v":"2028-02-27"},9,{"$f":"SUM(AD10+7)","v":"2028-03-05"},10,{"$f":"SUM(AF10+7)","v":"2028-03-12"},11,{"$f":"SUM(AH10+7)","v":"2028-03-19"},12,{"$f":"SUM(AJ10+7)","v":"2028-03-26"},13,{"$f":"SUM(AL10+7)","v":"2028-04-02"},14,{"$f":"SUM(AN10+7)","v":"2028-04-09"},15,{"$f":"SUM(AP10+7)","v":"2028-04-16"},16,{"$f":"SUM(AR10+7)","v":"2028-04-23"},17,{"$f":"SUM(AT10+7)","v":"2028-04-30"},18,{"$f":"SUM(AV10+7)","v":"2028-05-07"},19,{"$f":"SUM(AX10+7)","v":"2028-05-14"},20,{"$f":"SUM(AZ10+7)","v":"2028-05-21"},21,{"$f":"SUM(BB10+7)","v":"2028-05-28"},22,{"$f":"SUM(BD10+7)","v":"2028-06-04"},23,{"$f":"SUM(BF10+7)","v":"2028-06-11"},24,{"$f":"SUM(BH10+7)","v":"2028-06-18"},25,{"$f":"SUM(BJ10+7)","v":"2028-06-25"},26,{"$f":"SUM(BL10+7)","v":"2028-07-02"},27,{"$f":"SUM(BN10+7)","v":"2028-07-09"},28,{"$f":"SUM(BP10+7)","v":"2028-07-16"},29,{"$f":"SUM(BR10+7)","v":"2028-07-23"},30,{"$f":"SUM(BT10+7)","v":"2028-07-30"},31,{"$f":"SUM(BV10+7)","v":"2028-08-06"},32,{"$f":"SUM(BX10+7)","v":"2028-08-13"},33,{"$f":"SUM(BZ10+7)","v":"2028-08-20"},34,{"$f":"SUM(CB10+7)","v":"2028-08-27"},35,{"$f":"SUM(CD10+7)","v":"2028-09-03"},36,{"$f":"SUM(CF10+7)","v":"2028-09-10"},37,{"$f":"SUM(CH10+7)","v":"2028-09-17"},38,{"$f":"SUM(CJ10+7)","v":"2028-09-24"},39,{"$f":"SUM(CL10+7)","v":"2028-10-01"},40,{"$f":"SUM(CN10+7)","v":"2028-10-08"},41,{"$f":"SUM(CP10+7)","v":"2028-10-15"},42,{"$f":"SUM(CR10+7)","v":"2028-10-22"},43,{"$f":"SUM(CT10+7)","v":"2028-10-29"},44,{"$f":"SUM(CV10+7)","v":"2028-11-05"},45,{"$f":"SUM(CX10+7)","v":"2028-11-12"},46,{"$f":"SUM(CZ10+7)","v":"2028-11-19"},47,{"$f":"SUM(DB10+7)","v":"2028-11-26"},48,{"$f":"SUM(DD10+7)","v":"2028-12-03"},49,{"$f":"SUM(DF10+7)","v":"2028-12-10"},50,{"$f":"SUM(DH10+7)","v":"2028-12-17"},51,{"$f":"SUM(DJ10+7)","v":"2028-12-24"},52,{"$f":"SUM(DL10+7)","v":"2028-12-31"}]
[2029,"Financial Statement for the Year Ended 31 December 2029","January to December 2029","2029-01-01","2029-12-31",null,"at 31st December 2029","January to December 2029","at 31st December 2029","1st January 2029","Cash and deposit balances as at 31/12/29","Investments as at 31/12/29","2029-01-01","2029-01-07",1,"2029-01-14",2,"2029-01-21",3,"2029-01-28",4,{"$f":"SUM(T11+7)","v":"2029-02-04"},5,{"$f":"SUM(V11+7)","v":"2029-02-11"},6,{"$f":"SUM(X11+7)","v":"2029-02-18"},7,{"$f":"SUM(Z11+7)","v":"2029-02-25"},8,{"$f":"SUM(AB11+7)","v":"2029-03-04"},9,{"$f":"SUM(AD11+7)","v":"2029-03-11"},10,{"$f":"SUM(AF11+7)","v":"2029-03-18"},11,{"$f":"SUM(AH11+7)","v":"2029-03-25"},12,{"$f":"SUM(AJ11+7)","v":"2029-04-01"},13,{"$f":"SUM(AL11+7)","v":"2029-04-08"},14,{"$f":"SUM(AN11+7)","v":"2029-04-15"},15,{"$f":"SUM(AP11+7)","v":"2029-04-22"},16,{"$f":"SUM(AR11+7)","v":"2029-04-29"},17,{"$f":"SUM(AT11+7)","v":"2029-05-06"},18,{"$f":"SUM(AV11+7)","v":"2029-05-13"},19,{"$f":"SUM(AX11+7)","v":"2029-05-20"},20,{"$f":"SUM(AZ11+7)","v":"2029-05-27"},21,{"$f":"SUM(BB11+7)","v":"2029-06-03"},22,{"$f":"SUM(BD11+7)","v":"2029-06-10"},23,{"$f":"SUM(BF11+7)","v":"2029-06-17"},24,{"$f":"SUM(BH11+7)","v":"2029-06-24"},25,{"$f":"SUM(BJ11+7)","v":"2029-07-01"},26,{"$f":"SUM(BL11+7)","v":"2029-07-08"},27,{"$f":"SUM(BN11+7)","v":"2029-07-15"},28,{"$f":"SUM(BP11+7)","v":"2029-07-22"},29,{"$f":"SUM(BR11+7)","v":"2029-07-29"},30,{"$f":"SUM(BT11+7)","v":"2029-08-05"},31,{"$f":"SUM(BV11+7)","v":"2029-08-12"},32,{"$f":"SUM(BX11+7)","v":"2029-08-19"},33,{"$f":"SUM(BZ11+7)","v":"2029-08-26"},34,{"$f":"SUM(CB11+7)","v":"2029-09-02"},35,{"$f":"SUM(CD11+7)","v":"2029-09-09"},36,{"$f":"SUM(CF11+7)","v":"2029-09-16"},37,{"$f":"SUM(CH11+7)","v":"2029-09-23"},38,{"$f":"SUM(CJ11+7)","v":"2029-09-30"},39,{"$f":"SUM(CL11+7)","v":"2029-10-07"},40,{"$f":"SUM(CN11+7)","v":"2029-10-14"},41,{"$f":"SUM(CP11+7)","v":"2029-10-21"},42,{"$f":"SUM(CR11+7)","v":"2029-10-28"},43,{"$f":"SUM(CT11+7)","v":"2029-11-04"},44,{"$f":"SUM(CV11+7)","v":"2029-11-11"},45,{"$f":"SUM(CX11+7)","v":"2029-11-18"},46,{"$f":"SUM(CZ11+7)","v":"2029-11-25"},47,{"$f":"SUM(DB11+7)","v":"2029-12-02"},48,{"$f":"SUM(DD11+7)","v":"2029-12-09"},49,{"$f":"SUM(DF11+7)","v":"2029-12-16"},50,{"$f":"SUM(DH11+7)","v":"2029-12-23"},51,{"$f":"SUM(DJ11+7)","v":"2029-12-30"},52,{"$f":"SUM(DL11+7)","v":"2030-01-06"}]
[2030,"Financial Statement for the Year Ended 31 December 2030","January to December 2030","2030-01-01","2030-12-31",null,"at 31st December 2030","January to December 2030","at 31st December 2030","1st January 2030","Cash and deposit balances as at 31/12/30","Investments as at 31/12/30","2030-01-01","2030-01-06",1,"2030-01-13",2,"2030-01-20",3,"2030-01-27",4,{"$f":"SUM(T12+7)","v":"2030-02-03"},5,{"$f":"SUM(V12+7)","v":"2030-02-10"},6,{"$f":"SUM(X12+7)","v":"2030-02-17"},7,{"$f":"SUM(Z12+7)","v":"2030-02-24"},8,{"$f":"SUM(AB12+7)","v":"2030-03-03"},9,{"$f":"SUM(AD12+7)","v":"2030-03-10"},10,{"$f":"SUM(AF12+7)","v":"2030-03-17"},11,{"$f":"SUM(AH12+7)","v":"2030-03-24"},12,{"$f":"SUM(AJ12+7)","v":"2030-03-31"},13,{"$f":"SUM(AL12+7)","v":"2030-04-07"},14,{"$f":"SUM(AN12+7)","v":"2030-04-14"},15,{"$f":"SUM(AP12+7)","v":"2030-04-21"},16,{"$f":"SUM(AR12+7)","v":"2030-04-28"},17,{"$f":"SUM(AT12+7)","v":"2030-05-05"},18,{"$f":"SUM(AV12+7)","v":"2030-05-12"},19,{"$f":"SUM(AX12+7)","v":"2030-05-19"},20,{"$f":"SUM(AZ12+7)","v":"2030-05-26"},21,{"$f":"SUM(BB12+7)","v":"2030-06-02"},22,{"$f":"SUM(BD12+7)","v":"2030-06-09"},23,{"$f":"SUM(BF12+7)","v":"2030-06-16"},24,{"$f":"SUM(BH12+7)","v":"2030-06-23"},25,{"$f":"SUM(BJ12+7)","v":"2030-06-30"},26,{"$f":"SUM(BL12+7)","v":"2030-07-07"},27,{"$f":"SUM(BN12+7)","v":"2030-07-14"},28,{"$f":"SUM(BP12+7)","v":"2030-07-21"},29,{"$f":"SUM(BR12+7)","v":"2030-07-28"},30,{"$f":"SUM(BT12+7)","v":"2030-08-04"},31,{"$f":"SUM(BV12+7)","v":"2030-08-11"},32,{"$f":"SUM(BX12+7)","v":"2030-08-18"},33,{"$f":"SUM(BZ12+7)","v":"2030-08-25"},34,{"$f":"SUM(CB12+7)","v":"2030-09-01"},35,{"$f":"SUM(CD12+7)","v":"2030-09-08"},36,{"$f":"SUM(CF12+7)","v":"2030-09-15"},37,{"$f":"SUM(CH12+7)","v":"2030-09-22"},38,{"$f":"SUM(CJ12+7)","v":"2030-09-29"},39,{"$f":"SUM(CL12+7)","v":"2030-10-06"},40,{"$f":"SUM(CN12+7)","v":"2030-10-13"},41,{"$f":"SUM(CP12+7)","v":"2030-10-20"},42,{"$f":"SUM(CR12+7)","v":"2030-10-27"},43,{"$f":"SUM(CT12+7)","v":"2030-11-03"},44,{"$f":"SUM(CV12+7)","v":"2030-11-10"},45,{"$f":"SUM(CX12+7)","v":"2030-11-17"},46,{"$f":"SUM(CZ12+7)","v":"2030-11-24"},47,{"$f":"SUM(DB12+7)","v":"2030-12-01"},48,{"$f":"SUM(DD12+7)","v":"2030-12-08"},49,{"$f":"SUM(DF12+7)","v":"2030-12-15"},50,{"$f":"SUM(DH12+7)","v":"2030-12-22"},51,{"$f":"SUM(DJ12+7)","v":"2030-12-29"},52,{"$f":"SUM(DL12+7)","v":"2031-01-05"}]
[2031,"Financial Statement for the Year Ended 31 December 2031","January to December 2031","2031-01-01","2031-12-31",null,"at 31st December 2031","January to December 2031","at 31st December 2031","1st January 2031","Cash and deposit balances as at 31/12/31","Investments as at 31/12/31","2031-01-01","2031-01-05",1,"2031-01-12",2,"2031-01-19",3,"2031-01-26",4,{"$f":"SUM(T13+7)","v":"2031-02-02"},5,{"$f":"SUM(V13+7)","v":"2031-02-09"},6,{"$f":"SUM(X13+7)","v":"2031-02-16"},7,{"$f":"SUM(Z13+7)","v":"2031-02-23"},8,{"$f":"SUM(AB13+7)","v":"2031-03-02"},9,{"$f":"SUM(AD13+7)","v":"2031-03-09"},10,{"$f":"SUM(AF13+7)","v":"2031-03-16"},11,{"$f":"SUM(AH13+7)","v":"2031-03-23"},12,{"$f":"SUM(AJ13+7)","v":"2031-03-30"},13,{"$f":"SUM(AL13+7)","v":"2031-04-06"},14,{"$f":"SUM(AN13+7)","v":"2031-04-13"},15,{"$f":"SUM(AP13+7)","v":"2031-04-20"},16,{"$f":"SUM(AR13+7)","v":"2031-04-27"},17,{"$f":"SUM(AT13+7)","v":"2031-05-04"},18,{"$f":"SUM(AV13+7)","v":"2031-05-11"},19,{"$f":"SUM(AX13+7)","v":"2031-05-18"},20,{"$f":"SUM(AZ13+7)","v":"2031-05-25"},21,{"$f":"SUM(BB13+7)","v":"2031-06-01"},22,{"$f":"SUM(BD13+7)","v":"2031-06-08"},23,{"$f":"SUM(BF13+7)","v":"2031-06-15"},24,{"$f":"SUM(BH13+7)","v":"2031-06-22"},25,{"$f":"SUM(BJ13+7)","v":"2031-06-29"},26,{"$f":"SUM(BL13+7)","v":"2031-07-06"},27,{"$f":"SUM(BN13+7)","v":"2031-07-13"},28,{"$f":"SUM(BP13+7)","v":"2031-07-20"},29,{"$f":"SUM(BR13+7)","v":"2031-07-27"},30,{"$f":"SUM(BT13+7)","v":"2031-08-03"},31,{"$f":"SUM(BV13+7)","v":"2031-08-10"},32,{"$f":"SUM(BX13+7)","v":"2031-08-17"},33,{"$f":"SUM(BZ13+7)","v":"2031-08-24"},34,{"$f":"SUM(CB13+7)","v":"2031-08-31"},35,{"$f":"SUM(CD13+7)","v":"2031-09-07"},36,{"$f":"SUM(CF13+7)","v":"2031-09-14"},37,{"$f":"SUM(CH13+7)","v":"2031-09-21"},38,{"$f":"SUM(CJ13+7)","v":"2031-09-28"},39,{"$f":"SUM(CL13+7)","v":"2031-10-05"},40,{"$f":"SUM(CN13+7)","v":"2031-10-12"},41,{"$f":"SUM(CP13+7)","v":"2031-10-19"},42,{"$f":"SUM(CR13+7)","v":"2031-10-26"},43,{"$f":"SUM(CT13+7)","v":"2031-11-02"},44,{"$f":"SUM(CV13+7)","v":"2031-11-09"},45,{"$f":"SUM(CX13+7)","v":"2031-11-16"},46,{"$f":"SUM(CZ13+7)","v":"2031-11-23"},47,{"$f":"SUM(DB13+7)","v":"2031-11-30"},48,{"$f":"SUM(DD13+7)","v":"2031-12-07"},49,{"$f":"SUM(DF13+7)","v":"2031-12-14"},50,{"$f":"SUM(DH13+7)","v":"2031-12-21"},51,{"$f":"SUM(DJ13+7)","v":"2031-12-28"},52,{"$f":"SUM(DL13+7)","v":"2032-01-04"}]
[2032,"Financial Statement for the Year Ended 31 December 2032","January to December 2032","2032-01-01","2032-12-31",null,"at 31st December 2032","January to December 2032","at 31st December 2032","1st January 2032","Cash and deposit balances as at 31/12/32","Investments as at 31/12/32","2032-01-01","2032-01-04",1,"2032-01-11",2,"2032-01-18",3,"2032-01-25",4,{"$f":"SUM(T14+7)","v":"2032-02-01"},5,{"$f":"SUM(V14+7)","v":"2032-02-08"},6,{"$f":"SUM(X14+7)","v":"2032-02-15"},7,{"$f":"SUM(Z14+7)","v":"2032-02-22"},8,{"$f":"SUM(AB14+7)","v":"2032-02-29"},9,{"$f":"SUM(AD14+7)","v":"2032-03-07"},10,{"$f":"SUM(AF14+7)","v":"2032-03-14"},11,{"$f":"SUM(AH14+7)","v":"2032-03-21"},12,{"$f":"SUM(AJ14+7)","v":"2032-03-28"},13,{"$f":"SUM(AL14+7)","v":"2032-04-04"},14,{"$f":"SUM(AN14+7)","v":"2032-04-11"},15,{"$f":"SUM(AP14+7)","v":"2032-04-18"},16,{"$f":"SUM(AR14+7)","v":"2032-04-25"},17,{"$f":"SUM(AT14+7)","v":"2032-05-02"},18,{"$f":"SUM(AV14+7)","v":"2032-05-09"},19,{"$f":"SUM(AX14+7)","v":"2032-05-16"},20,{"$f":"SUM(AZ14+7)","v":"2032-05-23"},21,{"$f":"SUM(BB14+7)","v":"2032-05-30"},22,{"$f":"SUM(BD14+7)","v":"2032-06-06"},23,{"$f":"SUM(BF14+7)","v":"2032-06-13"},24,{"$f":"SUM(BH14+7)","v":"2032-06-20"},25,{"$f":"SUM(BJ14+7)","v":"2032-06-27"},26,{"$f":"SUM(BL14+7)","v":"2032-07-04"},27,{"$f":"SUM(BN14+7)","v":"2032-07-11"},28,{"$f":"SUM(BP14+7)","v":"2032-07-18"},29,{"$f":"SUM(BR14+7)","v":"2032-07-25"},30,{"$f":"SUM(BT14+7)","v":"2032-08-01"},31,{"$f":"SUM(BV14+7)","v":"2032-08-08"},32,{"$f":"SUM(BX14+7)","v":"2032-08-15"},33,{"$f":"SUM(BZ14+7)","v":"2032-08-22"},34,{"$f":"SUM(CB14+7)","v":"2032-08-29"},35,{"$f":"SUM(CD14+7)","v":"2032-09-05"},36,{"$f":"SUM(CF14+7)","v":"2032-09-12"},37,{"$f":"SUM(CH14+7)","v":"2032-09-19"},38,{"$f":"SUM(CJ14+7)","v":"2032-09-26"},39,{"$f":"SUM(CL14+7)","v":"2032-10-03"},40,{"$f":"SUM(CN14+7)","v":"2032-10-10"},41,{"$f":"SUM(CP14+7)","v":"2032-10-17"},42,{"$f":"SUM(CR14+7)","v":"2032-10-24"},43,{"$f":"SUM(CT14+7)","v":"2032-10-31"},44,{"$f":"SUM(CV14+7)","v":"2032-11-07"},45,{"$f":"SUM(CX14+7)","v":"2032-11-14"},46,{"$f":"SUM(CZ14+7)","v":"2032-11-21"},47,{"$f":"SUM(DB14+7)","v":"2032-11-28"},48,{"$f":"SUM(DD14+7)","v":"2032-12-05"},49,{"$f":"SUM(DF14+7)","v":"2032-12-12"},50,{"$f":"SUM(DH14+7)","v":"2032-12-19"},51,{"$f":"SUM(DJ14+7)","v":"2032-12-26"},52,{"$f":"SUM(DL14+7)","v":"2033-01-02"}]
[]
[]
[null,null,null,null,null,null,null,null,null,null,null,null,null,null,null,null,null,null,null,"Yes"]
[null,null,null,null,null,null,null,null,null,null,null,null,null,null,null,null,null,null,null,"No"]
["Bank Current Account"]
["Bank Savings Account"]
["Deposit Account"]
["Deposit Account"]
[]
[null,"Parish","PS Ref","Deanery"]
[null,"Acle PCC","PS01-001","Blofield",260003,626011]
[null,"Alburgh PCC","PS16-601","Redenhall",260404,626404]
[null,"Alby PCC","PS03-081","Ingworth",260061,626061]
[null,"Aldborough PCC","PS03-080","Ingworth",260144,626144]
[null,"Aldeby PCC","PS14-521","Loddon",260334,626334]
[null,"Alderford PCC","PS08-281","Sparham",260173,626173]
[null,"Anmer PCC","PS21-801","Heacham and Rising",260570,626570]
[null,"Antingham PCC","PS07-242","Repps",260145,626145]
[null,"Arminghall PCC","PS14-523","Loddon",260335,626335]
[null,"Ashby PCC","PS15-561","Lothingland",260377,626377]
[null,"Ashby St Mary PCC","PS14-524","Loddon",260336,626336]
[null,"Ashill PCC","PS18-681","Breckland",260463,626682]
[null,"Ashmanhaugh PCC","PS09-321","St Benet at Waxham & Tunstead",260199,626199]
[null,"Ashwellthorpe PCC","PS13-481","Humbleyard",260305,626305]
[null,"Ashwicken PCC","PS23-881","Lynn",260637,626637]
[null,"Aslacton PCC","PS11-401","Depwade",260244,626244]
[null,"Attleborough PCC","PS17-641","Thetford and Rockland",260433,626433]
[null,"Aylmerton PCC","PS07-243","Repps",260146,626146]
[null,"Aylsham PCC","PS03-082","Ingworth",260063,626063]
[null,"Baconsthorpe PCC","PS22-841","Holt",260597,626597]
[null,"Bacton PCC","PS09-322","St Benet at Waxham & Tunstead",260200,626200]
[null,"Bale PCC","PS22-842","Holt",260598,626598]
[null,"Banham PCC","PS17-642","Thetford and Rockland",260434,626434]
[null,"Banningham PCC","PS09-330","St Benet at Waxham & Tunstead",260201,626217]
[null,"Barford PCC","PS12-441","Dereham in Mitford",260274,626274]
[null,"Barney PCC","PS20-843","Burnham and Walsingham",260599,626599]
[null,"Barnham Broom PCC","PS12-400","Dereham in Mitford",260275,626275]
[null,"Barningham Winter PCC","PS22-878","Holt",260600,626600]
[null,"Barton Turf PCC","PS09-324","St Benet at Waxham & Tunstead",260203,626203]
[null,"Bawburgh PCC","PS12-483","Dereham in Mitford",260306,626306]
[null,"Bawdeswell PCC","PS08-283","Sparham",260175,626175]
[null,"Bedingham PCC","PS11-402","Depwade",260245,626245]
[null,"Beeston Regis PCC","PS07-245","Repps",260147,626147]
[null,"Beeston St Lawrence PCC","PS09-325","St Benet at Waxham & Tunstead",null,626202]
[null,"Beeston-next-Mileham PCC","PS12-722","Dereham in Mitford",260495,626495]
[null,"Beetley PCC","PS12-723","Dereham in Mitford",260496,626496]
[null,"Beighton All Saints PCC","PS01-002","Blofield",260008,626008]
[null,"Belaugh PCC","PS09-355","St Benet at Waxham & Tunstead",260065,626065]
[null,"Belton All Saints PCC","PS02-042","Great Yarmouth",260032,626032]
[null,"Bergh Apton PCC","PS14-525","Loddon",260337,626337]
[null,"Bessingham PCC","PS07-246","Repps",260148,626148]
[null,"Besthorpe PCC","PS17-643","Thetford and Rockland",260435,626435]
[null,"Billingford St Leonard PCC","PS16-602","Redenhall",260405,626405]
[null,"Billingford St Peter PCC","PS08-724","Sparham",260497,626497]
[null,"Binham PCC","PS22-845","Holt",260601,626601]
[null,"Bintree PCC","PS08-284","Sparham",260176,626176]
[null,"Bittering Parva PCC","PS12-725","Dereham in Mitford",260499,626499]
[null,"Bixley PCC","PS14-542","Loddon",260670,626670]
[null,"Blakeney PCC","PS22-846","Holt",260604,626604]
[null,"Blickling PCC","PS03-085","Ingworth",260066,626066]
[null,"Blo Norton PCC","PS17-644","Thetford and Rockland",260436,626436]
[null,"Blofield PCC","PS01-003","Blofield",260005,626005]
[null,"Blundeston PCC","PS15-562","Lothingland",260379,626379]
[null,"Bodham PCC","PS22-849","Holt",260603,626603]
[null,"Bodney PCC","PS18-680","Breckland",260464,626464]
[null,"Bracon Ash PCC","PS13-482","Humbleyard",260307,626307]
[null,"Bradfield PCC","PS07-247","Repps",260149,626149]
[null,"Bradwell PCC","PS02-044","Great Yarmouth",260034,626034]
[null,"Bramerton PCC","PS14-527","Loddon",260338,626338]
[null,"Brampton PCC","PS03-086","Ingworth",260067,626067]
[null,"Brancaster PCC","PS21-803","Heacham and Rising",260573,626573]
[null,"Brandon Parva PCC","PS12-444","Dereham in Mitford",260278,626278]
[null,"Braydeston PCC","PS01-004","Blofield",260006,626006]
[null,"Breckles PCC","PS18-682","Breckland",260465,626465]
[null,"Bressingham PCC","PS16-603","Redenhall",260406,626406]
[null,"Brettenham PCC","PS17-645","Thetford and Rockland",260437,626437]
[null,"Bridgham PCC","PS17-646","Thetford and Rockland",260438,626438]
[null,"Briningham PCC","PS22-850","Holt",260605,626605]
[null,"Brinton PCC","PS22-851","Holt",260606,626606]
[null,"Brisley PCC","PS20-726","Burnham and Walsingham",260500,626500]
[null,"Briston PCC","PS22-852","Holt",260607,626607]
[null,"Brockdish PCC","PS16-604","Redenhall",260407,626407]
[null,"Brooke PCC","PS11-403","Depwade",260246,626246]
[null,"Broome PCC","PS16-404","Redenhall",260247,626247]
[null,"Brundall PCC","PS01-005","Blofield",260007,626007]
[null,"Bunwell PCC","PS11-405","Depwade",260248,626248]
[null,"Burgh Castle PCC","PS02-046","Great Yarmouth",260036,626036]
[null,"Burgh Parva PCC","PS22-853","Holt",260608,626608]
[null,"Burgh St Peter PCC","PS14-528","Loddon",260339,626339]
[null,"Burgh w Billockby PCC","PS02-045","Great Yarmouth",260035,626035]
[null,"Burgh-next-Aylsham PCC","PS03-087","Ingworth",260068,626068]
[null,"Burlingham PCC","PS01-028","Blofield",260009,626009]
[null,"Burnham Deepdale PCC","PS21-804","Heacham and Rising",260574,626574]
[null,"Burnham Norton PCC","PS20-762","Burnham and Walsingham",260538,626542]
[null,"Burnham Overy PCC","PS20-763","Burnham and Walsingham",260539,626539]
[null,"Burnham Sutton cum Ulph PCC","PS20-764","Burnham and Walsingham",260541,626541]
[null,"Burnham Thorpe PCC","PS20-765","Burnham and Walsingham",260540,626540]
[null,"Burnham Westgate PCC","PS20-766","Burnham and Walsingham",260542]
[null,"Burston PCC","PS16-605","Redenhall",260408,626408]
[null,"Buxton PCC","PS03-088","Ingworth",260069,626070]
[null,"Bylaugh PCC","PS08-287","Sparham",260178,626178]
[null,"Caister-On-Sea PCC","PS02-043","Great Yarmouth",260037,626667]
[null,"Caistor St Edmund PCC","PS14-529","Loddon",260340,626340]
[null,"Calthorpe PCC","PS03-089","Ingworth",260071,626071]
[null,"Cantley St Margaret PCC","PS01-008","Blofield",260010,626010]
[null,"Carbrooke PCC","PS18-683","Breckland",260466,626466]
[null,"Carleton Forehoe PCC","PS12-448","Dereham in Mitford",260279,626279]
[null,"Carleton Rode PCC","PS11-406","Depwade",260249,626249]
[null,"Carleton St Peter PCC","PS14-530","Loddon",260342,626342]
[null,"Carlton Colville PCC","PS15-563","Lothingland",260380,626380]
[null,"Castle Acre PCC","PS18-727","Breckland",260501,626501]
[null,"Castle Rising PCC","PS21-818","Heacham and Rising",260575,626575]
[null,"Caston PCC","PS18-684","Breckland",260467,626467]
[null,"Catfield PCC","PS09-361","St Benet at Waxham & Tunstead",260230,626230]
[null,"Cawston PCC","PS03-090","Ingworth",260072,626072]
[null,"Chedgrave PCC","PS14-531","Loddon",260341,626341]
[null,"Claxton PCC","PS14-532","Loddon",260343,626343]
[null,"Cley-next-the-Sea PCC","PS22-854","Holt",260609,626609]
[null,"Clippesby PCC","PS02-047","Great Yarmouth",260038,626038]
[null,"Cockley Cley PCC","PS18-689","Breckland",260468,626468]
[null,"Colkirk PCC","PS20-728","Burnham and Walsingham",260502,626502]
[null,"Colney PCC","PS13-485","Humbleyard",260310,626310]
[null,"Coltishall PCC","PS03-091","Ingworth",260073,626073]
[null,"Colton PCC","PS12-446","Dereham in Mitford",260280,626280]
[null,"Congham PCC","PS23-883","Lynn",260640,626640]
[null,"Corton PCC","PS15-564","Lothingland",260381,626381]
[null,"Costessey PCC","PS05-125","Norwich South",260116,626116]
[null,"Cranwich PCC","PS18-685","Breckland",260469,626469]
[null,"Cranworth PCC","PS12-466","Dereham in Mitford",260297,626297]
[null,"Cringleford PCC","PS13-486","Humbleyard",260311,626311]
[null,"Cromer PCC","PS07-248","Repps",260150,626151]
[null,"Crostwick PCC","PS04-126","Norwich North",260118,626118]
[null,"Croxton PCC","PS17-649","Thetford and Rockland",260441,626441]
[null,"Denton PCC","PS16-606","Redenhall",260409,626409]
[null,"Dereham PCC","PS12-449","Dereham in Mitford",260282,626282]
[null,"Dersingham PCC","PS21-805","Heacham and Rising",260576,626576]
[null,"Dickleburgh PCC","PS16-607","Redenhall",260410,626410]
[null,"Didlington PCC","PS18-692","Breckland",260472,626472]
[null,"Dilham PCC","PS09-328","St Benet at Waxham & Tunstead",260206,626206]
[null,"Diss PCC","PS16-608","Redenhall",260412,626412]
[null,"Ditchingham PCC","PS16-407","Redenhall",260250,626250]
[null,"Docking PCC","PS21-806","Heacham and Rising",260577,626577]
[null,"Drayton PCC","PS04-127","Norwich North",260119,626119]
[null,"Earlham PCC","PS05-160","Norwich South",260133,626135]
[null,"Earsham PCC","PS16-609","Redenhall",260414,626414]
[null,"East Barsham PCC","PS20-761","Burnham and Walsingham",260535,626535]
[null,"East Bradenham PCC","PS12-443","Dereham in Mitford",260277,626277]
[null,"East Carleton PCC","PS13-484","Humbleyard",260309,626309]
[null,"East Harling PCC","PS17-654","Thetford and Rockland",260446,626446]
[null,"East Lexham PCC","PS12-738","Dereham in Mitford",260513,626513]
[null,"East Raynham PCC","PS20-746","Burnham and Walsingham",260521,626521]
[null,"East Rudham PCC","PS20-776","Burnham and Walsingham",260552,626552]
[null,"East Tuddenham PCC","PS12-456","Dereham in Mitford",260289,626289]
[null,"East Walton PCC","PS23-897","Lynn",260659,626659]
[null,"East Winch PCC","PS23-899","Lynn",260658,626658]
[null,"East with West Beckham PCC","PS22-844","Holt",260602,626602]
[null,"Easton PCC","PS12-450","Dereham in Mitford",260283,626283]
[null,"Eccles PCC","PS17-651","Thetford and Rockland",260442,626442]
[null,"Edgefield PCC","PS03-111","Ingworth",260610,626610]
[null,"Edingthorpe PCC","PS09-329","St Benet at Waxham & Tunstead",260207,626207]
[null,"Ellingham PCC","PS14-533","Loddon",260344,626344]
[null,"Elsing PCC","PS08-288","Sparham",260179,626179]
[null,"Erpingham PCC","PS03-093","Ingworth",260074,626074]
[null,"Fakenham PCC","PS20-770","Burnham and Walsingham",260545,626545]
[null,"Felbrigg PCC","PS07-249","Repps",260152,626152]
[null,"Felthorpe PCC","PS04-138","Norwich North",260120,626120]
[null,"Fersfield PCC","PS16-610","Redenhall",260415,626415]
[null,"Field Dalling PCC","PS22-856","Holt",260611,626611]
[null,"Filby PCC","PS02-048","Great Yarmouth",260039,626039]
[null,"Flitcham PCC","PS21-817","Heacham and Rising",260578,626578]
[null,"Flordon PCC","PS13-428","Humbleyard",260252,626252]
[null,"Forncett PCC","PS13-408","Humbleyard",260254,626254]
[null,"Foulden PCC","PS18-693","Breckland",260473,626473]
[null,"Foulsham PCC","PS08-289","Sparham",260180,626180]
[null,"Fountain of Life","PS18-679",null,null,626682]
[null,"Foxley PCC","PS08-290","Sparham",260181,626181]
[null,"Framingham Earl PCC","PS14-534","Loddon",260345,626345]
[null,"Framingham Pigot PCC","PS14-535","Loddon",260346,626346]
[null,"Freethorpe PCC","PS01-010","Blofield",260012,626012]
[null,"Frettenham PCC","PS03-128","Ingworth",260121,626121]
[null,"Fring PCC","PS21-807","Heacham and Rising",260579,626579]
[null,"Fritton PCC","PS15-565","Lothingland",260382,626382]
[null,"Fulmodeston PCC","PS20-840","Burnham and Walsingham",260546,626546]
[null,"Fundenhall PCC","PS13-506","Humbleyard",260313,626313]
[null,"Garboldisham PCC","PS17-653","Thetford and Rockland",260445,626445]
[null,"Garvestone PCC","PS12-451","Dereham in Mitford",260284,626284]
[null,"Gateley PCC","PS20-771","Burnham and Walsingham",260554,626554]
[null,"Gayton PCC","PS23-884","Lynn",260641,626641]
[null,"Gayton Thorpe PCC","PS23-885","Lynn",260642,626642]
[null,"Gaywood PCC","PS23-886","Lynn",260643,626643]
[null,"Geldeston PCC","PS14-536","Loddon",260347,626347]
[null,"Gillingham PCC","PS14-559","Loddon",260348,626348]
[null,"Gimingham PCC","PS07-250","Repps",260153,626153]
[null,"Gisleham PCC","PS15-566","Lothingland",260383,626383]
[null,"Gissing PCC","PS16-611","Redenhall",260416,626416]
[null,"Glandford PCC","PS22-857","Holt",260612,626612]
[null,"Gooderstone PCC","PS18-694","Breckland",260474,626474]
[null,"Gorleston St Andrew PCC","PS02-049","Great Yarmouth",260040,626040]
[null,"Gorleston St Mary PCC","PS02-050","Great Yarmouth",260041,626041]
[null,"Great Bircham PCC","PS21-802","Heacham and Rising",260571,626572]
[null,"Great Cressingham PCC","PS18-690","Breckland",260470,626470]
[null,"Great Dunham PCC","PS12-729","Dereham in Mitford",260503,626503]
[null,"Great Ellingham PCC","PS17-650","Thetford and Rockland",260443,626443]
[null,"Great Hockham PCC","PS18-655","Breckland",260447,626447]
[null,"Great Massingham PCC","PS23-742","Lynn",260517,626517]
[null,"Great Melton PCC","PS13-496","Humbleyard",260322,626322]
[null,"Great Moulton PCC","PS11-411","Depwade",260261,626261]
[null,"Great Plumstead PCC","PS01-015","Blofield",260017,626017]
[null,"Great Ryburgh PCC","PS20-777","Burnham and Walsingham",260553,626553]
[null,"Great Snoring PCC","PS20-780","Burnham and Walsingham",260557,626557]
[null,"Great Witchingham PCC","PS08-303","Sparham",260195,626195]
[null,"Great Yarmouth Southtown (Unofficial) PCC","PS02-075","Great Yarmouth",260045,626043]
[null,"Gresham PCC","PS07-251","Repps",260154,626154]
[null,"Gressenhall PCC","PS12-733","Dereham in Mitford",260508,626508]
[null,"Grimston PCC","PS23-887","Lynn",260644,626644]
[null,"Griston PCC","PS18-686","Breckland",260475,626475]
[null,"Guestwick PCC","PS08-291","Sparham",260182,626182]
[null,"Guist PCC","PS08-292","Sparham",260183,626183]
[null,"Gunthorpe PCC","PS22-858","Holt",260613,626613]
[null,"Gunton PCC","PS07-252","Repps",260384,626385]
[null,"Gunton St Peter PCC","PS15-567","Lothingland",260384,626385]
[null,"Haddiscoe PCC","PS14-537","Loddon",260349,626349]
[null,"Hainford PCC","PS03-097","Ingworth",260076,626076]
[null,"Halvergate PCC","PS01-011","Blofield",260013,626013]
[null,"Happisburgh PCC","PS09-363","St Benet at Waxham & Tunstead",260231,626231]
[null,"Hapton PCC","PS13-490","Humbleyard",260315,626315]
[null,"Hardingham PCC","PS12-452","Dereham in Mitford",260285,626285]
[null,"Hardley PCC","PS14-539","Loddon",260350,626350]
[null,"Harpley PCC","PS23-735","Lynn",260509,626509]
[null,"Hassingham (Unofficial) PCC","PS01-006","Blofield",260024,626025]
[null,"Haveringland PCC","PS03-095","Ingworth",260077,626077]
[null,"Heacham PCC","PS21-808","Heacham and Rising",260580,626580]
[null,"Hedenham PCC","PS16-411","Redenhall",260256,626256]
[null,"Helhoughton PCC","PS20-736","Burnham and Walsingham",260510,626510]
[null,"Hellesdon PCC","PS04-129","Norwich North",260122,626122]
[null,"Hemblington PCC","PS01-012","Blofield",260014,626014]
[null,"Hempnall PCC","PS11-412","Depwade",260257,626257]
[null,"Hempstead All Saints PCC","PS22-859","Holt",260614,626614]
[null,"Hempstead St Andrew PCC","PS09-367","St Benet at Waxham & Tunstead",260232,626236]
[null,"Hempton PCC","PS20-772","Burnham and Walsingham",260547,626547]
[null,"Hemsby PCC","PS02-051","Great Yarmouth",260047,626047]
[null,"Herringfleet PCC","PS15-568","Lothingland",260386,626386]
[null,"Hethel PCC","PS13-491","Humbleyard",260308,626308]
[null,"Hethersett PCC","PS13-492","Humbleyard",260316,626316]
[null,"Hevingham PCC","PS04-098","Norwich North",260078,626078]
[null,"Heydon PCC","PS03-099","Ingworth",260079,626079]
[null,"Hickling PCC","PS09-364","St Benet at Waxham & Tunstead",260233,626233]
[null,"High Kelling (Unofficial) PCC","PS22-862","Holt",260616,626616]
[null,"High Oak PCC","PS13-488","Humbleyard",260320,626312]
[null,"Hilborough PCC","PS18-697","Breckland",260476,626476]
[null,"Hillington PCC","PS21-819","Heacham and Rising",260581,626581]
[null,"Hindolveston PCC","PS22-293","Holt",260184,626184]
[null,"Hindringham PCC","PS20-847","Burnham and Walsingham",260615,626615]
[null,"Hingham PCC","PS13-453","Humbleyard",260286,626286]
[null,"Hockering PCC","PS12-454","Dereham in Mitford",260287,626287]
[null,"Hoe PCC","PS12-759","Dereham in Mitford",260511,626511]
[null,"Holkham PCC","PS20-773","Burnham and Walsingham",260548,626548]
[null,"Holme Hale PCC","PS18-698","Breckland",260477,626477]
[null,"Holme-next-the-Sea PCC","PS21-809","Heacham and Rising",260582,626582]
[null,"Holt PCC","PS22-860","Holt",260616,626616]
[null,"Honing PCC","PS09-331","St Benet at Waxham & Tunstead",260205,626205]
[null,"Honingham PCC","PS12-455","Dereham in Mitford",260288,626288]
[null,"Hopton PCC","PS15-569","Lothingland",260387,626387]
[null,"Horning PCC","PS09-332","St Benet at Waxham & Tunstead",260210,626210]
[null,"Horningtoft PCC","PS20-737","Burnham and Walsingham",260512,626512]
[null,"Horsey PCC","PS02-070","Great Yarmouth",260234,626234]
[null,"Horsford PCC","PS04-130","Norwich North",260125,626125]
[null,"Horsham, Spixworth and Crostwick PCC","PS04-131","Norwich North",260126,626126]
[null,"Horstead PCC","PS03-100","Ingworth",260080,626080]
[null,"Houghton next Harpley PCC","PS20-774","Burnham and Walsingham",260550,626550]
[null,"Hoveton St John PCC","PS09-333","St Benet at Waxham & Tunstead",260211,626211]
[null,"Hoveton St Peter PCC","PS09-335","St Benet at Waxham & Tunstead",260212,626212]
[null,"Howe PCC","PS14-540","Loddon",260353,626353]
[null,"Hunstanton PCC","PS21-810","Heacham and Rising",260583,626583]
[null,"Hunstanton St Mary PCC","PS21-811","Heacham and Rising",260584,626584]
[null,"Hunworth PCC","PS22-861","Holt",260617,626617]
[null,"Ickburgh PCC","PS18-699","Breckland",260478,626478]
[null,"Ingham PCC","PS09-366","St Benet at Waxham & Tunstead",260235,626235]
[null,"Ingoldisthorpe PCC","PS21-812","Heacham and Rising",260585,626585]
[null,"Ingworth PCC","PS03-101","Ingworth",260081,626081]
[null,"Intwood PCC","PS13-493","Humbleyard",260317,626318]
[null,"Irstead PCC","PS09-336","St Benet at Waxham & Tunstead",260213,626213]
[null,"Itteringham PCC","PS03-102","Ingworth",260082,626082]
[null,"Kelling PCC","PS22-863","Holt",260619,626619]
[null,"Kenninghall PCC","PS17-657","Thetford and Rockland",260449,626449]
[null,"Kessingland PCC","PS15-570","Lothingland",260388,626388]
[null,"Ketteringham PCC","PS13-494","Humbleyard",260319,626319]
[null,"Kettlestone PCC","PS20-775","Burnham and Walsingham",260551,626551]
[null,"Kilverstone PCC","PS17-658","Thetford and Rockland",260450,626450]
[null,"Kimberley PCC","PS12-457","Dereham in Mitford",260290,626290]
[null,"King's Lynn St John PCC","PS23-889","Lynn",260649,626649]
[null,"King's Lynn St Margaret PCC","PS23-890","Lynn",260645,626645]
[null,"Kirby Bedon PCC","PS14-526","Loddon",260354,626354]
[null,"Kirby Cane PCC","PS14-541","Loddon",260355,626355]
[null,"Kirkley PCC","PS15-571","Lothingland",260389,626389]
[null,"Kirstead PCC","PS11-413","Depwade",260258,626258]
[null,"Knapton PCC","PS07-270","Repps",260156,626156]
[null,"Lammas PCC","PS03-103","Ingworth",260083,626083]
[null,"Langham Episcopi PCC","PS22-865","Holt",260621,626621]
[null,"Langley PCC","PS14-544","Loddon",260356,626356]
[null,"Larling PCC","PS17-659","Thetford and Rockland",260451,626451]
[null,"Letheringsett PCC","PS22-864","Holt",260622,626622]
[null,"Limpenhoe PCC","PS01-013","Blofield",260015,626015]
[null,"Lingwood PCC","PS01-014","Blofield",260016,626016]
[null,"Litcham PCC","PS12-740","Dereham in Mitford",260515,626515]
[null,"Little Barningham PCC","PS03-083","Ingworth",260064,626064]
[null,"Little Cressingham PCC","PS18-691","Breckland",260471,626471]
[null,"Little Dunham  St Margaret PCC","PS12-730","Dereham in Mitford",260504,626504]
[null,"Little Ellingham PCC","PS17-652","Thetford and Rockland",260444,626444]
[null,"Little Fransham PCC","PS12-732","Dereham in Mitford",260506,626507]
[null,"Little Massingham PCC","PS23-743","Lynn",260518,626518]
[null,"Little Melton PCC","PS13-497","Humbleyard",260323,626323]
[null,"Little Snoring PCC","PS20-781","Burnham and Walsingham",260558,626558]
[null,"Little Walsingham PCC","PS20-786","Burnham and Walsingham",260564,626566]
[null,"Loddon PCC","PS14-543","Loddon",260357,626357]
[null,"Longham PCC","PS12-741","Dereham in Mitford",260516,626516]
[null,"Lound PCC","PS15-572","Lothingland",260390,626390]
[null,"Lowestoft Christ Church PCC","PS15-574","Lothingland",260391,626391]
[null,"Lowestoft St Andrew PCC","PS15-585","Lothingland",260393,626393]
[null,"Lowestoft St Margaret PCC","PS15-575","Lothingland",260394,626395]
[null,"Ludham PCC","PS09-368","St Benet at Waxham & Tunstead",260237,626237]
[null,"Lyng PCC","PS08-294","Sparham",260185,626185]
[null,"Marlingford PCC","PS12-470","Dereham in Mitford",260291,626291]
[null,"Marsham PCC","PS03-104","Ingworth",260084,626084]
[null,"Martham PCC","PS02-052","Great Yarmouth",260048,626048]
[null,"Matlaske PCC","PS22-879","Holt",260623,626623]
[null,"Mattishall PCC","PS12-458","Dereham in Mitford",260292,626293]
[null,"Mautby PCC","PS02-054","Great Yarmouth",260049,626049]
[null,"Melton Constable PCC","PS22-866","Holt",260624,626624]
[null,"Merton PCC","PS18-700","Breckland",260479,626479]
[null,"Metton PCC","PS07-255","Repps",260517,626517]
[null,"Middleton PCC","PS23-892","Lynn",260651,626651]
[null,"Mileham PCC","PS12-744","Dereham in Mitford",260519,626519]
[null,"Morningthorpe PCC","PS11-409","Depwade",260259,626259]
[null,"Morston PCC","PS22-877","Holt",260625,626625]
[null,"Mulbarton PCC","PS13-499","Humbleyard",260324,626324]
[null,"Mundesley PCC","PS07-256","Repps",260158,626158]
[null,"Mundford PCC","PS18-701","Breckland",260480,626480]
[null,"Mundham PCC","PS11-430","Depwade",260358,626363]
[null,"Mutford PCC","PS15-577","Lothingland",260396,626396]
[null,"Narborough PCC","PS18-893","Breckland",260652,626652]
[null,"Neatishead PCC","PS09-337","St Benet at Waxham & Tunstead",260214,626214]
[null,"Necton PCC","PS18-702","Breckland",260481,626481]
[null,"Needham PCC","PS16-614","Redenhall",260419,626419]
[null,"New Buckenham PCC","PS17-647","Thetford and Rockland",260439,626439]
[null,"Newton Flotman PCC","PS11-500","Depwade",260325,626325]
[null,"Newton-by-Castle-Acre PCC","PS18-745","Breckland",260520,626520]
[null,"North Burlingham PCC","PS01-007","Blofield",260004,626004]
[null,"North Creake PCC","PS20-767","Burnham and Walsingham",260543,626543]
[null,"North Elmham PCC","PS08-731","Sparham",260505,626505]
[null,"North Lopham PCC","PS16-612","Redenhall",260417,626417]
[null,"North Pickenham PCC","PS18-704","Breckland",260484,626484]
[null,"North Runcton PCC","PS23-896","Lynn",260656,626656]
[null,"North Tuddenham PCC","PS12-463","Dereham in Mitford",260299,626299]
[null,"North Walsham PCC","PS09-349","St Benet at Waxham & Tunstead",260224,626224]
[null,"Northrepps PCC","PS07-257","Repps",260159,626159]
[null,"Norton Subcourse PCC","PS14-545","Loddon",260359,626359]
[null,"Norwich Bowthorpe PCC","PS05-172","Norwich South",260666,626666]
[null,"Norwich Eaton Christ Church PCC","PS05-159","Norwich South",260137,626137]
[null,"Norwich Eaton St Andrew PCC","PS05-163","Norwich South",260136,626136]
[null,"Norwich Heartsease PCC","PS06-207","Norwich East",260089,626089]
[null,"Norwich Heigham PCC","PS05-168","Norwich South",260138,626138]
[null,"Norwich Heigham St Barnabas PCC","PS05-164","Norwich South",260139,626139]
[null,"Norwich Heigham St Thomas PCC","PS05-167","Norwich South",260140,626140]
[null,"Norwich Lakenham St Alban PCC","PS06-169","Norwich East",260141,626141]
[null,"Norwich Lakenham St John PCC","PS06-170","Norwich East",260142,626142]
[null,"Norwich Lakenham St Mark PCC","PS06-212","Norwich East",260090,626090]
[null,"Norwich Mile Cross PCC","PS04-132","Norwich North",260127,626127]
[null,"Norwich New Catton PCC","PS04-122","Norwich North",260114,626114]
[null,"Norwich New Catton St Luke PCC","PS04-123","Norwich North",260115,626684]
[null,"Norwich St Andrew PCC","PS06-201","Norwich East",260092,626092]
[null,"Norwich St George Colegate PCC","PS06-203","Norwich East",260095,626095]
[null,"Norwich St George Tombland PCC","PS06-205","Norwich East",260097,626097]
[null,"Norwich St Giles PCC","PS06-206","Norwich East",260098,626098]
[null,"Norwich St Helen PCC","PS06-208","Norwich East",260099,626099]
[null,"Norwich St John Timberhill PCC","PS06-218","Norwich East",260101,626101]
[null,"Norwich St Mary Magdalene PCC","PS04-214","Norwich North",260105,626105]
[null,"Norwich St Mary-in-the-Marsh PCC","PS06-213","Norwich East",260104,826003]
[null,"Norwich St Peter Mancroft PCC","PS06-217","Norwich East",260106,626106]
[null,"Norwich St Stephen PCC","PS06-219","Norwich East",260107,626107]
[null,"Norwich Thorpe Hamlet PCC","PS06-221","Norwich East",260108,626108]
[null,"Norwich Thorpe End PCC","PS06-223","Norwch East",260686,626686]
[null,"Norwich Trowse PCC","PS06-556","Norwich East",260374,626374]
[null,"Old Buckenham PCC","PS17-648","Thetford and Rockland",260440,626440]
[null,"Old Catton PCC","PS04-124","Norwich North",260113,626113]
[null,"Ormesby PCC","PS02-055","Great Yarmouth",260051,626051]
[null,"Ormesby St Margaret PCC","PS02-053","Great Yarmouth",260050,626050]
[null,"Oulton PCC","PS15-579","Lothingland",260398,626398]
[null,"Oulton Broad PCC","PS15-578","Lothingland",260399,626399]
[null,"Oulton Community PCC","PS15-576","Lothingland",null,626395]
[null,"Oulton SS Peter and Paul PCC","PS03-105","Ingworth",260085,626085]
[null,"Overstrand PCC","PS07-258","Repps",260160,626160]
[null,"Ovington PCC","PS18-703","Breckland",260482,626482]
[null,"Oxborough PCC","PS18-696","Breckland",260483,626483]
[null,"Pakefield PCC","PS15-580","Lothingland",260401,626401]
[null,"Paston PCC","PS07-271","Repps",260161,626161]
[null,"Pentney PCC","PS18-894","Breckland",260654,626654]
[null,"Plumstead PCC","PS22-867","Holt",260626,626626]
[null,"Poringland PCC","PS14-546","Loddon",260360,626360]
[null,"Postwick PCC","PS01-017","Blofield",260020,626020]
[null,"Potter Heigham PCC","PS09-369","St Benet at Waxham & Tunstead",260238,626238]
[null,"Pulham Market PCC","PS16-615","Redenhall",260420,626420]
[null,"Pulham St Mary PCC","PS16-616","Redenhall",260421,626421]
[null,"Quidenham PCC","PS17-660","Thetford and Rockland",260452,626452]
[null,"Rackheath PCC","PS01-018","Blofield",260023,626023]
[null,"Ranworth PCC","PS01-019","Blofield",260021,626021]
[null,"Raveningham PCC","PS14-547","Loddon",260361,626361]
[null,"Redenhall PCC","PS16-617","Redenhall",260422,626423]
[null,"Reedham PCC","PS01-020","Blofield",260022,626022]
[null,"Reepham PCC","PS08-296","Sparham",260186,626186]
[null,"Repps PCC","PS02-071","Great Yarmouth",260052,626052]
[null,"Reymerston PCC","PS12-460","Dereham in Mitford",260294,626294]
[null,"Riddlesworth PCC","PS17-661","Thetford and Rockland",260453,626453]
[null,"Ridlington PCC","PS09-339","St Benet at Waxham & Tunstead",260215,626215]
[null,"Ringland PCC","PS08-133","Sparham",260128,626128]
[null,"Ringstead PCC","PS21-813","Heacham and Rising",260586,626586]
[null,"Rockland All Saints PCC","PS17-662","Thetford and Rockland",260454,626454]
[null,"Rockland St Mary PCC","PS14-548","Loddon",260362,626362]
[null,"Rockland St Peter PCC","PS17-671","Thetford and Rockland",260455,626455]
[null,"Rollesby PCC","PS02-057","Great Yarmouth",260053,626053]
[null,"Rougham PCC","PS23-748","Lynn",260523,626523]
[null,"Roughton PCC","PS07-259","Repps",260162,626162]
[null,"Roydon PCC","PS23-895","Lynn",260655,626655]
[null,"Roydon St Remigius PCC","PS16-618","Redenhall",260424,626424]
[null,"Runhall PCC","PS12-447","Dereham in Mitford",260295,626295]
[null,"Runham PCC","PS02-058","Great Yarmouth",260054,626054]
[null,"Runton PCC","PS07-260","Repps",260163,626164]
[null,"Rushall PCC","PS16-619","Redenhall",260425,626425]
[null,"Rushford PCC","PS17-663","Thetford and Rockland",260456,626456]
[null,"Rushmere PCC","PS15-582","Lothingland",260402,626402]
[null,"Saham Toney PCC","PS18-706","Breckland",260486,626486]
[null,"Salhouse PCC","PS01-021","Blofield",260026,626026]
[null,"Salle PCC","PS08-297","Sparham",260188,626188]
[null,"Salthouse PCC","PS22-868","Holt",260627,626627]
[null,"Sandringham PCC","PS21-815","Heacham and Rising",260587,626587]
[null,"Saxlingham PCC","PS22-869","Holt",260628,626628]
[null,"Saxlingham Nethergate PCC","PS11-415","Depwade",260262,626262]
[null,"Saxthorpe PCC","PS03-106","Ingworth",260086,626086]
[null,"Scarning PCC","PS12-469","Dereham in Mitford",260524,626524]
[null,"Scole PCC","PS16-620","Redenhall",260426,626426]
[null,"Scottow PCC","PS09-341","St Benet at Waxham & Tunstead",260216,626216]
[null,"Scoulton PCC","PS13-472","Humbleyard",260494,626487]
[null,"Sculthorpe PCC","PS20-778","Burnham and Walsingham",260555,626555]
[null,"Sea Palling PCC","PS09-374","St Benet at Waxham & Tunstead",260239,626239]
[null,"Sedgeford PCC","PS21-820","Heacham and Rising",260588,626588]
[null,"Sharrington PCC","PS22-870","Holt",260629,626629]
[null,"Shelfanger PCC","PS16-621","Redenhall",260427,626427]
[null,"Shelton PCC","PS11-416","Depwade",260263,626264]
[null,"Shereford PCC","PS20-779","Burnham and Walsingham",260556,626556]
[null,"Sheringham PCC","PS07-261","Repps",260165,626165]
[null,"Shernborne PCC","PS21-821","Heacham and Rising",260589,626589]
[null,"Shipdham PCC","PS12-461","Dereham in Mitford",260296,626296]
[null,"Shotesham PCC","PS11-417","Depwade",260265,626265]
[null,"Shropham PCC","PS17-664","Thetford and Rockland",260457,626457]
[null,"Sidestrand PCC","PS07-262","Repps",260166,626166]
[null,"Sisland PCC","PS14-549","Loddon",260364,626364]
[null,"Sloley PCC","PS09-343","St Benet at Waxham & Tunstead",260218,626218]
[null,"Smallburgh PCC","PS09-344","St Benet at Waxham & Tunstead",260219,626219]
[null,"Snettisham PCC","PS21-822","Heacham and Rising",260590,626590]
[null,"Somerleyton PCC","PS15-581","Lothingland",260403,626403]
[null,"South Acre PCC","PS18-751","Breckland",260525,626525]
[null,"South Creake PCC","PS20-768","Burnham and Walsingham",260544,626549]
[null,"South Lopham PCC","PS16-613","Redenhall",260418,626418]
[null,"South Lynn PCC","PS23-888","Lynn",260648,626648]
[null,"South Pickenham PCC","PS18-705","Breckland",260485,626485]
[null,"South Raynham PCC","PS20-747","Burnham and Walsingham",260522,626522]
[null,"South Walsham PCC","PS01-024","Blofield",260028,626028]
[null,"Southrepps PCC","PS07-263","Repps",260167,626167]
[null,"Sparham PCC","PS08-298","Sparham",260189,626189]
[null,"Spixworth PCC","PS04-134","Norwich North",260129,626129]
[null,"Sporle PCC","PS18-715","Breckland",260488,626488]
[null,"Sprowston PCC","PS04-135","Norwich North",260130,626130]
[null,"Stalham PCC","PS09-371","St Benet at Waxham & Tunstead",260241,626229]
[null,"Stanfield PCC","PS12-752","Dereham in Mitford",260526,626526]
[null,"Stanhoe PCC","PS21-823","Heacham and Rising",260591,626591]
[null,"Starston PCC","PS16-623","Redenhall",260429,626429]
[null,"Stibbard PCC","PS08-782","Sparham",260559,626559]
[null,"Stiffkey PCC","PS22-848","Holt",260631,626631]
[null,"Stockton PCC","PS14-560","Loddon",260367,626367]
[null,"Stody PCC","PS22-839","Holt",260618,626618]
[null,"Stoke Holy Cross PCC","PS14-551","Loddon",260365,626366]
[null,"Stokesby PCC","PS02-061","Great Yarmouth",260057,626057]
[null,"Stow Bedon PCC","PS18-687","Breckland",260489,626489]
[null,"Stratton St Mary PCC","PS11-418","Depwade",260266,626266]
[null,"Stratton St Michael PCC","PS11-419","Depwade",260267,626267]
[null,"Stratton Strawless PCC","PS03-107","Ingworth",260087,626087]
[null,"Strumpshaw PCC","PS01-022","Blofield",260024,626025]
[null,"Surlingham PCC","PS14-550","Loddon",260369,626369]
[null,"Sustead PCC","PS07-264","Repps",260168,626168]
[null,"Sutton PCC","PS09-372","St Benet at Waxham & Tunstead",260242,626242]
[null,"Swaffham PCC","PS18-710","Breckland",260490,626490]
[null,"Swafield PCC","PS07-265","Repps",260169,626169]
[null,"Swainsthorpe PCC","PS11-501","Depwade",260326,626326]
[null,"Swannington PCC","PS08-299","Sparham",260190,626190]
[null,"Swanton Abbot St Michael PCC","PS09-346","St Benet at Waxham & Tunstead",260221,626221]
[null,"Swanton Morley PCC","PS12-750","Dereham in Mitford",260527,626527]
[null,"Swanton Novers PCC","PS22-871","Holt",260632,626632]
[null,"Swardeston PCC","PS13-502","Humbleyard",260327,626327]
[null,"Syderstone PCC","PS20-783","Burnham and Walsingham",260560,626560]
[null,"Tacolneston PCC","PS13-507","Humbleyard",260328,626328]
[null,"Tas Valley Cells (Unofficial) PCC","PS11-433","Depwade",260268,626683]
[null,"Tasburgh PCC","PS11-421","Depwade",260268,626683]
[null,"Tatterford PCC","PS20-784","Burnham and Walsingham",260561,626561]
[null,"Tattersett PCC","PS20-785","Burnham and Walsingham",260562,626562]
[null,"Taverham PCC","PS04-136","Norwich North",260132,626132]
[null,"Tharston PCC","PS11-422","Depwade",260269,626269]
[null,"The Church in the Woottons","PS23-901","Lynn",260063,626063]
[null,"Thelveton PCC","PS16-624","Redenhall",260411,626411]
[null,"Themelthorpe PCC","PS08-306","Sparham",260191,626191]
[null,"Thetford PCC","PS17-665","Thetford and Rockland",260458,626681]
[null,"Thompson PCC","PS18-711","Breckland",260492,626492]
[null,"Thornage PCC","PS22-873","Holt",260633,626633]
[null,"Thornham PCC","PS21-824","Heacham and Rising",260592,626592]
[null,"Thorpe Abbots PCC","PS16-625","Redenhall",260430,626430]
[null,"Thorpe Episcopi PCC","PS06-220","Norwich East",260110,626110]
[null,"Thorpe Market PCC","PS07-266","Repps",260170,626170]
[null,"Thorpe-next-Haddiscoe PCC","PS14-552","Loddon",260371,626371]
[null,"Threxton PCC","PS18-707","Breckland",260491,626491]
[null,"Thurlton PCC","PS14-553","Loddon",260368,626368]
[null,"Thurne PCC","PS02-041","Great Yarmouth",260059,626059]
[null,"Thurning PCC","PS08-300","Sparham",260192,626192]
[null,"Thursford PCC","PS20-874","Burnham and Walsingham",260634,626634]
[null,"Thurton PCC","PS14-554","Loddon",260370,626370]
[null,"Thuxton PCC","PS12-462","Dereham in Mitford",260298,626298]
[null,"Thwaite All Saints PCC","PS03-109","Ingworth",260062,626062]
[null,"Thwaite St Mary PCC","PS11-431","Depwade",260372,626372]
[null,"Tibenham PCC","PS11-427","Depwade",260271,626271]
[null,"Titchwell PCC","PS21-825","Heacham and Rising",260593,626593]
[null,"Tittleshall PCC","PS12-753","Dereham in Mitford",260528,626528]
[null,"Tivetshall PCC","PS16-627","Redenhall",260431,626431]
[null,"Toft Monks PCC","PS14-555","Loddon",260373,626373]
[null,"Toftrees PCC","PS20-792","Burnham and Walsingham",260563,626563]
[null,"Topcroft PCC","PS11-424","Depwade",260270,626270]
[null,"Trimingham PCC","PS07-268","Repps",260171,626171]
[null,"Trunch PCC","PS07-269","Repps",260172,626169]
[null,"Tuckswood PCC","PS06-171","Norwich East",260143,626143]
[null,"Tunstead PCC","PS09-347","St Benet at Waxham & Tunstead",260222,626222]
[null,"Twyford PCC","PS08-301","Sparham",260193,626193]
[null,"Upper Sheringham PCC","PS22-872","Holt",260630,626630]
[null,"Wacton Magna PCC","PS11-425","Depwade",260272,626272]
[null,"Walcott PCC","PS09-373","St Benet at Waxham & Tunstead",260243,626243]
[null,"Warham PCC","PS20-788","Burnham and Walsingham",260567,626567]
[null,"Watton PCC","PS18-712","Breckland",260493,626493]
[null,"Weasenham PCC","PS23-720","Lynn",260529,626530]
[null,"Welborne PCC","PS12-464","Dereham in Mitford",260300,626300]
[null,"Wellingham PCC","PS23-755","Lynn",260531,626531]
[null,"Wells-next-the-Sea PCC","PS20-789","Burnham and Walsingham",260568,626568]
[null,"Wendling PCC","PS12-756","Dereham in Mitford",260532,626532]
[null,"West Acre PCC","PS18-898","Breckland",260660,626660]
[null,"West Lexham PCC","PS12-739","Dereham in Mitford",260514,626514]
[null,"West Somerton PCC","PS02-059","Great Yarmouth",260055,626055]
[null,"West Winch PCC","PS23-900","Lynn",260661,626661]
[null,"Weston Longville PCC","PS08-302","Sparham",260194,626194]
[null,"Westwick PCC","PS09-350","St Benet at Waxham & Tunstead",260225,626225]
[null,"Weybourne PCC","PS22-875","Holt",260635,626635]
[null,"Wheatacre PCC","PS14-557","Loddon",260375,626375]
[null,"Whinburgh PCC","PS12-465","Dereham in Mitford",260301,626301]
[null,"Whissonsett PCC","PS20-757","Burnham and Walsingham",260533,626533]
[null,"Wickhampton PCC","PS01-025","Blofield",260029,626029]
[null,"Wickmere PCC","PS03-108","Ingworth",260088,626088]
[null,"Wighton PCC","PS20-790","Burnham and Walsingham",260569,626569]
[null,"Wilby PCC","PS17-668","Thetford and Rockland",260461,626461]
[null,"Winfarthing PCC","PS16-628","Redenhall",260432,626432]
[null,"Winterton PCC","PS02-063","Great Yarmouth",260060,626060]
[null,"Witton PCC","PS09-351","St Benet at Waxham & Tunstead",260226,626226]
[null,"Wiveton PCC","PS22-876","Holt",260636,626636]
[null,"Wolferton PCC","PS21-816","Heacham and Rising",260595,626595]
[null,"Wood Dalling PCC","PS08-304","Sparham",260197,626197]
[null,"Wood Norton PCC","PS08-305","Sparham",260198,626198]
[null,"Woodbastwick PCC","PS01-027","Blofield",260031,626031]
[null,"Woodton PCC","PS11-426","Depwade",260273,626273]
[null,"Worstead PCC","PS09-352","St Benet at Waxham & Tunstead",260227,626227]
[null,"Worthing PCC","PS08-758","Sparham",260534,626534]
[null,"Wramplingham PCC","PS12-467","Dereham in Mitford",260303,626303]
[null,"Wreningham PCC","PS13-504","Humbleyard",260329,626329]
[null,"Wretham PCC","PS17-669","Thetford and Rockland",260462,626462]
[null,"Wroxham PCC","PS09-353","St Benet at Waxham & Tunstead",260228,626228]
[null,"Wymondham PCC","PS13-505","Humbleyard",260331,626331]
[null,"Yaxham PCC","PS12-468","Dereham in Mitford",260304,626304]
[null,"Yelverton PCC","PS14-522","Loddon",260376,626376]

{"sheet":"Account A","index":24,"n_rows":47,"n_cols":6,"rows_kept":47,"cut":false,"hidden":false,"merged":[[4,0,4,5],[9,4,9,5]]}
[]
[]
[]
[]
[{"$f":"'Bank and Fund Details'!$B$6","v":0}]
[]
["Bank Reconciliation ","Statement Date","From"]
[null,null,"To"]
[]
["Balance carried forward from previous year",null,null,null,"Reconciliation Statement"]
["Opening balance per bank statement",null,null,null,"Difference to reconcile",{"$f":"B17","v":0}]
["Receipts for period",{"$f":"SUMPRODUCT((Receipts!$B$5:$B$1355>=$D$7)*(Receipts!$B$5:$B$1355<=$D$8),((Receipts!$J$5:$J$1355=A5)*Receipts!$E$5:$E$1355))","v":0},null,null,"Reconciling items:"]
["Payments for period",{"$f":"SUMPRODUCT((Payments!$B$5:$B$1355>=$D$7)*(Payments!$B$5:$B$1355<=$D$8),((Payments!$J$5:$J$1355=A5)*Payments!$E$5:$E$1355))","v":0},null,null,"LESS 1. Receipts transactions in accounts not yet on bank statement",{"$f":"-B26","v":0}]
["Transfers in during period",{"$f":"SUMPRODUCT((Transfers!$C$7:$C$107>=$D$7)*(Transfers!$C$7:$C$107<=$D$8),((Transfers!$M$7:$M$107=A5)*Transfers!$F$7:$F$107))","v":0},null,null,"ADD 2. Payments transactions in accounts not yet on bank statement",{"$f":"B33","v":0}]
["Transfers out during period",{"$f":"SUMPRODUCT((Transfers!$C$7:$C$107>=$D$7)*(Transfers!$C$7:$C$107<=$D$8),((Transfers!$L$7:$L$107=A5)*Transfers!$F$7:$F$107))","v":0},null,null,"ADD 3. Receipts transactions in bank statement not yet in accounts",{"$f":"+B40","v":0}]
["Closing balance as per bank statement",null,null,null,"LESS 4. Payments transactions in bank statement not yet in accounts",{"$f":"-B47","v":0}]
["Difference",{"$f":"B11+B12-B13+B14-B15-B16+B10","v":0},null,null,"Remaining difference to reconcile",{"$f":"SUM(F11:F16)","v":0}]
[]
["Reconciling Items"]
["1. Receipt transactions in accounts not yet on bank statement:"]
[]
[]
[]
[]
[]
["Total",{"$f":"SUM(B21:B25)","v":0}]
["2. Payments transactions in accounts not yet on bank statement:"]
[]
[]
[]
[]
[]
["Total",{"$f":"SUM(B28:B32)","v":0}]
["3. Receipt transactions in bank statement not yet in accounts:"]
[]
[]
[]
[]
[]
["Total",{"$f":"SUM(B35:B39)","v":0}]
["4. Payments transactions in bank statement not yet in accounts:"]
[]
[]
[]
[]
[]
["Total",{"$f":"SUM(B42:B46)","v":0}]

{"sheet":"Account B","index":25,"n_rows":47,"n_cols":6,"rows_kept":47,"cut":false,"hidden":false,"merged":[[4,0,4,5],[9,4,9,5]]}
[]
[]
[]
[]
[{"$f":"'Bank and Fund Details'!$B$7","v":0}]
[]
["Bank Reconciliation ","Statement Date","From"]
[null,null,"To"]
[]
["Balance carried forward from previous year",null,null,null,"Reconciliation Statement"]
["Opening balance per bank statement",null,null,null,"Difference to reconcile",{"$f":"B17","v":0}]
["Receipts for period",{"$f":"SUMPRODUCT((Receipts!$B$5:$B$1355>=$D$7)*(Receipts!$B$5:$B$1355<=$D$8),((Receipts!$J$5:$J$1355=A5)*Receipts!$E$5:$E$1355))","v":0},null,null,"Reconciling items:"]
["Payments for period",{"$f":"SUMPRODUCT((Payments!$B$5:$B$1355>=$D$7)*(Payments!$B$5:$B$1355<=$D$8),((Payments!$J$5:$J$1355=A5)*Payments!$E$5:$E$1355))","v":0},null,null,"LESS 1. Receipts transactions in accounts not yet on bank statement",{"$f":"-B26","v":0}]
["Transfers in during period",{"$f":"SUMPRODUCT((Transfers!$C$7:$C$107>=$D$7)*(Transfers!$C$7:$C$107<=$D$8),((Transfers!$M$7:$M$107=A5)*Transfers!$F$7:$F$107))","v":0},null,null,"ADD 2. Payments transactions in accounts not yet on bank statement",{"$f":"B33","v":0}]
["Transfers out during period",{"$f":"SUMPRODUCT((Transfers!$C$7:$C$107>=$D$7)*(Transfers!$C$7:$C$107<=$D$8),((Transfers!$L$7:$L$107=A5)*Transfers!$F$7:$F$107))","v":0},null,null,"ADD 3. Receipts transactions in bank statement not yet in accounts",{"$f":"+B40","v":0}]
["Closing balance as per bank statement",null,null,null,"LESS 4. Payments transactions in bank statement not yet in accounts",{"$f":"-B47","v":0}]
["Difference",{"$f":"B11+B12-B13+B14-B15-B16+B10","v":0},null,null,"Remaining difference to reconcile",{"$f":"SUM(F11:F16)","v":0}]
[]
["Reconciling Items"]
["1. Receipt transactions in accounts not yet on bank statement:"]
[]
[]
[]
[]
[]
["Total",{"$f":"SUM(B21:B25)","v":0}]
["2. Payments transactions in accounts not yet on bank statement:"]
[]
[]
[]
[]
[]
["Total",{"$f":"SUM(B28:B32)","v":0}]
["3. Receipt transactions in bank statement not yet in accounts:"]
[]
[]
[]
[]
[]
["Total",{"$f":"SUM(B35:B39)","v":0}]
["4. Payments transactions in bank statement not yet in accounts:"]
[]
[]
[]
[]
[]
["Total",{"$f":"SUM(B42:B46)","v":0}]

{"sheet":"Account C","index":26,"n_rows":47,"n_cols":6,"rows_kept":47,"cut":false,"hidden":false,"merged":[[4,0,4,5],[9,4,9,5]]}
[]
[]
[]
[]
[{"$f":"'Bank and Fund Details'!$B$8","v":0}]
[]
["Bank Reconciliation ","Statement Date","From"]
[null,null,"To"]
[]
["Balance carried forward from previous year",null,null,null,"Reconciliation Statement"]
["Opening balance per bank statement",null,null,null,"Difference to reconcile",{"$f":"B17","v":0}]
["Receipts for period",{"$f":"SUMPRODUCT((Receipts!$B$5:$B$1355>=$D$7)*(Receipts!$B$5:$B$1355<=$D$8),((Receipts!$J$5:$J$1355=A5)*Receipts!$E$5:$E$1355))","v":0},null,null,"Reconciling items:"]
["Payments for period",{"$f":"SUMPRODUCT((Payments!$B$5:$B$1355>=$D$7)*(Payments!$B$5:$B$1355<=$D$8),((Payments!$J$5:$J$1355=A5)*Payments!$E$5:$E$1355))","v":0},null,null,"LESS 1. Receipts transactions in accounts not yet on bank statement",{"$f":"-B26","v":0}]
["Transfers in during period",{"$f":"SUMPRODUCT((Transfers!$C$7:$C$107>=$D$7)*(Transfers!$C$7:$C$107<=$D$8),((Transfers!$M$7:$M$107=A5)*Transfers!$F$7:$F$107))","v":0},null,null,"ADD 2. Payments transactions in accounts not yet on bank statement",{"$f":"B33","v":0}]
["Transfers out during period",{"$f":"SUMPRODUCT((Transfers!$C$7:$C$107>=$D$7)*(Transfers!$C$7:$C$107<=$D$8),((Transfers!$L$7:$L$107=A5)*Transfers!$F$7:$F$107))","v":0},null,null,"ADD 3. Receipts transactions in bank statement not yet in accounts",{"$f":"+B40","v":0}]
["Closing balance as per bank statement",null,null,null,"LESS 4. Payments transactions in bank statement not yet in accounts",{"$f":"-B47","v":0}]
["Difference",{"$f":"B11+B12-B13+B14-B15-B16+B10","v":0},null,null,"Remaining difference to reconcile",{"$f":"SUM(F11:F16)","v":0}]
[]
["Reconciling Items"]
["1. Receipt transactions in accounts not yet on bank statement:"]
[]
[]
[]
[]
[]
["Total",{"$f":"SUM(B21:B25)","v":0}]
["2. Payments transactions in accounts not yet on bank statement:"]
[]
[]
[]
[]
[]
["Total",{"$f":"SUM(B28:B32)","v":0}]
["3. Receipt transactions in bank statement not yet in accounts:"]
[]
[]
[]
[]
[]
["Total",{"$f":"SUM(B35:B39)","v":0}]
["4. Payments transactions in bank statement not yet in accounts:"]
[]
[]
[]
[]
[]
["Total",{"$f":"SUM(B42:B46)","v":0}]

{"sheet":"Account D","index":27,"n_rows":47,"n_cols":6,"rows_kept":47,"cut":false,"hidden":false,"merged":[[4,0,4,5],[9,4,9,5]]}
[]
[]
[]
[]
[{"$f":"'Bank and Fund Details'!$B$9","v":0}]
[]
["Bank Reconciliation ","Statement Date","From"]
[null,null,"To"]
[]
["Balance carried forward from previous year",null,null,null,"Reconciliation Statement"]
["Opening balance per bank statement",null,null,null,"Difference to reconcile",{"$f":"B17","v":0}]
["Receipts for period",{"$f":"SUMPRODUCT((Receipts!$B$5:$B$1355>=$D$7)*(Receipts!$B$5:$B$1355<=$D$8),((Receipts!$J$5:$J$1355=A5)*Receipts!$E$5:$E$1355))","v":0},null,null,"Reconciling items:"]
["Payments for period",{"$f":"SUMPRODUCT((Payments!$B$5:$B$1355>=$D$7)*(Payments!$B$5:$B$1355<=$D$8),((Payments!$J$5:$J$1355=A5)*Payments!$E$5:$E$1355))","v":0},null,null,"LESS 1. Receipts transactions in accounts not yet on bank statement",{"$f":"-B26","v":0}]
["Transfers in during period",{"$f":"SUMPRODUCT((Transfers!$C$7:$C$107>=$D$7)*(Transfers!$C$7:$C$107<=$D$8),((Transfers!$M$7:$M$107=A5)*Transfers!$F$7:$F$107))","v":0},null,null,"ADD 2. Payments transactions in accounts not yet on bank statement",{"$f":"B33","v":0}]
["Transfers out during period",{"$f":"SUMPRODUCT((Transfers!$C$7:$C$107>=$D$7)*(Transfers!$C$7:$C$107<=$D$8),((Transfers!$L$7:$L$107=A5)*Transfers!$F$7:$F$107))","v":0},null,null,"ADD 3. Receipts transactions in bank statement not yet in accounts",{"$f":"+B40","v":0}]
["Closing balance as per bank statement",null,null,null,"LESS 4. Payments transactions in bank statement not yet in accounts",{"$f":"-B47","v":0}]
["Difference",{"$f":"B11+B12-B13+B14-B15-B16+B10","v":0},null,null,"Remaining difference to reconcile",{"$f":"SUM(F11:F16)","v":0}]
[]
["Reconciling Items"]
["1. Receipt transactions in accounts not yet on bank statement:"]
[]
[]
[]
[]
[]
["Total",{"$f":"SUM(B21:B25)","v":0}]
["2. Payments transactions in accounts not yet on bank statement:"]
[]
[]
[]
[]
[]
["Total",{"$f":"SUM(B28:B32)","v":0}]
["3. Receipt transactions in bank statement not yet in accounts:"]
[]
[]
[]
[]
[]
["Total",{"$f":"SUM(B35:B39)","v":0}]
["4. Payments transactions in bank statement not yet in accounts:"]
[]
[]
[]
[]
[]
["Total",{"$f":"SUM(B42:B46)","v":0}]

{"sheet":"Account E","index":28,"n_rows":47,"n_cols":6,"rows_kept":47,"cut":false,"hidden":false,"merged":[[4,0,4,5],[9,4,9,5]]}
[]
[]
[]
[]
[{"$f":"'Bank and Fund Details'!$B$10","v":0}]
[]
["Bank Reconciliation ","Statement Date","From"]
[null,null,"To"]
[]
["Balance carried forward from previous year",null,null,null,"Reconciliation Statement"]
["Opening balance per bank statement",null,null,null,"Difference to reconcile",{"$f":"B17","v":0}]
["Receipts for period",{"$f":"SUMPRODUCT((Receipts!$B$5:$B$1355>=$D$7)*(Receipts!$B$5:$B$1355<=$D$8),((Receipts!$J$5:$J$1355=A5)*Receipts!$E$5:$E$1355))","v":0},null,null,"Reconciling items:"]
["Payments for period",{"$f":"SUMPRODUCT((Payments!$B$5:$B$1355>=$D$7)*(Payments!$B$5:$B$1355<=$D$8),((Payments!$J$5:$J$1355=A5)*Payments!$E$5:$E$1355))","v":0},null,null,"LESS 1. Receipts transactions in accounts not yet on bank statement",{"$f":"-B26","v":0}]
["Transfers in during period",{"$f":"SUMPRODUCT((Transfers!$C$7:$C$107>=$D$7)*(Transfers!$C$7:$C$107<=$D$8),((Transfers!$M$7:$M$107=A5)*Transfers!$F$7:$F$107))","v":0},null,null,"ADD 2. Payments transactions in accounts not yet on bank statement",{"$f":"B33","v":0}]
["Transfers out during period",{"$f":"SUMPRODUCT((Transfers!$C$7:$C$107>=$D$7)*(Transfers!$C$7:$C$107<=$D$8),((Transfers!$L$7:$L$107=A5)*Transfers!$F$7:$F$107))","v":0},null,null,"ADD 3. Receipts transactions in bank statement not yet in accounts",{"$f":"+B40","v":0}]
["Closing balance as per bank statement",null,null,null,"LESS 4. Payments transactions in bank statement not yet in accounts",{"$f":"-B47","v":0}]
["Difference",{"$f":"B11+B12-B13+B14-B15-B16+B10","v":0},null,null,"Remaining difference to reconcile",{"$f":"SUM(F11:F16)","v":0}]
[]
["Reconciling Items"]
["1. Receipt transactions in accounts not yet on bank statement:"]
[]
[]
[]
[]
[]
["Total",{"$f":"SUM(B21:B25)","v":0}]
["2. Payments transactions in accounts not yet on bank statement:"]
[]
[]
[]
[]
[]
["Total",{"$f":"SUM(B28:B32)","v":0}]
["3. Receipt transactions in bank statement not yet in accounts:"]
[]
[]
[]
[]
[]
["Total",{"$f":"SUM(B35:B39)","v":0}]
["4. Payments transactions in bank statement not yet in accounts:"]
[]
[]
[]
[]
[]
["Total",{"$f":"SUM(B42:B46)","v":0}]

{"sheet":"Account F","index":29,"n_rows":47,"n_cols":6,"rows_kept":47,"cut":false,"hidden":false,"merged":[[4,0,4,5],[9,4,9,5]]}
[]
[]
[]
[]
[{"$f":"'Bank and Fund Details'!$B$11","v":0}]
[]
["Bank Reconciliation ","Statement Date","From"]
[null,null,"To"]
[]
["Balance carried forward from previous year",null,null,null,"Reconciliation Statement"]
["Opening balance per bank statement",null,null,null,"Difference to reconcile",{"$f":"B17","v":0}]
["Receipts for period",{"$f":"SUMPRODUCT((Receipts!$B$5:$B$1355>=$D$7)*(Receipts!$B$5:$B$1355<=$D$8),((Receipts!$J$5:$J$1355=A5)*Receipts!$E$5:$E$1355))","v":0},null,null,"Reconciling items:"]
["Payments for period",{"$f":"SUMPRODUCT((Payments!$B$5:$B$1355>=$D$7)*(Payments!$B$5:$B$1355<=$D$8),((Payments!$J$5:$J$1355=A5)*Payments!$E$5:$E$1355))","v":0},null,null,"LESS 1. Receipts transactions in accounts not yet on bank statement",{"$f":"-B26","v":0}]
["Transfers in during period",{"$f":"SUMPRODUCT((Transfers!$C$7:$C$107>=$D$7)*(Transfers!$C$7:$C$107<=$D$8),((Transfers!$M$7:$M$107=A5)*Transfers!$F$7:$F$107))","v":0},null,null,"ADD 2. Payments transactions in accounts not yet on bank statement",{"$f":"B33","v":0}]
["Transfers out during period",{"$f":"SUMPRODUCT((Transfers!$C$7:$C$107>=$D$7)*(Transfers!$C$7:$C$107<=$D$8),((Transfers!$L$7:$L$107=A5)*Transfers!$F$7:$F$107))","v":0},null,null,"ADD 3. Receipts transactions in bank statement not yet in accounts",{"$f":"+B40","v":0}]
["Closing balance as per bank statement",null,null,null,"LESS 4. Payments transactions in bank statement not yet in accounts",{"$f":"-B47","v":0}]
["Difference",{"$f":"B11+B12-B13+B14-B15-B16+B10","v":0},null,null,"Remaining difference to reconcile",{"$f":"SUM(F11:F16)","v":0}]
[]
["Reconciling Items"]
["1. Receipt transactions in accounts not yet on bank statement:"]
[]
[]
[]
[]
[]
["Total",{"$f":"SUM(B21:B25)","v":0}]
["2. Payments transactions in accounts not yet on bank statement:"]
[]
[]
[]
[]
[]
["Total",{"$f":"SUM(B28:B32)","v":0}]
["3. Receipt transactions in bank statement not yet in accounts:"]
[]
[]
[]
[]
[]
["Total",{"$f":"SUM(B35:B39)","v":0}]
["4. Payments transactions in bank statement not yet in accounts:"]
[]
[]
[]
[]
[]
["Total",{"$f":"SUM(B42:B46)","v":0}]

{"sheet":"Account G","index":30,"n_rows":47,"n_cols":6,"rows_kept":47,"cut":false,"hidden":false,"merged":[[4,0,4,5],[9,4,9,5]]}
[]
[]
[]
[]
[{"$f":"'Bank and Fund Details'!$B$12","v":0}]
[]
["Bank Reconciliation ","Statement Date","From"]
[null,null,"To"]
[]
["Balance carried forward from previous year",null,null,null,"Reconciliation Statement"]
["Opening balance per bank statement",null,null,null,"Difference to reconcile",{"$f":"B17","v":0}]
["Receipts for period",{"$f":"SUMPRODUCT((Receipts!$B$5:$B$1355>=$D$7)*(Receipts!$B$5:$B$1355<=$D$8),((Receipts!$J$5:$J$1355=A5)*Receipts!$E$5:$E$1355))","v":0},null,null,"Reconciling items:"]
["Payments for period",{"$f":"SUMPRODUCT((Payments!$B$5:$B$1355>=$D$7)*(Payments!$B$5:$B$1355<=$D$8),((Payments!$J$5:$J$1355=A5)*Payments!$E$5:$E$1355))","v":0},null,null,"LESS 1. Receipts transactions in accounts not yet on bank statement",{"$f":"-B26","v":0}]
["Transfers in during period",{"$f":"SUMPRODUCT((Transfers!$C$7:$C$107>=$D$7)*(Transfers!$C$7:$C$107<=$D$8),((Transfers!$M$7:$M$107=A5)*Transfers!$F$7:$F$107))","v":0},null,null,"ADD 2. Payments transactions in accounts not yet on bank statement",{"$f":"B33","v":0}]
["Transfers out during period",{"$f":"SUMPRODUCT((Transfers!$C$7:$C$107>=$D$7)*(Transfers!$C$7:$C$107<=$D$8),((Transfers!$L$7:$L$107=A5)*Transfers!$F$7:$F$107))","v":0},null,null,"ADD 3. Receipts transactions in bank statement not yet in accounts",{"$f":"+B40","v":0}]
["Closing balance as per bank statement",null,null,null,"LESS 4. Payments transactions in bank statement not yet in accounts",{"$f":"-B47","v":0}]
["Difference",{"$f":"B11+B12-B13+B14-B15-B16+B10","v":0},null,null,"Remaining difference to reconcile",{"$f":"SUM(F11:F16)","v":0}]
[]
["Reconciling Items"]
["1. Receipt transactions in accounts not yet on bank statement:"]
[]
[]
[]
[]
[]
["Total",{"$f":"SUM(B21:B25)","v":0}]
["2. Payments transactions in accounts not yet on bank statement:"]
[]
[]
[]
[]
[]
["Total",{"$f":"SUM(B28:B32)","v":0}]
["3. Receipt transactions in bank statement not yet in accounts:"]
[]
[]
[]
[]
[]
["Total",{"$f":"SUM(B35:B39)","v":0}]
["4. Payments transactions in bank statement not yet in accounts:"]
[]
[]
[]
[]
[]
["Total",{"$f":"SUM(B42:B46)","v":0}]